{"text_format":"1","workbook":"xlsx","n_sheets":9,"sheets":["Dashboard","Data list","Funding","Pupils","Attainment","Other","Data Summary","Neighbours","SN"],"not_rendered":{"charts":9,"images":0,"macros":1,"external_links":0,"defined_names":56,"comments":2,"pivot_tables":0},"unopened":[],"bounds":{"document_bytes":16777216,"sheet_cells":100000,"rows_first":2000,"rows_last":500,"rows_between":2000,"halvings":0,"cell_chars":16384,"cell_head_chars":4096},"cells_cut":0,"cells_raw":0,"read":"whole","date_system":"1900"}

{"sheet":"Dashboard","index":0,"n_rows":215,"n_cols":20,"rows_kept":215,"cut":false,"hidden":false,"merged":[[3,1,4,2],[152,11,152,12],[57,13,57,19],[97,2,98,2],[94,2,95,2],[92,4,92,10],[134,2,135,2],[147,11,147,12],[146,11,146,12],[145,11,145,12],[144,11,144,12],[142,11,142,12],[62,11,64,11],[61,4,62,4],[61,5,62,5],[61,6,62,6],[59,4,60,4],[149,11,149,12],[150,11,150,12],[151,11,151,12],[65,11,67,11],[59,11,61,11],[208,1,210,19],[211,1,212,19],[213,1,213,19],[175,1,175,7],[200,1,202,19],[199,1,199,19],[203,1,206,19],[190,1,190,7],[188,1,188,7],[187,1,187,7],[182,1,182,7],[183,1,183,7],[189,1,189,7],[191,1,191,7],[176,1,176,7],[207,1,207,19],[32,8,33,8],[28,8,29,8],[28,7,29,7],[28,6,29,6],[32,2,33,2],[32,3,33,3],[32,4,33,4],[32,5,33,5],[32,6,33,6],[28,5,29,5],[59,7,60,7],[59,6,60,6],[59,5,60,5],[186,1,186,7],[185,1,185,7],[184,1,184,7],[126,2,127,3],[30,5,31,5],[30,4,31,4],[30,3,31,3],[63,5,64,5],[63,6,64,6],[63,7,64,7],[32,7,33,7],[61,7,62,7],[32,9,33,9],[32,11,33,11],[63,2,64,3],[63,4,64,4],[181,1,181,7],[180,1,180,7],[177,1,177,7],[178,1,178,7],[179,1,179,7],[128,2,129,2],[131,2,132,2],[92,2,93,3],[100,2,101,2],[126,4,126,9],[161,6,161,8],[161,9,161,11],[1,1,1,19],[61,2,62,3],[30,11,31,11],[28,2,29,2],[59,8,60,8],[28,11,29,11],[30,2,31,2],[30,9,31,9],[30,8,31,8],[30,7,31,7],[30,6,31,6],[28,4,29,4],[28,10,29,10],[59,2,60,3],[28,9,29,9],[28,3,29,3]]}
[]
[null,"Local Authority Data on Funding and Characteristics of High Needs Pupils"]
[]
[null,"Local Authority \nor Region:",null,1,{"$f":"VLOOKUP(D4,LA_lookup,2,FALSE)","v":970}]
[]
[]
[]
[]
[]
[]
[]
[]
[]
[]
[]
[]
[]
[]
[]
[]
[]
[]
[]
[]
[]
[null,null,{"$f":"IF(OR(LA_Num=201,LA_Num=420),\"Numbers too small to be shown\",\"(Excludes suppressed data)\")","v":"(Excludes suppressed data)"}]
[]
[null,null,null,"Learning Difficulty","Behaviour Difficulties","Speech, Language            ","Sensory Impairment","Physical Disability","Autism","Other",null,null,null,2009,2010,2011,2012,2013,2014]
[null,null,{"$f":"VLOOKUP($D$4,'Data Summary'!$A$7:$C$169,3,0)","v":"England"},0.34926874722458817,0.21281676093967256,0.20512932509263507,3.9085078657901826E-2,3.9230674033792684E-2,0.11162069492672913,4.28487191246806E-2,null,{"$f":"VLOOKUP($D$4,'Data Summary'!$A$7:$C$169,3,0)","v":"England"},"SEN pupils",0.20669143924827119,0.21053398465862225,0.20604662928298292,0.19788462008754984,0.18735098141654172,0.17919589600048491]
[null,null,null,null,null,null,null,null,null,null,null,null,"With Statements",2.7853707484170098E-2,2.765312976948419E-2,2.7598932281617188E-2,2.7649727323860996E-2,2.780548885368269E-2,2.7869315846044806E-2]
[null,null,"England",{"$f":"'Data Summary'!P7","v":0.34926874722458817},{"$f":"'Data Summary'!Q7","v":0.21281676093967256},{"$f":"'Data Summary'!R7","v":0.20512932509263507},{"$f":"'Data Summary'!S7","v":3.9085078657901826E-2},{"$f":"'Data Summary'!T7","v":3.9230674033792684E-2},{"$f":"'Data Summary'!U7","v":0.11162069492672913},{"$f":"'Data Summary'!V7","v":4.28487191246806E-2},null,"England","SEN pupils",{"$f":"'Data Summary'!J7","v":0.20669143924827119},{"$f":"'Data Summary'!K7","v":0.21053398465862225},{"$f":"'Data Summary'!L7","v":0.20604662928298292},{"$f":"'Data Summary'!M7","v":0.19788462008754984},{"$f":"'Data Summary'!N7","v":0.18735098141654172},{"$f":"'Data Summary'!O7","v":0.17919589600048491}]
[null,null,null,null,null,null,null,null,null,null,null,null,"With Statements",{"$f":"'Data Summary'!D7","v":2.7853707484170098E-2},{"$f":"'Data Summary'!E7","v":2.765312976948419E-2},{"$f":"'Data Summary'!F7","v":2.7598932281617188E-2},{"$f":"'Data Summary'!G7","v":2.7649727323860996E-2},{"$f":"'Data Summary'!H7","v":2.780548885368269E-2},{"$f":"'Data Summary'!I7","v":2.7869315846044806E-2}]
[null,null,"Statistical Neighbours (1)",{"$f":"Neighbours!P20","v":"x"},{"$f":"Neighbours!Q20","v":"x"},{"$f":"Neighbours!R20","v":"x"},{"$f":"Neighbours!S20","v":"x"},{"$f":"Neighbours!T20","v":"x"},{"$f":"Neighbours!U20","v":"x"},{"$f":"Neighbours!V20","v":"x"},null,"Statistical Neighbours","SEN pupils",{"$f":"Neighbours!J20","v":"x"},{"$f":"Neighbours!K20","v":"x"},{"$f":"Neighbours!L20","v":"x"},{"$f":"Neighbours!M20","v":"x"},{"$f":"Neighbours!N20","v":"x"},{"$f":"Neighbours!O20","v":"x"}]
[null,null,null,null,null,null,null,null,null,null,null,null,"With Statements",{"$f":"Neighbours!D20","v":"x"},{"$f":"Neighbours!E20","v":"x"},{"$f":"Neighbours!F20","v":"x"},{"$f":"Neighbours!G20","v":"x"},{"$f":"Neighbours!H20","v":"x"},{"$f":"Neighbours!I20","v":"x"}]
[null,null,null,null,null,null,null,null,null,"Source: School Census (2)",null,null,null,null,null,null,null,null,"Source: School Census (3)"]
[]
[]
[]
[]
[]
[]
[]
[]
[]
[]
[]
[]
[null,null,null,null,null,null,null,null,null,null,null,null,null,{"$f":"\"Funding and spend on high needs for \" & VLOOKUP($D$4,'Data Summary'!$A$7:$C$169,3,0)","v":"Funding and spend on high needs for England"}]
[]
[]
[]
[]
[]
[]
[]
[]
[]
[null,null,{"$f":"IF(OR(LA_Num=201,LA_Num=420),\"Numbers too small to be shown\",\"(Excludes suppressed data)\")","v":"(Excludes suppressed data)"},null,null,null,null,null,null,null,null,null,null,"Funding in £millions"]
[null,null,null,null,"Mainstream settings","Special settings","SEN Units and RP in mainstream settings","Other incl. AP",null,null,null,null,null,"2009-10","2010-11","2011-12","2012-13","2013-14","2014-15","2015-16"]
[null,null,{"$f":"VLOOKUP($D$4,'Data Summary'!$A$7:$C$159,3,0)","v":"England"},null,0.46696611206005778,0.45439784061913496,5.7337466523270278E-2,2.1298580797536958E-2,null,null,null,"DSG High Needs (5)","LA",null,null,null,{"$f":"VLOOKUP($D$4,Summary_data,'Data Summary'!AA3,FALSE)/1000000","v":4732.0621418557803},{"$f":"VLOOKUP($D$4,Summary_data,'Data Summary'!AD3,FALSE)/1000000","v":4966.8902115862002},{"$f":"VLOOKUP($D$4,Summary_data,'Data Summary'!AG3,FALSE)/1000000","v":5181.2822421399596},{"$f":"VLOOKUP($D$4,Summary_data,'Data Summary'!AJ3,FALSE)/1000000","v":5245.1199500596231}]
[null,null,null,null,null,null,null,null,null,null,null,null,"England",null,null,null,{"$f":"Funding!C159/1000000","v":4732.0621418557803},{"$f":"Funding!E159/1000000","v":4966.8902115862002},{"$f":"Funding!G159/1000000","v":5181.2822421399596},{"$f":"Funding!I159/1000000","v":5245.1199500596231}]
[null,null,"England",null,{"$f":"'Data Summary'!$W$7","v":0.46696611206005778},{"$f":"'Data Summary'!$X$7","v":0.45439784061913496},{"$f":"'Data Summary'!$Y$7","v":5.7337466523270278E-2},{"$f":"'Data Summary'!$Z$7","v":2.1298580797536958E-2},null,null,null,null,"Statistical Neighbours",null,null,null,{"$f":"Neighbours!AA20","v":"x"},{"$f":"Neighbours!AD20","v":"x"},{"$f":"Neighbours!AG20","v":"x"},{"$f":"Neighbours!AJ20","v":"x"}]
[null,null,null,null,null,null,null,null,null,null,null,"S251 SEN budget (6)","LA",{"$f":"VLOOKUP($D$4,Summary_data,'Data Summary'!AM3,FALSE)/1000000","v":2966.8860532980007},{"$f":"VLOOKUP($D$4,Summary_data,'Data Summary'!AP3,FALSE)/1000000","v":3128.1769151758313},{"$f":"VLOOKUP($D$4,Summary_data,'Data Summary'!AS3,FALSE)/1000000","v":3198.3050492055199},{"$f":"VLOOKUP($D$4,Summary_data,'Data Summary'!AV3,FALSE)/1000000","v":3458.4067196300002},{"$f":"VLOOKUP($D$4,Summary_data,'Data Summary'!AY3,FALSE)/1000000","v":4738.09826299},{"$f":"VLOOKUP($D$4,Summary_data,'Data Summary'!BB3,FALSE)/1000000","v":4691.6213725199996}]
[null,null,"Statistical Neighbours",null,{"$f":"Neighbours!W20","v":"x"},{"$f":"Neighbours!X20","v":"x"},{"$f":"Neighbours!Y20","v":"x"},{"$f":"Neighbours!Z20","v":"x"},null,null,null,null,"England",{"$f":"Funding!EC159/1000000","v":2966.8860532980007},{"$f":"Funding!DA159/1000000","v":3128.1769151758313},{"$f":"Funding!CE159/1000000","v":3198.3050492055199},{"$f":"Funding!BM159/1000000","v":3458.4067196300002},{"$f":"Funding!AQ159/1000000","v":4738.09826299},{"$f":"Funding!S159/1000000","v":4691.6213725199996}]
[null,null,null,null,null,null,null,null,null,null,null,null,"Statistical Neighbours",{"$f":"Neighbours!AM20","v":"x"},{"$f":"Neighbours!AP20","v":"x"},{"$f":"Neighbours!AS20","v":"x"},{"$f":"Neighbours!AV20","v":"x"},{"$f":"Neighbours!AY20","v":"x"},{"$f":"Neighbours!BB20","v":"x"}]
[null,null,null,null,null,null,null,"Source: SEN 2 survey (4)",null,null,null,"S251 SEN spend (7)","LA",{"$f":"VLOOKUP($D$4,Summary_data,'Data Summary'!BE3,FALSE)/1000000","v":5197.4674624343806},{"$f":"VLOOKUP($D$4,Summary_data,'Data Summary'!BH3,FALSE)/1000000","v":5465.499699580002},{"$f":"VLOOKUP($D$4,Summary_data,'Data Summary'!BK3,FALSE)/1000000","v":5524.8411612},{"$f":"VLOOKUP($D$4,Summary_data,'Data Summary'!BN3,FALSE)/1000000","v":5400.0814721699981},{"$f":"VLOOKUP($D$4,Summary_data,'Data Summary'!BQ3,FALSE)/1000000","v":4654.4995571999998}]
[null,null,null,null,null,null,null,null,null,null,null,null,"England",{"$f":"Funding!GX159/1000000","v":5197.4674624343806},{"$f":"Funding!GP159/1000000","v":5465.499699580002},{"$f":"Funding!GH159/1000000","v":5524.8411612},{"$f":"Funding!FZ159/1000000","v":5400.0814721699981},{"$f":"Funding!FD159/1000000","v":4654.4995571999998}]
[null,null,null,null,null,null,null,null,null,null,null,null,"Statistical Neighbours",{"$f":"Neighbours!BE20","v":"x"},{"$f":"Neighbours!BH20","v":"x"},{"$f":"Neighbours!BK20","v":"x"},{"$f":"Neighbours!BN20","v":"x"},{"$f":"Neighbours!BQ20","v":"x"}]
[]
[]
[]
[]
[]
[]
[]
[]
[]
[]
[]
[]
[]
[]
[]
[]
[]
[]
[]
[]
[]
[]
[]
[]
[null,null,{"$f":"\"LA = \" & VLOOKUP($D$4,'Data Summary'!$A$7:$C$159,3,0)","v":"LA = England"},null,"% of total funding"]
[null,null,null,null,"2009-10","2010-11","2011-12","2012-13","2013-14","2014-15","2015-16"]
[null,null,"DSG High Needs (4)","LA",null,null,null,{"$f":"VLOOKUP($D$4,Summary_data,'Data Summary'!AB3,FALSE)","v":0.12839675042743456},{"$f":"VLOOKUP($D$4,Summary_data,'Data Summary'!AE3,FALSE)","v":0.13047137288559388},{"$f":"VLOOKUP($D$4,Summary_data,'Data Summary'!AH3,FALSE)","v":0.13376116473487551},{"$f":"VLOOKUP($D$4,Summary_data,'Data Summary'!AK3,FALSE)","v":0.13239528643322937}]
[null,null,null,"England",null,null,null,{"$f":"'Data Summary'!AB7","v":0.12839675042743456},{"$f":"'Data Summary'!AE7","v":0.13047137288559388},{"$f":"'Data Summary'!AH7","v":0.13376116473487551},{"$f":"'Data Summary'!AK7","v":0.13239528643322937}]
[null,null,null,"Statistical Neighbours",null,null,null,{"$f":"Neighbours!AB20","v":"x"},{"$f":"Neighbours!AE20","v":"x"},{"$f":"Neighbours!AH20","v":"x"},{"$f":"Neighbours!AK20","v":"x"}]
[null,null,"S251 SEN budget (5)","LA",{"$f":"VLOOKUP($D$4,Summary_data,'Data Summary'!AN3,FALSE)","v":7.9931475288838566E-2},{"$f":"VLOOKUP($D$4,Summary_data,'Data Summary'!AQ3,FALSE)","v":8.1003751463615353E-2},{"$f":"VLOOKUP($D$4,Summary_data,'Data Summary'!AT3,FALSE)","v":8.7921351141126411E-2},{"$f":"VLOOKUP($D$4,Summary_data,'Data Summary'!AW3,FALSE)","v":0.10218324495572498},{"$f":"VLOOKUP($D$4,Summary_data,'Data Summary'!AZ3,FALSE)","v":0.12157365260633393},{"$f":"VLOOKUP($D$4,Summary_data,'Data Summary'!BC3,FALSE)","v":0.1184265711019655}]
[null,null,null,"England",{"$f":"'Data Summary'!AN7","v":7.9931475288838566E-2},{"$f":"'Data Summary'!AQ7","v":8.1003751463615353E-2},{"$f":"'Data Summary'!AT7","v":8.7921351141126411E-2},{"$f":"'Data Summary'!AW7","v":0.10218324495572498},{"$f":"'Data Summary'!AZ7","v":0.12157365260633393},{"$f":"'Data Summary'!BC7","v":0.1184265711019655}]
[null,null,null,"Statistical Neighbours",{"$f":"Neighbours!AN20","v":"x"},{"$f":"Neighbours!AQ20","v":"x"},{"$f":"Neighbours!AT20","v":"x"},{"$f":"Neighbours!AW20","v":"x"},{"$f":"Neighbours!AZ20","v":"x"},{"$f":"Neighbours!BC20","v":"x"}]
[null,null,"S251 SEN spend (6)","LA",{"$f":"VLOOKUP($D$4,Summary_data,'Data Summary'!BF3,FALSE)","v":0.12718973343072165},{"$f":"VLOOKUP($D$4,Summary_data,'Data Summary'!BI3,FALSE)","v":0.13209037683190658},{"$f":"VLOOKUP($D$4,Summary_data,'Data Summary'!BL3,FALSE)","v":0.14592609673222293},{"$f":"VLOOKUP($D$4,Summary_data,'Data Summary'!BO3,FALSE)","v":0.15432028569487416},{"$f":"VLOOKUP($D$4,Summary_data,'Data Summary'!BR3,FALSE)","v":0.15193638340882781}]
[null,null,null,"England",{"$f":"'Data Summary'!BF7","v":0.12718973343072165},{"$f":"'Data Summary'!BI7","v":0.13209037683190658},{"$f":"'Data Summary'!BL7","v":0.14592609673222293},{"$f":"'Data Summary'!BO7","v":0.15432028569487416},{"$f":"'Data Summary'!BR7","v":0.15193638340882781}]
[null,null,null,"Statistical Neighbours",{"$f":"Neighbours!BF20","v":"x"},{"$f":"Neighbours!BI20","v":"x"},{"$f":"Neighbours!BL20","v":"x"},{"$f":"Neighbours!BO20","v":"x"},{"$f":"Neighbours!BR20","v":"x"}]
[]
[]
[]
[]
[]
[]
[]
[]
[]
[]
[]
[]
[]
[]
[]
[]
[]
[]
[]
[]
[]
[]
[]
[null,null,{"$f":"\"LA = \" & VLOOKUP($D$4,'Data Summary'!$A$7:$C$159,3,0)","v":"LA = England"},null,"Funding per SEN pupil (7)"]
[null,null,null,null,"2009-10","2010-11","2011-12","2012-13","2013-14","2014-15"]
[null,null,"DSG High Needs (4)","LA",null,null,null,{"$f":"VLOOKUP($D$4,Summary_data,'Data Summary'!AC3,FALSE)","v":2924.0222338048743},{"$f":"VLOOKUP($D$4,Summary_data,'Data Summary'!AF3,FALSE)","v":3213.5468918978268},{"$f":"VLOOKUP($D$4,Summary_data,'Data Summary'!AI3,FALSE)","v":3470.499509119501}]
[null,null,null,"England",null,null,null,{"$f":"'Data Summary'!AC7","v":2924.0222338048743},{"$f":"'Data Summary'!AF7","v":3213.5468918978268},{"$f":"'Data Summary'!AI7","v":3470.499509119501}]
[null,null,null,"Statistical Neighbours",null,null,null,{"$f":"Neighbours!AC20","v":"x"},{"$f":"Neighbours!AF20","v":"x"},{"$f":"Neighbours!AI20","v":"x"}]
[null,null,"S251 SEN budget (5)","LA",{"$f":"VLOOKUP($D$4,Summary_data,'Data Summary'!AO3,FALSE)","v":1773.8115414565907},{"$f":"VLOOKUP($D$4,Summary_data,'Data Summary'!AR3,FALSE)","v":1834.7293898906917},{"$f":"VLOOKUP($D$4,Summary_data,'Data Summary'!AU3,FALSE)","v":1910.6963394989054},{"$f":"VLOOKUP($D$4,Summary_data,'Data Summary'!AX3,FALSE)","v":2137.0087371195177},{"$f":"VLOOKUP($D$4,Summary_data,'Data Summary'!BA3,FALSE)","v":3065.5199325767817},{"$f":"VLOOKUP($D$4,Summary_data,'Data Summary'!BD3,FALSE)","v":3142.5174135235602}]
[null,null,null,"England",{"$f":"'Data Summary'!AO7","v":1773.8115414565907},{"$f":"'Data Summary'!AR7","v":1834.7293898906917},{"$f":"'Data Summary'!AU7","v":1910.6963394989054},{"$f":"'Data Summary'!AX7","v":2137.0087371195177},{"$f":"'Data Summary'!BA7","v":3065.5199325767817},{"$f":"'Data Summary'!BD7","v":3142.5174135235602}]
[null,null,null,"Statistical Neighbours",{"$f":"Neighbours!AO20","v":"x"},{"$f":"Neighbours!AR20","v":"x"},{"$f":"Neighbours!AU20","v":"x"},{"$f":"Neighbours!AX20","v":"x"},{"$f":"Neighbours!BA20","v":"x"},{"$f":"Neighbours!BD20","v":"x"}]
[null,null,"S251 SEN spend (6)","LA",{"$f":"VLOOKUP($D$4,Summary_data,'Data Summary'!BG3,FALSE)","v":3107.4087799775684},{"$f":"VLOOKUP($D$4,Summary_data,'Data Summary'!BJ3,FALSE)","v":3205.6092737627432},{"$f":"VLOOKUP($D$4,Summary_data,'Data Summary'!BM3,FALSE)","v":3300.5900377263806},{"$f":"VLOOKUP($D$4,Summary_data,'Data Summary'!BP3,FALSE)","v":3336.8028178071345},{"$f":"VLOOKUP($D$4,Summary_data,'Data Summary'!BS3,FALSE)","v":3011.4320929600608}]
[null,null,null,"England",{"$f":"'Data Summary'!BG7","v":3107.4087799775684},{"$f":"'Data Summary'!BJ7","v":3205.6092737627432},{"$f":"'Data Summary'!BM7","v":3300.5900377263806},{"$f":"'Data Summary'!BP7","v":3336.8028178071345},{"$f":"'Data Summary'!BS7","v":3011.4320929600608}]
[null,null,null,"Statistical Neighbours",{"$f":"Neighbours!BG20","v":"x"},{"$f":"Neighbours!BJ20","v":"x"},{"$f":"Neighbours!BM20","v":"x"},{"$f":"Neighbours!BP20","v":"x"},{"$f":"Neighbours!BS20","v":"x"}]
[]
[]
[null,null,"Attainment"]
[]
[]
[null,null,null,null,null,null,null,null,null,null,null,{"$f":"\"LA = \" & VLOOKUP($D$4,'Data Summary'!$A$7:$C$169,3,0)","v":"LA = England"}]
[]
[null,null,null,null,null,null,null,null,null,null,null,"SEN without statement",null,"2008/09","2009/10","2010/11","2011/12","2012/13"]
[null,null,null,null,null,null,null,null,null,null,null,"LA",null,0.18600000000000003,0.22899999999999998,0.248,0.253,0.26600000000000001]
[null,null,null,null,null,null,null,null,null,null,null,"England",null,{"$f":"IFERROR(Attainment!OR159/100,\"\")","v":0.18600000000000003},{"$f":"IFERROR(Attainment!OE159/100,\"\")","v":0.22899999999999998},{"$f":"IFERROR(Attainment!NR159/100,\"\")","v":0.248},{"$f":"IFERROR(Attainment!NE159/100,\"\")","v":0.253},{"$f":"IFERROR(Attainment!MR159/100,\"\")","v":0.26600000000000001}]
[null,null,null,null,null,null,null,null,null,null,null,"Statistical Neighbours",null,{"$f":"Neighbours!BZ20","v":"x"},{"$f":"Neighbours!CA20","v":"x"},{"$f":"Neighbours!CB20","v":"x"},{"$f":"Neighbours!CC20","v":"x"},{"$f":"Neighbours!CD20","v":"x"}]
[]
[null,null,null,null,null,null,null,null,null,null,null,"SEN with statement",null,"2008/09","2009/10","2010/11","2011/12","2012/13"]
[null,null,null,null,null,null,null,null,null,null,null,"LA",null,6.0999999999999999E-2,7.2999999999999995E-2,8.5000000000000006E-2,8.4000000000000005E-2,9.5000000000000001E-2]
[null,null,null,null,null,null,null,null,null,null,null,"England",null,{"$f":"IFERROR(Attainment!OT159/100,\"\")","v":6.0999999999999999E-2},{"$f":"IFERROR(Attainment!OG159/100,\"\")","v":7.2999999999999995E-2},{"$f":"IFERROR(Attainment!NT159/100,\"\")","v":8.5000000000000006E-2},{"$f":"IFERROR(Attainment!NG159/100,\"\")","v":8.4000000000000005E-2},{"$f":"IFERROR(Attainment!MT159/100,\"\")","v":9.5000000000000001E-2}]
[null,null,null,null,null,null,null,null,null,null,null,"Statistical Neighbours",null,{"$f":"Neighbours!CE20","v":"x"},{"$f":"Neighbours!CF20","v":"x"},{"$f":"Neighbours!CG20","v":"x"},{"$f":"Neighbours!CH20","v":"x"},{"$f":"Neighbours!CI20","v":"x"}]
[]
[]
[]
[]
[]
[null,null,null,null,null,null,null,null,null,"Source: National pupil database"]
[]
[]
[null,null,null,null,null,null,"With Statement",null,null,"Without Statement"]
[null,"% SEN pupils achieving",null,null,null," ","LA","England","Statistical Neighbours","LA","England","Statistical Neighbours"]
[null,"Expected standard at EYFSP (2014)",null,null,null,null,{"$f":"IFERROR(VLOOKUP(E4,Attainment,Attainment!S2,FALSE)/100, \"x\")","v":0.03},{"$f":"Attainment!S159/100","v":0.03},{"$f":"Neighbours!CJ20","v":"x"},{"$f":"IFERROR(VLOOKUP(E4,Attainment,Attainment!O2,FALSE)/100,\"x\")","v":0.19},{"$f":"Attainment!O159/100","v":0.19},{"$f":"Neighbours!CK20","v":"x"}]
[null,"Phonic decoding standard (2014)",null,null,null,null,{"$f":"IFERROR(VLOOKUP(E4,Attainment,Attainment!BI2,FALSE)/100,\"x\")","v":0.17},{"$f":"Attainment!BI159/100","v":0.17},{"$f":"Neighbours!CL20","v":"x"},{"$f":"IFERROR(VLOOKUP(E4,Attainment,Attainment!BG2,FALSE)/100,\"x\")","v":0.4},{"$f":"Attainment!BG159/100","v":0.4},{"$f":"Neighbours!CM20","v":"x"}]
[null,"Level 2 or above in KS1 reading (2014)",null,null,null,null,{"$f":"IFERROR(VLOOKUP($E$4,Attainment,Attainment!DF$2)/100,\"x\")","v":0.25},{"$f":"Attainment!DF$159/100","v":0.25},{"$f":"Neighbours!CN20","v":"x"},{"$f":"IFERROR(VLOOKUP($E$4,Attainment,Attainment!DA$2)/100,\"x\")","v":0.64},{"$f":"Attainment!DA$159/100","v":0.64},{"$f":"Neighbours!CO20","v":"x"}]
[null,"Level 2 or above in KS1 Writing (2014)",null,null,null,null,{"$f":"IFERROR(VLOOKUP($E$4,Attainment,Attainment!DG$2)/100,\"x\")","v":0.19},{"$f":"Attainment!DG$159/100","v":0.19},{"$f":"Neighbours!CP20","v":"x"},{"$f":"IFERROR(VLOOKUP($E$4,Attainment,Attainment!DB$2)/100,\"x\")","v":0.54},{"$f":"Attainment!DB$159/100","v":0.54},{"$f":"Neighbours!CQ20","v":"x"}]
[null,"Level 2 or above in KS1 Maths (2014)",null,null,null,null,{"$f":"IFERROR(VLOOKUP($E$4,Attainment,Attainment!DH$2)/100,\"x\")","v":0.28000000000000003},{"$f":"Attainment!DH$159/100","v":0.28000000000000003},{"$f":"Neighbours!CR20","v":"x"},{"$f":"IFERROR(VLOOKUP($E$4,Attainment,Attainment!DC$2)/100,\"x\")","v":0.73},{"$f":"Attainment!DC$159/100","v":0.73},{"$f":"Neighbours!CS20","v":"x"}]
[null,"Level 2 or above in KS1 Science (2014)",null,null,null,null,{"$f":"IFERROR(VLOOKUP($E$4,Attainment,Attainment!DI$2)/100,\"x\")","v":0.25},{"$f":"Attainment!DI$159/100","v":0.25},{"$f":"Neighbours!CT20","v":"x"},{"$f":"IFERROR(VLOOKUP($E$4,Attainment,Attainment!DD$2)/100,\"x\")","v":0.69},{"$f":"Attainment!DD$159/100","v":0.69},{"$f":"Neighbours!CU20","v":"x"}]
[null,"Level 4 or above in KS2 Grammar, Punctuation & Spelling (2014)",null,null,null,null,{"$f":"IFERROR(VLOOKUP(E4,Attainment,Attainment!JL2,FALSE)/100,\"x\")","v":0.18},{"$f":"Attainment!JL159/100","v":0.18},{"$f":"Neighbours!CV20","v":"x"},{"$f":"IFERROR(VLOOKUP(E4,Attainment,Attainment!JF2,FALSE)/100,\"x\")","v":0.39},{"$f":"Attainment!JF159/100","v":0.39},{"$f":"Neighbours!CW20","v":"x"}]
[null,"Level 4 or above in KS2 Reading, Writing  & Maths (2014)",null,null,null,null,{"$f":"IFERROR(VLOOKUP(E4,Attainment,Attainment!JM2,FALSE)/100,\"x\")","v":0.15},{"$f":"Attainment!JM159/100","v":0.15},{"$f":"Neighbours!CX20","v":"x"},{"$f":"IFERROR(VLOOKUP(E4,Attainment,Attainment!JG2,FALSE)/100,\"x\")","v":0.42},{"$f":"Attainment!JG159/100","v":0.42},{"$f":"Neighbours!CY20","v":"x"}]
[null,"An education or employment destination for KS4 cohort (2011/12)",null,null,null,null,{"$f":"IFERROR(VLOOKUP($E$4,Attainment,Attainment!PK$2),\"\")","v":0.86},{"$f":"Attainment!PK$159","v":0.86},{"$f":"Neighbours!CZ20","v":"x"},{"$f":"IFERROR(VLOOKUP($E$4,Attainment,Attainment!PJ$2),\"\")","v":0.81},{"$f":"Attainment!PJ$159","v":0.81},{"$f":"Neighbours!DA20","v":"x"}]
[]
[]
[null,"Summary of other statistics",null,null,null,null,null,null,"LA","England","Statistical Neighbours"]
[null,"% 16-17 year olds with Learning Difficulties and/or Disabilities in education and training (2014)",null,null,null,null,null,null,{"$f":"VLOOKUP($E$4,Attainment,Attainment!PC$2)/100","v":0.85799999999999998},{"$f":"Attainment!PC$159/100","v":0.85799999999999998},{"$f":"Neighbours!DB20","v":"x"}]
[null,"% of high needs places for post 16 students (2014)",null,null,null,null,null,null,{"$f":"VLOOKUP(D4,Summary_data,'Data Summary'!BT3,FALSE)","v":0.2226645623592575},{"$f":"'Data Summary'!BT7","v":0.2226645623592575},{"$f":"Neighbours!BT20","v":"x"}]
[null,"No of under 16s claiming Disability Living Allowance (Nov13)",null,null,null,null,null,null,{"$f":"VLOOKUP(D4,Summary_data,'Data Summary'!BU3,FALSE)","v":313340},{"$f":"'Data Summary'!BU7","v":313340},{"$f":"Neighbours!BU20","v":"x"}]
[null,"% of births with low birth weight (2013)",null,null,null,null,null,null,{"$f":"VLOOKUP(E4,Other_data,Other!X3,FALSE)/100","v":7.0000000000000007E-2},{"$f":"Other!X161/100","v":7.0000000000000007E-2},{"$f":"Neighbours!DC20","v":"x"}]
[null,"% of under 16s whose day to day activities are limited (Census 11)",null,null,null,null,null,null,{"$f":"VLOOKUP($D$4,Summary_data,'Data Summary'!$BV$3,FALSE)","v":3.7278758236226624E-2},{"$f":"'Data Summary'!$BV$7","v":3.7278758236226624E-2},{"$f":"Neighbours!BV20","v":"x"}]
[null,"% of 16-24yr olds whose day to day activities are limited (Census 11)",null,null,null,null,null,null,{"$f":"VLOOKUP($D$4,Summary_data,'Data Summary'!$BW$3,FALSE)","v":5.1808030997963841E-2},{"$f":"'Data Summary'!$BW$7","v":5.1808030997963841E-2},{"$f":"Neighbours!BW20","v":"x"}]
[null,"% of under 16s with bad health (Census 11)",null,null,null,null,null,null,{"$f":"VLOOKUP($D$4,Summary_data,'Data Summary'!$BX$3,FALSE)","v":6.4255966020791231E-3},{"$f":"'Data Summary'!$BX$7","v":6.4255966020791231E-3},{"$f":"Neighbours!BX20","v":"x"}]
[null,"% of 16-24 year olds with bad health (Census 11)",null,null,null,null,null,null,{"$f":"VLOOKUP($D$4,Summary_data,'Data Summary'!$BY$3,FALSE)","v":1.1098465266654771E-2},{"$f":"'Data Summary'!$BY$7","v":1.1098465266654771E-2},{"$f":"Neighbours!BY20","v":"x"}]
[null,"% Children in need who are disabled (2014)",null,null,null,null,null,null,{"$f":"IFERROR(VLOOKUP(E4,Other_data,Other!KC3,FALSE)/100,\"x\")","v":0.13200000000000001},{"$f":"Other!KC161/100","v":0.13200000000000001},{"$f":"Neighbours!DD20","v":"x"}]
[null,"Rate per 10,000 population of hospital admissions caused by unintentional and deliberate injuries in children aged 0-14 (2012/13)",null,null,null,null,null,null,{"$f":"VLOOKUP(E4,Other_data,Other!HX3,FALSE)","v":103.82918622821001},{"$f":"Other!HX161","v":103.82918622821001},{"$f":"Neighbours!DE$20","v":"x"}]
[null,"Rate per 10,000 population of hospital admissions caused by unintentional and deliberate injuries in young people aged 15-24 (2012/13)",null,null,null,null,null,null,{"$f":"VLOOKUP($E$4,Other_data,Other!$IG$3,FALSE)","v":130.65412326862},{"$f":"Other!$IG$161","v":130.65412326862},{"$f":"Neighbours!DF$20","v":"x"}]
[null,"Rate per 100,000 population of hospital admissions for asthma aged under 19 years (2012/13)",null,null,null,null,null,null,{"$f":"VLOOKUP($E$4,Other_data,Other!$IM$3,FALSE)","v":221.436630187763},{"$f":"Other!$IM$161","v":221.436630187763},{"$f":"Neighbours!DG$20","v":"x"}]
[null,"Rate per 100,000 population of hospital admissions for mental health conditions aged under 19 years (2012/13)",null,null,null,null,null,null,{"$f":"VLOOKUP($E$4,Other_data,Other!$IV$3,FALSE)","v":87.627841667607697},{"$f":"Other!$IV$161","v":87.627841667607697},{"$f":"Neighbours!DH$20","v":"x"}]
[null,"Rate per 100,000 population of hospital admissions as a result of self-harm aged 10-24yrs (2012/13)",null,null,null,null,null,null,{"$f":"VLOOKUP($E$4,Other_data,Other!$IY$3,FALSE)","v":346.27279137021702},{"$f":"Other!$IY$161","v":346.27279137021702},{"$f":"Neighbours!DI$20","v":"x"}]
[null,"Rate per 100,000 population of Epilepsy admissions aged under 19 (2011/12) ",null,null,null,null,null,null,{"$f":"VLOOKUP($E$4,Other_data,Other!$JB$3,FALSE)","v":79.3},{"$f":"Other!$JB$161","v":79.3},{"$f":"Neighbours!DJ$20","v":"x"}]
[null,"Rate per 100,000 population of Admissions for bronchiolitis aged under 2 years (2011/12)",null,null,null,null,null,null,{"$f":"VLOOKUP($E$4,Other_data,Other!$JE$3,FALSE)","v":2066.1999999999998},{"$f":"Other!$JE$161","v":2066.1999999999998},{"$f":"Neighbours!DK$20","v":"x"}]
[null,"Rate per 100,000 population of Respiratory tract infections aged 0-4 (2011/12)",null,null,null,null,null,null,{"$f":"VLOOKUP($E$4,Other_data,Other!$JH$3,FALSE)","v":1100.7},{"$f":"Other!$JH$161","v":1100.7},{"$f":"Neighbours!DL$20","v":"x"}]
[]
[]
[null,"Notes:"]
[null,"For the pie charts above, suppressed data have been treated as zero to avoid presenting no data in some instances"]
[null,"x = data unavailable, or suppressed as based on small number of pupils"]
[null,"(1) Statistical neighbours for each LA are taken from the Children's Services Statistical Neighbour benchmarking tool (see link below).  The data displayed on this dashboard is the average value across the statistical neighbours for each LA."]
[null,null," https://www.gov.uk/government/publications/local-authority-interactive-tool-lait"]
[null,"(2) Pupils at School Action Plus and those pupils with a statement of SEN provided information on their primary need and, if appropriate, their secondary need. Information on primary need only is given here."]
[null,"(3) The source of the data is the January School Census. Total pupils includes those in maintained and direct grant nursery schools, maintained primary and secondary schools, city technology colleges, university technology colleges, studio schools, primary and secondary academies including free schools, special schools, special academies including free schools, pupil referral units, alternative provision academies including free schools and independent schools. Pupils includes both sole and dual registrations. Local Authority is based on where pupil attends school."]
[]
[]
[null,"(4) Mainstream settings includes non-maintained early years settings in the private and voluntary sector, maintained mainstream schools (including foundation schools) and academies (including free schools). Special settings includes maintained special schools (including foundation schools), non-maintained special schools, independent special schools and other independent schools and special academies (including free schools). SEN Units and RP in mainstream settings includes resourced provision in maintained mainstream schools and SEN units in maintained mainstream schools. Other includes hospital schools (including foundation schools) and pupil referral units, alternative provision academies (including free schools), educated other than in school and awaiting provision."]
[]
[]
[]
[null,"(5) Dedicated Schools Grant High Needs Block funding before any deductions"]
[null,"(6) The SEN budget lines for 2014-15 are top up funding(1.2.1, 1.2.2, 1.2.3, 1.2.4) , PFI/BSF costs at special schools(1.2.10), Direct payments (SEN and disability)(1.2.11), SEN support services (1.2.5), Support for inclusion (1.2.8), Special schools and PRUs in financial difficulty (1.2.9), SEN transport (1.4.11), Individual Schools Budget for special schools (1.01), Contingencies for special schools (1.1.1), Capital expenditure from revenue for special schools (1.4.6) and Prudential borrowing costs for special schools (1.4.7). Budget lines from previous years will vary but where possible other suitable lines were selected. Total Budget for the denominator is Total Schools Budget (before Academy recoupment) (1.6.1)."]
[]
[]
[null,"(7) The SEN expenditure lines included are SEN funding (not for special schools) (38), spending by schools for special schools brought forward (67), spending by LA within schools budget for special schools (72) and independent/Non maintained schools fees (74).  Total Budget for the denominator is Total Schools Budget (including CERA) (81).  Please note both the SEN budget and spend are based on data provided by Local Authorities.  The lines selected for both are not comparable."]
[]
[null,"(8) Funding per SEN pupil is based on total SEN pupils with and without statements from the School Census as a denominator for comparison and is not intended to be the total funding that is allocated to each pupil. "]
[null,"(9) National and regional totals have been rounded according to the National Statistics releases (see source data for details).  There may be discrepancies between totals and the sum of constituent parts."]

{"sheet":"Data list","index":1,"n_rows":46,"n_cols":3,"rows_kept":46,"cut":false,"hidden":false,"merged":[[44,0,45,0],[4,0,6,0],[32,0,35,0],[8,2,11,2],[37,1,40,1],[8,0,9,0],[10,0,11,0],[23,1,24,1],[27,1,28,1],[16,1,17,1]]}
["List of Local Authority data in this database with source of data"]
["Please refer to source data for full data descriptions"]
[]
["Funding","Source","Notes"]
["DSG_funding","https://www.gov.uk/government/publications/dedicated-schools-grant-dsg-2015-to-2016","Dedicated Schools Grant funding is before any deductions"]
[null,"https://www.gov.uk/government/publications/dedicated-schools-grant-2014-to-2015","Notional 12-13 data is taken form 13-14 spreadsheets."]
[null,"https://www.gov.uk/government/publications/dedicated-schools-grant-2013-to-2014"]
["Schools_Block_Funding_2014_15","https://www.gov.uk/government/publications/schools-block-funding-formulae-2014-to-2015","Data is based on returns from LAs with formula funding."]
["Section251_Budgets","https://www.gov.uk/government/collections/section-251-materials","The Section 251 data is based on returns form LAs and are the primary means of informing schools and the public in general about local authority funding and expenditure plans.\n"]
[null,"http://www.education.gov.uk/schools/adminandfinance/financialmanagement/schoolsrevenuefunding/section251/archive/b0068383/section-251-data-archive/outturn-data---detailed-level-2008-09-onwards"]
["Section251_Outturn","https://www.gov.uk/government/collections/section-251-materials"]
[null,"http://www.education.gov.uk/schools/adminandfinance/financialmanagement/schoolsrevenuefunding/section251/archive/b0068383/section-251-data-archive/outturn-data---detailed-level-2008-09-onwards"]
["HighNeedsPlaces_AY1415","https://www.gov.uk/government/publications/post-16-high-needs-allocated-place-numbers","Data is based on returns from LAs"]
[]
[]
["Pupils","Source"]
["Pupils with SEN with and without statements from January Census data","https://www.gov.uk/government/collections/statistics-special-educational-needs-sen"]
["Jan 2014 Census: Primary type of need for pupils"]
["Children with a statement maintained by the LA ","https://www.gov.uk/government/collections/statistics-special-educational-needs-sen"]
[]
[]
["Attainment","Source"]
["Achievement in early years foundation stage profile (EYFSP) teacher assessments","https://www.gov.uk/government/statistics/eyfsp-attainment-by-pupil-characteristics-2013-to-2014"]
["Year 1 pupils meeting the required standard of phonic decoding","https://www.gov.uk/government/statistics/phonics-screening-check-and-key-stage-1-assessments-england-2014"]
["Pupils achieving level 2 or above in key stage 1 teacher assessments"]
["Achievements at level 4 or above in key stage 2","https://www.gov.uk/government/statistics/national-curriculum-assessments-at-key-stage-2-2014-revised"]
["Achievements at GCSE and equivalent for pupils at the end of key stage 4","https://www.gov.uk/government/publications/gcse-and-equivalent-attainment-by-pupil-characteristics-2012-to-2013"]
["16-17 year olds in education and training by Learning Difficulties and/or Disabilities","https://www.gov.uk/government/collections/statistics-special-educational-needs-sen"]
["KS4 going to, or remaining in, an education or employment destination"]
[]
["Other","Source"]
["DLA_caseload","http://tabulation-tool.dwp.gov.uk/100pc/dla/tabtool_dla.html"]
["Low_Birthweight","http://www.ons.gov.uk/ons/rel/vsob1/births-by-area-of-usual-residence-of-mother--england-and-wales/2013/index.html"]
[null,"http://www.ons.gov.uk/ons/publications/re-reference-tables.html?edition=tcm%3A77-320857"]
[null,"http://www.ons.gov.uk/ons/publications/re-reference-tables.html?edition=tcm%3A77-272510"]
[null,"http://www.ons.gov.uk/ons/publications/re-reference-tables.html?edition=tcm%3A77-222793"]
["Population Census 2011 health data ","www.nomisweb.co.uk"]
["Hospital admissions caused by unintentional and deliberate injuries in children","http://fingertips.phe.org.uk/cyphof"]
["Hospital admissions for asthma (Under 19 years)"]
["Hospital admissions for mental health conditions (Under 19 years)"]
["Hospital admissions as a result of self-harm (10 - 24 yrs)"]
["Epilepsy admissions (aged under 19)","http://atlas.chimat.org.uk/IAS/metadata/view/indicatorinstance?pid=428&id=16550&norefer=true"]
["Admissions for bronchiolitis aged under 2 years ","http://atlas.chimat.org.uk/IAS/metadata/view/indicatorinstance?pid=3072&id=16328&norefer=true"]
["Respiratory tract infections - aged 0-4 2011/12","http://atlas.chimat.org.uk/IAS/metadata/view/indicatorinstance?pid=1038&id=16387&norefer=true"]
["Children in need with a disability","https://www.gov.uk/government/statistics/characteristics-of-children-in-need-in-england-2012-to-2013"]
[null,"https://www.gov.uk/government/statistics/characteristics-of-children-in-need-2013-to-2014"]

{"sheet":"Funding","index":2,"n_rows":170,"n_cols":222,"rows_kept":170,"cut":false,"hidden":false,"merged":[[4,197,4,204],[4,205,4,212],[4,2,4,3],[4,214,4,221],[4,42,4,63],[4,64,4,81],[4,82,4,103],[4,104,4,131],[4,132,4,157],[4,181,4,188],[4,189,4,196],[4,159,4,180],[3,15,3,16],[4,11,4,16],[4,4,4,5],[4,6,4,7],[4,18,4,41],[4,8,4,9]]}
["Local Authority funding data (Please refer to source data for full data descriptions)"]
[1,2,3,4,5,6,7,8,9,10,11,12,13,14,15,16,17,18,19,20,21,22,23,24,25,26,27,28,29,30,31,32,33,34,35,36,37,38,39,40,41,42,43,44,45,46,47,48,49,50,51,52,53,54,55,56,57,58,59,60,61,62,63,64,65,66,67,68,69,70,71,72,73,74,75,76,77,78,79,80,81,82,83,84,85,86,87,88,89,90,91,92,93,94,95,96,97,98,99,100,101,102,103,104,105,106,107,108,109,110,111,112,113,114,115,116,117,118,119,120,121,122,123,124,125,126,127,128,129,130,131,132,133,134,135,136,137,138,139,140,141,142,143,144,145,146,147,148,149,150,151,152,153,154,155,156,157,158,159,160,161,162,163,164,165,166,167,168,169,170,171,172,173,174,175,176,177,178,179,180,181,182,183,184,185,186,187,188,189,190,191,192,193,194,195,196,197,198,199,200,201,202,203,204,205,206,207,208,209,210,211,212,213,214,215,216,217,218,219,220,221,222]
[]
[]
[null,null,"2012-13 DSG",null,"2013-14 DSG",null,"2014-15 DSG",null,"2015-16 DSG",null,null,"Summary of Schools Block Funding 2014-15 for SEN",null,null,null,null,null,null,"Section 251 budget 14-15 relating to SEN",null,null,null,null,null,null,null,null,null,null,null,null,null,null,null,null,null,null,null,null,null,null,null,"Section 251 budget 13-14 relating to SEN",null,null,null,null,null,null,null,null,null,null,null,null,null,null,null,null,null,null,null,null,null,"Section 251 budget 12-13 relating to SEN",null,null,null,null,null,null,null,null,null,null,null,null,null,null,null,null,null,"Section 251 budget 11-12 relating to SEN",null,null,null,null,null,null,null,null,null,null,null,null,null,null,null,null,null,null,null,null,null,"Section 251 budget 10-11 relating to SEN",null,null,null,null,null,null,null,null,null,null,null,null,null,null,null,null,null,null,null,null,null,null,null,null,null,null,null,"Section 251 budget 09-10 relating to SEN",null,null,null,null,null,null,null,null,null,null,null,null,null,null,null,null,null,null,null,null,null,null,null,null,null,null,"Section 251 outturn 1314 relating to SEN",null,null,null,null,null,null,null,null,null,null,null,null,null,null,null,null,null,null,null,null,null,"Section 251 outturn 1213 relating to SEN",null,null,null,null,null,null,null,"Section 251 outturn 1112 relating to SEN",null,null,null,null,null,null,null,"Section 251 outturn 1011",null,null,null,null,null,null,null,"Section 251 outturn 0910 relating to SEN",null,null,null,null,null,null,null,null,"High Needs place allocations for AY 14/15 for institutions funded by EFA"]
["LA No","LA Name","Notional High Needs Block","Notional Total DSG","High Needs Block","Total DSG","High Needs Block","Total DSG","High Needs Block","Total DSG",null,"Total Funding (excl. MFG)","Total Notional SEN (excl. MFG)","Notional Sen Total - proportion of funding","MFG Net total funding","High Needs additional funding","Schools Block Total funding",null,"Total SEN budget","1.2.1 Top up funding - maintained providers","1.2.10 PFI/ BSF costs at special schools and AP/ PRUs","1.2.11 Direct payments (SEN and disability)","1.2.2 Top-up funding – academies, free schools and colleges","1.2.3 Top-up and other funding – non-maintained and independent providers","1.2.4 Additional high needs targeted funding for mainstream schools and academies","1.2.5 SEN support services","1.2.8 Support for inclusion  ","1.2.9 Special schools and PRUs in financial difficulty","1.4.11 SEN transport","1.0.1 Individual Schools Budget (before Academy recoupment) (Special schools only)","1.1.1 Contingencies  (Special schools only)","1.4.6 Capital expenditure from revenue (CERA)  (Special schools only)","1.4.7 Prudential borrowing costs  (Special schools only)","1.6.1 TOTAL SCHOOLS BUDGET (before Academy recoupment)","2.0.1 Therapies and other health related services","2.1.1 Educational psychology service","2.1.2 SEN administration, assessment and coordination and monitoring","2.1.3 Parent partnership, guidance and information","2.1.4 Home to school transport: SEN transport expenditure (0 - 25)","SEN Places Apr to Aug","SEN Places Sep to Mar","SEN Funding","Total SEN budget","1.2.1 Top up funding - maintained providers","1.2.10 Direct payments (SEN and disability)","1.2.2 Top up funding - Academies and Free Schools","1.2.3 Top up funding - independent providers","1.2.5 SEN support services","1.2.6 Support for inclusion","1.2.8 Special schools and PRUs in financial difficulty","1.2.9 PFI and BSF costs at special schools","1.4.11 SEN transport","1.0.1 Individual Schools Budget (before Academy recoupment) (Special schools only)","1.1.1 Contingencies  (Special schools only)","1.4.6 Capital expenditure from revenue (CERA)  (Special schools only)","1.4.7 Prudential borrowing costs  (Special schools only)","1.6.1 TOTAL SCHOOLS BUDGET (before Academy recoupment)","2.0.1 Therapies and other health related services","2.1.1 Educational psychology service","2.1.2 SEN administration, assessment and coordination and monitoring","2.1.3 Parent partnership, guidance and information","2.1.4 Home to school transport: SEN transport expenditure(0 - 25)","Places","Funding","Total SEN budget","1.2.1  Provision for pupils with SEN (including assigned resources)","1.2.2  SEN support services","1.2.3  Support for inclusion","1.2.4  Fees for pupils with SEN at independent special schools & abroad","1.2.5  SEN transport","1.0.1  Individual Schools Budget (Special schools only)","1.0.4  Threshold and Performance Pay (Devolved)  (Special schools only)","1.1.1  Support for schools in financial difficulty  (Special schools only)","1.1.2  Contingencies  (Special schools only)","1.8.1  Capital Expenditure from Revenue (Special schools only)","1.8.2  Prudential borrowing costs  (Special schools only)","1.9.1 Total Schools budget","2.0.1  Educational psychology service","2.0.2  SEN administration, assessment and coordination and monitoring","2.0.3  Therapies and other health related services","2.0.4  Parent partnership, guidance and information","2.0.7  Home to school transport: SEN transport expenditure(5 - 25)","Total SEN budget","1.2.1  Provision for pupils with SEN (including assigned resources)","1.2.2  SEN support services","1.2.3  Support for inclusion","1.2.4  Fees for pupils with SEN at independent special schools & abroad","1.2.5  SEN transport","1.0.1  Individual Schools Budget (Special schools only)","1.0.4  Threshold and Performance Pay (Devolved)  (Special schools only)","1.1.1  Support for schools in financial difficulty  (Special schools only)","1.1.2  School specific contingencies  (Special schools only)","1.1.3  Early Years contingency  (Special schools only)","1.8.1  Capital Expenditure from Revenue (CERA) (Special schools only)","1.8.2  Prudential borrowing costs  (Special schools only)","1.9.1  TOTAL SCHOOLS BUDGET","2.0.1  Educational psychology service","2.0.2  SEN administration, assessment and coordination","2.0.3  Therapies and other health related services","2.0.4  Parent partnership, guidance and information","2.0.5  Monitoring of SEN provision","2.1.3  Home to school transport: SEN transport expenditure","2.1.5  Home to post16 provision transport: SEN/ LLDD transport expenditure (aged 16-18)","2.1.6  Home to post16 provision transport: SEN/ LLDD transport expenditure (aged 19-25)","Total SEN budget","1.2.1 Provision for pupils with SEN (including assigned resources)","1.2.2 Provision for pupils with SEN, provision not included in line 1.2.1","1.2.3 Support for inclusion","1.2.4 Fees for pupils at independent special schools & abroad","1.2.5 SEN transport","1.0.1 Individual Schools Budget (Special schools only)","1.0.2 School Standards Grant - Maintained Schools (Special schools only)","1.0.3 School Standards Grant - Pupil Referral Units (Special schools only)","1.0.4 School Standards Grant (Personalisation) - Maintained Schools (Special schools only)","1.0.5 School Standards Grant (Personalisation) - Pupil Referral Units (Special schools only)","1.0.6 School Development Grant (Special schools only)","1.0.7 Other Standards Fund Allocation - Devolved (Special schools only)","1.0.8 Threshold and Performance Pay (Devolved) (Special schools only)","1.1.1 Support for schools in financial difficulty (Special schools only)","1.1.2 School-specific contingencies (Special schools only)","1.1.3 Early Years contingency (Special schools only)","1.7.1 Capital Expenditure from Revenue (CERA)(Special schools only)","1.7.2 Prudential borrowing costs (Special schools only)","1.8.1 TOTAL SCHOOLS BUDGET","2.0.1 Educational Psychology Service","2.0.2 SEN administration, assessment and co-ordination","2.0.3 Therapies and other health related services","2.0.4 Parent partnership, guidance and information","2.0.5 Monitoring of SEN provision","2.1.3 Home to school transport: SEN transport expenditure","2.1.5 Home to post-16 provision transportt: SEN/ LLDD transport expenditure (aged 16-18)","2.1.6 Home to post-16 provision transport: SEN/ LLDD transport expenditure (aged 19-25)","Total SEN budget","1.2.1 Provision for pupils with SEN (including assigned resources)","1.2.2 Provision for pupils with SEN  provision not included in line 1.2.1","1.2.3 Support for inclusion","1.2.4 Fees for pupils at independent special schools & abroad","1.2.5 SEN transport","1.0.1 Individual Schools Budget (Special schools only)","1.0.2 School Standards Grant - Maintained Schools  (Special schools only)","1.0.3 School Standards Grant - Pupil Referral Units  (Special schools only)","1.0.4 School Standards Grant (Personalisation) - Maintained Schools  (Special schools only)","1.0.5 School Standards Grant (Personalisation) - Pupil Referral Units  (Special schools only)","1.0.6 School Development Grant  (Special schools only)","1.0.7 Other Standards Fund Allocation - Devolved  (Special schools only)","1.0.8 Threshold and Performance Pay (Devolved)  (Special schools only)","1.1.1 Support for schools in financial difficulty  (Special schools only)","1.1.2 School-specific contingencies  (Special schools only)","1.7.1 Capital Expenditure from Revenue (CERA) (Special schools only)","1.7.2 Prudential borrowing costs  (Special schools only)","1.8.1 TOTAL SCHOOLS BUDGET","2.0.1 Educational Psychology Service","2.0.2 SEN administration assessment and co-ordination","2.0.3 Therapies and other health related services","2.0.4 Parent partnership guidance and informationwhere","2.0.5 Monitoring of SEN provision","2.1.3 Home to school transport: SEN transport expenditure","2.1.5 Home to college transport: SEN transport expenditure",null,"Total SEN spend","1.2.1 Top up funding - maintained providers ","1.2.10 Direct payments (SEN and disability) ","1.2.2 Top-up funding – academies, free schools and colleges","1.2.3 Top-up and other funding – non-maintained and independent providers","1.2.5 SEN support services  ","1.2.6 Support for inclusion","1.2.8 Special schools and PRUs in financial difficulty   ","1.2.9 PFI and BSF costs at special schools   ","1.4.11 SEN transport","1.0.1 Individual Schools Spend (Special/AP spend only)","1.1.1 Contingencies (Special/AP spend only)","1.4.6 Capital expenditure from revenue (CERA) (Special/AP spend only)","1.4.7 Prudential borrowing costs (Special/AP spend only)","1.6.1 TOTAL SCHOOLS EXPENDITURE","2.0.1 Therapies and other health related services ","2.1.1 Educational psychology service","2.1.2 SEN administration, assessment and coordination and monitoring","2.1.3 Parent partnership, guidance and information","2.1.4 Home to school transport (pre 16): SEN transport expenditure","2.1.6 Home to post-16 provision: SEN/ LLDD transport expenditure (aged 16-18)","2.1.7 Home to post-16 provision: SEN/ LLDD transport expenditure (aged 19-25)","Total SEN spend","38 SEN funding (Not for special schools)","Spending by schools (brought forward): 67 Special Schools","Spending by LA within schools budget 72 Special Schools","74 Independent/Non-Maintained schools fees","81 TOTAL SCHOOLS BUDGET (including CERA)  (line 68 + line 80 + line 57 col (f))","89 Home to school transport: SEN transport expenditure (0-25)","102 TOTAL EDUCATION SPENDING (including CERA) (line 81 + line 100)","Total SEN spend","38 SEN funding (Not for special schools)","Spending by schools (brought forward): 66 Special Schools","Spending by LA within schools budget 71 Special Schools","73 Independent/Non-Maintained schools fees","80 TOTAL SCHOOLS BUDGET (including CERA)  (line 67 + line 79 + line 56 col (f))","89 Home to school transport: SEN transport expenditure (0-25)","101 TOTAL EDUCATION SPENDING (including CERA) (line 80 + line 99)","Total SEN spend","38 SEN funding (Not for special schools)","Spending by schools (brought forward): 67 Special Schools","Spending by LA within schools budget 72 Special Schools","74 Independent/Non-Maintained schools fees","81 TOTAL SCHOOLS BUDGET (including CERA)  (line 68 + line 80 + line 57 col (f))","89 Home to school transport: SEN transport expenditure (0-25)","105 TOTAL EDUCATION SPENDING (including CERA) (line 81 + line 103)","Total SEN spend","38 SEN funding (Not for special schools)","Spending by schools (brought forward): 67 Special Schools","Spending by LA within schools budget 72 Special Schools","74 Independent/Non-Maintained schools fees","81 TOTAL SCHOOLS BUDGET (including CERA) (line 68 + line 80 + line 57 col(f))","89 Home to school transport: SEN transport expenditure (0-25)","109 TOTAL EDUCATION SPENDING (including CERA) (line 81 + line 108) ",null,"Pre-16 SEN Units in mainstream schools","Pre-16 Resourced Provision in mainstream schools","Pre-16 Alternative Provision","Pre-16 SEN Places in Special Schools and other institutions","Post-16 - Schools - 16-18","Post-16 Further education & other providers 16-18"," Post-16 Further education & other providers 19-25","Total"]
[201,"City of London",142000,2328858.1174546517,330640.55486959842,2478151.8582095075,315084.10520701128,2471453.1751395548,319837.74348729034,2444000,null,1614378,151975,{"$f":"M7/L7","v":9.4138423591005327E-2},0,0,1614378,null,{"$f":"SUM(T7:AG7)","v":272000},34000,0,0,4000,204000,0,30000,0,0,0,0,null,0,0,2393378,0,22000,0,0,13000,0,0,0,{"$f":"SUM(AR7:BD7)","v":353195},164195,0,2000,110000,22000,0,0,0,55000,0,null,0,0,2431000,0,22000,0,0,12000,0,0,{"$f":"SUM(BN7:BX7)","v":142000},78000,0,0,64000,0,0,0,0,0,0,0,2409000,18000,259600,8700,4300,12000,{"$f":"SUM(CF7:CQ7)","v":142000},78000,0,0,64000,0,0,0,0,0,null,0,0,2464069,18000,8900,8300,4100,8900,12000,8000,0,{"$f":"SUM(DB7:DS7)","v":144000},80000,0,0,64000,0,0,0,0,0,0,0,0,0,0,0,0,0,0,2522735,18000,8500,7900,3900,8500,12000,8000,0,{"$f":"SUM(ED7:ET7)","v":193989},104000,0,0,89989,0,0,0,0,0,0,0,0,0,0,0,0,0,2310755,18000,8100,7500,3700,8100,10000,8000,null,{"$f":"SUM(FE7:FQ7)","v":376948},243455,0,0,96207,37286,0,0,0,0,0,null,0,0,2394928,0,19012,31500,0,36593,3310,892,{"$f":"SUM(GA7:GD7)","v":106831.69},48632.69,0,0,58199,2617724.65,24296,4521383.6500000004,{"$f":"SUM(GI7:GL7)","v":99213},99213,0,0,0,2289247.15,31624,3679891.15,{"$f":"SUM(GQ7:GT7)","v":39666},39666,0,0,0,2283245,14641,3378872,{"$f":"SUM(GY7:HB7)","v":206974},48642,0,67598,90734,2574415,7966,3874832,null,0,0,0,0,3,2,2,7]
[202,"Camden",31252835.823313288,155234019.59999999,31815517.628603231,161228817.65007281,32279852.543096758,160130558.3158488,32227440.696941912,161530000,null,108369672,20799851,0.19193424337392107,833614,100000,109203285,null,{"$f":"SUM(T8:AG8)","v":27746074},15355436,0,0,1258239,5353201,0,1457819,1179681,0,0,3115026,null,26672,0,177183092,0,309030,584973,111941,3055758,297,262,2970000,{"$f":"SUM(AR8:BD8)","v":32802051},16705303,0,127304,7047122,943838,1353484,0,2925000,0,3700000,null,0,0,185154050.90000001,0,375567,614772,110738,3030077,565,5495466,{"$f":"SUM(BN8:BX8)","v":19180129.5},2647106,0,448415,5797671,0,10286937.5,0,0,0,0,0,182083289.03999999,533342.37,524419.05000000005,0,95736.3,3744223.1,{"$f":"SUM(CF8:CQ8)","v":21496188},3166957,0,621333,7973720,0,9699595,0,0,10797,null,23786,0,183391353,223354,453252,0,106728,112644,4560583,0,0,{"$f":"SUM(DB8:DS8)","v":20297846},3625478,0,855323,6901713,0,8254412,252617,0,34841,0,277317,56915,0,0,13235,0,22516,3479,189147424,180096,487861,0,97162,91212,4285953,0,0,{"$f":"SUM(ED8:ET8)","v":18390054.399999999},2649724.21,657601.37,826618.62,5352650.7699999996,0,7990659,233159,0,33248,0,540210,73403.460000000006,0,0,10751.72,22028.25,0,178797884.40000001,214568.63,564021.67000000004,0,91237.99,74099.81,3585242.77,0,null,{"$f":"SUM(FE8:FQ8)","v":30649343.810000002},19960275.550000001,0,117815.01,4909295.41,834960,1100383,0,0,0,3700000,null,26614.84,0,175845458.25999999,0,506343.97,753621.66,115875.69,2608760.48,372793,13625.33,{"$f":"SUM(GA8:GD8)","v":33930983.120000005},16553006.560000001,10392581.560000001,367023,6618372,199125374.44999999,2736598,212036323.44999999,{"$f":"SUM(GI8:GL8)","v":34266296.399999999},16627339.35,10338151.050000001,446213,6854593,196235123.59,2768829,212974814.59,{"$f":"SUM(GQ8:GT8)","v":36518071},17590029,9697515,1775200,7455327,195022029,3155433,221862265,{"$f":"SUM(GY8:HB8)","v":33557824.932250001},15739350,9256804,1562386.09027,6999284.84198,194851439.65700001,3528165.2185300002,226449889.48300999,null,0,84,85,315,49,20,33,586]
[203,"Greenwich",35464972.510000005,228648611.40000001,36906793.626927748,238307217.8491956,37965527.2939355,245180374.85034508,38332528.506190971,256034000,null,171551975,16220434,9.4551135304621239E-2,1589178,0,173141153,null,32074635,12490919,0,0,5893236,5376540,0,4731355,768435,0,344150,2470000,null,0,0,251387601,0,743740,462373,112726,3281160,242,249,2470000,33313133,13328912,0,6037897,4635922,4523706,703115,0,0,344150,3739431,null,0,0,257582316,0,732880,434992,193587,3271360,399.25,3739431,23180267.57,1760971.77,3549825,706933,3319370,344150,13481763.800000001,0,0,17254,0,0,249915497.36000001,723360,441200,0,224757,3303100,22782016,918520,2871795,1439903,3719370,0,13649518,0,0,182910,null,0,0,252866217,978620,463600,0,96870,115900,2887223,0,0,21170134.121160001,2633360,876200,1013435,3229370,0,12069793.33382,169685.78734000001,0,22450,0,369963,189428,370355,0,169150,0,56944,0,248855420.18316001,1090710,459326,0,65618,182916,3208290,0,0,18638416.840000004,2062820,867380,0,2960340,0,11547690.810000001,170681.03,32060,22720,1772,373529,138641,366061,0,38558,56164,0,236418955.40000001,1128970,467586,0,133698,192946,3067740,0,null,29899207,15852832,0,5482188,2772201,4715326,654125,0,0,344150,78385,null,0,0,235502848,0,848796,383428,180696,2995833,269488,0,32910219.41,18104261,10602662.41,1365811,2837485,259135567.19999999,3313100,274338834.19999999,42180190.049999997,23789688,14410364.050000001,1221125,2759013,255037657.69,3307640,272861194.69,37010048,19074318,13996984,932674,3006072,262723299,3354493,288144540,35894381,17822242,13923316,857503,3291320,252284323.62,3204471,283952980.62,null,20,204,122,399,155,14,53,967]
[204,"Hackney",31389691.900000002,204521202.24666667,35207205.92328801,217994200.8662484,36092656.211567909,226410659.2072694,36394709.661972865,256904999.99999997,null,157016704,36495571,0.23243113675345012,4877,0,157021581,null,35456210,16050030,388950,0,3355820,7999510,360900,3202570,326740,471690,0,3300000,null,0,0,231388683,0,471570,442040,127720,3230770,330,330,3300000,34481890,15618290,0,2387500,8821640,180680,1457150,477000,356850,0,5173300,null,9480,0,220884303,0,505890,466700,184930,3228070,568.08000000000004,12258964,19615174,2958320,185070,1203370,6639881,0,8161193,310000,0,56750,100590,0,204834301.78,543570,457000,0,113710,3285520,14529832,2433553,0,776969,3803003,0,7331901,0,0,171450,null,12956,0,205806000,539456,340093,0,106963,138764,2891132,118053,0,14355236.197069999,2605644,0,1165788,3264281,0,6552807.1970699998,158240,0,21284,0,118816,192334,112243,0,136526,0,27273,0,202334045.74680999,844419,369265,136198,121838,150667,3385321,140066,0,12533435.23,2144912.6,0,716737.95,2806014.87,0,6203278.4400000004,154913.60000000001,0,20848,0,103141.8,83907,173055,0,92626,33999.97,0,192646388.80000001,966390.03,559083.26,194391.43,144128.42000000001,398182.41,3720557.01,163726.54,null,36812470,15816540,0,2493510,8660400,3030510,434810,380040,322880,0,5673780,null,0,0,211865940,0,402710,412230,126910,3048430,20280,0,32251271,15441129,8396582,1366140,7047420,217056771.75999999,3288330,230733291.75999999,30169327.699999999,15459523.140000001,7677324.5599999996,1331990,5700490,213955354.03999999,2905980,226090914.03999999,28672371,14747987,7963889,955839,5004656,213857012,3203940,233478732,26785258.588239998,14770630,7696237,323595.91965,3994795.6685899999,213879434.19169,3998818.44037,246475356.19137999,null,0,83,255,317,53,60,40,808]
[205,"Hammersmith and Fulham",17136743.300000001,114042492,17867333.946658164,120929593.19717015,18463204.057487953,119086669.55316193,18622126.940973137,131775000,null,81761987,9459786,0.1156990717458958,508063,0,82270050,null,18167538,8839093,0,0,748460,1943909,0,681000,1541556,0,0,4270000,null,143520,0,119431461,814800,652400,0,0,1758600,201,216,2085000,45345253,33165127,0,2255840,1131986,681000,1657300,0,0,0,6454000,null,0,0,147882038,1607400,0,0,0,1937900,80478,3554000,12871561,484148,182692,179996,4078924,0,7945801,0,0,0,0,0,118584826,488880,623025,119993,30820,1653700,12306232,157456,183202,232933,4231863,0,6946066,0,0,102850,null,451862,0,124540608,465600,410000,116500,30820,213025,1653700,0,0,11886388,87023,0,235325,4346010,0,6245720,160211,0,21284,0,202955,33145,0,0,102853,0,451862,0,131465399.39376,577371,409056,36295,31014,213029,1800000,0,0,11438227,84570,0,228494,4269038,0,6307192,192217,0,26060,0,210333,49078,0,0,63016,3229,5000,117411538,576548,397535,35263,46090,208981,2353617,0,null,{"$f":"SUM(FE11:FQ11)","v":20668017},2723580,0,0,2302915,1400999,1109303,0,0,0,12931418,null,199802,0,100255423,702835,265240,159600,0,1564510,0,0,22516638.93,6598053.1799999997,9025621.75,4031924,2861040,124508140.25,1601105,137293590.25,19019357.810000002,6443571.3300000001,8172137.4800000004,1722252,2681397,133319859.14,1596907,147039844.13999999,18589855,6076577,7560277,1814073,3138928,148843334,1638530,161703206,19265578,5621316,7800497,1902948,3940817,126461327.34,2120572,143497786.34,null,102,0,196,392,43,26,16,775]
[206,"Islington",23470301.809999999,158171557.32999998,25049512.762993306,163981576.07491133,25207096.985953592,164228046.99881551,25581798.739196222,170157000,null,114098117,24324453,0.21318890827970458,42009,100000,114140126,null,22721354,11811197,50000,0,551674,3529934,300000,533513,2048831,0,429539,3466666,null,0,0,169256146,0,876580,256385,0,2449218,340,350,3466667,23439009,11796205,0,850668,3362405,433841,2141706,244000,50000,428933,4131251,null,0,0,169801928,0,898213,309590,0,0,432,4164062,15629873.359999999,3158770.01,0,1028414.88,3065631,400000,7965940.5099999998,0,0,11116.96,0,0,164496596.31,763768.78,279772.84000000003,0,30000,1997450.9,14151806.780000001,1699359,0,998109,3065631,14933,7895711.7800000003,0,0,478063,null,0,0,164562686.72999999,895215,281462,29488,102670,82968,1946148,0,0,13523048,1728688,0,667558,2665631,14933,7539714,127152,0,18507,0,145059,117564,0,14256,483986,0,0,0,155641951.31,1259891,395301,64027,101159,140642,1956261,0,0,12801757.76,2192976.9700000002,0,305085.96999999997,2568947,0,7214585.6799999997,124246,0,15636,0,109364,112947.02,0,0,157969.12,0,0,154389157.19999999,1140767.49,510679.12,43599.03,95062.03,141265.62,2095215.37,0,null,21063683,12004584,0,280775,3848569,376513,0,0,50000,672575,3830667,null,0,0,158045072,0,918985,331786,0,2694000,90000,172287,27930502.740000002,12278825.529999999,10404255.210000001,2289145,2958277,180441626.84999999,2463182,193272104.84999999,26388088.890000001,11320215.029999999,9781417.8599999994,2547356,2739100,176521454.59,2194918,191196826.59,25525130.68,11475017.5,9465230.1799999997,1845376,2739507,174968819.87,2052346,198506584.87,{"$f":"SUM(GY12:HB12)","v":24580664},10509053,9255587,1835697,2980327,176797848.03,1913748,210692333.03,null,84,15,218,304,71,27,12,731]
[207,"Kensington and Chelsea",16778840.060000002,79494874.61999999,16364174.867626034,83294694.7823302,17096012.40112102,82729634.779439822,17340888.647810116,89598000,null,56115386,3982791,7.0975026350170695E-2,60888,864000,56176274,null,13963311,7054480,0,0,261480,4445060,690260,151650,414400,0,0,945981,null,0,0,90120029,0,571730,437530,0,1275650,90,90,900000,14375950.609999999,6659155.8099999996,0,269269.17,4578034.97,344699.1,357991.56,0,0,0,2166800,null,0,0,86820102.980000004,0,614120,490440,0,1718280,219,2434880,10963719.51,1411831.69,301142.67,29741.22,4617081.21,0,4542410,0,0,39113.67,22399.05,0,92079260.010000005,605840,553440,84400,50000,1637100,{"$f":"SUM(CF13:CQ13)","v":9298165.8314999994},0,212579.36,31609.25,4358100,0,4533250,0,0,119328.7715,null,43298.45,0,89998650.493499994,657520,520940,85530,24000,10580,1856090,58560,0,8010536.4849800011,0,0,92171.967659999995,3339871.1491,0,4218830,78160,15000,10640,1740,132049,5120,0,0,69087.079400000002,0,47867.288820000002,0,88188512,679930,516220,85850,9150,13400,1620590,0,0,7982881.7299999995,0,0,83692.69,3589935.66,0,4100640,74950,19630,10220,1740,68730,5120,0,0,20364.13,7859.25,0,81181810.700000003,702670.55,762215.09,89757.06,9278.09,0,1687071.34,0,null,8166745.0800000001,1370275.53,0,294184.48,4219336.57,483066.21,529882.29,0,0,0,1270000,null,0,0,82059701.590000004,0,540462.86,620137.79,0,2036350.27,0,0,15943672.67,4580230,5083779.4800000004,1958519.11,4321144.08,97038275.900000006,1962757.4,105936967.16,14506767.950000001,4722630,5122862.21,113834.39,4547441.3499999996,92390248.090000004,1800794.26,103144420.68000001,13684090,4519610,4926123,285030,3953327,95927854,1852419,106408589,12601048.3244,3957590,4589368.07,402556.79440000001,3651533.46,99792957.029070005,1873354.1131500001,113683035.48999,null,36,0,63,59,41,16,17,232]
[208,"Lambeth",31830371,231966229.63,36445528.405708142,245354279.13906845,36491216.274433829,249211129.20014054,36429636.845804028,263164000,null,173718872,37059576,0.21333074278769207,5295517,580000,179014389,null,34949827,18689282,0,0,2179209,4275602,0,0,5025734,0,0,4780000,null,0,0,247888217,0,615000,0,180165,3428000,360,360,3600000,35929827,18689282,0,2179209,4275602,0,4155734,0,0,0,6630000,null,0,0,243291824.05000001,0,612200,0,180165,3526351,700,6680000,21409642.969999999,2169046,0,3565506.99,5184602,0,10463590.26,0,0,26897.72,0,0,228952099.74000001,635853,193620,0,50046,3585070,17691268.37438,2030059.04,0,2009897.9999800001,3835094,0,9796657.3344000001,0,0,19560,null,0,0,223030053.09867999,1179150,193620,114131,50046,368710,4020545,83642,0,17646803.688600004,2030059,0,563168,5399977,0,9024392.7411800008,214978.87372999999,0,27771,0,160300.07368999999,149424,0,0,76733,0,0,0,248818516.33938,1386338,218286,114131,50046,368710,4086938,83642,0,16115007.359999999,2070480.23,0,557593.21,4102161.66,0,8867616.2599999998,201868,0,27204,0,127704,91665,0,0,68715,0,0,234481807.09999999,998694.02,216632,135000,49669,365939,3860570.77,0,null,31173191.289999999,12676987.33,0,10724748.960000001,0,0,0,0,1162000,0,6609455,null,0,0,210141219.25999999,0,673804.26,667863.07999999996,0,3166805.92,0,0,42072151.659999996,20638623.25,11343546.41,206912,9883070,246763293.30000001,4129807,283935370.30000001,37210497.859999999,20028747.010000002,10543790.85,235778,6402182,241859837,3671633,272241031,36568574.109999999,22086439,10330986,74673.11,4076476,249194717.56,2962279,283098297.56999999,36740627,21663740,10824919,32850,4219118,235538098.56999999,4127654,267501932.34,null,94,0,150,491,50,67,70,922]
[209,"Lewisham",37948494.710000008,235015107.69,41061157.391101316,250360880.41431543,43420598.327727564,268560817.85362881,43842361.198060192,275783000,null,191286247,28379007,0.14835884672879801,2016690,200000,193302937,null,39351580,18855000,0,0,3534000,6180000,0,3100000,900000,0,0,6660000,null,122580,0,268706420,0,906566,487851,94017,3208214,795,816,7770000,43399633,22097000,0,2090000,5048000,3302000,1012000,0,0,0,9646333,null,204300,0,249453793,0,772274,537493,97926,3847011,792,7600000,25836250.780000005,4355000,905000,96000,5456000,0,14883882.42,0,35450.92,25240.44,79677,0,245034507.27000001,678094.96,505791.62,0,93263.81,4054027.39,22849221.834989998,2759062.9999899999,1568911,85876,4118758,0,14209490,0,0,52749.762000000002,null,54374.072999999997,0,237623912.00999001,577925,481129,0,88288,0,3528496,185710,0,{"$f":"SUM(DB15:DS15)","v":21640548.566640001},1896845,1766204.2653999999,35876,4368757.6408700002,0,12816479.04129,256257,0,34152,0,328899,86537,0,0,7668.6190800000004,0,42873,0,230476281.54199001,713376.99606999999,543086.63205999997,0,91218.037249999994,79429.243130000003,2967250.1308400002,172658.29303,0,19421618.18,1396261.17,1855328.61,35875.5,3476726.41,0,11886305,254869,0,34002,0,299131.90999999997,122564,0,0,10429.58,50125,0,215828262.59999999,803399.67,614061.87,0,102073.59,99295.14,3556477.38,208308.7,null,41963400,21831000,0,2981000,5246000,3145000,874000,0,0,0,7698000,null,188400,0,249453000,0,1111776,732625,4899,3452995,0,258540,62812891.209999993,37899395.409999996,15595371.800000001,3392686,5925438,256757773.68000001,4249899,295504882.68000001,63106183.990000002,36872795.93,15138767.060000001,4566462,6528159,248181700.75,4466773,280954633.75,55934742.990000002,25121300,14237234,10415451.609999999,6160757.3799999999,261412922.16,1751740.63,281035089.44999999,47824992.829750001,21544815,13875732,7297371.5800000001,5107074.2497500004,247133904.59037,3584916.6168200001,284209476.07691002,null,60,150,206,628,109,96,111,1360]
[210,"Southwark",34578761,224418572.09999999,37732085.742369279,239179149.19863066,38469041.369149797,241662971.18344966,38653117.172599517,288701000,null,172743570,10556035,6.11081211300658E-2,0,0,172743570,null,38025630,21390455,0,0,2131752,4436417,0,1800010,1484847,27065,0,6755084,null,0,0,243888509,0,921225,1600545,153747,4675454,426,426,4260000,36989565,21201817,0,1729799,4512932,1383114,1038082,22786,0,0,7101035,null,0,0,239916101,0,869754,855619,149678,4445353,544,7088216,23577385.649999999,2886993.31,418045.35,1454135.05,3731613.76,0,14941425.279999999,0,22123.9,123049,0,0,207396076.99000001,1376827.02,917439.45,0,144477.17000000001,3748723.65,21361496.77,2232719,0,1389400,3219968,0,14414671,0,0,19357,null,85381.77,0,202856983,1548019,625298,0,491892,152895,4167378,0,0,20271803.89373,1942303,0,1396609,3236677,0,12723997.390000001,361995,0,49214,0,259224,185878.12151,0,0,12987.42618,0,102918.95604,0,212114949.79449999,1036102.80732,1308927.1302400001,0,524509.89642999996,155577.57599000001,4247566.7073799996,0,0,19034393.399999999,1424946.14,0,1436438.57,2866829.36,0,12101160.609999999,346121.5,0,48104,0,249156.33,222743.89,0,30024,52355,256514,0,205806479.30000001,1134104.71,1341076.9099999999,172690.19,556256.51,145186.32,4008472.28,0,null,61576509,26206762,0,2330215,4443525,1659696,431432,0,0,0,26503679,null,1200,0,250641609,0,58321,872981,139758,4617871,0,0,29115408.649999999,13169384.52,15946024.130000001,0,0,221686401.50999999,8591066.8800000008,255851503.52000001,50297537.210000001,13524936.48,15586524.73,16559707,4626369,401322689.80000001,16643,428816541.80000001,33116000.429999996,14657557.869999999,15163006.289999999,53810.62,3241625.65,230029698.24000001,0,270410193.76999998,33124420.060400002,15626928,14558204,25640.7804,2913647.28,222855311.35999,6122771.3267999999,267454712.60916999,null,94,19,100,436,101,54,90,894]
[211,"Tower Hamlets",42014107,299959005.05000001,43040063.747081913,312560225.24350965,43326839.468804985,316126474.99911988,43744648.882663123,316655000,null,205753480,18513892,8.9980942242143369E-2,33790460,0,239543940,null,41559266,23031108,32409,0,1420000,6250000,0,6094976,48000,0,0,4682773,null,0,0,344555656,508846,1621366,636918,1103076,3592717,445,455,4508333.3,39713140.939999998,21677147.940000001,0,200655,7325303,4425874,48000,0,34033,0,6002128,null,0,0,334302610.94,421818,794162,521581,937697,3466372,640,6000000,23505165.329999998,3580956.2,733551.6,48006,5798458,0,13122680.529999999,208857,0,12656,0,0,321701079.16000003,830262,504305,441906,1105000,3482130,22818800.999990001,2485669.9999899999,538642,49006,6279445,0,12819841,0,0,646197,null,0,0,320433662.48544002,1321918,511581,372620,1148695,0,2871991.7302399999,527395.96887999994,86777.748030000002,22761828,3818590,479822,64905,6023945,0,10973602,250038,0,31926,0,338000,145000,0,0,636000,0,0,0,311757970.66667002,1464438,468671,148680,1558690,34787.800000000003,3688380,288620,0,18070322.280000001,2733482.75,934499.22,41455.03,3347766.37,0,9762041.9100000001,223435,0,31272,0,272705,161565,0,0,562100,0,0,285752445,852728.28,757004.94,164116.34,1609727.34,28472.42,4058589.95,211615.07,null,45772685,24301193,0,748738,6426938,4915416,48000,0,34033,0,9298367,null,0,0,341040840,402103,1620158,664609,1083440,3621770,0,0,65818496.969999999,43633279.530000001,13659317.439999999,2278420,6247480,337553099.38999999,3370926,365512393.38999999,68242479.420000002,46271407.890000001,13713304,0,8257767.5300000003,336848003.47000003,4081882,364689853.47000003,62045032,41346989,12880145,1897109,5920789,323106151,3120311,372021559,53455037.810000002,34521166,12169807,1699197.81,5064867,310501880.44999999,3649986,367836602.44999999,null,50,77,260,437,149,53,88,1114]
[212,"Wandsworth",47791399.149999999,183997135.97999999,39262379.05516389,193854752.06048331,41272056.356292509,196566481.65318325,41642667.193509921,205801000,null,131983730,18978796,0.14379648158147978,615320,0,132599050,null,36456225,15893616,0,0,3116559,5387486,75440,3541406,620523,0,0,7821195,null,0,0,205302645,63532,697700,1107315,118510,2812658,704,702,7028333,35478844.039999999,15524277.359999999,0,1671356.03,5453818,3413509.81,617317.84,0,0,0,8798565,null,0,0,202338424.03999999,121437,680015,1030830,117616,2853715,924,9107596,36416781.140000001,2670335,177414,617747,5253176,0,27590953.140000001,0,0,107156,0,0,200069996.84999999,785772,1012180,63760,117718,2908911,33641334,1038358,169938,591523,5068529,0,26543173,0,0,229813,null,0,0,215283089.5,823790.96719999996,799425.68655999994,131818.70613999999,97427.266600000003,57077.709929999997,2840339,44681.578320000001,0,33240501,1010037,362164,647083,5064352,0,24784391,330316,25280,47868,1809,464066,340119,0,0,163016,0,0,0,212109507,762245.10286999994,591106.73181000003,213763.30411,97422.860889999996,54473.662519999998,2721083,44681.691229999997,0,30944829,802377,1054423,291927,4058736,0,23655654,312930,45150,42996,3544,336003,142008,0,0,199081,0,0,200562363,771567,629192,214028,98215,57892,2867293,47200,null,17298502.289999999,5052877.6399999997,0,539606.14,1749949.4,1763859.41,150815.23000000001,0,0,0,8041394.4699999997,null,0,0,181198025.77000001,29336.41,0,1207533.3999999999,116648.64,3244182.44,443509.82,0,70151476.560000002,19814385,30339244.559999999,13417009,6580838,215643189.50999999,2610627,230720744.50999999,68039241.789999992,20608832,28660659.789999999,12453379,6316371,229166306.19,2776623,245363520.19,53675993.25,16705313,29093588,2172824.25,5704268,231614703.16,2242899.12,252360422.59999999,51190232.131379999,16204047,27020619,2112530.7513799998,5853035.3799999999,220961255.46412,2815422.87,245382474.65412,null,105,65,60,610,155,32,53,1080]
[213,"Westminster",19572247.390000001,123990670.40000001,23321816.237737179,127186517.89558706,23986748.830120604,126162269.57926902,24108351.712108519,146909000,null,88032448,7577365,8.6074682371663686E-2,1954190,491630,89986638,null,17182590,5321900,0,0,4887005,3374685,0,842900,466100,0,0,2290000,null,0,0,125820373,65000,637477,388975,0,1968230,163,165,1641666,18404111,7081064,0,3174823,4579747,1083121,165356,0,0,0,2320000,null,0,0,128699796,65000,1028457,574940,42300,3187930,245,2320000,{"$f":"SUM(BN19:BX19)","v":11293067.550000001},2279718.88,0,0,4933049,0,4080299.67,0,0,0,0,0,114130045.23,797400,1328830,0,42300,3505150,9444149,447900,0,0,4932049,0,4064200,0,0,0,null,0,0,127937575.00001,933100,692680,0,42300,70700,3377000,0,0,9495042.4564200006,1173857.41989,0,0,4781506,0,3234177.6320000002,82664.686470000001,0,10642,0,125404.02739,83780.690669999996,3010,0,0,0,0,0,134860287.41288999,780300,898900,52300,42200,70700,2421700,0,0,8526337.1999999993,871800,0,0,4707400,0,2680400,79331.199999999997,0,10424,0,88474,69062,3010,0,16436,0,0,125263803.59999999,731700,832700,60600,42300,68700,3002800,0,null,21480153.719999999,9019814.1500000004,0,2988151.54,6137791.4100000001,313800,530.38,176930,0,0,2843136.24,null,0,0,92691543.810000002,0,516972.52,0,88049.48,3534957.8,0,0,26078452.609999999,10540572.85,4527798.05,5037278.34,5972803.3700000001,108804941.53,3429933.78,119285135.48999999,27617939.43,12343044.810000001,4372723.62,4916129,5986042,127551530.68000001,3571613,142448295.68000001,23859747,13141257,4177418,923077,5617995,135904065,3565003,153816896,22860549.879999999,13172448,3406534,837259,5444308.8799999999,136084996.02000001,4054512.83,151526303.62,null,0,78,65,197,59,36,3,438]
[301,"Barking and Dagenham",20805032.460000001,196105741.19999999,22732980.346660092,216912510.57755694,23901797.996367078,223917075.54071108,24000615.700584278,228815000,null,176905063,12248447,6.9237402210472629E-2,54827,0,176959890,null,22692803,10568209,0,0,51800,6627275,0,0,2577200,0,200000,2668319,null,0,0,243374643,0,693500,712000,27600,1746700,283,283,2841724,20952212,9374066,0,51800,5640767,0,2014600,0,0,200000,3670979,null,0,0,233239584,0,675700,965400,28000,2285000,440.7,4158565,14367353.99,1260800,0,1450900,4824700.01,200000,6599553.8899999997,0,11164.88,8635.2099999999991,11600,0,220437026.03999999,737900,906400,0,73300,2096000,12064149,1237620,0,630100,3559700,200000,6436729,0,0,0,null,0,0,197045333.09999999,978145,672708,466560,123300,0,1163200,218100,69155,11563435,1060622,834368,568693,2824680,0,6143263,56600,0,8978,0,41233,0,0,9080,15918,0,0,0,193323621,813178,768552,416220,53989,0,1504581,293100,156320,10280027.669999998,1082064,859250,488158,2426679,0,5289464.8099999996,55491,0,11634,0,40345.86,6730,0,7108,13103,0,0,176412977.90000001,829748,502438,0,59835,0,3698172,0,null,18673810,7532436,0,12650,5681422,0,2137316,0,0,200000,3109986,null,0,0,224491193,0,606746,622341,7572,2152289,79284,0,20709336.390000001,9327129.5,7061093.8899999997,0,4321113,234129904.52000001,2673058,255491870.52000001,17940348.960000001,6728336.0599999996,6329882.9000000004,399316,4482814,222072026.06,3184328,243163228.06,18714851.02,6074019,6024734,1994857.73,4621240.29,209773551.58000001,1868796.16,248254490.16,10899938,0,5504106,1708960,3686872,191706830.53999999,1872228,221821540.53999999,null,0,317,156,246,52,82,46,899]
[302,"Barnet",36076258,257781768.35000005,39038520.573813915,270735421.12417847,41300318.098555773,277989503.11466956,41671178.089689992,293825000,null,209779119,16680983,7.9516889381159042E-2,368595,0,210147714,null,42706435.909999996,17296449.359999999,0,0,6236398.8799999999,11138864,0,3073893,0,0,400000,4560830.67,null,0,0,287322838.29000002,48654,513155,459913,172760,4310828,429,436,4330833,38783245,16028192,0,4524151,10451857,3147545,44000,0,0,400000,4187500,null,0,0,276864853,200160,750977,1024163,184403,4392630,520,5425000,23964842.969999999,6219777,494035,489700,7756458,400000,8504122.9700000007,0,0,100750,0,0,219787921.13999999,894782.13,1392184.44,200160,149635.17000000001,5424999.1500000004,21543498.149999999,4452782.5599999996,494035,489700,7806458,400000,7852322.5899999999,0,0,48200,null,0,0,243648841,1214041,1292649,200160,119630,0,5417840,41450,0,19009702.168819997,711110,2558470,294700,7511963,400000,6923768,168200.76039000001,0,22874,0,274167.66855,96248.739879999994,0,0,48200,0,0,0,270713318.68747997,904090,1368926,200160,110466,0,5969329,41150,100000,18240813.640000001,548760,2879461,300750,6825739,400000,6731225.0099999998,165951.12,0,20420,0,272955.51,68832,0,0,26720,0,0,256917351.30000001,851954,1372460,197862,95810,0,6000551,41150,null,38319171,15706697,0,4610611,10166314,3295705,0,0,0,400000,4139844,null,0,0,206455974,0,751317.35,1225857.6399999999,196389.03,4502716,482088,0,45159627.240000002,25824947.34,10120744.9,1319235,7894700,234494234.87,5042142,253711645.87,41627765.039999999,23396863.530000001,9058859.5099999998,2058878,7113164,253746103.02000001,5699624,275302111.01999998,43472207.829999998,27260590,6780673,1829205.46,7601739.3700000001,286269119.69999999,5163663.28,313025772.74000001,43158521.009999998,26552748,8573885,1037452.97,6994435.04,282877392.56,5429243.3300000001,316460239.33999997,null,0,223,142,375,148,46,111,1045]
[303,"Bexley",22873165.780000001,191373342.72,26564432.342381354,196642970.03485292,27124028.952018153,201697689.96418661,27548062.837915156,209678000,null,159904225,15950320,9.9749209253226417E-2,1,0,159904226,null,25634000,7310000,0,0,1358000,9590000,0,2359000,200000,0,0,4817000,null,0,0,201695000,81000,816000,155000,62000,1616000,470,490,4816667,25527000,6042000,0,528000,6445000,6279000,200000,0,0,0,6033000,null,0,0,114728000,89000,752000,71000,61000,2115000,517,10990000,17947007.98,2310000,906000,200000,5832000,0,8599007.9800000004,0,0,100000,0,0,120961783.98,650000,953000,86000,44000,2162000,17984690,2713000,842000,57000,5907000,0,8370690,0,0,95000,null,0,0,162891407,653000,192000,94000,60000,27000,2325000,60000,0,17964781,3239000,834339,57000,5678000,0,7484968,213198,0,32647,0,273357,69272,0,0,83000,0,0,0,201330046,745000,237000,56000,67000,37000,2567000,17000,0,18272510.950000003,2868000,2115000,57000,5364000,0,7202421.9100000001,203691.51,0,32092,0,265411.55,81893.98,0,0,83000,0,0,190712355.5,871000,237000,56000,27000,37000,2551000,17000,null,25919000,5443000,0,528000,7774000,5696000,200000,0,0,0,6278000,null,0,0,103900000,46000,986000,328000,72000,2199000,0,0,28861205.82,10165742.720000001,9533463.0999999996,3661000,5501000,114881857.44,2385000,145886764.44,28223876.509999998,10224196.35,9099680.1600000001,3300000,5600000,172962409.46000001,2229000,188226241.46000001,30261673,12197156,8903517,3336000,5825000,200658702,2355000,227615702,28001145,11288153,8655992,2682000,5375000,204126638.16999999,2465000,228446638.16999999,null,16,194,127,455,138,21,24,975]
[304,"Brent",52105843.559999987,254702854.44999999,53700348.683772206,264973167.16722235,55543781.1707853,272648012.7369889,55831064.421295345,296135000,null,188668316,28536333,0.15125132616331827,2141753,616000,190810069,null,44465384,24150609,0,0,4110671,8546512,70000,1047072,225250,0,511075,5781667,null,22528,0,275021819.5,634205,194711,426360,61775,2357500,542,604,5781666,42624402,21280645,0,2034832,7913956,1003219,3403472,0,0,522377,6446477,null,19424,0,284045625.19999999,629710,203884,447818,64872,2557500,654.65,6446477,31117992.59,6181344,0,1116168,9319628,500376,12749870.65,0,2406,8199.94,0,1240000,254121785.88,458146,532626,60000,64482,2807500,18389014,1028651,0,384836,4546512,0,12421904,0,0,7111,null,0,0,243626547,722947,1758290.4,442511.4,69351,0,9150313,0,0,22913720.120000001,2363406,2506000,794848,5146000,262000,11246063,203408,0,27877,0,219479,128349.12,0,0,16290,0,0,0,250078440.91,947884,1282122,346119,67868,0,3638440,0,0,20291282,2380000,1183000,778500,4453000,256000,10708617,203208,0,27412,0,176200,114950,0,0,10395,0,0,248721746,873522,977317,339000,67868,393000,3377064,0,null,48244883.829999998,28837141.170000002,0,5428623.8899999997,6891702.3300000001,992031.33,392592.61,0,0,510751.87,5179999.49,null,12041.14,0,214845638.28,1154900.47,423533.65,702992.14,380019.12,3044063.54,370409,0,33399473.160000004,9941475.6999999993,13180110.720000001,134569.07,10143317.67,245623265.11000001,3769258.92,258889830.41999999,49640157.150000006,25116155.91,12289654.32,75921,12158425.92,277999197.58999997,3755793,294028894.81999999,45782677.359999999,22545316,12554066,1232139.5900000001,9451155.7699999996,283049408.39999998,2079302.96,312206356.38,40559342.41375,21911551,11993657,282190.74375000002,6371943.6699999999,277402680.99997997,3500248.21,307790107.66997999,null,69,35,102,541,211,69,77,1104]
[305,"Bromley",44094982.859999999,220808833.47,46449312.162600614,229483832.63697776,47776654.622352466,232800115.52321565,48365120.39099019,251733000,null,169325076,19269889,0.11380410660497799,4350,0,169329426,null,35266804,10373091,0,0,2427100,12915990,0,4351060,392020,0,330000,4477543,null,0,0,231346726,0,515787,886561,175132,3830021,534,529,5310833,42240466,3341971,0,2216360,13009635,4397260,1160670,0,0,330000,16984570,null,800000,0,230231776,0,608926,810484,134115,3754785,650,6248000,34124854.859999999,5318085,3660759,1124023,11645800,320000,10134096.859999999,0,0,552091,800000,570000,140106521.34999999,982565,1210396,30700,116905,3829599,24272472.309999999,122010,3324790,863898,11961836,90000,7339678.3099999996,0,0,0,null,0,570260,111260392.4268,960842,1011058,30700,111642,205068,3429202,109888,0,23992089.741969999,74011,4112332,881453,8694800,237980,8644331.0023899991,174651.73957999999,0,26266,0,485489,3206,0,0,0,0,87310,570260,248965606.90817001,958777,861152,30700,90694,176594,3508168,106597,0,22697863,72920,3992526,387145,8628778,0,8409657,172362,0,24644,0,358532,11319,0,0,0,78140,561840,236595305,956392,834537,30000,91484,143018,3555427,105461,null,39136582.769999996,4463585.1500000004,0,3308759.02,10976997.67,4420751.7,872906.89,0,0,186723.73,11226858.609999999,null,3680000,0,120557014.93000001,0,642807.04000000004,769211.3,115445,3624442.42,56197.38,17466.75,34244904.039999999,10031092.779999999,10964484.68,3131311.26,10118015.32,135269503.41,3005056.44,149499148.31999999,36377526.32,11544817.4,10649485.890000001,3338845.88,10844377.15,161802210.19999999,3485233.41,179326623.27000001,42424351,17813427,10567100,3559759,10484065,268415898,3646742,286474903,39534571,16856542,10014351,3963972,8699706,262324866.31,3883352,286308370.31,null,263,85,186,465,183,40,71,1293]
[306,"Croydon",42137581.369999997,266469630,48903962.266455822,279579517.76277572,51407095.803194813,284464529.06574816,51909239.387909234,309203000,null,203286887,24702878,0.12151732147878284,140324,149000,203427210,null,46723499,23318832,0,0,3978500,7147000,149000,3652000,549000,0,250000,7679167,null,0,0,288173300,54800,1422500,1260500,81000,9506000,758,865,7679167,47576100,18976767,0,71800,12223500,4358200,506000,0,0,106000,9333833,null,0,2000000,295449800,0,883300,79600,79900,6545300,979,9333833,31673844.310000002,2140213,3809040,469428,9303285,104477,14847401.310000001,0,0,0,0,1000000,246118939.34,862104,420537,409990,116771,7060920,24626363.789999999,2089384.61,1863608,988782.39,8674969,143602,10809517.800000001,0,0,56499.99,null,0,0,250379431.72606999,965249,570083.4,369359,104816,0,7870341,0,0,26778852,3969096,0,0,9733914,0,12088111,265576,0,36272,0,294438,104703,0,0,200000,0,11742,75000,253378207,965528,752346,731404,104518,0,9495743,0,0,23418842.389999997,3280695.4,0,0,8607146.5800000001,0,10677431.289999999,247993.27,0,35068,0,227716.49,50454,0,0,200000,17337.36,75000,243556382.69999999,955080.55,804027.29,839543.64269999997,114651.8,0,5834419.8700000001,0,null,47639214,6244118,0,71800,14020350,4715363,463346,0,0,222755,19901482,null,0,2000000,204047185,122675,805710,275778,75519,7061339,0,0,56379195.519999996,25723818.75,14862766.77,4384456,11408154,241961038.30000001,7091376,268743400.30000001,34632383.269999996,5091602.63,13370180.640000001,5429425,10741175,262034455.84999999,7365733,292069716.85000002,40083346,14359697,12620149,4518228,8585272,275341632,8399582,318016106,39299903.90343,13968834,11432720,5352373.4734300002,8545976.4299999997,277946267.21170998,7321248.4046200002,325135969.88520998,null,252,0,501,791,153,68,98,1863]
[307,"Ealing",41077591.11999999,269185809.13999999,42417550.352261916,282585602.38193947,43346449.443374708,288237025.52111799,43957146.595994972,296599000,null,206450341,22701427,0.10996071447515797,7,3322847,206450348,null,38309122,20859943,0,0,2092618,7364628,0,912723,482991,0,163311,6397500,null,35408,0,300285804,0,540263,347919,116581,4215056,631,646,6400000,39761181,21491752,0,2169055,7843322,922389,536962,0,0,157363,6608795,null,31543,0,294884325,0,528830,340556,114114,4114315,689,6608795,30976554.369999997,6202086,1243954.56,809988,6727329,0,15422705.77,0,0,548146.04,22345,0,269891409.13999999,544621,412189,0,193675,4272807,26230180,3898138,727018,366738,5766327,0,15413439,0,0,28837,null,29683,0,285379093,970756,421602,0,211568,0,4466819,0,0,22888398,3199722,695803,0,4880259,0,13205384,258670,0,31926,0,166492,410929,0,0,10129,0,29084,0,270048456,982002,471749,0,251456,0,4661032,0,0,21997894.189999998,2555260,889309.35,0,4960620.8499999996,0,12726387,253768.99,0,31376,0,160172,398960,0,0,1543,20497,0,249520642,986761.88,471761.12,0,251461.2,0,4615732.4800000004,0,null,42006270,22760083,0,2483783,7688154,1718233,516852,0,0,157363,6666056,null,15746,0,275994304,0,547194,479648,113446,4673048,0,0,38491433.859999999,14588570.02,16706186.84,1544243,5652434,289982214.68000001,5243844,305284767.68000001,38196415.090000004,14958531.01,15828440.08,1147936,6261508,286236342.07999998,5181109,304866006.07999998,39874802.630000003,17948847,15061592,1128968.8899999999,5735394.7400000002,298714946.52999997,5282223.7300000004,317896954.87,36792809.939099997,15931935,14262364,1207044.14604,5391466.7930600001,281300060.81001002,5004033,307090436.80413002,null,54,54,113,590,117,25,41,994]
[308,"Enfield",28101858.170000002,277837083.83999997,29582420.323812794,290628770.47753137,31023101.506794415,294253655.28126454,31453889.207529083,299481000,null,233103844,20191360,8.6619592596679784E-2,595992,0,233699836,null,31991912,15019226,0,0,551415,4551046,0,2460944,3297814,0,0,5769167,null,0,342300,310586144,0,2309813,680674,212400,3323412,574,579,5769167,31272733,13741064,0,701394,4110168,2935050,3259897,0,0,0,6525160,null,0,0,307612447,0,2416527,627216,211820,3366018,658,6832660,21894848.079999998,2197491.44,1455854.18,1591088.95,3659449,55640,12558087.08,0,0,7980,26957.43,342300,271602778.31999999,2515186.37,662146.81999999995,0,211880,3268936.7,19855835,1271946,1226534,1147200,3246090,55640,12375466,0,0,144583,null,95126,293250,266779132.79357001,2390438,314626,0,210310,85896,3606978,95820,0,18642858.699999999,1676635,238800,1419780,3091600,55640,10920371,238430.7,0,31926,0,336327,193200,0,0,138284,0,25435,276430,275261218.34964001,2133916,316480,0,210700,85896,3854077,175400,0,17653805.899999999,1173133,673020,1149560,2973710,54930,10581605,242023.9,0,31272,0,330854,103672,0,0,2160,25296,312570,272077349,2516862,404367,0,208010,85896,3902967,140850,null,31225907,13646500,0,471609,3685361,3421257,3147420,0,0,0,6525160,null,0,328600,271744461,0,2639220,800576,237310,3539442,16596,149365,47463070.280000001,29517469.190000001,13533379.09,885615,3526607,296798483.76999998,3409494,319486679.76999998,40466558.880000003,23222515.640000001,12756740.24,939986,3547317,280200226.37,3699747,304983039.37,40527539,23524169,12265015,1049100,3689255,293777215,3860335,320412055,40395174,24571184,11735652,921289,3167049,298290585.75,3934670,331092109.75,null,32,106,100,481,118,60,49,946]
[309,"Haringey",30195846.200000003,211000635.36000001,29920087.455834147,227009032.02743155,31131008.341141865,229387373.08035973,31376000.013802245,236477000,null,172022994,11712781,6.8088461476260548E-2,3911908,500000,175934902,null,29559400,13571855,0,0,2511145,5395500,500000,3190900,0,0,500000,3890000,null,0,0,234254923,0,863300,358727,0,2555600,384,389,3890000,29052362,13344169,0,613932,5844500,3854070,248000,13591,0,500000,4603500,null,30600,0,231387822,0,951015,244732,0,2829498,479.8,4603500,20114901.949999999,1661136.88,2099700,248000,5259500,500000,10302374.359999999,0,13590.71,0,30600,0,222483881.41,965300,239900,0,0,2862700,19401073.798919998,2924780,654581,190440,5420584,500000,9676492.7200000007,0,12871,21325.07892,null,0,0,232075053.86188,1071373.7756000001,322032,18750,232277,0,2374135,225907.5,209482.5,18528038.430689998,2218962.0372199998,233207.94021,361964.06748000003,6384890.6593899997,0,8644205.1157000009,168267.17903,15240,21920,1809,169404.17735000001,178894.75302999999,0,13135.01152,11138.48976,0,0,105000,236354264.41242999,871444.87887000002,658052.60238000005,0,1199520.5251,0,1621814.0967600001,178375,178375,17856242.91,2576659.64,293807.90999999997,669310.64,5296156.82,118637.21,8259657.2999999998,167371.93,0,21472,0,168008.4,118130.3,0,13114.96,48501.65,0,105414.15,213083881.19999999,942363.85,502405.74,0,1722216.42,0,3422179.82,29700,null,31818629,13734991,0,3083852,6241212,3331393,294048,0,0,500000,4623133,null,10000,0,195630861,0,786966,274500,0,2159428,408039,82138,47520232.560000002,28973268.73,11455976.83,1077909,6013078,230260570.44999999,2959851,246787857.44999999,53319020.869999997,35241829.509999998,10479328.359999999,1655283,5942580,243056676.40000001,0,257631717.40000001,41948468.859999999,23422018,10160357,1217604.82,7148489.04,246325288.13999999,3415271.65,276841648.31,35589801.272090003,19431044,9555075,319881.60303,6283800.6690600002,233005219.33124,2934512,268446381.47523999,null,54,0,113,397,104,26,64,758]
[310,"Harrow",23170879.949999999,173359101.28999999,24842275.754157152,179062030.95513287,25928482.673439525,183673380.4778094,26145491.54837013,187225000,null,140555140,4316246,3.070856035574366E-2,10117,0,140565256,null,26467106,7792296,2356743,0,2743649,4535312,0,60000,0,0,187330,8791776,null,0,0,185243299,0,1113947,1172463,80567,3665519,327,342,3357500,26374193,8977855,0,1048480,4403265,60000,0,0,1871033,187330,9826230,null,0,0,180607277,0,654420,2074418,77480,3343090,556,11402283,17370988,2608265,221795,0,5647840.4299999997,187330,8705757.5700000003,0,0,0,0,0,131913936,716570,1680935,0,77481,3934244,16157680,268895,752175,0,6560812,187330,8374196,0,0,14272,null,0,0,171917414,1634339,685186,0,86381,408075,4249909,0,0,14333807,935346,883826,136489,4360360,189203,7239889,163487,0,22397,0,250218,76161,0,0,76431,0,0,0,162238371,1236036,399357,0,317120,228540,3880674,0,0,15035847.310000001,1070938,1172583,273976,5318914,189635,6387655,166500.31,0,21654,0,221802,179364,0,0,32826,0,0,156578111,1129776,379147,559490,531336,105575,6256960,0,null,18112681,6863410,0,1154706,6460758,60000,0,0,2266041,187330,1120436,null,0,0,131875238,0,908174,2185103,78637,3116600,380490,190245,26706089.77,10089026,8909320.9600000009,3748720.38,3959022.43,134515540.13,3529502.74,151687384.53,27403455.27,12180637,8558941.2699999996,2482383,4181494,155211721.88999999,3675944,174853648.88999999,28178902.300000001,15461464,8301652,1672742.71,2743043.59,181637472.59999999,4095913.48,203871224.97999999,28273647,14478848,7502996,1466775,4825028,174246190.25999999,4454147,200596515.25999999,null,0,84,172,391,68,80,58,853]
[311,"Havering",17547364,184861211.92000002,18037535.62734988,189594577.87321669,18874748.251498926,193934555.25391445,19161137.834032141,193897000,null,159223299,7929970,4.9804080494526115E-2,7898,79887,159231197,null,16477154,7703941,0,0,1656208,2610445,0,1645750,70810,0,0,2790000,null,0,0,194332848,0,835108,421670,91564,1373750,279,279,2790000,17150367,7808132,0,1590601,2367679,1538850,68750,3881,0,0,3772474,null,0,0,189614291,0,1071368,399950,101244,1364470,399.33,3752692,9742325.290000001,1072530,1388620,114758,1879410,0,5253435.32,0,3881,29690.97,0,0,142355662.36000001,1064430,373880,0,65580,1280470,9152385,1044052,1026200,139545,1679413,0,5253035,0,0,10140,null,0,0,176091991,914890,376660,0,77270,125303,1608790,72465,72465,8655370.9096000008,819752,976080,140615,1483153,0,4894975,116883,0,15963,0,157619,35070,0,0,15260.909600000001,0,0,0,194216771.69126999,917820,340470,0,108180,121366,1824760,104330,104330,7946096,551592,879150,120504,1469414,0,4593404,121152,0,15636,0,156550,20296,0,0,18398,0,0,183422569,982720,353110,0,126490,0,1834980,177199,null,17382842,7313302,0,1987111,2515711,1662740,76672,0,0,0,3827306,null,0,0,124869289,0,932256,463630,0,1793833,72525,67055,22092302.07,13821643,5649851.0700000003,2620808,0,137362916.88,1855920,152433518.88,20566258.419999998,12242935,5507684.0099999998,580113.48,2235525.9300000002,156195357.5,2062982.92,172364352.58000001,23092733.66,15292947,5438951,397830.72,1963004.94,201105897.5,1803538.64,235715207.80000001,20310835.09711,12711744,5143108,461964.11710999999,1994018.98,192834389.58000001,1639335.01,219764802.37,null,36,59,142,279,39,56,134,745]
[312,"Hillingdon",29086744.282785557,220302133.38,29876729.62354555,231847516.0343284,31490703.629345622,238891619.85055947,32152580.470948577,252371000,null,181922892,8981562,4.9370158429539478E-2,1685634,350000,183608526,null,29008833,7091800,0,0,5841500,8670400,518800,937900,487600,0,0,5460833,null,0,0,241707847.47,0,569900,412400,237900,6096400,371,395,3840000,29422600,6489400,0,5642100,8162800,1093300,695000,0,0,0,7340000,null,0,0,240915200,0,520800,555900,238000,4949700,441,4310000,25715253.509999998,6272000,947000,606000,6321000,0,11569253.51,0,0,0,0,0,166664795.30000001,738600,572100,0,330000,4800100,20773880,628500,1072400,254000,6696400,0,12122580,0,0,0,null,0,0,241557400,890705.2,487566,214900,396469.5,0,3436892,672000,448000,19598699,0,2648601,249400,5215800,0,10899423,268364,0,33887,0,222703,48279,0,0,12242,0,0,0,231183529,719500,752300,0,484700,0,4474900,0,0,18631683.979999997,836494.59,964073.1,0,6531963.9199999999,0,9717547.3699999992,252707,0,31792,0,251535,40346,0,0,0,5225,0,218551198.80000001,777870,642340,0,161640,0,4046530,0,null,26897590.620000001,7114306.1200000001,0,7170489.4400000004,6837110.21,826982.85,633702,0,0,0,4315000,null,0,0,151989040.66,198676,503241.24,405294.01,152367.43,4226612,1543632,720362,25538052.039999999,10020851.43,8205463,0,7311737.6100000003,171675134.74000001,5803711.3200000003,201187956.86000001,32175542.579999998,12368977.08,12482385.68,46931,7277248.8200000003,203226737.24000001,5130031.18,232294919.68000001,33315145.609999999,13841947,11944953,48616.75,7479628.8600000003,241268626.41,3928923.55,278600401.26999998,31942899,12761324,11798868,10649,7372058,237755988.41999999,4533596,281115468.42000002,null,0,114,50,525,148,8,50,895]
[313,"Hounslow",29077337.879999999,206620316.5,32107544.217043307,216799126.55473644,33240838.799274173,220445809.91368303,33550418.464400876,222643000,null,164969101,22244294,0.13483915390919177,48964,0,165018065,null,30198224,14087013,0,0,2185683,6462635,0,2533263,447130,0,0,4482500,null,0,0,222797532,45000,567791,388500,58349,3448273,473,482,4782500,30859277,14256599,0,1825623,6266505,2441733,444817,0,0,0,5624000,null,0,0,223101476,80800,606402,385030,58706,5669088,579,12237159,20362062.759999998,2664301.83,1760409.99,687510.6,6317051.2999999998,0,8890145.0399999991,0,1144,41500,0,0,183198176.74000001,567908,390385,80800,56668.06,3600418,15649674.07296,865305,2153708,562920,5066600,0,6871841.8608400002,0,0,129299.21212,null,0,0,133380451.81408,569284.85072999995,407296.68148999999,0,33165.947749999999,4370.0590899999997,3365377.6165900002,177521.40463,0,16144562.56945,396641,2774793,235597,4237739,0,7844772.1399999997,167492.56701,0,23881,0,309949.86244,41739,0,1144,108611,0,2203,0,217952578.58809999,784129,540183,62800,84583,52929,3165854,163426,0,14680522.309999999,232701,1829771,253146,4179797,0,7553645.3099999996,172697,0,23604,0,309491,9703,0,1129,112654,2184,0,199786584.30000001,734197,507717,83200,81451,64587,3236829,172587,null,32923011,14624876,0,3032420,6682369,2216320,433439,0,0,0,5933587,null,0,0,153591551,40050,765672,381190,48719,4031639,358368,89592,32560671.920000002,11974435.17,10101045.75,3509451,6975740,182121223.47,3932109,196232400.47,33256049.850000001,14510464.68,9396900.1699999999,2839368,6509317,209402910.28,3633990,225757688.28,31947430.449999999,15648157,8886891,2497520.86,4914861.59,224838902.69,3595848.59,253927009.25,28899745,13463266,8463666,2601830,4370983,225317078.16,3313863,257156044.16,null,284,4,83,485,84,36,45,1021]
[314,"Kingston upon Thames",17253204.239999998,109941211.59999999,17728659.914620139,115382269.06036995,18371323.024108097,118272927.85992888,18603905.120781504,118373000,null,88676417,4532487,5.1112653773550641E-2,1147721,294000,89824139,null,16457632,5961507,0,0,808310,6631215,0,220600,0,0,0,2695000,null,0,141000,118543709,243996,642640,394967,29257,2427228,269.5,269.5,2695000,15744479,5730210,0,845967,6111702,220600,0,0,0,0,2695000,null,0,141000,115315099,219398,504630,354845,26285,2242040,313.5,3047000,14294995.58,1909000,412496,6127,5693000,0,6129442.5800000001,0,0,3930,0,141000,84176719.030000001,537574,349263,279253,38953,2191212.7999999998,12423229,813700,403858,6107,5135800,0,5878217,0,0,13433,null,27314,144800,121223893,587740,318805,288377,38551,56106,2287007,7052.2,2859,11929347.00495,866100,457630,29453,4916400,0,5273338.00495,120768,0,16387,0,85203,1642,0,0,13826,0,0,148600,121959139.38223,606214,346870,296306,38106,57602,2312898,13221,5666,10344215.370000001,824900,454260,31707,3710200,0,4945534.37,114575,0,15636,0,80071,1508,0,0,13624,0,152200,113348292.8,744028,375446,274877,31905,60989,2138440,11802,null,16010198,5499897,0,873902,6223223,220600,0,0,0,0,3047000,null,0,145576,76229371,203455,637187,343330,25432,2106861,41803,179227,18530529.870000001,6423041.0499999998,6396533.8200000003,353011,5357944,83669143.480000004,2264040,95699647.480000004,19059564.859999999,7680016.8099999996,6080893.0499999998,486923,4811732,112099345.41,2246731,125622105.41,19959984,8968447,5743878,397128,4850531,127717783,2275403,143545370,18797838,8547153,5719224,381019,4150442,121657422.38,2180520,140235628.38,null,65,78,20,273.5,51,23,43,553.5]
[315,"Merton",24151319.300000001,128432119.31999999,26759084.879222117,135538774.88672191,27607449.84379359,138391051.91584882,27895585.567717031,154301000,null,94993049,8188178,8.6197654314685693E-2,1348047,272340,96341097,null,24832719,8985150,0,0,1563867,7885800,272340,1079871,1368451,0,0,3470000,null,0,207240,142776192,0,609190,929965,62820,2815500,347,347,3470000,23580360.310000002,10012410.310000001,0,445310,7060680,1259550,1185170,0,0,0,3410000,null,0,207240,139710050.05000001,0,597190,898405,65270,2911810,435,8278538,17804964.300000001,1974545,0,1839280,7540680,0,6240344.2999999998,689,2186,0,0,207240,138505434.66999999,535730,823287,0,63660,2881850,16607892,671150,0,3054071,7027860,0,5816159,0,0,38652,null,0,0,121884734,319410,542322,0,65150,327144,2584260,156470,0,14277860,470381,0,1551780,7013898,0,4914775,113845,0,17818,0,130395,30945,0,0,34023,0,0,0,123483856.81892,319960,560817,0,94090,288925,2473880,105000,0,13065872,468320,245780,1312831,6237690,0,4530529,123236,0,17404,0,72047,31027,0,0,27008,0,0,114060609,299010,555034,146370,84800,233905,2365791,56840,null,24551567,9790393,0,1980600,5965057,1233384,1125669,0,0,0,4249224,null,0,207240,136207674,0,620083,1001642,66113,3226828,0,159931,28602364.370000001,13248390.49,7579020.8799999999,1406479,6368474,149629734.41,2866782,173597367.41,28510484.809999999,11185411.189999999,6752618.6200000001,4212927,6359528,144179733,2704916,169976413,25101270,10226729,5914579,2523119,6436843,145621264.94,0,171117199.94,23602051.640000001,9431835,5332309,2315182.2999999998,6522725.3399999999,131289430.90000001,0,153979804.72999999,null,0,120,68,335,81,12,41,657]
[316,"Newham",37977913.180000007,335845014.12,39903943.988470376,363448813.62509114,40558337.328745924,367894015.55966276,41129106.981877364,370270000,null,291939319,20081889,6.8787887389707855E-2,886137,0,292825457,null,31195718,12341480,0,0,1084000,4241200,0,5526920,439400,0,1417300,6138000,null,7418,0,388936942,0,520700,1438600,0,3102700,169,169,1574000,40542121,8602054,0,328175,2278500,3272111,1132600,0,0,1417300,23488838,null,22543,0,396078899,0,521200,653500,0,3102700,334,3024000,15409618.790000001,1468541.21,3789486.28,261583.9,2620094.17,1512618.79,5657540.3200000003,0,0,63634.45,36119.67,0,330479415.39999998,656600,975800,0,413400,3102700,12404252.772940001,0,3604791.16426,237468.10161000001,1823493.33253,1515321.6260899999,5092340,0,0,98562.967489999995,null,32275.580959999999,0,318459170.00002003,762885,607751,0,276300,142000,2927883,0,0,12316724,0,4160419,347282,1776516,1464892,4249393,77176,0,10642,0,84799,31399,0,0,51806,0,62400,0,325686499,1053750,685200,0,250350,275000,3134100,0,0,12608247.5,4372437.74,0,355254.76,1891967,1493767.09,4165563.87,82225,0,10424,0,81983.83,15197.11,0,0,75877.100000000006,63550,0,325111016.60000002,1096700,715500,0,473000,294076,1887700,0,null,40701477,18356225,0,933439,2591799,5408335,601736,0,0,1417300,11376997,null,15646,0,359088724,0,620728,633653,0,2773044,399604,0,34669622.18,22947482.5,5412381.6799999997,2810024,3499734,374724882.5,5063789,436835493.5,33186700.460000001,21169870,5151253.46,2611493,4254084,345212118.13,1417300,428429005.13,30328047.82,20849194,4642269,1526956.82,3309628,349699125.44,3790591,399155388.24000001,30914835.618759997,19852773,4496174,1520932.14876,5044956.47,342747331.58001,2490482.35,391297844.77000999,null,0,259,171,137,52,115,60,794]
[317,"Redbridge",33421017.309999995,238528955.79999998,35896276.094127089,250681252.23706454,36015132.129881859,254580041.25768897,36311288.200485811,266553999.99999997,null,190868285,19136617,0.10026085266077599,0,0,190868285,null,34462548,11809283,0,0,514061,7748561,0,6748371,1270947,0,0,6320000,null,38897,12428,275735548,17596,823083,486128,57266,3859994,352,352,3520000,33990369,11539086,0,0,7077461,6660995,2838621,0,0,0,5864370,null,7484,2352,285514775,20589,955484,471301,67006,3753830,600.5,5864370,22650414.52,1485392,745620,799462,5555316,0,13746195.52,0,10209,14340,112521,181359,254507762.08000001,786280,102496,18969,61735,3902425,13394856.721800001,824492.81212000002,0,260927,5240085.8355799997,0,6743828.5647,0,11866,161926.37122,0,121377.1963,30352.941879999998,153839373.43838,1074139,102496,144553,55197.589760000003,225358,3377111.02788,65774.55,0,19440671.530660003,644848.24930999998,0,294138.68219999998,4967407.1108400002,0,12510545.27132,193411,0,23139,0,295011,269837.00014000002,0,12608,70877.450249999994,0,126598.7666,32250,258430886.38078001,1065921.73236,0,14233.402260000001,46785.583030000002,381017.64480000001,3462592.0946900002,74245.649999999994,0,19027235.399999999,0,639146.73,154613.54,4650450.62,0,12380284.470000001,192411,0,26360,0,231783.61,141081.95000000001,0,13133,446555.48,133667,17748,242181698.09999999,1055112.1499999999,0,187756.15,45208.11,371847.73,3431210.75,393591.7,null,31405095.869999997,11436949.25,0,278823,6102649.5099999998,3165463.5,4859860.37,0,0,0,5469398,null,70961.240000000005,20991,249571251.72999999,0,705543.83,513667.75,51793.83,4461480.21,0,0,45135408.859999999,24756962.890000001,14481649.970000001,465227,5431569,267242248.30000001,3447692,286150179.30000001,42874783.420000002,23142204.48,14410394.939999999,611909,4710275,258508611.68000001,3418592,277101621.68000001,41230377.629999995,22396289,13733165,752690.76,4348232.87,266430822.31,3186535.53,296594701.31,37767251,18836553,13742158,865071,4323469,260190086.65000001,3332135,290352114.77999997,null,108,34,106,464,143,52,59,966]
[318,"Richmond upon Thames",18649291.530000001,118428095.12,19701562.44828333,124413880.45834866,20551310.740037553,128611550.90884151,20941924.440106247,132030000,null,95349741,10304592,0.10807152585763186,0,100000,95349741,null,18327961,5439841,0,0,1036771,8109800,100000,1553490,213859,0,0,1870000,null,4200,0,127127596,432800,723417,804371,89593,3179542,187,187,1870000,17811494,5472552,0,1323700,7582500,1505947,193428,0,0,0,1729167,null,4200,0,123792130,474800,700740,634754,91883,2979549,150,3418850,14600808.289999999,1840723,1712655.26,187393.6,7425878.1299999999,0,3425451.68,0,388,2494,5824.62,0,110924906.79000001,819240.66,657221.46,305800,146659.49,2880713.47,13205123.20888,1004927.5,1629600,145615.26543,7030070.7759400001,0,3377982.6209999998,0,0,14378.47056,null,2548.5759499999999,0,106776770.25025,579121.45721999998,478003.68297999998,239902.22628,114942.12258,131940.03559000001,2786268.4541799999,0,0,11274636.289829999,778300,860000,98817.237529999999,6560595.4435799997,0,2790069.12598,76715,0,10907,0,50382,42021,0,0,2629.4827399999999,0,4200,0,107663010.26658,689629.56447999994,364072.98728,265298.73482000001,114260.63889,122256.72551,2744716.0794199998,0,0,10319616.630000001,709900,848700,56636.82,5827903.2000000002,0,2670352.21,75056,0,10580,0,98761,12839,0,0,4688.3999999999996,4200,0,106290606.40000001,629269,364254.16,224472.56,105645.94,121615.9,2632199.9500000002,0,null,20349410.619999997,7502576.7699999996,0,1175216.97,8077203.0499999998,1616442.34,222223.49,0,0,0,1755748,null,0,0,91569508,574765.04,777589.48,804543.35,94209.98,3389315.94,1204,1569,20951719.489999998,7150933.4699999997,4296224.0199999996,1544676,7959886,112966810.59,3143990,126833798.59,19831728.949999999,7106939.3099999996,3915423.64,1374199,7435167,118086256.39,2971820,133586340.39,19782118.479999997,7518379,3505588,1473363.88,7284787.5999999996,122082641.77,2924842.43,148034121.28,18251408.618480001,7680171,3183489,1312133.4954899999,6075615.1229900001,120082228.25363,2791250.4,143029248.18667999,null,160,14,20,197,24,27,19,461]
[319,"Sutton",28769424,155224852.92000002,30545832.291622765,162606144.37215564,31283776.96965795,166846195.07941163,31577471.172501419,176685000,null,122270426,11859647,9.6995221068420914E-2,178924,96000,122454226,null,26495825,7986000,0,0,1172900,9389000,96000,1815837,2031188,0,370000,3631600,null,400,2900,170820055,2000,668900,943860,92600,3693990,80,80,800000,26688332,7770973,0,89565,10114229,1762389,1839076,0,0,410000,4698000,null,400,3700,166178888,31200,787000,922220,93500,3969800,423,3898000,20758830,2142400,1238320,1504550,11073067,444050,4342343,0,0,10000,400,3700,109813604.62,705335,822971,30600,70000,4262970,20217453,1342600,1164600,847250,10448290,398900,6001675,0,0,11838,null,400,1900,172368042,664000,989500,30000,71700,123820,4050900,21100,0,17875983.379999999,1022530,1066400,178300,9305795,497400,5395153.3799999999,125745,0,18560,0,108020,95491,0,0,59289,0,600,2700,178063294.38,668000,969800,0,72300,210860,4020700,20100,0,15335141,496400,328800,829900,7995700,266800,5146940,119332,0,17924,0,100811,14864,0,0,11770,700,5200,167449131,781000,736500,0,96300,57472,3759300,19100,null,26306529.050000001,10024617.390000001,0,370231.49,9137149.5,2414293.5099999998,1984759.67,384647,0,438210.99,1549165.5,null,0,3454,108057380.08,17641.47,719963.41,897559.6,89320.58,3626538.77,476394,163633.1,23037915.850000001,8299802.25,4939051.5999999996,1376531,8422531,111244437.59999999,3852631,136837859.59999999,23125747.449999999,9259031.6400000006,5290102.8099999996,243223,8333390,117747849.06,3684149,140558592.06,30522420,14707663,6198069,1492869,8123819,182005107,3854812,205553188,30177581,13906170,6137459,1733675,8400277,182030086.25999999,3908181,209757470.25999999,null,329,0,180,351,64,11,27,962]
[320,"Waltham Forest",33206759.610000014,220558291.65000001,32866585.508994617,231922860.58032084,34041433.680893935,237213129.36508682,34233092.925558947,241473000,null,179217629,18534558,{"$f":"M39/L39","v":0.1034192791379915},0,0,179217629,null,32243243,6882589,0,0,10617829,6341487,82838,1586000,1090000,0,0,5642500,null,0,0,243181190,0,607000,469500,10,3465054,479,479,4790000,32630272.140000001,11539274.02,0,3612253.45,5514523,1341853,996000,0,0,0,9504666.6699999999,null,121702,0,233313999.91999999,0,655000,456900,10,3427001,611.15,5839603,23912495.130000003,1833145,0,2052091.2,4151810.97,0,15773600,0,4882.0600000000004,26515.39,70450.509999999995,0,225163977.41,500300,586400,0,10,3360852,17509198.7654,726661,0,604964,4350016,0,11808617.734440001,0,0,0,0,18940.03096,0,133057939.79505999,494900,553140,0,10,116960,3651210.9982099999,117000,238000,22369105.469320003,650675,0,1036248,4491586.9908699999,0,15422302.796630001,246034.68182,13200,33972,5427,323049,90395,0,0,33459,0,22756,0,215714484.4219,1198418.67392,553140,0,73019.19,116960,3362843,72006,186015,21814419.109999999,764507,0,1009896,4122686,0,15181380.960000001,248613.15,13180,38800,3544,332796,54987,0,0,21559,22470,0,208983412.69999999,1045336,668837,0,72426,113262,3120558,105364,null,26786658.299999997,9886750.4499999993,0,4412717.8499999996,3717698,1783399,645254,0,0,0,6219137,null,121702,0,184180438.24000001,0,233888,459040,0,2399984,26940,332243,32403581.620000001,14855068.210000001,14315099.41,0,3233414,218238227.34,3342587,236197878.34,35455856.100000001,15197279.050000001,17196052.050000001,0,3062525,226181994.37,3619833,256240276.37,33430645.48,13580867.050000001,16494603.42,38875.01,3316300,230203565.59999999,3610290.89,271989812.25999999,31291326,12258641,15616197,55891,3360597,222114938.37549999,3362845,260005397.37549999,null,0,177,296,577,120,60,34,1264]
[330,"Birmingham",111138700.41,993605808,114258053.07938996,1029894563.9606941,121707954.79286587,1054265826.2651483,123244217.92642194,1057627000,null,809951278,153447239,0.18945243148316879,297913,500000,810249191,null,126556431,47967510,0,0,6289376,17805345,500000,11162880,441027,0,0,42390293,null,0,0,1069057631,0,2432433,1428952,313970,17258576,3440,3525,34274613,117398294,52428595,0,0,10537330,10533706,455230,0,0,0,43443433,null,0,0,1056935393,0,2319651,1347660,352555,16226608,4345,43443434,96305354.099999994,10370474,6797880,261817,7685721,0,69913491.099999994,0,0,635719,453033,187219,963724257.83000004,2331162,1540521,0,403291,17329793,92081962.835319996,8678026.8093299996,6767879.9999900004,506918.02600000001,6975431,0,68149950,0,0,746608,null,69930,187219,1002780137.48132,2117124,1158275,0,400010,175057,13430718.293439999,149010,0,89474560.624669999,14363574.692129999,0,393593.07782000001,6972885,0,60794511,1312899.8547199999,21912,197515,1772,2549801,2048788,0,0,145405,0,484685,187219,1005077963.80826,2938092.3687399998,1762705.4201199999,0,433000.97502000001,246902.77371000001,15367839.200440001,149010,0,86384917.25,14100997.689999999,0,221270.08,6019008,0,59092161,1298183.48,0,194440,0,2775524,1961914,0,0,136608,397592,187219,963623721.79999995,3578278.37,2291167.42,0,477014.98,344487.04,15014858.199999999,0,null,109932789,37816371,0,11278557,13067676,9478614,478296,0,0,0,37813275,null,0,0,788144867,0,2305072,943947,362042,17725070.66,0,0,145527910,52506167,74565903,8274745,10181095,979201664,16565971,1066478779,146171997.30000001,56856623.590000004,72663543.709999993,9330105,7321725,1031996568.4299999,16146074,1116344072.4300001,164901372.86000001,76733215,74159304,7170272.5800000001,6838581.2800000003,1065471771.41,16077175,1169842210.1199999,145484403.97549999,59884663,70196362,7719687.6555000003,7683691.3200000003,1050136924.2834001,16685721,1199079846.2934101,null,361,398,741,3338,504,241,208,5791]
[331,"Coventry",27213004.090000007,248278341.81000003,28221819.710642532,258470768.29296133,29381313.753712103,264404828.94926628,29758760.802158464,266163000,null,212130822,18449221,8.6970958892527178E-2,0,0,212130822,null,29009712,9626794,0,0,231206,5215129,0,4369461,711022,0,310000,8546100,null,0,0,270712070,0,707246,710553,124666,3204758,770,770,7736099,29918573,9587349,0,245940,4196899,4411126,1877794,216924,0,310000,9072541,null,0,0,266674582,0,710147,546351,115936,3008420,935.75,9071033,25061162.219999999,2206382,3088184,596399,3640808,310000,15158041.220000001,0,4230,57118,0,0,221855586.43000001,660957.91,526146.84,0,163528.54,3302251.38,25990268,791448,5390332,459724,3819094,300000,15159610,0,4230,14880,null,0,50950,257290563,746073,481917,0,163760,272290,3122374,416576,70590,26830508.30796,2012193,4244345,1030693,4080228.3076900002,300000,13580674.065610001,344642.31988000002,1171.8118199999999,46702,108.21332,537486.76706999994,272218.82257000002,0,17225,311870,0,0,50950,258519177.78839999,856716,503600,0,185038,290585,2726456,297781,18813,24931426.680000007,204083.33,5628224.5700000003,628474.86,4358860.99,0,12986782.130000001,333932,1175,46532,106,460553.39,187881.92,0,11565.76,29402.560000000001,0,53852.17,246597924.69999999,955289.19,511236.98,0,182054.58,292871.26,3206428.71,57799.42,null,29669030,9674299,0,195257,4393255,4744178,1753509,0,0,310000,8598532,null,0,0,204970766,0,711597,577277,193202,2973659,0,105505,35884977.810000002,14883336.99,17099010.82,157469,3745161,229592482.46000001,3122921,252205261.46000001,36121312.780000001,15429274.960000001,16836100.82,198239,3657698,246619529.69999999,3773996,270932397.69999999,37022234,16135870,16423551,309898,4152915,274797809,3477153,303665783,46600846,26370157,15758609,370461,4101619,267100507.59999999,3653109,306904270.60000002,null,0,66,46,765,104,75,76,1132]
[332,"Dudley",26752083.939999998,229636237.68000001,29423958.203654539,234323116.32957229,30308305.950536441,236052052.51395363,30793739.296487343,232953000,null,190277760,14887774,7.8242323222640422E-2,626880,0,190904639,null,24633297,8491648,0,0,142988,4107237,9128,3822787,408767,105198,0,7544356,null,1188,0,237550160,0,578783,848412,110699,3131371,753,753,7544356,27374519,9452187,0,878416,3377913,3593017,592791,379115,0,0,9099892,null,1188,0,237521651,0,567620,482130,111249,3043854,881,9099892,20469876,1681729,4871838,383580,1915346,0,11606208,0,0,9987,1188,0,214961487.44999999,630591,628069,0,114343,2808059,18846821,74734,4736416,661816,1962100,0,11395819,0,0,14874,null,1062,0,230753797,623717,446643,0,112413,55737,2545314,329300,0,18685569.33233,5393190,100072,143370,1947946,0,9981161,309135.33233,0,41699,0,590556,168254,0,0,9153,0,1033,0,236975265.65059999,831850,657540,0,277740,83638,2368142,0,0,17606796,5066182,116300,146176,2045842,0,9224335,296746,0,39812,0,553121,112264,0,0,5072,946,0,224240533,871342,767654,0,115364,120843,2439435,0,null,26246194,9234576,0,432095,2760923,3657612,678407,381501,0,0,9099892,null,1188,0,200129502,0,587565,622149,109827,3383453,165098,19475,23526517,8606768,12314087,1042774,1562888,228739313.09,3321575,254180388.09,29145519,15076059,12160144,629013,1280303,240232131.63999999,3243960,268118486.63999999,28825775,15043877,11119377,752106,1910415,248274394,3010621,300722988,28046169,14246587,10487600,1386786,1925196,239733480,2511031,279178875,null,0,92,116,719,32,77,23,1059]
[333,"Sandwell",33085138.549999997,245502399.03,34930533.733210698,255964596.90437344,36523297.682946965,263897269.23025671,36980633.325899564,278055000,null,205263300,24032950,0.11708352150627999,0,0,205263300,null,33675962,18844558,0,0,3752251,2905055,53500,3105500,306800,0,0,4708298,null,0,0,263559418,0,892700,83900,69800,2503700,409,515,4708298,32142113.68,17023338.149999999,0,1559000.01,2053875.52,3829000,468900,0,680000,0,6528000,null,0,0,255865907.24000001,0,843800,126000,69800,2397401,601,5608000,20599575.550000001,3036900,3628400,193401,1981800,0,11012621.550000001,0,0,746453,0,0,224422503.56,820300,44100,0,69800,2571200,16369260,51900,2409800,284000,1981800,0,10763877,0,0,877883,null,0,0,239524123,892400,579100,0,69800,130300,2312600,29800,119200,16644889.90443,51900,2936900,229600,1688100,0,10356919.01443,173081,0,21443,0,81032,21914.89,0,0,1084000,0,0,0,225807177.77970001,1143900,822400,160500,66900,208300,2579900,31500,125800,15820130.08,51400,2728070,223300,1669000,0,9779997.1199999992,162851.32999999999,0,21004,0,156225,18971.63,0,0,1009311,0,0,220140218.5,1135530,811800,173200,69400,205600,2675400,0,null,32983499,14445560,0,3597881,617611,4789950,1444834,0,648845,0,7438818,null,0,0,204974860,0,1174410,129009,69123,2353095,227782,162064,39960046.229999997,21263817.579999998,12804623.65,711211,5180394,251569890.88,2681538,277156591.88,40662148.219999999,23182548.309999999,11901874.91,930733,4646992,268975613.18000001,2734333,295132246.18000001,41532567,23731871,11499665,2052302,4248729,264064459,2520727,299670951,38124206,22003466,10316178,2040500,3764062,258211886,2253286,302459198,null,0,214,280,456,86,71,23,1130]
[334,"Solihull",21396844.370000001,154747796.18000001,22151413.770190097,158398861.45086402,24101021.547797505,162990393.12638527,24781084.076527003,173447000,null,127091859,5110034,4.0207406203728598E-2,129048,0,127220907,null,20585163,5209824,0,0,1741726,5730070,137000,2441540,225510,0,0,5073400,null,26093,0,164441278,0,491573,568595,82404,1886207,503.8,510,5073400,20296958,5958818,0,533148,4541070,2167551,1007170,0,0,0,6014629,null,74572,0,160984304,0,507085,612548,85586,1894183,623.6,6059598,15189746.370000001,1079422,548430,1626420,3696020,0,8239454.3700000001,0,0,0,0,0,117126578.22,581009.02,629871.80000000005,0,87406,2148699,15236892.975409999,1023227.34642,2748412.6289900001,0,3500000,0,7689357,0,0,190550,null,85346,0,143085717.44723001,602808.49266999995,461753.56235000002,0,82705.00632,14312.85842,2099361.5073600002,7069.5393899999999,4480.6845199999998,13221353.88264,415679,3198362,0,2146091,0,6781899,215260,0,27771,0,216785,9785,0,0,192560,0,17161.88264,0,152349591.09014001,600340.22355999995,177678,0,80778.727729999999,86991,589427.25624999998,0,0,13084475.449999999,320230,3132577,0,2101950,0,6478289.8099999996,201967.76,0,26892,0,191204,569463,0,0,0,61901.88,0,153282511.90000001,628850,177678,0,79019,86551,2163665,11462,null,21329014,5826341,0,542583,5960635,2084246,813390,0,0,0,5956000,null,145819,0,112451210,0,437765,622456,108993,2466478,322183,0,17707235,3589338,9354107,257323,4506467,125737036,2612681,137684042,20769987,6254131,8688449,1912655,3914752,137767209,2219380,148959524,21478684,8364915,8106429,1554751,3452589,162273848,2084980,175361248,20517742.561000001,8376214,8018312,1379232.561,2743984,164232158.90999001,2263943,183412254.90999001,null,89,0,160,485,85,37,64,920]
[335,"Walsall",26115347,217411909.90000001,27292192.947043821,223264253.54197979,28260716.223121691,228191555.11593425,28414971.300014466,230717000,null,187962692,13660707,7.2677757775463231E-2,0,0,187962692,null,24118569,11342221,0,0,536363,3649870,788300,1196699,185116,480000,0,5940000,null,0,0,237529620,0,979364,403856,0,2369922,585,597,5940000,25089968,10713421,0,580383,3162175,1518320,1060000,970000,0,0,7085669,null,0,0,228513242,167273,831721,495862,0,3501762,723.67,7025668,18936682.030000001,3307965.28,0,0,3658819.28,0,11966005.470000001,0,0,3892,0,0,170028488.47,662371,394898,13756,0,2758617,19347945.411789998,0,2081588.41179,1041212,4456647,0,11758085,0,0,10413,null,0,0,216505561.77803999,690850.00381000002,271595.59918000002,9983.04205,15000,0,2002050.2055200001,0,0,18722961.12263,3272070.9673199998,0,0,3943703.34815,0,10629000.807159999,288316,23452,37247,1809,413038,57883,0,0,53817,0,2624,0,222168551.29438001,879511.39038999996,364860.88413000002,12708.567499999999,0,0,2548784.6293000001,0,0,18141712.600000001,3343318.68,0,0,3970720.28,0,10051343.73,272943,0,36484,0,388405.91,63195,0,0,13236,2066,0,222241555.5,1116266.57,455628.04,37665.69,121577,0,3043579,0,null,23508659,9481411,0,360682,4104650,1953177,332699,0,0,0,7276040,null,0,0,225558192,0,900931,91403,0,2449147,0,0,25566380,11422585,12395578,49190,1699027,162290327.93000001,2517308,177996516.93000001,27886806.030000001,13126156.939999999,11863343.09,38517,2858789,202975116.38999999,2180230,216741087.38999999,30034969,14563830,12423048,135927,2912164,240790898,2180230,255457536,29977281.662289999,14230360,12337626,191262.66229000001,3218033,235615687.05000001,2355640,259179634.58000001,null,0,111,135,507,114,35,12,914]
[336,"Wolverhampton",25862491.66,189836488.70000002,26602297.606950868,196683181.28697759,27605705.18736279,202170023.38167056,27662002.928630646,200310000,null,154162127,20291349,0.13162343692883791,2884008,0,157046135,null,18866760,1253830,250000,0,0,970000,250000,1417910,31430,368000,150000,14175590,null,0,0,206765705,0,1924510,224620,148720,2700850,760,760,7600000,33083834,5988362,0,1125000,1817760,4556608,29253,1114329,0,0,18452522,null,0,0,208100202,0,1416328,487294,115764,2270429,1048.33,10709630,19230725.759999998,0,4084970,31444,1785080,0,13314717.699999999,0,0,14514.06,0,0,193514399.27000001,1748830,705476,0,166291,2272540,18716305,0,4035017,24580,1803200,0,12847073,0,0,5578,null,857,0,194789267,1834260,741590,0,122920,67410,1658470,134190,0,15847662.65693,0,1586705,19900,1860352,0,11164270.4,294615,0,43952,0,747609.25693000003,105711,0,0,17103,0,7445,0,200474956.93244001,1562390,361010,81000,106100,73190,2748150,108410,0,14615580,0,1216557,19900,1268400,0,10828433,297677,77566,42256,7088,734437,90257,0,0,29472,3537,0,199014738,1471070,366190,81000,106100,58200,3031600,106800,null,22813348,5988717,0,1064652,2488687,866999,450457,732000,248000,0,10973836,null,0,0,171677832,1148955,1494480,384356,509595,2772631,33208,40177,25272612.169999998,8181332.4500000002,15187360.25,172954.91,1730964.56,205811550.03,2511959.5,237806386.02000001,24725811.77,8673625,13635769.77,695599,1720818,213065975.53999999,2393850,245435980.53999999,25320820.030000001,9821614,13337762,190583.51,1970860.52,215509439.74000001,336115.27,253845915.62,25143772.670000002,10369625,12707950,93725.67,1972472,223834360.36000001,2641944.11,263944621.24000001,null,0,140,256,760,83,162,58,1459]
[340,"Knowsley",18485058.552820262,114342341.89483061,19201094.86308663,115217976.30403478,19791545.49298656,115125970.70880137,19827736.864261594,111665000,null,84867757,11110639,0.13091708079429978,56147,2074032,84923904,null,15651035,7244497,0,0,1045205,1800000,0,1196209,181188,24769,0,4159167,null,0,0,115304033,0,258963,237995,81355,1446123,420,413,4159167,16400082,2977474,0,0,1201000,1196209,181188,24769,0,0,10819442,null,0,0,115245000,0,380451,312326,6885,1683432,525,9691068,15405975.390000001,3638377.89,1203538.78,181187.88,2272700,0,7777648.04,0,24769.23,307753.57,0,0,122665523.86,510613.34,293917.34000000003,0,38977.550000000003,1603295.03,15592064.32601,3584259.4657399999,1256688.7782399999,191610.99512000001,2175828,0,7986219,0,1800,395658.08691000001,null,0,0,122335661.58577999,461729.68956000003,287063.67814999999,0,77229,0,1676051.3977000001,0,0,15873938.89257,3310766.8440700001,1156143.5435500001,191610.99512000001,2094661,0,8509519.35348,278637.60937000002,39000,38731,1809,176402.81954,1E-4,0,0,76656.727339999998,0,0,0,118743198.19638,640061.29351999995,277229.31318,0,79779.037479999999,0,1929258.95258,0,0,15863107.620000001,3422418.87,1154124.68,189713.86,2056252.41,0,8319716.0999999996,309285.31,38000,37576,1772,215401,37063,0,0,81784.39,0,0,119701751.40000001,735432.55,352167.21,0,80432.759999999995,0,1696916.27,0,null,16998246.82,7103450.4299999997,0,783975.39,2117441,1026999,166381,0,0,0,5800000,null,0,0,105505862.89,0,195322,288991,10000,1813669,13271,0,15786748.960000001,3616223.8,8618857.9499999993,1316615.21,2235052,129996083.66,1776939.77,174112677.19999999,14308071.84,3211828.41,9039711.2599999998,260304.73,1796227.44,130892440.14,1707128.67,189258770.44,16601578.75,3234182,10794590,118134.21,2454672.54,134678520.53,2009241.25,203905479.91999999,15839067.873160001,3053806.59,10677228,106252.57316,2001780.71,130591692.49271999,2051616.44,201264042.85034999,null,76,0,113,377,60,45,91,762]
[341,"Liverpool",38051463.799999997,325319829.95999998,41373692.67250149,334137807.35652524,42884816.106430717,340246037.54324025,43642641.071177296,353940000,null,253448571,35051593,0.13829864126556862,6014917,0,259463488,null,40446644,14606822,0,0,593739,5012202,0,7867246,46420,40720,0,12104167,null,175328,0,358035041,471123,283702,572089,156233,4612595,1190,1225,12104167,40685385,16094677,0,0,6310400,5772464,24554,38001,0,0,12329961,null,115328,0,355223439,506701,436389,627353,266511,4269988,1227.0900000000001,12108834,30040848.079999998,0,5200774,24439,3632302,0,20970005.079999998,0,0,38000,175328,0,358167142.39999998,454051,617790,461938,365283,4740663,28789885,0,5245996,368951,2997573,0,19804865,0,0,171274,null,175328,25898,372760766,351341,556187,486881,408507,92817,3791265,578479,80097,29408291,4922931,1885275,62272,3078069,0,16962117,529281,0,64806,0,1226647,373715,0,0,124894,0,178284,0,382224355,538886,473659,0,483311,459224,4133525.0912000001,191072.60415999999,96348.98,28116740,3873621,2442344,392309,3090196,0,15638635,519569,2990,65040,354,1049238,185800,0,0,124427,732217,0,370470434,577118,103964,0,316754,245973,3900749,438911,null,40183219,14714321,0,0,5965491,7191944,24348,2954,0,0,12108833,null,175328,0,322084270,735297,411398,617449,267800,4630073,74029,0,41098211,12023799,22178118,1578108,5318186,358599570.25,4308163,391890377.25,38284987.509999998,12446275.9,20165437.609999999,1001383,4671891,378296953.30000001,4616188,416442980.30000001,36727970,11295017,19249001,2150270,4033682,417465722,4248534,476989644,36111765.278020002,11144503.578020001,18658443.699999999,2884317,3424501,420030094.63,3990091,496245643.63,null,106,362,273,1059,224,50,49,2123]
[342,"St Helens",16730252.050000001,124239180.31,17058078.575507261,127046650.41365704,17785827.302515849,128665145.74797696,18108053.85443043,127138000,null,99403512,3795880,3.8186578357513164E-2,635427,0,100038939,null,16720692,8356604,0,0,0,2024988,0,1982809,0,0,50500,3957663,null,348128,0,132973643,0,605528,145668,61493,1977759,348,348,3496303,16261428,4779878,0,0,1707290,1925258,0,0,0,50500,7766996,null,31506,0,132070843,0,611206,205448,78316,2054509,435,8409859,10228253.050000001,517124,1411024,0,1492543,50500,6649560.0499999998,0,0,75996,31506,0,121319389.5,548559,179525,0,63154,2154218,10134837,466985,1420030,0,1491109,50500,6665960,0,0,12693,null,27560,0,124933275,567450,165923,0,60782,13174,1982051,227000,0,10190923,466362,1472860,0,1444189,50500,6114362,126838,0,19726,0,264749,32399,0,0,20937,0,178001,0,128622764,591162,211881,0,16379,17061,1872585,196000,0,9901865,463464,1421571,0,1318635,50000,5987441,127964,0,18808,0,266421,60827,0,0,12296,174438,0,130508458,594634,243662,0,15924,17194,1873098,196000,null,16631712,4553473,0,0,1956903,1884527,0,0,0,50500,7809457,null,376852,0,119870083,0,530435,185015,66531,1779911,200576,0,13748926.050000001,4586409.84,7439342.21,279002.88,1444171.12,129151377.73,2011937.54,138676548.30000001,12839382.470000001,4147247.32,7306777.6799999997,331566.38,1053791.0900000001,130083759.19,2053896.97,140950320.53999999,13291203.039999999,4275674,7240802,532859.04,1241868,140255170.49000001,1963818,152546831.38,13424726.24,4467279,6982929,689897.24,1284621,142561716.36000001,1929251.71,160772618.68000001,null,0,50,110,301,54,32,15,562]
[343,"Sefton",23897188,190872845.72,25084077.25908418,192231140.87164745,26660897.773007065,193582774.4868896,26945295.224330384,191273000,null,153783212,23392926,0.15211625310570312,5126,0,153788338,null,21623370,8707999,0,0,205785,3467778,200000,3446404,485404,0,0,5110000,null,0,0,192948292,0,945810.05,366241.17,483927.75,3601283,497,521,5110000,22993633,9171293,0,192743,3996859,4751718,541020,0,0,0,4340000,null,0,0,192275676,25400,754950,187550,260500,524800,631,11898862,15543172.09,732350,2305442,227591,3983250,0,8280939.0899999999,0,0,13600,0,0,174138410.15000001,803100,186550,59500,53400,3168950,11174028.673379999,856375,2101043,283614,2768743,0,5061267.6733799996,0,0,102986,null,0,0,145522469.07960001,671000,122500,95100,194050,122500,3198350,32050,0,13604200.630929999,804150,1927600,180800,3067050,0,6903061.63093,208620,0,29255,0,360782,27592,0,0,95290,0,0,0,205057903.34803,862300,134100,95100,135700,0,3048350,184600,55380,13358865,912271,2237284,186224,2754741,0,6519399,212428,0,27828,0,380061,25392,0,0,103237,0,0,200319474.69999999,862300,134100,94700,136300,0,3048350,184600,null,35867704,18166153,0,1085261,3169457,2280380,769356,0,0,0,10397097,null,0,0,175194192,40084,1063564,379797,48291,5087614,0,0,31251682.450000003,16306093.98,9528867.4700000007,1241259,4175462,190728858.93000001,3648560,207261807.93000001,30858286.969999999,17240892.379999999,8766978.5899999999,1020406,3830010,210713706.56,2942052,222462480.56,32735433.830000002,18870615,8844467,989050.01,4031301.82,231007074.08000001,3753662.43,247117580.81,31843010,17655911,8609564,1520401,4057134,226389640.77000001,3542436,241901601.77000001,null,153,84,130,473,84,51,54,1029]
[344,"Wirral",30577980.380000003,227016723.33000001,32310339.025383931,234905159.46810627,33642524.090284415,237278789.57952416,33817738.891984902,236897000,null,183060443,8149285,4.4516908549161543E-2,90,0,183060533,null,31889500,8377400,0,0,341400,3295200,0,2282700,4648500,0,58200,12796300,null,89800,0,245802000,18500,744100,574300,0,4783900,963,963,9678909,30742900,7435800,0,858300,3315300,2292900,5332900,0,0,58200,11369700,null,79800,0,242746354.65000001,18500,643600,396000,108900,4787100,1113,11248972,28215244.380000003,5616800,2296700,231100,3371100,58200,16250544.380000001,0,0,261000,129800,0,219964712.05000001,728800,291600,18500,69300,4517500,27566600,5558600,2155700,336300,3222200,58200,16004800,0,0,166000,null,64800,0,258475400,644600,342800,37500,69300,0,3817100,86400,0,27497720,5308200,2491900,331500,3414100,58200,14285500,509036,20695,67880,1809,712900,100000,0,0,196000,0,0,0,254247896.30000001,866500,396800,159200,69300,0,4346400,86400,0,26567648,4494600,2730000,177500,3940000,58200,13783300,483076,0,67172,0,613300,71100,0,0,149400,0,0,245530501,827500,392900,50600,69300,0,4310000,86400,null,29400315,9596751,0,1815079,3674686,1802314,994903,0,0,58200,11397756,null,60626,0,182157353,18500,586518,333819,0,4704473,123306,298576,34443573.219999999,11880935.49,18848597.73,420421,3293619,218375827.74000001,4879008,236875267.74000001,35533728.450000003,13170090.02,18425253.43,493536,3444849,249528836.50999999,5304609,279645106.50999999,37443884,15461131,17903985,597963,3480805,271179523,4887264,309877447,34177052,12735326,17261834,563697,3616195,267091879.66999999,4775655,294086516.67000002,null,148,135,80,904,173,96,66,1602]
[350,"Bolton",25055804.189999998,219941761.21000001,25828975.881495416,228149123.59763137,27148496.270910993,233724209.07226086,27496647.881497975,233004000,null,183967457,17703409,9.6231199195192435E-2,440068,0,184407525,null,25729500,11558800,0,0,513200,4453900,157600,2701500,1083900,0,0,5260600,null,0,0,239637599,47900,225252,224676,21800,3287500,539,555,5536664,25926931,11826924,0,777654,3682192,2708661,1009500,0,0,0,5922000,null,0,0,234419430,37200,230321,217798,89700,3273700,642.9,6277206,17782387.780000001,957500,1328160.3999999999,1268000,2768096.37,0,11405431.01,0,0,0,55200,0,219634370.66999999,246754,214494,36500,89700,3160200,15566383,61600,1333000,1180600,2044500,0,10727352,0,1931,163600,null,53800,0,216391434.68233001,283100,310600,33300,87400,7500,2879000,0,0,15070661.179949999,62300,1327500,1138600,2004400,0,9639060.1769299991,252705.00302,0,31926,0,516122,44848,0,0,0,0,53200,0,220283183.40092999,593800,371200,69500,85700,38000,2929900,0,0,14111779.969999999,61900,1200900,1028600,1974800,0,9054690.4499999993,242023,0,31272,0,409522.49,55672.03,0,0,0,52400,0,209019564.5,589830,369070,71300,84400,36900,2849681,0,null,26280532,12449935,0,527198,3923078,2800109,587453,0,0,0,5992759,null,0,0,213079592,44372,159326,208481,20640,3225421,0,0,27416746.990000002,10552619.5,13156776.49,1036266,2671085,233952865.36000001,2399585,260312739.36000001,25566393.809999999,10351232.33,11950709.869999999,851384.38,2413067.23,233956078.59999999,2403107.4300000002,258423774.28,24714972,10428293,11236602,595849,2454228,230588104,2605549,257881475,23658494,10472575,10313785,543017,2329117,229276783.02000001,2566666,265345187.02000001,null,0,29,114,481,126,109,66,925]
[351,"Bury",22074585.370000001,135810785.05000001,22498757.78323229,140174175.76509348,24077280.31169866,144153536.30756447,24338519.503950708,148271000,null,106875326,9512319,8.9003882898097547E-2,1264671,0,108139997,null,24986875,7747950,0,110000,196505,4678000,4597720,3316700,1155000,0,0,3185000,null,0,0,145121457,0,369900,80000,56200,1554000,460,478,4401000.33,23979916,12705350,0,443900,3478000,2473400,741600,0,0,0,4137666,null,0,0,142060354,0,342100,88100,62600,1630600,444.15999999999997,4137600,13786299.120000001,2058900,94800,1131390,3695000,0,6806209.1200000001,0,0,0,0,0,140164709.71000001,401900,285500,0,62600,1855100,12491817,1337300,197000,1042100,3645000,0,6270417,0,0,0,0,0,0,134312863,434700,0,0,62600,67400,1887300,0,19800,12163579,1303180,189100,1098600,3644991,0,5400210,123570,12893,18770,1809,322298,48158,0,0,0,0,0,0,139933004,444000,0,0,62600,83120,1879300,0,0,11295440,1104800,105900,1071600,3348291,0,5255720,129090,12628,18340,1772,232792,14507,0,0,0,0,0,131574558.90000001,479300,0,0,70500,162100,2037000,0,null,23294276,10327226,0,1215855,4198650,1604346,1104646,0,0,0,4843553,null,0,0,140222603,0,502829,52390,56138,1878956,135956,0,23317285.100000001,12289235,6871099.0999999996,382059,3774892,147058555.13999999,1649384,158116354.13999999,21833862.940000001,11491130,6360565.9400000004,380045,3602122,142352932.22999999,1656241,153312939.22999999,21545368,11446850,6265942,487501,3345075,148968940,2005186,161639502,20863654,10959785,5654807,752615,3496447,144904741,2054748,165220516,null,56,12,152,273,78,67,31,669]
[352,"Manchester",56723524.480000004,382748986.62,59828191.794731401,403024019.24434596,63337356.672821805,418303423.57114065,64306697.232901908,445152000,null,310242600,37946918,0.12231369257477857,2284282,42035,312526882,null,55039537,26253611,0,0,3081258,9498906,78968,3252044,2409480,0,500000,9965270,null,0,0,414321629,0,1000000,1264000,0,5214634,1015,1015,10150000,57590292,10490049,0,1441297,7011260,2420000,2504000,0,0,500000,33223686,null,0,0,401920000,0,1031352,372660,180745,6671866,1486,14024000,44211734.890000001,2663245,2564732,3154068,5637250,500000,29681578.890000001,0,1832,9029,0,0,365439981.87,1079351.94,365483.03,0,460078,25178.28,42873750,3564254,3234522,2657447,8028344,0,25351133,0,0,30651,null,0,7399,370940925,986992,338950,150000,1553655,0,6070923,82879,0,42250291.966940001,2417715,3544322,3111324,8928344,0,22076121.67255,585493.29439000005,0,74494,0,959997,375788,143731,0,32962,0,0,0,346072037.3362,2079686,439656,0,400675,0,6317830,157946,157946,41441051.169999994,2271621,3711735,3127422,8759101,0,21569655.91,576722.82999999996,1368,72968,0,891595.32,268923.11,153924,0,36015,0,0,338776246.5,2185374,513395,0,472029,0,6622631,352268,null,57686706,8647365,0,1782445,8167745,4933304,0,0,0,500000,33655006,null,0,841,327888898,0,1000081,565608,0,4011963,1183105,448437,67241712.129999995,28556687.190000001,30556312.940000001,116761,8011951,371037645.36000001,7274818,420709073.36000001,66653352.549999997,26809763.780000001,29820665.77,174860,9848063,372790836.98000002,2912858,417329364.98000002,63736365,25321392,28654572,556365,9204036,374776399.00999999,6860790,442380565.00999999,63034075,25138156,27127909,968618,9799392,373602351.44999999,8041320,454756977.44999999,null,42,129,377,1100,188,186,153,2175]
[353,"Oldham",22954723.280000001,206728425.42000002,23534525.714541759,212998541.73364606,24900485.547118459,217408017.41742817,25530732.682988059,216316000,null,172027230,13847875,8.0498157181278798E-2,1026,0,171668196,null,23101948,7012128,0,0,4621669,1582610,0,2351570,1672560,0,0,5861411,null,0,0,217394942,0,134547,200592,59850,1885900,236,236,2360000,22030903,8438970,0,3119414,1392610,2323300,1550742,0,0,0,5205867,null,0,0,212684720,0,147890,337180,51890,1903760,267,2554000,18631928.280000001,2378083,1855211,3824127,1392610,0,9169525.2799999993,0,5247,5201,1924,0,179627968.96000001,530260,470330,0,59980,2090040,20583244,4720200,1657534,3958884,1240440,0,8874610,0,0,131576,null,0,0,204925370.69999999,786837,333690,0,62400,0,2481520,0,0,20559697,5860456,1230566,3453383,1233580,0,8094319,189468,0,19461,0,371328,27231,0,0,79905,0,0,0,204170624,642800,1239904,0,56110,0,0,0,0,14328313,0,2014637,2969826,1360977,0,7442509,188762,0,18496,0,195486,26000,0,0,111620,0,0,202881559,818178,712278,0,62340,64747,2676731,0,null,19305101,7476196,0,3537672,1422610,2201570,1672469,0,0,0,2994584,null,0,0,169850331,572217,418894,255194,35306,1765534,0,0,22267432.109999999,13763193.76,7029106.3499999996,82522,1392610,184505967.87,2124993,200182338.87,22848901.780000001,10617773.939999999,10265227.84,440040,1525860,193138179.40000001,2299147,211505739.40000001,22605586,10874081,9799640,386158,1545707,208778741,2178139,229741066,22790211,12280762,9068518,349838,1091093,214058630.53999999,2307036,233129633.53999999,null,0,46,40,437,110,34,74,741]
[354,"Rochdale",21712718,169762365.59999999,22092760.754925288,173705492.60837644,22747629.7157607,177576988.17547759,22915773.339315984,178646000,null,143179883,12826481,8.9582982827273297E-2,878117,0,144058001,null,19726838,8738116,0,0,468516,3005573,0,2527913,262655,0,0,4720000,null,4065,0,180499047,0,603471,449245,68025,2295548,472,472,4720000,16579553,6892190,0,0,1507787,1990930,319001,0,0,0,5690000,null,179645,0,175689051,0,528222,416320,67739,2523304,595,5690000,13988788.99,2112166,877489,661033,1794734,0,8364999.9900000002,0,0,32232,146135,0,176560360.05000001,570300,397124,0,72144,2186163,13859087.10417,1195914.703,2345996.00942,88568.058730000004,1761735.871,0,8211000,0,0,64600,0,191272.46202000001,0,175344471.90457001,515200,363442.70500000002,247486.22980999999,668159,46288.625,2110711,330100,0,13716362,869398,2499662,207420,1880923,0,7535291,233719,1230,24199,90,234853,87974,0,0,31030,0,110573,0,174562111.01956001,550277,374040,201721,698793,49258,1930503,76034,0,13466168.810000001,749075,2602624,237477,1848034,0,7301101,235271.81,0,23916,0,229098,72512,0,0,61722,105338,0,167415141,556501,391473,202021,44700,56261,1843080,92878,null,19776626,8262762,0,863798,2034877,2089974,130835,0,690502,0,5690000,null,13878,0,177388383,99732,515139,397443,63639,1626104,651935,0,21784831,10657741,8885205,1190309,1051576,195835837,2238985,205587966,19281512,8347969,8645330,1457091,831122,184042813,2155019,196494817,21222251,8048555,8347183,3083045,1743468,191492174,1938435,213777917,19252355,7213639,8118824,2326011,1593881,184282751,1936602,213041479,null,12,24,130,408,89,60,40,763]
[355,"Salford",25909390.46970363,167672935.44,27621856.483977646,176040881.69326976,28940794.035648525,182076487.11676964,29768349.627426982,187823000,null,132893237,11062522,8.3243679285199448E-2,1126281,0,134019518,null,26653862,10531937,0,0,3042808,5438726,959501,1849944,80946,0,0,4750000,null,0,0,184241513,185422,1070344,437423,115403,2669667,363,363,3630000,25671095,11157393,0,1098972,3910768,2325161,76759,0,0,0,7102042,null,0,0,178328591,118614,1042034,403921,118307,2771724,532,4954000,17314743.300000001,1806689,2793790,50432,3206430,0,9457402.3000000007,0,0,0,0,0,166492398.08000001,772476,393952,32447,94580,3003927,16488872,42689,1929969,43472,3639337,0,10823648,0,0,9757,null,0,0,166308930.16666999,646756,323543,16406,52398,34868,3150975,135204,72802,16231340,556363,1515037,46900,3376053,0,10017246,181495,0,27273,0,446722,60348,0,0,3903,0,0,0,169173759,705447,402252,42449,76519,29454,2731891,185543,99907,15447485.35,699391,1676072,49892,3566593,0,8658084,198241.35,26003,26464,1772,382266,151232,0,0,11475,0,0,163501524.80000001,672851,402495,22233,72831,21532,2832395,0,null,22645744.140000001,11403089.619999999,0,1213383,4121738.6,2039695.28,69798.64,0,0,0,3798039,null,0,0,158068166.15000001,274442.69,850077.49,495613.35,134845.39000000001,2809452.88,0,0,21198250.640000001,7583420.5099999998,8533860.1300000008,1535487,3545483,174398100.97999999,2871073,192724066.97999999,24208590.68,7828057.8799999999,11630631.800000001,1527483,3222418,179990472.56999999,3180747,203674511.56999999,26822093,7854331,11974850,1784246,5208666,185495865,3639871,206653066,27305597.582770001,7914738,12081627,2076683.0450299999,5232549.5377399996,190306611.23800001,3451547.8808200001,217761607.23041001,null,6,114,180,522,86,23,47,978]
[356,"Stockport",24725245.840000007,183244054.28999999,25821751.479298498,187923302.64933297,27135500.455200214,191765749.86119133,27504381.59179429,194628000,null,149187536,22012239,0.14754743988800781,0,0,149187537,null,22384260,6599647,0,0,780462,3204427,35857,4866847,1772253,0,0,4629167,null,0,495600,191605001,0,615639,490347,69493,2153107,619,638,5940834,22026770,6057946,0,406620,3311528,4649102,1810269,0,0,0,5790000,null,1305,0,188163296,0,631478,496491,70366,2180155,612,5790000,16728465.23,975878.68,3301350.84,1910502,3032605.89,0,7297261.1200000001,0,0,209866,1000.7,0,169610518.86000001,640162.79,498687.18,0,70695.25,2658181.04,17198144.026460003,293463.18255999999,3529236.7836199999,2318058.9134499999,3935447.4762900001,0,7112492,0,0,9445.6705399999992,null,0,0,185638771.99998999,649205.31076000002,441449.87125000003,0,108461.73964,124511.50215,3173957.9372999999,214730.28618,0,15889725.276509998,337065.00154999999,3561323.8037899998,770140.74522000004,4408504.9182200003,0,6399637.1246499997,249441.88589000001,0,33993,0,123850,0,0,0,5768.7971900000002,0,0,0,182302977.28093001,664824.06157000002,500233.76114000002,0,111842.62589,141091.57365000001,3053549.5836499999,105979.20004,0,14350224,508746,2360860,1168532,3972148,0,5946367,227351,0,32936,0,113208,0,0,0,5881,14195,0,170170359.40000001,670561,443370,0,101547,125053,2941362,111949,null,25023810,6405446,0,1209727,2782523,5177990,1980969,0,0,0,7467155,null,0,0,171868242,0,874224,558283,74076,2627064,225739,137096,22357113.940000001,11076408.5,7561309.4400000004,432744,3286652,185099561.81,2423553,199079362.81,25018764.990000002,13021778.74,7450861.25,550589,3995536,198109583,2865827,213496763,25064872.419999998,12907444,7332194,536118.69999999995,4289115.72,192570781.83000001,3282723.39,208867946.62,22297556.380000003,9855858,6673147,674481.62,5094069.76,191143364.44999999,3023731.59,206108582.56999999,null,74,95,148,445,60,66,42,930]
[357,"Tameside",13324363.969999999,167352437.78,13814117.182410726,171084619.82560286,14794189.260798484,175226911.51863366,15001396.392643152,173687000,null,143531625,5678169,3.9560403499925539E-2,461756,0,143993381,null,14904930,4870701,0,0,542033,3381345,0,1559541,139310,0,0,4412000,null,0,0,174549954,0,461250,210610,64730,1253520,339,339,3390000,12547802,6974086,0,0,780000,3632000,129549,0,950326,0,5681,null,76160,0,188753361.5,0,461250,210610,0,861290,500,4830000,10483480.98,1754499,0,0,915000,0,7806569.9800000004,0,0,7412,0,0,146212794.88999999,682710,405900,0,73186,1048841,10380895,1732468,0,100000,915000,0,7629827,0,0,3600,0,0,0,154856106,733610,385236,0,62520,0,1345430,0,0,11489359.199999999,2080069,544724,338250,711690,0,6713640.2000000002,208840,0,27020,0,550650,70330,0,0,10800,0,233346,0,163900841.20021001,544725,338250,0,75130,0,1095110.3999999999,0,0,11758639.699999999,2029000,820000,544000,180000,980000,6420669.7000000002,203190,0,26720,0,535060,0,0,0,20000,0,0,157918665.69999999,590000,385000,10000,65000,35000,0,0,null,14834298.200000001,5438208,0,588295,2688937,1372975.24,133882.96,0,382000,0,4230000,null,0,0,135584577.27000001,0,453925.19,207946.67,138590.85,1216547.67,102808.47,0,16012872.560000001,5150628.66,8589135.9000000004,280386,1992722,151324270.71000001,1285045,159577134.71000001,14871834.4,5322250.54,8350550.8600000003,326938,872095,152792187.16,1139002,164382826.16,14927079.859999999,5819783,7866802,325597.86,914897,162480275,1192766,180769455,14982977,5662189,7838369,702031,780388,169858680.53,1115012,195088012.74000001,null,17,59,106,408,23,82,56,751]
[358,"Trafford",21961200.870000001,167352184.04000002,22875748.276186939,172057741.0796442,23336859.427353714,174743394.24970323,23578136.503071532,174727000,null,140635069,4425247,3.1466170077393711E-2,0,2800000,140635069,null,21650171,7610209,0,0,803477,4944603,422688,2055518,483676,0,0,5330000,null,0,0,170199431,0,390013,446458,84840,2154439,589,589,5778000,23243297,14581700,0,1717708,4440766,2019503,483620,0,0,0,0,null,0,0,171727382,0,418935,611669,86448,1971527,596,10999868,17062329.079999998,2812451,632888,0,4086770,64674,9464522.0800000001,0,1024,0,0,0,146847775.63999999,490566,457594,0,81828,2825217.35,11410343.866799999,2138724,583183,0,3730145,66542,4791749.8668,0,0,100000,0,0,0,84109547.784020007,467808,379672,0,75707,17496,2715130,30838,7136,16194154,0,2602714,0,4365005,0,8558813,238953,0,32191,0,222683,31757,0,0,142038,0,0,0,179652094,542325,402081,0,68059,17553,2945497,24508,5671,15637720,0,2616402,0,4258744,0,8243560,243575,0,32104,0,187676,30277,0,0,25382,0,0,168365529,534088,415060,0,65798,0,3039575,31143,null,23807804,7916289,0,1889066,5472215,1952836,304253,0,0,0,6273145,null,0,0,121275558,0,450929.68,563180.19999999995,114421.03,1617735,215059,0,20533921.879999999,6493837.2699999996,9673712.6099999994,505678,3860694,131802894.77,3081147,142434712.77000001,21215292.82,7275394.2400000002,9356223.5800000001,992250,3591425,153482200.30000001,3059679,165324899.30000001,20891861,6842005,9150923,987712,3911221,160064065,3408774,177086256,20702026,6859458,9093407,267358,4481803,177386706.69,3233835.3,196391256.81,null,92,6,56,485,75,14,33,761]
[359,"Wigan",22424383.179999996,222183831.87,24197501.851754326,227471972.19087914,25601486.773435127,229891524.39993903,25998093.129409183,229121000,null,189458916,14740244,7.7801796353569347E-2,0,300000,189458916,null,22833584,9174075,0,0,246272,3685076,150052,2885926,312183,0,0,6380000,null,0,0,231827205,0,852241,1146276,54017,4817687,651,685,6708333,24628583,12231701,0,246272,1502132,2199085,317393,0,0,0,8132000,null,0,0,231962760,0,945763,535716,60535,5389432,702,6969757,18256380.5,1937046,2229659,317764,1510123,0,12241788.5,0,0,20000,0,0,222840871.12,899007,690013,0,51717,3827204,17482190,530833,2289504,297524,2012840,0,12202090,0,0,7769,0,0,141630,230731530.16666001,938913,327445,0,45989,215448,3233365,83756,67959,17253979,514019,2087808,138089,1964231,0,11667497,267988,0,33039,0,411592,9178,0,0,16982,0,0,143556,230465515.90000001,979566,941513,0,44175,808335,3999398,89277,50802,16903097.719999999,502860,2084531,137986,1652381,0,11503637.91,303117.81,0,37264,0,372913,28855,0,0,127596,0,151956,217923470.19999999,958634,972263,3100,146876,959533,3411478,58769,null,22780154,9463018,0,300694,1552637,2400906,0,0,0,0,8762899,null,300000,0,202913438,0,769981,695238,46615,5308026,47046,25334,25414634.619999997,9794738.2699999996,14102265.35,58330,1459301,231808866.94999999,4933931,249731440.94999999,25847952.379999999,10043249,13949770.4,95889.41,1759043.57,247383300.34,5268578.76,268016619.21000001,24952425.330000002,9307906,13897832,73442.05,1673245.28,246786244.97,4212290,276678963.16000003,25430349.829999998,8895156,13660436,1236085.54,1638672.29,238490887.96000001,4311962.47,274324175.75,null,0,52,193,560,137,60,33,1035]
[370,"Barnsley",16086950.000000002,151759769.11000001,17433538.427922953,155469454.69828176,18378605.237461243,157683204.42365918,18601254.550560497,159541000,null,126209911,15024041,0.11904010454456307,0,0,126209912,null,16290858,8893097,0,0,959996,2077708,0,1095057,0,0,0,3265000,null,0,0,158374393,0,533222,715727,90623,742087,353,383,3705000,17731701,8676980,0,551733,2943716,1269232,0,0,0,0,4290040,null,0,0,157618250,0,390433,373963,95286,640510,449,4290040,10960901.76,687184,1467880,877632,2292516,0,5608912.7599999998,0,13177,13600,0,0,158614700.31,385177,322315,45000,94038,261978,11090754.35,1118390,872680,599504,3497165,0,4987660,0,0,15355.35,null,0,0,158256187,439339,395864,0,110159,0,1591981,46933,15645,10542990.424529999,1039043,0,2111399,2721610,0,4325394,92197.924530000004,0,14961.5,0,216787,21598,0,0,0,0,0,0,157777978.42155999,621244,302320,0,129800,0,1647163,0,0,10377752,948320,0,2200840,2746678,0,4226073,93712,0,14792,0,128754,18583,0,0,0,0,0,152548636,618182,292450,0,128650,0,1599025,0,null,18181434,9469424,0,1387320,1876568,1014987,0,0,0,0,4433135,null,0,0,140364239,0,502104,401639,74853,666473,35127,0,17744750.509999998,7864583,6822584.5099999998,1109110,1948473,166775658.66,655682,198620226.66,17396350.34,8342996.2800000003,5884227.0599999996,1025570,2143557,170765487.43000001,600142,198176368.43000001,16628053,8948239,5191026,9338,2479450,164367959,1587750,187526020,17300020,8761851,4999149,703384,2835636,160975166.81,1591332,186330948.81,null,0,109,158,274,75,218,107,941]
[371,"Doncaster",25099364.650000002,209566343.83999997,26319292.957120165,215639733.6411905,27535648.398698483,220253845.92007264,27842695.679394029,222304000,null,175236063,13383782,7.6375728664938108E-2,19,0,175236082,null,21829110,6999790,0,0,1158010,7563990,0,855840,181480,0,0,5070000,null,0,0,222452500,0,652100,461880,0,3267310,507,507,5070000,22897544,7947587,0,965937,6960950,691600,181470,0,0,0,6150000,null,0,0,217854206,0,653130,365930,51260,3115330,643,6150000,17586837,439740,743360,181470,6741310,0,8959920.7899999991,283294,0,237742.21,0,0,168479550.66,628940,381040,0,102000,3560580,16155358.55517,323950,487610,145610,6029530,0,8868769,267037,0,32852.55517,null,0,0,208870966.00001001,582110,406990,0,64010,58700,3450550,9460,0,14034480.476780001,323950,550160,161860,3854965.7,0,8311521.3300000001,215000,0,27665,0,283619,17530,249740.43,0,23002.213500000002,0,15466.80328,0,220273541.02500001,508444.42657000001,351913.00016,128935.63333,103784.09776999999,98581.657709999999,3355807.9988199999,9061.0012800000004,0,12420018,317550,644155,194905,2418106,0,7992697,215000,0,27776,0,174175,19016,235510,0,137940,43188,0,211612118.5,601750,378194,135196,106854,143200,3219687,197506,null,22390008,6976417,0,1263725,7375611,702243,178012,0,0,0,5894000,null,0,0,136473408,0,542001,562691,0,2869098,225587,0,30764110.030000001,12941278.359999999,9386450.6699999999,65096,8371285,159298008.19999999,2859922,181297897.58000001,33353183.949999999,17068410.789999999,9229690.1600000001,14828,7040255,197804312.16999999,3289051,223535757.16999999,31331668.600000001,15151285,9303913,40522.6,6835948,225057768.66999999,3171591.73,249704157.33000001,21488420.43197,8502343,8928721,56281.041969999998,4001075.39,225793573.29967001,3093914.8994999998,259070088.25803,null,12,40,239,464,96,64,36,951]
[372,"Rotherham",18721796.080000002,208916725.5,19263137.15964625,213845527.65544957,20549574.312072117,217917323.15843421,20859661.969857693,217024000,null,179022739,14933860,8.3418788492561277E-2,0,0,179022739,null,19159037,7030299,0,0,227000,2695748,0,1871538,162612,0,101000,7070840,null,0,0,219829713,0,639989,295847,76965,2139639,620,620,6200000,18475075,6435196,0,23317,3907751,2479069,162612,0,0,101000,5366130,null,0,0,219384114,134500,684287,223626,106337,2264842,680,6156130,14350192.92,2166458,1336000,10000,954501,101000,9460688.7300000004,263429.19,0,58116,0,0,196336402.96000001,796995.22,171681.14,722509,100245,2712239,11382613.88387,443906,1650029,151581,2728519,0,5213263.6840199996,272368.19984999998,0,885250,null,37697,0,142238157.85620999,565459,134040.72,1118534,102383,24371.040000000001,2810239,14111,0,14616500.132140001,499310,1450885,163206,2804537,101000,8777994,252597,0,31926,0,471407,12864,0,0,13470.71629,0,37303.415849999998,0,218932960.87,686909.59088999999,400709.76461000001,0,111513.17739,58457.52,2981553.9811800001,14111,0,14576843.48,582912.11,2318811.11,232353.5,2183266.7799999998,102000,8588873.3100000005,248898,0,31324,0,202467,18763,0,0,5362,61812.67,0,219357500.40000001,810675.82,335257.75,25190,133181.18,105662.07,2629602.88,49512,null,20012386,6530744,0,50508,4213702,2293591,0,0,0,101000,6822841,null,0,0,176441588,60000,452958,265318,105103,2224326,0,0,24008076.670000002,9599777,11313800.67,1858696,1235803,211835826.41999999,0,230282635.41999999,22634288.060000002,9885302,10685184.060000001,2063802,0,209953409.97999999,0,234165361.97999999,21562947.010000002,10712588,10635772,214587.01,0,248959591.90000001,1675293.96,271591270.52999997,24166215.108820003,11097754,10348432,1240651.2588200001,1479377.85,237238855.74272001,2388749.4946400002,266727905.38427001,null,40,34,128,537,107,119,62,1027]
[373,"Sheffield",47115258.427848302,350716162.5,49588765.307295531,363630478.16295099,51794405.005261227,372196066.08962667,52484610.031051181,378062000,null,287253058,44472252,0.15481907245701107,15575,0,287268633,null,43629339,15862838,0,0,3335021,1942761,0,4132497,4806484,620000,2839139,10054167,null,36432,0,404752655,92711,1211551,734185,108516,2586448,1103,1126,10880166,43027318,15752634,0,2249579,2062761,3796842,4278925,320000,0,2801371,11718750,null,46456,0,395632020,89829,1234694,750028,196101,2229042,1218.8699999999999,11718750,36607821.170000002,1700070,3451877,3896033,3174633,3928379,20320529.170000002,0,0,53416,82884,0,408368217.79000002,1392183,608860,97705,213297,2778443,33566708.047090001,1263527,4389902,5733700,2047751,0,18742520.047090001,0,0,1240769,null,148539,0,401936610.79576999,1759949,1390596,122002,296853,166338,4621460,7366,0,32694575,1174211,4478949,5283020,2099383,0,17318558,466302,0,53952,0,417876,95041,0,0,1167763,0,139520,0,402173821,1722889,641827,119048,302803,174128,4698331,6970,0,31054165,1183828,4575853,4692570,2144564,0,16487582,452398,0,55448,0,295770,92789,0,0,935812,137551,0,378702490,1600871,639176,114600,257740,178186,10173473,6823,null,45612287,16048976,0,1911901,2663181,3868153,4708589,918784,369475,3240390,11716964,null,165874,0,313535900,82386,1221108,687876,193718,3334356,75631,75631,48807844.640000001,17011932.050000001,22853288.59,5350692.7,3591931.3,415236482.42000002,2839373.8,456649305.32999998,46482947.979999997,18927425.629999999,20591291,3538083.04,3426148.31,465429346.31,4612859.28,522746174.64999998,41968900,13144745,19955576,6240325,2628254,477968479,5510075,575862492,38838822,12206228,19264966,4885275,2482353,453523194.57999998,10827333,544586003.58000004,null,12,189,340,901,133,178,87,1840]
[380,"Bradford",44302485,442578375.75,47198990.522733361,459764945.25290895,49646227.012680836,471785685.27696937,50147509.941342533,492424000,null,374948329,36785792,9.8108963702035867E-2,0,488523.82,374948329,null,46237759.850000001,19254336.600000001,661560.1,0,5656432.3300000001,4594129,583623,9061455.4900000002,428700,0,0,5997523.3300000001,null,0,0,506406210.60000002,0,1202059,1322153,102060,7020527,584,608,5997523.3399999999,46548618.909999996,19365058.289999999,0,1341536.79,4754426.07,10740765.970000001,328677,0,646154.79,0,9372000,null,0,0,484412063.44999999,0,1278859,1299353,99260,7267227,1228.5700000000002,11938092.120000001,29687458.219999999,4688676.79,3112777.8,110400,4997143,0,16752880.310000001,0,0,23001.439999999999,2578.88,0,461264558.63,1278359,1481189.75,0,98812.1,7532927,28090803.919840001,3154969.68,3727065.5487899999,100000,4619783.4421199998,0,15789459.28679,0,0,696750.96213999996,null,2775,0,459056058.46043003,1171880.97111,1087666.7018599999,0,397593.83373000001,119242.11516,9879857.6143699996,0,0,27549719,1840016,3727067,100000,4268033,0,14637988,290480,0,39526,0,324718,297314,0,0,2010324,0,14253,0,452625979,1245759,1134065,0,332388,149359,10343183,0,0,26335058.84,402700,3872684,100000,4447602,0,14391755.82,427706.02,0,57332,0,427727,208282,0,0,1985017,14253,0,431879421.19999999,1188533,925807,0,367809,138202,6664559,0,null,42941819,15701130,0,3634789,4316796,10385645,353875,0,646155,0,7903429,null,0,0,415819109,0,1198486,1363714,93478,7381210,0,0,55792033.719999999,30807620.350000001,17562378.370000001,2978660,4443375,469783975.77999997,6802432,503108648.77999997,54481341.670000002,31364141,17099526.670000002,2609898,3407776,475635242.44,6040359,513766413.44,54492073.260000005,32166023,16721297,1877023.63,3727729.63,473607716.33999997,5889852,516799468.10000002,51632689.479999997,30965211,16657767,1431402,2578309.48,460026398.92000002,5462262,517718753.75,null,116,143,307,774,247,74,85,1746]
[381,"Calderdale",17863855,163457229.97999999,18620019.883283664,166752354.11024699,19230486.393011585,170757068.65081295,19466929.272952501,169512000,null,138127178,14961376,0.10831594633751224,108396,0,138235575,null,15237192,6890262,0,0,1328548,484000,0,1022694,2417488,0,0,3094200,null,0,0,169676606,0,439368,169540,84575,1625013,270,270,2700000,14987992,6953844,0,1264967,484000,772694,2292487,0,0,0,3220000,null,0,0,170275674,0,435872,168228,88020,1630797,335,3220000,13522934.57,3721706,144986,2105611,2220221,0,5161825.57,163488,0,1172,3925,0,135245801.53,428632,164793,0,99440,1780938,11084858.5,1151880,185757,2257159,2220221,0,5104123,105206.5,0,57171,null,3341,0,167510125.88999999,411000,55511,0,66751,0,1689438,0,0,11508442.221650001,1354412,560684,2334303,2301540,0,4475601.2216499997,136612,463,17341,21,153666,17498,123463,0,29453,0,3385,0,170128293.87605,426033,141860,0,78840,0,1846200,0,0,10597382.26,1301371,494747,1922847,2291894,0,4124086,124560.26,0,17040,0,162136,16869,121780,0,16599,3453,0,174276658.90000001,391030,137940,0,78870,0,1792400,0,null,15862110,6811691,0,1048023,469936,976719,2405539,0,0,0,4150202,null,0,0,115821646,0,450502,162511,79611,1607998,0,0,18556564.070000004,10848655.59,5616721.4400000004,851542.51,1239644.53,131625359.40000001,1525602.8,146101038.93000001,21369063.490000002,13516254.66,5408748.8300000001,722651,1721409,147193927.84,1689438,161399937.84,25922861,17201563,5278046,1057840,2385412,181488474,1846200,198695952.61000001,22230845,14955449,4949795,59915,2265686,185206732.38,1792400,217580735.38,null,0,36,80,225,96,18,30,485]
[382,"Kirklees",28121574,311489538.84000003,28757692.320742615,319804269.51373243,29707841.286860801,325466872.32952964,30210113.632692438,326262000,null,266517707,26956456,0.10114320846982224,0,0,266517707,null,24105940,11625679,0,0,1185172,2943000,0,738211,890546,0,0,6723332,null,0,0,326625348,152519,1170466,306399,97000,3241795,778,790,7646100,28026146,11644066,0,1047931,2694810,1561536,3532303,0,0,0,7545500,null,0,0,318745736,153286,1220692,389903,103087,2828390,776,7536000,18048105.620000001,1593600,1096080,224907,2543834,0,12293550.68,261664.94,0,34469,0,0,288487187.52999997,1354480,440979,150700,128765,3129260,16408494,0,1093989,209906,2541834,0,12170423,280010,0,112332,null,0,0,318326299.83332002,1405827,269969,131886,152074,48200,2892791,194306,0,17781191,0,2100002,145366,2535834,0,11010621,250509,0,35848,0,390435,193543,278528,0,108985,0,731520,0,319800307,1880638,541367,115000,633317,50889,2958432,178988,0,16606711.439999999,0,1899965,141864,2403430,0,10860800,252559.44,0,36056,0,385112,195868,309196,0,121861,0,0,310240912.39999998,1801966,468020,110000,234585,67648,2914816,125313,null,29385223,13702242,0,1382497,2622147,724975,959579,0,2448283,0,7545500,null,0,0,267427792,0,1070017,392061,98806,3703687,0,0,29846076.109999999,13187960.52,13355796.59,728643,2573676,302143194.39999998,3494130,344127932.39999998,29638466,13595463,13004986,646999,2391018,320937821,2410750,363001479,30786693,14056612,12911454,732644,3085983,377919539,2446605,442854611,29804395,13820290,12721283,309500,2953322,352811245,2712416,425106448,null,0,188,112,648,65,134,47,1194]
[383,"Leeds",53542598.480000004,506959875,54211614.386640556,523727489.99111694,56902539.593291387,539350129.88218713,57899214.305536605,546429000,null,430397172,37054962,8.609480826235541E-2,0,1200000,430397172,null,46065002,18393254,0,0,2892000,6422710,3350000,2591660,2072089,0,0,10336739,null,0,6550,566430083,356604,1555899,1804807,203932,4743430,1023,992,10150046,47292038,22459913,0,1910576,7221610,2553710,2000650,0,0,0,11139029,null,0,6550,544737682,516332,1554441,1549619,266155,5030460,1127.83,11139029,27930387.23,5600556,158780,1176640,4165140,0,16786901.23,0,20000,2640,0,19730,496373038.74000001,156370,941630,358490,270050,5973650,25319120,3847532,156880,1144012,3662250,0,16483911,0,4500,11195,null,5740,3100,510681427.5,1723575,633850,194100,313231,287578,5919815,70857,637713,24216325,2920000,595840,315180,3406720,0,15250870,292144,0,35106,0,875250,224325,0,4310,264000,0,32580,0,529728520,2014890,344130,195000,369860,759620,6543249,77357,696213,23248476,2866540,551220,667250,2980720,0,14429338,287974,0,34236,0,835015,144843,0,2770,410000,38570,0,513528336.69999999,2046340,344130,0,376210,731860,6354410,665540,null,41563802,20007188,0,1685511,7407055,2503200,1967864,0,0,0,7986434,null,0,6550,448303439,121662,1488938,1444389,242295,7025163,358268,511910,88856104.549999997,60710274.530000001,22397095.109999999,1161596.72,4587138.1900000004,526767773.81,7490348.8700000001,572547283.65999997,55199330.609999999,29844178.260000002,20780392.100000001,813146.25,3761614,546338482.64999998,6876449.7699999996,591175317.45000005,56046279,30815282,20251428,1629777,3349792,574703287,6036708,621485389,54680779,30201479,19430414,1988599,3060287,563471534,6277184,637587765,null,0,187,154,807,250,67,104,1569]
[384,"Wakefield",21118307.59,231292691.97999999,22570369.528846644,237103222.7415432,23564043.250109356,241282355.87359536,23851960.815812312,240272000,null,197842028,14986082,7.5747717264604664E-2,190,100000,197842217,null,22793409,8051629,0,0,2259742,1790383,100000,6105587,546550,0,0,3939518,null,0,0,249607170,0,776330,719377,120677,2888413,457,457,4570000,22107024.509999998,6565525,0,680329,2124155,5511668.0099999998,513817.5,27467,0,0,6684063,null,0,0,239688673.38,0,910550,605190,186140,3374230,537,5212000,19073356.449999999,2168844,5469359,502328,596750.01,0,10325545.439999999,0,0,10530,0,0,192039175.19,929940,595060,0,205310,3571030,18074461.287999999,811310.28799999994,5319393,224070,1276280,0,10425646,0,0,17762,null,0,0,202670064.28799999,829710,629810,0,265740,0,3625390,476070,0,18201933.571880002,1133075,4089069,1688256,1074157,0,9247716,247320,54944,33993,3618,611085,5844,0,0,12856.57188,0,0,0,236547793.75674,993533,0,0,67406.09,0,3431008.63,427421.63,0,19213819.800000001,945431,4056428,1674044,1288200,0,10474474.800000001,234699,32251,33820,3544,461530,5358,0,0,4040,0,0,230608687.59999999,783066,151024,0,590473,0,3689966,0,null,24162656,8212608,0,2902945,1855824,5869453,553952,225125,0,0,4077172,null,465577,0,129719730,0,786339,625890,54388,2198811,246142,91975,17914744.09,6179894,10532085,13620.41,1189144.68,180812822.25,0,207953444.50999999,18140749.949999999,6909783.9000000004,10456608.6,17408.990000000002,756948.46,202657911.50999999,433215.6,230292091.72999999,19791870.07,7833553,10602287.57,233876.56,1122152.94,243208805.13999999,0,282511912.41000003,19125253.84,6753328,11040307,178269,1153349.8400000001,247326351.24000001,0,289680183.46091998,null,0,119,84,394,81,102,85,865]
[390,"Gateshead",18204932,129537011.52,19941971.951573212,133142688.15540177,20737265.636567689,134817317.8417089,20917870.574169975,132840000,null,102556698,7901511,{"$f":"M71/L71","v":7.7045294496513525E-2},71895,0,102628593,null,19771746,7195620,0,0,1581493,2630302,0,3134591,596936,0,0,4632804,null,0,0,134776204,91938,369092,28172,52216,1646817,372,372,3792815,20092435,7851476,0,1516292,2138632,2875463,676572,0,0,0,5034000,null,0,0,133033657,91938,371556,72492,52216,1531982,449,4304000,14884234.51,2960391,216297,1605954,1641112,0,8460480.5099999998,0,0,0,0,0,108309204.20999999,378508,315331,91002,52216,1459030,14977022.578710001,2689538.1801900002,189012.57256999999,1738570.97331,2020808.8526399999,0,8339092,0,0,0,null,0,0,141812564.34990001,447231.09026999999,184842.48514999999,129782.93520000001,52942.498899999999,0,1356489.3081700001,0,62648.691290000002,14804608.807819998,2566359,1294901,1510204,1440068,0,7323591.5855799997,244027.22224,0,31926,0,338587,54945,0,0,0,0,0,0,139632784.63705999,536433,226455,168106,52872,66287,0,123128,0,14156334.83,2235652,1287885,1188406,1628134,0,7178511.8300000001,239008,0,31272,0,332872,22400,0,0,12194,0,0,133309395.8,628581,338934,192045,53558,179078,1405974,145839,null,23099907.93,7645916.5,0,954993.14,2361578.6800000002,2701916.17,642027.43999999994,0,0,0,8793476,null,0,0,104078620.34999999,0,374972,0,48606,1363735,223282,0,14891319.92,6611396.29,8191469.6299999999,88454,0,111794004.23,1668771,135561348.22999999,16462468.57,7888976.0999999996,8519511.4700000007,53981,0,142049692.59999999,1518732,165959874.59999999,19057698.729999997,8547473,8544918,462443.49,1502864.24,148831047.66999999,1281815.3,175827409.11000001,17983209,7576753,8191350,665486,1549620,149977817,1375726,179797306,null,120,36,48,448,51,21,59,783]
[391,"Newcastle upon Tyne",26031763.310000002,179808051.40000001,27456615.721606076,187603300.67435166,28591080.00872523,191736665.75985357,29934508.171359625,192834000,null,144890094,12986630,8.9630903269342893E-2,0,2232094,144890094,null,{"$f":"SUM(T72:AG72)","v":27831220},5673870,0,0,376600,3699740,0,4757860,217000,0,0,13106150,null,0,0,196992330,371940,678170,389280,0,2285120,571,586,5797500,{"$f":"SUM(AR72:BD72)","v":17293938},8397281,0,1658567,3597000,3424090,217000,0,0,0,0,null,0,0,161985358,183210,662630,180270,42000,963910,771,7242000,{"$f":"SUM(BN72:BX72)","v":19416678.469999999},3244230,1968570,358000,2166830,0,11674054.470000001,0,1585,3409,0,0,169609120.08000001,800630,177050,539090,99000,1211910,{"$f":"SUM(CF72:CQ72)","v":18549776},3885251,1163660,220941,1879470,0,11330583,0,1475,66799,null,1597,0,181622941,1160396,55950,0,99815,21635,1772810,48113,88835,{"$f":"SUM(DB72:DS72)","v":18800864},3118030,2022012,0,2166830,0,10156236,254800,0,33283,0,512383,57385,0,1376,477040,0,1489,0,190341065.84667,1184425,855,0,69149,37291,2115158,52291,92962,{"$f":"SUM(ED72:ET72)","v":18413187},3279270,1793030,0,2184870,0,9804403,225620,0,28712,0,493817,43502,0,0,558435,1528,0,182601829,1023480,15980,0,74340,42620,2121550,145510,null,{"$f":"SUM(FE72:FQ72)","v":23717049.869999997},5972701.8899999997,0,430906.41,4404979.8,3746813.93,195651.64,0,0,0,8965996.1999999993,null,0,0,150383780.02000001,258945.71,796076.02,549440.77,20711.84,2055227,216075.21,304012.79999999999,{"$f":"SUM(GA72:GD72)","v":18533072.010000002},1690943.38,12958758.630000001,1501916,2381454,171925473.19999999,2577009,194352755.19999999,{"$f":"SUM(GI72:GL72)","v":22203428.050000001},6635282.0800000001,12018533.970000001,1221611,2328001,188467323.91,1991324,211903546.91,{"$f":"SUM(GQ72:GT72)","v":19455818},3855032,12111349,1054777,2434660,203157190,1971159,231693588,{"$f":"SUM(GY72:HB72)","v":21571451},7185850,11557371,787009,2041221,194659255.11000001,1959996,246545171.11000001,null,143,24,194,763,72,113,33,1342]
[392,"North Tyneside",15865271.933577064,133776532.89000003,16101187.748301899,136805527.9124456,16566339.235306313,139911919.12231311,16763707.152393483,137823000,null,109301646,8489737,7.7672544839809635E-2,426185,0,109727831,null,14998937,5230040,0,0,356760,1057341,0,3058310,194616,0,100000,5001870,null,0,0,146875964,169374,292209,366355,35462,1779678,493.2,493.2,5001870,14930243,5244057,0,230000,1542290,2224034,258202,0,0,100000,5331660,null,0,0,145587762,342974,358985,371929,35462,1574444,540,5331660,11623120.84,60454,54761,161159,1609789,0,9686694.8399999999,0,20000,30263,0,0,140282505.19,385487,591945,0,35462,1549739,11370467,0,175382,249872,1472132,0,9439150,0,4608,29323,0,0,0,146529582,475501,270620,0,35462,54933,1290261,143897,0,11858287.31151,0,648432,260532,1472132,0,8551758.4915500004,213640,0,26923,0,393654,264669.81995999999,0,3331,23215,0,0,0,144262398.53246999,551280,255609,0,35462,123117,1200261,148664,0,11409101.68,0,873909,617077,1472132,0,7690505,207711,0,26060,0,315653,182322.68,0,4464,19268,0,0,137213815.80000001,617684,293009,0,37831,167241,1301009,148664,null,16224635,5738160,0,447447,1127354,3367146,114298,0,0,100000,5330230,null,0,0,136745968,347722,338292,318328,35462,1562070,150814,150814,25196696.539999999,12807254.92,10949162.619999999,326766,1113513,146858177.03999999,2003514,161349935.03999999,25221612.469999999,13153714.710000001,10446123.76,399090,1222684,149451952.74000001,1625942,168273522.74000001,25516304,13512200,10080809,451163,1472132,148725601,1469382,171264060,23272055,11980592,9568591,268672,1454200,145163707.09,1477115,176445830.09,null,0,168,60,440.20000000000005,57,29,26,780.2]
[393,"South Tyneside",14127080.07,107354781.09999999,14995690.437043618,109054378.5185145,15839242.825972674,110144781.28312683,16169808.598737622,108848000,null,83272719,7315527,8.7850223792980742E-2,0,0,83272719,null,14318354,4694650,0,0,577000,3231342,124000,1364162,27200,0,0,4300000,null,0,0,111255919,0,536200,451346,43724,717692,421,421,4300000,13749161,4388858,0,0,3533807,1342928,253568,0,0,0,4230000,null,0,0,109231597,0,505500,507680,50287,891271,430,4230000,11516318.91,1206877,227100,822100,3024278,0,6226220.9100000001,0,3534,6209,0,0,112522968.3,562092,463535,0,45903,978335,10008498,1076093,281553,764066,1475593,0,6397767,0,0,13426,null,0,0,105990623,781128,561569,0,45888,0,1090440,193694,116102,10467685,1279845,187253,797065,1353737,0,5736300,237904,16560,32297,1809,672180,28946,0,0,123789,0,0,0,113959927.7,973300,558711,0,47486,0,1091635,200821,0,10685094,1433172,197316,751707,1627522,0,5653019,235175,21676,32312,1772,581860,49563,0,0,100000,0,0,112680353,712924,402022,0,45840,0,1019306,180000,null,13641456,3935266,0,0,3848869,1344574,282747,0,0,0,4230000,null,0,0,100296948,0,523990,453397,47744,827365,175018,171041,17058093.899999999,8978799,7019021.9000000004,192336,867937,116546098.81,756777,128798717.81,16894543.600000001,8979911,6983349.5999999996,344674,586609,117112040.91,870064,131707060.91,17331838,9223820,7026196,254676,827146,119956295,991341,141619160,17480815,8770304,7299196,275162,1136153,119015350,1085596,139849375,null,103,20,35,405,39,48,68,718]
[394,"Sunderland",20937208.379999999,193614822.95999998,21453480.084231053,196278498.52645344,23047274.670368347,197911269.3482835,23268951.47947704,195990000,null,157633554,12888941,8.1765212246626126E-2,928738,0,158562292,null,17926429,3277461,0,0,4044467,894665,40570,1458644,2013955,0,0,6196667,null,0,0,200477321,0,808103,335510,121448,1487468,300,305,3029167,17172754,4320722,0,2611594,881633,1110757,1485381,0,0,0,6762667,null,0,0,200034983,0,367406,269018,79812,1855383,452,4216000,14399295.93,1759540.73,114640,899763,846921,0,10778431.199999999,0,0,0,0,0,184716997.19999999,397053,319567,0,80661,1903114,13770208,368383,131279,1291924,953969,0,10964811,0,0,59842,null,0,0,194649575,662107,289178,60040,77027,118918,2000096,37995,215305,13158302,425872,0,1126083,937198,0,9873972,280457,0,37247,0,409448,12900,0,0,55125,0,0,0,194145921,950740,428971,137249,87266,354445,2032908,153888,89494,12806565,424775,0,1049484,948286,0,9570271,294695,0,36484,0,331152,15821,0,0,135597,0,0,188159746,928770,434319,140034,91204,367573,2025554,248071,null,15374688,3367046,0,3462820,1479041,987871,2320542,0,0,0,3757368,null,0,0,35773858,0,390593,287044,162065,1527988,492902,188862,20397562.509999998,10229198.73,8879948.7799999993,257497,1030918,177576253.84999999,2291934,192013421.84999999,26533652.259999998,13680637,11711204.26,314486,827325,200293790.25,2084009,220239549.25,24700396,11484658,11763606,474758,977374,212921666,1971418,239585377,23964404.93,11100545,11632135.93,305666,926058,218606938.38,2037389,264211414.38,null,116,64,179,531,132,95,82,1199]
[420,"Isles Of Scilly",null,null,null,null,null,null,null,null,null,2514447,158702,6.3116064884246911E-2,0,50358,2514447,null,154949,52099,0,0,90850,5000,0,2000,5000,0,0,0,null,0,0,2790654,0,5000,22123,0,3500,0,0,0,180000,63000,0,60500,36500,2000,18000,0,0,0,0,null,0,0,2824670,0,5000,26998,0,10500,0,0,231965,145598,66367,0,20000,0,0,0,0,0,0,0,2851168.15,6600,37242,0,1000,10500,58584,0,0,58584,0,0,0,0,0,0,null,0,0,2705728,4600,4000,0,2000,4000,12400,0,0,35364,0,0,35364,0,0,0,0,0,0,0,0,0,0,0,0,0,0,0,2749645,4600,4000,0,2000,4000,11000,0,0,62740,0,0,62740,0,0,0,0,0,0,0,0,0,0,0,0,0,0,2869560,4600,1850,0,1000,0,1000,0,null,137363,64195,0,0,72795,373,0,0,0,0,0,null,0,0,2780333.2,0,7985,22021.27,700,8350,0,0,{"$f":"SUM(GA76:GD76)","v":172333},140598,0,0,31735,2941186.52,10533,3615427.52,65244,29394,0,0,35850,2830410.66,8558,3434900.66,23188,0,0,0,23188,2831046.74,9094,3528497.74,0,0,0,0,0,2727618.75,10622.55,3803928.97,null,1,0,0,0,0,3,1,5]
[800,"Bath and North East Somerset",13889976,114231149.68000001,14727746.294372231,116848594.30397807,15456136.155240862,118333781.3843769,15759812.380478462,119274000,null,88659930,8094027,9.1292955002333073E-2,1976457,546000,90636388,null,17858929,3908774,0,0,3621474,4241571,607870,765157,723493,0,0,3990000,null,0,590,120237766,0,492353,318241,374283,1976367,21,22,215833,15685940,5463308,0,1645671,5895559,693630,291890,0,0,0,1690000,null,0,5882,117096404,0,361858,342860,301855,1854261,189,1890000,9342435,2025543,430745,596417,3055859,0,3227940,0,0,1697,0,4234,84536500.420000002,372658,472646,0,82364,1799188,14276695,4002047,787959,438310,3043923,0,5936961,0,0,61572,null,0,5923,116165716,363052,139326,0,99218,96028,2691938,116578,0,9692809,700473,428802,390638,2123591,0,5138521,170355,0,19090,0,215284,122730,0,0,362740,0,0,20585,129931989.78292,397592,171882,0,92973,110907,2635310,0,0,10071454.690000001,1060931.69,1145572.47,340167.49,2072908.57,0,4951520.51,156111,0,18548,0,198020,25709.56,0,0,97026.16,0,4939.24,123806955,483759.93,204314.96,0,107658.63,99320.06,2588216.7999999998,4732.8,null,16750588,4906450,0,2898508,4615401,881649,271033,0,0,0,3171667,null,0,5880,117860334,0,350744,299365,289626,1965794,154850,51617,12905148.27,5686652.4000000004,4595538.87,80017,2542940,90501355.290000007,1902456,102121945.29000001,14540552.23,6329602.1500000004,5574747.0800000001,49879,2586324,106029615.48999999,1747267,118353258.48999999,16581357,6724199,7415744,71321,2370093,134782134,1587312,153159291,16030886.82,6548292,7581778,106503.82,1794313,138254464.94999999,1752117,154775581.40000001,null,43,0,0,327,78,48,21,517]
[801,"Bristol, City of",36633540.169999994,262922655.75,40392198.590137467,278054266.08536887,42218604.207433753,286489737.24941111,42649480.981108382,302865000,null,215570705,31325586,0.14531467065527295,28305,0,215599011,null,36504056.780000001,14580585,0,0,1707208,7952834.21,0,2143537.5699999998,1151726,400000,0,8568166,null,0,0,298492247.77999997,156507.79999999999,779004.12,716095.12,57651.58,5619612,671,770,7077501,39667363,17573179,0,1607848,6432025,2061547,1172344,400000,0,0,10420420,null,0,0,274307600,186056,1248086,681500,58228,6583736,930,10989000,26117855.379999999,1198403,1494082,474265,5641226,0,17182445.379999999,0,0,127434,0,0,238283283.94999999,717638,634434,5471,54272,6842561,25874258,946471,953380,656122,5376539,0,16454798,0,0,1463189,null,23759,0,248762328,381460,379697,184516,55737,245670,6042783,100137,0,25075055.199999999,819785,922004,625517,5377560,0,15289479.199999999,369824,0,53136,0,674744,168674,0,0,769400,0,4932,0,242780797.20249999,399762,641894,322295,61978,273061,5484922,280290,0,23598511,720218,1011687,847433,5277595,0,14569481,384380,0,53980,0,573290,27954,0,0,127561,4932,0,233639078,583984.19999999995,492333,277332,56734,333555,6128851,205342,null,38588534,14747608,0,1651956,7482804,2590701,962087,700000,0,0,10453378,null,0,0,189078706,0,723168,811056,63352,5342761,60648,8818,40476732.259999998,14507410.199999999,19436321.059999999,1696200,4836801,253254636.06,5413477,276366190.06,43967418.640000001,18264684.699999999,19021223.940000001,1370743,5310767,270577479.62,5851852,293619158.62,44319644.210000001,18444366,17664384,2328691.75,5882202.46,327142738.02999997,6073508.3700000001,362192845.83999997,42114711.32,17581100,16894582.800000001,2065708.64,5573319.8799999999,363394058.5,5459216.0999999996,407487804.48000002,null,316,0,146,735,223,162,139,1721]
[802,"North Somerset",12249533,132616902.10000001,15276442.852834804,137425442.54754511,16705819.494723855,139867880.24958798,16948496.045055401,139335000,null,111270269,12928623,0.11619117232474742,110363,0,111380631,null,16106395,4773117,0,0,3876312,2586586,26110,1748147,462790,0,0,2633333,null,0,0,141409160,60250,468520,405650,54560,1397040,247,263,2593333,15918458,4684013,0,3127913,2208164,1891556,406145,0,0,0,3600667,null,0,0,139458544,60250,475810,418920,50950,1529030,342,3220700,7185011.8300000001,1220705,455514,848895,0,0,4496247.43,0,0,155727,7923.4,0,100332146.28,465780,427210,65250,50740,3836683,8956757,1308487,663660,597300,1729640,50000,4488966,0,0,86490,null,32214,0,130379365.83333001,475210,369420,66570,50200,89870,1576995,65280,0,6662520.4636700004,896074,556452,637300,0,50000,4034342,128343.46367,0,16705,0,225945,3914,0,0,81231,0,32214,0,133135447.49793001,457210,292140,16570,50120,85670,1535480,66210,0,8073021.9900000002,875280,530105,605870,1689673,0,3932358.76,124432.23,0,15636,0,202707,3886,0,0,55679,37395,0,129630122.8,456905,291993,16570,49410,84710,1668832,67665,null,16044205,4696044,0,3129030,2268144,1885424,404896,0,0,0,3660667,null,0,0,139458544,60125,489897,421541,50950,1570626,3707,0,21080037.050000001,13363877,4968271.05,645029,2102860,103667081.41,2173271,113638511.41,20558328.620000001,13498861,4934285.62,158951,1966231,121835144.67,2302364,132658697.67,18687296,11709009,4770894,116604,2090789,145603854.11000001,1310177,155732393.11000001,18265532,11512720,4659161,66019,2027632,140502815.11000001,1359315,152141493.11000001,null,28,0,142,228,40,391,84,913]
[803,"South Gloucestershire",22321100.899999999,168986885.78,24372637.838236593,173311073.79802901,25882871.797704268,175333789.54810733,26061699.180622339,186372000,null,133771819,15821599,0.1182730347712473,17818,910000,133789638,null,24441718,8513608,0,0,1457075,6877409,876975,205127,1271158,0,0,3967601,null,0,1272765,179332744,0,135306,245724,52614,3753471,383,398,3917500,22692609,8171464,0,1865160,5742211,189032,1032644,0,0,0,4419333,null,0,1272765,178440136,0,154307,257642,53554,4145604,494,4564505,17006109.32,1697000,91000,1082000,4133000,0,8677109.3200000003,0,0,35000,0,1291000,168222959.61000001,124000,247000,0,52001,3201000,13509746.67,871788,98000,1228000,2934000,0,7414958.6699999999,0,4000,19000,null,0,940000,178455785.13,362000,351000,0,80000,61000,3173000,102000,21000,10735865.136670001,207000,270000,1696000,2927685,0,4852959.1366699999,131097,2730,17394,0,240000,17000,0,3000,9000,0,0,362000,178339648.24340001,314000,469000,80000,83000,70000,3077000,136000,27000,9011149,91000,257000,1656000,1947559,0,4474350,128018,3000,16572,0,134170,23480,0,2000,8000,0,270000,179199333,357000,498000,79000,82000,72000,2871000,140000,null,23049778.34,7890238,0,1672736,6543899,176178.28,1038957.06,0,0,0,4455010,null,0,1272760,144993792,0,149897.21,245014.34,54085.599999999999,4349720.04,63059.27,68316.13,28100908.439999998,13009978.5,9866545.9399999995,1450879,3773505,176918542.69999999,3721768,190880670.69999999,27742956.949999999,13468208,7740868.9500000002,2895371,3638509,188520429.44999999,3997801,204254788.44999999,24409258,13761658,5407600,2118000,3122000,191114686,3134000,209478686,22569735,13266373,5012362,1776000,2515000,192377301,2836000,216186301,null,132,0,42,368,74,110,44,770]
[805,"Hartlepool",9533147,73044545.700000003,9898400.8078528084,74848176.438545108,10336754.92245486,76006298.780056208,10482019.786567051,74358000,null,60016083,5645676,9.406938470143078E-2,58,0,60016141,null,8540843,5369680,0,0,225200,690000,0,384486,121477,0,0,1750000,null,0,0,78063546,0,441119,78890,0,1056648,66,66,660000,7758470,4715862,0,0,590295,380285,121477,0,0,0,1922000,null,28551,0,76311159,0,384098,77412,0,1034368,235,1922000,7544476.6200000001,1882108,380285,121477,1011250,0,4115431.62,0,0,0,33925,0,79119251.480000004,293411,74880,0,49397,1098918,7375909,1980744,359250,149445,1000250,0,3837948,0,0,3970,null,44302,0,78602691,282668,97656,0,57083,0,1113718,6303,0,6131223,1744776,339946,133591,478091,0,3138044,83709,0,11926,0,159827,23862,0,0,6875,0,10576,0,77628594,415207,107733,0,56836,14031,1073339,6946,0,5696071,1628083,353435,164672,296383,0,2976172,77554,0,10494,0,132893,14398,0,0,9963,32024,0,73580873,386437,107306,0,57659,16324,1156417,5265,null,7596702,3076693,47159,907775,1567246,485873,121727,0,0,0,1361703,null,28526,0,68243575.879999995,0,325636,278810.21999999997,0,735659,170779,70321,9217453.6400000006,2744404.25,4601199.3899999997,758781,1113069,87146739.159999996,834812,94270009.159999996,8600549.5199999996,3032043.04,4042216.26,427416.96,1098873.26,84216687.670000002,947729.51,91623488.730000004,16093094,10766889,4047252,17055,1261898,84283891,996072,96300429,14372460,9671011,3786335,22143,892971,81878697,1031298,95194151,null,0,106,24,172,47,80,38,467]
[806,"Middlesbrough",16113938.000000002,97463815.120000005,17646531.010638468,103326191.92523681,18404296.486682892,105663068.99991225,19437170.063609291,119631000,null,75672114,9181989,0.12133913689790667,17034,1013600,75689148,null,17295135,6262152,0,0,1131465,1501775,1330504,1486074,190823,0,40000,5345834,null,6508,0,107290227.84999999,29869,324118,434243,25966,1194631,520,535,5287500,19140474,7458010,0,784395,1144358,1272836,270651,0,0,40000,8160300,null,9924,0,104184162,39591,323094,108443,23735,816700,603,5870000,11382943.42,1894382,563633,32848,1071307,40000,7701364.4199999999,0,0,0,79409,0,104345001.42,395175,251047,39727,23735,1115736,11357377,2339712,573492,44071,991499,42873,7225245,0,0,0,0,140485,0,104710874,378293,247033,39879,23955,23855,1716661,109156,27409,12208479,1719900,2297906,53364,876256,40000,6583611,167782,0,21390,0,276637,97740,0,0,2646,0,71247,0,103723486,487241,281895,41022,19780,27846,1882565,124469,30564,11929211,1746385,2334303,46178,783492,15556,6434160,168791,438,20900,0,273727,53646,0,0,0,51635,0,99797115,507621,255933,45327,18117,27182,2033500,119592,null,17072670,7516339,0,1023153,1169020,1133518,407548,0,0,40000,5775000,null,8092,0,86706812,29117,260451,166000,23745,1533768,75005,45270,14839165.370000001,5253639.83,8186213.54,178219,1221093,103589380.13,1907642,113587142.13,13876656.050000001,4667527.43,7748520.6200000001,173431,1287177,107821797.87,2303781,118093827.87,13497041,4562835,7624464,320904,988838,108602231,1473834,120212486,13211056.449999999,4190852.45,7388992,877692,753520,115629923.38,2107077,136122857.38,null,0,283,151,461,80,32,24,1031]
[807,"Redcar and Cleveland",13907630.199999999,105540217.65000001,14867824.839130336,107407358.7735877,14820321.594400363,107818351.69623615,14950832.298862385,106293000,null,85345595,11609495,0.13602922330086281,14118,0,85359713,null,13047625,4207373,0,0,1113752,2523500,0,1886415,82585,0,0,3234000,null,0,0,107937347,0,148300,341250,24150,1756656,190,190,1900000,12471656,4456806,0,987550,2486500,2210600,86200,0,0,0,2244000,null,0,0,109120349,63200,99550,240650,50250,1756656,218.42000000000002,2118200,10232278.219999999,1109500,1162392,463275,2216316,0,5280595.22,0,0,200,0,0,109583540.22,336098,338236,94681,30966,1106310,9898238,1214771,900865,471695,2171340,0,5138390,0,0,1177,null,0,0,107463156,512033,98500,90950,36319,152680,886983,5790,0,9877376,1215100,1600930,288935,1708890,0,4721803,124028,1136,18401,90,194098,2073,0,0,1892,0,0,0,110112206,527900,95367,0,38853,152874,886983,5790,0,9215881,1198935,1563946,288935,1378890,0,4502231,128344,1424,18392,89,131316,2021,0,0,1358,0,0,107708325,548674,94898,0,38655,138387,1083701,6625,null,12144986,3982554,0,1013225,2184002,1836011,61694,0,0,0,3067500,null,0,0,88056921,82410,116302,290952,72304,1551945,197321,0,13939393.699999999,6659974.5199999996,5149694.18,0,2129725,103461997.8,656274,114347498.8,13961299.120000001,6091615.8300000001,5666577.29,14402,2188704,116289146.98999999,773973,131237785.45,14032790.09,5904890.5099999998,5885987.5800000001,256230,1985682,123204388.40000001,658689,138917206.40000001,14475212,6576060,5678450,282764,1937938,122226634,554235,142524332,null,74,0,90,271,77,19,16,547]
[808,"Stockton-on-Tees",18839276.23,139508579.19999999,19922395.847501274,143204863.13144192,20536681.192758225,145536524.60731357,21039406.049282853,144620000,null,111954469,9831355,8.7815654773013119E-2,0,0,111954469,null,18223959,3962288,0,0,4851715,2710163,0,1831351,344993,0,85000,4389167,null,49282,0,146923610,4641,675465,430045,62860,2183510,123.5,123.5,1235000,17742762.699999999,6134278.3300000001,0,141900,3342459,1906927.37,352916,0,0,0,5815000,null,49282,0,144367072.80000001,4223,628691,369724,56300,2461243,603.5,5815000,15070160.039999999,2536366,2251509.61,244993,2192710.23,0,7787311.2000000002,0,5708,2280,49282,0,140176521.77000001,623683,373870,3294,60479,2386463,14352361,0,4526024,51871,1928458,0,7788738,0,5708,2280,null,49282,0,136323987.99998999,617912,296518,3224,59402,160734,2391713,0,0,14226194.333600001,0,4536920.6158800004,51039.676249999997,1994915,0,6906089,148320,0,21475,0,456915,61237,0,0,0,0,49283.041469999996,0,134520019.14297,710236,277978,3695,61301,162416,2333917,156310,0,13479163.960000001,0,4290983,49991,1616922,0,6735713.96,145840,0,21304,0,431864,57291,0,0,81000,48255,0,134405898.30000001,704142,273089,3665,61066,161677,2253845,0,null,14981418,4569087,0,2428708,2428268,1849757,253892,0,0,0,3451706,null,0,0,120169673,3885,693086,396598,44211,2264456,80106.5,80106.5,22773079.219999999,11496504.859999999,8478514.3599999994,541895,2256165,148514814.34,2629028,161359246.34,22364501.030000001,11164614.9,8455721.1300000008,504511,2239654,142401236.49000001,2625453,154168564.49000001,21768977.09,11585236,8189964,661679.02,1332098.07,145602986.34,2335760,159459527.47999999,21150658.111749999,11225015,7918286,666185.85355,1341171.2582,147149060.36159,0,147149060.36159,null,152,163,110,464.5,104,127,44,1164.5]
[810,"Kingston Upon Hull, City of",25835282,184139115.01999998,25823217.699111354,190805999.35132018,25737585.737216104,195047248.63354164,25832036.903910667,193436000,null,149379702,5270716,3.5284017369374587E-2,907,400000,149380610,null,21926563,7457889,0,0,2772153,2225880,517647,3871995,0,0,400999,4680000,null,0,0,192885975,0,620100,163754,119788,1568990,508,508,5000000,23263678,10261549,0,0,365916,4414583,630,0,0,401000,7820000,null,0,0,192549609,0,607506,342558,107000,1678339,733,7060000,21917315.48,4705806,2327572,671,2011485,401100,12393801.48,0,0,50415,0,26465,188248423.86000001,655588,439907,0,107001,2081757,20190587,4965815,1447455,37817,1447484,0,11969018,222436,0,54835,null,0,45727,183267003,644080,374968,0,173278,317,2443366,1938,0,19900495.370000001,5283458.37,1548752,155430,1047484,0,10571055,256307,83605,32562,9045,578315,17328,228022,0,49121,0,0,40011,186213511.21000001,824412,399724,0,160123,8740,2444104,1792,0,20340621.790000003,6415395.9400000004,1413322.16,103892.83,963584.76,0,10206883,248636,92978,32000,8680,550442,0.1,213941,8015,42774,0,40077,178355275.40000001,834869,364507,0,305611,0,2435753,17235,null,22108463,7187911,0,2644322,2591703,3465058,258469,0,0,401000,5560000,null,0,0,134828979,0,670999,326451,0,1375937,0,0,29392697,13530967,13200341,1059245,1602144,192090885,3114702,214060047,29092385,13888829,12855727,1144920,1202909,192076551,2948340,214249378,28222033,13394700,12329925,1115303,1382105,191494842,2858316.08,235849357.78999999,26845347.329699997,13423766,12135849,326415.2697,959317.06,189212174.64646,2950025.97,226875263.45646,null,0,0,371,521,78,16,6,992]
[811,"East Riding of Yorkshire",16842347,209375223.56999999,18332029.495324757,211090752.05014268,19102621.882685408,210627348.77629879,19307894.79083018,208457000,null,174214795,10338840,5.9345361569320215E-2,719,800000,174215514,null,18016826,7478317,0,0,838330,2624810,675000,3199760,537940,0,0,2662669,null,0,0,218501513,0,898699,77470,0,4284750,243,230,2354700,17434374,7395779,0,838327,2632810,3160897,512944,0,0,0,2893617,null,0,0,219745760,0,909199,95470,0,4282810,291,2870000,11835932,1285420,2670340,10000,2891130,0,4946821,0,0,32221,0,0,197777672.03,1025780,88390,0,45740,4800340,10700487,3129470,247790,10000,2250130,0,4973985,0,0,65017,null,24095,0,223112220,774220,88390,123250,45740,0,4525400,377470,0,10620732,3255440,418810,104600,2020130,0,4487020,124106,0,15963,0,98451,16581,0,0,55044,0,24587,0,230595011,676120,173880,208870,45710,0,4835680,377470,0,9940558,3144370,417030,104600,1620130,0,4322431,119419,0,15636,0,91476,27017,0,0,54345,24104,0,221746612.30000001,660350,170780,99160,45970,0,4572735,0,null,17271798,7745548,0,789232,2501508,2689543,567254,0,0,0,2899393,null,79320,0,190921502,0,830284,78806,0,5074691,6208,0,23382757.84,13303836,5341666.84,2673483,2063772,218415190.58000001,3678970,244063951.58000001,24086971.600000001,13961978,5234482.5999999996,2570939,2319572,230783617.36000001,3766153,257992290.36000001,25446718,15600561,5085830,2380237,2380090,252937781,3939358,282769882,24384046,15169059,4782518,2352621,2079848,241138284.40000001,3777735,276239702.39999998,null,0,0,114,235,71,25,6,451]
[812,"North East Lincolnshire",15194631,105251975.02953984,15440751.914076135,107780890.3027941,15785287.147128938,109783648.0941284,15919179.541479284,121165000,null,85799447,10539397,0.12283758658724223,128147,0,85927594,null,13288500,1215020,0,0,3161265,2878215,0,853416,1698584,0,300000,3182000,null,0,0,110094220,0,381800,283194,65949,2048598,0,0,0,13510664,786506,0,3841094,1744053,854000,2025732,0,0,300000,3959279,null,0,0,107872824,0,347700,364500,78500,2140074,122,976000,6091799,1893900,727000,870899,2300000,300000,0,0,0,0,0,0,66836324.850000001,796657,256350,0,77680,2206085,12228802,2126739,864100,547804,2761400,0,5852400,0,0,76359,null,0,0,95511738,500719,247495,0,74200,0,2174600,197500,0,12751023.876189999,2135976,1200397,836662,2930435,0,5249665,96244.876189999995,0,15730,0,249185,4788,0,0,31941,0,0,0,111294492.36082,694077,261231,0,78333,0,2171113,186924,0,11932481.569999998,1852559,1092140,591896,3237279,0,4756112,94066,0,14844,0,268672.28000000003,5684.29,0,0,19229,0,0,110289174,702661,239980,0,73022,0,2157103,181914,null,9877188.8300000001,314367,0,3284424.02,2419906.4700000002,1033843.72,766007.62,0,0,425640,1633000,null,0,0,43277417.359999999,0,293328.15999999997,489419.57,87227.91,1624167.35,135320.31,135320.31,6286352.0800000001,3803414,0,19520.7,2463417.38,58330581.950000003,2019142.67,72367071.010000005,11731758.620000001,6604105,2795343.62,47651,2284659,84646984.560000002,2313063,101871518.56,16527794,8041935,6448202,79879,1957778,110453789,1902836,126621149,17696764,8214261,5933627,149664,3399212,120072528,1839564,140921602,null,0,12,168,300,18,78,16,592]
[813,"North Lincolnshire",13246477,114348346.84999999,13718599.825852931,116183279.51440807,14609432.828531042,117720364.67691311,14775138.344773818,119877000,null,94433242,7790010,8.2492243568212983E-2,743,0,94433984,null,12564000,3009000,0,0,687000,4316000,25000,1866000,150000,0,61000,2450000,null,0,0,117517984.59999999,0,329000,225000,88000,1457000,245,245,2450000,12482542.02,2877260.01,0,687250.01,4311852,1704980,0,0,0,61200,2840000,null,0,0,116793977.3,0,336120,222813,88580,1523810,292,2840000,11773135.5,1222650.01,1953789.87,0,3765700,61199.99,4769795.63,0,0,0,0,0,101419623.09999999,332146.89,204155.71,0,76590,1626932.94,11055213.59,1018781,1395460,128680,3704040,61200,4718842.59,0,0,28210,null,0,0,116271495.65999,468240,284486,165579,77395,0,1263330,198821,0,10823807.0023,1018799,1433650,128680,3609920,61200,4279309.0022999998,86080,0,11384,0,167988,13460,0,0,13337,0,0,0,115837302.66824999,476650,273730,75120,76260,0,1228710,317300,0,10336392.640000001,950001,1322589,230830,3363020,60000,4043874.64,85806,0,10892,0,156286,5230,0,0,106584,1280,0,108058670.7,444320,255440,3700,68970,0,1261190,270850,null,13273749,3037201,0,747613,4645711,1942024,0,0,0,61200,2840000,null,0,0,73935980,0,325671,70344,97709,1654731,0,0,10108291,3482,5090673,489126,4525010,92760455.549999997,1105443,105674926.55,17437647,8322625,4904254,317033,3893735,114261950,1561400,128412546,16435975.550000001,7442416,4783237,528207.55000000005,3682115,122418696.51000001,1467650,150202073.19999999,16925644.493999999,8273650,4417335,606540.49399999995,3628119,119553176,1258626,143988726,null,0,0,40,261,20,78,19,418]
[815,"North Yorkshire",40035690.840000004,377304246.19999999,41812280.428548366,383933454.84364724,43243459.889272586,384718683.37212205,43756365.19927194,389975000,null,308948345,11491734,3.7196295710857426E-2,11,0,308948356,null,39389345,15624620,0,0,1773380,5879840,1269000,2243161,5616974,0,0,6982370,null,0,0,404241990,474081,1281708,1607197,225741,7547370,621,621,6242370,43760963,18348201,0,2260474,3972733,5350597,6487540,0,0,0,7272699,null,68719,0,409250612,0,1472124,1446657,220769,5898923,788,7704000,27704850.5,2854274,1382089,6135924,2592836,0,14535941.5,0,37530,5788,160468,0,382849341.42000002,1417026,1457724,0,446627,6040444,25616942,1857899,2084369,4208548,2674117,0,14582253,0,0,12285,null,197471,0,410172233,1370590,931749,0,341274,450800,6359716,581570,0,22019177.84361,1933769,2729676,0,2934629,0,13328409,425640.84360999998,0,61446,0,404170,7030,0,0,9040,0,185368,0,425608790.52240998,1448463,1153340,0,651186,1480009,5910823,464916,0,22111929.380000003,127309,7682625,1779,0,0,13256009.02,417903.01,0,60426,0,358866.35,7235,0,1955,99184,98638,0,412158571.5,1374885,1154381,0,588606,1062256,5342444,450628,null,39344737,17200690,0,1736496,4583874,2364656,6588932,0,0,0,6870089,null,0,0,374268110,377161,1653073,1664989,218936,4839484,1060622,450923,56128929.789999999,35918401.359999999,16202830.43,1566241,2441457,400808446.56,5615182,448658128.56,56667223.930000007,36574980.590000004,15996669.34,1503385,2592189,421327297.41000003,5150043,474874187.41000003,61437941,41569482,15760520,1301253,2806686,450762387,5521510,503786879,53228792.75,33068028,15811487,1532422.75,2816855,449566205.95999998,4998773.97,515737603.01999998,null,0,0,88,578,203,65,98,1032]
[816,"York",13966740,106889233.28,13709649.155211285,109969632.40087469,14891685.875491967,112041451.63098428,15132866.064974234,111917000,null,84764767,12208889,0.1440325908050924,532641,150000,85297408,null,13094850,4658170,0,0,568740,2748520,150000,1911400,418020,0,400000,2240000,null,0,0,117480640,49350,415860,276970,59100,766440,224,224,2240000,12722540,4326510,0,367870,2009400,1780290,386470,0,0,400000,3452000,null,0,0,116670240,54450,457000,52500,58720,857040,377,3452000,9349205,1202309,1018887,309489,1825095,400000,4575291,0,0,18134,0,0,109144341.44,471256,54152,64256,64578,1456897,9615095,992932,1009355,306593,2547155,325000,4387065,0,0,46995,null,0,0,115970491,492530,56451,61254,66451,17152,1380990,0,0,9261665,977888,1046062,301948,2468240,150000,4080660,89588,0,10642,0,98167,34776,0,0,3694,0,0,0,111517208,529451,57251,59444,69256,16212,1254052,0,0,8916523,850117,1220062,258613,2053759,150000,4068542,91812,0,10424,0,124941,60691,0,0,13312,5963,8287,106169998,523694,56650,58076,67334,15426,1129324,0,null,13433641,4578765,0,468556,2450289,1697543,382740,0,0,400000,3455748,null,0,0,107277907,51245,396921,60301,64250,675243,67545,0,15800326.91,8165820.2000000002,4964693.71,751431,1918382,114457583.70999999,803615,127772619.70999999,15427136.300000001,8195143,4623515.3,582508,2025970,114922327.75,1447388,128702719.75,15640649,8649411,4490439,263341,2237458,121301750,1505691,136204799,16188208,8514154,4422011,290165,2961878,123192835.62,1406496,143253152.62,null,62,0,159,180,60,55,33,549]
[821,"Luton",20330875,174397222.08000001,22165354.217844632,181057515.08716631,22796373.522782911,184602415.74150369,22982343.046611037,199684000,null,144076795,10345315,7.1804172212464892E-2,0,30000,144059312,null,19793095,7288963,0,0,1154175,2848068,0,672326,4163643,0,0,3665920,null,0,0,186657892.34999999,0,396903,443214,79210,2452599,367,366,3665920,19900392,8155673,0,1034824,2152682,705076,3479266,0,0,0,4372871,null,0,0,182525564,0,375643,414541,85971,2033181,443.40999999999997,4372869,10790955.73,1948927,580002,453412,1034541,0,6648972.7300000004,0,0,123331,1770,0,162454716.77000001,481031,419786,0,78020,1824614,8921886,573967,489324,189178,1259203,0,6294476,0,0,115738,null,0,0,169630187,611843,427189,0,80346,0,1771332,0,0,8876184,612232,533441,296964,1364149,0,5597894,136137,0,16334,0,143616,83872,0,0,91545,0,0,0,178376844,674208,550758,0,84036,0,2105938,0,0,8665097,598893,520888,296846,1547142,0,5332686,126803,0,17820,0,130390,72078,0,0,21551,0,0,167712844,626644,280434,0,78006,0,2208104,0,null,18577008,7462312,0,1099763,1318118,719396,3604548,0,0,0,4372871,null,0,0,184116587,0,492914,507297,84834,2172183,147581,0,28820493.340000004,19201088.260000002,6875108.0800000001,1637447,1106850,178605892.59999999,2233245,194208862.59999999,25032200.539999999,16129758.050000001,6266166.4900000002,1691531,944745,176895787.34999999,1356598,197256841.34999999,27539282,17130486,5961401,3397145,1050250,194598917,1159775,227771258,25555663,15668946,5710686,3031704,1144327,188408620,1219427,223436129,null,0,110,50,345,32,94,48,679]
[822,"Bedford Borough",14981884,118543980.88000001,16103757.914474873,124117219.96180496,17011671.381689455,126917721.44039471,17234176.43723115,130126000,null,89683414,4429565,4.9391128219093E-2,4234858,506000,93918272,null,17198610,2378268,0,0,4155564,4074043,506000,1783525,167398,0,882150,3241920,null,9742,0,131686619,160203,406667,189375,153709,807880,57,57,570000,15642040,2155089,0,3810761,3131850,1540408,242820,0,0,991510,3757450,null,12152,0,127002225,152146,580303,552014,191708,705260,61.33,613333,8516491.5099999998,1651533,1104718,784966,1119683,968820,2883494.51,0,1969,1308,0,0,100782705.43000001,387455,427481,241627,100376,1409019,9489038,1229485,617112,77065,1134457,467389,5946562,0,0,16968,null,0,0,106495841.76238,724401,156257,89493,106506,394377,1816221,301302,0,11030763.941199999,1822947.3478999999,608095.37057999999,298630.68245999998,2264059,0,5612600,131479.56584,0,17261.5,0,262028,2874,0,0,10788.47442,0,0,0,132677540.16505,763709.67064000003,711607.54565999995,180575.57060000001,182602.58755,35419.298009999999,2161549,199328,0,9992445.6799999997,1333351,604444,289972,1892318,0,5457181,131190.68,0,18080,0,243495,3247,0,0,3896,15271,0,123413454.8,575718.96,310054.59999999998,210986.62,93770.94,8608.0400000000009,2153260.2599999998,184265.55,null,11959406,2040371,0,3447395,2515594,1763561,604995,0,0,860470,715411,null,11609,0,75414655,154360,646357,391514,174356,772408,17813,18541,10810572.59,5843040.79,3003553.8,13703,1950275,101931453.15000001,2296687,113944889.15000001,11973843.98,6263537.5,4412098.4800000004,11424,1286784,108036396.39,1573651,121859643.39,17305691.689999998,9110618,6429259,1103051.1100000001,662763.57999999996,133748073.5,1564519.52,152333222.84999999,18139146,8663418,6079820,2388568,1007340,143116723.72999999,2062134,164208461.72999999,null,0,60,54,280,54,16,30,494]
[823,"Central Bedfordshire",22332504,173914821.60000002,23291580.768891953,178841662.81094411,24811913.19375756,183048477.98111111,25392872.240268975,190087000,null,145298155,7264908,5.0000001720599964E-2,755981,0,146054136,null,23097717,6245343,0,0,5316946,2367179,0,1956578,973686,0,0,6237985,null,0,0,186803465,0,406016,640593,81492,4033011,327,327,3171667,21606156,4565361,0,3749901,2582662,1379335,1028615,0,0,0,8300282,null,0,0,181241352,0,474853,703890,79409,3824575,431,4039333,15431123.709999999,1419738.31,2295257.59,1205842.3700000001,3104654.45,0,7335124.6600000001,0,5109.1499999999996,65397.18,0,0,129464018.55,466026.43,1314373.97,0,76416.08,3682689.22,14208194.960670002,1433575.0591,1976221.54846,204287.80674,2203724.4516400001,0,8190394,0,0,199992.09473000001,null,0,0,174086094.63962001,510065.46318000002,2486890.2585100001,47863.208070000001,151743.17199,0,3754338.22921,191564.68737999999,145286.41832999999,13374872.572639998,2104734.78418,841066.92896000005,322989.15792000003,1498133.44622,0,8153415.0577299995,244103,0,31926,0,158276,765,0,0,12313.85118,0,7149.34645,0,190076494.31542,558078.31649999996,762749.54362000001,220561.87716,184151.26155,4271.8243400000001,3963216.0407799999,201003.33105000001,151634.09185,13320053.379999999,1887883.84,617170.88,488468.3,2057505.57,0,7809166,240776.04,0,31272,0,158275,0,0,0,10864.32,18671.43,0,182470455.59999999,697957.58,421830.78,256334.16,112506.96,11137.46,3229890.38,276398.32,null,19536736,4155615,0,2305228,2572962,1426406,965332,0,0,0,8111193,null,0,0,113107742,0,413170,624048,75968,4217475,0,0,24548681.490000002,7656025.6500000004,8166218.8399999999,8037310,689127,218223475.22999999,4442100,238335400.22999999,31813015.439999998,12387085.939999999,9061021.5,9173624,1191284,313845184.60000002,4433574,340949446.60000002,27082422.809999999,13667034,9560755,2238828.9300000002,1615804.88,202046571.25,3792770.67,237665772.75,23662711.57697,12618278,9176509,49948.157980000004,1817976.4189899999,196287188.02921,3888015.6263299999,237384609.59545001,null,58,32,120,451,80,23,47,811]
[825,"Buckinghamshire",62335734.939999998,349583612.63999999,65600234.78312134,359109415.0561685,68379704.013619751,366935017.96852189,69174904.386972174,387959000,null,258207480,32056654,0.12415075659310877,5446633,400875,263654113,null,65049602,22029583,0,0,6188598,15721660,0,6459942,2971599,0,0,11450000,null,228220,0,378084301,0,2634800,594199,143307,7433914,998,1033,10204999,66533950,19807395,0,6197312,12617570,8329388,3600218,0,0,0,15051262,null,930805,0,374007518,1166232,2087087,80530,107690,1428386,1210,11702000,45790699.93,6499393,2154622,4018864,13396320,0,19364854.93,0,0,31000,325646,0,284213381.13999999,1987776,766705,0,90504,1428389,44768332.539999999,4129858,2739869,3858716,13243320,0,20372211.539999999,0,0,52254,null,372104,0,376981624.63999999,1971727,809714,0,90482,0,6390886,24220,0,43393424,3370360,3208471,3180204,12743320,0,18848407,529085,0,70795,0,315438,100844,0,0,422772,0,603728,0,390110348,2218603,1254624,8543,154508,690598,6270936,730343,0,42052258,3628000,2940139,2779095,12118784,0,18387707,517481,0,66262,0,308788,118042,0,0,397678,790282,0,362842130,1530387,2488597,414,123729,0,6535984,738115,null,67350260,19432140,0,5786545,17632894,6360619,2852100,65327,0,0,14931166,null,289469,0,283145300,0,2650485,618578,119926,7329772,334257,0,58980500.060000002,21767147.550000001,22271550.510000002,1724999,13216803,284544607.61000001,6206948,327704924.61000001,62734943.240000002,25561486.850000001,22661456.390000001,1355280,13156720,335554334.18000001,6183749,366572540.18000001,65198246,28809665,22519006,1372294,12497281,431963002,6467561,501997611,57921051,23661892,21568298,1446171,11244690,422009659.19,6418697,496790286.19,null,44,228,244,1074,286,20,129,2025]
[826,"Milton Keynes",31469845.100000001,200524747.5,31584208.785037726,208181750.02393481,32523140.885697193,215147734.76301202,32700608.233461741,216367000,null,161510690,16230657,0.10049277233599832,3095919,0,164488472,null,29710297,10489422,0,0,4292710,5090000,120000,2198213,775672,49827,0,6442453,null,0,252000,219364480,0,702349,358555,72786,2609320,618,631,6255833,29776464,11010251,0,2655791,4575000,1994997,844318,100000,0,0,8344107,null,0,252000,216678883,0,668994,453025,88725,2418344,871,8204000,24093792.100000001,2173100,1771412,425315,5372001,0,13948074.1,0,0,96890,0,307000,167755463.16999999,709696,994871,0,158961,2424702,22573436,623530,1373495,93884,6322000,0,13636238,0,0,217349,null,0,306940,197111584,843633,785606,0,155244,286925,2254131,310101,0,21566408.960000001,1086939,1081443,68300,5321000,0,12836150.960000001,255371,0,34470,0,438046,23586,0,0,114163,0,0,306940,202597759.48888001,820001,809026,0,169435,255060,1997967,281119,0,20378052.869999997,540204,1188331,66300,5535180,0,11897959.869999999,254570,0,32988,0,334639,35319,0,0,185622,0,306940,190920863.40000001,858213,965651,0,154810,310176,1781782,0,null,29929624,11624236,0,3126848,4763273,2026742,757215,0,0,0,7381037,null,0,250273,155962876,0,696978,420465,68723,2741381,41624,0,30975268.829999998,11249560.75,13805443.08,1290355,4629910,167801488.63999999,77181,189080023.63999999,40495836.689999998,19029280.609999999,14415413.08,1420565,5630578,181049061.53,104472,199758539.53,39979261,17808025,14534189,1407711,6229336,218674201,2257561,240117645,37610136,17246740,13713699,994401,5655296,209268190.68000001,1948375,236277355.68000001,null,0,131,213,572,176,22,67,1181]
[830,"Derbyshire",57939313,490899950.61000001,60664487.586894616,499367187.39448303,61735178.230973065,502056920.57099307,62846631.406448893,511668000,null,401238825,56062113,0.13972255302063552,2521768,300000,403760593,null,54797431,23503320,0,0,2187751,8906690,513500,8354933,2999998,0,80000,8251239,null,0,0,523584735,101075,1574149,1028885,269573,7738777,810,824,7540195,60494275,30955059,0,2656831,6313850,5734726,3982005,0,0,80000,10771804,null,0,0,519292585,237340,2364893,1211387,374380,7295905,1115,10625724,35381946,8170688,1645086,3238730,5738084,90000,16395258,0,22500,81600,0,0,469618535,2056801,1614799,199974,339220,7413067,34554009,8282955,33935,3383930,6148517,90000,16370823,0,15000,61573,null,167276,0,496243493.5,1732511,1029117,88979,250260,636,6556974,842857,0,34010056,8295304,206537,2011452,7506705,88309,14432261,414497,0,53740,0,681142,42460,0,0,130734,0,146915,0,515222897.69177997,2089184,1241629,88515,343019,448503,7184954,902406,0,32215281,7223362,213310,1886101,7334614,85565,14129841,393053,0,53212,0,546348,63573,0,0,141560,144742,0,506648048,2121557,1268492,87609,357587,446002,6787007,843065,null,56596887,29072909,0,3020339,2043683,8008732,3151200,0,0,80000,11220024,null,0,0,446440730,109640,1592460,1051939,294231,7875252,1097231,0,88374786.5,61723126,18693525.5,1777397,6180738,490272434.81999999,6709245,541301103.82000005,70698979.930000007,45833291.539999999,17577999.390000001,1319552,5968137,499669485.07999998,11322493,559063038.08000004,74790224.00999999,49603904.009999998,17434831,1442538,6308951,536824743,6117424,619233424,72499061,46850435,16645206,2053771,6949649,545924580.66999996,6178341,647960943.66999996,null,111,181,198,731,219,129,81,1650]
[831,"Derby",24274388.07,185395882.44,25306522.448514398,193083261.74804738,26689096.748025168,197172116.00283554,27023682.713974681,201751000,null,135784822,20064227,0.14776487316086034,3754529,0,139539350,null,30407203,16146774,80882,0,2633192,4762605,0,1340235,92555,0,0,5340000,null,10960,0,201119553,0,716962,609921,64364,2990601,534,575,5602448,27484146,14560977,0,1376963,3606890,1400397,82340,100000,78147,0,6138000,null,5432,135000,195118574,0,240754,864084,63470,2379799,633,6138000,16680882.260000002,0,1416795.77,446406.57,3175371.52,0,11487603.49,0,7920.3,6352.61,5432,135000,176721103.80000001,293738.8,337764.05,0,63493,2325251.5499999998,16382003.529829999,9335.7483200000006,1520197.2525500001,603492.32261000003,2979143.36962,0,11228949,0,5000,22782.5337,null,10073,3030.30303,189469611.72531,348581.38162,41083.671540000003,16921.594260000002,67134.013449999999,75476.993170000002,1946674.9990399999,63732.0458,59908.123050000002,15707925.03497,20699.889719999999,1262429.36659,987203.07184999995,2884964,0,9688559.9095600005,264803.53733000002,0,31926,0,393630.25706999999,139940.29410999999,0,5000,15783.087380000001,0,12985.621359999999,0,193291092.16975999,396734.00696000003,85857.723199999993,37519.770559999997,66985.072520000002,141173.31743,2238506.0478300001,72454.763059999997,69720.621060000005,14549992.579999998,32236.31,1447334.18,330286.12,2703413,0,9309794.4199999999,248134,0,31272,0,371162.42,27542,0,5000,14200.78,29617.35,0,182315125.80000001,2327576.34,131431.03,58430.21,62954.36,208468.03,2252379.52,143056.54,null,28416808,13099625,0,1463329,6265124,1109591,116549,0,78147,0,6138000,null,11443,135000,156289732,0,658122,698242,66729,2344743,609243,275701,44395787,22271239,16408118,815724,4900706,181775894,2625155,199074756,33434206.920000002,15775295.92,13870275,736332,3052304,190947040.91999999,2757947,205146260.91999999,31954465.069999997,15720238,12952430.01,991716.52,2290080.54,211813203.58000001,2217941.7400000002,228556484.75,27681095.759410001,13816166,10559572,943808.98941000004,2361548.77,205361393.10416001,2211076.3769999999,230354243.24143001,null,0,223,323,567,90,0,100,1303]
[835,"Dorset",33802581,246168487.60000002,35313656.100188747,250674191.63173586,36824734.112644888,252596712.16560456,37158275.087617867,254328000,null,199594591,16410676,8.2220043728539721E-2,0,0,199821600,null,31948080,9626580,0,0,1262500,10608800,400000,2437300,156400,0,1530000,5926500,null,0,0,264870600,0,1302210,815730,75000,5402400,477,481,4793333,35184900,9642800,0,1221700,9990000,2600300,156400,0,0,1530000,10043700,null,0,0,251061300,0,1299700,686900,70600,5125200,841.67,7858700,27706247.330000002,4474699.6399999997,391500,0,9817800,1530000,11473690.49,0,10865,7692.2,0,0,253173782.75999999,1309400,697800,0,86700,4569900,26894505.311670002,4314200,326100,172700,9430100,1336900,11286188,0,10114,15924.311669999999,null,2279,0,274093974,1677400,0,0,84900,18600,3993100,0,232600,28412672.729649998,6724200,1145900,463300,7657500,1321700,10203412,235735,0,35191,0,582142,31714,0,9161.7861699999994,0,0,2716.9434799999999,0,276619963,1193700,585800,0,83600,0,3947700,0,141200,27098294,558850,6514150,48300,8062500,1552700,9540300,231081,0,34250,0,510000,33500,0,9681,0,2982,0,264228141.09999999,1071300,588000,0,85100,400,3485900,222200,null,29951288,9755238,0,1224576,7835300,2504241,26024,0,0,1530000,7075909,null,0,0,223004350,0,1274472,707017,61327,5759670,271398,0,34698579.170000002,11563697.67,11047161.5,2343484,9744236,254332735.53999999,5488729,287539955.54000002,40373298.850000001,15729146.49,12649118.359999999,1872471,10122563,272137773.08999997,5435532,308928229.08999997,40714203.600000001,14897848,12335720,2265654.37,11214981.23,298707573.63999999,3422694.19,346286943.04000002,40878633.152240001,15171794,11696746,1997900.8422399999,12012192.310000001,285030889.04097998,2799274,342864273.70098001,null,0,211,279,593,130,46,56,1315]
[836,"Poole",12097924.85,83258535.280000001,12488626.930548128,85929832.179896206,13031410.211483816,87747080.333704025,13178684.604680315,90235000,null,62562811,4842032,7.739473215166115E-2,4500227,34000,66853049,null,10616257,1686420,0,0,2168206,5024077,34000,350000,313554,0,0,1040000,null,0,0,86704851,0,350675,370067,80549,1436389,104,104,1040000,12261011,2250997,0,1724276,4365510,813037,313294,48000,0,0,2745897,null,0,0,88473173,0,305924,399340,82738,1125954,249.75,2745897,9178397.4700000007,1543324,371000,47592,4171000,0,3045481.47,0,0,0,0,0,73756881.799999997,312082,349782,0,83265,1075447,10604807,1433266,76045,56602,4170892,0,4862623,0,0,5379,null,0,0,78311438,442631,256741,0,89535,73595,1050119,61985,0,9965468.4466600008,1503527,87763,55948,3487227,61922,4424780,125058,0,15963,0,170203.44665999999,29011,0,0,3094,0,972,0,90533025.316650003,388806,253608,0,100070,220166.83246000001,1128007,50000,0,9685547.7400000002,1508523,135626,52212,3411280,45000,4215064,116891.74,0,15636,0,167623,14461,0,0,2302,929,0,88780708.950000003,371174,252349,0,97062,130470,1080231,0,null,10614139,1968592,0,1940131,4400258,769730,310249,0,0,0,1225179,null,0,0,67874503,0,351579,400069,77642,1523319,9952,0,11931303.359999999,4430465.1500000004,3087676.21,278800,4134362,76445636.719999999,1347903,84515167.719999999,12717400.24,4465414.7,4151491.54,154425,3946069,77256005.930000007,1221227,86621180.930000007,13869319,5009791,5007720,222983,3628825,94896897,1050502,105762299,13187153,5055200,4638732,260018,3233203,94721311.420000002,1063770,108677853.42,null,0,0,60,236,48,23,21,388]
[837,"Bournemouth",12947885.779999999,95691070.140000001,13332344.213083327,99071525.603104353,14455318.445860524,101917123.84514284,14658881.94953317,105252000,null,77384131,8313795,0.10743539912595258,0,100000,77384131,null,13438533,2511000,0,57300,2870900,2990000,0,1049000,0,0,0,3685333,null,0,275000,101167096.13,0,391200,648400,66100,1069300,236,270,2573637,12170433,2120900,0,1994500,3616200,755000,0,0,0,0,3408833,null,0,275000,99857548,0,524900,650600,67200,1138800,223.08,2230833.33,11934563.449999999,1947300,747600,33400,4098500,0,5107763.45,0,0,0,0,0,82057676.629999995,498800,522300,0,57600,1020800,10857693.699999999,1934100,572800,92900,3110500,0,5147393.7,0,0,0,null,0,0,96039158.390000001,431600,166800,0,0,158700,989100,24000,1700,9773355.6812199987,1552200,419300,310300,2934800,0,4308800.6812199997,96280,21700,13875,1800,74200,40100,0,0,0,0,0,0,97676279.764080003,482800,257300,0,18100,114700,980000,25000,1700,9575905.7279999983,1893514,529478,270750,2770848,0,3896157.1979999999,87764,31638,13336,1772,68333.53,12315,0,0,0,0,0,95401723.109999999,502255,276439,0,71680,112107,978399,0,null,12424493,2677294,23040,2646651,3528654,1258021,0,0,0,0,2015833,null,0,275000,57908237,0,453957,653469,36789,1429262,51033,4639,14159898.359999999,5896911.7300000004,4044220.63,500787,3717979,72918481.079999998,1245469,81849362.079999998,18404159.600000001,7729667.5700000003,6461541.0300000003,812966,3399985,96252119.129999995,1149558,106458486.13,17896042.640000001,8649149,5223133,994243.77,3029516.87,104780796.78,1186552.03,117757886.63,15922067.800000001,8189509,4955323,67017.490000000005,2710218.31,105404228.02,1125284.08,122743430.48999999,null,20.2,0,44.800000000000004,354,60,24,14,517]
[840,"Durham",43277736.82,342050164.88000005,45715738.004751876,349409289.80014986,46169586.854210377,351391081.62295693,46911497.011048973,351355000,null,272247779,21573117,7.924074561504503E-2,0,2940000,272247779,null,37818334,10784024,0,0,2122539,1728871,3451414,7929473,1494565,0,0,10153333,null,154115,0,347411632,86473,1857297,918350,189352,5197615,1068,1104,10846349,46025229,16030975,0,1059834,5696267,7929473,1494565,0,0,0,13660000,null,154115,0,360917571,75775,1906144,1126451,173725,5034866,1208,11760000,28617651.140000001,3199066,1259039,1494565,2839925,0,19540941.140000001,0,0,130000,154115,0,317591930.01999998,1755554,892202,89619,198256,5439885,26789544,2441820,1677838,320097,2848269,0,19270140,0,0,50000,null,151380,30000,341823576,1946094,921132,169888,151231,135587,4347943,188950,30000,25860301,2427619,1391796,368500,2791943,0,17216683,441621,0,64446,0,686193,269801,0,0,50000,0,151699,0,377994781,2320676,906151,324900,130256,96844,3845167,385856,20309,24897456,2480000,1315436,358500,2799853,2117,16476127,434202,0,62884,0,651978,144660,0,0,20000,151699,0,355954559,2179570,912404,325199,132091,96844,4222085,199247,null,38627402,14634739,0,1516016,4004435,5920215,348592,0,0,0,12109383,null,94022,0,288363120,84921,1909708,692271,226022,5552075,0,0,45998569.149999999,22246875,19912531.149999999,782811,3056352,327758315.12,5622729,373717069.12,48759213.739999995,23774593.5,20910384.239999998,1286644,2787592,368475658.77999997,5986674,421650840.77999997,44546453,20026605,20167802,1426438,2925608,413713591,5290522,465006204,43386161,19509821,19546504,1640907,2688929,417996383.47000003,5112885,482889159.47000003,null,0,123,160,1249,109,152,72,1865]
[841,"Darlington",8228503.9999999991,70676658.359999999,9029168.2873922344,73233840.054137558,9050915.9030919671,74284397.234424844,9241582.864748301,76335000,null,56256163,3413818,6.0683449029397901E-2,2,0,56256165,null,9138845,937639,245949,0,4163020,751237,0,226000,0,0,525000,2290000,null,0,0,74621131,0,185954,147584,33152,548504,0,null,null,9138376,1151538,0,2981011,1296175,226000,0,0,288652,525000,2670000,null,0,0,72981500,0,183772,145365,32301,552483,40,320000,2018726,1048535,228358,0,288833,453000,0,0,0,0,0,0,35277099.890000001,246415,123513,0,48614,615415,6350310.1940000001,976705.51907000004,228357.505,0,548311.92000000004,400000,4095196,101739.24993000001,0,0,null,0,0,75514842.421169996,382085.72499999998,77207.320000000007,0,47405.77,82882.414000000004,569270,207542,0,6053973.5900699999,723470.54952,143000,0,1000954,400000,3384833.8739999998,47706.953829999999,0,9720,0,257812.23298,813.68489,77742.964770000006,0,7919.3300799999997,0,0,0,79489198.034040004,914665.62477999995,253214.24132,184745.03672,79275.474449999994,234929.46763,722385.91422999999,155446.52731,0,5077762.58,579200,143000,0,564364,0,3305617,54488,0,9476,0,321349.87,826.71,89214,0,10227,0,0,68936943.620000005,857899,209849,120793,68042,212494,613780,7535,null,6280367,994119,0,3224383,657938,226000,0,0,332927,525000,320000,null,0,0,24386819,0,117840,320332,19963,322024,99819,60698,3068386.34,1927173.34,0,626775,514438,27773239.48,642958,36183404.479999997,9034225.3100000005,3279694.66,4689456.6500000004,78241,986833,59652553.329999998,400000,71092939.329999998,9412836.9499999993,4071390,4300969,135472.53,905005.42,76103922.510000005,745001,90562173.510000005,9276039.0463999994,4029481,4137313,158269.22640000001,950975.82,74734601.180000007,737805,93830772.534999996,null,0,57,60,234,24,53,24,452]
[845,"East Sussex",40290371,321048429.63,40941982.220495977,329274797.677809,42821157.89508377,332412284.6352824,43410909.843932621,329943000,null,258299526,26495545,{"$f":"M103/L103","v":0.10257682393114419},15522,0,258315048,null,37556214,12109533,0,290042,2213500,6951500,0,4956305,2745334,0,0,8290000,null,0,0,336899955,0,1319377,647300,330237,6016443,797,814,8095270,41812525,12689268,299911,0,8268500,6676625,1868221,200000,0,0,11810000,null,0,0,336351983,0,1396504,647300,331950,11196838,1037,10090000,32824769.660000004,369410.88,4140630.28,675542,9263563.9700000007,0,17505788.530000001,0,281762,33614,554458,0,328656765.22000003,1483730.37,776830.03,0,379174.28,10683919.060000001,32946509,847000,4064837,895320,9032949,0,17525465,0,279758,115777,null,185403,0,329171622.33332998,1230717,1170193,20225,126300,135288,7076419,0,0,36337812,847000,4718085,3520971,9184158,0,16441232,460851,65120,54217,0,594200,65367,0,100331,125047,0,161233,0,335492670,1566435,1754695,23546,297933,142526,8239931,607118,0,34625476,647000,4429515,3394518,8441237,0,16075284,443650,0,53160,0,490355,65367,0,50757,188647,345986,0,319567941,1554824,1599080,19162,273906,129004,8057028,0,null,38641090,11090386,911478,1978975,7081605,6091276,2903293,0,0,0,8584077,null,0,0,260079128,0,1442730,693494,378769,6584342,0,0,42374074.240000002,16040479,18442044.539999999,770899.03,7120651.6699999999,333386448.88,5588778.1900000004,373670506.19999999,43311549.590000004,16604095,18209473.59,782438,7715543,374814784.81,10938225,421195167.81,42101751,16128233,18316477,125046,7531995,382593444,8044517,457292872,43879843,16912308,17817544,56146,9093845,345233036,8216886,422444897,null,39,137,140,879,132,81,80,1488]
[846,"Brighton and Hove",21211711.899999999,157205184.72,21727217.584443122,161917016.69008523,23248063.445120536,164855743.02835789,23410473.500795186,164864000,null,124059212,12695350,0.10233298918584136,0,250000,124059212,null,23172787,7669540,0,0,0,6133340,0,2402841,2396107,0,97190,4420834,null,52935,0,170609644,31710,402872,565804,65384,2108862,438,445,4420834,22488102,8155840,0,0,4703897,2234995,2327796,0,0,97280,4956000,null,12294,0,167353236,0,400552,480405,62253,2391773,525,5076000,18935405,789305,1202660,1406220,4501116,99800,10826106,0,0,34898,75300,0,161838230,382480,447223,0,58186,2579546,18243021,727853.6,1133612.3999999999,1083255,3987264,99320,11087961,0,0,48455,null,75300,0,160217024,391848,177282,4910,54753,144069,2538847,131422.39999999999,65712.2,17912193,816920,1140110,668881,4008263,93999,10376884,229384,0,31926,0,383672,6298,0,0,36973,0,118883,0,159974925,550342,221838,25440,68513,169083,2680186,138739,69369,17994759,827906,1067644,340462,4644903,0,10399732,232133,0,31844,0,406306,5913,0,0,29596,8320,0,152921632,501801,228530,0,70580,175139,2870212,266170,null,21263763,8811114,0,0,2372641,2277530,2736904,0,0,97280,4956000,null,12294,0,156694211,0,364193,517174,61565,2111158,97143,28880,31695308.149999999,17152465,10814368.15,1034121,2694354,163933372.66999999,2551382,174276218.66999999,28263537.550000001,13214459,11454022.550000001,1034406,2560650,160636746.19999999,2877731,173324028.19999999,29719857,14378706,11283795,954941,3102415,169735163,2691217,195778174,27553355,11389110,11650179,976331,3537735,161937973.59999999,3146898,184742577.59999999,null,24,48,88,395,62,33,29,679]
[850,"Hampshire",79761926.739999995,821315230.71000004,86903902.722849548,843433941.58092952,90395984.258667842,850384141.03980315,91679599.261766449,846232000,null,684237914,43245584,6.3202554426120272E-2,342,350000,684238256,null,78936600,27108900,0,0,9702500,11218300,350000,3909100,1728100,0,0,24825100,null,94600,0,868320300,0,3347000,2009000,214600,17143300,2299,2312,23122446,76302000,27943400,0,3341500,11207100,3839300,1352700,0,0,0,28517800,null,100200,0,854582932,0,3313900,1990400,214100,17121800,2776,26772000,59678363.979999997,8866300,2127600,3100,10852300,0,35666106.979999997,0,0,1914257,248700,0,762104412.17999995,3181200,2225100,0,206300,17145600,61148201,9253300,2128200,39200,10575100,0,36700501,0,0,2200500,0,251400,0,808835103,3292300,1940500,0,227400,330900,16272000,1056700,183800,59083226,9093900,2039300,41300,10881600,0,32109713,1099289,0,150642,0,1439482,49200,806700,0,1025000,0,161000,186100,854860970,3789600,2233700,0,680800,380900,16166700,1025200,177800,55449177,9005500,1886300,38200,10267100,0,30216277,1114870,0,151540,0,1002640,50150,796000,0,749600,171000,0,831480622,3729400,2198200,0,257600,374800,15122500,1166600,null,76163263,31628230,0,1761438,10802113,3628185,1043680,28000,0,0,27135670,null,135947,0,693579047,0,4258135,2078016,205104,16250146,888268,180403,62958069.079999998,6234294.1399999997,39932239.939999998,6007053,10784482,768814391,15833444,822171826,63294013.949999996,6473814.2599999998,40516399.689999998,5243586,11060214,834906789.25,16446877,898750125.25,61971128.950000003,7101682,39466135,4491583.95,10911728,908906944.65999997,15330375,989661657.65999997,59646036.809999995,6890235.1200000001,38176842.689999998,3381170,11197789,903242575.69000006,15222179,1012075847.6900001,null,539,0,351,2431,149,404,156,4029.9999999999995]
[851,"Portsmouth",14131740,125757670.40000001,14846157.974779228,130136604.69171387,15464193.639077187,132731605.51243897,15688179.631851299,131515999.99999999,null,103277829,13885585,0.13444884671229873,711089,0,103988917,null,13135671,4792400,0,0,0,648400,0,1744505,120366,0,0,5830000,null,0,0,132963900,83693,298309,415838,78453,1891981,267,267,2670000,12786100,4406800,0,0,645400,1505500,60400,0,0,0,6168000,null,0,0,130707452,83463,318405,552568,92793,1841616,468,4680000,12570480.77,1729385,600217,57136,1329000,0,8819468.7699999996,0,0,0,35274,0,130134757.53,327382,347411,77500,115235,1774540,11710853,1249086,611954,57978,1175600,0,8580901,0,0,0,null,35334,0,125620316,410182,194946,77900,124116,166672,1722086,20810,0,11440031,1251465,914621,95195,746000,0,7566992,291757,0,29149,0,332841,25499,0,0,118812,0,67700,0,121460374,421116,215319,77900,87864,87175,1286702,20810,0,10391926,1147009,866385,78390,836870,0,6646100,290065,0,28608,0,317412,34085,0,0,80702,66300,0,117641579,439755,197750,77900,92591,94642,1827991,8152,null,13350040,3737263,0,1016022,671802,1824937,30436,0,0,0,6064879,null,4701,0,119481969,47983,457911,556904,117851,2160260,146765,0,28989549.810000002,13957156.67,13776904.140000001,60030,1195459,140561607.03999999,1993371,149705969.03999999,28327368.310000002,14031290.76,12718367.550000001,466036,1111674,137082811.66999999,1790876,150048709.66999999,22813189,8925082,12274654,641963,971490,135185569,1728960,150418418,20770711,7285861,12171610,682484,630756,131054206,1206835,150766833,null,104,0,163,482,22,51,18,840]
[852,"Southampton",16419679.590000002,148411464.72,17105221.28034718,155700978.80711558,18107573.548318971,160451579.6560123,18423467.486833554,160397000,null,124931304,7339724,5.8750079163505727E-2,0,0,124931304,null,17045821,6023100,0,0,1700500,2769603,0,1319200,989018,0,0,4244400,null,0,0,160494300,0,955343,521600,51700,2037251,389,406,3990000,17314920,5744900,0,1171100,2210062,1392111,1340147,0,0,0,5456600,null,0,0,155910199,0,1168848,532130,50200,1926174,542.32999999999993,10205892,12426764.100000001,1749500,560985.24,138812,2278700,0,7693738.8600000003,0,0,5028,0,0,141395749.71000001,812380,315204,0,59000,1947126,12570965,2059966,168200,370254,2274900,0,7588179,0,0,109466,null,0,0,143591213,1008704,296003,87259,60400,0,1890141,77900,0,11752680.130589999,1674193.1522599999,159500,489873.37807999999,2074100,0,6817257.4047499998,209366,0,27453,0,218196,9380.9952900000008,0,0,73360.200209999995,0,0,0,138100258.32824001,934243.51755999995,346336.70225999999,104055.25377,59000,136000,1739568.55052,88300,0,11641288.390000001,1228300,267127.53000000003,1050633.5900000001,2058456,0,6591580.25,195984,0,27048,0,138549,8192.86,0,0,75417.16,0,0,132636581.59999999,1005913.01,414248.16,235428.84,58000,120700,1655611.33,211800,null,17556577.5,6187880.7000000002,0,817171.04,3008774.5,1268800.1599999999,816573.1,0,0,0,5457378,null,0,0,124154519.97,0,1116882.52,671885.54,50150.06,2063792.73,0,0,18254460.5,7270189.0800000001,8166040.4199999999,538875,2279356,143331153.13,1892682,163179542.13,18607186.27,8250454.6699999999,7792137.5999999996,781321,1783273,158390303.65000001,1740230,173498844.65000001,19400639.270000003,8809506,7718080,949898.85,1923154.42,159968967.80000001,1721878.09,185716364.77000001,18425075.13927,8403041,7620326,590977.71927,1810730.42,150392031.39522001,1565312.7615,178127981.67021,null,5,26,160,449,14,80,21,755]
[855,"Leicestershire",48330064.939890303,402125960,49557575.953628309,409800541.56957585,52330039.632958919,415425720.92945838,52894163.22538121,436265000,null,334175475,29293066,8.7657737301039221E-2,2022661,0,336198135,null,53974595,8881765,0,0,8684665,17851675,1035967,4563523,120000,0,0,12837000,null,0,0,420087732,0,1693492.1,711374.12,242446.6,7678126,385,396,3914167,49928450,9064394,0,7063052,15791466,4676978,98360,0,0,0,13234200,null,0,0,418347585,0,1660612,675326,217942,8016913,442.4,4322000,36405486.840000004,8480700,0,0,14748275,0,13143880.84,0,0,2394,30237,0,406707074.22000003,1644006.58,628976.26,0,277315.58,6339605,33467945,5245480,3803663,0,8644035,0,15734506,0,0,3516,null,36745,0,459161029.83332998,1836978,483832,0,126696,0,5080685,495435,0,31984064.918820001,4797184,3893743,0,8664440,0,13815156.918819999,273000,0,35371,0,389857,94879,0,1320,4373,0,14741,0,469317323.99926001,1711433,632339,0,124071,980,5182685,495435,0,27933767,3494295,3795378,0,7165985,0,12637687,261355,286,32780,13,473719,46120,0,0,12730,13419,0,446203281,1686463,639003,0,94797,984,5288318,499931,null,42421366,8158207,0,6851305,15908973,4398220,58489,0,0,0,7046172,null,0,0,203197997,0,1581962,657360,139203,7181950,578560,0,40970781.659999996,18669857.789999999,10019229.869999999,151614,12130080,325479325.04000002,7554520,363137298.04000002,61650695.920000002,29412886.609999999,16612176.310000001,3333376,12292257,479462853.75999999,7180138,525007944.75999999,55648896.509999998,26842945,15769308,2917098.75,10119544.76,495259888.19999999,6329015,558248722.54999995,52386172.828359999,27054782,13875307,3052940.57008,8403143.2582799997,496402259.72487003,6226208.6615899997,575031639.33138001,null,236,33,30,779,293,72,143,1586]
[856,"Leicester",38264773,247638756.83999997,38404952.727244213,256908660.69735411,40212331.89203272,266857208.73008433,40534653.070649423,271932000,null,202567165,15302006,7.5540406560954731E-2,0,0,202567165,null,38902186,14475000,0,0,2844000,6033000,200000,4961000,741000,0,360000,9253000,null,35186,0,271072029.85000002,0,2021900,545700,73800,3833631,771,771,7710000,37116179,13511896,0,2617318,6297900,4778700,793000,0,0,360000,8722179,null,35186,0,258353183,0,2112900,588200,73000,3707980,892.5,8722179,33437114.120000001,296800,4126700,777100,9809859,360000,17642150.120000001,0,41649,236211,146645,0,270054022.14999998,1758100,540400,0,122700,3429990,27396126,128300,4415302,754700,4985400,0,16392277,0,76496,521213,null,122438,0,259557019.66666999,1542067,494804,0,98000,25000,3347664,418364,460594,29646068.17822,6594806,1068192,659723,4326000,0,14534665,367916.29467999999,0,47709,0,770562.88353999995,65142,465614,88089,546872,0,110777,0,252516518.96946999,1759267,432504,0,90000,21700,3040214,410351,451592,27580766.349999998,6093552,992914,532746,3967600,0,13980468.58,353748,0,49964,0,277545.46000000002,65028.61,453013.7,42357,659549,112280,0,239229695.19999999,2144038,530370,0,89097,21485,3386231,562912,null,35426869.870000005,11917464.710000001,0,2629835.86,5445205.2999999998,4448810,839589,0,0,360000,9481593,null,304372,0,245906211.15000001,0,1997496,555210,100000,3219715,454152,499567,39927602.390000001,16206692.26,14982761.130000001,2757704,5980445,263428938.09999999,3808450,294429292.10000002,42391180.649999999,16709513.26,17421703.390000001,2248132,6011832,268581437.69,4172491,304585251.69,40789257,16378609,17653715,2139752,4617181,264219041,3307730,338086789,37172290,15244888,15993150,1833793,4100459,254188087.12,3649213,299240540.12,null,0,65,133,768,125,38,61,1190]
[857,"Rutland",3588684.18,24475469.82,3890048.1406342243,25504563.906352345,3967576.5966500784,26290918.302687909,4004612.2046887768,27317000,null,21106711,1940807,9.1952128401246405E-2,1,300000,21106713,null,3099400,528600,0,0,484700,1765000,0,138000,108100,0,0,75000,null,0,0,26222000,0,70681,102988,17670,496764,7.5,7.5,75000,2772300,542253,0,551713,1357234,138000,108100,0,0,0,75000,null,0,0,25513212,0,67900,98800,17000,578000,7.5,75000,2883815.17,1267500,138000,59200,1146100,0,260900.17,0,0,12115,0,0,14274576.02,61100,114600,0,18000,490300,2667833,1093300,119799,51401,1142104,0,260878,0,0,0,null,351,0,19132322,54400,107400,0,27100,16000,572800,0,0,1838791,138500,252600,49900,1061500,0,280049,30814,0,5321,0,17200,1763,0,0,498,0,646,0,27420945,169600,289600,30500,48300,0,542400,0,0,1527080,30300,206302,35100,925000,0,273206,30200,0,5300,0,14756,5991,0,0,255,670,0,25285607,119200,203100,0,114100,0,371100,0,null,2813104.9099999997,438124.35,0,595106.43999999994,1475011.82,134690.17000000001,95172.13,0,0,0,75000,null,0,0,11527725.390000001,0,66247.87,125077.55,16561.97,609073.23,13010.18,0,2517898.48,713676.18,220133.3,63900,1520189,15383293.619999999,517808,18752616.620000001,3420369.42,758949.8,257355.62,64416,2339648,18125683.550000001,448959,21562191.550000001,3584715,1878311,498799,63582,1144023,29131062,509497,32922393,3408090,1721822,539727,38655,1107886,26886064.43,615004,32112646.43,null,45,0,0,9.5,13,1,3,71.5]
[860,"Staffordshire",58212569.200000003,536479246.94000006,57482973.184579812,545243684.85266054,62193080.147409,550819878.2739929,63165697.390780732,548275000,null,445012564,26318459,5.9140934726508082E-2,385391,250000,445397955,null,62679537,18946009,0,0,1966672,9594470,250000,5444990,2531630,0,250140,22616430,null,155066,924130,573434166,0,2791010,2266348,534680,9114072,2196,2278,22616426,63488425,19127799,0,1588521,8679560,4877990,2528080,0,0,250140,25340220,null,171985,924130,572966760,0,2848910,2221986,528490,7290980,2601.5,25340220,49030266.399999999,3259620,4539672,1970210,4056240,250140,32737325.399999999,0,0,1252912,40017,924130,528723911.49000001,2505758.11,2606218.73,0,530038,7186727,47405480.600000001,2343229.6,5252980,1965940,3290430,200140,32133189,0,0,1257312,null,38130,924130,571704413.65044999,2567335.4614800001,818612.49169000005,0,513400,1074315.9070299999,6614709.1875299998,993949.60684999998,148521.20561999999,45203929,0,5230080,2960920,3490430,54140,28516390,950710,0,125540,0,1533790,75739,0,0,1253120,0,45220,967850,582966962,2370830,610760,28790,515310,765220,6286755.1004799996,655079.78829000005,291645.11122999998,42882020,0,4678630,2929870,3290430,54140,27185310,927940,0,117380,0,1386170,89030,0,0,1244610,47190,931320,563201038,2240490,730320,28790,464580,791730,7043790,108210,null,65520494.649999999,20907497.489999998,0,1498376.38,9015183.4199999999,5083180,2559987.7999999998,0,0,182017,25145000,null,204054.84,925197.72,480430561.25999999,0,2848900,2115230,528490,7936338,861223,483940,72425097.569999993,25500483.329999998,36632925.240000002,4845347,5446342,545664263.88,8161410,589429968.88,70174418.210000008,27600444.600000001,34733065.609999999,2962745,4878163,564906716.96000004,7580355,614819975.96000004,70869691.719999999,27996830.969999999,34646156.609999999,4263614.3899999997,3963089.75,604591061.49000001,6675812.3200000003,653520292.46000004,66345984,26336244.120000001,31905221.100000001,4103181.08,4001337.7,595946163.38999999,6917356.6100000003,662498194.95000005,null,33,0,375,1880,352,64,130,2834]
[861,"Stoke-on-Trent",24602155.469999999,179939425.05000001,27050342.100364801,186633770.09420288,28707948.451207224,191050053.95695743,28915904.129012194,192777000,null,140261578,16309638,0.11628015478337196,0,0,140261578,null,26727915,8101874,0,0,1537220,5497310,0,1906588,3570318,0,0,6100000,null,0,14605,193423424.59999999,150553,654450,447713,126440,2378420,610,610,6100000,27108929,8721965,0,499004,4881840,1969979,4287002,0,0,0,6736268,null,0,12871,192232556,481160,879689,31033,130950,2397920,695,6730000,19953360.220000003,2036826,693171,4487552,4604840,40000,7909258.8499999996,0,0,168841,0,12871.37,161944631.49000001,735550,457710,1088180,88560,2342040,19011069,1861690,1101320,3307000,4769040,0,7608556,0,0,351895,null,0,11568,161360341,514530,408570,1214050,130210,0,2131940,0,0,16213945.869960001,1454114,1391548,1430588,4604838,0,6228128,210029.86996000001,0,31481,0,468620,23862,195780,0,164138,0,0,10819,176975458.97745001,860725.73585000006,300048.39828999998,351981.15808999998,154854.47515000001,52949.717340000003,1612758.6350400001,213709.15656999999,0,15735361,3020618,0,1524162,3949360,0,6142329,210978,0,31104,0,412580,6250,191753,0,237700,0,8527,170943886,942211,310195,0,57181,0,2035860,0,null,26604730.41,7858975.8499999996,0,1159870.56,4357045,1980663,4181365,0,0,0,7054322,null,0,12489,187556723.41,44316.4,772744.29,430953.82,131227.4,2772959.67,217813.27,0,26231056.939999998,9646795.8499999996,8490370.5099999998,3557895.58,4535995,175533066.22,2699723.04,190145857.84,26844041.040000003,9962303.5600000005,8284219.5599999996,3512636.23,5084881.6900000004,188170061.94,2467168.4500000002,205441502.24000001,27956391.740000002,11699419,8850700,2877650.42,4528622.32,206415859.19999999,2284616,245523358.19999999,26421794.429820001,9930205,8776468,3239354.26982,4475767.16,204901007.17002001,1872606.08363,234025856.70080999,null,24,10,110,600,81,76,80,981]
[865,"Wiltshire",31395685.199999999,294154952.01999998,35997073.408255503,303113227.62522,37111481.597259954,305428386.22576278,37665358.355789915,310400000,null,242458284,11957918,4.9319486233763823E-2,0,20000,242458284,null,29231185,7586819,0,0,4317105,8357541,0,3342939,0,0,0,5540000,null,80781,6000,319937026,523490,1054150,2300773,88000,6631855,464,464,4640000,27628528,6668085,0,4120729,7344600,4042376,5957,0,0,0,5360000,null,80781,6000,318895838,539570,1115250,1272360,77300,5320207,486,4693333,19446189.32,3696358,1723700,5957,4957206,0,8972983.3200000003,0,0,3204,80781,6000,234196375.38999999,1106605,1364997,542519,88957,4937481,23474516.606039997,3492357.5846099998,1879890.0838899999,446472.58461000002,5376158,0,12230249,0,0,5906.7729499999996,null,35517.978210000001,7964.6017700000002,278823136.71346003,1624865.8293300001,1229454.67689,536000,88957,0,4569852.5930000003,1728800,0,24967331.798739996,3896009.9870000002,2762770.1765200002,18951.64,6425793.2180000003,0,10915549.11602,247762.42170000001,0,33486,0,471998.14643000002,117900.00997,0,0,6340,0,63045.761209999997,7725.3218900000002,327984485.70708001,1439010.30476,1323579.4307899999,518480,88957,343274.19491000002,4730883.6268100003,855850.87355999998,0,23786713.309999999,3608676.51,2759376.97,18764.34,6293626.7599999998,0,10469251.119999999,240786.69,0,32780,0,227600.58,55890.27,0,0,10837.38,61495.57,7627.12,309901649.19999999,1646479.8,1201445.45,393480.13,88957,220432.9,4403222.58,136909.44,null,27475960.079999998,7268042.0999999996,0,4189182.78,7492606.8799999999,4202612.16,0,0,0,0,4241818.57,null,75697.59,6000,200620415.11000001,529198.41,1112796.83,1576553.38,88000,5537201.8099999996,358115,0,37874222.019999996,21363547.210000001,9681982.6600000001,2406483.4900000002,4422208.66,225995281.28,5502446.0899999999,248616179.28,43703631.43,25942486.670000002,11188862.619999999,2016057.92,4556224.22,268002439.37,6368443.2400000002,290687955.68000001,46139089,26589326,13021368,1339792,5188603,345976264.75,5587980,382191310.75,34356596,12185742,12254257,2855383,7061214,340229704.36000001,4699809,383900770.36000001,null,266,360,0,506,117,165,55,1469]
[866,"Swindon",21330746.670000002,140199320.95999998,22839523.444891475,145448710.86326456,24282892.127820227,152586108.27650595,24497300.268951062,157108000,null,116455675,16430675,0.14108951753531976,206801,350000,116662476,null,20204312,9040639,0,0,957100,2566200,550000,1362260,235000,0,0,5493113,null,0,0,147004812,93700,368900,460400,60500,2710800,456,456,4560000,22267116,8639500,0,2316700,3709700,602516,230000,0,0,0,6768700,null,0,0,144893811,86500,354600,290700,59600,2550200,538.4,5083233,15834019.280000001,1495784,175449.28,583013,3134145,0,10379581,0,0,66047,0,0,96613548.530000001,552708,301701,217093,72638,2599251,15996724,1401894,849625,575804,3495310,0,9503340,0,45731,125020,null,0,0,139698455,555378,310987,0,72715,0,2898163,0,0,14854851.630830001,1814989,649512,513570,2746820,0,8359060.6308300002,241970,43776,33728,1809,260596,6911,0,0,182110,0,0,0,142448877.55133,683345,367516,0,83988,0,1894117,0,0,14413846.539999999,1823883,625032,556163,2690421,0,8074468.54,240940,38000,32936,1772,239958,6359,0,0,83914,0,0,136955107.90000001,669176,327508,0,83251,330080,1662224,0,null,22943084,8209429,0,3210338,4002074,1209772,379904,0,0,0,5931567,null,0,0,84924319,102180,498780,428629,90390,2493616,0,0,18443805.630000003,5484921.75,9621955.8800000008,49263,3287665,95329553.799999997,2330750,103066006.8,21598708.560000002,6580188.1699999999,10191011.390000001,746832,4080677,125588187.29000001,2625591,136815441.28999999,21946428.649999999,8624243,9614579,19984.650000000001,3687622,150914537.87,2300975,173174708.09,21700735.976670001,8794890,9081587,912938.53666999994,2911320.44,149506480.94,2616838.71,165286673.44,null,0,172,188,445,53,209,42,1109]
[867,"Bracknell Forest",11507705.917740185,76487048.25,12306981.77727668,78920618.676623508,12850989.570258114,80885374.465306073,12927311.761375923,82784000,null,61486001,3151197,5.1250641589131812E-2,0,100000,61486001,null,11387168,2962033,0,0,1091327,4132670,132000,1120640,84000,14498,0,1850000,null,0,0,84491640,0,304379,341754,43656,1762763,231,231,1850000,11482023,3530140,0,91440,4423353,1120620,84000,14470,0,0,2218000,null,0,0,82277773.620000005,0,327242,337342,42700,1672782,231,2218000,9399288.4299999997,722250,1006202,0,4008020,0,3645254.43,0,14470,3092,0,0,79753346.519999996,336050,310510,0,43710,1576120,8621774,669010,485540,17990,3850000,0,3499234,0,0,100000,null,0,0,81767211,337972,189577,136004,22700,56048,1447456,124704,0,8368307.6546599995,697621,427868,17990,3892610,0,3160246.65466,50060,0,6752,0,41087,3427,0,0,70646,0,0,0,77342452.524910003,422926,198714,0,22700,56048,1305026,124704,0,7899655.75,317211,559942,17822,3876116,0,2960878.72,48082,16955.18,6616,1772,36613.85,2418,0,0,55229,0,0,73613609.540000007,422926,198714,115433,22700,56048,1694142,115131,null,12208265,1729749,0,579576,4428998,1120931,84000,40000,0,0,4225011,null,0,0,79091776,0,341570,368146,33403,1633347,238951,84217,13645337.640000001,4146611,3868274.64,1116121,4514331,83455193.140000001,1782533,92175695.140000001,16400395.77,7410472,3654589.77,1259237,4076097,80901994.379999995,1653058,91649059.379999995,12382675.050000001,3954859,3408906,1267292.08,3751617.97,81890364.239999995,1395574,92652691.469999999,15244837.217130002,6723795,3342340,1206785.17603,3971917.0411,82033785.255779997,1383725,94554661.530000001,null,0,35,46,174,96,28,17,396]
[868,"Windsor and Maidenhead",14874226.220000001,96511639.590000004,15140938.356518103,99796031.332772478,15774452.234182134,101068775.58146435,16053367.736226523,104388000,null,76116935,5023185,6.5993001426029568E-2,0,0,76116936,null,14886281,4976947,0,0,484815,5540313,150000,954997,929209,0,0,1850000,null,0,0,109078421,0,469860,393830,53190,1326588,205,222,2160000,14960277,4851719,0,616515,5350560,913236,990719,0,0,0,2236000,null,1528,0,109058191,63780,584850,279330,57050,1523612,229.6,2236000,12231624.890000001,743635,533888,623183,5926428,0,4401920.8899999997,0,0,1644,926,0,98697839.299999997,582676,250870,399420,7970,1552480,10879458,358573,234530,747435,6176571,0,3359692,0,0,1881,null,776,0,105936556.72169,649710,173790,435420,8040,0,1317952,183813,0,11226948,403863,1492420,570560,5583888,0,3022575,46442,0,5321,0,71312,19607,0,0,2076,0,8884,0,105604460,613730,194860,425420,13290,31400,1341486,187095,0,10129774,105509,1953770,225865,4974624,0,2745625,44045,0,5576,0,58135,11259,0,0,3336,2030,0,99089264.010000005,612810,227870,328420,15630,46790,1517921,78016,null,15355662,5406983,0,759027,5134842,926735,843853,0,0,0,2283136,null,1086,0,80756555,0,460067,350196,37689,1290092,55851,54135,16639245.370000001,4802149,4688322.37,1639615,5509159,94614340.489999995,1487749,101516290.48999999,18382355.649999999,6096398,4342706.6500000004,2207248,5736003,111068944.29000001,1539018,119393003.29000001,18865858.690000001,6450397,3606682,2439012.83,6369766.8600000003,112947731.55,1371231.82,122441989.19,16350443,6446375,3486362,403493,6014213,106197420.40000001,922137,119594341.40000001,null,0,56,30,242,62,2,34,426]
[869,"West Berkshire",17110968.609999999,115386411.92,16546375.378380328,118509553.0954857,17542633.025963694,120013098.42988609,17710699.859684624,119882000,null,94045332,4629987,4.9231438727867963E-2,333798,42000,94379130,null,16446029,5985337,0,0,467413,4184349,42000,1150020,1111210,0,0,3505700,null,0,0,126207949,462000,947596,921264,36155,2295605,333,354,3499406,15830994,5386014,0,802311,3004597,1258510,1125722,0,0,0,4253840,null,0,0,124698538,546468,576196,439345,24841,2210905,437,4202000,13432865.379999999,2079569,348451,874491,3784992,0,6327229.3799999999,0,0,0,18133,0,107050118.58,652409,247585,341651,54765,1987047,12752043,1213473,272506,924317,4040080,0,6300087,0,0,1580,null,0,0,123297793,505620,444471,315940,56417,28002,1911867,17390,248140,12322126.902199998,1345830.3,1318360.5631200001,116882.91278,3637491.25141,0,5587500,96131,0,12974,0,197329,0,0,3011,6616.8748900000001,0,0,0,129055230.60013001,471209.71247999999,204709.95874999999,315861.12375999999,404239.30288999999,30358.082160000002,2091528.54959,17950,260695,11720762,1162945,1235559,81677,3626704,0,5296260,92284,0,12712,0,205603,1,0,0,4390,2627,0,122538942.90000001,486627,221200,350818,109014,32956,1994883,17700,null,15325646,5200361,0,1613130,2267165,1834155,282896,0,0,0,4127939,null,0,0,94397405,447533,715903,427474,34251,2209570,119617,0,20681280.98,9625893.5,7037684.4800000004,1014600,3003103,108856296.79000001,2112609,116975681.79000001,21923252.809999999,10204738,6869500.8099999996,1102949,3746065,118639682.55,2173610,129119169.55,23050125,10879623,6415483,1350906,4404113,137875203.22999999,2257528.7799999998,150818528.84999999,20499360,10565205,5802927,997107,3134121,130541892.34999999,2165554,146813009.34999999,null,0,119,84,299,82,33,51,668]
[870,"Reading",13544092.199999999,90083483.980000004,16719729.191603491,95005252.686712429,16461323.42535964,97533348.953603506,17032412.880008169,103699000,null,68006895,3533080,5.1951791064714835E-2,722490,0,68729385,null,14090868,4696700,0,0,2491000,2570000,100000,992800,534100,0,100000,2590000,null,15768,500,96316800,95700,395961,237360,56800,1570000,88,96,926664,12376773,3784766,0,2314288,2549251,1070400,361800,0,0,100000,2180000,null,15768,500,95579226,89100,447810,211124,53500,1114760,228,2016000,7414530.2000000002,1782473,206948,807434,2781000,100000,1710539.2,0,2004,7864,15768,500,75540924.670000002,428082,180290,50569,52100,1222200,8826291,572200,484873,632838,2700000,110352,4298357,0,1097,11600,null,11784,3190,80848891,406956,148800,23200,49300,58698,1113531,165528,20100,8815461,402009,504409,647649,2950000,90000,3968203,114140,0,15963,0,112267,2217,0,0,6339,0,1345,920,92075365,457180,184510,282000,47800,38080,1024899,100890,11210,7951907,112300,391174,437450,2961200,61000,3730811,113516,0,15636,0,113117,8947,0,0,6266,0,490,86645389,459606,175410,273000,39900,38815,1128000,0,null,13121404,4155909,0,2418111,2940038,1024184,346894,0,0,100000,2120000,null,15768,500,94949995,80003,346066,226240,50048,1417237,140000,0,16585133.370000001,7256394,1837797.37,4070109,3420833,79272017.519999996,1698435,88563079.519999996,16429428.24,7370267.6600000001,2961330.58,2950800,3147030,78047803.390000001,1670745,89571786.390000001,17341345,6347150,4531081,2408596,4054518,98811446,1368103,115245176,16105410.611500001,6288993,4368574,1952307.2215,3495536.39,97114461.601610005,1512281.442,118980032.64711,null,0,93,100,249,64,35,35,576]
[871,"Slough",18824622,128235305.88,19814353.638688788,135387235.55044919,20507952.798196971,139154323.24286237,20594370.306104187,143669000,null,103159367,21703724,0.21039024018051602,1271334,0,104430701,null,17448187,6210644,493431,0,3655058,883000,0,1229540,758240,0,0,4218274,null,0,0,144967628,201000,288277,493970,514967,1708045,285,285,2850000,15913476,7130625,0,864753,1075553,1828651,449000,0,573889,40000,3949319,null,1686,0,130910746,127927,288277,315135,514967,1708045,395,9988942,14340055.65,921862,1472890,946351,1954630,40000,8679157.6500000004,0,0,323479,1686,0,106334239.3,269883,292880,128236,177956,1637945,12693703,6242,1511558,626611,2150461,40114,7961401,0,0,395000,null,2316,0,120514516,593348,294314,472454,300839,7411,1563969,23930,2816,12559290.3203,6242,838213,1326161,2150461,40114,7193304.3202999998,145273,0,19938,0,331415,106140,0,0,399600,0,2429,0,129615538.31629001,382647,292351,471784,631929,6070,1570641,23930,2816,11664026,6245,794991,1082095,2117994,40000,7011705,143988,0,21516,0,241840,62286,0,0,139040,2326,0,121320415,430705,312920,479391,213630,2303,1733555,0,null,14601925.439999999,355400.5,0,111267.6,251656,1894079,400782,0,493341,80000,11015399.34,null,0,0,86350044.680000007,110,841,839,0,1947,17,0,21814825.23,6710838.5300000003,11745596.699999999,896442,2461948,103538536.63,3122782,114295709.63,20775398.050000001,7317152.4900000002,11440110.560000001,490721,1527414,114328754.5,1632955,122159802.5,20262205,6988396,10663211,962813,1647785,133424286,1518325,142653153,19053591,6595084,9833210,619157,2006140,127443780.69,1395872,140305816.69,null,0,202,105,344,46,28,26,751]
[872,"Wokingham",17877781.870000001,107853862.94,17325057.873212226,111965131.30129738,17588219.000188198,112743760.13466246,17655591.475825306,115559000,null,87067524,6682065,7.6745779517056203E-2,1319641,0,88387165,null,18272729.100000001,3852448.1,0,0,736687,6144000,1531313,123000,611000,0,230000,5044281,null,0,0,116380743.09,344000,502000,217000,344000,1496000,274,274,2740000,18509138,3831346,0,272303,6147000,775804,961000,83696,0,230000,6207989,null,0,0,118653840,344000,488000,208000,361000,1675000,289,5717989.2000000002,12934682.780000001,1352000,111290,437000,4551000,230000,6250728.7800000003,0,0,2664,0,0,102971768.97,527480,198940,347610,343000,1800280,11763005.672190001,719967,111290,426880,4379070,100000,6020325.0575000001,0,0,5473.6146900000003,null,0,0,109403502.26275,530790,208000,347610,341690,0,1578280,0,0,10498154.42735,292430,111570,364580,4229070,0,5097837,95136.574770000007,0,13610,0,264240,10413.3719,0,0,19267.480680000001,0,0,0,117654948.50722,622775,304830,327610,393900,0,1592450,0,0,10285843.529999999,280540,100540,336720,4179990,0,4944457.68,90978,0,12816,0,252604,75876,0,0,11321.85,0,0,110830771,701107,301993,326610,76460,0,1627340,0,null,18450012,3605210,0,1272303,5182000,775803,973000,83696,0,230000,6328000,null,0,0,117045860,231196,492768,217755,0,1650696,6116,0,20965498.629999999,7551894.8899999997,6514153.7400000002,1435590,5463860,107794624.37,1517345,117211016.37,19410204.780000001,7458904.3799999999,6216048.4000000004,1179242,4556010,106754827.59,1539065,117740509.59,19552245.879999999,8613779,5610083,951800.36,4376583.5199999996,124422280.27,1629951.97,136045619.94999999,18490159,8337330,5342244,560980,4249605,117135012.17,1729757,129444858.17,null,0,83,31,250,73,32,17,486]
[873,"Cambridgeshire",61386891.331832886,370756412.44,62564745.530329771,379548888.08812332,63799037.751987301,384666164.99862558,64194275.148994222,409221000,null,284929660,24735210,8.68116362473461E-2,4127177,0,289056837,null,54550816,15526937,0,0,7651511,10099073,144586,6391675,3777986,0,0,10870332,null,88716,0,386265645,0,1476833,813983,182332,7161305,973,999,9881666,57638119,17889611,0,12033562,7207528,5279396,3315879,0,0,0,11823462,null,88681,0,379874408,0,1326836,744845,150259,6853557,1137.8300000000002,11273186,43886021.450000003,11511967,2998295,4337477,6944399,0,17918068.399999999,0,0,91210.45,84604.6,0,278668335.97000003,1336403,916306.5,0.1,142244,6393624,36624103.520390004,7897174.1167599997,5210090.2514000004,2993995,6270876.6521199998,0,13686036.20331,0,0,495511,null,70420.296799999996,0,218157246.65448999,1293699,519929.63,0,147466,35392.81,6085310,0,0,29123711,3036237,1925260,140480,5787981,0,16756002,337486,0,44052,0,487365,35138,0,0,501896,0,71814,0,379894711,1327684.40334,1037658.6285699999,121998.3928,162334.79504,52058.280680000003,6619045,0,0,27641581.529999997,2238246.15,1759559.4,184438.26,5579643.1699999999,0,16605319.77,327064.99,0,42632,0,471787.86,2257.67,0,0,362030.24,68602.02,0,361970102.39999998,1251732,1073401.3700000001,125527.09,141344,49608.29,6500205,0,null,55990452,17902910,0,12044227,7044296,4661938,3283116,0,0,0,10965284,null,88681,0,240056330,0,1539766,854779,163909,7259780,0,0,42815042.789999999,15564584.619999999,19425935.170000002,1322896,6501627,280099028.22000003,7008274,310472767.22000003,45548403.649999999,19528368.149999999,18115238.5,1554728,6350069,337534181.18000001,6929353,370218147.18000001,52861300.07,25828017,18913608,1631751.46,6487923.6100000003,435935711.27999997,6799155.54,472241062.29000002,53030298.492239997,25978565,18697073,2034839.4598999999,6319821.0323400004,425757885.68800002,6299718.7699999996,476512126.04301,null,0,108,120,888,250,70,93,1529]
[874,"Peterborough",25183283.169999998,149212024.71000001,25791690.847050425,158228516.60076684,26986002.404314645,166190602.80948064,27218142.200168192,177386000,null,121511231,17910483,0.14739775782536513,754147,0,122265378,null,23161644.729999997,7239690.6799999997,0,0,1819710.41,7148207.3200000003,0,1608322,39973.99,0,0,5305740.33,null,0,0,170658105.50999999,0,633144.64,346764.05,0,1523552.33,513,535,5258333,21842752,5627125,0,1520868,6450695,1702459,63720,0,0,0,6472000,null,5885,0,160636603.19,91885.65,521060.93,459355.1,125352.74,1519103.85,685,6472000,17378535.850000001,4576452.8899999997,1848367.81,97000.06,3453686.93,0,7396417.9699999997,0,0,0,6610.19,0,127737189.90000001,520270.24,311716.31,102788.46,234481.01,1528845.81,15642821.812640002,5612395.6732299998,150897.54759999999,635709.41599999997,2264925.1325099999,0,6970992.2759999996,0,0,7901.7673000000004,null,0,0,141393359.97058001,533804.20652999997,336739.36943999998,41647.673260000003,0,0,1627886.15356,0,0,13455688.514599999,2503746.7659399998,1633199.12619,490739.77515,2224346.5313900001,0,6153359.0684399996,179120,0,23033,0,240704.76632,7439.48117,0,0,0,0,0,0,147433692.59527999,542568.94741000002,261396.57209999999,84258.683990000005,39623.057710000001,30505.197029999999,1428038.6592000001,0,0,12277731.840000002,861344.88,1608866.33,510765.12,2983153.84,0,5858001.1100000003,173440.48,0,23136,0,238446.72,20577.36,0,0,0,0,0,142499259.40000001,665687.24,358943.76,154929.79,39541.599999999999,30442.49,1482084.3,0,null,25041421,6800991,0,2693052,7182390,1830157,49803,0,0,0,6472000,null,13028,0,127064706,149.96,506967.16,218455.21,0,2370107.2000000002,0,0,25690356.140000001,12388677.17,7984255.5599999996,46164.41,5271259,134644235.94999999,2220177.4300000002,160016801.94,25131644.440000001,13282421.73,7619781.71,87751,4141690,151750720.65000001,2199128,172456648.65000001,24672940.120000001,12010582.720000001,7365594,68569.210000000006,5228194.1900000004,165438199.88,1826145.39,200823308.75999999,22631667.09,11672591,6762395,130860.09,4065821,153574600.87,1790429.08,191885470.72999999,null,44,141,189,514,86,51,64,1089]
[876,"Halton",13150126.01,98009134.080000013,13887823.844936615,101570003.6515968,14193053.435310928,102234795.49717213,14458052.178860752,102634000,null,78371830,3918592,5.0000006379843372E-2,600301,0,78972131,null,7926053,738457,0,0,97091,3361800,0,908932,123230,0,0,2670000,null,26543,0,94887832,234560,494660,762600,50540,1115023,301,315,3091700,13654257,6466322,0,240584,1584305,1733785,126075,0,0,0,3485156,null,18030,0,95094811,69198,536246,872677,52440,977045,324,6405982,9513591.4400000013,1129210,747625,127430,1553240,0,5904597.4400000004,0,0,21042,30447,0,92348482.560000002,633570,774480,71480,52530,1422095,9269428,822698,846650,338958,1522780,0,5592842,0,0,119405,null,26095,0,101380494,463340,210929,281283,47617,124809,992858,177248,0,8224948,0,881830,363321,1741880,0,4880229,155790,0,21284,0,128743,4652,0,0,38592,0,8627,0,95735821,498520,226090,301500,51040,133780,1040970,285450,0,7963081,0,871015,165094,1714188,0,4870913,159351,0,20848,0,134878,4783,0,0,13384,8627,0,93959260,620853,219506,341500,100672,127412,0,280520,null,12294015.720000001,4907838.72,0,505458.94,1856327.55,1402510,101442,0,0,0,3485156,null,35282.51,0,94881792.450000003,67491.320000000007,374827.85,408973.72,22444.62,726864.22,40534.82,0,8327532.4700000007,893365,6054103.1500000004,0,1380064.32,91745036.629999995,1297285.52,104903687.18000001,11428603.960000001,4052126.55,5693698.4100000001,279507,1403272,98383766.700000003,1108008,104425720.7,11357887.01,3931609,5662064.0099999998,220992,1543222,104506719.02,944502,114112668.02,12661543.27761,5083477,5646447,270732.27760999999,1660887,105420534.94001,893884.6,114509854.94001,null,150,0,60,282,46,37,36,611]
[877,"Warrington",17242857.190000001,143013443.39999998,19024737.849579737,146822367.18906429,20080076.150216408,148590208.09931076,20438850.338890508,149521000,null,118541548,14327056,0.12086105033823247,1142439,0,119683987,null,16663893,7214341,0,1773000,490642,2300000,42000,360000,1719910,0,0,2760000,null,4000,0,147736801,141840,436926,1010025,0,1170464,306,306,3360000,14065208,4396275,1377269,109516,2100000,340000,1750000,105950,0,0,3882198,null,4000,0,147306981,133232,396276,1112912,48008,1269631,323,6115469,10781203.609999999,1278513,253484,1999589,2100000,0,5061781.6100000003,0,0,65474,22362,0,153214215.77000001,378929,1416010,150467,94600,1719355,10221347,1303849,261529,1699037,1809310,0,5058112,0,0,67398,null,22112,0,150672096,638740,1435129,264039,114175,0,1605067,85654,0,10130724,1272587,168024,1821389,1809309,0,4685877,120599,18351,17034,1809,138197,0,0,0,40849,0,36699,0,144865155,421258.28249000001,115188.82879,102641.614,53742.805,105220.20336,1413117.9811100001,0,0,9837768.8200000003,1241217,286371,1833206,1613975,0,4518135,120269,18688,16554,1772,114098,8023.82,0,0,29516,35944,0,142117454,406472,283190,0,67193,139079,1203401,0,null,16483332,4239291,1377269,163575,2372638,2625975,2072831,91055,0,0,3536698,null,4000,0,150063287,82930,441801,909616,343,1391225,0,0,22547506.91,14279395.58,5267053.33,572133,2428925,158042079.63999999,1424314,170590623.63999999,22795828.030000001,14104013.16,5108813.87,1159121,2423880,163720415.69,1499933,180620402.69,20367940,12840825,5152410,539307,1835398,167625162,1596578,183001054,18280542.350000001,10394305.35,5239003,811375,1835859,162784842.65000001,1559481,188586072.65000001,null,84,88,68,283,57,78,29,687]
[878,"Devon",52210515,430220911.90000004,56324983.194685474,442222273.46520531,59589509.77575922,445848049.51125491,59797362.298001982,460401000,null,348643368,38116673,0.10932854744565226,3080112,2686000,351723480,null,{"$f":"SUM(T125:AG125)","v":52059000},17153000,0,0,2461000,11924000,3304000,5798000,1023000,316000,0,10080000,null,0,0,451682000,335000,1925000,1223000,294000,7900000,941,941,9247653,56747000,23322000,0,2620000,11606000,7133000,668000,308000,0,0,11090000,null,0,0,450758000,300000,1925000,1254000,216000,7074000,1050,11791000,41218820.32,6480343,6421958,504093,10247249,0,17525390.32,0,0,31776,8011,0,350836526.75,1932402,1060527,300000,216311,5983489.5499999998,34478849,4068321,1790786,1739879,10017456,0,16833655,0,0,21307,null,7445,0,387985102,2007300,1234670,300000,167800,104700,5790518.04,0,0,31339336,1481859,1904854,2799390,8816905,0,15153154,422449,0,53475,0,602485,4765,0,0,100000,0,0,0,489355357.41794002,2213571.5206300002,1096406.9291000001,0,169467,129087.14320000001,5250195,0,0,27890117.210000001,1754829,1605441,884626,7606675,0,14930579.210000001,413280,0,52328,0,506519,93049,0,0,34161,8630,0,450411439.60000002,1939378,658815,367000,134267,147163,5267004,0,null,53924096,21247723,0,4393403,10827696,5524697,895785,28838,0,0,10999586,null,6368,0,445423877,336019,2020115,980931,198972,10681360,388342,5386,67345956.020000011,36119992.590000004,22549305.43,730387,7946271,372972274.50999999,7337899,420352449.50999999,68725182.300000012,38133265.200000003,21586743.100000001,793230,8211944,390940784.20999998,7439673,443132658.20999998,75137382.519999996,45642298,20343632,584220,8567232.5199999996,502892798.92000002,1400664.71,568033914.82000005,67096279,40478635,18997276,412429,7207939,518518686.11000001,2070258,599026646.11000001,null,29,70,180,867,125,308,113,1692]
[879,"Plymouth",23977873.310000002,172259490.41999999,24675625.719333511,178009083.80798018,25442647.302305147,179099488.80512944,25784093.345436402,180299000,null,134915011,12764257,9.4609613158612868E-2,650488,504000,135565499,null,21983974,8389000,137788,0,2215000,2446000,0,2788891,76444,0,71342,5850000,null,0,9509,181842271,0,863450,851918,680949,3908408,623,623,5330000,23159257,8682374,0,2026892,1688821,2856711,107136,0,0,69313,7718501,null,0,9509,177884360,5000,897018,528421,689008,3182682,835,7918000,18176572,3124925,1449493,252449,2625554,67699,10523317,0,0,123626,0,9509,133445871.31,943802,726298,18098,450720,3340937,17119896,1017982,1408347,615077,2762293,89457,11021840,0,0,118569,null,0,86331,133577539,949529,483759,66856,620074,43600,2890000,160279,0,15115675,1371346,354294,415847,2323083,82979,9912459,332474,0,42568,0,236389,0,0,0,32379,0,11857,0,194446370,991580,385963,70883,683525,61590,2732633,153866,0,15061693.01,878494,1232970,465791,2117096,0,9711274,329263,0,41696,0,227362,0.01,0,0,45890,11857,0,192922891,701095,542953,11144,1620169,80527,1867268,229428,null,27307779.259999998,8785849.9199999999,0,1776975.69,1823051.01,2963236.9,78716.47,0,0,71000,11799889.029999999,null,0,9060.24,136185806.97999999,117,1162287.48,991624.21,524574.59,4603029.6100000003,98213.440000000002,42091.47,26475326.600000001,10785230,13654105.6,525,2035466,136746734.12,3046171,151511281.25999999,27162454.079999998,11014339,12763828.08,442279,2942008,140566423.31,3276620,158589426.31,31573352,15998712,12688789,363563,2522288,204193539,3275804,221655909,30989985,15644502,12887582,129862,2328039,212084737,2988387,234200373,null,46,89,255,606,142,75,34,1247]
[880,"Torbay",12533969.859999999,84264803.910000011,13337085.019794518,86860830.989850149,14039244.195737064,89219330.146822169,14250256.882363616,89808000,null,66817597,9538891,0.14276016241649636,1005844,0,67823441,null,11112007,492770,0,0,128930,2725300,0,440137,366228,0,0,6958642,null,0,0,86920807,242200,385300,172400,55100,1394080,216,216,2160000,7743650.4000000004,2564977.4,0,32016,0,52313,374344,0,0,0,4720000,null,0,0,84451627.659999996,285538,242168,152782,45000,401456,424,6691876,7999995.2000000002,309600,219409,377876,1230522,0,5530527.2000000002,112061,0,220000,0,0,69931989.890000001,324283,167494,0,17655,1347827,7635744,604077,367440,44900,1113900,0,5397848,0,0,107579,null,0,0,74940314,375900,111480,70020,35100,111480,1142980,97128,0,7399236,682000,170242,298619,1168500,0,4649196,137000,0,19249,0,167170,7360,0,0,79400,0,20500,0,94648014,378202,171288,110000,40400,106250,1249440,53311,0,7004502,429200,359428,60024,1170100,0,4501670,134204,0,18652,0,185506,28168,0,0,76300,41250,0,89502811.909999996,345458,171382,0,40400,115106,1244606,92486,null,10343377,1383759,0,1687423,1738041,139674,285169,0,0,0,5109311,null,0,0,49636077,0,271934,192850,52432,1225873,4113,0,10584499.9,2045995,6273184.9000000004,532127,1733193,63285070.109999999,1466257,69366736.109999999,10359427.51,2611230,6126565.5099999998,408739,1212893,79547505.989999995,1993627,88287055.989999995,9120812.0099999998,2177997,5563576.0099999998,312710,1066529,99097221.010000005,1245330,109081108.01000001,8766865,1989975,5246115,433800,1096975,97682510,1232723,107500184,null,0,58,50,406,49,96,13,672]
[881,"Essex",107103840,939747613.82999992,109740867.59367722,958278433.1019752,114873683.86621259,968871147.14551663,116545177.17964299,967030000,null,772230725,86842055,0.11245609917942594,4347043,0,776577768,null,103758334,27108424,112020,0,12628320,19977479,1000000,15392790,3106023,0,1500000,22883888,null,9390,40000,969920662,0,2672475,2971608,236876,11924147,1713,1729,16962166,105669005,33689825,0,5223260,21546322,14932046,3695587,0,160000,1500000,24912700,null,9265,0,958763746,0,2662153,3507139,186358,10783629,2185.9,20599099,77100470.879999995,18608556,640150,1383398,22816435,0,33449527.879999999,0,0,189794,12610,0,687407644.62,901153,0,0,148742,12468537,72785591,14831317,2161389,1563691,21317311,0,32806287,0,0,101020,null,4576,0,923937520,1322493,0,0,150698,0,11799239,1775401,0,70392752.5,13501872,1653344,1285933,21381200,0,30696173,741766,255778,101772.5,23517,593356,47336,0,0,96888,0,13817,0,974800563.41558003,6221523,0,0,449445,0,12863761,2204367,0,62807764.120000005,12970729,1617229,577933,16638051,0,29339633.120000001,733393,116964,98068,12404,606541,17168,0,0,68852,10799,0,937780657,6431993,0,0,408010,0,11528289,2066448,null,99059600,33905615,0,6799147,22768092,12323775,1148006,0,160000,1500000,20445700,null,9265,0,587484808,0,2645827,0,215880,10500788,1209735,164964,121311476.75999999,62099639.259999998,29457287.5,3447247,26307303,686789010.28999996,13901391,759816491.28999996,125765365.15000001,64082220,34449700.149999999,3578576,23654869,842560321.86000001,14137321,920100337.86000001,130176223.56,72055376,34803091,3686520.41,19631236.149999999,1020735947.34,12867464.01,1115114656.78,123198216.81999999,69421881,33135295,3087636.94,17553403.879999999,1031718106.54,12598375.029999999,1155998034.73,null,111,203,634,1988,360,108,107,3511]
[882,"Southend-on-Sea",15377095.98,129641000.27999999,15383621.805823922,133122605.4431169,16170228.698096402,136240983.55451936,16420714.760011986,135680000,null,109058884,14182116,0.13004090524161241,372,107625,109059256,null,14843685,5551892,0,0,1474508,1340973,100000,661329,483000,0,0,5231983,null,0,0,140041571,0,401100,678800,54156,1466893,294,311,3039167,16538497,6139825,0,2317249,1340973,657450,483000,0,0,0,5600000,null,0,0,134584888,0,314685,390605,50687,1562233,369,3540000,13709773.98,2810050,221800,717529,1290973,0,8568734.9800000004,0,625,62,100000,0,103019238.51000001,437758,222619,0,2551,1413800,14422906,2612400,171800,486529,1748623,0,8403554,0,0,0,null,1000000,0,121613936,410906,264034,0,2550,0,1526250,0,0,13895631,2570050,171800,450529,2491056,0,7651255,201774,2695,28089,127,266258,10871,0,0,51127,0,0,0,140906868,543942,237182,0,49285,0,1503100,137000,25000,13701502,2590550,71100,333600,2834950,0,7335061,208106,2079,29284,124,195278,11370,0,0,90000,0,0,134599889,540660,408766,0,67753,24417,1825494,23556,null,16523423,6438590,0,4067487,1587276,807330,453367,0,0,0,3169373,null,0,0,98911211,0,421725,640328,54000,1281071,63943,0,21413060.469999999,13326284.51,5827393.96,689822,1569560,101747587.56999999,1508605,113390249.56999999,26839738.41,15610793.699999999,8981115.7100000009,900453,1347376,118925422.84,1332713,130236666.84,25552137,14765092,8462525,723918,1600602,144792003,1304986,154660072,24999373,13505901,8486720,666862,2339890,145026065.59999999,1610603,171720664.19999999,null,53,0,117,461,62,18,24,735]
[883,"Thurrock",19200865,121471111.84,19835314.837120853,125322092.57796866,20345295.915491,128325541.88429666,20465869.345120579,133936000,null,96458683,13812767,0.14319879320765763,316031,500000,96774714,null,22026328,4648866,0,0,6374150,3586805,500000,2173200,0,0,1253307,3490000,null,0,0,131813671,0,442927,37137,376106,0,276,276,2760000,25387902,3950000,0,5210000,3650000,2340000,0,0,0,1252084,8985818,null,0,0,126620408,0,426906,81294,386540,0,383,3616000,13529243,2353022,0,0,2788868,1252084,7046526,0,0,88743,0,0,90783383.870000005,399703,222551,19488,394178,0,11410890,589800,0,0,2773436,1209277,6679053,0,0,159324,null,0,0,112997760,389515,145500,19488,393645,0,0,0,0,10269103,944700,1043400,0,1923900,0,6175369,93340,0,15359,0,44697,6298,0,0,22040,0,0,0,109806645,506900,251500,0,41800,0,0,0,0,9212347,687059,804680,51720,1787400,0,5654354,93364,0,16560,0,43794,3175,0,0,70241,0,0,109330172,792105,430900,0,110705,0,478783,0,null,17527951.93,4921167,0,3801728,2887136,499783,56000,0,0,1532137.93,3830000,null,0,0,61198341.93,0,498433.51,336595.47,45337.3,0,137136,0,16406831.51,7183509,6328598.54,0,2894723.97,74691756.069999993,1819433.08,176817866.68000001,17648727.640000001,7392071.1200000001,7137975.5199999996,52294,3066387,94039870.5,1703756,145309892.5,18680826,8708404,6694928,150088,3127406,115752571,1767857,138177677,16581327,8368545,6161143,108281,1943358,115765025.8,523078,142350942.80000001,null,0,109,107,302,61,39,6,624]
[884,"Herefordshire",12210990.609999999,107378011.8,13040717.47928909,109869338.47520527,13334680.267295333,111070184.07686234,13569215.634181214,114389000,null,91859637,10103635,0.10998992952693684,739,48000,91860375,null,12853041,5891813,0,0,929659,1976760,175000,1633791,326018,0,0,1920000,null,0,0,111616636.3,0,275466.59000000003,316358,75496.56,0,173,173,1730000,12667498,5224773,0,70000,2543297,1246420,279674,0,0,0,3303334,null,0,0,110340021,0,268560,316524,96348,0,418.1,4021000,9672956.120000001,401000,1286620,378486,2288320,0,5262530.12,0,0,56000,0,0,81441920.030000001,387131,444165,0,70339,0,8943909,637000,1471072,124068,2446841,0,4261289,0,0,3639,null,0,0,98347155,377683,338750,0,91571,133361,20522.511050000001,0,0,8535902.5999999996,538371,1322683,412492,1647343,0,4006025.6,164572,0,21284,0,397383,16610,0,0,9139,0,0,0,107837765.59999999,464401,379073,0,51362,26276,0,0,0,8876696.7799999993,433935,1371897,237265,2336663,0,3786277.5,165425,47392,20848,5316,376071.85,15059,0,0,80547.429999999993,0,0,104576564,442610,365379,0,42542,31479,1534975,0,null,14393255,3655777,0,1315121,3677403,2211576,322334,0,0,0,3211044,null,0,0,82874652,0,341781,335443,78318,0,0,0,14142717.579999998,6730301.2699999996,5406019.3099999996,65314,1941083,86956694.040000007,0,101947591.04000001,14531945.01,7570477.6699999999,5034998.34,82980,1843489,95544888.530000001,0,109157349.53,19058511,12201725,4840985,102872,1912929,113935314.06,0,129678582.06,16073197.52,10247375,4525629,87818.52,1212375,114705661.73999999,0,132760316.73999999,null,0,36,88,224,59,10,22,439]
[885,"Worcestershire",39871070.029999994,344841513.81000006,40581069.411766291,351089124.13992625,43729804.761235088,357177557.73782742,44016372.910238706,361242000,null,287172249,51339291,0.17877525136490469,152,0,287172402,null,39041817,10459214,0,0,6293008,6852612,200000,2468634,778705,0,0,11974048,null,15596,0,363058248,0,669778,1094535,135011,6170943,753,752,7542741,38017435,14937040,0,791472,4481927,3070362,1185083,0,0,0,13532000,null,19551,0,358231820,0,1081488,1296486,137723,5462720,1391,13532000,31431355.690000001,1023148,2628294,1215186.99,5280708,0,21221693.460000001,0,4225,11830,46270.239999999998,0,299557475.06999999,1457657,819239,0,136756,5694268,29003188.895019997,2730888,1058478,477884,3951469,0,20599728.399999999,0,0,81906.624240000005,null,102834.87078,0,364735933.28000998,1489280.71948,1049306.1340000001,0,148002,12583,6549407.1316200001,384953.17070000002,0,29590633,2674723,1213568,470704,4492998,0,19343535,439825,0,54874,0,715645,10049,0,5700,67852,0,101160,0,364834572,1483016,1140788,0,147892,12438,6505136,516637,0,27138596.510000002,2662265,1194914,468166,3463219,0,18104567,429170.51,0,53508,0,513572,25038,0,5700,108602,109875,0,358757076.10000002,1476248,1314842,0,150524,44504,6393373,499401,null,35338838,11141373,0,3421967,6711166,2840524,891264,0,0,0,10312993,null,19551,0,252349904,0,1052904,1070525,122101,5725376,431147,0,50412456.030000001,22450070.25,22444612.780000001,1155349,4362424,290935825.55000001,6010612,340666151.55000001,53815797.829999998,26445437.039999999,22103642.789999999,1298802,3967916,340948712.82999998,6012392,392441799.82999998,55969015.420000002,29462807,22016442.420000002,1525504,2964262,394735407.42000002,6014680,451072356.42000002,53475533.57,27519745,21341363.57,1413135,3201290,383611764.69,5942398,457446868.69,null,0,248,245,1075,143,153,96,1960]
[886,"Kent",132765933.70999998,975886855.09000003,140000317.85269588,1012883787.8771808,147434209.26465324,1038311556.3705221,148713791.66664755,1063356000,null,777057844,89352914,0.1149887549426758,9938854,0,786996698,null,144583178,49267690,0,0,8407843,25573542,1725247,9111249,13453222,0,0,37044385,null,0,0,1072829853,0,2324618,2606077,464414,19041494,2755,3184,30052501,128125320,49536932,0,6446220,16612965,5720929,12153966,0,0,0,37654308,null,0,0,1045016298,0,2619045,2774864,454492,18033758,3723,35330000,98533042.480000004,12482914.08,1457423.02,11134237.99,14095611.35,0,59332983.450000003,0,4225,25647.59,0,0,824458768.05999994,3033737.47,2826555.91,0,545477.53,18382863.23,97666756,7861914,1488484,12242941,13940475,0,61696637,0,0,436305,null,0,0,930200065,3437218,2032107,0,770058,1072917,17600199,369174,0,90219557.997439995,8461689.1828899998,1456587.4053400001,8058016.2326800004,13341443.87081,0,55371546.105719998,1122998,0,152720,0,1706323,264607,0,0,283627.2,0,0,0,1058536375.41,3935604.3282699999,2961882.6581899999,0,769044.57453999994,1057578.5471999999,20044574.597830001,382276.12092000002,0,83645547.480000004,8955705,1636594,8033584,12468171,0,49530847.329999998,1103114,53538,147188,3544,1452872,97257,0,0,163133.15,0,0,1004788768,3867684,3397241,0,1032499,1010109,18435453,215946,null,147030947,46409083,0,9556148,22552364,8026333,14337385,0,0,0,46149634,null,0,0,771495093,0,2144221,3179065,382170,20345203,0,1031074,159139034.70000002,74622851.680000007,65644674.020000003,3206420,15665089,853608413.39999998,21190546,933194073.39999998,163967520.03,82700332.180000007,65677946.850000001,2747306,12841935,925457821.14999998,19272759,1016804453.15,144728488.36000001,65869397,62904191,3071779.84,12883120.52,1099405849.4400001,17019280.399999999,1211806856.54,146842554.21395999,70886863,59503953,3590197.6620100001,12861540.55195,1117579554.2779601,17743771.92326,1268871129.24317,null,50,799,540,2944,503,249,353,5438]
[887,"Medway",28702250.939999998,199470437.75999999,31487915.810816772,206234187.69514066,32422501.890729707,209629175.18557855,32673938.656122304,209412000,null,156980788,17092943,0.1088855726727528,957474,0,157938262,null,32545873,10330253,0,0,4012791,6913643,104904,780647,524372,0,0,9879263,null,0,0,215668357,197734,1117325,864630,223943,4379559,662,662,6620000,23179428,4521966,0,952565,6752516,577058,451771,0,0,0,9923333,null,219,0,195010785,197734,774840,40932,62133,3369934,786,7306629,19955710.939999998,0,670881,462969,7324521,0,11396002.939999999,0,0,101036,301,0,149082043.97,434634,448287,428610,75136,4225319,18511204,0,670881,282967,6943682,0,10602892,0,0,10520,null,262,0,174530879.69999999,409461,440667,289173,75670,0,3874096,0,0,17977956.882300001,273597,390688,283646,6943682,0,9623276.8823000006,188140,0,24729,0,243118,1640,0,0,5268,0,172,0,196976960.05605999,320132,443192,521495,76631,0,3746827,0,0,16489876,264517,395492,173934,6457418,0,8742486,186581,0,24332,0,240059,1587,0,0,3246,224,0,201006108,266400,432351,202423,76477,121956,4082812,0,null,23179428,4521966,0,952565,6752516,577058,451771,0,0,0,9923333,null,219,0,195010785,197734,774840,40932,62133,3030904,0,0,32995789.060000002,12381856,12130722.060000001,82584,8400627,140218852.24000001,4302011,152830081.24000001,32964072.07,15089238,10774965.07,307203,6792666,167816133.66999999,4314009,186275344.66999999,32665935,15751712,10192026,287238,6434959,211653830,4671840,235785109,33618898,16062893,9432265,1652983,6470757,222861772.5,4221582,249689304.5,null,279,169,103,568,143,59,30,1351]
[888,"Lancashire",84740448.75,807801198.75,91965018.810024202,831982953.5059166,98001229.095219314,845899116.55141377,100404644.58346088,839957000,null,685788655,110822653,{"$f":"M135/L135","v":0.16159884272217948},2548988,938925,688337644,null,87391132,31495016,950000,0,5219619,17030085,42506,4854834,1852958,0,0,25691692,null,0,254422,860431716,1488750,1985358,2907689,453721,15034101,2528,2546,25525523,92925798,32485577,0,253476,21491156,4904800,1853000,96600,0,0,31830000,null,0,11189,852138467,1466800,2167671,3311547,586372,15015369,3360.6000000000004,31830000,72102115.560000002,2578106,5047426,2051071,16003817,0,46299693.560000002,0,96605,0,9011,16386,796830355,2383975,2531104,1003000,574471,15838395,72466283,6103084,0,2172309,18421304,0,44983000,0,0,758112,null,13316,15158,821435750,2360859,2213462,1060193,610063,268400,16146606,0,0,70567908,6401900,0,1580799,18220402,0,40362094,1304538,0,169509,0,1502513,611236,0,31998,168751,0,198155,16013,865508799,2343998,2412743,1188168,1025434,280028,16158463,0,0,66892739.409999996,5711201,0,1764700,17319800,0,37859181,1264748.4099999999,0,165316,0,1399641,481336,0,31019,211865,677932,6000,827501065.29999995,4475642,0,982095,803657,268440,15231606,0,null,87153040,27564035,0,1398075,16696905,3787795,1895355,89206,0,0,35712307,null,0,9362,765663962,1432027,1935701,3416833,947533,16181837,640000,200000,164234633.47999999,96042871.239999995,50515862.240000002,3700802,13975098,868164475.67999995,16475069,941855151.67999995,174394304.30000001,109812078.43000001,48539711.869999997,1208140,14834374,876165054.89999998,17760132,953504185.89999998,131919757,66243518,47689790,775467,17210982,903606826.49000001,16430051.050000001,998829719.44000006,131650119.26000001,68734547,44163436,622309,18129827.260000002,867828260.25999999,16083051.460000001,1017470819.09,null,0,87,732,2248,395,299,192,3953]
[889,"Blackburn with Darwen",20480586.869999997,134384811.74000001,20961153.488315396,137687899.57777372,21667552.603920661,138215958.11767411,21841443.218803171,141380000,null,105316125,11066722,0.10508098356258361,323961,0,105640086,null,{"$f":"SUM(T136:AG136)","v":16158045},6525519,0,0,337320,2583000,0,4656447,0,0,0,2050000,null,0,5759,139272512,0,495800,422700,34400,861800,191,191,1910000,{"$f":"SUM(AR136:BD136)","v":16407027},6285147,0,413792,2289000,3835269,0,0,0,0,3578000,null,0,5819,138960530,0,540100,263500,33500,1579600,390,3578000,{"$f":"SUM(BN136:BX136)","v":11333177.16},684438.16,2965133,0,2506631,0,5164366,0,0,7790,4819,0,130564763.16,557200,252500,0,33500,1100000,{"$f":"SUM(CF136:CQ136)","v":12181200},128365,2445053,0,2794005,0,6801821,0,0,6211,null,5745,0,134646724,622700,299300,0,40700,0,175498,0,0,{"$f":"SUM(DB136:DS136)","v":12114295},0,3394073,414800,1727800,343040,5900238,115422,0,15963,0,142535,54075,0,0,0,0,6349,0,131735804,571000,161300,361200,42000,0,1943000,0,0,{"$f":"SUM(ED136:ET136)","v":11256405.92},0,3151390,203951,1779680,0,5772188,118477.41,0,15844,0,144392,60474.51,0,0,0,10009,0,125728803.90000001,479105,474753,0,41089,82875,1600438,89735,null,{"$f":"SUM(FE136:FQ136)","v":16660738},6628644,0,609738,2401745,3415569,0,0,0,0,3599223,null,0,5819,125248905,0,595540,229816,35000,1256560,0,0,{"$f":"SUM(GA136:GD136)","v":16330886.26},8555778,5241962.26,536239,1996907,136030530.66999999,609823,148140721.66999999,{"$f":"SUM(GI136:GL136)","v":19141339.829999998},9709578.1600000001,6411012.5599999996,615342.02,2405407.09,139485362.56999999,1644925,154223682.08000001,{"$f":"SUM(GQ136:GT136)","v":20365970.829999998},10072640.92,6589041.2800000003,846452.86,2857835.77,146431952.19999999,1447791.53,175795967.21000001,{"$f":"SUM(GY136:HB136)","v":18374226},9441387,6662344,365991,1904504,151062329,1642108,169645238,null,0,38,261,196,37,50,32,614]
[890,"Blackpool",14380699.279999999,100301141.16,15373230.76816909,104259973.20494618,16263938.404015107,104255031.19146693,16452346.354302069,102838000,null,77197948,3400757,4.4052427403899391E-2,746444,0,77944392,null,14362177,5293195,0,0,791943,2914127,339647,986942,146323,0,0,3890000,null,0,0,104190933,0,366656,302286,50946,1130911,148,148,1480000,15379962,5869542,0,412190,2008921,960326,167407,0,0,0,5961576,null,0,0,104672186,0,362524,229420,53564,1452044,484,8179655,8955040.0500000007,1025362,940975,156872,2216036,0,4597732.05,0,0,18063,0,0,105564920.26000001,333629,314142,0,51399,1719207,{"$f":"SUM(CF137:CQ137)","v":9203816},1995072,0,651830,2028045,0,4513312,0,0,15557,null,0,0,104025923,404930,257280,0,32573,110263,1576230,0,0,9859346.7620000001,2777251,0,639090,2095593,0,3973342,121354.762,0,18401,0,208452,9843,0,0,16020,0,0,0,101232570.08295999,391598,333459,0,35417,151481,1628839,66962,0,10339892.25,2449517.0099999998,0,638444.09,2866210.58,0,4002414,124041,0,15686,0,213059,11191,0,0,19329.57,0,0,100186122.90000001,365400.82,292320.21000000002,0,31351.41,133851.51999999999,1423947.29,72326.649999999994,null,13370925,3952064,0,486796,2195241,945400,137588,0,0,0,5653836,null,0,0,77523553,0,391399,379420,37197,1345192,61622,0,12377348,4892387,5036055,63308,2385598,98524801,1150211,107364236,12762033,5567101,4662069,110114,2422749,111569109,1171635,122691276,13133279.789999999,5869618,4745568,227499.79,2290594,117285528.37,1146575,130424141.37,13405895,5691978,4664695,121156,2928066,114973252,2275050.7200000002,135648327.72,null,40,40,175,282,29,66,33,665]
[891,"Nottinghamshire",51550822.890000001,509918094.71999997,53417896.328180037,520669360.58744878,56176408.055950575,528012864.08254063,56836080.340753891,525739000.00000006,null,426876284,18475787,4.3281362053835717E-2,3418522,0,430294807,null,53769071,21847213,0,0,3335208,12219136,0,2858109,2712509,0,1764192,9030000,null,2704,0,526694869,0,0,1023459,223311,4548450.37,799,799,7990000,52705003,23569327.280000001,0,3335207.72,8233134,2858109,2712329,0,0,1764192,10230000,null,2704,0,521099045,0,97145,1609880,204507,4129634,948,9180000,42879643.950000003,8910293,2858109,2262329,8233134,1764192,18823803.949999999,0,0,25222,2561,0,456819362.12,61894,1508687,0,182457,4573393,29366889.370000001,92114,2915304,3203455,2740052,1764192,18648880.370000001,0,0,0,null,2892,0,526910806.16000003,358137,1232934,0,197985,457923,3897611,0,0,28178598.275770001,231399,7165175,0,2386099,0,17365970,440046.27577000001,0,58849,0,308983,114780,0,0,105363,0,1934,0,551775336.36259997,1531436,832306,0,302602,282342,5946921,0,0,26414073.670000002,1104555,5127368,0,2295377,0,16884600.280000001,428417.39,0,57332,0,321900,100292,0,0,92266,1966,0,530279176,1607857,699696,0,332223,270365,5628546,0,null,52885240,23672414,0,4613299,7907908,884836,3793908,0,0,1735000,10275747,null,2128,0,358917833,0,103329,1496295,193549,4931338,0,0,54698874.109999992,23895215,20949585.989999998,4923835.1100000003,4930238.01,416014915.44,3460751.59,461420802.16000003,57678147.420000002,27704270,20684377.420000002,4935164,4354336,522047651.49000001,4522030,581033992.49000001,55231563,28777569,19709849,3570615,3173530,583571130,4588721,658885952,56019968,30778502,19514380,3058508,2668578,573738288.75,5776703,666101857.75,null,0,0,150,751,211,242,105,1459]
[892,"Nottingham",22952741.057656307,209793929.28,23760330.888160039,220513899.06895211,24464411.029997841,228736748.18202457,25174056.002360836,235459000,null,174585766,12190217,6.9823659049042974E-2,1232725,0,175818491,null,20624302,8819041,809599,0,2149608,774871,0,1897293,420907,0,1000000,4734422,null,15264,3297,229416245,73532,595077,279950,107180,836603,370,388,3805001,17195241,6289283,0,598884,674891,1992760,429784,0,0,1000000,6194775,null,14864,0,214238885,0,486231,273010,107180,871948,545.20000000000005,12110695,13734291.219999999,2551281.7200000002,801991.55,453805.57,668323.01,1000000,8040473.2599999998,0,0,10508.28,207907.83,0,174819342.30000001,483013,265540.78999999998,0,103999,1207572.5,13347467.70011,778580.36,760193.1,415638.34,675241,1000000,9008635.2400000002,0,0,679955,null,29224.660110000001,0,199538870.03002,450701,271160,0,99958,0,1208759.9999899999,0,0,12565585.61674,748131,808753.7,411277.5,681688,460000,7956061,216609.43825000001,0,26605,0,281310.66595,0,0,0,941017.83886000002,0,34131.473680000003,0,200753304.92444,653839.65,123230.85,0,98441.600000000006,0,1786250,2100,0,11170295.320000002,751627.71,786412.75,399784.3,670000,0,7369521.7199999997,239663,0,31273,0,319042.88,0,0,0,547300.9,55669.06,0,200137360.80000001,849667.34,146194.98000000001,0,98230.399999999994,0,2327170,304640,null,19882994,7466412,0,2520413,636677,1791909,345621,0,782243,1081036,5239764,null,15507,3412,136281762,0,777588,288168,40465,934804,115233,28808,14882591,5009546,9124802,325716,422527,154582977,910890,161355785,17242278,5355397,9976514,1388460,521907,196511463,822233,210037319,21662905.52,10421003,9648976.0399999991,1003219.43,589707.05000000005,206519706.71000001,1252654.74,227961954.52000001,20243432,10571735,8808726,293617,569354,202604181.31999999,1868303.6491799999,236476307.65386,null,0,30,243,398,79,57,34,841]
[893,"Shropshire",22382617,175460208.49000001,23704959.246884864,178378354.06768909,24891413.459427144,177933191.26462814,25566580.835161835,186367000,null,139983716,17926336,0.1280601523680083,1718018,192564,141701734,null,21128688,6963636,0,0,1077202,6166940,852564,1802110,473571,0,0,3770000,null,19713,2952,182635856,3480,450830,11010,85400,3390687,173,173,1496000,16881032,8739290,0,272140,249000,1806830,425909,0,0,0,5070000,null,19713,298150,190310507,3480,453610,50060,85830,3923490,529,5070000,16555789.34,2189498,1517617,240383,5248148,0,7040679.3399999999,0,0,0,21314,298150,178649581.05000001,457230,154547,9540,87240,4000616,15951287.440000001,1911502,1542650,272800,5050579,0,6839364.4400000004,0,0,4451,null,31791,298150,185895793.53940001,549030,79126,9500,86290,40727,3894185,0,0,13520682,993770,1503754,61481,4016701,0,6002601,105881,0,16260,0,228109,246812,0,0,0,0,33258,312055,186988288,942599,92292,16390,100257,117527,3982757,0,0,12402393.529999999,973330,1797758,79448,3250741,0,5634920,109335.53,0,15884,0,193924,0,0,0,0,33112,313941,188182741.90000001,936023,86445,15468,98790,119613,3702012,0,null,16975497,2825582,0,4557582,5016304,1449835,288538,0,0,0,2815019,null,19713,2924,159166835,3373,371570,76827,84828,2415509,0,0,28766118.649999999,15569454.449999999,7897205.2000000002,380887,4918572,196987920.06999999,3264865,222945417.06999999,28980421,15995040,7637501,312674,5035206,202603761,3566577,232934617,22406534,8689041,6815832,2311663,4589998,206940685,3708464,240404645,20571638,7957480,6090990,2120776,4402392,197168422.25,3920523,229019446.25,null,0,2,117,386,113,46,53,717]
[894,"Telford and Wrekin",15563520.738618264,117736188.5,15526310.839220975,121061019.8182056,16053380.007953657,123134380.2113713,16179391.143307986,127642000,null,94921284,6972254,7.3453009759117879E-2,194357,100000,95115641,null,15227671,5194597,0,0,760563,2776188,100000,942018,368442,0,0,5060289,null,25574,0,124026938,11732,510238,318079,64513,1997043,478,489,4780000,15859526,4478454,0,97258,3359380,1359305,456730,0,0,0,6074020,null,34379,0,121657066,0,497091,291513,58182,1938011,604,5848000,13458117.82,897260,700126,672758,2959796,0,8157722.8200000003,0,0,19792,50663,0,114892910.97,393580,300677,0,58182,2312233,13479476,310713,1806147,837156,2499796,0,7892074,0,0,98647,null,34943,0,118510313,1352264,316931,49153,1.0000000000000001E-5,1323,1869649,77151,0,12013246.06068,290713,745641,443889,2246469,0,7366837,184476.06068,0,25524,0,195225,199633,0,0,286709,0,28130,0,121259661.70137,529555,283009,0,64182,4396,1953248,81076,0,11227574.4,268552,718529,414741,1768126,0,7197203.3700000001,178327.03,20287,25944,1772,190814,101374,0,0,314040,27865,0,117023393.40000001,528293,294364,0,62490,4827,1936807,156881,null,17197197,6003007,0,226876,3380350,1062984,452880,0,0,0,6027712,null,43388,0,100430242,0,472505,313578,79410,1954604,63475,0,19953059.899999999,7370521.9699999997,9168597.9299999997,240914,3173026,120185338.28,2071138,131374109.28,18895878.079999998,7088055.5,8607901.5800000001,321997,2877924,120889605.18000001,1945174,136865011.18000001,18120687.449999999,7150121.9800000004,8378020.6399999997,277556.18,2314988.65,132838013.81999999,1827476.38,147098255.19999999,15208416,4503077,8181518,312363,2211458,121877541.58,1757088,140810352.58000001,null,61,0,96,479,21,69,12,738]
[895,"Cheshire East",29468134.539999999,231820813.76000002,32659924.656726986,235055381.1778917,35072405.667022958,238453727.15904632,35521782.842581011,242949000,null,191409646,12887253,6.7328127235552176E-2,0,0,191409646,null,28521672.600000001,12122736,0,0,5559954,4807800,0,2963239,195387.6,0,0,2848334,null,0,24222,245957279.25,0,677213,0,132224,3586854,243,251,2476666.67,28329962,16384344,0,790651,5202916,2378104,501670,0,0,0,3042000,null,0,30277,250638171,520711.75,642377.59,0,98597.6,3592212,311,3042000,15957780.799999999,5114345.2699999996,168149,430460,3994119,0,6207291.1699999999,0,0,11696.36,0,31720,215849526.66999999,632690,0,511345,93312,3741887,13471899.4855,1693354.1325999999,320452,588208.25444000005,4610054.09846,0,6189806,0,0,70025,null,0,0,235815595.36956,594808.84961999999,32573.346809999999,41485.516839999997,51490.304259999997,0,4313816.8980099997,21041.9516,890431,14738471.24646,1690575.7880500001,983964.45513000002,1274592.7129200001,4866317.8029100001,0,5269299.6721599996,152737,0,20848,0,329526,71258,0,3719,68641,0,6991.8152899999995,0,248700152.61116001,474155.75003,68992.106570000004,351220.54057000001,45961.324800000002,18276.886780000001,4079487.8541700002,25352.428800000002,1152871.2180999999,14514263.42,1658522,975067,1292994,4759800,0,5123923.42,149766,0,20848,0,371543,70205,0,1517,83190,6888,0,239534016.90000001,478266,68992,317221,45961,18277,4079488,25352,null,25517608,9607872,0,1018549,9595854,2035607,217726,0,0,0,3042000,null,0,0,178722081,422387,632379,788168,157262,5167079,4467,0,40676119.789999999,20695911,6285657.79,8847257,4847294,230693003.5,4469,249361426.5,41303954.769999996,21544150.460000001,5940492.3099999996,6302693,7516619,239907793.66999999,4038401,259426316.66999999,43704945.460000001,23126783,5719279,5084815.0599999996,9774068.4000000004,321313238.63,7300,340122935.97000003,37074120.38527,21194031,5675649,6177703.3852700004,4026737,289037328.79857999,5586493.0903399996,321454801.99998999,null,0,111,50,285,99,93,62,700]
[896,"Cheshire West and Chester",42087394.090000004,223541441.51000002,40476926.087760523,229673370.65035707,41320007.419236504,231423748.51558712,41794875.316645853,239431000,null,176953802,19866338,0.11226850045301655,3540794,314777,180494596,null,31388638,13910244,0,0,2091362,4497151,34079,2389944,749975,0,0,7715883,null,0,0,242065277,0,402072,870657,159283,3599309,709,722,7165834,34506603,15734094,0,2118373,5124836,2683761,975412,0,0,0,7870000,null,0,127,242742621,0,502450,227743,157991,3666734,807,8238393,28596170.09,3368939,2875521,1079262,4008972,0,17231680.09,0,479,31317,0,0,228864053.69,535906,144019,0,0,3636861,25349741,1296040,1120069,1409618,4387274,0,16942420,0,758,193562,null,0,0,236076032,465806,210251,415021,228230,13040,3587393,38460,0,25675123,1385829,789191,1456233,4889464,0,15966329,406802,0,54429,0,464757,14212,0,29699,211968,0,6210,0,239390486,639655,661080,413814,117885,25612,3595676,46624,0,25630691,1635271,1081584,1141865,4758165,0,15799875,413749,0,53160,0,461526,65371,0,2910,210892,6323,0,235488279,598919,278268,447950,70280,16018,3798326,46759,null,32145200,14124321,0,2511340,3937121,2900337,744521,0,0,0,7927560,null,0,0,198172065,0,439296,284478,173395,3683888,15210,28875,46302732,23333207,18058093,1702555,3208877,226590394,4033429,250520357,46956763,23849595,17709870,1784797,3612501,236075624,7832918,264297936,47503727,24125020,17278814,1667975,4431918,249645198,3467425,298195774,39044793,16644135,16784768,1412965,4202925,246050614,3397929,280644595,null,0,91,50,705,101,44,40,1031]
[908,"Cornwall",25199000,323430489.62,27940568.491852641,332187609.20595527,31221922.456469551,337924979.25953877,31498453.676961355,339346000,null,278241717,6091258,2.1891965251206381E-2,912371,1668000,279154088,null,26988550,7713024,0,0,5649409,3900000,1648000,4190191,67926,0,0,3820000,null,0,0,343471606,313717,1490323,181515,71394,2663727,272,272,2720000,29207680,7071691,0,1874507,5339333,6495602,320547,0,0,0,8106000,null,0,0,331382000,309117,1321811,120148,53032,86173,509,4610000,13847448.879999999,4390638,732983,270548,3537931,0,4884528.88,0,0,0,30820,0,246652406.30000001,1360701,501883,595597,54539,3354679,14669938,2967329,321221,429787,3837867,0,7065898,0,1343,46493,null,0,0,333211881,1203843,1715903,295525,51485,149979,3008483,78902,1442320,15385169.629999999,2270894,1766518,817999,3499000,0,6515423.6299999999,170089,0,20930,0,251344,4927,0,0,68045,0,0,0,362801146.94678998,1294619,887960,55000,74002,168382,2725650,71484,0,15350639,2261030,1592742,845999,3374000,0,6356837,168346,0,20726,0,186209,4949,0,4268,535533,0,0,357564953,1898130,948973,544000,41000,162759,2717238,71263,null,24173015,5181455,0,6362190,3085038,5890889,139799,0,0,0,3513644,null,0,0,226183648,342138,1519764,129627,64269,2274848,424981,289497,31381477.75,21199178.780000001,5384317.9699999997,87954,4710027,266659541.38999999,1330802,304251002.38999999,33583835.769999996,23232315.789999999,6349690.9800000004,25291,3976538,281136444.08999997,3132394,317533509.08999997,42413936.75,32241052,7682069,114615,2376200.75,369159168.89999998,3702885.92,414826838.25,39352825.879999995,28421935.469999999,7322035.4100000001,85684,3523171,377253234.01999998,2848359,419849518.01999998,null,270,0,230,329,94,218,130,1271]
[909,"Cumbria",33386771.000000004,318743110.37,36717440.333339587,323827834.3824057,39052750.426921681,325840399.75402707,39543310.251176707,329895000,null,266785469,22269889,8.3474894953892709E-2,0,546000,266785469,null,30950465.350000001,12923701,0,0,2244023.35,8307019,550000,1440395,411942,0,0,5058333,null,11798,3254,335306346.35000002,0,1257384,1508386,0,5342698,500,510,5058333,33840566.969999999,17359344.879999999,0,2908415.45,5601255.3600000003,1438388.28,305863,0,0,0,6200000,null,21399,5901,340058119.83999997,0,1024655.64,1046632.02,0,4760122.55,650,6680000,21797609.09,6747040,1509417,2316364,2780800,0,8300474.9800000004,105425,8004.82,4137,21399,4547.29,270218365.29000002,730868.23,1426565.42,0,112652.18,5409317.6399999997,21282702,4907000,1510000,6646000,2790,0,8083574,133338,0,0,null,0,0,299293519.85664999,906000,1206000,213000,110000,0,4340234.9531100001,191000,0,19358042.17704,4918496,2914140,855000,2790000,0,7030947,204662.17704000001,0,26605,0,342305,8000,207932,0,0,0,59955,0,324172976.56917,1295000,888117,204000,103000,0,4537000,234000,0,18598587,4938482,3063295,725003,1955000,0,6923829,201067,56967,26060,5208,393694,8000,207932,0,0,55050,39000,332834481.30000001,1193000,197537,195000,102520,0,4426925,151074,null,34670621,16304142,0,2675074,7631937,1434914,407863,0,0,0,6200000,null,13437,3254,265348582,0,1111810,848398,0,3543498,1771749,0,29779235.899999999,20347696.199999999,9305887.0899999999,125652.61,0,289782968.39999998,5443663.0899999999,333806193.25,31247601.880000003,22147147.48,9094288.4000000004,6166,0,305598637.52999997,4614521,343590350.52999997,31660589,22836591,8804218,19780,0,357339992,4466712,407401845,32019794,23132220,8601041,115916,170617,376912954.04000002,3921582,452396453.04000002,null,0,146,150,376,208,121,98,1099]
[916,"Gloucestershire",45096138,378497105.69999999,47655095.164461367,387371282.65267247,51125165.495868184,392998434.36072767,51642680.383681573,404472000,null,313654183,30070475,9.5871429841571723E-2,216749,0,313870933,null,50777757,15522344,0,0,5485638,12417481,1905088,4367206,0,0,0,11080000,null,0,0,399322024,0,1165658,1893510,379021,6812681,959,978,9700834,48856430,16122316,0,5347534,10311487,4520426,0,0,0,0,12554667,null,0,0,394701121,0,1136569,1106228,368152,6878176,1190,21399207,35532483,4888169,4199637,196796,6436838,0,19552481,0,5405,231913,21244,0,270437813.75,1212547,784997,186792,391298,8612793,31869884,2505957,3132162,52561,6539080,0,19493367,0,10000,100316,null,36441,0,390354884,1220835,615397,189405,397779,161514,6446926,759004,455402,33062023,1587022,2383424,3672060,6209878,0,16874454,529734,0,73339,0,985302,203877,422376,0,98750,0,21807,0,423834650.69999999,1479600,411341,187020,41158,167829,5799020,787909,0,29274402,2512936,197066,3527624,4403945,0,16497345,515168,0,71852,0,892166,42467,412793,0,94140,106900,0,414977044,1702030,835469,253032,37419,147440,5358703,728085,null,47359063,15738553,0,9481325,6210622,4223806,0,6407,0,0,11698350,null,0,0,239492765,0,1088639,926987,358541,6363282,0,58010,47429636.499999993,19808010.969999999,20230031.129999999,1275270.25,6116324.1500000004,258196797.16999999,6480654.9000000004,290322212.33999997,52796713.629999995,24591972.800000001,21316196.829999998,1285641,5602903,314249290.19,7017506,351664793.19,49263690,21713176,20603289,1056627,5890598,424706099,5950975,484366534,49574260,22003017,20381874,1301365,5888004,440852386.56,5610191,503439609.56,null,62,10,315,1070,68,335,114,1974]
[919,"Hertfordshire",88110138.330000013,789763090.40999997,92189412.525602832,816678127.32177091,94747845.587944761,829318590.43112671,95977485.093266532,848514000,null,663461148,45267719,6.8229645603905056E-2,4534190,1400000,667995338,null,88046038,31893383,267235,0,5540736,11568146,1700000,9814907,5275895,192566,0,21701294,null,91876,0,852400447,224635,3280358,4069342,499804,14058983,2013,2008,20176859,88478013.760000005,35590366.840000004,0,1021401.63,13187754,8758005.8499999996,5159163.47,420155.56,265193,0,23911340,null,164633.41,0,840471897.36000001,222997.93,3577240.18,2613066.64,498959.28,15931017.279999999,2278,22470739.740000002,69538872.269999996,12938518.939999999,3724592.38,136600,13885387,0,38478582.840000004,0,0,50304.22,324886.89,0,684855702.85000002,3292440.16,2574811.54,193702.25,433536.18,14886329.279999999,70150083,10979814,3063697,949439,16509656,0,38249301,0,0,97680,null,300496,0,845853706,4250590,2227405,205863,291662,56624,9966514,2661153,1293531,69657827.441100001,11417073,2467091,971426,16197937,0,35373550,1029270.4411000001,0,143360,0,1221192,188445,0,0,186290,0,462193,0,871364331.80613005,4231459,2478523,495745,476402,75705,12040059.572760001,483235,1181174,73430570,19463509,2235326,966923,13549039,0,34496011,1031596,0,140492,0,857620,137122,0,0,132529,420403,0,823197273,4506894,2740623,544106,575303,127544,14631676,0,null,81025423,32411902,0,1081753,11855285,8838033,4172092,85000,157234,0,22261711,null,162413,0,583282706,373970,3248058,2823974,530349,11579485,2100358,0,87535479.189999998,38838344.229999997,38691890.960000001,761962,9243282,676676501.14999998,13153763,749033323.14999998,100026284.41,45299239.549999997,41311285.049999997,2634354.81,10781405,808794144.47000003,13945321,872742207.38,102803237,43870615,40463010,4011212,14458400,932664026,12787088,1012549464,94197201,32598211,39743934,4115817,17739239,901618986.15999997,12551523,1010753714.16,null,192,20,287,2029,166,197,197,3088]
[921,"Isle of Wight",10771821.690000001,86249143,11082688.541505212,87013266.582241863,12221944.491304854,87738583.155750707,12359786.283325382,87008000,null,69189606,10272267,0.14846546459593946,0,0,69189606,null,10790032,5076825,0,0,252723,1471170,336101,920788,62021,0,490404,2180000,null,0,0,90570758,0,306514,277459,90560,0,218,218,2180000,10171898,3964709,0,302087,1319171,1268270,54446,0,0,490404,2770720,null,2091,0,89285021,0,361264,218069,88865,0,286,2770720,9271430.6699999999,1456383,1210758,48263,1704864,507192,4341884.67,0,1581,0,505,0,79580855.959999993,313407,245375,0,91000,0,10245857,1838969,1334242,287022,1939281,485899,4323578,0,0,36866,null,0,0,87665656,275033,312568,0,85852,213513,0,0,0,9938226,1572914,1242837,283769,1804102,415990,4394757,90245,0,10642,0,52634,45087,0,0,0,0,25249,0,95720492,331944,361757,54495,113205,150529,0,15000,0,9460815,1629379,1262832,286179,1726022,425885,3964721,83016,0,10424,0,47384,15770,0,0,0,9203,0,94472051,328153,352756,54065,111987,146784,0,0,null,10478335,4780399,0,569171,1128033,736494,53099,0,0,490404,2720010,null,725,0,79498987,0,370017,276854,93783,347759,0,0,8327060.5899999999,2620391,4372089.59,581,1333999,86654264.319999993,196121,97056720.319999993,9485815.75,3354295,4608320.75,30114,1493086,97178514,0,113646434,10829589,4149204,4549019,265454,1865912,106777452,70861,117993242,9696712,3120081,4284974,269859,2021798,103948706,0,117855210,null,0,48,70,188,77,99,62,544]
[925,"Lincolnshire",56529763.039999999,466789570.17000002,59946022.853019603,479339889.72365218,61960762.731581315,485898190.49229431,62313291.393480167,486242000,null,377478930,47700479,0.12636593782863589,4092944,0,381571874,null,65376781,18828988,0,0,4866082,8100885,5476047,4164105,4069819,0,0,17202685,null,2668170,0,497628081,127743,1900021,1311418,259159,7648083,1517,1568,16089250,67232490,18840094,0,6917172,9840759,4088754,3422863,0,0,0,21832707,null,2290141,0,484237368,124074,1815327,1366089,258989,7424295,1996,19984632,41785353.039999999,1803650,2058985,1499039,6050214,0,27504919.039999999,0,0,387597,2480949,0,346970097.04000002,2076925,1504984,77634,261552,7475621,18859688,5942841,71981,1007419,6209487,0,1604812,0,0,1785237,null,2237911,0,279244081.67000002,1785608,1504690,49244,183714,11353,8637506,1862549,0,39366599,1334668,879962,1581147,6479564,0,23821161,892810,0,119040,0,1043193,0,51521,0,854831,0,2308702,0,484866600.10000002,1261687,1574800,0,148752,96781,11100412,16829,27765,39478276,936379,2135280,1094951,6105117,0,23522920,856400,0,115610,7088,1033650,0,0,0,2672914,997967,0,489959455,1401488,1818230,105690,645048,123413,10814418,16233,null,62112937,18314721,0,7049918,7541565,3559233,3758149,0,0,0,19364630,null,2524721,0,267723471,197138,1858659,1317321,368413,8999769,2022377,88607,95743123.849999994,57702447.310000002,30584598.539999999,207152,7248926,342105800.79000002,8050556,394728447.79000002,84355219.959999993,46069144.719999999,29963190.239999998,1482081,6840804,414641711.01999998,6941534,470092837.01999998,88776716,49736440,29696202,1411187,7932887,490353916,7849555,554555011,88231595,49124859,29380768,7511505,2214463,509059666.99000001,9129666,594002988.99000001,null,57,0,378,1491,198,160,134,2418]
[926,"Norfolk",60710585.090000004,515204171.15999997,62953570.742896989,526305963.74528736,65191469.317483224,532278292.33901596,66340824.324408643,546548000,null,426982748,35432029,8.2982343352195578E-2,340774,2000000,427323522,null,60262837.200000003,22627761.199999999,0,60000,4854898,12702110,993082,3460226,5249759,0,0,10315001,null,0,0,540592070.20000005,406791,1814244,2351712,182710,8749977,1448,1454,13920400,67877021,20408728,0,2976647,20945382,3121530,5730060,0,0,0,14694674,null,0,0,555067148,252566,1450403,1331653,170375,7422545,1413,13554674,44439755.659999996,4393440,3184562,2500047,12545378.970000001,0,21016453.32,0,0,799874.37,0,0,485301727.76999998,1682715.85,1190012.49,293943.13,171810.35,7423327.9299999997,38199033,0,2936119,2544742,11754533,0,20624436,0,0,339203,null,0,0,516543075.50001001,2103754,1291485,211276,283722,33437,7822428,1529789.6187100001,0,36057763.236560002,0,4738619,1425908,9714223,0,18169250.989519998,513311,0,63460,0,1076287,37426,251724.24703999999,0,67554,0,0,0,526868230.37913001,2129548,1760630,409628,325728,52565,8144725,1592618,0,33909610,0,4753796,1178633,7677655,0,17486882,496242,0,64936,0,881461,5696,285023,0,81586,997700,0,513880287.19999999,2113682,1416482,404580,331651,50922,8842694,1177096,null,56990529,19073009,0,5330125,12761421,3266648,3886320,0,0,440000,12233006,null,0,0,472860091,22684,1821724,671318,142704,9539476,1366400,270600,75504932.650000006,35722926.640000001,22689953.140000001,2830297.87,14261755,517599992.17000002,12911795,590388254.16999996,73292498.349999994,37138925.780000001,21995636.57,1193801,12964135,549411242.92999995,13099251,628675546.92999995,68823544.180000007,34025422,20887974,1117659.68,12792488.5,564992488.37,5744091.3099999996,695384749.03999996,69219390.622419998,36278712.090000004,20699188,1893004,10348486.53242,579871701.98670006,213026.92762999999,669524866.38619995,null,0,301,424,1043,149,277,101,2295]
[928,"Northamptonshire",60530071,476211218,64373554.089080259,490605116.13473177,65738967.896381482,497651170.17377895,66424371.513844833,520799000,null,400783689,31208152,7.7867819615782818E-2,186679,0,400970368,null,52700417,19701898,257013,0,5955644,6648238,0,8269603,0,0,0,11819014,null,49007,0,510039716,0,2178374,215533,274879,6652197,574,615,6070804,50148519,19060583,0,4930426,6619402,7909102,0,0,250000,0,11330000,null,49006,0,489056095,0,2022767,0,298942,6517635,863,9360409,38476539.25,7051658.2699999996,5120020.84,0,7095841.5899999999,0,19156140.969999999,0,0,29649,23228.58,0,408133903.89999998,1636851,0,0,514120,7747883,35003676.330919996,5337551,3576639.2194599998,72945.710370000001,4511917.4010899998,0,20819834,406576,0,260408,null,17805,0,474400581.62045997,1856606.6278599999,581290.77095999999,11778.560320000001,324551.19796000002,42231.727050000001,6811975,44740,996650,31920563.295259997,2820813.2211099998,2998179.5521200001,176868.31202000001,4331690.8178700004,0,19107651,531688.13537999999,1314,67986,72.990740000000002,1081460.71202,9979.7129700000005,322644.48982999998,0,461871.17041999998,0,8343.1807800000006,0,497003051.81313002,1728320.81226,788748.60893999995,11640.487999999999,319975.03949,95320.906610000005,6921965,50000,720000,30060176.030000001,2770193.86,2922393.39,125766.7,3891686.4,0,18023849,519986.92,1215.19,66444,67.31,992727,18766.419999999998,322644.49,0,397287.95,7147.4,0,476393116.39999998,1706031.29,780917.02,11500.4,313470,86303.67,6472990,361920,null,76722252,17067966,0,4146807,7671789,7902564,0,0,256539,0,39676587,null,0,0,294349485,0,2178807,207626,222201,6464519,1307760,0,59253284.489999995,30278316.039999999,18554022.449999999,3558307,6862639,714138775.80999994,15541252,791678395.80999994,55892095,34691956,20901820,298319,0,495102707,7440558,529911764,41011741.010000005,17163041,23578785.010000002,269915,0,481816409.43000001,6338059,522350843.41000003,45693596.344700001,20295548,21077168,124934,4195946.3447000002,521672501.99111998,7116772.79,583993372.73756003,null,273,147,230,1179,229,117,113,2288]
[929,"Northumberland",26783279,199875985.02000001,28147787.408353243,203666663.26588923,30418013.592866108,208597484.55133653,30896970.483862631,217400000,null,163244762,14446403,8.8495353988754633E-2,115607,0,163360369,null,29005124,5194940,0,0,2594110,7147870,0,3753085,2045199,0,1174920,6340000,null,0,755000,218764199,0,323808,428429,55678,2931780,534,534,5340000,26816543,6521018,0,1464250,5354373,3565044,2102630,0,0,1174920,5879308,null,0,755000,203396499,0,323808,448740,55790,3763410,630,6306309,21703419,1723560,3466194,1162125,3852720,1174920,9064857,0,0,504043,0,755000,188813986,323808,506470,0,55190,3858378.03,20089578,1524950,2519540,703530,3635890,1073080,8823320,0,0,1054268,null,0,755000,212733399.5,355160,391830,0,53800,62230,2425120,1079446.72297,183460,18948430,1456600,2814930,772830,3920890,514910,7428790,321010,0,42570,0,272280,67740,0,0,580880,0,0,755000,218429216,597700,445900,0,56490,65110,2854580,1052779.9417600001,178930,16176420,827470,2665720,0,3682470,515940,7070860,313530,0,41700,0,204928,59935,0,0,293867,0,500000,225450622,589140,610550,38020,51380,58790,2785580,97880,null,26810781,6422909,0,2260248,4262089,3468883,2168674,0,0,1232501,6240477,null,0,755000,177696611,0,323808,464499,56804,2456373,1311806,145130,36932834.399999999,23063695,10047276.4,80809,3741054,203448262,4909925,236230276,41275392,26679540,10217696,640408,3737748,233730495,4785366,267979188,35990434.149999999,21893773,9519517,1070503.02,3506641.13,255682645.16999999,3192267.23,297287044.91000003,36453979.058200002,23377229,8657634,503985.4682,3915130.59,253602018.61000001,2998935.58,294873926.32999003,null,81,19,32,588,220,40,111,1091]
[931,"Oxfordshire",43331295.25,398949095.16000003,46697753.968232192,411316471.70700788,49159170.105965316,417691620.33292699,49924288.845917493,426506000,null,321787837,25774373,8.0097412134318799E-2,683898,50000,322471735,null,48027456,10526811,0,0,6864280,7344499,50000,9470787,1588971,0,616291,11191331,null,316326,58160,421813388.27999997,42629,849983,2329393,135059,5693762,564.1,582.70000000000005,5749500,{"$f":"SUM(AR153:BD153)","v":45414620},13544718,0,5862579,6599666,10205495,1085135,0,0,616291,7126250,null,316326,58160,421423345,0,957696,2370322,162213,5641552,648.14,7656426,38406009.289999999,11319187,61223,1318014,7193895,616291,17117340.289999999,0,0,405573,316326,58160,398524458.79000002,699706,1420228,134579,147889,5692558,35627412,1131774,8931193,1195622,6535588,421493,16981700,0,0,38452,null,377386,14204,420963647.39999998,864348,1125997,876193,124678,213611,5936050,978531,105053,34821542.382810004,1383941,7425879,2842548,6332635,421555,14994999.88917,539350.58300999994,0,69703,0,530391,20302.910629999998,0,0,26318,0,233919,0,423241480.18888998,1340491,1175247,668862,111871,185151,5422133,760478,270999,34192269.189999998,1314268,7587081,2842072,6273008,419206,14419799.99,521978.2,0,67756,0,482450,19056,0,0,35902,172484,37208,400038264.5,1487125,1181019,672763,109971,186060,5486798,1019253,null,43735178.269999996,9936911,0,4927112,8269727.2699999996,10451082,1254859,0,0,616293,8031564,null,189470,58160,298405305.63,7774,1119040,2478976,150323,6377017,136560,0,42192958.659999996,18022528.890000001,18927715.77,14422,5228292,369886633.35000002,5298523,415175862.35000002,45755559.950000003,21032803.280000001,19475434.670000002,18913,5228409,440410754.95999998,6446753,496897361.95999998,44812041.789999999,21460617,19256895,25596.79,4068933,449583851,5541436,518096779.43000001,43609829.450000003,19391854,18415995.449999999,6538,5795442,452080450.99000001,5345240,523353330.19999999,null,0,123,106,873.7,125,226,65,1518.7]
[933,"Somerset",33131774.999999996,321114813.28999996,37039683.493127055,329824333.60241437,40363815.368089482,334791540.94021112,40969261.610206962,337392000,null,260005769,28386099,0.10917488142349642,1596,200000,260007365,null,38644600,14939300,40100,0,1437600,10867000,200000,5150200,326100,155500,0,5528800,null,0,0,336713255,322300,705300,636500,151600,4159400,516.4,521,5251387,40832911,16072538,0,963943,8479081,4935094,2282261,0,0,0,8099958,null,0,36,339123527,314700,684100,1034301,148500,4242000,805.40000000000009,7460000,24649771.390000001,1735147,5984410,0,4883983,0,11971871.390000001,0,0,74360,0,0,240795067.13999999,1083225,1154196,293500,141301,4997434,22397721,5165711,1345839,0,4472791,0,11130346,0,0,283034,null,0,0,318463580.77314001,1062017,1509164.3623299999,231406,123846,0,4168965,32478,0,23301762.185309999,4850520,1363390,124908,5643252,0,10086764,308424.18530999997,0,42568,0,638325,81188,0,0,161252,0,0,1171,329803874.65926999,1379360,1507090,148571,107847,307300,3658600,26993,0,22279959.039999999,4624889.5,1201219,231591.5,5480763,0,9458213,310964,0,41696,0,582353,170225.52,0,0,139677,31624.720000000001,6742.8,319003565.30000001,1590916,2471074,364637,92709,300000,3426100,17043,null,42316297,15629905,0,2794900,9308728,4456106,2108667,349700,39378,0,7628913,null,0,0,227609822,366181,944879,706210,165058,4739399,496049,119972,30211908.489999998,12113167.119999999,12262149.369999999,370076,5466516,253253992.59,4647831,301624492.58999997,30395792.57,12693604.220000001,11869245.35,5832943,0,281456341.12,4488359,330588738.12,38682994.600000001,21673681,11790903,1042924.33,4175486.27,357144864.83999997,4157432.01,458994147.75999999,39252266.382269993,21604089,11251229,1051272.8322699999,5345675.55,369172602.45999998,3897270.51,461378690.37,null,56,62,201,407,115,341,125,1307]
[935,"Suffolk",43718726,445618920.5,44256213.747113928,451308392.68300146,45895973.52645988,453230902.30234939,46433869.585145667,465406000,null,365960535,36748825,0.10041745348306477,10477,0,365971012,null,39170692,12433917,0,0,4820503,0,0,13111272,0,0,0,8805000,null,0,0,471934502,0,1393766.05,1431484.67,168681.52,6269351.5599999996,544,544,5440000,39285498,10351832,0,2552530,22857,17396850,1665429,0,0,0,7296000,null,0,0,464424350,0,1291845,902507,167975,5945497,776,7296000,24966212.18,3366128,2718671,795655,8200246,0,9810285.1799999997,0,45905,23042,0,6280,391342372.99000001,1371126,382260,188254,183533,6654425,31312270,6275624,1808064,0,7669550,0,15518998,0,1541,32189,null,6304,0,457275886,857390,602563,161687,178098,0,6034065,134886,0,30046636,4663854,1950709,0,7864741,37811,14538369,377137,0,52871,0,501696,18411,0,10014,31023,0,0,0,467774460.14999998,1247797,303990,251825,179757,0,13919943,0,0,28890642,4050990,1806210,0,7037780,37810,15068730,376384,0,51276,0,397827,32517,0,9368,21750,0,0,441956594,1297860,481150,0,224560,271140,6219200,0,null,38046633.780000001,10806051.779999999,0,4808319.2699999996,0,14009936.720000001,1126326.01,0,0,0,7296000,null,0,0,345020229.20999998,0,1261659.31,781898.49,139506.1,5945498,1148850,0,41448528.18,21454084,10174450.039999999,19940.84,9800053.3000000007,373922041.51999998,6898660.5099999998,430446794.95999998,48123758.410000004,25769519,13968694.01,22744.7,8362800.7000000002,417141183.63999999,8137392.5899999999,476508368.31,54032077,27641102,16663855,922169,8804951,506669461.93000001,8279527,586011957.92999995,52885537,27289681,18477495,554097,6564264,488763927.69,5048842,568461441.69000006,null,203,0,353,1016.5,131,205,80,1988.5]
[936,"Surrey",118817787.52999999,695264505.15999997,122513603.71657079,717291239.16965246,125183414.44472875,725345392.0428592,126112540.15285704,752854000,null,547264936,39410737,7.2013999815255844E-2,36812,1672000,547313748,null,112073898,35137364,0,0,5228399,38624442,1672089,11258486,61000,0,0,20092118,null,0,0,747940830,0,2987086,2954819,278682,22138493,1992,1996,20107118.189999998,109677558,38569222,0,4465425,33914413,10351513,0,0,0,0,22376985,null,0,0,741354200,0,2986560,3557338,335237,19842029,2280,20576985,93941213.450000003,15894721,5746716,0,32791023,0,39324241.450000003,0,0,184512,0,0,647794130.91999996,2449163,3390068,0,437555,19636350,82770928.636000007,4958289,5299477,0,33688962,0,38521901.636,0,0,302299,null,0,0,728153036.15439999,2937807,3540342,0,381375,0,18581529,697406,0,78635443,4150091,3773280,372040,32400955,0,35682549,963997,53902,122489,3618,690692,115647,0,0,296276,0,9907,0,723756274,2705570,3059131,0,441730,130405,18643438,699732,0,76121183,3337200,4506684,446769,32126584,0,33931961,939927,32026,120396,3544,411711,54921,0,0,119666,89794,0,683791664,2743154,2615633,0,444592,78741,20034071,751969,null,113560347,37264506,0,6965083,35585451,10508280,0,77991,0,0,23159036,null,0,0,593643182,0,2731074,3500222,288483,17336762,4853685,370431,149438474.12,72499927.840000004,41451378.280000001,2244427,33242741,675049490.70000005,20690324,745064738.70000005,150964808.96000001,74745188.480000004,40080031.479999997,2027584,34112005,711672564.60000002,20111838,781039994.60000002,147754815,72874207,38821406,2504386,33554816,770898559,19302451,848389543,143527985,69973409,38286963,2280170,32987443,737843820,19689695,840044996,null,560,157,288,1991,366,148,176,3686]
[937,"Warwickshire",48566374.129999995,345444278.85000002,51114476.197631359,354806966.36540645,53669957.560634531,360307904.31756467,54280132.943063617,374595000,null,280162349,35910500,0.1281774661305399,2110787,0,282273136,null,44486716,9621250,0,0,3134288,14979966,0,4544276,1581399,0,0,10625000,null,537,0,366397790,0,1041646,875874,123210,6729047,881,893,8923335,46583495,12497227,0,611013,13212450,4804419,4486426,0,0,0,10971000,null,960,0,365122219,0,1103473,765870,0,5066867,1080,11087719,44454983.890000001,4232080,5037855,6960902,9807844,0,18293555.890000001,0,0,13478,109269,0,295672737.77999997,1727195,631103,0,158419,5969157,35027369,5060389,1044970,131082,9917221,0,18738205,0,0,77887,null,57615,0,341546957,1093462,698970,135836,136227,0,5067155,0,0,33089744,4418175,613526,177468,8654823,0,17474448,411739,0,62199,0,573554,398940,0,0,84689,0,220183,0,380919387,1084420,725735,266440,136227,0,5379992,0,0,32654815,2814630,3093817,125706,7989636,0,17270234,384154,0,61000,0,415286,186569,0,0,90573,223210,0,362915982,1088952,1190241,266440,135669,109812,4961277,0,null,48703331,10273107,0,3511392,17043801,4251791,4715288,0,0,0,8903371,null,376,4205,266977129,0,1019516,805188,0,6507086,804247,0,59020244.100000001,25240143.68,21118707.420000002,0,12661393,320545202.04000002,5727941,354512931.04000002,57476687.57,25364339.370000001,21232386.199999999,0,10879962,353731042.25999999,5105066,386963520.25999999,57655858.590000004,26310648,20926696,518929.03,9899585.5600000005,408438018,7148468.5899999999,459006839.16000003,54525183.629999995,25587807,19875228,496784.62,8565364.0099999998,396014862.35000002,4816022.38,450438439.32999998,null,0,0,0,945,192,76,117,1330]
[938,"West Sussex",66485980.999999993,497285359.53999996,67689318.973959729,510610518.20436209,70533567.242992565,519042867.66525197,71375927.396817267,519388000.00000006,null,407897181.75,60659435.469999999,0.14871256332233779,0,0,407897182,null,{"$f":"SUM(T158:AG158)","v":65548250},20104201,0,0,1755174,16935515,0,4444506,4583619,128400,648400,16948435,null,0,0,541377098,0,1609337,1531436,152401,9434003,1345,1296,13164167,60759430,22224122,0,418795,16184078,1388694,4544123,128400,0,648000,15223218,null,0,0,530263232,0,1540153,1339395,141154,9758397,1467.46,15205657.880000003,51523396.089999996,5668701.2999999998,0,6089535.8200000003,14684923,648400,24310304.57,0,111870,0,9661.4,0,480804895.81999999,1451566.53,1538187.97,0,134465.1,589794.15,50801732.116760001,5290929,0,6984027,14968200,683530,22748785.539999999,0,15580,64612,null,16292.066940000001,29776.509819999999,504635981.80000001,1530290.8284,875528.73640000005,0,160165.2775,70176.452999999994,0,331300,0,44610635.708949998,4177893,0,2299937,15254659,608398,21093577.708950002,528253,0,79222,0,447535,48016,0,17482,18629,0,16224,20810,484723112.13454002,1700992,569020,230631,122072,168221,6133000,325400,0,43129409,3934274,0,2252632,15067897,595885,20152382,515359,0,76948,0,429820,34563,0,17650,20313,31686,0,467951758,1368255,1094008,181102,132764,161237,0,325400,null,55905336,20540449,0,1725758,15233567,1369173,3592696,13000,0,648000,12782693,null,0,0,446978956,0,1494451,1539064,171553,10291557,349178,9984,84050857.460000008,41312946.5,26840443.960000001,24037,15873430,481374449.98000002,10092927,521204411.50999999,87950307.739999995,46546335.149999999,25637619.59,1127621,14638732,502453495.97000003,8710468,559920573.97000003,84997543.840000004,37577283,25750541,7801900.5099999998,13867819.33,550745289.50999999,0,624232757.55999994,76705034.551819995,36920327,24699078,2714209.8307400001,12371419.72108,516665631.37149,0,598250297.88665998,null,378,0,292,1395.7,304,101,70,2540.6999999999998]
[970,"ENGLAND TOTAL",4732062141.8557806,36854999258.958504,4966890211.5861998,38068812351.208298,5181282242.1399593,38735325401.8806,5245119950.0596228,39617120000.000023,null,29923458653.75,3006354909.4699998,0.10046816259634626,165912934,40623112.82,30088909810,null,4691621372.5199995,1675642904.9400001,7133679.0999999996,2290342,383715071.97000003,885028710.53000009,53793325,446836913.06,165806509.59,3394233,23071879,1034476587.33,0,5321034,5110183,39616289898.999985,12245198.800000001,130142356.54999998,106643580.13,19490575.010000002,580234187.25999999,86275,88198.399999999994,870124656.82999992,4738098262.9899998,1758333709.6199999,1677180,251330348.25999999,817024624.91999996,448087420.38999999,182866047.37,5857134.5599999996,9129277.7899999991,22900858,1227874612.6700001,0,6597891.4100000001,6419158,38973068271.07,15045334.33,128194961.34000002,96417490.75999999,19834249.620000005,558055063.68000007,191292.74999999997,1177626267.2700002,3458406719.6300001,456453074.05999994,241140135.95000005,144764106.63999999,738524834.55000007,22376232.780000001,1822571703.5700004,1708908.13,913235.96999999986,13759324.329999998,8415662.9900000002,7779500.6600000001,33845144780.129997,127947467.16999999,97361932.439999998,13423662.940000001,21088744.73,565789896.13,3198305049.2055202,320381083.57103002,224792995.16602999,134846331.4084,701435093.61153996,14031184.626089999,1761893161.5362699,1788710.9497799999,515407,25406140.967849996,0,8281089.0120300008,4933851.3565000007,36376886930.13578,138506291.90142998,85002702.942540005,16539573.092229998,23429267.240449999,13784706.24959,549680774.78707993,30261993.23141,9719486.5708400011,3128176915.1758313,312259776.55005997,217318894.81337997,111540051.82514001,672585843.20731997,8967815,1641502795.65997,42035518.881860003,811147.81181999994,5636272.5,67327.204060000004,60747319.76393,13838622.41879,4311127.1316400003,384989.79769000004,22192951.991329998,0,9373017.2969499994,4603443.3218900003,38617679535.261055,155875843.69509003,88440073.953260005,16427073.152039999,27002394.833559997,19390810.076160002,571858374.96285999,25542395.001060002,7484037.0222399998,2966886053.2980008,287278222.51999998,225075400.70999998,100173346.23999999,623894949.19999993,8030773.2999999998,1569881133.2979996,41472529.170000009,857552.36999999988,5555015,83717.31,54046327.050000012,11262228.789999997,4334850.1900000004,275505.71999999997,21356427.02,9198976.9299999997,4109098.4799999995,37117869307.140007,161431635.81999996,88751108.889999986,16389623.332699999,27209718.239999998,19655886.18,564293403.25999999,21627209.729999997,null,{"$f":"SUM(FE159:FQ159)","v":4654499557.1999998},1631301876.0599999,2358946,349665912.30999994,816952524.36000001,429023698.57999998,155600457.79999995,4860201,11568023,24316228.52,1211932212.45,null,10471929.16,6447547.96,30634529088.900005,13584249.880000003,129057361.18000001,96710725.500000015,18206635.440000001,574814204.86000013,42130796.670000002,10783923.389999999,5400081472.1699982,2499255314.1999993,1951382813.2600007,215619065.39000005,733824279.32000005,34992687110.800011,602229276.86999989,38867258373.799995,5524841161.1999998,2628445596.4700007,1961125884.3999989,228728847.56999996,706540832.76000011,37860542321.900002,595672776.04000008,41951713481.089996,5465499699.5800018,2631391064.5300002,1932094676.0700002,205845880.27000007,696168078.7099998,41376971060.769997,537017359.3599999,46680843475.670013,5197467462.4343805,2476023663.7680197,1856126444.7199998,197113505.78413004,668203848.16222978,40863891465.464577,548270571.4677099,47029967173.19957,null,9696.2000000000007,13216,24252.799999999999,90843.599999999991,17342,12674,9516,177540.60000000003]
[]
[971,"NORTH EAST",{"$f":"SUM(C102,C101,C71,C81,C82,C72,C73,C152,C83,C74,C84,C75)","v":231849766.94357702},{"$f":"SUM(D102,D101,D71,D81,D82,D72,D73,D152,D83,D74,D84,D75)","v":1772251165.8000002},245176792.14837608,1817980777.1761549,254517772.92340508,1843819160.8475225,260014324.53411925,1858327000,null,1422391676,125284199,{"$f":"M161/L161","v":8.8079957942611017E-2},1573637,6185694,1423965313,null,227916551,62789737,245949,0,23138121,28566806,4946488,31270451,7329349,0,1924920,66739825,0,209905,755000,1871389430.8499999,754235,6639835,4349454,644008,22786119,4658.7,4729.7,47190201,222332041.69999999,76670881.329999998,0,13435393,31603789,28468437.370000001,7319162,0,288652,1839920,61708935,0,241872,755000,1821151669.8,800911,6115234,3918174,651878,22236716,6179.92,59435169,168409303.09999999,22625009.73,{"$f":"SUM(BO102,BO101,BO71,BO81,BO82,BO72,BO73,BO152,BO83,BO74,BO84,BO75)","v":11892778.609999999},7366259,22761991.23,1667920,100316382.53,0,30827,676404,316731,755000,1690348125.78,6497914,4427646,857413,779879,22723233.030000001,164889288.77271,18497967.69926,12726253.077569999,6006082.9733100003,20925990.772640001,1515953,102650380,101739.24993000001,11791,1281085,0,387046,785000,1827777812.27106,8000608.8152700001,3492035.8051500004,493763.93520000001,740330.26890000002,813454.41399999999,20961504.308169998,2020886.72297,723759.69128999999,162395724.04300001,16677571.549520001,17278026.615880001,5362143.6762499996,20141904,954910,91021711.951130003,2565005.17607,17696,351604,1899,4630014.2329799999,942112.50484999991,77742.964770000006,4707,1329381.33008,0,284294.04147,755000,1884239597.8932102,10169803.624779999,3838839.24132,859717.03671999997,735026.47444999998,1335190.4676299999,20038898.91423,{"$f":"SUM(EA102,EA101,EA71,EA81,EA82,EA72,EA73,EA152,EA83,EA74,EA84,EA75)","v":2566389.4690700001},412259,153942248.05000001,15832942,16818963,4514950,18983318,533613,87397590.789999992,2524958,23538,339990,1861,4203409.87,646386.3899999999,89214,4464,1241909,285141,500000,1819799475.52,9684922,3948293,865083,729783,1468210,22022301,1304228,null,215572062.80000001,67855530.390000001,47159,17669674.550000001,29494820.48,27068578.100000001,6917393.0800000001,0,332927,1897501,63402839.200000003,0,130640,755000,1380902706.25,807000.71,6170754.0199999996,4217671.99,757637.84000000008,21752685,3192927.71,1216255.3,242845626.69999999,113709859.12,104373790.58,5336259,19425718,1726392755.1599996,26501373,1941770824.1599996,265187541.71999997,129028150.25,111409295.25,5458895.96,{"$f":"SUM(GL102,GL101,GL71,GL81,GL82,GL72,GL73,GL152,GL83,GL74,GL84,GL75)","v":19291200.259999998},1909962376.54,25913047.509999998,2153930189.0600004,261403681.01000002,125434801.51000001,109262833.58,6586099.0600000005,20119946.859999999,2040785455.0899999,22377260.530000001,2327734665.4099998,256597500.59635001,125193513.45,105362157.93000001,6453941.5481500002,19587887.668200001,2040640385.5815902,20478057.579999998,2399433355.65658,null,789,1063,1143,6026.7,1012,809,597,11439.7]
[972,"NORTH WEST",{"$f":"SUM(C136,C137,C52,C53,C142,C143,C145,C123,C47,C135,C48,C54,C55,C56,C57,C50,C49,C58,C59,C60,C124,C61,C51)","v":639544900.16252398},{"$f":"SUM(D136,D137,D52,D53,D142,D143,D145,D123,D47,D135,D48,D54,D55,D56,D57,D50,D49,D58,D59,D60,D124,D61,D51)","v":5062203783.3048296},674207725.43696988,5207048388.1417446,708436702.43783498,5294681944.6422386,719235498.87590539,5350893000,null,4146927397,429815006,{"$f":"M162/L162","v":0.10364661949735118},22070835,7015769,4168638175,null,616704821.95000005,237613705,950000,1883000,33314283.350000001,105274316,7610618,62703604,19933200.600000001,65489,608700,145304987,0,659662,783257,5364309483.6000004,2588095,14676829.050000001,14630263.17,2258480.75,75548822,13627,13829,137231434,630417953.97000003,246796076.88,1377269,17549877.449999999,92950281.359999999,60954124.280000001,20701522,265320,950326,608700,187683971,0,527173,53313,5334882144.9899998,2896356.75,14778241.23,12483573.02,2539914.6,74809944.549999997,16957.75,193653525,466716718.94000006,51887063,{"$f":"SUM(BO136,BO137,BO52,BO53,BO142,BO143,BO145,BO123,BO47,BO135,BO48,BO54,BO55,BO56,BO57,BO50,BO49,BO58,BO59,BO60,BO124,BO61,BO51)","v":42603289.019999996},21142681.879999999,77954129.260000005,673374,270391601.81000006,105425,137961.04999999999,1139608.93,628931.69999999995,52653.29,4923141610.210001,15545378.300000001,12607279.969999999,2345177,2719086.98,73451795.340000004,445038557.48232001,44333127.483900003,35783155.571280003,26373090.221739996,79183804.445749998,175242,255682317.54018,133338,4489,2599879.7574499999,0,580028.46201999998,190085,5030933657.2958307,15596425.84994,10543426.60121,3341694.7466499996,4824006.0439000009,1258515.1271500001,76250833.186120003,2314840.2377800001,1138225,448063080.33239996,47259613.633669995,37167757.802469999,19474114.453260001,83756556.721129999,451740,236944750.83069998,6765990.73171,92169,886837,7326,10158603.81954,2062594.0001000001,351663,65416,1381987.5245300001,0,1076390.8152900001,159569,5250754028.2455301,17881544.38761,11369769.009679999,3490514.1545700002,3938552.79317,2357494.6637899997,76609651.862709999,{"$f":"SUM(EA136,EA137,EA52,EA53,EA142,EA143,EA145,EA123,EA47,EA135,EA48,EA54,EA55,EA56,EA57,EA50,EA49,EA58,EA59,EA60,EA124,EA61,EA51)","v":1955748.233},1618926.1980999999,427581574.15999997,38727977.879999995,38607706.68,19046338.949999999,80847711.989999995,1088200,226514944.48999998,6751135.9299999988,156644,871220,12650,9306868.8100000005,1737544.47,361856,35446,1439011.96,1879361,196956,5091426721.4000006,20269959.370000001,7645763.4199999999,2737720,3067455.17,2510245.52,74847177.560000002,2218684.65,null,632811727.88,229251890.77000001,1377269,26181054.329999998,99936757.149999991,59307976.520000003,13516620.600000001,183215,1072502,608700,200377063,0,979403.51,19276,4578575776.7600002,3789480.0100000002,14705397.209999999,13070150.939999998,2450067.89,77398686.770000011,5506413.29,1138318,744449937.46000004,353372582.78999996,287337240.53000003,26003894.699999999,77736219.439999998,5133249573.7799997,77345385.919999987,5643814265.2900009,759201344.36000013,372110723.72000003,284644652.30000007,21369645.920000002,{"$f":"SUM(GL136,GL137,GL52,GL53,GL142,GL143,GL145,GL123,GL47,GL135,GL48,GL54,GL55,GL56,GL57,GL50,GL49,GL58,GL59,GL60,GL124,GL61,GL51)","v":81076322.420000002},5328460043.3400002,83234553.829999998,5883501783.0500002,723297039.32000005,331033863.92000002,280200569.28999996,22586599.580000002,89476006.530000001,5664342216.6199999,77693977.650000006,6393797299.9100008,694223950.45683014,314625222.51802003,269258210.69999999,25559450.68107,84781066.557740003,5614046647.4893084,83691091.261160001,6495794014.1507597,null,1056,1798,3748,12890,2539,1763,1372,25166]
[973,"YORKSHIRE AND THE HUMBER",{"$f":"SUM(C62,C66,C67,C63,C86,C85,C68,C69,C87,C88,C89,C64,C65,C70,C90)","v":397093357.06784827},{"$f":"SUM(D62,D66,D67,D63,D86,D85,D68,D69,D87,D88,D89,D64,D65,D70,D90)","v":3674044852.4495401},412799949.01235658,3775501484.230608,430679443.84977305,3846631296.7888756,436087431.04443985,3896657000,null,3073094483,276198189,8.9876243808283851E-2,787348,3138523.8200000003,3073881832,null,373627730.85000002,142444200.59999999,661560.1,0,28802789.329999998,51187694,6670270,41420271.490000002,19927467,620000,4102138,77748358.329999998,0,36432,6550,3984877001.1999998,1125265,12108151,9163500,1442926,45927810,7536,7581,75205905.340000004,384268218.44,149796608.30000001,0,18030920.799999997,48190943.07,46642463.979999997,22704257.5,347467,646154.79,4064571,93723107,0,115175,6550,3911231441.1300001,948397,12492607,8250338,1745215,44761824,9598.27,92262041.120000005,276440232.41999996,35931193.799999997,{"$f":"SUM(BO62,BO66,BO67,BO63,BO86,BO85,BO68,BO69,BO87,BO88,BO89,BO64,BO65,BO70,BO90)","v":27060777.670000002},16412004,43072294.009999998,5191678.99,146892405.28999999,971876.12999999989,70707,541244.65,249855.88,46195,3551484360.04,12049530.110000001,7608226.5999999996,1438660,2130173.1,49513500.939999998,260580299.13396999,26207100.967999998,24931834.54879,15804984,44007659.442120001,386200,144269338.60789999,1147057.69985,4500,3353138.8673099997,0,419658,48827,3713851078.28373,13139228.971110001,6987836.4218599992,1916605,2547132.8337300001,1172698.1551600001,54628923.614370003,2176402,653358,256523057.91908002,24889347.370000001,25930003,13829910,40077617.700000003,312200,135352381.55395001,3321128.64433,139012,438045.5,12684,5341119,979520,879753.42999999993,4310,3792031.5016700001,0,1183983.2191300001,40011,3889055510.7108297,14749513.01746,6177347.7647700002,901417.63332999998,3210579.3651599996,2795996.17771,55649410.609999999,{"$f":"SUM(EA62,EA66,EA67,EA63,EA86,EA85,EA68,EA69,EA87,EA88,EA89,EA64,EA65,EA70,EA90)","v":2062310.6312799999},696213,248008733.20000002,21888404.050000001,31561631.27,13118284.33,34142233.539999999,312000,132229531.58999999,3395148.73,125229,452046,12224,4623369.6300000008,826228.39,880427,12740,3952059,428812.67,48364,3759533063.5999999,14383192.82,5913736.75,545922,3423885.18,2442440.0699999998,55936487.880000003,1965321,null,375421301.83000004,143524902,0,24937862.02,51993811.469999999,41531633.719999999,19690812.620000001,1143909,3463913,4629230,83787907,0,710771,6550,3068416746.3599997,692454,11882729.16,8596399.5700000003,1410374.9100000001,46255375.350000001,2210450.31,1265759.31,473389659.00999999,243877895.95999998,164640405.93000001,20676704.039999999,44194653.079999998,3641142244.6900001,42004546.140000001,4053285157.6800003,453138844.50000006,237001616.10999998,159550646.34,17618822.279999997,{"$f":"SUM(GL62,GL66,GL67,GL63,GL86,GL85,GL68,GL69,GL87,GL88,GL89,GL64,GL65,GL70,GL90)","v":38967759.770000003},3894734669.4099998,43138651.649999999,4344361541.7700005,462242455.49000001,244728395,159748952.56999999,17704154.349999998,40060953.569999993,4216650865.5599999,45359436.770000003,4782465412.9699993,434536242.43448997,223926851,155843661,16111104.814490002,38654625.620000005,4129108256.5988503,50376812.334140003,4791404881.1196804,null,242,1057,2542,7099,1600,1291,821,14652]
[974,"EAST MIDLANDS",{"$f":"SUM(C97,C96,C109,C108,C149,C151,C139,C138,C110)","v":363960621.17754656},{"$f":"SUM(D97,D96,D109,D108,D149,D151,D139,D138,D110)","v":3013248831.8800001},379321391.01535571,3095792480.8305974,393274772.81455117,3148101857.4666977,398051541.87158275,3217172000,null,2474597667,232236854,9.3848328193707947E-2,17229829,600000,2491827496,null,373651386,132732599,1147494,0,33140850,67062100,7225514,36546801,11264888,0,3204192,78542360,0,2781291,3297,3205864960.8499999,302350,10750656.1,5829228.1200000001,1532382.6,42423232.369999997,5767.5,5943.5,58796865,365076603,136393866.28,0,30047566.719999999,58735526,33577526,11628781,100000,328147,3204192,88528665,0,2397333,135000,3125256532,361414,10868529,6686776,1615410,40922109,7442.5999999999995,80518639,261665071.84999999,38532570.989999995,{"$f":"SUM(BO97,BO96,BO109,BO108,BO149,BO151,BO139,BO138,BO110)","v":18165688.16},8736610.1400000006,56665202.119999997,3214192,132455129.84000002,0,72069.3,791648.89,2896960.41,135000,2724118016.5500002,10072429.379999999,6515751.0999999996,277608,1882856.58,41002683.049999997,211045637.93086001,26910457.108319998,17217013.572009999,9492981.3729800005,38035896.770709999,2854192,110069594.61,406576,96496,3334684.5337,0,2624715.6601100001,3030.30303,2903657816.2057896,9965590.0094799995,5746311.4424999999,166923.15457999997,1375398.21141,628620.72022000002,38060649.999030001,3727677.0458,1517152.1230500001,225218251.31977999,24981505.110830002,18535571.61871,5877570.88387,38322650.817869999,548309,121001534.82838,3432184.6814100002,1314,446547,72.990740000000002,4967339.5185800008,468944.00708000001,839779.48982999998,94409,3061343.0966599998,0,2639175.2758200001,0,3192167071.0304399,11301501.469219999,6001015.1821399992,168175.25856000002,1542145.7120099999,1086800.22404,43944307.047830001,{"$f":"SUM(EA97,EA96,EA109,EA108,EA149,EA151,EA139,EA138,EA110)","v":1949575.76306},1269077.62106,210929707.94999999,22436500.879999999,17626692.32,4404735.12,35058792.399999999,85565,116131888,3330957.31,1501.19,443187,7168.31,4350850.76,327313.02999999997,775658.19,47357,4538063.6300000008,1363477.81,0,3096450865.2000003,13963877.969999999,6217434.0300000012,263229.61,2107506.7599999998,1157020.7000000002,43328159.519999996,2731757.54,null,377278458.78000003,129207843.06,0,32890352.300000001,54895936.119999997,32238585.170000002,12158677.130000001,0,1116929,3256036,108517517,0,2858171,138412,2120634946.5400002,306778,10814670.869999999,6397238.5499999998,1441352.97,42561163.229999997,6197566.1799999997,892683,440764729.48000002,236470115.58000001,139536776.78,14581349.109999999,50176488.009999998,2903182354.6199999,49178627.590000004,3225878497.3399997,426763173.22000003,222310704.85000002,147265411.37,15805832,{"$f":"SUM(GL97,GL96,GL109,GL108,GL149,GL151,GL139,GL138,GL110)","v":41381225},3085090033.5100002,45608383,3406440599.5100002,413450483.11999995,216522060.00999999,146942895.06,13809623.699999999,36175904.349999994,3299509099.9200001,38510597.480000004,3740801574.23,403335300.93246996,215458737,136394004,18911532.559489999,32571027.372979999,3335837024.1001501,42771288.477770001,3865274539.9242301,null,722,679,1685,6673.5,1457,816,774,12806.5]
[975,"WEST MIDLANDS",{"$f":"SUM(C40,C41,C42,C131,C43,C140,C44,C111,C112,C141,C45,C157,C46,C132)","v":492972907.19861823},{"$f":"SUM(D40,D41,D42,D131,D43,D140,D44,D111,D112,D141,D45,D157,D46,D132)","v":4086297854.7399998},511381117.51081973,4204081599.580719,540468579.79350543,4283465098.4218192,547328704.64188564,4344559000,null,3366213215,414759387,0.12321245283923585,8347293,{"$f":"SUM(P40,P41,P42,P131,P43,P140,P44,P111,P112,P141,P45,P157,P46,P132)","v":1090564},3374560507,null,499591279,167914778,250000,0,28392522,88226952,3315492,46259184,11939755,953198,710140,150443804,0,243767,941687,4364208940.8999996,165765,14400027.59,9598805,1995009.56,62835596,12484.8,12798,126065268,505910599.68000001,184878618.15000001,0,8851295.0099999998,67094476.519999996,49744633,19140042,2680368,680000,560140,170723528,0,322348,1235151,4325456230.2399998,651913,14329173,9071317,1888413,58422645,16476.95,162646194,400349951.51000005,35722304.280000001,{"$f":"SUM(BO40,BO41,BO42,BO131,BO43,BO140,BO44,BO111,BO112,BO141,BO45,BO157,BO46,BO132)","v":39423057},19018538.989999998,58609490.280000001,600140,241833305.28999999,0,8455,2990536.06,721754.24,1422370.37,3766516469.1099997,15099322.039999999,9882742.3699999992,1111476,2134193.54,60696200.379999995,375411235.15753996,25474747.75575,41447063.040770002,10094180.026000001,56423648,500140,235836176.84,0,4230,3736523.6242399998,0,422508.87078,1472017,4126830073.1764498,15450817.677439999,7851139.7872199994,1418522.04205,2072308.0063300002,1977416.7654499998,53318455.836519994,2521999.3169400003,342791.89014000003,357595588.36222994,35878473.659449995,24087184,7774698.0778200002,51792907.655840002,354140,212226399.8872,5405182.4375700001,46535.811820000003,753491,3689.2133199999998,9248634.0240000002,3656199.71257,195780,22925,3679555,0,940899.88263999997,1528893,4223154779.6227398,16548346.71854,8181499.70254,917809.72559000005,2319642.1779,1968413.4910499998,54649345.821510002,{"$f":"SUM(EA40,EA41,EA42,EA131,EA43,EA140,EA44,EA111,EA112,EA141,EA45,EA157,EA46,EA132)","v":2053202.9448600002},436258.11122999998,341502495.27999997,33259541.699999999,25677273.57,7018478.9399999995,47481956.270000003,54140,203762182.66,5269630.6399999987,146420,733088,14282,8747888.1500000004,3427266.55,191753,17265.760000000002,3299173.99,907294.88,1494859.17,4094741884.8000002,17411453.130000003,9673140.4400000013,602563.68999999994,2162305.56,2210517.2999999998,59183059.909999996,940553.41999999993,null,491215876.06,155132594.33999997,0,33162891.939999998,82594689.420000002,46455329,19363248.800000001,1113501,896845,492017,150625854,0,434089.83999999997,944815.72,3437693275.6700001,1196644.3999999999,14491740.289999999,8518341.8200000003,2377156.4,61435406.329999998,3126176.27,811161,584396428.98000002,232961115.81999999,264879108.11000004,20911373.489999998,65644831.560000002,3919750574.4699998,61269642.539999999,4334529992.0799999,596202770.84000003,258624516.54000002,255382940.38,22226695.23,{"$f":"SUM(GL40,GL41,GL42,GL131,GL43,GL140,GL44,GL111,GL112,GL141,GL45,GL157,GL46,GL132)","v":59968618.689999998},4208426932.5799999,59368555.450000003,4640287570.8800001,621153111.80999994,287905784.94999999,253543968.67000002,24043629.110000003,55659729.080000006,4539076978.1400003,57346518.56000001,5084870960.2399998,586516169.01861,267563005.12,240519054.66999999,24955068.038610004,53479041.189999998,4453090427.3734102,57590668.183630005,5101158175.8642101,null,568,1317,2765,12619,1969,1192,974,21404]
[976,"EAST OF ENGLAND",{"$f":"SUM(C92,C93,C121,C128,C147,C91,C150,C122,C129,C155,C130)","v":478436687.901833},{"$f":"SUM(D92,D93,D121,D128,D147,D91,D150,D122,D129,D155,D130)","v":3928270369.73},494276130.53082734,4032809417.4219255,512629495.16621971,4093690840.6279402,519205749.36086988,4203618000,null,3219651978,296970992,9.2236985248472098E-2,19421050,4543625,3239055545,null,465909796.93000001,142943444.88,379255,60000,55791021.409999996,75712083.319999993,4943668,57026150,23237363.989999998,192566,3635457,101749063.33,0,199724,40000,4168774650.0600004,791629,13324433.690000001,13974012.720000001,2015076.52,58447698.890000001,8525,8606,84846178,479865395.75999999,148523435.84,0,41451003.629999995,82218705,57812555.850000001,24863539.469999999,420155.56,425193,3743594,120126597,0,280616.41000000003,0,4111212589.5500002,719595.58,13001928.109999999,11700909.74,2093594.02,56580598.130000003,10163.470000000001,97847233.74000001,339287456.22000003,65578333.140000001,{"$f":"SUM(BO92,BO93,BO121,BO128,BO147,BO91,BO150,BO122,BO129,BO155,BO130)","v":19316415.780000001},12411926.430000002,77184252.349999994,2220904,160552188.47,0,53608.15,1433066.22,530481.67999999993,6280,3241817037.2300005,11276081.68,7981917.8099999996,1039802.94,1965887.62,57685211.240000002,323166817.29369998,52035551.849090002,18584714.347460002,9644636.2227400001,74906295.23627001,1676666,163370089.47930998,0,1541,1565526.86203,0,1381796.2968000001,0,3787984613.5270801,13008460.669709999,8457992.2579500005,777317.88132999989,1786436.1719899999,519830.81,52203583.382770002,6594096.3060900001,1438817.41833,306180933.20609999,43177446.898019999,17566025.425729997,5683599.6155300001,72711725.977609992,37811,154877237.11568999,3984924.0069400002,258473,537518,23644,4995475.7663199995,438875.48116999998,251724.24703999999,10014,1071465.3256000001,0,554973.34644999995,0,4119980380.8265901,18747418.337889999,8355995.2899500001,1764592.52455,2175164.7018499998,250524.60006,64749375.272739999,{"$f":"SUM(EA92,EA93,EA121,EA128,EA147,EA91,EA150,EA122,EA129,EA155,EA130)","v":4817551.3310500002},1357808.09185,293849344.55000001,46682555.870000005,16399269.609999999,4879298.68,63584637.579999998,37810,150443025,3938360.19,119043,533556,12528,4224915.58,305208.02999999997,285023,9368,863299.56,1531446.45,0,3938810988.4000001,19500933.779999997,7922585.5099999998,1696463.6600000001,2183151.5,573819.28,59099679.939999998,3727763.87,null,440278583.70999998,145918533.78,0,47478224.269999996,72492570,50146963.719999999,19349905.010000002,85000,317234,4332607.93,99872549,0,284996,0,2888517407.1399999,551163.96,13496600.98,7850207.1699999999,1626843.4000000001,55638271.200000003,6191816,454105,496305455.10999995,239278204.12999997,158624645.59,18806790.120000001,79595815.269999996,3344930973.9200001,68394131.019999996,3836871700.96,531195480.42000002,262883940.51999998,173318713.69,20901281.509999998,{"$f":"SUM(GL92,GL93,GL121,GL128,GL147,GL91,GL150,GL122,GL129,GL155,GL130)","v":74091544.700000003},3918934456.4099998,68848058.590000004,4376313746.9899998,549529681.43000007,278812748.72000003,176206000,19050912.800000001,75460019.909999996,4417373970.5500002,57893379.440000005,4992733201.4000006,524100531.60162997,262064729.09,173130258,18061617.647879999,70843926.863750011,4369908832.0939102,47805172.433959998,5012236461.0646601,null,661,1084,2455,9317.5,1431,1098,797,16843.5]
[977,"INNER LONDON",{"$f":"SUM(C8,C7,C10,C11,C28,C12,C13,C14,C15,C35,C16,C17,C18,C19)","v":402079552.52331328},{"$f":"SUM(D8,D7,D10,D11,D28,D12,D13,D14,D15,D35,D16,D17,D18,D19)","v":2559985374.2441216},417321447.70750463,2708860684.0330596,428109752.60085136,2750628555.1384888,431412692.4308064,2916169000,null,1946456904,248073768,0.12744888802326138,49919673,2835630,1996376577,null,386606723,188238932,471359,0,27043343,63016504,1926600,30153664,14495812,498755,2346839,58114725,0,300190,0,2849126474,1452178,9686644,7739859,1889176,37126569,4704,4730,46993999.299999997,430306952.59000003,212325087.11000001,0,17880530.199999999,64369589.969999999,23339857.91,15384721.399999999,757377,3365883,2401233,90215750,0,266923,0,2838442692.9100003,2215655,8644867,6300197,1821050,37185257,86920.88,74330684,255965271.53000003,31809903.179999996,{"$f":"SUM(BO8,BO7,BO10,BO11,BO28,BO12,BO13,BO14,BO15,BO35,BO16,BO17,BO18,BO19)","v":8792101.8999999985},9180916.040000001,62499681.140000001,2412618.79,139945027.98999998,518857,71165.53,465614.24,269385.71999999997,0,2634734375.1900001,9679510.1300000008,8375122.96,718759,2290771.2800000003,39579406.039999999,231535822.16272002,21453874.039980002,6932644.5242599994,7214564.3515900001,58194237.332529999,2030254.6260899999,133023388.8344,0,12871,1970053.5799100001,0,703933.87396,0,2648462866.1795201,11017306.742800001,6248163.6865600003,877137.70614000002,2802506.2666000002,1358263.7099299999,39027420.730240002,1251950.0472000001,296260.24803000002,224118344.71812999,22217486.457110003,7001817.2056099996,6433053.0351400003,57618127.449359998,1479825,119262121.11724,2518072.7392299999,55520,340691,5358,2806292.2784299999,1606110.5652099999,115253,27391.01152,1765036.61442,0,757710.24485999998,108479,2681478343.6184297,11627702.785130002,7558433.0964899994,859144.30411000003,4178180.3196700001,1656128.2816400002,37948956.934980005,{"$f":"SUM(EA8,EA7,EA10,EA11,EA28,EA12,EA13,EA14,EA15,EA35,EA16,EA17,EA18,EA19)","v":916042.98426000006},178375,205917342.94999999,23424628.450000003,4795660.1100000003,5548483.9400000004,48424318.920000002,1612404.3,113194754.06999999,2447637.2300000004,64780,331910,5284,2654945.2700000005,1267390.78,176065,43138.96,1378222.3,437305.47,110414.15,2532627592.4999995,10950202.229999999,8410207.5999999996,1116945.0499999998,5042954.3899999997,1890189.7199999997,40115786.689999998,668550.31000000006,null,409521754.19000006,183298560.19999999,0,27516035.130000003,56873937.790000007,26700833.620000001,5574939.9000000004,556970,1568913,2589875,104400026.70999999,0,441662.83999999997,0,2610352345.6900001,1134274.4099999999,8041479.6099999994,7362639.9299999997,1675580.8099999998,38559697.909999996,1737535.82,527482.33000000007,510918632.55000001,253116268.75,151582480.90000001,38232989.450000003,67986893.450000003,2812982065.73,46482168.060000002,3118227041.96,525468652.78000003,260733955.48000002,144738245.03,49159876.390000001,{"$f":"SUM(GL8,GL7,GL10,GL11,GL28,GL12,GL13,GL14,GL15,GL35,GL16,GL17,GL18,GL19)","v":70836575.879999995},2987910149.0200005,31301519.259999998,3304701309.6099997,460505790.13999999,231778954.37,140298037.47,24957025.23,63471773.07,2858188964.5699997,32765404.399999999,3214077743.8099995,428697844.44727004,212663542,134505557.06999999,19940445.47789,61588299.899380006,2763185418.6134896,43222881.765669994,3188328960.5298295,null,679,830,1942,4720,1039,630,659,10499]
[978,"OUTER LONDON",{"$f":"SUM(C20,C21,C22,C23,C24,C25,C26,C27,C9,C29,C30,C31,C32,C33,C34,C36,C37,C38,C39)","v":577070627.93278551},{"$f":"SUM(D20,D21,D22,D23,D24,D25,D26,D27,D9,D29,D30,D31,D32,D33,D34,D36,D37,D38,D39)","v":3919169964.0700002},614658407.03765225,4107697443.0246267,636793954.6293093,4202048243.4810205,643641740.8830018,4387055000,null,3137020825,292530222,9.3250965906482311E-2,9322332,5280074,3146348033,null,574835839.90999997,225126698.36000001,2356743,0,54840516.879999995,141642510,1288978,40769129,15472695,0,2755866,89775402.670000002,0,101433,705868,4311459692.2600002,1560051,14910445,11815124,1821900,68211927,7627.5,7893.5,77315057,576302215.44999993,213201860.33000001,0,34758888.450000003,136935471,45451586,20089578,3881,1871033,2657220,117993652.67,0,984753,2354292,4192701912.1700001,1745657,14606058,11954952,1891195,67012286,10016.08,121831256,416460704.09999996,57393070.039999999,{"$f":"SUM(BO20,BO21,BO22,BO23,BO24,BO25,BO26,BO27,BO9,BO29,BO30,BO31,BO32,BO33,BO34,BO36,BO37,BO38,BO39)","v":23546383.990000002},15755401.349999998,123993072.83999999,2556023,186972578.83000004,689,36260.939999999995,1471526.5499999998,1050098.56,3685599,3540168637.5499997,15340632.16,13289617.719999999,1502272,2106151.7199999997,67321117.11999999,342839590.01904005,25922335.48212,19552321,12243556.65543,114423609.61152001,1475472,166917397.48098001,0,11866,957080.04390000005,0,295388.80321000004,1040562.9418800001,3545974404.3442106,17562567.50795,11637592.16447,2521022.62628,2046324.1600900001,1952940.0946800001,71714642.096860006,1814641.15463,830479,340824014.00575989,25511535.249310002,22323642,8980746.9197300002,103343320.54528999,1642223,165911295.05508998,3341166.2361399997,13200,458127,5427,4393495.5309899999,1926915.86002,370355,22832,1107619.84259,0,366872.76659999997,1105240,4022860256.9682298,17746713.970759999,11344662.98728,2419241.1370799998,2455453.4119199999,2062862.3703099999,70130477.174109995,{"$f":"SUM(EA20,EA21,EA22,EA23,EA24,EA25,EA26,EA27,EA9,EA29,EA30,EA31,EA32,EA33,EA34,EA36,EA37,EA38,EA39)","v":1185575.6499999999},552331,317692105.69,21979404.989999998,20821210.18,7204323.3600000003,97244732.170000002,1167365,156981772.52000004,3301450.28,45240,456028,5316,4061364.02,1481467.93,366061,21370,1064561.8799999999,365880.36,1124558,3821585277.9000006,18148608.579999998,10653878.57,2938571.3526999997,2387020.0499999998,1981113.63,69425872.050000012,1240944.7,null,561789629.06000006,210543470.30000001,0,44834241.660000004,131375430.27,44174292.230000004,18366138.030000001,384647,2266041,2647284.59,100591772.59999999,0,3900450.3800000004,2705861,3265679359.9200001,2358162.98,15054922,13042831.789999999,1984988.97,66171864.880000003,4175418.38,2070688.85,613177101.58000016,273864660.96000004,191438152.88,31451143.710000001,116423144.03,3620941486.2400002,69971294.420000002,3988190932.9800005,611544692.98000014,268946602.77000004,193384684.03,30789409.359999999,{"$f":"SUM(GL20,GL21,GL22,GL23,GL24,GL25,GL26,GL27,GL9,GL29,GL30,GL31,GL32,GL33,GL34,GL36,GL37,GL38,GL39)","v":118423996.81999999},3872931145.1399994,71057196.50999999,4263183013.9599991,624712523.45000005,298440428.05000001,184936159.41999999,30875689.359999999,110460246.62,4301635856.0299997,65286246.240000002,4840995116.2400007,583850368.62186992,272978894,178735517,29216975.245820001,102918982.37605,4195777485.2108302,66130366.354619995,4764090887.0115004,null,1688,1902,2686,8220.5,2097,790,1080,18463.5]
[979,"SOUTH EAST",{"$f":"SUM(C115,C104,C94,C103,C105,C148,C133,C134,C95,C153,C106,C118,C119,C107,C156,C117,C158,C116,C120)","v":760235476.20774019},{"$f":"SUM(D115,D104,D94,D103,D105,D148,D133,D134,D95,D153,D106,D118,D119,D107,D156,D117,D158,D116,D120)","v":5591509488.5900002},796033960.43053436,5772687798.406682,828620195.18010843,5872075982.1641026,837622169.36652493,5965783000,null,4484584201.75,439235006.47000003,9.7943306828445598E-2,24533806,2864875,4509011871,null,770706941.10000002,249349731.09999999,493431,290042,59545318,168849946,6313654,64547566,36027160,192725,2182285,181896574,0,707849,310660,6034380345.3699999,1458466,21762986,18281288,3350294,110087383,14758.1,15308.7,150658738.19,733414996,250634133,299911,36774984,148160652,62452096,33655482,526566,573889,2221975,196423731,0,1380917,310660,5919123398.6199999,2618704,21306223,16827554,3245863,104875705,18429.53,191955241.07999998,587704125.78999996,76600089.260000005,{"$f":"SUM(BO115,BO104,BO94,BO103,BO105,BO148,BO133,BO134,BO95,BO153,BO106,BO118,BO119,BO107,BO156,BO117,BO158,BO116,BO120)","v":25384796.539999995},29466467.810000002,147793908.31999999,2241683,300661725.86999995,0,415912,3171198.59,1602684.4,365660,5126692149.8100004,20063438.370000001,17223120.910000004,1908175,3178383.91,96286778.440000013,565121481.96494997,43511933.600000001,33044741.399999999,30767257,147923503,1940708,301806046.77350003,0,296435,4148389.6146900002,0,1328357.06694,354110.50981999998,5609446223.0121698,21627664.828400001,15160405.736400001,3086288,3215479.2774999999,2784230.4530000002,93069439,4512929.4000000004,625621.19999999995,541479425.36659992,41308897.635149993,32243641.968460001,25248503.523540001,143479438.12222001,1670056,274187008.92585003,7055269.15778,119022,932715,3618,8410218,917279.27782000008,806700,120824,3050790.7557800002,0,1410673,514770,5836899993.5551596,23605541.558310002,16785743.319200002,3537642.3775299997,4666464.8774299994,3715182.6293600001,101297993.69794001,{"$f":"SUM(EA115,EA104,EA94,EA103,EA105,EA148,EA133,EA134,EA95,EA153,EA106,EA118,EA119,EA107,EA156,EA117,EA158,EA116,EA120)","v":5529084.1209200006},792889,515224005.20999998,38444012,33070100.530000001,23964397.59,139758258,1541976,257646574.84000003,6931621.2000000002,102519.18,913366,8860,6970897.8499999996,701009.86,796000,68407,2269105.16,1692262,344638,5574098353.9499998,22794845.010000002,18603171.16,3316929.84,3416840,3086260,95586083.329999998,4914252,null,747207103.21000004,236418176.19999999,911478,45936250.640000001,156059459.76999998,62722396.159999996,33761436.100000001,308014,493341,2261977,207375962.34,0,649679,308933,4730720995.2799997,1012333,21978172.52,18162279.539999999,2305924.06,105172942.73,7408032,1759124,860702726.48000002,355225575.01999998,332267443.76000005,27171280.030000001,146038427.67000002,5186696181.9000006,107635691.19,5695052370.75,889443555.39999986,392491005.76999998,329505875.63,26532570,{"$f":"SUM(GL115,GL104,GL94,GL103,GL105,GL148,GL133,GL134,GL95,GL153,GL106,GL118,GL119,GL107,GL156,GL117,GL158,GL116,GL120)","v":140914104},5637166122.3400011,109146438,6207365448.3400011,858426939.83000016,362877523,321821860,33280213.210000001,140447343.62,6285463433.7000008,94388652.060000002,7037144188.4200001,825551021.99368,353101396.12,309517384.13999999,24381467.609549999,138550774.12413001,6134583960.1620598,93834798.126760006,7028982766.4471493,null,2022,2454,3154,15800.400000000001,2782,1731,1436,29379.4]
[980,"SOUTH WEST",{"$f":"SUM(C77,C100,C78,C144,C125,C98,C146,C76,C79,C126,C99,C154,C80,C114,C127,C113)","v":388818244.73999995},{"$f":"SUM(D77,D100,D78,D144,D125,D98,D146,D76,D79,D126,D99,D154,D80,D114,D127,D113)","v":3248017574.1500001},421713290.75580281,3346352278.3622198,447751572.74440086,3400182422.3018875,452520097.05048877,3476887000,null,2652520307,251251286,9.4721720070134033E-2,12707131,7068358,2665244461,null,402070302.77999997,126489079,177888,57300,39706307,95489799.210000008,9552043,36140092.57,6178819,871500,1601342,84161488,0,80781,1563864,3461898919.9099998,2047164.8,11882349.120000001,11262046.120000001,2541321.58,56839030,6586.4,6779,65821011,410203286.39999998,139113142.40000001,0,32549889,86765191,39644140,7378962,756000,0,1599313,100746676,0,80781,1569192,3393609659.6599998,2086731,12052101,9223700,2341717,51247979,9107.2999999999993,103146284.33,285407884.17000002,40373536.640000001,{"$f":"SUM(BO77,BO100,BO78,BO144,BO125,BO98,BO146,BO76,BO79,BO126,BO99,BO154,BO80,BO114,BO127,BO113)","v":24954847.280000001},5273301,67990813,1597699,142551357.65000004,112061,16270,1078476.2,148779.4,1310743,2646123998.6599998,12323231,9450507,2224320,1901361,57529970.549999997,278676319.28770995,36033987.58461,14573254.08389,7204998.5846100003,67410449,1476357,148268431.37,0,71188,2459779.0846199999,0,137655.97821,1040218.60177,3181968385.8399296,13137620.829330001,8877799.0392199997,1940298,2019346,1318736,50445322.633000001,3326571,2153022,265778495.90275002,30357898.987,15185225.176520001,12875711.640000001,61341594.218000002,1516601,130718354.39473999,3646595.0706799999,68206,490697,3609,5796127.5930899996,840071.00997000001,422376,12161.786169999999,1953741,0,158044.70468999998,391481.32189000002,3517089572.7898898,13497757.82539,8826768.3598900009,1508819,1781185,2162217.1705700001,46839957.626809999,{"$f":"SUM(EA77,EA100,EA78,EA144,EA125,EA98,EA146,EA76,EA79,EA126,EA99,EA154,EA80,EA114,EA127,EA113)","v":2506913.8735600002},169900,252238496.25799999,24602254.699999996,19696893.439999998,10474055.33,58368990.329999998,1597700,125578869.33800001,3581629.66,72638,480624,3544,4901817.1100000003,542413.36,412793,15949,1311020.54,307995.28999999998,289309.15999999997,3388795083.8699994,14323640.93,9762898.4100000001,2306195.13,2688816.63,2336069.96,44748795.379999995,1915154.24,null,403403059.67999995,130150375.02,23040,49059325.469999999,81235111.889999986,38677110.340000004,6901286.5300000012,1084945,39378,1601000,92980721.599999994,0,82065.59,1568700.24,2553035529.2900004,1735958.4100000001,12420894.520000001,9492964.1999999993,2176708.19,59868111.460000001,2384460.71,648346.6,433271772.82000005,197519634.07000002,156702768.19999999,12447281.74,66602088.810000002,2703418900.2900004,53446416.989999995,3029637590.6000004,466695104.97999996,224314380.45999998,161925420.38,18865818.920000002,{"$f":"SUM(GL77,GL100,GL78,GL144,GL125,GL98,GL146,GL76,GL79,GL126,GL99,GL154,GL80,GL114,GL127,GL113)","v":61589485.219999999},3016926393.6099997,58056372.240000002,3371628277.9199991,490777993.98000002,253856505,159133400.00999999,12951933.870000001,64836155.100000001,3753944220.5900002,45395886.230000004,4266223313.04,460058532.33117998,228447773.47,152860640.21000001,13521902.161179999,65228216.489999995,3827713028.2409801,42369434.950000003,4383263131.4309797,null,1269.2,1032,2132.8000000000002,7477,1416,2554,1006,16887]

{"sheet":"Pupils","index":3,"n_rows":170,"n_cols":71,"rows_kept":170,"cut":false,"hidden":false,"merged":[[4,47,4,58],[4,21,4,25],[3,2,3,25],[4,59,4,70],[3,41,3,70],[4,41,4,46],[4,2,4,4],[4,5,4,7],[4,8,4,10],[4,11,4,15],[4,16,4,20],[4,27,4,39]]}
["Local Authority pupil data (Please refer to source data for full data descriptions)"]
[]
[1,2,3,4,5,6,7,8,9,10,11,12,13,14,15,16,17,18,19,20,21,22,23,24,25,26,27,28,29,30,31,32,33,34,35,36,37,38,39,40,41,42,43,44,45,46,47,48,49,50,51,52,53,54,55,56,57,58,59,60,61,62,63,64,65,66,67,68,69,70,71]
[null,null,"Pupils (headcount) with SEN with and without statements from January Census data (based on where the pupil attends school) ",null,null,null,null,null,null,null,null,null,null,null,null,null,null,null,null,null,null,null,null,null,null,null,null,null,null,null,null,null,null,null,null,null,null,null,null,null,null,"SEN 2 Surveys"]
[null,null,2009,null,null,2010,null,null,2011,null,null,2012,null,null,null,null,2013,null,null,null,null,2014,null,null,null,null,null,"Jan 2014 Census: Primary type of need for pupils (headcount) with Statement or School Action Plus",null,null,null,null,null,null,null,null,null,null,null,null,null,"No of pupils (headcount) with a statement maintained by each LA",null,null,null,null,null,"Children (headcount) for whom the authority maintains a statement in 2013 placed in:",null,null,null,null,null,null,null,null,null,null,null,"Children (headcount) for whom the authority maintains a statement in 2014 placed in:"]
["LA No","LA Name","Total pupils","Pupils with statements","Pupils with SEN without statements","Total pupils","Pupils with statements","Pupils with SEN without statements","Total pupils","Pupils with statements","Pupils with SEN without statements","Total pupils","Pupils with statements","Pupils at School Action Plus","Pupils at School Action","Pupils with SEN without statements","Total pupils","Pupils with statements","Pupils at School Action Plus","Pupils at School Action","Pupils with SEN without statements","Total pupils","Pupils with statements","Pupils at School Action Plus","Pupils at School Action","Pupils with SEN without statements",null,"Specific Learning Difficulty","Moderate Learning Difficulty","Severe Learning Difficulty","Profound & Multiple Learning Difficulty","Behaviour, Emotional & Social Difficulties","Speech, Language and Communications Needs","Hearing Impairment","Visual Impairment","Multi-Sensory Impairment","Physical Disability","Autistic Spectrum Disorder","Other Difficulty/Disability","Total",null,2009,2010,2011,2012,2013,2014,"non-maintained early years settings in the private and voluntary sector","resourced provision in maintained mainstream schools","SEN units in maintained mainstream schools","maintained mainstream schools (including foundation schools)","maintained special schools (including foundation schools)","non-maintained special schools, independent special schools and other independent schools","hospital schools (including foundation schools) and pupil referral units","academies (including free schools)","special academies (including free schools)","alternative provision academies (including free schools)","educated other than in school","awaiting provision","non-maintained early years settings in the private and voluntary sector","resourced provision in maintained mainstream schools","SEN units in maintained mainstream schools","maintained mainstream schools (including foundation schools)","maintained special schools (including foundation schools)","non-maintained special schools, independent special schools and other independent schools","hospital schools (including foundation schools) and pupil referral units","academies (including free schools)","special academies (including free schools)","alternative provision academies (including free schools)","educated other than in school","awaiting provision"]
[201,"City of London",2235,5,229,2260,4,219,2295,4,242,2307,4,23,32,241,2316,3,19,23,182,2333,6,15,22,214,null,6,0,"x",0,6,4,0,0,0,0,3,"x",{"$f":"SUM(AB7:AM7)","v":19},null,15,15,15,10,10,10,0,0,0,8,"x","x",0,"x",0,0,0,0,0,0,0,5,"x","x",0,"x",0,0,0,0]
[202,"Camden",29449,930,5174,29503,918,5192,29496,896,4836,30537,851,1538,2803,4945,31235,856,1424,2474,4607,31583,871,1557,2245,4358,null,227,367,47,21,579,712,68,17,8,91,180,73,{"$f":"SUM(AB8:AM8)","v":2390},null,1035,1015,990,970,955,970,4,43,15,467,277,96,29,12,0,0,14,0,3,46,17,447,283,101,11,43,6,0,11,"x"]
[203,"Greenwich",40252,1347,8968,40555,1248,9042,41150,1248,8948,41703,1214,4093,3976,8369,42153,1202,3893,3756,7960,43702,1267,3719,3976,8116,null,399,354,170,73,851,1858,109,63,3,126,590,296,4892,null,1355,1275,1265,1205,1220,1210,3,25,59,576,217,44,3,91,179,0,11,10,12,43,37,439,225,47,3,200,197,0,6,0]
[204,"Hackney",32936,973,6272,34066,1069,6505,34996,1093,6736,36725,1169,2576,3944,6873,38816,1235,2584,4016,6971,40855,1310,2871,3774,7084,null,330,635,109,63,903,1347,50,35,4,62,361,132,4031,null,1185,1215,1235,1285,1350,1400,14,39,13,603,270,154,25,223,"x",0,5,"x",27,36,13,630,274,168,20,226,"x",0,4,0]
[205,"Hammersmith and Fulham",23505,721,4580,23968,762,4787,24364,775,4607,25291,789,1654,2479,4676,25858,851,1534,2313,4302,26128,860,1563,1842,4026,null,294,371,49,38,501,630,24,18,"x",60,299,70,2354,null,625,600,610,600,630,645,"x",0,55,259,206,12,17,53,0,0,27,0,0,0,48,267,221,9,0,51,0,14,37,0]
[206,"Islington",23329,726,6148,23340,727,5745,23884,783,5847,24215,798,2048,3546,5640,24147,820,1811,3084,4997,24621,843,1879,3157,5078,null,261,373,159,85,510,753,101,38,"x",92,176,166,2714,null,795,820,800,815,835,910,5,37,5,417,255,72,15,29,0,0,0,0,0,"x",32,386,328,80,14,52,"x",0,17,0]
[207,"Kensington and Chelsea",22674,373,2088,23202,368,2222,24131,445,2327,24616,412,514,1033,2467,24981,415,530,991,2452,25460,516,605,939,2406,null,128,172,60,16,181,222,13,12,"x",20,96,38,958,null,370,385,405,430,440,440,"x",0,9,198,92,105,"x",33,0,0,"x",0,0,"x",10,182,89,92,0,58,"x",6,0,0]
[208,"Lambeth",32956,1213,7572,33681,1269,7763,34523,1329,7926,35250,1272,3722,3998,7892,36292,1301,3676,3842,7729,37540,1303,3677,3878,7790,null,482,915,168,68,1095,1269,60,34,8,115,534,202,4950,null,1300,1360,1545,1400,1470,1580,"x",0,45,613,450,151,7,198,0,0,7,0,10,0,40,563,477,152,17,303,9,0,11,0]
[209,"Lewisham",38076,1134,8388,38891,1120,8661,39700,1106,8535,40595,1107,3383,4564,8065,41683,1126,3148,3954,7198,42389,1149,3202,3512,6860,null,422,297,144,37,804,1312,56,35,7,144,936,147,4341,null,1355,1365,1340,1355,1380,1450,3,83,32,478,545,85,7,133,"x",0,12,0,7,105,21,505,564,92,6,131,0,0,14,3]
[210,"Southwark",41550,1312,9196,42103,1265,9803,42536,1246,9196,43359,1251,3832,4048,8588,44301,1217,3798,3996,8476,45297,1248,3709,3841,8213,null,435,745,155,38,1036,1302,51,32,4,162,722,207,4889,null,1415,1455,1485,1475,1475,1515,11,54,27,496,494,104,5,256,0,0,27,0,8,49,20,505,471,134,4,260,37,0,25,"x"]
[211,"Tower Hamlets",39767,1355,8123,40865,1363,8618,41742,1401,8089,42188,1477,3057,4294,7424,43494,1562,2879,4143,7067,44547,1622,2624,3702,6363,null,316,411,108,138,808,1473,171,62,4,164,414,163,4232,null,1440,1480,1560,1625,1745,1805,11,18,92,1068,387,113,12,15,0,0,8,23,15,21,89,1066,413,115,8,41,6,0,14,17]
[212,"Wandsworth",39332,1340,8589,39825,1419,9070,40303,1470,8813,40743,1553,2803,4274,8211,41241,1581,2441,3897,7263,41886,1631,2639,3391,7003,null,412,424,107,34,1111,927,170,145,26,97,560,69,4082,null,1145,1165,1225,1245,1290,1265,0,47,32,452,428,130,14,177,0,0,9,0,0,64,43,398,438,124,11,183,0,0,4,0]
[213,"Westminster",27615,688,5682,28510,720,6932,29265,709,6935,29879,770,2776,3009,6771,30120,799,2457,2960,6331,30416,811,2312,2585,6083,null,193,427,57,27,912,864,30,33,4,54,196,209,3006,null,785,825,875,850,850,1010,40,35,11,344,197,85,11,103,0,0,21,3,26,22,22,377,256,125,0,129,12,10,30,0]
[301,"Barking and Dagenham",33062,783,7557,33869,803,8269,35075,807,6467,36490,817,2198,4663,6862,37862,844,2181,3956,6139,39177,886,2360,3851,6216,null,83,511,258,38,627,1122,72,32,0,88,304,65,3200,null,890,900,935,920,945,1010,"x",177,0,377,296,63,"x",17,0,0,12,"x",8,184,0,408,318,68,"x",11,0,0,10,3]
[302,"Barnet",55647,1458,10069,56302,1420,10795,57101,1498,11248,58861,1561,3492,6852,11130,59969,1630,3445,6590,10794,61281,1661,3431,5821,10108,null,500,381,89,101,1281,1163,95,46,11,304,649,339,4959,null,1500,1520,1640,1660,1710,1725,15,70,0,682,413,168,"x",348,0,0,8,3,17,91,0,685,404,172,"x",348,0,0,6,"x"]
[303,"Bexley",41437,1183,7726,41350,1135,7971,41731,1087,7518,42364,1063,2145,4524,6685,43042,1088,2066,3784,5877,43356,1101,2171,3554,5758,null,271,419,116,22,622,841,55,39,5,73,574,200,3237,null,1405,1345,1340,1270,1300,1285,9,76,36,220,466,113,4,353,5,0,19,"x",10,96,20,155,450,112,7,416,6,0,7,5]
[304,"Brent",44551,1259,8749,45201,1325,8714,46434,1418,8599,47395,1397,3002,5476,8637,48015,1383,2905,4752,7792,48890,1371,2876,4256,7272,null,217,820,165,61,845,1196,67,45,5,148,418,232,4219,null,1410,1490,1610,1640,1650,1620,5,20,60,569,536,192,3,240,0,0,18,7,4,27,66,477,569,168,0,283,"x",4,15,6]
[305,"Bromley",51135,1645,7137,51302,1704,7484,51584,1786,7681,51789,1779,3127,3938,7425,52496,1901,3019,3538,6986,53135,1818,2916,3432,6784,null,587,810,246,118,890,978,104,51,0,133,519,169,4605,null,1795,1885,1940,1975,1975,1915,"x",6,170,385,483,201,13,683,0,0,31,"x",0,10,146,252,491,200,18,759,0,0,39,"x"]
[306,"Croydon",58617,1319,10961,59060,1325,11893,59743,1386,11996,61348,1488,4613,6795,12122,62461,1536,4440,6047,11311,63415,1679,4208,5280,10274,null,605,600,215,77,1417,1371,105,53,5,238,702,348,5736,null,1670,1705,1775,1845,1945,2045,0,177,0,556,797,222,29,140,0,0,24,"x",0,161,0,608,820,223,24,189,0,0,17,"x"]
[307,"Ealing",50585,1312,9643,51869,1384,9725,52928,1340,9473,54318,1505,3685,4852,8949,55265,1545,3528,4566,8543,56505,1569,3477,4430,8348,null,350,1064,287,72,924,1258,95,36,15,210,388,151,4850,null,1405,1410,1480,1585,1575,1630,0,81,11,611,623,133,24,70,0,0,14,10,0,81,11,641,648,157,12,72,0,0,7,"x"]
[308,"Enfield",52290,1188,11152,52996,1144,11704,53816,1153,10807,54986,1154,3685,7483,11235,56261,1181,3304,7039,10410,56969,1228,3090,6144,9356,null,293,472,135,58,1201,1020,82,64,4,136,602,244,4311,null,1300,1240,1250,1255,1290,1385,"x",70,0,532,528,49,"x",94,0,0,9,6,0,57,0,597,558,57,3,93,0,0,13,7]
[309,"Haringey",38153,1147,7911,38695,1208,8331,39378,1251,8354,39827,1255,2736,4906,7867,40353,1308,2518,4712,7308,40065,1232,2415,4549,7071,null,211,479,70,91,737,1099,110,42,6,64,558,138,3605,null,1270,1240,1300,1360,1395,1350,4,30,66,690,332,116,18,111,0,0,16,10,7,36,0,699,333,131,14,102,0,0,20,9]
[310,"Harrow",35103,930,6334,35398,913,6283,35985,939,6527,36260,955,2107,3602,5953,36865,980,1975,3165,5391,37581,982,1892,3000,5164,null,304,469,128,42,548,658,76,53,5,88,356,132,2859,null,1060,1080,1120,1135,1160,1170,8,70,0,374,399,112,8,166,"x",0,13,6,17,67,0,355,329,110,13,169,87,0,16,5]
[311,"Havering",37036,704,5481,37097,616,5844,37223,588,5193,37252,599,1999,2970,5023,37602,625,2002,2749,4795,38151,809,1807,2658,4522,null,135,564,136,55,519,670,70,39,0,106,240,82,2616,null,700,650,635,660,690,865,0,28,"x",325,254,40,11,9,0,0,17,6,0,34,"x",307,265,29,4,203,0,0,11,12]
[312,"Hillingdon",47996,1293,8911,48472,1347,8926,49184,1362,8226,50017,1423,2476,5290,8057,51291,1516,2607,4665,7604,52403,1571,2650,4351,7314,null,426,532,204,43,600,1198,108,65,16,172,509,204,4077,null,1230,1280,1290,1350,1450,1480,11,57,0,379,391,141,"x",299,156,0,8,5,5,66,0,397,385,136,0,306,169,0,13,3]
[313,"Hounslow",37590,977,8222,38059,903,8106,38565,923,7812,39571,981,2780,4697,7617,41174,1048,2904,4191,7281,42177,1089,2879,4058,7140,null,334,659,156,59,1031,798,105,41,4,189,335,245,3956,null,1170,1090,1140,1210,1295,1395,5,5,160,288,467,114,25,198,0,0,28,3,5,4,156,241,511,146,27,291,"x",0,14,"x"]
[314,"Kingston upon Thames",25748,593,3161,26295,624,3273,26645,642,3221,27087,673,1081,1665,3066,27571,688,1072,1499,2879,28079,689,1066,1496,2932,null,177,228,65,18,281,509,30,20,"x",60,285,55,1728,null,615,640,655,680,730,770,3,62,5,182,198,123,0,146,0,0,"x",7,0,57,5,206,209,130,0,141,4,0,0,18]
[315,"Merton",28220,928,4484,28768,891,4593,29667,922,4463,30825,962,1412,2855,4623,31530,1045,1363,2765,4434,32079,1103,1380,2639,4326,null,293,327,83,48,528,580,23,15,5,53,245,35,2235,null,920,890,895,925,985,1030,6,89,3,424,333,91,3,35,0,0,"x",0,"x",88,4,453,337,111,"x",32,0,0,"x",0]
[316,"Newham",51199,506,11419,52696,456,12157,53523,444,12070,55228,468,4347,7447,11829,56301,468,4016,6360,10465,57673,468,4151,6190,10409,null,337,535,140,137,1001,1094,134,62,10,193,566,345,4554,null,605,575,600,640,660,610,0,126,0,320,164,20,7,17,0,0,5,0,0,84,5,269,171,38,8,27,0,0,9,0]
[317,"Redbridge",51531,1313,7255,52442,1259,7997,53684,1271,7898,54793,1273,2421,4680,7426,55656,1307,2495,4584,7431,56736,1350,2414,4416,7127,null,286,664,109,111,877,948,114,61,6,139,332,114,3761,null,1420,1395,1390,1385,1430,1435,"x",59,43,667,480,74,8,78,0,0,13,5,"x",74,49,657,492,70,5,78,0,0,7,3]
[318,"Richmond upon Thames",29630,682,3295,30140,689,3224,30393,703,3284,31143,737,761,1852,3423,32112,731,890,1807,3613,33198,807,863,1863,3742,null,295,281,35,7,363,305,18,23,6,61,205,57,1656,null,785,800,820,820,860,940,5,11,78,401,121,184,0,51,0,0,8,"x",6,15,67,323,129,195,0,191,0,0,11,4]
[319,"Sutton",33827,1057,4926,33990,1046,4989,34448,1115,5057,34996,1108,2028,2855,5072,35840,1119,2113,2926,5224,36602,1106,2066,2791,5004,null,556,425,49,43,779,550,47,34,3,79,391,142,3098,null,1090,1120,1100,1080,1070,1070,"x",71,104,224,230,176,14,194,49,0,8,0,"x",74,118,223,121,180,13,187,146,0,6,"x"]
[320,"Waltham Forest",39315,1370,9901,39948,1311,10274,40917,1275,10287,42140,1299,4118,5161,9407,42970,1305,3766,4957,8860,43735,1347,3497,4804,8423,null,302,1006,123,42,1064,1213,80,109,45,216,473,168,4841,null,1400,1330,1375,1410,1400,1395,14,68,0,493,396,56,7,184,172,0,8,"x",19,94,0,467,430,54,9,165,147,0,7,"x"]
[330,"Birmingham",184930,6343,35045,185812,6199,37139,187157,6228,37875,190339,6123,13701,22260,36447,193090,6026,13234,19772,33528,196952,6413,12381,18508,31358,null,742,6428,689,343,2898,2513,516,304,33,692,2568,646,18372,null,6580,6470,6390,6400,6095,6990,3,549,0,1997,2888,226,62,37,157,0,25,150,61,533,0,1733,3258,244,125,663,152,"x",65,156]
[331,"Coventry",52227,1373,10584,52397,1325,10988,52711,1266,10666,53298,1243,5175,5112,10630,53993,1246,5419,4837,10490,54718,1269,5364,4654,10237,null,492,2075,280,98,1136,1191,102,60,5,142,820,230,6631,null,1410,1350,1320,1315,1290,1280,"x",54,41,209,824,37,"x",113,0,0,7,3,"x",80,10,202,722,39,0,136,82,0,7,0]
[332,"Dudley",47992,1500,8889,47700,1580,9187,47441,1658,8618,47344,1726,3626,4627,8318,47208,1712,3714,4184,7956,47075,1547,3925,3647,7638,null,569,1469,109,39,774,1481,161,70,4,253,395,140,5464,null,1545,1645,1690,1760,1750,1570,"x",62,0,804,728,30,8,104,0,0,7,6,6,56,0,627,720,30,3,119,0,0,5,4]
[333,"Sandwell",50944,886,10174,51229,901,10495,51660,896,10569,52123,933,3180,6678,9872,53237,1033,3244,5734,8987,54172,1165,3251,5650,8903,null,226,1323,214,66,808,1023,117,98,26,168,189,122,4380,null,990,1010,1025,1100,1210,1300,0,111,0,413,458,32,9,182,0,0,6,"x",3,57,0,441,488,54,9,249,0,"x",0,0]
[334,"Solihull",38730,1135,6463,38861,1131,6529,39025,1162,6464,39105,1184,2319,3420,5932,39322,1213,2386,3122,5694,39714,1254,2254,2684,5129,null,419,860,121,29,707,493,82,45,5,97,520,92,3470,null,1100,1120,1175,1145,1270,1300,0,28,"x",325,484,122,32,269,0,0,6,"x","x",24,"x",319,502,138,28,269,0,0,16,"x"]
[335,"Walsall",49139,1038,6910,49076,1041,7364,48927,1018,7369,48920,1046,1645,5236,6969,49170,1100,1678,4682,6401,49825,1166,1727,4493,6276,null,212,1018,200,65,432,379,64,76,8,84,291,59,2888,null,1065,1125,1070,1100,1175,1260,0,43,0,338,597,43,0,147,0,0,"x",5,0,43,0,367,622,39,5,178,0,"x",4,"x"]
[336,"Wolverhampton",40894,1346,6481,40488,1326,7101,40420,1336,6868,40554,1363,1943,4556,6696,40982,1404,2024,4376,6619,41769,1413,2114,4072,6404,null,269,1274,208,54,760,408,87,41,4,138,173,106,3522,null,1335,1325,1360,1370,1490,1415,0,120,0,430,708,17,25,184,0,0,5,3,0,98,0,411,704,20,5,171,0,0,5,3]
[340,"Knowsley",22885,765,5351,22278,751,5305,21767,718,5043,21283,710,2240,2652,4892,20807,730,2261,2440,4701,20535,751,2167,2421,4589,null,313,1047,99,54,539,384,39,19,0,71,226,106,2897,null,860,835,815,785,830,900,0,0,0,382,409,37,0,"x",0,0,"x",0,"x",0,0,374,459,43,16,4,0,0,0,0]
[341,"Liverpool",70195,1519,16752,69807,1447,16403,69251,1421,15946,68963,1460,6193,8520,14896,68631,1490,6284,7738,14195,69316,1545,6113,6873,13118,null,1033,1300,392,107,1532,1157,138,138,4,302,881,628,7612,null,1465,1400,1345,1345,1385,1465,"x",55,15,176,977,69,"x",61,0,0,21,9,0,54,15,189,1055,75,0,43,0,0,17,16]
[342,"St Helens",27001,622,4410,26465,596,4259,26327,588,4605,26242,549,1621,2869,4542,26292,538,1610,2706,4339,26385,559,1734,2773,4521,null,201,417,103,30,563,314,29,19,0,100,372,92,2240,null,510,485,460,445,440,465,0,0,0,88,307,24,4,15,0,0,0,0,0,0,0,78,332,26,4,10,0,0,4,9]
[343,"Sefton",44856,985,7653,44495,952,7949,43926,971,7616,43591,967,3373,3941,7472,43368,1037,3270,3683,7146,43083,1028,3189,3333,6729,null,699,729,80,62,718,676,74,34,3,182,547,364,4168,null,945,920,910,920,970,965,"x",37,125,217,471,65,0,43,0,0,10,0,"x",44,140,190,479,58,"x",43,0,0,9,"x"]
[344,"Wirral",51709,1892,9349,51497,1777,9682,51149,1683,9896,50716,1619,3557,5681,9524,50705,1619,3390,5344,9059,50641,1590,3316,5003,8581,null,1178,677,348,63,979,613,72,62,"x",166,542,173,4873,null,1910,1790,1685,1615,1615,1585,0,60,95,232,877,91,7,246,0,0,5,0,"x",56,82,187,906,91,4,252,0,0,3,"x"]
[350,"Bolton",48216,1157,8104,48093,1142,8136,48228,1120,7966,48668,1177,1891,5470,7424,49178,1237,1803,4522,6408,49844,1283,1979,4403,6464,null,138,792,196,77,782,549,167,67,"x",132,293,64,3257,null,1140,1140,1120,1190,1250,1300,0,35,0,606,464,49,26,59,0,0,9,"x",0,25,0,623,479,49,18,95,0,0,10,"x"]
[351,"Bury",30084,950,4331,30025,977,4476,29910,967,4455,30108,1021,1872,2555,4483,30260,1074,1832,2376,4263,30398,1108,1913,2381,4349,null,484,765,129,71,489,520,52,35,4,119,247,99,3014,null,1035,1065,1015,1125,1175,1215,14,43,17,726,246,98,4,23,0,0,0,"x",10,48,19,692,271,109,8,53,0,0,3,0]
[352,"Manchester",71732,2045,14267,72423,1970,13882,73960,1967,13506,75879,1996,4571,8434,13401,77532,2071,4574,7764,12721,80029,2123,5008,8087,13590,null,598,1372,549,150,1709,1076,145,78,5,249,699,428,7058,null,2250,2210,2145,2125,2110,2220,0,0,0,847,836,85,20,153,140,0,28,0,15,76,6,765,847,80,7,259,143,0,24,0]
[353,"Oldham",41456,888,6780,41417,981,7324,41200,1034,6801,41613,1093,1978,4473,6455,42018,1072,2077,4200,6353,42371,1085,2187,4083,6349,null,196,584,112,64,552,779,87,67,"x",156,565,94,3256,null,845,940,1015,1010,1060,1095,"x",26,0,414,202,29,0,107,278,0,0,0,"x",23,0,394,219,42,"x",132,283,0,"x","x"]
[354,"Rochdale",33606,1123,5965,33461,1123,5576,33254,1111,5431,33163,1110,1746,3531,5313,33242,1136,1701,3403,5133,33624,1164,1768,3484,5286,null,143,626,167,88,592,483,89,42,5,89,416,173,2913,null,1165,1180,1140,1155,1180,1225,"x",24,7,641,419,33,0,31,7,0,15,0,4,21,7,613,429,35,0,81,5,0,29,0]
[355,"Salford",33820,991,6071,33652,953,6164,34081,1009,6000,34818,977,1819,3628,5696,35557,998,1760,3399,5294,36498,1011,1854,3421,5462,null,208,562,177,53,633,731,50,25,6,97,156,140,2838,null,1055,1085,1150,1135,1110,1155,"x",33,0,386,338,102,4,63,180,0,4,0,"x",66,0,410,311,118,8,47,179,"x",5,7]
[356,"Stockport",43277,1572,6676,43088,1440,6905,43259,1515,6914,43398,1523,1832,4650,6960,43716,1593,2004,4114,6587,43949,1588,2207,4008,6731,null,303,767,142,102,989,509,46,51,12,104,405,241,3671,null,1410,1390,1400,1350,1445,1455,3,79,49,648,423,111,11,92,0,0,7,24,"x",55,56,655,423,92,12,112,0,0,14,32]
[357,"Tameside",35043,757,5850,34737,676,5733,34623,636,5818,34483,603,1932,3473,5418,34686,623,1925,3217,5160,35030,615,1957,3053,5019,null,257,661,70,68,537,393,57,35,"x",78,205,186,2547,null,790,705,690,680,700,695,0,28,0,198,372,49,0,49,0,0,"x","x",0,49,0,150,326,50,"x",49,63,0,3,"x"]
[358,"Trafford",38471,959,5326,38751,1119,5322,39016,1165,5315,39670,1257,1793,2819,4792,40171,1332,1845,2799,4822,40449,1430,1794,2918,4876,null,452,782,116,50,640,539,57,44,"x",101,278,118,3177,null,1075,1095,1155,1215,1330,1360,0,0,80,451,485,103,"x",209,0,0,"x",0,5,0,58,415,498,90,4,288,0,0,0,0]
[359,"Wigan",45672,1364,8009,45399,1307,8118,45144,1242,8269,44987,1240,3720,4608,8328,45083,1237,3640,4383,8024,45327,1255,3216,4291,7507,null,521,1373,220,101,1042,511,88,42,"x",120,218,218,4454,null,1435,1365,1280,1280,1275,1275,0,32,0,541,569,36,5,85,0,0,5,3,"x",23,0,517,594,37,7,87,0,0,7,4]
[370,"Barnsley",33060,1047,6325,32691,1071,6557,32437,1122,6504,32444,1160,1888,4113,6007,32550,1184,1888,3491,5386,32617,1208,1958,3077,5041,null,110,794,168,38,775,605,78,39,3,107,249,123,3089,null,1035,1070,1125,1165,1210,1270,17,65,0,617,336,48,15,107,0,0,5,"x",29,76,0,589,353,54,10,151,0,0,4,3]
[371,"Doncaster",47970,1242,8191,47713,1220,8344,47625,1226,8301,47464,1207,1802,6049,7903,47930,1246,1812,5908,7756,48065,1232,1763,5377,7191,null,129,536,222,41,633,391,160,52,4,164,518,93,2943,null,1235,1225,1250,1235,1275,1280,5,0,0,667,484,45,18,46,0,0,9,"x","x",0,0,568,510,55,21,106,0,0,15,5]
[372,"Rotherham",43805,1173,9565,43371,1082,9780,43014,1027,9115,43200,992,3370,5191,8591,43291,988,3379,4724,8126,43653,1000,3259,4240,7533,null,855,644,134,60,729,481,106,67,"x",153,786,241,4256,null,1155,1080,1025,995,985,1000,"x",34,30,273,522,48,21,51,0,0,"x","x",0,36,29,276,523,56,13,61,0,0,"x",3]
[373,"Sheffield",77063,2071,17019,76708,2030,17457,76630,2005,16663,77209,1983,8232,7622,16145,77967,1959,7563,7328,15283,79152,1945,7449,7010,14832,null,1113,1509,367,98,1514,2572,335,120,3,241,1201,290,9363,null,2220,2145,2130,2085,2055,2080,12,275,0,545,933,66,3,203,0,0,17,"x",15,266,0,583,933,66,4,202,0,0,10,"x"]
[380,"Bradford",93139,2002,20273,94269,1943,19747,95237,1882,19236,96998,1897,5788,12378,18243,98616,1961,6020,11182,17389,100401,2017,5876,10887,16967,null,424,1815,486,200,1627,1350,283,200,16,387,651,288,7727,null,2270,2170,2100,2085,2140,2145,6,223,0,774,784,63,145,138,"x",0,"x",5,0,233,0,686,524,62,123,195,305,0,3,14]
[381,"Calderdale",35638,1014,5962,36130,1048,6217,36356,1062,6312,36576,1059,1638,4105,5897,36694,1038,1564,3815,5570,37134,1034,1521,3478,5163,null,170,543,126,66,586,394,104,55,"x",113,261,105,2523,null,965,995,1040,1020,1005,985,10,29,0,437,278,31,10,207,0,0,"x","x","x",22,0,385,280,29,13,250,0,0,"x",0]
[382,"Kirklees",65157,1886,12417,65082,1831,11776,65521,1788,11117,65763,1809,2491,8158,10753,66400,1819,2482,7618,10220,66995,1842,2546,7317,9941,null,247,903,160,154,980,957,180,124,20,200,290,170,4385,null,1920,1915,1825,1850,1860,1905,8,153,0,1025,597,51,6,9,0,0,10,0,12,148,0,882,641,45,6,159,0,0,10,0]
[383,"Leeds",113636,2107,20571,113724,2001,20190,114007,1983,19820,114871,1929,7239,11500,19148,115993,1982,7355,10267,17974,118147,2041,7664,9708,17710,null,421,1614,430,133,2043,3349,327,132,13,269,503,461,9695,null,2130,2000,2005,2010,1995,2125,12,102,0,802,897,90,"x",84,0,0,7,"x",19,140,0,810,944,92,"x",93,17,0,5,6]
[384,"Wakefield",53984,1393,9904,54015,1429,9654,53918,1463,9466,53976,1488,2684,5590,8587,53744,1521,2702,5233,8307,54106,1483,2669,5070,8089,null,210,663,275,69,953,634,185,83,7,210,565,209,4063,null,1410,1430,1440,1455,1470,1425,7,91,0,550,408,22,0,389,0,0,4,0,8,73,0,436,390,29,9,472,"x",0,5,0]
[390,"Gateshead",29571,821,5377,29417,788,5390,29407,787,4859,29215,753,1277,3249,4594,29439,770,1323,2977,4374,29442,789,1220,2714,4069,null,201,294,96,32,447,395,70,30,"x",83,252,98,1998,null,845,855,825,805,845,870,"x",55,3,263,337,55,0,41,78,0,12,0,0,29,"x",176,359,67,0,128,93,0,16,"x"]
[391,"Newcastle upon Tyne",41351,933,8314,41367,980,7961,41143,899,7337,40875,903,2515,4247,7093,41533,874,2817,3785,6883,41828,857,2835,3724,6868,null,504,832,268,46,694,561,100,37,5,89,374,42,{"$f":"SUM(AB72:AM72)","v":3552},null,905,855,840,805,800,840,0,0,37,93,490,80,0,100,0,0,"x",0,0,0,38,92,535,84,0,88,0,0,"x",0]
[392,"North Tyneside",30745,1082,4957,30809,1067,5229,30721,1062,4995,30647,1095,2161,2809,5039,30343,1120,2217,2515,4806,30479,1168,2356,2487,4843,null,301,572,125,17,686,1068,69,30,5,188,172,271,3504,null,900,910,925,960,970,1015,0,140,0,343,433,23,0,31,0,0,"x",0,0,124,0,359,459,20,5,45,0,0,"x",0]
[393,"South Tyneside",22065,705,4202,21660,672,4329,21581,639,4202,21471,618,1814,2386,4200,21223,590,1675,2238,3913,21139,621,1546,2254,3800,null,353,305,74,34,401,442,57,19,6,87,192,197,2167,null,695,630,680,640,640,625,"x",25,58,148,369,27,"x",6,0,0,4,0,"x",22,64,125,376,26,"x",9,0,0,0,0]
[394,"Sunderland",42994,1139,8552,42405,1126,8479,41923,1107,8006,41644,1121,3059,4528,7654,41299,1105,2992,3871,6899,41169,1098,2967,3587,6568,null,203,856,214,28,969,793,68,27,4,149,585,142,4038,null,1085,1065,1075,1080,1095,1115,"x",92,49,252,341,22,0,74,260,0,4,0,"x",93,46,223,302,28,0,95,324,0,3,"x"]
[420,"Isles Of Scilly",265,3,27,275,3,41,274,3,33,277,4,11,18,29,273,3,15,18,33,274,6,15,18,33,null,"x",4,0,"x","x",4,0,0,0,"x",5,4,17,null,5,5,5,5,5,10,0,3,0,0,0,"x",0,"x",0,0,0,0,0,8,0,0,0,"x",0,0,0,0,0,0]
[800,"Bath and North East Somerset",29336,732,3668,29341,714,4006,28932,716,4055,29204,709,1249,2326,4028,29134,739,1205,2175,3855,29289,758,1193,2373,4054,null,127,334,101,30,398,465,47,23,"x",54,283,83,1945,null,670,675,680,675,690,720,0,0,27,199,156,40,0,121,142,0,4,3,0,0,29,209,21,42,0,115,296,0,3,3]
[801,"Bristol, City of",56133,1863,8403,55648,1819,8355,57494,1785,9071,58810,1759,2335,5798,8950,59986,1692,2464,5507,8537,61399,1655,2795,5712,9227,null,282,491,199,84,996,1136,130,45,5,183,559,185,4295,null,1915,1885,1870,1835,1790,1750,0,0,102,439,718,61,18,413,0,0,38,"x",8,18,204,333,688,53,10,406,0,0,24,4]
[802,"North Somerset",29308,543,5157,29359,504,5803,29449,493,5566,29563,470,1459,3845,5400,29646,471,1477,3494,5108,29862,486,1375,2919,4437,null,150,176,102,23,486,442,58,23,3,96,169,129,1857,null,570,565,560,530,525,545,"x",24,0,104,262,41,6,79,"x",0,3,"x","x",25,0,104,270,46,13,77,"x",0,5,"x"]
[803,"South Gloucestershire",40152,998,6000,40217,1029,5280,40062,1010,5019,39642,1056,1338,3367,4754,39723,1094,1356,3239,4607,39688,1135,1399,3153,4596,null,259,393,107,40,544,485,66,37,13,128,302,127,2501,null,1095,1110,1110,1085,1125,1160,3,0,120,389,379,65,10,144,"x",0,11,0,"x",0,116,400,392,68,9,148,6,0,17,0]
[805,"Hartlepool",15290,325,3060,15213,316,3188,15049,282,3415,14954,316,1060,1708,2771,14973,332,1056,1383,2439,14937,338,969,1265,2238,null,97,179,54,21,286,386,22,14,4,56,124,55,1298,null,335,330,300,325,350,360,0,22,0,134,178,15,0,0,0,0,3,0,0,44,0,94,56,15,0,19,127,0,5,0]
[806,"Middlesbrough",22768,831,3539,22555,777,3709,22488,762,3662,22707,733,1732,1958,3701,22900,784,1693,2168,3872,22954,754,1740,2075,3868,null,285,712,134,44,484,313,93,45,0,72,248,54,2484,null,765,720,700,680,735,745,0,0,85,126,422,22,7,70,0,0,3,0,0,0,80,124,442,18,8,68,0,0,6,0]
[807,"Redcar and Cleveland",22500,670,4948,22223,609,4904,21941,612,4976,21658,603,2484,2151,4635,21543,630,2200,2041,4241,21346,678,2089,2066,4155,null,485,556,105,51,557,523,31,15,0,126,239,79,2767,null,710,680,675,665,685,720,0,0,62,182,183,29,0,87,139,0,"x",0,0,0,60,205,191,32,0,91,140,0,"x",0]
[808,"Stockton-on-Tees",31060,858,4490,31109,847,5072,31076,780,4699,31240,760,1808,2530,4537,31341,800,1613,2544,4392,31651,836,1672,2415,4373,null,175,580,167,47,504,443,51,26,5,161,324,15,2498,null,895,885,835,805,855,920,11,73,24,196,491,38,4,17,0,0,"x",0,24,69,23,122,145,40,5,67,417,"x",5,0]
[810,"Kingston Upon Hull, City of",37319,1190,7459,36774,1160,7539,36742,1150,7167,36806,1205,2664,4074,6772,37112,1208,2677,3852,6571,38113,1215,2559,3556,6149,null,577,733,292,25,501,862,97,64,4,221,297,70,3743,null,1095,1085,1115,1165,1200,1225,10,27,0,538,508,14,11,84,0,0,6,0,14,21,0,359,410,19,"x",272,119,4,5,0]
[811,"East Riding of Yorkshire",50178,1100,7175,49921,1022,7111,49848,985,7041,49506,963,2381,4489,7116,48966,967,2223,4209,6693,48459,1030,2159,3976,6394,null,328,709,169,29,557,619,101,61,11,148,246,195,3173,null,1245,1205,1130,1095,1085,1130,4,0,19,568,334,51,"x",92,0,0,13,"x",17,18,"x",560,330,49,"x",119,14,"x",21,0]
[812,"North East Lincolnshire",24209,805,6315,23914,753,6766,23592,699,6192,23536,644,1744,3979,5773,23841,567,1514,2793,4359,23958,518,1547,2434,4025,null,220,578,122,35,429,227,50,21,0,106,221,51,2060,null,830,785,740,680,610,545,"x",0,0,62,9,29,4,191,299,0,12,"x","x",0,0,42,7,28,"x",167,288,0,7,5]
[813,"North Lincolnshire",24203,949,4729,23993,904,4588,23931,874,4564,23669,838,2019,2359,4417,23697,817,1764,2278,4070,23764,807,1485,2175,3704,null,303,633,94,22,373,487,29,24,"x",79,136,36,2216,null,960,905,875,835,815,805,0,0,0,266,249,76,0,225,0,0,"x",0,0,0,0,248,259,66,0,232,0,0,"x",0]
[815,"North Yorkshire",91247,1760,12731,90550,1690,12569,90448,1730,12221,89991,1777,3734,7409,12061,89732,1833,3788,6695,11326,89064,1741,3901,6374,11388,null,585,641,195,78,1395,1040,182,84,16,285,679,373,5553,null,1765,1700,1630,1610,1680,1680,4,0,16,841,648,71,7,83,0,0,7,"x",7,0,23,807,590,82,7,92,58,"x",12,3]
[816,"York",25619,472,3655,25739,465,3561,25922,474,3716,26049,485,1140,2131,3511,26327,526,1077,2001,3322,26537,511,999,1933,3136,null,169,272,60,30,378,257,58,18,0,80,165,19,1506,null,445,455,465,465,495,495,"x",0,24,203,162,17,31,48,0,0,6,0,"x",0,29,211,152,18,31,48,0,0,4,0]
[821,"Luton",33024,739,6723,33591,759,7431,34270,778,7082,35103,810,2166,4351,6522,35943,833,2235,3804,6085,36652,860,2225,3371,5615,null,265,550,262,145,648,481,74,61,"x",115,316,165,3082,null,800,835,855,875,910,950,3,65,0,337,352,18,"x",121,0,0,13,0,"x",61,0,332,374,17,"x",137,9,0,14,"x"]
[822,"Bedford Borough","..","..","..",29775,747,4966,29787,743,5225,29875,727,870,3041,4434,30432,837,886,2934,4280,31086,848,951,2943,4216,null,105,311,124,39,317,278,37,26,5,109,219,57,1627,null,"..",695,685,680,665,695,"x",27,0,186,157,25,12,137,113,0,3,3,0,20,0,146,78,29,0,186,223,7,6,0]
[823,"Central Bedfordshire","..","..","..",39565,1065,6397,39689,1055,6213,39915,1065,1667,4530,6239,40318,1079,1709,3807,5546,41665,1086,1753,3680,5451,null,313,370,201,43,644,409,76,34,5,124,480,121,2820,null,"..",1140,1115,1110,1080,1080,"x",56,0,207,356,26,0,309,110,0,16,0,"x",49,0,194,298,28,"x",326,167,0,15,0]
[825,"Buckinghamshire",84650,2509,11412,84631,2615,11546,85439,2800,11407,85840,2916,3171,6240,10534,86929,2956,2848,5912,9926,88410,2912,2932,5878,10031,null,681,1044,146,44,1211,1261,180,67,13,258,633,166,5704,null,2680,2840,2995,3085,3210,3160,64,123,55,938,1046,202,5,530,104,0,97,44,43,113,49,865,1056,209,20,577,113,0,85,30]
[826,"Milton Keynes",39847,1242,6594,40826,1285,6765,41521,1266,7005,42337,1247,2922,4241,7286,43296,1255,2853,4439,7374,44428,1326,2507,4391,6986,null,382,1227,114,51,706,624,81,53,"x",69,424,95,3826,null,1315,1370,1345,1305,1310,1370,0,73,0,261,610,56,5,263,31,0,13,0,5,129,0,255,632,49,"x",232,49,"x",16,0]
[830,"Derbyshire",114986,2874,18475,114061,2915,18732,113104,2931,19091,112619,3042,6030,11505,18312,112187,3109,5656,10454,16850,111951,3207,5458,9863,16066,null,431,1465,294,152,2381,1411,306,135,13,414,1000,414,8416,null,2950,3015,3045,3100,3155,3215,11,228,0,1619,767,103,50,336,0,0,30,11,11,248,0,1611,802,108,50,346,0,0,28,10]
[831,"Derby",40386,1014,7579,40351,1013,8038,40508,1056,7606,40820,1032,2324,4876,7292,41625,1136,2281,4460,6833,41972,1157,2306,4294,6669,null,203,716,172,90,733,542,244,89,5,151,402,91,3438,null,955,975,990,1010,1065,1135,0,129,0,205,489,104,5,132,0,0,3,0,"x",193,0,127,496,121,4,190,"x",0,3,0]
[835,"Dorset",60399,1616,11548,60206,1538,11629,60147,1520,11794,60315,1481,4663,6013,11987,60234,1475,4371,5680,11257,60381,1536,4292,5670,11034,null,1206,649,124,42,1111,1074,141,42,13,234,730,265,5631,null,1450,1490,1480,1420,1400,1425,"x",114,0,400,505,111,14,158,84,0,13,"x",6,98,0,432,489,107,6,166,106,0,16,0]
[836,"Poole",19903,527,3614,19825,532,3689,19845,531,3598,19856,520,1326,1867,3273,20071,522,1312,1902,3298,20221,525,1216,1975,3283,null,252,231,104,47,417,370,42,21,3,84,108,62,1741,null,445,440,460,475,480,485,"x",0,0,171,150,81,0,14,59,0,4,"x",0,3,0,152,153,77,0,36,56,5,3,"x"]
[837,"Bournemouth",21685,485,3761,21776,514,3875,21846,556,3625,22158,564,1263,2139,3492,22762,580,1226,1921,3255,23503,608,1332,1989,3486,null,314,168,73,26,376,549,55,22,4,63,200,87,1937,null,520,580,620,625,665,680,9,0,20,177,173,76,0,134,63,"x",12,0,6,0,27,158,195,75,0,125,80,0,13,0]
[840,"Durham",74887,2280,16693,74492,2293,17315,74167,2317,16388,73771,2383,6986,8364,15658,73286,2386,6560,7713,14615,73289,2407,6431,7520,14235,null,721,1689,350,91,2005,2039,157,88,8,394,703,543,8788,null,2395,2420,2440,2520,2515,2520,15,78,0,862,1025,83,0,246,193,0,11,3,17,65,0,871,1063,81,0,210,183,0,12,17]
[841,"Darlington",15953,433,3118,15782,391,3037,15707,382,2769,15701,381,1045,1517,2638,15836,422,1009,1282,2351,15766,440,1081,1341,2477,null,87,258,42,33,336,344,28,21,7,83,212,37,1488,null,440,395,375,375,385,410,0,6,0,35,6,5,"x",112,216,0,4,0,0,0,0,32,5,9,0,113,237,0,7,7]
[845,"East Sussex",70848,2289,13410,70628,2357,13936,70406,2507,13401,70193,2557,4128,7701,12827,70597,2718,3826,7458,12374,70924,2804,3600,6025,10726,null,913,815,240,108,1358,1456,101,58,9,219,684,228,6189,null,2235,2280,2385,2465,2630,2690,3,123,29,1072,876,210,6,265,0,0,28,16,0,66,28,1026,785,211,"x",414,115,0,37,6]
[846,"Brighton and Hove",35161,1220,7075,35331,1206,7625,35556,1136,7728,35736,1179,2879,4308,7546,36154,1091,2769,4021,7213,36479,1062,2792,3639,6851,null,738,369,162,42,730,1005,158,50,6,105,282,161,3808,null,1065,1050,1010,975,960,985,0,33,34,385,391,70,6,37,0,0,5,"x","x",36,36,400,407,75,6,16,0,0,7,0]
[850,"Hampshire",184910,4811,34820,183996,4910,34130,183619,4971,31881,184190,4907,8159,19299,29749,184687,4939,7240,17460,26836,184687,4889,6958,16001,25153,null,1041,2751,753,133,2316,2284,233,157,8,672,898,183,11429,null,4805,4860,4860,4820,4825,4900,3,362,0,1297,2297,245,7,352,186,0,47,29,9,345,0,1325,2316,272,6,356,206,0,51,16]
[851,"Portsmouth",27129,852,6477,26936,832,6319,26994,837,5935,26891,822,1884,3583,5759,27107,849,1931,3118,5527,26887,851,1860,2537,4804,null,234,495,120,43,638,671,44,40,"x",89,181,153,2708,null,885,845,870,875,895,930,0,47,4,419,377,15,0,23,0,0,7,"x","x",57,3,362,204,28,6,47,214,0,7,0]
[852,"Southampton",29021,597,7508,28772,625,7349,28988,647,6642,29287,670,1695,4136,5987,29976,667,1812,3944,5851,30525,710,1786,3934,5938,null,146,456,136,49,812,410,52,30,4,89,191,94,2469,null,535,565,595,635,655,700,0,24,0,226,329,27,3,18,20,0,4,4,"x",26,0,235,344,31,6,28,26,0,4,0]
[855,"Leicestershire",99236,2623,13329,100125,2617,14092,99464,2614,13748,99408,2670,4166,8687,13361,99560,2771,4069,8368,12837,99933,2736,4222,8111,12822,null,908,1667,548,138,1039,1047,187,128,6,258,596,198,6720,null,2745,2630,2690,2770,2795,2770,6,5,267,1015,441,186,"x",251,525,0,15,82,5,9,294,838,446,180,0,303,545,"x",11,140]
[856,"Leicester",50044,1412,9681,49275,1424,10023,49731,1441,9991,50355,1419,3395,6378,9983,51064,1390,3444,5665,9266,52300,1377,3528,5134,8883,null,299,1352,232,54,1047,941,128,78,4,260,214,236,4845,null,1505,1490,1515,1510,1490,1445,14,41,19,483,621,89,7,101,97,0,12,4,6,46,21,436,616,79,8,110,100,0,21,"x"]
[857,"Rutland",7090,216,701,7047,209,860,7251,165,843,7180,238,260,372,650,7347,245,248,363,646,7577,253,272,381,665,null,97,97,11,6,86,67,6,6,0,12,29,12,429,null,175,185,170,180,175,170,0,0,12,52,12,25,0,70,3,0,0,0,0,0,15,29,13,22,0,88,3,0,"x","x"]
[860,"Staffordshire",126534,3685,17707,125655,3626,19101,124854,3632,18624,124146,3568,6044,11264,17739,124248,3615,6221,10555,17232,124168,3657,6336,9911,16696,null,1135,2171,541,161,1550,1489,193,130,12,497,1401,324,9604,null,3475,3405,3355,3475,3340,3340,4,0,14,1076,1891,152,19,167,0,0,10,9,8,0,15,1009,1940,153,14,158,0,0,16,28]
[861,"Stoke-on-Trent",35345,1170,8016,35296,1135,8073,35317,1081,7518,35712,1077,2602,4694,7308,36309,1069,2575,4541,7150,36816,1082,2554,4134,6711,null,227,1234,79,32,690,872,81,32,"x",112,222,34,3615,null,1380,1415,1355,1340,1355,1340,"x",4,0,563,623,85,0,45,0,0,18,15,3,4,0,346,634,84,0,239,0,0,27,3]
[865,"Wiltshire",71868,1682,11625,71302,1677,11819,71057,1657,11953,71277,1709,4089,6601,11824,71542,1749,3887,6265,11192,71540,1775,3921,5915,10942,null,733,830,238,68,1151,1214,103,38,11,155,703,384,5628,null,1845,1840,1775,1830,1875,1865,7,87,169,478,527,68,0,433,72,0,28,6,"x",88,146,472,507,70,0,451,94,0,35,"x"]
[866,"Swindon",29434,988,5707,29397,1026,5380,29677,1017,5323,30277,1047,1766,3436,5202,30777,1105,1627,3119,4746,31191,1145,1824,2850,4674,null,289,555,117,60,777,453,71,31,6,109,288,212,2968,null,1010,1090,1100,1120,1160,1220,5,61,0,556,423,34,7,38,0,0,"x",34,7,74,0,595,470,26,6,38,0,0,"x","x"]
[867,"Bracknell Forest",18338,498,3152,18493,518,3096,18963,525,3160,19306,549,870,1528,2920,19620,562,814,1455,2683,20103,533,898,1291,2606,null,167,285,148,17,301,218,45,15,8,17,152,45,1418,null,625,650,640,670,700,675,0,33,0,289,202,91,"x",65,8,0,7,"x",0,34,0,269,201,93,"x",59,8,0,7,"x"]
[868,"Windsor and Maidenhead",24907,650,3912,25221,660,4599,25744,679,4713,25767,693,1316,2243,4418,26212,712,1265,2255,4304,26416,722,1209,2146,4169,null,218,291,30,41,354,401,62,31,"x",84,283,108,1903,null,645,665,690,680,685,710,6,24,0,250,169,98,3,127,6,0,"x",0,12,32,0,258,178,91,"x",123,10,0,4,"x"]
[869,"West Berkshire",28477,1158,4788,28550,1128,4567,28572,1141,3983,28637,1150,1337,1921,3814,28821,1154,1255,1800,3700,28971,1213,1248,1683,3445,null,237,195,108,40,331,291,313,19,9,71,561,132,2307,null,785,775,785,775,785,770,5,81,0,280,228,61,9,110,0,0,10,"x",6,78,0,244,243,63,11,108,0,5,12,0]
[870,"Reading",20542,523,4013,20965,522,3993,21122,553,4112,21668,575,1703,2081,3987,22219,593,1413,2181,3849,22958,608,1408,1913,3629,null,107,190,107,14,654,520,36,34,3,32,226,66,1989,null,775,785,835,850,900,920,7,54,0,301,226,52,19,145,94,0,4,0,3,107,0,256,236,60,15,128,100,0,14,0]
[871,"Slough",23819,703,4492,24571,670,4655,25313,708,4657,26399,757,1838,2709,4583,27259,722,1928,2607,4538,28222,760,1887,2261,4223,null,243,342,99,26,645,762,62,25,"x",80,270,91,2645,null,745,740,775,805,800,830,0,127,0,228,308,13,4,114,0,0,3,"x",0,159,0,187,274,10,0,134,52,7,3,3]
[872,"Wokingham",26121,804,3310,26138,815,3468,26732,808,3681,27099,819,1109,2221,3805,27329,821,1082,1946,3485,27611,818,1105,1819,3371,null,214,198,80,22,461,274,65,22,7,93,416,67,1919,null,745,755,745,775,750,765,3,33,0,329,203,83,"x",97,0,0,0,"x",4,41,"x",316,207,86,3,99,"x",0,8,0]
[873,"Cambridgeshire",87055,2745,15236,87513,2748,16463,88126,2622,15920,89254,2682,4592,9080,14578,89845,2830,4270,8586,13904,91103,2982,4064,8059,13207,null,810,1181,331,113,1681,1069,153,76,22,235,932,281,6884,null,2900,2860,2830,2840,2910,3115,15,30,0,905,829,155,0,896,47,0,26,6,21,116,3,1688,904,216,"x",134,10,"x",18,"x"]
[874,"Peterborough",29846,1172,6345,30189,1140,6508,30692,1206,6324,31589,1251,2123,4207,6350,32782,1252,2155,3986,6164,33750,1274,1975,3426,5425,null,442,761,100,78,623,376,110,29,9,118,379,202,3227,null,1200,1180,1275,1390,1355,1350,5,40,0,469,461,74,3,251,35,0,16,0,5,45,0,449,461,69,5,261,48,0,7,0]
[876,"Halton",18329,602,4160,18284,530,4361,18288,480,4017,18284,462,1282,2379,3668,18506,432,1267,2184,3451,18661,425,1296,2111,3409,null,129,232,57,36,395,366,25,44,"x",70,187,121,1662,null,610,555,495,460,440,420,0,18,0,106,258,39,0,18,0,0,"x",0,0,10,0,79,260,42,0,26,0,0,"x",0]
[877,"Warrington",31245,1119,5140,31120,1050,5189,31200,995,4913,31392,969,1771,3232,5009,31462,990,1753,2950,4708,31540,985,1595,2663,4261,null,288,580,72,27,564,465,77,50,"x",119,244,75,2561,null,1065,1015,980,955,970,970,"x",3,150,415,264,45,0,83,0,0,6,0,3,0,151,334,266,52,0,159,0,0,4,0]
[878,"Devon",104200,3513,19159,103945,3552,20184,103410,3584,19775,102899,3632,6184,12238,19532,102314,3655,5771,11129,17823,101810,3699,5682,10903,17590,null,1024,1067,353,134,2447,2072,275,167,18,512,806,310,9185,null,3350,3420,3455,3535,3595,3765,7,28,22,1580,901,158,15,810,0,0,73,0,11,29,20,1576,969,167,24,882,0,0,86,0]
[879,"Plymouth",38656,1265,7408,38849,1308,7687,38856,1359,7425,38756,1351,2429,4700,7248,38906,1410,2566,3819,6489,39128,1478,2651,3446,6231,null,187,476,174,18,1126,1032,91,42,15,199,680,83,4123,null,1225,1270,1315,1340,1390,1485,0,36,0,542,534,22,12,240,0,0,5,0,0,47,0,622,551,19,10,230,0,0,4,0]
[880,"Torbay",19190,766,3378,19222,751,3477,19201,748,3663,19281,760,1411,2255,3698,19454,779,1409,2304,3743,19821,798,1429,2272,3755,null,269,317,97,55,671,392,52,45,3,87,133,103,2224,null,840,835,815,825,855,855,"x",3,14,231,339,46,3,199,"x",0,14,"x",0,4,14,226,197,39,4,190,170,0,12,"x"]
[881,"Essex",208330,5949,30962,207769,6103,32078,207935,6258,32079,207936,6610,12192,17233,30650,208968,6905,11380,15761,28550,210358,7016,10766,14437,26515,null,1738,5307,1034,205,3385,2614,318,183,21,613,1706,412,17536,null,5865,6105,6305,6640,6990,7170,21,184,68,2429,1669,330,46,1784,373,0,59,25,19,181,70,2258,1721,335,40,2028,427,0,51,42]
[882,"Southend-on-Sea",28200,853,4518,28208,849,4339,28308,863,4589,28618,877,1779,2392,4268,29100,926,1711,2257,4115,29500,958,1305,1848,3232,null,183,774,145,43,450,266,25,20,3,39,235,58,2241,null,865,845,860,870,900,935,0,0,32,263,258,16,"x",148,174,0,6,0,"x",0,34,310,236,14,"x",157,173,"x",5,"x"]
[883,"Thurrock",23285,917,4996,23353,876,5054,23700,857,4828,24360,863,1690,2702,4392,25025,895,1610,2396,4006,25569,918,1548,2132,3680,null,211,743,44,24,476,406,49,33,"x",128,237,113,2464,null,990,970,940,935,965,990,"x",28,0,215,298,32,19,310,53,0,6,4,5,33,0,208,297,30,19,330,59,0,7,4]
[884,"Herefordshire",24728,638,4932,24498,603,4996,24323,585,4906,24397,604,1877,2621,4651,24390,618,1773,2714,4661,24510,615,1790,2512,4532,null,432,326,188,34,488,451,55,23,4,59,123,179,2362,null,570,560,545,565,590,590,3,0,29,158,268,18,10,96,0,0,7,"x","x",0,33,150,166,19,10,93,106,0,5,4]
[885,"Worcestershire",86113,2581,15149,85455,2554,15770,84989,2630,15821,85201,2715,7197,7402,15423,85123,2628,7329,6371,14642,85254,2596,7504,6143,14588,null,1032,2083,333,113,1887,2549,156,188,13,300,687,521,9862,null,2380,2425,2485,2580,2450,2430,0,111,0,698,1080,118,3,415,0,0,25,"x",0,101,0,628,713,124,"x",452,388,"x",19,"x"]
[886,"Kent",232497,6620,50119,232646,6596,51594,232963,6581,50945,233895,6553,15734,28780,47203,235320,6672,14893,25732,43426,238613,6757,16802,18350,37885,null,2121,2542,789,283,5870,4577,458,256,35,1054,3758,1233,22976,null,6075,6035,6035,6100,6270,6450,31,399,485,1281,3042,452,34,408,0,0,115,25,25,363,447,1286,3173,485,24,505,0,0,105,39]
[887,"Medway",44119,1322,10647,43959,1353,10330,43803,1351,9966,43938,1341,3650,5478,9345,44413,1320,3511,5373,9073,45041,1320,3578,5140,8969,null,355,675,126,47,1190,894,125,62,6,204,819,310,4813,null,1540,1545,1580,1555,1410,1410,11,0,146,211,523,137,125,246,0,0,5,8,"x",0,124,111,527,145,136,339,"x",0,6,19]
[888,"Lancashire",171911,6215,25235,170619,5957,25441,170567,5954,24623,171542,5852,8531,14615,23629,172259,5735,8009,13815,22276,173219,5508,7404,13538,21421,null,1081,2210,556,210,2530,2140,402,217,16,690,1516,662,12230,null,6300,5970,5810,5760,5590,5265,16,0,54,2424,2374,360,18,290,0,0,35,18,15,0,47,2127,2392,314,27,289,0,0,40,16]
[889,"Blackburn with Darwen",27911,639,5507,27507,621,5711,27560,622,5722,27421,579,1897,3642,5629,27587,523,1857,3818,5759,27930,502,1800,3360,5262,null,178,324,115,47,435,663,71,56,7,104,126,156,{"$f":"SUM(AB136:AM136)","v":2282},null,550,510,465,405,375,370,0,26,0,95,183,43,8,19,0,0,"x",0,0,32,0,72,196,46,4,15,0,0,6,0]
[890,"Blackpool",21049,486,4842,20723,458,4739,20447,455,4661,20397,466,1818,2610,4496,20268,461,1760,2413,4237,19273,445,1552,2075,3627,null,140,410,84,22,471,467,47,23,0,103,140,64,1971,null,525,505,485,495,500,490,0,14,0,125,267,55,7,31,0,0,0,"x",0,5,0,81,140,51,6,61,142,0,"x","x"]
[891,"Nottinghamshire",118756,1357,21234,117817,1331,22404,117023,1388,21705,116479,1394,4302,14461,19046,116575,1392,4179,13239,17676,117084,1455,4343,11866,16417,null,325,732,279,117,1317,778,127,113,26,377,1226,265,5682,null,1340,1360,1405,1430,1495,1555,6,"x",0,234,793,130,6,174,79,0,64,8,3,"x",0,232,809,187,"x",201,92,0,26,"x"]
[892,"Nottingham",42135,590,10542,42025,618,11301,42464,623,11165,43029,619,2745,6844,9795,43681,652,2398,6041,8665,44576,681,2188,5622,8078,null,107,368,163,61,756,374,77,46,7,143,604,156,2862,null,475,525,540,545,570,590,0,10,0,79,285,27,"x",70,86,0,9,"x",0,0,0,60,303,27,"x",92,94,0,12,0]
[893,"Shropshire",44066,1477,7053,43817,1512,7188,43659,1577,7226,43423,1654,2474,3885,6974,43401,1715,2437,3750,6990,43078,1768,2409,3398,6536,null,613,976,230,32,673,773,81,38,9,111,312,108,3956,null,1385,1435,1515,1610,1695,1725,8,0,0,1021,408,101,12,125,0,0,12,6,12,0,0,864,102,97,12,294,330,0,10,3]
[894,"Telford and Wrekin",27670,1040,5184,27488,1028,5476,27308,1040,5151,27361,1057,2490,2565,5185,27570,1063,2267,2443,4826,27846,1009,2126,2277,4528,null,337,877,129,89,627,554,83,36,"x",129,185,64,3110,null,1000,1015,1040,1050,1085,1040,0,0,"x",487,455,70,"x",61,0,0,6,0,4,0,0,368,477,46,3,139,0,0,4,"x"]
[895,"Cheshire East","..","..","..",54077,1417,6623,53846,1311,6798,53517,1272,2293,4432,7111,53727,1276,2375,4310,7016,53708,1248,2217,4124,6732,null,463,319,179,63,782,723,115,60,8,139,327,266,3444,null,"..",1520,1520,1530,1565,1610,23,89,0,618,473,126,0,216,0,0,20,"x",40,87,0,591,458,130,3,237,46,0,20,0]
[896,"Cheshire West and Chester","..","..","..",51667,1680,7872,51101,1538,7727,50998,1513,2234,4639,7374,51107,1529,2188,4479,7215,51070,1580,2130,3994,6625,null,435,530,155,55,760,768,83,49,16,176,468,193,3688,null,"..",1410,1370,1350,1380,1425,6,99,0,478,551,66,0,167,0,0,12,0,5,84,0,455,569,62,"x",193,47,0,9,0]
[908,"Cornwall",73178,2032,12027,72648,2130,12585,72374,2023,13007,72399,2054,4149,7778,12179,72550,2051,3916,7495,11688,72708,2035,3705,7028,11010,null,556,862,328,70,1233,1244,134,61,17,266,704,234,5709,null,2120,2120,2105,2135,2155,2115,17,0,131,987,291,60,5,520,111,0,27,6,18,0,159,928,297,52,4,504,109,12,29,"x"]
[909,"Cumbria",76250,2318,12380,75130,2261,12465,74097,2170,12166,73449,2192,2711,8064,11150,72560,2110,2664,7722,10755,71748,2085,2367,7359,10027,null,427,491,516,114,727,918,111,50,11,188,486,243,4282,null,2015,2015,1990,2035,2030,2055,14,0,0,1312,467,84,"x",134,0,0,9,7,21,0,0,1103,465,89,5,351,0,0,9,13]
[916,"Gloucestershire",91809,2263,14626,90966,2202,14528,91044,2231,14190,91048,2335,2744,9604,13365,91040,2395,2641,9062,12715,91879,2481,2784,8761,12657,null,395,885,539,172,1030,999,142,92,8,255,415,217,5149,null,2245,2250,2250,2335,2415,2495,4,0,0,764,881,121,16,562,48,0,16,5,3,0,0,700,886,120,21,639,113,0,13,"x"]
[919,"Hertfordshire",198987,4165,29238,200197,4090,30481,201003,4043,29843,202792,4000,10069,17600,29993,205022,3986,10421,16806,29644,207428,3918,10195,16398,29294,null,1689,1913,500,131,3213,2999,416,214,22,628,1506,654,13885,null,4230,4180,4035,3890,3835,3725,16,0,195,876,1835,165,7,550,133,0,49,11,19,"x",187,866,1786,150,6,513,136,0,49,10]
[921,"Isle of Wight",19106,545,2876,18977,568,2792,18904,594,2829,18430,626,1036,1539,2694,18139,642,931,1644,2689,17873,625,878,1527,2571,null,156,211,114,26,276,441,17,17,4,32,183,25,1502,null,540,560,585,625,670,645,11,11,0,331,217,23,"x",68,0,0,10,0,14,9,0,395,200,21,3,0,0,0,4,0]
[925,"Lincolnshire",106596,3943,19028,106774,3914,19807,106104,3709,18840,105904,3518,6699,10732,17736,106411,3387,6048,10433,16895,106833,3266,6130,9924,16651,null,1211,2214,304,161,1979,1266,129,68,21,355,1118,447,9273,null,4150,4080,3905,3675,3600,3085,34,0,26,739,1567,107,21,1053,5,0,37,12,9,0,12,523,1406,122,30,855,101,0,24,4]
[926,"Norfolk",116697,4307,22261,116489,4610,21946,115948,4706,21149,115865,4642,7431,12185,20258,116332,4599,7111,10476,18365,116653,4323,6560,9372,16768,null,1253,1901,367,102,2307,2283,215,137,23,447,1000,498,10533,null,4540,4875,4930,4785,4755,4455,28,0,175,2324,1057,314,44,689,52,0,41,30,12,0,139,1721,1120,312,46,994,49,6,43,13]
[928,"Northamptonshire",111473,3401,22090,111904,3415,21884,112308,3585,18864,113413,3590,5120,9965,16047,114635,3653,4757,8801,14371,115688,3598,4732,7282,12697,null,735,1434,432,66,1909,1586,161,100,7,329,1068,392,8219,null,3475,3510,3750,3765,3740,3790,14,92,186,954,727,94,0,1115,490,21,15,30,7,93,232,515,151,118,4,1469,1018,"x",18,165]
[929,"Northumberland",48638,1588,7117,48180,1613,7394,47814,1579,7495,47432,1517,2877,4295,7208,47214,1466,2911,4094,7077,46728,1395,2983,3923,6947,null,237,768,200,48,1231,1020,100,47,3,149,403,157,4363,null,1745,1770,1715,1645,1575,1510,5,0,4,577,543,88,0,330,0,0,23,3,7,0,3,468,614,94,0,306,0,0,8,8]
[931,"Oxfordshire",101238,2253,16181,102109,2142,16420,102932,2146,16709,103928,2298,5574,8908,16757,105729,2265,5499,8827,16806,106678,2267,5602,8338,16697,null,812,2211,367,107,1821,1048,87,50,8,227,925,59,7722,null,2125,2045,1980,1995,2075,2135,5,69,59,652,786,86,17,296,83,0,20,"x",14,69,49,608,531,94,14,369,356,0,29,4]
[933,"Somerset",77167,1287,14236,76492,1280,14197,76024,1239,13879,76199,1260,3036,8983,13866,76242,1164,3113,8756,13738,76302,1165,2939,8351,13278,null,474,456,278,75,968,779,53,42,5,144,383,156,3813,null,1145,1075,1020,1010,1025,1070,14,20,38,235,442,103,19,140,0,0,9,5,24,18,48,266,441,124,16,121,0,0,7,7]
[935,"Suffolk",106814,2921,17400,106535,2867,18234,106592,2901,18500,106949,2896,7117,10109,18052,107413,2829,7038,9568,17594,107474,2864,6467,8749,16077,null,1019,1625,368,90,1912,1748,177,114,19,349,891,793,9105,null,3145,3120,3100,3120,3060,3065,"x",114,33,1273,595,153,55,490,217,0,126,5,0,113,42,990,550,176,60,676,335,0,106,15]
[936,"Surrey",178629,5493,27216,179345,5627,27434,179939,5533,27649,182180,5519,8980,13402,27438,184249,5643,8711,12950,26589,186176,5756,7976,11903,25098,null,1692,2720,524,191,2500,2748,185,124,21,369,1751,273,13098,null,5240,5360,5345,5345,5385,5445,12,31,369,1950,1841,618,9,384,0,0,159,10,12,21,303,1757,1827,677,10,632,47,0,147,10]
[937,"Warwickshire",81921,2413,14021,81723,2385,13593,81962,2354,13272,82327,2415,4050,8484,13150,82908,2533,4170,8051,12732,83511,2619,4087,7233,11875,null,577,1715,538,111,1298,1019,80,80,8,231,735,143,6535,null,2555,2470,2460,2515,2635,2725,3,15,0,924,1070,230,0,362,0,0,28,"x","x",14,0,813,919,259,0,480,209,0,25,"x"]
[938,"West Sussex",115289,3254,22762,115502,3213,23236,116048,3183,23088,116750,3191,8127,12281,22601,118099,3288,7497,11404,21187,119341,3403,7229,11026,20357,null,1345,1612,375,124,2166,2620,181,105,19,403,921,412,10283,null,3225,3175,3275,3135,3210,3325,12,0,264,898,1425,319,11,241,0,0,36,4,34,323,0,896,1459,310,17,234,0,0,34,16]
[970,"ENGLAND TOTAL",8092280,225400,1447205,8098360,223945,1481035,8123865,224210,1449685,8178200,226125,487165,841990,1392215,8249810,229390,473035,779635,1316220,8331385,232190,467605,727530,1260760,null,67790,130310,31150,10640,146170,140890,16555,9160,1130,26945,76665,29430,686830,null,228895,228220,229015,230155,233430,237110,855,8095,5325,81340,83755,13950,1590,29110,6220,25,2310,860,1020,8665,4930,75650,81935,14555,1555,34050,11250,95,2320,1080]
[]
[971,"NORTH EAST",397820,11665,74365,395210,11480,76005,393015,11210,72805,391315,11185,28820,39740,69730,390930,11280,28065,36610,65860,390730,11380,27890,35370,64440,null,3650,7600,1830,490,8600,8325,845,400,50,1635,3830,1690,38945,null,11710,11520,11385,11310,11455,11645,35,490,320,3210,4820,485,15,1115,885,0,70,5,50,445,315,2890,4545,515,20,1240,1520,"x",70,35]
[972,"NORTH WEST",1091035,32150,185965,1084715,31185,187635,1082200,30670,184210,1084580,30605,62675,110915,177660,1088720,30845,61850,103780,169620,1094630,30915,60765,99755,164535,null,9865,17550,4635,1715,18960,15745,2120,1305,110,3655,9545,4905,90110,null,32045,31095,30450,30345,30715,30975,85,700,590,12125,12230,1800,120,2195,605,0,195,70,125,760,580,11095,12375,1780,140,2885,910,"x",220,105]
[973,"YORKSHIRE AND THE HUMBER",816225,20210,152290,814595,19650,151855,815230,19470,147435,818060,19435,48815,89145,140925,822860,19615,47810,81395,132350,830165,19625,47355,76610,127265,null,5860,12585,3300,1080,13475,14225,2275,1145,100,2765,6770,2725,66300,null,20675,20165,19895,19740,19880,20095,100,1000,90,8170,7150,720,275,1955,300,0,100,20,125,1035,85,7440,6845,750,240,2620,800,5,105,40]
[974,"EAST MIDLANDS",690700,17430,122660,689380,17455,127140,687955,17510,121855,689205,17520,35040,73820,112220,693085,17735,33080,67825,104040,697915,17730,33180,62475,98950,null,4315,10045,2435,845,11245,8010,1365,765,90,2300,6255,2210,49885,null,17770,17765,18010,17980,18080,17765,85,505,510,5380,5700,865,90,3300,1285,20,185,150,40,590,575,4370,5040,965,100,3655,1955,5,145,325]
[975,"WEST MIDLANDS",891235,26625,156610,889495,26345,163000,889755,26465,160945,894250,26710,58325,92805,155295,900950,26975,58470,85130,147910,909410,27575,57820,79315,141410,null,7280,23830,3860,1265,14730,15195,1860,1220,135,3015,8620,2770,83775,null,26775,26765,26780,27325,27430,28310,25,1095,85,9445,12480,1280,185,2305,155,0,165,205,105,1010,60,8280,11965,1345,215,3640,1265,5,210,210]
[976,"EAST OF ENGLAND",901580,25650,148905,903185,25855,153895,906050,26030,151750,912255,26425,51695,87430,145735,921180,26970,50525,80380,138255,931240,27045,47810,74415,129480,null,8030,15435,3475,1015,15655,12930,1650,925,130,2905,7900,3355,73405,null,26425,26805,26930,27140,27425,27525,95,545,505,9485,7865,1310,190,5685,1305,0,360,85,85,620,475,9160,7825,1375,180,5740,1635,15,320,90]
[977,"INNER LONDON",442775,12425,91370,451605,12670,96005,460135,12950,94515,470760,13175,35010,50375,91490,481140,13540,32835,46765,85350,490795,13870,33220,43625,82960,null,4055,6150,1375,795,10185,13010,1040,565,85,1320,5600,1960,46130,null,13335,13525,13980,14060,14485,14960,95,510,400,6415,4100,1245,170,1360,"x",0,150,40,105,465,360,6300,4320,1365,115,1605,75,30,195,30]
[978,"OUTER LONDON",793570,21340,143930,803115,21085,149105,816275,21465,144705,833340,21990,51225,84185,141080,850135,22675,49970,77335,133325,867170,23435,48760,72820,127925,null,6415,10585,2770,1090,15250,18235,1455,890,140,2620,8115,3280,70835,null,23120,23045,23650,24010,24680,25380,90,1220,730,8265,7630,2295,160,3395,565,0,255,75,105,1325,680,7890,7690,2365,140,4135,760,5,205,75]
[979,"SOUTH EAST",1304650,37345,240765,1307595,37640,243855,1313560,37965,239490,1322470,38370,76110,132600,229255,1336155,38870,72080,124525,217430,1350345,39335,72255,109800,203510,null,11800,18630,4540,1410,24340,22505,2485,1215,165,4165,13560,3900,108715,null,36590,36900,37325,37465,38130,38815,175,1645,1445,11600,15095,2860,265,3790,530,0,570,150,185,2010,1040,11050,14800,3010,285,4400,1300,15,580,145]
[980,"SOUTH WEST",762685,20565,130345,759470,20580,132535,759690,20470,131975,761960,20710,39450,80970,128825,764655,20885,38355,75885,122085,768995,21285,38550,73335,120285,null,6520,7895,2935,945,13730,12710,1460,730,125,2570,6470,2640,58730,null,20445,20635,20615,20785,21155,21640,70,375,645,7250,6680,1090,125,4005,585,"x",260,65,85,410,765,7175,6525,1085,125,4130,1030,15,270,25]

{"sheet":"Attainment","index":4,"n_rows":170,"n_cols":429,"rows_kept":170,"cut":false,"hidden":false,"merged":[[4,410,4,411],[3,387,3,398],[4,387,4,388],[4,389,4,390],[4,391,4,392],[4,393,4,394],[4,395,4,396],[4,397,4,398],[3,374,3,385],[4,374,4,375],[4,376,4,377],[4,378,4,379],[4,380,4,381],[4,382,4,383],[3,317,3,346],[4,317,4,321],[4,322,4,326],[4,327,4,331],[4,332,4,336],[4,337,4,341],[4,342,4,346],[4,212,4,216],[4,196,4,200],[3,243,3,278],[4,243,4,248],[4,249,4,254],[4,255,4,260],[4,261,4,266],[4,267,4,272],[4,273,4,278],[3,212,3,241],[4,232,4,236],[4,227,4,231],[4,222,4,226],[4,217,4,221],[4,292,4,297],[4,304,4,309],[4,310,4,315],[4,26,4,29],[4,175,4,179],[4,170,4,174],[4,165,4,169],[4,206,4,210],[4,201,4,205],[4,191,4,195],[4,73,4,74],[4,186,4,190],[4,181,4,185],[4,134,4,138],[4,129,4,133],[4,124,4,128],[4,119,4,123],[4,93,4,97],[4,88,4,92],[3,51,3,62],[4,57,4,58],[4,53,4,54],[4,65,4,66],[4,67,4,68],[4,69,4,70],[4,286,4,291],[3,150,3,179],[3,181,3,210],[4,83,4,84],[4,160,4,164],[3,88,3,117],[4,113,4,117],[4,108,4,112],[4,103,4,107],[4,98,4,102],[4,280,4,285],[4,46,4,49],[4,38,4,41],[4,71,4,72],[4,298,4,303],[4,85,4,86],[4,75,4,76],[4,77,4,78],[4,79,4,80],[4,81,4,82],[4,59,4,60],[4,61,4,62],[4,413,4,419],[3,2,3,25],[4,2,4,5],[4,6,4,9],[4,10,4,13],[4,14,4,17],[4,18,4,21],[4,22,4,25],[4,155,4,159],[4,150,4,154],[3,63,3,74],[4,63,4,64],[3,75,3,86],[4,237,4,241],[3,26,3,49],[3,280,3,315],[4,51,4,52],[4,55,4,56],[3,119,3,148],[4,144,4,148],[4,139,4,143],[4,30,4,33],[4,34,4,37],[4,42,4,45],[3,421,3,428],[4,421,4,424],[4,425,4,428],[3,348,3,359],[4,348,4,349],[4,350,4,351],[4,352,4,353],[4,356,4,357],[4,358,4,359],[4,354,4,355],[3,361,3,372],[4,361,4,362],[4,363,4,364],[4,365,4,366],[4,367,4,368],[4,369,4,370],[4,371,4,372],[4,384,4,385],[3,400,3,411],[4,400,4,401],[4,402,4,403],[4,404,4,405],[4,406,4,407],[4,408,4,409]]}
["Local Authority attainment data (Please refer to source data for full data descriptions)"]
[1,2,3,4,5,6,7,8,9,10,11,12,13,14,15,16,17,18,19,20,21,22,23,24,25,26,27,28,29,30,31,32,33,34,35,36,37,38,39,40,41,42,43,44,45,46,47,48,49,50,51,52,53,54,55,56,57,58,59,60,61,62,63,64,65,66,67,68,69,70,71,72,73,74,75,76,77,78,79,80,81,82,83,84,85,86,87,88,89,90,91,92,93,94,95,96,97,98,99,100,101,102,103,104,105,106,107,108,109,110,111,112,113,114,115,116,117,118,119,120,121,122,123,124,125,126,127,128,129,130,131,132,133,134,135,136,137,138,139,140,141,142,143,144,145,146,147,148,149,150,151,152,153,154,155,156,157,158,159,160,161,162,163,164,165,166,167,168,169,170,171,172,173,174,175,176,177,178,179,180,181,182,183,184,185,186,187,188,189,190,191,192,193,194,195,196,197,198,199,200,201,202,203,204,205,206,207,208,209,210,211,212,213,214,215,216,217,218,219,220,221,222,223,224,225,226,227,228,229,230,231,232,233,234,235,236,237,238,239,240,241,242,243,244,245,246,247,248,249,250,251,252,253,254,255,256,257,258,259,260,261,262,263,264,265,266,267,268,269,270,271,272,273,274,275,276,277,278,279,280,281,282,283,284,285,286,287,288,289,290,291,292,293,294,295,296,297,298,299,300,301,302,303,304,305,306,307,308,309,310,311,312,313,314,315,316,317,318,319,320,321,322,323,324,325,326,327,328,329,330,331,332,333,334,335,336,337,338,339,340,341,342,343,344,345,346,347,348,349,350,351,352,353,354,355,356,357,358,359,360,361,362,363,364,365,366,367,368,369,370,371,372,373,374,375,376,377,378,379,380,381,382,383,384,385,386,387,388,389,390,391,392,393,394,395,396,397,398,399,400,401,402,403,404,405,406,407,408,409,410,411,412,413,414,415,416,417,418,419,420,421,422,423,424,425,426,427,428,429]
[]
[null,null,"Achievement in early years foundation stage profile (EYFSP) teacher assessments (2014)",null,null,null,null,null,null,null,null,null,null,null,null,null,null,null,null,null,null,null,null,null,null,null,"Achievement in early years foundation stage profile (EYFSP) teacher assessments (2013)",null,null,null,null,null,null,null,null,null,null,null,null,null,null,null,null,null,null,null,null,null,null,null,null,"Year 1 pupils meeting the required standard of phonic decoding by SEN provision (2014)",null,null,null,null,null,null,null,null,null,null,null,"Year 1 pupils meeting the required standard of phonic decoding by SEN provision (2013)",null,null,null,null,null,null,null,null,null,null,null,"Year 1 pupils meeting the required standard of phonic decoding by SEN provision (2012)",null,null,null,null,null,null,null,null,null,null,null,null,"Pupils achieving level 2 or above in key stage 1 teacher assessments by SEN provision (2014)",null,null,null,null,null,null,null,null,null,null,null,null,null,null,null,null,null,null,null,null,null,null,null,null,null,null,null,null,null,null,"Pupils achieving level 2 or above in key stage 1 teacher assessments by SEN provision (2013)",null,null,null,null,null,null,null,null,null,null,null,null,null,null,null,null,null,null,null,null,null,null,null,null,null,null,null,null,null,null,"Pupils achieving level 2 or above in key stage 1 teacher assessments by SEN provision (2012)",null,null,null,null,null,null,null,null,null,null,null,null,null,null,null,null,null,null,null,null,null,null,null,null,null,null,null,null,null,null,"Pupils achieving level 2 or above in key stage 1 teacher assessments by SEN provision (2011)",null,null,null,null,null,null,null,null,null,null,null,null,null,null,null,null,null,null,null,null,null,null,null,null,null,null,null,null,null,null,"Pupils achieving level 2 or above in key stage 1 teacher assessments by SEN provision (2010)",null,null,null,null,null,null,null,null,null,null,null,null,null,null,null,null,null,null,null,null,null,null,null,null,null,null,null,null,null,null,"Achievements at level 4 or above in key stage 2 by SEN provision and local authority (2014)",null,null,null,null,null,null,null,null,null,null,null,null,null,null,null,null,null,null,null,null,null,null,null,null,null,null,null,null,null,null,null,null,null,null,null,null,"Achievements at level 4 or above in key stage 2 by SEN provision and local authority (2013)",null,null,null,null,null,null,null,null,null,null,null,null,null,null,null,null,null,null,null,null,null,null,null,null,null,null,null,null,null,null,null,null,null,null,null,null,"Achievements at level 4 or above in key stage 2 by SEN provision and local authority (2012)",null,null,null,null,null,null,null,null,null,null,null,null,null,null,null,null,null,null,null,null,null,null,null,null,null,null,null,null,null,null,"Achievements at GCSE and equivalent for pupils at the end of key stage 4 by SEN provision and local authority (2012/13)",null,null,null,null,null,null,null,null,null,null,null,null,"Achievements at GCSE and equivalent for pupils at the end of key stage 4 by SEN provision and local authority (2011/12)",null,null,null,null,null,null,null,null,null,null,null,null,"Achievements at GCSE and equivalent for pupils at the end of key stage 4 by SEN provision and local authority (2010/11)",null,null,null,null,null,null,null,null,null,null,null,null,"Achievements at GCSE and equivalent for pupils at the end of key stage 4 by SEN provision and local authority (2009/10)",null,null,null,null,null,null,null,null,null,null,null,null,"Achievements at GCSE and equivalent for pupils at the end of key stage 4 by SEN provision and local authority (2008/09)",null,null,null,null,null,null,null,null,null,null,null,null,null,null,null,null,null,null,null,null,"2010/11 KS4 going to, or remaining in, an education or employment destination in 2011/12"]
[null,null,"No identified SEN",null,null,null,"School Action",null,null,null,"School Action+",null,null,null,"SEN without a statement",null,null,null,"SEN with a statement",null,null,null,"Total",null,null,null,"No identified SEN",null,null,null,"School Action",null,null,null,"School Action+",null,null,null,"SEN without a statement",null,null,null,"SEN with a statement",null,null,null,"Total",null,null,null,null,"No identified SEN",null,"School Action",null,"School Action+",null,"SEN without statement",null,"SEN with statement",null,"Total",null,"No identified SEN",null,"School Action",null,"School Action+",null,"SEN without statement",null,"SEN with statement",null,"Total",null,"No identified SEN",null,"School Action",null,"School Action+",null,"SEN without statement",null,"SEN with statement",null,"Total",null,null,"No identified SEN",null,null,null,null,"School Action",null,null,null,null,"School Action+",null,null,null,null,"SEN without statement",null,null,null,null,"SEN with statement",null,null,null,null,"Total",null,null,null,null,null,"No identified SEN",null,null,null,null,"School Action",null,null,null,null,"School Action+",null,null,null,null,"SEN without statement",null,null,null,null,"SEN with statement",null,null,null,null,"Total",null,null,null,null,null,"No identified SEN",null,null,null,null,"School Action",null,null,null,null,"School Action+",null,null,null,null,"SEN without statement",null,null,null,null,"SEN with statement",null,null,null,null,"Total",null,null,null,null,null,"No identified SEN",null,null,null,null,"School Action",null,null,null,null,"School Action+",null,null,null,null,"SEN without statement",null,null,null,null,"SEN with statement",null,null,null,null,"Total",null,null,null,null,null,"No identified SEN",null,null,null,null,"School Action",null,null,null,null,"School Action+",null,null,null,null,"SEN without statement",null,null,null,null,"SEN with statement",null,null,null,null,"Total",null,null,null,null,null,"No identified SEN",null,null,null,null,null,"School Action",null,null,null,null,null,"School Action+",null,null,null,null,null,"SEN without a statement",null,null,null,null,null,"SEN with a statement",null,null,null,null,null,"Total",null,null,null,null,null,null,"No identified SEN",null,null,null,null,null,"School Action",null,null,null,null,null,"School Action+",null,null,null,null,null,"SEN without a statement",null,null,null,null,null,"SEN with a statement",null,null,null,null,null,"Total",null,null,null,null,null,null,"No identified SEN",null,null,null,null,"School Action",null,null,null,null,"School Action+",null,null,null,null,"SEN without a statement",null,null,null,null,"SEN with a statement",null,null,null,null,"Total",null,null,null,null,null,"No identified SEN",null,"School Action",null,"School Action+",null,"SEN without a statement",null,"SEN with a statement",null,"Total",null,null,"No identified SEN",null,"School Action",null,"School Action+",null,"SEN without a statement",null,"SEN with a statement",null,"Total",null,null,"No identified SEN",null,"School Action",null,"School Action+",null,"SEN without a statement",null,"SEN with a statement",null,"Total",null,null,"No identified SEN",null,"School Action",null,"School Action+",null,"SEN without a statement",null,"SEN with a statement",null,"Total",null,null,"No identified SEN",null,"School Action",null,"School Action+",null,"SEN without a statement",null,"SEN with a statement",null,"Total",null,null,"16-17 year olds in education and training by Learning Difficulties and/or Disabilities (March 2014)",null,null,null,null,null,null,null,"Number of students in 2010/11 KS4 cohort",null,null,null,"Overall Education or Employment /Training Destination"]
["LA No","LA Name","% At least the expected standard in all ELGs","% A good level of development","No of eligibile pupils","Average point score","% At least the expected standard in all ELGs","% A good level of development","No of eligibile pupils","Average point score","% At least the expected standard in all ELGs","% A good level of development","No of eligibile pupils","Average point score","% At least the expected standard in all ELGs","% A good level of development","No of eligibile pupils","Average point score","% At least the expected standard in all ELGs","% A good level of development","No of eligibile pupils","Average point score","% At least the expected standard in all ELGs","% A good level of development","No of eligibile pupils","Average point score","% At least the expected standard in all ELGs","% A good level of development","No of eligibile pupils","Average point score","% At least the expected standard in all ELGs","% A good level of development","No of eligibile pupils","Average point score","% At least the expected standard in all ELGs","% A good level of development","No of eligibile pupils","Average point score","% At least the expected standard in all ELGs","% A good level of development","No of eligibile pupils","Average point score","% At least the expected standard in all ELGs","% A good level of development","No of eligibile pupils","Average point score","% At least the expected standard in all ELGs","% A good level of development","No of eligibile pupils","Average point score",null,"No of eligibile pupils","% meeting phonic decoding standard","No of eligibile pupils","% meeting phonic decoding standard","No of eligibile pupils","% meeting phonic decoding standard","No of eligibile pupils","% meeting phonic decoding standard","No of eligibile pupils","% meeting phonic decoding standard","No of eligibile pupils","% meeting phonic decoding standard","No of eligibile pupils","% meeting phonic decoding standard","No of eligibile pupils","% meeting phonic decoding standard","No of eligibile pupils","% meeting phonic decoding standard","No of eligibile pupils","% meeting phonic decoding standard","No of eligibile pupils","% meeting phonic decoding standard","No of eligibile pupils","% meeting phonic decoding standard","No of eligibile pupils","% meeting phonic decoding standard","No of eligibile pupils","% meeting phonic decoding standard","No of eligibile pupils","% meeting phonic decoding standard","No of eligibile pupils","% meeting phonic decoding standard","No of eligibile pupils","% meeting phonic decoding standard","No of eligibile pupils","% meeting phonic decoding standard",null,"No of eligibile pupils"," % reading"," % writing"," % Maths"," % Science","No of eligibile pupils"," % reading"," % writing"," % Maths"," % Science","No of eligibile pupils"," % reading"," % writing"," % Maths"," % Science","No of eligibile pupils"," % reading"," % writing"," % Maths"," % Science","No of eligibile pupils"," % reading"," % writing"," % Maths"," % Science","No of eligibile pupils"," % reading"," % writing"," % Maths"," % Science",null,"No of eligibile pupils"," % reading"," % writing"," % Maths"," % Science","No of eligibile pupils"," % reading"," % writing"," % Maths"," % Science","No of eligibile pupils"," % reading"," % writing"," % Maths"," % Science","No of eligibile pupils"," % reading"," % writing"," % Maths"," % Science","No of eligibile pupils"," % reading"," % writing"," % Maths"," % Science","No of eligibile pupils"," % reading"," % writing"," % Maths"," % Science",null,"No of eligibile pupils"," % reading"," % writing"," % Maths"," % Science","No of eligibile pupils"," % reading"," % writing"," % Maths"," % Science","No of eligibile pupils"," % reading"," % writing"," % Maths"," % Science","No of eligibile pupils"," % reading"," % writing"," % Maths"," % Science","No of eligibile pupils"," % reading"," % writing"," % Maths"," % Science","No of eligibile pupils"," % reading"," % writing"," % Maths"," % Science",null,"No of eligibile pupils"," % reading"," % writing"," % Maths"," % Science","No of eligibile pupils"," % reading"," % writing"," % Maths"," % Science","No of eligibile pupils"," % reading"," % writing"," % Maths"," % Science","No of eligibile pupils"," % reading"," % writing"," % Maths"," % Science","No of eligibile pupils"," % reading"," % writing"," % Maths"," % Science","No of eligibile pupils"," % reading"," % writing"," % Maths"," % Science",null,"No of eligibile pupils"," % reading"," % writing"," % Maths"," % Science","No of eligibile pupils"," % reading"," % writing"," % Maths"," % Science","No of eligibile pupils"," % reading"," % writing"," % Maths"," % Science","No of eligibile pupils"," % reading"," % writing"," % Maths"," % Science","No of eligibile pupils"," % reading"," % writing"," % Maths"," % Science","No of eligibile pupils"," % reading"," % writing"," % Maths"," % Science",null,"No of eligibile pupils","%  Reading","% Writing","% Maths","% Grammar, Punctuation & spelling","% Reading, writing & maths","No of eligibile pupils","%  Reading","% Writing","% Maths","% Grammar, Punctuation & spelling","% Reading, writing & maths","No of eligibile pupils","%  Reading","% Writing","% Maths","% Grammar, Punctuation & spelling","% Reading, writing & maths","No of eligibile pupils","%  Reading","% Writing","% Maths","% Grammar, Punctuation & spelling","% Reading, writing & maths","No of eligibile pupils","%  Reading","% Writing","% Maths","% Grammar, Punctuation & spelling","% Reading, writing & maths","No of eligibile pupils","%  Reading","% Writing","% Maths","% Grammar, Punctuation & spelling","% Reading, writing & maths",null,"No of eligibile pupils","%  Reading","% Writing","% Maths","% Grammar, Punctuation & spelling","% Reading, writing & maths","No of eligibile pupils","%  Reading","% Writing","% Maths","% Grammar, Punctuation & spelling","% Reading, writing & maths","No of eligibile pupils","%  Reading","% Writing","% Maths","% Grammar, Punctuation & spelling","% Reading, writing & maths","No of eligibile pupils","%  Reading","% Writing","% Maths","% Grammar, Punctuation & spelling","% Reading, writing & maths","No of eligibile pupils","%  Reading","% Writing","% Maths","% Grammar, Punctuation & spelling","% Reading, writing & maths","No of eligibile pupils","%  Reading","% Writing","% Maths","% Grammar, Punctuation & spelling","% Reading, writing & maths",null,"No of eligibile pupils","%  Reading","% Writing","% Maths","% Reading, writing & maths","No of eligibile pupils","%  Reading","% Writing","% Maths","% Reading, writing & maths","No of eligibile pupils","%  Reading","% Writing","% Maths","% Reading, writing & maths","No of eligibile pupils","%  Reading","% Writing","% Maths","% Reading, writing & maths","No of eligibile pupils","%  Reading","% Writing","% Maths","% Reading, writing & maths","No of eligibile pupils","%  Reading","% Writing","% Maths","% Reading, writing & maths",null,"Number of eligible pupils","% 5+ A*-C grades inc. English & mathematics GCSEs","Number of eligible pupils","% 5+ A*-C grades inc. English & mathematics GCSEs","Number of eligible pupils","% 5+ A*-C grades inc. English & mathematics GCSEs","Number of eligible pupils","% 5+ A*-C grades inc. English & mathematics GCSEs","Number of eligible pupils","% 5+ A*-C grades inc. English & mathematics GCSEs","Number of eligible pupils","% 5+ A*-C grades inc. English & mathematics GCSEs",null,"Number of eligible pupils","% 5+ A*-C grades inc. English & mathematics GCSEs","Number of eligible pupils","% 5+ A*-C grades inc. English & mathematics GCSEs","Number of eligible pupils","% 5+ A*-C grades inc. English & mathematics GCSEs","Number of eligible pupils","% 5+ A*-C grades inc. English & mathematics GCSEs","Number of eligible pupils","% 5+ A*-C grades inc. English & mathematics GCSEs","Number of eligible pupils","% 5+ A*-C grades inc. English & mathematics GCSEs",null,"Number of eligible pupils","% 5+ A*-C grades inc. English & mathematics GCSEs","Number of eligible pupils","% 5+ A*-C grades inc. English & mathematics GCSEs","Number of eligible pupils","% 5+ A*-C grades inc. English & mathematics GCSEs","Number of eligible pupils","% 5+ A*-C grades inc. English & mathematics GCSEs","Number of eligible pupils","% 5+ A*-C grades inc. English & mathematics GCSEs","Number of eligible pupils","% 5+ A*-C grades inc. English & mathematics GCSEs",null,"Number of eligible pupils","% 5+ A*-C grades inc. English & mathematics GCSEs","Number of eligible pupils","% 5+ A*-C grades inc. English & mathematics GCSEs","Number of eligible pupils","% 5+ A*-C grades inc. English & mathematics GCSEs","Number of eligible pupils","% 5+ A*-C grades inc. English & mathematics GCSEs","Number of eligible pupils","% 5+ A*-C grades inc. English & mathematics GCSEs","Number of eligible pupils","% 5+ A*-C grades inc. English & mathematics GCSEs",null,"Number of eligible pupils","% 5+ A*-C grades inc. English & mathematics GCSEs","Number of eligible pupils","% 5+ A*-C grades inc. English & mathematics GCSEs","Number of eligible pupils","% 5+ A*-C grades inc. English & mathematics GCSEs","Number of eligible pupils","% 5+ A*-C grades inc. English & mathematics GCSEs","Number of eligible pupils","% 5+ A*-C grades inc. English & mathematics GCSEs","Number of eligible pupils","% 5+ A*-C grades inc. English & mathematics GCSEs",null,"No without LDD","No participating in education or training without LDD","% participating in education or training without LDD","No with LDD","No participating in education or training with LDD","% participating in education or training with LDD","Gap",null,"SA and SA+","Statement","Non-SEN","Total","SA and SA+","Statement","Non-SEN","Total"]
[201,"City of London",79,79,24,36,"x","x","x",26.5,"x","x","x",23.5,"x","x",4,25,"x","x","x",34,65,67,49,36.1,67,70,27,33.4,".",".",0,".","x","x",3,32.700000000000003,"x","x",3,32.700000000000003,".",".",0,".",61,64,44,36.6,null,"*","*","*","*","*","*","*","*","*","*","*","*","*","*","*","*","*","*","*","*","*","*","*","*","*","*","*","*","*","*","*","*","*","*","*","*",null,"*","*","*","*","*","*","*","*","*","*","*","*","*","*","*","*","*","*","*","*","*","*","*","*","*","*","*","*","*","*",null,"*","*","*","*","*","*","*","*","*","*","*","*","*","*","*","*","*","*","*","*","*","*","*","*","*","*","*","*","*","*",null,"*","*","*","*","*","*","*","*","*","*","*","*","*","*","*","*","*","*","*","*","*","*","*","*","*","*","*","*","*","*",null,20,100,"x",100,100,7,100,"x",100,100,0,".",".",".",".",7,100,"x",100,100,"x","x","x","x","x",30,"x",80,"x","x",null,12,"x",67,100,75,12,"x","x",100,"x",5,"x","x",100,"x",17,"x",53,100,82,0,".",".",".",".",29,"x",59,100,79,null,25,"x","x","x","x","x","x","x","x","x","x","x","x","x","x","x","x","x",5,"x","x","x","x","x",0,".",".",".",".",".",30,100,100,"x",90,"x",null,24,"x","x","x","x","x","x","x","x","x","x","x","x","x","x","x","x","x",5,"x","x","x","x","x",0,".",".",".",".",".",29,100,"x",100,100,"x",null,19,100,100,100,100,7,"x","x","x","x",4,"x","x","x","x",11,100,"x",100,"x",0,".",".",".",".",30,100,"x",100,"x",null,0,".",0,".",0,".",0,".",0,".",0,".",null,0,".",0,".",0,".",0,".",0,".",0,".",null,0,".",0,".",0,".",0,".",0,".",0,".",null,0,".",0,".",0,".",0,".",0,".",0,".",null,0,".",0,".",0,".",0,".",0,".",0,".",null,50,{"$f":"IFERROR((OX7*(OZ7/100)), \"x\")","v":46.65},93.3,"x",{"$f":"IFERROR((PA7*(PC7/100)), \"x\")","v":"x"},100,-6.7,null,".",".",".",".",".",".",".","."]
[202,"Camden",58,62,1397,34,18,20,93,27.7,19,22,104,26.8,19,21,197,27.2,"x","x",49,20,52,56,1804,32.9,46,52,1401,32.6,6,9,68,25.9,8,8,107,24.7,7,9,175,25.2,"x","x",37,20.3,42,47,1753,31.6,null,1345,81,110,45,116,45,226,45,59,20,1641,73,1279,75,146,43,103,39,249,41,46,20,1592,68,1242,67,159,26,103,28,262,27,44,16,1562,59,null,1224,97,96,98,97,169,74,69,87,77,127,61,56,70,69,296,69,63,80,74,47,43,32,36,32,1577,90,88,93,91,null,1169,97,94,98,96,193,70,59,79,76,119,61,49,69,68,312,66,55,75,73,47,36,26,47,36,1540,88,84,91,89,null,1207,96,93,96,94,181,64,55,72,71,110,49,34,53,59,291,58,47,65,67,52,23,13,19,23,1560,86,81,88,86,null,1103,93,90,94,95,226,64,54,71,69,136,59,46,68,69,362,62,51,70,69,55,18,9,27,25,1532,82,77,85,86,null,1104,94,92,95,95,236,61,54,73,74,127,52,43,55,59,363,58,50,67,69,40,15,15,20,20,1513,83,80,86,87,null,1109,98,99,98,94,96,170,86,79,80,59,68,120,65,57,65,48,48,290,77,70,74,55,60,55,29,20,24,15,16,1459,92,90,90,83,86,null,1041,97,98,98,92,94,190,81,78,75,51,64,90,67,53,64,48,42,280,76,70,72,50,57,74,31,26,31,23,19,1399,89,88,89,80,82,null,1062,97,97,97,94,209,88,75,74,63,117,68,50,57,35,326,81,66,68,53,65,22,15,22,14,1457,90,86,87,81,null,1173,69.8,171,32.200000000000003,96,31.3,267,31.8,67,10.4,1508,60.4,null,1055,72,212,36.799999999999997,147,24.5,359,31.8,85,11.8,1499,59,null,1057,73.900000000000006,211,37.9,138,21,349,31.2,82,8.5,1491,60.2,null,940,68.8,286,35.299999999999997,177,20.3,463,29.6,97,12.4,1501,53.1,null,953,67.400000000000006,257,23.3,138,18.100000000000001,395,21.5,93,9.6999999999999993,1442,51.1,null,2690,2474.8000000000002,92,140,{"$f":"IFERROR((PA8*(PC8/100)), \"x\")","v":121.52},86.8,5.2,null,350,60,1060,1470,0.77,0.86,0.9,0.87]
[203,"Greenwich",79,81,2848,37.200000000000003,46,47,206,31.4,31,33,286,28.1,37,39,492,29.5,"x","x",45,19.7,71,73,3461,35.799999999999997,73,76,2935,36.1,38,39,175,31.3,31,33,304,28.8,34,35,479,29.7,"x","x",48,19.3,66,69,3557,35.1,null,2767,89,314,54,313,53,627,54,63,14,3487,81,2542,85,275,58,428,52,703,54,48,6,3331,76,2406,73,255,49,402,38,657,43,56,16,3157,65,null,2531,97,96,99,97,346,85,75,91,86,379,74,63,78,76,725,79,69,84,81,50,14,16,18,20,3341,91,88,94,92,null,2396,96,94,97,96,270,76,70,86,81,398,65,60,74,69,668,69,64,79,74,59,20,15,22,22,3153,89,86,92,89,null,2229,95,93,97,95,294,71,64,83,79,405,65,56,77,74,699,68,59,80,76,50,20,16,30,20,3006,87,83,91,89,null,2119,94,91,97,95,312,70,59,80,76,361,60,49,68,63,673,65,53,74,69,44,16,7,11,9,2858,86,81,90,87,null,1953,94,92,96,95,360,62,58,80,68,315,62,51,74,72,675,62,55,77,70,47,17,19,23,23,2695,84,81,90,87,null,1957,98,97,97,93,95,355,89,82,85,66,70,294,80,67,72,50,59,649,85,76,79,59,65,60,25,12,20,17,12,2677,93,90,91,83,86,null,1800,97,97,96,91,93,296,80,75,80,50,62,319,71,64,74,48,54,615,75,69,77,49,58,98,28,18,27,15,16,2528,89,87,89,77,81,null,1726,98,95,97,93,319,87,71,81,62,354,75,66,71,55,673,81,68,76,58,87,31,27,28,20,2491,91,85,89,81,null,1592,76.400000000000006,275,38.5,180,32.799999999999997,455,36.299999999999997,92,17.399999999999999,2140,65.400000000000006,null,1656,72.2,253,36,173,40.5,426,37.799999999999997,110,23.6,2193,63.1,null,1556,66.099999999999994,345,35.9,266,27.8,611,32.4,101,7.9,2275,54.5,null,1569,62.8,340,26.5,284,19.7,624,23.4,87,11.5,2282,50.1,null,1622,57.2,358,16.8,335,15.5,693,16.2,99,8.1,2415,43.4,null,5230,4712.2299999999996,90.1,240,208.07999999999998,86.7,3.4,null,590,70,1590,2240,0.76,0.86,0.9,0.86]
[204,"Hackney",74,76,2321,35.6,37,39,147,29.2,26,28,180,27.2,31,33,327,28.1,9,9,58,22,62,65,3033,34.1,64,66,2326,34.6,26,27,144,29.1,31,32,161,28.2,29,30,305,28.6,"x","x",47,19.3,55,57,3049,33.299999999999997,null,2255,87,210,58,255,53,465,55,58,22,2801,80,2081,81,265,48,213,40,478,44,67,12,2648,72,2092,59,237,32,199,26,436,29,61,8,2614,52,null,1960,97,96,98,96,334,83,75,89,84,244,66,57,71,65,578,76,67,82,76,72,26,14,31,22,2628,90,87,92,89,null,1950,96,94,97,94,365,76,70,81,75,234,65,53,71,65,599,71,63,77,71,66,21,17,23,21,2636,88,85,90,87,null,1798,95,92,96,94,333,73,62,78,68,250,57,48,66,55,583,66,56,73,62,60,27,22,33,20,2451,86,82,89,84,null,1736,92,90,95,92,329,65,56,73,65,231,57,48,65,59,560,62,53,70,63,71,20,18,24,20,2386,83,79,87,83,null,1643,92,88,95,92,415,60,53,77,68,234,54,44,68,57,649,58,49,73,64,63,17,14,29,17,2373,81,75,87,82,null,1637,96,98,94,89,91,324,82,83,80,62,68,252,69,66,63,47,51,576,77,76,73,56,60,106,33,29,34,27,24,2326,88,89,86,78,80,null,1437,95,97,97,90,92,371,80,78,83,58,67,169,70,60,64,47,48,540,77,73,77,54,61,91,23,16,34,14,14,2080,87,87,89,77,81,null,1453,96,95,95,90,386,80,70,75,61,232,63,47,60,39,618,73,61,69,53,91,30,19,24,14,2171,87,82,85,76,null,1160,76.3,243,34.6,153,23.5,396,30.3,93,5.4,1649,61.2,null,1130,73.2,262,34.4,121,25.6,383,31.6,72,8.3000000000000007,1585,60.2,null,945,73.099999999999994,331,32.299999999999997,110,25.5,441,30.6,77,7.8,1485,57,null,858,72,283,29.7,103,25.2,386,28.5,82,6.1,1328,55.3,null,935,66.099999999999994,245,27.8,89,13.5,334,24,77,6.5,1346,52.2,null,5000,4605,92.1,190,166.82,87.8,4.2,null,440,40,960,1440,0.82,0.86,0.9,0.87]
[205,"Hammersmith and Fulham",66,68,1287,34.6,27,27,91,29.2,19,21,91,25.6,23,24,182,27.4,"x","x",18,20.6,59,61,1616,33.6,55,59,1218,33.700000000000003,25,28,87,29.1,12,13,94,26.2,18,20,181,27.6,"x","x",25,19.7,49,53,1573,32.6,null,1149,89,90,61,122,45,212,52,42,21,1418,81,1097,84,161,55,95,41,256,50,43,23,1404,76,1107,74,174,37,108,37,282,37,20,25,1421,65,null,1093,98,96,98,98,157,85,76,89,89,115,65,55,70,70,272,77,67,81,81,51,29,25,33,22,1425,91,87,92,92,null,1058,98,95,98,97,178,78,69,77,76,115,64,52,67,66,293,73,62,73,72,46,28,24,22,28,1402,90,86,90,89,null,1017,96,93,97,96,184,73,64,82,84,132,50,41,59,63,316,64,54,72,75,34,24,29,26,29,1376,86,82,90,89,null,935,93,91,96,97,229,69,62,79,79,114,56,47,59,65,343,64,57,72,74,43,26,23,23,28,1331,83,79,87,89,null,869,95,93,97,96,227,69,56,74,78,96,47,36,61,60,323,62,50,71,73,42,19,17,17,17,1241,83,79,88,87,null,841,98,97,96,94,93,150,91,77,92,70,69,126,79,60,79,52,57,276,86,69,86,62,64,40,40,23,33,25,23,1163,93,88,91,84,84,null,797,96,96,95,93,92,177,84,76,76,64,61,122,70,57,63,48,44,299,78,69,71,58,54,48,21,13,23,15,13,1145,88,86,86,80,79,null,802,96,95,95,90,182,88,72,74,58,128,68,52,58,39,310,80,64,67,50,43,14,14,16,14,1155,89,83,84,77,null,884,78.400000000000006,140,35,80,26.3,220,31.8,51,9.8000000000000007,1155,66.5,null,756,81.900000000000006,191,36.1,88,28.4,279,33.700000000000003,60,8.3000000000000007,1095,65.599999999999994,null,771,85.3,157,43.9,86,30.2,243,39.1,50,12,1071,71.3,null,696,87.2,184,"x",106,"x",290,34.799999999999997,59,8.5,1045,68.2,null,742,77.2,153,49,95,23.2,248,39.1,61,6.6,1051,64.099999999999994,null,2220,2117.88,95.4,80,71.679999999999993,89.6,5.8,null,240,20,780,1040,0.84,0.94,0.93,0.9]
[206,"Islington",60,63,1812,34.1,26,31,91,28.4,17,22,108,26.3,21,26,199,27.3,"x","x",40,18.8,54,58,2102,33.1,43,49,1749,32.700000000000003,7,9,74,26.7,14,18,140,26.6,12,15,214,26.6,7,7,46,19.5,38,44,2060,31.7,null,1626,82,171,39,163,44,334,41,52,23,2024,74,1581,78,190,37,161,36,351,37,54,26,1996,70,1525,62,180,29,137,26,317,28,51,14,1898,55,null,1495,97,95,98,97,220,67,55,73,71,177,63,53,71,69,397,65,54,72,70,59,32,27,32,27,1963,88,84,90,89,null,1415,96,94,98,97,242,68,60,81,78,155,59,47,66,69,397,65,55,75,75,56,34,25,32,34,1877,88,83,91,90,null,1326,94,92,96,94,295,69,60,76,71,139,57,50,61,59,434,65,57,71,67,52,15,13,19,21,1817,85,82,88,86,null,1327,91,89,96,94,286,56,46,70,68,165,55,42,60,56,451,55,45,66,64,57,19,16,26,21,1846,80,75,86,84,null,1306,92,89,95,93,280,61,54,73,67,154,50,38,55,50,434,57,48,67,61,50,32,26,32,30,1801,81,77,86,83,null,1207,98,97,96,93,94,257,84,77,79,60,65,154,75,56,71,49,49,411,81,70,76,56,59,84,38,24,39,31,17,1702,91,87,89,81,82,null,1176,96,96,96,89,91,257,77,74,79,54,60,170,59,48,63,37,38,427,70,63,73,47,51,82,28,20,28,22,17,1688,86,84,86,75,77,null,1112,96,96,96,92,311,78,71,76,58,237,72,53,61,42,548,76,63,70,51,73,32,21,23,16,1734,87,82,85,76,null,1043,73.3,261,45.2,82,30.5,343,41.7,50,8,1436,63.5,null,997,63.9,320,39.4,97,18.600000000000001,417,34.5,46,6.5,1460,53.7,null,883,63.2,303,27.7,104,17.3,407,25.1,54,5.6,1351,49.4,null,987,59.9,281,34.200000000000003,88,17,369,30.1,53,5.7,1409,50,null,949,58.2,305,23,111,10.8,416,19.7,49,"x",1414,45,null,3370,2989.19,88.7,150,133.64999999999998,89.1,-0.4,null,410,20,890,1320,0.81,0.96,0.89,0.86]
[207,"Kensington and Chelsea",59,63,852,34.799999999999997,24,25,55,28.9,12,12,33,25.1,19,20,88,27.5,"x","x",23,19.8,53,57,1079,33.700000000000003,48,53,859,33.9,9,12,65,25.8,10,10,31,26.5,9,11,96,26.1,"x","x",17,22.1,45,48,1120,33.1,null,829,86,72,54,59,49,131,52,21,33,992,80,"x","x","x","x","x","x","x","x","x","x","x","x","x","x","x","x","x","x","x","x","x","x","x","x",null,814,98,97,100,98,89,87,70,90,85,58,57,41,60,62,147,75,59,78,76,21,48,43,43,43,989,93,90,95,94,null,"x","x","x","x","x","x","x","x","x","x","x","x","x","x","x","x","x","x","x","x","x","x",32,36,41,"x","x","x","x","x",null,"x","x","x","x","x","x","x","x","x","x","x","x","x","x","x","x","x","x","x","x","x","x","x","x","x","x","x","x","x","x",null,805,94,"x",98,97,99,53,"x",73,62,34,44,32,47,50,133,50,"x",66,59,20,35,40,50,35,971,"x",85,"x","x",null,719,"x",91,97,96,108,"x","x",79,"x",52,"x","x",50,"x",160,"x",49,69,63,19,"x","x","x","x",903,"x",82,91,89,null,711,99,97,96,96,94,103,81,82,81,69,67,44,73,55,52,45,36,147,78,73,72,62,58,30,47,37,40,33,27,889,93,91,90,88,85,null,683,"x","x","x","x","x","x","x","x","x","x","x","x","x","x","x","x","x",165,"x","x","x","x","x",26,54,42,65,46,35,876,92,"x",92,87,"x",null,663,98,97,98,95,111,"x","x","x","x",59,"x","x","x","x",170,67,"x",69,"x",33,39,24,39,18,869,90,"x",90,"x",null,534,87.3,26,42.3,20,"x",46,"x",31,"x",611,80.2,null,514,86.2,44,47.7,17,52.9,61,49.2,29,27.6,604,79.599999999999994,null,477,83.2,51,35.299999999999997,20,25,71,32.4,30,10,581,73.099999999999994,null,473,78,38,"x",27,"x",65,29.2,13,38.5,551,71.3,null,475,73.3,46,32.6,25,36,71,33.799999999999997,23,17.399999999999999,569,66.099999999999994,null,1220,1085.8,89,70,63.35,90.5,-1.6,null,70,20,480,570,0.81,0.69,0.92,0.9]
[208,"Lambeth",60,62,2820,33.6,23,23,128,28,14,15,224,24.8,17,18,352,26,"x","x",41,18.5,54,56,3295,32.6,48,52,2761,32.200000000000003,15,17,156,26.3,10,12,236,24.2,12,14,392,25,"x","x",52,20.5,43,46,3319,31,null,2530,86,294,66,318,49,612,57,67,27,3226,79,2440,82,269,46,310,41,579,44,73,22,3123,73,2442,74,237,39,301,38,538,39,60,12,3072,66,null,2326,97,96,98,97,351,81,75,86,83,322,66,59,70,70,673,74,67,78,77,84,36,32,39,38,3105,90,87,92,91,null,2269,96,94,97,96,328,80,71,84,82,342,69,60,73,71,670,74,65,78,76,77,23,13,18,18,3034,89,86,91,89,null,2160,95,93,97,95,367,74,72,81,78,291,64,56,69,69,658,70,65,76,74,73,26,14,25,25,2904,87,84,90,89,null,1987,94,94,96,94,413,69,63,81,77,325,51,45,59,57,738,61,55,71,68,82,20,15,22,20,2819,83,81,87,85,null,1977,93,92,96,94,360,61,56,69,73,323,54,47,61,58,683,58,52,65,65,76,12,11,14,17,2752,81,79,86,85,null,1840,97,98,95,90,93,362,88,87,82,67,70,328,79,68,76,52,58,690,84,78,79,60,64,111,34,26,32,17,20,2644,91,89,88,79,82,null,1697,96,97,98,92,93,359,85,79,88,70,70,288,77,61,78,50,51,647,81,71,83,61,62,109,39,24,39,21,20,2461,90,87,91,80,81,null,1698,96,94,96,90,341,89,79,83,70,320,76,59,76,51,661,83,69,80,61,112,29,20,24,15,2474,89,84,88,79,null,1287,77.400000000000006,264,48.5,225,44.4,489,46.6,105,14.3,1881,65.900000000000006,null,1011,76.900000000000006,342,55.8,316,46.5,658,51.4,122,7.4,1791,62.8,null,1060,75,218,38.1,235,40.4,453,39.299999999999997,96,10.4,1611,61.1,null,986,65.7,234,46.2,286,34.299999999999997,520,39.6,110,2.7,1616,53,null,958,63.6,186,38.200000000000003,315,46.7,501,43.5,101,6.9,1560,53.5,null,5190,4733.28,91.2,200,172.4,86.2,5,null,460,50,1060,1560,0.86,0.85,0.92,0.9]
[209,"Lewisham",80,81,3300,34.200000000000003,44,45,141,30.2,33,34,199,28.6,38,39,340,29.2,10,10,39,20.399999999999999,74,75,3732,33.5,72,74,3344,33.700000000000003,39,41,160,30.5,19,20,193,27.1,28,29,353,28.6,"x","x",39,19.100000000000001,66,68,3824,33,null,3175,86,248,54,272,47,520,51,44,16,3768,80,3016,81,318,50,247,44,565,47,37,16,3646,75,2885,67,350,33,217,24,567,29,52,8,3524,60,null,2978,97,95,98,96,292,80,74,88,80,273,67,60,73,67,565,74,67,81,74,66,17,12,21,18,3630,91,89,94,91,null,2760,96,94,98,96,387,71,65,83,77,288,61,50,67,62,675,67,59,76,71,64,22,16,27,19,3525,89,85,92,90,null,2499,95,92,97,95,410,68,52,77,70,293,56,46,64,57,703,63,50,72,65,68,16,15,25,12,3289,86,81,90,87,null,2311,92,88,95,93,427,64,53,72,69,273,56,45,65,59,700,61,50,69,65,73,12,8,15,12,3104,83,78,87,84,null,2093,92,89,95,94,503,59,48,74,69,287,51,40,63,60,790,56,45,70,66,52,13,15,13,10,2955,80,75,87,85,null,2115,93,97,93,87,89,332,84,83,77,54,65,334,71,64,67,47,52,666,77,74,72,50,59,87,24,21,23,13,14,2871,87,89,86,76,80,null,1998,97,97,98,88,94,339,81,77,83,55,64,331,73,57,69,42,48,670,77,67,76,48,56,85,27,18,27,15,17,2756,90,88,90,76,83,null,1797,98,97,97,95,399,88,75,78,64,320,74,53,69,47,719,82,65,74,56,92,21,16,17,11,2616,91,86,88,81,null,1836,67,238,31.1,159,28.9,397,30.2,111,8.1,2346,58,null,1628,66,327,36.700000000000003,187,27.3,514,33.299999999999997,109,13.8,2252,56,null,1545,69.7,371,28.3,170,24.1,541,27,108,7.4,2198,56.1,null,1515,59.1,370,28.1,179,22.3,549,26.2,108,3.7,2172,48,null,1551,57.4,287,25.4,168,19,455,23.1,130,6.2,2136,47,null,5500,5302,96.4,250,238.00000000000003,95.2,1.2,null,560,50,1530,2140,0.7,0.77,0.85,0.81]
[210,"Southwark",68,72,3046,35.1,28,30,138,28.8,20,21,215,26.2,23,25,353,27.2,"x","x",53,18.899999999999999,62,66,3584,34.1,61,65,3205,34.9,21,23,121,29,11,13,167,24.9,15,17,288,26.6,"x","x",50,19.8,56,60,3637,33.9,null,2940,84,233,54,300,44,533,48,74,18,3571,77,2783,79,240,41,238,34,478,38,61,13,3350,72,2618,62,227,21,268,27,495,24,66,9,3215,54,null,2632,96,95,97,96,322,74,67,82,74,287,61,49,65,58,609,68,59,74,67,83,23,16,24,20,3348,89,86,91,88,null,2427,95,92,96,95,346,76,69,83,80,306,59,52,66,58,652,68,61,75,69,84,20,20,23,21,3182,87,84,90,87,null,2445,94,91,96,93,330,67,57,76,68,331,59,53,66,59,661,63,55,71,63,75,33,21,29,28,3202,86,81,89,85,null,2303,92,88,94,91,297,66,54,74,68,294,52,40,58,53,591,59,47,66,61,69,25,13,26,19,2985,84,78,86,83,null,2136,93,89,95,92,397,63,54,74,68,304,48,39,56,51,701,57,48,66,61,55,15,13,13,16,2915,83,77,86,83,null,1993,97,97,96,93,93,383,86,79,82,65,67,343,68,55,64,48,43,726,77,67,74,57,56,96,28,21,27,17,19,2825,90,87,88,81,81,null,1928,95,95,95,90,89,336,81,76,79,60,63,305,69,47,68,40,38,641,75,62,74,50,51,108,31,19,26,23,16,2690,88,84,87,78,77,null,1812,97,95,96,91,413,85,72,77,60,330,65,50,62,42,743,76,62,71,52,105,40,27,32,19,2666,89,83,86,77,null,1544,78.8,380,49.7,315,34.6,695,42.9,107,14,2346,65.2,null,1465,72.8,391,46,320,26.3,711,37.1,105,8.6,2282,58.8,null,1448,72.2,421,45.8,325,27.7,746,37.9,133,14.3,2336,58,null,1293,73.099999999999994,528,44.5,393,28.2,921,37.6,111,10.8,2326,56.1,null,1490,57.6,457,36.1,304,20.100000000000001,761,29.7,115,4.3,2366,46,null,5300,5013.8,94.6,220,199.32,90.6,4,null,760,80,1450,2280,0.82,0.86,0.91,0.88]
[211,"Tower Hamlets",57,61,2896,34.4,20,22,182,27.3,12,14,153,24.6,17,19,335,26.1,4,4,84,21.1,51,55,3450,33.1,47,52,2920,33.1,18,23,188,26.8,9,10,162,24.7,14,17,350,25.8,"x","x",87,20.3,42,46,3473,31.9,null,2809,82,251,53,215,47,466,50,112,21,3415,76,2649,78,265,46,218,42,483,44,108,19,3253,71,2658,64,275,33,250,35,525,34,76,18,3290,58,null,2613,96,94,97,94,291,77,66,81,70,228,67,54,71,58,519,72,61,77,65,126,26,20,29,24,3286,89,85,91,86,null,2591,96,94,97,94,314,75,66,83,72,244,65,58,70,62,558,71,62,77,68,103,23,23,30,27,3264,89,86,92,87,null,2385,95,93,97,95,379,72,65,81,77,250,61,52,71,62,629,67,60,77,71,92,20,17,32,28,3129,87,84,90,87,null,2428,94,92,97,94,401,64,59,76,68,279,58,49,69,58,680,62,55,73,64,96,24,20,32,24,3215,85,82,90,85,null,2252,93,91,97,94,459,64,57,82,72,256,52,45,63,57,715,60,53,75,67,105,16,18,24,18,3086,83,80,89,85,null,2311,97,96,97,92,93,316,80,71,81,58,60,242,73,52,68,44,45,558,77,63,75,52,53,136,35,24,33,27,21,3011,90,87,90,82,82,null,2160,94,96,97,91,90,346,74,70,78,54,56,251,61,52,63,45,39,597,69,63,72,51,49,122,25,21,25,22,15,2883,86,86,88,80,78,null,2019,96,96,95,91,376,84,72,72,56,258,73,53,62,41,634,79,64,68,50,107,22,14,21,11,2771,89,85,86,78,null,1921,75.099999999999994,314,36.299999999999997,176,34.1,490,35.5,108,13,2521,64.7,null,1847,72,323,39.9,161,26.1,484,35.299999999999997,113,10.6,2444,61.9,null,1744,74.7,496,39.5,202,23.8,698,35,98,17.3,2553,61.5,null,1575,64.7,493,33.700000000000003,232,26.3,725,31.3,120,6.7,2423,51.8,null,1629,58.3,418,22.7,205,15.1,623,20.2,100,5,2353,45.9,null,5000,4575,91.5,210,185.22,88.2,3.4,null,650,80,1810,2530,0.79,0.89,0.91,0.88]
[212,"Wandsworth",68,70,2434,35.5,34,36,197,30.4,21,21,159,27.1,28,29,356,28.9,"x","x",48,18.899999999999999,63,64,3154,34.6,57,59,2344,34.4,17,17,180,28.4,13,13,116,25.7,16,16,296,27.4,"x","x",64,18.600000000000001,52,54,3098,33.6,null,2224,87,243,57,163,51,406,55,69,14,2722,80,2144,85,283,46,185,42,468,44,73,10,2713,75,1968,75,289,37,147,33,436,36,72,17,2494,66,null,2094,98,98,99,98,250,76,73,85,78,221,67,63,69,65,471,71,68,77,72,89,21,16,26,22,2677,90,90,92,91,null,1890,97,96,98,97,313,79,75,84,81,162,67,62,78,71,475,75,70,82,77,76,28,17,25,26,2465,90,88,93,91,null,1774,96,95,98,97,330,74,69,80,81,204,63,56,66,65,534,70,64,74,75,63,25,21,24,27,2389,88,86,90,90,null,1699,95,95,97,96,358,63,59,77,73,234,55,47,65,65,592,60,55,72,70,52,23,23,27,23,2355,85,83,89,88,null,1594,95,92,97,95,405,63,57,73,69,216,55,49,63,56,621,60,54,70,64,60,20,18,25,23,2289,83,80,88,84,null,1511,96,97,96,92,93,279,87,82,81,63,68,205,74,60,66,42,49,484,81,73,75,54,60,114,32,24,30,21,21,2114,89,88,87,79,82,null,1439,96,97,96,94,93,295,87,82,81,62,68,231,77,71,72,53,55,526,83,77,77,58,62,107,30,25,25,21,21,2080,90,88,88,81,82,null,1412,98,96,98,94,286,88,80,85,67,231,77,59,66,48,517,83,70,76,59,95,41,32,34,25,2029,91,87,89,82,null,1247,74.400000000000006,336,43.8,138,28.3,474,39.200000000000003,125,13.6,1846,61.3,null,1242,71.3,294,38.4,179,33.5,473,36.6,114,7,1830,58.3,null,1090,79.2,401,49.4,207,33.299999999999997,608,43.9,144,4.2,1846,61.7,null,1045,74.099999999999994,417,51.8,250,26.4,667,42.3,119,6.7,1831,58.1,null,1017,65.099999999999994,522,46.6,197,27.9,719,41.4,118,5.0999999999999996,1854,52.1,null,3760,{"$f":"IFERROR((OX18*(OZ18/100)), \"x\")","v":3489.2799999999997},92.8,160,141.6,88.5,4.3,null,610,60,1090,1760,0.81,0.92,0.91,0.87]
[213,"Westminster",61,64,1379,34.4,36,36,59,31.2,21,21,97,26.8,26,26,156,28.5,"x","x",34,20.7,56,58,1674,33.5,51,54,1440,33.5,21,22,82,27.9,"x","x",83,25,"x","x",165,26.5,"x","x",40,21.3,46,50,1749,32.5,null,1338,86,102,58,105,55,207,57,48,23,1611,80,1240,82,131,52,139,45,270,49,35,46,1568,74,1292,67,155,35,109,30,264,33,38,37,1607,61,null,1173,97,95,98,95,130,80,71,86,78,110,66,55,75,63,240,74,64,81,71,42,48,38,43,33,1471,91,88,93,89,null,1231,97,95,98,94,157,75,62,79,75,127,59,50,68,54,284,68,57,74,65,42,43,40,48,40,1561,90,86,92,87,null,1185,95,93,98,95,174,69,57,83,71,140,51,41,64,54,314,61,50,75,63,35,37,26,34,37,1545,86,83,91,87,null,1142,94,92,96,94,205,68,61,77,75,155,49,43,57,53,360,60,53,68,65,24,38,25,29,29,1545,84,81,88,86,null,1102,94,91,95,94,223,62,56,72,67,123,41,33,49,45,346,55,48,64,59,28,32,29,36,29,1492,83,79,86,84,null,1094,98,98,98,96,95,128,84,78,76,64,69,152,78,65,66,59,52,280,81,71,71,61,60,46,35,28,39,28,24,1426,92,90,91,87,86,null,965,94,97,94,91,91,188,78,69,79,62,59,166,67,60,70,48,47,354,73,65,75,55,53,59,36,32,39,32,27,1378,86,86,87,79,79,null,1002,96,95,94,89,169,82,69,78,56,156,71,58,68,49,325,77,63,73,53,52,23,17,21,12,1380,89,84,86,77,null,816,85.8,288,52.8,253,49,541,51,57,14,1414,69.599999999999994,null,709,84.3,336,65.5,288,49.7,624,58.2,52,15.4,1385,70,null,667,82.3,298,59.1,348,37.6,646,47.5,60,16.7,1377,63.1,null,625,81,318,55,365,43.8,683,49,50,14,1361,62.5,null,694,70.900000000000006,311,37.6,250,30,561,34.200000000000003,53,11.3,1308,52.8,null,2230,2111.81,94.7,110,97.46,88.6,6.1,null,650,40,660,1360,0.85,0.86,0.94,0.89]
[301,"Barking and Dagenham",61,65,3117,33,26,29,126,27.1,26,27,219,25.8,26,28,345,26.3,"x","x",63,18.3,56,60,3602,31.9,45,51,3071,31.3,12,13,150,25.2,11,12,209,23.7,12,13,359,24.3,"x","x",56,18.3,40,46,3570,30.2,null,2915,79,319,40,272,46,591,43,70,14,3627,71,2889,69,303,33,225,41,528,37,61,8,3522,63,2532,62,399,35,197,33,596,34,53,"x",3222,56,null,2803,96,94,97,95,379,74,64,82,75,241,63,59,72,67,620,70,62,78,72,61,16,11,16,16,3523,89,86,92,89,null,2564,94,91,97,94,389,69,65,79,72,208,61,50,67,61,597,66,60,75,68,64,9,9,14,8,3256,87,83,91,87,null,2324,94,92,97,95,440,67,61,78,71,210,55,46,63,60,650,63,56,73,67,48,10,6,8,8,3052,85,83,90,87,null,2094,93,90,95,95,430,60,53,76,69,198,57,45,67,60,628,59,51,73,66,42,10,10,14,12,2796,83,80,89,87,null,1880,93,92,96,94,442,64,59,77,72,192,54,45,63,61,634,61,55,73,69,39,10,15,26,10,2575,84,81,89,86,null,2130,94,95,95,87,89,276,64,63,63,41,39,167,50,40,46,32,29,443,58,54,56,37,36,66,27,15,23,17,11,2652,86,86,86,77,78,null,1957,93,94,94,85,88,303,62,47,60,30,32,186,50,36,52,25,27,489,57,43,57,28,30,50,10,6,10,6,"x",2505,84,82,85,72,75,null,1892,94,92,92,85,317,59,44,58,32,140,52,36,50,28,457,57,42,55,30,66,17,12,14,8,2425,85,80,83,73,null,1712,71,336,27.4,107,20.6,443,25.7,63,7.9,2220,60.2,null,1578,69.400000000000006,321,30.5,124,23.4,445,28.5,77,11.7,2101,58.6,null,1561,67.5,317,28.4,104,23.1,421,27.1,71,9.9,2060,57.2,null,1299,60.6,643,44.9,110,"x",753,"x",72,"x",2124,51.6,null,1225,55.8,623,34.299999999999997,127,17.3,750,31.5,69,"x",2044,45.1,null,5200,4596.8,88.4,200,170.2,85.1,3.3,null,420,50,1570,2040,0.82,0.92,0.91,0.89]
[302,"Barnet",70,71,3793,36.1,24,24,181,28.6,23,24,176,27.7,24,24,357,28.2,5,5,74,21.1,64,65,4389,35.1,63,65,3821,35.1,25,25,190,28.8,24,24,181,27.7,24,25,371,28.3,"x","x",66,19.8,58,60,4414,34.1,null,3574,83,393,47,260,45,653,46,89,20,4363,76,3195,79,436,47,221,42,657,46,76,20,3995,72,3101,70,449,41,216,39,665,41,87,20,3890,64,null,3130,97,94,98,97,548,78,71,82,83,275,69,60,77,72,823,75,67,81,79,103,24,17,27,26,4091,90,86,92,91,null,2947,96,94,97,97,537,76,69,84,82,267,66,59,71,68,804,73,66,79,77,99,30,26,30,29,3911,89,86,92,91,null,2863,96,94,97,97,577,73,61,81,82,282,65,54,72,70,859,70,58,78,78,92,33,18,27,30,3847,88,84,91,90,null,2683,95,93,97,96,539,67,57,79,80,234,62,50,70,68,773,65,54,76,76,89,24,19,27,27,3576,86,82,90,90,null,2636,95,93,97,97,581,70,58,74,77,207,65,51,65,68,788,69,56,72,75,87,25,21,30,31,3534,87,83,90,90,null,2555,98,96,97,94,94,508,86,72,77,62,60,299,77,63,69,54,53,807,83,68,74,59,57,110,37,30,34,31,23,3478,93,88,90,84,83,null,2426,96,94,96,92,91,574,82,70,78,60,57,276,68,54,68,49,47,850,77,65,75,57,54,108,30,16,31,20,14,3393,89,84,89,81,79,null,2359,96,95,95,91,556,82,71,72,54,281,71,56,73,49,837,78,66,73,53,109,28,17,25,14,3311,90,85,87,79,null,2586,82.9,490,45.3,293,35.799999999999997,783,41.8,115,15.7,3485,71.5,null,2400,81.900000000000006,533,43.9,287,30.3,820,39.1,109,16.5,3330,69.2,null,2403,83.2,514,38.5,335,31,849,35.6,119,16.8,3385,68.8,null,2482,81.5,491,34.4,299,25.8,790,31.1,124,12.1,3396,67.3,null,2436,74.2,422,30.1,268,16,690,24.6,108,10.199999999999999,3236,61.4,null,6510,6230.0700000000006,95.7,270,255.14999999999998,94.5,1.2,null,860,90,2410,3350,0.84,0.81,0.95,0.92]
[303,"Bexley",77,78,2744,36.6,43,43,193,30.2,25,26,129,27.9,36,36,322,29.3,"x","x",29,20.6,72,73,3162,35.700000000000003,67,68,3008,35.299999999999997,28,30,104,29.3,17,17,112,27.4,22,23,216,28.3,"x","x",46,18.8,63,64,3334,34.5,null,2840,87,246,50,156,48,402,49,63,25,3320,81,2744,81,186,40,153,37,339,38,46,20,3147,76,2432,69,282,36,143,31,425,34,40,13,2911,63,null,2641,98,97,99,99,262,77,64,86,81,186,69,52,70,72,448,73,59,79,77,60,27,23,30,30,3160,93,90,95,94,null,2410,98,95,98,98,289,77,63,84,81,158,59,41,70,64,447,71,55,79,75,56,20,14,18,14,2927,92,87,93,92,null,2422,96,94,98,97,307,66,54,79,72,191,52,47,71,64,498,61,51,76,69,43,28,19,28,23,2974,89,86,93,91,null,2173,96,93,98,98,336,68,56,81,83,218,61,49,67,69,554,65,53,75,77,50,28,22,26,32,2780,89,84,92,92,null,2072,96,93,98,97,346,69,58,79,77,244,55,41,67,63,590,63,51,74,71,52,29,17,38,31,2719,87,83,91,90,null,2248,96,97,94,88,90,288,72,70,66,43,48,156,62,49,54,38,36,444,69,63,61,41,44,95,33,21,32,21,16,2795,89,89,87,78,80,null,2214,95,96,95,89,90,274,73,67,70,42,49,127,56,43,56,34,31,401,68,59,66,40,43,76,32,30,34,22,21,2696,89,89,89,80,81,null,2143,96,94,94,89,354,72,53,64,41,161,57,40,55,33,515,67,49,61,39,86,33,20,26,15,2750,89,83,86,77,null,2567,76.099999999999994,384,28.1,131,26,515,27.6,120,15,3203,66,null,2576,76.599999999999994,449,24.3,148,26.4,597,24.8,105,11.4,3279,65,null,2544,75.2,411,25.5,175,21.1,586,24.2,124,5.6,3260,63.3,null,2516,71,427,25.5,177,20.3,604,24,134,11.2,3254,59.8,null,2487,67.3,451,27.3,141,14.2,592,24.2,106,8.5,3187,57.3,null,5290,4893.25,92.5,290,252.01000000000002,86.9,5.5,null,590,80,2550,3210,0.86,0.88,0.94,0.92]
[304,"Brent",62,65,3188,34.799999999999997,20,23,158,27.4,17,17,206,26,18,20,364,26.6,"x","x",45,19,56,58,3779,33.5,59,61,3248,35.1,32,34,190,30.9,14,15,161,26.4,24,25,351,28.8,"x","x",65,19.5,54,56,3847,33.9,null,3141,84,320,50,233,45,553,48,68,21,3822,76,2960,82,343,57,256,48,599,53,72,15,3715,75,2931,71,353,38,245,38,598,38,84,12,3660,64,null,2958,95,94,97,95,380,81,77,84,81,288,65,59,67,66,668,74,69,77,74,86,28,26,30,26,3755,89,87,91,89,null,2843,95,94,96,95,390,81,73,85,80,285,69,62,74,70,675,76,68,80,76,71,27,18,30,24,3641,89,86,91,89,null,2606,93,91,95,91,438,75,67,82,76,306,65,57,70,62,744,71,63,77,70,96,29,25,33,33,3479,86,83,89,85,null,2550,93,91,95,92,490,70,62,80,74,263,58,46,66,63,753,66,57,75,71,91,34,26,41,35,3424,85,81,89,86,null,2433,92,88,93,91,508,64,53,71,68,231,55,49,65,62,739,61,52,69,66,73,27,26,26,27,3272,83,78,86,83,null,2453,96,94,94,90,89,379,85,79,79,63,66,304,69,60,65,48,45,683,78,71,73,56,57,107,39,25,38,30,17,3249,90,87,88,81,80,null,2237,93,93,94,89,87,416,76,73,78,61,57,260,64,56,65,46,45,676,72,66,73,55,52,110,32,22,25,20,15,3035,86,84,87,79,77,null,2042,94,93,95,90,510,82,73,76,59,295,64,52,59,41,805,75,65,70,53,119,32,22,31,19,2973,86,83,86,77,null,2340,71.900000000000006,321,33,134,21.6,455,29.7,103,5.8,2898,62.9,null,2239,69.8,341,23.5,173,16.8,514,21.2,117,12,2870,58.7,null,2205,73.900000000000006,375,23.5,135,22.2,510,23.1,114,11.4,2840,62.1,null,2106,73.599999999999994,446,23.5,173,20.8,619,22.8,108,12,2834,60.1,null,2251,67,353,19.8,91,8.8000000000000007,444,17.600000000000001,97,8.1999999999999993,2793,57.1,null,6280,5940.88,94.6,410,382.94,93.4,1.2,null,560,70,2160,2800,0.83,0.88,0.92,0.9]
[305,"Bromley",71,72,3448,35.200000000000003,30,30,146,29.2,14,14,121,25.9,23,23,267,27.7,"x","x",78,19.2,66,67,3930,34.4,65,66,3535,34.299999999999997,14,14,138,26.3,7,7,134,25.8,11,11,272,26,"x","x",71,18.5,60,61,4012,33.5,null,3339,88,230,57,224,42,454,49,89,22,3903,82,3239,82,215,36,189,41,404,38,82,17,3743,75,3005,67,206,22,170,26,376,24,88,16,3492,61,null,3095,98,96,98,98,284,75,61,81,78,230,61,50,70,70,514,69,56,76,75,87,25,18,28,25,3715,92,89,94,93,null,2900,97,94,98,97,267,71,60,78,78,223,54,44,59,57,490,63,53,70,68,91,36,27,41,36,3492,91,87,92,91,null,2804,97,94,98,97,342,63,46,73,71,211,51,41,61,65,553,58,44,68,69,112,29,26,30,30,3476,88,83,91,90,null,2774,96,93,97,98,336,61,49,74,77,240,43,34,55,60,576,54,43,66,70,89,40,27,37,33,3451,87,83,91,91,null,2714,95,93,97,97,326,62,50,73,75,209,38,28,55,55,535,53,42,66,67,101,30,23,36,27,3368,86,82,90,90,null,2608,98,97,97,91,94,317,84,68,78,53,57,232,72,54,71,47,48,549,79,62,75,51,53,146,46,32,45,27,28,3307,92,88,91,82,84,null,2462,97,95,96,90,91,288,77,64,75,50,52,227,57,40,52,33,31,515,68,53,65,43,43,148,41,33,41,31,28,3127,89,86,88,79,80,null,2490,97,96,95,91,330,79,58,65,45,232,59,38,59,29,562,71,50,63,38,141,35,27,37,23,3197,90,85,86,79,null,2757,84.6,265,35.5,230,31.3,495,33.5,166,17.5,3418,73.900000000000006,null,2635,78.900000000000006,318,40.299999999999997,243,28,561,34.9,136,14,3332,68.900000000000006,null,2710,79.2,320,27.8,261,16.5,581,22.7,139,17.3,3438,67.2,null,2697,76.8,321,25.2,260,19.600000000000001,581,22.7,138,15.9,3416,65.099999999999994,null,2832,73.599999999999994,273,21.6,254,13,527,17.5,150,12.7,3509,62.6,null,6950,6185.5,89,260,229.58,88.3,0.7,null,580,80,2720,3380,0.81,0.86,0.94,0.91]
[306,"Croydon",59,62,4172,33.200000000000003,19,24,217,27,12,16,234,25.3,16,20,451,26.1,4,4,84,18.3,53,57,4898,32.299999999999997,48,51,4208,32.4,10,13,242,25.4,11,11,262,25,11,12,504,25.2,"x","x",76,17.600000000000001,42,46,4883,31.3,null,4013,83,387,44,350,45,737,45,90,17,4886,75,3829,79,366,43,298,39,664,42,101,11,4651,71,3498,71,438,32,328,32,766,32,46,9,4338,63,null,3722,96,94,97,96,443,70,58,76,72,322,62,51,70,61,765,67,55,73,67,118,19,15,28,19,4640,89,85,91,89,null,3469,96,94,98,96,460,72,60,79,79,314,67,56,73,72,774,70,58,76,76,70,19,16,19,17,4350,90,86,92,91,null,3273,95,92,97,97,588,73,62,76,79,350,62,49,66,64,938,69,57,72,73,76,21,17,24,14,4315,88,83,90,90,null,3006,94,90,96,96,612,66,55,74,75,354,57,49,66,66,966,63,53,71,72,97,19,13,18,11,4104,84,79,88,88,null,2857,94,91,96,95,639,66,54,74,78,352,58,49,68,64,991,63,53,72,73,74,20,15,20,15,3943,85,79,89,88,null,2923,95,94,92,89,88,440,68,58,62,43,42,363,63,47,55,38,36,803,66,53,59,41,39,142,32,20,23,20,14,3876,87,83,82,77,75,null,2754,96,94,94,90,88,531,66,54,63,43,38,332,58,46,57,40,34,863,63,51,60,42,37,99,36,20,27,21,13,3728,87,82,84,77,74,null,2694,96,94,93,88,594,71,57,62,42,343,57,39,51,30,937,66,51,58,38,103,32,21,28,16,3741,86,81,83,74,null,2789,75.599999999999994,439,40.799999999999997,390,30.8,829,36.1,147,11.6,3765,64.400000000000006,null,2709,73.5,462,37.700000000000003,353,24.9,815,32.1,113,9.6999999999999993,3637,62.2,null,2828,71.5,432,35.4,330,24.8,762,30.8,119,5,3719,61,null,2828,63.3,437,30.4,321,24.3,758,27.8,107,6.5,3694,54.4,null,2848,61.3,443,21.9,256,17.600000000000001,699,20.3,104,4.8,3651,51.9,null,9610,7909.03,82.3,190,157.69999999999999,83,-0.7,null,790,50,2810,3650,0.81,0.9,0.92,0.9]
[307,"Ealing",67,70,4016,35.799999999999997,32,34,163,29.7,23,23,204,27.9,27,28,367,28.7,"x","x",78,18.3,62,64,4610,34.9,59,61,4128,34.799999999999997,24,26,119,27.5,15,16,219,26.8,18,20,338,27,"x","x",71,19,54,56,4711,33.9,null,3917,84,269,52,297,43,566,48,97,16,4641,78,3626,78,283,46,250,39,533,43,104,14,4316,72,3442,70,325,36,231,32,556,34,86,15,4137,63,null,3539,96,94,98,95,336,79,71,85,81,294,64,54,72,64,630,72,63,79,73,122,22,19,22,21,4336,90,87,92,89,null,3374,95,93,97,94,355,75,66,82,75,272,61,50,66,58,627,69,59,75,68,92,22,18,23,21,4125,89,86,91,88,null,3225,94,90,96,94,394,74,59,77,71,282,50,38,56,54,676,64,50,68,64,97,26,15,26,24,4032,87,81,90,87,null,2839,93,90,96,93,448,67,52,77,67,255,55,42,60,57,703,63,49,71,63,89,26,19,30,24,3671,85,79,89,85,null,2763,92,88,95,93,489,67,55,77,73,255,50,40,56,56,744,61,50,70,67,88,14,11,15,14,3638,83,78,87,85,null,2812,96,95,96,92,91,368,77,74,77,56,58,287,62,47,60,41,36,655,70,62,70,49,48,104,17,12,19,13,10,3583,89,87,89,81,81,null,2550,94,95,95,91,89,381,75,66,71,56,48,313,59,47,59,35,33,694,68,57,66,46,41,109,32,25,29,18,19,3363,87,85,86,79,77,null,2541,94,93,95,88,414,75,65,73,50,299,60,43,55,31,713,68,56,66,42,97,24,13,19,12,3361,87,82,86,76,null,2088,73.099999999999994,415,37.799999999999997,272,23.5,687,32.200000000000003,105,6.7,2880,60.9,null,2078,69.900000000000006,392,32.700000000000003,289,22.1,681,28.2,98,5.0999999999999996,2857,57.7,null,1959,71.3,403,30,350,22.9,753,26.7,93,14,2811,57.3,null,1909,72.599999999999994,463,38.700000000000003,367,24.8,830,32.5,107,15,2847,58.7,null,1900,69,488,28.3,297,17.5,785,24.2,108,5.6,2793,54,null,6750,6493.5000000000009,96.2,220,206.14000000000001,93.7,2.6,null,760,50,1960,2760,0.85,0.85,0.95,0.92]
[308,"Enfield",60,62,4088,34.700000000000003,25,27,232,28.5,9,10,145,23.8,19,21,377,26.7,"x","x",33,18.3,56,58,4616,33.9,51,54,4104,34.1,11,12,320,26.7,13,14,203,25,11,13,523,26,"x","x",38,18.7,46,49,4739,33,null,3914,80,465,49,269,36,734,45,65,9,4754,73,3600,74,487,40,275,38,762,39,52,17,4455,67,3458,63,470,35,302,31,772,33,43,14,4308,57,null,3597,94,93,97,95,473,75,67,83,79,327,58,49,66,60,800,68,60,76,71,82,13,11,18,16,4512,88,85,91,89,null,3370,94,92,96,94,542,71,63,80,71,341,53,42,60,54,883,64,55,72,65,64,23,13,19,16,4345,86,83,89,87,null,3119,93,90,94,94,620,68,60,76,75,315,60,52,67,63,935,65,57,73,71,72,14,13,13,15,4148,85,81,88,87,null,3034,92,89,94,93,556,68,57,74,73,320,55,43,63,58,876,64,52,70,68,77,10,6,13,16,4000,84,79,87,86,null,2763,91,88,94,94,654,65,56,75,74,309,50,41,58,58,963,60,51,69,69,54,13,9,17,15,3810,81,77,86,86,null,2895,94,94,94,89,88,512,76,72,70,52,54,270,57,51,57,39,38,782,70,65,65,47,48,108,26,19,22,17,11,3789,87,86,86,78,78,null,2752,93,93,93,87,87,602,68,66,69,48,49,253,61,53,62,49,43,855,66,62,67,48,47,87,21,20,22,18,14,3703,85,84,85,77,76,null,2749,93,92,93,85,571,69,58,68,45,245,67,49,61,40,816,68,55,66,44,95,36,24,33,21,3666,86,82,85,74,null,2906,74,523,33.700000000000003,252,21,775,29.5,105,11.4,3786,63.2,null,2609,69.7,633,26.7,348,18.399999999999999,981,23.8,122,6.6,3712,55.5,null,2532,73.900000000000006,611,29,290,19,901,25.7,123,8.1,3563,59.5,null,2490,70.3,657,26,360,19.399999999999999,1017,23.7,119,10.9,3626,55.3,null,2495,64.400000000000006,714,24.2,302,14.6,1016,21.4,111,2.7,3622,50.4,null,7920,7326,92.5,210,193.82999999999998,92.3,0.2,null,900,90,2540,3520,0.82,0.81,0.94,0.91]
[309,"Haringey",65,67,2717,34.4,27,28,142,28.1,23,26,196,27.4,25,27,338,27.6,"x","x",42,19.100000000000001,59,61,3165,33.4,50,55,2858,32.9,15,18,115,26.8,17,21,175,26.3,16,20,290,26.5,"x","x",40,18.899999999999999,46,50,3266,32.1,null,2723,80,225,46,195,44,420,45,57,11,3235,74,2646,74,265,38,190,36,455,37,53,15,3198,67,2425,63,239,31,225,33,464,32,48,10,2981,56,null,2568,95,93,97,95,311,77,67,83,77,202,59,52,66,62,513,70,61,76,71,64,27,16,22,22,3177,89,86,91,89,null,2369,93,91,96,93,297,72,64,79,73,211,60,53,65,63,508,67,59,73,69,58,29,21,24,22,2959,87,84,90,87,null,2334,91,87,93,91,345,67,56,73,70,208,56,47,64,61,553,63,53,70,66,68,29,26,26,29,2979,84,79,87,85,null,2188,91,88,94,92,482,60,51,73,68,233,55,46,64,63,715,58,49,70,66,69,16,12,20,16,2991,81,77,87,84,null,2112,90,86,93,91,509,57,50,70,66,200,53,38,61,62,709,56,46,68,65,72,22,15,26,26,2912,80,74,85,83,null,2043,96,96,95,90,91,411,75,70,73,52,54,193,66,52,59,46,44,604,72,64,68,50,50,105,27,14,26,12,12,2754,88,86,87,78,79,null,1954,92,94,93,89,88,373,63,60,65,45,43,198,54,40,56,40,33,571,60,53,62,43,40,90,34,23,29,22,19,2624,83,83,84,76,75,null,1826,94,94,93,88,431,71,61,65,46,200,57,40,54,31,631,66,54,61,41,80,29,16,19,14,2542,85,81,83,74,null,1390,74.8,469,48.4,230,44.8,699,47.2,94,17,2183,63.5,null,1402,69,388,44.8,268,37.700000000000003,656,41.9,89,16.899999999999999,2147,58.6,null,1438,68,387,37.200000000000003,202,39.1,589,37.9,74,6.8,2107,57.3,null,1380,60.6,440,28.4,216,25.9,656,27.6,100,8,2138,48,null,1418,60.8,441,17.2,198,22.2,639,18.8,103,5.8,2160,45.7,null,5390,4824.05,89.5,190,173.28,91.2,-1.7,null,590,50,1440,2080,0.87,0.83,0.91,0.9]
[310,"Harrow",63,67,2709,34.799999999999997,24,26,120,27.3,19,19,135,26,22,22,255,26.6,"x",6,51,19.600000000000001,58,61,3125,33.700000000000003,44,48,2643,33,6,13,69,26.3,15,15,110,25,11,14,179,25.5,"x","x",44,21.1,41,45,2987,32.200000000000003,null,2485,88,240,55,137,47,377,53,52,23,2957,82,2392,84,213,52,132,51,345,51,56,21,2841,78,2228,71,242,31,164,23,406,28,55,20,2733,63,null,2360,97,96,99,97,259,84,76,89,79,158,74,63,80,73,417,80,71,85,77,58,29,29,38,34,2871,92,90,95,92,null,2225,96,94,98,94,264,79,70,86,77,158,58,55,72,59,422,71,64,81,71,65,26,26,32,25,2753,90,87,93,88,null,2137,95,94,97,95,293,79,72,87,80,153,62,52,65,57,446,73,65,79,72,73,29,27,30,30,2678,89,87,92,89,null,1922,96,95,97,95,337,75,66,85,76,165,52,41,59,53,502,67,58,76,68,67,42,39,42,34,2513,88,86,91,88,null,1921,94,93,97,96,321,66,60,78,78,150,49,44,61,61,471,61,55,72,72,71,32,27,34,32,2481,86,84,90,89,null,2020,98,96,97,95,94,243,85,70,79,60,59,162,70,46,59,44,29,405,79,60,71,54,47,92,28,26,28,24,19,2522,92,88,90,86,83,null,1881,96,95,95,91,90,247,70,68,71,57,50,153,68,57,63,39,41,400,69,64,68,51,47,88,24,25,20,20,15,2378,88,87,88,81,79,null,1776,96,95,96,90,289,80,64,73,53,158,61,48,58,37,447,73,58,67,47,76,28,21,29,16,2304,90,85,88,79,null,1613,77.7,283,31.1,175,34.299999999999997,458,32.299999999999997,81,7.4,2152,65.400000000000006,null,1521,76.599999999999994,330,34.200000000000003,196,32.1,526,33.5,66,4.5,2113,63.6,null,1536,79,266,37.200000000000003,260,23.5,526,30.4,74,10.8,2141,64.599999999999994,null,1558,73.7,248,33.1,282,27,530,29.8,77,9.1,2165,60.7,null,1554,75.5,287,27.5,229,22.7,516,25.4,85,7.1,2155,60.8,null,5000,4880,97.6,130,122.07000000000001,93.9,3.7,null,530,40,1540,2100,0.86,0.94,0.96,0.94]
[311,"Havering",69,71,2738,34.4,32,33,109,30.4,17,21,111,26.8,25,27,220,28.6,"x","x",48,21.1,64,66,3071,33.700000000000003,62,64,2596,33,20,21,151,28.5,11,11,132,26.3,16,16,283,27.5,"x","x",32,20.8,57,59,2969,32.299999999999997,null,2597,83,185,38,156,37,341,37,53,19,3012,76,2457,75,220,35,153,30,373,33,47,9,2893,69,2313,64,182,20,187,30,369,25,12,"x",2702,58,null,2470,97,95,98,97,228,63,55,79,71,177,64,54,68,72,405,63,54,74,71,58,19,7,26,33,2943,91,88,93,92,null,2274,97,95,98,98,222,63,55,77,77,192,67,58,73,72,414,65,57,75,75,20,"x","x",15,"x",2717,92,88,94,94,null,2289,97,96,99,98,261,62,55,71,70,183,56,49,73,69,444,59,52,72,70,17,"x","x",18,"x",2757,91,88,94,93,null,2176,96,94,98,98,322,62,55,77,76,139,50,45,55,61,461,59,52,71,71,23,"x","x","x","x",2666,89,86,92,92,null,2074,97,94,98,98,375,65,60,81,83,137,38,31,58,64,512,58,52,75,78,21,"x","x","x",19,2619,88,85,93,93,null,2240,97,97,96,90,93,214,69,56,69,39,40,173,62,45,57,33,36,387,66,51,64,36,38,60,32,32,37,25,27,2690,91,89,90,81,83,null,1994,96,96,96,89,91,254,70,62,66,45,40,213,52,39,56,29,27,467,62,51,61,37,34,45,22,22,24,18,16,2511,88,86,88,78,79,null,2058,97,94,95,90,308,72,54,59,37,188,53,35,48,25,496,65,46,55,32,"x","x","x",18,"x",2600,89,84,86,77,null,2742,68.7,139,24.5,99,18.2,238,21.8,66,7.6,3046,63.7,null,2657,67.7,188,17,100,19,288,17.7,73,11,3019,61.5,null,2664,70.400000000000006,211,26.5,114,24.6,325,25.8,90,8.9,3080,63.9,null,2616,68.7,265,37,120,17.5,385,30.9,80,3.8,3083,62.3,null,2595,65.3,228,18,116,16.399999999999999,344,17.399999999999999,85,3.5,3024,58.1,null,5580,5144.76,92.2,210,184.17,87.7,4.5,null,330,60,2660,3050,0.86,0.91,0.91,0.9]
[312,"Hillingdon",56,59,3547,33.9,20,21,248,27.7,12,14,263,25.3,16,17,511,26.4,6,6,64,20,50,52,4258,32.700000000000003,42,46,3449,31.8,11,14,241,26.4,9,11,224,25.2,10,12,465,25.8,"x","x",51,19.7,38,41,4080,30.9,null,3328,84,336,50,287,47,623,48,76,13,4074,77,2982,79,396,43,261,43,657,43,67,15,3752,71,2881,65,423,27,234,32,657,28,64,9,3642,57,null,3026,97,94,98,96,343,75,64,84,75,259,64,56,69,65,602,70,60,77,71,98,28,22,32,26,3759,91,87,93,90,null,2858,97,94,98,96,456,74,59,79,80,241,70,58,73,71,697,73,59,77,76,87,30,22,36,31,3664,91,85,92,90,null,2718,96,93,98,96,456,67,53,78,71,217,63,46,70,62,673,66,51,75,68,84,19,10,30,19,3492,88,83,91,88,null,2432,96,94,98,97,538,68,52,72,70,181,51,40,63,64,719,64,49,70,68,90,29,17,22,26,3267,86,81,89,88,null,2430,95,93,97,96,557,57,47,72,66,186,50,38,55,60,743,55,45,68,64,57,23,19,30,25,3258,84,80,89,87,null,2557,97,96,96,92,91,345,76,63,68,46,47,215,65,46,64,43,40,560,71,56,66,45,44,101,28,15,20,18,11,3224,90,86,89,81,81,null,2331,96,95,96,91,91,390,69,59,67,43,41,197,58,45,56,39,30,587,66,54,64,42,37,102,25,22,29,23,16,3031,87,85,87,79,78,null,2289,96,94,95,89,463,68,58,68,44,201,57,31,55,27,664,64,50,64,39,88,23,17,15,8,3048,87,82,86,76,null,2418,71.099999999999994,325,29.2,165,23.6,490,27.3,115,9.6,3023,61.6,null,2276,70.599999999999994,438,36.5,145,17.899999999999999,583,31.9,88,6.8,2947,61,null,2276,69.400000000000006,411,36.5,199,19.600000000000001,610,31,93,3.2,2982,59.5,null,2120,70.099999999999994,581,24.6,242,24,823,24.4,92,6.5,3035,55.8,null,2110,64.599999999999994,513,22.4,197,17.8,710,21.1,99,6.1,2919,52,null,6000,5712,95.2,180,160.38,89.1,6.1,null,610,50,2280,2940,0.81,0.81,0.9,0.88]
[313,"Hounslow",60,64,2910,33.700000000000003,24,26,200,28,20,22,133,26,22,24,333,27.2,"x","x",52,19.2,55,58,3423,32.700000000000003,40,45,3047,30.9,9,13,213,24.9,7,10,135,24.1,8,12,348,24.6,"x","x",43,18.899999999999999,35,40,3586,30,null,2858,87,330,57,221,47,551,53,51,20,3503,80,2546,81,297,42,190,38,487,40,72,15,3140,73,2353,67,393,28,161,28,554,28,54,9,2994,59,null,2446,97,97,99,98,336,88,82,93,86,222,68,57,77,69,558,80,72,87,79,89,29,22,37,31,3117,92,90,95,92,null,2278,97,96,99,97,364,84,74,90,86,246,67,59,77,74,610,78,68,85,81,68,22,19,22,21,2989,90,88,94,92,null,2049,96,94,98,97,403,79,70,86,89,228,57,45,66,64,631,71,61,79,80,79,19,18,23,22,2783,88,84,91,91,null,2006,96,94,98,97,416,73,63,86,81,231,53,40,66,64,647,66,55,79,75,58,19,14,28,28,2738,86,82,92,90,null,1816,96,94,98,96,387,70,64,83,82,219,50,39,62,64,606,63,55,75,75,64,22,22,23,20,2501,86,83,90,89,null,1809,98,98,98,94,95,280,85,80,81,63,65,235,71,54,65,43,44,515,78,68,74,53,56,104,31,19,30,22,17,2436,91,88,90,82,83,null,1677,96,96,96,91,91,326,76,75,73,53,55,247,62,51,57,37,39,573,70,65,66,46,48,98,22,15,23,15,13,2354,86,85,86,77,77,null,1677,97,95,96,91,323,80,66,71,51,242,61,36,50,26,565,72,53,62,40,100,25,12,16,9,2349,88,81,84,75,null,2076,76.599999999999994,357,39.799999999999997,203,30.5,560,36.4,67,13.4,2703,66.7,null,1878,71.5,362,40.299999999999997,209,25.4,571,34.9,51,7.8,2500,61.8,null,1998,73.5,338,33.4,194,15.5,532,26.9,54,7.4,2586,62.5,null,1902,72.599999999999994,433,30.7,215,13,648,24.8,84,4.8,2634,58.7,null,1819,70.400000000000006,471,29.3,163,8.6,634,24,89,7.9,2542,56.6,null,5270,4985.42,94.6,160,142.4,89,5.6,null,550,40,1980,2570,0.86,0.83,0.94,0.92]
[314,"Kingston upon Thames",69,70,1817,36,18,20,66,28.7,14,16,83,24.7,16,17,149,26.5,"x","x",23,19.8,64,65,2057,35,61,61,1799,35.200000000000003,19,19,81,29.6,9,9,78,24.4,14,14,159,27.1,"x","x",24,19.399999999999999,56,57,2057,34.4,null,1742,85,119,45,107,50,226,47,29,17,2016,79,1556,78,127,40,102,36,229,38,33,21,1836,72,1433,70,116,34,106,27,222,31,28,"x",1698,63,null,1562,97,95,98,98,143,78,66,87,89,115,70,61,79,77,258,74,64,84,83,46,30,15,30,28,1878,92,89,94,94,null,1413,97,96,98,97,134,74,65,81,77,103,62,54,79,67,237,69,60,80,73,33,33,27,27,24,1703,91,89,94,92,null,1480,96,95,98,97,145,70,59,77,81,113,58,42,69,67,258,65,51,73,75,35,29,17,23,"x",1783,90,87,93,92,null,1414,96,94,98,98,149,74,67,85,87,109,52,42,55,65,258,65,57,72,78,36,44,33,42,36,1723,90,86,92,93,null,1217,96,95,98,97,157,76,63,84,86,104,52,38,56,64,261,66,53,73,77,32,"x","x","x",34,1527,89,86,92,92,null,1207,97,98,96,92,93,126,87,71,72,53,55,94,73,60,63,37,44,220,81,66,68,46,50,53,36,23,36,26,21,1484,93,90,90,83,84,null,1155,97,96,96,92,92,149,79,66,74,49,51,80,59,46,61,36,31,229,72,59,69,45,44,41,27,15,29,17,15,1429,91,88,90,82,82,null,1197,97,94,96,91,124,76,63,69,50,105,50,35,50,25,229,64,50,61,38,"x","x",16,29,14,1476,90,85,88,80,null,1351,77.8,97,42.3,65,38.5,162,40.700000000000003,66,19.7,1579,71.599999999999994,null,1278,78.099999999999994,118,40.700000000000003,60,31.7,178,37.6,70,5.7,1526,70.099999999999994,null,1273,80,113,31,69,27.5,182,29.7,67,13.4,1524,71.099999999999994,null,1208,77.599999999999994,146,30.1,52,"x",198,"x",49,"x",1455,68.7,null,1223,78.599999999999994,120,34.200000000000003,91,11,211,24.2,53,"x",1487,68.2,null,3030,2784.57,91.9,80,78,97.5,-5.6,null,180,30,1280,1490,0.83,0.91,0.93,0.92]
[315,"Merton",63,65,2276,33.200000000000003,16,18,142,25.7,6,8,66,21.2,13,15,208,24.3,"x","x",33,18.3,58,60,2613,32.200000000000003,47,50,2336,32.700000000000003,"x","x",138,24.3,"x","x",72,21.5,8,9,210,23.4,"x","x",33,18.8,42,46,2713,31.7,null,2150,83,243,44,102,31,345,40,47,19,2571,76,2214,74,226,35,105,33,331,34,48,15,2619,68,1983,62,206,24,73,27,279,25,33,"x",2320,57,null,2109,96,93,97,96,257,67,49,74,68,113,50,40,60,55,370,62,46,69,64,37,30,19,41,38,2539,89,84,92,90,null,1881,95,91,96,96,252,57,42,68,73,110,39,32,49,61,362,51,39,62,69,27,"x","x",44,"x",2288,87,81,90,90,null,1836,95,90,96,97,237,57,43,67,76,90,39,32,51,57,327,52,40,63,71,41,22,12,24,32,2222,86,81,89,91,null,1728,93,90,96,94,249,48,37,64,69,90,37,26,49,51,339,45,34,60,64,26,"x","x","x","x",2112,84,80,89,88,null,1518,93,89,96,96,239,53,39,67,66,111,48,32,55,46,350,51,37,63,60,38,34,18,37,32,1925,83,77,89,88,null,1434,97,95,95,91,90,197,78,67,75,49,49,110,55,35,44,28,24,307,70,55,64,42,40,43,44,23,37,28,23,1789,91,86,88,81,79,null,1405,96,96,95,93,90,226,74,52,60,39,38,115,52,32,43,19,25,341,67,45,55,32,34,27,52,41,44,44,"x",1779,90,85,86,80,78,null,1412,96,93,94,88,244,72,56,61,41,103,56,41,41,29,347,67,51,55,37,62,24,"x",21,"x",1824,88,82,84,76,null,1242,72.3,176,39.200000000000003,97,23.7,273,33.700000000000003,85,14.1,1600,62.6,null,1159,69.8,179,30.7,136,31.6,315,31.1,73,9.6,1547,59.1,null,1158,70.099999999999994,191,28.8,123,32.5,314,30.3,51,9.8000000000000007,1525,59.8,null,1194,63.4,165,20,139,19.399999999999999,304,19.7,68,4.4000000000000004,1566,52.4,null,1226,58.3,155,14.8,102,6.9,257,11.7,78,6.4,1561,48,null,3690,3479.6699999999996,94.3,170,151.97999999999999,89.4,4.9000000000000004,null,310,30,1160,1500,0.82,0.8,0.92,0.9]
[316,"Newham",68,71,4214,35.9,33,36,222,29.5,20,21,272,25.7,26,27,494,27.4,"x","x",3,27,63,65,4834,34.799999999999997,56,60,4342,34.5,24,27,217,28.1,15,16,276,24.5,19,21,493,26.1,"x","x",3,20,51,55,4964,33.4,null,4134,87,487,59,318,43,805,53,6,0,5019,80,4061,82,351,49,293,37,644,43,5,"x",4781,76,3712,68,416,39,264,31,680,36,"x","x",4471,62,null,3855,95,93,96,94,527,78,70,82,75,318,53,49,53,53,845,68,62,71,67,11,27,"x","x","x",4786,90,86,91,88,null,3550,94,92,96,94,553,72,65,77,72,295,53,46,54,52,848,65,59,69,65,12,"x","x","x","x",4467,88,85,90,87,null,3527,92,90,95,93,577,65,57,75,65,297,55,50,61,55,874,61,54,70,61,7,"x","x",43,"x",4467,85,82,90,86,null,3166,91,88,93,91,592,67,60,76,72,292,49,39,56,51,884,61,53,70,65,"x","x","x","x","x",4114,83,79,87,85,null,3043,90,88,94,93,626,62,52,74,74,307,44,38,49,51,933,56,48,65,67,13,"x","x","x","x",4040,81,77,87,86,null,3099,96,96,96,92,92,552,83,76,81,65,63,350,59,47,56,40,39,902,74,65,71,55,54,32,28,19,19,16,13,4045,90,88,90,83,82,null,2960,93,93,95,89,88,513,76,74,76,59,60,306,54,43,49,38,34,819,68,62,66,51,50,29,24,14,21,17,14,3823,86,86,88,80,79,null,2727,94,93,94,88,601,70,60,66,46,315,51,40,49,30,916,64,53,60,40,40,20,18,18,15,3690,86,83,85,75,null,2490,69.400000000000006,640,35.5,301,"x",941,"x",37,"x",3468,58.4,null,2231,72.3,855,50.9,335,27.2,1190,44.2,39,12.8,3461,61.9,null,2092,71.5,787,43.8,352,23,1139,37.4,64,7.8,3311,58.5,null,2020,67.3,1022,33.299999999999997,229,15.3,1251,30,60,5,3331,52.1,null,2154,60,899,30,267,12.7,1166,26.1,81,7.4,3401,47.1,null,7460,7042.2400000000007,94.4,210,190.05,90.5,3.9,null,1150,50,2090,3300,0.86,0.92,0.94,0.91]
[317,"Redbridge",66,69,3595,36.700000000000003,16,20,99,28.7,8,8,107,24.1,12,14,206,26.3,"x","x",65,19.7,61,64,4091,35.700000000000003,61,65,3637,36,16,18,105,28.4,9,11,134,25.5,12,14,239,26.8,"x","x",59,19.8,57,60,4136,35.1,null,3529,80,221,34,164,39,385,36,87,8,4078,73,3401,73,254,38,149,33,403,36,80,8,3938,67,3256,61,259,19,157,15,416,18,60,7,3773,55,null,3314,96,95,97,95,328,79,71,83,74,177,60,49,63,55,505,73,64,76,68,93,17,15,19,13,3956,91,88,92,89,null,3128,96,94,97,96,347,75,66,78,76,188,52,38,56,51,535,67,56,70,67,73,29,26,32,27,3782,90,87,92,90,null,3004,95,93,97,95,350,70,64,79,75,172,53,45,59,58,522,65,57,72,69,56,21,13,18,16,3618,89,86,92,90,null,2868,95,93,97,95,462,72,62,80,78,173,50,42,55,60,635,66,57,73,73,63,19,13,25,29,3592,88,84,91,90,null,2738,94,92,96,94,460,68,55,78,73,188,59,48,68,61,648,66,53,75,69,59,31,29,34,27,3489,87,83,91,88,null,2946,98,97,97,92,94,341,82,80,79,57,66,170,66,53,56,42,38,511,77,71,71,52,56,108,33,32,31,24,24,3571,93,91,91,84,86,null,2769,93,95,94,90,88,304,68,67,70,50,47,179,50,41,47,34,25,483,62,57,61,44,39,122,37,25,34,26,17,3384,87,87,87,81,78,null,2548,95,95,94,89,378,68,63,64,43,221,60,49,54,37,599,65,58,60,41,118,28,21,28,16,3272,87,85,85,77,null,2728,79.7,337,39.799999999999997,235,31.9,572,36.5,119,14.3,3419,70.2,null,2670,79.099999999999994,373,45.6,164,25.6,537,39.5,105,11.4,3313,70.599999999999994,null,2647,78.400000000000006,351,32.799999999999997,142,17.600000000000001,493,28.4,109,11,3256,68.5,null,2575,79.099999999999994,363,36.1,161,24.8,524,32.6,104,12.5,3207,69.3,null,2678,74.099999999999994,294,25.5,142,13.4,436,21.6,127,8.6999999999999993,3241,64.5,null,6640,6341.2,95.5,360,322.92,89.7,5.8,null,490,70,2660,3220,0.87,0.91,0.94,0.93]
[318,"Richmond upon Thames",67,68,2300,35.700000000000003,5,5,56,27.7,18,18,40,27,10,10,96,27.4,"x","x",36,20.100000000000001,63,64,2629,35.1,42,44,2274,32.1,"x","x",57,26,"x","x",39,24.1,13,13,96,25.2,"x","x",24,19.7,41,43,2577,31.8,null,2185,87,108,40,59,56,167,46,44,34,2415,82,2089,82,78,38,57,46,135,41,37,22,2293,79,1967,70,106,24,48,23,154,23,32,16,2168,65,null,1998,98,97,99,99,138,75,59,85,81,75,65,53,72,71,213,71,57,80,77,48,54,35,50,50,2276,95,92,96,95,null,1890,98,96,99,98,144,69,58,74,83,77,55,47,70,75,221,64,54,73,80,36,36,25,36,39,2160,93,90,95,95,null,1835,97,96,98,99,137,71,64,82,85,67,54,42,70,69,204,65,56,78,80,40,"x","x",35,33,2092,92,90,95,95,null,1704,96,95,98,99,141,62,56,74,83,63,49,35,59,60,204,58,50,69,76,32,38,25,38,47,1951,91,89,94,96,null,1729,97,95,98,97,116,69,55,76,83,53,42,25,53,53,169,60,46,69,73,33,39,30,45,55,1949,92,90,94,94,null,1540,99,98,98,96,96,160,90,76,69,61,58,65,77,54,71,45,42,225,86,70,70,56,53,80,44,29,40,20,18,1848,95,92,92,87,87,null,1372,98,97,97,94,94,152,82,78,75,57,57,77,73,49,71,47,36,229,79,68,74,53,50,77,44,27,42,27,25,1690,93,90,91,85,85,null,1439,99,97,98,95,145,81,66,75,56,69,77,54,72,48,214,80,62,74,53,68,46,25,40,22,1722,94,90,93,87,null,1006,80.900000000000006,171,35.700000000000003,75,25.3,246,32.5,68,10.3,1322,68.3,null,999,73.8,159,24.5,47,29.8,206,25.7,73,13.7,1278,62.6,null,1028,75.400000000000006,205,37.1,73,19.2,278,32.4,68,5.9,1374,63.2,null,990,74.3,212,30.7,72,13.9,284,26.4,54,9.3000000000000007,1328,61.4,null,1010,70,233,27.9,96,9.4,329,22.5,68,4.4000000000000004,1407,55.7,null,2410,2188.2799999999997,90.8,110,91.3,83,7.8,null,280,40,1030,1340,0.85,0.72,0.89,0.87]
[319,"Sutton",62,63,2317,36.299999999999997,21,21,57,27.8,18,19,72,26.9,19,20,129,27.3,"x","x",45,19.5,58,60,2524,35.4,42,44,2150,33.4,10,14,77,26.2,7,7,76,25.1,8,10,153,25.7,"x","x",41,18.899999999999999,39,41,2387,32.700000000000003,null,2033,86,199,40,95,39,294,40,47,17,2383,79,1929,85,168,42,107,36,275,39,42,14,2257,78,1730,74,237,26,70,23,307,25,34,15,2083,65,null,1885,99,97,99,98,206,78,69,81,74,115,71,54,77,71,321,75,64,79,73,38,26,26,33,15,2256,94,90,95,93,null,1682,98,95,99,98,265,75,61,86,80,100,51,33,65,54,365,68,53,80,73,37,35,30,27,30,2088,91,87,94,92,null,1626,97,95,98,98,221,77,64,86,84,129,52,38,64,64,350,68,55,78,76,49,31,31,31,22,2034,90,86,93,92,null,1577,98,96,99,98,229,67,57,78,78,136,57,44,63,68,365,63,52,72,74,53,28,19,28,28,2007,89,86,92,92,null,1554,96,94,98,96,191,70,63,82,76,114,41,36,54,54,305,59,53,72,68,57,18,16,25,18,1926,88,85,91,89,null,1555,99,98,98,94,96,183,87,77,78,59,62,144,72,58,65,44,50,327,80,68,72,52,57,50,36,22,38,28,16,1936,94,91,92,85,87,null,1405,97,96,97,93,93,210,79,67,77,54,51,152,64,48,67,32,34,362,73,59,73,45,44,55,42,26,35,27,23,1828,91,86,90,82,81,null,1461,98,96,98,94,217,84,66,74,51,144,58,36,55,26,361,74,54,66,41,68,34,22,32,18,1895,91,85,89,81,null,2185,87.9,254,39.4,159,27.7,413,34.9,95,10.5,2693,77,null,2120,86.7,253,34.799999999999997,158,29.7,411,32.799999999999997,91,18.7,2622,75.900000000000006,null,2124,86,265,32.1,145,28.3,410,30.7,99,14.1,2636,74.7,null,2133,82,262,28.2,162,22.2,424,25.9,93,10.8,2651,70.599999999999994,null,2103,79.5,230,23.9,153,19.600000000000001,383,22.2,109,5.5,2595,67.900000000000006,null,4600,4273.4000000000005,92.9,170,148.58000000000001,87.4,5.5,null,410,60,2130,2590,0.85,0.89,0.95,0.93]
[320,"Waltham Forest",67,70,3106,35.4,41,44,273,30.6,24,25,173,26.7,35,37,446,29.1,6,6,72,19.399999999999999,61,63,3724,34.1,58,62,3118,34.6,32,35,275,29.5,21,24,184,27.7,27,30,459,28.8,"x","x",62,18.2,52,56,3747,33.4,null,2976,80,363,51,218,52,581,51,75,17,3679,73,2833,78,391,50,271,39,662,45,72,19,3600,70,2598,69,432,41,286,33,718,38,65,8,3414,61,null,2754,96,93,97,96,412,81,76,89,86,262,69,61,73,73,674,76,70,83,81,92,26,21,24,23,3550,90,86,92,91,null,2544,94,93,96,95,456,77,72,85,82,300,70,61,72,71,756,74,68,80,78,80,11,8,13,10,3408,87,85,90,89,null,2324,92,89,94,92,493,73,66,82,77,337,62,53,69,64,830,69,60,77,72,66,23,18,27,23,3233,84,80,88,85,null,2108,92,89,94,92,550,72,63,80,78,435,59,50,68,66,985,66,57,75,72,69,12,7,12,12,3178,82,77,86,84,null,1991,92,90,95,94,520,68,64,81,76,403,56,48,63,66,923,63,57,73,72,75,19,8,15,13,3015,81,77,86,85,null,2189,96,96,95,91,91,380,86,78,86,68,71,294,65,55,64,44,45,674,77,68,76,57,60,108,19,15,20,13,13,2980,89,86,88,81,81,null,2013,93,95,93,89,88,407,73,75,75,61,58,303,57,50,62,39,38,710,66,65,69,52,49,100,26,20,29,22,17,2831,84,84,85,77,75,null,1874,94,93,94,87,410,79,70,74,56,361,60,49,60,39,771,70,60,67,48,96,23,14,19,8,2743,85,81,84,73,null,1789,68.900000000000006,424,37.299999999999997,246,25.2,670,32.799999999999997,119,7.6,2578,56.7,null,1667,66.8,350,32.9,368,23.4,718,28,138,9.4,2523,52.6,null,1608,69.5,390,33.799999999999997,342,22.2,732,28.4,109,5.5,2456,54.3,null,1699,66.2,393,30.8,370,21.4,763,26.2,162,6.8,2624,50.9,null,1726,59.5,370,25.1,336,16.7,706,21.1,147,8.1999999999999993,2580,46,null,5930,5485.25,92.5,200,177.4,88.7,3.8,null,740,50,1610,2390,0.86,0.94,0.94,0.91]
[330,"Birmingham",61,65,13171,34.9,15,17,1147,26.4,9,10,914,24.4,12,14,2061,25.5,3,3,287,19.399999999999999,53,56,15877,33.299999999999997,54,57,12953,34.4,13,16,1161,26.3,6,7,977,23,10,12,2138,24.8,"x",1,224,19.7,47,50,15663,32.799999999999997,null,12482,84,1703,44,1147,26,2850,37,338,14,15825,73,11712,81,1833,40,1230,23,3063,33,286,14,15223,69,11054,71,2094,27,1123,15,3217,23,282,7,14681,59,null,12046,97,94,97,95,1673,73,60,79,67,1117,44,33,56,49,2790,61,49,70,59,353,19,14,22,18,15288,88,84,90,86,null,11477,97,95,98,96,1818,70,60,78,69,1052,39,34,51,45,2870,58,51,68,60,313,17,14,20,17,14784,87,84,90,87,null,10792,97,94,98,96,2117,67,56,77,69,1027,36,27,48,42,3144,57,47,68,60,327,19,15,20,18,14347,86,82,89,86,null,10485,95,93,97,95,2117,64,54,77,69,1089,31,25,46,41,3206,53,44,66,60,313,20,12,21,19,14100,84,80,88,85,null,9952,95,92,96,94,2001,61,51,73,66,1284,32,24,46,40,3285,50,40,62,56,283,17,12,19,13,13630,82,77,86,83,null,11029,94,94,91,87,86,1361,70,57,61,39,40,904,48,37,44,28,25,2265,61,49,54,35,34,472,25,17,21,16,13,13796,86,84,82,76,75,null,10412,92,93,91,85,85,1362,61,52,62,34,35,945,47,32,45,24,23,2307,55,44,55,30,30,423,26,17,23,17,13,13179,84,82,82,73,73,null,10255,95,93,92,87,1507,68,51,62,37,914,44,30,43,22,2421,59,43,55,31,462,27,14,20,12,13164,86,81,83,74,null,9683,69.7,1351,35.1,867,21,2218,29.6,559,9.3000000000000007,12461,59.8,null,9295,71.900000000000006,1482,32.1,953,17.8,2435,26.5,550,8.9,12280,60.1,null,8988,70.8,1695,30,891,16.7,2586,25.4,567,7.9,12159,58.2,null,9158,67.2,1715,25.4,788,15,2503,22.1,649,7.6,12313,54.9,null,9270,59.1,1597,17.8,830,8.8000000000000007,2427,14.7,590,4.5999999999999996,12292,47.7,null,25930,21236.670000000002,81.900000000000006,1180,956.9799999999999,81.099999999999994,0.7,null,2610,280,8990,11870,0.82,0.87,0.91,0.89]
[331,"Coventry",63,66,3705,34.1,20,22,143,27.2,22,23,345,26.6,22,23,488,26.8,"x","x",47,17.5,57,60,4293,33,57,60,3854,33.700000000000003,24,26,131,28.1,19,19,293,26.3,21,21,424,26.9,"x","x",29,17,52,55,4374,32.9,null,3669,80,231,44,419,44,650,44,49,6,4423,73,3461,73,258,33,328,36,586,35,43,"x",4125,67,3232,65,261,28,366,30,627,29,39,"x",3933,58,null,3371,96,93,97,95,305,74,62,83,73,417,55,42,66,56,722,63,50,73,63,54,7,6,7,6,4182,89,84,91,88,null,3138,95,92,97,95,320,74,62,80,76,412,52,40,56,55,732,62,50,67,64,59,7,5,7,5,3960,87,83,89,88,null,2982,94,91,97,95,325,62,51,75,71,437,52,41,59,56,762,56,45,65,62,54,7,"x",9,15,3825,85,81,89,87,null,2957,92,90,95,94,371,58,46,68,65,407,47,32,56,59,778,52,39,62,62,45,"x","x",7,7,3811,82,78,86,86,null,2802,92,90,95,93,426,57,46,70,65,392,43,33,52,50,818,51,40,62,58,44,11,14,18,16,3688,82,77,86,84,null,2769,96,95,94,91,90,294,77,64,68,51,50,526,61,46,53,33,33,820,67,52,59,39,39,95,20,11,16,13,11,3692,88,84,84,78,76,null,2546,91,95,91,85,85,296,70,60,64,45,43,518,49,41,47,25,27,814,56,48,53,32,33,84,20,11,17,8,10,3450,81,82,80,71,71,null,2509,95,92,93,87,349,71,55,63,40,527,54,35,48,27,876,61,43,54,32,104,13,9,11,3,3503,84,77,81,70,null,2573,68.400000000000006,489,35.799999999999997,380,20.8,869,29.2,144,5.6,3588,56.4,null,2527,72.8,582,31.6,324,21.6,906,28,141,2.8,3575,58.7,null,2445,69.400000000000006,534,25.3,326,19,860,22.9,163,"x",3471,54.7,null,2449,68.099999999999994,713,21.2,312,16.3,1025,19.7,163,5.5,3637,51.7,null,2342,64,718,19.899999999999999,323,14.2,1041,18.2,151,2,3534,47.8,null,7460,6751.3,90.5,310,252.95999999999998,81.599999999999994,8.9,null,860,70,2450,3380,0.82,0.9,0.92,0.89]
[332,"Dudley",61,63,3234,34.5,21,21,131,27.8,19,20,236,26.6,19,20,367,27,"x","x",59,19.3,55,57,3678,33.4,53,56,3302,33.700000000000003,9,10,162,24.5,26,27,218,27.9,18,19,380,26.4,"x","x",77,18.100000000000001,48,51,3771,32.6,null,3125,82,206,37,382,46,588,43,81,14,3806,74,2960,77,259,27,300,32,559,30,103,22,3630,68,2919,70,351,28,278,28,629,28,92,21,3642,62,null,2850,97,96,98,97,299,70,59,80,75,364,59,52,66,62,663,64,55,72,68,105,26,18,29,23,3626,89,86,91,89,null,2888,97,95,98,97,336,67,52,75,69,310,59,48,65,61,646,63,50,71,65,98,30,27,32,34,3638,89,85,91,90,null,2823,97,95,98,97,428,65,54,73,69,309,57,48,63,57,737,61,52,69,64,92,16,14,24,22,3656,88,84,91,88,null,2685,96,93,97,97,388,65,52,73,69,314,53,43,58,57,702,60,48,66,64,105,26,19,28,24,3504,86,82,89,88,null,2623,96,93,97,97,454,60,48,68,70,302,44,41,54,56,756,53,46,62,64,96,23,17,27,26,3479,85,81,88,88,null,2659,96,95,94,87,90,287,74,68,71,49,51,376,62,47,60,32,37,663,67,56,64,40,43,136,23,18,23,18,13,3459,88,85,85,75,78,null,2636,94,96,93,85,87,329,66,62,66,37,42,366,52,41,51,21,28,695,59,51,58,29,35,147,29,18,24,19,14,3480,84,84,83,71,74,null,2570,94,95,92,87,361,79,61,70,45,407,59,38,53,27,768,68,49,61,36,152,20,15,21,13,3494,85,81,82,72,null,3120,69.7,413,25.9,205,24.4,618,25.4,191,7.9,3929,59.7,null,3071,66.400000000000006,417,18.7,214,14,631,17.100000000000001,155,9.6999999999999993,3857,56.1,null,3001,69.3,470,22.8,182,15.9,652,20.9,148,6.1,3805,58.5,null,3124,66.5,468,23.7,205,15.1,673,21.1,163,9.1999999999999993,3960,56.4,null,3128,58,512,17.600000000000001,189,13.8,701,16.5,136,6.6,3965,48.9,null,7150,6442.15,90.1,360,309.60000000000002,86,4.2,null,650,80,3000,3730,0.85,0.82,0.92,0.9]
[333,"Sandwell",55,60,3957,32.799999999999997,13,16,276,25.3,15,17,241,24,14,17,517,24.7,"x","x",40,19.399999999999999,50,54,4570,31.7,47,51,3928,32.5,9,12,286,25.2,15,16,271,24.6,12,14,557,24.9,"x","x",33,18.399999999999999,42,46,4581,31.3,null,3756,81,507,38,307,41,814,39,53,15,4657,72,3397,78,450,31,233,33,683,31,35,"x",4157,69,3236,67,538,24,243,25,781,24,52,8,4105,58,null,3328,96,92,97,95,515,63,49,72,63,243,49,38,53,51,758,58,46,66,59,50,14,"x",18,14,4155,88,82,90,87,null,3289,94,91,96,93,491,58,45,66,60,265,47,36,50,48,756,54,42,61,56,71,27,18,24,20,4139,86,80,88,85,null,3114,93,89,96,92,572,52,40,66,53,247,35,30,50,43,819,47,37,61,50,44,18,9,"x","x",4002,82,77,87,82,null,3034,92,88,96,93,574,50,37,67,61,241,35,29,47,45,815,46,35,61,56,54,15,9,13,19,3924,81,75,87,84,null,2893,92,88,95,91,632,46,39,64,59,194,34,25,41,39,826,43,35,58,54,51,18,8,14,14,3790,80,75,85,82,null,3062,95,95,94,88,89,379,69,59,66,40,43,276,53,31,49,26,23,655,62,47,59,34,35,100,31,19,22,19,17,3822,87,85,86,77,78,null,2923,91,93,92,84,84,397,69,52,66,35,39,272,43,27,43,22,20,669,59,42,57,30,31,77,22,14,16,14,12,3674,84,82,84,72,73,null,2801,93,92,93,86,465,65,51,60,39,253,49,28,48,24,718,59,43,56,33,60,20,15,20,13,3585,85,81,84,74,null,2864,64.7,524,19.8,187,9.6,711,17.2,92,10.9,3668,54.1,null,2699,64.2,664,29.8,228,15.4,892,26.1,74,8.1,3665,53.8,null,2463,62.1,895,30.3,195,11.3,1090,26.9,104,6.7,3659,50,null,2341,55.3,903,26.1,192,7.3,1095,22.8,113,3.5,3549,43.6,null,2536,49.3,830,11.8,139,2.9,969,10.5,110,3.6,3615,37.5,null,7240,6668.0399999999991,92.1,320,279.04000000000002,87.2,4.9000000000000004,null,1090,80,2460,3630,0.8,0.85,0.84,0.82]
[334,"Solihull",63,67,2378,35.700000000000003,10,11,103,25.2,11,13,132,23.8,11,12,235,24.4,"x","x",25,18.7,58,61,2678,34.5,58,61,2356,34.799999999999997,6,11,95,25,12,13,144,24.5,10,12,239,24.7,"x","x",31,18.8,53,56,2670,33.700000000000003,null,2307,87,129,47,175,53,304,50,46,37,2665,82,2288,85,158,46,133,35,291,41,50,30,2641,79,2223,77,164,45,126,39,290,42,49,22,2566,72,null,2241,98,96,98,97,166,76,66,80,76,170,61,49,67,66,336,68,57,74,71,60,38,32,40,25,2643,93,90,94,92,null,2145,99,96,99,98,184,77,62,79,76,165,62,42,68,63,349,70,52,74,70,62,32,27,35,31,2562,93,89,94,92,null,2163,98,97,99,98,184,66,51,76,76,146,58,50,66,66,330,62,50,72,72,54,35,17,35,37,2552,92,89,94,94,null,2121,98,95,98,97,218,69,57,83,84,127,49,37,58,61,345,61,50,74,75,60,33,23,37,37,2535,91,87,94,93,null,2040,98,96,99,98,235,68,60,83,79,137,45,39,56,61,372,59,52,73,73,57,33,21,32,30,2479,91,88,93,92,null,2025,94,97,92,86,89,205,83,71,70,47,58,158,72,59,67,49,46,363,78,66,69,48,53,115,35,23,27,18,17,2505,89,89,86,77,80,null,1909,97,97,96,91,93,181,81,67,76,54,57,154,66,40,55,25,32,335,74,55,67,41,46,89,40,28,39,29,18,2338,92,88,89,82,83,null,1907,97,96,95,90,247,80,58,65,45,167,68,47,60,34,414,75,54,63,40,84,36,15,36,11,2409,91,86,87,79,null,2330,77.2,373,40.200000000000003,204,34.299999999999997,577,38.1,123,10.6,3030,67.099999999999994,null,2299,70.900000000000006,424,42.5,216,41.2,640,42,107,11.2,3046,62.7,null,2145,73.2,524,37.200000000000003,240,34.6,764,36.4,118,16.899999999999999,3027,61.7,null,2236,72.7,490,29.2,256,30.5,746,29.6,107,10.3,3090,60.1,null,2332,64,376,28.5,253,25.3,629,27.2,113,6.2,3074,54.4,null,5040,4515.8399999999992,89.6,80,79.039999999999992,98.8,-9.1999999999999993,null,770,70,2140,2980,0.85,0.85,0.92,0.9]
[335,"Walsall",53,57,3302,32.6,10,11,170,23.9,5,5,59,22.1,9,9,229,23.4,"x","x",48,18.2,49,53,3649,31.8,47,50,3245,32.4,9,11,205,23.1,6,6,62,20.7,9,10,267,22.5,"x","x",47,19,43,46,3625,31.4,null,3109,83,355,31,77,23,432,29,67,22,3626,75,3008,79,320,32,96,27,416,31,38,11,3482,72,3067,68,337,20,99,24,436,21,26,"x",3541,61,null,2956,96,93,97,95,372,65,48,67,62,140,40,29,49,41,512,58,43,62,56,48,21,19,33,25,3531,89,84,91,89,null,2960,96,92,97,95,405,63,46,68,59,122,39,31,45,42,527,58,43,63,55,42,21,19,21,29,3538,89,84,91,88,null,2763,96,92,97,95,434,61,49,68,69,105,30,19,39,36,539,55,43,62,63,43,19,19,23,19,3351,88,83,90,89,null,2690,95,90,96,95,452,54,39,65,61,127,32,20,45,39,579,50,35,60,56,44,11,7,18,9,3319,86,79,89,87,null,2701,93,90,97,95,397,49,36,67,60,103,29,24,40,43,500,45,34,61,56,44,18,16,14,18,3253,85,80,90,87,null,2667,95,92,90,81,84,371,64,51,54,29,33,163,49,35,39,26,22,534,59,46,50,28,30,92,23,10,15,13,9,3296,87,83,81,71,73,null,2543,91,91,90,81,82,378,62,51,58,32,35,159,45,26,43,23,18,537,57,43,53,30,30,90,19,16,20,11,11,3177,83,81,81,71,71,null,2502,91,91,90,82,417,63,46,58,33,151,39,19,32,16,568,57,39,51,28,96,15,6,16,5,3170,83,79,80,70,null,2935,66.8,306,16.7,114,8.8000000000000007,420,14.5,105,7.6,3460,58.7,null,2711,64.599999999999994,459,26.4,116,10.3,575,23.1,91,4.4000000000000004,3377,55.9,null,2715,67.8,553,18.100000000000001,96,8.3000000000000007,649,16.600000000000001,107,5.6,3474,56.3,null,2735,60.4,609,17.100000000000001,133,9.8000000000000007,742,15.8,122,9,3601,49.5,null,2988,51.6,519,16.399999999999999,72,8.3000000000000007,591,15.4,131,"x",3710,44,null,6280,5802.72,92.4,330,289.08,87.6,4.8,null,650,60,2720,3430,0.75,0.75,0.85,0.83]
[336,"Wolverhampton",59,63,2753,33.9,12,13,188,24.8,14,14,117,24.1,13,13,305,24.5,"x","x",53,19.899999999999999,53,56,3159,32.700000000000003,47,49,2763,32.200000000000003,7,8,179,24.4,7,9,110,22.7,7,9,289,23.7,"x","x",44,19.5,42,44,3162,31.1,null,2616,82,370,46,131,30,501,42,64,13,3217,74,2543,75,339,27,125,23,464,26,55,15,3087,66,2351,63,375,19,126,20,501,19,50,6,2920,55,null,2454,96,93,97,94,444,64,53,75,68,137,45,37,48,46,581,59,49,69,62,71,21,15,24,24,3135,87,82,89,86,null,2223,93,91,95,93,464,62,49,69,64,172,47,34,56,53,636,58,45,65,61,61,16,7,16,15,2945,83,79,87,84,null,2244,95,92,96,95,452,54,44,67,63,157,52,40,57,57,609,54,43,64,61,57,14,9,12,12,2927,84,80,88,86,null,2138,94,89,95,93,436,60,46,65,61,155,40,30,50,48,591,55,42,61,58,65,8,"x",12,8,2804,83,77,86,84,null,2175,94,90,96,94,441,54,41,63,64,129,40,28,44,47,570,51,38,59,60,54,9,7,11,11,2809,83,78,87,85,null,2187,96,95,95,89,90,325,71,61,67,46,47,196,62,44,55,35,38,521,67,54,62,42,44,96,18,8,21,9,7,2811,88,84,86,77,79,null,1976,93,94,94,87,88,355,68,59,68,46,47,197,54,35,50,25,25,552,63,50,62,39,39,113,19,11,19,9,9,2645,84,82,84,73,74,null,1990,95,93,93,88,351,67,52,62,36,161,52,29,51,23,512,62,45,58,32,98,13,5,11,5,2608,86,80,83,74,null,2046,71.7,326,30.1,147,27.2,473,29.2,133,9,2652,61,null,1987,68.7,347,21,131,14.5,478,19.2,126,8.6999999999999993,2591,56.7,null,1970,70.099999999999994,375,20.5,103,12.6,478,18.8,109,3.7,2558,57.7,null,2037,63.4,418,24.4,142,12.7,560,21.4,125,6.4,2722,52.1,null,2174,52.5,322,11.5,115,7,437,10.3,131,3.1,2742,43.4,null,5490,5111.1899999999996,93.1,430,360.34,83.8,9.3000000000000007,null,480,70,1970,2520,0.76,0.82,0.92,0.88]
[340,"Knowsley",64,66,1551,34.6,26,26,126,28.4,18,21,98,26.6,23,24,224,27.6,"x","x",31,19.600000000000001,58,60,1811,33.4,56,60,1646,33,17,18,92,26.7,17,19,95,26.7,17,19,187,26.7,"x","x",24,19.100000000000001,52,55,1862,32.200000000000003,null,1472,78,191,40,149,36,340,38,43,19,1858,69,1384,76,215,30,104,26,319,29,31,16,1739,66,1458,62,227,18,129,17,356,17,23,13,1839,52,null,1325,97,94,98,95,202,"x",57,78,74,178,"x","x","x",58,380,57,"x","x",67,46,"x",15,26,28,1752,86,82,91,87,null,1374,96,95,98,97,231,74,63,86,76,193,36,26,62,56,424,57,46,75,67,39,15,10,21,23,1840,85,82,91,89,null,1349,95,92,97,97,251,53,43,74,69,169,46,35,67,64,420,50,40,71,67,38,16,8,16,21,1810,83,78,90,89,null,1218,94,"x","x","x",235,54,43,67,66,196,41,34,54,55,431,48,39,61,61,29,17,10,21,17,1680,81,76,87,85,null,1286,93,90,97,97,222,57,50,77,74,188,30,26,47,59,410,45,39,63,67,36,28,11,20,28,1732,80,76,87,89,null,1127,97,98,96,89,94,242,87,81,81,57,66,257,57,39,56,21,28,499,72,59,68,38,46,56,34,14,20,13,11,1685,87,84,85,71,77,null,1086,96,97,97,90,93,222,82,74,80,53,62,238,56,35,61,26,27,460,69,54,70,39,44,58,28,9,22,12,9,1605,85,82,87,72,76,null,1106,98,95,97,93,253,87,76,84,63,299,64,44,61,37,552,75,59,72,49,64,48,"x",36,14,1723,89,81,87,76,null,1051,53.9,146,11.6,123,17.899999999999999,269,14.5,71,4.2,1391,43.7,null,1099,50.1,171,11.7,108,14.8,279,12.9,69,7.2,1447,40.9,null,1108,53,204,14.7,186,12.9,390,13.8,79,"x",1578,40.799999999999997,null,1159,49.5,266,15.8,145,"x",411,"x",86,"x",1656,38,null,1195,43.2,217,12,156,5.0999999999999996,373,9.1,77,"x",1645,33.5,null,3910,3526.82,90.2,80,73.2,91.5,-1.3,null,390,30,1110,1530,0.74,0.86,0.86,0.83]
[341,"Liverpool",58,60,4361,34.1,19,19,216,27.6,17,18,428,25.9,18,18,644,26.4,"x","x",12,17.399999999999999,53,54,5102,33,55,56,4347,33.5,14,14,258,27.2,11,12,374,24.7,12,13,632,25.7,"x","x",12,17.899999999999999,49,51,5072,32.4,null,4137,76,429,33,458,28,887,30,31,"x",5100,67,3832,68,526,23,356,26,882,24,38,"x",4798,59,3703,57,580,21,352,21,932,21,48,"x",4709,49,null,3797,95,93,97,95,601,62,53,76,69,416,51,41,62,56,1017,58,48,70,63,64,"x","x",5,11,4913,86,82,90,87,null,3616,95,93,97,95,650,59,48,72,67,372,50,39,58,60,1022,56,45,67,65,60,12,10,13,13,4735,85,81,89,87,null,3384,95,92,97,95,741,59,49,72,68,378,46,37,54,55,1119,54,45,66,64,47,9,9,6,9,4566,84,79,88,87,null,3342,94,91,97,94,734,57,47,73,62,391,48,39,56,55,1125,54,45,67,60,28,"x","x","x",11,4512,83,79,89,85,null,3239,94,90,96,95,762,51,43,68,65,372,46,38,55,53,1134,49,41,64,61,33,"x","x","x",12,4422,81,77,87,86,null,3235,95,96,93,86,89,582,74,60,68,43,46,476,65,49,57,36,36,1058,70,55,63,40,41,116,13,7,8,9,6,4418,87,84,84,73,76,null,3148,96,95,94,83,90,635,69,58,68,38,43,414,61,43,57,33,35,1049,65,52,64,36,40,99,8,5,9,4,3,4304,86,82,85,70,75,null,3156,96,93,94,88,697,70,54,66,41,445,57,38,52,29,1142,65,47,60,36,96,8,5,7,4,4402,86,79,83,73,null,3828,68,572,26.2,539,17.600000000000001,1111,22.1,163,6.1,5102,56,null,3680,69.8,669,29.9,514,16.3,1183,24,171,2.2999999999999998,5034,56.8,null,3595,69.3,685,25.4,688,20.2,1373,22.8,160,6.3,5136,55,null,3608,67,707,26.2,627,15.8,1334,21.3,161,2.5,5106,53,null,3643,57.9,916,20.6,597,11.1,1513,16.899999999999999,200,3,5357,44.3,null,9880,8803.08,89.1,350,303.45,86.7,2.4,null,1380,50,3590,5020,0.78,0.84,0.9,0.87]
[342,"St Helens",64,68,1819,34.5,24,27,130,26.7,9,12,107,22.4,17,20,237,24.7,"x","x",15,17.100000000000001,58,62,2088,33.200000000000003,58,62,1934,33.1,13,15,112,25,12,13,90,24,12,14,202,24.5,"x","x",11,17,53,57,2169,32.200000000000003,null,1799,85,212,44,140,51,352,47,18,0,2176,78,1647,83,232,36,100,40,332,37,13,"x",1997,75,1639,69,191,22,122,30,313,25,11,"x",1966,62,null,1587,98,97,99,98,258,68,60,79,72,135,52,48,64,65,393,63,56,74,70,13,"x","x","x","x",1997,91,88,93,92,null,1566,97,95,98,97,263,66,59,81,80,133,51,42,58,55,396,61,53,73,72,15,20,"x","x","x",1981,89,86,92,92,null,1541,96,95,98,97,260,63,55,77,77,124,46,42,65,67,384,57,51,73,74,7,"x","x","x","x",1936,88,86,93,92,null,1507,96,95,98,98,295,57,48,77,81,103,41,34,47,63,398,53,44,69,77,14,"x","x","x","x",1922,86,84,92,93,null,1542,95,93,98,96,208,54,55,74,72,129,37,34,56,57,337,47,47,67,66,14,"x","x","x","x",1896,85,84,92,90,null,1453,97,98,97,91,"x",233,81,70,73,52,57,187,70,56,63,47,45,420,76,64,68,50,52,35,17,9,9,9,"x",1908,91,89,89,81,84,null,1457,94,97,95,87,91,266,77,70,77,47,55,155,60,"x",59,28,"x",421,71,"x",70,40,"x",28,11,"x",11,11,"x",1906,88,88,88,75,80,null,1433,97,94,96,91,247,83,64,80,57,154,60,52,55,38,401,75,60,70,49,"x","x","x",15,"x",1861,91,86,89,81,null,1615,63.4,166,22.3,115,"x",281,"x",46,"x",1942,55.5,null,1599,63.5,170,22.4,113,"x",283,"x",52,"x",1934,55.1,null,1619,64.900000000000006,198,18.2,103,10.7,301,15.6,57,7,1977,55.7,null,1657,62,171,11.1,125,11.2,296,11.1,63,6.3,2016,52.8,null,1748,56.6,191,9.4,137,10.199999999999999,328,9.8000000000000007,80,"x",2156,47.4,null,3940,3585.4,91,50,46.1,92.2,-1.2,null,300,20,1620,1940,0.78,0.78,0.9,0.88]
[343,"Sefton",60,62,2645,34.6,10,11,109,28.1,15,16,151,25.5,13,14,260,26.6,"x","x",19,17.100000000000001,56,58,2945,33.799999999999997,53,56,2645,34.1,8,8,104,25.1,5,6,121,24,6,7,225,24.5,"x","x",26,18.5,49,51,2910,33.1,null,2477,79,196,33,177,36,373,35,32,"x",2891,72,2502,73,232,31,142,27,374,29,30,"x",2912,67,2441,57,243,22,191,16,434,19,37,"x",2919,51,null,2413,96,93,97,97,241,60,51,70,74,216,47,37,58,54,457,54,44,64,65,31,10,"x",16,19,2910,88,85,91,91,null,2404,96,93,97,96,239,62,49,71,70,226,43,35,58,52,465,53,43,65,61,47,13,11,28,11,2922,87,84,90,89,null,2281,95,93,97,97,265,65,55,75,71,186,42,32,52,51,451,55,45,65,63,33,12,9,"x",24,2769,87,84,91,91,null,2291,93,91,96,95,296,58,51,70,70,224,38,29,54,49,520,50,42,63,61,22,"x","x","x","x",2838,84,81,89,88,null,2225,93,89,96,96,297,63,53,75,74,227,37,25,50,52,524,52,41,64,65,31,10,10,13,10,2783,84,79,89,89,null,2184,98,96,97,92,93,267,84,65,78,53,51,311,63,42,57,32,32,578,73,53,67,42,41,72,29,11,29,13,8,2841,91,85,89,79,80,null,2111,96,96,96,89,92,311,77,60,74,44,49,274,53,35,56,29,25,585,66,49,65,37,38,56,18,14,23,9,11,2756,88,85,88,76,78,null,2139,97,93,97,90,297,72,53,70,40,288,55,34,51,25,585,63,44,61,33,84,15,5,13,"x",2810,87,80,87,76,null,2724,71.599999999999994,361,28.8,291,18.2,652,24.1,105,13.3,3481,60.9,null,2656,69.400000000000006,326,24.8,295,13.9,621,19.600000000000001,92,5.4,3369,58.5,null,2654,69.3,352,28.7,273,21.6,625,25.6,102,11.8,3383,59.5,null,2625,66,295,25.1,326,14.1,621,19.3,92,9.8000000000000007,3338,55.8,null,2778,63,397,25.9,253,9.5,650,19.5,109,5.5,3537,53.2,null,6100,5636.4000000000005,92.4,210,181.44000000000003,86.4,6,null,640,40,2640,3320,0.85,0.88,0.93,0.91]
[344,"Wirral",63,67,3413,34.200000000000003,20,23,124,25.5,15,16,126,24.5,18,19,250,25,"x","x",44,17.899999999999999,59,63,3770,33.299999999999997,47,51,3382,32.700000000000003,11,12,146,24.8,3,4,109,21.6,7,8,255,23.4,"x","x",45,17.7,43,47,3745,31.9,null,3174,83,304,38,190,39,494,39,51,6,3731,76,3154,75,344,29,148,28,492,29,55,13,3711,68,3059,61,358,20,141,23,499,21,46,"x",3610,54,null,2995,97,96,98,98,397,62,53,71,74,239,49,40,58,57,636,57,48,66,67,63,10,6,14,13,3706,89,86,91,91,null,2899,97,95,98,98,403,69,54,73,79,241,46,37,56,60,644,60,48,67,72,55,"x","x","x",11,3606,89,85,91,92,null,2868,97,94,98,98,453,62,53,72,77,197,52,37,56,61,650,59,48,67,72,62,6,6,10,13,3585,88,84,91,92,null,2738,95,93,97,97,515,52,42,65,67,221,43,30,52,61,736,49,39,61,65,61,5,5,13,13,3544,84,80,88,89,null,2624,95,94,97,98,494,51,44,67,73,244,42,29,57,58,738,48,39,64,68,66,21,17,20,29,3441,84,80,88,90,null,2624,97,97,95,89,92,364,77,68,74,46,52,330,65,42,56,32,32,694,71,55,65,39,42,138,39,17,27,15,13,3459,90,85,86,76,78,null,2411,96,96,94,90,90,458,74,69,69,43,47,334,63,46,63,32,34,792,69,59,66,38,42,106,29,16,25,12,12,3312,88,85,85,75,76,null,2464,97,95,95,90,459,74,61,68,45,371,62,42,57,32,830,68,52,63,39,135,28,12,21,9,3435,87,81,84,74,null,2825,78.2,438,36.1,301,27.6,739,32.6,165,11.5,3729,66.2,null,2827,77.8,436,39.4,352,24.1,788,32.6,172,10.5,3787,65.400000000000006,null,2732,78.7,492,39.4,459,23.5,951,31.8,166,9,3856,64.099999999999994,null,2979,72.099999999999994,442,21,402,22.1,844,21.6,167,6,3990,58.7,null,3039,66,412,19.7,344,13.4,756,16.8,202,9.4,3997,53.8,null,7430,6939.6200000000008,93.4,340,303.62,89.3,4.0999999999999996,null,930,80,2760,3760,0.83,0.88,0.92,0.9]
[350,"Bolton",55,59,3554,32.799999999999997,7,8,138,24,4,4,124,22.9,5,6,262,23.5,"x",6,62,19.7,51,54,3949,32,47,50,3488,32.1,6,"x",95,24.3,3,"x",91,21.6,5,6,186,23,"x","x",46,19.5,44,48,3782,31.5,null,3253,82,297,34,150,43,447,37,62,10,3785,75,3140,75,288,26,158,32,446,28,57,5,3672,68,3010,66,344,19,132,21,476,20,58,"x",3567,59,null,3060,96,93,97,95,376,61,46,69,65,191,55,39,60,57,567,59,44,66,62,70,19,13,29,19,3719,88,84,90,88,null,2960,96,92,96,96,357,59,41,68,62,189,49,38,57,52,546,55,40,64,58,75,19,15,25,23,3602,88,82,90,88,null,2819,95,91,97,95,448,58,43,68,64,144,47,33,53,49,592,56,41,64,60,66,12,6,14,15,3500,87,81,89,87,null,2709,95,91,97,96,456,51,39,62,64,181,43,31,51,49,637,48,37,59,59,55,22,13,20,18,3416,85,80,88,87,null,2568,94,90,97,94,435,45,30,58,56,148,33,27,47,45,583,42,29,55,53,50,18,14,16,18,3216,83,77,88,85,null,2601,96,97,96,88,92,367,70,66,68,44,46,197,64,53,55,35,39,564,68,61,64,41,43,94,29,22,28,24,17,3262,89,88,88,78,81,null,2541,94,96,95,87,90,407,63,59,68,37,42,184,48,41,52,28,29,591,58,54,63,34,38,79,37,30,32,18,25,3221,86,87,87,76,79,null,2431,96,96,95,91,441,66,53,65,40,226,53,43,54,31,667,62,49,61,37,93,27,15,29,13,3197,87,84,86,78,null,2921,69,394,21.1,82,31.7,476,22.9,125,10.4,3522,60.7,null,2700,71.8,480,19.600000000000001,122,8.1999999999999993,602,17.3,106,10.4,3408,60.2,null,2596,72.8,580,19.5,133,20.3,713,19.600000000000001,109,7.3,3418,59.6,null,2714,65.8,561,14.4,164,7.9,725,13,102,3.9,3541,53.2,null,2739,57.6,543,13.1,219,6.8,762,11.3,110,5.5,3611,46.2,null,6980,6372.74,91.3,220,192.06,87.3,4.0999999999999996,null,710,60,2600,3370,0.77,0.84,0.91,0.88]
[351,"Bury",59,61,2114,32.4,12,13,85,24.3,9,11,90,22.9,10,12,175,23.6,"x","x",56,18.600000000000001,54,56,2390,31.4,53,56,2071,32.200000000000003,10,11,100,24.1,6,10,89,22.2,8,11,189,23.2,"x","x",52,19.100000000000001,48,51,2352,31.2,null,1945,74,184,35,128,25,312,31,61,25,2329,66,1894,72,188,37,116,26,304,33,53,30,2263,66,1888,63,169,23,98,22,267,23,52,15,2213,57,null,1812,97,94,97,96,228,74,56,77,67,162,49,30,54,46,390,64,45,67,58,60,48,37,52,42,2272,89,84,91,88,null,1804,98,93,98,96,212,63,49,73,64,132,46,30,54,50,344,57,42,66,58,60,37,23,37,37,2215,90,83,91,89,null,1746,97,91,97,96,258,62,45,77,69,142,47,34,57,51,400,57,41,70,62,57,25,14,28,23,2210,87,80,90,88,null,1670,96,91,98,96,224,62,50,75,68,169,42,31,54,50,393,53,41,66,60,59,34,22,31,34,2129,86,80,90,88,null,1703,96,92,98,96,225,63,51,73,69,129,38,26,50,49,354,54,42,65,62,57,32,18,35,33,2117,87,82,91,89,null,1600,97,95,95,90,91,235,79,67,75,53,49,186,65,48,63,37,40,421,73,59,70,46,45,98,40,29,37,20,23,2120,90,85,88,78,79,null,1562,96,95,96,89,90,227,64,63,68,44,44,165,55,34,61,26,27,392,60,51,65,36,37,94,22,16,28,14,12,2050,85,83,87,76,76,null,1557,96,94,94,89,209,78,59,67,45,208,58,38,58,29,417,68,49,63,37,87,31,14,29,10,2062,87,81,85,75,null,1861,68.400000000000006,141,36.9,107,27.1,248,32.700000000000003,90,16.7,2199,62.3,null,1838,71.400000000000006,149,23.5,112,19.600000000000001,261,21.8,91,11,2190,63,null,1834,72,169,19.5,121,19,290,19.3,74,5.4,2199,62.8,null,1835,71.5,195,24.1,113,15.9,308,21.1,97,13.4,2240,62.1,null,1845,68.2,158,19.600000000000001,128,9.4,286,15,89,6.7,2221,58.8,null,4290,3955.38,92.2,180,158.4,88,4.2,null,290,60,1830,2180,0.85,0.93,0.9,0.9]
[352,"Manchester",54,59,5881,32.700000000000003,16,19,462,25.2,8,8,238,22.1,14,15,700,24.1,"x","x",70,18.100000000000001,48,53,6861,31.5,48,51,5770,32.1,13,16,340,25.7,6,6,198,22.2,10,12,538,24.4,"x","x",58,17.899999999999999,44,47,6545,31.1,null,5428,81,657,42,322,34,979,39,94,13,6631,72,5270,76,626,33,280,29,906,32,81,19,6350,68,5068,65,681,24,262,22,943,24,79,8,6165,57,null,5060,94,92,96,93,787,62,55,75,65,419,47,39,58,49,1206,57,49,69,59,122,18,14,21,16,6506,85,82,89,85,null,4917,92,89,95,93,740,59,51,69,62,365,42,32,52,44,1105,53,45,63,56,100,14,10,14,10,6195,83,80,87,84,null,4435,92,90,95,93,800,57,48,69,63,338,43,36,49,49,1138,53,44,63,59,117,18,14,20,17,5748,82,79,87,84,null,4217,91,88,94,92,749,54,45,65,65,393,37,29,51,45,1142,48,40,60,58,89,8,3,9,10,5501,80,76,85,83,null,3911,91,88,95,94,749,55,47,67,66,398,41,31,49,49,1147,50,42,61,60,85,14,11,15,11,5210,80,76,85,84,null,3942,95,95,95,88,91,655,80,71,73,56,57,486,59,44,54,36,35,1141,71,59,65,47,48,152,19,11,20,16,9,5253,88,85,86,77,79,null,3582,94,94,94,87,88,743,73,60,70,45,46,451,57,39,55,28,31,1194,67,52,64,39,41,135,27,22,28,21,20,4927,85,82,85,73,75,null,3416,95,92,94,88,810,73,58,70,47,446,54,31,46,23,1256,66,48,61,38,137,26,18,20,11,4815,86,79,84,73,null,3456,64.5,542,20.3,280,14.3,822,18.2,230,6.5,4510,53.1,null,3236,66,637,21.2,281,16.7,918,19.8,224,4.5,4378,53.2,null,3254,64.599999999999994,630,21.3,301,12.6,931,18.5,228,6.1,4432,51.8,null,3245,58.5,671,17.600000000000001,356,9.6,1027,14.8,230,3.5,4502,45.7,null,3286,50.8,785,10.4,373,12.6,1158,11.1,241,4.5999999999999996,4685,38.6,null,9970,9112.58,91.4,480,411.84,85.8,5.7,null,930,120,3270,4320,0.76,0.87,0.88,0.86]
[353,"Oldham",53,58,2918,32.200000000000003,12,15,216,23.6,11,14,188,23.1,11,14,404,23.4,"x","x",43,18.2,47,52,3431,30.9,41,45,2932,31.3,7,7,177,22.9,7,9,129,23.5,7,8,306,23.2,"x","x",46,18,37,41,3333,30.4,null,2839,78,289,39,203,33,492,36,59,8,3415,70,2702,72,346,33,160,30,506,32,29,10,3257,65,2685,59,316,15,168,14,484,14,54,9,3234,51,null,2606,95,93,96,94,411,69,60,73,65,209,53,44,57,53,620,63,55,67,61,45,24,18,29,20,3293,87,84,89,86,null,2582,94,92,96,94,413,66,52,65,62,190,44,35,51,48,603,59,47,60,58,62,13,11,15,16,3269,86,82,87,85,null,2524,93,91,95,93,422,57,43,68,59,204,51,34,55,47,626,55,40,64,55,51,24,16,31,25,3215,85,79,88,84,null,2447,93,89,95,93,413,55,42,62,61,198,43,34,44,45,611,51,40,56,56,51,18,12,16,16,3116,83,78,86,84,null,2373,94,92,96,94,416,57,48,67,59,217,35,29,46,50,633,50,42,60,56,48,19,19,21,21,3069,84,80,87,85,null,2359,96,96,95,89,91,400,75,69,72,53,56,220,63,48,55,36,33,620,70,61,66,47,48,87,30,20,29,18,16,3074,89,87,87,78,80,null,2277,96,94,95,87,89,391,69,57,70,41,45,214,59,38,56,30,28,605,65,50,65,37,39,85,29,19,27,18,14,2968,88,83,87,75,77,null,2141,96,94,94,89,525,74,58,68,46,210,51,36,55,30,735,68,52,64,41,72,32,19,22,15,2951,88,81,85,75,null,2678,63.5,245,14.7,80,26.3,325,17.5,98,9.1999999999999993,3101,57,null,2570,63,284,16.5,100,13,384,15.6,63,11.1,3017,55.9,null,2480,64.599999999999994,283,14.5,134,12.7,417,13.9,68,5.9,2967,56.1,null,2418,60.5,385,21.3,136,13.2,521,19.2,80,5,3019,51.9,null,2382,55.7,439,18.2,143,5.6,582,15.1,72,8.3000000000000007,3036,46.8,null,5860,5397.0599999999995,92.1,170,149.94,88.2,3.8,null,420,40,2480,2940,0.75,0.78,0.91,0.88]
[354,"Rochdale",51,55,2623,32.200000000000003,8,9,127,23.4,14,14,114,23.2,11,11,241,23.3,"x","x",60,18.399999999999999,47,50,2946,31.1,41,45,2667,31,"x","x",88,22.3,"x","x",89,22.9,7,7,177,22.6,"x","x",49,18.7,38,42,2924,30.2,null,2457,87,256,42,133,39,389,41,64,19,2930,79,2453,79,172,40,124,38,296,39,68,21,2834,73,2362,69,200,21,94,27,294,22,50,20,2717,63,null,2360,96,93,96,93,286,68,50,71,63,132,52,43,59,49,418,63,48,67,59,82,35,30,38,33,2871,89,85,90,86,null,2243,95,91,96,95,285,60,46,65,61,120,51,42,52,59,405,57,45,61,60,57,26,28,32,28,2719,88,83,89,88,null,2154,93,89,96,92,304,53,36,64,57,118,44,36,47,44,422,50,36,59,54,66,26,15,30,27,2654,85,78,88,84,null,2139,92,88,94,92,316,44,33,58,51,106,40,33,50,47,422,43,33,56,50,70,16,7,17,14,2639,82,77,86,83,null,2047,94,90,96,93,287,47,39,56,54,112,37,24,47,46,399,44,35,53,51,62,18,16,23,24,2515,84,79,87,85,null,1953,94,95,93,90,88,281,70,51,62,38,41,131,66,46,61,45,37,412,69,49,62,40,40,96,38,18,28,20,15,2463,88,84,86,79,77,null,1876,94,93,95,87,87,325,63,50,66,38,35,114,59,36,58,32,32,439,62,46,64,36,34,83,33,19,31,20,17,2399,86,82,87,76,75,null,1878,94,90,92,84,337,63,44,61,31,120,50,28,54,22,457,60,40,59,28,99,33,24,27,14,2435,85,78,83,71,null,1882,66.7,307,22.8,152,25.7,459,23.7,94,5.3,2435,56.2,null,1823,62.6,311,23.2,156,19.899999999999999,467,22.1,119,6.7,2409,52,null,1843,65.099999999999994,345,23.8,152,14.5,497,20.9,103,3.9,2449,53.5,null,1963,61.7,328,24.7,155,12.9,483,20.9,120,6.7,2566,51.4,null,1923,58.7,383,21.4,202,18.3,585,20.3,104,"x",2612,47.8,null,5140,4718.5199999999995,91.8,220,187.66,85.3,6.6,null,500,60,1850,2400,0.79,0.88,0.91,0.88]
[355,"Salford",62,64,2599,32.9,16,20,189,26,15,16,137,24.4,16,18,326,25.3,"x","x",38,18.8,55,57,3106,31.8,56,59,2635,32.6,12,13,167,26.2,18,19,130,25.2,15,16,297,25.8,"x","x",46,19.100000000000001,49,53,3128,31.5,null,2527,83,265,44,157,46,422,45,60,23,3034,76,2317,77,307,34,185,38,492,36,37,24,2873,69,2247,66,246,24,134,19,380,22,49,10,2698,58,null,2293,96,93,96,96,350,64,54,71,72,197,58,48,66,57,547,62,52,69,66,51,25,24,31,22,2914,88,84,90,89,null,2168,95,92,97,95,313,63,51,71,61,146,56,47,60,56,459,61,49,67,59,61,23,18,20,18,2704,87,83,90,87,null,2099,95,92,97,96,324,58,49,71,68,166,48,42,58,55,490,55,47,67,63,57,21,5,19,19,2651,86,82,90,88,null,1920,95,92,96,96,349,54,46,68,70,153,50,43,54,56,502,53,45,63,66,56,27,18,30,21,2497,85,80,88,88,null,1841,94,92,96,94,319,52,45,68,64,146,47,39,51,54,465,50,43,63,61,46,24,26,28,30,2369,83,81,88,86,null,1809,96,95,97,90,91,287,71,54,61,39,41,159,61,43,52,34,31,446,67,50,58,37,38,78,27,19,24,17,14,2337,89,84,87,77,79,null,1744,96,95,96,89,90,317,64,53,62,37,35,162,57,41,52,27,31,479,62,49,58,34,34,69,26,22,26,20,16,2295,86,83,86,75,76,null,1693,96,93,95,88,323,70,52,63,38,157,54,29,44,21,480,65,45,57,32,92,32,14,22,11,2272,86,79,84,73,null,1807,64.400000000000006,226,14.6,103,24.3,329,17.600000000000001,102,4.9000000000000004,2238,54.8,null,1612,62.1,277,20.9,94,17,371,19.899999999999999,98,7.1,2081,52,null,1650,64.599999999999994,339,21.2,111,18,450,20.399999999999999,98,4.0999999999999996,2198,52.9,null,1534,61.1,424,32.5,153,13.7,577,27.6,101,5,2212,49.8,null,1766,56.3,346,18.5,137,9.5,483,15.9,98,4.0999999999999996,2347,45.8,null,4580,4181.54,91.3,210,171.14999999999998,81.5,9.8000000000000007,null,450,30,1650,2130,0.82,0.73,0.89,0.87]
[356,"Stockport",64,66,3129,34.799999999999997,21,24,126,26.9,26,27,120,27.3,24,25,246,27.1,"x","x",51,19.8,60,62,3525,34,56,59,3156,34.1,14,14,142,26.9,17,18,122,25.6,16,16,264,26.3,"x","x",52,19.100000000000001,52,54,3565,33.299999999999997,null,2953,83,311,39,154,39,465,39,63,16,3498,75,2800,79,374,33,146,32,520,33,45,11,3378,71,2688,69,376,20,129,21,505,20,69,9,3279,60,null,2702,98,96,99,98,380,70,59,79,80,226,47,34,54,60,606,62,50,69,72,59,24,15,25,25,3380,90,86,92,92,null,2612,98,95,99,98,362,75,64,83,83,213,48,37,62,59,575,65,54,75,74,93,20,12,19,19,3291,90,85,92,92,null,2494,98,95,98,98,369,72,62,85,85,237,43,33,61,59,606,60,51,75,75,64,30,22,36,33,3172,89,85,92,92,null,2409,97,96,99,98,436,65,53,80,79,231,31,28,51,56,667,53,45,70,71,65,22,17,22,32,3152,86,83,91,91,null,2162,95,94,97,98,383,67,59,77,82,230,32,26,52,55,613,54,46,68,72,48,25,23,27,23,2829,85,82,89,91,null,2186,97,96,96,90,92,335,80,61,65,39,43,171,66,47,58,40,38,506,75,57,62,39,41,120,41,25,35,24,18,2819,91,86,87,78,80,null,2199,96,96,96,91,91,371,70,56,68,39,40,142,63,47,62,47,39,513,68,53,66,41,40,120,39,23,37,22,19,2835,88,85,88,79,78,null,2189,97,96,96,93,420,77,58,64,40,137,53,39,48,30,557,71,54,60,38,116,35,24,28,18,2867,90,85,86,79,null,2390,76.099999999999994,324,31.5,130,19.2,454,28,140,12.1,2984,65.8,null,2319,74.3,304,26.6,102,19.600000000000001,406,24.9,95,7.4,2820,65,null,2443,74.7,313,26.5,114,19.3,427,24.6,135,8.9,3006,64.599999999999994,null,2430,71,326,31.9,124,16.899999999999999,450,27.8,128,8.6,3010,61.9,null,2513,63.2,306,22.5,97,12.4,403,20.100000000000001,125,9.6,3041,55.3,null,6340,5782.08,91.2,260,224.9,86.5,4.7,null,420,80,2450,2950,0.77,0.72,0.91,0.88]
[357,"Tameside",54,56,2670,32.6,11,13,142,25.7,6,6,83,22.4,9,11,225,24.5,"x","x",21,17.2,50,52,2929,31.8,42,45,2676,31.5,8,9,128,24,8,11,71,23.2,8,10,199,23.7,"x","x",26,17.600000000000001,39,42,2928,30.8,null,2544,76,241,33,125,24,366,30,32,"x",2953,69,2412,72,224,21,105,26,329,22,23,"x",2777,65,2337,61,237,20,96,19,333,20,7,"x",2690,55,null,2276,96,93,97,96,316,57,48,72,63,144,45,33,48,44,460,53,44,64,57,29,10,"x",17,10,2775,88,84,91,88,null,2215,96,93,97,96,311,56,49,71,68,147,44,33,48,47,458,52,43,64,61,30,"x","x","x","x",2708,87,84,90,89,null,2134,94,92,97,95,304,59,47,63,65,101,45,34,51,55,405,55,43,60,63,24,13,"x",13,17,2570,87,84,90,89,null,2073,94,93,96,95,378,52,43,64,60,123,31,23,51,47,501,47,38,61,57,26,"x","x",12,"x",2603,84,81,89,87,null,2018,93,92,96,95,327,51,45,60,61,109,37,29,41,43,436,47,41,55,57,18,"x","x","x","x",2480,85,82,88,87,null,1958,97,96,96,90,92,272,72,58,74,48,47,195,55,37,44,30,28,467,65,49,61,40,39,44,20,9,20,9,9,2474,89,86,88,79,80,null,1916,94,94,93,85,87,249,69,63,64,34,39,219,49,34,49,26,21,468,59,49,57,30,30,61,16,8,13,11,7,2449,85,83,84,73,74,null,1838,96,94,95,89,312,76,51,68,42,177,55,32,50,21,489,69,44,62,34,46,24,22,20,"x",2376,89,82,86,76,null,2300,66.400000000000006,223,27.4,118,14.4,341,22.9,67,4.5,2708,59.4,null,2362,65.099999999999994,247,16.2,152,19.100000000000001,399,17.3,73,5.5,2834,56.8,null,2321,65,242,16.899999999999999,207,13.5,449,15.4,71,4.2,2845,55.6,null,2375,58.4,272,16.899999999999999,195,11.3,467,14.6,94,4.3,2936,49.7,null,2447,53.5,271,12.9,156,7.1,427,10.8,120,5.8,2994,45.5,null,5230,4727.92,90.4,150,138.30000000000001,92.2,-1.8,null,450,40,2320,2810,0.74,0.78,0.87,0.85]
[358,"Trafford",71,73,2673,37.700000000000003,9,10,82,27.5,21,22,77,27.1,14,16,159,27.3,"x",7,42,20.3,67,69,2938,36.9,63,66,2642,36.5,"x","x",84,26.3,"x","x",72,23.1,7,9,156,24.8,"x","x",49,19.899999999999999,59,61,2900,35.5,null,2522,86,150,49,127,43,277,46,62,19,2868,81,2450,84,183,27,124,31,307,29,62,16,2833,76,2420,74,149,23,99,20,248,22,56,13,2737,68,null,2366,98,96,98,98,231,74,64,82,72,146,64,50,73,63,377,70,59,78,68,83,27,22,33,28,2836,92,89,94,92,null,2307,98,96,98,98,231,74,65,84,83,151,44,36,53,56,382,62,54,72,72,69,23,19,25,25,2763,91,88,93,93,null,2204,97,96,99,98,229,64,54,84,81,139,55,45,63,65,368,61,51,76,75,58,33,26,40,38,2640,90,88,94,93,null,2186,97,94,98,97,233,66,51,80,80,134,44,36,53,62,367,58,46,70,73,67,18,9,21,12,2632,89,85,92,91,null,2130,96,93,98,96,233,62,51,73,73,114,46,30,55,52,347,56,44,67,66,42,26,12,24,21,2527,89,85,92,91,null,2100,99,98,98,95,96,231,86,73,75,60,58,171,78,58,74,52,47,402,82,67,75,57,53,93,47,28,32,30,20,2599,94,91,92,87,87,null,2014,97,97,97,93,94,208,82,69,80,56,59,172,73,44,64,34,30,380,78,58,73,46,46,110,23,17,30,17,11,2510,91,88,91,83,83,null,1854,98,97,97,94,244,82,66,78,56,200,72,42,65,33,444,77,55,72,45,100,31,13,25,10,2400,91,86,90,81,null,2359,80.900000000000006,284,37.299999999999997,152,19.100000000000001,436,31,118,9.3000000000000007,2913,70.5,null,2390,82.7,243,33.299999999999997,182,22,425,28.5,97,12.4,2912,72.400000000000006,null,2219,82.2,338,30.8,168,21.4,506,27.7,101,6.9,2829,69.8,null,2341,78.599999999999994,278,31.7,156,16,434,26,95,13.7,2871,68.5,null,2306,74,335,29.6,151,13.9,486,24.7,102,4.9000000000000004,2895,63.3,null,5200,4815.2,92.6,210,181.44000000000003,86.4,6.2,null,500,60,2230,2780,0.81,0.85,0.93,0.91]
[359,"Wigan",56,61,3403,33.1,9,9,179,23.1,10,11,166,22.6,9,10,345,22.9,"x","x",16,18.3,51,55,3790,32,38,41,3405,30.9,6,6,174,21.7,4,5,170,21.1,5,6,344,21.4,"x","x",26,17.5,35,38,3798,29.9,null,3098,85,407,49,227,29,634,42,63,21,3805,76,2934,81,367,38,240,24,607,32,24,25,3576,72,2918,71,388,21,226,21,614,21,59,12,3602,62,null,2866,98,96,98,97,401,73,58,78,73,261,46,38,62,54,662,62,50,72,66,35,34,26,29,29,3575,91,87,93,90,null,2817,97,94,97,97,437,65,54,77,73,264,45,32,50,51,701,58,46,67,65,75,25,16,25,23,3601,88,83,90,89,null,2769,97,95,98,97,446,62,48,77,71,306,38,29,51,51,752,52,40,66,63,59,8,7,12,10,3585,86,82,90,89,null,2695,95,92,97,97,418,57,46,77,74,264,33,24,50,53,682,48,37,66,66,60,12,"x",23,22,3447,84,79,90,90,null,2566,96,93,98,97,428,58,50,78,77,286,40,30,54,53,714,51,42,68,68,64,22,16,27,30,3355,85,81,90,89,null,2579,97,97,97,91,94,338,81,71,74,48,57,326,66,43,59,29,33,664,73,57,67,39,45,90,36,21,20,17,13,3338,91,87,88,78,82,null,2432,97,97,97,90,93,349,74,66,77,42,50,291,60,41,63,30,31,640,68,55,70,36,41,117,29,13,24,19,11,3191,88,85,89,76,80,null,2545,97,96,97,92,381,76,61,76,49,331,60,38,58,29,712,69,50,67,40,94,26,14,26,13,3356,89,84,88,79,null,2988,75.099999999999994,307,24.4,327,22,634,23.2,141,6.4,3763,63.8,null,2932,75.599999999999994,308,27.3,306,18,614,22.6,141,7.8,3687,64.2,null,2965,68.2,321,23.4,349,14.3,670,18.7,134,3,3772,57.1,null,2993,67.099999999999994,408,23.8,311,17.399999999999999,719,21,159,5,3871,56,null,3132,58,356,18,281,9.3000000000000007,637,14.1,159,4.4000000000000004,3929,48.7,null,7050,6422.5499999999993,91.1,300,258.3,86.1,5,null,670,80,2970,3710,0.79,0.83,0.92,0.9]
[370,"Barnsley",58,62,2407,33.299999999999997,14,16,158,25,10,11,111,23.7,12,14,269,24.5,"x","x",33,19.600000000000001,53,56,2727,32.200000000000003,52,56,2419,32.6,9,12,179,24.5,8,11,95,24.1,9,12,274,24.4,"x",6,50,19.8,47,50,2751,31.5,null,2299,78,255,35,138,37,393,36,69,26,2771,70,2296,73,240,34,120,28,360,32,66,14,2728,66,2190,61,282,21,107,20,389,20,56,18,2639,54,null,2225,96,93,97,96,268,59,46,72,67,172,52,42,59,54,440,56,45,67,62,74,34,24,36,39,2747,88,84,91,89,null,2135,96,93,97,95,286,58,47,72,60,161,45,33,55,53,447,53,42,66,58,67,27,24,30,28,2659,86,82,90,87,null,1961,94,91,97,95,378,57,49,72,72,146,42,34,58,50,524,53,45,68,66,60,25,12,28,27,2552,84,79,89,87,null,1884,94,91,96,95,360,50,48,66,62,172,34,27,47,46,532,45,41,60,57,54,24,17,22,26,2473,82,79,87,85,null,1825,92,91,96,95,375,51,44,70,69,136,29,26,51,44,511,45,40,65,62,49,22,16,31,24,2391,80,78,88,86,null,1842,96,96,94,87,90,277,69,57,64,37,44,219,61,40,55,35,30,496,65,50,60,36,38,93,31,17,25,20,13,2434,87,83,84,74,76,null,1752,93,94,93,79,85,278,64,62,63,35,42,172,45,34,51,23,22,450,57,51,58,30,34,113,27,25,39,21,21,2316,82,82,83,67,72,null,1695,94,94,95,89,380,73,57,65,41,188,49,32,51,25,568,65,49,60,36,100,24,15,27,10,2366,84,80,84,73,null,2012,60.1,304,15.8,149,12.1,453,14.6,91,11,2556,50.3,null,1910,58,393,9.4,168,"x",561,"x",101,"x",2572,45.3,null,1943,55.5,364,16.2,221,6.8,585,12.6,78,5.0999999999999996,2606,44.4,null,1930,50.5,425,9.6,140,11.4,565,10.1,76,3.9,2571,40.200000000000003,null,2055,48.2,342,10.5,171,5.8,513,9,74,"x",2642,39.299999999999997,null,5240,4773.6399999999994,91.1,220,195.36,88.8,2.2999999999999998,null,580,60,1950,2580,0.8,0.86,0.92,0.89]
[371,"Doncaster",56,58,3284,33,16,17,233,25.1,13,14,145,24.6,15,16,378,24.9,"x","x",39,20.5,51,53,3728,32,44,47,3419,31.7,5,7,168,24.1,5,6,107,22.9,5,6,275,23.6,"x","x",34,19,40,43,3750,30.9,null,3215,78,387,33,143,38,530,34,47,13,3805,71,2945,71,380,28,128,38,508,30,50,16,3522,64,2937,62,362,23,119,20,481,22,58,12,3486,55,null,2875,96,93,97,96,456,65,53,76,73,157,64,52,70,70,613,65,53,74,72,57,25,21,28,33,3557,89,85,92,91,null,2830,95,93,97,96,446,59,49,73,72,119,56,38,67,68,565,59,47,72,71,80,38,25,41,35,3489,87,83,92,90,null,2745,93,90,97,96,468,48,41,66,69,124,55,45,66,63,592,49,42,66,68,84,27,20,42,38,3426,84,80,90,89,null,2671,92,88,96,94,466,46,38,71,64,107,49,43,67,58,573,46,39,70,63,68,37,28,41,40,3318,83,78,90,88,null,2564,93,90,96,94,501,48,37,68,67,116,44,40,57,60,617,47,37,66,66,57,39,33,44,42,3254,83,79,90,88,null,2507,92,94,90,80,85,459,65,53,55,31,36,153,62,51,59,37,41,612,65,52,56,32,37,85,35,35,31,25,24,3209,85,85,82,70,74,null,2367,91,93,92,79,84,484,59,51,59,26,35,138,56,46,60,36,36,622,59,50,59,28,35,95,33,27,33,20,20,3088,83,83,83,67,72,null,2384,94,92,93,86,535,66,47,57,34,142,58,44,55,35,677,64,47,56,34,78,37,22,27,19,3142,86,80,83,73,null,2761,66.3,419,18.899999999999999,156,14.7,575,17.7,100,12,3437,56.6,null,2763,64.099999999999994,403,18.100000000000001,167,18,570,18.100000000000001,120,10.8,3453,54.7,null,2738,65.099999999999994,500,20.2,194,17,694,19.3,103,7.8,3536,54.4,null,2761,61.7,459,19.8,275,12,734,16.899999999999999,90,16.7,3585,51.4,null,2848,52.4,427,14.1,295,8.1,722,11.6,111,2.7,3681,42.9,null,6990,6025.38,86.2,280,249.20000000000002,89,-2.8,null,690,50,2740,3480,0.78,0.9,0.91,0.88]
[372,"Rotherham",65,67,2940,35.200000000000003,27,29,160,28.5,14,18,160,26.3,21,23,320,27.4,"x","x",21,21.2,60,62,3321,34.299999999999997,58,61,2884,34,21,21,189,27.4,15,17,174,26.2,18,19,363,26.8,"x","x",24,17.899999999999999,53,56,3308,33,null,2766,76,301,33,219,38,520,35,38,13,3347,69,2603,70,308,29,198,23,506,26,22,"x",3148,62,2472,62,313,23,215,21,528,22,23,13,3039,55,null,2575,93,91,95,94,349,51,48,68,68,237,41,35,50,53,586,47,43,60,62,33,9,"x",18,9,3212,84,81,87,87,null,2423,93,91,95,95,337,55,49,67,65,269,38,31,49,52,606,48,41,59,59,29,14,"x","x",24,3074,83,80,87,87,null,2328,94,92,95,95,406,52,47,67,65,254,40,39,52,54,660,47,44,61,61,30,"x","x","x","x",3029,83,81,87,86,null,2158,94,94,97,96,481,56,52,71,66,274,38,36,54,55,755,49,46,65,62,23,17,"x",22,17,2945,82,81,88,86,null,2102,94,93,97,96,508,56,55,75,72,279,41,36,54,54,787,50,48,67,65,38,24,18,32,29,2941,81,80,88,87,null,2220,95,95,96,84,91,343,70,58,69,38,45,345,56,38,56,25,30,688,63,48,63,31,38,77,25,18,25,17,14,2988,86,82,87,70,77,null,2151,91,93,92,79,85,323,63,54,65,29,38,354,47,37,52,19,28,677,54,45,58,24,33,62,19,16,24,15,13,2896,81,80,83,65,71,null,2036,93,92,93,86,348,70,51,67,39,352,47,32,43,20,700,58,41,55,30,76,11,4,11,4,2814,82,77,81,70,null,2699,76,435,24.8,229,21.4,664,23.6,133,11.3,3496,63.6,null,2740,71.5,434,21.2,218,20.2,652,20.9,114,7,3506,60,null,2647,68.8,447,22.1,280,17.100000000000001,727,20.2,116,8.6,3492,56.7,null,2702,63.5,535,16.399999999999999,276,13.4,811,15.4,132,7.6,3645,50.8,null,2743,59.7,501,12.8,291,7.2,792,10.7,141,7.1,3676,47.1,null,6290,5711.32,90.8,250,226,90.4,0.3,null,730,60,2650,3440,0.78,0.87,0.92,0.89]
[373,"Sheffield",64,66,5370,33.4,30,31,235,27.9,23,25,574,26.2,25,27,809,26.7,"x","x",64,17.7,58,60,6360,32.200000000000003,52,56,5352,33.200000000000003,27,29,231,27.9,18,20,518,25.7,21,23,749,26.4,"x","x",51,17.8,48,51,6265,32.1,null,5076,78,494,47,664,38,1158,42,75,7,6391,70,4981,72,406,38,635,34,1041,36,67,4,6159,65,4627,62,416,28,668,29,1084,28,68,12,5832,54,null,4812,93,91,94,92,528,67,60,78,72,717,58,49,65,60,1245,62,54,71,65,88,15,8,20,14,6194,85,81,88,85,null,4520,93,90,95,93,577,62,54,77,66,657,56,49,66,56,1234,59,51,71,61,91,19,16,20,15,5887,84,80,88,84,null,4378,93,91,96,92,573,64,57,77,68,776,49,43,61,56,1349,56,49,68,61,96,21,13,19,18,5856,83,80,88,83,null,4240,93,90,95,92,627,62,53,74,67,760,50,42,63,58,1387,56,47,68,62,113,12,8,17,12,5770,82,78,87,83,null,3913,93,90,95,93,680,60,54,75,70,696,45,37,55,57,1376,52,46,65,63,119,20,14,20,22,5440,80,77,85,84,null,3965,94,94,94,87,89,520,74,68,72,51,57,719,61,45,53,33,35,1239,67,55,61,40,44,183,26,17,21,16,14,5399,85,83,84,74,76,null,3741,92,94,92,84,86,559,68,64,70,40,47,720,50,42,51,23,29,1279,58,51,59,31,37,150,25,20,27,15,15,5181,82,81,82,68,72,null,3766,93,93,94,88,524,76,63,73,51,824,56,37,54,27,1348,64,47,61,36,189,22,14,19,10,5310,83,79,83,72,null,4171,69.3,746,22.7,411,23.8,1157,23.1,201,5,5529,57.3,null,3982,68,821,25.1,400,19.3,1221,23.2,200,6.5,5403,55.6,null,3818,63.5,982,22,510,13.9,1492,19.2,199,5.5,5514,49.4,null,3797,64.5,1039,20.6,588,14.5,1627,18.399999999999999,187,7.5,5611,49.2,null,4053,58.3,900,14.7,605,9.1,1505,12.4,182,1.6,5740,44.5,null,11220,10064.34,89.7,400,371.6,92.9,-3.2,null,1490,90,3820,5400,0.82,0.91,0.92,0.89]
[380,"Bradford",56,61,6863,32.700000000000003,22,26,492,25.4,15,18,364,23.6,19,22,856,24.6,"x",4,85,18.600000000000001,51,56,7954,31.6,48,53,6898,32,20,22,366,25.6,12,13,378,23.5,16,18,744,24.5,"x","x",87,18.899999999999999,44,49,7877,31,null,6486,78,804,41,480,35,1284,39,97,16,7932,71,6295,73,734,38,427,28,1161,34,107,15,7638,66,6264,64,809,28,357,24,1166,27,70,9,7556,57,null,6116,92,90,94,93,881,62,55,70,69,510,45,40,56,50,1391,56,49,65,62,123,20,15,21,21,7682,84,81,87,86,null,6079,92,90,94,92,919,58,46,68,62,481,40,31,48,46,1400,52,41,61,57,95,13,11,12,11,7619,83,80,87,84,null,5734,91,89,94,93,1046,53,45,63,62,416,39,34,43,44,1462,49,42,57,57,120,18,13,19,17,7357,82,78,85,84,null,5395,92,89,94,93,1125,48,38,65,61,348,39,32,43,47,1473,46,36,60,58,107,8,7,15,11,7020,80,76,85,84,null,5250,91,89,95,93,1138,50,41,66,60,356,38,29,49,47,1494,47,38,62,57,99,13,8,12,15,6894,80,76,86,84,null,5213,94,93,92,85,86,954,62,53,59,41,36,522,47,37,45,28,28,1476,57,47,54,37,33,129,15,18,16,12,10,6833,84,82,82,73,73,null,4944,90,94,90,82,83,1011,56,52,57,33,32,539,40,33,42,22,23,1550,50,46,52,29,29,153,17,14,23,14,12,6656,79,81,79,68,69,null,4630,93,93,92,86,1217,65,55,58,36,525,46,37,42,25,1742,59,50,53,33,113,12,8,14,6,6496,82,79,80,70,null,4250,64.599999999999994,838,19.899999999999999,399,14.5,1237,18.2,132,6.1,5620,53,null,4174,64.400000000000006,813,18.5,436,16.5,1249,17.8,159,9.4,5582,52.4,null,3993,60.3,1084,21.7,438,10.7,1522,18.5,159,5,5679,47.5,null,3899,59.1,1274,19.3,507,9.1,1781,16.399999999999999,176,4,5859,44.4,null,3890,56.1,1245,16.600000000000001,535,8.6,1780,14.2,206,4.4000000000000004,5876,41.6,null,11650,10508.300000000001,90.2,290,276.95,95.5,-5.4,null,1490,110,4030,5630,0.75,0.91,0.85,0.82]
[381,"Calderdale",56,60,2463,33.299999999999997,11,12,110,25.1,10,11,96,23.7,11,12,206,24.5,"x","x",42,18.8,52,55,2747,32.4,46,49,2471,32.6,4,5,96,23.2,13,15,105,24.8,9,10,201,24,"x","x",33,19.600000000000001,42,45,2741,31.7,null,2303,86,218,42,139,49,357,45,37,27,2707,79,2250,80,203,40,108,30,311,36,53,19,2626,73,2276,68,221,25,110,36,331,29,48,15,2663,62,null,2144,95,92,96,96,262,65,52,77,71,137,52,38,52,45,399,60,47,69,62,57,33,26,33,26,2609,88,84,91,89,null,2172,95,93,97,95,291,56,51,69,64,156,54,42,64,56,447,55,48,68,61,49,22,18,31,29,2678,87,83,90,88,null,2069,95,92,96,95,342,56,45,71,70,152,53,39,62,56,494,55,44,68,66,57,21,16,26,19,2628,85,81,89,88,null,2037,94,92,96,95,359,51,42,69,69,115,46,37,58,57,474,50,41,66,66,54,24,19,35,31,2574,85,81,89,88,null,1950,93,90,96,94,288,50,42,68,69,135,44,37,55,51,423,48,40,64,64,53,21,15,17,25,2435,83,80,88,87,null,1936,95,95,95,85,90,314,72,59,66,38,43,131,61,45,54,44,40,445,69,55,62,40,42,74,30,16,24,16,12,2457,89,85,87,75,79,null,1841,95,93,95,83,89,313,67,52,63,35,39,146,68,42,65,43,39,459,68,49,64,37,39,74,42,23,28,24,18,2375,88,83,87,72,77,null,1834,96,95,95,90,368,76,56,65,43,147,65,31,65,27,515,73,49,65,38,63,35,25,25,19,2417,89,83,87,77,null,2127,74.3,331,32.9,70,21.4,401,30.9,78,7.7,2606,65.7,null,2065,70.599999999999994,345,29.6,132,22,477,27.5,78,15.4,2620,61.1,null,1944,70.5,383,33.4,176,17,559,28.3,84,9.5,2590,59.4,null,1978,65.599999999999994,386,22.5,155,21.3,541,22.2,92,4.3,2611,54.5,null,2072,60.5,378,15.9,104,11.5,482,14.9,76,7.9,2630,50.6,null,4940,4564.5600000000004,92.4,150,137.85,91.9,0.6,null,560,70,1940,2570,0.86,0.86,0.92,0.91]
[382,"Kirklees",64,66,4842,34.6,13,18,327,26.8,16,19,122,25.2,14,18,449,26.3,"x","x",70,20.3,59,61,5441,33.700000000000003,56,58,4901,33.9,12,15,383,26.5,10,11,128,23.6,12,14,511,25.8,4,4,79,20,51,53,5586,32.9,null,4612,83,637,45,199,34,836,42,87,20,5557,76,4478,77,551,34,169,22,720,31,89,13,5304,70,4350,67,640,23,152,20,792,23,104,14,5270,59,null,4355,97,95,98,97,640,70,56,76,72,219,52,47,58,57,859,65,54,71,68,101,23,18,24,23,5329,90,87,92,91,null,4185,97,95,98,97,710,67,59,73,76,223,53,39,55,58,933,64,54,69,71,120,27,22,28,30,5260,89,86,91,91,null,3924,96,94,98,96,819,61,52,71,69,196,40,32,46,51,1015,57,48,66,65,109,16,11,20,23,5073,86,83,89,88,null,3992,96,94,97,96,775,63,51,73,70,178,40,33,46,51,953,59,48,68,66,100,22,22,25,21,5069,87,83,90,89,null,3803,96,93,97,96,759,64,54,71,73,200,38,32,48,50,959,58,49,66,68,112,27,21,28,28,4894,87,82,89,89,null,3868,96,95,94,88,90,634,67,51,61,35,37,227,53,40,48,31,30,861,63,48,57,34,35,168,30,23,27,24,18,4900,88,84,86,76,78,null,3670,94,95,92,85,86,665,63,50,58,35,34,222,51,34,50,31,27,887,60,46,56,34,32,162,27,20,23,15,15,4726,85,83,83,73,74,null,3581,94,92,91,85,674,64,49,55,34,243,47,31,42,23,917,59,44,52,31,133,17,11,11,7,4637,85,80,81,72,null,3695,72.099999999999994,630,31.9,164,18.3,794,29.1,148,6.8,4637,62.6,null,3680,71.599999999999994,612,30.6,185,18.399999999999999,797,27.7,161,10.6,4638,62,null,3459,69.8,763,32.6,205,19,968,29.8,160,10.6,4589,59.3,null,3433,63.3,772,25.8,232,21.1,1004,24.7,174,6.9,4611,52.8,null,3362,58.1,944,25.6,196,13.8,1140,23.6,206,3.4,4708,47.4,null,10230,9411.6,92,120,101.16,84.3,7.6,null,950,90,3480,4520,0.83,0.91,0.93,0.91]
[383,"Leeds",60,63,8376,34,21,24,340,27.1,16,19,706,25.3,18,20,1046,25.9,"x","x",67,18.899999999999999,55,58,9662,33,51,56,8063,32.5,15,19,324,24.9,15,17,681,24.3,15,17,1005,24.5,"x","x",52,18.7,47,51,9299,31.5,null,7668,81,601,44,852,43,1453,43,82,7,9288,74,7400,77,576,41,801,42,1377,42,60,8,8902,70,7025,68,658,30,803,31,1461,30,68,7,8611,61,null,7249,94,93,96,95,742,60,52,69,69,826,59,49,64,60,1568,59,50,66,64,80,11,5,16,14,8944,87,84,90,89,null,6957,93,91,95,94,755,58,47,66,65,834,56,47,61,59,1589,57,47,64,61,84,11,8,18,13,8678,86,81,88,87,null,6643,93,90,95,94,858,54,48,64,65,718,48,40,57,55,1576,51,44,61,60,88,19,13,23,20,8338,84,81,87,86,null,6412,92,89,95,93,855,52,42,62,62,688,46,41,54,51,1543,49,41,59,57,75,15,11,19,20,8072,83,79,87,85,null,6173,91,88,94,94,926,49,42,61,61,602,43,37,53,53,1528,46,40,58,58,63,13,14,16,17,7792,82,78,86,86,null,6115,95,94,92,85,87,850,61,50,59,35,35,551,59,44,55,36,36,1401,60,47,57,36,36,148,16,9,11,12,7,7676,87,83,84,75,76,null,5954,93,92,91,82,85,911,61,50,59,35,36,511,47,39,49,30,31,1422,56,46,56,33,34,133,26,18,22,17,12,7519,85,82,83,72,74,null,5748,94,91,91,85,955,59,44,55,32,551,54,40,51,33,1506,57,42,53,32,135,16,10,13,6,7400,85,80,82,73,null,6288,65.900000000000006,854,24.9,463,21.2,1317,23.6,218,10.6,7823,57.3,null,6331,64.8,1016,19.8,474,17.899999999999999,1490,19.2,193,6.7,8015,55,null,6102,65,1107,20.8,546,14.7,1653,18.8,239,5.9,8001,53.7,null,5917,61.8,1351,26.6,668,16.600000000000001,2019,23.3,236,3.8,8174,50.6,null,5858,58.3,1362,19.600000000000001,755,12.3,2117,17,295,6.4,8272,45.9,null,15090,13716.810000000001,90.9,410,344.4,84,6.9,null,1680,120,6080,7880,0.76,0.84,0.9,0.87]
[384,"Wakefield",63,66,3522,33.799999999999997,18,19,207,26.1,13,17,128,26.4,16,18,335,26.2,"x","x",62,20.3,58,60,3979,32.9,60,63,3500,33.6,14,14,214,26.1,16,17,129,25.7,15,15,343,25.9,"x","x",61,19.600000000000001,54,57,3972,32.700000000000003,null,3324,77,395,37,179,39,574,38,69,20,3983,70,3185,75,339,30,176,30,515,30,74,12,3792,67,3130,64,334,23,199,32,533,26,64,9,3741,57,null,3002,96,94,97,96,504,64,54,76,72,207,58,47,66,55,711,62,52,73,67,87,26,20,33,31,3809,88,84,91,89,null,3002,95,91,97,96,432,63,46,71,67,218,50,40,56,57,650,58,44,66,64,84,26,19,30,24,3744,87,81,90,89,null,2857,94,91,96,95,450,58,48,69,70,187,47,38,63,64,637,55,45,67,68,72,21,14,26,21,3576,85,81,89,89,null,2872,93,89,96,95,446,53,44,66,65,189,53,39,62,62,635,53,43,65,64,83,22,18,33,25,3594,84,79,89,87,null,2612,93,88,95,94,437,53,37,61,65,191,48,36,53,54,628,51,37,59,62,83,30,23,36,39,3340,83,77,86,87,null,2604,93,94,92,83,87,422,61,53,59,32,33,229,52,41,50,29,33,651,58,49,56,31,33,105,29,21,28,22,18,3364,84,83,83,71,74,null,2496,93,93,92,82,85,448,60,46,57,29,32,211,41,28,46,20,22,659,54,40,54,26,29,111,31,23,31,25,19,3272,83,80,82,69,71,null,2543,92,90,92,83,446,64,46,62,33,221,44,27,43,20,667,57,39,56,29,97,31,25,33,23,3310,84,78,83,70,null,3063,75.2,466,42.3,236,33.9,702,39.5,157,14,3922,66.3,null,2978,71.400000000000006,590,30.2,244,18,834,26.6,169,7.1,3981,59.3,null,2838,69.2,632,34.5,365,22.5,997,30.1,148,15.5,3985,57.4,null,2932,66.5,523,39.4,412,17,935,29.5,140,7.9,4009,55.8,null,2790,60.9,618,30.4,458,17,1076,24.7,148,8.8000000000000007,4014,49.3,null,7370,6765.66,91.8,340,282.2,83,8.8000000000000007,null,1000,90,2840,3930,0.76,0.83,0.89,0.85]
[390,"Gateshead",59,61,2046,35.4,10,10,71,27.1,16,17,77,25.9,13,14,148,26.5,"x","x",24,20.5,54,57,2267,34.6,34,37,1920,31.7,7,10,82,24.4,7,12,69,24,7,11,151,24.2,"x","x",23,18.100000000000001,31,34,2126,31,null,1812,80,171,43,88,38,259,41,31,"x",2107,74,1787,75,174,25,77,34,251,27,17,18,2058,69,1691,66,180,22,97,22,277,22,26,"x",2004,59,null,1738,95,94,97,96,205,60,51,65,68,101,47,44,57,50,306,56,48,63,62,23,22,22,22,26,2072,88,87,91,90,null,1635,95,93,96,95,214,57,50,65,66,105,55,38,52,54,319,56,46,61,62,34,18,18,26,24,1996,87,84,89,88,null,1560,95,92,96,95,278,58,47,68,64,116,42,32,48,50,394,53,43,62,60,27,15,15,19,11,1988,86,81,88,87,null,1534,94,92,96,96,330,53,45,68,65,68,46,40,53,56,398,52,44,66,64,29,17,14,17,21,1965,84,81,88,88,null,1401,95,92,97,96,357,48,37,59,56,84,40,31,47,55,441,46,36,57,56,24,"x",17,21,25,1870,83,77,87,85,null,1441,97,97,96,91,92,241,76,63,70,44,48,112,71,42,64,38,38,353,74,56,68,42,45,63,29,14,19,21,10,1859,90,86,88,79,80,null,1436,96,96,96,89,92,255,73,53,72,39,46,107,70,48,73,38,42,362,72,51,72,39,45,70,24,17,24,19,14,1869,89,84,89,77,80,null,1446,98,95,95,92,307,77,51,70,41,123,56,37,50,26,430,71,47,64,37,69,23,9,22,7,1946,89,82,86,77,null,1811,69.2,213,27.7,65,36.9,278,29.9,86,7,2175,61.7,null,1722,71,243,17.3,75,29.3,318,20.100000000000001,87,3.4,2127,60.6,null,1773,70.599999999999994,288,22.2,64,29.7,352,23.6,93,3.2,2219,60.3,null,1678,66,292,13,68,"x",360,"x",101,"x",2139,54.2,null,1744,62.3,244,10.199999999999999,82,15.9,326,11.7,90,5.6,2160,52.3,null,3900,3377.4,86.6,180,151.19999999999999,84,2.6,null,350,40,1770,2160,0.8,0.89,0.89,0.87]
[391,"Newcastle upon Tyne",56,59,2752,34.1,16,18,173,27,6,6,87,22,13,14,260,25.4,"x","x",46,17,51,54,3153,33,44,48,2559,33.299999999999997,7,10,176,25.1,11,12,84,23.7,8,10,260,24.6,"x","x",31,17.399999999999999,41,44,2934,32.299999999999997,null,2596,79,273,34,127,28,400,32,39,10,3073,72,2462,76,274,30,108,29,382,30,20,"x",2897,69,2378,68,309,22,74,16,383,21,27,15,2807,61,null,2395,94,91,95,94,310,60,47,70,68,148,40,30,43,43,458,53,42,61,60,30,"x","x",13,"x",2910,86,82,88,87,null,2254,95,92,97,96,360,58,48,68,68,143,36,25,39,39,503,51,42,60,60,26,19,19,19,19,2810,86,82,89,88,null,2177,93,91,96,95,383,52,45,65,62,103,36,27,40,38,486,49,41,60,57,28,"x","x",14,18,2709,84,81,88,87,null,2050,94,90,96,93,436,52,42,67,62,94,30,24,37,38,530,48,39,62,58,39,15,10,13,15,2636,83,78,88,85,null,1987,92,88,96,94,482,45,39,62,67,101,32,26,44,43,583,43,36,59,62,32,16,9,19,"x",2622,80,75,86,86,null,1863,97,96,96,88,92,373,78,66,77,47,58,228,51,36,54,23,30,601,68,55,68,38,47,46,28,20,22,17,15,2518,89,84,88,75,80,null,1827,95,96,95,87,90,356,69,58,74,38,47,226,49,33,50,19,24,582,61,48,65,31,38,41,7,"x","x","x","x",2461,85,83,87,72,76,null,1747,94,94,94,88,355,75,68,70,52,240,52,32,46,22,595,66,53,61,40,51,20,14,16,14,2399,86,82,84,75,null,2019,69.099999999999994,215,25.6,238,9.1999999999999993,453,17,106,4.7,2578,57.3,null,1877,68.400000000000006,254,25.2,227,"x",481,"x",94,"x",2452,55.9,null,1975,63.6,311,22.2,168,7.1,479,16.899999999999999,98,5.0999999999999996,2553,52.6,null,1907,61.2,352,19.899999999999999,175,7.4,527,15.7,103,5.8,2538,49.5,null,2045,52.2,400,16.5,178,2.2000000000000002,578,12.1,102,4.9000000000000004,2725,41.9,null,5440,4841.6000000000004,89,320,{"$f":"IFERROR((PA72*(PC72/100)), \"x\")","v":255.04000000000002},79.7,9.3000000000000007,null,490,40,1970,2500,0.68,0.9,0.86,0.83]
[392,"North Tyneside",62,65,2025,36,15,21,84,28,18,19,201,27,18,20,285,27.3,"x","x",23,18.399999999999999,56,59,2341,34.799999999999997,51,54,2022,34.1,22,25,130,28.5,17,18,224,26.3,19,20,354,27.1,"x","x",22,17.8,46,48,2417,32.9,null,1964,83,206,44,224,42,430,43,39,15,2439,75,1779,82,166,40,210,36,376,38,40,"x",2204,73,1868,67,201,32,206,31,407,31,31,19,2313,60,null,1775,98,97,99,98,205,75,60,81,72,177,60,50,68,63,382,68,56,75,68,47,11,11,13,15,2212,91,88,93,91,null,1809,97,95,98,97,253,74,57,81,75,191,59,48,66,58,444,67,53,75,68,39,26,18,26,36,2293,90,85,92,91,null,1769,96,93,98,97,248,61,52,75,72,159,52,43,66,58,407,57,48,72,67,47,13,6,19,28,2229,87,83,91,90,null,1550,96,92,97,97,265,63,49,76,71,159,53,41,63,60,424,59,46,71,67,41,15,10,15,22,2018,87,80,90,89,null,1642,94,89,95,95,279,58,46,72,71,140,53,38,55,56,419,56,43,66,66,31,16,10,16,19,2097,86,79,88,88,null,1593,96,97,95,88,91,255,73,61,68,36,44,178,72,49,59,39,41,433,73,56,64,37,43,77,22,13,21,12,6,2107,88,85,86,75,78,null,1497,97,96,96,87,91,237,74,63,70,40,47,153,60,41,63,34,33,390,68,54,67,37,42,65,25,12,29,9,11,1954,89,85,88,75,79,null,1555,96,93,96,90,268,76,54,71,41,165,66,41,61,35,433,72,49,67,39,78,29,12,24,10,2067,89,81,87,76,null,1754,74.3,145,22.1,143,33.6,288,27.8,109,10.1,2151,64.8,null,1696,71.8,210,29.5,149,28.2,359,29,92,8.6999999999999993,2147,61.9,null,1772,68.099999999999994,176,18.8,131,17.600000000000001,307,18.2,85,"x",2165,58.5,null,1648,62,263,30.4,135,17,398,25.9,97,12.4,2143,53.1,null,1833,63.6,216,17.600000000000001,151,13.9,367,16.100000000000001,90,4.4000000000000004,2290,53.6,null,4360,3989.4,91.5,260,225.16,86.6,4.9000000000000004,null,310,50,1770,2130,0.8,0.87,0.9,0.89]
[393,"South Tyneside",58,61,1452,32.799999999999997,18,20,65,25.9,18,18,111,25,18,19,176,25.3,"x","x",24,19.3,53,56,1658,31.8,51,54,1391,32.4,15,18,72,25.5,17,22,116,26.1,16,20,188,25.8,"x","x",17,19.2,46,50,1605,31.4,null,1323,82,104,34,154,48,258,42,23,"x",1609,74,1300,76,157,33,107,41,264,36,19,"x",1586,68,1242,63,149,28,128,37,277,32,24,13,1545,56,null,1272,97,95,98,96,168,70,61,72,70,126,57,47,63,67,294,65,55,68,69,25,32,"x",32,32,1592,90,86,92,90,null,1225,95,94,97,96,168,63,60,67,71,104,60,49,66,61,272,62,56,67,67,34,18,9,9,15,1534,87,85,90,89,null,1136,97,95,98,96,193,65,52,72,70,145,52,44,58,61,338,59,49,66,67,"x","x","x","x","x",1490,88,83,90,89,null,1177,94,90,95,95,195,49,43,65,62,134,51,43,63,53,329,50,43,64,58,20,20,"x",25,"x",1529,84,79,88,86,null,1134,93,89,95,95,202,41,36,58,59,156,56,46,62,66,358,47,40,59,62,30,17,17,17,20,1527,80,76,85,85,null,1169,95,96,91,87,88,159,77,58,59,36,40,154,64,47,58,33,39,313,71,52,59,35,40,46,20,9,7,9,"x",1531,88,84,82,74,75,null,1077,97,96,95,88,92,175,71,57,74,49,44,119,67,48,62,38,42,294,69,53,69,45,43,50,28,10,18,14,8,1422,89,84,87,76,79,null,1074,94,94,93,88,211,81,53,70,43,133,60,43,56,37,344,73,49,65,41,39,"x",8,10,"x",1459,87,81,84,74,null,1283,71.900000000000006,204,25,172,26.7,376,25.8,77,11.7,1736,59.2,null,1308,72.2,247,24.7,123,17.899999999999999,370,22.4,105,9.5,1783,58.2,null,1350,71.3,223,19.7,124,19.399999999999999,347,19.600000000000001,100,6,1797,57.7,null,1354,66.8,203,12.3,129,17.100000000000001,332,14.2,90,6.7,1776,53.9,null,1456,59.6,247,12.6,120,11.7,367,12.3,90,4.4000000000000004,1913,47.9,null,3400,3039.6,89.4,190,163.78,86.2,3.2,null,340,20,1350,1710,0.79,0.83,0.88,0.87]
[394,"Sunderland",64,66,2626,34.799999999999997,26,28,233,28.2,19,20,189,25.3,23,24,422,26.9,"x","x",29,18.600000000000001,57,60,3103,33.6,56,60,2798,33.9,12,12,215,25.2,12,13,186,24.6,12,12,401,24.9,"x","x",35,18.5,50,53,3253,32.6,null,2652,86,318,36,230,37,548,36,35,14,3247,77,2613,82,289,35,213,34,502,35,43,16,3164,74,2482,78,351,32,160,29,511,31,49,12,3049,69,null,2556,97,95,98,98,304,59,48,71,62,254,50,42,60,59,558,55,46,66,60,56,23,13,23,25,3177,88,85,91,90,null,2462,97,94,98,95,332,56,46,64,65,217,35,27,42,46,549,48,38,56,57,60,18,10,18,13,3073,87,83,89,87,null,2335,96,94,98,97,370,54,45,70,62,216,42,36,48,49,586,49,42,62,57,37,"x","x",8,8,2964,86,82,90,88,null,2246,94,90,97,95,422,54,47,68,65,189,39,33,47,47,611,49,42,62,60,31,"x","x","x",10,2893,84,79,88,86,null,2197,93,89,95,94,449,48,39,63,62,208,30,23,38,43,657,42,34,55,56,51,10,"x",12,14,2910,80,75,85,84,null,2245,97,96,95,89,91,294,70,58,71,39,43,251,58,39,54,31,32,545,65,49,63,36,38,92,27,14,22,13,13,2884,89,85,87,76,79,null,2092,96,96,95,88,89,282,61,53,68,36,37,236,57,39,50,28,31,518,59,47,60,32,34,80,28,14,18,14,11,2692,87,84,86,75,76,null,2155,97,95,95,91,368,69,53,62,39,241,54,36,48,27,609,63,46,56,34,80,20,13,21,10,2848,88,83,85,77,null,2549,72.400000000000006,325,21.2,249,10,574,16.399999999999999,111,4.5,3234,60.1,null,2453,76,400,27.5,259,13.5,659,22,116,10.3,3228,62.6,null,2543,68.599999999999994,372,12.9,269,11.2,641,12.2,121,5.8,3306,55.4,null,2603,66,454,13.7,263,8.6999999999999993,717,11.9,128,6.3,3448,52.6,null,2673,56.7,463,11.7,247,6.5,710,9.9,142,3.5,3525,45.1,null,6260,5746.6799999999994,91.8,330,290.72999999999996,88.1,3.7,null,640,50,2550,3240,0.78,0.83,0.9,0.88]
[420,"Isles Of Scilly","**","**","**","**","**","**","**","**","**","**","**","**","**","**","**","**","**","**","**","**","**","**","**","**","**","**","**","**","**","**","**","**","**","**","**","**","**","**","**","**","**","**","**","**","**","**","**","**",null,"*","*","*","*","*","*","*","*","*","*","*","*","*","*","*","*","*","*","*","*","*","*","*","*","*","*","*","*","*","*","*","*","*","*","*","*",null,"*","*","*","*","*","*","*","*","*","*","*","*","*","*","*","*","*","*","*","*","*","*","*","*","*","*","*","*","*","*",null,"*","*","*","*","*","*","*","*","*","*","*","*","*","*","*","*","*","*","*","*","*","*","*","*","*","*","*","*","*","*",null,"*","*","*","*","*","*","*","*","*","*","*","*","*","*","*","*","*","*","*","*","*","*","*","*","*","*","*","*","*","*",null,20,100,"x",100,"x","x","x","x","x","x","x","x","x","x","x","x","x","x","x","x",0,".",".",".",".",23,87,78,87,"x",null,"x","x","x","x","x","x","x","x","x","x",0,".",".",".",".","x","x","x","x","x",0,".",".",".",".",20,"x","x","x",100,null,17,"x",100,100,"x","x","x","x","x","x","x","x","x","x","x","x","x","x",4,"x","x","x","x","x",0,".",".",".",".",".",21,"x","x","x",67,81,null,"x","x","x","x","x","x","x","x","x","x","x","x",0,".",".",".",".",".","x","x","x","x","x","x",0,".",".",".",".",".",18,"x","x",83,"x",83,null,19,"x","x","x",84,"x","x","x","x","x","x","x","x","x","x","x","x","x","x","x",0,".",".",".",".",22,"x",86,"x",77,null,17,"x","x","x","x","x",4,"x",0,".",21,81,null,17,"x","x","x","x","x","x","x","x","x",22,86.4,null,13,76.900000000000006,"x","x","x","x","x","x","x","x",19,68.400000000000006,null,"x","x","x","x","x","x","x","x",0,".",22,68.2,null,12,100,"x","x",0,".","x","x","x","x",15,80,null,null,0,null,null,0,null,null,null,"x","x",10,20,"x","x",1,0.95]
[800,"Bath and North East Somerset",66,68,1610,35.5,22,23,64,28.7,16,18,108,26.5,18,20,172,27.3,"x","x",28,18.7,60,63,1860,34.5,52,55,1609,34.299999999999997,16,16,62,27.5,6,8,78,24.5,11,11,140,25.8,"x","x","x",18.3,48,51,1822,33.5,null,1484,82,154,38,104,33,258,36,33,15,1780,74,1605,77,88,39,112,29,200,34,36,28,1846,71,1464,66,126,29,112,25,238,27,29,"x",1736,60,null,1523,98,95,98,98,161,70,55,82,76,130,70,58,77,73,291,70,57,80,75,53,34,23,36,32,1870,92,87,94,92,null,1407,98,96,99,98,176,68,60,81,82,117,67,55,71,72,293,68,58,77,78,36,31,19,19,19,1740,91,88,94,93,null,1368,97,95,99,97,184,67,59,79,78,102,51,43,63,57,286,62,53,73,71,33,18,18,27,24,1690,89,87,93,91,null,1289,98,96,99,97,198,72,69,86,87,110,57,53,68,65,308,67,63,80,79,27,26,15,26,22,1629,91,88,94,92,null,1288,97,96,99,98,208,75,65,83,80,99,67,53,70,64,307,72,61,79,75,38,24,13,18,21,1634,91,87,93,92,null,1276,98,96,96,91,93,196,84,72,73,44,58,109,77,61,68,47,47,305,82,68,71,45,54,57,21,9,14,9,5,1639,92,88,89,80,83,null,1277,96,95,95,90,90,189,71,62,67,42,48,151,70,54,65,42,42,340,71,59,66,42,45,53,19,10,19,9,10,1673,89,85,86,77,79,null,1245,98,95,95,91,191,84,62,70,48,129,70,47,55,38,320,78,56,64,44,65,23,12,18,11,1633,91,84,86,78,null,1904,70.2,156,30.8,76,27.6,232,29.7,77,3.9,2215,63.6,null,1773,66,189,17.5,94,24.5,283,19.8,83,4.8,2139,57.5,null,1830,72.099999999999994,155,18.7,"x","x","x","x",81,11.1,2134,64.2,null,1936,69.3,139,18,99,7.1,238,13.4,91,8.8000000000000007,2265,61,null,1932,65.400000000000006,94,20.2,65,12.3,159,17,81,13.6,2172,59.9,null,3200,2915.2,91.1,140,119.28,85.2,5.9,null,220,40,1830,2090,0.83,0.87,0.93,0.92]
[801,"Bristol, City of",59,63,4547,34.700000000000003,22,25,233,27.9,19,21,253,25.5,20,23,486,26.6,14,16,44,22.7,55,58,5202,33.700000000000003,49,53,4631,33.6,13,14,166,26.1,9,10,214,25.1,11,12,380,25.5,"x","x",35,18.899999999999999,46,50,5158,32.9,null,4235,81,435,39,322,42,757,40,55,15,5080,74,4024,77,439,36,268,29,707,33,55,9,4811,70,3819,66,378,29,241,28,619,29,56,13,4515,60,null,3864,97,94,98,97,533,67,55,76,69,300,57,46,66,63,833,63,52,72,67,68,18,4,21,18,4790,89,85,92,90,null,3651,96,93,98,96,510,63,49,70,65,259,57,46,59,55,769,61,48,67,61,58,33,21,31,26,4503,89,84,91,89,null,3641,94,91,96,95,465,61,45,74,73,237,51,41,58,55,702,57,43,69,67,66,24,15,24,20,4434,87,82,90,89,null,3328,93,90,96,95,515,50,40,61,66,226,47,41,57,54,741,49,40,60,62,97,29,21,35,30,4188,83,79,88,88,null,3255,92,89,94,93,514,51,41,62,66,236,45,37,51,54,750,49,40,59,62,86,22,16,30,27,4105,82,78,86,86,null,3150,93,94,92,83,87,459,70,54,56,37,41,203,54,37,43,28,31,662,65,49,52,34,38,142,30,23,25,18,17,3963,86,84,83,73,76,null,2873,94,94,93,84,87,430,61,52,58,35,38,182,57,40,54,32,36,612,60,48,57,34,37,133,30,20,26,20,18,3621,86,84,84,73,76,null,2934,92,92,93,86,482,63,45,56,34,160,51,38,47,29,642,60,43,54,33,135,25,19,28,17,3719,84,81,84,74,null,2549,61.5,404,25.2,118,22,522,24.5,189,4.2,3262,52.3,null,2233,61.6,439,27.3,134,17.899999999999999,573,25.1,160,6.3,2967,51.6,null,2261,61.5,464,20.5,113,10.6,577,18.5,187,10.199999999999999,3030,50.2,null,2411,53.3,352,20.7,89,12.4,441,19,149,12.1,3001,46.2,null,2476,48.3,378,12.7,113,7.1,491,11.4,164,4.9000000000000004,3131,40.200000000000003,null,7270,6259.47,86.1,400,327.2,81.8,4.4000000000000004,null,590,80,2260,2930,0.8,0.88,0.9,0.88]
[802,"North Somerset",72,74,2185,35.700000000000003,30,32,73,29.9,25,25,97,26.9,27,28,170,28.2,"x","x",20,19.2,68,70,2400,35,66,68,2155,34.9,18,18,79,28.6,21,22,97,27.5,19,20,176,28,"x","x",12,17.5,62,64,2379,34.200000000000003,null,2042,86,177,54,132,48,309,51,14,21,2376,81,1974,84,206,39,130,39,336,39,16,"x",2340,77,1834,65,228,32,118,27,346,31,16,"x",2202,59,null,1963,97,95,99,98,217,67,53,79,75,140,52,39,59,59,357,61,48,71,69,19,26,16,37,21,2345,91,87,94,92,null,1762,96,94,98,98,287,65,56,79,78,124,45,36,52,56,411,59,50,71,71,"x","x","x","x","x",2195,89,85,92,92,null,1697,95,93,97,97,310,60,52,75,74,127,49,41,55,54,437,57,49,70,68,16,"x","x",25,25,2159,86,83,91,91,null,1747,95,91,97,95,270,51,44,73,74,124,40,28,50,50,394,47,39,66,67,22,23,18,36,32,2167,85,81,91,89,null,1669,93,91,96,97,265,57,48,68,72,149,47,36,61,58,414,54,43,66,67,17,24,"x",24,18,2113,85,81,90,90,null,1724,97,95,95,86,90,212,71,47,60,25,35,112,67,42,55,38,36,324,70,45,58,30,35,32,28,25,22,16,19,2080,92,86,88,77,81,null,1658,95,94,93,85,87,255,72,54,68,34,36,115,59,42,55,33,33,370,68,50,64,34,35,40,13,13,8,"x",8,2071,89,84,86,74,77,null,1624,95,91,92,85,263,68,44,63,35,118,62,37,61,34,381,66,42,63,35,31,10,"x","x","x",2038,88,81,85,74,null,1775,67.5,311,28.6,107,21.5,418,26.8,53,9.4,2246,58.5,null,1705,68.599999999999994,350,30.9,107,18.7,457,28,53,7.5,2215,58.8,null,1612,66.7,507,42.6,127,20.5,634,38.200000000000003,57,12.3,2303,57.5,null,1603,65.599999999999994,515,40.6,112,"x",627,"x",46,"x",2276,56.1,null,1713,62.3,349,26.4,133,9.8000000000000007,482,21.8,70,7.1,2265,52,null,4270,4039.4199999999996,94.6,120,111,92.5,2.1,null,630,30,1610,2270,0.9,0.89,0.95,0.93]
[803,"South Gloucestershire",74,76,3094,35.799999999999997,27,29,89,29.3,29,29,80,28.2,28,29,169,28.8,"x","x",56,19.5,70,72,3345,35.200000000000003,66,71,3144,34.799999999999997,22,27,63,28.7,14,15,102,26.7,17,19,165,27.4,"x","x",45,19.600000000000001,62,67,3395,34.1,null,2986,80,204,30,135,40,339,34,64,19,3406,74,2744,77,206,27,126,42,332,33,73,11,3171,71,2680,62,218,21,130,22,348,22,54,15,3097,57,null,2720,98,94,98,97,240,67,40,72,72,134,63,53,71,71,374,66,45,72,71,81,31,19,28,27,3183,92,87,93,92,null,2623,97,94,98,97,287,61,41,71,72,121,64,45,67,73,408,62,42,70,72,61,31,18,30,26,3109,91,85,93,92,null,2576,96,92,97,96,353,64,51,73,71,122,51,34,57,59,475,61,47,68,68,57,26,23,30,32,3119,89,84,92,90,null,2509,95,91,97,96,300,56,38,68,62,116,48,37,58,50,416,54,38,65,59,60,18,13,28,22,2997,87,82,91,89,null,2459,96,92,97,97,324,56,46,73,74,123,55,35,69,68,447,56,43,72,72,49,22,16,24,24,2960,89,83,92,92,null,2367,96,95,95,87,90,318,69,56,62,35,40,148,65,45,61,32,36,466,68,52,62,34,38,79,30,20,24,15,16,2916,90,86,87,77,80,null,2252,95,94,92,87,87,318,64,47,61,38,36,144,58,38,51,37,32,462,63,45,58,37,34,83,37,24,31,19,22,2802,88,84,85,76,76,null,2225,95,92,94,87,332,69,45,60,31,161,69,50,57,42,493,69,46,59,35,75,23,16,17,9,2797,89,82,86,76,null,2684,62.9,243,21.4,75,18.7,318,20.8,110,7.3,3112,56.7,null,2720,62.8,238,12.2,78,19.2,316,13.9,81,9.9,3117,56.4,null,2755,62.4,283,18.399999999999999,109,22.9,392,19.600000000000001,105,8.6,3254,55.5,null,2765,62.5,212,13.7,119,15.1,331,14.2,92,9.8000000000000007,3189,56,null,2601,56.2,272,16.5,153,11.1,425,14.6,81,6.2,3107,49.2,null,5910,4993.95,84.5,90,86.039999999999992,95.6,-11.1,null,390,70,2760,3220,0.86,0.83,0.93,0.92]
[805,"Hartlepool",63,65,1057,34.200000000000003,12,12,34,24.9,17,17,87,24.2,16,16,121,24.4,"x","x",4,21.3,58,60,1183,33.1,49,52,1038,32.6,"x","x",40,24.3,"x","x",72,23,12,13,112,23.5,"x","x",4,17,45,48,1155,31.7,null,981,87,61,46,107,42,168,43,11,0,1162,80,960,83,78,32,98,38,176,35,9,"x",1147,75,971,67,82,26,80,33,162,29,3,"x",1137,61,null,917,95,95,97,94,97,61,54,71,68,106,52,53,60,57,203,56,53,66,62,17,24,24,24,24,1139,87,87,90,87,null,918,96,94,97,97,116,63,53,72,67,97,61,51,60,62,213,62,52,67,65,6,"x","x","x","x",1138,89,86,91,91,null,894,93,91,95,95,109,44,36,50,50,89,47,44,58,52,198,45,39,54,51,"x","x","x","x","x",1096,85,82,87,86,null,841,94,89,96,93,150,39,31,44,45,76,37,30,42,39,226,38,31,43,43,8,"x","x","x","x",1078,81,76,84,81,null,818,"x","x","x","x",134,44,37,57,62,61,36,36,44,39,195,42,36,53,55,3,"x","x","x","x",1017,82,78,86,84,null,764,98,97,96,91,92,151,77,64,74,49,52,90,64,47,54,39,38,241,73,58,67,45,46,18,22,"x",17,"x","x",1024,90,86,88,79,80,null,757,96,97,96,90,92,167,77,62,81,47,53,77,71,"x","x","x","x",244,75,"x","x","x","x",34,21,"x","x","x","x",1035,89,85,89,76,80,null,742,97,96,96,91,161,78,60,63,45,75,49,39,51,29,236,69,53,59,40,"x","x","x",20,"x",1003,88,84,85,77,null,956,64.7,104,34.6,70,"x",174,"x",37,"x",1167,59,null,893,58.6,125,16.8,100,"x",225,"x",41,"x",1159,48.8,null,845,72.8,240,30.4,159,20.100000000000001,399,26.3,41,12.2,1285,56.4,null,822,65.900000000000006,201,14.9,178,23.6,379,19,48,10.4,1250,49.6,null,862,62.5,167,21,161,13,328,17.100000000000001,54,14.8,1244,48.5,null,2290,2104.5100000000002,91.9,80,68.320000000000007,85.4,6.5,null,400,30,850,1270,0.8,0.93,0.92,0.88]
[806,"Middlesbrough",51,55,1642,33.200000000000003,5,8,64,22.4,12,14,113,23.7,9,12,177,23.3,"x","x",31,18.3,46,50,1868,31.9,39,42,1707,30.8,"x","x",45,22.9,"x","x",83,22.1,8,9,128,22.4,"x","x",34,17.600000000000001,36,38,1886,29.9,null,1600,76,106,25,121,35,227,30,41,7,1880,69,1560,69,111,27,110,20,221,24,32,13,1824,62,1567,58,117,19,94,10,211,15,32,"x",1821,52,null,1500,95,92,96,94,162,62,49,66,67,116,56,42,61,63,278,59,46,64,65,36,28,25,31,28,1827,88,83,89,88,null,1482,95,91,96,94,171,55,45,61,68,117,39,32,53,47,288,49,40,58,60,38,16,"x",13,"x",1818,85,81,88,87,null,1434,92,90,95,92,144,53,38,53,58,134,37,30,50,51,278,45,34,51,55,40,35,18,30,25,1760,83,79,86,84,null,1444,91,88,94,92,157,38,28,42,45,127,35,31,43,49,284,37,30,42,47,35,11,14,23,14,1770,80,77,84,83,null,1311,90,87,94,92,140,46,38,63,56,139,36,24,42,49,279,41,31,52,53,38,21,21,29,26,1640,80,76,85,84,null,1163,96,96,94,86,90,187,78,66,73,49,55,163,58,47,54,33,36,350,69,57,64,42,46,55,47,27,42,29,22,1569,88,85,85,74,78,null,1119,93,95,94,86,88,195,63,64,69,36,47,147,53,48,61,31,38,342,58,57,65,34,43,58,40,24,31,29,22,1519,83,84,85,72,76,null,1158,94,93,93,87,166,58,43,61,31,175,54,39,49,28,341,56,41,55,30,66,30,24,27,23,1566,83,79,82,72,null,1135,61.1,187,21.4,114,"x",301,"x",74,"x",1510,50.3,null,1124,58.5,141,19.899999999999999,153,"x",294,"x",77,"x",1495,47.6,null,1217,49.5,167,13.2,135,18.5,302,15.6,78,"x",1600,40.9,null,1281,54.5,155,12.3,152,16.399999999999999,307,14.3,101,4,1689,44.2,null,1392,44.3,143,9.8000000000000007,123,7.3,266,8.6,83,"x",1741,36.9,null,3330,{"$f":"IFERROR((OX82*(OZ82/100)), \"x\")","v":2923.74},87.8,150,130.35000000000002,86.9,0.9,null,300,40,1220,1560,0.8,0.78,0.87,0.85]
[807,"Redcar and Cleveland",56,59,1291,32.1,14,19,64,26.1,16,20,118,25.4,15,20,182,25.6,"x","x",23,18.8,50,54,1498,31.1,50,55,1391,30.9,20,20,50,27.1,14,17,102,25.6,16,18,152,26.1,"x","x",19,18.5,46,51,1564,30.3,null,1309,81,129,47,119,39,248,43,27,"x",1585,74,1297,73,108,35,128,27,236,31,23,17,1560,66,1304,62,127,23,139,26,266,24,25,"x",1598,55,null,1227,96,95,98,98,155,62,51,76,74,140,54,44,64,66,295,58,47,70,70,33,24,21,24,21,1557,87,84,91,91,null,1246,95,92,97,96,165,68,53,75,70,150,55,42,61,63,315,62,48,68,67,31,19,10,16,23,1595,87,82,90,89,null,1144,95,95,98,97,180,59,57,73,73,171,50,41,61,63,351,55,49,67,68,23,35,30,35,35,1518,85,83,90,89,null,1128,93,91,96,97,215,56,47,72,67,159,58,46,64,58,374,57,46,69,63,23,13,13,22,22,1525,83,79,88,88,null,1124,"x","x","x","x",146,55,50,73,70,153,47,37,57,54,299,51,43,65,62,18,"x","x","x","x",1441,82,79,87,86,null,1032,98,98,97,93,95,180,84,74,87,55,63,158,72,62,64,38,50,338,78,69,76,47,57,52,23,19,17,12,12,1424,91,88,89,79,83,null,1005,97,97,97,90,93,189,83,70,80,49,57,154,67,53,69,33,44,343,76,63,75,42,51,50,20,22,28,18,16,1399,89,86,89,75,80,null,1078,98,96,96,91,205,76,62,74,46,179,59,46,63,36,384,68,55,69,42,50,18,10,22,8,1512,88,83,87,76,null,1321,69.900000000000006,203,17.2,252,21.4,455,19.600000000000001,69,7.2,1846,55.1,null,1307,68.3,194,24.7,241,20.3,435,22.3,68,7.4,1810,55,null,1241,68.900000000000006,277,34.299999999999997,271,25.1,548,29.7,68,4.4000000000000004,1858,55,null,1295,65.8,314,38.9,292,"x",606,"x",47,"x",1948,53.2,null,1325,61.7,258,27.1,269,13.4,527,20.100000000000001,62,6.5,1914,48.5,null,3140,2778.9,88.5,140,117.03999999999999,83.6,5,null,540,40,1250,1830,0.83,0.86,0.9,0.88]
[808,"Stockton-on-Tees",52,55,2113,33.799999999999997,12,15,73,24.6,8,9,148,24.9,10,11,221,24.8,"x","x",25,17.5,47,50,2402,32.799999999999997,41,44,2211,32.200000000000003,6,8,87,24.3,7,10,131,23.9,6,9,218,24.1,"x","x",25,17.399999999999999,38,41,2495,31.4,null,2114,82,137,30,174,36,311,33,30,"x",2457,75,2020,74,171,29,136,33,307,31,25,"x",2358,67,1982,62,166,16,142,13,308,15,24,"x",2318,55,null,1937,97,95,98,97,238,63,56,67,67,161,49,40,59,58,399,58,50,64,63,31,19,16,13,16,2368,89,86,91,90,null,1931,96,93,97,96,194,50,35,56,65,186,49,39,53,53,380,50,37,54,59,30,17,"x",13,10,2344,87,83,89,89,null,1841,94,91,97,97,219,48,36,61,68,151,45,37,53,48,370,47,36,58,60,32,19,13,25,19,2250,85,81,89,89,null,1723,94,88,97,97,221,45,34,62,61,146,34,25,49,54,367,41,31,57,58,25,"x","x","x","x",2123,83,77,89,89,null,1706,95,91,96,97,236,52,40,67,74,148,39,28,53,56,384,47,36,61,67,21,19,14,29,24,2114,85,80,89,91,null,1666,97,96,96,90,92,235,74,61,62,44,44,147,60,45,54,35,35,382,69,55,59,41,41,66,36,30,35,14,24,2115,90,86,87,79,80,null,1546,95,96,97,89,91,237,63,62,69,44,44,160,51,43,56,29,33,397,58,54,64,38,40,66,21,15,15,11,8,2010,85,85,87,77,78,null,1514,96,93,94,89,243,70,59,66,47,162,47,33,48,23,405,61,48,59,38,69,23,19,19,14,1991,86,82,84,76,null,1814,66.099999999999994,194,16,84,21.4,278,17.600000000000001,90,5.6,2182,57.4,null,1808,64.3,218,11.9,109,17.399999999999999,327,13.8,99,4,2234,54.3,null,1791,67.900000000000006,289,22.1,74,18.899999999999999,363,21.5,108,2.8,2262,57.3,null,1807,63.6,277,20.9,135,9.6,412,17.2,100,7,2319,52.9,null,2039,57.4,174,8,111,9,285,8.4,106,3.8,2430,49.3,null,4440,4018.2000000000003,90.5,160,137.44000000000003,85.9,4.7,null,360,40,1790,2190,0.79,0.82,0.89,0.88]
[810,"Kingston Upon Hull, City of",51,56,2896,31.4,9,13,116,23.3,6,9,152,23.2,7,11,268,23.3,"x","x",38,17.5,46,51,3238,30.5,39,46,2902,30.1,8,9,117,23,12,14,146,23.5,10,12,263,23.2,"x","x",59,19.5,35,42,3279,29.3,null,2691,75,286,30,211,25,497,28,77,14,3278,66,2544,70,254,35,193,24,447,30,61,13,3078,63,2414,59,305,20,196,20,501,20,50,16,2982,51,null,2454,95,92,96,95,340,66,52,74,69,217,46,34,55,53,557,58,45,66,62,69,26,22,33,28,3096,87,82,89,87,null,2313,93,91,95,94,343,66,53,72,72,233,46,36,55,52,576,58,46,65,64,63,29,22,32,29,2972,84,80,88,87,null,2218,94,91,96,96,333,59,43,71,71,230,48,33,53,53,563,54,39,64,63,58,28,16,26,28,2852,85,79,88,87,null,2236,92,88,96,93,283,48,36,62,61,248,35,25,43,44,531,42,31,53,53,69,26,22,23,22,2844,81,76,86,84,null,1943,92,89,94,96,351,52,38,62,69,211,29,22,39,45,562,43,32,54,60,67,16,13,18,18,2581,79,74,83,86,null,1929,96,94,94,85,89,276,73,64,72,40,47,245,55,34,49,24,26,521,64,50,61,33,37,92,18,13,16,15,10,2546,86,82,84,71,75,null,1816,91,94,94,79,85,313,73,60,71,39,44,254,44,26,46,20,21,567,60,45,60,31,34,84,31,23,31,18,19,2470,82,80,84,66,71,null,1811,94,92,91,84,333,72,48,62,37,301,43,24,37,16,634,58,37,50,27,107,"x",17,19,12,2555,82,75,78,67,null,1874,61.3,332,17.2,142,9.1999999999999993,474,14.8,110,10.9,2458,50,null,2010,57.9,364,14,107,15,471,14.2,106,5.7,2587,47.8,null,1994,57.7,365,10.4,154,11.7,519,10.8,99,3,2613,46.3,null,2098,54.4,415,7.2,181,"x",596,"x",110,"x",2804,42.3,null,2303,45.6,340,3.8,157,6.4,497,4.5999999999999996,114,"x",2914,36.9,null,6200,5642,91,220,198.88,90.4,0.7,null,520,40,1990,2560,0.79,0.88,0.88,0.86]
[811,"East Riding of Yorkshire",67,69,3169,35.9,20,21,92,27.8,20,22,122,27.6,20,21,214,27.7,"x","x",48,20.2,63,65,3458,35.1,57,58,3262,34.799999999999997,5,5,77,25.2,16,16,121,26.2,12,12,198,25.9,"x","x",40,21.1,53,55,3556,34.1,null,3097,82,225,36,169,28,394,33,57,23,3557,76,3106,77,212,28,174,25,386,27,51,24,3557,70,2888,66,242,18,147,16,389,17,42,21,3326,60,null,2990,98,96,99,98,284,67,57,76,77,218,57,50,68,65,502,63,54,73,72,68,31,28,37,40,3571,92,89,94,93,null,2805,97,95,98,98,285,63,52,74,76,204,55,41,67,58,489,60,47,71,69,53,32,26,36,30,3358,90,87,93,92,null,2844,96,94,98,96,307,65,51,79,73,228,54,45,66,62,535,61,49,73,68,53,19,"x",21,15,3441,89,86,93,90,null,2800,96,92,97,96,280,48,42,66,69,251,45,37,57,56,531,47,40,62,63,55,16,11,22,16,3394,86,83,90,90,null,2653,94,91,97,96,310,60,53,72,75,217,42,33,49,56,527,53,45,63,67,45,29,20,40,40,3235,86,83,91,91,null,2623,97,96,95,87,91,348,72,63,67,35,44,231,62,40,52,23,28,579,68,54,61,30,38,79,41,35,37,35,30,3285,90,87,87,76,80,null,2673,95,96,94,85,89,348,66,54,57,29,35,273,54,43,49,27,28,621,61,49,53,28,32,64,38,33,34,22,22,3361,88,86,85,74,77,null,2615,97,95,95,90,397,70,50,59,32,299,56,38,48,27,696,64,45,55,30,88,31,22,22,13,3402,89,83,85,76,null,3405,67.2,281,16.399999999999999,99,26.3,380,18.899999999999999,96,9.4,3881,61,null,3202,64.8,341,13.2,124,23.4,465,15.9,95,10.5,3762,57.4,null,3306,63.3,417,15.1,104,18.3,521,15.7,125,12,3952,55.4,null,3325,66.400000000000006,398,18.3,116,24.1,514,19.600000000000001,123,8.1,3962,58.6,null,3324,61,443,12.2,101,9.9,544,11.8,147,4.0999999999999996,4015,52.3,null,7160,6673.1200000000008,93.2,220,199.98000000000002,90.9,2.2999999999999998,null,520,100,3310,3930,0.84,0.9,0.92,0.91]
[812,"North East Lincolnshire",61,63,1719,33.5,13,15,94,25.1,17,17,78,23.9,15,16,172,24.6,"x","x",17,17.399999999999999,56,58,1924,32.6,51,55,1734,33.6,21,22,96,27.2,6,6,49,25.2,16,17,145,26.5,"x","x",21,17.8,47,51,1922,32.9,null,1628,82,173,35,84,43,257,38,23,"x",1917,75,1581,77,199,26,81,25,280,26,16,"x",1883,69,1447,61,273,16,85,8,358,15,33,9,1844,51,null,1547,95,91,96,92,185,48,39,60,49,108,41,41,56,51,293,45,40,59,50,30,10,"x",13,"x",1878,86,82,89,84,null,1471,95,92,96,96,222,54,41,64,63,118,38,28,47,44,340,48,36,58,56,31,19,10,16,13,1846,85,80,88,87,null,1370,96,94,97,96,333,59,51,68,71,135,31,24,50,53,468,51,43,63,66,26,"x",12,23,"x",1867,84,80,87,88,null,1196,96,91,97,97,327,61,46,70,69,152,34,22,44,42,479,52,38,62,61,36,8,"x",8,14,1717,82,74,85,85,null,1198,95,91,95,96,346,61,52,68,77,162,33,23,36,43,508,52,43,58,66,22,27,23,18,27,1729,82,76,83,86,null,1304,95,96,93,87,89,196,63,49,58,32,32,177,48,38,53,26,28,373,56,44,55,29,30,29,28,21,24,24,17,1707,85,83,84,73,75,null,1232,93,93,94,85,85,214,55,55,66,29,33,167,31,21,38,16,15,381,45,40,54,23,25,40,20,15,20,15,"x",1654,80,79,83,69,70,null,1118,96,94,95,88,282,73,53,66,40,204,41,25,35,15,486,60,41,53,30,41,32,17,20,"x",1648,83,77,81,69,null,1411,71,256,21.9,90,16.7,346,20.5,88,6.8,1845,58.5,null,1163,75.2,489,48.1,118,17.8,607,42.2,99,12.1,1869,61.1,null,1078,70.3,508,43.9,195,17.399999999999999,703,36.6,102,6.9,1886,54.2,null,1006,68.2,665,51.9,236,20.8,901,43.7,103,7.8,2011,54.2,null,1284,57.6,349,38.1,238,8,587,25.9,83,"x",1955,45.7,null,4010,3633.0599999999995,90.6,40,12.64,31.6,59,null,620,70,1160,1850,0.79,0.82,0.9,0.86]
[813,"North Lincolnshire",68,69,1808,35.299999999999997,24,26,58,27.1,18,19,89,26.7,20,22,147,26.9,"x","x",25,20.8,63,65,1992,34.4,53,57,1743,34,15,19,59,26.4,20,20,82,27.1,18,19,141,26.8,"x","x",40,19,50,53,1929,33.1,null,1673,84,118,46,97,35,215,41,43,19,1943,77,1631,79,116,31,133,31,249,31,34,"x",1922,71,1597,62,144,22,132,20,276,21,32,"x",1908,55,null,1601,96,94,97,96,162,65,55,75,75,127,57,44,61,61,289,62,50,69,69,39,23,15,23,21,1937,90,86,92,90,null,1520,96,94,97,97,198,65,57,77,77,129,45,39,62,59,327,57,50,71,70,41,15,12,20,17,1892,88,84,90,90,null,1461,96,92,97,97,204,61,49,69,69,129,49,40,60,54,333,56,46,65,63,38,16,8,13,13,1833,87,82,90,89,null,1421,95,92,97,97,238,56,46,66,72,138,35,23,52,46,376,48,38,61,62,41,12,10,17,17,1839,84,79,88,88,null,1270,95,93,97,97,212,58,55,73,75,167,38,35,59,54,379,50,46,67,66,32,22,"x",22,22,1687,83,81,89,88,null,1315,95,95,93,87,89,192,66,54,60,35,40,138,57,34,48,20,24,330,62,45,55,29,33,61,15,13,18,8,10,1708,86,83,83,73,75,null,1316,93,94,92,83,85,173,57,45,60,32,28,128,48,30,49,20,17,301,53,39,55,27,23,74,23,14,23,11,9,1692,83,80,82,70,71,null,1292,94,92,94,87,234,65,42,59,30,164,52,30,49,20,398,60,37,55,26,79,22,11,25,10,1772,83,76,82,70,null,1489,69.400000000000006,242,19,146,13,388,16.8,67,7.5,1945,56.8,null,1477,68.5,227,27.8,181,13.8,408,21.6,81,7.4,1966,56.3,null,1486,65.099999999999994,217,30.9,227,13.7,444,22.1,110,4.5,2042,52.4,null,1532,63.8,170,16.5,220,15.9,390,16.2,109,4.5999999999999996,2031,51.5,null,1551,56.6,189,14.3,199,8,388,11.1,91,"x",2030,45.4,null,3970,3735.77,94.1,20,20,100,-5.9,null,440,80,1490,2010,0.81,0.78,0.9,0.87]
[815,"North Yorkshire",62,65,5592,34.6,17,17,143,27.2,12,13,213,25.2,14,15,356,26,"x","x",41,20.2,59,61,6095,34,43,46,5833,32.799999999999997,9,9,113,25.4,14,14,217,25,12,12,330,25.2,"x","x",41,18.7,41,44,6326,32.299999999999997,null,5546,76,303,34,285,32,588,33,55,13,6214,71,5208,71,276,28,267,26,543,27,59,15,5837,66,5282,64,348,20,236,28,584,23,47,21,5952,59,null,4989,97,94,98,98,403,55,43,71,72,347,55,44,63,66,750,55,44,67,69,79,29,22,29,33,5839,90,87,93,93,null,5133,95,93,97,97,475,55,45,67,78,295,51,41,65,65,770,54,43,66,73,62,27,19,18,23,5993,89,86,92,93,null,4954,94,92,97,98,538,50,41,69,77,296,52,40,66,67,834,51,40,68,74,65,29,15,31,32,5884,87,84,92,93,null,4891,93,90,97,97,583,47,35,66,73,262,45,36,60,63,845,46,36,64,70,61,33,26,30,30,5821,85,81,91,92,null,4869,92,89,96,97,581,43,35,65,71,256,40,33,55,62,837,42,34,62,68,64,17,11,25,28,5797,84,80,91,92,null,4728,96,94,93,85,88,641,61,49,51,27,31,327,55,37,47,28,27,968,59,45,50,27,29,111,23,22,19,16,15,5816,88,85,85,74,77,null,4564,94,93,91,81,85,657,55,47,50,25,30,332,47,36,46,27,26,989,52,43,49,25,29,146,27,21,22,16,15,5708,85,83,82,70,73,null,4578,95,93,92,86,643,56,43,51,27,298,48,37,48,31,941,53,41,50,28,124,27,19,25,15,5652,86,83,83,75,null,5683,73,607,29.7,305,27.9,912,29.1,185,10.8,6780,65.400000000000006,null,5698,74,611,27.5,363,25.1,974,26.6,172,8.1,6846,65.599999999999994,null,5629,71.400000000000006,600,26,393,23.9,993,25.2,161,13.7,6792,63.2,null,5725,69.8,659,26.4,377,22,1036,24.8,175,9.6999999999999993,6936,61.6,null,5735,67.2,663,26.4,358,14.2,1021,22.1,233,8.6,6990,58.6,null,11960,11015.16,92.1,410,356.29,86.9,5.2,null,1040,90,5600,6720,0.81,0.84,0.93,0.91]
[816,"York",66,68,1825,35.1,14,16,57,27.5,20,20,60,26.8,17,18,117,27.1,"x","x",17,17.5,63,64,1983,34.5,56,60,1853,33.6,6,10,62,25,11,11,46,26.7,8,10,108,25.7,"x","x",15,19.100000000000001,53,56,2011,33.1,null,1790,82,102,38,72,36,174,37,22,14,1998,77,1700,72,104,26,84,26,188,26,24,17,1925,67,1670,63,131,16,73,30,204,21,24,"x",1908,58,null,1665,97,94,98,97,147,53,35,70,76,79,52,42,53,58,226,53,38,64,70,27,30,22,33,19,1925,91,86,93,93,null,1623,97,93,97,96,172,56,38,63,70,71,52,39,59,63,243,55,38,62,68,29,17,"x","x",10,1901,90,85,91,91,null,1544,96,91,96,97,198,47,30,56,61,67,45,40,51,60,265,46,32,55,60,21,24,14,"x",14,1836,88,82,89,90,null,1471,96,92,98,97,194,51,40,64,68,81,44,33,56,67,275,49,38,61,68,21,29,14,24,19,1773,88,83,91,92,null,1466,96,92,98,98,177,54,49,64,71,77,44,32,57,55,254,51,44,62,66,22,14,"x",18,23,1751,88,84,91,93,null,1468,97,94,94,88,89,154,60,47,58,27,33,78,42,28,40,26,23,232,54,41,52,27,30,35,23,9,9,11,"x",1739,90,85,87,78,79,null,1393,95,95,94,86,89,171,47,40,39,19,18,71,37,28,35,18,18,242,44,36,38,19,18,32,9,13,9,9,"x",1672,86,85,84,75,77,null,1341,96,93,94,88,195,60,41,56,28,90,40,23,38,17,285,54,35,50,24,31,"x",10,13,"x",1660,87,82,85,76,null,1457,76,154,24,74,21.6,228,23.2,41,9.8000000000000007,1726,67.400000000000006,null,1459,70.8,139,20.100000000000001,89,"x",228,"x",33,"x",1720,62.7,null,1416,73.900000000000006,216,17.100000000000001,95,15.8,311,16.7,46,8.6999999999999993,1775,62.1,null,1450,68.099999999999994,172,18,95,"x",267,"x",44,"x",1761,59.1,null,1401,69.2,191,20.399999999999999,82,6.1,273,16.100000000000001,40,"x",1714,59.2,null,3650,3347.05,91.7,90,76.59,85.1,6.6,null,310,30,1420,1760,0.81,0.81,0.92,0.9]
[821,"Luton",54,57,2810,33.1,14,16,170,26.3,8,9,122,24,11,13,292,25.4,"x","x",34,19.5,48,52,3212,32.1,49,52,2854,32.799999999999997,15,17,190,25.7,11,13,138,23.5,13,15,328,24.8,"x","x",29,18.899999999999999,44,47,3302,31.7,null,2774,75,279,37,164,33,443,35,63,10,3327,68,2572,72,297,34,182,27,479,32,50,"x",3132,64,2472,56,290,23,146,16,436,20,52,"x",2983,50,null,2590,95,93,96,94,261,63,52,74,68,181,52,44,58,51,442,58,48,67,61,71,14,13,21,15,3131,87,84,90,87,null,2415,96,93,97,94,344,67,58,77,71,168,49,43,57,51,512,61,53,71,64,57,11,5,16,9,3006,88,84,90,87,null,2306,95,91,96,95,388,64,56,72,70,207,47,40,54,55,595,58,50,66,65,60,10,7,10,13,2980,86,81,88,87,null,2124,94,90,96,94,443,64,56,70,66,174,45,33,52,51,617,59,50,65,61,61,11,"x",8,10,2823,84,79,87,85,null,2140,94,91,96,94,418,61,55,72,77,174,48,39,57,61,592,57,50,68,72,38,21,13,24,24,2785,85,81,89,88,null,2154,90,93,87,84,82,370,65,50,56,37,35,180,51,39,47,33,26,550,61,46,53,36,32,59,29,15,27,22,15,2770,83,82,79,73,70,null,2097,88,91,88,83,79,303,55,53,60,39,33,183,51,43,49,34,32,486,54,49,56,37,33,83,22,13,14,13,10,2669,80,81,80,73,68,null,1896,94,92,91,85,378,65,56,58,35,196,52,38,51,28,574,60,50,56,33,59,12,10,14,8,2533,85,81,81,71,null,1917,69.3,289,18.3,153,27.5,442,21.5,77,6.5,2436,58.7,null,1866,68.5,358,22.9,119,23.5,477,23.1,70,5.7,2414,57.7,null,1808,68,401,27.9,129,11.6,530,24,66,9.1,2408,56.7,null,1624,63.4,526,35,151,13.9,677,30.3,77,7.8,2378,52.2,null,1633,57.4,574,28.6,137,6.6,711,24.3,66,4.5,2410,46.2,null,4800,4176,87,180,162,90,-3,null,530,40,1810,2380,0.86,0.85,0.93,0.92]
[822,"Bedford Borough",60,62,1978,34.4,8,10,92,26.4,13,14,71,24.1,10,12,163,25.4,"x","x",30,18.600000000000001,55,57,2216,33.4,48,51,1918,33,"x","x",59,26.3,"x","x",67,24,10,11,126,25.1,"x","x",26,20,45,48,2136,32.299999999999997,null,1802,80,172,36,98,33,270,35,40,18,2128,73,1731,76,168,32,71,44,239,35,23,13,2001,70,1658,63,193,24,56,18,249,23,30,"x",1947,57,null,1662,98,97,99,97,218,77,69,86,80,90,62,57,70,64,308,73,65,81,76,28,25,18,29,25,2004,93,90,95,92,null,1633,98,97,99,96,225,72,62,79,74,74,59,50,70,65,299,69,59,77,72,36,22,19,28,19,1971,92,89,94,91,null,1548,96,94,98,94,285,65,57,75,64,63,43,30,48,48,348,61,52,70,61,30,10,10,13,13,1934,88,85,91,87,null,1430,95,93,97,95,291,63,51,75,67,71,46,24,61,51,362,59,46,72,64,35,40,"x",37,29,1836,87,83,91,87,null,1411,95,93,97,95,278,64,54,77,68,74,47,41,55,47,352,60,51,72,64,29,10,"x",17,"x",1799,86,83,91,87,null,1377,95,94,92,86,87,321,71,63,54,37,38,66,55,40,57,29,31,387,68,59,54,35,37,43,23,12,16,14,7,1811,88,85,82,74,74,null,1357,92,95,93,85,86,311,64,60,66,30,41,70,59,43,44,23,21,381,63,57,62,29,37,58,24,21,22,9,16,1806,84,84,84,70,73,null,1341,94,91,91,84,317,74,58,67,43,77,62,45,40,31,394,72,55,61,41,51,18,10,14,6,1792,87,81,82,72,null,1553,67.900000000000006,193,23.8,78,24.4,271,24,67,14.9,1891,59.7,null,1521,62,192,17.2,58,12.1,250,16,77,5.2,1848,53.4,null,1291,66.900000000000006,356,39,97,16.5,453,34.200000000000003,86,11.6,1830,56.2,null,1348,63.7,329,18.8,86,9.3000000000000007,415,16.899999999999999,74,6.8,1837,50.8,null,1182,64.900000000000006,466,24,120,7.5,586,20.6,91,6.6,1859,48.1,null,3660,3396.4799999999996,92.8,130,106.21000000000001,81.7,11.1,null,460,50,1280,1790,0.81,0.88,0.92,0.89]
[823,"Central Bedfordshire",60,62,2978,34.4,11,14,170,26.8,17,17,103,27.1,14,15,273,26.9,"x","x",51,19.600000000000001,55,57,3333,33.5,51,53,3147,34.1,8,8,133,26.5,21,21,117,28.3,14,14,250,27.3,"x","x",42,20,47,49,3481,33.299999999999997,null,2899,79,367,35,155,41,522,37,51,24,3490,72,2727,75,295,28,123,32,418,29,48,13,3205,68,2723,61,284,19,101,23,385,20,44,9,3158,55,null,2646,98,97,99,98,364,76,68,86,76,158,59,51,71,68,522,71,63,81,74,64,39,30,38,31,3245,93,90,95,92,null,2600,99,97,99,98,384,73,63,81,77,134,63,57,68,69,518,71,61,78,75,46,26,20,24,24,3169,93,90,94,93,null,2504,97,96,99,97,364,67,56,77,78,134,61,59,69,68,498,66,57,75,75,59,34,22,34,31,3067,91,89,93,92,null,2328,97,96,99,97,399,66,59,76,69,150,49,39,63,59,549,62,54,72,66,47,26,15,32,26,2934,89,87,93,90,null,2309,97,96,99,98,385,64,60,77,76,145,61,53,69,67,530,64,58,75,73,41,34,29,32,32,2891,90,88,94,93,null,2347,95,96,92,82,87,310,63,59,55,28,36,135,58,50,52,33,38,445,61,56,54,30,37,77,26,22,23,14,13,2873,88,87,84,72,77,null,2143,91,94,89,81,82,333,61,49,56,23,30,159,50,36,45,28,26,492,58,45,53,25,29,76,29,18,26,18,16,2714,83,83,80,69,71,null,2203,95,94,93,87,374,62,52,59,33,154,65,47,51,34,528,63,51,56,34,73,29,18,21,13,2810,87,84,84,75,null,2378,66.7,256,14.1,102,11.8,358,13.4,110,8.1999999999999993,2846,57.7,null,2091,69.099999999999994,594,34.799999999999997,96,13.5,690,31.9,122,7.4,2903,57.6,null,2209,70.2,421,26.8,114,18.399999999999999,535,25,112,9.8000000000000007,2857,59.4,null,2118,66.3,557,29.6,177,22,734,27.8,140,8.6,2992,54.2,null,1979,63,583,25.4,178,15.7,761,23.1,126,9.5,2867,50,null,5560,5054.04,90.9,250,215.25,86.1,4.8,null,540,60,2210,2800,0.79,0.81,0.92,0.9]
[825,"Buckinghamshire",66,68,5601,35.1,19,20,219,27.4,14,14,142,24.5,17,18,361,26.3,4,4,91,21.2,62,64,6094,34.299999999999997,57,59,5693,34,12,13,204,26.8,11,13,143,25.1,12,13,347,26.1,"x","x",114,20.9,53,55,6250,33.299999999999997,null,5489,78,388,31,216,29,604,30,137,21,6259,72,5295,72,397,28,191,24,588,27,127,14,6043,66,4986,61,445,19,210,15,655,18,119,12,5784,55,null,5149,98,96,98,98,500,69,55,77,76,247,56,44,64,65,747,64,51,73,73,142,32,25,36,35,6068,92,88,93,93,null,4835,97,95,98,98,512,71,61,79,79,269,49,36,61,61,781,63,52,73,73,144,31,24,34,36,5789,91,87,93,93,null,4739,97,95,98,98,579,69,59,78,79,225,57,48,60,64,804,66,56,73,75,165,32,24,33,32,5723,91,87,93,92,null,4664,97,95,98,98,628,61,50,72,71,268,44,35,59,60,896,56,46,68,67,173,32,21,33,34,5753,88,85,92,91,null,4491,96,94,97,97,618,61,49,71,72,282,52,41,59,68,900,58,47,67,71,144,28,20,29,32,5562,88,84,90,91,null,4351,97,95,96,90,92,543,77,60,67,40,46,275,64,33,56,30,26,818,73,51,63,36,40,237,37,24,30,22,19,5419,91,85,88,79,80,null,4252,97,95,95,91,90,493,73,61,67,44,46,276,59,43,53,32,30,769,68,54,62,40,40,205,33,22,34,23,19,5237,90,86,87,81,80,null,4226,96,94,95,90,548,76,58,70,44,275,63,37,54,29,823,72,51,64,39,217,28,22,28,16,5276,90,85,87,79,null,4793,78.2,361,36.799999999999997,182,25.8,543,33.1,218,13.8,5554,71.3,null,4568,77.8,463,42.1,259,21.6,722,34.799999999999997,206,13.6,5496,69.7,null,4484,79.099999999999994,541,39.4,273,22.3,814,33.700000000000003,218,11,5525,69.7,null,4732,74.900000000000006,538,41.3,264,20.8,802,34.5,205,9.3000000000000007,5739,66.900000000000006,null,4603,73.599999999999994,510,38,232,19,742,32.1,239,10.9,5584,65.400000000000006,null,10680,10092.6,94.5,550,487.29999999999995,88.6,5.9,null,820,100,4480,5410,0.85,0.89,0.94,0.93]
[826,"Milton Keynes",63,66,3487,35,20,21,114,26.9,12,12,106,24.4,16,17,220,25.7,5,5,55,19.7,60,62,3827,34.200000000000003,49,53,3222,33.200000000000003,12,12,138,26.1,12,13,152,24.6,12,13,290,25.3,"x","x",40,19.399999999999999,46,49,3625,32.5,null,3097,82,246,48,204,43,450,46,59,20,3640,76,3008,75,185,39,218,29,403,34,59,8,3491,69,2820,65,279,30,142,16,421,25,47,"x",3308,59,null,2907,97,94,98,98,302,77,61,79,81,207,55,38,67,63,509,68,52,74,74,78,18,10,14,19,3516,91,86,93,92,null,2700,97,95,98,98,311,75,65,86,79,229,51,42,66,58,540,65,55,77,70,57,18,12,25,21,3310,90,87,93,92,null,2574,96,94,98,96,358,68,54,81,76,219,47,32,63,64,577,60,45,74,72,66,29,21,27,24,3226,88,84,92,90,null,2541,95,92,97,96,373,67,51,75,77,187,40,27,52,51,560,58,43,67,68,73,30,18,27,27,3187,87,81,90,89,null,2415,95,92,97,97,353,67,54,78,80,210,40,31,47,57,563,57,45,66,71,55,22,16,22,16,3049,86,82,90,91,null,2419,97,95,96,91,91,321,78,63,67,51,47,256,62,40,55,35,33,577,71,53,62,44,41,90,32,18,20,22,17,3096,90,85,87,80,79,null,2241,95,94,95,88,89,302,76,74,71,46,54,253,55,40,59,28,32,555,66,59,66,38,44,112,31,22,31,16,16,2916,87,85,87,76,77,null,2236,95,94,93,88,342,77,68,73,53,282,59,37,53,26,624,69,54,64,40,90,24,18,19,13,2956,87,83,85,75,null,2081,70.400000000000006,433,46.2,156,16.7,589,38.4,107,10.3,2777,61.3,null,2067,68.5,409,42.8,173,13.9,582,34.200000000000003,113,2.7,2762,58.5,null,2090,60.9,291,37.5,227,10.1,518,25.5,95,3.2,2706,52.1,null,2144,62.7,298,21.1,203,"x",501,"x",126,"x",2771,51.5,null,2061,58.1,288,18.8,177,2.2999999999999998,465,12.5,116,10.3,2642,48,null,5810,5351.0099999999993,92.1,270,237.6,88,4.2,null,520,40,2090,2650,0.8,0.84,0.88,0.87]
[830,"Derbyshire",63,66,7498,36,24,26,318,28.2,19,21,380,26.9,21,23,698,27.5,"x","x",91,19.899999999999999,59,62,8371,35.1,51,54,7751,34.5,14,16,378,26.4,13,14,373,25.6,14,15,751,26,"x","x",101,19.399999999999999,47,50,8678,33.6,null,7386,79,670,34,445,39,1115,36,135,16,8655,72,6976,72,602,27,440,35,1042,31,117,19,8152,66,6782,61,696,18,445,24,1141,20,144,13,8091,54,null,6866,98,96,99,98,704,70,62,80,77,449,57,53,73,69,1153,65,59,77,74,136,34,25,38,38,8173,92,90,95,93,null,6616,97,96,98,98,848,65,58,79,78,440,61,56,71,71,1288,63,57,76,76,185,28,24,30,27,8108,90,88,93,93,null,6582,97,95,98,98,852,63,57,77,76,464,57,49,70,69,1316,61,54,75,74,159,30,19,31,35,8071,89,87,93,93,null,6317,96,94,98,98,909,62,55,77,77,390,53,44,67,67,1299,59,52,74,74,144,28,26,31,28,7775,89,86,93,93,null,6169,96,95,98,98,785,66,58,78,82,522,54,44,67,69,1307,61,52,74,77,125,28,23,29,28,7615,89,86,93,93,null,6107,97,96,95,89,91,861,76,62,69,43,49,466,70,52,64,42,43,1327,74,58,67,42,47,245,32,24,28,21,19,7680,91,87,88,78,81,null,6044,95,95,93,84,88,771,65,53,64,32,38,438,60,48,60,34,36,1209,63,51,62,33,37,236,34,21,28,14,13,7499,88,86,86,73,78,null,6043,96,95,95,90,898,65,50,63,37,460,61,44,61,37,1358,64,48,62,37,223,31,21,28,16,7634,88,84,87,78,null,6793,68.2,873,24.3,441,20,1314,22.8,277,9,8384,59.1,null,6525,67.400000000000006,958,21.9,516,20,1474,21.2,290,9.6999999999999993,8290,57.2,null,6703,69.099999999999994,1202,26.7,555,22.7,1757,25.4,284,8.5,8750,58.4,null,6976,65,995,18.899999999999999,555,15.3,1550,17.600000000000001,241,5.4,8767,55,null,7122,60.1,965,16,581,17.2,1546,16.399999999999999,241,4.5999999999999996,8909,51,null,16370,14863.96,90.8,970,811.8900000000001,83.7,7.2,null,1720,200,6740,8670,0.82,0.83,0.92,0.9]
[831,"Derby",55,58,2800,33.799999999999997,18,18,265,26.3,14,15,180,25.3,16,17,445,25.9,"x","x",31,18.600000000000001,49,51,3331,32.5,42,45,2884,31.7,8,10,172,24.7,11,12,161,24,10,11,333,24.4,"x","x",30,19.8,38,41,3317,30.7,null,2750,71,290,28,191,39,481,32,44,9,3308,64,2577,66,246,24,174,"x",420,"x",27,"x",3061,59,2472,59,275,"x",176,"x",451,20,34,"x",2987,52,null,2579,94,91,96,94,331,54,47,69,69,197,55,45,61,57,528,54,46,66,65,41,10,7,12,15,3164,86,82,90,88,null,2513,93,90,95,94,263,55,41,62,56,179,48,44,55,59,442,52,42,59,57,38,18,18,18,21,3026,85,81,88,87,null,2312,93,89,95,93,341,57,46,67,65,173,56,46,62,58,514,57,46,66,63,55,"x",20,24,"x",2904,84,79,88,86,null,2296,92,90,95,94,349,51,37,58,"x",179,50,41,58,"x",528,51,38,58,58,43,19,14,26,19,2888,83,79,87,85,null,2108,93,89,95,94,402,45,38,61,61,151,36,28,57,49,553,42,35,60,58,32,22,19,25,25,2714,81,77,87,85,null,2189,94,93,93,85,88,321,60,45,59,27,33,148,62,43,53,36,36,469,61,45,57,30,34,66,24,21,17,18,17,2727,87,83,85,74,77,null,2089,92,91,92,84,84,364,51,41,51,26,29,154,51,41,58,32,31,518,51,41,53,28,30,65,26,15,18,15,12,2673,82,79,83,71,72,null,2089,93,89,91,83,336,55,32,48,22,177,51,35,47,27,513,54,33,48,24,67,15,12,12,9,2673,83,76,81,70,null,2340,65.400000000000006,342,21.1,149,19.5,491,20.6,111,4.5,2942,55.6,null,2107,67.5,370,"x",127,"x",497,"x",83,"x",2687,57.2,null,2103,67.8,483,29.6,148,"x",631,"x",101,3,2837,56.9,null,1966,68.2,640,32.299999999999997,200,"x",840,"x",86,7,2894,55.1,null,2128,57,494,14.8,133,11.3,627,14,107,4.7,2862,45.6,null,5190,4494.54,86.6,460,340.86,74.099999999999994,12.5,null,630,50,2110,2780,0.78,0.87,0.9,0.88]
[835,"Dorset",71,72,3604,36,28,30,158,28.8,31,32,210,29.3,30,31,368,29.1,11,11,47,21.5,67,68,4059,35.200000000000003,64,65,3578,35.1,30,32,158,29.8,23,25,225,28.6,26,28,383,29.1,7,7,45,19.399999999999999,60,61,4066,34.299999999999997,null,3382,83,347,44,285,37,632,41,64,17,4097,76,3382,77,343,34,237,35,580,34,44,11,4030,70,3072,67,418,23,244,24,662,24,51,18,3804,59,null,3221,98,96,99,98,459,74,62,81,81,294,60,48,69,71,753,69,57,76,77,69,16,12,26,23,4056,91,87,94,93,null,3017,98,96,99,99,483,70,63,83,83,283,52,43,66,64,766,63,55,77,76,57,35,32,40,39,3856,90,87,94,93,null,2929,98,95,99,98,499,73,60,83,83,364,61,47,69,71,863,68,54,77,78,56,21,18,36,29,3866,90,85,93,93,null,2857,98,96,99,99,536,67,60,81,81,376,52,44,67,66,912,61,54,75,75,63,25,19,35,35,3842,88,85,92,92,null,2899,96,95,99,98,478,65,55,81,80,314,46,42,60,71,792,58,50,72,76,51,22,18,24,24,3750,87,85,92,93,null,3002,97,97,94,87,91,478,75,60,62,33,42,383,58,42,56,27,30,861,67,52,60,30,37,91,19,16,19,13,13,3962,89,85,85,73,77,null,2838,96,96,93,87,89,504,72,61,63,34,42,406,55,41,52,27,31,910,64,52,58,31,37,104,21,14,18,15,9,3859,87,83,83,72,75,null,2846,97,94,95,89,490,73,54,67,39,416,57,38,52,26,906,66,46,60,33,94,24,16,20,13,3851,88,81,85,74,null,3482,68.400000000000006,447,23.7,291,20.6,738,22.5,138,12.3,4358,58.9,null,3325,64.2,510,24.5,357,14.8,867,20.5,110,12.7,4302,54.1,null,3327,70,444,29.1,307,12.1,751,22.1,140,10,4220,59.5,null,3471,70.3,460,24.1,311,12.2,771,19.3,147,11.6,4389,59.4,null,3442,64.599999999999994,446,25.1,334,10.5,780,18.8,144,9.6999999999999993,4366,54.6,null,8300,7594.5,91.5,300,268.79999999999995,89.6,1.8,null,750,90,3330,4170,0.8,0.92,0.91,0.89]
[836,"Poole",64,65,1400,35.4,23,23,35,27.7,22,22,78,27.4,22,22,113,27.5,"x","x",22,18.5,59,60,1554,34.5,50,52,1441,35,"x","x","x",27.5,"x","x","x",26.9,"x","x","x",27.1,"x","x",24,19.600000000000001,46,48,1617,34.1,null,1332,78,114,39,103,34,217,37,23,13,1580,71,1263,77,97,37,112,39,209,38,18,"x",1498,70,1147,66,134,25,101,20,235,23,20,"x",1411,58,null,1234,97,95,98,98,131,76,66,84,82,96,60,46,68,68,227,69,57,77,76,22,14,14,18,"x",1488,91,88,94,93,null,1123,98,96,99,98,"x","x","x","x","x","x","x","x","x","x","x","x","x","x","x",22,14,"x",14,18,1410,91,88,93,92,null,"x","x",97,"x","x","x","x","x","x","x",104,60,50,75,67,"x","x","x","x","x",25,16,16,24,20,1428,90,89,93,91,null,1052,96,93,97,96,189,64,58,72,76,110,54,50,74,68,299,60,55,73,73,18,"x","x",17,"x",1374,87,84,91,90,null,1053,95,94,99,98,178,58,56,77,76,82,43,37,71,65,260,53,50,75,73,16,"x","x","x","x",1333,86,85,93,92,null,1000,95,94,91,87,86,152,61,49,55,39,32,113,57,33,44,23,26,265,59,42,50,32,29,36,28,14,19,14,11,1303,86,81,81,74,72,null,907,88,89,86,79,77,165,58,50,59,24,28,110,38,25,42,16,21,275,50,40,52,21,25,33,30,15,27,21,12,1218,78,76,77,64,63,null,936,95,89,93,84,"x","x","x",57,"x","x","x","x",49,"x","x","x","x",54,"x",34,21,"x","x","x",1214,86,77,83,71,null,1326,71,157,33.799999999999997,119,23.5,276,29.3,46,8.6999999999999993,1648,62.3,null,1249,"x","x","x","x","x","x","x","x","x",1596,58.8,null,1214,67.7,206,33.5,139,14.4,345,25.8,"x","x",1601,57.2,null,1180,68.3,283,31.1,166,16.899999999999999,449,25.8,47,8.5,1676,55.3,null,1270,66.900000000000006,223,29.1,151,22.5,374,26.5,40,7.5,1684,56.5,null,3130,2569.73,82.1,60,54.120000000000005,90.2,-8.1,null,350,20,1210,1580,0.81,0.88,0.93,0.9]
[837,"Bournemouth",71,72,1705,37.4,38,38,71,30.9,33,33,105,30.3,35,35,176,30.5,"x","x",30,20.100000000000001,67,67,1970,36.4,62,62,1623,36.6,24,25,71,30.5,22,22,86,30.4,23,24,157,30.4,"x","x",31,20,57,57,1901,35.6,null,1563,81,139,40,134,44,273,42,37,16,1890,73,1423,77,112,25,95,42,207,33,36,19,1682,70,1322,62,120,22,103,26,223,24,25,"x",1579,55,null,1403,98,96,99,98,148,68,64,83,87,96,59,50,72,75,244,65,58,79,82,44,32,25,39,39,1701,91,88,94,94,null,1271,97,95,99,98,168,67,58,82,83,101,62,53,74,77,269,65,57,79,81,30,23,20,40,43,1586,89,86,94,94,null,1203,97,94,99,98,202,66,53,81,86,102,59,47,71,70,304,63,51,77,81,35,26,17,29,29,1547,88,83,93,93,null,1161,95,91,97,96,184,61,53,80,84,89,52,43,70,74,273,58,50,77,81,17,47,24,41,35,1458,87,82,92,92,null,1164,95,95,98,97,198,58,42,74,75,114,46,39,66,68,312,54,41,71,72,21,33,19,29,29,1511,85,82,91,90,null,1143,97,98,96,90,93,190,75,64,70,43,48,131,52,40,44,30,27,321,65,54,59,38,40,39,31,21,21,21,15,1507,88,86,86,77,80,null,1044,96,95,94,88,89,160,64,52,65,28,36,97,47,39,54,26,29,257,58,47,61,27,33,50,26,26,24,"x",18,1354,86,83,85,74,75,null,1052,96,92,94,87,165,69,47,63,36,114,40,"x",41,16,279,57,"x",54,28,49,20,"x",14,"x",1385,85,78,83,72,null,1411,72.400000000000006,152,25,101,19.8,253,22.9,62,12.9,1726,63,null,1358,70.900000000000006,182,24.2,91,"x",273,"x",51,"x",1682,60.7,null,1396,65.3,"x","x","x","x",247,23.1,59,11.9,1703,57.4,null,1472,65,155,16.100000000000001,102,14.7,257,15.6,41,7.3,1770,56.5,null,1485,59.3,168,11.3,82,13.4,250,12,45,15.6,1780,51.5,null,3230,2868.2400000000002,88.8,100,90.9,90.9,-2.1,null,250,20,1400,1660,0.82,0.95,0.9,0.89]
[840,"Durham",60,64,4498,34,20,25,372,26.1,20,23,433,26.2,20,24,805,26.2,2,4,126,19,52,57,5453,32.5,43,47,4756,31.7,8,10,341,23.5,12,14,433,24,10,12,774,23.8,"x","x",118,18.399999999999999,37,42,5682,30.3,null,4408,85,554,48,583,45,1137,46,141,11,5698,75,4289,78,555,35,528,38,1083,36,116,16,5494,69,4138,70,618,25,532,31,1150,28,102,17,5402,60,null,4166,97,95,98,97,637,69,60,76,74,570,60,52,68,64,1207,65,57,73,69,132,29,20,27,20,5516,88,85,91,89,null,4002,96,94,98,97,711,63,57,72,70,563,59,53,64,65,1274,61,55,68,68,115,25,17,25,22,5398,86,83,89,88,null,3972,96,94,97,96,722,60,51,73,68,579,56,46,66,65,1301,58,49,70,67,127,15,10,17,17,5408,85,81,89,87,null,3727,95,92,97,96,780,55,51,71,71,622,50,43,62,62,1402,53,47,67,67,107,23,19,30,23,5249,82,79,88,87,null,3525,95,93,98,97,832,59,51,72,71,550,49,42,63,62,1382,55,48,68,68,120,17,11,21,17,5039,82,78,88,87,null,3631,98,97,96,91,93,647,79,68,74,51,53,567,71,56,65,44,44,1214,75,62,70,48,49,196,31,13,25,17,12,5045,89,85,87,78,79,null,3538,96,97,97,89,92,567,73,58,70,43,46,571,68,50,64,38,43,1138,70,54,67,40,44,176,25,15,27,18,14,4857,88,84,87,75,78,null,3422,96,95,95,90,698,76,57,72,47,587,67,45,64,37,1285,72,52,69,43,188,26,14,20,12,4898,87,81,85,75,null,4110,75.8,639,28.5,468,27.4,1107,28,252,9.5,5469,63.1,null,4018,75.7,629,30,527,26.9,1156,28.6,263,9.1,5437,62.5,null,4008,74.7,635,25.5,582,19.600000000000001,1217,22.7,252,6,5481,60,null,3788,71.400000000000006,790,27.6,691,19,1481,23.6,235,6.8,5505,55.8,null,4029,62.2,808,20.5,614,17.3,1422,19.100000000000001,288,5.6,5740,48.7,null,11310,10337.34,91.4,550,455.4,82.8,8.6999999999999993,null,1260,110,3970,5340,0.78,0.89,0.91,0.87]
[841,"Darlington",60,61,1096,33.299999999999997,27,28,71,25.3,19,21,98,26.6,22,24,169,26,"x","x",23,19.2,54,55,1298,32,52,54,1090,32.4,20,22,65,25,15,18,68,23.8,17,20,133,24.4,"x","x",17,18.899999999999999,47,49,1254,31.3,null,1022,89,96,53,91,46,187,50,21,33,1236,82,1013,82,85,46,101,49,186,47,13,"x",1215,76,998,72,106,24,116,34,222,29,10,"x",1233,64,null,973,97,95,98,98,119,"x",56,76,71,"x","x","x",69,69,"x","x","x",73,70,"x","x","x","x","x",1209,90,87,92,92,null,1018,94,93,96,96,86,62,56,64,69,115,61,52,67,66,201,61,54,66,67,14,"x","x","x","x",1236,87,85,90,90,null,954,95,92,97,96,128,56,48,70,72,96,53,47,68,65,224,55,48,69,69,17,"x","x","x","x",1198,86,83,90,90,null,934,94,91,98,97,146,41,39,61,61,109,45,34,59,50,255,43,37,60,56,17,"x","x","x","x",1208,82,78,89,87,null,920,96,94,98,98,150,49,40,67,68,112,44,37,62,59,262,47,39,65,64,10,"x","x",30,30,1195,84,81,90,90,null,910,97,96,95,89,93,163,74,56,64,45,47,85,72,58,66,41,45,248,73,56,65,44,46,28,25,14,25,14,11,1186,90,86,87,78,81,null,866,96,94,94,86,89,117,70,56,69,30,43,85,62,"x","x","x","x",202,67,"x","x","x","x",21,14,"x","x","x","x",1089,89,84,88,74,79,null,815,95,94,95,89,107,64,50,64,38,95,60,45,55,37,202,62,48,60,38,"x","x","x",21,"x",1047,87,83,86,77,null,967,73.900000000000006,94,16,54,25.9,148,19.600000000000001,43,14,1158,64.8,null,980,71.2,83,15.7,55,18.2,138,16.7,46,6.5,1164,62.2,null,949,74.900000000000006,86,23.3,56,14.3,142,19.7,38,7.9,1129,65.7,null,871,66,127,29.9,119,16.8,246,23.6,49,10.199999999999999,1167,54.7,null,915,63.5,130,16.2,94,9.6,224,13.4,49,"x",1188,51.6,null,2460,2201.6999999999998,89.5,20,20,100,-10.5,null,140,20,950,1110,0.76,0.87,0.88,0.87]
[845,"East Sussex",69,71,4831,36.6,27,28,206,29.2,24,27,188,27.6,26,28,394,28.4,7,7,106,20.399999999999999,64,66,5442,35.700000000000003,45,48,4751,33.6,14,17,280,27.3,9,10,191,24.8,12,14,471,26.3,"x","x",104,19.3,41,44,5435,32.6,null,4513,76,441,41,303,31,744,37,127,22,5410,69,4342,70,556,33,312,27,868,31,111,11,5346,63,4214,59,556,21,291,18,847,20,91,5,5173,51,null,4370,96,93,97,97,482,71,56,78,79,363,56,45,64,65,845,65,52,72,73,130,28,22,35,35,5361,89,85,92,92,null,4135,96,93,97,97,633,65,55,74,78,301,46,34,56,60,934,59,48,68,72,118,26,19,36,30,5205,87,83,90,91,null,3861,95,92,97,97,638,61,50,77,75,329,41,32,58,57,967,54,44,71,69,136,24,17,30,37,4981,85,80,90,89,null,3763,95,91,97,97,682,59,50,78,78,361,37,28,55,56,1043,51,42,70,70,115,33,22,39,40,4935,84,79,90,90,null,3668,95,92,97,96,721,58,47,75,74,360,40,29,58,58,1081,52,41,69,69,92,25,12,18,20,4862,84,79,89,89,null,3859,96,96,93,86,89,500,74,60,68,36,48,326,60,43,53,28,33,826,69,53,62,33,42,222,30,17,21,18,10,4917,88,85,85,74,78,null,3617,95,94,92,84,85,636,69,56,63,35,38,344,52,33,46,24,23,980,63,47,57,31,33,191,29,17,28,17,14,4797,86,81,82,70,72,null,3684,95,93,93,87,676,68,49,59,33,396,56,29,47,21,1072,63,42,54,29,181,28,15,22,11,4946,86,79,82,71,null,4219,71.400000000000006,581,24.8,326,12,907,20.2,226,4.9000000000000004,5353,59.9,null,3983,69.2,514,22.8,347,13.8,861,19.2,203,7.4,5048,58.2,null,3924,70.8,640,25,426,19.5,1066,22.8,209,7.2,5201,58.4,null,4115,67.099999999999994,604,20.7,485,18.100000000000001,1089,19.600000000000001,194,6.7,5398,55.4,null,3959,62.1,560,17.899999999999999,467,13.1,1027,15.7,208,6.7,5197,50.8,null,10150,9216.1999999999989,90.8,550,465.3,84.6,6.2,null,1080,110,3910,5110,0.8,0.89,0.92,0.89]
[846,"Brighton and Hove",65,66,2394,35.4,24,24,169,29.3,24,24,177,28.8,24,24,346,29,"x","x",31,18.899999999999999,59,60,2876,34.4,48,50,2401,33.9,14,15,191,28.1,11,12,176,26.4,13,13,367,27.3,"x","x",45,21.1,43,45,2893,32.799999999999997,null,2188,79,330,38,234,38,564,38,49,24,2827,69,2092,74,352,32,215,29,567,31,41,17,2711,64,1917,58,386,21,214,21,600,21,35,9,2565,49,null,2064,98,96,99,98,320,79,63,86,82,258,66,56,76,66,578,73,60,82,75,52,21,21,40,27,2712,91,87,94,91,null,1879,98,96,99,98,373,81,70,88,86,254,57,48,70,69,627,71,61,81,79,40,30,23,33,28,2564,90,86,93,92,null,1772,97,94,98,98,372,72,62,85,82,279,54,37,70,67,651,64,51,79,76,49,18,16,27,24,2484,86,81,92,91,null,1743,96,94,98,98,381,62,55,81,75,284,52,46,70,64,665,58,51,76,70,40,43,33,38,25,2458,85,81,91,89,null,1702,96,93,98,97,352,61,56,78,78,291,48,41,64,60,643,55,49,72,70,42,17,7,21,21,2397,83,80,90,88,null,1758,98,97,97,91,94,312,84,71,76,49,53,233,72,48,62,34,39,545,79,61,70,43,47,83,27,16,19,18,12,2390,91,86,88,77,81,null,1685,97,97,96,89,93,329,77,66,74,47,50,236,60,42,57,31,34,565,70,56,67,40,44,64,31,13,28,17,13,2318,89,84,87,75,79,null,1724,97,95,94,90,316,84,59,68,43,245,59,36,53,27,561,73,49,61,36,72,21,11,19,8,2360,89,81,84,74,null,1686,75.3,345,34.200000000000003,160,21.9,505,30.3,103,3.9,2294,62.2,null,1628,69.8,314,24.8,153,19,467,22.9,118,4.2,2213,56.4,null,1632,65.900000000000006,408,28.9,169,14.2,577,24.6,113,8,2324,52.8,null,1718,62.6,363,17.600000000000001,165,10.3,528,15.3,121,5.8,2367,49.1,null,1717,55.6,306,15.4,140,10,446,13.7,126,2.4,2289,44.5,null,4480,4054.4,90.5,220,161.69999999999999,73.5,17,null,580,50,1630,2260,0.82,0.83,0.93,0.9]
[850,"Hampshire",70,72,13461,35.799999999999997,27,28,623,28.9,21,21,463,26.8,24,25,1086,28,7,8,215,21.2,66,67,14977,35,61,63,13564,35.1,18,19,623,27.7,14,15,421,26.6,17,18,1044,27.3,3,4,197,21.1,57,59,15068,34.299999999999997,null,12547,84,1523,36,607,34,2130,35,239,18,14979,75,12187,79,1574,32,565,33,2139,32,210,15,14608,71,11450,67,1716,21,686,23,2402,21,193,11,14122,58,null,12209,99,97,99,99,1497,73,63,81,81,596,57,45,67,69,2093,68,58,77,78,234,32,24,31,28,14571,93,90,95,95,null,11572,98,97,99,99,1713,73,63,82,84,612,56,45,68,68,2325,69,59,78,80,220,30,21,30,27,14156,92,89,94,94,null,11281,98,97,99,99,1820,69,60,81,85,684,54,46,61,65,2504,65,56,76,80,271,27,21,29,27,14106,90,88,93,94,null,10644,98,96,99,99,2019,67,58,82,87,752,50,42,62,71,2771,62,54,77,82,261,23,19,29,26,13722,89,86,93,94,null,10062,97,96,99,99,2216,68,61,81,86,790,49,42,63,69,3006,63,56,76,82,248,21,17,24,21,13376,88,86,92,93,null,10906,97,96,95,88,92,1474,74,58,67,33,43,560,58,38,53,28,31,2034,70,53,63,31,39,371,27,15,21,13,11,13332,91,87,88,77,82,null,10480,96,94,95,87,89,1512,65,49,64,30,35,629,48,29,48,21,22,2141,60,43,59,27,31,370,26,18,24,17,14,13004,88,84,87,75,78,null,10456,97,94,95,89,1650,70,48,65,36,686,48,27,47,20,2336,64,42,60,31,365,27,15,24,13,13187,89,82,87,77,null,11612,68.3,1315,23.2,538,13.8,1853,20.5,473,11,13941,60,null,11368,67.2,1332,22.1,657,14,1989,19.399999999999999,447,7.2,13829,58.5,null,11080,70.7,1531,26.4,809,15.1,2340,22.5,413,11.1,13860,60.8,null,11246,69.7,1595,22.1,926,13.8,2521,19,413,7,14189,58.9,null,11218,65.5,1566,18.3,876,14.7,2442,17,423,7.6,14084,55.4,null,27030,23921.55,88.5,1020,849.66,83.3,5.2,null,2350,150,11090,13600,0.81,0.9,0.92,0.9]
[851,"Portsmouth",69,71,2036,35.9,19,19,95,28.4,27,29,186,27.9,24,26,281,28.1,"x","x",23,21.4,63,65,2382,34.700000000000003,57,60,1999,34.9,22,24,91,29.3,17,19,167,27.8,19,21,258,28.3,9,9,35,23.4,52,55,2342,34,null,1874,80,186,40,177,33,363,36,53,40,2302,72,1734,78,259,27,188,30,447,28,57,25,2252,66,1594,66,309,22,150,21,459,22,63,17,2128,55,null,1718,98,95,98,98,243,74,63,84,79,211,68,57,74,71,454,72,60,79,75,62,42,37,48,35,2249,91,86,93,91,null,1626,98,95,99,98,221,77,64,86,82,183,63,51,75,71,404,71,58,81,77,69,33,22,33,33,2108,90,86,93,92,null,1607,97,94,98,98,261,73,62,84,79,160,69,53,81,74,421,71,59,83,77,61,23,16,31,20,2095,90,84,93,91,null,1496,96,94,98,96,316,63,58,81,81,126,44,42,61,63,442,58,53,75,76,60,30,20,37,27,2007,86,82,91,89,null,1333,95,93,98,98,391,66,56,86,80,126,44,35,63,57,517,61,51,81,74,42,31,24,40,36,1900,84,80,92,90,null,1420,96,93,92,83,87,214,73,57,69,40,39,120,68,41,60,41,34,334,71,51,66,40,37,60,40,25,28,25,20,1819,89,83,85,73,75,null,1349,94,91,92,82,85,246,59,49,62,30,33,141,50,33,52,26,27,387,56,43,59,28,30,90,29,23,24,17,15,1827,82,78,82,68,70,null,1272,94,88,91,81,283,65,38,58,29,138,53,30,48,23,421,61,36,55,27,62,26,18,27,11,1756,84,73,80,65,null,1281,62.5,298,20.8,178,11.8,476,17.399999999999999,92,3.3,1864,47.6,null,1210,68.3,312,19.600000000000001,232,28.4,544,23.3,75,6.7,1829,52.4,null,1190,63.9,374,24.3,291,"x",665,"x",94,"x",1949,45.5,null,1195,57.7,438,26.7,218,11,656,21.5,90,"x",1942,42.8,null,1262,53.3,421,19.2,218,12.4,639,16.899999999999999,90,6.7,1993,39.5,null,3720,3273.6,88,180,144.17999999999998,80.099999999999994,7.9,null,650,40,1180,1870,0.77,0.79,0.93,0.87]
[852,"Southampton",66,68,2539,35.700000000000003,23,24,144,28.1,14,15,125,26.6,19,20,269,27.4,"x","x",40,19.2,60,62,2888,34.6,53,55,2635,34.299999999999997,14,16,160,26.2,15,17,107,26.5,15,16,267,26.3,"x","x",39,19.5,49,51,2978,33.299999999999997,null,2353,82,365,44,173,35,538,41,39,21,2958,73,2105,80,376,38,139,33,515,37,17,18,2658,71,2047,66,367,23,115,22,482,23,31,23,2573,57,null,2079,96,95,98,96,397,75,64,83,78,127,54,38,58,59,524,70,57,77,73,33,15,12,15,18,2644,90,86,93,90,null,2006,97,96,98,98,379,70,58,79,77,127,47,38,54,59,506,64,53,72,73,38,24,18,26,21,2567,89,86,92,92,null,1852,96,94,98,98,383,63,54,77,77,111,48,33,48,56,494,60,49,70,72,36,25,14,28,28,2394,87,83,91,91,null,1808,96,94,98,98,392,59,53,75,77,103,44,33,61,60,495,56,49,72,73,41,17,15,27,24,2353,86,83,91,91,null,1706,95,93,98,98,402,61,56,75,79,120,51,40,58,58,522,59,52,71,74,36,19,11,17,17,2276,85,82,90,91,null,1696,96,97,95,87,92,324,75,61,68,41,50,84,60,38,48,25,29,408,72,57,64,38,46,54,15,15,15,9,11,2159,89,87,87,76,81,null,1607,95,96,95,84,90,337,66,54,64,33,44,108,44,30,46,20,26,445,61,48,60,30,39,52,15,6,17,6,"x",2106,86,84,85,71,77,null,1554,93,91,92,85,343,62,44,59,34,103,50,32,50,28,446,59,41,57,33,41,20,"x",15,"x",2044,84,78,83,72,null,1495,72.3,281,24.6,228,22.4,509,23.6,79,11.4,2083,58.1,null,1354,69.099999999999994,324,22.5,202,"x",526,"x",49,"x",1930,54.4,null,1282,70.400000000000006,451,25.3,261,14.6,712,21.3,48,"x",2044,51.7,null,1258,67.2,434,23.7,343,"x",777,"x",64,"x",2099,47.5,null,1431,59.8,423,19.600000000000001,360,8.6,783,14.6,43,"x",2257,43.1,null,4410,3827.88,86.8,120,104.88000000000001,87.4,-0.6,null,710,10,1280,2010,0.79,"x",0.92,0.87]
[855,"Leicestershire",60,61,6911,34.6,22,24,112,26.4,15,16,197,25.9,17,19,309,26.1,"x","x",112,19.7,57,58,7445,33.9,46,49,6996,32.9,"x","x",100,25.9,"x","x",166,24.5,12,14,266,25.1,"x","x",110,19.600000000000001,44,46,7472,32.4,null,6730,81,352,36,293,43,645,39,118,13,7526,76,6645,79,349,31,268,36,617,33,108,13,7394,74,6348,70,434,22,240,31,674,25,110,9,7159,64,null,6338,97,95,98,98,590,63,51,71,69,337,57,47,64,66,927,61,49,68,68,136,27,18,24,27,7414,91,88,93,93,null,6147,97,95,98,97,598,60,49,73,74,293,59,49,68,64,891,59,49,71,71,123,21,12,23,20,7183,91,88,93,93,null,5946,97,95,98,98,691,55,43,68,67,295,52,42,61,59,986,54,42,66,65,132,21,12,21,19,7079,89,86,92,91,null,5996,95,93,98,97,670,50,40,63,69,307,50,39,62,62,977,50,40,63,67,112,20,12,20,16,7103,88,84,91,91,null,5682,96,93,97,98,782,47,40,63,70,267,46,36,55,58,1049,47,39,61,67,95,11,5,13,7,6839,87,84,91,92,null,5566,96,96,94,88,90,778,70,53,60,30,37,426,65,46,57,35,37,1204,68,50,59,32,37,169,14,8,13,7,6,6945,89,86,86,77,79,null,5337,94,93,93,85,86,729,61,45,56,30,28,394,55,37,52,28,26,1123,59,42,55,29,27,176,22,14,18,13,12,6645,86,82,84,73,74,null,5448,96,94,94,88,772,64,46,58,32,402,55,37,49,28,1174,61,43,55,31,203,19,14,19,11,6829,87,83,85,76,null,5917,69.3,772,19.7,340,15.9,1112,18.5,246,10.6,7275,59.5,null,5908,66.400000000000006,692,15.2,319,14.1,1011,14.8,268,7.5,7187,56.9,null,6073,66.7,734,15.5,377,14.1,1111,15,272,10.7,7460,56.9,null,6025,65.3,783,14.3,365,13.7,1148,14.1,287,10.5,7460,55.3,null,6055,61.2,771,17,284,10.199999999999999,1055,15.2,281,7.1,7391,52.6,null,13760,12631.679999999998,91.8,660,582.12,88.2,3.6,null,1110,190,6080,7380,0.83,0.86,0.93,0.91]
[856,"Leicester",41,47,3843,30.8,8,9,226,24.2,8,9,235,22.5,8,9,461,23.3,"x","x",47,18.100000000000001,36,41,4542,29.7,25,31,3760,28.3,8,9,197,22.2,4,6,234,21.1,6,7,431,21.6,"x","x",50,17.5,22,28,4417,27.4,null,3703,76,318,42,308,33,626,37,76,12,4493,68,3496,75,405,34,250,31,655,33,56,"x",4272,67,3342,64,399,29,229,32,628,30,76,9,4097,57,null,3495,94,91,96,93,462,66,61,78,69,279,51,41,59,50,741,60,53,71,62,68,9,6,10,6,4348,86,83,90,86,null,3276,95,92,97,95,443,69,58,79,72,283,55,47,67,63,726,64,53,74,69,77,16,10,22,17,4124,87,83,91,88,null,3136,94,92,97,93,507,63,57,76,65,246,46,37,55,48,753,57,50,69,60,86,21,17,26,17,4011,85,82,90,85,null,2945,93,91,96,93,585,64,51,79,65,232,46,36,56,45,817,59,47,72,59,77,22,13,25,18,3866,84,80,89,84,null,2886,91,90,95,93,545,54,48,65,61,221,47,38,52,49,766,52,45,61,58,58,9,5,16,14,3731,81,79,87,84,null,2785,94,93,92,86,87,416,68,60,70,46,46,345,57,39,52,34,30,761,63,51,62,40,39,87,18,13,21,13,10,3647,85,82,84,75,75,null,2649,94,93,94,86,88,460,69,59,67,38,47,314,53,38,49,29,29,774,62,51,60,35,40,89,13,8,15,4,4,3520,85,82,84,73,75,null,2478,93,92,93,85,495,67,52,65,39,284,51,33,51,25,779,61,45,60,34,93,18,12,14,11,3361,83,78,83,71,null,2556,68.099999999999994,503,22.1,265,17.399999999999999,768,20.399999999999999,153,4.5999999999999996,3478,54.8,null,2405,65.400000000000006,603,21.9,272,19.100000000000001,875,21,141,2.8,3422,51.5,null,2415,65.099999999999994,595,24.2,228,16.2,823,22,144,4.9000000000000004,3393,52.1,null,2640,61.9,485,13.6,261,11.9,746,13,161,2.5,3548,48.9,null,2581,56.5,496,14.7,255,6.7,751,12,164,3,3496,44.4,null,7790,7073.32,90.8,370,307.09999999999997,83,7.8,null,820,60,2430,3310,0.8,0.76,0.9,0.88]
[857,"Rutland",64,64,364,37.6,"x","x",5,31.2,"x","x",11,24.1,"x","x",16,26.3,"x","x","x",22,61,62,387,37.1,60,61,360,36.799999999999997,"x","x",6,32.5,"x","x",19,27.7,16,16,25,28.8,"x","x",4,20,56,57,393,36.1,null,360,78,18,44,13,31,31,39,7,0,401,73,351,76,10,30,10,"x",20,"x",7,"x",380,72,342,68,9,"x",9,"x",18,17,4,"x",365,65,null,348,97,95,"x",99,30,53,40,70,67,10,"x",40,"x","x",40,"x",40,"x","x",8,"x",38,"x","x",396,91,88,95,95,null,336,97,93,98,97,21,48,62,62,81,19,53,42,74,74,40,50,53,68,78,5,"x","x","x","x",382,91,88,94,94,null,312,94,91,96,96,22,68,55,64,77,22,55,55,68,59,44,61,55,66,68,11,27,"x",36,36,368,88,84,91,91,null,292,97,96,99,98,27,81,89,89,"x",22,59,59,64,"x",49,71,76,78,84,7,"x","x","x","x",349,92,91,94,95,null,273,96,94,97,98,25,64,64,88,76,19,53,37,74,74,44,59,52,82,75,6,"x","x",50,50,325,90,87,94,94,null,277,96,90,88,87,83,41,59,49,61,27,34,26,62,42,42,27,38,67,60,46,54,27,36,10,30,"x","x",40,"x",357,87,80,79,73,71,null,266,86,90,85,79,78,26,77,69,62,46,54,33,58,55,58,52,33,59,66,61,59,49,42,8,"x","x",38,"x","x",334,81,83,79,72,70,null,230,97,95,95,92,33,88,79,85,70,35,57,46,60,37,68,72,62,72,53,"x","x","x",43,"x",312,88,84,88,80,null,416,74.5,33,12.1,8,"x",41,"x",16,"x",473,67.2,null,410,63.2,30,"x",22,"x",52,9.6,19,15.8,481,55.5,null,395,67.3,30,10,17,"x",47,"x",12,"x",454,60.8,null,437,65.400000000000006,28,35.700000000000003,10,"x",38,"x",17,"x",492,61.4,null,425,62.8,25,20,9,33.299999999999997,34,23.5,15,"x",474,58.2,null,600,550.79999999999995,91.8,40,35.44,88.6,3.2,null,50,10,400,450,0.94,0.92,0.91,0.91]
[860,"Staffordshire",66,68,8496,36.5,11,12,211,26.4,20,22,378,26.3,17,18,589,26.3,4,4,114,19.3,62,64,9271,35.6,55,57,8743,34.799999999999997,10,11,257,25.6,13,14,341,25.7,12,13,598,25.7,"x","x",107,19,52,54,9533,34,null,8306,84,620,36,492,42,1112,39,133,11,9576,78,7975,80,685,29,445,36,1130,32,112,10,9238,73,7622,70,682,24,450,24,1132,24,112,6,8887,63,null,7784,98,96,99,98,796,65,56,76,70,519,52,43,61,57,1315,60,51,70,65,126,19,12,21,19,9235,91,88,93,92,null,7418,97,96,99,98,785,60,53,72,73,525,50,40,58,61,1310,56,48,67,68,132,9,7,13,10,8867,90,88,93,92,null,7324,97,95,98,97,907,58,51,71,69,517,54,47,64,62,1424,56,49,69,66,134,12,10,16,14,8893,89,87,92,91,null,7350,95,94,97,97,964,52,47,69,70,504,48,39,58,58,1468,51,44,65,66,122,13,11,16,11,8959,87,85,91,91,null,6907,95,94,98,97,913,52,46,71,71,449,50,45,60,61,1362,52,46,67,68,118,20,14,19,22,8406,87,85,91,91,null,6860,94,96,92,85,88,811,66,55,62,30,39,621,56,44,54,30,33,1432,62,50,58,30,36,245,23,13,16,12,9,8542,87,86,84,73,77,null,6695,93,95,92,83,86,803,61,49,57,29,33,553,52,38,49,23,29,1356,58,44,54,27,31,238,13,8,13,8,7,8298,85,84,83,71,75,null,6673,95,93,92,87,928,65,50,63,37,595,48,36,49,27,1523,58,45,57,33,246,21,11,16,8,8452,86,82,84,75,null,8040,68.400000000000006,931,20.100000000000001,355,24.2,1286,21.2,377,10.6,9704,59.9,null,7761,67.599999999999994,1100,21.9,352,23.6,1452,22.3,335,10.4,9548,58.7,null,7409,66.900000000000006,1175,19.3,422,22.3,1597,20.100000000000001,397,9.6,9408,56.5,null,7493,64.5,1464,23,426,18.3,1890,22,375,7.5,9760,54,null,7998,59.6,998,14.5,438,17.600000000000001,1436,15.5,417,4.5999999999999996,9853,50.8,null,17910,16226.46,90.6,810,713.6099999999999,88.1,2.6,null,1620,210,7390,9220,0.84,0.87,0.92,0.91]
[861,"Stoke-on-Trent",59,63,2674,34.700000000000003,15,17,287,25.9,19,20,193,24.9,17,18,480,25.5,"x","x",43,19.2,51,55,3238,33,56,60,2773,34.4,14,18,341,26.6,13,13,142,24,14,17,483,25.8,"x","x",48,18.7,48,52,3360,32.799999999999997,null,2625,83,435,34,199,30,634,33,64,8,3343,71,2365,76,502,35,182,21,684,31,45,11,3117,65,2174,63,448,22,183,16,631,20,49,10,2877,52,null,2360,96,94,97,96,444,61,50,75,66,231,30,27,45,40,675,51,42,65,57,56,14,7,9,11,3104,84,81,88,86,null,2141,93,92,95,93,446,57,47,70,61,205,38,30,43,31,651,51,42,61,51,61,16,13,16,13,2866,82,78,86,81,null,2150,93,89,95,94,491,48,38,61,60,248,26,22,38,37,739,41,33,53,52,46,24,7,13,11,2940,79,73,83,82,null,2047,92,88,94,93,511,46,38,60,65,202,20,19,35,35,713,38,32,53,57,51,12,8,14,8,2817,77,72,82,82,null,1908,93,90,96,96,529,49,40,63,67,206,25,17,32,44,735,43,33,54,60,40,25,15,25,25,2690,78,73,83,85,null,2046,96,95,94,85,89,283,82,58,70,47,47,201,52,32,46,26,24,484,70,47,60,38,37,95,29,16,24,14,13,2629,89,83,85,74,77,null,1862,93,92,93,82,85,278,71,53,65,40,42,224,48,35,50,28,29,502,61,45,58,35,37,88,14,6,13,5,6,2457,84,79,83,69,72,null,1843,95,91,93,86,321,75,50,60,35,221,43,20,43,15,542,62,38,53,27,76,14,7,7,"x",2466,85,77,82,70,null,2046,61,289,14.5,162,"x",451,"x",141,"x",2638,49.9,null,1834,64.599999999999994,313,18.2,178,10.1,491,15.3,124,7.3,2449,51.8,null,1900,62.1,325,13.2,252,11.5,577,12.5,139,6.5,2618,48.2,null,1893,61.8,338,16.600000000000001,226,13.3,564,15.2,151,4,2608,48.4,null,1927,52,404,11.4,244,8.1999999999999993,648,10.199999999999999,145,3.4,2720,39.4,null,5160,4520.16,87.6,330,265.97999999999996,80.599999999999994,7,null,580,70,1900,2550,0.78,0.86,0.88,0.86]
[865,"Wiltshire",62,64,4645,34.299999999999997,19,20,181,28.5,17,19,275,26.8,18,20,456,27.5,"x","x",84,18.899999999999999,57,59,5289,33.4,55,56,4735,34.1,19,19,182,28.4,16,16,267,26.5,17,17,449,27.3,"x","x",70,18.600000000000001,51,52,5371,33.299999999999997,null,4495,78,355,39,345,32,700,36,92,11,5324,71,4345,75,430,29,279,30,709,29,67,13,5158,67,4211,64,413,18,296,21,709,19,72,7,5026,56,null,4149,97,94,98,97,534,72,60,80,81,327,56,45,67,67,861,66,54,75,76,88,27,22,30,30,5118,90,86,93,93,null,4036,97,94,98,98,544,66,56,79,76,323,52,41,64,66,867,61,51,73,73,78,27,22,35,31,5017,90,86,93,92,null,3882,96,93,97,97,599,64,53,75,77,320,45,37,62,58,919,57,47,70,71,95,25,12,24,22,4917,88,83,91,91,null,3975,95,91,97,96,574,59,47,71,74,321,48,36,55,61,895,55,43,65,69,78,17,9,26,24,4978,86,81,90,90,null,3910,93,90,96,97,563,56,43,71,73,294,42,32,51,57,857,51,39,64,68,90,30,20,26,29,4880,85,80,89,90,null,3689,97,96,94,87,91,548,78,68,71,43,51,387,57,40,48,25,27,935,70,56,61,36,41,162,28,19,21,19,11,4798,90,86,85,75,78,null,3548,95,95,93,87,89,512,72,60,67,40,44,380,54,34,47,27,25,892,64,49,58,34,36,156,24,15,22,16,12,4605,87,84,84,74,76,null,3481,96,95,93,88,603,73,55,64,40,405,53,32,42,21,1008,65,46,55,32,133,26,17,22,10,4636,87,82,82,73,null,4385,69.3,447,21.7,245,20,692,21.1,186,12.9,5267,61,null,4085,68.599999999999994,478,23.6,258,12,736,19.600000000000001,166,7.2,4987,59.3,null,4232,70.099999999999994,440,23,311,10.9,751,18,160,4.4000000000000004,5148,60.5,null,4259,65.5,508,20.7,315,9.5,823,16.399999999999999,170,2.9,5252,55.8,null,4264,63.2,420,21.4,232,12.5,652,18.3,167,2.4,5083,55.4,null,9300,8416.5,90.5,340,303.28000000000003,89.2,1.2,null,760,90,4230,5080,0.77,0.89,0.92,0.89]
[866,"Swindon",64,66,2493,35.700000000000003,12,13,118,27.8,18,19,114,28,15,16,232,27.9,8,8,52,21.8,58,61,2805,34.700000000000003,57,59,2629,35.1,13,14,100,26.8,13,13,84,27.2,13,14,184,27,"x","x",47,19.899999999999999,53,55,2879,34.299999999999997,null,2441,80,211,36,148,35,359,36,57,14,2875,73,2295,73,235,26,141,39,376,31,58,12,2745,66,2108,68,241,27,138,32,379,28,40,13,2538,61,null,2238,97,95,99,96,286,69,57,79,70,168,56,52,68,67,454,64,55,75,69,78,22,19,28,24,2781,89,86,93,89,null,2075,96,95,98,97,270,72,62,77,80,144,46,42,59,58,414,63,55,71,72,53,23,25,30,30,2552,89,87,92,91,null,1959,96,93,98,96,323,69,63,84,76,136,45,39,56,49,459,62,56,75,68,51,14,12,16,18,2483,88,85,92,89,null,1865,95,92,97,96,345,58,51,70,71,132,42,33,55,52,477,54,46,66,66,50,18,16,22,22,2407,85,81,89,88,null,1842,95,94,98,96,351,63,53,81,73,143,42,37,59,58,494,57,48,74,68,43,23,16,23,33,2387,86,83,91,89,null,1919,97,96,94,88,91,221,74,63,71,43,47,157,69,53,62,38,38,378,72,59,67,41,43,86,35,22,31,20,18,2385,91,87,88,78,81,null,1811,94,94,92,84,87,226,62,44,61,29,27,136,66,43,57,35,32,362,64,43,59,31,29,98,28,24,27,19,19,2276,86,83,84,73,75,null,1713,96,94,95,89,307,63,45,53,29,169,62,41,55,33,476,62,44,54,30,96,27,23,32,19,2289,86,80,84,74,null,1640,66.599999999999994,356,40.700000000000003,151,23.2,507,35.5,121,6.6,2268,56.4,null,1719,63.9,265,20.8,180,15.6,445,18.7,89,6.7,2254,52.7,null,1640,63,318,29.2,140,10.7,458,23.6,97,"x",2196,52.4,null,1738,59.1,266,19.2,130,16.899999999999999,396,18.399999999999999,80,5,2214,49.9,null,1728,55.9,268,14.9,173,12.7,441,14.1,90,"x",2259,45.6,null,4870,4421.96,90.8,240,206.88,86.2,4.5999999999999996,null,460,40,1640,2140,0.83,0.79,0.93,0.9]
[867,"Bracknell Forest",66,67,1384,36.1,27,27,30,30.3,15,19,52,26.8,20,22,82,28.1,"x","x",15,18.5,63,63,1521,35.5,60,61,1370,35,"x","x",47,27.5,"x","x",29,25.2,8,8,76,26.6,"x",17,18,22.7,56,58,1509,34.5,null,1289,81,91,29,54,41,145,33,24,33,1468,75,1221,75,101,29,38,26,139,28,35,26,1403,69,1122,60,117,15,50,22,167,17,18,"x",1314,54,null,1174,97,95,98,98,114,61,60,80,82,69,51,41,59,62,183,57,52,72,74,38,32,34,47,39,1399,90,88,93,94,null,1087,98,97,99,98,136,65,59,76,74,79,62,53,70,68,215,64,57,74,72,24,29,33,38,46,1330,92,89,94,93,null,1056,98,96,99,98,171,65,55,73,76,73,58,45,73,63,244,63,52,73,72,34,24,18,44,24,1338,89,86,93,91,null,996,95,92,98,97,173,56,47,74,79,73,53,41,58,60,246,55,46,69,74,24,42,29,46,42,1273,86,81,91,92,null,954,96,92,98,98,153,62,50,80,82,82,50,38,68,74,235,58,46,76,80,29,10,10,34,34,1224,86,81,92,93,null,957,97,97,94,87,91,131,69,55,61,35,35,82,66,50,52,34,40,213,68,53,58,35,37,53,40,25,30,21,19,1225,89,86,85,75,79,null,815,96,97,94,87,90,147,76,68,63,40,46,74,59,54,61,35,38,221,70,63,62,38,43,45,38,24,33,22,20,1084,88,87,85,74,78,null,858,97,94,95,90,146,68,60,62,41,102,60,43,50,33,248,65,53,57,38,42,33,24,38,21,1151,88,83,84,76,null,884,72.400000000000006,102,27.5,45,"x",147,"x",50,"x",1081,63.4,null,906,72.3,104,17.3,46,"x",150,"x",51,"x",1107,61.4,null,879,68.5,99,17.2,74,"x",173,"x",40,12.5,1093,59.7,null,846,67.8,137,23.4,78,"x",215,"x",39,"x",1100,56.9,null,820,65,155,13.5,90,16.7,245,14.7,47,"x",1112,51.3,null,2220,2020.2,91,140,125.16,89.4,1.6,null,180,30,870,1080,0.72,0.81,0.89,0.86]
[868,"Windsor and Maidenhead",69,71,1494,36.799999999999997,25,26,73,30.5,23,23,44,28.8,24,25,117,29.9,"x","x",22,19.8,65,66,1721,36,59,60,1498,35.799999999999997,17,17,46,28.9,15,15,61,27.6,16,16,107,28.1,"x","x",30,20.3,54,55,1732,35,null,1393,81,103,46,93,42,196,44,35,14,1637,75,1355,76,103,42,97,27,200,35,23,26,1585,69,1279,66,123,28,75,21,198,25,21,33,1505,60,null,1264,98,97,99,99,159,83,75,91,91,113,64,50,80,73,272,75,65,86,83,26,46,35,46,46,1566,93,90,96,95,null,1202,99,97,99,98,155,85,78,92,92,110,66,58,74,75,265,77,70,84,85,32,28,25,41,38,1515,93,90,95,94,null,1077,98,96,99,99,187,72,65,86,90,107,57,52,72,76,294,67,60,81,85,33,24,21,24,27,1414,89,87,93,94,null,1162,98,97,99,99,177,75,69,86,87,73,59,64,79,77,250,70,68,84,84,35,37,29,37,43,1450,92,90,95,95,null,1099,97,96,99,99,177,73,64,86,88,96,64,60,90,85,273,70,63,88,87,27,15,15,30,26,1402,91,88,95,95,null,1060,97,96,95,90,92,134,86,76,78,51,62,97,69,47,65,38,39,231,79,64,73,46,52,46,37,22,41,20,17,1344,92,88,89,80,82,null,999,97,93,95,90,90,115,77,66,70,54,52,110,62,45,64,36,37,225,70,56,67,45,45,45,31,16,38,18,13,1271,90,84,88,79,79,null,1023,97,93,94,89,118,82,68,71,53,109,77,57,69,50,227,80,63,70,51,55,36,25,33,22,1308,91,85,87,79,null,1221,78.5,249,43,86,30.2,335,39.700000000000003,59,20.3,1615,68.3,null,1167,74.7,225,34.200000000000003,97,32,322,33.5,63,7.9,1552,63.5,null,1046,75.900000000000006,299,44.5,113,23,412,38.6,57,10.5,1516,63.3,null,1074,77.400000000000006,285,38.6,110,14.5,395,31.9,55,21.8,1524,63.6,null,1170,70.5,215,32.1,96,19.8,311,28.3,61,11.5,1542,59.7,null,2280,2006.4,88,140,113.26,80.900000000000006,7.2,null,410,50,1050,1500,0.81,0.8,0.9,0.87]
[869,"West Berkshire",68,69,1795,35.799999999999997,20,22,54,28.1,20,20,65,28.1,20,21,119,28.1,"x","x",22,21.6,64,65,1980,35.1,63,65,1851,35,26,27,62,30.4,11,12,76,26.9,17,19,138,28.5,"x","x",25,20.399999999999999,59,61,2051,34.4,null,1805,80,99,33,98,43,197,38,31,16,2038,75,1575,74,127,31,95,41,222,35,38,11,1839,68,1555,63,113,15,96,28,209,21,23,13,1792,57,null,1509,97,95,98,98,154,66,60,77,79,95,69,60,69,66,249,67,60,74,74,43,26,12,21,32,1809,91,88,93,93,null,1488,98,96,99,99,164,70,60,77,79,96,66,54,73,79,260,68,58,76,79,44,25,16,25,30,1799,92,88,93,94,null,1397,97,96,98,98,197,68,63,74,87,81,70,59,70,77,278,69,62,73,84,31,39,26,39,45,1711,92,89,93,95,null,1437,97,96,99,99,204,66,58,78,82,68,59,44,72,76,272,64,55,76,81,51,39,24,45,41,1771,91,88,94,94,null,1369,97,95,98,98,228,68,60,83,86,91,67,57,75,77,319,68,59,81,83,36,47,44,50,50,1728,91,88,94,95,null,1374,98,97,94,87,92,124,80,60,64,38,45,149,69,50,63,37,45,273,74,55,63,37,45,59,36,25,29,27,22,1709,92,88,87,77,82,null,1231,97,97,94,86,90,139,68,61,63,42,43,141,59,46,53,32,32,280,63,54,58,37,38,70,30,19,33,23,16,1582,88,86,85,75,77,null,1266,96,94,92,87,158,69,48,56,34,131,58,46,56,31,289,64,47,56,33,73,22,11,16,10,1630,87,82,82,74,null,1682,69.099999999999994,135,22.2,79,17.7,214,20.6,86,8.1,1982,61.3,null,1609,64.3,140,20,80,21.3,220,20.5,74,12.2,1903,57.2,null,1607,69.099999999999994,174,25.3,115,15.7,289,21.5,87,21.8,1983,60.1,null,1577,71.099999999999994,233,26.6,97,13.4,330,22.7,86,17.399999999999999,1994,60.7,null,1567,65.099999999999994,254,21.7,90,14.4,344,19.8,89,11.2,2000,54.9,null,3170,2910.06,91.8,150,130.05000000000001,86.7,5.0999999999999996,null,290,50,1600,1950,0.8,0.8,0.91,0.89]
[870,"Reading",65,69,1644,34.700000000000003,38,41,76,31.1,23,25,142,27.4,28,31,218,28.7,"x","x",23,22.8,59,64,1954,33.700000000000003,51,56,1680,34.5,25,27,95,28.7,17,20,132,26.9,21,23,227,27.7,"x",13,24,22.3,46,51,2000,33.5,null,1632,75,115,43,147,35,262,39,33,30,1950,69,1427,72,89,44,142,34,231,38,36,"x",1718,65,1307,59,138,20,123,16,261,18,39,8,1621,51,null,1431,95,91,96,95,108,74,60,74,73,120,58,48,72,62,228,65,54,73,67,49,33,27,35,37,1721,89,84,91,90,null,1302,95,92,97,96,147,69,53,72,75,117,58,46,78,67,264,64,50,75,71,44,27,20,23,23,1618,88,83,91,90,null,1197,94,91,96,95,157,66,49,69,68,132,46,33,55,53,289,57,42,63,61,36,39,17,36,25,1532,85,79,88,86,null,1154,94,91,97,95,172,67,52,81,73,122,46,32,59,57,294,59,44,72,66,33,24,15,27,18,1497,85,79,90,87,null,1103,93,87,96,95,158,63,48,68,72,137,51,41,56,59,295,58,45,62,66,42,33,17,33,36,1448,83,76,87,87,null,1052,95,94,93,86,89,156,73,62,62,37,45,110,53,38,45,27,26,266,65,52,55,33,37,67,33,16,34,18,15,1389,86,82,83,72,75,null,1019,92,88,89,84,81,150,65,47,54,40,30,96,48,35,50,40,32,246,59,43,52,40,31,40,23,15,25,"x",13,1312,83,77,80,74,69,null,1025,94,91,92,86,152,65,50,61,34,102,46,26,41,23,254,57,41,53,30,51,27,18,24,14,1333,84,79,82,73,null,768,77.099999999999994,216,37,61,31.1,277,35.700000000000003,47,6.4,1092,63.6,null,654,78.7,204,42.2,126,"x",330,"x",50,"x",1034,60.7,null,647,74,152,27,144,18.100000000000001,296,22.6,40,7.5,987,55.9,null,703,69.400000000000006,147,24.5,97,"x",244,"x",35,"x",982,54.7,null,587,72.099999999999994,183,24,147,25.2,330,24.5,41,7.3,958,52.9,null,2790,2469.15,88.5,160,137.6,86,2.5,null,300,20,650,970,0.67,0.87,0.88,0.81]
[871,"Slough",61,63,2029,33.4,32,32,107,28.5,23,25,150,27.2,26,28,257,27.7,"x","x",38,20.399999999999999,56,58,2382,32.5,54,56,1992,32.799999999999997,16,18,90,26.9,14,14,140,26.6,15,16,230,26.7,"x","x",41,18,48,50,2326,31.8,null,1925,83,147,56,173,46,320,51,49,18,2309,77,1781,77,154,42,177,39,331,40,45,13,2182,70,1643,62,175,33,146,27,321,30,41,17,2029,56,null,1788,96,94,97,95,174,85,76,89,78,183,66,56,75,67,357,75,66,82,72,54,20,15,22,19,2215,91,87,93,89,null,1625,96,92,97,94,176,72,70,82,75,185,65,51,79,69,361,68,60,80,72,46,28,30,28,30,2043,89,85,92,88,null,1501,94,92,97,94,178,67,53,76,72,158,56,42,66,59,336,62,48,71,66,35,29,20,31,26,1886,87,83,91,87,null,1365,95,92,98,94,185,68,57,84,74,138,51,36,63,62,323,61,48,75,69,44,27,16,34,25,1750,87,81,92,87,null,1253,94,91,98,96,227,74,58,80,80,138,55,48,60,61,365,67,54,73,73,38,24,18,29,32,1671,86,81,90,89,null,1376,95,95,93,88,88,165,74,67,70,47,46,143,60,57,60,40,45,308,68,63,65,44,45,61,25,11,18,8,10,1748,87,86,85,78,78,null,1282,95,95,93,89,88,228,66,61,57,42,41,139,60,44,55,29,32,367,64,55,56,37,38,56,16,11,14,9,7,1710,86,83,82,75,74,null,1220,94,91,92,86,193,67,54,61,40,149,60,49,58,40,342,64,52,59,40,71,31,21,23,14,1638,85,80,82,73,null,1231,83.6,240,46.3,142,33.1,382,41.4,57,10.5,1670,71.400000000000006,null,1191,78.8,227,31.3,101,26.7,328,29.9,53,5.7,1572,66.099999999999994,null,1197,79.7,206,38.799999999999997,117,23.9,323,33.4,49,12.2,1570,68.099999999999994,null,1249,74.900000000000006,140,25,132,"x",272,"x",54,"x",1575,63.1,null,1133,72.2,176,23.9,117,15.4,293,20.5,62,6.5,1488,59.3,null,3030,2790.6299999999997,92.1,100,91.2,91.2,0.9,null,320,20,1200,1540,0.89,0.91,0.96,0.94]
[872,"Wokingham",63,65,1814,36.299999999999997,31,31,67,31.2,16,17,70,27.1,23,24,137,29.1,9,9,35,20.6,59,61,2074,35.299999999999997,48,50,1891,34,10,12,51,25.9,8,11,66,26.2,9,11,117,26.1,"x","x",21,20.9,45,47,2115,33.299999999999997,null,1810,76,115,23,103,39,218,31,25,16,2067,70,1678,68,149,29,91,33,240,30,37,16,1970,62,1673,57,143,23,65,23,208,23,33,18,1924,52,null,1646,99,97,99,99,175,75,61,83,88,107,63,52,78,79,282,71,58,81,85,35,34,29,37,37,1972,93,90,96,96,null,1597,98,96,99,99,182,77,63,87,92,87,64,53,72,78,269,73,60,82,88,44,45,41,52,48,1921,93,89,95,96,null,1577,97,95,99,98,167,69,62,83,85,67,55,51,69,81,234,65,59,79,84,36,47,31,53,53,1859,92,89,95,95,null,1546,97,95,99,99,223,65,60,81,86,79,66,52,73,77,302,66,58,79,83,32,41,34,38,41,1892,91,88,94,95,null,1543,96,94,98,98,155,62,63,83,86,75,56,51,76,80,230,60,59,81,84,34,35,26,38,32,1812,90,88,95,95,null,1476,98,98,96,92,94,181,78,68,68,40,48,87,63,51,64,46,41,268,73,62,67,42,46,54,41,28,33,22,26,1801,93,90,90,82,85,null,1411,96,96,95,91,91,186,68,60,67,40,42,86,64,50,60,38,37,272,67,57,65,40,40,52,33,27,33,23,23,1740,89,88,89,81,81,null,1390,96,96,94,90,193,73,59,64,43,87,60,45,59,32,280,69,54,63,40,70,24,17,23,13,1746,89,86,86,79,null,1429,77.8,110,38.200000000000003,82,39,192,38.5,71,12.7,1692,70.599999999999994,null,1367,74,110,28.2,95,31.6,205,29.8,66,6.1,1638,65.7,null,1351,76.3,167,48.5,99,29.3,266,41.4,85,11.8,1703,67.599999999999994,null,1379,75.599999999999994,255,47.8,126,23,381,39.6,80,15,1842,65.599999999999994,null,1354,73.900000000000006,164,30.5,109,16.5,273,24.9,78,11.5,1705,63.2,null,3090,2867.52,92.8,150,133.5,89,3.8,null,270,50,1350,1670,0.86,0.89,0.93,0.92]
[873,"Cambridgeshire",64,66,6561,35,18,18,239,26.6,15,18,205,26.5,16,18,444,26.6,6,6,125,21.4,59,61,7234,34.200000000000003,52,54,6507,34,12,14,231,26.6,10,10,164,24.7,11,12,395,25.8,"x","x",108,20.3,49,51,7123,33.200000000000003,null,6210,80,516,34,251,33,767,33,137,25,7167,74,5969,77,517,32,239,30,756,31,110,15,6890,70,5519,69,577,30,302,28,879,30,93,12,6530,62,null,5729,96,94,98,97,674,63,54,72,73,317,50,37,61,60,991,59,48,68,68,135,31,25,37,36,6897,89,86,92,91,null,5366,96,94,98,97,633,61,50,74,76,316,51,39,60,60,949,57,47,69,71,126,31,18,36,31,6482,89,86,92,91,null,5102,96,93,97,96,817,63,53,73,72,349,51,37,56,55,1166,60,48,68,67,128,32,26,33,33,6422,88,84,91,90,null,4923,95,93,97,97,851,59,47,72,73,362,47,35,59,59,1213,56,44,68,69,129,36,23,33,31,6308,86,82,90,90,null,4918,95,93,97,97,776,57,50,74,77,356,42,35,55,55,1132,52,45,68,70,137,33,26,33,30,6214,86,83,91,91,null,4777,97,95,93,87,89,691,73,57,60,38,40,382,57,39,46,29,24,1073,67,50,55,35,34,241,31,23,25,18,15,6100,89,84,84,75,76,null,4499,95,94,92,86,86,802,67,53,59,32,35,380,48,31,43,22,22,1182,61,46,54,29,30,196,25,15,22,13,13,5892,85,81,82,72,72,null,4507,96,94,94,89,768,68,51,60,34,441,51,32,48,24,1209,61,44,56,30,226,27,20,28,15,5956,86,81,84,74,null,4618,72,720,31.4,440,25.7,1160,29.2,279,9.6999999999999993,6058,61,null,4487,68.599999999999994,707,29.6,429,16.8,1136,24.7,253,7.5,5876,57.5,null,4266,72.099999999999994,924,34.1,569,22.1,1493,29.5,205,9.3000000000000007,5967,59.3,null,4296,73.3,971,30.4,562,19.8,1533,26.5,244,9,6073,58.9,null,4426,67.2,735,27.2,418,21.1,1153,25,264,8.3000000000000007,5843,56.2,null,12030,11236.02,93.4,810,665.01,82.1,11.3,null,1560,140,4200,5890,0.84,0.83,0.93,0.9]
[874,"Peterborough",60,63,2658,35,27,27,79,27.6,17,19,102,25.7,21,22,181,26.6,"x","x",39,20.100000000000001,56,59,2920,34.200000000000003,48,52,2538,32.6,6,13,170,24.5,10,10,94,23.9,7,12,264,24.3,"x","x",38,19.7,43,47,2884,31.5,null,2514,72,204,33,149,33,353,33,36,22,2936,66,2309,67,241,24,133,26,374,25,50,12,2765,60,2046,56,298,18,112,16,410,17,41,27,2530,49,null,2289,93,89,96,92,272,58,49,73,64,150,49,43,64,55,422,55,47,70,61,52,33,21,29,33,2782,86,81,90,86,null,1931,93,90,95,91,383,64,50,75,65,151,42,36,54,46,534,58,46,69,60,54,33,24,41,44,2537,84,79,88,83,null,1876,91,87,94,89,332,62,51,73,67,156,44,35,56,51,488,56,45,67,62,37,27,22,38,32,2425,82,77,87,82,null,1814,91,87,95,93,313,60,47,70,61,152,34,28,51,51,465,52,41,64,57,54,28,11,19,24,2356,81,76,87,84,null,1665,92,89,94,91,305,52,40,66,59,146,46,34,65,53,451,50,38,66,57,48,27,19,35,29,2184,81,76,87,83,null,1716,93,92,93,84,85,269,67,59,64,42,42,153,68,53,57,37,33,422,67,57,61,41,39,102,27,17,22,9,10,2244,85,82,83,72,73,null,1600,92,93,94,84,86,317,60,58,62,37,39,151,45,39,55,26,24,468,55,52,59,34,34,96,23,11,24,14,10,2171,81,80,84,70,71,null,1523,93,92,91,86,350,69,55,62,40,185,48,36,50,24,535,61,48,58,35,103,20,14,16,11,2167,82,77,79,69,null,1594,68.7,318,34.6,193,22.3,511,29.9,141,9.9,2246,56.2,null,1593,61.1,326,27,169,17.8,495,23.8,137,3.6,2225,49.3,null,1529,62.1,441,34,180,10.6,621,27.2,124,3.2,2276,49.4,null,1498,59.6,428,25.7,208,9.6,636,20.399999999999999,125,3.2,2259,45.5,null,1584,52.2,410,20.2,166,9.6,576,17.2,127,2.4,2287,40.6,null,4080,3684.2400000000002,90.3,450,407.7,90.6,-0.4,null,620,70,1530,2220,0.78,0.82,0.91,0.87]
[876,"Halton",42,49,1316,31.6,"x","x",62,23.3,"x","x",56,23.8,5,7,118,23.5,"x","x",7,17.3,39,46,1446,30.8,36,40,1404,30.6,9,11,95,26.5,8,10,63,25.2,9,10,158,26,"x","x",11,20.9,33,37,1577,30,null,1323,74,144,30,105,31,249,31,12,0,1591,66,1186,73,160,18,81,30,241,22,17,"x",1447,63,1261,62,195,26,97,21,292,24,19,"x",1575,54,null,1138,97,93,97,96,188,62,54,66,69,102,"x","x","x","x",290,"x","x","x","x",21,"x","x","x","x",1454,88,83,90,88,null,1227,95,90,97,96,218,59,48,68,69,103,51,47,58,60,321,56,47,65,66,18,"x","x","x","x",1569,86,80,89,89,null,1126,94,91,97,96,213,58,52,71,65,100,51,47,57,54,313,56,50,67,62,15,"x","x","x","x",1457,85,81,89,88,null,1134,92,"x","x","x",199,58,49,68,69,84,"x",32,46,54,283,"x",44,62,65,8,"x","x","x","x",1425,84,80,89,88,null,1036,95,92,97,97,188,47,46,67,71,81,36,33,51,44,269,43,42,62,63,11,"x","x","x","x",1318,84,81,89,89,null,1010,97,95,96,88,91,178,75,66,67,39,47,91,53,43,51,31,32,269,67,58,62,36,42,21,"x","x",14,"x","x",1304,89,86,87,76,79,null,994,95,96,95,87,90,164,66,59,63,34,42,126,53,"x",55,32,"x",290,60,"x",60,33,"x",22,27,23,27,"x",23,1307,86,86,86,74,78,null,990,96,96,95,91,245,78,58,70,46,98,61,36,55,32,343,73,52,66,42,36,33,19,33,19,1371,89,83,86,77,null,1136,71.7,158,29.7,89,"x",247,"x",45,"x",1428,62.5,null,1063,71.3,149,20.100000000000001,112,"x",261,"x",46,"x",1370,59,null,1021,70.7,255,28.6,111,20.7,366,26.2,75,6.7,1462,56.3,null,1013,65.8,312,22.8,139,18.7,451,21.5,72,6.9,1536,50.1,null,1086,59.1,239,15.5,135,5.2,374,11.8,82,"x",1542,44.6,null,2870,2608.83,90.9,80,75.199999999999989,94,-3,null,370,40,1020,1430,0.81,0.95,0.91,0.88]
[877,"Warrington",62,64,2310,35.4,13,14,93,25,18,21,73,25.6,15,17,166,25.2,"x","x",26,21.8,58,60,2519,34.5,47,49,2323,33.299999999999997,8,8,112,24.9,11,11,117,24.9,10,10,229,24.9,"x","x",17,18.8,43,45,2588,32.4,null,2247,82,194,39,116,41,310,39,39,18,2611,76,2123,80,197,29,134,37,331,32,44,11,2511,72,1990,67,269,25,105,28,374,26,39,8,2417,60,null,2117,97,95,98,97,176,59,47,72,72,150,51,44,61,65,326,55,46,67,69,58,19,19,22,17,2515,89,86,92,92,null,1970,97,95,98,97,265,63,53,72,76,130,50,37,60,68,395,58,48,68,73,47,28,17,43,23,2417,89,86,92,92,null,1904,97,95,99,97,289,56,49,73,67,152,47,39,60,60,441,53,45,68,65,35,14,11,23,17,2383,88,84,92,90,null,1902,97,95,98,98,277,64,49,79,75,147,47,31,59,62,424,58,42,72,71,54,15,9,19,17,2387,88,83,92,91,null,1783,97,94,99,98,269,69,57,83,83,149,44,32,50,58,418,60,48,71,74,34,18,15,18,15,2239,88,84,92,92,null,1835,98,97,96,89,94,162,82,62,68,46,48,178,67,52,62,34,38,340,74,57,65,40,43,72,24,15,19,14,11,2250,92,88,89,79,83,null,1876,97,97,96,88,92,233,68,52,67,33,36,142,63,42,63,29,35,375,66,48,65,32,36,70,20,14,23,4,6,2326,89,86,89,77,80,null,1715,97,96,96,92,252,79,56,70,42,195,60,37,55,28,447,70,48,64,36,64,28,19,22,14,2228,90,84,88,79,null,2013,74.400000000000006,225,34.200000000000003,106,27.4,331,32,111,8.1,2455,65.7,null,1933,72.3,225,29.3,129,34.9,354,31.4,125,6.4,2412,62.9,null,2033,73.5,186,28.5,104,25,290,27.2,150,11.3,2475,64.3,null,1960,71.599999999999994,309,41.4,119,13.4,428,33.6,148,4.7,2536,61.3,null,2054,68.599999999999994,232,37.1,128,23.4,360,32.200000000000003,156,8.3000000000000007,2570,59.8,null,4490,4238.5600000000004,94.4,240,205.44,85.6,8.8000000000000007,null,290,110,2030,2440,0.8,0.88,0.94,0.92]
[878,"Devon",72,74,6686,36,35,36,407,30.7,27,28,381,28.9,31,32,788,29.8,5,5,133,21.8,67,68,7735,35.1,67,69,6591,35.299999999999997,26,28,287,28.9,23,26,359,28.2,24,26,646,28.5,"x","x",133,21.5,62,64,7489,34.4,null,6151,86,730,52,472,46,1202,50,186,26,7578,79,6200,80,687,45,410,33,1097,40,141,18,7468,73,6002,66,706,28,449,29,1155,28,150,17,7339,59,null,5926,98,96,99,98,916,76,69,86,84,470,61,50,73,70,1386,70,62,82,79,175,42,35,39,39,7507,91,88,94,93,null,5797,97,96,98,98,946,70,62,81,85,471,65,57,72,72,1417,69,60,78,81,182,41,35,43,42,7422,90,87,93,93,null,5674,96,94,98,98,973,69,59,82,81,497,60,52,70,70,1470,66,56,78,77,192,30,22,36,33,7370,88,85,92,92,null,5454,95,93,98,96,954,59,53,75,74,485,58,51,69,73,1439,59,52,73,74,159,29,24,37,35,7076,86,83,91,90,null,5408,95,93,98,97,911,58,52,76,76,527,58,51,71,70,1438,58,52,74,74,161,31,22,34,32,7035,86,83,91,91,null,5373,97,97,96,87,93,967,79,70,70,44,52,526,71,53,66,35,42,1493,76,64,68,41,48,301,41,28,35,25,22,7182,91,87,87,75,81,null,5080,96,96,94,86,91,917,72,65,68,39,48,560,63,50,60,35,39,1477,69,59,65,37,44,288,30,23,30,15,16,6862,87,85,85,72,77,null,5307,97,95,95,91,1065,76,60,70,47,502,60,47,56,37,1567,71,56,65,44,274,34,24,29,17,7163,89,84,86,78,null,5974,70,997,29.5,410,22.4,1407,27.4,347,11.8,7729,59.6,null,5683,70.2,1227,32.4,468,21.2,1695,29.3,321,6.5,7699,58.5,null,5518,69.7,1192,32.9,503,22.9,1695,29.9,283,8.1,7503,58.4,null,5539,65.900000000000006,1361,32.6,521,20.3,1882,29.2,309,8.4,7730,54.7,null,5792,61.9,1172,25.9,468,16.7,1640,23.3,271,7.7,7704,51.8,null,15920,14407.6,90.5,740,625.29999999999995,84.5,6,null,1700,190,5520,7410,0.83,0.82,0.92,0.9]
[879,"Plymouth",62,64,2621,33.4,23,24,84,27.1,21,22,198,26.5,22,22,282,26.7,"x","x",54,18.3,57,58,2996,32.4,60,62,2626,33.6,16,18,91,27.2,26,27,183,27.6,23,24,274,27.5,"x","x",49,20.6,56,57,2992,32.700000000000003,null,2459,82,202,36,230,44,432,40,63,16,2969,74,2392,78,209,34,223,39,432,37,67,15,2898,70,2246,65,240,25,227,27,467,26,56,13,2783,58,null,2340,95,93,98,96,249,59,49,72,65,228,59,46,69,67,477,59,48,71,66,80,26,21,29,30,2904,87,84,91,89,null,2178,95,91,97,95,272,57,47,76,76,230,57,42,66,64,502,57,45,71,71,60,27,15,30,27,2752,86,80,90,89,null,2092,94,91,96,96,319,58,51,72,73,190,49,41,62,60,509,55,47,68,68,53,34,21,34,32,2666,85,81,90,89,null,1979,92,90,96,96,357,49,43,64,69,208,52,43,71,73,565,50,43,67,71,81,26,16,27,28,2637,81,77,88,88,null,1941,91,89,95,96,383,51,44,67,75,175,52,45,61,64,558,52,44,65,72,74,12,9,19,22,2582,80,77,86,89,null,1884,96,93,92,85,87,256,66,50,59,36,37,240,77,55,66,46,46,496,71,52,63,41,41,130,24,18,22,16,14,2516,88,81,83,73,74,null,1866,93,94,92,83,86,315,62,52,65,38,38,199,64,53,62,41,42,514,63,52,64,39,40,104,31,21,30,18,17,2485,84,82,84,71,74,null,1738,95,90,94,85,361,72,52,67,40,206,67,"x",61,33,567,70,"x",65,38,107,34,"x",24,15,2414,87,77,84,71,null,2267,70.099999999999994,315,30.2,110,20.9,425,27.8,147,12.9,2840,60.8,null,2167,68.2,450,28.2,127,26.8,577,27.9,124,8.9,2868,57.5,null,2164,67.5,491,27.1,99,29.3,590,27.5,129,11.6,2885,56.8,null,2089,66.900000000000006,656,28,125,28,781,28,126,5.6,2996,54.2,null,2266,59.4,413,21.1,163,12.3,576,18.600000000000001,123,3.3,2966,49.1,null,5540,5046.9399999999996,91.1,280,248.36,88.7,2.4,null,620,70,2130,2830,0.87,0.93,0.92,0.91]
[880,"Torbay",65,69,1155,34.5,22,27,110,28.2,22,26,90,27.5,22,27,200,27.9,"x","x",27,20.9,57,61,1407,33.299999999999997,"x","x","x",32.799999999999997,16,16,88,27.5,15,18,61,25.9,15,17,149,26.9,"x","x",29,20.6,"x","x","x",31.9,null,1088,85,157,45,92,36,249,41,37,19,1381,75,"x","x","x","x","x","x","x","x","x","x","x","x","x","x","x","x","x","x","x","x","x","x","x","x",null,1042,96,94,97,97,173,71,64,77,86,102,60,53,70,73,275,67,60,74,81,46,39,35,35,37,1368,88,85,90,92,null,"x","x","x","x","x",174,70,59,76,82,81,49,49,63,65,255,63,56,72,77,37,27,19,35,30,"x","x","x","x","x",null,"x","x","x","x","x","x","x","x","x","x","x","x","x","x","x","x","x","x","x","x","x","x","x","x","x","x","x","x","x","x",null,972,92,"x",95,"x","x","x","x","x","x","x","x","x","x","x","x","x","x","x","x",41,44,29,46,37,1289,82,81,87,"x",null,"x","x","x","x","x","x","x","x","x","x",85,27,27,44,54,"x","x","x","x","x",25,32,12,32,36,1249,"x","x","x",88,null,939,96,96,96,88,91,151,78,63,74,48,52,113,69,50,61,34,41,264,74,58,69,42,47,75,24,15,29,12,12,1279,87,83,86,74,77,null,"x","x","x","x","x","x","x","x","x","x","x","x",101,62,48,65,40,41,"x","x","x","x","x","x",61,28,11,20,15,8,1222,"x","x",86,"x",77,null,790,"x","x","x",88,168,72,55,"x",40,92,52,42,"x","x",260,65,50,"x","x",61,26,16,26,"x",1114,"x",80,"x",72,null,1067,"x","x","x","x","x",322,"x",76,6.6,1465,60.9,null,1016,75,205,38,141,17.7,346,29.8,72,4.2,1434,60.5,null,1081,70.400000000000006,195,26.2,127,20.5,322,23.9,84,14.3,1490,57.2,null,"x","x","x","x","x","x","x","x",94,"x",1537,54.1,null,1080,67,217,35.5,128,7.8,345,25.2,93,4.3,1518,53.7,null,2910,2648.1,91,190,167.01,87.9,3.1,null,320,50,1090,1450,0.78,0.81,0.86,0.84]
[881,"Essex",63,66,14699,35.299999999999997,20,21,475,27.5,15,16,575,25.6,17,18,1050,26.5,5,6,290,20.9,59,61,16444,34.5,53,56,14770,34.299999999999997,13,15,515,26.8,13,15,478,26,13,15,993,26.4,2,3,301,21.3,50,53,16470,33.6,null,13848,81,1219,38,746,30,1965,35,394,24,16275,74,13348,74,1232,28,698,25,1930,27,341,18,15699,67,13103,61,1237,18,699,17,1936,18,312,13,15407,54,null,13086,97,95,98,97,1427,70,56,81,79,866,52,39,63,62,2293,63,50,74,73,421,31,21,33,28,15864,91,86,93,92,null,12664,97,94,98,97,1507,69,57,80,76,867,44,33,58,58,2374,60,48,72,70,358,28,23,35,32,15454,90,85,93,91,null,12188,96,93,98,97,1590,61,49,76,75,877,40,28,56,53,2467,54,42,69,67,325,28,21,34,28,15015,88,83,92,90,null,11957,95,91,97,96,1734,58,46,74,76,950,35,24,53,52,2684,50,38,66,67,316,22,16,24,22,15004,85,80,90,90,null,11608,95,92,97,97,1611,58,48,75,79,902,37,29,53,55,2513,51,41,67,70,311,30,21,31,31,14473,86,81,90,90,null,11885,96,95,94,88,90,1266,76,60,67,40,44,917,56,39,53,28,29,2183,67,51,61,35,38,547,31,20,29,20,16,14641,89,85,87,77,79,null,11329,94,94,93,85,87,1307,68,54,65,35,39,937,50,31,47,23,21,2244,60,45,57,30,31,567,30,17,27,18,13,14164,86,83,84,74,75,null,11311,96,93,93,87,1560,71,50,64,36,1039,49,27,44,19,2599,62,41,56,29,515,24,18,25,12,14449,87,81,84,74,null,13049,69.3,1108,22.5,964,16.2,2072,19.5,581,8.3000000000000007,15702,60.5,null,12658,68.2,1330,24.1,1024,14.6,2354,20,540,11.1,15553,59,null,12854,67.400000000000006,1425,25.1,1063,16.2,2488,21.3,532,8.3000000000000007,15887,58.2,null,13143,63.7,1437,21.2,1085,12.4,2522,17.399999999999999,547,7.3,16213,54.6,null,13406,58.3,1297,15,922,6.9,2219,11.6,511,4.3,16136,50.2,null,31790,28769.95,90.5,1410,1156.1999999999998,82,8.5,null,2490,350,12870,15700,0.8,0.84,0.91,0.89]
[882,"Southend-on-Sea",63,66,1977,36,12,14,50,26.3,12,12,57,24.2,12,13,107,25.2,"x","x",52,18,59,62,2189,35,48,49,1920,34.1,"x","x",88,25.1,"x","x",42,21.4,2,2,130,23.9,"x","x",43,19.7,44,45,2153,33.1,null,1805,83,203,37,88,26,291,34,50,14,2160,74,1663,72,209,29,93,20,302,26,41,20,2017,64,1564,59,217,24,92,15,309,21,42,7,1922,52,null,1679,97,95,97,97,214,69,59,79,83,102,52,36,58,64,316,63,52,72,77,55,16,13,18,18,2054,90,86,91,92,null,1511,96,94,97,97,213,75,66,86,84,133,41,28,45,53,346,62,51,70,72,53,19,15,23,15,1921,88,84,90,90,null,1459,96,94,97,98,218,67,63,71,78,145,46,41,60,63,363,58,54,66,72,47,15,17,13,15,1879,87,84,89,90,null,1354,96,94,98,96,258,71,64,83,80,150,37,29,59,57,408,58,51,74,72,55,15,11,22,18,1820,85,82,90,88,null,1394,96,93,98,97,226,70,51,76,80,124,35,29,58,60,350,58,43,70,73,36,17,"x",19,31,1785,87,82,91,91,null,1472,97,96,96,89,92,163,79,69,66,40,49,130,51,38,34,22,18,293,67,55,52,32,35,56,23,16,20,13,11,1823,90,87,87,78,80,null,1387,95,94,93,86,88,177,66,59,65,36,41,150,45,32,45,15,21,327,57,46,56,26,32,87,24,14,21,16,11,1804,84,82,83,72,74,null,1440,94,93,92,86,216,62,50,60,31,151,51,28,48,23,367,57,41,55,28,74,19,9,15,4,1884,84,79,82,71,null,1793,73.099999999999994,184,22.3,139,15.8,323,19.5,110,3.6,2226,61.9,null,1755,72.8,163,25.2,175,13.1,338,18.899999999999999,85,4.7,2178,61.8,null,1711,75.3,149,25.5,144,11.1,293,18.399999999999999,69,5.8,2076,65,null,1877,71.7,146,18.5,114,2.6,260,11.5,94,3.2,2231,61.8,null,1851,66.599999999999994,156,17.3,104,8.6999999999999993,260,13.8,92,5.4,2203,57.8,null,4270,3655.12,85.6,50,43.15,86.3,-0.7,null,300,30,1710,2030,0.7,0.85,0.91,0.88]
[883,"Thurrock",69,70,2166,34.4,21,21,63,26.4,22,22,49,26.3,21,21,112,26.4,7,7,43,21.2,65,66,2346,33.700000000000003,54,57,2095,33.200000000000003,11,11,79,27.8,15,15,54,24.6,13,13,133,26.5,"x","x",32,20.8,51,53,2284,32.5,null,2045,81,146,44,62,37,208,42,52,25,2317,76,1962,77,202,41,88,27,290,37,36,"x",2299,71,1729,64,177,24,75,17,252,22,35,"x",2023,58,null,1909,96,93,98,96,222,77,59,86,77,101,66,52,71,63,323,74,57,81,73,58,34,21,40,34,2300,91,86,94,91,null,1683,95,92,97,95,218,66,56,79,75,84,48,38,61,60,302,61,51,74,71,57,40,25,42,35,2052,88,83,92,89,null,1661,95,91,97,94,257,63,51,75,75,107,45,34,54,56,364,58,46,69,70,42,38,36,40,33,2069,87,82,91,88,null,1500,92,88,96,96,307,64,50,75,73,142,49,37,66,63,449,59,45,72,70,44,27,23,34,32,2002,83,77,89,88,null,1326,94,89,97,95,324,64,50,80,77,139,48,37,56,59,463,59,46,73,71,39,23,10,26,"x",1836,83,76,89,87,null,1455,96,96,94,86,89,220,67,60,60,33,43,137,58,43,55,25,32,357,64,54,58,30,39,63,29,14,24,16,13,1880,87,85,85,73,77,null,1377,93,94,93,84,86,265,68,58,64,37,40,119,46,34,45,24,21,384,61,50,58,33,34,68,29,26,26,21,18,1838,84,82,83,71,72,null,1282,95,91,94,86,249,67,47,61,35,145,50,35,48,24,394,61,43,56,31,64,27,27,33,17,1741,85,78,83,71,null,1476,69.099999999999994,135,25.9,151,22.5,286,24.1,83,9.6,1846,59.5,null,1334,71.599999999999994,179,25.7,142,15.5,321,21.2,85,8.1999999999999993,1740,59.2,null,1365,72.7,178,23,143,16.8,321,20.2,94,11.7,1782,60.1,null,1358,70.099999999999994,179,16.8,180,14.4,359,15.6,75,13.3,1792,56.8,null,1445,58,200,10.5,141,7.8,341,9.4,86,3.5,1872,46.6,null,3770,3464.63,91.9,200,176.2,88.1,3.8,null,320,60,1370,1750,0.77,0.73,0.89,0.86]
[884,"Herefordshire",62,64,1669,34.4,26,26,58,28,17,17,70,26.3,21,21,128,27.1,"x","x",18,20.3,59,60,1851,33.799999999999997,55,58,1673,33.5,15,17,59,27.7,20,22,64,26.3,18,20,123,27,"x","x",24,19.100000000000001,52,55,1865,32.9,null,1549,76,185,48,103,36,288,44,28,14,1875,70,1506,75,194,43,88,18,282,35,19,"x",1820,68,1480,56,125,28,103,27,228,28,19,"x",1740,51,null,1478,96,94,97,96,198,71,65,79,80,128,58,40,57,61,326,66,55,70,73,28,29,14,25,18,1836,90,86,91,91,null,1367,96,92,96,96,205,73,60,77,80,126,48,39,56,57,331,64,52,69,71,23,26,22,22,22,1729,89,84,90,90,null,1360,94,90,95,94,237,62,48,78,68,138,50,43,61,56,375,57,46,72,64,20,15,"x","x","x",1762,85,80,89,86,null,1422,94,92,96,96,203,68,59,77,79,144,42,36,56,45,347,57,50,68,65,14,"x","x",21,21,1795,86,83,90,89,null,1329,92,88,96,94,200,56,41,70,77,115,45,35,52,58,315,52,39,63,70,22,"x","x","x","x",1678,83,77,89,88,null,1299,97,95,94,89,89,204,71,55,68,43,44,184,64,48,54,33,36,388,67,52,61,38,40,56,20,13,13,9,9,1748,88,83,84,75,76,null,1166,94,94,93,86,86,243,72,57,68,44,43,186,56,35,44,27,22,429,65,47,58,37,34,37,24,24,22,19,19,1636,85,80,82,71,71,null,1237,94,94,91,85,233,72,58,61,42,219,58,41,55,32,452,65,50,58,37,31,23,13,23,"x",1724,85,81,81,71,null,1374,67.3,241,27.4,149,"x",390,"x",61,"x",1825,56.1,null,1459,67.400000000000006,214,20.6,129,20.9,343,20.7,72,5.6,1874,56.5,null,1401,68.7,256,31.3,149,20.8,405,27.4,69,"x",1877,57.5,null,1473,68.5,225,20.399999999999999,151,"x",376,"x",74,"x",1923,56,null,1488,62.6,200,24.5,147,12.9,347,19.600000000000001,85,3.5,1920,52.2,null,3630,3281.52,90.4,150,129.30000000000001,86.2,4.2,null,430,50,1380,1860,0.86,0.94,0.93,0.91]
[885,"Worcestershire",63,65,5241,35.799999999999997,21,22,273,28.5,16,17,497,26.2,18,19,770,27,4,4,74,19,57,58,6188,34.5,52,55,5265,34.6,12,13,215,26.4,14,15,514,26.5,13,14,729,26.5,"x","x",38,18.3,47,49,6134,33.5,null,5045,82,399,44,595,41,994,42,72,15,6125,75,4986,79,429,36,573,41,1002,39,154,13,6159,71,4769,69,462,32,490,31,952,32,137,7,5887,62,null,4942,98,96,98,97,423,68,64,77,74,637,60,49,68,65,1060,63,55,71,69,168,24,17,26,23,6182,90,87,92,90,null,4737,97,96,98,98,456,68,59,76,76,567,55,47,65,65,1023,61,52,70,70,147,23,16,22,20,5920,89,86,91,91,null,4630,97,95,98,98,587,65,57,75,75,564,54,44,65,62,1151,60,50,70,69,118,28,20,31,31,5909,88,85,91,91,null,4534,96,94,98,97,598,61,54,72,73,533,51,43,61,63,1131,56,49,67,68,122,16,11,16,17,5798,86,83,90,90,null,4390,96,94,98,97,628,61,54,72,75,501,46,39,58,59,1129,54,47,66,68,103,29,20,28,25,5633,86,83,90,90,null,4280,96,95,93,87,89,471,75,61,67,37,45,643,60,46,54,27,34,1114,67,52,60,31,39,162,24,17,16,17,12,5560,88,84,84,74,77,null,4024,94,95,92,86,86,476,69,60,62,37,38,647,57,41,53,28,30,1123,62,49,57,31,34,193,20,12,11,11,8,5348,84,82,82,71,72,null,4095,96,94,93,88,594,71,56,60,40,656,58,41,54,32,1250,64,48,57,35,181,24,16,17,9,5533,86,81,82,73,null,4695,73.900000000000006,621,32.700000000000003,501,23.2,1122,28.4,238,8.4,6057,62.9,null,4561,73,752,28.7,473,23.5,1225,26.7,267,5.6,6053,60.7,null,4639,71,686,34.1,477,20.3,1163,28.5,258,7.8,6064,60.1,null,4616,66.2,682,24.5,508,18.5,1190,21.9,253,3.6,6060,54.9,null,4585,60,855,22.8,457,12.3,1312,19.100000000000001,288,4.9000000000000004,6187,48.8,null,11880,10109.879999999999,85.1,200,179.6,89.8,-4.7,null,1170,140,4640,5950,0.83,0.93,0.92,0.9]
[886,"Kent",74,75,15209,37,33,35,764,30.4,26,27,1114,28.7,29,30,1878,29.4,2,2,220,19.5,68,69,17612,35.9,68,70,14768,36.4,31,32,1105,31,23,24,874,28,28,28,1979,29.7,2,2,206,20,62,63,17318,35.4,null,14339,81,1283,46,1352,42,2635,44,289,16,17356,74,13699,76,1750,36,1000,33,2750,35,275,11,16828,68,12886,62,1976,24,1029,26,3005,25,213,8,16182,54,null,13762,97,94,98,97,1378,73,62,83,81,1446,60,48,70,67,2824,66,55,76,74,321,19,13,23,18,16971,90,86,93,91,null,12831,96,94,98,97,2005,72,59,82,79,1129,57,47,67,66,3134,67,55,76,74,259,21,15,27,21,16267,89,85,92,91,null,12073,95,93,97,96,2228,62,53,77,76,1130,53,41,64,63,3358,59,49,73,71,271,16,11,19,17,15760,86,82,91,90,null,11394,95,92,97,97,2568,64,52,76,76,1160,48,37,59,60,3728,59,48,71,71,279,16,10,21,15,15471,85,80,89,89,null,10996,95,92,97,96,2650,65,55,78,79,1154,49,40,60,62,3804,60,51,72,74,260,18,12,16,18,15113,85,80,89,89,null,11914,96,95,94,85,89,1571,75,66,68,41,50,1483,67,54,61,36,42,3054,71,60,65,39,47,457,28,17,23,17,13,15454,89,86,86,74,79,null,11098,94,95,92,84,87,2192,67,60,63,34,42,1236,60,48,57,35,39,3428,64,56,61,34,41,484,21,13,20,14,10,15026,85,83,83,71,74,null,10852,95,93,93,87,2452,70,52,65,40,1288,57,38,52,31,3740,65,47,61,37,445,20,11,16,9,15064,86,79,83,72,null,12713,73.599999999999994,2078,37.700000000000003,1257,26.1,3335,33.299999999999997,649,9.6,16698,63.1,null,12185,73.099999999999994,2221,32.299999999999997,1262,22.3,3483,28.7,572,8.4,16246,61.3,null,11753,72.2,2398,31.8,1363,21.3,3761,28,636,8.1999999999999993,16172,59.4,null,12271,69.8,2429,26.2,1422,19.100000000000001,3851,23.6,669,9,16799,56.8,null,12323,64,2362,22.2,1331,16.100000000000001,3693,20,682,8.1999999999999993,16698,52,null,33510,29857.409999999996,89.1,1400,1188.6000000000001,84.9,4.2,null,3770,290,11760,15830,0.81,0.83,0.93,0.9]
[887,"Medway",67,71,2912,35.200000000000003,34,37,192,29.4,23,25,234,26.9,28,30,426,28,7,7,43,19.2,61,64,3463,34,59,64,2850,34.700000000000003,18,20,182,27.4,16,20,194,27.2,17,20,376,27.3,"x","x",58,18.5,53,57,3372,33.6,null,2675,80,303,40,293,37,596,38,68,6,3362,71,2507,72,372,28,296,32,668,30,54,9,3244,62,2446,56,410,17,279,19,689,17,49,12,3206,47,null,2477,98,96,98,98,399,75,66,84,79,333,59,50,71,70,732,68,58,78,75,57,19,18,23,21,3285,89,86,92,91,null,2423,97,95,98,97,419,68,60,80,78,295,61,48,69,64,714,65,55,75,72,55,25,22,33,29,3204,88,84,92,90,null,2194,96,94,98,97,436,68,57,80,76,343,55,46,69,66,779,63,52,75,72,71,25,17,34,25,3058,86,82,90,89,null,2195,95,93,96,95,466,63,52,76,74,340,50,41,60,59,806,57,47,69,68,68,19,15,15,13,3081,83,79,87,86,null,2124,95,92,96,96,432,65,55,74,77,340,57,47,66,70,772,61,52,71,74,65,18,11,12,14,2979,84,80,88,88,null,2222,95,95,92,84,88,427,68,57,58,41,40,303,62,53,58,39,43,730,66,56,58,40,41,89,28,17,22,16,11,3047,86,83,82,72,75,null,2059,93,94,91,82,86,467,61,58,60,33,38,295,59,51,55,36,38,762,60,55,58,34,38,103,27,19,23,13,15,2925,82,81,80,67,71,null,1986,94,94,91,86,476,64,51,55,34,373,56,44,55,33,849,61,48,55,33,110,19,17,19,9,2951,81,78,78,68,null,2398,73.099999999999994,525,29.7,194,26.8,719,28.9,125,11.2,3242,60.9,null,2439,71.7,387,27.6,229,28.4,616,27.9,113,15,3168,61.2,null,2343,68.400000000000006,488,24.4,293,22.5,781,23.7,104,9.6,3231,55.7,null,2514,65.5,516,22.5,259,19.7,775,21.5,124,14.5,3413,53.6,null,2486,64.8,465,20,319,11,784,16.3,115,11.3,3385,51.7,null,6270,5586.57,89.1,330,293.04000000000002,88.8,0.3,null,780,70,2350,3190,0.78,0.92,0.9,0.87]
[888,"Lancashire",66,68,12566,35.5,15,16,450,26.1,16,17,481,25.6,15,17,931,25.9,"x","x",197,19.100000000000001,61,63,13835,34.6,60,63,12651,34.799999999999997,15,16,494,26.2,15,16,450,25.1,15,16,944,25.6,"x","x",174,19.5,56,59,13904,34,null,12100,82,967,34,578,42,1545,37,205,16,13906,76,11666,77,906,26,536,34,1442,29,224,18,13374,71,11190,69,1036,21,532,29,1568,24,241,15,13032,62,null,11409,96,93,97,96,1114,58,45,68,64,599,54,44,62,61,1713,57,45,66,63,253,23,20,26,25,13416,89,85,92,91,null,10928,96,93,97,96,1208,51,42,61,62,616,49,36,55,55,1824,51,40,59,60,278,23,17,28,27,13065,88,84,90,90,null,10944,94,91,96,96,1253,54,41,64,61,691,44,35,54,54,1944,50,39,60,59,263,25,22,29,28,13186,86,82,89,89,null,10489,94,90,96,95,1176,49,38,63,64,785,42,32,52,52,1961,46,35,59,59,247,21,14,24,24,12728,85,80,89,88,null,10026,93,90,96,95,1239,50,40,67,65,770,39,32,51,53,2009,46,37,61,61,231,26,19,32,26,12308,84,80,89,88,null,10060,96,95,95,87,90,1127,71,55,66,36,43,757,63,46,57,35,37,1884,68,52,62,36,41,354,30,22,26,19,17,12312,90,87,88,77,81,null,9479,94,95,94,85,88,1134,65,50,62,32,36,802,57,43,57,31,33,1936,62,47,60,32,35,377,33,24,29,24,21,11812,87,85,87,74,77,null,9674,96,94,94,89,1297,68,49,59,36,870,55,35,55,27,2167,63,44,58,32,418,30,21,27,17,12272,88,82,86,76,null,11155,69.099999999999994,958,22.2,555,19.5,1513,21.2,561,13.4,13231,61.2,null,10761,68.2,1116,26.3,584,20.7,1700,24.4,542,7.7,13005,59.9,null,10441,69.5,1180,23.1,677,23,1857,23,570,8.9,12878,60.1,null,10995,65.3,1218,21.7,668,22,1886,21.8,583,7.4,13465,56.7,null,11166,61.1,1291,24.7,546,19.2,1837,23.1,653,8.1,13656,53.5,null,26540,23434.82,88.3,1210,1011.56,83.6,4.7,null,1880,340,10430,12650,0.81,0.9,0.92,0.91]
[889,"Blackburn with Darwen",51,53,1795,33.200000000000003,13,17,212,26.2,4,5,132,23.5,9,12,344,25.2,"x","x",14,21.4,44,47,2197,31.8,42,45,1763,32.700000000000003,16,17,179,26.1,4,5,129,22.7,11,12,308,24.7,"x","x",10,18.8,37,40,2114,31.4,null,1607,84,278,50,169,36,447,45,17,18,2085,75,1682,75,280,37,127,32,407,35,20,"x",2126,67,1598,64,276,26,142,21,418,25,15,"x",2039,56,null,1592,97,94,98,92,347,77,68,85,74,157,49,42,60,54,504,68,60,77,67,21,14,"x",19,"x",2126,89,85,92,85,null,1530,96,94,98,96,322,69,58,78,76,147,52,39,57,54,469,64,52,71,69,16,25,19,38,25,2026,88,84,91,89,null,1574,95,94,97,95,305,70,61,78,78,182,51,36,55,54,487,63,52,70,69,16,31,25,38,"x",2083,87,83,90,89,null,1461,94,91,96,96,332,58,51,75,69,154,40,32,56,53,486,53,45,69,64,17,"x","x",18,18,1967,83,79,89,87,null,1438,95,91,97,95,348,61,51,73,68,173,37,31,47,45,521,53,45,64,60,15,"x","x","x","x",1979,83,78,88,85,null,1446,94,95,93,87,88,320,69,59,67,49,45,180,57,38,51,33,32,500,65,52,61,44,40,25,16,12,24,16,"x",1973,86,83,84,75,75,null,1404,94,95,95,89,89,343,68,61,66,45,45,154,44,35,47,27,27,497,60,53,61,39,40,25,20,"x",24,"x","x",1927,85,83,85,75,75,null,1350,95,93,93,87,332,65,51,65,39,180,49,32,49,25,512,60,44,60,34,28,21,11,21,11,1891,84,79,83,72,null,1291,70.8,292,40.1,137,17.5,429,32.9,61,8.1999999999999993,1781,59.5,null,1315,67.7,273,33.299999999999997,112,14.3,385,27.8,62,11.3,1762,57,null,1368,67.900000000000006,249,31.3,124,16.100000000000001,373,26.3,73,8.1999999999999993,1815,56.9,null,1341,62.9,232,26.7,116,13.8,348,22.4,95,4.2,1785,51.9,null,1362,53.6,260,18.8,103,11.7,363,16.8,78,"x",1803,43.9,null,3820,3480.0199999999995,91.1,110,{"$f":"IFERROR((PA136*(PC136/100)), \"x\")","v":94.6},86,5.2,null,370,50,1370,1790,0.86,0.88,0.9,0.89]
[890,"Blackpool",59,62,1345,33.6,18,19,113,28.2,12,17,117,26.1,15,18,230,27.1,"x","x",22,17.899999999999999,52,54,1603,32.4,55,58,1433,33.200000000000003,13,17,109,26.2,18,21,117,26.9,15,19,226,26.6,"x","x",13,18,49,52,1690,32.1,null,1339,82,199,39,130,40,329,39,15,20,1694,73,1312,72,180,29,141,37,321,33,25,"x",1664,63,1196,67,246,22,107,25,353,23,24,13,1578,56,null,1315,95,93,97,97,167,64,46,76,72,127,49,46,64,59,294,57,46,71,66,35,11,11,11,11,1656,87,83,91,89,null,1178,96,94,97,96,239,58,49,67,68,135,56,46,59,59,374,57,48,64,65,29,14,10,17,14,1583,85,81,88,87,null,1233,95,91,97,97,272,56,42,68,75,124,35,32,58,56,396,49,39,65,69,28,18,"x",18,14,1659,83,77,88,89,null,1208,93,88,97,96,250,46,34,66,74,137,"x",27,49,56,387,"x",32,60,68,21,"x","x","x","x",1623,79,73,87,88,null,1059,95,90,97,97,252,55,46,75,80,120,33,20,53,54,372,48,38,68,72,18,22,"x",17,22,1453,82,75,88,89,null,1105,95,95,95,86,90,182,72,55,68,38,44,137,60,47,64,37,37,319,67,52,66,38,41,27,22,"x",11,11,"x",1455,87,84,87,74,78,null,1056,96,96,95,86,90,258,70,63,73,41,48,170,64,42,61,31,36,428,67,55,68,37,43,26,27,16,23,15,16,1511,86,83,86,71,76,null,1012,96,94,96,90,273,78,63,70,47,145,61,28,54,27,418,72,51,64,40,"x","x",11,11,11,1468,87,80,85,74,null,1359,53.8,127,13.4,111,"x",238,"x",56,"x",1653,46.1,null,1237,55.2,105,10.5,108,"x",213,"x",50,"x",1500,47.9,null,1160,56.6,213,11.7,140,26.4,353,17.600000000000001,43,"x",1557,46.2,null,1182,58.2,205,22,167,"x",372,"x",51,"x",1607,47.8,null,1208,49.3,247,10.1,126,11.1,373,10.5,67,4.5,1648,38.700000000000003,null,3530,3046.39,86.3,90,72.36,80.400000000000006,5.8,null,350,10,1160,1530,0.82,0.86,0.9,0.88]
[891,"Nottinghamshire",63,65,8365,34.700000000000003,16,17,384,26.4,12,14,262,24.2,15,16,646,25.5,"x","x",22,18.2,59,62,9108,34,57,60,8436,34.200000000000003,12,14,347,25.5,11,12,234,23.9,12,13,581,24.9,19,19,26,24.8,54,57,9127,33.5,null,8025,76,691,32,345,30,1036,31,38,0,9126,71,7827,73,751,24,274,23,1025,24,34,"x",8929,67,7415,62,818,19,266,20,1084,19,33,9,8566,56,null,7700,95,93,97,97,871,57,46,67,69,329,45,35,53,56,1200,53,43,63,65,47,"x","x","x","x",8972,89,86,92,92,null,7207,96,93,97,97,1041,58,46,69,67,332,45,36,53,55,1373,55,44,65,64,50,14,12,14,16,8654,88,84,91,91,null,6882,94,93,97,96,1083,55,46,68,66,305,42,32,52,47,1388,52,43,65,62,46,9,"x","x",7,8337,87,84,91,90,null,6827,94,92,97,96,1123,49,38,62,64,339,42,33,48,50,1462,47,37,58,61,41,17,10,17,17,8357,86,82,90,90,null,6473,94,92,97,97,1097,51,41,69,70,318,40,31,49,51,1415,49,39,65,66,42,"x","x",7,"x",7964,85,82,91,91,null,6490,96,95,94,86,89,1058,66,49,62,31,39,357,58,42,52,32,36,1415,64,47,60,31,38,119,11,8,8,7,4,8033,89,85,87,75,79,null,6241,95,95,94,86,88,1173,62,46,60,30,33,295,52,35,47,27,28,1468,60,44,57,30,32,80,18,8,10,6,5,7796,87,84,86,74,77,null,6085,96,95,95,90,1265,65,44,59,33,376,47,32,48,24,1641,61,41,56,31,92,16,7,10,3,7828,88,83,86,77,null,6869,73.2,1296,27.9,368,27.7,1664,27.8,135,3,8669,63.4,null,6850,71.5,1392,22.1,330,22.1,1722,22.1,139,3.6,8711,60.6,null,6324,71.400000000000006,1775,25.5,558,16.8,2333,23.4,138,4.3,8800,57.6,null,6530,64.3,2021,23.2,511,12.3,2532,21,151,2.6,9214,51.4,null,7014,57.4,1547,17.7,552,11.8,2099,16.2,130,"x",9243,47.2,null,17790,16491.330000000002,92.7,310,276.83,89.3,3.4,null,2420,40,6250,8700,0.8,0.79,0.91,0.88]
[892,"Nottingham",48,51,3215,32.299999999999997,16,18,230,26.3,9,10,145,22.7,13,15,375,24.9,"x","x",9,20.2,43,46,3736,31.3,41,45,3010,31.9,"x","x",271,25.1,"x","x",137,22.3,7,8,408,24.2,"x","x",12,17,37,40,3545,30.8,null,2849,74,393,37,171,29,564,34,12,0,3480,67,2754,71,429,31,184,27,613,30,15,"x",3432,63,2567,56,479,22,187,18,666,21,15,"x",3284,48,null,2677,93,89,94,92,517,59,49,67,65,174,47,40,55,48,691,56,46,64,60,"x","x","x","x","x",3433,84,79,87,85,null,2561,93,89,94,93,495,54,42,64,59,191,48,38,53,48,686,53,41,61,56,16,"x","x","x","x",3291,83,78,87,84,null,2237,92,90,96,94,617,59,48,69,68,191,43,37,48,49,808,55,45,64,64,14,"x","x","x","x",3089,82,77,86,85,null,2121,92,89,95,92,612,57,49,70,68,227,46,36,56,55,839,54,46,66,65,14,"x","x","x","x",3002,80,76,86,84,null,2025,91,88,95,93,653,53,47,66,67,183,34,29,44,45,836,49,43,61,62,26,12,"x",12,"x",2913,77,74,84,83,null,2156,94,93,94,86,88,553,71,55,67,43,48,168,58,42,49,34,35,721,68,52,63,41,45,49,12,6,12,8,"x",2931,86,81,85,73,76,null,1990,93,92,92,84,86,540,65,54,67,42,45,177,50,36,51,35,31,717,61,50,63,41,42,43,"x","x",7,"x","x",2753,83,79,83,72,73,null,1871,93,91,92,85,637,66,47,62,38,224,55,38,51,30,861,63,45,59,36,"x","x","x",13,"x",2775,83,76,81,69,null,2016,61.3,395,22.8,237,"x",632,"x",69,"x",2719,50.3,null,1695,65.3,511,20.5,270,"x",781,"x",55,"x",2531,49.6,null,1570,65,607,23.1,328,11.6,935,19,62,"x",2573,46.7,null,1594,64.099999999999994,720,20.7,388,11.6,1108,17.5,51,"x",2755,44.2,null,1808,56.7,582,15.5,329,10.6,911,13.7,69,"x",2788,41.4,null,6310,5735.79,90.9,300,245.39999999999998,81.8,9.1,null,940,10,1570,2530,0.77,0.79,0.88,0.84]
[893,"Shropshire",68,69,2553,36.799999999999997,22,22,99,29.5,27,27,165,29,25,25,264,29.1,"x","x",45,20.8,63,64,2932,35.799999999999997,55,57,2632,34.799999999999997,22,23,125,29.3,14,15,156,26.8,17,19,281,27.9,6,6,48,21.2,50,52,3029,33.9,null,2515,83,197,41,196,41,393,41,74,18,2994,76,2402,81,222,32,168,36,390,34,63,25,2864,73,2314,68,211,19,155,25,366,22,63,13,2757,61,null,2331,98,97,99,98,252,69,62,81,75,211,59,47,71,69,463,65,55,76,72,77,49,43,52,45,2885,92,89,94,92,null,2219,98,97,99,99,265,73,63,84,84,192,53,46,68,74,457,65,56,77,80,82,27,21,34,24,2769,90,88,93,93,null,2332,97,96,98,98,323,56,50,76,72,208,48,44,63,66,531,53,47,71,69,60,20,15,20,20,2933,87,85,91,91,null,2250,96,94,98,98,281,54,48,71,75,197,47,40,62,57,478,51,44,67,68,59,17,17,27,24,2793,87,84,91,91,null,2295,96,94,98,98,317,53,48,71,72,185,39,35,57,65,502,48,43,66,69,56,30,21,30,38,2863,86,84,91,91,null,2182,97,97,95,90,92,268,79,71,68,41,50,321,65,51,59,34,38,589,72,60,63,37,43,140,45,32,39,29,23,2916,89,86,85,76,78,null,2044,97,96,95,87,91,284,69,67,67,35,43,289,65,50,60,30,35,573,67,58,63,33,39,158,35,22,28,13,14,2783,87,84,84,71,76,null,2017,97,96,95,92,294,78,67,72,49,295,66,45,59,34,589,72,56,66,42,103,31,21,31,15,2717,89,85,86,78,null,2668,69.400000000000006,359,22,94,23.4,453,22.3,137,10.9,3258,60.4,null,2549,68.099999999999994,342,17.5,93,19.399999999999999,435,17.899999999999999,139,12.2,3123,58.6,null,2593,69.8,399,18.5,97,25.8,496,20,114,10.5,3207,60,null,2609,67.900000000000006,420,22.4,130,18.5,550,21.5,124,5.6,3283,57.8,null,2661,65.5,300,14.3,135,18.5,435,15.6,118,6.8,3214,56.6,null,5960,5358.04,89.9,360,281.88,78.3,11.6,null,500,90,2600,3180,0.8,0.79,0.89,0.87]
[894,"Telford and Wrekin",59,62,2009,33.6,31,33,61,28.1,8,11,76,24,18,20,137,25.8,"x","x",39,19.3,55,58,2210,32.9,46,49,1928,33.4,13,13,87,25.6,4,6,77,24,9,10,164,24.9,"x","x",35,20.9,43,45,2155,32.5,null,1818,84,152,45,124,44,276,45,42,17,2146,77,1816,75,166,27,128,29,294,28,50,8,2162,67,1647,58,187,20,137,20,324,20,38,16,2014,51,null,1778,96,95,98,97,168,68,63,78,76,157,"x","x","x","x",325,"x","x","x","x",53,"x",15,"x","x",2161,89,87,92,91,null,1560,97,95,98,97,197,68,56,71,78,211,56,55,69,70,408,62,55,70,74,40,35,30,33,35,2017,88,86,91,91,null,1577,95,93,97,95,204,62,49,73,68,167,43,35,61,54,371,53,42,67,62,57,23,19,26,21,2010,85,81,89,87,null,1489,95,94,97,97,257,56,48,67,74,187,48,42,65,67,444,52,45,66,71,53,19,17,32,26,1991,84,81,88,90,null,1419,95,93,97,97,251,60,50,72,73,167,43,39,57,61,418,53,46,66,68,36,"x","x","x","x",1881,84,81,88,89,null,1412,97,97,95,88,91,166,86,76,70,46,58,253,64,47,56,31,34,419,73,58,62,37,44,72,29,17,24,15,15,1905,89,86,85,74,78,null,1409,94,97,93,84,88,184,78,68,72,34,53,224,55,50,52,26,31,408,65,58,61,29,41,96,23,16,24,13,13,1915,84,85,83,69,74,null,1322,96,95,94,89,184,73,59,68,46,238,61,43,57,33,422,66,50,62,39,78,37,32,27,22,1825,86,82,84,74,null,1633,70.3,226,17.7,118,28.8,344,21.5,121,5.8,2098,58.6,null,1506,74,221,28.5,163,20.9,384,25.3,101,8.9,1991,61.3,null,1578,70,182,18.7,167,22.2,349,20.3,109,2.8,2037,57.9,null,1546,68.8,306,28.1,185,"x",491,"x",103,"x",2140,55.9,null,1679,57.5,195,14.9,136,8.8000000000000007,331,12.4,105,"x",2115,47.7,null,3740,3227.62,86.3,250,200.5,80.2,6.2,null,350,60,1580,1980,0.79,0.88,0.91,0.89]
[895,"Cheshire East",62,66,3737,35.6,13,15,96,25.2,19,22,125,25.4,16,19,221,25.3,6,6,50,20.399999999999999,59,62,4073,34.700000000000003,58,61,3793,34.799999999999997,7,9,136,23.6,7,10,147,23.7,7,10,283,23.7,"x","x",48,18.899999999999999,53,56,4218,33.799999999999997,null,3640,85,251,38,190,45,441,41,63,22,4171,79,3473,79,235,31,196,40,431,35,42,21,3964,74,3356,69,292,29,184,26,476,28,36,19,3883,63,null,3449,97,96,99,98,270,61,47,73,81,181,64,52,70,73,451,63,49,72,78,60,33,28,42,35,3975,92,90,95,95,null,3243,97,95,98,98,363,62,52,73,77,215,52,43,62,62,578,58,48,69,71,51,43,29,45,47,3884,90,87,93,93,null,3188,96,94,98,97,341,54,44,70,75,223,55,46,65,64,564,55,45,68,71,77,29,22,35,36,3843,89,86,92,92,null,3130,95,93,97,97,391,55,46,70,72,204,46,33,58,62,595,52,42,66,69,44,32,25,36,36,3785,87,84,91,92,null,3073,94,91,96,96,376,54,49,71,71,163,46,35,60,56,539,52,45,68,67,69,36,26,39,39,3688,86,83,91,91,null,3040,98,97,97,90,94,329,74,58,64,40,45,199,67,47,60,41,40,528,71,54,62,40,43,109,41,33,39,28,28,3684,92,89,90,81,84,null,2810,96,96,95,89,91,373,71,60,66,41,43,185,58,49,58,34,37,558,66,56,64,39,41,101,36,30,32,27,21,3479,89,88,88,79,81,null,2889,97,96,96,92,394,77,56,70,46,193,64,46,56,37,587,73,53,65,43,104,43,30,33,22,3587,92,87,89,82,null,3462,69.5,336,28,161,25.5,497,27.2,149,14.8,4108,62.4,null,3275,69.8,302,23.2,191,25.1,493,23.9,142,14.8,3910,62,null,3219,72.400000000000006,328,24.1,156,22.4,484,23.6,133,19.5,3839,64.400000000000006,null,3418,69.400000000000006,285,21.4,129,24.8,414,22.5,126,8.6999999999999993,3959,62.5,null,3381,65.099999999999994,331,20.5,133,12.8,464,18.3,168,8.3000000000000007,4013,57.3,null,7440,6993.5999999999995,94,210,191.30999999999997,91.1,2.9,null,490,110,3220,3810,0.83,0.87,0.93,0.91]
[896,"Cheshire West and Chester",65,66,3367,36.1,20,23,124,29.3,19,23,129,27.4,19,23,253,28.3,"x","x",78,19.7,60,61,3769,35.200000000000003,53,56,3523,34.9,15,16,117,28,15,15,124,26.1,15,15,241,27,"x","x",50,20.7,50,52,3887,34.1,null,3384,81,243,29,172,35,415,32,64,20,3888,74,3205,72,267,33,141,28,408,31,66,8,3700,67,3077,63,266,20,162,17,428,19,51,8,3577,57,null,3109,97,95,98,97,341,54,41,66,68,173,46,34,59,58,514,52,39,64,65,77,18,9,18,23,3719,89,85,92,91,null,2981,95,93,97,97,362,54,46,65,67,180,44,33,53,54,542,51,42,61,63,64,14,11,16,19,3598,87,84,90,91,null,2895,95,93,98,98,442,57,43,74,73,209,44,31,57,56,651,53,39,68,68,73,18,18,22,23,3640,86,81,91,91,null,2873,95,91,98,97,373,48,40,72,72,178,33,26,46,46,551,43,36,63,64,65,23,23,20,23,3502,85,81,91,90,null,2774,94,91,97,97,368,47,40,64,71,148,45,33,53,60,516,46,38,61,68,73,19,15,23,25,3369,85,82,90,91,null,2694,98,96,95,90,91,347,72,52,62,40,41,177,67,39,55,35,33,524,70,47,60,39,38,126,34,21,25,25,17,3352,91,85,87,79,80,null,2646,95,95,93,86,88,372,73,47,63,35,40,187,53,37,52,27,29,559,66,44,60,32,36,117,37,24,32,22,18,3327,88,84,86,75,77,null,2625,96,94,94,89,402,69,50,62,36,195,54,34,44,25,597,64,45,56,32,101,32,19,27,17,3331,89,83,85,77,null,3073,72.400000000000006,398,31.4,175,24,573,29.1,189,12.2,3835,63,null,2894,70.900000000000006,425,24.9,208,19.7,633,23.2,164,5.5,3691,59.8,null,3013,71.599999999999994,478,22.6,207,14,685,20,172,6.4,3874,59.5,null,3011,69,561,24.2,251,15.9,812,21.7,196,6.1,4020,56.4,null,3042,61.3,484,21.5,232,12.1,716,18.399999999999999,221,7.2,3979,50.6,null,7060,6601.1,93.5,260,228.02,87.7,5.7,null,690,90,3010,3790,0.8,0.76,0.9,0.88]
[908,"Cornwall",61,63,5088,34.9,24,25,175,27.7,22,24,259,27,23,24,434,27.3,3,4,91,20,57,59,5676,34.1,51,53,4946,34,18,20,179,27.9,11,11,210,26.1,14,15,389,26.9,"x","x",101,19.600000000000001,47,49,5511,33.200000000000003,null,4769,78,355,41,279,37,634,39,114,16,5540,72,4774,73,340,31,301,38,641,34,89,15,5531,67,4603,60,372,22,287,26,659,24,98,12,5388,55,null,4651,96,93,98,97,514,60,49,71,69,316,61,47,65,66,830,60,48,69,68,99,33,20,36,32,5603,89,85,92,91,null,4476,95,92,97,97,533,64,51,76,78,307,57,41,65,63,840,61,47,72,72,104,26,19,29,28,5443,88,84,92,92,null,4365,94,90,96,96,507,56,46,70,72,302,46,37,60,58,809,52,43,66,67,132,30,20,34,32,5325,86,81,90,90,null,4084,93,90,96,96,553,49,39,67,69,286,43,34,54,57,839,47,37,62,65,108,26,16,29,31,5046,83,79,89,89,null,4198,92,89,96,96,513,48,41,65,70,271,44,37,55,57,784,47,39,62,66,99,19,15,26,24,5100,83,80,89,90,null,4158,97,95,93,84,89,646,69,53,63,32,37,299,56,39,51,28,30,945,65,48,59,31,35,154,28,20,24,19,17,5265,89,85,85,73,77,null,4056,95,94,93,83,86,652,65,51,63,32,37,288,54,39,51,28,31,940,62,47,59,30,35,161,29,21,25,21,16,5165,87,83,85,72,75,null,4043,95,93,93,86,656,66,45,62,33,336,53,32,51,24,992,61,40,58,30,178,26,18,24,15,5223,86,80,84,73,null,4576,70.400000000000006,710,23.4,366,19.7,1076,22.1,199,14.1,5852,59.6,null,4314,66.8,799,23.5,363,15.7,1162,21.1,213,10.8,5689,55.4,null,3968,67.599999999999994,1145,33.6,431,17.399999999999999,1576,29.2,202,7.9,5750,55,null,4338,64.8,924,31.3,436,12.6,1360,25.3,195,7.7,5894,53.8,null,4864,57.3,565,17,349,7.7,914,13.5,209,8.1,5987,48.9,null,11620,10771.74,92.7,430,380.12,88.4,4.2,null,1590,150,3960,5700,0.84,0.81,0.9,0.88]
[909,"Cumbria",60,63,4589,34.200000000000003,17,20,314,27.1,15,17,155,25.9,16,19,469,26.7,7,9,57,19.600000000000001,56,59,5151,33.4,51,53,4548,33.1,18,19,294,27,14,16,173,25.5,17,18,467,26.4,"x","x",45,19.399999999999999,47,50,5107,32.4,null,3950,81,481,43,187,37,668,42,70,17,4704,74,3857,76,489,37,228,40,717,38,75,12,4663,69,4044,64,591,31,189,27,780,30,83,17,4922,58,null,4085,97,96,98,98,613,71,62,81,81,234,60,54,74,71,847,68,60,79,78,87,25,20,34,32,5031,91,88,93,94,null,3955,97,95,98,97,640,70,62,83,77,255,57,48,71,66,895,66,58,80,74,94,22,16,30,31,4959,90,87,93,92,null,3878,96,94,98,97,664,59,52,77,77,234,39,32,56,59,898,54,47,71,72,98,22,15,31,31,4884,87,84,91,91,null,3830,95,93,98,97,704,59,55,77,75,331,42,39,62,60,1035,54,49,72,71,77,27,22,25,27,4957,85,83,91,90,null,3731,95,93,98,98,681,58,53,79,79,357,42,36,61,60,1038,53,47,73,73,84,26,20,30,32,4862,85,82,91,91,null,3799,97,95,95,87,90,662,79,60,68,40,48,277,67,40,57,30,31,939,75,54,65,37,43,149,34,24,32,23,17,4897,91,85,87,75,79,null,3683,95,95,93,84,88,602,72,54,71,39,42,285,64,45,60,32,35,887,70,51,67,37,40,140,28,19,28,15,13,4717,89,84,86,73,77,null,3691,96,93,94,88,702,77,57,67,42,297,59,39,56,31,999,72,51,64,39,158,29,20,27,16,4852,89,82,86,75,null,4749,64.900000000000006,607,18.8,163,16.600000000000001,770,18.3,216,8.3000000000000007,5736,56.5,null,4798,64,596,17.100000000000001,161,16.8,757,17,193,10.9,5748,56.1,null,4663,66.099999999999994,713,19.8,185,10.8,898,17.899999999999999,152,9.1999999999999993,5716,57,null,4944,65.3,745,18.399999999999999,242,11.6,987,16.7,176,10.199999999999999,6107,55.8,null,4930,58.4,698,15.5,297,7.7,995,13.2,152,4.5999999999999996,6077,49.6,null,10850,9949.4500000000007,91.7,380,343.14,90.3,1.4,null,910,120,4650,5690,0.79,0.84,0.91,0.89]
[916,"Gloucestershire",60,61,5967,35.299999999999997,11,12,273,26,15,15,218,25.2,13,14,491,25.6,"x","x",77,20.9,55,57,6685,34.4,54,56,6058,34.799999999999997,10,10,247,25.8,11,13,230,24.7,10,12,477,25.3,"x","x",76,20.7,50,52,6790,33.9,null,5665,83,588,34,279,36,867,35,135,13,6701,75,5327,80,650,33,235,31,885,32,105,16,6344,72,5165,69,612,21,231,28,843,23,105,11,6135,61,null,5237,97,95,98,97,743,62,54,74,68,271,55,44,61,59,1014,60,51,71,66,153,27,20,26,22,6431,89,86,92,90,null,5033,97,95,98,97,731,58,45,67,64,238,55,42,61,55,969,57,44,66,62,137,24,18,26,22,6159,89,85,91,89,null,4927,96,94,97,97,745,58,51,68,71,225,44,37,59,59,970,54,48,66,68,118,21,14,21,20,6033,88,85,91,91,null,4764,96,94,98,97,864,58,49,74,71,243,41,32,57,52,1107,54,45,70,67,133,24,20,28,21,6026,87,84,91,90,null,4817,96,94,98,97,874,56,46,72,69,228,49,41,58,54,1102,54,45,69,66,114,28,21,29,26,6055,87,83,91,90,null,4899,97,97,95,90,92,765,77,58,65,38,43,257,63,45,60,35,33,1022,73,55,64,38,41,191,36,24,34,24,21,6122,91,87,88,79,81,null,4488,96,97,95,90,91,845,67,55,63,33,40,210,58,44,55,33,35,1055,65,53,61,33,39,196,32,23,29,15,17,5744,88,86,86,77,79,null,4635,97,95,95,90,905,72,54,63,38,221,53,33,46,24,1126,68,50,60,36,192,31,20,28,16,5963,89,84,86,78,null,5653,69.8,753,24.6,124,19.399999999999999,877,23.8,229,10,6759,61.8,null,5641,70.7,710,21.3,144,15.3,854,20.3,215,9.3000000000000007,6711,62.3,null,5561,73,851,20.399999999999999,189,18.5,1040,20.100000000000001,218,9.1999999999999993,6824,62.9,null,5602,71.099999999999994,880,16.600000000000001,225,18.7,1105,17,262,8,6970,60.1,null,5609,68.400000000000006,856,13.8,190,11.6,1046,13.4,227,6.6,6882,58,null,12550,{"$f":"IFERROR((OX146*(OZ146/100)), \"x\")","v":11031.45},87.9,460,389.15999999999997,84.6,3.3,null,1020,110,5590,6710,0.78,0.87,0.9,0.88]
[919,"Hertfordshire",69,71,12846,35.799999999999997,20,22,480,27.4,18,19,719,26.2,19,20,1199,26.7,2,2,124,19.399999999999999,64,66,14312,34.9,64,66,12889,35.200000000000003,22,23,495,28.2,20,21,734,27.1,21,22,1229,27.5,"x","x",122,18.7,59,61,14367,34.4,null,12286,83,991,42,891,42,1882,42,171,10,14405,77,11771,78,999,35,770,33,1769,34,157,10,13753,71,11061,67,1139,25,767,26,1906,26,155,11,13174,60,null,11389,98,96,98,98,1296,73,63,80,80,814,63,54,70,67,2110,69,59,76,75,212,22,12,24,22,13755,92,89,94,93,null,10728,97,95,98,97,1384,70,60,79,78,832,59,49,66,66,2216,66,56,74,73,184,20,15,21,16,13173,91,87,93,92,null,10314,97,95,98,98,1363,67,57,77,78,795,59,49,67,68,2158,64,54,73,74,196,22,14,21,18,12710,90,87,93,92,null,10334,97,94,98,97,1355,63,52,74,74,819,55,46,65,64,2174,60,50,71,70,160,21,14,23,19,12706,89,86,92,92,null,9982,96,95,98,98,1432,62,55,74,75,751,54,46,63,64,2183,59,52,70,71,180,18,13,24,19,12394,89,86,92,92,null,9863,98,97,96,91,93,1302,77,67,68,48,49,879,67,53,60,40,42,2181,73,61,65,45,46,273,26,22,22,19,16,12336,92,89,89,81,83,null,9299,96,96,95,90,91,1290,71,64,65,42,46,844,56,48,58,37,36,2134,65,57,62,40,42,254,27,19,24,16,14,11713,89,87,87,79,80,null,9569,97,95,95,90,1340,73,57,63,42,853,57,43,55,32,2193,66,52,60,38,330,24,15,21,12,12105,89,85,86,79,null,10427,74.900000000000006,1430,36.9,681,31.3,2111,35.1,423,9,12965,66.3,null,10087,75.900000000000006,1476,30,677,27,2153,29.1,393,9.9,12634,65.8,null,10180,77.599999999999994,1536,28.7,766,28.7,2302,28.7,378,10.1,12874,66.900000000000006,null,10138,75.2,1600,32.1,921,22,2521,28.4,401,7.7,13062,64.099999999999994,null,10166,69.5,1579,27,821,21.2,2400,25,432,10,13000,59.3,null,24810,22750.77,91.7,920,794.88000000000011,86.4,5.3,null,2290,140,10200,12640,0.84,0.85,0.94,0.92]
[921,"Isle of Wight",65,68,1168,33.1,29,32,31,26.2,28,30,53,26.5,29,31,84,26.4,"x","x",14,20.100000000000001,62,64,1279,32.5,44,49,1152,31.8,"x","x",30,23.3,"x","x",64,23.6,5,6,94,23.5,"x","x",16,17.899999999999999,41,45,1278,31,null,1123,76,71,34,81,31,152,32,15,20,1295,70,992,68,59,25,61,26,120,26,11,"x",1127,63,1168,52,50,20,96,22,146,21,19,16,1338,48,null,1104,96,93,98,96,99,53,39,71,70,76,46,39,62,67,175,50,39,67,69,12,58,50,58,50,1293,89,85,93,92,null,1119,96,93,96,98,130,56,44,68,71,76,43,38,64,61,206,51,42,67,67,25,40,32,44,32,1353,88,84,91,92,null,1073,95,94,98,98,108,56,49,70,77,96,54,51,70,69,204,55,50,70,73,15,40,33,53,40,1296,88,87,93,93,null,995,96,95,99,98,142,55,47,83,82,67,43,34,67,63,209,51,43,78,76,18,50,33,61,56,1225,88,85,95,94,null,1014,97,95,99,99,120,51,46,81,83,59,46,42,62,63,179,49,44,74,77,11,36,27,27,27,1210,89,87,94,95,null,1010,97,95,92,84,88,125,66,41,52,20,26,76,54,39,53,29,25,201,62,40,52,23,26,41,22,12,20,12,12,1254,89,83,84,72,75,null,891,94,96,91,81,85,134,60,46,60,21,31,99,39,36,48,27,24,233,52,42,55,24,28,33,27,12,21,"x","x",1158,83,83,82,67,72,null,1022,94,93,90,84,155,55,46,45,23,91,51,38,44,27,246,54,43,44,25,35,14,"x",20,"x",1306,84,81,79,71,null,1207,57.8,145,10.3,69,"x",214,"x",63,"x",1484,48.7,null,1246,53.5,193,10.4,63,11.1,256,10.5,64,6.3,1566,44.5,null,1160,59.1,164,13.4,113,16.8,277,14.8,47,"x",1485,49.1,null,1293,52,128,13.3,65,12.3,193,13,54,5.6,1540,45.5,null,1212,49.7,147,9.5,85,10.6,232,9.9,69,5.8,1513,41.6,null,3010,2702.98,89.8,140,124.18,88.7,1.1000000000000001,null,280,30,1160,1470,0.84,0.97,0.91,0.9]
[925,"Lincolnshire",70,71,7135,36.200000000000003,27,28,186,28.3,27,28,316,27.8,27,28,502,28,"x","x",77,19,66,67,7854,35.4,66,70,7272,35.5,20,21,219,27.6,24,25,295,26.9,22,24,514,27.2,5,5,84,19.7,62,65,7987,34.700000000000003,null,6994,85,469,44,442,45,911,45,113,25,8059,79,6383,83,501,38,366,42,867,40,107,18,7404,76,6091,75,613,31,383,31,996,31,97,18,7229,68,null,6191,96,94,97,97,651,62,52,68,70,473,54,45,58,58,1124,59,49,64,65,137,20,17,24,20,7484,89,85,91,90,null,5947,96,94,98,97,750,61,52,75,73,448,54,46,63,63,1198,59,50,71,69,115,24,19,32,23,7289,88,86,92,91,null,5736,94,92,97,96,793,56,48,67,68,507,49,40,61,59,1300,53,45,65,65,113,24,15,27,27,7180,86,82,90,89,null,5438,95,93,97,97,863,54,45,69,71,509,42,37,59,59,1372,49,42,65,66,159,29,21,35,31,7000,84,81,89,89,null,5391,94,92,97,96,905,50,46,70,70,466,44,37,61,58,1371,48,43,67,66,165,26,21,28,29,6950,83,80,89,88,null,5398,97,96,94,88,90,869,72,63,63,38,44,644,61,44,57,29,35,1513,67,55,60,34,40,251,32,21,24,19,16,7173,88,85,84,74,77,null,5089,96,96,94,86,89,829,72,62,68,39,46,599,61,42,55,26,32,1428,67,54,62,33,40,235,28,19,28,13,17,6775,87,84,85,73,76,null,5221,97,96,95,90,888,74,57,69,44,676,60,39,56,31,1564,68,49,63,38,261,36,26,33,22,7052,88,83,85,76,null,6545,72.400000000000006,959,26.3,378,22.8,1337,25.3,390,9.1999999999999993,8274,61.8,null,6357,72.599999999999994,1000,31.1,437,24.7,1437,29.2,383,11,8177,62.1,null,6450,74.3,999,29.3,566,18.2,1565,25.3,400,12,8427,62.2,null,6480,71.400000000000006,1146,29.2,625,21.3,1771,26.4,420,9,8673,59.2,null,6492,67.599999999999994,932,25.8,610,18.5,1542,22.9,439,4.5999999999999996,8473,56.2,null,16140,14638.98,90.7,850,713.15000000000009,83.9,6.8,null,1620,210,6410,8240,0.83,0.85,0.91,0.89]
[926,"Norfolk",61,64,7813,33.799999999999997,21,24,356,28,19,21,633,26.7,19,22,989,27.2,6,6,107,20.2,55,58,9014,32.9,47,50,7942,32.700000000000003,16,16,298,26.7,17,18,674,26.4,17,17,972,26.5,"x","x",98,19.7,43,46,9186,31.9,null,7604,76,694,37,668,40,1362,38,147,18,9153,69,7127,69,764,27,662,29,1426,28,164,12,8770,61,6741,57,763,17,614,20,1377,18,142,12,8299,50,null,7085,96,94,98,97,896,69,62,81,82,626,60,49,70,70,1522,66,56,76,77,181,27,23,36,27,8814,89,86,93,92,null,6465,96,95,98,97,978,69,62,81,82,696,59,49,67,69,1674,64,57,76,77,187,30,22,35,30,8354,88,85,92,91,null,6231,95,93,97,97,1103,67,60,80,80,676,58,51,70,71,1779,64,56,76,76,202,31,23,35,31,8234,86,84,91,91,null,6036,94,92,97,96,1162,66,57,79,79,654,51,43,68,68,1816,61,52,75,75,236,28,17,33,30,8119,85,81,90,89,null,5859,95,93,97,97,1098,63,58,80,80,660,53,45,70,70,1758,59,53,76,76,231,32,28,39,41,7883,85,82,90,90,null,6253,94,93,91,82,86,768,64,54,62,29,38,574,57,44,53,26,33,1342,61,50,58,28,35,347,29,22,29,18,15,7948,86,83,83,70,74,null,5778,93,93,91,80,84,841,66,54,59,34,35,637,51,37,51,24,25,1478,60,47,56,30,31,380,29,20,26,15,14,7653,84,80,81,67,71,null,5820,94,91,91,84,1027,72,52,62,37,694,55,37,52,28,1721,65,46,58,33,393,28,14,30,10,7947,84,77,81,69,null,7196,63.3,842,18.5,425,24.7,1267,20.6,479,9.1999999999999993,8944,54.4,null,6822,64.8,909,26.4,491,20.8,1400,24.4,394,7.1,8616,55.6,null,6862,65.8,971,22.1,613,25.4,1584,23.4,432,8.8000000000000007,8887,55.4,null,7057,62.2,1029,22.1,634,17.2,1663,20.2,367,7.6,9088,52.3,null,6908,60.2,1142,18.7,528,12.1,1670,16.600000000000001,342,9.1,8922,50,null,16770,14724.06,87.8,1040,854.88000000000011,82.2,5.6,null,1590,320,6860,8770,0.81,0.87,0.91,0.89]
[928,"Northamptonshire",58,60,8466,34.200000000000003,15,16,177,27,20,21,338,27,18,19,515,27,4,6,89,20.399999999999999,55,57,9233,33.6,50,53,8469,33.9,11,13,197,26.3,12,12,372,25.8,11,12,569,26,"x","x",103,18.8,47,50,9286,33.200000000000003,null,7992,78,381,34,494,37,875,36,130,14,9043,73,7672,73,480,30,452,36,932,33,148,11,8798,68,7329,60,530,22,435,21,965,21,154,8,8479,55,null,7642,95,93,97,95,535,68,54,77,74,505,62,50,70,66,1040,65,53,73,70,176,24,19,27,23,8907,90,87,92,90,null,7264,95,92,96,95,636,69,57,71,75,474,54,42,61,61,1110,62,51,67,69,194,21,14,26,22,8609,89,85,91,90,null,7059,95,92,97,96,670,61,54,75,74,454,52,41,66,63,1124,57,49,71,69,160,31,22,31,29,8361,88,85,92,91,null,6287,96,94,98,97,1023,62,52,74,73,477,51,39,60,63,1500,58,48,69,70,160,28,21,33,31,7969,88,83,91,91,null,5922,96,94,98,97,1268,61,53,75,77,467,51,44,66,63,1735,59,51,73,73,152,22,18,28,24,7848,86,83,91,90,null,6485,94,93,91,84,86,637,64,51,58,29,35,423,61,45,55,33,35,1060,63,49,57,31,35,304,28,17,25,16,14,7862,88,84,84,74,76,null,6197,91,92,90,82,83,741,59,50,56,30,34,398,51,40,54,30,30,1139,56,46,55,30,32,303,26,18,21,16,10,7649,83,82,82,72,72,null,5960,93,91,91,83,837,64,47,57,31,465,56,37,50,28,1302,61,43,54,30,299,30,17,24,11,7575,85,80,82,71,null,6501,66.7,839,24.6,264,20.100000000000001,1103,23.5,368,9.5,7972,58.1,null,6106,64.8,872,27.8,325,20.3,1197,25.7,341,8.8000000000000007,7644,56.2,null,5973,65.7,1093,28.6,449,20,1542,26.1,375,9.9,7892,55.3,null,5975,62.9,1211,26.6,475,11.6,1686,22.4,334,4.8,7995,51.9,null,5743,59.2,1394,31.8,509,11.8,1903,26.4,380,5.8,8027,48.9,null,15070,13728.769999999999,91.1,730,634.37000000000012,86.9,4.2,null,1550,250,5970,7770,0.78,0.87,0.89,0.87]
[929,"Northumberland",61,63,2813,34.6,17,18,195,27,18,20,232,26.6,18,19,427,26.8,"x","x",30,18.8,55,57,3291,33.4,52,55,2977,33.9,18,20,186,27.7,15,15,212,26.1,16,17,398,26.9,"x","x",42,18.600000000000001,47,49,3433,32.9,null,2791,83,293,44,283,45,576,45,51,16,3429,75,2632,79,296,36,230,37,526,37,49,16,3215,71,2702,67,303,26,225,28,528,27,69,4,3308,59,null,2599,97,96,98,97,292,68,60,76,70,286,66,55,73,66,578,67,57,75,68,50,26,14,28,30,3236,91,88,93,91,null,2634,98,95,98,98,381,74,61,75,75,230,63,51,69,70,611,70,58,73,73,70,29,20,26,27,3319,91,86,92,92,null,2572,97,96,98,97,398,66,54,75,74,206,60,53,72,70,604,64,54,74,72,81,35,26,36,33,3260,89,86,92,91,null,2597,97,95,98,97,401,70,60,78,77,233,60,51,65,62,634,66,57,73,72,62,35,29,34,39,3301,90,87,92,91,null,2454,97,95,98,99,396,66,59,78,80,226,52,46,62,71,622,61,54,73,77,80,38,33,43,35,3165,88,85,91,93,null,2575,95,95,93,85,88,293,77,61,61,34,44,214,70,53,58,41,41,507,74,58,60,37,43,107,51,36,38,23,29,3197,90,87,86,75,79,null,2516,96,96,94,83,89,354,61,55,60,32,34,224,57,39,51,25,28,578,59,49,57,29,32,93,24,22,23,22,15,3194,87,85,85,71,76,null,2531,96,92,93,86,363,68,50,58,34,226,62,44,56,35,589,66,48,58,34,127,34,16,21,13,3251,88,81,83,74,null,2844,66.3,327,9.5,263,20.2,590,14.2,154,7.1,3588,55.2,null,2760,70.099999999999994,401,15,201,18.399999999999999,602,16.100000000000001,156,10.9,3518,58.2,null,2796,70.3,472,17.8,211,19.899999999999999,683,18.399999999999999,165,7.3,3650,57.7,null,2818,64.8,388,15.5,259,17.8,647,16.399999999999999,140,10,3606,54,null,3020,61.6,423,17.5,212,13.2,635,16.100000000000001,145,6.9,3800,51.9,null,6810,6231.1500000000005,91.5,400,331.6,82.9,8.6999999999999993,null,680,110,2800,3600,0.81,0.82,0.93,0.9]
[931,"Oxfordshire",62,64,6731,34.4,15,16,272,27.2,9,10,173,24.6,13,14,445,26.2,"x",4,75,19.3,58,60,7466,33.700000000000003,49,51,7116,33.1,8,9,303,26.3,11,11,173,24.8,9,9,476,25.7,"x","x",65,19.2,45,48,7910,32.6,null,6697,80,581,35,307,31,888,34,92,10,7724,73,6359,75,584,29,263,30,847,29,109,11,7356,69,6192,64,591,20,286,16,877,19,86,10,7194,57,null,6029,97,96,98,98,716,69,54,78,78,392,50,37,57,61,1108,62,48,70,72,144,22,15,23,22,7333,90,86,92,93,null,5734,97,95,99,98,794,69,60,80,82,413,43,36,57,58,1207,60,52,72,74,125,24,14,26,23,7113,89,86,93,92,null,5603,97,94,98,97,796,62,47,72,77,396,37,24,53,52,1192,54,39,66,69,78,15,14,15,21,6904,88,83,91,91,null,5393,95,92,98,97,869,55,41,70,75,378,30,20,48,52,1247,48,35,64,68,85,20,12,26,28,6755,86,80,90,91,null,5348,94,91,97,97,834,50,39,66,75,344,31,21,39,54,1178,44,34,58,69,81,27,14,20,31,6633,84,79,89,91,null,4926,96,97,94,88,91,735,77,68,70,40,48,554,53,36,50,24,26,1289,67,54,62,34,38,172,28,20,24,16,16,6401,88,86,86,75,78,null,4609,96,96,96,88,91,724,72,64,66,38,45,521,47,31,49,20,21,1245,62,50,59,30,35,137,20,13,16,15,9,6005,87,85,86,74,78,null,4658,97,95,95,91,781,76,58,70,44,538,46,31,46,22,1319,64,47,60,35,153,26,12,20,10,6149,88,83,86,77,null,4955,72.3,685,22.3,416,9.6,1101,17.5,205,9.8000000000000007,6261,60.6,null,4786,69,580,21.2,434,7.4,1014,15.3,206,9.1999999999999993,6006,57.9,null,4887,68.400000000000006,635,23.1,432,8.8000000000000007,1067,17.3,222,9,6179,57.4,null,5092,68.2,647,18.7,411,10.199999999999999,1058,15.4,221,6.3,6371,57.3,null,5049,63.5,602,14.8,429,7.5,1031,11.7,229,3.1,6309,52.9,null,11530,9835.09,85.3,480,388.8,81,4.3,null,1070,130,4890,6090,0.81,0.82,0.91,0.89]
[933,"Somerset",65,66,5133,35.4,22,24,389,27.9,11,11,130,23.5,19,21,519,26.8,"x","x",23,19.3,60,61,5783,34.5,55,57,5150,34.700000000000003,17,20,376,26.9,9,9,158,24.2,15,17,534,26.1,"x","x",19,18.399999999999999,51,53,5801,33.799999999999997,null,4923,79,634,44,203,33,837,41,35,"x",5813,73,4663,79,638,40,193,36,831,39,26,"x",5541,72,4615,66,562,23,215,20,777,22,22,"x",5441,59,null,4536,97,96,98,98,734,72,62,79,78,216,49,38,54,52,950,67,56,74,72,33,9,"x",9,"x",5543,91,88,93,93,null,4397,97,95,98,97,803,66,59,74,74,232,48,41,53,56,1035,62,55,69,70,22,"x","x",14,"x",5480,90,87,92,92,null,4474,94,92,97,96,746,58,51,72,74,204,44,39,50,52,950,55,48,67,69,23,"x","x",13,13,5467,87,84,91,91,null,4296,94,93,97,97,750,57,47,71,69,214,40,33,44,47,964,53,44,65,65,26,"x","x",12,"x",5298,86,83,91,90,null,4249,94,92,96,97,881,56,48,72,72,186,39,31,45,41,1067,53,45,67,67,28,"x","x","x","x",5358,85,82,90,90,null,4207,95,96,93,87,89,789,72,56,65,39,42,304,47,33,45,28,26,1093,65,50,59,35,38,67,18,12,18,10,10,5375,88,85,85,76,78,null,3940,94,94,93,85,87,740,66,53,64,35,39,272,44,28,45,24,24,1012,60,46,59,32,35,64,19,13,13,11,9,5028,86,83,85,73,75,null,4107,96,93,92,86,771,72,49,63,37,237,38,20,40,14,1008,64,42,58,32,66,24,15,27,12,5187,88,82,85,74,null,4514,67.400000000000006,687,23.4,243,10.3,930,20,137,5.8,5581,58,null,4181,67,756,22.6,266,12,1022,19.899999999999999,122,4.9000000000000004,5326,56.5,null,4305,67,849,25.2,201,7.5,1050,21.8,121,9.1,5480,57,null,4456,63.2,963,27.8,192,4.7,1155,24,134,8.1999999999999993,5745,54,null,4338,56.1,1082,31.3,144,3.5,1226,28.1,124,9.6999999999999993,5688,49,null,11310,10088.52,89.2,310,261.33,84.3,5,null,1090,70,4270,5420,0.78,0.83,0.9,0.87]
[935,"Suffolk",62,64,6956,34.200000000000003,22,23,250,28.2,19,21,503,26.3,20,22,753,27,"x","x",94,20,57,59,7990,33.200000000000003,51,53,7065,33.200000000000003,11,12,267,26.2,14,15,448,25.7,13,14,715,25.9,"x","x",64,20.5,46,49,8031,32.4,null,6739,80,524,39,532,40,1056,39,115,10,7946,73,6416,75,596,30,530,33,1126,32,114,11,7696,68,6072,61,720,25,461,23,1181,24,127,8,7428,54,null,6298,97,95,98,97,692,63,49,71,71,534,56,44,63,63,1226,60,47,68,67,131,13,9,14,15,7690,89,86,91,91,null,5964,96,93,97,97,800,61,54,75,78,520,55,45,65,65,1320,59,50,71,73,150,27,19,31,27,7461,88,84,91,91,null,5969,96,94,97,97,852,60,49,73,77,547,44,38,62,60,1399,54,45,68,70,157,31,24,36,32,7547,86,83,90,91,null,5848,95,92,97,97,918,57,47,72,73,537,53,41,63,66,1455,56,45,68,71,138,33,20,35,23,7468,86,82,90,90,null,5385,95,94,97,97,900,61,53,74,77,564,54,41,60,66,1464,58,48,69,73,136,38,26,38,34,7012,86,83,90,91,null,5465,95,93,91,84,86,788,66,53,56,31,35,556,55,39,49,29,28,1344,61,47,53,30,32,216,28,19,25,15,14,7034,87,82,82,71,74,null,5363,93,93,89,81,83,743,59,51,55,25,32,595,47,37,46,23,26,1338,54,45,51,24,29,199,18,9,18,9,7,6906,83,81,80,68,70,null,5264,93,89,89,82,769,63,45,56,31,601,51,35,47,25,1370,58,40,52,28,241,29,17,22,12,6882,84,77,80,68,null,6209,64.2,853,22.4,478,14.9,1331,19.7,255,5.0999999999999996,7795,54.6,null,6002,59.6,793,18.399999999999999,488,14.8,1281,17,275,7.3,7558,50.5,null,6222,64.099999999999994,735,18.899999999999999,491,15.9,1226,17.7,291,10,7741,54.7,null,6178,61.2,780,19.5,505,12.9,1285,16.899999999999999,303,6.3,7768,51.8,null,6222,57.2,842,18.2,431,10.9,1273,15.7,277,7.6,7772,48.7,null,14950,13230.75,88.5,870,705.56999999999994,81.099999999999994,7.4,null,1240,190,6210,7640,0.81,0.9,0.9,0.88]
[936,"Surrey",66,68,11847,35.299999999999997,20,20,438,28.6,13,14,335,25.5,17,17,773,27.3,2,2,213,20,62,63,13520,34.6,53,56,11924,33.5,13,14,502,27.1,10,10,349,25.3,12,13,851,26.3,2,2,229,20.3,50,52,13704,32.9,null,11217,81,988,42,560,31,1548,38,271,21,13094,75,10819,77,1039,36,536,25,1575,32,218,17,12674,70,10063,68,1064,25,513,19,1577,23,235,19,11924,61,null,10646,98,96,99,98,1012,78,66,85,84,652,53,40,67,64,1664,68,56,78,76,257,31,22,37,32,12608,92,89,95,94,null,9770,98,96,99,98,1119,74,63,86,84,643,46,37,62,62,1762,64,54,77,76,284,29,23,31,29,11865,91,88,94,93,null,9485,97,96,99,98,1180,74,64,86,85,672,42,33,61,64,1852,62,53,77,77,267,31,27,35,33,11646,90,87,94,93,null,9354,97,95,99,98,1225,67,59,84,82,674,41,32,61,62,1899,58,49,76,75,258,33,23,36,31,11560,89,86,93,92,null,9043,97,95,99,98,1272,68,57,82,83,615,38,29,51,61,1887,58,48,72,76,249,29,21,35,31,11211,89,86,93,93,null,8893,97,96,95,89,92,866,83,67,71,49,51,671,56,36,49,26,24,1537,71,54,61,39,39,400,33,21,30,21,17,10845,91,87,88,80,82,null,8210,97,95,94,89,90,981,76,59,66,45,43,647,50,29,43,21,19,1628,66,47,57,35,33,369,25,16,23,16,12,10236,89,85,86,78,78,null,8171,97,94,95,90,1010,78,57,67,42,754,50,29,42,19,1764,66,45,56,33,363,32,20,31,16,10308,90,83,86,77,null,8389,79.2,1044,34.1,769,18.600000000000001,1813,27.5,457,10.1,10659,67.5,null,8243,75.7,1111,35.200000000000003,790,16.600000000000001,1901,27.5,458,10,10604,64.2,null,8327,75.7,1121,31,804,14.6,1925,24.1,466,6.4,10725,63.5,null,8536,73.099999999999994,969,32,789,10.4,1758,22.3,469,8.5,10763,62,null,8262,70.3,1086,24.8,750,10.1,1836,18.8,413,7.5,10511,58.8,null,18390,17121.09,93.1,1090,935.22,85.8,7.3,null,1960,230,8300,10490,0.8,0.8,0.94,0.91]
[937,"Warwickshire",62,65,5532,34.6,16,16,198,26.7,16,18,256,25.2,16,17,454,25.9,"x","x",93,19.2,57,60,6192,33.700000000000003,45,49,5562,32.9,9,11,265,24.8,5,7,253,23.4,7,9,518,24.1,"x","x",103,19,41,45,6314,31.9,null,5324,83,448,43,334,38,782,41,133,17,6265,76,5129,79,475,33,300,29,775,32,124,17,6063,72,4804,70,550,25,299,26,849,25,115,19,5791,63,null,5051,98,97,99,98,518,77,65,83,76,358,58,48,67,61,876,69,58,77,70,138,30,23,30,30,6082,93,89,94,92,null,4661,98,97,99,97,602,74,63,80,80,376,57,46,64,63,978,67,57,74,73,139,33,27,32,27,5795,91,88,93,92,null,4690,97,96,98,98,603,71,61,80,77,368,49,40,60,61,971,63,53,72,71,106,24,17,24,21,5782,90,87,92,92,null,4564,97,95,98,98,688,66,58,79,79,353,44,33,56,55,1041,58,50,71,71,119,34,26,35,30,5739,88,85,92,91,null,4260,97,96,99,98,660,69,61,80,79,352,49,39,61,63,1012,62,53,73,73,106,35,23,30,30,5393,89,86,92,92,null,4232,97,97,95,91,92,560,81,70,68,45,49,387,62,45,55,30,31,947,73,60,63,39,42,195,33,23,28,24,18,5379,91,87,87,79,81,null,4089,96,96,94,89,90,591,69,61,66,42,41,432,55,43,52,28,28,1023,63,53,60,36,35,202,32,20,27,19,14,5319,87,85,85,76,77,null,4194,96,94,94,89,606,75,57,64,43,421,50,35,45,24,1027,65,48,56,36,188,23,13,19,9,5412,88,83,84,76,null,4779,75.099999999999994,780,34,246,28.5,1026,32.700000000000003,257,13.2,6062,65.3,null,4698,72.7,733,30.8,229,21,962,28.5,217,8.8000000000000007,5879,63.1,null,4727,70.599999999999994,806,30,266,21.4,1072,27.9,222,8.6,6022,60.7,null,4834,69,740,25.4,308,22.7,1048,24.6,239,5.4,6122,58.9,null,4569,64.7,804,18.3,281,21.4,1085,19.100000000000001,287,10.1,5942,53.8,null,11850,10807.2,91.2,560,461.44000000000005,82.4,8.8000000000000007,null,1070,110,4730,5910,0.81,0.86,0.92,0.9]
[938,"West Sussex",62,63,8224,34.1,23,24,287,28.7,21,21,380,27.8,22,22,667,28.2,3,3,159,20.5,57,59,9252,33.4,54,56,8214,33.6,14,14,284,26.9,17,18,383,27.4,15,16,667,27.2,4,4,143,20.8,50,52,9243,32.9,null,7763,77,703,34,498,34,1201,34,160,16,9164,70,7406,71,646,30,498,28,1144,29,122,10,8714,65,7095,60,786,22,479,26,1265,23,127,6,8526,54,null,7166,97,95,98,98,901,71,62,79,84,509,57,47,65,68,1410,66,57,74,78,148,29,21,31,29,8761,90,88,93,93,null,6886,97,95,98,98,992,69,60,78,80,508,54,46,67,69,1500,64,56,74,77,153,22,14,25,20,8577,90,87,93,93,null,6503,96,94,98,97,988,62,56,79,76,530,55,45,66,65,1518,59,52,74,72,149,21,13,21,22,8201,88,85,92,91,null,6504,95,93,98,97,1002,60,53,76,77,580,49,40,63,64,1582,56,48,71,73,131,21,18,27,24,8241,87,83,91,91,null,6332,95,94,98,98,1038,62,54,76,77,512,53,43,66,68,1550,59,51,73,74,142,28,22,25,23,8053,87,84,91,92,null,6390,96,95,93,86,89,887,71,55,64,35,38,551,59,37,48,28,28,1438,66,48,58,32,34,225,26,15,22,16,9,8061,89,85,85,74,77,null,5768,95,94,92,85,87,957,68,53,63,32,37,588,51,31,48,23,23,1545,62,45,57,29,32,221,21,14,19,14,10,7550,86,82,83,71,73,null,5778,96,95,93,88,1077,70,48,62,34,627,52,31,48,22,1704,63,42,56,30,218,28,17,22,14,7715,87,81,83,73,null,6330,70.900000000000006,974,32.1,682,20.2,1656,27.2,298,7.7,8285,59.9,null,6218,69.5,1020,28.6,723,16,1743,23.4,308,7.8,8269,57.5,null,5952,72.599999999999994,1169,28.7,840,18.100000000000001,2009,24.3,296,9.8000000000000007,8266,58.6,null,6139,69,1216,27.1,855,14.3,2071,21.8,316,7.3,8526,55.3,null,6019,64.5,1068,27.2,798,11.7,1866,20.6,343,6.7,8230,52.2,null,15910,14016.71,88.1,690,574.08000000000004,83.2,4.9000000000000004,null,2020,160,5950,8130,0.8,0.89,0.94,0.9]
[970,"ENGLAND TOTAL",63,66,563356,34.799999999999997,21,23,27009,27.4,18,19,29146,26,19,21,56155,26.7,3,3,8340,19.7,58,60,641331,33.799999999999997,53,56,566076,33.700000000000003,15,17,27251,26.6,14,15,27893,25.4,14,16,55144,26,2,2,8004,19.600000000000001,49,52,643302,32.799999999999997,null,536682,81,50635,41,37367,39,88002,40,10590,17,639412,74,513157,76,52204,34,34472,33,86676,34,9696,14,613519,69,490927,65,56439,25,33546,25,89985,25,9207,12,593499,58,null,499970,97,94,98,97,60005,69,58,78,74,39209,57,47,65,62,99214,64,54,73,69,11777,25,19,28,25,614042,90,86,92,91,null,477924,96,94,97,96,64861,67,57,76,74,38258,54,44,62,61,103119,62,52,71,69,11134,24,18,27,24,595092,89,85,91,90,null,460677,95,93,97,96,70043,63,53,74,73,38313,50,41,61,59,108356,58,49,70,68,10886,23,17,26,24,582337,87,83,91,89,null,444011,95,92,97,96,73899,59,50,73,72,38496,46,37,58,58,112395,55,46,68,67,10649,23,16,26,23,569541,85,81,90,89,null,427308,94,92,97,96,74923,59,50,73,73,37565,45,37,57,58,112488,54,46,67,68,10037,23,17,26,24,552325,85,81,89,89,null,430734,96,95,94,88,90,61363,74,62,67,42,47,41282,62,46,56,34,36,102645,69,55,63,39,42,17224,29,19,25,18,15,551540,89,86,86,77,79,null,408454,94,95,94,86,88,64277,68,58,66,39,42,40333,55,41,54,30,31,104610,63,51,61,35,38,16842,27,18,25,17,14,530906,86,84,85,74,76,null,404358,96,94,94,88,70266,71,54,65,41,42636,56,38,52,29,112902,65,48,60,36,16954,26,17,23,13,535101,87,81,84,75,null,450230,70.7,63323,28.7,33734,22.6,97057,26.6,21760,9.5,569121,60.8,null,434100,69.599999999999994,68350,27.8,35769,20.5,104119,25.3,20795,8.4,559076,59.1,null,428694,69.8,75063,27.6,39261,19.3,114324,24.8,21202,8.5,564863,58.4,null,433267,66.8,79575,25.9,41308,17.100000000000001,120883,22.9,21723,7.3,575970,55.3,null,439630,61.6,75651,21.2,38735,13.3,114386,18.600000000000001,22360,6.1,576420,50.9,null,1125070,1018188.35,90.5,47190,40489.019999999997,85.8,4.7,null,115280,11760,430320,557360,0.81,0.86,0.91,0.89]
[]
[971,"NORTH EAST",59,62,25410,34.200000000000003,18,21,1500,26.5,17,19,1890,25.6,17,20,3390,26,2,2,410,18.7,53,56,29520,33,47,50,25860,32.6,12,14,1489,25.3,13,14,1780,24.7,12,14,3269,24.9,"x","x",387,18.2,42,45,29804,31.5,null,24570,83,2450,41,2300,41,4750,41,490,12,29920,75,23712,77,2464,34,2046,35,4510,34,406,13,28722,70,23323,67,2709,25,1993,27,4702,26,422,10,28535,60,null,21120,96,95,97,97,2650,65,55,73,70,2120,56,48,64,62,4780,61,52,69,66,470,23,16,24,22,26450,89,85,91,90,null,22616,96,94,97,96,3151,62,53,69,70,2218,54,44,59,58,5369,59,49,65,65,497,21,14,20,20,28554,87,84,90,89,null,21788,95,93,97,96,3372,57,48,69,67,2165,50,42,59,58,5537,54,46,65,63,476,20,14,22,21,27870,86,82,89,88,null,20951,94,91,97,96,3718,54,46,68,66,2116,47,39,57,56,5834,52,43,64,62,437,18,15,22,20,27295,84,80,88,87,null,20219,94,91,96,96,3803,53,44,67,68,2078,44,36,55,57,5881,50,41,63,64,458,20,15,24,21,26637,83,78,87,87,null,20050,97,96,95,89,91,3180,76,64,71,45,50,2350,65,49,59,37,39,5530,72,57,66,42,45,850,32,19,26,17,15,26460,89,86,87,77,79,null,19276,96,96,96,87,91,3131,69,59,71,40,45,2259,61,45,60,32,36,5390,66,53,66,37,41,804,24,16,22,16,12,25501,87,84,87,74,78,null,19237,96,94,95,89,3452,73,56,68,43,2401,59,41,56,32,5853,67,50,63,38,870,26,14,21,12,25987,87,81,85,75,null,22563,70.3,2850,22.3,2172,22.5,5022,22.4,1208,7.4,28794,59.3,null,21946,70.400000000000006,3145,23,2219,20.100000000000001,5364,21.8,1244,7.2,28554,58.5,null,22260,69.099999999999994,3536,22,2244,18.3,5780,20.6,1247,5.5,29305,56.8,null,21872,65.2,3816,21.5,2596,16.600000000000001,6412,19.5,1239,7,29528,52.9,null,23333,59.1,3673,16.600000000000001,2362,12.2,6035,14.8,1301,5.3,30670,48.1,null,{"$f":"SUM(OX102,OX101,OX71,OX81,OX82,OX72,OX73,OX152,OX83,OX74,OX84,OX75)","v":57140},{"$f":"SUM(OY102,OY101,OY71,OY81,OY82,OY72,OY73,OY152,OY83,OY74,OY84,OY75)","v":51590.22},{"$f":"(OY161/OX161)*100","v":90.287399369968497},2780,{"$f":"SUM(PB102,PB101,PB71,PB81,PB82,PB72,PB73,PB152,PB83,PB74,PB84,PB75)","v":2346.06},{"$f":"(PB161/PA161)*100","v":84.390647482014387},{"$f":"OZ161-PC161","v":5.8967518879541103},null,5820,570,22230,28620,0.79,0.86,0.9,0.87]
[972,"NORTH WEST",60,63,76380,34.200000000000003,15,17,3920,25.9,14,15,3520,24.7,14,16,7430,25.4,2,3,1030,19.100000000000001,55,58,86170,33.200000000000003,52,55,76834,33.200000000000003,12,13,3743,25.5,10,12,3270,24.1,11,12,7013,24.9,"x","x",936,18.899999999999999,48,50,86098,32.299999999999997,null,72220,81,7150,39,4490,37,11630,38,1280,15,85650,74,69395,76,7338,31,4072,32,11410,31,1159,14,82419,69,67635,65,7876,22,3891,22,11767,22,1206,11,80968,58,null,67730,96,94,97,96,8680,65,53,74,70,4990,52,42,61,57,13680,60,49,69,65,1470,22,17,26,23,83310,89,85,91,90,null,65496,96,93,97,96,9064,62,51,72,69,4863,48,37,57,55,13927,57,47,66,65,1495,20,15,24,22,81252,88,84,90,89,null,63543,95,92,97,96,9653,59,48,72,69,4864,46,36,56,55,14517,54,44,66,64,1411,20,15,24,23,79746,86,82,90,89,null,61588,94,91,97,96,9749,55,45,70,68,5107,41,32,53,53,14856,50,40,64,63,1285,18,12,20,20,78002,84,80,89,88,null,59155,94,91,97,96,9506,55,46,70,69,5010,40,31,52,53,14516,49,41,64,64,1235,22,16,24,24,75177,84,80,89,88,null,58700,97,96,95,89,91,8400,76,62,69,45,49,5800,64,45,57,35,35,14200,71,55,64,41,43,2250,31,19,26,19,15,75280,90,86,87,78,80,null,56304,95,95,95,87,90,8958,70,58,68,40,43,5580,58,41,57,30,32,14538,65,52,64,36,39,2178,28,19,27,18,15,73134,87,84,87,75,77,null,55786,96,94,95,90,9852,73,56,67,43,5942,57,37,54,29,15794,67,49,62,37,2287,29,18,24,13,73962,88,82,86,76,null,64923,69.099999999999994,7777,25.7,4397,20.6,12174,23.8,3143,9.6999999999999993,80245,59.9,null,62919,68.8,8203,24.5,4594,18.7,12797,22.4,2987,7.8,78705,58.9,null,62231,69.3,9093,23.6,5203,18.600000000000001,14296,21.8,3053,7.8,79661,58.4,null,63740,65.8,9596,22.9,5319,15.9,14915,20.399999999999999,3222,6.5,81889,55.2,null,64971,59.9,9837,19.2,5074,11.7,14911,16.7,3465,6,83351,49.9,null,{"$f":"SUM(OX136,OX137,OX52,OX53,OX142,OX143,OX145,OX123,OX47,OX135,OX48,OX54,OX55,OX56,OX57,OX50,OX49,OX58,OX59,OX60,OX124,OX61,OX51)","v":158500},144329.65999999997,{"$f":"(OY162/OX162)*100","v":91.059722397476321},6010,5203.4299999999994,{"$f":"(PB162/PA162)*100","v":86.579534109816962},{"$f":"OZ162-PC162","v":4.4801882876593595},null,14340,1710,62250,78300,0.8,0.85,0.91,0.89]
[973,"YORKSHIRE AND THE HUMBER",61,64,57080,33.9,19,21,2820,26.3,16,18,3120,25.2,17,20,5940,25.7,2,3,670,19.3,56,59,64610,32.9,51,54,57234,32.9,14,16,2674,25.7,14,15,2976,24.8,14,16,5650,25.2,1,2,687,19.2,47,50,64572,32,null,54170,79,5300,39,3930,38,9230,39,880,16,64690,72,52203,74,4898,34,3694,32,8592,33,833,13,62021,67,50569,64,5478,24,3599,26,9077,25,787,13,60757,57,null,50600,95,93,96,95,6150,62,52,73,70,4280,54,45,61,58,10430,59,49,68,65,1010,23,17,27,25,62330,88,84,90,89,null,49168,95,92,96,95,6448,60,49,70,68,4168,50,40,59,56,10616,56,46,66,64,978,23,18,25,23,61050,86,82,89,88,null,47030,94,91,96,95,7253,56,47,68,68,4054,47,39,57,55,11307,53,44,64,63,977,21,13,24,22,59548,85,81,89,88,null,45676,93,90,96,95,7399,53,44,68,66,3963,44,36,54,53,11362,50,41,63,62,960,20,16,24,21,58223,83,79,88,87,null,43591,93,90,96,95,7589,53,45,68,68,3801,41,33,52,53,11390,49,41,62,63,925,22,16,25,26,56161,83,79,88,87,null,43640,95,94,93,86,88,6580,66,55,61,36,39,4290,56,40,51,30,31,10870,62,49,57,34,36,1470,25,19,22,18,15,56060,87,84,84,74,76,null,41910,93,94,92,82,86,6868,61,52,59,32,35,4238,47,36,49,25,26,11106,56,46,55,29,32,1493,27,21,26,17,16,54586,83,82,83,70,73,null,40972,94,93,93,86,7531,66,50,59,36,4549,50,34,47,25,12080,60,44,55,32,1454,23,15,20,11,54581,85,80,82,72,null,46385,69.3,6895,24.8,3133,20.5,10028,23.5,1845,9.3000000000000007,58261,59.5,null,45632,67.8,7598,23.9,3406,18.600000000000001,11004,22.3,1881,8.1,58520,57.3,null,44391,65.900000000000006,8585,24.7,4103,16,12688,21.9,1929,8.1999999999999993,59052,54.6,null,44485,63.4,9243,23.9,4478,15.8,13721,21.3,1967,6.6,60181,52,null,45269,58.5,8892,19.100000000000001,4545,10.5,13437,16.2,2147,4.8,60857,47.3,null,{"$f":"SUM(OX62,OX66,OX67,OX63,OX86,OX85,OX68,OX69,OX87,OX88,OX89,OX64,OX65,OX70,OX90)","v":115970},105587.77,{"$f":"(OY163/OX163)*100","v":91.047486418901443},3460,3049.1000000000004,88.124277456647405,2.9232089622540371,null,12620,1150,44490,58260,0.79,0.86,0.91,0.88]
[974,"EAST MIDLANDS",59,62,48600,34.5,18,19,1900,26.7,17,18,2060,25.7,17,19,3970,26.2,3,3,480,19.5,55,58,54010,33.700000000000003,50,54,48938,33.5,12,14,1887,25.6,12,13,1991,24.7,12,13,3878,25.1,3,3,520,19.399999999999999,47,50,54222,32.700000000000003,null,46790,78,3580,36,2700,38,6280,36,670,14,54090,72,44681,75,3773,30,2418,33,6191,31,619,12,51822,68,42688,64,4253,22,2370,25,6623,23,667,11,50257,58,null,43840,96,94,97,96,4690,62,52,72,70,2750,55,46,63,61,7440,59,50,69,67,770,22,16,24,22,52290,89,86,92,91,null,41867,96,93,97,96,5095,62,51,72,71,2659,54,46,63,62,7754,59,49,69,68,803,22,16,26,22,50666,89,85,91,91,null,40202,95,93,97,96,5576,58,50,71,69,2657,50,41,61,58,8233,56,47,68,66,776,24,17,26,25,49400,87,84,91,90,null,38519,95,93,97,96,6161,56,47,69,69,2682,47,38,59,58,8843,54,44,66,66,757,25,18,29,25,48309,86,82,90,89,null,36929,94,92,97,96,6462,54,47,70,71,2614,46,38,59,58,9076,52,44,67,67,701,20,15,23,21,46899,85,82,90,90,null,37450,95,94,93,87,89,5530,69,55,63,35,42,3000,62,45,56,34,36,8540,66,51,61,35,40,1300,25,17,21,15,13,47360,88,85,85,75,78,null,35902,94,94,93,85,87,5633,64,51,61,33,37,2802,55,41,53,30,31,8435,61,48,59,32,35,1235,25,16,22,12,11,45644,86,83,84,73,75,null,35425,95,93,94,88,6161,66,48,61,35,3099,56,38,53,30,9260,63,45,58,34,1290,27,17,23,13,46039,87,81,84,75,null,39953,69.2,6012,24.3,2450,20.3,8462,23.1,1765,8.1,50186,59.3,null,38363,68.2,6428,23.4,2618,20,9046,22.4,1719,7.7,49130,57.6,null,38006,68.900000000000006,7518,25.6,3226,18.2,10744,23.4,1788,8.6999999999999993,50586,57.1,null,38623,65.599999999999994,8029,23.1,3390,15,11419,20.7,1748,6.5,51798,53.7,null,39368,60.4,7206,20.6,3262,13.4,10468,18.3,1826,4.8,51663,49.9,null,{"$f":"SUM(OX97,OX96,OX109,OX108,OX149,OX151,OX139,OX138,OX110)","v":99020},90209.17,91.101969299131497,4690,3947.16,84.161194029850734,6.9407752692807634,null,10850,1030,37940,49820,0.81,0.85,0.91,0.89]
[975,"WEST MIDLANDS",61,64,60670,34.799999999999997,16,17,3350,26.4,15,17,3680,25.4,16,17,7020,25.9,2,3,990,19.3,56,58,69790,33.700000000000003,52,55,60977,33.9,12,14,3568,25.9,12,13,3622,24.8,12,14,7190,25.3,1,1,888,19.2,47,50,70236,32.799999999999997,null,58250,83,5940,41,4680,37,10620,39,1240,15,70540,75,55548,79,6290,34,4329,30,10619,33,1177,15,67768,70,52892,68,6785,26,4178,24,10963,25,1123,11,65341,60,null,54970,97,95,98,96,6570,69,58,77,70,4830,52,41,61,56,11400,62,51,70,64,1390,23,17,25,22,68050,89,86,92,89,null,52223,97,95,98,96,6974,67,56,75,70,4700,49,40,58,56,11674,60,50,68,64,1330,22,17,23,20,65529,88,85,91,89,null,50944,96,94,97,96,7864,62,51,73,68,4638,46,37,57,53,12502,56,46,67,63,1212,19,14,21,20,64889,87,83,90,88,null,49766,95,93,97,96,8058,59,49,72,69,4580,42,33,53,52,12638,53,43,65,63,1226,19,14,22,19,63889,85,81,89,88,null,47694,95,92,97,96,8084,57,48,71,69,4516,40,32,51,51,12600,51,42,64,62,1110,22,15,22,21,61672,84,81,89,87,null,48710,95,95,93,87,88,5990,73,61,65,40,44,5210,58,43,53,30,32,11190,66,52,59,36,38,2070,27,17,22,17,13,62060,88,85,84,76,77,null,46234,93,94,92,85,86,6157,66,56,64,37,40,5166,52,38,49,25,27,11323,60,48,57,32,34,2035,24,16,21,14,12,59699,85,83,83,72,74,null,45915,95,94,93,87,6857,70,54,63,39,5225,53,35,49,26,12082,63,46,57,34,1959,23,13,19,10,60062,86,81,83,74,null,50786,69.900000000000006,7229,28.2,3729,22.2,10958,26.2,2679,9,64430,59.9,null,48957,69.599999999999994,8050,27.5,3799,20.100000000000001,11849,25.2,2499,8.4,63308,58.8,null,47974,69,8875,26.2,3863,19.100000000000001,12738,24.1,2624,7.6,63386,57.4,null,48544,65.900000000000006,9491,23.8,3962,17.2,13453,21.8,2761,6.4,64768,54.2,null,49677,59,8630,17.399999999999999,3759,13.2,12389,16.100000000000001,2807,4.8,64883,48.5,null,{"$f":"SUM(OX40,OX41,OX42,OX131,OX43,OX140,OX44,OX111,OX112,OX141,OX45,OX157,OX46,OX132)","v":124720},110058.79,88.244700128287363,5670,4759.3500000000004,83.939153439153444,4.3055466891339194,null,12820,1430,47940,62190,0.82,0.86,0.9,0.89]
[976,"EAST OF ENGLAND",63,66,63440,34.9,19,20,2420,27.3,17,18,3140,26.1,18,19,5560,26.6,4,4,990,20.3,59,61,71210,34,53,56,63645,33.9,14,15,2525,26.7,16,16,3010,26,15,16,5535,26.3,2,2,903,20.3,49,52,71417,33.1,null,60530,80,5320,38,3800,37,9120,37,1260,19,71300,73,57595,75,5520,31,3589,30,9109,30,1134,13,68227,67,54688,62,5895,22,3425,21,9320,22,1073,11,65401,55,null,56360,97,95,98,97,6540,69,58,79,77,3940,57,46,66,64,10480,64,53,74,72,1410,26,19,30,26,68540,90,87,93,91,null,52960,97,94,98,97,7069,67,58,79,77,3975,53,43,62,62,11044,62,52,73,72,1308,27,20,31,27,65580,89,86,92,91,null,51158,96,93,97,96,7569,64,54,75,75,4056,50,41,62,61,11625,59,49,71,70,1283,27,21,30,27,64282,88,84,91,90,null,49648,95,92,97,96,8031,62,51,74,74,4161,47,36,60,60,12192,57,46,70,69,1275,26,16,28,24,63376,86,82,90,89,null,47997,95,93,97,97,7753,61,52,75,76,4035,48,39,60,62,11788,56,48,70,71,1226,28,22,32,30,61256,86,83,90,90,null,48760,96,95,93,87,89,6470,71,59,62,38,42,4110,59,44,53,31,32,10580,66,53,59,35,38,2020,29,20,26,18,14,61460,88,85,85,75,77,null,46229,94,94,92,85,86,6689,66,56,62,34,38,4225,50,38,49,26,26,10914,60,49,57,31,33,2064,27,17,24,15,13,59330,85,83,83,72,74,null,46156,95,93,93,87,7348,69,52,62,37,4536,53,35,49,26,11884,63,46,57,33,2129,25,16,24,11,60266,86,81,83,73,null,52210,69.2,6328,26.4,3804,21.8,10132,24.7,2605,8.4,64955,59.8,null,50216,68.2,7027,26.4,3868,18.100000000000001,10895,23.5,2431,8.1999999999999993,63545,58.2,null,50297,69.599999999999994,7537,27.3,4309,20,11846,24.7,2389,9,64585,59.1,null,50635,66.8,7982,25.9,4623,16,12605,22.3,2447,7.4,65693,56,null,50802,61.8,7984,21.8,3966,13.1,11950,18.899999999999999,2414,7.1,65171,51.9,null,{"$f":"SUM(OX92,OX93,OX121,OX128,OX147,OX91,OX150,OX122,OX129,OX155,OX130)","v":126490},114142.06000000001,90.238010909953374,6310,5287.0499999999993,83.788431061806648,6.4495798481467261,null,11940,1430,50250,63620,0.81,0.85,0.92,0.9]
[977,"INNER LONDON",66,69,30500,34.700000000000003,30,31,1690,29,21,22,2030,26.4,25,26,3720,27.6,3,3,530,20,60,62,36570,33.700000000000003,55,59,30794,33.700000000000003,20,23,1657,27.9,14,16,1944,25.6,17,19,3601,26.7,1,1,547,19.8,50,53,36929,32.700000000000003,null,29100,85,2740,55,2600,47,5350,51,710,20,35470,78,27878,80,2980,46,2432,40,5412,43,678,19,34303,73,26815,67,3027,33,2358,31,5385,32,610,15,33140,60,null,26850,96,95,98,96,3450,78,70,84,78,2690,63,55,68,63,6130,71,63,77,71,820,29,22,30,25,34090,90,87,92,89,null,25503,96,94,97,95,3762,75,67,81,76,2638,62,53,67,63,6400,69,61,75,71,754,27,21,28,26,32899,89,85,91,88,null,24455,94,92,96,94,4012,69,60,78,72,2707,57,49,64,60,6719,65,56,72,67,698,26,19,28,26,32101,86,82,89,87,null,23150,93,90,95,93,4351,64,56,75,71,2765,54,44,62,58,7116,60,52,70,66,723,21,16,25,21,31224,83,79,87,85,null,21962,92,90,95,93,4760,62,54,74,70,2684,50,41,59,55,7444,57,49,69,65,675,19,17,22,20,30301,82,78,87,84,null,21540,97,97,96,92,92,3770,84,78,80,61,65,2850,71,58,66,47,48,6620,78,70,74,55,58,1040,32,23,31,21,19,29260,90,88,88,81,82,null,20259,95,96,96,90,91,3857,78,74,79,58,61,2684,67,54,65,44,43,6541,74,66,73,52,54,1030,30,22,30,22,18,27912,87,86,88,79,79,null,19404,96,95,96,91,4222,81,70,74,57,2907,67,51,62,41,7129,76,62,69,51,988,29,20,24,15,27584,88,84,86,78,null,17325,74.5,3770,41.8,2228,34.4,5998,39,1036,12,24364,63.1,null,15987,72.599999999999994,4285,45.4,2524,33.200000000000003,6809,40.9,1035,10.9,23835,60.8,null,15217,73.5,4432,40.6,2499,29.6,6931,36.6,1070,9.8000000000000007,23318,59.6,null,14393,68.2,4894,37.5,2651,27.8,7545,34.1,1082,7.7,23032,54.2,null,14965,62.5,4527,30.9,2362,23.7,6889,28.4,1104,6.6,22960,49.6,null,{"$f":"SUM(OX8,OX7,OX10,OX11,OX28,OX12,OX13,OX14,OX15,OX35,OX16,OX17,OX18,OX19)","v":54380},50410.78,92.700956233909523,2180,{"$f":"SUM(PB8,PB7,PB10,PB11,PB28,PB12,PB13,PB14,PB15,PB35,PB16,PB17,PB18,PB19)","v":1954.35},89.64908256880733,3.0518736651021925,null,6940,610,15290,22840,0.82,0.87,0.91,0.88]
[978,"OUTER LONDON",65,68,58730,35.1,28,29,2990,28.6,19,20,2900,26.2,23,25,5900,27.4,2,3,1020,19.399999999999999,60,62,67960,34,54,58,59107,33.799999999999997,18,20,3035,27.5,14,16,2969,25.9,16,18,6004,26.7,1,2,950,19.100000000000001,50,53,68306,32.9,null,56300,84,5290,48,3920,45,9210,47,1260,18,67490,77,53023,79,5264,44,3822,41,9086,43,1196,15,64044,72,49547,68,5773,33,3720,31,9493,32,1020,12,60642,61,null,51940,97,95,98,97,6100,77,68,84,79,4220,66,55,72,68,10320,72,63,79,74,1430,24,19,28,25,64220,91,87,93,91,null,48446,96,94,97,96,6403,74,65,82,78,4181,62,52,69,65,10584,69,60,77,73,1192,25,20,26,23,60752,90,86,92,90,null,46163,95,93,97,96,6996,71,60,79,76,4241,58,48,67,64,11237,66,56,74,72,1226,24,19,26,23,59021,88,84,91,89,null,43207,95,92,97,96,7452,67,57,78,75,4165,55,44,63,62,11617,63,52,72,71,1185,25,18,26,25,56407,86,82,90,89,null,41059,94,92,96,95,7668,66,56,76,75,3979,53,43,62,62,11647,61,52,72,70,1122,24,19,27,24,54244,85,81,89,88,null,42080,97,96,96,91,92,5910,80,72,75,55,57,4030,67,52,62,43,42,9950,75,64,69,50,51,1740,32,22,30,22,17,53890,90,88,89,81,82,null,39154,95,95,95,90,90,6330,73,66,71,50,49,4009,60,48,60,38,37,10339,68,59,67,46,44,1640,31,23,30,22,17,51293,88,85,87,79,78,null,38367,96,94,95,89,6866,75,62,69,48,4142,61,45,58,36,11008,70,56,65,43,1673,29,19,26,15,51148,88,83,86,77,null,40487,76.2,6011,36,3508,28.1,9519,33.1,1897,12,51910,66,null,38705,74,6452,33.700000000000003,3721,25.5,10173,30.7,1815,11.3,50699,63.1,null,38610,74.599999999999994,6469,31.9,3907,23.1,10376,28.6,1817,10,50911,62.9,null,37891,72,7293,30.9,4166,21.7,11459,27.5,1859,9.6,51221,59.8,null,38140,68,7026,25.4,3696,15.4,10722,22,1892,7,50761,56,null,{"$f":"SUM(OX20,OX21,OX22,OX23,OX24,OX25,OX26,OX27,OX9,OX29,OX30,OX31,OX32,OX33,OX34,OX36,OX37,OX38,OX39)","v":107890},99561.809999999983,92.280850866623396,4060,3634.8300000000008,89.527832512315285,2.7530183543081108,null,10480,1070,38610,50150,0.83,0.86,0.93,0.91]
[979,"SOUTH EAST",67,69,90600,35.5,26,27,3960,29,21,22,4200,27.3,23,24,8160,28.1,4,4,1440,20.3,62,64,102710,34.700000000000003,56,59,90571,34.4,19,20,4484,28.2,15,16,3898,26.6,17,18,8382,27.4,3,3,1450,20.3,52,54,103149,33.6,null,85730,80,8080,39,5670,36,13750,38,1800,19,101840,73,81582,75,8872,33,5122,31,13994,32,1625,14,97749,68,77457,63,9744,22,5045,22,14789,22,1483,12,94208,56,null,80490,97,95,98,98,9130,73,62,81,81,6100,58,46,68,67,15230,67,56,76,75,1920,27,21,31,28,98050,91,87,93,93,null,75817,97,95,98,98,10561,72,61,81,81,5713,54,44,66,65,16274,65,55,76,76,1821,27,20,30,28,94304,90,87,93,92,null,72422,97,94,98,97,11204,66,57,79,79,5792,51,40,63,63,16996,61,51,74,74,1840,26,19,29,27,91614,88,85,92,92,null,70154,96,94,98,97,12197,63,54,78,79,5833,46,37,60,62,18030,58,48,72,73,1821,27,19,31,28,90381,87,83,91,91,null,67555,96,93,98,97,12497,64,55,78,80,5822,47,39,60,64,18319,59,50,72,75,1673,24,17,26,25,87906,86,83,91,91,null,69060,97,96,94,87,91,9190,76,62,67,40,46,6160,61,44,55,32,34,15350,70,55,63,37,41,2840,30,18,25,18,14,87410,90,86,86,76,79,null,64623,95,95,94,86,89,10275,69,58,64,36,41,6019,54,38,52,28,29,16294,63,50,59,33,36,2739,26,17,24,16,13,83804,87,84,85,74,76,null,64401,96,94,94,88,11069,71,52,64,39,6476,54,35,50,26,17545,65,46,59,34,2714,26,16,23,13,84824,87,81,84,75,null,70374,72.900000000000006,10117,31.7,5650,20.399999999999999,15767,27.6,3465,9.5,89627,62.5,null,68189,71.099999999999994,10190,29,6069,18.5,16259,25.1,3289,8.3000000000000007,87772,60.2,null,66831,71.599999999999994,11308,29.5,6963,17.5,18271,25,3319,8.8000000000000007,88519,59.6,null,69081,69.400000000000006,11372,26.1,7045,15.1,18417,21.9,3415,8,90934,57.5,null,68233,65.2,10951,22,6831,13,17782,18.5,3474,7.6,89497,53.7,null,{"$f":"SUM(OX115,OX104,OX94,OX103,OX105,OX148,OX133,OX134,OX95,OX153,OX106,OX118,OX119,OX107,OX156,OX117,OX158,OX116,OX120)","v":171480},153921.04999999999,89.76035106134826,7880,6685.31,84.838959390862939,4.9213916704853204,null,18360,1650,66810,86810,0.8,0.85,0.92,0.9]
[980,"SOUTH WEST",65,67,51950,35.299999999999997,24,25,2460,28.4,22,23,2600,27.2,23,24,5060,27.8,4,4,790,20.399999999999999,61,62,58790,34.4,57,60,52116,34.6,18,20,2189,27.7,16,18,2433,26.7,17,19,4622,27.2,2,2,736,20,53,56,58569,33.799999999999997,null,49030,81,4800,42,3260,39,8070,40,1010,17,58410,74,47540,77,4805,35,2948,35,7753,35,869,15,56444,70,45313,65,4899,24,2967,26,7866,25,816,13,54250,58,null,46080,97,95,98,97,6040,69,58,79,76,3290,58,47,67,66,9330,65,54,74,73,1110,29,21,30,28,56720,90,87,93,92,null,43828,97,94,98,97,6334,66,55,76,76,3143,56,46,64,64,9477,62,52,72,72,956,29,22,32,30,54506,89,86,92,92,null,42972,95,93,97,97,6544,63,53,75,76,3139,52,42,62,61,9683,59,50,71,71,987,25,18,29,27,53866,88,84,91,91,null,41352,95,92,97,96,6783,57,49,72,72,3124,49,40,61,61,9907,55,46,68,69,980,25,18,31,28,52435,86,82,90,90,null,41147,94,92,97,97,6801,57,48,72,73,3026,48,40,60,61,9827,54,45,68,69,912,24,17,27,27,52072,85,82,90,90,null,40750,97,96,94,87,90,6350,74,60,65,38,44,3480,62,44,56,32,34,9830,70,54,62,36,40,1640,30,21,26,19,16,52310,89,86,86,75,79,null,38563,95,95,93,86,88,6379,68,56,64,35,40,3351,57,42,54,31,33,9730,64,51,61,34,38,1624,28,20,25,16,15,50003,87,84,85,73,76,null,38695,96,93,94,88,6908,71,52,64,38,3359,56,37,51,28,10267,66,47,60,35,1590,28,18,25,14,50648,87,81,85,75,null,45224,68.7,6334,26.8,2663,20.100000000000001,8997,24.8,2117,9.9,56349,59.5,null,43186,67.5,6972,26,2951,17.100000000000001,9923,23.4,1895,7.8,55008,57.5,null,42877,68.3,7710,28.2,2944,16.8,10654,25.1,1966,9.1999999999999993,55540,57.9,null,44003,65.599999999999994,7859,26.7,3078,14.7,10937,23.3,1983,7.8,56926,55.4,null,44872,60.9,6925,22.4,2878,11.8,9803,19.3,1930,6.8,56607,51.8,null,{"$f":"SUM(OX77,OX100,OX78,OX144,OX125,OX98,OX146,OX76,OX79,OX126,OX99,OX154,OX80,OX114,OX127,OX113)","v":109330},{"$f":"SUM(OY77,OY100,OY78,OY144,OY125,OY98,OY146,OY76,OY79,OY126,OY99,OY154,OY80,OY114,OY127,OY113)","v":98073.32},89.703942193359566,4200,3638.78,86.637619047619054,{"$f":"OZ170-PC170","v":3.0663231457405118},null,10740,1110,42830,54690,0.82,0.85,0.91,0.89]

{"sheet":"Other","index":5,"n_rows":172,"n_cols":301,"rows_kept":172,"cut":false,"hidden":false,"merged":[[5,249,5,257],[6,252,6,254],[6,255,6,257],[6,246,6,248],[6,249,6,251],[6,237,6,239],[6,240,6,242],[5,234,5,242],[6,243,6,245],[5,243,5,248],[6,225,6,227],[6,228,6,230],[6,231,6,233],[5,225,5,233],[6,234,6,236],[5,35,5,41],[4,34,4,48],[5,42,5,48],[5,34,7,34],[6,35,7,35],[6,42,7,42],[6,46,6,48],[6,36,6,38],[6,39,6,41],[6,43,6,45],[6,27,6,29],[6,30,6,32],[5,2,5,19],[6,2,6,7],[6,8,6,13],[6,14,6,19],[6,24,6,26],[6,21,6,23],[5,21,5,32],[6,286,6,300],[5,258,6,260],[5,261,6,263],[5,264,6,266],[5,267,6,269],[6,271,6,285]]}
["Local Authority other data (Please refer to source data for full data descriptions)"]
[]
[1,2,3,4,5,6,7,8,9,10,11,12,13,14,15,16,17,18,19,20,21,22,23,24,25,26,27,28,29,30,31,32,33,34,35,36,37,38,39,40,41,42,43,44,45,46,47,48,49,50,51,52,53,54,55,56,57,58,59,60,61,62,63,64,65,66,67,68,69,70,71,72,73,74,75,76,77,78,79,80,81,82,83,84,85,86,87,88,89,90,91,92,93,94,95,96,97,98,99,100,101,102,103,104,105,106,107,108,109,110,111,112,113,114,115,116,117,118,119,120,121,122,123,124,125,126,127,128,129,130,131,132,133,134,135,136,137,138,139,140,141,142,143,144,145,146,147,148,149,150,151,152,153,154,155,156,157,158,159,160,161,162,163,164,165,166,167,168,169,170,171,172,173,174,175,176,177,178,179,180,181,182,183,184,185,186,187,188,189,190,191,192,193,194,195,196,197,198,199,200,201,202,203,204,205,206,207,208,209,210,211,212,213,214,215,216,217,218,219,220,221,222,223,224,225,226,227,228,229,230,231,232,233,234,235,236,237,238,239,240,241,242,243,244,245,246,247,248,249,250,251,252,253,254,255,256,257,258,259,260,261,262,263,264,265,266,267,268,269,270,271,272,273,274,275,276,277,278,279,280,281,282,283,284,285,286,287,288,289,290,291,292,293,294,295,296,297,298,299,300,301]
[]
[null,null,null,null,null,null,null,null,null,null,null,null,null,null,null,null,null,null,null,null,null,null,null,null,null,null,null,null,null,null,null,null,null,null,"Census 2011",null,null,null,null,null,null,null,null,null,null,null,null,null,null,null,"A: Poverty and homelessness",null,null,null,null,null,null,null,null,null,null,null,"B: Vulnerable Children",null,null,null,null,null,"C: Education",null,null,null,null,null,"D: Crime & Youth Justice",null,null,null,null,"A: Mortality",null,null,null,null,null,null,null,null,null,null,null,null,"B: Injury",null,null,null,null,null,null,null,null,null,null,null,null,null,null,null,null,null,"C: Weight",null,null,null,null,null,null,"D: Alcohol, smoking and substance misuse",null,null,null,null,"E: Dental health",null,null,null,"F: Immunisations",null,null,null,null,null,null,null,null,null,null,null,null,null,null,null,null,"G: Sexually Transmitted Infection",null,"A: Teenage pregnancy",null,null,null,null,null,null,null,null,null,null,null,"B: Antenatal health",null,null,null,null,null,null,null,null,null,null,null,null,null,null,null,null,null,null,null,null,null,"C: Breastfeeding",null,null,null,null,null,null,null,null,null,null,"D: Postnatal health",null,null,null,null,null,"A: Accident & Emergency Attendances",null,null,null,null,null,null,null,null,null,null,null,null,null,null,null,null,"B: Unplanned Hospital Admissions"]
[null,null,"Disability Living Allowance - cases in payment Caseload ",null,null,null,null,null,null,null,null,null,null,null,null,null,null,null,null,null,null,"Birth data",null,null,null,null,null,null,null,null,null,null,null,null,"Total population","Population aged 0 to 15",null,null,null,null,null,null,"Population aged 16 to 24",null,null,null,null,null,null,null,"Children in poverty (under 16 years)",null,null,null,null,null,"Family homelessness",null,null,null,null,null,"Children who were the subject of a child protection plan ",null,null,null,"Children who had their annual health assessment","Children who had their teeth checked by a dentist","Children achieving a good level of development at age 5",null,null,null,"All - Pupils with statements (%)",null,"First time entrants to the Youth Justice System",null,null,null,null,"Perinatal mortality (rate per 1,000 births)","Infant mortality",null,null,null,null,null,"Child mortality (age 1-17)",null,null,null,null,null,"Hospital admissions due to injury (age under 18 years)",null,null,null,null,"Children killed or seriously injured in road traffic accidents",null,null,null,null,"Mortality from accidental injury",null,null,null,"Mortality from non-accidental injury",null,null,null,"Excess weight in 4-5 and 10-11 year olds - 4-5 year olds",null,null,"Obese and overweight prevalence - Year 6 (%)",null,null,null,"Hospital admissions due to alcohol specific conditions",null,null,null,null,"Hospital admissions for dental caries aged under 5 years",null,null,null,"Completed Diphtheria, Tetanus, Polio, Pertussis, Hib immunisation course by 2nd birthday (%).",null,null,null,"Completed Pneumococcal conjugate vaccine (by age 2 years)",null,null,null,"Population vaccination coverage - MMR for two doses (5 years old)",null,null,"Annual HPV vaccine uptake - Year 8 girls",null,null,null,null,null,"Chlamydia diagnosis rate",null,"Under 18 conceptions",null,null,null,null,null,null,"Teenage mothers",null,null,null,null,"Low birthweight of all babies",null,null,null,null,null,null,null,null,null,null,null,"Smoking status at time of delivery",null,null,null,null,null,null,null,null,null,"Breastfeeding initiation",null,null,null,null,null,"Totally and partially breastfed at 6/8 weeks",null,null,null,null,"Admission of babies aged under 14 days",null,null,null,null,null,"A&E attendances (age 0-4 years)",null,null,null,null,null,null,null,null,null,null,null,null,null,null,null,null,"Mean length of stay for non-elective admissions",null,null,null,"Zero length of stay admissions",null,null,null,"Emergency readmissions to hospital within 28 days of discharge",null,null,null,"Hospital admissions caused by unintentional and deliberate injuries in children (0 to 14 years)",null,null,null,null,null,null,null,null,"Hospital admissions caused by unintentional and deliberate injuries in young people (aged 15-24)",null,null,null,null,null,null,null,null,"Hospital admissions for asthma (Under 19 years)",null,null,null,null,null,"Hospital admissions for mental health conditions (Under 19 years)",null,null,null,null,null,null,null,null,"Hospital admissions as a result of self-harm (10 - 24 yrs) 2012/13",null,null,"Epilepsy admissions (aged under 19) 2011/12 ",null,null,"Admissions for bronchiolitis (aged under 2 years) 2011/12",null,null,"Respiratory tract infections (aged 0-4) 2011/12"]
[null,null,"2013-11-01",null,null,null,null,null,"2012-11-01",null,null,null,null,null,"2011-11-01",null,null,null,null,null,null,2013,null,null,2012,null,null,2011,null,null,2010,null,null,null,null,"Total","Long term health problem or disability:",null,null,"General health:",null,null,"Total","Long term health problem or disability:",null,null,"General health:",null,null,null,"http://atlas.chimat.org.uk/IAS/metadata/view/indicatorinstance?pid=4519&id=12549&norefer=true",null,null,null,null,null,"http://atlas.chimat.org.uk/IAS/metadata/view/indicatorinstance?pid=2630&id=12462&norefer=true",null,null,null,null,null,"http://atlas.chimat.org.uk/IAS/metadata/view/indicatorinstance?pid=5182&id=16236&norefer=true",null,null,null,"http://atlas.chimat.org.uk/IAS/metadata/view/indicatorinstance?pid=1939&id=14688&norefer=true","http://atlas.chimat.org.uk/IAS/metadata/view/indicatorinstance?pid=1938&id=14700&norefer=true","http://atlas.chimat.org.uk/IAS/metadata/view/indicatorinstance?pid=4440&id=12439&norefer=true",null,null,null,"http://atlas.chimat.org.uk/IAS/metadata/view/indicatorinstance?pid=383&id=12242&norefer=true",null,"http://atlas.chimat.org.uk/IAS/metadata/view/indicatorinstance?pid=3668&id=11467&norefer=true",null,null,null,null,"http://atlas.chimat.org.uk/IAS/metadata/view/indicatorinstance?pid=2342&id=14817&norefer=true","http://atlas.chimat.org.uk/IAS/metadata/view/indicatorinstance?pid=1&id=12582&norefer=true",null,null,null,null,null,"http://atlas.chimat.org.uk/IAS/metadata/view/indicatorinstance?pid=1805&id=12407&norefer=true",null,null,null,null,null,"http://atlas.chimat.org.uk/IAS/metadata/view/indicatorinstance?pid=4504&id=12526&norefer=true",null,null,null,null,"http://atlas.chimat.org.uk/IAS/metadata/view/indicatorinstance?pid=4465&id=12471&norefer=true",null,null,null,null,"http://atlas.chimat.org.uk/IAS/metadata/view/indicatorinstance?pid=5623&id=18127&norefer=true",null,null,null,"http://atlas.chimat.org.uk/IAS/metadata/view/indicatorinstance?pid=5624&id=18129&norefer=true",null,null,null,"http://atlas.chimat.org.uk/IAS/metadata/view/indicatorinstance?pid=5184&id=24415&norefer=true",null,null,"http://atlas.chimat.org.uk/IAS/metadata/view/indicatorinstance?pid=5186&id=16240&norefer=true",null,null,null,"http://atlas.chimat.org.uk/IAS/metadata/view/indicatorinstance?pid=4474&id=12491&norefer=true",null,null,null,null,"http://atlas.chimat.org.uk/IAS/metadata/view/indicatorinstance?pid=5190&id=16247&norefer=true",null,null,null,"http://atlas.chimat.org.uk/IAS/metadata/view/indicatorinstance?pid=2232&id=13604&norefer=true",null,null,null,"http://atlas.chimat.org.uk/IAS/metadata/view/indicatorinstance?pid=5188&id=16244&norefer=true",null,null,null,"http://atlas.chimat.org.uk/IAS/metadata/view/indicatorinstance?pid=487&id=13606&norefer=true",null,null,"http://atlas.chimat.org.uk/IAS/metadata/view/indicatorinstance?pid=3115&id=24611&norefer=true",null,null,null,null,null,"http://atlas.chimat.org.uk/IAS/metadata/view/indicatorinstance?pid=3501&id=13870&norefer=true",null,"http://atlas.chimat.org.uk/IAS/metadata/view/indicatorinstance?pid=2246&id=13416&norefer=true",null,null,null,null,null,null,"http://atlas.chimat.org.uk/IAS/metadata/view/indicatorinstance?pid=4479&id=12496&norefer=true",null,null,null,null,"http://atlas.chimat.org.uk/IAS/metadata/view/indicatorinstance?pid=4229&id=12476&norefer=true",null,null,null,null,null,null,null,null,null,null,null,"http://atlas.chimat.org.uk/IAS/metadata/view/indicatorinstance?pid=140&id=13748&norefer=true",null,null,null,null,null,null,null,null,null,"http://atlas.chimat.org.uk/IAS/metadata/view/indicatorinstance?pid=348&id=12511&norefer=true",null,null,null,null,null,"http://atlas.chimat.org.uk/IAS/metadata/view/indicatorinstance?pid=1644&id=13736&norefer=true",null,null,null,null,"http://atlas.chimat.org.uk/IAS/metadata/view/indicatorinstance?pid=5144&id=16073&norefer=true",null,null,null,null,null,"http://atlas.chimat.org.uk/IAS/metadata/view/indicatorinstance?pid=4499&id=12521&norefer=true",null,null,null,null,null,null,null,null,null,null,null,null,null,null,null,null,"http://atlas.chimat.org.uk/IAS/metadata/view/indicatorinstance?pid=5252&id=16545&norefer=true",null,null,null,"http://atlas.chimat.org.uk/IAS/metadata/view/indicatorinstance?pid=5250&id=16542&norefer=true",null,null,null,"http://atlas.chimat.org.uk/IAS/metadata/view/indicatorinstance?pid=5630&id=18159&norefer=true",null,null,null,"2010/11",null,null,"2011/12",null,null,"2012/13",null,null,"2010/11",null,null,"2011/12",null,null,"2012/13",null,null,"2011/12",null,null,"2012/13",null,null,"2010/11",null,null,"2011/12",null,null,"2012/13",null,null,null,null,null,null,null,null,null,null,null,null,null,null,null,"Number of children in need at 31 March 2013",null,null,null,null,null,null,null,null,null,null,null,null,null,null,"Number of children in need at 31 March 2014"]
["LA No","LA Name","Total","Under 5","5 to under 11","11 to under 16","16 - 17","18 - 24","Total","Under 5","5 to under 11","11 to under 16","16 - 17","18 - 24","Total","Under 5","5 to under 11","11 to under 16","16 - 17","18 - 24",null,"Population (thousands)","Total live births","% of live births under 2.5kg","Population (thousands)","Total live births","% of live births under 2.5kg","Population (thousands)","Total live births","% of live births under 2.5kg","Population (thousands)","Total live births","% of live births under 2.5kg",null,null,null,"Day-to-day activities limited a lot","Day-to-day activities limited a little","Day-to-day activities not limited","Very good or good health","Fair health ","Bad or very bad health",null,"Day-to-day activities limited a lot","Day-to-day activities limited a little","Day-to-day activities not limited","Very good or good health","Fair health","Bad or very bad health",null,"2010","Numerator","number","significance","regional","england","2011/12","Numerator","number","significance","england","regional","2011/12","Numerator","Denominator","significance","2012","2012","2012","regional","baseline","trend","2012","Numerator","2011/12","number","significance","england","regional","2009-2011","2009-2011","Numerator","number","regional","significance","england","2009-2011","significance","england","regional","number","national avg","2011/12","number","significance","england","regional","2009-2011","number","significance","england","regional","2002-2011","Numerator","Denominator","significance","2002-2011","Numerator","Denominator","significance","2011/12","Numerator","significance","2011/12","Numerator","Denominator","significance","2008/09 - 2010/11","number","significance","england","regional","2009/10 - 2011/12","Numerator","Denominator","significance","2011/12","Numerator","Denominator","number","2011/12","Numerator","Denominator","significance","2011/12","Numerator","number","2011/12","Numerator","significance","england","regional","number","2012","number","2011","baseline","trend","significance","number","regional","england","2011/12","number","significance","england","regional","2011","Numerator","number","significance","england","regional","baseline","trend","number","significance","england","regional","2011/12","Numerator","number","significance","england","regional","baseline","trend","england","regional","2011/12","Numerator","number","regional","significance","england","2011/12","Numerator","regional","england","significance","2011/12","Numerator","significance","number","england","regional","2010/11","number","number","significance","significance","england","england","regional","regional","number","significance","england","regional","baseline","baseline","trend","trend","2011/12","Numerator","Denominator","significance","2011/12","Numerator","Denominator","significance","2010/11","Numerator","Denominator","significance","Rate per 10,000 population","No of admissions","Mid-year population estimate","Rate per 10,000 population","No of admissions","Mid-year population estimate","Rate per 10,000 population","No of admissions","Mid-year population estimate","Rate per 10,000 population","No of admissions","Mid-year population estimate","Rate per 10,000 population","No of admissions","Mid-year population estimate","Rate per 10,000 population","No of admissions","Mid-year population estimate","Rate per 100,000 population","No of admissions","Mid-year population estimate","Rate per 100,000 population","No of admissions","Mid-year population estimate","Rate per 100,000 population","No of admissions","Mid-year population estimate","Rate per 100,000 population","No of admissions","Mid-year population estimate","Rate per 100,000 population","No of admissions","Mid-year population estimate","Rate per 100,000 population","No of admissions","Mid-year population estimate","Rate per 100,000 population","No of admissions","Mid-year population estimate","Rate per 100,000 population","No of admissions","Mid-year population estimate","Rate per 100,000 population","No of admissions","Mid-year population estimate",null,"Total","Disabled Children","% of Children in Need who were disabled","% Autism/ Aspergers disability","% Behaviour disability","% Communication disability","% Consciousness disability","% Hand Function disability","% Hearing disability","% Incontinence disability","% Learning disability","% Mobility disability","% Personal Care disability","% Vision disability","% Other disability","Total","Disabled Children","% of Children in Need who were disabled","% Autism/ Aspergers disability","% Behaviour disability","% Communication disability","% Consciousness disability","% Hand Function disability","% Hearing disability","% Incontinence disability","% Learning disability","% Mobility disability","% Personal Care disability","% Vision disability","% Other disability"]
[201,"City of London",160,null,null,null,null,10,160,null,null,null,null,null,160,null,null,null,null,10,null,null,null,null,null,null,null,null,null,null,null,null,null,null,7187,592,9,10,573,578,10,4,628,4,17,607,611,14,3,null,"36.6","19620","19620","worse","27.8","21.1","-","NaN","-","-","-","-","NaN","NaN","NaN","NaN","-","-","-","-","-","NaN","NaN","NaN","NaN","NaN","NaN","NaN","NaN","NaN","-","NaN","-","-","-","-","-","No data","-","-","-","-","-","-","-","-","-","-","-","-","-","-","NaN","NaN","NaN","NaN","NaN","NaN","NaN","NaN","NaN","NaN","NaN","NaN","NaN","NaN","NaN","-","-","-","-","-","NaN","NaN","NaN","NaN","NaN","NaN","NaN","NaN","NaN","NaN","NaN","NaN","NaN","NaN","NaN","NaN","NaN","NaN","NaN","NaN","NaN","1079.6","8.0","NaN","NaN","NaN","NaN","NaN","NaN","NaN","-","-","-","-","-","NaN","NaN","-","-","-","-","NaN","NaN","-","-","-","-","NaN","NaN","NaN","NaN","13.2","6.0","NaN","o","13.2","6.0","NaN","NaN","-","87.0","NaN","74.0","NaN","NaN","NaN","47.2","NaN","NaN","NaN","NaN","NaN","51.5","40.2","NaN","-","NaN","-","NaN","-","NaN","-","NaN","-","-","-","-","-","NaN","NaN","NaN","NaN","NaN","NaN","NaN","NaN","NaN","NaN","NaN","NaN","NaN","NaN","NaN",null,null,null,null,null,null,119.940029985007,8,667,null,null,null,null,null,null,null,null,726,null,null,null,null,null,null,null,null,null,null,null,null,null,null,null,null,null,null,null,null,null,null,null,null,null,null,null,null,43,"x","x","x","x","x","x","x","x","x","x","x","x","x","x",28,"x","x","x","x","x","x","x","x","x","x","x","x","x","x"]
[202,"Camden",10410,130,440,390,120,380,10380,150,420,380,120,370,10180,140,420,370,120,360,null,229.7,2766,6.7,225,2944,7.1,220.1,3117,7.8,235.4,3060,7.5,null,212443,35394,559,782,34053,34074,974,346,27191,398,747,26046,25852,1095,244,null,"34.2","11350","11350","worse","27.8","21.1","1.1","115","115","better","1.7","3.0","56.7","221","39000","higher","82.9","85.7","60.9","64.4","60.9","NaN","2.80","851","1047.9","160","worse","711.8","864.0","7.9","4.7","44","15","4.4","none","4.4","10.0","none","13.70","15.0","11","13.7","91.3","356","better","122.6","95.1","18.7","7","none","22.1","16.0","2.0","15","635136","better","2.2","18","635136","No Sig Diff","24.2","349","No Sig Diff","36.4","495","1359","No Sig Diff","41.6","16","better","55.8","35.7","626.4","190","30331","worse","94.0","2711","2883","2711.0","84.9","2447","2883","worse","70.0","1730","1730.0","76.7","749","worse","86.8","78.9","749","2701.1","909.0","18.9","49.3","++","better","50","28.7","30.7","-","-","No data","1.3","0.7","8.3","256","256","none","7.4","8.0","NaN","NaN","256","none","7.4","8.0","5.3","139","139","better","13.2","6.0","4.9","o","13.2","6.0","91.0","2397","2397","87.0","better","74.0","76.3","2105","NaN","47.2","better","52.5","139","none","139","51.5","40.2","687.2","9104","9104","worse","worse","483.9","483.9","648.4","648.4","9104","worse","483.9","648.4","687.2","687.2","NaN","NaN","1.5","4492","3035","worse","31.3","888","2839","No Sig Diff","8.8","219","2343","No Sig Diff",84.010921419784594,280,33329,82.588158402899495,278,33661,64.984817957376805,229,35239,102.169924716898,323,31614,85.8764448934716,289,33653,72.331684170934196,250,34563,164.9,69,41847,184.35975823201301,79,42851,185.94833651623301,74,39796,100,39,39005,228.26567178832701,93,40742,128.422621900406,60,44575,50.8,21,41333,1289.2,75,5669,720.5,101,13161,null,2027,382,18.8,26.7,25.9,35.9,1.8,5,6,"x",65.2,17.3,6.3,5.5,12.3,2124,381,17.900000000000002,27.3,23.400000000000002,38.800000000000004,1.6,4.7,6.6000000000000005,"x",64.3,17.600000000000001,5.8000000000000007,5.2,11.3]
[203,"Greenwich",12990,220,740,740,260,700,13010,210,690,730,250,720,12790,190,690,720,240,710,null,264,4442,7.3,260.10000000000002,4624,7.3,255.5,4561,6.7,228.5,4674,6.5,null,249991,55381,954,1293,53134,53253,1654,474,30382,726,1055,28601,28409,1549,424,null,"30.9","15950","15950","worse","27.8","21.1","1.5","142","142","none","1.7","3.0","61.5","378","61500","higher","91.5","93.9","73.4","64.4","73.4","NaN","2.90","1214","1033.5","203","worse","711.8","864.0","8.6","4.3","59","20","4.4","none","4.4","15.8","none","13.70","15.0","24","13.7","88.5","543","better","122.6","95.1","30.2","15","none","22.1","16.0","4.3","36","810686","better","2.3","20","810686","No Sig Diff","27.8","904","worse","41.3","1025","2483","worse","23.2","12","better","55.8","35.7","568.7","278","48882","worse","93.2","4146","4448","4146.0","81.7","3634","4448","worse","82.4","3436","3436.0","90.4","996","better","86.8","78.9","996","2496.6","896.0","38.1","62.6","++","worse","164","28.7","30.7","0.9","38","better","1.3","0.7","7.3","327","327","none","7.4","8.0","NaN","NaN","327","none","7.4","8.0","9.1","387","387","better","13.2","6.0","10.8","+","13.2","6.0","79.7","3377","3377","87.0","better","74.0","62.8","2664","NaN","47.2","better","28.6","124","better","124","51.5","40.2","738.3","14986","14986","worse","worse","483.9","483.9","648.4","648.4","14986","worse","483.9","648.4","738.3","738.3","NaN","NaN","1.6","5562","3506","worse","32.1","1378","4293","No Sig Diff","7.7","262","3117","better",71.217310087173104,366,51392,83.730688537097095,439,52430,90.265189033620501,483,53509,112.60547763730099,391,34723,100.587923876397,361,35889,85.619770383343095,308,35973,146.6,95,64814,222.41857347429999,146,65642,85.170990020181804,46,54009,57,35,61372,81.576505966281701,51,62518,171.80328181774399,87,50662,70.900000000000006,46,64843,905.3,80,8697,515.5,112,21095,null,4008,424,10.6,45.3,10.8,7.8,0,"x",4.2,1.7,36.299999999999997,19.100000000000001,1.7,5.7,30,3457,335,9.7000000000000011,48.400000000000006,9.9,9.6000000000000014,0,"x",5.1000000000000005,"x",36.1,18.8,2.7,6,29.900000000000002]
[204,"Hackney",12030,270,610,500,180,570,11880,210,580,520,170,540,11480,200,520,490,160,530,null,265,4500,7.6,259.7,4585,7.5,254.6,4450,7.3,230.9,4677,6.8,null,244433,51105,781,1069,49255,49097,1495,513,31459,618,988,29853,29484,1517,458,null,"36.6","19620","19620","worse","27.8","21.1","4.8","467","467","worse","1.7","3.0","34.3","196","57200","No Sig Diff","89.7","71.8","63.1","64.4","63.1","NaN","3.00","1173","1145.5","206","worse","711.8","864.0","7.8","5.0","67","22","4.4","none","4.4","22.6","worse","13.70","15.0","34","13.7","122.3","698","none","122.6","95.1","12.8","6","better","22.1","16.0","4.8","43","816405","No Sig Diff","3.2","29","816405","No Sig Diff","27.3","681","worse","41.7","935","2240","worse","29.8","15","better","55.8","35.7","701.2","318","45349","worse","89.9","3988","4436","3988.0","82.1","3643","4436","worse","71.3","2831","2831.0","62.3","843","worse","86.8","78.9","843","3158.0","1090.0","30.7","77.1","++","none","128","28.7","30.7","0.6","27","better","1.3","0.7","7.9","345","345","none","7.4","8.0","NaN","NaN","345","none","7.4","8.0","6.3","287","287","better","13.2","6.0","6.8","o","13.2","6.0","91.3","4154","4154","87.0","better","74.0","82.8","3732","NaN","47.2","better","27.6","119","better","119","51.5","40.2","736.0","14655","14655","worse","worse","483.9","483.9","648.4","648.4","14655","worse","483.9","648.4","736.0","736.0","NaN","NaN","1.4","6541","4654","worse","39.7","1861","4685","worse","7.1","287","3837","better",104.98902946664801,512,48767,122.91072156542999,603,49060,105.92239070460499,526,49659,108.610237988325,387,35632,97.002013784496697,342,35257,99.757428744693698,329,32980,235.5,141,59860,300.60447639274599,184,61210,99.847403025564702,53,53081,80.599999999999994,46,57087,71.680917515744198,42,58593,184.42631542154101,87,47766,95.2,57,59894,416.7,35,8287,255.3,52,19288,null,2206,187,8.5,8.6,3.7,"x","x",0,4.3,"x",57.2,25.1,"x",6.4,12.3,2465,190,7.7,13.700000000000001,8.4,6.3000000000000007,3.2,"x",5.8000000000000007,"x",44.2,16.3,"x",7.4,14.200000000000001]
[205,"Hammersmith and Fulham",7280,90,290,220,70,310,7290,110,250,200,90,300,7190,110,240,210,70,290,null,178.7,2552,7.3,179.9,2646,7.3,182.4,2754,6.3,169.7,2773,6.9,null,180652,29624,359,515,28750,28734,669,221,22947,327,555,22065,21942,781,224,null,"31.1","9260","9260","worse","27.8","21.1","1.7","129","129","none","1.7","3.0","40.8","133","32600","No Sig Diff","100.0","54.8","69.7","64.4","69.7","NaN","3.10","789","676.8","78","none","711.8","864.0","5.2","3.6","30","10","4.4","none","4.4","11.1","none","13.70","15.0","9","13.7","97.5","317","better","122.6","95.1","18.3","5","none","22.1","16.0","3.3","19","514245","better","2.3","15","514245","No Sig Diff","24.7","342","No Sig Diff","40.5","453","1118","worse","56.3","18","none","55.8","35.7","765.1","207","27055","worse","92.8","2589","2791","2589.0","81.4","2271","2791","worse","73.1","1811","1811.0","76.4","685","worse","86.8","78.9","685","1887.0","466.0","32.8","69.0","++","none","74","28.7","30.7","0.7","18","better","1.3","0.7","6.5","177","177","none","7.4","8.0","NaN","NaN","177","none","7.4","8.0","4.2","104","104","better","13.2","6.0","4.2","o","13.2","6.0","91.3","2280","2280","87.0","better","74.0","79.0","2011","NaN","47.2","better","40.4","104","better","104","51.5","40.2","710.5","8435","8435","worse","worse","483.9","483.9","648.4","648.4","8435","worse","483.9","648.4","710.5","710.5","NaN","NaN","1.6","3431","2180","worse","22.7","572","2525","better","8.7","182","2037","better",107.08401976935799,299,27922,92.859430035222502,261,28107,103.18323798827799,294,28493,134.67473646238301,336,24949,118.64749949382499,293,24695,128.72659008626499,288,22373,176.1,60,34064,157.46653836059801,54,34293,87.702812754494801,28,31926,86.1,28,32513,85.184058411925804,28,32870,173.933183035898,47,29838,58.7,20,34092,922.1,50,5211,721.6,91,11853,null,1555,102,6.6,40.200000000000003,"x",0,"x",0,"x",0,6.9,7.8,0,"x",34.299999999999997,1459,140,9.6000000000000014,33.6,5,0,5.7,0,"x",0,5.7,10.700000000000001,0,"x",36.4]
[206,"Islington",11810,170,500,450,160,480,11630,190,480,420,150,440,11250,170,450,410,140,430,null,215.7,2819,6.6,211,2988,6.5,206.3,3008,5.9,194.1,2952,5.8,null,200134,32807,639,829,31339,31433,1033,341,25690,501,789,24400,24061,1275,354,null,"40.9","13610","13610","worse","27.8","21.1","3.3","287","287","worse","1.7","3.0","38.8","141","36300","No Sig Diff","100.0","93.3","60.9","64.4","60.9","NaN","3.30","798","1073.5","137","worse","711.8","864.0","7.0","3.2","29","10","4.4","none","4.4","17.9","none","13.70","15.0","17","13.7","98.7","359","better","122.6","95.1","13.8","4","none","22.1","16.0","3.4","22","579851","better","3.7","28","579851","No Sig Diff","23.6","431","No Sig Diff","38.6","556","1442","worse","70.9","24","none","55.8","35.7","550.7","156","28326","worse","96.4","2526","2621","2526.0","88.4","2316","2621","worse","83.0","1879","1879.0","82.1","531","worse","86.8","78.9","531","2002.8","612.0","34.4","58.3","++","none","90","28.7","30.7","0.6","16","better","1.3","0.7","6.3","187","187","better","7.4","8.0","NaN","NaN","187","better","7.4","8.0","9.1","247","247","better","13.2","6.0","8.9","o","13.2","6.0","89.9","2438","2438","87.0","better","74.0","75.0","2121","NaN","47.2","better","47.8","139","none","139","51.5","40.2","638.8","7901","7901","worse","worse","483.9","483.9","648.4","648.4","7901","worse","483.9","648.4","638.8","638.8","NaN","NaN","1.3","4042","3150","worse","32.1","950","2964","No Sig Diff","6.9","167","2363","better",94.630067731795094,292,30857,94.875435652510703,294,30988,86.374162859110001,276,31954,132.58802276832901,389,29339,100.467977877409,307,30557,86.436170212766001,260,30080,281.3,109,38749,238.81507075531599,94,39361,198.26807009359399,68,34297,82.5,30,36385,66.794912899433598,25,37428,223.958416684909,88,39237,96.2,37,38443,1291.5999999999999,70,5308,794,103,12298,null,2011,253,12.6,27.7,9.5,5.5,0,"x",4.3,0,32.4,16.2,"x",6.3,20.9,2038,219,10.700000000000001,29.200000000000003,9.1,5.9,0,"x",4.1000000000000005,0,29.700000000000003,15.100000000000001,"x",5.9,20.100000000000001]
[207,"Kensington and Chelsea",5440,50,190,150,70,180,5400,50,180,160,60,180,5300,50,170,170,50,180,null,155.6,1803,6.8,155.9,2024,6.2,158.30000000000001,2185,6.1,169.5,2221,6.1,null,155939,24370,278,351,23741,23769,442,159,15407,223,366,14818,14730,516,161,null,"25.1","5250","5250","worse","27.8","21.1","4.1","347","347","worse","1.7","3.0","29.6","79","26700","lower","100.0","88.2","67.2","64.4","67.2","NaN","1.70","412","680.4","80","none","711.8","864.0","7.0","3.9","26","9","4.4","none","4.4","10.1","none","13.70","15.0","8","13.7","79.4","212","better","122.6","95.1","17.6","5","none","22.1","16.0","2.7","12","429421","better","2.6","14","429421","No Sig Diff","21.3","207","No Sig Diff","37.2","235","631","No Sig Diff","36.6","11","better","55.8","35.7","522.0","114","21838","worse","89.3","2069","2318","2069.0","80.5","1866","2318","worse","75.4","1500","1500.0","80.0","351","worse","86.8","78.9","351","1681.7","296.0","24.7","41.7","++","none","42","28.7","30.7","0.6","10","better","1.3","0.7","6.6","144","144","none","7.4","8.0","NaN","NaN","144","none","7.4","8.0","NaN","NaN","NaN","NaN","13.2","6.0","3.1","o","13.2","6.0","NaN","NaN","-","87.0","NaN","74.0","NaN","NaN","NaN","47.2","NaN","19.7","34","better","34","51.5","40.2","736.2","7213","7213","worse","worse","483.9","483.9","648.4","648.4","7213","worse","483.9","648.4","736.2","736.2","NaN","NaN","2.0","2988","1508","worse","25.6","461","1804","better","8.7","122","1371","No Sig Diff",87.165234967155101,207,23748,79.375294975758393,185,23307,87.067317901889993,205,23545,120.373999216169,215,17861,106.24396341117,187,17601,101.73880873104,165,16218,149.6,42,28070,135.15436050647301,38,28116,102.17534607778499,31,30340,86.2,23,26690,70.600475624256802,19,26912,106.575218935675,25,22784,53.5,15,28027,1059.0999999999999,42,3861,657.3,63,9138,null,998,105,10.5,25.7,43.8,58.1,11.4,15.2,6.7,28.6,78.099999999999994,31.4,40,14.3,6.7,1002,106,10.600000000000001,30.200000000000003,40.6,52.800000000000004,11.3,14.200000000000001,"x",27.400000000000002,69.8,26.400000000000002,36.800000000000004,14.200000000000001,15.100000000000001]
[208,"Lambeth",12930,180,730,670,240,650,12980,180,720,670,210,650,12720,200,670,670,200,640,null,314.2,4589,7.4,310.2,4825,6.5,304.5,4784,7.2,284.5,4929,7.7,null,300101,54774,907,1179,52688,52755,1530,489,37124,563,1009,35552,35085,1640,399,null,"32.7","17855","17855","worse","27.8","21.1","6.0","762","762","worse","1.7","3.0","51.2","309","60400","higher","95.5","97.0","62.7","64.4","62.7","NaN","3.60","1272","1425.3","267","worse","711.8","864.0","10.2","6.5","95","32","4.4","worse","4.4","17.3","none","13.70","15.0","27","13.7","112.8","681","better","122.6","95.1","25.4","13","none","22.1","16.0","3.3","32","880652","better","3.4","34","880652","No Sig Diff","22.7","675","No Sig Diff","38.9","953","2449","worse","26.5","14","better","55.8","35.7","736.0","354","48098","worse","92.9","4357","4689","4357.0","82.2","3853","4689","worse","76.3","3154","3154.0","81.5","839","worse","86.8","78.9","839","6131.9","2460.0","34.8","85.3","++","none","147","28.7","30.7","0.5","16","better","1.3","0.7","7.6","365","365","none","7.4","8.0","NaN","NaN","365","none","7.4","8.0","4.6","219","219","better","13.2","6.0","4.0","-","13.2","6.0","91.8","4360","4360","87.0","better","74.0","NaN","NaN","NaN","47.2","NaN","34.1","117","better","117","51.5","40.2","627.1","12984","12984","worse","worse","483.9","483.9","648.4","648.4","12984","worse","483.9","648.4","627.1","627.1","NaN","NaN","0.9","3961","4481","worse","30.4","1435","4722","No Sig Diff","7.6","243","3097","better",96.278898227769503,496,51517,107.12496628261,556,51902,100.28816258436299,529,52748,132.93906538276801,526,39567,130.863951343537,525,40118,110.433238087883,429,38847,283.2,179,63215,280.955874319072,180,64067,121.143150823223,66,54481,89.5,54,60362,78.225583025048493,48,61361,151.90131284247701,85,53527,110.5,70,63371,1148.8,104,8807,697.2,153,20666,null,3710,154,4.2,41.6,9.1,9.6999999999999993,"x","x",7.1,7.1,45.5,13.6,27.3,7.1,0,4242,40,0.9,65,"x","x",0,"x","x","x",32.5,"x","x","x",0]
[209,"Lewisham",13470,310,980,830,280,740,13540,280,940,840,250,730,13260,260,890,820,250,710,null,286.2,4827,7.5,281.60000000000002,5095,8.1,276.89999999999998,4896,7.8,266.5,4982,7.3,null,273342,57126,1059,1307,54760,55029,1656,441,32877,659,1069,31149,30713,1753,411,null,"31.7","17905","17905","worse","27.8","21.1","4.1","475","475","worse","1.7","3.0","31.1","198","63600","lower","80.9","88.2","67.8","64.4","67.8","NaN","2.70","1107","1162.6","256","worse","711.8","864.0","9.0","4.8","71","24","4.4","none","4.4","12.7","none","13.70","15.0","22","13.7","94.0","597","better","122.6","95.1","18.3","10","none","22.1","16.0","4.2","39","857335","better","2.7","24","857335","No Sig Diff","24.8","799","worse","40.1","1015","2533","worse","25.1","15","better","55.8","35.7","693.2","354","51065","worse","92.8","4311","4646","4311.0","83.0","3856","4646","worse","69.7","2978","2978.0","80.6","899","worse","86.8","78.9","899","4178.9","1536.0","39.9","80.0","++","worse","184","28.7","30.7","0.9","38","better","1.3","0.7","8.3","409","409","worse","7.4","8.0","NaN","NaN","409","worse","7.4","8.0","7.5","327","327","better","13.2","6.0","5.9","--","13.2","6.0","86.4","3790","3790","87.0","better","74.0","75.7","3340","NaN","47.2","better","35.9","154","better","154","51.5","40.2","726.3","15833","15833","worse","worse","483.9","483.9","648.4","648.4","15833","worse","483.9","648.4","726.3","726.3","NaN","NaN","0.8","5381","6559","worse","21.7","1517","6988","better","6.5","181","2752","better",73.058334269978602,390,53382,85.832948777111199,465,54175,101.648152181805,560,55092,125.151281769172,455,36356,123.517248884536,454,36756,107.797537619699,394,36550,269.5,180,66800,388.56467459555302,263,67685,87.362655824737104,52,59522,105.5,67,63507,78.988941548183206,51,64566,202.11052462747199,106,51512,68.7,46,67001,995.1,94,9339,666.9,152,22062,null,2724,405,14.9,40.5,22.2,27.7,7.7,"x",4,2.7,31.4,17.5,5.7,5.7,3,3029,424,14,43.900000000000006,21.5,24.5,6.4,"x",3.5,2.1,26.400000000000002,18.400000000000002,5.7,4.5,3.3000000000000003]
[210,"Southwark",13400,240,760,640,240,640,13410,210,720,680,220,660,13310,220,710,660,210,640,null,298.5,4706,6.8,293.5,5030,7.6,288.7,5089,8.1999999999999993,287,5131,7.8,null,282560,53294,962,1165,51167,51377,1482,435,36363,627,1075,34661,34332,1660,371,null,"31.4","16690","16690","worse","27.8","21.1","3.5","437","437","worse","1.7","3.0","46.3","273","59000","higher","93.1","90.3","69.5","64.4","69.5","NaN","2.90","1251","1175.0","229","worse","711.8","864.0","9.2","4.6","69","23","4.4","none","4.4","18.0","none","13.70","15.0","28","13.7","118.7","701","none","122.6","95.1","25.3","13","none","22.1","16.0","4.9","44","882847","No Sig Diff","2.8","31","882847","No Sig Diff","25.8","705","worse","42.8","944","2205","worse","16.9","9","better","55.8","35.7","936.4","450","48058","worse","90.2","4122","4571","4122.0","81.1","3708","4571","worse","71.4","2993","2993.0","67.8","931","worse","86.8","78.9","931","3306.0","1409.0","42.7","87.2","++","worse","180","28.7","30.7","0.9","26","better","1.3","0.7","8.5","432","432","worse","7.4","8.0","NaN","NaN","432","worse","7.4","8.0","4.4","202","202","better","13.2","6.0","4.9","+","13.2","6.0","89.7","4136","4136","87.0","better","74.0","77.4","3526","NaN","47.2","better","39.4","119","better","119","51.5","40.2","679.5","14232","14232","worse","worse","483.9","483.9","648.4","648.4","14232","worse","483.9","648.4","679.5","679.5","NaN","NaN","1.0","4320","4400","worse","33.8","1538","4551","worse","6.1","196","3132","better",98.877392033877996,495,50062,113.915524209525,575,50476,108.582046219951,561,51666,123.277033585712,508,41208,127.404974190521,543,42620,104.43247330120001,442,42324,240.4,150,62387,250.01582378631599,158,63196,92.099322799097095,51,55375,105,62,59038,89.599787615318206,54,60268,157.61975560391701,90,56148,101.3,63,62198,1100.3,103,9067,718.7,160,20913,null,3315,193,5.8,9.8000000000000007,67.900000000000006,78.8,"x",28,8.8000000000000007,"x",80.3,40.4,61.7,15,"x",2927,139,4.7,6.5,66.2,81.300000000000011,"x",28.1,10.8,"x",88.5,40.300000000000004,64,15.8,0]
[211,"Tower Hamlets",11330,330,800,610,190,570,11190,320,740,580,170,580,10800,290,670,540,160,570,null,272.89999999999998,4608,9,263,4784,9.5,256,4545,8.6999999999999993,237.9,4565,8.4,null,250343,50129,926,1038,48165,47549,1928,652,40431,632,1013,38786,38041,1862,528,null,"45.9","23350","23350","worse","27.8","21.1","3.5","329","329","worse","1.7","3.0","49.8","276","55400","higher","95.2","88.1","55.0","64.4","55.0","NaN","3.50","1477","1189.4","213","worse","711.8","864.0","NaN","5.3","71","24","4.4","none","4.4","19.3","none","13.70","15.0","28","13.7","117.2","646","none","122.6","95.1","18.9","9","none","22.1","16.0","3.4","34","848686","better","3.2","35","848686","No Sig Diff","23.9","663","No Sig Diff","40.4","981","2429","worse","60.3","30","none","55.8","35.7","1051.5","459","43652","worse","97.3","3952","4063","3952.0","93.5","3800","4063","better","93.7","3214","3214.0","84.0","1036","worse","86.8","78.9","1036","1478.9","660.0","28.5","57.8","++","none","104","28.7","30.7","0.4","19","better","1.3","0.7","NaN","NaN","-","No data","7.4","8.0","NaN","NaN","-","No data","7.4","8.0","3.9","155","155","better","13.2","6.0","4.3","+","13.2","6.0","88.3","3468","3468","87.0","better","74.0","71.1","2655","NaN","47.2","better","38.3","171","better","171","51.5","40.2","698.0","13394","13394","worse","worse","483.9","483.9","648.4","648.4","13394","worse","483.9","648.4","698.0","698.0","NaN","NaN","1.3","5806","4543","worse","38.3","1827","4775","worse","6.9","NaN","NaN","better",96.316680779000805,455,47240,106.594626290549,509,47751,81.499919704512607,406,49816,103.746137711721,460,44339,99.489109975799906,444,44628,86.912183929357795,375,43147,151.5,88,58073,155.72195348220799,94,60364,182.174073140952,94,51599,87.1,48,55096,140.49085075015199,81,57655,247.44594119957199,127,56716,115.3,67,58102,306.89999999999998,25,8042,230.6,45,18826,null,2231,223,10,31.4,"x",9.9,13,0,12.6,"x",35,22.4,6.3,10.3,4,2544,178,7,30.3,"x",10.100000000000001,10.100000000000001,0,8.4,"x",34.300000000000004,22.5,7.3000000000000007,9,8.4]
[212,"Wandsworth",10100,180,600,520,190,530,10230,190,570,540,190,510,10150,210,540,520,190,500,null,310.5,5152,6.7,308.3,5451,6.6,307.7,5477,6.8,289.60000000000002,5546,6.5,null,301648,50969,641,910,49418,49476,1144,349,31846,460,777,30609,30363,1184,299,null,"22.4","11785","11785","worse","27.8","21.1","3.6","459","459","worse","1.7","3.0","35.1","196","55800","No Sig Diff","93.1","86.2","67.8","64.4","67.8","NaN","3.80","1553","747.9","120","none","711.8","864.0","6.3","3.4","55","18","4.4","none","4.4","10.5","none","13.70","15.0","15","13.7","100.7","560","better","122.6","95.1","12.3","6","better","22.1","16.0","3.1","26","805086","better","1.2","14","805086","better","22.6","591","No Sig Diff","34.9","642","1841","No Sig Diff","45.6","23","none","55.8","35.7","500.6","242","48346","worse","92.5","4726","5110","4726.0","95.3","4870","5110","better","79.7","3476","3476.0","81.8","911","worse","86.8","78.9","911","2787.2","977.0","29.4","71.1","++","none","100","28.7","30.7","0.3","17","better","1.3","0.7","7.2","395","395","none","7.4","8.0","NaN","NaN","395","none","7.4","8.0","4.2","224","224","better","13.2","6.0","4.4","o","13.2","6.0","93.1","5008","5008","87.0","better","74.0","72.8","3913","NaN","47.2","better","34.0","178","better","178","51.5","40.2","720.9","15714","15714","worse","worse","483.9","483.9","648.4","648.4","15714","worse","483.9","648.4","720.9","720.9","NaN","NaN","0.6","3664","5871","No Sig Diff","21.5","1387","6445","better","6.8","208","2995","better",100.368573391916,482,48023,99.187721947834603,486,48998,100.90334416814601,506,50147,116.580672151722,418,35855,110.974809574074,389,35053,109.10091070228,357,32722,113.4,66,58190,161.82593597761399,96,59323,74.974047445115104,39,52018,66.5,37,55627,94.805035200758397,54,56959,216.68508600203799,92,45240,37.799999999999997,22,58265,1076.4000000000001,112,9897,747.6,179,21761,null,1425,264,18.5,33.299999999999997,22,42,5.7,7.6,4.2,17.8,54.5,21.6,30.7,6.8,33.700000000000003,1639,289,17.600000000000001,35.300000000000004,21.8,43.300000000000004,4.8000000000000007,6.6000000000000005,4.8000000000000007,18.3,51.900000000000006,18.3,28.700000000000003,8.7000000000000011,33.9]
[213,"Westminster",9370,120,310,270,100,290,9400,120,290,280,90,300,9290,110,280,280,80,300,null,226.8,2677,7,223.9,2950,7.6,219.6,3041,6.4,253.1,3059,5.5,null,213208,32444,483,583,31378,31340,790,314,22702,381,578,21743,21522,913,267,null,"36.0","11025","11025","worse","27.8","21.1","3.3","395","395","worse","1.7","3.0","26.9","97","36100","lower","96.7","90.0","65.6","64.4","65.6","NaN","2.60","770","993.0","131","worse","711.8","864.0","6.6","3.6","33","11","4.4","none","4.4","21.0","none","13.70","15.0","20","13.7","92.6","333","better","122.6","95.1","22.6","7","none","22.1","16.0","2.9","21","572441","better","2.0","18","572441","No Sig Diff","23.5","327","No Sig Diff","40.3","467","1160","worse","28.4","10","better","55.8","35.7","856.0","245","28620","worse","85.7","2234","2606","2234.0","78.8","2054","2606","worse","84.2","1802","1802.0","79.2","809","worse","86.8","78.9","809","1620.1","435.0","23.2","40.8","++","better","55","28.7","30.7","0.5","14","better","1.3","0.7","6.7","203","203","none","7.4","8.0","NaN","NaN","203","none","7.4","8.0","2.9","72","72","better","13.2","6.0","3.0","o","13.2","6.0","88.0","2187","2187","87.0","better","74.0","NaN","NaN","NaN","47.2","NaN","35.1","91","better","91","51.5","40.2","781.3","9987","9987","worse","worse","483.9","483.9","648.4","648.4","9987","worse","483.9","648.4","781.3","781.3","NaN","NaN","1.5","3618","2378","worse","25.3","684","2699","better","9.0","205","2165","No Sig Diff",88.411227239860693,269,30426,82.692307692307693,258,31200,80.398630471998004,263,32712,115.493066553362,299,25889,103.16573556797,277,26850,85.817858992379996,232,27034,102.2,39,38168,138.59140733274501,55,39685,79.615648592999307,29,36425,66.7,24,35958,42.573572454898603,16,37582,95.743595147174403,36,35984,26.2,10,38107,1057.4000000000001,61,5589,600.29999999999995,83,12732,null,1899,138,7.3,"x","x","x",0,0,"x",0,"x",0,0,"x",99.3,2017,238,11.8,32.800000000000004,15.5,17.600000000000001,"x",6.3000000000000007,"x",0,34.9,17.2,8,4.6000000000000005,37.4]
[301,"Barking and Dagenham",9750,250,680,540,170,510,9680,230,650,510,170,510,9550,220,580,500,180,460,null,194.4,3796,7.7,190.6,3957,8.1,187,3688,7.7,179.7,3729,6.7,null,184901,48286,777,1021,46488,46599,1269,418,22930,538,726,21666,21373,1177,380,null,"35.3","16405","16405","worse","27.8","21.1","2.2","150","150","worse","1.7","3.0","42.2","227","53800","No Sig Diff","96.4","94.5","60.7","64.4","60.7","NaN","2.20","817","832.1","157","none","711.8","864.0","8.9","4.5","50","17","4.4","none","4.4","15.6","none","13.70","15.0","22","13.7","97.9","524","better","122.6","95.1","15.4","7","none","22.1","16.0","6.0","37","630105","No Sig Diff","2.1","13","630105","No Sig Diff","26.7","838","worse","42.3","966","2281","worse","28.5","14","better","55.8","35.7","462.1","200","43282","worse","91.5","3574","3905","3574.0","82.9","3236","3905","worse","77.9","2920","2920.0","84.4","895","worse","86.8","78.9","895","2331.3","601.0","46.3","54.6","+","worse","173","28.7","30.7","1.3","48","none","1.3","0.7","8.3","307","307","none","7.4","8.0","NaN","NaN","307","none","7.4","8.0","NaN","NaN","NaN","NaN","13.2","6.0","12.9","o","13.2","6.0","NaN","NaN","-","87.0","NaN","74.0","54.5","1891","NaN","47.2","worse","63.7","227","worse","227","51.5","40.2","525.3","9361","9361","worse","worse","483.9","483.9","648.4","648.4","9361","worse","483.9","648.4","525.3","525.3","NaN","NaN","1.0","4210","4044","worse","39.3","1696","4312","worse","7.1","204","2802","better",92.783505154639201,414,44620,88.887922978288699,409,46013,68.150935507473605,326,47835,128.76402680229299,319,24774,136.927851047324,353,25780,111.13262342691201,287,25825,271.10000000000002,152,56060,214.37146287086301,125,58310,135.282477890401,67,49526,91.5,49,53544,91.649145506496296,51,55647,231.99248603457099,88,38762,70.900000000000006,40,56379,1484.2,110,7435,721.7,134,18697,null,2161,204,9.4,35.299999999999997,26,17.600000000000001,0,0,5.9,"x",37.299999999999997,3.9,0,6.9,8.8000000000000007,2184,168,7.7,45.800000000000004,31,17.3,0,"x",6,"x",29.200000000000003,"x",0,4.2,5.4]
[302,"Barnet",12070,280,720,670,240,670,12000,260,690,700,220,680,11590,250,660,670,230,660,null,369.1,5187,7.2,364,5585,6.9,357.5,5506,7.2,348.2,5541,6.8,null,352597,74191,986,1207,71998,72269,1412,510,39381,751,1050,37580,37481,1440,460,null,"21.2","14870","14870","none","27.8","21.1","1.8","253","253","none","1.7","3.0","31.0","258","83200","lower","97.5","82.5","69.0","64.4","69.0","NaN","2.70","1561","574.3","186","better","711.8","864.0","6.6","4.2","68","23","4.4","none","4.4","10.3","none","13.70","15.0","23","13.7","74.2","616","better","122.6","95.1","9.3","7","better","22.1","16.0","4.6","50","1066438","better","2.5","28","1066438","No Sig Diff","21.0","688","better","33.3","942","2829","No Sig Diff","37.4","29","better","55.8","35.7","121.9","74","60698","better","96.9","5320","5493","5320.0","92.0","5051","5493","No Sig Diff","87.8","4347","4347.0","66.2","1291","worse","86.8","78.9","1291","1263.6","561.0","13.8","24.2","++","better","88","28.7","30.7","0.3","16","better","1.3","0.7","7.5","412","412","none","7.4","8.0","NaN","NaN","412","none","7.4","8.0","5.2","251","251","better","13.2","6.0","5.5","o","13.2","6.0","90.7","4406","4406","87.0","better","74.0","75.4","4142","NaN","47.2","better","43.2","230","better","230","51.5","40.2","498.7","12571","12571","worse","worse","483.9","483.9","648.4","648.4","12571","worse","483.9","648.4","498.7","498.7","NaN","NaN","1.3","6149","4736","worse","36.4","1945","5344","worse","10.4","514","4545","No Sig Diff",72.940628366770497,501,68686,68.737343487065402,482,70122,69.308985266652797,501,72285,101.443620756925,442,43571,104.288674655374,463,44396,86.944708599375105,384,44166,131.19999999999999,114,86884,123.82036008299301,111,89646,156.98388383192599,124,78989,118,98,83073,167.62199481895701,143,85311,248.14698712952401,161,65486,49.3,43,87262,752.8,82,10746,492.1,132,26264,null,1833,339,18.5,33.9,14.5,22.4,0,2.1,4.0999999999999996,6.2,52.2,17.7,9.4,5,23.9,1937,302,15.600000000000001,31.8,14.600000000000001,21.5,0,2.3000000000000003,3.3000000000000003,5.6000000000000005,52.6,17.5,7.9,5.3000000000000007,24.200000000000003]
[303,"Bexley",10250,170,630,730,270,630,10280,160,590,730,250,630,10030,160,560,730,220,610,null,236.7,2959,6,234.3,3076,6.5,232.8,3172,6.3,228,2993,6,null,230902,47564,758,1018,45788,46218,1038,308,27288,500,805,25983,26028,986,274,null,"20.0","9100","9100","better","27.8","21.1","2.7","255","255","worse","1.7","3.0","20.8","113","54200","lower","100.0","93.3","71.4","64.4","71.4","NaN","2.50","1063","494.1","115","better","711.8","864.0","6.1","3.0","28","9","4.4","none","4.4","12.5","none","13.70","15.0","19","13.7","85.5","463","better","122.6","95.1","21.6","10","none","22.1","16.0","3.5","25","713659","better","1.7","12","713659","No Sig Diff","25.0","740","worse","38.0","921","2421","worse","28.4","15","better","55.8","35.7","369.6","133","35982","No Sig Diff","95.7","3050","3187","3050.0","86.0","2742","3187","worse","84.9","2551","2551.0","75.8","1244","worse","86.8","78.9","1244","1207.6","373.0","28.4","37.2","++","none","138","28.7","30.7","0.7","22","better","1.3","0.7","6.6","206","206","none","7.4","8.0","NaN","NaN","206","none","7.4","8.0","10.2","297","297","worse","13.2","6.0","12.5","++","13.2","6.0","70.8","2054","2054","87.0","worse","74.0","48.4","1277","NaN","47.2","worse","33.4","102","better","102","51.5","40.2","619.2","9356","9356","worse","worse","483.9","483.9","648.4","648.4","9356","worse","483.9","648.4","619.2","619.2","NaN","NaN","1.4","4622","3291","worse","37.2","1432","3852","worse","8.2","327","3319","better",84.555573187042398,373,44113,93.382054405196897,414,44334,85.143276348842903,383,44983,108.12419402837,327,30243,98.420098420098398,304,30888,85.910652920962207,265,30846,164.3,94,57215,167.60548778380601,97,57874,92.245603920438199,48,52035,73.900000000000006,40,54140,102.646821614488,56,54556,157.39465074978801,72,45659,57.5,33,57425,1274.9000000000001,77,6065,660.6,100,15277,null,1827,292,16,51.4,65.8,81.8,13.7,45.2,14.4,0,81.2,48.3,81.8,22.6,0,1616,307,19,43.6,59.900000000000006,87.600000000000009,14.700000000000001,49.5,16.900000000000002,0,86.300000000000011,49.800000000000004,86.300000000000011,23.8,35.200000000000003]
[304,"Brent",11820,260,660,540,160,560,11700,230,600,540,170,530,11480,220,580,520,160,520,null,317.3,5170,8.1999999999999993,314.7,5340,8.4,312.2,5228,8,256.60000000000002,5240,7.8,null,308895,62739,850,1155,60734,60411,1770,558,38407,604,922,36881,36507,1464,436,null,"29.5","18365","18365","worse","27.8","21.1","4.2","412","412","worse","1.7","3.0","21.0","148","70500","lower","98.0","87.8","63.9","64.4","63.9","NaN","2.90","1397","1471.5","303","worse","711.8","864.0","9.1","4.8","75","25","4.4","none","4.4","17.6","none","13.70","15.0","30","13.7","84.3","593","better","122.6","95.1","15.0","8","better","22.1","16.0","4.3","43","935537","better","3.2","34","935537","No Sig Diff","22.6","797","No Sig Diff","37.8","1121","2964","worse","23.3","13","better","55.8","35.7","579.4","302","52121","worse","95.4","4708","4934","4708.0","89.8","4433","4934","worse","89.1","4074","4074.0","80.7","1235","worse","86.8","78.9","1235","2090.5","889.0","22.5","47.8","++","better","118","28.7","30.7","0.6","29","better","1.3","0.7","8.6","444","444","worse","7.4","8.0","NaN","NaN","444","worse","7.4","8.0","3.1","159","159","better","13.2","6.0","3.4","+","13.2","6.0","88.0","4535","4535","87.0","better","74.0","74.1","3574","NaN","47.2","better","31.0","159","better","159","51.5","40.2","679.8","15015","15015","worse","worse","483.9","483.9","648.4","648.4","15015","worse","483.9","648.4","679.8","679.8","NaN","NaN","1.0","5098","5135","worse","37.1","2092","5638","worse","9.4","457","4586","No Sig Diff",89.442663633543603,519,58026,84.558389171125299,501,59249,85.641068033396706,518,60485,93.387058544678794,394,42190,94.530404928749505,402,42526,77.835164035789603,321,41241,232.3,172,74050,220.16207111500199,166,75399,90.918447867705098,53,58294,54,38,70364,62.789529497125599,45,71668,110.872106960953,65,59001,64.599999999999994,48,74275,1175.5999999999999,114,9451,778.8,183,22569,null,1322,132,10,45.5,6.8,9.1,"x",20.5,"x",0,25,"x",0,4.5,15.9,1413,118,8.4,40.700000000000003,17.8,22.900000000000002,5.1000000000000005,19.5,"x","x",39,"x","x",5.1000000000000005,16.100000000000001]
[305,"Bromley",11430,240,890,880,310,780,11290,220,830,890,290,730,11150,210,820,850,270,720,null,317.89999999999998,3899,6.8,314,4140,6.2,310.60000000000002,4141,6.6,312.39999999999998,4070,5.6,null,307023,60486,883,1217,58386,59042,1159,285,30013,592,988,28433,28500,1217,296,null,"17.5","10455","10455","better","27.8","21.1","3.4","458","458","worse","1.7","3.0","27.4","188","68700","lower","89.2","78.4","69.0","64.4","69.0","NaN","3.40","1779","348.7","105","better","711.8","864.0","6.1","2.6","32","11","4.4","better","4.4","14.3","none","13.70","15.0","28","13.7","72.4","496","better","122.6","95.1","11.0","7","better","22.1","16.0","5.1","42","882300","No Sig Diff","2.6","22","882300","No Sig Diff","20.3","679","better","31.2","883","2826","better","25.9","18","better","55.8","35.7","249.8","119","47645","better","96.4","4205","4362","4205.0","91.7","3998","4362","No Sig Diff","88.5","3638","3638.0","83.0","1609","worse","86.8","78.9","1609","1299.8","447.0","26.3","32.1","+","none","149","28.7","30.7","0.9","38","better","1.3","0.7","6.9","288","288","none","7.4","8.0","NaN","NaN","288","none","7.4","8.0","6.1","237","237","better","13.2","6.0","7.5","++","13.2","6.0","83.6","3259","3259","87.0","better","74.0","57.2","2299","NaN","47.2","better","14.6","59","better","59","51.5","40.2","593.4","11998","11998","worse","worse","483.9","483.9","648.4","648.4","11998","worse","483.9","648.4","593.4","593.4","NaN","NaN","1.3","4420","3300","worse","25.3","984","3891","better","7.8","238","2861","better",76.284654776620201,432,56630,83.906754669288006,478,56968,61.715625430975003,358,58008,118.59680023484501,404,34065,117.770217220623,405,34389,117.428206022556,404,34404,159.80000000000001,115,71957,128.007843884902,94,73433,90.235631431108004,62,68709,65.7,45,68498,84.776205187154204,59,69595,259.12854104173999,136,52612,18,13,72373,1012.3,81,8106,627.9,126,20189,null,1688,540,32,28,47,12.8,4.4000000000000004,1.1000000000000001,5,7.2,36.299999999999997,16.899999999999999,5.7,5.7,28.5,1972,470,23.8,48.300000000000004,25.5,14,4.3,"x",5.3000000000000007,8.3000000000000007,37.9,16,5.1000000000000005,6.2,38.1]
[306,"Croydon",15720,290,1060,1040,380,990,15600,300,960,1040,350,940,15160,310,900,1010,310,900,null,372.8,5605,8,368.9,5884,8.1,364.8,5720,8,345.6,5536,8.4,null,360230,79027,1303,1772,75952,76305,2134,588,41967,842,1286,39839,39500,1952,515,null,"25.7","18915","18915","worse","27.8","21.1","4.9","714","714","worse","1.7","3.0","32.3","288","89200","lower","78.6","57.3","64.7","64.4","64.7","NaN","2.40","1488","844.6","293","worse","711.8","864.0","8.9","4.4","72","24","4.4","none","4.4","14.8","none","13.70","15.0","35","13.7","91.9","818","better","122.6","95.1","16.6","12","none","22.1","16.0","4.4","50","1138116","better","2.3","26","1138116","No Sig Diff","24.2","1013","worse","37.5","1332","3549","worse","39.8","32","better","55.8","35.7","623.1","398","63870","worse","93.4","5056","5412","5056.0","82.4","4459","5412","worse","73.1","3682","3682.0","79.3","1621","worse","86.8","78.9","1621","2614.9","1233.0","32.8","59.1","++","none","234","28.7","30.7","1.5","78","none","1.3","0.7","8.3","476","476","worse","7.4","8.0","NaN","NaN","476","worse","7.4","8.0","8.0","409","409","better","13.2","6.0","9.1","+","13.2","6.0","87.0","4472","4472","87.0","better","74.0","67.3","3712","NaN","47.2","better","54.8","288","none","288","51.5","40.2","657.2","16598","16598","worse","worse","483.9","483.9","648.4","648.4","16598","worse","483.9","648.4","657.2","657.2","NaN","NaN","0.9","6023","7012","worse","34.3","2570","7500","worse","8.1","404","4636","better",98.069007431144499,710,72398,101.19879582840601,753,74408,96.101875898071398,729,75857,127.902485085197,596,46598,121.731385065637,574,47153,118.76127480456999,553,46564,290.3,272,93692,342.30801440415399,327,95528,103.60393694960401,84,81078,86.5,77,89044,91.481224305348903,83,90729,258.38328835935198,179,69103,42.5,40,94133,1511.1,174,11422,801.7,229,28066,null,3710,238,6.4,23.5,9.6999999999999993,43.7,4.2,16.399999999999999,5.9,15.1,65.099999999999994,24.8,20.6,16.399999999999999,0,3753,434,11.600000000000001,33.200000000000003,8.1,22.400000000000002,2.3000000000000003,6.2,4.4000000000000004,7.6000000000000005,41.5,14.700000000000001,10.600000000000001,9.2000000000000011,19.100000000000001]
[307,"Ealing",12760,260,690,600,180,600,12730,240,620,580,180,630,12500,230,580,560,180,620,null,342.5,5395,7.9,340.7,5847,7.4,339.3,5803,7.9,318.5,5861,7,null,334725,68740,870,1137,66733,66625,1630,485,38679,615,1017,37047,36724,1565,390,null,"26.1","17920","17920","worse","27.8","21.1","2.9","356","356","worse","1.7","3.0","37.8","290","76800","No Sig Diff","94.3","94.3","61.7","64.4","61.7","NaN","2.80","1505","706.6","178","none","711.8","864.0","7.9","3.9","67","22","4.4","none","4.4","19.4","worse","13.70","15.0","39","13.7","86.7","664","better","122.6","95.1","12.6","8","better","22.1","16.0","5.3","56","1015170","No Sig Diff","3.7","41","1015170","No Sig Diff","23.5","946","No Sig Diff","36.5","1187","3255","worse","46.1","31","none","55.8","35.7","754.5","444","58849","worse","96.8","5830","6021","5830.0","89.0","5361","6021","worse","84.2","4505","4505.0","74.2","1137","worse","86.8","78.9","1137","1211.9","521.0","25.7","44.3","++","better","144","28.7","30.7","0.3","19","better","1.3","0.7","8.4","488","488","worse","7.4","8.0","NaN","NaN","488","worse","7.4","8.0","3.7","222","222","better","13.2","6.0","NaN","o","13.2","6.0","89.5","5339","5339","87.0","better","74.0","65.0","3258","NaN","47.2","better","32.1","184","better","184","51.5","40.2","684.3","17049","17049","worse","worse","483.9","483.9","648.4","648.4","17049","worse","483.9","648.4","684.3","684.3","NaN","NaN","0.9","4586","5291","worse","30.8","1902","6175","No Sig Diff","8.0","400","4731","better",96.535349432971998,618,64018,85.123382809378896,554,65082,91.308402779866995,607,66478,134.04952057860399,569,42447,123.749709234706,532,42990,125.189955857877,519,41457,266.89999999999998,214,80172,286.86173264486501,235,81921,77.389209315908602,53,68485,70.5,54,76605,75.548043433722597,59,78096,259.92172886289001,159,60456,64.5,52,80584,1093.9000000000001,120,10734,811,215,25544,null,2484,321,12.9,44.5,9,15.6,"x",0,2.2000000000000002,2.8,34,20.6,"x",10,9,2594,174,6.7,42,8,13.200000000000001,"x",0,"x","x",35.1,18.400000000000002,0,8.6,13.200000000000001]
[308,"Enfield",12600,290,750,610,230,670,12350,260,700,590,210,670,11930,250,630,590,200,630,null,320.5,4908,8.1,317.3,5094,7.5,313.89999999999998,4904,8.1,294.89999999999998,5122,8.3000000000000007,null,310066,69999,958,1208,67833,67717,1707,575,37552,697,1064,35791,35399,1667,486,null,"33.7","23395","23395","worse","27.8","21.1","1.6","192","192","none","1.7","3.0","29.7","234","78900","lower","88.6","63.6","58.9","64.4","58.9","NaN","2.10","1154","1041.9","296","worse","711.8","864.0","7.5","5.4","80","27","4.4","none","4.4","12.6","none","13.70","15.0","26","13.7","86.3","678","better","122.6","95.1","16.2","11","none","22.1","16.0","4.3","43","988486","better","3.0","30","988486","No Sig Diff","26.8","1088","worse","40.7","1372","3373","worse","31.6","22","better","55.8","35.7","504.0","290","57539","worse","87.9","4022","4575","4022.0","76.5","3500","4575","worse","76.8","3435","3435.0","69.9","1262","worse","86.8","78.9","1262","1062.7","450.0","25.8","46.4","++","better","156","28.7","30.7","1.1","52","none","1.3","0.7","8.6","421","421","worse","7.4","8.0","NaN","NaN","421","worse","7.4","8.0","6.0","264","264","better","13.2","6.0","6.2","o","13.2","6.0","90.3","3963","3963","87.0","better","74.0","NaN","NaN","NaN","47.2","NaN","43.3","208","better","208","51.5","40.2","763.5","18239","18239","worse","worse","483.9","483.9","648.4","648.4","18239","worse","483.9","648.4","763.5","763.5","NaN","NaN","1.3","5856","4663","worse","33.8","1823","5394","worse","8.8","392","4294","better",87.398279828909395,566,64761,84.677846158498795,560,66133,75.131033868357406,506,67349,91.511137868753806,380,41525,81.471685637368395,345,42346,74.327231011901901,311,41842,126,104,82528,137.530381172565,116,84345,115.173801429265,83,72065,171.9,135,78548,86.119743887370305,69,80121,154.46201544774399,96,62051,61.4,51,83091,961.6,95,9930,555.5,137,24664,null,1929,362,18.8,40.6,9.6999999999999993,13.5,"x",2.5,2.2000000000000002,3.9,31.8,21.3,4.7,4.4000000000000004,0,2012,386,19.200000000000003,46.900000000000006,6.2,11.700000000000001,"x",1.8,2.1,2.6,25.900000000000002,23.8,3.4000000000000004,4.9000000000000004,0]
[309,"Haringey",11190,200,610,530,160,490,11140,190,610,500,150,510,10820,170,590,480,140,490,null,263.39999999999998,4141,7.3,258.89999999999998,4209,6.9,255.5,4227,7.6,225,4456,7,null,253236,52065,845,921,50299,50168,1401,496,29641,539,967,28135,27828,1408,405,null,"33.0","17325","17325","worse","27.8","21.1","4.3","424","424","worse","1.7","3.0","49.3","284","57600","higher","89.5","76.7","55.3","64.4","55.3","NaN","3.20","1255","1352.1","228","worse","711.8","864.0","8.1","4.3","56","19","4.4","none","4.4","14.3","none","13.70","15.0","21","13.7","85.0","490","better","122.6","95.1","21.2","10","none","22.1","16.0","5.0","42","783069","No Sig Diff","3.2","28","783069","No Sig Diff","24.1","677","worse","38.8","841","2167","worse","32.7","16","better","55.8","35.7","703.0","304","43244","worse","91.6","3745","4090","3745.0","85.2","3486","4090","worse","83.1","2988","2988.0","66.3","767","worse","86.8","78.9","767","3943.1","1297.0","36.2","62.3","++","worse","152","28.7","30.7","1.0","41","better","1.3","0.7","8.1","339","339","none","7.4","8.0","NaN","NaN","339","none","7.4","8.0","4.8","186","186","better","13.2","6.0","6.1","++","13.2","6.0","94.3","3664","3664","87.0","better","74.0","71.9","2871","NaN","47.2","better","41.4","175","better","175","51.5","40.2","749.2","13746","13746","worse","worse","483.9","483.9","648.4","648.4","13746","worse","483.9","648.4","749.2","749.2","NaN","NaN","1.5","5431","3698","worse","28.9","1179","4082","better","7.2","228","3055","better",79.743840757056603,391,49032,82.328907048008205,403,48950,69.045112172997506,341,49388,110.367177229509,361,32709,100.93332927978599,332,32893,91.731898238747505,300,32704,162.1,98,60467,199.957386130825,122,61013,150.70055392635999,74,49104,88.4,51,57670,89.3440087969486,52,58202,199.43316266890201,93,47623,67.900000000000006,41,60371,1114.0999999999999,85,7547,656,122,18019,null,3074,199,6.5,34.700000000000003,"x",0,9,0,8,0,15.1,15.1,0,7,61.8,2816,243,8.6,40.700000000000003,"x",0,7,0,6.6000000000000005,0,20.6,11.9,0,4.1000000000000005,56]
[310,"Harrow",8340,170,520,470,170,520,8260,150,490,460,180,500,7990,140,450,450,170,500,null,243.4,3559,7.9,242.4,3585,8.6,240.5,3466,8.6999999999999993,230.1,3503,9.1,null,236970,47712,653,801,46258,46325,1058,329,27545,502,711,26332,26348,907,290,null,"21.2","9655","9655","none","27.8","21.1","1.2","101","101","better","1.7","3.0","23.5","129","54800","lower","87.5","93.8","60.0","64.4","60.0","NaN","2.60","955","609.4","130","none","711.8","864.0","8.6","6.4","66","22","4.4","worse","4.4","11.0","none","13.70","15.0","16","13.7","97.1","531","better","122.6","95.1","4.4","2","better","22.1","16.0","2.9","21","717286","better","2.5","19","717286","No Sig Diff","21.4","522","No Sig Diff","36.1","727","2014","worse","28.0","14","better","55.8","35.7","372.3","140","37609","No Sig Diff","95.5","3125","3273","3125.0","89.9","2941","3273","worse","89.6","2664","2664.0","84.5","966","worse","86.8","78.9","966","1035.6","324.0","16.5","27.1","++","better","74","28.7","30.7","0.6","19","better","1.3","0.7","9.1","311","311","worse","7.4","8.0","NaN","NaN","311","worse","7.4","8.0","4.0","123","123","better","13.2","6.0","4.3","o","13.2","6.0","85.4","2656","2656","87.0","better","74.0","73.3","2205","NaN","47.2","better","54.9","179","none","179","51.5","40.2","458.1","7304","7304","better","better","483.9","483.9","648.4","648.4","7304","better","483.9","648.4","458.1","458.1","NaN","NaN","1.0","4439","4429","worse","41.2","2012","4887","worse","11.9","440","3283","worse",86.747960190083404,387,44612,91.649468521847197,413,45063,89.266179495033498,408,45706,78.200736767272005,242,30946,83.426562250279702,261,31285,86.928210971837899,267,30715,246.2,142,57685,273.61652643819701,160,58476,49.341780646179998,25,50667,56.7,31,54662,54.349795282437803,30,55198,199.594497426652,90,44895,74.099999999999994,43,58040,843.3,54,6426,600.29999999999995,96,15993,null,1313,291,22.2,33.700000000000003,15.1,13.7,7.2,"x",6.9,6.5,41.6,13.1,8.6,7.2,43.3,1714,228,13.3,37.700000000000003,18.900000000000002,14,8.3000000000000007,"x",5.3000000000000007,5.3000000000000007,44.7,10.5,9.2000000000000011,7.9,39]
[311,"Havering",9690,180,520,610,180,580,9690,180,500,570,190,560,9570,170,470,550,200,530,null,242.1,3004,6.8,239.7,2888,7.1,237.9,2895,7.2,236.1,2817,7.1,null,235671,44366,602,874,42890,43178,914,274,27133,487,731,25915,25950,943,240,null,"20.1","8810","8810","better","27.8","21.1","1.9","185","185","none","1.7","3.0","-","NaN","51000","higher","84.0","100.0","60.2","64.4","60.2","NaN","1.60","599","839.2","198","worse","711.8","864.0","8.0","4.0","34","11","4.4","none","4.4","18.9","none","13.70","15.0","27","13.7","104.9","533","better","122.6","95.1","18.0","8","none","22.1","16.0","5.8","41","692224","No Sig Diff","1.7","12","692224","No Sig Diff","23.6","635","No Sig Diff","35.0","832","2379","No Sig Diff","34.2","17","better","55.8","35.7","259.0","85","32814","No Sig Diff","94.4","2887","3057","2887.0","90.8","2775","3057","No Sig Diff","85.5","2549","2549.0","89.3","1310","better","86.8","78.9","1310","1369.1","417.0","28.0","40.7","++","none","131","28.7","30.7","1.0","27","none","1.3","0.7","7.5","217","217","none","7.4","8.0","NaN","NaN","217","none","7.4","8.0","14.8","395","395","worse","13.2","6.0","13.6","o","13.2","6.0","71.1","1902","1902","87.0","worse","74.0","NaN","NaN","NaN","47.2","NaN","107.5","297","worse","297","51.5","40.2","469.6","6581","6581","better","better","483.9","483.9","648.4","648.4","6581","better","483.9","648.4","469.6","469.6","NaN","NaN","1.0","3780","3654","worse","41.5","1614","3890","worse","7.5","170","2261","better",90.542530844822195,375,41417,103.593161402492,429,41412,76.677620612468402,322,41994,126.157830085323,380,30121,117.538906034539,358,30458,100.811085935704,307,30453,124.3,67,53913,104.543036883517,57,54523,98.170109165161406,50,50932,76.7,39,50827,77.827068254338897,40,51396,172.690753288736,78,44420,59.1,32,54153,1858.7,101,5419,930.1,127,13810,null,1155,183,15.8,30.1,18,9.8000000000000007,5.5,0,"x","x",49.2,10.4,"x","x",15.8,1125,46,4.1000000000000005,50,"x","x",0,0,"x",0,"x",0,0,0,30.400000000000002]
[312,"Hillingdon",10240,310,820,620,240,560,10100,290,760,640,200,570,9780,260,680,640,200,530,null,286.8,4330,6.7,281.8,4536,7.1,275.5,4357,8,266.10000000000002,4192,8.1,null,267227,56871,918,1146,54807,55155,1315,401,33299,591,893,31815,31709,1251,339,null,"23.7","13360","13360","worse","27.8","21.1","0.7","68","68","better","1.7","3.0","53.7","346","64400","higher","90.4","61.5","62.5","64.4","62.5","NaN","2.80","1423","810.9","202","none","711.8","864.0","8.3","4.8","61","20","4.4","none","4.4","12.7","none","13.70","15.0","22","13.7","112.1","719","better","122.6","95.1","15.2","8","none","22.1","16.0","5.2","47","870583","No Sig Diff","2.5","24","870583","No Sig Diff","20.9","742","No Sig Diff","35.5","1018","2868","No Sig Diff","50.7","30","none","55.8","35.7","554.4","258","46536","worse","96.5","4046","4194","4046.0","91.2","3825","4194","No Sig Diff","88.6","3353","3353.0","87.2","1534","worse","86.8","78.9","1534","1442.1","589.0","27.9","43.9","++","none","143","28.7","30.7","0.6","23","better","1.3","0.7","8.4","365","365","worse","7.4","8.0","NaN","NaN","365","worse","7.4","8.0","8.3","326","326","better","13.2","6.0","9.7","+","13.2","6.0","83.3","3260","3260","87.0","better","74.0","60.4","2347","NaN","47.2","better","43.8","183","better","183","51.5","40.2","598.3","11858","11858","worse","worse","483.9","483.9","648.4","648.4","11858","worse","483.9","648.4","598.3","598.3","NaN","NaN","0.9","4404","4855","worse","38.3","2007","5237","worse","9.8","422","4208","No Sig Diff",97.550850975508496,517,52998,112.234486596791,605,53905,85.910961735473293,478,55639,148.84219663509401,583,39169,135.638037410636,554,40844,102.461001840907,423,41284,151.4,103,68020,148.80952380952399,104,69888,106.80776245953599,65,60857,90.5,58,64120,39.414243701300698,26,65966,191.257022696749,112,58018,74.7,51,68230,1166.8,94,8118,702.7,141,19969,null,1954,152,7.8,33.6,18.399999999999999,33.6,7.2,10.5,3.9,17.8,54.6,38.200000000000003,26.3,16.399999999999999,21.7,2334,167,7.2,31.700000000000003,19.200000000000003,31.700000000000003,5.4,8.4,4.2,15,47.900000000000006,35.300000000000004,25.1,14.4,19.8]
[313,"Hounslow",10050,170,590,540,180,500,10100,180,560,520,180,500,10000,190,520,530,160,520,null,262.39999999999998,4443,7.4,259.10000000000002,4621,6.9,254.9,4561,7.3,236.8,4433,7.3,null,251961,51517,695,914,49908,49949,1194,374,29325,482,766,28077,27896,1126,303,null,"25.7","12845","12845","worse","27.8","21.1","4.2","388","388","worse","1.7","3.0","37.5","216","57600","No Sig Diff","95.5","93.2","59.4","64.4","59.4","NaN","2.50","981","736.1","137","none","711.8","864.0","7.4","4.5","60","20","4.4","none","4.4","17.0","none","13.70","15.0","26","13.7","82.5","474","better","122.6","95.1","18.8","9","none","22.1","16.0","5.2","42","752449","No Sig Diff","2.7","23","752449","No Sig Diff","22.6","682","No Sig Diff","38.6","946","2450","worse","45.6","23","none","55.8","35.7","707.6","320","45225","worse","94.7","4224","4462","4224.0","85.5","3814","4462","worse","75.8","2994","2994.0","85.6","1134","worse","86.8","78.9","1134","1859.1","615.0","30.0","49.6","++","none","128","28.7","30.7","0.6","27","better","1.3","0.7","7.9","353","353","none","7.4","8.0","NaN","NaN","353","none","7.4","8.0","4.9","219","219","better","13.2","6.0","7.5","++","13.2","6.0","84.5","3767","3767","87.0","better","74.0","NaN","NaN","NaN","47.2","NaN","15.8","69","better","69","51.5","40.2","744.9","14259","14259","worse","worse","483.9","483.9","648.4","648.4","14259","worse","483.9","648.4","744.9","744.9","NaN","NaN","1.4","4525","3216","worse","26.7","1015","3806","better","8.2","230","2681","better",82.015354281159503,391,47674,81.305808142868798,397,48828,76.8666917606038,388,50477,135.871228349348,444,32678,133.31318016928699,441,33080,125.31173989347,407,32479,152.4,92,60350,157.42213226671799,98,62253,91.152399053566597,47,51562,67.8,39,57487,57.347186614492003,34,59288,327.21933426096399,156,46219,49.5,30,60563,958.6,82,8318,656.9,136,19842,null,1758,317,18,23.7,21.1,29.3,7.3,5,8.8000000000000007,15.8,60.9,16.7,23.7,10.1,18.3,1822,292,16,24.700000000000003,21.200000000000003,26.700000000000003,7.2,4.8000000000000007,8.2000000000000011,13.4,60.300000000000004,16.100000000000001,21.900000000000002,9.6000000000000014,15.4]
[314,"Kingston upon Thames",4550,80,390,320,110,280,4490,100,340,310,110,270,4340,100,330,300,100,270,null,166.8,2112,7.1,163.9,2328,6.9,160.4,2289,6.1,169,2312,7.1,null,156358,30220,360,512,29348,29531,541,148,19355,253,506,18596,18458,739,158,null,"15.0","4335","4335","better","27.8","21.1","1.8","123","123","none","1.7","3.0","26.8","91","33900","lower","88.9","83.3","71.5","64.4","71.5","NaN","2.50","673","465.1","64","better","711.8","864.0","5.6","3.9","27","9","4.4","none","4.4","8.6","none","13.70","15.0","8","13.7","89.3","301","better","122.6","95.1","7.7","2","better","22.1","16.0","3.4","19","492613","better","2.4","14","492613","No Sig Diff","16.4","291","better","27.3","391","1431","better","28.0","9","better","55.8","35.7","240.4","61","25375","No Sig Diff","96.1","2509","2610","2509.0","87.2","2276","2610","worse","83.3","2049","2049.0","77.4","817","worse","86.8","78.9","817","1770.3","409.0","22.1","30.9","++","better","56","28.7","30.7","0.5","10","better","1.3","0.7","6.1","140","140","better","7.4","8.0","NaN","NaN","140","better","7.4","8.0","5.6","139","139","better","13.2","6.0","5.6","o","13.2","6.0","89.4","2212","2212","87.0","better","74.0","71.6","1822","NaN","47.2","better","42.7","93","none","93","51.5","40.2","617.3","6772","6772","worse","worse","483.9","483.9","648.4","648.4","6772","worse","483.9","648.4","617.3","617.3","NaN","NaN","2.0","3613","1851","worse","34.9","727","2082","worse","8.7","146","1594","No Sig Diff",83.081839162080598,234,28165,102.56768071448499,294,28664,75.946803483426706,225,29626,73.552217643670502,166,22569,73.150673072761094,169,23103,63.753825229513801,150,23528,131.69999999999999,47,35677,174.24923085300401,64,36729,67.768643743186303,23,33939,71.2,24,33692,48.686886044047299,17,34917,108.781741910397,35,32097,39.200000000000003,14,35741,1117.2,52,4555,627.20000000000005,72,11094,null,1085,164,15.1,40.200000000000003,3.7,6.7,"x",0,"x",0,29.3,22,"x",3.7,4.3,916,160,17.5,43.800000000000004,4.4000000000000004,8.8000000000000007,"x",0,"x",0,26.3,19.400000000000002,"x",4.4000000000000004,5]
[315,"Merton",6340,140,380,370,130,410,6370,130,360,380,130,390,6290,130,360,380,130,390,null,203.2,3370,6.4,202.2,3476,6.5,200.5,3537,6.6,208.8,3523,6,null,198217,38820,469,678,37673,37756,843,221,20474,339,567,19568,19475,815,184,null,"18.3","7065","7065","better","27.8","21.1","0.8","69","69","better","1.7","3.0","39.9","173","43400","No Sig Diff","93.3","93.3","65.5","64.4","65.5","NaN","3.10","962","880.7","142","worse","711.8","864.0","8.0","4.0","42","14","4.4","none","4.4","21.1","none","13.70","15.0","25","13.7","94.8","410","better","122.6","95.1","6.1","2","better","22.1","16.0","4.3","25","577116","No Sig Diff","1.7","10","577116","No Sig Diff","21.3","501","No Sig Diff","35.6","595","1673","No Sig Diff","42.8","18","none","55.8","35.7","575.8","198","34387","worse","90.0","2835","3150","2949.0","74.7","2354","3150","worse","77.0","2174","2179.0","81.1","845","worse","86.8","78.9","1799","1628.4","371.0","27.6","51.0","++","none","84","28.7","30.7","0.7","23","better","1.3","0.7","7.1","251","251","none","7.4","8.0","NaN","NaN","251","none","7.4","8.0","6.6","206","206","better","13.2","6.0","5.4","-","13.2","6.0","81.6","2549","2549","87.0","better","74.0","61.5","1928","NaN","47.2","better","42.3","143","better","143","51.5","40.2","698.2","10769","10769","worse","worse","483.9","483.9","648.4","648.4","10769","worse","483.9","648.4","698.2","698.2","NaN","NaN","1.0","4110","4231","worse","23.2","1048","4524","better","7.7","181","2258","better",99.058669001751298,362,36544,101.45829387732999,375,36961,83.631390700610098,318,38024,117.938898076421,271,22978,114.12017732519899,260,22783,110.47201679905,242,21906,191.6,87,45402,188.94256575416,88,46575,102.45901639344299,44,42944,74,32,43271,78.736614775488206,35,44452,207.28311422317501,67,32314,37.200000000000003,17,45687,866.5,57,6494,600.9,95,15004,null,1486,281,18.899999999999999,32,21.7,27.4,"x","x",3.6,8.5,52.7,19.2,12.8,10,8.9,1603,276,17.2,34.4,20.700000000000003,25,"x","x",6.5,8.3000000000000007,51.1,15.9,10.9,9.1,9.4]
[316,"Newham",14020,240,790,690,230,710,13970,250,740,670,230,730,13750,250,730,670,210,720,null,318.2,6267,9.6999999999999993,314.10000000000002,6426,9.4,310.5,6335,10.3,240.1,6262,10.6,null,306009,69894,1144,1342,67408,67069,2117,708,47981,872,1280,45829,45259,2164,558,null,"34.3","23990","23990","worse","27.8","21.1","1.7","156","156","none","1.7","3.0","-","NaN","78100","higher","95.6","94.1","63.6","64.4","63.6","NaN","0.80","468","1341.9","306","worse","711.8","864.0","8.5","5.2","97","32","4.4","none","4.4","18.0","none","13.70","15.0","35","13.7","91.9","715","better","122.6","95.1","15.8","10","none","22.1","16.0","4.3","50","1077724","better","3.9","46","1077724","worse","23.5","1032","No Sig Diff","39.6","1355","3422","worse","25.2","17","better","55.8","35.7","835.3","503","60219","worse","90.8","5790","6379","5790.0","81.2","5179","6379","worse","77.3","4796","4796.0","91.2","1577","better","86.8","78.9","1577","1870.7","989.0","26.9","59.9","++","none","159","28.7","30.7","0.6","40","better","1.3","0.7","11.0","679","679","worse","7.4","8.0","NaN","NaN","679","worse","7.4","8.0","5.5","345","345","better","13.2","6.0","4.5","-","13.2","6.0","88.7","5533","5533","87.0","better","74.0","NaN","NaN","NaN","47.2","NaN","21.6","135","better","135","51.5","40.2","678.9","17496","17496","worse","worse","483.9","483.9","648.4","648.4","17496","worse","483.9","648.4","678.9","678.9","NaN","NaN","1.5","6651","4435","worse","30.0","1550","5172","better","6.7","282","3938","better",82.512033004813205,540,65445,80.817253121452893,534,66075,72.773972602739704,493,67744,131.3268953532,665,50637,112.92061510526,597,52869,103.562551781276,525,50694,220,180,81808,285.02939738345401,239,83851,120.58180721983599,80,66345,79.7,62,77828,66.446848789539004,53,79763,167.56612306815299,121,70155,92.5,76,82141,1175.2,130,10721,676.3,182,25559,null,3691,563,15.3,24,37.799999999999997,33.9,4.0999999999999996,3.7,9.8000000000000007,15.5,42.8,19.899999999999999,20.2,10.3,16.2,3313,458,13.8,25.3,38,32.5,4.6000000000000005,2.6,11.100000000000001,14.200000000000001,36,19,19,12.4,17.5]
[317,"Redbridge",10610,190,570,560,200,540,10570,180,550,560,180,550,10300,170,500,550,190,520,null,288.3,4591,8.3000000000000007,284.60000000000002,4792,8.6,281.39999999999998,4605,8.5,270.5,4462,7.7,null,277323,62849,830,1044,60975,60966,1506,377,33081,612,789,31680,31485,1262,334,null,"25.0","14830","14830","worse","27.8","21.1","2.9","291","291","worse","1.7","3.0","19.9","141","71000","lower","96.7","93.3","63.4","64.4","63.4","NaN","2.30","1273","691.9","192","none","711.8","864.0","9.1","4.6","61","20","4.4","none","4.4","10.6","none","13.70","15.0","20","13.7","93.3","657","better","122.6","95.1","15.1","9","better","22.1","16.0","4.0","35","875946","better","2.6","23","875946","No Sig Diff","24.5","916","worse","38.5","1215","3155","worse","32.9","21","better","55.8","35.7","251.0","126","50201","better","93.4","4130","4423","4130.0","84.8","3750","4423","worse","77.1","3180","3180.0","76.9","1294","worse","86.8","78.9","1294","1286.5","478.0","25.5","25.9","o","better","139","28.7","30.7","0.7","30","better","1.3","0.7","8.9","413","413","worse","7.4","8.0","NaN","NaN","413","worse","7.4","8.0","5.2","201","201","better","13.2","6.0","5.9","+","13.2","6.0","87.5","3409","3409","87.0","better","74.0","65.8","2805","NaN","47.2","better","70.3","311","worse","311","51.5","40.2","512.6","10526","10526","worse","worse","483.9","483.9","648.4","648.4","10526","worse","483.9","648.4","512.6","512.6","NaN","NaN","1.0","5236","5001","worse","37.0","1953","5278","worse","6.7","248","3603","better",80.437248633598003,468,58182,87.369865765072106,522,59746,67.983433163374798,412,60603,136.99008479023399,496,36207,112.767789858973,419,37156,101.824698598892,375,36828,252.9,187,73939,226.208429240416,171,75594,148.60868905906401,98,65945,82.4,58,70385,77.855633411189004,56,71928,195.286350690576,107,55353,57.5,43,74727,1436.1,127,8838,726,160,21829,null,1969,492,25,40.200000000000003,8.3000000000000007,11.4,8.5,1.8,4.0999999999999996,4.9000000000000004,55.5,18.100000000000001,6.7,5.3,19.899999999999999,2363,498,21.1,43,8,10.200000000000001,9,1.4000000000000001,3.8000000000000003,4.6000000000000005,53.400000000000006,16.5,6.4,5,19.5]
[318,"Richmond upon Thames",4790,100,300,310,70,300,4730,90,280,290,70,300,4600,90,260,260,80,280,null,191.4,2805,6.1,189.1,2916,6.2,187.5,2935,6.5,190.9,2992,5.5,null,184098,36824,341,521,35962,36133,553,138,14994,201,390,14403,14337,525,132,null,"10.5","3670","3670","better","27.8","21.1","2.0","164","164","none","1.7","3.0","11.3","46","40700","lower","100.0","90.9","72.1","64.4","72.1","NaN","2.40","737","398.6","66","better","711.8","864.0","5.0","3.3","29","10","4.4","none","4.4","13.1","none","13.70","15.0","15","13.7","84.6","343","better","122.6","95.1","13.4","5","none","22.1","16.0","3.4","17","512702","better","1.9","9","512702","No Sig Diff","17.6","379","better","25.5","346","1357","better","40.8","17","better","55.8","35.7","146.0","47","32201","better","94.6","2835","2998","2835.0","83.6","2506","2998","worse","79.4","2303","2303.0","79.8","749","worse","86.8","78.9","749","1307.9","238.0","19.8","23.1","+","better","53","28.7","30.7","0.3","7","better","1.3","0.7","6.7","195","195","none","7.4","8.0","NaN","NaN","195","none","7.4","8.0","3.2","86","86","better","13.2","6.0","4.2","++","13.2","6.0","89.6","2440","2440","87.0","better","74.0","NaN","NaN","NaN","47.2","NaN","29.1","77","better","77","51.5","40.2","504.4","6889","6889","worse","worse","483.9","483.9","648.4","648.4","6889","worse","483.9","648.4","504.4","504.4","NaN","NaN","1.8","3545","2012","worse","31.8","755","2376","No Sig Diff","8.1","135","1744","better",88.096819849224502,305,34621,97.752266204427301,344,35191,93.007897416141503,338,36341,103.61552028218701,188,18144,117.052261361763,213,18197,104.089219330855,182,17485,118,50,42382,93.982808022922598,41,43625,86.142949438874396,36,41791,76.400000000000006,31,40559,66.907214031398595,28,41849,275.230064392354,73,27470,32.799999999999997,14,42623,922.4,54,5887,598.70000000000005,86,14083,null,785,224,28.5,27.2,9.8000000000000007,12.1,3.6,"x",7.6,"x",56.7,27.7,4,8,9.4,788,227,28.8,34.4,7.9,11.5,3.5,"x",7.9,"x",50.7,25.1,3.5,7.9,10.100000000000001]
[319,"Sutton",7170,160,480,510,190,520,7190,150,490,500,180,510,7080,140,460,510,180,500,null,195.9,2629,7.6,193.6,2708,6.4,191.1,2756,6,194.2,2675,6.6,null,188695,37979,519,772,36688,37046,751,182,19613,385,661,18567,18584,825,204,null,"17.4","6560","6560","better","27.8","21.1","1.7","140","140","none","1.7","3.0","40.0","173","43200","No Sig Diff","100.0","90.9","69.2","64.4","69.2","NaN","3.20","1108","510.7","100","better","711.8","864.0","5.9","2.4","20","7","4.4","better","4.4","13.3","none","13.70","15.0","16","13.7","110.2","475","better","122.6","95.1","12.2","5","better","22.1","16.0","4.6","25","562752","No Sig Diff","2.2","12","562752","No Sig Diff","20.3","417","better","33.9","626","1847","No Sig Diff","45.5","20","none","55.8","35.7","489.1","147","30058","worse","90.0","2572","2859","2458.0","74.7","2136","2859","worse","77.0","2059","2054.0","81.1","954","worse","86.8","78.9","1799","1758.5","391.0","30.5","38.8","++","none","113","28.7","30.7","0.9","24","better","1.3","0.7","6.3","175","175","better","7.4","8.0","NaN","NaN","175","better","7.4","8.0","6.6","160","160","better","13.2","6.0","5.4","-","13.2","6.0","81.6","1988","1988","87.0","better","74.0","61.5","1504","NaN","47.2","better","62.9","167","worse","167","51.5","40.2","666.6","8667","8667","worse","worse","483.9","483.9","648.4","648.4","8667","worse","483.9","648.4","666.6","666.6","NaN","NaN","1.6","4825","3034","worse","26.4","801","3031","better","6.1","128","2037","better",101.696819867401,362,35596,120.411077819159,430,35711,103.648197779358,379,36566,132.84969394695099,293,22055,109.736901281763,244,22235,127.541757443718,281,22032,134.80000000000001,61,45240,144.241119483315,67,46450,118.67539995892,52,43817,109.1,47,43085,113.744938350243,50,43958,329.12840900184301,110,33346,74.7,34,45520,1039.7,54,5200,727.9,94,12870,null,2033,261,12.8,48.7,80.099999999999994,70.099999999999994,16.899999999999999,32.6,7.3,32.6,"x",44.8,0,8.4,0,1298,80,6.2,42.5,76.3,62.5,21.3,23.8,8.8000000000000007,31.3,"x",42.5,0,12.5,"x"]
[320,"Waltham Forest",10590,200,650,490,180,540,10550,210,630,490,180,540,10190,220,570,490,160,510,null,265.8,4721,8.6,262.60000000000002,4832,8.8000000000000007,259.7,4811,8.6,227.1,4823,9,null,256615,55112,816,1015,53281,53056,1539,517,32492,569,821,31102,30683,1431,378,null,"30.4","16845","16845","worse","27.8","21.1","5.8","524","524","worse","1.7","3.0","29.9","184","61600","lower","92.9","92.9","63.5","64.4","63.5","NaN","3.10","1299","745.4","151","none","711.8","864.0","8.3","5.6","79","26","4.4","worse","4.4","16.3","none","13.70","15.0","27","13.7","117.2","719","none","122.6","95.1","12.3","6","better","22.1","16.0","5.8","49","805119","No Sig Diff","1.7","15","805119","No Sig Diff","21.7","698","No Sig Diff","38.2","969","2535","worse","40.5","22","better","55.8","35.7","498.0","241","48396","worse","94.7","4332","4573","4332.0","87.1","3984","4573","worse","81.5","3318","3318.0","75.6","1047","worse","86.8","78.9","1047","1931.9","692.0","31.2","56.0","++","none","140","28.7","30.7","0.8","37","better","1.3","0.7","8.9","430","430","worse","7.4","8.0","NaN","NaN","430","worse","7.4","8.0","6.6","290","290","better","13.2","6.0","6.6","o","13.2","6.0","89.8","3933","3933","87.0","better","74.0","NaN","NaN","NaN","47.2","NaN","39.9","186","better","186","51.5","40.2","521.4","10686","10686","worse","worse","483.9","483.9","648.4","648.4","10686","worse","483.9","648.4","521.4","521.4","NaN","NaN","1.1","5570","4977","worse","38.1","1984","5211","worse","7.9","310","3951","better",92.328026901471404,475,51447,103.529951100245,542,52352,81.010112296776398,435,53697,176.207691650773,619,35129,147.407800329434,528,35819,140.26497695852501,487,34720,356.8,230,64465,318.746869450389,210,65883,140.809473950247,78,55394,146.69999999999999,90,61352,105.040345041618,66,62833,330.60391784040098,166,49495,83.3,54,64814,1002,89,8688,591.4,129,20944,null,2391,161,6.7,36.6,3.7,"x",0,0,5,0,50.9,21.1,0,10.6,30.4,2519,132,5.2,34.1,4.5,"x","x",0,"x",0,38.6,22,0,9.1,28.8]
[330,"Birmingham",65489.999999999993,1420,4019.9999999999995,3800,1410,3880,65450,1390,3790,3720,1300,3880,64290.000000000007,1400,3540,3730,1240,3670,null,1092.3,17421,9.1,1085.4000000000001,17766,8.8000000000000007,1074.3,17423,9.6,1036.9000000000001,17240,8.1999999999999993,null,1051366,244471,4794,6387,233290,234025,7998,2448,146445,3345,5072,138028,137301,7132,2012,null,"33.5","79485","79485","worse","23.8","21.1","7.4","3020","3020","worse","1.7","2.9","46.3","1271","274400","higher","83.2","89.9","62.5","63.2","62.5","NaN","3.20","6123","779.7","814","worse","711.8","613.0","11.0","7.5","389","130","5.9","worse","4.4","16.4","none","13.70","14.0","120","13.7","124.1","3403","none","122.6","126.1","32.9","77","worse","22.1","22.5","4.9","199","3853981","better","2.1","91","3853981","better","24.4","3323","worse","40.0","4904","12256","worse","43.1","109","better","55.8","58.2","27.2","53","195128","better","94.5","15913","16831","15913.0","88.8","14946","16831","worse","82.9","12772","12772.0","84.2","5400","none","86.8","87.8","5400","2344.7","4065.0","34.3","58.3","++","worse","746","34.9","30.7","1.2","213","none","1.3","1.6","9.9","1735","1735","worse","7.4","8.3","NaN","NaN","1735","worse","7.4","8.3","11.6","1949","1949","worse","13.2","15.4","12.4","o","13.2","15.4","68.0","11403","11403","67.4","worse","74.0","NaN","NaN","40.8","47.2","NaN","54.0","934","none","934","51.5","52.7","590.5","48088","48088","worse","worse","483.9","483.9","471.4","471.4","48088","worse","483.9","471.4","590.5","590.5","NaN","NaN","0.3","7411","25908","better","46.8","13391","28628","worse","11.1","2677","23540","worse",128.67687368702701,2934,228013,123.600482936532,2846,230258,100.296937376724,2334,232709,160.29302648780401,2722,169814,143.04418796467701,2480,173373,118.789825122832,2101,176867,376.5,1094,290567,435.25311248647301,1275,292933,124.555020313863,317,254506,122.2,335,274135,76.140574987640704,211,277119,335.930836759263,853,249208,72.8,211,290013,2554,849,32993,1418.1,1175,82111,null,11390,1027,9,29.7,7.1,2.9,1.3,"x",1.6,"x",21.2,12.6,0.9,1.8,42.6,9205,1015,11,28,7.9,3.5,1,"x",1.9000000000000001,"x",20.8,12.200000000000001,1.3,2.6,44]
[331,"Coventry",18840,420,1020,1020,360,1080,18790,360,950,1000,360,1060,18420,350,860,980,340,1050,null,329.8,4495,7.8,323.10000000000002,4731,8.3000000000000007,316.89999999999998,4801,7.3,315.7,4726,7.4,null,307730,62818,1223,1452,60143,60697,1625,496,43737,796,1380,41561,41370,1896,471,null,"27.0","16845","16845","worse","23.8","21.1","3.5","446","446","worse","1.7","2.9","59.9","423","70600","higher","63.1","66.7","61.7","63.2","61.7","NaN","2.30","1243","464.2","134","better","711.8","613.0","7.5","5.6","79","26","5.9","worse","4.4","15.5","none","13.70","14.0","30","13.7","152.6","1075","worse","122.6","126.1","36.0","22","worse","22.1","22.5","3.7","42","1059534","better","2.3","31","1059534","No Sig Diff","24.5","968","worse","35.3","1192","3372","No Sig Diff","70.5","48","worse","55.8","58.2","34.8","18","51733","better","98.2","4403","4485","4403.0","95.0","4260","4485","better","93.3","3584","3584.0","90.4","1618","better","86.8","87.8","1618","2081.6","1127.0","48.9","60.5","+","worse","285","34.9","30.7","1.7","80","worse","1.3","1.6","7.6","367","367","none","7.4","8.3","NaN","NaN","367","none","7.4","8.3","13.0","616","616","none","13.2","15.4","15.0","+","13.2","15.4","74.7","3545","3545","67.4","none","74.0","40.3","2019","40.8","47.2","none","37.6","174","better","174","51.5","52.7","602.3","13087","13087","worse","worse","483.9","483.9","471.4","471.4","13087","worse","483.9","471.4","602.3","602.3","NaN","NaN","0.7","4372","5853","No Sig Diff","35.1","2232","6350","worse","8.8","456","4979","better",128.938356164384,753,58400,143.66158960615999,847,58958,173.003486634567,1042,60230,155.35165787193799,789,50788,159.40155153306199,863,54140,130.48231857043001,728,55793,216.7,164,75667,303.756366445396,232,76377,90.823860307043205,62,68264,71,50,70425,44.546530242917797,32,71835,447.65760293819602,343,73353,97.3,73,75034,1673.7,161,9467,1128.5999999999999,265,22585,null,3085,341,11.1,31.4,32.6,19.600000000000001,4.4000000000000004,4.7,7.3,11.1,46.6,20.8,10,13.8,7.3,4637,371,8,37.200000000000003,34,21.8,5.7,4.9000000000000004,7.3000000000000007,11.100000000000001,44.5,19.700000000000003,11.100000000000001,14.3,9.4]
[332,"Dudley",18370,320,870,900,380,910,18480,320,870,910,310,890,18200,280,850,900,300,830,null,314.39999999999998,3853,7.6,313.60000000000002,3966,7.6,313.3,3712,7.7,307.39999999999998,3779,8.3000000000000007,null,310398,59268,986,1487,56795,57483,1396,389,33594,699,1146,31749,31767,1470,357,null,"23.1","13330","13330","worse","23.8","21.1","1.0","121","121","better","1.7","2.9","31.8","215","67700","lower","85.6","64.4","60.6","63.2","60.6","NaN","3.60","1726","457.2","137","better","711.8","613.0","7.1","4.2","47","16","5.9","none","4.4","12.9","none","13.70","14.0","24","13.7","126.2","855","none","122.6","126.1","32.1","19","worse","22.1","22.5","6.6","60","924836","No Sig Diff","2.1","20","924836","No Sig Diff","24.7","867","worse","38.0","1253","3295","worse","58.2","38","none","55.8","58.2","35.7","16","44831","better","98.0","3609","3683","3609.0","95.2","3508","3683","better","89.6","3098","3098.0","90.7","1586","better","86.8","87.8","1586","724.5","275.0","35.6","54.7","++","worse","212","34.9","30.7","1.9","70","worse","1.3","1.6","7.9","293","293","none","7.4","8.3","NaN","NaN","293","none","7.4","8.3","15.5","574","574","worse","13.2","15.4","16.0","o","13.2","15.4","57.2","2112","2112","67.4","worse","74.0","28.8","1040","40.8","47.2","worse","51.5","190","none","190","51.5","52.7","421.3","7717","7717","better","better","483.9","483.9","471.4","471.4","7717","better","483.9","471.4","421.3","421.3","NaN","NaN","0.7","4333","5965","No Sig Diff","35.9","2357","6573","worse","9.8","526","5395","No Sig Diff",115.019199913465,638,55469,111.59263271939299,618,55380,94.850948509485093,525,55350,171.25269637502001,651,38014,154.38522538662201,586,37957,115.55294619982899,433,37472,156.30000000000001,112,71657,222.35896288423299,159,71506,100.695715854998,66,65544,63.5,43,67730,68.214847109766595,46,67434,299.20077560125299,165,55534,82.4,59,71624,2618.8000000000002,197,7621,1584.5,298,18861,null,3000,806,26.9,19.600000000000001,39.299999999999997,33.4,3.1,5.5,14.4,9.9,49.3,8.3000000000000007,11.3,17.7,73.3,3262,798,24.5,23.3,45.1,41.5,2.9000000000000004,5,18.3,9,53.6,1.1000000000000001,9.8000000000000007,20.200000000000003,79.2]
[333,"Sandwell",21610,310,850,810,280,960,21630,320,820,810,290,910,21310,300,780,800,270,850,null,314.3,4844,9.3000000000000007,311.3,5151,8.8000000000000007,309,4997,9,292.8,4827,9.5,null,305928,66199,1059,1566,63574,63932,1724,543,36833,816,1214,34803,34587,1746,500,null,"30.6","20140","20140","worse","23.8","21.1","3.7","434","434","worse","1.7","2.9","44.1","329","74600","higher","91.9","91.9","59.2","63.2","59.2","NaN","1.80","933","522.9","150","better","711.8","613.0","10.9","6.7","98","33","5.9","worse","4.4","10.9","none","13.70","14.0","22","13.7","140.1","1042","worse","122.6","126.1","28.0","18","none","22.1","22.5","4.9","48","980095","No Sig Diff","3.0","30","980095","No Sig Diff","22.8","923","No Sig Diff","40.6","1446","3564","worse","75.4","52","worse","55.8","58.2","29.7","16","53822","better","96.3","4545","4720","4545.0","91.0","4293","4720","No Sig Diff","86.4","3496","3496.0","88.4","1420","none","86.8","87.8","1420","1447.3","594.0","46.1","69.1","++","worse","280","34.9","30.7","1.9","90","worse","1.3","1.6","9.4","470","470","worse","7.4","8.3","NaN","NaN","470","worse","7.4","8.3","14.8","728","728","worse","13.2","15.4","15.7","o","13.2","15.4","60.1","2959","2959","67.4","worse","74.0","35.0","1726","40.8","47.2","worse","60.9","295","worse","295","51.5","52.7","587.3","13088","13088","worse","worse","483.9","483.9","471.4","471.4","13088","worse","483.9","471.4","587.3","587.3","NaN","NaN","0.7","5297","7948","No Sig Diff","39.9","3297","8254","worse","9.5","678","6822","No Sig Diff",128.65022712524299,793,61640,130.70429754448901,816,62431,115.37915924530699,732,63443,171.59431593828501,704,41027,153.01771399332401,628,41041,127.44014732965,519,40725,296.89999999999998,233,78468,362.40516646811699,289,79745,113.63799824508401,79,69519,126.4,94,74376,103.057368601855,78,75686,324.24695583232898,195,59802,99,78,78757,2501.1,228,9164,1338,305,22843,null,2312,97,4.2,0,58.8,68,0,0,19.600000000000001,0,87.6,42.3,0,32,19.600000000000001,1994,168,8.4,0,28,37.5,0,0,8.9,0,50,21.400000000000002,0,17.3,49.400000000000006]
[334,"Solihull",9950,190,670,630,270,560,9940,170,600,610,240,540,9710,150,530,610,210,510,null,208.9,2238,7.5,207.4,2268,7.5,206.9,2367,6,206.1,2236,5.9,null,205087,39174,618,873,37683,38183,772,219,21864,404,700,20760,20872,767,225,null,"16.7","6425","6425","better","23.8","21.1","3.1","261","261","worse","1.7","2.9","47.8","215","45000","higher","72.2","83.3","72.2","63.2","72.2","NaN","3.00","1184","417.6","90","better","711.8","613.0","7.4","3.0","20","7","5.9","none","4.4","7.9","none","13.70","14.0","11","13.7","99.3","447","better","122.6","126.1","24.6","10","none","22.1","22.5","6.5","39","610053","No Sig Diff","1.1","7","610053","better","18.1","446","better","29.0","578","1994","better","50.8","23","none","55.8","58.2","-","NaN","NaN","No Data","97.4","2421","2486","2421.0","93.2","2318","2486","better","86.3","2185","2185.0","91.1","1483","better","86.8","87.8","1483","1876.3","467.0","26.2","40.3","++","none","112","34.9","30.7","0.9","21","better","1.3","1.6","6.5","154","154","none","7.4","8.3","NaN","NaN","154","none","7.4","8.3","14.3","375","375","worse","13.2","15.4","18.8","++","13.2","15.4","68.0","1785","1785","67.4","worse","74.0","40.1","1053","40.8","47.2","worse","40.7","98","better","98","51.5","52.7","433.2","4961","4961","better","better","483.9","483.9","471.4","471.4","4961","better","483.9","471.4","433.2","433.2","NaN","NaN","1.0","3489","3377","worse","50.0","1868","3736","worse","11.1","315","2791","No Sig Diff",102.080123266564,371,36344,103.203434610304,375,36336,73.066332233703207,268,36679,122.73127048852599,307,25014,121.338744023464,302,24889,111.677195842674,274,24535,222.7,106,47588,240.00333917689301,115,47916,122.54628907555499,55,44881,104.4,47,45017,64.300126383006997,29,45101,282.81778738068999,103,37217,81.8,39,47705,2713.7,126,4586,1179,137,11658,null,1602,313,19.5,29.7,39.299999999999997,22.4,7.7,5.0999999999999996,3.5,12.1,39.9,15,12.5,6.1,21.4,1849,328,17.7,29.900000000000002,38.1,19.8,6.7,4,3,9.1,41.800000000000004,13.4,10.4,4.9000000000000004,20.100000000000001]
[335,"Walsall",17440,260,800,840,260,810,17400,260,750,830,250,790,17120,250,730,740,260,780,null,272.2,3715,9.6999999999999993,270.89999999999998,3816,9.8000000000000007,269.5,3746,9,256.89999999999998,3679,8.9,null,267397,56168,992,1395,53781,54148,1582,438,31165,705,1099,29361,29149,1619,397,null,"29.5","16165","16165","worse","23.8","21.1","0.9","93","93","better","1.7","2.9","36.2","229","63300","No Sig Diff","92.4","92.4","58.7","63.2","58.7","NaN","2.10","1046","658.1","175","none","711.8","613.0","9.8","8.0","89","30","5.9","worse","4.4","19.2","none","13.70","14.0","33","13.7","96.0","609","better","122.6","126.1","24.5","13","none","22.1","22.5","5.3","44","851625","No Sig Diff","2.7","23","851625","No Sig Diff","24.1","811","worse","37.3","1115","2988","worse","55.6","34","none","55.8","58.2","83.2","36","43277","better","98.6","3329","3375","3329.0","96.5","3257","3375","better","93.7","2849","2849.0","86.8","1476","none","86.8","87.8","1476","4696.1","1649.0","48.5","67.2","++","worse","252","34.9","30.7","2.7","99","worse","1.3","1.6","9.3","348","348","worse","7.4","8.3","NaN","NaN","348","worse","7.4","8.3","18.9","673","673","worse","13.2","15.4","19.4","o","13.2","15.4","61.0","2179","2179","67.4","worse","74.0","35.7","1296","40.8","47.2","worse","36.5","135","better","135","51.5","52.7","407.7","7278","7278","better","better","483.9","483.9","471.4","471.4","7278","better","483.9","471.4","407.7","407.7","NaN","NaN","1.1","4881","4348","worse","35.7","1804","5051","worse","10.2","430","4019","No Sig Diff",88.439428604387402,460,52013,82.671329202934302,435,52618,83.027574989597895,439,52874,119.437872352556,419,35081,114.484251295779,402,35114,113.060652030798,395,34937,221.1,148,66946,313.017037070161,210,67089,54.468927952463503,33,60585,211.2,134,63437,80.340264650283601,51,63480,361.360880298479,188,51877,80.7,54,66951,2231.8000000000002,168,7360,1162.4000000000001,218,18328,null,2695,240,8.9,36.299999999999997,22.1,16.3,"x",3.8,4.5999999999999996,8.3000000000000007,43.8,12.5,7.9,6.7,"x",2824,251,8.9,30.3,22.700000000000003,20.3,"x",3.2,5.6000000000000005,11.200000000000001,45,13.100000000000001,8.8000000000000007,8,0]
[336,"Wolverhampton",15850,270,680,710,280,810,15900,270,680,750,270,800,15650,230,660,770,230,790,null,251.6,3460,5.7,251,3539,6.8,249.9,3661,6.9,239.4,3525,7.2,null,245526,49314,846,1253,47215,47658,1264,392,29911,658,1070,28183,27915,1617,379,null,"32.0","15635","15635","worse","23.8","21.1","2.7","271","271","worse","1.7","2.9","38.6","217","56200","No Sig Diff","93.6","93.6","58.3","63.2","58.3","NaN","3.40","1363","790.9","178","none","711.8","613.0","10.6","7.3","77","26","5.9","worse","4.4","14.4","none","13.70","14.0","22","13.7","108.9","611","better","122.6","126.1","26.7","13","none","22.1","22.5","7.4","62","789905","No Sig Diff","3.2","27","789905","No Sig Diff","27.8","806","worse","39.5","1003","2540","worse","28.4","15","better","55.8","58.2","450.0","175","38888","worse","95.5","3339","3495","3339.0","89.7","3135","3495","worse","80.6","2668","2668.0","84.1","1110","none","86.8","87.8","1110","1160.3","403.0","43.9","66.3","++","worse","208","34.9","30.7","2.2","77","worse","1.3","1.6","7.4","266","266","none","7.4","8.3","NaN","NaN","266","none","7.4","8.3","19.6","651","651","worse","13.2","15.4","19.2","o","13.2","15.4","65.4","2172","2172","67.4","worse","74.0","40.1","1431","40.8","47.2","worse","77.0","272","worse","272","51.5","52.7","396.2","6438","6438","better","better","483.9","483.9","471.4","471.4","6438","better","483.9","471.4","396.2","396.2","NaN","NaN","0.6","3665","6418","No Sig Diff","58.4","4149","7109","worse","14.0","906","5876","worse",94.341678105322799,433,45897,102.353703303822,474,46310,95.476633913471602,446,46713,117.992368652774,402,34070,117.18300126684299,407,34732,102.92792137935,354,34393,258.89999999999998,154,59480,394.72143705363902,236,59789,37.934827965555201,20,52722,85.5,48,56128,90.500949372704198,51,56353,282.69799247417598,140,48845,73.900000000000006,44,59532,2253.3000000000002,162,7035,1099.5999999999999,195,16828,null,1982,209,10.5,24.9,35.4,35.4,9.1,5.3,9.1,16.3,57.4,20.6,22.5,11,18.7,2249,327,14.5,22.900000000000002,31.5,32.1,6.4,3.7,8.3000000000000007,10.100000000000001,60.900000000000006,18,18.7,10.4,19.600000000000001]
[340,"Knowsley",15990,150,420,450,170,530,16309.999999999998,140,390,470,170,540,16250,130,390,460,160,510,null,146.1,1816,8.6,145.9,1971,7.1,145.9,1973,6.6,149.1,1857,7.3,null,144990,28666,613,725,27328,27755,656,255,17931,562,583,16786,16950,685,296,null,"32.3","9770","9770","worse","22.9","21.1","0.6","40","40","better","1.7","0.9","48.0","157","32700","higher","100.0","95.5","66.1","61.8","66.1","NaN","3.30","710","695.8","107","none","711.8","709.0","4.2","3.3","19","6","4.7","none","4.4","18.6","none","13.70","15.9","18","13.7","151.9","498","worse","122.6","150.6","22.7","7","none","22.1","30.2","4.9","25","489910","No Sig Diff","3.0","15","489910","No Sig Diff","25.9","427","worse","39.6","638","1612","worse","95.5","33","worse","55.8","93.7","641.3","141","21985","worse","95.5","1751","1834","1751.0","93.4","1713","1834","better","87.9","1638","1638.0","93.2","579","better","86.8","91.0","579","2545.3","508.0","36.4","54.8","++","none","108","35.3","30.7","1.4","30","none","1.3","1.6","6.9","136","136","none","7.4","7.4","NaN","NaN","136","none","7.4","7.4","22.6","441","441","worse","13.2","17.1","25.3","+","13.2","17.1","41.8","818","818","62.0","worse","74.0","20.7","432","34.1","47.2","worse","67.6","140","worse","140","51.5","60.8","837.4","7901","7901","worse","worse","483.9","483.9","566.2","566.2","7901","worse","483.9","566.2","837.4","837.4","NaN","NaN","1.0","3186","3071","worse","36.5","1284","3522","worse","13.0","526","4250","worse",207.977419594444,560,26926,142.93774684972701,380,26585,148.696078801374,394,26497,236.915146708961,478,20176,185.890369776531,371,19958,199.919020143739,395,19758,287.3,100,34811,295.241403265023,102,34548,154.74348291870001,52,33604,115.9,38,32788,92.410054213898505,30,32464,465.13731915764998,134,28377,83.5,29,34718,2991,114,3691,1315.4,125,9132,null,1237,183,14.8,30.6,10.4,10.4,8.1999999999999993,"x","x",6,42.6,17.5,5.5,15.8,18.600000000000001,1181,187,15.8,39,10.200000000000001,15,7.5,"x","x",8,47.1,18.7,5.9,12.3,13.4]
[341,"Liverpool",44600,420,1350,1320,540,1650,45220,390,1220,1290,560,1680,44630,350,1160,1280,500,1620,null,470.8,5646,7.8,469.7,5942,7.4,465.7,5877,7.7,445.2,5738,7.1,null,450085,78003,1721,2032,74250,75175,2055,773,68946,1666,2229,65051,65102,2901,943,null,"33.6","26530","26530","worse","22.9","21.1","0.8","148","148","better","1.7","0.9","50.5","448","88800","higher","95.9","93.2","56.0","61.8","56.0","NaN","2.10","1460","947.4","349","worse","711.8","709.0","7.2","4.9","84","28","4.7","none","4.4","10.8","none","13.70","15.9","27","13.7","135.6","1206","worse","122.6","150.6","35.5","27","worse","22.1","30.2","3.9","72","1576589","better","2.3","48","1576589","No Sig Diff","26.8","1257","worse","38.0","1473","3878","worse","135.5","116","worse","55.8","93.7","1005.0","613","60997","worse","97.5","5210","5341","5210.0","95.5","5102","5341","better","86.5","4413","4413.0","90.3","2215","better","86.8","91.0","2215","2241.7","1883.0","39.6","57.9","++","worse","312","35.3","30.7","1.4","97","none","1.3","1.6","7.9","466","466","none","7.4","7.4","NaN","NaN","466","none","7.4","7.4","18.3","1031","1031","worse","13.2","17.1","17.3","o","13.2","17.1","51.2","2886","2886","62.0","worse","74.0","26.2","1519","34.1","47.2","worse","32.9","232","better","232","51.5","60.8","795.3","20579","20579","worse","worse","483.9","483.9","566.2","566.2","20579","worse","483.9","566.2","795.3","795.3","NaN","NaN","0.5","3753","7565","better","26.4","2306","8722","better","12.8","1419","11900","worse",229.49829009352999,1671,72811,124.119330691325,902,72672,106.994875149929,785,73368,192.78062356794101,1607,83359,155.83704373913699,1309,83998,144.990541540848,1234,85109,299.8,289,96392,282.75804289544197,270,95488,224.86725767903999,191,84939,137.19999999999999,122,88911,175.70168763149599,157,89356,236.03896482524499,249,108264,42,40,95280,2300.6999999999998,257,10866,1072.5,297,26320,null,4079,39,1,17.899999999999999,"x","x",0,0,"x",0,28.2,"x",0,"x",28.2,3686,30,0.8,"x","x","x",0,0,"x",0,30,23.3,0,"x","x"]
[342,"St Helens",14940,180,500,510,150,520,15210,170,480,470,150,530,14990,160,440,420,150,480,null,176.2,2049,7.7,176.1,2131,7.1,175.4,2083,6.8,177.4,2156,7.1,null,173958,31896,574,734,30588,30974,697,225,19166,529,679,17958,18071,834,261,null,"25.8","8355","8355","worse","22.9","21.1","2.0","149","149","none","1.7","0.9","48.6","177","36400","higher","94.2","96.2","65.8","61.8","65.8","NaN","2.10","549","423.8","75","better","711.8","709.0","6.4","2.7","17","6","4.7","better","4.4","9.6","none","13.70","15.9","11","13.7","162.9","593","worse","122.6","150.6","40.9","13","worse","22.1","30.2","6.4","34","526724","No Sig Diff","3.5","19","526724","No Sig Diff","20.7","377","better","35.2","553","1572","No Sig Diff","116.1","44","worse","55.8","93.7","324.6","79","24341","No Sig Diff","95.5","2049","2145","2029.0","93.1","1997","2145","better","85.2","1686","1742.0","97.0","880","better","86.8","91.0","1567","2340.3","502.0","45.4","55.5","+","worse","147","35.3","30.7","2.4","51","worse","1.3","1.6","7.1","148","148","none","7.4","7.4","NaN","NaN","148","none","7.4","7.4","21.1","445","445","worse","13.2","17.1","21.7","o","13.2","17.1","51.1","1077","1077","62.0","worse","74.0","22.0","439","34.1","47.2","worse","75.9","159","worse","159","51.5","60.8","506.6","5274","5274","worse","worse","483.9","483.9","566.2","566.2","5274","worse","483.9","566.2","506.6","506.6","NaN","NaN","1.0","3721","3893","worse","46.5","2027","4361","worse","11.4","420","3510","worse",147.821143105582,442,29901,151.37275961603001,451,29794,134.016819110798,400,29847,279.22407040501298,606,21703,258.741258741259,555,21450,233.88235294117601,497,21250,310.2,120,38679,313.707189339141,121,38571,143.36536929857201,54,37666,123.6,45,36402,131.84277748784601,48,36407,626.34007727247194,195,31012,62,24,38688,3215.2,134,4206,1529.9,159,10323,null,1559,261,16.7,37.9,17.2,18.399999999999999,4.5999999999999996,0,4.5999999999999996,3.4,35.6,27.2,"x",6.9,19.2,1505,274,18.2,39.1,15.3,15.700000000000001,3.6,0,4.4000000000000004,3.6,34.300000000000004,23.400000000000002,"x",6.2,19]
[343,"Sefton",20900,220,770,800,300,850,21160,210,720,790,280,840,20940,210,620,760,270,790,null,273.2,2844,6,273.7,2795,6.7,274,2802,7.5,272.89999999999998,2862,6.6,null,269697,47284,876,1123,45285,45943,1021,320,29049,668,1017,27364,27534,1159,356,null,"20.8","9820","9820","none","22.9","21.1","0.3","32","32","better","1.7","0.9","45.8","248","54200","higher","95.0","85.0","62.8","61.8","62.8","NaN","2.20","967","649.3","173","none","711.8","709.0","6.0","4.9","42","14","4.7","none","4.4","8.2","none","13.70","15.9","13","13.7","128.8","700","none","122.6","150.6","23.8","11","none","22.1","30.2","5.5","44","800488","No Sig Diff","2.8","23","800488","No Sig Diff","25.0","698","worse","34.9","884","2530","No Sig Diff","96.8","54","worse","55.8","93.7","451.6","154","34104","worse","97.2","2767","2847","2767.0","93.9","2673","2847","better","85.3","2338","2338.0","93.7","1506","better","86.8","91.0","1506","1972.8","645.0","30.3","33.5","+","none","153","35.3","30.7","1.8","53","worse","1.3","1.6","7.6","214","214","none","7.4","7.4","NaN","NaN","214","none","7.4","7.4","16.6","447","447","worse","13.2","17.1","17.3","o","13.2","17.1","54.1","1457","1457","62.0","worse","74.0","26.5","727","34.1","47.2","worse","47.6","143","none","143","51.5","60.8","652.4","9142","9142","worse","worse","483.9","483.9","566.2","566.2","9142","worse","483.9","566.2","652.4","652.4","NaN","NaN","0.9","3826","4433","worse","39.4","2043","5180","worse","12.5","640","5360","worse",170.734476103985,752,44045,117.006988549705,514,43929,100.938267073478,440,43591,158.90344492964601,524,32976,176.78544119896,578,32695,150.33165953753601,485,32262,246.3,142,57657,344.417636980314,197,57198,155.478324492409,85,54670,134.4,73,54334,98.450793179031805,53,53834,355.75668510060598,172,47181,67.599999999999994,39,57653,2421.5,143,5936,1189.4000000000001,175,14616,null,2193,406,18.5,21.9,39.200000000000003,60.8,8.4,4.2,9.4,10.6,72.7,34,18,19.7,37.4,1551,347,22.400000000000002,23.3,39.5,59.1,7.2,4,12.100000000000001,10.700000000000001,68.600000000000009,32.6,16.7,18.400000000000002,38.6]
[344,"Wirral",26540,390,1260,1220,470,1280,26600,370,1110,1190,460,1270,26170,340,1000,1180,480,1180,null,320.3,3560,7.5,320.2,3816,5.9,319.8,3802,6.3,308.8,3771,6.3,null,316384,59244,1293,1735,56216,57417,1367,460,33735,1044,1413,31278,31665,1595,475,null,"25.3","14875","14875","worse","22.9","21.1","0.5","74","74","better","1.7","0.9","55.0","372","67600","higher","84.6","91.3","60.8","61.8","60.8","NaN","3.20","1619","724.7","222","none","711.8","709.0","8.5","4.7","53","18","4.7","none","4.4","14.1","none","13.70","15.9","26","13.7","139.2","943","worse","122.6","150.6","31.1","18","worse","22.1","30.2","6.8","63","943384","No Sig Diff","4.1","38","943384","worse","24.7","890","worse","35.7","1130","3161","worse","117.9","79","worse","55.8","93.7","51.7","23","44474","better","97.6","3672","3762","3672.0","92.8","3490","3762","better","90.6","3419","3419.0","92.3","1786","better","86.8","91.0","1786","2472.1","939.0","34.6","50.6","++","none","206","35.3","30.7","2.2","81","worse","1.3","1.6","6.6","254","254","none","7.4","7.4","NaN","NaN","254","none","7.4","7.4","13.2","482","482","worse","13.2","17.1","14.6","+","13.2","17.1","55.6","2029","2029","62.0","worse","74.0","30.2","1119","34.1","47.2","worse","64.0","237","worse","237","51.5","60.8","448.6","8365","8365","better","better","483.9","483.9","566.2","566.2","8365","better","483.9","566.2","448.6","448.6","NaN","NaN","0.7","4639","6713","No Sig Diff","51.4","3654","7103","worse","13.5","854","6217","worse",139.134196013409,772,55486,128.28643389081199,708,55189,106.90463313502801,593,55470,230.00550127053199,878,38173,217.72325189553499,827,37984,194.242294520548,726,37376,216.6,155,71545,255.198092289671,183,71709,133.233532934132,89,66800,84.2,57,67721,96.094142692410003,65,67642,526.62926943804098,292,55737,85.1,61,71656,3405.1,251,7357,1728.8,319,18543,null,2820,451,16,25.5,23.9,5.3,7.3,"x",4,"x",49.4,18.8,16.600000000000001,8,"x",2674,475,17.8,28.400000000000002,23.400000000000002,6.7,5.7,"x",4.4000000000000004,1.5,48.800000000000004,17.900000000000002,18.3,7.6000000000000005,"x"]
[350,"Bolton",18220,270,790,780,280,800,18520,300,710,770,240,840,18320,250,700,730,250,820,null,280.10000000000002,3812,7.5,279,3975,7.6,277.3,3858,8.6,266.5,3860,7.2,null,274855,56969,928,1244,54797,55286,1299,384,31925,804,1140,29981,30015,1477,433,null,"23.2","13155","13155","worse","22.9","21.1","1.8","199","199","none","1.7","0.9","36.5","236","64600","No Sig Diff","84.2","84.2","61.8","61.8","61.8","NaN","2.40","1177","512.4","141","better","711.8","709.0","8.0","5.2","60","20","4.7","none","4.4","13.3","none","13.70","15.9","24","13.7","146.5","946","worse","122.6","150.6","27.4","15","none","22.1","30.2","6.0","52","871458","No Sig Diff","3.1","27","871458","No Sig Diff","20.1","682","No Sig Diff","34.8","490","1410","No Sig Diff","76.4","48","worse","55.8","93.7","796.4","354","44449","worse","97.6","3951","4050","3951.0","95.5","3867","4050","better","90.4","3457","3457.0","93.6","1708","better","86.8","91.0","1708","2551.7","921.0","39.6","50.3","++","worse","213","35.3","30.7","2.1","85","worse","1.3","1.6","9.0","350","350","worse","7.4","7.4","NaN","NaN","350","worse","7.4","7.4","18.3","712","712","worse","13.2","17.1","18.7","o","13.2","17.1","67.6","2627","2627","62.0","worse","74.0","36.0","1354","34.1","47.2","worse","91.3","361","worse","361","51.5","60.8","515.8","9712","9712","worse","worse","483.9","483.9","566.2","566.2","9712","worse","483.9","566.2","515.8","515.8","NaN","NaN","0.6","5030","7886","No Sig Diff","44.9","3931","8757","worse","14.4","1091","6940","worse",147.318244942386,785,53286,144.0825250883,771,53511,137.09006928406501,742,54125,137.99063336306901,495,35872,129.66503200066501,468,36093,118.90051349644401,433,36417,317.60000000000002,216,68020,298.73256184924202,206,68958,102.161351083868,64,62646,120.8,78,64559,113.385633733758,74,65264,368.72545315939902,199,53776,88,60,68201,2386.3000000000002,184,7721,1224.7,235,18897,null,2358,220,9.3000000000000007,23.2,31.4,30.9,3.6,7.7,"x",13.2,50.9,20,20.9,4.5,8.1999999999999993,2603,198,7.6000000000000005,21.700000000000003,35.9,31.3,3,7.1000000000000005,"x",15.700000000000001,50,20.700000000000003,22.200000000000003,4,7.6000000000000005]
[351,"Bury",11100,190,530,480,170,480,11270,180,500,470,150,530,11130,180,460,480,140,520,null,186.5,2453,6.2,186.2,2514,6.3,185.4,2551,5.8,183.8,2571,6.3,null,183025,37026,584,823,35619,35966,849,211,19556,459,639,18458,18548,819,189,null,"18.3","6775","6775","better","22.9","21.1","1.7","127","127","none","1.7","0.9","38.1","160","42000","No Sig Diff","91.3","91.3","57.8","61.8","57.8","NaN","3.40","1021","636.9","120","none","711.8","709.0","8.3","3.9","29","10","4.7","none","4.4","13.5","none","13.70","15.9","16","13.7","140.9","591","worse","122.6","150.6","27.9","10","none","22.1","30.2","4.8","27","568032","No Sig Diff","2.1","11","568032","No Sig Diff","22.7","495","No Sig Diff","31.7","621","1962","better","73.8","31","worse","55.8","93.7","437.2","126","28821","worse","96.2","2334","2425","2334.0","90.8","2203","2425","No Sig Diff","86.1","1991","1991.0","88.7","1066","none","86.8","91.0","1066","2105.2","469.0","32.9","55.6","++","none","115","35.3","30.7","1.7","41","none","1.3","1.6","6.4","159","159","none","7.4","7.4","NaN","NaN","159","none","7.4","7.4","16.6","410","410","worse","13.2","17.1","16.4","o","13.2","17.1","68.6","1697","1697","62.0","worse","74.0","40.8","1007","34.1","47.2","worse","57.7","142","none","142","51.5","60.8","510.4","6205","6205","worse","worse","483.9","483.9","566.2","566.2","6205","worse","483.9","566.2","510.4","510.4","NaN","NaN","0.9","3986","4465","worse","42.8","2127","4974","worse","10.5","430","3992","No Sig Diff",141.45621799878501,489,34569,151.53693533082199,527,34777,134.865987594605,474,35146,143.94881819797399,324,22508,144.986084926834,323,22278,131.05205678922499,288,21976,372.6,165,44281,378.93226305522501,169,44599,145.262305622366,61,41993,73.900000000000006,31,41952,94.744072573959599,40,42219,382.343405398394,126,33102,119.4,53,44378,3344.7,170,4980,1754.8,221,12235,null,1333,102,7.7,62.7,5.9,"x",0,0,"x",0,30.4,"x",0,5.9,"x",1842,184,10,49.5,15.8,"x",0,0,7.1000000000000005,0,23.400000000000002,5.4,"x",9.8000000000000007,3.3000000000000003]
[352,"Manchester",33780,540,1590,1460,500,1630,34320,520,1480,1430,490,1680,33820,470,1390,1400,480,1620,null,514.4,8002,6.7,510.8,8160,7.2,502.9,8094,6.9,498.8,7965,6.4,null,481030,97239,1914,2537,92788,93446,2823,970,82709,1581,2541,78587,77827,3836,1046,null,"38.0","35310","35310","worse","22.9","21.1","1.8","370","370","none","1.7","0.9","58.2","631","108500","higher","89.2","77.0","58.5","61.8","58.5","NaN","2.60","1996","1158.7","428","worse","711.8","709.0","9.5","5.9","142","47","4.7","worse","4.4","23.7","worse","13.70","15.9","68","13.7","181.2","1960","worse","122.6","150.6","30.7","28","worse","22.1","30.2","5.1","106","1819819","better","2.9","71","1819819","No Sig Diff","24.2","1377","worse","39.0","1696","4353","worse","80.8","78","worse","55.8","93.7","639.4","535","83672","worse","95.6","6975","7295","6975.0","89.3","6515","7295","worse","83.5","5501","5501.0","82.6","2144","none","86.8","91.0","2144","2087.1","2160.0","52.5","61.3","+","worse","411","35.3","30.7","1.6","126","none","1.3","1.6","7.7","602","602","none","7.4","7.4","NaN","NaN","602","none","7.4","7.4","14.6","1227","1227","worse","13.2","17.1","14.2","o","13.2","17.1","NaN","NaN","-","62.0","NaN","74.0","NaN","NaN","34.1","47.2","NaN","65.1","522","worse","522","51.5","60.8","886.7","31116","31116","worse","worse","483.9","483.9","566.2","566.2","31116","worse","483.9","566.2","886.7","886.7","NaN","NaN","0.3","4704","13885","better","42.8","6521","15247","worse","10.4","1341","12788","No Sig Diff",170.39640521421899,1532,89908,187.32644914960099,1727,92192,170.85320614732399,1612,94350,142.86698896251599,1451,101563,111.216325899586,1151,103492,106.79777845404701,1123,105152,484.4,564,116429,550.98530138129502,647,117426,118.01529067679201,115,97445,101.7,110,108152,90.277965856873294,100,110769,315.44890058989102,411,131628,117.8,136,115470,2967.6,460,15311,1511.9,577,36517,null,5263,547,10.4,9,15.4,7.5,3.1,0,4.5999999999999996,"x",29.1,7.7,4.4000000000000004,9.3000000000000007,57.6,5155,335,6.5,26.900000000000002,8.1,13.4,0,0,7.5,0,49.6,0,0,16.100000000000001,41.5]
[353,"Oldham",14550,300,740,690,200,610,14620,270,700,680,170,640,14490,250,680,650,190,650,null,227.3,3274,7.1,225.9,3288,7.9,225.2,3260,7.4,219.8,3297,7.6,null,223170,50435,976,1142,48317,48598,1417,420,26419,629,924,24866,24821,1260,338,null,"27.3","13525","13525","worse","22.9","21.1","0.5","43","43","better","1.7","0.9","56.0","317","56600","higher","91.5","87.2","54.2","61.8","54.2","NaN","2.60","1093","578.5","137","better","711.8","709.0","9.8","7.4","73","24","4.7","worse","4.4","16.2","none","13.70","15.9","25","13.7","184.8","1045","worse","122.6","150.6","35.2","17","worse","22.1","30.2","4.5","33","756376","No Sig Diff","2.3","17","756376","No Sig Diff","21.9","659","No Sig Diff","33.8","898","2658","No Sig Diff","89.3","49","worse","55.8","93.7","136.6","54","39524","better","97.9","3209","3277","3209.0","94.8","3105","3277","better","92.3","2834","2834.0","91.6","1347","better","86.8","91.0","1347","1956.1","581.0","36.5","66.1","++","worse","167","35.3","30.7","1.6","50","none","1.3","1.6","7.8","249","249","none","7.4","7.4","NaN","NaN","249","none","7.4","7.4","15.8","490","490","worse","13.2","17.1","17.2","o","13.2","17.1","65.3","2025","2025","62.0","worse","74.0","35.1","1142","34.1","47.2","worse","53.3","163","none","163","51.5","60.8","537.1","8739","8739","worse","worse","483.9","483.9","566.2","566.2","8739","worse","483.9","566.2","537.1","537.1","NaN","NaN","0.7","4228","6267","No Sig Diff","41.3","2856","6908","worse","10.3","582","5532","No Sig Diff",152.72680991875799,720,47143,190.81466438196799,902,47271,164.16302212080899,777,47331,185.14138991182099,548,29599,190.22288061410001,565,29702,153.91380826737,455,29562,387.4,231,59633,497.354142943265,297,59716,98.511383537653202,54,54816,116.7,66,56557,116.40211640211599,66,56700,346.10400872226899,153,44653,112.2,67,59723,3627.2,233,6520,1741.9,281,16458,null,"..","..","..","..","..","..","..","..","..","..","..","..","..","..","..",1680,180,10.700000000000001,0,0,0,0,0,0,0,0,0,0,0,100]
[354,"Rochdale",15000,260,720,640,210,640,15200,220,670,620,210,670,15130,210,660,560,200,680,null,212.1,3044,7.3,212,3020,7,211.9,3032,6.1,205.2,3047,6.7,null,209552,44751,769,1057,42925,43226,1185,340,25328,655,903,23770,23792,1185,351,null,"27.0","12005","12005","worse","22.9","21.1","1.5","130","130","none","1.7","0.9","45.2","229","50700","higher","82.4","77.9","56.2","61.8","56.2","NaN","3.30","1110","624.6","135","none","711.8","709.0","8.8","3.9","36","12","4.7","none","4.4","19.4","none","13.70","15.9","28","13.7","164.9","837","worse","122.6","150.6","14.4","6","none","22.1","30.2","6.1","42","698845","No Sig Diff","4.5","30","698845","worse","21.9","598","No Sig Diff","37.5","893","2381","worse","97.9","48","worse","55.8","93.7","640.3","226","35296","worse","98.0","2902","2961","2902.0","95.2","2820","2961","better","87.7","2450","2450.0","91.0","1128","better","86.8","91.0","1128","2175.3","619.0","31.7","61.9","++","none","137","35.3","30.7","1.7","49","none","1.3","1.6","6.6","197","197","none","7.4","7.4","NaN","NaN","197","none","7.4","7.4","19.7","580","580","worse","13.2","17.1","20.3","o","13.2","17.1","63.4","1864","1864","62.0","worse","74.0","41.3","1244","34.1","47.2","worse","68.1","201","worse","201","51.5","60.8","820.3","12318","12318","worse","worse","483.9","483.9","566.2","566.2","12318","worse","483.9","566.2","820.3","820.3","NaN","NaN","0.7","4152","6049","No Sig Diff","43.3","2912","6725","worse","9.9","530","5297","No Sig Diff",169.920290200945,712,41902,174.485399712781,729,41780,147.403124850686,617,41858,199.29328621908101,564,28300,182.38684284509401,519,28456,167.779245350373,470,28013,387.4,208,53696,494.70756249183302,265,53567,144.23272254499699,71,49226,102.4,52,50772,88.7328942698269,45,50714,422.463574457991,174,41302,63.3,34,53710,3682.9,221,5968,1723.2,258,14823,null,2284,324,14.2,31.8,8,9.3000000000000007,4.5999999999999996,4.3,3.7,8.3000000000000007,38,40.700000000000003,10.5,5.6,11.7,2216,355,16,31.3,6.2,9,3.9000000000000004,3.9000000000000004,3.9000000000000004,6.8000000000000007,33.200000000000003,36.6,9,5.1000000000000005,15.5]
[355,"Salford",17970,250,770,660,240,760,18220,230,690,680,240,780,18080,200,640,650,240,780,null,239,3544,5.8,237.1,3608,6,234.5,3538,7.2,229,3701,6.7,null,228346,45098,853,1036,43209,43643,1115,340,28743,687,1009,27047,26936,1436,371,null,"29.3","13030","13030","worse","22.9","21.1","2.1","206","206","worse","1.7","0.9","65.0","330","50800","higher","89.4","90.6","59.4","61.8","59.4","NaN","2.80","977","692.4","134","none","711.8","709.0","8.0","5.6","59","20","4.7","none","4.4","15.2","none","13.70","15.9","21","13.7","176.7","896","worse","122.6","150.6","21.9","9","none","22.1","30.2","6.8","56","741118","No Sig Diff","2.7","22","741118","No Sig Diff","24.1","667","No Sig Diff","35.6","762","2140","No Sig Diff","128.4","60","worse","55.8","93.7","672.5","251","37322","worse","98.3","3233","3289","3233.0","95.7","3147","3289","better","95.3","2894","2894.0","84.0","1007","none","86.8","91.0","1007","2642.0","910.0","41.9","61.5","++","worse","174","35.3","30.7","1.6","56","none","1.3","1.6","7.5","264","264","none","7.4","7.4","NaN","NaN","264","none","7.4","7.4","16.4","536","536","worse","13.2","17.1","18.0","o","13.2","17.1","60.5","1978","1978","62.0","worse","74.0","36.7","1232","34.1","47.2","worse","47.8","165","none","165","51.5","60.8","818.7","12854","12854","worse","worse","483.9","483.9","566.2","566.2","12854","worse","483.9","566.2","818.7","818.7","NaN","NaN","0.8","4218","4978","worse","43.8","2403","5481","worse","9.4","410","4167","No Sig Diff",182.786413356362,762,41688,186.12760343040199,790,42444,163.87750850635399,708,43203,203.29447247839499,701,34482,181.459222483524,625,34443,161.873651052908,555,34286,392.5,211,53764,318.14921750004601,173,54377,134.06822583047801,63,46991,73,37,50696,128.02358737609799,66,51553,502.38367011519898,250,46932,74.3,40,53800,2118.8000000000002,150,6925,1348.1,232,16346,null,1902,333,17.5,15.6,27.6,40.799999999999997,6.9,"x",8.6999999999999993,10.199999999999999,33,24.3,8.4,6.3,28.2,1663,296,17.8,15.200000000000001,25.3,46.300000000000004,4.7,"x",8.8000000000000007,3.4000000000000004,32.4,23.3,11.5,5.1000000000000005,35.5]
[356,"Stockport",14870,220,760,750,270,740,14840,220,730,740,240,740,14690,220,720,730,240,750,null,285,3437,4.5,283.89999999999998,3548,5.3,283.3,3364,5.5,284.60000000000002,3472,5.0999999999999996,null,280915,53380,853,1175,51352,52114,983,283,28358,667,1039,26652,26844,1175,339,null,"16.3","8470","8470","better","22.9","21.1","0.6","72","72","better","1.7","0.9","43.2","262","60600","higher","78.6","88.1","69.5","61.8","69.5","NaN","3.50","1523","428.1","117","better","711.8","709.0","6.4","4.5","46","15","4.7","none","4.4","12.2","none","13.70","15.9","21","13.7","136.1","825","worse","122.6","150.6","17.0","9","none","22.1","30.2","4.7","38","824862","No Sig Diff","1.7","14","824862","No Sig Diff","19.5","594","better","33.0","878","2659","No Sig Diff","83.6","50","worse","55.8","93.7","462.5","190","41080","worse","97.3","3389","3482","3389.0","93.0","3239","3482","better","89.1","2982","2982.0","92.0","1463","better","86.8","91.0","1463","1754.7","563.0","28.4","43.2","++","none","145","35.3","30.7","1.3","41","none","1.3","1.6","5.9","197","197","better","7.4","7.4","NaN","NaN","197","better","7.4","7.4","15.7","543","543","worse","13.2","17.1","14.3","o","13.2","17.1","70.1","2426","2426","62.0","worse","74.0","50.3","1758","34.1","47.2","worse","64.5","211","worse","211","51.5","60.8","427.6","7278","7278","better","better","483.9","483.9","566.2","566.2","7278","better","483.9","566.2","427.6","427.6","NaN","NaN","0.6","3924","6607","No Sig Diff","41.6","3405","8190","worse","11.1","736","6923","worse",127.98583301471,636,49693,135.55724640583099,677,49942,127.91602642134499,641,50111,206.313696246582,664,32184,158.641109552751,509,32085,157.203043450921,500,31806,339.8,217,63863,352.33774535023298,226,64143,98.471193003538303,59,59916,90.7,55,60622,103.809649354073,63,60688,419.65802535256603,200,47909,100,64,63977,3323.2,229,6843,1546,267,17342,null,1668,345,20.7,26.7,47,29.9,7.2,8.4,5.5,18.8,59.1,24.3,22,8.4,15.1,1596,288,18,25.700000000000003,43.400000000000006,32.300000000000004,7.3000000000000007,9,5.2,19.100000000000001,56.900000000000006,25.700000000000003,21.900000000000002,9.7000000000000011,17.7]
[357,"Tameside",15310,200,500,560,200,630,15560,200,500,550,180,660,15520,190,480,540,180,670,null,220.6,2918,5.9,220.2,3098,5.6,219.7,3028,6.6,216.9,3138,7.3,null,217736,42688,674,977,41037,41494,911,283,24885,646,883,23356,23351,1185,349,null,"24.1","10490","10490","worse","22.9","21.1","0.5","47","47","better","1.7","0.9","48.5","235","48500","higher","89.3","89.3","59.9","61.8","59.9","NaN","1.70","603","680.8","145","none","711.8","709.0","6.3","4.9","45","15","4.7","none","4.4","18.7","none","13.70","15.9","25","13.7","149.7","726","worse","122.6","150.6","22.8","10","none","22.1","30.2","6.8","47","674902","No Sig Diff","2.4","16","674902","No Sig Diff","24.2","658","worse","35.3","789","2232","No Sig Diff","90.9","44","worse","55.8","93.7","187.0","63","33686","better","97.4","2685","2757","2658.0","95.1","2620","2757","better","88.6","2145","2187.0","94.5","1160","better","86.8","91.0","1352","2473.6","686.0","45.2","53.6","+","worse","183","35.3","30.7","2.1","61","worse","1.3","1.6","6.8","204","204","none","7.4","7.4","NaN","NaN","204","none","7.4","7.4","20.9","559","559","worse","13.2","17.1","22.9","o","13.2","17.1","59.7","1594","1594","62.0","worse","74.0","32.8","864","34.1","47.2","worse","56.8","166","none","166","51.5","60.8","549.7","7964","7964","worse","worse","483.9","483.9","566.2","566.2","7964","worse","483.9","566.2","549.7","549.7","NaN","NaN","0.8","3976","5193","No Sig Diff","42.2","2355","5584","worse","11.1","530","4651","No Sig Diff",155.27015501931501,619,39866,153.76153211490899,615,39997,148.85249166127301,598,40174,168.106217431651,471,28018,176.68481592326799,490,27733,178.38790192335901,486,27244,384.1,197,51285,362.29061160888199,186,51340,83.248350642052898,40,48049,105.2,51,48495,111.331024245423,54,48504,543.713275281861,216,39785,114.9,59,51330,2927,176,6073,1528.9,227,14517,null,1388,123,8.9,28.5,24.4,38.200000000000003,8.9,0,8.9,0,64.2,35.799999999999997,25.2,18.7,9.8000000000000007,1450,112,7.7,29.5,18.8,32.1,8.9,0,6.3000000000000007,"x",63.400000000000006,32.1,17.900000000000002,11.600000000000001,8.9]
[358,"Trafford",10970,120,460,500,160,510,11160,150,420,500,160,540,10980,140,400,460,170,500,null,230.2,2817,6,228.5,2910,5.7,227.1,2886,6.3,217.3,2876,6.3,null,225277,45813,595,858,44360,44780,812,221,22403,470,705,21228,21313,851,239,null,"15.2","6585","6585","better","22.9","21.1","1.4","128","128","better","1.7","0.9","35.9","186","51800","No Sig Diff","95.0","85.0","75.0","61.8","75.0","NaN","3.20","1257","516.8","108","better","711.8","709.0","5.2","3.3","28","9","4.7","none","4.4","14.2","none","13.70","15.9","20","13.7","108.3","560","better","122.6","150.6","9.9","4","better","22.1","30.2","5.0","33","658698","No Sig Diff","2.9","18","658698","No Sig Diff","21.5","563","No Sig Diff","33.8","745","2205","No Sig Diff","62.3","30","none","55.8","93.7","352.0","124","35223","No Sig Diff","97.2","2970","3055","2970.0","93.5","2855","3055","better","82.5","2629","2629.0","94.4","1327","better","86.8","91.0","1327","1925.9","491.0","24.2","34.0","++","better","101","35.3","30.7","0.8","23","better","1.3","1.6","6.7","193","193","none","7.4","7.4","NaN","NaN","193","none","7.4","7.4","8.2","230","230","none","13.2","17.1","8.9","o","13.2","17.1","73.4","2060","2060","62.0","none","74.0","51.2","1510","34.1","47.2","none","83.2","234","worse","234","51.5","60.8","607.6","8753","8753","worse","worse","483.9","483.9","566.2","566.2","8753","worse","483.9","566.2","607.6","607.6","NaN","NaN","1.0","4121","4001","worse","38.9","1737","4467","worse","9.6","357","3619","No Sig Diff",96.656032139903104,409,42315,113.185666241447,488,43115,91.085936606019004,398,43695,136.61735430735001,350,25619,125.911979289245,321,25494,125.763707053876,317,25206,253.6,138,54418,235.60114538402999,130,55178,94.735974956750994,46,48556,61.9,32,51731,74.556959605421596,39,52309,354.35532878556103,138,39219,53.1,29,54639,1762.4,104,5867,925.6,137,14888,null,1317,139,10.6,43.9,"x",7.9,0,0,"x","x",38.1,5.8,0,"x",17.3,1398,169,12.100000000000001,40.200000000000003,4.7,7.1000000000000005,"x",0,"x","x",36.700000000000003,8.3000000000000007,"x",5.3000000000000007,16.600000000000001]
[359,"Wigan",22830,280,770,760,280,880,23160,250,690,760,290,890,23100,210,700,760,290,840,null,319.7,3744,6.3,318.7,3731,5.7,318.10000000000002,3973,6.9,307.60000000000002,3949,7,null,315794,60014,888,1360,57766,58492,1167,355,34637,777,1145,32715,32883,1369,385,null,"20.3","11900","11900","better","22.9","21.1","1.0","134","134","better","1.7","0.9","40.6","276","67900","No Sig Diff","95.8","81.7","60.8","61.8","60.8","NaN","2.80","1240","433.3","128","better","711.8","709.0","6.8","3.5","41","14","4.7","none","4.4","12.2","none","13.70","15.9","23","13.7","140.4","956","worse","122.6","150.6","23.9","14","none","22.1","30.2","7.0","67","939332","No Sig Diff","3.1","30","939332","No Sig Diff","21.4","708","No Sig Diff","35.6","1087","3053","No Sig Diff","96.6","64","worse","55.8","93.7","589.2","275","46677","worse","97.9","3827","3910","3827.0","95.3","3725","3910","better","90.1","3315","3315.0","81.1","1482","none","86.8","91.0","1482","2664.3","1034.0","34.7","53.6","++","none","202","35.3","30.7","2.0","77","worse","1.3","1.6","7.4","292","292","none","7.4","7.4","NaN","NaN","292","none","7.4","7.4","17.5","657","657","worse","13.2","17.1","19.9","+","13.2","17.1","55.6","2089","2089","62.0","worse","74.0","23.4","903","34.1","47.2","worse","52.2","201","none","201","51.5","60.8","608.2","11661","11661","worse","worse","483.9","483.9","566.2","566.2","11661","worse","483.9","566.2","608.2","608.2","NaN","NaN","0.9","4340","4946","worse","33.6","1937","5772","worse","9.0","378","4383","better",130.30308461634999,727,55793,135.755497204509,760,55983,120.287831597036,672,55866,219.549641760491,858,39080,194.27982478742601,754,38810,194.98099651168801,749,38414,184.7,133,72012,233.109994416527,167,71640,116.77813670625,77,65937,63.2,43,68088,60.583671961581103,41,67675,577.64807009041897,326,56137,80.599999999999994,58,71946,1586.1,124,7859,757.1,148,19619,null,2128,254,11.9,19.7,9.1,10.6,2.4,"x","x",2.4,57.9,25.2,2.4,5.5,4.3,2092,263,12.600000000000001,26.6,8.4,9.9,2.3000000000000003,"x","x",2.3000000000000003,49.800000000000004,24.700000000000003,2.3000000000000003,6.5,4.6000000000000005]
[370,"Barnsley",20240,210,700,700,260,740,20280,190,600,680,250,740,20000,190,580,680,210,720,null,235.8,2807,8.3000000000000007,233.7,2961,7,231.9,2991,8,227.6,2898,7,null,229539,42865,766,1030,41069,41627,930,308,24873,618,917,23338,23406,1106,361,null,"24.9","10655","10655","worse","22.0","21.1","0.3","33","33","better","1.7","1.4","38.5","188","48800","No Sig Diff","60.0","53.3","58.5","61.3","58.5","NaN","3.60","1160","916.0","203","worse","711.8","684.0","6.9","4.2","37","12","5.2","none","4.4","13.2","none","13.70","15.2","18","13.7","115.8","564","none","122.6","136.5","25.8","11","none","22.1","29.8","9.3","63","672490","worse","3.2","22","672490","No Sig Diff","19.9","523","better","33.5","721","2155","No Sig Diff","87.8","43","worse","55.8","56.6","961.1","318","33086","worse","97.9","2939","3002","2939.0","95.0","2851","3002","better","93.4","2598","2598.0","89.9","1038","better","86.8","89.8","1038","1948.7","545.0","44.1","60.2","++","worse","191","33.8","30.7","2.8","83","worse","1.3","1.7","8.5","254","254","worse","7.4","7.9","NaN","NaN","254","worse","7.4","7.9","23.3","705","705","worse","13.2","16.4","22.0","o","13.2","16.4","61.3","1853","1853","68.8","worse","74.0","29.0","886","NaN","47.2","worse","102.0","302","worse","302","51.5","56.3","556.8","7745","7745","worse","worse","483.9","483.9","494.4","494.4","7745","worse","483.9","494.4","556.8","556.8","NaN","NaN","0.8","4276","5249","worse","42.9","2573","5992","worse","10.6","509","4488","No Sig Diff",122.722387462821,491,40009,104.125049940072,417,40048,98.335480035668297,397,40372,143.90042090873101,400,27797,155.540458397397,435,27967,133.34284084426699,374,28048,215.3,111,51564,251.802018260452,131,52025,115.807759119861,56,48356,43.1,21,48690,65.125366330185599,32,49136,325.74008070031698,134,40865,90.8,47,51741,3273.3,190,5773,1590.2,229,14055,null,1177,251,21.3,0,0,0,0,0,4.8,0,89.6,21.1,0,3.6,0,1104,245,22.200000000000003,0,0,0,0,0,7.3000000000000007,0,84.100000000000009,26.1,0,5.3000000000000007,0]
[371,"Doncaster",21270,240,740,700,260,860,21530,260,700,670,260,860,21470,240,660,670,250,840,null,303.60000000000002,3673,8.9,302.7,3752,8.9,302.5,3776,9,290.60000000000002,3798,8,null,297200,57450,942,1282,55226,55857,1226,367,33481,784,1120,31577,31600,1467,414,null,"24.9","14070","14070","worse","22.0","21.1","0.4","43","43","better","1.7","1.4","62.3","406","65200","higher","50.0","43.1","62.0","61.3","62.0","NaN","2.50","1207","762.6","214","none","711.8","684.0","8.1","4.9","56","19","5.2","none","4.4","13.9","none","13.70","15.2","25","13.7","133.2","871","worse","122.6","136.5","35.1","20","worse","22.1","29.8","8.0","75","916015","No Sig Diff","3.2","31","916015","No Sig Diff","23.9","810","No Sig Diff","33.3","957","2875","No Sig Diff","49.5","31","none","55.8","56.6","1041.0","470","45147","worse","97.6","3664","3756","3664.0","93.0","3493","3756","better","87.2","3170","3170.0","92.3","1531","better","86.8","89.8","1531","2584.5","987.0","35.2","73.7","++","none","204","33.8","30.7","2.0","75","worse","1.3","1.7","9.7","357","357","worse","7.4","7.9","NaN","NaN","357","worse","7.4","7.9","22.2","808","808","worse","13.2","16.4","22.0","o","13.2","16.4","66.1","2408","2408","68.8","worse","74.0","30.3","1141","NaN","47.2","worse","65.0","240","worse","240","51.5","56.3","508.0","9310","9310","worse","worse","483.9","483.9","494.4","494.4","9310","worse","483.9","494.4","508.0","508.0","NaN","NaN","0.7","4443","6760","No Sig Diff","45.4","3479","7658","worse","11.3","771","6611","worse",139.43812433232799,744,53357,128.53709878728,690,53681,136.11142144266901,731,53706,151.44892134426999,589,38891,142.97310743931499,546,38189,154.445303955827,579,37489,193.9,134,69115,264.365812561734,182,68844,89.054275400346697,56,62883,79.5,52,65400,40.056695630738901,26,64908,354.55129942095101,195,54364,89.7,62,69101,3039.3,234,7653,1558.1,300,19241,null,3307,282,8.5,27,10.3,5,"x","x","x",2.1,25.9,21.3,"x",2.8,25.2,2239,198,8.8000000000000007,25.3,8.1,"x","x","x","x","x",28.3,22.700000000000003,"x",3.5,24.700000000000003]
[372,"Rotherham",20260,280,930,960,360,910,20330,260,890,950,310,900,20250,260,860,930,280,890,null,258.7,3120,8.3000000000000007,258.39999999999998,3264,7.4,257.7,3057,8.6,254.6,3230,8.1,null,255334,49254,1077,1299,46878,47656,1185,413,28158,724,964,26470,26573,1227,358,null,"23.1","11480","11480","worse","22.0","21.1","0.5","52","52","better","1.7","1.4","73.3","411","56100","higher","80.4","75.0","60.5","61.3","60.5","NaN","2.30","992","450.3","115","better","711.8","684.0","7.5","4.7","44","15","5.2","none","4.4","11.0","none","13.70","15.2","18","13.7","141.5","793","worse","122.6","136.5","15.0","7","none","22.1","29.8","8.5","66","777777","worse","3.0","23","777777","No Sig Diff","16.1","494","better","32.6","876","2686","No Sig Diff","42.9","24","better","55.8","56.6","1550.3","584","37670","worse","96.7","3004","3106","3004.0","93.8","2912","3106","better","89.5","2672","2672.0","82.1","1422","none","86.8","89.8","1422","3375.9","1067.0","40.9","56.6","++","worse","201","33.8","30.7","2.1","64","worse","1.3","1.7","8.8","270","270","worse","7.4","7.9","NaN","NaN","270","worse","7.4","7.9","NaN","NaN","NaN","NaN","13.2","16.4","22.4","o","13.2","16.4","61.5","1794","1794","68.8","worse","74.0","30.2","911","NaN","47.2","worse","64.6","195","worse","195","51.5","56.3","483.2","7558","7558","none","No Sig Diff","483.9","483.9","494.4","494.4","7558","none","483.9","494.4","483.2","483.2","NaN","NaN","0.7","4237","5925","No Sig Diff","41.9","2850","6806","worse","10.5","559","5247","No Sig Diff",112.793371220338,520,46102,130.68206486345699,602,46066,102.276904447856,473,46247,153.47691530348001,486,31666,157.88141492121699,499,31606,117.92452830188699,370,31376,198.8,118,59355,200.13791015657799,119,59459,84.629789685969499,47,55536,53.5,30,56059,51.684191766173598,29,56110,224.63525648803801,105,46532,126.1,75,59473,2907.1,181,6229,1623.6,254,15805,null,1830,217,11.9,37.799999999999997,53.9,55.3,21.2,32.700000000000003,23,44.7,63.6,42.9,62.2,24.4,27.6,1851,191,10.3,36.6,8.4,5.2,6.8000000000000007,"x",4.7,0,32.5,"x",4.2,4.2,45.5]
[373,"Sheffield",32970,570,1850,1760,590,1650,32920,550,1680,1720,590,1610,32470,510,1570,1660,580,1540,null,560.1,6554,7.4,557.4,6892,7.3,551.79999999999995,6793,7.4,555.5,6641,7,null,539064,100612,2012,2658,95942,97284,2505,823,82941,1349,2506,79086,78901,3207,833,null,"24.8","23415","23415","worse","22.0","21.1","3.8","874","874","worse","1.7","1.4","25.9","293","113200","lower","77.6","67.1","62.6","61.3","62.6","NaN","2.60","1983","516.7","240","better","711.8","684.0","7.4","5.1","103","34","5.2","none","4.4","10.2","none","13.70","15.2","31","13.7","118.3","1341","none","122.6","136.5","28.8","28","worse","22.1","29.8","4.5","91","1788795","better","1.3","33","1788795","better","19.7","1144","better","33.7","1723","5109","No Sig Diff","28.0","30","better","55.8","56.6","1045.3","831","79501","worse","96.6","6360","6585","6360.0","92.8","6113","6585","better","87.5","5555","5555.0","93.0","2544","better","86.8","89.8","2544","1851.7","1794.0","35.2","50.5","++","worse","321","33.8","30.7","1.6","102","none","1.3","1.7","7.6","520","520","none","7.4","7.9","NaN","NaN","520","none","7.4","7.9","14.1","919","919","better","13.2","16.4","13.8","o","13.2","16.4","78.9","5155","5155","68.8","better","74.0","49.5","3269","NaN","47.2","better","88.4","574","worse","574","51.5","56.3","799.8","25436","25436","worse","worse","483.9","483.9","494.4","494.4","25436","worse","483.9","494.4","799.8","799.8","NaN","NaN","0.4","3883","10276","better","40.1","5211","12992","worse","12.1","1204","10034","worse",104.117470267485,970,93164,98.485169043286902,931,94532,83.864475008386407,800,95392,98.788324434924405,927,93837,103.52693454992099,1003,96883,97.417875629511698,973,99879,107.6,132,122685,163.85343762865401,199,121450,72.625751016288902,77,106023,54.7,62,113311,67.539120061750097,77,114008,210.93798665156899,281,129500,74.3,90,121149,4117.5,557,13627,2168.6999999999998,733,33917,null,3860,507,13.1,38.9,28.2,42.2,8.9,12.4,10.5,24.7,65.099999999999994,29.2,35.299999999999997,14.8,16.2,4087,590,14.4,40.800000000000004,28.1,40.700000000000003,9.5,12.4,10.8,23.1,67.5,30.200000000000003,35.9,14.4,14.700000000000001]
[380,"Bradford",28460,610,1500,1350,470,1550,28500,570,1440,1320,510,1520,28020,590,1370,1270,500,1430,null,526.4,8039,8,524.6,8322,8.6,523.1,8301,8.6,512.6,8627,8.1,null,515315,121871,2093,2553,117225,116867,3874,1130,60957,1438,1950,57569,56969,3151,837,null,"25.8","30940","30940","worse","22.0","21.1","0.8","160","160","better","1.7","1.4","28.6","390","136600","lower","90.2","72.7","58.4","61.3","58.4","NaN","2.00","1897","673.2","358","none","711.8","684.0","10.7","7.5","192","64","5.2","worse","4.4","23.6","worse","13.70","15.2","87","13.7","145.4","1986","worse","122.6","136.5","34.9","41","worse","22.1","29.8","8.0","143","1782021","worse","2.4","43","1782021","No Sig Diff","22.9","1566","No Sig Diff","35.3","2162","6130","worse","44.6","57","better","55.8","56.6","470.7","462","98143","worse","96.3","8234","8551","8234.0","92.8","7935","8551","better","89.2","7344","7344.0","90.4","2861","better","86.8","89.8","2861","1545.0","1100.0","28.4","57.2","++","none","302","33.8","30.7","1.3","103","none","1.3","1.7","9.1","758","758","worse","7.4","7.9","NaN","NaN","758","worse","7.4","7.9","15.6","1289","1289","worse","13.2","16.4","15.7","o","13.2","16.4","68.2","5634","5634","68.8","worse","74.0","41.7","3405","NaN","47.2","worse","46.6","379","none","379","51.5","56.3","478.6","19723","19723","none","No Sig Diff","483.9","483.9","494.4","494.4","19723","none","483.9","494.4","478.6","478.6","NaN","NaN","0.5","6002","12091","better","31.7","4412","13921","No Sig Diff","9.4","1015","10307","better",132.73175594145101,1518,114366,137.98383518500799,1586,114941,110.64696540771899,1282,115864,177.808880446736,1245,70019,185.96550367998199,1324,71196,169.72823531088301,1191,70171,193.8,278,143472,224.300618211272,324,144449,77.204576687306002,100,129526,44.7,61,136579,44.391401167275497,61,137414,373.697180771202,390,106355,96.8,139,143634,2546.1,413,16479,1420.9,578,41078,null,3744,462,12.3,19,27.5,40,11,17.7,8.1999999999999993,24,40.700000000000003,31.4,34,15.2,7.6,4183,488,11.700000000000001,21.700000000000003,24.400000000000002,36.1,10.5,14.3,8.2000000000000011,21.3,40.800000000000004,31.400000000000002,29.1,14.5,7.2]
[381,"Calderdale",10300,190,470,450,160,520,10460,190,460,470,170,520,10310,190,450,460,160,520,null,206.4,2502,7.1,205.3,2753,6.1,204.2,2584,7,202.7,2744,7.9,null,202376,40107,601,842,38664,38992,870,245,21213,446,719,20048,20007,961,245,null,"21.6","8730","8730","worse","22.0","21.1","0.3","27","27","better","1.7","1.4","47.0","213","45300","higher","88.5","90.4","59.1","61.3","59.1","NaN","2.90","1059","634.1","129","none","711.8","684.0","10.2","7.5","60","20","5.2","worse","4.4","18.9","none","13.70","15.2","24","13.7","145.8","661","worse","122.6","136.5","43.1","17","worse","22.1","29.8","8.9","51","607496","worse","4.6","26","607496","worse","21.0","517","No Sig Diff","34.3","744","2166","No Sig Diff","81.2","37","worse","55.8","56.6","638.1","197","30875","worse","96.7","2576","2665","2576.0","93.3","2487","2665","better","85.6","2224","2224.0","84.3","1130","none","86.8","89.8","1130","2002.2","485.0","33.6","53.4","++","none","128","33.8","30.7","1.4","36","none","1.3","1.7","7.6","194","194","none","7.4","7.9","NaN","NaN","194","none","7.4","7.9","11.1","278","278","better","13.2","16.4","12.3","+","13.2","16.4","78.0","1957","1957","68.8","better","74.0","41.9","1059","NaN","47.2","better","71.5","178","worse","178","51.5","56.3","449.9","5986","5986","better","better","483.9","483.9","494.4","494.4","5986","better","483.9","494.4","449.9","449.9","NaN","NaN","0.8","3656","4738","No Sig Diff","46.1","2455","5325","worse","11.4","568","4806","worse",139.88617626722001,526,37602,137.55341880341899,515,37440,127.59974533107,481,37696,205.892199531302,492,23896,222.102959996697,538,24223,192.76505194642601,462,23967,242.1,116,47922,193.34317373859199,93,48101,70.061741910058203,32,45674,68.400000000000006,31,45344,43.885634037697798,20,45573,418.58115374805601,152,36215,93.8,45,47986,2976.6,152,5183,1494.9,191,12886,null,1933,179,9.3000000000000007,21.2,35.799999999999997,56.4,8.9,18.399999999999999,5.6,30.7,77.7,42.5,43.6,12.8,5.6,1252,74,5.9,17.600000000000001,28.400000000000002,47.300000000000004,"x",20.3,"x",32.4,70.3,41.900000000000006,36.5,13.5,8.1]
[382,"Kirklees",23260,320,900,870,310,1090,23270,320,860,820,320,1110,23080,300,820,850,310,1110,null,428.3,5658,8.4,425.5,5725,8,423,5823,8.1999999999999993,409.8,5784,8.1999999999999993,null,416840,86072,1226,1777,83069,83324,2146,602,48079,1001,1563,45515,45136,2350,593,null,"20.5","17290","17290","better","22.0","21.1","1.1","182","182","better","1.7","1.4","38.8","376","96900","No Sig Diff","96.7","94.5","68.4","61.3","68.4","NaN","2.80","1809","694.5","285","none","711.8","684.0","8.1","5.4","94","31","5.2","none","4.4","20.6","worse","13.70","15.2","55","13.7","136.1","1318","worse","122.6","136.5","25.7","22","none","22.1","29.8","6.9","93","1332163","No Sig Diff","2.5","34","1332163","No Sig Diff","22.5","1165","No Sig Diff","33.3","1459","4386","No Sig Diff","55.3","52","none","55.8","56.6","605.7","406","67027","worse","98.2","5632","5738","5632.0","96.3","5525","5738","better","91.9","5030","5030.0","89.7","2152","better","86.8","89.8","2152","2117.5","1191.0","32.3","48.6","++","none","255","33.8","30.7","1.4","77","none","1.3","1.7","8.5","492","492","worse","7.4","7.9","NaN","NaN","492","worse","7.4","7.9","13.3","715","715","worse","13.2","16.4","17.0","++","13.2","16.4","72.2","3872","3872","68.8","worse","74.0","43.9","2300","NaN","47.2","worse","52.2","295","none","295","51.5","56.3","511.5","14332","14332","worse","worse","483.9","483.9","494.4","494.4","14332","worse","483.9","494.4","511.5","511.5","NaN","NaN","0.5","4726","8741","No Sig Diff","43.6","4234","9701","worse","10.5","913","8564","No Sig Diff",128.40331106013801,1030,80216,130.731925133027,1054,80623,105.031152264388,853,81214,161.98353077145299,897,55376,176.72682016179201,994,56245,160.45429617704801,907,56527,222.8,228,102314,274.23903530098198,282,102830,61.553482547465201,58,94227,54.7,53,96818,48.284364084651699,47,97340,329.75495737120798,274,82332,90.8,93,102385,2471.1,289,11452,1315,382,28398,null,2720,228,8.4,21.9,32.9,56.1,"x",10.5,9.6,25.9,70.599999999999994,47.8,24.6,18.899999999999999,23.7,2713,340,12.5,23.8,30,50.900000000000006,2.4000000000000004,9.4,7.6000000000000005,25,70,42.6,24.700000000000003,16.2,18.5]
[383,"Leeds",37270,670,1440,1310,500,1750,37600,640,1320,1340,500,1800,37290,600,1240,1380,490,1770,null,761.5,10152,7.1,757.7,10533,7,750.7,10127,7.3,798.8,10412,6.9,null,731373,137282,1893,2729,132660,133473,2987,822,101666,1671,2896,97099,96344,4248,1074,null,"23.0","30955","30955","worse","22.0","21.1","1.0","333","333","better","1.7","1.4","57.5","890","154900","higher","92.9","72.4","62.9","61.3","62.9","NaN","1.70","1929","849.7","563","worse","711.8","684.0","8.1","4.7","145","48","5.2","none","4.4","13.7","none","13.70","15.2","60","13.7","156.3","2417","worse","122.6","136.5","29.1","39","worse","22.1","29.8","7.2","199","2480994","No Sig Diff","2.2","73","2480994","No Sig Diff","22.9","1966","No Sig Diff","35.0","2441","6971","No Sig Diff","67.1","102","worse","55.8","56.6","464.3","516","111143","worse","97.6","9827","10070","9827.0","94.4","9510","10070","better","89.1","8251","8251.0","93.2","3728","better","86.8","89.8","3728","2667.6","3276.0","38.1","50.4","++","worse","480","33.8","30.7","1.7","166","worse","1.3","1.7","7.7","786","786","none","7.4","7.9","NaN","NaN","786","none","7.4","7.9","12.2","1268","1268","worse","13.2","16.4","12.3","o","13.2","16.4","69.5","7251","7251","68.8","worse","74.0","47.8","4915","NaN","47.2","worse","39.6","397","better","397","51.5","56.3","517.6","24291","24291","worse","worse","483.9","483.9","494.4","494.4","24291","worse","483.9","494.4","517.6","517.6","NaN","NaN","0.4","4798","12528","better","37.6","5009","13315","worse","8.6","1098","12239","better",153.324107303419,1961,127899,145.806511656765,1880,128938,114.012729132008,1494,131038,209.96601564099399,2564,122115,213.34636211880601,2620,122805,141.49597311180199,1785,126152,182,302,165896,193.81240399385601,323,166656,67.656776515873105,103,152239,42.7,66,154671,45.911047345767599,72,156825,377.010088183866,665,165462,59.4,98,164928,1733.6,347,20028,991.1,489,48131,null,6474,545,8.4,23.5,19.3,22.8,6.8,9.4,6.8,15.6,48.8,27.7,20.9,8.4,25.1,6974,525,7.5,21.5,18.3,22.5,"x",10.100000000000001,5.9,16.400000000000002,45.1,31.8,21.3,8.8000000000000007,28]
[384,"Wakefield",24690,300,910,830,330,990,24750,260,800,880,320,980,24760,270,770,900,320,970,null,329.7,4033,7,327.60000000000002,4210,6.4,326.39999999999998,4113,7,325.60000000000002,4145,7.1,null,322264,59998,1026,1399,57573,58318,1319,361,35236,870,1227,33139,33186,1603,447,null,"21.8","13185","13185","worse","22.0","21.1","0.7","92","92","better","1.7","1.4","50.3","344","68400","higher","83.1","88.1","63.1","61.3","63.1","NaN","2.80","1488","505.4","157","better","711.8","684.0","7.9","5.1","63","21","5.2","none","4.4","15.0","none","13.70","15.2","29","13.7","170.3","1165","worse","122.6","136.5","36.2","22","worse","22.1","29.8","13.0","126","963608","worse","2.3","23","963608","No Sig Diff","22.8","819","No Sig Diff","34.8","1041","2989","No Sig Diff","87.0","60","worse","55.8","56.6","103.7","48","46295","better","97.7","4136","4235","4136.0","95.2","4033","4235","better","90.4","3532","3532.0","92.9","1949","better","86.8","89.8","1949","1941.1","770.0","38.0","56.5","++","worse","228","33.8","30.7","2.1","86","worse","1.3","1.7","7.4","307","307","none","7.4","7.9","NaN","NaN","307","none","7.4","7.9","21.7","879","879","worse","13.2","16.4","23.9","+","13.2","16.4","60.1","2434","2434","68.8","worse","74.0","36.0","1520","NaN","47.2","worse","56.7","234","none","234","51.5","56.3","519.2","10179","10179","worse","worse","483.9","483.9","494.4","494.4","10179","worse","483.9","494.4","519.2","519.2","NaN","NaN","0.6","3638","6508","No Sig Diff","48.6","3455","7105","worse","8.9","559","6342","better",154.20777093201301,866,56158,161.47738424480301,905,56045,122.479409258733,690,56336,250.187828700225,999,39930,264.69698497529498,1050,39668,271.43659670088402,1063,39162,172.6,125,72413,192.94111161643301,140,72561,64.508562045507901,44,68208,64.3,44,68414,64.345359090975606,44,68381,538.62305894277802,311,57188,84.1,61,72529,2322.1,185,7998,1250.0999999999999,248,19666,null,3441,221,6.4,24.4,6.8,"x",5,"x","x",0,31.2,14,"x",3.6,21.7,3710,242,6.5,19,5.4,"x",3.3000000000000003,0,"x",0,23.1,10.3,"x","x",43.400000000000006]
[390,"Gateshead",13580,150,470,500,180,500,13830,150,450,520,170,500,13710,150,450,500,160,490,null,200,2297,7.3,200.2,2321,6.8,200.3,2375,6.9,191.7,2400,7.5,null,197726,35473,597,874,34002,34450,774,249,20992,501,694,19797,19818,914,260,null,"24.8","8455","8455","worse","24.8","21.1","1.1","97","97","better","1.7","1.1","44.9","181","40300","higher","98.0","96.0","57.1","60.6","57.1","NaN","2.60","753","656.8","114","none","711.8","869.0","7.3","4.2","30","10","3.7","none","4.4","14.1","none","13.70","13.3","16","13.7","160.9","648","worse","122.6","177.5","31.1","11","none","22.1","29.0","11.8","72","570150","worse","2.5","15","570150","No Sig Diff","23.7","446","No Sig Diff","36.1","666","1843","No Sig Diff","109.8","42","worse","55.8","96.5","408.8","112","27394","worse","97.9","2208","2256","2208.0","94.7","2137","2256","better","87.9","1970","1970.0","91.9","941","better","86.8","90.5","941","2147.8","521.0","29.4","57.1","++","none","103","38.4","30.7","2.3","52","worse","1.3","2.3","7.4","176","176","none","7.4","7.6","NaN","NaN","176","none","7.4","7.6","19.5","450","450","worse","13.2","20.7","16.4","-","13.2","20.7","65.8","1521","1521","58.9","worse","74.0","33.4","781","30.2","47.2","worse","51.8","117","none","117","51.5","48.1","734.1","8138","8138","worse","worse","483.9","483.9","577.0","577.0","8138","worse","483.9","577.0","734.1","734.1","NaN","NaN","0.8","3868","4955","No Sig Diff","55.1","2981","5412","worse","9.7","453","4411","No Sig Diff",145.40566959921799,476,32736,159.627535749917,528,33077,143.799951562122,475,33032,215.08459994264399,525,24409,205.71381456898999,499,24257,168.43601103402199,403,23926,196.4,84,42777,161.36953623798499,69,42759,54.7745115939383,21,38339,47.2,19,40276,74.312608372553896,30,40370,491.72354671361398,170,34429,100.4,43,42824,3168.9,157,4874,1479.4,182,11858,null,1570,306,19.5,31.7,4.2,17,"x","x",3.9,"x",37.6,12.4,2.9,9.5,33,1602,275,17.2,30.900000000000002,8.4,22.200000000000003,2.5,"x",5.1000000000000005,3.3000000000000003,27.6,18.2,4.4000000000000004,8.4,73.8]
[391,"Newcastle upon Tyne",16990,270,690,740,280,860,17170,260,640,750,270,860,16810,260,610,760,270,810,null,286.8,3406,9.1,282.39999999999998,3420,8.6,279.10000000000002,3402,7.9,292.2,3566,8.1999999999999993,null,271212,47893,932,1124,45837,46213,1228,452,49491,732,1304,47455,47112,1859,520,null,"29.9","13645","13645","worse","24.8","21.1","1.4","170","170","better","1.7","1.1","69.3","374","54000","higher","82.7","81.5","60.6","60.6","60.6","NaN","2.20","903","927.7","210","worse","711.8","869.0","6.7","3.1","32","11","3.7","better","4.4","11.4","none","13.70","13.3","17","13.7","170.1","921","worse","122.6","177.5","35.1","16","worse","22.1","29.0","4.4","52","974815","better","2.7","41","974815","No Sig Diff","30.0","849","worse","40.0","960","2402","worse","69.8","36","worse","55.8","96.5","773.2","294","38024","worse","96.7","3241","3350","3241.0","93.5","3131","3350","better","87.0","2473","2473.0","90.2","1192","better","86.8","90.5","1192","3542.9","2027.0","42.9","52.8","+","worse","185","38.4","30.7","1.5","48","none","1.3","2.3","8.3","286","286","worse","7.4","7.6","NaN","NaN","286","worse","7.4","7.6","18.7","599","599","worse","13.2","20.7","18.0","o","13.2","20.7","65.4","2090","2090","58.9","worse","74.0","40.1","1321","30.2","47.2","worse","42.8","138","better","138","51.5","48.1","498.4","7982","7982","worse","worse","483.9","483.9","577.0","577.0","7982","worse","483.9","577.0","498.4","498.4","NaN","NaN","0.8","4921","6452","No Sig Diff","53.6","3787","7071","worse","11.6","627","5112","worse",133.44134656495399,593,44439,165.58867329021399,745,44991,131.81638132124499,599,45442,164.205952020517,922,56149,169.54188733329801,970,57213,125.60223142591499,743,59155,208.1,123,59107,229.475631057985,134,58394,57.536295813275501,30,52141,81.3,44,54130,53.1739337709487,29,54538,268.45099609033298,200,73295,87.9,51,57991,2546.1999999999998,175,6878,1290.7,219,16517,null,2235,491,22,26.3,14.1,11.8,5.7,2.2000000000000002,5.7,6.7,35.799999999999997,14.9,6.9,6.7,34.4,2446,501,20.5,24.6,14.8,12.4,5.6000000000000005,1.4000000000000001,5.6000000000000005,6.2,36.1,15.200000000000001,6.2,6.6000000000000005,29.3]
[392,"North Tyneside",12480,190,560,550,180,550,12600,160,480,530,180,550,12170,150,420,500,190,510,null,202.2,2268,6.3,201.4,2315,6.3,201.2,2405,6.5,198.5,2393,7.1,null,199142,35707,554,808,34345,34794,692,221,19923,455,673,18795,18874,834,215,null,"20.4","7220","7220","better","24.8","21.1","1.1","97","97","better","1.7","1.1","40.7","164","40300","No Sig Diff","80.0","87.5","61.5","60.6","61.5","NaN","3.60","1095","511.1","89","better","711.8","869.0","8.6","3.6","26","9","3.7","none","4.4","15.1","none","13.70","13.3","17","13.7","174.3","703","worse","122.6","177.5","29.4","10","none","22.1","29.0","7.5","42","555418","No Sig Diff","4.1","23","555418","No Sig Diff","24.2","514","No Sig Diff","36.4","700","1924","worse","107.5","43","worse","55.8","96.5","516.2","144","27897","worse","98.5","2389","2426","2389.0","96.0","2329","2426","better","92.5","2207","2207.0","93.0","923","better","86.8","90.5","923","2669.8","598.0","32.4","58.4","++","none","111","38.4","30.7","1.6","36","none","1.3","2.3","6.8","165","165","none","7.4","7.6","NaN","NaN","165","none","7.4","7.6","15.6","362","362","worse","13.2","20.7","16.9","o","13.2","20.7","64.4","1498","1498","58.9","worse","74.0","39.2","942","30.2","47.2","worse","54.6","124","none","124","51.5","48.1","442.4","5180","5180","better","better","483.9","483.9","577.0","577.0","5180","better","483.9","577.0","442.4","442.4","NaN","NaN","0.7","3572","4867","No Sig Diff","55.8","2880","5165","worse","11.0","475","4253","No Sig Diff",154.80806805543,515,33267,173.949554629158,580,33343,132.82163523521101,443,33353,256.72969966629603,577,22475,267.42265279700001,599,22399,196.02467443454401,429,21885,232.1,99,42648,291.12765008334702,124,42593,98.338334299906705,39,39659,81.8,33,40344,76.860139339994504,31,40333,429.21813981019602,139,32453,86.6,37,42718,2956.9,142,4770,1447.6,173,11718,null,1547,127,8.1999999999999993,15,22.8,28.3,0,"x",13.4,4.7,64.599999999999994,9.4,9.4,"x","x",1565,89,5.7,"x",47.2,60.7,0,"x","x",11.200000000000001,64,23.6,21.3,6.7,0]
[393,"South Tyneside",11230,130,390,440,140,470,11370,120,370,420,150,480,11230,120,350,430,150,450,null,148.5,1629,7.2,148.4,1675,7.8,148.19999999999999,1665,8,153.69999999999999,1741,6.3,null,146729,25922,508,699,24715,25155,589,178,16837,444,586,15807,15865,761,211,null,"28.1","7230","7230","worse","24.8","21.1","4.1","276","276","worse","1.7","1.1","52.4","155","29600","higher","93.0","90.7","52.2","60.6","52.2","NaN","2.90","618","948.4","136","worse","711.8","869.0","5.7","3.6","18","6","3.7","none","4.4","11.5","none","13.70","13.3","10","13.7","181.7","539","worse","122.6","177.5","30.5","8","none","22.1","29.0","7.5","34","444318","No Sig Diff","2.0","9","444318","No Sig Diff","25.9","399","worse","39.4","541","1374","worse","101.5","31","worse","55.8","96.5","504.7","98","19416","worse","98.8","1669","1689","1669.0","97.0","1639","1689","better","90.7","1443","1443.0","91.6","709","better","86.8","90.5","709","3478.5","655.0","42.5","64.9","++","worse","117","38.4","30.7","1.9","30","none","1.3","2.3","8.5","141","141","none","7.4","7.6","NaN","NaN","141","none","7.4","7.6","24.3","403","403","worse","13.2","20.7","25.5","o","13.2","20.7","55.1","912","912","58.9","worse","74.0","22.7","379","30.2","47.2","worse","51.4","83","none","83","51.5","48.1","726.9","6069","6069","worse","worse","483.9","483.9","577.0","577.0","6069","worse","483.9","577.0","726.9","726.9","NaN","NaN","1.4","3564","2571","worse","34.8","994","2854","worse","10.7","347","3191","No Sig Diff",178.013484624239,433,24324,189.191446708988,453,23944,160.52169551040899,384,23922,172.72154556908899,329,19048,187.46680828465199,353,18830,151.449822140778,281,18554,259.7,82,31578,325.04780114722797,102,31380,105.739682120081,32,30263,114.6,34,29662,47.457627118644098,14,29500,401.35498473437599,107,26402,69.7,22,31545,2001.8,65,3276,960.5,78,8167,null,1424,176,12.4,31.8,19.3,26.7,5.7,10.199999999999999,6.8,14.2,62.5,27.8,27.8,13.6,7.4,1390,233,16.8,26.6,14.200000000000001,22.3,3.4000000000000004,7.7,6.9,10.3,58.400000000000006,25.8,17.600000000000001,12,8.2000000000000011]
[394,"Sunderland",21970,290,790,770,280,810,22310,290,740,770,260,840,21940,240,680,740,240,800,null,276.10000000000002,3009,9.8000000000000007,275.7,3084,8.4,275.3,3250,7,283.5,3199,7.7,null,271884,48162,942,1160,46060,46804,1030,328,32854,773,1083,30998,31153,1322,379,null,"26.2","12975","12975","worse","24.8","21.1","0.5","55","55","better","1.7","1.1","68.6","376","54800","higher","92.5","77.4","63.4","60.6","63.4","NaN","2.70","1121","785.7","204","none","711.8","869.0","7.5","3.2","31","10","3.7","none","4.4","13.7","none","13.70","13.3","22","13.7","211.1","1160","worse","122.6","177.5","41.6","20","worse","22.1","29.0","5.6","54","856265","No Sig Diff","3.8","37","856265","No Sig Diff","24.5","765","worse","39.0","1077","2765","worse","106.1","60","worse","55.8","96.5","702.0","261","37178","worse","98.2","3039","3095","3039.0","94.0","2909","3095","better","90.6","2807","2807.0","90.2","1300","better","86.8","90.5","1300","1935.1","723.0","42.9","63.1","++","worse","208","38.4","30.7","2.3","74","worse","1.3","2.3","7.4","240","240","none","7.4","7.6","NaN","NaN","240","none","7.4","7.6","20.0","623","623","worse","13.2","20.7","21.6","o","13.2","20.7","59.1","1843","1843","58.9","worse","74.0","24.7","782","30.2","47.2","worse","31.3","103","better","103","51.5","48.1","1187.4","18934","18934","worse","worse","483.9","483.9","577.0","577.0","18934","worse","483.9","577.0","1187.4","1187.4","NaN","NaN","0.7","3934","5736","No Sig Diff","42.0","2790","6643","worse","8.5","432","5153","better",172.047766475011,778,45220,211.44862424283099,946,44739,160.16216697852599,719,44892,254.289297435761,953,37477,207.69766072480101,776,37362,189.325978094958,707,37343,372.1,218,58587,346.94788911408102,202,58222,108.66273580704301,61,56137,131,72,54945,118.853882864927,65,54689,616.28374668686001,330,51971,63.4,37,58342,3792.4,231,6095,1826.8,279,15380,null,2353,363,15.4,31.1,38.799999999999997,35,5.2,8.5,5.2,17.600000000000001,59.2,23.1,25.1,11.8,11.6,2663,320,12,29.700000000000003,39.1,36.6,4.7,9.1,5.6000000000000005,19.400000000000002,56.900000000000006,25.3,24.700000000000003,11.3,11.9]
[420,"Isles Of Scilly",40,null,10,10,null,null,40,null,null,null,null,null,30,null,null,10,null,null,null,null,null,null,null,null,null,null,null,null,null,null,null,null,2123,337,1,10,326,331,5,1,126,2,2,122,121,4,1,null,"18.5","16460","16460","better","16.6","21.1","-","NaN","-","-","-","-","NaN","NaN","NaN","NaN","-","-","-","-","-","NaN","NaN","NaN","NaN","NaN","NaN","NaN","NaN","NaN","-","NaN","-","-","-","-","-","No data","-","-","-","-","-","-","-","-","-","-","-","-","-","-","NaN","NaN","NaN","NaN","NaN","NaN","NaN","NaN","NaN","NaN","NaN","NaN","NaN","NaN","NaN","-","-","-","-","-","NaN","NaN","NaN","NaN","NaN","NaN","NaN","NaN","NaN","NaN","NaN","NaN","NaN","NaN","NaN","-","NaN","NaN","NaN","NaN","NaN","NaN","NaN","NaN","NaN","NaN","NaN","NaN","NaN","NaN","-","-","-","-","-","NaN","NaN","-","-","-","-","NaN","NaN","-","-","-","-","NaN","NaN","NaN","NaN","13.2","13.1","NaN","o","13.2","13.1","NaN","NaN","-","78.0","NaN","74.0","NaN","NaN","49.7","47.2","NaN","NaN","NaN","NaN","NaN","51.5","56.0","NaN","-","NaN","-","NaN","-","NaN","-","NaN","-","-","-","-","-","NaN","NaN","NaN","NaN","NaN","NaN","NaN","NaN","NaN","NaN","NaN","NaN","NaN","NaN","NaN",null,null,null,null,null,null,null,null,321,null,null,null,null,null,null,null,null,190,null,null,null,null,null,null,null,null,null,null,null,null,null,null,null,null,null,null,null,null,null,null,null,null,null,null,null,null,13,8,61.5,"x","x","x",0,0,0,0,"x",0,0,0,"x","x","x","x","x","x","x","x","x","x","x","x","x","x","x","x"]
[800,"Bath and North East Somerset",6650,120,400,380,140,420,6630,120,360,350,140,430,6440,110,340,330,120,400,null,180.1,1854,5.6,177.6,1867,5.5,175.5,1820,5.7,179.7,1834,5.0999999999999996,null,169977,29302,377,611,28314,28678,482,142,23325,299,704,22322,22233,873,219,null,"13.5","3835","3835","better","16.6","21.1","0.6","45","45","better","1.7","1.1","20.8","70","33700","lower","85.7","76.2","61.8","65.1","61.8","NaN","2.40","709","706.1","114","none","711.8","688.0","5.7","2.2","12","4","3.6","better","4.4","9.9","none","13.70","12.9","10","13.7","116.0","391","none","122.6","119.5","5.6","2","better","22.1","14.8","5.6","36","543658","No Sig Diff","1.6","11","543658","No Sig Diff","26.1","475","worse","26.5","401","1513","better","85.7","29","worse","55.8","62.0","274.1","60","21886","No Sig Diff","98.0","1891","1930","1891.0","93.5","1804","1930","better","86.1","1772","1772.0","85.4","1061","worse","86.8","83.8","1061","873.8","252.0","16.2","29.0","++","better","49","27.3","30.7","0.9","15","none","1.3","1.3","6.0","109","109","better","7.4","6.2","NaN","NaN","109","better","7.4","6.2","NaN","NaN","NaN","NaN","13.2","13.1","NaN","o","13.2","13.1","82.3","1435","1435","78.0","better","74.0","60.9","1152","49.7","47.2","better","95.5","163","worse","163","51.5","56.0","305.5","2758","2758","better","better","483.9","483.9","413.7","413.7","2758","better","483.9","413.7","305.5","305.5","NaN","NaN","1.4","3640","2553","worse","39.5","1122","2840","worse","9.5","211","2177","No Sig Diff",102.83430232558101,283,27520,114.78804170147799,316,27529,119.958337822792,334,27843,132.33870100061,369,27883,140.77181789813099,406,28841,133.01208000528101,403,30298,147.6,54,36573,186.74649163760199,68,36413,102.222611641695,35,34239,71.2,24,33702,53.175775480059102,18,33850,456.09378899516099,197,39736,52.6,19,36091,2244.6999999999998,84,3632,1208.7,113,9231,null,1334,138,10.3,25.4,22.5,34.1,8.6999999999999993,10.1,5.0999999999999996,18.8,52.2,26.8,25.4,13.8,"x",1314,237,18,35,13.9,26.200000000000003,5.9,5.5,4.6000000000000005,12.200000000000001,38,19.8,16.5,12.700000000000001,73]
[801,"Bristol, City of",22860,350,1130,1110,440,1320,22830,340,1070,1110,430,1260,22210,340,1010,1100,420,1210,null,437.5,6515,5.2,432.5,6781,5.4,428.1,6718,5.4,441.3,6486,6.2,null,418814,78347,1262,1956,75129,75711,2025,611,61641,974,1952,58715,57988,2932,721,null,"26.1","19670","19670","worse","16.6","21.1","0.8","145","145","better","1.7","1.1","51.1","448","87600","higher","90.6","85.4","61.2","65.1","61.2","NaN","3.00","1759","1229.3","399","worse","711.8","688.0","5.6","2.8","55","18","3.6","better","4.4","9.8","none","13.70","12.9","23","13.7","118.1","1033","none","122.6","119.5","14.3","11","better","22.1","14.8","3.9","65","1372219","better","2.0","40","1372219","No Sig Diff","23.4","997","No Sig Diff","32.7","1123","3435","No Sig Diff","54.3","44","none","55.8","62.0","593.7","398","67040","worse","96.6","5911","6117","5911.0","89.8","5492","6117","worse","79.7","4304","4304.0","70.9","1519","worse","86.8","83.8","1519","3142.3","2210.0","33.2","51.0","++","none","219","27.3","30.7","0.8","56","better","1.3","1.3","5.8","380","380","better","7.4","6.2","NaN","NaN","380","better","7.4","6.2","10.6","722","722","better","13.2","13.1","10.3","o","13.2","13.1","78.8","5368","5368","78.0","better","74.0","55.1","3602","49.7","47.2","better","32.6","226","better","226","51.5","56.0","521.2","14410","14410","worse","worse","483.9","483.9","413.7","413.7","14410","worse","483.9","413.7","521.2","521.2","NaN","NaN","0.9","4785","5210","worse","34.5","2082","6029","worse","7.8","339","4279","better",111.877500344875,811,72490,114.67211572070001,853,74386,104.20221003175899,794,76198,174.50050309041299,1214,69570,156.97203224751499,1104,70331,137.33604545135699,979,71285,147.1,137,93153,195.829363819202,185,94470,96.996783144660299,79,81446,81.099999999999994,71,87503,76.101797345390196,68,89354,430.16762697962298,411,92737,54,50,92662,1600.2,206,12641,783.5,247,29644,null,3712,872,23.5,21.2,24.8,28.3,7.8,4.5999999999999996,6,6.7,54.2,21.3,9.1999999999999993,9.4,17.3,3681,788,21.400000000000002,24.1,23.1,30.6,7.5,4.8000000000000007,5.6000000000000005,6.1000000000000005,57.5,21.1,9.1,10.3,15]
[802,"North Somerset",9440,130,390,410,160,480,9380,130,350,400,160,480,9140,130,330,420,150,460,null,206.1,2214,4.3,204.4,2363,5,203.1,2331,4.8,212.2,2429,5.4,null,199225,36621,466,726,35429,35759,662,200,18112,372,685,17055,17057,853,202,null,"15.2","5590","5590","better","16.6","21.1","0.5","47","47","better","1.7","1.1","28.4","118","41500","lower","84.4","81.3","70.7","65.1","70.7","NaN","1.60","470","785.1","153","none","711.8","688.0","6.2","4.1","29","10","3.6","none","4.4","10.2","none","13.70","12.9","12","13.7","89.6","371","better","122.6","119.5","13.3","5","better","22.1","14.8","6.5","33","543214","No Sig Diff","1.7","9","543214","No Sig Diff","22.6","472","No Sig Diff","29.6","549","1853","better","29.6","13","better","55.8","62.0","381.1","106","27817","No Sig Diff","98.1","2414","2460","2414.0","93.7","2305","2460","better","87.3","2062","2062.0","91.7","1010","better","86.8","83.8","1010","1865.6","391.0","25.6","35.7","++","none","89","27.3","30.7","1.4","33","none","1.3","1.3","5.0","115","115","better","7.4","6.2","NaN","NaN","115","better","7.4","6.2","9.0","204","204","better","13.2","13.1","10.5","+","13.2","13.1","76.8","1739","1739","78.0","better","74.0","46.7","1079","49.7","47.2","better","26.8","64","better","64","51.5","56.0","463.3","5612","5612","better","better","483.9","483.9","413.7","413.7","5612","better","483.9","413.7","463.3","463.3","NaN","NaN","1.3","3437","2668","worse","42.8","1270","2970","worse","8.3","171","2011","better",100.165490810905,345,34443,104.294121074404,358,34326,80.640499450835307,279,34598,154.958189634809,328,21167,125.01192861914301,262,20958,106.10206923040001,221,20829,132.80000000000001,58,43674,149.459906247877,66,44159,48.7159858027699,21,43107,50.7,21,41401,47.8262948969343,20,41818,239.189069656924,74,32189,47.9,21,43867,1734.8,82,4677,872.6,103,11721,null,1283,204,15.9,28.4,29.9,42.2,16.7,19.100000000000001,5.9,23.5,55.9,32.4,36.799999999999997,11.3,10.8,1409,224,15.9,29.5,26.8,37.5,13.8,16.5,6.7,21.900000000000002,50.900000000000006,31.3,33,9.8000000000000007,9.8000000000000007]
[803,"South Gloucestershire",9850,170,570,630,240,590,9850,160,530,610,250,570,9570,170,520,610,230,530,null,269.10000000000002,3029,4.2,266.10000000000002,3204,5,263.39999999999998,3117,5,264.8,3090,5,null,258207,49900,673,995,48232,48757,874,269,27474,457,738,26279,26256,999,219,null,"12.2","5965","5965","better","16.6","21.1","1.1","117","117","better","1.7","1.1","39.5","225","57000","No Sig Diff","86.2","86.2","70.3","65.1","70.3","NaN","2.70","1056","775.6","200","none","711.8","688.0","4.7","2.4","22","7","3.6","better","4.4","14.8","none","13.70","12.9","24","13.7","103.7","590","better","122.6","119.5","7.4","4","better","22.1","14.8","6.7","53","777369","No Sig Diff","1.5","12","777369","No Sig Diff","19.0","534","better","28.9","707","2444","better","29.8","17","better","55.8","62.0","375.2","142","37845","No Sig Diff","98.7","3140","3181","3140.0","95.9","3052","3181","better","88.5","2657","2657.0","90.2","1203","better","86.8","83.8","1203","702.8","233.0","20.5","33.8","++","better","103","27.3","30.7","0.9","31","better","1.3","1.3","5.4","164","164","better","7.4","6.2","NaN","NaN","164","better","7.4","6.2","11.0","330","330","better","13.2","13.1","11.0","o","13.2","13.1","76.6","2302","2302","78.0","better","74.0","44.8","1261","49.7","47.2","better","38.1","126","better","126","51.5","56.0","400.2","6204","6204","better","better","483.9","483.9","413.7","413.7","6204","better","483.9","413.7","400.2","400.2","NaN","NaN","1.2","3404","2880","worse","33.6","1143","3397","worse","8.1","165","2120","better",96.522600939371699,448,46414,102.312784799243,476,46524,91.758891157193503,427,46535,151.79336516097399,496,32676,133.31724678771801,442,33154,111.683072940185,371,33219,102.6,62,60440,105.816606593697,64,60482,46.5524341551628,26,55851,68.599999999999994,39,56888,64.859937594222203,37,57046,294.099284225845,148,48396,67.8,41,60479,1379.6,86,6318,676,106,16021,null,2111,246,11.7,33.299999999999997,51.6,60.6,11.8,24,10.6,42.3,53.3,37.799999999999997,52,13.8,0,1583,225,14.200000000000001,36.4,51.6,57.800000000000004,9.3000000000000007,19.600000000000001,8,36,52,34.200000000000003,44.400000000000006,10.700000000000001,8.9]
[805,"Hartlepool",6860,90,270,300,100,270,6910,90,230,300,90,270,6800,80,230,280,90,270,null,92.7,1021,7.2,92.2,1137,7.5,92.1,1193,7,91.3,1134,7.8,null,91091,17795,329,410,17056,17283,403,109,10960,260,351,10349,10330,505,125,null,"30.2","5435","5435","worse","24.8","21.1","0.4","15","15","better","1.7","1.1","60.8","124","20400","higher","91.3","91.3","69.0","60.6","69.0","NaN","2.10","316","839.8","79","none","711.8","869.0","9.3","3.7","13","4","3.7","none","4.4","10.4","none","13.70","13.3","6","13.7","151.7","309","worse","122.6","177.5","27.9","5","none","22.1","29.0","6.9","21","290132","No Sig Diff","2.5","7","290132","No Sig Diff","23.6","266","No Sig Diff","39.8","383","962","worse","98.5","20","worse","55.8","96.5","160.8","22","13679","better","94.4","1105","1171","1105.0","87.6","1026","1171","worse","86.8","954","954.0","94.3","528","better","86.8","90.5","528","3286.8","400.0","37.7","75.6","++","none","70","38.4","30.7","2.8","32","worse","1.3","2.3","7.8","90","90","none","7.4","7.6","NaN","NaN","90","none","7.4","7.6","22.5","259","259","worse","13.2","20.7","22.6","o","13.2","20.7","44.6","514","514","58.9","worse","74.0","19.7","232","30.2","47.2","worse","51.6","59","none","59","51.5","48.1","638.1","3687","3687","worse","worse","483.9","483.9","577.0","577.0","3687","worse","483.9","577.0","638.1","638.1","NaN","NaN","1.5","2872","1907","worse","35.9","750","2091","worse","11.2","270","2312","No Sig Diff",158.568082167097,264,16649,144.99758337361001,240,16552,138.34350268833401,229,16553,252.15605749486701,307,12175,207.88824979457701,253,12170,221.74058019339799,266,11996,162,35,21611,213.22949983775999,46,21573,87.946450383544203,18,20467,63.8,13,20370,29.568302779420499,6,20292,681.04015238420504,119,17362,46.3,10,21610,2465.1999999999998,57,2313,1194.5999999999999,69,5765,null,1112,111,10,26.1,19.8,21.6,"x","x",7.2,"x",55,22.5,"x",8.1,"x",1226,147,12,32.700000000000003,13.600000000000001,12.200000000000001,"x","x","x","x",49.7,15,"x",5.4,"x"]
[806,"Middlesbrough",10320,180,470,480,160,530,10440,180,450,490,170,540,10360,180,470,470,170,530,null,138.9,1951,7.6,138.69999999999999,2084,8.4,138.4,2006,8.5,142.4,2138,9.9,null,136156,27995,548,785,26662,26956,779,260,18899,498,618,17783,17696,898,305,null,"34.5","9745","9745","worse","24.8","21.1","1.0","59","59","better","1.7","1.1","79.9","254","31800","higher","90.9","97.7","51.5","60.6","51.5","NaN","3.20","733","1750.8","240","worse","711.8","869.0","7.8","4.9","30","10","3.7","none","4.4","12.4","none","13.70","13.3","11","13.7","211.0","670","worse","122.6","177.5","25.2","7","none","22.1","29.0","8.2","43","483464","No Sig Diff","4.4","24","483464","worse","22.2","382","No Sig Diff","33.5","515","1539","No Sig Diff","91.0","29","worse","55.8","96.5","584.7","130","22232","worse","93.8","1935","2062","1935.0","89.7","1850","2062","worse","88.5","1697","1697.0","90.3","662","better","86.8","90.5","662","3798.5","821.0","48.9","66.5","++","worse","132","38.4","30.7","2.7","53","worse","1.3","2.3","9.1","184","184","worse","7.4","7.6","NaN","NaN","184","worse","7.4","7.6","26.3","547","547","worse","13.2","20.7","27.2","o","13.2","20.7","45.8","953","953","58.9","worse","74.0","24.1","486","30.2","47.2","worse","56.1","112","none","112","51.5","48.1","610.4","5865","5865","worse","worse","483.9","483.9","577.0","577.0","5865","worse","483.9","577.0","610.4","610.4","NaN","NaN","0.9","3630","4182","worse","47.0","2333","4964","worse","12.8","590","4365","worse",172.545426782715,452,26196,204.921154871639,538,26254,191.27452848161599,502,26245,251.94254768071599,535,21235,220.69029332839801,477,21614,210.310218978102,461,21920,295.3,100,33864,410.06745312453597,138,33653,114.22769386978,36,31516,75.599999999999994,24,31750,104.30824667319899,33,31637,704.09773818515396,220,29941,118.6,40,33730,3404.2,137,3968,1623.5,161,9479,null,2485,288,11.6,36.5,6.9,2.1,"x","x",5.6,0,53.8,8.6999999999999993,"x",8,4.2,2197,313,14.200000000000001,36.1,6.4,"x","x",0,4.2,0,59.7,8.3000000000000007,"x",7,3.5]
[807,"Redcar and Cleveland",9850,150,380,460,140,480,9940,130,330,430,160,470,9850,120,340,420,170,470,null,134.9,1555,7.9,135,1600,6.4,135.19999999999999,1689,7,137.4,1585,7.1,null,133929,24166,460,640,23066,23326,644,196,15199,406,559,14234,14216,740,243,null,"26.2","6480","6480","worse","24.8","21.1","0.1","5","5","better","1.7","1.1","58.8","163","27700","higher","95.7","91.3","63.2","60.6","63.2","NaN","2.80","603","1526.7","203","worse","711.8","869.0","4.8","2.9","14","5","3.7","none","4.4","17.9","none","13.70","13.3","15","13.7","176.4","490","worse","122.6","177.5","28.4","7","none","22.1","29.0","9.4","38","411920","worse","4.5","19","411920","No Sig Diff","24.6","368","No Sig Diff","35.7","507","1422","No Sig Diff","101.3","29","worse","55.8","96.5","594.4","108","18169","worse","97.6","1445","1481","1445.0","93.5","1385","1481","better","90.9","1353","1353.0","92.6","768","better","86.8","90.5","768","3104.9","525.0","47.0","58.3","+","worse","118","38.4","30.7","2.7","45","worse","1.3","2.3","7.2","122","122","none","7.4","7.6","NaN","NaN","122","none","7.4","7.6","27.6","451","451","worse","13.2","20.7","25.1","o","13.2","20.7","52.1","851","851","58.9","worse","74.0","22.6","375","30.2","47.2","worse","52.8","87","none","87","51.5","48.1","313.9","2414","2414","better","better","483.9","483.9","577.0","577.0","2414","better","483.9","577.0","313.9","313.9","NaN","NaN","0.9","2753","3014","worse","46.3","1691","3655","worse","12.8","404","3046","worse",173.497388687262,392,22594,164.42384814187699,369,22442,162.677719837768,365,22437,226.04825486062299,386,17076,243.06582293453201,411,16909,213.19241982507299,351,16464,230.1,68,29549,266.15710093496199,78,29306,81.062982412857295,23,28373,97.2,27,27774,98.099771100534099,27,27523,746.75146984954495,181,23876,185.9,55,29590,2928.6,95,3152,1450.1,116,7604,null,1369,266,19.399999999999999,29.3,4.5,6.4,14.3,"x",6.8,3.8,35,18.399999999999999,"x",14.3,44,1170,213,18.2,29.6,4.7,6.6000000000000005,16,"x",5.6000000000000005,4.2,34.300000000000004,19.700000000000003,"x",14.100000000000001,41.300000000000004]
[808,"Stockton-on-Tees",11610,190,600,590,210,650,11700,200,540,600,210,630,11400,180,520,600,220,610,null,193.2,2414,7.2,192.4,2444,7.1,191.8,2432,7.2,192.4,2478,6.6,null,187959,37100,700,907,35493,35960,851,289,22099,548,788,20763,20861,943,295,null,"22.8","8270","8270","worse","24.8","21.1","0.7","58","58","better","1.7","1.1","64.5","273","42300","higher","87.5","82.5","61.9","60.6","61.9","NaN","2.40","760","1299.3","253","worse","711.8","869.0","8.2","3.8","28","9","3.7","none","4.4","13.8","none","13.70","13.3","16","13.7","149.0","630","worse","122.6","177.5","28.7","11","none","22.1","29.0","7.0","44","599826","No Sig Diff","3.2","20","599826","No Sig Diff","23.7","546","No Sig Diff","37.0","705","1905","worse","60.4","26","none","55.8","96.5","248.6","72","28959","No Sig Diff","97.1","2384","2456","2384.0","91.6","2249","2456","No Sig Diff","86.6","2109","2109.0","95.0","1074","better","86.8","90.5","1074","3410.7","864.0","35.4","48.3","++","none","127","38.4","30.7","2.2","53","worse","1.3","2.3","7.4","180","180","none","7.4","7.6","NaN","NaN","180","none","7.4","7.6","17.7","426","426","worse","13.2","20.7","18.4","o","13.2","20.7","56.9","1368","1368","58.9","worse","74.0","27.8","669","30.2","47.2","worse","61.4","149","none","149","51.5","48.1","552.1","6719","6719","worse","worse","483.9","483.9","577.0","577.0","6719","worse","483.9","577.0","552.1","552.1","NaN","NaN","1.0","3739","3918","worse","33.4","1666","4986","worse","12.0","604","4792","worse",160.10673782521701,552,34477,141.86433863649401,494,34822,140.94594207465599,492,34907,213.04719695202601,548,25722,198.95783988631001,504,25332,189.17519614480901,475,25109,144.6,65,44961,123.00673182296001,55,44713,101.54202186695601,43,42347,71,30,42275,113.95199772095999,48,42123,643.71941407658301,236,36113,84.5,38,44967,2091.3000000000002,105,5009,1088.0999999999999,136,12341,null,2304,210,9.1,15.7,"x","x",0,"x","x",0,52.4,12.4,"x",4.3,22.9,2074,188,9.1,14.9,"x","x","x",0,"x",0,50,12.200000000000001,"x",3.7,25.5]
[810,"Kingston Upon Hull, City of",17200,240,700,620,210,710,17310,240,630,640,210,740,17280,250,620,610,220,720,null,257.60000000000002,3697,6.5,257.2,3871,6.8,256.10000000000002,3796,6.8,263.89999999999998,3752,6.6,null,252748,48337,874,1089,46374,46821,1162,354,37640,730,1180,35730,35391,1782,467,null,"32.9","16145","16145","worse","22.0","21.1","4.3","489","489","worse","1.7","1.4","51.9","284","54700","higher","93.5","90.2","54.5","61.3","54.5","NaN","3.30","1205","944.0","221","worse","711.8","684.0","8.4","5.0","56","19","5.2","none","4.4","14.2","none","13.70","15.2","22","13.7","165.9","909","worse","122.6","136.5","37.2","18","worse","22.1","29.8","7.0","69","875000","No Sig Diff","2.9","31","875000","No Sig Diff","26.0","764","worse","36.8","922","2505","worse","72.3","39","worse","55.8","56.6","45.0","18","40043","better","98.1","3641","3710","3641.0","93.3","3463","3710","better","88.8","3049","3049.0","86.0","1058","none","86.8","89.8","1058","2450.9","1004.0","50.4","84.6","++","worse","231","33.8","30.7","2.4","88","worse","1.3","1.7","7.0","267","267","none","7.4","7.9","NaN","NaN","267","none","7.4","7.9","23.2","910","910","worse","13.2","16.4","23.3","o","13.2","16.4","59.3","2330","2330","68.8","worse","74.0","30.7","1198","NaN","47.2","worse","38.6","144","better","144","51.5","56.3","467.2","7807","7807","better","better","483.9","483.9","494.4","494.4","7807","better","483.9","494.4","467.2","467.2","NaN","NaN","0.6","3736","5904","No Sig Diff","44.8","2760","6158","worse","8.3","383","4415","better",143.11469206971,643,44929,157.608935587833,714,45302,138.76729119243601,634,45688,215.257159275931,899,41764,183.81545221530601,753,40965,159.69526042048199,654,40953,231.5,135,58316,298.21584657308898,174,58347,76.802038063839305,41,53384,54.8,30,54779,61.960126836024301,34,54874,426.98484227442401,246,54244,237.4,138,58128,3377.5,247,7222,1482,269,17391,null,2682,393,14.7,22.9,15.3,17,2.8,"x",4.5999999999999996,5.0999999999999996,40.200000000000003,16.5,8.9,7.1,17.8,3190,478,15,25.700000000000003,19.5,16.900000000000002,2.7,"x",4.2,3.6,41.800000000000004,17.600000000000001,7.9,7.1000000000000005,18]
[811,"East Riding of Yorkshire",15880,210,580,600,220,620,16030.000000000002,190,530,630,210,580,15930,180,520,640,210,580,null,336,2978,6,335.9,3162,5.4,334.7,3068,6.2,338.7,3097,7.2,null,326951,55733,743,1041,53949,54612,868,253,30106,499,822,28785,28803,1069,234,null,"13.4","7375","7375","better","22.0","21.1","2.4","348","348","worse","1.7","1.4","31.1","199","64000","lower","75.0","90.0","58.2","61.3","58.2","NaN","1.90","963","702.3","222","none","711.8","684.0","7.6","3.9","36","12","5.2","none","4.4","13.8","none","13.70","15.2","25","13.7","109.2","700","better","122.6","136.5","29.5","17","none","22.1","29.8","10.2","88","884534","worse","2.9","24","884534","No Sig Diff","23.9","823","No Sig Diff","33.2","1057","3187","No Sig Diff","44.8","29","better","55.8","56.6","30.4","12","39413","better","98.2","3053","3108","3053.0","94.8","2947","3108","better","90.8","2860","2860.0","92.7","1789","better","86.8","89.8","1789","798.1","289.0","27.4","34.7","++","none","164","33.8","30.7","1.9","58","worse","1.3","1.7","6.4","198","198","none","7.4","7.9","NaN","NaN","198","none","7.4","7.9","14.3","413","413","worse","13.2","16.4","15.0","o","13.2","16.4","71.8","2070","2070","68.8","worse","74.0","41.1","1204","NaN","47.2","worse","38.9","117","better","117","51.5","56.3","368.2","5985","5985","better","better","483.9","483.9","494.4","494.4","5985","better","483.9","494.4","368.2","368.2","NaN","NaN","0.8","3708","4554","worse","41.1","2006","4883","worse","8.0","300","3747","better",91.829481490019802,478,52053,101.78018575851399,526,51680,94.071741775966302,487,51769,144.039227704566,517,35893,133.10872386843801,482,36211,113.32854220797201,410,36178,164.1,112,68243,218.73165002936,149,68120,64.681060769396595,42,64934,51.5,33,64075,54.798810082981099,35,63870,276.60531301152798,148,54397,133.5,91,68166,2554.9,160,6376,1197.5,189,16417,null,1987,215,10.8,22.8,18.100000000000001,24.2,7.9,8.4,8.8000000000000007,15.8,53.5,27,25.6,14.9,7.9,1939,221,11.4,23.5,15.4,22.200000000000003,7.7,8.1,9,14.9,52.900000000000006,24.900000000000002,21.700000000000003,11.8,6.8000000000000007]
[812,"North East Lincolnshire",8870,140,430,490,180,570,8990,130,410,500,200,590,8910,130,410,520,200,590,null,159.80000000000001,1941,8,159.69999999999999,1990,5.9,159.69999999999999,2032,6.6,157.30000000000001,1987,6.7,null,157786,30212,542,775,28895,29258,717,237,18525,431,655,17439,17400,916,209,null,"28.3","8435","8435","worse","22.0","21.1","1.7","114","114","none","1.7","1.4","25.7","88","34300","lower","100.0","100.0","58.4","61.3","58.4","NaN","2.70","644","813.4","129","none","711.8","684.0","7.6","4.7","28","9","5.2","none","4.4","16.0","none","13.70","15.2","16","13.7","137.1","471","worse","122.6","136.5","44.2","13","worse","22.1","29.8","8.9","44","500043","No Sig Diff","2.5","12","500043","No Sig Diff","27.1","501","worse","35.3","569","1610","No Sig Diff","56.6","20","none","55.8","56.6","834.5","197","23608","worse","97.4","1984","2038","1964.0","94.8","1932","2038","better","90.7","1762","1745.0","97.2","810","better","86.8","89.8","810","3312.8","687.0","41.1","69.8","++","worse","122","33.8","30.7","2.5","48","worse","1.3","1.7","6.8","137","137","none","7.4","7.9","NaN","NaN","137","none","7.4","7.9","24.9","514","514","worse","13.2","16.4","25.0","o","13.2","16.4","61.2","1264","1264","68.8","worse","74.0","25.0","522","NaN","47.2","worse","38.3","75","better","75","51.5","56.3","333.3","3232","3232","better","better","483.9","483.9","494.4","494.4","3232","better","483.9","494.4","333.3","333.3","NaN","NaN","1.3","3218","2471","worse","27.8","813","2929","better","8.3","180","2118","better",117.505058752529,331,28169,118.634464197181,335,28238,109.258802382547,310,28373,160.45573225729899,338,21065,176.96981386826101,367,20738,152.80634734058199,312,20418,112.5,41,36457,123.351881801486,45,36481,110.906809094358,38,34263,131,45,34358,101.824106129811,35,34373,410.89325141795598,123,29385,87.8,32,36441,1659,67,4073,974.6,98,10001,null,2134,203,9.5,42.4,27.1,20.2,10.8,0,5.9,7.4,44.8,23.6,"x",3.9,13.3,2366,112,4.7,47.300000000000004,23.200000000000003,17.900000000000002,10.700000000000001,0,7.1000000000000005,5.4,39.300000000000004,17.900000000000002,"x","x",7.1000000000000005]
[813,"North Lincolnshire",8860,120,410,400,120,420,8950,130,360,410,140,440,8890,130,350,400,150,430,null,168.8,1840,6.6,168.4,1957,6,167.5,1872,8.3000000000000007,161.30000000000001,1888,6.6,null,165871,31316,507,639,30170,30513,612,191,17427,389,542,16496,16531,725,171,null,"21.0","6325","6325","none","22.0","21.1","0.9","60","60","better","1.7","1.4","20.3","72","35500","lower","100.0","90.9","62.7","61.3","62.7","NaN","3.50","838","668.2","104","none","711.8","684.0","10.1","4.9","28","9","5.2","none","4.4","7.9","none","13.70","15.2","8","13.7","112.8","401","none","122.6","136.5","27.3","8","none","22.1","29.8","10.5","51","477338","worse","4.5","21","477338","worse","23.7","434","No Sig Diff","35.9","548","1528","No Sig Diff","34.0","12","better","55.8","56.6","424.1","103","24287","worse","96.6","1900","1966","1927.0","92.3","1815","1966","No Sig Diff","85.9","1594","1608.0","84.7","759","none","86.8","89.8","750","1382.0","271.0","37.7","53.9","++","worse","114","33.8","30.7","2.8","51","worse","1.3","1.7","8.9","165","165","worse","7.4","7.9","NaN","NaN","165","worse","7.4","7.9","19.5","349","349","worse","13.2","16.4","19.4","o","13.2","16.4","61.7","1107","1107","68.8","worse","74.0","NaN","NaN","NaN","47.2","NaN","54.3","100","none","100","51.5","56.3","479.6","4629","4629","none","No Sig Diff","483.9","483.9","494.4","494.4","4629","none","483.9","494.4","479.6","479.6","NaN","NaN","1.1","3499","3110","worse","40.5","1408","3473","worse","9.5","278","2788","No Sig Diff",102.943708039249,299,29045,109.257800458951,319,29197,102.64979708761,301,29323,153.72907153729099,303,19710,124.942628384925,245,19609,100.01554645799899,193,19297,154.19999999999999,58,37605,274.43979643494703,103,37531,55.692343768319802,19,34116,56.2,20,35558,42.282106212650802,15,35476,275.19981695036699,79,28710,119.8,45,37560,2074,81,3976,1026.4000000000001,101,10221,null,689,144,20.9,16,57.6,59,15.3,16,9.6999999999999993,41,75,30.6,46.5,18.100000000000001,13.2,771,149,19.3,19.5,45.6,56.400000000000006,14.100000000000001,14.8,9.4,30.900000000000002,67.8,27.5,38.900000000000006,20.100000000000001,13.4]
[815,"North Yorkshire",23790,350,970.00000000000011,1119.9999999999998,349.99999999999994,1160.0000000000002,23790,310,900,1049.9999999999998,339.99999999999994,1179.9999999999998,23480,320,880,1030,330,1130,null,602.70000000000005,5521,7.3,602.6,5921,5.5,601.20000000000005,6043,6.1,599.70000000000005,5848,5.6,null,582624,102400,1179,1818,99403,100405,1594,401,54365,896,1611,51858,51963,1934,468,null,"12.1","12155","12155","better","22.0","21.1","1.2","302","302","better","1.7","1.4","36.7","436","118700","No Sig Diff","74.2","78.8","62.2","61.3","62.2","NaN","2.00","1777","561.5","328","better","711.8","684.0","6.4","3.7","66","22","5.2","none","4.4","13.0","none","13.70","15.2","45","13.7","121.0","1437","none","122.6","136.5","25.7","27","none","22.1","29.8","11.3","185","1648499","worse","3.0","47","1648499","No Sig Diff","20.1","1081","better","29.1","1463","5034","better","60.5","73","none","55.8","56.6","291.6","217","74422","No Sig Diff","95.2","5730","6016","5827.0","94.1","5663","6016","better","87.8","5360","5389.0","85.8","3003","none","86.8","89.8","3857","1077.0","743.0","19.8","36.6","++","better","214","33.8","30.7","1.0","57","better","1.3","1.7","6.4","384","384","better","7.4","7.9","NaN","NaN","384","better","7.4","7.9","13.9","887","887","none","13.2","16.4","13.7","o","13.2","16.4","73.4","4667","4667","68.8","none","74.0","NaN","NaN","NaN","47.2","NaN","48.0","280","none","280","51.5","56.3","292.7","8988","8988","better","better","483.9","483.9","494.4","494.4","8988","better","483.9","494.4","292.7","292.7","NaN","NaN","1.3","13847","10623","worse","38.7","4562","11790","worse","11.6","1119","9188","worse",119.651921682379,1155,96530,120.989555157921,1163,96124,111.238532110092,1067,95920,159.082018516104,1098,69021,149.01574232453001,1028,68986,145.34541602918699,988,67976,132.5,167,125992,173.30195878911201,218,125792,69.088366517946298,83,120136,74.099999999999994,88,118724,76.793248945147695,91,118500,322.91770227687601,330,101331,121.1,153,126365,2766.5,335,12226,1451.3,443,31097,null,2912,466,16,35.6,41.4,60.1,21,18.5,5.2,35.6,73.2,32.4,30,16.3,6.7,2658,459,17.3,36.4,38.800000000000004,56.2,18.5,16.3,4.4000000000000004,35.5,69.5,31.200000000000003,28.1,14.600000000000001,7]
[816,"York",6210,110,240,270,90,350,6210,100,240,260,90,340,6110,90,220,250,110,310,null,202.4,2045,6.4,200,2095,5.9,197.8,2075,5.7,202.4,2119,7.3,null,190392,31619,320,525,30774,30957,524,138,26596,275,689,25632,25471,931,194,null,"13.5","4085","4085","better","22.0","21.1","0.9","79","79","better","1.7","1.4","45.1","162","35900","higher","54.3","68.6","61.3","61.3","61.3","NaN","1.90","485","740.0","116","none","711.8","684.0","7.8","5.0","32","11","5.2","none","4.4","15.8","none","13.70","15.2","16","13.7","104.3","375","better","122.6","136.5","10.7","3","better","22.1","29.8","4.3","33","596048","better","2.4","19","596048","No Sig Diff","22.0","413","No Sig Diff","29.2","483","1653","better","52.6","18","none","55.8","56.6","431.1","107","24818","worse","95.2","1989","2088","1892.0","94.1","1966","2088","better","87.8","1709","1680.0","85.8","854","none","86.8","89.8","3857","1083.5","361.0","25.3","34.0","++","none","76","33.8","30.7","1.0","21","none","1.3","1.7","5.9","122","122","better","7.4","7.9","NaN","NaN","122","better","7.4","7.9","13.9","305","305","none","13.2","16.4","13.7","o","13.2","16.4","73.4","1602","1602","68.8","none","74.0","NaN","NaN","NaN","47.2","NaN","72.1","147","worse","147","51.5","56.3","390.5","3980","3980","better","better","483.9","483.9","494.4","494.4","3980","better","483.9","494.4","390.5","390.5","NaN","NaN","1.1","3098","2902","worse","44.2","1401","3173","worse","9.8","288","2768","No Sig Diff",99.334357398873493,291,29295,99.529253530598496,296,29740,95.835976892510104,287,29947,108.77986797657,351,32267,103.250592790467,344,33317,107.018561484919,369,34480,118,46,38973,159.95872033023701,62,38760,45.737808015550897,16,34982,61.2,22,35955,105.35946987550901,38,36067,429.851572366548,193,43903,80.8,31,38375,2327.8000000000002,100,4265,1287.4000000000001,138,10641,null,1209,114,9.4,35.1,39.5,58.8,"x",8.8000000000000007,8.8000000000000007,18.399999999999999,78.900000000000006,52.6,38.6,14,8.8000000000000007,1266,155,12.200000000000001,36.800000000000004,32.9,40.6,"x",8.4,7.7,18.100000000000001,66.5,38.700000000000003,31,11.600000000000001,15.5]
[821,"Luton",8580,240,700,580,200,510,8560,240,660,560,190,490,8320,240,600,560,190,470,null,208,3481,7.9,205.8,3578,8.9,203.6,3539,9.3000000000000007,198.8,3532,9,null,201549,46746,792,981,44973,44969,1411,366,26910,484,799,25627,25453,1152,305,null,"25.8","12145","12145","worse","17.1","21.1","4.4","320","320","worse","1.7","1.7","49.5","259","52300","higher","55.2","87.9","55.8","61.6","55.8","NaN","2.30","810","805.2","153","none","711.8","715.0","10.2","7.2","76","25","3.9","worse","4.4","19.9","none","13.70","11.9","28","13.7","129.4","675","none","122.6","113.6","26.8","12","none","22.1","20.0","4.4","32","696235","better","2.1","16","696235","No Sig Diff","22.6","681","No Sig Diff","38.5","969","2519","worse","33.0","16","better","55.8","30.9","-","NaN","NaN","No Data","95.9","3282","3422","3282.0","88.7","3034","3422","worse","83.0","2675","2675.0","84.0","1020","none","86.8","88.2","1020","1265.6","380.0","29.9","43.1","++","none","119","26.6","30.7","1.2","40","none","1.3","1.3","9.6","337","337","worse","7.4","6.9","NaN","NaN","337","worse","7.4","6.9","14.6","503","503","worse","13.2","13.2","15.5","o","13.2","13.2","68.7","2372","2372","75.3","worse","74.0","55.0","1877","47.0","47.2","worse","53.9","184","none","184","51.5","47.0","206.8","3451","3451","better","better","483.9","483.9","357.1","357.1","3451","better","483.9","357.1","206.8","206.8","NaN","NaN","0.8","4481","5524","worse","47.8","3008","6296","worse","13.8","764","4879","worse",98.005383394299102,426,43467,117.074275362319,517,44160,100.432977726197,450,44806,91.481239467620497,266,29077,102.910810630787,309,30026,112.03263995719399,335,29902,233.4,128,54834,267.46127196682801,149,55709,56.912882637505597,28,49198,72.8,38,52181,86.995990619562704,46,52876,235.542443868698,103,43060,169.2,93,54964,2542.3000000000002,177,6812,1203.3,208,16691,null,2826,562,19.899999999999999,31.1,28.1,20.8,17.3,5.2,8.6999999999999993,7.8,36.299999999999997,19.399999999999999,11,10.9,54.1,3408,509,14.9,34.4,27.900000000000002,21,15.100000000000001,4.9000000000000004,7.5,6.9,35.200000000000003,19.3,9.2000000000000011,10.8,54.6]
[822,"Bedford Borough",6640,130,400,440,140,390,6580,130,390,420,140,410,6360,100,370,410,120,380,null,161.4,2074,7.5,159.19999999999999,2116,6.4,157.80000000000001,2088,6.6,160.80000000000001,2119,6.7,null,154536,31482,425,689,30368,30643,647,192,16785,286,494,16005,15880,742,163,null,"19.2","6015","6015","better","17.1","21.1","2.7","178","178","worse","1.7","1.7","42.2","151","35800","No Sig Diff","82.6","82.6","60.6","61.6","60.6","NaN","2.40","727","522.3","84","better","711.8","715.0","7.3","5.8","37","12","3.9","none","4.4","11.5","none","13.70","11.9","11","13.7","100.6","361","better","122.6","113.6","21.3","7","none","22.1","20.0","5.5","26","480761","No Sig Diff","2.7","13","480761","No Sig Diff","24.7","453","worse","32.6","508","1560","No Sig Diff","37.7","13","better","55.8","30.9","-","NaN","NaN","No Data","97.6","2165","2218","2080.0","94.6","2098","2218","better","90.1","1826","1806.0","96.0","882","better","86.8","88.2","2243","3238.6","652.0","26.9","47.1","++","none","81","26.6","30.7","0.9","20","none","1.3","1.3","7.0","144","144","none","7.4","6.9","NaN","NaN","144","none","7.4","6.9","14.1","286","286","none","13.2","13.2","12.6","-","13.2","13.2","75.6","1531","1531","75.3","none","74.0","45.8","951","47.0","47.2","none","40.8","86","better","86","51.5","47.0","427.2","4374","4374","better","better","483.9","483.9","357.1","357.1","4374","better","483.9","357.1","427.2","427.2","NaN","NaN","2.1","3265","1576","worse","21.8","406","1862","better","8.2","124","1485","better",86.306489976214706,254,29430,96.271601578446095,283,29396,86.869025658225695,259,29815,137.92755014399,273,19793,125.670574210213,253,20132,116.708229426434,234,20050,192.4,73,37942,237.684793397064,91,38286,92.613381230354705,33,35632,61.3,22,35875,63.699559642174599,23,36107,300.52004311964703,90,29814,92.2,35,37942,1727.7,68,4046,851.5,84,10102,null,1271,161,12.7,40.4,21.1,40.4,13.7,16.100000000000001,5.6,23,64,31.7,39.1,14.3,25.5,1355,142,10.5,38.700000000000003,20.400000000000002,40.1,10.600000000000001,16.900000000000002,6.3000000000000007,22.5,57.7,31.700000000000003,40.800000000000004,11.3,17.600000000000001]
[823,"Central Bedfordshire",8690,200,630,700,200,540,8600,160,620,660,210,520,8250,160,590,610,200,480,null,264.5,3214,6.4,260,3295,5.9,255.6,3298,6.4,255.2,3176,6.1,null,252120,49756,661,995,48100,48629,899,228,25130,402,761,23967,24030,884,216,null,"13.4","6555","6555","better","17.1","21.1","1.3","136","136","better","1.7","1.7","40.2","227","56400","No Sig Diff","87.0","91.3","62.3","61.6","62.3","NaN","2.70","1065","596.4","150","better","711.8","715.0","6.3","2.5","24","8","3.9","better","4.4","13.8","none","13.70","11.9","22","13.7","111.6","629","better","122.6","113.6","14.7","7","none","22.1","20.0","7.6","53","739916","No Sig Diff","2.6","19","739916","No Sig Diff","18.7","566","better","30.0","779","2600","better","27.8","16","better","55.8","30.9","-","NaN","NaN","No Data","97.6","3289","3370","3374.0","94.6","3187","3370","better","90.1","2968","2988.0","96.0","1361","better","86.8","88.2","2243","1218.1","356.0","27.2","37.2","++","none","127","26.6","30.7","1.5","46","none","1.3","1.3","6.7","219","219","none","7.4","6.9","NaN","NaN","219","none","7.4","6.9","14.1","451","451","better","13.2","13.2","12.6","-","13.2","13.2","75.6","2417","2417","75.3","better","74.0","45.8","1500","47.0","47.2","better","44.7","140","none","140","51.5","47.0","279.1","4500","4500","better","better","483.9","483.9","357.1","357.1","4500","better","483.9","357.1","279.1","279.1","NaN","NaN","1.1","4154","3864","worse","42.9","1903","4434","worse","11.8","401","3325","worse",95.658731013680907,444,46415,115.791961159209,539,46549,89.907559832847895,426,47382,114.721415830156,328,28591,103.674810100595,303,29226,102.976779077301,302,29327,109.6,65,59299,129.282482223659,78,60333,58.501302983566497,33,56409,44.4,25,56350,94.456786020395697,54,57169,280.14439584986502,124,44448,82.3,49,59562,2055,134,6405,975.7,159,16117,null,1631,192,11.8,"x",28.1,55.7,"x",0,6.3,20.3,76,7.3,0,11.5,0,1541,227,14.700000000000001,41.400000000000006,22.900000000000002,45.800000000000004,16.3,8.8000000000000007,4.4000000000000004,18.100000000000001,65.2,28.200000000000003,33,11.5,19.400000000000002]
[825,"Buckinghamshire",14540.000000000002,320,1060,1120,370,940,14470,340,1020,1060,339.99999999999994,930,14070,339.99999999999994,990,1070,320.00000000000006,880,null,516.1,5822,7,511.5,6197,6.8,506.6,6133,6.8,498.1,6103,6.9,null,497299,101066,1159,1871,98036,98903,1715,448,48206,763,1324,46119,46106,1686,414,null,"10.8","10530","10530","better","15.5","21.1","1.0","191","191","better","1.7","1.1","31.3","362","115500","lower","94.6","78.6","65.6","66.4","65.6","NaN","3.40","2916","430.8","226","better","711.8","579.0","8.2","4.2","77","26","3.7","none","4.4","15.7","none","13.70","11.7","51","13.7","117.6","1359","none","122.6","113.5","14.7","15","better","22.1","20.1","8.0","114","1499461","worse","2.4","34","1499461","No Sig Diff","20.6","1171","better","30.0","1423","4737","better","26.4","30","better","55.8","45.9","192.9","146","75686","better","98.6","6010","6098","5975.0","96.6","5890","6098","better","90.1","5596","5595.0","87.7","2823","worse","86.8","85.6","2896","1003.5","578.0","18.6","24.8","++","better","184","26.1","30.7","0.8","45","better","1.3","1.2","7.3","446","446","none","7.4","6.6","NaN","NaN","446","none","7.4","6.6","7.5","452","452","better","13.2","11.4","7.5","o","13.2","11.4","79.3","4754","4754","78.1","better","74.0","56.5","3333","50.9","47.2","better","58.1","336","worse","336","51.5","54.0","393.1","12258","12258","better","better","483.9","483.9","370.4","370.4","12258","better","483.9","370.4","393.1","393.1","NaN","NaN","1.0","9415","9878","worse","42.3","4553","10768","worse","11.3","887","7494","worse",111.51632691780701,1058,94874,118.376668272958,1130,95458,89.998967901744294,872,96890,123.361332724142,702,56906,118.235324756498,681,57597,98.611809154087396,569,57701,161.30000000000001,196,121479,137.74997569118099,170,123412,45.979803588159797,53,115268,28.6,33,115545,59.035917794623501,69,116878,203.10227455854201,181,89972,73,89,121920,2407.5,303,12512,1412.2,447,31918,null,1973,322,16.3,20.5,7.8,10.9,"x","x",3.4,"x",41,16.5,"x",2.8,12.1,2417,367,15.200000000000001,23.400000000000002,9,11.4,"x","x",3.8000000000000003,"x",40.300000000000004,16.100000000000001,1.6,3.5,11.4]
[826,"Milton Keynes",10500,220,680,620,200,570,10400,210,630,590,190,560,9970,210,560,550,180,540,null,255.7,3901,7.9,252.4,3887,7.4,249.9,3927,6.9,241.5,3912,7.8,null,246715,55359,719,1092,53548,53995,1079,285,25362,508,784,24070,23999,1085,278,null,"20.8","10990","10990","none","15.5","21.1","2.5","236","236","worse","1.7","1.1","8.9","55","62000","lower","97.4","92.1","66.9","66.4","66.9","NaN","2.90","1247","621.6","149","none","711.8","579.0","8.7","4.6","53","18","3.7","none","4.4","17.9","none","13.70","11.7","30","13.7","129.6","800","none","122.6","113.5","10.7","6","better","22.1","20.1","6.8","51","766746","No Sig Diff","2.5","19","766746","No Sig Diff","22.5","702","No Sig Diff","33.3","952","2862","No Sig Diff","29.0","17","better","55.8","45.9","185.0","84","45407","better","96.8","3992","4122","3990.0","92.2","3803","4122","No Sig Diff","86.6","3284","3288.0","86.6","1207","worse","86.8","85.6","1238","2351.0","678.0","21.7","51.2","++","better","99","26.1","30.7","1.0","36","none","1.3","1.2","7.2","284","284","none","7.4","6.6","NaN","NaN","284","none","7.4","6.6","12.3","473","473","none","13.2","11.4","12.1","o","13.2","11.4","73.9","2838","2838","78.1","none","74.0","53.1","2063","50.9","47.2","none","19.2","68","better","68","51.5","54.0","326.2","6109","6109","better","better","483.9","483.9","370.4","370.4","6109","better","483.9","370.4","326.2","326.2","NaN","NaN","0.8","5130","6243","worse","47.6","3122","6558","worse","13.1","722","5116","worse",109.363648858259,557,50931,118.219086662218,620,52445,88.467437249840998,473,53466,155.99876843077601,456,29231,159.506224210271,460,28839,111.690508068494,317,28382,179.8,116,64520,201.435798018962,133,66026,75.030267892161007,44,58643,42.1,26,61731,50.871977489149998,32,62903,277.76513337351702,117,44066,78.5,51,64950,2743.3,225,8145,1403.3,286,19976,null,1313,231,17.600000000000001,29,30.3,45.5,8.6999999999999993,17.3,6.1,33.799999999999997,68.8,33.299999999999997,43.3,15.6,3.9,1487,237,15.9,34.200000000000003,34.6,47.300000000000004,8.4,18.600000000000001,10.100000000000001,34.200000000000003,64.600000000000009,32.1,40.5,18.600000000000001,3.4000000000000004]
[830,"Derbyshire",45779.999999999993,560,1749.9999999999998,1930,700,1980,45960.000000000007,540,1659.9999999999998,1920,720,1930,45400.000000000007,520,1579.9999999999995,1890,679.99999999999989,1860,null,776.2,7839,6.7,773.5,8361,6.1,770.7,8483,6.2,763.7,8404,6.7,null,760840,136236,2053,2933,131250,133024,2545,667,77245,1680,2574,72991,73145,3260,840,null,"17.4","23355","23355","better","19.3","21.1","0.8","271","271","better","1.7","1.6","35.3","552","156500","No Sig Diff","83.3","86.5","68.2","64.7","68.2","NaN","2.70","3042","601.0","446","better","711.8","834.0","5.9","3.3","83","28","4.5","better","4.4","12.8","none","13.70","13.4","56","13.7","110.4","1730","better","122.6","111.8","19.0","26","none","22.1","21.9","7.7","162","2140526","worse","2.9","59","2140526","No Sig Diff","22.0","1675","No Sig Diff","33.0","2382","7224","No Sig Diff","65.8","104","worse","55.8","48.1","103.0","103","100047","better","98.3","7799","7930","7826.0","94.9","7529","7930","better","90.3","7033","6991.0","82.9","3527","none","86.8","90.7","3335","1949.1","1726.0","25.8","41.6","++","better","373","31.3","30.7","1.6","132","worse","1.3","1.6","6.4","543","543","better","7.4","7.5","NaN","NaN","543","better","7.4","7.5","15.6","1220","1220","worse","13.2","15.7","16.6","o","13.2","15.7","70.3","5516","5516","72.8","worse","74.0","44.7","3544","43.7","47.2","worse","43.2","357","better","357","51.5","44.1","465.2","19505","19505","better","better","483.9","483.9","409.0","409.0","19505","better","483.9","409.0","465.2","465.2","NaN","NaN","1.6","19002","11975","worse","34.6","4439","12815","worse","9.3","968","10426","better",99.768017806200803,1273,127596,99.186966249645494,1259,126932,82.458770614692696,1045,126730,157.81466427484699,1390,88078,145.562544464897,1289,88553,134.27233241474701,1184,88179,144.6,240,166001,188.60054766697499,312,165429,69.102309808689,108,156290,58.7,92,156666,64.186088307220302,100,155797,377.538840665436,495,131559,60.2,100,166176,2228.4,372,16647,1138.0999999999999,475,41705,null,4410,805,18.3,18.5,19.5,3.9,9.6999999999999993,0,5.8,0,46.8,33.299999999999997,0,8.9,54.7,4501,828,18.400000000000002,19.900000000000002,19.3,5,11.200000000000001,0,6.6000000000000005,0,51.2,37.6,0,8.5,55.400000000000006]
[831,"Derby",14570,290,720,720,260,700,14520,280,640,710,230,730,14280,260,620,680,200,680,null,251.4,3359,9.1,250.6,3756,8.6,248.9,3655,8.8000000000000007,246.9,3521,9,null,244625,50648,856,1163,48629,49103,1204,341,31617,604,1154,29859,29660,1604,353,null,"24.6","12225","12225","worse","19.3","21.1","1.4","144","144","better","1.7","1.6","40.0","228","57000","No Sig Diff","73.9","75.4","55.7","64.7","55.7","NaN","2.50","1032","1038.3","236","worse","711.8","834.0","8.9","6.4","69","23","4.5","worse","4.4","18.7","none","13.70","13.4","29","13.7","122.4","697","none","122.6","111.8","29.7","14","none","22.1","21.9","4.5","37","798884","better","2.3","21","798884","No Sig Diff","20.9","590","No Sig Diff","33.8","856","2535","No Sig Diff","53.9","29","none","55.8","48.1","-","NaN","NaN","No Data","98.6","3860","3913","3860.0","93.8","3670","3913","better","90.0","3146","3146.0","93.1","1446","better","86.8","90.7","1446","2351.5","858.0","41.4","63.8","++","worse","182","31.3","30.7","1.7","61","none","1.3","1.6","9.2","339","339","worse","7.4","7.5","NaN","NaN","339","worse","7.4","7.5","15.2","601","601","none","13.2","15.7","14.3","o","13.2","15.7","73.1","2899","2899","72.8","none","74.0","39.4","1584","43.7","47.2","none","30.3","110","better","110","51.5","44.1","670.2","11140","11140","worse","worse","483.9","483.9","409.0","409.0","11140","worse","483.9","409.0","670.2","670.2","NaN","NaN","1.2","4114","3450","worse","27.3","1095","4007","better","8.2","271","3363","better",111.4561619943,524,47014,98.088531187122697,468,47712,79.810941354505701,385,48239,173.845642785959,628,36124,160.05262003946501,584,36488,122.596219045811,452,36869,183.8,111,60397,174.52006980802801,106,60738,82.801708726171,44,53139,100.1,57,56926,47.007207771858397,27,57438,473.52029122034003,247,51388,29.8,18,60360,1808.6,127,7141,1016.4,179,17808,null,2144,266,12.4,22.2,27.4,48.5,11.3,19.2,33.5,36.1,59.8,37.6,48.5,14.3,15.8,2566,146,5.7,26.700000000000003,37,61.6,12.3,19.900000000000002,9.6000000000000014,45.2,87.7,41.800000000000004,61,15.8,22.6]
[835,"Dorset",17700,250,929.99999999999989,1020,390,1060,17610,240,850.00000000000011,1000,370,1040,17110,220,820.00000000000011,1000,350,950,null,416.7,3547,6.4,414.9,3674,6.4,413.8,3658,6.3,404.8,3664,7.1,null,403366,65908,954,1547,63407,64310,1253,345,35675,763,1326,33586,33802,1489,384,null,"13.7","9005","9005","better","16.6","21.1","0.9","165","165","better","1.7","1.1","41.5","322","77500","No Sig Diff","82.5","75.0","74.2","65.1","74.2","NaN","2.50","1481","412.9","168","better","711.8","688.0","6.5","3.6","40","13","3.6","none","4.4","7.5","better","13.70","12.9","17","13.7","146.6","1139","worse","122.6","119.5","18.5","13","none","22.1","14.8","7.2","75","1055532","No Sig Diff","2.4","24","1055532","No Sig Diff","22.3","809","No Sig Diff","29.4","1017","3457","better","59.4","48","none","55.8","62.0","62.2","29","46651","better","96.8","3664","3784","3664.0","94.0","3557","3784","better","80.2","3029","3029.0","82.3","1828","worse","86.8","83.8","1828","1432.1","629.0","22.5","31.1","++","better","165","27.3","30.7","1.4","42","none","1.3","1.3","6.5","237","237","none","7.4","6.2","NaN","NaN","237","none","7.4","6.2","14.7","506","506","better","13.2","13.1","17.6","+","13.2","13.1","81.7","2815","2815","78.0","better","74.0","54.2","1822","49.7","47.2","better","52.6","158","none","158","51.5","56.0","259.1","5039","5039","better","better","483.9","483.9","413.7","413.7","5039","better","483.9","413.7","259.1","259.1","NaN","NaN","1.4","8561","6334","worse","42.8","3105","7263","worse","10.3","479","4618","No Sig Diff",112.728905423174,703,62362,143.35360556038199,891,62154,116.284688109005,722,62089,163.287646240507,716,43849,154.36104091250601,678,43923,162.20976039301101,700,43154,206,170,82516,181.05815733832401,149,82294,167.37446914813901,134,80060,218.8,170,77702,251.37348398465801,194,77176,406.96266623245702,261,65461,102.8,85,82647,2833.1,207,7445,1397.9,259,19417,null,2181,277,12.7,31.4,23.1,37.200000000000003,10.5,5.8,4,14.8,62.5,27.8,31.8,6.1,17.7,2260,259,11.5,31.3,27,36.700000000000003,10,6.2,4.6000000000000005,15.8,61,28.200000000000003,32.800000000000004,6.2,18.5]
[836,"Poole",6140,110,280,360,130,350,6130,90,280,370,110,340,6000,80,280,340,110,310,null,149,1622,5.3,148.6,1670,7.1,148.1,1768,5.2,142.1,1787,6.4,null,145103,25474,357,557,24560,24810,505,159,14238,272,483,13483,13488,605,145,null,"17.5","4350","4350","better","16.6","21.1","1.0","63","63","better","1.7","1.1","43.5","127","29200","No Sig Diff","95.2","90.5","70.0","65.1","70.0","NaN","2.60","520","562.6","72","better","711.8","688.0","6.3","3.8","20","7","3.6","none","4.4","8.8","none","13.70","12.9","7","13.7","146.8","429","worse","122.6","119.5","13.3","3","none","22.1","14.8","5.2","21","396876","No Sig Diff","2.9","12","396876","No Sig Diff","22.9","332","No Sig Diff","29.0","345","1189","better","70.7","20","none","55.8","62.0","-","NaN","NaN","No Data","94.3","1703","1805","1794.0","83.8","1513","1805","worse","70.0","1255","1291.0","89.4","689","better","86.8","83.8","1427","1458.2","245.0","31.3","43.3","++","none","80","27.3","30.7","1.5","13","none","1.3","1.3","5.5","98","98","better","7.4","6.2","NaN","NaN","98","better","7.4","6.2","10.9","201","201","better","13.2","13.1","11.1","o","13.2","13.1","77.3","1425","1425","78.0","better","74.0","50.9","932","49.7","47.2","better","107.1","95","worse","95","51.5","56.0","331.0","2740","2740","better","better","483.9","483.9","413.7","413.7","2740","better","483.9","413.7","331.0","331.0","NaN","NaN","1.1","2986","2672","worse","44.8","1359","3033","worse","13.1","330","2313","worse",127.16132281349699,303,23828,143.672177570483,345,24013,131.31895274164299,319,24292,224.705742480086,378,16822,186.88251398643001,314,16802,210.02210759027301,342,16284,213,66,30991,256.38560394833797,80,31203,218.394448554017,62,28389,164.3,48,29216,91.721303121921395,27,29437,638.85321855713596,159,24037,41.9,13,31015,2915.4,101,3420,1423.4,123,8501,null,1068,232,21.7,26.3,30.2,34.5,6.9,9.5,4.7,17.7,45.3,26.3,24.6,10.3,25,1095,257,23.5,29.200000000000003,29.200000000000003,29.200000000000003,6.2,8.9,4.3,14.4,41.6,26.1,21.400000000000002,9.7000000000000011,21]
[837,"Bournemouth",8530,110,330,380,130,430,8580,120,300,380,130,440,8320,120,290,370,110,410,null,188.7,2366,4.5999999999999996,186.7,2348,5.4,183.5,2337,6.5,168.1,2224,6.2,null,179138,28188,422,638,27128,27361,634,193,25390,331,819,24240,23978,1162,250,null,"20.8","5625","5625","none","16.6","21.1","1.0","75","75","better","1.7","1.1","58.2","185","31800","higher","100.0","89.3","65.0","65.1","65.0","NaN","2.50","564","741.2","94","none","711.8","688.0","5.9","2.8","19","6","3.6","none","4.4","11.7","none","13.70","12.9","10","13.7","129.3","411","none","122.6","119.5","27.5","7","none","22.1","14.8","3.7","22","504082","better","2.9","18","504082","No Sig Diff","22.5","355","No Sig Diff","30.0","364","1215","better","84.3","25","worse","55.8","62.0","26.2","6","22861","better","94.3","2120","2248","2029.0","83.8","1884","2248","worse","70.0","1348","1312.0","89.4","738","better","86.8","83.8","1427","2290.1","643.0","31.7","51.6","++","none","81","27.3","30.7","0.8","10","none","1.3","1.3","6.7","156","156","none","7.4","6.2","NaN","NaN","156","none","7.4","6.2","10.9","265","265","better","13.2","13.1","11.1","o","13.2","13.1","77.3","1882","1882","78.0","better","74.0","50.9","1232","49.7","47.2","better","110.4","146","worse","146","51.5","56.0","346.9","3285","3285","better","better","483.9","483.9","413.7","413.7","3285","better","483.9","413.7","346.9","346.9","NaN","NaN","1.1","3695","3323","worse","44.1","1597","3618","worse","11.3","314","2548","No Sig Diff",109.458105295614,284,25946,121.831992178687,324,26594,116.55436168275401,320,27455,139.462809917355,378,27104,143.17768992413701,402,28077,169.75200838281501,486,28630,178.2,61,34228,160.77170418006401,56,34832,162.38709022632699,48,29559,147.9,47,31784,57.999328428828697,19,32759,555.89303958630205,214,36767,85.6,29,33877,3144.9,138,4325,1539.3,166,10319,null,1406,145,10.3,33.799999999999997,7.6,"x",9,0,"x","x",44.8,18.600000000000001,0,"x",26.2,1684,139,8.3000000000000007,30.900000000000002,7.9,"x",9.4,0,"x","x",43.900000000000006,25.200000000000003,0,"x",26.6]
[840,"Durham",40170,470,1450,1510,560,1570,40810,470,1350,1550,540,1580,40190,430,1280,1490,480,1530,null,516,5388,7,514.29999999999995,5701,7.2,513,5829,7.3,510.8,5846,7,null,500288,87671,1664,2123,83884,85166,1851,654,56322,1411,2026,52885,53164,2407,751,null,"23.0","20445","20445","worse","24.8","21.1","1.2","254","254","better","1.7","1.1","45.5","455","100100","higher","72.4","90.8","56.8","60.6","56.8","NaN","3.20","2383","638.1","298","none","711.8","869.0","6.6","4.0","69","23","3.7","none","4.4","11.3","none","13.70","13.3","33","13.7","192.1","1923","worse","122.6","177.5","23.8","21","none","22.1","29.0","7.9","129","1493725","worse","4.1","68","1493725","worse","23.6","1261","No Sig Diff","38.3","1822","4757","worse","116.0","118","worse","55.8","96.5","203.7","137","67249","better","98.3","5640","5739","5640.0","96.7","5552","5739","better","91.9","5189","5189.0","84.9","2304","none","86.8","90.5","2304","1752.3","1188.0","37.4","54.4","++","worse","324","38.4","30.7","2.6","155","worse","1.3","2.3","7.7","450","450","none","7.4","7.6","NaN","NaN","450","none","7.4","7.6","21.3","1216","1216","worse","13.2","20.7","22.9","o","13.2","20.7","58.2","3330","3330","58.9","worse","74.0","27.7","1602","30.2","47.2","worse","48.7","294","none","294","51.5","48.1","347.8","9801","9801","better","better","483.9","483.9","577.0","577.0","9801","better","483.9","577.0","347.8","347.8","NaN","NaN","0.5","5716","10594","No Sig Diff","40.7","4955","12173","worse","10.1","1055","10007","No Sig Diff",170.05351504882199,1395,82033,183.37809427748499,1509,82289,164.949703066295,1361,82510,232.547896939,1584,68115,205.76131687242801,1395,67797,189.52896477871201,1292,68169,196.1,210,107070,278.62731485824702,297,106594,102.132891749051,103,100849,89.9,90,100091,77.814024481489199,78,100239,410.53572082841902,401,95017,106.9,114,106628,3344.7,394,11652,1650.6,483,28661,null,"..","..","..","..","..","..","..","..","..","..","..","..","..","..","..",3038,357,11.8,38.400000000000006,45.900000000000006,61.1,17.600000000000001,9.5,11.8,31.400000000000002,78.7,38.1,40.6,17.100000000000001,"x"]
[841,"Darlington",6210,100,270,270,80,280,6330,90,260,260,100,290,6230,80,240,270,100,270,null,105.4,1227,7.3,105.2,1359,7.1,105.6,1306,7.2,100.8,1357,5.8,null,104111,20157,354,446,19357,19604,420,133,11051,216,368,10467,10495,450,106,null,"21.3","4245","4245","none","24.8","21.1","0.2","9","9","better","1.7","1.1","39.7","91","22900","No Sig Diff","91.7","95.8","67.1","60.6","67.1","NaN","2.40","381","741.2","71","none","711.8","869.0","7.7","3.5","14","5","3.7","none","4.4","14.1","none","13.70","13.3","9","13.7","205.9","472","worse","122.6","177.5","13.6","3","none","22.1","29.0","8.2","24","305059","No Sig Diff","4.7","14","305059","No Sig Diff","24.5","259","No Sig Diff","31.7","292","922","No Sig Diff","121.8","27","worse","55.8","96.5","51.4","8","15568","better","98.6","1288","1306","1288.0","95.8","1251","1306","better","88.9","1047","1047.0","87.9","581","none","86.8","90.5","581","1875.9","234.0","39.5","64.0","++","worse","76","38.4","30.7","2.4","33","worse","1.3","2.3","7.5","97","97","none","7.4","7.6","NaN","NaN","97","none","7.4","7.6","19.6","257","257","worse","13.2","20.7","21.7","+","13.2","20.7","63.7","834","834","58.9","worse","74.0","35.0","449","30.2","47.2","worse","57.9","81","none","81","51.5","48.1","459.6","2988","2988","better","better","483.9","483.9","577.0","577.0","2988","better","483.9","577.0","459.6","459.6","NaN","NaN","1.1","3121","2826","worse","44.0","1410","3205","worse","11.7","337","2767","worse",173.83445856148001,327,18811,198.391704581526,375,18902,140.73287307488101,265,18830,215.87352539924601,269,12461,188.391855058522,235,12474,219.81627296587899,268,12192,252.6,61,24152,374.08038571844202,90,24059,132.86296788381401,29,21827,139.6,32,22928,140.622253471612,32,22756,601.02623792280701,108,18176,107.5,26,24190,4124.7,110,2680,2005.7,133,6565,null,850,184,21.6,30.4,17.899999999999999,19,"x","x",5.4,3.3,37,20.100000000000001,3.8,3.8,17.399999999999999,897,166,18.5,27.700000000000003,13.9,16.3,"x",0,4.2,"x",33.700000000000003,20.5,"x",6.6000000000000005,14.5]
[845,"East Sussex",25540,360.00000000000006,1200,1350,490,1470,25310,330,1140,1350,490,1450,24570,320,1119.9999999999998,1340,500,1410,null,534.4,5268,6,531.20000000000005,5451,6.2,527.20000000000005,5399,5.5,515.5,5364,6,null,515598,90322,1451,2169,86702,87645,2077,600,49874,1252,1947,46675,46791,2385,698,null,"18.7","16485","16485","better","15.5","21.1","1.0","228","228","better","1.7","1.1","64.6","674","104300","higher","93.1","96.6","57.6","66.4","57.6","NaN","3.60","2557","504.1","251","better","711.8","579.0","6.2","4.1","66","22","3.7","none","4.4","14.6","none","13.70","11.7","43","13.7","123.7","1292","none","122.6","113.5","27.5","25","none","22.1","20.1","7.8","109","1405517","No Sig Diff","3.6","50","1405517","No Sig Diff","21.8","1065","No Sig Diff","30.7","1326","4323","better","61.6","64","none","55.8","45.9","23.0","15","65167","better","95.9","5115","5335","5115.0","91.5","4880","5335","No Sig Diff","84.2","4587","4587.0","77.1","2327","worse","86.8","85.6","2327","1712.4","996.0","31.8","39.8","++","none","299","26.1","30.7","1.4","69","none","1.3","1.2","5.8","309","309","better","7.4","6.6","NaN","NaN","309","better","7.4","6.6","NaN","NaN","NaN","NaN","13.2","11.4","16.6","o","13.2","11.4","NaN","NaN","-","78.1","NaN","74.0","48.0","2559","50.9","47.2","worse","26.2","134","better","134","51.5","54.0","349.2","9452","9452","better","better","483.9","483.9","370.4","370.4","9452","better","483.9","370.4","349.2","349.2","NaN","NaN","1.6","13583","8353","worse","44.5","4142","9308","worse","11.1","874","7680","worse",133.99245479380801,1133,84557,132.68444433970001,1126,84863,115.820630111024,990,85477,151.06160807518299,868,57460,127.568125161179,742,58165,116.19450024243299,671,57748,177.1,196,110642,207.54157569876801,231,111303,110.72597727710399,115,103860,82.3,86,104441,85.973844845868001,90,104683,287.25887579084298,249,87178,112.9,125,110670,2269,247,10896,1233.0999999999999,337,27558,null,4863,672,13.8,27.4,16.399999999999999,4.5999999999999996,1.9,0,1.8,"x",27.1,12.9,0,2.7,5.2,4325,598,13.8,28.1,14,4.8000000000000007,2.2000000000000002,0,1.8,"x",27.1,12.700000000000001,0,3.2,5.7]
[846,"Brighton and Hove",14000,190,580,660,230,830,14060,190,540,660,230,870,13720,190,540,660,240,850,null,278.10000000000002,2967,7.3,275.8,3166,6.6,273,3291,7,258.8,3291,7.2,null,266059,44109,625,1098,42386,42903,951,255,39050,680,1432,36938,36530,1970,550,null,"20.7","8880","8880","none","15.5","21.1","2.9","334","334","worse","1.7","1.1","61.7","308","49900","higher","80.6","83.6","67.3","66.4","67.3","NaN","3.30","1179","480.6","95","better","711.8","579.0","8.3","4.8","47","16","3.7","none","4.4","8.9","none","13.70","11.7","12","13.7","108.1","540","better","122.6","113.5","34.6","15","worse","22.1","20.1","4.9","50","803832","No Sig Diff","2.2","23","803832","No Sig Diff","18.9","471","better","29.6","567","1915","better","77.1","36","worse","55.8","45.9","340.9","121","35498","No Sig Diff","93.8","3030","3232","3030.0","89.9","2906","3232","worse","82.0","2427","2427.0","79.8","1030","worse","86.8","85.6","1030","3285.9","1493.0","29.4","48.1","++","none","114","26.1","30.7","1.1","33","none","1.3","1.2","7.1","236","236","none","7.4","6.6","NaN","NaN","236","none","7.4","6.6","7.6","251","251","better","13.2","11.4","7.7","o","13.2","11.4","85.8","2847","2847","78.1","better","74.0","76.0","2525","50.9","47.2","better","36.7","112","better","112","51.5","54.0","557.1","8247","8247","worse","worse","483.9","483.9","370.4","370.4","8247","worse","483.9","370.4","557.1","557.1","NaN","NaN","1.0","3780","3613","worse","26.9","871","3234","better","7.8","164","2074","better",110.11566974958301,456,41411,105.504916385559,441,41799,110.786201649906,466,42063,141.75724637681199,626,44160,160.005282155119,727,45436,116.231952056986,545,46889,209.9,113,53837,222.980062959077,119,53368,102.245132705662,48,46946,66.099999999999994,33,49947,87.8980382756003,44,50058,436.53640199791101,281,60109,39.4,21,53290,1840.1,115,6182,976.5,151,15092,null,1812,229,12.6,25.8,30.1,25.8,10.5,"x",8.6999999999999993,9.1999999999999993,45.4,12.7,6.1,10.5,34.9,1796,193,10.700000000000001,24.900000000000002,30.6,22.8,7.8000000000000007,"x",7.8000000000000007,10.9,36.300000000000004,23.8,5.2,16.600000000000001,29.5]
[850,"Hampshire",47140,930.00000000000011,2940,3119.9999999999995,1110,3090,47150.000000000007,889.99999999999989,2820,3100,1090,3070,46000,879.99999999999989,2720,3139.9999999999995,1060,2940.0000000000005,null,1337.7,14275,6.6,1330.2,15400,5.9,1322.1,15238,6,1296.8,14972,6.1,null,1296211,244629,3294,5272,236063,238836,4650,1143,129152,2363,4275,122514,122783,5183,1186,null,"12.8","30185","30185","better","15.5","21.1","0.6","299","299","better","1.7","1.1","28.4","795","280200","lower","86.8","84.9","64.4","66.4","64.4","NaN","2.70","4907","592.4","756","better","711.8","579.0","5.7","3.3","149","50","3.7","better","4.4","10.1","better","13.70","11.7","78","13.7","120.0","3361","none","122.6","113.5","21.8","53","none","22.1","20.1","6.0","218","3750277","No Sig Diff","2.6","92","3750277","No Sig Diff","21.2","2855","better","28.8","3372","11713","better","43.5","120","better","55.8","45.9","78.2","143","182825","better","97.0","15036","15503","15036.0","93.1","14440","15503","better","88.4","13599","13599.0","88.8","6345","better","86.8","85.6","6345","1729.4","2638.0","23.3","35.9","++","better","567","26.1","30.7","1.1","171","better","1.3","1.2","6.2","952","952","better","7.4","6.6","NaN","NaN","952","better","7.4","6.6","12.2","1812","1812","better","13.2","11.4","12.6","o","13.2","11.4","78.5","11656","11656","78.1","better","74.0","NaN","NaN","50.9","47.2","NaN","65.0","977","worse","977","51.5","54.0","330.5","24845","24845","better","better","483.9","483.9","370.4","370.4","24845","better","483.9","370.4","330.5","330.5","NaN","NaN","1.2","28124","22695","worse","42.2","10413","24700","worse","10.9","2234","19817","worse",102.807209175314,2353,228875,115.648449605655,2657,229748,96.628795899758401,2236,231401,160.74131355792201,2432,151299,157.337843684852,2400,152538,144.25533326697899,2174,150705,151.69999999999999,449,295942,202.708371788633,604,297965,290.448597859394,800,275436,230.2,645,280161,120.81242804553899,340,281428,395.48343213833698,898,227646,77.5,230,296694,2403.6,740,30830,1227,946,77418,null,6502,1534,23.6,14.5,33.799999999999997,21.1,5.9,8.6,7.1,0,65,25.2,10.6,11,7.6,8020,1384,17.3,14.100000000000001,28.8,20.8,5.6000000000000005,8.5,6.1000000000000005,0,66.3,26.200000000000003,10,11.9,6.9]
[851,"Portsmouth",9350,220,470,440,160,530,9330,190,450,430,170,530,9090,160,430,430,170,540,null,207.5,2748,7,206.8,2782,6.7,205.4,2674,6.4,207.1,2740,6.4,null,200052,37707,593,1014,36100,36536,924,247,33455,506,907,32042,31592,1522,341,null,"25.6","9090","9090","worse","15.5","21.1","4.4","363","363","worse","1.7","1.1","42.4","180","42500","No Sig Diff","91.3","82.6","63.9","66.4","63.9","NaN","3.10","822","803.1","130","none","711.8","579.0","5.9","3.2","26","9","3.7","none","4.4","7.9","none","13.70","11.7","9","13.7","119.5","507","none","122.6","113.5","42.5","15","worse","22.1","20.1","3.7","30","686533","better","1.7","15","686533","No Sig Diff","23.0","484","No Sig Diff","36.2","585","1618","No Sig Diff","53.0","20","none","55.8","45.9","-","NaN","NaN","No Data","96.1","2675","2785","2675.0","91.3","2542","2785","No Sig Diff","83.8","2170","2170.0","90.4","872","better","86.8","85.6","872","2373.3","910.0","33.3","57.0","++","none","112","26.1","30.7","1.3","34","none","1.3","1.2","6.5","175","175","none","7.4","6.6","NaN","NaN","175","none","7.4","6.6","17.5","464","464","none","13.2","11.4","17.7","o","13.2","11.4","73.6","1954","1954","78.1","none","74.0","46.1","1292","50.9","47.2","none","63.3","164","worse","164","51.5","54.0","223.6","2757","2757","better","better","483.9","483.9","370.4","370.4","2757","better","483.9","370.4","223.6","223.6","NaN","NaN","0.8","3564","4515","No Sig Diff","47.7","2236","4690","worse","12.9","559","3940","worse",115.695326024235,401,34660,114.402968293231,407,35576,104.78538608091399,374,35692,137.690865255826,514,37330,144.742332568329,555,38344,121.835726535105,476,39069,182.6,84,46010,209.89372749165901,95,45261,127.11754481542,49,38547,82.5,35,42428,113.01297294752,48,42473,495.15329567355002,256,49587,136.5,62,45408,3438.5,194,5664,1610.3,225,13588,null,1296,195,15,28.7,50.8,56.9,17.899999999999999,25.1,6.2,37.4,75.400000000000006,32.799999999999997,53.3,9.6999999999999993,5.6,1328,181,13.600000000000001,34.300000000000004,42.5,50.300000000000004,12.200000000000001,21.5,5,37,74,28.200000000000003,47,8.3000000000000007,"x"]
[852,"Southampton",12160,250,580,540,220,630,12090,220,510,540,190,680,11970,200,490,540,180,670,null,242.1,3272,7.2,239.4,3420,6.3,235.9,3550,7.4,239.7,3448,7,null,228459,41313,706,954,39653,39937,1086,290,38153,559,1237,36357,36043,1727,383,null,"26.8","10790","10790","worse","15.5","21.1","1.5","151","151","none","1.7","1.1","58.2","269","46200","higher","85.5","87.3","56.6","66.4","56.6","NaN","2.30","670","957.6","172","worse","711.8","579.0","7.9","4.5","46","15","3.7","none","4.4","7.9","none","13.70","11.7","10","13.7","165.6","764","worse","122.6","113.5","35.7","14","worse","22.1","20.1","3.6","34","818498","better","1.6","20","818498","better","22.4","551","No Sig Diff","34.1","644","1886","No Sig Diff","97.2","42","worse","55.8","45.9","166.6","58","34817","better","96.6","3255","3370","3255.0","93.3","3143","3370","better","89.8","2685","2685.0","81.7","884","worse","86.8","85.6","884","1500.2","691.0","47.4","60.9","++","worse","170","26.1","30.7","2.1","81","worse","1.3","1.2","7.9","281","281","none","7.4","6.6","NaN","NaN","281","none","7.4","6.6","16.6","574","574","better","13.2","11.4","16.3","o","13.2","11.4","76.5","2640","2640","78.1","better","74.0","47.2","1608","50.9","47.2","better","43.6","167","better","167","51.5","54.0","392.6","5686","5686","better","better","483.9","483.9","370.4","370.4","5686","better","483.9","370.4","392.6","392.6","NaN","NaN","0.6","3291","5770","No Sig Diff","43.1","2368","5492","worse","10.3","422","3856","No Sig Diff",133.192945511977,506,37990,154.82415666974299,604,39012,129.98507953367201,514,39543,186.89519254190799,844,45159,181.502388189318,836,46060,141.221295011699,682,48293,197,99,50262,221.40663023098099,111,50134,210.084033613445,91,43316,166.9,77,46149,238.029456145198,112,47053,400.86829874652801,271,59489,78.7,39,49555,3145.2,217,6606,1476,250,15515,null,2118,299,14.1,31.4,15.1,7,"x","x",6.4,"x",67.2,30.8,"x",7.4,3,1952,"..","..","..","..","..","..","..","..","..","..","..","..","..",".."]
[855,"Leicestershire",24770.000000000004,449.99999999999994,1430.0000000000002,1490.0000000000002,540,1500,24770,410,1330,1460,490,1430.0000000000002,24190,410,1280,1400,489.99999999999994,1339.9999999999998,null,661.6,6601,5.5,656.7,7147,5.7,651.20000000000005,6940,6.6,648.70000000000005,7066,6.2,null,636274,117157,1441,2343,113373,114566,2012,579,67518,1083,1929,64506,64596,2385,537,null,"12.2","13880","13880","better","19.3","21.1","1.1","288","288","better","1.7","1.6","39.1","524","133900","No Sig Diff","83.7","79.6","63.1","64.7","63.1","NaN","2.70","2670","614.2","376","better","711.8","834.0","7.6","3.5","72","24","4.5","none","4.4","13.7","none","13.70","13.4","52","13.7","80.3","1077","better","122.6","111.8","11.7","14","better","22.1","21.9","7.4","148","1897448","No Sig Diff","2.5","51","1897448","No Sig Diff","20.6","1413","better","30.8","1892","6141","better","44.0","58","better","55.8","48.1","7.0","6","85896","better","98.5","7180","7287","7180.0","95.7","6972","7287","better","92.5","6836","6836.0","96.6","3932","better","86.8","90.7","3932","1598.3","1343.0","25.4","38.0","++","better","303","31.3","30.7","1.4","98","none","1.3","1.6","6.9","479","479","none","7.4","7.5","NaN","NaN","479","none","7.4","7.5","11.3","807","807","none","13.2","15.7","12.3","o","13.2","15.7","73.6","5238","5238","72.8","none","74.0","44.5","3106","43.7","47.2","none","36.8","255","better","255","51.5","44.1","275.0","9808","9808","better","better","483.9","483.9","409.0","409.0","9808","better","483.9","409.0","275.0","275.0","NaN","NaN","2.4","12671","5353","worse","21.7","1411","6501","better","9.1","681","7190","better",95.013619230169596,1036,109037,72.909129212196703,796,109177,72.382163291254201,797,110110,150.96209630632401,1249,82736,89.854210056530803,755,84025,89.567717908829493,760,84852,73.400000000000006,105,143063,92.214832616106904,132,143144,62.094398630894197,82,132057,48.5,65,134084,50.576798637401502,68,134449,203.176117113191,252,122083,44.2,63,142494,1188.3,170,14245,640.9,230,36096,null,3556,319,9,0,0,0,0,0,0,0,0,0,0,0,100,5010,587,11.700000000000001,0,0,0,0,0,0,0,0,0,0,0,97.300000000000011]
[856,"Leicester",17740,300,880,860,320,1030,17790,300,800,890,300,1070,17500,270,780,900,310,1030,null,333.8,5096,7.1,331.6,5273,7.6,329.6,5324,9.6999999999999993,306.60000000000002,5299,8.9,null,321527,69181,1172,1519,66490,66654,1934,593,50575,911,1701,47963,47620,2348,607,null,"31.1","21365","21365","worse","19.3","21.1","0.8","96","96","better","1.7","1.6","54.8","426","77800","higher","91.8","91.8","63.8","64.7","63.8","NaN","2.80","1419","1140.8","311","worse","711.8","834.0","12.2","7.0","110","37","4.5","worse","4.4","20.9","worse","13.70","13.4","42","13.7","91.3","711","better","122.6","111.8","28.2","18","none","22.1","21.9","6.3","85","1173101","No Sig Diff","3.3","49","1173101","No Sig Diff","23.8","884","No Sig Diff","35.1","1200","3421","No Sig Diff","44.3","31","better","55.8","48.1","-","NaN","NaN","No Data","97.2","4918","5059","4918.0","93.8","4743","5059","better","90.2","4228","4228.0","86.1","1377","none","86.8","90.7","1377","1791.7","1058.0","30.0","64.6","++","none","181","31.3","30.7","1.5","75","none","1.3","1.6","10.1","542","542","worse","7.4","7.5","NaN","NaN","542","worse","7.4","7.5","12.1","646","646","none","13.2","15.7","12.7","o","13.2","15.7","74.7","3986","3986","72.8","none","74.0","54.9","2823","43.7","47.2","none","30.9","153","better","153","51.5","44.1","406.1","9705","9705","better","better","483.9","483.9","409.0","409.0","9705","better","483.9","409.0","406.1","406.1","NaN","NaN","1.1","4090","3574","worse","16.3","699","4293","better","10.3","628","5669","No Sig Diff",101.585920874819,654,64379,79.565450233340997,520,65355,77.353920678171406,511,66060,154.361959222574,907,58758,71.632995207532502,423,59051,75.141516522784599,450,59887,136.4,113,82820,151.44230769230799,126,83200,79.361705142921906,56,70563,43.7,34,77887,61.197949868679402,48,78434,193.56901635096699,161,79529,98.2,81,82475,1120.2,115,9981,658.9,166,24360,null,2678,208,7.8,20.7,26.9,25.5,15.4,9.6,4.3,21.2,51.4,39.9,23.6,11.5,9.1,1920,182,9.5,20.3,25.3,26.400000000000002,17,10.4,4.9000000000000004,22.5,46.2,41.2,25.8,15.4,9.9]
[857,"Rutland",1020,20,50,80,30,50,1040,10,50,80,20,50,1020,10,50,80,20,60,null,37.6,339,6.5,37,333,3.3,37.6,320,4.4000000000000004,38.6,344,5.5,null,34252,6088,75,95,5918,5959,107,22,2825,33,72,2720,2712,100,13,null,"8.1","490","490","better","19.3","21.1","2.1","32","32","none","1.7","1.6","17.5","14","8000","lower","75.0","100.0","76.5","64.7","76.5","NaN","3.30","238","309.6","16","better","711.8","834.0","8.8","3.9","4","1","4.5","none","4.4","-","No data","-","-","-","-","94.8","77","better","122.6","111.8","18.7","1","none","22.1","21.9","8.3","10","107094","No Sig Diff","-","NaN","NaN","No Data","22.0","77","No Sig Diff","25.0","36","144","better","21.7","2","better","55.8","48.1","-","NaN","NaN","No Data","NaN","NaN","NaN","NaN","NaN","NaN","NaN","No Data","NaN","NaN","NaN","-","NaN","better","86.8","90.7","3932","1264.0","60.0","9.4","16.9","++","better","9","31.3","30.7","-","-","No data","1.3","1.6","4.7","15","15","none","7.4","7.5","NaN","NaN","15","none","7.4","7.5","NaN","NaN","NaN","NaN","13.2","15.7","NaN","o","13.2","15.7","NaN","NaN","-","72.8","NaN","74.0","NaN","NaN","43.7","47.2","NaN","26.1","8","none","8","51.5","44.1","211.5","405","405","better","better","483.9","483.9","409.0","409.0","405","better","483.9","409.0","211.5","211.5","NaN","NaN","2.4","853","349","worse","33.9","120","354","No Sig Diff","7.8","31","386","No Sig Diff",90.430779348898398,55,6082,106.826907027207,64,5991,79.607046070460697,47,5904,148.39940640237401,70,4717,109.54286918053501,52,4747,94.443224247748702,43,4553,92.4,8,8654,94.607379375591293,8,8456,null,null,null,null,null,null,null,null,null,204.30292717063901,15,6811,0,0,8671,686.4,5,726,437,8,1834,null,259,34,13.1,50,41.2,26.5,"x","x",0,"x",70.599999999999994,"x","x","x",0,250,34,13.600000000000001,52.900000000000006,67.600000000000009,"x",0,"x",0,0,79.400000000000006,17.600000000000001,"x","x",0]
[860,"Staffordshire",43640,649.99999999999989,1950,1980,759.99999999999989,2090,43940,650,1880,2009.9999999999998,729.99999999999989,2040,43200,600,1799.9999999999998,1990,690,1990,null,857,8580,6.6,852.1,9060,7.4,849.5,8986,7,831.3,8895,6.6,null,832952,149755,2240,3394,144121,146116,2820,819,87763,1710,2852,83201,83496,3407,860,null,"15.9","23130","23130","better","23.8","21.1","1.1","375","375","better","1.7","2.9","24.0","411","171300","lower","86.2","43.1","68.0","63.2","68.0","NaN","2.90","3568","444.0","351","better","711.8","613.0","7.6","5.2","140","47","5.9","none","4.4","13.9","none","13.70","14.0","68","13.7","147.6","2533","worse","122.6","126.1","11.0","16","better","22.1","22.5","7.4","184","2424457","No Sig Diff","2.9","73","2424457","No Sig Diff","22.7","1854","No Sig Diff","34.5","2390","6936","No Sig Diff","69.2","117","worse","55.8","58.2","12.7","14","110166","better","97.6","8777","8992","8781.0","93.7","8424","8992","better","88.9","7898","7899.0","93.1","4141","better","86.8","87.8","4095","1653.6","1717.0","30.4","43.2","++","none","469","34.9","30.7","1.6","146","worse","1.3","1.6","7.4","665","665","none","7.4","8.3","NaN","NaN","665","none","7.4","8.3","14.8","1293","1293","worse","13.2","15.4","15.3","o","13.2","15.4","66.0","5753","5753","67.4","worse","74.0","NaN","NaN","40.8","47.2","NaN","58.7","522","worse","522","51.5","52.7","457.2","20569","20569","better","better","483.9","483.9","471.4","471.4","20569","better","483.9","471.4","457.2","457.2","NaN","NaN","1.1","18985","17838","worse","50.3","9505","18910","worse","11.9","1920","15575","worse",132.17684547455099,1850,139964,142.64355564457901,1994,139789,114.854187616722,1599,139220,147.60504526812699,1526,103384,144.94149371599201,1505,103835,129.90773269505499,1346,103612,219.1,399,182117,280.883375456642,509,181214,118.40304634973501,199,168070,100.8,173,171576,77.411636376431701,132,170517,365.41267197375299,558,150709,80.2,146,182011,2356.1999999999998,427,18130,1167.4000000000001,531,46134,null,4903,813,16.600000000000001,18.899999999999999,30.8,37.1,8,18.899999999999999,5.2,28.7,45.8,37.299999999999997,49.1,10.199999999999999,37.9,6614,800,12.100000000000001,18.400000000000002,15.3,12.5,1.8,4.8000000000000007,0.8,1.4000000000000001,5,6.6000000000000005,"x",0.9,32.300000000000004]
[861,"Stoke-on-Trent",19510,290,700,610,230,800,19770,300,650,630,230,810,19740,270,600,610,240,790,null,250.2,3555,9.1,249.9,3767,9.1,248.7,3809,9.3000000000000007,240.1,3655,8.1999999999999993,null,246075,48347,839,1082,46426,46728,1258,361,31350,703,1214,29433,29361,1558,431,null,"28.4","13825","13825","worse","23.8","21.1","1.8","184","184","none","1.7","2.9","51.7","282","54500","higher","89.8","66.1","60.4","63.2","60.4","NaN","3.00","1077","943.2","200","worse","711.8","613.0","9.2","7.5","83","28","5.9","worse","4.4","9.9","none","13.70","14.0","15","13.7","160.8","878","worse","122.6","126.1","14.3","7","better","22.1","22.5","7.7","67","790764","No Sig Diff","2.3","21","790764","No Sig Diff","26.2","798","worse","39.0","973","2497","worse","56.7","29","none","55.8","58.2","-","NaN","NaN","No Data","97.4","3498","3590","3494.0","95.3","3420","3590","better","91.9","3048","3047.0","92.3","1160","better","86.8","87.8","1206","1879.4","654.0","42.2","68.5","++","worse","184","34.9","30.7","2.2","81","worse","1.3","1.6","9.5","365","365","worse","7.4","8.3","NaN","NaN","365","worse","7.4","8.3","20.9","787","787","worse","13.2","15.4","22.6","o","13.2","15.4","61.7","2321","2321","67.4","worse","74.0","34.8","1303","40.8","47.2","worse","64.5","234","worse","234","51.5","52.7","283.6","4858","4858","better","better","483.9","483.9","471.4","471.4","4858","better","483.9","471.4","283.6","283.6","NaN","NaN","0.6","4227","7621","No Sig Diff","53.1","4369","8233","worse","14.4","1066","6787","worse",133.30085693408,602,45161,144.006312605484,657,45623,117.946597610602,542,45953,158.95787903133299,554,34852,168.108278973534,585,34799,142.601482828168,502,35203,350.4,203,57937,346.43823575035799,201,58019,129.60133083157601,67,51697,76.900000000000006,42,54599,113.173794790355,62,54783,460.73082413917598,234,48799,157.5,91,57776,3210.6,234,7007,1714.5,308,17168,null,3095,381,12.3,28.9,28.3,22.3,3.7,"x",3.7,12.1,45.9,25.2,16,6.3,23.4,3381,402,11.9,27.900000000000002,30.1,22.1,2.7,"x",4.5,10.700000000000001,46.800000000000004,22.900000000000002,15.9,4.7,18.2]
[865,"Wiltshire",17570,350,1220,1240,410,1050,17390,340,1150,1230,370,970,16860,320,1080,1150,400,900,null,479.6,5133,5.9,476.8,5378,6.5,474.3,5464,5.8,459.8,5468,5.7,null,457954,89714,1225,1934,86555,87693,1642,379,43091,753,1393,40945,40914,1787,390,null,"12.1","10500","10500","better","16.6","21.1","1.6","306","306","none","1.7","1.1","16.3","169","103600","lower","98.3","81.4","64.7","65.1","64.7","NaN","2.40","1709","501.2","241","better","711.8","688.0","6.4","3.7","60","20","3.6","none","4.4","16.6","none","13.70","12.9","49","13.7","103.2","1067","better","122.6","119.5","19.3","17","none","22.1","14.8","8.1","104","1355142","worse","3.2","41","1355142","No Sig Diff","20.3","983","better","29.7","1291","4342","better","64.4","66","none","55.8","62.0","301.0","201","66768","No Sig Diff","98.5","5212","5291","5212.0","95.1","5032","5291","better","88.5","4704","4704.0","89.2","2482","better","86.8","83.8","2482","1766.2","972.0","22.9","32.1","++","better","211","27.3","30.7","1.5","76","none","1.3","1.3","6.1","330","330","better","7.4","6.2","NaN","NaN","330","better","7.4","6.2","13.8","731","731","better","13.2","13.1","13.9","o","13.2","13.1","80.2","4235","4235","78.0","better","74.0","47.7","2638","49.7","47.2","better","72.8","378","worse","378","51.5","56.0","355.0","9534","9534","better","better","483.9","483.9","413.7","413.7","9534","better","483.9","413.7","355.0","355.0","NaN","NaN","0.9","5449","6277","worse","36.1","2628","7271","worse","8.5","483","5822","better",100.408985833679,847,84355,101.847827363821,867,85127,94.037262705596405,801,85179,177.26284241881501,970,54721,160.08867567960499,881,55032,162.51014535527199,881,54212,109,119,109181,130.36858755207899,143,109689,97.231361533702,99,101819,60.9,63,103400,61.797535823258997,64,103564,521.83193597160403,424,82541,43.8,48,109679,1580.3,179,11339,786.2,223,28514,null,2378,350,14.7,28,19.100000000000001,43.7,15.4,20.3,6.9,30.3,56.6,53.4,52,12,10,2819,347,12.3,28.200000000000003,21.6,46.400000000000006,14.100000000000001,21.3,6.6000000000000005,33.700000000000003,56.2,53,53.6,10.4,10.4]
[866,"Swindon",9210,180,520,600,180,500,9110,160,500,520,180,500,8840,170,470,490,160,470,null,214,2911,7,211.9,3073,6.5,209.7,2990,6.8,201.8,3004,6.1,null,207858,41376,571,843,39962,40326,853,197,22505,376,695,21434,21372,932,201,null,"17.8","7310","7310","better","16.6","21.1","0.8","63","63","better","1.7","1.1","24.9","116","46600","lower","82.4","94.1","63.4","65.1","63.4","NaN","3.50","1047","937.1","175","worse","711.8","688.0","6.4","3.2","28","9","3.6","none","4.4","19.7","none","13.70","12.9","25","13.7","110.1","512","better","122.6","119.5","17.5","7","none","22.1","14.8","5.1","31","605134","No Sig Diff","2.3","14","605134","No Sig Diff","24.0","588","No Sig Diff","35.7","717","2006","No Sig Diff","73.1","32","worse","55.8","62.0","436.5","144","32991","worse","97.0","2819","2906","2838.0","90.2","2622","2906","worse","83.8","2285","2277.0","95.2","1065","better","86.8","83.8","1091","2413.4","611.0","30.8","53.5","++","none","118","27.3","30.7","1.1","33","none","1.3","1.3","7.3","217","217","none","7.4","6.2","NaN","NaN","217","none","7.4","6.2","14.8","429","429","better","13.2","13.1","12.2","-","13.2","13.1","76.5","2212","2212","78.0","better","74.0","46.3","1361","49.7","47.2","better","62.4","184","worse","184","51.5","56.0","330.9","4608","4608","better","better","483.9","483.9","413.7","413.7","4608","better","483.9","413.7","330.9","330.9","NaN","NaN","1.0","3356","3267","worse","45.8","1705","3719","worse","10.8","319","2830","No Sig Diff",88.204592901878897,338,38320,104.571796522859,406,38825,96.790497851908,383,39570,157.020193989505,395,25156,155.23166251925599,393,25317,145.21240322515899,362,24929,187.9,92,48965,224.21524663677101,112,49952,722.10312535258902,320,44315,96.7,45,46523,90.747931791322003,43,47384,567.41150216981896,210,37076,91.7,45,49083,1627.7,96,5779,898.3,131,14162,null,1205,151,12.5,16.600000000000001,5.3,"x","x",0,4.5999999999999996,0,29.8,31.8,0,"x",7.3,1618,154,9.5,19.5,11,7.1000000000000005,"x","x",5.2,5.2,49.400000000000006,31.8,"x",3.9000000000000004,10.4]
[867,"Bracknell Forest",3500,80,310,320,100,240,3460,90,300,310,100,220,3380,100,280,290,80,220,null,116.6,1468,6,115.1,1554,5.3,113.7,1582,5.5,116.5,1581,5.6,null,110512,22899,294,440,22165,22398,404,97,10804,164,292,10348,10347,373,84,null,"12.4","2705","2705","better","15.5","21.1","1.3","63","63","none","1.7","1.1","30.8","82","26600","No Sig Diff","83.3","91.7","69.1","66.4","69.1","NaN","2.80","549","565.9","73","better","711.8","579.0","6.0","3.6","17","6","3.7","none","4.4","8.9","none","13.70","11.7","7","13.7","102.0","272","better","122.6","113.5","9.9","2","better","22.1","20.1","8.1","28","352779","No Sig Diff","-","NaN","NaN","No Data","17.1","222","better","30.6","316","1034","better","38.3","10","better","55.8","45.9","42.8","8","18703","better","95.4","1619","1697","1586.0","91.4","1551","1697","No Sig Diff","84.6","1240","1397.0","82.7","538","worse","86.8","85.6","1951","929.3","128.0","18.3","45.5","++","better","42","26.1","30.7","1.1","17","none","1.3","1.2","6.2","98","98","none","7.4","6.6","NaN","NaN","98","none","7.4","6.6","9.0","130","130","better","13.2","11.4","9.6","o","13.2","11.4","80.9","1166","1166","78.1","better","74.0","NaN","NaN","50.9","47.2","NaN","60.4","95","none","95","51.5","54.0","419.3","3183","3183","better","better","483.9","483.9","370.4","370.4","3183","better","483.9","370.4","419.3","419.3","NaN","NaN","1.4","2584","1801","worse","33.9","674","1987","worse","9.1","126","1338","No Sig Diff",95.480880648899202,206,21575,90.135431918008805,197,21856,89.3257922614238,199,22278,132.76571181181899,184,13859,141.571075940177,195,13774,116.03143129911101,158,13617,128.6,36,27983,105.26315789473701,30,28500,36.775522212415403,10,27192,67.5,18,26660,59.298791787117302,16,26982,227.25225693677899,45,20571,46.3,13,28087,828.9,26,3224,714.5,57,8078,null,758,96,12.7,26,28.1,32.299999999999997,22.9,7.3,12.5,16.7,52.1,38.5,16.7,17.7,42.7,774,89,11.5,27,31.5,24.700000000000003,19.100000000000001,"x",11.200000000000001,9,55.1,27,9,15.700000000000001,42.7]
[868,"Windsor and Maidenhead",3540,80,230,270,80,230,3540,80,210,270,70,240,3480,70,210,250,80,220,null,146.30000000000001,1696,5.8,145.80000000000001,1860,7.2,145.1,1784,7.2,146.1,1889,6.6,null,141065,27856,277,386,27193,27355,402,99,12638,181,310,12147,12155,391,92,null,"10.1","2655","2655","better","15.5","21.1","1.1","61","61","better","1.7","1.1","28.5","93","32600","lower","100.0","100.0","72.2","66.4","72.2","NaN","2.70","693","342.0","55","better","711.8","579.0","6.4","2.7","15","5","3.7","none","4.4","7.3","none","13.70","11.7","7","13.7","114.2","372","none","122.6","113.5","9.2","3","better","22.1","20.1","6.0","22","408908","No Sig Diff","3.6","14","408908","No Sig Diff","18.3","252","better","28.1","326","1159","better","20.9","7","better","55.8","45.9","27.4","6","21912","better","95.4","1852","1941","1870.0","91.4","1774","1941","No Sig Diff","84.6","1633","1670.0","82.7","694","worse","86.8","85.6","1951","988.3","154.0","11.5","25.0","++","better","31","26.1","30.7","0.7","12","better","1.3","1.2","7.6","132","132","none","7.4","6.6","NaN","NaN","132","none","7.4","6.6","9.0","146","146","better","13.2","11.4","9.6","o","13.2","11.4","80.9","1316","1316","78.1","better","74.0","NaN","NaN","50.9","47.2","NaN","59.9","104","none","104","51.5","54.0","337.5","3123","3123","better","better","483.9","483.9","370.4","370.4","3123","better","483.9","370.4","337.5","337.5","NaN","NaN","0.7","2515","3448","No Sig Diff","37.3","1393","3733","worse","11.3","209","1764","No Sig Diff",115.01645794710799,304,26431,112.029179693315,301,26868,99.703090062680999,272,27281,133.993776592367,211,15747,124.494641596612,194,15583,135.835684756218,207,15239,102.5,35,34140,63.380484572613902,22,34711,70.629782224838095,24,33980,61.4,20,32570,57.719180995200198,19,32918,314.82814623868501,72,24216,55.3,19,34340,1945.4,70,3746,1412.2,129,9331,null,715,269,37.6,38.299999999999997,19,24.5,"x",5.6,4.0999999999999996,7.8,42.4,23.4,8.9,3.3,4.5,951,293,30.8,44.7,19.100000000000001,22.900000000000002,2,5.5,4.4000000000000004,6.1000000000000005,36.200000000000003,22.5,8.9,4.1000000000000005,5.5]
[869,"West Berkshire",4630,90,380,450,130,380,4620,80,380,420,120,360,4510,100,370,410,120,320,null,155.4,1744,6.3,154.5,1896,4.2,154.1,1998,5.8,154,1976,5.8,null,150878,30223,389,599,29235,29591,518,114,13899,230,438,13231,13305,494,100,null,"11.6","3440","3440","better","15.5","21.1","1.0","60","60","better","1.7","1.1","22.0","78","35400","lower","58.8","94.1","68.0","66.4","68.0","NaN","4.00","1150","311.9","54","better","711.8","579.0","6.7","3.2","19","6","3.7","none","4.4","6.9","none","13.70","11.7","7","13.7","88.2","312","better","122.6","113.5","15.8","5","none","22.1","20.1","10.7","45","450823","worse","2.8","12","450823","No Sig Diff","21.6","363","No Sig Diff","30.1","433","1438","better","24.6","9","better","55.8","45.9","-","NaN","NaN","No Data","96.3","1977","2053","2077.0","92.2","1893","2053","No Sig Diff","87.6","1801","1842.0","89.2","844","better","86.8","85.6","2318","1053.0","180.0","27.0","31.0","+","none","85","26.1","30.7","1.2","23","none","1.3","1.2","6.1","119","119","better","7.4","6.6","NaN","NaN","119","better","7.4","6.6","8.4","163","163","better","13.2","11.4","7.1","-","13.2","11.4","78.0","1507","1507","78.1","better","74.0","NaN","NaN","50.9","47.2","NaN","110.5","206","worse","206","51.5","54.0","136.3","1356","1356","better","better","483.9","483.9","370.4","370.4","1356","better","483.9","370.4","136.3","136.3","NaN","NaN","1.4","3052","2118","worse","35.1","855","2434","worse","9.6","246","2379","No Sig Diff",79.797384033584294,230,28823,83.866089228019504,244,29094,77.439692982456094,226,29184,91.024311556630906,158,17358,105.300105300105,180,17094,95.238095238095198,161,16905,94,35,37251,122.892789399161,46,37431,48.991589777088301,18,36741,22.6,8,35394,42.263045193282998,15,35492,354.35313853919098,87,26558,61.4,23,37436,2454.9,101,4072,1289.5999999999999,132,10098,null,713,107,15,35.5,16.8,30.8,0,"x",7.5,12.1,51.4,41.1,11.2,11.2,"x",838,95,11.3,36.800000000000004,17.900000000000002,29.5,0,"x",8.4,10.5,54.7,37.9,12.600000000000001,12.600000000000001,"x"]
[870,"Reading",5650,120,490,400,140,380,5520,110,460,380,140,370,5320,120,430,360,120,370,null,159.19999999999999,2617,6.6,157.1,2748,7.1,155.30000000000001,2579,6.8,154.19999999999999,2632,7.1,null,151330,29974,455,661,28858,29098,710,166,19843,269,596,18978,18819,840,184,null,"22.2","6385","6385","worse","15.5","21.1","1.2","72","72","better","1.7","1.1","58.1","194","33400","higher","89.7","93.1","69.6","66.4","69.6","NaN","2.70","575","936.1","109","worse","711.8","579.0","8.5","4.5","35","12","3.7","none","4.4","15.5","none","13.70","11.7","13","13.7","114.7","383","none","122.6","113.5","23.6","7","none","22.1","20.1","4.8","29","511851","No Sig Diff","2.2","15","511851","No Sig Diff","23.5","397","No Sig Diff","35.4","486","1374","No Sig Diff","25.3","8","better","55.8","45.9","25.9","7","26984","better","96.3","2392","2485","2383.0","92.2","2291","2485","No Sig Diff","87.6","1853","1704.0","89.2","682","better","86.8","85.6","2318","3570.8","854.0","34.1","63.1","++","none","80","26.1","30.7","1.2","29","none","1.3","1.2","7.6","185","185","none","7.4","6.6","NaN","NaN","185","none","7.4","6.6","8.4","210","210","better","13.2","11.4","7.1","-","13.2","11.4","78.0","1944","1944","78.1","better","74.0","NaN","NaN","50.9","47.2","NaN","182.3","453","worse","453","51.5","54.0","265.1","3005","3005","better","better","483.9","483.9","370.4","370.4","3005","better","483.9","370.4","265.1","265.1","NaN","NaN","1.3","3954","2948","worse","33.1","1118","3382","worse","9.9","338","3045","No Sig Diff",91.769429308861504,256,27896,106.27104377104401,303,28512,85.315496706821804,250,29303,77.453018629489193,190,24531,78.190332831577194,187,23916,66.236270646432502,158,23854,138.30000000000001,49,35424,146.95688340496301,53,36065,71.271219385771701,22,30868,38.9,13,33395,61.371208136068702,21,34218,193.937631017537,60,31664,139.1,49,35226,1350.5,70,5038,870.6,109,11976,null,1221,165,13.5,40.6,4.8,5.5,0,0,6.7,"x",47.9,10.3,0,9.1,22.4,1499,157,10.5,41.400000000000006,"x",5.1000000000000005,0,0,3.8000000000000003,"x",28.700000000000003,"x",0,"x",14.600000000000001]
[871,"Slough",5020,120,410,350,90,290,5010,110,370,320,100,300,4910,120,350,310,100,290,null,143,2601,8.1999999999999993,141.80000000000001,2704,9.1999999999999993,140.69999999999999,2803,7.5,131.1,2634,8,null,139697,33545,445,580,32520,32482,847,216,16288,273,445,15570,15460,669,159,null,"22.7","7165","7165","worse","15.5","21.1","1.2","57","57","better","1.7","1.1","55.9","209","37400","higher","95.5","90.9","63.4","66.4","63.4","NaN","2.90","757","955.3","111","worse","711.8","579.0","7.5","5.1","41","14","3.7","none","4.4","15.7","none","13.70","11.7","15","13.7","119.8","446","none","122.6","113.5","21.1","6","none","22.1","20.1","6.9","31","448838","No Sig Diff","2.3","10","448838","No Sig Diff","21.9","363","No Sig Diff","35.5","536","1509","No Sig Diff","32.4","10","better","55.8","45.9","48.1","14","29093","better","95.4","2463","2582","2490.0","91.4","2360","2582","No Sig Diff","84.6","1981","1812.0","82.7","683","worse","86.8","85.6","1951","1344.9","242.0","23.9","56.5","++","better","62","26.1","30.7","0.6","15","better","1.3","1.2","8.2","224","224","none","7.4","6.6","NaN","NaN","224","none","7.4","6.6","9.0","230","230","better","13.2","11.4","9.6","o","13.2","11.4","80.9","2067","2067","78.1","better","74.0","NaN","NaN","50.9","47.2","NaN","61.8","164","worse","164","51.5","54.0","519.1","6155","6155","worse","worse","483.9","483.9","370.4","370.4","6155","worse","483.9","370.4","519.1","519.1","NaN","NaN","0.6","3583","6047","No Sig Diff","35.9","2342","6515","worse","11.8","350","2831","worse",117.210392654815,360,30714,118.459711195849,379,31994,101.434707118706,333,32829,153.88858246001101,279,18130,149.494275869734,269,17994,132.62750455373401,233,17568,231.7,90,38844,247.03680598877099,99,40075,59.878352399861299,19,31731,56.4,21,37224,28.72812744842,11,38290,266.46362071094597,69,26557,104.9,41,39095,2076,111,5353,1313.2,173,12872,null,1132,153,13.5,30.1,7.8,6.5,12.4,"x",5.9,"x",30.7,49,"x",6.5,"x",1549,193,12.5,31.6,7.8000000000000007,5.2,6.2,"x",4.7,"x",28,45.1,"x",5.7,3.1]
[872,"Wokingham",3870,80,340,350,110,280,3850,80,320,350,100,280,3740,80,290,330,100,260,null,157.9,1795,5.2,156.69999999999999,1963,4.5999999999999996,154.9,1880,6,163.19999999999999,1997,6.3,null,151740,31104,323,560,30221,30578,437,89,13753,215,383,13155,13276,383,94,null,"7.4","2185","2185","better","15.5","21.1","0.1","9","9","better","1.7","1.1","18.5","66","35600","lower","60.0","80.0","68.7","66.4","68.7","NaN","3.00","819","285.8","47","better","711.8","579.0","6.9","3.8","22","7","3.7","none","4.4","14.6","none","13.70","11.7","15","13.7","91.1","323","better","122.6","113.5","8.4","3","better","22.1","20.1","5.1","23","464701","No Sig Diff","2.7","12","464701","No Sig Diff","16.8","265","better","28.8","434","1506","better","20.4","7","better","55.8","45.9","-","NaN","NaN","No Data","96.3","2037","2116","1946.0","92.2","1950","2116","No Sig Diff","87.6","1868","1975.0","89.2","792","better","86.8","85.6","2318","1116.6","190.0","13.0","27.8","++","better","39","26.1","30.7","0.7","13","better","1.3","1.2","6.4","117","117","none","7.4","6.6","NaN","NaN","117","none","7.4","6.6","8.4","154","154","better","13.2","11.4","7.1","-","13.2","11.4","78.0","1419","1419","78.1","better","74.0","NaN","NaN","50.9","47.2","NaN","144.2","265","worse","265","51.5","54.0","234.9","2341","2341","better","better","483.9","483.9","370.4","370.4","2341","better","483.9","370.4","234.9","234.9","NaN","NaN","1.5","3092","2101","worse","33.7","832","2471","worse","9.9","251","2365","No Sig Diff",87.001198835417,254,29195,84.757255221046904,250,29496,73.225935294900793,220,30044,92.152710205483402,161,17471,94.6168312176775,161,17016,85.475089280487097,146,17081,88.4,33,37315,91.974562463867102,35,38054,60.835660758233601,22,36163,42.3,15,35460,36.1301798171257,13,35981,244.63369729606299,67,26850,29.3,11,37539,1611.1,63,3965,822.8,81,10078,null,553,112,20.3,44.6,8.9,"x",9.8000000000000007,0,"x",0,47.3,15.2,0,"x",7.1,541,86,15.9,30.200000000000003,16.3,"x",12.8,0,"x","x",43,24.400000000000002,"x","x",12.8]
[873,"Cambridgeshire",22770,429.99999999999994,1450,1480,510,1390.0000000000002,22560,360.00000000000006,1360,1460,459.99999999999994,1410.0000000000002,21970,370,1300,1410.0000000000002,490,1290,null,632.1,7365,6.4,628.29999999999995,7740,6.6,622.29999999999995,7521,6.4,616.29999999999995,7537,5.9,null,598066,112266,1485,2398,108383,109666,2076,524,61844,1144,2007,58693,58728,2508,608,null,"13.4","14360","14360","better","17.1","21.1","2.1","516","516","worse","1.7","1.7","19.3","247","127700","lower","87.9","92.4","64.4","61.6","64.4","NaN","3.00","2682","669.5","378","none","711.8","715.0","6.5","3.5","78","26","3.9","none","4.4","10.7","none","13.70","11.9","39","13.7","112.9","1441","better","122.6","113.6","20.9","23","none","22.1","20.0","9.0","174","1821988","worse","2.0","42","1821988","No Sig Diff","22.4","1394","No Sig Diff","30.7","1655","5383","better","39.5","50","better","55.8","30.9","164.5","142","86316","better","96.3","7159","7433","7159.0","92.5","6874","7433","better","85.5","6057","6057.0","91.1","2899","better","86.8","88.2","2899","1610.7","1340.0","21.7","31.4","++","better","238","26.6","30.7","1.0","74","better","1.3","1.3","6.7","502","502","better","7.4","6.9","NaN","NaN","502","better","7.4","6.9","13.3","970","970","better","13.2","13.2","10.9","-","13.2","13.2","80.8","5889","5889","75.3","better","74.0","53.2","3918","47.0","47.2","better","62.4","471","worse","471","51.5","47.0","302.2","10940","10940","better","better","483.9","483.9","357.1","357.1","10940","better","483.9","357.1","302.2","302.2","NaN","NaN","1.5","13448","8925","worse","41.3","3949","9551","worse","10.2","778","7396","No Sig Diff",87.766997700886293,920,104823,102.338627146268,1080,105532,87.409162569847993,937,107197,125.382300259538,1029,82069,124.767113408258,1038,83195,125.996058088778,1042,82701,124.4,169,135805,160.49724966076701,220,137074,69.542128305226697,88,126542,73.599999999999994,94,127680,82.898182437981305,107,129074,396.21283025031403,474,117164,57.6,78,135522,1999.8,298,14827,1051.5999999999999,391,36952,null,2631,551,20.9,28.1,8.5,1.1000000000000001,0,0,2.7,"x",46.5,"x","x",6.9,40.299999999999997,2977,409,13.700000000000001,24.900000000000002,4.9000000000000004,"x",0,0,"x",0,43.800000000000004,3.9000000000000004,0,"x",21.3]
[874,"Peterborough",9520,280,640,650,230,620,9440,250,620,610,240,610,9100,230,540,640,220,610,null,188.4,3185,5.9,186.4,3270,6.7,184.5,3127,7,173.4,3162,6.3,null,181827,39123,685,1026,37412,37733,1056,334,21117,460,803,19854,19697,1131,289,null,"23.5","9470","9470","worse","17.1","21.1","2.4","172","172","worse","1.7","1.7","41.1","181","44000","No Sig Diff","93.2","93.2","56.8","61.6","56.8","NaN","4.00","1251","919.4","151","worse","711.8","715.0","7.4","4.2","39","13","3.9","none","4.4","17.8","none","13.70","11.9","21","13.7","141.5","621","worse","122.6","113.6","27.0","10","none","22.1","20.0","8.7","50","566983","No Sig Diff","5.9","34","566983","worse","23.3","567","No Sig Diff","34.1","690","2025","No Sig Diff","35.0","14","better","55.8","30.9","81.0","26","32085","better","96.3","2849","2959","2849.0","90.5","2677","2959","No Sig Diff","86.0","2334","2334.0","84.2","967","none","86.8","88.2","967","2445.6","588.0","36.0","57.7","++","none","127","26.6","30.7","1.6","49","none","1.3","1.3","7.4","231","231","none","7.4","6.9","NaN","NaN","231","none","7.4","6.9","16.8","476","476","none","13.2","13.2","17.9","o","13.2","13.2","74.5","2109","2109","75.3","none","74.0","NaN","NaN","47.0","47.2","NaN","52.9","163","none","163","51.5","47.0","341.5","4663","4663","better","better","483.9","483.9","357.1","357.1","4663","better","483.9","357.1","341.5","341.5","NaN","NaN","0.8","4039","4896","worse","40.1","2064","5149","worse","10.2","402","3693","No Sig Diff",105.75307757979699,384,36311,124.033111684082,457,36845,115.956575715154,439,37859,155.301603248357,371,23889,181.757684149233,437,24043,176.84407891933401,415,23467,346,160,46237,348.74136072538198,165,47313,81.013404035940496,33,40734,68.400000000000006,30,43877,77.788149531048603,35,44994,620.47210998247897,215,34664,77.5,36,46445,2567.6,149,5791,1363.2,196,14044,null,1597,210,13.1,27.1,18.100000000000001,4.3,"x","x",4.8,"x",40,12.9,"x",3.3,22.4,1765,225,12.700000000000001,28.400000000000002,16,4,"x","x",6.2,"x",40,11.600000000000001,2.7,3.6,21.8]
[876,"Halton",10640,130,380,400,110,380,10750,110,360,380,130,380,10670,110,320,350,140,360,null,126,1597,6.4,125.7,1661,6.6,125.7,1571,8,119.3,1667,8.1,null,124874,24921,417,574,23930,24214,557,150,14392,340,501,13551,13598,601,193,null,"27.3","6770","6770","worse","22.9","21.1","0.9","45","45","better","1.7","0.9","29.4","83","28200","lower","87.5","100.0","55.2","61.8","55.2","NaN","2.50","462","538.6","64","better","711.8","709.0","8.5","4.8","23","8","4.7","none","4.4","20.8","none","13.70","15.9","16","13.7","152.5","431","worse","122.6","150.6","24.6","6","none","22.1","30.2","7.6","30","392318","No Sig Diff","4.7","19","392318","worse","23.1","317","No Sig Diff","34.7","460","1326","No Sig Diff","122.9","34","worse","55.8","93.7","101.5","20","19714","better","95.5","1569","1642","1589.0","93.1","1530","1642","better","85.2","1455","1399.0","97.0","687","better","86.8","91.0","1567","2778.1","444.0","41.5","47.1","+","worse","97","35.3","30.7","1.5","24","none","1.3","1.6","8.5","134","134","none","7.4","7.4","NaN","NaN","134","none","7.4","7.4","21.1","335","335","worse","13.2","17.1","21.7","o","13.2","17.1","51.1","812","812","62.0","worse","74.0","22.0","331","34.1","47.2","worse","73.5","115","worse","115","51.5","60.8","535.0","4364","4364","worse","worse","483.9","483.9","566.2","566.2","4364","worse","483.9","566.2","535.0","535.0","NaN","NaN","1.1","3049","2902","worse","48.6","1548","3183","worse","10.3","288","2769","No Sig Diff",168.59261814418801,391,23192,145.828865537208,340,23315,130.598612657361,305,23354,255.72919883871799,414,16189,233.38756100613199,373,15982,211.09887975134399,326,15443,367.9,110,29902,296.11683154990197,88,29718,179.460884852036,49,27304,145.1,41,28266,82.098875602355903,23,28015,636.38242499480202,146,22868,67,20,29866,2570.4,85,3376,1211.5999999999999,100,8270,null,1002,99,9.9,19.2,30.3,9.1,"x",0,"x",9.1,29.3,13.1,"x","x",15.2,1146,150,13.100000000000001,15.3,34,6,"x",0,6,4.7,33.300000000000004,4,"x",5.3000000000000007,14]
[877,"Warrington",10950,160,450,450,160,460,11110,130,410,440,150,480,10990,150,370,450,140,460,null,205.1,2366,6,203.7,2484,6.2,202.7,2395,6.1,198.9,2542,6.4,null,198828,38737,498,767,37472,37962,623,152,21144,417,690,20037,20133,809,202,null,"14.9","5710","5710","better","22.9","21.1","1.3","108","108","better","1.7","0.9","38.6","170","44000","No Sig Diff","90.9","90.9","62.5","61.8","62.5","NaN","3.10","969","431.9","84","better","711.8","709.0","8.1","4.9","36","12","4.7","none","4.4","12.6","none","13.70","15.9","15","13.7","151.3","666","worse","122.6","150.6","26.1","10","none","22.1","30.2","5.4","32","597305","No Sig Diff","3.4","20","597305","No Sig Diff","22.6","534","No Sig Diff","36.4","761","2091","worse","71.9","31","worse","55.8","93.7","113.3","33","29135","better","97.5","2487","2551","2487.0","95.0","2423","2551","better","85.8","2218","2218.0","91.5","1092","better","86.8","91.0","1092","3591.7","884.0","32.0","48.8","++","none","120","35.3","30.7","1.3","31","none","1.3","1.6","6.5","156","156","none","7.4","7.4","NaN","NaN","156","none","7.4","7.4","12.0","279","279","worse","13.2","17.1","12.8","o","13.2","17.1","61.6","1431","1431","62.0","worse","74.0","36.1","848","34.1","47.2","worse","87.4","209","worse","209","51.5","60.8","465.8","5699","5699","better","better","483.9","483.9","566.2","566.2","5699","better","483.9","566.2","465.8","465.8","NaN","NaN","0.9","3844","4512","worse","55.1","2681","4867","worse","11.8","434","3554","worse",133.599423471368,482,36078,144.19491174276999,522,36201,134.32220848784499,489,36405,237.75597443308999,584,24563,240.939379164635,593,24612,233.20857154608601,567,24313,211.1,98,46427,186.40327384140701,87,46673,167.200780270308,72,43062,93.2,41,44010,140.58000589529101,62,44103,643.65310929804298,234,36388,83.7,39,46591,1933,95,4923,942.5,116,12386,null,1042,148,14.2,23,35.1,14.2,"x",0,"x","x",47.3,10.8,"x","x",9.5,1066,168,15.8,26.200000000000003,33.9,13.100000000000001,4.2,0,3.6,"x",43.5,14.3,"x","x",6.5]
[878,"Devon",35220.000000000007,440,1680,1989.9999999999998,710.00000000000023,1980,35200,480,1620,1940,660.00000000000011,1940,34569.999999999993,449.99999999999994,1580.0000000000002,1890.0000000000002,650.00000000000011,1859.9999999999998,null,758.1,7185,6.6,753.2,7585,6.2,747.7,7520,6.2,749.9,7372,5.7,null,727737,122507,1785,2783,117939,119400,2417,690,72638,1394,2569,68675,68931,2958,749,null,"14.4","17680","17680","better","16.6","21.1","0.8","258","258","better","1.7","1.1","28.7","404","140600","lower","76.5","87.1","67.6","65.1","67.6","NaN","3.50","3632","548.9","379","better","711.8","688.0","6.2","4.0","89","30","3.6","none","4.4","13.3","none","13.70","12.9","53","13.7","112.5","1583","better","122.6","119.5","11.0","14","better","22.1","14.8","6.7","142","2006408","No Sig Diff","2.7","58","2006408","No Sig Diff","22.6","1532","No Sig Diff","30.8","2031","6592","better","63.0","91","none","55.8","62.0","409.3","363","88682","worse","96.5","7395","7662","7395.0","92.0","7050","7662","No Sig Diff","85.3","6448","6448.0","84.3","3304","worse","86.8","83.8","3304","2141.0","1895.0","26.0","32.9","++","better","332","27.3","30.7","1.5","105","none","1.3","1.3","6.5","483","483","better","7.4","6.2","NaN","NaN","483","better","7.4","6.2","9.9","711","711","better","13.2","13.1","9.4","o","13.2","13.1","76.9","5512","5512","78.0","better","74.0","52.3","3840","49.7","47.2","better","59.8","416","worse","416","51.5","56.0","526.8","19489","19489","worse","worse","483.9","483.9","413.7","413.7","19489","worse","483.9","413.7","526.8","526.8","NaN","NaN","1.8","18571","10530","worse","32.6","3801","11675","worse","8.8","788","9818","better",101.568099575197,1162,114406,105.813159691225,1209,114258,103.761687323331,1193,114975,146.03196300219801,1282,87789,143.14766693029,1267,88510,132.521852606001,1178,88891,202,303,149975,212.44147869924501,319,150159,113.194099932223,162,143117,90.2,127,140760,95.002445958496693,134,141049,419.48094542799998,548,128125,74.8,112,149713,2516.4,380,15050,1345.3,507,37514,null,4648,1399,30.1,26,66.5,70,"x",17.399999999999999,10.6,28.2,67.7,31.5,42.6,16.7,23.6,5738,1411,24.6,25.1,61.800000000000004,67.7,"x",16.400000000000002,10.200000000000001,26.6,64.100000000000009,29.400000000000002,39.900000000000006,16.100000000000001,23]
[879,"Plymouth",18620,280,970,950,340,1070,18520,250,870,940,330,1100,18050,240,820,920,310,1060,null,259.2,3163,7.3,258,3418,7,256.60000000000002,3280,7,258.7,3280,7,null,251100,44808,889,1279,42640,43356,1114,338,36584,743,1492,34349,34368,1753,463,null,"22.6","10190","10190","worse","16.6","21.1","1.4","150","150","better","1.7","1.1","56.6","288","50900","higher","92.6","83.3","60.8","65.1","60.8","NaN","3.50","1351","811.5","177","none","711.8","688.0","8.7","5.3","52","17","3.6","none","4.4","15.6","none","13.70","12.9","22","13.7","178.6","909","worse","122.6","119.5","21.2","9","none","22.1","14.8","4.7","41","818951","No Sig Diff","3.0","31","818951","No Sig Diff","24.0","656","No Sig Diff","34.4","718","2086","No Sig Diff","95.6","48","worse","55.8","62.0","-","NaN","NaN","No Data","97.4","3190","3275","3190.0","92.5","3031","3275","better","88.1","2719","2719.0","81.4","1157","worse","86.8","83.8","1157","1687.7","706.0","43.6","54.7","++","worse","186","27.3","30.7","1.8","57","worse","1.3","1.3","7.5","247","247","none","7.4","6.2","NaN","NaN","247","none","7.4","6.2","18.3","612","612","worse","13.2","13.1","18.3","o","13.2","13.1","69.5","2322","2322","78.0","worse","74.0","36.6","1243","49.7","47.2","worse","40.8","126","better","126","51.5","56.0","338.9","5125","5125","better","better","483.9","483.9","413.7","413.7","5125","better","483.9","413.7","338.9","338.9","NaN","NaN","1.0","5108","4980","worse","47.5","2617","5514","worse","10.9","523","4650","No Sig Diff",133.499508664286,557,41723,167.376967215066,703,42001,153.28121298270599,647,42210,155.29550305439,633,40761,145.346752408501,608,41831,127.109716987757,543,42719,192.4,105,54564,148.80952380952399,81,54432,140.66110720385799,70,49765,53.1,27,50893,70.710245128849806,36,50912,425.52531072126402,242,55794,59,32,54205,1795.3,117,6369,876.5,141,15376,null,2067,451,21.8,20.6,60.3,22.2,1.3,0,2.7,22.4,18.600000000000001,20.8,38.1,3.8,18.600000000000001,1886,451,23.900000000000002,21.3,62.5,24.6,3.5,2.9000000000000004,4.9000000000000004,25.3,22.400000000000002,14.600000000000001,35,4.4000000000000004,23.700000000000003]
[880,"Torbay",10180,120,420,460,150,520,10150,130,400,450,160,490,9860,120,370,460,160,470,null,132.1,1474,8.1,131.5,1462,6.5,131.19999999999999,1499,7.2,134.30000000000001,1402,8,null,127908,21572,386,670,20516,20899,519,154,12517,330,548,11639,11660,672,185,null,"24.0","5370","5370","worse","16.6","21.1","0.4","25","25","better","1.7","1.1","114.9","285","24800","higher","80.0","60.0","56.3","65.1","56.3","NaN","3.90","760","815.1","97","none","711.8","688.0","9.0","6.2","27","9","3.6","none","4.4","13.9","none","13.70","12.9","10","13.7","134.7","334","none","122.6","119.5","13.6","3","none","22.1","14.8","4.5","16","350677","No Sig Diff","3.7","13","350677","No Sig Diff","19.2","217","better","29.8","265","889","better","91.1","23","worse","55.8","62.0","780.1","126","16152","worse","98.1","1474","1502","1474.0","93.5","1404","1502","better","85.1","1243","1243.0","77.9","588","worse","86.8","83.8","588","3644.0","522.0","53.1","44.2","--","worse","119","27.3","30.7","2.1","29","worse","1.3","1.3","7.5","112","112","none","7.4","6.2","NaN","NaN","112","none","7.4","6.2","17.8","262","262","none","13.2","13.1","19.7","+","13.2","13.1","71.8","1055","1055","78.0","none","74.0","39.0","580","49.7","47.2","none","50.9","70","none","70","51.5","56.0","501.8","3500","3500","worse","worse","483.9","483.9","413.7","413.7","3500","worse","483.9","413.7","501.8","501.8","NaN","NaN","1.8","2958","1639","worse","22.6","521","2308","better","7.5","115","1877","better",123.93645797472099,252,20333,111.701335451522,225,20143,81.200178244293696,164,20197,171.818934584598,249,14492,184.29319371727701,264,14325,151.087263484891,214,14164,194,51,26288,204.54545454545499,54,26400,106.32851573268201,27,25393,80.7,20,24789,68.385695321613895,17,24859,522.7831346214,110,20935,83.4,22,26388,1690.2,47,2783,1016.4,70,6799,null,1513,320,21.2,26.9,31.9,40,1.9,11.3,8.4,16.3,50.6,40,33.799999999999997,12.5,16.3,1843,302,16.400000000000002,24.5,31.5,40.1,2,11.3,8.3000000000000007,18.5,47.400000000000006,41.400000000000006,33.4,12.9,17.5]
[881,"Essex",59370.000000000007,1150.0000000000002,3510.0000000000005,3469.9999999999995,1220,3340,58980,1080.0000000000002,3210,3410,1170,3290.0000000000005,57340,1030,2860.0000000000005,3300.0000000000005,1130.0000000000002,3100.0000000000005,null,1416.4,15949,6.3,1406.5,16860,6.5,1396.6,16330,6.3,1413,16483,6.8,null,1375440,259532,3578,5344,250610,253116,4993,1423,142562,2721,4523,135318,135405,5700,1457,null,"17.4","44875","44875","better","17.1","21.1","1.5","907","907","better","1.7","1.7","26.2","773","295600","lower","85.6","89.3","60.0","61.6","60.0","NaN","3.20","6610","791.4","1081","worse","711.8","715.0","6.6","3.6","177","59","3.9","better","4.4","10.3","better","13.70","11.9","87","13.7","116.2","3438","better","122.6","113.6","19.3","51","none","22.1","20.0","5.7","226","4008941","No Sig Diff","2.5","98","4008941","No Sig Diff","20.6","3031","better","31.9","4240","13299","better","30.7","92","better","55.8","30.9","146.3","285","194861","better","96.8","16229","16770","16355.0","92.3","15474","16770","better","86.7","14219","14397.0","91.3","7068","better","86.8","88.2","4652","1283.8","2128.0","28.3","36.9","++","better","730","26.6","30.7","1.5","232","none","1.3","1.3","6.7","1096","1096","better","7.4","6.9","NaN","NaN","1096","better","7.4","6.9","13.0","2113","2113","worse","13.2","13.2","NaN","o","13.2","13.2","73.3","11908","11908","75.3","worse","74.0","43.8","6940","47.0","47.2","worse","33.7","523","better","523","51.5","47.0","350.3","28989","28989","better","better","483.9","483.9","357.1","357.1","28989","better","483.9","357.1","350.3","350.3","NaN","NaN","1.6","28990","17712","worse","32.1","6321","19696","No Sig Diff","8.1","1183","15099","better",98.306913607703095,2387,242811,111.27419048954,2699,242554,85.750387451083,2097,244547,124.193322323719,2038,164099,120.71742710802999,2001,165759,106.968363003096,1769,165376,125.1,391,312648,138.95955227677399,437,314480,98.020192828802607,293,298918,61.5,182,295777,78.535002005507593,233,296683,222.35176306665301,546,246328,64.5,202,313112,1256.7,408,32676,672.2,547,81996,null,6739,1432,21.2,32.700000000000003,9.6,12.2,2.8,1.5,5.5,4.9000000000000004,27.7,15.4,15.6,10.199999999999999,22,6416,1345,21,34,10,12.100000000000001,2.9000000000000004,1.6,4.6000000000000005,5.1000000000000005,28.3,16.400000000000002,13.8,9,22.400000000000002]
[882,"Southend-on-Sea",8150,160,430,450,160,490,8109.9999999999991,160,410,470,140,490,7880,120,390,440,150,460,null,175.8,2233,6.5,174.8,2345,6.7,174.3,2266,6.3,165.3,2207,6.5,null,171489,33016,482,726,31808,32067,725,224,17683,400,679,16604,16613,846,224,null,"23.3","7595","7595","worse","17.1","21.1","0.9","63","63","better","1.7","1.7","29.1","109","37400","lower","86.5","97.3","58.5","61.6","58.5","NaN","3.10","877","456.8","70","better","711.8","715.0","5.7","4.0","27","9","3.9","none","4.4","11.7","none","13.70","11.9","12","13.7","101.4","379","better","122.6","113.6","45.9","15","worse","22.1","20.0","6.0","30","490727","No Sig Diff","3.0","14","490727","No Sig Diff","21.9","411","No Sig Diff","36.8","611","1661","worse","37.7","13","better","55.8","30.9","160.7","42","26141","better","96.7","2267","2346","2176.0","92.2","2164","2346","No Sig Diff","87.6","1910","1817.0","86.0","967","none","86.8","88.2","1927","1791.0","361.0","34.8","56.4","++","none","108","26.6","30.7","1.5","31","none","1.3","1.3","6.4","146","146","none","7.4","6.9","NaN","NaN","146","none","7.4","6.9","11.9","273","273","worse","13.2","13.2","12.8","o","13.2","13.2","72.1","1650","1650","75.3","worse","74.0","37.0","778","47.0","47.2","worse","40.6","86","better","86","51.5","47.0","419.6","4580","4580","better","better","483.9","483.9","357.1","357.1","4580","better","483.9","357.1","419.6","419.6","NaN","NaN","2.0","3756","1889","worse","24.9","583","2341","better","7.3","105","1596","better",94.471772485910705,290,30697,99.980648906663205,310,31006,84.028223220012805,262,31180,131.961866532865,263,19930,105.675729311371,213,20156,132.23802845121199,264,19964,99.1,39,39366,166.00015090922801,66,39759,129.70900067674299,46,35464,72.3,27,37359,119.626764494776,45,37617,268.935352955555,78,29805,37.9,15,39539,922.9,41,4492,546.5,61,11250,null,1058,255,24.1,31,23.1,13.3,4.7,"x",2.4,3.1,35.299999999999997,14.5,2.7,9,29.8,1057,284,26.900000000000002,34.5,23.900000000000002,14.100000000000001,3.5,"x","x","x",34.5,13,"x",11.3,30.6]
[883,"Thurrock",6970,160,500,480,160,410,6920,160,440,490,170,370,6740,150,410,470,160,360,null,160.80000000000001,2326,7.8,159.5,2476,7.1,158.30000000000001,2388,7.1,159.69999999999999,2437,6.1,null,157072,34277,520,759,32998,33240,832,205,17504,297,570,16637,16580,769,155,null,"21.9","7330","7330","worse","17.1","21.1","2.1","134","134","worse","1.7","1.7","42.9","165","38500","No Sig Diff","88.9","88.9","64.5","61.6","64.5","NaN","3.50","863","434.6","70","better","711.8","715.0","7.6","2.8","20","7","3.9","better","4.4","17.0","none","13.70","11.9","18","13.7","90.3","347","better","122.6","113.6","16.9","6","none","22.1","20.0","7.6","37","493829","No Sig Diff","1.9","9","493829","No Sig Diff","23.5","500","No Sig Diff","37.4","601","1607","worse","22.5","8","better","55.8","30.9","71.1","20","28142","better","96.5","2337","2422","2303.0","91.4","2213","2422","No Sig Diff","86.9","2006","1921.0","92.9","896","better","86.8","88.2","2352","1587.8","313.0","34.0","62.3","++","none","104","26.6","30.7","1.2","30","none","1.3","1.3","7.5","179","179","none","7.4","6.9","NaN","NaN","179","none","7.4","6.9","12.6","304","304","worse","13.2","13.2","12.2","o","13.2","13.2","69.8","1683","1683","75.3","worse","74.0","35.7","851","47.0","47.2","worse","34.8","84","better","84","51.5","47.0","306.7","3542","3542","better","better","483.9","483.9","357.1","357.1","3542","better","483.9","357.1","306.7","306.7","NaN","NaN","1.3","4172","3224","worse","25.7","767","2986","better","7.8","147","1887","better",84.303240012582606,268,31790,94.7749868368074,306,32287,78.144078144078193,256,32760,92.935859021888206,183,19691,75.584639577943506,149,19713,87.975039639916105,172,19551,121.4,49,40355,141.35653530257599,58,41031,123.057168080041,46,37381,67.7,26,38415,64.099276960155905,25,39002,82.426950251586106,24,29282,42,17,40502,1688.1,83,4827,782.4,96,12097,null,1320,247,18.7,46.2,21.9,17.8,"x",4,3.6,3.2,40.1,26.7,10.9,8.9,22.3,1454,230,15.8,53,20.400000000000002,14.8,"x",2.6,3.9000000000000004,2.6,37.800000000000004,21.700000000000003,10,7.4,20]
[884,"Herefordshire",8420,110,310,370,130,440,8500,110,300,400,160,440,8450,100,300,410,160,440,null,186.1,1833,6.8,184.9,1906,6.9,183.6,1859,5.0999999999999996,179.3,1911,6.6,null,180595,31309,418,671,30220,30493,652,164,17431,336,561,16534,16514,735,182,null,"14.8","4480","4480","better","23.8","21.1","2.5","193","193","worse","1.7","2.9","40.7","146","35900","No Sig Diff","96.0","84.0","60.7","63.2","60.7","NaN","2.50","604","850.4","145","worse","711.8","613.0","4.6","3.9","22","7","5.9","none","4.4","14.8","none","13.70","14.0","16","13.7","125.4","452","none","122.6","126.1","16.1","5","none","22.1","22.5","13.0","62","490617","worse","4.1","19","490617","No Sig Diff","21.7","350","No Sig Diff","29.8","427","1434","better","80.6","29","worse","55.8","58.2","-","NaN","NaN","No Data","94.8","1730","1824","1730.0","88.7","1617","1824","worse","82.5","1531","1531.0","83.4","791","none","86.8","87.8","791","1894.2","382.0","26.0","37.2","++","none","86","34.9","30.7","1.4","25","none","1.3","1.6","5.2","96","96","better","7.4","8.3","NaN","NaN","96","better","7.4","8.3","11.2","204","204","none","13.2","15.4","NaN","o","13.2","15.4","72.9","1332","1332","67.4","none","74.0","47.5","862","40.8","47.2","none","55.4","98","none","98","51.5","52.7","354.6","3232","3232","better","better","483.9","483.9","471.4","471.4","3232","better","483.9","471.4","354.6","354.6","NaN","NaN","1.2","3694","3212","worse","35.6","1891","5306","worse","9.2","279","2975","No Sig Diff",111.22899483213,325,29219,125.97398139566801,367,29133,118.05130298700399,347,29394,135.13513513513499,274,20276,126.940050577676,256,20167,112.241318835496,224,19957,173.1,66,38119,183.4333481827,70,38161,162.120651895674,57,35159,149.9,54,36034,97.241130219764997,35,35993,347.99155998306799,104,30168,76.2,29,38046,2206.8000000000002,86,3831,1479.7,143,9557,null,1359,45,3.3,44.4,24.4,33.299999999999997,"x","x","x",22.2,62.2,24.4,22.2,"x",17.8,1238,23,1.9000000000000001,"x","x","x","x","x",0,"x",47.800000000000004,"x","x","x",26.1]
[885,"Worcestershire",26290,470,1510,1540,580,1540,26390,430.00000000000006,1410,1550,549.99999999999989,1540,25909.999999999996,390,1380.0000000000002,1510,510,1490,null,572.20000000000005,6070,7.7,569,6527,7.1,566.6,6193,7.5,557.4,6248,7.2,null,556357,99972,1445,2236,96291,97550,1904,518,55721,1149,1803,52769,52771,2333,617,null,"15.8","15825","15825","better","23.8","21.1","2.1","495","495","worse","1.7","2.9","39.8","456","114700","No Sig Diff","73.0","9.0","63.7","63.2","63.7","NaN","3.20","2715","603.8","325","better","711.8","613.0","6.1","3.5","65","22","5.9","none","4.4","12.8","none","13.70","14.0","42","13.7","108.1","1243","better","122.6","126.1","10.2","10","better","22.1","22.5","6.6","106","1585338","No Sig Diff","3.6","56","1585338","No Sig Diff","24.2","1413","worse","33.5","1772","5288","No Sig Diff","76.3","88","worse","55.8","58.2","-","NaN","NaN","No Data","97.2","6004","6179","6004.0","92.2","5696","6179","No Sig Diff","85.4","5473","5473.0","79.8","2741","none","86.8","87.8","2741","1519.8","996.0","29.7","35.1","+","none","306","34.9","30.7","1.3","77","none","1.3","1.6","7.7","478","478","none","7.4","8.3","NaN","NaN","478","none","7.4","8.3","16.3","991","991","none","13.2","15.4","15.0","o","13.2","15.4","73.4","4466","4466","67.4","none","74.0","42.3","2618","40.8","47.2","none","49.7","292","none","292","51.5","52.7","389.9","12059","12059","better","better","483.9","483.9","471.4","471.4","12059","better","483.9","471.4","389.9","389.9","NaN","NaN","1.4","11548","8121","worse","37.6","3890","10333","worse","10.6","830","7507","No Sig Diff",100.624640245592,944,93814,102.401847081334,958,93553,89.773114977823298,842,93792,155.60725345494299,1010,64907,131.223583624517,860,65537,134.69344319615701,886,65779,168.3,205,121804,195.55161165750499,238,121707,100.97229355083,116,114883,99.2,114,114954,80.301654912366502,92,114568,416.26419915416199,408,97283,70.599999999999994,86,121758,1643.8,206,12295,984.7,308,31135,null,3148,430,13.7,24.9,17.899999999999999,10,0,0,2.8,5.3,55.8,4.4000000000000004,4.2,7.4,51.9,3700,521,14.100000000000001,21.5,20.3,8.3000000000000007,0,"x",3.6,5.8000000000000007,53.400000000000006,6.3000000000000007,4.2,6.9,52.800000000000004]
[886,"Kent",72139.999999999985,1190,4540,4980,1770.0000000000002,4860,71690,1160,4290,4930.0000000000018,1710.0000000000002,4720,69310,1050,4040,4870.0000000000009,1750.0000000000002,4390.0000000000009,null,1493.5,16955,5.8,1480.2,18147,6.2,1466.5,17612,6.1,1427.4,17558,5.8,null,1435745,281401,4746,7137,269518,273139,6547,1715,155888,3240,5766,146882,147148,7011,1729,null,"18.5","49980","49980","better","15.5","21.1","1.1","646","646","better","1.7","1.1","29.5","953","322700","lower","76.2","79.6","72.1","66.4","72.1","NaN","2.80","6553","810.1","1174","worse","711.8","579.0","6.9","3.4","179","60","3.7","better","4.4","11.6","none","13.70","11.7","105","13.7","105.0","3389","better","122.6","113.5","18.8","52","better","22.1","20.1","7.3","316","4279406","worse","2.1","86","4279406","better","21.7","3330","No Sig Diff","32.7","4593","14054","better","48.5","151","better","55.8","45.9","180.3","379","210174","better","97.7","16686","17080","16686.0","94.7","16168","17080","better","90.5","14452","14452.0","85.1","7314","worse","86.8","85.6","7314","1640.0","3016.0","31.0","42.1","++","none","871","26.1","30.7","1.6","275","worse","1.3","1.2","6.5","1134","1134","better","7.4","6.6","NaN","NaN","1134","better","7.4","6.6","15.2","2611","2611","worse","13.2","11.4","16.8","+","13.2","11.4","72.5","12485","12485","78.1","worse","74.0","NaN","NaN","50.9","47.2","NaN","35.3","609","better","609","51.5","54.0","393.9","34231","34231","better","better","483.9","483.9","370.4","370.4","34231","better","483.9","370.4","393.9","393.9","NaN","NaN","1.5","32547","22106","worse","35.6","9235","25958","worse","8.6","1702","19564","better",106.716719079564,2803,262658,110.979741853112,2938,264733,95.314812386429594,2544,266905,157.41695098357999,2856,181429,153.78006405690101,2828,183899,137.15744441499899,2536,184897,136.19999999999999,466,342059,142.13463550749901,489,344040,141.893835288102,444,312910,163.9,529,322813,150.18395221251501,487,324269,360.47217042173298,988,274125,67.2,230,342129,1282.4000000000001,456,35587,682,607,89286,null,8827,1496,16.899999999999999,38.299999999999997,10.199999999999999,11.2,7.2,0.8,5.0999999999999996,3.5,34.1,24.1,5.0999999999999996,6.7,16.899999999999999,10030,1452,14.5,40.800000000000004,11.600000000000001,12.5,9.2000000000000011,1.2000000000000002,5.6000000000000005,3.6,37.1,24.200000000000003,4.5,9,1.2000000000000002]
[887,"Medway",14140,250,1020,1170,440,1050,14030,240,990,1190,400,1050,13580,230,960,1140,390,980,null,271.10000000000002,3503,5.2,268.2,3693,6.3,264.89999999999998,3564,5.4,256.7,3538,6.1,null,259988,53363,1013,1582,50768,51686,1336,341,32357,749,1260,30348,30510,1480,367,null,"21.8","11385","11385","worse","15.5","21.1","0.9","89","89","better","1.7","1.1","56.7","346","61000","higher","90.0","86.7","60.7","66.4","60.7","NaN","3.10","1341","675.9","180","none","711.8","579.0","6.2","3.6","38","13","3.7","none","4.4","13.7","none","13.70","11.7","23","13.7","131.1","798","none","122.6","113.5","19.2","10","none","22.1","20.1","4.3","38","858653","better","1.7","15","858653","No Sig Diff","23.8","703","No Sig Diff","34.2","927","2713","No Sig Diff","49.8","29","none","55.8","45.9","59.2","24","40554","better","97.9","3402","3476","3402.0","93.2","3239","3476","better","88.9","2849","2849.0","81.0","1442","worse","86.8","85.6","1442","1394.5","533.0","38.8","46.2","+","worse","206","26.1","30.7","1.8","67","worse","1.3","1.2","5.8","206","206","better","7.4","6.6","NaN","NaN","206","better","7.4","6.6","17.7","657","657","worse","13.2","11.4","19.8","+","13.2","11.4","68.8","2558","2558","78.1","worse","74.0","37.9","1407","50.9","47.2","worse","33.0","120","better","120","51.5","54.0","389.5","6548","6548","better","better","483.9","483.9","370.4","370.4","6548","better","483.9","370.4","389.5","389.5","NaN","NaN","0.5","4244","9136","better","42.7","4322","10125","worse","9.9","548","5287","No Sig Diff",154.75831574716099,770,49755,142.92272990398601,716,50097,120.862004377058,613,50719,154.12271657810601,583,37827,124.012348909005,474,38222,97.512902305557702,376,38559,282.7,183,64724,307.93743201630099,201,65273,531.23563365173402,312,58731,479.7,292,60877,434.83925605029202,267,61402,207.66012728051399,115,55015,111.2,72,64744,2530.9,177,7006,1273.8,222,17284,null,1812,365,20.100000000000001,40.799999999999997,15.1,5.5,"x",0,2.2000000000000002,0,46.8,6.3,0,"x",11.2,2589,406,15.700000000000001,56.400000000000006,20.400000000000002,7.1000000000000005,3.2,1.5,3.2,"x",41.1,10.8,"x",4.4000000000000004,21.900000000000002]
[888,"Lancashire",70580,929.99999999999989,2800,2910.0000000000005,1070,3080,71550,900.00000000000011,2650.0000000000005,2970.0000000000005,1010,3129.9999999999995,70830,860.00000000000011,2550.0000000000005,2880.0000000000005,980,3010,null,1180.0999999999999,13317,7.7,1176,13681,7.9,1171.5999999999999,13794,7.5,1169.3,13797,7,null,1143277,213649,3376,4687,205586,207985,4392,1272,127919,2870,4093,120956,121062,5340,1517,null,"18.4","39210","39210","better","22.9","21.1","0.6","299","299","better","1.7","0.9","22.5","546","243200","lower","92.6","79.5","63.8","61.8","63.8","NaN","3.40","5852","863.7","979","worse","711.8","709.0","8.0","5.1","211","70","4.7","worse","4.4","17.6","worse","13.70","15.9","123","13.7","155.8","3794","worse","122.6","150.6","40.7","87","worse","22.1","30.2","6.9","258","3559038","No Sig Diff","3.1","119","3559038","No Sig Diff","23.5","2943","worse","32.3","3612","11191","better","91.7","226","worse","55.8","93.7","604.6","985","162916","worse","96.9","13071","13493","13071.0","93.5","12616","13493","better","87.5","11345","11345.0","91.7","5913","better","86.8","91.0","5913","2226.1","3444.0","35.6","48.5","++","worse","753","35.3","30.7","1.6","210","worse","1.3","1.6","7.9","1086","1086","none","7.4","7.4","NaN","NaN","1086","none","7.4","7.4","19.7","2578","2578","worse","13.2","17.1","20.2","o","13.2","17.1","68.1","8898","8898","62.0","worse","74.0","NaN","NaN","34.1","47.2","NaN","59.4","803","worse","803","51.5","60.8","503.8","34180","34180","worse","worse","483.9","483.9","566.2","566.2","34180","worse","483.9","566.2","503.8","503.8","NaN","NaN","1.2","30741","24763","worse","47.7","13146","27564","worse","12.5","3104","23374","worse",146.86081258978601,2934,199781,142.28201345302699,2845,199955,138.82579633891299,2781,200323,172.797129149276,2658,153822,169.35238870897899,2620,154707,146.393142637003,2280,155745,297.60000000000002,772,259443,367.967126722307,951,258447,132.84012180417301,325,244655,90.3,220,243569,97.015538929540398,236,243260,476.25263758869698,1073,221436,119.5,309,258681,2864.9,794,27514,1362.6,943,68679,null,5778,70,1.2,25.7,24.3,45.7,17.100000000000001,"x","x","x",64.3,41.4,21.4,10,8.6,9035,632,7,25,21,38.300000000000004,9,5.9,5.9,10.3,63.400000000000006,35.300000000000004,23.400000000000002,9.2000000000000011,7.3000000000000007]
[889,"Blackburn with Darwen",10920,130,410,420,140,460,11130,130,430,400,140,470,11150,130,430,410,140,470,null,147.4,2254,8.9,147.69999999999999,2300,8.9,147.69999999999999,2344,8.9,140,2296,9.1999999999999993,null,145827,34199,584,763,32852,33050,901,248,17349,399,636,16314,16293,805,251,null,"26.2","8985","8985","worse","22.9","21.1","0.4","19","19","better","1.7","0.9","58.8","227","38600","higher","92.0","86.0","57.3","61.8","57.3","NaN","2.10","579","694.1","117","none","711.8","709.0","10.7","7.6","53","18","4.7","worse","4.4","21.6","none","13.70","15.9","23","13.7","172.1","665","worse","122.6","150.6","47.9","16","worse","22.1","30.2","6.7","34","518925","No Sig Diff","3.2","16","518925","No Sig Diff","20.4","417","No Sig Diff","31.9","591","1854","No Sig Diff","80.8","31","worse","55.8","93.7","1074.6","291","27080","worse","95.4","2260","2368","2260.0","92.7","2195","2368","better","86.9","1991","1991.0","91.3","954","better","86.8","91.0","954","2342.5","467.0","28.7","58.2","++","none","89","35.3","30.7","1.4","33","none","1.3","1.6","9.5","223","223","worse","7.4","7.4","NaN","NaN","223","worse","7.4","7.4","18.5","436","436","worse","13.2","17.1","17.3","o","13.2","17.1","70.7","1670","1670","62.0","worse","74.0","34.5","849","34.1","47.2","worse","59.2","140","none","140","51.5","60.8","491.9","5528","5528","none","No Sig Diff","483.9","483.9","566.2","566.2","5528","none","483.9","566.2","491.9","491.9","NaN","NaN","0.8","3884","4622","worse","50.6","2540","5024","worse","14.3","706","4389","worse",145.894769517306,470,32215,157.81922525107601,506,32062,157.072957895721,504,32087,198.35943325876201,399,20115,178.57142857142901,356,19936,167.02203269367399,329,19698,441.9,179,40510,591.91944000982403,241,40715,114.900506606779,44,38294,75,29,38645,129.429732598172,50,38631,525.98224141723995,156,29825,152.69999999999999,62,40609,3679.3,161,4414,1816.4,200,11261,null,1675,158,9.4,13.3,19,19,"x","x",5.0999999999999996,3.8,55.1,29.1,5.7,15.2,8.1999999999999993,1515,150,9.9,16,17.3,20,"x","x",4.7,"x",56.7,30,6.7,14.700000000000001,5.3000000000000007]
[890,"Blackpool",13110,160,380,400,170,550,13410,170,350,430,180,570,13220,130,330,420,170,540,null,141.4,1717,9,142,1770,7.4,142.1,1735,6.6,140,1777,7.9,null,137960,25202,468,659,24075,24387,628,187,15209,434,631,14144,14113,840,256,null,"31.1","8270","8270","worse","22.9","21.1","0.2","14","14","better","1.7","0.9","104.2","301","28900","higher","100.0","100.0","52.1","61.8","52.1","NaN","2.30","466","1351.1","181","worse","711.8","709.0","11.0","6.3","33","11","4.7","worse","4.4","21.2","none","13.70","15.9","18","13.7","182.6","527","worse","122.6","150.6","43.1","11","worse","22.1","30.2","7.7","32","411390","No Sig Diff","5.4","23","411390","worse","22.3","356","No Sig Diff","32.0","422","1318","No Sig Diff","104.4","31","worse","55.8","93.7","1043.8","205","19639","worse","97.7","1639","1678","1639.0","92.7","1556","1678","No Sig Diff","84.1","1291","1291.0","88.4","671","none","86.8","91.0","671","5096.3","876.0","58.1","64.8","+","worse","149","35.3","30.7","2.7","46","worse","1.3","1.6","7.3","127","127","none","7.4","7.4","NaN","NaN","127","none","7.4","7.4","29.7","497","497","worse","13.2","17.1","33.2","+","13.2","17.1","56.2","939","939","62.0","worse","74.0","23.7","400","34.1","47.2","worse","53.0","91","none","91","51.5","60.8","376.0","3131","3131","better","better","483.9","483.9","566.2","566.2","3131","better","483.9","566.2","376.0","376.0","NaN","NaN","1.3","3621","2778","worse","40.9","1222","2985","worse","10.4","248","2225","No Sig Diff",129.424083769634,309,23875,168.276327442959,399,23711,147.20067100021001,351,23845,237.00218064960401,413,17426,278.66658909767898,479,17189,277.34079123696301,476,17163,290.8,89,30604,363.17649729239002,112,30839,130.03011223651799,38,29224,173.3,50,28853,165.16413185603199,48,29062,1152.3774263559401,292,24828,45.6,14,30672,2559.6999999999998,83,3295,1232.8,100,8212,null,1634,180,11,25.6,6.1,8.3000000000000007,13.9,0,3.9,5,52.8,23.3,7.2,6.7,6.7,1884,142,7.5,26.1,7,7.7,11.3,0,4.2,5.6000000000000005,56.300000000000004,23.900000000000002,7,6.3000000000000007,5.6000000000000005]
[891,"Nottinghamshire",46720,690,2230.0000000000005,2260.0000000000005,850.00000000000011,2230,46760,609.99999999999989,2050.0000000000005,2240,790,2170.0000000000005,45949.999999999993,629.99999999999989,1910,2199.9999999999995,760,2020,null,796.2,8818,7.1,790.2,9071,7,786.8,9027,7.3,779.9,9101,7.3,null,774338,142076,2360,3409,136307,138166,3096,814,80981,1773,2826,76382,76657,3469,855,null,"17.8","24480","24480","better","19.3","21.1","0.9","313","313","better","1.7","1.6","44.4","720","162100","higher","88.5","70.8","64.3","64.7","64.3","NaN","1.20","1394","928.5","683","worse","711.8","834.0","6.8","3.9","106","35","4.5","none","4.4","11.8","none","13.70","13.4","55","13.7","106.0","1721","better","122.6","111.8","25.7","36","none","22.1","21.9","8.7","196","2228395","worse","3.1","68","2228395","No Sig Diff","21.3","1686","better","31.7","2160","6806","better","44.4","71","better","55.8","48.1","191.8","204","106352","better","97.2","8465","8709","8465.0","92.5","8058","8709","better","87.0","7438","7438.0","90.6","3763","better","86.8","90.7","3763","2064.4","1914.0","31.9","46.4","++","none","451","31.3","30.7","1.5","136","none","1.3","1.6","7.6","689","689","none","7.4","7.5","NaN","NaN","689","none","7.4","7.5","18.2","1560","1560","worse","13.2","15.7","17.2","o","13.2","15.7","69.4","5945","5945","72.8","worse","74.0","38.6","3474","43.7","47.2","worse","42.0","373","better","373","51.5","44.1","431.6","18988","18988","better","better","483.9","483.9","409.0","409.0","18988","better","483.9","409.0","431.6","431.6","NaN","NaN","1.5","15992","10834","worse","36.2","4580","12658","worse","8.8","830","9729","better",94.396039454062404,1247,132103,95.721187545693695,1270,132677,85.247525495463705,1136,133259,144.39771379273199,1339,92730,141.186875768492,1309,92714,120.424518085337,1112,92340,110,189,171865,124.345587765324,214,172101,76.3334700186102,121,158515,62.8,102,162303,67.840931517663293,110,162144,329.638014120675,451,136235,55.9,96,171864,2196.1999999999998,401,18122,1233.7,562,45265,null,7759,682,8.8000000000000007,37.4,9.4,"x",13.9,0,5.4,0,37.5,21,"x",8.1999999999999993,29.9,7129,569,8,35.300000000000004,10.4,"x",10,0,4.7,0,27.1,23.900000000000002,"x",5.1000000000000005,33.9]
[892,"Nottingham",19840,290,930,890,340,1010,19860,300,870,900,320,1010,19420,290,800,880,300,960,null,310.8,4298,8.1,308.7,4408,8.3000000000000007,303.89999999999998,4462,8.6,306.7,4477,8.8000000000000007,null,289738,55449,1091,1486,52872,53267,1656,526,53583,850,1631,51102,50605,2397,581,null,"35.2","18840","18840","worse","19.3","21.1","3.8","488","488","worse","1.7","1.6","47.4","296","62500","higher","83.8","85.1","58.3","64.7","58.3","NaN","1.40","619","2065.7","464","worse","711.8","834.0","10.0","6.2","82","27","4.5","worse","4.4","14.1","none","13.70","13.4","23","13.7","121.8","760","none","122.6","111.8","29.7","15","none","22.1","21.9","5.7","73","1118957","No Sig Diff","2.1","35","1118957","No Sig Diff","24.7","733","worse","37.3","978","2625","worse","40.4","23","better","55.8","48.1","17.3","8","46269","better","95.3","4066","4268","4066.0","89.6","3823","4268","worse","82.5","3169","3169.0","89.6","1313","better","86.8","90.7","1313","2813.2","1909.0","49.5","74.7","++","worse","243","31.3","30.7","1.9","82","worse","1.3","1.6","9.0","405","405","worse","7.4","7.5","NaN","NaN","405","worse","7.4","7.5","18.5","829","829","worse","13.2","15.7","17.2","o","13.2","15.7","69.2","3094","3094","72.8","worse","74.0","46.6","2166","43.7","47.2","worse","24.3","106","better","106","51.5","44.1","588.2","11300","11300","worse","worse","483.9","483.9","409.0","409.0","11300","worse","483.9","409.0","588.2","588.2","NaN","NaN","1.0","3503","3561","worse","24.1","1105","4592","better","6.9","224","3392","better",108.429520811473,558,51462,110.085091769375,577,52414,86.4,459,53125,123.085380938564,806,65483,105.514456659495,716,67858,94.717872061021794,678,71581,150.5,103,68424,169.48902742774601,115,67851,56.783901763849897,32,56354,49.7,31,62394,65.069036660847502,41,63010,338.37191046828701,293,87202,68.599999999999994,46,67083,2109.6999999999998,178,8342,1176.2,244,20082,null,2597,618,23.8,30.1,9.5,7.6,1.8,1.9,4.2,2.2999999999999998,24.8,29.9,7.4,3.9,7.6,3441,587,17.100000000000001,30.5,10.4,9,1.4000000000000001,2.6,4.1000000000000005,3.2,24.5,31,6.5,3.7,8.2000000000000011]
[893,"Shropshire",14050,200,580,620,250,710,14110,190,560,650,220,720,13930,200,550,670,210,690,null,308.60000000000002,2843,6.4,308.2,2912,5.6,307.10000000000002,2880,6.3,293.39999999999998,2889,6.7,null,298183,52305,697,1124,50484,51068,973,264,28675,545,872,27258,27377,1053,245,null,"13.6","6755","6755","better","23.8","21.1","1.7","206","206","none","1.7","2.9","29.5","180","61100","lower","89.3","75.0","67.7","63.2","67.7","NaN","3.80","1654","633.7","188","none","711.8","613.0","6.9","3.8","33","11","5.9","none","4.4","13.6","none","13.70","14.0","26","13.7","116.4","713","none","122.6","126.1","12.1","6","better","22.1","22.5","12.0","101","833837","worse","4.8","41","833837","worse","23.6","591","No Sig Diff","32.8","823","2510","No Sig Diff","50.4","30","none","55.8","58.2","107.4","40","37244","better","98.0","2825","2882","2825.0","95.9","2763","2882","better","91.1","2613","2613.0","92.5","1570","better","86.8","87.8","1570","1250.0","450.0","23.7","34.0","++","better","136","34.9","30.7","1.6","42","none","1.3","1.6","6.4","186","186","none","7.4","8.3","NaN","NaN","186","none","7.4","8.3","15.0","372","372","none","13.2","15.4","16.0","o","13.2","15.4","75.6","1876","1876","67.4","none","74.0","43.8","1221","40.8","47.2","none","51.0","133","none","133","51.5","52.7","276.1","4146","4146","better","better","483.9","483.9","471.4","471.4","4146","better","483.9","471.4","276.1","276.1","NaN","NaN","0.9","4629","5321","worse","37.6","1803","4800","worse","9.7","403","3974","No Sig Diff",102.977161500816,505,49040,105.250300278903,517,49121,95.115101572268998,464,48783,132.314676410342,478,36126,136.39267757437699,491,35999,112.07091237579,397,35424,159.80000000000001,104,65086,221.51996777891401,143,64554,111.901660152988,67,59874,49,30,61263,62.780861749933898,38,60528,299.70838744266803,160,52588,56.9,37,65024,1379.2,84,6235,1035.4000000000001,160,15732,null,1490,216,14.5,41.2,25,33.299999999999997,0,"x",6.5,6,53.2,17.600000000000001,6,12.5,"x",1271,183,14.4,43.7,29.5,32.200000000000003,0,"x",6,7.1000000000000005,56.800000000000004,16.400000000000002,6,12,"x"]
[894,"Telford and Wrekin",11150,170,530,620,230,630,11170,130,540,610,230,600,11000,140,510,630,200,570,null,168.5,2191,7,167.7,2226,6.8,166.8,2316,7.8,162.6,2167,8.6999999999999993,null,164440,34078,637,911,32530,32966,864,248,19226,482,695,18049,18089,882,255,null,"25.9","8615","8615","worse","23.8","21.1","1.1","75","75","better","1.7","2.9","56.8","221","38900","higher","92.5","95.0","55.2","63.2","55.2","NaN","3.90","1057","633.9","109","none","711.8","613.0","6.5","4.7","32","11","5.9","none","4.4","18.3","none","13.70","14.0","20","13.7","130.4","507","none","122.6","126.1","20.8","7","none","22.1","22.5","7.0","38","538000","No Sig Diff","2.9","16","538000","No Sig Diff","23.9","404","No Sig Diff","36.2","592","1636","No Sig Diff","49.3","19","none","55.8","58.2","287.0","76","26478","No Sig Diff","98.5","2246","2280","2246.0","96.6","2203","2280","better","91.2","1945","1945.0","90.3","897","better","86.8","87.8","897","1456.3","325.0","37.4","64.2","++","worse","126","34.9","30.7","2.0","45","worse","1.3","1.6","7.9","184","184","none","7.4","8.3","NaN","NaN","184","none","7.4","8.3","22.7","524","524","worse","13.2","15.4","23.6","o","13.2","15.4","66.2","1530","1530","67.4","worse","74.0","32.9","753","40.8","47.2","worse","43.2","97","none","97","51.5","52.7","363.8","3876","3876","better","better","483.9","483.9","471.4","471.4","3876","better","483.9","471.4","363.8","363.8","NaN","NaN","0.8","3768","4620","worse","40.6","1595","3930","worse","10.9","360","3225","No Sig Diff",110.68714326259,351,31711,118.330263198976,379,32029,113.816587368225,366,32157,110.846833909258,247,22283,145.628892772326,325,22317,140.228653090389,314,22392,266.89999999999998,110,41218,237.02987060103999,98,41345,50.4621268458515,19,37652,46.3,18,38876,43.597568794399002,17,38993,511.470957666826,169,32628,99.4,41,41239,2247.4,105,4674,1135.9000000000001,132,11426,null,1312,192,14.6,31.8,32.799999999999997,35.4,6.3,"x",7.8,0,69.8,21.9,"x",8.3000000000000007,7.3,1400,211,15.100000000000001,36,30.3,30.3,4.3,"x",7.6000000000000005,0,64.900000000000006,19,4.3,5.7,6.6000000000000005]
[895,"Cheshire East",14940,210,730,790,250,760,15180,230,680,780,260,760,14910,240,660,760,270,710,null,372.7,3770,6,372.1,4112,6.6,370.7,4013,6.3,363.8,3970,6.2,null,365065,65727,798,1233,63696,64380,1078,269,34863,676,1003,33184,33299,1205,359,null,"13.0","8430","8430","better","22.9","21.1","0.4","64","64","better","1.7","0.9","27.9","209","74900","lower","95.7","97.1","73.5","61.8","73.5","NaN","2.40","1272","580.6","203","better","711.8","709.0","6.3","3.4","41","14","4.7","none","4.4","10.4","none","13.70","15.9","22","13.7","139.7","1048","worse","122.6","150.6","38.0","25","worse","22.1","30.2","7.4","73","1018954","No Sig Diff","1.5","15","1018954","worse","21.0","792","better","30.8","1008","3272","better","88.6","67","worse","55.8","93.7","59.7","29","48553","better","97.3","4050","4162","3986.0","94.6","3937","4162","better","89.6","3616","3595.0","95.2","1985","better","86.8","91.0","2524","1776.5","726.0","23.3","37.9","++","better","151","35.3","30.7","1.1","41","none","1.3","1.6","6.6","267","267","none","7.4","7.4","NaN","NaN","267","none","7.4","7.4","15.4","572","572","worse","13.2","17.1","17.2","+","13.2","17.1","68.3","2537","2537","62.0","worse","74.0","39.4","1563","34.1","47.2","worse","78.5","300","worse","300","51.5","60.8","345.4","6987","6987","better","better","483.9","483.9","566.2","566.2","6987","better","483.9","566.2","345.4","345.4","NaN","NaN","0.7","5271","8105","No Sig Diff","38.5","3396","8828","worse","12.6","930","6943","worse",141.29035412219099,867,61363,138.277402732935,848,61326,122.52392791563101,754,61539,222.374944774434,906,40742,170.79377508074799,698,40868,138.168408113092,562,40675,224.9,179,79594,235.06341684160199,187,79553,128.32165962679801,96,74812,128,96,75002,74.668657830875503,56,74998,387.76029057039801,238,61447,66.599999999999994,53,79588,2390.5,192,7826,1139.3,230,20182,null,1901,172,9,23.8,19.2,20.3,"x","x",5.2,9.3000000000000007,55.8,19.2,6.4,7,25.6,2116,156,7.4,30.8,16.7,16,0,"x",4.5,8.3000000000000007,50.6,14.700000000000001,5.8000000000000007,6.4,22.400000000000002]
[896,"Cheshire West and Chester",18080,240,870,840,280,790,18210,210,800,830,260,850,17870,220,680,810,250,800,null,331,3577,6.1,330.2,3700,6.6,329.5,3746,6.8,327.3,3822,5.6,null,326236,58028,797,1248,55983,56731,996,301,35116,625,1087,33404,33454,1363,299,null,"16.6","9790","9790","better","22.9","21.1","0.6","77","77","better","1.7","0.9","37.6","248","65900","No Sig Diff","91.8","87.8","64.2","61.8","64.2","NaN","3.00","1513","561.5","175","better","711.8","709.0","7.9","4.1","46","15","4.7","none","4.4","18.0","none","13.70","15.9","34","13.7","150.8","996","worse","122.6","150.6","24.3","14","none","22.1","30.2","7.4","73","956669","No Sig Diff","3.1","30","956669","No Sig Diff","25.3","889","worse","34.6","1068","3085","No Sig Diff","68.7","47","worse","55.8","93.7","32.0","14","43759","better","97.0","3589","3699","3653.0","94.7","3503","3699","better","88.2","3372","3393.0","92.1","1604","better","86.8","91.0","1065","2044.5","809.0","25.8","37.6","++","better","146","35.3","30.7","1.3","48","none","1.3","1.6","7.1","268","268","none","7.4","7.4","NaN","NaN","268","none","7.4","7.4","12.7","472","472","worse","13.2","17.1","13.4","o","13.2","17.1","68.2","2528","2528","62.0","worse","74.0","40.6","1531","34.1","47.2","worse","75.7","272","worse","272","51.5","60.8","343.0","6391","6391","better","better","483.9","483.9","566.2","566.2","6391","better","483.9","566.2","343.0","343.0","NaN","NaN","0.6","4356","6977","No Sig Diff","41.0","3157","7704","worse","10.4","620","5795","No Sig Diff",144.428152492669,788,54560,153.32889972659399,830,54132,128.169714380421,696,54303,198.67383960965799,794,39965,155.171978063636,614,39569,119.69063015088101,472,39435,145.30000000000001,102,70180,209.98800068567499,147,70004,105.38659066957599,71,67371,77.2,51,66039,43.904802276993898,29,66052,277.07859664012699,162,57502,68.599999999999994,48,69984,2878.9,208,7178,1338.3,242,18114,null,1939,313,16.100000000000001,29.4,16.899999999999999,21.1,"x","x",4.8,8.6,48.2,18.8,7,9.6,22.4,2076,297,14.3,34.700000000000003,13.8,19.900000000000002,"x","x",4,7.7,47.1,16.2,6.7,10.100000000000001,21.900000000000002]
[908,"Cornwall",31850,420,1300,1380,490,1530,32009.999999999996,420,1200,1380,500,1560,31470,410,1180,1310,480,1530,null,543.6,5605,6.1,540.20000000000005,5721,6.2,536,5808,5.4,537.4,5558,5.9,null,523432,89764,1408,2234,86122,87274,1918,572,51498,1251,2052,48195,48388,2394,716,null,"18.5","16460","16460","better","16.6","21.1","1.6","374","374","none","1.7","1.1","39.6","408","103000","No Sig Diff","85.2","73.8","63.3","65.1","63.3","NaN","2.80","2058","690.4","344","none","711.8","688.0","6.8","4.3","72","24","3.6","none","4.4","14.3","none","13.70","12.9","41","13.7","129.6","1333","worse","122.6","119.5","9.9","9","better","22.1","14.8","8.4","121","1412796","worse","4.4","60","1412796","worse","23.5","1060","No Sig Diff","31.3","1112","3549","better","61.2","64","none","55.8","62.0","13.9","9","64761","better","96.9","5541","5717","5541.0","91.0","5202","5717","No Sig Diff","85.3","4811","4811.0","64.2","1870","worse","86.8","83.8","1870","2193.9","1329.0","30.3","39.8","++","none","279","27.3","30.7","1.6","88","none","1.3","1.3","5.7","323","323","better","7.4","6.2","NaN","NaN","323","better","7.4","6.2","13.7","776","776","better","13.2","13.1","14.3","o","13.2","13.1","79.0","4471","4471","78.0","better","74.0","46.9","2674","49.7","47.2","better","56.0","306","none","306","51.5","56.0","398.8","10939","10939","better","better","483.9","483.9","413.7","413.7","10939","better","483.9","413.7","398.8","398.8","NaN","NaN","0.6","5341","9332","No Sig Diff","42.1","4564","10836","worse","9.4","842","8461","better",131.89562730847101,1107,83930,116.141802702026,974,83863,105.49023326379699,890,84368,209.158665144699,1246,59572,188.49288007243399,1145,60745,166.15475101293899,1017,61208,157.30000000000001,172,109365,157.76445947538801,174,110291,222.51421885040699,232,104263,76.8,79,102869,94.316924113372806,98,103905,422.05131107554803,380,90477,56.6,62,109555,3000.3,342,11140,1654.9,468,27671,null,3267,745,22.8,35.200000000000003,10.6,7.4,17.2,"x",3.9,4,55,24.4,4.2,10.1,20.7,"..","..","..","..","..","..","..","..","..","..","..","..","..","..",".."]
[909,"Cumbria",28489.999999999996,310,890,1050,440,1160.0000000000002,29099.999999999996,279.99999999999994,910,1089.9999999999998,420,1200,28680,270,890,1140,360,1140,null,498.1,4814,6.7,499.1,4996,6,499.8,5033,6.8,494.4,5068,6.2,null,490939,82763,1256,1646,79861,80851,1468,444,47811,1001,1564,45246,45414,1877,520,null,"15.5","12830","12830","better","22.9","21.1","1.2","258","258","better","1.7","0.9","36.6","350","95500","No Sig Diff","73.4","78.5","60.5","61.8","60.5","NaN","3.00","2192","799.7","373","worse","711.8","709.0","5.7","2.9","44","15","4.7","better","4.4","18.7","worse","13.70","15.9","52","13.7","126.9","1217","none","122.6","150.6","29.8","25","worse","22.1","30.2","10.3","142","1362942","worse","3.5","47","1362942","No Sig Diff","24.1","1027","worse","35.8","1485","4149","worse","96.4","94","worse","55.8","93.7","416.6","253","60732","worse","98.1","5064","5162","5064.0","93.5","4824","5162","better","90.0","4629","4629.0","92.8","2550","better","86.8","91.0","2550","1702.0","948.0","27.0","41.9","++","better","237","35.3","30.7","1.5","75","none","1.3","1.6","7.3","352","352","none","7.4","7.4","NaN","NaN","352","none","7.4","7.4","15.1","764","764","worse","13.2","17.1","16.1","o","13.2","17.1","66.8","3368","3368","62.0","worse","74.0","NaN","NaN","34.1","47.2","NaN","36.3","181","better","181","51.5","60.8","333.9","8417","8417","better","better","483.9","483.9","566.2","566.2","8417","better","483.9","566.2","333.9","333.9","NaN","NaN","1.6","14062","9006","worse","35.8","3406","9510","worse","9.5","794","8009","No Sig Diff",134.142118829911,1046,77977,122.208557188168,944,77245,119.024339369288,913,76707,186.84389667156299,1043,55822,170.38007863695901,949,55699,155.27726798373499,863,55578,169,172,101799,193.60027004755599,195,100723,101.60599682740499,98,96451,83.4,80,95875,70.880719386405701,67,94525,458.65467136617201,373,81781,93.5,95,101644,2483.3000000000002,249,10034,1356.2,341,25303,null,3172,464,14.6,30.6,18.100000000000001,22.2,5.8,2.8,5.2,8.4,53,21.8,10.6,5.2,10.3,3888,519,13.3,31.8,19.100000000000001,21.200000000000003,5.4,2.3000000000000003,5,7.7,52.400000000000006,21.200000000000003,10.4,4.6000000000000005,9.6000000000000014]
[916,"Gloucestershire",23720,410,1160,1170,430,1349.9999999999998,23730.000000000004,410,1080,1180,430,1369.9999999999998,23080,380,990.00000000000011,1170,400,1260.0000000000002,null,605.70000000000005,6554,5.0999999999999996,602.20000000000005,6880,5.8,598.29999999999995,6720,4.7,593.5,6875,5.5,null,586018,105629,1250,1960,102419,103241,1892,496,60887,996,1872,58019,57823,2510,554,null,"15.4","16270","16270","better","16.6","21.1","0.8","195","195","better","1.7","1.1","32.7","400","122200","lower","71.4","74.6","63.7","65.1","63.7","NaN","2.60","2335","512.0","298","better","711.8","688.0","6.4","3.3","67","22","3.6","better","4.4","13.2","none","13.70","12.9","46","13.7","96.0","1173","better","122.6","119.5","14.8","16","better","22.1","14.8","8.8","153","1702625","worse","3.2","54","1702625","No Sig Diff","23.5","1394","No Sig Diff","31.5","1767","5610","better","49.0","61","none","55.8","62.0","154.5","122","78939","better","97.2","6196","6377","6196.0","95.8","6111","6377","better","91.5","5333","5333.0","87.9","3111","worse","86.8","83.8","3111","1758.9","1270.0","21.5","41.6","++","better","237","27.3","30.7","0.9","60","better","1.3","1.3","5.3","338","338","better","7.4","6.2","NaN","NaN","338","better","7.4","6.2","13.3","868","868","better","13.2","13.1","14.9","+","13.2","13.1","78.5","5119","5119","78.0","better","74.0","51.9","3467","49.7","47.2","better","55.0","349","none","349","51.5","56.0","356.1","11892","11892","better","better","483.9","483.9","413.7","413.7","11892","better","483.9","413.7","356.1","356.1","NaN","NaN","1.5","13212","8953","worse","39.3","3789","9633","worse","10.7","949","8563","No Sig Diff",101.851851851852,1012,99360,92.3759701987087,920,99593,80.380561068283598,806,100273,134.252339035598,970,72252,130.323384807146,941,72205,125.973047627019,903,71682,142.69999999999999,185,129677,156.62428597752,204,130248,63.7333204253191,79,123954,51.5,63,122225,57.181600594688597,70,122417,439.45448696501097,467,105412,106.4,138,129757,2464,332,13385,1316.2,443,33527,null,2846,195,6.9,30.3,12.3,7.7,"x",0,0,0,48.7,"x",0,"x",22.6,2982,209,7,31.1,13.9,9.1,"x",0,0,0,49.800000000000004,"x",0,"x",23.400000000000002]
[919,"Hertfordshire",37580,809.99999999999989,2500.0000000000005,2580.0000000000005,930,2470,37400.000000000007,710,2350,2710.0000000000005,860,2420,36410,710.00000000000023,2290,2640.0000000000005,820,2310,null,1140.7,14503,6.2,1129.0999999999999,14913,6.6,1119.8,14932,6.4,1107.5,14969,6.3,null,1101351,222563,2696,4304,215563,217580,3872,1111,115765,1963,3500,110302,110421,4280,1064,null,"14.0","30315","30315","better","17.1","21.1","1.6","723","723","none","1.7","1.7","21.1","535","253400","lower","86.0","77.6","67.5","61.6","67.5","NaN","2.00","4000","717.6","791","none","711.8","715.0","6.9","3.5","157","52","3.9","better","4.4","11.4","none","13.70","11.9","80","13.7","107.3","2714","better","122.6","113.6","17.8","39","better","22.1","20.0","6.0","195","3297947","No Sig Diff","2.4","75","3297947","No Sig Diff","21.7","2798","better","27.8","2844","10227","better","21.0","52","better","55.8","30.9","43.3","75","173230","better","95.9","14834","15476","14834.0","94.0","14541","15476","better","88.7","13195","13195.0","85.5","6108","none","86.8","88.2","6108","1779.6","2403.0","21.6","32.0","++","better","464","26.6","30.7","0.8","107","better","1.3","1.3","6.8","1009","1009","better","7.4","6.9","NaN","NaN","1009","better","7.4","6.9","9.8","1411","1411","better","13.2","13.2","NaN","o","13.2","13.2","76.4","11029","11029","75.3","better","74.0","51.4","7911","47.0","47.2","better","43.8","612","better","612","51.5","47.0","489.6","35629","35629","worse","worse","483.9","483.9","357.1","357.1","35629","worse","483.9","357.1","489.6","489.6","NaN","NaN","1.5","24601","15907","worse","41.2","7753","18818","worse","10.3","1450","14053","No Sig Diff",96.401121302331902,1998,207259,110.172358746361,2312,209853,92.971085570005201,1981,213077,111.29443527823599,1484,133340,104.938865890055,1417,135031,99.327811787300405,1324,133296,107.2,286,266681,119.46812642168901,323,270365,42.092941214200998,105,249448,39.9,101,252831,56.261208287588502,144,255949,227.57895996529101,455,200998,53,142,267752,1292.0999999999999,391,30281,697.7,525,74492,null,5458,1207,22.1,29.7,5.0999999999999996,5.5,1.9,1,2.2000000000000002,0.8,28.3,27.2,1.8,4.7,17.100000000000001,5882,1115,19,33.6,4.7,2.5,0,0,2,0,26.3,17.8,0,3.9000000000000004,23.1]
[921,"Isle of Wight",8530,90,350,450,200,500,8490,80,340,480,170,500,8270,60,330,500,150,470,null,138.4,1287,5.4,138.69999999999999,1329,6.4,138.4,1321,7,140.5,1318,5.5,null,133713,22595,415,737,21443,21869,589,137,12774,380,549,11845,11892,701,181,null,"22.0","4885","4885","worse","15.5","21.1","1.0","59","59","better","1.7","1.1","19.5","51","26100","lower","68.2","81.8","59.2","66.4","59.2","NaN","3.40","626","874.3","113","worse","711.8","579.0","6.2","2.6","10","3","3.7","none","4.4","10.5","none","13.70","11.7","9","13.7","172.3","451","worse","122.6","113.5","35.1","8","worse","22.1","20.1","8.4","31","364446","No Sig Diff","5.8","20","364446","worse","23.1","269","No Sig Diff","34.0","403","1187","No Sig Diff","138.3","37","worse","55.8","45.9","302.6","47","15534","No Sig Diff","95.0","1268","1335","1268.0","88.7","1184","1335","worse","80.3","1110","1110.0","89.5","665","better","86.8","85.6","665","1988.8","299.0","29.6","40.2","++","none","74","26.1","30.7","1.9","24","none","1.3","1.2","7.5","99","99","none","7.4","6.6","NaN","NaN","99","none","7.4","6.6","22.5","301","301","better","13.2","11.4","22.1","o","13.2","11.4","78.0","1045","1045","78.1","better","74.0","43.1","570","50.9","47.2","better","26.6","34","better","34","51.5","54.0","294.6","1932","1932","better","better","483.9","483.9","370.4","370.4","1932","better","483.9","370.4","294.6","294.6","NaN","NaN","1.1","2416","2219","worse","49.2","1242","2522","worse","9.7","181","1885","No Sig Diff",135.646091312979,287,21158,152.17495334258501,318,20897,165.75916734929899,344,20753,148.898153662895,225,15111,158.972994545696,239,15034,151.87690675155901,229,15078,147.80000000000001,41,27731,90.314656262418296,25,27681,220.88506359966499,58,26258,149,39,26168,254.27646786870099,66,25956,601.45279085378297,137,22557,122.4,34,27767,2137.3000000000002,55,2568,1259.8,81,6422,null,1232,253,20.5,24.5,33.200000000000003,26.9,3.6,6.3,3.6,11.9,40.299999999999997,11.9,20.9,5.5,27.3,1155,411,35.6,19.700000000000003,35.300000000000004,21.900000000000002,"x",3.4000000000000004,2.4000000000000004,5.6000000000000005,43.800000000000004,12.9,8.8000000000000007,3.6,17.5]
[925,"Lincolnshire",39610,560,1900.0000000000002,2150,730,2120,39769.999999999993,540,1770,2130,770,2040,38960,480.00000000000006,1680.0000000000002,2080,750,1960,null,724.5,7550,6.2,718.8,8008,6.9,714.8,7938,6.1,703,7762,6.3,null,698748,121495,2056,2887,116552,118257,2518,720,70955,1439,2451,67065,67016,3203,736,null,"17.3","21380","21380","better","19.3","21.1","1.3","390","390","better","1.7","1.6","17.1","238","139300","lower","94.1","94.1","70.4","64.7","70.4","NaN","3.30","3518","753.6","502","none","711.8","834.0","6.4","3.8","89","30","4.5","none","4.4","12.5","none","13.70","13.4","50","13.7","141.0","1964","worse","122.6","111.8","21.4","26","none","22.1","21.9","9.6","195","1942556","worse","3.3","66","1942556","No Sig Diff","25.1","1698","worse","35.0","2301","6565","No Sig Diff","46.6","65","better","55.8","48.1","41.8","37","88424","better","95.7","7634","7977","7627.0","92.7","7397","7977","better","83.7","6442","6445.0","92.3","3891","better","86.8","90.7","3900","1923.2","1646.0","32.3","50.1","++","none","416","31.3","30.7","1.7","133","worse","1.3","1.6","6.3","500","500","better","7.4","7.5","NaN","NaN","500","better","7.4","7.5","18.1","1408","1408","none","13.2","15.7","18.3","o","13.2","15.7","74.7","5819","5819","72.8","none","74.0","39.7","3228","43.7","47.2","none","67.7","528","worse","528","51.5","44.1","398.5","15065","15065","better","better","483.9","483.9","409.0","409.0","15065","better","483.9","409.0","398.5","398.5","NaN","NaN","1.5","18089","12250","worse","39.3","5389","13720","worse","8.6","934","10537","better",122.187400964823,1388,113596,125.4711805617,1418,113014,112.549240292628,1280,113728,160.18870581608201,1365,85212,157.734235339479,1350,85587,151.29758694357901,1296,85659,119.5,177,148063,150.829562594268,224,148512,68.186875103177499,95,139323,77.5,108,139286,82.307472087031201,115,139720,356.68497094274397,450,124606,91.1,135,148108,2387,369,15340,1157.5,445,37665,null,3383,389,11.5,28.8,23.1,39.1,6.4,11.8,3.9,15.4,56,42.7,25.4,6.4,5.9,3724,338,9.1,32,23.700000000000003,37.9,6.2,12.100000000000001,3.3000000000000003,16.3,58.900000000000006,43.2,26.3,9.5,6.2]
[926,"Norfolk",42989.999999999993,630.00000000000011,2309.9999999999995,2650,850,2330,43050,610.00000000000011,2210,2590,860,2250,41980,590.00000000000011,2080,2490,830,2110.0000000000005,null,870.1,9187,7,865.3,9662,6.7,859.4,9328,6.2,862.3,9259,6.6,null,841042,144161,2329,3748,138084,139983,3272,906,86948,1792,3187,81969,81965,3952,1031,null,"18.6","26245","26245","better","17.1","21.1","1.4","504","504","better","1.7","1.7","32.2","531","165100","lower","56.0","65.2","57.3","61.6","57.3","NaN","4.00","4642","731.4","554","none","711.8","715.0","7.1","4.3","118","39","3.9","none","4.4","10.8","none","13.70","11.9","51","13.7","124.2","2051","none","122.6","113.6","16.7","24","better","22.1","20.0","8.6","212","2305635","worse","2.2","54","2305635","No Sig Diff","23.6","1906","No Sig Diff","34.1","2592","7607","No Sig Diff","32.9","54","better","55.8","30.9","37.8","41","108483","better","96.5","8741","9060","8806.0","92.1","8342","9060","No Sig Diff","84.7","7554","7564.0","78.4","3545","none","86.8","88.2","3050","1657.5","1699.0","28.4","37.0","++","none","424","26.6","30.7","1.7","153","worse","1.3","1.3","6.5","614","614","better","7.4","6.9","NaN","NaN","614","better","7.4","6.9","15.9","1409","1409","better","13.2","13.2","16.1","o","13.2","13.2","76.0","6742","6742","75.3","better","74.0","44.5","4032","47.0","47.2","better","54.2","488","none","488","51.5","47.0","307.3","13847","13847","better","better","483.9","483.9","357.1","357.1","13847","better","483.9","357.1","307.3","307.3","NaN","NaN","1.3","16301","12591","worse","46.0","6836","14854","worse","10.6","1191","10684","No Sig Diff",108.19901474899901,1454,134382,117.168925344746,1577,134592,107.731305449937,1462,135708,122.48520710059201,1242,101400,121.364669612979,1244,102501,120.448999511957,1234,102450,154.6,271,175310,195.685836315888,345,176303,117.063723116714,191,163159,98.1,162,165107,98.301139207680805,163,165817,368.08696434756399,552,147201,120.5,211,175119,2432.9,456,18723,1244,582,46580,null,"..","..","..","..","..","..","..","..","..","..","..","..","..","..","..",7361,1746,23.700000000000003,7.9,13.200000000000001,10.8,4.7,3,2.9000000000000004,3,17.900000000000002,6.2,5.6000000000000005,4,12.100000000000001]
[928,"Northamptonshire",31090.000000000004,600.00000000000011,1939.9999999999998,2040,660,1819.9999999999998,31020.000000000004,560,1829.9999999999998,1960,670,1770.0000000000002,30150,530,1779.9999999999998,1849.9999999999998,650,1589.9999999999998,null,706.6,8995,6.5,700.6,9288,7.1,694,9229,6.8,687.3,9258,7.2,null,681850,137228,1865,3049,132314,133810,2672,746,70926,1373,2213,67340,67339,2882,705,null,"16.8","22990","22990","better","19.3","21.1","3.2","904","904","worse","1.7","1.6","30.4","475","156000","lower","85.6","79.8","64.1","64.7","64.1","NaN","3.20","3590","703.1","478","none","711.8","834.0","7.8","4.4","120","40","4.5","none","4.4","11.3","none","13.70","13.4","49","13.7","123.4","1920","none","122.6","111.8","21.7","30","none","22.1","21.9","8.9","182","2066556","worse","2.2","45","2066556","No Sig Diff","22.3","1734","No Sig Diff","32.6","2255","6917","better","42.6","66","better","55.8","48.1","278.3","302","108524","No Sig Diff","97.8","8842","9044","8842.0","94.8","8575","9044","better","88.5","7562","7562.0","92.8","3760","better","86.8","90.7","3760","1927.3","1588.0","33.3","45.9","++","none","421","31.3","30.7","1.7","141","worse","1.3","1.6","7.2","665","665","none","7.4","7.5","NaN","NaN","665","none","7.4","7.5","16.0","1466","1466","better","13.2","15.7","14.9","o","13.2","15.7","75.8","6960","6960","72.8","better","74.0","44.8","4111","43.7","47.2","better","55.8","476","none","476","51.5","44.1","287.2","13001","13001","better","better","483.9","483.9","409.0","409.0","13001","better","483.9","409.0","287.2","287.2","NaN","NaN","1.2","17170","13826","worse","37.6","6071","16127","worse","11.7","1459","12334","worse",104.440270297655,1340,128303,111.895985317026,1451,129674,90.283683635038301,1189,131696,160.48692778695701,1321,82312,158.99215962327401,1310,82394,146.79211753106901,1206,82157,162.1,266,164063,184.27924007323099,307,166595,79.691599987041997,123,154345,286.60000000000002,446,155604,260.41336661893502,411,157826,419.25544313870802,518,123670,114.1,188,164734,2376.1,438,18449,1359.1,627,46237,null,5991,432,7.2,43.8,15.3,23.1,5.0999999999999996,1.6,2.1,5.8,46.5,19.2,6.5,3.7,17.399999999999999,4766,376,7.9,42.6,17.8,19.900000000000002,5.1000000000000005,2.1,1.9000000000000001,8.8000000000000007,39.900000000000006,15.4,4.3,3.2,17.8]
[929,"Northumberland",17990,210,750,890,340,860,18270,210,720,880,350,820,17960,210,700,870,330,770,null,315.8,2796,6.4,316.10000000000002,3151,5.8,316.3,2975,6.1,312,2989,6.3,null,310591,53694,870,1289,51535,52321,1077,296,30108,717,1032,28359,28536,1240,332,null,"18.4","9825","9825","better","24.8","21.1","1.2","159","159","better","1.7","1.1","33.4","205","61300","No Sig Diff","94.7","94.7","67.6","60.6","67.6","NaN","3.20","1517","613.2","174","better","711.8","869.0","5.9","4.0","36","12","3.7","none","4.4","14.9","none","13.70","13.3","27","13.7","142.0","873","worse","122.6","177.5","26.9","14","none","22.1","29.0","7.8","68","857699","No Sig Diff","4.6","40","857699","worse","23.3","733","No Sig Diff","33.9","1016","2994","No Sig Diff","75.6","46","worse","55.8","96.5","474.5","182","38353","worse","98.1","3127","3187","3127.0","94.2","3001","3187","better","91.8","2957","2957.0","92.7","1617","better","86.8","90.5","1617","1889.6","659.0","32.5","41.8","++","none","179","38.4","30.7","2.5","73","worse","1.3","2.3","6.3","188","188","better","7.4","7.6","NaN","NaN","188","better","7.4","7.6","19.5","580","580","worse","13.2","20.7","20.5","o","13.2","20.7","63.6","1890","1890","58.9","worse","74.0","36.5","1119","30.2","47.2","worse","37.1","110","better","110","51.5","48.1","511.4","8006","8006","worse","worse","483.9","483.9","577.0","577.0","8006","worse","483.9","577.0","511.4","511.4","NaN","NaN","0.9","4880","5741","worse","47.7","2962","6216","worse","10.8","490","4510","No Sig Diff",125.601549551708,629,50079,136.39641083159799,681,49928,101.88087774294701,507,49764,215.490140040011,754,34990,231.97132616487499,809,34875,187.07433281693,640,34211,150.4,98,65146,196.31484573053899,127,64692,71.547420965058194,43,60100,63.4,39,61497,60.6428138265616,37,61013,420.00618247498397,212,51457,61.5,40,65055,2241,139,6243,1139.9000000000001,178,15938,null,3153,417,13.2,41,5.8,5.3,0,0,4.0999999999999996,1.7,38.4,7,"x",5.5,9.6,3681,424,11.5,40.1,6.4,5.4,0,0,3.5,1.7000000000000002,40.1,6.6000000000000005,"x",5.9,9.2000000000000011]
[931,"Oxfordshire",20169.999999999996,410.00000000000006,1309.9999999999998,1220,430.00000000000006,1260,19980,370,1220,1190,430.00000000000006,1260,19349.999999999996,400,1069.9999999999998,1170,410.00000000000006,1220,null,666.1,7867,6.4,660.8,8217,6.3,654.79999999999995,8502,6.9,648.70000000000005,8439,6,null,624099,119971,1278,2138,116555,117519,1956,496,65174,1023,1902,62249,62213,2385,576,null,"12.7","14890","14890","better","15.5","21.1","0.9","226","226","better","1.7","1.1","26.4","364","138000","lower","98.1","84.9","67.8","66.4","67.8","NaN","2.20","2298","462.1","285","better","711.8","579.0","7.0","4.2","105","35","3.7","none","4.4","11.5","none","13.70","11.7","45","13.7","107.6","1484","better","122.6","113.5","17.0","21","better","22.1","20.1","6.3","140","2007194","No Sig Diff","2.7","62","2007194","No Sig Diff","19.1","1307","better","29.4","1615","5501","better","38.5","53","better","55.8","45.9","72.1","69","95755","better","97.4","8254","8472","8270.0","94.6","8015","8472","better","91.1","7473","7479.0","91.0","3319","better","86.8","85.6","3189","1326.2","1186.0","22.4","31.4","++","better","254","26.1","30.7","0.8","51","better","1.3","1.2","7.2","610","610","none","7.4","6.6","NaN","NaN","610","none","7.4","6.6","8.1","685","685","better","13.2","11.4","7.9","o","13.2","11.4","78.9","6684","6684","78.1","better","74.0","59.5","5185","50.9","47.2","better","53.1","338","none","338","51.5","54.0","274.7","11082","11082","better","better","483.9","483.9","370.4","370.4","11082","better","483.9","370.4","274.7","274.7","NaN","NaN","1.6","13801","8776","worse","33.5","3150","9411","worse","8.3","535","6427","better",109.498704000846,1242,113426,105.48339290384401,1210,114710,88.464351792091605,1028,116205,181.61384580804699,1616,88980,154.759641726957,1384,89429,140.97204223526899,1251,88741,102.9,151,146773,94.184927701210199,139,147582,54.152406532946301,75,138498,39.1,54,137961,43.765560091548899,61,139379,346.21667424759102,449,125363,45.8,67,146392,2012.8,348,16865,1013.6,434,41150,null,3471,558,16.100000000000001,30.8,29.9,43.5,16.100000000000001,15.9,7.2,26.7,67.599999999999994,31.4,32.6,13.8,12.9,3504,526,15,30.8,29.700000000000003,40.900000000000006,16.2,14.100000000000001,7,24.3,65.400000000000006,29.1,29.5,13.9,16.900000000000002]
[933,"Somerset",24809.999999999996,330,1060,1170.0000000000002,459.99999999999994,1400.0000000000002,24729.999999999996,310.00000000000006,1020,1150.0000000000002,449.99999999999994,1360,24190,310.00000000000006,900.00000000000011,1170.0000000000002,430.00000000000006,1290.0000000000002,null,538.1,5538,6.2,535,5707,6.2,531.6,5764,6.3,525.20000000000005,5671,6,null,517124,92613,1148,2086,89379,90346,1772,495,50827,1061,1680,48086,48080,2203,544,null,"14.9","13770","13770","better","16.6","21.1","1.9","434","434","worse","1.7","1.1","25.9","282","108800","lower","88.7","84.9","62.6","65.1","62.6","NaN","1.70","1260","866.6","470","worse","711.8","688.0","7.5","3.6","61","20","3.6","none","4.4","12.4","none","13.70","12.9","38","13.7","126.7","1380","none","122.6","119.5","18.5","18","none","22.1","14.8","7.7","111","1472761","No Sig Diff","2.7","37","1472761","No Sig Diff","23.4","1172","No Sig Diff","31.9","1426","4466","better","68.1","75","worse","55.8","62.0","217.9","148","67910","better","96.2","5632","5853","5632.0","92.3","5400","5853","No Sig Diff","86.2","4822","4822.0","91.4","2619","better","86.8","83.8","2619","1646.3","1016.0","27.8","38.8","++","none","284","27.3","30.7","1.7","95","worse","1.3","1.3","6.7","384","384","none","7.4","6.2","NaN","NaN","384","none","7.4","6.2","17.9","971","971","better","13.2","13.1","18.9","o","13.2","13.1","80.6","4360","4360","78.0","better","74.0","51.7","2906","49.7","47.2","better","64.4","350","worse","350","51.5","56.0","531.1","15010","15010","worse","worse","483.9","483.9","413.7","413.7","15010","worse","483.9","413.7","531.1","531.1","NaN","NaN","1.4","12081","8505","worse","40.7","3937","9675","worse","10.4","811","7528","No Sig Diff",115.965233302836,1014,87440,124.960021930827,1094,87548,114.198619152155,1004,87917,162.33871754038199,999,61538,162.03778721197801,1000,61714,156.358010467757,950,60758,168.1,194,115374,193.71967724918099,224,115631,119.799607928556,132,110184,95.4,104,108958,101.28074100673101,110,108609,497.71959778707998,453,90928,82.3,95,115483,2384.6,275,11565,1307.5999999999999,377,28853,null,3769,698,18.5,11.9,48.1,34.4,3.9,8.1999999999999993,4.9000000000000004,13,51.1,27.4,24.9,8.9,0,4037,711,17.600000000000001,12.700000000000001,49.5,32.6,3.7,7.3000000000000007,4.1000000000000005,12.100000000000001,49.1,26,22.8,7.3000000000000007,0]
[935,"Suffolk",32080,550,1819.9999999999998,1970,720.00000000000011,1930.0000000000002,32090.000000000004,560,1680.0000000000002,2000,700.00000000000011,1910.0000000000002,31190.000000000004,530,1660.0000000000002,1980,670,1730,null,735.9,7792,5.9,732.3,8316,6.3,730.1,8403,6.5,719.5,8120,6.4,null,714113,131955,1919,3232,126804,128557,2672,726,70657,1480,2515,66662,66738,3122,797,null,"16.0","19955","19955","better","17.1","21.1","1.2","362","362","better","1.7","1.7","32.8","496","151200","lower","77.8","58.1","61.0","61.6","61.0","NaN","2.70","2896","713.4","496","none","711.8","715.0","6.4","3.8","94","31","3.9","none","4.4","11.8","none","13.70","11.9","51","13.7","107.4","1625","better","122.6","113.6","19.9","26","none","22.1","20.0","8.7","178","2038252","worse","2.9","58","2038252","No Sig Diff","21.4","1550","better","29.5","1872","6343","better","36.4","55","better","55.8","30.9","109.5","109","99548","better","96.8","7833","8089","7768.0","93.8","7584","8089","better","87.1","7015","7005.0","93.0","3679","better","86.8","88.2","3124","1382.9","1160.0","26.0","37.5","++","better","338","26.6","30.7","1.2","93","none","1.3","1.3","6.7","567","567","better","7.4","6.9","NaN","NaN","567","better","7.4","6.9","14.6","1158","1158","better","13.2","13.2","16.0","o","13.2","13.2","76.9","6094","6094","75.3","better","74.0","47.0","3849","47.0","47.2","better","58.8","449","worse","449","51.5","47.0","315.9","12827","12827","better","better","483.9","483.9","357.1","357.1","12827","better","483.9","357.1","315.9","315.9","NaN","NaN","1.3","15698","11633","worse","43.9","5188","11831","worse","10.0","1019","9763","No Sig Diff",92.189044247500902,1138,123442,95.992011403077896,1192,124177,80.693822055238698,1003,124297,124.7902181731,1041,83420,122.438274180665,1027,83879,110.573352181518,923,83474,147.80000000000001,236,159651,247.98860626655301,397,160088,101.912355374378,153,150129,58.8,89,151256,70.7138797467518,107,151314,321.55976460638402,399,124291,103.7,166,160044,2651.9,453,16989,1412.5,602,42365,null,3661,739,20.2,26.5,36.5,34.4,1.9,10.7,5.8,20,48.6,31.3,30.9,12.2,19.2,3489,709,20.3,25,37.1,34.300000000000004,1.7000000000000002,11.4,6.3000000000000007,19.900000000000002,48.900000000000006,31.6,31.200000000000003,11.4,18.5]
[936,"Surrey",32290,750.00000000000011,2560.0000000000005,2570.0000000000005,880,2270,32159.999999999996,720.00000000000011,2449.9999999999995,2500,870,2190,31150,690.00000000000011,2260.0000000000005,2410,810,2009.9999999999998,null,1152.0999999999999,13569,6.8,1143.5,14237,6,1135.4000000000001,14097,5.9,1127.3,14018,6.4,null,1105800,216289,2466,3864,209959,211997,3370,922,105599,1628,3078,100893,100917,3767,915,null,"10.6","21980","21980","better","15.5","21.1","0.5","245","245","better","1.7","1.1","32.1","794","247000","lower","76.0","92.3","70.4","66.4","70.4","NaN","3.00","5519","266.9","292","better","711.8","579.0","5.8","2.9","123","41","3.7","better","4.4","11.3","none","13.70","11.7","79","13.7","97.1","2395","better","122.6","113.5","18.3","40","better","22.1","20.1","5.3","165","3194828","better","2.2","67","3194828","No Sig Diff","18.5","2101","better","28.1","2526","8976","better","40.8","99","better","55.8","45.9","263.7","445","168722","better","91.2","13724","15048","13711.0","83.6","12573","15048","worse","75.3","11525","11500.0","84.9","5812","worse","86.8","85.6","5776","1123.0","1460.0","22.5","27.6","+","better","460","26.1","30.7","0.7","98","better","1.3","1.2","6.2","873","873","better","7.4","6.6","NaN","NaN","873","better","7.4","6.6","6.9","941","941","better","13.2","11.4","7.5","o","13.2","11.4","82.5","11278","11278","78.1","better","74.0","57.1","7850","50.9","47.2","better","46.8","633","better","633","51.5","54.0","489.5","34690","34690","worse","worse","483.9","483.9","370.4","370.4","34690","worse","483.9","370.4","489.5","489.5","NaN","NaN","1.6","25543","15568","worse","37.8","6538","17309","worse","8.8","1209","13516","better",106.934766347782,2173,203208,105.673620588809,2168,205160,97.028152574368207,2020,208187,122.09256793797501,1559,127690,117.992738908375,1534,130008,115.162706591782,1503,130511,160.30000000000001,417,260173,173.476963168341,458,264012,67.049185657163306,165,246088,52.3,129,246636,66.847863069958095,167,249821,315.30448545850902,620,197087,49.8,130,260886,1413.4,398,28470,854.3,605,71698,null,5116,771,15.1,38.799999999999997,36.299999999999997,66.3,19.600000000000001,23.5,10.6,38.799999999999997,68.7,46.3,65.599999999999994,14.7,12.5,4583,843,18.400000000000002,40.900000000000006,33.300000000000004,65.2,18,22.3,9.5,36.800000000000004,69.8,45.2,67,15.700000000000001,14.200000000000001]
[937,"Warwickshire",24050,429.99999999999994,1330,1330,459.99999999999994,1260,24060.000000000004,410.00000000000006,1270,1280,410.00000000000006,1260,23520.000000000004,380,1210,1210,390,1140,null,548.70000000000005,6090,7.4,548,6305,6.6,546.6,6273,7.3,536,6313,7,null,537501,98048,1331,2014,94703,95842,1751,455,55861,935,1684,53242,53131,2208,522,null,"14.6","14050","14050","better","23.8","21.1","1.6","353","353","none","1.7","2.9","47.8","534","111800","higher","76.7","85.6","66.7","63.2","66.7","NaN","2.90","2415","513.9","263","better","711.8","613.0","6.7","4.9","91","30","5.9","none","4.4","9.9","none","13.70","14.0","31","13.7","114.0","1276","better","122.6","126.1","18.7","18","none","22.1","22.5","7.0","112","1553989","No Sig Diff","1.9","31","1553989","No Sig Diff","19.8","1161","better","31.9","1631","5118","better","58.1","65","none","55.8","58.2","29.7","22","74033","better","98.2","5466","5567","5466.0","96.1","5351","5567","better","93.7","5092","5092.0","89.3","2717","better","86.8","87.8","2717","1484.9","972.0","30.9","41.4","++","none","299","34.9","30.7","1.4","84","none","1.3","1.6","7.6","478","478","none","7.4","8.3","NaN","NaN","478","none","7.4","8.3","19.6","1155","1155","worse","13.2","15.4","16.4","-","13.2","15.4","72.5","4263","4263","67.4","worse","74.0","45.1","2694","40.8","47.2","worse","44.9","261","better","261","51.5","52.7","475.3","14644","14644","better","better","483.9","483.9","471.4","471.4","14644","better","483.9","471.4","475.3","475.3","NaN","NaN","1.7","12868","7723","worse","33.3","2927","8777","worse","9.2","641","6849","better",105.173393973849,962,91468,114.41647597254,1050,91770,108.065796197041,994,91981,138.520438924394,919,66344,147.730571214691,967,65457,136.416467853429,892,65388,144.9,171,118011,188.428942009514,223,118347,80.920697716238095,90,111220,60.8,68,111913,66.147025171624705,74,111872,420.50982630417599,404,95717,56.6,67,118303,1585.6,200,12488,894.8,282,31364,null,3461,303,8.8000000000000007,56.1,31.7,41.3,9.6,15.8,5.6,20.8,54.5,28.7,29.7,11.2,6.6,3788,251,6.6000000000000005,59.800000000000004,31.5,43,10,16.3,4.4000000000000004,21.5,54.6,28.700000000000003,29.900000000000002,11.600000000000001,6.4]
[938,"West Sussex",30529.999999999996,530,1650.0000000000002,1770,649.99999999999989,1940.0000000000002,30490,530,1590,1820,610,1970,29809.999999999996,480.00000000000006,1590,1790,630,1880.0000000000002,null,821.4,8835,6.5,815.1,9207,6.6,808.9,9198,6.3,799.7,9024,7.1,null,791540,143264,1915,2961,138388,139915,2610,739,74516,1498,2509,70509,70544,3254,718,null,"13.8","19345","19345","better","15.5","21.1","1.4","462","462","better","1.7","1.1","24.3","399","164400","lower","84.7","93.9","62.0","66.4","62.0","NaN","2.70","3191","670.5","515","none","711.8","579.0","5.9","3.6","99","33","3.7","none","4.4","10.3","better","13.70","11.7","48","13.7","113.1","1857","better","122.6","113.5","18.2","26","none","22.1","20.1","7.7","165","2179985","worse","2.8","59","2179985","No Sig Diff","20.5","1409","better","29.8","2067","6928","better","50.8","84","none","55.8","45.9","64.9","71","109469","better","96.6","9115","9438","9115.0","91.8","8662","9438","No Sig Diff","87.2","7990","7990.0","84.8","3857","worse","86.8","85.6","3857","1507.3","1318.0","24.6","37.0","++","better","338","26.1","30.7","1.0","90","better","1.3","1.2","6.6","609","609","better","7.4","6.6","NaN","NaN","609","better","7.4","6.6","9.7","843","843","better","13.2","11.4","NaN","o","13.2","11.4","82.5","7188","7188","78.1","better","74.0","55.0","5005","50.9","47.2","better","59.3","516","worse","516","51.5","54.0","349.0","15798","15798","better","better","483.9","483.9","370.4","370.4","15798","better","483.9","370.4","349.0","349.0","NaN","NaN","1.4","19815","14064","worse","43.0","6045","14047","worse","10.6","1184","11022","No Sig Diff",116.483532789744,1570,134783,121.704900631008,1651,135656,107.55346767214699,1479,137513,168.63715516451299,1472,87288,164.907425408552,1442,87443,161.04894782888999,1399,86868,166.8,289,173265,219.24204891660301,385,175605,91.4237277873642,151,165165,85.9,141,164136,69.289213175795794,115,165971,479.82247108860003,616,131753,58.1,101,173812,1998.2,368,18588,1124.8,520,46670,null,3872,626,16.2,40.4,24.1,25.9,12.8,8.8000000000000007,4.5,18.2,60.1,25.9,21.1,8.9,3,4979,910,18.3,29.6,12.4,16.3,6.7,8.4,3.2,11,39.5,13.4,10.3,5.4,1.8]
[970,"ENGLAND TOTAL",2677449.9999999995,43720,134260,135360,48130,138360,2684549.9999999995,42020.000000000007,126140,134410,46530,137710,2634120.0000000005,40140,119589.99999999999,131859.99999999997,45110,131709.99999999997,null,53865.8,664517,7,53493.7,694241,7,53107.199999999997,688120,7,52234,687007,6.9,null,52059931,9982575,153101,219037,9610437,9698359,220072,64144,5901807,116091,189670,5596046,5584937,251369,65501,null,null,null,null,null,null,null,null,null,null,null,null,null,null,null,null,null,null,null,null,null,null,null,null,null,null,null,null,null,null,null,null,null,null,null,null,null,null,null,null,null,null,null,null,null,null,null,null,null,null,null,null,null,null,null,null,null,null,null,null,null,null,null,null,null,null,null,null,null,null,null,null,null,null,null,null,null,null,null,null,null,null,null,null,null,null,null,null,null,null,null,null,null,null,null,null,null,null,null,null,null,null,null,null,null,null,null,null,null,null,null,null,null,null,null,null,null,null,null,null,null,null,null,null,null,null,null,null,null,null,null,null,null,null,null,null,null,null,null,null,null,null,null,null,null,null,null,null,null,null,null,null,null,null,null,null,null,null,null,null,null,null,null,null,null,null,null,null,null,null,null,null,null,null,null,null,114.501990182928,107404,9324084,118.218141945723,110963,9386292,103.82918622821001,98480,9484809,154.164022203142,105736,6858669,144.71721895328599,100152,6920531,130.65412326862,90254,6907857,193.9,196.37,23287,221.436630187763,26781,12094205,109.403316448731,12084,11045369,91.3,10347,11336960,87.627841667607697,10010,11423310,346.27279137021702,34894,9915728,79.3,9527,12012445,2066.1999999999998,28037,1348960,1100.7,37140,3328746,null,378600,52300,13.8,28.8,23.4,24,5.9,5.8,5.8,10,47.2,23.2,15.4,9,20.100000000000001,397600,52600,13.200000000000001,29,21.900000000000002,23,5.2,5.3000000000000007,5.4,8.9,44.300000000000004,21.1,13.9,8.4,20.700000000000003]
[]
[971,"NORTH EAST",{"$f":"SUM(C104,C103,C73,C83,C84,C74,C75,C154,C85,C76,C86,C77)","v":179260},{"$f":"SUM(D104,D103,D73,D83,D84,D74,D75,D154,D85,D76,D86,D77)","v":2420},7090,7500,2650,7830,181680,2350,6560,7500,2650,7830,178650,2200,6290,7330,2570,7510,null,2610.5,28961,7.6,2602.3000000000002,30291,7.3,2596.4,30527,7.2,2606.6,30826,7.3,null,{"$f":"SUM(AI104,AI103,AI73,AI83,AI84,AI74,AI75,AI154,AI85,AI76,AI86,AI77)","v":2550818},{"$f":"SUM(AJ104,AJ103,AJ73,AJ83,AJ84,AJ74,AJ75,AJ154,AJ85,AJ76,AJ86,AJ77)","v":461735},8458,11265,442012,448032,10338,3365,304735,6961,10082,287692,288120,12873,3742,0,0,0,0,0,0,0,0,0,0,0,0,0,0,0,0,0,0,{"$f":"SUM(BP104,BP103,BP73,BP83,BP84,BP74,BP75,BP154,BP85,BP76,BP86,BP77)","v":0},0,0,0,0,0,0,0,0,0,0,0,0,0,0,0,0,0,0,0,0,0,0,0,0,0,0,0,0,0,0,0,0,0,0,0,0,0,0,0,0,0,0,0,0,0,0,0,0,0,0,0,0,0,0,0,0,0,0,0,0,0,0,0,{"$f":"SUM(EB104,EB103,EB73,EB83,EB84,EB74,EB75,EB154,EB85,EB76,EB86,EB77)","v":0},0,0,0,0,0,0,0,0,0,0,0,0,0,0,0,0,0,0,0,0,0,0,0,0,0,0,0,0,0,0,0,0,0,0,0,0,0,0,0,0,0,0,0,0,0,0,0,0,0,0,0,0,0,0,0,0,0,0,0,0,0,0,0,{"$f":"SUM(GN104,GN103,GN73,GN83,GN84,GN74,GN75,GN154,GN85,GN76,GN86,GN77)","v":0},0,0,0,0,0,0,0,0,0,0,0,0,0,0,0,0,0,0,0,0,0,0,0,0,0,0,null,0,0,{"$f":"(HS163/HT163)*10000","v":157.9759763244937},{"$f":"SUM(HS104,HS103,HS73,HS83,HS84,HS74,HS75,HS154,HS85,HS76,HS86,HS77)","v":6806},430825,{"$f":"(HV163/HW163)*10000","v":172.92589784433886},7458,431283,{"$f":"(HY163/HZ163)*10000","v":146.82081192534159},6341,431887,{"$f":"(IB163/IC163)*10000","v":218.85282297086516},7689,351332,{"$f":"(IE163/IF163)*10000","v":207.29887937317784},7281,351232,{"$f":"(IH163/II163)*10000","v":179.98199040248031},6316,350924,{"$f":"(IK163/IL163)*100000","v":221.54888156135817},1243,561050,{"$f":"(IN163/IO163)*100000","v":262.03628360140374},1462,557938,{"$f":"(IQ163/IR163)*100000","v":91.567723718339209},478,522018,{"$f":"(IT163/IU163)*100000","v":86.875192475125559},457,526042,{"$f":"(IW163/IX163)*100000","v":81.90273383706689},430,525013,{"$f":"(IZ163/JA163)*100000","v":493.99378583136928},{"$f":"SUM(IZ104,IZ103,IZ73,IZ83,IZ84,IZ74,IZ75,IZ154,IZ85,IZ76,IZ86,IZ77)","v":2423},490492,{"$f":"(JC163/JD163)*100000","v":91.73983797993526},513,559190,{"$f":"(JF163/JG163)*100000","v":2966.6721392218024},1807,60910,{"$f":"(JI163/JJ163)*100000","v":1471.401998759942},2207,149993,null,23700,3400,14.3,30,14.9,15.8,3.9000000000000004,2.8000000000000003,5.5,6.1000000000000005,46,16.3,8.3000000000000007,8.3000000000000007,19.700000000000003,23900,3200,13.5,30.1,17.400000000000002,20.3,5,3.1,5.5,8.4,48.5,18.600000000000001,10.600000000000001,9,19.200000000000003]
[972,"NORTH WEST",{"$f":"SUM(C138,C139,C54,C55,C144,C145,C147,C125,C49,C137,C50,C56,C57,C58,C59,C52,C51,C60,C61,C62,C126,C63,C53)","v":475280},{"$f":"SUM(D138,D139,D54,D55,D144,D145,D147,D125,D49,D137,D50,D56,D57,D58,D59,D52,D51,D60,D61,D62,D126,D63,D53)","v":6260},18840,18840,6760,20150,481810,5980,17600,18730,6540,20670,476560,5620,16670,18280,6390,19900,null,7103.3,86372,6.9,7084.3,89211,6.8,7056,88752,7,6935.7,89199,6.8,null,6927820,{"$f":"SUM(AJ138,AJ139,AJ54,AJ55,AJ144,AJ145,AJ147,AJ125,AJ49,AJ137,AJ50,AJ56,AJ57,AJ58,AJ59,AJ52,AJ51,AJ60,AJ61,AJ62,AJ126,AJ63,AJ53)","v":1321732},22305,30135,1269292,1283869,29000,8863,807593,18606,27054,761933,763018,34607,9968,0,0,0,0,0,0,0,0,0,0,0,0,0,0,0,0,0,0,{"$f":"SUM(BP138,BP139,BP54,BP55,BP144,BP145,BP147,BP125,BP49,BP137,BP50,BP56,BP57,BP58,BP59,BP52,BP51,BP60,BP61,BP62,BP126,BP63,BP53)","v":0},0,0,0,0,0,0,0,0,0,0,0,0,0,0,0,0,0,0,0,0,0,0,0,0,0,0,0,0,0,0,0,0,0,0,0,0,0,0,0,0,0,0,0,0,0,0,0,0,0,0,0,0,0,0,0,0,0,0,0,0,0,0,0,{"$f":"SUM(EB138,EB139,EB54,EB55,EB144,EB145,EB147,EB125,EB49,EB137,EB50,EB56,EB57,EB58,EB59,EB52,EB51,EB60,EB61,EB62,EB126,EB63,EB53)","v":0},0,0,0,0,0,0,0,0,0,0,0,0,0,0,0,0,0,0,0,0,0,0,0,0,0,0,0,0,0,0,0,0,0,0,0,0,0,0,0,0,0,0,0,0,0,0,0,0,0,0,0,0,0,0,0,0,0,0,0,0,0,0,0,{"$f":"SUM(GN138,GN139,GN54,GN55,GN144,GN145,GN147,GN125,GN49,GN137,GN50,GN56,GN57,GN58,GN59,GN52,GN51,GN60,GN61,GN62,GN126,GN63,GN53)","v":0},0,0,0,0,0,0,0,0,0,0,0,0,0,0,0,0,0,0,0,0,0,0,0,0,0,0,null,0,0,{"$f":"(HS164/HT164)*10000","v":152.91164016063217},18875,1234373,{"$f":"(HV164/HW164)*10000","v":146.91284976170613},18175,1237128,{"$f":"(HY164/HZ164)*10000","v":133.88084733288019},16644,1243195,{"$f":"(IB164/IC164)*10000","v":188.16542425837565},17730,942256,{"$f":"(IE164/IF164)*10000","v":170.12763548349133},16047,943233,{"$f":"(IH164/II164)*10000","v":154.88156147114125},14588,941881,{"$f":"(IK164/IL164)*100000","v":300.13592953733797},4787,1594944,{"$f":"(IN164/IO164)*100000","v":335.20778870687656},5347,1595130,{"$f":"(IQ164/IR164)*100000","v":129.81314096933929},1914,1474427,{"$f":"(IT164/IU164)*100000","v":99.731098859616822},1498,1502039,{"$f":"(IW164/IX164)*100000","v":100.48220826931357},1512,1504744,{"$f":"(IZ164/JA164)*100000","v":440.61206974332055},{"$f":"SUM(IZ138,IZ139,IZ54,IZ55,IZ144,IZ145,IZ147,IZ125,IZ49,IZ137,IZ50,IZ56,IZ57,IZ58,IZ59,IZ52,IZ51,IZ60,IZ61,IZ62,IZ126,IZ63,IZ53)","v":5909},1341089,{"$f":"(JC164/JD164)*100000","v":89.967127154376811},1433,1592804,{"$f":"(JF164/JG164)*100000","v":2757.5665634320458},4817,174683,{"$f":"(JI164/JJ164)*100000","v":1369.5687821461813},5930,432983,null,51600,5600,10.8,25.200000000000003,21.400000000000002,21.1,5.2,2.2000000000000002,4.9000000000000004,6.6000000000000005,47.6,22,10.3,8.6,19.600000000000001,55000,5900,10.700000000000001,27.5,19.5,21.400000000000002,4.5,2.2000000000000002,5.1000000000000005,6.1000000000000005,47.2,21.3,10.5,8.2000000000000011,18]
[973,"YORKSHIRE AND THE HUMBER",{"$f":"SUM(C64,C68,C69,C65,C88,C87,C70,C71,C89,C90,C91,C66,C67,C72,C92)","v":299530},{"$f":"SUM(D64,D68,D69,D65,D88,D87,D70,D71,D89,D90,D91,D66,D67,D72,D92)","v":4560},12770,12430,4410,13890,300920,4340,11820,12340,4420,13910,298250,4250,11320,12250,4320,13550,null,5337.7,64560,7.5,5316.7,67408,7.1,5288.2,66451,7.5,5301.3,66970,7.2,null,5185677,{"$f":"SUM(AJ64,AJ68,AJ69,AJ65,AJ88,AJ87,AJ70,AJ71,AJ89,AJ90,AJ91,AJ66,AJ67,AJ72,AJ92)","v":995128},15801,21456,957871,965964,22519,6645,621263,12121,19361,589781,587681,26677,6905,0,0,0,0,0,0,0,0,0,0,0,0,0,0,0,0,0,0,{"$f":"SUM(BP64,BP68,BP69,BP65,BP88,BP87,BP70,BP71,BP89,BP90,BP91,BP66,BP67,BP72,BP92)","v":0},0,0,0,0,0,0,0,0,0,0,0,0,0,0,0,0,0,0,0,0,0,0,0,0,0,0,0,0,0,0,0,0,0,0,0,0,0,0,0,0,0,0,0,0,0,0,0,0,0,0,0,0,0,0,0,0,0,0,0,0,0,0,0,{"$f":"SUM(EB64,EB68,EB69,EB65,EB88,EB87,EB70,EB71,EB89,EB90,EB91,EB66,EB67,EB72,EB92)","v":0},0,0,0,0,0,0,0,0,0,0,0,0,0,0,0,0,0,0,0,0,0,0,0,0,0,0,0,0,0,0,0,0,0,0,0,0,0,0,0,0,0,0,0,0,0,0,0,0,0,0,0,0,0,0,0,0,0,0,0,0,0,0,0,{"$f":"SUM(GN64,GN68,GN69,GN65,GN88,GN87,GN70,GN71,GN89,GN90,GN91,GN66,GN67,GN72,GN92)","v":0},0,0,0,0,0,0,0,0,0,0,0,0,0,0,0,0,0,0,0,0,0,0,0,0,0,0,null,0,0,127.28040013176961,11823,928894,{"$f":"(HV165/HW165)*10000","v":127.95479280931166},11933,932595,{"$f":"(HY165/HZ165)*10000","v":109.56613429759769},10287,938885,{"$f":"(IB165/IC165)*10000","v":167.37020685879099},12105,723247,{"$f":"(IE165/IF165)*10000","v":167.82686986692434},12228,728608,{"$f":"(IH165/II165)*10000","v":145.20409849837378},10630,732073,175.2029871984351,2103,1200322,211.75189736025959,2544,1201406,73.518294013419805,812,1104487,58.295348332425235,658,1128735,57.906793014110363,656,1132855,351.77142036684734,{"$f":"SUM(IZ64,IZ68,IZ69,IZ65,IZ88,IZ87,IZ70,IZ71,IZ89,IZ90,IZ91,IZ66,IZ67,IZ72,IZ92)","v":3626},1030783,100.17020587481562,1200,1197961,2668.9800844900424,3538,132560,1411.1781604827554,4642,328945,null,40100,4400,11,26.400000000000002,26,33.5,8.7000000000000011,10.5,7.4,19.3,56.300000000000004,29.200000000000003,24.200000000000003,11.8,15.200000000000001,40300,4500,11.100000000000001,26.900000000000002,22.400000000000002,29.400000000000002,6.6000000000000005,8.5,6.6000000000000005,16.400000000000002,53.5,27.200000000000003,20.5,10.700000000000001,17.100000000000001]
[974,"EAST MIDLANDS",{"$f":"SUM(C99,C98,C111,C110,C151,C153,C141,C140,C112)","v":241140},{"$f":"SUM(D99,D98,D111,D110,D151,D153,D141,D140,D112)","v":3760},11830,12420,4430,12440,241490,3550,11000,12290,4310,12200,236870,3400,10480,11960,4160,11500,null,4598.7,52895,6.8,4567.7,55645,6.9,4537.3999999999996,55378,7.2,4481.3999999999996,55232,7.3,null,4442192,{"$f":"SUM(AJ99,AJ98,AJ111,AJ110,AJ151,AJ153,AJ141,AJ140,AJ112)","v":835558},12969,18884,803705,812806,17744,5008,506225,9746,16551,479928,479350,21648,5227,0,0,0,0,0,0,0,0,0,0,0,0,0,0,0,0,0,0,{"$f":"SUM(BP99,BP98,BP111,BP110,BP151,BP153,BP141,BP140,BP112)","v":0},0,0,0,0,0,0,0,0,0,0,0,0,0,0,0,0,0,0,0,0,0,0,0,0,0,0,0,0,0,0,0,0,0,0,0,0,0,0,0,0,0,0,0,0,0,0,0,0,0,0,0,0,0,0,0,0,0,0,0,0,0,0,0,{"$f":"SUM(EB99,EB98,EB111,EB110,EB151,EB153,EB141,EB140,EB112)","v":0},0,0,0,0,0,0,0,0,0,0,0,0,0,0,0,0,0,0,0,0,0,0,0,0,0,0,0,0,0,0,0,0,0,0,0,0,0,0,0,0,0,0,0,0,0,0,0,0,0,0,0,0,0,0,0,0,0,0,0,0,0,0,0,{"$f":"SUM(GN99,GN98,GN111,GN110,GN151,GN153,GN141,GN140,GN112)","v":0},0,0,0,0,0,0,0,0,0,0,0,0,0,0,0,0,0,0,0,0,0,0,0,0,0,0,null,0,0,103.58247859081651,8075,779572,99.917491116884179,7823,782946,86.822479783888213,6849,788851,152.22678855992618,9075,596150,129.49417791648725,7788,601417,118.48329502686953,7181,606077,129.47155474416539,1312,1013350,151.96461507874798,1544,1016026,71.802091276643367,661,920586,98.926096386816909,935,945150,96.962747334051414,920,948818,333.91921750283575,{"$f":"SUM(IZ99,IZ98,IZ111,IZ110,IZ151,IZ153,IZ141,IZ140,IZ112)","v":2882},863083,71.840429263857928,727,1011965,1995.5409980457462,2175,108993,1083.1869899502678,2936,271052,null,32800,3800,11.5,26.900000000000002,15.4,14,7.9,3.7,6.2,6.4,39.800000000000004,27.5,9.5,6.8000000000000007,31.1,33300,3600,10.9,24.900000000000002,15.100000000000001,12,6.8000000000000007,3.2,4,5.9,35.9,26.700000000000003,7.9,6,38.700000000000003]
[975,"WEST MIDLANDS",{"$f":"SUM(C42,C43,C44,C133,C45,C142,C46,C113,C114,C143,C47,C159,C48,C134)","v":314660},{"$f":"SUM(D42,D43,D44,D133,D45,D142,D46,D113,D114,D143,D47,D159,D48,D134)","v":5510},15820,15780,5880,16480,315530,5310,15070,15760,5550,16280,310450,5040,14300,15560,5250,15590,null,5674.7,71188,8,5642.6,73940,7.9,5608.7,73023,8,5455.2,72090,7.7,null,5509535,{"$f":"SUM(AJ42,AJ43,AJ44,AJ133,AJ45,AJ142,AJ46,AJ113,AJ114,AJ143,AJ47,AJ159,AJ48,AJ134)","v":1091226},18125,25845,1047256,1056889,26583,7754,639576,13283,21362,604931,603700,28423,7453,0,0,0,0,0,0,0,0,0,0,0,0,0,0,0,0,0,0,{"$f":"SUM(BP42,BP43,BP44,BP133,BP45,BP142,BP46,BP113,BP114,BP143,BP47,BP159,BP48,BP134)","v":0},0,0,0,0,0,0,0,0,0,0,0,0,0,0,0,0,0,0,0,0,0,0,0,0,0,0,0,0,0,0,0,0,0,0,0,0,0,0,0,0,0,0,0,0,0,0,0,0,0,0,0,0,0,0,0,0,0,0,0,0,0,0,0,{"$f":"SUM(EB42,EB43,EB44,EB133,EB45,EB142,EB46,EB113,EB114,EB143,EB47,EB159,EB48,EB134)","v":0},0,0,0,0,0,0,0,0,0,0,0,0,0,0,0,0,0,0,0,0,0,0,0,0,0,0,0,0,0,0,0,0,0,0,0,0,0,0,0,0,0,0,0,0,0,0,0,0,0,0,0,0,0,0,0,0,0,0,0,0,0,0,0,{"$f":"SUM(GN42,GN43,GN44,GN133,GN45,GN142,GN46,GN113,GN114,GN143,GN47,GN159,GN48,GN134)","v":0},0,0,0,0,0,0,0,0,0,0,0,0,0,0,0,0,0,0,0,0,0,0,0,0,0,0,null,0,0,117.08456391131784,11921,1018153,120.52078111303624,12333,1023309,106.2880970933023,10940,1029278,148.27892935119544,11002,741980,142.21525921556747,10657,749357,{"$f":"(IH167/II167)*10000","v":124.4556312020168},9365,752477,248.65650184647802,3269,1314665,303.17691184209929,3998,1318702,104.38850269886555,1247,1194576,100.76882583357988,1250,1240463,76.189741388871468,948,1244262,371.31088243544508,{"$f":"SUM(IZ42,IZ43,IZ44,IZ133,IZ45,IZ142,IZ46,IZ113,IZ114,IZ143,IZ47,IZ159,IZ48,IZ134)","v":4024},1083728,80.303066054790293,1055,1313773,2262.6429461248827,3233,142886,1252.9165378236303,4457,355730,null,44800,5400,12.100000000000001,28,27.1,24.5,4.1000000000000005,5.7,6.2,11.100000000000001,45,18.900000000000002,15.4,9.6000000000000014,34,47400,5600,11.9,27.200000000000003,25.6,21.200000000000003,2.8000000000000003,3.3000000000000003,6,6.4,39.5,12.4,7.8000000000000007,8.3000000000000007,34.9]
[976,"EAST OF ENGLAND",{"$f":"SUM(C94,C95,C123,C130,C149,C93,C152,C124,C131,C157,C132)","v":243340},{"$f":"SUM(D94,D95,D123,D130,D149,D93,D152,D124,D131,D157,D132)","v":4740},14890,15450,5320,14420,242290,4420,13950,15380,5140,14170,235540,4230,13090,14950,4980,13300,null,5954.2,71309,6.5,5907.3,74571,6.7,5862.4,73220,6.6,5831.8,73001,6.6,null,5748605,{"$f":"SUM(AJ94,AJ95,AJ123,AJ130,AJ149,AJ93,AJ152,AJ124,AJ131,AJ157,AJ132)","v":1104877},15572,24202,1065103,1076183,22455,6239,602905,11429,19838,571638,571510,25086,6309,0,0,0,0,0,0,0,0,0,0,0,0,0,0,0,0,0,0,{"$f":"SUM(BP94,BP95,BP123,BP130,BP149,BP93,BP152,BP124,BP131,BP157,BP132)","v":0},0,0,0,0,0,0,0,0,0,0,0,0,0,0,0,0,0,0,0,0,0,0,0,0,0,0,0,0,0,0,0,0,0,0,0,0,0,0,0,0,0,0,0,0,0,0,0,0,0,0,0,0,0,0,0,0,0,0,0,0,0,0,0,{"$f":"SUM(EB94,EB95,EB123,EB130,EB149,EB93,EB152,EB124,EB131,EB157,EB132)","v":0},0,0,0,0,0,0,0,0,0,0,0,0,0,0,0,0,0,0,0,0,0,0,0,0,0,0,0,0,0,0,0,0,0,0,0,0,0,0,0,0,0,0,0,0,0,0,0,0,0,0,0,0,0,0,0,0,0,0,0,0,0,0,0,{"$f":"SUM(GN94,GN95,GN123,GN130,GN149,GN93,GN152,GN124,GN131,GN157,GN132)","v":0},0,0,0,0,0,0,0,0,0,0,0,0,0,0,0,0,0,0,0,0,0,0,0,0,0,0,null,0,0,96.650553390627138,9963,1030827,108.70330420627397,11272,1036951,{"$f":"(HY168/HZ168)*10000","v":91.281178835583248},9572,1048628,{"$f":"(IB168/IC168)*10000","v":120.77147422582479},8518,705299,{"$f":"(IE168/IF168)*10000","v":117.57683269787756},8391,713661,{"$f":"(IH168/II168)*10000","v":112.94355077386204},8014,709558,140.57380011565152,1867,1328128,173.70991116106691,2329,1340741,84.391648042580371,1049,1243014,63.340091731730837,796,1256708,77.530273913984033,982,1266602,292.24825820993169,{"$f":"SUM(IZ94,IZ95,IZ123,IZ130,IZ149,IZ93,IZ152,IZ124,IZ131,IZ157,IZ132)","v":3060},1047055,78.466564900642837,1044,1330503,1822.1829175493081,2658,145869,951.51177602664552,3451,362686,null,33700,6300,18.7,29.900000000000002,17.3,16.8,4.1000000000000005,3.5,4.8000000000000007,7,38.6,20,12,8.8000000000000007,24.700000000000003,36700,6900,18.900000000000002,26.8,15.5,14,4,3.4000000000000004,3.8000000000000003,5.5,31.700000000000003,15.600000000000001,10.3,6.8000000000000007,21.900000000000002]
[977,"INNER LONDON",{"$f":"SUM(C10,C9,C12,C13,C30,C14,C15,C16,C17,C37,C18,C19,C20,C21)","v":142940},{"$f":"SUM(D10,D9,D12,D13,D30,D14,D15,D16,D17,D37,D18,D19,D20,D21)","v":2510},7610,6470,2230,6550,142600,2450,7240,6440,2100,6500,139660,2380,6880,6290,1980,6370,null,3335.4,51407,7.6,3285,53957,7.6,3241.1,53908,7.7,3083.3,54613,7.5,null,3181235,{"$f":"SUM(AJ10,AJ9,AJ12,AJ13,AJ30,AJ14,AJ15,AJ16,AJ17,AJ37,AJ18,AJ19,AJ20,AJ21)","v":594587},9592,12001,572994,572448,16671,5468,402287,6804,11230,384253,379823,17782,4682,0,0,0,0,0,0,0,0,0,0,0,0,0,0,0,0,0,0,{"$f":"SUM(BP10,BP9,BP12,BP13,BP30,BP14,BP15,BP16,BP17,BP37,BP18,BP19,BP20,BP21)","v":0},0,0,0,0,0,0,0,0,0,0,0,0,0,0,0,0,0,0,0,0,0,0,0,0,0,0,0,0,0,0,0,0,0,0,0,0,0,0,0,0,0,0,0,0,0,0,0,0,0,0,0,0,0,0,0,0,0,0,0,0,0,0,0,{"$f":"SUM(EB10,EB9,EB12,EB13,EB30,EB14,EB15,EB16,EB17,EB37,EB18,EB19,EB20,EB21)","v":0},0,0,0,0,0,0,0,0,0,0,0,0,0,0,0,0,0,0,0,0,0,0,0,0,0,0,0,0,0,0,0,0,0,0,0,0,0,0,0,0,0,0,0,0,0,0,0,0,0,0,0,0,0,0,0,0,0,0,0,0,0,0,0,{"$f":"SUM(GN10,GN9,GN12,GN13,GN30,GN14,GN15,GN16,GN17,GN37,GN18,GN19,GN20,GN21)","v":0},0,0,0,0,0,0,0,0,0,0,0,0,0,0,0,0,0,0,0,0,0,0,0,0,0,0,null,0,0,91.255024564537749,5108,559750,95.758434428406972,5407,564650,89.778361290099667,5197,578870,119.78787097352871,5342,445955,109.77841472825487,4979,453550,98.557245295512985,4346,440962,202.54504133306733,1401,691698,234.88861939107679,1656,705015,120.2977654567978,739,614309,86.941163214904549,571,656766,91.543926966968385,616,672901,175.84282280134084,{"$f":"SUM(IZ10,IZ9,IZ12,IZ13,IZ30,IZ14,IZ15,IZ16,IZ17,IZ37,IZ18,IZ19,IZ20,IZ21)","v":1057},601105,78.831842278457202,545,691345,1012.8922903076686,986,97345,656.72011172196778,1486,226276,null,30900,3200,10.3,27.400000000000002,21.900000000000002,25.900000000000002,4.7,4.4000000000000004,6.5,6.2,43.300000000000004,19.400000000000002,14.5,7.7,19.8,31600,3000,9.6000000000000014,31,21,25.700000000000003,4.3,4.2,6,5.6000000000000005,40.5,18.400000000000002,12.700000000000001,7.5,20.100000000000001]
[978,"OUTER LONDON",{"$f":"SUM(C22,C23,C24,C25,C26,C27,C28,C29,C11,C31,C32,C33,C34,C35,C36,C38,C39,C40,C41)","v":191760},{"$f":"SUM(D22,D23,D24,D25,D26,D27,D28,D29,D11,D31,D32,D33,D34,D35,D36,D38,D39,D40,D41)","v":3960},12040,11150,3850,10860,190690,3770,11290,11030,3690,10730,186320,3650,10600,10810,3560,10380,null,5081.1000000000004,76925,7.5,5023.3999999999996,80229,7.4,4963.3,78935,7.5,4741.8999999999996,78498,7.3,null,4892465,{"$f":"SUM(AJ22,AJ23,AJ24,AJ25,AJ26,AJ27,AJ28,AJ29,AJ11,AJ31,AJ32,AJ33,AJ34,AJ35,AJ36,AJ38,AJ39,AJ40,AJ41)","v":1028683},14542,19305,994836,997534,23987,7162,563910,10286,15748,537876,534846,22841,6223,0,0,0,0,0,0,0,0,0,0,0,0,0,0,0,0,0,0,{"$f":"SUM(BP22,BP23,BP24,BP25,BP26,BP27,BP28,BP29,BP11,BP31,BP32,BP33,BP34,BP35,BP36,BP38,BP39,BP40,BP41)","v":0},0,0,0,0,0,0,0,0,0,0,0,0,0,0,0,0,0,0,0,0,0,0,0,0,0,0,0,0,0,0,0,0,0,0,0,0,0,0,0,0,0,0,0,0,0,0,0,0,0,0,0,0,0,0,0,0,0,0,0,0,0,0,0,{"$f":"SUM(EB22,EB23,EB24,EB25,EB26,EB27,EB28,EB29,EB11,EB31,EB32,EB33,EB34,EB35,EB36,EB38,EB39,EB40,EB41)","v":0},0,0,0,0,0,0,0,0,0,0,0,0,0,0,0,0,0,0,0,0,0,0,0,0,0,0,0,0,0,0,0,0,0,0,0,0,0,0,0,0,0,0,0,0,0,0,0,0,0,0,0,0,0,0,0,0,0,0,0,0,0,0,0,{"$f":"SUM(GN22,GN23,GN24,GN25,GN26,GN27,GN28,GN29,GN11,GN31,GN32,GN33,GN34,GN35,GN36,GN38,GN39,GN40,GN41)","v":0},0,0,0,0,0,0,0,0,0,0,0,0,0,0,0,0,0,0,0,0,0,0,0,0,0,0,null,0,0,87.61376713045297,8375,955900,91.931497102528141,8941,972572,81.509891889394069,8114,995462,119.08615972526393,7504,630132,112.05067072914019,7186,641317,102.13838939136691,6473,633748,197.45645130079996,2398,1214445,199.42129983721037,2477,1242094,105.26919497741984,1138,1081038,88.340140720647696,1020,1154628,84.574407682542585,998,1180026,219.64182316730626,{"$f":"SUM(IZ22,IZ23,IZ24,IZ25,IZ26,IZ27,IZ28,IZ29,IZ11,IZ31,IZ32,IZ33,IZ34,IZ35,IZ36,IZ38,IZ39,IZ40,IZ41)","v":2037},927419,57.191410145166216,698,1220463,1127.3575191491341,1697,150529,680.79923219767102,2504,367803,null,36900,5400,14.600000000000001,36.6,22.400000000000002,22.8,4.6000000000000005,6.6000000000000005,5.1000000000000005,6.7,45,21.3,11.3,8.2000000000000011,16.3,37400,4800,12.8,39.800000000000004,17.8,21.5,4.4000000000000004,5.9,5.4,5.4,44.6,19.700000000000003,12.200000000000001,8.2000000000000011,20.200000000000003]
[979,"SOUTH EAST",{"$f":"SUM(C117,C106,C96,C105,C107,C150,C135,C136,C97,C155,C108,C120,C121,C109,C158,C119,C160,C118,C122)","v":337240},{"$f":"SUM(D117,D106,D96,D105,D107,D150,D135,D136,D97,D155,D108,D120,D121,D109,D158,D119,D160,D118,D122)","v":6280},21100,22150,7800,21740,335650,6020,20030,21890,7520,21550,326200,5800,19030,21560,7390,20460,null,8792.6,102190,6.5,8724.7000000000007,107858,6.3,8652.7999999999993,107132,6.3,8523.1,106434,6.4,null,8446500,{"$f":"SUM(AJ117,AJ106,AJ96,AJ105,AJ107,AJ150,AJ135,AJ136,AJ97,AJ155,AJ108,AJ120,AJ121,AJ109,AJ158,AJ119,AJ160,AJ118,AJ122)","v":1626989},22563,35115,1569311,1586382,32208,8399,896785,16481,29434,850870,850430,37306,9049,0,0,0,0,0,0,0,0,0,0,0,0,0,0,0,0,0,0,{"$f":"SUM(BP117,BP106,BP96,BP105,BP107,BP150,BP135,BP136,BP97,BP155,BP108,BP120,BP121,BP109,BP158,BP119,BP160,BP118,BP122)","v":0},0,0,0,0,0,0,0,0,0,0,0,0,0,0,0,0,0,0,0,0,0,0,0,0,0,0,0,0,0,0,0,0,0,0,0,0,0,0,0,0,0,0,0,0,0,0,0,0,0,0,0,0,0,0,0,0,0,0,0,0,0,0,0,{"$f":"SUM(EB117,EB106,EB96,EB105,EB107,EB150,EB135,EB136,EB97,EB155,EB108,EB120,EB121,EB109,EB158,EB119,EB160,EB118,EB122)","v":0},0,0,0,0,0,0,0,0,0,0,0,0,0,0,0,0,0,0,0,0,0,0,0,0,0,0,0,0,0,0,0,0,0,0,0,0,0,0,0,0,0,0,0,0,0,0,0,0,0,0,0,0,0,0,0,0,0,0,0,0,0,0,0,{"$f":"SUM(GN117,GN106,GN96,GN105,GN107,GN150,GN135,GN136,GN97,GN155,GN108,GN120,GN121,GN109,GN158,GN119,GN160,GN118,GN122)","v":0},0,0,0,0,0,0,0,0,0,0,0,0,0,0,0,0,0,0,0,0,0,0,0,0,0,0,null,0,0,111.09578966721824,16919,1522920,114.82638848251011,17660,1537974,99.329383641023242,15453,1555733,149.35808638700763,15936,1066966,143.88823392243154,15488,1076391,127.96637298704191,13791,1077705,156.37272185062392,3078,1968374,173.42076357489412,3445,1986498,137.98080424192415,2520,1826341,119.05171597938588,2214,1859696,106.22789694881287,1993,1876155,352.95688395640747,{"$f":"SUM(IZ117,IZ106,IZ96,IZ105,IZ107,IZ150,IZ135,IZ136,IZ97,IZ155,IZ108,IZ120,IZ121,IZ109,IZ158,IZ119,IZ160,IZ118,IZ122)","v":5578},1580363,71.42349513183143,1407,1969940,1989.6246000083599,4284,215317,1080.580886852435,5792,536008,null,49300,8500,17.100000000000001,30.6,23.1,23.700000000000003,8.1,7.2,5.9,10.3,51.900000000000006,25.400000000000002,16.5,8.6,11.3,54300,8700,16,31.5,21.6,23.200000000000003,7.6000000000000005,7.1000000000000005,5.4,9.8000000000000007,48.6,23.8,15.4,9.1,9.2000000000000011]
[980,"SOUTH WEST",{"$f":"SUM(C79,C102,C80,C146,C127,C100,C148,C78,C81,C128,C101,C156,C82,C116,C129,C115)","v":252390},{"$f":"SUM(D79,D102,D80,D146,D127,D100,D148,D78,D81,D128,D101,D156,D82,D116,D129,D115)","v":3770},12370,13260,4800,14050,251890,3700,11580,13010,4670,13850,245740,3570,10980,12740,4480,13110,null,5377.6,58710,5.9,5339.6,61131,6,5300.8,60794,5.8,5273.7,60144,6,null,5175084,{"$f":"SUM(AJ79,AJ102,AJ80,AJ146,AJ127,AJ100,AJ148,AJ78,AJ81,AJ128,AJ101,AJ156,AJ82,AJ116,AJ129,AJ115)","v":922060},13174,20829,888057,898252,18567,5241,556528,10374,19010,527144,526459,24126,5943,0,0,0,0,0,0,0,0,0,0,0,0,0,0,0,0,0,0,{"$f":"SUM(BP79,BP102,BP80,BP146,BP127,BP100,BP148,BP78,BP81,BP128,BP101,BP156,BP82,BP116,BP129,BP115)","v":0},0,0,0,0,0,0,0,0,0,0,0,0,0,0,0,0,0,0,0,0,0,0,0,0,0,0,0,0,0,0,0,0,0,0,0,0,0,0,0,0,0,0,0,0,0,0,0,0,0,0,0,0,0,0,0,0,0,0,0,0,0,0,0,{"$f":"SUM(EB79,EB102,EB80,EB146,EB127,EB100,EB148,EB78,EB81,EB128,EB101,EB156,EB82,EB116,EB129,EB115)","v":0},0,0,0,0,0,0,0,0,0,0,0,0,0,0,0,0,0,0,0,0,0,0,0,0,0,0,0,0,0,0,0,0,0,0,0,0,0,0,0,0,0,0,0,0,0,0,0,0,0,0,0,0,0,0,0,0,0,0,0,0,0,0,0,{"$f":"SUM(GN79,GN102,GN80,GN146,GN127,GN100,GN148,GN78,GN81,GN128,GN101,GN156,GN82,GN116,GN129,GN115)","v":0},0,0,0,0,0,0,0,0,0,0,0,0,0,0,0,0,0,0,0,0,0,0,0,0,0,0,null,0,0,109.70366335600959,9466,862870,114.90580054540169,9961,866884,103.92210704560536,9083,874020,162.09609492303372,10623,655352,152.72793212091906,10107,661765,144.16138829681245,9550,662452,162.58298043315165,1829,1124964,175.03128717424855,1979,1130655,144.58137249978921,1526,1055461,89.551139084821372,948,1058613,89.743915033656322,955,1064139,452.13026148445579,{"$f":"SUM(IZ79,IZ102,IZ80,IZ146,IZ127,IZ100,IZ148,IZ78,IZ81,IZ128,IZ101,IZ156,IZ82,IZ116,IZ129,IZ115)","v":4298},950611,72.20980683876671,812,1124501,{"$f":"(JF172/JG172)*100000","v":2229.1186972336236},2672,119868,1169.6437581996165,3477,{"$f":"SUM(JJ79,JJ102,JJ80,JJ146,JJ127,JJ100,JJ148,JJ78,JJ81,JJ128,JJ101,JJ156,JJ82,JJ116,JJ129,JJ115)","v":297270},null,34800,6400,18.5,25.400000000000002,37.4,37.200000000000003,6.7,9.3000000000000007,6.2,17,53.400000000000006,28.3,26.8,10.5,16.100000000000001,37600,6200,16.5,25.3,38.300000000000004,38.900000000000006,5,9.7000000000000011,6.3000000000000007,17.5,51.400000000000006,26.900000000000002,26.900000000000002,10.100000000000001,18.7]

{"sheet":"Data Summary","index":6,"n_rows":169,"n_cols":77,"rows_kept":169,"cut":false,"hidden":false,"merged":[[4,3,4,8],[4,9,4,14],[4,26,4,28],[4,29,4,31],[4,32,4,34],[4,15,4,21],[4,35,4,37],[4,68,4,70],[4,65,4,67],[4,62,4,64],[4,59,4,61],[4,56,4,58],[4,53,4,55],[4,50,4,52],[4,47,4,49],[4,44,4,46],[4,41,4,43],[4,38,4,40]]}
["Statistics used for summary of Local Authority funding and characteristics of high needs pupils"]
[]
[1,2,3,4,5,6,7,8,9,10,11,12,13,14,15,16,17,18,19,20,21,22,23,24,25,26,27,28,29,30,31,32,33,34,35,36,37,38,39,40,41,42,43,44,45,46,47,48,49,50,51,52,53,54,55,56,57,58,59,60,61,62,63,64,65,66,67,68,69,70,71,72,73,74,75,76,77]
[]
[null,null,null,"% pupils with statements",null,null,null,null,null,"% SEN pupils",null,null,null,null,null,"Jan 2014 Census: Primary type of need for pupils",null,null,null,null,null,null,"Children with statement placed in:",null,null,null,"2012-13 DSG",null,null,"2013-14 DSG",null,null,"2014-15 DSG",null,null,"2015-16 DSG",null,null,"Section 251 budget 09-10",null,null,"Section 251 budget 10-11",null,null,"Section 251 budget 11-12",null,null,"Section 251 budget 12-13",null,null,"Section 251 budget 13-14",null,null,"Section 251 budget 14-15",null,null,"Section 251 outturn 0910",null,null,"Section 251 outturn 1011",null,null,"Section 251 outturn 1112",null,null,"Section 251 outturn 1213",null,null,"Section 251 outturn 1314"]
[null,"LA Number","LA Name",2009,2010,2011,2012,2013,2014,2009,2010,2011,2012,2013,2014,"Learning Difficulty","Behaviour, Emotional & Social Difficulties","Speech, Language and Communications Needs","Sensory Impairment","Physical Disability","Autistic Spectrum Disorder","Other Difficulty/Disability","Mainstream settings","Special settings","SEN Units and RP in mainstream settings","Other incl AP","Notional HN Block","As % of Total","Per SEN","HN Block","As % of Total","Per SEN","HN Block","As % of Total","Per SEN","HN Block","As % of Total","Per SEN","Total SEN budget","As % of total","Per SEN","Total SEN budget","As % of total","Per SEN","Total SEN budget","As % of total","Per SEN","Total SEN budget","As % of total","Per SEN","Total SEN budget","As % of total","Per SEN","Total SEN budget","As % of total","Per SEN","Total SEN spend","As % of total","Per SEN","Total SEN spend","As % of total","Per SEN","Total SEN spend","As % of total","Per SEN","Total SEN spend","As % of total","Per SEN","Total SEN spend","As % of total","Per SEN","% post 16 high needs places","No of under 16s claiming Disability Living Allowance (Nov13)","% of under 16s whose day to day activities are limited","% of 16-24 year olds whose day to day activities are limited","% of under 16s with bad health","% of 16-24 year olds with bad health"]
[1,970,"England",{"$f":"IFERROR((VLOOKUP($B7,Pupils,Pupils!$D$3,FALSE)/VLOOKUP($B7,Pupils,Pupils!$C$3,FALSE)), \"x\")","v":2.7853707484170098E-2},{"$f":"IFERROR((VLOOKUP($B7,Pupils,Pupils!$G$3,FALSE)/VLOOKUP($B7,Pupils,Pupils!$F$3,FALSE)),\"x\")","v":2.765312976948419E-2},{"$f":"IFERROR((VLOOKUP($B7,Pupils,Pupils!$J$3,FALSE)/VLOOKUP($B7,Pupils,Pupils!$I$3,FALSE)), \"x\")","v":2.7598932281617188E-2},{"$f":"IFERROR((VLOOKUP($B7,Pupils,Pupils!$M$3,FALSE)/VLOOKUP($B7,Pupils,Pupils!$L$3,FALSE)), \"x\")","v":2.7649727323860996E-2},{"$f":"IFERROR((VLOOKUP($B7,Pupils,Pupils!$R$3,FALSE)/VLOOKUP($B7,Pupils,Pupils!$Q$3,FALSE)), \"x\")","v":2.780548885368269E-2},{"$f":"IFERROR((VLOOKUP($B7,Pupils,Pupils!$W$3,FALSE)/VLOOKUP($B7,Pupils,Pupils!$V$3,FALSE)), \"x\")","v":2.7869315846044806E-2},{"$f":"IFERROR(((VLOOKUP($B7,Pupils,Pupils!$D$3,FALSE)+VLOOKUP($B7,Pupils,Pupils!$E$3,FALSE))/VLOOKUP($B7,Pupils,Pupils!$C$3,FALSE)), \"x\")","v":0.20669143924827119},{"$f":"IFERROR(((VLOOKUP($B7,Pupils,Pupils!$G$3,FALSE)+VLOOKUP($B7,Pupils,Pupils!$H$3,FALSE))/VLOOKUP($B7,Pupils,Pupils!$F$3,FALSE)), \"x\")","v":0.21053398465862225},{"$f":"IFERROR(((VLOOKUP($B7,Pupils,Pupils!$J$3,FALSE)+VLOOKUP($B7,Pupils,Pupils!$K$3,FALSE))/VLOOKUP($B7,Pupils,Pupils!$I$3,FALSE)), \"x\")","v":0.20604662928298292},{"$f":"IFERROR(((VLOOKUP($B7,Pupils,Pupils!$M$3,FALSE)+VLOOKUP($B7,Pupils,Pupils!$P$3,FALSE))/VLOOKUP($B7,Pupils,Pupils!$L$3,FALSE)), \"x\")","v":0.19788462008754984},{"$f":"IFERROR(((VLOOKUP($B7,Pupils,Pupils!$R$3,FALSE)+VLOOKUP($B7,Pupils,Pupils!$U$3,FALSE))/VLOOKUP($B7,Pupils,Pupils!$Q$3,FALSE)), \"x\")","v":0.18735098141654172},{"$f":"IFERROR(((VLOOKUP($B7,Pupils,Pupils!$W$3,FALSE)+VLOOKUP($B7,Pupils,Pupils!$Z$3,FALSE))/VLOOKUP($B7,Pupils,Pupils!$V$3,FALSE)), \"x\")","v":0.17919589600048491},{"$f":"(SUM(INDEX(Pupils!$AB$7:$AB$159,MATCH($B7,Pupils!$A$7:$A$159,0)),INDEX(Pupils!$AC$7:$AC$159,MATCH($B7,Pupils!$A$7:$A$159,0)),INDEX(Pupils!$AD$7:$AD$159,MATCH($B7,Pupils!$A$7:$A$159,0)),INDEX(Pupils!$AE$7:$AE$159,MATCH($B7,Pupils!$A$7:$A$159,0))))/SUM(INDEX(Pupils!$AB$7:$AM$159,MATCH($B7,Pupils!$A$7:$A$159,0),0))","v":0.34926874722458817},{"$f":"SUM(INDEX(Pupils!$AF$7:$AF$159,MATCH($B7,Pupils!$A$7:$A$159,0)))/SUM(INDEX(Pupils!$AB$7:$AM$159,MATCH($B7,Pupils!$A$7:$A$159,0),0))","v":0.21281676093967256},{"$f":"SUM(INDEX(Pupils!$AG$7:$AG$159,MATCH($B7,Pupils!$A$7:$A$159,0)))/SUM(INDEX(Pupils!$AB$7:$AM$159,MATCH($B7,Pupils!$A$7:$A$159,0),0))","v":0.20512932509263507},{"$f":"(SUM(INDEX(Pupils!$AH$7:$AH$159,MATCH($B7,Pupils!$A$7:$A$159,0)),INDEX(Pupils!$AI$7:$AI$159,MATCH($B7,Pupils!$A$7:$A$159,0)),INDEX(Pupils!$AJ$7:$AJ$159,MATCH($B7,Pupils!$A$7:$A$159,0))))/SUM(INDEX(Pupils!$AB$7:$AM$159,MATCH($B7,Pupils!$A$7:$A$159,0),0))","v":3.9085078657901826E-2},{"$f":"SUM(INDEX(Pupils!$AK$7:$AK$159,MATCH($B7,Pupils!$A$7:$A$159,0)))/SUM(INDEX(Pupils!$AB$7:$AM$159,MATCH($B7,Pupils!$A$7:$A$159,0),0))","v":3.9230674033792684E-2},{"$f":"SUM(INDEX(Pupils!$AL$7:$AL$159,MATCH($B7,Pupils!$A$7:$A$159,0)))/SUM(INDEX(Pupils!$AB$7:$AM$159,MATCH($B7,Pupils!$A$7:$A$159,0),0))","v":0.11162069492672913},{"$f":"SUM(INDEX(Pupils!$AM$7:$AM$159,MATCH($B7,Pupils!$A$7:$A$159,0)))/SUM(INDEX(Pupils!$AB$7:$AM$159,MATCH($B7,Pupils!$A$7:$A$159,0),0))","v":4.28487191246806E-2},{"$f":"(SUM(INDEX(Pupils!$BH$7:$BH$159,MATCH($B7,Pupils!$A$7:$A$159,0)),INDEX(Pupils!$BK$7:$BK$159,MATCH($B7,Pupils!$A$7:$A$159,0)),INDEX(Pupils!$BO$7:$BO$159,MATCH($B7,Pupils!$A$7:$A$159,0))))/SUM(INDEX(Pupils!$BH$7:$BS$159,MATCH($B7,Pupils!$A$7:$A$159,0),0))","v":0.46696611206005778},{"$f":"(SUM(INDEX(Pupils!$BL$7:$BL$159,MATCH($B7,Pupils!$A$7:$A$159,0)),INDEX(Pupils!$BM$7:$BM$159,MATCH($B7,Pupils!$A$7:$A$159,0)),INDEX(Pupils!$BP$7:$BP$159,MATCH($B7,Pupils!$A$7:$A$159,0))))/SUM(INDEX(Pupils!$BH$7:$BS$159,MATCH($B7,Pupils!$A$7:$A$159,0),0))","v":0.45439784061913496},{"$f":"(SUM(INDEX(Pupils!$BI$7:$BI$159,MATCH($B7,Pupils!$A$7:$A$159,0)),INDEX(Pupils!$BJ$7:$BJ$159,MATCH($B7,Pupils!$A$7:$A$159,0))))/SUM(INDEX(Pupils!$BH$7:$BS$159,MATCH($B7,Pupils!$A$7:$A$159,0),0))","v":5.7337466523270278E-2},{"$f":"(SUM(INDEX(Pupils!$BQ$7:$BQ$159,MATCH($B7,Pupils!$A$7:$A$159,0)),INDEX(Pupils!$BR$7:$BR$159,MATCH($B7,Pupils!$A$7:$A$159,0)),INDEX(Pupils!$BN$7:$BN$159,MATCH($B7,Pupils!$A$7:$A$159,0)),INDEX(Pupils!$BS$7:$BS$159,MATCH($B7,Pupils!$A$7:$A$159,0))))/SUM(INDEX(Pupils!$BH$7:$BS$159,MATCH($B7,Pupils!$A$7:$A$159,0),0))","v":2.1298580797536958E-2},{"$f":"IFERROR((VLOOKUP(B7,Funding,Funding!$C$2,FALSE)), \"x\")","v":4732062141.8557806},{"$f":"IFERROR((AA7/VLOOKUP(B7,Funding,Funding!$D$2,FALSE)), \"x\")","v":0.12839675042743456},{"$f":"IFERROR((AA7/(VLOOKUP(B7,Pupils,Pupils!$M$3,FALSE)+VLOOKUP(B7,Pupils,Pupils!$P$3,FALSE))), \"x\")","v":2924.0222338048743},{"$f":"IFERROR((VLOOKUP(B7,Funding,Funding!$E$2,FALSE)), \"x\")","v":4966890211.5861998},{"$f":"IFERROR((AD7/VLOOKUP(B7,Funding,Funding!$F$2,FALSE)), \"x\")","v":0.13047137288559388},{"$f":"IFERROR((AD7/(VLOOKUP(B7,Pupils,Pupils!$R$3,FALSE)+VLOOKUP(B7,Pupils,Pupils!$U$3,FALSE))), \"x\")","v":3213.5468918978268},{"$f":"IFERROR((VLOOKUP(B7,Funding,Funding!$G$2,FALSE)), \"x\")","v":5181282242.1399593},{"$f":"IFERROR((AG7/VLOOKUP(B7,Funding,Funding!$H$2,FALSE)), \"x\")","v":0.13376116473487551},{"$f":"IFERROR((AG7/(VLOOKUP(B7,Pupils,Pupils!$W$3,FALSE)+VLOOKUP(B7,Pupils,Pupils!$Z$3,FALSE))), \"x\")","v":3470.499509119501},{"$f":"IFERROR((VLOOKUP(B7,Funding,Funding!$I$2,FALSE)), \"x\")","v":5245119950.0596228},{"$f":"IFERROR((AJ7/VLOOKUP(B7,Funding,Funding!$J$2,FALSE)), \"x\")","v":0.13239528643322937},null,{"$f":"IFERROR((VLOOKUP($B7,Funding,Funding!$EC$2,FALSE)), \"x\")","v":2966886053.2980008},{"$f":"IFERROR((AM7/VLOOKUP($B7,Funding,Funding!$EU$2,FALSE)), \"x\")","v":7.9931475288838566E-2},{"$f":"IFERROR((AM7/(VLOOKUP($B7,Pupils,Pupils!$D$3,FALSE)+VLOOKUP($B7,Pupils,Pupils!$E$3,FALSE))), \"x\")","v":1773.8115414565907},{"$f":"IFERROR((VLOOKUP($B7,Funding,Funding!$DA$2,FALSE)), \"x\")","v":3128176915.1758313},{"$f":"IFERROR((AP7/VLOOKUP($B7,Funding,Funding!$DT$2,FALSE)), \"x\")","v":8.1003751463615353E-2},{"$f":"IFERROR((AP7/(VLOOKUP($B7,Pupils,Pupils!$G$3,FALSE)+VLOOKUP($B7,Pupils,Pupils!$H$3,FALSE))), \"x\")","v":1834.7293898906917},{"$f":"IFERROR((VLOOKUP($B7,Funding,Funding!$CE$2,FALSE)), \"x\")","v":3198305049.2055202},{"$f":"IFERROR((AS7/VLOOKUP($B7,Funding,Funding!$CR$2,FALSE)), \"x\")","v":8.7921351141126411E-2},{"$f":"IFERROR((AS7/(VLOOKUP($B7,Pupils,Pupils!$J$3,FALSE)+VLOOKUP($B7,Pupils,Pupils!$K$3,FALSE))), \"x\")","v":1910.6963394989054},{"$f":"IFERROR((VLOOKUP($B7,Funding,Funding!$BM$2,FALSE)), \"x\")","v":3458406719.6300001},{"$f":"IFERROR((AV7/VLOOKUP($B7,Funding,Funding!$BY$2,FALSE)), \"x\")","v":0.10218324495572498},{"$f":"IFERROR((AV7/(VLOOKUP($B7,Pupils,Pupils!$M$3,FALSE)+VLOOKUP($B7,Pupils,Pupils!$P$3,FALSE))), \"x\")","v":2137.0087371195177},{"$f":"IFERROR((VLOOKUP($B7,Funding,Funding!$AQ$2,FALSE)), \"x\")","v":4738098262.9899998},{"$f":"IFERROR((AY7/VLOOKUP($B7,Funding,Funding!$BE$2,FALSE)), \"x\")","v":0.12157365260633393},{"$f":"IFERROR((AY7/(VLOOKUP($B7,Pupils,Pupils!$R$3,FALSE)+VLOOKUP($B7,Pupils,Pupils!$U$3,FALSE))), \"x\")","v":3065.5199325767817},{"$f":"IFERROR((VLOOKUP($B7,Funding,Funding!$S$2,FALSE)), \"x\")","v":4691621372.5199995},{"$f":"IFERROR((BB7/VLOOKUP($B7,Funding,Funding!$AH$2,FALSE)), \"x\")","v":0.1184265711019655},{"$f":"IFERROR((BB7/(VLOOKUP(B7,Pupils,Pupils!$W$3,FALSE)+VLOOKUP(B7,Pupils,Pupils!$Z$3,FALSE))), \"x\")","v":3142.5174135235602},{"$f":"IFERROR((VLOOKUP($B7,Funding,Funding!$GX$2,FALSE)), \"x\")","v":5197467462.4343805},{"$f":"IFERROR((BE7/VLOOKUP($B7,Funding,Funding!$HC$2,FALSE)), \"x\")","v":0.12718973343072165},{"$f":"IFERROR((BE7/(VLOOKUP($B7,Pupils,Pupils!$D$3,FALSE)+VLOOKUP($B7,Pupils,Pupils!$E$3,FALSE))), \"x\")","v":3107.4087799775684},{"$f":"IFERROR((VLOOKUP($B7,Funding,Funding!$GP$2,FALSE)), \"x\")","v":5465499699.5800018},{"$f":"IFERROR((BH7/VLOOKUP($B7,Funding,Funding!$GU$2,FALSE)), \"x\")","v":0.13209037683190658},{"$f":"IFERROR((BH7/(VLOOKUP($B7,Pupils,Pupils!$G$3,FALSE)+VLOOKUP($B7,Pupils,Pupils!$H$3,FALSE))), \"x\")","v":3205.6092737627432},{"$f":"IFERROR((VLOOKUP($B7,Funding,Funding!$GH$2,FALSE)), \"x\")","v":5524841161.1999998},{"$f":"IFERROR((BK7/VLOOKUP($B7,Funding,Funding!$GM$2,FALSE)), \"x\")","v":0.14592609673222293},{"$f":"IFERROR((BK7/(VLOOKUP($B7,Pupils,Pupils!$J$3,FALSE)+VLOOKUP($B7,Pupils,Pupils!$K$3,FALSE))), \"x\")","v":3300.5900377263806},{"$f":"IFERROR((VLOOKUP($B7,Funding,Funding!$FZ$2,FALSE)), \"x\")","v":5400081472.1699982},{"$f":"IFERROR((BN7/VLOOKUP($B7,Funding,Funding!$GE$2,FALSE)), \"x\")","v":0.15432028569487416},{"$f":"IFERROR((BN7/(VLOOKUP($B7,Pupils,Pupils!$M$3,FALSE)+VLOOKUP($B7,Pupils,Pupils!$P$3,FALSE))), \"x\")","v":3336.8028178071345},{"$f":"IFERROR((VLOOKUP($B7,Funding,Funding!$FD$2,FALSE)), \"x\")","v":4654499557.1999998},{"$f":"IFERROR((BQ7/VLOOKUP($B7,Funding,Funding!$FR$2,FALSE)), \"x\")","v":0.15193638340882781},{"$f":"IFERROR((BQ7/(VLOOKUP($B7,Pupils,Pupils!$R$3,FALSE)+VLOOKUP($B7,Pupils,Pupils!$U$3,FALSE))), \"x\")","v":3011.4320929600608},{"$f":"(VLOOKUP(B7,Funding,Funding!$HK$2,FALSE)+VLOOKUP(B7,Funding,Funding!$HL$2,FALSE)+VLOOKUP(B7,Funding,Funding!$HM$2,FALSE))/(VLOOKUP(B7,Funding,Funding!$HN$2,FALSE))","v":0.2226645623592575},{"$f":"IFERROR((VLOOKUP(B7,Other_data,Other!$D$3,FALSE)+VLOOKUP(B7,Other_data,Other!$E$3,FALSE)+VLOOKUP(B7,Other_data,Other!$F$3,FALSE)), \"x\")","v":313340},{"$f":"(VLOOKUP(B7,Other_data,Other!$AK$3,FALSE)+VLOOKUP(B7,Other_data,Other!$AL$3,FALSE))/VLOOKUP(B7,Other_data,Other!$AJ$3,FALSE)","v":3.7278758236226624E-2},{"$f":"(VLOOKUP(B7,Other_data,Other!$AR$3,FALSE)+VLOOKUP(B7,Other_data,Other!$AS$3,FALSE))/VLOOKUP(B7,Other_data,Other!$AQ$3,FALSE)","v":5.1808030997963841E-2},{"$f":"VLOOKUP(B7,Other_data,Other!$AP$3,FALSE)/VLOOKUP(B7,Other_data,Other!$AJ$3,FALSE)","v":6.4255966020791231E-3},{"$f":"VLOOKUP(B7,Other_data,Other!$AW$3,FALSE)/VLOOKUP(B7,Other_data,Other!$AQ$3,FALSE)","v":1.1098465266654771E-2}]
[2,301,"Barking and Dagenham",{"$f":"IFERROR((VLOOKUP($B8,Pupils,Pupils!$D$3,FALSE)/VLOOKUP($B8,Pupils,Pupils!$C$3,FALSE)), \"x\")","v":2.368277781138467E-2},{"$f":"IFERROR((VLOOKUP($B8,Pupils,Pupils!$G$3,FALSE)/VLOOKUP($B8,Pupils,Pupils!$F$3,FALSE)),\"x\")","v":2.3708996427411498E-2},{"$f":"IFERROR((VLOOKUP($B8,Pupils,Pupils!$J$3,FALSE)/VLOOKUP($B8,Pupils,Pupils!$I$3,FALSE)), \"x\")","v":2.3007840342124018E-2},{"$f":"IFERROR((VLOOKUP($B8,Pupils,Pupils!$M$3,FALSE)/VLOOKUP($B8,Pupils,Pupils!$L$3,FALSE)), \"x\")","v":2.2389695807070429E-2},{"$f":"IFERROR((VLOOKUP($B8,Pupils,Pupils!$R$3,FALSE)/VLOOKUP($B8,Pupils,Pupils!$Q$3,FALSE)), \"x\")","v":2.2291479583751519E-2},{"$f":"IFERROR((VLOOKUP($B8,Pupils,Pupils!$W$3,FALSE)/VLOOKUP($B8,Pupils,Pupils!$V$3,FALSE)), \"x\")","v":2.2615310003318272E-2},{"$f":"IFERROR(((VLOOKUP($B8,Pupils,Pupils!$D$3,FALSE)+VLOOKUP($B8,Pupils,Pupils!$E$3,FALSE))/VLOOKUP($B8,Pupils,Pupils!$C$3,FALSE)), \"x\")","v":0.25225334220555318},{"$f":"IFERROR(((VLOOKUP($B8,Pupils,Pupils!$G$3,FALSE)+VLOOKUP($B8,Pupils,Pupils!$H$3,FALSE))/VLOOKUP($B8,Pupils,Pupils!$F$3,FALSE)), \"x\")","v":0.26785556113259912},{"$f":"IFERROR(((VLOOKUP($B8,Pupils,Pupils!$J$3,FALSE)+VLOOKUP($B8,Pupils,Pupils!$K$3,FALSE))/VLOOKUP($B8,Pupils,Pupils!$I$3,FALSE)), \"x\")","v":0.20738417676407697},{"$f":"IFERROR(((VLOOKUP($B8,Pupils,Pupils!$M$3,FALSE)+VLOOKUP($B8,Pupils,Pupils!$P$3,FALSE))/VLOOKUP($B8,Pupils,Pupils!$L$3,FALSE)), \"x\")","v":0.21044121677171829},{"$f":"IFERROR(((VLOOKUP($B8,Pupils,Pupils!$R$3,FALSE)+VLOOKUP($B8,Pupils,Pupils!$U$3,FALSE))/VLOOKUP($B8,Pupils,Pupils!$Q$3,FALSE)), \"x\")","v":0.18443294067930907},{"$f":"IFERROR(((VLOOKUP($B8,Pupils,Pupils!$W$3,FALSE)+VLOOKUP($B8,Pupils,Pupils!$Z$3,FALSE))/VLOOKUP($B8,Pupils,Pupils!$V$3,FALSE)), \"x\")","v":0.18127983255481533},{"$f":"(SUM(INDEX(Pupils!$AB$7:$AB$159,MATCH($B8,Pupils!$A$7:$A$159,0)),INDEX(Pupils!$AC$7:$AC$159,MATCH($B8,Pupils!$A$7:$A$159,0)),INDEX(Pupils!$AD$7:$AD$159,MATCH($B8,Pupils!$A$7:$A$159,0)),INDEX(Pupils!$AE$7:$AE$159,MATCH($B8,Pupils!$A$7:$A$159,0))))/SUM(INDEX(Pupils!$AB$7:$AM$159,MATCH($B8,Pupils!$A$7:$A$159,0),0))","v":0.27812500000000001},{"$f":"SUM(INDEX(Pupils!$AF$7:$AF$159,MATCH($B8,Pupils!$A$7:$A$159,0)))/SUM(INDEX(Pupils!$AB$7:$AM$159,MATCH($B8,Pupils!$A$7:$A$159,0),0))","v":0.19593749999999999},{"$f":"SUM(INDEX(Pupils!$AG$7:$AG$159,MATCH($B8,Pupils!$A$7:$A$159,0)))/SUM(INDEX(Pupils!$AB$7:$AM$159,MATCH($B8,Pupils!$A$7:$A$159,0),0))","v":0.35062500000000002},{"$f":"(SUM(INDEX(Pupils!$AH$7:$AH$159,MATCH($B8,Pupils!$A$7:$A$159,0)),INDEX(Pupils!$AI$7:$AI$159,MATCH($B8,Pupils!$A$7:$A$159,0)),INDEX(Pupils!$AJ$7:$AJ$159,MATCH($B8,Pupils!$A$7:$A$159,0))))/SUM(INDEX(Pupils!$AB$7:$AM$159,MATCH($B8,Pupils!$A$7:$A$159,0),0))","v":3.2500000000000001E-2},{"$f":"SUM(INDEX(Pupils!$AK$7:$AK$159,MATCH($B8,Pupils!$A$7:$A$159,0)))/SUM(INDEX(Pupils!$AB$7:$AM$159,MATCH($B8,Pupils!$A$7:$A$159,0),0))","v":2.75E-2},{"$f":"SUM(INDEX(Pupils!$AL$7:$AL$159,MATCH($B8,Pupils!$A$7:$A$159,0)))/SUM(INDEX(Pupils!$AB$7:$AM$159,MATCH($B8,Pupils!$A$7:$A$159,0),0))","v":9.5000000000000001E-2},{"$f":"SUM(INDEX(Pupils!$AM$7:$AM$159,MATCH($B8,Pupils!$A$7:$A$159,0)))/SUM(INDEX(Pupils!$AB$7:$AM$159,MATCH($B8,Pupils!$A$7:$A$159,0),0))","v":2.0312500000000001E-2},{"$f":"(SUM(INDEX(Pupils!$BH$7:$BH$159,MATCH($B8,Pupils!$A$7:$A$159,0)),INDEX(Pupils!$BK$7:$BK$159,MATCH($B8,Pupils!$A$7:$A$159,0)),INDEX(Pupils!$BO$7:$BO$159,MATCH($B8,Pupils!$A$7:$A$159,0))))/SUM(INDEX(Pupils!$BH$7:$BS$159,MATCH($B8,Pupils!$A$7:$A$159,0),0))","v":0.42277227722772276},{"$f":"(SUM(INDEX(Pupils!$BL$7:$BL$159,MATCH($B8,Pupils!$A$7:$A$159,0)),INDEX(Pupils!$BM$7:$BM$159,MATCH($B8,Pupils!$A$7:$A$159,0)),INDEX(Pupils!$BP$7:$BP$159,MATCH($B8,Pupils!$A$7:$A$159,0))))/SUM(INDEX(Pupils!$BH$7:$BS$159,MATCH($B8,Pupils!$A$7:$A$159,0),0))","v":0.38217821782178218},{"$f":"(SUM(INDEX(Pupils!$BI$7:$BI$159,MATCH($B8,Pupils!$A$7:$A$159,0)),INDEX(Pupils!$BJ$7:$BJ$159,MATCH($B8,Pupils!$A$7:$A$159,0))))/SUM(INDEX(Pupils!$BH$7:$BS$159,MATCH($B8,Pupils!$A$7:$A$159,0),0))","v":0.18217821782178217},{"$f":"(SUM(INDEX(Pupils!$BQ$7:$BQ$159,MATCH($B8,Pupils!$A$7:$A$159,0)),INDEX(Pupils!$BR$7:$BR$159,MATCH($B8,Pupils!$A$7:$A$159,0)),INDEX(Pupils!$BN$7:$BN$159,MATCH($B8,Pupils!$A$7:$A$159,0)),INDEX(Pupils!$BS$7:$BS$159,MATCH($B8,Pupils!$A$7:$A$159,0))))/SUM(INDEX(Pupils!$BH$7:$BS$159,MATCH($B8,Pupils!$A$7:$A$159,0),0))","v":1.2871287128712871E-2},{"$f":"IFERROR((VLOOKUP(B8,Funding,Funding!$C$2,FALSE)), \"x\")","v":20805032.460000001},{"$f":"IFERROR((AA8/VLOOKUP(B8,Funding,Funding!$D$2,FALSE)), \"x\")","v":0.10609088919422213},{"$f":"IFERROR((AA8/(VLOOKUP(B8,Pupils,Pupils!$M$3,FALSE)+VLOOKUP(B8,Pupils,Pupils!$P$3,FALSE))), \"x\")","v":2709.3413803880717},{"$f":"IFERROR((VLOOKUP(B8,Funding,Funding!$E$2,FALSE)), \"x\")","v":22732980.346660092},{"$f":"IFERROR((AD8/VLOOKUP(B8,Funding,Funding!$F$2,FALSE)), \"x\")","v":0.10480253207217353},{"$f":"IFERROR((AD8/(VLOOKUP(B8,Pupils,Pupils!$R$3,FALSE)+VLOOKUP(B8,Pupils,Pupils!$U$3,FALSE))), \"x\")","v":3255.4747739739501},{"$f":"IFERROR((VLOOKUP(B8,Funding,Funding!$G$2,FALSE)), \"x\")","v":23901797.996367078},{"$f":"IFERROR((AG8/VLOOKUP(B8,Funding,Funding!$H$2,FALSE)), \"x\")","v":0.10674397179692273},{"$f":"IFERROR((AG8/(VLOOKUP(B8,Pupils,Pupils!$W$3,FALSE)+VLOOKUP(B8,Pupils,Pupils!$Z$3,FALSE))), \"x\")","v":3365.5023931803826},{"$f":"IFERROR((VLOOKUP(B8,Funding,Funding!$I$2,FALSE)), \"x\")","v":24000615.700584278},{"$f":"IFERROR((AJ8/VLOOKUP(B8,Funding,Funding!$J$2,FALSE)), \"x\")","v":0.1048909193041727},null,{"$f":"IFERROR((VLOOKUP($B8,Funding,Funding!$EC$2,FALSE)), \"x\")","v":10280027.669999998},{"$f":"IFERROR((AM8/VLOOKUP($B8,Funding,Funding!$EU$2,FALSE)), \"x\")","v":5.8272513691295713E-2},{"$f":"IFERROR((AM8/(VLOOKUP($B8,Pupils,Pupils!$D$3,FALSE)+VLOOKUP($B8,Pupils,Pupils!$E$3,FALSE))), \"x\")","v":1232.6172266187048},{"$f":"IFERROR((VLOOKUP($B8,Funding,Funding!$DA$2,FALSE)), \"x\")","v":11563435},{"$f":"IFERROR((AP8/VLOOKUP($B8,Funding,Funding!$DT$2,FALSE)), \"x\")","v":5.9813875511880672E-2},{"$f":"IFERROR((AP8/(VLOOKUP($B8,Pupils,Pupils!$G$3,FALSE)+VLOOKUP($B8,Pupils,Pupils!$H$3,FALSE))), \"x\")","v":1274.6290784832452},{"$f":"IFERROR((VLOOKUP($B8,Funding,Funding!$CE$2,FALSE)), \"x\")","v":12064149},{"$f":"IFERROR((AS8/VLOOKUP($B8,Funding,Funding!$CR$2,FALSE)), \"x\")","v":6.1225246039587629E-2},{"$f":"IFERROR((AS8/(VLOOKUP($B8,Pupils,Pupils!$J$3,FALSE)+VLOOKUP($B8,Pupils,Pupils!$K$3,FALSE))), \"x\")","v":1658.5302447071763},{"$f":"IFERROR((VLOOKUP($B8,Funding,Funding!$BM$2,FALSE)), \"x\")","v":14367353.99},{"$f":"IFERROR((AV8/VLOOKUP($B8,Funding,Funding!$BY$2,FALSE)), \"x\")","v":6.5176682194001898E-2},{"$f":"IFERROR((AV8/(VLOOKUP($B8,Pupils,Pupils!$M$3,FALSE)+VLOOKUP($B8,Pupils,Pupils!$P$3,FALSE))), \"x\")","v":1870.9928363068109},{"$f":"IFERROR((VLOOKUP($B8,Funding,Funding!$AQ$2,FALSE)), \"x\")","v":20952212},{"$f":"IFERROR((AY8/VLOOKUP($B8,Funding,Funding!$BE$2,FALSE)), \"x\")","v":8.9831286956848624E-2},{"$f":"IFERROR((AY8/(VLOOKUP($B8,Pupils,Pupils!$R$3,FALSE)+VLOOKUP($B8,Pupils,Pupils!$U$3,FALSE))), \"x\")","v":3000.4599742231135},{"$f":"IFERROR((VLOOKUP($B8,Funding,Funding!$S$2,FALSE)), \"x\")","v":22692803},{"$f":"IFERROR((BB8/VLOOKUP($B8,Funding,Funding!$AH$2,FALSE)), \"x\")","v":9.324226517714912E-2},{"$f":"IFERROR((BB8/(VLOOKUP(B8,Pupils,Pupils!$W$3,FALSE)+VLOOKUP(B8,Pupils,Pupils!$Z$3,FALSE))), \"x\")","v":3195.2693607434526},{"$f":"IFERROR((VLOOKUP($B8,Funding,Funding!$GX$2,FALSE)), \"x\")","v":10899938},{"$f":"IFERROR((BE8/VLOOKUP($B8,Funding,Funding!$HC$2,FALSE)), \"x\")","v":5.6857327249618825E-2},{"$f":"IFERROR((BE8/(VLOOKUP($B8,Pupils,Pupils!$D$3,FALSE)+VLOOKUP($B8,Pupils,Pupils!$E$3,FALSE))), \"x\")","v":1306.9470023980816},{"$f":"IFERROR((VLOOKUP($B8,Funding,Funding!$GP$2,FALSE)), \"x\")","v":18714851.02},{"$f":"IFERROR((BH8/VLOOKUP($B8,Funding,Funding!$GU$2,FALSE)), \"x\")","v":8.9214540532116776E-2},{"$f":"IFERROR((BH8/(VLOOKUP($B8,Pupils,Pupils!$G$3,FALSE)+VLOOKUP($B8,Pupils,Pupils!$H$3,FALSE))), \"x\")","v":2062.9244951499118},{"$f":"IFERROR((VLOOKUP($B8,Funding,Funding!$GH$2,FALSE)), \"x\")","v":17940348.960000001},{"$f":"IFERROR((BK8/VLOOKUP($B8,Funding,Funding!$GM$2,FALSE)), \"x\")","v":8.0786172298679487E-2},{"$f":"IFERROR((BK8/(VLOOKUP($B8,Pupils,Pupils!$J$3,FALSE)+VLOOKUP($B8,Pupils,Pupils!$K$3,FALSE))), \"x\")","v":2466.3663678856201},{"$f":"IFERROR((VLOOKUP($B8,Funding,Funding!$FZ$2,FALSE)), \"x\")","v":20709336.390000001},{"$f":"IFERROR((BN8/VLOOKUP($B8,Funding,Funding!$GE$2,FALSE)), \"x\")","v":8.8452333470417283E-2},{"$f":"IFERROR((BN8/(VLOOKUP($B8,Pupils,Pupils!$M$3,FALSE)+VLOOKUP($B8,Pupils,Pupils!$P$3,FALSE))), \"x\")","v":2696.8793319442639},{"$f":"IFERROR((VLOOKUP($B8,Funding,Funding!$FD$2,FALSE)), \"x\")","v":18673810},{"$f":"IFERROR((BQ8/VLOOKUP($B8,Funding,Funding!$FR$2,FALSE)), \"x\")","v":8.3182817777622126E-2},{"$f":"IFERROR((BQ8/(VLOOKUP($B8,Pupils,Pupils!$R$3,FALSE)+VLOOKUP($B8,Pupils,Pupils!$U$3,FALSE))), \"x\")","v":2674.1815838464845},{"$f":"(VLOOKUP(B8,Funding,Funding!$HK$2,FALSE)+VLOOKUP(B8,Funding,Funding!$HL$2,FALSE)+VLOOKUP(B8,Funding,Funding!$HM$2,FALSE))/(VLOOKUP(B8,Funding,Funding!$HN$2,FALSE))","v":0.20022246941045607},{"$f":"IFERROR((VLOOKUP(B8,Other_data,Other!$D$3,FALSE)+VLOOKUP(B8,Other_data,Other!$E$3,FALSE)+VLOOKUP(B8,Other_data,Other!$F$3,FALSE)), \"x\")","v":1470},{"$f":"(VLOOKUP(B8,Other_data,Other!$AK$3,FALSE)+VLOOKUP(B8,Other_data,Other!$AL$3,FALSE))/VLOOKUP(B8,Other_data,Other!$AJ$3,FALSE)","v":3.7236466056413869E-2},{"$f":"(VLOOKUP(B8,Other_data,Other!$AR$3,FALSE)+VLOOKUP(B8,Other_data,Other!$AS$3,FALSE))/VLOOKUP(B8,Other_data,Other!$AQ$3,FALSE)","v":5.5124291321412999E-2},{"$f":"VLOOKUP(B8,Other_data,Other!$AP$3,FALSE)/VLOOKUP(B8,Other_data,Other!$AJ$3,FALSE)","v":8.6567535103342589E-3},{"$f":"VLOOKUP(B8,Other_data,Other!$AW$3,FALSE)/VLOOKUP(B8,Other_data,Other!$AQ$3,FALSE)","v":1.6572176188399478E-2}]
[3,302,"Barnet",{"$f":"IFERROR((VLOOKUP($B9,Pupils,Pupils!$D$3,FALSE)/VLOOKUP($B9,Pupils,Pupils!$C$3,FALSE)), \"x\")","v":2.6200873362445413E-2},{"$f":"IFERROR((VLOOKUP($B9,Pupils,Pupils!$G$3,FALSE)/VLOOKUP($B9,Pupils,Pupils!$F$3,FALSE)),\"x\")","v":2.5221128911939186E-2},{"$f":"IFERROR((VLOOKUP($B9,Pupils,Pupils!$J$3,FALSE)/VLOOKUP($B9,Pupils,Pupils!$I$3,FALSE)), \"x\")","v":2.623421656363286E-2},{"$f":"IFERROR((VLOOKUP($B9,Pupils,Pupils!$M$3,FALSE)/VLOOKUP($B9,Pupils,Pupils!$L$3,FALSE)), \"x\")","v":2.6520106692037172E-2},{"$f":"IFERROR((VLOOKUP($B9,Pupils,Pupils!$R$3,FALSE)/VLOOKUP($B9,Pupils,Pupils!$Q$3,FALSE)), \"x\")","v":2.7180710033517318E-2},{"$f":"IFERROR((VLOOKUP($B9,Pupils,Pupils!$W$3,FALSE)/VLOOKUP($B9,Pupils,Pupils!$V$3,FALSE)), \"x\")","v":2.7104649075569916E-2},{"$f":"IFERROR(((VLOOKUP($B9,Pupils,Pupils!$D$3,FALSE)+VLOOKUP($B9,Pupils,Pupils!$E$3,FALSE))/VLOOKUP($B9,Pupils,Pupils!$C$3,FALSE)), \"x\")","v":0.2071450392653692},{"$f":"IFERROR(((VLOOKUP($B9,Pupils,Pupils!$G$3,FALSE)+VLOOKUP($B9,Pupils,Pupils!$H$3,FALSE))/VLOOKUP($B9,Pupils,Pupils!$F$3,FALSE)), \"x\")","v":0.21695499271784305},{"$f":"IFERROR(((VLOOKUP($B9,Pupils,Pupils!$J$3,FALSE)+VLOOKUP($B9,Pupils,Pupils!$K$3,FALSE))/VLOOKUP($B9,Pupils,Pupils!$I$3,FALSE)), \"x\")","v":0.22321850755678535},{"$f":"IFERROR(((VLOOKUP($B9,Pupils,Pupils!$M$3,FALSE)+VLOOKUP($B9,Pupils,Pupils!$P$3,FALSE))/VLOOKUP($B9,Pupils,Pupils!$L$3,FALSE)), \"x\")","v":0.21560965664871476},{"$f":"IFERROR(((VLOOKUP($B9,Pupils,Pupils!$R$3,FALSE)+VLOOKUP($B9,Pupils,Pupils!$U$3,FALSE))/VLOOKUP($B9,Pupils,Pupils!$Q$3,FALSE)), \"x\")","v":0.20717370641498106},{"$f":"IFERROR(((VLOOKUP($B9,Pupils,Pupils!$W$3,FALSE)+VLOOKUP($B9,Pupils,Pupils!$Z$3,FALSE))/VLOOKUP($B9,Pupils,Pupils!$V$3,FALSE)), \"x\")","v":0.19204973809174133},{"$f":"(SUM(INDEX(Pupils!$AB$7:$AB$159,MATCH($B9,Pupils!$A$7:$A$159,0)),INDEX(Pupils!$AC$7:$AC$159,MATCH($B9,Pupils!$A$7:$A$159,0)),INDEX(Pupils!$AD$7:$AD$159,MATCH($B9,Pupils!$A$7:$A$159,0)),INDEX(Pupils!$AE$7:$AE$159,MATCH($B9,Pupils!$A$7:$A$159,0))))/SUM(INDEX(Pupils!$AB$7:$AM$159,MATCH($B9,Pupils!$A$7:$A$159,0),0))","v":0.2159709618874773},{"$f":"SUM(INDEX(Pupils!$AF$7:$AF$159,MATCH($B9,Pupils!$A$7:$A$159,0)))/SUM(INDEX(Pupils!$AB$7:$AM$159,MATCH($B9,Pupils!$A$7:$A$159,0),0))","v":0.25831820931639443},{"$f":"SUM(INDEX(Pupils!$AG$7:$AG$159,MATCH($B9,Pupils!$A$7:$A$159,0)))/SUM(INDEX(Pupils!$AB$7:$AM$159,MATCH($B9,Pupils!$A$7:$A$159,0),0))","v":0.23452308933252672},{"$f":"(SUM(INDEX(Pupils!$AH$7:$AH$159,MATCH($B9,Pupils!$A$7:$A$159,0)),INDEX(Pupils!$AI$7:$AI$159,MATCH($B9,Pupils!$A$7:$A$159,0)),INDEX(Pupils!$AJ$7:$AJ$159,MATCH($B9,Pupils!$A$7:$A$159,0))))/SUM(INDEX(Pupils!$AB$7:$AM$159,MATCH($B9,Pupils!$A$7:$A$159,0),0))","v":3.0651340996168581E-2},{"$f":"SUM(INDEX(Pupils!$AK$7:$AK$159,MATCH($B9,Pupils!$A$7:$A$159,0)))/SUM(INDEX(Pupils!$AB$7:$AM$159,MATCH($B9,Pupils!$A$7:$A$159,0),0))","v":6.1302681992337162E-2},{"$f":"SUM(INDEX(Pupils!$AL$7:$AL$159,MATCH($B9,Pupils!$A$7:$A$159,0)))/SUM(INDEX(Pupils!$AB$7:$AM$159,MATCH($B9,Pupils!$A$7:$A$159,0),0))","v":0.13087315991127244},{"$f":"SUM(INDEX(Pupils!$AM$7:$AM$159,MATCH($B9,Pupils!$A$7:$A$159,0)))/SUM(INDEX(Pupils!$AB$7:$AM$159,MATCH($B9,Pupils!$A$7:$A$159,0),0))","v":6.8360556563823352E-2},{"$f":"(SUM(INDEX(Pupils!$BH$7:$BH$159,MATCH($B9,Pupils!$A$7:$A$159,0)),INDEX(Pupils!$BK$7:$BK$159,MATCH($B9,Pupils!$A$7:$A$159,0)),INDEX(Pupils!$BO$7:$BO$159,MATCH($B9,Pupils!$A$7:$A$159,0))))/SUM(INDEX(Pupils!$BH$7:$BS$159,MATCH($B9,Pupils!$A$7:$A$159,0),0))","v":0.60940220545560064},{"$f":"(SUM(INDEX(Pupils!$BL$7:$BL$159,MATCH($B9,Pupils!$A$7:$A$159,0)),INDEX(Pupils!$BM$7:$BM$159,MATCH($B9,Pupils!$A$7:$A$159,0)),INDEX(Pupils!$BP$7:$BP$159,MATCH($B9,Pupils!$A$7:$A$159,0))))/SUM(INDEX(Pupils!$BH$7:$BS$159,MATCH($B9,Pupils!$A$7:$A$159,0),0))","v":0.3343006384213581},{"$f":"(SUM(INDEX(Pupils!$BI$7:$BI$159,MATCH($B9,Pupils!$A$7:$A$159,0)),INDEX(Pupils!$BJ$7:$BJ$159,MATCH($B9,Pupils!$A$7:$A$159,0))))/SUM(INDEX(Pupils!$BH$7:$BS$159,MATCH($B9,Pupils!$A$7:$A$159,0),0))","v":5.2814857806152062E-2},{"$f":"(SUM(INDEX(Pupils!$BQ$7:$BQ$159,MATCH($B9,Pupils!$A$7:$A$159,0)),INDEX(Pupils!$BR$7:$BR$159,MATCH($B9,Pupils!$A$7:$A$159,0)),INDEX(Pupils!$BN$7:$BN$159,MATCH($B9,Pupils!$A$7:$A$159,0)),INDEX(Pupils!$BS$7:$BS$159,MATCH($B9,Pupils!$A$7:$A$159,0))))/SUM(INDEX(Pupils!$BH$7:$BS$159,MATCH($B9,Pupils!$A$7:$A$159,0),0))","v":3.4822983168891469E-3},{"$f":"IFERROR((VLOOKUP(B9,Funding,Funding!$C$2,FALSE)), \"x\")","v":36076258},{"$f":"IFERROR((AA9/VLOOKUP(B9,Funding,Funding!$D$2,FALSE)), \"x\")","v":0.13994883436061273},{"$f":"IFERROR((AA9/(VLOOKUP(B9,Pupils,Pupils!$M$3,FALSE)+VLOOKUP(B9,Pupils,Pupils!$P$3,FALSE))), \"x\")","v":2842.66472303207},{"$f":"IFERROR((VLOOKUP(B9,Funding,Funding!$E$2,FALSE)), \"x\")","v":39038520.573813915},{"$f":"IFERROR((AD9/VLOOKUP(B9,Funding,Funding!$F$2,FALSE)), \"x\")","v":0.14419435924458543},{"$f":"IFERROR((AD9/(VLOOKUP(B9,Pupils,Pupils!$R$3,FALSE)+VLOOKUP(B9,Pupils,Pupils!$U$3,FALSE))), \"x\")","v":3142.186137621854},{"$f":"IFERROR((VLOOKUP(B9,Funding,Funding!$G$2,FALSE)), \"x\")","v":41300318.098555773},{"$f":"IFERROR((AG9/VLOOKUP(B9,Funding,Funding!$H$2,FALSE)), \"x\")","v":0.14856790503172185},{"$f":"IFERROR((AG9/(VLOOKUP(B9,Pupils,Pupils!$W$3,FALSE)+VLOOKUP(B9,Pupils,Pupils!$Z$3,FALSE))), \"x\")","v":3509.2461635275531},{"$f":"IFERROR((VLOOKUP(B9,Funding,Funding!$I$2,FALSE)), \"x\")","v":41671178.089689992},{"$f":"IFERROR((AJ9/VLOOKUP(B9,Funding,Funding!$J$2,FALSE)), \"x\")","v":0.14182311950885729},null,{"$f":"IFERROR((VLOOKUP($B9,Funding,Funding!$EC$2,FALSE)), \"x\")","v":18240813.640000001},{"$f":"IFERROR((AM9/VLOOKUP($B9,Funding,Funding!$EU$2,FALSE)), \"x\")","v":7.0998761071222355E-2},{"$f":"IFERROR((AM9/(VLOOKUP($B9,Pupils,Pupils!$D$3,FALSE)+VLOOKUP($B9,Pupils,Pupils!$E$3,FALSE))), \"x\")","v":1582.4424082588705},{"$f":"IFERROR((VLOOKUP($B9,Funding,Funding!$DA$2,FALSE)), \"x\")","v":19009702.168819997},{"$f":"IFERROR((AP9/VLOOKUP($B9,Funding,Funding!$DT$2,FALSE)), \"x\")","v":7.0220786553783859E-2},{"$f":"IFERROR((AP9/(VLOOKUP($B9,Pupils,Pupils!$G$3,FALSE)+VLOOKUP($B9,Pupils,Pupils!$H$3,FALSE))), \"x\")","v":1556.2588758755626},{"$f":"IFERROR((VLOOKUP($B9,Funding,Funding!$CE$2,FALSE)), \"x\")","v":21543498.149999999},{"$f":"IFERROR((AS9/VLOOKUP($B9,Funding,Funding!$CR$2,FALSE)), \"x\")","v":8.8420277566598399E-2},{"$f":"IFERROR((AS9/(VLOOKUP($B9,Pupils,Pupils!$J$3,FALSE)+VLOOKUP($B9,Pupils,Pupils!$K$3,FALSE))), \"x\")","v":1690.2163933783147},{"$f":"IFERROR((VLOOKUP($B9,Funding,Funding!$BM$2,FALSE)), \"x\")","v":23964842.969999999},{"$f":"IFERROR((AV9/VLOOKUP($B9,Funding,Funding!$BY$2,FALSE)), \"x\")","v":0.109036214755109},{"$f":"IFERROR((AV9/(VLOOKUP($B9,Pupils,Pupils!$M$3,FALSE)+VLOOKUP($B9,Pupils,Pupils!$P$3,FALSE))), \"x\")","v":1888.3336986841068},{"$f":"IFERROR((VLOOKUP($B9,Funding,Funding!$AQ$2,FALSE)), \"x\")","v":38783245},{"$f":"IFERROR((AY9/VLOOKUP($B9,Funding,Funding!$BE$2,FALSE)), \"x\")","v":0.14008005920491468},{"$f":"IFERROR((AY9/(VLOOKUP($B9,Pupils,Pupils!$R$3,FALSE)+VLOOKUP($B9,Pupils,Pupils!$U$3,FALSE))), \"x\")","v":3121.6391661300709},{"$f":"IFERROR((VLOOKUP($B9,Funding,Funding!$S$2,FALSE)), \"x\")","v":42706435.909999996},{"$f":"IFERROR((BB9/VLOOKUP($B9,Funding,Funding!$AH$2,FALSE)), \"x\")","v":0.14863571640934312},{"$f":"IFERROR((BB9/(VLOOKUP(B9,Pupils,Pupils!$W$3,FALSE)+VLOOKUP(B9,Pupils,Pupils!$Z$3,FALSE))), \"x\")","v":3628.7225686124561},{"$f":"IFERROR((VLOOKUP($B9,Funding,Funding!$GX$2,FALSE)), \"x\")","v":43158521.009999998},{"$f":"IFERROR((BE9/VLOOKUP($B9,Funding,Funding!$HC$2,FALSE)), \"x\")","v":0.15256970738955683},{"$f":"IFERROR((BE9/(VLOOKUP($B9,Pupils,Pupils!$D$3,FALSE)+VLOOKUP($B9,Pupils,Pupils!$E$3,FALSE))), \"x\")","v":3744.1243176889043},{"$f":"IFERROR((VLOOKUP($B9,Funding,Funding!$GP$2,FALSE)), \"x\")","v":43472207.829999998},{"$f":"IFERROR((BH9/VLOOKUP($B9,Funding,Funding!$GU$2,FALSE)), \"x\")","v":0.15185783180371445},{"$f":"IFERROR((BH9/(VLOOKUP($B9,Pupils,Pupils!$G$3,FALSE)+VLOOKUP($B9,Pupils,Pupils!$H$3,FALSE))), \"x\")","v":3558.9200024559964},{"$f":"IFERROR((VLOOKUP($B9,Funding,Funding!$GH$2,FALSE)), \"x\")","v":41627765.039999999},{"$f":"IFERROR((BK9/VLOOKUP($B9,Funding,Funding!$GM$2,FALSE)), \"x\")","v":0.16405282502690866},{"$f":"IFERROR((BK9/(VLOOKUP($B9,Pupils,Pupils!$J$3,FALSE)+VLOOKUP($B9,Pupils,Pupils!$K$3,FALSE))), \"x\")","v":3265.9473591715046},{"$f":"IFERROR((VLOOKUP($B9,Funding,Funding!$FZ$2,FALSE)), \"x\")","v":45159627.240000002},{"$f":"IFERROR((BN9/VLOOKUP($B9,Funding,Funding!$GE$2,FALSE)), \"x\")","v":0.19258310237365028},{"$f":"IFERROR((BN9/(VLOOKUP($B9,Pupils,Pupils!$M$3,FALSE)+VLOOKUP($B9,Pupils,Pupils!$P$3,FALSE))), \"x\")","v":3558.3978599007173},{"$f":"IFERROR((VLOOKUP($B9,Funding,Funding!$FD$2,FALSE)), \"x\")","v":38319171},{"$f":"IFERROR((BQ9/VLOOKUP($B9,Funding,Funding!$FR$2,FALSE)), \"x\")","v":0.18560456380884383},{"$f":"IFERROR((BQ9/(VLOOKUP($B9,Pupils,Pupils!$R$3,FALSE)+VLOOKUP($B9,Pupils,Pupils!$U$3,FALSE))), \"x\")","v":3084.2861397295555},{"$f":"(VLOOKUP(B9,Funding,Funding!$HK$2,FALSE)+VLOOKUP(B9,Funding,Funding!$HL$2,FALSE)+VLOOKUP(B9,Funding,Funding!$HM$2,FALSE))/(VLOOKUP(B9,Funding,Funding!$HN$2,FALSE))","v":0.291866028708134},{"$f":"IFERROR((VLOOKUP(B9,Other_data,Other!$D$3,FALSE)+VLOOKUP(B9,Other_data,Other!$E$3,FALSE)+VLOOKUP(B9,Other_data,Other!$F$3,FALSE)), \"x\")","v":1670},{"$f":"(VLOOKUP(B9,Other_data,Other!$AK$3,FALSE)+VLOOKUP(B9,Other_data,Other!$AL$3,FALSE))/VLOOKUP(B9,Other_data,Other!$AJ$3,FALSE)","v":2.9558841368899191E-2},{"$f":"(VLOOKUP(B9,Other_data,Other!$AR$3,FALSE)+VLOOKUP(B9,Other_data,Other!$AS$3,FALSE))/VLOOKUP(B9,Other_data,Other!$AQ$3,FALSE)","v":4.5732713745207078E-2},{"$f":"VLOOKUP(B9,Other_data,Other!$AP$3,FALSE)/VLOOKUP(B9,Other_data,Other!$AJ$3,FALSE)","v":6.8741491555579515E-3},{"$f":"VLOOKUP(B9,Other_data,Other!$AW$3,FALSE)/VLOOKUP(B9,Other_data,Other!$AQ$3,FALSE)","v":1.168075975724334E-2}]
[4,370,"Barnsley",{"$f":"IFERROR((VLOOKUP($B10,Pupils,Pupils!$D$3,FALSE)/VLOOKUP($B10,Pupils,Pupils!$C$3,FALSE)), \"x\")","v":3.1669691470054447E-2},{"$f":"IFERROR((VLOOKUP($B10,Pupils,Pupils!$G$3,FALSE)/VLOOKUP($B10,Pupils,Pupils!$F$3,FALSE)),\"x\")","v":3.2761310452418098E-2},{"$f":"IFERROR((VLOOKUP($B10,Pupils,Pupils!$J$3,FALSE)/VLOOKUP($B10,Pupils,Pupils!$I$3,FALSE)), \"x\")","v":3.4590128556894903E-2},{"$f":"IFERROR((VLOOKUP($B10,Pupils,Pupils!$M$3,FALSE)/VLOOKUP($B10,Pupils,Pupils!$L$3,FALSE)), \"x\")","v":3.5753914437184071E-2},{"$f":"IFERROR((VLOOKUP($B10,Pupils,Pupils!$R$3,FALSE)/VLOOKUP($B10,Pupils,Pupils!$Q$3,FALSE)), \"x\")","v":3.6374807987711213E-2},{"$f":"IFERROR((VLOOKUP($B10,Pupils,Pupils!$W$3,FALSE)/VLOOKUP($B10,Pupils,Pupils!$V$3,FALSE)), \"x\")","v":3.7035901523745286E-2},{"$f":"IFERROR(((VLOOKUP($B10,Pupils,Pupils!$D$3,FALSE)+VLOOKUP($B10,Pupils,Pupils!$E$3,FALSE))/VLOOKUP($B10,Pupils,Pupils!$C$3,FALSE)), \"x\")","v":0.22298850574712645},{"$f":"IFERROR(((VLOOKUP($B10,Pupils,Pupils!$G$3,FALSE)+VLOOKUP($B10,Pupils,Pupils!$H$3,FALSE))/VLOOKUP($B10,Pupils,Pupils!$F$3,FALSE)), \"x\")","v":0.23333639227922057},{"$f":"IFERROR(((VLOOKUP($B10,Pupils,Pupils!$J$3,FALSE)+VLOOKUP($B10,Pupils,Pupils!$K$3,FALSE))/VLOOKUP($B10,Pupils,Pupils!$I$3,FALSE)), \"x\")","v":0.23510188981718408},{"$f":"IFERROR(((VLOOKUP($B10,Pupils,Pupils!$M$3,FALSE)+VLOOKUP($B10,Pupils,Pupils!$P$3,FALSE))/VLOOKUP($B10,Pupils,Pupils!$L$3,FALSE)), \"x\")","v":0.22090371100973985},{"$f":"IFERROR(((VLOOKUP($B10,Pupils,Pupils!$R$3,FALSE)+VLOOKUP($B10,Pupils,Pupils!$U$3,FALSE))/VLOOKUP($B10,Pupils,Pupils!$Q$3,FALSE)), \"x\")","v":0.20184331797235022},{"$f":"IFERROR(((VLOOKUP($B10,Pupils,Pupils!$W$3,FALSE)+VLOOKUP($B10,Pupils,Pupils!$Z$3,FALSE))/VLOOKUP($B10,Pupils,Pupils!$V$3,FALSE)), \"x\")","v":0.1915872091240764},{"$f":"(SUM(INDEX(Pupils!$AB$7:$AB$159,MATCH($B10,Pupils!$A$7:$A$159,0)),INDEX(Pupils!$AC$7:$AC$159,MATCH($B10,Pupils!$A$7:$A$159,0)),INDEX(Pupils!$AD$7:$AD$159,MATCH($B10,Pupils!$A$7:$A$159,0)),INDEX(Pupils!$AE$7:$AE$159,MATCH($B10,Pupils!$A$7:$A$159,0))))/SUM(INDEX(Pupils!$AB$7:$AM$159,MATCH($B10,Pupils!$A$7:$A$159,0),0))","v":0.35933959210100358},{"$f":"SUM(INDEX(Pupils!$AF$7:$AF$159,MATCH($B10,Pupils!$A$7:$A$159,0)))/SUM(INDEX(Pupils!$AB$7:$AM$159,MATCH($B10,Pupils!$A$7:$A$159,0),0))","v":0.25089025574619617},{"$f":"SUM(INDEX(Pupils!$AG$7:$AG$159,MATCH($B10,Pupils!$A$7:$A$159,0)))/SUM(INDEX(Pupils!$AB$7:$AM$159,MATCH($B10,Pupils!$A$7:$A$159,0),0))","v":0.1958562641631596},{"$f":"(SUM(INDEX(Pupils!$AH$7:$AH$159,MATCH($B10,Pupils!$A$7:$A$159,0)),INDEX(Pupils!$AI$7:$AI$159,MATCH($B10,Pupils!$A$7:$A$159,0)),INDEX(Pupils!$AJ$7:$AJ$159,MATCH($B10,Pupils!$A$7:$A$159,0))))/SUM(INDEX(Pupils!$AB$7:$AM$159,MATCH($B10,Pupils!$A$7:$A$159,0),0))","v":3.8847523470378766E-2},{"$f":"SUM(INDEX(Pupils!$AK$7:$AK$159,MATCH($B10,Pupils!$A$7:$A$159,0)))/SUM(INDEX(Pupils!$AB$7:$AM$159,MATCH($B10,Pupils!$A$7:$A$159,0),0))","v":3.463904176108773E-2},{"$f":"SUM(INDEX(Pupils!$AL$7:$AL$159,MATCH($B10,Pupils!$A$7:$A$159,0)))/SUM(INDEX(Pupils!$AB$7:$AM$159,MATCH($B10,Pupils!$A$7:$A$159,0),0))","v":8.0608611201035935E-2},{"$f":"SUM(INDEX(Pupils!$AM$7:$AM$159,MATCH($B10,Pupils!$A$7:$A$159,0)))/SUM(INDEX(Pupils!$AB$7:$AM$159,MATCH($B10,Pupils!$A$7:$A$159,0),0))","v":3.9818711557138231E-2},{"$f":"(SUM(INDEX(Pupils!$BH$7:$BH$159,MATCH($B10,Pupils!$A$7:$A$159,0)),INDEX(Pupils!$BK$7:$BK$159,MATCH($B10,Pupils!$A$7:$A$159,0)),INDEX(Pupils!$BO$7:$BO$159,MATCH($B10,Pupils!$A$7:$A$159,0))))/SUM(INDEX(Pupils!$BH$7:$BS$159,MATCH($B10,Pupils!$A$7:$A$159,0),0))","v":0.60598896769109534},{"$f":"(SUM(INDEX(Pupils!$BL$7:$BL$159,MATCH($B10,Pupils!$A$7:$A$159,0)),INDEX(Pupils!$BM$7:$BM$159,MATCH($B10,Pupils!$A$7:$A$159,0)),INDEX(Pupils!$BP$7:$BP$159,MATCH($B10,Pupils!$A$7:$A$159,0))))/SUM(INDEX(Pupils!$BH$7:$BS$159,MATCH($B10,Pupils!$A$7:$A$159,0),0))","v":0.3207249802994484},{"$f":"(SUM(INDEX(Pupils!$BI$7:$BI$159,MATCH($B10,Pupils!$A$7:$A$159,0)),INDEX(Pupils!$BJ$7:$BJ$159,MATCH($B10,Pupils!$A$7:$A$159,0))))/SUM(INDEX(Pupils!$BH$7:$BS$159,MATCH($B10,Pupils!$A$7:$A$159,0),0))","v":5.988967691095351E-2},{"$f":"(SUM(INDEX(Pupils!$BQ$7:$BQ$159,MATCH($B10,Pupils!$A$7:$A$159,0)),INDEX(Pupils!$BR$7:$BR$159,MATCH($B10,Pupils!$A$7:$A$159,0)),INDEX(Pupils!$BN$7:$BN$159,MATCH($B10,Pupils!$A$7:$A$159,0)),INDEX(Pupils!$BS$7:$BS$159,MATCH($B10,Pupils!$A$7:$A$159,0))))/SUM(INDEX(Pupils!$BH$7:$BS$159,MATCH($B10,Pupils!$A$7:$A$159,0),0))","v":1.3396375098502758E-2},{"$f":"IFERROR((VLOOKUP(B10,Funding,Funding!$C$2,FALSE)), \"x\")","v":16086950.000000002},{"$f":"IFERROR((AA10/VLOOKUP(B10,Funding,Funding!$D$2,FALSE)), \"x\")","v":0.10600273112131385},{"$f":"IFERROR((AA10/(VLOOKUP(B10,Pupils,Pupils!$M$3,FALSE)+VLOOKUP(B10,Pupils,Pupils!$P$3,FALSE))), \"x\")","v":2244.5862983117067},{"$f":"IFERROR((VLOOKUP(B10,Funding,Funding!$E$2,FALSE)), \"x\")","v":17433538.427922953},{"$f":"IFERROR((AD10/VLOOKUP(B10,Funding,Funding!$F$2,FALSE)), \"x\")","v":0.11213481427432849},{"$f":"IFERROR((AD10/(VLOOKUP(B10,Pupils,Pupils!$R$3,FALSE)+VLOOKUP(B10,Pupils,Pupils!$U$3,FALSE))), \"x\")","v":2653.506610033935},{"$f":"IFERROR((VLOOKUP(B10,Funding,Funding!$G$2,FALSE)), \"x\")","v":18378605.237461243},{"$f":"IFERROR((AG10/VLOOKUP(B10,Funding,Funding!$H$2,FALSE)), \"x\")","v":0.11655398115884352},{"$f":"IFERROR((AG10/(VLOOKUP(B10,Pupils,Pupils!$W$3,FALSE)+VLOOKUP(B10,Pupils,Pupils!$Z$3,FALSE))), \"x\")","v":2941.0474055786913},{"$f":"IFERROR((VLOOKUP(B10,Funding,Funding!$I$2,FALSE)), \"x\")","v":18601254.550560497},{"$f":"IFERROR((AJ10/VLOOKUP(B10,Funding,Funding!$J$2,FALSE)), \"x\")","v":0.11659231514507554},null,{"$f":"IFERROR((VLOOKUP($B10,Funding,Funding!$EC$2,FALSE)), \"x\")","v":10377752},{"$f":"IFERROR((AM10/VLOOKUP($B10,Funding,Funding!$EU$2,FALSE)), \"x\")","v":6.8029136622368744E-2},{"$f":"IFERROR((AM10/(VLOOKUP($B10,Pupils,Pupils!$D$3,FALSE)+VLOOKUP($B10,Pupils,Pupils!$E$3,FALSE))), \"x\")","v":1407.7254476397179},{"$f":"IFERROR((VLOOKUP($B10,Funding,Funding!$DA$2,FALSE)), \"x\")","v":10542990.424529999},{"$f":"IFERROR((AP10/VLOOKUP($B10,Funding,Funding!$DT$2,FALSE)), \"x\")","v":6.6821685320118951E-2},{"$f":"IFERROR((AP10/(VLOOKUP($B10,Pupils,Pupils!$G$3,FALSE)+VLOOKUP($B10,Pupils,Pupils!$H$3,FALSE))), \"x\")","v":1382.1434746368641},{"$f":"IFERROR((VLOOKUP($B10,Funding,Funding!$CE$2,FALSE)), \"x\")","v":11090754.35},{"$f":"IFERROR((AS10/VLOOKUP($B10,Funding,Funding!$CR$2,FALSE)), \"x\")","v":7.0081015853111633E-2},{"$f":"IFERROR((AS10/(VLOOKUP($B10,Pupils,Pupils!$J$3,FALSE)+VLOOKUP($B10,Pupils,Pupils!$K$3,FALSE))), \"x\")","v":1454.3344282717021},{"$f":"IFERROR((VLOOKUP($B10,Funding,Funding!$BM$2,FALSE)), \"x\")","v":10960901.76},{"$f":"IFERROR((AV10/VLOOKUP($B10,Funding,Funding!$BY$2,FALSE)), \"x\")","v":6.910394647266474E-2},{"$f":"IFERROR((AV10/(VLOOKUP($B10,Pupils,Pupils!$M$3,FALSE)+VLOOKUP($B10,Pupils,Pupils!$P$3,FALSE))), \"x\")","v":1529.3570196735036},{"$f":"IFERROR((VLOOKUP($B10,Funding,Funding!$AQ$2,FALSE)), \"x\")","v":17731701},{"$f":"IFERROR((AY10/VLOOKUP($B10,Funding,Funding!$BE$2,FALSE)), \"x\")","v":0.11249776596301507},{"$f":"IFERROR((AY10/(VLOOKUP($B10,Pupils,Pupils!$R$3,FALSE)+VLOOKUP($B10,Pupils,Pupils!$U$3,FALSE))), \"x\")","v":2698.8890410958902},{"$f":"IFERROR((VLOOKUP($B10,Funding,Funding!$S$2,FALSE)), \"x\")","v":16290858},{"$f":"IFERROR((BB10/VLOOKUP($B10,Funding,Funding!$AH$2,FALSE)), \"x\")","v":0.10286295461918518},{"$f":"IFERROR((BB10/(VLOOKUP(B10,Pupils,Pupils!$W$3,FALSE)+VLOOKUP(B10,Pupils,Pupils!$Z$3,FALSE))), \"x\")","v":2606.9543927028326},{"$f":"IFERROR((VLOOKUP($B10,Funding,Funding!$GX$2,FALSE)), \"x\")","v":17300020},{"$f":"IFERROR((BE10/VLOOKUP($B10,Funding,Funding!$HC$2,FALSE)), \"x\")","v":0.10747011693064012},{"$f":"IFERROR((BE10/(VLOOKUP($B10,Pupils,Pupils!$D$3,FALSE)+VLOOKUP($B10,Pupils,Pupils!$E$3,FALSE))), \"x\")","v":2346.7200217037439},{"$f":"IFERROR((VLOOKUP($B10,Funding,Funding!$GP$2,FALSE)), \"x\")","v":16628053},{"$f":"IFERROR((BH10/VLOOKUP($B10,Funding,Funding!$GU$2,FALSE)), \"x\")","v":0.10116359113517982},{"$f":"IFERROR((BH10/(VLOOKUP($B10,Pupils,Pupils!$G$3,FALSE)+VLOOKUP($B10,Pupils,Pupils!$H$3,FALSE))), \"x\")","v":2179.870608285265},{"$f":"IFERROR((VLOOKUP($B10,Funding,Funding!$GH$2,FALSE)), \"x\")","v":17396350.34},{"$f":"IFERROR((BK10/VLOOKUP($B10,Funding,Funding!$GM$2,FALSE)), \"x\")","v":0.10187275310610461},{"$f":"IFERROR((BK10/(VLOOKUP($B10,Pupils,Pupils!$J$3,FALSE)+VLOOKUP($B10,Pupils,Pupils!$K$3,FALSE))), \"x\")","v":2281.1893968004197},{"$f":"IFERROR((VLOOKUP($B10,Funding,Funding!$FZ$2,FALSE)), \"x\")","v":17744750.509999998},{"$f":"IFERROR((BN10/VLOOKUP($B10,Funding,Funding!$GE$2,FALSE)), \"x\")","v":0.10639892327558204},{"$f":"IFERROR((BN10/(VLOOKUP($B10,Pupils,Pupils!$M$3,FALSE)+VLOOKUP($B10,Pupils,Pupils!$P$3,FALSE))), \"x\")","v":2475.8965410911119},{"$f":"IFERROR((VLOOKUP($B10,Funding,Funding!$FD$2,FALSE)), \"x\")","v":18181434},{"$f":"IFERROR((BQ10/VLOOKUP($B10,Funding,Funding!$FR$2,FALSE)), \"x\")","v":0.12953038558489247},{"$f":"IFERROR((BQ10/(VLOOKUP($B10,Pupils,Pupils!$R$3,FALSE)+VLOOKUP($B10,Pupils,Pupils!$U$3,FALSE))), \"x\")","v":2767.3415525114156},{"$f":"(VLOOKUP(B10,Funding,Funding!$HK$2,FALSE)+VLOOKUP(B10,Funding,Funding!$HL$2,FALSE)+VLOOKUP(B10,Funding,Funding!$HM$2,FALSE))/(VLOOKUP(B10,Funding,Funding!$HN$2,FALSE))","v":0.42507970244420828},{"$f":"IFERROR((VLOOKUP(B10,Other_data,Other!$D$3,FALSE)+VLOOKUP(B10,Other_data,Other!$E$3,FALSE)+VLOOKUP(B10,Other_data,Other!$F$3,FALSE)), \"x\")","v":1610},{"$f":"(VLOOKUP(B10,Other_data,Other!$AK$3,FALSE)+VLOOKUP(B10,Other_data,Other!$AL$3,FALSE))/VLOOKUP(B10,Other_data,Other!$AJ$3,FALSE)","v":4.1898985186049224E-2},{"$f":"(VLOOKUP(B10,Other_data,Other!$AR$3,FALSE)+VLOOKUP(B10,Other_data,Other!$AS$3,FALSE))/VLOOKUP(B10,Other_data,Other!$AQ$3,FALSE)","v":6.1713504603385198E-2},{"$f":"VLOOKUP(B10,Other_data,Other!$AP$3,FALSE)/VLOOKUP(B10,Other_data,Other!$AJ$3,FALSE)","v":7.1853493526186866E-3},{"$f":"VLOOKUP(B10,Other_data,Other!$AW$3,FALSE)/VLOOKUP(B10,Other_data,Other!$AQ$3,FALSE)","v":1.4513729747115347E-2}]
[5,800,"Bath and North East Somerset",{"$f":"IFERROR((VLOOKUP($B11,Pupils,Pupils!$D$3,FALSE)/VLOOKUP($B11,Pupils,Pupils!$C$3,FALSE)), \"x\")","v":2.4952277065721298E-2},{"$f":"IFERROR((VLOOKUP($B11,Pupils,Pupils!$G$3,FALSE)/VLOOKUP($B11,Pupils,Pupils!$F$3,FALSE)),\"x\")","v":2.4334548924712859E-2},{"$f":"IFERROR((VLOOKUP($B11,Pupils,Pupils!$J$3,FALSE)/VLOOKUP($B11,Pupils,Pupils!$I$3,FALSE)), \"x\")","v":2.4747684225079496E-2},{"$f":"IFERROR((VLOOKUP($B11,Pupils,Pupils!$M$3,FALSE)/VLOOKUP($B11,Pupils,Pupils!$L$3,FALSE)), \"x\")","v":2.4277496233392686E-2},{"$f":"IFERROR((VLOOKUP($B11,Pupils,Pupils!$R$3,FALSE)/VLOOKUP($B11,Pupils,Pupils!$Q$3,FALSE)), \"x\")","v":2.5365552275691632E-2},{"$f":"IFERROR((VLOOKUP($B11,Pupils,Pupils!$W$3,FALSE)/VLOOKUP($B11,Pupils,Pupils!$V$3,FALSE)), \"x\")","v":2.5880023216907373E-2},{"$f":"IFERROR(((VLOOKUP($B11,Pupils,Pupils!$D$3,FALSE)+VLOOKUP($B11,Pupils,Pupils!$E$3,FALSE))/VLOOKUP($B11,Pupils,Pupils!$C$3,FALSE)), \"x\")","v":0.14998636487592037},{"$f":"IFERROR(((VLOOKUP($B11,Pupils,Pupils!$G$3,FALSE)+VLOOKUP($B11,Pupils,Pupils!$H$3,FALSE))/VLOOKUP($B11,Pupils,Pupils!$F$3,FALSE)), \"x\")","v":0.16086704611294775},{"$f":"IFERROR(((VLOOKUP($B11,Pupils,Pupils!$J$3,FALSE)+VLOOKUP($B11,Pupils,Pupils!$K$3,FALSE))/VLOOKUP($B11,Pupils,Pupils!$I$3,FALSE)), \"x\")","v":0.16490391262270152},{"$f":"IFERROR(((VLOOKUP($B11,Pupils,Pupils!$M$3,FALSE)+VLOOKUP($B11,Pupils,Pupils!$P$3,FALSE))/VLOOKUP($B11,Pupils,Pupils!$L$3,FALSE)), \"x\")","v":0.16220380769757567},{"$f":"IFERROR(((VLOOKUP($B11,Pupils,Pupils!$R$3,FALSE)+VLOOKUP($B11,Pupils,Pupils!$U$3,FALSE))/VLOOKUP($B11,Pupils,Pupils!$Q$3,FALSE)), \"x\")","v":0.15768517882885974},{"$f":"IFERROR(((VLOOKUP($B11,Pupils,Pupils!$W$3,FALSE)+VLOOKUP($B11,Pupils,Pupils!$Z$3,FALSE))/VLOOKUP($B11,Pupils,Pupils!$V$3,FALSE)), \"x\")","v":0.16429376216326949},{"$f":"(SUM(INDEX(Pupils!$AB$7:$AB$159,MATCH($B11,Pupils!$A$7:$A$159,0)),INDEX(Pupils!$AC$7:$AC$159,MATCH($B11,Pupils!$A$7:$A$159,0)),INDEX(Pupils!$AD$7:$AD$159,MATCH($B11,Pupils!$A$7:$A$159,0)),INDEX(Pupils!$AE$7:$AE$159,MATCH($B11,Pupils!$A$7:$A$159,0))))/SUM(INDEX(Pupils!$AB$7:$AM$159,MATCH($B11,Pupils!$A$7:$A$159,0),0))","v":0.30437017994858612},{"$f":"SUM(INDEX(Pupils!$AF$7:$AF$159,MATCH($B11,Pupils!$A$7:$A$159,0)))/SUM(INDEX(Pupils!$AB$7:$AM$159,MATCH($B11,Pupils!$A$7:$A$159,0),0))","v":0.20462724935732649},{"$f":"SUM(INDEX(Pupils!$AG$7:$AG$159,MATCH($B11,Pupils!$A$7:$A$159,0)))/SUM(INDEX(Pupils!$AB$7:$AM$159,MATCH($B11,Pupils!$A$7:$A$159,0),0))","v":0.23907455012853471},{"$f":"(SUM(INDEX(Pupils!$AH$7:$AH$159,MATCH($B11,Pupils!$A$7:$A$159,0)),INDEX(Pupils!$AI$7:$AI$159,MATCH($B11,Pupils!$A$7:$A$159,0)),INDEX(Pupils!$AJ$7:$AJ$159,MATCH($B11,Pupils!$A$7:$A$159,0))))/SUM(INDEX(Pupils!$AB$7:$AM$159,MATCH($B11,Pupils!$A$7:$A$159,0),0))","v":3.5989717223650387E-2},{"$f":"SUM(INDEX(Pupils!$AK$7:$AK$159,MATCH($B11,Pupils!$A$7:$A$159,0)))/SUM(INDEX(Pupils!$AB$7:$AM$159,MATCH($B11,Pupils!$A$7:$A$159,0),0))","v":2.7763496143958868E-2},{"$f":"SUM(INDEX(Pupils!$AL$7:$AL$159,MATCH($B11,Pupils!$A$7:$A$159,0)))/SUM(INDEX(Pupils!$AB$7:$AM$159,MATCH($B11,Pupils!$A$7:$A$159,0),0))","v":0.14550128534704371},{"$f":"SUM(INDEX(Pupils!$AM$7:$AM$159,MATCH($B11,Pupils!$A$7:$A$159,0)))/SUM(INDEX(Pupils!$AB$7:$AM$159,MATCH($B11,Pupils!$A$7:$A$159,0),0))","v":4.2673521850899745E-2},{"$f":"(SUM(INDEX(Pupils!$BH$7:$BH$159,MATCH($B11,Pupils!$A$7:$A$159,0)),INDEX(Pupils!$BK$7:$BK$159,MATCH($B11,Pupils!$A$7:$A$159,0)),INDEX(Pupils!$BO$7:$BO$159,MATCH($B11,Pupils!$A$7:$A$159,0))))/SUM(INDEX(Pupils!$BH$7:$BS$159,MATCH($B11,Pupils!$A$7:$A$159,0),0))","v":0.45125348189415043},{"$f":"(SUM(INDEX(Pupils!$BL$7:$BL$159,MATCH($B11,Pupils!$A$7:$A$159,0)),INDEX(Pupils!$BM$7:$BM$159,MATCH($B11,Pupils!$A$7:$A$159,0)),INDEX(Pupils!$BP$7:$BP$159,MATCH($B11,Pupils!$A$7:$A$159,0))))/SUM(INDEX(Pupils!$BH$7:$BS$159,MATCH($B11,Pupils!$A$7:$A$159,0),0))","v":0.5},{"$f":"(SUM(INDEX(Pupils!$BI$7:$BI$159,MATCH($B11,Pupils!$A$7:$A$159,0)),INDEX(Pupils!$BJ$7:$BJ$159,MATCH($B11,Pupils!$A$7:$A$159,0))))/SUM(INDEX(Pupils!$BH$7:$BS$159,MATCH($B11,Pupils!$A$7:$A$159,0),0))","v":4.0389972144846797E-2},{"$f":"(SUM(INDEX(Pupils!$BQ$7:$BQ$159,MATCH($B11,Pupils!$A$7:$A$159,0)),INDEX(Pupils!$BR$7:$BR$159,MATCH($B11,Pupils!$A$7:$A$159,0)),INDEX(Pupils!$BN$7:$BN$159,MATCH($B11,Pupils!$A$7:$A$159,0)),INDEX(Pupils!$BS$7:$BS$159,MATCH($B11,Pupils!$A$7:$A$159,0))))/SUM(INDEX(Pupils!$BH$7:$BS$159,MATCH($B11,Pupils!$A$7:$A$159,0),0))","v":8.356545961002786E-3},{"$f":"IFERROR((VLOOKUP(B11,Funding,Funding!$C$2,FALSE)), \"x\")","v":13889976},{"$f":"IFERROR((AA11/VLOOKUP(B11,Funding,Funding!$D$2,FALSE)), \"x\")","v":0.12159534451776516},{"$f":"IFERROR((AA11/(VLOOKUP(B11,Pupils,Pupils!$M$3,FALSE)+VLOOKUP(B11,Pupils,Pupils!$P$3,FALSE))), \"x\")","v":2932.230525649145},{"$f":"IFERROR((VLOOKUP(B11,Funding,Funding!$E$2,FALSE)), \"x\")","v":14727746.294372231},{"$f":"IFERROR((AD11/VLOOKUP(B11,Funding,Funding!$F$2,FALSE)), \"x\")","v":0.12604127916214761},{"$f":"IFERROR((AD11/(VLOOKUP(B11,Pupils,Pupils!$R$3,FALSE)+VLOOKUP(B11,Pupils,Pupils!$U$3,FALSE))), \"x\")","v":3205.865540786293},{"$f":"IFERROR((VLOOKUP(B11,Funding,Funding!$G$2,FALSE)), \"x\")","v":15456136.155240862},{"$f":"IFERROR((AG11/VLOOKUP(B11,Funding,Funding!$H$2,FALSE)), \"x\")","v":0.1306147405620004},{"$f":"IFERROR((AG11/(VLOOKUP(B11,Pupils,Pupils!$W$3,FALSE)+VLOOKUP(B11,Pupils,Pupils!$Z$3,FALSE))), \"x\")","v":3211.9983697508023},{"$f":"IFERROR((VLOOKUP(B11,Funding,Funding!$I$2,FALSE)), \"x\")","v":15759812.380478462},{"$f":"IFERROR((AJ11/VLOOKUP(B11,Funding,Funding!$J$2,FALSE)), \"x\")","v":0.13213116337574377},null,{"$f":"IFERROR((VLOOKUP($B11,Funding,Funding!$EC$2,FALSE)), \"x\")","v":10071454.690000001},{"$f":"IFERROR((AM11/VLOOKUP($B11,Funding,Funding!$EU$2,FALSE)), \"x\")","v":8.1348052619499456E-2},{"$f":"IFERROR((AM11/(VLOOKUP($B11,Pupils,Pupils!$D$3,FALSE)+VLOOKUP($B11,Pupils,Pupils!$E$3,FALSE))), \"x\")","v":2288.9669750000003},{"$f":"IFERROR((VLOOKUP($B11,Funding,Funding!$DA$2,FALSE)), \"x\")","v":9692809},{"$f":"IFERROR((AP11/VLOOKUP($B11,Funding,Funding!$DT$2,FALSE)), \"x\")","v":7.4599096159413639E-2},{"$f":"IFERROR((AP11/(VLOOKUP($B11,Pupils,Pupils!$G$3,FALSE)+VLOOKUP($B11,Pupils,Pupils!$H$3,FALSE))), \"x\")","v":2053.5612288135594},{"$f":"IFERROR((VLOOKUP($B11,Funding,Funding!$CE$2,FALSE)), \"x\")","v":14276695},{"$f":"IFERROR((AS11/VLOOKUP($B11,Funding,Funding!$CR$2,FALSE)), \"x\")","v":0.1228993845309747},{"$f":"IFERROR((AS11/(VLOOKUP($B11,Pupils,Pupils!$J$3,FALSE)+VLOOKUP($B11,Pupils,Pupils!$K$3,FALSE))), \"x\")","v":2992.3904841752255},{"$f":"IFERROR((VLOOKUP($B11,Funding,Funding!$BM$2,FALSE)), \"x\")","v":9342435},{"$f":"IFERROR((AV11/VLOOKUP($B11,Funding,Funding!$BY$2,FALSE)), \"x\")","v":0.11051362374340407},{"$f":"IFERROR((AV11/(VLOOKUP($B11,Pupils,Pupils!$M$3,FALSE)+VLOOKUP($B11,Pupils,Pupils!$P$3,FALSE))), \"x\")","v":1972.2260924635846},{"$f":"IFERROR((VLOOKUP($B11,Funding,Funding!$AQ$2,FALSE)), \"x\")","v":15685940},{"$f":"IFERROR((AY11/VLOOKUP($B11,Funding,Funding!$BE$2,FALSE)), \"x\")","v":0.13395748685843503},{"$f":"IFERROR((AY11/(VLOOKUP($B11,Pupils,Pupils!$R$3,FALSE)+VLOOKUP($B11,Pupils,Pupils!$U$3,FALSE))), \"x\")","v":3414.4405746626035},{"$f":"IFERROR((VLOOKUP($B11,Funding,Funding!$S$2,FALSE)), \"x\")","v":17858929},{"$f":"IFERROR((BB11/VLOOKUP($B11,Funding,Funding!$AH$2,FALSE)), \"x\")","v":0.14853011324245663},{"$f":"IFERROR((BB11/(VLOOKUP(B11,Pupils,Pupils!$W$3,FALSE)+VLOOKUP(B11,Pupils,Pupils!$Z$3,FALSE))), \"x\")","v":3711.3318786367413},{"$f":"IFERROR((VLOOKUP($B11,Funding,Funding!$GX$2,FALSE)), \"x\")","v":16030886.82},{"$f":"IFERROR((BE11/VLOOKUP($B11,Funding,Funding!$HC$2,FALSE)), \"x\")","v":0.11595203688935185},{"$f":"IFERROR((BE11/(VLOOKUP($B11,Pupils,Pupils!$D$3,FALSE)+VLOOKUP($B11,Pupils,Pupils!$E$3,FALSE))), \"x\")","v":3643.3833681818182},{"$f":"IFERROR((VLOOKUP($B11,Funding,Funding!$GP$2,FALSE)), \"x\")","v":16581357},{"$f":"IFERROR((BH11/VLOOKUP($B11,Funding,Funding!$GU$2,FALSE)), \"x\")","v":0.12302340457081648},{"$f":"IFERROR((BH11/(VLOOKUP($B11,Pupils,Pupils!$G$3,FALSE)+VLOOKUP($B11,Pupils,Pupils!$H$3,FALSE))), \"x\")","v":3512.9993644067795},{"$f":"IFERROR((VLOOKUP($B11,Funding,Funding!$GH$2,FALSE)), \"x\")","v":14540552.23},{"$f":"IFERROR((BK11/VLOOKUP($B11,Funding,Funding!$GM$2,FALSE)), \"x\")","v":0.13713670621932386},{"$f":"IFERROR((BK11/(VLOOKUP($B11,Pupils,Pupils!$J$3,FALSE)+VLOOKUP($B11,Pupils,Pupils!$K$3,FALSE))), \"x\")","v":3047.6948710962065},{"$f":"IFERROR((VLOOKUP($B11,Funding,Funding!$FZ$2,FALSE)), \"x\")","v":12905148.27},{"$f":"IFERROR((BN11/VLOOKUP($B11,Funding,Funding!$GE$2,FALSE)), \"x\")","v":0.14259618796477802},{"$f":"IFERROR((BN11/(VLOOKUP($B11,Pupils,Pupils!$M$3,FALSE)+VLOOKUP($B11,Pupils,Pupils!$P$3,FALSE))), \"x\")","v":2724.3293793540215},{"$f":"IFERROR((VLOOKUP($B11,Funding,Funding!$FD$2,FALSE)), \"x\")","v":16750588},{"$f":"IFERROR((BQ11/VLOOKUP($B11,Funding,Funding!$FR$2,FALSE)), \"x\")","v":0.14212235305560902},{"$f":"IFERROR((BQ11/(VLOOKUP($B11,Pupils,Pupils!$R$3,FALSE)+VLOOKUP($B11,Pupils,Pupils!$U$3,FALSE))), \"x\")","v":3646.1880713974751},{"$f":"(VLOOKUP(B11,Funding,Funding!$HK$2,FALSE)+VLOOKUP(B11,Funding,Funding!$HL$2,FALSE)+VLOOKUP(B11,Funding,Funding!$HM$2,FALSE))/(VLOOKUP(B11,Funding,Funding!$HN$2,FALSE))","v":0.28433268858800775},{"$f":"IFERROR((VLOOKUP(B11,Other_data,Other!$D$3,FALSE)+VLOOKUP(B11,Other_data,Other!$E$3,FALSE)+VLOOKUP(B11,Other_data,Other!$F$3,FALSE)), \"x\")","v":900},{"$f":"(VLOOKUP(B11,Other_data,Other!$AK$3,FALSE)+VLOOKUP(B11,Other_data,Other!$AL$3,FALSE))/VLOOKUP(B11,Other_data,Other!$AJ$3,FALSE)","v":3.3717834960070983E-2},{"$f":"(VLOOKUP(B11,Other_data,Other!$AR$3,FALSE)+VLOOKUP(B11,Other_data,Other!$AS$3,FALSE))/VLOOKUP(B11,Other_data,Other!$AQ$3,FALSE)","v":4.3001071811361202E-2},{"$f":"VLOOKUP(B11,Other_data,Other!$AP$3,FALSE)/VLOOKUP(B11,Other_data,Other!$AJ$3,FALSE)","v":4.8460855914272067E-3},{"$f":"VLOOKUP(B11,Other_data,Other!$AW$3,FALSE)/VLOOKUP(B11,Other_data,Other!$AQ$3,FALSE)","v":9.3890675241157552E-3}]
[6,822,"Bedford Borough",{"$f":"IFERROR((VLOOKUP($B12,Pupils,Pupils!$D$3,FALSE)/VLOOKUP($B12,Pupils,Pupils!$C$3,FALSE)), \"x\")","v":"x"},{"$f":"IFERROR((VLOOKUP($B12,Pupils,Pupils!$G$3,FALSE)/VLOOKUP($B12,Pupils,Pupils!$F$3,FALSE)),\"x\")","v":2.5088161209068011E-2},{"$f":"IFERROR((VLOOKUP($B12,Pupils,Pupils!$J$3,FALSE)/VLOOKUP($B12,Pupils,Pupils!$I$3,FALSE)), \"x\")","v":2.4943767415315406E-2},{"$f":"IFERROR((VLOOKUP($B12,Pupils,Pupils!$M$3,FALSE)/VLOOKUP($B12,Pupils,Pupils!$L$3,FALSE)), \"x\")","v":2.4334728033472804E-2},{"$f":"IFERROR((VLOOKUP($B12,Pupils,Pupils!$R$3,FALSE)/VLOOKUP($B12,Pupils,Pupils!$Q$3,FALSE)), \"x\")","v":2.7503943217665614E-2},{"$f":"IFERROR((VLOOKUP($B12,Pupils,Pupils!$W$3,FALSE)/VLOOKUP($B12,Pupils,Pupils!$V$3,FALSE)), \"x\")","v":2.7279161037122822E-2},{"$f":"IFERROR(((VLOOKUP($B12,Pupils,Pupils!$D$3,FALSE)+VLOOKUP($B12,Pupils,Pupils!$E$3,FALSE))/VLOOKUP($B12,Pupils,Pupils!$C$3,FALSE)), \"x\")","v":"x"},{"$f":"IFERROR(((VLOOKUP($B12,Pupils,Pupils!$G$3,FALSE)+VLOOKUP($B12,Pupils,Pupils!$H$3,FALSE))/VLOOKUP($B12,Pupils,Pupils!$F$3,FALSE)), \"x\")","v":0.19187237615449201},{"$f":"IFERROR(((VLOOKUP($B12,Pupils,Pupils!$J$3,FALSE)+VLOOKUP($B12,Pupils,Pupils!$K$3,FALSE))/VLOOKUP($B12,Pupils,Pupils!$I$3,FALSE)), \"x\")","v":0.20035585993889951},{"$f":"IFERROR(((VLOOKUP($B12,Pupils,Pupils!$M$3,FALSE)+VLOOKUP($B12,Pupils,Pupils!$P$3,FALSE))/VLOOKUP($B12,Pupils,Pupils!$L$3,FALSE)), \"x\")","v":0.17275313807531381},{"$f":"IFERROR(((VLOOKUP($B12,Pupils,Pupils!$R$3,FALSE)+VLOOKUP($B12,Pupils,Pupils!$U$3,FALSE))/VLOOKUP($B12,Pupils,Pupils!$Q$3,FALSE)), \"x\")","v":0.16814537329127235},{"$f":"IFERROR(((VLOOKUP($B12,Pupils,Pupils!$W$3,FALSE)+VLOOKUP($B12,Pupils,Pupils!$Z$3,FALSE))/VLOOKUP($B12,Pupils,Pupils!$V$3,FALSE)), \"x\")","v":0.16290291449527119},{"$f":"(SUM(INDEX(Pupils!$AB$7:$AB$159,MATCH($B12,Pupils!$A$7:$A$159,0)),INDEX(Pupils!$AC$7:$AC$159,MATCH($B12,Pupils!$A$7:$A$159,0)),INDEX(Pupils!$AD$7:$AD$159,MATCH($B12,Pupils!$A$7:$A$159,0)),INDEX(Pupils!$AE$7:$AE$159,MATCH($B12,Pupils!$A$7:$A$159,0))))/SUM(INDEX(Pupils!$AB$7:$AM$159,MATCH($B12,Pupils!$A$7:$A$159,0),0))","v":0.35586969883220654},{"$f":"SUM(INDEX(Pupils!$AF$7:$AF$159,MATCH($B12,Pupils!$A$7:$A$159,0)))/SUM(INDEX(Pupils!$AB$7:$AM$159,MATCH($B12,Pupils!$A$7:$A$159,0),0))","v":0.19483712354025814},{"$f":"SUM(INDEX(Pupils!$AG$7:$AG$159,MATCH($B12,Pupils!$A$7:$A$159,0)))/SUM(INDEX(Pupils!$AB$7:$AM$159,MATCH($B12,Pupils!$A$7:$A$159,0),0))","v":0.17086662569145666},{"$f":"(SUM(INDEX(Pupils!$AH$7:$AH$159,MATCH($B12,Pupils!$A$7:$A$159,0)),INDEX(Pupils!$AI$7:$AI$159,MATCH($B12,Pupils!$A$7:$A$159,0)),INDEX(Pupils!$AJ$7:$AJ$159,MATCH($B12,Pupils!$A$7:$A$159,0))))/SUM(INDEX(Pupils!$AB$7:$AM$159,MATCH($B12,Pupils!$A$7:$A$159,0),0))","v":4.1794714197910261E-2},{"$f":"SUM(INDEX(Pupils!$AK$7:$AK$159,MATCH($B12,Pupils!$A$7:$A$159,0)))/SUM(INDEX(Pupils!$AB$7:$AM$159,MATCH($B12,Pupils!$A$7:$A$159,0),0))","v":6.6994468346650279E-2},{"$f":"SUM(INDEX(Pupils!$AL$7:$AL$159,MATCH($B12,Pupils!$A$7:$A$159,0)))/SUM(INDEX(Pupils!$AB$7:$AM$159,MATCH($B12,Pupils!$A$7:$A$159,0),0))","v":0.13460356484326982},{"$f":"SUM(INDEX(Pupils!$AM$7:$AM$159,MATCH($B12,Pupils!$A$7:$A$159,0)))/SUM(INDEX(Pupils!$AB$7:$AM$159,MATCH($B12,Pupils!$A$7:$A$159,0),0))","v":3.503380454824831E-2},{"$f":"(SUM(INDEX(Pupils!$BH$7:$BH$159,MATCH($B12,Pupils!$A$7:$A$159,0)),INDEX(Pupils!$BK$7:$BK$159,MATCH($B12,Pupils!$A$7:$A$159,0)),INDEX(Pupils!$BO$7:$BO$159,MATCH($B12,Pupils!$A$7:$A$159,0))))/SUM(INDEX(Pupils!$BH$7:$BS$159,MATCH($B12,Pupils!$A$7:$A$159,0),0))","v":0.47769784172661872},{"$f":"(SUM(INDEX(Pupils!$BL$7:$BL$159,MATCH($B12,Pupils!$A$7:$A$159,0)),INDEX(Pupils!$BM$7:$BM$159,MATCH($B12,Pupils!$A$7:$A$159,0)),INDEX(Pupils!$BP$7:$BP$159,MATCH($B12,Pupils!$A$7:$A$159,0))))/SUM(INDEX(Pupils!$BH$7:$BS$159,MATCH($B12,Pupils!$A$7:$A$159,0),0))","v":0.47482014388489208},{"$f":"(SUM(INDEX(Pupils!$BI$7:$BI$159,MATCH($B12,Pupils!$A$7:$A$159,0)),INDEX(Pupils!$BJ$7:$BJ$159,MATCH($B12,Pupils!$A$7:$A$159,0))))/SUM(INDEX(Pupils!$BH$7:$BS$159,MATCH($B12,Pupils!$A$7:$A$159,0),0))","v":2.8776978417266189E-2},{"$f":"(SUM(INDEX(Pupils!$BQ$7:$BQ$159,MATCH($B12,Pupils!$A$7:$A$159,0)),INDEX(Pupils!$BR$7:$BR$159,MATCH($B12,Pupils!$A$7:$A$159,0)),INDEX(Pupils!$BN$7:$BN$159,MATCH($B12,Pupils!$A$7:$A$159,0)),INDEX(Pupils!$BS$7:$BS$159,MATCH($B12,Pupils!$A$7:$A$159,0))))/SUM(INDEX(Pupils!$BH$7:$BS$159,MATCH($B12,Pupils!$A$7:$A$159,0),0))","v":1.870503597122302E-2},{"$f":"IFERROR((VLOOKUP(B12,Funding,Funding!$C$2,FALSE)), \"x\")","v":14981884},{"$f":"IFERROR((AA12/VLOOKUP(B12,Funding,Funding!$D$2,FALSE)), \"x\")","v":0.12638249440235938},{"$f":"IFERROR((AA12/(VLOOKUP(B12,Pupils,Pupils!$M$3,FALSE)+VLOOKUP(B12,Pupils,Pupils!$P$3,FALSE))), \"x\")","v":2902.9033133113739},{"$f":"IFERROR((VLOOKUP(B12,Funding,Funding!$E$2,FALSE)), \"x\")","v":16103757.914474873},{"$f":"IFERROR((AD12/VLOOKUP(B12,Funding,Funding!$F$2,FALSE)), \"x\")","v":0.12974636331228287},{"$f":"IFERROR((AD12/(VLOOKUP(B12,Pupils,Pupils!$R$3,FALSE)+VLOOKUP(B12,Pupils,Pupils!$U$3,FALSE))), \"x\")","v":3147.1092269835594},{"$f":"IFERROR((VLOOKUP(B12,Funding,Funding!$G$2,FALSE)), \"x\")","v":17011671.381689455},{"$f":"IFERROR((AG12/VLOOKUP(B12,Funding,Funding!$H$2,FALSE)), \"x\")","v":0.13403700593284579},{"$f":"IFERROR((AG12/(VLOOKUP(B12,Pupils,Pupils!$W$3,FALSE)+VLOOKUP(B12,Pupils,Pupils!$Z$3,FALSE))), \"x\")","v":3359.3347910129255},{"$f":"IFERROR((VLOOKUP(B12,Funding,Funding!$I$2,FALSE)), \"x\")","v":17234176.43723115},{"$f":"IFERROR((AJ12/VLOOKUP(B12,Funding,Funding!$J$2,FALSE)), \"x\")","v":0.13244222090305666},null,{"$f":"IFERROR((VLOOKUP($B12,Funding,Funding!$EC$2,FALSE)), \"x\")","v":9992445.6799999997},{"$f":"IFERROR((AM12/VLOOKUP($B12,Funding,Funding!$EU$2,FALSE)), \"x\")","v":8.0967230811206492E-2},{"$f":"IFERROR((AM12/(VLOOKUP($B12,Pupils,Pupils!$D$3,FALSE)+VLOOKUP($B12,Pupils,Pupils!$E$3,FALSE))), \"x\")","v":"x"},{"$f":"IFERROR((VLOOKUP($B12,Funding,Funding!$DA$2,FALSE)), \"x\")","v":11030763.941199999},{"$f":"IFERROR((AP12/VLOOKUP($B12,Funding,Funding!$DT$2,FALSE)), \"x\")","v":8.3139647656097632E-2},{"$f":"IFERROR((AP12/(VLOOKUP($B12,Pupils,Pupils!$G$3,FALSE)+VLOOKUP($B12,Pupils,Pupils!$H$3,FALSE))), \"x\")","v":1930.8181237878521},{"$f":"IFERROR((VLOOKUP($B12,Funding,Funding!$CE$2,FALSE)), \"x\")","v":9489038},{"$f":"IFERROR((AS12/VLOOKUP($B12,Funding,Funding!$CR$2,FALSE)), \"x\")","v":8.9102427315167085E-2},{"$f":"IFERROR((AS12/(VLOOKUP($B12,Pupils,Pupils!$J$3,FALSE)+VLOOKUP($B12,Pupils,Pupils!$K$3,FALSE))), \"x\")","v":1589.9862600536194},{"$f":"IFERROR((VLOOKUP($B12,Funding,Funding!$BM$2,FALSE)), \"x\")","v":8516491.5099999998},{"$f":"IFERROR((AV12/VLOOKUP($B12,Funding,Funding!$BY$2,FALSE)), \"x\")","v":8.4503501604402204E-2},{"$f":"IFERROR((AV12/(VLOOKUP($B12,Pupils,Pupils!$M$3,FALSE)+VLOOKUP($B12,Pupils,Pupils!$P$3,FALSE))), \"x\")","v":1650.16305173416},{"$f":"IFERROR((VLOOKUP($B12,Funding,Funding!$AQ$2,FALSE)), \"x\")","v":15642040},{"$f":"IFERROR((AY12/VLOOKUP($B12,Funding,Funding!$BE$2,FALSE)), \"x\")","v":0.12316351150540866},{"$f":"IFERROR((AY12/(VLOOKUP($B12,Pupils,Pupils!$R$3,FALSE)+VLOOKUP($B12,Pupils,Pupils!$U$3,FALSE))), \"x\")","v":3056.8770764119599},{"$f":"IFERROR((VLOOKUP($B12,Funding,Funding!$S$2,FALSE)), \"x\")","v":17198610},{"$f":"IFERROR((BB12/VLOOKUP($B12,Funding,Funding!$AH$2,FALSE)), \"x\")","v":0.13060256334776124},{"$f":"IFERROR((BB12/(VLOOKUP(B12,Pupils,Pupils!$W$3,FALSE)+VLOOKUP(B12,Pupils,Pupils!$Z$3,FALSE))), \"x\")","v":3396.25},{"$f":"IFERROR((VLOOKUP($B12,Funding,Funding!$GX$2,FALSE)), \"x\")","v":18139146},{"$f":"IFERROR((BE12/VLOOKUP($B12,Funding,Funding!$HC$2,FALSE)), \"x\")","v":0.12674372028122169},{"$f":"IFERROR((BE12/(VLOOKUP($B12,Pupils,Pupils!$D$3,FALSE)+VLOOKUP($B12,Pupils,Pupils!$E$3,FALSE))), \"x\")","v":"x"},{"$f":"IFERROR((VLOOKUP($B12,Funding,Funding!$GP$2,FALSE)), \"x\")","v":17305691.689999998},{"$f":"IFERROR((BH12/VLOOKUP($B12,Funding,Funding!$GU$2,FALSE)), \"x\")","v":0.12939021278687798},{"$f":"IFERROR((BH12/(VLOOKUP($B12,Pupils,Pupils!$G$3,FALSE)+VLOOKUP($B12,Pupils,Pupils!$H$3,FALSE))), \"x\")","v":3029.1776107124097},{"$f":"IFERROR((VLOOKUP($B12,Funding,Funding!$GH$2,FALSE)), \"x\")","v":11973843.98},{"$f":"IFERROR((BK12/VLOOKUP($B12,Funding,Funding!$GM$2,FALSE)), \"x\")","v":0.11083157509970701},{"$f":"IFERROR((BK12/(VLOOKUP($B12,Pupils,Pupils!$J$3,FALSE)+VLOOKUP($B12,Pupils,Pupils!$K$3,FALSE))), \"x\")","v":2006.3411494638071},{"$f":"IFERROR((VLOOKUP($B12,Funding,Funding!$FZ$2,FALSE)), \"x\")","v":10810572.59},{"$f":"IFERROR((BN12/VLOOKUP($B12,Funding,Funding!$GE$2,FALSE)), \"x\")","v":0.1060572792393277},{"$f":"IFERROR((BN12/(VLOOKUP($B12,Pupils,Pupils!$M$3,FALSE)+VLOOKUP($B12,Pupils,Pupils!$P$3,FALSE))), \"x\")","v":2094.6662642898664},{"$f":"IFERROR((VLOOKUP($B12,Funding,Funding!$FD$2,FALSE)), \"x\")","v":11959406},{"$f":"IFERROR((BQ12/VLOOKUP($B12,Funding,Funding!$FR$2,FALSE)), \"x\")","v":0.15858198913725721},{"$f":"IFERROR((BQ12/(VLOOKUP($B12,Pupils,Pupils!$R$3,FALSE)+VLOOKUP($B12,Pupils,Pupils!$U$3,FALSE))), \"x\")","v":2337.1909321868284},{"$f":"(VLOOKUP(B12,Funding,Funding!$HK$2,FALSE)+VLOOKUP(B12,Funding,Funding!$HL$2,FALSE)+VLOOKUP(B12,Funding,Funding!$HM$2,FALSE))/(VLOOKUP(B12,Funding,Funding!$HN$2,FALSE))","v":0.20242914979757085},{"$f":"IFERROR((VLOOKUP(B12,Other_data,Other!$D$3,FALSE)+VLOOKUP(B12,Other_data,Other!$E$3,FALSE)+VLOOKUP(B12,Other_data,Other!$F$3,FALSE)), \"x\")","v":970},{"$f":"(VLOOKUP(B12,Other_data,Other!$AK$3,FALSE)+VLOOKUP(B12,Other_data,Other!$AL$3,FALSE))/VLOOKUP(B12,Other_data,Other!$AJ$3,FALSE)","v":3.5385299536242934E-2},{"$f":"(VLOOKUP(B12,Other_data,Other!$AR$3,FALSE)+VLOOKUP(B12,Other_data,Other!$AS$3,FALSE))/VLOOKUP(B12,Other_data,Other!$AQ$3,FALSE)","v":4.6470062555853439E-2},{"$f":"VLOOKUP(B12,Other_data,Other!$AP$3,FALSE)/VLOOKUP(B12,Other_data,Other!$AJ$3,FALSE)","v":6.0987230798551549E-3},{"$f":"VLOOKUP(B12,Other_data,Other!$AW$3,FALSE)/VLOOKUP(B12,Other_data,Other!$AQ$3,FALSE)","v":9.7110515341078344E-3}]
[7,303,"Bexley",{"$f":"IFERROR((VLOOKUP($B13,Pupils,Pupils!$D$3,FALSE)/VLOOKUP($B13,Pupils,Pupils!$C$3,FALSE)), \"x\")","v":2.854936409489104E-2},{"$f":"IFERROR((VLOOKUP($B13,Pupils,Pupils!$G$3,FALSE)/VLOOKUP($B13,Pupils,Pupils!$F$3,FALSE)),\"x\")","v":2.7448609431680773E-2},{"$f":"IFERROR((VLOOKUP($B13,Pupils,Pupils!$J$3,FALSE)/VLOOKUP($B13,Pupils,Pupils!$I$3,FALSE)), \"x\")","v":2.6047782224245763E-2},{"$f":"IFERROR((VLOOKUP($B13,Pupils,Pupils!$M$3,FALSE)/VLOOKUP($B13,Pupils,Pupils!$L$3,FALSE)), \"x\")","v":2.5092059295628365E-2},{"$f":"IFERROR((VLOOKUP($B13,Pupils,Pupils!$R$3,FALSE)/VLOOKUP($B13,Pupils,Pupils!$Q$3,FALSE)), \"x\")","v":2.527763579759305E-2},{"$f":"IFERROR((VLOOKUP($B13,Pupils,Pupils!$W$3,FALSE)/VLOOKUP($B13,Pupils,Pupils!$V$3,FALSE)), \"x\")","v":2.539440907832826E-2},{"$f":"IFERROR(((VLOOKUP($B13,Pupils,Pupils!$D$3,FALSE)+VLOOKUP($B13,Pupils,Pupils!$E$3,FALSE))/VLOOKUP($B13,Pupils,Pupils!$C$3,FALSE)), \"x\")","v":0.21500108598595458},{"$f":"IFERROR(((VLOOKUP($B13,Pupils,Pupils!$G$3,FALSE)+VLOOKUP($B13,Pupils,Pupils!$H$3,FALSE))/VLOOKUP($B13,Pupils,Pupils!$F$3,FALSE)), \"x\")","v":0.22021765417170497},{"$f":"IFERROR(((VLOOKUP($B13,Pupils,Pupils!$J$3,FALSE)+VLOOKUP($B13,Pupils,Pupils!$K$3,FALSE))/VLOOKUP($B13,Pupils,Pupils!$I$3,FALSE)), \"x\")","v":0.20620162469147635},{"$f":"IFERROR(((VLOOKUP($B13,Pupils,Pupils!$M$3,FALSE)+VLOOKUP($B13,Pupils,Pupils!$P$3,FALSE))/VLOOKUP($B13,Pupils,Pupils!$L$3,FALSE)), \"x\")","v":0.18289113398168255},{"$f":"IFERROR(((VLOOKUP($B13,Pupils,Pupils!$R$3,FALSE)+VLOOKUP($B13,Pupils,Pupils!$U$3,FALSE))/VLOOKUP($B13,Pupils,Pupils!$Q$3,FALSE)), \"x\")","v":0.16181868872264299},{"$f":"IFERROR(((VLOOKUP($B13,Pupils,Pupils!$W$3,FALSE)+VLOOKUP($B13,Pupils,Pupils!$Z$3,FALSE))/VLOOKUP($B13,Pupils,Pupils!$V$3,FALSE)), \"x\")","v":0.15820186364055724},{"$f":"(SUM(INDEX(Pupils!$AB$7:$AB$159,MATCH($B13,Pupils!$A$7:$A$159,0)),INDEX(Pupils!$AC$7:$AC$159,MATCH($B13,Pupils!$A$7:$A$159,0)),INDEX(Pupils!$AD$7:$AD$159,MATCH($B13,Pupils!$A$7:$A$159,0)),INDEX(Pupils!$AE$7:$AE$159,MATCH($B13,Pupils!$A$7:$A$159,0))))/SUM(INDEX(Pupils!$AB$7:$AM$159,MATCH($B13,Pupils!$A$7:$A$159,0),0))","v":0.2557924003707136},{"$f":"SUM(INDEX(Pupils!$AF$7:$AF$159,MATCH($B13,Pupils!$A$7:$A$159,0)))/SUM(INDEX(Pupils!$AB$7:$AM$159,MATCH($B13,Pupils!$A$7:$A$159,0),0))","v":0.19215322829780662},{"$f":"SUM(INDEX(Pupils!$AG$7:$AG$159,MATCH($B13,Pupils!$A$7:$A$159,0)))/SUM(INDEX(Pupils!$AB$7:$AM$159,MATCH($B13,Pupils!$A$7:$A$159,0),0))","v":0.25980846462774171},{"$f":"(SUM(INDEX(Pupils!$AH$7:$AH$159,MATCH($B13,Pupils!$A$7:$A$159,0)),INDEX(Pupils!$AI$7:$AI$159,MATCH($B13,Pupils!$A$7:$A$159,0)),INDEX(Pupils!$AJ$7:$AJ$159,MATCH($B13,Pupils!$A$7:$A$159,0))))/SUM(INDEX(Pupils!$AB$7:$AM$159,MATCH($B13,Pupils!$A$7:$A$159,0),0))","v":3.0583873957367932E-2},{"$f":"SUM(INDEX(Pupils!$AK$7:$AK$159,MATCH($B13,Pupils!$A$7:$A$159,0)))/SUM(INDEX(Pupils!$AB$7:$AM$159,MATCH($B13,Pupils!$A$7:$A$159,0),0))","v":2.2551745443311708E-2},{"$f":"SUM(INDEX(Pupils!$AL$7:$AL$159,MATCH($B13,Pupils!$A$7:$A$159,0)))/SUM(INDEX(Pupils!$AB$7:$AM$159,MATCH($B13,Pupils!$A$7:$A$159,0),0))","v":0.17732468334877974},{"$f":"SUM(INDEX(Pupils!$AM$7:$AM$159,MATCH($B13,Pupils!$A$7:$A$159,0)))/SUM(INDEX(Pupils!$AB$7:$AM$159,MATCH($B13,Pupils!$A$7:$A$159,0),0))","v":6.1785603954278651E-2},{"$f":"(SUM(INDEX(Pupils!$BH$7:$BH$159,MATCH($B13,Pupils!$A$7:$A$159,0)),INDEX(Pupils!$BK$7:$BK$159,MATCH($B13,Pupils!$A$7:$A$159,0)),INDEX(Pupils!$BO$7:$BO$159,MATCH($B13,Pupils!$A$7:$A$159,0))))/SUM(INDEX(Pupils!$BH$7:$BS$159,MATCH($B13,Pupils!$A$7:$A$159,0),0))","v":0.45249221183800625},{"$f":"(SUM(INDEX(Pupils!$BL$7:$BL$159,MATCH($B13,Pupils!$A$7:$A$159,0)),INDEX(Pupils!$BM$7:$BM$159,MATCH($B13,Pupils!$A$7:$A$159,0)),INDEX(Pupils!$BP$7:$BP$159,MATCH($B13,Pupils!$A$7:$A$159,0))))/SUM(INDEX(Pupils!$BH$7:$BS$159,MATCH($B13,Pupils!$A$7:$A$159,0),0))","v":0.44236760124610591},{"$f":"(SUM(INDEX(Pupils!$BI$7:$BI$159,MATCH($B13,Pupils!$A$7:$A$159,0)),INDEX(Pupils!$BJ$7:$BJ$159,MATCH($B13,Pupils!$A$7:$A$159,0))))/SUM(INDEX(Pupils!$BH$7:$BS$159,MATCH($B13,Pupils!$A$7:$A$159,0),0))","v":9.0342679127725853E-2},{"$f":"(SUM(INDEX(Pupils!$BQ$7:$BQ$159,MATCH($B13,Pupils!$A$7:$A$159,0)),INDEX(Pupils!$BR$7:$BR$159,MATCH($B13,Pupils!$A$7:$A$159,0)),INDEX(Pupils!$BN$7:$BN$159,MATCH($B13,Pupils!$A$7:$A$159,0)),INDEX(Pupils!$BS$7:$BS$159,MATCH($B13,Pupils!$A$7:$A$159,0))))/SUM(INDEX(Pupils!$BH$7:$BS$159,MATCH($B13,Pupils!$A$7:$A$159,0),0))","v":1.4797507788161994E-2},{"$f":"IFERROR((VLOOKUP(B13,Funding,Funding!$C$2,FALSE)), \"x\")","v":22873165.780000001},{"$f":"IFERROR((AA13/VLOOKUP(B13,Funding,Funding!$D$2,FALSE)), \"x\")","v":0.11952116974549548},{"$f":"IFERROR((AA13/(VLOOKUP(B13,Pupils,Pupils!$M$3,FALSE)+VLOOKUP(B13,Pupils,Pupils!$P$3,FALSE))), \"x\")","v":2952.1380717604543},{"$f":"IFERROR((VLOOKUP(B13,Funding,Funding!$E$2,FALSE)), \"x\")","v":26564432.342381354},{"$f":"IFERROR((AD13/VLOOKUP(B13,Funding,Funding!$F$2,FALSE)), \"x\")","v":0.13508966192726385},{"$f":"IFERROR((AD13/(VLOOKUP(B13,Pupils,Pupils!$R$3,FALSE)+VLOOKUP(B13,Pupils,Pupils!$U$3,FALSE))), \"x\")","v":3813.9888503060092},{"$f":"IFERROR((VLOOKUP(B13,Funding,Funding!$G$2,FALSE)), \"x\")","v":27124028.952018153},{"$f":"IFERROR((AG13/VLOOKUP(B13,Funding,Funding!$H$2,FALSE)), \"x\")","v":0.13447862966023205},{"$f":"IFERROR((AG13/(VLOOKUP(B13,Pupils,Pupils!$W$3,FALSE)+VLOOKUP(B13,Pupils,Pupils!$Z$3,FALSE))), \"x\")","v":3954.5165406062333},{"$f":"IFERROR((VLOOKUP(B13,Funding,Funding!$I$2,FALSE)), \"x\")","v":27548062.837915156},{"$f":"IFERROR((AJ13/VLOOKUP(B13,Funding,Funding!$J$2,FALSE)), \"x\")","v":0.13138270509025818},null,{"$f":"IFERROR((VLOOKUP($B13,Funding,Funding!$EC$2,FALSE)), \"x\")","v":18272510.950000003},{"$f":"IFERROR((AM13/VLOOKUP($B13,Funding,Funding!$EU$2,FALSE)), \"x\")","v":9.5811888548563401E-2},{"$f":"IFERROR((AM13/(VLOOKUP($B13,Pupils,Pupils!$D$3,FALSE)+VLOOKUP($B13,Pupils,Pupils!$E$3,FALSE))), \"x\")","v":2051.0170557862839},{"$f":"IFERROR((VLOOKUP($B13,Funding,Funding!$DA$2,FALSE)), \"x\")","v":17964781},{"$f":"IFERROR((AP13/VLOOKUP($B13,Funding,Funding!$DT$2,FALSE)), \"x\")","v":8.9230501641071491E-2},{"$f":"IFERROR((AP13/(VLOOKUP($B13,Pupils,Pupils!$G$3,FALSE)+VLOOKUP($B13,Pupils,Pupils!$H$3,FALSE))), \"x\")","v":1972.8509773775534},{"$f":"IFERROR((VLOOKUP($B13,Funding,Funding!$CE$2,FALSE)), \"x\")","v":17984690},{"$f":"IFERROR((AS13/VLOOKUP($B13,Funding,Funding!$CR$2,FALSE)), \"x\")","v":0.11040907762556192},{"$f":"IFERROR((AS13/(VLOOKUP($B13,Pupils,Pupils!$J$3,FALSE)+VLOOKUP($B13,Pupils,Pupils!$K$3,FALSE))), \"x\")","v":2090.0278907611855},{"$f":"IFERROR((VLOOKUP($B13,Funding,Funding!$BM$2,FALSE)), \"x\")","v":17947007.98},{"$f":"IFERROR((AV13/VLOOKUP($B13,Funding,Funding!$BY$2,FALSE)), \"x\")","v":0.14836924018057956},{"$f":"IFERROR((AV13/(VLOOKUP($B13,Pupils,Pupils!$M$3,FALSE)+VLOOKUP($B13,Pupils,Pupils!$P$3,FALSE))), \"x\")","v":2316.3407305110995},{"$f":"IFERROR((VLOOKUP($B13,Funding,Funding!$AQ$2,FALSE)), \"x\")","v":25527000},{"$f":"IFERROR((AY13/VLOOKUP($B13,Funding,Funding!$BE$2,FALSE)), \"x\")","v":0.22250017432536084},{"$f":"IFERROR((AY13/(VLOOKUP($B13,Pupils,Pupils!$R$3,FALSE)+VLOOKUP($B13,Pupils,Pupils!$U$3,FALSE))), \"x\")","v":3665.0394831299354},{"$f":"IFERROR((VLOOKUP($B13,Funding,Funding!$S$2,FALSE)), \"x\")","v":25634000},{"$f":"IFERROR((BB13/VLOOKUP($B13,Funding,Funding!$AH$2,FALSE)), \"x\")","v":0.12709288777609756},{"$f":"IFERROR((BB13/(VLOOKUP(B13,Pupils,Pupils!$W$3,FALSE)+VLOOKUP(B13,Pupils,Pupils!$Z$3,FALSE))), \"x\")","v":3737.2794868056567},{"$f":"IFERROR((VLOOKUP($B13,Funding,Funding!$GX$2,FALSE)), \"x\")","v":28001145},{"$f":"IFERROR((BE13/VLOOKUP($B13,Funding,Funding!$HC$2,FALSE)), \"x\")","v":0.13717535962494121},{"$f":"IFERROR((BE13/(VLOOKUP($B13,Pupils,Pupils!$D$3,FALSE)+VLOOKUP($B13,Pupils,Pupils!$E$3,FALSE))), \"x\")","v":3143.0177348748457},{"$f":"IFERROR((VLOOKUP($B13,Funding,Funding!$GP$2,FALSE)), \"x\")","v":30261673},{"$f":"IFERROR((BH13/VLOOKUP($B13,Funding,Funding!$GU$2,FALSE)), \"x\")","v":0.15081166527230899},{"$f":"IFERROR((BH13/(VLOOKUP($B13,Pupils,Pupils!$G$3,FALSE)+VLOOKUP($B13,Pupils,Pupils!$H$3,FALSE))), \"x\")","v":3323.2674061058642},{"$f":"IFERROR((VLOOKUP($B13,Funding,Funding!$GH$2,FALSE)), \"x\")","v":28223876.509999998},{"$f":"IFERROR((BK13/VLOOKUP($B13,Funding,Funding!$GM$2,FALSE)), \"x\")","v":0.163179251480809},{"$f":"IFERROR((BK13/(VLOOKUP($B13,Pupils,Pupils!$J$3,FALSE)+VLOOKUP($B13,Pupils,Pupils!$K$3,FALSE))), \"x\")","v":3279.9391644392795},{"$f":"IFERROR((VLOOKUP($B13,Funding,Funding!$FZ$2,FALSE)), \"x\")","v":28861205.82},{"$f":"IFERROR((BN13/VLOOKUP($B13,Funding,Funding!$GE$2,FALSE)), \"x\")","v":0.25122509735772253},{"$f":"IFERROR((BN13/(VLOOKUP($B13,Pupils,Pupils!$M$3,FALSE)+VLOOKUP($B13,Pupils,Pupils!$P$3,FALSE))), \"x\")","v":3724.9878446050593},{"$f":"IFERROR((VLOOKUP($B13,Funding,Funding!$FD$2,FALSE)), \"x\")","v":25919000},{"$f":"IFERROR((BQ13/VLOOKUP($B13,Funding,Funding!$FR$2,FALSE)), \"x\")","v":0.24946102021174205},{"$f":"IFERROR((BQ13/(VLOOKUP($B13,Pupils,Pupils!$R$3,FALSE)+VLOOKUP($B13,Pupils,Pupils!$U$3,FALSE))), \"x\")","v":3721.3208901651115},{"$f":"(VLOOKUP(B13,Funding,Funding!$HK$2,FALSE)+VLOOKUP(B13,Funding,Funding!$HL$2,FALSE)+VLOOKUP(B13,Funding,Funding!$HM$2,FALSE))/(VLOOKUP(B13,Funding,Funding!$HN$2,FALSE))","v":0.18769230769230769},{"$f":"IFERROR((VLOOKUP(B13,Other_data,Other!$D$3,FALSE)+VLOOKUP(B13,Other_data,Other!$E$3,FALSE)+VLOOKUP(B13,Other_data,Other!$F$3,FALSE)), \"x\")","v":1530},{"$f":"(VLOOKUP(B13,Other_data,Other!$AK$3,FALSE)+VLOOKUP(B13,Other_data,Other!$AL$3,FALSE))/VLOOKUP(B13,Other_data,Other!$AJ$3,FALSE)","v":3.7339164073669162E-2},{"$f":"(VLOOKUP(B13,Other_data,Other!$AR$3,FALSE)+VLOOKUP(B13,Other_data,Other!$AS$3,FALSE))/VLOOKUP(B13,Other_data,Other!$AQ$3,FALSE)","v":4.7823218997361479E-2},{"$f":"VLOOKUP(B13,Other_data,Other!$AP$3,FALSE)/VLOOKUP(B13,Other_data,Other!$AJ$3,FALSE)","v":6.4754856614246065E-3},{"$f":"VLOOKUP(B13,Other_data,Other!$AW$3,FALSE)/VLOOKUP(B13,Other_data,Other!$AQ$3,FALSE)","v":1.0041043682204633E-2}]
[8,330,"Birmingham",{"$f":"IFERROR((VLOOKUP($B14,Pupils,Pupils!$D$3,FALSE)/VLOOKUP($B14,Pupils,Pupils!$C$3,FALSE)), \"x\")","v":3.4299464662304657E-2},{"$f":"IFERROR((VLOOKUP($B14,Pupils,Pupils!$G$3,FALSE)/VLOOKUP($B14,Pupils,Pupils!$F$3,FALSE)),\"x\")","v":3.3361677394355582E-2},{"$f":"IFERROR((VLOOKUP($B14,Pupils,Pupils!$J$3,FALSE)/VLOOKUP($B14,Pupils,Pupils!$I$3,FALSE)), \"x\")","v":3.3276874495744214E-2},{"$f":"IFERROR((VLOOKUP($B14,Pupils,Pupils!$M$3,FALSE)/VLOOKUP($B14,Pupils,Pupils!$L$3,FALSE)), \"x\")","v":3.2168919664388278E-2},{"$f":"IFERROR((VLOOKUP($B14,Pupils,Pupils!$R$3,FALSE)/VLOOKUP($B14,Pupils,Pupils!$Q$3,FALSE)), \"x\")","v":3.1208244859909886E-2},{"$f":"IFERROR((VLOOKUP($B14,Pupils,Pupils!$W$3,FALSE)/VLOOKUP($B14,Pupils,Pupils!$V$3,FALSE)), \"x\")","v":3.2561233193874647E-2},{"$f":"IFERROR(((VLOOKUP($B14,Pupils,Pupils!$D$3,FALSE)+VLOOKUP($B14,Pupils,Pupils!$E$3,FALSE))/VLOOKUP($B14,Pupils,Pupils!$C$3,FALSE)), \"x\")","v":0.22380360136267777},{"$f":"IFERROR(((VLOOKUP($B14,Pupils,Pupils!$G$3,FALSE)+VLOOKUP($B14,Pupils,Pupils!$H$3,FALSE))/VLOOKUP($B14,Pupils,Pupils!$F$3,FALSE)), \"x\")","v":0.23323574365487698},{"$f":"IFERROR(((VLOOKUP($B14,Pupils,Pupils!$J$3,FALSE)+VLOOKUP($B14,Pupils,Pupils!$K$3,FALSE))/VLOOKUP($B14,Pupils,Pupils!$I$3,FALSE)), \"x\")","v":0.23564707705295554},{"$f":"IFERROR(((VLOOKUP($B14,Pupils,Pupils!$M$3,FALSE)+VLOOKUP($B14,Pupils,Pupils!$P$3,FALSE))/VLOOKUP($B14,Pupils,Pupils!$L$3,FALSE)), \"x\")","v":0.22365358649567352},{"$f":"IFERROR(((VLOOKUP($B14,Pupils,Pupils!$R$3,FALSE)+VLOOKUP($B14,Pupils,Pupils!$U$3,FALSE))/VLOOKUP($B14,Pupils,Pupils!$Q$3,FALSE)), \"x\")","v":0.2048474804495313},{"$f":"IFERROR(((VLOOKUP($B14,Pupils,Pupils!$W$3,FALSE)+VLOOKUP($B14,Pupils,Pupils!$Z$3,FALSE))/VLOOKUP($B14,Pupils,Pupils!$V$3,FALSE)), \"x\")","v":0.19177769202648362},{"$f":"(SUM(INDEX(Pupils!$AB$7:$AB$159,MATCH($B14,Pupils!$A$7:$A$159,0)),INDEX(Pupils!$AC$7:$AC$159,MATCH($B14,Pupils!$A$7:$A$159,0)),INDEX(Pupils!$AD$7:$AD$159,MATCH($B14,Pupils!$A$7:$A$159,0)),INDEX(Pupils!$AE$7:$AE$159,MATCH($B14,Pupils!$A$7:$A$159,0))))/SUM(INDEX(Pupils!$AB$7:$AM$159,MATCH($B14,Pupils!$A$7:$A$159,0),0))","v":0.44644023514043107},{"$f":"SUM(INDEX(Pupils!$AF$7:$AF$159,MATCH($B14,Pupils!$A$7:$A$159,0)))/SUM(INDEX(Pupils!$AB$7:$AM$159,MATCH($B14,Pupils!$A$7:$A$159,0),0))","v":0.15774003919007185},{"$f":"SUM(INDEX(Pupils!$AG$7:$AG$159,MATCH($B14,Pupils!$A$7:$A$159,0)))/SUM(INDEX(Pupils!$AB$7:$AM$159,MATCH($B14,Pupils!$A$7:$A$159,0),0))","v":0.13678423688221206},{"$f":"(SUM(INDEX(Pupils!$AH$7:$AH$159,MATCH($B14,Pupils!$A$7:$A$159,0)),INDEX(Pupils!$AI$7:$AI$159,MATCH($B14,Pupils!$A$7:$A$159,0)),INDEX(Pupils!$AJ$7:$AJ$159,MATCH($B14,Pupils!$A$7:$A$159,0))))/SUM(INDEX(Pupils!$AB$7:$AM$159,MATCH($B14,Pupils!$A$7:$A$159,0),0))","v":4.6429349009362075E-2},{"$f":"SUM(INDEX(Pupils!$AK$7:$AK$159,MATCH($B14,Pupils!$A$7:$A$159,0)))/SUM(INDEX(Pupils!$AB$7:$AM$159,MATCH($B14,Pupils!$A$7:$A$159,0),0))","v":3.7666013498802525E-2},{"$f":"SUM(INDEX(Pupils!$AL$7:$AL$159,MATCH($B14,Pupils!$A$7:$A$159,0)))/SUM(INDEX(Pupils!$AB$7:$AM$159,MATCH($B14,Pupils!$A$7:$A$159,0),0))","v":0.13977792292619204},{"$f":"SUM(INDEX(Pupils!$AM$7:$AM$159,MATCH($B14,Pupils!$A$7:$A$159,0)))/SUM(INDEX(Pupils!$AB$7:$AM$159,MATCH($B14,Pupils!$A$7:$A$159,0),0))","v":3.516220335292837E-2},{"$f":"(SUM(INDEX(Pupils!$BH$7:$BH$159,MATCH($B14,Pupils!$A$7:$A$159,0)),INDEX(Pupils!$BK$7:$BK$159,MATCH($B14,Pupils!$A$7:$A$159,0)),INDEX(Pupils!$BO$7:$BO$159,MATCH($B14,Pupils!$A$7:$A$159,0))))/SUM(INDEX(Pupils!$BH$7:$BS$159,MATCH($B14,Pupils!$A$7:$A$159,0),0))","v":0.35150214592274676},{"$f":"(SUM(INDEX(Pupils!$BL$7:$BL$159,MATCH($B14,Pupils!$A$7:$A$159,0)),INDEX(Pupils!$BM$7:$BM$159,MATCH($B14,Pupils!$A$7:$A$159,0)),INDEX(Pupils!$BP$7:$BP$159,MATCH($B14,Pupils!$A$7:$A$159,0))))/SUM(INDEX(Pupils!$BH$7:$BS$159,MATCH($B14,Pupils!$A$7:$A$159,0),0))","v":0.5227467811158798},{"$f":"(SUM(INDEX(Pupils!$BI$7:$BI$159,MATCH($B14,Pupils!$A$7:$A$159,0)),INDEX(Pupils!$BJ$7:$BJ$159,MATCH($B14,Pupils!$A$7:$A$159,0))))/SUM(INDEX(Pupils!$BH$7:$BS$159,MATCH($B14,Pupils!$A$7:$A$159,0),0))","v":7.625178826895565E-2},{"$f":"(SUM(INDEX(Pupils!$BQ$7:$BQ$159,MATCH($B14,Pupils!$A$7:$A$159,0)),INDEX(Pupils!$BR$7:$BR$159,MATCH($B14,Pupils!$A$7:$A$159,0)),INDEX(Pupils!$BN$7:$BN$159,MATCH($B14,Pupils!$A$7:$A$159,0)),INDEX(Pupils!$BS$7:$BS$159,MATCH($B14,Pupils!$A$7:$A$159,0))))/SUM(INDEX(Pupils!$BH$7:$BS$159,MATCH($B14,Pupils!$A$7:$A$159,0),0))","v":4.9499284692417739E-2},{"$f":"IFERROR((VLOOKUP(B14,Funding,Funding!$C$2,FALSE)), \"x\")","v":111138700.41},{"$f":"IFERROR((AA14/VLOOKUP(B14,Funding,Funding!$D$2,FALSE)), \"x\")","v":0.11185391582372875},{"$f":"IFERROR((AA14/(VLOOKUP(B14,Pupils,Pupils!$M$3,FALSE)+VLOOKUP(B14,Pupils,Pupils!$P$3,FALSE))), \"x\")","v":2610.728221987315},{"$f":"IFERROR((VLOOKUP(B14,Funding,Funding!$E$2,FALSE)), \"x\")","v":114258053.07938996},{"$f":"IFERROR((AD14/VLOOKUP(B14,Funding,Funding!$F$2,FALSE)), \"x\")","v":0.11094150515756157},{"$f":"IFERROR((AD14/(VLOOKUP(B14,Pupils,Pupils!$R$3,FALSE)+VLOOKUP(B14,Pupils,Pupils!$U$3,FALSE))), \"x\")","v":2888.6598846991446},{"$f":"IFERROR((VLOOKUP(B14,Funding,Funding!$G$2,FALSE)), \"x\")","v":121707954.79286587},{"$f":"IFERROR((AG14/VLOOKUP(B14,Funding,Funding!$H$2,FALSE)), \"x\")","v":0.11544332725270019},{"$f":"IFERROR((AG14/(VLOOKUP(B14,Pupils,Pupils!$W$3,FALSE)+VLOOKUP(B14,Pupils,Pupils!$Z$3,FALSE))), \"x\")","v":3222.2592675032665},{"$f":"IFERROR((VLOOKUP(B14,Funding,Funding!$I$2,FALSE)), \"x\")","v":123244217.92642194},{"$f":"IFERROR((AJ14/VLOOKUP(B14,Funding,Funding!$J$2,FALSE)), \"x\")","v":0.11652900117567151},null,{"$f":"IFERROR((VLOOKUP($B14,Funding,Funding!$EC$2,FALSE)), \"x\")","v":86384917.25},{"$f":"IFERROR((AM14/VLOOKUP($B14,Funding,Funding!$EU$2,FALSE)), \"x\")","v":8.9645901502546435E-2},{"$f":"IFERROR((AM14/(VLOOKUP($B14,Pupils,Pupils!$D$3,FALSE)+VLOOKUP($B14,Pupils,Pupils!$E$3,FALSE))), \"x\")","v":2087.1971887986856},{"$f":"IFERROR((VLOOKUP($B14,Funding,Funding!$DA$2,FALSE)), \"x\")","v":89474560.624669999},{"$f":"IFERROR((AP14/VLOOKUP($B14,Funding,Funding!$DT$2,FALSE)), \"x\")","v":8.9022507553194324E-2},{"$f":"IFERROR((AP14/(VLOOKUP($B14,Pupils,Pupils!$G$3,FALSE)+VLOOKUP($B14,Pupils,Pupils!$H$3,FALSE))), \"x\")","v":2064.5752140077993},{"$f":"IFERROR((VLOOKUP($B14,Funding,Funding!$CE$2,FALSE)), \"x\")","v":92081962.835319996},{"$f":"IFERROR((AS14/VLOOKUP($B14,Funding,Funding!$CR$2,FALSE)), \"x\")","v":9.1826672062534059E-2},{"$f":"IFERROR((AS14/(VLOOKUP($B14,Pupils,Pupils!$J$3,FALSE)+VLOOKUP($B14,Pupils,Pupils!$K$3,FALSE))), \"x\")","v":2087.884335199873},{"$f":"IFERROR((VLOOKUP($B14,Funding,Funding!$BM$2,FALSE)), \"x\")","v":96305354.099999994},{"$f":"IFERROR((AV14/VLOOKUP($B14,Funding,Funding!$BY$2,FALSE)), \"x\")","v":9.993040365804319E-2},{"$f":"IFERROR((AV14/(VLOOKUP($B14,Pupils,Pupils!$M$3,FALSE)+VLOOKUP($B14,Pupils,Pupils!$P$3,FALSE))), \"x\")","v":2262.2822198731501},{"$f":"IFERROR((VLOOKUP($B14,Funding,Funding!$AQ$2,FALSE)), \"x\")","v":117398294},{"$f":"IFERROR((AY14/VLOOKUP($B14,Funding,Funding!$BE$2,FALSE)), \"x\")","v":0.1110742385745805},{"$f":"IFERROR((AY14/(VLOOKUP($B14,Pupils,Pupils!$R$3,FALSE)+VLOOKUP($B14,Pupils,Pupils!$U$3,FALSE))), \"x\")","v":2968.0511199878647},{"$f":"IFERROR((VLOOKUP($B14,Funding,Funding!$S$2,FALSE)), \"x\")","v":126556431},{"$f":"IFERROR((BB14/VLOOKUP($B14,Funding,Funding!$AH$2,FALSE)), \"x\")","v":0.11838129894046844},{"$f":"IFERROR((BB14/(VLOOKUP(B14,Pupils,Pupils!$W$3,FALSE)+VLOOKUP(B14,Pupils,Pupils!$Z$3,FALSE))), \"x\")","v":3350.6243149506236},{"$f":"IFERROR((VLOOKUP($B14,Funding,Funding!$GX$2,FALSE)), \"x\")","v":145484403.97549999},{"$f":"IFERROR((BE14/VLOOKUP($B14,Funding,Funding!$HC$2,FALSE)), \"x\")","v":0.13853850922800059},{"$f":"IFERROR((BE14/(VLOOKUP($B14,Pupils,Pupils!$D$3,FALSE)+VLOOKUP($B14,Pupils,Pupils!$E$3,FALSE))), \"x\")","v":3515.1349177418574},{"$f":"IFERROR((VLOOKUP($B14,Funding,Funding!$GP$2,FALSE)), \"x\")","v":164901372.86000001},{"$f":"IFERROR((BH14/VLOOKUP($B14,Funding,Funding!$GU$2,FALSE)), \"x\")","v":0.15476841084374912},{"$f":"IFERROR((BH14/(VLOOKUP($B14,Pupils,Pupils!$G$3,FALSE)+VLOOKUP($B14,Pupils,Pupils!$H$3,FALSE))), \"x\")","v":3805.006526835572},{"$f":"IFERROR((VLOOKUP($B14,Funding,Funding!$GH$2,FALSE)), \"x\")","v":146171997.30000001},{"$f":"IFERROR((BK14/VLOOKUP($B14,Funding,Funding!$GM$2,FALSE)), \"x\")","v":0.14164000324378484},{"$f":"IFERROR((BK14/(VLOOKUP($B14,Pupils,Pupils!$J$3,FALSE)+VLOOKUP($B14,Pupils,Pupils!$K$3,FALSE))), \"x\")","v":3314.3322971226448},{"$f":"IFERROR((VLOOKUP($B14,Funding,Funding!$FZ$2,FALSE)), \"x\")","v":145527910},{"$f":"IFERROR((BN14/VLOOKUP($B14,Funding,Funding!$GE$2,FALSE)), \"x\")","v":0.1486189365789313},{"$f":"IFERROR((BN14/(VLOOKUP($B14,Pupils,Pupils!$M$3,FALSE)+VLOOKUP($B14,Pupils,Pupils!$P$3,FALSE))), \"x\")","v":3418.5555555555557},{"$f":"IFERROR((VLOOKUP($B14,Funding,Funding!$FD$2,FALSE)), \"x\")","v":109932789},{"$f":"IFERROR((BQ14/VLOOKUP($B14,Funding,Funding!$FR$2,FALSE)), \"x\")","v":0.13948297274135518},{"$f":"IFERROR((BQ14/(VLOOKUP($B14,Pupils,Pupils!$R$3,FALSE)+VLOOKUP($B14,Pupils,Pupils!$U$3,FALSE))), \"x\")","v":2779.309020579461},{"$f":"(VLOOKUP(B14,Funding,Funding!$HK$2,FALSE)+VLOOKUP(B14,Funding,Funding!$HL$2,FALSE)+VLOOKUP(B14,Funding,Funding!$HM$2,FALSE))/(VLOOKUP(B14,Funding,Funding!$HN$2,FALSE))","v":0.1645657054049387},{"$f":"IFERROR((VLOOKUP(B14,Other_data,Other!$D$3,FALSE)+VLOOKUP(B14,Other_data,Other!$E$3,FALSE)+VLOOKUP(B14,Other_data,Other!$F$3,FALSE)), \"x\")","v":9240},{"$f":"(VLOOKUP(B14,Other_data,Other!$AK$3,FALSE)+VLOOKUP(B14,Other_data,Other!$AL$3,FALSE))/VLOOKUP(B14,Other_data,Other!$AJ$3,FALSE)","v":4.5735486008565432E-2},{"$f":"(VLOOKUP(B14,Other_data,Other!$AR$3,FALSE)+VLOOKUP(B14,Other_data,Other!$AS$3,FALSE))/VLOOKUP(B14,Other_data,Other!$AQ$3,FALSE)","v":5.7475502748472122E-2},{"$f":"VLOOKUP(B14,Other_data,Other!$AP$3,FALSE)/VLOOKUP(B14,Other_data,Other!$AJ$3,FALSE)","v":1.0013457628921222E-2},{"$f":"VLOOKUP(B14,Other_data,Other!$AW$3,FALSE)/VLOOKUP(B14,Other_data,Other!$AQ$3,FALSE)","v":1.373894636211547E-2}]
[9,889,"Blackburn with Darwen",{"$f":"IFERROR((VLOOKUP($B15,Pupils,Pupils!$D$3,FALSE)/VLOOKUP($B15,Pupils,Pupils!$C$3,FALSE)), \"x\")","v":2.2894199419583677E-2},{"$f":"IFERROR((VLOOKUP($B15,Pupils,Pupils!$G$3,FALSE)/VLOOKUP($B15,Pupils,Pupils!$F$3,FALSE)),\"x\")","v":2.2576071545424802E-2},{"$f":"IFERROR((VLOOKUP($B15,Pupils,Pupils!$J$3,FALSE)/VLOOKUP($B15,Pupils,Pupils!$I$3,FALSE)), \"x\")","v":2.2568940493468796E-2},{"$f":"IFERROR((VLOOKUP($B15,Pupils,Pupils!$M$3,FALSE)/VLOOKUP($B15,Pupils,Pupils!$L$3,FALSE)), \"x\")","v":2.1115203676014733E-2},{"$f":"IFERROR((VLOOKUP($B15,Pupils,Pupils!$R$3,FALSE)/VLOOKUP($B15,Pupils,Pupils!$Q$3,FALSE)), \"x\")","v":1.8958204951607643E-2},{"$f":"IFERROR((VLOOKUP($B15,Pupils,Pupils!$W$3,FALSE)/VLOOKUP($B15,Pupils,Pupils!$V$3,FALSE)), \"x\")","v":1.7973505191550304E-2},{"$f":"IFERROR(((VLOOKUP($B15,Pupils,Pupils!$D$3,FALSE)+VLOOKUP($B15,Pupils,Pupils!$E$3,FALSE))/VLOOKUP($B15,Pupils,Pupils!$C$3,FALSE)), \"x\")","v":0.22019992117803017},{"$f":"IFERROR(((VLOOKUP($B15,Pupils,Pupils!$G$3,FALSE)+VLOOKUP($B15,Pupils,Pupils!$H$3,FALSE))/VLOOKUP($B15,Pupils,Pupils!$F$3,FALSE)), \"x\")","v":0.23019595012178717},{"$f":"IFERROR(((VLOOKUP($B15,Pupils,Pupils!$J$3,FALSE)+VLOOKUP($B15,Pupils,Pupils!$K$3,FALSE))/VLOOKUP($B15,Pupils,Pupils!$I$3,FALSE)), \"x\")","v":0.23018867924528302},{"$f":"IFERROR(((VLOOKUP($B15,Pupils,Pupils!$M$3,FALSE)+VLOOKUP($B15,Pupils,Pupils!$P$3,FALSE))/VLOOKUP($B15,Pupils,Pupils!$L$3,FALSE)), \"x\")","v":0.22639582801502497},{"$f":"IFERROR(((VLOOKUP($B15,Pupils,Pupils!$R$3,FALSE)+VLOOKUP($B15,Pupils,Pupils!$U$3,FALSE))/VLOOKUP($B15,Pupils,Pupils!$Q$3,FALSE)), \"x\")","v":0.22771595316634646},{"$f":"IFERROR(((VLOOKUP($B15,Pupils,Pupils!$W$3,FALSE)+VLOOKUP($B15,Pupils,Pupils!$Z$3,FALSE))/VLOOKUP($B15,Pupils,Pupils!$V$3,FALSE)), \"x\")","v":0.20637307554600787},{"$f":"(SUM(INDEX(Pupils!$AB$7:$AB$159,MATCH($B15,Pupils!$A$7:$A$159,0)),INDEX(Pupils!$AC$7:$AC$159,MATCH($B15,Pupils!$A$7:$A$159,0)),INDEX(Pupils!$AD$7:$AD$159,MATCH($B15,Pupils!$A$7:$A$159,0)),INDEX(Pupils!$AE$7:$AE$159,MATCH($B15,Pupils!$A$7:$A$159,0))))/SUM(INDEX(Pupils!$AB$7:$AM$159,MATCH($B15,Pupils!$A$7:$A$159,0),0))","v":0.29097283085013148},{"$f":"SUM(INDEX(Pupils!$AF$7:$AF$159,MATCH($B15,Pupils!$A$7:$A$159,0)))/SUM(INDEX(Pupils!$AB$7:$AM$159,MATCH($B15,Pupils!$A$7:$A$159,0),0))","v":0.19062226117440842},{"$f":"SUM(INDEX(Pupils!$AG$7:$AG$159,MATCH($B15,Pupils!$A$7:$A$159,0)))/SUM(INDEX(Pupils!$AB$7:$AM$159,MATCH($B15,Pupils!$A$7:$A$159,0),0))","v":0.29053461875547765},{"$f":"(SUM(INDEX(Pupils!$AH$7:$AH$159,MATCH($B15,Pupils!$A$7:$A$159,0)),INDEX(Pupils!$AI$7:$AI$159,MATCH($B15,Pupils!$A$7:$A$159,0)),INDEX(Pupils!$AJ$7:$AJ$159,MATCH($B15,Pupils!$A$7:$A$159,0))))/SUM(INDEX(Pupils!$AB$7:$AM$159,MATCH($B15,Pupils!$A$7:$A$159,0),0))","v":5.8720420683610865E-2},{"$f":"SUM(INDEX(Pupils!$AK$7:$AK$159,MATCH($B15,Pupils!$A$7:$A$159,0)))/SUM(INDEX(Pupils!$AB$7:$AM$159,MATCH($B15,Pupils!$A$7:$A$159,0),0))","v":4.5574057843996492E-2},{"$f":"SUM(INDEX(Pupils!$AL$7:$AL$159,MATCH($B15,Pupils!$A$7:$A$159,0)))/SUM(INDEX(Pupils!$AB$7:$AM$159,MATCH($B15,Pupils!$A$7:$A$159,0),0))","v":5.5214723926380369E-2},{"$f":"SUM(INDEX(Pupils!$AM$7:$AM$159,MATCH($B15,Pupils!$A$7:$A$159,0)))/SUM(INDEX(Pupils!$AB$7:$AM$159,MATCH($B15,Pupils!$A$7:$A$159,0),0))","v":6.8361086765994741E-2},{"$f":"(SUM(INDEX(Pupils!$BH$7:$BH$159,MATCH($B15,Pupils!$A$7:$A$159,0)),INDEX(Pupils!$BK$7:$BK$159,MATCH($B15,Pupils!$A$7:$A$159,0)),INDEX(Pupils!$BO$7:$BO$159,MATCH($B15,Pupils!$A$7:$A$159,0))))/SUM(INDEX(Pupils!$BH$7:$BS$159,MATCH($B15,Pupils!$A$7:$A$159,0),0))","v":0.23450134770889489},{"$f":"(SUM(INDEX(Pupils!$BL$7:$BL$159,MATCH($B15,Pupils!$A$7:$A$159,0)),INDEX(Pupils!$BM$7:$BM$159,MATCH($B15,Pupils!$A$7:$A$159,0)),INDEX(Pupils!$BP$7:$BP$159,MATCH($B15,Pupils!$A$7:$A$159,0))))/SUM(INDEX(Pupils!$BH$7:$BS$159,MATCH($B15,Pupils!$A$7:$A$159,0),0))","v":0.65229110512129385},{"$f":"(SUM(INDEX(Pupils!$BI$7:$BI$159,MATCH($B15,Pupils!$A$7:$A$159,0)),INDEX(Pupils!$BJ$7:$BJ$159,MATCH($B15,Pupils!$A$7:$A$159,0))))/SUM(INDEX(Pupils!$BH$7:$BS$159,MATCH($B15,Pupils!$A$7:$A$159,0),0))","v":8.6253369272237201E-2},{"$f":"(SUM(INDEX(Pupils!$BQ$7:$BQ$159,MATCH($B15,Pupils!$A$7:$A$159,0)),INDEX(Pupils!$BR$7:$BR$159,MATCH($B15,Pupils!$A$7:$A$159,0)),INDEX(Pupils!$BN$7:$BN$159,MATCH($B15,Pupils!$A$7:$A$159,0)),INDEX(Pupils!$BS$7:$BS$159,MATCH($B15,Pupils!$A$7:$A$159,0))))/SUM(INDEX(Pupils!$BH$7:$BS$159,MATCH($B15,Pupils!$A$7:$A$159,0),0))","v":2.6954177897574125E-2},{"$f":"IFERROR((VLOOKUP(B15,Funding,Funding!$C$2,FALSE)), \"x\")","v":20480586.869999997},{"$f":"IFERROR((AA15/VLOOKUP(B15,Funding,Funding!$D$2,FALSE)), \"x\")","v":0.15240254166240644},{"$f":"IFERROR((AA15/(VLOOKUP(B15,Pupils,Pupils!$M$3,FALSE)+VLOOKUP(B15,Pupils,Pupils!$P$3,FALSE))), \"x\")","v":3299.0636066365973},{"$f":"IFERROR((VLOOKUP(B15,Funding,Funding!$E$2,FALSE)), \"x\")","v":20961153.488315396},{"$f":"IFERROR((AD15/VLOOKUP(B15,Funding,Funding!$F$2,FALSE)), \"x\")","v":0.15223671471925809},{"$f":"IFERROR((AD15/(VLOOKUP(B15,Pupils,Pupils!$R$3,FALSE)+VLOOKUP(B15,Pupils,Pupils!$U$3,FALSE))), \"x\")","v":3336.7006507983756},{"$f":"IFERROR((VLOOKUP(B15,Funding,Funding!$G$2,FALSE)), \"x\")","v":21667552.603920661},{"$f":"IFERROR((AG15/VLOOKUP(B15,Funding,Funding!$H$2,FALSE)), \"x\")","v":0.15676592557766281},{"$f":"IFERROR((AG15/(VLOOKUP(B15,Pupils,Pupils!$W$3,FALSE)+VLOOKUP(B15,Pupils,Pupils!$Z$3,FALSE))), \"x\")","v":3759.1173844414748},{"$f":"IFERROR((VLOOKUP(B15,Funding,Funding!$I$2,FALSE)), \"x\")","v":21841443.218803171},{"$f":"IFERROR((AJ15/VLOOKUP(B15,Funding,Funding!$J$2,FALSE)), \"x\")","v":0.15448750331590869},null,{"$f":"IFERROR((VLOOKUP($B15,Funding,Funding!$EC$2,FALSE)), \"x\")","v":11256405.92},{"$f":"IFERROR((AM15/VLOOKUP($B15,Funding,Funding!$EU$2,FALSE)), \"x\")","v":8.9529253208778831E-2},{"$f":"IFERROR((AM15/(VLOOKUP($B15,Pupils,Pupils!$D$3,FALSE)+VLOOKUP($B15,Pupils,Pupils!$E$3,FALSE))), \"x\")","v":1831.5011259355679},{"$f":"IFERROR((VLOOKUP($B15,Funding,Funding!$DA$2,FALSE)), \"x\")","v":12114295},{"$f":"IFERROR((AP15/VLOOKUP($B15,Funding,Funding!$DT$2,FALSE)), \"x\")","v":9.1959016699818374E-2},{"$f":"IFERROR((AP15/(VLOOKUP($B15,Pupils,Pupils!$G$3,FALSE)+VLOOKUP($B15,Pupils,Pupils!$H$3,FALSE))), \"x\")","v":1913.1861970941252},{"$f":"IFERROR((VLOOKUP($B15,Funding,Funding!$CE$2,FALSE)), \"x\")","v":12181200},{"$f":"IFERROR((AS15/VLOOKUP($B15,Funding,Funding!$CR$2,FALSE)), \"x\")","v":9.0467852749243266E-2},{"$f":"IFERROR((AS15/(VLOOKUP($B15,Pupils,Pupils!$J$3,FALSE)+VLOOKUP($B15,Pupils,Pupils!$K$3,FALSE))), \"x\")","v":1920.1134930643127},{"$f":"IFERROR((VLOOKUP($B15,Funding,Funding!$BM$2,FALSE)), \"x\")","v":11333177.16},{"$f":"IFERROR((AV15/VLOOKUP($B15,Funding,Funding!$BY$2,FALSE)), \"x\")","v":8.6801192647298034E-2},{"$f":"IFERROR((AV15/(VLOOKUP($B15,Pupils,Pupils!$M$3,FALSE)+VLOOKUP($B15,Pupils,Pupils!$P$3,FALSE))), \"x\")","v":1825.5762177835052},{"$f":"IFERROR((VLOOKUP($B15,Funding,Funding!$AQ$2,FALSE)), \"x\")","v":16407027},{"$f":"IFERROR((AY15/VLOOKUP($B15,Funding,Funding!$BE$2,FALSE)), \"x\")","v":0.1180696921636669},{"$f":"IFERROR((AY15/(VLOOKUP($B15,Pupils,Pupils!$R$3,FALSE)+VLOOKUP($B15,Pupils,Pupils!$U$3,FALSE))), \"x\")","v":2611.7521489971346},{"$f":"IFERROR((VLOOKUP($B15,Funding,Funding!$S$2,FALSE)), \"x\")","v":16158045},{"$f":"IFERROR((BB15/VLOOKUP($B15,Funding,Funding!$AH$2,FALSE)), \"x\")","v":0.11601747371369305},{"$f":"IFERROR((BB15/(VLOOKUP(B15,Pupils,Pupils!$W$3,FALSE)+VLOOKUP(B15,Pupils,Pupils!$Z$3,FALSE))), \"x\")","v":2803.2694309507287},{"$f":"IFERROR((VLOOKUP($B15,Funding,Funding!$GX$2,FALSE)), \"x\")","v":18374226},{"$f":"IFERROR((BE15/VLOOKUP($B15,Funding,Funding!$HC$2,FALSE)), \"x\")","v":0.12163340868390822},{"$f":"IFERROR((BE15/(VLOOKUP($B15,Pupils,Pupils!$D$3,FALSE)+VLOOKUP($B15,Pupils,Pupils!$E$3,FALSE))), \"x\")","v":2989.623494956069},{"$f":"IFERROR((VLOOKUP($B15,Funding,Funding!$GP$2,FALSE)), \"x\")","v":20365970.829999998},{"$f":"IFERROR((BH15/VLOOKUP($B15,Funding,Funding!$GU$2,FALSE)), \"x\")","v":0.13908146769896032},{"$f":"IFERROR((BH15/(VLOOKUP($B15,Pupils,Pupils!$G$3,FALSE)+VLOOKUP($B15,Pupils,Pupils!$H$3,FALSE))), \"x\")","v":3216.3567324699934},{"$f":"IFERROR((VLOOKUP($B15,Funding,Funding!$GH$2,FALSE)), \"x\")","v":19141339.829999998},{"$f":"IFERROR((BK15/VLOOKUP($B15,Funding,Funding!$GM$2,FALSE)), \"x\")","v":0.13722830465737232},{"$f":"IFERROR((BK15/(VLOOKUP($B15,Pupils,Pupils!$J$3,FALSE)+VLOOKUP($B15,Pupils,Pupils!$K$3,FALSE))), \"x\")","v":3017.2351560529632},{"$f":"IFERROR((VLOOKUP($B15,Funding,Funding!$FZ$2,FALSE)), \"x\")","v":16330886.26},{"$f":"IFERROR((BN15/VLOOKUP($B15,Funding,Funding!$GE$2,FALSE)), \"x\")","v":0.12005309528356926},{"$f":"IFERROR((BN15/(VLOOKUP($B15,Pupils,Pupils!$M$3,FALSE)+VLOOKUP($B15,Pupils,Pupils!$P$3,FALSE))), \"x\")","v":2630.6195650773197},{"$f":"IFERROR((VLOOKUP($B15,Funding,Funding!$FD$2,FALSE)), \"x\")","v":16660738},{"$f":"IFERROR((BQ15/VLOOKUP($B15,Funding,Funding!$FR$2,FALSE)), \"x\")","v":0.13302102720977879},{"$f":"IFERROR((BQ15/(VLOOKUP($B15,Pupils,Pupils!$R$3,FALSE)+VLOOKUP($B15,Pupils,Pupils!$U$3,FALSE))), \"x\")","v":2652.1391276663485},{"$f":"(VLOOKUP(B15,Funding,Funding!$HK$2,FALSE)+VLOOKUP(B15,Funding,Funding!$HL$2,FALSE)+VLOOKUP(B15,Funding,Funding!$HM$2,FALSE))/(VLOOKUP(B15,Funding,Funding!$HN$2,FALSE))","v":0.19381107491856678},{"$f":"IFERROR((VLOOKUP(B15,Other_data,Other!$D$3,FALSE)+VLOOKUP(B15,Other_data,Other!$E$3,FALSE)+VLOOKUP(B15,Other_data,Other!$F$3,FALSE)), \"x\")","v":960},{"$f":"(VLOOKUP(B15,Other_data,Other!$AK$3,FALSE)+VLOOKUP(B15,Other_data,Other!$AL$3,FALSE))/VLOOKUP(B15,Other_data,Other!$AJ$3,FALSE)","v":3.9387116582356212E-2},{"$f":"(VLOOKUP(B15,Other_data,Other!$AR$3,FALSE)+VLOOKUP(B15,Other_data,Other!$AS$3,FALSE))/VLOOKUP(B15,Other_data,Other!$AQ$3,FALSE)","v":5.9657617153726437E-2},{"$f":"VLOOKUP(B15,Other_data,Other!$AP$3,FALSE)/VLOOKUP(B15,Other_data,Other!$AJ$3,FALSE)","v":7.2516740255563032E-3},{"$f":"VLOOKUP(B15,Other_data,Other!$AW$3,FALSE)/VLOOKUP(B15,Other_data,Other!$AQ$3,FALSE)","v":1.4467692662401291E-2}]
[10,890,"Blackpool",{"$f":"IFERROR((VLOOKUP($B16,Pupils,Pupils!$D$3,FALSE)/VLOOKUP($B16,Pupils,Pupils!$C$3,FALSE)), \"x\")","v":2.3088982849541546E-2},{"$f":"IFERROR((VLOOKUP($B16,Pupils,Pupils!$G$3,FALSE)/VLOOKUP($B16,Pupils,Pupils!$F$3,FALSE)),\"x\")","v":2.210104714568354E-2},{"$f":"IFERROR((VLOOKUP($B16,Pupils,Pupils!$J$3,FALSE)/VLOOKUP($B16,Pupils,Pupils!$I$3,FALSE)), \"x\")","v":2.2252653200958577E-2},{"$f":"IFERROR((VLOOKUP($B16,Pupils,Pupils!$M$3,FALSE)/VLOOKUP($B16,Pupils,Pupils!$L$3,FALSE)), \"x\")","v":2.284649703387753E-2},{"$f":"IFERROR((VLOOKUP($B16,Pupils,Pupils!$R$3,FALSE)/VLOOKUP($B16,Pupils,Pupils!$Q$3,FALSE)), \"x\")","v":2.27452141306493E-2},{"$f":"IFERROR((VLOOKUP($B16,Pupils,Pupils!$W$3,FALSE)/VLOOKUP($B16,Pupils,Pupils!$V$3,FALSE)), \"x\")","v":2.3089295906190008E-2},{"$f":"IFERROR(((VLOOKUP($B16,Pupils,Pupils!$D$3,FALSE)+VLOOKUP($B16,Pupils,Pupils!$E$3,FALSE))/VLOOKUP($B16,Pupils,Pupils!$C$3,FALSE)), \"x\")","v":0.25312366383201101},{"$f":"IFERROR(((VLOOKUP($B16,Pupils,Pupils!$G$3,FALSE)+VLOOKUP($B16,Pupils,Pupils!$H$3,FALSE))/VLOOKUP($B16,Pupils,Pupils!$F$3,FALSE)), \"x\")","v":0.25078415287361866},{"$f":"IFERROR(((VLOOKUP($B16,Pupils,Pupils!$J$3,FALSE)+VLOOKUP($B16,Pupils,Pupils!$K$3,FALSE))/VLOOKUP($B16,Pupils,Pupils!$I$3,FALSE)), \"x\")","v":0.250207854452976},{"$f":"IFERROR(((VLOOKUP($B16,Pupils,Pupils!$M$3,FALSE)+VLOOKUP($B16,Pupils,Pupils!$P$3,FALSE))/VLOOKUP($B16,Pupils,Pupils!$L$3,FALSE)), \"x\")","v":0.24327106927489336},{"$f":"IFERROR(((VLOOKUP($B16,Pupils,Pupils!$R$3,FALSE)+VLOOKUP($B16,Pupils,Pupils!$U$3,FALSE))/VLOOKUP($B16,Pupils,Pupils!$Q$3,FALSE)), \"x\")","v":0.23179396092362345},{"$f":"IFERROR(((VLOOKUP($B16,Pupils,Pupils!$W$3,FALSE)+VLOOKUP($B16,Pupils,Pupils!$Z$3,FALSE))/VLOOKUP($B16,Pupils,Pupils!$V$3,FALSE)), \"x\")","v":0.21128002905619261},{"$f":"(SUM(INDEX(Pupils!$AB$7:$AB$159,MATCH($B16,Pupils!$A$7:$A$159,0)),INDEX(Pupils!$AC$7:$AC$159,MATCH($B16,Pupils!$A$7:$A$159,0)),INDEX(Pupils!$AD$7:$AD$159,MATCH($B16,Pupils!$A$7:$A$159,0)),INDEX(Pupils!$AE$7:$AE$159,MATCH($B16,Pupils!$A$7:$A$159,0))))/SUM(INDEX(Pupils!$AB$7:$AM$159,MATCH($B16,Pupils!$A$7:$A$159,0),0))","v":0.33282597666159308},{"$f":"SUM(INDEX(Pupils!$AF$7:$AF$159,MATCH($B16,Pupils!$A$7:$A$159,0)))/SUM(INDEX(Pupils!$AB$7:$AM$159,MATCH($B16,Pupils!$A$7:$A$159,0),0))","v":0.23896499238964991},{"$f":"SUM(INDEX(Pupils!$AG$7:$AG$159,MATCH($B16,Pupils!$A$7:$A$159,0)))/SUM(INDEX(Pupils!$AB$7:$AM$159,MATCH($B16,Pupils!$A$7:$A$159,0),0))","v":0.23693556570268898},{"$f":"(SUM(INDEX(Pupils!$AH$7:$AH$159,MATCH($B16,Pupils!$A$7:$A$159,0)),INDEX(Pupils!$AI$7:$AI$159,MATCH($B16,Pupils!$A$7:$A$159,0)),INDEX(Pupils!$AJ$7:$AJ$159,MATCH($B16,Pupils!$A$7:$A$159,0))))/SUM(INDEX(Pupils!$AB$7:$AM$159,MATCH($B16,Pupils!$A$7:$A$159,0),0))","v":3.5514967021816335E-2},{"$f":"SUM(INDEX(Pupils!$AK$7:$AK$159,MATCH($B16,Pupils!$A$7:$A$159,0)))/SUM(INDEX(Pupils!$AB$7:$AM$159,MATCH($B16,Pupils!$A$7:$A$159,0),0))","v":5.2257737189244036E-2},{"$f":"SUM(INDEX(Pupils!$AL$7:$AL$159,MATCH($B16,Pupils!$A$7:$A$159,0)))/SUM(INDEX(Pupils!$AB$7:$AM$159,MATCH($B16,Pupils!$A$7:$A$159,0),0))","v":7.102993404363267E-2},{"$f":"SUM(INDEX(Pupils!$AM$7:$AM$159,MATCH($B16,Pupils!$A$7:$A$159,0)))/SUM(INDEX(Pupils!$AB$7:$AM$159,MATCH($B16,Pupils!$A$7:$A$159,0),0))","v":3.2470826991374935E-2},{"$f":"(SUM(INDEX(Pupils!$BH$7:$BH$159,MATCH($B16,Pupils!$A$7:$A$159,0)),INDEX(Pupils!$BK$7:$BK$159,MATCH($B16,Pupils!$A$7:$A$159,0)),INDEX(Pupils!$BO$7:$BO$159,MATCH($B16,Pupils!$A$7:$A$159,0))))/SUM(INDEX(Pupils!$BH$7:$BS$159,MATCH($B16,Pupils!$A$7:$A$159,0),0))","v":0.29218106995884774},{"$f":"(SUM(INDEX(Pupils!$BL$7:$BL$159,MATCH($B16,Pupils!$A$7:$A$159,0)),INDEX(Pupils!$BM$7:$BM$159,MATCH($B16,Pupils!$A$7:$A$159,0)),INDEX(Pupils!$BP$7:$BP$159,MATCH($B16,Pupils!$A$7:$A$159,0))))/SUM(INDEX(Pupils!$BH$7:$BS$159,MATCH($B16,Pupils!$A$7:$A$159,0),0))","v":0.68518518518518523},{"$f":"(SUM(INDEX(Pupils!$BI$7:$BI$159,MATCH($B16,Pupils!$A$7:$A$159,0)),INDEX(Pupils!$BJ$7:$BJ$159,MATCH($B16,Pupils!$A$7:$A$159,0))))/SUM(INDEX(Pupils!$BH$7:$BS$159,MATCH($B16,Pupils!$A$7:$A$159,0),0))","v":1.0288065843621399E-2},{"$f":"(SUM(INDEX(Pupils!$BQ$7:$BQ$159,MATCH($B16,Pupils!$A$7:$A$159,0)),INDEX(Pupils!$BR$7:$BR$159,MATCH($B16,Pupils!$A$7:$A$159,0)),INDEX(Pupils!$BN$7:$BN$159,MATCH($B16,Pupils!$A$7:$A$159,0)),INDEX(Pupils!$BS$7:$BS$159,MATCH($B16,Pupils!$A$7:$A$159,0))))/SUM(INDEX(Pupils!$BH$7:$BS$159,MATCH($B16,Pupils!$A$7:$A$159,0),0))","v":1.2345679012345678E-2},{"$f":"IFERROR((VLOOKUP(B16,Funding,Funding!$C$2,FALSE)), \"x\")","v":14380699.279999999},{"$f":"IFERROR((AA16/VLOOKUP(B16,Funding,Funding!$D$2,FALSE)), \"x\")","v":0.14337523096631535},{"$f":"IFERROR((AA16/(VLOOKUP(B16,Pupils,Pupils!$M$3,FALSE)+VLOOKUP(B16,Pupils,Pupils!$P$3,FALSE))), \"x\")","v":2898.1659169689642},{"$f":"IFERROR((VLOOKUP(B16,Funding,Funding!$E$2,FALSE)), \"x\")","v":15373230.76816909},{"$f":"IFERROR((AD16/VLOOKUP(B16,Funding,Funding!$F$2,FALSE)), \"x\")","v":0.14745093726381059},{"$f":"IFERROR((AD16/(VLOOKUP(B16,Pupils,Pupils!$R$3,FALSE)+VLOOKUP(B16,Pupils,Pupils!$U$3,FALSE))), \"x\")","v":3272.2926283884822},{"$f":"IFERROR((VLOOKUP(B16,Funding,Funding!$G$2,FALSE)), \"x\")","v":16263938.404015107},{"$f":"IFERROR((AG16/VLOOKUP(B16,Funding,Funding!$H$2,FALSE)), \"x\")","v":0.15600147271689924},{"$f":"IFERROR((AG16/(VLOOKUP(B16,Pupils,Pupils!$W$3,FALSE)+VLOOKUP(B16,Pupils,Pupils!$Z$3,FALSE))), \"x\")","v":3994.090963657934},{"$f":"IFERROR((VLOOKUP(B16,Funding,Funding!$I$2,FALSE)), \"x\")","v":16452346.354302069},{"$f":"IFERROR((AJ16/VLOOKUP(B16,Funding,Funding!$J$2,FALSE)), \"x\")","v":0.15998314197380414},null,{"$f":"IFERROR((VLOOKUP($B16,Funding,Funding!$EC$2,FALSE)), \"x\")","v":10339892.25},{"$f":"IFERROR((AM16/VLOOKUP($B16,Funding,Funding!$EU$2,FALSE)), \"x\")","v":0.10320683095323174},{"$f":"IFERROR((AM16/(VLOOKUP($B16,Pupils,Pupils!$D$3,FALSE)+VLOOKUP($B16,Pupils,Pupils!$E$3,FALSE))), \"x\")","v":1940.6704673423424},{"$f":"IFERROR((VLOOKUP($B16,Funding,Funding!$DA$2,FALSE)), \"x\")","v":9859346.7620000001},{"$f":"IFERROR((AP16/VLOOKUP($B16,Funding,Funding!$DT$2,FALSE)), \"x\")","v":9.7393030266052463E-2},{"$f":"IFERROR((AP16/(VLOOKUP($B16,Pupils,Pupils!$G$3,FALSE)+VLOOKUP($B16,Pupils,Pupils!$H$3,FALSE))), \"x\")","v":1897.1227173369252},{"$f":"IFERROR((VLOOKUP($B16,Funding,Funding!$CE$2,FALSE)), \"x\")","v":9203816},{"$f":"IFERROR((AS16/VLOOKUP($B16,Funding,Funding!$CR$2,FALSE)), \"x\")","v":8.8476177231323394E-2},{"$f":"IFERROR((AS16/(VLOOKUP($B16,Pupils,Pupils!$J$3,FALSE)+VLOOKUP($B16,Pupils,Pupils!$K$3,FALSE))), \"x\")","v":1799.0258014073495},{"$f":"IFERROR((VLOOKUP($B16,Funding,Funding!$BM$2,FALSE)), \"x\")","v":8955040.0500000007},{"$f":"IFERROR((AV16/VLOOKUP($B16,Funding,Funding!$BY$2,FALSE)), \"x\")","v":8.4829695583952314E-2},{"$f":"IFERROR((AV16/(VLOOKUP($B16,Pupils,Pupils!$M$3,FALSE)+VLOOKUP($B16,Pupils,Pupils!$P$3,FALSE))), \"x\")","v":1804.7239117291417},{"$f":"IFERROR((VLOOKUP($B16,Funding,Funding!$AQ$2,FALSE)), \"x\")","v":15379962},{"$f":"IFERROR((AY16/VLOOKUP($B16,Funding,Funding!$BE$2,FALSE)), \"x\")","v":0.1469345638773609},{"$f":"IFERROR((AY16/(VLOOKUP($B16,Pupils,Pupils!$R$3,FALSE)+VLOOKUP($B16,Pupils,Pupils!$U$3,FALSE))), \"x\")","v":3273.7254150702424},{"$f":"IFERROR((VLOOKUP($B16,Funding,Funding!$S$2,FALSE)), \"x\")","v":14362177},{"$f":"IFERROR((BB16/VLOOKUP($B16,Funding,Funding!$AH$2,FALSE)), \"x\")","v":0.13784478731944938},{"$f":"IFERROR((BB16/(VLOOKUP(B16,Pupils,Pupils!$W$3,FALSE)+VLOOKUP(B16,Pupils,Pupils!$Z$3,FALSE))), \"x\")","v":3527.0572200392926},{"$f":"IFERROR((VLOOKUP($B16,Funding,Funding!$GX$2,FALSE)), \"x\")","v":13405895},{"$f":"IFERROR((BE16/VLOOKUP($B16,Funding,Funding!$HC$2,FALSE)), \"x\")","v":0.1166001201740384},{"$f":"IFERROR((BE16/(VLOOKUP($B16,Pupils,Pupils!$D$3,FALSE)+VLOOKUP($B16,Pupils,Pupils!$E$3,FALSE))), \"x\")","v":2516.121433933934},{"$f":"IFERROR((VLOOKUP($B16,Funding,Funding!$GP$2,FALSE)), \"x\")","v":13133279.789999999},{"$f":"IFERROR((BH16/VLOOKUP($B16,Funding,Funding!$GU$2,FALSE)), \"x\")","v":0.1119769844798628},{"$f":"IFERROR((BH16/(VLOOKUP($B16,Pupils,Pupils!$G$3,FALSE)+VLOOKUP($B16,Pupils,Pupils!$H$3,FALSE))), \"x\")","v":2527.0886646142003},{"$f":"IFERROR((VLOOKUP($B16,Funding,Funding!$GH$2,FALSE)), \"x\")","v":12762033},{"$f":"IFERROR((BK16/VLOOKUP($B16,Funding,Funding!$GM$2,FALSE)), \"x\")","v":0.1143867967969521},{"$f":"IFERROR((BK16/(VLOOKUP($B16,Pupils,Pupils!$J$3,FALSE)+VLOOKUP($B16,Pupils,Pupils!$K$3,FALSE))), \"x\")","v":2494.53342455043},{"$f":"IFERROR((VLOOKUP($B16,Funding,Funding!$FZ$2,FALSE)), \"x\")","v":12377348},{"$f":"IFERROR((BN16/VLOOKUP($B16,Funding,Funding!$GE$2,FALSE)), \"x\")","v":0.12562672417881871},{"$f":"IFERROR((BN16/(VLOOKUP($B16,Pupils,Pupils!$M$3,FALSE)+VLOOKUP($B16,Pupils,Pupils!$P$3,FALSE))), \"x\")","v":2494.4272470777914},{"$f":"IFERROR((VLOOKUP($B16,Funding,Funding!$FD$2,FALSE)), \"x\")","v":13370925},{"$f":"IFERROR((BQ16/VLOOKUP($B16,Funding,Funding!$FR$2,FALSE)), \"x\")","v":0.17247564749773531},{"$f":"IFERROR((BQ16/(VLOOKUP($B16,Pupils,Pupils!$R$3,FALSE)+VLOOKUP($B16,Pupils,Pupils!$U$3,FALSE))), \"x\")","v":2846.0887611749681},{"$f":"(VLOOKUP(B16,Funding,Funding!$HK$2,FALSE)+VLOOKUP(B16,Funding,Funding!$HL$2,FALSE)+VLOOKUP(B16,Funding,Funding!$HM$2,FALSE))/(VLOOKUP(B16,Funding,Funding!$HN$2,FALSE))","v":0.19248120300751881},{"$f":"IFERROR((VLOOKUP(B16,Other_data,Other!$D$3,FALSE)+VLOOKUP(B16,Other_data,Other!$E$3,FALSE)+VLOOKUP(B16,Other_data,Other!$F$3,FALSE)), \"x\")","v":940},{"$f":"(VLOOKUP(B16,Other_data,Other!$AK$3,FALSE)+VLOOKUP(B16,Other_data,Other!$AL$3,FALSE))/VLOOKUP(B16,Other_data,Other!$AJ$3,FALSE)","v":4.4718673121180857E-2},{"$f":"(VLOOKUP(B16,Other_data,Other!$AR$3,FALSE)+VLOOKUP(B16,Other_data,Other!$AS$3,FALSE))/VLOOKUP(B16,Other_data,Other!$AQ$3,FALSE)","v":7.0024327700703534E-2},{"$f":"VLOOKUP(B16,Other_data,Other!$AP$3,FALSE)/VLOOKUP(B16,Other_data,Other!$AJ$3,FALSE)","v":7.4200460280930084E-3},{"$f":"VLOOKUP(B16,Other_data,Other!$AW$3,FALSE)/VLOOKUP(B16,Other_data,Other!$AQ$3,FALSE)","v":1.6832138865145639E-2}]
[11,350,"Bolton",{"$f":"IFERROR((VLOOKUP($B17,Pupils,Pupils!$D$3,FALSE)/VLOOKUP($B17,Pupils,Pupils!$C$3,FALSE)), \"x\")","v":2.3996183839389413E-2},{"$f":"IFERROR((VLOOKUP($B17,Pupils,Pupils!$G$3,FALSE)/VLOOKUP($B17,Pupils,Pupils!$F$3,FALSE)),\"x\")","v":2.3745659451479426E-2},{"$f":"IFERROR((VLOOKUP($B17,Pupils,Pupils!$J$3,FALSE)/VLOOKUP($B17,Pupils,Pupils!$I$3,FALSE)), \"x\")","v":2.3223023969478312E-2},{"$f":"IFERROR((VLOOKUP($B17,Pupils,Pupils!$M$3,FALSE)/VLOOKUP($B17,Pupils,Pupils!$L$3,FALSE)), \"x\")","v":2.4184268924139066E-2},{"$f":"IFERROR((VLOOKUP($B17,Pupils,Pupils!$R$3,FALSE)/VLOOKUP($B17,Pupils,Pupils!$Q$3,FALSE)), \"x\")","v":2.5153523933466183E-2},{"$f":"IFERROR((VLOOKUP($B17,Pupils,Pupils!$W$3,FALSE)/VLOOKUP($B17,Pupils,Pupils!$V$3,FALSE)), \"x\")","v":2.5740309766471389E-2},{"$f":"IFERROR(((VLOOKUP($B17,Pupils,Pupils!$D$3,FALSE)+VLOOKUP($B17,Pupils,Pupils!$E$3,FALSE))/VLOOKUP($B17,Pupils,Pupils!$C$3,FALSE)), \"x\")","v":0.19207317073170732},{"$f":"IFERROR(((VLOOKUP($B17,Pupils,Pupils!$G$3,FALSE)+VLOOKUP($B17,Pupils,Pupils!$H$3,FALSE))/VLOOKUP($B17,Pupils,Pupils!$F$3,FALSE)), \"x\")","v":0.19291788825816647},{"$f":"IFERROR(((VLOOKUP($B17,Pupils,Pupils!$J$3,FALSE)+VLOOKUP($B17,Pupils,Pupils!$K$3,FALSE))/VLOOKUP($B17,Pupils,Pupils!$I$3,FALSE)), \"x\")","v":0.18839678195239279},{"$f":"IFERROR(((VLOOKUP($B17,Pupils,Pupils!$M$3,FALSE)+VLOOKUP($B17,Pupils,Pupils!$P$3,FALSE))/VLOOKUP($B17,Pupils,Pupils!$L$3,FALSE)), \"x\")","v":0.17672803484836033},{"$f":"IFERROR(((VLOOKUP($B17,Pupils,Pupils!$R$3,FALSE)+VLOOKUP($B17,Pupils,Pupils!$U$3,FALSE))/VLOOKUP($B17,Pupils,Pupils!$Q$3,FALSE)), \"x\")","v":0.15545569156940095},{"$f":"IFERROR(((VLOOKUP($B17,Pupils,Pupils!$W$3,FALSE)+VLOOKUP($B17,Pupils,Pupils!$Z$3,FALSE))/VLOOKUP($B17,Pupils,Pupils!$V$3,FALSE)), \"x\")","v":0.15542492576839739},{"$f":"(SUM(INDEX(Pupils!$AB$7:$AB$159,MATCH($B17,Pupils!$A$7:$A$159,0)),INDEX(Pupils!$AC$7:$AC$159,MATCH($B17,Pupils!$A$7:$A$159,0)),INDEX(Pupils!$AD$7:$AD$159,MATCH($B17,Pupils!$A$7:$A$159,0)),INDEX(Pupils!$AE$7:$AE$159,MATCH($B17,Pupils!$A$7:$A$159,0))))/SUM(INDEX(Pupils!$AB$7:$AM$159,MATCH($B17,Pupils!$A$7:$A$159,0),0))","v":0.36935830518882407},{"$f":"SUM(INDEX(Pupils!$AF$7:$AF$159,MATCH($B17,Pupils!$A$7:$A$159,0)))/SUM(INDEX(Pupils!$AB$7:$AM$159,MATCH($B17,Pupils!$A$7:$A$159,0),0))","v":0.24009824992324225},{"$f":"SUM(INDEX(Pupils!$AG$7:$AG$159,MATCH($B17,Pupils!$A$7:$A$159,0)))/SUM(INDEX(Pupils!$AB$7:$AM$159,MATCH($B17,Pupils!$A$7:$A$159,0),0))","v":0.16856002456248081},{"$f":"(SUM(INDEX(Pupils!$AH$7:$AH$159,MATCH($B17,Pupils!$A$7:$A$159,0)),INDEX(Pupils!$AI$7:$AI$159,MATCH($B17,Pupils!$A$7:$A$159,0)),INDEX(Pupils!$AJ$7:$AJ$159,MATCH($B17,Pupils!$A$7:$A$159,0))))/SUM(INDEX(Pupils!$AB$7:$AM$159,MATCH($B17,Pupils!$A$7:$A$159,0),0))","v":7.1845256370893465E-2},{"$f":"SUM(INDEX(Pupils!$AK$7:$AK$159,MATCH($B17,Pupils!$A$7:$A$159,0)))/SUM(INDEX(Pupils!$AB$7:$AM$159,MATCH($B17,Pupils!$A$7:$A$159,0),0))","v":4.052809333742708E-2},{"$f":"SUM(INDEX(Pupils!$AL$7:$AL$159,MATCH($B17,Pupils!$A$7:$A$159,0)))/SUM(INDEX(Pupils!$AB$7:$AM$159,MATCH($B17,Pupils!$A$7:$A$159,0),0))","v":8.9960085968682837E-2},{"$f":"SUM(INDEX(Pupils!$AM$7:$AM$159,MATCH($B17,Pupils!$A$7:$A$159,0)))/SUM(INDEX(Pupils!$AB$7:$AM$159,MATCH($B17,Pupils!$A$7:$A$159,0),0))","v":1.9649984648449494E-2},{"$f":"(SUM(INDEX(Pupils!$BH$7:$BH$159,MATCH($B17,Pupils!$A$7:$A$159,0)),INDEX(Pupils!$BK$7:$BK$159,MATCH($B17,Pupils!$A$7:$A$159,0)),INDEX(Pupils!$BO$7:$BO$159,MATCH($B17,Pupils!$A$7:$A$159,0))))/SUM(INDEX(Pupils!$BH$7:$BS$159,MATCH($B17,Pupils!$A$7:$A$159,0),0))","v":0.55273287143956895},{"$f":"(SUM(INDEX(Pupils!$BL$7:$BL$159,MATCH($B17,Pupils!$A$7:$A$159,0)),INDEX(Pupils!$BM$7:$BM$159,MATCH($B17,Pupils!$A$7:$A$159,0)),INDEX(Pupils!$BP$7:$BP$159,MATCH($B17,Pupils!$A$7:$A$159,0))))/SUM(INDEX(Pupils!$BH$7:$BS$159,MATCH($B17,Pupils!$A$7:$A$159,0),0))","v":0.40646651270207851},{"$f":"(SUM(INDEX(Pupils!$BI$7:$BI$159,MATCH($B17,Pupils!$A$7:$A$159,0)),INDEX(Pupils!$BJ$7:$BJ$159,MATCH($B17,Pupils!$A$7:$A$159,0))))/SUM(INDEX(Pupils!$BH$7:$BS$159,MATCH($B17,Pupils!$A$7:$A$159,0),0))","v":1.924557351809084E-2},{"$f":"(SUM(INDEX(Pupils!$BQ$7:$BQ$159,MATCH($B17,Pupils!$A$7:$A$159,0)),INDEX(Pupils!$BR$7:$BR$159,MATCH($B17,Pupils!$A$7:$A$159,0)),INDEX(Pupils!$BN$7:$BN$159,MATCH($B17,Pupils!$A$7:$A$159,0)),INDEX(Pupils!$BS$7:$BS$159,MATCH($B17,Pupils!$A$7:$A$159,0))))/SUM(INDEX(Pupils!$BH$7:$BS$159,MATCH($B17,Pupils!$A$7:$A$159,0),0))","v":2.1555042340261739E-2},{"$f":"IFERROR((VLOOKUP(B17,Funding,Funding!$C$2,FALSE)), \"x\")","v":25055804.189999998},{"$f":"IFERROR((AA17/VLOOKUP(B17,Funding,Funding!$D$2,FALSE)), \"x\")","v":0.11392017619644666},{"$f":"IFERROR((AA17/(VLOOKUP(B17,Pupils,Pupils!$M$3,FALSE)+VLOOKUP(B17,Pupils,Pupils!$P$3,FALSE))), \"x\")","v":2913.1268678060687},{"$f":"IFERROR((VLOOKUP(B17,Funding,Funding!$E$2,FALSE)), \"x\")","v":25828975.881495416},{"$f":"IFERROR((AD17/VLOOKUP(B17,Funding,Funding!$F$2,FALSE)), \"x\")","v":0.11321093622541345},{"$f":"IFERROR((AD17/(VLOOKUP(B17,Pupils,Pupils!$R$3,FALSE)+VLOOKUP(B17,Pupils,Pupils!$U$3,FALSE))), \"x\")","v":3378.5449158267384},{"$f":"IFERROR((VLOOKUP(B17,Funding,Funding!$G$2,FALSE)), \"x\")","v":27148496.270910993},{"$f":"IFERROR((AG17/VLOOKUP(B17,Funding,Funding!$H$2,FALSE)), \"x\")","v":0.11615611570009615},{"$f":"IFERROR((AG17/(VLOOKUP(B17,Pupils,Pupils!$W$3,FALSE)+VLOOKUP(B17,Pupils,Pupils!$Z$3,FALSE))), \"x\")","v":3504.3883143037297},{"$f":"IFERROR((VLOOKUP(B17,Funding,Funding!$I$2,FALSE)), \"x\")","v":27496647.881497975},{"$f":"IFERROR((AJ17/VLOOKUP(B17,Funding,Funding!$J$2,FALSE)), \"x\")","v":0.11800933838688596},null,{"$f":"IFERROR((VLOOKUP($B17,Funding,Funding!$EC$2,FALSE)), \"x\")","v":14111779.969999999},{"$f":"IFERROR((AM17/VLOOKUP($B17,Funding,Funding!$EU$2,FALSE)), \"x\")","v":6.7514158321768006E-2},{"$f":"IFERROR((AM17/(VLOOKUP($B17,Pupils,Pupils!$D$3,FALSE)+VLOOKUP($B17,Pupils,Pupils!$E$3,FALSE))), \"x\")","v":1523.785765036173},{"$f":"IFERROR((VLOOKUP($B17,Funding,Funding!$DA$2,FALSE)), \"x\")","v":15070661.179949999},{"$f":"IFERROR((AP17/VLOOKUP($B17,Funding,Funding!$DT$2,FALSE)), \"x\")","v":6.8414941836574053E-2},{"$f":"IFERROR((AP17/(VLOOKUP($B17,Pupils,Pupils!$G$3,FALSE)+VLOOKUP($B17,Pupils,Pupils!$H$3,FALSE))), \"x\")","v":1624.3437357135158},{"$f":"IFERROR((VLOOKUP($B17,Funding,Funding!$CE$2,FALSE)), \"x\")","v":15566383},{"$f":"IFERROR((AS17/VLOOKUP($B17,Funding,Funding!$CR$2,FALSE)), \"x\")","v":7.1936225307863866E-2},{"$f":"IFERROR((AS17/(VLOOKUP($B17,Pupils,Pupils!$J$3,FALSE)+VLOOKUP($B17,Pupils,Pupils!$K$3,FALSE))), \"x\")","v":1713.2272727272727},{"$f":"IFERROR((VLOOKUP($B17,Funding,Funding!$BM$2,FALSE)), \"x\")","v":17782387.780000001},{"$f":"IFERROR((AV17/VLOOKUP($B17,Funding,Funding!$BY$2,FALSE)), \"x\")","v":8.0963592928349037E-2},{"$f":"IFERROR((AV17/(VLOOKUP($B17,Pupils,Pupils!$M$3,FALSE)+VLOOKUP($B17,Pupils,Pupils!$P$3,FALSE))), \"x\")","v":2067.4791047552612},{"$f":"IFERROR((VLOOKUP($B17,Funding,Funding!$AQ$2,FALSE)), \"x\")","v":25926931},{"$f":"IFERROR((AY17/VLOOKUP($B17,Funding,Funding!$BE$2,FALSE)), \"x\")","v":0.11060060593100154},{"$f":"IFERROR((AY17/(VLOOKUP($B17,Pupils,Pupils!$R$3,FALSE)+VLOOKUP($B17,Pupils,Pupils!$U$3,FALSE))), \"x\")","v":3391.357880967953},{"$f":"IFERROR((VLOOKUP($B17,Funding,Funding!$S$2,FALSE)), \"x\")","v":25729500},{"$f":"IFERROR((BB17/VLOOKUP($B17,Funding,Funding!$AH$2,FALSE)), \"x\")","v":0.10736837669617946},{"$f":"IFERROR((BB17/(VLOOKUP(B17,Pupils,Pupils!$W$3,FALSE)+VLOOKUP(B17,Pupils,Pupils!$Z$3,FALSE))), \"x\")","v":3321.221117852072},{"$f":"IFERROR((VLOOKUP($B17,Funding,Funding!$GX$2,FALSE)), \"x\")","v":23658494},{"$f":"IFERROR((BE17/VLOOKUP($B17,Funding,Funding!$HC$2,FALSE)), \"x\")","v":0.10318748234502335},{"$f":"IFERROR((BE17/(VLOOKUP($B17,Pupils,Pupils!$D$3,FALSE)+VLOOKUP($B17,Pupils,Pupils!$E$3,FALSE))), \"x\")","v":2554.6370802289171},{"$f":"IFERROR((VLOOKUP($B17,Funding,Funding!$GP$2,FALSE)), \"x\")","v":24714972},{"$f":"IFERROR((BH17/VLOOKUP($B17,Funding,Funding!$GU$2,FALSE)), \"x\")","v":0.10718233755892281},{"$f":"IFERROR((BH17/(VLOOKUP($B17,Pupils,Pupils!$G$3,FALSE)+VLOOKUP($B17,Pupils,Pupils!$H$3,FALSE))), \"x\")","v":2663.8253934037507},{"$f":"IFERROR((VLOOKUP($B17,Funding,Funding!$GH$2,FALSE)), \"x\")","v":25566393.809999999},{"$f":"IFERROR((BK17/VLOOKUP($B17,Funding,Funding!$GM$2,FALSE)), \"x\")","v":0.10927860461241291},{"$f":"IFERROR((BK17/(VLOOKUP($B17,Pupils,Pupils!$J$3,FALSE)+VLOOKUP($B17,Pupils,Pupils!$K$3,FALSE))), \"x\")","v":2813.8227834030376},{"$f":"IFERROR((VLOOKUP($B17,Funding,Funding!$FZ$2,FALSE)), \"x\")","v":27416746.990000002},{"$f":"IFERROR((BN17/VLOOKUP($B17,Funding,Funding!$GE$2,FALSE)), \"x\")","v":0.11718919085608073},{"$f":"IFERROR((BN17/(VLOOKUP($B17,Pupils,Pupils!$M$3,FALSE)+VLOOKUP($B17,Pupils,Pupils!$P$3,FALSE))), \"x\")","v":3187.6231821881179},{"$f":"IFERROR((VLOOKUP($B17,Funding,Funding!$FD$2,FALSE)), \"x\")","v":26280532},{"$f":"IFERROR((BQ17/VLOOKUP($B17,Funding,Funding!$FR$2,FALSE)), \"x\")","v":0.12333669195311769},{"$f":"IFERROR((BQ17/(VLOOKUP($B17,Pupils,Pupils!$R$3,FALSE)+VLOOKUP($B17,Pupils,Pupils!$U$3,FALSE))), \"x\")","v":3437.6104643557883},{"$f":"(VLOOKUP(B17,Funding,Funding!$HK$2,FALSE)+VLOOKUP(B17,Funding,Funding!$HL$2,FALSE)+VLOOKUP(B17,Funding,Funding!$HM$2,FALSE))/(VLOOKUP(B17,Funding,Funding!$HN$2,FALSE))","v":0.32540540540540541},{"$f":"IFERROR((VLOOKUP(B17,Other_data,Other!$D$3,FALSE)+VLOOKUP(B17,Other_data,Other!$E$3,FALSE)+VLOOKUP(B17,Other_data,Other!$F$3,FALSE)), \"x\")","v":1840},{"$f":"(VLOOKUP(B17,Other_data,Other!$AK$3,FALSE)+VLOOKUP(B17,Other_data,Other!$AL$3,FALSE))/VLOOKUP(B17,Other_data,Other!$AJ$3,FALSE)","v":3.812599834997981E-2},{"$f":"(VLOOKUP(B17,Other_data,Other!$AR$3,FALSE)+VLOOKUP(B17,Other_data,Other!$AS$3,FALSE))/VLOOKUP(B17,Other_data,Other!$AQ$3,FALSE)","v":6.0892717306186374E-2},{"$f":"VLOOKUP(B17,Other_data,Other!$AP$3,FALSE)/VLOOKUP(B17,Other_data,Other!$AJ$3,FALSE)","v":6.740507995576542E-3},{"$f":"VLOOKUP(B17,Other_data,Other!$AW$3,FALSE)/VLOOKUP(B17,Other_data,Other!$AQ$3,FALSE)","v":1.3563038371182459E-2}]
[12,837,"Bournemouth",{"$f":"IFERROR((VLOOKUP($B18,Pupils,Pupils!$D$3,FALSE)/VLOOKUP($B18,Pupils,Pupils!$C$3,FALSE)), \"x\")","v":2.23656905695181E-2},{"$f":"IFERROR((VLOOKUP($B18,Pupils,Pupils!$G$3,FALSE)/VLOOKUP($B18,Pupils,Pupils!$F$3,FALSE)),\"x\")","v":2.3603967670830273E-2},{"$f":"IFERROR((VLOOKUP($B18,Pupils,Pupils!$J$3,FALSE)/VLOOKUP($B18,Pupils,Pupils!$I$3,FALSE)), \"x\")","v":2.5450883456925755E-2},{"$f":"IFERROR((VLOOKUP($B18,Pupils,Pupils!$M$3,FALSE)/VLOOKUP($B18,Pupils,Pupils!$L$3,FALSE)), \"x\")","v":2.545356079068508E-2},{"$f":"IFERROR((VLOOKUP($B18,Pupils,Pupils!$R$3,FALSE)/VLOOKUP($B18,Pupils,Pupils!$Q$3,FALSE)), \"x\")","v":2.5481064932782706E-2},{"$f":"IFERROR((VLOOKUP($B18,Pupils,Pupils!$W$3,FALSE)/VLOOKUP($B18,Pupils,Pupils!$V$3,FALSE)), \"x\")","v":2.5869037995149554E-2},{"$f":"IFERROR(((VLOOKUP($B18,Pupils,Pupils!$D$3,FALSE)+VLOOKUP($B18,Pupils,Pupils!$E$3,FALSE))/VLOOKUP($B18,Pupils,Pupils!$C$3,FALSE)), \"x\")","v":0.19580355084159556},{"$f":"IFERROR(((VLOOKUP($B18,Pupils,Pupils!$G$3,FALSE)+VLOOKUP($B18,Pupils,Pupils!$H$3,FALSE))/VLOOKUP($B18,Pupils,Pupils!$F$3,FALSE)), \"x\")","v":0.2015521675238795},{"$f":"IFERROR(((VLOOKUP($B18,Pupils,Pupils!$J$3,FALSE)+VLOOKUP($B18,Pupils,Pupils!$K$3,FALSE))/VLOOKUP($B18,Pupils,Pupils!$I$3,FALSE)), \"x\")","v":0.19138515059965211},{"$f":"IFERROR(((VLOOKUP($B18,Pupils,Pupils!$M$3,FALSE)+VLOOKUP($B18,Pupils,Pupils!$P$3,FALSE))/VLOOKUP($B18,Pupils,Pupils!$L$3,FALSE)), \"x\")","v":0.18304901164365014},{"$f":"IFERROR(((VLOOKUP($B18,Pupils,Pupils!$R$3,FALSE)+VLOOKUP($B18,Pupils,Pupils!$U$3,FALSE))/VLOOKUP($B18,Pupils,Pupils!$Q$3,FALSE)), \"x\")","v":0.16848255865038222},{"$f":"IFERROR(((VLOOKUP($B18,Pupils,Pupils!$W$3,FALSE)+VLOOKUP($B18,Pupils,Pupils!$Z$3,FALSE))/VLOOKUP($B18,Pupils,Pupils!$V$3,FALSE)), \"x\")","v":0.17419052886865508},{"$f":"(SUM(INDEX(Pupils!$AB$7:$AB$159,MATCH($B18,Pupils!$A$7:$A$159,0)),INDEX(Pupils!$AC$7:$AC$159,MATCH($B18,Pupils!$A$7:$A$159,0)),INDEX(Pupils!$AD$7:$AD$159,MATCH($B18,Pupils!$A$7:$A$159,0)),INDEX(Pupils!$AE$7:$AE$159,MATCH($B18,Pupils!$A$7:$A$159,0))))/SUM(INDEX(Pupils!$AB$7:$AM$159,MATCH($B18,Pupils!$A$7:$A$159,0),0))","v":0.29994837377387712},{"$f":"SUM(INDEX(Pupils!$AF$7:$AF$159,MATCH($B18,Pupils!$A$7:$A$159,0)))/SUM(INDEX(Pupils!$AB$7:$AM$159,MATCH($B18,Pupils!$A$7:$A$159,0),0))","v":0.19411461022199278},{"$f":"SUM(INDEX(Pupils!$AG$7:$AG$159,MATCH($B18,Pupils!$A$7:$A$159,0)))/SUM(INDEX(Pupils!$AB$7:$AM$159,MATCH($B18,Pupils!$A$7:$A$159,0),0))","v":0.28342798141455861},{"$f":"(SUM(INDEX(Pupils!$AH$7:$AH$159,MATCH($B18,Pupils!$A$7:$A$159,0)),INDEX(Pupils!$AI$7:$AI$159,MATCH($B18,Pupils!$A$7:$A$159,0)),INDEX(Pupils!$AJ$7:$AJ$159,MATCH($B18,Pupils!$A$7:$A$159,0))))/SUM(INDEX(Pupils!$AB$7:$AM$159,MATCH($B18,Pupils!$A$7:$A$159,0),0))","v":4.1817243159525036E-2},{"$f":"SUM(INDEX(Pupils!$AK$7:$AK$159,MATCH($B18,Pupils!$A$7:$A$159,0)))/SUM(INDEX(Pupils!$AB$7:$AM$159,MATCH($B18,Pupils!$A$7:$A$159,0),0))","v":3.2524522457408361E-2},{"$f":"SUM(INDEX(Pupils!$AL$7:$AL$159,MATCH($B18,Pupils!$A$7:$A$159,0)))/SUM(INDEX(Pupils!$AB$7:$AM$159,MATCH($B18,Pupils!$A$7:$A$159,0),0))","v":0.10325245224574084},{"$f":"SUM(INDEX(Pupils!$AM$7:$AM$159,MATCH($B18,Pupils!$A$7:$A$159,0)))/SUM(INDEX(Pupils!$AB$7:$AM$159,MATCH($B18,Pupils!$A$7:$A$159,0),0))","v":4.4914816726897261E-2},{"$f":"(SUM(INDEX(Pupils!$BH$7:$BH$159,MATCH($B18,Pupils!$A$7:$A$159,0)),INDEX(Pupils!$BK$7:$BK$159,MATCH($B18,Pupils!$A$7:$A$159,0)),INDEX(Pupils!$BO$7:$BO$159,MATCH($B18,Pupils!$A$7:$A$159,0))))/SUM(INDEX(Pupils!$BH$7:$BS$159,MATCH($B18,Pupils!$A$7:$A$159,0),0))","v":0.42562592047128128},{"$f":"(SUM(INDEX(Pupils!$BL$7:$BL$159,MATCH($B18,Pupils!$A$7:$A$159,0)),INDEX(Pupils!$BM$7:$BM$159,MATCH($B18,Pupils!$A$7:$A$159,0)),INDEX(Pupils!$BP$7:$BP$159,MATCH($B18,Pupils!$A$7:$A$159,0))))/SUM(INDEX(Pupils!$BH$7:$BS$159,MATCH($B18,Pupils!$A$7:$A$159,0),0))","v":0.51546391752577314},{"$f":"(SUM(INDEX(Pupils!$BI$7:$BI$159,MATCH($B18,Pupils!$A$7:$A$159,0)),INDEX(Pupils!$BJ$7:$BJ$159,MATCH($B18,Pupils!$A$7:$A$159,0))))/SUM(INDEX(Pupils!$BH$7:$BS$159,MATCH($B18,Pupils!$A$7:$A$159,0),0))","v":3.9764359351988215E-2},{"$f":"(SUM(INDEX(Pupils!$BQ$7:$BQ$159,MATCH($B18,Pupils!$A$7:$A$159,0)),INDEX(Pupils!$BR$7:$BR$159,MATCH($B18,Pupils!$A$7:$A$159,0)),INDEX(Pupils!$BN$7:$BN$159,MATCH($B18,Pupils!$A$7:$A$159,0)),INDEX(Pupils!$BS$7:$BS$159,MATCH($B18,Pupils!$A$7:$A$159,0))))/SUM(INDEX(Pupils!$BH$7:$BS$159,MATCH($B18,Pupils!$A$7:$A$159,0),0))","v":1.9145802650957292E-2},{"$f":"IFERROR((VLOOKUP(B18,Funding,Funding!$C$2,FALSE)), \"x\")","v":12947885.779999999},{"$f":"IFERROR((AA18/VLOOKUP(B18,Funding,Funding!$D$2,FALSE)), \"x\")","v":0.13530923795769767},{"$f":"IFERROR((AA18/(VLOOKUP(B18,Pupils,Pupils!$M$3,FALSE)+VLOOKUP(B18,Pupils,Pupils!$P$3,FALSE))), \"x\")","v":3192.2795315581852},{"$f":"IFERROR((VLOOKUP(B18,Funding,Funding!$E$2,FALSE)), \"x\")","v":13332344.213083327},{"$f":"IFERROR((AD18/VLOOKUP(B18,Funding,Funding!$F$2,FALSE)), \"x\")","v":0.1345729172123051},{"$f":"IFERROR((AD18/(VLOOKUP(B18,Pupils,Pupils!$R$3,FALSE)+VLOOKUP(B18,Pupils,Pupils!$U$3,FALSE))), \"x\")","v":3476.4913202303328},{"$f":"IFERROR((VLOOKUP(B18,Funding,Funding!$G$2,FALSE)), \"x\")","v":14455318.445860524},{"$f":"IFERROR((AG18/VLOOKUP(B18,Funding,Funding!$H$2,FALSE)), \"x\")","v":0.14183405006429087},{"$f":"IFERROR((AG18/(VLOOKUP(B18,Pupils,Pupils!$W$3,FALSE)+VLOOKUP(B18,Pupils,Pupils!$Z$3,FALSE))), \"x\")","v":3530.8545300098981},{"$f":"IFERROR((VLOOKUP(B18,Funding,Funding!$I$2,FALSE)), \"x\")","v":14658881.94953317},{"$f":"IFERROR((AJ18/VLOOKUP(B18,Funding,Funding!$J$2,FALSE)), \"x\")","v":0.13927414157957255},null,{"$f":"IFERROR((VLOOKUP($B18,Funding,Funding!$EC$2,FALSE)), \"x\")","v":9575905.7279999983},{"$f":"IFERROR((AM18/VLOOKUP($B18,Funding,Funding!$EU$2,FALSE)), \"x\")","v":0.10037455735426075},{"$f":"IFERROR((AM18/(VLOOKUP($B18,Pupils,Pupils!$D$3,FALSE)+VLOOKUP($B18,Pupils,Pupils!$E$3,FALSE))), \"x\")","v":2255.2769024964668},{"$f":"IFERROR((VLOOKUP($B18,Funding,Funding!$DA$2,FALSE)), \"x\")","v":9773355.6812199987},{"$f":"IFERROR((AP18/VLOOKUP($B18,Funding,Funding!$DT$2,FALSE)), \"x\")","v":0.10005863966999801},{"$f":"IFERROR((AP18/(VLOOKUP($B18,Pupils,Pupils!$G$3,FALSE)+VLOOKUP($B18,Pupils,Pupils!$H$3,FALSE))), \"x\")","v":2226.7841606789698},{"$f":"IFERROR((VLOOKUP($B18,Funding,Funding!$CE$2,FALSE)), \"x\")","v":10857693.699999999},{"$f":"IFERROR((AS18/VLOOKUP($B18,Funding,Funding!$CR$2,FALSE)), \"x\")","v":0.11305486097565123},{"$f":"IFERROR((AS18/(VLOOKUP($B18,Pupils,Pupils!$J$3,FALSE)+VLOOKUP($B18,Pupils,Pupils!$K$3,FALSE))), \"x\")","v":2596.9131069122218},{"$f":"IFERROR((VLOOKUP($B18,Funding,Funding!$BM$2,FALSE)), \"x\")","v":11934563.449999999},{"$f":"IFERROR((AV18/VLOOKUP($B18,Funding,Funding!$BY$2,FALSE)), \"x\")","v":0.14544115724617976},{"$f":"IFERROR((AV18/(VLOOKUP($B18,Pupils,Pupils!$M$3,FALSE)+VLOOKUP($B18,Pupils,Pupils!$P$3,FALSE))), \"x\")","v":2942.446609960552},{"$f":"IFERROR((VLOOKUP($B18,Funding,Funding!$AQ$2,FALSE)), \"x\")","v":12170433},{"$f":"IFERROR((AY18/VLOOKUP($B18,Funding,Funding!$BE$2,FALSE)), \"x\")","v":0.12187794757387795},{"$f":"IFERROR((AY18/(VLOOKUP($B18,Pupils,Pupils!$R$3,FALSE)+VLOOKUP($B18,Pupils,Pupils!$U$3,FALSE))), \"x\")","v":3173.515775749674},{"$f":"IFERROR((VLOOKUP($B18,Funding,Funding!$S$2,FALSE)), \"x\")","v":13438533},{"$f":"IFERROR((BB18/VLOOKUP($B18,Funding,Funding!$AH$2,FALSE)), \"x\")","v":0.13283501764972525},{"$f":"IFERROR((BB18/(VLOOKUP(B18,Pupils,Pupils!$W$3,FALSE)+VLOOKUP(B18,Pupils,Pupils!$Z$3,FALSE))), \"x\")","v":3282.4946262823646},{"$f":"IFERROR((VLOOKUP($B18,Funding,Funding!$GX$2,FALSE)), \"x\")","v":15922067.800000001},{"$f":"IFERROR((BE18/VLOOKUP($B18,Funding,Funding!$HC$2,FALSE)), \"x\")","v":0.15105720234466172},{"$f":"IFERROR((BE18/(VLOOKUP($B18,Pupils,Pupils!$D$3,FALSE)+VLOOKUP($B18,Pupils,Pupils!$E$3,FALSE))), \"x\")","v":3749.8982100800754},{"$f":"IFERROR((VLOOKUP($B18,Funding,Funding!$GP$2,FALSE)), \"x\")","v":17896042.640000001},{"$f":"IFERROR((BH18/VLOOKUP($B18,Funding,Funding!$GU$2,FALSE)), \"x\")","v":0.17079506159487329},{"$f":"IFERROR((BH18/(VLOOKUP($B18,Pupils,Pupils!$G$3,FALSE)+VLOOKUP($B18,Pupils,Pupils!$H$3,FALSE))), \"x\")","v":4077.4761084529505},{"$f":"IFERROR((VLOOKUP($B18,Funding,Funding!$GH$2,FALSE)), \"x\")","v":18404159.600000001},{"$f":"IFERROR((BK18/VLOOKUP($B18,Funding,Funding!$GM$2,FALSE)), \"x\")","v":0.19120783798165508},{"$f":"IFERROR((BK18/(VLOOKUP($B18,Pupils,Pupils!$J$3,FALSE)+VLOOKUP($B18,Pupils,Pupils!$K$3,FALSE))), \"x\")","v":4401.8559196364513},{"$f":"IFERROR((VLOOKUP($B18,Funding,Funding!$FZ$2,FALSE)), \"x\")","v":14159898.359999999},{"$f":"IFERROR((BN18/VLOOKUP($B18,Funding,Funding!$GE$2,FALSE)), \"x\")","v":0.19418805973844896},{"$f":"IFERROR((BN18/(VLOOKUP($B18,Pupils,Pupils!$M$3,FALSE)+VLOOKUP($B18,Pupils,Pupils!$P$3,FALSE))), \"x\")","v":3491.0992011834319},{"$f":"IFERROR((VLOOKUP($B18,Funding,Funding!$FD$2,FALSE)), \"x\")","v":12424493},{"$f":"IFERROR((BQ18/VLOOKUP($B18,Funding,Funding!$FR$2,FALSE)), \"x\")","v":0.21455484821615273},{"$f":"IFERROR((BQ18/(VLOOKUP($B18,Pupils,Pupils!$R$3,FALSE)+VLOOKUP($B18,Pupils,Pupils!$U$3,FALSE))), \"x\")","v":3239.7634941329857},{"$f":"(VLOOKUP(B18,Funding,Funding!$HK$2,FALSE)+VLOOKUP(B18,Funding,Funding!$HL$2,FALSE)+VLOOKUP(B18,Funding,Funding!$HM$2,FALSE))/(VLOOKUP(B18,Funding,Funding!$HN$2,FALSE))","v":0.1895551257253385},{"$f":"IFERROR((VLOOKUP(B18,Other_data,Other!$D$3,FALSE)+VLOOKUP(B18,Other_data,Other!$E$3,FALSE)+VLOOKUP(B18,Other_data,Other!$F$3,FALSE)), \"x\")","v":820},{"$f":"(VLOOKUP(B18,Other_data,Other!$AK$3,FALSE)+VLOOKUP(B18,Other_data,Other!$AL$3,FALSE))/VLOOKUP(B18,Other_data,Other!$AJ$3,FALSE)","v":3.7604654462892011E-2},{"$f":"(VLOOKUP(B18,Other_data,Other!$AR$3,FALSE)+VLOOKUP(B18,Other_data,Other!$AS$3,FALSE))/VLOOKUP(B18,Other_data,Other!$AQ$3,FALSE)","v":4.5293422607325717E-2},{"$f":"VLOOKUP(B18,Other_data,Other!$AP$3,FALSE)/VLOOKUP(B18,Other_data,Other!$AJ$3,FALSE)","v":6.8468851993756207E-3},{"$f":"VLOOKUP(B18,Other_data,Other!$AW$3,FALSE)/VLOOKUP(B18,Other_data,Other!$AQ$3,FALSE)","v":9.8463962189838522E-3}]
[13,867,"Bracknell Forest",{"$f":"IFERROR((VLOOKUP($B19,Pupils,Pupils!$D$3,FALSE)/VLOOKUP($B19,Pupils,Pupils!$C$3,FALSE)), \"x\")","v":2.7156723743047225E-2},{"$f":"IFERROR((VLOOKUP($B19,Pupils,Pupils!$G$3,FALSE)/VLOOKUP($B19,Pupils,Pupils!$F$3,FALSE)),\"x\")","v":2.8010598604877521E-2},{"$f":"IFERROR((VLOOKUP($B19,Pupils,Pupils!$J$3,FALSE)/VLOOKUP($B19,Pupils,Pupils!$I$3,FALSE)), \"x\")","v":2.768549280177187E-2},{"$f":"IFERROR((VLOOKUP($B19,Pupils,Pupils!$M$3,FALSE)/VLOOKUP($B19,Pupils,Pupils!$L$3,FALSE)), \"x\")","v":2.8436755412825029E-2},{"$f":"IFERROR((VLOOKUP($B19,Pupils,Pupils!$R$3,FALSE)/VLOOKUP($B19,Pupils,Pupils!$Q$3,FALSE)), \"x\")","v":2.8644240570846077E-2},{"$f":"IFERROR((VLOOKUP($B19,Pupils,Pupils!$W$3,FALSE)/VLOOKUP($B19,Pupils,Pupils!$V$3,FALSE)), \"x\")","v":2.6513455703128887E-2},{"$f":"IFERROR(((VLOOKUP($B19,Pupils,Pupils!$D$3,FALSE)+VLOOKUP($B19,Pupils,Pupils!$E$3,FALSE))/VLOOKUP($B19,Pupils,Pupils!$C$3,FALSE)), \"x\")","v":0.19904024430145054},{"$f":"IFERROR(((VLOOKUP($B19,Pupils,Pupils!$G$3,FALSE)+VLOOKUP($B19,Pupils,Pupils!$H$3,FALSE))/VLOOKUP($B19,Pupils,Pupils!$F$3,FALSE)), \"x\")","v":0.19542529605796788},{"$f":"IFERROR(((VLOOKUP($B19,Pupils,Pupils!$J$3,FALSE)+VLOOKUP($B19,Pupils,Pupils!$K$3,FALSE))/VLOOKUP($B19,Pupils,Pupils!$I$3,FALSE)), \"x\")","v":0.19432579233243685},{"$f":"IFERROR(((VLOOKUP($B19,Pupils,Pupils!$M$3,FALSE)+VLOOKUP($B19,Pupils,Pupils!$P$3,FALSE))/VLOOKUP($B19,Pupils,Pupils!$L$3,FALSE)), \"x\")","v":0.17968507199834249},{"$f":"IFERROR(((VLOOKUP($B19,Pupils,Pupils!$R$3,FALSE)+VLOOKUP($B19,Pupils,Pupils!$U$3,FALSE))/VLOOKUP($B19,Pupils,Pupils!$Q$3,FALSE)), \"x\")","v":0.16539245667686034},{"$f":"IFERROR(((VLOOKUP($B19,Pupils,Pupils!$W$3,FALSE)+VLOOKUP($B19,Pupils,Pupils!$Z$3,FALSE))/VLOOKUP($B19,Pupils,Pupils!$V$3,FALSE)), \"x\")","v":0.15614584887827687},{"$f":"(SUM(INDEX(Pupils!$AB$7:$AB$159,MATCH($B19,Pupils!$A$7:$A$159,0)),INDEX(Pupils!$AC$7:$AC$159,MATCH($B19,Pupils!$A$7:$A$159,0)),INDEX(Pupils!$AD$7:$AD$159,MATCH($B19,Pupils!$A$7:$A$159,0)),INDEX(Pupils!$AE$7:$AE$159,MATCH($B19,Pupils!$A$7:$A$159,0))))/SUM(INDEX(Pupils!$AB$7:$AM$159,MATCH($B19,Pupils!$A$7:$A$159,0),0))","v":0.43511988716502115},{"$f":"SUM(INDEX(Pupils!$AF$7:$AF$159,MATCH($B19,Pupils!$A$7:$A$159,0)))/SUM(INDEX(Pupils!$AB$7:$AM$159,MATCH($B19,Pupils!$A$7:$A$159,0),0))","v":0.21227080394922426},{"$f":"SUM(INDEX(Pupils!$AG$7:$AG$159,MATCH($B19,Pupils!$A$7:$A$159,0)))/SUM(INDEX(Pupils!$AB$7:$AM$159,MATCH($B19,Pupils!$A$7:$A$159,0),0))","v":0.15373765867418901},{"$f":"(SUM(INDEX(Pupils!$AH$7:$AH$159,MATCH($B19,Pupils!$A$7:$A$159,0)),INDEX(Pupils!$AI$7:$AI$159,MATCH($B19,Pupils!$A$7:$A$159,0)),INDEX(Pupils!$AJ$7:$AJ$159,MATCH($B19,Pupils!$A$7:$A$159,0))))/SUM(INDEX(Pupils!$AB$7:$AM$159,MATCH($B19,Pupils!$A$7:$A$159,0),0))","v":4.7954866008462625E-2},{"$f":"SUM(INDEX(Pupils!$AK$7:$AK$159,MATCH($B19,Pupils!$A$7:$A$159,0)))/SUM(INDEX(Pupils!$AB$7:$AM$159,MATCH($B19,Pupils!$A$7:$A$159,0),0))","v":1.1988716502115656E-2},{"$f":"SUM(INDEX(Pupils!$AL$7:$AL$159,MATCH($B19,Pupils!$A$7:$A$159,0)))/SUM(INDEX(Pupils!$AB$7:$AM$159,MATCH($B19,Pupils!$A$7:$A$159,0),0))","v":0.10719322990126939},{"$f":"SUM(INDEX(Pupils!$AM$7:$AM$159,MATCH($B19,Pupils!$A$7:$A$159,0)))/SUM(INDEX(Pupils!$AB$7:$AM$159,MATCH($B19,Pupils!$A$7:$A$159,0),0))","v":3.1734837799717912E-2},{"$f":"(SUM(INDEX(Pupils!$BH$7:$BH$159,MATCH($B19,Pupils!$A$7:$A$159,0)),INDEX(Pupils!$BK$7:$BK$159,MATCH($B19,Pupils!$A$7:$A$159,0)),INDEX(Pupils!$BO$7:$BO$159,MATCH($B19,Pupils!$A$7:$A$159,0))))/SUM(INDEX(Pupils!$BH$7:$BS$159,MATCH($B19,Pupils!$A$7:$A$159,0),0))","v":0.48882265275707898},{"$f":"(SUM(INDEX(Pupils!$BL$7:$BL$159,MATCH($B19,Pupils!$A$7:$A$159,0)),INDEX(Pupils!$BM$7:$BM$159,MATCH($B19,Pupils!$A$7:$A$159,0)),INDEX(Pupils!$BP$7:$BP$159,MATCH($B19,Pupils!$A$7:$A$159,0))))/SUM(INDEX(Pupils!$BH$7:$BS$159,MATCH($B19,Pupils!$A$7:$A$159,0),0))","v":0.45007451564828616},{"$f":"(SUM(INDEX(Pupils!$BI$7:$BI$159,MATCH($B19,Pupils!$A$7:$A$159,0)),INDEX(Pupils!$BJ$7:$BJ$159,MATCH($B19,Pupils!$A$7:$A$159,0))))/SUM(INDEX(Pupils!$BH$7:$BS$159,MATCH($B19,Pupils!$A$7:$A$159,0),0))","v":5.0670640834575259E-2},{"$f":"(SUM(INDEX(Pupils!$BQ$7:$BQ$159,MATCH($B19,Pupils!$A$7:$A$159,0)),INDEX(Pupils!$BR$7:$BR$159,MATCH($B19,Pupils!$A$7:$A$159,0)),INDEX(Pupils!$BN$7:$BN$159,MATCH($B19,Pupils!$A$7:$A$159,0)),INDEX(Pupils!$BS$7:$BS$159,MATCH($B19,Pupils!$A$7:$A$159,0))))/SUM(INDEX(Pupils!$BH$7:$BS$159,MATCH($B19,Pupils!$A$7:$A$159,0),0))","v":1.0432190760059613E-2},{"$f":"IFERROR((VLOOKUP(B19,Funding,Funding!$C$2,FALSE)), \"x\")","v":11507705.917740185},{"$f":"IFERROR((AA19/VLOOKUP(B19,Funding,Funding!$D$2,FALSE)), \"x\")","v":0.15045300061948966},{"$f":"IFERROR((AA19/(VLOOKUP(B19,Pupils,Pupils!$M$3,FALSE)+VLOOKUP(B19,Pupils,Pupils!$P$3,FALSE))), \"x\")","v":3317.2977566273235},{"$f":"IFERROR((VLOOKUP(B19,Funding,Funding!$E$2,FALSE)), \"x\")","v":12306981.77727668},{"$f":"IFERROR((AD19/VLOOKUP(B19,Funding,Funding!$F$2,FALSE)), \"x\")","v":0.15594127344217132},{"$f":"IFERROR((AD19/(VLOOKUP(B19,Pupils,Pupils!$R$3,FALSE)+VLOOKUP(B19,Pupils,Pupils!$U$3,FALSE))), \"x\")","v":3792.5983905321045},{"$f":"IFERROR((VLOOKUP(B19,Funding,Funding!$G$2,FALSE)), \"x\")","v":12850989.570258114},{"$f":"IFERROR((AG19/VLOOKUP(B19,Funding,Funding!$H$2,FALSE)), \"x\")","v":0.15887902671168633},{"$f":"IFERROR((AG19/(VLOOKUP(B19,Pupils,Pupils!$W$3,FALSE)+VLOOKUP(B19,Pupils,Pupils!$Z$3,FALSE))), \"x\")","v":4093.9756515635918},{"$f":"IFERROR((VLOOKUP(B19,Funding,Funding!$I$2,FALSE)), \"x\")","v":12927311.761375923},{"$f":"IFERROR((AJ19/VLOOKUP(B19,Funding,Funding!$J$2,FALSE)), \"x\")","v":0.15615712893042041},null,{"$f":"IFERROR((VLOOKUP($B19,Funding,Funding!$EC$2,FALSE)), \"x\")","v":7899655.75},{"$f":"IFERROR((AM19/VLOOKUP($B19,Funding,Funding!$EU$2,FALSE)), \"x\")","v":0.10731243583032703},{"$f":"IFERROR((AM19/(VLOOKUP($B19,Pupils,Pupils!$D$3,FALSE)+VLOOKUP($B19,Pupils,Pupils!$E$3,FALSE))), \"x\")","v":2164.2892465753425},{"$f":"IFERROR((VLOOKUP($B19,Funding,Funding!$DA$2,FALSE)), \"x\")","v":8368307.6546599995},{"$f":"IFERROR((AP19/VLOOKUP($B19,Funding,Funding!$DT$2,FALSE)), \"x\")","v":0.10819811606006137},{"$f":"IFERROR((AP19/(VLOOKUP($B19,Pupils,Pupils!$G$3,FALSE)+VLOOKUP($B19,Pupils,Pupils!$H$3,FALSE))), \"x\")","v":2315.5250842999444},{"$f":"IFERROR((VLOOKUP($B19,Funding,Funding!$CE$2,FALSE)), \"x\")","v":8621774},{"$f":"IFERROR((AS19/VLOOKUP($B19,Funding,Funding!$CR$2,FALSE)), \"x\")","v":0.10544292626050313},{"$f":"IFERROR((AS19/(VLOOKUP($B19,Pupils,Pupils!$J$3,FALSE)+VLOOKUP($B19,Pupils,Pupils!$K$3,FALSE))), \"x\")","v":2339.6944369063772},{"$f":"IFERROR((VLOOKUP($B19,Funding,Funding!$BM$2,FALSE)), \"x\")","v":9399288.4299999997},{"$f":"IFERROR((AV19/VLOOKUP($B19,Funding,Funding!$BY$2,FALSE)), \"x\")","v":0.11785447056623399},{"$f":"IFERROR((AV19/(VLOOKUP($B19,Pupils,Pupils!$M$3,FALSE)+VLOOKUP($B19,Pupils,Pupils!$P$3,FALSE))), \"x\")","v":2709.5094926491784},{"$f":"IFERROR((VLOOKUP($B19,Funding,Funding!$AQ$2,FALSE)), \"x\")","v":11482023},{"$f":"IFERROR((AY19/VLOOKUP($B19,Funding,Funding!$BE$2,FALSE)), \"x\")","v":0.13955194088053155},{"$f":"IFERROR((AY19/(VLOOKUP($B19,Pupils,Pupils!$R$3,FALSE)+VLOOKUP($B19,Pupils,Pupils!$U$3,FALSE))), \"x\")","v":3538.3738058551617},{"$f":"IFERROR((VLOOKUP($B19,Funding,Funding!$S$2,FALSE)), \"x\")","v":11387168},{"$f":"IFERROR((BB19/VLOOKUP($B19,Funding,Funding!$AH$2,FALSE)), \"x\")","v":0.13477271834231175},{"$f":"IFERROR((BB19/(VLOOKUP(B19,Pupils,Pupils!$W$3,FALSE)+VLOOKUP(B19,Pupils,Pupils!$Z$3,FALSE))), \"x\")","v":3627.6419241796752},{"$f":"IFERROR((VLOOKUP($B19,Funding,Funding!$GX$2,FALSE)), \"x\")","v":15244837.217130002},{"$f":"IFERROR((BE19/VLOOKUP($B19,Funding,Funding!$HC$2,FALSE)), \"x\")","v":0.18583608167777274},{"$f":"IFERROR((BE19/(VLOOKUP($B19,Pupils,Pupils!$D$3,FALSE)+VLOOKUP($B19,Pupils,Pupils!$E$3,FALSE))), \"x\")","v":4176.6677307205482},{"$f":"IFERROR((VLOOKUP($B19,Funding,Funding!$GP$2,FALSE)), \"x\")","v":12382675.050000001},{"$f":"IFERROR((BH19/VLOOKUP($B19,Funding,Funding!$GU$2,FALSE)), \"x\")","v":0.15121040387254236},{"$f":"IFERROR((BH19/(VLOOKUP($B19,Pupils,Pupils!$G$3,FALSE)+VLOOKUP($B19,Pupils,Pupils!$H$3,FALSE))), \"x\")","v":3426.3074294410626},{"$f":"IFERROR((VLOOKUP($B19,Funding,Funding!$GH$2,FALSE)), \"x\")","v":16400395.77},{"$f":"IFERROR((BK19/VLOOKUP($B19,Funding,Funding!$GM$2,FALSE)), \"x\")","v":0.20271930124449919},{"$f":"IFERROR((BK19/(VLOOKUP($B19,Pupils,Pupils!$J$3,FALSE)+VLOOKUP($B19,Pupils,Pupils!$K$3,FALSE))), \"x\")","v":4450.5822985074628},{"$f":"IFERROR((VLOOKUP($B19,Funding,Funding!$FZ$2,FALSE)), \"x\")","v":13645337.640000001},{"$f":"IFERROR((BN19/VLOOKUP($B19,Funding,Funding!$GE$2,FALSE)), \"x\")","v":0.16350495549281524},{"$f":"IFERROR((BN19/(VLOOKUP($B19,Pupils,Pupils!$M$3,FALSE)+VLOOKUP($B19,Pupils,Pupils!$P$3,FALSE))), \"x\")","v":3933.5075353127704},{"$f":"IFERROR((VLOOKUP($B19,Funding,Funding!$FD$2,FALSE)), \"x\")","v":12208265},{"$f":"IFERROR((BQ19/VLOOKUP($B19,Funding,Funding!$FR$2,FALSE)), \"x\")","v":0.15435568168301089},{"$f":"IFERROR((BQ19/(VLOOKUP($B19,Pupils,Pupils!$R$3,FALSE)+VLOOKUP($B19,Pupils,Pupils!$U$3,FALSE))), \"x\")","v":3762.1771956856701},{"$f":"(VLOOKUP(B19,Funding,Funding!$HK$2,FALSE)+VLOOKUP(B19,Funding,Funding!$HL$2,FALSE)+VLOOKUP(B19,Funding,Funding!$HM$2,FALSE))/(VLOOKUP(B19,Funding,Funding!$HN$2,FALSE))","v":0.35606060606060608},{"$f":"IFERROR((VLOOKUP(B19,Other_data,Other!$D$3,FALSE)+VLOOKUP(B19,Other_data,Other!$E$3,FALSE)+VLOOKUP(B19,Other_data,Other!$F$3,FALSE)), \"x\")","v":710},{"$f":"(VLOOKUP(B19,Other_data,Other!$AK$3,FALSE)+VLOOKUP(B19,Other_data,Other!$AL$3,FALSE))/VLOOKUP(B19,Other_data,Other!$AJ$3,FALSE)","v":3.2053801476046986E-2},{"$f":"(VLOOKUP(B19,Other_data,Other!$AR$3,FALSE)+VLOOKUP(B19,Other_data,Other!$AS$3,FALSE))/VLOOKUP(B19,Other_data,Other!$AQ$3,FALSE)","v":4.2206590151795634E-2},{"$f":"VLOOKUP(B19,Other_data,Other!$AP$3,FALSE)/VLOOKUP(B19,Other_data,Other!$AJ$3,FALSE)","v":4.2359928381152014E-3},{"$f":"VLOOKUP(B19,Other_data,Other!$AW$3,FALSE)/VLOOKUP(B19,Other_data,Other!$AQ$3,FALSE)","v":7.7748981858570898E-3}]
[14,380,"Bradford",{"$f":"IFERROR((VLOOKUP($B20,Pupils,Pupils!$D$3,FALSE)/VLOOKUP($B20,Pupils,Pupils!$C$3,FALSE)), \"x\")","v":2.1494755150903488E-2},{"$f":"IFERROR((VLOOKUP($B20,Pupils,Pupils!$G$3,FALSE)/VLOOKUP($B20,Pupils,Pupils!$F$3,FALSE)),\"x\")","v":2.0611229566453448E-2},{"$f":"IFERROR((VLOOKUP($B20,Pupils,Pupils!$J$3,FALSE)/VLOOKUP($B20,Pupils,Pupils!$I$3,FALSE)), \"x\")","v":1.9761227254113424E-2},{"$f":"IFERROR((VLOOKUP($B20,Pupils,Pupils!$M$3,FALSE)/VLOOKUP($B20,Pupils,Pupils!$L$3,FALSE)), \"x\")","v":1.9557104270191139E-2},{"$f":"IFERROR((VLOOKUP($B20,Pupils,Pupils!$R$3,FALSE)/VLOOKUP($B20,Pupils,Pupils!$Q$3,FALSE)), \"x\")","v":1.9885211324734323E-2},{"$f":"IFERROR((VLOOKUP($B20,Pupils,Pupils!$W$3,FALSE)/VLOOKUP($B20,Pupils,Pupils!$V$3,FALSE)), \"x\")","v":2.0089441340225694E-2},{"$f":"IFERROR(((VLOOKUP($B20,Pupils,Pupils!$D$3,FALSE)+VLOOKUP($B20,Pupils,Pupils!$E$3,FALSE))/VLOOKUP($B20,Pupils,Pupils!$C$3,FALSE)), \"x\")","v":0.23915867681637124},{"$f":"IFERROR(((VLOOKUP($B20,Pupils,Pupils!$G$3,FALSE)+VLOOKUP($B20,Pupils,Pupils!$H$3,FALSE))/VLOOKUP($B20,Pupils,Pupils!$F$3,FALSE)), \"x\")","v":0.23008624256118129},{"$f":"IFERROR(((VLOOKUP($B20,Pupils,Pupils!$J$3,FALSE)+VLOOKUP($B20,Pupils,Pupils!$K$3,FALSE))/VLOOKUP($B20,Pupils,Pupils!$I$3,FALSE)), \"x\")","v":0.22174155002782531},{"$f":"IFERROR(((VLOOKUP($B20,Pupils,Pupils!$M$3,FALSE)+VLOOKUP($B20,Pupils,Pupils!$P$3,FALSE))/VLOOKUP($B20,Pupils,Pupils!$L$3,FALSE)), \"x\")","v":0.20763314707519742},{"$f":"IFERROR(((VLOOKUP($B20,Pupils,Pupils!$R$3,FALSE)+VLOOKUP($B20,Pupils,Pupils!$U$3,FALSE))/VLOOKUP($B20,Pupils,Pupils!$Q$3,FALSE)), \"x\")","v":0.19621562423947433},{"$f":"IFERROR(((VLOOKUP($B20,Pupils,Pupils!$W$3,FALSE)+VLOOKUP($B20,Pupils,Pupils!$Z$3,FALSE))/VLOOKUP($B20,Pupils,Pupils!$V$3,FALSE)), \"x\")","v":0.18908178205396362},{"$f":"(SUM(INDEX(Pupils!$AB$7:$AB$159,MATCH($B20,Pupils!$A$7:$A$159,0)),INDEX(Pupils!$AC$7:$AC$159,MATCH($B20,Pupils!$A$7:$A$159,0)),INDEX(Pupils!$AD$7:$AD$159,MATCH($B20,Pupils!$A$7:$A$159,0)),INDEX(Pupils!$AE$7:$AE$159,MATCH($B20,Pupils!$A$7:$A$159,0))))/SUM(INDEX(Pupils!$AB$7:$AM$159,MATCH($B20,Pupils!$A$7:$A$159,0),0))","v":0.37854277209783876},{"$f":"SUM(INDEX(Pupils!$AF$7:$AF$159,MATCH($B20,Pupils!$A$7:$A$159,0)))/SUM(INDEX(Pupils!$AB$7:$AM$159,MATCH($B20,Pupils!$A$7:$A$159,0),0))","v":0.21056037271903713},{"$f":"SUM(INDEX(Pupils!$AG$7:$AG$159,MATCH($B20,Pupils!$A$7:$A$159,0)))/SUM(INDEX(Pupils!$AB$7:$AM$159,MATCH($B20,Pupils!$A$7:$A$159,0),0))","v":0.17471204866054096},{"$f":"(SUM(INDEX(Pupils!$AH$7:$AH$159,MATCH($B20,Pupils!$A$7:$A$159,0)),INDEX(Pupils!$AI$7:$AI$159,MATCH($B20,Pupils!$A$7:$A$159,0)),INDEX(Pupils!$AJ$7:$AJ$159,MATCH($B20,Pupils!$A$7:$A$159,0))))/SUM(INDEX(Pupils!$AB$7:$AM$159,MATCH($B20,Pupils!$A$7:$A$159,0),0))","v":6.4578749838229588E-2},{"$f":"SUM(INDEX(Pupils!$AK$7:$AK$159,MATCH($B20,Pupils!$A$7:$A$159,0)))/SUM(INDEX(Pupils!$AB$7:$AM$159,MATCH($B20,Pupils!$A$7:$A$159,0),0))","v":5.0084120616021743E-2},{"$f":"SUM(INDEX(Pupils!$AL$7:$AL$159,MATCH($B20,Pupils!$A$7:$A$159,0)))/SUM(INDEX(Pupils!$AB$7:$AM$159,MATCH($B20,Pupils!$A$7:$A$159,0),0))","v":8.4250032354083085E-2},{"$f":"SUM(INDEX(Pupils!$AM$7:$AM$159,MATCH($B20,Pupils!$A$7:$A$159,0)))/SUM(INDEX(Pupils!$AB$7:$AM$159,MATCH($B20,Pupils!$A$7:$A$159,0),0))","v":3.7271903714248739E-2},{"$f":"(SUM(INDEX(Pupils!$BH$7:$BH$159,MATCH($B20,Pupils!$A$7:$A$159,0)),INDEX(Pupils!$BK$7:$BK$159,MATCH($B20,Pupils!$A$7:$A$159,0)),INDEX(Pupils!$BO$7:$BO$159,MATCH($B20,Pupils!$A$7:$A$159,0))))/SUM(INDEX(Pupils!$BH$7:$BS$159,MATCH($B20,Pupils!$A$7:$A$159,0),0))","v":0.41072261072261074},{"$f":"(SUM(INDEX(Pupils!$BL$7:$BL$159,MATCH($B20,Pupils!$A$7:$A$159,0)),INDEX(Pupils!$BM$7:$BM$159,MATCH($B20,Pupils!$A$7:$A$159,0)),INDEX(Pupils!$BP$7:$BP$159,MATCH($B20,Pupils!$A$7:$A$159,0))))/SUM(INDEX(Pupils!$BH$7:$BS$159,MATCH($B20,Pupils!$A$7:$A$159,0),0))","v":0.41538461538461541},{"$f":"(SUM(INDEX(Pupils!$BI$7:$BI$159,MATCH($B20,Pupils!$A$7:$A$159,0)),INDEX(Pupils!$BJ$7:$BJ$159,MATCH($B20,Pupils!$A$7:$A$159,0))))/SUM(INDEX(Pupils!$BH$7:$BS$159,MATCH($B20,Pupils!$A$7:$A$159,0),0))","v":0.10862470862470862},{"$f":"(SUM(INDEX(Pupils!$BQ$7:$BQ$159,MATCH($B20,Pupils!$A$7:$A$159,0)),INDEX(Pupils!$BR$7:$BR$159,MATCH($B20,Pupils!$A$7:$A$159,0)),INDEX(Pupils!$BN$7:$BN$159,MATCH($B20,Pupils!$A$7:$A$159,0)),INDEX(Pupils!$BS$7:$BS$159,MATCH($B20,Pupils!$A$7:$A$159,0))))/SUM(INDEX(Pupils!$BH$7:$BS$159,MATCH($B20,Pupils!$A$7:$A$159,0),0))","v":6.5268065268065265E-2},{"$f":"IFERROR((VLOOKUP(B20,Funding,Funding!$C$2,FALSE)), \"x\")","v":44302485},{"$f":"IFERROR((AA20/VLOOKUP(B20,Funding,Funding!$D$2,FALSE)), \"x\")","v":0.10010088026764602},{"$f":"IFERROR((AA20/(VLOOKUP(B20,Pupils,Pupils!$M$3,FALSE)+VLOOKUP(B20,Pupils,Pupils!$P$3,FALSE))), \"x\")","v":2199.7261668321748},{"$f":"IFERROR((VLOOKUP(B20,Funding,Funding!$E$2,FALSE)), \"x\")","v":47198990.522733361},{"$f":"IFERROR((AD20/VLOOKUP(B20,Funding,Funding!$F$2,FALSE)), \"x\")","v":0.10265895869196812},{"$f":"IFERROR((AD20/(VLOOKUP(B20,Pupils,Pupils!$R$3,FALSE)+VLOOKUP(B20,Pupils,Pupils!$U$3,FALSE))), \"x\")","v":2439.2243164203287},{"$f":"IFERROR((VLOOKUP(B20,Funding,Funding!$G$2,FALSE)), \"x\")","v":49646227.012680836},{"$f":"IFERROR((AG20/VLOOKUP(B20,Funding,Funding!$H$2,FALSE)), \"x\")","v":0.10523046493777195},{"$f":"IFERROR((AG20/(VLOOKUP(B20,Pupils,Pupils!$W$3,FALSE)+VLOOKUP(B20,Pupils,Pupils!$Z$3,FALSE))), \"x\")","v":2615.1615577686912},{"$f":"IFERROR((VLOOKUP(B20,Funding,Funding!$I$2,FALSE)), \"x\")","v":50147509.941342533},{"$f":"IFERROR((AJ20/VLOOKUP(B20,Funding,Funding!$J$2,FALSE)), \"x\")","v":0.10183807032423792},null,{"$f":"IFERROR((VLOOKUP($B20,Funding,Funding!$EC$2,FALSE)), \"x\")","v":26335058.84},{"$f":"IFERROR((AM20/VLOOKUP($B20,Funding,Funding!$EU$2,FALSE)), \"x\")","v":6.097780432979797E-2},{"$f":"IFERROR((AM20/(VLOOKUP($B20,Pupils,Pupils!$D$3,FALSE)+VLOOKUP($B20,Pupils,Pupils!$E$3,FALSE))), \"x\")","v":1182.2697571268238},{"$f":"IFERROR((VLOOKUP($B20,Funding,Funding!$DA$2,FALSE)), \"x\")","v":27549719},{"$f":"IFERROR((AP20/VLOOKUP($B20,Funding,Funding!$DT$2,FALSE)), \"x\")","v":6.0866411293638983E-2},{"$f":"IFERROR((AP20/(VLOOKUP($B20,Pupils,Pupils!$G$3,FALSE)+VLOOKUP($B20,Pupils,Pupils!$H$3,FALSE))), \"x\")","v":1270.1576302443523},{"$f":"IFERROR((VLOOKUP($B20,Funding,Funding!$CE$2,FALSE)), \"x\")","v":28090803.919840001},{"$f":"IFERROR((AS20/VLOOKUP($B20,Funding,Funding!$CR$2,FALSE)), \"x\")","v":6.1192534990280253E-2},{"$f":"IFERROR((AS20/(VLOOKUP($B20,Pupils,Pupils!$J$3,FALSE)+VLOOKUP($B20,Pupils,Pupils!$K$3,FALSE))), \"x\")","v":1330.1829680765225},{"$f":"IFERROR((VLOOKUP($B20,Funding,Funding!$BM$2,FALSE)), \"x\")","v":29687458.219999999},{"$f":"IFERROR((AV20/VLOOKUP($B20,Funding,Funding!$BY$2,FALSE)), \"x\")","v":6.4361021597181878E-2},{"$f":"IFERROR((AV20/(VLOOKUP($B20,Pupils,Pupils!$M$3,FALSE)+VLOOKUP($B20,Pupils,Pupils!$P$3,FALSE))), \"x\")","v":1474.0545292949355},{"$f":"IFERROR((VLOOKUP($B20,Funding,Funding!$AQ$2,FALSE)), \"x\")","v":46548618.909999996},{"$f":"IFERROR((AY20/VLOOKUP($B20,Funding,Funding!$BE$2,FALSE)), \"x\")","v":9.6093021669359499E-2},{"$f":"IFERROR((AY20/(VLOOKUP($B20,Pupils,Pupils!$R$3,FALSE)+VLOOKUP($B20,Pupils,Pupils!$U$3,FALSE))), \"x\")","v":2405.6133803617568},{"$f":"IFERROR((VLOOKUP($B20,Funding,Funding!$S$2,FALSE)), \"x\")","v":46237759.850000001},{"$f":"IFERROR((BB20/VLOOKUP($B20,Funding,Funding!$AH$2,FALSE)), \"x\")","v":9.1305672960085932E-2},{"$f":"IFERROR((BB20/(VLOOKUP(B20,Pupils,Pupils!$W$3,FALSE)+VLOOKUP(B20,Pupils,Pupils!$Z$3,FALSE))), \"x\")","v":2435.617354087653},{"$f":"IFERROR((VLOOKUP($B20,Funding,Funding!$GX$2,FALSE)), \"x\")","v":51632689.479999997},{"$f":"IFERROR((BE20/VLOOKUP($B20,Funding,Funding!$HC$2,FALSE)), \"x\")","v":0.1122385358779792},{"$f":"IFERROR((BE20/(VLOOKUP($B20,Pupils,Pupils!$D$3,FALSE)+VLOOKUP($B20,Pupils,Pupils!$E$3,FALSE))), \"x\")","v":2317.965857687991},{"$f":"IFERROR((VLOOKUP($B20,Funding,Funding!$GP$2,FALSE)), \"x\")","v":54492073.260000005},{"$f":"IFERROR((BH20/VLOOKUP($B20,Funding,Funding!$GU$2,FALSE)), \"x\")","v":0.11505740168490096},{"$f":"IFERROR((BH20/(VLOOKUP($B20,Pupils,Pupils!$G$3,FALSE)+VLOOKUP($B20,Pupils,Pupils!$H$3,FALSE))), \"x\")","v":2512.3131977869989},{"$f":"IFERROR((VLOOKUP($B20,Funding,Funding!$GH$2,FALSE)), \"x\")","v":54481341.670000002},{"$f":"IFERROR((BK20/VLOOKUP($B20,Funding,Funding!$GM$2,FALSE)), \"x\")","v":0.11454437520338427},{"$f":"IFERROR((BK20/(VLOOKUP($B20,Pupils,Pupils!$J$3,FALSE)+VLOOKUP($B20,Pupils,Pupils!$K$3,FALSE))), \"x\")","v":2579.8532848754617},{"$f":"IFERROR((VLOOKUP($B20,Funding,Funding!$FZ$2,FALSE)), \"x\")","v":55792033.719999999},{"$f":"IFERROR((BN20/VLOOKUP($B20,Funding,Funding!$GE$2,FALSE)), \"x\")","v":0.11876104038535241},{"$f":"IFERROR((BN20/(VLOOKUP($B20,Pupils,Pupils!$M$3,FALSE)+VLOOKUP($B20,Pupils,Pupils!$P$3,FALSE))), \"x\")","v":2770.2102144985101},{"$f":"IFERROR((VLOOKUP($B20,Funding,Funding!$FD$2,FALSE)), \"x\")","v":42941819},{"$f":"IFERROR((BQ20/VLOOKUP($B20,Funding,Funding!$FR$2,FALSE)), \"x\")","v":0.10327043195121656},{"$f":"IFERROR((BQ20/(VLOOKUP($B20,Pupils,Pupils!$R$3,FALSE)+VLOOKUP($B20,Pupils,Pupils!$U$3,FALSE))), \"x\")","v":2219.2154521963826},{"$f":"(VLOOKUP(B20,Funding,Funding!$HK$2,FALSE)+VLOOKUP(B20,Funding,Funding!$HL$2,FALSE)+VLOOKUP(B20,Funding,Funding!$HM$2,FALSE))/(VLOOKUP(B20,Funding,Funding!$HN$2,FALSE))","v":0.23253150057273769},{"$f":"IFERROR((VLOOKUP(B20,Other_data,Other!$D$3,FALSE)+VLOOKUP(B20,Other_data,Other!$E$3,FALSE)+VLOOKUP(B20,Other_data,Other!$F$3,FALSE)), \"x\")","v":3460},{"$f":"(VLOOKUP(B20,Other_data,Other!$AK$3,FALSE)+VLOOKUP(B20,Other_data,Other!$AL$3,FALSE))/VLOOKUP(B20,Other_data,Other!$AJ$3,FALSE)","v":3.8122276833701209E-2},{"$f":"(VLOOKUP(B20,Other_data,Other!$AR$3,FALSE)+VLOOKUP(B20,Other_data,Other!$AS$3,FALSE))/VLOOKUP(B20,Other_data,Other!$AQ$3,FALSE)","v":5.5580163065767671E-2},{"$f":"VLOOKUP(B20,Other_data,Other!$AP$3,FALSE)/VLOOKUP(B20,Other_data,Other!$AJ$3,FALSE)","v":9.272099186845106E-3},{"$f":"VLOOKUP(B20,Other_data,Other!$AW$3,FALSE)/VLOOKUP(B20,Other_data,Other!$AQ$3,FALSE)","v":1.373099069836114E-2}]
[15,304,"Brent",{"$f":"IFERROR((VLOOKUP($B21,Pupils,Pupils!$D$3,FALSE)/VLOOKUP($B21,Pupils,Pupils!$C$3,FALSE)), \"x\")","v":2.825974725595385E-2},{"$f":"IFERROR((VLOOKUP($B21,Pupils,Pupils!$G$3,FALSE)/VLOOKUP($B21,Pupils,Pupils!$F$3,FALSE)),\"x\")","v":2.9313510763036215E-2},{"$f":"IFERROR((VLOOKUP($B21,Pupils,Pupils!$J$3,FALSE)/VLOOKUP($B21,Pupils,Pupils!$I$3,FALSE)), \"x\")","v":3.0537967868372314E-2},{"$f":"IFERROR((VLOOKUP($B21,Pupils,Pupils!$M$3,FALSE)/VLOOKUP($B21,Pupils,Pupils!$L$3,FALSE)), \"x\")","v":2.9475683088933433E-2},{"$f":"IFERROR((VLOOKUP($B21,Pupils,Pupils!$R$3,FALSE)/VLOOKUP($B21,Pupils,Pupils!$Q$3,FALSE)), \"x\")","v":2.8803498906591691E-2},{"$f":"IFERROR((VLOOKUP($B21,Pupils,Pupils!$W$3,FALSE)/VLOOKUP($B21,Pupils,Pupils!$V$3,FALSE)), \"x\")","v":2.804254448762528E-2},{"$f":"IFERROR(((VLOOKUP($B21,Pupils,Pupils!$D$3,FALSE)+VLOOKUP($B21,Pupils,Pupils!$E$3,FALSE))/VLOOKUP($B21,Pupils,Pupils!$C$3,FALSE)), \"x\")","v":0.22464142219029876},{"$f":"IFERROR(((VLOOKUP($B21,Pupils,Pupils!$G$3,FALSE)+VLOOKUP($B21,Pupils,Pupils!$H$3,FALSE))/VLOOKUP($B21,Pupils,Pupils!$F$3,FALSE)), \"x\")","v":0.22209685626424194},{"$f":"IFERROR(((VLOOKUP($B21,Pupils,Pupils!$J$3,FALSE)+VLOOKUP($B21,Pupils,Pupils!$K$3,FALSE))/VLOOKUP($B21,Pupils,Pupils!$I$3,FALSE)), \"x\")","v":0.21572554593616747},{"$f":"IFERROR(((VLOOKUP($B21,Pupils,Pupils!$M$3,FALSE)+VLOOKUP($B21,Pupils,Pupils!$P$3,FALSE))/VLOOKUP($B21,Pupils,Pupils!$L$3,FALSE)), \"x\")","v":0.21171009600168794},{"$f":"IFERROR(((VLOOKUP($B21,Pupils,Pupils!$R$3,FALSE)+VLOOKUP($B21,Pupils,Pupils!$U$3,FALSE))/VLOOKUP($B21,Pupils,Pupils!$Q$3,FALSE)), \"x\")","v":0.19108611892117047},{"$f":"IFERROR(((VLOOKUP($B21,Pupils,Pupils!$W$3,FALSE)+VLOOKUP($B21,Pupils,Pupils!$Z$3,FALSE))/VLOOKUP($B21,Pupils,Pupils!$V$3,FALSE)), \"x\")","v":0.17678461853139701},{"$f":"(SUM(INDEX(Pupils!$AB$7:$AB$159,MATCH($B21,Pupils!$A$7:$A$159,0)),INDEX(Pupils!$AC$7:$AC$159,MATCH($B21,Pupils!$A$7:$A$159,0)),INDEX(Pupils!$AD$7:$AD$159,MATCH($B21,Pupils!$A$7:$A$159,0)),INDEX(Pupils!$AE$7:$AE$159,MATCH($B21,Pupils!$A$7:$A$159,0))))/SUM(INDEX(Pupils!$AB$7:$AM$159,MATCH($B21,Pupils!$A$7:$A$159,0),0))","v":0.2993600379236786},{"$f":"SUM(INDEX(Pupils!$AF$7:$AF$159,MATCH($B21,Pupils!$A$7:$A$159,0)))/SUM(INDEX(Pupils!$AB$7:$AM$159,MATCH($B21,Pupils!$A$7:$A$159,0),0))","v":0.20028442758947618},{"$f":"SUM(INDEX(Pupils!$AG$7:$AG$159,MATCH($B21,Pupils!$A$7:$A$159,0)))/SUM(INDEX(Pupils!$AB$7:$AM$159,MATCH($B21,Pupils!$A$7:$A$159,0),0))","v":0.28347949751125862},{"$f":"(SUM(INDEX(Pupils!$AH$7:$AH$159,MATCH($B21,Pupils!$A$7:$A$159,0)),INDEX(Pupils!$AI$7:$AI$159,MATCH($B21,Pupils!$A$7:$A$159,0)),INDEX(Pupils!$AJ$7:$AJ$159,MATCH($B21,Pupils!$A$7:$A$159,0))))/SUM(INDEX(Pupils!$AB$7:$AM$159,MATCH($B21,Pupils!$A$7:$A$159,0),0))","v":2.773168997392747E-2},{"$f":"SUM(INDEX(Pupils!$AK$7:$AK$159,MATCH($B21,Pupils!$A$7:$A$159,0)))/SUM(INDEX(Pupils!$AB$7:$AM$159,MATCH($B21,Pupils!$A$7:$A$159,0),0))","v":3.5079402702062099E-2},{"$f":"SUM(INDEX(Pupils!$AL$7:$AL$159,MATCH($B21,Pupils!$A$7:$A$159,0)))/SUM(INDEX(Pupils!$AB$7:$AM$159,MATCH($B21,Pupils!$A$7:$A$159,0),0))","v":9.9075610334202424E-2},{"$f":"SUM(INDEX(Pupils!$AM$7:$AM$159,MATCH($B21,Pupils!$A$7:$A$159,0)))/SUM(INDEX(Pupils!$AB$7:$AM$159,MATCH($B21,Pupils!$A$7:$A$159,0),0))","v":5.4989333965394641E-2},{"$f":"(SUM(INDEX(Pupils!$BH$7:$BH$159,MATCH($B21,Pupils!$A$7:$A$159,0)),INDEX(Pupils!$BK$7:$BK$159,MATCH($B21,Pupils!$A$7:$A$159,0)),INDEX(Pupils!$BO$7:$BO$159,MATCH($B21,Pupils!$A$7:$A$159,0))))/SUM(INDEX(Pupils!$BH$7:$BS$159,MATCH($B21,Pupils!$A$7:$A$159,0),0))","v":0.47189623224212479},{"$f":"(SUM(INDEX(Pupils!$BL$7:$BL$159,MATCH($B21,Pupils!$A$7:$A$159,0)),INDEX(Pupils!$BM$7:$BM$159,MATCH($B21,Pupils!$A$7:$A$159,0)),INDEX(Pupils!$BP$7:$BP$159,MATCH($B21,Pupils!$A$7:$A$159,0))))/SUM(INDEX(Pupils!$BH$7:$BS$159,MATCH($B21,Pupils!$A$7:$A$159,0),0))","v":0.45521927115503397},{"$f":"(SUM(INDEX(Pupils!$BI$7:$BI$159,MATCH($B21,Pupils!$A$7:$A$159,0)),INDEX(Pupils!$BJ$7:$BJ$159,MATCH($B21,Pupils!$A$7:$A$159,0))))/SUM(INDEX(Pupils!$BH$7:$BS$159,MATCH($B21,Pupils!$A$7:$A$159,0),0))","v":5.7442865966646078E-2},{"$f":"(SUM(INDEX(Pupils!$BQ$7:$BQ$159,MATCH($B21,Pupils!$A$7:$A$159,0)),INDEX(Pupils!$BR$7:$BR$159,MATCH($B21,Pupils!$A$7:$A$159,0)),INDEX(Pupils!$BN$7:$BN$159,MATCH($B21,Pupils!$A$7:$A$159,0)),INDEX(Pupils!$BS$7:$BS$159,MATCH($B21,Pupils!$A$7:$A$159,0))))/SUM(INDEX(Pupils!$BH$7:$BS$159,MATCH($B21,Pupils!$A$7:$A$159,0),0))","v":1.5441630636195183E-2},{"$f":"IFERROR((VLOOKUP(B21,Funding,Funding!$C$2,FALSE)), \"x\")","v":52105843.559999987},{"$f":"IFERROR((AA21/VLOOKUP(B21,Funding,Funding!$D$2,FALSE)), \"x\")","v":0.20457502791838064},{"$f":"IFERROR((AA21/(VLOOKUP(B21,Pupils,Pupils!$M$3,FALSE)+VLOOKUP(B21,Pupils,Pupils!$P$3,FALSE))), \"x\")","v":5192.9283994418965},{"$f":"IFERROR((VLOOKUP(B21,Funding,Funding!$E$2,FALSE)), \"x\")","v":53700348.683772206},{"$f":"IFERROR((AD21/VLOOKUP(B21,Funding,Funding!$F$2,FALSE)), \"x\")","v":0.20266334609603079},{"$f":"IFERROR((AD21/(VLOOKUP(B21,Pupils,Pupils!$R$3,FALSE)+VLOOKUP(B21,Pupils,Pupils!$U$3,FALSE))), \"x\")","v":5852.8990391032376},{"$f":"IFERROR((VLOOKUP(B21,Funding,Funding!$G$2,FALSE)), \"x\")","v":55543781.1707853},{"$f":"IFERROR((AG21/VLOOKUP(B21,Funding,Funding!$H$2,FALSE)), \"x\")","v":0.20371973598195947},{"$f":"IFERROR((AG21/(VLOOKUP(B21,Pupils,Pupils!$W$3,FALSE)+VLOOKUP(B21,Pupils,Pupils!$Z$3,FALSE))), \"x\")","v":6426.4469710500171},{"$f":"IFERROR((VLOOKUP(B21,Funding,Funding!$I$2,FALSE)), \"x\")","v":55831064.421295345},{"$f":"IFERROR((AJ21/VLOOKUP(B21,Funding,Funding!$J$2,FALSE)), \"x\")","v":0.18853247478783441},null,{"$f":"IFERROR((VLOOKUP($B21,Funding,Funding!$EC$2,FALSE)), \"x\")","v":20291282},{"$f":"IFERROR((AM21/VLOOKUP($B21,Funding,Funding!$EU$2,FALSE)), \"x\")","v":8.1582259397616166E-2},{"$f":"IFERROR((AM21/(VLOOKUP($B21,Pupils,Pupils!$D$3,FALSE)+VLOOKUP($B21,Pupils,Pupils!$E$3,FALSE))), \"x\")","v":2027.5061950439649},{"$f":"IFERROR((VLOOKUP($B21,Funding,Funding!$DA$2,FALSE)), \"x\")","v":22913720.120000001},{"$f":"IFERROR((AP21/VLOOKUP($B21,Funding,Funding!$DT$2,FALSE)), \"x\")","v":9.1626131531451577E-2},{"$f":"IFERROR((AP21/(VLOOKUP($B21,Pupils,Pupils!$G$3,FALSE)+VLOOKUP($B21,Pupils,Pupils!$H$3,FALSE))), \"x\")","v":2282.4703775276421},{"$f":"IFERROR((VLOOKUP($B21,Funding,Funding!$CE$2,FALSE)), \"x\")","v":18389014},{"$f":"IFERROR((AS21/VLOOKUP($B21,Funding,Funding!$CR$2,FALSE)), \"x\")","v":7.5480337534808969E-2},{"$f":"IFERROR((AS21/(VLOOKUP($B21,Pupils,Pupils!$J$3,FALSE)+VLOOKUP($B21,Pupils,Pupils!$K$3,FALSE))), \"x\")","v":1835.780573025856},{"$f":"IFERROR((VLOOKUP($B21,Funding,Funding!$BM$2,FALSE)), \"x\")","v":31117992.59},{"$f":"IFERROR((AV21/VLOOKUP($B21,Funding,Funding!$BY$2,FALSE)), \"x\")","v":0.1224530690363335},{"$f":"IFERROR((AV21/(VLOOKUP($B21,Pupils,Pupils!$M$3,FALSE)+VLOOKUP($B21,Pupils,Pupils!$P$3,FALSE))), \"x\")","v":3101.2549920271076},{"$f":"IFERROR((VLOOKUP($B21,Funding,Funding!$AQ$2,FALSE)), \"x\")","v":42624402},{"$f":"IFERROR((AY21/VLOOKUP($B21,Funding,Funding!$BE$2,FALSE)), \"x\")","v":0.15006181478763364},{"$f":"IFERROR((AY21/(VLOOKUP($B21,Pupils,Pupils!$R$3,FALSE)+VLOOKUP($B21,Pupils,Pupils!$U$3,FALSE))), \"x\")","v":4645.7113896457768},{"$f":"IFERROR((VLOOKUP($B21,Funding,Funding!$S$2,FALSE)), \"x\")","v":44465384},{"$f":"IFERROR((BB21/VLOOKUP($B21,Funding,Funding!$AH$2,FALSE)), \"x\")","v":0.16167947721689768},{"$f":"IFERROR((BB21/(VLOOKUP(B21,Pupils,Pupils!$W$3,FALSE)+VLOOKUP(B21,Pupils,Pupils!$Z$3,FALSE))), \"x\")","v":5144.6701376836745},{"$f":"IFERROR((VLOOKUP($B21,Funding,Funding!$GX$2,FALSE)), \"x\")","v":40559342.41375},{"$f":"IFERROR((BE21/VLOOKUP($B21,Funding,Funding!$HC$2,FALSE)), \"x\")","v":0.14621106857201907},{"$f":"IFERROR((BE21/(VLOOKUP($B21,Pupils,Pupils!$D$3,FALSE)+VLOOKUP($B21,Pupils,Pupils!$E$3,FALSE))), \"x\")","v":4052.692087704836},{"$f":"IFERROR((VLOOKUP($B21,Funding,Funding!$GP$2,FALSE)), \"x\")","v":45782677.359999999},{"$f":"IFERROR((BH21/VLOOKUP($B21,Funding,Funding!$GU$2,FALSE)), \"x\")","v":0.1617480058297836},{"$f":"IFERROR((BH21/(VLOOKUP($B21,Pupils,Pupils!$G$3,FALSE)+VLOOKUP($B21,Pupils,Pupils!$H$3,FALSE))), \"x\")","v":4560.4818567586408},{"$f":"IFERROR((VLOOKUP($B21,Funding,Funding!$GH$2,FALSE)), \"x\")","v":49640157.150000006},{"$f":"IFERROR((BK21/VLOOKUP($B21,Funding,Funding!$GM$2,FALSE)), \"x\")","v":0.17856223176302302},{"$f":"IFERROR((BK21/(VLOOKUP($B21,Pupils,Pupils!$J$3,FALSE)+VLOOKUP($B21,Pupils,Pupils!$K$3,FALSE))), \"x\")","v":4955.5912099430971},{"$f":"IFERROR((VLOOKUP($B21,Funding,Funding!$FZ$2,FALSE)), \"x\")","v":33399473.160000004},{"$f":"IFERROR((BN21/VLOOKUP($B21,Funding,Funding!$GE$2,FALSE)), \"x\")","v":0.13597845930857719},{"$f":"IFERROR((BN21/(VLOOKUP($B21,Pupils,Pupils!$M$3,FALSE)+VLOOKUP($B21,Pupils,Pupils!$P$3,FALSE))), \"x\")","v":3328.6299740881009},{"$f":"IFERROR((VLOOKUP($B21,Funding,Funding!$FD$2,FALSE)), \"x\")","v":48244883.829999998},{"$f":"IFERROR((BQ21/VLOOKUP($B21,Funding,Funding!$FR$2,FALSE)), \"x\")","v":0.22455603109393502},{"$f":"IFERROR((BQ21/(VLOOKUP($B21,Pupils,Pupils!$R$3,FALSE)+VLOOKUP($B21,Pupils,Pupils!$U$3,FALSE))), \"x\")","v":5258.297965122616},{"$f":"(VLOOKUP(B21,Funding,Funding!$HK$2,FALSE)+VLOOKUP(B21,Funding,Funding!$HL$2,FALSE)+VLOOKUP(B21,Funding,Funding!$HM$2,FALSE))/(VLOOKUP(B21,Funding,Funding!$HN$2,FALSE))","v":0.3233695652173913},{"$f":"IFERROR((VLOOKUP(B21,Other_data,Other!$D$3,FALSE)+VLOOKUP(B21,Other_data,Other!$E$3,FALSE)+VLOOKUP(B21,Other_data,Other!$F$3,FALSE)), \"x\")","v":1460},{"$f":"(VLOOKUP(B21,Other_data,Other!$AK$3,FALSE)+VLOOKUP(B21,Other_data,Other!$AL$3,FALSE))/VLOOKUP(B21,Other_data,Other!$AJ$3,FALSE)","v":3.1957793398045872E-2},{"$f":"(VLOOKUP(B21,Other_data,Other!$AR$3,FALSE)+VLOOKUP(B21,Other_data,Other!$AS$3,FALSE))/VLOOKUP(B21,Other_data,Other!$AQ$3,FALSE)","v":3.9732340458770533E-2},{"$f":"VLOOKUP(B21,Other_data,Other!$AP$3,FALSE)/VLOOKUP(B21,Other_data,Other!$AJ$3,FALSE)","v":8.8939893845933152E-3},{"$f":"VLOOKUP(B21,Other_data,Other!$AW$3,FALSE)/VLOOKUP(B21,Other_data,Other!$AQ$3,FALSE)","v":1.135209727393444E-2}]
[16,846,"Brighton and Hove",{"$f":"IFERROR((VLOOKUP($B22,Pupils,Pupils!$D$3,FALSE)/VLOOKUP($B22,Pupils,Pupils!$C$3,FALSE)), \"x\")","v":3.4697534199823667E-2},{"$f":"IFERROR((VLOOKUP($B22,Pupils,Pupils!$G$3,FALSE)/VLOOKUP($B22,Pupils,Pupils!$F$3,FALSE)),\"x\")","v":3.4134329625541311E-2},{"$f":"IFERROR((VLOOKUP($B22,Pupils,Pupils!$J$3,FALSE)/VLOOKUP($B22,Pupils,Pupils!$I$3,FALSE)), \"x\")","v":3.1949600629992123E-2},{"$f":"IFERROR((VLOOKUP($B22,Pupils,Pupils!$M$3,FALSE)/VLOOKUP($B22,Pupils,Pupils!$L$3,FALSE)), \"x\")","v":3.2991940899932841E-2},{"$f":"IFERROR((VLOOKUP($B22,Pupils,Pupils!$R$3,FALSE)/VLOOKUP($B22,Pupils,Pupils!$Q$3,FALSE)), \"x\")","v":3.0176467334181556E-2},{"$f":"IFERROR((VLOOKUP($B22,Pupils,Pupils!$W$3,FALSE)/VLOOKUP($B22,Pupils,Pupils!$V$3,FALSE)), \"x\")","v":2.9112640149126894E-2},{"$f":"IFERROR(((VLOOKUP($B22,Pupils,Pupils!$D$3,FALSE)+VLOOKUP($B22,Pupils,Pupils!$E$3,FALSE))/VLOOKUP($B22,Pupils,Pupils!$C$3,FALSE)), \"x\")","v":0.2359147919569978},{"$f":"IFERROR(((VLOOKUP($B22,Pupils,Pupils!$G$3,FALSE)+VLOOKUP($B22,Pupils,Pupils!$H$3,FALSE))/VLOOKUP($B22,Pupils,Pupils!$F$3,FALSE)), \"x\")","v":0.24995046842716029},{"$f":"IFERROR(((VLOOKUP($B22,Pupils,Pupils!$J$3,FALSE)+VLOOKUP($B22,Pupils,Pupils!$K$3,FALSE))/VLOOKUP($B22,Pupils,Pupils!$I$3,FALSE)), \"x\")","v":0.24929688378895265},{"$f":"IFERROR(((VLOOKUP($B22,Pupils,Pupils!$M$3,FALSE)+VLOOKUP($B22,Pupils,Pupils!$P$3,FALSE))/VLOOKUP($B22,Pupils,Pupils!$L$3,FALSE)), \"x\")","v":0.24415155585404075},{"$f":"IFERROR(((VLOOKUP($B22,Pupils,Pupils!$R$3,FALSE)+VLOOKUP($B22,Pupils,Pupils!$U$3,FALSE))/VLOOKUP($B22,Pupils,Pupils!$Q$3,FALSE)), \"x\")","v":0.22968412900370636},{"$f":"IFERROR(((VLOOKUP($B22,Pupils,Pupils!$W$3,FALSE)+VLOOKUP($B22,Pupils,Pupils!$Z$3,FALSE))/VLOOKUP($B22,Pupils,Pupils!$V$3,FALSE)), \"x\")","v":0.21691932344636641},{"$f":"(SUM(INDEX(Pupils!$AB$7:$AB$159,MATCH($B22,Pupils!$A$7:$A$159,0)),INDEX(Pupils!$AC$7:$AC$159,MATCH($B22,Pupils!$A$7:$A$159,0)),INDEX(Pupils!$AD$7:$AD$159,MATCH($B22,Pupils!$A$7:$A$159,0)),INDEX(Pupils!$AE$7:$AE$159,MATCH($B22,Pupils!$A$7:$A$159,0))))/SUM(INDEX(Pupils!$AB$7:$AM$159,MATCH($B22,Pupils!$A$7:$A$159,0),0))","v":0.34427521008403361},{"$f":"SUM(INDEX(Pupils!$AF$7:$AF$159,MATCH($B22,Pupils!$A$7:$A$159,0)))/SUM(INDEX(Pupils!$AB$7:$AM$159,MATCH($B22,Pupils!$A$7:$A$159,0),0))","v":0.19170168067226892},{"$f":"SUM(INDEX(Pupils!$AG$7:$AG$159,MATCH($B22,Pupils!$A$7:$A$159,0)))/SUM(INDEX(Pupils!$AB$7:$AM$159,MATCH($B22,Pupils!$A$7:$A$159,0),0))","v":0.26391806722689076},{"$f":"(SUM(INDEX(Pupils!$AH$7:$AH$159,MATCH($B22,Pupils!$A$7:$A$159,0)),INDEX(Pupils!$AI$7:$AI$159,MATCH($B22,Pupils!$A$7:$A$159,0)),INDEX(Pupils!$AJ$7:$AJ$159,MATCH($B22,Pupils!$A$7:$A$159,0))))/SUM(INDEX(Pupils!$AB$7:$AM$159,MATCH($B22,Pupils!$A$7:$A$159,0),0))","v":5.619747899159664E-2},{"$f":"SUM(INDEX(Pupils!$AK$7:$AK$159,MATCH($B22,Pupils!$A$7:$A$159,0)))/SUM(INDEX(Pupils!$AB$7:$AM$159,MATCH($B22,Pupils!$A$7:$A$159,0),0))","v":2.7573529411764705E-2},{"$f":"SUM(INDEX(Pupils!$AL$7:$AL$159,MATCH($B22,Pupils!$A$7:$A$159,0)))/SUM(INDEX(Pupils!$AB$7:$AM$159,MATCH($B22,Pupils!$A$7:$A$159,0),0))","v":7.4054621848739496E-2},{"$f":"SUM(INDEX(Pupils!$AM$7:$AM$159,MATCH($B22,Pupils!$A$7:$A$159,0)))/SUM(INDEX(Pupils!$AB$7:$AM$159,MATCH($B22,Pupils!$A$7:$A$159,0),0))","v":4.2279411764705885E-2},{"$f":"(SUM(INDEX(Pupils!$BH$7:$BH$159,MATCH($B22,Pupils!$A$7:$A$159,0)),INDEX(Pupils!$BK$7:$BK$159,MATCH($B22,Pupils!$A$7:$A$159,0)),INDEX(Pupils!$BO$7:$BO$159,MATCH($B22,Pupils!$A$7:$A$159,0))))/SUM(INDEX(Pupils!$BH$7:$BS$159,MATCH($B22,Pupils!$A$7:$A$159,0),0))","v":0.4231943031536114},{"$f":"(SUM(INDEX(Pupils!$BL$7:$BL$159,MATCH($B22,Pupils!$A$7:$A$159,0)),INDEX(Pupils!$BM$7:$BM$159,MATCH($B22,Pupils!$A$7:$A$159,0)),INDEX(Pupils!$BP$7:$BP$159,MATCH($B22,Pupils!$A$7:$A$159,0))))/SUM(INDEX(Pupils!$BH$7:$BS$159,MATCH($B22,Pupils!$A$7:$A$159,0),0))","v":0.4903357070193286},{"$f":"(SUM(INDEX(Pupils!$BI$7:$BI$159,MATCH($B22,Pupils!$A$7:$A$159,0)),INDEX(Pupils!$BJ$7:$BJ$159,MATCH($B22,Pupils!$A$7:$A$159,0))))/SUM(INDEX(Pupils!$BH$7:$BS$159,MATCH($B22,Pupils!$A$7:$A$159,0),0))","v":7.3245167853509666E-2},{"$f":"(SUM(INDEX(Pupils!$BQ$7:$BQ$159,MATCH($B22,Pupils!$A$7:$A$159,0)),INDEX(Pupils!$BR$7:$BR$159,MATCH($B22,Pupils!$A$7:$A$159,0)),INDEX(Pupils!$BN$7:$BN$159,MATCH($B22,Pupils!$A$7:$A$159,0)),INDEX(Pupils!$BS$7:$BS$159,MATCH($B22,Pupils!$A$7:$A$159,0))))/SUM(INDEX(Pupils!$BH$7:$BS$159,MATCH($B22,Pupils!$A$7:$A$159,0),0))","v":1.3224821973550356E-2},{"$f":"IFERROR((VLOOKUP(B22,Funding,Funding!$C$2,FALSE)), \"x\")","v":21211711.899999999},{"$f":"IFERROR((AA22/VLOOKUP(B22,Funding,Funding!$D$2,FALSE)), \"x\")","v":0.13493010384982168},{"$f":"IFERROR((AA22/(VLOOKUP(B22,Pupils,Pupils!$M$3,FALSE)+VLOOKUP(B22,Pupils,Pupils!$P$3,FALSE))), \"x\")","v":2431.1417650429798},{"$f":"IFERROR((VLOOKUP(B22,Funding,Funding!$E$2,FALSE)), \"x\")","v":21727217.584443122},{"$f":"IFERROR((AD22/VLOOKUP(B22,Funding,Funding!$F$2,FALSE)), \"x\")","v":0.1341873635556772},{"$f":"IFERROR((AD22/(VLOOKUP(B22,Pupils,Pupils!$R$3,FALSE)+VLOOKUP(B22,Pupils,Pupils!$U$3,FALSE))), \"x\")","v":2616.4761060263877},{"$f":"IFERROR((VLOOKUP(B22,Funding,Funding!$G$2,FALSE)), \"x\")","v":23248063.445120536},{"$f":"IFERROR((AG22/VLOOKUP(B22,Funding,Funding!$H$2,FALSE)), \"x\")","v":0.14102064640308884},{"$f":"IFERROR((AG22/(VLOOKUP(B22,Pupils,Pupils!$W$3,FALSE)+VLOOKUP(B22,Pupils,Pupils!$Z$3,FALSE))), \"x\")","v":2937.9582263516409},{"$f":"IFERROR((VLOOKUP(B22,Funding,Funding!$I$2,FALSE)), \"x\")","v":23410473.500795186},{"$f":"IFERROR((AJ22/VLOOKUP(B22,Funding,Funding!$J$2,FALSE)), \"x\")","v":0.1419986989324242},null,{"$f":"IFERROR((VLOOKUP($B22,Funding,Funding!$EC$2,FALSE)), \"x\")","v":17994759},{"$f":"IFERROR((AM22/VLOOKUP($B22,Funding,Funding!$EU$2,FALSE)), \"x\")","v":0.11767307714843117},{"$f":"IFERROR((AM22/(VLOOKUP($B22,Pupils,Pupils!$D$3,FALSE)+VLOOKUP($B22,Pupils,Pupils!$E$3,FALSE))), \"x\")","v":2169.3500904159132},{"$f":"IFERROR((VLOOKUP($B22,Funding,Funding!$DA$2,FALSE)), \"x\")","v":17912193},{"$f":"IFERROR((AP22/VLOOKUP($B22,Funding,Funding!$DT$2,FALSE)), \"x\")","v":0.11196875385314292},{"$f":"IFERROR((AP22/(VLOOKUP($B22,Pupils,Pupils!$G$3,FALSE)+VLOOKUP($B22,Pupils,Pupils!$H$3,FALSE))), \"x\")","v":2028.331219567433},{"$f":"IFERROR((VLOOKUP($B22,Funding,Funding!$CE$2,FALSE)), \"x\")","v":18243021},{"$f":"IFERROR((AS22/VLOOKUP($B22,Funding,Funding!$CR$2,FALSE)), \"x\")","v":0.11386443552964759},{"$f":"IFERROR((AS22/(VLOOKUP($B22,Pupils,Pupils!$J$3,FALSE)+VLOOKUP($B22,Pupils,Pupils!$K$3,FALSE))), \"x\")","v":2058.1025496389893},{"$f":"IFERROR((VLOOKUP($B22,Funding,Funding!$BM$2,FALSE)), \"x\")","v":18935405},{"$f":"IFERROR((AV22/VLOOKUP($B22,Funding,Funding!$BY$2,FALSE)), \"x\")","v":0.11700205198734563},{"$f":"IFERROR((AV22/(VLOOKUP($B22,Pupils,Pupils!$M$3,FALSE)+VLOOKUP($B22,Pupils,Pupils!$P$3,FALSE))), \"x\")","v":2170.2469914040116},{"$f":"IFERROR((VLOOKUP($B22,Funding,Funding!$AQ$2,FALSE)), \"x\")","v":22488102},{"$f":"IFERROR((AY22/VLOOKUP($B22,Funding,Funding!$BE$2,FALSE)), \"x\")","v":0.13437506520638776},{"$f":"IFERROR((AY22/(VLOOKUP($B22,Pupils,Pupils!$R$3,FALSE)+VLOOKUP($B22,Pupils,Pupils!$U$3,FALSE))), \"x\")","v":2708.1047687861274},{"$f":"IFERROR((VLOOKUP($B22,Funding,Funding!$S$2,FALSE)), \"x\")","v":23172787},{"$f":"IFERROR((BB22/VLOOKUP($B22,Funding,Funding!$AH$2,FALSE)), \"x\")","v":0.13582342977047651},{"$f":"IFERROR((BB22/(VLOOKUP(B22,Pupils,Pupils!$W$3,FALSE)+VLOOKUP(B22,Pupils,Pupils!$Z$3,FALSE))), \"x\")","v":2928.44521673196},{"$f":"IFERROR((VLOOKUP($B22,Funding,Funding!$GX$2,FALSE)), \"x\")","v":27553355},{"$f":"IFERROR((BE22/VLOOKUP($B22,Funding,Funding!$HC$2,FALSE)), \"x\")","v":0.1701475842106005},{"$f":"IFERROR((BE22/(VLOOKUP($B22,Pupils,Pupils!$D$3,FALSE)+VLOOKUP($B22,Pupils,Pupils!$E$3,FALSE))), \"x\")","v":3321.6823387582881},{"$f":"IFERROR((VLOOKUP($B22,Funding,Funding!$GP$2,FALSE)), \"x\")","v":29719857},{"$f":"IFERROR((BH22/VLOOKUP($B22,Funding,Funding!$GU$2,FALSE)), \"x\")","v":0.17509546327769457},{"$f":"IFERROR((BH22/(VLOOKUP($B22,Pupils,Pupils!$G$3,FALSE)+VLOOKUP($B22,Pupils,Pupils!$H$3,FALSE))), \"x\")","v":3365.401087079606},{"$f":"IFERROR((VLOOKUP($B22,Funding,Funding!$GH$2,FALSE)), \"x\")","v":28263537.550000001},{"$f":"IFERROR((BK22/VLOOKUP($B22,Funding,Funding!$GM$2,FALSE)), \"x\")","v":0.17594690018690134},{"$f":"IFERROR((BK22/(VLOOKUP($B22,Pupils,Pupils!$J$3,FALSE)+VLOOKUP($B22,Pupils,Pupils!$K$3,FALSE))), \"x\")","v":3188.5759871389891},{"$f":"IFERROR((VLOOKUP($B22,Funding,Funding!$FZ$2,FALSE)), \"x\")","v":31695308.149999999},{"$f":"IFERROR((BN22/VLOOKUP($B22,Funding,Funding!$GE$2,FALSE)), \"x\")","v":0.19334262227254401},{"$f":"IFERROR((BN22/(VLOOKUP($B22,Pupils,Pupils!$M$3,FALSE)+VLOOKUP($B22,Pupils,Pupils!$P$3,FALSE))), \"x\")","v":3632.7000744985671},{"$f":"IFERROR((VLOOKUP($B22,Funding,Funding!$FD$2,FALSE)), \"x\")","v":21263763},{"$f":"IFERROR((BQ22/VLOOKUP($B22,Funding,Funding!$FR$2,FALSE)), \"x\")","v":0.13570228832512518},{"$f":"IFERROR((BQ22/(VLOOKUP($B22,Pupils,Pupils!$R$3,FALSE)+VLOOKUP($B22,Pupils,Pupils!$U$3,FALSE))), \"x\")","v":2560.6651011560693},{"$f":"(VLOOKUP(B22,Funding,Funding!$HK$2,FALSE)+VLOOKUP(B22,Funding,Funding!$HL$2,FALSE)+VLOOKUP(B22,Funding,Funding!$HM$2,FALSE))/(VLOOKUP(B22,Funding,Funding!$HN$2,FALSE))","v":0.18262150220913106},{"$f":"IFERROR((VLOOKUP(B22,Other_data,Other!$D$3,FALSE)+VLOOKUP(B22,Other_data,Other!$E$3,FALSE)+VLOOKUP(B22,Other_data,Other!$F$3,FALSE)), \"x\")","v":1430},{"$f":"(VLOOKUP(B22,Other_data,Other!$AK$3,FALSE)+VLOOKUP(B22,Other_data,Other!$AL$3,FALSE))/VLOOKUP(B22,Other_data,Other!$AJ$3,FALSE)","v":3.9062322881951529E-2},{"$f":"(VLOOKUP(B22,Other_data,Other!$AR$3,FALSE)+VLOOKUP(B22,Other_data,Other!$AS$3,FALSE))/VLOOKUP(B22,Other_data,Other!$AQ$3,FALSE)","v":5.4084507042253524E-2},{"$f":"VLOOKUP(B22,Other_data,Other!$AP$3,FALSE)/VLOOKUP(B22,Other_data,Other!$AJ$3,FALSE)","v":5.781133102088009E-3},{"$f":"VLOOKUP(B22,Other_data,Other!$AW$3,FALSE)/VLOOKUP(B22,Other_data,Other!$AQ$3,FALSE)","v":1.4084507042253521E-2}]
[17,801,"Bristol, City of",{"$f":"IFERROR((VLOOKUP($B23,Pupils,Pupils!$D$3,FALSE)/VLOOKUP($B23,Pupils,Pupils!$C$3,FALSE)), \"x\")","v":3.3189033189033192E-2},{"$f":"IFERROR((VLOOKUP($B23,Pupils,Pupils!$G$3,FALSE)/VLOOKUP($B23,Pupils,Pupils!$F$3,FALSE)),\"x\")","v":3.2687607820586544E-2},{"$f":"IFERROR((VLOOKUP($B23,Pupils,Pupils!$J$3,FALSE)/VLOOKUP($B23,Pupils,Pupils!$I$3,FALSE)), \"x\")","v":3.1046717918391486E-2},{"$f":"IFERROR((VLOOKUP($B23,Pupils,Pupils!$M$3,FALSE)/VLOOKUP($B23,Pupils,Pupils!$L$3,FALSE)), \"x\")","v":2.9909879272232612E-2},{"$f":"IFERROR((VLOOKUP($B23,Pupils,Pupils!$R$3,FALSE)/VLOOKUP($B23,Pupils,Pupils!$Q$3,FALSE)), \"x\")","v":2.8206581535691663E-2},{"$f":"IFERROR((VLOOKUP($B23,Pupils,Pupils!$W$3,FALSE)/VLOOKUP($B23,Pupils,Pupils!$V$3,FALSE)), \"x\")","v":2.6954836397986938E-2},{"$f":"IFERROR(((VLOOKUP($B23,Pupils,Pupils!$D$3,FALSE)+VLOOKUP($B23,Pupils,Pupils!$E$3,FALSE))/VLOOKUP($B23,Pupils,Pupils!$C$3,FALSE)), \"x\")","v":0.18288707177596067},{"$f":"IFERROR(((VLOOKUP($B23,Pupils,Pupils!$G$3,FALSE)+VLOOKUP($B23,Pupils,Pupils!$H$3,FALSE))/VLOOKUP($B23,Pupils,Pupils!$F$3,FALSE)), \"x\")","v":0.18282777458309374},{"$f":"IFERROR(((VLOOKUP($B23,Pupils,Pupils!$J$3,FALSE)+VLOOKUP($B23,Pupils,Pupils!$K$3,FALSE))/VLOOKUP($B23,Pupils,Pupils!$I$3,FALSE)), \"x\")","v":0.18881970292552266},{"$f":"IFERROR(((VLOOKUP($B23,Pupils,Pupils!$M$3,FALSE)+VLOOKUP($B23,Pupils,Pupils!$P$3,FALSE))/VLOOKUP($B23,Pupils,Pupils!$L$3,FALSE)), \"x\")","v":0.18209488182281924},{"$f":"IFERROR(((VLOOKUP($B23,Pupils,Pupils!$R$3,FALSE)+VLOOKUP($B23,Pupils,Pupils!$U$3,FALSE))/VLOOKUP($B23,Pupils,Pupils!$Q$3,FALSE)), \"x\")","v":0.17052312206181441},{"$f":"IFERROR(((VLOOKUP($B23,Pupils,Pupils!$W$3,FALSE)+VLOOKUP($B23,Pupils,Pupils!$Z$3,FALSE))/VLOOKUP($B23,Pupils,Pupils!$V$3,FALSE)), \"x\")","v":0.17723415690809297},{"$f":"(SUM(INDEX(Pupils!$AB$7:$AB$159,MATCH($B23,Pupils!$A$7:$A$159,0)),INDEX(Pupils!$AC$7:$AC$159,MATCH($B23,Pupils!$A$7:$A$159,0)),INDEX(Pupils!$AD$7:$AD$159,MATCH($B23,Pupils!$A$7:$A$159,0)),INDEX(Pupils!$AE$7:$AE$159,MATCH($B23,Pupils!$A$7:$A$159,0))))/SUM(INDEX(Pupils!$AB$7:$AM$159,MATCH($B23,Pupils!$A$7:$A$159,0),0))","v":0.24586728754365542},{"$f":"SUM(INDEX(Pupils!$AF$7:$AF$159,MATCH($B23,Pupils!$A$7:$A$159,0)))/SUM(INDEX(Pupils!$AB$7:$AM$159,MATCH($B23,Pupils!$A$7:$A$159,0),0))","v":0.23189755529685682},{"$f":"SUM(INDEX(Pupils!$AG$7:$AG$159,MATCH($B23,Pupils!$A$7:$A$159,0)))/SUM(INDEX(Pupils!$AB$7:$AM$159,MATCH($B23,Pupils!$A$7:$A$159,0),0))","v":0.26449359720605353},{"$f":"(SUM(INDEX(Pupils!$AH$7:$AH$159,MATCH($B23,Pupils!$A$7:$A$159,0)),INDEX(Pupils!$AI$7:$AI$159,MATCH($B23,Pupils!$A$7:$A$159,0)),INDEX(Pupils!$AJ$7:$AJ$159,MATCH($B23,Pupils!$A$7:$A$159,0))))/SUM(INDEX(Pupils!$AB$7:$AM$159,MATCH($B23,Pupils!$A$7:$A$159,0),0))","v":4.190919674039581E-2},{"$f":"SUM(INDEX(Pupils!$AK$7:$AK$159,MATCH($B23,Pupils!$A$7:$A$159,0)))/SUM(INDEX(Pupils!$AB$7:$AM$159,MATCH($B23,Pupils!$A$7:$A$159,0),0))","v":4.2607683352735737E-2},{"$f":"SUM(INDEX(Pupils!$AL$7:$AL$159,MATCH($B23,Pupils!$A$7:$A$159,0)))/SUM(INDEX(Pupils!$AB$7:$AM$159,MATCH($B23,Pupils!$A$7:$A$159,0),0))","v":0.13015133876600699},{"$f":"SUM(INDEX(Pupils!$AM$7:$AM$159,MATCH($B23,Pupils!$A$7:$A$159,0)))/SUM(INDEX(Pupils!$AB$7:$AM$159,MATCH($B23,Pupils!$A$7:$A$159,0),0))","v":4.307334109429569E-2},{"$f":"(SUM(INDEX(Pupils!$BH$7:$BH$159,MATCH($B23,Pupils!$A$7:$A$159,0)),INDEX(Pupils!$BK$7:$BK$159,MATCH($B23,Pupils!$A$7:$A$159,0)),INDEX(Pupils!$BO$7:$BO$159,MATCH($B23,Pupils!$A$7:$A$159,0))))/SUM(INDEX(Pupils!$BH$7:$BS$159,MATCH($B23,Pupils!$A$7:$A$159,0),0))","v":0.42734553775743706},{"$f":"(SUM(INDEX(Pupils!$BL$7:$BL$159,MATCH($B23,Pupils!$A$7:$A$159,0)),INDEX(Pupils!$BM$7:$BM$159,MATCH($B23,Pupils!$A$7:$A$159,0)),INDEX(Pupils!$BP$7:$BP$159,MATCH($B23,Pupils!$A$7:$A$159,0))))/SUM(INDEX(Pupils!$BH$7:$BS$159,MATCH($B23,Pupils!$A$7:$A$159,0),0))","v":0.42391304347826086},{"$f":"(SUM(INDEX(Pupils!$BI$7:$BI$159,MATCH($B23,Pupils!$A$7:$A$159,0)),INDEX(Pupils!$BJ$7:$BJ$159,MATCH($B23,Pupils!$A$7:$A$159,0))))/SUM(INDEX(Pupils!$BH$7:$BS$159,MATCH($B23,Pupils!$A$7:$A$159,0),0))","v":0.12700228832951946},{"$f":"(SUM(INDEX(Pupils!$BQ$7:$BQ$159,MATCH($B23,Pupils!$A$7:$A$159,0)),INDEX(Pupils!$BR$7:$BR$159,MATCH($B23,Pupils!$A$7:$A$159,0)),INDEX(Pupils!$BN$7:$BN$159,MATCH($B23,Pupils!$A$7:$A$159,0)),INDEX(Pupils!$BS$7:$BS$159,MATCH($B23,Pupils!$A$7:$A$159,0))))/SUM(INDEX(Pupils!$BH$7:$BS$159,MATCH($B23,Pupils!$A$7:$A$159,0),0))","v":2.1739130434782608E-2},{"$f":"IFERROR((VLOOKUP(B23,Funding,Funding!$C$2,FALSE)), \"x\")","v":36633540.169999994},{"$f":"IFERROR((AA23/VLOOKUP(B23,Funding,Funding!$D$2,FALSE)), \"x\")","v":0.13933200265873244},{"$f":"IFERROR((AA23/(VLOOKUP(B23,Pupils,Pupils!$M$3,FALSE)+VLOOKUP(B23,Pupils,Pupils!$P$3,FALSE))), \"x\")","v":3420.8180194229149},{"$f":"IFERROR((VLOOKUP(B23,Funding,Funding!$E$2,FALSE)), \"x\")","v":40392198.590137467},{"$f":"IFERROR((AD23/VLOOKUP(B23,Funding,Funding!$F$2,FALSE)), \"x\")","v":0.14526732194691866},{"$f":"IFERROR((AD23/(VLOOKUP(B23,Pupils,Pupils!$R$3,FALSE)+VLOOKUP(B23,Pupils,Pupils!$U$3,FALSE))), \"x\")","v":3948.792510522775},{"$f":"IFERROR((VLOOKUP(B23,Funding,Funding!$G$2,FALSE)), \"x\")","v":42218604.207433753},{"$f":"IFERROR((AG23/VLOOKUP(B23,Funding,Funding!$H$2,FALSE)), \"x\")","v":0.14736515385428708},{"$f":"IFERROR((AG23/(VLOOKUP(B23,Pupils,Pupils!$W$3,FALSE)+VLOOKUP(B23,Pupils,Pupils!$Z$3,FALSE))), \"x\")","v":3879.6732408963198},{"$f":"IFERROR((VLOOKUP(B23,Funding,Funding!$I$2,FALSE)), \"x\")","v":42649480.981108382},{"$f":"IFERROR((AJ23/VLOOKUP(B23,Funding,Funding!$J$2,FALSE)), \"x\")","v":0.14082010460471953},null,{"$f":"IFERROR((VLOOKUP($B23,Funding,Funding!$EC$2,FALSE)), \"x\")","v":23598511},{"$f":"IFERROR((AM23/VLOOKUP($B23,Funding,Funding!$EU$2,FALSE)), \"x\")","v":0.10100412654427612},{"$f":"IFERROR((AM23/(VLOOKUP($B23,Pupils,Pupils!$D$3,FALSE)+VLOOKUP($B23,Pupils,Pupils!$E$3,FALSE))), \"x\")","v":2298.705532826807},{"$f":"IFERROR((VLOOKUP($B23,Funding,Funding!$DA$2,FALSE)), \"x\")","v":25075055.199999999},{"$f":"IFERROR((AP23/VLOOKUP($B23,Funding,Funding!$DT$2,FALSE)), \"x\")","v":0.10328269570301005},{"$f":"IFERROR((AP23/(VLOOKUP($B23,Pupils,Pupils!$G$3,FALSE)+VLOOKUP($B23,Pupils,Pupils!$H$3,FALSE))), \"x\")","v":2464.6211126400626},{"$f":"IFERROR((VLOOKUP($B23,Funding,Funding!$CE$2,FALSE)), \"x\")","v":25874258},{"$f":"IFERROR((AS23/VLOOKUP($B23,Funding,Funding!$CR$2,FALSE)), \"x\")","v":0.10401196277597145},{"$f":"IFERROR((AS23/(VLOOKUP($B23,Pupils,Pupils!$J$3,FALSE)+VLOOKUP($B23,Pupils,Pupils!$K$3,FALSE))), \"x\")","v":2383.4062269712599},{"$f":"IFERROR((VLOOKUP($B23,Funding,Funding!$BM$2,FALSE)), \"x\")","v":26117855.379999999},{"$f":"IFERROR((AV23/VLOOKUP($B23,Funding,Funding!$BY$2,FALSE)), \"x\")","v":0.10960842467439059},{"$f":"IFERROR((AV23/(VLOOKUP($B23,Pupils,Pupils!$M$3,FALSE)+VLOOKUP($B23,Pupils,Pupils!$P$3,FALSE))), \"x\")","v":2438.8696778410681},{"$f":"IFERROR((VLOOKUP($B23,Funding,Funding!$AQ$2,FALSE)), \"x\")","v":39667363},{"$f":"IFERROR((AY23/VLOOKUP($B23,Funding,Funding!$BE$2,FALSE)), \"x\")","v":0.14460905567326607},{"$f":"IFERROR((AY23/(VLOOKUP($B23,Pupils,Pupils!$R$3,FALSE)+VLOOKUP($B23,Pupils,Pupils!$U$3,FALSE))), \"x\")","v":3877.9316648743766},{"$f":"IFERROR((VLOOKUP($B23,Funding,Funding!$S$2,FALSE)), \"x\")","v":36504056.780000001},{"$f":"IFERROR((BB23/VLOOKUP($B23,Funding,Funding!$AH$2,FALSE)), \"x\")","v":0.12229482357245293},{"$f":"IFERROR((BB23/(VLOOKUP(B23,Pupils,Pupils!$W$3,FALSE)+VLOOKUP(B23,Pupils,Pupils!$Z$3,FALSE))), \"x\")","v":3354.5356349935673},{"$f":"IFERROR((VLOOKUP($B23,Funding,Funding!$GX$2,FALSE)), \"x\")","v":42114711.32},{"$f":"IFERROR((BE23/VLOOKUP($B23,Funding,Funding!$HC$2,FALSE)), \"x\")","v":0.11589267995695643},{"$f":"IFERROR((BE23/(VLOOKUP($B23,Pupils,Pupils!$D$3,FALSE)+VLOOKUP($B23,Pupils,Pupils!$E$3,FALSE))), \"x\")","v":4102.3486577050462},{"$f":"IFERROR((VLOOKUP($B23,Funding,Funding!$GP$2,FALSE)), \"x\")","v":44319644.210000001},{"$f":"IFERROR((BH23/VLOOKUP($B23,Funding,Funding!$GU$2,FALSE)), \"x\")","v":0.13547494429155188},{"$f":"IFERROR((BH23/(VLOOKUP($B23,Pupils,Pupils!$G$3,FALSE)+VLOOKUP($B23,Pupils,Pupils!$H$3,FALSE))), \"x\")","v":4356.1671132298015},{"$f":"IFERROR((VLOOKUP($B23,Funding,Funding!$GH$2,FALSE)), \"x\")","v":43967418.640000001},{"$f":"IFERROR((BK23/VLOOKUP($B23,Funding,Funding!$GM$2,FALSE)), \"x\")","v":0.162494745319337},{"$f":"IFERROR((BK23/(VLOOKUP($B23,Pupils,Pupils!$J$3,FALSE)+VLOOKUP($B23,Pupils,Pupils!$K$3,FALSE))), \"x\")","v":4050.0569859985262},{"$f":"IFERROR((VLOOKUP($B23,Funding,Funding!$FZ$2,FALSE)), \"x\")","v":40476732.259999998},{"$f":"IFERROR((BN23/VLOOKUP($B23,Funding,Funding!$GE$2,FALSE)), \"x\")","v":0.15982622426864646},{"$f":"IFERROR((BN23/(VLOOKUP($B23,Pupils,Pupils!$M$3,FALSE)+VLOOKUP($B23,Pupils,Pupils!$P$3,FALSE))), \"x\")","v":3779.6929928097861},{"$f":"IFERROR((VLOOKUP($B23,Funding,Funding!$FD$2,FALSE)), \"x\")","v":38588534},{"$f":"IFERROR((BQ23/VLOOKUP($B23,Funding,Funding!$FR$2,FALSE)), \"x\")","v":0.20408714876650361},{"$f":"IFERROR((BQ23/(VLOOKUP($B23,Pupils,Pupils!$R$3,FALSE)+VLOOKUP($B23,Pupils,Pupils!$U$3,FALSE))), \"x\")","v":3772.4639749731155},{"$f":"(VLOOKUP(B23,Funding,Funding!$HK$2,FALSE)+VLOOKUP(B23,Funding,Funding!$HL$2,FALSE)+VLOOKUP(B23,Funding,Funding!$HM$2,FALSE))/(VLOOKUP(B23,Funding,Funding!$HN$2,FALSE))","v":0.30447414294015107},{"$f":"IFERROR((VLOOKUP(B23,Other_data,Other!$D$3,FALSE)+VLOOKUP(B23,Other_data,Other!$E$3,FALSE)+VLOOKUP(B23,Other_data,Other!$F$3,FALSE)), \"x\")","v":2590},{"$f":"(VLOOKUP(B23,Other_data,Other!$AK$3,FALSE)+VLOOKUP(B23,Other_data,Other!$AL$3,FALSE))/VLOOKUP(B23,Other_data,Other!$AJ$3,FALSE)","v":4.1073685016656668E-2},{"$f":"(VLOOKUP(B23,Other_data,Other!$AR$3,FALSE)+VLOOKUP(B23,Other_data,Other!$AS$3,FALSE))/VLOOKUP(B23,Other_data,Other!$AQ$3,FALSE)","v":4.7468405768887591E-2},{"$f":"VLOOKUP(B23,Other_data,Other!$AP$3,FALSE)/VLOOKUP(B23,Other_data,Other!$AJ$3,FALSE)","v":7.7986393863198333E-3},{"$f":"VLOOKUP(B23,Other_data,Other!$AW$3,FALSE)/VLOOKUP(B23,Other_data,Other!$AQ$3,FALSE)","v":1.1696760273194788E-2}]
[18,305,"Bromley",{"$f":"IFERROR((VLOOKUP($B24,Pupils,Pupils!$D$3,FALSE)/VLOOKUP($B24,Pupils,Pupils!$C$3,FALSE)), \"x\")","v":3.2169746748802193E-2},{"$f":"IFERROR((VLOOKUP($B24,Pupils,Pupils!$G$3,FALSE)/VLOOKUP($B24,Pupils,Pupils!$F$3,FALSE)),\"x\")","v":3.3215079334139017E-2},{"$f":"IFERROR((VLOOKUP($B24,Pupils,Pupils!$J$3,FALSE)/VLOOKUP($B24,Pupils,Pupils!$I$3,FALSE)), \"x\")","v":3.462313895781638E-2},{"$f":"IFERROR((VLOOKUP($B24,Pupils,Pupils!$M$3,FALSE)/VLOOKUP($B24,Pupils,Pupils!$L$3,FALSE)), \"x\")","v":3.4350923941377509E-2},{"$f":"IFERROR((VLOOKUP($B24,Pupils,Pupils!$R$3,FALSE)/VLOOKUP($B24,Pupils,Pupils!$Q$3,FALSE)), \"x\")","v":3.6212282840597382E-2},{"$f":"IFERROR((VLOOKUP($B24,Pupils,Pupils!$W$3,FALSE)/VLOOKUP($B24,Pupils,Pupils!$V$3,FALSE)), \"x\")","v":3.4214736049684766E-2},{"$f":"IFERROR(((VLOOKUP($B24,Pupils,Pupils!$D$3,FALSE)+VLOOKUP($B24,Pupils,Pupils!$E$3,FALSE))/VLOOKUP($B24,Pupils,Pupils!$C$3,FALSE)), \"x\")","v":0.17174146866138654},{"$f":"IFERROR(((VLOOKUP($B24,Pupils,Pupils!$G$3,FALSE)+VLOOKUP($B24,Pupils,Pupils!$H$3,FALSE))/VLOOKUP($B24,Pupils,Pupils!$F$3,FALSE)), \"x\")","v":0.179096331527036},{"$f":"IFERROR(((VLOOKUP($B24,Pupils,Pupils!$J$3,FALSE)+VLOOKUP($B24,Pupils,Pupils!$K$3,FALSE))/VLOOKUP($B24,Pupils,Pupils!$I$3,FALSE)), \"x\")","v":0.18352589950372208},{"$f":"IFERROR(((VLOOKUP($B24,Pupils,Pupils!$M$3,FALSE)+VLOOKUP($B24,Pupils,Pupils!$P$3,FALSE))/VLOOKUP($B24,Pupils,Pupils!$L$3,FALSE)), \"x\")","v":0.17772113769333256},{"$f":"IFERROR(((VLOOKUP($B24,Pupils,Pupils!$R$3,FALSE)+VLOOKUP($B24,Pupils,Pupils!$U$3,FALSE))/VLOOKUP($B24,Pupils,Pupils!$Q$3,FALSE)), \"x\")","v":0.16928908869247181},{"$f":"IFERROR(((VLOOKUP($B24,Pupils,Pupils!$W$3,FALSE)+VLOOKUP($B24,Pupils,Pupils!$Z$3,FALSE))/VLOOKUP($B24,Pupils,Pupils!$V$3,FALSE)), \"x\")","v":0.16188952667733134},{"$f":"(SUM(INDEX(Pupils!$AB$7:$AB$159,MATCH($B24,Pupils!$A$7:$A$159,0)),INDEX(Pupils!$AC$7:$AC$159,MATCH($B24,Pupils!$A$7:$A$159,0)),INDEX(Pupils!$AD$7:$AD$159,MATCH($B24,Pupils!$A$7:$A$159,0)),INDEX(Pupils!$AE$7:$AE$159,MATCH($B24,Pupils!$A$7:$A$159,0))))/SUM(INDEX(Pupils!$AB$7:$AM$159,MATCH($B24,Pupils!$A$7:$A$159,0),0))","v":0.38241042345276871},{"$f":"SUM(INDEX(Pupils!$AF$7:$AF$159,MATCH($B24,Pupils!$A$7:$A$159,0)))/SUM(INDEX(Pupils!$AB$7:$AM$159,MATCH($B24,Pupils!$A$7:$A$159,0),0))","v":0.19326818675352878},{"$f":"SUM(INDEX(Pupils!$AG$7:$AG$159,MATCH($B24,Pupils!$A$7:$A$159,0)))/SUM(INDEX(Pupils!$AB$7:$AM$159,MATCH($B24,Pupils!$A$7:$A$159,0),0))","v":0.21237785016286645},{"$f":"(SUM(INDEX(Pupils!$AH$7:$AH$159,MATCH($B24,Pupils!$A$7:$A$159,0)),INDEX(Pupils!$AI$7:$AI$159,MATCH($B24,Pupils!$A$7:$A$159,0)),INDEX(Pupils!$AJ$7:$AJ$159,MATCH($B24,Pupils!$A$7:$A$159,0))))/SUM(INDEX(Pupils!$AB$7:$AM$159,MATCH($B24,Pupils!$A$7:$A$159,0),0))","v":3.3659066232356136E-2},{"$f":"SUM(INDEX(Pupils!$AK$7:$AK$159,MATCH($B24,Pupils!$A$7:$A$159,0)))/SUM(INDEX(Pupils!$AB$7:$AM$159,MATCH($B24,Pupils!$A$7:$A$159,0),0))","v":2.8881650380021717E-2},{"$f":"SUM(INDEX(Pupils!$AL$7:$AL$159,MATCH($B24,Pupils!$A$7:$A$159,0)))/SUM(INDEX(Pupils!$AB$7:$AM$159,MATCH($B24,Pupils!$A$7:$A$159,0),0))","v":0.11270358306188925},{"$f":"SUM(INDEX(Pupils!$AM$7:$AM$159,MATCH($B24,Pupils!$A$7:$A$159,0)))/SUM(INDEX(Pupils!$AB$7:$AM$159,MATCH($B24,Pupils!$A$7:$A$159,0),0))","v":3.6699239956568944E-2},{"$f":"(SUM(INDEX(Pupils!$BH$7:$BH$159,MATCH($B24,Pupils!$A$7:$A$159,0)),INDEX(Pupils!$BK$7:$BK$159,MATCH($B24,Pupils!$A$7:$A$159,0)),INDEX(Pupils!$BO$7:$BO$159,MATCH($B24,Pupils!$A$7:$A$159,0))))/SUM(INDEX(Pupils!$BH$7:$BS$159,MATCH($B24,Pupils!$A$7:$A$159,0),0))","v":0.52793733681462141},{"$f":"(SUM(INDEX(Pupils!$BL$7:$BL$159,MATCH($B24,Pupils!$A$7:$A$159,0)),INDEX(Pupils!$BM$7:$BM$159,MATCH($B24,Pupils!$A$7:$A$159,0)),INDEX(Pupils!$BP$7:$BP$159,MATCH($B24,Pupils!$A$7:$A$159,0))))/SUM(INDEX(Pupils!$BH$7:$BS$159,MATCH($B24,Pupils!$A$7:$A$159,0),0))","v":0.36083550913838119},{"$f":"(SUM(INDEX(Pupils!$BI$7:$BI$159,MATCH($B24,Pupils!$A$7:$A$159,0)),INDEX(Pupils!$BJ$7:$BJ$159,MATCH($B24,Pupils!$A$7:$A$159,0))))/SUM(INDEX(Pupils!$BH$7:$BS$159,MATCH($B24,Pupils!$A$7:$A$159,0),0))","v":8.1462140992167101E-2},{"$f":"(SUM(INDEX(Pupils!$BQ$7:$BQ$159,MATCH($B24,Pupils!$A$7:$A$159,0)),INDEX(Pupils!$BR$7:$BR$159,MATCH($B24,Pupils!$A$7:$A$159,0)),INDEX(Pupils!$BN$7:$BN$159,MATCH($B24,Pupils!$A$7:$A$159,0)),INDEX(Pupils!$BS$7:$BS$159,MATCH($B24,Pupils!$A$7:$A$159,0))))/SUM(INDEX(Pupils!$BH$7:$BS$159,MATCH($B24,Pupils!$A$7:$A$159,0),0))","v":2.9765013054830286E-2},{"$f":"IFERROR((VLOOKUP(B24,Funding,Funding!$C$2,FALSE)), \"x\")","v":44094982.859999999},{"$f":"IFERROR((AA24/VLOOKUP(B24,Funding,Funding!$D$2,FALSE)), \"x\")","v":0.1996975490837459},{"$f":"IFERROR((AA24/(VLOOKUP(B24,Pupils,Pupils!$M$3,FALSE)+VLOOKUP(B24,Pupils,Pupils!$P$3,FALSE))), \"x\")","v":4790.8499413298568},{"$f":"IFERROR((VLOOKUP(B24,Funding,Funding!$E$2,FALSE)), \"x\")","v":46449312.162600614},{"$f":"IFERROR((AD24/VLOOKUP(B24,Funding,Funding!$F$2,FALSE)), \"x\")","v":0.20240777587185907},{"$f":"IFERROR((AD24/(VLOOKUP(B24,Pupils,Pupils!$R$3,FALSE)+VLOOKUP(B24,Pupils,Pupils!$U$3,FALSE))), \"x\")","v":5226.6582831777441},{"$f":"IFERROR((VLOOKUP(B24,Funding,Funding!$G$2,FALSE)), \"x\")","v":47776654.622352466},{"$f":"IFERROR((AG24/VLOOKUP(B24,Funding,Funding!$H$2,FALSE)), \"x\")","v":0.20522607780917534},{"$f":"IFERROR((AG24/(VLOOKUP(B24,Pupils,Pupils!$W$3,FALSE)+VLOOKUP(B24,Pupils,Pupils!$Z$3,FALSE))), \"x\")","v":5554.1332971811753},{"$f":"IFERROR((VLOOKUP(B24,Funding,Funding!$I$2,FALSE)), \"x\")","v":48365120.39099019},{"$f":"IFERROR((AJ24/VLOOKUP(B24,Funding,Funding!$J$2,FALSE)), \"x\")","v":0.19212864579133523},null,{"$f":"IFERROR((VLOOKUP($B24,Funding,Funding!$EC$2,FALSE)), \"x\")","v":22697863},{"$f":"IFERROR((AM24/VLOOKUP($B24,Funding,Funding!$EU$2,FALSE)), \"x\")","v":9.5935390602953849E-2},{"$f":"IFERROR((AM24/(VLOOKUP($B24,Pupils,Pupils!$D$3,FALSE)+VLOOKUP($B24,Pupils,Pupils!$E$3,FALSE))), \"x\")","v":2584.589273514006},{"$f":"IFERROR((VLOOKUP($B24,Funding,Funding!$DA$2,FALSE)), \"x\")","v":23992089.741969999},{"$f":"IFERROR((AP24/VLOOKUP($B24,Funding,Funding!$DT$2,FALSE)), \"x\")","v":9.6367084754880969E-2},{"$f":"IFERROR((AP24/(VLOOKUP($B24,Pupils,Pupils!$G$3,FALSE)+VLOOKUP($B24,Pupils,Pupils!$H$3,FALSE))), \"x\")","v":2611.2418090955593},{"$f":"IFERROR((VLOOKUP($B24,Funding,Funding!$CE$2,FALSE)), \"x\")","v":24272472.309999999},{"$f":"IFERROR((AS24/VLOOKUP($B24,Funding,Funding!$CR$2,FALSE)), \"x\")","v":0.2181591470295168},{"$f":"IFERROR((AS24/(VLOOKUP($B24,Pupils,Pupils!$J$3,FALSE)+VLOOKUP($B24,Pupils,Pupils!$K$3,FALSE))), \"x\")","v":2563.9032755888875},{"$f":"IFERROR((VLOOKUP($B24,Funding,Funding!$BM$2,FALSE)), \"x\")","v":34124854.859999999},{"$f":"IFERROR((AV24/VLOOKUP($B24,Funding,Funding!$BY$2,FALSE)), \"x\")","v":0.24356364379894013},{"$f":"IFERROR((AV24/(VLOOKUP($B24,Pupils,Pupils!$M$3,FALSE)+VLOOKUP($B24,Pupils,Pupils!$P$3,FALSE))), \"x\")","v":3707.6113494132983},{"$f":"IFERROR((VLOOKUP($B24,Funding,Funding!$AQ$2,FALSE)), \"x\")","v":42240466},{"$f":"IFERROR((AY24/VLOOKUP($B24,Funding,Funding!$BE$2,FALSE)), \"x\")","v":0.18346931398383515},{"$f":"IFERROR((AY24/(VLOOKUP($B24,Pupils,Pupils!$R$3,FALSE)+VLOOKUP($B24,Pupils,Pupils!$U$3,FALSE))), \"x\")","v":4753.0624507707889},{"$f":"IFERROR((VLOOKUP($B24,Funding,Funding!$S$2,FALSE)), \"x\")","v":35266804},{"$f":"IFERROR((BB24/VLOOKUP($B24,Funding,Funding!$AH$2,FALSE)), \"x\")","v":0.15244133604034665},{"$f":"IFERROR((BB24/(VLOOKUP(B24,Pupils,Pupils!$W$3,FALSE)+VLOOKUP(B24,Pupils,Pupils!$Z$3,FALSE))), \"x\")","v":4099.8377121599624},{"$f":"IFERROR((VLOOKUP($B24,Funding,Funding!$GX$2,FALSE)), \"x\")","v":39534571},{"$f":"IFERROR((BE24/VLOOKUP($B24,Funding,Funding!$HC$2,FALSE)), \"x\")","v":0.15070843857128047},{"$f":"IFERROR((BE24/(VLOOKUP($B24,Pupils,Pupils!$D$3,FALSE)+VLOOKUP($B24,Pupils,Pupils!$E$3,FALSE))), \"x\")","v":4501.7730585288091},{"$f":"IFERROR((VLOOKUP($B24,Funding,Funding!$GP$2,FALSE)), \"x\")","v":42424351},{"$f":"IFERROR((BH24/VLOOKUP($B24,Funding,Funding!$GU$2,FALSE)), \"x\")","v":0.15805453893047722},{"$f":"IFERROR((BH24/(VLOOKUP($B24,Pupils,Pupils!$G$3,FALSE)+VLOOKUP($B24,Pupils,Pupils!$H$3,FALSE))), \"x\")","v":4617.3651501959075},{"$f":"IFERROR((VLOOKUP($B24,Funding,Funding!$GH$2,FALSE)), \"x\")","v":36377526.32},{"$f":"IFERROR((BK24/VLOOKUP($B24,Funding,Funding!$GM$2,FALSE)), \"x\")","v":0.22482712859753015},{"$f":"IFERROR((BK24/(VLOOKUP($B24,Pupils,Pupils!$J$3,FALSE)+VLOOKUP($B24,Pupils,Pupils!$K$3,FALSE))), \"x\")","v":3842.5611408049012},{"$f":"IFERROR((VLOOKUP($B24,Funding,Funding!$FZ$2,FALSE)), \"x\")","v":34244904.039999999},{"$f":"IFERROR((BN24/VLOOKUP($B24,Funding,Funding!$GE$2,FALSE)), \"x\")","v":0.25316056595701519},{"$f":"IFERROR((BN24/(VLOOKUP($B24,Pupils,Pupils!$M$3,FALSE)+VLOOKUP($B24,Pupils,Pupils!$P$3,FALSE))), \"x\")","v":3720.654502390265},{"$f":"IFERROR((VLOOKUP($B24,Funding,Funding!$FD$2,FALSE)), \"x\")","v":39136582.769999996},{"$f":"IFERROR((BQ24/VLOOKUP($B24,Funding,Funding!$FR$2,FALSE)), \"x\")","v":0.32463131898815001},{"$f":"IFERROR((BQ24/(VLOOKUP($B24,Pupils,Pupils!$R$3,FALSE)+VLOOKUP($B24,Pupils,Pupils!$U$3,FALSE))), \"x\")","v":4403.8013694160009},{"$f":"(VLOOKUP(B24,Funding,Funding!$HK$2,FALSE)+VLOOKUP(B24,Funding,Funding!$HL$2,FALSE)+VLOOKUP(B24,Funding,Funding!$HM$2,FALSE))/(VLOOKUP(B24,Funding,Funding!$HN$2,FALSE))","v":0.22737819025522041},{"$f":"IFERROR((VLOOKUP(B24,Other_data,Other!$D$3,FALSE)+VLOOKUP(B24,Other_data,Other!$E$3,FALSE)+VLOOKUP(B24,Other_data,Other!$F$3,FALSE)), \"x\")","v":2010},{"$f":"(VLOOKUP(B24,Other_data,Other!$AK$3,FALSE)+VLOOKUP(B24,Other_data,Other!$AL$3,FALSE))/VLOOKUP(B24,Other_data,Other!$AJ$3,FALSE)","v":3.4718777899017957E-2},{"$f":"(VLOOKUP(B24,Other_data,Other!$AR$3,FALSE)+VLOOKUP(B24,Other_data,Other!$AS$3,FALSE))/VLOOKUP(B24,Other_data,Other!$AQ$3,FALSE)","v":5.2643854329790421E-2},{"$f":"VLOOKUP(B24,Other_data,Other!$AP$3,FALSE)/VLOOKUP(B24,Other_data,Other!$AJ$3,FALSE)","v":4.7118341434381509E-3},{"$f":"VLOOKUP(B24,Other_data,Other!$AW$3,FALSE)/VLOOKUP(B24,Other_data,Other!$AQ$3,FALSE)","v":9.8623929630493445E-3}]
[19,825,"Buckinghamshire",{"$f":"IFERROR((VLOOKUP($B25,Pupils,Pupils!$D$3,FALSE)/VLOOKUP($B25,Pupils,Pupils!$C$3,FALSE)), \"x\")","v":2.9639692852923803E-2},{"$f":"IFERROR((VLOOKUP($B25,Pupils,Pupils!$G$3,FALSE)/VLOOKUP($B25,Pupils,Pupils!$F$3,FALSE)),\"x\")","v":3.0898843213479694E-2},{"$f":"IFERROR((VLOOKUP($B25,Pupils,Pupils!$J$3,FALSE)/VLOOKUP($B25,Pupils,Pupils!$I$3,FALSE)), \"x\")","v":3.2771919146993761E-2},{"$f":"IFERROR((VLOOKUP($B25,Pupils,Pupils!$M$3,FALSE)/VLOOKUP($B25,Pupils,Pupils!$L$3,FALSE)), \"x\")","v":3.3970177073625346E-2},{"$f":"IFERROR((VLOOKUP($B25,Pupils,Pupils!$R$3,FALSE)/VLOOKUP($B25,Pupils,Pupils!$Q$3,FALSE)), \"x\")","v":3.4004762507333572E-2},{"$f":"IFERROR((VLOOKUP($B25,Pupils,Pupils!$W$3,FALSE)/VLOOKUP($B25,Pupils,Pupils!$V$3,FALSE)), \"x\")","v":3.2937450514647665E-2},{"$f":"IFERROR(((VLOOKUP($B25,Pupils,Pupils!$D$3,FALSE)+VLOOKUP($B25,Pupils,Pupils!$E$3,FALSE))/VLOOKUP($B25,Pupils,Pupils!$C$3,FALSE)), \"x\")","v":0.16445363260484347},{"$f":"IFERROR(((VLOOKUP($B25,Pupils,Pupils!$G$3,FALSE)+VLOOKUP($B25,Pupils,Pupils!$H$3,FALSE))/VLOOKUP($B25,Pupils,Pupils!$F$3,FALSE)), \"x\")","v":0.16732639340194491},{"$f":"IFERROR(((VLOOKUP($B25,Pupils,Pupils!$J$3,FALSE)+VLOOKUP($B25,Pupils,Pupils!$K$3,FALSE))/VLOOKUP($B25,Pupils,Pupils!$I$3,FALSE)), \"x\")","v":0.1662823769004787},{"$f":"IFERROR(((VLOOKUP($B25,Pupils,Pupils!$M$3,FALSE)+VLOOKUP($B25,Pupils,Pupils!$P$3,FALSE))/VLOOKUP($B25,Pupils,Pupils!$L$3,FALSE)), \"x\")","v":0.15668685927306616},{"$f":"IFERROR(((VLOOKUP($B25,Pupils,Pupils!$R$3,FALSE)+VLOOKUP($B25,Pupils,Pupils!$U$3,FALSE))/VLOOKUP($B25,Pupils,Pupils!$Q$3,FALSE)), \"x\")","v":0.14818990210401592},{"$f":"IFERROR(((VLOOKUP($B25,Pupils,Pupils!$W$3,FALSE)+VLOOKUP($B25,Pupils,Pupils!$Z$3,FALSE))/VLOOKUP($B25,Pupils,Pupils!$V$3,FALSE)), \"x\")","v":0.1463974663499604},{"$f":"(SUM(INDEX(Pupils!$AB$7:$AB$159,MATCH($B25,Pupils!$A$7:$A$159,0)),INDEX(Pupils!$AC$7:$AC$159,MATCH($B25,Pupils!$A$7:$A$159,0)),INDEX(Pupils!$AD$7:$AD$159,MATCH($B25,Pupils!$A$7:$A$159,0)),INDEX(Pupils!$AE$7:$AE$159,MATCH($B25,Pupils!$A$7:$A$159,0))))/SUM(INDEX(Pupils!$AB$7:$AM$159,MATCH($B25,Pupils!$A$7:$A$159,0),0))","v":0.33572931276297335},{"$f":"SUM(INDEX(Pupils!$AF$7:$AF$159,MATCH($B25,Pupils!$A$7:$A$159,0)))/SUM(INDEX(Pupils!$AB$7:$AM$159,MATCH($B25,Pupils!$A$7:$A$159,0),0))","v":0.21230715287517532},{"$f":"SUM(INDEX(Pupils!$AG$7:$AG$159,MATCH($B25,Pupils!$A$7:$A$159,0)))/SUM(INDEX(Pupils!$AB$7:$AM$159,MATCH($B25,Pupils!$A$7:$A$159,0),0))","v":0.22107293127629735},{"$f":"(SUM(INDEX(Pupils!$AH$7:$AH$159,MATCH($B25,Pupils!$A$7:$A$159,0)),INDEX(Pupils!$AI$7:$AI$159,MATCH($B25,Pupils!$A$7:$A$159,0)),INDEX(Pupils!$AJ$7:$AJ$159,MATCH($B25,Pupils!$A$7:$A$159,0))))/SUM(INDEX(Pupils!$AB$7:$AM$159,MATCH($B25,Pupils!$A$7:$A$159,0),0))","v":4.5582047685834501E-2},{"$f":"SUM(INDEX(Pupils!$AK$7:$AK$159,MATCH($B25,Pupils!$A$7:$A$159,0)))/SUM(INDEX(Pupils!$AB$7:$AM$159,MATCH($B25,Pupils!$A$7:$A$159,0),0))","v":4.523141654978962E-2},{"$f":"SUM(INDEX(Pupils!$AL$7:$AL$159,MATCH($B25,Pupils!$A$7:$A$159,0)))/SUM(INDEX(Pupils!$AB$7:$AM$159,MATCH($B25,Pupils!$A$7:$A$159,0),0))","v":0.11097475455820477},{"$f":"SUM(INDEX(Pupils!$AM$7:$AM$159,MATCH($B25,Pupils!$A$7:$A$159,0)))/SUM(INDEX(Pupils!$AB$7:$AM$159,MATCH($B25,Pupils!$A$7:$A$159,0),0))","v":2.9102384291725104E-2},{"$f":"(SUM(INDEX(Pupils!$BH$7:$BH$159,MATCH($B25,Pupils!$A$7:$A$159,0)),INDEX(Pupils!$BK$7:$BK$159,MATCH($B25,Pupils!$A$7:$A$159,0)),INDEX(Pupils!$BO$7:$BO$159,MATCH($B25,Pupils!$A$7:$A$159,0))))/SUM(INDEX(Pupils!$BH$7:$BS$159,MATCH($B25,Pupils!$A$7:$A$159,0),0))","v":0.4699367088607595},{"$f":"(SUM(INDEX(Pupils!$BL$7:$BL$159,MATCH($B25,Pupils!$A$7:$A$159,0)),INDEX(Pupils!$BM$7:$BM$159,MATCH($B25,Pupils!$A$7:$A$159,0)),INDEX(Pupils!$BP$7:$BP$159,MATCH($B25,Pupils!$A$7:$A$159,0))))/SUM(INDEX(Pupils!$BH$7:$BS$159,MATCH($B25,Pupils!$A$7:$A$159,0),0))","v":0.4360759493670886},{"$f":"(SUM(INDEX(Pupils!$BI$7:$BI$159,MATCH($B25,Pupils!$A$7:$A$159,0)),INDEX(Pupils!$BJ$7:$BJ$159,MATCH($B25,Pupils!$A$7:$A$159,0))))/SUM(INDEX(Pupils!$BH$7:$BS$159,MATCH($B25,Pupils!$A$7:$A$159,0),0))","v":5.1265822784810129E-2},{"$f":"(SUM(INDEX(Pupils!$BQ$7:$BQ$159,MATCH($B25,Pupils!$A$7:$A$159,0)),INDEX(Pupils!$BR$7:$BR$159,MATCH($B25,Pupils!$A$7:$A$159,0)),INDEX(Pupils!$BN$7:$BN$159,MATCH($B25,Pupils!$A$7:$A$159,0)),INDEX(Pupils!$BS$7:$BS$159,MATCH($B25,Pupils!$A$7:$A$159,0))))/SUM(INDEX(Pupils!$BH$7:$BS$159,MATCH($B25,Pupils!$A$7:$A$159,0),0))","v":4.2721518987341771E-2},{"$f":"IFERROR((VLOOKUP(B25,Funding,Funding!$C$2,FALSE)), \"x\")","v":62335734.939999998},{"$f":"IFERROR((AA25/VLOOKUP(B25,Funding,Funding!$D$2,FALSE)), \"x\")","v":0.17831423638325153},{"$f":"IFERROR((AA25/(VLOOKUP(B25,Pupils,Pupils!$M$3,FALSE)+VLOOKUP(B25,Pupils,Pupils!$P$3,FALSE))), \"x\")","v":4634.6271330855016},{"$f":"IFERROR((VLOOKUP(B25,Funding,Funding!$E$2,FALSE)), \"x\")","v":65600234.78312134},{"$f":"IFERROR((AD25/VLOOKUP(B25,Funding,Funding!$F$2,FALSE)), \"x\")","v":0.1826747838757187},{"$f":"IFERROR((AD25/(VLOOKUP(B25,Pupils,Pupils!$R$3,FALSE)+VLOOKUP(B25,Pupils,Pupils!$U$3,FALSE))), \"x\")","v":5092.3951857724996},{"$f":"IFERROR((VLOOKUP(B25,Funding,Funding!$G$2,FALSE)), \"x\")","v":68379704.013619751},{"$f":"IFERROR((AG25/VLOOKUP(B25,Funding,Funding!$H$2,FALSE)), \"x\")","v":0.18635371568566347},{"$f":"IFERROR((AG25/(VLOOKUP(B25,Pupils,Pupils!$W$3,FALSE)+VLOOKUP(B25,Pupils,Pupils!$Z$3,FALSE))), \"x\")","v":5283.1417765293791},{"$f":"IFERROR((VLOOKUP(B25,Funding,Funding!$I$2,FALSE)), \"x\")","v":69174904.386972174},{"$f":"IFERROR((AJ25/VLOOKUP(B25,Funding,Funding!$J$2,FALSE)), \"x\")","v":0.17830467752255308},null,{"$f":"IFERROR((VLOOKUP($B25,Funding,Funding!$EC$2,FALSE)), \"x\")","v":42052258},{"$f":"IFERROR((AM25/VLOOKUP($B25,Funding,Funding!$EU$2,FALSE)), \"x\")","v":0.11589684472417798},{"$f":"IFERROR((AM25/(VLOOKUP($B25,Pupils,Pupils!$D$3,FALSE)+VLOOKUP($B25,Pupils,Pupils!$E$3,FALSE))), \"x\")","v":3020.7785360247108},{"$f":"IFERROR((VLOOKUP($B25,Funding,Funding!$DA$2,FALSE)), \"x\")","v":43393424},{"$f":"IFERROR((AP25/VLOOKUP($B25,Funding,Funding!$DT$2,FALSE)), \"x\")","v":0.1112337168764362},{"$f":"IFERROR((AP25/(VLOOKUP($B25,Pupils,Pupils!$G$3,FALSE)+VLOOKUP($B25,Pupils,Pupils!$H$3,FALSE))), \"x\")","v":3064.2909399053738},{"$f":"IFERROR((VLOOKUP($B25,Funding,Funding!$CE$2,FALSE)), \"x\")","v":44768332.539999999},{"$f":"IFERROR((AS25/VLOOKUP($B25,Funding,Funding!$CR$2,FALSE)), \"x\")","v":0.11875468090189194},{"$f":"IFERROR((AS25/(VLOOKUP($B25,Pupils,Pupils!$J$3,FALSE)+VLOOKUP($B25,Pupils,Pupils!$K$3,FALSE))), \"x\")","v":3151.1460927711692},{"$f":"IFERROR((VLOOKUP($B25,Funding,Funding!$BM$2,FALSE)), \"x\")","v":45790699.93},{"$f":"IFERROR((AV25/VLOOKUP($B25,Funding,Funding!$BY$2,FALSE)), \"x\")","v":0.16111380733141509},{"$f":"IFERROR((AV25/(VLOOKUP($B25,Pupils,Pupils!$M$3,FALSE)+VLOOKUP($B25,Pupils,Pupils!$P$3,FALSE))), \"x\")","v":3404.5130059479552},{"$f":"IFERROR((VLOOKUP($B25,Funding,Funding!$AQ$2,FALSE)), \"x\")","v":66533950},{"$f":"IFERROR((AY25/VLOOKUP($B25,Funding,Funding!$BE$2,FALSE)), \"x\")","v":0.17789468606350314},{"$f":"IFERROR((AY25/(VLOOKUP($B25,Pupils,Pupils!$R$3,FALSE)+VLOOKUP($B25,Pupils,Pupils!$U$3,FALSE))), \"x\")","v":5164.877348237851},{"$f":"IFERROR((VLOOKUP($B25,Funding,Funding!$S$2,FALSE)), \"x\")","v":65049602},{"$f":"IFERROR((BB25/VLOOKUP($B25,Funding,Funding!$AH$2,FALSE)), \"x\")","v":0.17205052372698226},{"$f":"IFERROR((BB25/(VLOOKUP(B25,Pupils,Pupils!$W$3,FALSE)+VLOOKUP(B25,Pupils,Pupils!$Z$3,FALSE))), \"x\")","v":5025.8519663138377},{"$f":"IFERROR((VLOOKUP($B25,Funding,Funding!$GX$2,FALSE)), \"x\")","v":57921051},{"$f":"IFERROR((BE25/VLOOKUP($B25,Funding,Funding!$HC$2,FALSE)), \"x\")","v":0.13725053381757407},{"$f":"IFERROR((BE25/(VLOOKUP($B25,Pupils,Pupils!$D$3,FALSE)+VLOOKUP($B25,Pupils,Pupils!$E$3,FALSE))), \"x\")","v":4160.6961425184973},{"$f":"IFERROR((VLOOKUP($B25,Funding,Funding!$GP$2,FALSE)), \"x\")","v":65198246},{"$f":"IFERROR((BH25/VLOOKUP($B25,Funding,Funding!$GU$2,FALSE)), \"x\")","v":0.15093479232742252},{"$f":"IFERROR((BH25/(VLOOKUP($B25,Pupils,Pupils!$G$3,FALSE)+VLOOKUP($B25,Pupils,Pupils!$H$3,FALSE))), \"x\")","v":4604.0707577148505},{"$f":"IFERROR((VLOOKUP($B25,Funding,Funding!$GH$2,FALSE)), \"x\")","v":62734943.240000002},{"$f":"IFERROR((BK25/VLOOKUP($B25,Funding,Funding!$GM$2,FALSE)), \"x\")","v":0.18695912062440342},{"$f":"IFERROR((BK25/(VLOOKUP($B25,Pupils,Pupils!$J$3,FALSE)+VLOOKUP($B25,Pupils,Pupils!$K$3,FALSE))), \"x\")","v":4415.7769578376856},{"$f":"IFERROR((VLOOKUP($B25,Funding,Funding!$FZ$2,FALSE)), \"x\")","v":58980500.060000002},{"$f":"IFERROR((BN25/VLOOKUP($B25,Funding,Funding!$GE$2,FALSE)), \"x\")","v":0.20728032963056298},{"$f":"IFERROR((BN25/(VLOOKUP($B25,Pupils,Pupils!$M$3,FALSE)+VLOOKUP($B25,Pupils,Pupils!$P$3,FALSE))), \"x\")","v":4385.1672907063203},{"$f":"IFERROR((VLOOKUP($B25,Funding,Funding!$FD$2,FALSE)), \"x\")","v":67350260},{"$f":"IFERROR((BQ25/VLOOKUP($B25,Funding,Funding!$FR$2,FALSE)), \"x\")","v":0.23786465818079974},{"$f":"IFERROR((BQ25/(VLOOKUP($B25,Pupils,Pupils!$R$3,FALSE)+VLOOKUP($B25,Pupils,Pupils!$U$3,FALSE))), \"x\")","v":5228.2456140350878},{"$f":"(VLOOKUP(B25,Funding,Funding!$HK$2,FALSE)+VLOOKUP(B25,Funding,Funding!$HL$2,FALSE)+VLOOKUP(B25,Funding,Funding!$HM$2,FALSE))/(VLOOKUP(B25,Funding,Funding!$HN$2,FALSE))","v":0.21481481481481482},{"$f":"IFERROR((VLOOKUP(B25,Other_data,Other!$D$3,FALSE)+VLOOKUP(B25,Other_data,Other!$E$3,FALSE)+VLOOKUP(B25,Other_data,Other!$F$3,FALSE)), \"x\")","v":2500},{"$f":"(VLOOKUP(B25,Other_data,Other!$AK$3,FALSE)+VLOOKUP(B25,Other_data,Other!$AL$3,FALSE))/VLOOKUP(B25,Other_data,Other!$AJ$3,FALSE)","v":2.9980408841746978E-2},{"$f":"(VLOOKUP(B25,Other_data,Other!$AR$3,FALSE)+VLOOKUP(B25,Other_data,Other!$AS$3,FALSE))/VLOOKUP(B25,Other_data,Other!$AQ$3,FALSE)","v":4.3293365971040949E-2},{"$f":"VLOOKUP(B25,Other_data,Other!$AP$3,FALSE)/VLOOKUP(B25,Other_data,Other!$AJ$3,FALSE)","v":4.4327469178556591E-3},{"$f":"VLOOKUP(B25,Other_data,Other!$AW$3,FALSE)/VLOOKUP(B25,Other_data,Other!$AQ$3,FALSE)","v":8.5881425548686892E-3}]
[20,351,"Bury",{"$f":"IFERROR((VLOOKUP($B26,Pupils,Pupils!$D$3,FALSE)/VLOOKUP($B26,Pupils,Pupils!$C$3,FALSE)), \"x\")","v":3.1578247573460977E-2},{"$f":"IFERROR((VLOOKUP($B26,Pupils,Pupils!$G$3,FALSE)/VLOOKUP($B26,Pupils,Pupils!$F$3,FALSE)),\"x\")","v":3.253955037468776E-2},{"$f":"IFERROR((VLOOKUP($B26,Pupils,Pupils!$J$3,FALSE)/VLOOKUP($B26,Pupils,Pupils!$I$3,FALSE)), \"x\")","v":3.2330324306252087E-2},{"$f":"IFERROR((VLOOKUP($B26,Pupils,Pupils!$M$3,FALSE)/VLOOKUP($B26,Pupils,Pupils!$L$3,FALSE)), \"x\")","v":3.3911252823169924E-2},{"$f":"IFERROR((VLOOKUP($B26,Pupils,Pupils!$R$3,FALSE)/VLOOKUP($B26,Pupils,Pupils!$Q$3,FALSE)), \"x\")","v":3.5492399206873762E-2},{"$f":"IFERROR((VLOOKUP($B26,Pupils,Pupils!$W$3,FALSE)/VLOOKUP($B26,Pupils,Pupils!$V$3,FALSE)), \"x\")","v":3.6449766432002102E-2},{"$f":"IFERROR(((VLOOKUP($B26,Pupils,Pupils!$D$3,FALSE)+VLOOKUP($B26,Pupils,Pupils!$E$3,FALSE))/VLOOKUP($B26,Pupils,Pupils!$C$3,FALSE)), \"x\")","v":0.17554181624783938},{"$f":"IFERROR(((VLOOKUP($B26,Pupils,Pupils!$G$3,FALSE)+VLOOKUP($B26,Pupils,Pupils!$H$3,FALSE))/VLOOKUP($B26,Pupils,Pupils!$F$3,FALSE)), \"x\")","v":0.18161532056619484},{"$f":"IFERROR(((VLOOKUP($B26,Pupils,Pupils!$J$3,FALSE)+VLOOKUP($B26,Pupils,Pupils!$K$3,FALSE))/VLOOKUP($B26,Pupils,Pupils!$I$3,FALSE)), \"x\")","v":0.18127716482781678},{"$f":"IFERROR(((VLOOKUP($B26,Pupils,Pupils!$M$3,FALSE)+VLOOKUP($B26,Pupils,Pupils!$P$3,FALSE))/VLOOKUP($B26,Pupils,Pupils!$L$3,FALSE)), \"x\")","v":0.18280855586555067},{"$f":"IFERROR(((VLOOKUP($B26,Pupils,Pupils!$R$3,FALSE)+VLOOKUP($B26,Pupils,Pupils!$U$3,FALSE))/VLOOKUP($B26,Pupils,Pupils!$Q$3,FALSE)), \"x\")","v":0.17637144745538666},{"$f":"IFERROR(((VLOOKUP($B26,Pupils,Pupils!$W$3,FALSE)+VLOOKUP($B26,Pupils,Pupils!$Z$3,FALSE))/VLOOKUP($B26,Pupils,Pupils!$V$3,FALSE)), \"x\")","v":0.17951838936772155},{"$f":"(SUM(INDEX(Pupils!$AB$7:$AB$159,MATCH($B26,Pupils!$A$7:$A$159,0)),INDEX(Pupils!$AC$7:$AC$159,MATCH($B26,Pupils!$A$7:$A$159,0)),INDEX(Pupils!$AD$7:$AD$159,MATCH($B26,Pupils!$A$7:$A$159,0)),INDEX(Pupils!$AE$7:$AE$159,MATCH($B26,Pupils!$A$7:$A$159,0))))/SUM(INDEX(Pupils!$AB$7:$AM$159,MATCH($B26,Pupils!$A$7:$A$159,0),0))","v":0.4807564698075647},{"$f":"SUM(INDEX(Pupils!$AF$7:$AF$159,MATCH($B26,Pupils!$A$7:$A$159,0)))/SUM(INDEX(Pupils!$AB$7:$AM$159,MATCH($B26,Pupils!$A$7:$A$159,0),0))","v":0.16224286662242868},{"$f":"SUM(INDEX(Pupils!$AG$7:$AG$159,MATCH($B26,Pupils!$A$7:$A$159,0)))/SUM(INDEX(Pupils!$AB$7:$AM$159,MATCH($B26,Pupils!$A$7:$A$159,0),0))","v":0.17252820172528202},{"$f":"(SUM(INDEX(Pupils!$AH$7:$AH$159,MATCH($B26,Pupils!$A$7:$A$159,0)),INDEX(Pupils!$AI$7:$AI$159,MATCH($B26,Pupils!$A$7:$A$159,0)),INDEX(Pupils!$AJ$7:$AJ$159,MATCH($B26,Pupils!$A$7:$A$159,0))))/SUM(INDEX(Pupils!$AB$7:$AM$159,MATCH($B26,Pupils!$A$7:$A$159,0),0))","v":3.0192435301924354E-2},{"$f":"SUM(INDEX(Pupils!$AK$7:$AK$159,MATCH($B26,Pupils!$A$7:$A$159,0)))/SUM(INDEX(Pupils!$AB$7:$AM$159,MATCH($B26,Pupils!$A$7:$A$159,0),0))","v":3.9482415394824152E-2},{"$f":"SUM(INDEX(Pupils!$AL$7:$AL$159,MATCH($B26,Pupils!$A$7:$A$159,0)))/SUM(INDEX(Pupils!$AB$7:$AM$159,MATCH($B26,Pupils!$A$7:$A$159,0),0))","v":8.1950895819508957E-2},{"$f":"SUM(INDEX(Pupils!$AM$7:$AM$159,MATCH($B26,Pupils!$A$7:$A$159,0)))/SUM(INDEX(Pupils!$AB$7:$AM$159,MATCH($B26,Pupils!$A$7:$A$159,0),0))","v":3.2846715328467155E-2},{"$f":"(SUM(INDEX(Pupils!$BH$7:$BH$159,MATCH($B26,Pupils!$A$7:$A$159,0)),INDEX(Pupils!$BK$7:$BK$159,MATCH($B26,Pupils!$A$7:$A$159,0)),INDEX(Pupils!$BO$7:$BO$159,MATCH($B26,Pupils!$A$7:$A$159,0))))/SUM(INDEX(Pupils!$BH$7:$BS$159,MATCH($B26,Pupils!$A$7:$A$159,0),0))","v":0.62242374278647983},{"$f":"(SUM(INDEX(Pupils!$BL$7:$BL$159,MATCH($B26,Pupils!$A$7:$A$159,0)),INDEX(Pupils!$BM$7:$BM$159,MATCH($B26,Pupils!$A$7:$A$159,0)),INDEX(Pupils!$BP$7:$BP$159,MATCH($B26,Pupils!$A$7:$A$159,0))))/SUM(INDEX(Pupils!$BH$7:$BS$159,MATCH($B26,Pupils!$A$7:$A$159,0),0))","v":0.31327287716405605},{"$f":"(SUM(INDEX(Pupils!$BI$7:$BI$159,MATCH($B26,Pupils!$A$7:$A$159,0)),INDEX(Pupils!$BJ$7:$BJ$159,MATCH($B26,Pupils!$A$7:$A$159,0))))/SUM(INDEX(Pupils!$BH$7:$BS$159,MATCH($B26,Pupils!$A$7:$A$159,0),0))","v":5.5234954657873044E-2},{"$f":"(SUM(INDEX(Pupils!$BQ$7:$BQ$159,MATCH($B26,Pupils!$A$7:$A$159,0)),INDEX(Pupils!$BR$7:$BR$159,MATCH($B26,Pupils!$A$7:$A$159,0)),INDEX(Pupils!$BN$7:$BN$159,MATCH($B26,Pupils!$A$7:$A$159,0)),INDEX(Pupils!$BS$7:$BS$159,MATCH($B26,Pupils!$A$7:$A$159,0))))/SUM(INDEX(Pupils!$BH$7:$BS$159,MATCH($B26,Pupils!$A$7:$A$159,0),0))","v":9.0684253915910961E-3},{"$f":"IFERROR((VLOOKUP(B26,Funding,Funding!$C$2,FALSE)), \"x\")","v":22074585.370000001},{"$f":"IFERROR((AA26/VLOOKUP(B26,Funding,Funding!$D$2,FALSE)), \"x\")","v":0.16253926639090582},{"$f":"IFERROR((AA26/(VLOOKUP(B26,Pupils,Pupils!$M$3,FALSE)+VLOOKUP(B26,Pupils,Pupils!$P$3,FALSE))), \"x\")","v":4010.6441442587211},{"$f":"IFERROR((VLOOKUP(B26,Funding,Funding!$E$2,FALSE)), \"x\")","v":22498757.78323229},{"$f":"IFERROR((AD26/VLOOKUP(B26,Funding,Funding!$F$2,FALSE)), \"x\")","v":0.16050572554060266},{"$f":"IFERROR((AD26/(VLOOKUP(B26,Pupils,Pupils!$R$3,FALSE)+VLOOKUP(B26,Pupils,Pupils!$U$3,FALSE))), \"x\")","v":4215.6188463991548},{"$f":"IFERROR((VLOOKUP(B26,Funding,Funding!$G$2,FALSE)), \"x\")","v":24077280.31169866},{"$f":"IFERROR((AG26/VLOOKUP(B26,Funding,Funding!$H$2,FALSE)), \"x\")","v":0.16702524910889199},{"$f":"IFERROR((AG26/(VLOOKUP(B26,Pupils,Pupils!$W$3,FALSE)+VLOOKUP(B26,Pupils,Pupils!$Z$3,FALSE))), \"x\")","v":4412.1825749860109},{"$f":"IFERROR((VLOOKUP(B26,Funding,Funding!$I$2,FALSE)), \"x\")","v":24338519.503950708},{"$f":"IFERROR((AJ26/VLOOKUP(B26,Funding,Funding!$J$2,FALSE)), \"x\")","v":0.16414888618779605},null,{"$f":"IFERROR((VLOOKUP($B26,Funding,Funding!$EC$2,FALSE)), \"x\")","v":11295440},{"$f":"IFERROR((AM26/VLOOKUP($B26,Funding,Funding!$EU$2,FALSE)), \"x\")","v":8.5848207240313223E-2},{"$f":"IFERROR((AM26/(VLOOKUP($B26,Pupils,Pupils!$D$3,FALSE)+VLOOKUP($B26,Pupils,Pupils!$E$3,FALSE))), \"x\")","v":2138.8827873508803},{"$f":"IFERROR((VLOOKUP($B26,Funding,Funding!$DA$2,FALSE)), \"x\")","v":12163579},{"$f":"IFERROR((AP26/VLOOKUP($B26,Funding,Funding!$DT$2,FALSE)), \"x\")","v":8.692430414771915E-2},{"$f":"IFERROR((AP26/(VLOOKUP($B26,Pupils,Pupils!$G$3,FALSE)+VLOOKUP($B26,Pupils,Pupils!$H$3,FALSE))), \"x\")","v":2230.621492756281},{"$f":"IFERROR((VLOOKUP($B26,Funding,Funding!$CE$2,FALSE)), \"x\")","v":12491817},{"$f":"IFERROR((AS26/VLOOKUP($B26,Funding,Funding!$CR$2,FALSE)), \"x\")","v":9.3005366135334333E-2},{"$f":"IFERROR((AS26/(VLOOKUP($B26,Pupils,Pupils!$J$3,FALSE)+VLOOKUP($B26,Pupils,Pupils!$K$3,FALSE))), \"x\")","v":2303.9131316857247},{"$f":"IFERROR((VLOOKUP($B26,Funding,Funding!$BM$2,FALSE)), \"x\")","v":13786299.120000001},{"$f":"IFERROR((AV26/VLOOKUP($B26,Funding,Funding!$BY$2,FALSE)), \"x\")","v":9.835784733920383E-2},{"$f":"IFERROR((AV26/(VLOOKUP($B26,Pupils,Pupils!$M$3,FALSE)+VLOOKUP($B26,Pupils,Pupils!$P$3,FALSE))), \"x\")","v":2504.778183139535},{"$f":"IFERROR((VLOOKUP($B26,Funding,Funding!$AQ$2,FALSE)), \"x\")","v":23979916},{"$f":"IFERROR((AY26/VLOOKUP($B26,Funding,Funding!$BE$2,FALSE)), \"x\")","v":0.16880090274870074},{"$f":"IFERROR((AY26/(VLOOKUP($B26,Pupils,Pupils!$R$3,FALSE)+VLOOKUP($B26,Pupils,Pupils!$U$3,FALSE))), \"x\")","v":4493.1452126662916},{"$f":"IFERROR((VLOOKUP($B26,Funding,Funding!$S$2,FALSE)), \"x\")","v":24986875},{"$f":"IFERROR((BB26/VLOOKUP($B26,Funding,Funding!$AH$2,FALSE)), \"x\")","v":0.17217905275027662},{"$f":"IFERROR((BB26/(VLOOKUP(B26,Pupils,Pupils!$W$3,FALSE)+VLOOKUP(B26,Pupils,Pupils!$Z$3,FALSE))), \"x\")","v":4578.8665933663187},{"$f":"IFERROR((VLOOKUP($B26,Funding,Funding!$GX$2,FALSE)), \"x\")","v":20863654},{"$f":"IFERROR((BE26/VLOOKUP($B26,Funding,Funding!$HC$2,FALSE)), \"x\")","v":0.14398185908906871},{"$f":"IFERROR((BE26/(VLOOKUP($B26,Pupils,Pupils!$D$3,FALSE)+VLOOKUP($B26,Pupils,Pupils!$E$3,FALSE))), \"x\")","v":3950.7013823139555},{"$f":"IFERROR((VLOOKUP($B26,Funding,Funding!$GP$2,FALSE)), \"x\")","v":21545368},{"$f":"IFERROR((BH26/VLOOKUP($B26,Funding,Funding!$GU$2,FALSE)), \"x\")","v":0.1446299342668344},{"$f":"IFERROR((BH26/(VLOOKUP($B26,Pupils,Pupils!$G$3,FALSE)+VLOOKUP($B26,Pupils,Pupils!$H$3,FALSE))), \"x\")","v":3951.1036126902623},{"$f":"IFERROR((VLOOKUP($B26,Funding,Funding!$GH$2,FALSE)), \"x\")","v":21833862.940000001},{"$f":"IFERROR((BK26/VLOOKUP($B26,Funding,Funding!$GM$2,FALSE)), \"x\")","v":0.1533783856641813},{"$f":"IFERROR((BK26/(VLOOKUP($B26,Pupils,Pupils!$J$3,FALSE)+VLOOKUP($B26,Pupils,Pupils!$K$3,FALSE))), \"x\")","v":4026.9020545924018},{"$f":"IFERROR((VLOOKUP($B26,Funding,Funding!$FZ$2,FALSE)), \"x\")","v":23317285.100000001},{"$f":"IFERROR((BN26/VLOOKUP($B26,Funding,Funding!$GE$2,FALSE)), \"x\")","v":0.158557828055647},{"$f":"IFERROR((BN26/(VLOOKUP($B26,Pupils,Pupils!$M$3,FALSE)+VLOOKUP($B26,Pupils,Pupils!$P$3,FALSE))), \"x\")","v":4236.4253452034891},{"$f":"IFERROR((VLOOKUP($B26,Funding,Funding!$FD$2,FALSE)), \"x\")","v":23294276},{"$f":"IFERROR((BQ26/VLOOKUP($B26,Funding,Funding!$FR$2,FALSE)), \"x\")","v":0.16612354571680574},{"$f":"IFERROR((BQ26/(VLOOKUP($B26,Pupils,Pupils!$R$3,FALSE)+VLOOKUP($B26,Pupils,Pupils!$U$3,FALSE))), \"x\")","v":4364.6760352257825},{"$f":"(VLOOKUP(B26,Funding,Funding!$HK$2,FALSE)+VLOOKUP(B26,Funding,Funding!$HL$2,FALSE)+VLOOKUP(B26,Funding,Funding!$HM$2,FALSE))/(VLOOKUP(B26,Funding,Funding!$HN$2,FALSE))","v":0.26307922272047835},{"$f":"IFERROR((VLOOKUP(B26,Other_data,Other!$D$3,FALSE)+VLOOKUP(B26,Other_data,Other!$E$3,FALSE)+VLOOKUP(B26,Other_data,Other!$F$3,FALSE)), \"x\")","v":1200},{"$f":"(VLOOKUP(B26,Other_data,Other!$AK$3,FALSE)+VLOOKUP(B26,Other_data,Other!$AL$3,FALSE))/VLOOKUP(B26,Other_data,Other!$AJ$3,FALSE)","v":3.800032409658078E-2},{"$f":"(VLOOKUP(B26,Other_data,Other!$AR$3,FALSE)+VLOOKUP(B26,Other_data,Other!$AS$3,FALSE))/VLOOKUP(B26,Other_data,Other!$AQ$3,FALSE)","v":5.6146451217017793E-2},{"$f":"VLOOKUP(B26,Other_data,Other!$AP$3,FALSE)/VLOOKUP(B26,Other_data,Other!$AJ$3,FALSE)","v":5.6986982120671957E-3},{"$f":"VLOOKUP(B26,Other_data,Other!$AW$3,FALSE)/VLOOKUP(B26,Other_data,Other!$AQ$3,FALSE)","v":9.6645530783391279E-3}]
[21,381,"Calderdale",{"$f":"IFERROR((VLOOKUP($B27,Pupils,Pupils!$D$3,FALSE)/VLOOKUP($B27,Pupils,Pupils!$C$3,FALSE)), \"x\")","v":2.8452775127672709E-2},{"$f":"IFERROR((VLOOKUP($B27,Pupils,Pupils!$G$3,FALSE)/VLOOKUP($B27,Pupils,Pupils!$F$3,FALSE)),\"x\")","v":2.9006365900913367E-2},{"$f":"IFERROR((VLOOKUP($B27,Pupils,Pupils!$J$3,FALSE)/VLOOKUP($B27,Pupils,Pupils!$I$3,FALSE)), \"x\")","v":2.9211134338211025E-2},{"$f":"IFERROR((VLOOKUP($B27,Pupils,Pupils!$M$3,FALSE)/VLOOKUP($B27,Pupils,Pupils!$L$3,FALSE)), \"x\")","v":2.8953412073490812E-2},{"$f":"IFERROR((VLOOKUP($B27,Pupils,Pupils!$R$3,FALSE)/VLOOKUP($B27,Pupils,Pupils!$Q$3,FALSE)), \"x\")","v":2.8288003488308715E-2},{"$f":"IFERROR((VLOOKUP($B27,Pupils,Pupils!$W$3,FALSE)/VLOOKUP($B27,Pupils,Pupils!$V$3,FALSE)), \"x\")","v":2.7845101524209621E-2},{"$f":"IFERROR(((VLOOKUP($B27,Pupils,Pupils!$D$3,FALSE)+VLOOKUP($B27,Pupils,Pupils!$E$3,FALSE))/VLOOKUP($B27,Pupils,Pupils!$C$3,FALSE)), \"x\")","v":0.19574611369886077},{"$f":"IFERROR(((VLOOKUP($B27,Pupils,Pupils!$G$3,FALSE)+VLOOKUP($B27,Pupils,Pupils!$H$3,FALSE))/VLOOKUP($B27,Pupils,Pupils!$F$3,FALSE)), \"x\")","v":0.2010794353722668},{"$f":"IFERROR(((VLOOKUP($B27,Pupils,Pupils!$J$3,FALSE)+VLOOKUP($B27,Pupils,Pupils!$K$3,FALSE))/VLOOKUP($B27,Pupils,Pupils!$I$3,FALSE)), \"x\")","v":0.20282759379469689},{"$f":"IFERROR(((VLOOKUP($B27,Pupils,Pupils!$M$3,FALSE)+VLOOKUP($B27,Pupils,Pupils!$P$3,FALSE))/VLOOKUP($B27,Pupils,Pupils!$L$3,FALSE)), \"x\")","v":0.19017935258092739},{"$f":"IFERROR(((VLOOKUP($B27,Pupils,Pupils!$R$3,FALSE)+VLOOKUP($B27,Pupils,Pupils!$U$3,FALSE))/VLOOKUP($B27,Pupils,Pupils!$Q$3,FALSE)), \"x\")","v":0.18008393742846243},{"$f":"IFERROR(((VLOOKUP($B27,Pupils,Pupils!$W$3,FALSE)+VLOOKUP($B27,Pupils,Pupils!$Z$3,FALSE))/VLOOKUP($B27,Pupils,Pupils!$V$3,FALSE)), \"x\")","v":0.16688210265524855},{"$f":"(SUM(INDEX(Pupils!$AB$7:$AB$159,MATCH($B27,Pupils!$A$7:$A$159,0)),INDEX(Pupils!$AC$7:$AC$159,MATCH($B27,Pupils!$A$7:$A$159,0)),INDEX(Pupils!$AD$7:$AD$159,MATCH($B27,Pupils!$A$7:$A$159,0)),INDEX(Pupils!$AE$7:$AE$159,MATCH($B27,Pupils!$A$7:$A$159,0))))/SUM(INDEX(Pupils!$AB$7:$AM$159,MATCH($B27,Pupils!$A$7:$A$159,0),0))","v":0.35869996036464524},{"$f":"SUM(INDEX(Pupils!$AF$7:$AF$159,MATCH($B27,Pupils!$A$7:$A$159,0)))/SUM(INDEX(Pupils!$AB$7:$AM$159,MATCH($B27,Pupils!$A$7:$A$159,0),0))","v":0.23226317875544986},{"$f":"SUM(INDEX(Pupils!$AG$7:$AG$159,MATCH($B27,Pupils!$A$7:$A$159,0)))/SUM(INDEX(Pupils!$AB$7:$AM$159,MATCH($B27,Pupils!$A$7:$A$159,0),0))","v":0.15616329766151407},{"$f":"(SUM(INDEX(Pupils!$AH$7:$AH$159,MATCH($B27,Pupils!$A$7:$A$159,0)),INDEX(Pupils!$AI$7:$AI$159,MATCH($B27,Pupils!$A$7:$A$159,0)),INDEX(Pupils!$AJ$7:$AJ$159,MATCH($B27,Pupils!$A$7:$A$159,0))))/SUM(INDEX(Pupils!$AB$7:$AM$159,MATCH($B27,Pupils!$A$7:$A$159,0),0))","v":6.3020214030915581E-2},{"$f":"SUM(INDEX(Pupils!$AK$7:$AK$159,MATCH($B27,Pupils!$A$7:$A$159,0)))/SUM(INDEX(Pupils!$AB$7:$AM$159,MATCH($B27,Pupils!$A$7:$A$159,0),0))","v":4.4787950852160127E-2},{"$f":"SUM(INDEX(Pupils!$AL$7:$AL$159,MATCH($B27,Pupils!$A$7:$A$159,0)))/SUM(INDEX(Pupils!$AB$7:$AM$159,MATCH($B27,Pupils!$A$7:$A$159,0),0))","v":0.10344827586206896},{"$f":"SUM(INDEX(Pupils!$AM$7:$AM$159,MATCH($B27,Pupils!$A$7:$A$159,0)))/SUM(INDEX(Pupils!$AB$7:$AM$159,MATCH($B27,Pupils!$A$7:$A$159,0),0))","v":4.1617122473246136E-2},{"$f":"(SUM(INDEX(Pupils!$BH$7:$BH$159,MATCH($B27,Pupils!$A$7:$A$159,0)),INDEX(Pupils!$BK$7:$BK$159,MATCH($B27,Pupils!$A$7:$A$159,0)),INDEX(Pupils!$BO$7:$BO$159,MATCH($B27,Pupils!$A$7:$A$159,0))))/SUM(INDEX(Pupils!$BH$7:$BS$159,MATCH($B27,Pupils!$A$7:$A$159,0),0))","v":0.6486210418794689},{"$f":"(SUM(INDEX(Pupils!$BL$7:$BL$159,MATCH($B27,Pupils!$A$7:$A$159,0)),INDEX(Pupils!$BM$7:$BM$159,MATCH($B27,Pupils!$A$7:$A$159,0)),INDEX(Pupils!$BP$7:$BP$159,MATCH($B27,Pupils!$A$7:$A$159,0))))/SUM(INDEX(Pupils!$BH$7:$BS$159,MATCH($B27,Pupils!$A$7:$A$159,0),0))","v":0.31562819203268644},{"$f":"(SUM(INDEX(Pupils!$BI$7:$BI$159,MATCH($B27,Pupils!$A$7:$A$159,0)),INDEX(Pupils!$BJ$7:$BJ$159,MATCH($B27,Pupils!$A$7:$A$159,0))))/SUM(INDEX(Pupils!$BH$7:$BS$159,MATCH($B27,Pupils!$A$7:$A$159,0),0))","v":2.247191011235955E-2},{"$f":"(SUM(INDEX(Pupils!$BQ$7:$BQ$159,MATCH($B27,Pupils!$A$7:$A$159,0)),INDEX(Pupils!$BR$7:$BR$159,MATCH($B27,Pupils!$A$7:$A$159,0)),INDEX(Pupils!$BN$7:$BN$159,MATCH($B27,Pupils!$A$7:$A$159,0)),INDEX(Pupils!$BS$7:$BS$159,MATCH($B27,Pupils!$A$7:$A$159,0))))/SUM(INDEX(Pupils!$BH$7:$BS$159,MATCH($B27,Pupils!$A$7:$A$159,0),0))","v":1.3278855975485188E-2},{"$f":"IFERROR((VLOOKUP(B27,Funding,Funding!$C$2,FALSE)), \"x\")","v":17863855},{"$f":"IFERROR((AA27/VLOOKUP(B27,Funding,Funding!$D$2,FALSE)), \"x\")","v":0.10928764057842993},{"$f":"IFERROR((AA27/(VLOOKUP(B27,Pupils,Pupils!$M$3,FALSE)+VLOOKUP(B27,Pupils,Pupils!$P$3,FALSE))), \"x\")","v":2568.1217653824037},{"$f":"IFERROR((VLOOKUP(B27,Funding,Funding!$E$2,FALSE)), \"x\")","v":18620019.883283664},{"$f":"IFERROR((AD27/VLOOKUP(B27,Funding,Funding!$F$2,FALSE)), \"x\")","v":0.11166271074633936},{"$f":"IFERROR((AD27/(VLOOKUP(B27,Pupils,Pupils!$R$3,FALSE)+VLOOKUP(B27,Pupils,Pupils!$U$3,FALSE))), \"x\")","v":2817.7996191409902},{"$f":"IFERROR((VLOOKUP(B27,Funding,Funding!$G$2,FALSE)), \"x\")","v":19230486.393011585},{"$f":"IFERROR((AG27/VLOOKUP(B27,Funding,Funding!$H$2,FALSE)), \"x\")","v":0.11261897703536169},{"$f":"IFERROR((AG27/(VLOOKUP(B27,Pupils,Pupils!$W$3,FALSE)+VLOOKUP(B27,Pupils,Pupils!$Z$3,FALSE))), \"x\")","v":3103.1928986625117},{"$f":"IFERROR((VLOOKUP(B27,Funding,Funding!$I$2,FALSE)), \"x\")","v":19466929.272952501},{"$f":"IFERROR((AJ27/VLOOKUP(B27,Funding,Funding!$J$2,FALSE)), \"x\")","v":0.11484100991642185},null,{"$f":"IFERROR((VLOOKUP($B27,Funding,Funding!$EC$2,FALSE)), \"x\")","v":10597382.26},{"$f":"IFERROR((AM27/VLOOKUP($B27,Funding,Funding!$EU$2,FALSE)), \"x\")","v":6.0807811710923268E-2},{"$f":"IFERROR((AM27/(VLOOKUP($B27,Pupils,Pupils!$D$3,FALSE)+VLOOKUP($B27,Pupils,Pupils!$E$3,FALSE))), \"x\")","v":1519.1201634174311},{"$f":"IFERROR((VLOOKUP($B27,Funding,Funding!$DA$2,FALSE)), \"x\")","v":11508442.221650001},{"$f":"IFERROR((AP27/VLOOKUP($B27,Funding,Funding!$DT$2,FALSE)), \"x\")","v":6.7645668803536479E-2},{"$f":"IFERROR((AP27/(VLOOKUP($B27,Pupils,Pupils!$G$3,FALSE)+VLOOKUP($B27,Pupils,Pupils!$H$3,FALSE))), \"x\")","v":1584.0939052512044},{"$f":"IFERROR((VLOOKUP($B27,Funding,Funding!$CE$2,FALSE)), \"x\")","v":11084858.5},{"$f":"IFERROR((AS27/VLOOKUP($B27,Funding,Funding!$CR$2,FALSE)), \"x\")","v":6.6174259264058871E-2},{"$f":"IFERROR((AS27/(VLOOKUP($B27,Pupils,Pupils!$J$3,FALSE)+VLOOKUP($B27,Pupils,Pupils!$K$3,FALSE))), \"x\")","v":1503.2354895579062},{"$f":"IFERROR((VLOOKUP($B27,Funding,Funding!$BM$2,FALSE)), \"x\")","v":13522934.57},{"$f":"IFERROR((AV27/VLOOKUP($B27,Funding,Funding!$BY$2,FALSE)), \"x\")","v":9.9987832650024006E-2},{"$f":"IFERROR((AV27/(VLOOKUP($B27,Pupils,Pupils!$M$3,FALSE)+VLOOKUP($B27,Pupils,Pupils!$P$3,FALSE))), \"x\")","v":1944.0676495112134},{"$f":"IFERROR((VLOOKUP($B27,Funding,Funding!$AQ$2,FALSE)), \"x\")","v":14987992},{"$f":"IFERROR((AY27/VLOOKUP($B27,Funding,Funding!$BE$2,FALSE)), \"x\")","v":8.8021921440170015E-2},{"$f":"IFERROR((AY27/(VLOOKUP($B27,Pupils,Pupils!$R$3,FALSE)+VLOOKUP($B27,Pupils,Pupils!$U$3,FALSE))), \"x\")","v":2268.1585956416466},{"$f":"IFERROR((VLOOKUP($B27,Funding,Funding!$S$2,FALSE)), \"x\")","v":15237192},{"$f":"IFERROR((BB27/VLOOKUP($B27,Funding,Funding!$AH$2,FALSE)), \"x\")","v":8.9801371910986957E-2},{"$f":"IFERROR((BB27/(VLOOKUP(B27,Pupils,Pupils!$W$3,FALSE)+VLOOKUP(B27,Pupils,Pupils!$Z$3,FALSE))), \"x\")","v":2458.8013554945942},{"$f":"IFERROR((VLOOKUP($B27,Funding,Funding!$GX$2,FALSE)), \"x\")","v":22230845},{"$f":"IFERROR((BE27/VLOOKUP($B27,Funding,Funding!$HC$2,FALSE)), \"x\")","v":0.12003259662498453},{"$f":"IFERROR((BE27/(VLOOKUP($B27,Pupils,Pupils!$D$3,FALSE)+VLOOKUP($B27,Pupils,Pupils!$E$3,FALSE))), \"x\")","v":3186.7610378440368},{"$f":"IFERROR((VLOOKUP($B27,Funding,Funding!$GP$2,FALSE)), \"x\")","v":25922861},{"$f":"IFERROR((BH27/VLOOKUP($B27,Funding,Funding!$GU$2,FALSE)), \"x\")","v":0.14283475103768847},{"$f":"IFERROR((BH27/(VLOOKUP($B27,Pupils,Pupils!$G$3,FALSE)+VLOOKUP($B27,Pupils,Pupils!$H$3,FALSE))), \"x\")","v":3568.1845836200964},{"$f":"IFERROR((VLOOKUP($B27,Funding,Funding!$GH$2,FALSE)), \"x\")","v":21369063.490000002},{"$f":"IFERROR((BK27/VLOOKUP($B27,Funding,Funding!$GM$2,FALSE)), \"x\")","v":0.14517625695285613},{"$f":"IFERROR((BK27/(VLOOKUP($B27,Pupils,Pupils!$J$3,FALSE)+VLOOKUP($B27,Pupils,Pupils!$K$3,FALSE))), \"x\")","v":2897.8930688906971},{"$f":"IFERROR((VLOOKUP($B27,Funding,Funding!$FZ$2,FALSE)), \"x\")","v":18556564.070000004},{"$f":"IFERROR((BN27/VLOOKUP($B27,Funding,Funding!$GE$2,FALSE)), \"x\")","v":0.14098015879757592},{"$f":"IFERROR((BN27/(VLOOKUP($B27,Pupils,Pupils!$M$3,FALSE)+VLOOKUP($B27,Pupils,Pupils!$P$3,FALSE))), \"x\")","v":2667.7061630247276},{"$f":"IFERROR((VLOOKUP($B27,Funding,Funding!$FD$2,FALSE)), \"x\")","v":15862110},{"$f":"IFERROR((BQ27/VLOOKUP($B27,Funding,Funding!$FR$2,FALSE)), \"x\")","v":0.13695289738845534},{"$f":"IFERROR((BQ27/(VLOOKUP($B27,Pupils,Pupils!$R$3,FALSE)+VLOOKUP($B27,Pupils,Pupils!$U$3,FALSE))), \"x\")","v":2400.4403753026636},{"$f":"(VLOOKUP(B27,Funding,Funding!$HK$2,FALSE)+VLOOKUP(B27,Funding,Funding!$HL$2,FALSE)+VLOOKUP(B27,Funding,Funding!$HM$2,FALSE))/(VLOOKUP(B27,Funding,Funding!$HN$2,FALSE))","v":0.29690721649484536},{"$f":"IFERROR((VLOOKUP(B27,Other_data,Other!$D$3,FALSE)+VLOOKUP(B27,Other_data,Other!$E$3,FALSE)+VLOOKUP(B27,Other_data,Other!$F$3,FALSE)), \"x\")","v":1110},{"$f":"(VLOOKUP(B27,Other_data,Other!$AK$3,FALSE)+VLOOKUP(B27,Other_data,Other!$AL$3,FALSE))/VLOOKUP(B27,Other_data,Other!$AJ$3,FALSE)","v":3.5978756825491807E-2},{"$f":"(VLOOKUP(B27,Other_data,Other!$AR$3,FALSE)+VLOOKUP(B27,Other_data,Other!$AS$3,FALSE))/VLOOKUP(B27,Other_data,Other!$AQ$3,FALSE)","v":5.491915334936124E-2},{"$f":"VLOOKUP(B27,Other_data,Other!$AP$3,FALSE)/VLOOKUP(B27,Other_data,Other!$AJ$3,FALSE)","v":6.108659336275463E-3},{"$f":"VLOOKUP(B27,Other_data,Other!$AW$3,FALSE)/VLOOKUP(B27,Other_data,Other!$AQ$3,FALSE)","v":1.1549521519822751E-2}]
[22,873,"Cambridgeshire",{"$f":"IFERROR((VLOOKUP($B28,Pupils,Pupils!$D$3,FALSE)/VLOOKUP($B28,Pupils,Pupils!$C$3,FALSE)), \"x\")","v":3.1531790247544655E-2},{"$f":"IFERROR((VLOOKUP($B28,Pupils,Pupils!$G$3,FALSE)/VLOOKUP($B28,Pupils,Pupils!$F$3,FALSE)),\"x\")","v":3.1401048987007643E-2},{"$f":"IFERROR((VLOOKUP($B28,Pupils,Pupils!$J$3,FALSE)/VLOOKUP($B28,Pupils,Pupils!$I$3,FALSE)), \"x\")","v":2.9752853868324897E-2},{"$f":"IFERROR((VLOOKUP($B28,Pupils,Pupils!$M$3,FALSE)/VLOOKUP($B28,Pupils,Pupils!$L$3,FALSE)), \"x\")","v":3.0049073430882648E-2},{"$f":"IFERROR((VLOOKUP($B28,Pupils,Pupils!$R$3,FALSE)/VLOOKUP($B28,Pupils,Pupils!$Q$3,FALSE)), \"x\")","v":3.1498692192108629E-2},{"$f":"IFERROR((VLOOKUP($B28,Pupils,Pupils!$W$3,FALSE)/VLOOKUP($B28,Pupils,Pupils!$V$3,FALSE)), \"x\")","v":3.2732182255249556E-2},{"$f":"IFERROR(((VLOOKUP($B28,Pupils,Pupils!$D$3,FALSE)+VLOOKUP($B28,Pupils,Pupils!$E$3,FALSE))/VLOOKUP($B28,Pupils,Pupils!$C$3,FALSE)), \"x\")","v":0.20654758486014588},{"$f":"IFERROR(((VLOOKUP($B28,Pupils,Pupils!$G$3,FALSE)+VLOOKUP($B28,Pupils,Pupils!$H$3,FALSE))/VLOOKUP($B28,Pupils,Pupils!$F$3,FALSE)), \"x\")","v":0.21952167106601306},{"$f":"IFERROR(((VLOOKUP($B28,Pupils,Pupils!$J$3,FALSE)+VLOOKUP($B28,Pupils,Pupils!$K$3,FALSE))/VLOOKUP($B28,Pupils,Pupils!$I$3,FALSE)), \"x\")","v":0.21040328620384449},{"$f":"IFERROR(((VLOOKUP($B28,Pupils,Pupils!$M$3,FALSE)+VLOOKUP($B28,Pupils,Pupils!$P$3,FALSE))/VLOOKUP($B28,Pupils,Pupils!$L$3,FALSE)), \"x\")","v":0.19338068882066911},{"$f":"IFERROR(((VLOOKUP($B28,Pupils,Pupils!$R$3,FALSE)+VLOOKUP($B28,Pupils,Pupils!$U$3,FALSE))/VLOOKUP($B28,Pupils,Pupils!$Q$3,FALSE)), \"x\")","v":0.18625410429072292},{"$f":"IFERROR(((VLOOKUP($B28,Pupils,Pupils!$W$3,FALSE)+VLOOKUP($B28,Pupils,Pupils!$Z$3,FALSE))/VLOOKUP($B28,Pupils,Pupils!$V$3,FALSE)), \"x\")","v":0.17769996597258048},{"$f":"(SUM(INDEX(Pupils!$AB$7:$AB$159,MATCH($B28,Pupils!$A$7:$A$159,0)),INDEX(Pupils!$AC$7:$AC$159,MATCH($B28,Pupils!$A$7:$A$159,0)),INDEX(Pupils!$AD$7:$AD$159,MATCH($B28,Pupils!$A$7:$A$159,0)),INDEX(Pupils!$AE$7:$AE$159,MATCH($B28,Pupils!$A$7:$A$159,0))))/SUM(INDEX(Pupils!$AB$7:$AM$159,MATCH($B28,Pupils!$A$7:$A$159,0),0))","v":0.35371876815804765},{"$f":"SUM(INDEX(Pupils!$AF$7:$AF$159,MATCH($B28,Pupils!$A$7:$A$159,0)))/SUM(INDEX(Pupils!$AB$7:$AM$159,MATCH($B28,Pupils!$A$7:$A$159,0),0))","v":0.24418942475305055},{"$f":"SUM(INDEX(Pupils!$AG$7:$AG$159,MATCH($B28,Pupils!$A$7:$A$159,0)))/SUM(INDEX(Pupils!$AB$7:$AM$159,MATCH($B28,Pupils!$A$7:$A$159,0),0))","v":0.155287623474724},{"$f":"(SUM(INDEX(Pupils!$AH$7:$AH$159,MATCH($B28,Pupils!$A$7:$A$159,0)),INDEX(Pupils!$AI$7:$AI$159,MATCH($B28,Pupils!$A$7:$A$159,0)),INDEX(Pupils!$AJ$7:$AJ$159,MATCH($B28,Pupils!$A$7:$A$159,0))))/SUM(INDEX(Pupils!$AB$7:$AM$159,MATCH($B28,Pupils!$A$7:$A$159,0),0))","v":3.6461359674607785E-2},{"$f":"SUM(INDEX(Pupils!$AK$7:$AK$159,MATCH($B28,Pupils!$A$7:$A$159,0)))/SUM(INDEX(Pupils!$AB$7:$AM$159,MATCH($B28,Pupils!$A$7:$A$159,0),0))","v":3.4137129575828006E-2},{"$f":"SUM(INDEX(Pupils!$AL$7:$AL$159,MATCH($B28,Pupils!$A$7:$A$159,0)))/SUM(INDEX(Pupils!$AB$7:$AM$159,MATCH($B28,Pupils!$A$7:$A$159,0),0))","v":0.13538640325392215},{"$f":"SUM(INDEX(Pupils!$AM$7:$AM$159,MATCH($B28,Pupils!$A$7:$A$159,0)))/SUM(INDEX(Pupils!$AB$7:$AM$159,MATCH($B28,Pupils!$A$7:$A$159,0),0))","v":4.0819291109819869E-2},{"$f":"(SUM(INDEX(Pupils!$BH$7:$BH$159,MATCH($B28,Pupils!$A$7:$A$159,0)),INDEX(Pupils!$BK$7:$BK$159,MATCH($B28,Pupils!$A$7:$A$159,0)),INDEX(Pupils!$BO$7:$BO$159,MATCH($B28,Pupils!$A$7:$A$159,0))))/SUM(INDEX(Pupils!$BH$7:$BS$159,MATCH($B28,Pupils!$A$7:$A$159,0),0))","v":0.59260450160771705},{"$f":"(SUM(INDEX(Pupils!$BL$7:$BL$159,MATCH($B28,Pupils!$A$7:$A$159,0)),INDEX(Pupils!$BM$7:$BM$159,MATCH($B28,Pupils!$A$7:$A$159,0)),INDEX(Pupils!$BP$7:$BP$159,MATCH($B28,Pupils!$A$7:$A$159,0))))/SUM(INDEX(Pupils!$BH$7:$BS$159,MATCH($B28,Pupils!$A$7:$A$159,0),0))","v":0.36334405144694532},{"$f":"(SUM(INDEX(Pupils!$BI$7:$BI$159,MATCH($B28,Pupils!$A$7:$A$159,0)),INDEX(Pupils!$BJ$7:$BJ$159,MATCH($B28,Pupils!$A$7:$A$159,0))))/SUM(INDEX(Pupils!$BH$7:$BS$159,MATCH($B28,Pupils!$A$7:$A$159,0),0))","v":3.8263665594855306E-2},{"$f":"(SUM(INDEX(Pupils!$BQ$7:$BQ$159,MATCH($B28,Pupils!$A$7:$A$159,0)),INDEX(Pupils!$BR$7:$BR$159,MATCH($B28,Pupils!$A$7:$A$159,0)),INDEX(Pupils!$BN$7:$BN$159,MATCH($B28,Pupils!$A$7:$A$159,0)),INDEX(Pupils!$BS$7:$BS$159,MATCH($B28,Pupils!$A$7:$A$159,0))))/SUM(INDEX(Pupils!$BH$7:$BS$159,MATCH($B28,Pupils!$A$7:$A$159,0),0))","v":5.7877813504823147E-3},{"$f":"IFERROR((VLOOKUP(B28,Funding,Funding!$C$2,FALSE)), \"x\")","v":61386891.331832886},{"$f":"IFERROR((AA28/VLOOKUP(B28,Funding,Funding!$D$2,FALSE)), \"x\")","v":0.16557202862072468},{"$f":"IFERROR((AA28/(VLOOKUP(B28,Pupils,Pupils!$M$3,FALSE)+VLOOKUP(B28,Pupils,Pupils!$P$3,FALSE))), \"x\")","v":3556.5985707898544},{"$f":"IFERROR((VLOOKUP(B28,Funding,Funding!$E$2,FALSE)), \"x\")","v":62564745.530329771},{"$f":"IFERROR((AD28/VLOOKUP(B28,Funding,Funding!$F$2,FALSE)), \"x\")","v":0.164839754492453},{"$f":"IFERROR((AD28/(VLOOKUP(B28,Pupils,Pupils!$R$3,FALSE)+VLOOKUP(B28,Pupils,Pupils!$U$3,FALSE))), \"x\")","v":3738.7800603758678},{"$f":"IFERROR((VLOOKUP(B28,Funding,Funding!$G$2,FALSE)), \"x\")","v":63799037.751987301},{"$f":"IFERROR((AG28/VLOOKUP(B28,Funding,Funding!$H$2,FALSE)), \"x\")","v":0.16585560040669356},{"$f":"IFERROR((AG28/(VLOOKUP(B28,Pupils,Pupils!$W$3,FALSE)+VLOOKUP(B28,Pupils,Pupils!$Z$3,FALSE))), \"x\")","v":3940.8881185982641},{"$f":"IFERROR((VLOOKUP(B28,Funding,Funding!$I$2,FALSE)), \"x\")","v":64194275.148994222},{"$f":"IFERROR((AJ28/VLOOKUP(B28,Funding,Funding!$J$2,FALSE)), \"x\")","v":0.15686945476648126},null,{"$f":"IFERROR((VLOOKUP($B28,Funding,Funding!$EC$2,FALSE)), \"x\")","v":27641581.529999997},{"$f":"IFERROR((AM28/VLOOKUP($B28,Funding,Funding!$EU$2,FALSE)), \"x\")","v":7.6364266956651272E-2},{"$f":"IFERROR((AM28/(VLOOKUP($B28,Pupils,Pupils!$D$3,FALSE)+VLOOKUP($B28,Pupils,Pupils!$E$3,FALSE))), \"x\")","v":1537.2660880929868},{"$f":"IFERROR((VLOOKUP($B28,Funding,Funding!$DA$2,FALSE)), \"x\")","v":29123711},{"$f":"IFERROR((AP28/VLOOKUP($B28,Funding,Funding!$DT$2,FALSE)), \"x\")","v":7.666258612376417E-2},{"$f":"IFERROR((AP28/(VLOOKUP($B28,Pupils,Pupils!$G$3,FALSE)+VLOOKUP($B28,Pupils,Pupils!$H$3,FALSE))), \"x\")","v":1515.9914111706835},{"$f":"IFERROR((VLOOKUP($B28,Funding,Funding!$CE$2,FALSE)), \"x\")","v":36624103.520390004},{"$f":"IFERROR((AS28/VLOOKUP($B28,Funding,Funding!$CR$2,FALSE)), \"x\")","v":0.16787938096044094},{"$f":"IFERROR((AS28/(VLOOKUP($B28,Pupils,Pupils!$J$3,FALSE)+VLOOKUP($B28,Pupils,Pupils!$K$3,FALSE))), \"x\")","v":1975.197040254018},{"$f":"IFERROR((VLOOKUP($B28,Funding,Funding!$BM$2,FALSE)), \"x\")","v":43886021.450000003},{"$f":"IFERROR((AV28/VLOOKUP($B28,Funding,Funding!$BY$2,FALSE)), \"x\")","v":0.1574847795220069},{"$f":"IFERROR((AV28/(VLOOKUP($B28,Pupils,Pupils!$M$3,FALSE)+VLOOKUP($B28,Pupils,Pupils!$P$3,FALSE))), \"x\")","v":2542.6431894553884},{"$f":"IFERROR((VLOOKUP($B28,Funding,Funding!$AQ$2,FALSE)), \"x\")","v":57638119},{"$f":"IFERROR((AY28/VLOOKUP($B28,Funding,Funding!$BE$2,FALSE)), \"x\")","v":0.15172940789420064},{"$f":"IFERROR((AY28/(VLOOKUP($B28,Pupils,Pupils!$R$3,FALSE)+VLOOKUP($B28,Pupils,Pupils!$U$3,FALSE))), \"x\")","v":3444.3718776144378},{"$f":"IFERROR((VLOOKUP($B28,Funding,Funding!$S$2,FALSE)), \"x\")","v":54550816},{"$f":"IFERROR((BB28/VLOOKUP($B28,Funding,Funding!$AH$2,FALSE)), \"x\")","v":0.14122616573886607},{"$f":"IFERROR((BB28/(VLOOKUP(B28,Pupils,Pupils!$W$3,FALSE)+VLOOKUP(B28,Pupils,Pupils!$Z$3,FALSE))), \"x\")","v":3369.6223361541788},{"$f":"IFERROR((VLOOKUP($B28,Funding,Funding!$GX$2,FALSE)), \"x\")","v":53030298.492239997},{"$f":"IFERROR((BE28/VLOOKUP($B28,Funding,Funding!$HC$2,FALSE)), \"x\")","v":0.12455505881364032},{"$f":"IFERROR((BE28/(VLOOKUP($B28,Pupils,Pupils!$D$3,FALSE)+VLOOKUP($B28,Pupils,Pupils!$E$3,FALSE))), \"x\")","v":2949.2407815049219},{"$f":"IFERROR((VLOOKUP($B28,Funding,Funding!$GP$2,FALSE)), \"x\")","v":52861300.07},{"$f":"IFERROR((BH28/VLOOKUP($B28,Funding,Funding!$GU$2,FALSE)), \"x\")","v":0.1212593937642502},{"$f":"IFERROR((BH28/(VLOOKUP($B28,Pupils,Pupils!$G$3,FALSE)+VLOOKUP($B28,Pupils,Pupils!$H$3,FALSE))), \"x\")","v":2751.616265160585},{"$f":"IFERROR((VLOOKUP($B28,Funding,Funding!$GH$2,FALSE)), \"x\")","v":45548403.649999999},{"$f":"IFERROR((BK28/VLOOKUP($B28,Funding,Funding!$GM$2,FALSE)), \"x\")","v":0.13494456617923972},{"$f":"IFERROR((BK28/(VLOOKUP($B28,Pupils,Pupils!$J$3,FALSE)+VLOOKUP($B28,Pupils,Pupils!$K$3,FALSE))), \"x\")","v":2456.4989564232551},{"$f":"IFERROR((VLOOKUP($B28,Funding,Funding!$FZ$2,FALSE)), \"x\")","v":42815042.789999999},{"$f":"IFERROR((BN28/VLOOKUP($B28,Funding,Funding!$GE$2,FALSE)), \"x\")","v":0.1528568059021308},{"$f":"IFERROR((BN28/(VLOOKUP($B28,Pupils,Pupils!$M$3,FALSE)+VLOOKUP($B28,Pupils,Pupils!$P$3,FALSE))), \"x\")","v":2480.5934409038236},{"$f":"IFERROR((VLOOKUP($B28,Funding,Funding!$FD$2,FALSE)), \"x\")","v":55990452},{"$f":"IFERROR((BQ28/VLOOKUP($B28,Funding,Funding!$FR$2,FALSE)), \"x\")","v":0.23323880690836188},{"$f":"IFERROR((BQ28/(VLOOKUP($B28,Pupils,Pupils!$R$3,FALSE)+VLOOKUP($B28,Pupils,Pupils!$U$3,FALSE))), \"x\")","v":3345.9096450340626},{"$f":"(VLOOKUP(B28,Funding,Funding!$HK$2,FALSE)+VLOOKUP(B28,Funding,Funding!$HL$2,FALSE)+VLOOKUP(B28,Funding,Funding!$HM$2,FALSE))/(VLOOKUP(B28,Funding,Funding!$HN$2,FALSE))","v":0.27011118378024851},{"$f":"IFERROR((VLOOKUP(B28,Other_data,Other!$D$3,FALSE)+VLOOKUP(B28,Other_data,Other!$E$3,FALSE)+VLOOKUP(B28,Other_data,Other!$F$3,FALSE)), \"x\")","v":3360},{"$f":"(VLOOKUP(B28,Other_data,Other!$AK$3,FALSE)+VLOOKUP(B28,Other_data,Other!$AL$3,FALSE))/VLOOKUP(B28,Other_data,Other!$AJ$3,FALSE)","v":3.4587497550460512E-2},{"$f":"(VLOOKUP(B28,Other_data,Other!$AR$3,FALSE)+VLOOKUP(B28,Other_data,Other!$AS$3,FALSE))/VLOOKUP(B28,Other_data,Other!$AQ$3,FALSE)","v":5.0950779380376433E-2},{"$f":"VLOOKUP(B28,Other_data,Other!$AP$3,FALSE)/VLOOKUP(B28,Other_data,Other!$AJ$3,FALSE)","v":4.6674861489676301E-3},{"$f":"VLOOKUP(B28,Other_data,Other!$AW$3,FALSE)/VLOOKUP(B28,Other_data,Other!$AQ$3,FALSE)","v":9.831188150831123E-3}]
[23,202,"Camden",{"$f":"IFERROR((VLOOKUP($B29,Pupils,Pupils!$D$3,FALSE)/VLOOKUP($B29,Pupils,Pupils!$C$3,FALSE)), \"x\")","v":3.1580019695066047E-2},{"$f":"IFERROR((VLOOKUP($B29,Pupils,Pupils!$G$3,FALSE)/VLOOKUP($B29,Pupils,Pupils!$F$3,FALSE)),\"x\")","v":3.1115479781717113E-2},{"$f":"IFERROR((VLOOKUP($B29,Pupils,Pupils!$J$3,FALSE)/VLOOKUP($B29,Pupils,Pupils!$I$3,FALSE)), \"x\")","v":3.0377000271223215E-2},{"$f":"IFERROR((VLOOKUP($B29,Pupils,Pupils!$M$3,FALSE)/VLOOKUP($B29,Pupils,Pupils!$L$3,FALSE)), \"x\")","v":2.7867832465533614E-2},{"$f":"IFERROR((VLOOKUP($B29,Pupils,Pupils!$R$3,FALSE)/VLOOKUP($B29,Pupils,Pupils!$Q$3,FALSE)), \"x\")","v":2.740515447414759E-2},{"$f":"IFERROR((VLOOKUP($B29,Pupils,Pupils!$W$3,FALSE)/VLOOKUP($B29,Pupils,Pupils!$V$3,FALSE)), \"x\")","v":2.7578127473640884E-2},{"$f":"IFERROR(((VLOOKUP($B29,Pupils,Pupils!$D$3,FALSE)+VLOOKUP($B29,Pupils,Pupils!$E$3,FALSE))/VLOOKUP($B29,Pupils,Pupils!$C$3,FALSE)), \"x\")","v":0.20727359163299264},{"$f":"IFERROR(((VLOOKUP($B29,Pupils,Pupils!$G$3,FALSE)+VLOOKUP($B29,Pupils,Pupils!$H$3,FALSE))/VLOOKUP($B29,Pupils,Pupils!$F$3,FALSE)), \"x\")","v":0.2070975832966139},{"$f":"IFERROR(((VLOOKUP($B29,Pupils,Pupils!$J$3,FALSE)+VLOOKUP($B29,Pupils,Pupils!$K$3,FALSE))/VLOOKUP($B29,Pupils,Pupils!$I$3,FALSE)), \"x\")","v":0.19433143477081638},{"$f":"IFERROR(((VLOOKUP($B29,Pupils,Pupils!$M$3,FALSE)+VLOOKUP($B29,Pupils,Pupils!$P$3,FALSE))/VLOOKUP($B29,Pupils,Pupils!$L$3,FALSE)), \"x\")","v":0.18980253463012084},{"$f":"IFERROR(((VLOOKUP($B29,Pupils,Pupils!$R$3,FALSE)+VLOOKUP($B29,Pupils,Pupils!$U$3,FALSE))/VLOOKUP($B29,Pupils,Pupils!$Q$3,FALSE)), \"x\")","v":0.17489995197694894},{"$f":"IFERROR(((VLOOKUP($B29,Pupils,Pupils!$W$3,FALSE)+VLOOKUP($B29,Pupils,Pupils!$Z$3,FALSE))/VLOOKUP($B29,Pupils,Pupils!$V$3,FALSE)), \"x\")","v":0.16556375265174303},{"$f":"(SUM(INDEX(Pupils!$AB$7:$AB$159,MATCH($B29,Pupils!$A$7:$A$159,0)),INDEX(Pupils!$AC$7:$AC$159,MATCH($B29,Pupils!$A$7:$A$159,0)),INDEX(Pupils!$AD$7:$AD$159,MATCH($B29,Pupils!$A$7:$A$159,0)),INDEX(Pupils!$AE$7:$AE$159,MATCH($B29,Pupils!$A$7:$A$159,0))))/SUM(INDEX(Pupils!$AB$7:$AM$159,MATCH($B29,Pupils!$A$7:$A$159,0),0))","v":0.27698744769874478},{"$f":"SUM(INDEX(Pupils!$AF$7:$AF$159,MATCH($B29,Pupils!$A$7:$A$159,0)))/SUM(INDEX(Pupils!$AB$7:$AM$159,MATCH($B29,Pupils!$A$7:$A$159,0),0))","v":0.24225941422594141},{"$f":"SUM(INDEX(Pupils!$AG$7:$AG$159,MATCH($B29,Pupils!$A$7:$A$159,0)))/SUM(INDEX(Pupils!$AB$7:$AM$159,MATCH($B29,Pupils!$A$7:$A$159,0),0))","v":0.29790794979079499},{"$f":"(SUM(INDEX(Pupils!$AH$7:$AH$159,MATCH($B29,Pupils!$A$7:$A$159,0)),INDEX(Pupils!$AI$7:$AI$159,MATCH($B29,Pupils!$A$7:$A$159,0)),INDEX(Pupils!$AJ$7:$AJ$159,MATCH($B29,Pupils!$A$7:$A$159,0))))/SUM(INDEX(Pupils!$AB$7:$AM$159,MATCH($B29,Pupils!$A$7:$A$159,0),0))","v":3.8912133891213389E-2},{"$f":"SUM(INDEX(Pupils!$AK$7:$AK$159,MATCH($B29,Pupils!$A$7:$A$159,0)))/SUM(INDEX(Pupils!$AB$7:$AM$159,MATCH($B29,Pupils!$A$7:$A$159,0),0))","v":3.8075313807531382E-2},{"$f":"SUM(INDEX(Pupils!$AL$7:$AL$159,MATCH($B29,Pupils!$A$7:$A$159,0)))/SUM(INDEX(Pupils!$AB$7:$AM$159,MATCH($B29,Pupils!$A$7:$A$159,0),0))","v":7.5313807531380755E-2},{"$f":"SUM(INDEX(Pupils!$AM$7:$AM$159,MATCH($B29,Pupils!$A$7:$A$159,0)))/SUM(INDEX(Pupils!$AB$7:$AM$159,MATCH($B29,Pupils!$A$7:$A$159,0),0))","v":3.0543933054393305E-2},{"$f":"(SUM(INDEX(Pupils!$BH$7:$BH$159,MATCH($B29,Pupils!$A$7:$A$159,0)),INDEX(Pupils!$BK$7:$BK$159,MATCH($B29,Pupils!$A$7:$A$159,0)),INDEX(Pupils!$BO$7:$BO$159,MATCH($B29,Pupils!$A$7:$A$159,0))))/SUM(INDEX(Pupils!$BH$7:$BS$159,MATCH($B29,Pupils!$A$7:$A$159,0),0))","v":0.50929752066115708},{"$f":"(SUM(INDEX(Pupils!$BL$7:$BL$159,MATCH($B29,Pupils!$A$7:$A$159,0)),INDEX(Pupils!$BM$7:$BM$159,MATCH($B29,Pupils!$A$7:$A$159,0)),INDEX(Pupils!$BP$7:$BP$159,MATCH($B29,Pupils!$A$7:$A$159,0))))/SUM(INDEX(Pupils!$BH$7:$BS$159,MATCH($B29,Pupils!$A$7:$A$159,0),0))","v":0.40289256198347106},{"$f":"(SUM(INDEX(Pupils!$BI$7:$BI$159,MATCH($B29,Pupils!$A$7:$A$159,0)),INDEX(Pupils!$BJ$7:$BJ$159,MATCH($B29,Pupils!$A$7:$A$159,0))))/SUM(INDEX(Pupils!$BH$7:$BS$159,MATCH($B29,Pupils!$A$7:$A$159,0),0))","v":6.5082644628099179E-2},{"$f":"(SUM(INDEX(Pupils!$BQ$7:$BQ$159,MATCH($B29,Pupils!$A$7:$A$159,0)),INDEX(Pupils!$BR$7:$BR$159,MATCH($B29,Pupils!$A$7:$A$159,0)),INDEX(Pupils!$BN$7:$BN$159,MATCH($B29,Pupils!$A$7:$A$159,0)),INDEX(Pupils!$BS$7:$BS$159,MATCH($B29,Pupils!$A$7:$A$159,0))))/SUM(INDEX(Pupils!$BH$7:$BS$159,MATCH($B29,Pupils!$A$7:$A$159,0),0))","v":2.2727272727272728E-2},{"$f":"IFERROR((VLOOKUP(B29,Funding,Funding!$C$2,FALSE)), \"x\")","v":31252835.823313288},{"$f":"IFERROR((AA29/VLOOKUP(B29,Funding,Funding!$D$2,FALSE)), \"x\")","v":0.20132723422252535},{"$f":"IFERROR((AA29/(VLOOKUP(B29,Pupils,Pupils!$M$3,FALSE)+VLOOKUP(B29,Pupils,Pupils!$P$3,FALSE))), \"x\")","v":5392.1386858718579},{"$f":"IFERROR((VLOOKUP(B29,Funding,Funding!$E$2,FALSE)), \"x\")","v":31815517.628603231},{"$f":"IFERROR((AD29/VLOOKUP(B29,Funding,Funding!$F$2,FALSE)), \"x\")","v":0.19733145781453829},{"$f":"IFERROR((AD29/(VLOOKUP(B29,Pupils,Pupils!$R$3,FALSE)+VLOOKUP(B29,Pupils,Pupils!$U$3,FALSE))), \"x\")","v":5823.8179807071629},{"$f":"IFERROR((VLOOKUP(B29,Funding,Funding!$G$2,FALSE)), \"x\")","v":32279852.543096758},{"$f":"IFERROR((AG29/VLOOKUP(B29,Funding,Funding!$H$2,FALSE)), \"x\")","v":0.20158458749282887},{"$f":"IFERROR((AG29/(VLOOKUP(B29,Pupils,Pupils!$W$3,FALSE)+VLOOKUP(B29,Pupils,Pupils!$Z$3,FALSE))), \"x\")","v":6173.2362866889953},{"$f":"IFERROR((VLOOKUP(B29,Funding,Funding!$I$2,FALSE)), \"x\")","v":32227440.696941912},{"$f":"IFERROR((AJ29/VLOOKUP(B29,Funding,Funding!$J$2,FALSE)), \"x\")","v":0.19951365502966578},null,{"$f":"IFERROR((VLOOKUP($B29,Funding,Funding!$EC$2,FALSE)), \"x\")","v":18390054.399999999},{"$f":"IFERROR((AM29/VLOOKUP($B29,Funding,Funding!$EU$2,FALSE)), \"x\")","v":0.10285387023292988},{"$f":"IFERROR((AM29/(VLOOKUP($B29,Pupils,Pupils!$D$3,FALSE)+VLOOKUP($B29,Pupils,Pupils!$E$3,FALSE))), \"x\")","v":3012.7874180865006},{"$f":"IFERROR((VLOOKUP($B29,Funding,Funding!$DA$2,FALSE)), \"x\")","v":20297846},{"$f":"IFERROR((AP29/VLOOKUP($B29,Funding,Funding!$DT$2,FALSE)), \"x\")","v":0.10731230471317442},{"$f":"IFERROR((AP29/(VLOOKUP($B29,Pupils,Pupils!$G$3,FALSE)+VLOOKUP($B29,Pupils,Pupils!$H$3,FALSE))), \"x\")","v":3322.0697217675943},{"$f":"IFERROR((VLOOKUP($B29,Funding,Funding!$CE$2,FALSE)), \"x\")","v":21496188},{"$f":"IFERROR((AS29/VLOOKUP($B29,Funding,Funding!$CR$2,FALSE)), \"x\")","v":0.11721483945865212},{"$f":"IFERROR((AS29/(VLOOKUP($B29,Pupils,Pupils!$J$3,FALSE)+VLOOKUP($B29,Pupils,Pupils!$K$3,FALSE))), \"x\")","v":3750.2072575017446},{"$f":"IFERROR((VLOOKUP($B29,Funding,Funding!$BM$2,FALSE)), \"x\")","v":19180129.5},{"$f":"IFERROR((AV29/VLOOKUP($B29,Funding,Funding!$BY$2,FALSE)), \"x\")","v":0.10533712127633259},{"$f":"IFERROR((AV29/(VLOOKUP($B29,Pupils,Pupils!$M$3,FALSE)+VLOOKUP($B29,Pupils,Pupils!$P$3,FALSE))), \"x\")","v":3309.2010869565215},{"$f":"IFERROR((VLOOKUP($B29,Funding,Funding!$AQ$2,FALSE)), \"x\")","v":32802051},{"$f":"IFERROR((AY29/VLOOKUP($B29,Funding,Funding!$BE$2,FALSE)), \"x\")","v":0.17716086059448996},{"$f":"IFERROR((AY29/(VLOOKUP($B29,Pupils,Pupils!$R$3,FALSE)+VLOOKUP($B29,Pupils,Pupils!$U$3,FALSE))), \"x\")","v":6004.4025260845692},{"$f":"IFERROR((VLOOKUP($B29,Funding,Funding!$S$2,FALSE)), \"x\")","v":27746074},{"$f":"IFERROR((BB29/VLOOKUP($B29,Funding,Funding!$AH$2,FALSE)), \"x\")","v":0.15659549501484035},{"$f":"IFERROR((BB29/(VLOOKUP(B29,Pupils,Pupils!$W$3,FALSE)+VLOOKUP(B29,Pupils,Pupils!$Z$3,FALSE))), \"x\")","v":5306.1912411550966},{"$f":"IFERROR((VLOOKUP($B29,Funding,Funding!$GX$2,FALSE)), \"x\")","v":33557824.932250001},{"$f":"IFERROR((BE29/VLOOKUP($B29,Funding,Funding!$HC$2,FALSE)), \"x\")","v":0.17222261735054337},{"$f":"IFERROR((BE29/(VLOOKUP($B29,Pupils,Pupils!$D$3,FALSE)+VLOOKUP($B29,Pupils,Pupils!$E$3,FALSE))), \"x\")","v":5497.6777411942985},{"$f":"IFERROR((VLOOKUP($B29,Funding,Funding!$GP$2,FALSE)), \"x\")","v":36518071},{"$f":"IFERROR((BH29/VLOOKUP($B29,Funding,Funding!$GU$2,FALSE)), \"x\")","v":0.18725100537232131},{"$f":"IFERROR((BH29/(VLOOKUP($B29,Pupils,Pupils!$G$3,FALSE)+VLOOKUP($B29,Pupils,Pupils!$H$3,FALSE))), \"x\")","v":5976.7710310965631},{"$f":"IFERROR((VLOOKUP($B29,Funding,Funding!$GH$2,FALSE)), \"x\")","v":34266296.399999999},{"$f":"IFERROR((BK29/VLOOKUP($B29,Funding,Funding!$GM$2,FALSE)), \"x\")","v":0.17461856864927816},{"$f":"IFERROR((BK29/(VLOOKUP($B29,Pupils,Pupils!$J$3,FALSE)+VLOOKUP($B29,Pupils,Pupils!$K$3,FALSE))), \"x\")","v":5978.0698534542917},{"$f":"IFERROR((VLOOKUP($B29,Funding,Funding!$FZ$2,FALSE)), \"x\")","v":33930983.120000005},{"$f":"IFERROR((BN29/VLOOKUP($B29,Funding,Funding!$GE$2,FALSE)), \"x\")","v":0.17040009699276176},{"$f":"IFERROR((BN29/(VLOOKUP($B29,Pupils,Pupils!$M$3,FALSE)+VLOOKUP($B29,Pupils,Pupils!$P$3,FALSE))), \"x\")","v":5854.2068875086279},{"$f":"IFERROR((VLOOKUP($B29,Funding,Funding!$FD$2,FALSE)), \"x\")","v":30649343.810000002},{"$f":"IFERROR((BQ29/VLOOKUP($B29,Funding,Funding!$FR$2,FALSE)), \"x\")","v":0.17429704533331064},{"$f":"IFERROR((BQ29/(VLOOKUP($B29,Pupils,Pupils!$R$3,FALSE)+VLOOKUP($B29,Pupils,Pupils!$U$3,FALSE))), \"x\")","v":5610.3503221673081},{"$f":"(VLOOKUP(B29,Funding,Funding!$HK$2,FALSE)+VLOOKUP(B29,Funding,Funding!$HL$2,FALSE)+VLOOKUP(B29,Funding,Funding!$HM$2,FALSE))/(VLOOKUP(B29,Funding,Funding!$HN$2,FALSE))","v":0.17406143344709898},{"$f":"IFERROR((VLOOKUP(B29,Other_data,Other!$D$3,FALSE)+VLOOKUP(B29,Other_data,Other!$E$3,FALSE)+VLOOKUP(B29,Other_data,Other!$F$3,FALSE)), \"x\")","v":960},{"$f":"(VLOOKUP(B29,Other_data,Other!$AK$3,FALSE)+VLOOKUP(B29,Other_data,Other!$AL$3,FALSE))/VLOOKUP(B29,Other_data,Other!$AJ$3,FALSE)","v":3.7887777589421939E-2},{"$f":"(VLOOKUP(B29,Other_data,Other!$AR$3,FALSE)+VLOOKUP(B29,Other_data,Other!$AS$3,FALSE))/VLOOKUP(B29,Other_data,Other!$AQ$3,FALSE)","v":4.2109521532860135E-2},{"$f":"VLOOKUP(B29,Other_data,Other!$AP$3,FALSE)/VLOOKUP(B29,Other_data,Other!$AJ$3,FALSE)","v":9.7756681923489852E-3},{"$f":"VLOOKUP(B29,Other_data,Other!$AW$3,FALSE)/VLOOKUP(B29,Other_data,Other!$AQ$3,FALSE)","v":8.9735574270898462E-3}]
[24,823,"Central Bedfordshire",{"$f":"IFERROR((VLOOKUP($B30,Pupils,Pupils!$D$3,FALSE)/VLOOKUP($B30,Pupils,Pupils!$C$3,FALSE)), \"x\")","v":"x"},{"$f":"IFERROR((VLOOKUP($B30,Pupils,Pupils!$G$3,FALSE)/VLOOKUP($B30,Pupils,Pupils!$F$3,FALSE)),\"x\")","v":2.6917730317199545E-2},{"$f":"IFERROR((VLOOKUP($B30,Pupils,Pupils!$J$3,FALSE)/VLOOKUP($B30,Pupils,Pupils!$I$3,FALSE)), \"x\")","v":2.6581672503716396E-2},{"$f":"IFERROR((VLOOKUP($B30,Pupils,Pupils!$M$3,FALSE)/VLOOKUP($B30,Pupils,Pupils!$L$3,FALSE)), \"x\")","v":2.6681698609545283E-2},{"$f":"IFERROR((VLOOKUP($B30,Pupils,Pupils!$R$3,FALSE)/VLOOKUP($B30,Pupils,Pupils!$Q$3,FALSE)), \"x\")","v":2.6762240190485641E-2},{"$f":"IFERROR((VLOOKUP($B30,Pupils,Pupils!$W$3,FALSE)/VLOOKUP($B30,Pupils,Pupils!$V$3,FALSE)), \"x\")","v":2.6065042601704069E-2},{"$f":"IFERROR(((VLOOKUP($B30,Pupils,Pupils!$D$3,FALSE)+VLOOKUP($B30,Pupils,Pupils!$E$3,FALSE))/VLOOKUP($B30,Pupils,Pupils!$C$3,FALSE)), \"x\")","v":"x"},{"$f":"IFERROR(((VLOOKUP($B30,Pupils,Pupils!$G$3,FALSE)+VLOOKUP($B30,Pupils,Pupils!$H$3,FALSE))/VLOOKUP($B30,Pupils,Pupils!$F$3,FALSE)), \"x\")","v":0.18860103626943006},{"$f":"IFERROR(((VLOOKUP($B30,Pupils,Pupils!$J$3,FALSE)+VLOOKUP($B30,Pupils,Pupils!$K$3,FALSE))/VLOOKUP($B30,Pupils,Pupils!$I$3,FALSE)), \"x\")","v":0.18312378744740357},{"$f":"IFERROR(((VLOOKUP($B30,Pupils,Pupils!$M$3,FALSE)+VLOOKUP($B30,Pupils,Pupils!$P$3,FALSE))/VLOOKUP($B30,Pupils,Pupils!$L$3,FALSE)), \"x\")","v":0.1829888513090317},{"$f":"IFERROR(((VLOOKUP($B30,Pupils,Pupils!$R$3,FALSE)+VLOOKUP($B30,Pupils,Pupils!$U$3,FALSE))/VLOOKUP($B30,Pupils,Pupils!$Q$3,FALSE)), \"x\")","v":0.16431866660052583},{"$f":"IFERROR(((VLOOKUP($B30,Pupils,Pupils!$W$3,FALSE)+VLOOKUP($B30,Pupils,Pupils!$Z$3,FALSE))/VLOOKUP($B30,Pupils,Pupils!$V$3,FALSE)), \"x\")","v":0.15689427577103085},{"$f":"(SUM(INDEX(Pupils!$AB$7:$AB$159,MATCH($B30,Pupils!$A$7:$A$159,0)),INDEX(Pupils!$AC$7:$AC$159,MATCH($B30,Pupils!$A$7:$A$159,0)),INDEX(Pupils!$AD$7:$AD$159,MATCH($B30,Pupils!$A$7:$A$159,0)),INDEX(Pupils!$AE$7:$AE$159,MATCH($B30,Pupils!$A$7:$A$159,0))))/SUM(INDEX(Pupils!$AB$7:$AM$159,MATCH($B30,Pupils!$A$7:$A$159,0),0))","v":0.32872340425531915},{"$f":"SUM(INDEX(Pupils!$AF$7:$AF$159,MATCH($B30,Pupils!$A$7:$A$159,0)))/SUM(INDEX(Pupils!$AB$7:$AM$159,MATCH($B30,Pupils!$A$7:$A$159,0),0))","v":0.22836879432624113},{"$f":"SUM(INDEX(Pupils!$AG$7:$AG$159,MATCH($B30,Pupils!$A$7:$A$159,0)))/SUM(INDEX(Pupils!$AB$7:$AM$159,MATCH($B30,Pupils!$A$7:$A$159,0),0))","v":0.14503546099290779},{"$f":"(SUM(INDEX(Pupils!$AH$7:$AH$159,MATCH($B30,Pupils!$A$7:$A$159,0)),INDEX(Pupils!$AI$7:$AI$159,MATCH($B30,Pupils!$A$7:$A$159,0)),INDEX(Pupils!$AJ$7:$AJ$159,MATCH($B30,Pupils!$A$7:$A$159,0))))/SUM(INDEX(Pupils!$AB$7:$AM$159,MATCH($B30,Pupils!$A$7:$A$159,0),0))","v":4.0780141843971635E-2},{"$f":"SUM(INDEX(Pupils!$AK$7:$AK$159,MATCH($B30,Pupils!$A$7:$A$159,0)))/SUM(INDEX(Pupils!$AB$7:$AM$159,MATCH($B30,Pupils!$A$7:$A$159,0),0))","v":4.397163120567376E-2},{"$f":"SUM(INDEX(Pupils!$AL$7:$AL$159,MATCH($B30,Pupils!$A$7:$A$159,0)))/SUM(INDEX(Pupils!$AB$7:$AM$159,MATCH($B30,Pupils!$A$7:$A$159,0),0))","v":0.1702127659574468},{"$f":"SUM(INDEX(Pupils!$AM$7:$AM$159,MATCH($B30,Pupils!$A$7:$A$159,0)))/SUM(INDEX(Pupils!$AB$7:$AM$159,MATCH($B30,Pupils!$A$7:$A$159,0),0))","v":4.2907801418439716E-2},{"$f":"(SUM(INDEX(Pupils!$BH$7:$BH$159,MATCH($B30,Pupils!$A$7:$A$159,0)),INDEX(Pupils!$BK$7:$BK$159,MATCH($B30,Pupils!$A$7:$A$159,0)),INDEX(Pupils!$BO$7:$BO$159,MATCH($B30,Pupils!$A$7:$A$159,0))))/SUM(INDEX(Pupils!$BH$7:$BS$159,MATCH($B30,Pupils!$A$7:$A$159,0),0))","v":0.4828226555246054},{"$f":"(SUM(INDEX(Pupils!$BL$7:$BL$159,MATCH($B30,Pupils!$A$7:$A$159,0)),INDEX(Pupils!$BM$7:$BM$159,MATCH($B30,Pupils!$A$7:$A$159,0)),INDEX(Pupils!$BP$7:$BP$159,MATCH($B30,Pupils!$A$7:$A$159,0))))/SUM(INDEX(Pupils!$BH$7:$BS$159,MATCH($B30,Pupils!$A$7:$A$159,0),0))","v":0.45775301764159704},{"$f":"(SUM(INDEX(Pupils!$BI$7:$BI$159,MATCH($B30,Pupils!$A$7:$A$159,0)),INDEX(Pupils!$BJ$7:$BJ$159,MATCH($B30,Pupils!$A$7:$A$159,0))))/SUM(INDEX(Pupils!$BH$7:$BS$159,MATCH($B30,Pupils!$A$7:$A$159,0),0))","v":4.5496750232126279E-2},{"$f":"(SUM(INDEX(Pupils!$BQ$7:$BQ$159,MATCH($B30,Pupils!$A$7:$A$159,0)),INDEX(Pupils!$BR$7:$BR$159,MATCH($B30,Pupils!$A$7:$A$159,0)),INDEX(Pupils!$BN$7:$BN$159,MATCH($B30,Pupils!$A$7:$A$159,0)),INDEX(Pupils!$BS$7:$BS$159,MATCH($B30,Pupils!$A$7:$A$159,0))))/SUM(INDEX(Pupils!$BH$7:$BS$159,MATCH($B30,Pupils!$A$7:$A$159,0),0))","v":1.3927576601671309E-2},{"$f":"IFERROR((VLOOKUP(B30,Funding,Funding!$C$2,FALSE)), \"x\")","v":22332504},{"$f":"IFERROR((AA30/VLOOKUP(B30,Funding,Funding!$D$2,FALSE)), \"x\")","v":0.12841058510449577},{"$f":"IFERROR((AA30/(VLOOKUP(B30,Pupils,Pupils!$M$3,FALSE)+VLOOKUP(B30,Pupils,Pupils!$P$3,FALSE))), \"x\")","v":3057.5717415115005},{"$f":"IFERROR((VLOOKUP(B30,Funding,Funding!$E$2,FALSE)), \"x\")","v":23291580.768891953},{"$f":"IFERROR((AD30/VLOOKUP(B30,Funding,Funding!$F$2,FALSE)), \"x\")","v":0.13023576499349479},{"$f":"IFERROR((AD30/(VLOOKUP(B30,Pupils,Pupils!$R$3,FALSE)+VLOOKUP(B30,Pupils,Pupils!$U$3,FALSE))), \"x\")","v":3515.710304738408},{"$f":"IFERROR((VLOOKUP(B30,Funding,Funding!$G$2,FALSE)), \"x\")","v":24811913.19375756},{"$f":"IFERROR((AG30/VLOOKUP(B30,Funding,Funding!$H$2,FALSE)), \"x\")","v":0.1355483174042994},{"$f":"IFERROR((AG30/(VLOOKUP(B30,Pupils,Pupils!$W$3,FALSE)+VLOOKUP(B30,Pupils,Pupils!$Z$3,FALSE))), \"x\")","v":3795.6116251732537},{"$f":"IFERROR((VLOOKUP(B30,Funding,Funding!$I$2,FALSE)), \"x\")","v":25392872.240268975},{"$f":"IFERROR((AJ30/VLOOKUP(B30,Funding,Funding!$J$2,FALSE)), \"x\")","v":0.13358552789127598},null,{"$f":"IFERROR((VLOOKUP($B30,Funding,Funding!$EC$2,FALSE)), \"x\")","v":13320053.379999999},{"$f":"IFERROR((AM30/VLOOKUP($B30,Funding,Funding!$EU$2,FALSE)), \"x\")","v":7.2998411365834279E-2},{"$f":"IFERROR((AM30/(VLOOKUP($B30,Pupils,Pupils!$D$3,FALSE)+VLOOKUP($B30,Pupils,Pupils!$E$3,FALSE))), \"x\")","v":"x"},{"$f":"IFERROR((VLOOKUP($B30,Funding,Funding!$DA$2,FALSE)), \"x\")","v":13374872.572639998},{"$f":"IFERROR((AP30/VLOOKUP($B30,Funding,Funding!$DT$2,FALSE)), \"x\")","v":7.03657368093355E-2},{"$f":"IFERROR((AP30/(VLOOKUP($B30,Pupils,Pupils!$G$3,FALSE)+VLOOKUP($B30,Pupils,Pupils!$H$3,FALSE))), \"x\")","v":1792.3978253336904},{"$f":"IFERROR((VLOOKUP($B30,Funding,Funding!$CE$2,FALSE)), \"x\")","v":14208194.960670002},{"$f":"IFERROR((AS30/VLOOKUP($B30,Funding,Funding!$CR$2,FALSE)), \"x\")","v":8.1615909588199698E-2},{"$f":"IFERROR((AS30/(VLOOKUP($B30,Pupils,Pupils!$J$3,FALSE)+VLOOKUP($B30,Pupils,Pupils!$K$3,FALSE))), \"x\")","v":1954.8974904609249},{"$f":"IFERROR((VLOOKUP($B30,Funding,Funding!$BM$2,FALSE)), \"x\")","v":15431123.709999999},{"$f":"IFERROR((AV30/VLOOKUP($B30,Funding,Funding!$BY$2,FALSE)), \"x\")","v":0.11919237393392343},{"$f":"IFERROR((AV30/(VLOOKUP($B30,Pupils,Pupils!$M$3,FALSE)+VLOOKUP($B30,Pupils,Pupils!$P$3,FALSE))), \"x\")","v":2112.6949219605694},{"$f":"IFERROR((VLOOKUP($B30,Funding,Funding!$AQ$2,FALSE)), \"x\")","v":21606156},{"$f":"IFERROR((AY30/VLOOKUP($B30,Funding,Funding!$BE$2,FALSE)), \"x\")","v":0.11921206590866747},{"$f":"IFERROR((AY30/(VLOOKUP($B30,Pupils,Pupils!$R$3,FALSE)+VLOOKUP($B30,Pupils,Pupils!$U$3,FALSE))), \"x\")","v":3261.306566037736},{"$f":"IFERROR((VLOOKUP($B30,Funding,Funding!$S$2,FALSE)), \"x\")","v":23097717},{"$f":"IFERROR((BB30/VLOOKUP($B30,Funding,Funding!$AH$2,FALSE)), \"x\")","v":0.12364715504608012},{"$f":"IFERROR((BB30/(VLOOKUP(B30,Pupils,Pupils!$W$3,FALSE)+VLOOKUP(B30,Pupils,Pupils!$Z$3,FALSE))), \"x\")","v":3533.3818265259292},{"$f":"IFERROR((VLOOKUP($B30,Funding,Funding!$GX$2,FALSE)), \"x\")","v":23662711.57697},{"$f":"IFERROR((BE30/VLOOKUP($B30,Funding,Funding!$HC$2,FALSE)), \"x\")","v":0.12055148282754292},{"$f":"IFERROR((BE30/(VLOOKUP($B30,Pupils,Pupils!$D$3,FALSE)+VLOOKUP($B30,Pupils,Pupils!$E$3,FALSE))), \"x\")","v":"x"},{"$f":"IFERROR((VLOOKUP($B30,Funding,Funding!$GP$2,FALSE)), \"x\")","v":27082422.809999999},{"$f":"IFERROR((BH30/VLOOKUP($B30,Funding,Funding!$GU$2,FALSE)), \"x\")","v":0.13404049691340653},{"$f":"IFERROR((BH30/(VLOOKUP($B30,Pupils,Pupils!$G$3,FALSE)+VLOOKUP($B30,Pupils,Pupils!$H$3,FALSE))), \"x\")","v":3629.3785593674615},{"$f":"IFERROR((VLOOKUP($B30,Funding,Funding!$GH$2,FALSE)), \"x\")","v":31813015.439999998},{"$f":"IFERROR((BK30/VLOOKUP($B30,Funding,Funding!$GM$2,FALSE)), \"x\")","v":0.10136531322137735},{"$f":"IFERROR((BK30/(VLOOKUP($B30,Pupils,Pupils!$J$3,FALSE)+VLOOKUP($B30,Pupils,Pupils!$K$3,FALSE))), \"x\")","v":4377.1347605943856},{"$f":"IFERROR((VLOOKUP($B30,Funding,Funding!$FZ$2,FALSE)), \"x\")","v":24548681.490000002},{"$f":"IFERROR((BN30/VLOOKUP($B30,Funding,Funding!$GE$2,FALSE)), \"x\")","v":0.11249331202395407},{"$f":"IFERROR((BN30/(VLOOKUP($B30,Pupils,Pupils!$M$3,FALSE)+VLOOKUP($B30,Pupils,Pupils!$P$3,FALSE))), \"x\")","v":3360.9914416757942},{"$f":"IFERROR((VLOOKUP($B30,Funding,Funding!$FD$2,FALSE)), \"x\")","v":19536736},{"$f":"IFERROR((BQ30/VLOOKUP($B30,Funding,Funding!$FR$2,FALSE)), \"x\")","v":0.17272677939234257},{"$f":"IFERROR((BQ30/(VLOOKUP($B30,Pupils,Pupils!$R$3,FALSE)+VLOOKUP($B30,Pupils,Pupils!$U$3,FALSE))), \"x\")","v":2948.941283018868},{"$f":"(VLOOKUP(B30,Funding,Funding!$HK$2,FALSE)+VLOOKUP(B30,Funding,Funding!$HL$2,FALSE)+VLOOKUP(B30,Funding,Funding!$HM$2,FALSE))/(VLOOKUP(B30,Funding,Funding!$HN$2,FALSE))","v":0.18495684340320592},{"$f":"IFERROR((VLOOKUP(B30,Other_data,Other!$D$3,FALSE)+VLOOKUP(B30,Other_data,Other!$E$3,FALSE)+VLOOKUP(B30,Other_data,Other!$F$3,FALSE)), \"x\")","v":1530},{"$f":"(VLOOKUP(B30,Other_data,Other!$AK$3,FALSE)+VLOOKUP(B30,Other_data,Other!$AL$3,FALSE))/VLOOKUP(B30,Other_data,Other!$AJ$3,FALSE)","v":3.3282418200820001E-2},{"$f":"(VLOOKUP(B30,Other_data,Other!$AR$3,FALSE)+VLOOKUP(B30,Other_data,Other!$AS$3,FALSE))/VLOOKUP(B30,Other_data,Other!$AQ$3,FALSE)","v":4.6279347393553522E-2},{"$f":"VLOOKUP(B30,Other_data,Other!$AP$3,FALSE)/VLOOKUP(B30,Other_data,Other!$AJ$3,FALSE)","v":4.5823619261998556E-3},{"$f":"VLOOKUP(B30,Other_data,Other!$AW$3,FALSE)/VLOOKUP(B30,Other_data,Other!$AQ$3,FALSE)","v":8.595304417031437E-3}]
[25,895,"Cheshire East",{"$f":"IFERROR((VLOOKUP($B31,Pupils,Pupils!$D$3,FALSE)/VLOOKUP($B31,Pupils,Pupils!$C$3,FALSE)), \"x\")","v":"x"},{"$f":"IFERROR((VLOOKUP($B31,Pupils,Pupils!$G$3,FALSE)/VLOOKUP($B31,Pupils,Pupils!$F$3,FALSE)),\"x\")","v":2.6203376666605025E-2},{"$f":"IFERROR((VLOOKUP($B31,Pupils,Pupils!$J$3,FALSE)/VLOOKUP($B31,Pupils,Pupils!$I$3,FALSE)), \"x\")","v":2.4347212420606917E-2},{"$f":"IFERROR((VLOOKUP($B31,Pupils,Pupils!$M$3,FALSE)/VLOOKUP($B31,Pupils,Pupils!$L$3,FALSE)), \"x\")","v":2.3768148438813835E-2},{"$f":"IFERROR((VLOOKUP($B31,Pupils,Pupils!$R$3,FALSE)/VLOOKUP($B31,Pupils,Pupils!$Q$3,FALSE)), \"x\")","v":2.3749697544996E-2},{"$f":"IFERROR((VLOOKUP($B31,Pupils,Pupils!$W$3,FALSE)/VLOOKUP($B31,Pupils,Pupils!$V$3,FALSE)), \"x\")","v":2.3236761748715275E-2},{"$f":"IFERROR(((VLOOKUP($B31,Pupils,Pupils!$D$3,FALSE)+VLOOKUP($B31,Pupils,Pupils!$E$3,FALSE))/VLOOKUP($B31,Pupils,Pupils!$C$3,FALSE)), \"x\")","v":"x"},{"$f":"IFERROR(((VLOOKUP($B31,Pupils,Pupils!$G$3,FALSE)+VLOOKUP($B31,Pupils,Pupils!$H$3,FALSE))/VLOOKUP($B31,Pupils,Pupils!$F$3,FALSE)), \"x\")","v":0.14867688666161213},{"$f":"IFERROR(((VLOOKUP($B31,Pupils,Pupils!$J$3,FALSE)+VLOOKUP($B31,Pupils,Pupils!$K$3,FALSE))/VLOOKUP($B31,Pupils,Pupils!$I$3,FALSE)), \"x\")","v":0.15059614456041304},{"$f":"IFERROR(((VLOOKUP($B31,Pupils,Pupils!$M$3,FALSE)+VLOOKUP($B31,Pupils,Pupils!$P$3,FALSE))/VLOOKUP($B31,Pupils,Pupils!$L$3,FALSE)), \"x\")","v":0.15664181475045313},{"$f":"IFERROR(((VLOOKUP($B31,Pupils,Pupils!$R$3,FALSE)+VLOOKUP($B31,Pupils,Pupils!$U$3,FALSE))/VLOOKUP($B31,Pupils,Pupils!$Q$3,FALSE)), \"x\")","v":0.15433580881121223},{"$f":"IFERROR(((VLOOKUP($B31,Pupils,Pupils!$W$3,FALSE)+VLOOKUP($B31,Pupils,Pupils!$Z$3,FALSE))/VLOOKUP($B31,Pupils,Pupils!$V$3,FALSE)), \"x\")","v":0.14858121695091978},{"$f":"(SUM(INDEX(Pupils!$AB$7:$AB$159,MATCH($B31,Pupils!$A$7:$A$159,0)),INDEX(Pupils!$AC$7:$AC$159,MATCH($B31,Pupils!$A$7:$A$159,0)),INDEX(Pupils!$AD$7:$AD$159,MATCH($B31,Pupils!$A$7:$A$159,0)),INDEX(Pupils!$AE$7:$AE$159,MATCH($B31,Pupils!$A$7:$A$159,0))))/SUM(INDEX(Pupils!$AB$7:$AM$159,MATCH($B31,Pupils!$A$7:$A$159,0),0))","v":0.29732868757259001},{"$f":"SUM(INDEX(Pupils!$AF$7:$AF$159,MATCH($B31,Pupils!$A$7:$A$159,0)))/SUM(INDEX(Pupils!$AB$7:$AM$159,MATCH($B31,Pupils!$A$7:$A$159,0),0))","v":0.22706155632984901},{"$f":"SUM(INDEX(Pupils!$AG$7:$AG$159,MATCH($B31,Pupils!$A$7:$A$159,0)))/SUM(INDEX(Pupils!$AB$7:$AM$159,MATCH($B31,Pupils!$A$7:$A$159,0),0))","v":0.20993031358885017},{"$f":"(SUM(INDEX(Pupils!$AH$7:$AH$159,MATCH($B31,Pupils!$A$7:$A$159,0)),INDEX(Pupils!$AI$7:$AI$159,MATCH($B31,Pupils!$A$7:$A$159,0)),INDEX(Pupils!$AJ$7:$AJ$159,MATCH($B31,Pupils!$A$7:$A$159,0))))/SUM(INDEX(Pupils!$AB$7:$AM$159,MATCH($B31,Pupils!$A$7:$A$159,0),0))","v":5.3135888501742161E-2},{"$f":"SUM(INDEX(Pupils!$AK$7:$AK$159,MATCH($B31,Pupils!$A$7:$A$159,0)))/SUM(INDEX(Pupils!$AB$7:$AM$159,MATCH($B31,Pupils!$A$7:$A$159,0),0))","v":4.0360046457607435E-2},{"$f":"SUM(INDEX(Pupils!$AL$7:$AL$159,MATCH($B31,Pupils!$A$7:$A$159,0)))/SUM(INDEX(Pupils!$AB$7:$AM$159,MATCH($B31,Pupils!$A$7:$A$159,0),0))","v":9.4947735191637628E-2},{"$f":"SUM(INDEX(Pupils!$AM$7:$AM$159,MATCH($B31,Pupils!$A$7:$A$159,0)))/SUM(INDEX(Pupils!$AB$7:$AM$159,MATCH($B31,Pupils!$A$7:$A$159,0),0))","v":7.7235772357723581E-2},{"$f":"(SUM(INDEX(Pupils!$BH$7:$BH$159,MATCH($B31,Pupils!$A$7:$A$159,0)),INDEX(Pupils!$BK$7:$BK$159,MATCH($B31,Pupils!$A$7:$A$159,0)),INDEX(Pupils!$BO$7:$BO$159,MATCH($B31,Pupils!$A$7:$A$159,0))))/SUM(INDEX(Pupils!$BH$7:$BS$159,MATCH($B31,Pupils!$A$7:$A$159,0),0))","v":0.53846153846153844},{"$f":"(SUM(INDEX(Pupils!$BL$7:$BL$159,MATCH($B31,Pupils!$A$7:$A$159,0)),INDEX(Pupils!$BM$7:$BM$159,MATCH($B31,Pupils!$A$7:$A$159,0)),INDEX(Pupils!$BP$7:$BP$159,MATCH($B31,Pupils!$A$7:$A$159,0))))/SUM(INDEX(Pupils!$BH$7:$BS$159,MATCH($B31,Pupils!$A$7:$A$159,0),0))","v":0.39330024813895781},{"$f":"(SUM(INDEX(Pupils!$BI$7:$BI$159,MATCH($B31,Pupils!$A$7:$A$159,0)),INDEX(Pupils!$BJ$7:$BJ$159,MATCH($B31,Pupils!$A$7:$A$159,0))))/SUM(INDEX(Pupils!$BH$7:$BS$159,MATCH($B31,Pupils!$A$7:$A$159,0),0))","v":5.3970223325062038E-2},{"$f":"(SUM(INDEX(Pupils!$BQ$7:$BQ$159,MATCH($B31,Pupils!$A$7:$A$159,0)),INDEX(Pupils!$BR$7:$BR$159,MATCH($B31,Pupils!$A$7:$A$159,0)),INDEX(Pupils!$BN$7:$BN$159,MATCH($B31,Pupils!$A$7:$A$159,0)),INDEX(Pupils!$BS$7:$BS$159,MATCH($B31,Pupils!$A$7:$A$159,0))))/SUM(INDEX(Pupils!$BH$7:$BS$159,MATCH($B31,Pupils!$A$7:$A$159,0),0))","v":1.4267990074441687E-2},{"$f":"IFERROR((VLOOKUP(B31,Funding,Funding!$C$2,FALSE)), \"x\")","v":29468134.539999999},{"$f":"IFERROR((AA31/VLOOKUP(B31,Funding,Funding!$D$2,FALSE)), \"x\")","v":0.12711599990546077},{"$f":"IFERROR((AA31/(VLOOKUP(B31,Pupils,Pupils!$M$3,FALSE)+VLOOKUP(B31,Pupils,Pupils!$P$3,FALSE))), \"x\")","v":3515.2254014076107},{"$f":"IFERROR((VLOOKUP(B31,Funding,Funding!$E$2,FALSE)), \"x\")","v":32659924.656726986},{"$f":"IFERROR((AD31/VLOOKUP(B31,Funding,Funding!$F$2,FALSE)), \"x\")","v":0.13894565822345376},{"$f":"IFERROR((AD31/(VLOOKUP(B31,Pupils,Pupils!$R$3,FALSE)+VLOOKUP(B31,Pupils,Pupils!$U$3,FALSE))), \"x\")","v":3938.7270449501912},{"$f":"IFERROR((VLOOKUP(B31,Funding,Funding!$G$2,FALSE)), \"x\")","v":35072405.667022958},{"$f":"IFERROR((AG31/VLOOKUP(B31,Funding,Funding!$H$2,FALSE)), \"x\")","v":0.14708264821388178},{"$f":"IFERROR((AG31/(VLOOKUP(B31,Pupils,Pupils!$W$3,FALSE)+VLOOKUP(B31,Pupils,Pupils!$Z$3,FALSE))), \"x\")","v":4395.0383041382156},{"$f":"IFERROR((VLOOKUP(B31,Funding,Funding!$I$2,FALSE)), \"x\")","v":35521782.842581011},{"$f":"IFERROR((AJ31/VLOOKUP(B31,Funding,Funding!$J$2,FALSE)), \"x\")","v":0.14621086253732682},null,{"$f":"IFERROR((VLOOKUP($B31,Funding,Funding!$EC$2,FALSE)), \"x\")","v":14514263.42},{"$f":"IFERROR((AM31/VLOOKUP($B31,Funding,Funding!$EU$2,FALSE)), \"x\")","v":6.0593746173677597E-2},{"$f":"IFERROR((AM31/(VLOOKUP($B31,Pupils,Pupils!$D$3,FALSE)+VLOOKUP($B31,Pupils,Pupils!$E$3,FALSE))), \"x\")","v":"x"},{"$f":"IFERROR((VLOOKUP($B31,Funding,Funding!$DA$2,FALSE)), \"x\")","v":14738471.24646},{"$f":"IFERROR((AP31/VLOOKUP($B31,Funding,Funding!$DT$2,FALSE)), \"x\")","v":5.9262011268257801E-2},{"$f":"IFERROR((AP31/(VLOOKUP($B31,Pupils,Pupils!$G$3,FALSE)+VLOOKUP($B31,Pupils,Pupils!$H$3,FALSE))), \"x\")","v":1833.1431898582089},{"$f":"IFERROR((VLOOKUP($B31,Funding,Funding!$CE$2,FALSE)), \"x\")","v":13471899.4855},{"$f":"IFERROR((AS31/VLOOKUP($B31,Funding,Funding!$CR$2,FALSE)), \"x\")","v":5.7128959025748161E-2},{"$f":"IFERROR((AS31/(VLOOKUP($B31,Pupils,Pupils!$J$3,FALSE)+VLOOKUP($B31,Pupils,Pupils!$K$3,FALSE))), \"x\")","v":1661.3515212110001},{"$f":"IFERROR((VLOOKUP($B31,Funding,Funding!$BM$2,FALSE)), \"x\")","v":15957780.799999999},{"$f":"IFERROR((AV31/VLOOKUP($B31,Funding,Funding!$BY$2,FALSE)), \"x\")","v":7.3930117180182373E-2},{"$f":"IFERROR((AV31/(VLOOKUP($B31,Pupils,Pupils!$M$3,FALSE)+VLOOKUP($B31,Pupils,Pupils!$P$3,FALSE))), \"x\")","v":1903.5883096743407},{"$f":"IFERROR((VLOOKUP($B31,Funding,Funding!$AQ$2,FALSE)), \"x\")","v":28329962},{"$f":"IFERROR((AY31/VLOOKUP($B31,Funding,Funding!$BE$2,FALSE)), \"x\")","v":0.11303131477128438},{"$f":"IFERROR((AY31/(VLOOKUP($B31,Pupils,Pupils!$R$3,FALSE)+VLOOKUP($B31,Pupils,Pupils!$U$3,FALSE))), \"x\")","v":3416.5414857694163},{"$f":"IFERROR((VLOOKUP($B31,Funding,Funding!$S$2,FALSE)), \"x\")","v":28521672.600000001},{"$f":"IFERROR((BB31/VLOOKUP($B31,Funding,Funding!$AH$2,FALSE)), \"x\")","v":0.11596189666340197},{"$f":"IFERROR((BB31/(VLOOKUP(B31,Pupils,Pupils!$W$3,FALSE)+VLOOKUP(B31,Pupils,Pupils!$Z$3,FALSE))), \"x\")","v":3574.1444360902256},{"$f":"IFERROR((VLOOKUP($B31,Funding,Funding!$GX$2,FALSE)), \"x\")","v":37074120.38527},{"$f":"IFERROR((BE31/VLOOKUP($B31,Funding,Funding!$HC$2,FALSE)), \"x\")","v":0.12826758584911244},{"$f":"IFERROR((BE31/(VLOOKUP($B31,Pupils,Pupils!$D$3,FALSE)+VLOOKUP($B31,Pupils,Pupils!$E$3,FALSE))), \"x\")","v":"x"},{"$f":"IFERROR((VLOOKUP($B31,Funding,Funding!$GP$2,FALSE)), \"x\")","v":43704945.460000001},{"$f":"IFERROR((BH31/VLOOKUP($B31,Funding,Funding!$GU$2,FALSE)), \"x\")","v":0.13601974710518328},{"$f":"IFERROR((BH31/(VLOOKUP($B31,Pupils,Pupils!$G$3,FALSE)+VLOOKUP($B31,Pupils,Pupils!$H$3,FALSE))), \"x\")","v":5435.9384900497516},{"$f":"IFERROR((VLOOKUP($B31,Funding,Funding!$GH$2,FALSE)), \"x\")","v":41303954.769999996},{"$f":"IFERROR((BK31/VLOOKUP($B31,Funding,Funding!$GM$2,FALSE)), \"x\")","v":0.17216595650416744},{"$f":"IFERROR((BK31/(VLOOKUP($B31,Pupils,Pupils!$J$3,FALSE)+VLOOKUP($B31,Pupils,Pupils!$K$3,FALSE))), \"x\")","v":5093.5941262794422},{"$f":"IFERROR((VLOOKUP($B31,Funding,Funding!$FZ$2,FALSE)), \"x\")","v":40676119.789999999},{"$f":"IFERROR((BN31/VLOOKUP($B31,Funding,Funding!$GE$2,FALSE)), \"x\")","v":0.17632142792748373},{"$f":"IFERROR((BN31/(VLOOKUP($B31,Pupils,Pupils!$M$3,FALSE)+VLOOKUP($B31,Pupils,Pupils!$P$3,FALSE))), \"x\")","v":4852.2151723726593},{"$f":"IFERROR((VLOOKUP($B31,Funding,Funding!$FD$2,FALSE)), \"x\")","v":25517608},{"$f":"IFERROR((BQ31/VLOOKUP($B31,Funding,Funding!$FR$2,FALSE)), \"x\")","v":0.14277814950017284},{"$f":"IFERROR((BQ31/(VLOOKUP($B31,Pupils,Pupils!$R$3,FALSE)+VLOOKUP($B31,Pupils,Pupils!$U$3,FALSE))), \"x\")","v":3077.37674867342},{"$f":"(VLOOKUP(B31,Funding,Funding!$HK$2,FALSE)+VLOOKUP(B31,Funding,Funding!$HL$2,FALSE)+VLOOKUP(B31,Funding,Funding!$HM$2,FALSE))/(VLOOKUP(B31,Funding,Funding!$HN$2,FALSE))","v":0.36285714285714288},{"$f":"IFERROR((VLOOKUP(B31,Other_data,Other!$D$3,FALSE)+VLOOKUP(B31,Other_data,Other!$E$3,FALSE)+VLOOKUP(B31,Other_data,Other!$F$3,FALSE)), \"x\")","v":1730},{"$f":"(VLOOKUP(B31,Other_data,Other!$AK$3,FALSE)+VLOOKUP(B31,Other_data,Other!$AL$3,FALSE))/VLOOKUP(B31,Other_data,Other!$AJ$3,FALSE)","v":3.0900543155780728E-2},{"$f":"(VLOOKUP(B31,Other_data,Other!$AR$3,FALSE)+VLOOKUP(B31,Other_data,Other!$AS$3,FALSE))/VLOOKUP(B31,Other_data,Other!$AQ$3,FALSE)","v":4.8159940337894044E-2},{"$f":"VLOOKUP(B31,Other_data,Other!$AP$3,FALSE)/VLOOKUP(B31,Other_data,Other!$AJ$3,FALSE)","v":4.0926864150197025E-3},{"$f":"VLOOKUP(B31,Other_data,Other!$AW$3,FALSE)/VLOOKUP(B31,Other_data,Other!$AQ$3,FALSE)","v":1.0297450018644409E-2}]
[26,896,"Cheshire West and Chester",{"$f":"IFERROR((VLOOKUP($B32,Pupils,Pupils!$D$3,FALSE)/VLOOKUP($B32,Pupils,Pupils!$C$3,FALSE)), \"x\")","v":"x"},{"$f":"IFERROR((VLOOKUP($B32,Pupils,Pupils!$G$3,FALSE)/VLOOKUP($B32,Pupils,Pupils!$F$3,FALSE)),\"x\")","v":3.251591925213386E-2},{"$f":"IFERROR((VLOOKUP($B32,Pupils,Pupils!$J$3,FALSE)/VLOOKUP($B32,Pupils,Pupils!$I$3,FALSE)), \"x\")","v":3.0097258370677678E-2},{"$f":"IFERROR((VLOOKUP($B32,Pupils,Pupils!$M$3,FALSE)/VLOOKUP($B32,Pupils,Pupils!$L$3,FALSE)), \"x\")","v":2.9667830110984745E-2},{"$f":"IFERROR((VLOOKUP($B32,Pupils,Pupils!$R$3,FALSE)/VLOOKUP($B32,Pupils,Pupils!$Q$3,FALSE)), \"x\")","v":2.9917623808871582E-2},{"$f":"IFERROR((VLOOKUP($B32,Pupils,Pupils!$W$3,FALSE)/VLOOKUP($B32,Pupils,Pupils!$V$3,FALSE)), \"x\")","v":3.0937928333659683E-2},{"$f":"IFERROR(((VLOOKUP($B32,Pupils,Pupils!$D$3,FALSE)+VLOOKUP($B32,Pupils,Pupils!$E$3,FALSE))/VLOOKUP($B32,Pupils,Pupils!$C$3,FALSE)), \"x\")","v":"x"},{"$f":"IFERROR(((VLOOKUP($B32,Pupils,Pupils!$G$3,FALSE)+VLOOKUP($B32,Pupils,Pupils!$H$3,FALSE))/VLOOKUP($B32,Pupils,Pupils!$F$3,FALSE)), \"x\")","v":0.18487622660498965},{"$f":"IFERROR(((VLOOKUP($B32,Pupils,Pupils!$J$3,FALSE)+VLOOKUP($B32,Pupils,Pupils!$K$3,FALSE))/VLOOKUP($B32,Pupils,Pupils!$I$3,FALSE)), \"x\")","v":0.18130760650476507},{"$f":"IFERROR(((VLOOKUP($B32,Pupils,Pupils!$M$3,FALSE)+VLOOKUP($B32,Pupils,Pupils!$P$3,FALSE))/VLOOKUP($B32,Pupils,Pupils!$L$3,FALSE)), \"x\")","v":0.17426173575434331},{"$f":"IFERROR(((VLOOKUP($B32,Pupils,Pupils!$R$3,FALSE)+VLOOKUP($B32,Pupils,Pupils!$U$3,FALSE))/VLOOKUP($B32,Pupils,Pupils!$Q$3,FALSE)), \"x\")","v":0.17109202261921067},{"$f":"IFERROR(((VLOOKUP($B32,Pupils,Pupils!$W$3,FALSE)+VLOOKUP($B32,Pupils,Pupils!$Z$3,FALSE))/VLOOKUP($B32,Pupils,Pupils!$V$3,FALSE)), \"x\")","v":0.16066183669473272},{"$f":"(SUM(INDEX(Pupils!$AB$7:$AB$159,MATCH($B32,Pupils!$A$7:$A$159,0)),INDEX(Pupils!$AC$7:$AC$159,MATCH($B32,Pupils!$A$7:$A$159,0)),INDEX(Pupils!$AD$7:$AD$159,MATCH($B32,Pupils!$A$7:$A$159,0)),INDEX(Pupils!$AE$7:$AE$159,MATCH($B32,Pupils!$A$7:$A$159,0))))/SUM(INDEX(Pupils!$AB$7:$AM$159,MATCH($B32,Pupils!$A$7:$A$159,0),0))","v":0.31860086767895879},{"$f":"SUM(INDEX(Pupils!$AF$7:$AF$159,MATCH($B32,Pupils!$A$7:$A$159,0)))/SUM(INDEX(Pupils!$AB$7:$AM$159,MATCH($B32,Pupils!$A$7:$A$159,0),0))","v":0.20607375271149675},{"$f":"SUM(INDEX(Pupils!$AG$7:$AG$159,MATCH($B32,Pupils!$A$7:$A$159,0)))/SUM(INDEX(Pupils!$AB$7:$AM$159,MATCH($B32,Pupils!$A$7:$A$159,0),0))","v":0.20824295010845986},{"$f":"(SUM(INDEX(Pupils!$AH$7:$AH$159,MATCH($B32,Pupils!$A$7:$A$159,0)),INDEX(Pupils!$AI$7:$AI$159,MATCH($B32,Pupils!$A$7:$A$159,0)),INDEX(Pupils!$AJ$7:$AJ$159,MATCH($B32,Pupils!$A$7:$A$159,0))))/SUM(INDEX(Pupils!$AB$7:$AM$159,MATCH($B32,Pupils!$A$7:$A$159,0),0))","v":4.0130151843817789E-2},{"$f":"SUM(INDEX(Pupils!$AK$7:$AK$159,MATCH($B32,Pupils!$A$7:$A$159,0)))/SUM(INDEX(Pupils!$AB$7:$AM$159,MATCH($B32,Pupils!$A$7:$A$159,0),0))","v":4.7722342733188719E-2},{"$f":"SUM(INDEX(Pupils!$AL$7:$AL$159,MATCH($B32,Pupils!$A$7:$A$159,0)))/SUM(INDEX(Pupils!$AB$7:$AM$159,MATCH($B32,Pupils!$A$7:$A$159,0),0))","v":0.12689804772234273},{"$f":"SUM(INDEX(Pupils!$AM$7:$AM$159,MATCH($B32,Pupils!$A$7:$A$159,0)))/SUM(INDEX(Pupils!$AB$7:$AM$159,MATCH($B32,Pupils!$A$7:$A$159,0),0))","v":5.2331887201735358E-2},{"$f":"(SUM(INDEX(Pupils!$BH$7:$BH$159,MATCH($B32,Pupils!$A$7:$A$159,0)),INDEX(Pupils!$BK$7:$BK$159,MATCH($B32,Pupils!$A$7:$A$159,0)),INDEX(Pupils!$BO$7:$BO$159,MATCH($B32,Pupils!$A$7:$A$159,0))))/SUM(INDEX(Pupils!$BH$7:$BS$159,MATCH($B32,Pupils!$A$7:$A$159,0),0))","v":0.4585674157303371},{"$f":"(SUM(INDEX(Pupils!$BL$7:$BL$159,MATCH($B32,Pupils!$A$7:$A$159,0)),INDEX(Pupils!$BM$7:$BM$159,MATCH($B32,Pupils!$A$7:$A$159,0)),INDEX(Pupils!$BP$7:$BP$159,MATCH($B32,Pupils!$A$7:$A$159,0))))/SUM(INDEX(Pupils!$BH$7:$BS$159,MATCH($B32,Pupils!$A$7:$A$159,0),0))","v":0.476123595505618},{"$f":"(SUM(INDEX(Pupils!$BI$7:$BI$159,MATCH($B32,Pupils!$A$7:$A$159,0)),INDEX(Pupils!$BJ$7:$BJ$159,MATCH($B32,Pupils!$A$7:$A$159,0))))/SUM(INDEX(Pupils!$BH$7:$BS$159,MATCH($B32,Pupils!$A$7:$A$159,0),0))","v":5.8988764044943819E-2},{"$f":"(SUM(INDEX(Pupils!$BQ$7:$BQ$159,MATCH($B32,Pupils!$A$7:$A$159,0)),INDEX(Pupils!$BR$7:$BR$159,MATCH($B32,Pupils!$A$7:$A$159,0)),INDEX(Pupils!$BN$7:$BN$159,MATCH($B32,Pupils!$A$7:$A$159,0)),INDEX(Pupils!$BS$7:$BS$159,MATCH($B32,Pupils!$A$7:$A$159,0))))/SUM(INDEX(Pupils!$BH$7:$BS$159,MATCH($B32,Pupils!$A$7:$A$159,0),0))","v":6.3202247191011234E-3},{"$f":"IFERROR((VLOOKUP(B32,Funding,Funding!$C$2,FALSE)), \"x\")","v":42087394.090000004},{"$f":"IFERROR((AA32/VLOOKUP(B32,Funding,Funding!$D$2,FALSE)), \"x\")","v":0.18827557792284005},{"$f":"IFERROR((AA32/(VLOOKUP(B32,Pupils,Pupils!$M$3,FALSE)+VLOOKUP(B32,Pupils,Pupils!$P$3,FALSE))), \"x\")","v":4735.838200742658},{"$f":"IFERROR((VLOOKUP(B32,Funding,Funding!$E$2,FALSE)), \"x\")","v":40476926.087760523},{"$f":"IFERROR((AD32/VLOOKUP(B32,Funding,Funding!$F$2,FALSE)), \"x\")","v":0.17623691407124648},{"$f":"IFERROR((AD32/(VLOOKUP(B32,Pupils,Pupils!$R$3,FALSE)+VLOOKUP(B32,Pupils,Pupils!$U$3,FALSE))), \"x\")","v":4629.1086559652931},{"$f":"IFERROR((VLOOKUP(B32,Funding,Funding!$G$2,FALSE)), \"x\")","v":41320007.419236504},{"$f":"IFERROR((AG32/VLOOKUP(B32,Funding,Funding!$H$2,FALSE)), \"x\")","v":0.17854696280858778},{"$f":"IFERROR((AG32/(VLOOKUP(B32,Pupils,Pupils!$W$3,FALSE)+VLOOKUP(B32,Pupils,Pupils!$Z$3,FALSE))), \"x\")","v":5035.9545910099332},{"$f":"IFERROR((VLOOKUP(B32,Funding,Funding!$I$2,FALSE)), \"x\")","v":41794875.316645853},{"$f":"IFERROR((AJ32/VLOOKUP(B32,Funding,Funding!$J$2,FALSE)), \"x\")","v":0.17455916450520548},null,{"$f":"IFERROR((VLOOKUP($B32,Funding,Funding!$EC$2,FALSE)), \"x\")","v":25630691},{"$f":"IFERROR((AM32/VLOOKUP($B32,Funding,Funding!$EU$2,FALSE)), \"x\")","v":0.10884062301886371},{"$f":"IFERROR((AM32/(VLOOKUP($B32,Pupils,Pupils!$D$3,FALSE)+VLOOKUP($B32,Pupils,Pupils!$E$3,FALSE))), \"x\")","v":"x"},{"$f":"IFERROR((VLOOKUP($B32,Funding,Funding!$DA$2,FALSE)), \"x\")","v":25675123},{"$f":"IFERROR((AP32/VLOOKUP($B32,Funding,Funding!$DT$2,FALSE)), \"x\")","v":0.10725206096954079},{"$f":"IFERROR((AP32/(VLOOKUP($B32,Pupils,Pupils!$G$3,FALSE)+VLOOKUP($B32,Pupils,Pupils!$H$3,FALSE))), \"x\")","v":2687.9316373534339},{"$f":"IFERROR((VLOOKUP($B32,Funding,Funding!$CE$2,FALSE)), \"x\")","v":25349741},{"$f":"IFERROR((AS32/VLOOKUP($B32,Funding,Funding!$CR$2,FALSE)), \"x\")","v":0.10737956236065506},{"$f":"IFERROR((AS32/(VLOOKUP($B32,Pupils,Pupils!$J$3,FALSE)+VLOOKUP($B32,Pupils,Pupils!$K$3,FALSE))), \"x\")","v":2736.075661090124},{"$f":"IFERROR((VLOOKUP($B32,Funding,Funding!$BM$2,FALSE)), \"x\")","v":28596170.09},{"$f":"IFERROR((AV32/VLOOKUP($B32,Funding,Funding!$BY$2,FALSE)), \"x\")","v":0.12494828099450675},{"$f":"IFERROR((AV32/(VLOOKUP($B32,Pupils,Pupils!$M$3,FALSE)+VLOOKUP($B32,Pupils,Pupils!$P$3,FALSE))), \"x\")","v":3217.7529076178689},{"$f":"IFERROR((VLOOKUP($B32,Funding,Funding!$AQ$2,FALSE)), \"x\")","v":34506603},{"$f":"IFERROR((AY32/VLOOKUP($B32,Funding,Funding!$BE$2,FALSE)), \"x\")","v":0.14215304612699226},{"$f":"IFERROR((AY32/(VLOOKUP($B32,Pupils,Pupils!$R$3,FALSE)+VLOOKUP($B32,Pupils,Pupils!$U$3,FALSE))), \"x\")","v":3946.3178179322963},{"$f":"IFERROR((VLOOKUP($B32,Funding,Funding!$S$2,FALSE)), \"x\")","v":31388638},{"$f":"IFERROR((BB32/VLOOKUP($B32,Funding,Funding!$AH$2,FALSE)), \"x\")","v":0.12967013852218054},{"$f":"IFERROR((BB32/(VLOOKUP(B32,Pupils,Pupils!$W$3,FALSE)+VLOOKUP(B32,Pupils,Pupils!$Z$3,FALSE))), \"x\")","v":3825.5500304692259},{"$f":"IFERROR((VLOOKUP($B32,Funding,Funding!$GX$2,FALSE)), \"x\")","v":39044793},{"$f":"IFERROR((BE32/VLOOKUP($B32,Funding,Funding!$HC$2,FALSE)), \"x\")","v":0.15868602140533572},{"$f":"IFERROR((BE32/(VLOOKUP($B32,Pupils,Pupils!$D$3,FALSE)+VLOOKUP($B32,Pupils,Pupils!$E$3,FALSE))), \"x\")","v":"x"},{"$f":"IFERROR((VLOOKUP($B32,Funding,Funding!$GP$2,FALSE)), \"x\")","v":47503727},{"$f":"IFERROR((BH32/VLOOKUP($B32,Funding,Funding!$GU$2,FALSE)), \"x\")","v":0.19028496194026531},{"$f":"IFERROR((BH32/(VLOOKUP($B32,Pupils,Pupils!$G$3,FALSE)+VLOOKUP($B32,Pupils,Pupils!$H$3,FALSE))), \"x\")","v":4973.1707495812398},{"$f":"IFERROR((VLOOKUP($B32,Funding,Funding!$GH$2,FALSE)), \"x\")","v":46956763},{"$f":"IFERROR((BK32/VLOOKUP($B32,Funding,Funding!$GM$2,FALSE)), \"x\")","v":0.19890559730131221},{"$f":"IFERROR((BK32/(VLOOKUP($B32,Pupils,Pupils!$J$3,FALSE)+VLOOKUP($B32,Pupils,Pupils!$K$3,FALSE))), \"x\")","v":5068.1881273610361},{"$f":"IFERROR((VLOOKUP($B32,Funding,Funding!$FZ$2,FALSE)), \"x\")","v":46302732},{"$f":"IFERROR((BN32/VLOOKUP($B32,Funding,Funding!$GE$2,FALSE)), \"x\")","v":0.20434552049015811},{"$f":"IFERROR((BN32/(VLOOKUP($B32,Pupils,Pupils!$M$3,FALSE)+VLOOKUP($B32,Pupils,Pupils!$P$3,FALSE))), \"x\")","v":5210.1645099583666},{"$f":"IFERROR((VLOOKUP($B32,Funding,Funding!$FD$2,FALSE)), \"x\")","v":32145200},{"$f":"IFERROR((BQ32/VLOOKUP($B32,Funding,Funding!$FR$2,FALSE)), \"x\")","v":0.16220853327637272},{"$f":"IFERROR((BQ32/(VLOOKUP($B32,Pupils,Pupils!$R$3,FALSE)+VLOOKUP($B32,Pupils,Pupils!$U$3,FALSE))), \"x\")","v":3676.2580054894784},{"$f":"(VLOOKUP(B32,Funding,Funding!$HK$2,FALSE)+VLOOKUP(B32,Funding,Funding!$HL$2,FALSE)+VLOOKUP(B32,Funding,Funding!$HM$2,FALSE))/(VLOOKUP(B32,Funding,Funding!$HN$2,FALSE))","v":0.17943743937924345},{"$f":"IFERROR((VLOOKUP(B32,Other_data,Other!$D$3,FALSE)+VLOOKUP(B32,Other_data,Other!$E$3,FALSE)+VLOOKUP(B32,Other_data,Other!$F$3,FALSE)), \"x\")","v":1950},{"$f":"(VLOOKUP(B32,Other_data,Other!$AK$3,FALSE)+VLOOKUP(B32,Other_data,Other!$AL$3,FALSE))/VLOOKUP(B32,Other_data,Other!$AJ$3,FALSE)","v":3.5241607499827667E-2},{"$f":"(VLOOKUP(B32,Other_data,Other!$AR$3,FALSE)+VLOOKUP(B32,Other_data,Other!$AS$3,FALSE))/VLOOKUP(B32,Other_data,Other!$AQ$3,FALSE)","v":4.8752705319512472E-2},{"$f":"VLOOKUP(B32,Other_data,Other!$AP$3,FALSE)/VLOOKUP(B32,Other_data,Other!$AJ$3,FALSE)","v":5.1871510305369819E-3},{"$f":"VLOOKUP(B32,Other_data,Other!$AW$3,FALSE)/VLOOKUP(B32,Other_data,Other!$AQ$3,FALSE)","v":8.5146372024148542E-3}]
[27,201,"City of London",{"$f":"IFERROR((VLOOKUP($B33,Pupils,Pupils!$D$3,FALSE)/VLOOKUP($B33,Pupils,Pupils!$C$3,FALSE)), \"x\")","v":2.2371364653243847E-3},{"$f":"IFERROR((VLOOKUP($B33,Pupils,Pupils!$G$3,FALSE)/VLOOKUP($B33,Pupils,Pupils!$F$3,FALSE)),\"x\")","v":1.7699115044247787E-3},{"$f":"IFERROR((VLOOKUP($B33,Pupils,Pupils!$J$3,FALSE)/VLOOKUP($B33,Pupils,Pupils!$I$3,FALSE)), \"x\")","v":1.7429193899782135E-3},{"$f":"IFERROR((VLOOKUP($B33,Pupils,Pupils!$M$3,FALSE)/VLOOKUP($B33,Pupils,Pupils!$L$3,FALSE)), \"x\")","v":1.7338534893801473E-3},{"$f":"IFERROR((VLOOKUP($B33,Pupils,Pupils!$R$3,FALSE)/VLOOKUP($B33,Pupils,Pupils!$Q$3,FALSE)), \"x\")","v":1.2953367875647669E-3},{"$f":"IFERROR((VLOOKUP($B33,Pupils,Pupils!$W$3,FALSE)/VLOOKUP($B33,Pupils,Pupils!$V$3,FALSE)), \"x\")","v":2.5717959708529792E-3},{"$f":"IFERROR(((VLOOKUP($B33,Pupils,Pupils!$D$3,FALSE)+VLOOKUP($B33,Pupils,Pupils!$E$3,FALSE))/VLOOKUP($B33,Pupils,Pupils!$C$3,FALSE)), \"x\")","v":0.10469798657718121},{"$f":"IFERROR(((VLOOKUP($B33,Pupils,Pupils!$G$3,FALSE)+VLOOKUP($B33,Pupils,Pupils!$H$3,FALSE))/VLOOKUP($B33,Pupils,Pupils!$F$3,FALSE)), \"x\")","v":9.8672566371681411E-2},{"$f":"IFERROR(((VLOOKUP($B33,Pupils,Pupils!$J$3,FALSE)+VLOOKUP($B33,Pupils,Pupils!$K$3,FALSE))/VLOOKUP($B33,Pupils,Pupils!$I$3,FALSE)), \"x\")","v":0.10718954248366012},{"$f":"IFERROR(((VLOOKUP($B33,Pupils,Pupils!$M$3,FALSE)+VLOOKUP($B33,Pupils,Pupils!$P$3,FALSE))/VLOOKUP($B33,Pupils,Pupils!$L$3,FALSE)), \"x\")","v":0.10619852622453403},{"$f":"IFERROR(((VLOOKUP($B33,Pupils,Pupils!$R$3,FALSE)+VLOOKUP($B33,Pupils,Pupils!$U$3,FALSE))/VLOOKUP($B33,Pupils,Pupils!$Q$3,FALSE)), \"x\")","v":7.987910189982729E-2},{"$f":"IFERROR(((VLOOKUP($B33,Pupils,Pupils!$W$3,FALSE)+VLOOKUP($B33,Pupils,Pupils!$Z$3,FALSE))/VLOOKUP($B33,Pupils,Pupils!$V$3,FALSE)), \"x\")","v":9.4299185597942564E-2},{"$f":"(SUM(INDEX(Pupils!$AB$7:$AB$159,MATCH($B33,Pupils!$A$7:$A$159,0)),INDEX(Pupils!$AC$7:$AC$159,MATCH($B33,Pupils!$A$7:$A$159,0)),INDEX(Pupils!$AD$7:$AD$159,MATCH($B33,Pupils!$A$7:$A$159,0)),INDEX(Pupils!$AE$7:$AE$159,MATCH($B33,Pupils!$A$7:$A$159,0))))/SUM(INDEX(Pupils!$AB$7:$AM$159,MATCH($B33,Pupils!$A$7:$A$159,0),0))","v":0.31578947368421051},{"$f":"SUM(INDEX(Pupils!$AF$7:$AF$159,MATCH($B33,Pupils!$A$7:$A$159,0)))/SUM(INDEX(Pupils!$AB$7:$AM$159,MATCH($B33,Pupils!$A$7:$A$159,0),0))","v":0.31578947368421051},{"$f":"SUM(INDEX(Pupils!$AG$7:$AG$159,MATCH($B33,Pupils!$A$7:$A$159,0)))/SUM(INDEX(Pupils!$AB$7:$AM$159,MATCH($B33,Pupils!$A$7:$A$159,0),0))","v":0.21052631578947367},{"$f":"(SUM(INDEX(Pupils!$AH$7:$AH$159,MATCH($B33,Pupils!$A$7:$A$159,0)),INDEX(Pupils!$AI$7:$AI$159,MATCH($B33,Pupils!$A$7:$A$159,0)),INDEX(Pupils!$AJ$7:$AJ$159,MATCH($B33,Pupils!$A$7:$A$159,0))))/SUM(INDEX(Pupils!$AB$7:$AM$159,MATCH($B33,Pupils!$A$7:$A$159,0),0))","v":0},{"$f":"SUM(INDEX(Pupils!$AK$7:$AK$159,MATCH($B33,Pupils!$A$7:$A$159,0)))/SUM(INDEX(Pupils!$AB$7:$AM$159,MATCH($B33,Pupils!$A$7:$A$159,0),0))","v":0},{"$f":"SUM(INDEX(Pupils!$AL$7:$AL$159,MATCH($B33,Pupils!$A$7:$A$159,0)))/SUM(INDEX(Pupils!$AB$7:$AM$159,MATCH($B33,Pupils!$A$7:$A$159,0),0))","v":0.15789473684210525},{"$f":"SUM(INDEX(Pupils!$AM$7:$AM$159,MATCH($B33,Pupils!$A$7:$A$159,0)))/SUM(INDEX(Pupils!$AB$7:$AM$159,MATCH($B33,Pupils!$A$7:$A$159,0),0))","v":0},{"$f":"(SUM(INDEX(Pupils!$BH$7:$BH$159,MATCH($B33,Pupils!$A$7:$A$159,0)),INDEX(Pupils!$BK$7:$BK$159,MATCH($B33,Pupils!$A$7:$A$159,0)),INDEX(Pupils!$BO$7:$BO$159,MATCH($B33,Pupils!$A$7:$A$159,0))))/SUM(INDEX(Pupils!$BH$7:$BS$159,MATCH($B33,Pupils!$A$7:$A$159,0),0))","v":1},{"$f":"(SUM(INDEX(Pupils!$BL$7:$BL$159,MATCH($B33,Pupils!$A$7:$A$159,0)),INDEX(Pupils!$BM$7:$BM$159,MATCH($B33,Pupils!$A$7:$A$159,0)),INDEX(Pupils!$BP$7:$BP$159,MATCH($B33,Pupils!$A$7:$A$159,0))))/SUM(INDEX(Pupils!$BH$7:$BS$159,MATCH($B33,Pupils!$A$7:$A$159,0),0))","v":0},{"$f":"(SUM(INDEX(Pupils!$BI$7:$BI$159,MATCH($B33,Pupils!$A$7:$A$159,0)),INDEX(Pupils!$BJ$7:$BJ$159,MATCH($B33,Pupils!$A$7:$A$159,0))))/SUM(INDEX(Pupils!$BH$7:$BS$159,MATCH($B33,Pupils!$A$7:$A$159,0),0))","v":0},{"$f":"(SUM(INDEX(Pupils!$BQ$7:$BQ$159,MATCH($B33,Pupils!$A$7:$A$159,0)),INDEX(Pupils!$BR$7:$BR$159,MATCH($B33,Pupils!$A$7:$A$159,0)),INDEX(Pupils!$BN$7:$BN$159,MATCH($B33,Pupils!$A$7:$A$159,0)),INDEX(Pupils!$BS$7:$BS$159,MATCH($B33,Pupils!$A$7:$A$159,0))))/SUM(INDEX(Pupils!$BH$7:$BS$159,MATCH($B33,Pupils!$A$7:$A$159,0),0))","v":0},{"$f":"IFERROR((VLOOKUP(B33,Funding,Funding!$C$2,FALSE)), \"x\")","v":142000},{"$f":"IFERROR((AA33/VLOOKUP(B33,Funding,Funding!$D$2,FALSE)), \"x\")","v":6.0974088088801344E-2},{"$f":"IFERROR((AA33/(VLOOKUP(B33,Pupils,Pupils!$M$3,FALSE)+VLOOKUP(B33,Pupils,Pupils!$P$3,FALSE))), \"x\")","v":579.59183673469386},{"$f":"IFERROR((VLOOKUP(B33,Funding,Funding!$E$2,FALSE)), \"x\")","v":330640.55486959842},{"$f":"IFERROR((AD33/VLOOKUP(B33,Funding,Funding!$F$2,FALSE)), \"x\")","v":0.13342223309450049},{"$f":"IFERROR((AD33/(VLOOKUP(B33,Pupils,Pupils!$R$3,FALSE)+VLOOKUP(B33,Pupils,Pupils!$U$3,FALSE))), \"x\")","v":1787.2462425383699},{"$f":"IFERROR((VLOOKUP(B33,Funding,Funding!$G$2,FALSE)), \"x\")","v":315084.10520701128},{"$f":"IFERROR((AG33/VLOOKUP(B33,Funding,Funding!$H$2,FALSE)), \"x\")","v":0.12748940921740082},{"$f":"IFERROR((AG33/(VLOOKUP(B33,Pupils,Pupils!$W$3,FALSE)+VLOOKUP(B33,Pupils,Pupils!$Z$3,FALSE))), \"x\")","v":1432.2004782136876},{"$f":"IFERROR((VLOOKUP(B33,Funding,Funding!$I$2,FALSE)), \"x\")","v":319837.74348729034},{"$f":"IFERROR((AJ33/VLOOKUP(B33,Funding,Funding!$J$2,FALSE)), \"x\")","v":0.13086650715519244},null,{"$f":"IFERROR((VLOOKUP($B33,Funding,Funding!$EC$2,FALSE)), \"x\")","v":193989},{"$f":"IFERROR((AM33/VLOOKUP($B33,Funding,Funding!$EU$2,FALSE)), \"x\")","v":8.3950483716361102E-2},{"$f":"IFERROR((AM33/(VLOOKUP($B33,Pupils,Pupils!$D$3,FALSE)+VLOOKUP($B33,Pupils,Pupils!$E$3,FALSE))), \"x\")","v":829.01282051282055},{"$f":"IFERROR((VLOOKUP($B33,Funding,Funding!$DA$2,FALSE)), \"x\")","v":144000},{"$f":"IFERROR((AP33/VLOOKUP($B33,Funding,Funding!$DT$2,FALSE)), \"x\")","v":5.7080906238665574E-2},{"$f":"IFERROR((AP33/(VLOOKUP($B33,Pupils,Pupils!$G$3,FALSE)+VLOOKUP($B33,Pupils,Pupils!$H$3,FALSE))), \"x\")","v":645.73991031390131},{"$f":"IFERROR((VLOOKUP($B33,Funding,Funding!$CE$2,FALSE)), \"x\")","v":142000},{"$f":"IFERROR((AS33/VLOOKUP($B33,Funding,Funding!$CR$2,FALSE)), \"x\")","v":5.762825635158756E-2},{"$f":"IFERROR((AS33/(VLOOKUP($B33,Pupils,Pupils!$J$3,FALSE)+VLOOKUP($B33,Pupils,Pupils!$K$3,FALSE))), \"x\")","v":577.23577235772359},{"$f":"IFERROR((VLOOKUP($B33,Funding,Funding!$BM$2,FALSE)), \"x\")","v":142000},{"$f":"IFERROR((AV33/VLOOKUP($B33,Funding,Funding!$BY$2,FALSE)), \"x\")","v":5.8945620589456203E-2},{"$f":"IFERROR((AV33/(VLOOKUP($B33,Pupils,Pupils!$M$3,FALSE)+VLOOKUP($B33,Pupils,Pupils!$P$3,FALSE))), \"x\")","v":579.59183673469386},{"$f":"IFERROR((VLOOKUP($B33,Funding,Funding!$AQ$2,FALSE)), \"x\")","v":353195},{"$f":"IFERROR((AY33/VLOOKUP($B33,Funding,Funding!$BE$2,FALSE)), \"x\")","v":0.14528794734677086},{"$f":"IFERROR((AY33/(VLOOKUP($B33,Pupils,Pupils!$R$3,FALSE)+VLOOKUP($B33,Pupils,Pupils!$U$3,FALSE))), \"x\")","v":1909.1621621621621},{"$f":"IFERROR((VLOOKUP($B33,Funding,Funding!$S$2,FALSE)), \"x\")","v":272000},{"$f":"IFERROR((BB33/VLOOKUP($B33,Funding,Funding!$AH$2,FALSE)), \"x\")","v":0.1136469040828486},{"$f":"IFERROR((BB33/(VLOOKUP(B33,Pupils,Pupils!$W$3,FALSE)+VLOOKUP(B33,Pupils,Pupils!$Z$3,FALSE))), \"x\")","v":1236.3636363636363},{"$f":"IFERROR((VLOOKUP($B33,Funding,Funding!$GX$2,FALSE)), \"x\")","v":206974},{"$f":"IFERROR((BE33/VLOOKUP($B33,Funding,Funding!$HC$2,FALSE)), \"x\")","v":8.0396517267029594E-2},{"$f":"IFERROR((BE33/(VLOOKUP($B33,Pupils,Pupils!$D$3,FALSE)+VLOOKUP($B33,Pupils,Pupils!$E$3,FALSE))), \"x\")","v":884.50427350427356},{"$f":"IFERROR((VLOOKUP($B33,Funding,Funding!$GP$2,FALSE)), \"x\")","v":39666},{"$f":"IFERROR((BH33/VLOOKUP($B33,Funding,Funding!$GU$2,FALSE)), \"x\")","v":1.7372642883264827E-2},{"$f":"IFERROR((BH33/(VLOOKUP($B33,Pupils,Pupils!$G$3,FALSE)+VLOOKUP($B33,Pupils,Pupils!$H$3,FALSE))), \"x\")","v":177.87443946188341},{"$f":"IFERROR((VLOOKUP($B33,Funding,Funding!$GH$2,FALSE)), \"x\")","v":99213},{"$f":"IFERROR((BK33/VLOOKUP($B33,Funding,Funding!$GM$2,FALSE)), \"x\")","v":4.3338701983313598E-2},{"$f":"IFERROR((BK33/(VLOOKUP($B33,Pupils,Pupils!$J$3,FALSE)+VLOOKUP($B33,Pupils,Pupils!$K$3,FALSE))), \"x\")","v":403.30487804878049},{"$f":"IFERROR((VLOOKUP($B33,Funding,Funding!$FZ$2,FALSE)), \"x\")","v":106831.69},{"$f":"IFERROR((BN33/VLOOKUP($B33,Funding,Funding!$GE$2,FALSE)), \"x\")","v":4.08108965929629E-2},{"$f":"IFERROR((BN33/(VLOOKUP($B33,Pupils,Pupils!$M$3,FALSE)+VLOOKUP($B33,Pupils,Pupils!$P$3,FALSE))), \"x\")","v":436.04771428571428},{"$f":"IFERROR((VLOOKUP($B33,Funding,Funding!$FD$2,FALSE)), \"x\")","v":376948},{"$f":"IFERROR((BQ33/VLOOKUP($B33,Funding,Funding!$FR$2,FALSE)), \"x\")","v":0.15739429327311719},{"$f":"IFERROR((BQ33/(VLOOKUP($B33,Pupils,Pupils!$R$3,FALSE)+VLOOKUP($B33,Pupils,Pupils!$U$3,FALSE))), \"x\")","v":2037.5567567567568},{"$f":"(VLOOKUP(B33,Funding,Funding!$HK$2,FALSE)+VLOOKUP(B33,Funding,Funding!$HL$2,FALSE)+VLOOKUP(B33,Funding,Funding!$HM$2,FALSE))/(VLOOKUP(B33,Funding,Funding!$HN$2,FALSE))","v":1},{"$f":"IFERROR((VLOOKUP(B33,Other_data,Other!$D$3,FALSE)+VLOOKUP(B33,Other_data,Other!$E$3,FALSE)+VLOOKUP(B33,Other_data,Other!$F$3,FALSE)), \"x\")","v":0},{"$f":"(VLOOKUP(B33,Other_data,Other!$AK$3,FALSE)+VLOOKUP(B33,Other_data,Other!$AL$3,FALSE))/VLOOKUP(B33,Other_data,Other!$AJ$3,FALSE)","v":3.2094594594594593E-2},{"$f":"(VLOOKUP(B33,Other_data,Other!$AR$3,FALSE)+VLOOKUP(B33,Other_data,Other!$AS$3,FALSE))/VLOOKUP(B33,Other_data,Other!$AQ$3,FALSE)","v":3.3439490445859872E-2},{"$f":"VLOOKUP(B33,Other_data,Other!$AP$3,FALSE)/VLOOKUP(B33,Other_data,Other!$AJ$3,FALSE)","v":6.7567567567567571E-3},{"$f":"VLOOKUP(B33,Other_data,Other!$AW$3,FALSE)/VLOOKUP(B33,Other_data,Other!$AQ$3,FALSE)","v":4.7770700636942673E-3}]
[28,908,"Cornwall",{"$f":"IFERROR((VLOOKUP($B34,Pupils,Pupils!$D$3,FALSE)/VLOOKUP($B34,Pupils,Pupils!$C$3,FALSE)), \"x\")","v":2.7767908387766816E-2},{"$f":"IFERROR((VLOOKUP($B34,Pupils,Pupils!$G$3,FALSE)/VLOOKUP($B34,Pupils,Pupils!$F$3,FALSE)),\"x\")","v":2.9319458209448299E-2},{"$f":"IFERROR((VLOOKUP($B34,Pupils,Pupils!$J$3,FALSE)/VLOOKUP($B34,Pupils,Pupils!$I$3,FALSE)), \"x\")","v":2.7952026971011689E-2},{"$f":"IFERROR((VLOOKUP($B34,Pupils,Pupils!$M$3,FALSE)/VLOOKUP($B34,Pupils,Pupils!$L$3,FALSE)), \"x\")","v":2.8370557604386802E-2},{"$f":"IFERROR((VLOOKUP($B34,Pupils,Pupils!$R$3,FALSE)/VLOOKUP($B34,Pupils,Pupils!$Q$3,FALSE)), \"x\")","v":2.827015851137147E-2},{"$f":"IFERROR((VLOOKUP($B34,Pupils,Pupils!$W$3,FALSE)/VLOOKUP($B34,Pupils,Pupils!$V$3,FALSE)), \"x\")","v":2.798866699675414E-2},{"$f":"IFERROR(((VLOOKUP($B34,Pupils,Pupils!$D$3,FALSE)+VLOOKUP($B34,Pupils,Pupils!$E$3,FALSE))/VLOOKUP($B34,Pupils,Pupils!$C$3,FALSE)), \"x\")","v":0.19212058268878623},{"$f":"IFERROR(((VLOOKUP($B34,Pupils,Pupils!$G$3,FALSE)+VLOOKUP($B34,Pupils,Pupils!$H$3,FALSE))/VLOOKUP($B34,Pupils,Pupils!$F$3,FALSE)), \"x\")","v":0.20255203171456887},{"$f":"IFERROR(((VLOOKUP($B34,Pupils,Pupils!$J$3,FALSE)+VLOOKUP($B34,Pupils,Pupils!$K$3,FALSE))/VLOOKUP($B34,Pupils,Pupils!$I$3,FALSE)), \"x\")","v":0.20767126316080362},{"$f":"IFERROR(((VLOOKUP($B34,Pupils,Pupils!$M$3,FALSE)+VLOOKUP($B34,Pupils,Pupils!$P$3,FALSE))/VLOOKUP($B34,Pupils,Pupils!$L$3,FALSE)), \"x\")","v":0.19659111313692179},{"$f":"IFERROR(((VLOOKUP($B34,Pupils,Pupils!$R$3,FALSE)+VLOOKUP($B34,Pupils,Pupils!$U$3,FALSE))/VLOOKUP($B34,Pupils,Pupils!$Q$3,FALSE)), \"x\")","v":0.18937284631288767},{"$f":"IFERROR(((VLOOKUP($B34,Pupils,Pupils!$W$3,FALSE)+VLOOKUP($B34,Pupils,Pupils!$Z$3,FALSE))/VLOOKUP($B34,Pupils,Pupils!$V$3,FALSE)), \"x\")","v":0.17941629531825934},{"$f":"(SUM(INDEX(Pupils!$AB$7:$AB$159,MATCH($B34,Pupils!$A$7:$A$159,0)),INDEX(Pupils!$AC$7:$AC$159,MATCH($B34,Pupils!$A$7:$A$159,0)),INDEX(Pupils!$AD$7:$AD$159,MATCH($B34,Pupils!$A$7:$A$159,0)),INDEX(Pupils!$AE$7:$AE$159,MATCH($B34,Pupils!$A$7:$A$159,0))))/SUM(INDEX(Pupils!$AB$7:$AM$159,MATCH($B34,Pupils!$A$7:$A$159,0),0))","v":0.31809423716938168},{"$f":"SUM(INDEX(Pupils!$AF$7:$AF$159,MATCH($B34,Pupils!$A$7:$A$159,0)))/SUM(INDEX(Pupils!$AB$7:$AM$159,MATCH($B34,Pupils!$A$7:$A$159,0),0))","v":0.2159747766684183},{"$f":"SUM(INDEX(Pupils!$AG$7:$AG$159,MATCH($B34,Pupils!$A$7:$A$159,0)))/SUM(INDEX(Pupils!$AB$7:$AM$159,MATCH($B34,Pupils!$A$7:$A$159,0),0))","v":0.21790155894202137},{"$f":"(SUM(INDEX(Pupils!$AH$7:$AH$159,MATCH($B34,Pupils!$A$7:$A$159,0)),INDEX(Pupils!$AI$7:$AI$159,MATCH($B34,Pupils!$A$7:$A$159,0)),INDEX(Pupils!$AJ$7:$AJ$159,MATCH($B34,Pupils!$A$7:$A$159,0))))/SUM(INDEX(Pupils!$AB$7:$AM$159,MATCH($B34,Pupils!$A$7:$A$159,0),0))","v":3.7134349273077599E-2},{"$f":"SUM(INDEX(Pupils!$AK$7:$AK$159,MATCH($B34,Pupils!$A$7:$A$159,0)))/SUM(INDEX(Pupils!$AB$7:$AM$159,MATCH($B34,Pupils!$A$7:$A$159,0),0))","v":4.6593098616220005E-2},{"$f":"SUM(INDEX(Pupils!$AL$7:$AL$159,MATCH($B34,Pupils!$A$7:$A$159,0)))/SUM(INDEX(Pupils!$AB$7:$AM$159,MATCH($B34,Pupils!$A$7:$A$159,0),0))","v":0.1233140655105973},{"$f":"SUM(INDEX(Pupils!$AM$7:$AM$159,MATCH($B34,Pupils!$A$7:$A$159,0)))/SUM(INDEX(Pupils!$AB$7:$AM$159,MATCH($B34,Pupils!$A$7:$A$159,0),0))","v":4.0987913820283765E-2},{"$f":"(SUM(INDEX(Pupils!$BH$7:$BH$159,MATCH($B34,Pupils!$A$7:$A$159,0)),INDEX(Pupils!$BK$7:$BK$159,MATCH($B34,Pupils!$A$7:$A$159,0)),INDEX(Pupils!$BO$7:$BO$159,MATCH($B34,Pupils!$A$7:$A$159,0))))/SUM(INDEX(Pupils!$BH$7:$BS$159,MATCH($B34,Pupils!$A$7:$A$159,0),0))","v":0.68655303030303028},{"$f":"(SUM(INDEX(Pupils!$BL$7:$BL$159,MATCH($B34,Pupils!$A$7:$A$159,0)),INDEX(Pupils!$BM$7:$BM$159,MATCH($B34,Pupils!$A$7:$A$159,0)),INDEX(Pupils!$BP$7:$BP$159,MATCH($B34,Pupils!$A$7:$A$159,0))))/SUM(INDEX(Pupils!$BH$7:$BS$159,MATCH($B34,Pupils!$A$7:$A$159,0),0))","v":0.21685606060606061},{"$f":"(SUM(INDEX(Pupils!$BI$7:$BI$159,MATCH($B34,Pupils!$A$7:$A$159,0)),INDEX(Pupils!$BJ$7:$BJ$159,MATCH($B34,Pupils!$A$7:$A$159,0))))/SUM(INDEX(Pupils!$BH$7:$BS$159,MATCH($B34,Pupils!$A$7:$A$159,0),0))","v":7.5284090909090912E-2},{"$f":"(SUM(INDEX(Pupils!$BQ$7:$BQ$159,MATCH($B34,Pupils!$A$7:$A$159,0)),INDEX(Pupils!$BR$7:$BR$159,MATCH($B34,Pupils!$A$7:$A$159,0)),INDEX(Pupils!$BN$7:$BN$159,MATCH($B34,Pupils!$A$7:$A$159,0)),INDEX(Pupils!$BS$7:$BS$159,MATCH($B34,Pupils!$A$7:$A$159,0))))/SUM(INDEX(Pupils!$BH$7:$BS$159,MATCH($B34,Pupils!$A$7:$A$159,0),0))","v":2.130681818181818E-2},{"$f":"IFERROR((VLOOKUP(B34,Funding,Funding!$C$2,FALSE)), \"x\")","v":25199000},{"$f":"IFERROR((AA34/VLOOKUP(B34,Funding,Funding!$D$2,FALSE)), \"x\")","v":7.7911640394838541E-2},{"$f":"IFERROR((AA34/(VLOOKUP(B34,Pupils,Pupils!$M$3,FALSE)+VLOOKUP(B34,Pupils,Pupils!$P$3,FALSE))), \"x\")","v":1770.46300850137},{"$f":"IFERROR((VLOOKUP(B34,Funding,Funding!$E$2,FALSE)), \"x\")","v":27940568.491852641},{"$f":"IFERROR((AD34/VLOOKUP(B34,Funding,Funding!$F$2,FALSE)), \"x\")","v":8.4110808824689118E-2},{"$f":"IFERROR((AD34/(VLOOKUP(B34,Pupils,Pupils!$R$3,FALSE)+VLOOKUP(B34,Pupils,Pupils!$U$3,FALSE))), \"x\")","v":2033.6682794855988},{"$f":"IFERROR((VLOOKUP(B34,Funding,Funding!$G$2,FALSE)), \"x\")","v":31221922.456469551},{"$f":"IFERROR((AG34/VLOOKUP(B34,Funding,Funding!$H$2,FALSE)), \"x\")","v":9.239305873416942E-2},{"$f":"IFERROR((AG34/(VLOOKUP(B34,Pupils,Pupils!$W$3,FALSE)+VLOOKUP(B34,Pupils,Pupils!$Z$3,FALSE))), \"x\")","v":2393.4014914886584},{"$f":"IFERROR((VLOOKUP(B34,Funding,Funding!$I$2,FALSE)), \"x\")","v":31498453.676961355},{"$f":"IFERROR((AJ34/VLOOKUP(B34,Funding,Funding!$J$2,FALSE)), \"x\")","v":9.2821054843614942E-2},null,{"$f":"IFERROR((VLOOKUP($B34,Funding,Funding!$EC$2,FALSE)), \"x\")","v":15350639},{"$f":"IFERROR((AM34/VLOOKUP($B34,Funding,Funding!$EU$2,FALSE)), \"x\")","v":4.2931050348214636E-2},{"$f":"IFERROR((AM34/(VLOOKUP($B34,Pupils,Pupils!$D$3,FALSE)+VLOOKUP($B34,Pupils,Pupils!$E$3,FALSE))), \"x\")","v":1091.8727505512484},{"$f":"IFERROR((VLOOKUP($B34,Funding,Funding!$DA$2,FALSE)), \"x\")","v":15385169.629999999},{"$f":"IFERROR((AP34/VLOOKUP($B34,Funding,Funding!$DT$2,FALSE)), \"x\")","v":4.2406617948913088E-2},{"$f":"IFERROR((AP34/(VLOOKUP($B34,Pupils,Pupils!$G$3,FALSE)+VLOOKUP($B34,Pupils,Pupils!$H$3,FALSE))), \"x\")","v":1045.5432979952429},{"$f":"IFERROR((VLOOKUP($B34,Funding,Funding!$CE$2,FALSE)), \"x\")","v":14669938},{"$f":"IFERROR((AS34/VLOOKUP($B34,Funding,Funding!$CR$2,FALSE)), \"x\")","v":4.4025855128497056E-2},{"$f":"IFERROR((AS34/(VLOOKUP($B34,Pupils,Pupils!$J$3,FALSE)+VLOOKUP($B34,Pupils,Pupils!$K$3,FALSE))), \"x\")","v":976.04377910844971},{"$f":"IFERROR((VLOOKUP($B34,Funding,Funding!$BM$2,FALSE)), \"x\")","v":13847448.879999999},{"$f":"IFERROR((AV34/VLOOKUP($B34,Funding,Funding!$BY$2,FALSE)), \"x\")","v":5.6141551942361888E-2},{"$f":"IFERROR((AV34/(VLOOKUP($B34,Pupils,Pupils!$M$3,FALSE)+VLOOKUP($B34,Pupils,Pupils!$P$3,FALSE))), \"x\")","v":972.91146490550125},{"$f":"IFERROR((VLOOKUP($B34,Funding,Funding!$AQ$2,FALSE)), \"x\")","v":29207680},{"$f":"IFERROR((AY34/VLOOKUP($B34,Funding,Funding!$BE$2,FALSE)), \"x\")","v":8.813900573959961E-2},{"$f":"IFERROR((AY34/(VLOOKUP($B34,Pupils,Pupils!$R$3,FALSE)+VLOOKUP($B34,Pupils,Pupils!$U$3,FALSE))), \"x\")","v":2125.8956255913822},{"$f":"IFERROR((VLOOKUP($B34,Funding,Funding!$S$2,FALSE)), \"x\")","v":26988550},{"$f":"IFERROR((BB34/VLOOKUP($B34,Funding,Funding!$AH$2,FALSE)), \"x\")","v":7.8575781894471938E-2},{"$f":"IFERROR((BB34/(VLOOKUP(B34,Pupils,Pupils!$W$3,FALSE)+VLOOKUP(B34,Pupils,Pupils!$Z$3,FALSE))), \"x\")","v":2068.880797240322},{"$f":"IFERROR((VLOOKUP($B34,Funding,Funding!$GX$2,FALSE)), \"x\")","v":39352825.879999995},{"$f":"IFERROR((BE34/VLOOKUP($B34,Funding,Funding!$HC$2,FALSE)), \"x\")","v":0.10431408489373935},{"$f":"IFERROR((BE34/(VLOOKUP($B34,Pupils,Pupils!$D$3,FALSE)+VLOOKUP($B34,Pupils,Pupils!$E$3,FALSE))), \"x\")","v":2799.1198435166084},{"$f":"IFERROR((VLOOKUP($B34,Funding,Funding!$GP$2,FALSE)), \"x\")","v":42413936.75},{"$f":"IFERROR((BH34/VLOOKUP($B34,Funding,Funding!$GU$2,FALSE)), \"x\")","v":0.1148933585379518},{"$f":"IFERROR((BH34/(VLOOKUP($B34,Pupils,Pupils!$G$3,FALSE)+VLOOKUP($B34,Pupils,Pupils!$H$3,FALSE))), \"x\")","v":2882.3606354060485},{"$f":"IFERROR((VLOOKUP($B34,Funding,Funding!$GH$2,FALSE)), \"x\")","v":33583835.769999996},{"$f":"IFERROR((BK34/VLOOKUP($B34,Funding,Funding!$GM$2,FALSE)), \"x\")","v":0.11945742530359682},{"$f":"IFERROR((BK34/(VLOOKUP($B34,Pupils,Pupils!$J$3,FALSE)+VLOOKUP($B34,Pupils,Pupils!$K$3,FALSE))), \"x\")","v":2234.453477711244},{"$f":"IFERROR((VLOOKUP($B34,Funding,Funding!$FZ$2,FALSE)), \"x\")","v":31381477.75},{"$f":"IFERROR((BN34/VLOOKUP($B34,Funding,Funding!$GE$2,FALSE)), \"x\")","v":0.11768368604558337},{"$f":"IFERROR((BN34/(VLOOKUP($B34,Pupils,Pupils!$M$3,FALSE)+VLOOKUP($B34,Pupils,Pupils!$P$3,FALSE))), \"x\")","v":2204.8392995152112},{"$f":"IFERROR((VLOOKUP($B34,Funding,Funding!$FD$2,FALSE)), \"x\")","v":24173015},{"$f":"IFERROR((BQ34/VLOOKUP($B34,Funding,Funding!$FR$2,FALSE)), \"x\")","v":0.10687339785058202},{"$f":"IFERROR((BQ34/(VLOOKUP($B34,Pupils,Pupils!$R$3,FALSE)+VLOOKUP($B34,Pupils,Pupils!$U$3,FALSE))), \"x\")","v":1759.4450105538976},{"$f":"(VLOOKUP(B34,Funding,Funding!$HK$2,FALSE)+VLOOKUP(B34,Funding,Funding!$HL$2,FALSE)+VLOOKUP(B34,Funding,Funding!$HM$2,FALSE))/(VLOOKUP(B34,Funding,Funding!$HN$2,FALSE))","v":0.34775767112509837},{"$f":"IFERROR((VLOOKUP(B34,Other_data,Other!$D$3,FALSE)+VLOOKUP(B34,Other_data,Other!$E$3,FALSE)+VLOOKUP(B34,Other_data,Other!$F$3,FALSE)), \"x\")","v":3100},{"$f":"(VLOOKUP(B34,Other_data,Other!$AK$3,FALSE)+VLOOKUP(B34,Other_data,Other!$AL$3,FALSE))/VLOOKUP(B34,Other_data,Other!$AJ$3,FALSE)","v":4.0573058241611337E-2},{"$f":"(VLOOKUP(B34,Other_data,Other!$AR$3,FALSE)+VLOOKUP(B34,Other_data,Other!$AS$3,FALSE))/VLOOKUP(B34,Other_data,Other!$AQ$3,FALSE)","v":6.4138413142257947E-2},{"$f":"VLOOKUP(B34,Other_data,Other!$AP$3,FALSE)/VLOOKUP(B34,Other_data,Other!$AJ$3,FALSE)","v":6.3722650505770688E-3},{"$f":"VLOOKUP(B34,Other_data,Other!$AW$3,FALSE)/VLOOKUP(B34,Other_data,Other!$AQ$3,FALSE)","v":1.3903452561264516E-2}]
[29,331,"Coventry",{"$f":"IFERROR((VLOOKUP($B35,Pupils,Pupils!$D$3,FALSE)/VLOOKUP($B35,Pupils,Pupils!$C$3,FALSE)), \"x\")","v":2.6289084190169835E-2},{"$f":"IFERROR((VLOOKUP($B35,Pupils,Pupils!$G$3,FALSE)/VLOOKUP($B35,Pupils,Pupils!$F$3,FALSE)),\"x\")","v":2.5287707311487297E-2},{"$f":"IFERROR((VLOOKUP($B35,Pupils,Pupils!$J$3,FALSE)/VLOOKUP($B35,Pupils,Pupils!$I$3,FALSE)), \"x\")","v":2.4017757204378591E-2},{"$f":"IFERROR((VLOOKUP($B35,Pupils,Pupils!$M$3,FALSE)/VLOOKUP($B35,Pupils,Pupils!$L$3,FALSE)), \"x\")","v":2.3321700626665165E-2},{"$f":"IFERROR((VLOOKUP($B35,Pupils,Pupils!$R$3,FALSE)/VLOOKUP($B35,Pupils,Pupils!$Q$3,FALSE)), \"x\")","v":2.3077065545533682E-2},{"$f":"IFERROR((VLOOKUP($B35,Pupils,Pupils!$W$3,FALSE)/VLOOKUP($B35,Pupils,Pupils!$V$3,FALSE)), \"x\")","v":2.3191637121239811E-2},{"$f":"IFERROR(((VLOOKUP($B35,Pupils,Pupils!$D$3,FALSE)+VLOOKUP($B35,Pupils,Pupils!$E$3,FALSE))/VLOOKUP($B35,Pupils,Pupils!$C$3,FALSE)), \"x\")","v":0.22894288394891532},{"$f":"IFERROR(((VLOOKUP($B35,Pupils,Pupils!$G$3,FALSE)+VLOOKUP($B35,Pupils,Pupils!$H$3,FALSE))/VLOOKUP($B35,Pupils,Pupils!$F$3,FALSE)), \"x\")","v":0.23499436990667405},{"$f":"IFERROR(((VLOOKUP($B35,Pupils,Pupils!$J$3,FALSE)+VLOOKUP($B35,Pupils,Pupils!$K$3,FALSE))/VLOOKUP($B35,Pupils,Pupils!$I$3,FALSE)), \"x\")","v":0.22636641308265826},{"$f":"IFERROR(((VLOOKUP($B35,Pupils,Pupils!$M$3,FALSE)+VLOOKUP($B35,Pupils,Pupils!$P$3,FALSE))/VLOOKUP($B35,Pupils,Pupils!$L$3,FALSE)), \"x\")","v":0.22276633269541071},{"$f":"IFERROR(((VLOOKUP($B35,Pupils,Pupils!$R$3,FALSE)+VLOOKUP($B35,Pupils,Pupils!$U$3,FALSE))/VLOOKUP($B35,Pupils,Pupils!$Q$3,FALSE)), \"x\")","v":0.21736150982534774},{"$f":"IFERROR(((VLOOKUP($B35,Pupils,Pupils!$W$3,FALSE)+VLOOKUP($B35,Pupils,Pupils!$Z$3,FALSE))/VLOOKUP($B35,Pupils,Pupils!$V$3,FALSE)), \"x\")","v":0.21027815344128076},{"$f":"(SUM(INDEX(Pupils!$AB$7:$AB$159,MATCH($B35,Pupils!$A$7:$A$159,0)),INDEX(Pupils!$AC$7:$AC$159,MATCH($B35,Pupils!$A$7:$A$159,0)),INDEX(Pupils!$AD$7:$AD$159,MATCH($B35,Pupils!$A$7:$A$159,0)),INDEX(Pupils!$AE$7:$AE$159,MATCH($B35,Pupils!$A$7:$A$159,0))))/SUM(INDEX(Pupils!$AB$7:$AM$159,MATCH($B35,Pupils!$A$7:$A$159,0),0))","v":0.44412607449856734},{"$f":"SUM(INDEX(Pupils!$AF$7:$AF$159,MATCH($B35,Pupils!$A$7:$A$159,0)))/SUM(INDEX(Pupils!$AB$7:$AM$159,MATCH($B35,Pupils!$A$7:$A$159,0),0))","v":0.17131654350776654},{"$f":"SUM(INDEX(Pupils!$AG$7:$AG$159,MATCH($B35,Pupils!$A$7:$A$159,0)))/SUM(INDEX(Pupils!$AB$7:$AM$159,MATCH($B35,Pupils!$A$7:$A$159,0),0))","v":0.17961091841351229},{"$f":"(SUM(INDEX(Pupils!$AH$7:$AH$159,MATCH($B35,Pupils!$A$7:$A$159,0)),INDEX(Pupils!$AI$7:$AI$159,MATCH($B35,Pupils!$A$7:$A$159,0)),INDEX(Pupils!$AJ$7:$AJ$159,MATCH($B35,Pupils!$A$7:$A$159,0))))/SUM(INDEX(Pupils!$AB$7:$AM$159,MATCH($B35,Pupils!$A$7:$A$159,0),0))","v":2.5184738350173427E-2},{"$f":"SUM(INDEX(Pupils!$AK$7:$AK$159,MATCH($B35,Pupils!$A$7:$A$159,0)))/SUM(INDEX(Pupils!$AB$7:$AM$159,MATCH($B35,Pupils!$A$7:$A$159,0),0))","v":2.1414567938470817E-2},{"$f":"SUM(INDEX(Pupils!$AL$7:$AL$159,MATCH($B35,Pupils!$A$7:$A$159,0)))/SUM(INDEX(Pupils!$AB$7:$AM$159,MATCH($B35,Pupils!$A$7:$A$159,0),0))","v":0.12366158950384558},{"$f":"SUM(INDEX(Pupils!$AM$7:$AM$159,MATCH($B35,Pupils!$A$7:$A$159,0)))/SUM(INDEX(Pupils!$AB$7:$AM$159,MATCH($B35,Pupils!$A$7:$A$159,0),0))","v":3.4685567787664004E-2},{"$f":"(SUM(INDEX(Pupils!$BH$7:$BH$159,MATCH($B35,Pupils!$A$7:$A$159,0)),INDEX(Pupils!$BK$7:$BK$159,MATCH($B35,Pupils!$A$7:$A$159,0)),INDEX(Pupils!$BO$7:$BO$159,MATCH($B35,Pupils!$A$7:$A$159,0))))/SUM(INDEX(Pupils!$BH$7:$BS$159,MATCH($B35,Pupils!$A$7:$A$159,0),0))","v":0.26447574334898277},{"$f":"(SUM(INDEX(Pupils!$BL$7:$BL$159,MATCH($B35,Pupils!$A$7:$A$159,0)),INDEX(Pupils!$BM$7:$BM$159,MATCH($B35,Pupils!$A$7:$A$159,0)),INDEX(Pupils!$BP$7:$BP$159,MATCH($B35,Pupils!$A$7:$A$159,0))))/SUM(INDEX(Pupils!$BH$7:$BS$159,MATCH($B35,Pupils!$A$7:$A$159,0),0))","v":0.65962441314553988},{"$f":"(SUM(INDEX(Pupils!$BI$7:$BI$159,MATCH($B35,Pupils!$A$7:$A$159,0)),INDEX(Pupils!$BJ$7:$BJ$159,MATCH($B35,Pupils!$A$7:$A$159,0))))/SUM(INDEX(Pupils!$BH$7:$BS$159,MATCH($B35,Pupils!$A$7:$A$159,0),0))","v":7.0422535211267609E-2},{"$f":"(SUM(INDEX(Pupils!$BQ$7:$BQ$159,MATCH($B35,Pupils!$A$7:$A$159,0)),INDEX(Pupils!$BR$7:$BR$159,MATCH($B35,Pupils!$A$7:$A$159,0)),INDEX(Pupils!$BN$7:$BN$159,MATCH($B35,Pupils!$A$7:$A$159,0)),INDEX(Pupils!$BS$7:$BS$159,MATCH($B35,Pupils!$A$7:$A$159,0))))/SUM(INDEX(Pupils!$BH$7:$BS$159,MATCH($B35,Pupils!$A$7:$A$159,0),0))","v":5.4773082942097028E-3},{"$f":"IFERROR((VLOOKUP(B35,Funding,Funding!$C$2,FALSE)), \"x\")","v":27213004.090000007},{"$f":"IFERROR((AA35/VLOOKUP(B35,Funding,Funding!$D$2,FALSE)), \"x\")","v":0.10960683840407354},{"$f":"IFERROR((AA35/(VLOOKUP(B35,Pupils,Pupils!$M$3,FALSE)+VLOOKUP(B35,Pupils,Pupils!$P$3,FALSE))), \"x\")","v":2292.0074193548394},{"$f":"IFERROR((VLOOKUP(B35,Funding,Funding!$E$2,FALSE)), \"x\")","v":28221819.710642532},{"$f":"IFERROR((AD35/VLOOKUP(B35,Funding,Funding!$F$2,FALSE)), \"x\")","v":0.10918766519336054},{"$f":"IFERROR((AD35/(VLOOKUP(B35,Pupils,Pupils!$R$3,FALSE)+VLOOKUP(B35,Pupils,Pupils!$U$3,FALSE))), \"x\")","v":2404.722197566678},{"$f":"IFERROR((VLOOKUP(B35,Funding,Funding!$G$2,FALSE)), \"x\")","v":29381313.753712103},{"$f":"IFERROR((AG35/VLOOKUP(B35,Funding,Funding!$H$2,FALSE)), \"x\")","v":0.1111224551778128},{"$f":"IFERROR((AG35/(VLOOKUP(B35,Pupils,Pupils!$W$3,FALSE)+VLOOKUP(B35,Pupils,Pupils!$Z$3,FALSE))), \"x\")","v":2553.5645535991744},{"$f":"IFERROR((VLOOKUP(B35,Funding,Funding!$I$2,FALSE)), \"x\")","v":29758760.802158464},{"$f":"IFERROR((AJ35/VLOOKUP(B35,Funding,Funding!$J$2,FALSE)), \"x\")","v":0.11180652758707432},null,{"$f":"IFERROR((VLOOKUP($B35,Funding,Funding!$EC$2,FALSE)), \"x\")","v":24931426.680000007},{"$f":"IFERROR((AM35/VLOOKUP($B35,Funding,Funding!$EU$2,FALSE)), \"x\")","v":0.10110152674776346},{"$f":"IFERROR((AM35/(VLOOKUP($B35,Pupils,Pupils!$D$3,FALSE)+VLOOKUP($B35,Pupils,Pupils!$E$3,FALSE))), \"x\")","v":2085.0904641632524},{"$f":"IFERROR((VLOOKUP($B35,Funding,Funding!$DA$2,FALSE)), \"x\")","v":26830508.30796},{"$f":"IFERROR((AP35/VLOOKUP($B35,Funding,Funding!$DT$2,FALSE)), \"x\")","v":0.10378536918418094},{"$f":"IFERROR((AP35/(VLOOKUP($B35,Pupils,Pupils!$G$3,FALSE)+VLOOKUP($B35,Pupils,Pupils!$H$3,FALSE))), \"x\")","v":2179.0390894144402},{"$f":"IFERROR((VLOOKUP($B35,Funding,Funding!$CE$2,FALSE)), \"x\")","v":25990268},{"$f":"IFERROR((AS35/VLOOKUP($B35,Funding,Funding!$CR$2,FALSE)), \"x\")","v":0.10101524011201297},{"$f":"IFERROR((AS35/(VLOOKUP($B35,Pupils,Pupils!$J$3,FALSE)+VLOOKUP($B35,Pupils,Pupils!$K$3,FALSE))), \"x\")","v":2178.1987931612471},{"$f":"IFERROR((VLOOKUP($B35,Funding,Funding!$BM$2,FALSE)), \"x\")","v":25061162.219999999},{"$f":"IFERROR((AV35/VLOOKUP($B35,Funding,Funding!$BY$2,FALSE)), \"x\")","v":0.11296160093722639},{"$f":"IFERROR((AV35/(VLOOKUP($B35,Pupils,Pupils!$M$3,FALSE)+VLOOKUP($B35,Pupils,Pupils!$P$3,FALSE))), \"x\")","v":2110.7691585951316},{"$f":"IFERROR((VLOOKUP($B35,Funding,Funding!$AQ$2,FALSE)), \"x\")","v":29918573},{"$f":"IFERROR((AY35/VLOOKUP($B35,Funding,Funding!$BE$2,FALSE)), \"x\")","v":0.11219131863118473},{"$f":"IFERROR((AY35/(VLOOKUP($B35,Pupils,Pupils!$R$3,FALSE)+VLOOKUP($B35,Pupils,Pupils!$U$3,FALSE))), \"x\")","v":2549.2989945466938},{"$f":"IFERROR((VLOOKUP($B35,Funding,Funding!$S$2,FALSE)), \"x\")","v":29009712},{"$f":"IFERROR((BB35/VLOOKUP($B35,Funding,Funding!$AH$2,FALSE)), \"x\")","v":0.10716076309416127},{"$f":"IFERROR((BB35/(VLOOKUP(B35,Pupils,Pupils!$W$3,FALSE)+VLOOKUP(B35,Pupils,Pupils!$Z$3,FALSE))), \"x\")","v":2521.268207891535},{"$f":"IFERROR((VLOOKUP($B35,Funding,Funding!$GX$2,FALSE)), \"x\")","v":46600846},{"$f":"IFERROR((BE35/VLOOKUP($B35,Funding,Funding!$HC$2,FALSE)), \"x\")","v":0.17446932774005705},{"$f":"IFERROR((BE35/(VLOOKUP($B35,Pupils,Pupils!$D$3,FALSE)+VLOOKUP($B35,Pupils,Pupils!$E$3,FALSE))), \"x\")","v":3897.3694070419001},{"$f":"IFERROR((VLOOKUP($B35,Funding,Funding!$GP$2,FALSE)), \"x\")","v":37022234},{"$f":"IFERROR((BH35/VLOOKUP($B35,Funding,Funding!$GU$2,FALSE)), \"x\")","v":0.13472536092891482},{"$f":"IFERROR((BH35/(VLOOKUP($B35,Pupils,Pupils!$G$3,FALSE)+VLOOKUP($B35,Pupils,Pupils!$H$3,FALSE))), \"x\")","v":3006.759847315845},{"$f":"IFERROR((VLOOKUP($B35,Funding,Funding!$GH$2,FALSE)), \"x\")","v":36121312.780000001},{"$f":"IFERROR((BK35/VLOOKUP($B35,Funding,Funding!$GM$2,FALSE)), \"x\")","v":0.14646574350352434},{"$f":"IFERROR((BK35/(VLOOKUP($B35,Pupils,Pupils!$J$3,FALSE)+VLOOKUP($B35,Pupils,Pupils!$K$3,FALSE))), \"x\")","v":3027.2638937311431},{"$f":"IFERROR((VLOOKUP($B35,Funding,Funding!$FZ$2,FALSE)), \"x\")","v":35884977.810000002},{"$f":"IFERROR((BN35/VLOOKUP($B35,Funding,Funding!$GE$2,FALSE)), \"x\")","v":0.15629857487277243},{"$f":"IFERROR((BN35/(VLOOKUP($B35,Pupils,Pupils!$M$3,FALSE)+VLOOKUP($B35,Pupils,Pupils!$P$3,FALSE))), \"x\")","v":3022.4019043207277},{"$f":"IFERROR((VLOOKUP($B35,Funding,Funding!$FD$2,FALSE)), \"x\")","v":29669030},{"$f":"IFERROR((BQ35/VLOOKUP($B35,Funding,Funding!$FR$2,FALSE)), \"x\")","v":0.14474761732607275},{"$f":"IFERROR((BQ35/(VLOOKUP($B35,Pupils,Pupils!$R$3,FALSE)+VLOOKUP($B35,Pupils,Pupils!$U$3,FALSE))), \"x\")","v":2528.0359577368781},{"$f":"(VLOOKUP(B35,Funding,Funding!$HK$2,FALSE)+VLOOKUP(B35,Funding,Funding!$HL$2,FALSE)+VLOOKUP(B35,Funding,Funding!$HM$2,FALSE))/(VLOOKUP(B35,Funding,Funding!$HN$2,FALSE))","v":0.22526501766784451},{"$f":"IFERROR((VLOOKUP(B35,Other_data,Other!$D$3,FALSE)+VLOOKUP(B35,Other_data,Other!$E$3,FALSE)+VLOOKUP(B35,Other_data,Other!$F$3,FALSE)), \"x\")","v":2460},{"$f":"(VLOOKUP(B35,Other_data,Other!$AK$3,FALSE)+VLOOKUP(B35,Other_data,Other!$AL$3,FALSE))/VLOOKUP(B35,Other_data,Other!$AJ$3,FALSE)","v":4.2583335986500687E-2},{"$f":"(VLOOKUP(B35,Other_data,Other!$AR$3,FALSE)+VLOOKUP(B35,Other_data,Other!$AS$3,FALSE))/VLOOKUP(B35,Other_data,Other!$AQ$3,FALSE)","v":4.9751926286668038E-2},{"$f":"VLOOKUP(B35,Other_data,Other!$AP$3,FALSE)/VLOOKUP(B35,Other_data,Other!$AJ$3,FALSE)","v":7.895826037123117E-3},{"$f":"VLOOKUP(B35,Other_data,Other!$AW$3,FALSE)/VLOOKUP(B35,Other_data,Other!$AQ$3,FALSE)","v":1.0768914191645518E-2}]
[30,306,"Croydon",{"$f":"IFERROR((VLOOKUP($B36,Pupils,Pupils!$D$3,FALSE)/VLOOKUP($B36,Pupils,Pupils!$C$3,FALSE)), \"x\")","v":2.250200453793268E-2},{"$f":"IFERROR((VLOOKUP($B36,Pupils,Pupils!$G$3,FALSE)/VLOOKUP($B36,Pupils,Pupils!$F$3,FALSE)),\"x\")","v":2.2434812055536744E-2},{"$f":"IFERROR((VLOOKUP($B36,Pupils,Pupils!$J$3,FALSE)/VLOOKUP($B36,Pupils,Pupils!$I$3,FALSE)), \"x\")","v":2.3199370637564234E-2},{"$f":"IFERROR((VLOOKUP($B36,Pupils,Pupils!$M$3,FALSE)/VLOOKUP($B36,Pupils,Pupils!$L$3,FALSE)), \"x\")","v":2.4255069439916541E-2},{"$f":"IFERROR((VLOOKUP($B36,Pupils,Pupils!$R$3,FALSE)/VLOOKUP($B36,Pupils,Pupils!$Q$3,FALSE)), \"x\")","v":2.4591344999279549E-2},{"$f":"IFERROR((VLOOKUP($B36,Pupils,Pupils!$W$3,FALSE)/VLOOKUP($B36,Pupils,Pupils!$V$3,FALSE)), \"x\")","v":2.6476385713159346E-2},{"$f":"IFERROR(((VLOOKUP($B36,Pupils,Pupils!$D$3,FALSE)+VLOOKUP($B36,Pupils,Pupils!$E$3,FALSE))/VLOOKUP($B36,Pupils,Pupils!$C$3,FALSE)), \"x\")","v":0.2094955388368562},{"$f":"IFERROR(((VLOOKUP($B36,Pupils,Pupils!$G$3,FALSE)+VLOOKUP($B36,Pupils,Pupils!$H$3,FALSE))/VLOOKUP($B36,Pupils,Pupils!$F$3,FALSE)), \"x\")","v":0.22380629867930918},{"$f":"IFERROR(((VLOOKUP($B36,Pupils,Pupils!$J$3,FALSE)+VLOOKUP($B36,Pupils,Pupils!$K$3,FALSE))/VLOOKUP($B36,Pupils,Pupils!$I$3,FALSE)), \"x\")","v":0.22399276902733375},{"$f":"IFERROR(((VLOOKUP($B36,Pupils,Pupils!$M$3,FALSE)+VLOOKUP($B36,Pupils,Pupils!$P$3,FALSE))/VLOOKUP($B36,Pupils,Pupils!$L$3,FALSE)), \"x\")","v":0.22184912303579579},{"$f":"IFERROR(((VLOOKUP($B36,Pupils,Pupils!$R$3,FALSE)+VLOOKUP($B36,Pupils,Pupils!$U$3,FALSE))/VLOOKUP($B36,Pupils,Pupils!$Q$3,FALSE)), \"x\")","v":0.20568034453498985},{"$f":"IFERROR(((VLOOKUP($B36,Pupils,Pupils!$W$3,FALSE)+VLOOKUP($B36,Pupils,Pupils!$Z$3,FALSE))/VLOOKUP($B36,Pupils,Pupils!$V$3,FALSE)), \"x\")","v":0.18848852795080029},{"$f":"(SUM(INDEX(Pupils!$AB$7:$AB$159,MATCH($B36,Pupils!$A$7:$A$159,0)),INDEX(Pupils!$AC$7:$AC$159,MATCH($B36,Pupils!$A$7:$A$159,0)),INDEX(Pupils!$AD$7:$AD$159,MATCH($B36,Pupils!$A$7:$A$159,0)),INDEX(Pupils!$AE$7:$AE$159,MATCH($B36,Pupils!$A$7:$A$159,0))))/SUM(INDEX(Pupils!$AB$7:$AM$159,MATCH($B36,Pupils!$A$7:$A$159,0),0))","v":0.26098326359832635},{"$f":"SUM(INDEX(Pupils!$AF$7:$AF$159,MATCH($B36,Pupils!$A$7:$A$159,0)))/SUM(INDEX(Pupils!$AB$7:$AM$159,MATCH($B36,Pupils!$A$7:$A$159,0),0))","v":0.24703626220362623},{"$f":"SUM(INDEX(Pupils!$AG$7:$AG$159,MATCH($B36,Pupils!$A$7:$A$159,0)))/SUM(INDEX(Pupils!$AB$7:$AM$159,MATCH($B36,Pupils!$A$7:$A$159,0),0))","v":0.23901673640167365},{"$f":"(SUM(INDEX(Pupils!$AH$7:$AH$159,MATCH($B36,Pupils!$A$7:$A$159,0)),INDEX(Pupils!$AI$7:$AI$159,MATCH($B36,Pupils!$A$7:$A$159,0)),INDEX(Pupils!$AJ$7:$AJ$159,MATCH($B36,Pupils!$A$7:$A$159,0))))/SUM(INDEX(Pupils!$AB$7:$AM$159,MATCH($B36,Pupils!$A$7:$A$159,0),0))","v":2.8417015341701535E-2},{"$f":"SUM(INDEX(Pupils!$AK$7:$AK$159,MATCH($B36,Pupils!$A$7:$A$159,0)))/SUM(INDEX(Pupils!$AB$7:$AM$159,MATCH($B36,Pupils!$A$7:$A$159,0),0))","v":4.1492329149232912E-2},{"$f":"SUM(INDEX(Pupils!$AL$7:$AL$159,MATCH($B36,Pupils!$A$7:$A$159,0)))/SUM(INDEX(Pupils!$AB$7:$AM$159,MATCH($B36,Pupils!$A$7:$A$159,0),0))","v":0.12238493723849372},{"$f":"SUM(INDEX(Pupils!$AM$7:$AM$159,MATCH($B36,Pupils!$A$7:$A$159,0)))/SUM(INDEX(Pupils!$AB$7:$AM$159,MATCH($B36,Pupils!$A$7:$A$159,0),0))","v":6.0669456066945605E-2},{"$f":"(SUM(INDEX(Pupils!$BH$7:$BH$159,MATCH($B36,Pupils!$A$7:$A$159,0)),INDEX(Pupils!$BK$7:$BK$159,MATCH($B36,Pupils!$A$7:$A$159,0)),INDEX(Pupils!$BO$7:$BO$159,MATCH($B36,Pupils!$A$7:$A$159,0))))/SUM(INDEX(Pupils!$BH$7:$BS$159,MATCH($B36,Pupils!$A$7:$A$159,0),0))","v":0.39030362389813911},{"$f":"(SUM(INDEX(Pupils!$BL$7:$BL$159,MATCH($B36,Pupils!$A$7:$A$159,0)),INDEX(Pupils!$BM$7:$BM$159,MATCH($B36,Pupils!$A$7:$A$159,0)),INDEX(Pupils!$BP$7:$BP$159,MATCH($B36,Pupils!$A$7:$A$159,0))))/SUM(INDEX(Pupils!$BH$7:$BS$159,MATCH($B36,Pupils!$A$7:$A$159,0),0))","v":0.51077375122428992},{"$f":"(SUM(INDEX(Pupils!$BI$7:$BI$159,MATCH($B36,Pupils!$A$7:$A$159,0)),INDEX(Pupils!$BJ$7:$BJ$159,MATCH($B36,Pupils!$A$7:$A$159,0))))/SUM(INDEX(Pupils!$BH$7:$BS$159,MATCH($B36,Pupils!$A$7:$A$159,0),0))","v":7.8844270323212534E-2},{"$f":"(SUM(INDEX(Pupils!$BQ$7:$BQ$159,MATCH($B36,Pupils!$A$7:$A$159,0)),INDEX(Pupils!$BR$7:$BR$159,MATCH($B36,Pupils!$A$7:$A$159,0)),INDEX(Pupils!$BN$7:$BN$159,MATCH($B36,Pupils!$A$7:$A$159,0)),INDEX(Pupils!$BS$7:$BS$159,MATCH($B36,Pupils!$A$7:$A$159,0))))/SUM(INDEX(Pupils!$BH$7:$BS$159,MATCH($B36,Pupils!$A$7:$A$159,0),0))","v":2.0078354554358472E-2},{"$f":"IFERROR((VLOOKUP(B36,Funding,Funding!$C$2,FALSE)), \"x\")","v":42137581.369999997},{"$f":"IFERROR((AA36/VLOOKUP(B36,Funding,Funding!$D$2,FALSE)), \"x\")","v":0.15813277246641577},{"$f":"IFERROR((AA36/(VLOOKUP(B36,Pupils,Pupils!$M$3,FALSE)+VLOOKUP(B36,Pupils,Pupils!$P$3,FALSE))), \"x\")","v":3096.0750455547391},{"$f":"IFERROR((VLOOKUP(B36,Funding,Funding!$E$2,FALSE)), \"x\")","v":48903962.266455822},{"$f":"IFERROR((AD36/VLOOKUP(B36,Funding,Funding!$F$2,FALSE)), \"x\")","v":0.17491968888776402},{"$f":"IFERROR((AD36/(VLOOKUP(B36,Pupils,Pupils!$R$3,FALSE)+VLOOKUP(B36,Pupils,Pupils!$U$3,FALSE))), \"x\")","v":3806.6445291862551},{"$f":"IFERROR((VLOOKUP(B36,Funding,Funding!$G$2,FALSE)), \"x\")","v":51407095.803194813},{"$f":"IFERROR((AG36/VLOOKUP(B36,Funding,Funding!$H$2,FALSE)), \"x\")","v":0.1807153108755894},{"$f":"IFERROR((AG36/(VLOOKUP(B36,Pupils,Pupils!$W$3,FALSE)+VLOOKUP(B36,Pupils,Pupils!$Z$3,FALSE))), \"x\")","v":4300.7693301426261},{"$f":"IFERROR((VLOOKUP(B36,Funding,Funding!$I$2,FALSE)), \"x\")","v":51909239.387909234},{"$f":"IFERROR((AJ36/VLOOKUP(B36,Funding,Funding!$J$2,FALSE)), \"x\")","v":0.16788077537381343},null,{"$f":"IFERROR((VLOOKUP($B36,Funding,Funding!$EC$2,FALSE)), \"x\")","v":23418842.389999997},{"$f":"IFERROR((AM36/VLOOKUP($B36,Funding,Funding!$EU$2,FALSE)), \"x\")","v":9.6153679613669177E-2},{"$f":"IFERROR((AM36/(VLOOKUP($B36,Pupils,Pupils!$D$3,FALSE)+VLOOKUP($B36,Pupils,Pupils!$E$3,FALSE))), \"x\")","v":1907.071855863192},{"$f":"IFERROR((VLOOKUP($B36,Funding,Funding!$DA$2,FALSE)), \"x\")","v":26778852},{"$f":"IFERROR((AP36/VLOOKUP($B36,Funding,Funding!$DT$2,FALSE)), \"x\")","v":0.10568727404405384},{"$f":"IFERROR((AP36/(VLOOKUP($B36,Pupils,Pupils!$G$3,FALSE)+VLOOKUP($B36,Pupils,Pupils!$H$3,FALSE))), \"x\")","v":2025.9382660009078},{"$f":"IFERROR((VLOOKUP($B36,Funding,Funding!$CE$2,FALSE)), \"x\")","v":24626363.789999999},{"$f":"IFERROR((AS36/VLOOKUP($B36,Funding,Funding!$CR$2,FALSE)), \"x\")","v":9.8356177343443721E-2},{"$f":"IFERROR((AS36/(VLOOKUP($B36,Pupils,Pupils!$J$3,FALSE)+VLOOKUP($B36,Pupils,Pupils!$K$3,FALSE))), \"x\")","v":1840.2603340307876},{"$f":"IFERROR((VLOOKUP($B36,Funding,Funding!$BM$2,FALSE)), \"x\")","v":31673844.310000002},{"$f":"IFERROR((AV36/VLOOKUP($B36,Funding,Funding!$BY$2,FALSE)), \"x\")","v":0.12869324236053326},{"$f":"IFERROR((AV36/(VLOOKUP($B36,Pupils,Pupils!$M$3,FALSE)+VLOOKUP($B36,Pupils,Pupils!$P$3,FALSE))), \"x\")","v":2327.2479287288761},{"$f":"IFERROR((VLOOKUP($B36,Funding,Funding!$AQ$2,FALSE)), \"x\")","v":47576100},{"$f":"IFERROR((AY36/VLOOKUP($B36,Funding,Funding!$BE$2,FALSE)), \"x\")","v":0.16102938637968278},{"$f":"IFERROR((AY36/(VLOOKUP($B36,Pupils,Pupils!$R$3,FALSE)+VLOOKUP($B36,Pupils,Pupils!$U$3,FALSE))), \"x\")","v":3703.2848135751537},{"$f":"IFERROR((VLOOKUP($B36,Funding,Funding!$S$2,FALSE)), \"x\")","v":46723499},{"$f":"IFERROR((BB36/VLOOKUP($B36,Funding,Funding!$AH$2,FALSE)), \"x\")","v":0.16213680795549068},{"$f":"IFERROR((BB36/(VLOOKUP(B36,Pupils,Pupils!$W$3,FALSE)+VLOOKUP(B36,Pupils,Pupils!$Z$3,FALSE))), \"x\")","v":3908.9349117376391},{"$f":"IFERROR((VLOOKUP($B36,Funding,Funding!$GX$2,FALSE)), \"x\")","v":39299903.90343},{"$f":"IFERROR((BE36/VLOOKUP($B36,Funding,Funding!$HC$2,FALSE)), \"x\")","v":0.14139388989705517},{"$f":"IFERROR((BE36/(VLOOKUP($B36,Pupils,Pupils!$D$3,FALSE)+VLOOKUP($B36,Pupils,Pupils!$E$3,FALSE))), \"x\")","v":3200.3179074454397},{"$f":"IFERROR((VLOOKUP($B36,Funding,Funding!$GP$2,FALSE)), \"x\")","v":40083346},{"$f":"IFERROR((BH36/VLOOKUP($B36,Funding,Funding!$GU$2,FALSE)), \"x\")","v":0.14557677205893804},{"$f":"IFERROR((BH36/(VLOOKUP($B36,Pupils,Pupils!$G$3,FALSE)+VLOOKUP($B36,Pupils,Pupils!$H$3,FALSE))), \"x\")","v":3032.481918595854},{"$f":"IFERROR((VLOOKUP($B36,Funding,Funding!$GH$2,FALSE)), \"x\")","v":34632383.269999996},{"$f":"IFERROR((BK36/VLOOKUP($B36,Funding,Funding!$GM$2,FALSE)), \"x\")","v":0.13216728753345738},{"$f":"IFERROR((BK36/(VLOOKUP($B36,Pupils,Pupils!$J$3,FALSE)+VLOOKUP($B36,Pupils,Pupils!$K$3,FALSE))), \"x\")","v":2587.9826087281422},{"$f":"IFERROR((VLOOKUP($B36,Funding,Funding!$FZ$2,FALSE)), \"x\")","v":56379195.519999996},{"$f":"IFERROR((BN36/VLOOKUP($B36,Funding,Funding!$GE$2,FALSE)), \"x\")","v":0.23300939653803757},{"$f":"IFERROR((BN36/(VLOOKUP($B36,Pupils,Pupils!$M$3,FALSE)+VLOOKUP($B36,Pupils,Pupils!$P$3,FALSE))), \"x\")","v":4142.4831388684788},{"$f":"IFERROR((VLOOKUP($B36,Funding,Funding!$FD$2,FALSE)), \"x\")","v":47639214},{"$f":"IFERROR((BQ36/VLOOKUP($B36,Funding,Funding!$FR$2,FALSE)), \"x\")","v":0.23347155708127021},{"$f":"IFERROR((BQ36/(VLOOKUP($B36,Pupils,Pupils!$R$3,FALSE)+VLOOKUP($B36,Pupils,Pupils!$U$3,FALSE))), \"x\")","v":3708.1975558496147},{"$f":"(VLOOKUP(B36,Funding,Funding!$HK$2,FALSE)+VLOOKUP(B36,Funding,Funding!$HL$2,FALSE)+VLOOKUP(B36,Funding,Funding!$HM$2,FALSE))/(VLOOKUP(B36,Funding,Funding!$HN$2,FALSE))","v":0.17122920021470747},{"$f":"IFERROR((VLOOKUP(B36,Other_data,Other!$D$3,FALSE)+VLOOKUP(B36,Other_data,Other!$E$3,FALSE)+VLOOKUP(B36,Other_data,Other!$F$3,FALSE)), \"x\")","v":2390},{"$f":"(VLOOKUP(B36,Other_data,Other!$AK$3,FALSE)+VLOOKUP(B36,Other_data,Other!$AL$3,FALSE))/VLOOKUP(B36,Other_data,Other!$AJ$3,FALSE)","v":3.891075202146102E-2},{"$f":"(VLOOKUP(B36,Other_data,Other!$AR$3,FALSE)+VLOOKUP(B36,Other_data,Other!$AS$3,FALSE))/VLOOKUP(B36,Other_data,Other!$AQ$3,FALSE)","v":5.0706507493983366E-2},{"$f":"VLOOKUP(B36,Other_data,Other!$AP$3,FALSE)/VLOOKUP(B36,Other_data,Other!$AJ$3,FALSE)","v":7.4404950206891319E-3},{"$f":"VLOOKUP(B36,Other_data,Other!$AW$3,FALSE)/VLOOKUP(B36,Other_data,Other!$AQ$3,FALSE)","v":1.2271546691448042E-2}]
[31,909,"Cumbria",{"$f":"IFERROR((VLOOKUP($B37,Pupils,Pupils!$D$3,FALSE)/VLOOKUP($B37,Pupils,Pupils!$C$3,FALSE)), \"x\")","v":3.04E-2},{"$f":"IFERROR((VLOOKUP($B37,Pupils,Pupils!$G$3,FALSE)/VLOOKUP($B37,Pupils,Pupils!$F$3,FALSE)),\"x\")","v":3.0094502861706375E-2},{"$f":"IFERROR((VLOOKUP($B37,Pupils,Pupils!$J$3,FALSE)/VLOOKUP($B37,Pupils,Pupils!$I$3,FALSE)), \"x\")","v":2.9285936002807132E-2},{"$f":"IFERROR((VLOOKUP($B37,Pupils,Pupils!$M$3,FALSE)/VLOOKUP($B37,Pupils,Pupils!$L$3,FALSE)), \"x\")","v":2.9843837220384212E-2},{"$f":"IFERROR((VLOOKUP($B37,Pupils,Pupils!$R$3,FALSE)/VLOOKUP($B37,Pupils,Pupils!$Q$3,FALSE)), \"x\")","v":2.9079382579933848E-2},{"$f":"IFERROR((VLOOKUP($B37,Pupils,Pupils!$W$3,FALSE)/VLOOKUP($B37,Pupils,Pupils!$V$3,FALSE)), \"x\")","v":2.9060043485532698E-2},{"$f":"IFERROR(((VLOOKUP($B37,Pupils,Pupils!$D$3,FALSE)+VLOOKUP($B37,Pupils,Pupils!$E$3,FALSE))/VLOOKUP($B37,Pupils,Pupils!$C$3,FALSE)), \"x\")","v":0.19276065573770493},{"$f":"IFERROR(((VLOOKUP($B37,Pupils,Pupils!$G$3,FALSE)+VLOOKUP($B37,Pupils,Pupils!$H$3,FALSE))/VLOOKUP($B37,Pupils,Pupils!$F$3,FALSE)), \"x\")","v":0.19600692133635034},{"$f":"IFERROR(((VLOOKUP($B37,Pupils,Pupils!$J$3,FALSE)+VLOOKUP($B37,Pupils,Pupils!$K$3,FALSE))/VLOOKUP($B37,Pupils,Pupils!$I$3,FALSE)), \"x\")","v":0.19347611914112584},{"$f":"IFERROR(((VLOOKUP($B37,Pupils,Pupils!$M$3,FALSE)+VLOOKUP($B37,Pupils,Pupils!$P$3,FALSE))/VLOOKUP($B37,Pupils,Pupils!$L$3,FALSE)), \"x\")","v":0.18164985227845171},{"$f":"IFERROR(((VLOOKUP($B37,Pupils,Pupils!$R$3,FALSE)+VLOOKUP($B37,Pupils,Pupils!$U$3,FALSE))/VLOOKUP($B37,Pupils,Pupils!$Q$3,FALSE)), \"x\")","v":0.17730154355016539},{"$f":"IFERROR(((VLOOKUP($B37,Pupils,Pupils!$W$3,FALSE)+VLOOKUP($B37,Pupils,Pupils!$Z$3,FALSE))/VLOOKUP($B37,Pupils,Pupils!$V$3,FALSE)), \"x\")","v":0.16881306796008252},{"$f":"(SUM(INDEX(Pupils!$AB$7:$AB$159,MATCH($B37,Pupils!$A$7:$A$159,0)),INDEX(Pupils!$AC$7:$AC$159,MATCH($B37,Pupils!$A$7:$A$159,0)),INDEX(Pupils!$AD$7:$AD$159,MATCH($B37,Pupils!$A$7:$A$159,0)),INDEX(Pupils!$AE$7:$AE$159,MATCH($B37,Pupils!$A$7:$A$159,0))))/SUM(INDEX(Pupils!$AB$7:$AM$159,MATCH($B37,Pupils!$A$7:$A$159,0),0))","v":0.36151331153666511},{"$f":"SUM(INDEX(Pupils!$AF$7:$AF$159,MATCH($B37,Pupils!$A$7:$A$159,0)))/SUM(INDEX(Pupils!$AB$7:$AM$159,MATCH($B37,Pupils!$A$7:$A$159,0),0))","v":0.16978047641289118},{"$f":"SUM(INDEX(Pupils!$AG$7:$AG$159,MATCH($B37,Pupils!$A$7:$A$159,0)))/SUM(INDEX(Pupils!$AB$7:$AM$159,MATCH($B37,Pupils!$A$7:$A$159,0),0))","v":0.21438580102755722},{"$f":"(SUM(INDEX(Pupils!$AH$7:$AH$159,MATCH($B37,Pupils!$A$7:$A$159,0)),INDEX(Pupils!$AI$7:$AI$159,MATCH($B37,Pupils!$A$7:$A$159,0)),INDEX(Pupils!$AJ$7:$AJ$159,MATCH($B37,Pupils!$A$7:$A$159,0))))/SUM(INDEX(Pupils!$AB$7:$AM$159,MATCH($B37,Pupils!$A$7:$A$159,0),0))","v":4.0168145726296123E-2},{"$f":"SUM(INDEX(Pupils!$AK$7:$AK$159,MATCH($B37,Pupils!$A$7:$A$159,0)))/SUM(INDEX(Pupils!$AB$7:$AM$159,MATCH($B37,Pupils!$A$7:$A$159,0),0))","v":4.3904717421765528E-2},{"$f":"SUM(INDEX(Pupils!$AL$7:$AL$159,MATCH($B37,Pupils!$A$7:$A$159,0)))/SUM(INDEX(Pupils!$AB$7:$AM$159,MATCH($B37,Pupils!$A$7:$A$159,0),0))","v":0.11349836524988323},{"$f":"SUM(INDEX(Pupils!$AM$7:$AM$159,MATCH($B37,Pupils!$A$7:$A$159,0)))/SUM(INDEX(Pupils!$AB$7:$AM$159,MATCH($B37,Pupils!$A$7:$A$159,0),0))","v":5.6749182624941615E-2},{"$f":"(SUM(INDEX(Pupils!$BH$7:$BH$159,MATCH($B37,Pupils!$A$7:$A$159,0)),INDEX(Pupils!$BK$7:$BK$159,MATCH($B37,Pupils!$A$7:$A$159,0)),INDEX(Pupils!$BO$7:$BO$159,MATCH($B37,Pupils!$A$7:$A$159,0))))/SUM(INDEX(Pupils!$BH$7:$BS$159,MATCH($B37,Pupils!$A$7:$A$159,0),0))","v":0.71741245136186771},{"$f":"(SUM(INDEX(Pupils!$BL$7:$BL$159,MATCH($B37,Pupils!$A$7:$A$159,0)),INDEX(Pupils!$BM$7:$BM$159,MATCH($B37,Pupils!$A$7:$A$159,0)),INDEX(Pupils!$BP$7:$BP$159,MATCH($B37,Pupils!$A$7:$A$159,0))))/SUM(INDEX(Pupils!$BH$7:$BS$159,MATCH($B37,Pupils!$A$7:$A$159,0),0))","v":0.26945525291828792},{"$f":"(SUM(INDEX(Pupils!$BI$7:$BI$159,MATCH($B37,Pupils!$A$7:$A$159,0)),INDEX(Pupils!$BJ$7:$BJ$159,MATCH($B37,Pupils!$A$7:$A$159,0))))/SUM(INDEX(Pupils!$BH$7:$BS$159,MATCH($B37,Pupils!$A$7:$A$159,0),0))","v":0},{"$f":"(SUM(INDEX(Pupils!$BQ$7:$BQ$159,MATCH($B37,Pupils!$A$7:$A$159,0)),INDEX(Pupils!$BR$7:$BR$159,MATCH($B37,Pupils!$A$7:$A$159,0)),INDEX(Pupils!$BN$7:$BN$159,MATCH($B37,Pupils!$A$7:$A$159,0)),INDEX(Pupils!$BS$7:$BS$159,MATCH($B37,Pupils!$A$7:$A$159,0))))/SUM(INDEX(Pupils!$BH$7:$BS$159,MATCH($B37,Pupils!$A$7:$A$159,0),0))","v":1.3132295719844358E-2},{"$f":"IFERROR((VLOOKUP(B37,Funding,Funding!$C$2,FALSE)), \"x\")","v":33386771.000000004},{"$f":"IFERROR((AA37/VLOOKUP(B37,Funding,Funding!$D$2,FALSE)), \"x\")","v":0.10474507499548563},{"$f":"IFERROR((AA37/(VLOOKUP(B37,Pupils,Pupils!$M$3,FALSE)+VLOOKUP(B37,Pupils,Pupils!$P$3,FALSE))), \"x\")","v":2502.3812771698399},{"$f":"IFERROR((VLOOKUP(B37,Funding,Funding!$E$2,FALSE)), \"x\")","v":36717440.333339587},{"$f":"IFERROR((AD37/VLOOKUP(B37,Funding,Funding!$F$2,FALSE)), \"x\")","v":0.11338568348630666},{"$f":"IFERROR((AD37/(VLOOKUP(B37,Pupils,Pupils!$R$3,FALSE)+VLOOKUP(B37,Pupils,Pupils!$U$3,FALSE))), \"x\")","v":2854.056769012016},{"$f":"IFERROR((VLOOKUP(B37,Funding,Funding!$G$2,FALSE)), \"x\")","v":39052750.426921681},{"$f":"IFERROR((AG37/VLOOKUP(B37,Funding,Funding!$H$2,FALSE)), \"x\")","v":0.11985238925683286},{"$f":"IFERROR((AG37/(VLOOKUP(B37,Pupils,Pupils!$W$3,FALSE)+VLOOKUP(B37,Pupils,Pupils!$Z$3,FALSE))), \"x\")","v":3224.3023800298615},{"$f":"IFERROR((VLOOKUP(B37,Funding,Funding!$I$2,FALSE)), \"x\")","v":39543310.251176707},{"$f":"IFERROR((AJ37/VLOOKUP(B37,Funding,Funding!$J$2,FALSE)), \"x\")","v":0.11986635217622792},null,{"$f":"IFERROR((VLOOKUP($B37,Funding,Funding!$EC$2,FALSE)), \"x\")","v":18598587},{"$f":"IFERROR((AM37/VLOOKUP($B37,Funding,Funding!$EU$2,FALSE)), \"x\")","v":5.5879387638434565E-2},{"$f":"IFERROR((AM37/(VLOOKUP($B37,Pupils,Pupils!$D$3,FALSE)+VLOOKUP($B37,Pupils,Pupils!$E$3,FALSE))), \"x\")","v":1265.3821608382093},{"$f":"IFERROR((VLOOKUP($B37,Funding,Funding!$DA$2,FALSE)), \"x\")","v":19358042.17704},{"$f":"IFERROR((AP37/VLOOKUP($B37,Funding,Funding!$DT$2,FALSE)), \"x\")","v":5.9715163126527609E-2},{"$f":"IFERROR((AP37/(VLOOKUP($B37,Pupils,Pupils!$G$3,FALSE)+VLOOKUP($B37,Pupils,Pupils!$H$3,FALSE))), \"x\")","v":1314.5485656009778},{"$f":"IFERROR((VLOOKUP($B37,Funding,Funding!$CE$2,FALSE)), \"x\")","v":21282702},{"$f":"IFERROR((AS37/VLOOKUP($B37,Funding,Funding!$CR$2,FALSE)), \"x\")","v":7.1109798869663426E-2},{"$f":"IFERROR((AS37/(VLOOKUP($B37,Pupils,Pupils!$J$3,FALSE)+VLOOKUP($B37,Pupils,Pupils!$K$3,FALSE))), \"x\")","v":1484.5634765625},{"$f":"IFERROR((VLOOKUP($B37,Funding,Funding!$BM$2,FALSE)), \"x\")","v":21797609.09},{"$f":"IFERROR((AV37/VLOOKUP($B37,Funding,Funding!$BY$2,FALSE)), \"x\")","v":8.0666645535386425E-2},{"$f":"IFERROR((AV37/(VLOOKUP($B37,Pupils,Pupils!$M$3,FALSE)+VLOOKUP($B37,Pupils,Pupils!$P$3,FALSE))), \"x\")","v":1633.7587385699296},{"$f":"IFERROR((VLOOKUP($B37,Funding,Funding!$AQ$2,FALSE)), \"x\")","v":33840566.969999999},{"$f":"IFERROR((AY37/VLOOKUP($B37,Funding,Funding!$BE$2,FALSE)), \"x\")","v":9.9514068318445836E-2},{"$f":"IFERROR((AY37/(VLOOKUP($B37,Pupils,Pupils!$R$3,FALSE)+VLOOKUP($B37,Pupils,Pupils!$U$3,FALSE))), \"x\")","v":2630.4366086280606},{"$f":"IFERROR((VLOOKUP($B37,Funding,Funding!$S$2,FALSE)), \"x\")","v":30950465.350000001},{"$f":"IFERROR((BB37/VLOOKUP($B37,Funding,Funding!$AH$2,FALSE)), \"x\")","v":9.2305038920120042E-2},{"$f":"IFERROR((BB37/(VLOOKUP(B37,Pupils,Pupils!$W$3,FALSE)+VLOOKUP(B37,Pupils,Pupils!$Z$3,FALSE))), \"x\")","v":2555.3554615257599},{"$f":"IFERROR((VLOOKUP($B37,Funding,Funding!$GX$2,FALSE)), \"x\")","v":32019794},{"$f":"IFERROR((BE37/VLOOKUP($B37,Funding,Funding!$HC$2,FALSE)), \"x\")","v":8.4952755422149515E-2},{"$f":"IFERROR((BE37/(VLOOKUP($B37,Pupils,Pupils!$D$3,FALSE)+VLOOKUP($B37,Pupils,Pupils!$E$3,FALSE))), \"x\")","v":2178.5136753299766},{"$f":"IFERROR((VLOOKUP($B37,Funding,Funding!$GP$2,FALSE)), \"x\")","v":31660589},{"$f":"IFERROR((BH37/VLOOKUP($B37,Funding,Funding!$GU$2,FALSE)), \"x\")","v":8.8600743574203694E-2},{"$f":"IFERROR((BH37/(VLOOKUP($B37,Pupils,Pupils!$G$3,FALSE)+VLOOKUP($B37,Pupils,Pupils!$H$3,FALSE))), \"x\")","v":2149.9788808909411},{"$f":"IFERROR((VLOOKUP($B37,Funding,Funding!$GH$2,FALSE)), \"x\")","v":31247601.880000003},{"$f":"IFERROR((BK37/VLOOKUP($B37,Funding,Funding!$GM$2,FALSE)), \"x\")","v":0.10225046201959094},{"$f":"IFERROR((BK37/(VLOOKUP($B37,Pupils,Pupils!$J$3,FALSE)+VLOOKUP($B37,Pupils,Pupils!$K$3,FALSE))), \"x\")","v":2179.6597293526788},{"$f":"IFERROR((VLOOKUP($B37,Funding,Funding!$FZ$2,FALSE)), \"x\")","v":29779235.899999999},{"$f":"IFERROR((BN37/VLOOKUP($B37,Funding,Funding!$GE$2,FALSE)), \"x\")","v":0.1027639273088487},{"$f":"IFERROR((BN37/(VLOOKUP($B37,Pupils,Pupils!$M$3,FALSE)+VLOOKUP($B37,Pupils,Pupils!$P$3,FALSE))), \"x\")","v":2231.9918977664515},{"$f":"IFERROR((VLOOKUP($B37,Funding,Funding!$FD$2,FALSE)), \"x\")","v":34670621},{"$f":"IFERROR((BQ37/VLOOKUP($B37,Funding,Funding!$FR$2,FALSE)), \"x\")","v":0.13066066054952574},{"$f":"IFERROR((BQ37/(VLOOKUP($B37,Pupils,Pupils!$R$3,FALSE)+VLOOKUP($B37,Pupils,Pupils!$U$3,FALSE))), \"x\")","v":2694.9569374271277},{"$f":"(VLOOKUP(B37,Funding,Funding!$HK$2,FALSE)+VLOOKUP(B37,Funding,Funding!$HL$2,FALSE)+VLOOKUP(B37,Funding,Funding!$HM$2,FALSE))/(VLOOKUP(B37,Funding,Funding!$HN$2,FALSE))","v":0.38853503184713378},{"$f":"IFERROR((VLOOKUP(B37,Other_data,Other!$D$3,FALSE)+VLOOKUP(B37,Other_data,Other!$E$3,FALSE)+VLOOKUP(B37,Other_data,Other!$F$3,FALSE)), \"x\")","v":2250},{"$f":"(VLOOKUP(B37,Other_data,Other!$AK$3,FALSE)+VLOOKUP(B37,Other_data,Other!$AL$3,FALSE))/VLOOKUP(B37,Other_data,Other!$AJ$3,FALSE)","v":3.5063977864504672E-2},{"$f":"(VLOOKUP(B37,Other_data,Other!$AR$3,FALSE)+VLOOKUP(B37,Other_data,Other!$AS$3,FALSE))/VLOOKUP(B37,Other_data,Other!$AQ$3,FALSE)","v":5.3648741921315177E-2},{"$f":"VLOOKUP(B37,Other_data,Other!$AP$3,FALSE)/VLOOKUP(B37,Other_data,Other!$AJ$3,FALSE)","v":5.3647161171054697E-3},{"$f":"VLOOKUP(B37,Other_data,Other!$AW$3,FALSE)/VLOOKUP(B37,Other_data,Other!$AQ$3,FALSE)","v":1.0876158206270524E-2}]
[32,841,"Darlington",{"$f":"IFERROR((VLOOKUP($B38,Pupils,Pupils!$D$3,FALSE)/VLOOKUP($B38,Pupils,Pupils!$C$3,FALSE)), \"x\")","v":2.7142230301510688E-2},{"$f":"IFERROR((VLOOKUP($B38,Pupils,Pupils!$G$3,FALSE)/VLOOKUP($B38,Pupils,Pupils!$F$3,FALSE)),\"x\")","v":2.4775060195159043E-2},{"$f":"IFERROR((VLOOKUP($B38,Pupils,Pupils!$J$3,FALSE)/VLOOKUP($B38,Pupils,Pupils!$I$3,FALSE)), \"x\")","v":2.4320366715477177E-2},{"$f":"IFERROR((VLOOKUP($B38,Pupils,Pupils!$M$3,FALSE)/VLOOKUP($B38,Pupils,Pupils!$L$3,FALSE)), \"x\")","v":2.4265970320361759E-2},{"$f":"IFERROR((VLOOKUP($B38,Pupils,Pupils!$R$3,FALSE)/VLOOKUP($B38,Pupils,Pupils!$Q$3,FALSE)), \"x\")","v":2.6648143470573378E-2},{"$f":"IFERROR((VLOOKUP($B38,Pupils,Pupils!$W$3,FALSE)/VLOOKUP($B38,Pupils,Pupils!$V$3,FALSE)), \"x\")","v":2.7908156793099072E-2},{"$f":"IFERROR(((VLOOKUP($B38,Pupils,Pupils!$D$3,FALSE)+VLOOKUP($B38,Pupils,Pupils!$E$3,FALSE))/VLOOKUP($B38,Pupils,Pupils!$C$3,FALSE)), \"x\")","v":0.22259136212624583},{"$f":"IFERROR(((VLOOKUP($B38,Pupils,Pupils!$G$3,FALSE)+VLOOKUP($B38,Pupils,Pupils!$H$3,FALSE))/VLOOKUP($B38,Pupils,Pupils!$F$3,FALSE)), \"x\")","v":0.21720947915346597},{"$f":"IFERROR(((VLOOKUP($B38,Pupils,Pupils!$J$3,FALSE)+VLOOKUP($B38,Pupils,Pupils!$K$3,FALSE))/VLOOKUP($B38,Pupils,Pupils!$I$3,FALSE)), \"x\")","v":0.20061119246195963},{"$f":"IFERROR(((VLOOKUP($B38,Pupils,Pupils!$M$3,FALSE)+VLOOKUP($B38,Pupils,Pupils!$P$3,FALSE))/VLOOKUP($B38,Pupils,Pupils!$L$3,FALSE)), \"x\")","v":0.19228074644927073},{"$f":"IFERROR(((VLOOKUP($B38,Pupils,Pupils!$R$3,FALSE)+VLOOKUP($B38,Pupils,Pupils!$U$3,FALSE))/VLOOKUP($B38,Pupils,Pupils!$Q$3,FALSE)), \"x\")","v":0.1751073503409952},{"$f":"IFERROR(((VLOOKUP($B38,Pupils,Pupils!$W$3,FALSE)+VLOOKUP($B38,Pupils,Pupils!$Z$3,FALSE))/VLOOKUP($B38,Pupils,Pupils!$V$3,FALSE)), \"x\")","v":0.18501839401243181},{"$f":"(SUM(INDEX(Pupils!$AB$7:$AB$159,MATCH($B38,Pupils!$A$7:$A$159,0)),INDEX(Pupils!$AC$7:$AC$159,MATCH($B38,Pupils!$A$7:$A$159,0)),INDEX(Pupils!$AD$7:$AD$159,MATCH($B38,Pupils!$A$7:$A$159,0)),INDEX(Pupils!$AE$7:$AE$159,MATCH($B38,Pupils!$A$7:$A$159,0))))/SUM(INDEX(Pupils!$AB$7:$AM$159,MATCH($B38,Pupils!$A$7:$A$159,0),0))","v":0.28225806451612906},{"$f":"SUM(INDEX(Pupils!$AF$7:$AF$159,MATCH($B38,Pupils!$A$7:$A$159,0)))/SUM(INDEX(Pupils!$AB$7:$AM$159,MATCH($B38,Pupils!$A$7:$A$159,0),0))","v":0.22580645161290322},{"$f":"SUM(INDEX(Pupils!$AG$7:$AG$159,MATCH($B38,Pupils!$A$7:$A$159,0)))/SUM(INDEX(Pupils!$AB$7:$AM$159,MATCH($B38,Pupils!$A$7:$A$159,0),0))","v":0.23118279569892472},{"$f":"(SUM(INDEX(Pupils!$AH$7:$AH$159,MATCH($B38,Pupils!$A$7:$A$159,0)),INDEX(Pupils!$AI$7:$AI$159,MATCH($B38,Pupils!$A$7:$A$159,0)),INDEX(Pupils!$AJ$7:$AJ$159,MATCH($B38,Pupils!$A$7:$A$159,0))))/SUM(INDEX(Pupils!$AB$7:$AM$159,MATCH($B38,Pupils!$A$7:$A$159,0),0))","v":3.7634408602150539E-2},{"$f":"SUM(INDEX(Pupils!$AK$7:$AK$159,MATCH($B38,Pupils!$A$7:$A$159,0)))/SUM(INDEX(Pupils!$AB$7:$AM$159,MATCH($B38,Pupils!$A$7:$A$159,0),0))","v":5.5779569892473117E-2},{"$f":"SUM(INDEX(Pupils!$AL$7:$AL$159,MATCH($B38,Pupils!$A$7:$A$159,0)))/SUM(INDEX(Pupils!$AB$7:$AM$159,MATCH($B38,Pupils!$A$7:$A$159,0),0))","v":0.1424731182795699},{"$f":"SUM(INDEX(Pupils!$AM$7:$AM$159,MATCH($B38,Pupils!$A$7:$A$159,0)))/SUM(INDEX(Pupils!$AB$7:$AM$159,MATCH($B38,Pupils!$A$7:$A$159,0),0))","v":2.4865591397849461E-2},{"$f":"(SUM(INDEX(Pupils!$BH$7:$BH$159,MATCH($B38,Pupils!$A$7:$A$159,0)),INDEX(Pupils!$BK$7:$BK$159,MATCH($B38,Pupils!$A$7:$A$159,0)),INDEX(Pupils!$BO$7:$BO$159,MATCH($B38,Pupils!$A$7:$A$159,0))))/SUM(INDEX(Pupils!$BH$7:$BS$159,MATCH($B38,Pupils!$A$7:$A$159,0),0))","v":0.35365853658536583},{"$f":"(SUM(INDEX(Pupils!$BL$7:$BL$159,MATCH($B38,Pupils!$A$7:$A$159,0)),INDEX(Pupils!$BM$7:$BM$159,MATCH($B38,Pupils!$A$7:$A$159,0)),INDEX(Pupils!$BP$7:$BP$159,MATCH($B38,Pupils!$A$7:$A$159,0))))/SUM(INDEX(Pupils!$BH$7:$BS$159,MATCH($B38,Pupils!$A$7:$A$159,0),0))","v":0.6121951219512195},{"$f":"(SUM(INDEX(Pupils!$BI$7:$BI$159,MATCH($B38,Pupils!$A$7:$A$159,0)),INDEX(Pupils!$BJ$7:$BJ$159,MATCH($B38,Pupils!$A$7:$A$159,0))))/SUM(INDEX(Pupils!$BH$7:$BS$159,MATCH($B38,Pupils!$A$7:$A$159,0),0))","v":0},{"$f":"(SUM(INDEX(Pupils!$BQ$7:$BQ$159,MATCH($B38,Pupils!$A$7:$A$159,0)),INDEX(Pupils!$BR$7:$BR$159,MATCH($B38,Pupils!$A$7:$A$159,0)),INDEX(Pupils!$BN$7:$BN$159,MATCH($B38,Pupils!$A$7:$A$159,0)),INDEX(Pupils!$BS$7:$BS$159,MATCH($B38,Pupils!$A$7:$A$159,0))))/SUM(INDEX(Pupils!$BH$7:$BS$159,MATCH($B38,Pupils!$A$7:$A$159,0),0))","v":3.4146341463414637E-2},{"$f":"IFERROR((VLOOKUP(B38,Funding,Funding!$C$2,FALSE)), \"x\")","v":8228503.9999999991},{"$f":"IFERROR((AA38/VLOOKUP(B38,Funding,Funding!$D$2,FALSE)), \"x\")","v":0.11642463284111611},{"$f":"IFERROR((AA38/(VLOOKUP(B38,Pupils,Pupils!$M$3,FALSE)+VLOOKUP(B38,Pupils,Pupils!$P$3,FALSE))), \"x\")","v":2725.5727061941038},{"$f":"IFERROR((VLOOKUP(B38,Funding,Funding!$E$2,FALSE)), \"x\")","v":9029168.2873922344},{"$f":"IFERROR((AD38/VLOOKUP(B38,Funding,Funding!$F$2,FALSE)), \"x\")","v":0.12329229603032547},{"$f":"IFERROR((AD38/(VLOOKUP(B38,Pupils,Pupils!$R$3,FALSE)+VLOOKUP(B38,Pupils,Pupils!$U$3,FALSE))), \"x\")","v":3256.1010773141847},{"$f":"IFERROR((VLOOKUP(B38,Funding,Funding!$G$2,FALSE)), \"x\")","v":9050915.9030919671},{"$f":"IFERROR((AG38/VLOOKUP(B38,Funding,Funding!$H$2,FALSE)), \"x\")","v":0.12184141273340771},{"$f":"IFERROR((AG38/(VLOOKUP(B38,Pupils,Pupils!$W$3,FALSE)+VLOOKUP(B38,Pupils,Pupils!$Z$3,FALSE))), \"x\")","v":3102.8165591676266},{"$f":"IFERROR((VLOOKUP(B38,Funding,Funding!$I$2,FALSE)), \"x\")","v":9241582.864748301},{"$f":"IFERROR((AJ38/VLOOKUP(B38,Funding,Funding!$J$2,FALSE)), \"x\")","v":0.12106612778867232},null,{"$f":"IFERROR((VLOOKUP($B38,Funding,Funding!$EC$2,FALSE)), \"x\")","v":5077762.58},{"$f":"IFERROR((AM38/VLOOKUP($B38,Funding,Funding!$EU$2,FALSE)), \"x\")","v":7.3658075240324958E-2},{"$f":"IFERROR((AM38/(VLOOKUP($B38,Pupils,Pupils!$D$3,FALSE)+VLOOKUP($B38,Pupils,Pupils!$E$3,FALSE))), \"x\")","v":1429.9528527175444},{"$f":"IFERROR((VLOOKUP($B38,Funding,Funding!$DA$2,FALSE)), \"x\")","v":6053973.5900699999},{"$f":"IFERROR((AP38/VLOOKUP($B38,Funding,Funding!$DT$2,FALSE)), \"x\")","v":7.6160959473732276E-2},{"$f":"IFERROR((AP38/(VLOOKUP($B38,Pupils,Pupils!$G$3,FALSE)+VLOOKUP($B38,Pupils,Pupils!$H$3,FALSE))), \"x\")","v":1766.0366365431739},{"$f":"IFERROR((VLOOKUP($B38,Funding,Funding!$CE$2,FALSE)), \"x\")","v":6350310.1940000001},{"$f":"IFERROR((AS38/VLOOKUP($B38,Funding,Funding!$CR$2,FALSE)), \"x\")","v":8.4093536984190809E-2},{"$f":"IFERROR((AS38/(VLOOKUP($B38,Pupils,Pupils!$J$3,FALSE)+VLOOKUP($B38,Pupils,Pupils!$K$3,FALSE))), \"x\")","v":2015.3317023167249},{"$f":"IFERROR((VLOOKUP($B38,Funding,Funding!$BM$2,FALSE)), \"x\")","v":2018726},{"$f":"IFERROR((AV38/VLOOKUP($B38,Funding,Funding!$BY$2,FALSE)), \"x\")","v":5.7224828749946312E-2},{"$f":"IFERROR((AV38/(VLOOKUP($B38,Pupils,Pupils!$M$3,FALSE)+VLOOKUP($B38,Pupils,Pupils!$P$3,FALSE))), \"x\")","v":668.67373302418014},{"$f":"IFERROR((VLOOKUP($B38,Funding,Funding!$AQ$2,FALSE)), \"x\")","v":9138376},{"$f":"IFERROR((AY38/VLOOKUP($B38,Funding,Funding!$BE$2,FALSE)), \"x\")","v":0.12521496543644622},{"$f":"IFERROR((AY38/(VLOOKUP($B38,Pupils,Pupils!$R$3,FALSE)+VLOOKUP($B38,Pupils,Pupils!$U$3,FALSE))), \"x\")","v":3295.4835917778578},{"$f":"IFERROR((VLOOKUP($B38,Funding,Funding!$S$2,FALSE)), \"x\")","v":9138845},{"$f":"IFERROR((BB38/VLOOKUP($B38,Funding,Funding!$AH$2,FALSE)), \"x\")","v":0.12246993415310202},{"$f":"IFERROR((BB38/(VLOOKUP(B38,Pupils,Pupils!$W$3,FALSE)+VLOOKUP(B38,Pupils,Pupils!$Z$3,FALSE))), \"x\")","v":3132.9602331162155},{"$f":"IFERROR((VLOOKUP($B38,Funding,Funding!$GX$2,FALSE)), \"x\")","v":9276039.0463999994},{"$f":"IFERROR((BE38/VLOOKUP($B38,Funding,Funding!$HC$2,FALSE)), \"x\")","v":0.12411973704199539},{"$f":"IFERROR((BE38/(VLOOKUP($B38,Pupils,Pupils!$D$3,FALSE)+VLOOKUP($B38,Pupils,Pupils!$E$3,FALSE))), \"x\")","v":2612.2329052097998},{"$f":"IFERROR((VLOOKUP($B38,Funding,Funding!$GP$2,FALSE)), \"x\")","v":9412836.9499999993},{"$f":"IFERROR((BH38/VLOOKUP($B38,Funding,Funding!$GU$2,FALSE)), \"x\")","v":0.12368399209335312},{"$f":"IFERROR((BH38/(VLOOKUP($B38,Pupils,Pupils!$G$3,FALSE)+VLOOKUP($B38,Pupils,Pupils!$H$3,FALSE))), \"x\")","v":2745.868421820303},{"$f":"IFERROR((VLOOKUP($B38,Funding,Funding!$GH$2,FALSE)), \"x\")","v":9034225.3100000005},{"$f":"IFERROR((BK38/VLOOKUP($B38,Funding,Funding!$GM$2,FALSE)), \"x\")","v":0.1514474201971264},{"$f":"IFERROR((BK38/(VLOOKUP($B38,Pupils,Pupils!$J$3,FALSE)+VLOOKUP($B38,Pupils,Pupils!$K$3,FALSE))), \"x\")","v":2867.0978451285309},{"$f":"IFERROR((VLOOKUP($B38,Funding,Funding!$FZ$2,FALSE)), \"x\")","v":3068386.34},{"$f":"IFERROR((BN38/VLOOKUP($B38,Funding,Funding!$GE$2,FALSE)), \"x\")","v":0.11047995831417502},{"$f":"IFERROR((BN38/(VLOOKUP($B38,Pupils,Pupils!$M$3,FALSE)+VLOOKUP($B38,Pupils,Pupils!$P$3,FALSE))), \"x\")","v":1016.3585094402119},{"$f":"IFERROR((VLOOKUP($B38,Funding,Funding!$FD$2,FALSE)), \"x\")","v":6280367},{"$f":"IFERROR((BQ38/VLOOKUP($B38,Funding,Funding!$FR$2,FALSE)), \"x\")","v":0.25753120979000993},{"$f":"IFERROR((BQ38/(VLOOKUP($B38,Pupils,Pupils!$R$3,FALSE)+VLOOKUP($B38,Pupils,Pupils!$U$3,FALSE))), \"x\")","v":2264.8276235124413},{"$f":"(VLOOKUP(B38,Funding,Funding!$HK$2,FALSE)+VLOOKUP(B38,Funding,Funding!$HL$2,FALSE)+VLOOKUP(B38,Funding,Funding!$HM$2,FALSE))/(VLOOKUP(B38,Funding,Funding!$HN$2,FALSE))","v":0.22345132743362831},{"$f":"IFERROR((VLOOKUP(B38,Other_data,Other!$D$3,FALSE)+VLOOKUP(B38,Other_data,Other!$E$3,FALSE)+VLOOKUP(B38,Other_data,Other!$F$3,FALSE)), \"x\")","v":640},{"$f":"(VLOOKUP(B38,Other_data,Other!$AK$3,FALSE)+VLOOKUP(B38,Other_data,Other!$AL$3,FALSE))/VLOOKUP(B38,Other_data,Other!$AJ$3,FALSE)","v":3.9688445701245224E-2},{"$f":"(VLOOKUP(B38,Other_data,Other!$AR$3,FALSE)+VLOOKUP(B38,Other_data,Other!$AS$3,FALSE))/VLOOKUP(B38,Other_data,Other!$AQ$3,FALSE)","v":5.2845896298977471E-2},{"$f":"VLOOKUP(B38,Other_data,Other!$AP$3,FALSE)/VLOOKUP(B38,Other_data,Other!$AJ$3,FALSE)","v":6.5982040978320184E-3},{"$f":"VLOOKUP(B38,Other_data,Other!$AW$3,FALSE)/VLOOKUP(B38,Other_data,Other!$AQ$3,FALSE)","v":9.5918921364582382E-3}]
[33,831,"Derby",{"$f":"IFERROR((VLOOKUP($B39,Pupils,Pupils!$D$3,FALSE)/VLOOKUP($B39,Pupils,Pupils!$C$3,FALSE)), \"x\")","v":2.5107710592779674E-2},{"$f":"IFERROR((VLOOKUP($B39,Pupils,Pupils!$G$3,FALSE)/VLOOKUP($B39,Pupils,Pupils!$F$3,FALSE)),\"x\")","v":2.5104706203068077E-2},{"$f":"IFERROR((VLOOKUP($B39,Pupils,Pupils!$J$3,FALSE)/VLOOKUP($B39,Pupils,Pupils!$I$3,FALSE)), \"x\")","v":2.6068924656857905E-2},{"$f":"IFERROR((VLOOKUP($B39,Pupils,Pupils!$M$3,FALSE)/VLOOKUP($B39,Pupils,Pupils!$L$3,FALSE)), \"x\")","v":2.5281724644781969E-2},{"$f":"IFERROR((VLOOKUP($B39,Pupils,Pupils!$R$3,FALSE)/VLOOKUP($B39,Pupils,Pupils!$Q$3,FALSE)), \"x\")","v":2.7291291291291292E-2},{"$f":"IFERROR((VLOOKUP($B39,Pupils,Pupils!$W$3,FALSE)/VLOOKUP($B39,Pupils,Pupils!$V$3,FALSE)), \"x\")","v":2.7565996378538071E-2},{"$f":"IFERROR(((VLOOKUP($B39,Pupils,Pupils!$D$3,FALSE)+VLOOKUP($B39,Pupils,Pupils!$E$3,FALSE))/VLOOKUP($B39,Pupils,Pupils!$C$3,FALSE)), \"x\")","v":0.21277175258753034},{"$f":"IFERROR(((VLOOKUP($B39,Pupils,Pupils!$G$3,FALSE)+VLOOKUP($B39,Pupils,Pupils!$H$3,FALSE))/VLOOKUP($B39,Pupils,Pupils!$F$3,FALSE)), \"x\")","v":0.22430670863175634},{"$f":"IFERROR(((VLOOKUP($B39,Pupils,Pupils!$J$3,FALSE)+VLOOKUP($B39,Pupils,Pupils!$K$3,FALSE))/VLOOKUP($B39,Pupils,Pupils!$I$3,FALSE)), \"x\")","v":0.21383430433494618},{"$f":"IFERROR(((VLOOKUP($B39,Pupils,Pupils!$M$3,FALSE)+VLOOKUP($B39,Pupils,Pupils!$P$3,FALSE))/VLOOKUP($B39,Pupils,Pupils!$L$3,FALSE)), \"x\")","v":0.20391964723174913},{"$f":"IFERROR(((VLOOKUP($B39,Pupils,Pupils!$R$3,FALSE)+VLOOKUP($B39,Pupils,Pupils!$U$3,FALSE))/VLOOKUP($B39,Pupils,Pupils!$Q$3,FALSE)), \"x\")","v":0.19144744744744746},{"$f":"IFERROR(((VLOOKUP($B39,Pupils,Pupils!$W$3,FALSE)+VLOOKUP($B39,Pupils,Pupils!$Z$3,FALSE))/VLOOKUP($B39,Pupils,Pupils!$V$3,FALSE)), \"x\")","v":0.18645763842561708},{"$f":"(SUM(INDEX(Pupils!$AB$7:$AB$159,MATCH($B39,Pupils!$A$7:$A$159,0)),INDEX(Pupils!$AC$7:$AC$159,MATCH($B39,Pupils!$A$7:$A$159,0)),INDEX(Pupils!$AD$7:$AD$159,MATCH($B39,Pupils!$A$7:$A$159,0)),INDEX(Pupils!$AE$7:$AE$159,MATCH($B39,Pupils!$A$7:$A$159,0))))/SUM(INDEX(Pupils!$AB$7:$AM$159,MATCH($B39,Pupils!$A$7:$A$159,0),0))","v":0.34351367073880162},{"$f":"SUM(INDEX(Pupils!$AF$7:$AF$159,MATCH($B39,Pupils!$A$7:$A$159,0)))/SUM(INDEX(Pupils!$AB$7:$AM$159,MATCH($B39,Pupils!$A$7:$A$159,0),0))","v":0.21320535194880744},{"$f":"SUM(INDEX(Pupils!$AG$7:$AG$159,MATCH($B39,Pupils!$A$7:$A$159,0)))/SUM(INDEX(Pupils!$AB$7:$AM$159,MATCH($B39,Pupils!$A$7:$A$159,0),0))","v":0.15764979639325188},{"$f":"(SUM(INDEX(Pupils!$AH$7:$AH$159,MATCH($B39,Pupils!$A$7:$A$159,0)),INDEX(Pupils!$AI$7:$AI$159,MATCH($B39,Pupils!$A$7:$A$159,0)),INDEX(Pupils!$AJ$7:$AJ$159,MATCH($B39,Pupils!$A$7:$A$159,0))))/SUM(INDEX(Pupils!$AB$7:$AM$159,MATCH($B39,Pupils!$A$7:$A$159,0),0))","v":9.8312972658522402E-2},{"$f":"SUM(INDEX(Pupils!$AK$7:$AK$159,MATCH($B39,Pupils!$A$7:$A$159,0)))/SUM(INDEX(Pupils!$AB$7:$AM$159,MATCH($B39,Pupils!$A$7:$A$159,0),0))","v":4.3920884235020358E-2},{"$f":"SUM(INDEX(Pupils!$AL$7:$AL$159,MATCH($B39,Pupils!$A$7:$A$159,0)))/SUM(INDEX(Pupils!$AB$7:$AM$159,MATCH($B39,Pupils!$A$7:$A$159,0),0))","v":0.1169284467713787},{"$f":"SUM(INDEX(Pupils!$AM$7:$AM$159,MATCH($B39,Pupils!$A$7:$A$159,0)))/SUM(INDEX(Pupils!$AB$7:$AM$159,MATCH($B39,Pupils!$A$7:$A$159,0),0))","v":2.6468877254217569E-2},{"$f":"(SUM(INDEX(Pupils!$BH$7:$BH$159,MATCH($B39,Pupils!$A$7:$A$159,0)),INDEX(Pupils!$BK$7:$BK$159,MATCH($B39,Pupils!$A$7:$A$159,0)),INDEX(Pupils!$BO$7:$BO$159,MATCH($B39,Pupils!$A$7:$A$159,0))))/SUM(INDEX(Pupils!$BH$7:$BS$159,MATCH($B39,Pupils!$A$7:$A$159,0),0))","v":0.27954144620811289},{"$f":"(SUM(INDEX(Pupils!$BL$7:$BL$159,MATCH($B39,Pupils!$A$7:$A$159,0)),INDEX(Pupils!$BM$7:$BM$159,MATCH($B39,Pupils!$A$7:$A$159,0)),INDEX(Pupils!$BP$7:$BP$159,MATCH($B39,Pupils!$A$7:$A$159,0))))/SUM(INDEX(Pupils!$BH$7:$BS$159,MATCH($B39,Pupils!$A$7:$A$159,0),0))","v":0.54409171075837748},{"$f":"(SUM(INDEX(Pupils!$BI$7:$BI$159,MATCH($B39,Pupils!$A$7:$A$159,0)),INDEX(Pupils!$BJ$7:$BJ$159,MATCH($B39,Pupils!$A$7:$A$159,0))))/SUM(INDEX(Pupils!$BH$7:$BS$159,MATCH($B39,Pupils!$A$7:$A$159,0),0))","v":0.17019400352733685},{"$f":"(SUM(INDEX(Pupils!$BQ$7:$BQ$159,MATCH($B39,Pupils!$A$7:$A$159,0)),INDEX(Pupils!$BR$7:$BR$159,MATCH($B39,Pupils!$A$7:$A$159,0)),INDEX(Pupils!$BN$7:$BN$159,MATCH($B39,Pupils!$A$7:$A$159,0)),INDEX(Pupils!$BS$7:$BS$159,MATCH($B39,Pupils!$A$7:$A$159,0))))/SUM(INDEX(Pupils!$BH$7:$BS$159,MATCH($B39,Pupils!$A$7:$A$159,0),0))","v":6.1728395061728392E-3},{"$f":"IFERROR((VLOOKUP(B39,Funding,Funding!$C$2,FALSE)), \"x\")","v":24274388.07},{"$f":"IFERROR((AA39/VLOOKUP(B39,Funding,Funding!$D$2,FALSE)), \"x\")","v":0.13093272488322907},{"$f":"IFERROR((AA39/(VLOOKUP(B39,Pupils,Pupils!$M$3,FALSE)+VLOOKUP(B39,Pupils,Pupils!$P$3,FALSE))), \"x\")","v":2916.1927042287361},{"$f":"IFERROR((VLOOKUP(B39,Funding,Funding!$E$2,FALSE)), \"x\")","v":25306522.448514398},{"$f":"IFERROR((AD39/VLOOKUP(B39,Funding,Funding!$F$2,FALSE)), \"x\")","v":0.1310653353346426},{"$f":"IFERROR((AD39/(VLOOKUP(B39,Pupils,Pupils!$R$3,FALSE)+VLOOKUP(B39,Pupils,Pupils!$U$3,FALSE))), \"x\")","v":3175.6208368069265},{"$f":"IFERROR((VLOOKUP(B39,Funding,Funding!$G$2,FALSE)), \"x\")","v":26689096.748025168},{"$f":"IFERROR((AG39/VLOOKUP(B39,Funding,Funding!$H$2,FALSE)), \"x\")","v":0.13535938696139646},{"$f":"IFERROR((AG39/(VLOOKUP(B39,Pupils,Pupils!$W$3,FALSE)+VLOOKUP(B39,Pupils,Pupils!$Z$3,FALSE))), \"x\")","v":3410.3113657072795},{"$f":"IFERROR((VLOOKUP(B39,Funding,Funding!$I$2,FALSE)), \"x\")","v":27023682.713974681},{"$f":"IFERROR((AJ39/VLOOKUP(B39,Funding,Funding!$J$2,FALSE)), \"x\")","v":0.13394571880176395},null,{"$f":"IFERROR((VLOOKUP($B39,Funding,Funding!$EC$2,FALSE)), \"x\")","v":14549992.579999998},{"$f":"IFERROR((AM39/VLOOKUP($B39,Funding,Funding!$EU$2,FALSE)), \"x\")","v":7.9806831803749312E-2},{"$f":"IFERROR((AM39/(VLOOKUP($B39,Pupils,Pupils!$D$3,FALSE)+VLOOKUP($B39,Pupils,Pupils!$E$3,FALSE))), \"x\")","v":1693.2378191551261},{"$f":"IFERROR((VLOOKUP($B39,Funding,Funding!$DA$2,FALSE)), \"x\")","v":15707925.03497},{"$f":"IFERROR((AP39/VLOOKUP($B39,Funding,Funding!$DT$2,FALSE)), \"x\")","v":8.1265643743035743E-2},{"$f":"IFERROR((AP39/(VLOOKUP($B39,Pupils,Pupils!$G$3,FALSE)+VLOOKUP($B39,Pupils,Pupils!$H$3,FALSE))), \"x\")","v":1735.4905573936583},{"$f":"IFERROR((VLOOKUP($B39,Funding,Funding!$CE$2,FALSE)), \"x\")","v":16382003.529829999},{"$f":"IFERROR((AS39/VLOOKUP($B39,Funding,Funding!$CR$2,FALSE)), \"x\")","v":8.6462432580377932E-2},{"$f":"IFERROR((AS39/(VLOOKUP($B39,Pupils,Pupils!$J$3,FALSE)+VLOOKUP($B39,Pupils,Pupils!$K$3,FALSE))), \"x\")","v":1891.2495416566612},{"$f":"IFERROR((VLOOKUP($B39,Funding,Funding!$BM$2,FALSE)), \"x\")","v":16680882.260000002},{"$f":"IFERROR((AV39/VLOOKUP($B39,Funding,Funding!$BY$2,FALSE)), \"x\")","v":9.4391003119119271E-2},{"$f":"IFERROR((AV39/(VLOOKUP($B39,Pupils,Pupils!$M$3,FALSE)+VLOOKUP($B39,Pupils,Pupils!$P$3,FALSE))), \"x\")","v":2003.9502955309949},{"$f":"IFERROR((VLOOKUP($B39,Funding,Funding!$AQ$2,FALSE)), \"x\")","v":27484146},{"$f":"IFERROR((AY39/VLOOKUP($B39,Funding,Funding!$BE$2,FALSE)), \"x\")","v":0.14085868626735659},{"$f":"IFERROR((AY39/(VLOOKUP($B39,Pupils,Pupils!$R$3,FALSE)+VLOOKUP($B39,Pupils,Pupils!$U$3,FALSE))), \"x\")","v":3448.882670347597},{"$f":"IFERROR((VLOOKUP($B39,Funding,Funding!$S$2,FALSE)), \"x\")","v":30407203},{"$f":"IFERROR((BB39/VLOOKUP($B39,Funding,Funding!$AH$2,FALSE)), \"x\")","v":0.15118969064136692},{"$f":"IFERROR((BB39/(VLOOKUP(B39,Pupils,Pupils!$W$3,FALSE)+VLOOKUP(B39,Pupils,Pupils!$Z$3,FALSE))), \"x\")","v":3885.4079989777665},{"$f":"IFERROR((VLOOKUP($B39,Funding,Funding!$GX$2,FALSE)), \"x\")","v":27681095.759410001},{"$f":"IFERROR((BE39/VLOOKUP($B39,Funding,Funding!$HC$2,FALSE)), \"x\")","v":0.13479211131651242},{"$f":"IFERROR((BE39/(VLOOKUP($B39,Pupils,Pupils!$D$3,FALSE)+VLOOKUP($B39,Pupils,Pupils!$E$3,FALSE))), \"x\")","v":3221.3540974525777},{"$f":"IFERROR((VLOOKUP($B39,Funding,Funding!$GP$2,FALSE)), \"x\")","v":31954465.069999997},{"$f":"IFERROR((BH39/VLOOKUP($B39,Funding,Funding!$GU$2,FALSE)), \"x\")","v":0.15086153521081641},{"$f":"IFERROR((BH39/(VLOOKUP($B39,Pupils,Pupils!$G$3,FALSE)+VLOOKUP($B39,Pupils,Pupils!$H$3,FALSE))), \"x\")","v":3530.4900088388022},{"$f":"IFERROR((VLOOKUP($B39,Funding,Funding!$GH$2,FALSE)), \"x\")","v":33434206.920000002},{"$f":"IFERROR((BK39/VLOOKUP($B39,Funding,Funding!$GM$2,FALSE)), \"x\")","v":0.17509675331396071},{"$f":"IFERROR((BK39/(VLOOKUP($B39,Pupils,Pupils!$J$3,FALSE)+VLOOKUP($B39,Pupils,Pupils!$K$3,FALSE))), \"x\")","v":3859.8714984991921},{"$f":"IFERROR((VLOOKUP($B39,Funding,Funding!$FZ$2,FALSE)), \"x\")","v":44395787},{"$f":"IFERROR((BN39/VLOOKUP($B39,Funding,Funding!$GE$2,FALSE)), \"x\")","v":0.24423363309108523},{"$f":"IFERROR((BN39/(VLOOKUP($B39,Pupils,Pupils!$M$3,FALSE)+VLOOKUP($B39,Pupils,Pupils!$P$3,FALSE))), \"x\")","v":5333.4679240749638},{"$f":"IFERROR((VLOOKUP($B39,Funding,Funding!$FD$2,FALSE)), \"x\")","v":28416808},{"$f":"IFERROR((BQ39/VLOOKUP($B39,Funding,Funding!$FR$2,FALSE)), \"x\")","v":0.18182133679773665},{"$f":"IFERROR((BQ39/(VLOOKUP($B39,Pupils,Pupils!$R$3,FALSE)+VLOOKUP($B39,Pupils,Pupils!$U$3,FALSE))), \"x\")","v":3565.9189358765216},{"$f":"(VLOOKUP(B39,Funding,Funding!$HK$2,FALSE)+VLOOKUP(B39,Funding,Funding!$HL$2,FALSE)+VLOOKUP(B39,Funding,Funding!$HM$2,FALSE))/(VLOOKUP(B39,Funding,Funding!$HN$2,FALSE))","v":0.14581734458940906},{"$f":"IFERROR((VLOOKUP(B39,Other_data,Other!$D$3,FALSE)+VLOOKUP(B39,Other_data,Other!$E$3,FALSE)+VLOOKUP(B39,Other_data,Other!$F$3,FALSE)), \"x\")","v":1730},{"$f":"(VLOOKUP(B39,Other_data,Other!$AK$3,FALSE)+VLOOKUP(B39,Other_data,Other!$AL$3,FALSE))/VLOOKUP(B39,Other_data,Other!$AJ$3,FALSE)","v":3.9863370715526772E-2},{"$f":"(VLOOKUP(B39,Other_data,Other!$AR$3,FALSE)+VLOOKUP(B39,Other_data,Other!$AS$3,FALSE))/VLOOKUP(B39,Other_data,Other!$AQ$3,FALSE)","v":5.5602998386943735E-2},{"$f":"VLOOKUP(B39,Other_data,Other!$AP$3,FALSE)/VLOOKUP(B39,Other_data,Other!$AJ$3,FALSE)","v":6.7327436423945666E-3},{"$f":"VLOOKUP(B39,Other_data,Other!$AW$3,FALSE)/VLOOKUP(B39,Other_data,Other!$AQ$3,FALSE)","v":1.1164879653351046E-2}]
[34,830,"Derbyshire",{"$f":"IFERROR((VLOOKUP($B40,Pupils,Pupils!$D$3,FALSE)/VLOOKUP($B40,Pupils,Pupils!$C$3,FALSE)), \"x\")","v":2.4994347137912442E-2},{"$f":"IFERROR((VLOOKUP($B40,Pupils,Pupils!$G$3,FALSE)/VLOOKUP($B40,Pupils,Pupils!$F$3,FALSE)),\"x\")","v":2.5556500469047266E-2},{"$f":"IFERROR((VLOOKUP($B40,Pupils,Pupils!$J$3,FALSE)/VLOOKUP($B40,Pupils,Pupils!$I$3,FALSE)), \"x\")","v":2.5914202857547038E-2},{"$f":"IFERROR((VLOOKUP($B40,Pupils,Pupils!$M$3,FALSE)/VLOOKUP($B40,Pupils,Pupils!$L$3,FALSE)), \"x\")","v":2.7011427911808841E-2},{"$f":"IFERROR((VLOOKUP($B40,Pupils,Pupils!$R$3,FALSE)/VLOOKUP($B40,Pupils,Pupils!$Q$3,FALSE)), \"x\")","v":2.7712658329396456E-2},{"$f":"IFERROR((VLOOKUP($B40,Pupils,Pupils!$W$3,FALSE)/VLOOKUP($B40,Pupils,Pupils!$V$3,FALSE)), \"x\")","v":2.8646461398290322E-2},{"$f":"IFERROR(((VLOOKUP($B40,Pupils,Pupils!$D$3,FALSE)+VLOOKUP($B40,Pupils,Pupils!$E$3,FALSE))/VLOOKUP($B40,Pupils,Pupils!$C$3,FALSE)), \"x\")","v":0.18566608108813246},{"$f":"IFERROR(((VLOOKUP($B40,Pupils,Pupils!$G$3,FALSE)+VLOOKUP($B40,Pupils,Pupils!$H$3,FALSE))/VLOOKUP($B40,Pupils,Pupils!$F$3,FALSE)), \"x\")","v":0.18978441360324738},{"$f":"IFERROR(((VLOOKUP($B40,Pupils,Pupils!$J$3,FALSE)+VLOOKUP($B40,Pupils,Pupils!$K$3,FALSE))/VLOOKUP($B40,Pupils,Pupils!$I$3,FALSE)), \"x\")","v":0.19470575753289007},{"$f":"IFERROR(((VLOOKUP($B40,Pupils,Pupils!$M$3,FALSE)+VLOOKUP($B40,Pupils,Pupils!$P$3,FALSE))/VLOOKUP($B40,Pupils,Pupils!$L$3,FALSE)), \"x\")","v":0.18961276516395989},{"$f":"IFERROR(((VLOOKUP($B40,Pupils,Pupils!$R$3,FALSE)+VLOOKUP($B40,Pupils,Pupils!$U$3,FALSE))/VLOOKUP($B40,Pupils,Pupils!$Q$3,FALSE)), \"x\")","v":0.17790831379749883},{"$f":"IFERROR(((VLOOKUP($B40,Pupils,Pupils!$W$3,FALSE)+VLOOKUP($B40,Pupils,Pupils!$Z$3,FALSE))/VLOOKUP($B40,Pupils,Pupils!$V$3,FALSE)), \"x\")","v":0.17215567525077935},{"$f":"(SUM(INDEX(Pupils!$AB$7:$AB$159,MATCH($B40,Pupils!$A$7:$A$159,0)),INDEX(Pupils!$AC$7:$AC$159,MATCH($B40,Pupils!$A$7:$A$159,0)),INDEX(Pupils!$AD$7:$AD$159,MATCH($B40,Pupils!$A$7:$A$159,0)),INDEX(Pupils!$AE$7:$AE$159,MATCH($B40,Pupils!$A$7:$A$159,0))))/SUM(INDEX(Pupils!$AB$7:$AM$159,MATCH($B40,Pupils!$A$7:$A$159,0),0))","v":0.27827946768060835},{"$f":"SUM(INDEX(Pupils!$AF$7:$AF$159,MATCH($B40,Pupils!$A$7:$A$159,0)))/SUM(INDEX(Pupils!$AB$7:$AM$159,MATCH($B40,Pupils!$A$7:$A$159,0),0))","v":0.2829134980988593},{"$f":"SUM(INDEX(Pupils!$AG$7:$AG$159,MATCH($B40,Pupils!$A$7:$A$159,0)))/SUM(INDEX(Pupils!$AB$7:$AM$159,MATCH($B40,Pupils!$A$7:$A$159,0),0))","v":0.16765684410646386},{"$f":"(SUM(INDEX(Pupils!$AH$7:$AH$159,MATCH($B40,Pupils!$A$7:$A$159,0)),INDEX(Pupils!$AI$7:$AI$159,MATCH($B40,Pupils!$A$7:$A$159,0)),INDEX(Pupils!$AJ$7:$AJ$159,MATCH($B40,Pupils!$A$7:$A$159,0))))/SUM(INDEX(Pupils!$AB$7:$AM$159,MATCH($B40,Pupils!$A$7:$A$159,0),0))","v":5.3944866920152094E-2},{"$f":"SUM(INDEX(Pupils!$AK$7:$AK$159,MATCH($B40,Pupils!$A$7:$A$159,0)))/SUM(INDEX(Pupils!$AB$7:$AM$159,MATCH($B40,Pupils!$A$7:$A$159,0),0))","v":4.9192015209125473E-2},{"$f":"SUM(INDEX(Pupils!$AL$7:$AL$159,MATCH($B40,Pupils!$A$7:$A$159,0)))/SUM(INDEX(Pupils!$AB$7:$AM$159,MATCH($B40,Pupils!$A$7:$A$159,0),0))","v":0.1188212927756654},{"$f":"SUM(INDEX(Pupils!$AM$7:$AM$159,MATCH($B40,Pupils!$A$7:$A$159,0)))/SUM(INDEX(Pupils!$AB$7:$AM$159,MATCH($B40,Pupils!$A$7:$A$159,0),0))","v":4.9192015209125473E-2},{"$f":"(SUM(INDEX(Pupils!$BH$7:$BH$159,MATCH($B40,Pupils!$A$7:$A$159,0)),INDEX(Pupils!$BK$7:$BK$159,MATCH($B40,Pupils!$A$7:$A$159,0)),INDEX(Pupils!$BO$7:$BO$159,MATCH($B40,Pupils!$A$7:$A$159,0))))/SUM(INDEX(Pupils!$BH$7:$BS$159,MATCH($B40,Pupils!$A$7:$A$159,0),0))","v":0.61232109520846301},{"$f":"(SUM(INDEX(Pupils!$BL$7:$BL$159,MATCH($B40,Pupils!$A$7:$A$159,0)),INDEX(Pupils!$BM$7:$BM$159,MATCH($B40,Pupils!$A$7:$A$159,0)),INDEX(Pupils!$BP$7:$BP$159,MATCH($B40,Pupils!$A$7:$A$159,0))))/SUM(INDEX(Pupils!$BH$7:$BS$159,MATCH($B40,Pupils!$A$7:$A$159,0),0))","v":0.28313627878033604},{"$f":"(SUM(INDEX(Pupils!$BI$7:$BI$159,MATCH($B40,Pupils!$A$7:$A$159,0)),INDEX(Pupils!$BJ$7:$BJ$159,MATCH($B40,Pupils!$A$7:$A$159,0))))/SUM(INDEX(Pupils!$BH$7:$BS$159,MATCH($B40,Pupils!$A$7:$A$159,0),0))","v":7.7162414436838828E-2},{"$f":"(SUM(INDEX(Pupils!$BQ$7:$BQ$159,MATCH($B40,Pupils!$A$7:$A$159,0)),INDEX(Pupils!$BR$7:$BR$159,MATCH($B40,Pupils!$A$7:$A$159,0)),INDEX(Pupils!$BN$7:$BN$159,MATCH($B40,Pupils!$A$7:$A$159,0)),INDEX(Pupils!$BS$7:$BS$159,MATCH($B40,Pupils!$A$7:$A$159,0))))/SUM(INDEX(Pupils!$BH$7:$BS$159,MATCH($B40,Pupils!$A$7:$A$159,0),0))","v":2.7380211574362167E-2},{"$f":"IFERROR((VLOOKUP(B40,Funding,Funding!$C$2,FALSE)), \"x\")","v":57939313},{"$f":"IFERROR((AA40/VLOOKUP(B40,Funding,Funding!$D$2,FALSE)), \"x\")","v":0.1180267240361375},{"$f":"IFERROR((AA40/(VLOOKUP(B40,Pupils,Pupils!$M$3,FALSE)+VLOOKUP(B40,Pupils,Pupils!$P$3,FALSE))), \"x\")","v":2713.2768099653463},{"$f":"IFERROR((VLOOKUP(B40,Funding,Funding!$E$2,FALSE)), \"x\")","v":60664487.586894616},{"$f":"IFERROR((AD40/VLOOKUP(B40,Funding,Funding!$F$2,FALSE)), \"x\")","v":0.12148272677550145},{"$f":"IFERROR((AD40/(VLOOKUP(B40,Pupils,Pupils!$R$3,FALSE)+VLOOKUP(B40,Pupils,Pupils!$U$3,FALSE))), \"x\")","v":3039.4552626331288},{"$f":"IFERROR((VLOOKUP(B40,Funding,Funding!$G$2,FALSE)), \"x\")","v":61735178.230973065},{"$f":"IFERROR((AG40/VLOOKUP(B40,Funding,Funding!$H$2,FALSE)), \"x\")","v":0.12296450004266685},{"$f":"IFERROR((AG40/(VLOOKUP(B40,Pupils,Pupils!$W$3,FALSE)+VLOOKUP(B40,Pupils,Pupils!$Z$3,FALSE))), \"x\")","v":3203.1950516771162},{"$f":"IFERROR((VLOOKUP(B40,Funding,Funding!$I$2,FALSE)), \"x\")","v":62846631.406448893},{"$f":"IFERROR((AJ40/VLOOKUP(B40,Funding,Funding!$J$2,FALSE)), \"x\")","v":0.12282697258075333},null,{"$f":"IFERROR((VLOOKUP($B40,Funding,Funding!$EC$2,FALSE)), \"x\")","v":32215281},{"$f":"IFERROR((AM40/VLOOKUP($B40,Funding,Funding!$EU$2,FALSE)), \"x\")","v":6.3585128033494365E-2},{"$f":"IFERROR((AM40/(VLOOKUP($B40,Pupils,Pupils!$D$3,FALSE)+VLOOKUP($B40,Pupils,Pupils!$E$3,FALSE))), \"x\")","v":1508.9831373834841},{"$f":"IFERROR((VLOOKUP($B40,Funding,Funding!$DA$2,FALSE)), \"x\")","v":34010056},{"$f":"IFERROR((AP40/VLOOKUP($B40,Funding,Funding!$DT$2,FALSE)), \"x\")","v":6.6010373670049347E-2},{"$f":"IFERROR((AP40/(VLOOKUP($B40,Pupils,Pupils!$G$3,FALSE)+VLOOKUP($B40,Pupils,Pupils!$H$3,FALSE))), \"x\")","v":1571.1209867418117},{"$f":"IFERROR((VLOOKUP($B40,Funding,Funding!$CE$2,FALSE)), \"x\")","v":34554009},{"$f":"IFERROR((AS40/VLOOKUP($B40,Funding,Funding!$CR$2,FALSE)), \"x\")","v":6.9631157793709195E-2},{"$f":"IFERROR((AS40/(VLOOKUP($B40,Pupils,Pupils!$J$3,FALSE)+VLOOKUP($B40,Pupils,Pupils!$K$3,FALSE))), \"x\")","v":1569.0677050222505},{"$f":"IFERROR((VLOOKUP($B40,Funding,Funding!$BM$2,FALSE)), \"x\")","v":35381946},{"$f":"IFERROR((AV40/VLOOKUP($B40,Funding,Funding!$BY$2,FALSE)), \"x\")","v":7.5341885728594599E-2},{"$f":"IFERROR((AV40/(VLOOKUP($B40,Pupils,Pupils!$M$3,FALSE)+VLOOKUP($B40,Pupils,Pupils!$P$3,FALSE))), \"x\")","v":1656.923574037651},{"$f":"IFERROR((VLOOKUP($B40,Funding,Funding!$AQ$2,FALSE)), \"x\")","v":60494275},{"$f":"IFERROR((AY40/VLOOKUP($B40,Funding,Funding!$BE$2,FALSE)), \"x\")","v":0.11649362372466766},{"$f":"IFERROR((AY40/(VLOOKUP($B40,Pupils,Pupils!$R$3,FALSE)+VLOOKUP($B40,Pupils,Pupils!$U$3,FALSE))), \"x\")","v":3030.9271506588507},{"$f":"IFERROR((VLOOKUP($B40,Funding,Funding!$S$2,FALSE)), \"x\")","v":54797431},{"$f":"IFERROR((BB40/VLOOKUP($B40,Funding,Funding!$AH$2,FALSE)), \"x\")","v":0.10465819061741745},{"$f":"IFERROR((BB40/(VLOOKUP(B40,Pupils,Pupils!$W$3,FALSE)+VLOOKUP(B40,Pupils,Pupils!$Z$3,FALSE))), \"x\")","v":2843.2226949618639},{"$f":"IFERROR((VLOOKUP($B40,Funding,Funding!$GX$2,FALSE)), \"x\")","v":72499061},{"$f":"IFERROR((BE40/VLOOKUP($B40,Funding,Funding!$HC$2,FALSE)), \"x\")","v":0.13280050682279898},{"$f":"IFERROR((BE40/(VLOOKUP($B40,Pupils,Pupils!$D$3,FALSE)+VLOOKUP($B40,Pupils,Pupils!$E$3,FALSE))), \"x\")","v":3395.8996205911285},{"$f":"IFERROR((VLOOKUP($B40,Funding,Funding!$GP$2,FALSE)), \"x\")","v":74790224.00999999},{"$f":"IFERROR((BH40/VLOOKUP($B40,Funding,Funding!$GU$2,FALSE)), \"x\")","v":0.13931962895756464},{"$f":"IFERROR((BH40/(VLOOKUP($B40,Pupils,Pupils!$G$3,FALSE)+VLOOKUP($B40,Pupils,Pupils!$H$3,FALSE))), \"x\")","v":3454.9925629417467},{"$f":"IFERROR((VLOOKUP($B40,Funding,Funding!$GH$2,FALSE)), \"x\")","v":70698979.930000007},{"$f":"IFERROR((BK40/VLOOKUP($B40,Funding,Funding!$GM$2,FALSE)), \"x\")","v":0.14149148995696764},{"$f":"IFERROR((BK40/(VLOOKUP($B40,Pupils,Pupils!$J$3,FALSE)+VLOOKUP($B40,Pupils,Pupils!$K$3,FALSE))), \"x\")","v":3210.3796172009811},{"$f":"IFERROR((VLOOKUP($B40,Funding,Funding!$FZ$2,FALSE)), \"x\")","v":88374786.5},{"$f":"IFERROR((BN40/VLOOKUP($B40,Funding,Funding!$GE$2,FALSE)), \"x\")","v":0.18025648644196399},{"$f":"IFERROR((BN40/(VLOOKUP($B40,Pupils,Pupils!$M$3,FALSE)+VLOOKUP($B40,Pupils,Pupils!$P$3,FALSE))), \"x\")","v":4138.5588882644934},{"$f":"IFERROR((VLOOKUP($B40,Funding,Funding!$FD$2,FALSE)), \"x\")","v":56596887},{"$f":"IFERROR((BQ40/VLOOKUP($B40,Funding,Funding!$FR$2,FALSE)), \"x\")","v":0.1267735741763526},{"$f":"IFERROR((BQ40/(VLOOKUP($B40,Pupils,Pupils!$R$3,FALSE)+VLOOKUP($B40,Pupils,Pupils!$U$3,FALSE))), \"x\")","v":2835.6574477679242},{"$f":"(VLOOKUP(B40,Funding,Funding!$HK$2,FALSE)+VLOOKUP(B40,Funding,Funding!$HL$2,FALSE)+VLOOKUP(B40,Funding,Funding!$HM$2,FALSE))/(VLOOKUP(B40,Funding,Funding!$HN$2,FALSE))","v":0.26},{"$f":"IFERROR((VLOOKUP(B40,Other_data,Other!$D$3,FALSE)+VLOOKUP(B40,Other_data,Other!$E$3,FALSE)+VLOOKUP(B40,Other_data,Other!$F$3,FALSE)), \"x\")","v":4240},{"$f":"(VLOOKUP(B40,Other_data,Other!$AK$3,FALSE)+VLOOKUP(B40,Other_data,Other!$AL$3,FALSE))/VLOOKUP(B40,Other_data,Other!$AJ$3,FALSE)","v":3.6598255967585661E-2},{"$f":"(VLOOKUP(B40,Other_data,Other!$AR$3,FALSE)+VLOOKUP(B40,Other_data,Other!$AS$3,FALSE))/VLOOKUP(B40,Other_data,Other!$AQ$3,FALSE)","v":5.5071525665091589E-2},{"$f":"VLOOKUP(B40,Other_data,Other!$AP$3,FALSE)/VLOOKUP(B40,Other_data,Other!$AJ$3,FALSE)","v":4.8959159106256788E-3},{"$f":"VLOOKUP(B40,Other_data,Other!$AW$3,FALSE)/VLOOKUP(B40,Other_data,Other!$AQ$3,FALSE)","v":1.0874490258269144E-2}]
[35,878,"Devon",{"$f":"IFERROR((VLOOKUP($B41,Pupils,Pupils!$D$3,FALSE)/VLOOKUP($B41,Pupils,Pupils!$C$3,FALSE)), \"x\")","v":3.3714011516314778E-2},{"$f":"IFERROR((VLOOKUP($B41,Pupils,Pupils!$G$3,FALSE)/VLOOKUP($B41,Pupils,Pupils!$F$3,FALSE)),\"x\")","v":3.4171917841166001E-2},{"$f":"IFERROR((VLOOKUP($B41,Pupils,Pupils!$J$3,FALSE)/VLOOKUP($B41,Pupils,Pupils!$I$3,FALSE)), \"x\")","v":3.4658156851368339E-2},{"$f":"IFERROR((VLOOKUP($B41,Pupils,Pupils!$M$3,FALSE)/VLOOKUP($B41,Pupils,Pupils!$L$3,FALSE)), \"x\")","v":3.5296747295892085E-2},{"$f":"IFERROR((VLOOKUP($B41,Pupils,Pupils!$R$3,FALSE)/VLOOKUP($B41,Pupils,Pupils!$Q$3,FALSE)), \"x\")","v":3.5723361416814904E-2},{"$f":"IFERROR((VLOOKUP($B41,Pupils,Pupils!$W$3,FALSE)/VLOOKUP($B41,Pupils,Pupils!$V$3,FALSE)), \"x\")","v":3.6332383852273845E-2},{"$f":"IFERROR(((VLOOKUP($B41,Pupils,Pupils!$D$3,FALSE)+VLOOKUP($B41,Pupils,Pupils!$E$3,FALSE))/VLOOKUP($B41,Pupils,Pupils!$C$3,FALSE)), \"x\")","v":0.21758157389635316},{"$f":"IFERROR(((VLOOKUP($B41,Pupils,Pupils!$G$3,FALSE)+VLOOKUP($B41,Pupils,Pupils!$H$3,FALSE))/VLOOKUP($B41,Pupils,Pupils!$F$3,FALSE)), \"x\")","v":0.22835153206022415},{"$f":"IFERROR(((VLOOKUP($B41,Pupils,Pupils!$J$3,FALSE)+VLOOKUP($B41,Pupils,Pupils!$K$3,FALSE))/VLOOKUP($B41,Pupils,Pupils!$I$3,FALSE)), \"x\")","v":0.22588724494729717},{"$f":"IFERROR(((VLOOKUP($B41,Pupils,Pupils!$M$3,FALSE)+VLOOKUP($B41,Pupils,Pupils!$P$3,FALSE))/VLOOKUP($B41,Pupils,Pupils!$L$3,FALSE)), \"x\")","v":0.2251139466855849},{"$f":"IFERROR(((VLOOKUP($B41,Pupils,Pupils!$R$3,FALSE)+VLOOKUP($B41,Pupils,Pupils!$U$3,FALSE))/VLOOKUP($B41,Pupils,Pupils!$Q$3,FALSE)), \"x\")","v":0.20992239576206581},{"$f":"IFERROR(((VLOOKUP($B41,Pupils,Pupils!$W$3,FALSE)+VLOOKUP($B41,Pupils,Pupils!$Z$3,FALSE))/VLOOKUP($B41,Pupils,Pupils!$V$3,FALSE)), \"x\")","v":0.20910519595324625},{"$f":"(SUM(INDEX(Pupils!$AB$7:$AB$159,MATCH($B41,Pupils!$A$7:$A$159,0)),INDEX(Pupils!$AC$7:$AC$159,MATCH($B41,Pupils!$A$7:$A$159,0)),INDEX(Pupils!$AD$7:$AD$159,MATCH($B41,Pupils!$A$7:$A$159,0)),INDEX(Pupils!$AE$7:$AE$159,MATCH($B41,Pupils!$A$7:$A$159,0))))/SUM(INDEX(Pupils!$AB$7:$AM$159,MATCH($B41,Pupils!$A$7:$A$159,0),0))","v":0.28067501360914532},{"$f":"SUM(INDEX(Pupils!$AF$7:$AF$159,MATCH($B41,Pupils!$A$7:$A$159,0)))/SUM(INDEX(Pupils!$AB$7:$AM$159,MATCH($B41,Pupils!$A$7:$A$159,0),0))","v":0.26641262928688081},{"$f":"SUM(INDEX(Pupils!$AG$7:$AG$159,MATCH($B41,Pupils!$A$7:$A$159,0)))/SUM(INDEX(Pupils!$AB$7:$AM$159,MATCH($B41,Pupils!$A$7:$A$159,0),0))","v":0.2255851932498639},{"$f":"(SUM(INDEX(Pupils!$AH$7:$AH$159,MATCH($B41,Pupils!$A$7:$A$159,0)),INDEX(Pupils!$AI$7:$AI$159,MATCH($B41,Pupils!$A$7:$A$159,0)),INDEX(Pupils!$AJ$7:$AJ$159,MATCH($B41,Pupils!$A$7:$A$159,0))))/SUM(INDEX(Pupils!$AB$7:$AM$159,MATCH($B41,Pupils!$A$7:$A$159,0),0))","v":5.0081654872074034E-2},{"$f":"SUM(INDEX(Pupils!$AK$7:$AK$159,MATCH($B41,Pupils!$A$7:$A$159,0)))/SUM(INDEX(Pupils!$AB$7:$AM$159,MATCH($B41,Pupils!$A$7:$A$159,0),0))","v":5.5743059335873708E-2},{"$f":"SUM(INDEX(Pupils!$AL$7:$AL$159,MATCH($B41,Pupils!$A$7:$A$159,0)))/SUM(INDEX(Pupils!$AB$7:$AM$159,MATCH($B41,Pupils!$A$7:$A$159,0),0))","v":8.7751769188894935E-2},{"$f":"SUM(INDEX(Pupils!$AM$7:$AM$159,MATCH($B41,Pupils!$A$7:$A$159,0)))/SUM(INDEX(Pupils!$AB$7:$AM$159,MATCH($B41,Pupils!$A$7:$A$159,0),0))","v":3.3750680457267285E-2},{"$f":"(SUM(INDEX(Pupils!$BH$7:$BH$159,MATCH($B41,Pupils!$A$7:$A$159,0)),INDEX(Pupils!$BK$7:$BK$159,MATCH($B41,Pupils!$A$7:$A$159,0)),INDEX(Pupils!$BO$7:$BO$159,MATCH($B41,Pupils!$A$7:$A$159,0))))/SUM(INDEX(Pupils!$BH$7:$BS$159,MATCH($B41,Pupils!$A$7:$A$159,0),0))","v":0.65595111583421895},{"$f":"(SUM(INDEX(Pupils!$BL$7:$BL$159,MATCH($B41,Pupils!$A$7:$A$159,0)),INDEX(Pupils!$BM$7:$BM$159,MATCH($B41,Pupils!$A$7:$A$159,0)),INDEX(Pupils!$BP$7:$BP$159,MATCH($B41,Pupils!$A$7:$A$159,0))))/SUM(INDEX(Pupils!$BH$7:$BS$159,MATCH($B41,Pupils!$A$7:$A$159,0),0))","v":0.3018065887353879},{"$f":"(SUM(INDEX(Pupils!$BI$7:$BI$159,MATCH($B41,Pupils!$A$7:$A$159,0)),INDEX(Pupils!$BJ$7:$BJ$159,MATCH($B41,Pupils!$A$7:$A$159,0))))/SUM(INDEX(Pupils!$BH$7:$BS$159,MATCH($B41,Pupils!$A$7:$A$159,0),0))","v":1.3018065887353878E-2},{"$f":"(SUM(INDEX(Pupils!$BQ$7:$BQ$159,MATCH($B41,Pupils!$A$7:$A$159,0)),INDEX(Pupils!$BR$7:$BR$159,MATCH($B41,Pupils!$A$7:$A$159,0)),INDEX(Pupils!$BN$7:$BN$159,MATCH($B41,Pupils!$A$7:$A$159,0)),INDEX(Pupils!$BS$7:$BS$159,MATCH($B41,Pupils!$A$7:$A$159,0))))/SUM(INDEX(Pupils!$BH$7:$BS$159,MATCH($B41,Pupils!$A$7:$A$159,0),0))","v":2.9224229543039319E-2},{"$f":"IFERROR((VLOOKUP(B41,Funding,Funding!$C$2,FALSE)), \"x\")","v":52210515},{"$f":"IFERROR((AA41/VLOOKUP(B41,Funding,Funding!$D$2,FALSE)), \"x\")","v":0.12135745510235853},{"$f":"IFERROR((AA41/(VLOOKUP(B41,Pupils,Pupils!$M$3,FALSE)+VLOOKUP(B41,Pupils,Pupils!$P$3,FALSE))), \"x\")","v":2253.9507425315146},{"$f":"IFERROR((VLOOKUP(B41,Funding,Funding!$E$2,FALSE)), \"x\")","v":56324983.194685474},{"$f":"IFERROR((AD41/VLOOKUP(B41,Funding,Funding!$F$2,FALSE)), \"x\")","v":0.12736803769138327},{"$f":"IFERROR((AD41/(VLOOKUP(B41,Pupils,Pupils!$R$3,FALSE)+VLOOKUP(B41,Pupils,Pupils!$U$3,FALSE))), \"x\")","v":2622.4500975270266},{"$f":"IFERROR((VLOOKUP(B41,Funding,Funding!$G$2,FALSE)), \"x\")","v":59589509.77575922},{"$f":"IFERROR((AG41/VLOOKUP(B41,Funding,Funding!$H$2,FALSE)), \"x\")","v":0.13365430182117452},{"$f":"IFERROR((AG41/(VLOOKUP(B41,Pupils,Pupils!$W$3,FALSE)+VLOOKUP(B41,Pupils,Pupils!$Z$3,FALSE))), \"x\")","v":2799.0750986781541},{"$f":"IFERROR((VLOOKUP(B41,Funding,Funding!$I$2,FALSE)), \"x\")","v":59797362.298001982},{"$f":"IFERROR((AJ41/VLOOKUP(B41,Funding,Funding!$J$2,FALSE)), \"x\")","v":0.12988104347732082},null,{"$f":"IFERROR((VLOOKUP($B41,Funding,Funding!$EC$2,FALSE)), \"x\")","v":27890117.210000001},{"$f":"IFERROR((AM41/VLOOKUP($B41,Funding,Funding!$EU$2,FALSE)), \"x\")","v":6.192142285455398E-2},{"$f":"IFERROR((AM41/(VLOOKUP($B41,Pupils,Pupils!$D$3,FALSE)+VLOOKUP($B41,Pupils,Pupils!$E$3,FALSE))), \"x\")","v":1230.1568988179251},{"$f":"IFERROR((VLOOKUP($B41,Funding,Funding!$DA$2,FALSE)), \"x\")","v":31339336},{"$f":"IFERROR((AP41/VLOOKUP($B41,Funding,Funding!$DT$2,FALSE)), \"x\")","v":6.4042082149382187E-2},{"$f":"IFERROR((AP41/(VLOOKUP($B41,Pupils,Pupils!$G$3,FALSE)+VLOOKUP($B41,Pupils,Pupils!$H$3,FALSE))), \"x\")","v":1320.3292888439501},{"$f":"IFERROR((VLOOKUP($B41,Funding,Funding!$CE$2,FALSE)), \"x\")","v":34478849},{"$f":"IFERROR((AS41/VLOOKUP($B41,Funding,Funding!$CR$2,FALSE)), \"x\")","v":8.8866425082476497E-2},{"$f":"IFERROR((AS41/(VLOOKUP($B41,Pupils,Pupils!$J$3,FALSE)+VLOOKUP($B41,Pupils,Pupils!$K$3,FALSE))), \"x\")","v":1476.0413116999871},{"$f":"IFERROR((VLOOKUP($B41,Funding,Funding!$BM$2,FALSE)), \"x\")","v":41218820.32},{"$f":"IFERROR((AV41/VLOOKUP($B41,Funding,Funding!$BY$2,FALSE)), \"x\")","v":0.11748725453941064},{"$f":"IFERROR((AV41/(VLOOKUP($B41,Pupils,Pupils!$M$3,FALSE)+VLOOKUP($B41,Pupils,Pupils!$P$3,FALSE))), \"x\")","v":1779.4344810913487},{"$f":"IFERROR((VLOOKUP($B41,Funding,Funding!$AQ$2,FALSE)), \"x\")","v":56747000},{"$f":"IFERROR((AY41/VLOOKUP($B41,Funding,Funding!$BE$2,FALSE)), \"x\")","v":0.12589238571472941},{"$f":"IFERROR((AY41/(VLOOKUP($B41,Pupils,Pupils!$R$3,FALSE)+VLOOKUP($B41,Pupils,Pupils!$U$3,FALSE))), \"x\")","v":2642.098891889375},{"$f":"IFERROR((VLOOKUP($B41,Funding,Funding!$S$2,FALSE)), \"x\")","v":52059000},{"$f":"IFERROR((BB41/VLOOKUP($B41,Funding,Funding!$AH$2,FALSE)), \"x\")","v":0.11525586585252456},{"$f":"IFERROR((BB41/(VLOOKUP(B41,Pupils,Pupils!$W$3,FALSE)+VLOOKUP(B41,Pupils,Pupils!$Z$3,FALSE))), \"x\")","v":2445.3473624876697},{"$f":"IFERROR((VLOOKUP($B41,Funding,Funding!$GX$2,FALSE)), \"x\")","v":67096279},{"$f":"IFERROR((BE41/VLOOKUP($B41,Funding,Funding!$HC$2,FALSE)), \"x\")","v":0.12939992481923016},{"$f":"IFERROR((BE41/(VLOOKUP($B41,Pupils,Pupils!$D$3,FALSE)+VLOOKUP($B41,Pupils,Pupils!$E$3,FALSE))), \"x\")","v":2959.4336185603388},{"$f":"IFERROR((VLOOKUP($B41,Funding,Funding!$GP$2,FALSE)), \"x\")","v":75137382.519999996},{"$f":"IFERROR((BH41/VLOOKUP($B41,Funding,Funding!$GU$2,FALSE)), \"x\")","v":0.14941033691745667},{"$f":"IFERROR((BH41/(VLOOKUP($B41,Pupils,Pupils!$G$3,FALSE)+VLOOKUP($B41,Pupils,Pupils!$H$3,FALSE))), \"x\")","v":3165.5452696326251},{"$f":"IFERROR((VLOOKUP($B41,Funding,Funding!$GH$2,FALSE)), \"x\")","v":68725182.300000012},{"$f":"IFERROR((BK41/VLOOKUP($B41,Funding,Funding!$GM$2,FALSE)), \"x\")","v":0.17579435320077325},{"$f":"IFERROR((BK41/(VLOOKUP($B41,Pupils,Pupils!$J$3,FALSE)+VLOOKUP($B41,Pupils,Pupils!$K$3,FALSE))), \"x\")","v":2942.1286142386239},{"$f":"IFERROR((VLOOKUP($B41,Funding,Funding!$FZ$2,FALSE)), \"x\")","v":67345956.020000011},{"$f":"IFERROR((BN41/VLOOKUP($B41,Funding,Funding!$GE$2,FALSE)), \"x\")","v":0.18056558254491475},{"$f":"IFERROR((BN41/(VLOOKUP($B41,Pupils,Pupils!$M$3,FALSE)+VLOOKUP($B41,Pupils,Pupils!$P$3,FALSE))), \"x\")","v":2907.3543438093598},{"$f":"IFERROR((VLOOKUP($B41,Funding,Funding!$FD$2,FALSE)), \"x\")","v":53924096},{"$f":"IFERROR((BQ41/VLOOKUP($B41,Funding,Funding!$FR$2,FALSE)), \"x\")","v":0.12106242791290688},{"$f":"IFERROR((BQ41/(VLOOKUP($B41,Pupils,Pupils!$R$3,FALSE)+VLOOKUP($B41,Pupils,Pupils!$U$3,FALSE))), \"x\")","v":2510.6665425086135},{"$f":"(VLOOKUP(B41,Funding,Funding!$HK$2,FALSE)+VLOOKUP(B41,Funding,Funding!$HL$2,FALSE)+VLOOKUP(B41,Funding,Funding!$HM$2,FALSE))/(VLOOKUP(B41,Funding,Funding!$HN$2,FALSE))","v":0.32269503546099293},{"$f":"IFERROR((VLOOKUP(B41,Other_data,Other!$D$3,FALSE)+VLOOKUP(B41,Other_data,Other!$E$3,FALSE)+VLOOKUP(B41,Other_data,Other!$F$3,FALSE)), \"x\")","v":4110},{"$f":"(VLOOKUP(B41,Other_data,Other!$AK$3,FALSE)+VLOOKUP(B41,Other_data,Other!$AL$3,FALSE))/VLOOKUP(B41,Other_data,Other!$AJ$3,FALSE)","v":3.7287665194641939E-2},{"$f":"(VLOOKUP(B41,Other_data,Other!$AR$3,FALSE)+VLOOKUP(B41,Other_data,Other!$AS$3,FALSE))/VLOOKUP(B41,Other_data,Other!$AQ$3,FALSE)","v":5.4558220215314299E-2},{"$f":"VLOOKUP(B41,Other_data,Other!$AP$3,FALSE)/VLOOKUP(B41,Other_data,Other!$AJ$3,FALSE)","v":5.6323312137265625E-3},{"$f":"VLOOKUP(B41,Other_data,Other!$AW$3,FALSE)/VLOOKUP(B41,Other_data,Other!$AQ$3,FALSE)","v":1.0311407252402325E-2}]
[36,371,"Doncaster",{"$f":"IFERROR((VLOOKUP($B42,Pupils,Pupils!$D$3,FALSE)/VLOOKUP($B42,Pupils,Pupils!$C$3,FALSE)), \"x\")","v":2.5891181988742965E-2},{"$f":"IFERROR((VLOOKUP($B42,Pupils,Pupils!$G$3,FALSE)/VLOOKUP($B42,Pupils,Pupils!$F$3,FALSE)),\"x\")","v":2.5569551275333766E-2},{"$f":"IFERROR((VLOOKUP($B42,Pupils,Pupils!$J$3,FALSE)/VLOOKUP($B42,Pupils,Pupils!$I$3,FALSE)), \"x\")","v":2.574278215223097E-2},{"$f":"IFERROR((VLOOKUP($B42,Pupils,Pupils!$M$3,FALSE)/VLOOKUP($B42,Pupils,Pupils!$L$3,FALSE)), \"x\")","v":2.5429799426934099E-2},{"$f":"IFERROR((VLOOKUP($B42,Pupils,Pupils!$R$3,FALSE)/VLOOKUP($B42,Pupils,Pupils!$Q$3,FALSE)), \"x\")","v":2.5996244523263091E-2},{"$f":"IFERROR((VLOOKUP($B42,Pupils,Pupils!$W$3,FALSE)/VLOOKUP($B42,Pupils,Pupils!$V$3,FALSE)), \"x\")","v":2.5631956725267867E-2},{"$f":"IFERROR(((VLOOKUP($B42,Pupils,Pupils!$D$3,FALSE)+VLOOKUP($B42,Pupils,Pupils!$E$3,FALSE))/VLOOKUP($B42,Pupils,Pupils!$C$3,FALSE)), \"x\")","v":0.1966437356681259},{"$f":"IFERROR(((VLOOKUP($B42,Pupils,Pupils!$G$3,FALSE)+VLOOKUP($B42,Pupils,Pupils!$H$3,FALSE))/VLOOKUP($B42,Pupils,Pupils!$F$3,FALSE)), \"x\")","v":0.20044851507974765},{"$f":"IFERROR(((VLOOKUP($B42,Pupils,Pupils!$J$3,FALSE)+VLOOKUP($B42,Pupils,Pupils!$K$3,FALSE))/VLOOKUP($B42,Pupils,Pupils!$I$3,FALSE)), \"x\")","v":0.20004199475065618},{"$f":"IFERROR(((VLOOKUP($B42,Pupils,Pupils!$M$3,FALSE)+VLOOKUP($B42,Pupils,Pupils!$P$3,FALSE))/VLOOKUP($B42,Pupils,Pupils!$L$3,FALSE)), \"x\")","v":0.19193494016517781},{"$f":"IFERROR(((VLOOKUP($B42,Pupils,Pupils!$R$3,FALSE)+VLOOKUP($B42,Pupils,Pupils!$U$3,FALSE))/VLOOKUP($B42,Pupils,Pupils!$Q$3,FALSE)), \"x\")","v":0.18781556436469851},{"$f":"IFERROR(((VLOOKUP($B42,Pupils,Pupils!$W$3,FALSE)+VLOOKUP($B42,Pupils,Pupils!$Z$3,FALSE))/VLOOKUP($B42,Pupils,Pupils!$V$3,FALSE)), \"x\")","v":0.17524185998127537},{"$f":"(SUM(INDEX(Pupils!$AB$7:$AB$159,MATCH($B42,Pupils!$A$7:$A$159,0)),INDEX(Pupils!$AC$7:$AC$159,MATCH($B42,Pupils!$A$7:$A$159,0)),INDEX(Pupils!$AD$7:$AD$159,MATCH($B42,Pupils!$A$7:$A$159,0)),INDEX(Pupils!$AE$7:$AE$159,MATCH($B42,Pupils!$A$7:$A$159,0))))/SUM(INDEX(Pupils!$AB$7:$AM$159,MATCH($B42,Pupils!$A$7:$A$159,0),0))","v":0.31532449881073732},{"$f":"SUM(INDEX(Pupils!$AF$7:$AF$159,MATCH($B42,Pupils!$A$7:$A$159,0)))/SUM(INDEX(Pupils!$AB$7:$AM$159,MATCH($B42,Pupils!$A$7:$A$159,0),0))","v":0.21508664627930682},{"$f":"SUM(INDEX(Pupils!$AG$7:$AG$159,MATCH($B42,Pupils!$A$7:$A$159,0)))/SUM(INDEX(Pupils!$AB$7:$AM$159,MATCH($B42,Pupils!$A$7:$A$159,0),0))","v":0.13285762827047232},{"$f":"(SUM(INDEX(Pupils!$AH$7:$AH$159,MATCH($B42,Pupils!$A$7:$A$159,0)),INDEX(Pupils!$AI$7:$AI$159,MATCH($B42,Pupils!$A$7:$A$159,0)),INDEX(Pupils!$AJ$7:$AJ$159,MATCH($B42,Pupils!$A$7:$A$159,0))))/SUM(INDEX(Pupils!$AB$7:$AM$159,MATCH($B42,Pupils!$A$7:$A$159,0),0))","v":7.3394495412844041E-2},{"$f":"SUM(INDEX(Pupils!$AK$7:$AK$159,MATCH($B42,Pupils!$A$7:$A$159,0)))/SUM(INDEX(Pupils!$AB$7:$AM$159,MATCH($B42,Pupils!$A$7:$A$159,0),0))","v":5.5725450220863067E-2},{"$f":"SUM(INDEX(Pupils!$AL$7:$AL$159,MATCH($B42,Pupils!$A$7:$A$159,0)))/SUM(INDEX(Pupils!$AB$7:$AM$159,MATCH($B42,Pupils!$A$7:$A$159,0),0))","v":0.17601087325857967},{"$f":"SUM(INDEX(Pupils!$AM$7:$AM$159,MATCH($B42,Pupils!$A$7:$A$159,0)))/SUM(INDEX(Pupils!$AB$7:$AM$159,MATCH($B42,Pupils!$A$7:$A$159,0),0))","v":3.1600407747196739E-2},{"$f":"(SUM(INDEX(Pupils!$BH$7:$BH$159,MATCH($B42,Pupils!$A$7:$A$159,0)),INDEX(Pupils!$BK$7:$BK$159,MATCH($B42,Pupils!$A$7:$A$159,0)),INDEX(Pupils!$BO$7:$BO$159,MATCH($B42,Pupils!$A$7:$A$159,0))))/SUM(INDEX(Pupils!$BH$7:$BS$159,MATCH($B42,Pupils!$A$7:$A$159,0),0))","v":0.52656250000000004},{"$f":"(SUM(INDEX(Pupils!$BL$7:$BL$159,MATCH($B42,Pupils!$A$7:$A$159,0)),INDEX(Pupils!$BM$7:$BM$159,MATCH($B42,Pupils!$A$7:$A$159,0)),INDEX(Pupils!$BP$7:$BP$159,MATCH($B42,Pupils!$A$7:$A$159,0))))/SUM(INDEX(Pupils!$BH$7:$BS$159,MATCH($B42,Pupils!$A$7:$A$159,0),0))","v":0.44140625},{"$f":"(SUM(INDEX(Pupils!$BI$7:$BI$159,MATCH($B42,Pupils!$A$7:$A$159,0)),INDEX(Pupils!$BJ$7:$BJ$159,MATCH($B42,Pupils!$A$7:$A$159,0))))/SUM(INDEX(Pupils!$BH$7:$BS$159,MATCH($B42,Pupils!$A$7:$A$159,0),0))","v":0},{"$f":"(SUM(INDEX(Pupils!$BQ$7:$BQ$159,MATCH($B42,Pupils!$A$7:$A$159,0)),INDEX(Pupils!$BR$7:$BR$159,MATCH($B42,Pupils!$A$7:$A$159,0)),INDEX(Pupils!$BN$7:$BN$159,MATCH($B42,Pupils!$A$7:$A$159,0)),INDEX(Pupils!$BS$7:$BS$159,MATCH($B42,Pupils!$A$7:$A$159,0))))/SUM(INDEX(Pupils!$BH$7:$BS$159,MATCH($B42,Pupils!$A$7:$A$159,0),0))","v":3.2031249999999997E-2},{"$f":"IFERROR((VLOOKUP(B42,Funding,Funding!$C$2,FALSE)), \"x\")","v":25099364.650000002},{"$f":"IFERROR((AA42/VLOOKUP(B42,Funding,Funding!$D$2,FALSE)), \"x\")","v":0.11976810870529336},{"$f":"IFERROR((AA42/(VLOOKUP(B42,Pupils,Pupils!$M$3,FALSE)+VLOOKUP(B42,Pupils,Pupils!$P$3,FALSE))), \"x\")","v":2755.1443084522507},{"$f":"IFERROR((VLOOKUP(B42,Funding,Funding!$E$2,FALSE)), \"x\")","v":26319292.957120165},{"$f":"IFERROR((AD42/VLOOKUP(B42,Funding,Funding!$F$2,FALSE)), \"x\")","v":0.12205214926166454},{"$f":"IFERROR((AD42/(VLOOKUP(B42,Pupils,Pupils!$R$3,FALSE)+VLOOKUP(B42,Pupils,Pupils!$U$3,FALSE))), \"x\")","v":2923.7161694201473},{"$f":"IFERROR((VLOOKUP(B42,Funding,Funding!$G$2,FALSE)), \"x\")","v":27535648.398698483},{"$f":"IFERROR((AG42/VLOOKUP(B42,Funding,Funding!$H$2,FALSE)), \"x\")","v":0.12501778701603614},{"$f":"IFERROR((AG42/(VLOOKUP(B42,Pupils,Pupils!$W$3,FALSE)+VLOOKUP(B42,Pupils,Pupils!$Z$3,FALSE))), \"x\")","v":3269.1022674460978},{"$f":"IFERROR((VLOOKUP(B42,Funding,Funding!$I$2,FALSE)), \"x\")","v":27842695.679394029},{"$f":"IFERROR((AJ42/VLOOKUP(B42,Funding,Funding!$J$2,FALSE)), \"x\")","v":0.12524604001454778},null,{"$f":"IFERROR((VLOOKUP($B42,Funding,Funding!$EC$2,FALSE)), \"x\")","v":12420018},{"$f":"IFERROR((AM42/VLOOKUP($B42,Funding,Funding!$EU$2,FALSE)), \"x\")","v":5.8692375881110044E-2},{"$f":"IFERROR((AM42/(VLOOKUP($B42,Pupils,Pupils!$D$3,FALSE)+VLOOKUP($B42,Pupils,Pupils!$E$3,FALSE))), \"x\")","v":1316.6562069331071},{"$f":"IFERROR((VLOOKUP($B42,Funding,Funding!$DA$2,FALSE)), \"x\")","v":14034480.476780001},{"$f":"IFERROR((AP42/VLOOKUP($B42,Funding,Funding!$DT$2,FALSE)), \"x\")","v":6.3713873266272841E-2},{"$f":"IFERROR((AP42/(VLOOKUP($B42,Pupils,Pupils!$G$3,FALSE)+VLOOKUP($B42,Pupils,Pupils!$H$3,FALSE))), \"x\")","v":1467.42790430573},{"$f":"IFERROR((VLOOKUP($B42,Funding,Funding!$CE$2,FALSE)), \"x\")","v":16155358.55517},{"$f":"IFERROR((AS42/VLOOKUP($B42,Funding,Funding!$CR$2,FALSE)), \"x\")","v":7.7346118824237281E-2},{"$f":"IFERROR((AS42/(VLOOKUP($B42,Pupils,Pupils!$J$3,FALSE)+VLOOKUP($B42,Pupils,Pupils!$K$3,FALSE))), \"x\")","v":1695.7445738606066},{"$f":"IFERROR((VLOOKUP($B42,Funding,Funding!$BM$2,FALSE)), \"x\")","v":17586837},{"$f":"IFERROR((AV42/VLOOKUP($B42,Funding,Funding!$BY$2,FALSE)), \"x\")","v":0.10438558822780279},{"$f":"IFERROR((AV42/(VLOOKUP($B42,Pupils,Pupils!$M$3,FALSE)+VLOOKUP($B42,Pupils,Pupils!$P$3,FALSE))), \"x\")","v":1930.4980241492865},{"$f":"IFERROR((VLOOKUP($B42,Funding,Funding!$AQ$2,FALSE)), \"x\")","v":22897544},{"$f":"IFERROR((AY42/VLOOKUP($B42,Funding,Funding!$BE$2,FALSE)), \"x\")","v":0.10510489753867777},{"$f":"IFERROR((AY42/(VLOOKUP($B42,Pupils,Pupils!$R$3,FALSE)+VLOOKUP($B42,Pupils,Pupils!$U$3,FALSE))), \"x\")","v":2543.6063097089536},{"$f":"IFERROR((VLOOKUP($B42,Funding,Funding!$S$2,FALSE)), \"x\")","v":21829110},{"$f":"IFERROR((BB42/VLOOKUP($B42,Funding,Funding!$AH$2,FALSE)), \"x\")","v":9.8129308504062665E-2},{"$f":"IFERROR((BB42/(VLOOKUP(B42,Pupils,Pupils!$W$3,FALSE)+VLOOKUP(B42,Pupils,Pupils!$Z$3,FALSE))), \"x\")","v":2591.60750326487},{"$f":"IFERROR((VLOOKUP($B42,Funding,Funding!$GX$2,FALSE)), \"x\")","v":21488420.43197},{"$f":"IFERROR((BE42/VLOOKUP($B42,Funding,Funding!$HC$2,FALSE)), \"x\")","v":9.5168432466635686E-2},{"$f":"IFERROR((BE42/(VLOOKUP($B42,Pupils,Pupils!$D$3,FALSE)+VLOOKUP($B42,Pupils,Pupils!$E$3,FALSE))), \"x\")","v":2278.0049222908938},{"$f":"IFERROR((VLOOKUP($B42,Funding,Funding!$GP$2,FALSE)), \"x\")","v":31331668.600000001},{"$f":"IFERROR((BH42/VLOOKUP($B42,Funding,Funding!$GU$2,FALSE)), \"x\")","v":0.13921611675596643},{"$f":"IFERROR((BH42/(VLOOKUP($B42,Pupils,Pupils!$G$3,FALSE)+VLOOKUP($B42,Pupils,Pupils!$H$3,FALSE))), \"x\")","v":3276.0004809703055},{"$f":"IFERROR((VLOOKUP($B42,Funding,Funding!$GH$2,FALSE)), \"x\")","v":33353183.949999999},{"$f":"IFERROR((BK42/VLOOKUP($B42,Funding,Funding!$GM$2,FALSE)), \"x\")","v":0.16861707201476528},{"$f":"IFERROR((BK42/(VLOOKUP($B42,Pupils,Pupils!$J$3,FALSE)+VLOOKUP($B42,Pupils,Pupils!$K$3,FALSE))), \"x\")","v":3500.9115093943528},{"$f":"IFERROR((VLOOKUP($B42,Funding,Funding!$FZ$2,FALSE)), \"x\")","v":30764110.030000001},{"$f":"IFERROR((BN42/VLOOKUP($B42,Funding,Funding!$GE$2,FALSE)), \"x\")","v":0.19312300497427062},{"$f":"IFERROR((BN42/(VLOOKUP($B42,Pupils,Pupils!$M$3,FALSE)+VLOOKUP($B42,Pupils,Pupils!$P$3,FALSE))), \"x\")","v":3376.9604862788146},{"$f":"IFERROR((VLOOKUP($B42,Funding,Funding!$FD$2,FALSE)), \"x\")","v":22390008},{"$f":"IFERROR((BQ42/VLOOKUP($B42,Funding,Funding!$FR$2,FALSE)), \"x\")","v":0.16406132394671349},{"$f":"IFERROR((BQ42/(VLOOKUP($B42,Pupils,Pupils!$R$3,FALSE)+VLOOKUP($B42,Pupils,Pupils!$U$3,FALSE))), \"x\")","v":2487.2259497889358},{"$f":"(VLOOKUP(B42,Funding,Funding!$HK$2,FALSE)+VLOOKUP(B42,Funding,Funding!$HL$2,FALSE)+VLOOKUP(B42,Funding,Funding!$HM$2,FALSE))/(VLOOKUP(B42,Funding,Funding!$HN$2,FALSE))","v":0.20609884332281808},{"$f":"IFERROR((VLOOKUP(B42,Other_data,Other!$D$3,FALSE)+VLOOKUP(B42,Other_data,Other!$E$3,FALSE)+VLOOKUP(B42,Other_data,Other!$F$3,FALSE)), \"x\")","v":1680},{"$f":"(VLOOKUP(B42,Other_data,Other!$AK$3,FALSE)+VLOOKUP(B42,Other_data,Other!$AL$3,FALSE))/VLOOKUP(B42,Other_data,Other!$AJ$3,FALSE)","v":3.8711923411662318E-2},{"$f":"(VLOOKUP(B42,Other_data,Other!$AR$3,FALSE)+VLOOKUP(B42,Other_data,Other!$AS$3,FALSE))/VLOOKUP(B42,Other_data,Other!$AQ$3,FALSE)","v":5.6868074430273884E-2},{"$f":"VLOOKUP(B42,Other_data,Other!$AP$3,FALSE)/VLOOKUP(B42,Other_data,Other!$AJ$3,FALSE)","v":6.3881636205395994E-3},{"$f":"VLOOKUP(B42,Other_data,Other!$AW$3,FALSE)/VLOOKUP(B42,Other_data,Other!$AQ$3,FALSE)","v":1.2365222066246528E-2}]
[37,835,"Dorset",{"$f":"IFERROR((VLOOKUP($B43,Pupils,Pupils!$D$3,FALSE)/VLOOKUP($B43,Pupils,Pupils!$C$3,FALSE)), \"x\")","v":2.6755409857779102E-2},{"$f":"IFERROR((VLOOKUP($B43,Pupils,Pupils!$G$3,FALSE)/VLOOKUP($B43,Pupils,Pupils!$F$3,FALSE)),\"x\")","v":2.5545626681726073E-2},{"$f":"IFERROR((VLOOKUP($B43,Pupils,Pupils!$J$3,FALSE)/VLOOKUP($B43,Pupils,Pupils!$I$3,FALSE)), \"x\")","v":2.5271418358355363E-2},{"$f":"IFERROR((VLOOKUP($B43,Pupils,Pupils!$M$3,FALSE)/VLOOKUP($B43,Pupils,Pupils!$L$3,FALSE)), \"x\")","v":2.455442261460665E-2},{"$f":"IFERROR((VLOOKUP($B43,Pupils,Pupils!$R$3,FALSE)/VLOOKUP($B43,Pupils,Pupils!$Q$3,FALSE)), \"x\")","v":2.4487830793239698E-2},{"$f":"IFERROR((VLOOKUP($B43,Pupils,Pupils!$W$3,FALSE)/VLOOKUP($B43,Pupils,Pupils!$V$3,FALSE)), \"x\")","v":2.5438465742534902E-2},{"$f":"IFERROR(((VLOOKUP($B43,Pupils,Pupils!$D$3,FALSE)+VLOOKUP($B43,Pupils,Pupils!$E$3,FALSE))/VLOOKUP($B43,Pupils,Pupils!$C$3,FALSE)), \"x\")","v":0.21795062832166096},{"$f":"IFERROR(((VLOOKUP($B43,Pupils,Pupils!$G$3,FALSE)+VLOOKUP($B43,Pupils,Pupils!$H$3,FALSE))/VLOOKUP($B43,Pupils,Pupils!$F$3,FALSE)), \"x\")","v":0.21869913297677973},{"$f":"IFERROR(((VLOOKUP($B43,Pupils,Pupils!$J$3,FALSE)+VLOOKUP($B43,Pupils,Pupils!$K$3,FALSE))/VLOOKUP($B43,Pupils,Pupils!$I$3,FALSE)), \"x\")","v":0.22135767369943637},{"$f":"IFERROR(((VLOOKUP($B43,Pupils,Pupils!$M$3,FALSE)+VLOOKUP($B43,Pupils,Pupils!$P$3,FALSE))/VLOOKUP($B43,Pupils,Pupils!$L$3,FALSE)), \"x\")","v":0.22329437121777335},{"$f":"IFERROR(((VLOOKUP($B43,Pupils,Pupils!$R$3,FALSE)+VLOOKUP($B43,Pupils,Pupils!$U$3,FALSE))/VLOOKUP($B43,Pupils,Pupils!$Q$3,FALSE)), \"x\")","v":0.2113756350234087},{"$f":"IFERROR(((VLOOKUP($B43,Pupils,Pupils!$W$3,FALSE)+VLOOKUP($B43,Pupils,Pupils!$Z$3,FALSE))/VLOOKUP($B43,Pupils,Pupils!$V$3,FALSE)), \"x\")","v":0.20817806926019775},{"$f":"(SUM(INDEX(Pupils!$AB$7:$AB$159,MATCH($B43,Pupils!$A$7:$A$159,0)),INDEX(Pupils!$AC$7:$AC$159,MATCH($B43,Pupils!$A$7:$A$159,0)),INDEX(Pupils!$AD$7:$AD$159,MATCH($B43,Pupils!$A$7:$A$159,0)),INDEX(Pupils!$AE$7:$AE$159,MATCH($B43,Pupils!$A$7:$A$159,0))))/SUM(INDEX(Pupils!$AB$7:$AM$159,MATCH($B43,Pupils!$A$7:$A$159,0),0))","v":0.35890605576274198},{"$f":"SUM(INDEX(Pupils!$AF$7:$AF$159,MATCH($B43,Pupils!$A$7:$A$159,0)))/SUM(INDEX(Pupils!$AB$7:$AM$159,MATCH($B43,Pupils!$A$7:$A$159,0),0))","v":0.19730065707689576},{"$f":"SUM(INDEX(Pupils!$AG$7:$AG$159,MATCH($B43,Pupils!$A$7:$A$159,0)))/SUM(INDEX(Pupils!$AB$7:$AM$159,MATCH($B43,Pupils!$A$7:$A$159,0),0))","v":0.19072988811933936},{"$f":"(SUM(INDEX(Pupils!$AH$7:$AH$159,MATCH($B43,Pupils!$A$7:$A$159,0)),INDEX(Pupils!$AI$7:$AI$159,MATCH($B43,Pupils!$A$7:$A$159,0)),INDEX(Pupils!$AJ$7:$AJ$159,MATCH($B43,Pupils!$A$7:$A$159,0))))/SUM(INDEX(Pupils!$AB$7:$AM$159,MATCH($B43,Pupils!$A$7:$A$159,0),0))","v":3.4807316640028417E-2},{"$f":"SUM(INDEX(Pupils!$AK$7:$AK$159,MATCH($B43,Pupils!$A$7:$A$159,0)))/SUM(INDEX(Pupils!$AB$7:$AM$159,MATCH($B43,Pupils!$A$7:$A$159,0),0))","v":4.1555673947789022E-2},{"$f":"SUM(INDEX(Pupils!$AL$7:$AL$159,MATCH($B43,Pupils!$A$7:$A$159,0)))/SUM(INDEX(Pupils!$AB$7:$AM$159,MATCH($B43,Pupils!$A$7:$A$159,0),0))","v":0.12963949564908542},{"$f":"SUM(INDEX(Pupils!$AM$7:$AM$159,MATCH($B43,Pupils!$A$7:$A$159,0)))/SUM(INDEX(Pupils!$AB$7:$AM$159,MATCH($B43,Pupils!$A$7:$A$159,0),0))","v":4.7060912804120052E-2},{"$f":"(SUM(INDEX(Pupils!$BH$7:$BH$159,MATCH($B43,Pupils!$A$7:$A$159,0)),INDEX(Pupils!$BK$7:$BK$159,MATCH($B43,Pupils!$A$7:$A$159,0)),INDEX(Pupils!$BO$7:$BO$159,MATCH($B43,Pupils!$A$7:$A$159,0))))/SUM(INDEX(Pupils!$BH$7:$BS$159,MATCH($B43,Pupils!$A$7:$A$159,0),0))","v":0.42356241234221598},{"$f":"(SUM(INDEX(Pupils!$BL$7:$BL$159,MATCH($B43,Pupils!$A$7:$A$159,0)),INDEX(Pupils!$BM$7:$BM$159,MATCH($B43,Pupils!$A$7:$A$159,0)),INDEX(Pupils!$BP$7:$BP$159,MATCH($B43,Pupils!$A$7:$A$159,0))))/SUM(INDEX(Pupils!$BH$7:$BS$159,MATCH($B43,Pupils!$A$7:$A$159,0),0))","v":0.49228611500701264},{"$f":"(SUM(INDEX(Pupils!$BI$7:$BI$159,MATCH($B43,Pupils!$A$7:$A$159,0)),INDEX(Pupils!$BJ$7:$BJ$159,MATCH($B43,Pupils!$A$7:$A$159,0))))/SUM(INDEX(Pupils!$BH$7:$BS$159,MATCH($B43,Pupils!$A$7:$A$159,0),0))","v":6.8723702664796632E-2},{"$f":"(SUM(INDEX(Pupils!$BQ$7:$BQ$159,MATCH($B43,Pupils!$A$7:$A$159,0)),INDEX(Pupils!$BR$7:$BR$159,MATCH($B43,Pupils!$A$7:$A$159,0)),INDEX(Pupils!$BN$7:$BN$159,MATCH($B43,Pupils!$A$7:$A$159,0)),INDEX(Pupils!$BS$7:$BS$159,MATCH($B43,Pupils!$A$7:$A$159,0))))/SUM(INDEX(Pupils!$BH$7:$BS$159,MATCH($B43,Pupils!$A$7:$A$159,0),0))","v":1.5427769985974754E-2},{"$f":"IFERROR((VLOOKUP(B43,Funding,Funding!$C$2,FALSE)), \"x\")","v":33802581},{"$f":"IFERROR((AA43/VLOOKUP(B43,Funding,Funding!$D$2,FALSE)), \"x\")","v":0.1373148177069923},{"$f":"IFERROR((AA43/(VLOOKUP(B43,Pupils,Pupils!$M$3,FALSE)+VLOOKUP(B43,Pupils,Pupils!$P$3,FALSE))), \"x\")","v":2509.8441490941491},{"$f":"IFERROR((VLOOKUP(B43,Funding,Funding!$E$2,FALSE)), \"x\")","v":35313656.100188747},{"$f":"IFERROR((AD43/VLOOKUP(B43,Funding,Funding!$F$2,FALSE)), \"x\")","v":0.14087471817628458},{"$f":"IFERROR((AD43/(VLOOKUP(B43,Pupils,Pupils!$R$3,FALSE)+VLOOKUP(B43,Pupils,Pupils!$U$3,FALSE))), \"x\")","v":2773.6142083088866},{"$f":"IFERROR((VLOOKUP(B43,Funding,Funding!$G$2,FALSE)), \"x\")","v":36824734.112644888},{"$f":"IFERROR((AG43/VLOOKUP(B43,Funding,Funding!$H$2,FALSE)), \"x\")","v":0.14578469290804655},{"$f":"IFERROR((AG43/(VLOOKUP(B43,Pupils,Pupils!$W$3,FALSE)+VLOOKUP(B43,Pupils,Pupils!$Z$3,FALSE))), \"x\")","v":2929.5731195421549},{"$f":"IFERROR((VLOOKUP(B43,Funding,Funding!$I$2,FALSE)), \"x\")","v":37158275.087617867},{"$f":"IFERROR((AJ43/VLOOKUP(B43,Funding,Funding!$J$2,FALSE)), \"x\")","v":0.14610375219251465},null,{"$f":"IFERROR((VLOOKUP($B43,Funding,Funding!$EC$2,FALSE)), \"x\")","v":27098294},{"$f":"IFERROR((AM43/VLOOKUP($B43,Funding,Funding!$EU$2,FALSE)), \"x\")","v":0.1025564267575283},{"$f":"IFERROR((AM43/(VLOOKUP($B43,Pupils,Pupils!$D$3,FALSE)+VLOOKUP($B43,Pupils,Pupils!$E$3,FALSE))), \"x\")","v":2058.5151929504709},{"$f":"IFERROR((VLOOKUP($B43,Funding,Funding!$DA$2,FALSE)), \"x\")","v":28412672.729649998},{"$f":"IFERROR((AP43/VLOOKUP($B43,Funding,Funding!$DT$2,FALSE)), \"x\")","v":0.10271374640321963},{"$f":"IFERROR((AP43/(VLOOKUP($B43,Pupils,Pupils!$G$3,FALSE)+VLOOKUP($B43,Pupils,Pupils!$H$3,FALSE))), \"x\")","v":2157.869881495405},{"$f":"IFERROR((VLOOKUP($B43,Funding,Funding!$CE$2,FALSE)), \"x\")","v":26894505.311670002},{"$f":"IFERROR((AS43/VLOOKUP($B43,Funding,Funding!$CR$2,FALSE)), \"x\")","v":9.8121476073275524E-2},{"$f":"IFERROR((AS43/(VLOOKUP($B43,Pupils,Pupils!$J$3,FALSE)+VLOOKUP($B43,Pupils,Pupils!$K$3,FALSE))), \"x\")","v":2020.0169229134747},{"$f":"IFERROR((VLOOKUP($B43,Funding,Funding!$BM$2,FALSE)), \"x\")","v":27706247.330000002},{"$f":"IFERROR((AV43/VLOOKUP($B43,Funding,Funding!$BY$2,FALSE)), \"x\")","v":0.1094356889088495},{"$f":"IFERROR((AV43/(VLOOKUP($B43,Pupils,Pupils!$M$3,FALSE)+VLOOKUP($B43,Pupils,Pupils!$P$3,FALSE))), \"x\")","v":2057.1909214434218},{"$f":"IFERROR((VLOOKUP($B43,Funding,Funding!$AQ$2,FALSE)), \"x\")","v":35184900},{"$f":"IFERROR((AY43/VLOOKUP($B43,Funding,Funding!$BE$2,FALSE)), \"x\")","v":0.14014465789829017},{"$f":"IFERROR((AY43/(VLOOKUP($B43,Pupils,Pupils!$R$3,FALSE)+VLOOKUP($B43,Pupils,Pupils!$U$3,FALSE))), \"x\")","v":2763.5014137606031},{"$f":"IFERROR((VLOOKUP($B43,Funding,Funding!$S$2,FALSE)), \"x\")","v":31948080},{"$f":"IFERROR((BB43/VLOOKUP($B43,Funding,Funding!$AH$2,FALSE)), \"x\")","v":0.12061769029858353},{"$f":"IFERROR((BB43/(VLOOKUP(B43,Pupils,Pupils!$W$3,FALSE)+VLOOKUP(B43,Pupils,Pupils!$Z$3,FALSE))), \"x\")","v":2541.6133651551313},{"$f":"IFERROR((VLOOKUP($B43,Funding,Funding!$GX$2,FALSE)), \"x\")","v":40878633.152240001},{"$f":"IFERROR((BE43/VLOOKUP($B43,Funding,Funding!$HC$2,FALSE)), \"x\")","v":0.14341825649065959},{"$f":"IFERROR((BE43/(VLOOKUP($B43,Pupils,Pupils!$D$3,FALSE)+VLOOKUP($B43,Pupils,Pupils!$E$3,FALSE))), \"x\")","v":3105.3352440170161},{"$f":"IFERROR((VLOOKUP($B43,Funding,Funding!$GP$2,FALSE)), \"x\")","v":40714203.600000001},{"$f":"IFERROR((BH43/VLOOKUP($B43,Funding,Funding!$GU$2,FALSE)), \"x\")","v":0.13630120958723477},{"$f":"IFERROR((BH43/(VLOOKUP($B43,Pupils,Pupils!$G$3,FALSE)+VLOOKUP($B43,Pupils,Pupils!$H$3,FALSE))), \"x\")","v":3092.1397129186603},{"$f":"IFERROR((VLOOKUP($B43,Funding,Funding!$GH$2,FALSE)), \"x\")","v":40373298.850000001},{"$f":"IFERROR((BK43/VLOOKUP($B43,Funding,Funding!$GM$2,FALSE)), \"x\")","v":0.14835610063086668},{"$f":"IFERROR((BK43/(VLOOKUP($B43,Pupils,Pupils!$J$3,FALSE)+VLOOKUP($B43,Pupils,Pupils!$K$3,FALSE))), \"x\")","v":3032.3943856091332},{"$f":"IFERROR((VLOOKUP($B43,Funding,Funding!$FZ$2,FALSE)), \"x\")","v":34698579.170000002},{"$f":"IFERROR((BN43/VLOOKUP($B43,Funding,Funding!$GE$2,FALSE)), \"x\")","v":0.13642985869014415},{"$f":"IFERROR((BN43/(VLOOKUP($B43,Pupils,Pupils!$M$3,FALSE)+VLOOKUP($B43,Pupils,Pupils!$P$3,FALSE))), \"x\")","v":2576.3720797445799},{"$f":"IFERROR((VLOOKUP($B43,Funding,Funding!$FD$2,FALSE)), \"x\")","v":29951288},{"$f":"IFERROR((BQ43/VLOOKUP($B43,Funding,Funding!$FR$2,FALSE)), \"x\")","v":0.13430808860903387},{"$f":"IFERROR((BQ43/(VLOOKUP($B43,Pupils,Pupils!$R$3,FALSE)+VLOOKUP($B43,Pupils,Pupils!$U$3,FALSE))), \"x\")","v":2352.4417216462457},{"$f":"(VLOOKUP(B43,Funding,Funding!$HK$2,FALSE)+VLOOKUP(B43,Funding,Funding!$HL$2,FALSE)+VLOOKUP(B43,Funding,Funding!$HM$2,FALSE))/(VLOOKUP(B43,Funding,Funding!$HN$2,FALSE))","v":0.17642585551330797},{"$f":"IFERROR((VLOOKUP(B43,Other_data,Other!$D$3,FALSE)+VLOOKUP(B43,Other_data,Other!$E$3,FALSE)+VLOOKUP(B43,Other_data,Other!$F$3,FALSE)), \"x\")","v":2200},{"$f":"(VLOOKUP(B43,Other_data,Other!$AK$3,FALSE)+VLOOKUP(B43,Other_data,Other!$AL$3,FALSE))/VLOOKUP(B43,Other_data,Other!$AJ$3,FALSE)","v":3.7946834982096257E-2},{"$f":"(VLOOKUP(B43,Other_data,Other!$AR$3,FALSE)+VLOOKUP(B43,Other_data,Other!$AS$3,FALSE))/VLOOKUP(B43,Other_data,Other!$AQ$3,FALSE)","v":5.8556412053258587E-2},{"$f":"VLOOKUP(B43,Other_data,Other!$AP$3,FALSE)/VLOOKUP(B43,Other_data,Other!$AJ$3,FALSE)","v":5.2345693997693753E-3},{"$f":"VLOOKUP(B43,Other_data,Other!$AW$3,FALSE)/VLOOKUP(B43,Other_data,Other!$AQ$3,FALSE)","v":1.0763840224246672E-2}]
[38,332,"Dudley",{"$f":"IFERROR((VLOOKUP($B44,Pupils,Pupils!$D$3,FALSE)/VLOOKUP($B44,Pupils,Pupils!$C$3,FALSE)), \"x\")","v":3.1255209201533588E-2},{"$f":"IFERROR((VLOOKUP($B44,Pupils,Pupils!$G$3,FALSE)/VLOOKUP($B44,Pupils,Pupils!$F$3,FALSE)),\"x\")","v":3.312368972746331E-2},{"$f":"IFERROR((VLOOKUP($B44,Pupils,Pupils!$J$3,FALSE)/VLOOKUP($B44,Pupils,Pupils!$I$3,FALSE)), \"x\")","v":3.4948673088678571E-2},{"$f":"IFERROR((VLOOKUP($B44,Pupils,Pupils!$M$3,FALSE)/VLOOKUP($B44,Pupils,Pupils!$L$3,FALSE)), \"x\")","v":3.6456573166610343E-2},{"$f":"IFERROR((VLOOKUP($B44,Pupils,Pupils!$R$3,FALSE)/VLOOKUP($B44,Pupils,Pupils!$Q$3,FALSE)), \"x\")","v":3.6265039823758685E-2},{"$f":"IFERROR((VLOOKUP($B44,Pupils,Pupils!$W$3,FALSE)/VLOOKUP($B44,Pupils,Pupils!$V$3,FALSE)), \"x\")","v":3.2862453531598515E-2},{"$f":"IFERROR(((VLOOKUP($B44,Pupils,Pupils!$D$3,FALSE)+VLOOKUP($B44,Pupils,Pupils!$E$3,FALSE))/VLOOKUP($B44,Pupils,Pupils!$C$3,FALSE)), \"x\")","v":0.21647357892982164},{"$f":"IFERROR(((VLOOKUP($B44,Pupils,Pupils!$G$3,FALSE)+VLOOKUP($B44,Pupils,Pupils!$H$3,FALSE))/VLOOKUP($B44,Pupils,Pupils!$F$3,FALSE)), \"x\")","v":0.22572327044025156},{"$f":"IFERROR(((VLOOKUP($B44,Pupils,Pupils!$J$3,FALSE)+VLOOKUP($B44,Pupils,Pupils!$K$3,FALSE))/VLOOKUP($B44,Pupils,Pupils!$I$3,FALSE)), \"x\")","v":0.2166058894205434},{"$f":"IFERROR(((VLOOKUP($B44,Pupils,Pupils!$M$3,FALSE)+VLOOKUP($B44,Pupils,Pupils!$P$3,FALSE))/VLOOKUP($B44,Pupils,Pupils!$L$3,FALSE)), \"x\")","v":0.21214937478877999},{"$f":"IFERROR(((VLOOKUP($B44,Pupils,Pupils!$R$3,FALSE)+VLOOKUP($B44,Pupils,Pupils!$U$3,FALSE))/VLOOKUP($B44,Pupils,Pupils!$Q$3,FALSE)), \"x\")","v":0.2047957973224877},{"$f":"IFERROR(((VLOOKUP($B44,Pupils,Pupils!$W$3,FALSE)+VLOOKUP($B44,Pupils,Pupils!$Z$3,FALSE))/VLOOKUP($B44,Pupils,Pupils!$V$3,FALSE)), \"x\")","v":0.1951141795007966},{"$f":"(SUM(INDEX(Pupils!$AB$7:$AB$159,MATCH($B44,Pupils!$A$7:$A$159,0)),INDEX(Pupils!$AC$7:$AC$159,MATCH($B44,Pupils!$A$7:$A$159,0)),INDEX(Pupils!$AD$7:$AD$159,MATCH($B44,Pupils!$A$7:$A$159,0)),INDEX(Pupils!$AE$7:$AE$159,MATCH($B44,Pupils!$A$7:$A$159,0))))/SUM(INDEX(Pupils!$AB$7:$AM$159,MATCH($B44,Pupils!$A$7:$A$159,0),0))","v":0.40007320644216693},{"$f":"SUM(INDEX(Pupils!$AF$7:$AF$159,MATCH($B44,Pupils!$A$7:$A$159,0)))/SUM(INDEX(Pupils!$AB$7:$AM$159,MATCH($B44,Pupils!$A$7:$A$159,0),0))","v":0.14165446559297218},{"$f":"SUM(INDEX(Pupils!$AG$7:$AG$159,MATCH($B44,Pupils!$A$7:$A$159,0)))/SUM(INDEX(Pupils!$AB$7:$AM$159,MATCH($B44,Pupils!$A$7:$A$159,0),0))","v":0.27104685212298685},{"$f":"(SUM(INDEX(Pupils!$AH$7:$AH$159,MATCH($B44,Pupils!$A$7:$A$159,0)),INDEX(Pupils!$AI$7:$AI$159,MATCH($B44,Pupils!$A$7:$A$159,0)),INDEX(Pupils!$AJ$7:$AJ$159,MATCH($B44,Pupils!$A$7:$A$159,0))))/SUM(INDEX(Pupils!$AB$7:$AM$159,MATCH($B44,Pupils!$A$7:$A$159,0),0))","v":4.3008784773060027E-2},{"$f":"SUM(INDEX(Pupils!$AK$7:$AK$159,MATCH($B44,Pupils!$A$7:$A$159,0)))/SUM(INDEX(Pupils!$AB$7:$AM$159,MATCH($B44,Pupils!$A$7:$A$159,0),0))","v":4.6303074670571008E-2},{"$f":"SUM(INDEX(Pupils!$AL$7:$AL$159,MATCH($B44,Pupils!$A$7:$A$159,0)))/SUM(INDEX(Pupils!$AB$7:$AM$159,MATCH($B44,Pupils!$A$7:$A$159,0),0))","v":7.2291361639824303E-2},{"$f":"SUM(INDEX(Pupils!$AM$7:$AM$159,MATCH($B44,Pupils!$A$7:$A$159,0)))/SUM(INDEX(Pupils!$AB$7:$AM$159,MATCH($B44,Pupils!$A$7:$A$159,0),0))","v":2.5622254758418742E-2},{"$f":"(SUM(INDEX(Pupils!$BH$7:$BH$159,MATCH($B44,Pupils!$A$7:$A$159,0)),INDEX(Pupils!$BK$7:$BK$159,MATCH($B44,Pupils!$A$7:$A$159,0)),INDEX(Pupils!$BO$7:$BO$159,MATCH($B44,Pupils!$A$7:$A$159,0))))/SUM(INDEX(Pupils!$BH$7:$BS$159,MATCH($B44,Pupils!$A$7:$A$159,0),0))","v":0.47898089171974523},{"$f":"(SUM(INDEX(Pupils!$BL$7:$BL$159,MATCH($B44,Pupils!$A$7:$A$159,0)),INDEX(Pupils!$BM$7:$BM$159,MATCH($B44,Pupils!$A$7:$A$159,0)),INDEX(Pupils!$BP$7:$BP$159,MATCH($B44,Pupils!$A$7:$A$159,0))))/SUM(INDEX(Pupils!$BH$7:$BS$159,MATCH($B44,Pupils!$A$7:$A$159,0),0))","v":0.47770700636942676},{"$f":"(SUM(INDEX(Pupils!$BI$7:$BI$159,MATCH($B44,Pupils!$A$7:$A$159,0)),INDEX(Pupils!$BJ$7:$BJ$159,MATCH($B44,Pupils!$A$7:$A$159,0))))/SUM(INDEX(Pupils!$BH$7:$BS$159,MATCH($B44,Pupils!$A$7:$A$159,0),0))","v":3.5668789808917196E-2},{"$f":"(SUM(INDEX(Pupils!$BQ$7:$BQ$159,MATCH($B44,Pupils!$A$7:$A$159,0)),INDEX(Pupils!$BR$7:$BR$159,MATCH($B44,Pupils!$A$7:$A$159,0)),INDEX(Pupils!$BN$7:$BN$159,MATCH($B44,Pupils!$A$7:$A$159,0)),INDEX(Pupils!$BS$7:$BS$159,MATCH($B44,Pupils!$A$7:$A$159,0))))/SUM(INDEX(Pupils!$BH$7:$BS$159,MATCH($B44,Pupils!$A$7:$A$159,0),0))","v":7.6433121019108281E-3},{"$f":"IFERROR((VLOOKUP(B44,Funding,Funding!$C$2,FALSE)), \"x\")","v":26752083.939999998},{"$f":"IFERROR((AA44/VLOOKUP(B44,Funding,Funding!$D$2,FALSE)), \"x\")","v":0.11649765825409161},{"$f":"IFERROR((AA44/(VLOOKUP(B44,Pupils,Pupils!$M$3,FALSE)+VLOOKUP(B44,Pupils,Pupils!$P$3,FALSE))), \"x\")","v":2663.4890422142571},{"$f":"IFERROR((VLOOKUP(B44,Funding,Funding!$E$2,FALSE)), \"x\")","v":29423958.203654539},{"$f":"IFERROR((AD44/VLOOKUP(B44,Funding,Funding!$F$2,FALSE)), \"x\")","v":0.12557001914514546},{"$f":"IFERROR((AD44/(VLOOKUP(B44,Pupils,Pupils!$R$3,FALSE)+VLOOKUP(B44,Pupils,Pupils!$U$3,FALSE))), \"x\")","v":3043.4379606593443},{"$f":"IFERROR((VLOOKUP(B44,Funding,Funding!$G$2,FALSE)), \"x\")","v":30308305.950536441},{"$f":"IFERROR((AG44/VLOOKUP(B44,Funding,Funding!$H$2,FALSE)), \"x\")","v":0.12839670584412666},{"$f":"IFERROR((AG44/(VLOOKUP(B44,Pupils,Pupils!$W$3,FALSE)+VLOOKUP(B44,Pupils,Pupils!$Z$3,FALSE))), \"x\")","v":3299.7611268956389},{"$f":"IFERROR((VLOOKUP(B44,Funding,Funding!$I$2,FALSE)), \"x\")","v":30793739.296487343},{"$f":"IFERROR((AJ44/VLOOKUP(B44,Funding,Funding!$J$2,FALSE)), \"x\")","v":0.13218863589001792},null,{"$f":"IFERROR((VLOOKUP($B44,Funding,Funding!$EC$2,FALSE)), \"x\")","v":17606796},{"$f":"IFERROR((AM44/VLOOKUP($B44,Funding,Funding!$EU$2,FALSE)), \"x\")","v":7.8517455182823701E-2},{"$f":"IFERROR((AM44/(VLOOKUP($B44,Pupils,Pupils!$D$3,FALSE)+VLOOKUP($B44,Pupils,Pupils!$E$3,FALSE))), \"x\")","v":1694.7536817788045},{"$f":"IFERROR((VLOOKUP($B44,Funding,Funding!$DA$2,FALSE)), \"x\")","v":18685569.33233},{"$f":"IFERROR((AP44/VLOOKUP($B44,Funding,Funding!$DT$2,FALSE)), \"x\")","v":7.8850293852525066E-2},{"$f":"IFERROR((AP44/(VLOOKUP($B44,Pupils,Pupils!$G$3,FALSE)+VLOOKUP($B44,Pupils,Pupils!$H$3,FALSE))), \"x\")","v":1735.4480665301382},{"$f":"IFERROR((VLOOKUP($B44,Funding,Funding!$CE$2,FALSE)), \"x\")","v":18846821},{"$f":"IFERROR((AS44/VLOOKUP($B44,Funding,Funding!$CR$2,FALSE)), \"x\")","v":8.1675020064783596E-2},{"$f":"IFERROR((AS44/(VLOOKUP($B44,Pupils,Pupils!$J$3,FALSE)+VLOOKUP($B44,Pupils,Pupils!$K$3,FALSE))), \"x\")","v":1834.0619891008175},{"$f":"IFERROR((VLOOKUP($B44,Funding,Funding!$BM$2,FALSE)), \"x\")","v":20469876},{"$f":"IFERROR((AV44/VLOOKUP($B44,Funding,Funding!$BY$2,FALSE)), \"x\")","v":9.5225783198775504E-2},{"$f":"IFERROR((AV44/(VLOOKUP($B44,Pupils,Pupils!$M$3,FALSE)+VLOOKUP($B44,Pupils,Pupils!$P$3,FALSE))), \"x\")","v":2038.020310633214},{"$f":"IFERROR((VLOOKUP($B44,Funding,Funding!$AQ$2,FALSE)), \"x\")","v":27374519},{"$f":"IFERROR((AY44/VLOOKUP($B44,Funding,Funding!$BE$2,FALSE)), \"x\")","v":0.11525062614186696},{"$f":"IFERROR((AY44/(VLOOKUP($B44,Pupils,Pupils!$R$3,FALSE)+VLOOKUP($B44,Pupils,Pupils!$U$3,FALSE))), \"x\")","v":2831.4562474141499},{"$f":"IFERROR((VLOOKUP($B44,Funding,Funding!$S$2,FALSE)), \"x\")","v":24633297},{"$f":"IFERROR((BB44/VLOOKUP($B44,Funding,Funding!$AH$2,FALSE)), \"x\")","v":0.10369724440513953},{"$f":"IFERROR((BB44/(VLOOKUP(B44,Pupils,Pupils!$W$3,FALSE)+VLOOKUP(B44,Pupils,Pupils!$Z$3,FALSE))), \"x\")","v":2681.9049537289056},{"$f":"IFERROR((VLOOKUP($B44,Funding,Funding!$GX$2,FALSE)), \"x\")","v":28046169},{"$f":"IFERROR((BE44/VLOOKUP($B44,Funding,Funding!$HC$2,FALSE)), \"x\")","v":0.11698895373312063},{"$f":"IFERROR((BE44/(VLOOKUP($B44,Pupils,Pupils!$D$3,FALSE)+VLOOKUP($B44,Pupils,Pupils!$E$3,FALSE))), \"x\")","v":2699.6023678891133},{"$f":"IFERROR((VLOOKUP($B44,Funding,Funding!$GP$2,FALSE)), \"x\")","v":28825775},{"$f":"IFERROR((BH44/VLOOKUP($B44,Funding,Funding!$GU$2,FALSE)), \"x\")","v":0.11610450250459578},{"$f":"IFERROR((BH44/(VLOOKUP($B44,Pupils,Pupils!$G$3,FALSE)+VLOOKUP($B44,Pupils,Pupils!$H$3,FALSE))), \"x\")","v":2677.2336769759449},{"$f":"IFERROR((VLOOKUP($B44,Funding,Funding!$GH$2,FALSE)), \"x\")","v":29145519},{"$f":"IFERROR((BK44/VLOOKUP($B44,Funding,Funding!$GM$2,FALSE)), \"x\")","v":0.12132231771425163},{"$f":"IFERROR((BK44/(VLOOKUP($B44,Pupils,Pupils!$J$3,FALSE)+VLOOKUP($B44,Pupils,Pupils!$K$3,FALSE))), \"x\")","v":2836.2708252238226},{"$f":"IFERROR((VLOOKUP($B44,Funding,Funding!$FZ$2,FALSE)), \"x\")","v":23526517},{"$f":"IFERROR((BN44/VLOOKUP($B44,Funding,Funding!$GE$2,FALSE)), \"x\")","v":0.10285296690885502},{"$f":"IFERROR((BN44/(VLOOKUP($B44,Pupils,Pupils!$M$3,FALSE)+VLOOKUP($B44,Pupils,Pupils!$P$3,FALSE))), \"x\")","v":2342.3453803265629},{"$f":"IFERROR((VLOOKUP($B44,Funding,Funding!$FD$2,FALSE)), \"x\")","v":26246194},{"$f":"IFERROR((BQ44/VLOOKUP($B44,Funding,Funding!$FR$2,FALSE)), \"x\")","v":0.13114605162011547},{"$f":"IFERROR((BQ44/(VLOOKUP($B44,Pupils,Pupils!$R$3,FALSE)+VLOOKUP($B44,Pupils,Pupils!$U$3,FALSE))), \"x\")","v":2714.749069093918},{"$f":"(VLOOKUP(B44,Funding,Funding!$HK$2,FALSE)+VLOOKUP(B44,Funding,Funding!$HL$2,FALSE)+VLOOKUP(B44,Funding,Funding!$HM$2,FALSE))/(VLOOKUP(B44,Funding,Funding!$HN$2,FALSE))","v":0.12464589235127478},{"$f":"IFERROR((VLOOKUP(B44,Other_data,Other!$D$3,FALSE)+VLOOKUP(B44,Other_data,Other!$E$3,FALSE)+VLOOKUP(B44,Other_data,Other!$F$3,FALSE)), \"x\")","v":2090},{"$f":"(VLOOKUP(B44,Other_data,Other!$AK$3,FALSE)+VLOOKUP(B44,Other_data,Other!$AL$3,FALSE))/VLOOKUP(B44,Other_data,Other!$AJ$3,FALSE)","v":4.1725720456232705E-2},{"$f":"(VLOOKUP(B44,Other_data,Other!$AR$3,FALSE)+VLOOKUP(B44,Other_data,Other!$AS$3,FALSE))/VLOOKUP(B44,Other_data,Other!$AQ$3,FALSE)","v":5.4920521521700301E-2},{"$f":"VLOOKUP(B44,Other_data,Other!$AP$3,FALSE)/VLOOKUP(B44,Other_data,Other!$AJ$3,FALSE)","v":6.5634068974826211E-3},{"$f":"VLOOKUP(B44,Other_data,Other!$AW$3,FALSE)/VLOOKUP(B44,Other_data,Other!$AQ$3,FALSE)","v":1.0626897660296482E-2}]
[39,840,"Durham",{"$f":"IFERROR((VLOOKUP($B45,Pupils,Pupils!$D$3,FALSE)/VLOOKUP($B45,Pupils,Pupils!$C$3,FALSE)), \"x\")","v":3.0445871780148757E-2},{"$f":"IFERROR((VLOOKUP($B45,Pupils,Pupils!$G$3,FALSE)/VLOOKUP($B45,Pupils,Pupils!$F$3,FALSE)),\"x\")","v":3.078182892122644E-2},{"$f":"IFERROR((VLOOKUP($B45,Pupils,Pupils!$J$3,FALSE)/VLOOKUP($B45,Pupils,Pupils!$I$3,FALSE)), \"x\")","v":3.1240309032318957E-2},{"$f":"IFERROR((VLOOKUP($B45,Pupils,Pupils!$M$3,FALSE)/VLOOKUP($B45,Pupils,Pupils!$L$3,FALSE)), \"x\")","v":3.2302666359409524E-2},{"$f":"IFERROR((VLOOKUP($B45,Pupils,Pupils!$R$3,FALSE)/VLOOKUP($B45,Pupils,Pupils!$Q$3,FALSE)), \"x\")","v":3.2557377943945635E-2},{"$f":"IFERROR((VLOOKUP($B45,Pupils,Pupils!$W$3,FALSE)/VLOOKUP($B45,Pupils,Pupils!$V$3,FALSE)), \"x\")","v":3.2842582106455263E-2},{"$f":"IFERROR(((VLOOKUP($B45,Pupils,Pupils!$D$3,FALSE)+VLOOKUP($B45,Pupils,Pupils!$E$3,FALSE))/VLOOKUP($B45,Pupils,Pupils!$C$3,FALSE)), \"x\")","v":0.2533550549494572},{"$f":"IFERROR(((VLOOKUP($B45,Pupils,Pupils!$G$3,FALSE)+VLOOKUP($B45,Pupils,Pupils!$H$3,FALSE))/VLOOKUP($B45,Pupils,Pupils!$F$3,FALSE)), \"x\")","v":0.26322289641840735},{"$f":"IFERROR(((VLOOKUP($B45,Pupils,Pupils!$J$3,FALSE)+VLOOKUP($B45,Pupils,Pupils!$K$3,FALSE))/VLOOKUP($B45,Pupils,Pupils!$I$3,FALSE)), \"x\")","v":0.25220111370285975},{"$f":"IFERROR(((VLOOKUP($B45,Pupils,Pupils!$M$3,FALSE)+VLOOKUP($B45,Pupils,Pupils!$P$3,FALSE))/VLOOKUP($B45,Pupils,Pupils!$L$3,FALSE)), \"x\")","v":0.24455409307180329},{"$f":"IFERROR(((VLOOKUP($B45,Pupils,Pupils!$R$3,FALSE)+VLOOKUP($B45,Pupils,Pupils!$U$3,FALSE))/VLOOKUP($B45,Pupils,Pupils!$Q$3,FALSE)), \"x\")","v":0.23198155172884316},{"$f":"IFERROR(((VLOOKUP($B45,Pupils,Pupils!$W$3,FALSE)+VLOOKUP($B45,Pupils,Pupils!$Z$3,FALSE))/VLOOKUP($B45,Pupils,Pupils!$V$3,FALSE)), \"x\")","v":0.22707363997325655},{"$f":"(SUM(INDEX(Pupils!$AB$7:$AB$159,MATCH($B45,Pupils!$A$7:$A$159,0)),INDEX(Pupils!$AC$7:$AC$159,MATCH($B45,Pupils!$A$7:$A$159,0)),INDEX(Pupils!$AD$7:$AD$159,MATCH($B45,Pupils!$A$7:$A$159,0)),INDEX(Pupils!$AE$7:$AE$159,MATCH($B45,Pupils!$A$7:$A$159,0))))/SUM(INDEX(Pupils!$AB$7:$AM$159,MATCH($B45,Pupils!$A$7:$A$159,0),0))","v":0.32441966317705961},{"$f":"SUM(INDEX(Pupils!$AF$7:$AF$159,MATCH($B45,Pupils!$A$7:$A$159,0)))/SUM(INDEX(Pupils!$AB$7:$AM$159,MATCH($B45,Pupils!$A$7:$A$159,0),0))","v":0.22815202548930361},{"$f":"SUM(INDEX(Pupils!$AG$7:$AG$159,MATCH($B45,Pupils!$A$7:$A$159,0)))/SUM(INDEX(Pupils!$AB$7:$AM$159,MATCH($B45,Pupils!$A$7:$A$159,0),0))","v":0.23202093764223941},{"$f":"(SUM(INDEX(Pupils!$AH$7:$AH$159,MATCH($B45,Pupils!$A$7:$A$159,0)),INDEX(Pupils!$AI$7:$AI$159,MATCH($B45,Pupils!$A$7:$A$159,0)),INDEX(Pupils!$AJ$7:$AJ$159,MATCH($B45,Pupils!$A$7:$A$159,0))))/SUM(INDEX(Pupils!$AB$7:$AM$159,MATCH($B45,Pupils!$A$7:$A$159,0),0))","v":2.8789258079198906E-2},{"$f":"SUM(INDEX(Pupils!$AK$7:$AK$159,MATCH($B45,Pupils!$A$7:$A$159,0)))/SUM(INDEX(Pupils!$AB$7:$AM$159,MATCH($B45,Pupils!$A$7:$A$159,0),0))","v":4.4833864360491582E-2},{"$f":"SUM(INDEX(Pupils!$AL$7:$AL$159,MATCH($B45,Pupils!$A$7:$A$159,0)))/SUM(INDEX(Pupils!$AB$7:$AM$159,MATCH($B45,Pupils!$A$7:$A$159,0),0))","v":7.999544833864361E-2},{"$f":"SUM(INDEX(Pupils!$AM$7:$AM$159,MATCH($B45,Pupils!$A$7:$A$159,0)))/SUM(INDEX(Pupils!$AB$7:$AM$159,MATCH($B45,Pupils!$A$7:$A$159,0),0))","v":6.1788802913063268E-2},{"$f":"(SUM(INDEX(Pupils!$BH$7:$BH$159,MATCH($B45,Pupils!$A$7:$A$159,0)),INDEX(Pupils!$BK$7:$BK$159,MATCH($B45,Pupils!$A$7:$A$159,0)),INDEX(Pupils!$BO$7:$BO$159,MATCH($B45,Pupils!$A$7:$A$159,0))))/SUM(INDEX(Pupils!$BH$7:$BS$159,MATCH($B45,Pupils!$A$7:$A$159,0),0))","v":0.43588725684795554},{"$f":"(SUM(INDEX(Pupils!$BL$7:$BL$159,MATCH($B45,Pupils!$A$7:$A$159,0)),INDEX(Pupils!$BM$7:$BM$159,MATCH($B45,Pupils!$A$7:$A$159,0)),INDEX(Pupils!$BP$7:$BP$159,MATCH($B45,Pupils!$A$7:$A$159,0))))/SUM(INDEX(Pupils!$BH$7:$BS$159,MATCH($B45,Pupils!$A$7:$A$159,0),0))","v":0.52679634775704642},{"$f":"(SUM(INDEX(Pupils!$BI$7:$BI$159,MATCH($B45,Pupils!$A$7:$A$159,0)),INDEX(Pupils!$BJ$7:$BJ$159,MATCH($B45,Pupils!$A$7:$A$159,0))))/SUM(INDEX(Pupils!$BH$7:$BS$159,MATCH($B45,Pupils!$A$7:$A$159,0),0))","v":2.5803890432711394E-2},{"$f":"(SUM(INDEX(Pupils!$BQ$7:$BQ$159,MATCH($B45,Pupils!$A$7:$A$159,0)),INDEX(Pupils!$BR$7:$BR$159,MATCH($B45,Pupils!$A$7:$A$159,0)),INDEX(Pupils!$BN$7:$BN$159,MATCH($B45,Pupils!$A$7:$A$159,0)),INDEX(Pupils!$BS$7:$BS$159,MATCH($B45,Pupils!$A$7:$A$159,0))))/SUM(INDEX(Pupils!$BH$7:$BS$159,MATCH($B45,Pupils!$A$7:$A$159,0),0))","v":1.1512504962286622E-2},{"$f":"IFERROR((VLOOKUP(B45,Funding,Funding!$C$2,FALSE)), \"x\")","v":43277736.82},{"$f":"IFERROR((AA45/VLOOKUP(B45,Funding,Funding!$D$2,FALSE)), \"x\")","v":0.12652453138031067},{"$f":"IFERROR((AA45/(VLOOKUP(B45,Pupils,Pupils!$M$3,FALSE)+VLOOKUP(B45,Pupils,Pupils!$P$3,FALSE))), \"x\")","v":2398.8546543983148},{"$f":"IFERROR((VLOOKUP(B45,Funding,Funding!$E$2,FALSE)), \"x\")","v":45715738.004751876},{"$f":"IFERROR((AD45/VLOOKUP(B45,Funding,Funding!$F$2,FALSE)), \"x\")","v":0.13083721394728717},{"$f":"IFERROR((AD45/(VLOOKUP(B45,Pupils,Pupils!$R$3,FALSE)+VLOOKUP(B45,Pupils,Pupils!$U$3,FALSE))), \"x\")","v":2689.0028824629067},{"$f":"IFERROR((VLOOKUP(B45,Funding,Funding!$G$2,FALSE)), \"x\")","v":46169586.854210377},{"$f":"IFERROR((AG45/VLOOKUP(B45,Funding,Funding!$H$2,FALSE)), \"x\")","v":0.13139088972027582},{"$f":"IFERROR((AG45/(VLOOKUP(B45,Pupils,Pupils!$W$3,FALSE)+VLOOKUP(B45,Pupils,Pupils!$Z$3,FALSE))), \"x\")","v":2774.2811473507018},{"$f":"IFERROR((VLOOKUP(B45,Funding,Funding!$I$2,FALSE)), \"x\")","v":46911497.011048973},{"$f":"IFERROR((AJ45/VLOOKUP(B45,Funding,Funding!$J$2,FALSE)), \"x\")","v":0.13351595113503145},null,{"$f":"IFERROR((VLOOKUP($B45,Funding,Funding!$EC$2,FALSE)), \"x\")","v":24897456},{"$f":"IFERROR((AM45/VLOOKUP($B45,Funding,Funding!$EU$2,FALSE)), \"x\")","v":6.9945602241886159E-2},{"$f":"IFERROR((AM45/(VLOOKUP($B45,Pupils,Pupils!$D$3,FALSE)+VLOOKUP($B45,Pupils,Pupils!$E$3,FALSE))), \"x\")","v":1312.2572076108154},{"$f":"IFERROR((VLOOKUP($B45,Funding,Funding!$DA$2,FALSE)), \"x\")","v":25860301},{"$f":"IFERROR((AP45/VLOOKUP($B45,Funding,Funding!$DT$2,FALSE)), \"x\")","v":6.8414439298832536E-2},{"$f":"IFERROR((AP45/(VLOOKUP($B45,Pupils,Pupils!$G$3,FALSE)+VLOOKUP($B45,Pupils,Pupils!$H$3,FALSE))), \"x\")","v":1318.8648000815992},{"$f":"IFERROR((VLOOKUP($B45,Funding,Funding!$CE$2,FALSE)), \"x\")","v":26789544},{"$f":"IFERROR((AS45/VLOOKUP($B45,Funding,Funding!$CR$2,FALSE)), \"x\")","v":7.8372429173814512E-2},{"$f":"IFERROR((AS45/(VLOOKUP($B45,Pupils,Pupils!$J$3,FALSE)+VLOOKUP($B45,Pupils,Pupils!$K$3,FALSE))), \"x\")","v":1432.2129911788293},{"$f":"IFERROR((VLOOKUP($B45,Funding,Funding!$BM$2,FALSE)), \"x\")","v":28617651.140000001},{"$f":"IFERROR((AV45/VLOOKUP($B45,Funding,Funding!$BY$2,FALSE)), \"x\")","v":9.0108244054557168E-2},{"$f":"IFERROR((AV45/(VLOOKUP($B45,Pupils,Pupils!$M$3,FALSE)+VLOOKUP($B45,Pupils,Pupils!$P$3,FALSE))), \"x\")","v":1586.2563682722687},{"$f":"IFERROR((VLOOKUP($B45,Funding,Funding!$AQ$2,FALSE)), \"x\")","v":46025229},{"$f":"IFERROR((AY45/VLOOKUP($B45,Funding,Funding!$BE$2,FALSE)), \"x\")","v":0.12752282708895876},{"$f":"IFERROR((AY45/(VLOOKUP($B45,Pupils,Pupils!$R$3,FALSE)+VLOOKUP($B45,Pupils,Pupils!$U$3,FALSE))), \"x\")","v":2707.2071642844539},{"$f":"IFERROR((VLOOKUP($B45,Funding,Funding!$S$2,FALSE)), \"x\")","v":37818334},{"$f":"IFERROR((BB45/VLOOKUP($B45,Funding,Funding!$AH$2,FALSE)), \"x\")","v":0.10885742017987469},{"$f":"IFERROR((BB45/(VLOOKUP(B45,Pupils,Pupils!$W$3,FALSE)+VLOOKUP(B45,Pupils,Pupils!$Z$3,FALSE))), \"x\")","v":2272.4632856627809},{"$f":"IFERROR((VLOOKUP($B45,Funding,Funding!$GX$2,FALSE)), \"x\")","v":43386161},{"$f":"IFERROR((BE45/VLOOKUP($B45,Funding,Funding!$HC$2,FALSE)), \"x\")","v":0.1037955415782057},{"$f":"IFERROR((BE45/(VLOOKUP($B45,Pupils,Pupils!$D$3,FALSE)+VLOOKUP($B45,Pupils,Pupils!$E$3,FALSE))), \"x\")","v":2286.731724028883},{"$f":"IFERROR((VLOOKUP($B45,Funding,Funding!$GP$2,FALSE)), \"x\")","v":44546453},{"$f":"IFERROR((BH45/VLOOKUP($B45,Funding,Funding!$GU$2,FALSE)), \"x\")","v":0.10767461830858731},{"$f":"IFERROR((BH45/(VLOOKUP($B45,Pupils,Pupils!$G$3,FALSE)+VLOOKUP($B45,Pupils,Pupils!$H$3,FALSE))), \"x\")","v":2271.8509281925744},{"$f":"IFERROR((VLOOKUP($B45,Funding,Funding!$GH$2,FALSE)), \"x\")","v":48759213.739999995},{"$f":"IFERROR((BK45/VLOOKUP($B45,Funding,Funding!$GM$2,FALSE)), \"x\")","v":0.13232682425058612},{"$f":"IFERROR((BK45/(VLOOKUP($B45,Pupils,Pupils!$J$3,FALSE)+VLOOKUP($B45,Pupils,Pupils!$K$3,FALSE))), \"x\")","v":2606.7475936915262},{"$f":"IFERROR((VLOOKUP($B45,Funding,Funding!$FZ$2,FALSE)), \"x\")","v":45998569.149999999},{"$f":"IFERROR((BN45/VLOOKUP($B45,Funding,Funding!$GE$2,FALSE)), \"x\")","v":0.14034295097336841},{"$f":"IFERROR((BN45/(VLOOKUP($B45,Pupils,Pupils!$M$3,FALSE)+VLOOKUP($B45,Pupils,Pupils!$P$3,FALSE))), \"x\")","v":2549.668485671526},{"$f":"IFERROR((VLOOKUP($B45,Funding,Funding!$FD$2,FALSE)), \"x\")","v":38627402},{"$f":"IFERROR((BQ45/VLOOKUP($B45,Funding,Funding!$FR$2,FALSE)), \"x\")","v":0.13395402990507246},{"$f":"IFERROR((BQ45/(VLOOKUP($B45,Pupils,Pupils!$R$3,FALSE)+VLOOKUP($B45,Pupils,Pupils!$U$3,FALSE))), \"x\")","v":2272.0664666784305},{"$f":"(VLOOKUP(B45,Funding,Funding!$HK$2,FALSE)+VLOOKUP(B45,Funding,Funding!$HL$2,FALSE)+VLOOKUP(B45,Funding,Funding!$HM$2,FALSE))/(VLOOKUP(B45,Funding,Funding!$HN$2,FALSE))","v":0.17855227882037533},{"$f":"IFERROR((VLOOKUP(B45,Other_data,Other!$D$3,FALSE)+VLOOKUP(B45,Other_data,Other!$E$3,FALSE)+VLOOKUP(B45,Other_data,Other!$F$3,FALSE)), \"x\")","v":3430},{"$f":"(VLOOKUP(B45,Other_data,Other!$AK$3,FALSE)+VLOOKUP(B45,Other_data,Other!$AL$3,FALSE))/VLOOKUP(B45,Other_data,Other!$AJ$3,FALSE)","v":4.3195583488268643E-2},{"$f":"(VLOOKUP(B45,Other_data,Other!$AR$3,FALSE)+VLOOKUP(B45,Other_data,Other!$AS$3,FALSE))/VLOOKUP(B45,Other_data,Other!$AQ$3,FALSE)","v":6.1024111359681832E-2},{"$f":"VLOOKUP(B45,Other_data,Other!$AP$3,FALSE)/VLOOKUP(B45,Other_data,Other!$AJ$3,FALSE)","v":7.4597073148475555E-3},{"$f":"VLOOKUP(B45,Other_data,Other!$AW$3,FALSE)/VLOOKUP(B45,Other_data,Other!$AQ$3,FALSE)","v":1.3334043535385818E-2}]
[40,307,"Ealing",{"$f":"IFERROR((VLOOKUP($B46,Pupils,Pupils!$D$3,FALSE)/VLOOKUP($B46,Pupils,Pupils!$C$3,FALSE)), \"x\")","v":2.5936542453296432E-2},{"$f":"IFERROR((VLOOKUP($B46,Pupils,Pupils!$G$3,FALSE)/VLOOKUP($B46,Pupils,Pupils!$F$3,FALSE)),\"x\")","v":2.6682604253022036E-2},{"$f":"IFERROR((VLOOKUP($B46,Pupils,Pupils!$J$3,FALSE)/VLOOKUP($B46,Pupils,Pupils!$I$3,FALSE)), \"x\")","v":2.5317412333736397E-2},{"$f":"IFERROR((VLOOKUP($B46,Pupils,Pupils!$M$3,FALSE)/VLOOKUP($B46,Pupils,Pupils!$L$3,FALSE)), \"x\")","v":2.7707205714496117E-2},{"$f":"IFERROR((VLOOKUP($B46,Pupils,Pupils!$R$3,FALSE)/VLOOKUP($B46,Pupils,Pupils!$Q$3,FALSE)), \"x\")","v":2.7956210983443409E-2},{"$f":"IFERROR((VLOOKUP($B46,Pupils,Pupils!$W$3,FALSE)/VLOOKUP($B46,Pupils,Pupils!$V$3,FALSE)), \"x\")","v":2.7767454207592249E-2},{"$f":"IFERROR(((VLOOKUP($B46,Pupils,Pupils!$D$3,FALSE)+VLOOKUP($B46,Pupils,Pupils!$E$3,FALSE))/VLOOKUP($B46,Pupils,Pupils!$C$3,FALSE)), \"x\")","v":0.21656617574379758},{"$f":"IFERROR(((VLOOKUP($B46,Pupils,Pupils!$G$3,FALSE)+VLOOKUP($B46,Pupils,Pupils!$H$3,FALSE))/VLOOKUP($B46,Pupils,Pupils!$F$3,FALSE)), \"x\")","v":0.21417416954250129},{"$f":"IFERROR(((VLOOKUP($B46,Pupils,Pupils!$J$3,FALSE)+VLOOKUP($B46,Pupils,Pupils!$K$3,FALSE))/VLOOKUP($B46,Pupils,Pupils!$I$3,FALSE)), \"x\")","v":0.20429640266021765},{"$f":"IFERROR(((VLOOKUP($B46,Pupils,Pupils!$M$3,FALSE)+VLOOKUP($B46,Pupils,Pupils!$P$3,FALSE))/VLOOKUP($B46,Pupils,Pupils!$L$3,FALSE)), \"x\")","v":0.19245922162082552},{"$f":"IFERROR(((VLOOKUP($B46,Pupils,Pupils!$R$3,FALSE)+VLOOKUP($B46,Pupils,Pupils!$U$3,FALSE))/VLOOKUP($B46,Pupils,Pupils!$Q$3,FALSE)), \"x\")","v":0.18253867728218584},{"$f":"IFERROR(((VLOOKUP($B46,Pupils,Pupils!$W$3,FALSE)+VLOOKUP($B46,Pupils,Pupils!$Z$3,FALSE))/VLOOKUP($B46,Pupils,Pupils!$V$3,FALSE)), \"x\")","v":0.17550659233696134},{"$f":"(SUM(INDEX(Pupils!$AB$7:$AB$159,MATCH($B46,Pupils!$A$7:$A$159,0)),INDEX(Pupils!$AC$7:$AC$159,MATCH($B46,Pupils!$A$7:$A$159,0)),INDEX(Pupils!$AD$7:$AD$159,MATCH($B46,Pupils!$A$7:$A$159,0)),INDEX(Pupils!$AE$7:$AE$159,MATCH($B46,Pupils!$A$7:$A$159,0))))/SUM(INDEX(Pupils!$AB$7:$AM$159,MATCH($B46,Pupils!$A$7:$A$159,0),0))","v":0.36556701030927835},{"$f":"SUM(INDEX(Pupils!$AF$7:$AF$159,MATCH($B46,Pupils!$A$7:$A$159,0)))/SUM(INDEX(Pupils!$AB$7:$AM$159,MATCH($B46,Pupils!$A$7:$A$159,0),0))","v":0.19051546391752577},{"$f":"SUM(INDEX(Pupils!$AG$7:$AG$159,MATCH($B46,Pupils!$A$7:$A$159,0)))/SUM(INDEX(Pupils!$AB$7:$AM$159,MATCH($B46,Pupils!$A$7:$A$159,0),0))","v":0.25938144329896906},{"$f":"(SUM(INDEX(Pupils!$AH$7:$AH$159,MATCH($B46,Pupils!$A$7:$A$159,0)),INDEX(Pupils!$AI$7:$AI$159,MATCH($B46,Pupils!$A$7:$A$159,0)),INDEX(Pupils!$AJ$7:$AJ$159,MATCH($B46,Pupils!$A$7:$A$159,0))))/SUM(INDEX(Pupils!$AB$7:$AM$159,MATCH($B46,Pupils!$A$7:$A$159,0),0))","v":3.0103092783505155E-2},{"$f":"SUM(INDEX(Pupils!$AK$7:$AK$159,MATCH($B46,Pupils!$A$7:$A$159,0)))/SUM(INDEX(Pupils!$AB$7:$AM$159,MATCH($B46,Pupils!$A$7:$A$159,0),0))","v":4.3298969072164947E-2},{"$f":"SUM(INDEX(Pupils!$AL$7:$AL$159,MATCH($B46,Pupils!$A$7:$A$159,0)))/SUM(INDEX(Pupils!$AB$7:$AM$159,MATCH($B46,Pupils!$A$7:$A$159,0),0))","v":0.08},{"$f":"SUM(INDEX(Pupils!$AM$7:$AM$159,MATCH($B46,Pupils!$A$7:$A$159,0)))/SUM(INDEX(Pupils!$AB$7:$AM$159,MATCH($B46,Pupils!$A$7:$A$159,0),0))","v":3.1134020618556701E-2},{"$f":"(SUM(INDEX(Pupils!$BH$7:$BH$159,MATCH($B46,Pupils!$A$7:$A$159,0)),INDEX(Pupils!$BK$7:$BK$159,MATCH($B46,Pupils!$A$7:$A$159,0)),INDEX(Pupils!$BO$7:$BO$159,MATCH($B46,Pupils!$A$7:$A$159,0))))/SUM(INDEX(Pupils!$BH$7:$BS$159,MATCH($B46,Pupils!$A$7:$A$159,0),0))","v":0.43769183548189072},{"$f":"(SUM(INDEX(Pupils!$BL$7:$BL$159,MATCH($B46,Pupils!$A$7:$A$159,0)),INDEX(Pupils!$BM$7:$BM$159,MATCH($B46,Pupils!$A$7:$A$159,0)),INDEX(Pupils!$BP$7:$BP$159,MATCH($B46,Pupils!$A$7:$A$159,0))))/SUM(INDEX(Pupils!$BH$7:$BS$159,MATCH($B46,Pupils!$A$7:$A$159,0),0))","v":0.49416820135052181},{"$f":"(SUM(INDEX(Pupils!$BI$7:$BI$159,MATCH($B46,Pupils!$A$7:$A$159,0)),INDEX(Pupils!$BJ$7:$BJ$159,MATCH($B46,Pupils!$A$7:$A$159,0))))/SUM(INDEX(Pupils!$BH$7:$BS$159,MATCH($B46,Pupils!$A$7:$A$159,0),0))","v":5.6476365868631064E-2},{"$f":"(SUM(INDEX(Pupils!$BQ$7:$BQ$159,MATCH($B46,Pupils!$A$7:$A$159,0)),INDEX(Pupils!$BR$7:$BR$159,MATCH($B46,Pupils!$A$7:$A$159,0)),INDEX(Pupils!$BN$7:$BN$159,MATCH($B46,Pupils!$A$7:$A$159,0)),INDEX(Pupils!$BS$7:$BS$159,MATCH($B46,Pupils!$A$7:$A$159,0))))/SUM(INDEX(Pupils!$BH$7:$BS$159,MATCH($B46,Pupils!$A$7:$A$159,0),0))","v":1.1663597298956415E-2},{"$f":"IFERROR((VLOOKUP(B46,Funding,Funding!$C$2,FALSE)), \"x\")","v":41077591.11999999},{"$f":"IFERROR((AA46/VLOOKUP(B46,Funding,Funding!$D$2,FALSE)), \"x\")","v":0.1525993931523934},{"$f":"IFERROR((AA46/(VLOOKUP(B46,Pupils,Pupils!$M$3,FALSE)+VLOOKUP(B46,Pupils,Pupils!$P$3,FALSE))), \"x\")","v":3929.3659001339192},{"$f":"IFERROR((VLOOKUP(B46,Funding,Funding!$E$2,FALSE)), \"x\")","v":42417550.352261916},{"$f":"IFERROR((AD46/VLOOKUP(B46,Funding,Funding!$F$2,FALSE)), \"x\")","v":0.15010513626568575},{"$f":"IFERROR((AD46/(VLOOKUP(B46,Pupils,Pupils!$R$3,FALSE)+VLOOKUP(B46,Pupils,Pupils!$U$3,FALSE))), \"x\")","v":4204.7532070045518},{"$f":"IFERROR((VLOOKUP(B46,Funding,Funding!$G$2,FALSE)), \"x\")","v":43346449.443374708},{"$f":"IFERROR((AG46/VLOOKUP(B46,Funding,Funding!$H$2,FALSE)), \"x\")","v":0.1503847375784097},{"$f":"IFERROR((AG46/(VLOOKUP(B46,Pupils,Pupils!$W$3,FALSE)+VLOOKUP(B46,Pupils,Pupils!$Z$3,FALSE))), \"x\")","v":4370.9236103029853},{"$f":"IFERROR((VLOOKUP(B46,Funding,Funding!$I$2,FALSE)), \"x\")","v":43957146.595994972},{"$f":"IFERROR((AJ46/VLOOKUP(B46,Funding,Funding!$J$2,FALSE)), \"x\")","v":0.14820396088993884},null,{"$f":"IFERROR((VLOOKUP($B46,Funding,Funding!$EC$2,FALSE)), \"x\")","v":21997894.189999998},{"$f":"IFERROR((AM46/VLOOKUP($B46,Funding,Funding!$EU$2,FALSE)), \"x\")","v":8.8160618751533984E-2},{"$f":"IFERROR((AM46/(VLOOKUP($B46,Pupils,Pupils!$D$3,FALSE)+VLOOKUP($B46,Pupils,Pupils!$E$3,FALSE))), \"x\")","v":2008.0232031036055},{"$f":"IFERROR((VLOOKUP($B46,Funding,Funding!$DA$2,FALSE)), \"x\")","v":22888398},{"$f":"IFERROR((AP46/VLOOKUP($B46,Funding,Funding!$DT$2,FALSE)), \"x\")","v":8.4756633453960575E-2},{"$f":"IFERROR((AP46/(VLOOKUP($B46,Pupils,Pupils!$G$3,FALSE)+VLOOKUP($B46,Pupils,Pupils!$H$3,FALSE))), \"x\")","v":2060.3472859843368},{"$f":"IFERROR((VLOOKUP($B46,Funding,Funding!$CE$2,FALSE)), \"x\")","v":26230180},{"$f":"IFERROR((AS46/VLOOKUP($B46,Funding,Funding!$CR$2,FALSE)), \"x\")","v":9.1913460528098317E-2},{"$f":"IFERROR((AS46/(VLOOKUP($B46,Pupils,Pupils!$J$3,FALSE)+VLOOKUP($B46,Pupils,Pupils!$K$3,FALSE))), \"x\")","v":2425.8004254138536},{"$f":"IFERROR((VLOOKUP($B46,Funding,Funding!$BM$2,FALSE)), \"x\")","v":30976554.369999997},{"$f":"IFERROR((AV46/VLOOKUP($B46,Funding,Funding!$BY$2,FALSE)), \"x\")","v":0.11477413997246433},{"$f":"IFERROR((AV46/(VLOOKUP($B46,Pupils,Pupils!$M$3,FALSE)+VLOOKUP($B46,Pupils,Pupils!$P$3,FALSE))), \"x\")","v":2963.1293638798543},{"$f":"IFERROR((VLOOKUP($B46,Funding,Funding!$AQ$2,FALSE)), \"x\")","v":39761181},{"$f":"IFERROR((AY46/VLOOKUP($B46,Funding,Funding!$BE$2,FALSE)), \"x\")","v":0.13483653632657483},{"$f":"IFERROR((AY46/(VLOOKUP($B46,Pupils,Pupils!$R$3,FALSE)+VLOOKUP($B46,Pupils,Pupils!$U$3,FALSE))), \"x\")","v":3941.4334853291039},{"$f":"IFERROR((VLOOKUP($B46,Funding,Funding!$S$2,FALSE)), \"x\")","v":38309122},{"$f":"IFERROR((BB46/VLOOKUP($B46,Funding,Funding!$AH$2,FALSE)), \"x\")","v":0.12757553467296109},{"$f":"IFERROR((BB46/(VLOOKUP(B46,Pupils,Pupils!$W$3,FALSE)+VLOOKUP(B46,Pupils,Pupils!$Z$3,FALSE))), \"x\")","v":3862.9748916002823},{"$f":"IFERROR((VLOOKUP($B46,Funding,Funding!$GX$2,FALSE)), \"x\")","v":36792809.939099997},{"$f":"IFERROR((BE46/VLOOKUP($B46,Funding,Funding!$HC$2,FALSE)), \"x\")","v":0.13079559895278461},{"$f":"IFERROR((BE46/(VLOOKUP($B46,Pupils,Pupils!$D$3,FALSE)+VLOOKUP($B46,Pupils,Pupils!$E$3,FALSE))), \"x\")","v":3358.5403869557276},{"$f":"IFERROR((VLOOKUP($B46,Funding,Funding!$GP$2,FALSE)), \"x\")","v":39874802.630000003},{"$f":"IFERROR((BH46/VLOOKUP($B46,Funding,Funding!$GU$2,FALSE)), \"x\")","v":0.13348780532478435},{"$f":"IFERROR((BH46/(VLOOKUP($B46,Pupils,Pupils!$G$3,FALSE)+VLOOKUP($B46,Pupils,Pupils!$H$3,FALSE))), \"x\")","v":3589.4142254028266},{"$f":"IFERROR((VLOOKUP($B46,Funding,Funding!$GH$2,FALSE)), \"x\")","v":38196415.090000004},{"$f":"IFERROR((BK46/VLOOKUP($B46,Funding,Funding!$GM$2,FALSE)), \"x\")","v":0.13344362498639153},{"$f":"IFERROR((BK46/(VLOOKUP($B46,Pupils,Pupils!$J$3,FALSE)+VLOOKUP($B46,Pupils,Pupils!$K$3,FALSE))), \"x\")","v":3532.4530740774994},{"$f":"IFERROR((VLOOKUP($B46,Funding,Funding!$FZ$2,FALSE)), \"x\")","v":38491433.859999999},{"$f":"IFERROR((BN46/VLOOKUP($B46,Funding,Funding!$GE$2,FALSE)), \"x\")","v":0.1327372228758095},{"$f":"IFERROR((BN46/(VLOOKUP($B46,Pupils,Pupils!$M$3,FALSE)+VLOOKUP($B46,Pupils,Pupils!$P$3,FALSE))), \"x\")","v":3681.981429118041},{"$f":"IFERROR((VLOOKUP($B46,Funding,Funding!$FD$2,FALSE)), \"x\")","v":42006270},{"$f":"IFERROR((BQ46/VLOOKUP($B46,Funding,Funding!$FR$2,FALSE)), \"x\")","v":0.15219977148513905},{"$f":"IFERROR((BQ46/(VLOOKUP($B46,Pupils,Pupils!$R$3,FALSE)+VLOOKUP($B46,Pupils,Pupils!$U$3,FALSE))), \"x\")","v":4163.9839413164154},{"$f":"(VLOOKUP(B46,Funding,Funding!$HK$2,FALSE)+VLOOKUP(B46,Funding,Funding!$HL$2,FALSE)+VLOOKUP(B46,Funding,Funding!$HM$2,FALSE))/(VLOOKUP(B46,Funding,Funding!$HN$2,FALSE))","v":0.18410462776659961},{"$f":"IFERROR((VLOOKUP(B46,Other_data,Other!$D$3,FALSE)+VLOOKUP(B46,Other_data,Other!$E$3,FALSE)+VLOOKUP(B46,Other_data,Other!$F$3,FALSE)), \"x\")","v":1550},{"$f":"(VLOOKUP(B46,Other_data,Other!$AK$3,FALSE)+VLOOKUP(B46,Other_data,Other!$AL$3,FALSE))/VLOOKUP(B46,Other_data,Other!$AJ$3,FALSE)","v":2.9196974105324409E-2},{"$f":"(VLOOKUP(B46,Other_data,Other!$AR$3,FALSE)+VLOOKUP(B46,Other_data,Other!$AS$3,FALSE))/VLOOKUP(B46,Other_data,Other!$AQ$3,FALSE)","v":4.2193438299852636E-2},{"$f":"VLOOKUP(B46,Other_data,Other!$AP$3,FALSE)/VLOOKUP(B46,Other_data,Other!$AJ$3,FALSE)","v":7.0555717195228398E-3},{"$f":"VLOOKUP(B46,Other_data,Other!$AW$3,FALSE)/VLOOKUP(B46,Other_data,Other!$AQ$3,FALSE)","v":1.0082990770185372E-2}]
[41,811,"East Riding of Yorkshire",{"$f":"IFERROR((VLOOKUP($B47,Pupils,Pupils!$D$3,FALSE)/VLOOKUP($B47,Pupils,Pupils!$C$3,FALSE)), \"x\")","v":2.1921957830124756E-2},{"$f":"IFERROR((VLOOKUP($B47,Pupils,Pupils!$G$3,FALSE)/VLOOKUP($B47,Pupils,Pupils!$F$3,FALSE)),\"x\")","v":2.047234630716532E-2},{"$f":"IFERROR((VLOOKUP($B47,Pupils,Pupils!$J$3,FALSE)/VLOOKUP($B47,Pupils,Pupils!$I$3,FALSE)), \"x\")","v":1.9760070614668591E-2},{"$f":"IFERROR((VLOOKUP($B47,Pupils,Pupils!$M$3,FALSE)/VLOOKUP($B47,Pupils,Pupils!$L$3,FALSE)), \"x\")","v":1.9452187613622589E-2},{"$f":"IFERROR((VLOOKUP($B47,Pupils,Pupils!$R$3,FALSE)/VLOOKUP($B47,Pupils,Pupils!$Q$3,FALSE)), \"x\")","v":1.9748396846791652E-2},{"$f":"IFERROR((VLOOKUP($B47,Pupils,Pupils!$W$3,FALSE)/VLOOKUP($B47,Pupils,Pupils!$V$3,FALSE)), \"x\")","v":2.1255081615386202E-2},{"$f":"IFERROR(((VLOOKUP($B47,Pupils,Pupils!$D$3,FALSE)+VLOOKUP($B47,Pupils,Pupils!$E$3,FALSE))/VLOOKUP($B47,Pupils,Pupils!$C$3,FALSE)), \"x\")","v":0.16491291004025668},{"$f":"IFERROR(((VLOOKUP($B47,Pupils,Pupils!$G$3,FALSE)+VLOOKUP($B47,Pupils,Pupils!$H$3,FALSE))/VLOOKUP($B47,Pupils,Pupils!$F$3,FALSE)), \"x\")","v":0.1629174095070211},{"$f":"IFERROR(((VLOOKUP($B47,Pupils,Pupils!$J$3,FALSE)+VLOOKUP($B47,Pupils,Pupils!$K$3,FALSE))/VLOOKUP($B47,Pupils,Pupils!$I$3,FALSE)), \"x\")","v":0.16100946878510672},{"$f":"IFERROR(((VLOOKUP($B47,Pupils,Pupils!$M$3,FALSE)+VLOOKUP($B47,Pupils,Pupils!$P$3,FALSE))/VLOOKUP($B47,Pupils,Pupils!$L$3,FALSE)), \"x\")","v":0.16319234032238517},{"$f":"IFERROR(((VLOOKUP($B47,Pupils,Pupils!$R$3,FALSE)+VLOOKUP($B47,Pupils,Pupils!$U$3,FALSE))/VLOOKUP($B47,Pupils,Pupils!$Q$3,FALSE)), \"x\")","v":0.15643507740064536},{"$f":"IFERROR(((VLOOKUP($B47,Pupils,Pupils!$W$3,FALSE)+VLOOKUP($B47,Pupils,Pupils!$Z$3,FALSE))/VLOOKUP($B47,Pupils,Pupils!$V$3,FALSE)), \"x\")","v":0.15320167564332735},{"$f":"(SUM(INDEX(Pupils!$AB$7:$AB$159,MATCH($B47,Pupils!$A$7:$A$159,0)),INDEX(Pupils!$AC$7:$AC$159,MATCH($B47,Pupils!$A$7:$A$159,0)),INDEX(Pupils!$AD$7:$AD$159,MATCH($B47,Pupils!$A$7:$A$159,0)),INDEX(Pupils!$AE$7:$AE$159,MATCH($B47,Pupils!$A$7:$A$159,0))))/SUM(INDEX(Pupils!$AB$7:$AM$159,MATCH($B47,Pupils!$A$7:$A$159,0),0))","v":0.38922155688622756},{"$f":"SUM(INDEX(Pupils!$AF$7:$AF$159,MATCH($B47,Pupils!$A$7:$A$159,0)))/SUM(INDEX(Pupils!$AB$7:$AM$159,MATCH($B47,Pupils!$A$7:$A$159,0),0))","v":0.17554364954301924},{"$f":"SUM(INDEX(Pupils!$AG$7:$AG$159,MATCH($B47,Pupils!$A$7:$A$159,0)))/SUM(INDEX(Pupils!$AB$7:$AM$159,MATCH($B47,Pupils!$A$7:$A$159,0),0))","v":0.19508351717617398},{"$f":"(SUM(INDEX(Pupils!$AH$7:$AH$159,MATCH($B47,Pupils!$A$7:$A$159,0)),INDEX(Pupils!$AI$7:$AI$159,MATCH($B47,Pupils!$A$7:$A$159,0)),INDEX(Pupils!$AJ$7:$AJ$159,MATCH($B47,Pupils!$A$7:$A$159,0))))/SUM(INDEX(Pupils!$AB$7:$AM$159,MATCH($B47,Pupils!$A$7:$A$159,0),0))","v":5.4522533879609203E-2},{"$f":"SUM(INDEX(Pupils!$AK$7:$AK$159,MATCH($B47,Pupils!$A$7:$A$159,0)))/SUM(INDEX(Pupils!$AB$7:$AM$159,MATCH($B47,Pupils!$A$7:$A$159,0),0))","v":4.6643554995272611E-2},{"$f":"SUM(INDEX(Pupils!$AL$7:$AL$159,MATCH($B47,Pupils!$A$7:$A$159,0)))/SUM(INDEX(Pupils!$AB$7:$AM$159,MATCH($B47,Pupils!$A$7:$A$159,0),0))","v":7.7529152221872039E-2},{"$f":"SUM(INDEX(Pupils!$AM$7:$AM$159,MATCH($B47,Pupils!$A$7:$A$159,0)))/SUM(INDEX(Pupils!$AB$7:$AM$159,MATCH($B47,Pupils!$A$7:$A$159,0),0))","v":6.1456035297825402E-2},{"$f":"(SUM(INDEX(Pupils!$BH$7:$BH$159,MATCH($B47,Pupils!$A$7:$A$159,0)),INDEX(Pupils!$BK$7:$BK$159,MATCH($B47,Pupils!$A$7:$A$159,0)),INDEX(Pupils!$BO$7:$BO$159,MATCH($B47,Pupils!$A$7:$A$159,0))))/SUM(INDEX(Pupils!$BH$7:$BS$159,MATCH($B47,Pupils!$A$7:$A$159,0),0))","v":0.61702127659574468},{"$f":"(SUM(INDEX(Pupils!$BL$7:$BL$159,MATCH($B47,Pupils!$A$7:$A$159,0)),INDEX(Pupils!$BM$7:$BM$159,MATCH($B47,Pupils!$A$7:$A$159,0)),INDEX(Pupils!$BP$7:$BP$159,MATCH($B47,Pupils!$A$7:$A$159,0))))/SUM(INDEX(Pupils!$BH$7:$BS$159,MATCH($B47,Pupils!$A$7:$A$159,0),0))","v":0.34840425531914893},{"$f":"(SUM(INDEX(Pupils!$BI$7:$BI$159,MATCH($B47,Pupils!$A$7:$A$159,0)),INDEX(Pupils!$BJ$7:$BJ$159,MATCH($B47,Pupils!$A$7:$A$159,0))))/SUM(INDEX(Pupils!$BH$7:$BS$159,MATCH($B47,Pupils!$A$7:$A$159,0),0))","v":1.5957446808510637E-2},{"$f":"(SUM(INDEX(Pupils!$BQ$7:$BQ$159,MATCH($B47,Pupils!$A$7:$A$159,0)),INDEX(Pupils!$BR$7:$BR$159,MATCH($B47,Pupils!$A$7:$A$159,0)),INDEX(Pupils!$BN$7:$BN$159,MATCH($B47,Pupils!$A$7:$A$159,0)),INDEX(Pupils!$BS$7:$BS$159,MATCH($B47,Pupils!$A$7:$A$159,0))))/SUM(INDEX(Pupils!$BH$7:$BS$159,MATCH($B47,Pupils!$A$7:$A$159,0),0))","v":1.8617021276595744E-2},{"$f":"IFERROR((VLOOKUP(B47,Funding,Funding!$C$2,FALSE)), \"x\")","v":16842347},{"$f":"IFERROR((AA47/VLOOKUP(B47,Funding,Funding!$D$2,FALSE)), \"x\")","v":8.0440974403875126E-2},{"$f":"IFERROR((AA47/(VLOOKUP(B47,Pupils,Pupils!$M$3,FALSE)+VLOOKUP(B47,Pupils,Pupils!$P$3,FALSE))), \"x\")","v":2084.7068944176258},{"$f":"IFERROR((VLOOKUP(B47,Funding,Funding!$E$2,FALSE)), \"x\")","v":18332029.495324757},{"$f":"IFERROR((AD47/VLOOKUP(B47,Funding,Funding!$F$2,FALSE)), \"x\")","v":8.6844304249625068E-2},{"$f":"IFERROR((AD47/(VLOOKUP(B47,Pupils,Pupils!$R$3,FALSE)+VLOOKUP(B47,Pupils,Pupils!$U$3,FALSE))), \"x\")","v":2393.2153388152424},{"$f":"IFERROR((VLOOKUP(B47,Funding,Funding!$G$2,FALSE)), \"x\")","v":19102621.882685408},{"$f":"IFERROR((AG47/VLOOKUP(B47,Funding,Funding!$H$2,FALSE)), \"x\")","v":9.0693929319566893E-2},{"$f":"IFERROR((AG47/(VLOOKUP(B47,Pupils,Pupils!$W$3,FALSE)+VLOOKUP(B47,Pupils,Pupils!$Z$3,FALSE))), \"x\")","v":2573.0902320427545},{"$f":"IFERROR((VLOOKUP(B47,Funding,Funding!$I$2,FALSE)), \"x\")","v":19307894.79083018},{"$f":"IFERROR((AJ47/VLOOKUP(B47,Funding,Funding!$J$2,FALSE)), \"x\")","v":9.262291403421416E-2},null,{"$f":"IFERROR((VLOOKUP($B47,Funding,Funding!$EC$2,FALSE)), \"x\")","v":9940558},{"$f":"IFERROR((AM47/VLOOKUP($B47,Funding,Funding!$EU$2,FALSE)), \"x\")","v":4.4828454860683341E-2},{"$f":"IFERROR((AM47/(VLOOKUP($B47,Pupils,Pupils!$D$3,FALSE)+VLOOKUP($B47,Pupils,Pupils!$E$3,FALSE))), \"x\")","v":1201.2758912386707},{"$f":"IFERROR((VLOOKUP($B47,Funding,Funding!$DA$2,FALSE)), \"x\")","v":10620732},{"$f":"IFERROR((AP47/VLOOKUP($B47,Funding,Funding!$DT$2,FALSE)), \"x\")","v":4.6057943551953084E-2},{"$f":"IFERROR((AP47/(VLOOKUP($B47,Pupils,Pupils!$G$3,FALSE)+VLOOKUP($B47,Pupils,Pupils!$H$3,FALSE))), \"x\")","v":1305.881224640354},{"$f":"IFERROR((VLOOKUP($B47,Funding,Funding!$CE$2,FALSE)), \"x\")","v":10700487},{"$f":"IFERROR((AS47/VLOOKUP($B47,Funding,Funding!$CR$2,FALSE)), \"x\")","v":4.7960111732114001E-2},{"$f":"IFERROR((AS47/(VLOOKUP($B47,Pupils,Pupils!$J$3,FALSE)+VLOOKUP($B47,Pupils,Pupils!$K$3,FALSE))), \"x\")","v":1333.2278843757788},{"$f":"IFERROR((VLOOKUP($B47,Funding,Funding!$BM$2,FALSE)), \"x\")","v":11835932},{"$f":"IFERROR((AV47/VLOOKUP($B47,Funding,Funding!$BY$2,FALSE)), \"x\")","v":5.9844631997714386E-2},{"$f":"IFERROR((AV47/(VLOOKUP($B47,Pupils,Pupils!$M$3,FALSE)+VLOOKUP($B47,Pupils,Pupils!$P$3,FALSE))), \"x\")","v":1465.024384205966},{"$f":"IFERROR((VLOOKUP($B47,Funding,Funding!$AQ$2,FALSE)), \"x\")","v":17434374},{"$f":"IFERROR((AY47/VLOOKUP($B47,Funding,Funding!$BE$2,FALSE)), \"x\")","v":7.9338841395620099E-2},{"$f":"IFERROR((AY47/(VLOOKUP($B47,Pupils,Pupils!$R$3,FALSE)+VLOOKUP($B47,Pupils,Pupils!$U$3,FALSE))), \"x\")","v":2276.0279373368148},{"$f":"IFERROR((VLOOKUP($B47,Funding,Funding!$S$2,FALSE)), \"x\")","v":18016826},{"$f":"IFERROR((BB47/VLOOKUP($B47,Funding,Funding!$AH$2,FALSE)), \"x\")","v":8.245629859780422E-2},{"$f":"IFERROR((BB47/(VLOOKUP(B47,Pupils,Pupils!$W$3,FALSE)+VLOOKUP(B47,Pupils,Pupils!$Z$3,FALSE))), \"x\")","v":2426.8353987068967},{"$f":"IFERROR((VLOOKUP($B47,Funding,Funding!$GX$2,FALSE)), \"x\")","v":24384046},{"$f":"IFERROR((BE47/VLOOKUP($B47,Funding,Funding!$HC$2,FALSE)), \"x\")","v":0.101120591699789},{"$f":"IFERROR((BE47/(VLOOKUP($B47,Pupils,Pupils!$D$3,FALSE)+VLOOKUP($B47,Pupils,Pupils!$E$3,FALSE))), \"x\")","v":2946.7125075528702},{"$f":"IFERROR((VLOOKUP($B47,Funding,Funding!$GP$2,FALSE)), \"x\")","v":25446718},{"$f":"IFERROR((BH47/VLOOKUP($B47,Funding,Funding!$GU$2,FALSE)), \"x\")","v":0.10060465423312938},{"$f":"IFERROR((BH47/(VLOOKUP($B47,Pupils,Pupils!$G$3,FALSE)+VLOOKUP($B47,Pupils,Pupils!$H$3,FALSE))), \"x\")","v":3128.8230665191195},{"$f":"IFERROR((VLOOKUP($B47,Funding,Funding!$GH$2,FALSE)), \"x\")","v":24086971.600000001},{"$f":"IFERROR((BK47/VLOOKUP($B47,Funding,Funding!$GM$2,FALSE)), \"x\")","v":0.10437037028684175},{"$f":"IFERROR((BK47/(VLOOKUP($B47,Pupils,Pupils!$J$3,FALSE)+VLOOKUP($B47,Pupils,Pupils!$K$3,FALSE))), \"x\")","v":3001.1178170944431},{"$f":"IFERROR((VLOOKUP($B47,Funding,Funding!$FZ$2,FALSE)), \"x\")","v":23382757.84},{"$f":"IFERROR((BN47/VLOOKUP($B47,Funding,Funding!$GE$2,FALSE)), \"x\")","v":0.10705646332522592},{"$f":"IFERROR((BN47/(VLOOKUP($B47,Pupils,Pupils!$M$3,FALSE)+VLOOKUP($B47,Pupils,Pupils!$P$3,FALSE))), \"x\")","v":2894.2638742418617},{"$f":"IFERROR((VLOOKUP($B47,Funding,Funding!$FD$2,FALSE)), \"x\")","v":17271798},{"$f":"IFERROR((BQ47/VLOOKUP($B47,Funding,Funding!$FR$2,FALSE)), \"x\")","v":9.0465441655702042E-2},{"$f":"IFERROR((BQ47/(VLOOKUP($B47,Pupils,Pupils!$R$3,FALSE)+VLOOKUP($B47,Pupils,Pupils!$U$3,FALSE))), \"x\")","v":2254.803916449086},{"$f":"(VLOOKUP(B47,Funding,Funding!$HK$2,FALSE)+VLOOKUP(B47,Funding,Funding!$HL$2,FALSE)+VLOOKUP(B47,Funding,Funding!$HM$2,FALSE))/(VLOOKUP(B47,Funding,Funding!$HN$2,FALSE))","v":0.22616407982261641},{"$f":"IFERROR((VLOOKUP(B47,Other_data,Other!$D$3,FALSE)+VLOOKUP(B47,Other_data,Other!$E$3,FALSE)+VLOOKUP(B47,Other_data,Other!$F$3,FALSE)), \"x\")","v":1390},{"$f":"(VLOOKUP(B47,Other_data,Other!$AK$3,FALSE)+VLOOKUP(B47,Other_data,Other!$AL$3,FALSE))/VLOOKUP(B47,Other_data,Other!$AJ$3,FALSE)","v":3.2009760823928375E-2},{"$f":"(VLOOKUP(B47,Other_data,Other!$AR$3,FALSE)+VLOOKUP(B47,Other_data,Other!$AS$3,FALSE))/VLOOKUP(B47,Other_data,Other!$AQ$3,FALSE)","v":4.387829668504617E-2},{"$f":"VLOOKUP(B47,Other_data,Other!$AP$3,FALSE)/VLOOKUP(B47,Other_data,Other!$AJ$3,FALSE)","v":4.5395008343351332E-3},{"$f":"VLOOKUP(B47,Other_data,Other!$AW$3,FALSE)/VLOOKUP(B47,Other_data,Other!$AQ$3,FALSE)","v":7.7725370358068162E-3}]
[42,845,"East Sussex",{"$f":"IFERROR((VLOOKUP($B48,Pupils,Pupils!$D$3,FALSE)/VLOOKUP($B48,Pupils,Pupils!$C$3,FALSE)), \"x\")","v":3.2308604336043358E-2},{"$f":"IFERROR((VLOOKUP($B48,Pupils,Pupils!$G$3,FALSE)/VLOOKUP($B48,Pupils,Pupils!$F$3,FALSE)),\"x\")","v":3.3372033754318402E-2},{"$f":"IFERROR((VLOOKUP($B48,Pupils,Pupils!$J$3,FALSE)/VLOOKUP($B48,Pupils,Pupils!$I$3,FALSE)), \"x\")","v":3.560776070221288E-2},{"$f":"IFERROR((VLOOKUP($B48,Pupils,Pupils!$M$3,FALSE)/VLOOKUP($B48,Pupils,Pupils!$L$3,FALSE)), \"x\")","v":3.6428133859501659E-2},{"$f":"IFERROR((VLOOKUP($B48,Pupils,Pupils!$R$3,FALSE)/VLOOKUP($B48,Pupils,Pupils!$Q$3,FALSE)), \"x\")","v":3.8500219556071788E-2},{"$f":"IFERROR((VLOOKUP($B48,Pupils,Pupils!$W$3,FALSE)/VLOOKUP($B48,Pupils,Pupils!$V$3,FALSE)), \"x\")","v":3.9535277198127571E-2},{"$f":"IFERROR(((VLOOKUP($B48,Pupils,Pupils!$D$3,FALSE)+VLOOKUP($B48,Pupils,Pupils!$E$3,FALSE))/VLOOKUP($B48,Pupils,Pupils!$C$3,FALSE)), \"x\")","v":0.22158705962059622},{"$f":"IFERROR(((VLOOKUP($B48,Pupils,Pupils!$G$3,FALSE)+VLOOKUP($B48,Pupils,Pupils!$H$3,FALSE))/VLOOKUP($B48,Pupils,Pupils!$F$3,FALSE)), \"x\")","v":0.23068754601574445},{"$f":"IFERROR(((VLOOKUP($B48,Pupils,Pupils!$J$3,FALSE)+VLOOKUP($B48,Pupils,Pupils!$K$3,FALSE))/VLOOKUP($B48,Pupils,Pupils!$I$3,FALSE)), \"x\")","v":0.22594665227395391},{"$f":"IFERROR(((VLOOKUP($B48,Pupils,Pupils!$M$3,FALSE)+VLOOKUP($B48,Pupils,Pupils!$P$3,FALSE))/VLOOKUP($B48,Pupils,Pupils!$L$3,FALSE)), \"x\")","v":0.21916715341985668},{"$f":"IFERROR(((VLOOKUP($B48,Pupils,Pupils!$R$3,FALSE)+VLOOKUP($B48,Pupils,Pupils!$U$3,FALSE))/VLOOKUP($B48,Pupils,Pupils!$Q$3,FALSE)), \"x\")","v":0.21377678938198508},{"$f":"IFERROR(((VLOOKUP($B48,Pupils,Pupils!$W$3,FALSE)+VLOOKUP($B48,Pupils,Pupils!$Z$3,FALSE))/VLOOKUP($B48,Pupils,Pupils!$V$3,FALSE)), \"x\")","v":0.1907675822006655},{"$f":"(SUM(INDEX(Pupils!$AB$7:$AB$159,MATCH($B48,Pupils!$A$7:$A$159,0)),INDEX(Pupils!$AC$7:$AC$159,MATCH($B48,Pupils!$A$7:$A$159,0)),INDEX(Pupils!$AD$7:$AD$159,MATCH($B48,Pupils!$A$7:$A$159,0)),INDEX(Pupils!$AE$7:$AE$159,MATCH($B48,Pupils!$A$7:$A$159,0))))/SUM(INDEX(Pupils!$AB$7:$AM$159,MATCH($B48,Pupils!$A$7:$A$159,0),0))","v":0.33543383422200679},{"$f":"SUM(INDEX(Pupils!$AF$7:$AF$159,MATCH($B48,Pupils!$A$7:$A$159,0)))/SUM(INDEX(Pupils!$AB$7:$AM$159,MATCH($B48,Pupils!$A$7:$A$159,0),0))","v":0.21942155437065761},{"$f":"SUM(INDEX(Pupils!$AG$7:$AG$159,MATCH($B48,Pupils!$A$7:$A$159,0)))/SUM(INDEX(Pupils!$AB$7:$AM$159,MATCH($B48,Pupils!$A$7:$A$159,0),0))","v":0.23525609953142673},{"$f":"(SUM(INDEX(Pupils!$AH$7:$AH$159,MATCH($B48,Pupils!$A$7:$A$159,0)),INDEX(Pupils!$AI$7:$AI$159,MATCH($B48,Pupils!$A$7:$A$159,0)),INDEX(Pupils!$AJ$7:$AJ$159,MATCH($B48,Pupils!$A$7:$A$159,0))))/SUM(INDEX(Pupils!$AB$7:$AM$159,MATCH($B48,Pupils!$A$7:$A$159,0),0))","v":2.714493456131847E-2},{"$f":"SUM(INDEX(Pupils!$AK$7:$AK$159,MATCH($B48,Pupils!$A$7:$A$159,0)))/SUM(INDEX(Pupils!$AB$7:$AM$159,MATCH($B48,Pupils!$A$7:$A$159,0),0))","v":3.5385361124575861E-2},{"$f":"SUM(INDEX(Pupils!$AL$7:$AL$159,MATCH($B48,Pupils!$A$7:$A$159,0)))/SUM(INDEX(Pupils!$AB$7:$AM$159,MATCH($B48,Pupils!$A$7:$A$159,0),0))","v":0.11051866214251091},{"$f":"SUM(INDEX(Pupils!$AM$7:$AM$159,MATCH($B48,Pupils!$A$7:$A$159,0)))/SUM(INDEX(Pupils!$AB$7:$AM$159,MATCH($B48,Pupils!$A$7:$A$159,0),0))","v":3.6839554047503636E-2},{"$f":"(SUM(INDEX(Pupils!$BH$7:$BH$159,MATCH($B48,Pupils!$A$7:$A$159,0)),INDEX(Pupils!$BK$7:$BK$159,MATCH($B48,Pupils!$A$7:$A$159,0)),INDEX(Pupils!$BO$7:$BO$159,MATCH($B48,Pupils!$A$7:$A$159,0))))/SUM(INDEX(Pupils!$BH$7:$BS$159,MATCH($B48,Pupils!$A$7:$A$159,0),0))","v":0.5357142857142857},{"$f":"(SUM(INDEX(Pupils!$BL$7:$BL$159,MATCH($B48,Pupils!$A$7:$A$159,0)),INDEX(Pupils!$BM$7:$BM$159,MATCH($B48,Pupils!$A$7:$A$159,0)),INDEX(Pupils!$BP$7:$BP$159,MATCH($B48,Pupils!$A$7:$A$159,0))))/SUM(INDEX(Pupils!$BH$7:$BS$159,MATCH($B48,Pupils!$A$7:$A$159,0),0))","v":0.41331845238095238},{"$f":"(SUM(INDEX(Pupils!$BI$7:$BI$159,MATCH($B48,Pupils!$A$7:$A$159,0)),INDEX(Pupils!$BJ$7:$BJ$159,MATCH($B48,Pupils!$A$7:$A$159,0))))/SUM(INDEX(Pupils!$BH$7:$BS$159,MATCH($B48,Pupils!$A$7:$A$159,0),0))","v":3.4970238095238096E-2},{"$f":"(SUM(INDEX(Pupils!$BQ$7:$BQ$159,MATCH($B48,Pupils!$A$7:$A$159,0)),INDEX(Pupils!$BR$7:$BR$159,MATCH($B48,Pupils!$A$7:$A$159,0)),INDEX(Pupils!$BN$7:$BN$159,MATCH($B48,Pupils!$A$7:$A$159,0)),INDEX(Pupils!$BS$7:$BS$159,MATCH($B48,Pupils!$A$7:$A$159,0))))/SUM(INDEX(Pupils!$BH$7:$BS$159,MATCH($B48,Pupils!$A$7:$A$159,0),0))","v":1.5997023809523808E-2},{"$f":"IFERROR((VLOOKUP(B48,Funding,Funding!$C$2,FALSE)), \"x\")","v":40290371},{"$f":"IFERROR((AA48/VLOOKUP(B48,Funding,Funding!$D$2,FALSE)), \"x\")","v":0.12549624069625137},{"$f":"IFERROR((AA48/(VLOOKUP(B48,Pupils,Pupils!$M$3,FALSE)+VLOOKUP(B48,Pupils,Pupils!$P$3,FALSE))), \"x\")","v":2618.978874154966},{"$f":"IFERROR((VLOOKUP(B48,Funding,Funding!$E$2,FALSE)), \"x\")","v":40941982.220495977},{"$f":"IFERROR((AD48/VLOOKUP(B48,Funding,Funding!$F$2,FALSE)), \"x\")","v":0.12433985992622842},{"$f":"IFERROR((AD48/(VLOOKUP(B48,Pupils,Pupils!$R$3,FALSE)+VLOOKUP(B48,Pupils,Pupils!$U$3,FALSE))), \"x\")","v":2712.8268102634493},{"$f":"IFERROR((VLOOKUP(B48,Funding,Funding!$G$2,FALSE)), \"x\")","v":42821157.89508377},{"$f":"IFERROR((AG48/VLOOKUP(B48,Funding,Funding!$H$2,FALSE)), \"x\")","v":0.12881942056403384},{"$f":"IFERROR((AG48/(VLOOKUP(B48,Pupils,Pupils!$W$3,FALSE)+VLOOKUP(B48,Pupils,Pupils!$Z$3,FALSE))), \"x\")","v":3164.9045007452896},{"$f":"IFERROR((VLOOKUP(B48,Funding,Funding!$I$2,FALSE)), \"x\")","v":43410909.843932621},{"$f":"IFERROR((AJ48/VLOOKUP(B48,Funding,Funding!$J$2,FALSE)), \"x\")","v":0.13157093753749169},null,{"$f":"IFERROR((VLOOKUP($B48,Funding,Funding!$EC$2,FALSE)), \"x\")","v":34625476},{"$f":"IFERROR((AM48/VLOOKUP($B48,Funding,Funding!$EU$2,FALSE)), \"x\")","v":0.1083509062005691},{"$f":"IFERROR((AM48/(VLOOKUP($B48,Pupils,Pupils!$D$3,FALSE)+VLOOKUP($B48,Pupils,Pupils!$E$3,FALSE))), \"x\")","v":2205.5848143193834},{"$f":"IFERROR((VLOOKUP($B48,Funding,Funding!$DA$2,FALSE)), \"x\")","v":36337812},{"$f":"IFERROR((AP48/VLOOKUP($B48,Funding,Funding!$DT$2,FALSE)), \"x\")","v":0.10831179113391658},{"$f":"IFERROR((AP48/(VLOOKUP($B48,Pupils,Pupils!$G$3,FALSE)+VLOOKUP($B48,Pupils,Pupils!$H$3,FALSE))), \"x\")","v":2230.2714048978087},{"$f":"IFERROR((VLOOKUP($B48,Funding,Funding!$CE$2,FALSE)), \"x\")","v":32946509},{"$f":"IFERROR((AS48/VLOOKUP($B48,Funding,Funding!$CR$2,FALSE)), \"x\")","v":0.10008915339195699},{"$f":"IFERROR((AS48/(VLOOKUP($B48,Pupils,Pupils!$J$3,FALSE)+VLOOKUP($B48,Pupils,Pupils!$K$3,FALSE))), \"x\")","v":2071.0654387729446},{"$f":"IFERROR((VLOOKUP($B48,Funding,Funding!$BM$2,FALSE)), \"x\")","v":32824769.660000004},{"$f":"IFERROR((AV48/VLOOKUP($B48,Funding,Funding!$BY$2,FALSE)), \"x\")","v":9.9875533181333978E-2},{"$f":"IFERROR((AV48/(VLOOKUP($B48,Pupils,Pupils!$M$3,FALSE)+VLOOKUP($B48,Pupils,Pupils!$P$3,FALSE))), \"x\")","v":2133.6953757150291},{"$f":"IFERROR((VLOOKUP($B48,Funding,Funding!$AQ$2,FALSE)), \"x\")","v":41812525},{"$f":"IFERROR((AY48/VLOOKUP($B48,Funding,Funding!$BE$2,FALSE)), \"x\")","v":0.1243118135563363},{"$f":"IFERROR((AY48/(VLOOKUP($B48,Pupils,Pupils!$R$3,FALSE)+VLOOKUP($B48,Pupils,Pupils!$U$3,FALSE))), \"x\")","v":2770.5092101775776},{"$f":"IFERROR((VLOOKUP($B48,Funding,Funding!$S$2,FALSE)), \"x\")","v":37556214},{"$f":"IFERROR((BB48/VLOOKUP($B48,Funding,Funding!$AH$2,FALSE)), \"x\")","v":0.11147586529063205},{"$f":"IFERROR((BB48/(VLOOKUP(B48,Pupils,Pupils!$W$3,FALSE)+VLOOKUP(B48,Pupils,Pupils!$Z$3,FALSE))), \"x\")","v":2775.7733924611975},{"$f":"IFERROR((VLOOKUP($B48,Funding,Funding!$GX$2,FALSE)), \"x\")","v":43879843},{"$f":"IFERROR((BE48/VLOOKUP($B48,Funding,Funding!$HC$2,FALSE)), \"x\")","v":0.12710209749451673},{"$f":"IFERROR((BE48/(VLOOKUP($B48,Pupils,Pupils!$D$3,FALSE)+VLOOKUP($B48,Pupils,Pupils!$E$3,FALSE))), \"x\")","v":2795.0724886935473},{"$f":"IFERROR((VLOOKUP($B48,Funding,Funding!$GP$2,FALSE)), \"x\")","v":42101751},{"$f":"IFERROR((BH48/VLOOKUP($B48,Funding,Funding!$GU$2,FALSE)), \"x\")","v":0.11004305395259203},{"$f":"IFERROR((BH48/(VLOOKUP($B48,Pupils,Pupils!$G$3,FALSE)+VLOOKUP($B48,Pupils,Pupils!$H$3,FALSE))), \"x\")","v":2584.0392192966306},{"$f":"IFERROR((VLOOKUP($B48,Funding,Funding!$GH$2,FALSE)), \"x\")","v":43311549.590000004},{"$f":"IFERROR((BK48/VLOOKUP($B48,Funding,Funding!$GM$2,FALSE)), \"x\")","v":0.11555453878895243},{"$f":"IFERROR((BK48/(VLOOKUP($B48,Pupils,Pupils!$J$3,FALSE)+VLOOKUP($B48,Pupils,Pupils!$K$3,FALSE))), \"x\")","v":2722.6269543625849},{"$f":"IFERROR((VLOOKUP($B48,Funding,Funding!$FZ$2,FALSE)), \"x\")","v":42374074.240000002},{"$f":"IFERROR((BN48/VLOOKUP($B48,Funding,Funding!$GE$2,FALSE)), \"x\")","v":0.12710196944823104},{"$f":"IFERROR((BN48/(VLOOKUP($B48,Pupils,Pupils!$M$3,FALSE)+VLOOKUP($B48,Pupils,Pupils!$P$3,FALSE))), \"x\")","v":2754.4250026001041},{"$f":"IFERROR((VLOOKUP($B48,Funding,Funding!$FD$2,FALSE)), \"x\")","v":38641090},{"$f":"IFERROR((BQ48/VLOOKUP($B48,Funding,Funding!$FR$2,FALSE)), \"x\")","v":0.14857436003092106},{"$f":"IFERROR((BQ48/(VLOOKUP($B48,Pupils,Pupils!$R$3,FALSE)+VLOOKUP($B48,Pupils,Pupils!$U$3,FALSE))), \"x\")","v":2560.3690697058046},{"$f":"(VLOOKUP(B48,Funding,Funding!$HK$2,FALSE)+VLOOKUP(B48,Funding,Funding!$HL$2,FALSE)+VLOOKUP(B48,Funding,Funding!$HM$2,FALSE))/(VLOOKUP(B48,Funding,Funding!$HN$2,FALSE))","v":0.19690860215053763},{"$f":"IFERROR((VLOOKUP(B48,Other_data,Other!$D$3,FALSE)+VLOOKUP(B48,Other_data,Other!$E$3,FALSE)+VLOOKUP(B48,Other_data,Other!$F$3,FALSE)), \"x\")","v":2910},{"$f":"(VLOOKUP(B48,Other_data,Other!$AK$3,FALSE)+VLOOKUP(B48,Other_data,Other!$AL$3,FALSE))/VLOOKUP(B48,Other_data,Other!$AJ$3,FALSE)","v":4.0078829078186932E-2},{"$f":"(VLOOKUP(B48,Other_data,Other!$AR$3,FALSE)+VLOOKUP(B48,Other_data,Other!$AS$3,FALSE))/VLOOKUP(B48,Other_data,Other!$AQ$3,FALSE)","v":6.4141636925051135E-2},{"$f":"VLOOKUP(B48,Other_data,Other!$AP$3,FALSE)/VLOOKUP(B48,Other_data,Other!$AJ$3,FALSE)","v":6.6428998472133037E-3},{"$f":"VLOOKUP(B48,Other_data,Other!$AW$3,FALSE)/VLOOKUP(B48,Other_data,Other!$AQ$3,FALSE)","v":1.3995268075550387E-2}]
[43,308,"Enfield",{"$f":"IFERROR((VLOOKUP($B49,Pupils,Pupils!$D$3,FALSE)/VLOOKUP($B49,Pupils,Pupils!$C$3,FALSE)), \"x\")","v":2.2719449225473323E-2},{"$f":"IFERROR((VLOOKUP($B49,Pupils,Pupils!$G$3,FALSE)/VLOOKUP($B49,Pupils,Pupils!$F$3,FALSE)),\"x\")","v":2.1586534832817573E-2},{"$f":"IFERROR((VLOOKUP($B49,Pupils,Pupils!$J$3,FALSE)/VLOOKUP($B49,Pupils,Pupils!$I$3,FALSE)), \"x\")","v":2.142485506169169E-2},{"$f":"IFERROR((VLOOKUP($B49,Pupils,Pupils!$M$3,FALSE)/VLOOKUP($B49,Pupils,Pupils!$L$3,FALSE)), \"x\")","v":2.0987160368093696E-2},{"$f":"IFERROR((VLOOKUP($B49,Pupils,Pupils!$R$3,FALSE)/VLOOKUP($B49,Pupils,Pupils!$Q$3,FALSE)), \"x\")","v":2.0991450560779227E-2},{"$f":"IFERROR((VLOOKUP($B49,Pupils,Pupils!$W$3,FALSE)/VLOOKUP($B49,Pupils,Pupils!$V$3,FALSE)), \"x\")","v":2.1555582860854149E-2},{"$f":"IFERROR(((VLOOKUP($B49,Pupils,Pupils!$D$3,FALSE)+VLOOKUP($B49,Pupils,Pupils!$E$3,FALSE))/VLOOKUP($B49,Pupils,Pupils!$C$3,FALSE)), \"x\")","v":0.23599158538917575},{"$f":"IFERROR(((VLOOKUP($B49,Pupils,Pupils!$G$3,FALSE)+VLOOKUP($B49,Pupils,Pupils!$H$3,FALSE))/VLOOKUP($B49,Pupils,Pupils!$F$3,FALSE)), \"x\")","v":0.2424333911993358},{"$f":"IFERROR(((VLOOKUP($B49,Pupils,Pupils!$J$3,FALSE)+VLOOKUP($B49,Pupils,Pupils!$K$3,FALSE))/VLOOKUP($B49,Pupils,Pupils!$I$3,FALSE)), \"x\")","v":0.2222387394083544},{"$f":"IFERROR(((VLOOKUP($B49,Pupils,Pupils!$M$3,FALSE)+VLOOKUP($B49,Pupils,Pupils!$P$3,FALSE))/VLOOKUP($B49,Pupils,Pupils!$L$3,FALSE)), \"x\")","v":0.22531189757392792},{"$f":"IFERROR(((VLOOKUP($B49,Pupils,Pupils!$R$3,FALSE)+VLOOKUP($B49,Pupils,Pupils!$U$3,FALSE))/VLOOKUP($B49,Pupils,Pupils!$Q$3,FALSE)), \"x\")","v":0.20602193348856224},{"$f":"IFERROR(((VLOOKUP($B49,Pupils,Pupils!$W$3,FALSE)+VLOOKUP($B49,Pupils,Pupils!$Z$3,FALSE))/VLOOKUP($B49,Pupils,Pupils!$V$3,FALSE)), \"x\")","v":0.18578525162807843},{"$f":"(SUM(INDEX(Pupils!$AB$7:$AB$159,MATCH($B49,Pupils!$A$7:$A$159,0)),INDEX(Pupils!$AC$7:$AC$159,MATCH($B49,Pupils!$A$7:$A$159,0)),INDEX(Pupils!$AD$7:$AD$159,MATCH($B49,Pupils!$A$7:$A$159,0)),INDEX(Pupils!$AE$7:$AE$159,MATCH($B49,Pupils!$A$7:$A$159,0))))/SUM(INDEX(Pupils!$AB$7:$AM$159,MATCH($B49,Pupils!$A$7:$A$159,0),0))","v":0.22222222222222221},{"$f":"SUM(INDEX(Pupils!$AF$7:$AF$159,MATCH($B49,Pupils!$A$7:$A$159,0)))/SUM(INDEX(Pupils!$AB$7:$AM$159,MATCH($B49,Pupils!$A$7:$A$159,0),0))","v":0.27858965437253536},{"$f":"SUM(INDEX(Pupils!$AG$7:$AG$159,MATCH($B49,Pupils!$A$7:$A$159,0)))/SUM(INDEX(Pupils!$AB$7:$AM$159,MATCH($B49,Pupils!$A$7:$A$159,0),0))","v":0.23660403618649964},{"$f":"(SUM(INDEX(Pupils!$AH$7:$AH$159,MATCH($B49,Pupils!$A$7:$A$159,0)),INDEX(Pupils!$AI$7:$AI$159,MATCH($B49,Pupils!$A$7:$A$159,0)),INDEX(Pupils!$AJ$7:$AJ$159,MATCH($B49,Pupils!$A$7:$A$159,0))))/SUM(INDEX(Pupils!$AB$7:$AM$159,MATCH($B49,Pupils!$A$7:$A$159,0),0))","v":3.4794711203897009E-2},{"$f":"SUM(INDEX(Pupils!$AK$7:$AK$159,MATCH($B49,Pupils!$A$7:$A$159,0)))/SUM(INDEX(Pupils!$AB$7:$AM$159,MATCH($B49,Pupils!$A$7:$A$159,0),0))","v":3.1547204824866622E-2},{"$f":"SUM(INDEX(Pupils!$AL$7:$AL$159,MATCH($B49,Pupils!$A$7:$A$159,0)))/SUM(INDEX(Pupils!$AB$7:$AM$159,MATCH($B49,Pupils!$A$7:$A$159,0),0))","v":0.13964277429830665},{"$f":"SUM(INDEX(Pupils!$AM$7:$AM$159,MATCH($B49,Pupils!$A$7:$A$159,0)))/SUM(INDEX(Pupils!$AB$7:$AM$159,MATCH($B49,Pupils!$A$7:$A$159,0),0))","v":5.6599396891672468E-2},{"$f":"(SUM(INDEX(Pupils!$BH$7:$BH$159,MATCH($B49,Pupils!$A$7:$A$159,0)),INDEX(Pupils!$BK$7:$BK$159,MATCH($B49,Pupils!$A$7:$A$159,0)),INDEX(Pupils!$BO$7:$BO$159,MATCH($B49,Pupils!$A$7:$A$159,0))))/SUM(INDEX(Pupils!$BH$7:$BS$159,MATCH($B49,Pupils!$A$7:$A$159,0),0))","v":0.49819494584837543},{"$f":"(SUM(INDEX(Pupils!$BL$7:$BL$159,MATCH($B49,Pupils!$A$7:$A$159,0)),INDEX(Pupils!$BM$7:$BM$159,MATCH($B49,Pupils!$A$7:$A$159,0)),INDEX(Pupils!$BP$7:$BP$159,MATCH($B49,Pupils!$A$7:$A$159,0))))/SUM(INDEX(Pupils!$BH$7:$BS$159,MATCH($B49,Pupils!$A$7:$A$159,0),0))","v":0.44404332129963897},{"$f":"(SUM(INDEX(Pupils!$BI$7:$BI$159,MATCH($B49,Pupils!$A$7:$A$159,0)),INDEX(Pupils!$BJ$7:$BJ$159,MATCH($B49,Pupils!$A$7:$A$159,0))))/SUM(INDEX(Pupils!$BH$7:$BS$159,MATCH($B49,Pupils!$A$7:$A$159,0),0))","v":4.1155234657039713E-2},{"$f":"(SUM(INDEX(Pupils!$BQ$7:$BQ$159,MATCH($B49,Pupils!$A$7:$A$159,0)),INDEX(Pupils!$BR$7:$BR$159,MATCH($B49,Pupils!$A$7:$A$159,0)),INDEX(Pupils!$BN$7:$BN$159,MATCH($B49,Pupils!$A$7:$A$159,0)),INDEX(Pupils!$BS$7:$BS$159,MATCH($B49,Pupils!$A$7:$A$159,0))))/SUM(INDEX(Pupils!$BH$7:$BS$159,MATCH($B49,Pupils!$A$7:$A$159,0),0))","v":1.6606498194945848E-2},{"$f":"IFERROR((VLOOKUP(B49,Funding,Funding!$C$2,FALSE)), \"x\")","v":28101858.170000002},{"$f":"IFERROR((AA49/VLOOKUP(B49,Funding,Funding!$D$2,FALSE)), \"x\")","v":0.10114509474978228},{"$f":"IFERROR((AA49/(VLOOKUP(B49,Pupils,Pupils!$M$3,FALSE)+VLOOKUP(B49,Pupils,Pupils!$P$3,FALSE))), \"x\")","v":2268.2910783759789},{"$f":"IFERROR((VLOOKUP(B49,Funding,Funding!$E$2,FALSE)), \"x\")","v":29582420.323812794},{"$f":"IFERROR((AD49/VLOOKUP(B49,Funding,Funding!$F$2,FALSE)), \"x\")","v":0.10178765259614868},{"$f":"IFERROR((AD49/(VLOOKUP(B49,Pupils,Pupils!$R$3,FALSE)+VLOOKUP(B49,Pupils,Pupils!$U$3,FALSE))), \"x\")","v":2552.1887950834953},{"$f":"IFERROR((VLOOKUP(B49,Funding,Funding!$G$2,FALSE)), \"x\")","v":31023101.506794415},{"$f":"IFERROR((AG49/VLOOKUP(B49,Funding,Funding!$H$2,FALSE)), \"x\")","v":0.10542979144011229},{"$f":"IFERROR((AG49/(VLOOKUP(B49,Pupils,Pupils!$W$3,FALSE)+VLOOKUP(B49,Pupils,Pupils!$Z$3,FALSE))), \"x\")","v":2931.1320395686334},{"$f":"IFERROR((VLOOKUP(B49,Funding,Funding!$I$2,FALSE)), \"x\")","v":31453889.207529083},{"$f":"IFERROR((AJ49/VLOOKUP(B49,Funding,Funding!$J$2,FALSE)), \"x\")","v":0.10502799579114896},null,{"$f":"IFERROR((VLOOKUP($B49,Funding,Funding!$EC$2,FALSE)), \"x\")","v":17653805.899999999},{"$f":"IFERROR((AM49/VLOOKUP($B49,Funding,Funding!$EU$2,FALSE)), \"x\")","v":6.4885246658294954E-2},{"$f":"IFERROR((AM49/(VLOOKUP($B49,Pupils,Pupils!$D$3,FALSE)+VLOOKUP($B49,Pupils,Pupils!$E$3,FALSE))), \"x\")","v":1430.6163614262559},{"$f":"IFERROR((VLOOKUP($B49,Funding,Funding!$DA$2,FALSE)), \"x\")","v":18642858.699999999},{"$f":"IFERROR((AP49/VLOOKUP($B49,Funding,Funding!$DT$2,FALSE)), \"x\")","v":6.7727879763721827E-2},{"$f":"IFERROR((AP49/(VLOOKUP($B49,Pupils,Pupils!$G$3,FALSE)+VLOOKUP($B49,Pupils,Pupils!$H$3,FALSE))), \"x\")","v":1451.0319660647572},{"$f":"IFERROR((VLOOKUP($B49,Funding,Funding!$CE$2,FALSE)), \"x\")","v":19855835},{"$f":"IFERROR((AS49/VLOOKUP($B49,Funding,Funding!$CR$2,FALSE)), \"x\")","v":7.4427991395279669E-2},{"$f":"IFERROR((AS49/(VLOOKUP($B49,Pupils,Pupils!$J$3,FALSE)+VLOOKUP($B49,Pupils,Pupils!$K$3,FALSE))), \"x\")","v":1660.1868729096991},{"$f":"IFERROR((VLOOKUP($B49,Funding,Funding!$BM$2,FALSE)), \"x\")","v":21894848.079999998},{"$f":"IFERROR((AV49/VLOOKUP($B49,Funding,Funding!$BY$2,FALSE)), \"x\")","v":8.0613490831834139E-2},{"$f":"IFERROR((AV49/(VLOOKUP($B49,Pupils,Pupils!$M$3,FALSE)+VLOOKUP($B49,Pupils,Pupils!$P$3,FALSE))), \"x\")","v":1767.2813043829201},{"$f":"IFERROR((VLOOKUP($B49,Funding,Funding!$AQ$2,FALSE)), \"x\")","v":31272733},{"$f":"IFERROR((AY49/VLOOKUP($B49,Funding,Funding!$BE$2,FALSE)), \"x\")","v":0.10166276854200246},{"$f":"IFERROR((AY49/(VLOOKUP($B49,Pupils,Pupils!$R$3,FALSE)+VLOOKUP($B49,Pupils,Pupils!$U$3,FALSE))), \"x\")","v":2698.0185488741263},{"$f":"IFERROR((VLOOKUP($B49,Funding,Funding!$S$2,FALSE)), \"x\")","v":31991912},{"$f":"IFERROR((BB49/VLOOKUP($B49,Funding,Funding!$AH$2,FALSE)), \"x\")","v":0.10300495568791375},{"$f":"IFERROR((BB49/(VLOOKUP(B49,Pupils,Pupils!$W$3,FALSE)+VLOOKUP(B49,Pupils,Pupils!$Z$3,FALSE))), \"x\")","v":3022.6674225245656},{"$f":"IFERROR((VLOOKUP($B49,Funding,Funding!$GX$2,FALSE)), \"x\")","v":40395174},{"$f":"IFERROR((BE49/VLOOKUP($B49,Funding,Funding!$HC$2,FALSE)), \"x\")","v":0.13542222225496434},{"$f":"IFERROR((BE49/(VLOOKUP($B49,Pupils,Pupils!$D$3,FALSE)+VLOOKUP($B49,Pupils,Pupils!$E$3,FALSE))), \"x\")","v":3273.5149108589953},{"$f":"IFERROR((VLOOKUP($B49,Funding,Funding!$GP$2,FALSE)), \"x\")","v":40527539},{"$f":"IFERROR((BH49/VLOOKUP($B49,Funding,Funding!$GU$2,FALSE)), \"x\")","v":0.13795330927893779},{"$f":"IFERROR((BH49/(VLOOKUP($B49,Pupils,Pupils!$G$3,FALSE)+VLOOKUP($B49,Pupils,Pupils!$H$3,FALSE))), \"x\")","v":3154.3850404732252},{"$f":"IFERROR((VLOOKUP($B49,Funding,Funding!$GH$2,FALSE)), \"x\")","v":40466558.880000003},{"$f":"IFERROR((BK49/VLOOKUP($B49,Funding,Funding!$GM$2,FALSE)), \"x\")","v":0.14442015056249294},{"$f":"IFERROR((BK49/(VLOOKUP($B49,Pupils,Pupils!$J$3,FALSE)+VLOOKUP($B49,Pupils,Pupils!$K$3,FALSE))), \"x\")","v":3383.4915451505017},{"$f":"IFERROR((VLOOKUP($B49,Funding,Funding!$FZ$2,FALSE)), \"x\")","v":47463070.280000001},{"$f":"IFERROR((BN49/VLOOKUP($B49,Funding,Funding!$GE$2,FALSE)), \"x\")","v":0.15991682193626325},{"$f":"IFERROR((BN49/(VLOOKUP($B49,Pupils,Pupils!$M$3,FALSE)+VLOOKUP($B49,Pupils,Pupils!$P$3,FALSE))), \"x\")","v":3831.0654838970054},{"$f":"IFERROR((VLOOKUP($B49,Funding,Funding!$FD$2,FALSE)), \"x\")","v":31225907},{"$f":"IFERROR((BQ49/VLOOKUP($B49,Funding,Funding!$FR$2,FALSE)), \"x\")","v":0.11490908364825879},{"$f":"IFERROR((BQ49/(VLOOKUP($B49,Pupils,Pupils!$R$3,FALSE)+VLOOKUP($B49,Pupils,Pupils!$U$3,FALSE))), \"x\")","v":2693.978690363213},{"$f":"(VLOOKUP(B49,Funding,Funding!$HK$2,FALSE)+VLOOKUP(B49,Funding,Funding!$HL$2,FALSE)+VLOOKUP(B49,Funding,Funding!$HM$2,FALSE))/(VLOOKUP(B49,Funding,Funding!$HN$2,FALSE))","v":0.23995771670190275},{"$f":"IFERROR((VLOOKUP(B49,Other_data,Other!$D$3,FALSE)+VLOOKUP(B49,Other_data,Other!$E$3,FALSE)+VLOOKUP(B49,Other_data,Other!$F$3,FALSE)), \"x\")","v":1650},{"$f":"(VLOOKUP(B49,Other_data,Other!$AK$3,FALSE)+VLOOKUP(B49,Other_data,Other!$AL$3,FALSE))/VLOOKUP(B49,Other_data,Other!$AJ$3,FALSE)","v":3.0943299189988428E-2},{"$f":"(VLOOKUP(B49,Other_data,Other!$AR$3,FALSE)+VLOOKUP(B49,Other_data,Other!$AS$3,FALSE))/VLOOKUP(B49,Other_data,Other!$AQ$3,FALSE)","v":4.6894972305070302E-2},{"$f":"VLOOKUP(B49,Other_data,Other!$AP$3,FALSE)/VLOOKUP(B49,Other_data,Other!$AJ$3,FALSE)","v":8.2144030629008984E-3},{"$f":"VLOOKUP(B49,Other_data,Other!$AW$3,FALSE)/VLOOKUP(B49,Other_data,Other!$AQ$3,FALSE)","v":1.2942053685556029E-2}]
[44,881,"Essex",{"$f":"IFERROR((VLOOKUP($B50,Pupils,Pupils!$D$3,FALSE)/VLOOKUP($B50,Pupils,Pupils!$C$3,FALSE)), \"x\")","v":2.8555656890510248E-2},{"$f":"IFERROR((VLOOKUP($B50,Pupils,Pupils!$G$3,FALSE)/VLOOKUP($B50,Pupils,Pupils!$F$3,FALSE)),\"x\")","v":2.9373968205073903E-2},{"$f":"IFERROR((VLOOKUP($B50,Pupils,Pupils!$J$3,FALSE)/VLOOKUP($B50,Pupils,Pupils!$I$3,FALSE)), \"x\")","v":3.0095943443864671E-2},{"$f":"IFERROR((VLOOKUP($B50,Pupils,Pupils!$M$3,FALSE)/VLOOKUP($B50,Pupils,Pupils!$L$3,FALSE)), \"x\")","v":3.1788627269929211E-2},{"$f":"IFERROR((VLOOKUP($B50,Pupils,Pupils!$R$3,FALSE)/VLOOKUP($B50,Pupils,Pupils!$Q$3,FALSE)), \"x\")","v":3.3043336778836953E-2},{"$f":"IFERROR((VLOOKUP($B50,Pupils,Pupils!$W$3,FALSE)/VLOOKUP($B50,Pupils,Pupils!$V$3,FALSE)), \"x\")","v":3.3352665456032098E-2},{"$f":"IFERROR(((VLOOKUP($B50,Pupils,Pupils!$D$3,FALSE)+VLOOKUP($B50,Pupils,Pupils!$E$3,FALSE))/VLOOKUP($B50,Pupils,Pupils!$C$3,FALSE)), \"x\")","v":0.17717563481015697},{"$f":"IFERROR(((VLOOKUP($B50,Pupils,Pupils!$G$3,FALSE)+VLOOKUP($B50,Pupils,Pupils!$H$3,FALSE))/VLOOKUP($B50,Pupils,Pupils!$F$3,FALSE)), \"x\")","v":0.18376658693067782},{"$f":"IFERROR(((VLOOKUP($B50,Pupils,Pupils!$J$3,FALSE)+VLOOKUP($B50,Pupils,Pupils!$K$3,FALSE))/VLOOKUP($B50,Pupils,Pupils!$I$3,FALSE)), \"x\")","v":0.18437011566114411},{"$f":"IFERROR(((VLOOKUP($B50,Pupils,Pupils!$M$3,FALSE)+VLOOKUP($B50,Pupils,Pupils!$P$3,FALSE))/VLOOKUP($B50,Pupils,Pupils!$L$3,FALSE)), \"x\")","v":0.17918975069252077},{"$f":"IFERROR(((VLOOKUP($B50,Pupils,Pupils!$R$3,FALSE)+VLOOKUP($B50,Pupils,Pupils!$U$3,FALSE))/VLOOKUP($B50,Pupils,Pupils!$Q$3,FALSE)), \"x\")","v":0.16966712606714904},{"$f":"IFERROR(((VLOOKUP($B50,Pupils,Pupils!$W$3,FALSE)+VLOOKUP($B50,Pupils,Pupils!$Z$3,FALSE))/VLOOKUP($B50,Pupils,Pupils!$V$3,FALSE)), \"x\")","v":0.15939969005219673},{"$f":"(SUM(INDEX(Pupils!$AB$7:$AB$159,MATCH($B50,Pupils!$A$7:$A$159,0)),INDEX(Pupils!$AC$7:$AC$159,MATCH($B50,Pupils!$A$7:$A$159,0)),INDEX(Pupils!$AD$7:$AD$159,MATCH($B50,Pupils!$A$7:$A$159,0)),INDEX(Pupils!$AE$7:$AE$159,MATCH($B50,Pupils!$A$7:$A$159,0))))/SUM(INDEX(Pupils!$AB$7:$AM$159,MATCH($B50,Pupils!$A$7:$A$159,0),0))","v":0.47239963503649635},{"$f":"SUM(INDEX(Pupils!$AF$7:$AF$159,MATCH($B50,Pupils!$A$7:$A$159,0)))/SUM(INDEX(Pupils!$AB$7:$AM$159,MATCH($B50,Pupils!$A$7:$A$159,0),0))","v":0.19303147810218979},{"$f":"SUM(INDEX(Pupils!$AG$7:$AG$159,MATCH($B50,Pupils!$A$7:$A$159,0)))/SUM(INDEX(Pupils!$AB$7:$AM$159,MATCH($B50,Pupils!$A$7:$A$159,0),0))","v":0.1490647810218978},{"$f":"(SUM(INDEX(Pupils!$AH$7:$AH$159,MATCH($B50,Pupils!$A$7:$A$159,0)),INDEX(Pupils!$AI$7:$AI$159,MATCH($B50,Pupils!$A$7:$A$159,0)),INDEX(Pupils!$AJ$7:$AJ$159,MATCH($B50,Pupils!$A$7:$A$159,0))))/SUM(INDEX(Pupils!$AB$7:$AM$159,MATCH($B50,Pupils!$A$7:$A$159,0),0))","v":2.9767335766423358E-2},{"$f":"SUM(INDEX(Pupils!$AK$7:$AK$159,MATCH($B50,Pupils!$A$7:$A$159,0)))/SUM(INDEX(Pupils!$AB$7:$AM$159,MATCH($B50,Pupils!$A$7:$A$159,0),0))","v":3.4956660583941604E-2},{"$f":"SUM(INDEX(Pupils!$AL$7:$AL$159,MATCH($B50,Pupils!$A$7:$A$159,0)))/SUM(INDEX(Pupils!$AB$7:$AM$159,MATCH($B50,Pupils!$A$7:$A$159,0),0))","v":9.7285583941605844E-2},{"$f":"SUM(INDEX(Pupils!$AM$7:$AM$159,MATCH($B50,Pupils!$A$7:$A$159,0)))/SUM(INDEX(Pupils!$AB$7:$AM$159,MATCH($B50,Pupils!$A$7:$A$159,0),0))","v":2.3494525547445255E-2},{"$f":"(SUM(INDEX(Pupils!$BH$7:$BH$159,MATCH($B50,Pupils!$A$7:$A$159,0)),INDEX(Pupils!$BK$7:$BK$159,MATCH($B50,Pupils!$A$7:$A$159,0)),INDEX(Pupils!$BO$7:$BO$159,MATCH($B50,Pupils!$A$7:$A$159,0))))/SUM(INDEX(Pupils!$BH$7:$BS$159,MATCH($B50,Pupils!$A$7:$A$159,0),0))","v":0.60025097601784716},{"$f":"(SUM(INDEX(Pupils!$BL$7:$BL$159,MATCH($B50,Pupils!$A$7:$A$159,0)),INDEX(Pupils!$BM$7:$BM$159,MATCH($B50,Pupils!$A$7:$A$159,0)),INDEX(Pupils!$BP$7:$BP$159,MATCH($B50,Pupils!$A$7:$A$159,0))))/SUM(INDEX(Pupils!$BH$7:$BS$159,MATCH($B50,Pupils!$A$7:$A$159,0),0))","v":0.346207473508087},{"$f":"(SUM(INDEX(Pupils!$BI$7:$BI$159,MATCH($B50,Pupils!$A$7:$A$159,0)),INDEX(Pupils!$BJ$7:$BJ$159,MATCH($B50,Pupils!$A$7:$A$159,0))))/SUM(INDEX(Pupils!$BH$7:$BS$159,MATCH($B50,Pupils!$A$7:$A$159,0),0))","v":3.4997211377579475E-2},{"$f":"(SUM(INDEX(Pupils!$BQ$7:$BQ$159,MATCH($B50,Pupils!$A$7:$A$159,0)),INDEX(Pupils!$BR$7:$BR$159,MATCH($B50,Pupils!$A$7:$A$159,0)),INDEX(Pupils!$BN$7:$BN$159,MATCH($B50,Pupils!$A$7:$A$159,0)),INDEX(Pupils!$BS$7:$BS$159,MATCH($B50,Pupils!$A$7:$A$159,0))))/SUM(INDEX(Pupils!$BH$7:$BS$159,MATCH($B50,Pupils!$A$7:$A$159,0),0))","v":1.8544339096486336E-2},{"$f":"IFERROR((VLOOKUP(B50,Funding,Funding!$C$2,FALSE)), \"x\")","v":107103840},{"$f":"IFERROR((AA50/VLOOKUP(B50,Funding,Funding!$D$2,FALSE)), \"x\")","v":0.11397085602962229},{"$f":"IFERROR((AA50/(VLOOKUP(B50,Pupils,Pupils!$M$3,FALSE)+VLOOKUP(B50,Pupils,Pupils!$P$3,FALSE))), \"x\")","v":2874.499194847021},{"$f":"IFERROR((VLOOKUP(B50,Funding,Funding!$E$2,FALSE)), \"x\")","v":109740867.59367722},{"$f":"IFERROR((AD50/VLOOKUP(B50,Funding,Funding!$F$2,FALSE)), \"x\")","v":0.11451877012241926},{"$f":"IFERROR((AD50/(VLOOKUP(B50,Pupils,Pupils!$R$3,FALSE)+VLOOKUP(B50,Pupils,Pupils!$U$3,FALSE))), \"x\")","v":3095.2155575709271},{"$f":"IFERROR((VLOOKUP(B50,Funding,Funding!$G$2,FALSE)), \"x\")","v":114873683.86621259},{"$f":"IFERROR((AG50/VLOOKUP(B50,Funding,Funding!$H$2,FALSE)), \"x\")","v":0.11856445947910914},{"$f":"IFERROR((AG50/(VLOOKUP(B50,Pupils,Pupils!$W$3,FALSE)+VLOOKUP(B50,Pupils,Pupils!$Z$3,FALSE))), \"x\")","v":3425.8949588802179},{"$f":"IFERROR((VLOOKUP(B50,Funding,Funding!$I$2,FALSE)), \"x\")","v":116545177.17964299},{"$f":"IFERROR((AJ50/VLOOKUP(B50,Funding,Funding!$J$2,FALSE)), \"x\")","v":0.12051867799307465},null,{"$f":"IFERROR((VLOOKUP($B50,Funding,Funding!$EC$2,FALSE)), \"x\")","v":62807764.120000005},{"$f":"IFERROR((AM50/VLOOKUP($B50,Funding,Funding!$EU$2,FALSE)), \"x\")","v":6.697489828903562E-2},{"$f":"IFERROR((AM50/(VLOOKUP($B50,Pupils,Pupils!$D$3,FALSE)+VLOOKUP($B50,Pupils,Pupils!$E$3,FALSE))), \"x\")","v":1701.6001766411098},{"$f":"IFERROR((VLOOKUP($B50,Funding,Funding!$DA$2,FALSE)), \"x\")","v":70392752.5},{"$f":"IFERROR((AP50/VLOOKUP($B50,Funding,Funding!$DT$2,FALSE)), \"x\")","v":7.2212465956474778E-2},{"$f":"IFERROR((AP50/(VLOOKUP($B50,Pupils,Pupils!$G$3,FALSE)+VLOOKUP($B50,Pupils,Pupils!$H$3,FALSE))), \"x\")","v":1843.6592153165186},{"$f":"IFERROR((VLOOKUP($B50,Funding,Funding!$CE$2,FALSE)), \"x\")","v":72785591},{"$f":"IFERROR((AS50/VLOOKUP($B50,Funding,Funding!$CR$2,FALSE)), \"x\")","v":7.8777611499097899E-2},{"$f":"IFERROR((AS50/(VLOOKUP($B50,Pupils,Pupils!$J$3,FALSE)+VLOOKUP($B50,Pupils,Pupils!$K$3,FALSE))), \"x\")","v":1898.5729451965465},{"$f":"IFERROR((VLOOKUP($B50,Funding,Funding!$BM$2,FALSE)), \"x\")","v":77100470.879999995},{"$f":"IFERROR((AV50/VLOOKUP($B50,Funding,Funding!$BY$2,FALSE)), \"x\")","v":0.1121612066485255},{"$f":"IFERROR((AV50/(VLOOKUP($B50,Pupils,Pupils!$M$3,FALSE)+VLOOKUP($B50,Pupils,Pupils!$P$3,FALSE))), \"x\")","v":2069.2557938808372},{"$f":"IFERROR((VLOOKUP($B50,Funding,Funding!$AQ$2,FALSE)), \"x\")","v":105669005},{"$f":"IFERROR((AY50/VLOOKUP($B50,Funding,Funding!$BE$2,FALSE)), \"x\")","v":0.11021380964899355},{"$f":"IFERROR((AY50/(VLOOKUP($B50,Pupils,Pupils!$R$3,FALSE)+VLOOKUP($B50,Pupils,Pupils!$U$3,FALSE))), \"x\")","v":2980.3696234663657},{"$f":"IFERROR((VLOOKUP($B50,Funding,Funding!$S$2,FALSE)), \"x\")","v":103758334},{"$f":"IFERROR((BB50/VLOOKUP($B50,Funding,Funding!$AH$2,FALSE)), \"x\")","v":0.10697610440223822},{"$f":"IFERROR((BB50/(VLOOKUP(B50,Pupils,Pupils!$W$3,FALSE)+VLOOKUP(B50,Pupils,Pupils!$Z$3,FALSE))), \"x\")","v":3094.4002266559305},{"$f":"IFERROR((VLOOKUP($B50,Funding,Funding!$GX$2,FALSE)), \"x\")","v":123198216.81999999},{"$f":"IFERROR((BE50/VLOOKUP($B50,Funding,Funding!$HC$2,FALSE)), \"x\")","v":0.11941073442353468},{"$f":"IFERROR((BE50/(VLOOKUP($B50,Pupils,Pupils!$D$3,FALSE)+VLOOKUP($B50,Pupils,Pupils!$E$3,FALSE))), \"x\")","v":3337.710081547506},{"$f":"IFERROR((VLOOKUP($B50,Funding,Funding!$GP$2,FALSE)), \"x\")","v":130176223.56},{"$f":"IFERROR((BH50/VLOOKUP($B50,Funding,Funding!$GU$2,FALSE)), \"x\")","v":0.12753173227535916},{"$f":"IFERROR((BH50/(VLOOKUP($B50,Pupils,Pupils!$G$3,FALSE)+VLOOKUP($B50,Pupils,Pupils!$H$3,FALSE))), \"x\")","v":3409.4503433645009},{"$f":"IFERROR((VLOOKUP($B50,Funding,Funding!$GH$2,FALSE)), \"x\")","v":125765365.15000001},{"$f":"IFERROR((BK50/VLOOKUP($B50,Funding,Funding!$GM$2,FALSE)), \"x\")","v":0.14926571058125046},{"$f":"IFERROR((BK50/(VLOOKUP($B50,Pupils,Pupils!$J$3,FALSE)+VLOOKUP($B50,Pupils,Pupils!$K$3,FALSE))), \"x\")","v":3280.5218235647026},{"$f":"IFERROR((VLOOKUP($B50,Funding,Funding!$FZ$2,FALSE)), \"x\")","v":121311476.75999999},{"$f":"IFERROR((BN50/VLOOKUP($B50,Funding,Funding!$GE$2,FALSE)), \"x\")","v":0.17663572791995555},{"$f":"IFERROR((BN50/(VLOOKUP($B50,Pupils,Pupils!$M$3,FALSE)+VLOOKUP($B50,Pupils,Pupils!$P$3,FALSE))), \"x\")","v":3255.8098969404186},{"$f":"IFERROR((VLOOKUP($B50,Funding,Funding!$FD$2,FALSE)), \"x\")","v":99059600},{"$f":"IFERROR((BQ50/VLOOKUP($B50,Funding,Funding!$FR$2,FALSE)), \"x\")","v":0.16861644531240372},{"$f":"IFERROR((BQ50/(VLOOKUP($B50,Pupils,Pupils!$R$3,FALSE)+VLOOKUP($B50,Pupils,Pupils!$U$3,FALSE))), \"x\")","v":2793.9528980397686},{"$f":"(VLOOKUP(B50,Funding,Funding!$HK$2,FALSE)+VLOOKUP(B50,Funding,Funding!$HL$2,FALSE)+VLOOKUP(B50,Funding,Funding!$HM$2,FALSE))/(VLOOKUP(B50,Funding,Funding!$HN$2,FALSE))","v":0.16377100541156367},{"$f":"IFERROR((VLOOKUP(B50,Other_data,Other!$D$3,FALSE)+VLOOKUP(B50,Other_data,Other!$E$3,FALSE)+VLOOKUP(B50,Other_data,Other!$F$3,FALSE)), \"x\")","v":8130},{"$f":"(VLOOKUP(B50,Other_data,Other!$AK$3,FALSE)+VLOOKUP(B50,Other_data,Other!$AL$3,FALSE))/VLOOKUP(B50,Other_data,Other!$AJ$3,FALSE)","v":3.4377263690026666E-2},{"$f":"(VLOOKUP(B50,Other_data,Other!$AR$3,FALSE)+VLOOKUP(B50,Other_data,Other!$AS$3,FALSE))/VLOOKUP(B50,Other_data,Other!$AQ$3,FALSE)","v":5.0812979615886419E-2},{"$f":"VLOOKUP(B50,Other_data,Other!$AP$3,FALSE)/VLOOKUP(B50,Other_data,Other!$AJ$3,FALSE)","v":5.4829462262842351E-3},{"$f":"VLOOKUP(B50,Other_data,Other!$AW$3,FALSE)/VLOOKUP(B50,Other_data,Other!$AQ$3,FALSE)","v":1.0220114757088145E-2}]
[45,390,"Gateshead",{"$f":"IFERROR((VLOOKUP($B51,Pupils,Pupils!$D$3,FALSE)/VLOOKUP($B51,Pupils,Pupils!$C$3,FALSE)), \"x\")","v":2.7763687396435695E-2},{"$f":"IFERROR((VLOOKUP($B51,Pupils,Pupils!$G$3,FALSE)/VLOOKUP($B51,Pupils,Pupils!$F$3,FALSE)),\"x\")","v":2.6787231872726653E-2},{"$f":"IFERROR((VLOOKUP($B51,Pupils,Pupils!$J$3,FALSE)/VLOOKUP($B51,Pupils,Pupils!$I$3,FALSE)), \"x\")","v":2.6762335498350734E-2},{"$f":"IFERROR((VLOOKUP($B51,Pupils,Pupils!$M$3,FALSE)/VLOOKUP($B51,Pupils,Pupils!$L$3,FALSE)), \"x\")","v":2.5774430943008728E-2},{"$f":"IFERROR((VLOOKUP($B51,Pupils,Pupils!$R$3,FALSE)/VLOOKUP($B51,Pupils,Pupils!$Q$3,FALSE)), \"x\")","v":2.6155779747953394E-2},{"$f":"IFERROR((VLOOKUP($B51,Pupils,Pupils!$W$3,FALSE)/VLOOKUP($B51,Pupils,Pupils!$V$3,FALSE)), \"x\")","v":2.6798451192174444E-2},{"$f":"IFERROR(((VLOOKUP($B51,Pupils,Pupils!$D$3,FALSE)+VLOOKUP($B51,Pupils,Pupils!$E$3,FALSE))/VLOOKUP($B51,Pupils,Pupils!$C$3,FALSE)), \"x\")","v":0.20959724053971795},{"$f":"IFERROR(((VLOOKUP($B51,Pupils,Pupils!$G$3,FALSE)+VLOOKUP($B51,Pupils,Pupils!$H$3,FALSE))/VLOOKUP($B51,Pupils,Pupils!$F$3,FALSE)), \"x\")","v":0.21001461739810315},{"$f":"IFERROR(((VLOOKUP($B51,Pupils,Pupils!$J$3,FALSE)+VLOOKUP($B51,Pupils,Pupils!$K$3,FALSE))/VLOOKUP($B51,Pupils,Pupils!$I$3,FALSE)), \"x\")","v":0.19199510320671948},{"$f":"IFERROR(((VLOOKUP($B51,Pupils,Pupils!$M$3,FALSE)+VLOOKUP($B51,Pupils,Pupils!$P$3,FALSE))/VLOOKUP($B51,Pupils,Pupils!$L$3,FALSE)), \"x\")","v":0.18302241998973129},{"$f":"IFERROR(((VLOOKUP($B51,Pupils,Pupils!$R$3,FALSE)+VLOOKUP($B51,Pupils,Pupils!$U$3,FALSE))/VLOOKUP($B51,Pupils,Pupils!$Q$3,FALSE)), \"x\")","v":0.17473419613437957},{"$f":"IFERROR(((VLOOKUP($B51,Pupils,Pupils!$W$3,FALSE)+VLOOKUP($B51,Pupils,Pupils!$Z$3,FALSE))/VLOOKUP($B51,Pupils,Pupils!$V$3,FALSE)), \"x\")","v":0.16500237755587258},{"$f":"(SUM(INDEX(Pupils!$AB$7:$AB$159,MATCH($B51,Pupils!$A$7:$A$159,0)),INDEX(Pupils!$AC$7:$AC$159,MATCH($B51,Pupils!$A$7:$A$159,0)),INDEX(Pupils!$AD$7:$AD$159,MATCH($B51,Pupils!$A$7:$A$159,0)),INDEX(Pupils!$AE$7:$AE$159,MATCH($B51,Pupils!$A$7:$A$159,0))))/SUM(INDEX(Pupils!$AB$7:$AM$159,MATCH($B51,Pupils!$A$7:$A$159,0),0))","v":0.31181181181181183},{"$f":"SUM(INDEX(Pupils!$AF$7:$AF$159,MATCH($B51,Pupils!$A$7:$A$159,0)))/SUM(INDEX(Pupils!$AB$7:$AM$159,MATCH($B51,Pupils!$A$7:$A$159,0),0))","v":0.22372372372372373},{"$f":"SUM(INDEX(Pupils!$AG$7:$AG$159,MATCH($B51,Pupils!$A$7:$A$159,0)))/SUM(INDEX(Pupils!$AB$7:$AM$159,MATCH($B51,Pupils!$A$7:$A$159,0),0))","v":0.19769769769769771},{"$f":"(SUM(INDEX(Pupils!$AH$7:$AH$159,MATCH($B51,Pupils!$A$7:$A$159,0)),INDEX(Pupils!$AI$7:$AI$159,MATCH($B51,Pupils!$A$7:$A$159,0)),INDEX(Pupils!$AJ$7:$AJ$159,MATCH($B51,Pupils!$A$7:$A$159,0))))/SUM(INDEX(Pupils!$AB$7:$AM$159,MATCH($B51,Pupils!$A$7:$A$159,0),0))","v":5.0050050050050053E-2},{"$f":"SUM(INDEX(Pupils!$AK$7:$AK$159,MATCH($B51,Pupils!$A$7:$A$159,0)))/SUM(INDEX(Pupils!$AB$7:$AM$159,MATCH($B51,Pupils!$A$7:$A$159,0),0))","v":4.1541541541541542E-2},{"$f":"SUM(INDEX(Pupils!$AL$7:$AL$159,MATCH($B51,Pupils!$A$7:$A$159,0)))/SUM(INDEX(Pupils!$AB$7:$AM$159,MATCH($B51,Pupils!$A$7:$A$159,0),0))","v":0.12612612612612611},{"$f":"SUM(INDEX(Pupils!$AM$7:$AM$159,MATCH($B51,Pupils!$A$7:$A$159,0)))/SUM(INDEX(Pupils!$AB$7:$AM$159,MATCH($B51,Pupils!$A$7:$A$159,0),0))","v":4.9049049049049047E-2},{"$f":"(SUM(INDEX(Pupils!$BH$7:$BH$159,MATCH($B51,Pupils!$A$7:$A$159,0)),INDEX(Pupils!$BK$7:$BK$159,MATCH($B51,Pupils!$A$7:$A$159,0)),INDEX(Pupils!$BO$7:$BO$159,MATCH($B51,Pupils!$A$7:$A$159,0))))/SUM(INDEX(Pupils!$BH$7:$BS$159,MATCH($B51,Pupils!$A$7:$A$159,0),0))","v":0.35023041474654376},{"$f":"(SUM(INDEX(Pupils!$BL$7:$BL$159,MATCH($B51,Pupils!$A$7:$A$159,0)),INDEX(Pupils!$BM$7:$BM$159,MATCH($B51,Pupils!$A$7:$A$159,0)),INDEX(Pupils!$BP$7:$BP$159,MATCH($B51,Pupils!$A$7:$A$159,0))))/SUM(INDEX(Pupils!$BH$7:$BS$159,MATCH($B51,Pupils!$A$7:$A$159,0),0))","v":0.59792626728110598},{"$f":"(SUM(INDEX(Pupils!$BI$7:$BI$159,MATCH($B51,Pupils!$A$7:$A$159,0)),INDEX(Pupils!$BJ$7:$BJ$159,MATCH($B51,Pupils!$A$7:$A$159,0))))/SUM(INDEX(Pupils!$BH$7:$BS$159,MATCH($B51,Pupils!$A$7:$A$159,0),0))","v":3.3410138248847927E-2},{"$f":"(SUM(INDEX(Pupils!$BQ$7:$BQ$159,MATCH($B51,Pupils!$A$7:$A$159,0)),INDEX(Pupils!$BR$7:$BR$159,MATCH($B51,Pupils!$A$7:$A$159,0)),INDEX(Pupils!$BN$7:$BN$159,MATCH($B51,Pupils!$A$7:$A$159,0)),INDEX(Pupils!$BS$7:$BS$159,MATCH($B51,Pupils!$A$7:$A$159,0))))/SUM(INDEX(Pupils!$BH$7:$BS$159,MATCH($B51,Pupils!$A$7:$A$159,0),0))","v":1.8433179723502304E-2},{"$f":"IFERROR((VLOOKUP(B51,Funding,Funding!$C$2,FALSE)), \"x\")","v":18204932},{"$f":"IFERROR((AA51/VLOOKUP(B51,Funding,Funding!$D$2,FALSE)), \"x\")","v":0.14053845913520424},{"$f":"IFERROR((AA51/(VLOOKUP(B51,Pupils,Pupils!$M$3,FALSE)+VLOOKUP(B51,Pupils,Pupils!$P$3,FALSE))), \"x\")","v":3404.7002057228351},{"$f":"IFERROR((VLOOKUP(B51,Funding,Funding!$E$2,FALSE)), \"x\")","v":19941971.951573212},{"$f":"IFERROR((AD51/VLOOKUP(B51,Funding,Funding!$F$2,FALSE)), \"x\")","v":0.14977894939523301},{"$f":"IFERROR((AD51/(VLOOKUP(B51,Pupils,Pupils!$R$3,FALSE)+VLOOKUP(B51,Pupils,Pupils!$U$3,FALSE))), \"x\")","v":3876.7441585484471},{"$f":"IFERROR((VLOOKUP(B51,Funding,Funding!$G$2,FALSE)), \"x\")","v":20737265.636567689},{"$f":"IFERROR((AG51/VLOOKUP(B51,Funding,Funding!$H$2,FALSE)), \"x\")","v":0.15381752113564248},{"$f":"IFERROR((AG51/(VLOOKUP(B51,Pupils,Pupils!$W$3,FALSE)+VLOOKUP(B51,Pupils,Pupils!$Z$3,FALSE))), \"x\")","v":4268.6837456911671},{"$f":"IFERROR((VLOOKUP(B51,Funding,Funding!$I$2,FALSE)), \"x\")","v":20917870.574169975},{"$f":"IFERROR((AJ51/VLOOKUP(B51,Funding,Funding!$J$2,FALSE)), \"x\")","v":0.15746665593322776},null,{"$f":"IFERROR((VLOOKUP($B51,Funding,Funding!$EC$2,FALSE)), \"x\")","v":14156334.83},{"$f":"IFERROR((AM51/VLOOKUP($B51,Funding,Funding!$EU$2,FALSE)), \"x\")","v":0.10619157595791909},{"$f":"IFERROR((AM51/(VLOOKUP($B51,Pupils,Pupils!$D$3,FALSE)+VLOOKUP($B51,Pupils,Pupils!$E$3,FALSE))), \"x\")","v":2284.0165908357535},{"$f":"IFERROR((VLOOKUP($B51,Funding,Funding!$DA$2,FALSE)), \"x\")","v":14804608.807819998},{"$f":"IFERROR((AP51/VLOOKUP($B51,Funding,Funding!$DT$2,FALSE)), \"x\")","v":0.10602530663769848},{"$f":"IFERROR((AP51/(VLOOKUP($B51,Pupils,Pupils!$G$3,FALSE)+VLOOKUP($B51,Pupils,Pupils!$H$3,FALSE))), \"x\")","v":2396.3432838815147},{"$f":"IFERROR((VLOOKUP($B51,Funding,Funding!$CE$2,FALSE)), \"x\")","v":14977022.578710001},{"$f":"IFERROR((AS51/VLOOKUP($B51,Funding,Funding!$CR$2,FALSE)), \"x\")","v":0.10561139379552134},{"$f":"IFERROR((AS51/(VLOOKUP($B51,Pupils,Pupils!$J$3,FALSE)+VLOOKUP($B51,Pupils,Pupils!$K$3,FALSE))), \"x\")","v":2652.6784588575983},{"$f":"IFERROR((VLOOKUP($B51,Funding,Funding!$BM$2,FALSE)), \"x\")","v":14884234.51},{"$f":"IFERROR((AV51/VLOOKUP($B51,Funding,Funding!$BY$2,FALSE)), \"x\")","v":0.13742354233478676},{"$f":"IFERROR((AV51/(VLOOKUP($B51,Pupils,Pupils!$M$3,FALSE)+VLOOKUP($B51,Pupils,Pupils!$P$3,FALSE))), \"x\")","v":2783.6608397232094},{"$f":"IFERROR((VLOOKUP($B51,Funding,Funding!$AQ$2,FALSE)), \"x\")","v":20092435},{"$f":"IFERROR((AY51/VLOOKUP($B51,Funding,Funding!$BE$2,FALSE)), \"x\")","v":0.15103271948691901},{"$f":"IFERROR((AY51/(VLOOKUP($B51,Pupils,Pupils!$R$3,FALSE)+VLOOKUP($B51,Pupils,Pupils!$U$3,FALSE))), \"x\")","v":3905.9943623639192},{"$f":"IFERROR((VLOOKUP($B51,Funding,Funding!$S$2,FALSE)), \"x\")","v":19771746},{"$f":"IFERROR((BB51/VLOOKUP($B51,Funding,Funding!$AH$2,FALSE)), \"x\")","v":0.14670057037665196},{"$f":"IFERROR((BB51/(VLOOKUP(B51,Pupils,Pupils!$W$3,FALSE)+VLOOKUP(B51,Pupils,Pupils!$Z$3,FALSE))), \"x\")","v":4069.9353643474683},{"$f":"IFERROR((VLOOKUP($B51,Funding,Funding!$GX$2,FALSE)), \"x\")","v":17983209},{"$f":"IFERROR((BE51/VLOOKUP($B51,Funding,Funding!$HC$2,FALSE)), \"x\")","v":0.11990579246796211},{"$f":"IFERROR((BE51/(VLOOKUP($B51,Pupils,Pupils!$D$3,FALSE)+VLOOKUP($B51,Pupils,Pupils!$E$3,FALSE))), \"x\")","v":2901.4535333978702},{"$f":"IFERROR((VLOOKUP($B51,Funding,Funding!$GP$2,FALSE)), \"x\")","v":19057698.729999997},{"$f":"IFERROR((BH51/VLOOKUP($B51,Funding,Funding!$GU$2,FALSE)), \"x\")","v":0.12804921438338754},{"$f":"IFERROR((BH51/(VLOOKUP($B51,Pupils,Pupils!$G$3,FALSE)+VLOOKUP($B51,Pupils,Pupils!$H$3,FALSE))), \"x\")","v":3084.7683279378434},{"$f":"IFERROR((VLOOKUP($B51,Funding,Funding!$GH$2,FALSE)), \"x\")","v":16462468.57},{"$f":"IFERROR((BK51/VLOOKUP($B51,Funding,Funding!$GM$2,FALSE)), \"x\")","v":0.1158923209806369},{"$f":"IFERROR((BK51/(VLOOKUP($B51,Pupils,Pupils!$J$3,FALSE)+VLOOKUP($B51,Pupils,Pupils!$K$3,FALSE))), \"x\")","v":2915.7755171803046},{"$f":"IFERROR((VLOOKUP($B51,Funding,Funding!$FZ$2,FALSE)), \"x\")","v":14891319.92},{"$f":"IFERROR((BN51/VLOOKUP($B51,Funding,Funding!$GE$2,FALSE)), \"x\")","v":0.1332032072969071},{"$f":"IFERROR((BN51/(VLOOKUP($B51,Pupils,Pupils!$M$3,FALSE)+VLOOKUP($B51,Pupils,Pupils!$P$3,FALSE))), \"x\")","v":2784.9859584813912},{"$f":"IFERROR((VLOOKUP($B51,Funding,Funding!$FD$2,FALSE)), \"x\")","v":23099907.93},{"$f":"IFERROR((BQ51/VLOOKUP($B51,Funding,Funding!$FR$2,FALSE)), \"x\")","v":0.2219467153995571},{"$f":"IFERROR((BQ51/(VLOOKUP($B51,Pupils,Pupils!$R$3,FALSE)+VLOOKUP($B51,Pupils,Pupils!$U$3,FALSE))), \"x\")","v":4490.6508417573868},{"$f":"(VLOOKUP(B51,Funding,Funding!$HK$2,FALSE)+VLOOKUP(B51,Funding,Funding!$HL$2,FALSE)+VLOOKUP(B51,Funding,Funding!$HM$2,FALSE))/(VLOOKUP(B51,Funding,Funding!$HN$2,FALSE))","v":0.1673052362707535},{"$f":"IFERROR((VLOOKUP(B51,Other_data,Other!$D$3,FALSE)+VLOOKUP(B51,Other_data,Other!$E$3,FALSE)+VLOOKUP(B51,Other_data,Other!$F$3,FALSE)), \"x\")","v":1120},{"$f":"(VLOOKUP(B51,Other_data,Other!$AK$3,FALSE)+VLOOKUP(B51,Other_data,Other!$AL$3,FALSE))/VLOOKUP(B51,Other_data,Other!$AJ$3,FALSE)","v":4.1468158881402754E-2},{"$f":"(VLOOKUP(B51,Other_data,Other!$AR$3,FALSE)+VLOOKUP(B51,Other_data,Other!$AS$3,FALSE))/VLOOKUP(B51,Other_data,Other!$AQ$3,FALSE)","v":5.6926448170731704E-2},{"$f":"VLOOKUP(B51,Other_data,Other!$AP$3,FALSE)/VLOOKUP(B51,Other_data,Other!$AJ$3,FALSE)","v":7.0194232232965916E-3},{"$f":"VLOOKUP(B51,Other_data,Other!$AW$3,FALSE)/VLOOKUP(B51,Other_data,Other!$AQ$3,FALSE)","v":1.2385670731707318E-2}]
[46,916,"Gloucestershire",{"$f":"IFERROR((VLOOKUP($B52,Pupils,Pupils!$D$3,FALSE)/VLOOKUP($B52,Pupils,Pupils!$C$3,FALSE)), \"x\")","v":2.4648999553420689E-2},{"$f":"IFERROR((VLOOKUP($B52,Pupils,Pupils!$G$3,FALSE)/VLOOKUP($B52,Pupils,Pupils!$F$3,FALSE)),\"x\")","v":2.4206846514082184E-2},{"$f":"IFERROR((VLOOKUP($B52,Pupils,Pupils!$J$3,FALSE)/VLOOKUP($B52,Pupils,Pupils!$I$3,FALSE)), \"x\")","v":2.4504635121479722E-2},{"$f":"IFERROR((VLOOKUP($B52,Pupils,Pupils!$M$3,FALSE)/VLOOKUP($B52,Pupils,Pupils!$L$3,FALSE)), \"x\")","v":2.5645813197434319E-2},{"$f":"IFERROR((VLOOKUP($B52,Pupils,Pupils!$R$3,FALSE)/VLOOKUP($B52,Pupils,Pupils!$Q$3,FALSE)), \"x\")","v":2.6307117750439368E-2},{"$f":"IFERROR((VLOOKUP($B52,Pupils,Pupils!$W$3,FALSE)/VLOOKUP($B52,Pupils,Pupils!$V$3,FALSE)), \"x\")","v":2.700290599592943E-2},{"$f":"IFERROR(((VLOOKUP($B52,Pupils,Pupils!$D$3,FALSE)+VLOOKUP($B52,Pupils,Pupils!$E$3,FALSE))/VLOOKUP($B52,Pupils,Pupils!$C$3,FALSE)), \"x\")","v":0.18395799976037208},{"$f":"IFERROR(((VLOOKUP($B52,Pupils,Pupils!$G$3,FALSE)+VLOOKUP($B52,Pupils,Pupils!$H$3,FALSE))/VLOOKUP($B52,Pupils,Pupils!$F$3,FALSE)), \"x\")","v":0.18391486929182332},{"$f":"IFERROR(((VLOOKUP($B52,Pupils,Pupils!$J$3,FALSE)+VLOOKUP($B52,Pupils,Pupils!$K$3,FALSE))/VLOOKUP($B52,Pupils,Pupils!$I$3,FALSE)), \"x\")","v":0.18036334080224947},{"$f":"IFERROR(((VLOOKUP($B52,Pupils,Pupils!$M$3,FALSE)+VLOOKUP($B52,Pupils,Pupils!$P$3,FALSE))/VLOOKUP($B52,Pupils,Pupils!$L$3,FALSE)), \"x\")","v":0.17243651700202092},{"$f":"IFERROR(((VLOOKUP($B52,Pupils,Pupils!$R$3,FALSE)+VLOOKUP($B52,Pupils,Pupils!$U$3,FALSE))/VLOOKUP($B52,Pupils,Pupils!$Q$3,FALSE)), \"x\")","v":0.16597100175746923},{"$f":"IFERROR(((VLOOKUP($B52,Pupils,Pupils!$W$3,FALSE)+VLOOKUP($B52,Pupils,Pupils!$Z$3,FALSE))/VLOOKUP($B52,Pupils,Pupils!$V$3,FALSE)), \"x\")","v":0.16476017370672297},{"$f":"(SUM(INDEX(Pupils!$AB$7:$AB$159,MATCH($B52,Pupils!$A$7:$A$159,0)),INDEX(Pupils!$AC$7:$AC$159,MATCH($B52,Pupils!$A$7:$A$159,0)),INDEX(Pupils!$AD$7:$AD$159,MATCH($B52,Pupils!$A$7:$A$159,0)),INDEX(Pupils!$AE$7:$AE$159,MATCH($B52,Pupils!$A$7:$A$159,0))))/SUM(INDEX(Pupils!$AB$7:$AM$159,MATCH($B52,Pupils!$A$7:$A$159,0),0))","v":0.38667702466498349},{"$f":"SUM(INDEX(Pupils!$AF$7:$AF$159,MATCH($B52,Pupils!$A$7:$A$159,0)))/SUM(INDEX(Pupils!$AB$7:$AM$159,MATCH($B52,Pupils!$A$7:$A$159,0),0))","v":0.20003884249368808},{"$f":"SUM(INDEX(Pupils!$AG$7:$AG$159,MATCH($B52,Pupils!$A$7:$A$159,0)))/SUM(INDEX(Pupils!$AB$7:$AM$159,MATCH($B52,Pupils!$A$7:$A$159,0),0))","v":0.1940182559720334},{"$f":"(SUM(INDEX(Pupils!$AH$7:$AH$159,MATCH($B52,Pupils!$A$7:$A$159,0)),INDEX(Pupils!$AI$7:$AI$159,MATCH($B52,Pupils!$A$7:$A$159,0)),INDEX(Pupils!$AJ$7:$AJ$159,MATCH($B52,Pupils!$A$7:$A$159,0))))/SUM(INDEX(Pupils!$AB$7:$AM$159,MATCH($B52,Pupils!$A$7:$A$159,0),0))","v":4.6999417362594678E-2},{"$f":"SUM(INDEX(Pupils!$AK$7:$AK$159,MATCH($B52,Pupils!$A$7:$A$159,0)))/SUM(INDEX(Pupils!$AB$7:$AM$159,MATCH($B52,Pupils!$A$7:$A$159,0),0))","v":4.9524179452320842E-2},{"$f":"SUM(INDEX(Pupils!$AL$7:$AL$159,MATCH($B52,Pupils!$A$7:$A$159,0)))/SUM(INDEX(Pupils!$AB$7:$AM$159,MATCH($B52,Pupils!$A$7:$A$159,0),0))","v":8.0598174402796666E-2},{"$f":"SUM(INDEX(Pupils!$AM$7:$AM$159,MATCH($B52,Pupils!$A$7:$A$159,0)))/SUM(INDEX(Pupils!$AB$7:$AM$159,MATCH($B52,Pupils!$A$7:$A$159,0),0))","v":4.2144105651582831E-2},{"$f":"(SUM(INDEX(Pupils!$BH$7:$BH$159,MATCH($B52,Pupils!$A$7:$A$159,0)),INDEX(Pupils!$BK$7:$BK$159,MATCH($B52,Pupils!$A$7:$A$159,0)),INDEX(Pupils!$BO$7:$BO$159,MATCH($B52,Pupils!$A$7:$A$159,0))))/SUM(INDEX(Pupils!$BH$7:$BS$159,MATCH($B52,Pupils!$A$7:$A$159,0),0))","v":0.53787575150300604},{"$f":"(SUM(INDEX(Pupils!$BL$7:$BL$159,MATCH($B52,Pupils!$A$7:$A$159,0)),INDEX(Pupils!$BM$7:$BM$159,MATCH($B52,Pupils!$A$7:$A$159,0)),INDEX(Pupils!$BP$7:$BP$159,MATCH($B52,Pupils!$A$7:$A$159,0))))/SUM(INDEX(Pupils!$BH$7:$BS$159,MATCH($B52,Pupils!$A$7:$A$159,0),0))","v":0.44849699398797593},{"$f":"(SUM(INDEX(Pupils!$BI$7:$BI$159,MATCH($B52,Pupils!$A$7:$A$159,0)),INDEX(Pupils!$BJ$7:$BJ$159,MATCH($B52,Pupils!$A$7:$A$159,0))))/SUM(INDEX(Pupils!$BH$7:$BS$159,MATCH($B52,Pupils!$A$7:$A$159,0),0))","v":0},{"$f":"(SUM(INDEX(Pupils!$BQ$7:$BQ$159,MATCH($B52,Pupils!$A$7:$A$159,0)),INDEX(Pupils!$BR$7:$BR$159,MATCH($B52,Pupils!$A$7:$A$159,0)),INDEX(Pupils!$BN$7:$BN$159,MATCH($B52,Pupils!$A$7:$A$159,0)),INDEX(Pupils!$BS$7:$BS$159,MATCH($B52,Pupils!$A$7:$A$159,0))))/SUM(INDEX(Pupils!$BH$7:$BS$159,MATCH($B52,Pupils!$A$7:$A$159,0),0))","v":1.3627254509018036E-2},{"$f":"IFERROR((VLOOKUP(B52,Funding,Funding!$C$2,FALSE)), \"x\")","v":45096138},{"$f":"IFERROR((AA52/VLOOKUP(B52,Funding,Funding!$D$2,FALSE)), \"x\")","v":0.11914526510473129},{"$f":"IFERROR((AA52/(VLOOKUP(B52,Pupils,Pupils!$M$3,FALSE)+VLOOKUP(B52,Pupils,Pupils!$P$3,FALSE))), \"x\")","v":2872.3654777070064},{"$f":"IFERROR((VLOOKUP(B52,Funding,Funding!$E$2,FALSE)), \"x\")","v":47655095.164461367},{"$f":"IFERROR((AD52/VLOOKUP(B52,Funding,Funding!$F$2,FALSE)), \"x\")","v":0.1230217553508999},{"$f":"IFERROR((AD52/(VLOOKUP(B52,Pupils,Pupils!$R$3,FALSE)+VLOOKUP(B52,Pupils,Pupils!$U$3,FALSE))), \"x\")","v":3153.8779063177608},{"$f":"IFERROR((VLOOKUP(B52,Funding,Funding!$G$2,FALSE)), \"x\")","v":51125165.495868184},{"$f":"IFERROR((AG52/VLOOKUP(B52,Funding,Funding!$H$2,FALSE)), \"x\")","v":0.13008999788772982},{"$f":"IFERROR((AG52/(VLOOKUP(B52,Pupils,Pupils!$W$3,FALSE)+VLOOKUP(B52,Pupils,Pupils!$Z$3,FALSE))), \"x\")","v":3377.2734506452757},{"$f":"IFERROR((VLOOKUP(B52,Funding,Funding!$I$2,FALSE)), \"x\")","v":51642680.383681573},{"$f":"IFERROR((AJ52/VLOOKUP(B52,Funding,Funding!$J$2,FALSE)), \"x\")","v":0.12767924697798999},null,{"$f":"IFERROR((VLOOKUP($B52,Funding,Funding!$EC$2,FALSE)), \"x\")","v":29274402},{"$f":"IFERROR((AM52/VLOOKUP($B52,Funding,Funding!$EU$2,FALSE)), \"x\")","v":7.0544629933794609E-2},{"$f":"IFERROR((AM52/(VLOOKUP($B52,Pupils,Pupils!$D$3,FALSE)+VLOOKUP($B52,Pupils,Pupils!$E$3,FALSE))), \"x\")","v":1733.3413464385103},{"$f":"IFERROR((VLOOKUP($B52,Funding,Funding!$DA$2,FALSE)), \"x\")","v":33062023},{"$f":"IFERROR((AP52/VLOOKUP($B52,Funding,Funding!$DT$2,FALSE)), \"x\")","v":7.8006890058175224E-2},{"$f":"IFERROR((AP52/(VLOOKUP($B52,Pupils,Pupils!$G$3,FALSE)+VLOOKUP($B52,Pupils,Pupils!$H$3,FALSE))), \"x\")","v":1976.2117752540346},{"$f":"IFERROR((VLOOKUP($B52,Funding,Funding!$CE$2,FALSE)), \"x\")","v":31869884},{"$f":"IFERROR((AS52/VLOOKUP($B52,Funding,Funding!$CR$2,FALSE)), \"x\")","v":8.1643359174673469E-2},{"$f":"IFERROR((AS52/(VLOOKUP($B52,Pupils,Pupils!$J$3,FALSE)+VLOOKUP($B52,Pupils,Pupils!$K$3,FALSE))), \"x\")","v":1940.8004384629437},{"$f":"IFERROR((VLOOKUP($B52,Funding,Funding!$BM$2,FALSE)), \"x\")","v":35532483},{"$f":"IFERROR((AV52/VLOOKUP($B52,Funding,Funding!$BY$2,FALSE)), \"x\")","v":0.13138873779258986},{"$f":"IFERROR((AV52/(VLOOKUP($B52,Pupils,Pupils!$M$3,FALSE)+VLOOKUP($B52,Pupils,Pupils!$P$3,FALSE))), \"x\")","v":2263.2154777070064},{"$f":"IFERROR((VLOOKUP($B52,Funding,Funding!$AQ$2,FALSE)), \"x\")","v":48856430},{"$f":"IFERROR((AY52/VLOOKUP($B52,Funding,Funding!$BE$2,FALSE)), \"x\")","v":0.12378082402253933},{"$f":"IFERROR((AY52/(VLOOKUP($B52,Pupils,Pupils!$R$3,FALSE)+VLOOKUP($B52,Pupils,Pupils!$U$3,FALSE))), \"x\")","v":3233.3838517538056},{"$f":"IFERROR((VLOOKUP($B52,Funding,Funding!$S$2,FALSE)), \"x\")","v":50777757},{"$f":"IFERROR((BB52/VLOOKUP($B52,Funding,Funding!$AH$2,FALSE)), \"x\")","v":0.12715992093639192},{"$f":"IFERROR((BB52/(VLOOKUP(B52,Pupils,Pupils!$W$3,FALSE)+VLOOKUP(B52,Pupils,Pupils!$Z$3,FALSE))), \"x\")","v":3354.3240190249703},{"$f":"IFERROR((VLOOKUP($B52,Funding,Funding!$GX$2,FALSE)), \"x\")","v":49574260},{"$f":"IFERROR((BE52/VLOOKUP($B52,Funding,Funding!$HC$2,FALSE)), \"x\")","v":0.11245092804607726},{"$f":"IFERROR((BE52/(VLOOKUP($B52,Pupils,Pupils!$D$3,FALSE)+VLOOKUP($B52,Pupils,Pupils!$E$3,FALSE))), \"x\")","v":2935.2987151400321},{"$f":"IFERROR((VLOOKUP($B52,Funding,Funding!$GP$2,FALSE)), \"x\")","v":49263690},{"$f":"IFERROR((BH52/VLOOKUP($B52,Funding,Funding!$GU$2,FALSE)), \"x\")","v":0.11599477877994872},{"$f":"IFERROR((BH52/(VLOOKUP($B52,Pupils,Pupils!$G$3,FALSE)+VLOOKUP($B52,Pupils,Pupils!$H$3,FALSE))), \"x\")","v":2944.6317991631799},{"$f":"IFERROR((VLOOKUP($B52,Funding,Funding!$GH$2,FALSE)), \"x\")","v":52796713.629999995},{"$f":"IFERROR((BK52/VLOOKUP($B52,Funding,Funding!$GM$2,FALSE)), \"x\")","v":0.16800901474774463},{"$f":"IFERROR((BK52/(VLOOKUP($B52,Pupils,Pupils!$J$3,FALSE)+VLOOKUP($B52,Pupils,Pupils!$K$3,FALSE))), \"x\")","v":3215.1947889897078},{"$f":"IFERROR((VLOOKUP($B52,Funding,Funding!$FZ$2,FALSE)), \"x\")","v":47429636.499999993},{"$f":"IFERROR((BN52/VLOOKUP($B52,Funding,Funding!$GE$2,FALSE)), \"x\")","v":0.18369568104584863},{"$f":"IFERROR((BN52/(VLOOKUP($B52,Pupils,Pupils!$M$3,FALSE)+VLOOKUP($B52,Pupils,Pupils!$P$3,FALSE))), \"x\")","v":3020.9959554140123},{"$f":"IFERROR((VLOOKUP($B52,Funding,Funding!$FD$2,FALSE)), \"x\")","v":47359063},{"$f":"IFERROR((BQ52/VLOOKUP($B52,Funding,Funding!$FR$2,FALSE)), \"x\")","v":0.19774736410095728},{"$f":"IFERROR((BQ52/(VLOOKUP($B52,Pupils,Pupils!$R$3,FALSE)+VLOOKUP($B52,Pupils,Pupils!$U$3,FALSE))), \"x\")","v":3134.2861019192587},{"$f":"(VLOOKUP(B52,Funding,Funding!$HK$2,FALSE)+VLOOKUP(B52,Funding,Funding!$HL$2,FALSE)+VLOOKUP(B52,Funding,Funding!$HM$2,FALSE))/(VLOOKUP(B52,Funding,Funding!$HN$2,FALSE))","v":0.26190476190476192},{"$f":"IFERROR((VLOOKUP(B52,Other_data,Other!$D$3,FALSE)+VLOOKUP(B52,Other_data,Other!$E$3,FALSE)+VLOOKUP(B52,Other_data,Other!$F$3,FALSE)), \"x\")","v":2740},{"$f":"(VLOOKUP(B52,Other_data,Other!$AK$3,FALSE)+VLOOKUP(B52,Other_data,Other!$AL$3,FALSE))/VLOOKUP(B52,Other_data,Other!$AJ$3,FALSE)","v":3.0389381703888135E-2},{"$f":"(VLOOKUP(B52,Other_data,Other!$AR$3,FALSE)+VLOOKUP(B52,Other_data,Other!$AS$3,FALSE))/VLOOKUP(B52,Other_data,Other!$AQ$3,FALSE)","v":4.7103651025670504E-2},{"$f":"VLOOKUP(B52,Other_data,Other!$AP$3,FALSE)/VLOOKUP(B52,Other_data,Other!$AJ$3,FALSE)","v":4.695680163591438E-3},{"$f":"VLOOKUP(B52,Other_data,Other!$AW$3,FALSE)/VLOOKUP(B52,Other_data,Other!$AQ$3,FALSE)","v":9.0988224087243576E-3}]
[47,203,"Greenwich",{"$f":"IFERROR((VLOOKUP($B53,Pupils,Pupils!$D$3,FALSE)/VLOOKUP($B53,Pupils,Pupils!$C$3,FALSE)), \"x\")","v":3.3464175693133258E-2},{"$f":"IFERROR((VLOOKUP($B53,Pupils,Pupils!$G$3,FALSE)/VLOOKUP($B53,Pupils,Pupils!$F$3,FALSE)),\"x\")","v":3.0773024288003947E-2},{"$f":"IFERROR((VLOOKUP($B53,Pupils,Pupils!$J$3,FALSE)/VLOOKUP($B53,Pupils,Pupils!$I$3,FALSE)), \"x\")","v":3.0328068043742405E-2},{"$f":"IFERROR((VLOOKUP($B53,Pupils,Pupils!$M$3,FALSE)/VLOOKUP($B53,Pupils,Pupils!$L$3,FALSE)), \"x\")","v":2.9110615543246288E-2},{"$f":"IFERROR((VLOOKUP($B53,Pupils,Pupils!$R$3,FALSE)/VLOOKUP($B53,Pupils,Pupils!$Q$3,FALSE)), \"x\")","v":2.8515170924963824E-2},{"$f":"IFERROR((VLOOKUP($B53,Pupils,Pupils!$W$3,FALSE)/VLOOKUP($B53,Pupils,Pupils!$V$3,FALSE)), \"x\")","v":2.8991808155233171E-2},{"$f":"IFERROR(((VLOOKUP($B53,Pupils,Pupils!$D$3,FALSE)+VLOOKUP($B53,Pupils,Pupils!$E$3,FALSE))/VLOOKUP($B53,Pupils,Pupils!$C$3,FALSE)), \"x\")","v":0.25626055848156615},{"$f":"IFERROR(((VLOOKUP($B53,Pupils,Pupils!$G$3,FALSE)+VLOOKUP($B53,Pupils,Pupils!$H$3,FALSE))/VLOOKUP($B53,Pupils,Pupils!$F$3,FALSE)), \"x\")","v":0.25372950314387871},{"$f":"IFERROR(((VLOOKUP($B53,Pupils,Pupils!$J$3,FALSE)+VLOOKUP($B53,Pupils,Pupils!$K$3,FALSE))/VLOOKUP($B53,Pupils,Pupils!$I$3,FALSE)), \"x\")","v":0.24777642770352371},{"$f":"IFERROR(((VLOOKUP($B53,Pupils,Pupils!$M$3,FALSE)+VLOOKUP($B53,Pupils,Pupils!$P$3,FALSE))/VLOOKUP($B53,Pupils,Pupils!$L$3,FALSE)), \"x\")","v":0.22979162170587247},{"$f":"IFERROR(((VLOOKUP($B53,Pupils,Pupils!$R$3,FALSE)+VLOOKUP($B53,Pupils,Pupils!$U$3,FALSE))/VLOOKUP($B53,Pupils,Pupils!$Q$3,FALSE)), \"x\")","v":0.21735107821507366},{"$f":"IFERROR(((VLOOKUP($B53,Pupils,Pupils!$W$3,FALSE)+VLOOKUP($B53,Pupils,Pupils!$Z$3,FALSE))/VLOOKUP($B53,Pupils,Pupils!$V$3,FALSE)), \"x\")","v":0.21470413253398013},{"$f":"(SUM(INDEX(Pupils!$AB$7:$AB$159,MATCH($B53,Pupils!$A$7:$A$159,0)),INDEX(Pupils!$AC$7:$AC$159,MATCH($B53,Pupils!$A$7:$A$159,0)),INDEX(Pupils!$AD$7:$AD$159,MATCH($B53,Pupils!$A$7:$A$159,0)),INDEX(Pupils!$AE$7:$AE$159,MATCH($B53,Pupils!$A$7:$A$159,0))))/SUM(INDEX(Pupils!$AB$7:$AM$159,MATCH($B53,Pupils!$A$7:$A$159,0),0))","v":0.20359771054783321},{"$f":"SUM(INDEX(Pupils!$AF$7:$AF$159,MATCH($B53,Pupils!$A$7:$A$159,0)))/SUM(INDEX(Pupils!$AB$7:$AM$159,MATCH($B53,Pupils!$A$7:$A$159,0),0))","v":0.17395748160261651},{"$f":"SUM(INDEX(Pupils!$AG$7:$AG$159,MATCH($B53,Pupils!$A$7:$A$159,0)))/SUM(INDEX(Pupils!$AB$7:$AM$159,MATCH($B53,Pupils!$A$7:$A$159,0),0))","v":0.37980376124284548},{"$f":"(SUM(INDEX(Pupils!$AH$7:$AH$159,MATCH($B53,Pupils!$A$7:$A$159,0)),INDEX(Pupils!$AI$7:$AI$159,MATCH($B53,Pupils!$A$7:$A$159,0)),INDEX(Pupils!$AJ$7:$AJ$159,MATCH($B53,Pupils!$A$7:$A$159,0))))/SUM(INDEX(Pupils!$AB$7:$AM$159,MATCH($B53,Pupils!$A$7:$A$159,0),0))","v":3.5772690106295996E-2},{"$f":"SUM(INDEX(Pupils!$AK$7:$AK$159,MATCH($B53,Pupils!$A$7:$A$159,0)))/SUM(INDEX(Pupils!$AB$7:$AM$159,MATCH($B53,Pupils!$A$7:$A$159,0),0))","v":2.5756336876533115E-2},{"$f":"SUM(INDEX(Pupils!$AL$7:$AL$159,MATCH($B53,Pupils!$A$7:$A$159,0)))/SUM(INDEX(Pupils!$AB$7:$AM$159,MATCH($B53,Pupils!$A$7:$A$159,0),0))","v":0.12060506950122649},{"$f":"SUM(INDEX(Pupils!$AM$7:$AM$159,MATCH($B53,Pupils!$A$7:$A$159,0)))/SUM(INDEX(Pupils!$AB$7:$AM$159,MATCH($B53,Pupils!$A$7:$A$159,0),0))","v":6.0506950122649221E-2},{"$f":"(SUM(INDEX(Pupils!$BH$7:$BH$159,MATCH($B53,Pupils!$A$7:$A$159,0)),INDEX(Pupils!$BK$7:$BK$159,MATCH($B53,Pupils!$A$7:$A$159,0)),INDEX(Pupils!$BO$7:$BO$159,MATCH($B53,Pupils!$A$7:$A$159,0))))/SUM(INDEX(Pupils!$BH$7:$BS$159,MATCH($B53,Pupils!$A$7:$A$159,0),0))","v":0.53846153846153844},{"$f":"(SUM(INDEX(Pupils!$BL$7:$BL$159,MATCH($B53,Pupils!$A$7:$A$159,0)),INDEX(Pupils!$BM$7:$BM$159,MATCH($B53,Pupils!$A$7:$A$159,0)),INDEX(Pupils!$BP$7:$BP$159,MATCH($B53,Pupils!$A$7:$A$159,0))))/SUM(INDEX(Pupils!$BH$7:$BS$159,MATCH($B53,Pupils!$A$7:$A$159,0),0))","v":0.38792390405293631},{"$f":"(SUM(INDEX(Pupils!$BI$7:$BI$159,MATCH($B53,Pupils!$A$7:$A$159,0)),INDEX(Pupils!$BJ$7:$BJ$159,MATCH($B53,Pupils!$A$7:$A$159,0))))/SUM(INDEX(Pupils!$BH$7:$BS$159,MATCH($B53,Pupils!$A$7:$A$159,0),0))","v":6.6170388751033912E-2},{"$f":"(SUM(INDEX(Pupils!$BQ$7:$BQ$159,MATCH($B53,Pupils!$A$7:$A$159,0)),INDEX(Pupils!$BR$7:$BR$159,MATCH($B53,Pupils!$A$7:$A$159,0)),INDEX(Pupils!$BN$7:$BN$159,MATCH($B53,Pupils!$A$7:$A$159,0)),INDEX(Pupils!$BS$7:$BS$159,MATCH($B53,Pupils!$A$7:$A$159,0))))/SUM(INDEX(Pupils!$BH$7:$BS$159,MATCH($B53,Pupils!$A$7:$A$159,0),0))","v":7.4441687344913151E-3},{"$f":"IFERROR((VLOOKUP(B53,Funding,Funding!$C$2,FALSE)), \"x\")","v":35464972.510000005},{"$f":"IFERROR((AA53/VLOOKUP(B53,Funding,Funding!$D$2,FALSE)), \"x\")","v":0.15510687903526016},{"$f":"IFERROR((AA53/(VLOOKUP(B53,Pupils,Pupils!$M$3,FALSE)+VLOOKUP(B53,Pupils,Pupils!$P$3,FALSE))), \"x\")","v":3700.8215078785356},{"$f":"IFERROR((VLOOKUP(B53,Funding,Funding!$E$2,FALSE)), \"x\")","v":36906793.626927748},{"$f":"IFERROR((AD53/VLOOKUP(B53,Funding,Funding!$F$2,FALSE)), \"x\")","v":0.15487064957588872},{"$f":"IFERROR((AD53/(VLOOKUP(B53,Pupils,Pupils!$R$3,FALSE)+VLOOKUP(B53,Pupils,Pupils!$U$3,FALSE))), \"x\")","v":4028.2464120200557},{"$f":"IFERROR((VLOOKUP(B53,Funding,Funding!$G$2,FALSE)), \"x\")","v":37965527.2939355},{"$f":"IFERROR((AG53/VLOOKUP(B53,Funding,Funding!$H$2,FALSE)), \"x\")","v":0.15484733358903283},{"$f":"IFERROR((AG53/(VLOOKUP(B53,Pupils,Pupils!$W$3,FALSE)+VLOOKUP(B53,Pupils,Pupils!$Z$3,FALSE))), \"x\")","v":4046.2034843797828},{"$f":"IFERROR((VLOOKUP(B53,Funding,Funding!$I$2,FALSE)), \"x\")","v":38332528.506190971},{"$f":"IFERROR((AJ53/VLOOKUP(B53,Funding,Funding!$J$2,FALSE)), \"x\")","v":0.1497165552473147},null,{"$f":"IFERROR((VLOOKUP($B53,Funding,Funding!$EC$2,FALSE)), \"x\")","v":18638416.840000004},{"$f":"IFERROR((AM53/VLOOKUP($B53,Funding,Funding!$EU$2,FALSE)), \"x\")","v":7.8836389444600363E-2},{"$f":"IFERROR((AM53/(VLOOKUP($B53,Pupils,Pupils!$D$3,FALSE)+VLOOKUP($B53,Pupils,Pupils!$E$3,FALSE))), \"x\")","v":1806.923590887058},{"$f":"IFERROR((VLOOKUP($B53,Funding,Funding!$DA$2,FALSE)), \"x\")","v":21170134.121160001},{"$f":"IFERROR((AP53/VLOOKUP($B53,Funding,Funding!$DT$2,FALSE)), \"x\")","v":8.5070014169587205E-2},{"$f":"IFERROR((AP53/(VLOOKUP($B53,Pupils,Pupils!$G$3,FALSE)+VLOOKUP($B53,Pupils,Pupils!$H$3,FALSE))), \"x\")","v":2057.3502547288631},{"$f":"IFERROR((VLOOKUP($B53,Funding,Funding!$CE$2,FALSE)), \"x\")","v":22782016},{"$f":"IFERROR((AS53/VLOOKUP($B53,Funding,Funding!$CR$2,FALSE)), \"x\")","v":9.0095135167858345E-2},{"$f":"IFERROR((AS53/(VLOOKUP($B53,Pupils,Pupils!$J$3,FALSE)+VLOOKUP($B53,Pupils,Pupils!$K$3,FALSE))), \"x\")","v":2234.4072185170653},{"$f":"IFERROR((VLOOKUP($B53,Funding,Funding!$BM$2,FALSE)), \"x\")","v":23180267.57},{"$f":"IFERROR((AV53/VLOOKUP($B53,Funding,Funding!$BY$2,FALSE)), \"x\")","v":9.2752421577958918E-2},{"$f":"IFERROR((AV53/(VLOOKUP($B53,Pupils,Pupils!$M$3,FALSE)+VLOOKUP($B53,Pupils,Pupils!$P$3,FALSE))), \"x\")","v":2418.89466451007},{"$f":"IFERROR((VLOOKUP($B53,Funding,Funding!$AQ$2,FALSE)), \"x\")","v":33313133},{"$f":"IFERROR((AY53/VLOOKUP($B53,Funding,Funding!$BE$2,FALSE)), \"x\")","v":0.12933004686548435},{"$f":"IFERROR((AY53/(VLOOKUP($B53,Pupils,Pupils!$R$3,FALSE)+VLOOKUP($B53,Pupils,Pupils!$U$3,FALSE))), \"x\")","v":3636.0110237939316},{"$f":"IFERROR((VLOOKUP($B53,Funding,Funding!$S$2,FALSE)), \"x\")","v":32074635},{"$f":"IFERROR((BB53/VLOOKUP($B53,Funding,Funding!$AH$2,FALSE)), \"x\")","v":0.12759036194470069},{"$f":"IFERROR((BB53/(VLOOKUP(B53,Pupils,Pupils!$W$3,FALSE)+VLOOKUP(B53,Pupils,Pupils!$Z$3,FALSE))), \"x\")","v":3418.3773846317808},{"$f":"IFERROR((VLOOKUP($B53,Funding,Funding!$GX$2,FALSE)), \"x\")","v":35894381},{"$f":"IFERROR((BE53/VLOOKUP($B53,Funding,Funding!$HC$2,FALSE)), \"x\")","v":0.14227749265176479},{"$f":"IFERROR((BE53/(VLOOKUP($B53,Pupils,Pupils!$D$3,FALSE)+VLOOKUP($B53,Pupils,Pupils!$E$3,FALSE))), \"x\")","v":3479.8236548715463},{"$f":"IFERROR((VLOOKUP($B53,Funding,Funding!$GP$2,FALSE)), \"x\")","v":37010048},{"$f":"IFERROR((BH53/VLOOKUP($B53,Funding,Funding!$GU$2,FALSE)), \"x\")","v":0.14087082546873775},{"$f":"IFERROR((BH53/(VLOOKUP($B53,Pupils,Pupils!$G$3,FALSE)+VLOOKUP($B53,Pupils,Pupils!$H$3,FALSE))), \"x\")","v":3596.7004859086492},{"$f":"IFERROR((VLOOKUP($B53,Funding,Funding!$GH$2,FALSE)), \"x\")","v":42180190.049999997},{"$f":"IFERROR((BK53/VLOOKUP($B53,Funding,Funding!$GM$2,FALSE)), \"x\")","v":0.16538808594795951},{"$f":"IFERROR((BK53/(VLOOKUP($B53,Pupils,Pupils!$J$3,FALSE)+VLOOKUP($B53,Pupils,Pupils!$K$3,FALSE))), \"x\")","v":4136.9350774813647},{"$f":"IFERROR((VLOOKUP($B53,Funding,Funding!$FZ$2,FALSE)), \"x\")","v":32910219.41},{"$f":"IFERROR((BN53/VLOOKUP($B53,Funding,Funding!$GE$2,FALSE)), \"x\")","v":0.12700000916740234},{"$f":"IFERROR((BN53/(VLOOKUP($B53,Pupils,Pupils!$M$3,FALSE)+VLOOKUP($B53,Pupils,Pupils!$P$3,FALSE))), \"x\")","v":3434.2293029322759},{"$f":"IFERROR((VLOOKUP($B53,Funding,Funding!$FD$2,FALSE)), \"x\")","v":29899207},{"$f":"IFERROR((BQ53/VLOOKUP($B53,Funding,Funding!$FR$2,FALSE)), \"x\")","v":0.12695900390979561},{"$f":"IFERROR((BQ53/(VLOOKUP($B53,Pupils,Pupils!$R$3,FALSE)+VLOOKUP($B53,Pupils,Pupils!$U$3,FALSE))), \"x\")","v":3263.3930364549224},{"$f":"(VLOOKUP(B53,Funding,Funding!$HK$2,FALSE)+VLOOKUP(B53,Funding,Funding!$HL$2,FALSE)+VLOOKUP(B53,Funding,Funding!$HM$2,FALSE))/(VLOOKUP(B53,Funding,Funding!$HN$2,FALSE))","v":0.22957600827300931},{"$f":"IFERROR((VLOOKUP(B53,Other_data,Other!$D$3,FALSE)+VLOOKUP(B53,Other_data,Other!$E$3,FALSE)+VLOOKUP(B53,Other_data,Other!$F$3,FALSE)), \"x\")","v":1700},{"$f":"(VLOOKUP(B53,Other_data,Other!$AK$3,FALSE)+VLOOKUP(B53,Other_data,Other!$AL$3,FALSE))/VLOOKUP(B53,Other_data,Other!$AJ$3,FALSE)","v":4.0573481880067173E-2},{"$f":"(VLOOKUP(B53,Other_data,Other!$AR$3,FALSE)+VLOOKUP(B53,Other_data,Other!$AS$3,FALSE))/VLOOKUP(B53,Other_data,Other!$AQ$3,FALSE)","v":5.8620235665854781E-2},{"$f":"VLOOKUP(B53,Other_data,Other!$AP$3,FALSE)/VLOOKUP(B53,Other_data,Other!$AJ$3,FALSE)","v":8.5588920387858654E-3},{"$f":"VLOOKUP(B53,Other_data,Other!$AW$3,FALSE)/VLOOKUP(B53,Other_data,Other!$AQ$3,FALSE)","v":1.3955631623987887E-2}]
[48,204,"Hackney",{"$f":"IFERROR((VLOOKUP($B54,Pupils,Pupils!$D$3,FALSE)/VLOOKUP($B54,Pupils,Pupils!$C$3,FALSE)), \"x\")","v":2.9542142336652904E-2},{"$f":"IFERROR((VLOOKUP($B54,Pupils,Pupils!$G$3,FALSE)/VLOOKUP($B54,Pupils,Pupils!$F$3,FALSE)),\"x\")","v":3.1380261844654492E-2},{"$f":"IFERROR((VLOOKUP($B54,Pupils,Pupils!$J$3,FALSE)/VLOOKUP($B54,Pupils,Pupils!$I$3,FALSE)), \"x\")","v":3.1232140816093268E-2},{"$f":"IFERROR((VLOOKUP($B54,Pupils,Pupils!$M$3,FALSE)/VLOOKUP($B54,Pupils,Pupils!$L$3,FALSE)), \"x\")","v":3.183117767188564E-2},{"$f":"IFERROR((VLOOKUP($B54,Pupils,Pupils!$R$3,FALSE)/VLOOKUP($B54,Pupils,Pupils!$Q$3,FALSE)), \"x\")","v":3.1816776586974446E-2},{"$f":"IFERROR((VLOOKUP($B54,Pupils,Pupils!$W$3,FALSE)/VLOOKUP($B54,Pupils,Pupils!$V$3,FALSE)), \"x\")","v":3.206461877371191E-2},{"$f":"IFERROR(((VLOOKUP($B54,Pupils,Pupils!$D$3,FALSE)+VLOOKUP($B54,Pupils,Pupils!$E$3,FALSE))/VLOOKUP($B54,Pupils,Pupils!$C$3,FALSE)), \"x\")","v":0.21997206703910616},{"$f":"IFERROR(((VLOOKUP($B54,Pupils,Pupils!$G$3,FALSE)+VLOOKUP($B54,Pupils,Pupils!$H$3,FALSE))/VLOOKUP($B54,Pupils,Pupils!$F$3,FALSE)), \"x\")","v":0.22233311806493278},{"$f":"IFERROR(((VLOOKUP($B54,Pupils,Pupils!$J$3,FALSE)+VLOOKUP($B54,Pupils,Pupils!$K$3,FALSE))/VLOOKUP($B54,Pupils,Pupils!$I$3,FALSE)), \"x\")","v":0.22371128128929021},{"$f":"IFERROR(((VLOOKUP($B54,Pupils,Pupils!$M$3,FALSE)+VLOOKUP($B54,Pupils,Pupils!$P$3,FALSE))/VLOOKUP($B54,Pupils,Pupils!$L$3,FALSE)), \"x\")","v":0.2189788972089857},{"$f":"IFERROR(((VLOOKUP($B54,Pupils,Pupils!$R$3,FALSE)+VLOOKUP($B54,Pupils,Pupils!$U$3,FALSE))/VLOOKUP($B54,Pupils,Pupils!$Q$3,FALSE)), \"x\")","v":0.21140766694146743},{"$f":"IFERROR(((VLOOKUP($B54,Pupils,Pupils!$W$3,FALSE)+VLOOKUP($B54,Pupils,Pupils!$Z$3,FALSE))/VLOOKUP($B54,Pupils,Pupils!$V$3,FALSE)), \"x\")","v":0.20545832823399829},{"$f":"(SUM(INDEX(Pupils!$AB$7:$AB$159,MATCH($B54,Pupils!$A$7:$A$159,0)),INDEX(Pupils!$AC$7:$AC$159,MATCH($B54,Pupils!$A$7:$A$159,0)),INDEX(Pupils!$AD$7:$AD$159,MATCH($B54,Pupils!$A$7:$A$159,0)),INDEX(Pupils!$AE$7:$AE$159,MATCH($B54,Pupils!$A$7:$A$159,0))))/SUM(INDEX(Pupils!$AB$7:$AM$159,MATCH($B54,Pupils!$A$7:$A$159,0),0))","v":0.28206400396923842},{"$f":"SUM(INDEX(Pupils!$AF$7:$AF$159,MATCH($B54,Pupils!$A$7:$A$159,0)))/SUM(INDEX(Pupils!$AB$7:$AM$159,MATCH($B54,Pupils!$A$7:$A$159,0),0))","v":0.22401389233440833},{"$f":"SUM(INDEX(Pupils!$AG$7:$AG$159,MATCH($B54,Pupils!$A$7:$A$159,0)))/SUM(INDEX(Pupils!$AB$7:$AM$159,MATCH($B54,Pupils!$A$7:$A$159,0),0))","v":0.33416025800049615},{"$f":"(SUM(INDEX(Pupils!$AH$7:$AH$159,MATCH($B54,Pupils!$A$7:$A$159,0)),INDEX(Pupils!$AI$7:$AI$159,MATCH($B54,Pupils!$A$7:$A$159,0)),INDEX(Pupils!$AJ$7:$AJ$159,MATCH($B54,Pupils!$A$7:$A$159,0))))/SUM(INDEX(Pupils!$AB$7:$AM$159,MATCH($B54,Pupils!$A$7:$A$159,0),0))","v":2.2078888613247333E-2},{"$f":"SUM(INDEX(Pupils!$AK$7:$AK$159,MATCH($B54,Pupils!$A$7:$A$159,0)))/SUM(INDEX(Pupils!$AB$7:$AM$159,MATCH($B54,Pupils!$A$7:$A$159,0),0))","v":1.5380798809228479E-2},{"$f":"SUM(INDEX(Pupils!$AL$7:$AL$159,MATCH($B54,Pupils!$A$7:$A$159,0)))/SUM(INDEX(Pupils!$AB$7:$AM$159,MATCH($B54,Pupils!$A$7:$A$159,0),0))","v":8.9555941453733565E-2},{"$f":"SUM(INDEX(Pupils!$AM$7:$AM$159,MATCH($B54,Pupils!$A$7:$A$159,0)))/SUM(INDEX(Pupils!$AB$7:$AM$159,MATCH($B54,Pupils!$A$7:$A$159,0),0))","v":3.2746216819647733E-2},{"$f":"(SUM(INDEX(Pupils!$BH$7:$BH$159,MATCH($B54,Pupils!$A$7:$A$159,0)),INDEX(Pupils!$BK$7:$BK$159,MATCH($B54,Pupils!$A$7:$A$159,0)),INDEX(Pupils!$BO$7:$BO$159,MATCH($B54,Pupils!$A$7:$A$159,0))))/SUM(INDEX(Pupils!$BH$7:$BS$159,MATCH($B54,Pupils!$A$7:$A$159,0),0))","v":0.6316165951359084},{"$f":"(SUM(INDEX(Pupils!$BL$7:$BL$159,MATCH($B54,Pupils!$A$7:$A$159,0)),INDEX(Pupils!$BM$7:$BM$159,MATCH($B54,Pupils!$A$7:$A$159,0)),INDEX(Pupils!$BP$7:$BP$159,MATCH($B54,Pupils!$A$7:$A$159,0))))/SUM(INDEX(Pupils!$BH$7:$BS$159,MATCH($B54,Pupils!$A$7:$A$159,0),0))","v":0.31616595135908443},{"$f":"(SUM(INDEX(Pupils!$BI$7:$BI$159,MATCH($B54,Pupils!$A$7:$A$159,0)),INDEX(Pupils!$BJ$7:$BJ$159,MATCH($B54,Pupils!$A$7:$A$159,0))))/SUM(INDEX(Pupils!$BH$7:$BS$159,MATCH($B54,Pupils!$A$7:$A$159,0),0))","v":3.5050071530758224E-2},{"$f":"(SUM(INDEX(Pupils!$BQ$7:$BQ$159,MATCH($B54,Pupils!$A$7:$A$159,0)),INDEX(Pupils!$BR$7:$BR$159,MATCH($B54,Pupils!$A$7:$A$159,0)),INDEX(Pupils!$BN$7:$BN$159,MATCH($B54,Pupils!$A$7:$A$159,0)),INDEX(Pupils!$BS$7:$BS$159,MATCH($B54,Pupils!$A$7:$A$159,0))))/SUM(INDEX(Pupils!$BH$7:$BS$159,MATCH($B54,Pupils!$A$7:$A$159,0),0))","v":1.7167381974248927E-2},{"$f":"IFERROR((VLOOKUP(B54,Funding,Funding!$C$2,FALSE)), \"x\")","v":31389691.900000002},{"$f":"IFERROR((AA54/VLOOKUP(B54,Funding,Funding!$D$2,FALSE)), \"x\")","v":0.1534789134582823},{"$f":"IFERROR((AA54/(VLOOKUP(B54,Pupils,Pupils!$M$3,FALSE)+VLOOKUP(B54,Pupils,Pupils!$P$3,FALSE))), \"x\")","v":3903.2195846804279},{"$f":"IFERROR((VLOOKUP(B54,Funding,Funding!$E$2,FALSE)), \"x\")","v":35207205.92328801},{"$f":"IFERROR((AD54/VLOOKUP(B54,Funding,Funding!$F$2,FALSE)), \"x\")","v":0.161505240888906},{"$f":"IFERROR((AD54/(VLOOKUP(B54,Pupils,Pupils!$R$3,FALSE)+VLOOKUP(B54,Pupils,Pupils!$U$3,FALSE))), \"x\")","v":4290.4223645244956},{"$f":"IFERROR((VLOOKUP(B54,Funding,Funding!$G$2,FALSE)), \"x\")","v":36092656.211567909},{"$f":"IFERROR((AG54/VLOOKUP(B54,Funding,Funding!$H$2,FALSE)), \"x\")","v":0.1594123542501884},{"$f":"IFERROR((AG54/(VLOOKUP(B54,Pupils,Pupils!$W$3,FALSE)+VLOOKUP(B54,Pupils,Pupils!$Z$3,FALSE))), \"x\")","v":4299.8160842944853},{"$f":"IFERROR((VLOOKUP(B54,Funding,Funding!$I$2,FALSE)), \"x\")","v":36394709.661972865},{"$f":"IFERROR((AJ54/VLOOKUP(B54,Funding,Funding!$J$2,FALSE)), \"x\")","v":0.14166602309014176},null,{"$f":"IFERROR((VLOOKUP($B54,Funding,Funding!$EC$2,FALSE)), \"x\")","v":12533435.23},{"$f":"IFERROR((AM54/VLOOKUP($B54,Funding,Funding!$EU$2,FALSE)), \"x\")","v":6.5059279377470483E-2},{"$f":"IFERROR((AM54/(VLOOKUP($B54,Pupils,Pupils!$D$3,FALSE)+VLOOKUP($B54,Pupils,Pupils!$E$3,FALSE))), \"x\")","v":1729.9427508626641},{"$f":"IFERROR((VLOOKUP($B54,Funding,Funding!$DA$2,FALSE)), \"x\")","v":14355236.197069999},{"$f":"IFERROR((AP54/VLOOKUP($B54,Funding,Funding!$DT$2,FALSE)), \"x\")","v":7.0948199271581677E-2},{"$f":"IFERROR((AP54/(VLOOKUP($B54,Pupils,Pupils!$G$3,FALSE)+VLOOKUP($B54,Pupils,Pupils!$H$3,FALSE))), \"x\")","v":1895.3308947808289},{"$f":"IFERROR((VLOOKUP($B54,Funding,Funding!$CE$2,FALSE)), \"x\")","v":14529832},{"$f":"IFERROR((AS54/VLOOKUP($B54,Funding,Funding!$CR$2,FALSE)), \"x\")","v":7.0599652099550061E-2},{"$f":"IFERROR((AS54/(VLOOKUP($B54,Pupils,Pupils!$J$3,FALSE)+VLOOKUP($B54,Pupils,Pupils!$K$3,FALSE))), \"x\")","v":1855.898837654873},{"$f":"IFERROR((VLOOKUP($B54,Funding,Funding!$BM$2,FALSE)), \"x\")","v":19615174},{"$f":"IFERROR((AV54/VLOOKUP($B54,Funding,Funding!$BY$2,FALSE)), \"x\")","v":9.5761177837623404E-2},{"$f":"IFERROR((AV54/(VLOOKUP($B54,Pupils,Pupils!$M$3,FALSE)+VLOOKUP($B54,Pupils,Pupils!$P$3,FALSE))), \"x\")","v":2439.091519522507},{"$f":"IFERROR((VLOOKUP($B54,Funding,Funding!$AQ$2,FALSE)), \"x\")","v":34481890},{"$f":"IFERROR((AY54/VLOOKUP($B54,Funding,Funding!$BE$2,FALSE)), \"x\")","v":0.15610837679126524},{"$f":"IFERROR((AY54/(VLOOKUP($B54,Pupils,Pupils!$R$3,FALSE)+VLOOKUP($B54,Pupils,Pupils!$U$3,FALSE))), \"x\")","v":4202.0338776504996},{"$f":"IFERROR((VLOOKUP($B54,Funding,Funding!$S$2,FALSE)), \"x\")","v":35456210},{"$f":"IFERROR((BB54/VLOOKUP($B54,Funding,Funding!$AH$2,FALSE)), \"x\")","v":0.1532322563934555},{"$f":"IFERROR((BB54/(VLOOKUP(B54,Pupils,Pupils!$W$3,FALSE)+VLOOKUP(B54,Pupils,Pupils!$Z$3,FALSE))), \"x\")","v":4223.9945198951636},{"$f":"IFERROR((VLOOKUP($B54,Funding,Funding!$GX$2,FALSE)), \"x\")","v":26785258.588239998},{"$f":"IFERROR((BE54/VLOOKUP($B54,Funding,Funding!$HC$2,FALSE)), \"x\")","v":0.12523531628680876},{"$f":"IFERROR((BE54/(VLOOKUP($B54,Pupils,Pupils!$D$3,FALSE)+VLOOKUP($B54,Pupils,Pupils!$E$3,FALSE))), \"x\")","v":3697.0681281214629},{"$f":"IFERROR((VLOOKUP($B54,Funding,Funding!$GP$2,FALSE)), \"x\")","v":28672371},{"$f":"IFERROR((BH54/VLOOKUP($B54,Funding,Funding!$GU$2,FALSE)), \"x\")","v":0.13407262512393095},{"$f":"IFERROR((BH54/(VLOOKUP($B54,Pupils,Pupils!$G$3,FALSE)+VLOOKUP($B54,Pupils,Pupils!$H$3,FALSE))), \"x\")","v":3785.6312384473199},{"$f":"IFERROR((VLOOKUP($B54,Funding,Funding!$GH$2,FALSE)), \"x\")","v":30169327.699999999},{"$f":"IFERROR((BK54/VLOOKUP($B54,Funding,Funding!$GM$2,FALSE)), \"x\")","v":0.14100758466815322},{"$f":"IFERROR((BK54/(VLOOKUP($B54,Pupils,Pupils!$J$3,FALSE)+VLOOKUP($B54,Pupils,Pupils!$K$3,FALSE))), \"x\")","v":3853.5352790905608},{"$f":"IFERROR((VLOOKUP($B54,Funding,Funding!$FZ$2,FALSE)), \"x\")","v":32251271},{"$f":"IFERROR((BN54/VLOOKUP($B54,Funding,Funding!$GE$2,FALSE)), \"x\")","v":0.14858449583715491},{"$f":"IFERROR((BN54/(VLOOKUP($B54,Pupils,Pupils!$M$3,FALSE)+VLOOKUP($B54,Pupils,Pupils!$P$3,FALSE))), \"x\")","v":4010.3545138025365},{"$f":"IFERROR((VLOOKUP($B54,Funding,Funding!$FD$2,FALSE)), \"x\")","v":36812470},{"$f":"IFERROR((BQ54/VLOOKUP($B54,Funding,Funding!$FR$2,FALSE)), \"x\")","v":0.17375360097994041},{"$f":"IFERROR((BQ54/(VLOOKUP($B54,Pupils,Pupils!$R$3,FALSE)+VLOOKUP($B54,Pupils,Pupils!$U$3,FALSE))), \"x\")","v":4486.0431391664633},{"$f":"(VLOOKUP(B54,Funding,Funding!$HK$2,FALSE)+VLOOKUP(B54,Funding,Funding!$HL$2,FALSE)+VLOOKUP(B54,Funding,Funding!$HM$2,FALSE))/(VLOOKUP(B54,Funding,Funding!$HN$2,FALSE))","v":0.18935643564356436},{"$f":"IFERROR((VLOOKUP(B54,Other_data,Other!$D$3,FALSE)+VLOOKUP(B54,Other_data,Other!$E$3,FALSE)+VLOOKUP(B54,Other_data,Other!$F$3,FALSE)), \"x\")","v":1380},{"$f":"(VLOOKUP(B54,Other_data,Other!$AK$3,FALSE)+VLOOKUP(B54,Other_data,Other!$AL$3,FALSE))/VLOOKUP(B54,Other_data,Other!$AJ$3,FALSE)","v":3.6199980432443012E-2},{"$f":"(VLOOKUP(B54,Other_data,Other!$AR$3,FALSE)+VLOOKUP(B54,Other_data,Other!$AS$3,FALSE))/VLOOKUP(B54,Other_data,Other!$AQ$3,FALSE)","v":5.105057376267523E-2},{"$f":"VLOOKUP(B54,Other_data,Other!$AP$3,FALSE)/VLOOKUP(B54,Other_data,Other!$AJ$3,FALSE)","v":1.0038156736131494E-2},{"$f":"VLOOKUP(B54,Other_data,Other!$AW$3,FALSE)/VLOOKUP(B54,Other_data,Other!$AQ$3,FALSE)","v":1.4558631870053086E-2}]
[49,876,"Halton",{"$f":"IFERROR((VLOOKUP($B55,Pupils,Pupils!$D$3,FALSE)/VLOOKUP($B55,Pupils,Pupils!$C$3,FALSE)), \"x\")","v":3.2844126793605759E-2},{"$f":"IFERROR((VLOOKUP($B55,Pupils,Pupils!$G$3,FALSE)/VLOOKUP($B55,Pupils,Pupils!$F$3,FALSE)),\"x\")","v":2.8987092539925617E-2},{"$f":"IFERROR((VLOOKUP($B55,Pupils,Pupils!$J$3,FALSE)/VLOOKUP($B55,Pupils,Pupils!$I$3,FALSE)), \"x\")","v":2.6246719160104987E-2},{"$f":"IFERROR((VLOOKUP($B55,Pupils,Pupils!$M$3,FALSE)/VLOOKUP($B55,Pupils,Pupils!$L$3,FALSE)), \"x\")","v":2.5267993874425729E-2},{"$f":"IFERROR((VLOOKUP($B55,Pupils,Pupils!$R$3,FALSE)/VLOOKUP($B55,Pupils,Pupils!$Q$3,FALSE)), \"x\")","v":2.3343780395547391E-2},{"$f":"IFERROR((VLOOKUP($B55,Pupils,Pupils!$W$3,FALSE)/VLOOKUP($B55,Pupils,Pupils!$V$3,FALSE)), \"x\")","v":2.2774770912598469E-2},{"$f":"IFERROR(((VLOOKUP($B55,Pupils,Pupils!$D$3,FALSE)+VLOOKUP($B55,Pupils,Pupils!$E$3,FALSE))/VLOOKUP($B55,Pupils,Pupils!$C$3,FALSE)), \"x\")","v":0.25980686344044956},{"$f":"IFERROR(((VLOOKUP($B55,Pupils,Pupils!$G$3,FALSE)+VLOOKUP($B55,Pupils,Pupils!$H$3,FALSE))/VLOOKUP($B55,Pupils,Pupils!$F$3,FALSE)), \"x\")","v":0.26750164077882299},{"$f":"IFERROR(((VLOOKUP($B55,Pupils,Pupils!$J$3,FALSE)+VLOOKUP($B55,Pupils,Pupils!$K$3,FALSE))/VLOOKUP($B55,Pupils,Pupils!$I$3,FALSE)), \"x\")","v":0.24589895013123358},{"$f":"IFERROR(((VLOOKUP($B55,Pupils,Pupils!$M$3,FALSE)+VLOOKUP($B55,Pupils,Pupils!$P$3,FALSE))/VLOOKUP($B55,Pupils,Pupils!$L$3,FALSE)), \"x\")","v":0.22588055130168452},{"$f":"IFERROR(((VLOOKUP($B55,Pupils,Pupils!$R$3,FALSE)+VLOOKUP($B55,Pupils,Pupils!$U$3,FALSE))/VLOOKUP($B55,Pupils,Pupils!$Q$3,FALSE)), \"x\")","v":0.20982384091645953},{"$f":"IFERROR(((VLOOKUP($B55,Pupils,Pupils!$W$3,FALSE)+VLOOKUP($B55,Pupils,Pupils!$Z$3,FALSE))/VLOOKUP($B55,Pupils,Pupils!$V$3,FALSE)), \"x\")","v":0.20545522747977066},{"$f":"(SUM(INDEX(Pupils!$AB$7:$AB$159,MATCH($B55,Pupils!$A$7:$A$159,0)),INDEX(Pupils!$AC$7:$AC$159,MATCH($B55,Pupils!$A$7:$A$159,0)),INDEX(Pupils!$AD$7:$AD$159,MATCH($B55,Pupils!$A$7:$A$159,0)),INDEX(Pupils!$AE$7:$AE$159,MATCH($B55,Pupils!$A$7:$A$159,0))))/SUM(INDEX(Pupils!$AB$7:$AM$159,MATCH($B55,Pupils!$A$7:$A$159,0),0))","v":0.27316486161251502},{"$f":"SUM(INDEX(Pupils!$AF$7:$AF$159,MATCH($B55,Pupils!$A$7:$A$159,0)))/SUM(INDEX(Pupils!$AB$7:$AM$159,MATCH($B55,Pupils!$A$7:$A$159,0),0))","v":0.23766546329723226},{"$f":"SUM(INDEX(Pupils!$AG$7:$AG$159,MATCH($B55,Pupils!$A$7:$A$159,0)))/SUM(INDEX(Pupils!$AB$7:$AM$159,MATCH($B55,Pupils!$A$7:$A$159,0),0))","v":0.22021660649819494},{"$f":"(SUM(INDEX(Pupils!$AH$7:$AH$159,MATCH($B55,Pupils!$A$7:$A$159,0)),INDEX(Pupils!$AI$7:$AI$159,MATCH($B55,Pupils!$A$7:$A$159,0)),INDEX(Pupils!$AJ$7:$AJ$159,MATCH($B55,Pupils!$A$7:$A$159,0))))/SUM(INDEX(Pupils!$AB$7:$AM$159,MATCH($B55,Pupils!$A$7:$A$159,0),0))","v":4.1516245487364621E-2},{"$f":"SUM(INDEX(Pupils!$AK$7:$AK$159,MATCH($B55,Pupils!$A$7:$A$159,0)))/SUM(INDEX(Pupils!$AB$7:$AM$159,MATCH($B55,Pupils!$A$7:$A$159,0),0))","v":4.2117930204572801E-2},{"$f":"SUM(INDEX(Pupils!$AL$7:$AL$159,MATCH($B55,Pupils!$A$7:$A$159,0)))/SUM(INDEX(Pupils!$AB$7:$AM$159,MATCH($B55,Pupils!$A$7:$A$159,0),0))","v":0.1125150421179302},{"$f":"SUM(INDEX(Pupils!$AM$7:$AM$159,MATCH($B55,Pupils!$A$7:$A$159,0)))/SUM(INDEX(Pupils!$AB$7:$AM$159,MATCH($B55,Pupils!$A$7:$A$159,0),0))","v":7.2803850782190135E-2},{"$f":"(SUM(INDEX(Pupils!$BH$7:$BH$159,MATCH($B55,Pupils!$A$7:$A$159,0)),INDEX(Pupils!$BK$7:$BK$159,MATCH($B55,Pupils!$A$7:$A$159,0)),INDEX(Pupils!$BO$7:$BO$159,MATCH($B55,Pupils!$A$7:$A$159,0))))/SUM(INDEX(Pupils!$BH$7:$BS$159,MATCH($B55,Pupils!$A$7:$A$159,0),0))","v":0.25179856115107913},{"$f":"(SUM(INDEX(Pupils!$BL$7:$BL$159,MATCH($B55,Pupils!$A$7:$A$159,0)),INDEX(Pupils!$BM$7:$BM$159,MATCH($B55,Pupils!$A$7:$A$159,0)),INDEX(Pupils!$BP$7:$BP$159,MATCH($B55,Pupils!$A$7:$A$159,0))))/SUM(INDEX(Pupils!$BH$7:$BS$159,MATCH($B55,Pupils!$A$7:$A$159,0),0))","v":0.72422062350119909},{"$f":"(SUM(INDEX(Pupils!$BI$7:$BI$159,MATCH($B55,Pupils!$A$7:$A$159,0)),INDEX(Pupils!$BJ$7:$BJ$159,MATCH($B55,Pupils!$A$7:$A$159,0))))/SUM(INDEX(Pupils!$BH$7:$BS$159,MATCH($B55,Pupils!$A$7:$A$159,0),0))","v":2.3980815347721823E-2},{"$f":"(SUM(INDEX(Pupils!$BQ$7:$BQ$159,MATCH($B55,Pupils!$A$7:$A$159,0)),INDEX(Pupils!$BR$7:$BR$159,MATCH($B55,Pupils!$A$7:$A$159,0)),INDEX(Pupils!$BN$7:$BN$159,MATCH($B55,Pupils!$A$7:$A$159,0)),INDEX(Pupils!$BS$7:$BS$159,MATCH($B55,Pupils!$A$7:$A$159,0))))/SUM(INDEX(Pupils!$BH$7:$BS$159,MATCH($B55,Pupils!$A$7:$A$159,0),0))","v":0},{"$f":"IFERROR((VLOOKUP(B55,Funding,Funding!$C$2,FALSE)), \"x\")","v":13150126.01},{"$f":"IFERROR((AA55/VLOOKUP(B55,Funding,Funding!$D$2,FALSE)), \"x\")","v":0.13417245375585302},{"$f":"IFERROR((AA55/(VLOOKUP(B55,Pupils,Pupils!$M$3,FALSE)+VLOOKUP(B55,Pupils,Pupils!$P$3,FALSE))), \"x\")","v":3184.049881355932},{"$f":"IFERROR((VLOOKUP(B55,Funding,Funding!$E$2,FALSE)), \"x\")","v":13887823.844936615},{"$f":"IFERROR((AD55/VLOOKUP(B55,Funding,Funding!$F$2,FALSE)), \"x\")","v":0.13673154815051819},{"$f":"IFERROR((AD55/(VLOOKUP(B55,Pupils,Pupils!$R$3,FALSE)+VLOOKUP(B55,Pupils,Pupils!$U$3,FALSE))), \"x\")","v":3576.570652829414},{"$f":"IFERROR((VLOOKUP(B55,Funding,Funding!$G$2,FALSE)), \"x\")","v":14193053.435310928},{"$f":"IFERROR((AG55/VLOOKUP(B55,Funding,Funding!$H$2,FALSE)), \"x\")","v":0.13882801218792007},{"$f":"IFERROR((AG55/(VLOOKUP(B55,Pupils,Pupils!$W$3,FALSE)+VLOOKUP(B55,Pupils,Pupils!$Z$3,FALSE))), \"x\")","v":3701.8918714947649},{"$f":"IFERROR((VLOOKUP(B55,Funding,Funding!$I$2,FALSE)), \"x\")","v":14458052.178860752},{"$f":"IFERROR((AJ55/VLOOKUP(B55,Funding,Funding!$J$2,FALSE)), \"x\")","v":0.14087000583491582},null,{"$f":"IFERROR((VLOOKUP($B55,Funding,Funding!$EC$2,FALSE)), \"x\")","v":7963081},{"$f":"IFERROR((AM55/VLOOKUP($B55,Funding,Funding!$EU$2,FALSE)), \"x\")","v":8.4750358825729358E-2},{"$f":"IFERROR((AM55/(VLOOKUP($B55,Pupils,Pupils!$D$3,FALSE)+VLOOKUP($B55,Pupils,Pupils!$E$3,FALSE))), \"x\")","v":1672.2135657286854},{"$f":"IFERROR((VLOOKUP($B55,Funding,Funding!$DA$2,FALSE)), \"x\")","v":8224948},{"$f":"IFERROR((AP55/VLOOKUP($B55,Funding,Funding!$DT$2,FALSE)), \"x\")","v":8.591296250543462E-2},{"$f":"IFERROR((AP55/(VLOOKUP($B55,Pupils,Pupils!$G$3,FALSE)+VLOOKUP($B55,Pupils,Pupils!$H$3,FALSE))), \"x\")","v":1681.6495604170925},{"$f":"IFERROR((VLOOKUP($B55,Funding,Funding!$CE$2,FALSE)), \"x\")","v":9269428},{"$f":"IFERROR((AS55/VLOOKUP($B55,Funding,Funding!$CR$2,FALSE)), \"x\")","v":9.1432065817315902E-2},{"$f":"IFERROR((AS55/(VLOOKUP($B55,Pupils,Pupils!$J$3,FALSE)+VLOOKUP($B55,Pupils,Pupils!$K$3,FALSE))), \"x\")","v":2061.247053591283},{"$f":"IFERROR((VLOOKUP($B55,Funding,Funding!$BM$2,FALSE)), \"x\")","v":9513591.4400000013},{"$f":"IFERROR((AV55/VLOOKUP($B55,Funding,Funding!$BY$2,FALSE)), \"x\")","v":0.10301838401967134},{"$f":"IFERROR((AV55/(VLOOKUP($B55,Pupils,Pupils!$M$3,FALSE)+VLOOKUP($B55,Pupils,Pupils!$P$3,FALSE))), \"x\")","v":2303.5330363196131},{"$f":"IFERROR((VLOOKUP($B55,Funding,Funding!$AQ$2,FALSE)), \"x\")","v":13654257},{"$f":"IFERROR((AY55/VLOOKUP($B55,Funding,Funding!$BE$2,FALSE)), \"x\")","v":0.14358572099165326},{"$f":"IFERROR((AY55/(VLOOKUP($B55,Pupils,Pupils!$R$3,FALSE)+VLOOKUP($B55,Pupils,Pupils!$U$3,FALSE))), \"x\")","v":3516.4195209889263},{"$f":"IFERROR((VLOOKUP($B55,Funding,Funding!$S$2,FALSE)), \"x\")","v":7926053},{"$f":"IFERROR((BB55/VLOOKUP($B55,Funding,Funding!$AH$2,FALSE)), \"x\")","v":8.3530762932806812E-2},{"$f":"IFERROR((BB55/(VLOOKUP(B55,Pupils,Pupils!$W$3,FALSE)+VLOOKUP(B55,Pupils,Pupils!$Z$3,FALSE))), \"x\")","v":2067.3064684402711},{"$f":"IFERROR((VLOOKUP($B55,Funding,Funding!$GX$2,FALSE)), \"x\")","v":12661543.27761},{"$f":"IFERROR((BE55/VLOOKUP($B55,Funding,Funding!$HC$2,FALSE)), \"x\")","v":0.12010509418127223},{"$f":"IFERROR((BE55/(VLOOKUP($B55,Pupils,Pupils!$D$3,FALSE)+VLOOKUP($B55,Pupils,Pupils!$E$3,FALSE))), \"x\")","v":2658.8709108798826},{"$f":"IFERROR((VLOOKUP($B55,Funding,Funding!$GP$2,FALSE)), \"x\")","v":11357887.01},{"$f":"IFERROR((BH55/VLOOKUP($B55,Funding,Funding!$GU$2,FALSE)), \"x\")","v":0.10868092613094457},{"$f":"IFERROR((BH55/(VLOOKUP($B55,Pupils,Pupils!$G$3,FALSE)+VLOOKUP($B55,Pupils,Pupils!$H$3,FALSE))), \"x\")","v":2322.2013923533018},{"$f":"IFERROR((VLOOKUP($B55,Funding,Funding!$GH$2,FALSE)), \"x\")","v":11428603.960000001},{"$f":"IFERROR((BK55/VLOOKUP($B55,Funding,Funding!$GM$2,FALSE)), \"x\")","v":0.11616351297921998},{"$f":"IFERROR((BK55/(VLOOKUP($B55,Pupils,Pupils!$J$3,FALSE)+VLOOKUP($B55,Pupils,Pupils!$K$3,FALSE))), \"x\")","v":2541.3840249054929},{"$f":"IFERROR((VLOOKUP($B55,Funding,Funding!$FZ$2,FALSE)), \"x\")","v":8327532.4700000007},{"$f":"IFERROR((BN55/VLOOKUP($B55,Funding,Funding!$GE$2,FALSE)), \"x\")","v":9.076820693400818E-2},{"$f":"IFERROR((BN55/(VLOOKUP($B55,Pupils,Pupils!$M$3,FALSE)+VLOOKUP($B55,Pupils,Pupils!$P$3,FALSE))), \"x\")","v":2016.351687651332},{"$f":"IFERROR((VLOOKUP($B55,Funding,Funding!$FD$2,FALSE)), \"x\")","v":12294015.720000001},{"$f":"IFERROR((BQ55/VLOOKUP($B55,Funding,Funding!$FR$2,FALSE)), \"x\")","v":0.12957191682986591},{"$f":"IFERROR((BQ55/(VLOOKUP($B55,Pupils,Pupils!$R$3,FALSE)+VLOOKUP($B55,Pupils,Pupils!$U$3,FALSE))), \"x\")","v":3166.1127272727276},{"$f":"(VLOOKUP(B55,Funding,Funding!$HK$2,FALSE)+VLOOKUP(B55,Funding,Funding!$HL$2,FALSE)+VLOOKUP(B55,Funding,Funding!$HM$2,FALSE))/(VLOOKUP(B55,Funding,Funding!$HN$2,FALSE))","v":0.19476268412438624},{"$f":"IFERROR((VLOOKUP(B55,Other_data,Other!$D$3,FALSE)+VLOOKUP(B55,Other_data,Other!$E$3,FALSE)+VLOOKUP(B55,Other_data,Other!$F$3,FALSE)), \"x\")","v":910},{"$f":"(VLOOKUP(B55,Other_data,Other!$AK$3,FALSE)+VLOOKUP(B55,Other_data,Other!$AL$3,FALSE))/VLOOKUP(B55,Other_data,Other!$AJ$3,FALSE)","v":3.9765659483969346E-2},{"$f":"(VLOOKUP(B55,Other_data,Other!$AR$3,FALSE)+VLOOKUP(B55,Other_data,Other!$AS$3,FALSE))/VLOOKUP(B55,Other_data,Other!$AQ$3,FALSE)","v":5.8435241801000556E-2},{"$f":"VLOOKUP(B55,Other_data,Other!$AP$3,FALSE)/VLOOKUP(B55,Other_data,Other!$AJ$3,FALSE)","v":6.019020103527146E-3},{"$f":"VLOOKUP(B55,Other_data,Other!$AW$3,FALSE)/VLOOKUP(B55,Other_data,Other!$AQ$3,FALSE)","v":1.3410227904391328E-2}]
[50,205,"Hammersmith and Fulham",{"$f":"IFERROR((VLOOKUP($B56,Pupils,Pupils!$D$3,FALSE)/VLOOKUP($B56,Pupils,Pupils!$C$3,FALSE)), \"x\")","v":3.0674324611784726E-2},{"$f":"IFERROR((VLOOKUP($B56,Pupils,Pupils!$G$3,FALSE)/VLOOKUP($B56,Pupils,Pupils!$F$3,FALSE)),\"x\")","v":3.1792389853137516E-2},{"$f":"IFERROR((VLOOKUP($B56,Pupils,Pupils!$J$3,FALSE)/VLOOKUP($B56,Pupils,Pupils!$I$3,FALSE)), \"x\")","v":3.1809226727959286E-2},{"$f":"IFERROR((VLOOKUP($B56,Pupils,Pupils!$M$3,FALSE)/VLOOKUP($B56,Pupils,Pupils!$L$3,FALSE)), \"x\")","v":3.1196868451227711E-2},{"$f":"IFERROR((VLOOKUP($B56,Pupils,Pupils!$R$3,FALSE)/VLOOKUP($B56,Pupils,Pupils!$Q$3,FALSE)), \"x\")","v":3.2910511253770591E-2},{"$f":"IFERROR((VLOOKUP($B56,Pupils,Pupils!$W$3,FALSE)/VLOOKUP($B56,Pupils,Pupils!$V$3,FALSE)), \"x\")","v":3.2914880587875076E-2},{"$f":"IFERROR(((VLOOKUP($B56,Pupils,Pupils!$D$3,FALSE)+VLOOKUP($B56,Pupils,Pupils!$E$3,FALSE))/VLOOKUP($B56,Pupils,Pupils!$C$3,FALSE)), \"x\")","v":0.22552648372686662},{"$f":"IFERROR(((VLOOKUP($B56,Pupils,Pupils!$G$3,FALSE)+VLOOKUP($B56,Pupils,Pupils!$H$3,FALSE))/VLOOKUP($B56,Pupils,Pupils!$F$3,FALSE)), \"x\")","v":0.23151702269692923},{"$f":"IFERROR(((VLOOKUP($B56,Pupils,Pupils!$J$3,FALSE)+VLOOKUP($B56,Pupils,Pupils!$K$3,FALSE))/VLOOKUP($B56,Pupils,Pupils!$I$3,FALSE)), \"x\")","v":0.22089968806435725},{"$f":"IFERROR(((VLOOKUP($B56,Pupils,Pupils!$M$3,FALSE)+VLOOKUP($B56,Pupils,Pupils!$P$3,FALSE))/VLOOKUP($B56,Pupils,Pupils!$L$3,FALSE)), \"x\")","v":0.21608477323949232},{"$f":"IFERROR(((VLOOKUP($B56,Pupils,Pupils!$R$3,FALSE)+VLOOKUP($B56,Pupils,Pupils!$U$3,FALSE))/VLOOKUP($B56,Pupils,Pupils!$Q$3,FALSE)), \"x\")","v":0.19928068682806094},{"$f":"IFERROR(((VLOOKUP($B56,Pupils,Pupils!$W$3,FALSE)+VLOOKUP($B56,Pupils,Pupils!$Z$3,FALSE))/VLOOKUP($B56,Pupils,Pupils!$V$3,FALSE)), \"x\")","v":0.18700244947948561},{"$f":"(SUM(INDEX(Pupils!$AB$7:$AB$159,MATCH($B56,Pupils!$A$7:$A$159,0)),INDEX(Pupils!$AC$7:$AC$159,MATCH($B56,Pupils!$A$7:$A$159,0)),INDEX(Pupils!$AD$7:$AD$159,MATCH($B56,Pupils!$A$7:$A$159,0)),INDEX(Pupils!$AE$7:$AE$159,MATCH($B56,Pupils!$A$7:$A$159,0))))/SUM(INDEX(Pupils!$AB$7:$AM$159,MATCH($B56,Pupils!$A$7:$A$159,0),0))","v":0.31945624468988953},{"$f":"SUM(INDEX(Pupils!$AF$7:$AF$159,MATCH($B56,Pupils!$A$7:$A$159,0)))/SUM(INDEX(Pupils!$AB$7:$AM$159,MATCH($B56,Pupils!$A$7:$A$159,0),0))","v":0.21282922684791844},{"$f":"SUM(INDEX(Pupils!$AG$7:$AG$159,MATCH($B56,Pupils!$A$7:$A$159,0)))/SUM(INDEX(Pupils!$AB$7:$AM$159,MATCH($B56,Pupils!$A$7:$A$159,0),0))","v":0.26762956669498728},{"$f":"(SUM(INDEX(Pupils!$AH$7:$AH$159,MATCH($B56,Pupils!$A$7:$A$159,0)),INDEX(Pupils!$AI$7:$AI$159,MATCH($B56,Pupils!$A$7:$A$159,0)),INDEX(Pupils!$AJ$7:$AJ$159,MATCH($B56,Pupils!$A$7:$A$159,0))))/SUM(INDEX(Pupils!$AB$7:$AM$159,MATCH($B56,Pupils!$A$7:$A$159,0),0))","v":1.784197111299915E-2},{"$f":"SUM(INDEX(Pupils!$AK$7:$AK$159,MATCH($B56,Pupils!$A$7:$A$159,0)))/SUM(INDEX(Pupils!$AB$7:$AM$159,MATCH($B56,Pupils!$A$7:$A$159,0),0))","v":2.5488530161427356E-2},{"$f":"SUM(INDEX(Pupils!$AL$7:$AL$159,MATCH($B56,Pupils!$A$7:$A$159,0)))/SUM(INDEX(Pupils!$AB$7:$AM$159,MATCH($B56,Pupils!$A$7:$A$159,0),0))","v":0.12701784197111299},{"$f":"SUM(INDEX(Pupils!$AM$7:$AM$159,MATCH($B56,Pupils!$A$7:$A$159,0)))/SUM(INDEX(Pupils!$AB$7:$AM$159,MATCH($B56,Pupils!$A$7:$A$159,0),0))","v":2.9736618521665252E-2},{"$f":"(SUM(INDEX(Pupils!$BH$7:$BH$159,MATCH($B56,Pupils!$A$7:$A$159,0)),INDEX(Pupils!$BK$7:$BK$159,MATCH($B56,Pupils!$A$7:$A$159,0)),INDEX(Pupils!$BO$7:$BO$159,MATCH($B56,Pupils!$A$7:$A$159,0))))/SUM(INDEX(Pupils!$BH$7:$BS$159,MATCH($B56,Pupils!$A$7:$A$159,0),0))","v":0.49149922720247297},{"$f":"(SUM(INDEX(Pupils!$BL$7:$BL$159,MATCH($B56,Pupils!$A$7:$A$159,0)),INDEX(Pupils!$BM$7:$BM$159,MATCH($B56,Pupils!$A$7:$A$159,0)),INDEX(Pupils!$BP$7:$BP$159,MATCH($B56,Pupils!$A$7:$A$159,0))))/SUM(INDEX(Pupils!$BH$7:$BS$159,MATCH($B56,Pupils!$A$7:$A$159,0),0))","v":0.3554868624420402},{"$f":"(SUM(INDEX(Pupils!$BI$7:$BI$159,MATCH($B56,Pupils!$A$7:$A$159,0)),INDEX(Pupils!$BJ$7:$BJ$159,MATCH($B56,Pupils!$A$7:$A$159,0))))/SUM(INDEX(Pupils!$BH$7:$BS$159,MATCH($B56,Pupils!$A$7:$A$159,0),0))","v":7.4188562596599686E-2},{"$f":"(SUM(INDEX(Pupils!$BQ$7:$BQ$159,MATCH($B56,Pupils!$A$7:$A$159,0)),INDEX(Pupils!$BR$7:$BR$159,MATCH($B56,Pupils!$A$7:$A$159,0)),INDEX(Pupils!$BN$7:$BN$159,MATCH($B56,Pupils!$A$7:$A$159,0)),INDEX(Pupils!$BS$7:$BS$159,MATCH($B56,Pupils!$A$7:$A$159,0))))/SUM(INDEX(Pupils!$BH$7:$BS$159,MATCH($B56,Pupils!$A$7:$A$159,0),0))","v":7.8825347758887165E-2},{"$f":"IFERROR((VLOOKUP(B56,Funding,Funding!$C$2,FALSE)), \"x\")","v":17136743.300000001},{"$f":"IFERROR((AA56/VLOOKUP(B56,Funding,Funding!$D$2,FALSE)), \"x\")","v":0.15026629986303702},{"$f":"IFERROR((AA56/(VLOOKUP(B56,Pupils,Pupils!$M$3,FALSE)+VLOOKUP(B56,Pupils,Pupils!$P$3,FALSE))), \"x\")","v":3135.726129917658},{"$f":"IFERROR((VLOOKUP(B56,Funding,Funding!$E$2,FALSE)), \"x\")","v":17867333.946658164},{"$f":"IFERROR((AD56/VLOOKUP(B56,Funding,Funding!$F$2,FALSE)), \"x\")","v":0.14774988879294662},{"$f":"IFERROR((AD56/(VLOOKUP(B56,Pupils,Pupils!$R$3,FALSE)+VLOOKUP(B56,Pupils,Pupils!$U$3,FALSE))), \"x\")","v":3467.3654078513805},{"$f":"IFERROR((VLOOKUP(B56,Funding,Funding!$G$2,FALSE)), \"x\")","v":18463204.057487953},{"$f":"IFERROR((AG56/VLOOKUP(B56,Funding,Funding!$H$2,FALSE)), \"x\")","v":0.15504005718495406},{"$f":"IFERROR((AG56/(VLOOKUP(B56,Pupils,Pupils!$W$3,FALSE)+VLOOKUP(B56,Pupils,Pupils!$Z$3,FALSE))), \"x\")","v":3778.7973920360118},{"$f":"IFERROR((VLOOKUP(B56,Funding,Funding!$I$2,FALSE)), \"x\")","v":18622126.940973137},{"$f":"IFERROR((AJ56/VLOOKUP(B56,Funding,Funding!$J$2,FALSE)), \"x\")","v":0.1413176015251234},null,{"$f":"IFERROR((VLOOKUP($B56,Funding,Funding!$EC$2,FALSE)), \"x\")","v":11438227},{"$f":"IFERROR((AM56/VLOOKUP($B56,Funding,Funding!$EU$2,FALSE)), \"x\")","v":9.7419957142542493E-2},{"$f":"IFERROR((AM56/(VLOOKUP($B56,Pupils,Pupils!$D$3,FALSE)+VLOOKUP($B56,Pupils,Pupils!$E$3,FALSE))), \"x\")","v":2157.7489152990001},{"$f":"IFERROR((VLOOKUP($B56,Funding,Funding!$DA$2,FALSE)), \"x\")","v":11886388},{"$f":"IFERROR((AP56/VLOOKUP($B56,Funding,Funding!$DT$2,FALSE)), \"x\")","v":9.0414573376819532E-2},{"$f":"IFERROR((AP56/(VLOOKUP($B56,Pupils,Pupils!$G$3,FALSE)+VLOOKUP($B56,Pupils,Pupils!$H$3,FALSE))), \"x\")","v":2142.0774914398989},{"$f":"IFERROR((VLOOKUP($B56,Funding,Funding!$CE$2,FALSE)), \"x\")","v":12306232},{"$f":"IFERROR((AS56/VLOOKUP($B56,Funding,Funding!$CR$2,FALSE)), \"x\")","v":9.8813007240176637E-2},{"$f":"IFERROR((AS56/(VLOOKUP($B56,Pupils,Pupils!$J$3,FALSE)+VLOOKUP($B56,Pupils,Pupils!$K$3,FALSE))), \"x\")","v":2286.5536975102191},{"$f":"IFERROR((VLOOKUP($B56,Funding,Funding!$BM$2,FALSE)), \"x\")","v":12871561},{"$f":"IFERROR((AV56/VLOOKUP($B56,Funding,Funding!$BY$2,FALSE)), \"x\")","v":0.1085430694142942},{"$f":"IFERROR((AV56/(VLOOKUP($B56,Pupils,Pupils!$M$3,FALSE)+VLOOKUP($B56,Pupils,Pupils!$P$3,FALSE))), \"x\")","v":2355.271912168344},{"$f":"IFERROR((VLOOKUP($B56,Funding,Funding!$AQ$2,FALSE)), \"x\")","v":45345253},{"$f":"IFERROR((AY56/VLOOKUP($B56,Funding,Funding!$BE$2,FALSE)), \"x\")","v":0.30663124212556497},{"$f":"IFERROR((AY56/(VLOOKUP($B56,Pupils,Pupils!$R$3,FALSE)+VLOOKUP($B56,Pupils,Pupils!$U$3,FALSE))), \"x\")","v":8799.7774112167663},{"$f":"IFERROR((VLOOKUP($B56,Funding,Funding!$S$2,FALSE)), \"x\")","v":18167538},{"$f":"IFERROR((BB56/VLOOKUP($B56,Funding,Funding!$AH$2,FALSE)), \"x\")","v":0.15211685302920308},{"$f":"IFERROR((BB56/(VLOOKUP(B56,Pupils,Pupils!$W$3,FALSE)+VLOOKUP(B56,Pupils,Pupils!$Z$3,FALSE))), \"x\")","v":3718.2844862873517},{"$f":"IFERROR((VLOOKUP($B56,Funding,Funding!$GX$2,FALSE)), \"x\")","v":19265578},{"$f":"IFERROR((BE56/VLOOKUP($B56,Funding,Funding!$HC$2,FALSE)), \"x\")","v":0.15234363267596554},{"$f":"IFERROR((BE56/(VLOOKUP($B56,Pupils,Pupils!$D$3,FALSE)+VLOOKUP($B56,Pupils,Pupils!$E$3,FALSE))), \"x\")","v":3634.3289945293341},{"$f":"IFERROR((VLOOKUP($B56,Funding,Funding!$GP$2,FALSE)), \"x\")","v":18589855},{"$f":"IFERROR((BH56/VLOOKUP($B56,Funding,Funding!$GU$2,FALSE)), \"x\")","v":0.12489544879450228},{"$f":"IFERROR((BH56/(VLOOKUP($B56,Pupils,Pupils!$G$3,FALSE)+VLOOKUP($B56,Pupils,Pupils!$H$3,FALSE))), \"x\")","v":3350.1270499189045},{"$f":"IFERROR((VLOOKUP($B56,Funding,Funding!$GH$2,FALSE)), \"x\")","v":19019357.810000002},{"$f":"IFERROR((BK56/VLOOKUP($B56,Funding,Funding!$GM$2,FALSE)), \"x\")","v":0.14265960024775948},{"$f":"IFERROR((BK56/(VLOOKUP($B56,Pupils,Pupils!$J$3,FALSE)+VLOOKUP($B56,Pupils,Pupils!$K$3,FALSE))), \"x\")","v":3533.8829078409517},{"$f":"IFERROR((VLOOKUP($B56,Funding,Funding!$FZ$2,FALSE)), \"x\")","v":22516638.93},{"$f":"IFERROR((BN56/VLOOKUP($B56,Funding,Funding!$GE$2,FALSE)), \"x\")","v":0.18084471332387442},{"$f":"IFERROR((BN56/(VLOOKUP($B56,Pupils,Pupils!$M$3,FALSE)+VLOOKUP($B56,Pupils,Pupils!$P$3,FALSE))), \"x\")","v":4120.1535096065872},{"$f":"IFERROR((VLOOKUP($B56,Funding,Funding!$FD$2,FALSE)), \"x\")","v":20668017},{"$f":"IFERROR((BQ56/VLOOKUP($B56,Funding,Funding!$FR$2,FALSE)), \"x\")","v":0.20615360627424614},{"$f":"IFERROR((BQ56/(VLOOKUP($B56,Pupils,Pupils!$R$3,FALSE)+VLOOKUP($B56,Pupils,Pupils!$U$3,FALSE))), \"x\")","v":4010.8707549000583},{"$f":"(VLOOKUP(B56,Funding,Funding!$HK$2,FALSE)+VLOOKUP(B56,Funding,Funding!$HL$2,FALSE)+VLOOKUP(B56,Funding,Funding!$HM$2,FALSE))/(VLOOKUP(B56,Funding,Funding!$HN$2,FALSE))","v":0.10967741935483871},{"$f":"IFERROR((VLOOKUP(B56,Other_data,Other!$D$3,FALSE)+VLOOKUP(B56,Other_data,Other!$E$3,FALSE)+VLOOKUP(B56,Other_data,Other!$F$3,FALSE)), \"x\")","v":600},{"$f":"(VLOOKUP(B56,Other_data,Other!$AK$3,FALSE)+VLOOKUP(B56,Other_data,Other!$AL$3,FALSE))/VLOOKUP(B56,Other_data,Other!$AJ$3,FALSE)","v":2.9503105590062112E-2},{"$f":"(VLOOKUP(B56,Other_data,Other!$AR$3,FALSE)+VLOOKUP(B56,Other_data,Other!$AS$3,FALSE))/VLOOKUP(B56,Other_data,Other!$AQ$3,FALSE)","v":3.8436396914629363E-2},{"$f":"VLOOKUP(B56,Other_data,Other!$AP$3,FALSE)/VLOOKUP(B56,Other_data,Other!$AJ$3,FALSE)","v":7.4601674318120446E-3},{"$f":"VLOOKUP(B56,Other_data,Other!$AW$3,FALSE)/VLOOKUP(B56,Other_data,Other!$AQ$3,FALSE)","v":9.7616246132392042E-3}]
[51,850,"Hampshire",{"$f":"IFERROR((VLOOKUP($B57,Pupils,Pupils!$D$3,FALSE)/VLOOKUP($B57,Pupils,Pupils!$C$3,FALSE)), \"x\")","v":2.6018062841382295E-2},{"$f":"IFERROR((VLOOKUP($B57,Pupils,Pupils!$G$3,FALSE)/VLOOKUP($B57,Pupils,Pupils!$F$3,FALSE)),\"x\")","v":2.6685362725276638E-2},{"$f":"IFERROR((VLOOKUP($B57,Pupils,Pupils!$J$3,FALSE)/VLOOKUP($B57,Pupils,Pupils!$I$3,FALSE)), \"x\")","v":2.7072361792624944E-2},{"$f":"IFERROR((VLOOKUP($B57,Pupils,Pupils!$M$3,FALSE)/VLOOKUP($B57,Pupils,Pupils!$L$3,FALSE)), \"x\")","v":2.664096856506868E-2},{"$f":"IFERROR((VLOOKUP($B57,Pupils,Pupils!$R$3,FALSE)/VLOOKUP($B57,Pupils,Pupils!$Q$3,FALSE)), \"x\")","v":2.6742542788609918E-2},{"$f":"IFERROR((VLOOKUP($B57,Pupils,Pupils!$W$3,FALSE)/VLOOKUP($B57,Pupils,Pupils!$V$3,FALSE)), \"x\")","v":2.6471814475301458E-2},{"$f":"IFERROR(((VLOOKUP($B57,Pupils,Pupils!$D$3,FALSE)+VLOOKUP($B57,Pupils,Pupils!$E$3,FALSE))/VLOOKUP($B57,Pupils,Pupils!$C$3,FALSE)), \"x\")","v":0.21432588826996918},{"$f":"IFERROR(((VLOOKUP($B57,Pupils,Pupils!$G$3,FALSE)+VLOOKUP($B57,Pupils,Pupils!$H$3,FALSE))/VLOOKUP($B57,Pupils,Pupils!$F$3,FALSE)), \"x\")","v":0.21217852562012218},{"$f":"IFERROR(((VLOOKUP($B57,Pupils,Pupils!$J$3,FALSE)+VLOOKUP($B57,Pupils,Pupils!$K$3,FALSE))/VLOOKUP($B57,Pupils,Pupils!$I$3,FALSE)), \"x\")","v":0.20069818482836743},{"$f":"IFERROR(((VLOOKUP($B57,Pupils,Pupils!$M$3,FALSE)+VLOOKUP($B57,Pupils,Pupils!$P$3,FALSE))/VLOOKUP($B57,Pupils,Pupils!$L$3,FALSE)), \"x\")","v":0.18815353710842064},{"$f":"IFERROR(((VLOOKUP($B57,Pupils,Pupils!$R$3,FALSE)+VLOOKUP($B57,Pupils,Pupils!$U$3,FALSE))/VLOOKUP($B57,Pupils,Pupils!$Q$3,FALSE)), \"x\")","v":0.17204784310752788},{"$f":"IFERROR(((VLOOKUP($B57,Pupils,Pupils!$W$3,FALSE)+VLOOKUP($B57,Pupils,Pupils!$Z$3,FALSE))/VLOOKUP($B57,Pupils,Pupils!$V$3,FALSE)), \"x\")","v":0.16266439976825656},{"$f":"(SUM(INDEX(Pupils!$AB$7:$AB$159,MATCH($B57,Pupils!$A$7:$A$159,0)),INDEX(Pupils!$AC$7:$AC$159,MATCH($B57,Pupils!$A$7:$A$159,0)),INDEX(Pupils!$AD$7:$AD$159,MATCH($B57,Pupils!$A$7:$A$159,0)),INDEX(Pupils!$AE$7:$AE$159,MATCH($B57,Pupils!$A$7:$A$159,0))))/SUM(INDEX(Pupils!$AB$7:$AM$159,MATCH($B57,Pupils!$A$7:$A$159,0),0))","v":0.40930965088809168},{"$f":"SUM(INDEX(Pupils!$AF$7:$AF$159,MATCH($B57,Pupils!$A$7:$A$159,0)))/SUM(INDEX(Pupils!$AB$7:$AM$159,MATCH($B57,Pupils!$A$7:$A$159,0),0))","v":0.20264240090996588},{"$f":"SUM(INDEX(Pupils!$AG$7:$AG$159,MATCH($B57,Pupils!$A$7:$A$159,0)))/SUM(INDEX(Pupils!$AB$7:$AM$159,MATCH($B57,Pupils!$A$7:$A$159,0),0))","v":0.19984250590602853},{"$f":"(SUM(INDEX(Pupils!$AH$7:$AH$159,MATCH($B57,Pupils!$A$7:$A$159,0)),INDEX(Pupils!$AI$7:$AI$159,MATCH($B57,Pupils!$A$7:$A$159,0)),INDEX(Pupils!$AJ$7:$AJ$159,MATCH($B57,Pupils!$A$7:$A$159,0))))/SUM(INDEX(Pupils!$AB$7:$AM$159,MATCH($B57,Pupils!$A$7:$A$159,0),0))","v":3.4823694111470821E-2},{"$f":"SUM(INDEX(Pupils!$AK$7:$AK$159,MATCH($B57,Pupils!$A$7:$A$159,0)))/SUM(INDEX(Pupils!$AB$7:$AM$159,MATCH($B57,Pupils!$A$7:$A$159,0),0))","v":5.8797795082684401E-2},{"$f":"SUM(INDEX(Pupils!$AL$7:$AL$159,MATCH($B57,Pupils!$A$7:$A$159,0)))/SUM(INDEX(Pupils!$AB$7:$AM$159,MATCH($B57,Pupils!$A$7:$A$159,0),0))","v":7.8572053547991946E-2},{"$f":"SUM(INDEX(Pupils!$AM$7:$AM$159,MATCH($B57,Pupils!$A$7:$A$159,0)))/SUM(INDEX(Pupils!$AB$7:$AM$159,MATCH($B57,Pupils!$A$7:$A$159,0),0))","v":1.6011899553766733E-2},{"$f":"(SUM(INDEX(Pupils!$BH$7:$BH$159,MATCH($B57,Pupils!$A$7:$A$159,0)),INDEX(Pupils!$BK$7:$BK$159,MATCH($B57,Pupils!$A$7:$A$159,0)),INDEX(Pupils!$BO$7:$BO$159,MATCH($B57,Pupils!$A$7:$A$159,0))))/SUM(INDEX(Pupils!$BH$7:$BS$159,MATCH($B57,Pupils!$A$7:$A$159,0),0))","v":0.34475724194206447},{"$f":"(SUM(INDEX(Pupils!$BL$7:$BL$159,MATCH($B57,Pupils!$A$7:$A$159,0)),INDEX(Pupils!$BM$7:$BM$159,MATCH($B57,Pupils!$A$7:$A$159,0)),INDEX(Pupils!$BP$7:$BP$159,MATCH($B57,Pupils!$A$7:$A$159,0))))/SUM(INDEX(Pupils!$BH$7:$BS$159,MATCH($B57,Pupils!$A$7:$A$159,0),0))","v":0.56997144022847812},{"$f":"(SUM(INDEX(Pupils!$BI$7:$BI$159,MATCH($B57,Pupils!$A$7:$A$159,0)),INDEX(Pupils!$BJ$7:$BJ$159,MATCH($B57,Pupils!$A$7:$A$159,0))))/SUM(INDEX(Pupils!$BH$7:$BS$159,MATCH($B57,Pupils!$A$7:$A$159,0),0))","v":7.0379436964504286E-2},{"$f":"(SUM(INDEX(Pupils!$BQ$7:$BQ$159,MATCH($B57,Pupils!$A$7:$A$159,0)),INDEX(Pupils!$BR$7:$BR$159,MATCH($B57,Pupils!$A$7:$A$159,0)),INDEX(Pupils!$BN$7:$BN$159,MATCH($B57,Pupils!$A$7:$A$159,0)),INDEX(Pupils!$BS$7:$BS$159,MATCH($B57,Pupils!$A$7:$A$159,0))))/SUM(INDEX(Pupils!$BH$7:$BS$159,MATCH($B57,Pupils!$A$7:$A$159,0),0))","v":1.4891880864953081E-2},{"$f":"IFERROR((VLOOKUP(B57,Funding,Funding!$C$2,FALSE)), \"x\")","v":79761926.739999995},{"$f":"IFERROR((AA57/VLOOKUP(B57,Funding,Funding!$D$2,FALSE)), \"x\")","v":9.7114875942393555E-2},{"$f":"IFERROR((AA57/(VLOOKUP(B57,Pupils,Pupils!$M$3,FALSE)+VLOOKUP(B57,Pupils,Pupils!$P$3,FALSE))), \"x\")","v":2301.5329737996303},{"$f":"IFERROR((VLOOKUP(B57,Funding,Funding!$E$2,FALSE)), \"x\")","v":86903902.722849548},{"$f":"IFERROR((AD57/VLOOKUP(B57,Funding,Funding!$F$2,FALSE)), \"x\")","v":0.10303581399624159},{"$f":"IFERROR((AD57/(VLOOKUP(B57,Pupils,Pupils!$R$3,FALSE)+VLOOKUP(B57,Pupils,Pupils!$U$3,FALSE))), \"x\")","v":2734.9772690117875},{"$f":"IFERROR((VLOOKUP(B57,Funding,Funding!$G$2,FALSE)), \"x\")","v":90395984.258667842},{"$f":"IFERROR((AG57/VLOOKUP(B57,Funding,Funding!$H$2,FALSE)), \"x\")","v":0.10630017646864461},{"$f":"IFERROR((AG57/(VLOOKUP(B57,Pupils,Pupils!$W$3,FALSE)+VLOOKUP(B57,Pupils,Pupils!$Z$3,FALSE))), \"x\")","v":3008.9868936378352},{"$f":"IFERROR((VLOOKUP(B57,Funding,Funding!$I$2,FALSE)), \"x\")","v":91679599.261766449},{"$f":"IFERROR((AJ57/VLOOKUP(B57,Funding,Funding!$J$2,FALSE)), \"x\")","v":0.10833861076131185},null,{"$f":"IFERROR((VLOOKUP($B57,Funding,Funding!$EC$2,FALSE)), \"x\")","v":55449177},{"$f":"IFERROR((AM57/VLOOKUP($B57,Funding,Funding!$EU$2,FALSE)), \"x\")","v":6.6687275124494724E-2},{"$f":"IFERROR((AM57/(VLOOKUP($B57,Pupils,Pupils!$D$3,FALSE)+VLOOKUP($B57,Pupils,Pupils!$E$3,FALSE))), \"x\")","v":1399.1364588327319},{"$f":"IFERROR((VLOOKUP($B57,Funding,Funding!$DA$2,FALSE)), \"x\")","v":59083226},{"$f":"IFERROR((AP57/VLOOKUP($B57,Funding,Funding!$DT$2,FALSE)), \"x\")","v":6.9114426875752671E-2},{"$f":"IFERROR((AP57/(VLOOKUP($B57,Pupils,Pupils!$G$3,FALSE)+VLOOKUP($B57,Pupils,Pupils!$H$3,FALSE))), \"x\")","v":1513.4023053278688},{"$f":"IFERROR((VLOOKUP($B57,Funding,Funding!$CE$2,FALSE)), \"x\")","v":61148201},{"$f":"IFERROR((AS57/VLOOKUP($B57,Funding,Funding!$CR$2,FALSE)), \"x\")","v":7.5600330367956353E-2},{"$f":"IFERROR((AS57/(VLOOKUP($B57,Pupils,Pupils!$J$3,FALSE)+VLOOKUP($B57,Pupils,Pupils!$K$3,FALSE))), \"x\")","v":1659.2912460653424},{"$f":"IFERROR((VLOOKUP($B57,Funding,Funding!$BM$2,FALSE)), \"x\")","v":59678363.979999997},{"$f":"IFERROR((AV57/VLOOKUP($B57,Funding,Funding!$BY$2,FALSE)), \"x\")","v":7.8307332992981912E-2},{"$f":"IFERROR((AV57/(VLOOKUP($B57,Pupils,Pupils!$M$3,FALSE)+VLOOKUP($B57,Pupils,Pupils!$P$3,FALSE))), \"x\")","v":1722.0211213065559},{"$f":"IFERROR((VLOOKUP($B57,Funding,Funding!$AQ$2,FALSE)), \"x\")","v":76302000},{"$f":"IFERROR((AY57/VLOOKUP($B57,Funding,Funding!$BE$2,FALSE)), \"x\")","v":8.928565870304557E-2},{"$f":"IFERROR((AY57/(VLOOKUP($B57,Pupils,Pupils!$R$3,FALSE)+VLOOKUP($B57,Pupils,Pupils!$U$3,FALSE))), \"x\")","v":2401.3217938631001},{"$f":"IFERROR((VLOOKUP($B57,Funding,Funding!$S$2,FALSE)), \"x\")","v":78936600},{"$f":"IFERROR((BB57/VLOOKUP($B57,Funding,Funding!$AH$2,FALSE)), \"x\")","v":9.0907237801534757E-2},{"$f":"IFERROR((BB57/(VLOOKUP(B57,Pupils,Pupils!$W$3,FALSE)+VLOOKUP(B57,Pupils,Pupils!$Z$3,FALSE))), \"x\")","v":2627.5414419812264},{"$f":"IFERROR((VLOOKUP($B57,Funding,Funding!$GX$2,FALSE)), \"x\")","v":59646036.809999995},{"$f":"IFERROR((BE57/VLOOKUP($B57,Funding,Funding!$HC$2,FALSE)), \"x\")","v":6.6035457600562647E-2},{"$f":"IFERROR((BE57/(VLOOKUP($B57,Pupils,Pupils!$D$3,FALSE)+VLOOKUP($B57,Pupils,Pupils!$E$3,FALSE))), \"x\")","v":1505.0348668971258},{"$f":"IFERROR((VLOOKUP($B57,Funding,Funding!$GP$2,FALSE)), \"x\")","v":61971128.950000003},{"$f":"IFERROR((BH57/VLOOKUP($B57,Funding,Funding!$GU$2,FALSE)), \"x\")","v":6.8182039222048088E-2},{"$f":"IFERROR((BH57/(VLOOKUP($B57,Pupils,Pupils!$G$3,FALSE)+VLOOKUP($B57,Pupils,Pupils!$H$3,FALSE))), \"x\")","v":1587.3752292520492},{"$f":"IFERROR((VLOOKUP($B57,Funding,Funding!$GH$2,FALSE)), \"x\")","v":63294013.949999996},{"$f":"IFERROR((BK57/VLOOKUP($B57,Funding,Funding!$GM$2,FALSE)), \"x\")","v":7.5809676918374633E-2},{"$f":"IFERROR((BK57/(VLOOKUP($B57,Pupils,Pupils!$J$3,FALSE)+VLOOKUP($B57,Pupils,Pupils!$K$3,FALSE))), \"x\")","v":1717.5191020840116},{"$f":"IFERROR((VLOOKUP($B57,Funding,Funding!$FZ$2,FALSE)), \"x\")","v":62958069.079999998},{"$f":"IFERROR((BN57/VLOOKUP($B57,Funding,Funding!$GE$2,FALSE)), \"x\")","v":8.1889816081759575E-2},{"$f":"IFERROR((BN57/(VLOOKUP($B57,Pupils,Pupils!$M$3,FALSE)+VLOOKUP($B57,Pupils,Pupils!$P$3,FALSE))), \"x\")","v":1816.657117959372},{"$f":"IFERROR((VLOOKUP($B57,Funding,Funding!$FD$2,FALSE)), \"x\")","v":76163263},{"$f":"IFERROR((BQ57/VLOOKUP($B57,Funding,Funding!$FR$2,FALSE)), \"x\")","v":0.109811943324176},{"$f":"IFERROR((BQ57/(VLOOKUP($B57,Pupils,Pupils!$R$3,FALSE)+VLOOKUP($B57,Pupils,Pupils!$U$3,FALSE))), \"x\")","v":2396.9555625491739},{"$f":"(VLOOKUP(B57,Funding,Funding!$HK$2,FALSE)+VLOOKUP(B57,Funding,Funding!$HL$2,FALSE)+VLOOKUP(B57,Funding,Funding!$HM$2,FALSE))/(VLOOKUP(B57,Funding,Funding!$HN$2,FALSE))","v":0.17593052109181143},{"$f":"IFERROR((VLOOKUP(B57,Other_data,Other!$D$3,FALSE)+VLOOKUP(B57,Other_data,Other!$E$3,FALSE)+VLOOKUP(B57,Other_data,Other!$F$3,FALSE)), \"x\")","v":6990},{"$f":"(VLOOKUP(B57,Other_data,Other!$AK$3,FALSE)+VLOOKUP(B57,Other_data,Other!$AL$3,FALSE))/VLOOKUP(B57,Other_data,Other!$AJ$3,FALSE)","v":3.5016289973797056E-2},{"$f":"(VLOOKUP(B57,Other_data,Other!$AR$3,FALSE)+VLOOKUP(B57,Other_data,Other!$AS$3,FALSE))/VLOOKUP(B57,Other_data,Other!$AQ$3,FALSE)","v":5.1396803766105052E-2},{"$f":"VLOOKUP(B57,Other_data,Other!$AP$3,FALSE)/VLOOKUP(B57,Other_data,Other!$AJ$3,FALSE)","v":4.6723814429196868E-3},{"$f":"VLOOKUP(B57,Other_data,Other!$AW$3,FALSE)/VLOOKUP(B57,Other_data,Other!$AQ$3,FALSE)","v":9.1829781962338951E-3}]
[52,309,"Haringey",{"$f":"IFERROR((VLOOKUP($B58,Pupils,Pupils!$D$3,FALSE)/VLOOKUP($B58,Pupils,Pupils!$C$3,FALSE)), \"x\")","v":3.0063166723455562E-2},{"$f":"IFERROR((VLOOKUP($B58,Pupils,Pupils!$G$3,FALSE)/VLOOKUP($B58,Pupils,Pupils!$F$3,FALSE)),\"x\")","v":3.1218503682646337E-2},{"$f":"IFERROR((VLOOKUP($B58,Pupils,Pupils!$J$3,FALSE)/VLOOKUP($B58,Pupils,Pupils!$I$3,FALSE)), \"x\")","v":3.1769008075575193E-2},{"$f":"IFERROR((VLOOKUP($B58,Pupils,Pupils!$M$3,FALSE)/VLOOKUP($B58,Pupils,Pupils!$L$3,FALSE)), \"x\")","v":3.1511286313305041E-2},{"$f":"IFERROR((VLOOKUP($B58,Pupils,Pupils!$R$3,FALSE)/VLOOKUP($B58,Pupils,Pupils!$Q$3,FALSE)), \"x\")","v":3.2413946918444722E-2},{"$f":"IFERROR((VLOOKUP($B58,Pupils,Pupils!$W$3,FALSE)/VLOOKUP($B58,Pupils,Pupils!$V$3,FALSE)), \"x\")","v":3.0750031199301135E-2},{"$f":"IFERROR(((VLOOKUP($B58,Pupils,Pupils!$D$3,FALSE)+VLOOKUP($B58,Pupils,Pupils!$E$3,FALSE))/VLOOKUP($B58,Pupils,Pupils!$C$3,FALSE)), \"x\")","v":0.23741252326160459},{"$f":"IFERROR(((VLOOKUP($B58,Pupils,Pupils!$G$3,FALSE)+VLOOKUP($B58,Pupils,Pupils!$H$3,FALSE))/VLOOKUP($B58,Pupils,Pupils!$F$3,FALSE)), \"x\")","v":0.24651763793771805},{"$f":"IFERROR(((VLOOKUP($B58,Pupils,Pupils!$J$3,FALSE)+VLOOKUP($B58,Pupils,Pupils!$K$3,FALSE))/VLOOKUP($B58,Pupils,Pupils!$I$3,FALSE)), \"x\")","v":0.24391792371374879},{"$f":"IFERROR(((VLOOKUP($B58,Pupils,Pupils!$M$3,FALSE)+VLOOKUP($B58,Pupils,Pupils!$P$3,FALSE))/VLOOKUP($B58,Pupils,Pupils!$L$3,FALSE)), \"x\")","v":0.22904060059758455},{"$f":"IFERROR(((VLOOKUP($B58,Pupils,Pupils!$R$3,FALSE)+VLOOKUP($B58,Pupils,Pupils!$U$3,FALSE))/VLOOKUP($B58,Pupils,Pupils!$Q$3,FALSE)), \"x\")","v":0.21351572373801203},{"$f":"IFERROR(((VLOOKUP($B58,Pupils,Pupils!$W$3,FALSE)+VLOOKUP($B58,Pupils,Pupils!$Z$3,FALSE))/VLOOKUP($B58,Pupils,Pupils!$V$3,FALSE)), \"x\")","v":0.20723823786347187},{"$f":"(SUM(INDEX(Pupils!$AB$7:$AB$159,MATCH($B58,Pupils!$A$7:$A$159,0)),INDEX(Pupils!$AC$7:$AC$159,MATCH($B58,Pupils!$A$7:$A$159,0)),INDEX(Pupils!$AD$7:$AD$159,MATCH($B58,Pupils!$A$7:$A$159,0)),INDEX(Pupils!$AE$7:$AE$159,MATCH($B58,Pupils!$A$7:$A$159,0))))/SUM(INDEX(Pupils!$AB$7:$AM$159,MATCH($B58,Pupils!$A$7:$A$159,0),0))","v":0.23606102635228848},{"$f":"SUM(INDEX(Pupils!$AF$7:$AF$159,MATCH($B58,Pupils!$A$7:$A$159,0)))/SUM(INDEX(Pupils!$AB$7:$AM$159,MATCH($B58,Pupils!$A$7:$A$159,0),0))","v":0.2044382801664355},{"$f":"SUM(INDEX(Pupils!$AG$7:$AG$159,MATCH($B58,Pupils!$A$7:$A$159,0)))/SUM(INDEX(Pupils!$AB$7:$AM$159,MATCH($B58,Pupils!$A$7:$A$159,0),0))","v":0.30485436893203882},{"$f":"(SUM(INDEX(Pupils!$AH$7:$AH$159,MATCH($B58,Pupils!$A$7:$A$159,0)),INDEX(Pupils!$AI$7:$AI$159,MATCH($B58,Pupils!$A$7:$A$159,0)),INDEX(Pupils!$AJ$7:$AJ$159,MATCH($B58,Pupils!$A$7:$A$159,0))))/SUM(INDEX(Pupils!$AB$7:$AM$159,MATCH($B58,Pupils!$A$7:$A$159,0),0))","v":4.3828016643550627E-2},{"$f":"SUM(INDEX(Pupils!$AK$7:$AK$159,MATCH($B58,Pupils!$A$7:$A$159,0)))/SUM(INDEX(Pupils!$AB$7:$AM$159,MATCH($B58,Pupils!$A$7:$A$159,0),0))","v":1.7753120665742025E-2},{"$f":"SUM(INDEX(Pupils!$AL$7:$AL$159,MATCH($B58,Pupils!$A$7:$A$159,0)))/SUM(INDEX(Pupils!$AB$7:$AM$159,MATCH($B58,Pupils!$A$7:$A$159,0),0))","v":0.15478502080443829},{"$f":"SUM(INDEX(Pupils!$AM$7:$AM$159,MATCH($B58,Pupils!$A$7:$A$159,0)))/SUM(INDEX(Pupils!$AB$7:$AM$159,MATCH($B58,Pupils!$A$7:$A$159,0),0))","v":3.828016643550624E-2},{"$f":"(SUM(INDEX(Pupils!$BH$7:$BH$159,MATCH($B58,Pupils!$A$7:$A$159,0)),INDEX(Pupils!$BK$7:$BK$159,MATCH($B58,Pupils!$A$7:$A$159,0)),INDEX(Pupils!$BO$7:$BO$159,MATCH($B58,Pupils!$A$7:$A$159,0))))/SUM(INDEX(Pupils!$BH$7:$BS$159,MATCH($B58,Pupils!$A$7:$A$159,0),0))","v":0.59807549962990381},{"$f":"(SUM(INDEX(Pupils!$BL$7:$BL$159,MATCH($B58,Pupils!$A$7:$A$159,0)),INDEX(Pupils!$BM$7:$BM$159,MATCH($B58,Pupils!$A$7:$A$159,0)),INDEX(Pupils!$BP$7:$BP$159,MATCH($B58,Pupils!$A$7:$A$159,0))))/SUM(INDEX(Pupils!$BH$7:$BS$159,MATCH($B58,Pupils!$A$7:$A$159,0),0))","v":0.34344929681717246},{"$f":"(SUM(INDEX(Pupils!$BI$7:$BI$159,MATCH($B58,Pupils!$A$7:$A$159,0)),INDEX(Pupils!$BJ$7:$BJ$159,MATCH($B58,Pupils!$A$7:$A$159,0))))/SUM(INDEX(Pupils!$BH$7:$BS$159,MATCH($B58,Pupils!$A$7:$A$159,0),0))","v":2.6646928201332347E-2},{"$f":"(SUM(INDEX(Pupils!$BQ$7:$BQ$159,MATCH($B58,Pupils!$A$7:$A$159,0)),INDEX(Pupils!$BR$7:$BR$159,MATCH($B58,Pupils!$A$7:$A$159,0)),INDEX(Pupils!$BN$7:$BN$159,MATCH($B58,Pupils!$A$7:$A$159,0)),INDEX(Pupils!$BS$7:$BS$159,MATCH($B58,Pupils!$A$7:$A$159,0))))/SUM(INDEX(Pupils!$BH$7:$BS$159,MATCH($B58,Pupils!$A$7:$A$159,0),0))","v":3.1828275351591412E-2},{"$f":"IFERROR((VLOOKUP(B58,Funding,Funding!$C$2,FALSE)), \"x\")","v":30195846.200000003},{"$f":"IFERROR((AA58/VLOOKUP(B58,Funding,Funding!$D$2,FALSE)), \"x\")","v":0.14310784490521167},{"$f":"IFERROR((AA58/(VLOOKUP(B58,Pupils,Pupils!$M$3,FALSE)+VLOOKUP(B58,Pupils,Pupils!$P$3,FALSE))), \"x\")","v":3310.2221223415922},{"$f":"IFERROR((VLOOKUP(B58,Funding,Funding!$E$2,FALSE)), \"x\")","v":29920087.455834147},{"$f":"IFERROR((AD58/VLOOKUP(B58,Funding,Funding!$F$2,FALSE)), \"x\")","v":0.13180130847048691},{"$f":"IFERROR((AD58/(VLOOKUP(B58,Pupils,Pupils!$R$3,FALSE)+VLOOKUP(B58,Pupils,Pupils!$U$3,FALSE))), \"x\")","v":3472.619249748624},{"$f":"IFERROR((VLOOKUP(B58,Funding,Funding!$G$2,FALSE)), \"x\")","v":31131008.341141865},{"$f":"IFERROR((AG58/VLOOKUP(B58,Funding,Funding!$H$2,FALSE)), \"x\")","v":0.13571369654351439},{"$f":"IFERROR((AG58/(VLOOKUP(B58,Pupils,Pupils!$W$3,FALSE)+VLOOKUP(B58,Pupils,Pupils!$Z$3,FALSE))), \"x\")","v":3749.3687030160022},{"$f":"IFERROR((VLOOKUP(B58,Funding,Funding!$I$2,FALSE)), \"x\")","v":31376000.013802245},{"$f":"IFERROR((AJ58/VLOOKUP(B58,Funding,Funding!$J$2,FALSE)), \"x\")","v":0.13268097960394562},null,{"$f":"IFERROR((VLOOKUP($B58,Funding,Funding!$EC$2,FALSE)), \"x\")","v":17856242.91},{"$f":"IFERROR((AM58/VLOOKUP($B58,Funding,Funding!$EU$2,FALSE)), \"x\")","v":8.3799125534231175E-2},{"$f":"IFERROR((AM58/(VLOOKUP($B58,Pupils,Pupils!$D$3,FALSE)+VLOOKUP($B58,Pupils,Pupils!$E$3,FALSE))), \"x\")","v":1971.3229090306911},{"$f":"IFERROR((VLOOKUP($B58,Funding,Funding!$DA$2,FALSE)), \"x\")","v":18528038.430689998},{"$f":"IFERROR((AP58/VLOOKUP($B58,Funding,Funding!$DT$2,FALSE)), \"x\")","v":7.8390963144879894E-2},{"$f":"IFERROR((AP58/(VLOOKUP($B58,Pupils,Pupils!$G$3,FALSE)+VLOOKUP($B58,Pupils,Pupils!$H$3,FALSE))), \"x\")","v":1942.3459933630356},{"$f":"IFERROR((VLOOKUP($B58,Funding,Funding!$CE$2,FALSE)), \"x\")","v":19401073.798919998},{"$f":"IFERROR((AS58/VLOOKUP($B58,Funding,Funding!$CR$2,FALSE)), \"x\")","v":8.3598273386447611E-2},{"$f":"IFERROR((AS58/(VLOOKUP($B58,Pupils,Pupils!$J$3,FALSE)+VLOOKUP($B58,Pupils,Pupils!$K$3,FALSE))), \"x\")","v":2019.893159700156},{"$f":"IFERROR((VLOOKUP($B58,Funding,Funding!$BM$2,FALSE)), \"x\")","v":20114901.949999999},{"$f":"IFERROR((AV58/VLOOKUP($B58,Funding,Funding!$BY$2,FALSE)), \"x\")","v":9.0410603332345019E-2},{"$f":"IFERROR((AV58/(VLOOKUP($B58,Pupils,Pupils!$M$3,FALSE)+VLOOKUP($B58,Pupils,Pupils!$P$3,FALSE))), \"x\")","v":2205.097780092085},{"$f":"IFERROR((VLOOKUP($B58,Funding,Funding!$AQ$2,FALSE)), \"x\")","v":29052362},{"$f":"IFERROR((AY58/VLOOKUP($B58,Funding,Funding!$BE$2,FALSE)), \"x\")","v":0.12555700532934702},{"$f":"IFERROR((AY58/(VLOOKUP($B58,Pupils,Pupils!$R$3,FALSE)+VLOOKUP($B58,Pupils,Pupils!$U$3,FALSE))), \"x\")","v":3371.9083101207057},{"$f":"IFERROR((VLOOKUP($B58,Funding,Funding!$S$2,FALSE)), \"x\")","v":29559400},{"$f":"IFERROR((BB58/VLOOKUP($B58,Funding,Funding!$AH$2,FALSE)), \"x\")","v":0.12618475471697985},{"$f":"IFERROR((BB58/(VLOOKUP(B58,Pupils,Pupils!$W$3,FALSE)+VLOOKUP(B58,Pupils,Pupils!$Z$3,FALSE))), \"x\")","v":3560.0867156449476},{"$f":"IFERROR((VLOOKUP($B58,Funding,Funding!$GX$2,FALSE)), \"x\")","v":35589801.272090003},{"$f":"IFERROR((BE58/VLOOKUP($B58,Funding,Funding!$HC$2,FALSE)), \"x\")","v":0.15274250668821102},{"$f":"IFERROR((BE58/(VLOOKUP($B58,Pupils,Pupils!$D$3,FALSE)+VLOOKUP($B58,Pupils,Pupils!$E$3,FALSE))), \"x\")","v":3929.101487313977},{"$f":"IFERROR((VLOOKUP($B58,Funding,Funding!$GP$2,FALSE)), \"x\")","v":41948468.859999999},{"$f":"IFERROR((BH58/VLOOKUP($B58,Funding,Funding!$GU$2,FALSE)), \"x\")","v":0.17029704573473761},{"$f":"IFERROR((BH58/(VLOOKUP($B58,Pupils,Pupils!$G$3,FALSE)+VLOOKUP($B58,Pupils,Pupils!$H$3,FALSE))), \"x\")","v":4397.5750980186604},{"$f":"IFERROR((VLOOKUP($B58,Funding,Funding!$GH$2,FALSE)), \"x\")","v":53319020.869999997},{"$f":"IFERROR((BK58/VLOOKUP($B58,Funding,Funding!$GM$2,FALSE)), \"x\")","v":0.21936867425214243},{"$f":"IFERROR((BK58/(VLOOKUP($B58,Pupils,Pupils!$J$3,FALSE)+VLOOKUP($B58,Pupils,Pupils!$K$3,FALSE))), \"x\")","v":5551.173437792816},{"$f":"IFERROR((VLOOKUP($B58,Funding,Funding!$FZ$2,FALSE)), \"x\")","v":47520232.560000002},{"$f":"IFERROR((BN58/VLOOKUP($B58,Funding,Funding!$GE$2,FALSE)), \"x\")","v":0.20637590042937376},{"$f":"IFERROR((BN58/(VLOOKUP($B58,Pupils,Pupils!$M$3,FALSE)+VLOOKUP($B58,Pupils,Pupils!$P$3,FALSE))), \"x\")","v":5209.4094014470511},{"$f":"IFERROR((VLOOKUP($B58,Funding,Funding!$FD$2,FALSE)), \"x\")","v":31818629},{"$f":"IFERROR((BQ58/VLOOKUP($B58,Funding,Funding!$FR$2,FALSE)), \"x\")","v":0.16264626571366977},{"$f":"IFERROR((BQ58/(VLOOKUP($B58,Pupils,Pupils!$R$3,FALSE)+VLOOKUP($B58,Pupils,Pupils!$U$3,FALSE))), \"x\")","v":3692.9699396471678},{"$f":"(VLOOKUP(B58,Funding,Funding!$HK$2,FALSE)+VLOOKUP(B58,Funding,Funding!$HL$2,FALSE)+VLOOKUP(B58,Funding,Funding!$HM$2,FALSE))/(VLOOKUP(B58,Funding,Funding!$HN$2,FALSE))","v":0.25593667546174143},{"$f":"IFERROR((VLOOKUP(B58,Other_data,Other!$D$3,FALSE)+VLOOKUP(B58,Other_data,Other!$E$3,FALSE)+VLOOKUP(B58,Other_data,Other!$F$3,FALSE)), \"x\")","v":1340},{"$f":"(VLOOKUP(B58,Other_data,Other!$AK$3,FALSE)+VLOOKUP(B58,Other_data,Other!$AL$3,FALSE))/VLOOKUP(B58,Other_data,Other!$AJ$3,FALSE)","v":3.3919139537117067E-2},{"$f":"(VLOOKUP(B58,Other_data,Other!$AR$3,FALSE)+VLOOKUP(B58,Other_data,Other!$AS$3,FALSE))/VLOOKUP(B58,Other_data,Other!$AQ$3,FALSE)","v":5.0808002429067849E-2},{"$f":"VLOOKUP(B58,Other_data,Other!$AP$3,FALSE)/VLOOKUP(B58,Other_data,Other!$AJ$3,FALSE)","v":9.5265533467780664E-3},{"$f":"VLOOKUP(B58,Other_data,Other!$AW$3,FALSE)/VLOOKUP(B58,Other_data,Other!$AQ$3,FALSE)","v":1.3663506629330994E-2}]
[53,310,"Harrow",{"$f":"IFERROR((VLOOKUP($B59,Pupils,Pupils!$D$3,FALSE)/VLOOKUP($B59,Pupils,Pupils!$C$3,FALSE)), \"x\")","v":2.6493462097256646E-2},{"$f":"IFERROR((VLOOKUP($B59,Pupils,Pupils!$G$3,FALSE)/VLOOKUP($B59,Pupils,Pupils!$F$3,FALSE)),\"x\")","v":2.579241765071473E-2},{"$f":"IFERROR((VLOOKUP($B59,Pupils,Pupils!$J$3,FALSE)/VLOOKUP($B59,Pupils,Pupils!$I$3,FALSE)), \"x\")","v":2.6094205919132973E-2},{"$f":"IFERROR((VLOOKUP($B59,Pupils,Pupils!$M$3,FALSE)/VLOOKUP($B59,Pupils,Pupils!$L$3,FALSE)), \"x\")","v":2.6337562051847768E-2},{"$f":"IFERROR((VLOOKUP($B59,Pupils,Pupils!$R$3,FALSE)/VLOOKUP($B59,Pupils,Pupils!$Q$3,FALSE)), \"x\")","v":2.6583480265834802E-2},{"$f":"IFERROR((VLOOKUP($B59,Pupils,Pupils!$W$3,FALSE)/VLOOKUP($B59,Pupils,Pupils!$V$3,FALSE)), \"x\")","v":2.61302253798462E-2},{"$f":"IFERROR(((VLOOKUP($B59,Pupils,Pupils!$D$3,FALSE)+VLOOKUP($B59,Pupils,Pupils!$E$3,FALSE))/VLOOKUP($B59,Pupils,Pupils!$C$3,FALSE)), \"x\")","v":0.20693388029513146},{"$f":"IFERROR(((VLOOKUP($B59,Pupils,Pupils!$G$3,FALSE)+VLOOKUP($B59,Pupils,Pupils!$H$3,FALSE))/VLOOKUP($B59,Pupils,Pupils!$F$3,FALSE)), \"x\")","v":0.20328832137408892},{"$f":"IFERROR(((VLOOKUP($B59,Pupils,Pupils!$J$3,FALSE)+VLOOKUP($B59,Pupils,Pupils!$K$3,FALSE))/VLOOKUP($B59,Pupils,Pupils!$I$3,FALSE)), \"x\")","v":0.20747533694594969},{"$f":"IFERROR(((VLOOKUP($B59,Pupils,Pupils!$M$3,FALSE)+VLOOKUP($B59,Pupils,Pupils!$P$3,FALSE))/VLOOKUP($B59,Pupils,Pupils!$L$3,FALSE)), \"x\")","v":0.19051296194153336},{"$f":"IFERROR(((VLOOKUP($B59,Pupils,Pupils!$R$3,FALSE)+VLOOKUP($B59,Pupils,Pupils!$U$3,FALSE))/VLOOKUP($B59,Pupils,Pupils!$Q$3,FALSE)), \"x\")","v":0.17281974772819747},{"$f":"IFERROR(((VLOOKUP($B59,Pupils,Pupils!$W$3,FALSE)+VLOOKUP($B59,Pupils,Pupils!$Z$3,FALSE))/VLOOKUP($B59,Pupils,Pupils!$V$3,FALSE)), \"x\")","v":0.16354008674596204},{"$f":"(SUM(INDEX(Pupils!$AB$7:$AB$159,MATCH($B59,Pupils!$A$7:$A$159,0)),INDEX(Pupils!$AC$7:$AC$159,MATCH($B59,Pupils!$A$7:$A$159,0)),INDEX(Pupils!$AD$7:$AD$159,MATCH($B59,Pupils!$A$7:$A$159,0)),INDEX(Pupils!$AE$7:$AE$159,MATCH($B59,Pupils!$A$7:$A$159,0))))/SUM(INDEX(Pupils!$AB$7:$AM$159,MATCH($B59,Pupils!$A$7:$A$159,0),0))","v":0.32983560685554392},{"$f":"SUM(INDEX(Pupils!$AF$7:$AF$159,MATCH($B59,Pupils!$A$7:$A$159,0)))/SUM(INDEX(Pupils!$AB$7:$AM$159,MATCH($B59,Pupils!$A$7:$A$159,0),0))","v":0.19167541098286114},{"$f":"SUM(INDEX(Pupils!$AG$7:$AG$159,MATCH($B59,Pupils!$A$7:$A$159,0)))/SUM(INDEX(Pupils!$AB$7:$AM$159,MATCH($B59,Pupils!$A$7:$A$159,0),0))","v":0.23015040223854494},{"$f":"(SUM(INDEX(Pupils!$AH$7:$AH$159,MATCH($B59,Pupils!$A$7:$A$159,0)),INDEX(Pupils!$AI$7:$AI$159,MATCH($B59,Pupils!$A$7:$A$159,0)),INDEX(Pupils!$AJ$7:$AJ$159,MATCH($B59,Pupils!$A$7:$A$159,0))))/SUM(INDEX(Pupils!$AB$7:$AM$159,MATCH($B59,Pupils!$A$7:$A$159,0),0))","v":4.6869534802378453E-2},{"$f":"SUM(INDEX(Pupils!$AK$7:$AK$159,MATCH($B59,Pupils!$A$7:$A$159,0)))/SUM(INDEX(Pupils!$AB$7:$AM$159,MATCH($B59,Pupils!$A$7:$A$159,0),0))","v":3.0779993004547045E-2},{"$f":"SUM(INDEX(Pupils!$AL$7:$AL$159,MATCH($B59,Pupils!$A$7:$A$159,0)))/SUM(INDEX(Pupils!$AB$7:$AM$159,MATCH($B59,Pupils!$A$7:$A$159,0),0))","v":0.12451906260930395},{"$f":"SUM(INDEX(Pupils!$AM$7:$AM$159,MATCH($B59,Pupils!$A$7:$A$159,0)))/SUM(INDEX(Pupils!$AB$7:$AM$159,MATCH($B59,Pupils!$A$7:$A$159,0),0))","v":4.6169989506820566E-2},{"$f":"(SUM(INDEX(Pupils!$BH$7:$BH$159,MATCH($B59,Pupils!$A$7:$A$159,0)),INDEX(Pupils!$BK$7:$BK$159,MATCH($B59,Pupils!$A$7:$A$159,0)),INDEX(Pupils!$BO$7:$BO$159,MATCH($B59,Pupils!$A$7:$A$159,0))))/SUM(INDEX(Pupils!$BH$7:$BS$159,MATCH($B59,Pupils!$A$7:$A$159,0),0))","v":0.46318493150684931},{"$f":"(SUM(INDEX(Pupils!$BL$7:$BL$159,MATCH($B59,Pupils!$A$7:$A$159,0)),INDEX(Pupils!$BM$7:$BM$159,MATCH($B59,Pupils!$A$7:$A$159,0)),INDEX(Pupils!$BP$7:$BP$159,MATCH($B59,Pupils!$A$7:$A$159,0))))/SUM(INDEX(Pupils!$BH$7:$BS$159,MATCH($B59,Pupils!$A$7:$A$159,0),0))","v":0.45034246575342468},{"$f":"(SUM(INDEX(Pupils!$BI$7:$BI$159,MATCH($B59,Pupils!$A$7:$A$159,0)),INDEX(Pupils!$BJ$7:$BJ$159,MATCH($B59,Pupils!$A$7:$A$159,0))))/SUM(INDEX(Pupils!$BH$7:$BS$159,MATCH($B59,Pupils!$A$7:$A$159,0),0))","v":5.7363013698630137E-2},{"$f":"(SUM(INDEX(Pupils!$BQ$7:$BQ$159,MATCH($B59,Pupils!$A$7:$A$159,0)),INDEX(Pupils!$BR$7:$BR$159,MATCH($B59,Pupils!$A$7:$A$159,0)),INDEX(Pupils!$BN$7:$BN$159,MATCH($B59,Pupils!$A$7:$A$159,0)),INDEX(Pupils!$BS$7:$BS$159,MATCH($B59,Pupils!$A$7:$A$159,0))))/SUM(INDEX(Pupils!$BH$7:$BS$159,MATCH($B59,Pupils!$A$7:$A$159,0),0))","v":2.9109589041095889E-2},{"$f":"IFERROR((VLOOKUP(B59,Funding,Funding!$C$2,FALSE)), \"x\")","v":23170879.949999999},{"$f":"IFERROR((AA59/VLOOKUP(B59,Funding,Funding!$D$2,FALSE)), \"x\")","v":0.13365828374501723},{"$f":"IFERROR((AA59/(VLOOKUP(B59,Pupils,Pupils!$M$3,FALSE)+VLOOKUP(B59,Pupils,Pupils!$P$3,FALSE))), \"x\")","v":3354.2096048060221},{"$f":"IFERROR((VLOOKUP(B59,Funding,Funding!$E$2,FALSE)), \"x\")","v":24842275.754157152},{"$f":"IFERROR((AD59/VLOOKUP(B59,Funding,Funding!$F$2,FALSE)), \"x\")","v":0.13873558577240655},{"$f":"IFERROR((AD59/(VLOOKUP(B59,Pupils,Pupils!$R$3,FALSE)+VLOOKUP(B59,Pupils,Pupils!$U$3,FALSE))), \"x\")","v":3899.2741726820204},{"$f":"IFERROR((VLOOKUP(B59,Funding,Funding!$G$2,FALSE)), \"x\")","v":25928482.673439525},{"$f":"IFERROR((AG59/VLOOKUP(B59,Funding,Funding!$H$2,FALSE)), \"x\")","v":0.14116625177796022},{"$f":"IFERROR((AG59/(VLOOKUP(B59,Pupils,Pupils!$W$3,FALSE)+VLOOKUP(B59,Pupils,Pupils!$Z$3,FALSE))), \"x\")","v":4218.7573500552435},{"$f":"IFERROR((VLOOKUP(B59,Funding,Funding!$I$2,FALSE)), \"x\")","v":26145491.54837013},{"$f":"IFERROR((AJ59/VLOOKUP(B59,Funding,Funding!$J$2,FALSE)), \"x\")","v":0.13964743783346312},null,{"$f":"IFERROR((VLOOKUP($B59,Funding,Funding!$EC$2,FALSE)), \"x\")","v":15035847.310000001},{"$f":"IFERROR((AM59/VLOOKUP($B59,Funding,Funding!$EU$2,FALSE)), \"x\")","v":9.6027773064652697E-2},{"$f":"IFERROR((AM59/(VLOOKUP($B59,Pupils,Pupils!$D$3,FALSE)+VLOOKUP($B59,Pupils,Pupils!$E$3,FALSE))), \"x\")","v":2069.9129006057269},{"$f":"IFERROR((VLOOKUP($B59,Funding,Funding!$DA$2,FALSE)), \"x\")","v":14333807},{"$f":"IFERROR((AP59/VLOOKUP($B59,Funding,Funding!$DT$2,FALSE)), \"x\")","v":8.8350289217339339E-2},{"$f":"IFERROR((AP59/(VLOOKUP($B59,Pupils,Pupils!$G$3,FALSE)+VLOOKUP($B59,Pupils,Pupils!$H$3,FALSE))), \"x\")","v":1991.9131461923291},{"$f":"IFERROR((VLOOKUP($B59,Funding,Funding!$CE$2,FALSE)), \"x\")","v":16157680},{"$f":"IFERROR((AS59/VLOOKUP($B59,Funding,Funding!$CR$2,FALSE)), \"x\")","v":9.398512706804675E-2},{"$f":"IFERROR((AS59/(VLOOKUP($B59,Pupils,Pupils!$J$3,FALSE)+VLOOKUP($B59,Pupils,Pupils!$K$3,FALSE))), \"x\")","v":2164.1682293061881},{"$f":"IFERROR((VLOOKUP($B59,Funding,Funding!$BM$2,FALSE)), \"x\")","v":17370988},{"$f":"IFERROR((AV59/VLOOKUP($B59,Funding,Funding!$BY$2,FALSE)), \"x\")","v":0.13168425207174472},{"$f":"IFERROR((AV59/(VLOOKUP($B59,Pupils,Pupils!$M$3,FALSE)+VLOOKUP($B59,Pupils,Pupils!$P$3,FALSE))), \"x\")","v":2514.6189924724958},{"$f":"IFERROR((VLOOKUP($B59,Funding,Funding!$AQ$2,FALSE)), \"x\")","v":26374193},{"$f":"IFERROR((AY59/VLOOKUP($B59,Funding,Funding!$BE$2,FALSE)), \"x\")","v":0.1460306220108728},{"$f":"IFERROR((AY59/(VLOOKUP($B59,Pupils,Pupils!$R$3,FALSE)+VLOOKUP($B59,Pupils,Pupils!$U$3,FALSE))), \"x\")","v":4139.7257887301839},{"$f":"IFERROR((VLOOKUP($B59,Funding,Funding!$S$2,FALSE)), \"x\")","v":26467106},{"$f":"IFERROR((BB59/VLOOKUP($B59,Funding,Funding!$AH$2,FALSE)), \"x\")","v":0.14287753534339723},{"$f":"IFERROR((BB59/(VLOOKUP(B59,Pupils,Pupils!$W$3,FALSE)+VLOOKUP(B59,Pupils,Pupils!$Z$3,FALSE))), \"x\")","v":4306.3953791083632},{"$f":"IFERROR((VLOOKUP($B59,Funding,Funding!$GX$2,FALSE)), \"x\")","v":28273647},{"$f":"IFERROR((BE59/VLOOKUP($B59,Funding,Funding!$HC$2,FALSE)), \"x\")","v":0.16226264090946099},{"$f":"IFERROR((BE59/(VLOOKUP($B59,Pupils,Pupils!$D$3,FALSE)+VLOOKUP($B59,Pupils,Pupils!$E$3,FALSE))), \"x\")","v":3892.2972191629956},{"$f":"IFERROR((VLOOKUP($B59,Funding,Funding!$GP$2,FALSE)), \"x\")","v":28178902.300000001},{"$f":"IFERROR((BH59/VLOOKUP($B59,Funding,Funding!$GU$2,FALSE)), \"x\")","v":0.15513815457042426},{"$f":"IFERROR((BH59/(VLOOKUP($B59,Pupils,Pupils!$G$3,FALSE)+VLOOKUP($B59,Pupils,Pupils!$H$3,FALSE))), \"x\")","v":3915.9119371873262},{"$f":"IFERROR((VLOOKUP($B59,Funding,Funding!$GH$2,FALSE)), \"x\")","v":27403455.27},{"$f":"IFERROR((BK59/VLOOKUP($B59,Funding,Funding!$GM$2,FALSE)), \"x\")","v":0.17655532028322635},{"$f":"IFERROR((BK59/(VLOOKUP($B59,Pupils,Pupils!$J$3,FALSE)+VLOOKUP($B59,Pupils,Pupils!$K$3,FALSE))), \"x\")","v":3670.4333337798016},{"$f":"IFERROR((VLOOKUP($B59,Funding,Funding!$FZ$2,FALSE)), \"x\")","v":26706089.77},{"$f":"IFERROR((BN59/VLOOKUP($B59,Funding,Funding!$GE$2,FALSE)), \"x\")","v":0.19853534947850937},{"$f":"IFERROR((BN59/(VLOOKUP($B59,Pupils,Pupils!$M$3,FALSE)+VLOOKUP($B59,Pupils,Pupils!$P$3,FALSE))), \"x\")","v":3865.965513896931},{"$f":"IFERROR((VLOOKUP($B59,Funding,Funding!$FD$2,FALSE)), \"x\")","v":18112681},{"$f":"IFERROR((BQ59/VLOOKUP($B59,Funding,Funding!$FR$2,FALSE)), \"x\")","v":0.13734709620012212},{"$f":"IFERROR((BQ59/(VLOOKUP($B59,Pupils,Pupils!$R$3,FALSE)+VLOOKUP($B59,Pupils,Pupils!$U$3,FALSE))), \"x\")","v":2842.9886987913987},{"$f":"(VLOOKUP(B59,Funding,Funding!$HK$2,FALSE)+VLOOKUP(B59,Funding,Funding!$HL$2,FALSE)+VLOOKUP(B59,Funding,Funding!$HM$2,FALSE))/(VLOOKUP(B59,Funding,Funding!$HN$2,FALSE))","v":0.24150058616647127},{"$f":"IFERROR((VLOOKUP(B59,Other_data,Other!$D$3,FALSE)+VLOOKUP(B59,Other_data,Other!$E$3,FALSE)+VLOOKUP(B59,Other_data,Other!$F$3,FALSE)), \"x\")","v":1160},{"$f":"(VLOOKUP(B59,Other_data,Other!$AK$3,FALSE)+VLOOKUP(B59,Other_data,Other!$AL$3,FALSE))/VLOOKUP(B59,Other_data,Other!$AJ$3,FALSE)","v":3.0474513749161637E-2},{"$f":"(VLOOKUP(B59,Other_data,Other!$AR$3,FALSE)+VLOOKUP(B59,Other_data,Other!$AS$3,FALSE))/VLOOKUP(B59,Other_data,Other!$AQ$3,FALSE)","v":4.4037030314031583E-2},{"$f":"VLOOKUP(B59,Other_data,Other!$AP$3,FALSE)/VLOOKUP(B59,Other_data,Other!$AJ$3,FALSE)","v":6.8955399061032862E-3},{"$f":"VLOOKUP(B59,Other_data,Other!$AW$3,FALSE)/VLOOKUP(B59,Other_data,Other!$AQ$3,FALSE)","v":1.0528226538391723E-2}]
[54,805,"Hartlepool",{"$f":"IFERROR((VLOOKUP($B60,Pupils,Pupils!$D$3,FALSE)/VLOOKUP($B60,Pupils,Pupils!$C$3,FALSE)), \"x\")","v":2.1255722694571617E-2},{"$f":"IFERROR((VLOOKUP($B60,Pupils,Pupils!$G$3,FALSE)/VLOOKUP($B60,Pupils,Pupils!$F$3,FALSE)),\"x\")","v":2.0771708407283245E-2},{"$f":"IFERROR((VLOOKUP($B60,Pupils,Pupils!$J$3,FALSE)/VLOOKUP($B60,Pupils,Pupils!$I$3,FALSE)), \"x\")","v":1.8738786630340887E-2},{"$f":"IFERROR((VLOOKUP($B60,Pupils,Pupils!$M$3,FALSE)/VLOOKUP($B60,Pupils,Pupils!$L$3,FALSE)), \"x\")","v":2.1131469840845258E-2},{"$f":"IFERROR((VLOOKUP($B60,Pupils,Pupils!$R$3,FALSE)/VLOOKUP($B60,Pupils,Pupils!$Q$3,FALSE)), \"x\")","v":2.21732451746477E-2},{"$f":"IFERROR((VLOOKUP($B60,Pupils,Pupils!$W$3,FALSE)/VLOOKUP($B60,Pupils,Pupils!$V$3,FALSE)), \"x\")","v":2.2628372497824196E-2},{"$f":"IFERROR(((VLOOKUP($B60,Pupils,Pupils!$D$3,FALSE)+VLOOKUP($B60,Pupils,Pupils!$E$3,FALSE))/VLOOKUP($B60,Pupils,Pupils!$C$3,FALSE)), \"x\")","v":0.22138652714192283},{"$f":"IFERROR(((VLOOKUP($B60,Pupils,Pupils!$G$3,FALSE)+VLOOKUP($B60,Pupils,Pupils!$H$3,FALSE))/VLOOKUP($B60,Pupils,Pupils!$F$3,FALSE)), \"x\")","v":0.23032932360481168},{"$f":"IFERROR(((VLOOKUP($B60,Pupils,Pupils!$J$3,FALSE)+VLOOKUP($B60,Pupils,Pupils!$K$3,FALSE))/VLOOKUP($B60,Pupils,Pupils!$I$3,FALSE)), \"x\")","v":0.24566416373180941},{"$f":"IFERROR(((VLOOKUP($B60,Pupils,Pupils!$M$3,FALSE)+VLOOKUP($B60,Pupils,Pupils!$P$3,FALSE))/VLOOKUP($B60,Pupils,Pupils!$L$3,FALSE)), \"x\")","v":0.20643306138825732},{"$f":"IFERROR(((VLOOKUP($B60,Pupils,Pupils!$R$3,FALSE)+VLOOKUP($B60,Pupils,Pupils!$U$3,FALSE))/VLOOKUP($B60,Pupils,Pupils!$Q$3,FALSE)), \"x\")","v":0.18506645294864088},{"$f":"IFERROR(((VLOOKUP($B60,Pupils,Pupils!$W$3,FALSE)+VLOOKUP($B60,Pupils,Pupils!$Z$3,FALSE))/VLOOKUP($B60,Pupils,Pupils!$V$3,FALSE)), \"x\")","v":0.17245765548637612},{"$f":"(SUM(INDEX(Pupils!$AB$7:$AB$159,MATCH($B60,Pupils!$A$7:$A$159,0)),INDEX(Pupils!$AC$7:$AC$159,MATCH($B60,Pupils!$A$7:$A$159,0)),INDEX(Pupils!$AD$7:$AD$159,MATCH($B60,Pupils!$A$7:$A$159,0)),INDEX(Pupils!$AE$7:$AE$159,MATCH($B60,Pupils!$A$7:$A$159,0))))/SUM(INDEX(Pupils!$AB$7:$AM$159,MATCH($B60,Pupils!$A$7:$A$159,0),0))","v":0.27041602465331277},{"$f":"SUM(INDEX(Pupils!$AF$7:$AF$159,MATCH($B60,Pupils!$A$7:$A$159,0)))/SUM(INDEX(Pupils!$AB$7:$AM$159,MATCH($B60,Pupils!$A$7:$A$159,0),0))","v":0.22033898305084745},{"$f":"SUM(INDEX(Pupils!$AG$7:$AG$159,MATCH($B60,Pupils!$A$7:$A$159,0)))/SUM(INDEX(Pupils!$AB$7:$AM$159,MATCH($B60,Pupils!$A$7:$A$159,0),0))","v":0.29738058551617874},{"$f":"(SUM(INDEX(Pupils!$AH$7:$AH$159,MATCH($B60,Pupils!$A$7:$A$159,0)),INDEX(Pupils!$AI$7:$AI$159,MATCH($B60,Pupils!$A$7:$A$159,0)),INDEX(Pupils!$AJ$7:$AJ$159,MATCH($B60,Pupils!$A$7:$A$159,0))))/SUM(INDEX(Pupils!$AB$7:$AM$159,MATCH($B60,Pupils!$A$7:$A$159,0),0))","v":3.0816640986132512E-2},{"$f":"SUM(INDEX(Pupils!$AK$7:$AK$159,MATCH($B60,Pupils!$A$7:$A$159,0)))/SUM(INDEX(Pupils!$AB$7:$AM$159,MATCH($B60,Pupils!$A$7:$A$159,0),0))","v":4.3143297380585519E-2},{"$f":"SUM(INDEX(Pupils!$AL$7:$AL$159,MATCH($B60,Pupils!$A$7:$A$159,0)))/SUM(INDEX(Pupils!$AB$7:$AM$159,MATCH($B60,Pupils!$A$7:$A$159,0),0))","v":9.5531587057010786E-2},{"$f":"SUM(INDEX(Pupils!$AM$7:$AM$159,MATCH($B60,Pupils!$A$7:$A$159,0)))/SUM(INDEX(Pupils!$AB$7:$AM$159,MATCH($B60,Pupils!$A$7:$A$159,0),0))","v":4.2372881355932202E-2},{"$f":"(SUM(INDEX(Pupils!$BH$7:$BH$159,MATCH($B60,Pupils!$A$7:$A$159,0)),INDEX(Pupils!$BK$7:$BK$159,MATCH($B60,Pupils!$A$7:$A$159,0)),INDEX(Pupils!$BO$7:$BO$159,MATCH($B60,Pupils!$A$7:$A$159,0))))/SUM(INDEX(Pupils!$BH$7:$BS$159,MATCH($B60,Pupils!$A$7:$A$159,0),0))","v":0.31388888888888888},{"$f":"(SUM(INDEX(Pupils!$BL$7:$BL$159,MATCH($B60,Pupils!$A$7:$A$159,0)),INDEX(Pupils!$BM$7:$BM$159,MATCH($B60,Pupils!$A$7:$A$159,0)),INDEX(Pupils!$BP$7:$BP$159,MATCH($B60,Pupils!$A$7:$A$159,0))))/SUM(INDEX(Pupils!$BH$7:$BS$159,MATCH($B60,Pupils!$A$7:$A$159,0),0))","v":0.55000000000000004},{"$f":"(SUM(INDEX(Pupils!$BI$7:$BI$159,MATCH($B60,Pupils!$A$7:$A$159,0)),INDEX(Pupils!$BJ$7:$BJ$159,MATCH($B60,Pupils!$A$7:$A$159,0))))/SUM(INDEX(Pupils!$BH$7:$BS$159,MATCH($B60,Pupils!$A$7:$A$159,0),0))","v":0.12222222222222222},{"$f":"(SUM(INDEX(Pupils!$BQ$7:$BQ$159,MATCH($B60,Pupils!$A$7:$A$159,0)),INDEX(Pupils!$BR$7:$BR$159,MATCH($B60,Pupils!$A$7:$A$159,0)),INDEX(Pupils!$BN$7:$BN$159,MATCH($B60,Pupils!$A$7:$A$159,0)),INDEX(Pupils!$BS$7:$BS$159,MATCH($B60,Pupils!$A$7:$A$159,0))))/SUM(INDEX(Pupils!$BH$7:$BS$159,MATCH($B60,Pupils!$A$7:$A$159,0),0))","v":1.3888888888888888E-2},{"$f":"IFERROR((VLOOKUP(B60,Funding,Funding!$C$2,FALSE)), \"x\")","v":9533147},{"$f":"IFERROR((AA60/VLOOKUP(B60,Funding,Funding!$D$2,FALSE)), \"x\")","v":0.13051141476262204},{"$f":"IFERROR((AA60/(VLOOKUP(B60,Pupils,Pupils!$M$3,FALSE)+VLOOKUP(B60,Pupils,Pupils!$P$3,FALSE))), \"x\")","v":3088.1590540978295},{"$f":"IFERROR((VLOOKUP(B60,Funding,Funding!$E$2,FALSE)), \"x\")","v":9898400.8078528084},{"$f":"IFERROR((AD60/VLOOKUP(B60,Funding,Funding!$F$2,FALSE)), \"x\")","v":0.13224638566819322},{"$f":"IFERROR((AD60/(VLOOKUP(B60,Pupils,Pupils!$R$3,FALSE)+VLOOKUP(B60,Pupils,Pupils!$U$3,FALSE))), \"x\")","v":3572.1403131911975},{"$f":"IFERROR((VLOOKUP(B60,Funding,Funding!$G$2,FALSE)), \"x\")","v":10336754.92245486},{"$f":"IFERROR((AG60/VLOOKUP(B60,Funding,Funding!$H$2,FALSE)), \"x\")","v":0.13599866179995057},{"$f":"IFERROR((AG60/(VLOOKUP(B60,Pupils,Pupils!$W$3,FALSE)+VLOOKUP(B60,Pupils,Pupils!$Z$3,FALSE))), \"x\")","v":4012.7154202076322},{"$f":"IFERROR((VLOOKUP(B60,Funding,Funding!$I$2,FALSE)), \"x\")","v":10482019.786567051},{"$f":"IFERROR((AJ60/VLOOKUP(B60,Funding,Funding!$J$2,FALSE)), \"x\")","v":0.14096694083443678},null,{"$f":"IFERROR((VLOOKUP($B60,Funding,Funding!$EC$2,FALSE)), \"x\")","v":5696071},{"$f":"IFERROR((AM60/VLOOKUP($B60,Funding,Funding!$EU$2,FALSE)), \"x\")","v":7.7412386776112313E-2},{"$f":"IFERROR((AM60/(VLOOKUP($B60,Pupils,Pupils!$D$3,FALSE)+VLOOKUP($B60,Pupils,Pupils!$E$3,FALSE))), \"x\")","v":1682.7388478581979},{"$f":"IFERROR((VLOOKUP($B60,Funding,Funding!$DA$2,FALSE)), \"x\")","v":6131223},{"$f":"IFERROR((AP60/VLOOKUP($B60,Funding,Funding!$DT$2,FALSE)), \"x\")","v":7.8981502614874105E-2},{"$f":"IFERROR((AP60/(VLOOKUP($B60,Pupils,Pupils!$G$3,FALSE)+VLOOKUP($B60,Pupils,Pupils!$H$3,FALSE))), \"x\")","v":1749.7782534246576},{"$f":"IFERROR((VLOOKUP($B60,Funding,Funding!$CE$2,FALSE)), \"x\")","v":7375909},{"$f":"IFERROR((AS60/VLOOKUP($B60,Funding,Funding!$CR$2,FALSE)), \"x\")","v":9.383786873149165E-2},{"$f":"IFERROR((AS60/(VLOOKUP($B60,Pupils,Pupils!$J$3,FALSE)+VLOOKUP($B60,Pupils,Pupils!$K$3,FALSE))), \"x\")","v":1995.1065728969434},{"$f":"IFERROR((VLOOKUP($B60,Funding,Funding!$BM$2,FALSE)), \"x\")","v":7544476.6200000001},{"$f":"IFERROR((AV60/VLOOKUP($B60,Funding,Funding!$BY$2,FALSE)), \"x\")","v":9.5355763342972411E-2},{"$f":"IFERROR((AV60/(VLOOKUP($B60,Pupils,Pupils!$M$3,FALSE)+VLOOKUP($B60,Pupils,Pupils!$P$3,FALSE))), \"x\")","v":2443.9509620991253},{"$f":"IFERROR((VLOOKUP($B60,Funding,Funding!$AQ$2,FALSE)), \"x\")","v":7758470},{"$f":"IFERROR((AY60/VLOOKUP($B60,Funding,Funding!$BE$2,FALSE)), \"x\")","v":0.1016688791215974},{"$f":"IFERROR((AY60/(VLOOKUP($B60,Pupils,Pupils!$R$3,FALSE)+VLOOKUP($B60,Pupils,Pupils!$U$3,FALSE))), \"x\")","v":2799.8809094189824},{"$f":"IFERROR((VLOOKUP($B60,Funding,Funding!$S$2,FALSE)), \"x\")","v":8540843},{"$f":"IFERROR((BB60/VLOOKUP($B60,Funding,Funding!$AH$2,FALSE)), \"x\")","v":0.10940885262885701},{"$f":"IFERROR((BB60/(VLOOKUP(B60,Pupils,Pupils!$W$3,FALSE)+VLOOKUP(B60,Pupils,Pupils!$Z$3,FALSE))), \"x\")","v":3315.5446428571427},{"$f":"IFERROR((VLOOKUP($B60,Funding,Funding!$GX$2,FALSE)), \"x\")","v":14372460},{"$f":"IFERROR((BE60/VLOOKUP($B60,Funding,Funding!$HC$2,FALSE)), \"x\")","v":0.17553357010554282},{"$f":"IFERROR((BE60/(VLOOKUP($B60,Pupils,Pupils!$D$3,FALSE)+VLOOKUP($B60,Pupils,Pupils!$E$3,FALSE))), \"x\")","v":4245.9261447562776},{"$f":"IFERROR((VLOOKUP($B60,Funding,Funding!$GP$2,FALSE)), \"x\")","v":16093094},{"$f":"IFERROR((BH60/VLOOKUP($B60,Funding,Funding!$GU$2,FALSE)), \"x\")","v":0.19093914399371997},{"$f":"IFERROR((BH60/(VLOOKUP($B60,Pupils,Pupils!$G$3,FALSE)+VLOOKUP($B60,Pupils,Pupils!$H$3,FALSE))), \"x\")","v":4592.7779680365293},{"$f":"IFERROR((VLOOKUP($B60,Funding,Funding!$GH$2,FALSE)), \"x\")","v":8600549.5199999996},{"$f":"IFERROR((BK60/VLOOKUP($B60,Funding,Funding!$GM$2,FALSE)), \"x\")","v":0.1021240535332016},{"$f":"IFERROR((BK60/(VLOOKUP($B60,Pupils,Pupils!$J$3,FALSE)+VLOOKUP($B60,Pupils,Pupils!$K$3,FALSE))), \"x\")","v":2326.3590803354068},{"$f":"IFERROR((VLOOKUP($B60,Funding,Funding!$FZ$2,FALSE)), \"x\")","v":9217453.6400000006},{"$f":"IFERROR((BN60/VLOOKUP($B60,Funding,Funding!$GE$2,FALSE)), \"x\")","v":0.10576934637883473},{"$f":"IFERROR((BN60/(VLOOKUP($B60,Pupils,Pupils!$M$3,FALSE)+VLOOKUP($B60,Pupils,Pupils!$P$3,FALSE))), \"x\")","v":2985.8936313573049},{"$f":"IFERROR((VLOOKUP($B60,Funding,Funding!$FD$2,FALSE)), \"x\")","v":7596702},{"$f":"IFERROR((BQ60/VLOOKUP($B60,Funding,Funding!$FR$2,FALSE)), \"x\")","v":0.11131746691231563},{"$f":"IFERROR((BQ60/(VLOOKUP($B60,Pupils,Pupils!$R$3,FALSE)+VLOOKUP($B60,Pupils,Pupils!$U$3,FALSE))), \"x\")","v":2741.501984843017},{"$f":"(VLOOKUP(B60,Funding,Funding!$HK$2,FALSE)+VLOOKUP(B60,Funding,Funding!$HL$2,FALSE)+VLOOKUP(B60,Funding,Funding!$HM$2,FALSE))/(VLOOKUP(B60,Funding,Funding!$HN$2,FALSE))","v":0.35331905781584583},{"$f":"IFERROR((VLOOKUP(B60,Other_data,Other!$D$3,FALSE)+VLOOKUP(B60,Other_data,Other!$E$3,FALSE)+VLOOKUP(B60,Other_data,Other!$F$3,FALSE)), \"x\")","v":660},{"$f":"(VLOOKUP(B60,Other_data,Other!$AK$3,FALSE)+VLOOKUP(B60,Other_data,Other!$AL$3,FALSE))/VLOOKUP(B60,Other_data,Other!$AJ$3,FALSE)","v":4.1528519246979485E-2},{"$f":"(VLOOKUP(B60,Other_data,Other!$AR$3,FALSE)+VLOOKUP(B60,Other_data,Other!$AS$3,FALSE))/VLOOKUP(B60,Other_data,Other!$AQ$3,FALSE)","v":5.5748175182481749E-2},{"$f":"VLOOKUP(B60,Other_data,Other!$AP$3,FALSE)/VLOOKUP(B60,Other_data,Other!$AJ$3,FALSE)","v":6.1253161000280974E-3},{"$f":"VLOOKUP(B60,Other_data,Other!$AW$3,FALSE)/VLOOKUP(B60,Other_data,Other!$AQ$3,FALSE)","v":1.1405109489051095E-2}]
[55,311,"Havering",{"$f":"IFERROR((VLOOKUP($B61,Pupils,Pupils!$D$3,FALSE)/VLOOKUP($B61,Pupils,Pupils!$C$3,FALSE)), \"x\")","v":1.9008532238902691E-2},{"$f":"IFERROR((VLOOKUP($B61,Pupils,Pupils!$G$3,FALSE)/VLOOKUP($B61,Pupils,Pupils!$F$3,FALSE)),\"x\")","v":1.660511631668329E-2},{"$f":"IFERROR((VLOOKUP($B61,Pupils,Pupils!$J$3,FALSE)/VLOOKUP($B61,Pupils,Pupils!$I$3,FALSE)), \"x\")","v":1.579668484539129E-2},{"$f":"IFERROR((VLOOKUP($B61,Pupils,Pupils!$M$3,FALSE)/VLOOKUP($B61,Pupils,Pupils!$L$3,FALSE)), \"x\")","v":1.6079673574573176E-2},{"$f":"IFERROR((VLOOKUP($B61,Pupils,Pupils!$R$3,FALSE)/VLOOKUP($B61,Pupils,Pupils!$Q$3,FALSE)), \"x\")","v":1.6621456305515665E-2},{"$f":"IFERROR((VLOOKUP($B61,Pupils,Pupils!$W$3,FALSE)/VLOOKUP($B61,Pupils,Pupils!$V$3,FALSE)), \"x\")","v":2.1205210872585253E-2},{"$f":"IFERROR(((VLOOKUP($B61,Pupils,Pupils!$D$3,FALSE)+VLOOKUP($B61,Pupils,Pupils!$E$3,FALSE))/VLOOKUP($B61,Pupils,Pupils!$C$3,FALSE)), \"x\")","v":0.16699967599092774},{"$f":"IFERROR(((VLOOKUP($B61,Pupils,Pupils!$G$3,FALSE)+VLOOKUP($B61,Pupils,Pupils!$H$3,FALSE))/VLOOKUP($B61,Pupils,Pupils!$F$3,FALSE)), \"x\")","v":0.17413807046391891},{"$f":"IFERROR(((VLOOKUP($B61,Pupils,Pupils!$J$3,FALSE)+VLOOKUP($B61,Pupils,Pupils!$K$3,FALSE))/VLOOKUP($B61,Pupils,Pupils!$I$3,FALSE)), \"x\")","v":0.15530720253606642},{"$f":"IFERROR(((VLOOKUP($B61,Pupils,Pupils!$M$3,FALSE)+VLOOKUP($B61,Pupils,Pupils!$P$3,FALSE))/VLOOKUP($B61,Pupils,Pupils!$L$3,FALSE)), \"x\")","v":0.1509180715129389},{"$f":"IFERROR(((VLOOKUP($B61,Pupils,Pupils!$R$3,FALSE)+VLOOKUP($B61,Pupils,Pupils!$U$3,FALSE))/VLOOKUP($B61,Pupils,Pupils!$Q$3,FALSE)), \"x\")","v":0.14414126908143185},{"$f":"IFERROR(((VLOOKUP($B61,Pupils,Pupils!$W$3,FALSE)+VLOOKUP($B61,Pupils,Pupils!$Z$3,FALSE))/VLOOKUP($B61,Pupils,Pupils!$V$3,FALSE)), \"x\")","v":0.13973421404419281},{"$f":"(SUM(INDEX(Pupils!$AB$7:$AB$159,MATCH($B61,Pupils!$A$7:$A$159,0)),INDEX(Pupils!$AC$7:$AC$159,MATCH($B61,Pupils!$A$7:$A$159,0)),INDEX(Pupils!$AD$7:$AD$159,MATCH($B61,Pupils!$A$7:$A$159,0)),INDEX(Pupils!$AE$7:$AE$159,MATCH($B61,Pupils!$A$7:$A$159,0))))/SUM(INDEX(Pupils!$AB$7:$AM$159,MATCH($B61,Pupils!$A$7:$A$159,0),0))","v":0.34021406727828746},{"$f":"SUM(INDEX(Pupils!$AF$7:$AF$159,MATCH($B61,Pupils!$A$7:$A$159,0)))/SUM(INDEX(Pupils!$AB$7:$AM$159,MATCH($B61,Pupils!$A$7:$A$159,0),0))","v":0.19839449541284404},{"$f":"SUM(INDEX(Pupils!$AG$7:$AG$159,MATCH($B61,Pupils!$A$7:$A$159,0)))/SUM(INDEX(Pupils!$AB$7:$AM$159,MATCH($B61,Pupils!$A$7:$A$159,0),0))","v":0.25611620795107032},{"$f":"(SUM(INDEX(Pupils!$AH$7:$AH$159,MATCH($B61,Pupils!$A$7:$A$159,0)),INDEX(Pupils!$AI$7:$AI$159,MATCH($B61,Pupils!$A$7:$A$159,0)),INDEX(Pupils!$AJ$7:$AJ$159,MATCH($B61,Pupils!$A$7:$A$159,0))))/SUM(INDEX(Pupils!$AB$7:$AM$159,MATCH($B61,Pupils!$A$7:$A$159,0),0))","v":4.1666666666666664E-2},{"$f":"SUM(INDEX(Pupils!$AK$7:$AK$159,MATCH($B61,Pupils!$A$7:$A$159,0)))/SUM(INDEX(Pupils!$AB$7:$AM$159,MATCH($B61,Pupils!$A$7:$A$159,0),0))","v":4.0519877675840976E-2},{"$f":"SUM(INDEX(Pupils!$AL$7:$AL$159,MATCH($B61,Pupils!$A$7:$A$159,0)))/SUM(INDEX(Pupils!$AB$7:$AM$159,MATCH($B61,Pupils!$A$7:$A$159,0),0))","v":9.1743119266055051E-2},{"$f":"SUM(INDEX(Pupils!$AM$7:$AM$159,MATCH($B61,Pupils!$A$7:$A$159,0)))/SUM(INDEX(Pupils!$AB$7:$AM$159,MATCH($B61,Pupils!$A$7:$A$159,0),0))","v":3.1345565749235471E-2},{"$f":"(SUM(INDEX(Pupils!$BH$7:$BH$159,MATCH($B61,Pupils!$A$7:$A$159,0)),INDEX(Pupils!$BK$7:$BK$159,MATCH($B61,Pupils!$A$7:$A$159,0)),INDEX(Pupils!$BO$7:$BO$159,MATCH($B61,Pupils!$A$7:$A$159,0))))/SUM(INDEX(Pupils!$BH$7:$BS$159,MATCH($B61,Pupils!$A$7:$A$159,0),0))","v":0.58959537572254339},{"$f":"(SUM(INDEX(Pupils!$BL$7:$BL$159,MATCH($B61,Pupils!$A$7:$A$159,0)),INDEX(Pupils!$BM$7:$BM$159,MATCH($B61,Pupils!$A$7:$A$159,0)),INDEX(Pupils!$BP$7:$BP$159,MATCH($B61,Pupils!$A$7:$A$159,0))))/SUM(INDEX(Pupils!$BH$7:$BS$159,MATCH($B61,Pupils!$A$7:$A$159,0),0))","v":0.33988439306358381},{"$f":"(SUM(INDEX(Pupils!$BI$7:$BI$159,MATCH($B61,Pupils!$A$7:$A$159,0)),INDEX(Pupils!$BJ$7:$BJ$159,MATCH($B61,Pupils!$A$7:$A$159,0))))/SUM(INDEX(Pupils!$BH$7:$BS$159,MATCH($B61,Pupils!$A$7:$A$159,0),0))","v":3.9306358381502891E-2},{"$f":"(SUM(INDEX(Pupils!$BQ$7:$BQ$159,MATCH($B61,Pupils!$A$7:$A$159,0)),INDEX(Pupils!$BR$7:$BR$159,MATCH($B61,Pupils!$A$7:$A$159,0)),INDEX(Pupils!$BN$7:$BN$159,MATCH($B61,Pupils!$A$7:$A$159,0)),INDEX(Pupils!$BS$7:$BS$159,MATCH($B61,Pupils!$A$7:$A$159,0))))/SUM(INDEX(Pupils!$BH$7:$BS$159,MATCH($B61,Pupils!$A$7:$A$159,0),0))","v":3.121387283236994E-2},{"$f":"IFERROR((VLOOKUP(B61,Funding,Funding!$C$2,FALSE)), \"x\")","v":17547364},{"$f":"IFERROR((AA61/VLOOKUP(B61,Funding,Funding!$D$2,FALSE)), \"x\")","v":9.4921827125063668E-2},{"$f":"IFERROR((AA61/(VLOOKUP(B61,Pupils,Pupils!$M$3,FALSE)+VLOOKUP(B61,Pupils,Pupils!$P$3,FALSE))), \"x\")","v":3121.1960156527925},{"$f":"IFERROR((VLOOKUP(B61,Funding,Funding!$E$2,FALSE)), \"x\")","v":18037535.62734988},{"$f":"IFERROR((AD61/VLOOKUP(B61,Funding,Funding!$F$2,FALSE)), \"x\")","v":9.5137402291175829E-2},{"$f":"IFERROR((AD61/(VLOOKUP(B61,Pupils,Pupils!$R$3,FALSE)+VLOOKUP(B61,Pupils,Pupils!$U$3,FALSE))), \"x\")","v":3327.9586028320809},{"$f":"IFERROR((VLOOKUP(B61,Funding,Funding!$G$2,FALSE)), \"x\")","v":18874748.251498926},{"$f":"IFERROR((AG61/VLOOKUP(B61,Funding,Funding!$H$2,FALSE)), \"x\")","v":9.7325348887858668E-2},{"$f":"IFERROR((AG61/(VLOOKUP(B61,Pupils,Pupils!$W$3,FALSE)+VLOOKUP(B61,Pupils,Pupils!$Z$3,FALSE))), \"x\")","v":3540.5642940346888},{"$f":"IFERROR((VLOOKUP(B61,Funding,Funding!$I$2,FALSE)), \"x\")","v":19161137.834032141},{"$f":"IFERROR((AJ61/VLOOKUP(B61,Funding,Funding!$J$2,FALSE)), \"x\")","v":9.8821218657494131E-2},null,{"$f":"IFERROR((VLOOKUP($B61,Funding,Funding!$EC$2,FALSE)), \"x\")","v":7946096},{"$f":"IFERROR((AM61/VLOOKUP($B61,Funding,Funding!$EU$2,FALSE)), \"x\")","v":4.3321255630216368E-2},{"$f":"IFERROR((AM61/(VLOOKUP($B61,Pupils,Pupils!$D$3,FALSE)+VLOOKUP($B61,Pupils,Pupils!$E$3,FALSE))), \"x\")","v":1284.7366208569119},{"$f":"IFERROR((VLOOKUP($B61,Funding,Funding!$DA$2,FALSE)), \"x\")","v":8655370.9096000008},{"$f":"IFERROR((AP61/VLOOKUP($B61,Funding,Funding!$DT$2,FALSE)), \"x\")","v":4.4565517355827089E-2},{"$f":"IFERROR((AP61/(VLOOKUP($B61,Pupils,Pupils!$G$3,FALSE)+VLOOKUP($B61,Pupils,Pupils!$H$3,FALSE))), \"x\")","v":1339.8406980804955},{"$f":"IFERROR((VLOOKUP($B61,Funding,Funding!$CE$2,FALSE)), \"x\")","v":9152385},{"$f":"IFERROR((AS61/VLOOKUP($B61,Funding,Funding!$CR$2,FALSE)), \"x\")","v":5.197502139662899E-2},{"$f":"IFERROR((AS61/(VLOOKUP($B61,Pupils,Pupils!$J$3,FALSE)+VLOOKUP($B61,Pupils,Pupils!$K$3,FALSE))), \"x\")","v":1583.1837052413077},{"$f":"IFERROR((VLOOKUP($B61,Funding,Funding!$BM$2,FALSE)), \"x\")","v":9742325.290000001},{"$f":"IFERROR((AV61/VLOOKUP($B61,Funding,Funding!$BY$2,FALSE)), \"x\")","v":6.8436514069688745E-2},{"$f":"IFERROR((AV61/(VLOOKUP($B61,Pupils,Pupils!$M$3,FALSE)+VLOOKUP($B61,Pupils,Pupils!$P$3,FALSE))), \"x\")","v":1732.8931501245111},{"$f":"IFERROR((VLOOKUP($B61,Funding,Funding!$AQ$2,FALSE)), \"x\")","v":17150367},{"$f":"IFERROR((AY61/VLOOKUP($B61,Funding,Funding!$BE$2,FALSE)), \"x\")","v":9.0448704628492374E-2},{"$f":"IFERROR((AY61/(VLOOKUP($B61,Pupils,Pupils!$R$3,FALSE)+VLOOKUP($B61,Pupils,Pupils!$U$3,FALSE))), \"x\")","v":3164.2743542435423},{"$f":"IFERROR((VLOOKUP($B61,Funding,Funding!$S$2,FALSE)), \"x\")","v":16477154},{"$f":"IFERROR((BB61/VLOOKUP($B61,Funding,Funding!$AH$2,FALSE)), \"x\")","v":8.4788311238046588E-2},{"$f":"IFERROR((BB61/(VLOOKUP(B61,Pupils,Pupils!$W$3,FALSE)+VLOOKUP(B61,Pupils,Pupils!$Z$3,FALSE))), \"x\")","v":3090.8186081410618},{"$f":"IFERROR((VLOOKUP($B61,Funding,Funding!$GX$2,FALSE)), \"x\")","v":20310835.09711},{"$f":"IFERROR((BE61/VLOOKUP($B61,Funding,Funding!$HC$2,FALSE)), \"x\")","v":0.1053278678214384},{"$f":"IFERROR((BE61/(VLOOKUP($B61,Pupils,Pupils!$D$3,FALSE)+VLOOKUP($B61,Pupils,Pupils!$E$3,FALSE))), \"x\")","v":3283.886030252223},{"$f":"IFERROR((VLOOKUP($B61,Funding,Funding!$GP$2,FALSE)), \"x\")","v":23092733.66},{"$f":"IFERROR((BH61/VLOOKUP($B61,Funding,Funding!$GU$2,FALSE)), \"x\")","v":0.11482872430431833},{"$f":"IFERROR((BH61/(VLOOKUP($B61,Pupils,Pupils!$G$3,FALSE)+VLOOKUP($B61,Pupils,Pupils!$H$3,FALSE))), \"x\")","v":3574.7265727554181},{"$f":"IFERROR((VLOOKUP($B61,Funding,Funding!$GH$2,FALSE)), \"x\")","v":20566258.419999998},{"$f":"IFERROR((BK61/VLOOKUP($B61,Funding,Funding!$GM$2,FALSE)), \"x\")","v":0.1316701005021868},{"$f":"IFERROR((BK61/(VLOOKUP($B61,Pupils,Pupils!$J$3,FALSE)+VLOOKUP($B61,Pupils,Pupils!$K$3,FALSE))), \"x\")","v":3557.5607023006396},{"$f":"IFERROR((VLOOKUP($B61,Funding,Funding!$FZ$2,FALSE)), \"x\")","v":22092302.07},{"$f":"IFERROR((BN61/VLOOKUP($B61,Funding,Funding!$GE$2,FALSE)), \"x\")","v":0.16083163179549978},{"$f":"IFERROR((BN61/(VLOOKUP($B61,Pupils,Pupils!$M$3,FALSE)+VLOOKUP($B61,Pupils,Pupils!$P$3,FALSE))), \"x\")","v":3929.6161632870867},{"$f":"IFERROR((VLOOKUP($B61,Funding,Funding!$FD$2,FALSE)), \"x\")","v":17382842},{"$f":"IFERROR((BQ61/VLOOKUP($B61,Funding,Funding!$FR$2,FALSE)), \"x\")","v":0.13920830445346732},{"$f":"IFERROR((BQ61/(VLOOKUP($B61,Pupils,Pupils!$R$3,FALSE)+VLOOKUP($B61,Pupils,Pupils!$U$3,FALSE))), \"x\")","v":3207.1664206642067},{"$f":"(VLOOKUP(B61,Funding,Funding!$HK$2,FALSE)+VLOOKUP(B61,Funding,Funding!$HL$2,FALSE)+VLOOKUP(B61,Funding,Funding!$HM$2,FALSE))/(VLOOKUP(B61,Funding,Funding!$HN$2,FALSE))","v":0.30738255033557049},{"$f":"IFERROR((VLOOKUP(B61,Other_data,Other!$D$3,FALSE)+VLOOKUP(B61,Other_data,Other!$E$3,FALSE)+VLOOKUP(B61,Other_data,Other!$F$3,FALSE)), \"x\")","v":1310},{"$f":"(VLOOKUP(B61,Other_data,Other!$AK$3,FALSE)+VLOOKUP(B61,Other_data,Other!$AL$3,FALSE))/VLOOKUP(B61,Other_data,Other!$AJ$3,FALSE)","v":3.3268719289546049E-2},{"$f":"(VLOOKUP(B61,Other_data,Other!$AR$3,FALSE)+VLOOKUP(B61,Other_data,Other!$AS$3,FALSE))/VLOOKUP(B61,Other_data,Other!$AQ$3,FALSE)","v":4.4889986363468838E-2},{"$f":"VLOOKUP(B61,Other_data,Other!$AP$3,FALSE)/VLOOKUP(B61,Other_data,Other!$AJ$3,FALSE)","v":6.1759004643195236E-3},{"$f":"VLOOKUP(B61,Other_data,Other!$AW$3,FALSE)/VLOOKUP(B61,Other_data,Other!$AQ$3,FALSE)","v":8.8453175100431207E-3}]
[56,884,"Herefordshire",{"$f":"IFERROR((VLOOKUP($B62,Pupils,Pupils!$D$3,FALSE)/VLOOKUP($B62,Pupils,Pupils!$C$3,FALSE)), \"x\")","v":2.5800711743772242E-2},{"$f":"IFERROR((VLOOKUP($B62,Pupils,Pupils!$G$3,FALSE)/VLOOKUP($B62,Pupils,Pupils!$F$3,FALSE)),\"x\")","v":2.4614254224834681E-2},{"$f":"IFERROR((VLOOKUP($B62,Pupils,Pupils!$J$3,FALSE)/VLOOKUP($B62,Pupils,Pupils!$I$3,FALSE)), \"x\")","v":2.4051309460181722E-2},{"$f":"IFERROR((VLOOKUP($B62,Pupils,Pupils!$M$3,FALSE)/VLOOKUP($B62,Pupils,Pupils!$L$3,FALSE)), \"x\")","v":2.475714227159077E-2},{"$f":"IFERROR((VLOOKUP($B62,Pupils,Pupils!$R$3,FALSE)/VLOOKUP($B62,Pupils,Pupils!$Q$3,FALSE)), \"x\")","v":2.5338253382533826E-2},{"$f":"IFERROR((VLOOKUP($B62,Pupils,Pupils!$W$3,FALSE)/VLOOKUP($B62,Pupils,Pupils!$V$3,FALSE)), \"x\")","v":2.5091799265605876E-2},{"$f":"IFERROR(((VLOOKUP($B62,Pupils,Pupils!$D$3,FALSE)+VLOOKUP($B62,Pupils,Pupils!$E$3,FALSE))/VLOOKUP($B62,Pupils,Pupils!$C$3,FALSE)), \"x\")","v":0.22525072791976705},{"$f":"IFERROR(((VLOOKUP($B62,Pupils,Pupils!$G$3,FALSE)+VLOOKUP($B62,Pupils,Pupils!$H$3,FALSE))/VLOOKUP($B62,Pupils,Pupils!$F$3,FALSE)), \"x\")","v":0.22854926932810843},{"$f":"IFERROR(((VLOOKUP($B62,Pupils,Pupils!$J$3,FALSE)+VLOOKUP($B62,Pupils,Pupils!$K$3,FALSE))/VLOOKUP($B62,Pupils,Pupils!$I$3,FALSE)), \"x\")","v":0.22575340212967152},{"$f":"IFERROR(((VLOOKUP($B62,Pupils,Pupils!$M$3,FALSE)+VLOOKUP($B62,Pupils,Pupils!$P$3,FALSE))/VLOOKUP($B62,Pupils,Pupils!$L$3,FALSE)), \"x\")","v":0.21539533549206868},{"$f":"IFERROR(((VLOOKUP($B62,Pupils,Pupils!$R$3,FALSE)+VLOOKUP($B62,Pupils,Pupils!$U$3,FALSE))/VLOOKUP($B62,Pupils,Pupils!$Q$3,FALSE)), \"x\")","v":0.21644116441164413},{"$f":"IFERROR(((VLOOKUP($B62,Pupils,Pupils!$W$3,FALSE)+VLOOKUP($B62,Pupils,Pupils!$Z$3,FALSE))/VLOOKUP($B62,Pupils,Pupils!$V$3,FALSE)), \"x\")","v":0.20999592003263973},{"$f":"(SUM(INDEX(Pupils!$AB$7:$AB$159,MATCH($B62,Pupils!$A$7:$A$159,0)),INDEX(Pupils!$AC$7:$AC$159,MATCH($B62,Pupils!$A$7:$A$159,0)),INDEX(Pupils!$AD$7:$AD$159,MATCH($B62,Pupils!$A$7:$A$159,0)),INDEX(Pupils!$AE$7:$AE$159,MATCH($B62,Pupils!$A$7:$A$159,0))))/SUM(INDEX(Pupils!$AB$7:$AM$159,MATCH($B62,Pupils!$A$7:$A$159,0),0))","v":0.41490262489415747},{"$f":"SUM(INDEX(Pupils!$AF$7:$AF$159,MATCH($B62,Pupils!$A$7:$A$159,0)))/SUM(INDEX(Pupils!$AB$7:$AM$159,MATCH($B62,Pupils!$A$7:$A$159,0),0))","v":0.20660457239627433},{"$f":"SUM(INDEX(Pupils!$AG$7:$AG$159,MATCH($B62,Pupils!$A$7:$A$159,0)))/SUM(INDEX(Pupils!$AB$7:$AM$159,MATCH($B62,Pupils!$A$7:$A$159,0),0))","v":0.19093988145639287},{"$f":"(SUM(INDEX(Pupils!$AH$7:$AH$159,MATCH($B62,Pupils!$A$7:$A$159,0)),INDEX(Pupils!$AI$7:$AI$159,MATCH($B62,Pupils!$A$7:$A$159,0)),INDEX(Pupils!$AJ$7:$AJ$159,MATCH($B62,Pupils!$A$7:$A$159,0))))/SUM(INDEX(Pupils!$AB$7:$AM$159,MATCH($B62,Pupils!$A$7:$A$159,0),0))","v":3.4716342082980522E-2},{"$f":"SUM(INDEX(Pupils!$AK$7:$AK$159,MATCH($B62,Pupils!$A$7:$A$159,0)))/SUM(INDEX(Pupils!$AB$7:$AM$159,MATCH($B62,Pupils!$A$7:$A$159,0),0))","v":2.4978831498729891E-2},{"$f":"SUM(INDEX(Pupils!$AL$7:$AL$159,MATCH($B62,Pupils!$A$7:$A$159,0)))/SUM(INDEX(Pupils!$AB$7:$AM$159,MATCH($B62,Pupils!$A$7:$A$159,0),0))","v":5.2074513124470791E-2},{"$f":"SUM(INDEX(Pupils!$AM$7:$AM$159,MATCH($B62,Pupils!$A$7:$A$159,0)))/SUM(INDEX(Pupils!$AB$7:$AM$159,MATCH($B62,Pupils!$A$7:$A$159,0),0))","v":7.5783234546994066E-2},{"$f":"(SUM(INDEX(Pupils!$BH$7:$BH$159,MATCH($B62,Pupils!$A$7:$A$159,0)),INDEX(Pupils!$BK$7:$BK$159,MATCH($B62,Pupils!$A$7:$A$159,0)),INDEX(Pupils!$BO$7:$BO$159,MATCH($B62,Pupils!$A$7:$A$159,0))))/SUM(INDEX(Pupils!$BH$7:$BS$159,MATCH($B62,Pupils!$A$7:$A$159,0),0))","v":0.41467576791808874},{"$f":"(SUM(INDEX(Pupils!$BL$7:$BL$159,MATCH($B62,Pupils!$A$7:$A$159,0)),INDEX(Pupils!$BM$7:$BM$159,MATCH($B62,Pupils!$A$7:$A$159,0)),INDEX(Pupils!$BP$7:$BP$159,MATCH($B62,Pupils!$A$7:$A$159,0))))/SUM(INDEX(Pupils!$BH$7:$BS$159,MATCH($B62,Pupils!$A$7:$A$159,0),0))","v":0.49658703071672355},{"$f":"(SUM(INDEX(Pupils!$BI$7:$BI$159,MATCH($B62,Pupils!$A$7:$A$159,0)),INDEX(Pupils!$BJ$7:$BJ$159,MATCH($B62,Pupils!$A$7:$A$159,0))))/SUM(INDEX(Pupils!$BH$7:$BS$159,MATCH($B62,Pupils!$A$7:$A$159,0),0))","v":5.6313993174061432E-2},{"$f":"(SUM(INDEX(Pupils!$BQ$7:$BQ$159,MATCH($B62,Pupils!$A$7:$A$159,0)),INDEX(Pupils!$BR$7:$BR$159,MATCH($B62,Pupils!$A$7:$A$159,0)),INDEX(Pupils!$BN$7:$BN$159,MATCH($B62,Pupils!$A$7:$A$159,0)),INDEX(Pupils!$BS$7:$BS$159,MATCH($B62,Pupils!$A$7:$A$159,0))))/SUM(INDEX(Pupils!$BH$7:$BS$159,MATCH($B62,Pupils!$A$7:$A$159,0),0))","v":3.2423208191126277E-2},{"$f":"IFERROR((VLOOKUP(B62,Funding,Funding!$C$2,FALSE)), \"x\")","v":12210990.609999999},{"$f":"IFERROR((AA62/VLOOKUP(B62,Funding,Funding!$D$2,FALSE)), \"x\")","v":0.11371965642969746},{"$f":"IFERROR((AA62/(VLOOKUP(B62,Pupils,Pupils!$M$3,FALSE)+VLOOKUP(B62,Pupils,Pupils!$P$3,FALSE))), \"x\")","v":2323.6899352997143},{"$f":"IFERROR((VLOOKUP(B62,Funding,Funding!$E$2,FALSE)), \"x\")","v":13040717.47928909},{"$f":"IFERROR((AD62/VLOOKUP(B62,Funding,Funding!$F$2,FALSE)), \"x\")","v":0.11869296439089828},{"$f":"IFERROR((AD62/(VLOOKUP(B62,Pupils,Pupils!$R$3,FALSE)+VLOOKUP(B62,Pupils,Pupils!$U$3,FALSE))), \"x\")","v":2470.300715910038},{"$f":"IFERROR((VLOOKUP(B62,Funding,Funding!$G$2,FALSE)), \"x\")","v":13334680.267295333},{"$f":"IFERROR((AG62/VLOOKUP(B62,Funding,Funding!$H$2,FALSE)), \"x\")","v":0.12005634435671342},{"$f":"IFERROR((AG62/(VLOOKUP(B62,Pupils,Pupils!$W$3,FALSE)+VLOOKUP(B62,Pupils,Pupils!$Z$3,FALSE))), \"x\")","v":2590.7674892743994},{"$f":"IFERROR((VLOOKUP(B62,Funding,Funding!$I$2,FALSE)), \"x\")","v":13569215.634181214},{"$f":"IFERROR((AJ62/VLOOKUP(B62,Funding,Funding!$J$2,FALSE)), \"x\")","v":0.11862343087343376},null,{"$f":"IFERROR((VLOOKUP($B62,Funding,Funding!$EC$2,FALSE)), \"x\")","v":8876696.7799999993},{"$f":"IFERROR((AM62/VLOOKUP($B62,Funding,Funding!$EU$2,FALSE)), \"x\")","v":8.4882276109205498E-2},{"$f":"IFERROR((AM62/(VLOOKUP($B62,Pupils,Pupils!$D$3,FALSE)+VLOOKUP($B62,Pupils,Pupils!$E$3,FALSE))), \"x\")","v":1593.6618994614003},{"$f":"IFERROR((VLOOKUP($B62,Funding,Funding!$DA$2,FALSE)), \"x\")","v":8535902.5999999996},{"$f":"IFERROR((AP62/VLOOKUP($B62,Funding,Funding!$DT$2,FALSE)), \"x\")","v":7.9155039540248037E-2},{"$f":"IFERROR((AP62/(VLOOKUP($B62,Pupils,Pupils!$G$3,FALSE)+VLOOKUP($B62,Pupils,Pupils!$H$3,FALSE))), \"x\")","v":1524.540560814431},{"$f":"IFERROR((VLOOKUP($B62,Funding,Funding!$CE$2,FALSE)), \"x\")","v":8943909},{"$f":"IFERROR((AS62/VLOOKUP($B62,Funding,Funding!$CR$2,FALSE)), \"x\")","v":9.0942224002311001E-2},{"$f":"IFERROR((AS62/(VLOOKUP($B62,Pupils,Pupils!$J$3,FALSE)+VLOOKUP($B62,Pupils,Pupils!$K$3,FALSE))), \"x\")","v":1628.8306319431797},{"$f":"IFERROR((VLOOKUP($B62,Funding,Funding!$BM$2,FALSE)), \"x\")","v":9672956.120000001},{"$f":"IFERROR((AV62/VLOOKUP($B62,Funding,Funding!$BY$2,FALSE)), \"x\")","v":0.11877121900413036},{"$f":"IFERROR((AV62/(VLOOKUP($B62,Pupils,Pupils!$M$3,FALSE)+VLOOKUP($B62,Pupils,Pupils!$P$3,FALSE))), \"x\")","v":1840.7147706945768},{"$f":"IFERROR((VLOOKUP($B62,Funding,Funding!$AQ$2,FALSE)), \"x\")","v":12667498},{"$f":"IFERROR((AY62/VLOOKUP($B62,Funding,Funding!$BE$2,FALSE)), \"x\")","v":0.1148042014601393},{"$f":"IFERROR((AY62/(VLOOKUP($B62,Pupils,Pupils!$R$3,FALSE)+VLOOKUP($B62,Pupils,Pupils!$U$3,FALSE))), \"x\")","v":2399.601818526236},{"$f":"IFERROR((VLOOKUP($B62,Funding,Funding!$S$2,FALSE)), \"x\")","v":12853041},{"$f":"IFERROR((BB62/VLOOKUP($B62,Funding,Funding!$AH$2,FALSE)), \"x\")","v":0.11515345226363895},{"$f":"IFERROR((BB62/(VLOOKUP(B62,Pupils,Pupils!$W$3,FALSE)+VLOOKUP(B62,Pupils,Pupils!$Z$3,FALSE))), \"x\")","v":2497.1907907518944},{"$f":"IFERROR((VLOOKUP($B62,Funding,Funding!$GX$2,FALSE)), \"x\")","v":16073197.52},{"$f":"IFERROR((BE62/VLOOKUP($B62,Funding,Funding!$HC$2,FALSE)), \"x\")","v":0.14012558121527297},{"$f":"IFERROR((BE62/(VLOOKUP($B62,Pupils,Pupils!$D$3,FALSE)+VLOOKUP($B62,Pupils,Pupils!$E$3,FALSE))), \"x\")","v":2885.6728043087969},{"$f":"IFERROR((VLOOKUP($B62,Funding,Funding!$GP$2,FALSE)), \"x\")","v":19058511},{"$f":"IFERROR((BH62/VLOOKUP($B62,Funding,Funding!$GU$2,FALSE)), \"x\")","v":0.1672748362282436},{"$f":"IFERROR((BH62/(VLOOKUP($B62,Pupils,Pupils!$G$3,FALSE)+VLOOKUP($B62,Pupils,Pupils!$H$3,FALSE))), \"x\")","v":3403.9133773888193},{"$f":"IFERROR((VLOOKUP($B62,Funding,Funding!$GH$2,FALSE)), \"x\")","v":14531945.01},{"$f":"IFERROR((BK62/VLOOKUP($B62,Funding,Funding!$GM$2,FALSE)), \"x\")","v":0.15209547296124729},{"$f":"IFERROR((BK62/(VLOOKUP($B62,Pupils,Pupils!$J$3,FALSE)+VLOOKUP($B62,Pupils,Pupils!$K$3,FALSE))), \"x\")","v":2646.5024603897286},{"$f":"IFERROR((VLOOKUP($B62,Funding,Funding!$FZ$2,FALSE)), \"x\")","v":14142717.579999998},{"$f":"IFERROR((BN62/VLOOKUP($B62,Funding,Funding!$GE$2,FALSE)), \"x\")","v":0.16264092990350301},{"$f":"IFERROR((BN62/(VLOOKUP($B62,Pupils,Pupils!$M$3,FALSE)+VLOOKUP($B62,Pupils,Pupils!$P$3,FALSE))), \"x\")","v":2691.2878363463365},{"$f":"IFERROR((VLOOKUP($B62,Funding,Funding!$FD$2,FALSE)), \"x\")","v":14393255},{"$f":"IFERROR((BQ62/VLOOKUP($B62,Funding,Funding!$FR$2,FALSE)), \"x\")","v":0.17367499775444004},{"$f":"IFERROR((BQ62/(VLOOKUP($B62,Pupils,Pupils!$R$3,FALSE)+VLOOKUP($B62,Pupils,Pupils!$U$3,FALSE))), \"x\")","v":2726.5116499336996},{"$f":"(VLOOKUP(B62,Funding,Funding!$HK$2,FALSE)+VLOOKUP(B62,Funding,Funding!$HL$2,FALSE)+VLOOKUP(B62,Funding,Funding!$HM$2,FALSE))/(VLOOKUP(B62,Funding,Funding!$HN$2,FALSE))","v":0.2072892938496583},{"$f":"IFERROR((VLOOKUP(B62,Other_data,Other!$D$3,FALSE)+VLOOKUP(B62,Other_data,Other!$E$3,FALSE)+VLOOKUP(B62,Other_data,Other!$F$3,FALSE)), \"x\")","v":790},{"$f":"(VLOOKUP(B62,Other_data,Other!$AK$3,FALSE)+VLOOKUP(B62,Other_data,Other!$AL$3,FALSE))/VLOOKUP(B62,Other_data,Other!$AJ$3,FALSE)","v":3.4782330959149128E-2},{"$f":"(VLOOKUP(B62,Other_data,Other!$AR$3,FALSE)+VLOOKUP(B62,Other_data,Other!$AS$3,FALSE))/VLOOKUP(B62,Other_data,Other!$AQ$3,FALSE)","v":5.1460042453100797E-2},{"$f":"VLOOKUP(B62,Other_data,Other!$AP$3,FALSE)/VLOOKUP(B62,Other_data,Other!$AJ$3,FALSE)","v":5.238110447475167E-3},{"$f":"VLOOKUP(B62,Other_data,Other!$AW$3,FALSE)/VLOOKUP(B62,Other_data,Other!$AQ$3,FALSE)","v":1.0441168033962481E-2}]
[57,919,"Hertfordshire",{"$f":"IFERROR((VLOOKUP($B63,Pupils,Pupils!$D$3,FALSE)/VLOOKUP($B63,Pupils,Pupils!$C$3,FALSE)), \"x\")","v":2.0931015593983526E-2},{"$f":"IFERROR((VLOOKUP($B63,Pupils,Pupils!$G$3,FALSE)/VLOOKUP($B63,Pupils,Pupils!$F$3,FALSE)),\"x\")","v":2.0429876571576997E-2},{"$f":"IFERROR((VLOOKUP($B63,Pupils,Pupils!$J$3,FALSE)/VLOOKUP($B63,Pupils,Pupils!$I$3,FALSE)), \"x\")","v":2.0114127649836073E-2},{"$f":"IFERROR((VLOOKUP($B63,Pupils,Pupils!$M$3,FALSE)/VLOOKUP($B63,Pupils,Pupils!$L$3,FALSE)), \"x\")","v":1.9724643970176339E-2},{"$f":"IFERROR((VLOOKUP($B63,Pupils,Pupils!$R$3,FALSE)/VLOOKUP($B63,Pupils,Pupils!$Q$3,FALSE)), \"x\")","v":1.9441816000234122E-2},{"$f":"IFERROR((VLOOKUP($B63,Pupils,Pupils!$W$3,FALSE)/VLOOKUP($B63,Pupils,Pupils!$V$3,FALSE)), \"x\")","v":1.8888481786451201E-2},{"$f":"IFERROR(((VLOOKUP($B63,Pupils,Pupils!$D$3,FALSE)+VLOOKUP($B63,Pupils,Pupils!$E$3,FALSE))/VLOOKUP($B63,Pupils,Pupils!$C$3,FALSE)), \"x\")","v":0.16786523742757065},{"$f":"IFERROR(((VLOOKUP($B63,Pupils,Pupils!$G$3,FALSE)+VLOOKUP($B63,Pupils,Pupils!$H$3,FALSE))/VLOOKUP($B63,Pupils,Pupils!$F$3,FALSE)), \"x\")","v":0.17268490536821232},{"$f":"IFERROR(((VLOOKUP($B63,Pupils,Pupils!$J$3,FALSE)+VLOOKUP($B63,Pupils,Pupils!$K$3,FALSE))/VLOOKUP($B63,Pupils,Pupils!$I$3,FALSE)), \"x\")","v":0.16858454848932602},{"$f":"IFERROR(((VLOOKUP($B63,Pupils,Pupils!$M$3,FALSE)+VLOOKUP($B63,Pupils,Pupils!$P$3,FALSE))/VLOOKUP($B63,Pupils,Pupils!$L$3,FALSE)), \"x\")","v":0.16762495561955107},{"$f":"IFERROR(((VLOOKUP($B63,Pupils,Pupils!$R$3,FALSE)+VLOOKUP($B63,Pupils,Pupils!$U$3,FALSE))/VLOOKUP($B63,Pupils,Pupils!$Q$3,FALSE)), \"x\")","v":0.16403117714196525},{"$f":"IFERROR(((VLOOKUP($B63,Pupils,Pupils!$W$3,FALSE)+VLOOKUP($B63,Pupils,Pupils!$Z$3,FALSE))/VLOOKUP($B63,Pupils,Pupils!$V$3,FALSE)), \"x\")","v":0.16011338874211775},{"$f":"(SUM(INDEX(Pupils!$AB$7:$AB$159,MATCH($B63,Pupils!$A$7:$A$159,0)),INDEX(Pupils!$AC$7:$AC$159,MATCH($B63,Pupils!$A$7:$A$159,0)),INDEX(Pupils!$AD$7:$AD$159,MATCH($B63,Pupils!$A$7:$A$159,0)),INDEX(Pupils!$AE$7:$AE$159,MATCH($B63,Pupils!$A$7:$A$159,0))))/SUM(INDEX(Pupils!$AB$7:$AM$159,MATCH($B63,Pupils!$A$7:$A$159,0),0))","v":0.30486136118113072},{"$f":"SUM(INDEX(Pupils!$AF$7:$AF$159,MATCH($B63,Pupils!$A$7:$A$159,0)))/SUM(INDEX(Pupils!$AB$7:$AM$159,MATCH($B63,Pupils!$A$7:$A$159,0),0))","v":0.23140079222182211},{"$f":"SUM(INDEX(Pupils!$AG$7:$AG$159,MATCH($B63,Pupils!$A$7:$A$159,0)))/SUM(INDEX(Pupils!$AB$7:$AM$159,MATCH($B63,Pupils!$A$7:$A$159,0),0))","v":0.21598847677349658},{"$f":"(SUM(INDEX(Pupils!$AH$7:$AH$159,MATCH($B63,Pupils!$A$7:$A$159,0)),INDEX(Pupils!$AI$7:$AI$159,MATCH($B63,Pupils!$A$7:$A$159,0)),INDEX(Pupils!$AJ$7:$AJ$159,MATCH($B63,Pupils!$A$7:$A$159,0))))/SUM(INDEX(Pupils!$AB$7:$AM$159,MATCH($B63,Pupils!$A$7:$A$159,0),0))","v":4.6957148001440401E-2},{"$f":"SUM(INDEX(Pupils!$AK$7:$AK$159,MATCH($B63,Pupils!$A$7:$A$159,0)))/SUM(INDEX(Pupils!$AB$7:$AM$159,MATCH($B63,Pupils!$A$7:$A$159,0),0))","v":4.5228664025927262E-2},{"$f":"SUM(INDEX(Pupils!$AL$7:$AL$159,MATCH($B63,Pupils!$A$7:$A$159,0)))/SUM(INDEX(Pupils!$AB$7:$AM$159,MATCH($B63,Pupils!$A$7:$A$159,0),0))","v":0.10846236946344977},{"$f":"SUM(INDEX(Pupils!$AM$7:$AM$159,MATCH($B63,Pupils!$A$7:$A$159,0)))/SUM(INDEX(Pupils!$AB$7:$AM$159,MATCH($B63,Pupils!$A$7:$A$159,0),0))","v":4.7101188332733163E-2},{"$f":"(SUM(INDEX(Pupils!$BH$7:$BH$159,MATCH($B63,Pupils!$A$7:$A$159,0)),INDEX(Pupils!$BK$7:$BK$159,MATCH($B63,Pupils!$A$7:$A$159,0)),INDEX(Pupils!$BO$7:$BO$159,MATCH($B63,Pupils!$A$7:$A$159,0))))/SUM(INDEX(Pupils!$BH$7:$BS$159,MATCH($B63,Pupils!$A$7:$A$159,0),0))","v":0.37560451370231057},{"$f":"(SUM(INDEX(Pupils!$BL$7:$BL$159,MATCH($B63,Pupils!$A$7:$A$159,0)),INDEX(Pupils!$BM$7:$BM$159,MATCH($B63,Pupils!$A$7:$A$159,0)),INDEX(Pupils!$BP$7:$BP$159,MATCH($B63,Pupils!$A$7:$A$159,0))))/SUM(INDEX(Pupils!$BH$7:$BS$159,MATCH($B63,Pupils!$A$7:$A$159,0),0))","v":0.55668995163890378},{"$f":"(SUM(INDEX(Pupils!$BI$7:$BI$159,MATCH($B63,Pupils!$A$7:$A$159,0)),INDEX(Pupils!$BJ$7:$BJ$159,MATCH($B63,Pupils!$A$7:$A$159,0))))/SUM(INDEX(Pupils!$BH$7:$BS$159,MATCH($B63,Pupils!$A$7:$A$159,0),0))","v":5.0241805480924231E-2},{"$f":"(SUM(INDEX(Pupils!$BQ$7:$BQ$159,MATCH($B63,Pupils!$A$7:$A$159,0)),INDEX(Pupils!$BR$7:$BR$159,MATCH($B63,Pupils!$A$7:$A$159,0)),INDEX(Pupils!$BN$7:$BN$159,MATCH($B63,Pupils!$A$7:$A$159,0)),INDEX(Pupils!$BS$7:$BS$159,MATCH($B63,Pupils!$A$7:$A$159,0))))/SUM(INDEX(Pupils!$BH$7:$BS$159,MATCH($B63,Pupils!$A$7:$A$159,0),0))","v":1.7463729177861365E-2},{"$f":"IFERROR((VLOOKUP(B63,Funding,Funding!$C$2,FALSE)), \"x\")","v":88110138.330000013},{"$f":"IFERROR((AA63/VLOOKUP(B63,Funding,Funding!$D$2,FALSE)), \"x\")","v":0.11156527748626269},{"$f":"IFERROR((AA63/(VLOOKUP(B63,Pupils,Pupils!$M$3,FALSE)+VLOOKUP(B63,Pupils,Pupils!$P$3,FALSE))), \"x\")","v":2592.0083055334926},{"$f":"IFERROR((VLOOKUP(B63,Funding,Funding!$E$2,FALSE)), \"x\")","v":92189412.525602832},{"$f":"IFERROR((AD63/VLOOKUP(B63,Funding,Funding!$F$2,FALSE)), \"x\")","v":0.11288341078501817},{"$f":"IFERROR((AD63/(VLOOKUP(B63,Pupils,Pupils!$R$3,FALSE)+VLOOKUP(B63,Pupils,Pupils!$U$3,FALSE))), \"x\")","v":2741.2849398038311},{"$f":"IFERROR((VLOOKUP(B63,Funding,Funding!$G$2,FALSE)), \"x\")","v":94747845.587944761},{"$f":"IFERROR((AG63/VLOOKUP(B63,Funding,Funding!$H$2,FALSE)), \"x\")","v":0.11424782548126586},{"$f":"IFERROR((AG63/(VLOOKUP(B63,Pupils,Pupils!$W$3,FALSE)+VLOOKUP(B63,Pupils,Pupils!$Z$3,FALSE))), \"x\")","v":2852.8196310955304},{"$f":"IFERROR((VLOOKUP(B63,Funding,Funding!$I$2,FALSE)), \"x\")","v":95977485.093266532},{"$f":"IFERROR((AJ63/VLOOKUP(B63,Funding,Funding!$J$2,FALSE)), \"x\")","v":0.11311243549695883},null,{"$f":"IFERROR((VLOOKUP($B63,Funding,Funding!$EC$2,FALSE)), \"x\")","v":73430570},{"$f":"IFERROR((AM63/VLOOKUP($B63,Funding,Funding!$EU$2,FALSE)), \"x\")","v":8.9201668188713737E-2},{"$f":"IFERROR((AM63/(VLOOKUP($B63,Pupils,Pupils!$D$3,FALSE)+VLOOKUP($B63,Pupils,Pupils!$E$3,FALSE))), \"x\")","v":2198.3226057539741},{"$f":"IFERROR((VLOOKUP($B63,Funding,Funding!$DA$2,FALSE)), \"x\")","v":69657827.441100001},{"$f":"IFERROR((AP63/VLOOKUP($B63,Funding,Funding!$DT$2,FALSE)), \"x\")","v":7.9941104884011002E-2},{"$f":"IFERROR((AP63/(VLOOKUP($B63,Pupils,Pupils!$G$3,FALSE)+VLOOKUP($B63,Pupils,Pupils!$H$3,FALSE))), \"x\")","v":2014.9208134303319},{"$f":"IFERROR((VLOOKUP($B63,Funding,Funding!$CE$2,FALSE)), \"x\")","v":70150083},{"$f":"IFERROR((AS63/VLOOKUP($B63,Funding,Funding!$CR$2,FALSE)), \"x\")","v":8.2934061176768076E-2},{"$f":"IFERROR((AS63/(VLOOKUP($B63,Pupils,Pupils!$J$3,FALSE)+VLOOKUP($B63,Pupils,Pupils!$K$3,FALSE))), \"x\")","v":2070.1789234492121},{"$f":"IFERROR((VLOOKUP($B63,Funding,Funding!$BM$2,FALSE)), \"x\")","v":69538872.269999996},{"$f":"IFERROR((AV63/VLOOKUP($B63,Funding,Funding!$BY$2,FALSE)), \"x\")","v":0.10153799111348087},{"$f":"IFERROR((AV63/(VLOOKUP($B63,Pupils,Pupils!$M$3,FALSE)+VLOOKUP($B63,Pupils,Pupils!$P$3,FALSE))), \"x\")","v":2045.6821189656694},{"$f":"IFERROR((VLOOKUP($B63,Funding,Funding!$AQ$2,FALSE)), \"x\")","v":88478013.760000005},{"$f":"IFERROR((AY63/VLOOKUP($B63,Funding,Funding!$BE$2,FALSE)), \"x\")","v":0.10527182888317579},{"$f":"IFERROR((AY63/(VLOOKUP($B63,Pupils,Pupils!$R$3,FALSE)+VLOOKUP($B63,Pupils,Pupils!$U$3,FALSE))), \"x\")","v":2630.9251787094859},{"$f":"IFERROR((VLOOKUP($B63,Funding,Funding!$S$2,FALSE)), \"x\")","v":88046038},{"$f":"IFERROR((BB63/VLOOKUP($B63,Funding,Funding!$AH$2,FALSE)), \"x\")","v":0.10329187215923645},{"$f":"IFERROR((BB63/(VLOOKUP(B63,Pupils,Pupils!$W$3,FALSE)+VLOOKUP(B63,Pupils,Pupils!$Z$3,FALSE))), \"x\")","v":2651.0308924485125},{"$f":"IFERROR((VLOOKUP($B63,Funding,Funding!$GX$2,FALSE)), \"x\")","v":94197201},{"$f":"IFERROR((BE63/VLOOKUP($B63,Funding,Funding!$HC$2,FALSE)), \"x\")","v":0.10447561824444977},{"$f":"IFERROR((BE63/(VLOOKUP($B63,Pupils,Pupils!$D$3,FALSE)+VLOOKUP($B63,Pupils,Pupils!$E$3,FALSE))), \"x\")","v":2820.0221836362002},{"$f":"IFERROR((VLOOKUP($B63,Funding,Funding!$GP$2,FALSE)), \"x\")","v":102803237},{"$f":"IFERROR((BH63/VLOOKUP($B63,Funding,Funding!$GU$2,FALSE)), \"x\")","v":0.11022536962308012},{"$f":"IFERROR((BH63/(VLOOKUP($B63,Pupils,Pupils!$G$3,FALSE)+VLOOKUP($B63,Pupils,Pupils!$H$3,FALSE))), \"x\")","v":2973.6842150935754},{"$f":"IFERROR((VLOOKUP($B63,Funding,Funding!$GH$2,FALSE)), \"x\")","v":100026284.41},{"$f":"IFERROR((BK63/VLOOKUP($B63,Funding,Funding!$GM$2,FALSE)), \"x\")","v":0.12367335383658949},{"$f":"IFERROR((BK63/(VLOOKUP($B63,Pupils,Pupils!$J$3,FALSE)+VLOOKUP($B63,Pupils,Pupils!$K$3,FALSE))), \"x\")","v":2951.8469105235199},{"$f":"IFERROR((VLOOKUP($B63,Funding,Funding!$FZ$2,FALSE)), \"x\")","v":87535479.189999998},{"$f":"IFERROR((BN63/VLOOKUP($B63,Funding,Funding!$GE$2,FALSE)), \"x\")","v":0.12936089703312434},{"$f":"IFERROR((BN63/(VLOOKUP($B63,Pupils,Pupils!$M$3,FALSE)+VLOOKUP($B63,Pupils,Pupils!$P$3,FALSE))), \"x\")","v":2575.1030856352777},{"$f":"IFERROR((VLOOKUP($B63,Funding,Funding!$FD$2,FALSE)), \"x\")","v":81025423},{"$f":"IFERROR((BQ63/VLOOKUP($B63,Funding,Funding!$FR$2,FALSE)), \"x\")","v":0.13891278134346058},{"$f":"IFERROR((BQ63/(VLOOKUP($B63,Pupils,Pupils!$R$3,FALSE)+VLOOKUP($B63,Pupils,Pupils!$U$3,FALSE))), \"x\")","v":2409.3197442759442},{"$f":"(VLOOKUP(B63,Funding,Funding!$HK$2,FALSE)+VLOOKUP(B63,Funding,Funding!$HL$2,FALSE)+VLOOKUP(B63,Funding,Funding!$HM$2,FALSE))/(VLOOKUP(B63,Funding,Funding!$HN$2,FALSE))","v":0.18134715025906736},{"$f":"IFERROR((VLOOKUP(B63,Other_data,Other!$D$3,FALSE)+VLOOKUP(B63,Other_data,Other!$E$3,FALSE)+VLOOKUP(B63,Other_data,Other!$F$3,FALSE)), \"x\")","v":5890.0000000000009},{"$f":"(VLOOKUP(B63,Other_data,Other!$AK$3,FALSE)+VLOOKUP(B63,Other_data,Other!$AL$3,FALSE))/VLOOKUP(B63,Other_data,Other!$AJ$3,FALSE)","v":3.1451768712679108E-2},{"$f":"(VLOOKUP(B63,Other_data,Other!$AR$3,FALSE)+VLOOKUP(B63,Other_data,Other!$AS$3,FALSE))/VLOOKUP(B63,Other_data,Other!$AQ$3,FALSE)","v":4.7190428886105473E-2},{"$f":"VLOOKUP(B63,Other_data,Other!$AP$3,FALSE)/VLOOKUP(B63,Other_data,Other!$AJ$3,FALSE)","v":4.9918450056837841E-3},{"$f":"VLOOKUP(B63,Other_data,Other!$AW$3,FALSE)/VLOOKUP(B63,Other_data,Other!$AQ$3,FALSE)","v":9.1910335593659576E-3}]
[58,312,"Hillingdon",{"$f":"IFERROR((VLOOKUP($B64,Pupils,Pupils!$D$3,FALSE)/VLOOKUP($B64,Pupils,Pupils!$C$3,FALSE)), \"x\")","v":2.693974497874823E-2},{"$f":"IFERROR((VLOOKUP($B64,Pupils,Pupils!$G$3,FALSE)/VLOOKUP($B64,Pupils,Pupils!$F$3,FALSE)),\"x\")","v":2.778923914837432E-2},{"$f":"IFERROR((VLOOKUP($B64,Pupils,Pupils!$J$3,FALSE)/VLOOKUP($B64,Pupils,Pupils!$I$3,FALSE)), \"x\")","v":2.7691932335718934E-2},{"$f":"IFERROR((VLOOKUP($B64,Pupils,Pupils!$M$3,FALSE)/VLOOKUP($B64,Pupils,Pupils!$L$3,FALSE)), \"x\")","v":2.8450326888857787E-2},{"$f":"IFERROR((VLOOKUP($B64,Pupils,Pupils!$R$3,FALSE)/VLOOKUP($B64,Pupils,Pupils!$Q$3,FALSE)), \"x\")","v":2.9556842331013237E-2},{"$f":"IFERROR((VLOOKUP($B64,Pupils,Pupils!$W$3,FALSE)/VLOOKUP($B64,Pupils,Pupils!$V$3,FALSE)), \"x\")","v":2.9979199664141365E-2},{"$f":"IFERROR(((VLOOKUP($B64,Pupils,Pupils!$D$3,FALSE)+VLOOKUP($B64,Pupils,Pupils!$E$3,FALSE))/VLOOKUP($B64,Pupils,Pupils!$C$3,FALSE)), \"x\")","v":0.21260105008750729},{"$f":"IFERROR(((VLOOKUP($B64,Pupils,Pupils!$G$3,FALSE)+VLOOKUP($B64,Pupils,Pupils!$H$3,FALSE))/VLOOKUP($B64,Pupils,Pupils!$F$3,FALSE)), \"x\")","v":0.21193678824888595},{"$f":"IFERROR(((VLOOKUP($B64,Pupils,Pupils!$J$3,FALSE)+VLOOKUP($B64,Pupils,Pupils!$K$3,FALSE))/VLOOKUP($B64,Pupils,Pupils!$I$3,FALSE)), \"x\")","v":0.19494144437215355},{"$f":"IFERROR(((VLOOKUP($B64,Pupils,Pupils!$M$3,FALSE)+VLOOKUP($B64,Pupils,Pupils!$P$3,FALSE))/VLOOKUP($B64,Pupils,Pupils!$L$3,FALSE)), \"x\")","v":0.18953555791031049},{"$f":"IFERROR(((VLOOKUP($B64,Pupils,Pupils!$R$3,FALSE)+VLOOKUP($B64,Pupils,Pupils!$U$3,FALSE))/VLOOKUP($B64,Pupils,Pupils!$Q$3,FALSE)), \"x\")","v":0.17780897233432766},{"$f":"IFERROR(((VLOOKUP($B64,Pupils,Pupils!$W$3,FALSE)+VLOOKUP($B64,Pupils,Pupils!$Z$3,FALSE))/VLOOKUP($B64,Pupils,Pupils!$V$3,FALSE)), \"x\")","v":0.16955136156326928},{"$f":"(SUM(INDEX(Pupils!$AB$7:$AB$159,MATCH($B64,Pupils!$A$7:$A$159,0)),INDEX(Pupils!$AC$7:$AC$159,MATCH($B64,Pupils!$A$7:$A$159,0)),INDEX(Pupils!$AD$7:$AD$159,MATCH($B64,Pupils!$A$7:$A$159,0)),INDEX(Pupils!$AE$7:$AE$159,MATCH($B64,Pupils!$A$7:$A$159,0))))/SUM(INDEX(Pupils!$AB$7:$AM$159,MATCH($B64,Pupils!$A$7:$A$159,0),0))","v":0.29556046112337503},{"$f":"SUM(INDEX(Pupils!$AF$7:$AF$159,MATCH($B64,Pupils!$A$7:$A$159,0)))/SUM(INDEX(Pupils!$AB$7:$AM$159,MATCH($B64,Pupils!$A$7:$A$159,0),0))","v":0.14716703458425312},{"$f":"SUM(INDEX(Pupils!$AG$7:$AG$159,MATCH($B64,Pupils!$A$7:$A$159,0)))/SUM(INDEX(Pupils!$AB$7:$AM$159,MATCH($B64,Pupils!$A$7:$A$159,0),0))","v":0.29384351238655876},{"$f":"(SUM(INDEX(Pupils!$AH$7:$AH$159,MATCH($B64,Pupils!$A$7:$A$159,0)),INDEX(Pupils!$AI$7:$AI$159,MATCH($B64,Pupils!$A$7:$A$159,0)),INDEX(Pupils!$AJ$7:$AJ$159,MATCH($B64,Pupils!$A$7:$A$159,0))))/SUM(INDEX(Pupils!$AB$7:$AM$159,MATCH($B64,Pupils!$A$7:$A$159,0),0))","v":4.6357615894039736E-2},{"$f":"SUM(INDEX(Pupils!$AK$7:$AK$159,MATCH($B64,Pupils!$A$7:$A$159,0)))/SUM(INDEX(Pupils!$AB$7:$AM$159,MATCH($B64,Pupils!$A$7:$A$159,0),0))","v":4.2187883247485895E-2},{"$f":"SUM(INDEX(Pupils!$AL$7:$AL$159,MATCH($B64,Pupils!$A$7:$A$159,0)))/SUM(INDEX(Pupils!$AB$7:$AM$159,MATCH($B64,Pupils!$A$7:$A$159,0),0))","v":0.12484670100564141},{"$f":"SUM(INDEX(Pupils!$AM$7:$AM$159,MATCH($B64,Pupils!$A$7:$A$159,0)))/SUM(INDEX(Pupils!$AB$7:$AM$159,MATCH($B64,Pupils!$A$7:$A$159,0),0))","v":5.0036791758646067E-2},{"$f":"(SUM(INDEX(Pupils!$BH$7:$BH$159,MATCH($B64,Pupils!$A$7:$A$159,0)),INDEX(Pupils!$BK$7:$BK$159,MATCH($B64,Pupils!$A$7:$A$159,0)),INDEX(Pupils!$BO$7:$BO$159,MATCH($B64,Pupils!$A$7:$A$159,0))))/SUM(INDEX(Pupils!$BH$7:$BS$159,MATCH($B64,Pupils!$A$7:$A$159,0),0))","v":0.47837837837837838},{"$f":"(SUM(INDEX(Pupils!$BL$7:$BL$159,MATCH($B64,Pupils!$A$7:$A$159,0)),INDEX(Pupils!$BM$7:$BM$159,MATCH($B64,Pupils!$A$7:$A$159,0)),INDEX(Pupils!$BP$7:$BP$159,MATCH($B64,Pupils!$A$7:$A$159,0))))/SUM(INDEX(Pupils!$BH$7:$BS$159,MATCH($B64,Pupils!$A$7:$A$159,0),0))","v":0.46621621621621623},{"$f":"(SUM(INDEX(Pupils!$BI$7:$BI$159,MATCH($B64,Pupils!$A$7:$A$159,0)),INDEX(Pupils!$BJ$7:$BJ$159,MATCH($B64,Pupils!$A$7:$A$159,0))))/SUM(INDEX(Pupils!$BH$7:$BS$159,MATCH($B64,Pupils!$A$7:$A$159,0),0))","v":4.4594594594594597E-2},{"$f":"(SUM(INDEX(Pupils!$BQ$7:$BQ$159,MATCH($B64,Pupils!$A$7:$A$159,0)),INDEX(Pupils!$BR$7:$BR$159,MATCH($B64,Pupils!$A$7:$A$159,0)),INDEX(Pupils!$BN$7:$BN$159,MATCH($B64,Pupils!$A$7:$A$159,0)),INDEX(Pupils!$BS$7:$BS$159,MATCH($B64,Pupils!$A$7:$A$159,0))))/SUM(INDEX(Pupils!$BH$7:$BS$159,MATCH($B64,Pupils!$A$7:$A$159,0),0))","v":1.0810810810810811E-2},{"$f":"IFERROR((VLOOKUP(B64,Funding,Funding!$C$2,FALSE)), \"x\")","v":29086744.282785557},{"$f":"IFERROR((AA64/VLOOKUP(B64,Funding,Funding!$D$2,FALSE)), \"x\")","v":0.13203115120366865},{"$f":"IFERROR((AA64/(VLOOKUP(B64,Pupils,Pupils!$M$3,FALSE)+VLOOKUP(B64,Pupils,Pupils!$P$3,FALSE))), \"x\")","v":3068.2219707579702},{"$f":"IFERROR((VLOOKUP(B64,Funding,Funding!$E$2,FALSE)), \"x\")","v":29876729.62354555},{"$f":"IFERROR((AD64/VLOOKUP(B64,Funding,Funding!$F$2,FALSE)), \"x\")","v":0.12886370375916326},{"$f":"IFERROR((AD64/(VLOOKUP(B64,Pupils,Pupils!$R$3,FALSE)+VLOOKUP(B64,Pupils,Pupils!$U$3,FALSE))), \"x\")","v":3275.957195564205},{"$f":"IFERROR((VLOOKUP(B64,Funding,Funding!$G$2,FALSE)), \"x\")","v":31490703.629345622},{"$f":"IFERROR((AG64/VLOOKUP(B64,Funding,Funding!$H$2,FALSE)), \"x\")","v":0.13182004311848561},{"$f":"IFERROR((AG64/(VLOOKUP(B64,Pupils,Pupils!$W$3,FALSE)+VLOOKUP(B64,Pupils,Pupils!$Z$3,FALSE))), \"x\")","v":3544.2547697631539},{"$f":"IFERROR((VLOOKUP(B64,Funding,Funding!$I$2,FALSE)), \"x\")","v":32152580.470948577},{"$f":"IFERROR((AJ64/VLOOKUP(B64,Funding,Funding!$J$2,FALSE)), \"x\")","v":0.1274020409276366},null,{"$f":"IFERROR((VLOOKUP($B64,Funding,Funding!$EC$2,FALSE)), \"x\")","v":18631683.979999997},{"$f":"IFERROR((AM64/VLOOKUP($B64,Funding,Funding!$EU$2,FALSE)), \"x\")","v":8.5250888955544793E-2},{"$f":"IFERROR((AM64/(VLOOKUP($B64,Pupils,Pupils!$D$3,FALSE)+VLOOKUP($B64,Pupils,Pupils!$E$3,FALSE))), \"x\")","v":1825.9196373970988},{"$f":"IFERROR((VLOOKUP($B64,Funding,Funding!$DA$2,FALSE)), \"x\")","v":19598699},{"$f":"IFERROR((AP64/VLOOKUP($B64,Funding,Funding!$DT$2,FALSE)), \"x\")","v":8.477549886350251E-2},{"$f":"IFERROR((AP64/(VLOOKUP($B64,Pupils,Pupils!$G$3,FALSE)+VLOOKUP($B64,Pupils,Pupils!$H$3,FALSE))), \"x\")","v":1907.7873065316851},{"$f":"IFERROR((VLOOKUP($B64,Funding,Funding!$CE$2,FALSE)), \"x\")","v":20773880},{"$f":"IFERROR((AS64/VLOOKUP($B64,Funding,Funding!$CR$2,FALSE)), \"x\")","v":8.5999766515122283E-2},{"$f":"IFERROR((AS64/(VLOOKUP($B64,Pupils,Pupils!$J$3,FALSE)+VLOOKUP($B64,Pupils,Pupils!$K$3,FALSE))), \"x\")","v":2166.6541510221109},{"$f":"IFERROR((VLOOKUP($B64,Funding,Funding!$BM$2,FALSE)), \"x\")","v":25715253.509999998},{"$f":"IFERROR((AV64/VLOOKUP($B64,Funding,Funding!$BY$2,FALSE)), \"x\")","v":0.15429325349550888},{"$f":"IFERROR((AV64/(VLOOKUP($B64,Pupils,Pupils!$M$3,FALSE)+VLOOKUP($B64,Pupils,Pupils!$P$3,FALSE))), \"x\")","v":2712.5794841772149},{"$f":"IFERROR((VLOOKUP($B64,Funding,Funding!$AQ$2,FALSE)), \"x\")","v":29422600},{"$f":"IFERROR((AY64/VLOOKUP($B64,Funding,Funding!$BE$2,FALSE)), \"x\")","v":0.12212845017665967},{"$f":"IFERROR((AY64/(VLOOKUP($B64,Pupils,Pupils!$R$3,FALSE)+VLOOKUP($B64,Pupils,Pupils!$U$3,FALSE))), \"x\")","v":3226.1622807017543},{"$f":"IFERROR((VLOOKUP($B64,Funding,Funding!$S$2,FALSE)), \"x\")","v":29008833},{"$f":"IFERROR((BB64/VLOOKUP($B64,Funding,Funding!$AH$2,FALSE)), \"x\")","v":0.1200160992025734},{"$f":"IFERROR((BB64/(VLOOKUP(B64,Pupils,Pupils!$W$3,FALSE)+VLOOKUP(B64,Pupils,Pupils!$Z$3,FALSE))), \"x\")","v":3264.9221159257177},{"$f":"IFERROR((VLOOKUP($B64,Funding,Funding!$GX$2,FALSE)), \"x\")","v":31942899},{"$f":"IFERROR((BE64/VLOOKUP($B64,Funding,Funding!$HC$2,FALSE)), \"x\")","v":0.1343516065032706},{"$f":"IFERROR((BE64/(VLOOKUP($B64,Pupils,Pupils!$D$3,FALSE)+VLOOKUP($B64,Pupils,Pupils!$E$3,FALSE))), \"x\")","v":3130.4291454331633},{"$f":"IFERROR((VLOOKUP($B64,Funding,Funding!$GP$2,FALSE)), \"x\")","v":33315145.609999999},{"$f":"IFERROR((BH64/VLOOKUP($B64,Funding,Funding!$GU$2,FALSE)), \"x\")","v":0.13808320669669619},{"$f":"IFERROR((BH64/(VLOOKUP($B64,Pupils,Pupils!$G$3,FALSE)+VLOOKUP($B64,Pupils,Pupils!$H$3,FALSE))), \"x\")","v":3242.9811749245596},{"$f":"IFERROR((VLOOKUP($B64,Funding,Funding!$GH$2,FALSE)), \"x\")","v":32175542.579999998},{"$f":"IFERROR((BK64/VLOOKUP($B64,Funding,Funding!$GM$2,FALSE)), \"x\")","v":0.15832337327741669},{"$f":"IFERROR((BK64/(VLOOKUP($B64,Pupils,Pupils!$J$3,FALSE)+VLOOKUP($B64,Pupils,Pupils!$K$3,FALSE))), \"x\")","v":3355.8137859824778},{"$f":"IFERROR((VLOOKUP($B64,Funding,Funding!$FZ$2,FALSE)), \"x\")","v":25538052.039999999},{"$f":"IFERROR((BN64/VLOOKUP($B64,Funding,Funding!$GE$2,FALSE)), \"x\")","v":0.14875801366736705},{"$f":"IFERROR((BN64/(VLOOKUP($B64,Pupils,Pupils!$M$3,FALSE)+VLOOKUP($B64,Pupils,Pupils!$P$3,FALSE))), \"x\")","v":2693.8873459915612},{"$f":"IFERROR((VLOOKUP($B64,Funding,Funding!$FD$2,FALSE)), \"x\")","v":26897590.620000001},{"$f":"IFERROR((BQ64/VLOOKUP($B64,Funding,Funding!$FR$2,FALSE)), \"x\")","v":0.17697059276905369},{"$f":"IFERROR((BQ64/(VLOOKUP($B64,Pupils,Pupils!$R$3,FALSE)+VLOOKUP($B64,Pupils,Pupils!$U$3,FALSE))), \"x\")","v":2949.2972171052634},{"$f":"(VLOOKUP(B64,Funding,Funding!$HK$2,FALSE)+VLOOKUP(B64,Funding,Funding!$HL$2,FALSE)+VLOOKUP(B64,Funding,Funding!$HM$2,FALSE))/(VLOOKUP(B64,Funding,Funding!$HN$2,FALSE))","v":0.23016759776536314},{"$f":"IFERROR((VLOOKUP(B64,Other_data,Other!$D$3,FALSE)+VLOOKUP(B64,Other_data,Other!$E$3,FALSE)+VLOOKUP(B64,Other_data,Other!$F$3,FALSE)), \"x\")","v":1750},{"$f":"(VLOOKUP(B64,Other_data,Other!$AK$3,FALSE)+VLOOKUP(B64,Other_data,Other!$AL$3,FALSE))/VLOOKUP(B64,Other_data,Other!$AJ$3,FALSE)","v":3.6292662341087724E-2},{"$f":"(VLOOKUP(B64,Other_data,Other!$AR$3,FALSE)+VLOOKUP(B64,Other_data,Other!$AS$3,FALSE))/VLOOKUP(B64,Other_data,Other!$AQ$3,FALSE)","v":4.4565902879966368E-2},{"$f":"VLOOKUP(B64,Other_data,Other!$AP$3,FALSE)/VLOOKUP(B64,Other_data,Other!$AJ$3,FALSE)","v":7.0510453482442725E-3},{"$f":"VLOOKUP(B64,Other_data,Other!$AW$3,FALSE)/VLOOKUP(B64,Other_data,Other!$AQ$3,FALSE)","v":1.0180485900477492E-2}]
[59,313,"Hounslow",{"$f":"IFERROR((VLOOKUP($B65,Pupils,Pupils!$D$3,FALSE)/VLOOKUP($B65,Pupils,Pupils!$C$3,FALSE)), \"x\")","v":2.599095504123437E-2},{"$f":"IFERROR((VLOOKUP($B65,Pupils,Pupils!$G$3,FALSE)/VLOOKUP($B65,Pupils,Pupils!$F$3,FALSE)),\"x\")","v":2.3726319661578076E-2},{"$f":"IFERROR((VLOOKUP($B65,Pupils,Pupils!$J$3,FALSE)/VLOOKUP($B65,Pupils,Pupils!$I$3,FALSE)), \"x\")","v":2.3933618566057305E-2},{"$f":"IFERROR((VLOOKUP($B65,Pupils,Pupils!$M$3,FALSE)/VLOOKUP($B65,Pupils,Pupils!$L$3,FALSE)), \"x\")","v":2.4790882211720704E-2},{"$f":"IFERROR((VLOOKUP($B65,Pupils,Pupils!$R$3,FALSE)/VLOOKUP($B65,Pupils,Pupils!$Q$3,FALSE)), \"x\")","v":2.5452955748773497E-2},{"$f":"IFERROR((VLOOKUP($B65,Pupils,Pupils!$W$3,FALSE)/VLOOKUP($B65,Pupils,Pupils!$V$3,FALSE)), \"x\")","v":2.5819759584607724E-2},{"$f":"IFERROR(((VLOOKUP($B65,Pupils,Pupils!$D$3,FALSE)+VLOOKUP($B65,Pupils,Pupils!$E$3,FALSE))/VLOOKUP($B65,Pupils,Pupils!$C$3,FALSE)), \"x\")","v":0.2447193402500665},{"$f":"IFERROR(((VLOOKUP($B65,Pupils,Pupils!$G$3,FALSE)+VLOOKUP($B65,Pupils,Pupils!$H$3,FALSE))/VLOOKUP($B65,Pupils,Pupils!$F$3,FALSE)), \"x\")","v":0.23671142173993012},{"$f":"IFERROR(((VLOOKUP($B65,Pupils,Pupils!$J$3,FALSE)+VLOOKUP($B65,Pupils,Pupils!$K$3,FALSE))/VLOOKUP($B65,Pupils,Pupils!$I$3,FALSE)), \"x\")","v":0.22650071308180994},{"$f":"IFERROR(((VLOOKUP($B65,Pupils,Pupils!$M$3,FALSE)+VLOOKUP($B65,Pupils,Pupils!$P$3,FALSE))/VLOOKUP($B65,Pupils,Pupils!$L$3,FALSE)), \"x\")","v":0.21728033155593743},{"$f":"IFERROR(((VLOOKUP($B65,Pupils,Pupils!$R$3,FALSE)+VLOOKUP($B65,Pupils,Pupils!$U$3,FALSE))/VLOOKUP($B65,Pupils,Pupils!$Q$3,FALSE)), \"x\")","v":0.2022878515568077},{"$f":"IFERROR(((VLOOKUP($B65,Pupils,Pupils!$W$3,FALSE)+VLOOKUP($B65,Pupils,Pupils!$Z$3,FALSE))/VLOOKUP($B65,Pupils,Pupils!$V$3,FALSE)), \"x\")","v":0.19510633757735257},{"$f":"(SUM(INDEX(Pupils!$AB$7:$AB$159,MATCH($B65,Pupils!$A$7:$A$159,0)),INDEX(Pupils!$AC$7:$AC$159,MATCH($B65,Pupils!$A$7:$A$159,0)),INDEX(Pupils!$AD$7:$AD$159,MATCH($B65,Pupils!$A$7:$A$159,0)),INDEX(Pupils!$AE$7:$AE$159,MATCH($B65,Pupils!$A$7:$A$159,0))))/SUM(INDEX(Pupils!$AB$7:$AM$159,MATCH($B65,Pupils!$A$7:$A$159,0),0))","v":0.30535894843276035},{"$f":"SUM(INDEX(Pupils!$AF$7:$AF$159,MATCH($B65,Pupils!$A$7:$A$159,0)))/SUM(INDEX(Pupils!$AB$7:$AM$159,MATCH($B65,Pupils!$A$7:$A$159,0),0))","v":0.26061678463094035},{"$f":"SUM(INDEX(Pupils!$AG$7:$AG$159,MATCH($B65,Pupils!$A$7:$A$159,0)))/SUM(INDEX(Pupils!$AB$7:$AM$159,MATCH($B65,Pupils!$A$7:$A$159,0),0))","v":0.20171890798786654},{"$f":"(SUM(INDEX(Pupils!$AH$7:$AH$159,MATCH($B65,Pupils!$A$7:$A$159,0)),INDEX(Pupils!$AI$7:$AI$159,MATCH($B65,Pupils!$A$7:$A$159,0)),INDEX(Pupils!$AJ$7:$AJ$159,MATCH($B65,Pupils!$A$7:$A$159,0))))/SUM(INDEX(Pupils!$AB$7:$AM$159,MATCH($B65,Pupils!$A$7:$A$159,0),0))","v":3.7917087967644085E-2},{"$f":"SUM(INDEX(Pupils!$AK$7:$AK$159,MATCH($B65,Pupils!$A$7:$A$159,0)))/SUM(INDEX(Pupils!$AB$7:$AM$159,MATCH($B65,Pupils!$A$7:$A$159,0),0))","v":4.7775530839231549E-2},{"$f":"SUM(INDEX(Pupils!$AL$7:$AL$159,MATCH($B65,Pupils!$A$7:$A$159,0)))/SUM(INDEX(Pupils!$AB$7:$AM$159,MATCH($B65,Pupils!$A$7:$A$159,0),0))","v":8.4681496461071787E-2},{"$f":"SUM(INDEX(Pupils!$AM$7:$AM$159,MATCH($B65,Pupils!$A$7:$A$159,0)))/SUM(INDEX(Pupils!$AB$7:$AM$159,MATCH($B65,Pupils!$A$7:$A$159,0),0))","v":6.1931243680485339E-2},{"$f":"(SUM(INDEX(Pupils!$BH$7:$BH$159,MATCH($B65,Pupils!$A$7:$A$159,0)),INDEX(Pupils!$BK$7:$BK$159,MATCH($B65,Pupils!$A$7:$A$159,0)),INDEX(Pupils!$BO$7:$BO$159,MATCH($B65,Pupils!$A$7:$A$159,0))))/SUM(INDEX(Pupils!$BH$7:$BS$159,MATCH($B65,Pupils!$A$7:$A$159,0),0))","v":0.38494623655913979},{"$f":"(SUM(INDEX(Pupils!$BL$7:$BL$159,MATCH($B65,Pupils!$A$7:$A$159,0)),INDEX(Pupils!$BM$7:$BM$159,MATCH($B65,Pupils!$A$7:$A$159,0)),INDEX(Pupils!$BP$7:$BP$159,MATCH($B65,Pupils!$A$7:$A$159,0))))/SUM(INDEX(Pupils!$BH$7:$BS$159,MATCH($B65,Pupils!$A$7:$A$159,0),0))","v":0.47096774193548385},{"$f":"(SUM(INDEX(Pupils!$BI$7:$BI$159,MATCH($B65,Pupils!$A$7:$A$159,0)),INDEX(Pupils!$BJ$7:$BJ$159,MATCH($B65,Pupils!$A$7:$A$159,0))))/SUM(INDEX(Pupils!$BH$7:$BS$159,MATCH($B65,Pupils!$A$7:$A$159,0),0))","v":0.11469534050179211},{"$f":"(SUM(INDEX(Pupils!$BQ$7:$BQ$159,MATCH($B65,Pupils!$A$7:$A$159,0)),INDEX(Pupils!$BR$7:$BR$159,MATCH($B65,Pupils!$A$7:$A$159,0)),INDEX(Pupils!$BN$7:$BN$159,MATCH($B65,Pupils!$A$7:$A$159,0)),INDEX(Pupils!$BS$7:$BS$159,MATCH($B65,Pupils!$A$7:$A$159,0))))/SUM(INDEX(Pupils!$BH$7:$BS$159,MATCH($B65,Pupils!$A$7:$A$159,0),0))","v":2.9390681003584228E-2},{"$f":"IFERROR((VLOOKUP(B65,Funding,Funding!$C$2,FALSE)), \"x\")","v":29077337.879999999},{"$f":"IFERROR((AA65/VLOOKUP(B65,Funding,Funding!$D$2,FALSE)), \"x\")","v":0.14072835804604916},{"$f":"IFERROR((AA65/(VLOOKUP(B65,Pupils,Pupils!$M$3,FALSE)+VLOOKUP(B65,Pupils,Pupils!$P$3,FALSE))), \"x\")","v":3381.8722819260292},{"$f":"IFERROR((VLOOKUP(B65,Funding,Funding!$E$2,FALSE)), \"x\")","v":32107544.217043307},{"$f":"IFERROR((AD65/VLOOKUP(B65,Funding,Funding!$F$2,FALSE)), \"x\")","v":0.14809812533509881},{"$f":"IFERROR((AD65/(VLOOKUP(B65,Pupils,Pupils!$R$3,FALSE)+VLOOKUP(B65,Pupils,Pupils!$U$3,FALSE))), \"x\")","v":3854.9098591719662},{"$f":"IFERROR((VLOOKUP(B65,Funding,Funding!$G$2,FALSE)), \"x\")","v":33240838.799274173},{"$f":"IFERROR((AG65/VLOOKUP(B65,Funding,Funding!$H$2,FALSE)), \"x\")","v":0.15078916134668124},{"$f":"IFERROR((AG65/(VLOOKUP(B65,Pupils,Pupils!$W$3,FALSE)+VLOOKUP(B65,Pupils,Pupils!$Z$3,FALSE))), \"x\")","v":4039.4748814283839},{"$f":"IFERROR((VLOOKUP(B65,Funding,Funding!$I$2,FALSE)), \"x\")","v":33550418.464400876},{"$f":"IFERROR((AJ65/VLOOKUP(B65,Funding,Funding!$J$2,FALSE)), \"x\")","v":0.15069154864244946},null,{"$f":"IFERROR((VLOOKUP($B65,Funding,Funding!$EC$2,FALSE)), \"x\")","v":14680522.309999999},{"$f":"IFERROR((AM65/VLOOKUP($B65,Funding,Funding!$EU$2,FALSE)), \"x\")","v":7.3481021568273533E-2},{"$f":"IFERROR((AM65/(VLOOKUP($B65,Pupils,Pupils!$D$3,FALSE)+VLOOKUP($B65,Pupils,Pupils!$E$3,FALSE))), \"x\")","v":1595.8824122187193},{"$f":"IFERROR((VLOOKUP($B65,Funding,Funding!$DA$2,FALSE)), \"x\")","v":16144562.56945},{"$f":"IFERROR((AP65/VLOOKUP($B65,Funding,Funding!$DT$2,FALSE)), \"x\")","v":7.4073739682433276E-2},{"$f":"IFERROR((AP65/(VLOOKUP($B65,Pupils,Pupils!$G$3,FALSE)+VLOOKUP($B65,Pupils,Pupils!$H$3,FALSE))), \"x\")","v":1792.0482372571873},{"$f":"IFERROR((VLOOKUP($B65,Funding,Funding!$CE$2,FALSE)), \"x\")","v":15649674.07296},{"$f":"IFERROR((AS65/VLOOKUP($B65,Funding,Funding!$CR$2,FALSE)), \"x\")","v":0.11733109207617767},{"$f":"IFERROR((AS65/(VLOOKUP($B65,Pupils,Pupils!$J$3,FALSE)+VLOOKUP($B65,Pupils,Pupils!$K$3,FALSE))), \"x\")","v":1791.6055034871208},{"$f":"IFERROR((VLOOKUP($B65,Funding,Funding!$BM$2,FALSE)), \"x\")","v":20362062.759999998},{"$f":"IFERROR((AV65/VLOOKUP($B65,Funding,Funding!$BY$2,FALSE)), \"x\")","v":0.11114773696082363},{"$f":"IFERROR((AV65/(VLOOKUP($B65,Pupils,Pupils!$M$3,FALSE)+VLOOKUP($B65,Pupils,Pupils!$P$3,FALSE))), \"x\")","v":2368.2324680158172},{"$f":"IFERROR((VLOOKUP($B65,Funding,Funding!$AQ$2,FALSE)), \"x\")","v":30859277},{"$f":"IFERROR((AY65/VLOOKUP($B65,Funding,Funding!$BE$2,FALSE)), \"x\")","v":0.1383194658918348},{"$f":"IFERROR((AY65/(VLOOKUP($B65,Pupils,Pupils!$R$3,FALSE)+VLOOKUP($B65,Pupils,Pupils!$U$3,FALSE))), \"x\")","v":3705.0398607275783},{"$f":"IFERROR((VLOOKUP($B65,Funding,Funding!$S$2,FALSE)), \"x\")","v":30198224},{"$f":"IFERROR((BB65/VLOOKUP($B65,Funding,Funding!$AH$2,FALSE)), \"x\")","v":0.13554110644277692},{"$f":"IFERROR((BB65/(VLOOKUP(B65,Pupils,Pupils!$W$3,FALSE)+VLOOKUP(B65,Pupils,Pupils!$Z$3,FALSE))), \"x\")","v":3669.7319236845301},{"$f":"IFERROR((VLOOKUP($B65,Funding,Funding!$GX$2,FALSE)), \"x\")","v":28899745},{"$f":"IFERROR((BE65/VLOOKUP($B65,Funding,Funding!$HC$2,FALSE)), \"x\")","v":0.128262558861508},{"$f":"IFERROR((BE65/(VLOOKUP($B65,Pupils,Pupils!$D$3,FALSE)+VLOOKUP($B65,Pupils,Pupils!$E$3,FALSE))), \"x\")","v":3141.6181106642025},{"$f":"IFERROR((VLOOKUP($B65,Funding,Funding!$GP$2,FALSE)), \"x\")","v":31947430.449999999},{"$f":"IFERROR((BH65/VLOOKUP($B65,Funding,Funding!$GU$2,FALSE)), \"x\")","v":0.14209031474436609},{"$f":"IFERROR((BH65/(VLOOKUP($B65,Pupils,Pupils!$G$3,FALSE)+VLOOKUP($B65,Pupils,Pupils!$H$3,FALSE))), \"x\")","v":3546.1683261183261},{"$f":"IFERROR((VLOOKUP($B65,Funding,Funding!$GH$2,FALSE)), \"x\")","v":33256049.850000001},{"$f":"IFERROR((BK65/VLOOKUP($B65,Funding,Funding!$GM$2,FALSE)), \"x\")","v":0.15881369464030928},{"$f":"IFERROR((BK65/(VLOOKUP($B65,Pupils,Pupils!$J$3,FALSE)+VLOOKUP($B65,Pupils,Pupils!$K$3,FALSE))), \"x\")","v":3807.2180709788208},{"$f":"IFERROR((VLOOKUP($B65,Funding,Funding!$FZ$2,FALSE)), \"x\")","v":32560671.920000002},{"$f":"IFERROR((BN65/VLOOKUP($B65,Funding,Funding!$GE$2,FALSE)), \"x\")","v":0.17878570822012721},{"$f":"IFERROR((BN65/(VLOOKUP($B65,Pupils,Pupils!$M$3,FALSE)+VLOOKUP($B65,Pupils,Pupils!$P$3,FALSE))), \"x\")","v":3787.0053407769251},{"$f":"IFERROR((VLOOKUP($B65,Funding,Funding!$FD$2,FALSE)), \"x\")","v":32923011},{"$f":"IFERROR((BQ65/VLOOKUP($B65,Funding,Funding!$FR$2,FALSE)), \"x\")","v":0.21435431041385863},{"$f":"IFERROR((BQ65/(VLOOKUP($B65,Pupils,Pupils!$R$3,FALSE)+VLOOKUP($B65,Pupils,Pupils!$U$3,FALSE))), \"x\")","v":3952.8167847280588},{"$f":"(VLOOKUP(B65,Funding,Funding!$HK$2,FALSE)+VLOOKUP(B65,Funding,Funding!$HL$2,FALSE)+VLOOKUP(B65,Funding,Funding!$HM$2,FALSE))/(VLOOKUP(B65,Funding,Funding!$HN$2,FALSE))","v":0.16160626836434869},{"$f":"IFERROR((VLOOKUP(B65,Other_data,Other!$D$3,FALSE)+VLOOKUP(B65,Other_data,Other!$E$3,FALSE)+VLOOKUP(B65,Other_data,Other!$F$3,FALSE)), \"x\")","v":1300},{"$f":"(VLOOKUP(B65,Other_data,Other!$AK$3,FALSE)+VLOOKUP(B65,Other_data,Other!$AL$3,FALSE))/VLOOKUP(B65,Other_data,Other!$AJ$3,FALSE)","v":3.1232408719451831E-2},{"$f":"(VLOOKUP(B65,Other_data,Other!$AR$3,FALSE)+VLOOKUP(B65,Other_data,Other!$AS$3,FALSE))/VLOOKUP(B65,Other_data,Other!$AQ$3,FALSE)","v":4.2557544757033251E-2},{"$f":"VLOOKUP(B65,Other_data,Other!$AP$3,FALSE)/VLOOKUP(B65,Other_data,Other!$AJ$3,FALSE)","v":7.259739503464876E-3},{"$f":"VLOOKUP(B65,Other_data,Other!$AW$3,FALSE)/VLOOKUP(B65,Other_data,Other!$AQ$3,FALSE)","v":1.0332480818414322E-2}]
[60,921,"Isle of Wight",{"$f":"IFERROR((VLOOKUP($B66,Pupils,Pupils!$D$3,FALSE)/VLOOKUP($B66,Pupils,Pupils!$C$3,FALSE)), \"x\")","v":2.8525070658431906E-2},{"$f":"IFERROR((VLOOKUP($B66,Pupils,Pupils!$G$3,FALSE)/VLOOKUP($B66,Pupils,Pupils!$F$3,FALSE)),\"x\")","v":2.993096906781894E-2},{"$f":"IFERROR((VLOOKUP($B66,Pupils,Pupils!$J$3,FALSE)/VLOOKUP($B66,Pupils,Pupils!$I$3,FALSE)), \"x\")","v":3.1421921286500211E-2},{"$f":"IFERROR((VLOOKUP($B66,Pupils,Pupils!$M$3,FALSE)/VLOOKUP($B66,Pupils,Pupils!$L$3,FALSE)), \"x\")","v":3.3966359196961476E-2},{"$f":"IFERROR((VLOOKUP($B66,Pupils,Pupils!$R$3,FALSE)/VLOOKUP($B66,Pupils,Pupils!$Q$3,FALSE)), \"x\")","v":3.539335134241138E-2},{"$f":"IFERROR((VLOOKUP($B66,Pupils,Pupils!$W$3,FALSE)/VLOOKUP($B66,Pupils,Pupils!$V$3,FALSE)), \"x\")","v":3.4968947574553794E-2},{"$f":"IFERROR(((VLOOKUP($B66,Pupils,Pupils!$D$3,FALSE)+VLOOKUP($B66,Pupils,Pupils!$E$3,FALSE))/VLOOKUP($B66,Pupils,Pupils!$C$3,FALSE)), \"x\")","v":0.17905370040824872},{"$f":"IFERROR(((VLOOKUP($B66,Pupils,Pupils!$G$3,FALSE)+VLOOKUP($B66,Pupils,Pupils!$H$3,FALSE))/VLOOKUP($B66,Pupils,Pupils!$F$3,FALSE)), \"x\")","v":0.17705643673921062},{"$f":"IFERROR(((VLOOKUP($B66,Pupils,Pupils!$J$3,FALSE)+VLOOKUP($B66,Pupils,Pupils!$K$3,FALSE))/VLOOKUP($B66,Pupils,Pupils!$I$3,FALSE)), \"x\")","v":0.18107278882776132},{"$f":"IFERROR(((VLOOKUP($B66,Pupils,Pupils!$M$3,FALSE)+VLOOKUP($B66,Pupils,Pupils!$P$3,FALSE))/VLOOKUP($B66,Pupils,Pupils!$L$3,FALSE)), \"x\")","v":0.18014107433532284},{"$f":"IFERROR(((VLOOKUP($B66,Pupils,Pupils!$R$3,FALSE)+VLOOKUP($B66,Pupils,Pupils!$U$3,FALSE))/VLOOKUP($B66,Pupils,Pupils!$Q$3,FALSE)), \"x\")","v":0.18363746623297866},{"$f":"IFERROR(((VLOOKUP($B66,Pupils,Pupils!$W$3,FALSE)+VLOOKUP($B66,Pupils,Pupils!$Z$3,FALSE))/VLOOKUP($B66,Pupils,Pupils!$V$3,FALSE)), \"x\")","v":0.1788172103172383},{"$f":"(SUM(INDEX(Pupils!$AB$7:$AB$159,MATCH($B66,Pupils!$A$7:$A$159,0)),INDEX(Pupils!$AC$7:$AC$159,MATCH($B66,Pupils!$A$7:$A$159,0)),INDEX(Pupils!$AD$7:$AD$159,MATCH($B66,Pupils!$A$7:$A$159,0)),INDEX(Pupils!$AE$7:$AE$159,MATCH($B66,Pupils!$A$7:$A$159,0))))/SUM(INDEX(Pupils!$AB$7:$AM$159,MATCH($B66,Pupils!$A$7:$A$159,0),0))","v":0.33754993342210388},{"$f":"SUM(INDEX(Pupils!$AF$7:$AF$159,MATCH($B66,Pupils!$A$7:$A$159,0)))/SUM(INDEX(Pupils!$AB$7:$AM$159,MATCH($B66,Pupils!$A$7:$A$159,0),0))","v":0.18375499334221038},{"$f":"SUM(INDEX(Pupils!$AG$7:$AG$159,MATCH($B66,Pupils!$A$7:$A$159,0)))/SUM(INDEX(Pupils!$AB$7:$AM$159,MATCH($B66,Pupils!$A$7:$A$159,0),0))","v":0.29360852197070575},{"$f":"(SUM(INDEX(Pupils!$AH$7:$AH$159,MATCH($B66,Pupils!$A$7:$A$159,0)),INDEX(Pupils!$AI$7:$AI$159,MATCH($B66,Pupils!$A$7:$A$159,0)),INDEX(Pupils!$AJ$7:$AJ$159,MATCH($B66,Pupils!$A$7:$A$159,0))))/SUM(INDEX(Pupils!$AB$7:$AM$159,MATCH($B66,Pupils!$A$7:$A$159,0),0))","v":2.529960053262317E-2},{"$f":"SUM(INDEX(Pupils!$AK$7:$AK$159,MATCH($B66,Pupils!$A$7:$A$159,0)))/SUM(INDEX(Pupils!$AB$7:$AM$159,MATCH($B66,Pupils!$A$7:$A$159,0),0))","v":2.1304926764314249E-2},{"$f":"SUM(INDEX(Pupils!$AL$7:$AL$159,MATCH($B66,Pupils!$A$7:$A$159,0)))/SUM(INDEX(Pupils!$AB$7:$AM$159,MATCH($B66,Pupils!$A$7:$A$159,0),0))","v":0.12183754993342211},{"$f":"SUM(INDEX(Pupils!$AM$7:$AM$159,MATCH($B66,Pupils!$A$7:$A$159,0)))/SUM(INDEX(Pupils!$AB$7:$AM$159,MATCH($B66,Pupils!$A$7:$A$159,0),0))","v":1.6644474034620507E-2},{"$f":"(SUM(INDEX(Pupils!$BH$7:$BH$159,MATCH($B66,Pupils!$A$7:$A$159,0)),INDEX(Pupils!$BK$7:$BK$159,MATCH($B66,Pupils!$A$7:$A$159,0)),INDEX(Pupils!$BO$7:$BO$159,MATCH($B66,Pupils!$A$7:$A$159,0))))/SUM(INDEX(Pupils!$BH$7:$BS$159,MATCH($B66,Pupils!$A$7:$A$159,0),0))","v":0.63312693498452011},{"$f":"(SUM(INDEX(Pupils!$BL$7:$BL$159,MATCH($B66,Pupils!$A$7:$A$159,0)),INDEX(Pupils!$BM$7:$BM$159,MATCH($B66,Pupils!$A$7:$A$159,0)),INDEX(Pupils!$BP$7:$BP$159,MATCH($B66,Pupils!$A$7:$A$159,0))))/SUM(INDEX(Pupils!$BH$7:$BS$159,MATCH($B66,Pupils!$A$7:$A$159,0),0))","v":0.34210526315789475},{"$f":"(SUM(INDEX(Pupils!$BI$7:$BI$159,MATCH($B66,Pupils!$A$7:$A$159,0)),INDEX(Pupils!$BJ$7:$BJ$159,MATCH($B66,Pupils!$A$7:$A$159,0))))/SUM(INDEX(Pupils!$BH$7:$BS$159,MATCH($B66,Pupils!$A$7:$A$159,0),0))","v":1.393188854489164E-2},{"$f":"(SUM(INDEX(Pupils!$BQ$7:$BQ$159,MATCH($B66,Pupils!$A$7:$A$159,0)),INDEX(Pupils!$BR$7:$BR$159,MATCH($B66,Pupils!$A$7:$A$159,0)),INDEX(Pupils!$BN$7:$BN$159,MATCH($B66,Pupils!$A$7:$A$159,0)),INDEX(Pupils!$BS$7:$BS$159,MATCH($B66,Pupils!$A$7:$A$159,0))))/SUM(INDEX(Pupils!$BH$7:$BS$159,MATCH($B66,Pupils!$A$7:$A$159,0),0))","v":1.0835913312693499E-2},{"$f":"IFERROR((VLOOKUP(B66,Funding,Funding!$C$2,FALSE)), \"x\")","v":10771821.690000001},{"$f":"IFERROR((AA66/VLOOKUP(B66,Funding,Funding!$D$2,FALSE)), \"x\")","v":0.12489192721601884},{"$f":"IFERROR((AA66/(VLOOKUP(B66,Pupils,Pupils!$M$3,FALSE)+VLOOKUP(B66,Pupils,Pupils!$P$3,FALSE))), \"x\")","v":3244.5246054216873},{"$f":"IFERROR((VLOOKUP(B66,Funding,Funding!$E$2,FALSE)), \"x\")","v":11082688.541505212},{"$f":"IFERROR((AD66/VLOOKUP(B66,Funding,Funding!$F$2,FALSE)), \"x\")","v":0.12736780236873704},{"$f":"IFERROR((AD66/(VLOOKUP(B66,Pupils,Pupils!$R$3,FALSE)+VLOOKUP(B66,Pupils,Pupils!$U$3,FALSE))), \"x\")","v":3327.1355573417027},{"$f":"IFERROR((VLOOKUP(B66,Funding,Funding!$G$2,FALSE)), \"x\")","v":12221944.491304854},{"$f":"IFERROR((AG66/VLOOKUP(B66,Funding,Funding!$H$2,FALSE)), \"x\")","v":0.13929954247846529},{"$f":"IFERROR((AG66/(VLOOKUP(B66,Pupils,Pupils!$W$3,FALSE)+VLOOKUP(B66,Pupils,Pupils!$Z$3,FALSE))), \"x\")","v":3824.1378258150357},{"$f":"IFERROR((VLOOKUP(B66,Funding,Funding!$I$2,FALSE)), \"x\")","v":12359786.283325382},{"$f":"IFERROR((AJ66/VLOOKUP(B66,Funding,Funding!$J$2,FALSE)), \"x\")","v":0.14205344661784414},null,{"$f":"IFERROR((VLOOKUP($B66,Funding,Funding!$EC$2,FALSE)), \"x\")","v":9460815},{"$f":"IFERROR((AM66/VLOOKUP($B66,Funding,Funding!$EU$2,FALSE)), \"x\")","v":0.10014406271332037},{"$f":"IFERROR((AM66/(VLOOKUP($B66,Pupils,Pupils!$D$3,FALSE)+VLOOKUP($B66,Pupils,Pupils!$E$3,FALSE))), \"x\")","v":2765.5115463314819},{"$f":"IFERROR((VLOOKUP($B66,Funding,Funding!$DA$2,FALSE)), \"x\")","v":9938226},{"$f":"IFERROR((AP66/VLOOKUP($B66,Funding,Funding!$DT$2,FALSE)), \"x\")","v":0.10382547971023802},{"$f":"IFERROR((AP66/(VLOOKUP($B66,Pupils,Pupils!$G$3,FALSE)+VLOOKUP($B66,Pupils,Pupils!$H$3,FALSE))), \"x\")","v":2957.8053571428572},{"$f":"IFERROR((VLOOKUP($B66,Funding,Funding!$CE$2,FALSE)), \"x\")","v":10245857},{"$f":"IFERROR((AS66/VLOOKUP($B66,Funding,Funding!$CR$2,FALSE)), \"x\")","v":0.1168742409228079},{"$f":"IFERROR((AS66/(VLOOKUP($B66,Pupils,Pupils!$J$3,FALSE)+VLOOKUP($B66,Pupils,Pupils!$K$3,FALSE))), \"x\")","v":2993.2389716622847},{"$f":"IFERROR((VLOOKUP($B66,Funding,Funding!$BM$2,FALSE)), \"x\")","v":9271430.6699999999},{"$f":"IFERROR((AV66/VLOOKUP($B66,Funding,Funding!$BY$2,FALSE)), \"x\")","v":0.11650327906324773},{"$f":"IFERROR((AV66/(VLOOKUP($B66,Pupils,Pupils!$M$3,FALSE)+VLOOKUP($B66,Pupils,Pupils!$P$3,FALSE))), \"x\")","v":2792.5995993975903},{"$f":"IFERROR((VLOOKUP($B66,Funding,Funding!$AQ$2,FALSE)), \"x\")","v":10171898},{"$f":"IFERROR((AY66/VLOOKUP($B66,Funding,Funding!$BE$2,FALSE)), \"x\")","v":0.11392614221370906},{"$f":"IFERROR((AY66/(VLOOKUP($B66,Pupils,Pupils!$R$3,FALSE)+VLOOKUP($B66,Pupils,Pupils!$U$3,FALSE))), \"x\")","v":3053.7069948964277},{"$f":"IFERROR((VLOOKUP($B66,Funding,Funding!$S$2,FALSE)), \"x\")","v":10790032},{"$f":"IFERROR((BB66/VLOOKUP($B66,Funding,Funding!$AH$2,FALSE)), \"x\")","v":0.11913372746643017},{"$f":"IFERROR((BB66/(VLOOKUP(B66,Pupils,Pupils!$W$3,FALSE)+VLOOKUP(B66,Pupils,Pupils!$Z$3,FALSE))), \"x\")","v":3376.1051314142678},{"$f":"IFERROR((VLOOKUP($B66,Funding,Funding!$GX$2,FALSE)), \"x\")","v":9696712},{"$f":"IFERROR((BE66/VLOOKUP($B66,Funding,Funding!$HC$2,FALSE)), \"x\")","v":9.3283623944294222E-2},{"$f":"IFERROR((BE66/(VLOOKUP($B66,Pupils,Pupils!$D$3,FALSE)+VLOOKUP($B66,Pupils,Pupils!$E$3,FALSE))), \"x\")","v":2834.4671148786906},{"$f":"IFERROR((VLOOKUP($B66,Funding,Funding!$GP$2,FALSE)), \"x\")","v":10829589},{"$f":"IFERROR((BH66/VLOOKUP($B66,Funding,Funding!$GU$2,FALSE)), \"x\")","v":0.10142205865710301},{"$f":"IFERROR((BH66/(VLOOKUP($B66,Pupils,Pupils!$G$3,FALSE)+VLOOKUP($B66,Pupils,Pupils!$H$3,FALSE))), \"x\")","v":3223.0919642857143},{"$f":"IFERROR((VLOOKUP($B66,Funding,Funding!$GH$2,FALSE)), \"x\")","v":9485815.75},{"$f":"IFERROR((BK66/VLOOKUP($B66,Funding,Funding!$GM$2,FALSE)), \"x\")","v":9.7612274149407138E-2},{"$f":"IFERROR((BK66/(VLOOKUP($B66,Pupils,Pupils!$J$3,FALSE)+VLOOKUP($B66,Pupils,Pupils!$K$3,FALSE))), \"x\")","v":2771.1994595384167},{"$f":"IFERROR((VLOOKUP($B66,Funding,Funding!$FZ$2,FALSE)), \"x\")","v":8327060.5899999999},{"$f":"IFERROR((BN66/VLOOKUP($B66,Funding,Funding!$GE$2,FALSE)), \"x\")","v":9.6095219956510505E-2},{"$f":"IFERROR((BN66/(VLOOKUP($B66,Pupils,Pupils!$M$3,FALSE)+VLOOKUP($B66,Pupils,Pupils!$P$3,FALSE))), \"x\")","v":2508.1507801204821},{"$f":"IFERROR((VLOOKUP($B66,Funding,Funding!$FD$2,FALSE)), \"x\")","v":10478335},{"$f":"IFERROR((BQ66/VLOOKUP($B66,Funding,Funding!$FR$2,FALSE)), \"x\")","v":0.13180463544774476},{"$f":"IFERROR((BQ66/(VLOOKUP($B66,Pupils,Pupils!$R$3,FALSE)+VLOOKUP($B66,Pupils,Pupils!$U$3,FALSE))), \"x\")","v":3145.7024917442209},{"$f":"(VLOOKUP(B66,Funding,Funding!$HK$2,FALSE)+VLOOKUP(B66,Funding,Funding!$HL$2,FALSE)+VLOOKUP(B66,Funding,Funding!$HM$2,FALSE))/(VLOOKUP(B66,Funding,Funding!$HN$2,FALSE))","v":0.4375},{"$f":"IFERROR((VLOOKUP(B66,Other_data,Other!$D$3,FALSE)+VLOOKUP(B66,Other_data,Other!$E$3,FALSE)+VLOOKUP(B66,Other_data,Other!$F$3,FALSE)), \"x\")","v":890},{"$f":"(VLOOKUP(B66,Other_data,Other!$AK$3,FALSE)+VLOOKUP(B66,Other_data,Other!$AL$3,FALSE))/VLOOKUP(B66,Other_data,Other!$AJ$3,FALSE)","v":5.0984731135206907E-2},{"$f":"(VLOOKUP(B66,Other_data,Other!$AR$3,FALSE)+VLOOKUP(B66,Other_data,Other!$AS$3,FALSE))/VLOOKUP(B66,Other_data,Other!$AQ$3,FALSE)","v":7.2725849381556282E-2},{"$f":"VLOOKUP(B66,Other_data,Other!$AP$3,FALSE)/VLOOKUP(B66,Other_data,Other!$AJ$3,FALSE)","v":6.0632883381279042E-3},{"$f":"VLOOKUP(B66,Other_data,Other!$AW$3,FALSE)/VLOOKUP(B66,Other_data,Other!$AQ$3,FALSE)","v":1.4169406607170816E-2}]
[61,420,"Isles Of Scilly",{"$f":"IFERROR((VLOOKUP($B67,Pupils,Pupils!$D$3,FALSE)/VLOOKUP($B67,Pupils,Pupils!$C$3,FALSE)), \"x\")","v":1.1320754716981131E-2},{"$f":"IFERROR((VLOOKUP($B67,Pupils,Pupils!$G$3,FALSE)/VLOOKUP($B67,Pupils,Pupils!$F$3,FALSE)),\"x\")","v":1.090909090909091E-2},{"$f":"IFERROR((VLOOKUP($B67,Pupils,Pupils!$J$3,FALSE)/VLOOKUP($B67,Pupils,Pupils!$I$3,FALSE)), \"x\")","v":1.0948905109489052E-2},{"$f":"IFERROR((VLOOKUP($B67,Pupils,Pupils!$M$3,FALSE)/VLOOKUP($B67,Pupils,Pupils!$L$3,FALSE)), \"x\")","v":1.444043321299639E-2},{"$f":"IFERROR((VLOOKUP($B67,Pupils,Pupils!$R$3,FALSE)/VLOOKUP($B67,Pupils,Pupils!$Q$3,FALSE)), \"x\")","v":1.098901098901099E-2},{"$f":"IFERROR((VLOOKUP($B67,Pupils,Pupils!$W$3,FALSE)/VLOOKUP($B67,Pupils,Pupils!$V$3,FALSE)), \"x\")","v":2.1897810218978103E-2},{"$f":"IFERROR(((VLOOKUP($B67,Pupils,Pupils!$D$3,FALSE)+VLOOKUP($B67,Pupils,Pupils!$E$3,FALSE))/VLOOKUP($B67,Pupils,Pupils!$C$3,FALSE)), \"x\")","v":0.11320754716981132},{"$f":"IFERROR(((VLOOKUP($B67,Pupils,Pupils!$G$3,FALSE)+VLOOKUP($B67,Pupils,Pupils!$H$3,FALSE))/VLOOKUP($B67,Pupils,Pupils!$F$3,FALSE)), \"x\")","v":0.16},{"$f":"IFERROR(((VLOOKUP($B67,Pupils,Pupils!$J$3,FALSE)+VLOOKUP($B67,Pupils,Pupils!$K$3,FALSE))/VLOOKUP($B67,Pupils,Pupils!$I$3,FALSE)), \"x\")","v":0.13138686131386862},{"$f":"IFERROR(((VLOOKUP($B67,Pupils,Pupils!$M$3,FALSE)+VLOOKUP($B67,Pupils,Pupils!$P$3,FALSE))/VLOOKUP($B67,Pupils,Pupils!$L$3,FALSE)), \"x\")","v":0.11913357400722022},{"$f":"IFERROR(((VLOOKUP($B67,Pupils,Pupils!$R$3,FALSE)+VLOOKUP($B67,Pupils,Pupils!$U$3,FALSE))/VLOOKUP($B67,Pupils,Pupils!$Q$3,FALSE)), \"x\")","v":0.13186813186813187},{"$f":"IFERROR(((VLOOKUP($B67,Pupils,Pupils!$W$3,FALSE)+VLOOKUP($B67,Pupils,Pupils!$Z$3,FALSE))/VLOOKUP($B67,Pupils,Pupils!$V$3,FALSE)), \"x\")","v":0.14233576642335766},{"$f":"(SUM(INDEX(Pupils!$AB$7:$AB$159,MATCH($B67,Pupils!$A$7:$A$159,0)),INDEX(Pupils!$AC$7:$AC$159,MATCH($B67,Pupils!$A$7:$A$159,0)),INDEX(Pupils!$AD$7:$AD$159,MATCH($B67,Pupils!$A$7:$A$159,0)),INDEX(Pupils!$AE$7:$AE$159,MATCH($B67,Pupils!$A$7:$A$159,0))))/SUM(INDEX(Pupils!$AB$7:$AM$159,MATCH($B67,Pupils!$A$7:$A$159,0),0))","v":0.23529411764705882},{"$f":"SUM(INDEX(Pupils!$AF$7:$AF$159,MATCH($B67,Pupils!$A$7:$A$159,0)))/SUM(INDEX(Pupils!$AB$7:$AM$159,MATCH($B67,Pupils!$A$7:$A$159,0),0))","v":0},{"$f":"SUM(INDEX(Pupils!$AG$7:$AG$159,MATCH($B67,Pupils!$A$7:$A$159,0)))/SUM(INDEX(Pupils!$AB$7:$AM$159,MATCH($B67,Pupils!$A$7:$A$159,0),0))","v":0.23529411764705882},{"$f":"(SUM(INDEX(Pupils!$AH$7:$AH$159,MATCH($B67,Pupils!$A$7:$A$159,0)),INDEX(Pupils!$AI$7:$AI$159,MATCH($B67,Pupils!$A$7:$A$159,0)),INDEX(Pupils!$AJ$7:$AJ$159,MATCH($B67,Pupils!$A$7:$A$159,0))))/SUM(INDEX(Pupils!$AB$7:$AM$159,MATCH($B67,Pupils!$A$7:$A$159,0),0))","v":0},{"$f":"SUM(INDEX(Pupils!$AK$7:$AK$159,MATCH($B67,Pupils!$A$7:$A$159,0)))/SUM(INDEX(Pupils!$AB$7:$AM$159,MATCH($B67,Pupils!$A$7:$A$159,0),0))","v":0},{"$f":"SUM(INDEX(Pupils!$AL$7:$AL$159,MATCH($B67,Pupils!$A$7:$A$159,0)))/SUM(INDEX(Pupils!$AB$7:$AM$159,MATCH($B67,Pupils!$A$7:$A$159,0),0))","v":0.29411764705882354},{"$f":"SUM(INDEX(Pupils!$AM$7:$AM$159,MATCH($B67,Pupils!$A$7:$A$159,0)))/SUM(INDEX(Pupils!$AB$7:$AM$159,MATCH($B67,Pupils!$A$7:$A$159,0),0))","v":0.23529411764705882},{"$f":"(SUM(INDEX(Pupils!$BH$7:$BH$159,MATCH($B67,Pupils!$A$7:$A$159,0)),INDEX(Pupils!$BK$7:$BK$159,MATCH($B67,Pupils!$A$7:$A$159,0)),INDEX(Pupils!$BO$7:$BO$159,MATCH($B67,Pupils!$A$7:$A$159,0))))/SUM(INDEX(Pupils!$BH$7:$BS$159,MATCH($B67,Pupils!$A$7:$A$159,0),0))","v":0},{"$f":"(SUM(INDEX(Pupils!$BL$7:$BL$159,MATCH($B67,Pupils!$A$7:$A$159,0)),INDEX(Pupils!$BM$7:$BM$159,MATCH($B67,Pupils!$A$7:$A$159,0)),INDEX(Pupils!$BP$7:$BP$159,MATCH($B67,Pupils!$A$7:$A$159,0))))/SUM(INDEX(Pupils!$BH$7:$BS$159,MATCH($B67,Pupils!$A$7:$A$159,0),0))","v":0},{"$f":"(SUM(INDEX(Pupils!$BI$7:$BI$159,MATCH($B67,Pupils!$A$7:$A$159,0)),INDEX(Pupils!$BJ$7:$BJ$159,MATCH($B67,Pupils!$A$7:$A$159,0))))/SUM(INDEX(Pupils!$BH$7:$BS$159,MATCH($B67,Pupils!$A$7:$A$159,0),0))","v":1},{"$f":"(SUM(INDEX(Pupils!$BQ$7:$BQ$159,MATCH($B67,Pupils!$A$7:$A$159,0)),INDEX(Pupils!$BR$7:$BR$159,MATCH($B67,Pupils!$A$7:$A$159,0)),INDEX(Pupils!$BN$7:$BN$159,MATCH($B67,Pupils!$A$7:$A$159,0)),INDEX(Pupils!$BS$7:$BS$159,MATCH($B67,Pupils!$A$7:$A$159,0))))/SUM(INDEX(Pupils!$BH$7:$BS$159,MATCH($B67,Pupils!$A$7:$A$159,0),0))","v":0},{"$f":"IFERROR((VLOOKUP(B67,Funding,Funding!$C$2,FALSE)), \"x\")","v":0},{"$f":"IFERROR((AA67/VLOOKUP(B67,Funding,Funding!$D$2,FALSE)), \"x\")","v":"x"},{"$f":"IFERROR((AA67/(VLOOKUP(B67,Pupils,Pupils!$M$3,FALSE)+VLOOKUP(B67,Pupils,Pupils!$P$3,FALSE))), \"x\")","v":0},{"$f":"IFERROR((VLOOKUP(B67,Funding,Funding!$E$2,FALSE)), \"x\")","v":0},{"$f":"IFERROR((AD67/VLOOKUP(B67,Funding,Funding!$F$2,FALSE)), \"x\")","v":"x"},{"$f":"IFERROR((AD67/(VLOOKUP(B67,Pupils,Pupils!$R$3,FALSE)+VLOOKUP(B67,Pupils,Pupils!$U$3,FALSE))), \"x\")","v":0},{"$f":"IFERROR((VLOOKUP(B67,Funding,Funding!$G$2,FALSE)), \"x\")","v":0},{"$f":"IFERROR((AG67/VLOOKUP(B67,Funding,Funding!$H$2,FALSE)), \"x\")","v":"x"},{"$f":"IFERROR((AG67/(VLOOKUP(B67,Pupils,Pupils!$W$3,FALSE)+VLOOKUP(B67,Pupils,Pupils!$Z$3,FALSE))), \"x\")","v":0},{"$f":"IFERROR((VLOOKUP(B67,Funding,Funding!$I$2,FALSE)), \"x\")","v":0},{"$f":"IFERROR((AJ67/VLOOKUP(B67,Funding,Funding!$J$2,FALSE)), \"x\")","v":"x"},null,{"$f":"IFERROR((VLOOKUP($B67,Funding,Funding!$EC$2,FALSE)), \"x\")","v":62740},{"$f":"IFERROR((AM67/VLOOKUP($B67,Funding,Funding!$EU$2,FALSE)), \"x\")","v":2.1863979146628753E-2},{"$f":"IFERROR((AM67/(VLOOKUP($B67,Pupils,Pupils!$D$3,FALSE)+VLOOKUP($B67,Pupils,Pupils!$E$3,FALSE))), \"x\")","v":2091.3333333333335},{"$f":"IFERROR((VLOOKUP($B67,Funding,Funding!$DA$2,FALSE)), \"x\")","v":35364},{"$f":"IFERROR((AP67/VLOOKUP($B67,Funding,Funding!$DT$2,FALSE)), \"x\")","v":1.2861296640111724E-2},{"$f":"IFERROR((AP67/(VLOOKUP($B67,Pupils,Pupils!$G$3,FALSE)+VLOOKUP($B67,Pupils,Pupils!$H$3,FALSE))), \"x\")","v":803.72727272727275},{"$f":"IFERROR((VLOOKUP($B67,Funding,Funding!$CE$2,FALSE)), \"x\")","v":58584},{"$f":"IFERROR((AS67/VLOOKUP($B67,Funding,Funding!$CR$2,FALSE)), \"x\")","v":2.1651843792132839E-2},{"$f":"IFERROR((AS67/(VLOOKUP($B67,Pupils,Pupils!$J$3,FALSE)+VLOOKUP($B67,Pupils,Pupils!$K$3,FALSE))), \"x\")","v":1627.3333333333333},{"$f":"IFERROR((VLOOKUP($B67,Funding,Funding!$BM$2,FALSE)), \"x\")","v":231965},{"$f":"IFERROR((AV67/VLOOKUP($B67,Funding,Funding!$BY$2,FALSE)), \"x\")","v":8.1357881330148846E-2},{"$f":"IFERROR((AV67/(VLOOKUP($B67,Pupils,Pupils!$M$3,FALSE)+VLOOKUP($B67,Pupils,Pupils!$P$3,FALSE))), \"x\")","v":7029.242424242424},{"$f":"IFERROR((VLOOKUP($B67,Funding,Funding!$AQ$2,FALSE)), \"x\")","v":180000},{"$f":"IFERROR((AY67/VLOOKUP($B67,Funding,Funding!$BE$2,FALSE)), \"x\")","v":6.3724258054923225E-2},{"$f":"IFERROR((AY67/(VLOOKUP($B67,Pupils,Pupils!$R$3,FALSE)+VLOOKUP($B67,Pupils,Pupils!$U$3,FALSE))), \"x\")","v":5000},{"$f":"IFERROR((VLOOKUP($B67,Funding,Funding!$S$2,FALSE)), \"x\")","v":154949},{"$f":"IFERROR((BB67/VLOOKUP($B67,Funding,Funding!$AH$2,FALSE)), \"x\")","v":5.5524260621345391E-2},{"$f":"IFERROR((BB67/(VLOOKUP(B67,Pupils,Pupils!$W$3,FALSE)+VLOOKUP(B67,Pupils,Pupils!$Z$3,FALSE))), \"x\")","v":3973.0512820512822},{"$f":"IFERROR((VLOOKUP($B67,Funding,Funding!$GX$2,FALSE)), \"x\")","v":0},{"$f":"IFERROR((BE67/VLOOKUP($B67,Funding,Funding!$HC$2,FALSE)), \"x\")","v":0},{"$f":"IFERROR((BE67/(VLOOKUP($B67,Pupils,Pupils!$D$3,FALSE)+VLOOKUP($B67,Pupils,Pupils!$E$3,FALSE))), \"x\")","v":0},{"$f":"IFERROR((VLOOKUP($B67,Funding,Funding!$GP$2,FALSE)), \"x\")","v":23188},{"$f":"IFERROR((BH67/VLOOKUP($B67,Funding,Funding!$GU$2,FALSE)), \"x\")","v":8.1906100921526996E-3},{"$f":"IFERROR((BH67/(VLOOKUP($B67,Pupils,Pupils!$G$3,FALSE)+VLOOKUP($B67,Pupils,Pupils!$H$3,FALSE))), \"x\")","v":527},{"$f":"IFERROR((VLOOKUP($B67,Funding,Funding!$GH$2,FALSE)), \"x\")","v":65244},{"$f":"IFERROR((BK67/VLOOKUP($B67,Funding,Funding!$GM$2,FALSE)), \"x\")","v":2.3051072030657205E-2},{"$f":"IFERROR((BK67/(VLOOKUP($B67,Pupils,Pupils!$J$3,FALSE)+VLOOKUP($B67,Pupils,Pupils!$K$3,FALSE))), \"x\")","v":1812.3333333333333},{"$f":"IFERROR((VLOOKUP($B67,Funding,Funding!$FZ$2,FALSE)), \"x\")","v":172333},{"$f":"IFERROR((BN67/VLOOKUP($B67,Funding,Funding!$GE$2,FALSE)), \"x\")","v":5.8593019799369948E-2},{"$f":"IFERROR((BN67/(VLOOKUP($B67,Pupils,Pupils!$M$3,FALSE)+VLOOKUP($B67,Pupils,Pupils!$P$3,FALSE))), \"x\")","v":5222.212121212121},{"$f":"IFERROR((VLOOKUP($B67,Funding,Funding!$FD$2,FALSE)), \"x\")","v":137363},{"$f":"IFERROR((BQ67/VLOOKUP($B67,Funding,Funding!$FR$2,FALSE)), \"x\")","v":4.940522956025558E-2},{"$f":"IFERROR((BQ67/(VLOOKUP($B67,Pupils,Pupils!$R$3,FALSE)+VLOOKUP($B67,Pupils,Pupils!$U$3,FALSE))), \"x\")","v":3815.6388888888887},{"$f":"(VLOOKUP(B67,Funding,Funding!$HK$2,FALSE)+VLOOKUP(B67,Funding,Funding!$HL$2,FALSE)+VLOOKUP(B67,Funding,Funding!$HM$2,FALSE))/(VLOOKUP(B67,Funding,Funding!$HN$2,FALSE))","v":0.8},{"$f":"IFERROR((VLOOKUP(B67,Other_data,Other!$D$3,FALSE)+VLOOKUP(B67,Other_data,Other!$E$3,FALSE)+VLOOKUP(B67,Other_data,Other!$F$3,FALSE)), \"x\")","v":20},{"$f":"(VLOOKUP(B67,Other_data,Other!$AK$3,FALSE)+VLOOKUP(B67,Other_data,Other!$AL$3,FALSE))/VLOOKUP(B67,Other_data,Other!$AJ$3,FALSE)","v":3.2640949554896145E-2},{"$f":"(VLOOKUP(B67,Other_data,Other!$AR$3,FALSE)+VLOOKUP(B67,Other_data,Other!$AS$3,FALSE))/VLOOKUP(B67,Other_data,Other!$AQ$3,FALSE)","v":3.1746031746031744E-2},{"$f":"VLOOKUP(B67,Other_data,Other!$AP$3,FALSE)/VLOOKUP(B67,Other_data,Other!$AJ$3,FALSE)","v":2.967359050445104E-3},{"$f":"VLOOKUP(B67,Other_data,Other!$AW$3,FALSE)/VLOOKUP(B67,Other_data,Other!$AQ$3,FALSE)","v":7.9365079365079361E-3}]
[62,206,"Islington",{"$f":"IFERROR((VLOOKUP($B68,Pupils,Pupils!$D$3,FALSE)/VLOOKUP($B68,Pupils,Pupils!$C$3,FALSE)), \"x\")","v":3.1120065154957348E-2},{"$f":"IFERROR((VLOOKUP($B68,Pupils,Pupils!$G$3,FALSE)/VLOOKUP($B68,Pupils,Pupils!$F$3,FALSE)),\"x\")","v":3.1148243359040276E-2},{"$f":"IFERROR((VLOOKUP($B68,Pupils,Pupils!$J$3,FALSE)/VLOOKUP($B68,Pupils,Pupils!$I$3,FALSE)), \"x\")","v":3.2783453357896501E-2},{"$f":"IFERROR((VLOOKUP($B68,Pupils,Pupils!$M$3,FALSE)/VLOOKUP($B68,Pupils,Pupils!$L$3,FALSE)), \"x\")","v":3.2954780094982448E-2},{"$f":"IFERROR((VLOOKUP($B68,Pupils,Pupils!$R$3,FALSE)/VLOOKUP($B68,Pupils,Pupils!$Q$3,FALSE)), \"x\")","v":3.3958669814055577E-2},{"$f":"IFERROR((VLOOKUP($B68,Pupils,Pupils!$W$3,FALSE)/VLOOKUP($B68,Pupils,Pupils!$V$3,FALSE)), \"x\")","v":3.4239064213476299E-2},{"$f":"IFERROR(((VLOOKUP($B68,Pupils,Pupils!$D$3,FALSE)+VLOOKUP($B68,Pupils,Pupils!$E$3,FALSE))/VLOOKUP($B68,Pupils,Pupils!$C$3,FALSE)), \"x\")","v":0.29465472159115264},{"$f":"IFERROR(((VLOOKUP($B68,Pupils,Pupils!$G$3,FALSE)+VLOOKUP($B68,Pupils,Pupils!$H$3,FALSE))/VLOOKUP($B68,Pupils,Pupils!$F$3,FALSE)), \"x\")","v":0.27729220222793488},{"$f":"IFERROR(((VLOOKUP($B68,Pupils,Pupils!$J$3,FALSE)+VLOOKUP($B68,Pupils,Pupils!$K$3,FALSE))/VLOOKUP($B68,Pupils,Pupils!$I$3,FALSE)), \"x\")","v":0.27759169318372134},{"$f":"IFERROR(((VLOOKUP($B68,Pupils,Pupils!$M$3,FALSE)+VLOOKUP($B68,Pupils,Pupils!$P$3,FALSE))/VLOOKUP($B68,Pupils,Pupils!$L$3,FALSE)), \"x\")","v":0.26586826347305387},{"$f":"IFERROR(((VLOOKUP($B68,Pupils,Pupils!$R$3,FALSE)+VLOOKUP($B68,Pupils,Pupils!$U$3,FALSE))/VLOOKUP($B68,Pupils,Pupils!$Q$3,FALSE)), \"x\")","v":0.24089949061995278},{"$f":"IFERROR(((VLOOKUP($B68,Pupils,Pupils!$W$3,FALSE)+VLOOKUP($B68,Pupils,Pupils!$Z$3,FALSE))/VLOOKUP($B68,Pupils,Pupils!$V$3,FALSE)), \"x\")","v":0.24048576418504528},{"$f":"(SUM(INDEX(Pupils!$AB$7:$AB$159,MATCH($B68,Pupils!$A$7:$A$159,0)),INDEX(Pupils!$AC$7:$AC$159,MATCH($B68,Pupils!$A$7:$A$159,0)),INDEX(Pupils!$AD$7:$AD$159,MATCH($B68,Pupils!$A$7:$A$159,0)),INDEX(Pupils!$AE$7:$AE$159,MATCH($B68,Pupils!$A$7:$A$159,0))))/SUM(INDEX(Pupils!$AB$7:$AM$159,MATCH($B68,Pupils!$A$7:$A$159,0),0))","v":0.32350773765659541},{"$f":"SUM(INDEX(Pupils!$AF$7:$AF$159,MATCH($B68,Pupils!$A$7:$A$159,0)))/SUM(INDEX(Pupils!$AB$7:$AM$159,MATCH($B68,Pupils!$A$7:$A$159,0),0))","v":0.18791451731761238},{"$f":"SUM(INDEX(Pupils!$AG$7:$AG$159,MATCH($B68,Pupils!$A$7:$A$159,0)))/SUM(INDEX(Pupils!$AB$7:$AM$159,MATCH($B68,Pupils!$A$7:$A$159,0),0))","v":0.27745025792188649},{"$f":"(SUM(INDEX(Pupils!$AH$7:$AH$159,MATCH($B68,Pupils!$A$7:$A$159,0)),INDEX(Pupils!$AI$7:$AI$159,MATCH($B68,Pupils!$A$7:$A$159,0)),INDEX(Pupils!$AJ$7:$AJ$159,MATCH($B68,Pupils!$A$7:$A$159,0))))/SUM(INDEX(Pupils!$AB$7:$AM$159,MATCH($B68,Pupils!$A$7:$A$159,0),0))","v":5.1215917464996312E-2},{"$f":"SUM(INDEX(Pupils!$AK$7:$AK$159,MATCH($B68,Pupils!$A$7:$A$159,0)))/SUM(INDEX(Pupils!$AB$7:$AM$159,MATCH($B68,Pupils!$A$7:$A$159,0),0))","v":3.3898305084745763E-2},{"$f":"SUM(INDEX(Pupils!$AL$7:$AL$159,MATCH($B68,Pupils!$A$7:$A$159,0)))/SUM(INDEX(Pupils!$AB$7:$AM$159,MATCH($B68,Pupils!$A$7:$A$159,0),0))","v":6.4848931466470153E-2},{"$f":"SUM(INDEX(Pupils!$AM$7:$AM$159,MATCH($B68,Pupils!$A$7:$A$159,0)))/SUM(INDEX(Pupils!$AB$7:$AM$159,MATCH($B68,Pupils!$A$7:$A$159,0),0))","v":6.1164333087693444E-2},{"$f":"(SUM(INDEX(Pupils!$BH$7:$BH$159,MATCH($B68,Pupils!$A$7:$A$159,0)),INDEX(Pupils!$BK$7:$BK$159,MATCH($B68,Pupils!$A$7:$A$159,0)),INDEX(Pupils!$BO$7:$BO$159,MATCH($B68,Pupils!$A$7:$A$159,0))))/SUM(INDEX(Pupils!$BH$7:$BS$159,MATCH($B68,Pupils!$A$7:$A$159,0),0))","v":0.48184818481848185},{"$f":"(SUM(INDEX(Pupils!$BL$7:$BL$159,MATCH($B68,Pupils!$A$7:$A$159,0)),INDEX(Pupils!$BM$7:$BM$159,MATCH($B68,Pupils!$A$7:$A$159,0)),INDEX(Pupils!$BP$7:$BP$159,MATCH($B68,Pupils!$A$7:$A$159,0))))/SUM(INDEX(Pupils!$BH$7:$BS$159,MATCH($B68,Pupils!$A$7:$A$159,0),0))","v":0.44884488448844884},{"$f":"(SUM(INDEX(Pupils!$BI$7:$BI$159,MATCH($B68,Pupils!$A$7:$A$159,0)),INDEX(Pupils!$BJ$7:$BJ$159,MATCH($B68,Pupils!$A$7:$A$159,0))))/SUM(INDEX(Pupils!$BH$7:$BS$159,MATCH($B68,Pupils!$A$7:$A$159,0),0))","v":3.5203520352035202E-2},{"$f":"(SUM(INDEX(Pupils!$BQ$7:$BQ$159,MATCH($B68,Pupils!$A$7:$A$159,0)),INDEX(Pupils!$BR$7:$BR$159,MATCH($B68,Pupils!$A$7:$A$159,0)),INDEX(Pupils!$BN$7:$BN$159,MATCH($B68,Pupils!$A$7:$A$159,0)),INDEX(Pupils!$BS$7:$BS$159,MATCH($B68,Pupils!$A$7:$A$159,0))))/SUM(INDEX(Pupils!$BH$7:$BS$159,MATCH($B68,Pupils!$A$7:$A$159,0),0))","v":3.4103410341034104E-2},{"$f":"IFERROR((VLOOKUP(B68,Funding,Funding!$C$2,FALSE)), \"x\")","v":23470301.809999999},{"$f":"IFERROR((AA68/VLOOKUP(B68,Funding,Funding!$D$2,FALSE)), \"x\")","v":0.14838509657607354},{"$f":"IFERROR((AA68/(VLOOKUP(B68,Pupils,Pupils!$M$3,FALSE)+VLOOKUP(B68,Pupils,Pupils!$P$3,FALSE))), \"x\")","v":3645.5889732836281},{"$f":"IFERROR((VLOOKUP(B68,Funding,Funding!$E$2,FALSE)), \"x\")","v":25049512.762993306},{"$f":"IFERROR((AD68/VLOOKUP(B68,Funding,Funding!$F$2,FALSE)), \"x\")","v":0.1527580924795478},{"$f":"IFERROR((AD68/(VLOOKUP(B68,Pupils,Pupils!$R$3,FALSE)+VLOOKUP(B68,Pupils,Pupils!$U$3,FALSE))), \"x\")","v":4306.2597151441132},{"$f":"IFERROR((VLOOKUP(B68,Funding,Funding!$G$2,FALSE)), \"x\")","v":25207096.985953592},{"$f":"IFERROR((AG68/VLOOKUP(B68,Funding,Funding!$H$2,FALSE)), \"x\")","v":0.15348838061829595},{"$f":"IFERROR((AG68/(VLOOKUP(B68,Pupils,Pupils!$W$3,FALSE)+VLOOKUP(B68,Pupils,Pupils!$Z$3,FALSE))), \"x\")","v":4257.2364441738882},{"$f":"IFERROR((VLOOKUP(B68,Funding,Funding!$I$2,FALSE)), \"x\")","v":25581798.739196222},{"$f":"IFERROR((AJ68/VLOOKUP(B68,Funding,Funding!$J$2,FALSE)), \"x\")","v":0.15034232349651336},null,{"$f":"IFERROR((VLOOKUP($B68,Funding,Funding!$EC$2,FALSE)), \"x\")","v":12801757.76},{"$f":"IFERROR((AM68/VLOOKUP($B68,Funding,Funding!$EU$2,FALSE)), \"x\")","v":8.2918761862377732E-2},{"$f":"IFERROR((AM68/(VLOOKUP($B68,Pupils,Pupils!$D$3,FALSE)+VLOOKUP($B68,Pupils,Pupils!$E$3,FALSE))), \"x\")","v":1862.3447425080012},{"$f":"IFERROR((VLOOKUP($B68,Funding,Funding!$DA$2,FALSE)), \"x\")","v":13523048},{"$f":"IFERROR((AP68/VLOOKUP($B68,Funding,Funding!$DT$2,FALSE)), \"x\")","v":8.6885623613555549E-2},{"$f":"IFERROR((AP68/(VLOOKUP($B68,Pupils,Pupils!$G$3,FALSE)+VLOOKUP($B68,Pupils,Pupils!$H$3,FALSE))), \"x\")","v":2089.469715698393},{"$f":"IFERROR((VLOOKUP($B68,Funding,Funding!$CE$2,FALSE)), \"x\")","v":14151806.780000001},{"$f":"IFERROR((AS68/VLOOKUP($B68,Funding,Funding!$CR$2,FALSE)), \"x\")","v":8.5996449506315145E-2},{"$f":"IFERROR((AS68/(VLOOKUP($B68,Pupils,Pupils!$J$3,FALSE)+VLOOKUP($B68,Pupils,Pupils!$K$3,FALSE))), \"x\")","v":2134.510826546003},{"$f":"IFERROR((VLOOKUP($B68,Funding,Funding!$BM$2,FALSE)), \"x\")","v":15629873.359999999},{"$f":"IFERROR((AV68/VLOOKUP($B68,Funding,Funding!$BY$2,FALSE)), \"x\")","v":9.5016393716408076E-2},{"$f":"IFERROR((AV68/(VLOOKUP($B68,Pupils,Pupils!$M$3,FALSE)+VLOOKUP($B68,Pupils,Pupils!$P$3,FALSE))), \"x\")","v":2427.7529294812052},{"$f":"IFERROR((VLOOKUP($B68,Funding,Funding!$AQ$2,FALSE)), \"x\")","v":23439009},{"$f":"IFERROR((AY68/VLOOKUP($B68,Funding,Funding!$BE$2,FALSE)), \"x\")","v":0.1380373549115414},{"$f":"IFERROR((AY68/(VLOOKUP($B68,Pupils,Pupils!$R$3,FALSE)+VLOOKUP($B68,Pupils,Pupils!$U$3,FALSE))), \"x\")","v":4029.3981433728727},{"$f":"IFERROR((VLOOKUP($B68,Funding,Funding!$S$2,FALSE)), \"x\")","v":22721354},{"$f":"IFERROR((BB68/VLOOKUP($B68,Funding,Funding!$AH$2,FALSE)), \"x\")","v":0.13424241622516916},{"$f":"IFERROR((BB68/(VLOOKUP(B68,Pupils,Pupils!$W$3,FALSE)+VLOOKUP(B68,Pupils,Pupils!$Z$3,FALSE))), \"x\")","v":3837.4183414963691},{"$f":"IFERROR((VLOOKUP($B68,Funding,Funding!$GX$2,FALSE)), \"x\")","v":24580664},{"$f":"IFERROR((BE68/VLOOKUP($B68,Funding,Funding!$HC$2,FALSE)), \"x\")","v":0.13903259725100853},{"$f":"IFERROR((BE68/(VLOOKUP($B68,Pupils,Pupils!$D$3,FALSE)+VLOOKUP($B68,Pupils,Pupils!$E$3,FALSE))), \"x\")","v":3575.8894384637765},{"$f":"IFERROR((VLOOKUP($B68,Funding,Funding!$GP$2,FALSE)), \"x\")","v":25525130.68},{"$f":"IFERROR((BH68/VLOOKUP($B68,Funding,Funding!$GU$2,FALSE)), \"x\")","v":0.14588388204804092},{"$f":"IFERROR((BH68/(VLOOKUP($B68,Pupils,Pupils!$G$3,FALSE)+VLOOKUP($B68,Pupils,Pupils!$H$3,FALSE))), \"x\")","v":3943.9324289245983},{"$f":"IFERROR((VLOOKUP($B68,Funding,Funding!$GH$2,FALSE)), \"x\")","v":26388088.890000001},{"$f":"IFERROR((BK68/VLOOKUP($B68,Funding,Funding!$GM$2,FALSE)), \"x\")","v":0.14948941448103664},{"$f":"IFERROR((BK68/(VLOOKUP($B68,Pupils,Pupils!$J$3,FALSE)+VLOOKUP($B68,Pupils,Pupils!$K$3,FALSE))), \"x\")","v":3980.1039049773758},{"$f":"IFERROR((VLOOKUP($B68,Funding,Funding!$FZ$2,FALSE)), \"x\")","v":27930502.740000002},{"$f":"IFERROR((BN68/VLOOKUP($B68,Funding,Funding!$GE$2,FALSE)), \"x\")","v":0.15478968588117673},{"$f":"IFERROR((BN68/(VLOOKUP($B68,Pupils,Pupils!$M$3,FALSE)+VLOOKUP($B68,Pupils,Pupils!$P$3,FALSE))), \"x\")","v":4338.3819105312214},{"$f":"IFERROR((VLOOKUP($B68,Funding,Funding!$FD$2,FALSE)), \"x\")","v":21063683},{"$f":"IFERROR((BQ68/VLOOKUP($B68,Funding,Funding!$FR$2,FALSE)), \"x\")","v":0.13327643015658217},{"$f":"IFERROR((BQ68/(VLOOKUP($B68,Pupils,Pupils!$R$3,FALSE)+VLOOKUP($B68,Pupils,Pupils!$U$3,FALSE))), \"x\")","v":3621.0560426336601},{"$f":"(VLOOKUP(B68,Funding,Funding!$HK$2,FALSE)+VLOOKUP(B68,Funding,Funding!$HL$2,FALSE)+VLOOKUP(B68,Funding,Funding!$HM$2,FALSE))/(VLOOKUP(B68,Funding,Funding!$HN$2,FALSE))","v":0.15047879616963064},{"$f":"IFERROR((VLOOKUP(B68,Other_data,Other!$D$3,FALSE)+VLOOKUP(B68,Other_data,Other!$E$3,FALSE)+VLOOKUP(B68,Other_data,Other!$F$3,FALSE)), \"x\")","v":1120},{"$f":"(VLOOKUP(B68,Other_data,Other!$AK$3,FALSE)+VLOOKUP(B68,Other_data,Other!$AL$3,FALSE))/VLOOKUP(B68,Other_data,Other!$AJ$3,FALSE)","v":4.4746547992806411E-2},{"$f":"(VLOOKUP(B68,Other_data,Other!$AR$3,FALSE)+VLOOKUP(B68,Other_data,Other!$AS$3,FALSE))/VLOOKUP(B68,Other_data,Other!$AQ$3,FALSE)","v":5.0214091086025689E-2},{"$f":"VLOOKUP(B68,Other_data,Other!$AP$3,FALSE)/VLOOKUP(B68,Other_data,Other!$AJ$3,FALSE)","v":1.039412320541348E-2},{"$f":"VLOOKUP(B68,Other_data,Other!$AW$3,FALSE)/VLOOKUP(B68,Other_data,Other!$AQ$3,FALSE)","v":1.3779680809653562E-2}]
[63,207,"Kensington and Chelsea",{"$f":"IFERROR((VLOOKUP($B69,Pupils,Pupils!$D$3,FALSE)/VLOOKUP($B69,Pupils,Pupils!$C$3,FALSE)), \"x\")","v":1.6450560112904647E-2},{"$f":"IFERROR((VLOOKUP($B69,Pupils,Pupils!$G$3,FALSE)/VLOOKUP($B69,Pupils,Pupils!$F$3,FALSE)),\"x\")","v":1.5860701663649685E-2},{"$f":"IFERROR((VLOOKUP($B69,Pupils,Pupils!$J$3,FALSE)/VLOOKUP($B69,Pupils,Pupils!$I$3,FALSE)), \"x\")","v":1.8441009489867804E-2},{"$f":"IFERROR((VLOOKUP($B69,Pupils,Pupils!$M$3,FALSE)/VLOOKUP($B69,Pupils,Pupils!$L$3,FALSE)), \"x\")","v":1.6737081572960676E-2},{"$f":"IFERROR((VLOOKUP($B69,Pupils,Pupils!$R$3,FALSE)/VLOOKUP($B69,Pupils,Pupils!$Q$3,FALSE)), \"x\")","v":1.6612625595452544E-2},{"$f":"IFERROR((VLOOKUP($B69,Pupils,Pupils!$W$3,FALSE)/VLOOKUP($B69,Pupils,Pupils!$V$3,FALSE)), \"x\")","v":2.0267085624509035E-2},{"$f":"IFERROR(((VLOOKUP($B69,Pupils,Pupils!$D$3,FALSE)+VLOOKUP($B69,Pupils,Pupils!$E$3,FALSE))/VLOOKUP($B69,Pupils,Pupils!$C$3,FALSE)), \"x\")","v":0.10853841404251566},{"$f":"IFERROR(((VLOOKUP($B69,Pupils,Pupils!$G$3,FALSE)+VLOOKUP($B69,Pupils,Pupils!$H$3,FALSE))/VLOOKUP($B69,Pupils,Pupils!$F$3,FALSE)), \"x\")","v":0.11162830790449099},{"$f":"IFERROR(((VLOOKUP($B69,Pupils,Pupils!$J$3,FALSE)+VLOOKUP($B69,Pupils,Pupils!$K$3,FALSE))/VLOOKUP($B69,Pupils,Pupils!$I$3,FALSE)), \"x\")","v":0.11487298495710911},{"$f":"IFERROR(((VLOOKUP($B69,Pupils,Pupils!$M$3,FALSE)+VLOOKUP($B69,Pupils,Pupils!$P$3,FALSE))/VLOOKUP($B69,Pupils,Pupils!$L$3,FALSE)), \"x\")","v":0.11695645108872278},{"$f":"IFERROR(((VLOOKUP($B69,Pupils,Pupils!$R$3,FALSE)+VLOOKUP($B69,Pupils,Pupils!$U$3,FALSE))/VLOOKUP($B69,Pupils,Pupils!$Q$3,FALSE)), \"x\")","v":0.11476722308954805},{"$f":"IFERROR(((VLOOKUP($B69,Pupils,Pupils!$W$3,FALSE)+VLOOKUP($B69,Pupils,Pupils!$Z$3,FALSE))/VLOOKUP($B69,Pupils,Pupils!$V$3,FALSE)), \"x\")","v":0.1147682639434407},{"$f":"(SUM(INDEX(Pupils!$AB$7:$AB$159,MATCH($B69,Pupils!$A$7:$A$159,0)),INDEX(Pupils!$AC$7:$AC$159,MATCH($B69,Pupils!$A$7:$A$159,0)),INDEX(Pupils!$AD$7:$AD$159,MATCH($B69,Pupils!$A$7:$A$159,0)),INDEX(Pupils!$AE$7:$AE$159,MATCH($B69,Pupils!$A$7:$A$159,0))))/SUM(INDEX(Pupils!$AB$7:$AM$159,MATCH($B69,Pupils!$A$7:$A$159,0),0))","v":0.39248434237995827},{"$f":"SUM(INDEX(Pupils!$AF$7:$AF$159,MATCH($B69,Pupils!$A$7:$A$159,0)))/SUM(INDEX(Pupils!$AB$7:$AM$159,MATCH($B69,Pupils!$A$7:$A$159,0),0))","v":0.18893528183716074},{"$f":"SUM(INDEX(Pupils!$AG$7:$AG$159,MATCH($B69,Pupils!$A$7:$A$159,0)))/SUM(INDEX(Pupils!$AB$7:$AM$159,MATCH($B69,Pupils!$A$7:$A$159,0),0))","v":0.23173277661795408},{"$f":"(SUM(INDEX(Pupils!$AH$7:$AH$159,MATCH($B69,Pupils!$A$7:$A$159,0)),INDEX(Pupils!$AI$7:$AI$159,MATCH($B69,Pupils!$A$7:$A$159,0)),INDEX(Pupils!$AJ$7:$AJ$159,MATCH($B69,Pupils!$A$7:$A$159,0))))/SUM(INDEX(Pupils!$AB$7:$AM$159,MATCH($B69,Pupils!$A$7:$A$159,0),0))","v":2.6096033402922755E-2},{"$f":"SUM(INDEX(Pupils!$AK$7:$AK$159,MATCH($B69,Pupils!$A$7:$A$159,0)))/SUM(INDEX(Pupils!$AB$7:$AM$159,MATCH($B69,Pupils!$A$7:$A$159,0),0))","v":2.0876826722338204E-2},{"$f":"SUM(INDEX(Pupils!$AL$7:$AL$159,MATCH($B69,Pupils!$A$7:$A$159,0)))/SUM(INDEX(Pupils!$AB$7:$AM$159,MATCH($B69,Pupils!$A$7:$A$159,0),0))","v":0.10020876826722339},{"$f":"SUM(INDEX(Pupils!$AM$7:$AM$159,MATCH($B69,Pupils!$A$7:$A$159,0)))/SUM(INDEX(Pupils!$AB$7:$AM$159,MATCH($B69,Pupils!$A$7:$A$159,0),0))","v":3.9665970772442591E-2},{"$f":"(SUM(INDEX(Pupils!$BH$7:$BH$159,MATCH($B69,Pupils!$A$7:$A$159,0)),INDEX(Pupils!$BK$7:$BK$159,MATCH($B69,Pupils!$A$7:$A$159,0)),INDEX(Pupils!$BO$7:$BO$159,MATCH($B69,Pupils!$A$7:$A$159,0))))/SUM(INDEX(Pupils!$BH$7:$BS$159,MATCH($B69,Pupils!$A$7:$A$159,0),0))","v":0.54919908466819223},{"$f":"(SUM(INDEX(Pupils!$BL$7:$BL$159,MATCH($B69,Pupils!$A$7:$A$159,0)),INDEX(Pupils!$BM$7:$BM$159,MATCH($B69,Pupils!$A$7:$A$159,0)),INDEX(Pupils!$BP$7:$BP$159,MATCH($B69,Pupils!$A$7:$A$159,0))))/SUM(INDEX(Pupils!$BH$7:$BS$159,MATCH($B69,Pupils!$A$7:$A$159,0),0))","v":0.41418764302059496},{"$f":"(SUM(INDEX(Pupils!$BI$7:$BI$159,MATCH($B69,Pupils!$A$7:$A$159,0)),INDEX(Pupils!$BJ$7:$BJ$159,MATCH($B69,Pupils!$A$7:$A$159,0))))/SUM(INDEX(Pupils!$BH$7:$BS$159,MATCH($B69,Pupils!$A$7:$A$159,0),0))","v":2.2883295194508008E-2},{"$f":"(SUM(INDEX(Pupils!$BQ$7:$BQ$159,MATCH($B69,Pupils!$A$7:$A$159,0)),INDEX(Pupils!$BR$7:$BR$159,MATCH($B69,Pupils!$A$7:$A$159,0)),INDEX(Pupils!$BN$7:$BN$159,MATCH($B69,Pupils!$A$7:$A$159,0)),INDEX(Pupils!$BS$7:$BS$159,MATCH($B69,Pupils!$A$7:$A$159,0))))/SUM(INDEX(Pupils!$BH$7:$BS$159,MATCH($B69,Pupils!$A$7:$A$159,0),0))","v":1.3729977116704805E-2},{"$f":"IFERROR((VLOOKUP(B69,Funding,Funding!$C$2,FALSE)), \"x\")","v":16778840.060000002},{"$f":"IFERROR((AA69/VLOOKUP(B69,Funding,Funding!$D$2,FALSE)), \"x\")","v":0.21106819955633518},{"$f":"IFERROR((AA69/(VLOOKUP(B69,Pupils,Pupils!$M$3,FALSE)+VLOOKUP(B69,Pupils,Pupils!$P$3,FALSE))), \"x\")","v":5828.0097464397368},{"$f":"IFERROR((VLOOKUP(B69,Funding,Funding!$E$2,FALSE)), \"x\")","v":16364174.867626034},{"$f":"IFERROR((AD69/VLOOKUP(B69,Funding,Funding!$F$2,FALSE)), \"x\")","v":0.1964611901200875},{"$f":"IFERROR((AD69/(VLOOKUP(B69,Pupils,Pupils!$R$3,FALSE)+VLOOKUP(B69,Pupils,Pupils!$U$3,FALSE))), \"x\")","v":5707.769399241728},{"$f":"IFERROR((VLOOKUP(B69,Funding,Funding!$G$2,FALSE)), \"x\")","v":17096012.40112102},{"$f":"IFERROR((AG69/VLOOKUP(B69,Funding,Funding!$H$2,FALSE)), \"x\")","v":0.20664919465315668},{"$f":"IFERROR((AG69/(VLOOKUP(B69,Pupils,Pupils!$W$3,FALSE)+VLOOKUP(B69,Pupils,Pupils!$Z$3,FALSE))), \"x\")","v":5850.7913761536693},{"$f":"IFERROR((VLOOKUP(B69,Funding,Funding!$I$2,FALSE)), \"x\")","v":17340888.647810116},{"$f":"IFERROR((AJ69/VLOOKUP(B69,Funding,Funding!$J$2,FALSE)), \"x\")","v":0.19354102377073279},null,{"$f":"IFERROR((VLOOKUP($B69,Funding,Funding!$EC$2,FALSE)), \"x\")","v":7982881.7299999995},{"$f":"IFERROR((AM69/VLOOKUP($B69,Funding,Funding!$EU$2,FALSE)), \"x\")","v":9.833337863699558E-2},{"$f":"IFERROR((AM69/(VLOOKUP($B69,Pupils,Pupils!$D$3,FALSE)+VLOOKUP($B69,Pupils,Pupils!$E$3,FALSE))), \"x\")","v":3243.7552742787484},{"$f":"IFERROR((VLOOKUP($B69,Funding,Funding!$DA$2,FALSE)), \"x\")","v":8010536.4849800011},{"$f":"IFERROR((AP69/VLOOKUP($B69,Funding,Funding!$DT$2,FALSE)), \"x\")","v":9.0834240235054667E-2},{"$f":"IFERROR((AP69/(VLOOKUP($B69,Pupils,Pupils!$G$3,FALSE)+VLOOKUP($B69,Pupils,Pupils!$H$3,FALSE))), \"x\")","v":3092.8712297220081},{"$f":"IFERROR((VLOOKUP($B69,Funding,Funding!$CE$2,FALSE)), \"x\")","v":9298165.8314999994},{"$f":"IFERROR((AS69/VLOOKUP($B69,Funding,Funding!$CR$2,FALSE)), \"x\")","v":0.10331450283436799},{"$f":"IFERROR((AS69/(VLOOKUP($B69,Pupils,Pupils!$J$3,FALSE)+VLOOKUP($B69,Pupils,Pupils!$K$3,FALSE))), \"x\")","v":3354.3166780303027},{"$f":"IFERROR((VLOOKUP($B69,Funding,Funding!$BM$2,FALSE)), \"x\")","v":10963719.51},{"$f":"IFERROR((AV69/VLOOKUP($B69,Funding,Funding!$BY$2,FALSE)), \"x\")","v":0.1190682843108135},{"$f":"IFERROR((AV69/(VLOOKUP($B69,Pupils,Pupils!$M$3,FALSE)+VLOOKUP($B69,Pupils,Pupils!$P$3,FALSE))), \"x\")","v":3808.1693331017714},{"$f":"IFERROR((VLOOKUP($B69,Funding,Funding!$AQ$2,FALSE)), \"x\")","v":14375950.609999999},{"$f":"IFERROR((AY69/VLOOKUP($B69,Funding,Funding!$BE$2,FALSE)), \"x\")","v":0.16558320154620945},{"$f":"IFERROR((AY69/(VLOOKUP($B69,Pupils,Pupils!$R$3,FALSE)+VLOOKUP($B69,Pupils,Pupils!$U$3,FALSE))), \"x\")","v":5014.2834356470175},{"$f":"IFERROR((VLOOKUP($B69,Funding,Funding!$S$2,FALSE)), \"x\")","v":13963311},{"$f":"IFERROR((BB69/VLOOKUP($B69,Funding,Funding!$AH$2,FALSE)), \"x\")","v":0.15494126172551498},{"$f":"IFERROR((BB69/(VLOOKUP(B69,Pupils,Pupils!$W$3,FALSE)+VLOOKUP(B69,Pupils,Pupils!$Z$3,FALSE))), \"x\")","v":4778.682751540041},{"$f":"IFERROR((VLOOKUP($B69,Funding,Funding!$GX$2,FALSE)), \"x\")","v":12601048.3244},{"$f":"IFERROR((BE69/VLOOKUP($B69,Funding,Funding!$HC$2,FALSE)), \"x\")","v":0.12627192037940388},{"$f":"IFERROR((BE69/(VLOOKUP($B69,Pupils,Pupils!$D$3,FALSE)+VLOOKUP($B69,Pupils,Pupils!$E$3,FALSE))), \"x\")","v":5120.2959465258027},{"$f":"IFERROR((VLOOKUP($B69,Funding,Funding!$GP$2,FALSE)), \"x\")","v":13684090},{"$f":"IFERROR((BH69/VLOOKUP($B69,Funding,Funding!$GU$2,FALSE)), \"x\")","v":0.1426498084696026},{"$f":"IFERROR((BH69/(VLOOKUP($B69,Pupils,Pupils!$G$3,FALSE)+VLOOKUP($B69,Pupils,Pupils!$H$3,FALSE))), \"x\")","v":5283.4324324324325},{"$f":"IFERROR((VLOOKUP($B69,Funding,Funding!$GH$2,FALSE)), \"x\")","v":14506767.950000001},{"$f":"IFERROR((BK69/VLOOKUP($B69,Funding,Funding!$GM$2,FALSE)), \"x\")","v":0.15701622465466852},{"$f":"IFERROR((BK69/(VLOOKUP($B69,Pupils,Pupils!$J$3,FALSE)+VLOOKUP($B69,Pupils,Pupils!$K$3,FALSE))), \"x\")","v":5233.3217712842716},{"$f":"IFERROR((VLOOKUP($B69,Funding,Funding!$FZ$2,FALSE)), \"x\")","v":15943672.67},{"$f":"IFERROR((BN69/VLOOKUP($B69,Funding,Funding!$GE$2,FALSE)), \"x\")","v":0.16430292605806693},{"$f":"IFERROR((BN69/(VLOOKUP($B69,Pupils,Pupils!$M$3,FALSE)+VLOOKUP($B69,Pupils,Pupils!$P$3,FALSE))), \"x\")","v":5537.9203438693994},{"$f":"IFERROR((VLOOKUP($B69,Funding,Funding!$FD$2,FALSE)), \"x\")","v":8166745.0800000001},{"$f":"IFERROR((BQ69/VLOOKUP($B69,Funding,Funding!$FR$2,FALSE)), \"x\")","v":9.952199339944004E-2},{"$f":"IFERROR((BQ69/(VLOOKUP($B69,Pupils,Pupils!$R$3,FALSE)+VLOOKUP($B69,Pupils,Pupils!$U$3,FALSE))), \"x\")","v":2848.5333379839553},{"$f":"(VLOOKUP(B69,Funding,Funding!$HK$2,FALSE)+VLOOKUP(B69,Funding,Funding!$HL$2,FALSE)+VLOOKUP(B69,Funding,Funding!$HM$2,FALSE))/(VLOOKUP(B69,Funding,Funding!$HN$2,FALSE))","v":0.31896551724137934},{"$f":"IFERROR((VLOOKUP(B69,Other_data,Other!$D$3,FALSE)+VLOOKUP(B69,Other_data,Other!$E$3,FALSE)+VLOOKUP(B69,Other_data,Other!$F$3,FALSE)), \"x\")","v":390},{"$f":"(VLOOKUP(B69,Other_data,Other!$AK$3,FALSE)+VLOOKUP(B69,Other_data,Other!$AL$3,FALSE))/VLOOKUP(B69,Other_data,Other!$AJ$3,FALSE)","v":2.5810422650800163E-2},{"$f":"(VLOOKUP(B69,Other_data,Other!$AR$3,FALSE)+VLOOKUP(B69,Other_data,Other!$AS$3,FALSE))/VLOOKUP(B69,Other_data,Other!$AQ$3,FALSE)","v":3.8229376257545272E-2},{"$f":"VLOOKUP(B69,Other_data,Other!$AP$3,FALSE)/VLOOKUP(B69,Other_data,Other!$AJ$3,FALSE)","v":6.5244152646696755E-3},{"$f":"VLOOKUP(B69,Other_data,Other!$AW$3,FALSE)/VLOOKUP(B69,Other_data,Other!$AQ$3,FALSE)","v":1.0449795547478418E-2}]
[64,886,"Kent",{"$f":"IFERROR((VLOOKUP($B70,Pupils,Pupils!$D$3,FALSE)/VLOOKUP($B70,Pupils,Pupils!$C$3,FALSE)), \"x\")","v":2.847348567938511E-2},{"$f":"IFERROR((VLOOKUP($B70,Pupils,Pupils!$G$3,FALSE)/VLOOKUP($B70,Pupils,Pupils!$F$3,FALSE)),\"x\")","v":2.8352088580934125E-2},{"$f":"IFERROR((VLOOKUP($B70,Pupils,Pupils!$J$3,FALSE)/VLOOKUP($B70,Pupils,Pupils!$I$3,FALSE)), \"x\")","v":2.8249121105068185E-2},{"$f":"IFERROR((VLOOKUP($B70,Pupils,Pupils!$M$3,FALSE)/VLOOKUP($B70,Pupils,Pupils!$L$3,FALSE)), \"x\")","v":2.8016845165565744E-2},{"$f":"IFERROR((VLOOKUP($B70,Pupils,Pupils!$R$3,FALSE)/VLOOKUP($B70,Pupils,Pupils!$Q$3,FALSE)), \"x\")","v":2.8352881183069861E-2},{"$f":"IFERROR((VLOOKUP($B70,Pupils,Pupils!$W$3,FALSE)/VLOOKUP($B70,Pupils,Pupils!$V$3,FALSE)), \"x\")","v":2.8317820068479084E-2},{"$f":"IFERROR(((VLOOKUP($B70,Pupils,Pupils!$D$3,FALSE)+VLOOKUP($B70,Pupils,Pupils!$E$3,FALSE))/VLOOKUP($B70,Pupils,Pupils!$C$3,FALSE)), \"x\")","v":0.24404185860462715},{"$f":"IFERROR(((VLOOKUP($B70,Pupils,Pupils!$G$3,FALSE)+VLOOKUP($B70,Pupils,Pupils!$H$3,FALSE))/VLOOKUP($B70,Pupils,Pupils!$F$3,FALSE)), \"x\")","v":0.2501225037180953},{"$f":"IFERROR(((VLOOKUP($B70,Pupils,Pupils!$J$3,FALSE)+VLOOKUP($B70,Pupils,Pupils!$K$3,FALSE))/VLOOKUP($B70,Pupils,Pupils!$I$3,FALSE)), \"x\")","v":0.24693191622704033},{"$f":"IFERROR(((VLOOKUP($B70,Pupils,Pupils!$M$3,FALSE)+VLOOKUP($B70,Pupils,Pupils!$P$3,FALSE))/VLOOKUP($B70,Pupils,Pupils!$L$3,FALSE)), \"x\")","v":0.22982962440411295},{"$f":"IFERROR(((VLOOKUP($B70,Pupils,Pupils!$R$3,FALSE)+VLOOKUP($B70,Pupils,Pupils!$U$3,FALSE))/VLOOKUP($B70,Pupils,Pupils!$Q$3,FALSE)), \"x\")","v":0.2128930817610063},{"$f":"IFERROR(((VLOOKUP($B70,Pupils,Pupils!$W$3,FALSE)+VLOOKUP($B70,Pupils,Pupils!$Z$3,FALSE))/VLOOKUP($B70,Pupils,Pupils!$V$3,FALSE)), \"x\")","v":0.18708955505358049},{"$f":"(SUM(INDEX(Pupils!$AB$7:$AB$159,MATCH($B70,Pupils!$A$7:$A$159,0)),INDEX(Pupils!$AC$7:$AC$159,MATCH($B70,Pupils!$A$7:$A$159,0)),INDEX(Pupils!$AD$7:$AD$159,MATCH($B70,Pupils!$A$7:$A$159,0)),INDEX(Pupils!$AE$7:$AE$159,MATCH($B70,Pupils!$A$7:$A$159,0))))/SUM(INDEX(Pupils!$AB$7:$AM$159,MATCH($B70,Pupils!$A$7:$A$159,0),0))","v":0.24960828690807799},{"$f":"SUM(INDEX(Pupils!$AF$7:$AF$159,MATCH($B70,Pupils!$A$7:$A$159,0)))/SUM(INDEX(Pupils!$AB$7:$AM$159,MATCH($B70,Pupils!$A$7:$A$159,0),0))","v":0.25548398328690808},{"$f":"SUM(INDEX(Pupils!$AG$7:$AG$159,MATCH($B70,Pupils!$A$7:$A$159,0)))/SUM(INDEX(Pupils!$AB$7:$AM$159,MATCH($B70,Pupils!$A$7:$A$159,0),0))","v":0.19920786908077995},{"$f":"(SUM(INDEX(Pupils!$AH$7:$AH$159,MATCH($B70,Pupils!$A$7:$A$159,0)),INDEX(Pupils!$AI$7:$AI$159,MATCH($B70,Pupils!$A$7:$A$159,0)),INDEX(Pupils!$AJ$7:$AJ$159,MATCH($B70,Pupils!$A$7:$A$159,0))))/SUM(INDEX(Pupils!$AB$7:$AM$159,MATCH($B70,Pupils!$A$7:$A$159,0),0))","v":3.2599233983286909E-2},{"$f":"SUM(INDEX(Pupils!$AK$7:$AK$159,MATCH($B70,Pupils!$A$7:$A$159,0)))/SUM(INDEX(Pupils!$AB$7:$AM$159,MATCH($B70,Pupils!$A$7:$A$159,0),0))","v":4.5873955431754876E-2},{"$f":"SUM(INDEX(Pupils!$AL$7:$AL$159,MATCH($B70,Pupils!$A$7:$A$159,0)))/SUM(INDEX(Pupils!$AB$7:$AM$159,MATCH($B70,Pupils!$A$7:$A$159,0),0))","v":0.16356197771587744},{"$f":"SUM(INDEX(Pupils!$AM$7:$AM$159,MATCH($B70,Pupils!$A$7:$A$159,0)))/SUM(INDEX(Pupils!$AB$7:$AM$159,MATCH($B70,Pupils!$A$7:$A$159,0),0))","v":5.3664693593314765E-2},{"$f":"(SUM(INDEX(Pupils!$BH$7:$BH$159,MATCH($B70,Pupils!$A$7:$A$159,0)),INDEX(Pupils!$BK$7:$BK$159,MATCH($B70,Pupils!$A$7:$A$159,0)),INDEX(Pupils!$BO$7:$BO$159,MATCH($B70,Pupils!$A$7:$A$159,0))))/SUM(INDEX(Pupils!$BH$7:$BS$159,MATCH($B70,Pupils!$A$7:$A$159,0),0))","v":0.2814631122132672},{"$f":"(SUM(INDEX(Pupils!$BL$7:$BL$159,MATCH($B70,Pupils!$A$7:$A$159,0)),INDEX(Pupils!$BM$7:$BM$159,MATCH($B70,Pupils!$A$7:$A$159,0)),INDEX(Pupils!$BP$7:$BP$159,MATCH($B70,Pupils!$A$7:$A$159,0))))/SUM(INDEX(Pupils!$BH$7:$BS$159,MATCH($B70,Pupils!$A$7:$A$159,0),0))","v":0.56695598264104152},{"$f":"(SUM(INDEX(Pupils!$BI$7:$BI$159,MATCH($B70,Pupils!$A$7:$A$159,0)),INDEX(Pupils!$BJ$7:$BJ$159,MATCH($B70,Pupils!$A$7:$A$159,0))))/SUM(INDEX(Pupils!$BH$7:$BS$159,MATCH($B70,Pupils!$A$7:$A$159,0),0))","v":0.12554246745195288},{"$f":"(SUM(INDEX(Pupils!$BQ$7:$BQ$159,MATCH($B70,Pupils!$A$7:$A$159,0)),INDEX(Pupils!$BR$7:$BR$159,MATCH($B70,Pupils!$A$7:$A$159,0)),INDEX(Pupils!$BN$7:$BN$159,MATCH($B70,Pupils!$A$7:$A$159,0)),INDEX(Pupils!$BS$7:$BS$159,MATCH($B70,Pupils!$A$7:$A$159,0))))/SUM(INDEX(Pupils!$BH$7:$BS$159,MATCH($B70,Pupils!$A$7:$A$159,0),0))","v":2.6038437693738377E-2},{"$f":"IFERROR((VLOOKUP(B70,Funding,Funding!$C$2,FALSE)), \"x\")","v":132765933.70999998},{"$f":"IFERROR((AA70/VLOOKUP(B70,Funding,Funding!$D$2,FALSE)), \"x\")","v":0.13604644126265622},{"$f":"IFERROR((AA70/(VLOOKUP(B70,Pupils,Pupils!$M$3,FALSE)+VLOOKUP(B70,Pupils,Pupils!$P$3,FALSE))), \"x\")","v":2469.7881856908994},{"$f":"IFERROR((VLOOKUP(B70,Funding,Funding!$E$2,FALSE)), \"x\")","v":140000317.85269588},{"$f":"IFERROR((AD70/VLOOKUP(B70,Funding,Funding!$F$2,FALSE)), \"x\")","v":0.1382195267890613},{"$f":"IFERROR((AD70/(VLOOKUP(B70,Pupils,Pupils!$R$3,FALSE)+VLOOKUP(B70,Pupils,Pupils!$U$3,FALSE))), \"x\")","v":2794.529080057006},{"$f":"IFERROR((VLOOKUP(B70,Funding,Funding!$G$2,FALSE)), \"x\")","v":147434209.26465324},{"$f":"IFERROR((AG70/VLOOKUP(B70,Funding,Funding!$H$2,FALSE)), \"x\")","v":0.14199419081881165},{"$f":"IFERROR((AG70/(VLOOKUP(B70,Pupils,Pupils!$W$3,FALSE)+VLOOKUP(B70,Pupils,Pupils!$Z$3,FALSE))), \"x\")","v":3302.5896972504197},{"$f":"IFERROR((VLOOKUP(B70,Funding,Funding!$I$2,FALSE)), \"x\")","v":148713791.66664755},{"$f":"IFERROR((AJ70/VLOOKUP(B70,Funding,Funding!$J$2,FALSE)), \"x\")","v":0.13985324920971673},null,{"$f":"IFERROR((VLOOKUP($B70,Funding,Funding!$EC$2,FALSE)), \"x\")","v":83645547.480000004},{"$f":"IFERROR((AM70/VLOOKUP($B70,Funding,Funding!$EU$2,FALSE)), \"x\")","v":8.3246897401623832E-2},{"$f":"IFERROR((AM70/(VLOOKUP($B70,Pupils,Pupils!$D$3,FALSE)+VLOOKUP($B70,Pupils,Pupils!$E$3,FALSE))), \"x\")","v":1474.2161032094327},{"$f":"IFERROR((VLOOKUP($B70,Funding,Funding!$DA$2,FALSE)), \"x\")","v":90219557.997439995},{"$f":"IFERROR((AP70/VLOOKUP($B70,Funding,Funding!$DT$2,FALSE)), \"x\")","v":8.523047492108668E-2},{"$f":"IFERROR((AP70/(VLOOKUP($B70,Pupils,Pupils!$G$3,FALSE)+VLOOKUP($B70,Pupils,Pupils!$H$3,FALSE))), \"x\")","v":1550.4306237745316},{"$f":"IFERROR((VLOOKUP($B70,Funding,Funding!$CE$2,FALSE)), \"x\")","v":97666756},{"$f":"IFERROR((AS70/VLOOKUP($B70,Funding,Funding!$CR$2,FALSE)), \"x\")","v":0.10499543020350144},{"$f":"IFERROR((AS70/(VLOOKUP($B70,Pupils,Pupils!$J$3,FALSE)+VLOOKUP($B70,Pupils,Pupils!$K$3,FALSE))), \"x\")","v":1697.7845843618538},{"$f":"IFERROR((VLOOKUP($B70,Funding,Funding!$BM$2,FALSE)), \"x\")","v":98533042.480000004},{"$f":"IFERROR((AV70/VLOOKUP($B70,Funding,Funding!$BY$2,FALSE)), \"x\")","v":0.11951239564333103},{"$f":"IFERROR((AV70/(VLOOKUP($B70,Pupils,Pupils!$M$3,FALSE)+VLOOKUP($B70,Pupils,Pupils!$P$3,FALSE))), \"x\")","v":1832.9682729369745},{"$f":"IFERROR((VLOOKUP($B70,Funding,Funding!$AQ$2,FALSE)), \"x\")","v":128125320},{"$f":"IFERROR((AY70/VLOOKUP($B70,Funding,Funding!$BE$2,FALSE)), \"x\")","v":0.12260604953742071},{"$f":"IFERROR((AY70/(VLOOKUP($B70,Pupils,Pupils!$R$3,FALSE)+VLOOKUP($B70,Pupils,Pupils!$U$3,FALSE))), \"x\")","v":2557.4937123238451},{"$f":"IFERROR((VLOOKUP($B70,Funding,Funding!$S$2,FALSE)), \"x\")","v":144583178},{"$f":"IFERROR((BB70/VLOOKUP($B70,Funding,Funding!$AH$2,FALSE)), \"x\")","v":0.13476804135874471},{"$f":"IFERROR((BB70/(VLOOKUP(B70,Pupils,Pupils!$W$3,FALSE)+VLOOKUP(B70,Pupils,Pupils!$Z$3,FALSE))), \"x\")","v":3238.7253707271179},{"$f":"IFERROR((VLOOKUP($B70,Funding,Funding!$GX$2,FALSE)), \"x\")","v":146842554.21395999},{"$f":"IFERROR((BE70/VLOOKUP($B70,Funding,Funding!$HC$2,FALSE)), \"x\")","v":0.13139337924702038},{"$f":"IFERROR((BE70/(VLOOKUP($B70,Pupils,Pupils!$D$3,FALSE)+VLOOKUP($B70,Pupils,Pupils!$E$3,FALSE))), \"x\")","v":2588.035640634484},{"$f":"IFERROR((VLOOKUP($B70,Funding,Funding!$GP$2,FALSE)), \"x\")","v":144728488.36000001},{"$f":"IFERROR((BH70/VLOOKUP($B70,Funding,Funding!$GU$2,FALSE)), \"x\")","v":0.13164245800012778},{"$f":"IFERROR((BH70/(VLOOKUP($B70,Pupils,Pupils!$G$3,FALSE)+VLOOKUP($B70,Pupils,Pupils!$H$3,FALSE))), \"x\")","v":2487.1711352466064},{"$f":"IFERROR((VLOOKUP($B70,Funding,Funding!$GH$2,FALSE)), \"x\")","v":163967520.03},{"$f":"IFERROR((BK70/VLOOKUP($B70,Funding,Funding!$GM$2,FALSE)), \"x\")","v":0.17717449275673022},{"$f":"IFERROR((BK70/(VLOOKUP($B70,Pupils,Pupils!$J$3,FALSE)+VLOOKUP($B70,Pupils,Pupils!$K$3,FALSE))), \"x\")","v":2850.3202035601294},{"$f":"IFERROR((VLOOKUP($B70,Funding,Funding!$FZ$2,FALSE)), \"x\")","v":159139034.70000002},{"$f":"IFERROR((BN70/VLOOKUP($B70,Funding,Funding!$GE$2,FALSE)), \"x\")","v":0.18643095850723257},{"$f":"IFERROR((BN70/(VLOOKUP($B70,Pupils,Pupils!$M$3,FALSE)+VLOOKUP($B70,Pupils,Pupils!$P$3,FALSE))), \"x\")","v":2960.3957641937645},{"$f":"IFERROR((VLOOKUP($B70,Funding,Funding!$FD$2,FALSE)), \"x\")","v":147030947},{"$f":"IFERROR((BQ70/VLOOKUP($B70,Funding,Funding!$FR$2,FALSE)), \"x\")","v":0.19057923807170604},{"$f":"IFERROR((BQ70/(VLOOKUP($B70,Pupils,Pupils!$R$3,FALSE)+VLOOKUP($B70,Pupils,Pupils!$U$3,FALSE))), \"x\")","v":2934.8666014611363},{"$f":"(VLOOKUP(B70,Funding,Funding!$HK$2,FALSE)+VLOOKUP(B70,Funding,Funding!$HL$2,FALSE)+VLOOKUP(B70,Funding,Funding!$HM$2,FALSE))/(VLOOKUP(B70,Funding,Funding!$HN$2,FALSE))","v":0.20319970577418167},{"$f":"IFERROR((VLOOKUP(B70,Other_data,Other!$D$3,FALSE)+VLOOKUP(B70,Other_data,Other!$E$3,FALSE)+VLOOKUP(B70,Other_data,Other!$F$3,FALSE)), \"x\")","v":10710},{"$f":"(VLOOKUP(B70,Other_data,Other!$AK$3,FALSE)+VLOOKUP(B70,Other_data,Other!$AL$3,FALSE))/VLOOKUP(B70,Other_data,Other!$AJ$3,FALSE)","v":4.2227994925391164E-2},{"$f":"(VLOOKUP(B70,Other_data,Other!$AR$3,FALSE)+VLOOKUP(B70,Other_data,Other!$AS$3,FALSE))/VLOOKUP(B70,Other_data,Other!$AQ$3,FALSE)","v":5.777224674125013E-2},{"$f":"VLOOKUP(B70,Other_data,Other!$AP$3,FALSE)/VLOOKUP(B70,Other_data,Other!$AJ$3,FALSE)","v":6.094505705381289E-3},{"$f":"VLOOKUP(B70,Other_data,Other!$AW$3,FALSE)/VLOOKUP(B70,Other_data,Other!$AQ$3,FALSE)","v":1.1091296315303294E-2}]
[65,810,"Kingston Upon Hull, City of",{"$f":"IFERROR((VLOOKUP($B71,Pupils,Pupils!$D$3,FALSE)/VLOOKUP($B71,Pupils,Pupils!$C$3,FALSE)), \"x\")","v":3.1887242423430426E-2},{"$f":"IFERROR((VLOOKUP($B71,Pupils,Pupils!$G$3,FALSE)/VLOOKUP($B71,Pupils,Pupils!$F$3,FALSE)),\"x\")","v":3.1544025670310546E-2},{"$f":"IFERROR((VLOOKUP($B71,Pupils,Pupils!$J$3,FALSE)/VLOOKUP($B71,Pupils,Pupils!$I$3,FALSE)), \"x\")","v":3.1299330466496106E-2},{"$f":"IFERROR((VLOOKUP($B71,Pupils,Pupils!$M$3,FALSE)/VLOOKUP($B71,Pupils,Pupils!$L$3,FALSE)), \"x\")","v":3.2739227299896756E-2},{"$f":"IFERROR((VLOOKUP($B71,Pupils,Pupils!$R$3,FALSE)/VLOOKUP($B71,Pupils,Pupils!$Q$3,FALSE)), \"x\")","v":3.2550118560034487E-2},{"$f":"IFERROR((VLOOKUP($B71,Pupils,Pupils!$W$3,FALSE)/VLOOKUP($B71,Pupils,Pupils!$V$3,FALSE)), \"x\")","v":3.1878886469183743E-2},{"$f":"IFERROR(((VLOOKUP($B71,Pupils,Pupils!$D$3,FALSE)+VLOOKUP($B71,Pupils,Pupils!$E$3,FALSE))/VLOOKUP($B71,Pupils,Pupils!$C$3,FALSE)), \"x\")","v":0.23175862161365524},{"$f":"IFERROR(((VLOOKUP($B71,Pupils,Pupils!$G$3,FALSE)+VLOOKUP($B71,Pupils,Pupils!$H$3,FALSE))/VLOOKUP($B71,Pupils,Pupils!$F$3,FALSE)), \"x\")","v":0.23655299940175123},{"$f":"IFERROR(((VLOOKUP($B71,Pupils,Pupils!$J$3,FALSE)+VLOOKUP($B71,Pupils,Pupils!$K$3,FALSE))/VLOOKUP($B71,Pupils,Pupils!$I$3,FALSE)), \"x\")","v":0.22636220129552012},{"$f":"IFERROR(((VLOOKUP($B71,Pupils,Pupils!$M$3,FALSE)+VLOOKUP($B71,Pupils,Pupils!$P$3,FALSE))/VLOOKUP($B71,Pupils,Pupils!$L$3,FALSE)), \"x\")","v":0.21673096777699288},{"$f":"IFERROR(((VLOOKUP($B71,Pupils,Pupils!$R$3,FALSE)+VLOOKUP($B71,Pupils,Pupils!$U$3,FALSE))/VLOOKUP($B71,Pupils,Pupils!$Q$3,FALSE)), \"x\")","v":0.20960875188618236},{"$f":"IFERROR(((VLOOKUP($B71,Pupils,Pupils!$W$3,FALSE)+VLOOKUP($B71,Pupils,Pupils!$Z$3,FALSE))/VLOOKUP($B71,Pupils,Pupils!$V$3,FALSE)), \"x\")","v":0.19321491354655893},{"$f":"(SUM(INDEX(Pupils!$AB$7:$AB$159,MATCH($B71,Pupils!$A$7:$A$159,0)),INDEX(Pupils!$AC$7:$AC$159,MATCH($B71,Pupils!$A$7:$A$159,0)),INDEX(Pupils!$AD$7:$AD$159,MATCH($B71,Pupils!$A$7:$A$159,0)),INDEX(Pupils!$AE$7:$AE$159,MATCH($B71,Pupils!$A$7:$A$159,0))))/SUM(INDEX(Pupils!$AB$7:$AM$159,MATCH($B71,Pupils!$A$7:$A$159,0),0))","v":0.43467806572268236},{"$f":"SUM(INDEX(Pupils!$AF$7:$AF$159,MATCH($B71,Pupils!$A$7:$A$159,0)))/SUM(INDEX(Pupils!$AB$7:$AM$159,MATCH($B71,Pupils!$A$7:$A$159,0),0))","v":0.13384985305904354},{"$f":"SUM(INDEX(Pupils!$AG$7:$AG$159,MATCH($B71,Pupils!$A$7:$A$159,0)))/SUM(INDEX(Pupils!$AB$7:$AM$159,MATCH($B71,Pupils!$A$7:$A$159,0),0))","v":0.23029655356665776},{"$f":"(SUM(INDEX(Pupils!$AH$7:$AH$159,MATCH($B71,Pupils!$A$7:$A$159,0)),INDEX(Pupils!$AI$7:$AI$159,MATCH($B71,Pupils!$A$7:$A$159,0)),INDEX(Pupils!$AJ$7:$AJ$159,MATCH($B71,Pupils!$A$7:$A$159,0))))/SUM(INDEX(Pupils!$AB$7:$AM$159,MATCH($B71,Pupils!$A$7:$A$159,0),0))","v":4.4082286935613148E-2},{"$f":"SUM(INDEX(Pupils!$AK$7:$AK$159,MATCH($B71,Pupils!$A$7:$A$159,0)))/SUM(INDEX(Pupils!$AB$7:$AM$159,MATCH($B71,Pupils!$A$7:$A$159,0),0))","v":5.9043547956184876E-2},{"$f":"SUM(INDEX(Pupils!$AL$7:$AL$159,MATCH($B71,Pupils!$A$7:$A$159,0)))/SUM(INDEX(Pupils!$AB$7:$AM$159,MATCH($B71,Pupils!$A$7:$A$159,0),0))","v":7.9348116484103656E-2},{"$f":"SUM(INDEX(Pupils!$AM$7:$AM$159,MATCH($B71,Pupils!$A$7:$A$159,0)))/SUM(INDEX(Pupils!$AB$7:$AM$159,MATCH($B71,Pupils!$A$7:$A$159,0),0))","v":1.8701576275714667E-2},{"$f":"(SUM(INDEX(Pupils!$BH$7:$BH$159,MATCH($B71,Pupils!$A$7:$A$159,0)),INDEX(Pupils!$BK$7:$BK$159,MATCH($B71,Pupils!$A$7:$A$159,0)),INDEX(Pupils!$BO$7:$BO$159,MATCH($B71,Pupils!$A$7:$A$159,0))))/SUM(INDEX(Pupils!$BH$7:$BS$159,MATCH($B71,Pupils!$A$7:$A$159,0),0))","v":0.52739165985282088},{"$f":"(SUM(INDEX(Pupils!$BL$7:$BL$159,MATCH($B71,Pupils!$A$7:$A$159,0)),INDEX(Pupils!$BM$7:$BM$159,MATCH($B71,Pupils!$A$7:$A$159,0)),INDEX(Pupils!$BP$7:$BP$159,MATCH($B71,Pupils!$A$7:$A$159,0))))/SUM(INDEX(Pupils!$BH$7:$BS$159,MATCH($B71,Pupils!$A$7:$A$159,0),0))","v":0.44807849550286183},{"$f":"(SUM(INDEX(Pupils!$BI$7:$BI$159,MATCH($B71,Pupils!$A$7:$A$159,0)),INDEX(Pupils!$BJ$7:$BJ$159,MATCH($B71,Pupils!$A$7:$A$159,0))))/SUM(INDEX(Pupils!$BH$7:$BS$159,MATCH($B71,Pupils!$A$7:$A$159,0),0))","v":1.7170891251022075E-2},{"$f":"(SUM(INDEX(Pupils!$BQ$7:$BQ$159,MATCH($B71,Pupils!$A$7:$A$159,0)),INDEX(Pupils!$BR$7:$BR$159,MATCH($B71,Pupils!$A$7:$A$159,0)),INDEX(Pupils!$BN$7:$BN$159,MATCH($B71,Pupils!$A$7:$A$159,0)),INDEX(Pupils!$BS$7:$BS$159,MATCH($B71,Pupils!$A$7:$A$159,0))))/SUM(INDEX(Pupils!$BH$7:$BS$159,MATCH($B71,Pupils!$A$7:$A$159,0),0))","v":7.3589533932951756E-3},{"$f":"IFERROR((VLOOKUP(B71,Funding,Funding!$C$2,FALSE)), \"x\")","v":25835282},{"$f":"IFERROR((AA71/VLOOKUP(B71,Funding,Funding!$D$2,FALSE)), \"x\")","v":0.14030306378519275},{"$f":"IFERROR((AA71/(VLOOKUP(B71,Pupils,Pupils!$M$3,FALSE)+VLOOKUP(B71,Pupils,Pupils!$P$3,FALSE))), \"x\")","v":3238.7215745267645},{"$f":"IFERROR((VLOOKUP(B71,Funding,Funding!$E$2,FALSE)), \"x\")","v":25823217.699111354},{"$f":"IFERROR((AD71/VLOOKUP(B71,Funding,Funding!$F$2,FALSE)), \"x\")","v":0.13533755640232537},{"$f":"IFERROR((AD71/(VLOOKUP(B71,Pupils,Pupils!$R$3,FALSE)+VLOOKUP(B71,Pupils,Pupils!$U$3,FALSE))), \"x\")","v":3319.6063374612872},{"$f":"IFERROR((VLOOKUP(B71,Funding,Funding!$G$2,FALSE)), \"x\")","v":25737585.737216104},{"$f":"IFERROR((AG71/VLOOKUP(B71,Funding,Funding!$H$2,FALSE)), \"x\")","v":0.1319556462217642},{"$f":"IFERROR((AG71/(VLOOKUP(B71,Pupils,Pupils!$W$3,FALSE)+VLOOKUP(B71,Pupils,Pupils!$Z$3,FALSE))), \"x\")","v":3495.055097394908},{"$f":"IFERROR((VLOOKUP(B71,Funding,Funding!$I$2,FALSE)), \"x\")","v":25832036.903910667},{"$f":"IFERROR((AJ71/VLOOKUP(B71,Funding,Funding!$J$2,FALSE)), \"x\")","v":0.13354306801169724},null,{"$f":"IFERROR((VLOOKUP($B71,Funding,Funding!$EC$2,FALSE)), \"x\")","v":20340621.790000003},{"$f":"IFERROR((AM71/VLOOKUP($B71,Funding,Funding!$EU$2,FALSE)), \"x\")","v":0.11404552931995866},{"$f":"IFERROR((AM71/(VLOOKUP($B71,Pupils,Pupils!$D$3,FALSE)+VLOOKUP($B71,Pupils,Pupils!$E$3,FALSE))), \"x\")","v":2351.7888530465952},{"$f":"IFERROR((VLOOKUP($B71,Funding,Funding!$DA$2,FALSE)), \"x\")","v":19900495.370000001},{"$f":"IFERROR((AP71/VLOOKUP($B71,Funding,Funding!$DT$2,FALSE)), \"x\")","v":0.10686923435731503},{"$f":"IFERROR((AP71/(VLOOKUP($B71,Pupils,Pupils!$G$3,FALSE)+VLOOKUP($B71,Pupils,Pupils!$H$3,FALSE))), \"x\")","v":2287.6762122083001},{"$f":"IFERROR((VLOOKUP($B71,Funding,Funding!$CE$2,FALSE)), \"x\")","v":20190587},{"$f":"IFERROR((AS71/VLOOKUP($B71,Funding,Funding!$CR$2,FALSE)), \"x\")","v":0.11017033437274031},{"$f":"IFERROR((AS71/(VLOOKUP($B71,Pupils,Pupils!$J$3,FALSE)+VLOOKUP($B71,Pupils,Pupils!$K$3,FALSE))), \"x\")","v":2427.6285920403993},{"$f":"IFERROR((VLOOKUP($B71,Funding,Funding!$BM$2,FALSE)), \"x\")","v":21917315.48},{"$f":"IFERROR((AV71/VLOOKUP($B71,Funding,Funding!$BY$2,FALSE)), \"x\")","v":0.11642761745670638},{"$f":"IFERROR((AV71/(VLOOKUP($B71,Pupils,Pupils!$M$3,FALSE)+VLOOKUP($B71,Pupils,Pupils!$P$3,FALSE))), \"x\")","v":2747.5636805816725},{"$f":"IFERROR((VLOOKUP($B71,Funding,Funding!$AQ$2,FALSE)), \"x\")","v":23263678},{"$f":"IFERROR((AY71/VLOOKUP($B71,Funding,Funding!$BE$2,FALSE)), \"x\")","v":0.12081913913416464},{"$f":"IFERROR((AY71/(VLOOKUP($B71,Pupils,Pupils!$R$3,FALSE)+VLOOKUP($B71,Pupils,Pupils!$U$3,FALSE))), \"x\")","v":2990.5743668852037},{"$f":"IFERROR((VLOOKUP($B71,Funding,Funding!$S$2,FALSE)), \"x\")","v":21926563},{"$f":"IFERROR((BB71/VLOOKUP($B71,Funding,Funding!$AH$2,FALSE)), \"x\")","v":0.11367629502352361},{"$f":"IFERROR((BB71/(VLOOKUP(B71,Pupils,Pupils!$W$3,FALSE)+VLOOKUP(B71,Pupils,Pupils!$Z$3,FALSE))), \"x\")","v":2977.5343563280826},{"$f":"IFERROR((VLOOKUP($B71,Funding,Funding!$GX$2,FALSE)), \"x\")","v":26845347.329699997},{"$f":"IFERROR((BE71/VLOOKUP($B71,Funding,Funding!$HC$2,FALSE)), \"x\")","v":0.14187959828621025},{"$f":"IFERROR((BE71/(VLOOKUP($B71,Pupils,Pupils!$D$3,FALSE)+VLOOKUP($B71,Pupils,Pupils!$E$3,FALSE))), \"x\")","v":3103.8671903919526},{"$f":"IFERROR((VLOOKUP($B71,Funding,Funding!$GP$2,FALSE)), \"x\")","v":28222033},{"$f":"IFERROR((BH71/VLOOKUP($B71,Funding,Funding!$GU$2,FALSE)), \"x\")","v":0.14737751004280314},{"$f":"IFERROR((BH71/(VLOOKUP($B71,Pupils,Pupils!$G$3,FALSE)+VLOOKUP($B71,Pupils,Pupils!$H$3,FALSE))), \"x\")","v":3244.2847453730315},{"$f":"IFERROR((VLOOKUP($B71,Funding,Funding!$GH$2,FALSE)), \"x\")","v":29092385},{"$f":"IFERROR((BK71/VLOOKUP($B71,Funding,Funding!$GM$2,FALSE)), \"x\")","v":0.15146244998953567},{"$f":"IFERROR((BK71/(VLOOKUP($B71,Pupils,Pupils!$J$3,FALSE)+VLOOKUP($B71,Pupils,Pupils!$K$3,FALSE))), \"x\")","v":3497.9421666466274},{"$f":"IFERROR((VLOOKUP($B71,Funding,Funding!$FZ$2,FALSE)), \"x\")","v":29392697},{"$f":"IFERROR((BN71/VLOOKUP($B71,Funding,Funding!$GE$2,FALSE)), \"x\")","v":0.15301453267811224},{"$f":"IFERROR((BN71/(VLOOKUP($B71,Pupils,Pupils!$M$3,FALSE)+VLOOKUP($B71,Pupils,Pupils!$P$3,FALSE))), \"x\")","v":3684.6805816723081},{"$f":"IFERROR((VLOOKUP($B71,Funding,Funding!$FD$2,FALSE)), \"x\")","v":22108463},{"$f":"IFERROR((BQ71/VLOOKUP($B71,Funding,Funding!$FR$2,FALSE)), \"x\")","v":0.16397411864996767},{"$f":"IFERROR((BQ71/(VLOOKUP($B71,Pupils,Pupils!$R$3,FALSE)+VLOOKUP($B71,Pupils,Pupils!$U$3,FALSE))), \"x\")","v":2842.070060419077},{"$f":"(VLOOKUP(B71,Funding,Funding!$HK$2,FALSE)+VLOOKUP(B71,Funding,Funding!$HL$2,FALSE)+VLOOKUP(B71,Funding,Funding!$HM$2,FALSE))/(VLOOKUP(B71,Funding,Funding!$HN$2,FALSE))","v":0.10080645161290322},{"$f":"IFERROR((VLOOKUP(B71,Other_data,Other!$D$3,FALSE)+VLOOKUP(B71,Other_data,Other!$E$3,FALSE)+VLOOKUP(B71,Other_data,Other!$F$3,FALSE)), \"x\")","v":1560},{"$f":"(VLOOKUP(B71,Other_data,Other!$AK$3,FALSE)+VLOOKUP(B71,Other_data,Other!$AL$3,FALSE))/VLOOKUP(B71,Other_data,Other!$AJ$3,FALSE)","v":4.0610712290791731E-2},{"$f":"(VLOOKUP(B71,Other_data,Other!$AR$3,FALSE)+VLOOKUP(B71,Other_data,Other!$AS$3,FALSE))/VLOOKUP(B71,Other_data,Other!$AQ$3,FALSE)","v":5.0743889479277361E-2},{"$f":"VLOOKUP(B71,Other_data,Other!$AP$3,FALSE)/VLOOKUP(B71,Other_data,Other!$AJ$3,FALSE)","v":7.3235823489252536E-3},{"$f":"VLOOKUP(B71,Other_data,Other!$AW$3,FALSE)/VLOOKUP(B71,Other_data,Other!$AQ$3,FALSE)","v":1.240701381509033E-2}]
[66,314,"Kingston upon Thames",{"$f":"IFERROR((VLOOKUP($B72,Pupils,Pupils!$D$3,FALSE)/VLOOKUP($B72,Pupils,Pupils!$C$3,FALSE)), \"x\")","v":2.3030915022526022E-2},{"$f":"IFERROR((VLOOKUP($B72,Pupils,Pupils!$G$3,FALSE)/VLOOKUP($B72,Pupils,Pupils!$F$3,FALSE)),\"x\")","v":2.3730747290359382E-2},{"$f":"IFERROR((VLOOKUP($B72,Pupils,Pupils!$J$3,FALSE)/VLOOKUP($B72,Pupils,Pupils!$I$3,FALSE)), \"x\")","v":2.4094576843685496E-2},{"$f":"IFERROR((VLOOKUP($B72,Pupils,Pupils!$M$3,FALSE)/VLOOKUP($B72,Pupils,Pupils!$L$3,FALSE)), \"x\")","v":2.4845867021080222E-2},{"$f":"IFERROR((VLOOKUP($B72,Pupils,Pupils!$R$3,FALSE)/VLOOKUP($B72,Pupils,Pupils!$Q$3,FALSE)), \"x\")","v":2.4953755757861521E-2},{"$f":"IFERROR((VLOOKUP($B72,Pupils,Pupils!$W$3,FALSE)/VLOOKUP($B72,Pupils,Pupils!$V$3,FALSE)), \"x\")","v":2.4537910894262615E-2},{"$f":"IFERROR(((VLOOKUP($B72,Pupils,Pupils!$D$3,FALSE)+VLOOKUP($B72,Pupils,Pupils!$E$3,FALSE))/VLOOKUP($B72,Pupils,Pupils!$C$3,FALSE)), \"x\")","v":0.14579773186266895},{"$f":"IFERROR(((VLOOKUP($B72,Pupils,Pupils!$G$3,FALSE)+VLOOKUP($B72,Pupils,Pupils!$H$3,FALSE))/VLOOKUP($B72,Pupils,Pupils!$F$3,FALSE)), \"x\")","v":0.14820308043354249},{"$f":"IFERROR(((VLOOKUP($B72,Pupils,Pupils!$J$3,FALSE)+VLOOKUP($B72,Pupils,Pupils!$K$3,FALSE))/VLOOKUP($B72,Pupils,Pupils!$I$3,FALSE)), \"x\")","v":0.14498029649089886},{"$f":"IFERROR(((VLOOKUP($B72,Pupils,Pupils!$M$3,FALSE)+VLOOKUP($B72,Pupils,Pupils!$P$3,FALSE))/VLOOKUP($B72,Pupils,Pupils!$L$3,FALSE)), \"x\")","v":0.13803669657031048},{"$f":"IFERROR(((VLOOKUP($B72,Pupils,Pupils!$R$3,FALSE)+VLOOKUP($B72,Pupils,Pupils!$U$3,FALSE))/VLOOKUP($B72,Pupils,Pupils!$Q$3,FALSE)), \"x\")","v":0.12937506800623844},{"$f":"IFERROR(((VLOOKUP($B72,Pupils,Pupils!$W$3,FALSE)+VLOOKUP($B72,Pupils,Pupils!$Z$3,FALSE))/VLOOKUP($B72,Pupils,Pupils!$V$3,FALSE)), \"x\")","v":0.12895758395954271},{"$f":"(SUM(INDEX(Pupils!$AB$7:$AB$159,MATCH($B72,Pupils!$A$7:$A$159,0)),INDEX(Pupils!$AC$7:$AC$159,MATCH($B72,Pupils!$A$7:$A$159,0)),INDEX(Pupils!$AD$7:$AD$159,MATCH($B72,Pupils!$A$7:$A$159,0)),INDEX(Pupils!$AE$7:$AE$159,MATCH($B72,Pupils!$A$7:$A$159,0))))/SUM(INDEX(Pupils!$AB$7:$AM$159,MATCH($B72,Pupils!$A$7:$A$159,0),0))","v":0.28240740740740738},{"$f":"SUM(INDEX(Pupils!$AF$7:$AF$159,MATCH($B72,Pupils!$A$7:$A$159,0)))/SUM(INDEX(Pupils!$AB$7:$AM$159,MATCH($B72,Pupils!$A$7:$A$159,0),0))","v":0.16261574074074073},{"$f":"SUM(INDEX(Pupils!$AG$7:$AG$159,MATCH($B72,Pupils!$A$7:$A$159,0)))/SUM(INDEX(Pupils!$AB$7:$AM$159,MATCH($B72,Pupils!$A$7:$A$159,0),0))","v":0.29456018518518517},{"$f":"(SUM(INDEX(Pupils!$AH$7:$AH$159,MATCH($B72,Pupils!$A$7:$A$159,0)),INDEX(Pupils!$AI$7:$AI$159,MATCH($B72,Pupils!$A$7:$A$159,0)),INDEX(Pupils!$AJ$7:$AJ$159,MATCH($B72,Pupils!$A$7:$A$159,0))))/SUM(INDEX(Pupils!$AB$7:$AM$159,MATCH($B72,Pupils!$A$7:$A$159,0),0))","v":2.8935185185185185E-2},{"$f":"SUM(INDEX(Pupils!$AK$7:$AK$159,MATCH($B72,Pupils!$A$7:$A$159,0)))/SUM(INDEX(Pupils!$AB$7:$AM$159,MATCH($B72,Pupils!$A$7:$A$159,0),0))","v":3.4722222222222224E-2},{"$f":"SUM(INDEX(Pupils!$AL$7:$AL$159,MATCH($B72,Pupils!$A$7:$A$159,0)))/SUM(INDEX(Pupils!$AB$7:$AM$159,MATCH($B72,Pupils!$A$7:$A$159,0),0))","v":0.16493055555555555},{"$f":"SUM(INDEX(Pupils!$AM$7:$AM$159,MATCH($B72,Pupils!$A$7:$A$159,0)))/SUM(INDEX(Pupils!$AB$7:$AM$159,MATCH($B72,Pupils!$A$7:$A$159,0),0))","v":3.1828703703703706E-2},{"$f":"(SUM(INDEX(Pupils!$BH$7:$BH$159,MATCH($B72,Pupils!$A$7:$A$159,0)),INDEX(Pupils!$BK$7:$BK$159,MATCH($B72,Pupils!$A$7:$A$159,0)),INDEX(Pupils!$BO$7:$BO$159,MATCH($B72,Pupils!$A$7:$A$159,0))))/SUM(INDEX(Pupils!$BH$7:$BS$159,MATCH($B72,Pupils!$A$7:$A$159,0),0))","v":0.45064935064935063},{"$f":"(SUM(INDEX(Pupils!$BL$7:$BL$159,MATCH($B72,Pupils!$A$7:$A$159,0)),INDEX(Pupils!$BM$7:$BM$159,MATCH($B72,Pupils!$A$7:$A$159,0)),INDEX(Pupils!$BP$7:$BP$159,MATCH($B72,Pupils!$A$7:$A$159,0))))/SUM(INDEX(Pupils!$BH$7:$BS$159,MATCH($B72,Pupils!$A$7:$A$159,0),0))","v":0.44545454545454544},{"$f":"(SUM(INDEX(Pupils!$BI$7:$BI$159,MATCH($B72,Pupils!$A$7:$A$159,0)),INDEX(Pupils!$BJ$7:$BJ$159,MATCH($B72,Pupils!$A$7:$A$159,0))))/SUM(INDEX(Pupils!$BH$7:$BS$159,MATCH($B72,Pupils!$A$7:$A$159,0),0))","v":8.0519480519480519E-2},{"$f":"(SUM(INDEX(Pupils!$BQ$7:$BQ$159,MATCH($B72,Pupils!$A$7:$A$159,0)),INDEX(Pupils!$BR$7:$BR$159,MATCH($B72,Pupils!$A$7:$A$159,0)),INDEX(Pupils!$BN$7:$BN$159,MATCH($B72,Pupils!$A$7:$A$159,0)),INDEX(Pupils!$BS$7:$BS$159,MATCH($B72,Pupils!$A$7:$A$159,0))))/SUM(INDEX(Pupils!$BH$7:$BS$159,MATCH($B72,Pupils!$A$7:$A$159,0),0))","v":2.3376623376623377E-2},{"$f":"IFERROR((VLOOKUP(B72,Funding,Funding!$C$2,FALSE)), \"x\")","v":17253204.239999998},{"$f":"IFERROR((AA72/VLOOKUP(B72,Funding,Funding!$D$2,FALSE)), \"x\")","v":0.15693118157340735},{"$f":"IFERROR((AA72/(VLOOKUP(B72,Pupils,Pupils!$M$3,FALSE)+VLOOKUP(B72,Pupils,Pupils!$P$3,FALSE))), \"x\")","v":4614.3900080235353},{"$f":"IFERROR((VLOOKUP(B72,Funding,Funding!$E$2,FALSE)), \"x\")","v":17728659.914620139},{"$f":"IFERROR((AD72/VLOOKUP(B72,Funding,Funding!$F$2,FALSE)), \"x\")","v":0.15365151040099762},{"$f":"IFERROR((AD72/(VLOOKUP(B72,Pupils,Pupils!$R$3,FALSE)+VLOOKUP(B72,Pupils,Pupils!$U$3,FALSE))), \"x\")","v":4970.1878089767697},{"$f":"IFERROR((VLOOKUP(B72,Funding,Funding!$G$2,FALSE)), \"x\")","v":18371323.024108097},{"$f":"IFERROR((AG72/VLOOKUP(B72,Funding,Funding!$H$2,FALSE)), \"x\")","v":0.15532990817531236},{"$f":"IFERROR((AG72/(VLOOKUP(B72,Pupils,Pupils!$W$3,FALSE)+VLOOKUP(B72,Pupils,Pupils!$Z$3,FALSE))), \"x\")","v":5073.5495785993089},{"$f":"IFERROR((VLOOKUP(B72,Funding,Funding!$I$2,FALSE)), \"x\")","v":18603905.120781504},{"$f":"IFERROR((AJ72/VLOOKUP(B72,Funding,Funding!$J$2,FALSE)), \"x\")","v":0.15716341666411685},null,{"$f":"IFERROR((VLOOKUP($B72,Funding,Funding!$EC$2,FALSE)), \"x\")","v":10344215.370000001},{"$f":"IFERROR((AM72/VLOOKUP($B72,Funding,Funding!$EU$2,FALSE)), \"x\")","v":9.1260442609859951E-2},{"$f":"IFERROR((AM72/(VLOOKUP($B72,Pupils,Pupils!$D$3,FALSE)+VLOOKUP($B72,Pupils,Pupils!$E$3,FALSE))), \"x\")","v":2755.5182125732554},{"$f":"IFERROR((VLOOKUP($B72,Funding,Funding!$DA$2,FALSE)), \"x\")","v":11929347.00495},{"$f":"IFERROR((AP72/VLOOKUP($B72,Funding,Funding!$DT$2,FALSE)), \"x\")","v":9.781429309338141E-2},{"$f":"IFERROR((AP72/(VLOOKUP($B72,Pupils,Pupils!$G$3,FALSE)+VLOOKUP($B72,Pupils,Pupils!$H$3,FALSE))), \"x\")","v":3061.1616640877596},{"$f":"IFERROR((VLOOKUP($B72,Funding,Funding!$CE$2,FALSE)), \"x\")","v":12423229},{"$f":"IFERROR((AS72/VLOOKUP($B72,Funding,Funding!$CR$2,FALSE)), \"x\")","v":0.10248168651043074},{"$f":"IFERROR((AS72/(VLOOKUP($B72,Pupils,Pupils!$J$3,FALSE)+VLOOKUP($B72,Pupils,Pupils!$K$3,FALSE))), \"x\")","v":3215.9536629562517},{"$f":"IFERROR((VLOOKUP($B72,Funding,Funding!$BM$2,FALSE)), \"x\")","v":14294995.58},{"$f":"IFERROR((AV72/VLOOKUP($B72,Funding,Funding!$BY$2,FALSE)), \"x\")","v":0.1698212492091235},{"$f":"IFERROR((AV72/(VLOOKUP($B72,Pupils,Pupils!$M$3,FALSE)+VLOOKUP($B72,Pupils,Pupils!$P$3,FALSE))), \"x\")","v":3823.2135811714361},{"$f":"IFERROR((VLOOKUP($B72,Funding,Funding!$AQ$2,FALSE)), \"x\")","v":15744479},{"$f":"IFERROR((AY72/VLOOKUP($B72,Funding,Funding!$BE$2,FALSE)), \"x\")","v":0.1365344099474779},{"$f":"IFERROR((AY72/(VLOOKUP($B72,Pupils,Pupils!$R$3,FALSE)+VLOOKUP($B72,Pupils,Pupils!$U$3,FALSE))), \"x\")","v":4413.9273899635546},{"$f":"IFERROR((VLOOKUP($B72,Funding,Funding!$S$2,FALSE)), \"x\")","v":16457632},{"$f":"IFERROR((BB72/VLOOKUP($B72,Funding,Funding!$AH$2,FALSE)), \"x\")","v":0.13883176204652076},{"$f":"IFERROR((BB72/(VLOOKUP(B72,Pupils,Pupils!$W$3,FALSE)+VLOOKUP(B72,Pupils,Pupils!$Z$3,FALSE))), \"x\")","v":4545.051643192488},{"$f":"IFERROR((VLOOKUP($B72,Funding,Funding!$GX$2,FALSE)), \"x\")","v":18797838},{"$f":"IFERROR((BE72/VLOOKUP($B72,Funding,Funding!$HC$2,FALSE)), \"x\")","v":0.1545145181630142},{"$f":"IFERROR((BE72/(VLOOKUP($B72,Pupils,Pupils!$D$3,FALSE)+VLOOKUP($B72,Pupils,Pupils!$E$3,FALSE))), \"x\")","v":5007.4155567394782},{"$f":"IFERROR((VLOOKUP($B72,Funding,Funding!$GP$2,FALSE)), \"x\")","v":19959984},{"$f":"IFERROR((BH72/VLOOKUP($B72,Funding,Funding!$GU$2,FALSE)), \"x\")","v":0.15628194861478295},{"$f":"IFERROR((BH72/(VLOOKUP($B72,Pupils,Pupils!$G$3,FALSE)+VLOOKUP($B72,Pupils,Pupils!$H$3,FALSE))), \"x\")","v":5121.8845265588916},{"$f":"IFERROR((VLOOKUP($B72,Funding,Funding!$GH$2,FALSE)), \"x\")","v":19059564.859999999},{"$f":"IFERROR((BK72/VLOOKUP($B72,Funding,Funding!$GM$2,FALSE)), \"x\")","v":0.17002387293422822},{"$f":"IFERROR((BK72/(VLOOKUP($B72,Pupils,Pupils!$J$3,FALSE)+VLOOKUP($B72,Pupils,Pupils!$K$3,FALSE))), \"x\")","v":4933.8764845974629},{"$f":"IFERROR((VLOOKUP($B72,Funding,Funding!$FZ$2,FALSE)), \"x\")","v":18530529.870000001},{"$f":"IFERROR((BN72/VLOOKUP($B72,Funding,Funding!$GE$2,FALSE)), \"x\")","v":0.22147388032518198},{"$f":"IFERROR((BN72/(VLOOKUP($B72,Pupils,Pupils!$M$3,FALSE)+VLOOKUP($B72,Pupils,Pupils!$P$3,FALSE))), \"x\")","v":4956.0122679860924},{"$f":"IFERROR((VLOOKUP($B72,Funding,Funding!$FD$2,FALSE)), \"x\")","v":16010198},{"$f":"IFERROR((BQ72/VLOOKUP($B72,Funding,Funding!$FR$2,FALSE)), \"x\")","v":0.21002663133610272},{"$f":"IFERROR((BQ72/(VLOOKUP($B72,Pupils,Pupils!$R$3,FALSE)+VLOOKUP($B72,Pupils,Pupils!$U$3,FALSE))), \"x\")","v":4488.4210821418555},{"$f":"(VLOOKUP(B72,Funding,Funding!$HK$2,FALSE)+VLOOKUP(B72,Funding,Funding!$HL$2,FALSE)+VLOOKUP(B72,Funding,Funding!$HM$2,FALSE))/(VLOOKUP(B72,Funding,Funding!$HN$2,FALSE))","v":0.21138211382113822},{"$f":"IFERROR((VLOOKUP(B72,Other_data,Other!$D$3,FALSE)+VLOOKUP(B72,Other_data,Other!$E$3,FALSE)+VLOOKUP(B72,Other_data,Other!$F$3,FALSE)), \"x\")","v":790},{"$f":"(VLOOKUP(B72,Other_data,Other!$AK$3,FALSE)+VLOOKUP(B72,Other_data,Other!$AL$3,FALSE))/VLOOKUP(B72,Other_data,Other!$AJ$3,FALSE)","v":2.8855062872270021E-2},{"$f":"(VLOOKUP(B72,Other_data,Other!$AR$3,FALSE)+VLOOKUP(B72,Other_data,Other!$AS$3,FALSE))/VLOOKUP(B72,Other_data,Other!$AQ$3,FALSE)","v":3.9214673211056573E-2},{"$f":"VLOOKUP(B72,Other_data,Other!$AP$3,FALSE)/VLOOKUP(B72,Other_data,Other!$AJ$3,FALSE)","v":4.8974189278623431E-3},{"$f":"VLOOKUP(B72,Other_data,Other!$AW$3,FALSE)/VLOOKUP(B72,Other_data,Other!$AQ$3,FALSE)","v":8.1632653061224497E-3}]
[67,382,"Kirklees",{"$f":"IFERROR((VLOOKUP($B73,Pupils,Pupils!$D$3,FALSE)/VLOOKUP($B73,Pupils,Pupils!$C$3,FALSE)), \"x\")","v":2.8945470172045983E-2},{"$f":"IFERROR((VLOOKUP($B73,Pupils,Pupils!$G$3,FALSE)/VLOOKUP($B73,Pupils,Pupils!$F$3,FALSE)),\"x\")","v":2.8133738975446361E-2},{"$f":"IFERROR((VLOOKUP($B73,Pupils,Pupils!$J$3,FALSE)/VLOOKUP($B73,Pupils,Pupils!$I$3,FALSE)), \"x\")","v":2.7288960791196717E-2},{"$f":"IFERROR((VLOOKUP($B73,Pupils,Pupils!$M$3,FALSE)/VLOOKUP($B73,Pupils,Pupils!$L$3,FALSE)), \"x\")","v":2.750786916655262E-2},{"$f":"IFERROR((VLOOKUP($B73,Pupils,Pupils!$R$3,FALSE)/VLOOKUP($B73,Pupils,Pupils!$Q$3,FALSE)), \"x\")","v":2.7394578313253013E-2},{"$f":"IFERROR((VLOOKUP($B73,Pupils,Pupils!$W$3,FALSE)/VLOOKUP($B73,Pupils,Pupils!$V$3,FALSE)), \"x\")","v":2.7494589148443913E-2},{"$f":"IFERROR(((VLOOKUP($B73,Pupils,Pupils!$D$3,FALSE)+VLOOKUP($B73,Pupils,Pupils!$E$3,FALSE))/VLOOKUP($B73,Pupils,Pupils!$C$3,FALSE)), \"x\")","v":0.21951593842564882},{"$f":"IFERROR(((VLOOKUP($B73,Pupils,Pupils!$G$3,FALSE)+VLOOKUP($B73,Pupils,Pupils!$H$3,FALSE))/VLOOKUP($B73,Pupils,Pupils!$F$3,FALSE)), \"x\")","v":0.20907470575581574},{"$f":"IFERROR(((VLOOKUP($B73,Pupils,Pupils!$J$3,FALSE)+VLOOKUP($B73,Pupils,Pupils!$K$3,FALSE))/VLOOKUP($B73,Pupils,Pupils!$I$3,FALSE)), \"x\")","v":0.19695975336151769},{"$f":"IFERROR(((VLOOKUP($B73,Pupils,Pupils!$M$3,FALSE)+VLOOKUP($B73,Pupils,Pupils!$P$3,FALSE))/VLOOKUP($B73,Pupils,Pupils!$L$3,FALSE)), \"x\")","v":0.19101926615269985},{"$f":"IFERROR(((VLOOKUP($B73,Pupils,Pupils!$R$3,FALSE)+VLOOKUP($B73,Pupils,Pupils!$U$3,FALSE))/VLOOKUP($B73,Pupils,Pupils!$Q$3,FALSE)), \"x\")","v":0.18131024096385542},{"$f":"IFERROR(((VLOOKUP($B73,Pupils,Pupils!$W$3,FALSE)+VLOOKUP($B73,Pupils,Pupils!$Z$3,FALSE))/VLOOKUP($B73,Pupils,Pupils!$V$3,FALSE)), \"x\")","v":0.17587879692514366},{"$f":"(SUM(INDEX(Pupils!$AB$7:$AB$159,MATCH($B73,Pupils!$A$7:$A$159,0)),INDEX(Pupils!$AC$7:$AC$159,MATCH($B73,Pupils!$A$7:$A$159,0)),INDEX(Pupils!$AD$7:$AD$159,MATCH($B73,Pupils!$A$7:$A$159,0)),INDEX(Pupils!$AE$7:$AE$159,MATCH($B73,Pupils!$A$7:$A$159,0))))/SUM(INDEX(Pupils!$AB$7:$AM$159,MATCH($B73,Pupils!$A$7:$A$159,0),0))","v":0.33386545039908783},{"$f":"SUM(INDEX(Pupils!$AF$7:$AF$159,MATCH($B73,Pupils!$A$7:$A$159,0)))/SUM(INDEX(Pupils!$AB$7:$AM$159,MATCH($B73,Pupils!$A$7:$A$159,0),0))","v":0.22348916761687571},{"$f":"SUM(INDEX(Pupils!$AG$7:$AG$159,MATCH($B73,Pupils!$A$7:$A$159,0)))/SUM(INDEX(Pupils!$AB$7:$AM$159,MATCH($B73,Pupils!$A$7:$A$159,0),0))","v":0.21824401368301027},{"$f":"(SUM(INDEX(Pupils!$AH$7:$AH$159,MATCH($B73,Pupils!$A$7:$A$159,0)),INDEX(Pupils!$AI$7:$AI$159,MATCH($B73,Pupils!$A$7:$A$159,0)),INDEX(Pupils!$AJ$7:$AJ$159,MATCH($B73,Pupils!$A$7:$A$159,0))))/SUM(INDEX(Pupils!$AB$7:$AM$159,MATCH($B73,Pupils!$A$7:$A$159,0),0))","v":7.3888255416191567E-2},{"$f":"SUM(INDEX(Pupils!$AK$7:$AK$159,MATCH($B73,Pupils!$A$7:$A$159,0)))/SUM(INDEX(Pupils!$AB$7:$AM$159,MATCH($B73,Pupils!$A$7:$A$159,0),0))","v":4.5610034207525657E-2},{"$f":"SUM(INDEX(Pupils!$AL$7:$AL$159,MATCH($B73,Pupils!$A$7:$A$159,0)))/SUM(INDEX(Pupils!$AB$7:$AM$159,MATCH($B73,Pupils!$A$7:$A$159,0),0))","v":6.6134549600912196E-2},{"$f":"SUM(INDEX(Pupils!$AM$7:$AM$159,MATCH($B73,Pupils!$A$7:$A$159,0)))/SUM(INDEX(Pupils!$AB$7:$AM$159,MATCH($B73,Pupils!$A$7:$A$159,0),0))","v":3.8768529076396809E-2},{"$f":"(SUM(INDEX(Pupils!$BH$7:$BH$159,MATCH($B73,Pupils!$A$7:$A$159,0)),INDEX(Pupils!$BK$7:$BK$159,MATCH($B73,Pupils!$A$7:$A$159,0)),INDEX(Pupils!$BO$7:$BO$159,MATCH($B73,Pupils!$A$7:$A$159,0))))/SUM(INDEX(Pupils!$BH$7:$BS$159,MATCH($B73,Pupils!$A$7:$A$159,0),0))","v":0.55333683657383081},{"$f":"(SUM(INDEX(Pupils!$BL$7:$BL$159,MATCH($B73,Pupils!$A$7:$A$159,0)),INDEX(Pupils!$BM$7:$BM$159,MATCH($B73,Pupils!$A$7:$A$159,0)),INDEX(Pupils!$BP$7:$BP$159,MATCH($B73,Pupils!$A$7:$A$159,0))))/SUM(INDEX(Pupils!$BH$7:$BS$159,MATCH($B73,Pupils!$A$7:$A$159,0),0))","v":0.3604834471886495},{"$f":"(SUM(INDEX(Pupils!$BI$7:$BI$159,MATCH($B73,Pupils!$A$7:$A$159,0)),INDEX(Pupils!$BJ$7:$BJ$159,MATCH($B73,Pupils!$A$7:$A$159,0))))/SUM(INDEX(Pupils!$BH$7:$BS$159,MATCH($B73,Pupils!$A$7:$A$159,0),0))","v":7.7771939043615346E-2},{"$f":"(SUM(INDEX(Pupils!$BQ$7:$BQ$159,MATCH($B73,Pupils!$A$7:$A$159,0)),INDEX(Pupils!$BR$7:$BR$159,MATCH($B73,Pupils!$A$7:$A$159,0)),INDEX(Pupils!$BN$7:$BN$159,MATCH($B73,Pupils!$A$7:$A$159,0)),INDEX(Pupils!$BS$7:$BS$159,MATCH($B73,Pupils!$A$7:$A$159,0))))/SUM(INDEX(Pupils!$BH$7:$BS$159,MATCH($B73,Pupils!$A$7:$A$159,0),0))","v":8.4077771939043613E-3},{"$f":"IFERROR((VLOOKUP(B73,Funding,Funding!$C$2,FALSE)), \"x\")","v":28121574},{"$f":"IFERROR((AA73/VLOOKUP(B73,Funding,Funding!$D$2,FALSE)), \"x\")","v":9.0280958085224655E-2},{"$f":"IFERROR((AA73/(VLOOKUP(B73,Pupils,Pupils!$M$3,FALSE)+VLOOKUP(B73,Pupils,Pupils!$P$3,FALSE))), \"x\")","v":2238.6223531284827},{"$f":"IFERROR((VLOOKUP(B73,Funding,Funding!$E$2,FALSE)), \"x\")","v":28757692.320742615},{"$f":"IFERROR((AD73/VLOOKUP(B73,Funding,Funding!$F$2,FALSE)), \"x\")","v":8.9922790475778044E-2},{"$f":"IFERROR((AD73/(VLOOKUP(B73,Pupils,Pupils!$R$3,FALSE)+VLOOKUP(B73,Pupils,Pupils!$U$3,FALSE))), \"x\")","v":2388.7110491521403},{"$f":"IFERROR((VLOOKUP(B73,Funding,Funding!$G$2,FALSE)), \"x\")","v":29707841.286860801},{"$f":"IFERROR((AG73/VLOOKUP(B73,Funding,Funding!$H$2,FALSE)), \"x\")","v":9.1277619360234361E-2},{"$f":"IFERROR((AG73/(VLOOKUP(B73,Pupils,Pupils!$W$3,FALSE)+VLOOKUP(B73,Pupils,Pupils!$Z$3,FALSE))), \"x\")","v":2521.2459718968685},{"$f":"IFERROR((VLOOKUP(B73,Funding,Funding!$I$2,FALSE)), \"x\")","v":30210113.632692438},{"$f":"IFERROR((AJ73/VLOOKUP(B73,Funding,Funding!$J$2,FALSE)), \"x\")","v":9.2594643668868687E-2},null,{"$f":"IFERROR((VLOOKUP($B73,Funding,Funding!$EC$2,FALSE)), \"x\")","v":16606711.439999999},{"$f":"IFERROR((AM73/VLOOKUP($B73,Funding,Funding!$EU$2,FALSE)), \"x\")","v":5.3528437985602056E-2},{"$f":"IFERROR((AM73/(VLOOKUP($B73,Pupils,Pupils!$D$3,FALSE)+VLOOKUP($B73,Pupils,Pupils!$E$3,FALSE))), \"x\")","v":1161.0649122561699},{"$f":"IFERROR((VLOOKUP($B73,Funding,Funding!$DA$2,FALSE)), \"x\")","v":17781191},{"$f":"IFERROR((AP73/VLOOKUP($B73,Funding,Funding!$DT$2,FALSE)), \"x\")","v":5.5600919107310298E-2},{"$f":"IFERROR((AP73/(VLOOKUP($B73,Pupils,Pupils!$G$3,FALSE)+VLOOKUP($B73,Pupils,Pupils!$H$3,FALSE))), \"x\")","v":1306.7679135738958},{"$f":"IFERROR((VLOOKUP($B73,Funding,Funding!$CE$2,FALSE)), \"x\")","v":16408494},{"$f":"IFERROR((AS73/VLOOKUP($B73,Funding,Funding!$CR$2,FALSE)), \"x\")","v":5.1546146229801658E-2},{"$f":"IFERROR((AS73/(VLOOKUP($B73,Pupils,Pupils!$J$3,FALSE)+VLOOKUP($B73,Pupils,Pupils!$K$3,FALSE))), \"x\")","v":1271.4834560247966},{"$f":"IFERROR((VLOOKUP($B73,Funding,Funding!$BM$2,FALSE)), \"x\")","v":18048105.620000001},{"$f":"IFERROR((AV73/VLOOKUP($B73,Funding,Funding!$BY$2,FALSE)), \"x\")","v":6.2561203409157176E-2},{"$f":"IFERROR((AV73/(VLOOKUP($B73,Pupils,Pupils!$M$3,FALSE)+VLOOKUP($B73,Pupils,Pupils!$P$3,FALSE))), \"x\")","v":1436.7223069574909},{"$f":"IFERROR((VLOOKUP($B73,Funding,Funding!$AQ$2,FALSE)), \"x\")","v":28026146},{"$f":"IFERROR((AY73/VLOOKUP($B73,Funding,Funding!$BE$2,FALSE)), \"x\")","v":8.7926340134633199E-2},{"$f":"IFERROR((AY73/(VLOOKUP($B73,Pupils,Pupils!$R$3,FALSE)+VLOOKUP($B73,Pupils,Pupils!$U$3,FALSE))), \"x\")","v":2327.9463410582275},{"$f":"IFERROR((VLOOKUP($B73,Funding,Funding!$S$2,FALSE)), \"x\")","v":24105940},{"$f":"IFERROR((BB73/VLOOKUP($B73,Funding,Funding!$AH$2,FALSE)), \"x\")","v":7.3803028906378687E-2},{"$f":"IFERROR((BB73/(VLOOKUP(B73,Pupils,Pupils!$W$3,FALSE)+VLOOKUP(B73,Pupils,Pupils!$Z$3,FALSE))), \"x\")","v":2045.8236442332172},{"$f":"IFERROR((VLOOKUP($B73,Funding,Funding!$GX$2,FALSE)), \"x\")","v":29804395},{"$f":"IFERROR((BE73/VLOOKUP($B73,Funding,Funding!$HC$2,FALSE)), \"x\")","v":8.447688508341053E-2},{"$f":"IFERROR((BE73/(VLOOKUP($B73,Pupils,Pupils!$D$3,FALSE)+VLOOKUP($B73,Pupils,Pupils!$E$3,FALSE))), \"x\")","v":2083.7862686149761},{"$f":"IFERROR((VLOOKUP($B73,Funding,Funding!$GP$2,FALSE)), \"x\")","v":30786693},{"$f":"IFERROR((BH73/VLOOKUP($B73,Funding,Funding!$GU$2,FALSE)), \"x\")","v":8.1463618106286911E-2},{"$f":"IFERROR((BH73/(VLOOKUP($B73,Pupils,Pupils!$G$3,FALSE)+VLOOKUP($B73,Pupils,Pupils!$H$3,FALSE))), \"x\")","v":2262.56287205115},{"$f":"IFERROR((VLOOKUP($B73,Funding,Funding!$GH$2,FALSE)), \"x\")","v":29638466},{"$f":"IFERROR((BK73/VLOOKUP($B73,Funding,Funding!$GM$2,FALSE)), \"x\")","v":9.2349558265368795E-2},{"$f":"IFERROR((BK73/(VLOOKUP($B73,Pupils,Pupils!$J$3,FALSE)+VLOOKUP($B73,Pupils,Pupils!$K$3,FALSE))), \"x\")","v":2296.6653235180161},{"$f":"IFERROR((VLOOKUP($B73,Funding,Funding!$FZ$2,FALSE)), \"x\")","v":29846076.109999999},{"$f":"IFERROR((BN73/VLOOKUP($B73,Funding,Funding!$GE$2,FALSE)), \"x\")","v":9.8781229109822372E-2},{"$f":"IFERROR((BN73/(VLOOKUP($B73,Pupils,Pupils!$M$3,FALSE)+VLOOKUP($B73,Pupils,Pupils!$P$3,FALSE))), \"x\")","v":2375.9016167807672},{"$f":"IFERROR((VLOOKUP($B73,Funding,Funding!$FD$2,FALSE)), \"x\")","v":29385223},{"$f":"IFERROR((BQ73/VLOOKUP($B73,Funding,Funding!$FR$2,FALSE)), \"x\")","v":0.10988096181117929},{"$f":"IFERROR((BQ73/(VLOOKUP($B73,Pupils,Pupils!$R$3,FALSE)+VLOOKUP($B73,Pupils,Pupils!$U$3,FALSE))), \"x\")","v":2440.8358667663429},{"$f":"(VLOOKUP(B73,Funding,Funding!$HK$2,FALSE)+VLOOKUP(B73,Funding,Funding!$HL$2,FALSE)+VLOOKUP(B73,Funding,Funding!$HM$2,FALSE))/(VLOOKUP(B73,Funding,Funding!$HN$2,FALSE))","v":0.20603015075376885},{"$f":"IFERROR((VLOOKUP(B73,Other_data,Other!$D$3,FALSE)+VLOOKUP(B73,Other_data,Other!$E$3,FALSE)+VLOOKUP(B73,Other_data,Other!$F$3,FALSE)), \"x\")","v":2090},{"$f":"(VLOOKUP(B73,Other_data,Other!$AK$3,FALSE)+VLOOKUP(B73,Other_data,Other!$AL$3,FALSE))/VLOOKUP(B73,Other_data,Other!$AJ$3,FALSE)","v":3.4889394925178917E-2},{"$f":"(VLOOKUP(B73,Other_data,Other!$AR$3,FALSE)+VLOOKUP(B73,Other_data,Other!$AS$3,FALSE))/VLOOKUP(B73,Other_data,Other!$AQ$3,FALSE)","v":5.3328896191684516E-2},{"$f":"VLOOKUP(B73,Other_data,Other!$AP$3,FALSE)/VLOOKUP(B73,Other_data,Other!$AJ$3,FALSE)","v":6.9941444372153549E-3},{"$f":"VLOOKUP(B73,Other_data,Other!$AW$3,FALSE)/VLOOKUP(B73,Other_data,Other!$AQ$3,FALSE)","v":1.2333867176937956E-2}]
[68,340,"Knowsley",{"$f":"IFERROR((VLOOKUP($B74,Pupils,Pupils!$D$3,FALSE)/VLOOKUP($B74,Pupils,Pupils!$C$3,FALSE)), \"x\")","v":3.3428009613283807E-2},{"$f":"IFERROR((VLOOKUP($B74,Pupils,Pupils!$G$3,FALSE)/VLOOKUP($B74,Pupils,Pupils!$F$3,FALSE)),\"x\")","v":3.3710386928808692E-2},{"$f":"IFERROR((VLOOKUP($B74,Pupils,Pupils!$J$3,FALSE)/VLOOKUP($B74,Pupils,Pupils!$I$3,FALSE)), \"x\")","v":3.298571231680985E-2},{"$f":"IFERROR((VLOOKUP($B74,Pupils,Pupils!$M$3,FALSE)/VLOOKUP($B74,Pupils,Pupils!$L$3,FALSE)), \"x\")","v":3.3359958652445613E-2},{"$f":"IFERROR((VLOOKUP($B74,Pupils,Pupils!$R$3,FALSE)/VLOOKUP($B74,Pupils,Pupils!$Q$3,FALSE)), \"x\")","v":3.508434661412025E-2},{"$f":"IFERROR((VLOOKUP($B74,Pupils,Pupils!$W$3,FALSE)/VLOOKUP($B74,Pupils,Pupils!$V$3,FALSE)), \"x\")","v":3.6571706841977115E-2},{"$f":"IFERROR(((VLOOKUP($B74,Pupils,Pupils!$D$3,FALSE)+VLOOKUP($B74,Pupils,Pupils!$E$3,FALSE))/VLOOKUP($B74,Pupils,Pupils!$C$3,FALSE)), \"x\")","v":0.26724928992790037},{"$f":"IFERROR(((VLOOKUP($B74,Pupils,Pupils!$G$3,FALSE)+VLOOKUP($B74,Pupils,Pupils!$H$3,FALSE))/VLOOKUP($B74,Pupils,Pupils!$F$3,FALSE)), \"x\")","v":0.27183768740461439},{"$f":"IFERROR(((VLOOKUP($B74,Pupils,Pupils!$J$3,FALSE)+VLOOKUP($B74,Pupils,Pupils!$K$3,FALSE))/VLOOKUP($B74,Pupils,Pupils!$I$3,FALSE)), \"x\")","v":0.264666697294069},{"$f":"IFERROR(((VLOOKUP($B74,Pupils,Pupils!$M$3,FALSE)+VLOOKUP($B74,Pupils,Pupils!$P$3,FALSE))/VLOOKUP($B74,Pupils,Pupils!$L$3,FALSE)), \"x\")","v":0.26321477235352159},{"$f":"IFERROR(((VLOOKUP($B74,Pupils,Pupils!$R$3,FALSE)+VLOOKUP($B74,Pupils,Pupils!$U$3,FALSE))/VLOOKUP($B74,Pupils,Pupils!$Q$3,FALSE)), \"x\")","v":0.26101792665929735},{"$f":"IFERROR(((VLOOKUP($B74,Pupils,Pupils!$W$3,FALSE)+VLOOKUP($B74,Pupils,Pupils!$Z$3,FALSE))/VLOOKUP($B74,Pupils,Pupils!$V$3,FALSE)), \"x\")","v":0.26004382761139516},{"$f":"(SUM(INDEX(Pupils!$AB$7:$AB$159,MATCH($B74,Pupils!$A$7:$A$159,0)),INDEX(Pupils!$AC$7:$AC$159,MATCH($B74,Pupils!$A$7:$A$159,0)),INDEX(Pupils!$AD$7:$AD$159,MATCH($B74,Pupils!$A$7:$A$159,0)),INDEX(Pupils!$AE$7:$AE$159,MATCH($B74,Pupils!$A$7:$A$159,0))))/SUM(INDEX(Pupils!$AB$7:$AM$159,MATCH($B74,Pupils!$A$7:$A$159,0),0))","v":0.52226441146013114},{"$f":"SUM(INDEX(Pupils!$AF$7:$AF$159,MATCH($B74,Pupils!$A$7:$A$159,0)))/SUM(INDEX(Pupils!$AB$7:$AM$159,MATCH($B74,Pupils!$A$7:$A$159,0),0))","v":0.18605453917846049},{"$f":"SUM(INDEX(Pupils!$AG$7:$AG$159,MATCH($B74,Pupils!$A$7:$A$159,0)))/SUM(INDEX(Pupils!$AB$7:$AM$159,MATCH($B74,Pupils!$A$7:$A$159,0),0))","v":0.13255091473938557},{"$f":"(SUM(INDEX(Pupils!$AH$7:$AH$159,MATCH($B74,Pupils!$A$7:$A$159,0)),INDEX(Pupils!$AI$7:$AI$159,MATCH($B74,Pupils!$A$7:$A$159,0)),INDEX(Pupils!$AJ$7:$AJ$159,MATCH($B74,Pupils!$A$7:$A$159,0))))/SUM(INDEX(Pupils!$AB$7:$AM$159,MATCH($B74,Pupils!$A$7:$A$159,0),0))","v":2.0020711080428029E-2},{"$f":"SUM(INDEX(Pupils!$AK$7:$AK$159,MATCH($B74,Pupils!$A$7:$A$159,0)))/SUM(INDEX(Pupils!$AB$7:$AM$159,MATCH($B74,Pupils!$A$7:$A$159,0),0))","v":2.4508111839834312E-2},{"$f":"SUM(INDEX(Pupils!$AL$7:$AL$159,MATCH($B74,Pupils!$A$7:$A$159,0)))/SUM(INDEX(Pupils!$AB$7:$AM$159,MATCH($B74,Pupils!$A$7:$A$159,0),0))","v":7.8011736278909213E-2},{"$f":"SUM(INDEX(Pupils!$AM$7:$AM$159,MATCH($B74,Pupils!$A$7:$A$159,0)))/SUM(INDEX(Pupils!$AB$7:$AM$159,MATCH($B74,Pupils!$A$7:$A$159,0),0))","v":3.6589575422851225E-2},{"$f":"(SUM(INDEX(Pupils!$BH$7:$BH$159,MATCH($B74,Pupils!$A$7:$A$159,0)),INDEX(Pupils!$BK$7:$BK$159,MATCH($B74,Pupils!$A$7:$A$159,0)),INDEX(Pupils!$BO$7:$BO$159,MATCH($B74,Pupils!$A$7:$A$159,0))))/SUM(INDEX(Pupils!$BH$7:$BS$159,MATCH($B74,Pupils!$A$7:$A$159,0),0))","v":0.421875},{"$f":"(SUM(INDEX(Pupils!$BL$7:$BL$159,MATCH($B74,Pupils!$A$7:$A$159,0)),INDEX(Pupils!$BM$7:$BM$159,MATCH($B74,Pupils!$A$7:$A$159,0)),INDEX(Pupils!$BP$7:$BP$159,MATCH($B74,Pupils!$A$7:$A$159,0))))/SUM(INDEX(Pupils!$BH$7:$BS$159,MATCH($B74,Pupils!$A$7:$A$159,0),0))","v":0.5602678571428571},{"$f":"(SUM(INDEX(Pupils!$BI$7:$BI$159,MATCH($B74,Pupils!$A$7:$A$159,0)),INDEX(Pupils!$BJ$7:$BJ$159,MATCH($B74,Pupils!$A$7:$A$159,0))))/SUM(INDEX(Pupils!$BH$7:$BS$159,MATCH($B74,Pupils!$A$7:$A$159,0),0))","v":0},{"$f":"(SUM(INDEX(Pupils!$BQ$7:$BQ$159,MATCH($B74,Pupils!$A$7:$A$159,0)),INDEX(Pupils!$BR$7:$BR$159,MATCH($B74,Pupils!$A$7:$A$159,0)),INDEX(Pupils!$BN$7:$BN$159,MATCH($B74,Pupils!$A$7:$A$159,0)),INDEX(Pupils!$BS$7:$BS$159,MATCH($B74,Pupils!$A$7:$A$159,0))))/SUM(INDEX(Pupils!$BH$7:$BS$159,MATCH($B74,Pupils!$A$7:$A$159,0),0))","v":1.7857142857142856E-2},{"$f":"IFERROR((VLOOKUP(B74,Funding,Funding!$C$2,FALSE)), \"x\")","v":18485058.552820262},{"$f":"IFERROR((AA74/VLOOKUP(B74,Funding,Funding!$D$2,FALSE)), \"x\")","v":0.16166415910758922},{"$f":"IFERROR((AA74/(VLOOKUP(B74,Pupils,Pupils!$M$3,FALSE)+VLOOKUP(B74,Pupils,Pupils!$P$3,FALSE))), \"x\")","v":3299.7248398465299},{"$f":"IFERROR((VLOOKUP(B74,Funding,Funding!$E$2,FALSE)), \"x\")","v":19201094.86308663},{"$f":"IFERROR((AD74/VLOOKUP(B74,Funding,Funding!$F$2,FALSE)), \"x\")","v":0.16665016587706055},{"$f":"IFERROR((AD74/(VLOOKUP(B74,Pupils,Pupils!$R$3,FALSE)+VLOOKUP(B74,Pupils,Pupils!$U$3,FALSE))), \"x\")","v":3535.4621364549125},{"$f":"IFERROR((VLOOKUP(B74,Funding,Funding!$G$2,FALSE)), \"x\")","v":19791545.49298656},{"$f":"IFERROR((AG74/VLOOKUP(B74,Funding,Funding!$H$2,FALSE)), \"x\")","v":0.17191208353019774},{"$f":"IFERROR((AG74/(VLOOKUP(B74,Pupils,Pupils!$W$3,FALSE)+VLOOKUP(B74,Pupils,Pupils!$Z$3,FALSE))), \"x\")","v":3706.2819275255729},{"$f":"IFERROR((VLOOKUP(B74,Funding,Funding!$I$2,FALSE)), \"x\")","v":19827736.864261594},{"$f":"IFERROR((AJ74/VLOOKUP(B74,Funding,Funding!$J$2,FALSE)), \"x\")","v":0.17756447288104235},null,{"$f":"IFERROR((VLOOKUP($B74,Funding,Funding!$EC$2,FALSE)), \"x\")","v":15863107.620000001},{"$f":"IFERROR((AM74/VLOOKUP($B74,Funding,Funding!$EU$2,FALSE)), \"x\")","v":0.13252193417781521},{"$f":"IFERROR((AM74/(VLOOKUP($B74,Pupils,Pupils!$D$3,FALSE)+VLOOKUP($B74,Pupils,Pupils!$E$3,FALSE))), \"x\")","v":2593.7062818835843},{"$f":"IFERROR((VLOOKUP($B74,Funding,Funding!$DA$2,FALSE)), \"x\")","v":15873938.89257},{"$f":"IFERROR((AP74/VLOOKUP($B74,Funding,Funding!$DT$2,FALSE)), \"x\")","v":0.13368293202207124},{"$f":"IFERROR((AP74/(VLOOKUP($B74,Pupils,Pupils!$G$3,FALSE)+VLOOKUP($B74,Pupils,Pupils!$H$3,FALSE))), \"x\")","v":2621.1920232116909},{"$f":"IFERROR((VLOOKUP($B74,Funding,Funding!$CE$2,FALSE)), \"x\")","v":15592064.32601},{"$f":"IFERROR((AS74/VLOOKUP($B74,Funding,Funding!$CR$2,FALSE)), \"x\")","v":0.12745314100481706},{"$f":"IFERROR((AS74/(VLOOKUP($B74,Pupils,Pupils!$J$3,FALSE)+VLOOKUP($B74,Pupils,Pupils!$K$3,FALSE))), \"x\")","v":2706.4857361586528},{"$f":"IFERROR((VLOOKUP($B74,Funding,Funding!$BM$2,FALSE)), \"x\")","v":15405975.390000001},{"$f":"IFERROR((AV74/VLOOKUP($B74,Funding,Funding!$BY$2,FALSE)), \"x\")","v":0.12559336075214639},{"$f":"IFERROR((AV74/(VLOOKUP($B74,Pupils,Pupils!$M$3,FALSE)+VLOOKUP($B74,Pupils,Pupils!$P$3,FALSE))), \"x\")","v":2750.0848607640128},{"$f":"IFERROR((VLOOKUP($B74,Funding,Funding!$AQ$2,FALSE)), \"x\")","v":16400082},{"$f":"IFERROR((AY74/VLOOKUP($B74,Funding,Funding!$BE$2,FALSE)), \"x\")","v":0.14230623454379798},{"$f":"IFERROR((AY74/(VLOOKUP($B74,Pupils,Pupils!$R$3,FALSE)+VLOOKUP($B74,Pupils,Pupils!$U$3,FALSE))), \"x\")","v":3019.7168109003865},{"$f":"IFERROR((VLOOKUP($B74,Funding,Funding!$S$2,FALSE)), \"x\")","v":15651035},{"$f":"IFERROR((BB74/VLOOKUP($B74,Funding,Funding!$AH$2,FALSE)), \"x\")","v":0.1357370994993731},{"$f":"IFERROR((BB74/(VLOOKUP(B74,Pupils,Pupils!$W$3,FALSE)+VLOOKUP(B74,Pupils,Pupils!$Z$3,FALSE))), \"x\")","v":2930.9054307116103},{"$f":"IFERROR((VLOOKUP($B74,Funding,Funding!$GX$2,FALSE)), \"x\")","v":15839067.873160001},{"$f":"IFERROR((BE74/VLOOKUP($B74,Funding,Funding!$HC$2,FALSE)), \"x\")","v":0.1212869484331323},{"$f":"IFERROR((BE74/(VLOOKUP($B74,Pupils,Pupils!$D$3,FALSE)+VLOOKUP($B74,Pupils,Pupils!$E$3,FALSE))), \"x\")","v":2589.7756496337479},{"$f":"IFERROR((VLOOKUP($B74,Funding,Funding!$GP$2,FALSE)), \"x\")","v":16601578.75},{"$f":"IFERROR((BH74/VLOOKUP($B74,Funding,Funding!$GU$2,FALSE)), \"x\")","v":0.12326819959610377},{"$f":"IFERROR((BH74/(VLOOKUP($B74,Pupils,Pupils!$G$3,FALSE)+VLOOKUP($B74,Pupils,Pupils!$H$3,FALSE))), \"x\")","v":2741.3439151254952},{"$f":"IFERROR((VLOOKUP($B74,Funding,Funding!$GH$2,FALSE)), \"x\")","v":14308071.84},{"$f":"IFERROR((BK74/VLOOKUP($B74,Funding,Funding!$GM$2,FALSE)), \"x\")","v":0.10931167472083464},{"$f":"IFERROR((BK74/(VLOOKUP($B74,Pupils,Pupils!$J$3,FALSE)+VLOOKUP($B74,Pupils,Pupils!$K$3,FALSE))), \"x\")","v":2483.6090678701612},{"$f":"IFERROR((VLOOKUP($B74,Funding,Funding!$FZ$2,FALSE)), \"x\")","v":15786748.960000001},{"$f":"IFERROR((BN74/VLOOKUP($B74,Funding,Funding!$GE$2,FALSE)), \"x\")","v":0.12144018893130401},{"$f":"IFERROR((BN74/(VLOOKUP($B74,Pupils,Pupils!$M$3,FALSE)+VLOOKUP($B74,Pupils,Pupils!$P$3,FALSE))), \"x\")","v":2818.0558657622278},{"$f":"IFERROR((VLOOKUP($B74,Funding,Funding!$FD$2,FALSE)), \"x\")","v":16998246.82},{"$f":"IFERROR((BQ74/VLOOKUP($B74,Funding,Funding!$FR$2,FALSE)), \"x\")","v":0.16111186956237974},{"$f":"IFERROR((BQ74/(VLOOKUP($B74,Pupils,Pupils!$R$3,FALSE)+VLOOKUP($B74,Pupils,Pupils!$U$3,FALSE))), \"x\")","v":3129.855794512981},{"$f":"(VLOOKUP(B74,Funding,Funding!$HK$2,FALSE)+VLOOKUP(B74,Funding,Funding!$HL$2,FALSE)+VLOOKUP(B74,Funding,Funding!$HM$2,FALSE))/(VLOOKUP(B74,Funding,Funding!$HN$2,FALSE))","v":0.2572178477690289},{"$f":"IFERROR((VLOOKUP(B74,Other_data,Other!$D$3,FALSE)+VLOOKUP(B74,Other_data,Other!$E$3,FALSE)+VLOOKUP(B74,Other_data,Other!$F$3,FALSE)), \"x\")","v":1020},{"$f":"(VLOOKUP(B74,Other_data,Other!$AK$3,FALSE)+VLOOKUP(B74,Other_data,Other!$AL$3,FALSE))/VLOOKUP(B74,Other_data,Other!$AJ$3,FALSE)","v":4.6675504081490266E-2},{"$f":"(VLOOKUP(B74,Other_data,Other!$AR$3,FALSE)+VLOOKUP(B74,Other_data,Other!$AS$3,FALSE))/VLOOKUP(B74,Other_data,Other!$AQ$3,FALSE)","v":6.3855892030561592E-2},{"$f":"VLOOKUP(B74,Other_data,Other!$AP$3,FALSE)/VLOOKUP(B74,Other_data,Other!$AJ$3,FALSE)","v":8.8955557105979202E-3},{"$f":"VLOOKUP(B74,Other_data,Other!$AW$3,FALSE)/VLOOKUP(B74,Other_data,Other!$AQ$3,FALSE)","v":1.6507724053315489E-2}]
[69,208,"Lambeth",{"$f":"IFERROR((VLOOKUP($B75,Pupils,Pupils!$D$3,FALSE)/VLOOKUP($B75,Pupils,Pupils!$C$3,FALSE)), \"x\")","v":3.6806651292632601E-2},{"$f":"IFERROR((VLOOKUP($B75,Pupils,Pupils!$G$3,FALSE)/VLOOKUP($B75,Pupils,Pupils!$F$3,FALSE)),\"x\")","v":3.7677028591787655E-2},{"$f":"IFERROR((VLOOKUP($B75,Pupils,Pupils!$J$3,FALSE)/VLOOKUP($B75,Pupils,Pupils!$I$3,FALSE)), \"x\")","v":3.8496075080381192E-2},{"$f":"IFERROR((VLOOKUP($B75,Pupils,Pupils!$M$3,FALSE)/VLOOKUP($B75,Pupils,Pupils!$L$3,FALSE)), \"x\")","v":3.6085106382978724E-2},{"$f":"IFERROR((VLOOKUP($B75,Pupils,Pupils!$R$3,FALSE)/VLOOKUP($B75,Pupils,Pupils!$Q$3,FALSE)), \"x\")","v":3.5848120797972005E-2},{"$f":"IFERROR((VLOOKUP($B75,Pupils,Pupils!$W$3,FALSE)/VLOOKUP($B75,Pupils,Pupils!$V$3,FALSE)), \"x\")","v":3.470964304741609E-2},{"$f":"IFERROR(((VLOOKUP($B75,Pupils,Pupils!$D$3,FALSE)+VLOOKUP($B75,Pupils,Pupils!$E$3,FALSE))/VLOOKUP($B75,Pupils,Pupils!$C$3,FALSE)), \"x\")","v":0.26656754460492776},{"$f":"IFERROR(((VLOOKUP($B75,Pupils,Pupils!$G$3,FALSE)+VLOOKUP($B75,Pupils,Pupils!$H$3,FALSE))/VLOOKUP($B75,Pupils,Pupils!$F$3,FALSE)), \"x\")","v":0.26816305929158873},{"$f":"IFERROR(((VLOOKUP($B75,Pupils,Pupils!$J$3,FALSE)+VLOOKUP($B75,Pupils,Pupils!$K$3,FALSE))/VLOOKUP($B75,Pupils,Pupils!$I$3,FALSE)), \"x\")","v":0.26808214813312864},{"$f":"IFERROR(((VLOOKUP($B75,Pupils,Pupils!$M$3,FALSE)+VLOOKUP($B75,Pupils,Pupils!$P$3,FALSE))/VLOOKUP($B75,Pupils,Pupils!$L$3,FALSE)), \"x\")","v":0.25997163120567374},{"$f":"IFERROR(((VLOOKUP($B75,Pupils,Pupils!$R$3,FALSE)+VLOOKUP($B75,Pupils,Pupils!$U$3,FALSE))/VLOOKUP($B75,Pupils,Pupils!$Q$3,FALSE)), \"x\")","v":0.24881516587677724},{"$f":"IFERROR(((VLOOKUP($B75,Pupils,Pupils!$W$3,FALSE)+VLOOKUP($B75,Pupils,Pupils!$Z$3,FALSE))/VLOOKUP($B75,Pupils,Pupils!$V$3,FALSE)), \"x\")","v":0.24222163026105487},{"$f":"(SUM(INDEX(Pupils!$AB$7:$AB$159,MATCH($B75,Pupils!$A$7:$A$159,0)),INDEX(Pupils!$AC$7:$AC$159,MATCH($B75,Pupils!$A$7:$A$159,0)),INDEX(Pupils!$AD$7:$AD$159,MATCH($B75,Pupils!$A$7:$A$159,0)),INDEX(Pupils!$AE$7:$AE$159,MATCH($B75,Pupils!$A$7:$A$159,0))))/SUM(INDEX(Pupils!$AB$7:$AM$159,MATCH($B75,Pupils!$A$7:$A$159,0),0))","v":0.32989898989898991},{"$f":"SUM(INDEX(Pupils!$AF$7:$AF$159,MATCH($B75,Pupils!$A$7:$A$159,0)))/SUM(INDEX(Pupils!$AB$7:$AM$159,MATCH($B75,Pupils!$A$7:$A$159,0),0))","v":0.22121212121212122},{"$f":"SUM(INDEX(Pupils!$AG$7:$AG$159,MATCH($B75,Pupils!$A$7:$A$159,0)))/SUM(INDEX(Pupils!$AB$7:$AM$159,MATCH($B75,Pupils!$A$7:$A$159,0),0))","v":0.25636363636363635},{"$f":"(SUM(INDEX(Pupils!$AH$7:$AH$159,MATCH($B75,Pupils!$A$7:$A$159,0)),INDEX(Pupils!$AI$7:$AI$159,MATCH($B75,Pupils!$A$7:$A$159,0)),INDEX(Pupils!$AJ$7:$AJ$159,MATCH($B75,Pupils!$A$7:$A$159,0))))/SUM(INDEX(Pupils!$AB$7:$AM$159,MATCH($B75,Pupils!$A$7:$A$159,0),0))","v":2.0606060606060607E-2},{"$f":"SUM(INDEX(Pupils!$AK$7:$AK$159,MATCH($B75,Pupils!$A$7:$A$159,0)))/SUM(INDEX(Pupils!$AB$7:$AM$159,MATCH($B75,Pupils!$A$7:$A$159,0),0))","v":2.3232323232323233E-2},{"$f":"SUM(INDEX(Pupils!$AL$7:$AL$159,MATCH($B75,Pupils!$A$7:$A$159,0)))/SUM(INDEX(Pupils!$AB$7:$AM$159,MATCH($B75,Pupils!$A$7:$A$159,0),0))","v":0.10787878787878788},{"$f":"SUM(INDEX(Pupils!$AM$7:$AM$159,MATCH($B75,Pupils!$A$7:$A$159,0)))/SUM(INDEX(Pupils!$AB$7:$AM$159,MATCH($B75,Pupils!$A$7:$A$159,0),0))","v":4.0808080808080807E-2},{"$f":"(SUM(INDEX(Pupils!$BH$7:$BH$159,MATCH($B75,Pupils!$A$7:$A$159,0)),INDEX(Pupils!$BK$7:$BK$159,MATCH($B75,Pupils!$A$7:$A$159,0)),INDEX(Pupils!$BO$7:$BO$159,MATCH($B75,Pupils!$A$7:$A$159,0))))/SUM(INDEX(Pupils!$BH$7:$BS$159,MATCH($B75,Pupils!$A$7:$A$159,0),0))","v":0.55372945638432369},{"$f":"(SUM(INDEX(Pupils!$BL$7:$BL$159,MATCH($B75,Pupils!$A$7:$A$159,0)),INDEX(Pupils!$BM$7:$BM$159,MATCH($B75,Pupils!$A$7:$A$159,0)),INDEX(Pupils!$BP$7:$BP$159,MATCH($B75,Pupils!$A$7:$A$159,0))))/SUM(INDEX(Pupils!$BH$7:$BS$159,MATCH($B75,Pupils!$A$7:$A$159,0),0))","v":0.40328697850821743},{"$f":"(SUM(INDEX(Pupils!$BI$7:$BI$159,MATCH($B75,Pupils!$A$7:$A$159,0)),INDEX(Pupils!$BJ$7:$BJ$159,MATCH($B75,Pupils!$A$7:$A$159,0))))/SUM(INDEX(Pupils!$BH$7:$BS$159,MATCH($B75,Pupils!$A$7:$A$159,0),0))","v":2.5284450063211124E-2},{"$f":"(SUM(INDEX(Pupils!$BQ$7:$BQ$159,MATCH($B75,Pupils!$A$7:$A$159,0)),INDEX(Pupils!$BR$7:$BR$159,MATCH($B75,Pupils!$A$7:$A$159,0)),INDEX(Pupils!$BN$7:$BN$159,MATCH($B75,Pupils!$A$7:$A$159,0)),INDEX(Pupils!$BS$7:$BS$159,MATCH($B75,Pupils!$A$7:$A$159,0))))/SUM(INDEX(Pupils!$BH$7:$BS$159,MATCH($B75,Pupils!$A$7:$A$159,0),0))","v":1.7699115044247787E-2},{"$f":"IFERROR((VLOOKUP(B75,Funding,Funding!$C$2,FALSE)), \"x\")","v":31830371},{"$f":"IFERROR((AA75/VLOOKUP(B75,Funding,Funding!$D$2,FALSE)), \"x\")","v":0.1372198489873778},{"$f":"IFERROR((AA75/(VLOOKUP(B75,Pupils,Pupils!$M$3,FALSE)+VLOOKUP(B75,Pupils,Pupils!$P$3,FALSE))), \"x\")","v":3473.4145569620255},{"$f":"IFERROR((VLOOKUP(B75,Funding,Funding!$E$2,FALSE)), \"x\")","v":36445528.405708142},{"$f":"IFERROR((AD75/VLOOKUP(B75,Funding,Funding!$F$2,FALSE)), \"x\")","v":0.14854246085942757},{"$f":"IFERROR((AD75/(VLOOKUP(B75,Pupils,Pupils!$R$3,FALSE)+VLOOKUP(B75,Pupils,Pupils!$U$3,FALSE))), \"x\")","v":4036.0496573320202},{"$f":"IFERROR((VLOOKUP(B75,Funding,Funding!$G$2,FALSE)), \"x\")","v":36491216.274433829},{"$f":"IFERROR((AG75/VLOOKUP(B75,Funding,Funding!$H$2,FALSE)), \"x\")","v":0.14642691276089789},{"$f":"IFERROR((AG75/(VLOOKUP(B75,Pupils,Pupils!$W$3,FALSE)+VLOOKUP(B75,Pupils,Pupils!$Z$3,FALSE))), \"x\")","v":4013.110774709538},{"$f":"IFERROR((VLOOKUP(B75,Funding,Funding!$I$2,FALSE)), \"x\")","v":36429636.845804028},{"$f":"IFERROR((AJ75/VLOOKUP(B75,Funding,Funding!$J$2,FALSE)), \"x\")","v":0.13842940845177923},null,{"$f":"IFERROR((VLOOKUP($B75,Funding,Funding!$EC$2,FALSE)), \"x\")","v":16115007.359999999},{"$f":"IFERROR((AM75/VLOOKUP($B75,Funding,Funding!$EU$2,FALSE)), \"x\")","v":6.8726045569613828E-2},{"$f":"IFERROR((AM75/(VLOOKUP($B75,Pupils,Pupils!$D$3,FALSE)+VLOOKUP($B75,Pupils,Pupils!$E$3,FALSE))), \"x\")","v":1834.3776163915766},{"$f":"IFERROR((VLOOKUP($B75,Funding,Funding!$DA$2,FALSE)), \"x\")","v":17646803.688600004},{"$f":"IFERROR((AP75/VLOOKUP($B75,Funding,Funding!$DT$2,FALSE)), \"x\")","v":7.0922389331067162E-2},{"$f":"IFERROR((AP75/(VLOOKUP($B75,Pupils,Pupils!$G$3,FALSE)+VLOOKUP($B75,Pupils,Pupils!$H$3,FALSE))), \"x\")","v":1953.8090886403902},{"$f":"IFERROR((VLOOKUP($B75,Funding,Funding!$CE$2,FALSE)), \"x\")","v":17691268.37438},{"$f":"IFERROR((AS75/VLOOKUP($B75,Funding,Funding!$CR$2,FALSE)), \"x\")","v":7.932235198165187E-2},{"$f":"IFERROR((AS75/(VLOOKUP($B75,Pupils,Pupils!$J$3,FALSE)+VLOOKUP($B75,Pupils,Pupils!$K$3,FALSE))), \"x\")","v":1911.5362911269583},{"$f":"IFERROR((VLOOKUP($B75,Funding,Funding!$BM$2,FALSE)), \"x\")","v":21409642.969999999},{"$f":"IFERROR((AV75/VLOOKUP($B75,Funding,Funding!$BY$2,FALSE)), \"x\")","v":9.3511450623571371E-2},{"$f":"IFERROR((AV75/(VLOOKUP($B75,Pupils,Pupils!$M$3,FALSE)+VLOOKUP($B75,Pupils,Pupils!$P$3,FALSE))), \"x\")","v":2336.2770591444782},{"$f":"IFERROR((VLOOKUP($B75,Funding,Funding!$AQ$2,FALSE)), \"x\")","v":35929827},{"$f":"IFERROR((AY75/VLOOKUP($B75,Funding,Funding!$BE$2,FALSE)), \"x\")","v":0.14768201578617743},{"$f":"IFERROR((AY75/(VLOOKUP($B75,Pupils,Pupils!$R$3,FALSE)+VLOOKUP($B75,Pupils,Pupils!$U$3,FALSE))), \"x\")","v":3978.9398671096346},{"$f":"IFERROR((VLOOKUP($B75,Funding,Funding!$S$2,FALSE)), \"x\")","v":34949827},{"$f":"IFERROR((BB75/VLOOKUP($B75,Funding,Funding!$AH$2,FALSE)), \"x\")","v":0.14099027143351472},{"$f":"IFERROR((BB75/(VLOOKUP(B75,Pupils,Pupils!$W$3,FALSE)+VLOOKUP(B75,Pupils,Pupils!$Z$3,FALSE))), \"x\")","v":3843.5969427031782},{"$f":"IFERROR((VLOOKUP($B75,Funding,Funding!$GX$2,FALSE)), \"x\")","v":36740627},{"$f":"IFERROR((BE75/VLOOKUP($B75,Funding,Funding!$HC$2,FALSE)), \"x\")","v":0.15598591999791059},{"$f":"IFERROR((BE75/(VLOOKUP($B75,Pupils,Pupils!$D$3,FALSE)+VLOOKUP($B75,Pupils,Pupils!$E$3,FALSE))), \"x\")","v":4182.2},{"$f":"IFERROR((VLOOKUP($B75,Funding,Funding!$GP$2,FALSE)), \"x\")","v":36568574.109999999},{"$f":"IFERROR((BH75/VLOOKUP($B75,Funding,Funding!$GU$2,FALSE)), \"x\")","v":0.14674698752871909},{"$f":"IFERROR((BH75/(VLOOKUP($B75,Pupils,Pupils!$G$3,FALSE)+VLOOKUP($B75,Pupils,Pupils!$H$3,FALSE))), \"x\")","v":4048.7792415854738},{"$f":"IFERROR((VLOOKUP($B75,Funding,Funding!$GH$2,FALSE)), \"x\")","v":37210497.859999999},{"$f":"IFERROR((BK75/VLOOKUP($B75,Funding,Funding!$GM$2,FALSE)), \"x\")","v":0.15385149647644888},{"$f":"IFERROR((BK75/(VLOOKUP($B75,Pupils,Pupils!$J$3,FALSE)+VLOOKUP($B75,Pupils,Pupils!$K$3,FALSE))), \"x\")","v":4020.5832371690976},{"$f":"IFERROR((VLOOKUP($B75,Funding,Funding!$FZ$2,FALSE)), \"x\")","v":42072151.659999996},{"$f":"IFERROR((BN75/VLOOKUP($B75,Funding,Funding!$GE$2,FALSE)), \"x\")","v":0.17049598867547613},{"$f":"IFERROR((BN75/(VLOOKUP($B75,Pupils,Pupils!$M$3,FALSE)+VLOOKUP($B75,Pupils,Pupils!$P$3,FALSE))), \"x\")","v":4591.0248428633777},{"$f":"IFERROR((VLOOKUP($B75,Funding,Funding!$FD$2,FALSE)), \"x\")","v":31173191.289999999},{"$f":"IFERROR((BQ75/VLOOKUP($B75,Funding,Funding!$FR$2,FALSE)), \"x\")","v":0.14834401075512252},{"$f":"IFERROR((BQ75/(VLOOKUP($B75,Pupils,Pupils!$R$3,FALSE)+VLOOKUP($B75,Pupils,Pupils!$U$3,FALSE))), \"x\")","v":3452.1806522702104},{"$f":"(VLOOKUP(B75,Funding,Funding!$HK$2,FALSE)+VLOOKUP(B75,Funding,Funding!$HL$2,FALSE)+VLOOKUP(B75,Funding,Funding!$HM$2,FALSE))/(VLOOKUP(B75,Funding,Funding!$HN$2,FALSE))","v":0.20281995661605207},{"$f":"IFERROR((VLOOKUP(B75,Other_data,Other!$D$3,FALSE)+VLOOKUP(B75,Other_data,Other!$E$3,FALSE)+VLOOKUP(B75,Other_data,Other!$F$3,FALSE)), \"x\")","v":1580},{"$f":"(VLOOKUP(B75,Other_data,Other!$AK$3,FALSE)+VLOOKUP(B75,Other_data,Other!$AL$3,FALSE))/VLOOKUP(B75,Other_data,Other!$AJ$3,FALSE)","v":3.8083762369007193E-2},{"$f":"(VLOOKUP(B75,Other_data,Other!$AR$3,FALSE)+VLOOKUP(B75,Other_data,Other!$AS$3,FALSE))/VLOOKUP(B75,Other_data,Other!$AQ$3,FALSE)","v":4.2344574938045471E-2},{"$f":"VLOOKUP(B75,Other_data,Other!$AP$3,FALSE)/VLOOKUP(B75,Other_data,Other!$AJ$3,FALSE)","v":8.9275933837222043E-3},{"$f":"VLOOKUP(B75,Other_data,Other!$AW$3,FALSE)/VLOOKUP(B75,Other_data,Other!$AQ$3,FALSE)","v":1.0747764249542074E-2}]
[70,888,"Lancashire",{"$f":"IFERROR((VLOOKUP($B76,Pupils,Pupils!$D$3,FALSE)/VLOOKUP($B76,Pupils,Pupils!$C$3,FALSE)), \"x\")","v":3.6152427709686991E-2},{"$f":"IFERROR((VLOOKUP($B76,Pupils,Pupils!$G$3,FALSE)/VLOOKUP($B76,Pupils,Pupils!$F$3,FALSE)),\"x\")","v":3.4914048259572499E-2},{"$f":"IFERROR((VLOOKUP($B76,Pupils,Pupils!$J$3,FALSE)/VLOOKUP($B76,Pupils,Pupils!$I$3,FALSE)), \"x\")","v":3.4907103953285216E-2},{"$f":"IFERROR((VLOOKUP($B76,Pupils,Pupils!$M$3,FALSE)/VLOOKUP($B76,Pupils,Pupils!$L$3,FALSE)), \"x\")","v":3.4114094507467559E-2},{"$f":"IFERROR((VLOOKUP($B76,Pupils,Pupils!$R$3,FALSE)/VLOOKUP($B76,Pupils,Pupils!$Q$3,FALSE)), \"x\")","v":3.3292890356962479E-2},{"$f":"IFERROR((VLOOKUP($B76,Pupils,Pupils!$W$3,FALSE)/VLOOKUP($B76,Pupils,Pupils!$V$3,FALSE)), \"x\")","v":3.1797897459285643E-2},{"$f":"IFERROR(((VLOOKUP($B76,Pupils,Pupils!$D$3,FALSE)+VLOOKUP($B76,Pupils,Pupils!$E$3,FALSE))/VLOOKUP($B76,Pupils,Pupils!$C$3,FALSE)), \"x\")","v":0.18294349983421654},{"$f":"IFERROR(((VLOOKUP($B76,Pupils,Pupils!$G$3,FALSE)+VLOOKUP($B76,Pupils,Pupils!$H$3,FALSE))/VLOOKUP($B76,Pupils,Pupils!$F$3,FALSE)), \"x\")","v":0.18402405359309337},{"$f":"IFERROR(((VLOOKUP($B76,Pupils,Pupils!$J$3,FALSE)+VLOOKUP($B76,Pupils,Pupils!$K$3,FALSE))/VLOOKUP($B76,Pupils,Pupils!$I$3,FALSE)), \"x\")","v":0.17926679838421267},{"$f":"IFERROR(((VLOOKUP($B76,Pupils,Pupils!$M$3,FALSE)+VLOOKUP($B76,Pupils,Pupils!$P$3,FALSE))/VLOOKUP($B76,Pupils,Pupils!$L$3,FALSE)), \"x\")","v":0.1718587867694209},{"$f":"IFERROR(((VLOOKUP($B76,Pupils,Pupils!$R$3,FALSE)+VLOOKUP($B76,Pupils,Pupils!$U$3,FALSE))/VLOOKUP($B76,Pupils,Pupils!$Q$3,FALSE)), \"x\")","v":0.16260979107042303},{"$f":"IFERROR(((VLOOKUP($B76,Pupils,Pupils!$W$3,FALSE)+VLOOKUP($B76,Pupils,Pupils!$Z$3,FALSE))/VLOOKUP($B76,Pupils,Pupils!$V$3,FALSE)), \"x\")","v":0.15546216061748422},{"$f":"(SUM(INDEX(Pupils!$AB$7:$AB$159,MATCH($B76,Pupils!$A$7:$A$159,0)),INDEX(Pupils!$AC$7:$AC$159,MATCH($B76,Pupils!$A$7:$A$159,0)),INDEX(Pupils!$AD$7:$AD$159,MATCH($B76,Pupils!$A$7:$A$159,0)),INDEX(Pupils!$AE$7:$AE$159,MATCH($B76,Pupils!$A$7:$A$159,0))))/SUM(INDEX(Pupils!$AB$7:$AM$159,MATCH($B76,Pupils!$A$7:$A$159,0),0))","v":0.33172526573998362},{"$f":"SUM(INDEX(Pupils!$AF$7:$AF$159,MATCH($B76,Pupils!$A$7:$A$159,0)))/SUM(INDEX(Pupils!$AB$7:$AM$159,MATCH($B76,Pupils!$A$7:$A$159,0),0))","v":0.20686835650040883},{"$f":"SUM(INDEX(Pupils!$AG$7:$AG$159,MATCH($B76,Pupils!$A$7:$A$159,0)))/SUM(INDEX(Pupils!$AB$7:$AM$159,MATCH($B76,Pupils!$A$7:$A$159,0),0))","v":0.17497955846279639},{"$f":"(SUM(INDEX(Pupils!$AH$7:$AH$159,MATCH($B76,Pupils!$A$7:$A$159,0)),INDEX(Pupils!$AI$7:$AI$159,MATCH($B76,Pupils!$A$7:$A$159,0)),INDEX(Pupils!$AJ$7:$AJ$159,MATCH($B76,Pupils!$A$7:$A$159,0))))/SUM(INDEX(Pupils!$AB$7:$AM$159,MATCH($B76,Pupils!$A$7:$A$159,0),0))","v":5.1921504497138185E-2},{"$f":"SUM(INDEX(Pupils!$AK$7:$AK$159,MATCH($B76,Pupils!$A$7:$A$159,0)))/SUM(INDEX(Pupils!$AB$7:$AM$159,MATCH($B76,Pupils!$A$7:$A$159,0),0))","v":5.6418642681929684E-2},{"$f":"SUM(INDEX(Pupils!$AL$7:$AL$159,MATCH($B76,Pupils!$A$7:$A$159,0)))/SUM(INDEX(Pupils!$AB$7:$AM$159,MATCH($B76,Pupils!$A$7:$A$159,0),0))","v":0.12395748160261652},{"$f":"SUM(INDEX(Pupils!$AM$7:$AM$159,MATCH($B76,Pupils!$A$7:$A$159,0)))/SUM(INDEX(Pupils!$AB$7:$AM$159,MATCH($B76,Pupils!$A$7:$A$159,0),0))","v":5.4129190515126741E-2},{"$f":"(SUM(INDEX(Pupils!$BH$7:$BH$159,MATCH($B76,Pupils!$A$7:$A$159,0)),INDEX(Pupils!$BK$7:$BK$159,MATCH($B76,Pupils!$A$7:$A$159,0)),INDEX(Pupils!$BO$7:$BO$159,MATCH($B76,Pupils!$A$7:$A$159,0))))/SUM(INDEX(Pupils!$BH$7:$BS$159,MATCH($B76,Pupils!$A$7:$A$159,0),0))","v":0.46155306626162901},{"$f":"(SUM(INDEX(Pupils!$BL$7:$BL$159,MATCH($B76,Pupils!$A$7:$A$159,0)),INDEX(Pupils!$BM$7:$BM$159,MATCH($B76,Pupils!$A$7:$A$159,0)),INDEX(Pupils!$BP$7:$BP$159,MATCH($B76,Pupils!$A$7:$A$159,0))))/SUM(INDEX(Pupils!$BH$7:$BS$159,MATCH($B76,Pupils!$A$7:$A$159,0),0))","v":0.51376495158534274},{"$f":"(SUM(INDEX(Pupils!$BI$7:$BI$159,MATCH($B76,Pupils!$A$7:$A$159,0)),INDEX(Pupils!$BJ$7:$BJ$159,MATCH($B76,Pupils!$A$7:$A$159,0))))/SUM(INDEX(Pupils!$BH$7:$BS$159,MATCH($B76,Pupils!$A$7:$A$159,0),0))","v":8.9234858553256125E-3},{"$f":"(SUM(INDEX(Pupils!$BQ$7:$BQ$159,MATCH($B76,Pupils!$A$7:$A$159,0)),INDEX(Pupils!$BR$7:$BR$159,MATCH($B76,Pupils!$A$7:$A$159,0)),INDEX(Pupils!$BN$7:$BN$159,MATCH($B76,Pupils!$A$7:$A$159,0)),INDEX(Pupils!$BS$7:$BS$159,MATCH($B76,Pupils!$A$7:$A$159,0))))/SUM(INDEX(Pupils!$BH$7:$BS$159,MATCH($B76,Pupils!$A$7:$A$159,0),0))","v":1.5758496297702675E-2},{"$f":"IFERROR((VLOOKUP(B76,Funding,Funding!$C$2,FALSE)), \"x\")","v":84740448.75},{"$f":"IFERROR((AA76/VLOOKUP(B76,Funding,Funding!$D$2,FALSE)), \"x\")","v":0.10490260336469945},{"$f":"IFERROR((AA76/(VLOOKUP(B76,Pupils,Pupils!$M$3,FALSE)+VLOOKUP(B76,Pupils,Pupils!$P$3,FALSE))), \"x\")","v":2874.4088989518673},{"$f":"IFERROR((VLOOKUP(B76,Funding,Funding!$E$2,FALSE)), \"x\")","v":91965018.810024202},{"$f":"IFERROR((AD76/VLOOKUP(B76,Funding,Funding!$F$2,FALSE)), \"x\")","v":0.1105371431259381},{"$f":"IFERROR((AD76/(VLOOKUP(B76,Pupils,Pupils!$R$3,FALSE)+VLOOKUP(B76,Pupils,Pupils!$U$3,FALSE))), \"x\")","v":3283.1751386963765},{"$f":"IFERROR((VLOOKUP(B76,Funding,Funding!$G$2,FALSE)), \"x\")","v":98001229.095219314},{"$f":"IFERROR((AG76/VLOOKUP(B76,Funding,Funding!$H$2,FALSE)), \"x\")","v":0.11585451169963812},{"$f":"IFERROR((AG76/(VLOOKUP(B76,Pupils,Pupils!$W$3,FALSE)+VLOOKUP(B76,Pupils,Pupils!$Z$3,FALSE))), \"x\")","v":3639.2450182041412},{"$f":"IFERROR((VLOOKUP(B76,Funding,Funding!$I$2,FALSE)), \"x\")","v":100404644.58346088},{"$f":"IFERROR((AJ76/VLOOKUP(B76,Funding,Funding!$J$2,FALSE)), \"x\")","v":0.11953545786684423},null,{"$f":"IFERROR((VLOOKUP($B76,Funding,Funding!$EC$2,FALSE)), \"x\")","v":66892739.409999996},{"$f":"IFERROR((AM76/VLOOKUP($B76,Funding,Funding!$EU$2,FALSE)), \"x\")","v":8.0837043255949023E-2},{"$f":"IFERROR((AM76/(VLOOKUP($B76,Pupils,Pupils!$D$3,FALSE)+VLOOKUP($B76,Pupils,Pupils!$E$3,FALSE))), \"x\")","v":2126.9551481717008},{"$f":"IFERROR((VLOOKUP($B76,Funding,Funding!$DA$2,FALSE)), \"x\")","v":70567908},{"$f":"IFERROR((AP76/VLOOKUP($B76,Funding,Funding!$DT$2,FALSE)), \"x\")","v":8.1533437998011618E-2},{"$f":"IFERROR((AP76/(VLOOKUP($B76,Pupils,Pupils!$G$3,FALSE)+VLOOKUP($B76,Pupils,Pupils!$H$3,FALSE))), \"x\")","v":2247.5287597936176},{"$f":"IFERROR((VLOOKUP($B76,Funding,Funding!$CE$2,FALSE)), \"x\")","v":72466283},{"$f":"IFERROR((AS76/VLOOKUP($B76,Funding,Funding!$CR$2,FALSE)), \"x\")","v":8.8219051824807965E-2},{"$f":"IFERROR((AS76/(VLOOKUP($B76,Pupils,Pupils!$J$3,FALSE)+VLOOKUP($B76,Pupils,Pupils!$K$3,FALSE))), \"x\")","v":2369.9605258854695},{"$f":"IFERROR((VLOOKUP($B76,Funding,Funding!$BM$2,FALSE)), \"x\")","v":72102115.560000002},{"$f":"IFERROR((AV76/VLOOKUP($B76,Funding,Funding!$BY$2,FALSE)), \"x\")","v":9.048615568868483E-2},{"$f":"IFERROR((AV76/(VLOOKUP($B76,Pupils,Pupils!$M$3,FALSE)+VLOOKUP($B76,Pupils,Pupils!$P$3,FALSE))), \"x\")","v":2445.7147165971305},{"$f":"IFERROR((VLOOKUP($B76,Funding,Funding!$AQ$2,FALSE)), \"x\")","v":92925798},{"$f":"IFERROR((AY76/VLOOKUP($B76,Funding,Funding!$BE$2,FALSE)), \"x\")","v":0.10905011520856504},{"$f":"IFERROR((AY76/(VLOOKUP($B76,Pupils,Pupils!$R$3,FALSE)+VLOOKUP($B76,Pupils,Pupils!$U$3,FALSE))), \"x\")","v":3317.4752061690051},{"$f":"IFERROR((VLOOKUP($B76,Funding,Funding!$S$2,FALSE)), \"x\")","v":87391132},{"$f":"IFERROR((BB76/VLOOKUP($B76,Funding,Funding!$AH$2,FALSE)), \"x\")","v":0.10156660938332961},{"$f":"IFERROR((BB76/(VLOOKUP(B76,Pupils,Pupils!$W$3,FALSE)+VLOOKUP(B76,Pupils,Pupils!$Z$3,FALSE))), \"x\")","v":3245.2423781053881},{"$f":"IFERROR((VLOOKUP($B76,Funding,Funding!$GX$2,FALSE)), \"x\")","v":131650119.26000001},{"$f":"IFERROR((BE76/VLOOKUP($B76,Funding,Funding!$HC$2,FALSE)), \"x\")","v":0.15170065932233853},{"$f":"IFERROR((BE76/(VLOOKUP($B76,Pupils,Pupils!$D$3,FALSE)+VLOOKUP($B76,Pupils,Pupils!$E$3,FALSE))), \"x\")","v":4186.0133310015899},{"$f":"IFERROR((VLOOKUP($B76,Funding,Funding!$GP$2,FALSE)), \"x\")","v":131919757},{"$f":"IFERROR((BH76/VLOOKUP($B76,Funding,Funding!$GU$2,FALSE)), \"x\")","v":0.14599243070399703},{"$f":"IFERROR((BH76/(VLOOKUP($B76,Pupils,Pupils!$G$3,FALSE)+VLOOKUP($B76,Pupils,Pupils!$H$3,FALSE))), \"x\")","v":4201.5337601121091},{"$f":"IFERROR((VLOOKUP($B76,Funding,Funding!$GH$2,FALSE)), \"x\")","v":174394304.30000001},{"$f":"IFERROR((BK76/VLOOKUP($B76,Funding,Funding!$GM$2,FALSE)), \"x\")","v":0.19904275264653679},{"$f":"IFERROR((BK76/(VLOOKUP($B76,Pupils,Pupils!$J$3,FALSE)+VLOOKUP($B76,Pupils,Pupils!$K$3,FALSE))), \"x\")","v":5703.447175981948},{"$f":"IFERROR((VLOOKUP($B76,Funding,Funding!$FZ$2,FALSE)), \"x\")","v":164234633.47999999},{"$f":"IFERROR((BN76/VLOOKUP($B76,Funding,Funding!$GE$2,FALSE)), \"x\")","v":0.18917456090490375},{"$f":"IFERROR((BN76/(VLOOKUP($B76,Pupils,Pupils!$M$3,FALSE)+VLOOKUP($B76,Pupils,Pupils!$P$3,FALSE))), \"x\")","v":5570.8637251110886},{"$f":"IFERROR((VLOOKUP($B76,Funding,Funding!$FD$2,FALSE)), \"x\")","v":87153040},{"$f":"IFERROR((BQ76/VLOOKUP($B76,Funding,Funding!$FR$2,FALSE)), \"x\")","v":0.11382674949510031},{"$f":"IFERROR((BQ76/(VLOOKUP($B76,Pupils,Pupils!$R$3,FALSE)+VLOOKUP($B76,Pupils,Pupils!$U$3,FALSE))), \"x\")","v":3111.3862411195601},{"$f":"(VLOOKUP(B76,Funding,Funding!$HK$2,FALSE)+VLOOKUP(B76,Funding,Funding!$HL$2,FALSE)+VLOOKUP(B76,Funding,Funding!$HM$2,FALSE))/(VLOOKUP(B76,Funding,Funding!$HN$2,FALSE))","v":0.22413356944093094},{"$f":"IFERROR((VLOOKUP(B76,Other_data,Other!$D$3,FALSE)+VLOOKUP(B76,Other_data,Other!$E$3,FALSE)+VLOOKUP(B76,Other_data,Other!$F$3,FALSE)), \"x\")","v":6640},{"$f":"(VLOOKUP(B76,Other_data,Other!$AK$3,FALSE)+VLOOKUP(B76,Other_data,Other!$AL$3,FALSE))/VLOOKUP(B76,Other_data,Other!$AJ$3,FALSE)","v":3.773946987816465E-2},{"$f":"(VLOOKUP(B76,Other_data,Other!$AR$3,FALSE)+VLOOKUP(B76,Other_data,Other!$AS$3,FALSE))/VLOOKUP(B76,Other_data,Other!$AQ$3,FALSE)","v":5.4432883308968956E-2},{"$f":"VLOOKUP(B76,Other_data,Other!$AP$3,FALSE)/VLOOKUP(B76,Other_data,Other!$AJ$3,FALSE)","v":5.9536903987381174E-3},{"$f":"VLOOKUP(B76,Other_data,Other!$AW$3,FALSE)/VLOOKUP(B76,Other_data,Other!$AQ$3,FALSE)","v":1.1859067065877625E-2}]
[71,383,"Leeds",{"$f":"IFERROR((VLOOKUP($B77,Pupils,Pupils!$D$3,FALSE)/VLOOKUP($B77,Pupils,Pupils!$C$3,FALSE)), \"x\")","v":1.8541659333309868E-2},{"$f":"IFERROR((VLOOKUP($B77,Pupils,Pupils!$G$3,FALSE)/VLOOKUP($B77,Pupils,Pupils!$F$3,FALSE)),\"x\")","v":1.7595230558193523E-2},{"$f":"IFERROR((VLOOKUP($B77,Pupils,Pupils!$J$3,FALSE)/VLOOKUP($B77,Pupils,Pupils!$I$3,FALSE)), \"x\")","v":1.7393668809809925E-2},{"$f":"IFERROR((VLOOKUP($B77,Pupils,Pupils!$M$3,FALSE)/VLOOKUP($B77,Pupils,Pupils!$L$3,FALSE)), \"x\")","v":1.6792750128404907E-2},{"$f":"IFERROR((VLOOKUP($B77,Pupils,Pupils!$R$3,FALSE)/VLOOKUP($B77,Pupils,Pupils!$Q$3,FALSE)), \"x\")","v":1.7087238022984147E-2},{"$f":"IFERROR((VLOOKUP($B77,Pupils,Pupils!$W$3,FALSE)/VLOOKUP($B77,Pupils,Pupils!$V$3,FALSE)), \"x\")","v":1.7275089507139411E-2},{"$f":"IFERROR(((VLOOKUP($B77,Pupils,Pupils!$D$3,FALSE)+VLOOKUP($B77,Pupils,Pupils!$E$3,FALSE))/VLOOKUP($B77,Pupils,Pupils!$C$3,FALSE)), \"x\")","v":0.19956703861452357},{"$f":"IFERROR(((VLOOKUP($B77,Pupils,Pupils!$G$3,FALSE)+VLOOKUP($B77,Pupils,Pupils!$H$3,FALSE))/VLOOKUP($B77,Pupils,Pupils!$F$3,FALSE)), \"x\")","v":0.19513031550068588},{"$f":"IFERROR(((VLOOKUP($B77,Pupils,Pupils!$J$3,FALSE)+VLOOKUP($B77,Pupils,Pupils!$K$3,FALSE))/VLOOKUP($B77,Pupils,Pupils!$I$3,FALSE)), \"x\")","v":0.19124264299560553},{"$f":"IFERROR(((VLOOKUP($B77,Pupils,Pupils!$M$3,FALSE)+VLOOKUP($B77,Pupils,Pupils!$P$3,FALSE))/VLOOKUP($B77,Pupils,Pupils!$L$3,FALSE)), \"x\")","v":0.18348408214431841},{"$f":"IFERROR(((VLOOKUP($B77,Pupils,Pupils!$R$3,FALSE)+VLOOKUP($B77,Pupils,Pupils!$U$3,FALSE))/VLOOKUP($B77,Pupils,Pupils!$Q$3,FALSE)), \"x\")","v":0.17204486477632272},{"$f":"IFERROR(((VLOOKUP($B77,Pupils,Pupils!$W$3,FALSE)+VLOOKUP($B77,Pupils,Pupils!$Z$3,FALSE))/VLOOKUP($B77,Pupils,Pupils!$V$3,FALSE)), \"x\")","v":0.16717309792038731},{"$f":"(SUM(INDEX(Pupils!$AB$7:$AB$159,MATCH($B77,Pupils!$A$7:$A$159,0)),INDEX(Pupils!$AC$7:$AC$159,MATCH($B77,Pupils!$A$7:$A$159,0)),INDEX(Pupils!$AD$7:$AD$159,MATCH($B77,Pupils!$A$7:$A$159,0)),INDEX(Pupils!$AE$7:$AE$159,MATCH($B77,Pupils!$A$7:$A$159,0))))/SUM(INDEX(Pupils!$AB$7:$AM$159,MATCH($B77,Pupils!$A$7:$A$159,0),0))","v":0.26797318205260445},{"$f":"SUM(INDEX(Pupils!$AF$7:$AF$159,MATCH($B77,Pupils!$A$7:$A$159,0)))/SUM(INDEX(Pupils!$AB$7:$AM$159,MATCH($B77,Pupils!$A$7:$A$159,0),0))","v":0.2107271789582259},{"$f":"SUM(INDEX(Pupils!$AG$7:$AG$159,MATCH($B77,Pupils!$A$7:$A$159,0)))/SUM(INDEX(Pupils!$AB$7:$AM$159,MATCH($B77,Pupils!$A$7:$A$159,0),0))","v":0.3454357916451779},{"$f":"(SUM(INDEX(Pupils!$AH$7:$AH$159,MATCH($B77,Pupils!$A$7:$A$159,0)),INDEX(Pupils!$AI$7:$AI$159,MATCH($B77,Pupils!$A$7:$A$159,0)),INDEX(Pupils!$AJ$7:$AJ$159,MATCH($B77,Pupils!$A$7:$A$159,0))))/SUM(INDEX(Pupils!$AB$7:$AM$159,MATCH($B77,Pupils!$A$7:$A$159,0),0))","v":4.8684889118102113E-2},{"$f":"SUM(INDEX(Pupils!$AK$7:$AK$159,MATCH($B77,Pupils!$A$7:$A$159,0)))/SUM(INDEX(Pupils!$AB$7:$AM$159,MATCH($B77,Pupils!$A$7:$A$159,0),0))","v":2.7746260959257349E-2},{"$f":"SUM(INDEX(Pupils!$AL$7:$AL$159,MATCH($B77,Pupils!$A$7:$A$159,0)))/SUM(INDEX(Pupils!$AB$7:$AM$159,MATCH($B77,Pupils!$A$7:$A$159,0),0))","v":5.1882413615265598E-2},{"$f":"SUM(INDEX(Pupils!$AM$7:$AM$159,MATCH($B77,Pupils!$A$7:$A$159,0)))/SUM(INDEX(Pupils!$AB$7:$AM$159,MATCH($B77,Pupils!$A$7:$A$159,0),0))","v":4.7550283651366682E-2},{"$f":"(SUM(INDEX(Pupils!$BH$7:$BH$159,MATCH($B77,Pupils!$A$7:$A$159,0)),INDEX(Pupils!$BK$7:$BK$159,MATCH($B77,Pupils!$A$7:$A$159,0)),INDEX(Pupils!$BO$7:$BO$159,MATCH($B77,Pupils!$A$7:$A$159,0))))/SUM(INDEX(Pupils!$BH$7:$BS$159,MATCH($B77,Pupils!$A$7:$A$159,0),0))","v":0.4336782690498589},{"$f":"(SUM(INDEX(Pupils!$BL$7:$BL$159,MATCH($B77,Pupils!$A$7:$A$159,0)),INDEX(Pupils!$BM$7:$BM$159,MATCH($B77,Pupils!$A$7:$A$159,0)),INDEX(Pupils!$BP$7:$BP$159,MATCH($B77,Pupils!$A$7:$A$159,0))))/SUM(INDEX(Pupils!$BH$7:$BS$159,MATCH($B77,Pupils!$A$7:$A$159,0),0))","v":0.49529633113828786},{"$f":"(SUM(INDEX(Pupils!$BI$7:$BI$159,MATCH($B77,Pupils!$A$7:$A$159,0)),INDEX(Pupils!$BJ$7:$BJ$159,MATCH($B77,Pupils!$A$7:$A$159,0))))/SUM(INDEX(Pupils!$BH$7:$BS$159,MATCH($B77,Pupils!$A$7:$A$159,0),0))","v":6.5851364063969894E-2},{"$f":"(SUM(INDEX(Pupils!$BQ$7:$BQ$159,MATCH($B77,Pupils!$A$7:$A$159,0)),INDEX(Pupils!$BR$7:$BR$159,MATCH($B77,Pupils!$A$7:$A$159,0)),INDEX(Pupils!$BN$7:$BN$159,MATCH($B77,Pupils!$A$7:$A$159,0)),INDEX(Pupils!$BS$7:$BS$159,MATCH($B77,Pupils!$A$7:$A$159,0))))/SUM(INDEX(Pupils!$BH$7:$BS$159,MATCH($B77,Pupils!$A$7:$A$159,0),0))","v":5.1740357478833494E-3},{"$f":"IFERROR((VLOOKUP(B77,Funding,Funding!$C$2,FALSE)), \"x\")","v":53542598.480000004},{"$f":"IFERROR((AA77/VLOOKUP(B77,Funding,Funding!$D$2,FALSE)), \"x\")","v":0.10561506170483415},{"$f":"IFERROR((AA77/(VLOOKUP(B77,Pupils,Pupils!$M$3,FALSE)+VLOOKUP(B77,Pupils,Pupils!$P$3,FALSE))), \"x\")","v":2540.3329923613419},{"$f":"IFERROR((VLOOKUP(B77,Funding,Funding!$E$2,FALSE)), \"x\")","v":54211614.386640556},{"$f":"IFERROR((AD77/VLOOKUP(B77,Funding,Funding!$F$2,FALSE)), \"x\")","v":0.10351111106953742},{"$f":"IFERROR((AD77/(VLOOKUP(B77,Pupils,Pupils!$R$3,FALSE)+VLOOKUP(B77,Pupils,Pupils!$U$3,FALSE))), \"x\")","v":2716.5571450511402},{"$f":"IFERROR((VLOOKUP(B77,Funding,Funding!$G$2,FALSE)), \"x\")","v":56902539.593291387},{"$f":"IFERROR((AG77/VLOOKUP(B77,Funding,Funding!$H$2,FALSE)), \"x\")","v":0.10550204114296011},{"$f":"IFERROR((AG77/(VLOOKUP(B77,Pupils,Pupils!$W$3,FALSE)+VLOOKUP(B77,Pupils,Pupils!$Z$3,FALSE))), \"x\")","v":2880.9953720465487},{"$f":"IFERROR((VLOOKUP(B77,Funding,Funding!$I$2,FALSE)), \"x\")","v":57899214.305536605},{"$f":"IFERROR((AJ77/VLOOKUP(B77,Funding,Funding!$J$2,FALSE)), \"x\")","v":0.10595926333620032},null,{"$f":"IFERROR((VLOOKUP($B77,Funding,Funding!$EC$2,FALSE)), \"x\")","v":23248476},{"$f":"IFERROR((AM77/VLOOKUP($B77,Funding,Funding!$EU$2,FALSE)), \"x\")","v":4.5272041167966966E-2},{"$f":"IFERROR((AM77/(VLOOKUP($B77,Pupils,Pupils!$D$3,FALSE)+VLOOKUP($B77,Pupils,Pupils!$E$3,FALSE))), \"x\")","v":1025.155481082988},{"$f":"IFERROR((VLOOKUP($B77,Funding,Funding!$DA$2,FALSE)), \"x\")","v":24216325},{"$f":"IFERROR((AP77/VLOOKUP($B77,Funding,Funding!$DT$2,FALSE)), \"x\")","v":4.571459546863741E-2},{"$f":"IFERROR((AP77/(VLOOKUP($B77,Pupils,Pupils!$G$3,FALSE)+VLOOKUP($B77,Pupils,Pupils!$H$3,FALSE))), \"x\")","v":1091.2678563381551},{"$f":"IFERROR((VLOOKUP($B77,Funding,Funding!$CE$2,FALSE)), \"x\")","v":25319120},{"$f":"IFERROR((AS77/VLOOKUP($B77,Funding,Funding!$CR$2,FALSE)), \"x\")","v":4.9579089108346318E-2},{"$f":"IFERROR((AS77/(VLOOKUP($B77,Pupils,Pupils!$J$3,FALSE)+VLOOKUP($B77,Pupils,Pupils!$K$3,FALSE))), \"x\")","v":1161.267715452002},{"$f":"IFERROR((VLOOKUP($B77,Funding,Funding!$BM$2,FALSE)), \"x\")","v":27930387.23},{"$f":"IFERROR((AV77/VLOOKUP($B77,Funding,Funding!$BY$2,FALSE)), \"x\")","v":5.6268945027511709E-2},{"$f":"IFERROR((AV77/(VLOOKUP($B77,Pupils,Pupils!$M$3,FALSE)+VLOOKUP($B77,Pupils,Pupils!$P$3,FALSE))), \"x\")","v":1325.1595212791194},{"$f":"IFERROR((VLOOKUP($B77,Funding,Funding!$AQ$2,FALSE)), \"x\")","v":47292038},{"$f":"IFERROR((AY77/VLOOKUP($B77,Funding,Funding!$BE$2,FALSE)), \"x\")","v":8.6816167786241016E-2},{"$f":"IFERROR((AY77/(VLOOKUP($B77,Pupils,Pupils!$R$3,FALSE)+VLOOKUP($B77,Pupils,Pupils!$U$3,FALSE))), \"x\")","v":2369.8154940869913},{"$f":"IFERROR((VLOOKUP($B77,Funding,Funding!$S$2,FALSE)), \"x\")","v":46065002},{"$f":"IFERROR((BB77/VLOOKUP($B77,Funding,Funding!$AH$2,FALSE)), \"x\")","v":8.1325133290987298E-2},{"$f":"IFERROR((BB77/(VLOOKUP(B77,Pupils,Pupils!$W$3,FALSE)+VLOOKUP(B77,Pupils,Pupils!$Z$3,FALSE))), \"x\")","v":2332.2870740721987},{"$f":"IFERROR((VLOOKUP($B77,Funding,Funding!$GX$2,FALSE)), \"x\")","v":54680779},{"$f":"IFERROR((BE77/VLOOKUP($B77,Funding,Funding!$HC$2,FALSE)), \"x\")","v":9.704266444806775E-2},{"$f":"IFERROR((BE77/(VLOOKUP($B77,Pupils,Pupils!$D$3,FALSE)+VLOOKUP($B77,Pupils,Pupils!$E$3,FALSE))), \"x\")","v":2411.1817179645473},{"$f":"IFERROR((VLOOKUP($B77,Funding,Funding!$GP$2,FALSE)), \"x\")","v":56046279},{"$f":"IFERROR((BH77/VLOOKUP($B77,Funding,Funding!$GU$2,FALSE)), \"x\")","v":9.7522113180466288E-2},{"$f":"IFERROR((BH77/(VLOOKUP($B77,Pupils,Pupils!$G$3,FALSE)+VLOOKUP($B77,Pupils,Pupils!$H$3,FALSE))), \"x\")","v":2525.6310666486415},{"$f":"IFERROR((VLOOKUP($B77,Funding,Funding!$GH$2,FALSE)), \"x\")","v":55199330.609999999},{"$f":"IFERROR((BK77/VLOOKUP($B77,Funding,Funding!$GM$2,FALSE)), \"x\")","v":0.10103504029636928},{"$f":"IFERROR((BK77/(VLOOKUP($B77,Pupils,Pupils!$J$3,FALSE)+VLOOKUP($B77,Pupils,Pupils!$K$3,FALSE))), \"x\")","v":2531.7309824336098},{"$f":"IFERROR((VLOOKUP($B77,Funding,Funding!$FZ$2,FALSE)), \"x\")","v":88856104.549999997},{"$f":"IFERROR((BN77/VLOOKUP($B77,Funding,Funding!$GE$2,FALSE)), \"x\")","v":0.16868173978700818},{"$f":"IFERROR((BN77/(VLOOKUP($B77,Pupils,Pupils!$M$3,FALSE)+VLOOKUP($B77,Pupils,Pupils!$P$3,FALSE))), \"x\")","v":4215.7851947620629},{"$f":"IFERROR((VLOOKUP($B77,Funding,Funding!$FD$2,FALSE)), \"x\")","v":41563802},{"$f":"IFERROR((BQ77/VLOOKUP($B77,Funding,Funding!$FR$2,FALSE)), \"x\")","v":9.2713547084790487E-2},{"$f":"IFERROR((BQ77/(VLOOKUP($B77,Pupils,Pupils!$R$3,FALSE)+VLOOKUP($B77,Pupils,Pupils!$U$3,FALSE))), \"x\")","v":2082.7721988374424},{"$f":"(VLOOKUP(B77,Funding,Funding!$HK$2,FALSE)+VLOOKUP(B77,Funding,Funding!$HL$2,FALSE)+VLOOKUP(B77,Funding,Funding!$HM$2,FALSE))/(VLOOKUP(B77,Funding,Funding!$HN$2,FALSE))","v":0.26832377310388783},{"$f":"IFERROR((VLOOKUP(B77,Other_data,Other!$D$3,FALSE)+VLOOKUP(B77,Other_data,Other!$E$3,FALSE)+VLOOKUP(B77,Other_data,Other!$F$3,FALSE)), \"x\")","v":3420},{"$f":"(VLOOKUP(B77,Other_data,Other!$AK$3,FALSE)+VLOOKUP(B77,Other_data,Other!$AL$3,FALSE))/VLOOKUP(B77,Other_data,Other!$AJ$3,FALSE)","v":3.366792441835055E-2},{"$f":"(VLOOKUP(B77,Other_data,Other!$AR$3,FALSE)+VLOOKUP(B77,Other_data,Other!$AS$3,FALSE))/VLOOKUP(B77,Other_data,Other!$AQ$3,FALSE)","v":4.4921606043318317E-2},{"$f":"VLOOKUP(B77,Other_data,Other!$AP$3,FALSE)/VLOOKUP(B77,Other_data,Other!$AJ$3,FALSE)","v":5.9876750047347799E-3},{"$f":"VLOOKUP(B77,Other_data,Other!$AW$3,FALSE)/VLOOKUP(B77,Other_data,Other!$AQ$3,FALSE)","v":1.0564003698384908E-2}]
[72,856,"Leicester",{"$f":"IFERROR((VLOOKUP($B78,Pupils,Pupils!$D$3,FALSE)/VLOOKUP($B78,Pupils,Pupils!$C$3,FALSE)), \"x\")","v":2.8215170649828151E-2},{"$f":"IFERROR((VLOOKUP($B78,Pupils,Pupils!$G$3,FALSE)/VLOOKUP($B78,Pupils,Pupils!$F$3,FALSE)),\"x\")","v":2.8899036022323694E-2},{"$f":"IFERROR((VLOOKUP($B78,Pupils,Pupils!$J$3,FALSE)/VLOOKUP($B78,Pupils,Pupils!$I$3,FALSE)), \"x\")","v":2.8975890289758902E-2},{"$f":"IFERROR((VLOOKUP($B78,Pupils,Pupils!$M$3,FALSE)/VLOOKUP($B78,Pupils,Pupils!$L$3,FALSE)), \"x\")","v":2.817992254989574E-2},{"$f":"IFERROR((VLOOKUP($B78,Pupils,Pupils!$R$3,FALSE)/VLOOKUP($B78,Pupils,Pupils!$Q$3,FALSE)), \"x\")","v":2.7220742597524675E-2},{"$f":"IFERROR((VLOOKUP($B78,Pupils,Pupils!$W$3,FALSE)/VLOOKUP($B78,Pupils,Pupils!$V$3,FALSE)), \"x\")","v":2.6328871892925432E-2},{"$f":"IFERROR(((VLOOKUP($B78,Pupils,Pupils!$D$3,FALSE)+VLOOKUP($B78,Pupils,Pupils!$E$3,FALSE))/VLOOKUP($B78,Pupils,Pupils!$C$3,FALSE)), \"x\")","v":0.22166493485732555},{"$f":"IFERROR(((VLOOKUP($B78,Pupils,Pupils!$G$3,FALSE)+VLOOKUP($B78,Pupils,Pupils!$H$3,FALSE))/VLOOKUP($B78,Pupils,Pupils!$F$3,FALSE)), \"x\")","v":0.23230847285641806},{"$f":"IFERROR(((VLOOKUP($B78,Pupils,Pupils!$J$3,FALSE)+VLOOKUP($B78,Pupils,Pupils!$K$3,FALSE))/VLOOKUP($B78,Pupils,Pupils!$I$3,FALSE)), \"x\")","v":0.22987673684422191},{"$f":"IFERROR(((VLOOKUP($B78,Pupils,Pupils!$M$3,FALSE)+VLOOKUP($B78,Pupils,Pupils!$P$3,FALSE))/VLOOKUP($B78,Pupils,Pupils!$L$3,FALSE)), \"x\")","v":0.22643233045377817},{"$f":"IFERROR(((VLOOKUP($B78,Pupils,Pupils!$R$3,FALSE)+VLOOKUP($B78,Pupils,Pupils!$U$3,FALSE))/VLOOKUP($B78,Pupils,Pupils!$Q$3,FALSE)), \"x\")","v":0.20867930440231866},{"$f":"IFERROR(((VLOOKUP($B78,Pupils,Pupils!$W$3,FALSE)+VLOOKUP($B78,Pupils,Pupils!$Z$3,FALSE))/VLOOKUP($B78,Pupils,Pupils!$V$3,FALSE)), \"x\")","v":0.19617590822179731},{"$f":"(SUM(INDEX(Pupils!$AB$7:$AB$159,MATCH($B78,Pupils!$A$7:$A$159,0)),INDEX(Pupils!$AC$7:$AC$159,MATCH($B78,Pupils!$A$7:$A$159,0)),INDEX(Pupils!$AD$7:$AD$159,MATCH($B78,Pupils!$A$7:$A$159,0)),INDEX(Pupils!$AE$7:$AE$159,MATCH($B78,Pupils!$A$7:$A$159,0))))/SUM(INDEX(Pupils!$AB$7:$AM$159,MATCH($B78,Pupils!$A$7:$A$159,0),0))","v":0.39979360165118677},{"$f":"SUM(INDEX(Pupils!$AF$7:$AF$159,MATCH($B78,Pupils!$A$7:$A$159,0)))/SUM(INDEX(Pupils!$AB$7:$AM$159,MATCH($B78,Pupils!$A$7:$A$159,0),0))","v":0.21609907120743035},{"$f":"SUM(INDEX(Pupils!$AG$7:$AG$159,MATCH($B78,Pupils!$A$7:$A$159,0)))/SUM(INDEX(Pupils!$AB$7:$AM$159,MATCH($B78,Pupils!$A$7:$A$159,0),0))","v":0.19422084623323013},{"$f":"(SUM(INDEX(Pupils!$AH$7:$AH$159,MATCH($B78,Pupils!$A$7:$A$159,0)),INDEX(Pupils!$AI$7:$AI$159,MATCH($B78,Pupils!$A$7:$A$159,0)),INDEX(Pupils!$AJ$7:$AJ$159,MATCH($B78,Pupils!$A$7:$A$159,0))))/SUM(INDEX(Pupils!$AB$7:$AM$159,MATCH($B78,Pupils!$A$7:$A$159,0),0))","v":4.3343653250773995E-2},{"$f":"SUM(INDEX(Pupils!$AK$7:$AK$159,MATCH($B78,Pupils!$A$7:$A$159,0)))/SUM(INDEX(Pupils!$AB$7:$AM$159,MATCH($B78,Pupils!$A$7:$A$159,0),0))","v":5.3663570691434466E-2},{"$f":"SUM(INDEX(Pupils!$AL$7:$AL$159,MATCH($B78,Pupils!$A$7:$A$159,0)))/SUM(INDEX(Pupils!$AB$7:$AM$159,MATCH($B78,Pupils!$A$7:$A$159,0),0))","v":4.4169246646026832E-2},{"$f":"SUM(INDEX(Pupils!$AM$7:$AM$159,MATCH($B78,Pupils!$A$7:$A$159,0)))/SUM(INDEX(Pupils!$AB$7:$AM$159,MATCH($B78,Pupils!$A$7:$A$159,0),0))","v":4.8710010319917438E-2},{"$f":"(SUM(INDEX(Pupils!$BH$7:$BH$159,MATCH($B78,Pupils!$A$7:$A$159,0)),INDEX(Pupils!$BK$7:$BK$159,MATCH($B78,Pupils!$A$7:$A$159,0)),INDEX(Pupils!$BO$7:$BO$159,MATCH($B78,Pupils!$A$7:$A$159,0))))/SUM(INDEX(Pupils!$BH$7:$BS$159,MATCH($B78,Pupils!$A$7:$A$159,0),0))","v":0.38253638253638256},{"$f":"(SUM(INDEX(Pupils!$BL$7:$BL$159,MATCH($B78,Pupils!$A$7:$A$159,0)),INDEX(Pupils!$BM$7:$BM$159,MATCH($B78,Pupils!$A$7:$A$159,0)),INDEX(Pupils!$BP$7:$BP$159,MATCH($B78,Pupils!$A$7:$A$159,0))))/SUM(INDEX(Pupils!$BH$7:$BS$159,MATCH($B78,Pupils!$A$7:$A$159,0),0))","v":0.55093555093555091},{"$f":"(SUM(INDEX(Pupils!$BI$7:$BI$159,MATCH($B78,Pupils!$A$7:$A$159,0)),INDEX(Pupils!$BJ$7:$BJ$159,MATCH($B78,Pupils!$A$7:$A$159,0))))/SUM(INDEX(Pupils!$BH$7:$BS$159,MATCH($B78,Pupils!$A$7:$A$159,0),0))","v":4.6431046431046431E-2},{"$f":"(SUM(INDEX(Pupils!$BQ$7:$BQ$159,MATCH($B78,Pupils!$A$7:$A$159,0)),INDEX(Pupils!$BR$7:$BR$159,MATCH($B78,Pupils!$A$7:$A$159,0)),INDEX(Pupils!$BN$7:$BN$159,MATCH($B78,Pupils!$A$7:$A$159,0)),INDEX(Pupils!$BS$7:$BS$159,MATCH($B78,Pupils!$A$7:$A$159,0))))/SUM(INDEX(Pupils!$BH$7:$BS$159,MATCH($B78,Pupils!$A$7:$A$159,0),0))","v":2.0097020097020097E-2},{"$f":"IFERROR((VLOOKUP(B78,Funding,Funding!$C$2,FALSE)), \"x\")","v":38264773},{"$f":"IFERROR((AA78/VLOOKUP(B78,Funding,Funding!$D$2,FALSE)), \"x\")","v":0.15451851514794579},{"$f":"IFERROR((AA78/(VLOOKUP(B78,Pupils,Pupils!$M$3,FALSE)+VLOOKUP(B78,Pupils,Pupils!$P$3,FALSE))), \"x\")","v":3355.9702683739697},{"$f":"IFERROR((VLOOKUP(B78,Funding,Funding!$E$2,FALSE)), \"x\")","v":38404952.727244213},{"$f":"IFERROR((AD78/VLOOKUP(B78,Funding,Funding!$F$2,FALSE)), \"x\")","v":0.149488742897953},{"$f":"IFERROR((AD78/(VLOOKUP(B78,Pupils,Pupils!$R$3,FALSE)+VLOOKUP(B78,Pupils,Pupils!$U$3,FALSE))), \"x\")","v":3604.0683865657106},{"$f":"IFERROR((VLOOKUP(B78,Funding,Funding!$G$2,FALSE)), \"x\")","v":40212331.89203272},{"$f":"IFERROR((AG78/VLOOKUP(B78,Funding,Funding!$H$2,FALSE)), \"x\")","v":0.15068857267673039},{"$f":"IFERROR((AG78/(VLOOKUP(B78,Pupils,Pupils!$W$3,FALSE)+VLOOKUP(B78,Pupils,Pupils!$Z$3,FALSE))), \"x\")","v":3919.3305937653722},{"$f":"IFERROR((VLOOKUP(B78,Funding,Funding!$I$2,FALSE)), \"x\")","v":40534653.070649423},{"$f":"IFERROR((AJ78/VLOOKUP(B78,Funding,Funding!$J$2,FALSE)), \"x\")","v":0.14906172524987651},null,{"$f":"IFERROR((VLOOKUP($B78,Funding,Funding!$EC$2,FALSE)), \"x\")","v":27580766.349999998},{"$f":"IFERROR((AM78/VLOOKUP($B78,Funding,Funding!$EU$2,FALSE)), \"x\")","v":0.11528989462174426},{"$f":"IFERROR((AM78/(VLOOKUP($B78,Pupils,Pupils!$D$3,FALSE)+VLOOKUP($B78,Pupils,Pupils!$E$3,FALSE))), \"x\")","v":2486.3216758316053},{"$f":"IFERROR((VLOOKUP($B78,Funding,Funding!$DA$2,FALSE)), \"x\")","v":29646068.17822},{"$f":"IFERROR((AP78/VLOOKUP($B78,Funding,Funding!$DT$2,FALSE)), \"x\")","v":0.11740249033689673},{"$f":"IFERROR((AP78/(VLOOKUP($B78,Pupils,Pupils!$G$3,FALSE)+VLOOKUP($B78,Pupils,Pupils!$H$3,FALSE))), \"x\")","v":2589.8548246894384},{"$f":"IFERROR((VLOOKUP($B78,Funding,Funding!$CE$2,FALSE)), \"x\")","v":27396126},{"$f":"IFERROR((AS78/VLOOKUP($B78,Funding,Funding!$CR$2,FALSE)), \"x\")","v":0.10554954759144188},{"$f":"IFERROR((AS78/(VLOOKUP($B78,Pupils,Pupils!$J$3,FALSE)+VLOOKUP($B78,Pupils,Pupils!$K$3,FALSE))), \"x\")","v":2396.4420923722882},{"$f":"IFERROR((VLOOKUP($B78,Funding,Funding!$BM$2,FALSE)), \"x\")","v":33437114.120000001},{"$f":"IFERROR((AV78/VLOOKUP($B78,Funding,Funding!$BY$2,FALSE)), \"x\")","v":0.12381638997188328},{"$f":"IFERROR((AV78/(VLOOKUP($B78,Pupils,Pupils!$M$3,FALSE)+VLOOKUP($B78,Pupils,Pupils!$P$3,FALSE))), \"x\")","v":2932.5657007542536},{"$f":"IFERROR((VLOOKUP($B78,Funding,Funding!$AQ$2,FALSE)), \"x\")","v":37116179},{"$f":"IFERROR((AY78/VLOOKUP($B78,Funding,Funding!$BE$2,FALSE)), \"x\")","v":0.14366449280402324},{"$f":"IFERROR((AY78/(VLOOKUP($B78,Pupils,Pupils!$R$3,FALSE)+VLOOKUP($B78,Pupils,Pupils!$U$3,FALSE))), \"x\")","v":3483.1249061561562},{"$f":"IFERROR((VLOOKUP($B78,Funding,Funding!$S$2,FALSE)), \"x\")","v":38902186},{"$f":"IFERROR((BB78/VLOOKUP($B78,Funding,Funding!$AH$2,FALSE)), \"x\")","v":0.14351235729310344},{"$f":"IFERROR((BB78/(VLOOKUP(B78,Pupils,Pupils!$W$3,FALSE)+VLOOKUP(B78,Pupils,Pupils!$Z$3,FALSE))), \"x\")","v":3791.6360623781675},{"$f":"IFERROR((VLOOKUP($B78,Funding,Funding!$GX$2,FALSE)), \"x\")","v":37172290},{"$f":"IFERROR((BE78/VLOOKUP($B78,Funding,Funding!$HC$2,FALSE)), \"x\")","v":0.14623930814842351},{"$f":"IFERROR((BE78/(VLOOKUP($B78,Pupils,Pupils!$D$3,FALSE)+VLOOKUP($B78,Pupils,Pupils!$E$3,FALSE))), \"x\")","v":3350.9681781303525},{"$f":"IFERROR((VLOOKUP($B78,Funding,Funding!$GP$2,FALSE)), \"x\")","v":40789257},{"$f":"IFERROR((BH78/VLOOKUP($B78,Funding,Funding!$GU$2,FALSE)), \"x\")","v":0.15437667491950363},{"$f":"IFERROR((BH78/(VLOOKUP($B78,Pupils,Pupils!$G$3,FALSE)+VLOOKUP($B78,Pupils,Pupils!$H$3,FALSE))), \"x\")","v":3563.314143443697},{"$f":"IFERROR((VLOOKUP($B78,Funding,Funding!$GH$2,FALSE)), \"x\")","v":42391180.649999999},{"$f":"IFERROR((BK78/VLOOKUP($B78,Funding,Funding!$GM$2,FALSE)), \"x\")","v":0.15783362027769179},{"$f":"IFERROR((BK78/(VLOOKUP($B78,Pupils,Pupils!$J$3,FALSE)+VLOOKUP($B78,Pupils,Pupils!$K$3,FALSE))), \"x\")","v":3708.1158721133656},{"$f":"IFERROR((VLOOKUP($B78,Funding,Funding!$FZ$2,FALSE)), \"x\")","v":39927602.390000001},{"$f":"IFERROR((BN78/VLOOKUP($B78,Funding,Funding!$GE$2,FALSE)), \"x\")","v":0.15156877857831672},{"$f":"IFERROR((BN78/(VLOOKUP($B78,Pupils,Pupils!$M$3,FALSE)+VLOOKUP($B78,Pupils,Pupils!$P$3,FALSE))), \"x\")","v":3501.8069101911947},{"$f":"IFERROR((VLOOKUP($B78,Funding,Funding!$FD$2,FALSE)), \"x\")","v":35426869.870000005},{"$f":"IFERROR((BQ78/VLOOKUP($B78,Funding,Funding!$FR$2,FALSE)), \"x\")","v":0.14406659231714167},{"$f":"IFERROR((BQ78/(VLOOKUP($B78,Pupils,Pupils!$R$3,FALSE)+VLOOKUP($B78,Pupils,Pupils!$U$3,FALSE))), \"x\")","v":3324.5936439564571},{"$f":"(VLOOKUP(B78,Funding,Funding!$HK$2,FALSE)+VLOOKUP(B78,Funding,Funding!$HL$2,FALSE)+VLOOKUP(B78,Funding,Funding!$HM$2,FALSE))/(VLOOKUP(B78,Funding,Funding!$HN$2,FALSE))","v":0.18823529411764706},{"$f":"IFERROR((VLOOKUP(B78,Other_data,Other!$D$3,FALSE)+VLOOKUP(B78,Other_data,Other!$E$3,FALSE)+VLOOKUP(B78,Other_data,Other!$F$3,FALSE)), \"x\")","v":2040},{"$f":"(VLOOKUP(B78,Other_data,Other!$AK$3,FALSE)+VLOOKUP(B78,Other_data,Other!$AL$3,FALSE))/VLOOKUP(B78,Other_data,Other!$AJ$3,FALSE)","v":3.8897963313626577E-2},{"$f":"(VLOOKUP(B78,Other_data,Other!$AR$3,FALSE)+VLOOKUP(B78,Other_data,Other!$AS$3,FALSE))/VLOOKUP(B78,Other_data,Other!$AQ$3,FALSE)","v":5.1646070192782993E-2},{"$f":"VLOOKUP(B78,Other_data,Other!$AP$3,FALSE)/VLOOKUP(B78,Other_data,Other!$AJ$3,FALSE)","v":8.5717176681458784E-3},{"$f":"VLOOKUP(B78,Other_data,Other!$AW$3,FALSE)/VLOOKUP(B78,Other_data,Other!$AQ$3,FALSE)","v":1.2001977261492833E-2}]
[73,855,"Leicestershire",{"$f":"IFERROR((VLOOKUP($B79,Pupils,Pupils!$D$3,FALSE)/VLOOKUP($B79,Pupils,Pupils!$C$3,FALSE)), \"x\")","v":2.6431940021766295E-2},{"$f":"IFERROR((VLOOKUP($B79,Pupils,Pupils!$G$3,FALSE)/VLOOKUP($B79,Pupils,Pupils!$F$3,FALSE)),\"x\")","v":2.6137328339575532E-2},{"$f":"IFERROR((VLOOKUP($B79,Pupils,Pupils!$J$3,FALSE)/VLOOKUP($B79,Pupils,Pupils!$I$3,FALSE)), \"x\")","v":2.6280865438751709E-2},{"$f":"IFERROR((VLOOKUP($B79,Pupils,Pupils!$M$3,FALSE)/VLOOKUP($B79,Pupils,Pupils!$L$3,FALSE)), \"x\")","v":2.6859005311443748E-2},{"$f":"IFERROR((VLOOKUP($B79,Pupils,Pupils!$R$3,FALSE)/VLOOKUP($B79,Pupils,Pupils!$Q$3,FALSE)), \"x\")","v":2.7832462836480516E-2},{"$f":"IFERROR((VLOOKUP($B79,Pupils,Pupils!$W$3,FALSE)/VLOOKUP($B79,Pupils,Pupils!$V$3,FALSE)), \"x\")","v":2.7378343490138391E-2},{"$f":"IFERROR(((VLOOKUP($B79,Pupils,Pupils!$D$3,FALSE)+VLOOKUP($B79,Pupils,Pupils!$E$3,FALSE))/VLOOKUP($B79,Pupils,Pupils!$C$3,FALSE)), \"x\")","v":0.16074811560320851},{"$f":"IFERROR(((VLOOKUP($B79,Pupils,Pupils!$G$3,FALSE)+VLOOKUP($B79,Pupils,Pupils!$H$3,FALSE))/VLOOKUP($B79,Pupils,Pupils!$F$3,FALSE)), \"x\")","v":0.16688139825218476},{"$f":"IFERROR(((VLOOKUP($B79,Pupils,Pupils!$J$3,FALSE)+VLOOKUP($B79,Pupils,Pupils!$K$3,FALSE))/VLOOKUP($B79,Pupils,Pupils!$I$3,FALSE)), \"x\")","v":0.16450172926888121},{"$f":"IFERROR(((VLOOKUP($B79,Pupils,Pupils!$M$3,FALSE)+VLOOKUP($B79,Pupils,Pupils!$P$3,FALSE))/VLOOKUP($B79,Pupils,Pupils!$L$3,FALSE)), \"x\")","v":0.16126468694672461},{"$f":"IFERROR(((VLOOKUP($B79,Pupils,Pupils!$R$3,FALSE)+VLOOKUP($B79,Pupils,Pupils!$U$3,FALSE))/VLOOKUP($B79,Pupils,Pupils!$Q$3,FALSE)), \"x\")","v":0.15676978706307754},{"$f":"IFERROR(((VLOOKUP($B79,Pupils,Pupils!$W$3,FALSE)+VLOOKUP($B79,Pupils,Pupils!$Z$3,FALSE))/VLOOKUP($B79,Pupils,Pupils!$V$3,FALSE)), \"x\")","v":0.15568430848668607},{"$f":"(SUM(INDEX(Pupils!$AB$7:$AB$159,MATCH($B79,Pupils!$A$7:$A$159,0)),INDEX(Pupils!$AC$7:$AC$159,MATCH($B79,Pupils!$A$7:$A$159,0)),INDEX(Pupils!$AD$7:$AD$159,MATCH($B79,Pupils!$A$7:$A$159,0)),INDEX(Pupils!$AE$7:$AE$159,MATCH($B79,Pupils!$A$7:$A$159,0))))/SUM(INDEX(Pupils!$AB$7:$AM$159,MATCH($B79,Pupils!$A$7:$A$159,0),0))","v":0.48526785714285714},{"$f":"SUM(INDEX(Pupils!$AF$7:$AF$159,MATCH($B79,Pupils!$A$7:$A$159,0)))/SUM(INDEX(Pupils!$AB$7:$AM$159,MATCH($B79,Pupils!$A$7:$A$159,0),0))","v":0.15461309523809524},{"$f":"SUM(INDEX(Pupils!$AG$7:$AG$159,MATCH($B79,Pupils!$A$7:$A$159,0)))/SUM(INDEX(Pupils!$AB$7:$AM$159,MATCH($B79,Pupils!$A$7:$A$159,0),0))","v":0.15580357142857143},{"$f":"(SUM(INDEX(Pupils!$AH$7:$AH$159,MATCH($B79,Pupils!$A$7:$A$159,0)),INDEX(Pupils!$AI$7:$AI$159,MATCH($B79,Pupils!$A$7:$A$159,0)),INDEX(Pupils!$AJ$7:$AJ$159,MATCH($B79,Pupils!$A$7:$A$159,0))))/SUM(INDEX(Pupils!$AB$7:$AM$159,MATCH($B79,Pupils!$A$7:$A$159,0),0))","v":4.776785714285714E-2},{"$f":"SUM(INDEX(Pupils!$AK$7:$AK$159,MATCH($B79,Pupils!$A$7:$A$159,0)))/SUM(INDEX(Pupils!$AB$7:$AM$159,MATCH($B79,Pupils!$A$7:$A$159,0),0))","v":3.8392857142857145E-2},{"$f":"SUM(INDEX(Pupils!$AL$7:$AL$159,MATCH($B79,Pupils!$A$7:$A$159,0)))/SUM(INDEX(Pupils!$AB$7:$AM$159,MATCH($B79,Pupils!$A$7:$A$159,0),0))","v":8.8690476190476195E-2},{"$f":"SUM(INDEX(Pupils!$AM$7:$AM$159,MATCH($B79,Pupils!$A$7:$A$159,0)))/SUM(INDEX(Pupils!$AB$7:$AM$159,MATCH($B79,Pupils!$A$7:$A$159,0),0))","v":2.9464285714285714E-2},{"$f":"(SUM(INDEX(Pupils!$BH$7:$BH$159,MATCH($B79,Pupils!$A$7:$A$159,0)),INDEX(Pupils!$BK$7:$BK$159,MATCH($B79,Pupils!$A$7:$A$159,0)),INDEX(Pupils!$BO$7:$BO$159,MATCH($B79,Pupils!$A$7:$A$159,0))))/SUM(INDEX(Pupils!$BH$7:$BS$159,MATCH($B79,Pupils!$A$7:$A$159,0),0))","v":0.41356910862504509},{"$f":"(SUM(INDEX(Pupils!$BL$7:$BL$159,MATCH($B79,Pupils!$A$7:$A$159,0)),INDEX(Pupils!$BM$7:$BM$159,MATCH($B79,Pupils!$A$7:$A$159,0)),INDEX(Pupils!$BP$7:$BP$159,MATCH($B79,Pupils!$A$7:$A$159,0))))/SUM(INDEX(Pupils!$BH$7:$BS$159,MATCH($B79,Pupils!$A$7:$A$159,0),0))","v":0.42259112233850593},{"$f":"(SUM(INDEX(Pupils!$BI$7:$BI$159,MATCH($B79,Pupils!$A$7:$A$159,0)),INDEX(Pupils!$BJ$7:$BJ$159,MATCH($B79,Pupils!$A$7:$A$159,0))))/SUM(INDEX(Pupils!$BH$7:$BS$159,MATCH($B79,Pupils!$A$7:$A$159,0),0))","v":0.10934680620714543},{"$f":"(SUM(INDEX(Pupils!$BQ$7:$BQ$159,MATCH($B79,Pupils!$A$7:$A$159,0)),INDEX(Pupils!$BR$7:$BR$159,MATCH($B79,Pupils!$A$7:$A$159,0)),INDEX(Pupils!$BN$7:$BN$159,MATCH($B79,Pupils!$A$7:$A$159,0)),INDEX(Pupils!$BS$7:$BS$159,MATCH($B79,Pupils!$A$7:$A$159,0))))/SUM(INDEX(Pupils!$BH$7:$BS$159,MATCH($B79,Pupils!$A$7:$A$159,0),0))","v":5.44929628293035E-2},{"$f":"IFERROR((VLOOKUP(B79,Funding,Funding!$C$2,FALSE)), \"x\")","v":48330064.939890303},{"$f":"IFERROR((AA79/VLOOKUP(B79,Funding,Funding!$D$2,FALSE)), \"x\")","v":0.12018638373879245},{"$f":"IFERROR((AA79/(VLOOKUP(B79,Pupils,Pupils!$M$3,FALSE)+VLOOKUP(B79,Pupils,Pupils!$P$3,FALSE))), \"x\")","v":3014.7879071729963},{"$f":"IFERROR((VLOOKUP(B79,Funding,Funding!$E$2,FALSE)), \"x\")","v":49557575.953628309},{"$f":"IFERROR((AD79/VLOOKUP(B79,Funding,Funding!$F$2,FALSE)), \"x\")","v":0.12093096745020879},{"$f":"IFERROR((AD79/(VLOOKUP(B79,Pupils,Pupils!$R$3,FALSE)+VLOOKUP(B79,Pupils,Pupils!$U$3,FALSE))), \"x\")","v":3175.1394127132439},{"$f":"IFERROR((VLOOKUP(B79,Funding,Funding!$G$2,FALSE)), \"x\")","v":52330039.632958919},{"$f":"IFERROR((AG79/VLOOKUP(B79,Funding,Funding!$H$2,FALSE)), \"x\")","v":0.12596725960029051},{"$f":"IFERROR((AG79/(VLOOKUP(B79,Pupils,Pupils!$W$3,FALSE)+VLOOKUP(B79,Pupils,Pupils!$Z$3,FALSE))), \"x\")","v":3363.5454192671887},{"$f":"IFERROR((VLOOKUP(B79,Funding,Funding!$I$2,FALSE)), \"x\")","v":52894163.22538121},{"$f":"IFERROR((AJ79/VLOOKUP(B79,Funding,Funding!$J$2,FALSE)), \"x\")","v":0.12124319673909484},null,{"$f":"IFERROR((VLOOKUP($B79,Funding,Funding!$EC$2,FALSE)), \"x\")","v":27933767},{"$f":"IFERROR((AM79/VLOOKUP($B79,Funding,Funding!$EU$2,FALSE)), \"x\")","v":6.2603230835498944E-2},{"$f":"IFERROR((AM79/(VLOOKUP($B79,Pupils,Pupils!$D$3,FALSE)+VLOOKUP($B79,Pupils,Pupils!$E$3,FALSE))), \"x\")","v":1751.1137788365095},{"$f":"IFERROR((VLOOKUP($B79,Funding,Funding!$DA$2,FALSE)), \"x\")","v":31984064.918820001},{"$f":"IFERROR((AP79/VLOOKUP($B79,Funding,Funding!$DT$2,FALSE)), \"x\")","v":6.815019025138401E-2},{"$f":"IFERROR((AP79/(VLOOKUP($B79,Pupils,Pupils!$G$3,FALSE)+VLOOKUP($B79,Pupils,Pupils!$H$3,FALSE))), \"x\")","v":1914.1818731713449},{"$f":"IFERROR((VLOOKUP($B79,Funding,Funding!$CE$2,FALSE)), \"x\")","v":33467945},{"$f":"IFERROR((AS79/VLOOKUP($B79,Funding,Funding!$CR$2,FALSE)), \"x\")","v":7.2889341266937371E-2},{"$f":"IFERROR((AS79/(VLOOKUP($B79,Pupils,Pupils!$J$3,FALSE)+VLOOKUP($B79,Pupils,Pupils!$K$3,FALSE))), \"x\")","v":2045.4678523407897},{"$f":"IFERROR((VLOOKUP($B79,Funding,Funding!$BM$2,FALSE)), \"x\")","v":36405486.840000004},{"$f":"IFERROR((AV79/VLOOKUP($B79,Funding,Funding!$BY$2,FALSE)), \"x\")","v":8.9512794705673568E-2},{"$f":"IFERROR((AV79/(VLOOKUP($B79,Pupils,Pupils!$M$3,FALSE)+VLOOKUP($B79,Pupils,Pupils!$P$3,FALSE))), \"x\")","v":2270.942975484998},{"$f":"IFERROR((VLOOKUP($B79,Funding,Funding!$AQ$2,FALSE)), \"x\")","v":49928450},{"$f":"IFERROR((AY79/VLOOKUP($B79,Funding,Funding!$BE$2,FALSE)), \"x\")","v":0.11934681061921273},{"$f":"IFERROR((AY79/(VLOOKUP($B79,Pupils,Pupils!$R$3,FALSE)+VLOOKUP($B79,Pupils,Pupils!$U$3,FALSE))), \"x\")","v":3198.9012045105073},{"$f":"IFERROR((VLOOKUP($B79,Funding,Funding!$S$2,FALSE)), \"x\")","v":53974595},{"$f":"IFERROR((BB79/VLOOKUP($B79,Funding,Funding!$AH$2,FALSE)), \"x\")","v":0.12848410198277344},{"$f":"IFERROR((BB79/(VLOOKUP(B79,Pupils,Pupils!$W$3,FALSE)+VLOOKUP(B79,Pupils,Pupils!$Z$3,FALSE))), \"x\")","v":3469.2502249646486},{"$f":"IFERROR((VLOOKUP($B79,Funding,Funding!$GX$2,FALSE)), \"x\")","v":52386172.828359999},{"$f":"IFERROR((BE79/VLOOKUP($B79,Funding,Funding!$HC$2,FALSE)), \"x\")","v":0.1055316969294115},{"$f":"IFERROR((BE79/(VLOOKUP($B79,Pupils,Pupils!$D$3,FALSE)+VLOOKUP($B79,Pupils,Pupils!$E$3,FALSE))), \"x\")","v":3283.9877650677031},{"$f":"IFERROR((VLOOKUP($B79,Funding,Funding!$GP$2,FALSE)), \"x\")","v":55648896.509999998},{"$f":"IFERROR((BH79/VLOOKUP($B79,Funding,Funding!$GU$2,FALSE)), \"x\")","v":0.11236301956989377},{"$f":"IFERROR((BH79/(VLOOKUP($B79,Pupils,Pupils!$G$3,FALSE)+VLOOKUP($B79,Pupils,Pupils!$H$3,FALSE))), \"x\")","v":3330.4743856604223},{"$f":"IFERROR((VLOOKUP($B79,Funding,Funding!$GH$2,FALSE)), \"x\")","v":61650695.920000002},{"$f":"IFERROR((BK79/VLOOKUP($B79,Funding,Funding!$GM$2,FALSE)), \"x\")","v":0.12858284106167667},{"$f":"IFERROR((BK79/(VLOOKUP($B79,Pupils,Pupils!$J$3,FALSE)+VLOOKUP($B79,Pupils,Pupils!$K$3,FALSE))), \"x\")","v":3767.9193203764821},{"$f":"IFERROR((VLOOKUP($B79,Funding,Funding!$FZ$2,FALSE)), \"x\")","v":40970781.659999996},{"$f":"IFERROR((BN79/VLOOKUP($B79,Funding,Funding!$GE$2,FALSE)), \"x\")","v":0.12587829243828272},{"$f":"IFERROR((BN79/(VLOOKUP($B79,Pupils,Pupils!$M$3,FALSE)+VLOOKUP($B79,Pupils,Pupils!$P$3,FALSE))), \"x\")","v":2555.7221420996816},{"$f":"IFERROR((VLOOKUP($B79,Funding,Funding!$FD$2,FALSE)), \"x\")","v":42421366},{"$f":"IFERROR((BQ79/VLOOKUP($B79,Funding,Funding!$FR$2,FALSE)), \"x\")","v":0.20876862285212389},{"$f":"IFERROR((BQ79/(VLOOKUP($B79,Pupils,Pupils!$R$3,FALSE)+VLOOKUP($B79,Pupils,Pupils!$U$3,FALSE))), \"x\")","v":2717.924525884162},{"$f":"(VLOOKUP(B79,Funding,Funding!$HK$2,FALSE)+VLOOKUP(B79,Funding,Funding!$HL$2,FALSE)+VLOOKUP(B79,Funding,Funding!$HM$2,FALSE))/(VLOOKUP(B79,Funding,Funding!$HN$2,FALSE))","v":0.32030264817150061},{"$f":"IFERROR((VLOOKUP(B79,Other_data,Other!$D$3,FALSE)+VLOOKUP(B79,Other_data,Other!$E$3,FALSE)+VLOOKUP(B79,Other_data,Other!$F$3,FALSE)), \"x\")","v":3370.0000000000005},{"$f":"(VLOOKUP(B79,Other_data,Other!$AK$3,FALSE)+VLOOKUP(B79,Other_data,Other!$AL$3,FALSE))/VLOOKUP(B79,Other_data,Other!$AJ$3,FALSE)","v":3.2298539566564526E-2},{"$f":"(VLOOKUP(B79,Other_data,Other!$AR$3,FALSE)+VLOOKUP(B79,Other_data,Other!$AS$3,FALSE))/VLOOKUP(B79,Other_data,Other!$AQ$3,FALSE)","v":4.4610326135252822E-2},{"$f":"VLOOKUP(B79,Other_data,Other!$AP$3,FALSE)/VLOOKUP(B79,Other_data,Other!$AJ$3,FALSE)","v":4.9420862603173519E-3},{"$f":"VLOOKUP(B79,Other_data,Other!$AW$3,FALSE)/VLOOKUP(B79,Other_data,Other!$AQ$3,FALSE)","v":7.9534346396516482E-3}]
[74,209,"Lewisham",{"$f":"IFERROR((VLOOKUP($B80,Pupils,Pupils!$D$3,FALSE)/VLOOKUP($B80,Pupils,Pupils!$C$3,FALSE)), \"x\")","v":2.9782540182792309E-2},{"$f":"IFERROR((VLOOKUP($B80,Pupils,Pupils!$G$3,FALSE)/VLOOKUP($B80,Pupils,Pupils!$F$3,FALSE)),\"x\")","v":2.8798436656295803E-2},{"$f":"IFERROR((VLOOKUP($B80,Pupils,Pupils!$J$3,FALSE)/VLOOKUP($B80,Pupils,Pupils!$I$3,FALSE)), \"x\")","v":2.7858942065491183E-2},{"$f":"IFERROR((VLOOKUP($B80,Pupils,Pupils!$M$3,FALSE)/VLOOKUP($B80,Pupils,Pupils!$L$3,FALSE)), \"x\")","v":2.7269368148786798E-2},{"$f":"IFERROR((VLOOKUP($B80,Pupils,Pupils!$R$3,FALSE)/VLOOKUP($B80,Pupils,Pupils!$Q$3,FALSE)), \"x\")","v":2.7013410742988749E-2},{"$f":"IFERROR((VLOOKUP($B80,Pupils,Pupils!$W$3,FALSE)/VLOOKUP($B80,Pupils,Pupils!$V$3,FALSE)), \"x\")","v":2.7106088843803815E-2},{"$f":"IFERROR(((VLOOKUP($B80,Pupils,Pupils!$D$3,FALSE)+VLOOKUP($B80,Pupils,Pupils!$E$3,FALSE))/VLOOKUP($B80,Pupils,Pupils!$C$3,FALSE)), \"x\")","v":0.25007878978884335},{"$f":"IFERROR(((VLOOKUP($B80,Pupils,Pupils!$G$3,FALSE)+VLOOKUP($B80,Pupils,Pupils!$H$3,FALSE))/VLOOKUP($B80,Pupils,Pupils!$F$3,FALSE)), \"x\")","v":0.25149777583502608},{"$f":"IFERROR(((VLOOKUP($B80,Pupils,Pupils!$J$3,FALSE)+VLOOKUP($B80,Pupils,Pupils!$K$3,FALSE))/VLOOKUP($B80,Pupils,Pupils!$I$3,FALSE)), \"x\")","v":0.2428463476070529},{"$f":"IFERROR(((VLOOKUP($B80,Pupils,Pupils!$M$3,FALSE)+VLOOKUP($B80,Pupils,Pupils!$P$3,FALSE))/VLOOKUP($B80,Pupils,Pupils!$L$3,FALSE)), \"x\")","v":0.22593915506835818},{"$f":"IFERROR(((VLOOKUP($B80,Pupils,Pupils!$R$3,FALSE)+VLOOKUP($B80,Pupils,Pupils!$U$3,FALSE))/VLOOKUP($B80,Pupils,Pupils!$Q$3,FALSE)), \"x\")","v":0.19969771849435022},{"$f":"IFERROR(((VLOOKUP($B80,Pupils,Pupils!$W$3,FALSE)+VLOOKUP($B80,Pupils,Pupils!$Z$3,FALSE))/VLOOKUP($B80,Pupils,Pupils!$V$3,FALSE)), \"x\")","v":0.18894052702352027},{"$f":"(SUM(INDEX(Pupils!$AB$7:$AB$159,MATCH($B80,Pupils!$A$7:$A$159,0)),INDEX(Pupils!$AC$7:$AC$159,MATCH($B80,Pupils!$A$7:$A$159,0)),INDEX(Pupils!$AD$7:$AD$159,MATCH($B80,Pupils!$A$7:$A$159,0)),INDEX(Pupils!$AE$7:$AE$159,MATCH($B80,Pupils!$A$7:$A$159,0))))/SUM(INDEX(Pupils!$AB$7:$AM$159,MATCH($B80,Pupils!$A$7:$A$159,0),0))","v":0.2073255010366275},{"$f":"SUM(INDEX(Pupils!$AF$7:$AF$159,MATCH($B80,Pupils!$A$7:$A$159,0)))/SUM(INDEX(Pupils!$AB$7:$AM$159,MATCH($B80,Pupils!$A$7:$A$159,0),0))","v":0.18521078092605389},{"$f":"SUM(INDEX(Pupils!$AG$7:$AG$159,MATCH($B80,Pupils!$A$7:$A$159,0)))/SUM(INDEX(Pupils!$AB$7:$AM$159,MATCH($B80,Pupils!$A$7:$A$159,0),0))","v":0.3022345081778392},{"$f":"(SUM(INDEX(Pupils!$AH$7:$AH$159,MATCH($B80,Pupils!$A$7:$A$159,0)),INDEX(Pupils!$AI$7:$AI$159,MATCH($B80,Pupils!$A$7:$A$159,0)),INDEX(Pupils!$AJ$7:$AJ$159,MATCH($B80,Pupils!$A$7:$A$159,0))))/SUM(INDEX(Pupils!$AB$7:$AM$159,MATCH($B80,Pupils!$A$7:$A$159,0),0))","v":2.2575443446210552E-2},{"$f":"SUM(INDEX(Pupils!$AK$7:$AK$159,MATCH($B80,Pupils!$A$7:$A$159,0)))/SUM(INDEX(Pupils!$AB$7:$AM$159,MATCH($B80,Pupils!$A$7:$A$159,0),0))","v":3.3172080165860401E-2},{"$f":"SUM(INDEX(Pupils!$AL$7:$AL$159,MATCH($B80,Pupils!$A$7:$A$159,0)))/SUM(INDEX(Pupils!$AB$7:$AM$159,MATCH($B80,Pupils!$A$7:$A$159,0),0))","v":0.2156185210780926},{"$f":"SUM(INDEX(Pupils!$AM$7:$AM$159,MATCH($B80,Pupils!$A$7:$A$159,0)))/SUM(INDEX(Pupils!$AB$7:$AM$159,MATCH($B80,Pupils!$A$7:$A$159,0),0))","v":3.3863165169315826E-2},{"$f":"(SUM(INDEX(Pupils!$BH$7:$BH$159,MATCH($B80,Pupils!$A$7:$A$159,0)),INDEX(Pupils!$BK$7:$BK$159,MATCH($B80,Pupils!$A$7:$A$159,0)),INDEX(Pupils!$BO$7:$BO$159,MATCH($B80,Pupils!$A$7:$A$159,0))))/SUM(INDEX(Pupils!$BH$7:$BS$159,MATCH($B80,Pupils!$A$7:$A$159,0),0))","v":0.44406077348066297},{"$f":"(SUM(INDEX(Pupils!$BL$7:$BL$159,MATCH($B80,Pupils!$A$7:$A$159,0)),INDEX(Pupils!$BM$7:$BM$159,MATCH($B80,Pupils!$A$7:$A$159,0)),INDEX(Pupils!$BP$7:$BP$159,MATCH($B80,Pupils!$A$7:$A$159,0))))/SUM(INDEX(Pupils!$BH$7:$BS$159,MATCH($B80,Pupils!$A$7:$A$159,0),0))","v":0.45303867403314918},{"$f":"(SUM(INDEX(Pupils!$BI$7:$BI$159,MATCH($B80,Pupils!$A$7:$A$159,0)),INDEX(Pupils!$BJ$7:$BJ$159,MATCH($B80,Pupils!$A$7:$A$159,0))))/SUM(INDEX(Pupils!$BH$7:$BS$159,MATCH($B80,Pupils!$A$7:$A$159,0),0))","v":8.7016574585635359E-2},{"$f":"(SUM(INDEX(Pupils!$BQ$7:$BQ$159,MATCH($B80,Pupils!$A$7:$A$159,0)),INDEX(Pupils!$BR$7:$BR$159,MATCH($B80,Pupils!$A$7:$A$159,0)),INDEX(Pupils!$BN$7:$BN$159,MATCH($B80,Pupils!$A$7:$A$159,0)),INDEX(Pupils!$BS$7:$BS$159,MATCH($B80,Pupils!$A$7:$A$159,0))))/SUM(INDEX(Pupils!$BH$7:$BS$159,MATCH($B80,Pupils!$A$7:$A$159,0),0))","v":1.5883977900552487E-2},{"$f":"IFERROR((VLOOKUP(B80,Funding,Funding!$C$2,FALSE)), \"x\")","v":37948494.710000008},{"$f":"IFERROR((AA80/VLOOKUP(B80,Funding,Funding!$D$2,FALSE)), \"x\")","v":0.16147257545696383},{"$f":"IFERROR((AA80/(VLOOKUP(B80,Pupils,Pupils!$M$3,FALSE)+VLOOKUP(B80,Pupils,Pupils!$P$3,FALSE))), \"x\")","v":4137.4285553859581},{"$f":"IFERROR((VLOOKUP(B80,Funding,Funding!$E$2,FALSE)), \"x\")","v":41061157.391101316},{"$f":"IFERROR((AD80/VLOOKUP(B80,Funding,Funding!$F$2,FALSE)), \"x\")","v":0.16400788063674451},{"$f":"IFERROR((AD80/(VLOOKUP(B80,Pupils,Pupils!$R$3,FALSE)+VLOOKUP(B80,Pupils,Pupils!$U$3,FALSE))), \"x\")","v":4932.8636942697403},{"$f":"IFERROR((VLOOKUP(B80,Funding,Funding!$G$2,FALSE)), \"x\")","v":43420598.327727564},{"$f":"IFERROR((AG80/VLOOKUP(B80,Funding,Funding!$H$2,FALSE)), \"x\")","v":0.16167882818778384},{"$f":"IFERROR((AG80/(VLOOKUP(B80,Pupils,Pupils!$W$3,FALSE)+VLOOKUP(B80,Pupils,Pupils!$Z$3,FALSE))), \"x\")","v":5421.4756308812039},{"$f":"IFERROR((VLOOKUP(B80,Funding,Funding!$I$2,FALSE)), \"x\")","v":43842361.198060192},{"$f":"IFERROR((AJ80/VLOOKUP(B80,Funding,Funding!$J$2,FALSE)), \"x\")","v":0.15897412530163277},null,{"$f":"IFERROR((VLOOKUP($B80,Funding,Funding!$EC$2,FALSE)), \"x\")","v":19421618.18},{"$f":"IFERROR((AM80/VLOOKUP($B80,Funding,Funding!$EU$2,FALSE)), \"x\")","v":8.9986445454525943E-2},{"$f":"IFERROR((AM80/(VLOOKUP($B80,Pupils,Pupils!$D$3,FALSE)+VLOOKUP($B80,Pupils,Pupils!$E$3,FALSE))), \"x\")","v":2039.6574438143248},{"$f":"IFERROR((VLOOKUP($B80,Funding,Funding!$DA$2,FALSE)), \"x\")","v":21640548.566640001},{"$f":"IFERROR((AP80/VLOOKUP($B80,Funding,Funding!$DT$2,FALSE)), \"x\")","v":9.3894905028209394E-2},{"$f":"IFERROR((AP80/(VLOOKUP($B80,Pupils,Pupils!$G$3,FALSE)+VLOOKUP($B80,Pupils,Pupils!$H$3,FALSE))), \"x\")","v":2212.5087993702077},{"$f":"IFERROR((VLOOKUP($B80,Funding,Funding!$CE$2,FALSE)), \"x\")","v":22849221.834989998},{"$f":"IFERROR((AS80/VLOOKUP($B80,Funding,Funding!$CR$2,FALSE)), \"x\")","v":9.61570813379648E-2},{"$f":"IFERROR((AS80/(VLOOKUP($B80,Pupils,Pupils!$J$3,FALSE)+VLOOKUP($B80,Pupils,Pupils!$K$3,FALSE))), \"x\")","v":2370.0053765159214},{"$f":"IFERROR((VLOOKUP($B80,Funding,Funding!$BM$2,FALSE)), \"x\")","v":25836250.780000005},{"$f":"IFERROR((AV80/VLOOKUP($B80,Funding,Funding!$BY$2,FALSE)), \"x\")","v":0.10543923412195741},{"$f":"IFERROR((AV80/(VLOOKUP($B80,Pupils,Pupils!$M$3,FALSE)+VLOOKUP($B80,Pupils,Pupils!$P$3,FALSE))), \"x\")","v":2816.8611840383783},{"$f":"IFERROR((VLOOKUP($B80,Funding,Funding!$AQ$2,FALSE)), \"x\")","v":43399633},{"$f":"IFERROR((AY80/VLOOKUP($B80,Funding,Funding!$BE$2,FALSE)), \"x\")","v":0.17397864541590674},{"$f":"IFERROR((AY80/(VLOOKUP($B80,Pupils,Pupils!$R$3,FALSE)+VLOOKUP($B80,Pupils,Pupils!$U$3,FALSE))), \"x\")","v":5213.7954108601634},{"$f":"IFERROR((VLOOKUP($B80,Funding,Funding!$S$2,FALSE)), \"x\")","v":39351580},{"$f":"IFERROR((BB80/VLOOKUP($B80,Funding,Funding!$AH$2,FALSE)), \"x\")","v":0.14644823149368744},{"$f":"IFERROR((BB80/(VLOOKUP(B80,Pupils,Pupils!$W$3,FALSE)+VLOOKUP(B80,Pupils,Pupils!$Z$3,FALSE))), \"x\")","v":4913.4199026095639},{"$f":"IFERROR((VLOOKUP($B80,Funding,Funding!$GX$2,FALSE)), \"x\")","v":47824992.829750001},{"$f":"IFERROR((BE80/VLOOKUP($B80,Funding,Funding!$HC$2,FALSE)), \"x\")","v":0.19351854173558664},{"$f":"IFERROR((BE80/(VLOOKUP($B80,Pupils,Pupils!$D$3,FALSE)+VLOOKUP($B80,Pupils,Pupils!$E$3,FALSE))), \"x\")","v":5022.5785370457888},{"$f":"IFERROR((VLOOKUP($B80,Funding,Funding!$GP$2,FALSE)), \"x\")","v":55934742.990000002},{"$f":"IFERROR((BH80/VLOOKUP($B80,Funding,Funding!$GU$2,FALSE)), \"x\")","v":0.21397084171594496},{"$f":"IFERROR((BH80/(VLOOKUP($B80,Pupils,Pupils!$G$3,FALSE)+VLOOKUP($B80,Pupils,Pupils!$H$3,FALSE))), \"x\")","v":5718.7141386361318},{"$f":"IFERROR((VLOOKUP($B80,Funding,Funding!$GH$2,FALSE)), \"x\")","v":63106183.990000002},{"$f":"IFERROR((BK80/VLOOKUP($B80,Funding,Funding!$GM$2,FALSE)), \"x\")","v":0.25427412173941272},{"$f":"IFERROR((BK80/(VLOOKUP($B80,Pupils,Pupils!$J$3,FALSE)+VLOOKUP($B80,Pupils,Pupils!$K$3,FALSE))), \"x\")","v":6545.6056415309613},{"$f":"IFERROR((VLOOKUP($B80,Funding,Funding!$FZ$2,FALSE)), \"x\")","v":62812891.209999993},{"$f":"IFERROR((BN80/VLOOKUP($B80,Funding,Funding!$GE$2,FALSE)), \"x\")","v":0.24463871262680592},{"$f":"IFERROR((BN80/(VLOOKUP($B80,Pupils,Pupils!$M$3,FALSE)+VLOOKUP($B80,Pupils,Pupils!$P$3,FALSE))), \"x\")","v":6848.3309212821623},{"$f":"IFERROR((VLOOKUP($B80,Funding,Funding!$FD$2,FALSE)), \"x\")","v":41963400},{"$f":"IFERROR((BQ80/VLOOKUP($B80,Funding,Funding!$FR$2,FALSE)), \"x\")","v":0.1682216690117978},{"$f":"IFERROR((BQ80/(VLOOKUP($B80,Pupils,Pupils!$R$3,FALSE)+VLOOKUP($B80,Pupils,Pupils!$U$3,FALSE))), \"x\")","v":5041.2542047092747},{"$f":"(VLOOKUP(B80,Funding,Funding!$HK$2,FALSE)+VLOOKUP(B80,Funding,Funding!$HL$2,FALSE)+VLOOKUP(B80,Funding,Funding!$HM$2,FALSE))/(VLOOKUP(B80,Funding,Funding!$HN$2,FALSE))","v":0.2323529411764706},{"$f":"IFERROR((VLOOKUP(B80,Other_data,Other!$D$3,FALSE)+VLOOKUP(B80,Other_data,Other!$E$3,FALSE)+VLOOKUP(B80,Other_data,Other!$F$3,FALSE)), \"x\")","v":2120},{"$f":"(VLOOKUP(B80,Other_data,Other!$AK$3,FALSE)+VLOOKUP(B80,Other_data,Other!$AL$3,FALSE))/VLOOKUP(B80,Other_data,Other!$AJ$3,FALSE)","v":4.1417218079333407E-2},{"$f":"(VLOOKUP(B80,Other_data,Other!$AR$3,FALSE)+VLOOKUP(B80,Other_data,Other!$AS$3,FALSE))/VLOOKUP(B80,Other_data,Other!$AQ$3,FALSE)","v":5.255954010402409E-2},{"$f":"VLOOKUP(B80,Other_data,Other!$AP$3,FALSE)/VLOOKUP(B80,Other_data,Other!$AJ$3,FALSE)","v":7.7197773343136225E-3},{"$f":"VLOOKUP(B80,Other_data,Other!$AW$3,FALSE)/VLOOKUP(B80,Other_data,Other!$AQ$3,FALSE)","v":1.2501140615019619E-2}]
[75,925,"Lincolnshire",{"$f":"IFERROR((VLOOKUP($B81,Pupils,Pupils!$D$3,FALSE)/VLOOKUP($B81,Pupils,Pupils!$C$3,FALSE)), \"x\")","v":3.6990130961762166E-2},{"$f":"IFERROR((VLOOKUP($B81,Pupils,Pupils!$G$3,FALSE)/VLOOKUP($B81,Pupils,Pupils!$F$3,FALSE)),\"x\")","v":3.6656864030569239E-2},{"$f":"IFERROR((VLOOKUP($B81,Pupils,Pupils!$J$3,FALSE)/VLOOKUP($B81,Pupils,Pupils!$I$3,FALSE)), \"x\")","v":3.4956269320666519E-2},{"$f":"IFERROR((VLOOKUP($B81,Pupils,Pupils!$M$3,FALSE)/VLOOKUP($B81,Pupils,Pupils!$L$3,FALSE)), \"x\")","v":3.321876416377096E-2},{"$f":"IFERROR((VLOOKUP($B81,Pupils,Pupils!$R$3,FALSE)/VLOOKUP($B81,Pupils,Pupils!$Q$3,FALSE)), \"x\")","v":3.1829416131790883E-2},{"$f":"IFERROR((VLOOKUP($B81,Pupils,Pupils!$W$3,FALSE)/VLOOKUP($B81,Pupils,Pupils!$V$3,FALSE)), \"x\")","v":3.0571078224893057E-2},{"$f":"IFERROR(((VLOOKUP($B81,Pupils,Pupils!$D$3,FALSE)+VLOOKUP($B81,Pupils,Pupils!$E$3,FALSE))/VLOOKUP($B81,Pupils,Pupils!$C$3,FALSE)), \"x\")","v":0.21549589102780592},{"$f":"IFERROR(((VLOOKUP($B81,Pupils,Pupils!$G$3,FALSE)+VLOOKUP($B81,Pupils,Pupils!$H$3,FALSE))/VLOOKUP($B81,Pupils,Pupils!$F$3,FALSE)), \"x\")","v":0.22216082566917039},{"$f":"IFERROR(((VLOOKUP($B81,Pupils,Pupils!$J$3,FALSE)+VLOOKUP($B81,Pupils,Pupils!$K$3,FALSE))/VLOOKUP($B81,Pupils,Pupils!$I$3,FALSE)), \"x\")","v":0.21251790695920983},{"$f":"IFERROR(((VLOOKUP($B81,Pupils,Pupils!$M$3,FALSE)+VLOOKUP($B81,Pupils,Pupils!$P$3,FALSE))/VLOOKUP($B81,Pupils,Pupils!$L$3,FALSE)), \"x\")","v":0.2006911920229642},{"$f":"IFERROR(((VLOOKUP($B81,Pupils,Pupils!$R$3,FALSE)+VLOOKUP($B81,Pupils,Pupils!$U$3,FALSE))/VLOOKUP($B81,Pupils,Pupils!$Q$3,FALSE)), \"x\")","v":0.19060059580306546},{"$f":"IFERROR(((VLOOKUP($B81,Pupils,Pupils!$W$3,FALSE)+VLOOKUP($B81,Pupils,Pupils!$Z$3,FALSE))/VLOOKUP($B81,Pupils,Pupils!$V$3,FALSE)), \"x\")","v":0.18643115891157228},{"$f":"(SUM(INDEX(Pupils!$AB$7:$AB$159,MATCH($B81,Pupils!$A$7:$A$159,0)),INDEX(Pupils!$AC$7:$AC$159,MATCH($B81,Pupils!$A$7:$A$159,0)),INDEX(Pupils!$AD$7:$AD$159,MATCH($B81,Pupils!$A$7:$A$159,0)),INDEX(Pupils!$AE$7:$AE$159,MATCH($B81,Pupils!$A$7:$A$159,0))))/SUM(INDEX(Pupils!$AB$7:$AM$159,MATCH($B81,Pupils!$A$7:$A$159,0),0))","v":0.41949746576081098},{"$f":"SUM(INDEX(Pupils!$AF$7:$AF$159,MATCH($B81,Pupils!$A$7:$A$159,0)))/SUM(INDEX(Pupils!$AB$7:$AM$159,MATCH($B81,Pupils!$A$7:$A$159,0),0))","v":0.21341529170710666},{"$f":"SUM(INDEX(Pupils!$AG$7:$AG$159,MATCH($B81,Pupils!$A$7:$A$159,0)))/SUM(INDEX(Pupils!$AB$7:$AM$159,MATCH($B81,Pupils!$A$7:$A$159,0),0))","v":0.13652539631187319},{"$f":"(SUM(INDEX(Pupils!$AH$7:$AH$159,MATCH($B81,Pupils!$A$7:$A$159,0)),INDEX(Pupils!$AI$7:$AI$159,MATCH($B81,Pupils!$A$7:$A$159,0)),INDEX(Pupils!$AJ$7:$AJ$159,MATCH($B81,Pupils!$A$7:$A$159,0))))/SUM(INDEX(Pupils!$AB$7:$AM$159,MATCH($B81,Pupils!$A$7:$A$159,0),0))","v":2.3509112477084006E-2},{"$f":"SUM(INDEX(Pupils!$AK$7:$AK$159,MATCH($B81,Pupils!$A$7:$A$159,0)))/SUM(INDEX(Pupils!$AB$7:$AM$159,MATCH($B81,Pupils!$A$7:$A$159,0),0))","v":3.8283187749379922E-2},{"$f":"SUM(INDEX(Pupils!$AL$7:$AL$159,MATCH($B81,Pupils!$A$7:$A$159,0)))/SUM(INDEX(Pupils!$AB$7:$AM$159,MATCH($B81,Pupils!$A$7:$A$159,0),0))","v":0.12056508141917395},{"$f":"SUM(INDEX(Pupils!$AM$7:$AM$159,MATCH($B81,Pupils!$A$7:$A$159,0)))/SUM(INDEX(Pupils!$AB$7:$AM$159,MATCH($B81,Pupils!$A$7:$A$159,0),0))","v":4.8204464574571337E-2},{"$f":"(SUM(INDEX(Pupils!$BH$7:$BH$159,MATCH($B81,Pupils!$A$7:$A$159,0)),INDEX(Pupils!$BK$7:$BK$159,MATCH($B81,Pupils!$A$7:$A$159,0)),INDEX(Pupils!$BO$7:$BO$159,MATCH($B81,Pupils!$A$7:$A$159,0))))/SUM(INDEX(Pupils!$BH$7:$BS$159,MATCH($B81,Pupils!$A$7:$A$159,0),0))","v":0.44944912508101104},{"$f":"(SUM(INDEX(Pupils!$BL$7:$BL$159,MATCH($B81,Pupils!$A$7:$A$159,0)),INDEX(Pupils!$BM$7:$BM$159,MATCH($B81,Pupils!$A$7:$A$159,0)),INDEX(Pupils!$BP$7:$BP$159,MATCH($B81,Pupils!$A$7:$A$159,0))))/SUM(INDEX(Pupils!$BH$7:$BS$159,MATCH($B81,Pupils!$A$7:$A$159,0),0))","v":0.52786779001944262},{"$f":"(SUM(INDEX(Pupils!$BI$7:$BI$159,MATCH($B81,Pupils!$A$7:$A$159,0)),INDEX(Pupils!$BJ$7:$BJ$159,MATCH($B81,Pupils!$A$7:$A$159,0))))/SUM(INDEX(Pupils!$BH$7:$BS$159,MATCH($B81,Pupils!$A$7:$A$159,0),0))","v":3.8885288399222295E-3},{"$f":"(SUM(INDEX(Pupils!$BQ$7:$BQ$159,MATCH($B81,Pupils!$A$7:$A$159,0)),INDEX(Pupils!$BR$7:$BR$159,MATCH($B81,Pupils!$A$7:$A$159,0)),INDEX(Pupils!$BN$7:$BN$159,MATCH($B81,Pupils!$A$7:$A$159,0)),INDEX(Pupils!$BS$7:$BS$159,MATCH($B81,Pupils!$A$7:$A$159,0))))/SUM(INDEX(Pupils!$BH$7:$BS$159,MATCH($B81,Pupils!$A$7:$A$159,0),0))","v":1.8794556059624108E-2},{"$f":"IFERROR((VLOOKUP(B81,Funding,Funding!$C$2,FALSE)), \"x\")","v":56529763.039999999},{"$f":"IFERROR((AA81/VLOOKUP(B81,Funding,Funding!$D$2,FALSE)), \"x\")","v":0.12110331218285883},{"$f":"IFERROR((AA81/(VLOOKUP(B81,Pupils,Pupils!$M$3,FALSE)+VLOOKUP(B81,Pupils,Pupils!$P$3,FALSE))), \"x\")","v":2659.7234892255574},{"$f":"IFERROR((VLOOKUP(B81,Funding,Funding!$E$2,FALSE)), \"x\")","v":59946022.853019603},{"$f":"IFERROR((AD81/VLOOKUP(B81,Funding,Funding!$F$2,FALSE)), \"x\")","v":0.12505953320008384},{"$f":"IFERROR((AD81/(VLOOKUP(B81,Pupils,Pupils!$R$3,FALSE)+VLOOKUP(B81,Pupils,Pupils!$U$3,FALSE))), \"x\")","v":2955.6268047046447},{"$f":"IFERROR((VLOOKUP(B81,Funding,Funding!$G$2,FALSE)), \"x\")","v":61960762.731581315},{"$f":"IFERROR((AG81/VLOOKUP(B81,Funding,Funding!$H$2,FALSE)), \"x\")","v":0.12751799439467953},{"$f":"IFERROR((AG81/(VLOOKUP(B81,Pupils,Pupils!$W$3,FALSE)+VLOOKUP(B81,Pupils,Pupils!$Z$3,FALSE))), \"x\")","v":3110.9485731576701},{"$f":"IFERROR((VLOOKUP(B81,Funding,Funding!$I$2,FALSE)), \"x\")","v":62313291.393480167},{"$f":"IFERROR((AJ81/VLOOKUP(B81,Funding,Funding!$J$2,FALSE)), \"x\")","v":0.12815283622862725},null,{"$f":"IFERROR((VLOOKUP($B81,Funding,Funding!$EC$2,FALSE)), \"x\")","v":39478276},{"$f":"IFERROR((AM81/VLOOKUP($B81,Funding,Funding!$EU$2,FALSE)), \"x\")","v":8.0574577339261669E-2},{"$f":"IFERROR((AM81/(VLOOKUP($B81,Pupils,Pupils!$D$3,FALSE)+VLOOKUP($B81,Pupils,Pupils!$E$3,FALSE))), \"x\")","v":1718.6137303556659},{"$f":"IFERROR((VLOOKUP($B81,Funding,Funding!$DA$2,FALSE)), \"x\")","v":39366599},{"$f":"IFERROR((AP81/VLOOKUP($B81,Funding,Funding!$DT$2,FALSE)), \"x\")","v":8.1190576937823597E-2},{"$f":"IFERROR((AP81/(VLOOKUP($B81,Pupils,Pupils!$G$3,FALSE)+VLOOKUP($B81,Pupils,Pupils!$H$3,FALSE))), \"x\")","v":1659.567429703638},{"$f":"IFERROR((VLOOKUP($B81,Funding,Funding!$CE$2,FALSE)), \"x\")","v":18859688},{"$f":"IFERROR((AS81/VLOOKUP($B81,Funding,Funding!$CR$2,FALSE)), \"x\")","v":6.7538362450551975E-2},{"$f":"IFERROR((AS81/(VLOOKUP($B81,Pupils,Pupils!$J$3,FALSE)+VLOOKUP($B81,Pupils,Pupils!$K$3,FALSE))), \"x\")","v":836.38689077120932},{"$f":"IFERROR((VLOOKUP($B81,Funding,Funding!$BM$2,FALSE)), \"x\")","v":41785353.039999999},{"$f":"IFERROR((AV81/VLOOKUP($B81,Funding,Funding!$BY$2,FALSE)), \"x\")","v":0.12042926291478895},{"$f":"IFERROR((AV81/(VLOOKUP($B81,Pupils,Pupils!$M$3,FALSE)+VLOOKUP($B81,Pupils,Pupils!$P$3,FALSE))), \"x\")","v":1965.9994843323609},{"$f":"IFERROR((VLOOKUP($B81,Funding,Funding!$AQ$2,FALSE)), \"x\")","v":67232490},{"$f":"IFERROR((AY81/VLOOKUP($B81,Funding,Funding!$BE$2,FALSE)), \"x\")","v":0.13884201105272817},{"$f":"IFERROR((AY81/(VLOOKUP($B81,Pupils,Pupils!$R$3,FALSE)+VLOOKUP($B81,Pupils,Pupils!$U$3,FALSE))), \"x\")","v":3314.8846267626468},{"$f":"IFERROR((VLOOKUP($B81,Funding,Funding!$S$2,FALSE)), \"x\")","v":65376781},{"$f":"IFERROR((BB81/VLOOKUP($B81,Funding,Funding!$AH$2,FALSE)), \"x\")","v":0.13137679221924778},{"$f":"IFERROR((BB81/(VLOOKUP(B81,Pupils,Pupils!$W$3,FALSE)+VLOOKUP(B81,Pupils,Pupils!$Z$3,FALSE))), \"x\")","v":3282.4612642466236},{"$f":"IFERROR((VLOOKUP($B81,Funding,Funding!$GX$2,FALSE)), \"x\")","v":88231595},{"$f":"IFERROR((BE81/VLOOKUP($B81,Funding,Funding!$HC$2,FALSE)), \"x\")","v":0.17332269814597828},{"$f":"IFERROR((BE81/(VLOOKUP($B81,Pupils,Pupils!$D$3,FALSE)+VLOOKUP($B81,Pupils,Pupils!$E$3,FALSE))), \"x\")","v":3840.9993034695922},{"$f":"IFERROR((VLOOKUP($B81,Funding,Funding!$GP$2,FALSE)), \"x\")","v":88776716},{"$f":"IFERROR((BH81/VLOOKUP($B81,Funding,Funding!$GU$2,FALSE)), \"x\")","v":0.18104620581841138},{"$f":"IFERROR((BH81/(VLOOKUP($B81,Pupils,Pupils!$G$3,FALSE)+VLOOKUP($B81,Pupils,Pupils!$H$3,FALSE))), \"x\")","v":3742.5368239113022},{"$f":"IFERROR((VLOOKUP($B81,Funding,Funding!$GH$2,FALSE)), \"x\")","v":84355219.959999993},{"$f":"IFERROR((BK81/VLOOKUP($B81,Funding,Funding!$GM$2,FALSE)), \"x\")","v":0.20344123062894454},{"$f":"IFERROR((BK81/(VLOOKUP($B81,Pupils,Pupils!$J$3,FALSE)+VLOOKUP($B81,Pupils,Pupils!$K$3,FALSE))), \"x\")","v":3740.9738773338063},{"$f":"IFERROR((VLOOKUP($B81,Funding,Funding!$FZ$2,FALSE)), \"x\")","v":95743123.849999994},{"$f":"IFERROR((BN81/VLOOKUP($B81,Funding,Funding!$GE$2,FALSE)), \"x\")","v":0.27986407605164065},{"$f":"IFERROR((BN81/(VLOOKUP($B81,Pupils,Pupils!$M$3,FALSE)+VLOOKUP($B81,Pupils,Pupils!$P$3,FALSE))), \"x\")","v":4504.7108238449227},{"$f":"IFERROR((VLOOKUP($B81,Funding,Funding!$FD$2,FALSE)), \"x\")","v":62112937},{"$f":"IFERROR((BQ81/VLOOKUP($B81,Funding,Funding!$FR$2,FALSE)), \"x\")","v":0.23200407781953492},{"$f":"IFERROR((BQ81/(VLOOKUP($B81,Pupils,Pupils!$R$3,FALSE)+VLOOKUP($B81,Pupils,Pupils!$U$3,FALSE))), \"x\")","v":3062.4660782960259},{"$f":"(VLOOKUP(B81,Funding,Funding!$HK$2,FALSE)+VLOOKUP(B81,Funding,Funding!$HL$2,FALSE)+VLOOKUP(B81,Funding,Funding!$HM$2,FALSE))/(VLOOKUP(B81,Funding,Funding!$HN$2,FALSE))","v":0.20347394540942929},{"$f":"IFERROR((VLOOKUP(B81,Other_data,Other!$D$3,FALSE)+VLOOKUP(B81,Other_data,Other!$E$3,FALSE)+VLOOKUP(B81,Other_data,Other!$F$3,FALSE)), \"x\")","v":4610},{"$f":"(VLOOKUP(B81,Other_data,Other!$AK$3,FALSE)+VLOOKUP(B81,Other_data,Other!$AL$3,FALSE))/VLOOKUP(B81,Other_data,Other!$AJ$3,FALSE)","v":4.0684801843697271E-2},{"$f":"(VLOOKUP(B81,Other_data,Other!$AR$3,FALSE)+VLOOKUP(B81,Other_data,Other!$AS$3,FALSE))/VLOOKUP(B81,Other_data,Other!$AQ$3,FALSE)","v":5.4823479670213518E-2},{"$f":"VLOOKUP(B81,Other_data,Other!$AP$3,FALSE)/VLOOKUP(B81,Other_data,Other!$AJ$3,FALSE)","v":5.9261698012263875E-3},{"$f":"VLOOKUP(B81,Other_data,Other!$AW$3,FALSE)/VLOOKUP(B81,Other_data,Other!$AQ$3,FALSE)","v":1.0372771474878443E-2}]
[76,341,"Liverpool",{"$f":"IFERROR((VLOOKUP($B82,Pupils,Pupils!$D$3,FALSE)/VLOOKUP($B82,Pupils,Pupils!$C$3,FALSE)), \"x\")","v":2.1639717928627396E-2},{"$f":"IFERROR((VLOOKUP($B82,Pupils,Pupils!$G$3,FALSE)/VLOOKUP($B82,Pupils,Pupils!$F$3,FALSE)),\"x\")","v":2.0728580228343861E-2},{"$f":"IFERROR((VLOOKUP($B82,Pupils,Pupils!$J$3,FALSE)/VLOOKUP($B82,Pupils,Pupils!$I$3,FALSE)), \"x\")","v":2.0519559284342466E-2},{"$f":"IFERROR((VLOOKUP($B82,Pupils,Pupils!$M$3,FALSE)/VLOOKUP($B82,Pupils,Pupils!$L$3,FALSE)), \"x\")","v":2.1170772733204762E-2},{"$f":"IFERROR((VLOOKUP($B82,Pupils,Pupils!$R$3,FALSE)/VLOOKUP($B82,Pupils,Pupils!$Q$3,FALSE)), \"x\")","v":2.1710305838469498E-2},{"$f":"IFERROR((VLOOKUP($B82,Pupils,Pupils!$W$3,FALSE)/VLOOKUP($B82,Pupils,Pupils!$V$3,FALSE)), \"x\")","v":2.2289226152692018E-2},{"$f":"IFERROR(((VLOOKUP($B82,Pupils,Pupils!$D$3,FALSE)+VLOOKUP($B82,Pupils,Pupils!$E$3,FALSE))/VLOOKUP($B82,Pupils,Pupils!$C$3,FALSE)), \"x\")","v":0.2602891943870646},{"$f":"IFERROR(((VLOOKUP($B82,Pupils,Pupils!$G$3,FALSE)+VLOOKUP($B82,Pupils,Pupils!$H$3,FALSE))/VLOOKUP($B82,Pupils,Pupils!$F$3,FALSE)), \"x\")","v":0.25570501525634964},{"$f":"IFERROR(((VLOOKUP($B82,Pupils,Pupils!$J$3,FALSE)+VLOOKUP($B82,Pupils,Pupils!$K$3,FALSE))/VLOOKUP($B82,Pupils,Pupils!$I$3,FALSE)), \"x\")","v":0.25078338218942686},{"$f":"IFERROR(((VLOOKUP($B82,Pupils,Pupils!$M$3,FALSE)+VLOOKUP($B82,Pupils,Pupils!$P$3,FALSE))/VLOOKUP($B82,Pupils,Pupils!$L$3,FALSE)), \"x\")","v":0.23717065672897061},{"$f":"IFERROR(((VLOOKUP($B82,Pupils,Pupils!$R$3,FALSE)+VLOOKUP($B82,Pupils,Pupils!$U$3,FALSE))/VLOOKUP($B82,Pupils,Pupils!$Q$3,FALSE)), \"x\")","v":0.22854103830630473},{"$f":"IFERROR(((VLOOKUP($B82,Pupils,Pupils!$W$3,FALSE)+VLOOKUP($B82,Pupils,Pupils!$Z$3,FALSE))/VLOOKUP($B82,Pupils,Pupils!$V$3,FALSE)), \"x\")","v":0.21153846153846154},{"$f":"(SUM(INDEX(Pupils!$AB$7:$AB$159,MATCH($B82,Pupils!$A$7:$A$159,0)),INDEX(Pupils!$AC$7:$AC$159,MATCH($B82,Pupils!$A$7:$A$159,0)),INDEX(Pupils!$AD$7:$AD$159,MATCH($B82,Pupils!$A$7:$A$159,0)),INDEX(Pupils!$AE$7:$AE$159,MATCH($B82,Pupils!$A$7:$A$159,0))))/SUM(INDEX(Pupils!$AB$7:$AM$159,MATCH($B82,Pupils!$A$7:$A$159,0),0))","v":0.37204414083026799},{"$f":"SUM(INDEX(Pupils!$AF$7:$AF$159,MATCH($B82,Pupils!$A$7:$A$159,0)))/SUM(INDEX(Pupils!$AB$7:$AM$159,MATCH($B82,Pupils!$A$7:$A$159,0),0))","v":0.20126116657908566},{"$f":"SUM(INDEX(Pupils!$AG$7:$AG$159,MATCH($B82,Pupils!$A$7:$A$159,0)))/SUM(INDEX(Pupils!$AB$7:$AM$159,MATCH($B82,Pupils!$A$7:$A$159,0),0))","v":0.15199684708355229},{"$f":"(SUM(INDEX(Pupils!$AH$7:$AH$159,MATCH($B82,Pupils!$A$7:$A$159,0)),INDEX(Pupils!$AI$7:$AI$159,MATCH($B82,Pupils!$A$7:$A$159,0)),INDEX(Pupils!$AJ$7:$AJ$159,MATCH($B82,Pupils!$A$7:$A$159,0))))/SUM(INDEX(Pupils!$AB$7:$AM$159,MATCH($B82,Pupils!$A$7:$A$159,0),0))","v":3.678402522333158E-2},{"$f":"SUM(INDEX(Pupils!$AK$7:$AK$159,MATCH($B82,Pupils!$A$7:$A$159,0)))/SUM(INDEX(Pupils!$AB$7:$AM$159,MATCH($B82,Pupils!$A$7:$A$159,0),0))","v":3.9674198633736203E-2},{"$f":"SUM(INDEX(Pupils!$AL$7:$AL$159,MATCH($B82,Pupils!$A$7:$A$159,0)))/SUM(INDEX(Pupils!$AB$7:$AM$159,MATCH($B82,Pupils!$A$7:$A$159,0),0))","v":0.11573830793483973},{"$f":"SUM(INDEX(Pupils!$AM$7:$AM$159,MATCH($B82,Pupils!$A$7:$A$159,0)))/SUM(INDEX(Pupils!$AB$7:$AM$159,MATCH($B82,Pupils!$A$7:$A$159,0),0))","v":8.2501313715186542E-2},{"$f":"(SUM(INDEX(Pupils!$BH$7:$BH$159,MATCH($B82,Pupils!$A$7:$A$159,0)),INDEX(Pupils!$BK$7:$BK$159,MATCH($B82,Pupils!$A$7:$A$159,0)),INDEX(Pupils!$BO$7:$BO$159,MATCH($B82,Pupils!$A$7:$A$159,0))))/SUM(INDEX(Pupils!$BH$7:$BS$159,MATCH($B82,Pupils!$A$7:$A$159,0),0))","v":0.15846994535519127},{"$f":"(SUM(INDEX(Pupils!$BL$7:$BL$159,MATCH($B82,Pupils!$A$7:$A$159,0)),INDEX(Pupils!$BM$7:$BM$159,MATCH($B82,Pupils!$A$7:$A$159,0)),INDEX(Pupils!$BP$7:$BP$159,MATCH($B82,Pupils!$A$7:$A$159,0))))/SUM(INDEX(Pupils!$BH$7:$BS$159,MATCH($B82,Pupils!$A$7:$A$159,0),0))","v":0.77185792349726778},{"$f":"(SUM(INDEX(Pupils!$BI$7:$BI$159,MATCH($B82,Pupils!$A$7:$A$159,0)),INDEX(Pupils!$BJ$7:$BJ$159,MATCH($B82,Pupils!$A$7:$A$159,0))))/SUM(INDEX(Pupils!$BH$7:$BS$159,MATCH($B82,Pupils!$A$7:$A$159,0),0))","v":4.7131147540983603E-2},{"$f":"(SUM(INDEX(Pupils!$BQ$7:$BQ$159,MATCH($B82,Pupils!$A$7:$A$159,0)),INDEX(Pupils!$BR$7:$BR$159,MATCH($B82,Pupils!$A$7:$A$159,0)),INDEX(Pupils!$BN$7:$BN$159,MATCH($B82,Pupils!$A$7:$A$159,0)),INDEX(Pupils!$BS$7:$BS$159,MATCH($B82,Pupils!$A$7:$A$159,0))))/SUM(INDEX(Pupils!$BH$7:$BS$159,MATCH($B82,Pupils!$A$7:$A$159,0),0))","v":2.2540983606557378E-2},{"$f":"IFERROR((VLOOKUP(B82,Funding,Funding!$C$2,FALSE)), \"x\")","v":38051463.799999997},{"$f":"IFERROR((AA82/VLOOKUP(B82,Funding,Funding!$D$2,FALSE)), \"x\")","v":0.11696632143413653},{"$f":"IFERROR((AA82/(VLOOKUP(B82,Pupils,Pupils!$M$3,FALSE)+VLOOKUP(B82,Pupils,Pupils!$P$3,FALSE))), \"x\")","v":2326.4529102470042},{"$f":"IFERROR((VLOOKUP(B82,Funding,Funding!$E$2,FALSE)), \"x\")","v":41373692.67250149},{"$f":"IFERROR((AD82/VLOOKUP(B82,Funding,Funding!$F$2,FALSE)), \"x\")","v":0.12382224268430581},{"$f":"IFERROR((AD82/(VLOOKUP(B82,Pupils,Pupils!$R$3,FALSE)+VLOOKUP(B82,Pupils,Pupils!$U$3,FALSE))), \"x\")","v":2637.7872280842516},{"$f":"IFERROR((VLOOKUP(B82,Funding,Funding!$G$2,FALSE)), \"x\")","v":42884816.106430717},{"$f":"IFERROR((AG82/VLOOKUP(B82,Funding,Funding!$H$2,FALSE)), \"x\")","v":0.12604060407604509},{"$f":"IFERROR((AG82/(VLOOKUP(B82,Pupils,Pupils!$W$3,FALSE)+VLOOKUP(B82,Pupils,Pupils!$Z$3,FALSE))), \"x\")","v":2924.6959085064937},{"$f":"IFERROR((VLOOKUP(B82,Funding,Funding!$I$2,FALSE)), \"x\")","v":43642641.071177296},{"$f":"IFERROR((AJ82/VLOOKUP(B82,Funding,Funding!$J$2,FALSE)), \"x\")","v":0.1233051959969975},null,{"$f":"IFERROR((VLOOKUP($B82,Funding,Funding!$EC$2,FALSE)), \"x\")","v":28116740},{"$f":"IFERROR((AM82/VLOOKUP($B82,Funding,Funding!$EU$2,FALSE)), \"x\")","v":7.5894693394075272E-2},{"$f":"IFERROR((AM82/(VLOOKUP($B82,Pupils,Pupils!$D$3,FALSE)+VLOOKUP($B82,Pupils,Pupils!$E$3,FALSE))), \"x\")","v":1538.8725302391767},{"$f":"IFERROR((VLOOKUP($B82,Funding,Funding!$DA$2,FALSE)), \"x\")","v":29408291},{"$f":"IFERROR((AP82/VLOOKUP($B82,Funding,Funding!$DT$2,FALSE)), \"x\")","v":7.6939866900946174E-2},{"$f":"IFERROR((AP82/(VLOOKUP($B82,Pupils,Pupils!$G$3,FALSE)+VLOOKUP($B82,Pupils,Pupils!$H$3,FALSE))), \"x\")","v":1647.5233053221289},{"$f":"IFERROR((VLOOKUP($B82,Funding,Funding!$CE$2,FALSE)), \"x\")","v":28789885},{"$f":"IFERROR((AS82/VLOOKUP($B82,Funding,Funding!$CR$2,FALSE)), \"x\")","v":7.7234214611523785E-2},{"$f":"IFERROR((AS82/(VLOOKUP($B82,Pupils,Pupils!$J$3,FALSE)+VLOOKUP($B82,Pupils,Pupils!$K$3,FALSE))), \"x\")","v":1657.7350722634883},{"$f":"IFERROR((VLOOKUP($B82,Funding,Funding!$BM$2,FALSE)), \"x\")","v":30040848.079999998},{"$f":"IFERROR((AV82/VLOOKUP($B82,Funding,Funding!$BY$2,FALSE)), \"x\")","v":8.3873824602398811E-2},{"$f":"IFERROR((AV82/(VLOOKUP($B82,Pupils,Pupils!$M$3,FALSE)+VLOOKUP($B82,Pupils,Pupils!$P$3,FALSE))), \"x\")","v":1836.6867253607238},{"$f":"IFERROR((VLOOKUP($B82,Funding,Funding!$AQ$2,FALSE)), \"x\")","v":40685385},{"$f":"IFERROR((AY82/VLOOKUP($B82,Funding,Funding!$BE$2,FALSE)), \"x\")","v":0.11453462956874307},{"$f":"IFERROR((AY82/(VLOOKUP($B82,Pupils,Pupils!$R$3,FALSE)+VLOOKUP($B82,Pupils,Pupils!$U$3,FALSE))), \"x\")","v":2593.9040484539369},{"$f":"IFERROR((VLOOKUP($B82,Funding,Funding!$S$2,FALSE)), \"x\")","v":40446644},{"$f":"IFERROR((BB82/VLOOKUP($B82,Funding,Funding!$AH$2,FALSE)), \"x\")","v":0.11296839518006842},{"$f":"IFERROR((BB82/(VLOOKUP(B82,Pupils,Pupils!$W$3,FALSE)+VLOOKUP(B82,Pupils,Pupils!$Z$3,FALSE))), \"x\")","v":2758.4153311055038},{"$f":"IFERROR((VLOOKUP($B82,Funding,Funding!$GX$2,FALSE)), \"x\")","v":36111765.278020002},{"$f":"IFERROR((BE82/VLOOKUP($B82,Funding,Funding!$HC$2,FALSE)), \"x\")","v":8.5974233131629454E-2},{"$f":"IFERROR((BE82/(VLOOKUP($B82,Pupils,Pupils!$D$3,FALSE)+VLOOKUP($B82,Pupils,Pupils!$E$3,FALSE))), \"x\")","v":1976.4525903355045},{"$f":"IFERROR((VLOOKUP($B82,Funding,Funding!$GP$2,FALSE)), \"x\")","v":36727970},{"$f":"IFERROR((BH82/VLOOKUP($B82,Funding,Funding!$GU$2,FALSE)), \"x\")","v":8.7978408919523216E-2},{"$f":"IFERROR((BH82/(VLOOKUP($B82,Pupils,Pupils!$G$3,FALSE)+VLOOKUP($B82,Pupils,Pupils!$H$3,FALSE))), \"x\")","v":2057.5893557422969},{"$f":"IFERROR((VLOOKUP($B82,Funding,Funding!$GH$2,FALSE)), \"x\")","v":38284987.509999998},{"$f":"IFERROR((BK82/VLOOKUP($B82,Funding,Funding!$GM$2,FALSE)), \"x\")","v":0.10120353118371254},{"$f":"IFERROR((BK82/(VLOOKUP($B82,Pupils,Pupils!$J$3,FALSE)+VLOOKUP($B82,Pupils,Pupils!$K$3,FALSE))), \"x\")","v":2204.467525191455},{"$f":"IFERROR((VLOOKUP($B82,Funding,Funding!$FZ$2,FALSE)), \"x\")","v":41098211},{"$f":"IFERROR((BN82/VLOOKUP($B82,Funding,Funding!$GE$2,FALSE)), \"x\")","v":0.11460752998490242},{"$f":"IFERROR((BN82/(VLOOKUP($B82,Pupils,Pupils!$M$3,FALSE)+VLOOKUP($B82,Pupils,Pupils!$P$3,FALSE))), \"x\")","v":2512.7299461971143},{"$f":"IFERROR((VLOOKUP($B82,Funding,Funding!$FD$2,FALSE)), \"x\")","v":40183219},{"$f":"IFERROR((BQ82/VLOOKUP($B82,Funding,Funding!$FR$2,FALSE)), \"x\")","v":0.12475995490248562},{"$f":"IFERROR((BQ82/(VLOOKUP($B82,Pupils,Pupils!$R$3,FALSE)+VLOOKUP($B82,Pupils,Pupils!$U$3,FALSE))), \"x\")","v":2561.8883646796303},{"$f":"(VLOOKUP(B82,Funding,Funding!$HK$2,FALSE)+VLOOKUP(B82,Funding,Funding!$HL$2,FALSE)+VLOOKUP(B82,Funding,Funding!$HM$2,FALSE))/(VLOOKUP(B82,Funding,Funding!$HN$2,FALSE))","v":0.1521431935939708},{"$f":"IFERROR((VLOOKUP(B82,Other_data,Other!$D$3,FALSE)+VLOOKUP(B82,Other_data,Other!$E$3,FALSE)+VLOOKUP(B82,Other_data,Other!$F$3,FALSE)), \"x\")","v":3090},{"$f":"(VLOOKUP(B82,Other_data,Other!$AK$3,FALSE)+VLOOKUP(B82,Other_data,Other!$AL$3,FALSE))/VLOOKUP(B82,Other_data,Other!$AJ$3,FALSE)","v":4.8113534094842508E-2},{"$f":"(VLOOKUP(B82,Other_data,Other!$AR$3,FALSE)+VLOOKUP(B82,Other_data,Other!$AS$3,FALSE))/VLOOKUP(B82,Other_data,Other!$AQ$3,FALSE)","v":5.649348765700693E-2},{"$f":"VLOOKUP(B82,Other_data,Other!$AP$3,FALSE)/VLOOKUP(B82,Other_data,Other!$AJ$3,FALSE)","v":9.9098752612079028E-3},{"$f":"VLOOKUP(B82,Other_data,Other!$AW$3,FALSE)/VLOOKUP(B82,Other_data,Other!$AQ$3,FALSE)","v":1.3677370695906941E-2}]
[77,821,"Luton",{"$f":"IFERROR((VLOOKUP($B83,Pupils,Pupils!$D$3,FALSE)/VLOOKUP($B83,Pupils,Pupils!$C$3,FALSE)), \"x\")","v":2.2377664728682172E-2},{"$f":"IFERROR((VLOOKUP($B83,Pupils,Pupils!$G$3,FALSE)/VLOOKUP($B83,Pupils,Pupils!$F$3,FALSE)),\"x\")","v":2.2595338036974191E-2},{"$f":"IFERROR((VLOOKUP($B83,Pupils,Pupils!$J$3,FALSE)/VLOOKUP($B83,Pupils,Pupils!$I$3,FALSE)), \"x\")","v":2.2702071782900495E-2},{"$f":"IFERROR((VLOOKUP($B83,Pupils,Pupils!$M$3,FALSE)/VLOOKUP($B83,Pupils,Pupils!$L$3,FALSE)), \"x\")","v":2.3074950858900947E-2},{"$f":"IFERROR((VLOOKUP($B83,Pupils,Pupils!$R$3,FALSE)/VLOOKUP($B83,Pupils,Pupils!$Q$3,FALSE)), \"x\")","v":2.3175583562863422E-2},{"$f":"IFERROR((VLOOKUP($B83,Pupils,Pupils!$W$3,FALSE)/VLOOKUP($B83,Pupils,Pupils!$V$3,FALSE)), \"x\")","v":2.3463931026956236E-2},{"$f":"IFERROR(((VLOOKUP($B83,Pupils,Pupils!$D$3,FALSE)+VLOOKUP($B83,Pupils,Pupils!$E$3,FALSE))/VLOOKUP($B83,Pupils,Pupils!$C$3,FALSE)), \"x\")","v":0.22595687984496124},{"$f":"IFERROR(((VLOOKUP($B83,Pupils,Pupils!$G$3,FALSE)+VLOOKUP($B83,Pupils,Pupils!$H$3,FALSE))/VLOOKUP($B83,Pupils,Pupils!$F$3,FALSE)), \"x\")","v":0.24381530767169779},{"$f":"IFERROR(((VLOOKUP($B83,Pupils,Pupils!$J$3,FALSE)+VLOOKUP($B83,Pupils,Pupils!$K$3,FALSE))/VLOOKUP($B83,Pupils,Pupils!$I$3,FALSE)), \"x\")","v":0.22935512109716955},{"$f":"IFERROR(((VLOOKUP($B83,Pupils,Pupils!$M$3,FALSE)+VLOOKUP($B83,Pupils,Pupils!$P$3,FALSE))/VLOOKUP($B83,Pupils,Pupils!$L$3,FALSE)), \"x\")","v":0.20887103666353304},{"$f":"IFERROR(((VLOOKUP($B83,Pupils,Pupils!$R$3,FALSE)+VLOOKUP($B83,Pupils,Pupils!$U$3,FALSE))/VLOOKUP($B83,Pupils,Pupils!$Q$3,FALSE)), \"x\")","v":0.19247141307069526},{"$f":"IFERROR(((VLOOKUP($B83,Pupils,Pupils!$W$3,FALSE)+VLOOKUP($B83,Pupils,Pupils!$Z$3,FALSE))/VLOOKUP($B83,Pupils,Pupils!$V$3,FALSE)), \"x\")","v":0.17666157372039726},{"$f":"(SUM(INDEX(Pupils!$AB$7:$AB$159,MATCH($B83,Pupils!$A$7:$A$159,0)),INDEX(Pupils!$AC$7:$AC$159,MATCH($B83,Pupils!$A$7:$A$159,0)),INDEX(Pupils!$AD$7:$AD$159,MATCH($B83,Pupils!$A$7:$A$159,0)),INDEX(Pupils!$AE$7:$AE$159,MATCH($B83,Pupils!$A$7:$A$159,0))))/SUM(INDEX(Pupils!$AB$7:$AM$159,MATCH($B83,Pupils!$A$7:$A$159,0),0))","v":0.39649578195976637},{"$f":"SUM(INDEX(Pupils!$AF$7:$AF$159,MATCH($B83,Pupils!$A$7:$A$159,0)))/SUM(INDEX(Pupils!$AB$7:$AM$159,MATCH($B83,Pupils!$A$7:$A$159,0),0))","v":0.21025308241401688},{"$f":"SUM(INDEX(Pupils!$AG$7:$AG$159,MATCH($B83,Pupils!$A$7:$A$159,0)))/SUM(INDEX(Pupils!$AB$7:$AM$159,MATCH($B83,Pupils!$A$7:$A$159,0),0))","v":0.15606748864373785},{"$f":"(SUM(INDEX(Pupils!$AH$7:$AH$159,MATCH($B83,Pupils!$A$7:$A$159,0)),INDEX(Pupils!$AI$7:$AI$159,MATCH($B83,Pupils!$A$7:$A$159,0)),INDEX(Pupils!$AJ$7:$AJ$159,MATCH($B83,Pupils!$A$7:$A$159,0))))/SUM(INDEX(Pupils!$AB$7:$AM$159,MATCH($B83,Pupils!$A$7:$A$159,0),0))","v":4.3802725502920178E-2},{"$f":"SUM(INDEX(Pupils!$AK$7:$AK$159,MATCH($B83,Pupils!$A$7:$A$159,0)))/SUM(INDEX(Pupils!$AB$7:$AM$159,MATCH($B83,Pupils!$A$7:$A$159,0),0))","v":3.7313432835820892E-2},{"$f":"SUM(INDEX(Pupils!$AL$7:$AL$159,MATCH($B83,Pupils!$A$7:$A$159,0)))/SUM(INDEX(Pupils!$AB$7:$AM$159,MATCH($B83,Pupils!$A$7:$A$159,0),0))","v":0.10253082414016872},{"$f":"SUM(INDEX(Pupils!$AM$7:$AM$159,MATCH($B83,Pupils!$A$7:$A$159,0)))/SUM(INDEX(Pupils!$AB$7:$AM$159,MATCH($B83,Pupils!$A$7:$A$159,0),0))","v":5.3536664503569108E-2},{"$f":"(SUM(INDEX(Pupils!$BH$7:$BH$159,MATCH($B83,Pupils!$A$7:$A$159,0)),INDEX(Pupils!$BK$7:$BK$159,MATCH($B83,Pupils!$A$7:$A$159,0)),INDEX(Pupils!$BO$7:$BO$159,MATCH($B83,Pupils!$A$7:$A$159,0))))/SUM(INDEX(Pupils!$BH$7:$BS$159,MATCH($B83,Pupils!$A$7:$A$159,0),0))","v":0.49682203389830509},{"$f":"(SUM(INDEX(Pupils!$BL$7:$BL$159,MATCH($B83,Pupils!$A$7:$A$159,0)),INDEX(Pupils!$BM$7:$BM$159,MATCH($B83,Pupils!$A$7:$A$159,0)),INDEX(Pupils!$BP$7:$BP$159,MATCH($B83,Pupils!$A$7:$A$159,0))))/SUM(INDEX(Pupils!$BH$7:$BS$159,MATCH($B83,Pupils!$A$7:$A$159,0),0))","v":0.42372881355932202},{"$f":"(SUM(INDEX(Pupils!$BI$7:$BI$159,MATCH($B83,Pupils!$A$7:$A$159,0)),INDEX(Pupils!$BJ$7:$BJ$159,MATCH($B83,Pupils!$A$7:$A$159,0))))/SUM(INDEX(Pupils!$BH$7:$BS$159,MATCH($B83,Pupils!$A$7:$A$159,0),0))","v":6.4618644067796605E-2},{"$f":"(SUM(INDEX(Pupils!$BQ$7:$BQ$159,MATCH($B83,Pupils!$A$7:$A$159,0)),INDEX(Pupils!$BR$7:$BR$159,MATCH($B83,Pupils!$A$7:$A$159,0)),INDEX(Pupils!$BN$7:$BN$159,MATCH($B83,Pupils!$A$7:$A$159,0)),INDEX(Pupils!$BS$7:$BS$159,MATCH($B83,Pupils!$A$7:$A$159,0))))/SUM(INDEX(Pupils!$BH$7:$BS$159,MATCH($B83,Pupils!$A$7:$A$159,0),0))","v":1.4830508474576272E-2},{"$f":"IFERROR((VLOOKUP(B83,Funding,Funding!$C$2,FALSE)), \"x\")","v":20330875},{"$f":"IFERROR((AA83/VLOOKUP(B83,Funding,Funding!$D$2,FALSE)), \"x\")","v":0.11657797502458933},{"$f":"IFERROR((AA83/(VLOOKUP(B83,Pupils,Pupils!$M$3,FALSE)+VLOOKUP(B83,Pupils,Pupils!$P$3,FALSE))), \"x\")","v":2772.8962084015275},{"$f":"IFERROR((VLOOKUP(B83,Funding,Funding!$E$2,FALSE)), \"x\")","v":22165354.217844632},{"$f":"IFERROR((AD83/VLOOKUP(B83,Funding,Funding!$F$2,FALSE)), \"x\")","v":0.12242161949021332},{"$f":"IFERROR((AD83/(VLOOKUP(B83,Pupils,Pupils!$R$3,FALSE)+VLOOKUP(B83,Pupils,Pupils!$U$3,FALSE))), \"x\")","v":3204.011884626284},{"$f":"IFERROR((VLOOKUP(B83,Funding,Funding!$G$2,FALSE)), \"x\")","v":22796373.522782911},{"$f":"IFERROR((AG83/VLOOKUP(B83,Funding,Funding!$H$2,FALSE)), \"x\")","v":0.12348903144747775},{"$f":"IFERROR((AG83/(VLOOKUP(B83,Pupils,Pupils!$W$3,FALSE)+VLOOKUP(B83,Pupils,Pupils!$Z$3,FALSE))), \"x\")","v":3520.6754475340404},{"$f":"IFERROR((VLOOKUP(B83,Funding,Funding!$I$2,FALSE)), \"x\")","v":22982343.046611037},{"$f":"IFERROR((AJ83/VLOOKUP(B83,Funding,Funding!$J$2,FALSE)), \"x\")","v":0.11509356306269425},null,{"$f":"IFERROR((VLOOKUP($B83,Funding,Funding!$EC$2,FALSE)), \"x\")","v":8665097},{"$f":"IFERROR((AM83/VLOOKUP($B83,Funding,Funding!$EU$2,FALSE)), \"x\")","v":5.1666269519584321E-2},{"$f":"IFERROR((AM83/(VLOOKUP($B83,Pupils,Pupils!$D$3,FALSE)+VLOOKUP($B83,Pupils,Pupils!$E$3,FALSE))), \"x\")","v":1161.2298311444654},{"$f":"IFERROR((VLOOKUP($B83,Funding,Funding!$DA$2,FALSE)), \"x\")","v":8876184},{"$f":"IFERROR((AP83/VLOOKUP($B83,Funding,Funding!$DT$2,FALSE)), \"x\")","v":4.9760853488359735E-2},{"$f":"IFERROR((AP83/(VLOOKUP($B83,Pupils,Pupils!$G$3,FALSE)+VLOOKUP($B83,Pupils,Pupils!$H$3,FALSE))), \"x\")","v":1083.7831501831502},{"$f":"IFERROR((VLOOKUP($B83,Funding,Funding!$CE$2,FALSE)), \"x\")","v":8921886},{"$f":"IFERROR((AS83/VLOOKUP($B83,Funding,Funding!$CR$2,FALSE)), \"x\")","v":5.2596098358365893E-2},{"$f":"IFERROR((AS83/(VLOOKUP($B83,Pupils,Pupils!$J$3,FALSE)+VLOOKUP($B83,Pupils,Pupils!$K$3,FALSE))), \"x\")","v":1135.0999999999999},{"$f":"IFERROR((VLOOKUP($B83,Funding,Funding!$BM$2,FALSE)), \"x\")","v":10790955.73},{"$f":"IFERROR((AV83/VLOOKUP($B83,Funding,Funding!$BY$2,FALSE)), \"x\")","v":6.6424391636948341E-2},{"$f":"IFERROR((AV83/(VLOOKUP($B83,Pupils,Pupils!$M$3,FALSE)+VLOOKUP($B83,Pupils,Pupils!$P$3,FALSE))), \"x\")","v":1471.761556192035},{"$f":"IFERROR((VLOOKUP($B83,Funding,Funding!$AQ$2,FALSE)), \"x\")","v":19900392},{"$f":"IFERROR((AY83/VLOOKUP($B83,Funding,Funding!$BE$2,FALSE)), \"x\")","v":0.10902797155580903},{"$f":"IFERROR((AY83/(VLOOKUP($B83,Pupils,Pupils!$R$3,FALSE)+VLOOKUP($B83,Pupils,Pupils!$U$3,FALSE))), \"x\")","v":2876.6105810928016},{"$f":"IFERROR((VLOOKUP($B83,Funding,Funding!$S$2,FALSE)), \"x\")","v":19793095},{"$f":"IFERROR((BB83/VLOOKUP($B83,Funding,Funding!$AH$2,FALSE)), \"x\")","v":0.10603942191143037},{"$f":"IFERROR((BB83/(VLOOKUP(B83,Pupils,Pupils!$W$3,FALSE)+VLOOKUP(B83,Pupils,Pupils!$Z$3,FALSE))), \"x\")","v":3056.8486486486486},{"$f":"IFERROR((VLOOKUP($B83,Funding,Funding!$GX$2,FALSE)), \"x\")","v":25555663},{"$f":"IFERROR((BE83/VLOOKUP($B83,Funding,Funding!$HC$2,FALSE)), \"x\")","v":0.13563956362506133},{"$f":"IFERROR((BE83/(VLOOKUP($B83,Pupils,Pupils!$D$3,FALSE)+VLOOKUP($B83,Pupils,Pupils!$E$3,FALSE))), \"x\")","v":3424.7739212007505},{"$f":"IFERROR((VLOOKUP($B83,Funding,Funding!$GP$2,FALSE)), \"x\")","v":27539282},{"$f":"IFERROR((BH83/VLOOKUP($B83,Funding,Funding!$GU$2,FALSE)), \"x\")","v":0.14151816682515247},{"$f":"IFERROR((BH83/(VLOOKUP($B83,Pupils,Pupils!$G$3,FALSE)+VLOOKUP($B83,Pupils,Pupils!$H$3,FALSE))), \"x\")","v":3362.5496947496949},{"$f":"IFERROR((VLOOKUP($B83,Funding,Funding!$GH$2,FALSE)), \"x\")","v":25032200.539999999},{"$f":"IFERROR((BK83/VLOOKUP($B83,Funding,Funding!$GM$2,FALSE)), \"x\")","v":0.14150817786560477},{"$f":"IFERROR((BK83/(VLOOKUP($B83,Pupils,Pupils!$J$3,FALSE)+VLOOKUP($B83,Pupils,Pupils!$K$3,FALSE))), \"x\")","v":3184.7583384223917},{"$f":"IFERROR((VLOOKUP($B83,Funding,Funding!$FZ$2,FALSE)), \"x\")","v":28820493.340000004},{"$f":"IFERROR((BN83/VLOOKUP($B83,Funding,Funding!$GE$2,FALSE)), \"x\")","v":0.1613636197577504},{"$f":"IFERROR((BN83/(VLOOKUP($B83,Pupils,Pupils!$M$3,FALSE)+VLOOKUP($B83,Pupils,Pupils!$P$3,FALSE))), \"x\")","v":3930.7819612656854},{"$f":"IFERROR((VLOOKUP($B83,Funding,Funding!$FD$2,FALSE)), \"x\")","v":18577008},{"$f":"IFERROR((BQ83/VLOOKUP($B83,Funding,Funding!$FR$2,FALSE)), \"x\")","v":0.10089806846137116},{"$f":"IFERROR((BQ83/(VLOOKUP($B83,Pupils,Pupils!$R$3,FALSE)+VLOOKUP($B83,Pupils,Pupils!$U$3,FALSE))), \"x\")","v":2685.3148308759755},{"$f":"(VLOOKUP(B83,Funding,Funding!$HK$2,FALSE)+VLOOKUP(B83,Funding,Funding!$HL$2,FALSE)+VLOOKUP(B83,Funding,Funding!$HM$2,FALSE))/(VLOOKUP(B83,Funding,Funding!$HN$2,FALSE))","v":0.25625920471281294},{"$f":"IFERROR((VLOOKUP(B83,Other_data,Other!$D$3,FALSE)+VLOOKUP(B83,Other_data,Other!$E$3,FALSE)+VLOOKUP(B83,Other_data,Other!$F$3,FALSE)), \"x\")","v":1520},{"$f":"(VLOOKUP(B83,Other_data,Other!$AK$3,FALSE)+VLOOKUP(B83,Other_data,Other!$AL$3,FALSE))/VLOOKUP(B83,Other_data,Other!$AJ$3,FALSE)","v":3.7928378898729305E-2},{"$f":"(VLOOKUP(B83,Other_data,Other!$AR$3,FALSE)+VLOOKUP(B83,Other_data,Other!$AS$3,FALSE))/VLOOKUP(B83,Other_data,Other!$AQ$3,FALSE)","v":4.7677443329617243E-2},{"$f":"VLOOKUP(B83,Other_data,Other!$AP$3,FALSE)/VLOOKUP(B83,Other_data,Other!$AJ$3,FALSE)","v":7.829546913104864E-3},{"$f":"VLOOKUP(B83,Other_data,Other!$AW$3,FALSE)/VLOOKUP(B83,Other_data,Other!$AQ$3,FALSE)","v":1.1334076551467856E-2}]
[78,352,"Manchester",{"$f":"IFERROR((VLOOKUP($B84,Pupils,Pupils!$D$3,FALSE)/VLOOKUP($B84,Pupils,Pupils!$C$3,FALSE)), \"x\")","v":2.8508894217364637E-2},{"$f":"IFERROR((VLOOKUP($B84,Pupils,Pupils!$G$3,FALSE)/VLOOKUP($B84,Pupils,Pupils!$F$3,FALSE)),\"x\")","v":2.7201303453322841E-2},{"$f":"IFERROR((VLOOKUP($B84,Pupils,Pupils!$J$3,FALSE)/VLOOKUP($B84,Pupils,Pupils!$I$3,FALSE)), \"x\")","v":2.6595457003785829E-2},{"$f":"IFERROR((VLOOKUP($B84,Pupils,Pupils!$M$3,FALSE)/VLOOKUP($B84,Pupils,Pupils!$L$3,FALSE)), \"x\")","v":2.6305038284637382E-2},{"$f":"IFERROR((VLOOKUP($B84,Pupils,Pupils!$R$3,FALSE)/VLOOKUP($B84,Pupils,Pupils!$Q$3,FALSE)), \"x\")","v":2.6711551359438684E-2},{"$f":"IFERROR((VLOOKUP($B84,Pupils,Pupils!$W$3,FALSE)/VLOOKUP($B84,Pupils,Pupils!$V$3,FALSE)), \"x\")","v":2.6527883642179711E-2},{"$f":"IFERROR(((VLOOKUP($B84,Pupils,Pupils!$D$3,FALSE)+VLOOKUP($B84,Pupils,Pupils!$E$3,FALSE))/VLOOKUP($B84,Pupils,Pupils!$C$3,FALSE)), \"x\")","v":0.2274019963196342},{"$f":"IFERROR(((VLOOKUP($B84,Pupils,Pupils!$G$3,FALSE)+VLOOKUP($B84,Pupils,Pupils!$H$3,FALSE))/VLOOKUP($B84,Pupils,Pupils!$F$3,FALSE)), \"x\")","v":0.21888074230562113},{"$f":"IFERROR(((VLOOKUP($B84,Pupils,Pupils!$J$3,FALSE)+VLOOKUP($B84,Pupils,Pupils!$K$3,FALSE))/VLOOKUP($B84,Pupils,Pupils!$I$3,FALSE)), \"x\")","v":0.20920767982693347},{"$f":"IFERROR(((VLOOKUP($B84,Pupils,Pupils!$M$3,FALSE)+VLOOKUP($B84,Pupils,Pupils!$P$3,FALSE))/VLOOKUP($B84,Pupils,Pupils!$L$3,FALSE)), \"x\")","v":0.20291516756941974},{"$f":"IFERROR(((VLOOKUP($B84,Pupils,Pupils!$R$3,FALSE)+VLOOKUP($B84,Pupils,Pupils!$U$3,FALSE))/VLOOKUP($B84,Pupils,Pupils!$Q$3,FALSE)), \"x\")","v":0.19078574008151472},{"$f":"IFERROR(((VLOOKUP($B84,Pupils,Pupils!$W$3,FALSE)+VLOOKUP($B84,Pupils,Pupils!$Z$3,FALSE))/VLOOKUP($B84,Pupils,Pupils!$V$3,FALSE)), \"x\")","v":0.1963413262692274},{"$f":"(SUM(INDEX(Pupils!$AB$7:$AB$159,MATCH($B84,Pupils!$A$7:$A$159,0)),INDEX(Pupils!$AC$7:$AC$159,MATCH($B84,Pupils!$A$7:$A$159,0)),INDEX(Pupils!$AD$7:$AD$159,MATCH($B84,Pupils!$A$7:$A$159,0)),INDEX(Pupils!$AE$7:$AE$159,MATCH($B84,Pupils!$A$7:$A$159,0))))/SUM(INDEX(Pupils!$AB$7:$AM$159,MATCH($B84,Pupils!$A$7:$A$159,0),0))","v":0.37815245111929724},{"$f":"SUM(INDEX(Pupils!$AF$7:$AF$159,MATCH($B84,Pupils!$A$7:$A$159,0)))/SUM(INDEX(Pupils!$AB$7:$AM$159,MATCH($B84,Pupils!$A$7:$A$159,0),0))","v":0.2421365826013035},{"$f":"SUM(INDEX(Pupils!$AG$7:$AG$159,MATCH($B84,Pupils!$A$7:$A$159,0)))/SUM(INDEX(Pupils!$AB$7:$AM$159,MATCH($B84,Pupils!$A$7:$A$159,0),0))","v":0.15245111929725136},{"$f":"(SUM(INDEX(Pupils!$AH$7:$AH$159,MATCH($B84,Pupils!$A$7:$A$159,0)),INDEX(Pupils!$AI$7:$AI$159,MATCH($B84,Pupils!$A$7:$A$159,0)),INDEX(Pupils!$AJ$7:$AJ$159,MATCH($B84,Pupils!$A$7:$A$159,0))))/SUM(INDEX(Pupils!$AB$7:$AM$159,MATCH($B84,Pupils!$A$7:$A$159,0),0))","v":3.2303768773023517E-2},{"$f":"SUM(INDEX(Pupils!$AK$7:$AK$159,MATCH($B84,Pupils!$A$7:$A$159,0)))/SUM(INDEX(Pupils!$AB$7:$AM$159,MATCH($B84,Pupils!$A$7:$A$159,0),0))","v":3.5279115896854632E-2},{"$f":"SUM(INDEX(Pupils!$AL$7:$AL$159,MATCH($B84,Pupils!$A$7:$A$159,0)))/SUM(INDEX(Pupils!$AB$7:$AM$159,MATCH($B84,Pupils!$A$7:$A$159,0),0))","v":9.9036554264664206E-2},{"$f":"SUM(INDEX(Pupils!$AM$7:$AM$159,MATCH($B84,Pupils!$A$7:$A$159,0)))/SUM(INDEX(Pupils!$AB$7:$AM$159,MATCH($B84,Pupils!$A$7:$A$159,0),0))","v":6.0640408047605551E-2},{"$f":"(SUM(INDEX(Pupils!$BH$7:$BH$159,MATCH($B84,Pupils!$A$7:$A$159,0)),INDEX(Pupils!$BK$7:$BK$159,MATCH($B84,Pupils!$A$7:$A$159,0)),INDEX(Pupils!$BO$7:$BO$159,MATCH($B84,Pupils!$A$7:$A$159,0))))/SUM(INDEX(Pupils!$BH$7:$BS$159,MATCH($B84,Pupils!$A$7:$A$159,0),0))","v":0.46759675967596759},{"$f":"(SUM(INDEX(Pupils!$BL$7:$BL$159,MATCH($B84,Pupils!$A$7:$A$159,0)),INDEX(Pupils!$BM$7:$BM$159,MATCH($B84,Pupils!$A$7:$A$159,0)),INDEX(Pupils!$BP$7:$BP$159,MATCH($B84,Pupils!$A$7:$A$159,0))))/SUM(INDEX(Pupils!$BH$7:$BS$159,MATCH($B84,Pupils!$A$7:$A$159,0),0))","v":0.48154815481548152},{"$f":"(SUM(INDEX(Pupils!$BI$7:$BI$159,MATCH($B84,Pupils!$A$7:$A$159,0)),INDEX(Pupils!$BJ$7:$BJ$159,MATCH($B84,Pupils!$A$7:$A$159,0))))/SUM(INDEX(Pupils!$BH$7:$BS$159,MATCH($B84,Pupils!$A$7:$A$159,0),0))","v":3.6903690369036901E-2},{"$f":"(SUM(INDEX(Pupils!$BQ$7:$BQ$159,MATCH($B84,Pupils!$A$7:$A$159,0)),INDEX(Pupils!$BR$7:$BR$159,MATCH($B84,Pupils!$A$7:$A$159,0)),INDEX(Pupils!$BN$7:$BN$159,MATCH($B84,Pupils!$A$7:$A$159,0)),INDEX(Pupils!$BS$7:$BS$159,MATCH($B84,Pupils!$A$7:$A$159,0))))/SUM(INDEX(Pupils!$BH$7:$BS$159,MATCH($B84,Pupils!$A$7:$A$159,0),0))","v":1.3951395139513951E-2},{"$f":"IFERROR((VLOOKUP(B84,Funding,Funding!$C$2,FALSE)), \"x\")","v":56723524.480000004},{"$f":"IFERROR((AA84/VLOOKUP(B84,Funding,Funding!$D$2,FALSE)), \"x\")","v":0.14820032570410469},{"$f":"IFERROR((AA84/(VLOOKUP(B84,Pupils,Pupils!$M$3,FALSE)+VLOOKUP(B84,Pupils,Pupils!$P$3,FALSE))), \"x\")","v":3684.0634201467819},{"$f":"IFERROR((VLOOKUP(B84,Funding,Funding!$E$2,FALSE)), \"x\")","v":59828191.794731401},{"$f":"IFERROR((AD84/VLOOKUP(B84,Funding,Funding!$F$2,FALSE)), \"x\")","v":0.14844820392319763},{"$f":"IFERROR((AD84/(VLOOKUP(B84,Pupils,Pupils!$R$3,FALSE)+VLOOKUP(B84,Pupils,Pupils!$U$3,FALSE))), \"x\")","v":4044.6316789299217},{"$f":"IFERROR((VLOOKUP(B84,Funding,Funding!$G$2,FALSE)), \"x\")","v":63337356.672821805},{"$f":"IFERROR((AG84/VLOOKUP(B84,Funding,Funding!$H$2,FALSE)), \"x\")","v":0.15141486563054643},{"$f":"IFERROR((AG84/(VLOOKUP(B84,Pupils,Pupils!$W$3,FALSE)+VLOOKUP(B84,Pupils,Pupils!$Z$3,FALSE))), \"x\")","v":4030.8888609954688},{"$f":"IFERROR((VLOOKUP(B84,Funding,Funding!$I$2,FALSE)), \"x\")","v":64306697.232901908},{"$f":"IFERROR((AJ84/VLOOKUP(B84,Funding,Funding!$J$2,FALSE)), \"x\")","v":0.14446008831343429},null,{"$f":"IFERROR((VLOOKUP($B84,Funding,Funding!$EC$2,FALSE)), \"x\")","v":41441051.169999994},{"$f":"IFERROR((AM84/VLOOKUP($B84,Funding,Funding!$EU$2,FALSE)), \"x\")","v":0.12232572855428928},{"$f":"IFERROR((AM84/(VLOOKUP($B84,Pupils,Pupils!$D$3,FALSE)+VLOOKUP($B84,Pupils,Pupils!$E$3,FALSE))), \"x\")","v":2540.5254518146148},{"$f":"IFERROR((VLOOKUP($B84,Funding,Funding!$DA$2,FALSE)), \"x\")","v":42250291.966940001},{"$f":"IFERROR((AP84/VLOOKUP($B84,Funding,Funding!$DT$2,FALSE)), \"x\")","v":0.12208525222711056},{"$f":"IFERROR((AP84/(VLOOKUP($B84,Pupils,Pupils!$G$3,FALSE)+VLOOKUP($B84,Pupils,Pupils!$H$3,FALSE))), \"x\")","v":2665.297247472874},{"$f":"IFERROR((VLOOKUP($B84,Funding,Funding!$CE$2,FALSE)), \"x\")","v":42873750},{"$f":"IFERROR((AS84/VLOOKUP($B84,Funding,Funding!$CR$2,FALSE)), \"x\")","v":0.11558107264654069},{"$f":"IFERROR((AS84/(VLOOKUP($B84,Pupils,Pupils!$J$3,FALSE)+VLOOKUP($B84,Pupils,Pupils!$K$3,FALSE))), \"x\")","v":2770.8750727072966},{"$f":"IFERROR((VLOOKUP($B84,Funding,Funding!$BM$2,FALSE)), \"x\")","v":44211734.890000001},{"$f":"IFERROR((AV84/VLOOKUP($B84,Funding,Funding!$BY$2,FALSE)), \"x\")","v":0.12098220524137308},{"$f":"IFERROR((AV84/(VLOOKUP($B84,Pupils,Pupils!$M$3,FALSE)+VLOOKUP($B84,Pupils,Pupils!$P$3,FALSE))), \"x\")","v":2871.4512495940767},{"$f":"IFERROR((VLOOKUP($B84,Funding,Funding!$AQ$2,FALSE)), \"x\")","v":57590292},{"$f":"IFERROR((AY84/VLOOKUP($B84,Funding,Funding!$BE$2,FALSE)), \"x\")","v":0.14328794785031848},{"$f":"IFERROR((AY84/(VLOOKUP($B84,Pupils,Pupils!$R$3,FALSE)+VLOOKUP($B84,Pupils,Pupils!$U$3,FALSE))), \"x\")","v":3893.3404542996213},{"$f":"IFERROR((VLOOKUP($B84,Funding,Funding!$S$2,FALSE)), \"x\")","v":55039537},{"$f":"IFERROR((BB84/VLOOKUP($B84,Funding,Funding!$AH$2,FALSE)), \"x\")","v":0.13284253861629802},{"$f":"IFERROR((BB84/(VLOOKUP(B84,Pupils,Pupils!$W$3,FALSE)+VLOOKUP(B84,Pupils,Pupils!$Z$3,FALSE))), \"x\")","v":3502.8025838477693},{"$f":"IFERROR((VLOOKUP($B84,Funding,Funding!$GX$2,FALSE)), \"x\")","v":63034075},{"$f":"IFERROR((BE84/VLOOKUP($B84,Funding,Funding!$HC$2,FALSE)), \"x\")","v":0.16871969556764416},{"$f":"IFERROR((BE84/(VLOOKUP($B84,Pupils,Pupils!$D$3,FALSE)+VLOOKUP($B84,Pupils,Pupils!$E$3,FALSE))), \"x\")","v":3864.2762996566944},{"$f":"IFERROR((VLOOKUP($B84,Funding,Funding!$GP$2,FALSE)), \"x\")","v":63736365},{"$f":"IFERROR((BH84/VLOOKUP($B84,Funding,Funding!$GU$2,FALSE)), \"x\")","v":0.17006504456621174},{"$f":"IFERROR((BH84/(VLOOKUP($B84,Pupils,Pupils!$G$3,FALSE)+VLOOKUP($B84,Pupils,Pupils!$H$3,FALSE))), \"x\")","v":4020.7144208932627},{"$f":"IFERROR((VLOOKUP($B84,Funding,Funding!$GH$2,FALSE)), \"x\")","v":66653352.549999997},{"$f":"IFERROR((BK84/VLOOKUP($B84,Funding,Funding!$GM$2,FALSE)), \"x\")","v":0.17879557633433973},{"$f":"IFERROR((BK84/(VLOOKUP($B84,Pupils,Pupils!$J$3,FALSE)+VLOOKUP($B84,Pupils,Pupils!$K$3,FALSE))), \"x\")","v":4307.7200639824205},{"$f":"IFERROR((VLOOKUP($B84,Funding,Funding!$FZ$2,FALSE)), \"x\")","v":67241712.129999995},{"$f":"IFERROR((BN84/VLOOKUP($B84,Funding,Funding!$GE$2,FALSE)), \"x\")","v":0.18122611807963201},{"$f":"IFERROR((BN84/(VLOOKUP($B84,Pupils,Pupils!$M$3,FALSE)+VLOOKUP($B84,Pupils,Pupils!$P$3,FALSE))), \"x\")","v":4367.1956959147883},{"$f":"IFERROR((VLOOKUP($B84,Funding,Funding!$FD$2,FALSE)), \"x\")","v":57686706},{"$f":"IFERROR((BQ84/VLOOKUP($B84,Funding,Funding!$FR$2,FALSE)), \"x\")","v":0.17593369690729815},{"$f":"IFERROR((BQ84/(VLOOKUP($B84,Pupils,Pupils!$R$3,FALSE)+VLOOKUP($B84,Pupils,Pupils!$U$3,FALSE))), \"x\")","v":3899.858436992969},{"$f":"(VLOOKUP(B84,Funding,Funding!$HK$2,FALSE)+VLOOKUP(B84,Funding,Funding!$HL$2,FALSE)+VLOOKUP(B84,Funding,Funding!$HM$2,FALSE))/(VLOOKUP(B84,Funding,Funding!$HN$2,FALSE))","v":0.24229885057471265},{"$f":"IFERROR((VLOOKUP(B84,Other_data,Other!$D$3,FALSE)+VLOOKUP(B84,Other_data,Other!$E$3,FALSE)+VLOOKUP(B84,Other_data,Other!$F$3,FALSE)), \"x\")","v":3590},{"$f":"(VLOOKUP(B84,Other_data,Other!$AK$3,FALSE)+VLOOKUP(B84,Other_data,Other!$AL$3,FALSE))/VLOOKUP(B84,Other_data,Other!$AJ$3,FALSE)","v":4.5773815033062867E-2},{"$f":"(VLOOKUP(B84,Other_data,Other!$AR$3,FALSE)+VLOOKUP(B84,Other_data,Other!$AS$3,FALSE))/VLOOKUP(B84,Other_data,Other!$AQ$3,FALSE)","v":4.9837381663422359E-2},{"$f":"VLOOKUP(B84,Other_data,Other!$AP$3,FALSE)/VLOOKUP(B84,Other_data,Other!$AJ$3,FALSE)","v":9.9754213844239457E-3},{"$f":"VLOOKUP(B84,Other_data,Other!$AW$3,FALSE)/VLOOKUP(B84,Other_data,Other!$AQ$3,FALSE)","v":1.2646749446855845E-2}]
[79,887,"Medway",{"$f":"IFERROR((VLOOKUP($B85,Pupils,Pupils!$D$3,FALSE)/VLOOKUP($B85,Pupils,Pupils!$C$3,FALSE)), \"x\")","v":2.9964414424624313E-2},{"$f":"IFERROR((VLOOKUP($B85,Pupils,Pupils!$G$3,FALSE)/VLOOKUP($B85,Pupils,Pupils!$F$3,FALSE)),\"x\")","v":3.0778680133761005E-2},{"$f":"IFERROR((VLOOKUP($B85,Pupils,Pupils!$J$3,FALSE)/VLOOKUP($B85,Pupils,Pupils!$I$3,FALSE)), \"x\")","v":3.0842636349108509E-2},{"$f":"IFERROR((VLOOKUP($B85,Pupils,Pupils!$M$3,FALSE)/VLOOKUP($B85,Pupils,Pupils!$L$3,FALSE)), \"x\")","v":3.0520278574354773E-2},{"$f":"IFERROR((VLOOKUP($B85,Pupils,Pupils!$R$3,FALSE)/VLOOKUP($B85,Pupils,Pupils!$Q$3,FALSE)), \"x\")","v":2.9721027627046134E-2},{"$f":"IFERROR((VLOOKUP($B85,Pupils,Pupils!$W$3,FALSE)/VLOOKUP($B85,Pupils,Pupils!$V$3,FALSE)), \"x\")","v":2.9306631735529852E-2},{"$f":"IFERROR(((VLOOKUP($B85,Pupils,Pupils!$D$3,FALSE)+VLOOKUP($B85,Pupils,Pupils!$E$3,FALSE))/VLOOKUP($B85,Pupils,Pupils!$C$3,FALSE)), \"x\")","v":0.27128901380357667},{"$f":"IFERROR(((VLOOKUP($B85,Pupils,Pupils!$G$3,FALSE)+VLOOKUP($B85,Pupils,Pupils!$H$3,FALSE))/VLOOKUP($B85,Pupils,Pupils!$F$3,FALSE)), \"x\")","v":0.26577037694215067},{"$f":"IFERROR(((VLOOKUP($B85,Pupils,Pupils!$J$3,FALSE)+VLOOKUP($B85,Pupils,Pupils!$K$3,FALSE))/VLOOKUP($B85,Pupils,Pupils!$I$3,FALSE)), \"x\")","v":0.25836129945437525},{"$f":"IFERROR(((VLOOKUP($B85,Pupils,Pupils!$M$3,FALSE)+VLOOKUP($B85,Pupils,Pupils!$P$3,FALSE))/VLOOKUP($B85,Pupils,Pupils!$L$3,FALSE)), \"x\")","v":0.24320633620101051},{"$f":"IFERROR(((VLOOKUP($B85,Pupils,Pupils!$R$3,FALSE)+VLOOKUP($B85,Pupils,Pupils!$U$3,FALSE))/VLOOKUP($B85,Pupils,Pupils!$Q$3,FALSE)), \"x\")","v":0.23400806070294733},{"$f":"IFERROR(((VLOOKUP($B85,Pupils,Pupils!$W$3,FALSE)+VLOOKUP($B85,Pupils,Pupils!$Z$3,FALSE))/VLOOKUP($B85,Pupils,Pupils!$V$3,FALSE)), \"x\")","v":0.22843631358095956},{"$f":"(SUM(INDEX(Pupils!$AB$7:$AB$159,MATCH($B85,Pupils!$A$7:$A$159,0)),INDEX(Pupils!$AC$7:$AC$159,MATCH($B85,Pupils!$A$7:$A$159,0)),INDEX(Pupils!$AD$7:$AD$159,MATCH($B85,Pupils!$A$7:$A$159,0)),INDEX(Pupils!$AE$7:$AE$159,MATCH($B85,Pupils!$A$7:$A$159,0))))/SUM(INDEX(Pupils!$AB$7:$AM$159,MATCH($B85,Pupils!$A$7:$A$159,0),0))","v":0.24994805734469147},{"$f":"SUM(INDEX(Pupils!$AF$7:$AF$159,MATCH($B85,Pupils!$A$7:$A$159,0)))/SUM(INDEX(Pupils!$AB$7:$AM$159,MATCH($B85,Pupils!$A$7:$A$159,0),0))","v":0.24724703926864741},{"$f":"SUM(INDEX(Pupils!$AG$7:$AG$159,MATCH($B85,Pupils!$A$7:$A$159,0)))/SUM(INDEX(Pupils!$AB$7:$AM$159,MATCH($B85,Pupils!$A$7:$A$159,0),0))","v":0.18574693538333681},{"$f":"(SUM(INDEX(Pupils!$AH$7:$AH$159,MATCH($B85,Pupils!$A$7:$A$159,0)),INDEX(Pupils!$AI$7:$AI$159,MATCH($B85,Pupils!$A$7:$A$159,0)),INDEX(Pupils!$AJ$7:$AJ$159,MATCH($B85,Pupils!$A$7:$A$159,0))))/SUM(INDEX(Pupils!$AB$7:$AM$159,MATCH($B85,Pupils!$A$7:$A$159,0),0))","v":4.0099729898192396E-2},{"$f":"SUM(INDEX(Pupils!$AK$7:$AK$159,MATCH($B85,Pupils!$A$7:$A$159,0)))/SUM(INDEX(Pupils!$AB$7:$AM$159,MATCH($B85,Pupils!$A$7:$A$159,0),0))","v":4.2385206731768127E-2},{"$f":"SUM(INDEX(Pupils!$AL$7:$AL$159,MATCH($B85,Pupils!$A$7:$A$159,0)))/SUM(INDEX(Pupils!$AB$7:$AM$159,MATCH($B85,Pupils!$A$7:$A$159,0),0))","v":0.17016413879077499},{"$f":"SUM(INDEX(Pupils!$AM$7:$AM$159,MATCH($B85,Pupils!$A$7:$A$159,0)))/SUM(INDEX(Pupils!$AB$7:$AM$159,MATCH($B85,Pupils!$A$7:$A$159,0),0))","v":6.440889258258882E-2},{"$f":"(SUM(INDEX(Pupils!$BH$7:$BH$159,MATCH($B85,Pupils!$A$7:$A$159,0)),INDEX(Pupils!$BK$7:$BK$159,MATCH($B85,Pupils!$A$7:$A$159,0)),INDEX(Pupils!$BO$7:$BO$159,MATCH($B85,Pupils!$A$7:$A$159,0))))/SUM(INDEX(Pupils!$BH$7:$BS$159,MATCH($B85,Pupils!$A$7:$A$159,0),0))","v":0.31982942430703626},{"$f":"(SUM(INDEX(Pupils!$BL$7:$BL$159,MATCH($B85,Pupils!$A$7:$A$159,0)),INDEX(Pupils!$BM$7:$BM$159,MATCH($B85,Pupils!$A$7:$A$159,0)),INDEX(Pupils!$BP$7:$BP$159,MATCH($B85,Pupils!$A$7:$A$159,0))))/SUM(INDEX(Pupils!$BH$7:$BS$159,MATCH($B85,Pupils!$A$7:$A$159,0),0))","v":0.47761194029850745},{"$f":"(SUM(INDEX(Pupils!$BI$7:$BI$159,MATCH($B85,Pupils!$A$7:$A$159,0)),INDEX(Pupils!$BJ$7:$BJ$159,MATCH($B85,Pupils!$A$7:$A$159,0))))/SUM(INDEX(Pupils!$BH$7:$BS$159,MATCH($B85,Pupils!$A$7:$A$159,0),0))","v":8.8130774697938882E-2},{"$f":"(SUM(INDEX(Pupils!$BQ$7:$BQ$159,MATCH($B85,Pupils!$A$7:$A$159,0)),INDEX(Pupils!$BR$7:$BR$159,MATCH($B85,Pupils!$A$7:$A$159,0)),INDEX(Pupils!$BN$7:$BN$159,MATCH($B85,Pupils!$A$7:$A$159,0)),INDEX(Pupils!$BS$7:$BS$159,MATCH($B85,Pupils!$A$7:$A$159,0))))/SUM(INDEX(Pupils!$BH$7:$BS$159,MATCH($B85,Pupils!$A$7:$A$159,0),0))","v":0.11442786069651742},{"$f":"IFERROR((VLOOKUP(B85,Funding,Funding!$C$2,FALSE)), \"x\")","v":28702250.939999998},{"$f":"IFERROR((AA85/VLOOKUP(B85,Funding,Funding!$D$2,FALSE)), \"x\")","v":0.1438922542223231},{"$f":"IFERROR((AA85/(VLOOKUP(B85,Pupils,Pupils!$M$3,FALSE)+VLOOKUP(B85,Pupils,Pupils!$P$3,FALSE))), \"x\")","v":2685.9677091521617},{"$f":"IFERROR((VLOOKUP(B85,Funding,Funding!$E$2,FALSE)), \"x\")","v":31487915.810816772},{"$f":"IFERROR((AD85/VLOOKUP(B85,Funding,Funding!$F$2,FALSE)), \"x\")","v":0.15268038807107392},{"$f":"IFERROR((AD85/(VLOOKUP(B85,Pupils,Pupils!$R$3,FALSE)+VLOOKUP(B85,Pupils,Pupils!$U$3,FALSE))), \"x\")","v":3029.7234495157099},{"$f":"IFERROR((VLOOKUP(B85,Funding,Funding!$G$2,FALSE)), \"x\")","v":32422501.890729707},{"$f":"IFERROR((AG85/VLOOKUP(B85,Funding,Funding!$H$2,FALSE)), \"x\")","v":0.15466598035329299},{"$f":"IFERROR((AG85/(VLOOKUP(B85,Pupils,Pupils!$W$3,FALSE)+VLOOKUP(B85,Pupils,Pupils!$Z$3,FALSE))), \"x\")","v":3151.1810565389937},{"$f":"IFERROR((VLOOKUP(B85,Funding,Funding!$I$2,FALSE)), \"x\")","v":32673938.656122304},{"$f":"IFERROR((AJ85/VLOOKUP(B85,Funding,Funding!$J$2,FALSE)), \"x\")","v":0.15602705984433701},null,{"$f":"IFERROR((VLOOKUP($B85,Funding,Funding!$EC$2,FALSE)), \"x\")","v":16489876},{"$f":"IFERROR((AM85/VLOOKUP($B85,Funding,Funding!$EU$2,FALSE)), \"x\")","v":8.2036691143733798E-2},{"$f":"IFERROR((AM85/(VLOOKUP($B85,Pupils,Pupils!$D$3,FALSE)+VLOOKUP($B85,Pupils,Pupils!$E$3,FALSE))), \"x\")","v":1377.7154315314563},{"$f":"IFERROR((VLOOKUP($B85,Funding,Funding!$DA$2,FALSE)), \"x\")","v":17977956.882300001},{"$f":"IFERROR((AP85/VLOOKUP($B85,Funding,Funding!$DT$2,FALSE)), \"x\")","v":9.1269338694146981E-2},{"$f":"IFERROR((AP85/(VLOOKUP($B85,Pupils,Pupils!$G$3,FALSE)+VLOOKUP($B85,Pupils,Pupils!$H$3,FALSE))), \"x\")","v":1538.8133940169478},{"$f":"IFERROR((VLOOKUP($B85,Funding,Funding!$CE$2,FALSE)), \"x\")","v":18511204},{"$f":"IFERROR((AS85/VLOOKUP($B85,Funding,Funding!$CR$2,FALSE)), \"x\")","v":0.10606262932851075},{"$f":"IFERROR((AS85/(VLOOKUP($B85,Pupils,Pupils!$J$3,FALSE)+VLOOKUP($B85,Pupils,Pupils!$K$3,FALSE))), \"x\")","v":1635.6988601219405},{"$f":"IFERROR((VLOOKUP($B85,Funding,Funding!$BM$2,FALSE)), \"x\")","v":19955710.939999998},{"$f":"IFERROR((AV85/VLOOKUP($B85,Funding,Funding!$BY$2,FALSE)), \"x\")","v":0.1338572400041397},{"$f":"IFERROR((AV85/(VLOOKUP($B85,Pupils,Pupils!$M$3,FALSE)+VLOOKUP($B85,Pupils,Pupils!$P$3,FALSE))), \"x\")","v":1867.4631237132694},{"$f":"IFERROR((VLOOKUP($B85,Funding,Funding!$AQ$2,FALSE)), \"x\")","v":23179428},{"$f":"IFERROR((AY85/VLOOKUP($B85,Funding,Funding!$BE$2,FALSE)), \"x\")","v":0.11886228753963531},{"$f":"IFERROR((AY85/(VLOOKUP($B85,Pupils,Pupils!$R$3,FALSE)+VLOOKUP($B85,Pupils,Pupils!$U$3,FALSE))), \"x\")","v":2230.2923121331664},{"$f":"IFERROR((VLOOKUP($B85,Funding,Funding!$S$2,FALSE)), \"x\")","v":32545873},{"$f":"IFERROR((BB85/VLOOKUP($B85,Funding,Funding!$AH$2,FALSE)), \"x\")","v":0.15090703825410975},{"$f":"IFERROR((BB85/(VLOOKUP(B85,Pupils,Pupils!$W$3,FALSE)+VLOOKUP(B85,Pupils,Pupils!$Z$3,FALSE))), \"x\")","v":3163.1716396151228},{"$f":"IFERROR((VLOOKUP($B85,Funding,Funding!$GX$2,FALSE)), \"x\")","v":33618898},{"$f":"IFERROR((BE85/VLOOKUP($B85,Funding,Funding!$HC$2,FALSE)), \"x\")","v":0.15085089570487015},{"$f":"IFERROR((BE85/(VLOOKUP($B85,Pupils,Pupils!$D$3,FALSE)+VLOOKUP($B85,Pupils,Pupils!$E$3,FALSE))), \"x\")","v":2808.8309800317488},{"$f":"IFERROR((VLOOKUP($B85,Funding,Funding!$GP$2,FALSE)), \"x\")","v":32665935},{"$f":"IFERROR((BH85/VLOOKUP($B85,Funding,Funding!$GU$2,FALSE)), \"x\")","v":0.15433661181562366},{"$f":"IFERROR((BH85/(VLOOKUP($B85,Pupils,Pupils!$G$3,FALSE)+VLOOKUP($B85,Pupils,Pupils!$H$3,FALSE))), \"x\")","v":2796.0228537190792},{"$f":"IFERROR((VLOOKUP($B85,Funding,Funding!$GH$2,FALSE)), \"x\")","v":32964072.07},{"$f":"IFERROR((BK85/VLOOKUP($B85,Funding,Funding!$GM$2,FALSE)), \"x\")","v":0.1964296956979226},{"$f":"IFERROR((BK85/(VLOOKUP($B85,Pupils,Pupils!$J$3,FALSE)+VLOOKUP($B85,Pupils,Pupils!$K$3,FALSE))), \"x\")","v":2912.7924423433774},{"$f":"IFERROR((VLOOKUP($B85,Funding,Funding!$FZ$2,FALSE)), \"x\")","v":32995789.060000002},{"$f":"IFERROR((BN85/VLOOKUP($B85,Funding,Funding!$GE$2,FALSE)), \"x\")","v":0.23531635392025657},{"$f":"IFERROR((BN85/(VLOOKUP($B85,Pupils,Pupils!$M$3,FALSE)+VLOOKUP($B85,Pupils,Pupils!$P$3,FALSE))), \"x\")","v":3087.7586618004871},{"$f":"IFERROR((VLOOKUP($B85,Funding,Funding!$FD$2,FALSE)), \"x\")","v":23179428},{"$f":"IFERROR((BQ85/VLOOKUP($B85,Funding,Funding!$FR$2,FALSE)), \"x\")","v":0.11886228753963531},{"$f":"IFERROR((BQ85/(VLOOKUP($B85,Pupils,Pupils!$R$3,FALSE)+VLOOKUP($B85,Pupils,Pupils!$U$3,FALSE))), \"x\")","v":2230.2923121331664},{"$f":"(VLOOKUP(B85,Funding,Funding!$HK$2,FALSE)+VLOOKUP(B85,Funding,Funding!$HL$2,FALSE)+VLOOKUP(B85,Funding,Funding!$HM$2,FALSE))/(VLOOKUP(B85,Funding,Funding!$HN$2,FALSE))","v":0.17172464840858623},{"$f":"IFERROR((VLOOKUP(B85,Other_data,Other!$D$3,FALSE)+VLOOKUP(B85,Other_data,Other!$E$3,FALSE)+VLOOKUP(B85,Other_data,Other!$F$3,FALSE)), \"x\")","v":2440},{"$f":"(VLOOKUP(B85,Other_data,Other!$AK$3,FALSE)+VLOOKUP(B85,Other_data,Other!$AL$3,FALSE))/VLOOKUP(B85,Other_data,Other!$AJ$3,FALSE)","v":4.8629200007495828E-2},{"$f":"(VLOOKUP(B85,Other_data,Other!$AR$3,FALSE)+VLOOKUP(B85,Other_data,Other!$AS$3,FALSE))/VLOOKUP(B85,Other_data,Other!$AQ$3,FALSE)","v":6.2088574342491577E-2},{"$f":"VLOOKUP(B85,Other_data,Other!$AP$3,FALSE)/VLOOKUP(B85,Other_data,Other!$AJ$3,FALSE)","v":6.3901954537788352E-3},{"$f":"VLOOKUP(B85,Other_data,Other!$AW$3,FALSE)/VLOOKUP(B85,Other_data,Other!$AQ$3,FALSE)","v":1.1342213431405878E-2}]
[80,315,"Merton",{"$f":"IFERROR((VLOOKUP($B86,Pupils,Pupils!$D$3,FALSE)/VLOOKUP($B86,Pupils,Pupils!$C$3,FALSE)), \"x\")","v":3.2884479092841958E-2},{"$f":"IFERROR((VLOOKUP($B86,Pupils,Pupils!$G$3,FALSE)/VLOOKUP($B86,Pupils,Pupils!$F$3,FALSE)),\"x\")","v":3.0971913236929924E-2},{"$f":"IFERROR((VLOOKUP($B86,Pupils,Pupils!$J$3,FALSE)/VLOOKUP($B86,Pupils,Pupils!$I$3,FALSE)), \"x\")","v":3.1078302490983246E-2},{"$f":"IFERROR((VLOOKUP($B86,Pupils,Pupils!$M$3,FALSE)/VLOOKUP($B86,Pupils,Pupils!$L$3,FALSE)), \"x\")","v":3.1208434712084347E-2},{"$f":"IFERROR((VLOOKUP($B86,Pupils,Pupils!$R$3,FALSE)/VLOOKUP($B86,Pupils,Pupils!$Q$3,FALSE)), \"x\")","v":3.3143038376149701E-2},{"$f":"IFERROR((VLOOKUP($B86,Pupils,Pupils!$W$3,FALSE)/VLOOKUP($B86,Pupils,Pupils!$V$3,FALSE)), \"x\")","v":3.4383864833691824E-2},{"$f":"IFERROR(((VLOOKUP($B86,Pupils,Pupils!$D$3,FALSE)+VLOOKUP($B86,Pupils,Pupils!$E$3,FALSE))/VLOOKUP($B86,Pupils,Pupils!$C$3,FALSE)), \"x\")","v":0.19177888022678952},{"$f":"IFERROR(((VLOOKUP($B86,Pupils,Pupils!$G$3,FALSE)+VLOOKUP($B86,Pupils,Pupils!$H$3,FALSE))/VLOOKUP($B86,Pupils,Pupils!$F$3,FALSE)), \"x\")","v":0.19062847608453837},{"$f":"IFERROR(((VLOOKUP($B86,Pupils,Pupils!$J$3,FALSE)+VLOOKUP($B86,Pupils,Pupils!$K$3,FALSE))/VLOOKUP($B86,Pupils,Pupils!$I$3,FALSE)), \"x\")","v":0.18151481444028719},{"$f":"IFERROR(((VLOOKUP($B86,Pupils,Pupils!$M$3,FALSE)+VLOOKUP($B86,Pupils,Pupils!$P$3,FALSE))/VLOOKUP($B86,Pupils,Pupils!$L$3,FALSE)), \"x\")","v":0.18118410381184105},{"$f":"IFERROR(((VLOOKUP($B86,Pupils,Pupils!$R$3,FALSE)+VLOOKUP($B86,Pupils,Pupils!$U$3,FALSE))/VLOOKUP($B86,Pupils,Pupils!$Q$3,FALSE)), \"x\")","v":0.17377101173485568},{"$f":"IFERROR(((VLOOKUP($B86,Pupils,Pupils!$W$3,FALSE)+VLOOKUP($B86,Pupils,Pupils!$Z$3,FALSE))/VLOOKUP($B86,Pupils,Pupils!$V$3,FALSE)), \"x\")","v":0.16923844259484397},{"$f":"(SUM(INDEX(Pupils!$AB$7:$AB$159,MATCH($B86,Pupils!$A$7:$A$159,0)),INDEX(Pupils!$AC$7:$AC$159,MATCH($B86,Pupils!$A$7:$A$159,0)),INDEX(Pupils!$AD$7:$AD$159,MATCH($B86,Pupils!$A$7:$A$159,0)),INDEX(Pupils!$AE$7:$AE$159,MATCH($B86,Pupils!$A$7:$A$159,0))))/SUM(INDEX(Pupils!$AB$7:$AM$159,MATCH($B86,Pupils!$A$7:$A$159,0),0))","v":0.33601789709172258},{"$f":"SUM(INDEX(Pupils!$AF$7:$AF$159,MATCH($B86,Pupils!$A$7:$A$159,0)))/SUM(INDEX(Pupils!$AB$7:$AM$159,MATCH($B86,Pupils!$A$7:$A$159,0),0))","v":0.23624161073825503},{"$f":"SUM(INDEX(Pupils!$AG$7:$AG$159,MATCH($B86,Pupils!$A$7:$A$159,0)))/SUM(INDEX(Pupils!$AB$7:$AM$159,MATCH($B86,Pupils!$A$7:$A$159,0),0))","v":0.25950782997762861},{"$f":"(SUM(INDEX(Pupils!$AH$7:$AH$159,MATCH($B86,Pupils!$A$7:$A$159,0)),INDEX(Pupils!$AI$7:$AI$159,MATCH($B86,Pupils!$A$7:$A$159,0)),INDEX(Pupils!$AJ$7:$AJ$159,MATCH($B86,Pupils!$A$7:$A$159,0))))/SUM(INDEX(Pupils!$AB$7:$AM$159,MATCH($B86,Pupils!$A$7:$A$159,0),0))","v":1.9239373601789709E-2},{"$f":"SUM(INDEX(Pupils!$AK$7:$AK$159,MATCH($B86,Pupils!$A$7:$A$159,0)))/SUM(INDEX(Pupils!$AB$7:$AM$159,MATCH($B86,Pupils!$A$7:$A$159,0),0))","v":2.371364653243848E-2},{"$f":"SUM(INDEX(Pupils!$AL$7:$AL$159,MATCH($B86,Pupils!$A$7:$A$159,0)))/SUM(INDEX(Pupils!$AB$7:$AM$159,MATCH($B86,Pupils!$A$7:$A$159,0),0))","v":0.10961968680089486},{"$f":"SUM(INDEX(Pupils!$AM$7:$AM$159,MATCH($B86,Pupils!$A$7:$A$159,0)))/SUM(INDEX(Pupils!$AB$7:$AM$159,MATCH($B86,Pupils!$A$7:$A$159,0),0))","v":1.5659955257270694E-2},{"$f":"(SUM(INDEX(Pupils!$BH$7:$BH$159,MATCH($B86,Pupils!$A$7:$A$159,0)),INDEX(Pupils!$BK$7:$BK$159,MATCH($B86,Pupils!$A$7:$A$159,0)),INDEX(Pupils!$BO$7:$BO$159,MATCH($B86,Pupils!$A$7:$A$159,0))))/SUM(INDEX(Pupils!$BH$7:$BS$159,MATCH($B86,Pupils!$A$7:$A$159,0),0))","v":0.47317073170731705},{"$f":"(SUM(INDEX(Pupils!$BL$7:$BL$159,MATCH($B86,Pupils!$A$7:$A$159,0)),INDEX(Pupils!$BM$7:$BM$159,MATCH($B86,Pupils!$A$7:$A$159,0)),INDEX(Pupils!$BP$7:$BP$159,MATCH($B86,Pupils!$A$7:$A$159,0))))/SUM(INDEX(Pupils!$BH$7:$BS$159,MATCH($B86,Pupils!$A$7:$A$159,0),0))","v":0.43707317073170732},{"$f":"(SUM(INDEX(Pupils!$BI$7:$BI$159,MATCH($B86,Pupils!$A$7:$A$159,0)),INDEX(Pupils!$BJ$7:$BJ$159,MATCH($B86,Pupils!$A$7:$A$159,0))))/SUM(INDEX(Pupils!$BH$7:$BS$159,MATCH($B86,Pupils!$A$7:$A$159,0),0))","v":8.9756097560975606E-2},{"$f":"(SUM(INDEX(Pupils!$BQ$7:$BQ$159,MATCH($B86,Pupils!$A$7:$A$159,0)),INDEX(Pupils!$BR$7:$BR$159,MATCH($B86,Pupils!$A$7:$A$159,0)),INDEX(Pupils!$BN$7:$BN$159,MATCH($B86,Pupils!$A$7:$A$159,0)),INDEX(Pupils!$BS$7:$BS$159,MATCH($B86,Pupils!$A$7:$A$159,0))))/SUM(INDEX(Pupils!$BH$7:$BS$159,MATCH($B86,Pupils!$A$7:$A$159,0),0))","v":0},{"$f":"IFERROR((VLOOKUP(B86,Funding,Funding!$C$2,FALSE)), \"x\")","v":24151319.300000001},{"$f":"IFERROR((AA86/VLOOKUP(B86,Funding,Funding!$D$2,FALSE)), \"x\")","v":0.18804734693994149},{"$f":"IFERROR((AA86/(VLOOKUP(B86,Pupils,Pupils!$M$3,FALSE)+VLOOKUP(B86,Pupils,Pupils!$P$3,FALSE))), \"x\")","v":4324.3185854968669},{"$f":"IFERROR((VLOOKUP(B86,Funding,Funding!$E$2,FALSE)), \"x\")","v":26759084.879222117},{"$f":"IFERROR((AD86/VLOOKUP(B86,Funding,Funding!$F$2,FALSE)), \"x\")","v":0.19742752508709283},{"$f":"IFERROR((AD86/(VLOOKUP(B86,Pupils,Pupils!$R$3,FALSE)+VLOOKUP(B86,Pupils,Pupils!$U$3,FALSE))), \"x\")","v":4883.9359151710378},{"$f":"IFERROR((VLOOKUP(B86,Funding,Funding!$G$2,FALSE)), \"x\")","v":27607449.84379359},{"$f":"IFERROR((AG86/VLOOKUP(B86,Funding,Funding!$H$2,FALSE)), \"x\")","v":0.19948869136843325},{"$f":"IFERROR((AG86/(VLOOKUP(B86,Pupils,Pupils!$W$3,FALSE)+VLOOKUP(B86,Pupils,Pupils!$Z$3,FALSE))), \"x\")","v":5085.1814042721662},{"$f":"IFERROR((VLOOKUP(B86,Funding,Funding!$I$2,FALSE)), \"x\")","v":27895585.567717031},{"$f":"IFERROR((AJ86/VLOOKUP(B86,Funding,Funding!$J$2,FALSE)), \"x\")","v":0.18078680998643581},null,{"$f":"IFERROR((VLOOKUP($B86,Funding,Funding!$EC$2,FALSE)), \"x\")","v":13065872},{"$f":"IFERROR((AM86/VLOOKUP($B86,Funding,Funding!$EU$2,FALSE)), \"x\")","v":0.11455200980033343},{"$f":"IFERROR((AM86/(VLOOKUP($B86,Pupils,Pupils!$D$3,FALSE)+VLOOKUP($B86,Pupils,Pupils!$E$3,FALSE))), \"x\")","v":2414.2409460458239},{"$f":"IFERROR((VLOOKUP($B86,Funding,Funding!$DA$2,FALSE)), \"x\")","v":14277860},{"$f":"IFERROR((AP86/VLOOKUP($B86,Funding,Funding!$DT$2,FALSE)), \"x\")","v":0.11562531627868922},{"$f":"IFERROR((AP86/(VLOOKUP($B86,Pupils,Pupils!$G$3,FALSE)+VLOOKUP($B86,Pupils,Pupils!$H$3,FALSE))), \"x\")","v":2603.5485047410648},{"$f":"IFERROR((VLOOKUP($B86,Funding,Funding!$CE$2,FALSE)), \"x\")","v":16607892},{"$f":"IFERROR((AS86/VLOOKUP($B86,Funding,Funding!$CR$2,FALSE)), \"x\")","v":0.13625900024526452},{"$f":"IFERROR((AS86/(VLOOKUP($B86,Pupils,Pupils!$J$3,FALSE)+VLOOKUP($B86,Pupils,Pupils!$K$3,FALSE))), \"x\")","v":3084.1025069637885},{"$f":"IFERROR((VLOOKUP($B86,Funding,Funding!$BM$2,FALSE)), \"x\")","v":17804964.300000001},{"$f":"IFERROR((AV86/VLOOKUP($B86,Funding,Funding!$BY$2,FALSE)), \"x\")","v":0.12855065465425033},{"$f":"IFERROR((AV86/(VLOOKUP($B86,Pupils,Pupils!$M$3,FALSE)+VLOOKUP($B86,Pupils,Pupils!$P$3,FALSE))), \"x\")","v":3187.9971888988362},{"$f":"IFERROR((VLOOKUP($B86,Funding,Funding!$AQ$2,FALSE)), \"x\")","v":23580360.310000002},{"$f":"IFERROR((AY86/VLOOKUP($B86,Funding,Funding!$BE$2,FALSE)), \"x\")","v":0.16878070190055022},{"$f":"IFERROR((AY86/(VLOOKUP($B86,Pupils,Pupils!$R$3,FALSE)+VLOOKUP($B86,Pupils,Pupils!$U$3,FALSE))), \"x\")","v":4303.7708176674578},{"$f":"IFERROR((VLOOKUP($B86,Funding,Funding!$S$2,FALSE)), \"x\")","v":24832719},{"$f":"IFERROR((BB86/VLOOKUP($B86,Funding,Funding!$AH$2,FALSE)), \"x\")","v":0.17392759011250278},{"$f":"IFERROR((BB86/(VLOOKUP(B86,Pupils,Pupils!$W$3,FALSE)+VLOOKUP(B86,Pupils,Pupils!$Z$3,FALSE))), \"x\")","v":4574.0871247006817},{"$f":"IFERROR((VLOOKUP($B86,Funding,Funding!$GX$2,FALSE)), \"x\")","v":23602051.640000001},{"$f":"IFERROR((BE86/VLOOKUP($B86,Funding,Funding!$HC$2,FALSE)), \"x\")","v":0.17977114744276038},{"$f":"IFERROR((BE86/(VLOOKUP($B86,Pupils,Pupils!$D$3,FALSE)+VLOOKUP($B86,Pupils,Pupils!$E$3,FALSE))), \"x\")","v":4361.0590613451586},{"$f":"IFERROR((VLOOKUP($B86,Funding,Funding!$GP$2,FALSE)), \"x\")","v":25101270},{"$f":"IFERROR((BH86/VLOOKUP($B86,Funding,Funding!$GU$2,FALSE)), \"x\")","v":0.17237365717391906},{"$f":"IFERROR((BH86/(VLOOKUP($B86,Pupils,Pupils!$G$3,FALSE)+VLOOKUP($B86,Pupils,Pupils!$H$3,FALSE))), \"x\")","v":4577.182713347921},{"$f":"IFERROR((VLOOKUP($B86,Funding,Funding!$GH$2,FALSE)), \"x\")","v":28510484.809999999},{"$f":"IFERROR((BK86/VLOOKUP($B86,Funding,Funding!$GM$2,FALSE)), \"x\")","v":0.19774266616237943},{"$f":"IFERROR((BK86/(VLOOKUP($B86,Pupils,Pupils!$J$3,FALSE)+VLOOKUP($B86,Pupils,Pupils!$K$3,FALSE))), \"x\")","v":5294.4261485608167},{"$f":"IFERROR((VLOOKUP($B86,Funding,Funding!$FZ$2,FALSE)), \"x\")","v":28602364.370000001},{"$f":"IFERROR((BN86/VLOOKUP($B86,Funding,Funding!$GE$2,FALSE)), \"x\")","v":0.1911542814854349},{"$f":"IFERROR((BN86/(VLOOKUP($B86,Pupils,Pupils!$M$3,FALSE)+VLOOKUP($B86,Pupils,Pupils!$P$3,FALSE))), \"x\")","v":5121.2827878245298},{"$f":"IFERROR((VLOOKUP($B86,Funding,Funding!$FD$2,FALSE)), \"x\")","v":24551567},{"$f":"IFERROR((BQ86/VLOOKUP($B86,Funding,Funding!$FR$2,FALSE)), \"x\")","v":0.18025098204085035},{"$f":"IFERROR((BQ86/(VLOOKUP($B86,Pupils,Pupils!$R$3,FALSE)+VLOOKUP($B86,Pupils,Pupils!$U$3,FALSE))), \"x\")","v":4481.0306625296589},{"$f":"(VLOOKUP(B86,Funding,Funding!$HK$2,FALSE)+VLOOKUP(B86,Funding,Funding!$HL$2,FALSE)+VLOOKUP(B86,Funding,Funding!$HM$2,FALSE))/(VLOOKUP(B86,Funding,Funding!$HN$2,FALSE))","v":0.20395738203957381},{"$f":"IFERROR((VLOOKUP(B86,Other_data,Other!$D$3,FALSE)+VLOOKUP(B86,Other_data,Other!$E$3,FALSE)+VLOOKUP(B86,Other_data,Other!$F$3,FALSE)), \"x\")","v":890},{"$f":"(VLOOKUP(B86,Other_data,Other!$AK$3,FALSE)+VLOOKUP(B86,Other_data,Other!$AL$3,FALSE))/VLOOKUP(B86,Other_data,Other!$AJ$3,FALSE)","v":2.9546625450798558E-2},{"$f":"(VLOOKUP(B86,Other_data,Other!$AR$3,FALSE)+VLOOKUP(B86,Other_data,Other!$AS$3,FALSE))/VLOOKUP(B86,Other_data,Other!$AQ$3,FALSE)","v":4.4251245482074826E-2},{"$f":"VLOOKUP(B86,Other_data,Other!$AP$3,FALSE)/VLOOKUP(B86,Other_data,Other!$AJ$3,FALSE)","v":5.6929417825862961E-3},{"$f":"VLOOKUP(B86,Other_data,Other!$AW$3,FALSE)/VLOOKUP(B86,Other_data,Other!$AQ$3,FALSE)","v":8.9870079124743582E-3}]
[81,806,"Middlesbrough",{"$f":"IFERROR((VLOOKUP($B87,Pupils,Pupils!$D$3,FALSE)/VLOOKUP($B87,Pupils,Pupils!$C$3,FALSE)), \"x\")","v":3.6498594518622626E-2},{"$f":"IFERROR((VLOOKUP($B87,Pupils,Pupils!$G$3,FALSE)/VLOOKUP($B87,Pupils,Pupils!$F$3,FALSE)),\"x\")","v":3.4449124362669031E-2},{"$f":"IFERROR((VLOOKUP($B87,Pupils,Pupils!$J$3,FALSE)/VLOOKUP($B87,Pupils,Pupils!$I$3,FALSE)), \"x\")","v":3.3884738527214513E-2},{"$f":"IFERROR((VLOOKUP($B87,Pupils,Pupils!$M$3,FALSE)/VLOOKUP($B87,Pupils,Pupils!$L$3,FALSE)), \"x\")","v":3.2280794468666052E-2},{"$f":"IFERROR((VLOOKUP($B87,Pupils,Pupils!$R$3,FALSE)/VLOOKUP($B87,Pupils,Pupils!$Q$3,FALSE)), \"x\")","v":3.4235807860262008E-2},{"$f":"IFERROR((VLOOKUP($B87,Pupils,Pupils!$W$3,FALSE)/VLOOKUP($B87,Pupils,Pupils!$V$3,FALSE)), \"x\")","v":3.2848305306264702E-2},{"$f":"IFERROR(((VLOOKUP($B87,Pupils,Pupils!$D$3,FALSE)+VLOOKUP($B87,Pupils,Pupils!$E$3,FALSE))/VLOOKUP($B87,Pupils,Pupils!$C$3,FALSE)), \"x\")","v":0.19193605059732957},{"$f":"IFERROR(((VLOOKUP($B87,Pupils,Pupils!$G$3,FALSE)+VLOOKUP($B87,Pupils,Pupils!$H$3,FALSE))/VLOOKUP($B87,Pupils,Pupils!$F$3,FALSE)), \"x\")","v":0.19889159831522943},{"$f":"IFERROR(((VLOOKUP($B87,Pupils,Pupils!$J$3,FALSE)+VLOOKUP($B87,Pupils,Pupils!$K$3,FALSE))/VLOOKUP($B87,Pupils,Pupils!$I$3,FALSE)), \"x\")","v":0.19672714336535041},{"$f":"IFERROR(((VLOOKUP($B87,Pupils,Pupils!$M$3,FALSE)+VLOOKUP($B87,Pupils,Pupils!$P$3,FALSE))/VLOOKUP($B87,Pupils,Pupils!$L$3,FALSE)), \"x\")","v":0.1952701810014533},{"$f":"IFERROR(((VLOOKUP($B87,Pupils,Pupils!$R$3,FALSE)+VLOOKUP($B87,Pupils,Pupils!$U$3,FALSE))/VLOOKUP($B87,Pupils,Pupils!$Q$3,FALSE)), \"x\")","v":0.20331877729257641},{"$f":"IFERROR(((VLOOKUP($B87,Pupils,Pupils!$W$3,FALSE)+VLOOKUP($B87,Pupils,Pupils!$Z$3,FALSE))/VLOOKUP($B87,Pupils,Pupils!$V$3,FALSE)), \"x\")","v":0.20135924021956958},{"$f":"(SUM(INDEX(Pupils!$AB$7:$AB$159,MATCH($B87,Pupils!$A$7:$A$159,0)),INDEX(Pupils!$AC$7:$AC$159,MATCH($B87,Pupils!$A$7:$A$159,0)),INDEX(Pupils!$AD$7:$AD$159,MATCH($B87,Pupils!$A$7:$A$159,0)),INDEX(Pupils!$AE$7:$AE$159,MATCH($B87,Pupils!$A$7:$A$159,0))))/SUM(INDEX(Pupils!$AB$7:$AM$159,MATCH($B87,Pupils!$A$7:$A$159,0),0))","v":0.47302737520128824},{"$f":"SUM(INDEX(Pupils!$AF$7:$AF$159,MATCH($B87,Pupils!$A$7:$A$159,0)))/SUM(INDEX(Pupils!$AB$7:$AM$159,MATCH($B87,Pupils!$A$7:$A$159,0),0))","v":0.19484702093397746},{"$f":"SUM(INDEX(Pupils!$AG$7:$AG$159,MATCH($B87,Pupils!$A$7:$A$159,0)))/SUM(INDEX(Pupils!$AB$7:$AM$159,MATCH($B87,Pupils!$A$7:$A$159,0),0))","v":0.12600644122383253},{"$f":"(SUM(INDEX(Pupils!$AH$7:$AH$159,MATCH($B87,Pupils!$A$7:$A$159,0)),INDEX(Pupils!$AI$7:$AI$159,MATCH($B87,Pupils!$A$7:$A$159,0)),INDEX(Pupils!$AJ$7:$AJ$159,MATCH($B87,Pupils!$A$7:$A$159,0))))/SUM(INDEX(Pupils!$AB$7:$AM$159,MATCH($B87,Pupils!$A$7:$A$159,0),0))","v":5.5555555555555552E-2},{"$f":"SUM(INDEX(Pupils!$AK$7:$AK$159,MATCH($B87,Pupils!$A$7:$A$159,0)))/SUM(INDEX(Pupils!$AB$7:$AM$159,MATCH($B87,Pupils!$A$7:$A$159,0),0))","v":2.8985507246376812E-2},{"$f":"SUM(INDEX(Pupils!$AL$7:$AL$159,MATCH($B87,Pupils!$A$7:$A$159,0)))/SUM(INDEX(Pupils!$AB$7:$AM$159,MATCH($B87,Pupils!$A$7:$A$159,0),0))","v":9.9838969404186795E-2},{"$f":"SUM(INDEX(Pupils!$AM$7:$AM$159,MATCH($B87,Pupils!$A$7:$A$159,0)))/SUM(INDEX(Pupils!$AB$7:$AM$159,MATCH($B87,Pupils!$A$7:$A$159,0),0))","v":2.1739130434782608E-2},{"$f":"(SUM(INDEX(Pupils!$BH$7:$BH$159,MATCH($B87,Pupils!$A$7:$A$159,0)),INDEX(Pupils!$BK$7:$BK$159,MATCH($B87,Pupils!$A$7:$A$159,0)),INDEX(Pupils!$BO$7:$BO$159,MATCH($B87,Pupils!$A$7:$A$159,0))))/SUM(INDEX(Pupils!$BH$7:$BS$159,MATCH($B87,Pupils!$A$7:$A$159,0),0))","v":0.25737265415549598},{"$f":"(SUM(INDEX(Pupils!$BL$7:$BL$159,MATCH($B87,Pupils!$A$7:$A$159,0)),INDEX(Pupils!$BM$7:$BM$159,MATCH($B87,Pupils!$A$7:$A$159,0)),INDEX(Pupils!$BP$7:$BP$159,MATCH($B87,Pupils!$A$7:$A$159,0))))/SUM(INDEX(Pupils!$BH$7:$BS$159,MATCH($B87,Pupils!$A$7:$A$159,0),0))","v":0.61662198391420908},{"$f":"(SUM(INDEX(Pupils!$BI$7:$BI$159,MATCH($B87,Pupils!$A$7:$A$159,0)),INDEX(Pupils!$BJ$7:$BJ$159,MATCH($B87,Pupils!$A$7:$A$159,0))))/SUM(INDEX(Pupils!$BH$7:$BS$159,MATCH($B87,Pupils!$A$7:$A$159,0),0))","v":0.10723860589812333},{"$f":"(SUM(INDEX(Pupils!$BQ$7:$BQ$159,MATCH($B87,Pupils!$A$7:$A$159,0)),INDEX(Pupils!$BR$7:$BR$159,MATCH($B87,Pupils!$A$7:$A$159,0)),INDEX(Pupils!$BN$7:$BN$159,MATCH($B87,Pupils!$A$7:$A$159,0)),INDEX(Pupils!$BS$7:$BS$159,MATCH($B87,Pupils!$A$7:$A$159,0))))/SUM(INDEX(Pupils!$BH$7:$BS$159,MATCH($B87,Pupils!$A$7:$A$159,0),0))","v":1.876675603217158E-2},{"$f":"IFERROR((VLOOKUP(B87,Funding,Funding!$C$2,FALSE)), \"x\")","v":16113938.000000002},{"$f":"IFERROR((AA87/VLOOKUP(B87,Funding,Funding!$D$2,FALSE)), \"x\")","v":0.16533251833165055},{"$f":"IFERROR((AA87/(VLOOKUP(B87,Pupils,Pupils!$M$3,FALSE)+VLOOKUP(B87,Pupils,Pupils!$P$3,FALSE))), \"x\")","v":3634.176364456473},{"$f":"IFERROR((VLOOKUP(B87,Funding,Funding!$E$2,FALSE)), \"x\")","v":17646531.010638468},{"$f":"IFERROR((AD87/VLOOKUP(B87,Funding,Funding!$F$2,FALSE)), \"x\")","v":0.1707846837460813},{"$f":"IFERROR((AD87/(VLOOKUP(B87,Pupils,Pupils!$R$3,FALSE)+VLOOKUP(B87,Pupils,Pupils!$U$3,FALSE))), \"x\")","v":3790.0625022848944},{"$f":"IFERROR((VLOOKUP(B87,Funding,Funding!$G$2,FALSE)), \"x\")","v":18404296.486682892},{"$f":"IFERROR((AG87/VLOOKUP(B87,Funding,Funding!$H$2,FALSE)), \"x\")","v":0.17417908320170197},{"$f":"IFERROR((AG87/(VLOOKUP(B87,Pupils,Pupils!$W$3,FALSE)+VLOOKUP(B87,Pupils,Pupils!$Z$3,FALSE))), \"x\")","v":3981.8901961667875},{"$f":"IFERROR((VLOOKUP(B87,Funding,Funding!$I$2,FALSE)), \"x\")","v":19437170.063609291},{"$f":"IFERROR((AJ87/VLOOKUP(B87,Funding,Funding!$J$2,FALSE)), \"x\")","v":0.16247603099204463},null,{"$f":"IFERROR((VLOOKUP($B87,Funding,Funding!$EC$2,FALSE)), \"x\")","v":11929211},{"$f":"IFERROR((AM87/VLOOKUP($B87,Funding,Funding!$EU$2,FALSE)), \"x\")","v":0.11953462782967222},{"$f":"IFERROR((AM87/(VLOOKUP($B87,Pupils,Pupils!$D$3,FALSE)+VLOOKUP($B87,Pupils,Pupils!$E$3,FALSE))), \"x\")","v":2729.7965675057208},{"$f":"IFERROR((VLOOKUP($B87,Funding,Funding!$DA$2,FALSE)), \"x\")","v":12208479},{"$f":"IFERROR((AP87/VLOOKUP($B87,Funding,Funding!$DT$2,FALSE)), \"x\")","v":0.117702166315544},{"$f":"IFERROR((AP87/(VLOOKUP($B87,Pupils,Pupils!$G$3,FALSE)+VLOOKUP($B87,Pupils,Pupils!$H$3,FALSE))), \"x\")","v":2721.4621043245652},{"$f":"IFERROR((VLOOKUP($B87,Funding,Funding!$CE$2,FALSE)), \"x\")","v":11357377},{"$f":"IFERROR((AS87/VLOOKUP($B87,Funding,Funding!$CR$2,FALSE)), \"x\")","v":0.10846416008331666},{"$f":"IFERROR((AS87/(VLOOKUP($B87,Pupils,Pupils!$J$3,FALSE)+VLOOKUP($B87,Pupils,Pupils!$K$3,FALSE))), \"x\")","v":2567.2190325497286},{"$f":"IFERROR((VLOOKUP($B87,Funding,Funding!$BM$2,FALSE)), \"x\")","v":11382943.42},{"$f":"IFERROR((AV87/VLOOKUP($B87,Funding,Funding!$BY$2,FALSE)), \"x\")","v":0.10908949413093984},{"$f":"IFERROR((AV87/(VLOOKUP($B87,Pupils,Pupils!$M$3,FALSE)+VLOOKUP($B87,Pupils,Pupils!$P$3,FALSE))), \"x\")","v":2567.1951781686962},{"$f":"IFERROR((VLOOKUP($B87,Funding,Funding!$AQ$2,FALSE)), \"x\")","v":19140474},{"$f":"IFERROR((AY87/VLOOKUP($B87,Funding,Funding!$BE$2,FALSE)), \"x\")","v":0.18371769405795096},{"$f":"IFERROR((AY87/(VLOOKUP($B87,Pupils,Pupils!$R$3,FALSE)+VLOOKUP($B87,Pupils,Pupils!$U$3,FALSE))), \"x\")","v":4110.9265463917527},{"$f":"IFERROR((VLOOKUP($B87,Funding,Funding!$S$2,FALSE)), \"x\")","v":17295135},{"$f":"IFERROR((BB87/VLOOKUP($B87,Funding,Funding!$AH$2,FALSE)), \"x\")","v":0.16119953649627747},{"$f":"IFERROR((BB87/(VLOOKUP(B87,Pupils,Pupils!$W$3,FALSE)+VLOOKUP(B87,Pupils,Pupils!$Z$3,FALSE))), \"x\")","v":3741.91583729987},{"$f":"IFERROR((VLOOKUP($B87,Funding,Funding!$GX$2,FALSE)), \"x\")","v":13211056.449999999},{"$f":"IFERROR((BE87/VLOOKUP($B87,Funding,Funding!$HC$2,FALSE)), \"x\")","v":0.11425292055745717},{"$f":"IFERROR((BE87/(VLOOKUP($B87,Pupils,Pupils!$D$3,FALSE)+VLOOKUP($B87,Pupils,Pupils!$E$3,FALSE))), \"x\")","v":3023.1250457665901},{"$f":"IFERROR((VLOOKUP($B87,Funding,Funding!$GP$2,FALSE)), \"x\")","v":13497041},{"$f":"IFERROR((BH87/VLOOKUP($B87,Funding,Funding!$GU$2,FALSE)), \"x\")","v":0.12427959237780299},{"$f":"IFERROR((BH87/(VLOOKUP($B87,Pupils,Pupils!$G$3,FALSE)+VLOOKUP($B87,Pupils,Pupils!$H$3,FALSE))), \"x\")","v":3008.7028533214443},{"$f":"IFERROR((VLOOKUP($B87,Funding,Funding!$GH$2,FALSE)), \"x\")","v":13876656.050000001},{"$f":"IFERROR((BK87/VLOOKUP($B87,Funding,Funding!$GM$2,FALSE)), \"x\")","v":0.12869991341389975},{"$f":"IFERROR((BK87/(VLOOKUP($B87,Pupils,Pupils!$J$3,FALSE)+VLOOKUP($B87,Pupils,Pupils!$K$3,FALSE))), \"x\")","v":3136.6763223327307},{"$f":"IFERROR((VLOOKUP($B87,Funding,Funding!$FZ$2,FALSE)), \"x\")","v":14839165.370000001},{"$f":"IFERROR((BN87/VLOOKUP($B87,Funding,Funding!$GE$2,FALSE)), \"x\")","v":0.14324987128388564},{"$f":"IFERROR((BN87/(VLOOKUP($B87,Pupils,Pupils!$M$3,FALSE)+VLOOKUP($B87,Pupils,Pupils!$P$3,FALSE))), \"x\")","v":3346.6768989625621},{"$f":"IFERROR((VLOOKUP($B87,Funding,Funding!$FD$2,FALSE)), \"x\")","v":17072670},{"$f":"IFERROR((BQ87/VLOOKUP($B87,Funding,Funding!$FR$2,FALSE)), \"x\")","v":0.19690113851723667},{"$f":"IFERROR((BQ87/(VLOOKUP($B87,Pupils,Pupils!$R$3,FALSE)+VLOOKUP($B87,Pupils,Pupils!$U$3,FALSE))), \"x\")","v":3666.8105670103091},{"$f":"(VLOOKUP(B87,Funding,Funding!$HK$2,FALSE)+VLOOKUP(B87,Funding,Funding!$HL$2,FALSE)+VLOOKUP(B87,Funding,Funding!$HM$2,FALSE))/(VLOOKUP(B87,Funding,Funding!$HN$2,FALSE))","v":0.13191076624636275},{"$f":"IFERROR((VLOOKUP(B87,Other_data,Other!$D$3,FALSE)+VLOOKUP(B87,Other_data,Other!$E$3,FALSE)+VLOOKUP(B87,Other_data,Other!$F$3,FALSE)), \"x\")","v":1130},{"$f":"(VLOOKUP(B87,Other_data,Other!$AK$3,FALSE)+VLOOKUP(B87,Other_data,Other!$AL$3,FALSE))/VLOOKUP(B87,Other_data,Other!$AJ$3,FALSE)","v":4.7615645651009106E-2},{"$f":"(VLOOKUP(B87,Other_data,Other!$AR$3,FALSE)+VLOOKUP(B87,Other_data,Other!$AS$3,FALSE))/VLOOKUP(B87,Other_data,Other!$AQ$3,FALSE)","v":5.9050743425578076E-2},{"$f":"VLOOKUP(B87,Other_data,Other!$AP$3,FALSE)/VLOOKUP(B87,Other_data,Other!$AJ$3,FALSE)","v":9.2873727451330598E-3},{"$f":"VLOOKUP(B87,Other_data,Other!$AW$3,FALSE)/VLOOKUP(B87,Other_data,Other!$AQ$3,FALSE)","v":1.6138420022223397E-2}]
[82,826,"Milton Keynes",{"$f":"IFERROR((VLOOKUP($B88,Pupils,Pupils!$D$3,FALSE)/VLOOKUP($B88,Pupils,Pupils!$C$3,FALSE)), \"x\")","v":3.1169222275202649E-2},{"$f":"IFERROR((VLOOKUP($B88,Pupils,Pupils!$G$3,FALSE)/VLOOKUP($B88,Pupils,Pupils!$F$3,FALSE)),\"x\")","v":3.1475040415421547E-2},{"$f":"IFERROR((VLOOKUP($B88,Pupils,Pupils!$J$3,FALSE)/VLOOKUP($B88,Pupils,Pupils!$I$3,FALSE)), \"x\")","v":3.0490595120541412E-2},{"$f":"IFERROR((VLOOKUP($B88,Pupils,Pupils!$M$3,FALSE)/VLOOKUP($B88,Pupils,Pupils!$L$3,FALSE)), \"x\")","v":2.9454141767248507E-2},{"$f":"IFERROR((VLOOKUP($B88,Pupils,Pupils!$R$3,FALSE)/VLOOKUP($B88,Pupils,Pupils!$Q$3,FALSE)), \"x\")","v":2.8986511456023652E-2},{"$f":"IFERROR((VLOOKUP($B88,Pupils,Pupils!$W$3,FALSE)/VLOOKUP($B88,Pupils,Pupils!$V$3,FALSE)), \"x\")","v":2.9846043035923291E-2},{"$f":"IFERROR(((VLOOKUP($B88,Pupils,Pupils!$D$3,FALSE)+VLOOKUP($B88,Pupils,Pupils!$E$3,FALSE))/VLOOKUP($B88,Pupils,Pupils!$C$3,FALSE)), \"x\")","v":0.19665219464451528},{"$f":"IFERROR(((VLOOKUP($B88,Pupils,Pupils!$G$3,FALSE)+VLOOKUP($B88,Pupils,Pupils!$H$3,FALSE))/VLOOKUP($B88,Pupils,Pupils!$F$3,FALSE)), \"x\")","v":0.19717826875030617},{"$f":"IFERROR(((VLOOKUP($B88,Pupils,Pupils!$J$3,FALSE)+VLOOKUP($B88,Pupils,Pupils!$K$3,FALSE))/VLOOKUP($B88,Pupils,Pupils!$I$3,FALSE)), \"x\")","v":0.19920040461453239},{"$f":"IFERROR(((VLOOKUP($B88,Pupils,Pupils!$M$3,FALSE)+VLOOKUP($B88,Pupils,Pupils!$P$3,FALSE))/VLOOKUP($B88,Pupils,Pupils!$L$3,FALSE)), \"x\")","v":0.20154947209296833},{"$f":"IFERROR(((VLOOKUP($B88,Pupils,Pupils!$R$3,FALSE)+VLOOKUP($B88,Pupils,Pupils!$U$3,FALSE))/VLOOKUP($B88,Pupils,Pupils!$Q$3,FALSE)), \"x\")","v":0.19930247597930525},{"$f":"IFERROR(((VLOOKUP($B88,Pupils,Pupils!$W$3,FALSE)+VLOOKUP($B88,Pupils,Pupils!$Z$3,FALSE))/VLOOKUP($B88,Pupils,Pupils!$V$3,FALSE)), \"x\")","v":0.18708922301251463},{"$f":"(SUM(INDEX(Pupils!$AB$7:$AB$159,MATCH($B88,Pupils!$A$7:$A$159,0)),INDEX(Pupils!$AC$7:$AC$159,MATCH($B88,Pupils!$A$7:$A$159,0)),INDEX(Pupils!$AD$7:$AD$159,MATCH($B88,Pupils!$A$7:$A$159,0)),INDEX(Pupils!$AE$7:$AE$159,MATCH($B88,Pupils!$A$7:$A$159,0))))/SUM(INDEX(Pupils!$AB$7:$AM$159,MATCH($B88,Pupils!$A$7:$A$159,0),0))","v":0.46366962885520124},{"$f":"SUM(INDEX(Pupils!$AF$7:$AF$159,MATCH($B88,Pupils!$A$7:$A$159,0)))/SUM(INDEX(Pupils!$AB$7:$AM$159,MATCH($B88,Pupils!$A$7:$A$159,0),0))","v":0.18452692106638788},{"$f":"SUM(INDEX(Pupils!$AG$7:$AG$159,MATCH($B88,Pupils!$A$7:$A$159,0)))/SUM(INDEX(Pupils!$AB$7:$AM$159,MATCH($B88,Pupils!$A$7:$A$159,0),0))","v":0.16309461578672244},{"$f":"(SUM(INDEX(Pupils!$AH$7:$AH$159,MATCH($B88,Pupils!$A$7:$A$159,0)),INDEX(Pupils!$AI$7:$AI$159,MATCH($B88,Pupils!$A$7:$A$159,0)),INDEX(Pupils!$AJ$7:$AJ$159,MATCH($B88,Pupils!$A$7:$A$159,0))))/SUM(INDEX(Pupils!$AB$7:$AM$159,MATCH($B88,Pupils!$A$7:$A$159,0),0))","v":3.5023523261892314E-2},{"$f":"SUM(INDEX(Pupils!$AK$7:$AK$159,MATCH($B88,Pupils!$A$7:$A$159,0)))/SUM(INDEX(Pupils!$AB$7:$AM$159,MATCH($B88,Pupils!$A$7:$A$159,0),0))","v":1.8034500784108731E-2},{"$f":"SUM(INDEX(Pupils!$AL$7:$AL$159,MATCH($B88,Pupils!$A$7:$A$159,0)))/SUM(INDEX(Pupils!$AB$7:$AM$159,MATCH($B88,Pupils!$A$7:$A$159,0),0))","v":0.11082070047046524},{"$f":"SUM(INDEX(Pupils!$AM$7:$AM$159,MATCH($B88,Pupils!$A$7:$A$159,0)))/SUM(INDEX(Pupils!$AB$7:$AM$159,MATCH($B88,Pupils!$A$7:$A$159,0),0))","v":2.4830109775222164E-2},{"$f":"(SUM(INDEX(Pupils!$BH$7:$BH$159,MATCH($B88,Pupils!$A$7:$A$159,0)),INDEX(Pupils!$BK$7:$BK$159,MATCH($B88,Pupils!$A$7:$A$159,0)),INDEX(Pupils!$BO$7:$BO$159,MATCH($B88,Pupils!$A$7:$A$159,0))))/SUM(INDEX(Pupils!$BH$7:$BS$159,MATCH($B88,Pupils!$A$7:$A$159,0),0))","v":0.35991221653255301},{"$f":"(SUM(INDEX(Pupils!$BL$7:$BL$159,MATCH($B88,Pupils!$A$7:$A$159,0)),INDEX(Pupils!$BM$7:$BM$159,MATCH($B88,Pupils!$A$7:$A$159,0)),INDEX(Pupils!$BP$7:$BP$159,MATCH($B88,Pupils!$A$7:$A$159,0))))/SUM(INDEX(Pupils!$BH$7:$BS$159,MATCH($B88,Pupils!$A$7:$A$159,0),0))","v":0.53401609363569857},{"$f":"(SUM(INDEX(Pupils!$BI$7:$BI$159,MATCH($B88,Pupils!$A$7:$A$159,0)),INDEX(Pupils!$BJ$7:$BJ$159,MATCH($B88,Pupils!$A$7:$A$159,0))))/SUM(INDEX(Pupils!$BH$7:$BS$159,MATCH($B88,Pupils!$A$7:$A$159,0),0))","v":9.436722750548647E-2},{"$f":"(SUM(INDEX(Pupils!$BQ$7:$BQ$159,MATCH($B88,Pupils!$A$7:$A$159,0)),INDEX(Pupils!$BR$7:$BR$159,MATCH($B88,Pupils!$A$7:$A$159,0)),INDEX(Pupils!$BN$7:$BN$159,MATCH($B88,Pupils!$A$7:$A$159,0)),INDEX(Pupils!$BS$7:$BS$159,MATCH($B88,Pupils!$A$7:$A$159,0))))/SUM(INDEX(Pupils!$BH$7:$BS$159,MATCH($B88,Pupils!$A$7:$A$159,0),0))","v":1.1704462326261888E-2},{"$f":"IFERROR((VLOOKUP(B88,Funding,Funding!$C$2,FALSE)), \"x\")","v":31469845.100000001},{"$f":"IFERROR((AA88/VLOOKUP(B88,Funding,Funding!$D$2,FALSE)), \"x\")","v":0.15693746279371329},{"$f":"IFERROR((AA88/(VLOOKUP(B88,Pupils,Pupils!$M$3,FALSE)+VLOOKUP(B88,Pupils,Pupils!$P$3,FALSE))), \"x\")","v":3688.01653580218},{"$f":"IFERROR((VLOOKUP(B88,Funding,Funding!$E$2,FALSE)), \"x\")","v":31584208.785037726},{"$f":"IFERROR((AD88/VLOOKUP(B88,Funding,Funding!$F$2,FALSE)), \"x\")","v":0.15171458968620671},{"$f":"IFERROR((AD88/(VLOOKUP(B88,Pupils,Pupils!$R$3,FALSE)+VLOOKUP(B88,Pupils,Pupils!$U$3,FALSE))), \"x\")","v":3660.2397479473548},{"$f":"IFERROR((VLOOKUP(B88,Funding,Funding!$G$2,FALSE)), \"x\")","v":32523140.885697193},{"$f":"IFERROR((AG88/VLOOKUP(B88,Funding,Funding!$H$2,FALSE)), \"x\")","v":0.15116655037768278},{"$f":"IFERROR((AG88/(VLOOKUP(B88,Pupils,Pupils!$W$3,FALSE)+VLOOKUP(B88,Pupils,Pupils!$Z$3,FALSE))), \"x\")","v":3912.7936580482669},{"$f":"IFERROR((VLOOKUP(B88,Funding,Funding!$I$2,FALSE)), \"x\")","v":32700608.233461741},{"$f":"IFERROR((AJ88/VLOOKUP(B88,Funding,Funding!$J$2,FALSE)), \"x\")","v":0.15113491536815568},null,{"$f":"IFERROR((VLOOKUP($B88,Funding,Funding!$EC$2,FALSE)), \"x\")","v":20378052.869999997},{"$f":"IFERROR((AM88/VLOOKUP($B88,Funding,Funding!$EU$2,FALSE)), \"x\")","v":0.10673559980349427},{"$f":"IFERROR((AM88/(VLOOKUP($B88,Pupils,Pupils!$D$3,FALSE)+VLOOKUP($B88,Pupils,Pupils!$E$3,FALSE))), \"x\")","v":2600.5682580398161},{"$f":"IFERROR((VLOOKUP($B88,Funding,Funding!$DA$2,FALSE)), \"x\")","v":21566408.960000001},{"$f":"IFERROR((AP88/VLOOKUP($B88,Funding,Funding!$DT$2,FALSE)), \"x\")","v":0.10644939516808288},{"$f":"IFERROR((AP88/(VLOOKUP($B88,Pupils,Pupils!$G$3,FALSE)+VLOOKUP($B88,Pupils,Pupils!$H$3,FALSE))), \"x\")","v":2679.0570136645965},{"$f":"IFERROR((VLOOKUP($B88,Funding,Funding!$CE$2,FALSE)), \"x\")","v":22573436},{"$f":"IFERROR((AS88/VLOOKUP($B88,Funding,Funding!$CR$2,FALSE)), \"x\")","v":0.11452110293020627},{"$f":"IFERROR((AS88/(VLOOKUP($B88,Pupils,Pupils!$J$3,FALSE)+VLOOKUP($B88,Pupils,Pupils!$K$3,FALSE))), \"x\")","v":2729.2269374924435},{"$f":"IFERROR((VLOOKUP($B88,Funding,Funding!$BM$2,FALSE)), \"x\")","v":24093792.100000001},{"$f":"IFERROR((AV88/VLOOKUP($B88,Funding,Funding!$BY$2,FALSE)), \"x\")","v":0.14362448557388466},{"$f":"IFERROR((AV88/(VLOOKUP($B88,Pupils,Pupils!$M$3,FALSE)+VLOOKUP($B88,Pupils,Pupils!$P$3,FALSE))), \"x\")","v":2823.601558654635},{"$f":"IFERROR((VLOOKUP($B88,Funding,Funding!$AQ$2,FALSE)), \"x\")","v":29776464},{"$f":"IFERROR((AY88/VLOOKUP($B88,Funding,Funding!$BE$2,FALSE)), \"x\")","v":0.13742208556613245},{"$f":"IFERROR((AY88/(VLOOKUP($B88,Pupils,Pupils!$R$3,FALSE)+VLOOKUP($B88,Pupils,Pupils!$U$3,FALSE))), \"x\")","v":3450.7433074516166},{"$f":"IFERROR((VLOOKUP($B88,Funding,Funding!$S$2,FALSE)), \"x\")","v":29710297},{"$f":"IFERROR((BB88/VLOOKUP($B88,Funding,Funding!$AH$2,FALSE)), \"x\")","v":0.1354380481288493},{"$f":"IFERROR((BB88/(VLOOKUP(B88,Pupils,Pupils!$W$3,FALSE)+VLOOKUP(B88,Pupils,Pupils!$Z$3,FALSE))), \"x\")","v":3574.3860683349376},{"$f":"IFERROR((VLOOKUP($B88,Funding,Funding!$GX$2,FALSE)), \"x\")","v":37610136},{"$f":"IFERROR((BE88/VLOOKUP($B88,Funding,Funding!$HC$2,FALSE)), \"x\")","v":0.17972218270626278},{"$f":"IFERROR((BE88/(VLOOKUP($B88,Pupils,Pupils!$D$3,FALSE)+VLOOKUP($B88,Pupils,Pupils!$E$3,FALSE))), \"x\")","v":4799.6600306278715},{"$f":"IFERROR((VLOOKUP($B88,Funding,Funding!$GP$2,FALSE)), \"x\")","v":39979261},{"$f":"IFERROR((BH88/VLOOKUP($B88,Funding,Funding!$GU$2,FALSE)), \"x\")","v":0.18282568687652367},{"$f":"IFERROR((BH88/(VLOOKUP($B88,Pupils,Pupils!$G$3,FALSE)+VLOOKUP($B88,Pupils,Pupils!$H$3,FALSE))), \"x\")","v":4966.3678260869565},{"$f":"IFERROR((VLOOKUP($B88,Funding,Funding!$GH$2,FALSE)), \"x\")","v":40495836.689999998},{"$f":"IFERROR((BK88/VLOOKUP($B88,Funding,Funding!$GM$2,FALSE)), \"x\")","v":0.22367327589427907},{"$f":"IFERROR((BK88/(VLOOKUP($B88,Pupils,Pupils!$J$3,FALSE)+VLOOKUP($B88,Pupils,Pupils!$K$3,FALSE))), \"x\")","v":4896.1234058759519},{"$f":"IFERROR((VLOOKUP($B88,Funding,Funding!$FZ$2,FALSE)), \"x\")","v":30975268.829999998},{"$f":"IFERROR((BN88/VLOOKUP($B88,Funding,Funding!$GE$2,FALSE)), \"x\")","v":0.18459472011272857},{"$f":"IFERROR((BN88/(VLOOKUP($B88,Pupils,Pupils!$M$3,FALSE)+VLOOKUP($B88,Pupils,Pupils!$P$3,FALSE))), \"x\")","v":3630.0561150826202},{"$f":"IFERROR((VLOOKUP($B88,Funding,Funding!$FD$2,FALSE)), \"x\")","v":29929624},{"$f":"IFERROR((BQ88/VLOOKUP($B88,Funding,Funding!$FR$2,FALSE)), \"x\")","v":0.19190223191318939},{"$f":"IFERROR((BQ88/(VLOOKUP($B88,Pupils,Pupils!$R$3,FALSE)+VLOOKUP($B88,Pupils,Pupils!$U$3,FALSE))), \"x\")","v":3468.4927569822689},{"$f":"(VLOOKUP(B88,Funding,Funding!$HK$2,FALSE)+VLOOKUP(B88,Funding,Funding!$HL$2,FALSE)+VLOOKUP(B88,Funding,Funding!$HM$2,FALSE))/(VLOOKUP(B88,Funding,Funding!$HN$2,FALSE))","v":0.22438611346316681},{"$f":"IFERROR((VLOOKUP(B88,Other_data,Other!$D$3,FALSE)+VLOOKUP(B88,Other_data,Other!$E$3,FALSE)+VLOOKUP(B88,Other_data,Other!$F$3,FALSE)), \"x\")","v":1520},{"$f":"(VLOOKUP(B88,Other_data,Other!$AK$3,FALSE)+VLOOKUP(B88,Other_data,Other!$AL$3,FALSE))/VLOOKUP(B88,Other_data,Other!$AJ$3,FALSE)","v":3.271374121642371E-2},{"$f":"(VLOOKUP(B88,Other_data,Other!$AR$3,FALSE)+VLOOKUP(B88,Other_data,Other!$AS$3,FALSE))/VLOOKUP(B88,Other_data,Other!$AQ$3,FALSE)","v":5.0942354703887707E-2},{"$f":"VLOOKUP(B88,Other_data,Other!$AP$3,FALSE)/VLOOKUP(B88,Other_data,Other!$AJ$3,FALSE)","v":5.1482143824852326E-3},{"$f":"VLOOKUP(B88,Other_data,Other!$AW$3,FALSE)/VLOOKUP(B88,Other_data,Other!$AQ$3,FALSE)","v":1.0961280656099677E-2}]
[83,391,"Newcastle upon Tyne",{"$f":"IFERROR((VLOOKUP($B89,Pupils,Pupils!$D$3,FALSE)/VLOOKUP($B89,Pupils,Pupils!$C$3,FALSE)), \"x\")","v":2.2562936809267006E-2},{"$f":"IFERROR((VLOOKUP($B89,Pupils,Pupils!$G$3,FALSE)/VLOOKUP($B89,Pupils,Pupils!$F$3,FALSE)),\"x\")","v":2.3690381221746801E-2},{"$f":"IFERROR((VLOOKUP($B89,Pupils,Pupils!$J$3,FALSE)/VLOOKUP($B89,Pupils,Pupils!$I$3,FALSE)), \"x\")","v":2.1850618574241063E-2},{"$f":"IFERROR((VLOOKUP($B89,Pupils,Pupils!$M$3,FALSE)/VLOOKUP($B89,Pupils,Pupils!$L$3,FALSE)), \"x\")","v":2.2091743119266056E-2},{"$f":"IFERROR((VLOOKUP($B89,Pupils,Pupils!$R$3,FALSE)/VLOOKUP($B89,Pupils,Pupils!$Q$3,FALSE)), \"x\")","v":2.1043507572291911E-2},{"$f":"IFERROR((VLOOKUP($B89,Pupils,Pupils!$W$3,FALSE)/VLOOKUP($B89,Pupils,Pupils!$V$3,FALSE)), \"x\")","v":2.0488667877976475E-2},{"$f":"IFERROR(((VLOOKUP($B89,Pupils,Pupils!$D$3,FALSE)+VLOOKUP($B89,Pupils,Pupils!$E$3,FALSE))/VLOOKUP($B89,Pupils,Pupils!$C$3,FALSE)), \"x\")","v":0.22362216149548983},{"$f":"IFERROR(((VLOOKUP($B89,Pupils,Pupils!$G$3,FALSE)+VLOOKUP($B89,Pupils,Pupils!$H$3,FALSE))/VLOOKUP($B89,Pupils,Pupils!$F$3,FALSE)), \"x\")","v":0.21613846786085528},{"$f":"IFERROR(((VLOOKUP($B89,Pupils,Pupils!$J$3,FALSE)+VLOOKUP($B89,Pupils,Pupils!$K$3,FALSE))/VLOOKUP($B89,Pupils,Pupils!$I$3,FALSE)), \"x\")","v":0.20017986048659553},{"$f":"IFERROR(((VLOOKUP($B89,Pupils,Pupils!$M$3,FALSE)+VLOOKUP($B89,Pupils,Pupils!$P$3,FALSE))/VLOOKUP($B89,Pupils,Pupils!$L$3,FALSE)), \"x\")","v":0.19562079510703365},{"$f":"IFERROR(((VLOOKUP($B89,Pupils,Pupils!$R$3,FALSE)+VLOOKUP($B89,Pupils,Pupils!$U$3,FALSE))/VLOOKUP($B89,Pupils,Pupils!$Q$3,FALSE)), \"x\")","v":0.18676714901403704},{"$f":"IFERROR(((VLOOKUP($B89,Pupils,Pupils!$W$3,FALSE)+VLOOKUP($B89,Pupils,Pupils!$Z$3,FALSE))/VLOOKUP($B89,Pupils,Pupils!$V$3,FALSE)), \"x\")","v":0.1846849000669408},{"$f":"(SUM(INDEX(Pupils!$AB$7:$AB$159,MATCH($B89,Pupils!$A$7:$A$159,0)),INDEX(Pupils!$AC$7:$AC$159,MATCH($B89,Pupils!$A$7:$A$159,0)),INDEX(Pupils!$AD$7:$AD$159,MATCH($B89,Pupils!$A$7:$A$159,0)),INDEX(Pupils!$AE$7:$AE$159,MATCH($B89,Pupils!$A$7:$A$159,0))))/SUM(INDEX(Pupils!$AB$7:$AM$159,MATCH($B89,Pupils!$A$7:$A$159,0),0))","v":0.46452702702702703},{"$f":"SUM(INDEX(Pupils!$AF$7:$AF$159,MATCH($B89,Pupils!$A$7:$A$159,0)))/SUM(INDEX(Pupils!$AB$7:$AM$159,MATCH($B89,Pupils!$A$7:$A$159,0),0))","v":0.19538288288288289},{"$f":"SUM(INDEX(Pupils!$AG$7:$AG$159,MATCH($B89,Pupils!$A$7:$A$159,0)))/SUM(INDEX(Pupils!$AB$7:$AM$159,MATCH($B89,Pupils!$A$7:$A$159,0),0))","v":0.1579391891891892},{"$f":"(SUM(INDEX(Pupils!$AH$7:$AH$159,MATCH($B89,Pupils!$A$7:$A$159,0)),INDEX(Pupils!$AI$7:$AI$159,MATCH($B89,Pupils!$A$7:$A$159,0)),INDEX(Pupils!$AJ$7:$AJ$159,MATCH($B89,Pupils!$A$7:$A$159,0))))/SUM(INDEX(Pupils!$AB$7:$AM$159,MATCH($B89,Pupils!$A$7:$A$159,0),0))","v":3.9977477477477479E-2},{"$f":"SUM(INDEX(Pupils!$AK$7:$AK$159,MATCH($B89,Pupils!$A$7:$A$159,0)))/SUM(INDEX(Pupils!$AB$7:$AM$159,MATCH($B89,Pupils!$A$7:$A$159,0),0))","v":2.5056306306306307E-2},{"$f":"SUM(INDEX(Pupils!$AL$7:$AL$159,MATCH($B89,Pupils!$A$7:$A$159,0)))/SUM(INDEX(Pupils!$AB$7:$AM$159,MATCH($B89,Pupils!$A$7:$A$159,0),0))","v":0.10529279279279279},{"$f":"SUM(INDEX(Pupils!$AM$7:$AM$159,MATCH($B89,Pupils!$A$7:$A$159,0)))/SUM(INDEX(Pupils!$AB$7:$AM$159,MATCH($B89,Pupils!$A$7:$A$159,0),0))","v":1.1824324324324325E-2},{"$f":"(SUM(INDEX(Pupils!$BH$7:$BH$159,MATCH($B89,Pupils!$A$7:$A$159,0)),INDEX(Pupils!$BK$7:$BK$159,MATCH($B89,Pupils!$A$7:$A$159,0)),INDEX(Pupils!$BO$7:$BO$159,MATCH($B89,Pupils!$A$7:$A$159,0))))/SUM(INDEX(Pupils!$BH$7:$BS$159,MATCH($B89,Pupils!$A$7:$A$159,0),0))","v":0.21505376344086022},{"$f":"(SUM(INDEX(Pupils!$BL$7:$BL$159,MATCH($B89,Pupils!$A$7:$A$159,0)),INDEX(Pupils!$BM$7:$BM$159,MATCH($B89,Pupils!$A$7:$A$159,0)),INDEX(Pupils!$BP$7:$BP$159,MATCH($B89,Pupils!$A$7:$A$159,0))))/SUM(INDEX(Pupils!$BH$7:$BS$159,MATCH($B89,Pupils!$A$7:$A$159,0),0))","v":0.73954599761051376},{"$f":"(SUM(INDEX(Pupils!$BI$7:$BI$159,MATCH($B89,Pupils!$A$7:$A$159,0)),INDEX(Pupils!$BJ$7:$BJ$159,MATCH($B89,Pupils!$A$7:$A$159,0))))/SUM(INDEX(Pupils!$BH$7:$BS$159,MATCH($B89,Pupils!$A$7:$A$159,0),0))","v":4.5400238948626048E-2},{"$f":"(SUM(INDEX(Pupils!$BQ$7:$BQ$159,MATCH($B89,Pupils!$A$7:$A$159,0)),INDEX(Pupils!$BR$7:$BR$159,MATCH($B89,Pupils!$A$7:$A$159,0)),INDEX(Pupils!$BN$7:$BN$159,MATCH($B89,Pupils!$A$7:$A$159,0)),INDEX(Pupils!$BS$7:$BS$159,MATCH($B89,Pupils!$A$7:$A$159,0))))/SUM(INDEX(Pupils!$BH$7:$BS$159,MATCH($B89,Pupils!$A$7:$A$159,0),0))","v":0},{"$f":"IFERROR((VLOOKUP(B89,Funding,Funding!$C$2,FALSE)), \"x\")","v":26031763.310000002},{"$f":"IFERROR((AA89/VLOOKUP(B89,Funding,Funding!$D$2,FALSE)), \"x\")","v":0.14477529291549845},{"$f":"IFERROR((AA89/(VLOOKUP(B89,Pupils,Pupils!$M$3,FALSE)+VLOOKUP(B89,Pupils,Pupils!$P$3,FALSE))), \"x\")","v":3255.5982128564283},{"$f":"IFERROR((VLOOKUP(B89,Funding,Funding!$E$2,FALSE)), \"x\")","v":27456615.721606076},{"$f":"IFERROR((AD89/VLOOKUP(B89,Funding,Funding!$F$2,FALSE)), \"x\")","v":0.14635465166610381},{"$f":"IFERROR((AD89/(VLOOKUP(B89,Pupils,Pupils!$R$3,FALSE)+VLOOKUP(B89,Pupils,Pupils!$U$3,FALSE))), \"x\")","v":3539.5920744625596},{"$f":"IFERROR((VLOOKUP(B89,Funding,Funding!$G$2,FALSE)), \"x\")","v":28591080.00872523},{"$f":"IFERROR((AG89/VLOOKUP(B89,Funding,Funding!$H$2,FALSE)), \"x\")","v":0.14911639302487401},{"$f":"IFERROR((AG89/(VLOOKUP(B89,Pupils,Pupils!$W$3,FALSE)+VLOOKUP(B89,Pupils,Pupils!$Z$3,FALSE))), \"x\")","v":3701.1106807411302},{"$f":"IFERROR((VLOOKUP(B89,Funding,Funding!$I$2,FALSE)), \"x\")","v":29934508.171359625},{"$f":"IFERROR((AJ89/VLOOKUP(B89,Funding,Funding!$J$2,FALSE)), \"x\")","v":0.1552345964475125},null,{"$f":"IFERROR((VLOOKUP($B89,Funding,Funding!$EC$2,FALSE)), \"x\")","v":18413187},{"$f":"IFERROR((AM89/VLOOKUP($B89,Funding,Funding!$EU$2,FALSE)), \"x\")","v":0.10083791110328912},{"$f":"IFERROR((AM89/(VLOOKUP($B89,Pupils,Pupils!$D$3,FALSE)+VLOOKUP($B89,Pupils,Pupils!$E$3,FALSE))), \"x\")","v":1991.2606250675894},{"$f":"IFERROR((VLOOKUP($B89,Funding,Funding!$DA$2,FALSE)), \"x\")","v":18800864},{"$f":"IFERROR((AP89/VLOOKUP($B89,Funding,Funding!$DT$2,FALSE)), \"x\")","v":9.8774607131522058E-2},{"$f":"IFERROR((AP89/(VLOOKUP($B89,Pupils,Pupils!$G$3,FALSE)+VLOOKUP($B89,Pupils,Pupils!$H$3,FALSE))), \"x\")","v":2102.7697125601162},{"$f":"IFERROR((VLOOKUP($B89,Funding,Funding!$CE$2,FALSE)), \"x\")","v":18549776},{"$f":"IFERROR((AS89/VLOOKUP($B89,Funding,Funding!$CR$2,FALSE)), \"x\")","v":0.10213344139163565},{"$f":"IFERROR((AS89/(VLOOKUP($B89,Pupils,Pupils!$J$3,FALSE)+VLOOKUP($B89,Pupils,Pupils!$K$3,FALSE))), \"x\")","v":2252.2797474502186},{"$f":"IFERROR((VLOOKUP($B89,Funding,Funding!$BM$2,FALSE)), \"x\")","v":19416678.469999999},{"$f":"IFERROR((AV89/VLOOKUP($B89,Funding,Funding!$BY$2,FALSE)), \"x\")","v":0.11447897648924586},{"$f":"IFERROR((AV89/(VLOOKUP($B89,Pupils,Pupils!$M$3,FALSE)+VLOOKUP($B89,Pupils,Pupils!$P$3,FALSE))), \"x\")","v":2428.2989582291143},{"$f":"IFERROR((VLOOKUP($B89,Funding,Funding!$AQ$2,FALSE)), \"x\")","v":17293938},{"$f":"IFERROR((AY89/VLOOKUP($B89,Funding,Funding!$BE$2,FALSE)), \"x\")","v":0.10676235317515549},{"$f":"IFERROR((AY89/(VLOOKUP($B89,Pupils,Pupils!$R$3,FALSE)+VLOOKUP($B89,Pupils,Pupils!$U$3,FALSE))), \"x\")","v":2229.4621632074254},{"$f":"IFERROR((VLOOKUP($B89,Funding,Funding!$S$2,FALSE)), \"x\")","v":27831220},{"$f":"IFERROR((BB89/VLOOKUP($B89,Funding,Funding!$AH$2,FALSE)), \"x\")","v":0.14128072905173517},{"$f":"IFERROR((BB89/(VLOOKUP(B89,Pupils,Pupils!$W$3,FALSE)+VLOOKUP(B89,Pupils,Pupils!$Z$3,FALSE))), \"x\")","v":3602.7469255663432},{"$f":"IFERROR((VLOOKUP($B89,Funding,Funding!$GX$2,FALSE)), \"x\")","v":21571451},{"$f":"IFERROR((BE89/VLOOKUP($B89,Funding,Funding!$HC$2,FALSE)), \"x\")","v":0.11081646741024559},{"$f":"IFERROR((BE89/(VLOOKUP($B89,Pupils,Pupils!$D$3,FALSE)+VLOOKUP($B89,Pupils,Pupils!$E$3,FALSE))), \"x\")","v":2332.8053422731696},{"$f":"IFERROR((VLOOKUP($B89,Funding,Funding!$GP$2,FALSE)), \"x\")","v":19455818},{"$f":"IFERROR((BH89/VLOOKUP($B89,Funding,Funding!$GU$2,FALSE)), \"x\")","v":9.576731200111599E-2},{"$f":"IFERROR((BH89/(VLOOKUP($B89,Pupils,Pupils!$G$3,FALSE)+VLOOKUP($B89,Pupils,Pupils!$H$3,FALSE))), \"x\")","v":2176.0225925511686},{"$f":"IFERROR((VLOOKUP($B89,Funding,Funding!$GH$2,FALSE)), \"x\")","v":22203428.050000001},{"$f":"IFERROR((BK89/VLOOKUP($B89,Funding,Funding!$GM$2,FALSE)), \"x\")","v":0.11781049143883926},{"$f":"IFERROR((BK89/(VLOOKUP($B89,Pupils,Pupils!$J$3,FALSE)+VLOOKUP($B89,Pupils,Pupils!$K$3,FALSE))), \"x\")","v":2695.8994718309859},{"$f":"IFERROR((VLOOKUP($B89,Funding,Funding!$FZ$2,FALSE)), \"x\")","v":18533072.010000002},{"$f":"IFERROR((BN89/VLOOKUP($B89,Funding,Funding!$GE$2,FALSE)), \"x\")","v":0.10779712665638895},{"$f":"IFERROR((BN89/(VLOOKUP($B89,Pupils,Pupils!$M$3,FALSE)+VLOOKUP($B89,Pupils,Pupils!$P$3,FALSE))), \"x\")","v":2317.7928976988496},{"$f":"IFERROR((VLOOKUP($B89,Funding,Funding!$FD$2,FALSE)), \"x\")","v":23717049.869999997},{"$f":"IFERROR((BQ89/VLOOKUP($B89,Funding,Funding!$FR$2,FALSE)), \"x\")","v":0.15771015907996055},{"$f":"IFERROR((BQ89/(VLOOKUP($B89,Pupils,Pupils!$R$3,FALSE)+VLOOKUP($B89,Pupils,Pupils!$U$3,FALSE))), \"x\")","v":3057.5028838468475},{"$f":"(VLOOKUP(B89,Funding,Funding!$HK$2,FALSE)+VLOOKUP(B89,Funding,Funding!$HL$2,FALSE)+VLOOKUP(B89,Funding,Funding!$HM$2,FALSE))/(VLOOKUP(B89,Funding,Funding!$HN$2,FALSE))","v":0.16244411326378538},{"$f":"IFERROR((VLOOKUP(B89,Other_data,Other!$D$3,FALSE)+VLOOKUP(B89,Other_data,Other!$E$3,FALSE)+VLOOKUP(B89,Other_data,Other!$F$3,FALSE)), \"x\")","v":1700},{"$f":"(VLOOKUP(B89,Other_data,Other!$AK$3,FALSE)+VLOOKUP(B89,Other_data,Other!$AL$3,FALSE))/VLOOKUP(B89,Other_data,Other!$AJ$3,FALSE)","v":4.2929029294468922E-2},{"$f":"(VLOOKUP(B89,Other_data,Other!$AR$3,FALSE)+VLOOKUP(B89,Other_data,Other!$AS$3,FALSE))/VLOOKUP(B89,Other_data,Other!$AQ$3,FALSE)","v":4.113879291184256E-2},{"$f":"VLOOKUP(B89,Other_data,Other!$AP$3,FALSE)/VLOOKUP(B89,Other_data,Other!$AJ$3,FALSE)","v":9.4377048838034782E-3},{"$f":"VLOOKUP(B89,Other_data,Other!$AW$3,FALSE)/VLOOKUP(B89,Other_data,Other!$AQ$3,FALSE)","v":1.0506960861570791E-2}]
[84,316,"Newham",{"$f":"IFERROR((VLOOKUP($B90,Pupils,Pupils!$D$3,FALSE)/VLOOKUP($B90,Pupils,Pupils!$C$3,FALSE)), \"x\")","v":9.8830055274517076E-3},{"$f":"IFERROR((VLOOKUP($B90,Pupils,Pupils!$G$3,FALSE)/VLOOKUP($B90,Pupils,Pupils!$F$3,FALSE)),\"x\")","v":8.6534082283285258E-3},{"$f":"IFERROR((VLOOKUP($B90,Pupils,Pupils!$J$3,FALSE)/VLOOKUP($B90,Pupils,Pupils!$I$3,FALSE)), \"x\")","v":8.2954991312146186E-3},{"$f":"IFERROR((VLOOKUP($B90,Pupils,Pupils!$M$3,FALSE)/VLOOKUP($B90,Pupils,Pupils!$L$3,FALSE)), \"x\")","v":8.4739624827985804E-3},{"$f":"IFERROR((VLOOKUP($B90,Pupils,Pupils!$R$3,FALSE)/VLOOKUP($B90,Pupils,Pupils!$Q$3,FALSE)), \"x\")","v":8.3124633665476629E-3},{"$f":"IFERROR((VLOOKUP($B90,Pupils,Pupils!$W$3,FALSE)/VLOOKUP($B90,Pupils,Pupils!$V$3,FALSE)), \"x\")","v":8.1147157248625881E-3},{"$f":"IFERROR(((VLOOKUP($B90,Pupils,Pupils!$D$3,FALSE)+VLOOKUP($B90,Pupils,Pupils!$E$3,FALSE))/VLOOKUP($B90,Pupils,Pupils!$C$3,FALSE)), \"x\")","v":0.23291470536533918},{"$f":"IFERROR(((VLOOKUP($B90,Pupils,Pupils!$G$3,FALSE)+VLOOKUP($B90,Pupils,Pupils!$H$3,FALSE))/VLOOKUP($B90,Pupils,Pupils!$F$3,FALSE)), \"x\")","v":0.23935403066646424},{"$f":"IFERROR(((VLOOKUP($B90,Pupils,Pupils!$J$3,FALSE)+VLOOKUP($B90,Pupils,Pupils!$K$3,FALSE))/VLOOKUP($B90,Pupils,Pupils!$I$3,FALSE)), \"x\")","v":0.23380602731535977},{"$f":"IFERROR(((VLOOKUP($B90,Pupils,Pupils!$M$3,FALSE)+VLOOKUP($B90,Pupils,Pupils!$P$3,FALSE))/VLOOKUP($B90,Pupils,Pupils!$L$3,FALSE)), \"x\")","v":0.22265879626276527},{"$f":"IFERROR(((VLOOKUP($B90,Pupils,Pupils!$R$3,FALSE)+VLOOKUP($B90,Pupils,Pupils!$U$3,FALSE))/VLOOKUP($B90,Pupils,Pupils!$Q$3,FALSE)), \"x\")","v":0.19418838031296071},{"$f":"IFERROR(((VLOOKUP($B90,Pupils,Pupils!$W$3,FALSE)+VLOOKUP($B90,Pupils,Pupils!$Z$3,FALSE))/VLOOKUP($B90,Pupils,Pupils!$V$3,FALSE)), \"x\")","v":0.18859778405839822},{"$f":"(SUM(INDEX(Pupils!$AB$7:$AB$159,MATCH($B90,Pupils!$A$7:$A$159,0)),INDEX(Pupils!$AC$7:$AC$159,MATCH($B90,Pupils!$A$7:$A$159,0)),INDEX(Pupils!$AD$7:$AD$159,MATCH($B90,Pupils!$A$7:$A$159,0)),INDEX(Pupils!$AE$7:$AE$159,MATCH($B90,Pupils!$A$7:$A$159,0))))/SUM(INDEX(Pupils!$AB$7:$AM$159,MATCH($B90,Pupils!$A$7:$A$159,0),0))","v":0.25230566534914362},{"$f":"SUM(INDEX(Pupils!$AF$7:$AF$159,MATCH($B90,Pupils!$A$7:$A$159,0)))/SUM(INDEX(Pupils!$AB$7:$AM$159,MATCH($B90,Pupils!$A$7:$A$159,0),0))","v":0.21980676328502416},{"$f":"SUM(INDEX(Pupils!$AG$7:$AG$159,MATCH($B90,Pupils!$A$7:$A$159,0)))/SUM(INDEX(Pupils!$AB$7:$AM$159,MATCH($B90,Pupils!$A$7:$A$159,0),0))","v":0.24022837066315328},{"$f":"(SUM(INDEX(Pupils!$AH$7:$AH$159,MATCH($B90,Pupils!$A$7:$A$159,0)),INDEX(Pupils!$AI$7:$AI$159,MATCH($B90,Pupils!$A$7:$A$159,0)),INDEX(Pupils!$AJ$7:$AJ$159,MATCH($B90,Pupils!$A$7:$A$159,0))))/SUM(INDEX(Pupils!$AB$7:$AM$159,MATCH($B90,Pupils!$A$7:$A$159,0),0))","v":4.5234958278436536E-2},{"$f":"SUM(INDEX(Pupils!$AK$7:$AK$159,MATCH($B90,Pupils!$A$7:$A$159,0)))/SUM(INDEX(Pupils!$AB$7:$AM$159,MATCH($B90,Pupils!$A$7:$A$159,0),0))","v":4.238032498902064E-2},{"$f":"SUM(INDEX(Pupils!$AL$7:$AL$159,MATCH($B90,Pupils!$A$7:$A$159,0)))/SUM(INDEX(Pupils!$AB$7:$AM$159,MATCH($B90,Pupils!$A$7:$A$159,0),0))","v":0.12428634167764603},{"$f":"SUM(INDEX(Pupils!$AM$7:$AM$159,MATCH($B90,Pupils!$A$7:$A$159,0)))/SUM(INDEX(Pupils!$AB$7:$AM$159,MATCH($B90,Pupils!$A$7:$A$159,0),0))","v":7.575757575757576E-2},{"$f":"(SUM(INDEX(Pupils!$BH$7:$BH$159,MATCH($B90,Pupils!$A$7:$A$159,0)),INDEX(Pupils!$BK$7:$BK$159,MATCH($B90,Pupils!$A$7:$A$159,0)),INDEX(Pupils!$BO$7:$BO$159,MATCH($B90,Pupils!$A$7:$A$159,0))))/SUM(INDEX(Pupils!$BH$7:$BS$159,MATCH($B90,Pupils!$A$7:$A$159,0),0))","v":0.48445171849427171},{"$f":"(SUM(INDEX(Pupils!$BL$7:$BL$159,MATCH($B90,Pupils!$A$7:$A$159,0)),INDEX(Pupils!$BM$7:$BM$159,MATCH($B90,Pupils!$A$7:$A$159,0)),INDEX(Pupils!$BP$7:$BP$159,MATCH($B90,Pupils!$A$7:$A$159,0))))/SUM(INDEX(Pupils!$BH$7:$BS$159,MATCH($B90,Pupils!$A$7:$A$159,0),0))","v":0.34206219312602293},{"$f":"(SUM(INDEX(Pupils!$BI$7:$BI$159,MATCH($B90,Pupils!$A$7:$A$159,0)),INDEX(Pupils!$BJ$7:$BJ$159,MATCH($B90,Pupils!$A$7:$A$159,0))))/SUM(INDEX(Pupils!$BH$7:$BS$159,MATCH($B90,Pupils!$A$7:$A$159,0),0))","v":0.14566284779050737},{"$f":"(SUM(INDEX(Pupils!$BQ$7:$BQ$159,MATCH($B90,Pupils!$A$7:$A$159,0)),INDEX(Pupils!$BR$7:$BR$159,MATCH($B90,Pupils!$A$7:$A$159,0)),INDEX(Pupils!$BN$7:$BN$159,MATCH($B90,Pupils!$A$7:$A$159,0)),INDEX(Pupils!$BS$7:$BS$159,MATCH($B90,Pupils!$A$7:$A$159,0))))/SUM(INDEX(Pupils!$BH$7:$BS$159,MATCH($B90,Pupils!$A$7:$A$159,0),0))","v":2.7823240589198037E-2},{"$f":"IFERROR((VLOOKUP(B90,Funding,Funding!$C$2,FALSE)), \"x\")","v":37977913.180000007},{"$f":"IFERROR((AA90/VLOOKUP(B90,Funding,Funding!$D$2,FALSE)), \"x\")","v":0.11308166440854235},{"$f":"IFERROR((AA90/(VLOOKUP(B90,Pupils,Pupils!$M$3,FALSE)+VLOOKUP(B90,Pupils,Pupils!$P$3,FALSE))), \"x\")","v":3088.3884833699281},{"$f":"IFERROR((VLOOKUP(B90,Funding,Funding!$E$2,FALSE)), \"x\")","v":39903943.988470376},{"$f":"IFERROR((AD90/VLOOKUP(B90,Funding,Funding!$F$2,FALSE)), \"x\")","v":0.10979247281195571},{"$f":"IFERROR((AD90/(VLOOKUP(B90,Pupils,Pupils!$R$3,FALSE)+VLOOKUP(B90,Pupils,Pupils!$U$3,FALSE))), \"x\")","v":3649.8622508433527},{"$f":"IFERROR((VLOOKUP(B90,Funding,Funding!$G$2,FALSE)), \"x\")","v":40558337.328745924},{"$f":"IFERROR((AG90/VLOOKUP(B90,Funding,Funding!$H$2,FALSE)), \"x\")","v":0.11024462375949801},{"$f":"IFERROR((AG90/(VLOOKUP(B90,Pupils,Pupils!$W$3,FALSE)+VLOOKUP(B90,Pupils,Pupils!$Z$3,FALSE))), \"x\")","v":3728.816523742385},{"$f":"IFERROR((VLOOKUP(B90,Funding,Funding!$I$2,FALSE)), \"x\")","v":41129106.981877364},{"$f":"IFERROR((AJ90/VLOOKUP(B90,Funding,Funding!$J$2,FALSE)), \"x\")","v":0.11107869117637768},null,{"$f":"IFERROR((VLOOKUP($B90,Funding,Funding!$EC$2,FALSE)), \"x\")","v":12608247.5},{"$f":"IFERROR((AM90/VLOOKUP($B90,Funding,Funding!$EU$2,FALSE)), \"x\")","v":3.8781360385312762E-2},{"$f":"IFERROR((AM90/(VLOOKUP($B90,Pupils,Pupils!$D$3,FALSE)+VLOOKUP($B90,Pupils,Pupils!$E$3,FALSE))), \"x\")","v":1057.2953878406709},{"$f":"IFERROR((VLOOKUP($B90,Funding,Funding!$DA$2,FALSE)), \"x\")","v":12316724},{"$f":"IFERROR((AP90/VLOOKUP($B90,Funding,Funding!$DT$2,FALSE)), \"x\")","v":3.7817729742613618E-2},{"$f":"IFERROR((AP90/(VLOOKUP($B90,Pupils,Pupils!$G$3,FALSE)+VLOOKUP($B90,Pupils,Pupils!$H$3,FALSE))), \"x\")","v":976.51026718465073},{"$f":"IFERROR((VLOOKUP($B90,Funding,Funding!$CE$2,FALSE)), \"x\")","v":12404252.772940001},{"$f":"IFERROR((AS90/VLOOKUP($B90,Funding,Funding!$CR$2,FALSE)), \"x\")","v":3.8950841870683831E-2},{"$f":"IFERROR((AS90/(VLOOKUP($B90,Pupils,Pupils!$J$3,FALSE)+VLOOKUP($B90,Pupils,Pupils!$K$3,FALSE))), \"x\")","v":991.23004418571202},{"$f":"IFERROR((VLOOKUP($B90,Funding,Funding!$BM$2,FALSE)), \"x\")","v":15409618.790000001},{"$f":"IFERROR((AV90/VLOOKUP($B90,Funding,Funding!$BY$2,FALSE)), \"x\")","v":4.66280744637265E-2},{"$f":"IFERROR((AV90/(VLOOKUP($B90,Pupils,Pupils!$M$3,FALSE)+VLOOKUP($B90,Pupils,Pupils!$P$3,FALSE))), \"x\")","v":1253.1201748393919},{"$f":"IFERROR((VLOOKUP($B90,Funding,Funding!$AQ$2,FALSE)), \"x\")","v":40542121},{"$f":"IFERROR((AY90/VLOOKUP($B90,Funding,Funding!$BE$2,FALSE)), \"x\")","v":0.10235869949739483},{"$f":"IFERROR((AY90/(VLOOKUP($B90,Pupils,Pupils!$R$3,FALSE)+VLOOKUP($B90,Pupils,Pupils!$U$3,FALSE))), \"x\")","v":3708.2338790816793},{"$f":"IFERROR((VLOOKUP($B90,Funding,Funding!$S$2,FALSE)), \"x\")","v":31195718},{"$f":"IFERROR((BB90/VLOOKUP($B90,Funding,Funding!$AH$2,FALSE)), \"x\")","v":8.020764970173494E-2},{"$f":"IFERROR((BB90/(VLOOKUP(B90,Pupils,Pupils!$W$3,FALSE)+VLOOKUP(B90,Pupils,Pupils!$Z$3,FALSE))), \"x\")","v":2868.0443136894364},{"$f":"IFERROR((VLOOKUP($B90,Funding,Funding!$GX$2,FALSE)), \"x\")","v":30914835.618759997},{"$f":"IFERROR((BE90/VLOOKUP($B90,Funding,Funding!$HC$2,FALSE)), \"x\")","v":9.0197159161670454E-2},{"$f":"IFERROR((BE90/(VLOOKUP($B90,Pupils,Pupils!$D$3,FALSE)+VLOOKUP($B90,Pupils,Pupils!$E$3,FALSE))), \"x\")","v":2592.4390455983225},{"$f":"IFERROR((VLOOKUP($B90,Funding,Funding!$GP$2,FALSE)), \"x\")","v":30328047.82},{"$f":"IFERROR((BH90/VLOOKUP($B90,Funding,Funding!$GU$2,FALSE)), \"x\")","v":8.6726118579337333E-2},{"$f":"IFERROR((BH90/(VLOOKUP($B90,Pupils,Pupils!$G$3,FALSE)+VLOOKUP($B90,Pupils,Pupils!$H$3,FALSE))), \"x\")","v":2404.5070815824943},{"$f":"IFERROR((VLOOKUP($B90,Funding,Funding!$GH$2,FALSE)), \"x\")","v":33186700.460000001},{"$f":"IFERROR((BK90/VLOOKUP($B90,Funding,Funding!$GM$2,FALSE)), \"x\")","v":9.6134227963291116E-2},{"$f":"IFERROR((BK90/(VLOOKUP($B90,Pupils,Pupils!$J$3,FALSE)+VLOOKUP($B90,Pupils,Pupils!$K$3,FALSE))), \"x\")","v":2651.9658350647278},{"$f":"IFERROR((VLOOKUP($B90,Funding,Funding!$FZ$2,FALSE)), \"x\")","v":34669622.18},{"$f":"IFERROR((BN90/VLOOKUP($B90,Funding,Funding!$GE$2,FALSE)), \"x\")","v":9.2520202951828265E-2},{"$f":"IFERROR((BN90/(VLOOKUP($B90,Pupils,Pupils!$M$3,FALSE)+VLOOKUP($B90,Pupils,Pupils!$P$3,FALSE))), \"x\")","v":2819.3561177522975},{"$f":"IFERROR((VLOOKUP($B90,Funding,Funding!$FD$2,FALSE)), \"x\")","v":40701477},{"$f":"IFERROR((BQ90/VLOOKUP($B90,Funding,Funding!$FR$2,FALSE)), \"x\")","v":0.11334657503753863},{"$f":"IFERROR((BQ90/(VLOOKUP($B90,Pupils,Pupils!$R$3,FALSE)+VLOOKUP($B90,Pupils,Pupils!$U$3,FALSE))), \"x\")","v":3722.8095673648586},{"$f":"(VLOOKUP(B90,Funding,Funding!$HK$2,FALSE)+VLOOKUP(B90,Funding,Funding!$HL$2,FALSE)+VLOOKUP(B90,Funding,Funding!$HM$2,FALSE))/(VLOOKUP(B90,Funding,Funding!$HN$2,FALSE))","v":0.2858942065491184},{"$f":"IFERROR((VLOOKUP(B90,Other_data,Other!$D$3,FALSE)+VLOOKUP(B90,Other_data,Other!$E$3,FALSE)+VLOOKUP(B90,Other_data,Other!$F$3,FALSE)), \"x\")","v":1720},{"$f":"(VLOOKUP(B90,Other_data,Other!$AK$3,FALSE)+VLOOKUP(B90,Other_data,Other!$AL$3,FALSE))/VLOOKUP(B90,Other_data,Other!$AJ$3,FALSE)","v":3.5568146049732449E-2},{"$f":"(VLOOKUP(B90,Other_data,Other!$AR$3,FALSE)+VLOOKUP(B90,Other_data,Other!$AS$3,FALSE))/VLOOKUP(B90,Other_data,Other!$AQ$3,FALSE)","v":4.4851086888560057E-2},{"$f":"VLOOKUP(B90,Other_data,Other!$AP$3,FALSE)/VLOOKUP(B90,Other_data,Other!$AJ$3,FALSE)","v":1.0129624860503048E-2},{"$f":"VLOOKUP(B90,Other_data,Other!$AW$3,FALSE)/VLOOKUP(B90,Other_data,Other!$AQ$3,FALSE)","v":1.1629603384673099E-2}]
[85,926,"Norfolk",{"$f":"IFERROR((VLOOKUP($B91,Pupils,Pupils!$D$3,FALSE)/VLOOKUP($B91,Pupils,Pupils!$C$3,FALSE)), \"x\")","v":3.6907546894950169E-2},{"$f":"IFERROR((VLOOKUP($B91,Pupils,Pupils!$G$3,FALSE)/VLOOKUP($B91,Pupils,Pupils!$F$3,FALSE)),\"x\")","v":3.9574552103632102E-2},{"$f":"IFERROR((VLOOKUP($B91,Pupils,Pupils!$J$3,FALSE)/VLOOKUP($B91,Pupils,Pupils!$I$3,FALSE)), \"x\")","v":4.0587159761272293E-2},{"$f":"IFERROR((VLOOKUP($B91,Pupils,Pupils!$M$3,FALSE)/VLOOKUP($B91,Pupils,Pupils!$L$3,FALSE)), \"x\")","v":4.0063867431925082E-2},{"$f":"IFERROR((VLOOKUP($B91,Pupils,Pupils!$R$3,FALSE)/VLOOKUP($B91,Pupils,Pupils!$Q$3,FALSE)), \"x\")","v":3.9533404394319703E-2},{"$f":"IFERROR((VLOOKUP($B91,Pupils,Pupils!$W$3,FALSE)/VLOOKUP($B91,Pupils,Pupils!$V$3,FALSE)), \"x\")","v":3.705862686771879E-2},{"$f":"IFERROR(((VLOOKUP($B91,Pupils,Pupils!$D$3,FALSE)+VLOOKUP($B91,Pupils,Pupils!$E$3,FALSE))/VLOOKUP($B91,Pupils,Pupils!$C$3,FALSE)), \"x\")","v":0.22766652099025683},{"$f":"IFERROR(((VLOOKUP($B91,Pupils,Pupils!$G$3,FALSE)+VLOOKUP($B91,Pupils,Pupils!$H$3,FALSE))/VLOOKUP($B91,Pupils,Pupils!$F$3,FALSE)), \"x\")","v":0.2279700229206191},{"$f":"IFERROR(((VLOOKUP($B91,Pupils,Pupils!$J$3,FALSE)+VLOOKUP($B91,Pupils,Pupils!$K$3,FALSE))/VLOOKUP($B91,Pupils,Pupils!$I$3,FALSE)), \"x\")","v":0.22298789112360715},{"$f":"IFERROR(((VLOOKUP($B91,Pupils,Pupils!$M$3,FALSE)+VLOOKUP($B91,Pupils,Pupils!$P$3,FALSE))/VLOOKUP($B91,Pupils,Pupils!$L$3,FALSE)), \"x\")","v":0.21490527769386786},{"$f":"IFERROR(((VLOOKUP($B91,Pupils,Pupils!$R$3,FALSE)+VLOOKUP($B91,Pupils,Pupils!$U$3,FALSE))/VLOOKUP($B91,Pupils,Pupils!$Q$3,FALSE)), \"x\")","v":0.19740054327270226},{"$f":"IFERROR(((VLOOKUP($B91,Pupils,Pupils!$W$3,FALSE)+VLOOKUP($B91,Pupils,Pupils!$Z$3,FALSE))/VLOOKUP($B91,Pupils,Pupils!$V$3,FALSE)), \"x\")","v":0.18080117956674924},{"$f":"(SUM(INDEX(Pupils!$AB$7:$AB$159,MATCH($B91,Pupils!$A$7:$A$159,0)),INDEX(Pupils!$AC$7:$AC$159,MATCH($B91,Pupils!$A$7:$A$159,0)),INDEX(Pupils!$AD$7:$AD$159,MATCH($B91,Pupils!$A$7:$A$159,0)),INDEX(Pupils!$AE$7:$AE$159,MATCH($B91,Pupils!$A$7:$A$159,0))))/SUM(INDEX(Pupils!$AB$7:$AM$159,MATCH($B91,Pupils!$A$7:$A$159,0),0))","v":0.34396658122092472},{"$f":"SUM(INDEX(Pupils!$AF$7:$AF$159,MATCH($B91,Pupils!$A$7:$A$159,0)))/SUM(INDEX(Pupils!$AB$7:$AM$159,MATCH($B91,Pupils!$A$7:$A$159,0),0))","v":0.21902591854172601},{"$f":"SUM(INDEX(Pupils!$AG$7:$AG$159,MATCH($B91,Pupils!$A$7:$A$159,0)))/SUM(INDEX(Pupils!$AB$7:$AM$159,MATCH($B91,Pupils!$A$7:$A$159,0),0))","v":0.21674736542295642},{"$f":"(SUM(INDEX(Pupils!$AH$7:$AH$159,MATCH($B91,Pupils!$A$7:$A$159,0)),INDEX(Pupils!$AI$7:$AI$159,MATCH($B91,Pupils!$A$7:$A$159,0)),INDEX(Pupils!$AJ$7:$AJ$159,MATCH($B91,Pupils!$A$7:$A$159,0))))/SUM(INDEX(Pupils!$AB$7:$AM$159,MATCH($B91,Pupils!$A$7:$A$159,0),0))","v":3.5602392480774708E-2},{"$f":"SUM(INDEX(Pupils!$AK$7:$AK$159,MATCH($B91,Pupils!$A$7:$A$159,0)))/SUM(INDEX(Pupils!$AB$7:$AM$159,MATCH($B91,Pupils!$A$7:$A$159,0),0))","v":4.2438051837083449E-2},{"$f":"SUM(INDEX(Pupils!$AL$7:$AL$159,MATCH($B91,Pupils!$A$7:$A$159,0)))/SUM(INDEX(Pupils!$AB$7:$AM$159,MATCH($B91,Pupils!$A$7:$A$159,0),0))","v":9.4939713282065893E-2},{"$f":"SUM(INDEX(Pupils!$AM$7:$AM$159,MATCH($B91,Pupils!$A$7:$A$159,0)))/SUM(INDEX(Pupils!$AB$7:$AM$159,MATCH($B91,Pupils!$A$7:$A$159,0),0))","v":4.7279977214468812E-2},{"$f":"(SUM(INDEX(Pupils!$BH$7:$BH$159,MATCH($B91,Pupils!$A$7:$A$159,0)),INDEX(Pupils!$BK$7:$BK$159,MATCH($B91,Pupils!$A$7:$A$159,0)),INDEX(Pupils!$BO$7:$BO$159,MATCH($B91,Pupils!$A$7:$A$159,0))))/SUM(INDEX(Pupils!$BH$7:$BS$159,MATCH($B91,Pupils!$A$7:$A$159,0),0))","v":0.61212121212121207},{"$f":"(SUM(INDEX(Pupils!$BL$7:$BL$159,MATCH($B91,Pupils!$A$7:$A$159,0)),INDEX(Pupils!$BM$7:$BM$159,MATCH($B91,Pupils!$A$7:$A$159,0)),INDEX(Pupils!$BP$7:$BP$159,MATCH($B91,Pupils!$A$7:$A$159,0))))/SUM(INDEX(Pupils!$BH$7:$BS$159,MATCH($B91,Pupils!$A$7:$A$159,0),0))","v":0.33243546576879912},{"$f":"(SUM(INDEX(Pupils!$BI$7:$BI$159,MATCH($B91,Pupils!$A$7:$A$159,0)),INDEX(Pupils!$BJ$7:$BJ$159,MATCH($B91,Pupils!$A$7:$A$159,0))))/SUM(INDEX(Pupils!$BH$7:$BS$159,MATCH($B91,Pupils!$A$7:$A$159,0),0))","v":3.1200897867564536E-2},{"$f":"(SUM(INDEX(Pupils!$BQ$7:$BQ$159,MATCH($B91,Pupils!$A$7:$A$159,0)),INDEX(Pupils!$BR$7:$BR$159,MATCH($B91,Pupils!$A$7:$A$159,0)),INDEX(Pupils!$BN$7:$BN$159,MATCH($B91,Pupils!$A$7:$A$159,0)),INDEX(Pupils!$BS$7:$BS$159,MATCH($B91,Pupils!$A$7:$A$159,0))))/SUM(INDEX(Pupils!$BH$7:$BS$159,MATCH($B91,Pupils!$A$7:$A$159,0),0))","v":2.4242424242424242E-2},{"$f":"IFERROR((VLOOKUP(B91,Funding,Funding!$C$2,FALSE)), \"x\")","v":60710585.090000004},{"$f":"IFERROR((AA91/VLOOKUP(B91,Funding,Funding!$D$2,FALSE)), \"x\")","v":0.11783791453649924},{"$f":"IFERROR((AA91/(VLOOKUP(B91,Pupils,Pupils!$M$3,FALSE)+VLOOKUP(B91,Pupils,Pupils!$P$3,FALSE))), \"x\")","v":2438.1761080321285},{"$f":"IFERROR((VLOOKUP(B91,Funding,Funding!$E$2,FALSE)), \"x\")","v":62953570.742896989},{"$f":"IFERROR((AD91/VLOOKUP(B91,Funding,Funding!$F$2,FALSE)), \"x\")","v":0.11961401747171574},{"$f":"IFERROR((AD91/(VLOOKUP(B91,Pupils,Pupils!$R$3,FALSE)+VLOOKUP(B91,Pupils,Pupils!$U$3,FALSE))), \"x\")","v":2741.402662554302},{"$f":"IFERROR((VLOOKUP(B91,Funding,Funding!$G$2,FALSE)), \"x\")","v":65191469.317483224},{"$f":"IFERROR((AG91/VLOOKUP(B91,Funding,Funding!$H$2,FALSE)), \"x\")","v":0.12247628779112751},{"$f":"IFERROR((AG91/(VLOOKUP(B91,Pupils,Pupils!$W$3,FALSE)+VLOOKUP(B91,Pupils,Pupils!$Z$3,FALSE))), \"x\")","v":3090.9615152189667},{"$f":"IFERROR((VLOOKUP(B91,Funding,Funding!$I$2,FALSE)), \"x\")","v":66340824.324408643},{"$f":"IFERROR((AJ91/VLOOKUP(B91,Funding,Funding!$J$2,FALSE)), \"x\")","v":0.12138151511744374},null,{"$f":"IFERROR((VLOOKUP($B91,Funding,Funding!$EC$2,FALSE)), \"x\")","v":33909610},{"$f":"IFERROR((AM91/VLOOKUP($B91,Funding,Funding!$EU$2,FALSE)), \"x\")","v":6.5987372632572941E-2},{"$f":"IFERROR((AM91/(VLOOKUP($B91,Pupils,Pupils!$D$3,FALSE)+VLOOKUP($B91,Pupils,Pupils!$E$3,FALSE))), \"x\")","v":1276.3328063836193},{"$f":"IFERROR((VLOOKUP($B91,Funding,Funding!$DA$2,FALSE)), \"x\")","v":36057763.236560002},{"$f":"IFERROR((AP91/VLOOKUP($B91,Funding,Funding!$DT$2,FALSE)), \"x\")","v":6.8437915132239305E-2},{"$f":"IFERROR((AP91/(VLOOKUP($B91,Pupils,Pupils!$G$3,FALSE)+VLOOKUP($B91,Pupils,Pupils!$H$3,FALSE))), \"x\")","v":1357.8009955023347},{"$f":"IFERROR((VLOOKUP($B91,Funding,Funding!$CE$2,FALSE)), \"x\")","v":38199033},{"$f":"IFERROR((AS91/VLOOKUP($B91,Funding,Funding!$CR$2,FALSE)), \"x\")","v":7.3951302053606296E-2},{"$f":"IFERROR((AS91/(VLOOKUP($B91,Pupils,Pupils!$J$3,FALSE)+VLOOKUP($B91,Pupils,Pupils!$K$3,FALSE))), \"x\")","v":1477.4331077161091},{"$f":"IFERROR((VLOOKUP($B91,Funding,Funding!$BM$2,FALSE)), \"x\")","v":44439755.659999996},{"$f":"IFERROR((AV91/VLOOKUP($B91,Funding,Funding!$BY$2,FALSE)), \"x\")","v":9.1571393871198864E-2},{"$f":"IFERROR((AV91/(VLOOKUP($B91,Pupils,Pupils!$M$3,FALSE)+VLOOKUP($B91,Pupils,Pupils!$P$3,FALSE))), \"x\")","v":1784.7291429718873},{"$f":"IFERROR((VLOOKUP($B91,Funding,Funding!$AQ$2,FALSE)), \"x\")","v":67877021},{"$f":"IFERROR((AY91/VLOOKUP($B91,Funding,Funding!$BE$2,FALSE)), \"x\")","v":0.12228614365770392},{"$f":"IFERROR((AY91/(VLOOKUP($B91,Pupils,Pupils!$R$3,FALSE)+VLOOKUP($B91,Pupils,Pupils!$U$3,FALSE))), \"x\")","v":2955.8012976833306},{"$f":"IFERROR((VLOOKUP($B91,Funding,Funding!$S$2,FALSE)), \"x\")","v":60262837.200000003},{"$f":"IFERROR((BB91/VLOOKUP($B91,Funding,Funding!$AH$2,FALSE)), \"x\")","v":0.11147562186345958},{"$f":"IFERROR((BB91/(VLOOKUP(B91,Pupils,Pupils!$W$3,FALSE)+VLOOKUP(B91,Pupils,Pupils!$Z$3,FALSE))), \"x\")","v":2857.2773789768148},{"$f":"IFERROR((VLOOKUP($B91,Funding,Funding!$GX$2,FALSE)), \"x\")","v":69219390.622419998},{"$f":"IFERROR((BE91/VLOOKUP($B91,Funding,Funding!$HC$2,FALSE)), \"x\")","v":0.11937018203383136},{"$f":"IFERROR((BE91/(VLOOKUP($B91,Pupils,Pupils!$D$3,FALSE)+VLOOKUP($B91,Pupils,Pupils!$E$3,FALSE))), \"x\")","v":2605.3670062639267},{"$f":"IFERROR((VLOOKUP($B91,Funding,Funding!$GP$2,FALSE)), \"x\")","v":68823544.180000007},{"$f":"IFERROR((BH91/VLOOKUP($B91,Funding,Funding!$GU$2,FALSE)), \"x\")","v":0.12181320211628924},{"$f":"IFERROR((BH91/(VLOOKUP($B91,Pupils,Pupils!$G$3,FALSE)+VLOOKUP($B91,Pupils,Pupils!$H$3,FALSE))), \"x\")","v":2591.6382053020034},{"$f":"IFERROR((VLOOKUP($B91,Funding,Funding!$GH$2,FALSE)), \"x\")","v":73292498.349999994},{"$f":"IFERROR((BK91/VLOOKUP($B91,Funding,Funding!$GM$2,FALSE)), \"x\")","v":0.13340189028373803},{"$f":"IFERROR((BK91/(VLOOKUP($B91,Pupils,Pupils!$J$3,FALSE)+VLOOKUP($B91,Pupils,Pupils!$K$3,FALSE))), \"x\")","v":2834.7514349255462},{"$f":"IFERROR((VLOOKUP($B91,Funding,Funding!$FZ$2,FALSE)), \"x\")","v":75504932.650000006},{"$f":"IFERROR((BN91/VLOOKUP($B91,Funding,Funding!$GE$2,FALSE)), \"x\")","v":0.14587506528632491},{"$f":"IFERROR((BN91/(VLOOKUP($B91,Pupils,Pupils!$M$3,FALSE)+VLOOKUP($B91,Pupils,Pupils!$P$3,FALSE))), \"x\")","v":3032.3266124497995},{"$f":"IFERROR((VLOOKUP($B91,Funding,Funding!$FD$2,FALSE)), \"x\")","v":56990529},{"$f":"IFERROR((BQ91/VLOOKUP($B91,Funding,Funding!$FR$2,FALSE)), \"x\")","v":0.12052302591127319},{"$f":"IFERROR((BQ91/(VLOOKUP($B91,Pupils,Pupils!$R$3,FALSE)+VLOOKUP($B91,Pupils,Pupils!$U$3,FALSE))), \"x\")","v":2481.7335394530569},{"$f":"(VLOOKUP(B91,Funding,Funding!$HK$2,FALSE)+VLOOKUP(B91,Funding,Funding!$HL$2,FALSE)+VLOOKUP(B91,Funding,Funding!$HM$2,FALSE))/(VLOOKUP(B91,Funding,Funding!$HN$2,FALSE))","v":0.22962962962962963},{"$f":"IFERROR((VLOOKUP(B91,Other_data,Other!$D$3,FALSE)+VLOOKUP(B91,Other_data,Other!$E$3,FALSE)+VLOOKUP(B91,Other_data,Other!$F$3,FALSE)), \"x\")","v":5590},{"$f":"(VLOOKUP(B91,Other_data,Other!$AK$3,FALSE)+VLOOKUP(B91,Other_data,Other!$AL$3,FALSE))/VLOOKUP(B91,Other_data,Other!$AJ$3,FALSE)","v":4.2154258086445018E-2},{"$f":"(VLOOKUP(B91,Other_data,Other!$AR$3,FALSE)+VLOOKUP(B91,Other_data,Other!$AS$3,FALSE))/VLOOKUP(B91,Other_data,Other!$AQ$3,FALSE)","v":5.7264111882964527E-2},{"$f":"VLOOKUP(B91,Other_data,Other!$AP$3,FALSE)/VLOOKUP(B91,Other_data,Other!$AJ$3,FALSE)","v":6.2846400898994874E-3},{"$f":"VLOOKUP(B91,Other_data,Other!$AW$3,FALSE)/VLOOKUP(B91,Other_data,Other!$AQ$3,FALSE)","v":1.1857662050880987E-2}]
[86,812,"North East Lincolnshire",{"$f":"IFERROR((VLOOKUP($B92,Pupils,Pupils!$D$3,FALSE)/VLOOKUP($B92,Pupils,Pupils!$C$3,FALSE)), \"x\")","v":3.3252096327811974E-2},{"$f":"IFERROR((VLOOKUP($B92,Pupils,Pupils!$G$3,FALSE)/VLOOKUP($B92,Pupils,Pupils!$F$3,FALSE)),\"x\")","v":3.1487831395835074E-2},{"$f":"IFERROR((VLOOKUP($B92,Pupils,Pupils!$J$3,FALSE)/VLOOKUP($B92,Pupils,Pupils!$I$3,FALSE)), \"x\")","v":2.9628687690742624E-2},{"$f":"IFERROR((VLOOKUP($B92,Pupils,Pupils!$M$3,FALSE)/VLOOKUP($B92,Pupils,Pupils!$L$3,FALSE)), \"x\")","v":2.7362338545207341E-2},{"$f":"IFERROR((VLOOKUP($B92,Pupils,Pupils!$R$3,FALSE)/VLOOKUP($B92,Pupils,Pupils!$Q$3,FALSE)), \"x\")","v":2.3782559456398639E-2},{"$f":"IFERROR((VLOOKUP($B92,Pupils,Pupils!$W$3,FALSE)/VLOOKUP($B92,Pupils,Pupils!$V$3,FALSE)), \"x\")","v":2.1621170381500961E-2},{"$f":"IFERROR(((VLOOKUP($B92,Pupils,Pupils!$D$3,FALSE)+VLOOKUP($B92,Pupils,Pupils!$E$3,FALSE))/VLOOKUP($B92,Pupils,Pupils!$C$3,FALSE)), \"x\")","v":0.29410549795530588},{"$f":"IFERROR(((VLOOKUP($B92,Pupils,Pupils!$G$3,FALSE)+VLOOKUP($B92,Pupils,Pupils!$H$3,FALSE))/VLOOKUP($B92,Pupils,Pupils!$F$3,FALSE)), \"x\")","v":0.31441833235761479},{"$f":"IFERROR(((VLOOKUP($B92,Pupils,Pupils!$J$3,FALSE)+VLOOKUP($B92,Pupils,Pupils!$K$3,FALSE))/VLOOKUP($B92,Pupils,Pupils!$I$3,FALSE)), \"x\")","v":0.2920905391658189},{"$f":"IFERROR(((VLOOKUP($B92,Pupils,Pupils!$M$3,FALSE)+VLOOKUP($B92,Pupils,Pupils!$P$3,FALSE))/VLOOKUP($B92,Pupils,Pupils!$L$3,FALSE)), \"x\")","v":0.27264615907545886},{"$f":"IFERROR(((VLOOKUP($B92,Pupils,Pupils!$R$3,FALSE)+VLOOKUP($B92,Pupils,Pupils!$U$3,FALSE))/VLOOKUP($B92,Pupils,Pupils!$Q$3,FALSE)), \"x\")","v":0.20661884988045803},{"$f":"IFERROR(((VLOOKUP($B92,Pupils,Pupils!$W$3,FALSE)+VLOOKUP($B92,Pupils,Pupils!$Z$3,FALSE))/VLOOKUP($B92,Pupils,Pupils!$V$3,FALSE)), \"x\")","v":0.189623507805326},{"$f":"(SUM(INDEX(Pupils!$AB$7:$AB$159,MATCH($B92,Pupils!$A$7:$A$159,0)),INDEX(Pupils!$AC$7:$AC$159,MATCH($B92,Pupils!$A$7:$A$159,0)),INDEX(Pupils!$AD$7:$AD$159,MATCH($B92,Pupils!$A$7:$A$159,0)),INDEX(Pupils!$AE$7:$AE$159,MATCH($B92,Pupils!$A$7:$A$159,0))))/SUM(INDEX(Pupils!$AB$7:$AM$159,MATCH($B92,Pupils!$A$7:$A$159,0),0))","v":0.46359223300970875},{"$f":"SUM(INDEX(Pupils!$AF$7:$AF$159,MATCH($B92,Pupils!$A$7:$A$159,0)))/SUM(INDEX(Pupils!$AB$7:$AM$159,MATCH($B92,Pupils!$A$7:$A$159,0),0))","v":0.20825242718446602},{"$f":"SUM(INDEX(Pupils!$AG$7:$AG$159,MATCH($B92,Pupils!$A$7:$A$159,0)))/SUM(INDEX(Pupils!$AB$7:$AM$159,MATCH($B92,Pupils!$A$7:$A$159,0),0))","v":0.11019417475728155},{"$f":"(SUM(INDEX(Pupils!$AH$7:$AH$159,MATCH($B92,Pupils!$A$7:$A$159,0)),INDEX(Pupils!$AI$7:$AI$159,MATCH($B92,Pupils!$A$7:$A$159,0)),INDEX(Pupils!$AJ$7:$AJ$159,MATCH($B92,Pupils!$A$7:$A$159,0))))/SUM(INDEX(Pupils!$AB$7:$AM$159,MATCH($B92,Pupils!$A$7:$A$159,0),0))","v":3.4466019417475728E-2},{"$f":"SUM(INDEX(Pupils!$AK$7:$AK$159,MATCH($B92,Pupils!$A$7:$A$159,0)))/SUM(INDEX(Pupils!$AB$7:$AM$159,MATCH($B92,Pupils!$A$7:$A$159,0),0))","v":5.145631067961165E-2},{"$f":"SUM(INDEX(Pupils!$AL$7:$AL$159,MATCH($B92,Pupils!$A$7:$A$159,0)))/SUM(INDEX(Pupils!$AB$7:$AM$159,MATCH($B92,Pupils!$A$7:$A$159,0),0))","v":0.10728155339805825},{"$f":"SUM(INDEX(Pupils!$AM$7:$AM$159,MATCH($B92,Pupils!$A$7:$A$159,0)))/SUM(INDEX(Pupils!$AB$7:$AM$159,MATCH($B92,Pupils!$A$7:$A$159,0),0))","v":2.4757281553398059E-2},{"$f":"(SUM(INDEX(Pupils!$BH$7:$BH$159,MATCH($B92,Pupils!$A$7:$A$159,0)),INDEX(Pupils!$BK$7:$BK$159,MATCH($B92,Pupils!$A$7:$A$159,0)),INDEX(Pupils!$BO$7:$BO$159,MATCH($B92,Pupils!$A$7:$A$159,0))))/SUM(INDEX(Pupils!$BH$7:$BS$159,MATCH($B92,Pupils!$A$7:$A$159,0),0))","v":0.38419117647058826},{"$f":"(SUM(INDEX(Pupils!$BL$7:$BL$159,MATCH($B92,Pupils!$A$7:$A$159,0)),INDEX(Pupils!$BM$7:$BM$159,MATCH($B92,Pupils!$A$7:$A$159,0)),INDEX(Pupils!$BP$7:$BP$159,MATCH($B92,Pupils!$A$7:$A$159,0))))/SUM(INDEX(Pupils!$BH$7:$BS$159,MATCH($B92,Pupils!$A$7:$A$159,0),0))","v":0.59375},{"$f":"(SUM(INDEX(Pupils!$BI$7:$BI$159,MATCH($B92,Pupils!$A$7:$A$159,0)),INDEX(Pupils!$BJ$7:$BJ$159,MATCH($B92,Pupils!$A$7:$A$159,0))))/SUM(INDEX(Pupils!$BH$7:$BS$159,MATCH($B92,Pupils!$A$7:$A$159,0),0))","v":0},{"$f":"(SUM(INDEX(Pupils!$BQ$7:$BQ$159,MATCH($B92,Pupils!$A$7:$A$159,0)),INDEX(Pupils!$BR$7:$BR$159,MATCH($B92,Pupils!$A$7:$A$159,0)),INDEX(Pupils!$BN$7:$BN$159,MATCH($B92,Pupils!$A$7:$A$159,0)),INDEX(Pupils!$BS$7:$BS$159,MATCH($B92,Pupils!$A$7:$A$159,0))))/SUM(INDEX(Pupils!$BH$7:$BS$159,MATCH($B92,Pupils!$A$7:$A$159,0),0))","v":2.2058823529411766E-2},{"$f":"IFERROR((VLOOKUP(B92,Funding,Funding!$C$2,FALSE)), \"x\")","v":15194631},{"$f":"IFERROR((AA92/VLOOKUP(B92,Funding,Funding!$D$2,FALSE)), \"x\")","v":0.14436433136514065},{"$f":"IFERROR((AA92/(VLOOKUP(B92,Pupils,Pupils!$M$3,FALSE)+VLOOKUP(B92,Pupils,Pupils!$P$3,FALSE))), \"x\")","v":2367.871435250117},{"$f":"IFERROR((VLOOKUP(B92,Funding,Funding!$E$2,FALSE)), \"x\")","v":15440751.914076135},{"$f":"IFERROR((AD92/VLOOKUP(B92,Funding,Funding!$F$2,FALSE)), \"x\")","v":0.14326057124502942},{"$f":"IFERROR((AD92/(VLOOKUP(B92,Pupils,Pupils!$R$3,FALSE)+VLOOKUP(B92,Pupils,Pupils!$U$3,FALSE))), \"x\")","v":3134.5415984726219},{"$f":"IFERROR((VLOOKUP(B92,Funding,Funding!$G$2,FALSE)), \"x\")","v":15785287.147128938},{"$f":"IFERROR((AG92/VLOOKUP(B92,Funding,Funding!$H$2,FALSE)), \"x\")","v":0.14378541268363251},{"$f":"IFERROR((AG92/(VLOOKUP(B92,Pupils,Pupils!$W$3,FALSE)+VLOOKUP(B92,Pupils,Pupils!$Z$3,FALSE))), \"x\")","v":3474.6394776863167},{"$f":"IFERROR((VLOOKUP(B92,Funding,Funding!$I$2,FALSE)), \"x\")","v":15919179.541479284},{"$f":"IFERROR((AJ92/VLOOKUP(B92,Funding,Funding!$J$2,FALSE)), \"x\")","v":0.13138430686649843},null,{"$f":"IFERROR((VLOOKUP($B92,Funding,Funding!$EC$2,FALSE)), \"x\")","v":11932481.569999998},{"$f":"IFERROR((AM92/VLOOKUP($B92,Funding,Funding!$EU$2,FALSE)), \"x\")","v":0.108192682357019},{"$f":"IFERROR((AM92/(VLOOKUP($B92,Pupils,Pupils!$D$3,FALSE)+VLOOKUP($B92,Pupils,Pupils!$E$3,FALSE))), \"x\")","v":1675.9103328651684},{"$f":"IFERROR((VLOOKUP($B92,Funding,Funding!$DA$2,FALSE)), \"x\")","v":12751023.876189999},{"$f":"IFERROR((AP92/VLOOKUP($B92,Funding,Funding!$DT$2,FALSE)), \"x\")","v":0.11457012477177045},{"$f":"IFERROR((AP92/(VLOOKUP($B92,Pupils,Pupils!$G$3,FALSE)+VLOOKUP($B92,Pupils,Pupils!$H$3,FALSE))), \"x\")","v":1695.8403878427982},{"$f":"IFERROR((VLOOKUP($B92,Funding,Funding!$CE$2,FALSE)), \"x\")","v":12228802},{"$f":"IFERROR((AS92/VLOOKUP($B92,Funding,Funding!$CR$2,FALSE)), \"x\")","v":0.12803454586911611},{"$f":"IFERROR((AS92/(VLOOKUP($B92,Pupils,Pupils!$J$3,FALSE)+VLOOKUP($B92,Pupils,Pupils!$K$3,FALSE))), \"x\")","v":1774.604846901756},{"$f":"IFERROR((VLOOKUP($B92,Funding,Funding!$BM$2,FALSE)), \"x\")","v":6091799},{"$f":"IFERROR((AV92/VLOOKUP($B92,Funding,Funding!$BY$2,FALSE)), \"x\")","v":9.1145032490517017E-2},{"$f":"IFERROR((AV92/(VLOOKUP($B92,Pupils,Pupils!$M$3,FALSE)+VLOOKUP($B92,Pupils,Pupils!$P$3,FALSE))), \"x\")","v":949.32195730091939},{"$f":"IFERROR((VLOOKUP($B92,Funding,Funding!$AQ$2,FALSE)), \"x\")","v":13510664},{"$f":"IFERROR((AY92/VLOOKUP($B92,Funding,Funding!$BE$2,FALSE)), \"x\")","v":0.1252462251289537},{"$f":"IFERROR((AY92/(VLOOKUP($B92,Pupils,Pupils!$R$3,FALSE)+VLOOKUP($B92,Pupils,Pupils!$U$3,FALSE))), \"x\")","v":2742.7251319529028},{"$f":"IFERROR((VLOOKUP($B92,Funding,Funding!$S$2,FALSE)), \"x\")","v":13288500},{"$f":"IFERROR((BB92/VLOOKUP($B92,Funding,Funding!$AH$2,FALSE)), \"x\")","v":0.12070115942508153},{"$f":"IFERROR((BB92/(VLOOKUP(B92,Pupils,Pupils!$W$3,FALSE)+VLOOKUP(B92,Pupils,Pupils!$Z$3,FALSE))), \"x\")","v":2925.0495267444421},{"$f":"IFERROR((VLOOKUP($B92,Funding,Funding!$GX$2,FALSE)), \"x\")","v":17696764},{"$f":"IFERROR((BE92/VLOOKUP($B92,Funding,Funding!$HC$2,FALSE)), \"x\")","v":0.14738395447125091},{"$f":"IFERROR((BE92/(VLOOKUP($B92,Pupils,Pupils!$D$3,FALSE)+VLOOKUP($B92,Pupils,Pupils!$E$3,FALSE))), \"x\")","v":2485.5005617977527},{"$f":"IFERROR((VLOOKUP($B92,Funding,Funding!$GP$2,FALSE)), \"x\")","v":16527794},{"$f":"IFERROR((BH92/VLOOKUP($B92,Funding,Funding!$GU$2,FALSE)), \"x\")","v":0.14963537375797945},{"$f":"IFERROR((BH92/(VLOOKUP($B92,Pupils,Pupils!$G$3,FALSE)+VLOOKUP($B92,Pupils,Pupils!$H$3,FALSE))), \"x\")","v":2198.1372522941879},{"$f":"IFERROR((VLOOKUP($B92,Funding,Funding!$GH$2,FALSE)), \"x\")","v":11731758.620000001},{"$f":"IFERROR((BK92/VLOOKUP($B92,Funding,Funding!$GM$2,FALSE)), \"x\")","v":0.13859629709176732},{"$f":"IFERROR((BK92/(VLOOKUP($B92,Pupils,Pupils!$J$3,FALSE)+VLOOKUP($B92,Pupils,Pupils!$K$3,FALSE))), \"x\")","v":1702.4754926716007},{"$f":"IFERROR((VLOOKUP($B92,Funding,Funding!$FZ$2,FALSE)), \"x\")","v":6286352.0800000001},{"$f":"IFERROR((BN92/VLOOKUP($B92,Funding,Funding!$GE$2,FALSE)), \"x\")","v":0.10777111885131808},{"$f":"IFERROR((BN92/(VLOOKUP($B92,Pupils,Pupils!$M$3,FALSE)+VLOOKUP($B92,Pupils,Pupils!$P$3,FALSE))), \"x\")","v":979.64034283933302},{"$f":"IFERROR((VLOOKUP($B92,Funding,Funding!$FD$2,FALSE)), \"x\")","v":9877188.8300000001},{"$f":"IFERROR((BQ92/VLOOKUP($B92,Funding,Funding!$FR$2,FALSE)), \"x\")","v":0.22822962719418616},{"$f":"IFERROR((BQ92/(VLOOKUP($B92,Pupils,Pupils!$R$3,FALSE)+VLOOKUP($B92,Pupils,Pupils!$U$3,FALSE))), \"x\")","v":2005.1134449857898},{"$f":"(VLOOKUP(B92,Funding,Funding!$HK$2,FALSE)+VLOOKUP(B92,Funding,Funding!$HL$2,FALSE)+VLOOKUP(B92,Funding,Funding!$HM$2,FALSE))/(VLOOKUP(B92,Funding,Funding!$HN$2,FALSE))","v":0.1891891891891892},{"$f":"IFERROR((VLOOKUP(B92,Other_data,Other!$D$3,FALSE)+VLOOKUP(B92,Other_data,Other!$E$3,FALSE)+VLOOKUP(B92,Other_data,Other!$F$3,FALSE)), \"x\")","v":1060},{"$f":"(VLOOKUP(B92,Other_data,Other!$AK$3,FALSE)+VLOOKUP(B92,Other_data,Other!$AL$3,FALSE))/VLOOKUP(B92,Other_data,Other!$AJ$3,FALSE)","v":4.3591950218456244E-2},{"$f":"(VLOOKUP(B92,Other_data,Other!$AR$3,FALSE)+VLOOKUP(B92,Other_data,Other!$AS$3,FALSE))/VLOOKUP(B92,Other_data,Other!$AQ$3,FALSE)","v":5.8623481781376517E-2},{"$f":"VLOOKUP(B92,Other_data,Other!$AP$3,FALSE)/VLOOKUP(B92,Other_data,Other!$AJ$3,FALSE)","v":7.8445650734807366E-3},{"$f":"VLOOKUP(B92,Other_data,Other!$AW$3,FALSE)/VLOOKUP(B92,Other_data,Other!$AQ$3,FALSE)","v":1.1282051282051283E-2}]
[87,813,"North Lincolnshire",{"$f":"IFERROR((VLOOKUP($B93,Pupils,Pupils!$D$3,FALSE)/VLOOKUP($B93,Pupils,Pupils!$C$3,FALSE)), \"x\")","v":3.9210015287361073E-2},{"$f":"IFERROR((VLOOKUP($B93,Pupils,Pupils!$G$3,FALSE)/VLOOKUP($B93,Pupils,Pupils!$F$3,FALSE)),\"x\")","v":3.7677655982995037E-2},{"$f":"IFERROR((VLOOKUP($B93,Pupils,Pupils!$J$3,FALSE)/VLOOKUP($B93,Pupils,Pupils!$I$3,FALSE)), \"x\")","v":3.6521666457732645E-2},{"$f":"IFERROR((VLOOKUP($B93,Pupils,Pupils!$M$3,FALSE)/VLOOKUP($B93,Pupils,Pupils!$L$3,FALSE)), \"x\")","v":3.5404960074358865E-2},{"$f":"IFERROR((VLOOKUP($B93,Pupils,Pupils!$R$3,FALSE)/VLOOKUP($B93,Pupils,Pupils!$Q$3,FALSE)), \"x\")","v":3.4476938009030678E-2},{"$f":"IFERROR((VLOOKUP($B93,Pupils,Pupils!$W$3,FALSE)/VLOOKUP($B93,Pupils,Pupils!$V$3,FALSE)), \"x\")","v":3.3958929473152669E-2},{"$f":"IFERROR(((VLOOKUP($B93,Pupils,Pupils!$D$3,FALSE)+VLOOKUP($B93,Pupils,Pupils!$E$3,FALSE))/VLOOKUP($B93,Pupils,Pupils!$C$3,FALSE)), \"x\")","v":0.23459901665082841},{"$f":"IFERROR(((VLOOKUP($B93,Pupils,Pupils!$G$3,FALSE)+VLOOKUP($B93,Pupils,Pupils!$H$3,FALSE))/VLOOKUP($B93,Pupils,Pupils!$F$3,FALSE)), \"x\")","v":0.22890009586129287},{"$f":"IFERROR(((VLOOKUP($B93,Pupils,Pupils!$J$3,FALSE)+VLOOKUP($B93,Pupils,Pupils!$K$3,FALSE))/VLOOKUP($B93,Pupils,Pupils!$I$3,FALSE)), \"x\")","v":0.22723663866950816},{"$f":"IFERROR(((VLOOKUP($B93,Pupils,Pupils!$M$3,FALSE)+VLOOKUP($B93,Pupils,Pupils!$P$3,FALSE))/VLOOKUP($B93,Pupils,Pupils!$L$3,FALSE)), \"x\")","v":0.22202036418944612},{"$f":"IFERROR(((VLOOKUP($B93,Pupils,Pupils!$R$3,FALSE)+VLOOKUP($B93,Pupils,Pupils!$U$3,FALSE))/VLOOKUP($B93,Pupils,Pupils!$Q$3,FALSE)), \"x\")","v":0.20622863653627041},{"$f":"IFERROR(((VLOOKUP($B93,Pupils,Pupils!$W$3,FALSE)+VLOOKUP($B93,Pupils,Pupils!$Z$3,FALSE))/VLOOKUP($B93,Pupils,Pupils!$V$3,FALSE)), \"x\")","v":0.18982494529540481},{"$f":"(SUM(INDEX(Pupils!$AB$7:$AB$159,MATCH($B93,Pupils!$A$7:$A$159,0)),INDEX(Pupils!$AC$7:$AC$159,MATCH($B93,Pupils!$A$7:$A$159,0)),INDEX(Pupils!$AD$7:$AD$159,MATCH($B93,Pupils!$A$7:$A$159,0)),INDEX(Pupils!$AE$7:$AE$159,MATCH($B93,Pupils!$A$7:$A$159,0))))/SUM(INDEX(Pupils!$AB$7:$AM$159,MATCH($B93,Pupils!$A$7:$A$159,0),0))","v":0.47472924187725629},{"$f":"SUM(INDEX(Pupils!$AF$7:$AF$159,MATCH($B93,Pupils!$A$7:$A$159,0)))/SUM(INDEX(Pupils!$AB$7:$AM$159,MATCH($B93,Pupils!$A$7:$A$159,0),0))","v":0.16832129963898917},{"$f":"SUM(INDEX(Pupils!$AG$7:$AG$159,MATCH($B93,Pupils!$A$7:$A$159,0)))/SUM(INDEX(Pupils!$AB$7:$AM$159,MATCH($B93,Pupils!$A$7:$A$159,0),0))","v":0.2197653429602888},{"$f":"(SUM(INDEX(Pupils!$AH$7:$AH$159,MATCH($B93,Pupils!$A$7:$A$159,0)),INDEX(Pupils!$AI$7:$AI$159,MATCH($B93,Pupils!$A$7:$A$159,0)),INDEX(Pupils!$AJ$7:$AJ$159,MATCH($B93,Pupils!$A$7:$A$159,0))))/SUM(INDEX(Pupils!$AB$7:$AM$159,MATCH($B93,Pupils!$A$7:$A$159,0),0))","v":2.3916967509025271E-2},{"$f":"SUM(INDEX(Pupils!$AK$7:$AK$159,MATCH($B93,Pupils!$A$7:$A$159,0)))/SUM(INDEX(Pupils!$AB$7:$AM$159,MATCH($B93,Pupils!$A$7:$A$159,0),0))","v":3.5649819494584838E-2},{"$f":"SUM(INDEX(Pupils!$AL$7:$AL$159,MATCH($B93,Pupils!$A$7:$A$159,0)))/SUM(INDEX(Pupils!$AB$7:$AM$159,MATCH($B93,Pupils!$A$7:$A$159,0),0))","v":6.1371841155234655E-2},{"$f":"SUM(INDEX(Pupils!$AM$7:$AM$159,MATCH($B93,Pupils!$A$7:$A$159,0)))/SUM(INDEX(Pupils!$AB$7:$AM$159,MATCH($B93,Pupils!$A$7:$A$159,0),0))","v":1.6245487364620937E-2},{"$f":"(SUM(INDEX(Pupils!$BH$7:$BH$159,MATCH($B93,Pupils!$A$7:$A$159,0)),INDEX(Pupils!$BK$7:$BK$159,MATCH($B93,Pupils!$A$7:$A$159,0)),INDEX(Pupils!$BO$7:$BO$159,MATCH($B93,Pupils!$A$7:$A$159,0))))/SUM(INDEX(Pupils!$BH$7:$BS$159,MATCH($B93,Pupils!$A$7:$A$159,0),0))","v":0.59627329192546585},{"$f":"(SUM(INDEX(Pupils!$BL$7:$BL$159,MATCH($B93,Pupils!$A$7:$A$159,0)),INDEX(Pupils!$BM$7:$BM$159,MATCH($B93,Pupils!$A$7:$A$159,0)),INDEX(Pupils!$BP$7:$BP$159,MATCH($B93,Pupils!$A$7:$A$159,0))))/SUM(INDEX(Pupils!$BH$7:$BS$159,MATCH($B93,Pupils!$A$7:$A$159,0),0))","v":0.40372670807453415},{"$f":"(SUM(INDEX(Pupils!$BI$7:$BI$159,MATCH($B93,Pupils!$A$7:$A$159,0)),INDEX(Pupils!$BJ$7:$BJ$159,MATCH($B93,Pupils!$A$7:$A$159,0))))/SUM(INDEX(Pupils!$BH$7:$BS$159,MATCH($B93,Pupils!$A$7:$A$159,0),0))","v":0},{"$f":"(SUM(INDEX(Pupils!$BQ$7:$BQ$159,MATCH($B93,Pupils!$A$7:$A$159,0)),INDEX(Pupils!$BR$7:$BR$159,MATCH($B93,Pupils!$A$7:$A$159,0)),INDEX(Pupils!$BN$7:$BN$159,MATCH($B93,Pupils!$A$7:$A$159,0)),INDEX(Pupils!$BS$7:$BS$159,MATCH($B93,Pupils!$A$7:$A$159,0))))/SUM(INDEX(Pupils!$BH$7:$BS$159,MATCH($B93,Pupils!$A$7:$A$159,0),0))","v":0},{"$f":"IFERROR((VLOOKUP(B93,Funding,Funding!$C$2,FALSE)), \"x\")","v":13246477},{"$f":"IFERROR((AA93/VLOOKUP(B93,Funding,Funding!$D$2,FALSE)), \"x\")","v":0.11584318763590416},{"$f":"IFERROR((AA93/(VLOOKUP(B93,Pupils,Pupils!$M$3,FALSE)+VLOOKUP(B93,Pupils,Pupils!$P$3,FALSE))), \"x\")","v":2520.7377735490008},{"$f":"IFERROR((VLOOKUP(B93,Funding,Funding!$E$2,FALSE)), \"x\")","v":13718599.825852931},{"$f":"IFERROR((AD93/VLOOKUP(B93,Funding,Funding!$F$2,FALSE)), \"x\")","v":0.11807723007295268},{"$f":"IFERROR((AD93/(VLOOKUP(B93,Pupils,Pupils!$R$3,FALSE)+VLOOKUP(B93,Pupils,Pupils!$U$3,FALSE))), \"x\")","v":2807.161822355828},{"$f":"IFERROR((VLOOKUP(B93,Funding,Funding!$G$2,FALSE)), \"x\")","v":14609432.828531042},{"$f":"IFERROR((AG93/VLOOKUP(B93,Funding,Funding!$H$2,FALSE)), \"x\")","v":0.12410285058687208},{"$f":"IFERROR((AG93/(VLOOKUP(B93,Pupils,Pupils!$W$3,FALSE)+VLOOKUP(B93,Pupils,Pupils!$Z$3,FALSE))), \"x\")","v":3238.6239921372294},{"$f":"IFERROR((VLOOKUP(B93,Funding,Funding!$I$2,FALSE)), \"x\")","v":14775138.344773818},{"$f":"IFERROR((AJ93/VLOOKUP(B93,Funding,Funding!$J$2,FALSE)), \"x\")","v":0.1232524866719539},null,{"$f":"IFERROR((VLOOKUP($B93,Funding,Funding!$EC$2,FALSE)), \"x\")","v":10336392.640000001},{"$f":"IFERROR((AM93/VLOOKUP($B93,Funding,Funding!$EU$2,FALSE)), \"x\")","v":9.5655374742639701E-2},{"$f":"IFERROR((AM93/(VLOOKUP($B93,Pupils,Pupils!$D$3,FALSE)+VLOOKUP($B93,Pupils,Pupils!$E$3,FALSE))), \"x\")","v":1820.4284325466715},{"$f":"IFERROR((VLOOKUP($B93,Funding,Funding!$DA$2,FALSE)), \"x\")","v":10823807.0023},{"$f":"IFERROR((AP93/VLOOKUP($B93,Funding,Funding!$DT$2,FALSE)), \"x\")","v":9.343973619015139E-2},{"$f":"IFERROR((AP93/(VLOOKUP($B93,Pupils,Pupils!$G$3,FALSE)+VLOOKUP($B93,Pupils,Pupils!$H$3,FALSE))), \"x\")","v":1970.831573616169},{"$f":"IFERROR((VLOOKUP($B93,Funding,Funding!$CE$2,FALSE)), \"x\")","v":11055213.59},{"$f":"IFERROR((AS93/VLOOKUP($B93,Funding,Funding!$CR$2,FALSE)), \"x\")","v":9.5081030197878433E-2},{"$f":"IFERROR((AS93/(VLOOKUP($B93,Pupils,Pupils!$J$3,FALSE)+VLOOKUP($B93,Pupils,Pupils!$K$3,FALSE))), \"x\")","v":2032.9557907318867},{"$f":"IFERROR((VLOOKUP($B93,Funding,Funding!$BM$2,FALSE)), \"x\")","v":11773135.5},{"$f":"IFERROR((AV93/VLOOKUP($B93,Funding,Funding!$BY$2,FALSE)), \"x\")","v":0.11608340812301836},{"$f":"IFERROR((AV93/(VLOOKUP($B93,Pupils,Pupils!$M$3,FALSE)+VLOOKUP($B93,Pupils,Pupils!$P$3,FALSE))), \"x\")","v":2240.3683158896288},{"$f":"IFERROR((VLOOKUP($B93,Funding,Funding!$AQ$2,FALSE)), \"x\")","v":12482542.02},{"$f":"IFERROR((AY93/VLOOKUP($B93,Funding,Funding!$BE$2,FALSE)), \"x\")","v":0.10687658994553309},{"$f":"IFERROR((AY93/(VLOOKUP($B93,Pupils,Pupils!$R$3,FALSE)+VLOOKUP($B93,Pupils,Pupils!$U$3,FALSE))), \"x\")","v":2554.2340945365254},{"$f":"IFERROR((VLOOKUP($B93,Funding,Funding!$S$2,FALSE)), \"x\")","v":12564000},{"$f":"IFERROR((BB93/VLOOKUP($B93,Funding,Funding!$AH$2,FALSE)), \"x\")","v":0.10691129568605622},{"$f":"IFERROR((BB93/(VLOOKUP(B93,Pupils,Pupils!$W$3,FALSE)+VLOOKUP(B93,Pupils,Pupils!$Z$3,FALSE))), \"x\")","v":2785.1917534914655},{"$f":"IFERROR((VLOOKUP($B93,Funding,Funding!$GX$2,FALSE)), \"x\")","v":16925644.493999999},{"$f":"IFERROR((BE93/VLOOKUP($B93,Funding,Funding!$HC$2,FALSE)), \"x\")","v":0.14157419367930468},{"$f":"IFERROR((BE93/(VLOOKUP($B93,Pupils,Pupils!$D$3,FALSE)+VLOOKUP($B93,Pupils,Pupils!$E$3,FALSE))), \"x\")","v":2980.9166069038392},{"$f":"IFERROR((VLOOKUP($B93,Funding,Funding!$GP$2,FALSE)), \"x\")","v":16435975.550000001},{"$f":"IFERROR((BH93/VLOOKUP($B93,Funding,Funding!$GU$2,FALSE)), \"x\")","v":0.1342603378288495},{"$f":"IFERROR((BH93/(VLOOKUP($B93,Pupils,Pupils!$G$3,FALSE)+VLOOKUP($B93,Pupils,Pupils!$H$3,FALSE))), \"x\")","v":2992.7122268754551},{"$f":"IFERROR((VLOOKUP($B93,Funding,Funding!$GH$2,FALSE)), \"x\")","v":17437647},{"$f":"IFERROR((BK93/VLOOKUP($B93,Funding,Funding!$GM$2,FALSE)), \"x\")","v":0.15261114482992807},{"$f":"IFERROR((BK93/(VLOOKUP($B93,Pupils,Pupils!$J$3,FALSE)+VLOOKUP($B93,Pupils,Pupils!$K$3,FALSE))), \"x\")","v":3206.628723795513},{"$f":"IFERROR((VLOOKUP($B93,Funding,Funding!$FZ$2,FALSE)), \"x\")","v":10108291},{"$f":"IFERROR((BN93/VLOOKUP($B93,Funding,Funding!$GE$2,FALSE)), \"x\")","v":0.10897198531492119},{"$f":"IFERROR((BN93/(VLOOKUP($B93,Pupils,Pupils!$M$3,FALSE)+VLOOKUP($B93,Pupils,Pupils!$P$3,FALSE))), \"x\")","v":1923.5568030447193},{"$f":"IFERROR((VLOOKUP($B93,Funding,Funding!$FD$2,FALSE)), \"x\")","v":13273749},{"$f":"IFERROR((BQ93/VLOOKUP($B93,Funding,Funding!$FR$2,FALSE)), \"x\")","v":0.17953030446069695},{"$f":"IFERROR((BQ93/(VLOOKUP($B93,Pupils,Pupils!$R$3,FALSE)+VLOOKUP($B93,Pupils,Pupils!$U$3,FALSE))), \"x\")","v":2716.134438305709},{"$f":"(VLOOKUP(B93,Funding,Funding!$HK$2,FALSE)+VLOOKUP(B93,Funding,Funding!$HL$2,FALSE)+VLOOKUP(B93,Funding,Funding!$HM$2,FALSE))/(VLOOKUP(B93,Funding,Funding!$HN$2,FALSE))","v":0.27990430622009571},{"$f":"IFERROR((VLOOKUP(B93,Other_data,Other!$D$3,FALSE)+VLOOKUP(B93,Other_data,Other!$E$3,FALSE)+VLOOKUP(B93,Other_data,Other!$F$3,FALSE)), \"x\")","v":930},{"$f":"(VLOOKUP(B93,Other_data,Other!$AK$3,FALSE)+VLOOKUP(B93,Other_data,Other!$AL$3,FALSE))/VLOOKUP(B93,Other_data,Other!$AJ$3,FALSE)","v":3.6594711968322903E-2},{"$f":"(VLOOKUP(B93,Other_data,Other!$AR$3,FALSE)+VLOOKUP(B93,Other_data,Other!$AS$3,FALSE))/VLOOKUP(B93,Other_data,Other!$AQ$3,FALSE)","v":5.3422849601193548E-2},{"$f":"VLOOKUP(B93,Other_data,Other!$AP$3,FALSE)/VLOOKUP(B93,Other_data,Other!$AJ$3,FALSE)","v":6.0991186613871505E-3},{"$f":"VLOOKUP(B93,Other_data,Other!$AW$3,FALSE)/VLOOKUP(B93,Other_data,Other!$AQ$3,FALSE)","v":9.8123601308314681E-3}]
[88,802,"North Somerset",{"$f":"IFERROR((VLOOKUP($B94,Pupils,Pupils!$D$3,FALSE)/VLOOKUP($B94,Pupils,Pupils!$C$3,FALSE)), \"x\")","v":1.8527364542104546E-2},{"$f":"IFERROR((VLOOKUP($B94,Pupils,Pupils!$G$3,FALSE)/VLOOKUP($B94,Pupils,Pupils!$F$3,FALSE)),\"x\")","v":1.7166797234238224E-2},{"$f":"IFERROR((VLOOKUP($B94,Pupils,Pupils!$J$3,FALSE)/VLOOKUP($B94,Pupils,Pupils!$I$3,FALSE)), \"x\")","v":1.6740806139427484E-2},{"$f":"IFERROR((VLOOKUP($B94,Pupils,Pupils!$M$3,FALSE)/VLOOKUP($B94,Pupils,Pupils!$L$3,FALSE)), \"x\")","v":1.5898251192368838E-2},{"$f":"IFERROR((VLOOKUP($B94,Pupils,Pupils!$R$3,FALSE)/VLOOKUP($B94,Pupils,Pupils!$Q$3,FALSE)), \"x\")","v":1.5887472171625176E-2},{"$f":"IFERROR((VLOOKUP($B94,Pupils,Pupils!$W$3,FALSE)/VLOOKUP($B94,Pupils,Pupils!$V$3,FALSE)), \"x\")","v":1.62748643761302E-2},{"$f":"IFERROR(((VLOOKUP($B94,Pupils,Pupils!$D$3,FALSE)+VLOOKUP($B94,Pupils,Pupils!$E$3,FALSE))/VLOOKUP($B94,Pupils,Pupils!$C$3,FALSE)), \"x\")","v":0.19448614712706427},{"$f":"IFERROR(((VLOOKUP($B94,Pupils,Pupils!$G$3,FALSE)+VLOOKUP($B94,Pupils,Pupils!$H$3,FALSE))/VLOOKUP($B94,Pupils,Pupils!$F$3,FALSE)), \"x\")","v":0.21482339316734222},{"$f":"IFERROR(((VLOOKUP($B94,Pupils,Pupils!$J$3,FALSE)+VLOOKUP($B94,Pupils,Pupils!$K$3,FALSE))/VLOOKUP($B94,Pupils,Pupils!$I$3,FALSE)), \"x\")","v":0.20574552616387654},{"$f":"IFERROR(((VLOOKUP($B94,Pupils,Pupils!$M$3,FALSE)+VLOOKUP($B94,Pupils,Pupils!$P$3,FALSE))/VLOOKUP($B94,Pupils,Pupils!$L$3,FALSE)), \"x\")","v":0.19855900957277678},{"$f":"IFERROR(((VLOOKUP($B94,Pupils,Pupils!$R$3,FALSE)+VLOOKUP($B94,Pupils,Pupils!$U$3,FALSE))/VLOOKUP($B94,Pupils,Pupils!$Q$3,FALSE)), \"x\")","v":0.18818727652971734},{"$f":"IFERROR(((VLOOKUP($B94,Pupils,Pupils!$W$3,FALSE)+VLOOKUP($B94,Pupils,Pupils!$Z$3,FALSE))/VLOOKUP($B94,Pupils,Pupils!$V$3,FALSE)), \"x\")","v":0.16485834840265221},{"$f":"(SUM(INDEX(Pupils!$AB$7:$AB$159,MATCH($B94,Pupils!$A$7:$A$159,0)),INDEX(Pupils!$AC$7:$AC$159,MATCH($B94,Pupils!$A$7:$A$159,0)),INDEX(Pupils!$AD$7:$AD$159,MATCH($B94,Pupils!$A$7:$A$159,0)),INDEX(Pupils!$AE$7:$AE$159,MATCH($B94,Pupils!$A$7:$A$159,0))))/SUM(INDEX(Pupils!$AB$7:$AM$159,MATCH($B94,Pupils!$A$7:$A$159,0),0))","v":0.24286483575659665},{"$f":"SUM(INDEX(Pupils!$AF$7:$AF$159,MATCH($B94,Pupils!$A$7:$A$159,0)))/SUM(INDEX(Pupils!$AB$7:$AM$159,MATCH($B94,Pupils!$A$7:$A$159,0),0))","v":0.26171243941841682},{"$f":"SUM(INDEX(Pupils!$AG$7:$AG$159,MATCH($B94,Pupils!$A$7:$A$159,0)))/SUM(INDEX(Pupils!$AB$7:$AM$159,MATCH($B94,Pupils!$A$7:$A$159,0),0))","v":0.23801830910070004},{"$f":"(SUM(INDEX(Pupils!$AH$7:$AH$159,MATCH($B94,Pupils!$A$7:$A$159,0)),INDEX(Pupils!$AI$7:$AI$159,MATCH($B94,Pupils!$A$7:$A$159,0)),INDEX(Pupils!$AJ$7:$AJ$159,MATCH($B94,Pupils!$A$7:$A$159,0))))/SUM(INDEX(Pupils!$AB$7:$AM$159,MATCH($B94,Pupils!$A$7:$A$159,0),0))","v":4.5234248788368334E-2},{"$f":"SUM(INDEX(Pupils!$AK$7:$AK$159,MATCH($B94,Pupils!$A$7:$A$159,0)))/SUM(INDEX(Pupils!$AB$7:$AM$159,MATCH($B94,Pupils!$A$7:$A$159,0),0))","v":5.1696284329563816E-2},{"$f":"SUM(INDEX(Pupils!$AL$7:$AL$159,MATCH($B94,Pupils!$A$7:$A$159,0)))/SUM(INDEX(Pupils!$AB$7:$AM$159,MATCH($B94,Pupils!$A$7:$A$159,0),0))","v":9.1007000538502955E-2},{"$f":"SUM(INDEX(Pupils!$AM$7:$AM$159,MATCH($B94,Pupils!$A$7:$A$159,0)))/SUM(INDEX(Pupils!$AB$7:$AM$159,MATCH($B94,Pupils!$A$7:$A$159,0),0))","v":6.9466882067851371E-2},{"$f":"(SUM(INDEX(Pupils!$BH$7:$BH$159,MATCH($B94,Pupils!$A$7:$A$159,0)),INDEX(Pupils!$BK$7:$BK$159,MATCH($B94,Pupils!$A$7:$A$159,0)),INDEX(Pupils!$BO$7:$BO$159,MATCH($B94,Pupils!$A$7:$A$159,0))))/SUM(INDEX(Pupils!$BH$7:$BS$159,MATCH($B94,Pupils!$A$7:$A$159,0),0))","v":0.3351851851851852},{"$f":"(SUM(INDEX(Pupils!$BL$7:$BL$159,MATCH($B94,Pupils!$A$7:$A$159,0)),INDEX(Pupils!$BM$7:$BM$159,MATCH($B94,Pupils!$A$7:$A$159,0)),INDEX(Pupils!$BP$7:$BP$159,MATCH($B94,Pupils!$A$7:$A$159,0))))/SUM(INDEX(Pupils!$BH$7:$BS$159,MATCH($B94,Pupils!$A$7:$A$159,0),0))","v":0.58518518518518514},{"$f":"(SUM(INDEX(Pupils!$BI$7:$BI$159,MATCH($B94,Pupils!$A$7:$A$159,0)),INDEX(Pupils!$BJ$7:$BJ$159,MATCH($B94,Pupils!$A$7:$A$159,0))))/SUM(INDEX(Pupils!$BH$7:$BS$159,MATCH($B94,Pupils!$A$7:$A$159,0),0))","v":4.6296296296296294E-2},{"$f":"(SUM(INDEX(Pupils!$BQ$7:$BQ$159,MATCH($B94,Pupils!$A$7:$A$159,0)),INDEX(Pupils!$BR$7:$BR$159,MATCH($B94,Pupils!$A$7:$A$159,0)),INDEX(Pupils!$BN$7:$BN$159,MATCH($B94,Pupils!$A$7:$A$159,0)),INDEX(Pupils!$BS$7:$BS$159,MATCH($B94,Pupils!$A$7:$A$159,0))))/SUM(INDEX(Pupils!$BH$7:$BS$159,MATCH($B94,Pupils!$A$7:$A$159,0),0))","v":3.3333333333333333E-2},{"$f":"IFERROR((VLOOKUP(B94,Funding,Funding!$C$2,FALSE)), \"x\")","v":12249533},{"$f":"IFERROR((AA94/VLOOKUP(B94,Funding,Funding!$D$2,FALSE)), \"x\")","v":9.2367811387746176E-2},{"$f":"IFERROR((AA94/(VLOOKUP(B94,Pupils,Pupils!$M$3,FALSE)+VLOOKUP(B94,Pupils,Pupils!$P$3,FALSE))), \"x\")","v":2086.8028960817719},{"$f":"IFERROR((VLOOKUP(B94,Funding,Funding!$E$2,FALSE)), \"x\")","v":15276442.852834804},{"$f":"IFERROR((AD94/VLOOKUP(B94,Funding,Funding!$F$2,FALSE)), \"x\")","v":0.11116167843192216},{"$f":"IFERROR((AD94/(VLOOKUP(B94,Pupils,Pupils!$R$3,FALSE)+VLOOKUP(B94,Pupils,Pupils!$U$3,FALSE))), \"x\")","v":2738.204490560101},{"$f":"IFERROR((VLOOKUP(B94,Funding,Funding!$G$2,FALSE)), \"x\")","v":16705819.494723855},{"$f":"IFERROR((AG94/VLOOKUP(B94,Funding,Funding!$H$2,FALSE)), \"x\")","v":0.11943999912569681},{"$f":"IFERROR((AG94/(VLOOKUP(B94,Pupils,Pupils!$W$3,FALSE)+VLOOKUP(B94,Pupils,Pupils!$Z$3,FALSE))), \"x\")","v":3393.422607094019},{"$f":"IFERROR((VLOOKUP(B94,Funding,Funding!$I$2,FALSE)), \"x\")","v":16948496.045055401},{"$f":"IFERROR((AJ94/VLOOKUP(B94,Funding,Funding!$J$2,FALSE)), \"x\")","v":0.12163846876273299},null,{"$f":"IFERROR((VLOOKUP($B94,Funding,Funding!$EC$2,FALSE)), \"x\")","v":8073021.9900000002},{"$f":"IFERROR((AM94/VLOOKUP($B94,Funding,Funding!$EU$2,FALSE)), \"x\")","v":6.227736127701948E-2},{"$f":"IFERROR((AM94/(VLOOKUP($B94,Pupils,Pupils!$D$3,FALSE)+VLOOKUP($B94,Pupils,Pupils!$E$3,FALSE))), \"x\")","v":1416.3196473684211},{"$f":"IFERROR((VLOOKUP($B94,Funding,Funding!$DA$2,FALSE)), \"x\")","v":6662520.4636700004},{"$f":"IFERROR((AP94/VLOOKUP($B94,Funding,Funding!$DT$2,FALSE)), \"x\")","v":5.0043174743327389E-2},{"$f":"IFERROR((AP94/(VLOOKUP($B94,Pupils,Pupils!$G$3,FALSE)+VLOOKUP($B94,Pupils,Pupils!$H$3,FALSE))), \"x\")","v":1056.3691871999367},{"$f":"IFERROR((VLOOKUP($B94,Funding,Funding!$CE$2,FALSE)), \"x\")","v":8956757},{"$f":"IFERROR((AS94/VLOOKUP($B94,Funding,Funding!$CR$2,FALSE)), \"x\")","v":6.8697657353617117E-2},{"$f":"IFERROR((AS94/(VLOOKUP($B94,Pupils,Pupils!$J$3,FALSE)+VLOOKUP($B94,Pupils,Pupils!$K$3,FALSE))), \"x\")","v":1478.2566430103977},{"$f":"IFERROR((VLOOKUP($B94,Funding,Funding!$BM$2,FALSE)), \"x\")","v":7185011.8300000001},{"$f":"IFERROR((AV94/VLOOKUP($B94,Funding,Funding!$BY$2,FALSE)), \"x\")","v":7.1612260839597375E-2},{"$f":"IFERROR((AV94/(VLOOKUP($B94,Pupils,Pupils!$M$3,FALSE)+VLOOKUP($B94,Pupils,Pupils!$P$3,FALSE))), \"x\")","v":1224.0224582623509},{"$f":"IFERROR((VLOOKUP($B94,Funding,Funding!$AQ$2,FALSE)), \"x\")","v":15918458},{"$f":"IFERROR((AY94/VLOOKUP($B94,Funding,Funding!$BE$2,FALSE)), \"x\")","v":0.11414473106789355},{"$f":"IFERROR((AY94/(VLOOKUP($B94,Pupils,Pupils!$R$3,FALSE)+VLOOKUP($B94,Pupils,Pupils!$U$3,FALSE))), \"x\")","v":2853.2815916830973},{"$f":"IFERROR((VLOOKUP($B94,Funding,Funding!$S$2,FALSE)), \"x\")","v":16106395},{"$f":"IFERROR((BB94/VLOOKUP($B94,Funding,Funding!$AH$2,FALSE)), \"x\")","v":0.11389923396758739},{"$f":"IFERROR((BB94/(VLOOKUP(B94,Pupils,Pupils!$W$3,FALSE)+VLOOKUP(B94,Pupils,Pupils!$Z$3,FALSE))), \"x\")","v":3271.6626041031891},{"$f":"IFERROR((VLOOKUP($B94,Funding,Funding!$GX$2,FALSE)), \"x\")","v":18265532},{"$f":"IFERROR((BE94/VLOOKUP($B94,Funding,Funding!$HC$2,FALSE)), \"x\")","v":0.13000118172507696},{"$f":"IFERROR((BE94/(VLOOKUP($B94,Pupils,Pupils!$D$3,FALSE)+VLOOKUP($B94,Pupils,Pupils!$E$3,FALSE))), \"x\")","v":3204.4792982456142},{"$f":"IFERROR((VLOOKUP($B94,Funding,Funding!$GP$2,FALSE)), \"x\")","v":18687296},{"$f":"IFERROR((BH94/VLOOKUP($B94,Funding,Funding!$GU$2,FALSE)), \"x\")","v":0.12834341586783976},{"$f":"IFERROR((BH94/(VLOOKUP($B94,Pupils,Pupils!$G$3,FALSE)+VLOOKUP($B94,Pupils,Pupils!$H$3,FALSE))), \"x\")","v":2962.9452988742669},{"$f":"IFERROR((VLOOKUP($B94,Funding,Funding!$GH$2,FALSE)), \"x\")","v":20558328.620000001},{"$f":"IFERROR((BK94/VLOOKUP($B94,Funding,Funding!$GM$2,FALSE)), \"x\")","v":0.16873890268431033},{"$f":"IFERROR((BK94/(VLOOKUP($B94,Pupils,Pupils!$J$3,FALSE)+VLOOKUP($B94,Pupils,Pupils!$K$3,FALSE))), \"x\")","v":3393.0233734939761},{"$f":"IFERROR((VLOOKUP($B94,Funding,Funding!$FZ$2,FALSE)), \"x\")","v":21080037.050000001},{"$f":"IFERROR((BN94/VLOOKUP($B94,Funding,Funding!$GE$2,FALSE)), \"x\")","v":0.20334359531767976},{"$f":"IFERROR((BN94/(VLOOKUP($B94,Pupils,Pupils!$M$3,FALSE)+VLOOKUP($B94,Pupils,Pupils!$P$3,FALSE))), \"x\")","v":3591.1477086882455},{"$f":"IFERROR((VLOOKUP($B94,Funding,Funding!$FD$2,FALSE)), \"x\")","v":16044205},{"$f":"IFERROR((BQ94/VLOOKUP($B94,Funding,Funding!$FR$2,FALSE)), \"x\")","v":0.11504641121163577},{"$f":"IFERROR((BQ94/(VLOOKUP($B94,Pupils,Pupils!$R$3,FALSE)+VLOOKUP($B94,Pupils,Pupils!$U$3,FALSE))), \"x\")","v":2875.8209356515504},{"$f":"(VLOOKUP(B94,Funding,Funding!$HK$2,FALSE)+VLOOKUP(B94,Funding,Funding!$HL$2,FALSE)+VLOOKUP(B94,Funding,Funding!$HM$2,FALSE))/(VLOOKUP(B94,Funding,Funding!$HN$2,FALSE))","v":0.56407447973713032},{"$f":"IFERROR((VLOOKUP(B94,Other_data,Other!$D$3,FALSE)+VLOOKUP(B94,Other_data,Other!$E$3,FALSE)+VLOOKUP(B94,Other_data,Other!$F$3,FALSE)), \"x\")","v":930},{"$f":"(VLOOKUP(B94,Other_data,Other!$AK$3,FALSE)+VLOOKUP(B94,Other_data,Other!$AL$3,FALSE))/VLOOKUP(B94,Other_data,Other!$AJ$3,FALSE)","v":3.2549629993719451E-2},{"$f":"(VLOOKUP(B94,Other_data,Other!$AR$3,FALSE)+VLOOKUP(B94,Other_data,Other!$AS$3,FALSE))/VLOOKUP(B94,Other_data,Other!$AQ$3,FALSE)","v":5.8359098939929327E-2},{"$f":"VLOOKUP(B94,Other_data,Other!$AP$3,FALSE)/VLOOKUP(B94,Other_data,Other!$AJ$3,FALSE)","v":5.4613473143824585E-3},{"$f":"VLOOKUP(B94,Other_data,Other!$AW$3,FALSE)/VLOOKUP(B94,Other_data,Other!$AQ$3,FALSE)","v":1.1152826855123674E-2}]
[89,392,"North Tyneside",{"$f":"IFERROR((VLOOKUP($B95,Pupils,Pupils!$D$3,FALSE)/VLOOKUP($B95,Pupils,Pupils!$C$3,FALSE)), \"x\")","v":3.5192714262481703E-2},{"$f":"IFERROR((VLOOKUP($B95,Pupils,Pupils!$G$3,FALSE)/VLOOKUP($B95,Pupils,Pupils!$F$3,FALSE)),\"x\")","v":3.4632737187185562E-2},{"$f":"IFERROR((VLOOKUP($B95,Pupils,Pupils!$J$3,FALSE)/VLOOKUP($B95,Pupils,Pupils!$I$3,FALSE)), \"x\")","v":3.4569187200937469E-2},{"$f":"IFERROR((VLOOKUP($B95,Pupils,Pupils!$M$3,FALSE)/VLOOKUP($B95,Pupils,Pupils!$L$3,FALSE)), \"x\")","v":3.5729435181257548E-2},{"$f":"IFERROR((VLOOKUP($B95,Pupils,Pupils!$R$3,FALSE)/VLOOKUP($B95,Pupils,Pupils!$Q$3,FALSE)), \"x\")","v":3.6911313976864514E-2},{"$f":"IFERROR((VLOOKUP($B95,Pupils,Pupils!$W$3,FALSE)/VLOOKUP($B95,Pupils,Pupils!$V$3,FALSE)), \"x\")","v":3.8321467239738838E-2},{"$f":"IFERROR(((VLOOKUP($B95,Pupils,Pupils!$D$3,FALSE)+VLOOKUP($B95,Pupils,Pupils!$E$3,FALSE))/VLOOKUP($B95,Pupils,Pupils!$C$3,FALSE)), \"x\")","v":0.19642218246869408},{"$f":"IFERROR(((VLOOKUP($B95,Pupils,Pupils!$G$3,FALSE)+VLOOKUP($B95,Pupils,Pupils!$H$3,FALSE))/VLOOKUP($B95,Pupils,Pupils!$F$3,FALSE)), \"x\")","v":0.20435587003797592},{"$f":"IFERROR(((VLOOKUP($B95,Pupils,Pupils!$J$3,FALSE)+VLOOKUP($B95,Pupils,Pupils!$K$3,FALSE))/VLOOKUP($B95,Pupils,Pupils!$I$3,FALSE)), \"x\")","v":0.19716155073077049},{"$f":"IFERROR(((VLOOKUP($B95,Pupils,Pupils!$M$3,FALSE)+VLOOKUP($B95,Pupils,Pupils!$P$3,FALSE))/VLOOKUP($B95,Pupils,Pupils!$L$3,FALSE)), \"x\")","v":0.20015009625738245},{"$f":"IFERROR(((VLOOKUP($B95,Pupils,Pupils!$R$3,FALSE)+VLOOKUP($B95,Pupils,Pupils!$U$3,FALSE))/VLOOKUP($B95,Pupils,Pupils!$Q$3,FALSE)), \"x\")","v":0.19530039877401706},{"$f":"IFERROR(((VLOOKUP($B95,Pupils,Pupils!$W$3,FALSE)+VLOOKUP($B95,Pupils,Pupils!$Z$3,FALSE))/VLOOKUP($B95,Pupils,Pupils!$V$3,FALSE)), \"x\")","v":0.19721775648807374},{"$f":"(SUM(INDEX(Pupils!$AB$7:$AB$159,MATCH($B95,Pupils!$A$7:$A$159,0)),INDEX(Pupils!$AC$7:$AC$159,MATCH($B95,Pupils!$A$7:$A$159,0)),INDEX(Pupils!$AD$7:$AD$159,MATCH($B95,Pupils!$A$7:$A$159,0)),INDEX(Pupils!$AE$7:$AE$159,MATCH($B95,Pupils!$A$7:$A$159,0))))/SUM(INDEX(Pupils!$AB$7:$AM$159,MATCH($B95,Pupils!$A$7:$A$159,0),0))","v":0.2896689497716895},{"$f":"SUM(INDEX(Pupils!$AF$7:$AF$159,MATCH($B95,Pupils!$A$7:$A$159,0)))/SUM(INDEX(Pupils!$AB$7:$AM$159,MATCH($B95,Pupils!$A$7:$A$159,0),0))","v":0.19577625570776255},{"$f":"SUM(INDEX(Pupils!$AG$7:$AG$159,MATCH($B95,Pupils!$A$7:$A$159,0)))/SUM(INDEX(Pupils!$AB$7:$AM$159,MATCH($B95,Pupils!$A$7:$A$159,0),0))","v":0.3047945205479452},{"$f":"(SUM(INDEX(Pupils!$AH$7:$AH$159,MATCH($B95,Pupils!$A$7:$A$159,0)),INDEX(Pupils!$AI$7:$AI$159,MATCH($B95,Pupils!$A$7:$A$159,0)),INDEX(Pupils!$AJ$7:$AJ$159,MATCH($B95,Pupils!$A$7:$A$159,0))))/SUM(INDEX(Pupils!$AB$7:$AM$159,MATCH($B95,Pupils!$A$7:$A$159,0),0))","v":2.9680365296803651E-2},{"$f":"SUM(INDEX(Pupils!$AK$7:$AK$159,MATCH($B95,Pupils!$A$7:$A$159,0)))/SUM(INDEX(Pupils!$AB$7:$AM$159,MATCH($B95,Pupils!$A$7:$A$159,0),0))","v":5.3652968036529677E-2},{"$f":"SUM(INDEX(Pupils!$AL$7:$AL$159,MATCH($B95,Pupils!$A$7:$A$159,0)))/SUM(INDEX(Pupils!$AB$7:$AM$159,MATCH($B95,Pupils!$A$7:$A$159,0),0))","v":4.9086757990867577E-2},{"$f":"SUM(INDEX(Pupils!$AM$7:$AM$159,MATCH($B95,Pupils!$A$7:$A$159,0)))/SUM(INDEX(Pupils!$AB$7:$AM$159,MATCH($B95,Pupils!$A$7:$A$159,0),0))","v":7.7340182648401826E-2},{"$f":"(SUM(INDEX(Pupils!$BH$7:$BH$159,MATCH($B95,Pupils!$A$7:$A$159,0)),INDEX(Pupils!$BK$7:$BK$159,MATCH($B95,Pupils!$A$7:$A$159,0)),INDEX(Pupils!$BO$7:$BO$159,MATCH($B95,Pupils!$A$7:$A$159,0))))/SUM(INDEX(Pupils!$BH$7:$BS$159,MATCH($B95,Pupils!$A$7:$A$159,0),0))","v":0.39920948616600793},{"$f":"(SUM(INDEX(Pupils!$BL$7:$BL$159,MATCH($B95,Pupils!$A$7:$A$159,0)),INDEX(Pupils!$BM$7:$BM$159,MATCH($B95,Pupils!$A$7:$A$159,0)),INDEX(Pupils!$BP$7:$BP$159,MATCH($B95,Pupils!$A$7:$A$159,0))))/SUM(INDEX(Pupils!$BH$7:$BS$159,MATCH($B95,Pupils!$A$7:$A$159,0),0))","v":0.47332015810276679},{"$f":"(SUM(INDEX(Pupils!$BI$7:$BI$159,MATCH($B95,Pupils!$A$7:$A$159,0)),INDEX(Pupils!$BJ$7:$BJ$159,MATCH($B95,Pupils!$A$7:$A$159,0))))/SUM(INDEX(Pupils!$BH$7:$BS$159,MATCH($B95,Pupils!$A$7:$A$159,0),0))","v":0.1225296442687747},{"$f":"(SUM(INDEX(Pupils!$BQ$7:$BQ$159,MATCH($B95,Pupils!$A$7:$A$159,0)),INDEX(Pupils!$BR$7:$BR$159,MATCH($B95,Pupils!$A$7:$A$159,0)),INDEX(Pupils!$BN$7:$BN$159,MATCH($B95,Pupils!$A$7:$A$159,0)),INDEX(Pupils!$BS$7:$BS$159,MATCH($B95,Pupils!$A$7:$A$159,0))))/SUM(INDEX(Pupils!$BH$7:$BS$159,MATCH($B95,Pupils!$A$7:$A$159,0),0))","v":4.940711462450593E-3},{"$f":"IFERROR((VLOOKUP(B95,Funding,Funding!$C$2,FALSE)), \"x\")","v":15865271.933577064},{"$f":"IFERROR((AA95/VLOOKUP(B95,Funding,Funding!$D$2,FALSE)), \"x\")","v":0.11859532902248668},{"$f":"IFERROR((AA95/(VLOOKUP(B95,Pupils,Pupils!$M$3,FALSE)+VLOOKUP(B95,Pupils,Pupils!$P$3,FALSE))), \"x\")","v":2586.4479839545265},{"$f":"IFERROR((VLOOKUP(B95,Funding,Funding!$E$2,FALSE)), \"x\")","v":16101187.748301899},{"$f":"IFERROR((AD95/VLOOKUP(B95,Funding,Funding!$F$2,FALSE)), \"x\")","v":0.11769398498726254},{"$f":"IFERROR((AD95/(VLOOKUP(B95,Pupils,Pupils!$R$3,FALSE)+VLOOKUP(B95,Pupils,Pupils!$U$3,FALSE))), \"x\")","v":2717.0414695075765},{"$f":"IFERROR((VLOOKUP(B95,Funding,Funding!$G$2,FALSE)), \"x\")","v":16566339.235306313},{"$f":"IFERROR((AG95/VLOOKUP(B95,Funding,Funding!$H$2,FALSE)), \"x\")","v":0.11840548924801589},{"$f":"IFERROR((AG95/(VLOOKUP(B95,Pupils,Pupils!$W$3,FALSE)+VLOOKUP(B95,Pupils,Pupils!$Z$3,FALSE))), \"x\")","v":2756.0038654643677},{"$f":"IFERROR((VLOOKUP(B95,Funding,Funding!$I$2,FALSE)), \"x\")","v":16763707.152393483},{"$f":"IFERROR((AJ95/VLOOKUP(B95,Funding,Funding!$J$2,FALSE)), \"x\")","v":0.12163214523260618},null,{"$f":"IFERROR((VLOOKUP($B95,Funding,Funding!$EC$2,FALSE)), \"x\")","v":11409101.68},{"$f":"IFERROR((AM95/VLOOKUP($B95,Funding,Funding!$EU$2,FALSE)), \"x\")","v":8.3148344891374987E-2},{"$f":"IFERROR((AM95/(VLOOKUP($B95,Pupils,Pupils!$D$3,FALSE)+VLOOKUP($B95,Pupils,Pupils!$E$3,FALSE))), \"x\")","v":1889.2369067726445},{"$f":"IFERROR((VLOOKUP($B95,Funding,Funding!$DA$2,FALSE)), \"x\")","v":11858287.31151},{"$f":"IFERROR((AP95/VLOOKUP($B95,Funding,Funding!$DT$2,FALSE)), \"x\")","v":8.2199432645929466E-2},{"$f":"IFERROR((AP95/(VLOOKUP($B95,Pupils,Pupils!$G$3,FALSE)+VLOOKUP($B95,Pupils,Pupils!$H$3,FALSE))), \"x\")","v":1883.4636771775731},{"$f":"IFERROR((VLOOKUP($B95,Funding,Funding!$CE$2,FALSE)), \"x\")","v":11370467},{"$f":"IFERROR((AS95/VLOOKUP($B95,Funding,Funding!$CR$2,FALSE)), \"x\")","v":7.7598440156609466E-2},{"$f":"IFERROR((AS95/(VLOOKUP($B95,Pupils,Pupils!$J$3,FALSE)+VLOOKUP($B95,Pupils,Pupils!$K$3,FALSE))), \"x\")","v":1877.2440151890376},{"$f":"IFERROR((VLOOKUP($B95,Funding,Funding!$BM$2,FALSE)), \"x\")","v":11623120.84},{"$f":"IFERROR((AV95/VLOOKUP($B95,Funding,Funding!$BY$2,FALSE)), \"x\")","v":8.2855098889612289E-2},{"$f":"IFERROR((AV95/(VLOOKUP($B95,Pupils,Pupils!$M$3,FALSE)+VLOOKUP($B95,Pupils,Pupils!$P$3,FALSE))), \"x\")","v":1894.8680860776003},{"$f":"IFERROR((VLOOKUP($B95,Funding,Funding!$AQ$2,FALSE)), \"x\")","v":14930243},{"$f":"IFERROR((AY95/VLOOKUP($B95,Funding,Funding!$BE$2,FALSE)), \"x\")","v":0.10255149742599931},{"$f":"IFERROR((AY95/(VLOOKUP($B95,Pupils,Pupils!$R$3,FALSE)+VLOOKUP($B95,Pupils,Pupils!$U$3,FALSE))), \"x\")","v":2519.4470131623357},{"$f":"IFERROR((VLOOKUP($B95,Funding,Funding!$S$2,FALSE)), \"x\")","v":14998937},{"$f":"IFERROR((BB95/VLOOKUP($B95,Funding,Funding!$AH$2,FALSE)), \"x\")","v":0.10211975187444557},{"$f":"IFERROR((BB95/(VLOOKUP(B95,Pupils,Pupils!$W$3,FALSE)+VLOOKUP(B95,Pupils,Pupils!$Z$3,FALSE))), \"x\")","v":2495.2482116120445},{"$f":"IFERROR((VLOOKUP($B95,Funding,Funding!$GX$2,FALSE)), \"x\")","v":23272055},{"$f":"IFERROR((BE95/VLOOKUP($B95,Funding,Funding!$HC$2,FALSE)), \"x\")","v":0.16031593203645292},{"$f":"IFERROR((BE95/(VLOOKUP($B95,Pupils,Pupils!$D$3,FALSE)+VLOOKUP($B95,Pupils,Pupils!$E$3,FALSE))), \"x\")","v":3853.6272561682399},{"$f":"IFERROR((VLOOKUP($B95,Funding,Funding!$GP$2,FALSE)), \"x\")","v":25516304},{"$f":"IFERROR((BH95/VLOOKUP($B95,Funding,Funding!$GU$2,FALSE)), \"x\")","v":0.17156631964122976},{"$f":"IFERROR((BH95/(VLOOKUP($B95,Pupils,Pupils!$G$3,FALSE)+VLOOKUP($B95,Pupils,Pupils!$H$3,FALSE))), \"x\")","v":4052.7801778907242},{"$f":"IFERROR((VLOOKUP($B95,Funding,Funding!$GH$2,FALSE)), \"x\")","v":25221612.469999999},{"$f":"IFERROR((BK95/VLOOKUP($B95,Funding,Funding!$GM$2,FALSE)), \"x\")","v":0.16876067530464303},{"$f":"IFERROR((BK95/(VLOOKUP($B95,Pupils,Pupils!$J$3,FALSE)+VLOOKUP($B95,Pupils,Pupils!$K$3,FALSE))), \"x\")","v":4164.0436635298001},{"$f":"IFERROR((VLOOKUP($B95,Funding,Funding!$FZ$2,FALSE)), \"x\")","v":25196696.539999999},{"$f":"IFERROR((BN95/VLOOKUP($B95,Funding,Funding!$GE$2,FALSE)), \"x\")","v":0.17157162813710491},{"$f":"IFERROR((BN95/(VLOOKUP($B95,Pupils,Pupils!$M$3,FALSE)+VLOOKUP($B95,Pupils,Pupils!$P$3,FALSE))), \"x\")","v":4107.710554287577},{"$f":"IFERROR((VLOOKUP($B95,Funding,Funding!$FD$2,FALSE)), \"x\")","v":16224635},{"$f":"IFERROR((BQ95/VLOOKUP($B95,Funding,Funding!$FR$2,FALSE)), \"x\")","v":0.11864799552993036},{"$f":"IFERROR((BQ95/(VLOOKUP($B95,Pupils,Pupils!$R$3,FALSE)+VLOOKUP($B95,Pupils,Pupils!$U$3,FALSE))), \"x\")","v":2737.8729328383397},{"$f":"(VLOOKUP(B95,Funding,Funding!$HK$2,FALSE)+VLOOKUP(B95,Funding,Funding!$HL$2,FALSE)+VLOOKUP(B95,Funding,Funding!$HM$2,FALSE))/(VLOOKUP(B95,Funding,Funding!$HN$2,FALSE))","v":0.14355293514483464},{"$f":"IFERROR((VLOOKUP(B95,Other_data,Other!$D$3,FALSE)+VLOOKUP(B95,Other_data,Other!$E$3,FALSE)+VLOOKUP(B95,Other_data,Other!$F$3,FALSE)), \"x\")","v":1300},{"$f":"(VLOOKUP(B95,Other_data,Other!$AK$3,FALSE)+VLOOKUP(B95,Other_data,Other!$AL$3,FALSE))/VLOOKUP(B95,Other_data,Other!$AJ$3,FALSE)","v":3.8143781331391603E-2},{"$f":"(VLOOKUP(B95,Other_data,Other!$AR$3,FALSE)+VLOOKUP(B95,Other_data,Other!$AS$3,FALSE))/VLOOKUP(B95,Other_data,Other!$AQ$3,FALSE)","v":5.6617979219996992E-2},{"$f":"VLOOKUP(B95,Other_data,Other!$AP$3,FALSE)/VLOOKUP(B95,Other_data,Other!$AJ$3,FALSE)","v":6.1892626095723527E-3},{"$f":"VLOOKUP(B95,Other_data,Other!$AW$3,FALSE)/VLOOKUP(B95,Other_data,Other!$AQ$3,FALSE)","v":1.0791547457712191E-2}]
[90,815,"North Yorkshire",{"$f":"IFERROR((VLOOKUP($B96,Pupils,Pupils!$D$3,FALSE)/VLOOKUP($B96,Pupils,Pupils!$C$3,FALSE)), \"x\")","v":1.9288305368943638E-2},{"$f":"IFERROR((VLOOKUP($B96,Pupils,Pupils!$G$3,FALSE)/VLOOKUP($B96,Pupils,Pupils!$F$3,FALSE)),\"x\")","v":1.8663721700717836E-2},{"$f":"IFERROR((VLOOKUP($B96,Pupils,Pupils!$J$3,FALSE)/VLOOKUP($B96,Pupils,Pupils!$I$3,FALSE)), \"x\")","v":1.9127012205908366E-2},{"$f":"IFERROR((VLOOKUP($B96,Pupils,Pupils!$M$3,FALSE)/VLOOKUP($B96,Pupils,Pupils!$L$3,FALSE)), \"x\")","v":1.9746419086353079E-2},{"$f":"IFERROR((VLOOKUP($B96,Pupils,Pupils!$R$3,FALSE)/VLOOKUP($B96,Pupils,Pupils!$Q$3,FALSE)), \"x\")","v":2.0427495207952569E-2},{"$f":"IFERROR((VLOOKUP($B96,Pupils,Pupils!$W$3,FALSE)/VLOOKUP($B96,Pupils,Pupils!$V$3,FALSE)), \"x\")","v":1.9547740950327856E-2},{"$f":"IFERROR(((VLOOKUP($B96,Pupils,Pupils!$D$3,FALSE)+VLOOKUP($B96,Pupils,Pupils!$E$3,FALSE))/VLOOKUP($B96,Pupils,Pupils!$C$3,FALSE)), \"x\")","v":0.15881070062577399},{"$f":"IFERROR(((VLOOKUP($B96,Pupils,Pupils!$G$3,FALSE)+VLOOKUP($B96,Pupils,Pupils!$H$3,FALSE))/VLOOKUP($B96,Pupils,Pupils!$F$3,FALSE)), \"x\")","v":0.15747101049144119},{"$f":"IFERROR(((VLOOKUP($B96,Pupils,Pupils!$J$3,FALSE)+VLOOKUP($B96,Pupils,Pupils!$K$3,FALSE))/VLOOKUP($B96,Pupils,Pupils!$I$3,FALSE)), \"x\")","v":0.15424332212984257},{"$f":"IFERROR(((VLOOKUP($B96,Pupils,Pupils!$M$3,FALSE)+VLOOKUP($B96,Pupils,Pupils!$P$3,FALSE))/VLOOKUP($B96,Pupils,Pupils!$L$3,FALSE)), \"x\")","v":0.15377093264882044},{"$f":"IFERROR(((VLOOKUP($B96,Pupils,Pupils!$R$3,FALSE)+VLOOKUP($B96,Pupils,Pupils!$U$3,FALSE))/VLOOKUP($B96,Pupils,Pupils!$Q$3,FALSE)), \"x\")","v":0.14664779565818215},{"$f":"IFERROR(((VLOOKUP($B96,Pupils,Pupils!$W$3,FALSE)+VLOOKUP($B96,Pupils,Pupils!$Z$3,FALSE))/VLOOKUP($B96,Pupils,Pupils!$V$3,FALSE)), \"x\")","v":0.1474108506242702},{"$f":"(SUM(INDEX(Pupils!$AB$7:$AB$159,MATCH($B96,Pupils!$A$7:$A$159,0)),INDEX(Pupils!$AC$7:$AC$159,MATCH($B96,Pupils!$A$7:$A$159,0)),INDEX(Pupils!$AD$7:$AD$159,MATCH($B96,Pupils!$A$7:$A$159,0)),INDEX(Pupils!$AE$7:$AE$159,MATCH($B96,Pupils!$A$7:$A$159,0))))/SUM(INDEX(Pupils!$AB$7:$AM$159,MATCH($B96,Pupils!$A$7:$A$159,0),0))","v":0.2699441743201873},{"$f":"SUM(INDEX(Pupils!$AF$7:$AF$159,MATCH($B96,Pupils!$A$7:$A$159,0)))/SUM(INDEX(Pupils!$AB$7:$AM$159,MATCH($B96,Pupils!$A$7:$A$159,0),0))","v":0.25121555915721233},{"$f":"SUM(INDEX(Pupils!$AG$7:$AG$159,MATCH($B96,Pupils!$A$7:$A$159,0)))/SUM(INDEX(Pupils!$AB$7:$AM$159,MATCH($B96,Pupils!$A$7:$A$159,0),0))","v":0.18728615162974968},{"$f":"(SUM(INDEX(Pupils!$AH$7:$AH$159,MATCH($B96,Pupils!$A$7:$A$159,0)),INDEX(Pupils!$AI$7:$AI$159,MATCH($B96,Pupils!$A$7:$A$159,0)),INDEX(Pupils!$AJ$7:$AJ$159,MATCH($B96,Pupils!$A$7:$A$159,0))))/SUM(INDEX(Pupils!$AB$7:$AM$159,MATCH($B96,Pupils!$A$7:$A$159,0),0))","v":5.0783360345759046E-2},{"$f":"SUM(INDEX(Pupils!$AK$7:$AK$159,MATCH($B96,Pupils!$A$7:$A$159,0)))/SUM(INDEX(Pupils!$AB$7:$AM$159,MATCH($B96,Pupils!$A$7:$A$159,0),0))","v":5.1323608860075635E-2},{"$f":"SUM(INDEX(Pupils!$AL$7:$AL$159,MATCH($B96,Pupils!$A$7:$A$159,0)))/SUM(INDEX(Pupils!$AB$7:$AM$159,MATCH($B96,Pupils!$A$7:$A$159,0),0))","v":0.12227624707365388},{"$f":"SUM(INDEX(Pupils!$AM$7:$AM$159,MATCH($B96,Pupils!$A$7:$A$159,0)))/SUM(INDEX(Pupils!$AB$7:$AM$159,MATCH($B96,Pupils!$A$7:$A$159,0),0))","v":6.7170898613362146E-2},{"$f":"(SUM(INDEX(Pupils!$BH$7:$BH$159,MATCH($B96,Pupils!$A$7:$A$159,0)),INDEX(Pupils!$BK$7:$BK$159,MATCH($B96,Pupils!$A$7:$A$159,0)),INDEX(Pupils!$BO$7:$BO$159,MATCH($B96,Pupils!$A$7:$A$159,0))))/SUM(INDEX(Pupils!$BH$7:$BS$159,MATCH($B96,Pupils!$A$7:$A$159,0),0))","v":0.53896490184414036},{"$f":"(SUM(INDEX(Pupils!$BL$7:$BL$159,MATCH($B96,Pupils!$A$7:$A$159,0)),INDEX(Pupils!$BM$7:$BM$159,MATCH($B96,Pupils!$A$7:$A$159,0)),INDEX(Pupils!$BP$7:$BP$159,MATCH($B96,Pupils!$A$7:$A$159,0))))/SUM(INDEX(Pupils!$BH$7:$BS$159,MATCH($B96,Pupils!$A$7:$A$159,0),0))","v":0.43426531826293874},{"$f":"(SUM(INDEX(Pupils!$BI$7:$BI$159,MATCH($B96,Pupils!$A$7:$A$159,0)),INDEX(Pupils!$BJ$7:$BJ$159,MATCH($B96,Pupils!$A$7:$A$159,0))))/SUM(INDEX(Pupils!$BH$7:$BS$159,MATCH($B96,Pupils!$A$7:$A$159,0),0))","v":1.3682331945270671E-2},{"$f":"(SUM(INDEX(Pupils!$BQ$7:$BQ$159,MATCH($B96,Pupils!$A$7:$A$159,0)),INDEX(Pupils!$BR$7:$BR$159,MATCH($B96,Pupils!$A$7:$A$159,0)),INDEX(Pupils!$BN$7:$BN$159,MATCH($B96,Pupils!$A$7:$A$159,0)),INDEX(Pupils!$BS$7:$BS$159,MATCH($B96,Pupils!$A$7:$A$159,0))))/SUM(INDEX(Pupils!$BH$7:$BS$159,MATCH($B96,Pupils!$A$7:$A$159,0),0))","v":1.3087447947650209E-2},{"$f":"IFERROR((VLOOKUP(B96,Funding,Funding!$C$2,FALSE)), \"x\")","v":40035690.840000004},{"$f":"IFERROR((AA96/VLOOKUP(B96,Funding,Funding!$D$2,FALSE)), \"x\")","v":0.10610983375675564},{"$f":"IFERROR((AA96/(VLOOKUP(B96,Pupils,Pupils!$M$3,FALSE)+VLOOKUP(B96,Pupils,Pupils!$P$3,FALSE))), \"x\")","v":2893.1703165197287},{"$f":"IFERROR((VLOOKUP(B96,Funding,Funding!$E$2,FALSE)), \"x\")","v":41812280.428548366},{"$f":"IFERROR((AD96/VLOOKUP(B96,Funding,Funding!$F$2,FALSE)), \"x\")","v":0.10890501960965075},{"$f":"IFERROR((AD96/(VLOOKUP(B96,Pupils,Pupils!$R$3,FALSE)+VLOOKUP(B96,Pupils,Pupils!$U$3,FALSE))), \"x\")","v":3177.4664053916231},{"$f":"IFERROR((VLOOKUP(B96,Funding,Funding!$G$2,FALSE)), \"x\")","v":43243459.889272586},{"$f":"IFERROR((AG96/VLOOKUP(B96,Funding,Funding!$H$2,FALSE)), \"x\")","v":0.11240280692956371},{"$f":"IFERROR((AG96/(VLOOKUP(B96,Pupils,Pupils!$W$3,FALSE)+VLOOKUP(B96,Pupils,Pupils!$Z$3,FALSE))), \"x\")","v":3293.7359958315628},{"$f":"IFERROR((VLOOKUP(B96,Funding,Funding!$I$2,FALSE)), \"x\")","v":43756365.19927194},{"$f":"IFERROR((AJ96/VLOOKUP(B96,Funding,Funding!$J$2,FALSE)), \"x\")","v":0.11220300070330647},null,{"$f":"IFERROR((VLOOKUP($B96,Funding,Funding!$EC$2,FALSE)), \"x\")","v":22111929.380000003},{"$f":"IFERROR((AM96/VLOOKUP($B96,Funding,Funding!$EU$2,FALSE)), \"x\")","v":5.3649082923415567E-2},{"$f":"IFERROR((AM96/(VLOOKUP($B96,Pupils,Pupils!$D$3,FALSE)+VLOOKUP($B96,Pupils,Pupils!$E$3,FALSE))), \"x\")","v":1525.9077620592093},{"$f":"IFERROR((VLOOKUP($B96,Funding,Funding!$DA$2,FALSE)), \"x\")","v":22019177.84361},{"$f":"IFERROR((AP96/VLOOKUP($B96,Funding,Funding!$DT$2,FALSE)), \"x\")","v":5.1735721474602869E-2},{"$f":"IFERROR((AP96/(VLOOKUP($B96,Pupils,Pupils!$G$3,FALSE)+VLOOKUP($B96,Pupils,Pupils!$H$3,FALSE))), \"x\")","v":1544.2301594508731},{"$f":"IFERROR((VLOOKUP($B96,Funding,Funding!$CE$2,FALSE)), \"x\")","v":25616942},{"$f":"IFERROR((AS96/VLOOKUP($B96,Funding,Funding!$CR$2,FALSE)), \"x\")","v":6.2454110588222096E-2},{"$f":"IFERROR((AS96/(VLOOKUP($B96,Pupils,Pupils!$J$3,FALSE)+VLOOKUP($B96,Pupils,Pupils!$K$3,FALSE))), \"x\")","v":1836.2083004802523},{"$f":"IFERROR((VLOOKUP($B96,Funding,Funding!$BM$2,FALSE)), \"x\")","v":27704850.5},{"$f":"IFERROR((AV96/VLOOKUP($B96,Funding,Funding!$BY$2,FALSE)), \"x\")","v":7.2364890056338754E-2},{"$f":"IFERROR((AV96/(VLOOKUP($B96,Pupils,Pupils!$M$3,FALSE)+VLOOKUP($B96,Pupils,Pupils!$P$3,FALSE))), \"x\")","v":2002.0848749819338},{"$f":"IFERROR((VLOOKUP($B96,Funding,Funding!$AQ$2,FALSE)), \"x\")","v":43760963},{"$f":"IFERROR((AY96/VLOOKUP($B96,Funding,Funding!$BE$2,FALSE)), \"x\")","v":0.10692949922821374},{"$f":"IFERROR((AY96/(VLOOKUP($B96,Pupils,Pupils!$R$3,FALSE)+VLOOKUP($B96,Pupils,Pupils!$U$3,FALSE))), \"x\")","v":3325.5538414773159},{"$f":"IFERROR((VLOOKUP($B96,Funding,Funding!$S$2,FALSE)), \"x\")","v":39389345},{"$f":"IFERROR((BB96/VLOOKUP($B96,Funding,Funding!$AH$2,FALSE)), \"x\")","v":9.7440013591858679E-2},{"$f":"IFERROR((BB96/(VLOOKUP(B96,Pupils,Pupils!$W$3,FALSE)+VLOOKUP(B96,Pupils,Pupils!$Z$3,FALSE))), \"x\")","v":3000.1786122324625},{"$f":"IFERROR((VLOOKUP($B96,Funding,Funding!$GX$2,FALSE)), \"x\")","v":53228792.75},{"$f":"IFERROR((BE96/VLOOKUP($B96,Funding,Funding!$HC$2,FALSE)), \"x\")","v":0.11840034247310843},{"$f":"IFERROR((BE96/(VLOOKUP($B96,Pupils,Pupils!$D$3,FALSE)+VLOOKUP($B96,Pupils,Pupils!$E$3,FALSE))), \"x\")","v":3673.231160720447},{"$f":"IFERROR((VLOOKUP($B96,Funding,Funding!$GP$2,FALSE)), \"x\")","v":61437941},{"$f":"IFERROR((BH96/VLOOKUP($B96,Funding,Funding!$GU$2,FALSE)), \"x\")","v":0.13629784288102104},{"$f":"IFERROR((BH96/(VLOOKUP($B96,Pupils,Pupils!$G$3,FALSE)+VLOOKUP($B96,Pupils,Pupils!$H$3,FALSE))), \"x\")","v":4308.713163615962},{"$f":"IFERROR((VLOOKUP($B96,Funding,Funding!$GH$2,FALSE)), \"x\")","v":56667223.930000007},{"$f":"IFERROR((BK96/VLOOKUP($B96,Funding,Funding!$GM$2,FALSE)), \"x\")","v":0.13449692027634341},{"$f":"IFERROR((BK96/(VLOOKUP($B96,Pupils,Pupils!$J$3,FALSE)+VLOOKUP($B96,Pupils,Pupils!$K$3,FALSE))), \"x\")","v":4061.8754160992048},{"$f":"IFERROR((VLOOKUP($B96,Funding,Funding!$FZ$2,FALSE)), \"x\")","v":56128929.789999999},{"$f":"IFERROR((BN96/VLOOKUP($B96,Funding,Funding!$GE$2,FALSE)), \"x\")","v":0.14003928877181893},{"$f":"IFERROR((BN96/(VLOOKUP($B96,Pupils,Pupils!$M$3,FALSE)+VLOOKUP($B96,Pupils,Pupils!$P$3,FALSE))), \"x\")","v":4056.144658910247},{"$f":"IFERROR((VLOOKUP($B96,Funding,Funding!$FD$2,FALSE)), \"x\")","v":39344737},{"$f":"IFERROR((BQ96/VLOOKUP($B96,Funding,Funding!$FR$2,FALSE)), \"x\")","v":0.10512447079715127},{"$f":"IFERROR((BQ96/(VLOOKUP($B96,Pupils,Pupils!$R$3,FALSE)+VLOOKUP($B96,Pupils,Pupils!$U$3,FALSE))), \"x\")","v":2989.948856296071},{"$f":"(VLOOKUP(B96,Funding,Funding!$HK$2,FALSE)+VLOOKUP(B96,Funding,Funding!$HL$2,FALSE)+VLOOKUP(B96,Funding,Funding!$HM$2,FALSE))/(VLOOKUP(B96,Funding,Funding!$HN$2,FALSE))","v":0.35465116279069769},{"$f":"IFERROR((VLOOKUP(B96,Other_data,Other!$D$3,FALSE)+VLOOKUP(B96,Other_data,Other!$E$3,FALSE)+VLOOKUP(B96,Other_data,Other!$F$3,FALSE)), \"x\")","v":2440},{"$f":"(VLOOKUP(B96,Other_data,Other!$AK$3,FALSE)+VLOOKUP(B96,Other_data,Other!$AL$3,FALSE))/VLOOKUP(B96,Other_data,Other!$AJ$3,FALSE)","v":2.9267578124999999E-2},{"$f":"(VLOOKUP(B96,Other_data,Other!$AR$3,FALSE)+VLOOKUP(B96,Other_data,Other!$AS$3,FALSE))/VLOOKUP(B96,Other_data,Other!$AQ$3,FALSE)","v":4.6114227903982341E-2},{"$f":"VLOOKUP(B96,Other_data,Other!$AP$3,FALSE)/VLOOKUP(B96,Other_data,Other!$AJ$3,FALSE)","v":3.9160156249999998E-3},{"$f":"VLOOKUP(B96,Other_data,Other!$AW$3,FALSE)/VLOOKUP(B96,Other_data,Other!$AQ$3,FALSE)","v":8.6084797204083515E-3}]
[91,928,"Northamptonshire",{"$f":"IFERROR((VLOOKUP($B97,Pupils,Pupils!$D$3,FALSE)/VLOOKUP($B97,Pupils,Pupils!$C$3,FALSE)), \"x\")","v":3.0509630134651439E-2},{"$f":"IFERROR((VLOOKUP($B97,Pupils,Pupils!$G$3,FALSE)/VLOOKUP($B97,Pupils,Pupils!$F$3,FALSE)),\"x\")","v":3.0517229053474405E-2},{"$f":"IFERROR((VLOOKUP($B97,Pupils,Pupils!$J$3,FALSE)/VLOOKUP($B97,Pupils,Pupils!$I$3,FALSE)), \"x\")","v":3.1921145421519394E-2},{"$f":"IFERROR((VLOOKUP($B97,Pupils,Pupils!$M$3,FALSE)/VLOOKUP($B97,Pupils,Pupils!$L$3,FALSE)), \"x\")","v":3.1654219533915867E-2},{"$f":"IFERROR((VLOOKUP($B97,Pupils,Pupils!$R$3,FALSE)/VLOOKUP($B97,Pupils,Pupils!$Q$3,FALSE)), \"x\")","v":3.1866358442011605E-2},{"$f":"IFERROR((VLOOKUP($B97,Pupils,Pupils!$W$3,FALSE)/VLOOKUP($B97,Pupils,Pupils!$V$3,FALSE)), \"x\")","v":3.1100892054491392E-2},{"$f":"IFERROR(((VLOOKUP($B97,Pupils,Pupils!$D$3,FALSE)+VLOOKUP($B97,Pupils,Pupils!$E$3,FALSE))/VLOOKUP($B97,Pupils,Pupils!$C$3,FALSE)), \"x\")","v":0.22867420810420461},{"$f":"IFERROR(((VLOOKUP($B97,Pupils,Pupils!$G$3,FALSE)+VLOOKUP($B97,Pupils,Pupils!$H$3,FALSE))/VLOOKUP($B97,Pupils,Pupils!$F$3,FALSE)), \"x\")","v":0.22607770946525593},{"$f":"IFERROR(((VLOOKUP($B97,Pupils,Pupils!$J$3,FALSE)+VLOOKUP($B97,Pupils,Pupils!$K$3,FALSE))/VLOOKUP($B97,Pupils,Pupils!$I$3,FALSE)), \"x\")","v":0.19988780852655197},{"$f":"IFERROR(((VLOOKUP($B97,Pupils,Pupils!$M$3,FALSE)+VLOOKUP($B97,Pupils,Pupils!$P$3,FALSE))/VLOOKUP($B97,Pupils,Pupils!$L$3,FALSE)), \"x\")","v":0.17314593565111583},{"$f":"IFERROR(((VLOOKUP($B97,Pupils,Pupils!$R$3,FALSE)+VLOOKUP($B97,Pupils,Pupils!$U$3,FALSE))/VLOOKUP($B97,Pupils,Pupils!$Q$3,FALSE)), \"x\")","v":0.15722946744013608},{"$f":"IFERROR(((VLOOKUP($B97,Pupils,Pupils!$W$3,FALSE)+VLOOKUP($B97,Pupils,Pupils!$Z$3,FALSE))/VLOOKUP($B97,Pupils,Pupils!$V$3,FALSE)), \"x\")","v":0.14085298388769796},{"$f":"(SUM(INDEX(Pupils!$AB$7:$AB$159,MATCH($B97,Pupils!$A$7:$A$159,0)),INDEX(Pupils!$AC$7:$AC$159,MATCH($B97,Pupils!$A$7:$A$159,0)),INDEX(Pupils!$AD$7:$AD$159,MATCH($B97,Pupils!$A$7:$A$159,0)),INDEX(Pupils!$AE$7:$AE$159,MATCH($B97,Pupils!$A$7:$A$159,0))))/SUM(INDEX(Pupils!$AB$7:$AM$159,MATCH($B97,Pupils!$A$7:$A$159,0),0))","v":0.32449203066066429},{"$f":"SUM(INDEX(Pupils!$AF$7:$AF$159,MATCH($B97,Pupils!$A$7:$A$159,0)))/SUM(INDEX(Pupils!$AB$7:$AM$159,MATCH($B97,Pupils!$A$7:$A$159,0),0))","v":0.23226669911181408},{"$f":"SUM(INDEX(Pupils!$AG$7:$AG$159,MATCH($B97,Pupils!$A$7:$A$159,0)))/SUM(INDEX(Pupils!$AB$7:$AM$159,MATCH($B97,Pupils!$A$7:$A$159,0),0))","v":0.19296751429614309},{"$f":"(SUM(INDEX(Pupils!$AH$7:$AH$159,MATCH($B97,Pupils!$A$7:$A$159,0)),INDEX(Pupils!$AI$7:$AI$159,MATCH($B97,Pupils!$A$7:$A$159,0)),INDEX(Pupils!$AJ$7:$AJ$159,MATCH($B97,Pupils!$A$7:$A$159,0))))/SUM(INDEX(Pupils!$AB$7:$AM$159,MATCH($B97,Pupils!$A$7:$A$159,0),0))","v":3.2607373159751797E-2},{"$f":"SUM(INDEX(Pupils!$AK$7:$AK$159,MATCH($B97,Pupils!$A$7:$A$159,0)))/SUM(INDEX(Pupils!$AB$7:$AM$159,MATCH($B97,Pupils!$A$7:$A$159,0),0))","v":4.0029200632680374E-2},{"$f":"SUM(INDEX(Pupils!$AL$7:$AL$159,MATCH($B97,Pupils!$A$7:$A$159,0)))/SUM(INDEX(Pupils!$AB$7:$AM$159,MATCH($B97,Pupils!$A$7:$A$159,0),0))","v":0.12994281542766761},{"$f":"SUM(INDEX(Pupils!$AM$7:$AM$159,MATCH($B97,Pupils!$A$7:$A$159,0)))/SUM(INDEX(Pupils!$AB$7:$AM$159,MATCH($B97,Pupils!$A$7:$A$159,0),0))","v":4.7694366711278746E-2},{"$f":"(SUM(INDEX(Pupils!$BH$7:$BH$159,MATCH($B97,Pupils!$A$7:$A$159,0)),INDEX(Pupils!$BK$7:$BK$159,MATCH($B97,Pupils!$A$7:$A$159,0)),INDEX(Pupils!$BO$7:$BO$159,MATCH($B97,Pupils!$A$7:$A$159,0))))/SUM(INDEX(Pupils!$BH$7:$BS$159,MATCH($B97,Pupils!$A$7:$A$159,0),0))","v":0.52532981530343004},{"$f":"(SUM(INDEX(Pupils!$BL$7:$BL$159,MATCH($B97,Pupils!$A$7:$A$159,0)),INDEX(Pupils!$BM$7:$BM$159,MATCH($B97,Pupils!$A$7:$A$159,0)),INDEX(Pupils!$BP$7:$BP$159,MATCH($B97,Pupils!$A$7:$A$159,0))))/SUM(INDEX(Pupils!$BH$7:$BS$159,MATCH($B97,Pupils!$A$7:$A$159,0),0))","v":0.33957783641160949},{"$f":"(SUM(INDEX(Pupils!$BI$7:$BI$159,MATCH($B97,Pupils!$A$7:$A$159,0)),INDEX(Pupils!$BJ$7:$BJ$159,MATCH($B97,Pupils!$A$7:$A$159,0))))/SUM(INDEX(Pupils!$BH$7:$BS$159,MATCH($B97,Pupils!$A$7:$A$159,0),0))","v":8.5751978891820582E-2},{"$f":"(SUM(INDEX(Pupils!$BQ$7:$BQ$159,MATCH($B97,Pupils!$A$7:$A$159,0)),INDEX(Pupils!$BR$7:$BR$159,MATCH($B97,Pupils!$A$7:$A$159,0)),INDEX(Pupils!$BN$7:$BN$159,MATCH($B97,Pupils!$A$7:$A$159,0)),INDEX(Pupils!$BS$7:$BS$159,MATCH($B97,Pupils!$A$7:$A$159,0))))/SUM(INDEX(Pupils!$BH$7:$BS$159,MATCH($B97,Pupils!$A$7:$A$159,0),0))","v":4.9340369393139842E-2},{"$f":"IFERROR((VLOOKUP(B97,Funding,Funding!$C$2,FALSE)), \"x\")","v":60530071},{"$f":"IFERROR((AA97/VLOOKUP(B97,Funding,Funding!$D$2,FALSE)), \"x\")","v":0.1271076125720331},{"$f":"IFERROR((AA97/(VLOOKUP(B97,Pupils,Pupils!$M$3,FALSE)+VLOOKUP(B97,Pupils,Pupils!$P$3,FALSE))), \"x\")","v":3082.4500178234966},{"$f":"IFERROR((VLOOKUP(B97,Funding,Funding!$E$2,FALSE)), \"x\")","v":64373554.089080259},{"$f":"IFERROR((AD97/VLOOKUP(B97,Funding,Funding!$F$2,FALSE)), \"x\")","v":0.13121256173651838},{"$f":"IFERROR((AD97/(VLOOKUP(B97,Pupils,Pupils!$R$3,FALSE)+VLOOKUP(B97,Pupils,Pupils!$U$3,FALSE))), \"x\")","v":3571.5464985064505},{"$f":"IFERROR((VLOOKUP(B97,Funding,Funding!$G$2,FALSE)), \"x\")","v":65738967.896381482},{"$f":"IFERROR((AG97/VLOOKUP(B97,Funding,Funding!$H$2,FALSE)), \"x\")","v":0.13209848953721046},{"$f":"IFERROR((AG97/(VLOOKUP(B97,Pupils,Pupils!$W$3,FALSE)+VLOOKUP(B97,Pupils,Pupils!$Z$3,FALSE))), \"x\")","v":4034.3030313827235},{"$f":"IFERROR((VLOOKUP(B97,Funding,Funding!$I$2,FALSE)), \"x\")","v":66424371.513844833},{"$f":"IFERROR((AJ97/VLOOKUP(B97,Funding,Funding!$J$2,FALSE)), \"x\")","v":0.12754320095438898},null,{"$f":"IFERROR((VLOOKUP($B97,Funding,Funding!$EC$2,FALSE)), \"x\")","v":30060176.030000001},{"$f":"IFERROR((AM97/VLOOKUP($B97,Funding,Funding!$EU$2,FALSE)), \"x\")","v":6.3099518013942493E-2},{"$f":"IFERROR((AM97/(VLOOKUP($B97,Pupils,Pupils!$D$3,FALSE)+VLOOKUP($B97,Pupils,Pupils!$E$3,FALSE))), \"x\")","v":1179.2466372445176},{"$f":"IFERROR((VLOOKUP($B97,Funding,Funding!$DA$2,FALSE)), \"x\")","v":31920563.295259997},{"$f":"IFERROR((AP97/VLOOKUP($B97,Funding,Funding!$DT$2,FALSE)), \"x\")","v":6.4226091125214907E-2},{"$f":"IFERROR((AP97/(VLOOKUP($B97,Pupils,Pupils!$G$3,FALSE)+VLOOKUP($B97,Pupils,Pupils!$H$3,FALSE))), \"x\")","v":1261.7322145246847},{"$f":"IFERROR((VLOOKUP($B97,Funding,Funding!$CE$2,FALSE)), \"x\")","v":35003676.330919996},{"$f":"IFERROR((AS97/VLOOKUP($B97,Funding,Funding!$CR$2,FALSE)), \"x\")","v":7.3785062006783919E-2},{"$f":"IFERROR((AS97/(VLOOKUP($B97,Pupils,Pupils!$J$3,FALSE)+VLOOKUP($B97,Pupils,Pupils!$K$3,FALSE))), \"x\")","v":1559.2532554198403},{"$f":"IFERROR((VLOOKUP($B97,Funding,Funding!$BM$2,FALSE)), \"x\")","v":38476539.25},{"$f":"IFERROR((AV97/VLOOKUP($B97,Funding,Funding!$BY$2,FALSE)), \"x\")","v":9.427430282642589E-2},{"$f":"IFERROR((AV97/(VLOOKUP($B97,Pupils,Pupils!$M$3,FALSE)+VLOOKUP($B97,Pupils,Pupils!$P$3,FALSE))), \"x\")","v":1959.3898889850791},{"$f":"IFERROR((VLOOKUP($B97,Funding,Funding!$AQ$2,FALSE)), \"x\")","v":50148519},{"$f":"IFERROR((AY97/VLOOKUP($B97,Funding,Funding!$BE$2,FALSE)), \"x\")","v":0.10254144568017294},{"$f":"IFERROR((AY97/(VLOOKUP($B97,Pupils,Pupils!$R$3,FALSE)+VLOOKUP($B97,Pupils,Pupils!$U$3,FALSE))), \"x\")","v":2782.3190745672437},{"$f":"IFERROR((VLOOKUP($B97,Funding,Funding!$S$2,FALSE)), \"x\")","v":52700417},{"$f":"IFERROR((BB97/VLOOKUP($B97,Funding,Funding!$AH$2,FALSE)), \"x\")","v":0.10332610451065344},{"$f":"IFERROR((BB97/(VLOOKUP(B97,Pupils,Pupils!$W$3,FALSE)+VLOOKUP(B97,Pupils,Pupils!$Z$3,FALSE))), \"x\")","v":3234.1464866523474},{"$f":"IFERROR((VLOOKUP($B97,Funding,Funding!$GX$2,FALSE)), \"x\")","v":45693596.344700001},{"$f":"IFERROR((BE97/VLOOKUP($B97,Funding,Funding!$HC$2,FALSE)), \"x\")","v":8.7590578706557565E-2},{"$f":"IFERROR((BE97/(VLOOKUP($B97,Pupils,Pupils!$D$3,FALSE)+VLOOKUP($B97,Pupils,Pupils!$E$3,FALSE))), \"x\")","v":1792.5383996194737},{"$f":"IFERROR((VLOOKUP($B97,Funding,Funding!$GP$2,FALSE)), \"x\")","v":41011741.010000005},{"$f":"IFERROR((BH97/VLOOKUP($B97,Funding,Funding!$GU$2,FALSE)), \"x\")","v":8.5119020870455295E-2},{"$f":"IFERROR((BH97/(VLOOKUP($B97,Pupils,Pupils!$G$3,FALSE)+VLOOKUP($B97,Pupils,Pupils!$H$3,FALSE))), \"x\")","v":1621.0815055931066},{"$f":"IFERROR((VLOOKUP($B97,Funding,Funding!$GH$2,FALSE)), \"x\")","v":55892095},{"$f":"IFERROR((BK97/VLOOKUP($B97,Funding,Funding!$GM$2,FALSE)), \"x\")","v":0.11288989983244022},{"$f":"IFERROR((BK97/(VLOOKUP($B97,Pupils,Pupils!$J$3,FALSE)+VLOOKUP($B97,Pupils,Pupils!$K$3,FALSE))), \"x\")","v":2489.7365138758964},{"$f":"IFERROR((VLOOKUP($B97,Funding,Funding!$FZ$2,FALSE)), \"x\")","v":59253284.489999995},{"$f":"IFERROR((BN97/VLOOKUP($B97,Funding,Funding!$GE$2,FALSE)), \"x\")","v":8.2971666708327035E-2},{"$f":"IFERROR((BN97/(VLOOKUP($B97,Pupils,Pupils!$M$3,FALSE)+VLOOKUP($B97,Pupils,Pupils!$P$3,FALSE))), \"x\")","v":3017.4305897031113},{"$f":"IFERROR((VLOOKUP($B97,Funding,Funding!$FD$2,FALSE)), \"x\")","v":76722252},{"$f":"IFERROR((BQ97/VLOOKUP($B97,Funding,Funding!$FR$2,FALSE)), \"x\")","v":0.2606501995408621},{"$f":"IFERROR((BQ97/(VLOOKUP($B97,Pupils,Pupils!$R$3,FALSE)+VLOOKUP($B97,Pupils,Pupils!$U$3,FALSE))), \"x\")","v":4256.6717709720369},{"$f":"(VLOOKUP(B97,Funding,Funding!$HK$2,FALSE)+VLOOKUP(B97,Funding,Funding!$HL$2,FALSE)+VLOOKUP(B97,Funding,Funding!$HM$2,FALSE))/(VLOOKUP(B97,Funding,Funding!$HN$2,FALSE))","v":0.2006118881118881},{"$f":"IFERROR((VLOOKUP(B97,Other_data,Other!$D$3,FALSE)+VLOOKUP(B97,Other_data,Other!$E$3,FALSE)+VLOOKUP(B97,Other_data,Other!$F$3,FALSE)), \"x\")","v":4580},{"$f":"(VLOOKUP(B97,Other_data,Other!$AK$3,FALSE)+VLOOKUP(B97,Other_data,Other!$AL$3,FALSE))/VLOOKUP(B97,Other_data,Other!$AJ$3,FALSE)","v":3.580901856763926E-2},{"$f":"(VLOOKUP(B97,Other_data,Other!$AR$3,FALSE)+VLOOKUP(B97,Other_data,Other!$AS$3,FALSE))/VLOOKUP(B97,Other_data,Other!$AQ$3,FALSE)","v":5.0559738318811158E-2},{"$f":"VLOOKUP(B97,Other_data,Other!$AP$3,FALSE)/VLOOKUP(B97,Other_data,Other!$AJ$3,FALSE)","v":5.4362083539802371E-3},{"$f":"VLOOKUP(B97,Other_data,Other!$AW$3,FALSE)/VLOOKUP(B97,Other_data,Other!$AQ$3,FALSE)","v":9.9399373995431861E-3}]
[92,929,"Northumberland",{"$f":"IFERROR((VLOOKUP($B98,Pupils,Pupils!$D$3,FALSE)/VLOOKUP($B98,Pupils,Pupils!$C$3,FALSE)), \"x\")","v":3.2649368806283156E-2},{"$f":"IFERROR((VLOOKUP($B98,Pupils,Pupils!$G$3,FALSE)/VLOOKUP($B98,Pupils,Pupils!$F$3,FALSE)),\"x\")","v":3.3478621834786219E-2},{"$f":"IFERROR((VLOOKUP($B98,Pupils,Pupils!$J$3,FALSE)/VLOOKUP($B98,Pupils,Pupils!$I$3,FALSE)), \"x\")","v":3.3023800560505294E-2},{"$f":"IFERROR((VLOOKUP($B98,Pupils,Pupils!$M$3,FALSE)/VLOOKUP($B98,Pupils,Pupils!$L$3,FALSE)), \"x\")","v":3.1982627761848542E-2},{"$f":"IFERROR((VLOOKUP($B98,Pupils,Pupils!$R$3,FALSE)/VLOOKUP($B98,Pupils,Pupils!$Q$3,FALSE)), \"x\")","v":3.1050112254839664E-2},{"$f":"IFERROR((VLOOKUP($B98,Pupils,Pupils!$W$3,FALSE)/VLOOKUP($B98,Pupils,Pupils!$V$3,FALSE)), \"x\")","v":2.9853620955315869E-2},{"$f":"IFERROR(((VLOOKUP($B98,Pupils,Pupils!$D$3,FALSE)+VLOOKUP($B98,Pupils,Pupils!$E$3,FALSE))/VLOOKUP($B98,Pupils,Pupils!$C$3,FALSE)), \"x\")","v":0.17897528681278013},{"$f":"IFERROR(((VLOOKUP($B98,Pupils,Pupils!$G$3,FALSE)+VLOOKUP($B98,Pupils,Pupils!$H$3,FALSE))/VLOOKUP($B98,Pupils,Pupils!$F$3,FALSE)), \"x\")","v":0.18694479036944792},{"$f":"IFERROR(((VLOOKUP($B98,Pupils,Pupils!$J$3,FALSE)+VLOOKUP($B98,Pupils,Pupils!$K$3,FALSE))/VLOOKUP($B98,Pupils,Pupils!$I$3,FALSE)), \"x\")","v":0.18977705274605763},{"$f":"IFERROR(((VLOOKUP($B98,Pupils,Pupils!$M$3,FALSE)+VLOOKUP($B98,Pupils,Pupils!$P$3,FALSE))/VLOOKUP($B98,Pupils,Pupils!$L$3,FALSE)), \"x\")","v":0.18394754596053298},{"$f":"IFERROR(((VLOOKUP($B98,Pupils,Pupils!$R$3,FALSE)+VLOOKUP($B98,Pupils,Pupils!$U$3,FALSE))/VLOOKUP($B98,Pupils,Pupils!$Q$3,FALSE)), \"x\")","v":0.18094209344685899},{"$f":"IFERROR(((VLOOKUP($B98,Pupils,Pupils!$W$3,FALSE)+VLOOKUP($B98,Pupils,Pupils!$Z$3,FALSE))/VLOOKUP($B98,Pupils,Pupils!$V$3,FALSE)), \"x\")","v":0.17852251326827598},{"$f":"(SUM(INDEX(Pupils!$AB$7:$AB$159,MATCH($B98,Pupils!$A$7:$A$159,0)),INDEX(Pupils!$AC$7:$AC$159,MATCH($B98,Pupils!$A$7:$A$159,0)),INDEX(Pupils!$AD$7:$AD$159,MATCH($B98,Pupils!$A$7:$A$159,0)),INDEX(Pupils!$AE$7:$AE$159,MATCH($B98,Pupils!$A$7:$A$159,0))))/SUM(INDEX(Pupils!$AB$7:$AM$159,MATCH($B98,Pupils!$A$7:$A$159,0),0))","v":0.28718771487508593},{"$f":"SUM(INDEX(Pupils!$AF$7:$AF$159,MATCH($B98,Pupils!$A$7:$A$159,0)))/SUM(INDEX(Pupils!$AB$7:$AM$159,MATCH($B98,Pupils!$A$7:$A$159,0),0))","v":0.28214531285812516},{"$f":"SUM(INDEX(Pupils!$AG$7:$AG$159,MATCH($B98,Pupils!$A$7:$A$159,0)))/SUM(INDEX(Pupils!$AB$7:$AM$159,MATCH($B98,Pupils!$A$7:$A$159,0),0))","v":0.23378409351363741},{"$f":"(SUM(INDEX(Pupils!$AH$7:$AH$159,MATCH($B98,Pupils!$A$7:$A$159,0)),INDEX(Pupils!$AI$7:$AI$159,MATCH($B98,Pupils!$A$7:$A$159,0)),INDEX(Pupils!$AJ$7:$AJ$159,MATCH($B98,Pupils!$A$7:$A$159,0))))/SUM(INDEX(Pupils!$AB$7:$AM$159,MATCH($B98,Pupils!$A$7:$A$159,0),0))","v":3.43800137520055E-2},{"$f":"SUM(INDEX(Pupils!$AK$7:$AK$159,MATCH($B98,Pupils!$A$7:$A$159,0)))/SUM(INDEX(Pupils!$AB$7:$AM$159,MATCH($B98,Pupils!$A$7:$A$159,0),0))","v":3.4150813660325463E-2},{"$f":"SUM(INDEX(Pupils!$AL$7:$AL$159,MATCH($B98,Pupils!$A$7:$A$159,0)))/SUM(INDEX(Pupils!$AB$7:$AM$159,MATCH($B98,Pupils!$A$7:$A$159,0),0))","v":9.2367636947054785E-2},{"$f":"SUM(INDEX(Pupils!$AM$7:$AM$159,MATCH($B98,Pupils!$A$7:$A$159,0)))/SUM(INDEX(Pupils!$AB$7:$AM$159,MATCH($B98,Pupils!$A$7:$A$159,0),0))","v":3.5984414393765755E-2},{"$f":"(SUM(INDEX(Pupils!$BH$7:$BH$159,MATCH($B98,Pupils!$A$7:$A$159,0)),INDEX(Pupils!$BK$7:$BK$159,MATCH($B98,Pupils!$A$7:$A$159,0)),INDEX(Pupils!$BO$7:$BO$159,MATCH($B98,Pupils!$A$7:$A$159,0))))/SUM(INDEX(Pupils!$BH$7:$BS$159,MATCH($B98,Pupils!$A$7:$A$159,0),0))","v":0.51790450928381959},{"$f":"(SUM(INDEX(Pupils!$BL$7:$BL$159,MATCH($B98,Pupils!$A$7:$A$159,0)),INDEX(Pupils!$BM$7:$BM$159,MATCH($B98,Pupils!$A$7:$A$159,0)),INDEX(Pupils!$BP$7:$BP$159,MATCH($B98,Pupils!$A$7:$A$159,0))))/SUM(INDEX(Pupils!$BH$7:$BS$159,MATCH($B98,Pupils!$A$7:$A$159,0),0))","v":0.46949602122015915},{"$f":"(SUM(INDEX(Pupils!$BI$7:$BI$159,MATCH($B98,Pupils!$A$7:$A$159,0)),INDEX(Pupils!$BJ$7:$BJ$159,MATCH($B98,Pupils!$A$7:$A$159,0))))/SUM(INDEX(Pupils!$BH$7:$BS$159,MATCH($B98,Pupils!$A$7:$A$159,0),0))","v":1.9893899204244032E-3},{"$f":"(SUM(INDEX(Pupils!$BQ$7:$BQ$159,MATCH($B98,Pupils!$A$7:$A$159,0)),INDEX(Pupils!$BR$7:$BR$159,MATCH($B98,Pupils!$A$7:$A$159,0)),INDEX(Pupils!$BN$7:$BN$159,MATCH($B98,Pupils!$A$7:$A$159,0)),INDEX(Pupils!$BS$7:$BS$159,MATCH($B98,Pupils!$A$7:$A$159,0))))/SUM(INDEX(Pupils!$BH$7:$BS$159,MATCH($B98,Pupils!$A$7:$A$159,0),0))","v":1.0610079575596816E-2},{"$f":"IFERROR((VLOOKUP(B98,Funding,Funding!$C$2,FALSE)), \"x\")","v":26783279},{"$f":"IFERROR((AA98/VLOOKUP(B98,Funding,Funding!$D$2,FALSE)), \"x\")","v":0.133999484717086},{"$f":"IFERROR((AA98/(VLOOKUP(B98,Pupils,Pupils!$M$3,FALSE)+VLOOKUP(B98,Pupils,Pupils!$P$3,FALSE))), \"x\")","v":3069.7167908309457},{"$f":"IFERROR((VLOOKUP(B98,Funding,Funding!$E$2,FALSE)), \"x\")","v":28147787.408353243},{"$f":"IFERROR((AD98/VLOOKUP(B98,Funding,Funding!$F$2,FALSE)), \"x\")","v":0.13820517779881322},{"$f":"IFERROR((AD98/(VLOOKUP(B98,Pupils,Pupils!$R$3,FALSE)+VLOOKUP(B98,Pupils,Pupils!$U$3,FALSE))), \"x\")","v":3294.8364050512987},{"$f":"IFERROR((VLOOKUP(B98,Funding,Funding!$G$2,FALSE)), \"x\")","v":30418013.592866108},{"$f":"IFERROR((AG98/VLOOKUP(B98,Funding,Funding!$H$2,FALSE)), \"x\")","v":0.1458215743027339},{"$f":"IFERROR((AG98/(VLOOKUP(B98,Pupils,Pupils!$W$3,FALSE)+VLOOKUP(B98,Pupils,Pupils!$Z$3,FALSE))), \"x\")","v":3646.3694069606936},{"$f":"IFERROR((VLOOKUP(B98,Funding,Funding!$I$2,FALSE)), \"x\")","v":30896970.483862631},{"$f":"IFERROR((AJ98/VLOOKUP(B98,Funding,Funding!$J$2,FALSE)), \"x\")","v":0.14212037941059169},null,{"$f":"IFERROR((VLOOKUP($B98,Funding,Funding!$EC$2,FALSE)), \"x\")","v":16176420},{"$f":"IFERROR((AM98/VLOOKUP($B98,Funding,Funding!$EU$2,FALSE)), \"x\")","v":7.1751498649668843E-2},{"$f":"IFERROR((AM98/(VLOOKUP($B98,Pupils,Pupils!$D$3,FALSE)+VLOOKUP($B98,Pupils,Pupils!$E$3,FALSE))), \"x\")","v":1858.290637564618},{"$f":"IFERROR((VLOOKUP($B98,Funding,Funding!$DA$2,FALSE)), \"x\")","v":18948430},{"$f":"IFERROR((AP98/VLOOKUP($B98,Funding,Funding!$DT$2,FALSE)), \"x\")","v":8.6748606010653817E-2},{"$f":"IFERROR((AP98/(VLOOKUP($B98,Pupils,Pupils!$G$3,FALSE)+VLOOKUP($B98,Pupils,Pupils!$H$3,FALSE))), \"x\")","v":2103.7448651049185},{"$f":"IFERROR((VLOOKUP($B98,Funding,Funding!$CE$2,FALSE)), \"x\")","v":20089578},{"$f":"IFERROR((AS98/VLOOKUP($B98,Funding,Funding!$CR$2,FALSE)), \"x\")","v":9.4435467337135273E-2},{"$f":"IFERROR((AS98/(VLOOKUP($B98,Pupils,Pupils!$J$3,FALSE)+VLOOKUP($B98,Pupils,Pupils!$K$3,FALSE))), \"x\")","v":2213.9715671148338},{"$f":"IFERROR((VLOOKUP($B98,Funding,Funding!$BM$2,FALSE)), \"x\")","v":21703419},{"$f":"IFERROR((AV98/VLOOKUP($B98,Funding,Funding!$BY$2,FALSE)), \"x\")","v":0.11494603477096235},{"$f":"IFERROR((AV98/(VLOOKUP($B98,Pupils,Pupils!$M$3,FALSE)+VLOOKUP($B98,Pupils,Pupils!$P$3,FALSE))), \"x\")","v":2487.4978796561604},{"$f":"IFERROR((VLOOKUP($B98,Funding,Funding!$AQ$2,FALSE)), \"x\")","v":26816543},{"$f":"IFERROR((AY98/VLOOKUP($B98,Funding,Funding!$BE$2,FALSE)), \"x\")","v":0.13184368035754637},{"$f":"IFERROR((AY98/(VLOOKUP($B98,Pupils,Pupils!$R$3,FALSE)+VLOOKUP($B98,Pupils,Pupils!$U$3,FALSE))), \"x\")","v":3139.0077256233171},{"$f":"IFERROR((VLOOKUP($B98,Funding,Funding!$S$2,FALSE)), \"x\")","v":29005124},{"$f":"IFERROR((BB98/VLOOKUP($B98,Funding,Funding!$AH$2,FALSE)), \"x\")","v":0.13258624643605418},{"$f":"IFERROR((BB98/(VLOOKUP(B98,Pupils,Pupils!$W$3,FALSE)+VLOOKUP(B98,Pupils,Pupils!$Z$3,FALSE))), \"x\")","v":3476.9988012467034},{"$f":"IFERROR((VLOOKUP($B98,Funding,Funding!$GX$2,FALSE)), \"x\")","v":36453979.058200002},{"$f":"IFERROR((BE98/VLOOKUP($B98,Funding,Funding!$HC$2,FALSE)), \"x\")","v":0.1437448300214853},{"$f":"IFERROR((BE98/(VLOOKUP($B98,Pupils,Pupils!$D$3,FALSE)+VLOOKUP($B98,Pupils,Pupils!$E$3,FALSE))), \"x\")","v":4187.7058079494545},{"$f":"IFERROR((VLOOKUP($B98,Funding,Funding!$GP$2,FALSE)), \"x\")","v":35990434.149999999},{"$f":"IFERROR((BH98/VLOOKUP($B98,Funding,Funding!$GU$2,FALSE)), \"x\")","v":0.14076213161073345},{"$f":"IFERROR((BH98/(VLOOKUP($B98,Pupils,Pupils!$G$3,FALSE)+VLOOKUP($B98,Pupils,Pupils!$H$3,FALSE))), \"x\")","v":3995.829260575108},{"$f":"IFERROR((VLOOKUP($B98,Funding,Funding!$GH$2,FALSE)), \"x\")","v":41275392},{"$f":"IFERROR((BK98/VLOOKUP($B98,Funding,Funding!$GM$2,FALSE)), \"x\")","v":0.17659395279165432},{"$f":"IFERROR((BK98/(VLOOKUP($B98,Pupils,Pupils!$J$3,FALSE)+VLOOKUP($B98,Pupils,Pupils!$K$3,FALSE))), \"x\")","v":4548.7538020718539},{"$f":"IFERROR((VLOOKUP($B98,Funding,Funding!$FZ$2,FALSE)), \"x\")","v":36932834.399999999},{"$f":"IFERROR((BN98/VLOOKUP($B98,Funding,Funding!$GE$2,FALSE)), \"x\")","v":0.18153428314860709},{"$f":"IFERROR((BN98/(VLOOKUP($B98,Pupils,Pupils!$M$3,FALSE)+VLOOKUP($B98,Pupils,Pupils!$P$3,FALSE))), \"x\")","v":4232.9896160458447},{"$f":"IFERROR((VLOOKUP($B98,Funding,Funding!$FD$2,FALSE)), \"x\")","v":26810781},{"$f":"IFERROR((BQ98/VLOOKUP($B98,Funding,Funding!$FR$2,FALSE)), \"x\")","v":0.15087952915432923},{"$f":"IFERROR((BQ98/(VLOOKUP($B98,Pupils,Pupils!$R$3,FALSE)+VLOOKUP($B98,Pupils,Pupils!$U$3,FALSE))), \"x\")","v":3138.333255296734},{"$f":"(VLOOKUP(B98,Funding,Funding!$HK$2,FALSE)+VLOOKUP(B98,Funding,Funding!$HL$2,FALSE)+VLOOKUP(B98,Funding,Funding!$HM$2,FALSE))/(VLOOKUP(B98,Funding,Funding!$HN$2,FALSE))","v":0.34005499541704859},{"$f":"IFERROR((VLOOKUP(B98,Other_data,Other!$D$3,FALSE)+VLOOKUP(B98,Other_data,Other!$E$3,FALSE)+VLOOKUP(B98,Other_data,Other!$F$3,FALSE)), \"x\")","v":1850},{"$f":"(VLOOKUP(B98,Other_data,Other!$AK$3,FALSE)+VLOOKUP(B98,Other_data,Other!$AL$3,FALSE))/VLOOKUP(B98,Other_data,Other!$AJ$3,FALSE)","v":4.0209334376280402E-2},{"$f":"(VLOOKUP(B98,Other_data,Other!$AR$3,FALSE)+VLOOKUP(B98,Other_data,Other!$AS$3,FALSE))/VLOOKUP(B98,Other_data,Other!$AQ$3,FALSE)","v":5.8090872857712236E-2},{"$f":"VLOOKUP(B98,Other_data,Other!$AP$3,FALSE)/VLOOKUP(B98,Other_data,Other!$AJ$3,FALSE)","v":5.5127202294483557E-3},{"$f":"VLOOKUP(B98,Other_data,Other!$AW$3,FALSE)/VLOOKUP(B98,Other_data,Other!$AQ$3,FALSE)","v":1.1026969576192374E-2}]
[93,892,"Nottingham",{"$f":"IFERROR((VLOOKUP($B99,Pupils,Pupils!$D$3,FALSE)/VLOOKUP($B99,Pupils,Pupils!$C$3,FALSE)), \"x\")","v":1.4002610656224043E-2},{"$f":"IFERROR((VLOOKUP($B99,Pupils,Pupils!$G$3,FALSE)/VLOOKUP($B99,Pupils,Pupils!$F$3,FALSE)),\"x\")","v":1.4705532421177871E-2},{"$f":"IFERROR((VLOOKUP($B99,Pupils,Pupils!$J$3,FALSE)/VLOOKUP($B99,Pupils,Pupils!$I$3,FALSE)), \"x\")","v":1.4671250941974379E-2},{"$f":"IFERROR((VLOOKUP($B99,Pupils,Pupils!$M$3,FALSE)/VLOOKUP($B99,Pupils,Pupils!$L$3,FALSE)), \"x\")","v":1.4385646889307211E-2},{"$f":"IFERROR((VLOOKUP($B99,Pupils,Pupils!$R$3,FALSE)/VLOOKUP($B99,Pupils,Pupils!$Q$3,FALSE)), \"x\")","v":1.4926398205169295E-2},{"$f":"IFERROR((VLOOKUP($B99,Pupils,Pupils!$W$3,FALSE)/VLOOKUP($B99,Pupils,Pupils!$V$3,FALSE)), \"x\")","v":1.5277279253409907E-2},{"$f":"IFERROR(((VLOOKUP($B99,Pupils,Pupils!$D$3,FALSE)+VLOOKUP($B99,Pupils,Pupils!$E$3,FALSE))/VLOOKUP($B99,Pupils,Pupils!$C$3,FALSE)), \"x\")","v":0.26419840987302717},{"$f":"IFERROR(((VLOOKUP($B99,Pupils,Pupils!$G$3,FALSE)+VLOOKUP($B99,Pupils,Pupils!$H$3,FALSE))/VLOOKUP($B99,Pupils,Pupils!$F$3,FALSE)), \"x\")","v":0.28361689470553242},{"$f":"IFERROR(((VLOOKUP($B99,Pupils,Pupils!$J$3,FALSE)+VLOOKUP($B99,Pupils,Pupils!$K$3,FALSE))/VLOOKUP($B99,Pupils,Pupils!$I$3,FALSE)), \"x\")","v":0.27759984928409948},{"$f":"IFERROR(((VLOOKUP($B99,Pupils,Pupils!$M$3,FALSE)+VLOOKUP($B99,Pupils,Pupils!$P$3,FALSE))/VLOOKUP($B99,Pupils,Pupils!$L$3,FALSE)), \"x\")","v":0.24202282181784379},{"$f":"IFERROR(((VLOOKUP($B99,Pupils,Pupils!$R$3,FALSE)+VLOOKUP($B99,Pupils,Pupils!$U$3,FALSE))/VLOOKUP($B99,Pupils,Pupils!$Q$3,FALSE)), \"x\")","v":0.21329639889196675},{"$f":"IFERROR(((VLOOKUP($B99,Pupils,Pupils!$W$3,FALSE)+VLOOKUP($B99,Pupils,Pupils!$Z$3,FALSE))/VLOOKUP($B99,Pupils,Pupils!$V$3,FALSE)), \"x\")","v":0.19649587221823403},{"$f":"(SUM(INDEX(Pupils!$AB$7:$AB$159,MATCH($B99,Pupils!$A$7:$A$159,0)),INDEX(Pupils!$AC$7:$AC$159,MATCH($B99,Pupils!$A$7:$A$159,0)),INDEX(Pupils!$AD$7:$AD$159,MATCH($B99,Pupils!$A$7:$A$159,0)),INDEX(Pupils!$AE$7:$AE$159,MATCH($B99,Pupils!$A$7:$A$159,0))))/SUM(INDEX(Pupils!$AB$7:$AM$159,MATCH($B99,Pupils!$A$7:$A$159,0),0))","v":0.24423480083857443},{"$f":"SUM(INDEX(Pupils!$AF$7:$AF$159,MATCH($B99,Pupils!$A$7:$A$159,0)))/SUM(INDEX(Pupils!$AB$7:$AM$159,MATCH($B99,Pupils!$A$7:$A$159,0),0))","v":0.26415094339622641},{"$f":"SUM(INDEX(Pupils!$AG$7:$AG$159,MATCH($B99,Pupils!$A$7:$A$159,0)))/SUM(INDEX(Pupils!$AB$7:$AM$159,MATCH($B99,Pupils!$A$7:$A$159,0),0))","v":0.13067784765897975},{"$f":"(SUM(INDEX(Pupils!$AH$7:$AH$159,MATCH($B99,Pupils!$A$7:$A$159,0)),INDEX(Pupils!$AI$7:$AI$159,MATCH($B99,Pupils!$A$7:$A$159,0)),INDEX(Pupils!$AJ$7:$AJ$159,MATCH($B99,Pupils!$A$7:$A$159,0))))/SUM(INDEX(Pupils!$AB$7:$AM$159,MATCH($B99,Pupils!$A$7:$A$159,0),0))","v":4.5422781271837874E-2},{"$f":"SUM(INDEX(Pupils!$AK$7:$AK$159,MATCH($B99,Pupils!$A$7:$A$159,0)))/SUM(INDEX(Pupils!$AB$7:$AM$159,MATCH($B99,Pupils!$A$7:$A$159,0),0))","v":4.9965059399021662E-2},{"$f":"SUM(INDEX(Pupils!$AL$7:$AL$159,MATCH($B99,Pupils!$A$7:$A$159,0)))/SUM(INDEX(Pupils!$AB$7:$AM$159,MATCH($B99,Pupils!$A$7:$A$159,0),0))","v":0.21104122990915444},{"$f":"SUM(INDEX(Pupils!$AM$7:$AM$159,MATCH($B99,Pupils!$A$7:$A$159,0)))/SUM(INDEX(Pupils!$AB$7:$AM$159,MATCH($B99,Pupils!$A$7:$A$159,0),0))","v":5.450733752620545E-2},{"$f":"(SUM(INDEX(Pupils!$BH$7:$BH$159,MATCH($B99,Pupils!$A$7:$A$159,0)),INDEX(Pupils!$BK$7:$BK$159,MATCH($B99,Pupils!$A$7:$A$159,0)),INDEX(Pupils!$BO$7:$BO$159,MATCH($B99,Pupils!$A$7:$A$159,0))))/SUM(INDEX(Pupils!$BH$7:$BS$159,MATCH($B99,Pupils!$A$7:$A$159,0),0))","v":0.25850340136054423},{"$f":"(SUM(INDEX(Pupils!$BL$7:$BL$159,MATCH($B99,Pupils!$A$7:$A$159,0)),INDEX(Pupils!$BM$7:$BM$159,MATCH($B99,Pupils!$A$7:$A$159,0)),INDEX(Pupils!$BP$7:$BP$159,MATCH($B99,Pupils!$A$7:$A$159,0))))/SUM(INDEX(Pupils!$BH$7:$BS$159,MATCH($B99,Pupils!$A$7:$A$159,0),0))","v":0.72108843537414968},{"$f":"(SUM(INDEX(Pupils!$BI$7:$BI$159,MATCH($B99,Pupils!$A$7:$A$159,0)),INDEX(Pupils!$BJ$7:$BJ$159,MATCH($B99,Pupils!$A$7:$A$159,0))))/SUM(INDEX(Pupils!$BH$7:$BS$159,MATCH($B99,Pupils!$A$7:$A$159,0),0))","v":0},{"$f":"(SUM(INDEX(Pupils!$BQ$7:$BQ$159,MATCH($B99,Pupils!$A$7:$A$159,0)),INDEX(Pupils!$BR$7:$BR$159,MATCH($B99,Pupils!$A$7:$A$159,0)),INDEX(Pupils!$BN$7:$BN$159,MATCH($B99,Pupils!$A$7:$A$159,0)),INDEX(Pupils!$BS$7:$BS$159,MATCH($B99,Pupils!$A$7:$A$159,0))))/SUM(INDEX(Pupils!$BH$7:$BS$159,MATCH($B99,Pupils!$A$7:$A$159,0),0))","v":2.0408163265306121E-2},{"$f":"IFERROR((VLOOKUP(B99,Funding,Funding!$C$2,FALSE)), \"x\")","v":22952741.057656307},{"$f":"IFERROR((AA99/VLOOKUP(B99,Funding,Funding!$D$2,FALSE)), \"x\")","v":0.10940612598481146},{"$f":"IFERROR((AA99/(VLOOKUP(B99,Pupils,Pupils!$M$3,FALSE)+VLOOKUP(B99,Pupils,Pupils!$P$3,FALSE))), \"x\")","v":2204.0273725423763},{"$f":"IFERROR((VLOOKUP(B99,Funding,Funding!$E$2,FALSE)), \"x\")","v":23760330.888160039},{"$f":"IFERROR((AD99/VLOOKUP(B99,Funding,Funding!$F$2,FALSE)), \"x\")","v":0.10774981073066266},{"$f":"IFERROR((AD99/(VLOOKUP(B99,Pupils,Pupils!$R$3,FALSE)+VLOOKUP(B99,Pupils,Pupils!$U$3,FALSE))), \"x\")","v":2550.2126100847954},{"$f":"IFERROR((VLOOKUP(B99,Funding,Funding!$G$2,FALSE)), \"x\")","v":24464411.029997841},{"$f":"IFERROR((AG99/VLOOKUP(B99,Funding,Funding!$H$2,FALSE)), \"x\")","v":0.1069544409651636},{"$f":"IFERROR((AG99/(VLOOKUP(B99,Pupils,Pupils!$W$3,FALSE)+VLOOKUP(B99,Pupils,Pupils!$Z$3,FALSE))), \"x\")","v":2793.0598276056444},{"$f":"IFERROR((VLOOKUP(B99,Funding,Funding!$I$2,FALSE)), \"x\")","v":25174056.002360836},{"$f":"IFERROR((AJ99/VLOOKUP(B99,Funding,Funding!$J$2,FALSE)), \"x\")","v":0.10691481745170427},null,{"$f":"IFERROR((VLOOKUP($B99,Funding,Funding!$EC$2,FALSE)), \"x\")","v":11170295.320000002},{"$f":"IFERROR((AM99/VLOOKUP($B99,Funding,Funding!$EU$2,FALSE)), \"x\")","v":5.5813143909510379E-2},{"$f":"IFERROR((AM99/(VLOOKUP($B99,Pupils,Pupils!$D$3,FALSE)+VLOOKUP($B99,Pupils,Pupils!$E$3,FALSE))), \"x\")","v":1003.4401113905859},{"$f":"IFERROR((VLOOKUP($B99,Funding,Funding!$DA$2,FALSE)), \"x\")","v":12565585.61674},{"$f":"IFERROR((AP99/VLOOKUP($B99,Funding,Funding!$DT$2,FALSE)), \"x\")","v":6.2592173122477182E-2},{"$f":"IFERROR((AP99/(VLOOKUP($B99,Pupils,Pupils!$G$3,FALSE)+VLOOKUP($B99,Pupils,Pupils!$H$3,FALSE))), \"x\")","v":1054.2483108264116},{"$f":"IFERROR((VLOOKUP($B99,Funding,Funding!$CE$2,FALSE)), \"x\")","v":13347467.70011},{"$f":"IFERROR((AS99/VLOOKUP($B99,Funding,Funding!$CR$2,FALSE)), \"x\")","v":6.6891567032036997E-2},{"$f":"IFERROR((AS99/(VLOOKUP($B99,Pupils,Pupils!$J$3,FALSE)+VLOOKUP($B99,Pupils,Pupils!$K$3,FALSE))), \"x\")","v":1132.2928147361724},{"$f":"IFERROR((VLOOKUP($B99,Funding,Funding!$BM$2,FALSE)), \"x\")","v":13734291.219999999},{"$f":"IFERROR((AV99/VLOOKUP($B99,Funding,Funding!$BY$2,FALSE)), \"x\")","v":7.8562766792882488E-2},{"$f":"IFERROR((AV99/(VLOOKUP($B99,Pupils,Pupils!$M$3,FALSE)+VLOOKUP($B99,Pupils,Pupils!$P$3,FALSE))), \"x\")","v":1318.8295774918379},{"$f":"IFERROR((VLOOKUP($B99,Funding,Funding!$AQ$2,FALSE)), \"x\")","v":17195241},{"$f":"IFERROR((AY99/VLOOKUP($B99,Funding,Funding!$BE$2,FALSE)), \"x\")","v":8.0261998189544353E-2},{"$f":"IFERROR((AY99/(VLOOKUP($B99,Pupils,Pupils!$R$3,FALSE)+VLOOKUP($B99,Pupils,Pupils!$U$3,FALSE))), \"x\")","v":1845.5770097670925},{"$f":"IFERROR((VLOOKUP($B99,Funding,Funding!$S$2,FALSE)), \"x\")","v":20624302},{"$f":"IFERROR((BB99/VLOOKUP($B99,Funding,Funding!$AH$2,FALSE)), \"x\")","v":8.9899047907440036E-2},{"$f":"IFERROR((BB99/(VLOOKUP(B99,Pupils,Pupils!$W$3,FALSE)+VLOOKUP(B99,Pupils,Pupils!$Z$3,FALSE))), \"x\")","v":2354.6411690832288},{"$f":"IFERROR((VLOOKUP($B99,Funding,Funding!$GX$2,FALSE)), \"x\")","v":20243432},{"$f":"IFERROR((BE99/VLOOKUP($B99,Funding,Funding!$HC$2,FALSE)), \"x\")","v":9.9916160999791157E-2},{"$f":"IFERROR((BE99/(VLOOKUP($B99,Pupils,Pupils!$D$3,FALSE)+VLOOKUP($B99,Pupils,Pupils!$E$3,FALSE))), \"x\")","v":1818.490118577075},{"$f":"IFERROR((VLOOKUP($B99,Funding,Funding!$GP$2,FALSE)), \"x\")","v":21662905.52},{"$f":"IFERROR((BH99/VLOOKUP($B99,Funding,Funding!$GU$2,FALSE)), \"x\")","v":0.10489510112669091},{"$f":"IFERROR((BH99/(VLOOKUP($B99,Pupils,Pupils!$G$3,FALSE)+VLOOKUP($B99,Pupils,Pupils!$H$3,FALSE))), \"x\")","v":1817.5103213356824},{"$f":"IFERROR((VLOOKUP($B99,Funding,Funding!$GH$2,FALSE)), \"x\")","v":17242278},{"$f":"IFERROR((BK99/VLOOKUP($B99,Funding,Funding!$GM$2,FALSE)), \"x\")","v":8.7741843334604858E-2},{"$f":"IFERROR((BK99/(VLOOKUP($B99,Pupils,Pupils!$J$3,FALSE)+VLOOKUP($B99,Pupils,Pupils!$K$3,FALSE))), \"x\")","v":1462.6974889718358},{"$f":"IFERROR((VLOOKUP($B99,Funding,Funding!$FZ$2,FALSE)), \"x\")","v":14882591},{"$f":"IFERROR((BN99/VLOOKUP($B99,Funding,Funding!$GE$2,FALSE)), \"x\")","v":9.6275743221066315E-2},{"$f":"IFERROR((BN99/(VLOOKUP($B99,Pupils,Pupils!$M$3,FALSE)+VLOOKUP($B99,Pupils,Pupils!$P$3,FALSE))), \"x\")","v":1429.0945842135586},{"$f":"IFERROR((VLOOKUP($B99,Funding,Funding!$FD$2,FALSE)), \"x\")","v":19882994},{"$f":"IFERROR((BQ99/VLOOKUP($B99,Funding,Funding!$FR$2,FALSE)), \"x\")","v":0.14589622050821444},{"$f":"IFERROR((BQ99/(VLOOKUP($B99,Pupils,Pupils!$R$3,FALSE)+VLOOKUP($B99,Pupils,Pupils!$U$3,FALSE))), \"x\")","v":2134.0553826338951},{"$f":"(VLOOKUP(B99,Funding,Funding!$HK$2,FALSE)+VLOOKUP(B99,Funding,Funding!$HL$2,FALSE)+VLOOKUP(B99,Funding,Funding!$HM$2,FALSE))/(VLOOKUP(B99,Funding,Funding!$HN$2,FALSE))","v":0.20214030915576695},{"$f":"IFERROR((VLOOKUP(B99,Other_data,Other!$D$3,FALSE)+VLOOKUP(B99,Other_data,Other!$E$3,FALSE)+VLOOKUP(B99,Other_data,Other!$F$3,FALSE)), \"x\")","v":2110},{"$f":"(VLOOKUP(B99,Other_data,Other!$AK$3,FALSE)+VLOOKUP(B99,Other_data,Other!$AL$3,FALSE))/VLOOKUP(B99,Other_data,Other!$AJ$3,FALSE)","v":4.6475139317210409E-2},{"$f":"(VLOOKUP(B99,Other_data,Other!$AR$3,FALSE)+VLOOKUP(B99,Other_data,Other!$AS$3,FALSE))/VLOOKUP(B99,Other_data,Other!$AQ$3,FALSE)","v":4.6301998768266052E-2},{"$f":"VLOOKUP(B99,Other_data,Other!$AP$3,FALSE)/VLOOKUP(B99,Other_data,Other!$AJ$3,FALSE)","v":9.4861945210914528E-3},{"$f":"VLOOKUP(B99,Other_data,Other!$AW$3,FALSE)/VLOOKUP(B99,Other_data,Other!$AQ$3,FALSE)","v":1.0842991247223934E-2}]
[94,891,"Nottinghamshire",{"$f":"IFERROR((VLOOKUP($B100,Pupils,Pupils!$D$3,FALSE)/VLOOKUP($B100,Pupils,Pupils!$C$3,FALSE)), \"x\")","v":1.14267910673987E-2},{"$f":"IFERROR((VLOOKUP($B100,Pupils,Pupils!$G$3,FALSE)/VLOOKUP($B100,Pupils,Pupils!$F$3,FALSE)),\"x\")","v":1.1297181221725218E-2},{"$f":"IFERROR((VLOOKUP($B100,Pupils,Pupils!$J$3,FALSE)/VLOOKUP($B100,Pupils,Pupils!$I$3,FALSE)), \"x\")","v":1.1860916230142793E-2},{"$f":"IFERROR((VLOOKUP($B100,Pupils,Pupils!$M$3,FALSE)/VLOOKUP($B100,Pupils,Pupils!$L$3,FALSE)), \"x\")","v":1.1967822525948883E-2},{"$f":"IFERROR((VLOOKUP($B100,Pupils,Pupils!$R$3,FALSE)/VLOOKUP($B100,Pupils,Pupils!$Q$3,FALSE)), \"x\")","v":1.1940810636929016E-2},{"$f":"IFERROR((VLOOKUP($B100,Pupils,Pupils!$W$3,FALSE)/VLOOKUP($B100,Pupils,Pupils!$V$3,FALSE)), \"x\")","v":1.2426975504765809E-2},{"$f":"IFERROR(((VLOOKUP($B100,Pupils,Pupils!$D$3,FALSE)+VLOOKUP($B100,Pupils,Pupils!$E$3,FALSE))/VLOOKUP($B100,Pupils,Pupils!$C$3,FALSE)), \"x\")","v":0.19023038835932501},{"$f":"IFERROR(((VLOOKUP($B100,Pupils,Pupils!$G$3,FALSE)+VLOOKUP($B100,Pupils,Pupils!$H$3,FALSE))/VLOOKUP($B100,Pupils,Pupils!$F$3,FALSE)), \"x\")","v":0.20145649609139599},{"$f":"IFERROR(((VLOOKUP($B100,Pupils,Pupils!$J$3,FALSE)+VLOOKUP($B100,Pupils,Pupils!$K$3,FALSE))/VLOOKUP($B100,Pupils,Pupils!$I$3,FALSE)), \"x\")","v":0.19733727557830513},{"$f":"IFERROR(((VLOOKUP($B100,Pupils,Pupils!$M$3,FALSE)+VLOOKUP($B100,Pupils,Pupils!$P$3,FALSE))/VLOOKUP($B100,Pupils,Pupils!$L$3,FALSE)), \"x\")","v":0.17548227577503242},{"$f":"IFERROR(((VLOOKUP($B100,Pupils,Pupils!$R$3,FALSE)+VLOOKUP($B100,Pupils,Pupils!$U$3,FALSE))/VLOOKUP($B100,Pupils,Pupils!$Q$3,FALSE)), \"x\")","v":0.1635685181213811},{"$f":"IFERROR(((VLOOKUP($B100,Pupils,Pupils!$W$3,FALSE)+VLOOKUP($B100,Pupils,Pupils!$Z$3,FALSE))/VLOOKUP($B100,Pupils,Pupils!$V$3,FALSE)), \"x\")","v":0.15264254723104778},{"$f":"(SUM(INDEX(Pupils!$AB$7:$AB$159,MATCH($B100,Pupils!$A$7:$A$159,0)),INDEX(Pupils!$AC$7:$AC$159,MATCH($B100,Pupils!$A$7:$A$159,0)),INDEX(Pupils!$AD$7:$AD$159,MATCH($B100,Pupils!$A$7:$A$159,0)),INDEX(Pupils!$AE$7:$AE$159,MATCH($B100,Pupils!$A$7:$A$159,0))))/SUM(INDEX(Pupils!$AB$7:$AM$159,MATCH($B100,Pupils!$A$7:$A$159,0),0))","v":0.25571981696585711},{"$f":"SUM(INDEX(Pupils!$AF$7:$AF$159,MATCH($B100,Pupils!$A$7:$A$159,0)))/SUM(INDEX(Pupils!$AB$7:$AM$159,MATCH($B100,Pupils!$A$7:$A$159,0),0))","v":0.23178458289334741},{"$f":"SUM(INDEX(Pupils!$AG$7:$AG$159,MATCH($B100,Pupils!$A$7:$A$159,0)))/SUM(INDEX(Pupils!$AB$7:$AM$159,MATCH($B100,Pupils!$A$7:$A$159,0),0))","v":0.13692361844420978},{"$f":"(SUM(INDEX(Pupils!$AH$7:$AH$159,MATCH($B100,Pupils!$A$7:$A$159,0)),INDEX(Pupils!$AI$7:$AI$159,MATCH($B100,Pupils!$A$7:$A$159,0)),INDEX(Pupils!$AJ$7:$AJ$159,MATCH($B100,Pupils!$A$7:$A$159,0))))/SUM(INDEX(Pupils!$AB$7:$AM$159,MATCH($B100,Pupils!$A$7:$A$159,0),0))","v":4.6814501935938051E-2},{"$f":"SUM(INDEX(Pupils!$AK$7:$AK$159,MATCH($B100,Pupils!$A$7:$A$159,0)))/SUM(INDEX(Pupils!$AB$7:$AM$159,MATCH($B100,Pupils!$A$7:$A$159,0),0))","v":6.6349876803942276E-2},{"$f":"SUM(INDEX(Pupils!$AL$7:$AL$159,MATCH($B100,Pupils!$A$7:$A$159,0)))/SUM(INDEX(Pupils!$AB$7:$AM$159,MATCH($B100,Pupils!$A$7:$A$159,0),0))","v":0.21576909538894756},{"$f":"SUM(INDEX(Pupils!$AM$7:$AM$159,MATCH($B100,Pupils!$A$7:$A$159,0)))/SUM(INDEX(Pupils!$AB$7:$AM$159,MATCH($B100,Pupils!$A$7:$A$159,0),0))","v":4.663850756775783E-2},{"$f":"(SUM(INDEX(Pupils!$BH$7:$BH$159,MATCH($B100,Pupils!$A$7:$A$159,0)),INDEX(Pupils!$BK$7:$BK$159,MATCH($B100,Pupils!$A$7:$A$159,0)),INDEX(Pupils!$BO$7:$BO$159,MATCH($B100,Pupils!$A$7:$A$159,0))))/SUM(INDEX(Pupils!$BH$7:$BS$159,MATCH($B100,Pupils!$A$7:$A$159,0),0))","v":0.28129032258064518},{"$f":"(SUM(INDEX(Pupils!$BL$7:$BL$159,MATCH($B100,Pupils!$A$7:$A$159,0)),INDEX(Pupils!$BM$7:$BM$159,MATCH($B100,Pupils!$A$7:$A$159,0)),INDEX(Pupils!$BP$7:$BP$159,MATCH($B100,Pupils!$A$7:$A$159,0))))/SUM(INDEX(Pupils!$BH$7:$BS$159,MATCH($B100,Pupils!$A$7:$A$159,0),0))","v":0.70193548387096771},{"$f":"(SUM(INDEX(Pupils!$BI$7:$BI$159,MATCH($B100,Pupils!$A$7:$A$159,0)),INDEX(Pupils!$BJ$7:$BJ$159,MATCH($B100,Pupils!$A$7:$A$159,0))))/SUM(INDEX(Pupils!$BH$7:$BS$159,MATCH($B100,Pupils!$A$7:$A$159,0),0))","v":0},{"$f":"(SUM(INDEX(Pupils!$BQ$7:$BQ$159,MATCH($B100,Pupils!$A$7:$A$159,0)),INDEX(Pupils!$BR$7:$BR$159,MATCH($B100,Pupils!$A$7:$A$159,0)),INDEX(Pupils!$BN$7:$BN$159,MATCH($B100,Pupils!$A$7:$A$159,0)),INDEX(Pupils!$BS$7:$BS$159,MATCH($B100,Pupils!$A$7:$A$159,0))))/SUM(INDEX(Pupils!$BH$7:$BS$159,MATCH($B100,Pupils!$A$7:$A$159,0),0))","v":1.6774193548387096E-2},{"$f":"IFERROR((VLOOKUP(B100,Funding,Funding!$C$2,FALSE)), \"x\")","v":51550822.890000001},{"$f":"IFERROR((AA100/VLOOKUP(B100,Funding,Funding!$D$2,FALSE)), \"x\")","v":0.10109628080232565},{"$f":"IFERROR((AA100/(VLOOKUP(B100,Pupils,Pupils!$M$3,FALSE)+VLOOKUP(B100,Pupils,Pupils!$P$3,FALSE))), \"x\")","v":2522.0559143835617},{"$f":"IFERROR((VLOOKUP(B100,Funding,Funding!$E$2,FALSE)), \"x\")","v":53417896.328180037},{"$f":"IFERROR((AD100/VLOOKUP(B100,Funding,Funding!$F$2,FALSE)), \"x\")","v":0.1025946605882684},{"$f":"IFERROR((AD100/(VLOOKUP(B100,Pupils,Pupils!$R$3,FALSE)+VLOOKUP(B100,Pupils,Pupils!$U$3,FALSE))), \"x\")","v":2801.4420142741787},{"$f":"IFERROR((VLOOKUP(B100,Funding,Funding!$G$2,FALSE)), \"x\")","v":56176408.055950575},{"$f":"IFERROR((AG100/VLOOKUP(B100,Funding,Funding!$H$2,FALSE)), \"x\")","v":0.1063921201116208},{"$f":"IFERROR((AG100/(VLOOKUP(B100,Pupils,Pupils!$W$3,FALSE)+VLOOKUP(B100,Pupils,Pupils!$Z$3,FALSE))), \"x\")","v":3143.2636557716301},{"$f":"IFERROR((VLOOKUP(B100,Funding,Funding!$I$2,FALSE)), \"x\")","v":56836080.340753891},{"$f":"IFERROR((AJ100/VLOOKUP(B100,Funding,Funding!$J$2,FALSE)), \"x\")","v":0.10810702713847344},null,{"$f":"IFERROR((VLOOKUP($B100,Funding,Funding!$EC$2,FALSE)), \"x\")","v":26414073.670000002},{"$f":"IFERROR((AM100/VLOOKUP($B100,Funding,Funding!$EU$2,FALSE)), \"x\")","v":4.9811636710395735E-2},{"$f":"IFERROR((AM100/(VLOOKUP($B100,Pupils,Pupils!$D$3,FALSE)+VLOOKUP($B100,Pupils,Pupils!$E$3,FALSE))), \"x\")","v":1169.2299442255767},{"$f":"IFERROR((VLOOKUP($B100,Funding,Funding!$DA$2,FALSE)), \"x\")","v":28178598.275770001},{"$f":"IFERROR((AP100/VLOOKUP($B100,Funding,Funding!$DT$2,FALSE)), \"x\")","v":5.1068970319565705E-2},{"$f":"IFERROR((AP100/(VLOOKUP($B100,Pupils,Pupils!$G$3,FALSE)+VLOOKUP($B100,Pupils,Pupils!$H$3,FALSE))), \"x\")","v":1187.2171171590478},{"$f":"IFERROR((VLOOKUP($B100,Funding,Funding!$CE$2,FALSE)), \"x\")","v":29366889.370000001},{"$f":"IFERROR((AS100/VLOOKUP($B100,Funding,Funding!$CR$2,FALSE)), \"x\")","v":5.5734080657823037E-2},{"$f":"IFERROR((AS100/(VLOOKUP($B100,Pupils,Pupils!$J$3,FALSE)+VLOOKUP($B100,Pupils,Pupils!$K$3,FALSE))), \"x\")","v":1271.6792694755986},{"$f":"IFERROR((VLOOKUP($B100,Funding,Funding!$BM$2,FALSE)), \"x\")","v":42879643.950000003},{"$f":"IFERROR((AV100/VLOOKUP($B100,Funding,Funding!$BY$2,FALSE)), \"x\")","v":9.3865644728815423E-2},{"$f":"IFERROR((AV100/(VLOOKUP($B100,Pupils,Pupils!$M$3,FALSE)+VLOOKUP($B100,Pupils,Pupils!$P$3,FALSE))), \"x\")","v":2097.8299388454011},{"$f":"IFERROR((VLOOKUP($B100,Funding,Funding!$AQ$2,FALSE)), \"x\")","v":52705003},{"$f":"IFERROR((AY100/VLOOKUP($B100,Funding,Funding!$BE$2,FALSE)), \"x\")","v":0.10114200650665173},{"$f":"IFERROR((AY100/(VLOOKUP($B100,Pupils,Pupils!$R$3,FALSE)+VLOOKUP($B100,Pupils,Pupils!$U$3,FALSE))), \"x\")","v":2764.0551185231802},{"$f":"IFERROR((VLOOKUP($B100,Funding,Funding!$S$2,FALSE)), \"x\")","v":53769071},{"$f":"IFERROR((BB100/VLOOKUP($B100,Funding,Funding!$AH$2,FALSE)), \"x\")","v":0.10208770611737249},{"$f":"IFERROR((BB100/(VLOOKUP(B100,Pupils,Pupils!$W$3,FALSE)+VLOOKUP(B100,Pupils,Pupils!$Z$3,FALSE))), \"x\")","v":3008.5648500447628},{"$f":"IFERROR((VLOOKUP($B100,Funding,Funding!$GX$2,FALSE)), \"x\")","v":56019968},{"$f":"IFERROR((BE100/VLOOKUP($B100,Funding,Funding!$HC$2,FALSE)), \"x\")","v":9.764028146361009E-2},{"$f":"IFERROR((BE100/(VLOOKUP($B100,Pupils,Pupils!$D$3,FALSE)+VLOOKUP($B100,Pupils,Pupils!$E$3,FALSE))), \"x\")","v":2479.7471559470587},{"$f":"IFERROR((VLOOKUP($B100,Funding,Funding!$GP$2,FALSE)), \"x\")","v":55231563},{"$f":"IFERROR((BH100/VLOOKUP($B100,Funding,Funding!$GU$2,FALSE)), \"x\")","v":9.4644097626967946E-2},{"$f":"IFERROR((BH100/(VLOOKUP($B100,Pupils,Pupils!$G$3,FALSE)+VLOOKUP($B100,Pupils,Pupils!$H$3,FALSE))), \"x\")","v":2327.0091847482622},{"$f":"IFERROR((VLOOKUP($B100,Funding,Funding!$GH$2,FALSE)), \"x\")","v":57678147.420000002},{"$f":"IFERROR((BK100/VLOOKUP($B100,Funding,Funding!$GM$2,FALSE)), \"x\")","v":0.11048444956198571},{"$f":"IFERROR((BK100/(VLOOKUP($B100,Pupils,Pupils!$J$3,FALSE)+VLOOKUP($B100,Pupils,Pupils!$K$3,FALSE))), \"x\")","v":2497.6463612350062},{"$f":"IFERROR((VLOOKUP($B100,Funding,Funding!$FZ$2,FALSE)), \"x\")","v":54698874.109999992},{"$f":"IFERROR((BN100/VLOOKUP($B100,Funding,Funding!$GE$2,FALSE)), \"x\")","v":0.13148296390322325},{"$f":"IFERROR((BN100/(VLOOKUP($B100,Pupils,Pupils!$M$3,FALSE)+VLOOKUP($B100,Pupils,Pupils!$P$3,FALSE))), \"x\")","v":2676.0701619373772},{"$f":"IFERROR((VLOOKUP($B100,Funding,Funding!$FD$2,FALSE)), \"x\")","v":52885240},{"$f":"IFERROR((BQ100/VLOOKUP($B100,Funding,Funding!$FR$2,FALSE)), \"x\")","v":0.14734637049923346},{"$f":"IFERROR((BQ100/(VLOOKUP($B100,Pupils,Pupils!$R$3,FALSE)+VLOOKUP($B100,Pupils,Pupils!$U$3,FALSE))), \"x\")","v":2773.5074470316763},{"$f":"(VLOOKUP(B100,Funding,Funding!$HK$2,FALSE)+VLOOKUP(B100,Funding,Funding!$HL$2,FALSE)+VLOOKUP(B100,Funding,Funding!$HM$2,FALSE))/(VLOOKUP(B100,Funding,Funding!$HN$2,FALSE))","v":0.38245373543522959},{"$f":"IFERROR((VLOOKUP(B100,Other_data,Other!$D$3,FALSE)+VLOOKUP(B100,Other_data,Other!$E$3,FALSE)+VLOOKUP(B100,Other_data,Other!$F$3,FALSE)), \"x\")","v":5180.0000000000009},{"$f":"(VLOOKUP(B100,Other_data,Other!$AK$3,FALSE)+VLOOKUP(B100,Other_data,Other!$AL$3,FALSE))/VLOOKUP(B100,Other_data,Other!$AJ$3,FALSE)","v":4.0605028294715503E-2},{"$f":"(VLOOKUP(B100,Other_data,Other!$AR$3,FALSE)+VLOOKUP(B100,Other_data,Other!$AS$3,FALSE))/VLOOKUP(B100,Other_data,Other!$AQ$3,FALSE)","v":5.6791099146713424E-2},{"$f":"VLOOKUP(B100,Other_data,Other!$AP$3,FALSE)/VLOOKUP(B100,Other_data,Other!$AJ$3,FALSE)","v":5.7293279653143391E-3},{"$f":"VLOOKUP(B100,Other_data,Other!$AW$3,FALSE)/VLOOKUP(B100,Other_data,Other!$AQ$3,FALSE)","v":1.055803213099369E-2}]
[95,353,"Oldham",{"$f":"IFERROR((VLOOKUP($B101,Pupils,Pupils!$D$3,FALSE)/VLOOKUP($B101,Pupils,Pupils!$C$3,FALSE)), \"x\")","v":2.1420301042068698E-2},{"$f":"IFERROR((VLOOKUP($B101,Pupils,Pupils!$G$3,FALSE)/VLOOKUP($B101,Pupils,Pupils!$F$3,FALSE)),\"x\")","v":2.3685926069005481E-2},{"$f":"IFERROR((VLOOKUP($B101,Pupils,Pupils!$J$3,FALSE)/VLOOKUP($B101,Pupils,Pupils!$I$3,FALSE)), \"x\")","v":2.5097087378640776E-2},{"$f":"IFERROR((VLOOKUP($B101,Pupils,Pupils!$M$3,FALSE)/VLOOKUP($B101,Pupils,Pupils!$L$3,FALSE)), \"x\")","v":2.6265830389541729E-2},{"$f":"IFERROR((VLOOKUP($B101,Pupils,Pupils!$R$3,FALSE)/VLOOKUP($B101,Pupils,Pupils!$Q$3,FALSE)), \"x\")","v":2.5512875434337664E-2},{"$f":"IFERROR((VLOOKUP($B101,Pupils,Pupils!$W$3,FALSE)/VLOOKUP($B101,Pupils,Pupils!$V$3,FALSE)), \"x\")","v":2.5607136956880886E-2},{"$f":"IFERROR(((VLOOKUP($B101,Pupils,Pupils!$D$3,FALSE)+VLOOKUP($B101,Pupils,Pupils!$E$3,FALSE))/VLOOKUP($B101,Pupils,Pupils!$C$3,FALSE)), \"x\")","v":0.18496719413353918},{"$f":"IFERROR(((VLOOKUP($B101,Pupils,Pupils!$G$3,FALSE)+VLOOKUP($B101,Pupils,Pupils!$H$3,FALSE))/VLOOKUP($B101,Pupils,Pupils!$F$3,FALSE)), \"x\")","v":0.20052152497766618},{"$f":"IFERROR(((VLOOKUP($B101,Pupils,Pupils!$J$3,FALSE)+VLOOKUP($B101,Pupils,Pupils!$K$3,FALSE))/VLOOKUP($B101,Pupils,Pupils!$I$3,FALSE)), \"x\")","v":0.19016990291262137},{"$f":"IFERROR(((VLOOKUP($B101,Pupils,Pupils!$M$3,FALSE)+VLOOKUP($B101,Pupils,Pupils!$P$3,FALSE))/VLOOKUP($B101,Pupils,Pupils!$L$3,FALSE)), \"x\")","v":0.18138562468459377},{"$f":"IFERROR(((VLOOKUP($B101,Pupils,Pupils!$R$3,FALSE)+VLOOKUP($B101,Pupils,Pupils!$U$3,FALSE))/VLOOKUP($B101,Pupils,Pupils!$Q$3,FALSE)), \"x\")","v":0.17670998143652719},{"$f":"IFERROR(((VLOOKUP($B101,Pupils,Pupils!$W$3,FALSE)+VLOOKUP($B101,Pupils,Pupils!$Z$3,FALSE))/VLOOKUP($B101,Pupils,Pupils!$V$3,FALSE)), \"x\")","v":0.17545018998843548},{"$f":"(SUM(INDEX(Pupils!$AB$7:$AB$159,MATCH($B101,Pupils!$A$7:$A$159,0)),INDEX(Pupils!$AC$7:$AC$159,MATCH($B101,Pupils!$A$7:$A$159,0)),INDEX(Pupils!$AD$7:$AD$159,MATCH($B101,Pupils!$A$7:$A$159,0)),INDEX(Pupils!$AE$7:$AE$159,MATCH($B101,Pupils!$A$7:$A$159,0))))/SUM(INDEX(Pupils!$AB$7:$AM$159,MATCH($B101,Pupils!$A$7:$A$159,0),0))","v":0.29361179361179363},{"$f":"SUM(INDEX(Pupils!$AF$7:$AF$159,MATCH($B101,Pupils!$A$7:$A$159,0)))/SUM(INDEX(Pupils!$AB$7:$AM$159,MATCH($B101,Pupils!$A$7:$A$159,0),0))","v":0.16953316953316952},{"$f":"SUM(INDEX(Pupils!$AG$7:$AG$159,MATCH($B101,Pupils!$A$7:$A$159,0)))/SUM(INDEX(Pupils!$AB$7:$AM$159,MATCH($B101,Pupils!$A$7:$A$159,0),0))","v":0.23925061425061425},{"$f":"(SUM(INDEX(Pupils!$AH$7:$AH$159,MATCH($B101,Pupils!$A$7:$A$159,0)),INDEX(Pupils!$AI$7:$AI$159,MATCH($B101,Pupils!$A$7:$A$159,0)),INDEX(Pupils!$AJ$7:$AJ$159,MATCH($B101,Pupils!$A$7:$A$159,0))))/SUM(INDEX(Pupils!$AB$7:$AM$159,MATCH($B101,Pupils!$A$7:$A$159,0),0))","v":4.72972972972973E-2},{"$f":"SUM(INDEX(Pupils!$AK$7:$AK$159,MATCH($B101,Pupils!$A$7:$A$159,0)))/SUM(INDEX(Pupils!$AB$7:$AM$159,MATCH($B101,Pupils!$A$7:$A$159,0),0))","v":4.7911547911547912E-2},{"$f":"SUM(INDEX(Pupils!$AL$7:$AL$159,MATCH($B101,Pupils!$A$7:$A$159,0)))/SUM(INDEX(Pupils!$AB$7:$AM$159,MATCH($B101,Pupils!$A$7:$A$159,0),0))","v":0.17352579852579852},{"$f":"SUM(INDEX(Pupils!$AM$7:$AM$159,MATCH($B101,Pupils!$A$7:$A$159,0)))/SUM(INDEX(Pupils!$AB$7:$AM$159,MATCH($B101,Pupils!$A$7:$A$159,0),0))","v":2.8869778869778869E-2},{"$f":"(SUM(INDEX(Pupils!$BH$7:$BH$159,MATCH($B101,Pupils!$A$7:$A$159,0)),INDEX(Pupils!$BK$7:$BK$159,MATCH($B101,Pupils!$A$7:$A$159,0)),INDEX(Pupils!$BO$7:$BO$159,MATCH($B101,Pupils!$A$7:$A$159,0))))/SUM(INDEX(Pupils!$BH$7:$BS$159,MATCH($B101,Pupils!$A$7:$A$159,0),0))","v":0.48124428179322964},{"$f":"(SUM(INDEX(Pupils!$BL$7:$BL$159,MATCH($B101,Pupils!$A$7:$A$159,0)),INDEX(Pupils!$BM$7:$BM$159,MATCH($B101,Pupils!$A$7:$A$159,0)),INDEX(Pupils!$BP$7:$BP$159,MATCH($B101,Pupils!$A$7:$A$159,0))))/SUM(INDEX(Pupils!$BH$7:$BS$159,MATCH($B101,Pupils!$A$7:$A$159,0),0))","v":0.49771271729185729},{"$f":"(SUM(INDEX(Pupils!$BI$7:$BI$159,MATCH($B101,Pupils!$A$7:$A$159,0)),INDEX(Pupils!$BJ$7:$BJ$159,MATCH($B101,Pupils!$A$7:$A$159,0))))/SUM(INDEX(Pupils!$BH$7:$BS$159,MATCH($B101,Pupils!$A$7:$A$159,0),0))","v":2.1043000914913082E-2},{"$f":"(SUM(INDEX(Pupils!$BQ$7:$BQ$159,MATCH($B101,Pupils!$A$7:$A$159,0)),INDEX(Pupils!$BR$7:$BR$159,MATCH($B101,Pupils!$A$7:$A$159,0)),INDEX(Pupils!$BN$7:$BN$159,MATCH($B101,Pupils!$A$7:$A$159,0)),INDEX(Pupils!$BS$7:$BS$159,MATCH($B101,Pupils!$A$7:$A$159,0))))/SUM(INDEX(Pupils!$BH$7:$BS$159,MATCH($B101,Pupils!$A$7:$A$159,0),0))","v":0},{"$f":"IFERROR((VLOOKUP(B101,Funding,Funding!$C$2,FALSE)), \"x\")","v":22954723.280000001},{"$f":"IFERROR((AA101/VLOOKUP(B101,Funding,Funding!$D$2,FALSE)), \"x\")","v":0.11103805987669095},{"$f":"IFERROR((AA101/(VLOOKUP(B101,Pupils,Pupils!$M$3,FALSE)+VLOOKUP(B101,Pupils,Pupils!$P$3,FALSE))), \"x\")","v":3041.1663063063065},{"$f":"IFERROR((VLOOKUP(B101,Funding,Funding!$E$2,FALSE)), \"x\")","v":23534525.714541759},{"$f":"IFERROR((AD101/VLOOKUP(B101,Funding,Funding!$F$2,FALSE)), \"x\")","v":0.11049148751436806},{"$f":"IFERROR((AD101/(VLOOKUP(B101,Pupils,Pupils!$R$3,FALSE)+VLOOKUP(B101,Pupils,Pupils!$U$3,FALSE))), \"x\")","v":3169.633092867577},{"$f":"IFERROR((VLOOKUP(B101,Funding,Funding!$G$2,FALSE)), \"x\")","v":24900485.547118459},{"$f":"IFERROR((AG101/VLOOKUP(B101,Funding,Funding!$H$2,FALSE)), \"x\")","v":0.11453342817302353},{"$f":"IFERROR((AG101/(VLOOKUP(B101,Pupils,Pupils!$W$3,FALSE)+VLOOKUP(B101,Pupils,Pupils!$Z$3,FALSE))), \"x\")","v":3349.5406977560478},{"$f":"IFERROR((VLOOKUP(B101,Funding,Funding!$I$2,FALSE)), \"x\")","v":25530732.682988059},{"$f":"IFERROR((AJ101/VLOOKUP(B101,Funding,Funding!$J$2,FALSE)), \"x\")","v":0.118025170042845},null,{"$f":"IFERROR((VLOOKUP($B101,Funding,Funding!$EC$2,FALSE)), \"x\")","v":14328313},{"$f":"IFERROR((AM101/VLOOKUP($B101,Funding,Funding!$EU$2,FALSE)), \"x\")","v":7.0624028475648692E-2},{"$f":"IFERROR((AM101/(VLOOKUP($B101,Pupils,Pupils!$D$3,FALSE)+VLOOKUP($B101,Pupils,Pupils!$E$3,FALSE))), \"x\")","v":1868.5854199269693},{"$f":"IFERROR((VLOOKUP($B101,Funding,Funding!$DA$2,FALSE)), \"x\")","v":20559697},{"$f":"IFERROR((AP101/VLOOKUP($B101,Funding,Funding!$DT$2,FALSE)), \"x\")","v":0.10069860490802046},{"$f":"IFERROR((AP101/(VLOOKUP($B101,Pupils,Pupils!$G$3,FALSE)+VLOOKUP($B101,Pupils,Pupils!$H$3,FALSE))), \"x\")","v":2475.580614087899},{"$f":"IFERROR((VLOOKUP($B101,Funding,Funding!$CE$2,FALSE)), \"x\")","v":20583244},{"$f":"IFERROR((AS101/VLOOKUP($B101,Funding,Funding!$CR$2,FALSE)), \"x\")","v":0.10044263396811316},{"$f":"IFERROR((AS101/(VLOOKUP($B101,Pupils,Pupils!$J$3,FALSE)+VLOOKUP($B101,Pupils,Pupils!$K$3,FALSE))), \"x\")","v":2627.0892150606255},{"$f":"IFERROR((VLOOKUP($B101,Funding,Funding!$BM$2,FALSE)), \"x\")","v":18631928.280000001},{"$f":"IFERROR((AV101/VLOOKUP($B101,Funding,Funding!$BY$2,FALSE)), \"x\")","v":0.10372509575136935},{"$f":"IFERROR((AV101/(VLOOKUP($B101,Pupils,Pupils!$M$3,FALSE)+VLOOKUP($B101,Pupils,Pupils!$P$3,FALSE))), \"x\")","v":2468.4589666136726},{"$f":"IFERROR((VLOOKUP($B101,Funding,Funding!$AQ$2,FALSE)), \"x\")","v":22030903},{"$f":"IFERROR((AY101/VLOOKUP($B101,Funding,Funding!$BE$2,FALSE)), \"x\")","v":0.1035847944318708},{"$f":"IFERROR((AY101/(VLOOKUP($B101,Pupils,Pupils!$R$3,FALSE)+VLOOKUP($B101,Pupils,Pupils!$U$3,FALSE))), \"x\")","v":2967.124983164983},{"$f":"IFERROR((VLOOKUP($B101,Funding,Funding!$S$2,FALSE)), \"x\")","v":23101948},{"$f":"IFERROR((BB101/VLOOKUP($B101,Funding,Funding!$AH$2,FALSE)), \"x\")","v":0.10626718260997996},{"$f":"IFERROR((BB101/(VLOOKUP(B101,Pupils,Pupils!$W$3,FALSE)+VLOOKUP(B101,Pupils,Pupils!$Z$3,FALSE))), \"x\")","v":3107.60667204735},{"$f":"IFERROR((VLOOKUP($B101,Funding,Funding!$GX$2,FALSE)), \"x\")","v":22790211},{"$f":"IFERROR((BE101/VLOOKUP($B101,Funding,Funding!$HC$2,FALSE)), \"x\")","v":0.1064671438031148},{"$f":"IFERROR((BE101/(VLOOKUP($B101,Pupils,Pupils!$D$3,FALSE)+VLOOKUP($B101,Pupils,Pupils!$E$3,FALSE))), \"x\")","v":2972.1193270735525},{"$f":"IFERROR((VLOOKUP($B101,Funding,Funding!$GP$2,FALSE)), \"x\")","v":22605586},{"$f":"IFERROR((BH101/VLOOKUP($B101,Funding,Funding!$GU$2,FALSE)), \"x\")","v":0.10827532483300108},{"$f":"IFERROR((BH101/(VLOOKUP($B101,Pupils,Pupils!$G$3,FALSE)+VLOOKUP($B101,Pupils,Pupils!$H$3,FALSE))), \"x\")","v":2721.9248645394341},{"$f":"IFERROR((VLOOKUP($B101,Funding,Funding!$GH$2,FALSE)), \"x\")","v":22848901.780000001},{"$f":"IFERROR((BK101/VLOOKUP($B101,Funding,Funding!$GM$2,FALSE)), \"x\")","v":0.1183033921671108},{"$f":"IFERROR((BK101/(VLOOKUP($B101,Pupils,Pupils!$J$3,FALSE)+VLOOKUP($B101,Pupils,Pupils!$K$3,FALSE))), \"x\")","v":2916.2605973197192},{"$f":"IFERROR((VLOOKUP($B101,Funding,Funding!$FZ$2,FALSE)), \"x\")","v":22267432.109999999},{"$f":"IFERROR((BN101/VLOOKUP($B101,Funding,Funding!$GE$2,FALSE)), \"x\")","v":0.12068678518674952},{"$f":"IFERROR((BN101/(VLOOKUP($B101,Pupils,Pupils!$M$3,FALSE)+VLOOKUP($B101,Pupils,Pupils!$P$3,FALSE))), \"x\")","v":2950.1102424483306},{"$f":"IFERROR((VLOOKUP($B101,Funding,Funding!$FD$2,FALSE)), \"x\")","v":19305101},{"$f":"IFERROR((BQ101/VLOOKUP($B101,Funding,Funding!$FR$2,FALSE)), \"x\")","v":0.11365948412546809},{"$f":"IFERROR((BQ101/(VLOOKUP($B101,Pupils,Pupils!$R$3,FALSE)+VLOOKUP($B101,Pupils,Pupils!$U$3,FALSE))), \"x\")","v":2600.0136026936025},{"$f":"(VLOOKUP(B101,Funding,Funding!$HK$2,FALSE)+VLOOKUP(B101,Funding,Funding!$HL$2,FALSE)+VLOOKUP(B101,Funding,Funding!$HM$2,FALSE))/(VLOOKUP(B101,Funding,Funding!$HN$2,FALSE))","v":0.2941970310391363},{"$f":"IFERROR((VLOOKUP(B101,Other_data,Other!$D$3,FALSE)+VLOOKUP(B101,Other_data,Other!$E$3,FALSE)+VLOOKUP(B101,Other_data,Other!$F$3,FALSE)), \"x\")","v":1730},{"$f":"(VLOOKUP(B101,Other_data,Other!$AK$3,FALSE)+VLOOKUP(B101,Other_data,Other!$AL$3,FALSE))/VLOOKUP(B101,Other_data,Other!$AJ$3,FALSE)","v":4.1994646574799246E-2},{"$f":"(VLOOKUP(B101,Other_data,Other!$AR$3,FALSE)+VLOOKUP(B101,Other_data,Other!$AS$3,FALSE))/VLOOKUP(B101,Other_data,Other!$AQ$3,FALSE)","v":5.8783451303985768E-2},{"$f":"VLOOKUP(B101,Other_data,Other!$AP$3,FALSE)/VLOOKUP(B101,Other_data,Other!$AJ$3,FALSE)","v":8.3275503122831364E-3},{"$f":"VLOOKUP(B101,Other_data,Other!$AW$3,FALSE)/VLOOKUP(B101,Other_data,Other!$AQ$3,FALSE)","v":1.279382262765434E-2}]
[96,931,"Oxfordshire",{"$f":"IFERROR((VLOOKUP($B102,Pupils,Pupils!$D$3,FALSE)/VLOOKUP($B102,Pupils,Pupils!$C$3,FALSE)), \"x\")","v":2.2254489420968412E-2},{"$f":"IFERROR((VLOOKUP($B102,Pupils,Pupils!$G$3,FALSE)/VLOOKUP($B102,Pupils,Pupils!$F$3,FALSE)),\"x\")","v":2.0977582779186946E-2},{"$f":"IFERROR((VLOOKUP($B102,Pupils,Pupils!$J$3,FALSE)/VLOOKUP($B102,Pupils,Pupils!$I$3,FALSE)), \"x\")","v":2.0848715656938563E-2},{"$f":"IFERROR((VLOOKUP($B102,Pupils,Pupils!$M$3,FALSE)/VLOOKUP($B102,Pupils,Pupils!$L$3,FALSE)), \"x\")","v":2.211146178123316E-2},{"$f":"IFERROR((VLOOKUP($B102,Pupils,Pupils!$R$3,FALSE)/VLOOKUP($B102,Pupils,Pupils!$Q$3,FALSE)), \"x\")","v":2.1422693868285901E-2},{"$f":"IFERROR((VLOOKUP($B102,Pupils,Pupils!$W$3,FALSE)/VLOOKUP($B102,Pupils,Pupils!$V$3,FALSE)), \"x\")","v":2.1250867095371117E-2},{"$f":"IFERROR(((VLOOKUP($B102,Pupils,Pupils!$D$3,FALSE)+VLOOKUP($B102,Pupils,Pupils!$E$3,FALSE))/VLOOKUP($B102,Pupils,Pupils!$C$3,FALSE)), \"x\")","v":0.18208577806752405},{"$f":"IFERROR(((VLOOKUP($B102,Pupils,Pupils!$G$3,FALSE)+VLOOKUP($B102,Pupils,Pupils!$H$3,FALSE))/VLOOKUP($B102,Pupils,Pupils!$F$3,FALSE)), \"x\")","v":0.18178613050759482},{"$f":"IFERROR(((VLOOKUP($B102,Pupils,Pupils!$J$3,FALSE)+VLOOKUP($B102,Pupils,Pupils!$K$3,FALSE))/VLOOKUP($B102,Pupils,Pupils!$I$3,FALSE)), \"x\")","v":0.18317918625888938},{"$f":"IFERROR(((VLOOKUP($B102,Pupils,Pupils!$M$3,FALSE)+VLOOKUP($B102,Pupils,Pupils!$P$3,FALSE))/VLOOKUP($B102,Pupils,Pupils!$L$3,FALSE)), \"x\")","v":0.18334808713724887},{"$f":"IFERROR(((VLOOKUP($B102,Pupils,Pupils!$R$3,FALSE)+VLOOKUP($B102,Pupils,Pupils!$U$3,FALSE))/VLOOKUP($B102,Pupils,Pupils!$Q$3,FALSE)), \"x\")","v":0.18037624492807083},{"$f":"IFERROR(((VLOOKUP($B102,Pupils,Pupils!$W$3,FALSE)+VLOOKUP($B102,Pupils,Pupils!$Z$3,FALSE))/VLOOKUP($B102,Pupils,Pupils!$V$3,FALSE)), \"x\")","v":0.17776861208496597},{"$f":"(SUM(INDEX(Pupils!$AB$7:$AB$159,MATCH($B102,Pupils!$A$7:$A$159,0)),INDEX(Pupils!$AC$7:$AC$159,MATCH($B102,Pupils!$A$7:$A$159,0)),INDEX(Pupils!$AD$7:$AD$159,MATCH($B102,Pupils!$A$7:$A$159,0)),INDEX(Pupils!$AE$7:$AE$159,MATCH($B102,Pupils!$A$7:$A$159,0))))/SUM(INDEX(Pupils!$AB$7:$AM$159,MATCH($B102,Pupils!$A$7:$A$159,0),0))","v":0.45286195286195285},{"$f":"SUM(INDEX(Pupils!$AF$7:$AF$159,MATCH($B102,Pupils!$A$7:$A$159,0)))/SUM(INDEX(Pupils!$AB$7:$AM$159,MATCH($B102,Pupils!$A$7:$A$159,0),0))","v":0.23581973581973581},{"$f":"SUM(INDEX(Pupils!$AG$7:$AG$159,MATCH($B102,Pupils!$A$7:$A$159,0)))/SUM(INDEX(Pupils!$AB$7:$AM$159,MATCH($B102,Pupils!$A$7:$A$159,0),0))","v":0.13571613571613572},{"$f":"(SUM(INDEX(Pupils!$AH$7:$AH$159,MATCH($B102,Pupils!$A$7:$A$159,0)),INDEX(Pupils!$AI$7:$AI$159,MATCH($B102,Pupils!$A$7:$A$159,0)),INDEX(Pupils!$AJ$7:$AJ$159,MATCH($B102,Pupils!$A$7:$A$159,0))))/SUM(INDEX(Pupils!$AB$7:$AM$159,MATCH($B102,Pupils!$A$7:$A$159,0),0))","v":1.8777518777518779E-2},{"$f":"SUM(INDEX(Pupils!$AK$7:$AK$159,MATCH($B102,Pupils!$A$7:$A$159,0)))/SUM(INDEX(Pupils!$AB$7:$AM$159,MATCH($B102,Pupils!$A$7:$A$159,0),0))","v":2.9396529396529397E-2},{"$f":"SUM(INDEX(Pupils!$AL$7:$AL$159,MATCH($B102,Pupils!$A$7:$A$159,0)))/SUM(INDEX(Pupils!$AB$7:$AM$159,MATCH($B102,Pupils!$A$7:$A$159,0),0))","v":0.11978761978761979},{"$f":"SUM(INDEX(Pupils!$AM$7:$AM$159,MATCH($B102,Pupils!$A$7:$A$159,0)))/SUM(INDEX(Pupils!$AB$7:$AM$159,MATCH($B102,Pupils!$A$7:$A$159,0),0))","v":7.6405076405076404E-3},{"$f":"(SUM(INDEX(Pupils!$BH$7:$BH$159,MATCH($B102,Pupils!$A$7:$A$159,0)),INDEX(Pupils!$BK$7:$BK$159,MATCH($B102,Pupils!$A$7:$A$159,0)),INDEX(Pupils!$BO$7:$BO$159,MATCH($B102,Pupils!$A$7:$A$159,0))))/SUM(INDEX(Pupils!$BH$7:$BS$159,MATCH($B102,Pupils!$A$7:$A$159,0),0))","v":0.4637342068320075},{"$f":"(SUM(INDEX(Pupils!$BL$7:$BL$159,MATCH($B102,Pupils!$A$7:$A$159,0)),INDEX(Pupils!$BM$7:$BM$159,MATCH($B102,Pupils!$A$7:$A$159,0)),INDEX(Pupils!$BP$7:$BP$159,MATCH($B102,Pupils!$A$7:$A$159,0))))/SUM(INDEX(Pupils!$BH$7:$BS$159,MATCH($B102,Pupils!$A$7:$A$159,0),0))","v":0.45905474964904069},{"$f":"(SUM(INDEX(Pupils!$BI$7:$BI$159,MATCH($B102,Pupils!$A$7:$A$159,0)),INDEX(Pupils!$BJ$7:$BJ$159,MATCH($B102,Pupils!$A$7:$A$159,0))))/SUM(INDEX(Pupils!$BH$7:$BS$159,MATCH($B102,Pupils!$A$7:$A$159,0),0))","v":5.5217594759007955E-2},{"$f":"(SUM(INDEX(Pupils!$BQ$7:$BQ$159,MATCH($B102,Pupils!$A$7:$A$159,0)),INDEX(Pupils!$BR$7:$BR$159,MATCH($B102,Pupils!$A$7:$A$159,0)),INDEX(Pupils!$BN$7:$BN$159,MATCH($B102,Pupils!$A$7:$A$159,0)),INDEX(Pupils!$BS$7:$BS$159,MATCH($B102,Pupils!$A$7:$A$159,0))))/SUM(INDEX(Pupils!$BH$7:$BS$159,MATCH($B102,Pupils!$A$7:$A$159,0),0))","v":2.1993448759943846E-2},{"$f":"IFERROR((VLOOKUP(B102,Funding,Funding!$C$2,FALSE)), \"x\")","v":43331295.25},{"$f":"IFERROR((AA102/VLOOKUP(B102,Funding,Funding!$D$2,FALSE)), \"x\")","v":0.10861359450538877},{"$f":"IFERROR((AA102/(VLOOKUP(B102,Pupils,Pupils!$M$3,FALSE)+VLOOKUP(B102,Pupils,Pupils!$P$3,FALSE))), \"x\")","v":2274.0118210443452},{"$f":"IFERROR((VLOOKUP(B102,Funding,Funding!$E$2,FALSE)), \"x\")","v":46697753.968232192},{"$f":"IFERROR((AD102/VLOOKUP(B102,Funding,Funding!$F$2,FALSE)), \"x\")","v":0.11353241890467322},{"$f":"IFERROR((AD102/(VLOOKUP(B102,Pupils,Pupils!$R$3,FALSE)+VLOOKUP(B102,Pupils,Pupils!$U$3,FALSE))), \"x\")","v":2448.6263944330235},{"$f":"IFERROR((VLOOKUP(B102,Funding,Funding!$G$2,FALSE)), \"x\")","v":49159170.105965316},{"$f":"IFERROR((AG102/VLOOKUP(B102,Funding,Funding!$H$2,FALSE)), \"x\")","v":0.11769249779725605},{"$f":"IFERROR((AG102/(VLOOKUP(B102,Pupils,Pupils!$W$3,FALSE)+VLOOKUP(B102,Pupils,Pupils!$Z$3,FALSE))), \"x\")","v":2592.2363481314765},{"$f":"IFERROR((VLOOKUP(B102,Funding,Funding!$I$2,FALSE)), \"x\")","v":49924288.845917493},{"$f":"IFERROR((AJ102/VLOOKUP(B102,Funding,Funding!$J$2,FALSE)), \"x\")","v":0.11705413017851447},null,{"$f":"IFERROR((VLOOKUP($B102,Funding,Funding!$EC$2,FALSE)), \"x\")","v":34192269.189999998},{"$f":"IFERROR((AM102/VLOOKUP($B102,Funding,Funding!$EU$2,FALSE)), \"x\")","v":8.5472496569137565E-2},{"$f":"IFERROR((AM102/(VLOOKUP($B102,Pupils,Pupils!$D$3,FALSE)+VLOOKUP($B102,Pupils,Pupils!$E$3,FALSE))), \"x\")","v":1854.8480628187044},{"$f":"IFERROR((VLOOKUP($B102,Funding,Funding!$DA$2,FALSE)), \"x\")","v":34821542.382810004},{"$f":"IFERROR((AP102/VLOOKUP($B102,Funding,Funding!$DT$2,FALSE)), \"x\")","v":8.2273463289253626E-2},{"$f":"IFERROR((AP102/(VLOOKUP($B102,Pupils,Pupils!$G$3,FALSE)+VLOOKUP($B102,Pupils,Pupils!$H$3,FALSE))), \"x\")","v":1875.9585380244589},{"$f":"IFERROR((VLOOKUP($B102,Funding,Funding!$CE$2,FALSE)), \"x\")","v":35627412},{"$f":"IFERROR((AS102/VLOOKUP($B102,Funding,Funding!$CR$2,FALSE)), \"x\")","v":8.4632989618095941E-2},{"$f":"IFERROR((AS102/(VLOOKUP($B102,Pupils,Pupils!$J$3,FALSE)+VLOOKUP($B102,Pupils,Pupils!$K$3,FALSE))), \"x\")","v":1889.5471758154335},{"$f":"IFERROR((VLOOKUP($B102,Funding,Funding!$BM$2,FALSE)), \"x\")","v":38406009.289999999},{"$f":"IFERROR((AV102/VLOOKUP($B102,Funding,Funding!$BY$2,FALSE)), \"x\")","v":9.6370519908886718E-2},{"$f":"IFERROR((AV102/(VLOOKUP($B102,Pupils,Pupils!$M$3,FALSE)+VLOOKUP($B102,Pupils,Pupils!$P$3,FALSE))), \"x\")","v":2015.5344681186041},{"$f":"IFERROR((VLOOKUP($B102,Funding,Funding!$AQ$2,FALSE)), \"x\")","v":45414620},{"$f":"IFERROR((AY102/VLOOKUP($B102,Funding,Funding!$BE$2,FALSE)), \"x\")","v":0.10776484155143327},{"$f":"IFERROR((AY102/(VLOOKUP($B102,Pupils,Pupils!$R$3,FALSE)+VLOOKUP($B102,Pupils,Pupils!$U$3,FALSE))), \"x\")","v":2381.3444496880079},{"$f":"IFERROR((VLOOKUP($B102,Funding,Funding!$S$2,FALSE)), \"x\")","v":48027456},{"$f":"IFERROR((BB102/VLOOKUP($B102,Funding,Funding!$AH$2,FALSE)), \"x\")","v":0.11385948700167703},{"$f":"IFERROR((BB102/(VLOOKUP(B102,Pupils,Pupils!$W$3,FALSE)+VLOOKUP(B102,Pupils,Pupils!$Z$3,FALSE))), \"x\")","v":2532.5593756591438},{"$f":"IFERROR((VLOOKUP($B102,Funding,Funding!$GX$2,FALSE)), \"x\")","v":43609829.450000003},{"$f":"IFERROR((BE102/VLOOKUP($B102,Funding,Funding!$HC$2,FALSE)), \"x\")","v":9.6464753904973985E-2},{"$f":"IFERROR((BE102/(VLOOKUP($B102,Pupils,Pupils!$D$3,FALSE)+VLOOKUP($B102,Pupils,Pupils!$E$3,FALSE))), \"x\")","v":2365.7279727677119},{"$f":"IFERROR((VLOOKUP($B102,Funding,Funding!$GP$2,FALSE)), \"x\")","v":44812041.789999999},{"$f":"IFERROR((BH102/VLOOKUP($B102,Funding,Funding!$GU$2,FALSE)), \"x\")","v":9.9674491622253572E-2},{"$f":"IFERROR((BH102/(VLOOKUP($B102,Pupils,Pupils!$G$3,FALSE)+VLOOKUP($B102,Pupils,Pupils!$H$3,FALSE))), \"x\")","v":2414.1817578924683},{"$f":"IFERROR((VLOOKUP($B102,Funding,Funding!$GH$2,FALSE)), \"x\")","v":45755559.950000003},{"$f":"IFERROR((BK102/VLOOKUP($B102,Funding,Funding!$GM$2,FALSE)), \"x\")","v":0.10389292140278392},{"$f":"IFERROR((BK102/(VLOOKUP($B102,Pupils,Pupils!$J$3,FALSE)+VLOOKUP($B102,Pupils,Pupils!$K$3,FALSE))), \"x\")","v":2426.7069716255637},{"$f":"IFERROR((VLOOKUP($B102,Funding,Funding!$FZ$2,FALSE)), \"x\")","v":42192958.659999996},{"$f":"IFERROR((BN102/VLOOKUP($B102,Funding,Funding!$GE$2,FALSE)), \"x\")","v":0.11406997402924669},{"$f":"IFERROR((BN102/(VLOOKUP($B102,Pupils,Pupils!$M$3,FALSE)+VLOOKUP($B102,Pupils,Pupils!$P$3,FALSE))), \"x\")","v":2214.2722991340852},{"$f":"IFERROR((VLOOKUP($B102,Funding,Funding!$FD$2,FALSE)), \"x\")","v":43735178.269999996},{"$f":"IFERROR((BQ102/VLOOKUP($B102,Funding,Funding!$FR$2,FALSE)), \"x\")","v":0.14656300489585902},{"$f":"IFERROR((BQ102/(VLOOKUP($B102,Pupils,Pupils!$R$3,FALSE)+VLOOKUP($B102,Pupils,Pupils!$U$3,FALSE))), \"x\")","v":2293.2818556971315},{"$f":"(VLOOKUP(B102,Funding,Funding!$HK$2,FALSE)+VLOOKUP(B102,Funding,Funding!$HL$2,FALSE)+VLOOKUP(B102,Funding,Funding!$HM$2,FALSE))/(VLOOKUP(B102,Funding,Funding!$HN$2,FALSE))","v":0.27391848291301768},{"$f":"IFERROR((VLOOKUP(B102,Other_data,Other!$D$3,FALSE)+VLOOKUP(B102,Other_data,Other!$E$3,FALSE)+VLOOKUP(B102,Other_data,Other!$F$3,FALSE)), \"x\")","v":2940},{"$f":"(VLOOKUP(B102,Other_data,Other!$AK$3,FALSE)+VLOOKUP(B102,Other_data,Other!$AL$3,FALSE))/VLOOKUP(B102,Other_data,Other!$AJ$3,FALSE)","v":2.8473547774045396E-2},{"$f":"(VLOOKUP(B102,Other_data,Other!$AR$3,FALSE)+VLOOKUP(B102,Other_data,Other!$AS$3,FALSE))/VLOOKUP(B102,Other_data,Other!$AQ$3,FALSE)","v":4.4879860066897842E-2},{"$f":"VLOOKUP(B102,Other_data,Other!$AP$3,FALSE)/VLOOKUP(B102,Other_data,Other!$AJ$3,FALSE)","v":4.1343324636787223E-3},{"$f":"VLOOKUP(B102,Other_data,Other!$AW$3,FALSE)/VLOOKUP(B102,Other_data,Other!$AQ$3,FALSE)","v":8.8378801362506525E-3}]
[97,874,"Peterborough",{"$f":"IFERROR((VLOOKUP($B103,Pupils,Pupils!$D$3,FALSE)/VLOOKUP($B103,Pupils,Pupils!$C$3,FALSE)), \"x\")","v":3.926824365074047E-2},{"$f":"IFERROR((VLOOKUP($B103,Pupils,Pupils!$G$3,FALSE)/VLOOKUP($B103,Pupils,Pupils!$F$3,FALSE)),\"x\")","v":3.7762098777700488E-2},{"$f":"IFERROR((VLOOKUP($B103,Pupils,Pupils!$J$3,FALSE)/VLOOKUP($B103,Pupils,Pupils!$I$3,FALSE)), \"x\")","v":3.9293627003779488E-2},{"$f":"IFERROR((VLOOKUP($B103,Pupils,Pupils!$M$3,FALSE)/VLOOKUP($B103,Pupils,Pupils!$L$3,FALSE)), \"x\")","v":3.9602393238152518E-2},{"$f":"IFERROR((VLOOKUP($B103,Pupils,Pupils!$R$3,FALSE)/VLOOKUP($B103,Pupils,Pupils!$Q$3,FALSE)), \"x\")","v":3.8191690561893719E-2},{"$f":"IFERROR((VLOOKUP($B103,Pupils,Pupils!$W$3,FALSE)/VLOOKUP($B103,Pupils,Pupils!$V$3,FALSE)), \"x\")","v":3.7748148148148149E-2},{"$f":"IFERROR(((VLOOKUP($B103,Pupils,Pupils!$D$3,FALSE)+VLOOKUP($B103,Pupils,Pupils!$E$3,FALSE))/VLOOKUP($B103,Pupils,Pupils!$C$3,FALSE)), \"x\")","v":0.2518595456677612},{"$f":"IFERROR(((VLOOKUP($B103,Pupils,Pupils!$G$3,FALSE)+VLOOKUP($B103,Pupils,Pupils!$H$3,FALSE))/VLOOKUP($B103,Pupils,Pupils!$F$3,FALSE)), \"x\")","v":0.25333730829109941},{"$f":"IFERROR(((VLOOKUP($B103,Pupils,Pupils!$J$3,FALSE)+VLOOKUP($B103,Pupils,Pupils!$K$3,FALSE))/VLOOKUP($B103,Pupils,Pupils!$I$3,FALSE)), \"x\")","v":0.24534080542160824},{"$f":"IFERROR(((VLOOKUP($B103,Pupils,Pupils!$M$3,FALSE)+VLOOKUP($B103,Pupils,Pupils!$P$3,FALSE))/VLOOKUP($B103,Pupils,Pupils!$L$3,FALSE)), \"x\")","v":0.24062173541422646},{"$f":"IFERROR(((VLOOKUP($B103,Pupils,Pupils!$R$3,FALSE)+VLOOKUP($B103,Pupils,Pupils!$U$3,FALSE))/VLOOKUP($B103,Pupils,Pupils!$Q$3,FALSE)), \"x\")","v":0.22622170703434813},{"$f":"IFERROR(((VLOOKUP($B103,Pupils,Pupils!$W$3,FALSE)+VLOOKUP($B103,Pupils,Pupils!$Z$3,FALSE))/VLOOKUP($B103,Pupils,Pupils!$V$3,FALSE)), \"x\")","v":0.19848888888888888},{"$f":"(SUM(INDEX(Pupils!$AB$7:$AB$159,MATCH($B103,Pupils!$A$7:$A$159,0)),INDEX(Pupils!$AC$7:$AC$159,MATCH($B103,Pupils!$A$7:$A$159,0)),INDEX(Pupils!$AD$7:$AD$159,MATCH($B103,Pupils!$A$7:$A$159,0)),INDEX(Pupils!$AE$7:$AE$159,MATCH($B103,Pupils!$A$7:$A$159,0))))/SUM(INDEX(Pupils!$AB$7:$AM$159,MATCH($B103,Pupils!$A$7:$A$159,0),0))","v":0.42795165788658196},{"$f":"SUM(INDEX(Pupils!$AF$7:$AF$159,MATCH($B103,Pupils!$A$7:$A$159,0)))/SUM(INDEX(Pupils!$AB$7:$AM$159,MATCH($B103,Pupils!$A$7:$A$159,0),0))","v":0.19305856832971802},{"$f":"SUM(INDEX(Pupils!$AG$7:$AG$159,MATCH($B103,Pupils!$A$7:$A$159,0)))/SUM(INDEX(Pupils!$AB$7:$AM$159,MATCH($B103,Pupils!$A$7:$A$159,0),0))","v":0.11651688875116208},{"$f":"(SUM(INDEX(Pupils!$AH$7:$AH$159,MATCH($B103,Pupils!$A$7:$A$159,0)),INDEX(Pupils!$AI$7:$AI$159,MATCH($B103,Pupils!$A$7:$A$159,0)),INDEX(Pupils!$AJ$7:$AJ$159,MATCH($B103,Pupils!$A$7:$A$159,0))))/SUM(INDEX(Pupils!$AB$7:$AM$159,MATCH($B103,Pupils!$A$7:$A$159,0),0))","v":4.58630306786489E-2},{"$f":"SUM(INDEX(Pupils!$AK$7:$AK$159,MATCH($B103,Pupils!$A$7:$A$159,0)))/SUM(INDEX(Pupils!$AB$7:$AM$159,MATCH($B103,Pupils!$A$7:$A$159,0),0))","v":3.6566470405949798E-2},{"$f":"SUM(INDEX(Pupils!$AL$7:$AL$159,MATCH($B103,Pupils!$A$7:$A$159,0)))/SUM(INDEX(Pupils!$AB$7:$AM$159,MATCH($B103,Pupils!$A$7:$A$159,0),0))","v":0.11744654477843199},{"$f":"SUM(INDEX(Pupils!$AM$7:$AM$159,MATCH($B103,Pupils!$A$7:$A$159,0)))/SUM(INDEX(Pupils!$AB$7:$AM$159,MATCH($B103,Pupils!$A$7:$A$159,0),0))","v":6.2596839169507285E-2},{"$f":"(SUM(INDEX(Pupils!$BH$7:$BH$159,MATCH($B103,Pupils!$A$7:$A$159,0)),INDEX(Pupils!$BK$7:$BK$159,MATCH($B103,Pupils!$A$7:$A$159,0)),INDEX(Pupils!$BO$7:$BO$159,MATCH($B103,Pupils!$A$7:$A$159,0))))/SUM(INDEX(Pupils!$BH$7:$BS$159,MATCH($B103,Pupils!$A$7:$A$159,0),0))","v":0.52962962962962967},{"$f":"(SUM(INDEX(Pupils!$BL$7:$BL$159,MATCH($B103,Pupils!$A$7:$A$159,0)),INDEX(Pupils!$BM$7:$BM$159,MATCH($B103,Pupils!$A$7:$A$159,0)),INDEX(Pupils!$BP$7:$BP$159,MATCH($B103,Pupils!$A$7:$A$159,0))))/SUM(INDEX(Pupils!$BH$7:$BS$159,MATCH($B103,Pupils!$A$7:$A$159,0),0))","v":0.42814814814814817},{"$f":"(SUM(INDEX(Pupils!$BI$7:$BI$159,MATCH($B103,Pupils!$A$7:$A$159,0)),INDEX(Pupils!$BJ$7:$BJ$159,MATCH($B103,Pupils!$A$7:$A$159,0))))/SUM(INDEX(Pupils!$BH$7:$BS$159,MATCH($B103,Pupils!$A$7:$A$159,0),0))","v":3.3333333333333333E-2},{"$f":"(SUM(INDEX(Pupils!$BQ$7:$BQ$159,MATCH($B103,Pupils!$A$7:$A$159,0)),INDEX(Pupils!$BR$7:$BR$159,MATCH($B103,Pupils!$A$7:$A$159,0)),INDEX(Pupils!$BN$7:$BN$159,MATCH($B103,Pupils!$A$7:$A$159,0)),INDEX(Pupils!$BS$7:$BS$159,MATCH($B103,Pupils!$A$7:$A$159,0))))/SUM(INDEX(Pupils!$BH$7:$BS$159,MATCH($B103,Pupils!$A$7:$A$159,0),0))","v":8.8888888888888889E-3},{"$f":"IFERROR((VLOOKUP(B103,Funding,Funding!$C$2,FALSE)), \"x\")","v":25183283.169999998},{"$f":"IFERROR((AA103/VLOOKUP(B103,Funding,Funding!$D$2,FALSE)), \"x\")","v":0.16877515883150029},{"$f":"IFERROR((AA103/(VLOOKUP(B103,Pupils,Pupils!$M$3,FALSE)+VLOOKUP(B103,Pupils,Pupils!$P$3,FALSE))), \"x\")","v":3313.1539494803314},{"$f":"IFERROR((VLOOKUP(B103,Funding,Funding!$E$2,FALSE)), \"x\")","v":25791690.847050425},{"$f":"IFERROR((AD103/VLOOKUP(B103,Funding,Funding!$F$2,FALSE)), \"x\")","v":0.16300279748009361},{"$f":"IFERROR((AD103/(VLOOKUP(B103,Pupils,Pupils!$R$3,FALSE)+VLOOKUP(B103,Pupils,Pupils!$U$3,FALSE))), \"x\")","v":3477.843965351999},{"$f":"IFERROR((VLOOKUP(B103,Funding,Funding!$G$2,FALSE)), \"x\")","v":26986002.404314645},{"$f":"IFERROR((AG103/VLOOKUP(B103,Funding,Funding!$H$2,FALSE)), \"x\")","v":0.16237983344492196},{"$f":"IFERROR((AG103/(VLOOKUP(B103,Pupils,Pupils!$W$3,FALSE)+VLOOKUP(B103,Pupils,Pupils!$Z$3,FALSE))), \"x\")","v":4028.3628010620459},{"$f":"IFERROR((VLOOKUP(B103,Funding,Funding!$I$2,FALSE)), \"x\")","v":27218142.200168192},{"$f":"IFERROR((AJ103/VLOOKUP(B103,Funding,Funding!$J$2,FALSE)), \"x\")","v":0.15344019370281867},null,{"$f":"IFERROR((VLOOKUP($B103,Funding,Funding!$EC$2,FALSE)), \"x\")","v":12277731.840000002},{"$f":"IFERROR((AM103/VLOOKUP($B103,Funding,Funding!$EU$2,FALSE)), \"x\")","v":8.6159969474199252E-2},{"$f":"IFERROR((AM103/(VLOOKUP($B103,Pupils,Pupils!$D$3,FALSE)+VLOOKUP($B103,Pupils,Pupils!$E$3,FALSE))), \"x\")","v":1633.328700279367},{"$f":"IFERROR((VLOOKUP($B103,Funding,Funding!$DA$2,FALSE)), \"x\")","v":13455688.514599999},{"$f":"IFERROR((AP103/VLOOKUP($B103,Funding,Funding!$DT$2,FALSE)), \"x\")","v":9.1266034769523066E-2},{"$f":"IFERROR((AP103/(VLOOKUP($B103,Pupils,Pupils!$G$3,FALSE)+VLOOKUP($B103,Pupils,Pupils!$H$3,FALSE))), \"x\")","v":1759.3734982479079},{"$f":"IFERROR((VLOOKUP($B103,Funding,Funding!$CE$2,FALSE)), \"x\")","v":15642821.812640002},{"$f":"IFERROR((AS103/VLOOKUP($B103,Funding,Funding!$CR$2,FALSE)), \"x\")","v":0.11063335517237043},{"$f":"IFERROR((AS103/(VLOOKUP($B103,Pupils,Pupils!$J$3,FALSE)+VLOOKUP($B103,Pupils,Pupils!$K$3,FALSE))), \"x\")","v":2077.3999751181941},{"$f":"IFERROR((VLOOKUP($B103,Funding,Funding!$BM$2,FALSE)), \"x\")","v":17378535.850000001},{"$f":"IFERROR((AV103/VLOOKUP($B103,Funding,Funding!$BY$2,FALSE)), \"x\")","v":0.13604914797017936},{"$f":"IFERROR((AV103/(VLOOKUP($B103,Pupils,Pupils!$M$3,FALSE)+VLOOKUP($B103,Pupils,Pupils!$P$3,FALSE))), \"x\")","v":2286.3486186028158},{"$f":"IFERROR((VLOOKUP($B103,Funding,Funding!$AQ$2,FALSE)), \"x\")","v":21842752},{"$f":"IFERROR((AY103/VLOOKUP($B103,Funding,Funding!$BE$2,FALSE)), \"x\")","v":0.13597618205462503},{"$f":"IFERROR((AY103/(VLOOKUP($B103,Pupils,Pupils!$R$3,FALSE)+VLOOKUP($B103,Pupils,Pupils!$U$3,FALSE))), \"x\")","v":2945.3549083063645},{"$f":"IFERROR((VLOOKUP($B103,Funding,Funding!$S$2,FALSE)), \"x\")","v":23161644.729999997},{"$f":"IFERROR((BB103/VLOOKUP($B103,Funding,Funding!$AH$2,FALSE)), \"x\")","v":0.13571957019435449},{"$f":"IFERROR((BB103/(VLOOKUP(B103,Pupils,Pupils!$W$3,FALSE)+VLOOKUP(B103,Pupils,Pupils!$Z$3,FALSE))), \"x\")","v":3457.4779414838031},{"$f":"IFERROR((VLOOKUP($B103,Funding,Funding!$GX$2,FALSE)), \"x\")","v":22631667.09},{"$f":"IFERROR((BE103/VLOOKUP($B103,Funding,Funding!$HC$2,FALSE)), \"x\")","v":0.14736595089156423},{"$f":"IFERROR((BE103/(VLOOKUP($B103,Pupils,Pupils!$D$3,FALSE)+VLOOKUP($B103,Pupils,Pupils!$E$3,FALSE))), \"x\")","v":3010.7312877477716},{"$f":"IFERROR((VLOOKUP($B103,Funding,Funding!$GP$2,FALSE)), \"x\")","v":24672940.120000001},{"$f":"IFERROR((BH103/VLOOKUP($B103,Funding,Funding!$GU$2,FALSE)), \"x\")","v":0.14913689908314059},{"$f":"IFERROR((BH103/(VLOOKUP($B103,Pupils,Pupils!$G$3,FALSE)+VLOOKUP($B103,Pupils,Pupils!$H$3,FALSE))), \"x\")","v":3226.0643462343096},{"$f":"IFERROR((VLOOKUP($B103,Funding,Funding!$GH$2,FALSE)), \"x\")","v":25131644.440000001},{"$f":"IFERROR((BK103/VLOOKUP($B103,Funding,Funding!$GM$2,FALSE)), \"x\")","v":0.16561136798792528},{"$f":"IFERROR((BK103/(VLOOKUP($B103,Pupils,Pupils!$J$3,FALSE)+VLOOKUP($B103,Pupils,Pupils!$K$3,FALSE))), \"x\")","v":3337.5357822045153},{"$f":"IFERROR((VLOOKUP($B103,Funding,Funding!$FZ$2,FALSE)), \"x\")","v":25690356.140000001},{"$f":"IFERROR((BN103/VLOOKUP($B103,Funding,Funding!$GE$2,FALSE)), \"x\")","v":0.19080175217853432},{"$f":"IFERROR((BN103/(VLOOKUP($B103,Pupils,Pupils!$M$3,FALSE)+VLOOKUP($B103,Pupils,Pupils!$P$3,FALSE))), \"x\")","v":3379.8652993027235},{"$f":"IFERROR((VLOOKUP($B103,Funding,Funding!$FD$2,FALSE)), \"x\")","v":25041421},{"$f":"IFERROR((BQ103/VLOOKUP($B103,Funding,Funding!$FR$2,FALSE)), \"x\")","v":0.19707613379280947},{"$f":"IFERROR((BQ103/(VLOOKUP($B103,Pupils,Pupils!$R$3,FALSE)+VLOOKUP($B103,Pupils,Pupils!$U$3,FALSE))), \"x\")","v":3376.6748921251346},{"$f":"(VLOOKUP(B103,Funding,Funding!$HK$2,FALSE)+VLOOKUP(B103,Funding,Funding!$HL$2,FALSE)+VLOOKUP(B103,Funding,Funding!$HM$2,FALSE))/(VLOOKUP(B103,Funding,Funding!$HN$2,FALSE))","v":0.18457300275482094},{"$f":"IFERROR((VLOOKUP(B103,Other_data,Other!$D$3,FALSE)+VLOOKUP(B103,Other_data,Other!$E$3,FALSE)+VLOOKUP(B103,Other_data,Other!$F$3,FALSE)), \"x\")","v":1570},{"$f":"(VLOOKUP(B103,Other_data,Other!$AK$3,FALSE)+VLOOKUP(B103,Other_data,Other!$AL$3,FALSE))/VLOOKUP(B103,Other_data,Other!$AJ$3,FALSE)","v":4.3733864989903636E-2},{"$f":"(VLOOKUP(B103,Other_data,Other!$AR$3,FALSE)+VLOOKUP(B103,Other_data,Other!$AS$3,FALSE))/VLOOKUP(B103,Other_data,Other!$AQ$3,FALSE)","v":5.9809632050007104E-2},{"$f":"VLOOKUP(B103,Other_data,Other!$AP$3,FALSE)/VLOOKUP(B103,Other_data,Other!$AJ$3,FALSE)","v":8.5371776193032232E-3},{"$f":"VLOOKUP(B103,Other_data,Other!$AW$3,FALSE)/VLOOKUP(B103,Other_data,Other!$AQ$3,FALSE)","v":1.3685656106454515E-2}]
[98,879,"Plymouth",{"$f":"IFERROR((VLOOKUP($B104,Pupils,Pupils!$D$3,FALSE)/VLOOKUP($B104,Pupils,Pupils!$C$3,FALSE)), \"x\")","v":3.2724544701986755E-2},{"$f":"IFERROR((VLOOKUP($B104,Pupils,Pupils!$G$3,FALSE)/VLOOKUP($B104,Pupils,Pupils!$F$3,FALSE)),\"x\")","v":3.3668820304254936E-2},{"$f":"IFERROR((VLOOKUP($B104,Pupils,Pupils!$J$3,FALSE)/VLOOKUP($B104,Pupils,Pupils!$I$3,FALSE)), \"x\")","v":3.4975293390982085E-2},{"$f":"IFERROR((VLOOKUP($B104,Pupils,Pupils!$M$3,FALSE)/VLOOKUP($B104,Pupils,Pupils!$L$3,FALSE)), \"x\")","v":3.4859118588089585E-2},{"$f":"IFERROR((VLOOKUP($B104,Pupils,Pupils!$R$3,FALSE)/VLOOKUP($B104,Pupils,Pupils!$Q$3,FALSE)), \"x\")","v":3.6241196730581404E-2},{"$f":"IFERROR((VLOOKUP($B104,Pupils,Pupils!$W$3,FALSE)/VLOOKUP($B104,Pupils,Pupils!$V$3,FALSE)), \"x\")","v":3.7773461459824166E-2},{"$f":"IFERROR(((VLOOKUP($B104,Pupils,Pupils!$D$3,FALSE)+VLOOKUP($B104,Pupils,Pupils!$E$3,FALSE))/VLOOKUP($B104,Pupils,Pupils!$C$3,FALSE)), \"x\")","v":0.22436361754966888},{"$f":"IFERROR(((VLOOKUP($B104,Pupils,Pupils!$G$3,FALSE)+VLOOKUP($B104,Pupils,Pupils!$H$3,FALSE))/VLOOKUP($B104,Pupils,Pupils!$F$3,FALSE)), \"x\")","v":0.23153749131251769},{"$f":"IFERROR(((VLOOKUP($B104,Pupils,Pupils!$J$3,FALSE)+VLOOKUP($B104,Pupils,Pupils!$K$3,FALSE))/VLOOKUP($B104,Pupils,Pupils!$I$3,FALSE)), \"x\")","v":0.22606547251389747},{"$f":"IFERROR(((VLOOKUP($B104,Pupils,Pupils!$M$3,FALSE)+VLOOKUP($B104,Pupils,Pupils!$P$3,FALSE))/VLOOKUP($B104,Pupils,Pupils!$L$3,FALSE)), \"x\")","v":0.22187532253070491},{"$f":"IFERROR(((VLOOKUP($B104,Pupils,Pupils!$R$3,FALSE)+VLOOKUP($B104,Pupils,Pupils!$U$3,FALSE))/VLOOKUP($B104,Pupils,Pupils!$Q$3,FALSE)), \"x\")","v":0.20302781062046985},{"$f":"IFERROR(((VLOOKUP($B104,Pupils,Pupils!$W$3,FALSE)+VLOOKUP($B104,Pupils,Pupils!$Z$3,FALSE))/VLOOKUP($B104,Pupils,Pupils!$V$3,FALSE)), \"x\")","v":0.19702003680228991},{"$f":"(SUM(INDEX(Pupils!$AB$7:$AB$159,MATCH($B104,Pupils!$A$7:$A$159,0)),INDEX(Pupils!$AC$7:$AC$159,MATCH($B104,Pupils!$A$7:$A$159,0)),INDEX(Pupils!$AD$7:$AD$159,MATCH($B104,Pupils!$A$7:$A$159,0)),INDEX(Pupils!$AE$7:$AE$159,MATCH($B104,Pupils!$A$7:$A$159,0))))/SUM(INDEX(Pupils!$AB$7:$AM$159,MATCH($B104,Pupils!$A$7:$A$159,0),0))","v":0.20737327188940091},{"$f":"SUM(INDEX(Pupils!$AF$7:$AF$159,MATCH($B104,Pupils!$A$7:$A$159,0)))/SUM(INDEX(Pupils!$AB$7:$AM$159,MATCH($B104,Pupils!$A$7:$A$159,0),0))","v":0.27310211011399466},{"$f":"SUM(INDEX(Pupils!$AG$7:$AG$159,MATCH($B104,Pupils!$A$7:$A$159,0)))/SUM(INDEX(Pupils!$AB$7:$AM$159,MATCH($B104,Pupils!$A$7:$A$159,0),0))","v":0.25030317729808393},{"$f":"(SUM(INDEX(Pupils!$AH$7:$AH$159,MATCH($B104,Pupils!$A$7:$A$159,0)),INDEX(Pupils!$AI$7:$AI$159,MATCH($B104,Pupils!$A$7:$A$159,0)),INDEX(Pupils!$AJ$7:$AJ$159,MATCH($B104,Pupils!$A$7:$A$159,0))))/SUM(INDEX(Pupils!$AB$7:$AM$159,MATCH($B104,Pupils!$A$7:$A$159,0),0))","v":3.5896192093136069E-2},{"$f":"SUM(INDEX(Pupils!$AK$7:$AK$159,MATCH($B104,Pupils!$A$7:$A$159,0)))/SUM(INDEX(Pupils!$AB$7:$AM$159,MATCH($B104,Pupils!$A$7:$A$159,0),0))","v":4.8265825854959983E-2},{"$f":"SUM(INDEX(Pupils!$AL$7:$AL$159,MATCH($B104,Pupils!$A$7:$A$159,0)))/SUM(INDEX(Pupils!$AB$7:$AM$159,MATCH($B104,Pupils!$A$7:$A$159,0),0))","v":0.1649284501576522},{"$f":"SUM(INDEX(Pupils!$AM$7:$AM$159,MATCH($B104,Pupils!$A$7:$A$159,0)))/SUM(INDEX(Pupils!$AB$7:$AM$159,MATCH($B104,Pupils!$A$7:$A$159,0),0))","v":2.0130972592772252E-2},{"$f":"(SUM(INDEX(Pupils!$BH$7:$BH$159,MATCH($B104,Pupils!$A$7:$A$159,0)),INDEX(Pupils!$BK$7:$BK$159,MATCH($B104,Pupils!$A$7:$A$159,0)),INDEX(Pupils!$BO$7:$BO$159,MATCH($B104,Pupils!$A$7:$A$159,0))))/SUM(INDEX(Pupils!$BH$7:$BS$159,MATCH($B104,Pupils!$A$7:$A$159,0),0))","v":0.57451112609575183},{"$f":"(SUM(INDEX(Pupils!$BL$7:$BL$159,MATCH($B104,Pupils!$A$7:$A$159,0)),INDEX(Pupils!$BM$7:$BM$159,MATCH($B104,Pupils!$A$7:$A$159,0)),INDEX(Pupils!$BP$7:$BP$159,MATCH($B104,Pupils!$A$7:$A$159,0))))/SUM(INDEX(Pupils!$BH$7:$BS$159,MATCH($B104,Pupils!$A$7:$A$159,0),0))","v":0.38435603506405935},{"$f":"(SUM(INDEX(Pupils!$BI$7:$BI$159,MATCH($B104,Pupils!$A$7:$A$159,0)),INDEX(Pupils!$BJ$7:$BJ$159,MATCH($B104,Pupils!$A$7:$A$159,0))))/SUM(INDEX(Pupils!$BH$7:$BS$159,MATCH($B104,Pupils!$A$7:$A$159,0),0))","v":3.1692515171948751E-2},{"$f":"(SUM(INDEX(Pupils!$BQ$7:$BQ$159,MATCH($B104,Pupils!$A$7:$A$159,0)),INDEX(Pupils!$BR$7:$BR$159,MATCH($B104,Pupils!$A$7:$A$159,0)),INDEX(Pupils!$BN$7:$BN$159,MATCH($B104,Pupils!$A$7:$A$159,0)),INDEX(Pupils!$BS$7:$BS$159,MATCH($B104,Pupils!$A$7:$A$159,0))))/SUM(INDEX(Pupils!$BH$7:$BS$159,MATCH($B104,Pupils!$A$7:$A$159,0),0))","v":9.440323668240054E-3},{"$f":"IFERROR((VLOOKUP(B104,Funding,Funding!$C$2,FALSE)), \"x\")","v":23977873.310000002},{"$f":"IFERROR((AA104/VLOOKUP(B104,Funding,Funding!$D$2,FALSE)), \"x\")","v":0.13919623964716013},{"$f":"IFERROR((AA104/(VLOOKUP(B104,Pupils,Pupils!$M$3,FALSE)+VLOOKUP(B104,Pupils,Pupils!$P$3,FALSE))), \"x\")","v":2788.449041749041},{"$f":"IFERROR((VLOOKUP(B104,Funding,Funding!$E$2,FALSE)), \"x\")","v":24675625.719333511},{"$f":"IFERROR((AD104/VLOOKUP(B104,Funding,Funding!$F$2,FALSE)), \"x\")","v":0.13862003663785666},{"$f":"IFERROR((AD104/(VLOOKUP(B104,Pupils,Pupils!$R$3,FALSE)+VLOOKUP(B104,Pupils,Pupils!$U$3,FALSE))), \"x\")","v":3123.8923559100531},{"$f":"IFERROR((VLOOKUP(B104,Funding,Funding!$G$2,FALSE)), \"x\")","v":25442647.302305147},{"$f":"IFERROR((AG104/VLOOKUP(B104,Funding,Funding!$H$2,FALSE)), \"x\")","v":0.1420587376996269},{"$f":"IFERROR((AG104/(VLOOKUP(B104,Pupils,Pupils!$W$3,FALSE)+VLOOKUP(B104,Pupils,Pupils!$Z$3,FALSE))), \"x\")","v":3300.3823196659937},{"$f":"IFERROR((VLOOKUP(B104,Funding,Funding!$I$2,FALSE)), \"x\")","v":25784093.345436402},{"$f":"IFERROR((AJ104/VLOOKUP(B104,Funding,Funding!$J$2,FALSE)), \"x\")","v":0.1430074118294411},null,{"$f":"IFERROR((VLOOKUP($B104,Funding,Funding!$EC$2,FALSE)), \"x\")","v":15061693.01},{"$f":"IFERROR((AM104/VLOOKUP($B104,Funding,Funding!$EU$2,FALSE)), \"x\")","v":7.8071051765443433E-2},{"$f":"IFERROR((AM104/(VLOOKUP($B104,Pupils,Pupils!$D$3,FALSE)+VLOOKUP($B104,Pupils,Pupils!$E$3,FALSE))), \"x\")","v":1736.6185875706215},{"$f":"IFERROR((VLOOKUP($B104,Funding,Funding!$DA$2,FALSE)), \"x\")","v":15115675},{"$f":"IFERROR((AP104/VLOOKUP($B104,Funding,Funding!$DT$2,FALSE)), \"x\")","v":7.7736987324576956E-2},{"$f":"IFERROR((AP104/(VLOOKUP($B104,Pupils,Pupils!$G$3,FALSE)+VLOOKUP($B104,Pupils,Pupils!$H$3,FALSE))), \"x\")","v":1680.4530294608116},{"$f":"IFERROR((VLOOKUP($B104,Funding,Funding!$CE$2,FALSE)), \"x\")","v":17119896},{"$f":"IFERROR((AS104/VLOOKUP($B104,Funding,Funding!$CR$2,FALSE)), \"x\")","v":0.12816448130549851},{"$f":"IFERROR((AS104/(VLOOKUP($B104,Pupils,Pupils!$J$3,FALSE)+VLOOKUP($B104,Pupils,Pupils!$K$3,FALSE))), \"x\")","v":1948.9863387978141},{"$f":"IFERROR((VLOOKUP($B104,Funding,Funding!$BM$2,FALSE)), \"x\")","v":18176572},{"$f":"IFERROR((AV104/VLOOKUP($B104,Funding,Funding!$BY$2,FALSE)), \"x\")","v":0.13620932458655921},{"$f":"IFERROR((AV104/(VLOOKUP($B104,Pupils,Pupils!$M$3,FALSE)+VLOOKUP($B104,Pupils,Pupils!$P$3,FALSE))), \"x\")","v":2113.8006744970344},{"$f":"IFERROR((VLOOKUP($B104,Funding,Funding!$AQ$2,FALSE)), \"x\")","v":23159257},{"$f":"IFERROR((AY104/VLOOKUP($B104,Funding,Funding!$BE$2,FALSE)), \"x\")","v":0.13019276680648034},{"$f":"IFERROR((AY104/(VLOOKUP($B104,Pupils,Pupils!$R$3,FALSE)+VLOOKUP($B104,Pupils,Pupils!$U$3,FALSE))), \"x\")","v":2931.9226484365108},{"$f":"IFERROR((VLOOKUP($B104,Funding,Funding!$S$2,FALSE)), \"x\")","v":21983974},{"$f":"IFERROR((BB104/VLOOKUP($B104,Funding,Funding!$AH$2,FALSE)), \"x\")","v":0.12089583944978338},{"$f":"IFERROR((BB104/(VLOOKUP(B104,Pupils,Pupils!$W$3,FALSE)+VLOOKUP(B104,Pupils,Pupils!$Z$3,FALSE))), \"x\")","v":2851.7283694383186},{"$f":"IFERROR((VLOOKUP($B104,Funding,Funding!$GX$2,FALSE)), \"x\")","v":30989985},{"$f":"IFERROR((BE104/VLOOKUP($B104,Funding,Funding!$HC$2,FALSE)), \"x\")","v":0.14612076964312617},{"$f":"IFERROR((BE104/(VLOOKUP($B104,Pupils,Pupils!$D$3,FALSE)+VLOOKUP($B104,Pupils,Pupils!$E$3,FALSE))), \"x\")","v":3573.1563472846765},{"$f":"IFERROR((VLOOKUP($B104,Funding,Funding!$GP$2,FALSE)), \"x\")","v":31573352},{"$f":"IFERROR((BH104/VLOOKUP($B104,Funding,Funding!$GU$2,FALSE)), \"x\")","v":0.15462463775604574},{"$f":"IFERROR((BH104/(VLOOKUP($B104,Pupils,Pupils!$G$3,FALSE)+VLOOKUP($B104,Pupils,Pupils!$H$3,FALSE))), \"x\")","v":3510.1002779321843},{"$f":"IFERROR((VLOOKUP($B104,Funding,Funding!$GH$2,FALSE)), \"x\")","v":27162454.079999998},{"$f":"IFERROR((BK104/VLOOKUP($B104,Funding,Funding!$GM$2,FALSE)), \"x\")","v":0.19323572045435719},{"$f":"IFERROR((BK104/(VLOOKUP($B104,Pupils,Pupils!$J$3,FALSE)+VLOOKUP($B104,Pupils,Pupils!$K$3,FALSE))), \"x\")","v":3092.2648087431694},{"$f":"IFERROR((VLOOKUP($B104,Funding,Funding!$FZ$2,FALSE)), \"x\")","v":26475326.600000001},{"$f":"IFERROR((BN104/VLOOKUP($B104,Funding,Funding!$GE$2,FALSE)), \"x\")","v":0.19360847460362002},{"$f":"IFERROR((BN104/(VLOOKUP($B104,Pupils,Pupils!$M$3,FALSE)+VLOOKUP($B104,Pupils,Pupils!$P$3,FALSE))), \"x\")","v":3078.8843586463545},{"$f":"IFERROR((VLOOKUP($B104,Funding,Funding!$FD$2,FALSE)), \"x\")","v":27307779.259999998},{"$f":"IFERROR((BQ104/VLOOKUP($B104,Funding,Funding!$FR$2,FALSE)), \"x\")","v":0.20051854055548071},{"$f":"IFERROR((BQ104/(VLOOKUP($B104,Pupils,Pupils!$R$3,FALSE)+VLOOKUP($B104,Pupils,Pupils!$U$3,FALSE))), \"x\")","v":3457.1185289277123},{"$f":"(VLOOKUP(B104,Funding,Funding!$HK$2,FALSE)+VLOOKUP(B104,Funding,Funding!$HL$2,FALSE)+VLOOKUP(B104,Funding,Funding!$HM$2,FALSE))/(VLOOKUP(B104,Funding,Funding!$HN$2,FALSE))","v":0.2012830793905373},{"$f":"IFERROR((VLOOKUP(B104,Other_data,Other!$D$3,FALSE)+VLOOKUP(B104,Other_data,Other!$E$3,FALSE)+VLOOKUP(B104,Other_data,Other!$F$3,FALSE)), \"x\")","v":2200},{"$f":"(VLOOKUP(B104,Other_data,Other!$AK$3,FALSE)+VLOOKUP(B104,Other_data,Other!$AL$3,FALSE))/VLOOKUP(B104,Other_data,Other!$AJ$3,FALSE)","v":4.8384217104088557E-2},{"$f":"(VLOOKUP(B104,Other_data,Other!$AR$3,FALSE)+VLOOKUP(B104,Other_data,Other!$AS$3,FALSE))/VLOOKUP(B104,Other_data,Other!$AQ$3,FALSE)","v":6.1092280778482395E-2},{"$f":"VLOOKUP(B104,Other_data,Other!$AP$3,FALSE)/VLOOKUP(B104,Other_data,Other!$AJ$3,FALSE)","v":7.543295840028566E-3},{"$f":"VLOOKUP(B104,Other_data,Other!$AW$3,FALSE)/VLOOKUP(B104,Other_data,Other!$AQ$3,FALSE)","v":1.2655805816750493E-2}]
[99,836,"Poole",{"$f":"IFERROR((VLOOKUP($B105,Pupils,Pupils!$D$3,FALSE)/VLOOKUP($B105,Pupils,Pupils!$C$3,FALSE)), \"x\")","v":2.6478420338642415E-2},{"$f":"IFERROR((VLOOKUP($B105,Pupils,Pupils!$G$3,FALSE)/VLOOKUP($B105,Pupils,Pupils!$F$3,FALSE)),\"x\")","v":2.6834804539722572E-2},{"$f":"IFERROR((VLOOKUP($B105,Pupils,Pupils!$J$3,FALSE)/VLOOKUP($B105,Pupils,Pupils!$I$3,FALSE)), \"x\")","v":2.6757369614512472E-2},{"$f":"IFERROR((VLOOKUP($B105,Pupils,Pupils!$M$3,FALSE)/VLOOKUP($B105,Pupils,Pupils!$L$3,FALSE)), \"x\")","v":2.6188557614826753E-2},{"$f":"IFERROR((VLOOKUP($B105,Pupils,Pupils!$R$3,FALSE)/VLOOKUP($B105,Pupils,Pupils!$Q$3,FALSE)), \"x\")","v":2.600767276169598E-2},{"$f":"IFERROR((VLOOKUP($B105,Pupils,Pupils!$W$3,FALSE)/VLOOKUP($B105,Pupils,Pupils!$V$3,FALSE)), \"x\")","v":2.5963107660353098E-2},{"$f":"IFERROR(((VLOOKUP($B105,Pupils,Pupils!$D$3,FALSE)+VLOOKUP($B105,Pupils,Pupils!$E$3,FALSE))/VLOOKUP($B105,Pupils,Pupils!$C$3,FALSE)), \"x\")","v":0.20805908656986383},{"$f":"IFERROR(((VLOOKUP($B105,Pupils,Pupils!$G$3,FALSE)+VLOOKUP($B105,Pupils,Pupils!$H$3,FALSE))/VLOOKUP($B105,Pupils,Pupils!$F$3,FALSE)), \"x\")","v":0.21291298865069358},{"$f":"IFERROR(((VLOOKUP($B105,Pupils,Pupils!$J$3,FALSE)+VLOOKUP($B105,Pupils,Pupils!$K$3,FALSE))/VLOOKUP($B105,Pupils,Pupils!$I$3,FALSE)), \"x\")","v":0.20806248425296045},{"$f":"IFERROR(((VLOOKUP($B105,Pupils,Pupils!$M$3,FALSE)+VLOOKUP($B105,Pupils,Pupils!$P$3,FALSE))/VLOOKUP($B105,Pupils,Pupils!$L$3,FALSE)), \"x\")","v":0.19102538275584205},{"$f":"IFERROR(((VLOOKUP($B105,Pupils,Pupils!$R$3,FALSE)+VLOOKUP($B105,Pupils,Pupils!$U$3,FALSE))/VLOOKUP($B105,Pupils,Pupils!$Q$3,FALSE)), \"x\")","v":0.19032434856260275},{"$f":"IFERROR(((VLOOKUP($B105,Pupils,Pupils!$W$3,FALSE)+VLOOKUP($B105,Pupils,Pupils!$Z$3,FALSE))/VLOOKUP($B105,Pupils,Pupils!$V$3,FALSE)), \"x\")","v":0.18831907422976113},{"$f":"(SUM(INDEX(Pupils!$AB$7:$AB$159,MATCH($B105,Pupils!$A$7:$A$159,0)),INDEX(Pupils!$AC$7:$AC$159,MATCH($B105,Pupils!$A$7:$A$159,0)),INDEX(Pupils!$AD$7:$AD$159,MATCH($B105,Pupils!$A$7:$A$159,0)),INDEX(Pupils!$AE$7:$AE$159,MATCH($B105,Pupils!$A$7:$A$159,0))))/SUM(INDEX(Pupils!$AB$7:$AM$159,MATCH($B105,Pupils!$A$7:$A$159,0),0))","v":0.36415852958070077},{"$f":"SUM(INDEX(Pupils!$AF$7:$AF$159,MATCH($B105,Pupils!$A$7:$A$159,0)))/SUM(INDEX(Pupils!$AB$7:$AM$159,MATCH($B105,Pupils!$A$7:$A$159,0),0))","v":0.23951751866743251},{"$f":"SUM(INDEX(Pupils!$AG$7:$AG$159,MATCH($B105,Pupils!$A$7:$A$159,0)))/SUM(INDEX(Pupils!$AB$7:$AM$159,MATCH($B105,Pupils!$A$7:$A$159,0),0))","v":0.2125215393452039},{"$f":"(SUM(INDEX(Pupils!$AH$7:$AH$159,MATCH($B105,Pupils!$A$7:$A$159,0)),INDEX(Pupils!$AI$7:$AI$159,MATCH($B105,Pupils!$A$7:$A$159,0)),INDEX(Pupils!$AJ$7:$AJ$159,MATCH($B105,Pupils!$A$7:$A$159,0))))/SUM(INDEX(Pupils!$AB$7:$AM$159,MATCH($B105,Pupils!$A$7:$A$159,0),0))","v":3.7909247558874211E-2},{"$f":"SUM(INDEX(Pupils!$AK$7:$AK$159,MATCH($B105,Pupils!$A$7:$A$159,0)))/SUM(INDEX(Pupils!$AB$7:$AM$159,MATCH($B105,Pupils!$A$7:$A$159,0),0))","v":4.8248133256748996E-2},{"$f":"SUM(INDEX(Pupils!$AL$7:$AL$159,MATCH($B105,Pupils!$A$7:$A$159,0)))/SUM(INDEX(Pupils!$AB$7:$AM$159,MATCH($B105,Pupils!$A$7:$A$159,0),0))","v":6.2033314187248709E-2},{"$f":"SUM(INDEX(Pupils!$AM$7:$AM$159,MATCH($B105,Pupils!$A$7:$A$159,0)))/SUM(INDEX(Pupils!$AB$7:$AM$159,MATCH($B105,Pupils!$A$7:$A$159,0),0))","v":3.5611717403790925E-2},{"$f":"(SUM(INDEX(Pupils!$BH$7:$BH$159,MATCH($B105,Pupils!$A$7:$A$159,0)),INDEX(Pupils!$BK$7:$BK$159,MATCH($B105,Pupils!$A$7:$A$159,0)),INDEX(Pupils!$BO$7:$BO$159,MATCH($B105,Pupils!$A$7:$A$159,0))))/SUM(INDEX(Pupils!$BH$7:$BS$159,MATCH($B105,Pupils!$A$7:$A$159,0),0))","v":0.38762886597938145},{"$f":"(SUM(INDEX(Pupils!$BL$7:$BL$159,MATCH($B105,Pupils!$A$7:$A$159,0)),INDEX(Pupils!$BM$7:$BM$159,MATCH($B105,Pupils!$A$7:$A$159,0)),INDEX(Pupils!$BP$7:$BP$159,MATCH($B105,Pupils!$A$7:$A$159,0))))/SUM(INDEX(Pupils!$BH$7:$BS$159,MATCH($B105,Pupils!$A$7:$A$159,0),0))","v":0.58969072164948455},{"$f":"(SUM(INDEX(Pupils!$BI$7:$BI$159,MATCH($B105,Pupils!$A$7:$A$159,0)),INDEX(Pupils!$BJ$7:$BJ$159,MATCH($B105,Pupils!$A$7:$A$159,0))))/SUM(INDEX(Pupils!$BH$7:$BS$159,MATCH($B105,Pupils!$A$7:$A$159,0),0))","v":6.1855670103092781E-3},{"$f":"(SUM(INDEX(Pupils!$BQ$7:$BQ$159,MATCH($B105,Pupils!$A$7:$A$159,0)),INDEX(Pupils!$BR$7:$BR$159,MATCH($B105,Pupils!$A$7:$A$159,0)),INDEX(Pupils!$BN$7:$BN$159,MATCH($B105,Pupils!$A$7:$A$159,0)),INDEX(Pupils!$BS$7:$BS$159,MATCH($B105,Pupils!$A$7:$A$159,0))))/SUM(INDEX(Pupils!$BH$7:$BS$159,MATCH($B105,Pupils!$A$7:$A$159,0),0))","v":1.6494845360824743E-2},{"$f":"IFERROR((VLOOKUP(B105,Funding,Funding!$C$2,FALSE)), \"x\")","v":12097924.85},{"$f":"IFERROR((AA105/VLOOKUP(B105,Funding,Funding!$D$2,FALSE)), \"x\")","v":0.14530552104134975},{"$f":"IFERROR((AA105/(VLOOKUP(B105,Pupils,Pupils!$M$3,FALSE)+VLOOKUP(B105,Pupils,Pupils!$P$3,FALSE))), \"x\")","v":3189.5399024518852},{"$f":"IFERROR((VLOOKUP(B105,Funding,Funding!$E$2,FALSE)), \"x\")","v":12488626.930548128},{"$f":"IFERROR((AD105/VLOOKUP(B105,Funding,Funding!$F$2,FALSE)), \"x\")","v":0.14533517189237471},{"$f":"IFERROR((AD105/(VLOOKUP(B105,Pupils,Pupils!$R$3,FALSE)+VLOOKUP(B105,Pupils,Pupils!$U$3,FALSE))), \"x\")","v":3269.274065588515},{"$f":"IFERROR((VLOOKUP(B105,Funding,Funding!$G$2,FALSE)), \"x\")","v":13031410.211483816},{"$f":"IFERROR((AG105/VLOOKUP(B105,Funding,Funding!$H$2,FALSE)), \"x\")","v":0.14851104061724998},{"$f":"IFERROR((AG105/(VLOOKUP(B105,Pupils,Pupils!$W$3,FALSE)+VLOOKUP(B105,Pupils,Pupils!$Z$3,FALSE))), \"x\")","v":3422.1140261249516},{"$f":"IFERROR((VLOOKUP(B105,Funding,Funding!$I$2,FALSE)), \"x\")","v":13178684.604680315},{"$f":"IFERROR((AJ105/VLOOKUP(B105,Funding,Funding!$J$2,FALSE)), \"x\")","v":0.14604848013165972},null,{"$f":"IFERROR((VLOOKUP($B105,Funding,Funding!$EC$2,FALSE)), \"x\")","v":9685547.7400000002},{"$f":"IFERROR((AM105/VLOOKUP($B105,Funding,Funding!$EU$2,FALSE)), \"x\")","v":0.1090951835657762},{"$f":"IFERROR((AM105/(VLOOKUP($B105,Pupils,Pupils!$D$3,FALSE)+VLOOKUP($B105,Pupils,Pupils!$E$3,FALSE))), \"x\")","v":2338.9393238348225},{"$f":"IFERROR((VLOOKUP($B105,Funding,Funding!$DA$2,FALSE)), \"x\")","v":9965468.4466600008},{"$f":"IFERROR((AP105/VLOOKUP($B105,Funding,Funding!$DT$2,FALSE)), \"x\")","v":0.11007550462170675},{"$f":"IFERROR((AP105/(VLOOKUP($B105,Pupils,Pupils!$G$3,FALSE)+VLOOKUP($B105,Pupils,Pupils!$H$3,FALSE))), \"x\")","v":2360.9259527742242},{"$f":"IFERROR((VLOOKUP($B105,Funding,Funding!$CE$2,FALSE)), \"x\")","v":10604807},{"$f":"IFERROR((AS105/VLOOKUP($B105,Funding,Funding!$CR$2,FALSE)), \"x\")","v":0.13541836634387941},{"$f":"IFERROR((AS105/(VLOOKUP($B105,Pupils,Pupils!$J$3,FALSE)+VLOOKUP($B105,Pupils,Pupils!$K$3,FALSE))), \"x\")","v":2568.3717607168805},{"$f":"IFERROR((VLOOKUP($B105,Funding,Funding!$BM$2,FALSE)), \"x\")","v":9178397.4700000007},{"$f":"IFERROR((AV105/VLOOKUP($B105,Funding,Funding!$BY$2,FALSE)), \"x\")","v":0.12444123512282214},{"$f":"IFERROR((AV105/(VLOOKUP($B105,Pupils,Pupils!$M$3,FALSE)+VLOOKUP($B105,Pupils,Pupils!$P$3,FALSE))), \"x\")","v":2419.8253282362248},{"$f":"IFERROR((VLOOKUP($B105,Funding,Funding!$AQ$2,FALSE)), \"x\")","v":12261011},{"$f":"IFERROR((AY105/VLOOKUP($B105,Funding,Funding!$BE$2,FALSE)), \"x\")","v":0.13858450628870289},{"$f":"IFERROR((AY105/(VLOOKUP($B105,Pupils,Pupils!$R$3,FALSE)+VLOOKUP($B105,Pupils,Pupils!$U$3,FALSE))), \"x\")","v":3209.6887434554974},{"$f":"IFERROR((VLOOKUP($B105,Funding,Funding!$S$2,FALSE)), \"x\")","v":10616257},{"$f":"IFERROR((BB105/VLOOKUP($B105,Funding,Funding!$AH$2,FALSE)), \"x\")","v":0.12244132684110143},{"$f":"IFERROR((BB105/(VLOOKUP(B105,Pupils,Pupils!$W$3,FALSE)+VLOOKUP(B105,Pupils,Pupils!$Z$3,FALSE))), \"x\")","v":2787.8826155462184},{"$f":"IFERROR((VLOOKUP($B105,Funding,Funding!$GX$2,FALSE)), \"x\")","v":13187153},{"$f":"IFERROR((BE105/VLOOKUP($B105,Funding,Funding!$HC$2,FALSE)), \"x\")","v":0.13922054923339658},{"$f":"IFERROR((BE105/(VLOOKUP($B105,Pupils,Pupils!$D$3,FALSE)+VLOOKUP($B105,Pupils,Pupils!$E$3,FALSE))), \"x\")","v":3184.5334460275294},{"$f":"IFERROR((VLOOKUP($B105,Funding,Funding!$GP$2,FALSE)), \"x\")","v":13869319},{"$f":"IFERROR((BH105/VLOOKUP($B105,Funding,Funding!$GU$2,FALSE)), \"x\")","v":0.14615144897730428},{"$f":"IFERROR((BH105/(VLOOKUP($B105,Pupils,Pupils!$G$3,FALSE)+VLOOKUP($B105,Pupils,Pupils!$H$3,FALSE))), \"x\")","v":3285.789860222696},{"$f":"IFERROR((VLOOKUP($B105,Funding,Funding!$GH$2,FALSE)), \"x\")","v":12717400.24},{"$f":"IFERROR((BK105/VLOOKUP($B105,Funding,Funding!$GM$2,FALSE)), \"x\")","v":0.16461374215388458},{"$f":"IFERROR((BK105/(VLOOKUP($B105,Pupils,Pupils!$J$3,FALSE)+VLOOKUP($B105,Pupils,Pupils!$K$3,FALSE))), \"x\")","v":3080.0194332768224},{"$f":"IFERROR((VLOOKUP($B105,Funding,Funding!$FZ$2,FALSE)), \"x\")","v":11931303.359999999},{"$f":"IFERROR((BN105/VLOOKUP($B105,Funding,Funding!$GE$2,FALSE)), \"x\")","v":0.15607566202504383},{"$f":"IFERROR((BN105/(VLOOKUP($B105,Pupils,Pupils!$M$3,FALSE)+VLOOKUP($B105,Pupils,Pupils!$P$3,FALSE))), \"x\")","v":3145.6112206696544},{"$f":"IFERROR((VLOOKUP($B105,Funding,Funding!$FD$2,FALSE)), \"x\")","v":10614139},{"$f":"IFERROR((BQ105/VLOOKUP($B105,Funding,Funding!$FR$2,FALSE)), \"x\")","v":0.15637888354040691},{"$f":"IFERROR((BQ105/(VLOOKUP($B105,Pupils,Pupils!$R$3,FALSE)+VLOOKUP($B105,Pupils,Pupils!$U$3,FALSE))), \"x\")","v":2778.5704188481677},{"$f":"(VLOOKUP(B105,Funding,Funding!$HK$2,FALSE)+VLOOKUP(B105,Funding,Funding!$HL$2,FALSE)+VLOOKUP(B105,Funding,Funding!$HM$2,FALSE))/(VLOOKUP(B105,Funding,Funding!$HN$2,FALSE))","v":0.23711340206185566},{"$f":"IFERROR((VLOOKUP(B105,Other_data,Other!$D$3,FALSE)+VLOOKUP(B105,Other_data,Other!$E$3,FALSE)+VLOOKUP(B105,Other_data,Other!$F$3,FALSE)), \"x\")","v":750},{"$f":"(VLOOKUP(B105,Other_data,Other!$AK$3,FALSE)+VLOOKUP(B105,Other_data,Other!$AL$3,FALSE))/VLOOKUP(B105,Other_data,Other!$AJ$3,FALSE)","v":3.5879720499332655E-2},{"$f":"(VLOOKUP(B105,Other_data,Other!$AR$3,FALSE)+VLOOKUP(B105,Other_data,Other!$AS$3,FALSE))/VLOOKUP(B105,Other_data,Other!$AQ$3,FALSE)","v":5.3027110549234445E-2},{"$f":"VLOOKUP(B105,Other_data,Other!$AP$3,FALSE)/VLOOKUP(B105,Other_data,Other!$AJ$3,FALSE)","v":6.2416581612624641E-3},{"$f":"VLOOKUP(B105,Other_data,Other!$AW$3,FALSE)/VLOOKUP(B105,Other_data,Other!$AQ$3,FALSE)","v":1.018401460879337E-2}]
[100,851,"Portsmouth",{"$f":"IFERROR((VLOOKUP($B106,Pupils,Pupils!$D$3,FALSE)/VLOOKUP($B106,Pupils,Pupils!$C$3,FALSE)), \"x\")","v":3.1405507022005973E-2},{"$f":"IFERROR((VLOOKUP($B106,Pupils,Pupils!$G$3,FALSE)/VLOOKUP($B106,Pupils,Pupils!$F$3,FALSE)),\"x\")","v":3.0888030888030889E-2},{"$f":"IFERROR((VLOOKUP($B106,Pupils,Pupils!$J$3,FALSE)/VLOOKUP($B106,Pupils,Pupils!$I$3,FALSE)), \"x\")","v":3.1006890420093355E-2},{"$f":"IFERROR((VLOOKUP($B106,Pupils,Pupils!$M$3,FALSE)/VLOOKUP($B106,Pupils,Pupils!$L$3,FALSE)), \"x\")","v":3.0567847978877693E-2},{"$f":"IFERROR((VLOOKUP($B106,Pupils,Pupils!$R$3,FALSE)/VLOOKUP($B106,Pupils,Pupils!$Q$3,FALSE)), \"x\")","v":3.1320323163758441E-2},{"$f":"IFERROR((VLOOKUP($B106,Pupils,Pupils!$W$3,FALSE)/VLOOKUP($B106,Pupils,Pupils!$V$3,FALSE)), \"x\")","v":3.1650983746792129E-2},{"$f":"IFERROR(((VLOOKUP($B106,Pupils,Pupils!$D$3,FALSE)+VLOOKUP($B106,Pupils,Pupils!$E$3,FALSE))/VLOOKUP($B106,Pupils,Pupils!$C$3,FALSE)), \"x\")","v":0.27015371005197392},{"$f":"IFERROR(((VLOOKUP($B106,Pupils,Pupils!$G$3,FALSE)+VLOOKUP($B106,Pupils,Pupils!$H$3,FALSE))/VLOOKUP($B106,Pupils,Pupils!$F$3,FALSE)), \"x\")","v":0.26548114048114047},{"$f":"IFERROR(((VLOOKUP($B106,Pupils,Pupils!$J$3,FALSE)+VLOOKUP($B106,Pupils,Pupils!$K$3,FALSE))/VLOOKUP($B106,Pupils,Pupils!$I$3,FALSE)), \"x\")","v":0.25087056382899903},{"$f":"IFERROR(((VLOOKUP($B106,Pupils,Pupils!$M$3,FALSE)+VLOOKUP($B106,Pupils,Pupils!$P$3,FALSE))/VLOOKUP($B106,Pupils,Pupils!$L$3,FALSE)), \"x\")","v":0.2447287196459782},{"$f":"IFERROR(((VLOOKUP($B106,Pupils,Pupils!$R$3,FALSE)+VLOOKUP($B106,Pupils,Pupils!$U$3,FALSE))/VLOOKUP($B106,Pupils,Pupils!$Q$3,FALSE)), \"x\")","v":0.23521599586822592},{"$f":"IFERROR(((VLOOKUP($B106,Pupils,Pupils!$W$3,FALSE)+VLOOKUP($B106,Pupils,Pupils!$Z$3,FALSE))/VLOOKUP($B106,Pupils,Pupils!$V$3,FALSE)), \"x\")","v":0.21032469223044595},{"$f":"(SUM(INDEX(Pupils!$AB$7:$AB$159,MATCH($B106,Pupils!$A$7:$A$159,0)),INDEX(Pupils!$AC$7:$AC$159,MATCH($B106,Pupils!$A$7:$A$159,0)),INDEX(Pupils!$AD$7:$AD$159,MATCH($B106,Pupils!$A$7:$A$159,0)),INDEX(Pupils!$AE$7:$AE$159,MATCH($B106,Pupils!$A$7:$A$159,0))))/SUM(INDEX(Pupils!$AB$7:$AM$159,MATCH($B106,Pupils!$A$7:$A$159,0),0))","v":0.32939438700147711},{"$f":"SUM(INDEX(Pupils!$AF$7:$AF$159,MATCH($B106,Pupils!$A$7:$A$159,0)))/SUM(INDEX(Pupils!$AB$7:$AM$159,MATCH($B106,Pupils!$A$7:$A$159,0),0))","v":0.23559822747415066},{"$f":"SUM(INDEX(Pupils!$AG$7:$AG$159,MATCH($B106,Pupils!$A$7:$A$159,0)))/SUM(INDEX(Pupils!$AB$7:$AM$159,MATCH($B106,Pupils!$A$7:$A$159,0),0))","v":0.24778434268833088},{"$f":"(SUM(INDEX(Pupils!$AH$7:$AH$159,MATCH($B106,Pupils!$A$7:$A$159,0)),INDEX(Pupils!$AI$7:$AI$159,MATCH($B106,Pupils!$A$7:$A$159,0)),INDEX(Pupils!$AJ$7:$AJ$159,MATCH($B106,Pupils!$A$7:$A$159,0))))/SUM(INDEX(Pupils!$AB$7:$AM$159,MATCH($B106,Pupils!$A$7:$A$159,0),0))","v":3.10192023633678E-2},{"$f":"SUM(INDEX(Pupils!$AK$7:$AK$159,MATCH($B106,Pupils!$A$7:$A$159,0)))/SUM(INDEX(Pupils!$AB$7:$AM$159,MATCH($B106,Pupils!$A$7:$A$159,0),0))","v":3.2865583456425408E-2},{"$f":"SUM(INDEX(Pupils!$AL$7:$AL$159,MATCH($B106,Pupils!$A$7:$A$159,0)))/SUM(INDEX(Pupils!$AB$7:$AM$159,MATCH($B106,Pupils!$A$7:$A$159,0),0))","v":6.6838995568685375E-2},{"$f":"SUM(INDEX(Pupils!$AM$7:$AM$159,MATCH($B106,Pupils!$A$7:$A$159,0)))/SUM(INDEX(Pupils!$AB$7:$AM$159,MATCH($B106,Pupils!$A$7:$A$159,0),0))","v":5.6499261447562774E-2},{"$f":"(SUM(INDEX(Pupils!$BH$7:$BH$159,MATCH($B106,Pupils!$A$7:$A$159,0)),INDEX(Pupils!$BK$7:$BK$159,MATCH($B106,Pupils!$A$7:$A$159,0)),INDEX(Pupils!$BO$7:$BO$159,MATCH($B106,Pupils!$A$7:$A$159,0))))/SUM(INDEX(Pupils!$BH$7:$BS$159,MATCH($B106,Pupils!$A$7:$A$159,0),0))","v":0.44073275862068967},{"$f":"(SUM(INDEX(Pupils!$BL$7:$BL$159,MATCH($B106,Pupils!$A$7:$A$159,0)),INDEX(Pupils!$BM$7:$BM$159,MATCH($B106,Pupils!$A$7:$A$159,0)),INDEX(Pupils!$BP$7:$BP$159,MATCH($B106,Pupils!$A$7:$A$159,0))))/SUM(INDEX(Pupils!$BH$7:$BS$159,MATCH($B106,Pupils!$A$7:$A$159,0),0))","v":0.48060344827586204},{"$f":"(SUM(INDEX(Pupils!$BI$7:$BI$159,MATCH($B106,Pupils!$A$7:$A$159,0)),INDEX(Pupils!$BJ$7:$BJ$159,MATCH($B106,Pupils!$A$7:$A$159,0))))/SUM(INDEX(Pupils!$BH$7:$BS$159,MATCH($B106,Pupils!$A$7:$A$159,0),0))","v":6.4655172413793108E-2},{"$f":"(SUM(INDEX(Pupils!$BQ$7:$BQ$159,MATCH($B106,Pupils!$A$7:$A$159,0)),INDEX(Pupils!$BR$7:$BR$159,MATCH($B106,Pupils!$A$7:$A$159,0)),INDEX(Pupils!$BN$7:$BN$159,MATCH($B106,Pupils!$A$7:$A$159,0)),INDEX(Pupils!$BS$7:$BS$159,MATCH($B106,Pupils!$A$7:$A$159,0))))/SUM(INDEX(Pupils!$BH$7:$BS$159,MATCH($B106,Pupils!$A$7:$A$159,0),0))","v":1.4008620689655173E-2},{"$f":"IFERROR((VLOOKUP(B106,Funding,Funding!$C$2,FALSE)), \"x\")","v":14131740},{"$f":"IFERROR((AA106/VLOOKUP(B106,Funding,Funding!$D$2,FALSE)), \"x\")","v":0.11237278771983358},{"$f":"IFERROR((AA106/(VLOOKUP(B106,Pupils,Pupils!$M$3,FALSE)+VLOOKUP(B106,Pupils,Pupils!$P$3,FALSE))), \"x\")","v":2147.3545053943171},{"$f":"IFERROR((VLOOKUP(B106,Funding,Funding!$E$2,FALSE)), \"x\")","v":14846157.974779228},{"$f":"IFERROR((AD106/VLOOKUP(B106,Funding,Funding!$F$2,FALSE)), \"x\")","v":0.11408133791371707},{"$f":"IFERROR((AD106/(VLOOKUP(B106,Pupils,Pupils!$R$3,FALSE)+VLOOKUP(B106,Pupils,Pupils!$U$3,FALSE))), \"x\")","v":2328.4438479892137},{"$f":"IFERROR((VLOOKUP(B106,Funding,Funding!$G$2,FALSE)), \"x\")","v":15464193.639077187},{"$f":"IFERROR((AG106/VLOOKUP(B106,Funding,Funding!$H$2,FALSE)), \"x\")","v":0.11650724467148826},{"$f":"IFERROR((AG106/(VLOOKUP(B106,Pupils,Pupils!$W$3,FALSE)+VLOOKUP(B106,Pupils,Pupils!$Z$3,FALSE))), \"x\")","v":2734.6054180507845},{"$f":"IFERROR((VLOOKUP(B106,Funding,Funding!$I$2,FALSE)), \"x\")","v":15688179.631851299},{"$f":"IFERROR((AJ106/VLOOKUP(B106,Funding,Funding!$J$2,FALSE)), \"x\")","v":0.11928723221396104},null,{"$f":"IFERROR((VLOOKUP($B106,Funding,Funding!$EC$2,FALSE)), \"x\")","v":10391926},{"$f":"IFERROR((AM106/VLOOKUP($B106,Funding,Funding!$EU$2,FALSE)), \"x\")","v":8.8335485534412964E-2},{"$f":"IFERROR((AM106/(VLOOKUP($B106,Pupils,Pupils!$D$3,FALSE)+VLOOKUP($B106,Pupils,Pupils!$E$3,FALSE))), \"x\")","v":1417.9186792195387},{"$f":"IFERROR((VLOOKUP($B106,Funding,Funding!$DA$2,FALSE)), \"x\")","v":11440031},{"$f":"IFERROR((AP106/VLOOKUP($B106,Funding,Funding!$DT$2,FALSE)), \"x\")","v":9.4187352000085225E-2},{"$f":"IFERROR((AP106/(VLOOKUP($B106,Pupils,Pupils!$G$3,FALSE)+VLOOKUP($B106,Pupils,Pupils!$H$3,FALSE))), \"x\")","v":1599.780590127255},{"$f":"IFERROR((VLOOKUP($B106,Funding,Funding!$CE$2,FALSE)), \"x\")","v":11710853},{"$f":"IFERROR((AS106/VLOOKUP($B106,Funding,Funding!$CR$2,FALSE)), \"x\")","v":9.3224196315506797E-2},{"$f":"IFERROR((AS106/(VLOOKUP($B106,Pupils,Pupils!$J$3,FALSE)+VLOOKUP($B106,Pupils,Pupils!$K$3,FALSE))), \"x\")","v":1729.3049320732428},{"$f":"IFERROR((VLOOKUP($B106,Funding,Funding!$BM$2,FALSE)), \"x\")","v":12570480.77},{"$f":"IFERROR((AV106/VLOOKUP($B106,Funding,Funding!$BY$2,FALSE)), \"x\")","v":9.6595874988295291E-2},{"$f":"IFERROR((AV106/(VLOOKUP($B106,Pupils,Pupils!$M$3,FALSE)+VLOOKUP($B106,Pupils,Pupils!$P$3,FALSE))), \"x\")","v":1910.1171204984043},{"$f":"IFERROR((VLOOKUP($B106,Funding,Funding!$AQ$2,FALSE)), \"x\")","v":12786100},{"$f":"IFERROR((AY106/VLOOKUP($B106,Funding,Funding!$BE$2,FALSE)), \"x\")","v":9.7822272596974805E-2},{"$f":"IFERROR((AY106/(VLOOKUP($B106,Pupils,Pupils!$R$3,FALSE)+VLOOKUP($B106,Pupils,Pupils!$U$3,FALSE))), \"x\")","v":2005.3481806775408},{"$f":"IFERROR((VLOOKUP($B106,Funding,Funding!$S$2,FALSE)), \"x\")","v":13135671},{"$f":"IFERROR((BB106/VLOOKUP($B106,Funding,Funding!$AH$2,FALSE)), \"x\")","v":9.8791258379154034E-2},{"$f":"IFERROR((BB106/(VLOOKUP(B106,Pupils,Pupils!$W$3,FALSE)+VLOOKUP(B106,Pupils,Pupils!$Z$3,FALSE))), \"x\")","v":2322.8419098143236},{"$f":"IFERROR((VLOOKUP($B106,Funding,Funding!$GX$2,FALSE)), \"x\")","v":20770711},{"$f":"IFERROR((BE106/VLOOKUP($B106,Funding,Funding!$HC$2,FALSE)), \"x\")","v":0.15848946503861158},{"$f":"IFERROR((BE106/(VLOOKUP($B106,Pupils,Pupils!$D$3,FALSE)+VLOOKUP($B106,Pupils,Pupils!$E$3,FALSE))), \"x\")","v":2834.0443443853187},{"$f":"IFERROR((VLOOKUP($B106,Funding,Funding!$GP$2,FALSE)), \"x\")","v":22813189},{"$f":"IFERROR((BH106/VLOOKUP($B106,Funding,Funding!$GU$2,FALSE)), \"x\")","v":0.16875461758791724},{"$f":"IFERROR((BH106/(VLOOKUP($B106,Pupils,Pupils!$G$3,FALSE)+VLOOKUP($B106,Pupils,Pupils!$H$3,FALSE))), \"x\")","v":3190.2096210320233},{"$f":"IFERROR((VLOOKUP($B106,Funding,Funding!$GH$2,FALSE)), \"x\")","v":28327368.310000002},{"$f":"IFERROR((BK106/VLOOKUP($B106,Funding,Funding!$GM$2,FALSE)), \"x\")","v":0.20664420261668248},{"$f":"IFERROR((BK106/(VLOOKUP($B106,Pupils,Pupils!$J$3,FALSE)+VLOOKUP($B106,Pupils,Pupils!$K$3,FALSE))), \"x\")","v":4183.0136311281749},{"$f":"IFERROR((VLOOKUP($B106,Funding,Funding!$FZ$2,FALSE)), \"x\")","v":28989549.810000002},{"$f":"IFERROR((BN106/VLOOKUP($B106,Funding,Funding!$GE$2,FALSE)), \"x\")","v":0.20624088199098611},{"$f":"IFERROR((BN106/(VLOOKUP($B106,Pupils,Pupils!$M$3,FALSE)+VLOOKUP($B106,Pupils,Pupils!$P$3,FALSE))), \"x\")","v":4405.0371995137521},{"$f":"IFERROR((VLOOKUP($B106,Funding,Funding!$FD$2,FALSE)), \"x\")","v":13350040},{"$f":"IFERROR((BQ106/VLOOKUP($B106,Funding,Funding!$FR$2,FALSE)), \"x\")","v":0.11173267491097338},{"$f":"IFERROR((BQ106/(VLOOKUP($B106,Pupils,Pupils!$R$3,FALSE)+VLOOKUP($B106,Pupils,Pupils!$U$3,FALSE))), \"x\")","v":2093.7954830614804},{"$f":"(VLOOKUP(B106,Funding,Funding!$HK$2,FALSE)+VLOOKUP(B106,Funding,Funding!$HL$2,FALSE)+VLOOKUP(B106,Funding,Funding!$HM$2,FALSE))/(VLOOKUP(B106,Funding,Funding!$HN$2,FALSE))","v":0.10833333333333334},{"$f":"IFERROR((VLOOKUP(B106,Other_data,Other!$D$3,FALSE)+VLOOKUP(B106,Other_data,Other!$E$3,FALSE)+VLOOKUP(B106,Other_data,Other!$F$3,FALSE)), \"x\")","v":1130},{"$f":"(VLOOKUP(B106,Other_data,Other!$AK$3,FALSE)+VLOOKUP(B106,Other_data,Other!$AL$3,FALSE))/VLOOKUP(B106,Other_data,Other!$AJ$3,FALSE)","v":4.261808152332458E-2},{"$f":"(VLOOKUP(B106,Other_data,Other!$AR$3,FALSE)+VLOOKUP(B106,Other_data,Other!$AS$3,FALSE))/VLOOKUP(B106,Other_data,Other!$AQ$3,FALSE)","v":4.2235839186967571E-2},{"$f":"VLOOKUP(B106,Other_data,Other!$AP$3,FALSE)/VLOOKUP(B106,Other_data,Other!$AJ$3,FALSE)","v":6.5505078632614637E-3},{"$f":"VLOOKUP(B106,Other_data,Other!$AW$3,FALSE)/VLOOKUP(B106,Other_data,Other!$AQ$3,FALSE)","v":1.019279629352862E-2}]
[101,870,"Reading",{"$f":"IFERROR((VLOOKUP($B107,Pupils,Pupils!$D$3,FALSE)/VLOOKUP($B107,Pupils,Pupils!$C$3,FALSE)), \"x\")","v":2.546003310291111E-2},{"$f":"IFERROR((VLOOKUP($B107,Pupils,Pupils!$G$3,FALSE)/VLOOKUP($B107,Pupils,Pupils!$F$3,FALSE)),\"x\")","v":2.4898640591461959E-2},{"$f":"IFERROR((VLOOKUP($B107,Pupils,Pupils!$J$3,FALSE)/VLOOKUP($B107,Pupils,Pupils!$I$3,FALSE)), \"x\")","v":2.618123283779945E-2},{"$f":"IFERROR((VLOOKUP($B107,Pupils,Pupils!$M$3,FALSE)/VLOOKUP($B107,Pupils,Pupils!$L$3,FALSE)), \"x\")","v":2.6536828502861362E-2},{"$f":"IFERROR((VLOOKUP($B107,Pupils,Pupils!$R$3,FALSE)/VLOOKUP($B107,Pupils,Pupils!$Q$3,FALSE)), \"x\")","v":2.668886988613349E-2},{"$f":"IFERROR((VLOOKUP($B107,Pupils,Pupils!$W$3,FALSE)/VLOOKUP($B107,Pupils,Pupils!$V$3,FALSE)), \"x\")","v":2.648314313093475E-2},{"$f":"IFERROR(((VLOOKUP($B107,Pupils,Pupils!$D$3,FALSE)+VLOOKUP($B107,Pupils,Pupils!$E$3,FALSE))/VLOOKUP($B107,Pupils,Pupils!$C$3,FALSE)), \"x\")","v":0.22081588939733229},{"$f":"IFERROR(((VLOOKUP($B107,Pupils,Pupils!$G$3,FALSE)+VLOOKUP($B107,Pupils,Pupils!$H$3,FALSE))/VLOOKUP($B107,Pupils,Pupils!$F$3,FALSE)), \"x\")","v":0.21535893155258765},{"$f":"IFERROR(((VLOOKUP($B107,Pupils,Pupils!$J$3,FALSE)+VLOOKUP($B107,Pupils,Pupils!$K$3,FALSE))/VLOOKUP($B107,Pupils,Pupils!$I$3,FALSE)), \"x\")","v":0.22085976706751254},{"$f":"IFERROR(((VLOOKUP($B107,Pupils,Pupils!$M$3,FALSE)+VLOOKUP($B107,Pupils,Pupils!$P$3,FALSE))/VLOOKUP($B107,Pupils,Pupils!$L$3,FALSE)), \"x\")","v":0.21054088979139746},{"$f":"IFERROR(((VLOOKUP($B107,Pupils,Pupils!$R$3,FALSE)+VLOOKUP($B107,Pupils,Pupils!$U$3,FALSE))/VLOOKUP($B107,Pupils,Pupils!$Q$3,FALSE)), \"x\")","v":0.19991898825329674},{"$f":"IFERROR(((VLOOKUP($B107,Pupils,Pupils!$W$3,FALSE)+VLOOKUP($B107,Pupils,Pupils!$Z$3,FALSE))/VLOOKUP($B107,Pupils,Pupils!$V$3,FALSE)), \"x\")","v":0.18455440369370155},{"$f":"(SUM(INDEX(Pupils!$AB$7:$AB$159,MATCH($B107,Pupils!$A$7:$A$159,0)),INDEX(Pupils!$AC$7:$AC$159,MATCH($B107,Pupils!$A$7:$A$159,0)),INDEX(Pupils!$AD$7:$AD$159,MATCH($B107,Pupils!$A$7:$A$159,0)),INDEX(Pupils!$AE$7:$AE$159,MATCH($B107,Pupils!$A$7:$A$159,0))))/SUM(INDEX(Pupils!$AB$7:$AM$159,MATCH($B107,Pupils!$A$7:$A$159,0),0))","v":0.21015585721468075},{"$f":"SUM(INDEX(Pupils!$AF$7:$AF$159,MATCH($B107,Pupils!$A$7:$A$159,0)))/SUM(INDEX(Pupils!$AB$7:$AM$159,MATCH($B107,Pupils!$A$7:$A$159,0),0))","v":0.32880844645550528},{"$f":"SUM(INDEX(Pupils!$AG$7:$AG$159,MATCH($B107,Pupils!$A$7:$A$159,0)))/SUM(INDEX(Pupils!$AB$7:$AM$159,MATCH($B107,Pupils!$A$7:$A$159,0),0))","v":0.26143790849673204},{"$f":"(SUM(INDEX(Pupils!$AH$7:$AH$159,MATCH($B107,Pupils!$A$7:$A$159,0)),INDEX(Pupils!$AI$7:$AI$159,MATCH($B107,Pupils!$A$7:$A$159,0)),INDEX(Pupils!$AJ$7:$AJ$159,MATCH($B107,Pupils!$A$7:$A$159,0))))/SUM(INDEX(Pupils!$AB$7:$AM$159,MATCH($B107,Pupils!$A$7:$A$159,0),0))","v":3.6701860231271997E-2},{"$f":"SUM(INDEX(Pupils!$AK$7:$AK$159,MATCH($B107,Pupils!$A$7:$A$159,0)))/SUM(INDEX(Pupils!$AB$7:$AM$159,MATCH($B107,Pupils!$A$7:$A$159,0),0))","v":1.6088486676721969E-2},{"$f":"SUM(INDEX(Pupils!$AL$7:$AL$159,MATCH($B107,Pupils!$A$7:$A$159,0)))/SUM(INDEX(Pupils!$AB$7:$AM$159,MATCH($B107,Pupils!$A$7:$A$159,0),0))","v":0.11362493715434892},{"$f":"SUM(INDEX(Pupils!$AM$7:$AM$159,MATCH($B107,Pupils!$A$7:$A$159,0)))/SUM(INDEX(Pupils!$AB$7:$AM$159,MATCH($B107,Pupils!$A$7:$A$159,0),0))","v":3.3182503770739065E-2},{"$f":"(SUM(INDEX(Pupils!$BH$7:$BH$159,MATCH($B107,Pupils!$A$7:$A$159,0)),INDEX(Pupils!$BK$7:$BK$159,MATCH($B107,Pupils!$A$7:$A$159,0)),INDEX(Pupils!$BO$7:$BO$159,MATCH($B107,Pupils!$A$7:$A$159,0))))/SUM(INDEX(Pupils!$BH$7:$BS$159,MATCH($B107,Pupils!$A$7:$A$159,0),0))","v":0.42110990206746463},{"$f":"(SUM(INDEX(Pupils!$BL$7:$BL$159,MATCH($B107,Pupils!$A$7:$A$159,0)),INDEX(Pupils!$BM$7:$BM$159,MATCH($B107,Pupils!$A$7:$A$159,0)),INDEX(Pupils!$BP$7:$BP$159,MATCH($B107,Pupils!$A$7:$A$159,0))))/SUM(INDEX(Pupils!$BH$7:$BS$159,MATCH($B107,Pupils!$A$7:$A$159,0),0))","v":0.43090315560391729},{"$f":"(SUM(INDEX(Pupils!$BI$7:$BI$159,MATCH($B107,Pupils!$A$7:$A$159,0)),INDEX(Pupils!$BJ$7:$BJ$159,MATCH($B107,Pupils!$A$7:$A$159,0))))/SUM(INDEX(Pupils!$BH$7:$BS$159,MATCH($B107,Pupils!$A$7:$A$159,0),0))","v":0.11643090315560392},{"$f":"(SUM(INDEX(Pupils!$BQ$7:$BQ$159,MATCH($B107,Pupils!$A$7:$A$159,0)),INDEX(Pupils!$BR$7:$BR$159,MATCH($B107,Pupils!$A$7:$A$159,0)),INDEX(Pupils!$BN$7:$BN$159,MATCH($B107,Pupils!$A$7:$A$159,0)),INDEX(Pupils!$BS$7:$BS$159,MATCH($B107,Pupils!$A$7:$A$159,0))))/SUM(INDEX(Pupils!$BH$7:$BS$159,MATCH($B107,Pupils!$A$7:$A$159,0),0))","v":3.1556039173014146E-2},{"$f":"IFERROR((VLOOKUP(B107,Funding,Funding!$C$2,FALSE)), \"x\")","v":13544092.199999999},{"$f":"IFERROR((AA107/VLOOKUP(B107,Funding,Funding!$D$2,FALSE)), \"x\")","v":0.15035044829090988},{"$f":"IFERROR((AA107/(VLOOKUP(B107,Pupils,Pupils!$M$3,FALSE)+VLOOKUP(B107,Pupils,Pupils!$P$3,FALSE))), \"x\")","v":2968.8935116177113},{"$f":"IFERROR((VLOOKUP(B107,Funding,Funding!$E$2,FALSE)), \"x\")","v":16719729.191603491},{"$f":"IFERROR((AD107/VLOOKUP(B107,Funding,Funding!$F$2,FALSE)), \"x\")","v":0.17598741878765548},{"$f":"IFERROR((AD107/(VLOOKUP(B107,Pupils,Pupils!$R$3,FALSE)+VLOOKUP(B107,Pupils,Pupils!$U$3,FALSE))), \"x\")","v":3764.0092732110515},{"$f":"IFERROR((VLOOKUP(B107,Funding,Funding!$G$2,FALSE)), \"x\")","v":16461323.42535964},{"$f":"IFERROR((AG107/VLOOKUP(B107,Funding,Funding!$H$2,FALSE)), \"x\")","v":0.16877635805564589},{"$f":"IFERROR((AG107/(VLOOKUP(B107,Pupils,Pupils!$W$3,FALSE)+VLOOKUP(B107,Pupils,Pupils!$Z$3,FALSE))), \"x\")","v":3885.1365176680765},{"$f":"IFERROR((VLOOKUP(B107,Funding,Funding!$I$2,FALSE)), \"x\")","v":17032412.880008169},{"$f":"IFERROR((AJ107/VLOOKUP(B107,Funding,Funding!$J$2,FALSE)), \"x\")","v":0.16424857404611587},null,{"$f":"IFERROR((VLOOKUP($B107,Funding,Funding!$EC$2,FALSE)), \"x\")","v":7951907},{"$f":"IFERROR((AM107/VLOOKUP($B107,Funding,Funding!$EU$2,FALSE)), \"x\")","v":9.1775304973239838E-2},{"$f":"IFERROR((AM107/(VLOOKUP($B107,Pupils,Pupils!$D$3,FALSE)+VLOOKUP($B107,Pupils,Pupils!$E$3,FALSE))), \"x\")","v":1753.0659171075838},{"$f":"IFERROR((VLOOKUP($B107,Funding,Funding!$DA$2,FALSE)), \"x\")","v":8815461},{"$f":"IFERROR((AP107/VLOOKUP($B107,Funding,Funding!$DT$2,FALSE)), \"x\")","v":9.5741798036858172E-2},{"$f":"IFERROR((AP107/(VLOOKUP($B107,Pupils,Pupils!$G$3,FALSE)+VLOOKUP($B107,Pupils,Pupils!$H$3,FALSE))), \"x\")","v":1952.4830564784054},{"$f":"IFERROR((VLOOKUP($B107,Funding,Funding!$CE$2,FALSE)), \"x\")","v":8826291},{"$f":"IFERROR((AS107/VLOOKUP($B107,Funding,Funding!$CR$2,FALSE)), \"x\")","v":0.10917021731318491},{"$f":"IFERROR((AS107/(VLOOKUP($B107,Pupils,Pupils!$J$3,FALSE)+VLOOKUP($B107,Pupils,Pupils!$K$3,FALSE))), \"x\")","v":1892.0237942122187},{"$f":"IFERROR((VLOOKUP($B107,Funding,Funding!$BM$2,FALSE)), \"x\")","v":7414530.2000000002},{"$f":"IFERROR((AV107/VLOOKUP($B107,Funding,Funding!$BY$2,FALSE)), \"x\")","v":9.8152494590055969E-2},{"$f":"IFERROR((AV107/(VLOOKUP($B107,Pupils,Pupils!$M$3,FALSE)+VLOOKUP($B107,Pupils,Pupils!$P$3,FALSE))), \"x\")","v":1625.2806225339764},{"$f":"IFERROR((VLOOKUP($B107,Funding,Funding!$AQ$2,FALSE)), \"x\")","v":12376773},{"$f":"IFERROR((AY107/VLOOKUP($B107,Funding,Funding!$BE$2,FALSE)), \"x\")","v":0.12949229155716327},{"$f":"IFERROR((AY107/(VLOOKUP($B107,Pupils,Pupils!$R$3,FALSE)+VLOOKUP($B107,Pupils,Pupils!$U$3,FALSE))), \"x\")","v":2786.3063935164341},{"$f":"IFERROR((VLOOKUP($B107,Funding,Funding!$S$2,FALSE)), \"x\")","v":14090868},{"$f":"IFERROR((BB107/VLOOKUP($B107,Funding,Funding!$AH$2,FALSE)), \"x\")","v":0.14629709458786005},{"$f":"IFERROR((BB107/(VLOOKUP(B107,Pupils,Pupils!$W$3,FALSE)+VLOOKUP(B107,Pupils,Pupils!$Z$3,FALSE))), \"x\")","v":3325.6709936275665},{"$f":"IFERROR((VLOOKUP($B107,Funding,Funding!$GX$2,FALSE)), \"x\")","v":16105410.611500001},{"$f":"IFERROR((BE107/VLOOKUP($B107,Funding,Funding!$HC$2,FALSE)), \"x\")","v":0.16583946763324278},{"$f":"IFERROR((BE107/(VLOOKUP($B107,Pupils,Pupils!$D$3,FALSE)+VLOOKUP($B107,Pupils,Pupils!$E$3,FALSE))), \"x\")","v":3550.5755316358027},{"$f":"IFERROR((VLOOKUP($B107,Funding,Funding!$GP$2,FALSE)), \"x\")","v":17341345},{"$f":"IFERROR((BH107/VLOOKUP($B107,Funding,Funding!$GU$2,FALSE)), \"x\")","v":0.17549935459906132},{"$f":"IFERROR((BH107/(VLOOKUP($B107,Pupils,Pupils!$G$3,FALSE)+VLOOKUP($B107,Pupils,Pupils!$H$3,FALSE))), \"x\")","v":3840.8294573643411},{"$f":"IFERROR((VLOOKUP($B107,Funding,Funding!$GH$2,FALSE)), \"x\")","v":16429428.24},{"$f":"IFERROR((BK107/VLOOKUP($B107,Funding,Funding!$GM$2,FALSE)), \"x\")","v":0.21050468464696145},{"$f":"IFERROR((BK107/(VLOOKUP($B107,Pupils,Pupils!$J$3,FALSE)+VLOOKUP($B107,Pupils,Pupils!$K$3,FALSE))), \"x\")","v":3521.8495691318331},{"$f":"IFERROR((VLOOKUP($B107,Funding,Funding!$FZ$2,FALSE)), \"x\")","v":16585133.370000001},{"$f":"IFERROR((BN107/VLOOKUP($B107,Funding,Funding!$GE$2,FALSE)), \"x\")","v":0.20921800515315056},{"$f":"IFERROR((BN107/(VLOOKUP($B107,Pupils,Pupils!$M$3,FALSE)+VLOOKUP($B107,Pupils,Pupils!$P$3,FALSE))), \"x\")","v":3635.4961354669008},{"$f":"IFERROR((VLOOKUP($B107,Funding,Funding!$FD$2,FALSE)), \"x\")","v":13121404},{"$f":"IFERROR((BQ107/VLOOKUP($B107,Funding,Funding!$FR$2,FALSE)), \"x\")","v":0.13819278242194746},{"$f":"IFERROR((BQ107/(VLOOKUP($B107,Pupils,Pupils!$R$3,FALSE)+VLOOKUP($B107,Pupils,Pupils!$U$3,FALSE))), \"x\")","v":2953.9405673120218},{"$f":"(VLOOKUP(B107,Funding,Funding!$HK$2,FALSE)+VLOOKUP(B107,Funding,Funding!$HL$2,FALSE)+VLOOKUP(B107,Funding,Funding!$HM$2,FALSE))/(VLOOKUP(B107,Funding,Funding!$HN$2,FALSE))","v":0.2326388888888889},{"$f":"IFERROR((VLOOKUP(B107,Other_data,Other!$D$3,FALSE)+VLOOKUP(B107,Other_data,Other!$E$3,FALSE)+VLOOKUP(B107,Other_data,Other!$F$3,FALSE)), \"x\")","v":1010},{"$f":"(VLOOKUP(B107,Other_data,Other!$AK$3,FALSE)+VLOOKUP(B107,Other_data,Other!$AL$3,FALSE))/VLOOKUP(B107,Other_data,Other!$AJ$3,FALSE)","v":3.7232267965570158E-2},{"$f":"(VLOOKUP(B107,Other_data,Other!$AR$3,FALSE)+VLOOKUP(B107,Other_data,Other!$AS$3,FALSE))/VLOOKUP(B107,Other_data,Other!$AQ$3,FALSE)","v":4.3592198760268104E-2},{"$f":"VLOOKUP(B107,Other_data,Other!$AP$3,FALSE)/VLOOKUP(B107,Other_data,Other!$AJ$3,FALSE)","v":5.5381330486421569E-3},{"$f":"VLOOKUP(B107,Other_data,Other!$AW$3,FALSE)/VLOOKUP(B107,Other_data,Other!$AQ$3,FALSE)","v":9.2727914125888215E-3}]
[102,317,"Redbridge",{"$f":"IFERROR((VLOOKUP($B108,Pupils,Pupils!$D$3,FALSE)/VLOOKUP($B108,Pupils,Pupils!$C$3,FALSE)), \"x\")","v":2.5479808270749645E-2},{"$f":"IFERROR((VLOOKUP($B108,Pupils,Pupils!$G$3,FALSE)/VLOOKUP($B108,Pupils,Pupils!$F$3,FALSE)),\"x\")","v":2.4007474924678692E-2},{"$f":"IFERROR((VLOOKUP($B108,Pupils,Pupils!$J$3,FALSE)/VLOOKUP($B108,Pupils,Pupils!$I$3,FALSE)), \"x\")","v":2.3675583041502125E-2},{"$f":"IFERROR((VLOOKUP($B108,Pupils,Pupils!$M$3,FALSE)/VLOOKUP($B108,Pupils,Pupils!$L$3,FALSE)), \"x\")","v":2.323289471282828E-2},{"$f":"IFERROR((VLOOKUP($B108,Pupils,Pupils!$R$3,FALSE)/VLOOKUP($B108,Pupils,Pupils!$Q$3,FALSE)), \"x\")","v":2.3483541756504241E-2},{"$f":"IFERROR((VLOOKUP($B108,Pupils,Pupils!$W$3,FALSE)/VLOOKUP($B108,Pupils,Pupils!$V$3,FALSE)), \"x\")","v":2.3794416243654821E-2},{"$f":"IFERROR(((VLOOKUP($B108,Pupils,Pupils!$D$3,FALSE)+VLOOKUP($B108,Pupils,Pupils!$E$3,FALSE))/VLOOKUP($B108,Pupils,Pupils!$C$3,FALSE)), \"x\")","v":0.16626884787797636},{"$f":"IFERROR(((VLOOKUP($B108,Pupils,Pupils!$G$3,FALSE)+VLOOKUP($B108,Pupils,Pupils!$H$3,FALSE))/VLOOKUP($B108,Pupils,Pupils!$F$3,FALSE)), \"x\")","v":0.17649975210708974},{"$f":"IFERROR(((VLOOKUP($B108,Pupils,Pupils!$J$3,FALSE)+VLOOKUP($B108,Pupils,Pupils!$K$3,FALSE))/VLOOKUP($B108,Pupils,Pupils!$I$3,FALSE)), \"x\")","v":0.17079576782654049},{"$f":"IFERROR(((VLOOKUP($B108,Pupils,Pupils!$M$3,FALSE)+VLOOKUP($B108,Pupils,Pupils!$P$3,FALSE))/VLOOKUP($B108,Pupils,Pupils!$L$3,FALSE)), \"x\")","v":0.15876115562206852},{"$f":"IFERROR(((VLOOKUP($B108,Pupils,Pupils!$R$3,FALSE)+VLOOKUP($B108,Pupils,Pupils!$U$3,FALSE))/VLOOKUP($B108,Pupils,Pupils!$Q$3,FALSE)), \"x\")","v":0.15700014374011786},{"$f":"IFERROR(((VLOOKUP($B108,Pupils,Pupils!$W$3,FALSE)+VLOOKUP($B108,Pupils,Pupils!$Z$3,FALSE))/VLOOKUP($B108,Pupils,Pupils!$V$3,FALSE)), \"x\")","v":0.14941130851663847},{"$f":"(SUM(INDEX(Pupils!$AB$7:$AB$159,MATCH($B108,Pupils!$A$7:$A$159,0)),INDEX(Pupils!$AC$7:$AC$159,MATCH($B108,Pupils!$A$7:$A$159,0)),INDEX(Pupils!$AD$7:$AD$159,MATCH($B108,Pupils!$A$7:$A$159,0)),INDEX(Pupils!$AE$7:$AE$159,MATCH($B108,Pupils!$A$7:$A$159,0))))/SUM(INDEX(Pupils!$AB$7:$AM$159,MATCH($B108,Pupils!$A$7:$A$159,0),0))","v":0.31108747673491094},{"$f":"SUM(INDEX(Pupils!$AF$7:$AF$159,MATCH($B108,Pupils!$A$7:$A$159,0)))/SUM(INDEX(Pupils!$AB$7:$AM$159,MATCH($B108,Pupils!$A$7:$A$159,0),0))","v":0.23318266418505718},{"$f":"SUM(INDEX(Pupils!$AG$7:$AG$159,MATCH($B108,Pupils!$A$7:$A$159,0)))/SUM(INDEX(Pupils!$AB$7:$AM$159,MATCH($B108,Pupils!$A$7:$A$159,0),0))","v":0.25206062217495345},{"$f":"(SUM(INDEX(Pupils!$AH$7:$AH$159,MATCH($B108,Pupils!$A$7:$A$159,0)),INDEX(Pupils!$AI$7:$AI$159,MATCH($B108,Pupils!$A$7:$A$159,0)),INDEX(Pupils!$AJ$7:$AJ$159,MATCH($B108,Pupils!$A$7:$A$159,0))))/SUM(INDEX(Pupils!$AB$7:$AM$159,MATCH($B108,Pupils!$A$7:$A$159,0),0))","v":4.812549853762297E-2},{"$f":"SUM(INDEX(Pupils!$AK$7:$AK$159,MATCH($B108,Pupils!$A$7:$A$159,0)))/SUM(INDEX(Pupils!$AB$7:$AM$159,MATCH($B108,Pupils!$A$7:$A$159,0),0))","v":3.695825578303643E-2},{"$f":"SUM(INDEX(Pupils!$AL$7:$AL$159,MATCH($B108,Pupils!$A$7:$A$159,0)))/SUM(INDEX(Pupils!$AB$7:$AM$159,MATCH($B108,Pupils!$A$7:$A$159,0),0))","v":8.8274395107684131E-2},{"$f":"SUM(INDEX(Pupils!$AM$7:$AM$159,MATCH($B108,Pupils!$A$7:$A$159,0)))/SUM(INDEX(Pupils!$AB$7:$AM$159,MATCH($B108,Pupils!$A$7:$A$159,0),0))","v":3.0311087476734912E-2},{"$f":"(SUM(INDEX(Pupils!$BH$7:$BH$159,MATCH($B108,Pupils!$A$7:$A$159,0)),INDEX(Pupils!$BK$7:$BK$159,MATCH($B108,Pupils!$A$7:$A$159,0)),INDEX(Pupils!$BO$7:$BO$159,MATCH($B108,Pupils!$A$7:$A$159,0))))/SUM(INDEX(Pupils!$BH$7:$BS$159,MATCH($B108,Pupils!$A$7:$A$159,0),0))","v":0.51219512195121952},{"$f":"(SUM(INDEX(Pupils!$BL$7:$BL$159,MATCH($B108,Pupils!$A$7:$A$159,0)),INDEX(Pupils!$BM$7:$BM$159,MATCH($B108,Pupils!$A$7:$A$159,0)),INDEX(Pupils!$BP$7:$BP$159,MATCH($B108,Pupils!$A$7:$A$159,0))))/SUM(INDEX(Pupils!$BH$7:$BS$159,MATCH($B108,Pupils!$A$7:$A$159,0),0))","v":0.3916376306620209},{"$f":"(SUM(INDEX(Pupils!$BI$7:$BI$159,MATCH($B108,Pupils!$A$7:$A$159,0)),INDEX(Pupils!$BJ$7:$BJ$159,MATCH($B108,Pupils!$A$7:$A$159,0))))/SUM(INDEX(Pupils!$BH$7:$BS$159,MATCH($B108,Pupils!$A$7:$A$159,0),0))","v":8.5714285714285715E-2},{"$f":"(SUM(INDEX(Pupils!$BQ$7:$BQ$159,MATCH($B108,Pupils!$A$7:$A$159,0)),INDEX(Pupils!$BR$7:$BR$159,MATCH($B108,Pupils!$A$7:$A$159,0)),INDEX(Pupils!$BN$7:$BN$159,MATCH($B108,Pupils!$A$7:$A$159,0)),INDEX(Pupils!$BS$7:$BS$159,MATCH($B108,Pupils!$A$7:$A$159,0))))/SUM(INDEX(Pupils!$BH$7:$BS$159,MATCH($B108,Pupils!$A$7:$A$159,0),0))","v":1.0452961672473868E-2},{"$f":"IFERROR((VLOOKUP(B108,Funding,Funding!$C$2,FALSE)), \"x\")","v":33421017.309999995},{"$f":"IFERROR((AA108/VLOOKUP(B108,Funding,Funding!$D$2,FALSE)), \"x\")","v":0.14011304077490117},{"$f":"IFERROR((AA108/(VLOOKUP(B108,Pupils,Pupils!$M$3,FALSE)+VLOOKUP(B108,Pupils,Pupils!$P$3,FALSE))), \"x\")","v":3841.9378445798361},{"$f":"IFERROR((VLOOKUP(B108,Funding,Funding!$E$2,FALSE)), \"x\")","v":35896276.094127089},{"$f":"IFERROR((AD108/VLOOKUP(B108,Funding,Funding!$F$2,FALSE)), \"x\")","v":0.14319489700083618},{"$f":"IFERROR((AD108/(VLOOKUP(B108,Pupils,Pupils!$R$3,FALSE)+VLOOKUP(B108,Pupils,Pupils!$U$3,FALSE))), \"x\")","v":4108.0654719760914},{"$f":"IFERROR((VLOOKUP(B108,Funding,Funding!$G$2,FALSE)), \"x\")","v":36015132.129881859},{"$f":"IFERROR((AG108/VLOOKUP(B108,Funding,Funding!$H$2,FALSE)), \"x\")","v":0.14146879681517102},{"$f":"IFERROR((AG108/(VLOOKUP(B108,Pupils,Pupils!$W$3,FALSE)+VLOOKUP(B108,Pupils,Pupils!$Z$3,FALSE))), \"x\")","v":4248.5705001630131},{"$f":"IFERROR((VLOOKUP(B108,Funding,Funding!$I$2,FALSE)), \"x\")","v":36311288.200485811},{"$f":"IFERROR((AJ108/VLOOKUP(B108,Funding,Funding!$J$2,FALSE)), \"x\")","v":0.13622488576605796},null,{"$f":"IFERROR((VLOOKUP($B108,Funding,Funding!$EC$2,FALSE)), \"x\")","v":19027235.399999999},{"$f":"IFERROR((AM108/VLOOKUP($B108,Funding,Funding!$EU$2,FALSE)), \"x\")","v":7.8565950892554248E-2},{"$f":"IFERROR((AM108/(VLOOKUP($B108,Pupils,Pupils!$D$3,FALSE)+VLOOKUP($B108,Pupils,Pupils!$E$3,FALSE))), \"x\")","v":2220.7324229691876},{"$f":"IFERROR((VLOOKUP($B108,Funding,Funding!$DA$2,FALSE)), \"x\")","v":19440671.530660003},{"$f":"IFERROR((AP108/VLOOKUP($B108,Funding,Funding!$DT$2,FALSE)), \"x\")","v":7.5225805254622385E-2},{"$f":"IFERROR((AP108/(VLOOKUP($B108,Pupils,Pupils!$G$3,FALSE)+VLOOKUP($B108,Pupils,Pupils!$H$3,FALSE))), \"x\")","v":2100.3318421197064},{"$f":"IFERROR((VLOOKUP($B108,Funding,Funding!$CE$2,FALSE)), \"x\")","v":13394856.721800001},{"$f":"IFERROR((AS108/VLOOKUP($B108,Funding,Funding!$CR$2,FALSE)), \"x\")","v":8.7070406115280233E-2},{"$f":"IFERROR((AS108/(VLOOKUP($B108,Pupils,Pupils!$J$3,FALSE)+VLOOKUP($B108,Pupils,Pupils!$K$3,FALSE))), \"x\")","v":1460.8852352273968},{"$f":"IFERROR((VLOOKUP($B108,Funding,Funding!$BM$2,FALSE)), \"x\")","v":22650414.52},{"$f":"IFERROR((AV108/VLOOKUP($B108,Funding,Funding!$BY$2,FALSE)), \"x\")","v":8.8996949778216358E-2},{"$f":"IFERROR((AV108/(VLOOKUP($B108,Pupils,Pupils!$M$3,FALSE)+VLOOKUP($B108,Pupils,Pupils!$P$3,FALSE))), \"x\")","v":2603.7952086446717},{"$f":"IFERROR((VLOOKUP($B108,Funding,Funding!$AQ$2,FALSE)), \"x\")","v":33990369},{"$f":"IFERROR((AY108/VLOOKUP($B108,Funding,Funding!$BE$2,FALSE)), \"x\")","v":0.11904942222342084},{"$f":"IFERROR((AY108/(VLOOKUP($B108,Pupils,Pupils!$R$3,FALSE)+VLOOKUP($B108,Pupils,Pupils!$U$3,FALSE))), \"x\")","v":3889.9483863584346},{"$f":"IFERROR((VLOOKUP($B108,Funding,Funding!$S$2,FALSE)), \"x\")","v":34462548},{"$f":"IFERROR((BB108/VLOOKUP($B108,Funding,Funding!$AH$2,FALSE)), \"x\")","v":0.12498405900134429},{"$f":"IFERROR((BB108/(VLOOKUP(B108,Pupils,Pupils!$W$3,FALSE)+VLOOKUP(B108,Pupils,Pupils!$Z$3,FALSE))), \"x\")","v":4065.4179544650228},{"$f":"IFERROR((VLOOKUP($B108,Funding,Funding!$GX$2,FALSE)), \"x\")","v":37767251},{"$f":"IFERROR((BE108/VLOOKUP($B108,Funding,Funding!$HC$2,FALSE)), \"x\")","v":0.14515253631013},{"$f":"IFERROR((BE108/(VLOOKUP($B108,Pupils,Pupils!$D$3,FALSE)+VLOOKUP($B108,Pupils,Pupils!$E$3,FALSE))), \"x\")","v":4407.9424603174602},{"$f":"IFERROR((VLOOKUP($B108,Funding,Funding!$GP$2,FALSE)), \"x\")","v":41230377.629999995},{"$f":"IFERROR((BH108/VLOOKUP($B108,Funding,Funding!$GU$2,FALSE)), \"x\")","v":0.15475078023077696},{"$f":"IFERROR((BH108/(VLOOKUP($B108,Pupils,Pupils!$G$3,FALSE)+VLOOKUP($B108,Pupils,Pupils!$H$3,FALSE))), \"x\")","v":4454.4487499999996},{"$f":"IFERROR((VLOOKUP($B108,Funding,Funding!$GH$2,FALSE)), \"x\")","v":42874783.420000002},{"$f":"IFERROR((BK108/VLOOKUP($B108,Funding,Funding!$GM$2,FALSE)), \"x\")","v":0.16585437189641247},{"$f":"IFERROR((BK108/(VLOOKUP($B108,Pupils,Pupils!$J$3,FALSE)+VLOOKUP($B108,Pupils,Pupils!$K$3,FALSE))), \"x\")","v":4676.0588308430579},{"$f":"IFERROR((VLOOKUP($B108,Funding,Funding!$FZ$2,FALSE)), \"x\")","v":45135408.859999999},{"$f":"IFERROR((BN108/VLOOKUP($B108,Funding,Funding!$GE$2,FALSE)), \"x\")","v":0.16889323880156862},{"$f":"IFERROR((BN108/(VLOOKUP($B108,Pupils,Pupils!$M$3,FALSE)+VLOOKUP($B108,Pupils,Pupils!$P$3,FALSE))), \"x\")","v":5188.5744177491661},{"$f":"IFERROR((VLOOKUP($B108,Funding,Funding!$FD$2,FALSE)), \"x\")","v":31405095.869999997},{"$f":"IFERROR((BQ108/VLOOKUP($B108,Funding,Funding!$FR$2,FALSE)), \"x\")","v":0.12583619167794122},{"$f":"IFERROR((BQ108/(VLOOKUP($B108,Pupils,Pupils!$R$3,FALSE)+VLOOKUP($B108,Pupils,Pupils!$U$3,FALSE))), \"x\")","v":3594.0828416113523},{"$f":"(VLOOKUP(B108,Funding,Funding!$HK$2,FALSE)+VLOOKUP(B108,Funding,Funding!$HL$2,FALSE)+VLOOKUP(B108,Funding,Funding!$HM$2,FALSE))/(VLOOKUP(B108,Funding,Funding!$HN$2,FALSE))","v":0.26293995859213248},{"$f":"IFERROR((VLOOKUP(B108,Other_data,Other!$D$3,FALSE)+VLOOKUP(B108,Other_data,Other!$E$3,FALSE)+VLOOKUP(B108,Other_data,Other!$F$3,FALSE)), \"x\")","v":1320},{"$f":"(VLOOKUP(B108,Other_data,Other!$AK$3,FALSE)+VLOOKUP(B108,Other_data,Other!$AL$3,FALSE))/VLOOKUP(B108,Other_data,Other!$AJ$3,FALSE)","v":2.9817499085108754E-2},{"$f":"(VLOOKUP(B108,Other_data,Other!$AR$3,FALSE)+VLOOKUP(B108,Other_data,Other!$AS$3,FALSE))/VLOOKUP(B108,Other_data,Other!$AQ$3,FALSE)","v":4.2350593996553915E-2},{"$f":"VLOOKUP(B108,Other_data,Other!$AP$3,FALSE)/VLOOKUP(B108,Other_data,Other!$AJ$3,FALSE)","v":5.9985043517001065E-3},{"$f":"VLOOKUP(B108,Other_data,Other!$AW$3,FALSE)/VLOOKUP(B108,Other_data,Other!$AQ$3,FALSE)","v":1.009642997491007E-2}]
[103,807,"Redcar and Cleveland",{"$f":"IFERROR((VLOOKUP($B109,Pupils,Pupils!$D$3,FALSE)/VLOOKUP($B109,Pupils,Pupils!$C$3,FALSE)), \"x\")","v":2.9777777777777778E-2},{"$f":"IFERROR((VLOOKUP($B109,Pupils,Pupils!$G$3,FALSE)/VLOOKUP($B109,Pupils,Pupils!$F$3,FALSE)),\"x\")","v":2.7404040858569949E-2},{"$f":"IFERROR((VLOOKUP($B109,Pupils,Pupils!$J$3,FALSE)/VLOOKUP($B109,Pupils,Pupils!$I$3,FALSE)), \"x\")","v":2.7892985734469713E-2},{"$f":"IFERROR((VLOOKUP($B109,Pupils,Pupils!$M$3,FALSE)/VLOOKUP($B109,Pupils,Pupils!$L$3,FALSE)), \"x\")","v":2.7841905993166497E-2},{"$f":"IFERROR((VLOOKUP($B109,Pupils,Pupils!$R$3,FALSE)/VLOOKUP($B109,Pupils,Pupils!$Q$3,FALSE)), \"x\")","v":2.9243837905584179E-2},{"$f":"IFERROR((VLOOKUP($B109,Pupils,Pupils!$W$3,FALSE)/VLOOKUP($B109,Pupils,Pupils!$V$3,FALSE)), \"x\")","v":3.1762391080296076E-2},{"$f":"IFERROR(((VLOOKUP($B109,Pupils,Pupils!$D$3,FALSE)+VLOOKUP($B109,Pupils,Pupils!$E$3,FALSE))/VLOOKUP($B109,Pupils,Pupils!$C$3,FALSE)), \"x\")","v":0.24968888888888888},{"$f":"IFERROR(((VLOOKUP($B109,Pupils,Pupils!$G$3,FALSE)+VLOOKUP($B109,Pupils,Pupils!$H$3,FALSE))/VLOOKUP($B109,Pupils,Pupils!$F$3,FALSE)), \"x\")","v":0.24807631732889349},{"$f":"IFERROR(((VLOOKUP($B109,Pupils,Pupils!$J$3,FALSE)+VLOOKUP($B109,Pupils,Pupils!$K$3,FALSE))/VLOOKUP($B109,Pupils,Pupils!$I$3,FALSE)), \"x\")","v":0.25468301353630191},{"$f":"IFERROR(((VLOOKUP($B109,Pupils,Pupils!$M$3,FALSE)+VLOOKUP($B109,Pupils,Pupils!$P$3,FALSE))/VLOOKUP($B109,Pupils,Pupils!$L$3,FALSE)), \"x\")","v":0.24185058638840151},{"$f":"IFERROR(((VLOOKUP($B109,Pupils,Pupils!$R$3,FALSE)+VLOOKUP($B109,Pupils,Pupils!$U$3,FALSE))/VLOOKUP($B109,Pupils,Pupils!$Q$3,FALSE)), \"x\")","v":0.22610592767952467},{"$f":"IFERROR(((VLOOKUP($B109,Pupils,Pupils!$W$3,FALSE)+VLOOKUP($B109,Pupils,Pupils!$Z$3,FALSE))/VLOOKUP($B109,Pupils,Pupils!$V$3,FALSE)), \"x\")","v":0.22641244261219901},{"$f":"(SUM(INDEX(Pupils!$AB$7:$AB$159,MATCH($B109,Pupils!$A$7:$A$159,0)),INDEX(Pupils!$AC$7:$AC$159,MATCH($B109,Pupils!$A$7:$A$159,0)),INDEX(Pupils!$AD$7:$AD$159,MATCH($B109,Pupils!$A$7:$A$159,0)),INDEX(Pupils!$AE$7:$AE$159,MATCH($B109,Pupils!$A$7:$A$159,0))))/SUM(INDEX(Pupils!$AB$7:$AM$159,MATCH($B109,Pupils!$A$7:$A$159,0),0))","v":0.4325984821105891},{"$f":"SUM(INDEX(Pupils!$AF$7:$AF$159,MATCH($B109,Pupils!$A$7:$A$159,0)))/SUM(INDEX(Pupils!$AB$7:$AM$159,MATCH($B109,Pupils!$A$7:$A$159,0),0))","v":0.20130104806649801},{"$f":"SUM(INDEX(Pupils!$AG$7:$AG$159,MATCH($B109,Pupils!$A$7:$A$159,0)))/SUM(INDEX(Pupils!$AB$7:$AM$159,MATCH($B109,Pupils!$A$7:$A$159,0),0))","v":0.18901337188290568},{"$f":"(SUM(INDEX(Pupils!$AH$7:$AH$159,MATCH($B109,Pupils!$A$7:$A$159,0)),INDEX(Pupils!$AI$7:$AI$159,MATCH($B109,Pupils!$A$7:$A$159,0)),INDEX(Pupils!$AJ$7:$AJ$159,MATCH($B109,Pupils!$A$7:$A$159,0))))/SUM(INDEX(Pupils!$AB$7:$AM$159,MATCH($B109,Pupils!$A$7:$A$159,0),0))","v":1.6624503071919046E-2},{"$f":"SUM(INDEX(Pupils!$AK$7:$AK$159,MATCH($B109,Pupils!$A$7:$A$159,0)))/SUM(INDEX(Pupils!$AB$7:$AM$159,MATCH($B109,Pupils!$A$7:$A$159,0),0))","v":4.5536682327430432E-2},{"$f":"SUM(INDEX(Pupils!$AL$7:$AL$159,MATCH($B109,Pupils!$A$7:$A$159,0)))/SUM(INDEX(Pupils!$AB$7:$AM$159,MATCH($B109,Pupils!$A$7:$A$159,0),0))","v":8.6375135525840266E-2},{"$f":"SUM(INDEX(Pupils!$AM$7:$AM$159,MATCH($B109,Pupils!$A$7:$A$159,0)))/SUM(INDEX(Pupils!$AB$7:$AM$159,MATCH($B109,Pupils!$A$7:$A$159,0),0))","v":2.855077701481749E-2},{"$f":"(SUM(INDEX(Pupils!$BH$7:$BH$159,MATCH($B109,Pupils!$A$7:$A$159,0)),INDEX(Pupils!$BK$7:$BK$159,MATCH($B109,Pupils!$A$7:$A$159,0)),INDEX(Pupils!$BO$7:$BO$159,MATCH($B109,Pupils!$A$7:$A$159,0))))/SUM(INDEX(Pupils!$BH$7:$BS$159,MATCH($B109,Pupils!$A$7:$A$159,0),0))","v":0.41168289290681503},{"$f":"(SUM(INDEX(Pupils!$BL$7:$BL$159,MATCH($B109,Pupils!$A$7:$A$159,0)),INDEX(Pupils!$BM$7:$BM$159,MATCH($B109,Pupils!$A$7:$A$159,0)),INDEX(Pupils!$BP$7:$BP$159,MATCH($B109,Pupils!$A$7:$A$159,0))))/SUM(INDEX(Pupils!$BH$7:$BS$159,MATCH($B109,Pupils!$A$7:$A$159,0),0))","v":0.50486787204450623},{"$f":"(SUM(INDEX(Pupils!$BI$7:$BI$159,MATCH($B109,Pupils!$A$7:$A$159,0)),INDEX(Pupils!$BJ$7:$BJ$159,MATCH($B109,Pupils!$A$7:$A$159,0))))/SUM(INDEX(Pupils!$BH$7:$BS$159,MATCH($B109,Pupils!$A$7:$A$159,0),0))","v":8.3449235048678724E-2},{"$f":"(SUM(INDEX(Pupils!$BQ$7:$BQ$159,MATCH($B109,Pupils!$A$7:$A$159,0)),INDEX(Pupils!$BR$7:$BR$159,MATCH($B109,Pupils!$A$7:$A$159,0)),INDEX(Pupils!$BN$7:$BN$159,MATCH($B109,Pupils!$A$7:$A$159,0)),INDEX(Pupils!$BS$7:$BS$159,MATCH($B109,Pupils!$A$7:$A$159,0))))/SUM(INDEX(Pupils!$BH$7:$BS$159,MATCH($B109,Pupils!$A$7:$A$159,0),0))","v":0},{"$f":"IFERROR((VLOOKUP(B109,Funding,Funding!$C$2,FALSE)), \"x\")","v":13907630.199999999},{"$f":"IFERROR((AA109/VLOOKUP(B109,Funding,Funding!$D$2,FALSE)), \"x\")","v":0.13177564448579662},{"$f":"IFERROR((AA109/(VLOOKUP(B109,Pupils,Pupils!$M$3,FALSE)+VLOOKUP(B109,Pupils,Pupils!$P$3,FALSE))), \"x\")","v":2655.1413134784266},{"$f":"IFERROR((VLOOKUP(B109,Funding,Funding!$E$2,FALSE)), \"x\")","v":14867824.839130336},{"$f":"IFERROR((AD109/VLOOKUP(B109,Funding,Funding!$F$2,FALSE)), \"x\")","v":0.13842463876680347},{"$f":"IFERROR((AD109/(VLOOKUP(B109,Pupils,Pupils!$R$3,FALSE)+VLOOKUP(B109,Pupils,Pupils!$U$3,FALSE))), \"x\")","v":3052.3146867440641},{"$f":"IFERROR((VLOOKUP(B109,Funding,Funding!$G$2,FALSE)), \"x\")","v":14820321.594400363},{"$f":"IFERROR((AG109/VLOOKUP(B109,Funding,Funding!$H$2,FALSE)), \"x\")","v":0.13745639180382432},{"$f":"IFERROR((AG109/(VLOOKUP(B109,Pupils,Pupils!$W$3,FALSE)+VLOOKUP(B109,Pupils,Pupils!$Z$3,FALSE))), \"x\")","v":3066.484915042492},{"$f":"IFERROR((VLOOKUP(B109,Funding,Funding!$I$2,FALSE)), \"x\")","v":14950832.298862385},{"$f":"IFERROR((AJ109/VLOOKUP(B109,Funding,Funding!$J$2,FALSE)), \"x\")","v":0.14065679112323845},null,{"$f":"IFERROR((VLOOKUP($B109,Funding,Funding!$EC$2,FALSE)), \"x\")","v":9215881},{"$f":"IFERROR((AM109/VLOOKUP($B109,Funding,Funding!$EU$2,FALSE)), \"x\")","v":8.5563311842422579E-2},{"$f":"IFERROR((AM109/(VLOOKUP($B109,Pupils,Pupils!$D$3,FALSE)+VLOOKUP($B109,Pupils,Pupils!$E$3,FALSE))), \"x\")","v":1640.4202563189747},{"$f":"IFERROR((VLOOKUP($B109,Funding,Funding!$DA$2,FALSE)), \"x\")","v":9877376},{"$f":"IFERROR((AP109/VLOOKUP($B109,Funding,Funding!$DT$2,FALSE)), \"x\")","v":8.970282549783809E-2},{"$f":"IFERROR((AP109/(VLOOKUP($B109,Pupils,Pupils!$G$3,FALSE)+VLOOKUP($B109,Pupils,Pupils!$H$3,FALSE))), \"x\")","v":1791.6517322691818},{"$f":"IFERROR((VLOOKUP($B109,Funding,Funding!$CE$2,FALSE)), \"x\")","v":9898238},{"$f":"IFERROR((AS109/VLOOKUP($B109,Funding,Funding!$CR$2,FALSE)), \"x\")","v":9.2108201251785315E-2},{"$f":"IFERROR((AS109/(VLOOKUP($B109,Pupils,Pupils!$J$3,FALSE)+VLOOKUP($B109,Pupils,Pupils!$K$3,FALSE))), \"x\")","v":1771.3382247673587},{"$f":"IFERROR((VLOOKUP($B109,Funding,Funding!$BM$2,FALSE)), \"x\")","v":10232278.219999999},{"$f":"IFERROR((AV109/VLOOKUP($B109,Funding,Funding!$BY$2,FALSE)), \"x\")","v":9.3374225722746951E-2},{"$f":"IFERROR((AV109/(VLOOKUP($B109,Pupils,Pupils!$M$3,FALSE)+VLOOKUP($B109,Pupils,Pupils!$P$3,FALSE))), \"x\")","v":1953.4704505536463},{"$f":"IFERROR((VLOOKUP($B109,Funding,Funding!$AQ$2,FALSE)), \"x\")","v":12471656},{"$f":"IFERROR((AY109/VLOOKUP($B109,Funding,Funding!$BE$2,FALSE)), \"x\")","v":0.11429266964679521},{"$f":"IFERROR((AY109/(VLOOKUP($B109,Pupils,Pupils!$R$3,FALSE)+VLOOKUP($B109,Pupils,Pupils!$U$3,FALSE))), \"x\")","v":2560.3892424553478},{"$f":"IFERROR((VLOOKUP($B109,Funding,Funding!$S$2,FALSE)), \"x\")","v":13047625},{"$f":"IFERROR((BB109/VLOOKUP($B109,Funding,Funding!$AH$2,FALSE)), \"x\")","v":0.12088146839480871},{"$f":"IFERROR((BB109/(VLOOKUP(B109,Pupils,Pupils!$W$3,FALSE)+VLOOKUP(B109,Pupils,Pupils!$Z$3,FALSE))), \"x\")","v":2699.6948065383822},{"$f":"IFERROR((VLOOKUP($B109,Funding,Funding!$GX$2,FALSE)), \"x\")","v":14475212},{"$f":"IFERROR((BE109/VLOOKUP($B109,Funding,Funding!$HC$2,FALSE)), \"x\")","v":0.11842927786099386},{"$f":"IFERROR((BE109/(VLOOKUP($B109,Pupils,Pupils!$D$3,FALSE)+VLOOKUP($B109,Pupils,Pupils!$E$3,FALSE))), \"x\")","v":2576.5774296902814},{"$f":"IFERROR((VLOOKUP($B109,Funding,Funding!$GP$2,FALSE)), \"x\")","v":14032790.09},{"$f":"IFERROR((BH109/VLOOKUP($B109,Funding,Funding!$GU$2,FALSE)), \"x\")","v":0.11389845988635255},{"$f":"IFERROR((BH109/(VLOOKUP($B109,Pupils,Pupils!$G$3,FALSE)+VLOOKUP($B109,Pupils,Pupils!$H$3,FALSE))), \"x\")","v":2545.3999800471611},{"$f":"IFERROR((VLOOKUP($B109,Funding,Funding!$GH$2,FALSE)), \"x\")","v":13961299.120000001},{"$f":"IFERROR((BK109/VLOOKUP($B109,Funding,Funding!$GM$2,FALSE)), \"x\")","v":0.12005676781858732},{"$f":"IFERROR((BK109/(VLOOKUP($B109,Pupils,Pupils!$J$3,FALSE)+VLOOKUP($B109,Pupils,Pupils!$K$3,FALSE))), \"x\")","v":2498.4429348604153},{"$f":"IFERROR((VLOOKUP($B109,Funding,Funding!$FZ$2,FALSE)), \"x\")","v":13939393.699999999},{"$f":"IFERROR((BN109/VLOOKUP($B109,Funding,Funding!$GE$2,FALSE)), \"x\")","v":0.1347296011714941},{"$f":"IFERROR((BN109/(VLOOKUP($B109,Pupils,Pupils!$M$3,FALSE)+VLOOKUP($B109,Pupils,Pupils!$P$3,FALSE))), \"x\")","v":2661.2053646429936},{"$f":"IFERROR((VLOOKUP($B109,Funding,Funding!$FD$2,FALSE)), \"x\")","v":12144986},{"$f":"IFERROR((BQ109/VLOOKUP($B109,Funding,Funding!$FR$2,FALSE)), \"x\")","v":0.13792199252572096},{"$f":"IFERROR((BQ109/(VLOOKUP($B109,Pupils,Pupils!$R$3,FALSE)+VLOOKUP($B109,Pupils,Pupils!$U$3,FALSE))), \"x\")","v":2493.3249846027511},{"$f":"(VLOOKUP(B109,Funding,Funding!$HK$2,FALSE)+VLOOKUP(B109,Funding,Funding!$HL$2,FALSE)+VLOOKUP(B109,Funding,Funding!$HM$2,FALSE))/(VLOOKUP(B109,Funding,Funding!$HN$2,FALSE))","v":0.20475319926873858},{"$f":"IFERROR((VLOOKUP(B109,Other_data,Other!$D$3,FALSE)+VLOOKUP(B109,Other_data,Other!$E$3,FALSE)+VLOOKUP(B109,Other_data,Other!$F$3,FALSE)), \"x\")","v":990},{"$f":"(VLOOKUP(B109,Other_data,Other!$AK$3,FALSE)+VLOOKUP(B109,Other_data,Other!$AL$3,FALSE))/VLOOKUP(B109,Other_data,Other!$AJ$3,FALSE)","v":4.551849706198792E-2},{"$f":"(VLOOKUP(B109,Other_data,Other!$AR$3,FALSE)+VLOOKUP(B109,Other_data,Other!$AS$3,FALSE))/VLOOKUP(B109,Other_data,Other!$AQ$3,FALSE)","v":6.3491019145996447E-2},{"$f":"VLOOKUP(B109,Other_data,Other!$AP$3,FALSE)/VLOOKUP(B109,Other_data,Other!$AJ$3,FALSE)","v":8.1105685674087557E-3},{"$f":"VLOOKUP(B109,Other_data,Other!$AW$3,FALSE)/VLOOKUP(B109,Other_data,Other!$AQ$3,FALSE)","v":1.5987893940390817E-2}]
[104,318,"Richmond upon Thames",{"$f":"IFERROR((VLOOKUP($B110,Pupils,Pupils!$D$3,FALSE)/VLOOKUP($B110,Pupils,Pupils!$C$3,FALSE)), \"x\")","v":2.301721228484644E-2},{"$f":"IFERROR((VLOOKUP($B110,Pupils,Pupils!$G$3,FALSE)/VLOOKUP($B110,Pupils,Pupils!$F$3,FALSE)),\"x\")","v":2.2859986728599867E-2},{"$f":"IFERROR((VLOOKUP($B110,Pupils,Pupils!$J$3,FALSE)/VLOOKUP($B110,Pupils,Pupils!$I$3,FALSE)), \"x\")","v":2.3130326061922155E-2},{"$f":"IFERROR((VLOOKUP($B110,Pupils,Pupils!$M$3,FALSE)/VLOOKUP($B110,Pupils,Pupils!$L$3,FALSE)), \"x\")","v":2.3665029059499729E-2},{"$f":"IFERROR((VLOOKUP($B110,Pupils,Pupils!$R$3,FALSE)/VLOOKUP($B110,Pupils,Pupils!$Q$3,FALSE)), \"x\")","v":2.2764075734927752E-2},{"$f":"IFERROR((VLOOKUP($B110,Pupils,Pupils!$W$3,FALSE)/VLOOKUP($B110,Pupils,Pupils!$V$3,FALSE)), \"x\")","v":2.4308693294776793E-2},{"$f":"IFERROR(((VLOOKUP($B110,Pupils,Pupils!$D$3,FALSE)+VLOOKUP($B110,Pupils,Pupils!$E$3,FALSE))/VLOOKUP($B110,Pupils,Pupils!$C$3,FALSE)), \"x\")","v":0.13422207222409721},{"$f":"IFERROR(((VLOOKUP($B110,Pupils,Pupils!$G$3,FALSE)+VLOOKUP($B110,Pupils,Pupils!$H$3,FALSE))/VLOOKUP($B110,Pupils,Pupils!$F$3,FALSE)), \"x\")","v":0.12982747179827472},{"$f":"IFERROR(((VLOOKUP($B110,Pupils,Pupils!$J$3,FALSE)+VLOOKUP($B110,Pupils,Pupils!$K$3,FALSE))/VLOOKUP($B110,Pupils,Pupils!$I$3,FALSE)), \"x\")","v":0.13118152206100089},{"$f":"IFERROR(((VLOOKUP($B110,Pupils,Pupils!$M$3,FALSE)+VLOOKUP($B110,Pupils,Pupils!$P$3,FALSE))/VLOOKUP($B110,Pupils,Pupils!$L$3,FALSE)), \"x\")","v":0.13357736891115179},{"$f":"IFERROR(((VLOOKUP($B110,Pupils,Pupils!$R$3,FALSE)+VLOOKUP($B110,Pupils,Pupils!$U$3,FALSE))/VLOOKUP($B110,Pupils,Pupils!$Q$3,FALSE)), \"x\")","v":0.1352765321375187},{"$f":"IFERROR(((VLOOKUP($B110,Pupils,Pupils!$W$3,FALSE)+VLOOKUP($B110,Pupils,Pupils!$Z$3,FALSE))/VLOOKUP($B110,Pupils,Pupils!$V$3,FALSE)), \"x\")","v":0.13702632688716188},{"$f":"(SUM(INDEX(Pupils!$AB$7:$AB$159,MATCH($B110,Pupils!$A$7:$A$159,0)),INDEX(Pupils!$AC$7:$AC$159,MATCH($B110,Pupils!$A$7:$A$159,0)),INDEX(Pupils!$AD$7:$AD$159,MATCH($B110,Pupils!$A$7:$A$159,0)),INDEX(Pupils!$AE$7:$AE$159,MATCH($B110,Pupils!$A$7:$A$159,0))))/SUM(INDEX(Pupils!$AB$7:$AM$159,MATCH($B110,Pupils!$A$7:$A$159,0),0))","v":0.37318840579710144},{"$f":"SUM(INDEX(Pupils!$AF$7:$AF$159,MATCH($B110,Pupils!$A$7:$A$159,0)))/SUM(INDEX(Pupils!$AB$7:$AM$159,MATCH($B110,Pupils!$A$7:$A$159,0),0))","v":0.21920289855072464},{"$f":"SUM(INDEX(Pupils!$AG$7:$AG$159,MATCH($B110,Pupils!$A$7:$A$159,0)))/SUM(INDEX(Pupils!$AB$7:$AM$159,MATCH($B110,Pupils!$A$7:$A$159,0),0))","v":0.18417874396135267},{"$f":"(SUM(INDEX(Pupils!$AH$7:$AH$159,MATCH($B110,Pupils!$A$7:$A$159,0)),INDEX(Pupils!$AI$7:$AI$159,MATCH($B110,Pupils!$A$7:$A$159,0)),INDEX(Pupils!$AJ$7:$AJ$159,MATCH($B110,Pupils!$A$7:$A$159,0))))/SUM(INDEX(Pupils!$AB$7:$AM$159,MATCH($B110,Pupils!$A$7:$A$159,0),0))","v":2.8381642512077296E-2},{"$f":"SUM(INDEX(Pupils!$AK$7:$AK$159,MATCH($B110,Pupils!$A$7:$A$159,0)))/SUM(INDEX(Pupils!$AB$7:$AM$159,MATCH($B110,Pupils!$A$7:$A$159,0),0))","v":3.6835748792270528E-2},{"$f":"SUM(INDEX(Pupils!$AL$7:$AL$159,MATCH($B110,Pupils!$A$7:$A$159,0)))/SUM(INDEX(Pupils!$AB$7:$AM$159,MATCH($B110,Pupils!$A$7:$A$159,0),0))","v":0.12379227053140096},{"$f":"SUM(INDEX(Pupils!$AM$7:$AM$159,MATCH($B110,Pupils!$A$7:$A$159,0)))/SUM(INDEX(Pupils!$AB$7:$AM$159,MATCH($B110,Pupils!$A$7:$A$159,0),0))","v":3.4420289855072464E-2},{"$f":"(SUM(INDEX(Pupils!$BH$7:$BH$159,MATCH($B110,Pupils!$A$7:$A$159,0)),INDEX(Pupils!$BK$7:$BK$159,MATCH($B110,Pupils!$A$7:$A$159,0)),INDEX(Pupils!$BO$7:$BO$159,MATCH($B110,Pupils!$A$7:$A$159,0))))/SUM(INDEX(Pupils!$BH$7:$BS$159,MATCH($B110,Pupils!$A$7:$A$159,0),0))","v":0.55260361317747075},{"$f":"(SUM(INDEX(Pupils!$BL$7:$BL$159,MATCH($B110,Pupils!$A$7:$A$159,0)),INDEX(Pupils!$BM$7:$BM$159,MATCH($B110,Pupils!$A$7:$A$159,0)),INDEX(Pupils!$BP$7:$BP$159,MATCH($B110,Pupils!$A$7:$A$159,0))))/SUM(INDEX(Pupils!$BH$7:$BS$159,MATCH($B110,Pupils!$A$7:$A$159,0),0))","v":0.34431455897980873},{"$f":"(SUM(INDEX(Pupils!$BI$7:$BI$159,MATCH($B110,Pupils!$A$7:$A$159,0)),INDEX(Pupils!$BJ$7:$BJ$159,MATCH($B110,Pupils!$A$7:$A$159,0))))/SUM(INDEX(Pupils!$BH$7:$BS$159,MATCH($B110,Pupils!$A$7:$A$159,0),0))","v":8.7141339001062704E-2},{"$f":"(SUM(INDEX(Pupils!$BQ$7:$BQ$159,MATCH($B110,Pupils!$A$7:$A$159,0)),INDEX(Pupils!$BR$7:$BR$159,MATCH($B110,Pupils!$A$7:$A$159,0)),INDEX(Pupils!$BN$7:$BN$159,MATCH($B110,Pupils!$A$7:$A$159,0)),INDEX(Pupils!$BS$7:$BS$159,MATCH($B110,Pupils!$A$7:$A$159,0))))/SUM(INDEX(Pupils!$BH$7:$BS$159,MATCH($B110,Pupils!$A$7:$A$159,0),0))","v":1.5940488841657812E-2},{"$f":"IFERROR((VLOOKUP(B110,Funding,Funding!$C$2,FALSE)), \"x\")","v":18649291.530000001},{"$f":"IFERROR((AA110/VLOOKUP(B110,Funding,Funding!$D$2,FALSE)), \"x\")","v":0.15747354131722863},{"$f":"IFERROR((AA110/(VLOOKUP(B110,Pupils,Pupils!$M$3,FALSE)+VLOOKUP(B110,Pupils,Pupils!$P$3,FALSE))), \"x\")","v":4483.0027716346158},{"$f":"IFERROR((VLOOKUP(B110,Funding,Funding!$E$2,FALSE)), \"x\")","v":19701562.44828333},{"$f":"IFERROR((AD110/VLOOKUP(B110,Funding,Funding!$F$2,FALSE)), \"x\")","v":0.15835501935717719},{"$f":"IFERROR((AD110/(VLOOKUP(B110,Pupils,Pupils!$R$3,FALSE)+VLOOKUP(B110,Pupils,Pupils!$U$3,FALSE))), \"x\")","v":4535.3504715201034},{"$f":"IFERROR((VLOOKUP(B110,Funding,Funding!$G$2,FALSE)), \"x\")","v":20551310.740037553},{"$f":"IFERROR((AG110/VLOOKUP(B110,Funding,Funding!$H$2,FALSE)), \"x\")","v":0.15979366234844725},{"$f":"IFERROR((AG110/(VLOOKUP(B110,Pupils,Pupils!$W$3,FALSE)+VLOOKUP(B110,Pupils,Pupils!$Z$3,FALSE))), \"x\")","v":4517.7645064931967},{"$f":"IFERROR((VLOOKUP(B110,Funding,Funding!$I$2,FALSE)), \"x\")","v":20941924.440106247},{"$f":"IFERROR((AJ110/VLOOKUP(B110,Funding,Funding!$J$2,FALSE)), \"x\")","v":0.15861489388855751},null,{"$f":"IFERROR((VLOOKUP($B110,Funding,Funding!$EC$2,FALSE)), \"x\")","v":10319616.630000001},{"$f":"IFERROR((AM110/VLOOKUP($B110,Funding,Funding!$EU$2,FALSE)), \"x\")","v":9.7088698423306766E-2},{"$f":"IFERROR((AM110/(VLOOKUP($B110,Pupils,Pupils!$D$3,FALSE)+VLOOKUP($B110,Pupils,Pupils!$E$3,FALSE))), \"x\")","v":2594.8243977872771},{"$f":"IFERROR((VLOOKUP($B110,Funding,Funding!$DA$2,FALSE)), \"x\")","v":11274636.289829999},{"$f":"IFERROR((AP110/VLOOKUP($B110,Funding,Funding!$DT$2,FALSE)), \"x\")","v":0.10472154049857357},{"$f":"IFERROR((AP110/(VLOOKUP($B110,Pupils,Pupils!$G$3,FALSE)+VLOOKUP($B110,Pupils,Pupils!$H$3,FALSE))), \"x\")","v":2881.3279554893943},{"$f":"IFERROR((VLOOKUP($B110,Funding,Funding!$CE$2,FALSE)), \"x\")","v":13205123.20888},{"$f":"IFERROR((AS110/VLOOKUP($B110,Funding,Funding!$CR$2,FALSE)), \"x\")","v":0.12367037491330267},{"$f":"IFERROR((AS110/(VLOOKUP($B110,Pupils,Pupils!$J$3,FALSE)+VLOOKUP($B110,Pupils,Pupils!$K$3,FALSE))), \"x\")","v":3312.0449483019815},{"$f":"IFERROR((VLOOKUP($B110,Funding,Funding!$BM$2,FALSE)), \"x\")","v":14600808.289999999},{"$f":"IFERROR((AV110/VLOOKUP($B110,Funding,Funding!$BY$2,FALSE)), \"x\")","v":0.1316278616996438},{"$f":"IFERROR((AV110/(VLOOKUP($B110,Pupils,Pupils!$M$3,FALSE)+VLOOKUP($B110,Pupils,Pupils!$P$3,FALSE))), \"x\")","v":3509.8096850961538},{"$f":"IFERROR((VLOOKUP($B110,Funding,Funding!$AQ$2,FALSE)), \"x\")","v":17811494},{"$f":"IFERROR((AY110/VLOOKUP($B110,Funding,Funding!$BE$2,FALSE)), \"x\")","v":0.14388228072333839},{"$f":"IFERROR((AY110/(VLOOKUP($B110,Pupils,Pupils!$R$3,FALSE)+VLOOKUP($B110,Pupils,Pupils!$U$3,FALSE))), \"x\")","v":4100.2518416206258},{"$f":"IFERROR((VLOOKUP($B110,Funding,Funding!$S$2,FALSE)), \"x\")","v":18327961},{"$f":"IFERROR((BB110/VLOOKUP($B110,Funding,Funding!$AH$2,FALSE)), \"x\")","v":0.14416980715972952},{"$f":"IFERROR((BB110/(VLOOKUP(B110,Pupils,Pupils!$W$3,FALSE)+VLOOKUP(B110,Pupils,Pupils!$Z$3,FALSE))), \"x\")","v":4029.0087931413495},{"$f":"IFERROR((VLOOKUP($B110,Funding,Funding!$GX$2,FALSE)), \"x\")","v":18251408.618480001},{"$f":"IFERROR((BE110/VLOOKUP($B110,Funding,Funding!$HC$2,FALSE)), \"x\")","v":0.15199092225312927},{"$f":"IFERROR((BE110/(VLOOKUP($B110,Pupils,Pupils!$D$3,FALSE)+VLOOKUP($B110,Pupils,Pupils!$E$3,FALSE))), \"x\")","v":4589.2402862660301},{"$f":"IFERROR((VLOOKUP($B110,Funding,Funding!$GP$2,FALSE)), \"x\")","v":19782118.479999997},{"$f":"IFERROR((BH110/VLOOKUP($B110,Funding,Funding!$GU$2,FALSE)), \"x\")","v":0.16203874845097888},{"$f":"IFERROR((BH110/(VLOOKUP($B110,Pupils,Pupils!$G$3,FALSE)+VLOOKUP($B110,Pupils,Pupils!$H$3,FALSE))), \"x\")","v":5055.4864502938917},{"$f":"IFERROR((VLOOKUP($B110,Funding,Funding!$GH$2,FALSE)), \"x\")","v":19831728.949999999},{"$f":"IFERROR((BK110/VLOOKUP($B110,Funding,Funding!$GM$2,FALSE)), \"x\")","v":0.16794273572787619},{"$f":"IFERROR((BK110/(VLOOKUP($B110,Pupils,Pupils!$J$3,FALSE)+VLOOKUP($B110,Pupils,Pupils!$K$3,FALSE))), \"x\")","v":4974.0980561825936},{"$f":"IFERROR((VLOOKUP($B110,Funding,Funding!$FZ$2,FALSE)), \"x\")","v":20951719.489999998},{"$f":"IFERROR((BN110/VLOOKUP($B110,Funding,Funding!$GE$2,FALSE)), \"x\")","v":0.18546792089264028},{"$f":"IFERROR((BN110/(VLOOKUP($B110,Pupils,Pupils!$M$3,FALSE)+VLOOKUP($B110,Pupils,Pupils!$P$3,FALSE))), \"x\")","v":5036.4710312499992},{"$f":"IFERROR((VLOOKUP($B110,Funding,Funding!$FD$2,FALSE)), \"x\")","v":20349410.619999997},{"$f":"IFERROR((BQ110/VLOOKUP($B110,Funding,Funding!$FR$2,FALSE)), \"x\")","v":0.22222911386615726},{"$f":"IFERROR((BQ110/(VLOOKUP($B110,Pupils,Pupils!$R$3,FALSE)+VLOOKUP($B110,Pupils,Pupils!$U$3,FALSE))), \"x\")","v":4684.4867909760587},{"$f":"(VLOOKUP(B110,Funding,Funding!$HK$2,FALSE)+VLOOKUP(B110,Funding,Funding!$HL$2,FALSE)+VLOOKUP(B110,Funding,Funding!$HM$2,FALSE))/(VLOOKUP(B110,Funding,Funding!$HN$2,FALSE))","v":0.15184381778741865},{"$f":"IFERROR((VLOOKUP(B110,Other_data,Other!$D$3,FALSE)+VLOOKUP(B110,Other_data,Other!$E$3,FALSE)+VLOOKUP(B110,Other_data,Other!$F$3,FALSE)), \"x\")","v":710},{"$f":"(VLOOKUP(B110,Other_data,Other!$AK$3,FALSE)+VLOOKUP(B110,Other_data,Other!$AL$3,FALSE))/VLOOKUP(B110,Other_data,Other!$AJ$3,FALSE)","v":2.3408646534868564E-2},{"$f":"(VLOOKUP(B110,Other_data,Other!$AR$3,FALSE)+VLOOKUP(B110,Other_data,Other!$AS$3,FALSE))/VLOOKUP(B110,Other_data,Other!$AQ$3,FALSE)","v":3.9415766306522611E-2},{"$f":"VLOOKUP(B110,Other_data,Other!$AP$3,FALSE)/VLOOKUP(B110,Other_data,Other!$AJ$3,FALSE)","v":3.7475559417771017E-3},{"$f":"VLOOKUP(B110,Other_data,Other!$AW$3,FALSE)/VLOOKUP(B110,Other_data,Other!$AQ$3,FALSE)","v":8.8035214085634261E-3}]
[105,354,"Rochdale",{"$f":"IFERROR((VLOOKUP($B111,Pupils,Pupils!$D$3,FALSE)/VLOOKUP($B111,Pupils,Pupils!$C$3,FALSE)), \"x\")","v":3.3416651788371124E-2},{"$f":"IFERROR((VLOOKUP($B111,Pupils,Pupils!$G$3,FALSE)/VLOOKUP($B111,Pupils,Pupils!$F$3,FALSE)),\"x\")","v":3.3561459609694866E-2},{"$f":"IFERROR((VLOOKUP($B111,Pupils,Pupils!$J$3,FALSE)/VLOOKUP($B111,Pupils,Pupils!$I$3,FALSE)), \"x\")","v":3.3409514644854754E-2},{"$f":"IFERROR((VLOOKUP($B111,Pupils,Pupils!$M$3,FALSE)/VLOOKUP($B111,Pupils,Pupils!$L$3,FALSE)), \"x\")","v":3.3471036999065222E-2},{"$f":"IFERROR((VLOOKUP($B111,Pupils,Pupils!$R$3,FALSE)/VLOOKUP($B111,Pupils,Pupils!$Q$3,FALSE)), \"x\")","v":3.4173635761987849E-2},{"$f":"IFERROR((VLOOKUP($B111,Pupils,Pupils!$W$3,FALSE)/VLOOKUP($B111,Pupils,Pupils!$V$3,FALSE)), \"x\")","v":3.4618129907209139E-2},{"$f":"IFERROR(((VLOOKUP($B111,Pupils,Pupils!$D$3,FALSE)+VLOOKUP($B111,Pupils,Pupils!$E$3,FALSE))/VLOOKUP($B111,Pupils,Pupils!$C$3,FALSE)), \"x\")","v":0.21091471760995059},{"$f":"IFERROR(((VLOOKUP($B111,Pupils,Pupils!$G$3,FALSE)+VLOOKUP($B111,Pupils,Pupils!$H$3,FALSE))/VLOOKUP($B111,Pupils,Pupils!$F$3,FALSE)), \"x\")","v":0.20020322166103821},{"$f":"IFERROR(((VLOOKUP($B111,Pupils,Pupils!$J$3,FALSE)+VLOOKUP($B111,Pupils,Pupils!$K$3,FALSE))/VLOOKUP($B111,Pupils,Pupils!$I$3,FALSE)), \"x\")","v":0.19672821314729055},{"$f":"IFERROR(((VLOOKUP($B111,Pupils,Pupils!$M$3,FALSE)+VLOOKUP($B111,Pupils,Pupils!$P$3,FALSE))/VLOOKUP($B111,Pupils,Pupils!$L$3,FALSE)), \"x\")","v":0.19367970328378012},{"$f":"IFERROR(((VLOOKUP($B111,Pupils,Pupils!$R$3,FALSE)+VLOOKUP($B111,Pupils,Pupils!$U$3,FALSE))/VLOOKUP($B111,Pupils,Pupils!$Q$3,FALSE)), \"x\")","v":0.18858672763371639},{"$f":"IFERROR(((VLOOKUP($B111,Pupils,Pupils!$W$3,FALSE)+VLOOKUP($B111,Pupils,Pupils!$Z$3,FALSE))/VLOOKUP($B111,Pupils,Pupils!$V$3,FALSE)), \"x\")","v":0.19182726623840113},{"$f":"(SUM(INDEX(Pupils!$AB$7:$AB$159,MATCH($B111,Pupils!$A$7:$A$159,0)),INDEX(Pupils!$AC$7:$AC$159,MATCH($B111,Pupils!$A$7:$A$159,0)),INDEX(Pupils!$AD$7:$AD$159,MATCH($B111,Pupils!$A$7:$A$159,0)),INDEX(Pupils!$AE$7:$AE$159,MATCH($B111,Pupils!$A$7:$A$159,0))))/SUM(INDEX(Pupils!$AB$7:$AM$159,MATCH($B111,Pupils!$A$7:$A$159,0),0))","v":0.35152763474081705},{"$f":"SUM(INDEX(Pupils!$AF$7:$AF$159,MATCH($B111,Pupils!$A$7:$A$159,0)))/SUM(INDEX(Pupils!$AB$7:$AM$159,MATCH($B111,Pupils!$A$7:$A$159,0),0))","v":0.20322691383453484},{"$f":"SUM(INDEX(Pupils!$AG$7:$AG$159,MATCH($B111,Pupils!$A$7:$A$159,0)))/SUM(INDEX(Pupils!$AB$7:$AM$159,MATCH($B111,Pupils!$A$7:$A$159,0),0))","v":0.16580844490216273},{"$f":"(SUM(INDEX(Pupils!$AH$7:$AH$159,MATCH($B111,Pupils!$A$7:$A$159,0)),INDEX(Pupils!$AI$7:$AI$159,MATCH($B111,Pupils!$A$7:$A$159,0)),INDEX(Pupils!$AJ$7:$AJ$159,MATCH($B111,Pupils!$A$7:$A$159,0))))/SUM(INDEX(Pupils!$AB$7:$AM$159,MATCH($B111,Pupils!$A$7:$A$159,0),0))","v":4.6687263989014759E-2},{"$f":"SUM(INDEX(Pupils!$AK$7:$AK$159,MATCH($B111,Pupils!$A$7:$A$159,0)))/SUM(INDEX(Pupils!$AB$7:$AM$159,MATCH($B111,Pupils!$A$7:$A$159,0),0))","v":3.0552694816340542E-2},{"$f":"SUM(INDEX(Pupils!$AL$7:$AL$159,MATCH($B111,Pupils!$A$7:$A$159,0)))/SUM(INDEX(Pupils!$AB$7:$AM$159,MATCH($B111,Pupils!$A$7:$A$159,0),0))","v":0.14280810161345692},{"$f":"SUM(INDEX(Pupils!$AM$7:$AM$159,MATCH($B111,Pupils!$A$7:$A$159,0)))/SUM(INDEX(Pupils!$AB$7:$AM$159,MATCH($B111,Pupils!$A$7:$A$159,0),0))","v":5.9388946103673186E-2},{"$f":"(SUM(INDEX(Pupils!$BH$7:$BH$159,MATCH($B111,Pupils!$A$7:$A$159,0)),INDEX(Pupils!$BK$7:$BK$159,MATCH($B111,Pupils!$A$7:$A$159,0)),INDEX(Pupils!$BO$7:$BO$159,MATCH($B111,Pupils!$A$7:$A$159,0))))/SUM(INDEX(Pupils!$BH$7:$BS$159,MATCH($B111,Pupils!$A$7:$A$159,0),0))","v":0.5702614379084967},{"$f":"(SUM(INDEX(Pupils!$BL$7:$BL$159,MATCH($B111,Pupils!$A$7:$A$159,0)),INDEX(Pupils!$BM$7:$BM$159,MATCH($B111,Pupils!$A$7:$A$159,0)),INDEX(Pupils!$BP$7:$BP$159,MATCH($B111,Pupils!$A$7:$A$159,0))))/SUM(INDEX(Pupils!$BH$7:$BS$159,MATCH($B111,Pupils!$A$7:$A$159,0),0))","v":0.3831699346405229},{"$f":"(SUM(INDEX(Pupils!$BI$7:$BI$159,MATCH($B111,Pupils!$A$7:$A$159,0)),INDEX(Pupils!$BJ$7:$BJ$159,MATCH($B111,Pupils!$A$7:$A$159,0))))/SUM(INDEX(Pupils!$BH$7:$BS$159,MATCH($B111,Pupils!$A$7:$A$159,0),0))","v":2.2875816993464051E-2},{"$f":"(SUM(INDEX(Pupils!$BQ$7:$BQ$159,MATCH($B111,Pupils!$A$7:$A$159,0)),INDEX(Pupils!$BR$7:$BR$159,MATCH($B111,Pupils!$A$7:$A$159,0)),INDEX(Pupils!$BN$7:$BN$159,MATCH($B111,Pupils!$A$7:$A$159,0)),INDEX(Pupils!$BS$7:$BS$159,MATCH($B111,Pupils!$A$7:$A$159,0))))/SUM(INDEX(Pupils!$BH$7:$BS$159,MATCH($B111,Pupils!$A$7:$A$159,0),0))","v":2.3692810457516339E-2},{"$f":"IFERROR((VLOOKUP(B111,Funding,Funding!$C$2,FALSE)), \"x\")","v":21712718},{"$f":"IFERROR((AA111/VLOOKUP(B111,Funding,Funding!$D$2,FALSE)), \"x\")","v":0.1279006564456121},{"$f":"IFERROR((AA111/(VLOOKUP(B111,Pupils,Pupils!$M$3,FALSE)+VLOOKUP(B111,Pupils,Pupils!$P$3,FALSE))), \"x\")","v":3380.4636462712128},{"$f":"IFERROR((VLOOKUP(B111,Funding,Funding!$E$2,FALSE)), \"x\")","v":22092760.754925288},{"$f":"IFERROR((AD111/VLOOKUP(B111,Funding,Funding!$F$2,FALSE)), \"x\")","v":0.12718515933594565},{"$f":"IFERROR((AD111/(VLOOKUP(B111,Pupils,Pupils!$R$3,FALSE)+VLOOKUP(B111,Pupils,Pupils!$U$3,FALSE))), \"x\")","v":3524.1283705415995},{"$f":"IFERROR((VLOOKUP(B111,Funding,Funding!$G$2,FALSE)), \"x\")","v":22747629.7157607},{"$f":"IFERROR((AG111/VLOOKUP(B111,Funding,Funding!$H$2,FALSE)), \"x\")","v":0.12810009872046035},{"$f":"IFERROR((AG111/(VLOOKUP(B111,Pupils,Pupils!$W$3,FALSE)+VLOOKUP(B111,Pupils,Pupils!$Z$3,FALSE))), \"x\")","v":3526.7642970171628},{"$f":"IFERROR((VLOOKUP(B111,Funding,Funding!$I$2,FALSE)), \"x\")","v":22915773.339315984},{"$f":"IFERROR((AJ111/VLOOKUP(B111,Funding,Funding!$J$2,FALSE)), \"x\")","v":0.1282747631590743},null,{"$f":"IFERROR((VLOOKUP($B111,Funding,Funding!$EC$2,FALSE)), \"x\")","v":13466168.810000001},{"$f":"IFERROR((AM111/VLOOKUP($B111,Funding,Funding!$EU$2,FALSE)), \"x\")","v":8.0435788122652535E-2},{"$f":"IFERROR((AM111/(VLOOKUP($B111,Pupils,Pupils!$D$3,FALSE)+VLOOKUP($B111,Pupils,Pupils!$E$3,FALSE))), \"x\")","v":1899.8545160835215},{"$f":"IFERROR((VLOOKUP($B111,Funding,Funding!$DA$2,FALSE)), \"x\")","v":13716362},{"$f":"IFERROR((AP111/VLOOKUP($B111,Funding,Funding!$DT$2,FALSE)), \"x\")","v":7.8575825646741038E-2},{"$f":"IFERROR((AP111/(VLOOKUP($B111,Pupils,Pupils!$G$3,FALSE)+VLOOKUP($B111,Pupils,Pupils!$H$3,FALSE))), \"x\")","v":2047.5238095238096},{"$f":"IFERROR((VLOOKUP($B111,Funding,Funding!$CE$2,FALSE)), \"x\")","v":13859087.10417},{"$f":"IFERROR((AS111/VLOOKUP($B111,Funding,Funding!$CR$2,FALSE)), \"x\")","v":7.9039201827319147E-2},{"$f":"IFERROR((AS111/(VLOOKUP($B111,Pupils,Pupils!$J$3,FALSE)+VLOOKUP($B111,Pupils,Pupils!$K$3,FALSE))), \"x\")","v":2118.4786157398348},{"$f":"IFERROR((VLOOKUP($B111,Funding,Funding!$BM$2,FALSE)), \"x\")","v":13988788.99},{"$f":"IFERROR((AV111/VLOOKUP($B111,Funding,Funding!$BY$2,FALSE)), \"x\")","v":7.922949967953466E-2},{"$f":"IFERROR((AV111/(VLOOKUP($B111,Pupils,Pupils!$M$3,FALSE)+VLOOKUP($B111,Pupils,Pupils!$P$3,FALSE))), \"x\")","v":2177.921374747003},{"$f":"IFERROR((VLOOKUP($B111,Funding,Funding!$AQ$2,FALSE)), \"x\")","v":16579553},{"$f":"IFERROR((AY111/VLOOKUP($B111,Funding,Funding!$BE$2,FALSE)), \"x\")","v":9.4368732175575357E-2},{"$f":"IFERROR((AY111/(VLOOKUP($B111,Pupils,Pupils!$R$3,FALSE)+VLOOKUP($B111,Pupils,Pupils!$U$3,FALSE))), \"x\")","v":2644.6886265752114},{"$f":"IFERROR((VLOOKUP($B111,Funding,Funding!$S$2,FALSE)), \"x\")","v":19726838},{"$f":"IFERROR((BB111/VLOOKUP($B111,Funding,Funding!$AH$2,FALSE)), \"x\")","v":0.109290538248659},{"$f":"IFERROR((BB111/(VLOOKUP(B111,Pupils,Pupils!$W$3,FALSE)+VLOOKUP(B111,Pupils,Pupils!$Z$3,FALSE))), \"x\")","v":3058.4244961240311},{"$f":"IFERROR((VLOOKUP($B111,Funding,Funding!$GX$2,FALSE)), \"x\")","v":19252355},{"$f":"IFERROR((BE111/VLOOKUP($B111,Funding,Funding!$HC$2,FALSE)), \"x\")","v":0.10447182330157422},{"$f":"IFERROR((BE111/(VLOOKUP($B111,Pupils,Pupils!$D$3,FALSE)+VLOOKUP($B111,Pupils,Pupils!$E$3,FALSE))), \"x\")","v":2716.1900395033858},{"$f":"IFERROR((VLOOKUP($B111,Funding,Funding!$GP$2,FALSE)), \"x\")","v":21222251},{"$f":"IFERROR((BH111/VLOOKUP($B111,Funding,Funding!$GU$2,FALSE)), \"x\")","v":0.11082568314253929},{"$f":"IFERROR((BH111/(VLOOKUP($B111,Pupils,Pupils!$G$3,FALSE)+VLOOKUP($B111,Pupils,Pupils!$H$3,FALSE))), \"x\")","v":3167.9729810419467},{"$f":"IFERROR((VLOOKUP($B111,Funding,Funding!$GH$2,FALSE)), \"x\")","v":19281512},{"$f":"IFERROR((BK111/VLOOKUP($B111,Funding,Funding!$GM$2,FALSE)), \"x\")","v":0.10476644909790636},{"$f":"IFERROR((BK111/(VLOOKUP($B111,Pupils,Pupils!$J$3,FALSE)+VLOOKUP($B111,Pupils,Pupils!$K$3,FALSE))), \"x\")","v":2947.3420972179761},{"$f":"IFERROR((VLOOKUP($B111,Funding,Funding!$FZ$2,FALSE)), \"x\")","v":21784831},{"$f":"IFERROR((BN111/VLOOKUP($B111,Funding,Funding!$GE$2,FALSE)), \"x\")","v":0.11124026804144126},{"$f":"IFERROR((BN111/(VLOOKUP($B111,Pupils,Pupils!$M$3,FALSE)+VLOOKUP($B111,Pupils,Pupils!$P$3,FALSE))), \"x\")","v":3391.6909543826873},{"$f":"IFERROR((VLOOKUP($B111,Funding,Funding!$FD$2,FALSE)), \"x\")","v":19776626},{"$f":"IFERROR((BQ111/VLOOKUP($B111,Funding,Funding!$FR$2,FALSE)), \"x\")","v":0.11148771788511089},{"$f":"IFERROR((BQ111/(VLOOKUP($B111,Pupils,Pupils!$R$3,FALSE)+VLOOKUP($B111,Pupils,Pupils!$U$3,FALSE))), \"x\")","v":3154.6699633115331},{"$f":"(VLOOKUP(B111,Funding,Funding!$HK$2,FALSE)+VLOOKUP(B111,Funding,Funding!$HL$2,FALSE)+VLOOKUP(B111,Funding,Funding!$HM$2,FALSE))/(VLOOKUP(B111,Funding,Funding!$HN$2,FALSE))","v":0.24770642201834864},{"$f":"IFERROR((VLOOKUP(B111,Other_data,Other!$D$3,FALSE)+VLOOKUP(B111,Other_data,Other!$E$3,FALSE)+VLOOKUP(B111,Other_data,Other!$F$3,FALSE)), \"x\")","v":1620},{"$f":"(VLOOKUP(B111,Other_data,Other!$AK$3,FALSE)+VLOOKUP(B111,Other_data,Other!$AL$3,FALSE))/VLOOKUP(B111,Other_data,Other!$AJ$3,FALSE)","v":4.0803557462403071E-2},{"$f":"(VLOOKUP(B111,Other_data,Other!$AR$3,FALSE)+VLOOKUP(B111,Other_data,Other!$AS$3,FALSE))/VLOOKUP(B111,Other_data,Other!$AQ$3,FALSE)","v":6.1512950094756789E-2},{"$f":"VLOOKUP(B111,Other_data,Other!$AP$3,FALSE)/VLOOKUP(B111,Other_data,Other!$AJ$3,FALSE)","v":7.597595584456213E-3},{"$f":"VLOOKUP(B111,Other_data,Other!$AW$3,FALSE)/VLOOKUP(B111,Other_data,Other!$AQ$3,FALSE)","v":1.3858180669614657E-2}]
[106,372,"Rotherham",{"$f":"IFERROR((VLOOKUP($B112,Pupils,Pupils!$D$3,FALSE)/VLOOKUP($B112,Pupils,Pupils!$C$3,FALSE)), \"x\")","v":2.6777765095308756E-2},{"$f":"IFERROR((VLOOKUP($B112,Pupils,Pupils!$G$3,FALSE)/VLOOKUP($B112,Pupils,Pupils!$F$3,FALSE)),\"x\")","v":2.4947545594982821E-2},{"$f":"IFERROR((VLOOKUP($B112,Pupils,Pupils!$J$3,FALSE)/VLOOKUP($B112,Pupils,Pupils!$I$3,FALSE)), \"x\")","v":2.3875947365973867E-2},{"$f":"IFERROR((VLOOKUP($B112,Pupils,Pupils!$M$3,FALSE)/VLOOKUP($B112,Pupils,Pupils!$L$3,FALSE)), \"x\")","v":2.2962962962962963E-2},{"$f":"IFERROR((VLOOKUP($B112,Pupils,Pupils!$R$3,FALSE)/VLOOKUP($B112,Pupils,Pupils!$Q$3,FALSE)), \"x\")","v":2.2822295627266637E-2},{"$f":"IFERROR((VLOOKUP($B112,Pupils,Pupils!$W$3,FALSE)/VLOOKUP($B112,Pupils,Pupils!$V$3,FALSE)), \"x\")","v":2.2907933017203858E-2},{"$f":"IFERROR(((VLOOKUP($B112,Pupils,Pupils!$D$3,FALSE)+VLOOKUP($B112,Pupils,Pupils!$E$3,FALSE))/VLOOKUP($B112,Pupils,Pupils!$C$3,FALSE)), \"x\")","v":0.24513183426549481},{"$f":"IFERROR(((VLOOKUP($B112,Pupils,Pupils!$G$3,FALSE)+VLOOKUP($B112,Pupils,Pupils!$H$3,FALSE))/VLOOKUP($B112,Pupils,Pupils!$F$3,FALSE)), \"x\")","v":0.25044384496552996},{"$f":"IFERROR(((VLOOKUP($B112,Pupils,Pupils!$J$3,FALSE)+VLOOKUP($B112,Pupils,Pupils!$K$3,FALSE))/VLOOKUP($B112,Pupils,Pupils!$I$3,FALSE)), \"x\")","v":0.23578369833077603},{"$f":"IFERROR(((VLOOKUP($B112,Pupils,Pupils!$M$3,FALSE)+VLOOKUP($B112,Pupils,Pupils!$P$3,FALSE))/VLOOKUP($B112,Pupils,Pupils!$L$3,FALSE)), \"x\")","v":0.22182870370370369},{"$f":"IFERROR(((VLOOKUP($B112,Pupils,Pupils!$R$3,FALSE)+VLOOKUP($B112,Pupils,Pupils!$U$3,FALSE))/VLOOKUP($B112,Pupils,Pupils!$Q$3,FALSE)), \"x\")","v":0.21052874731468435},{"$f":"IFERROR(((VLOOKUP($B112,Pupils,Pupils!$W$3,FALSE)+VLOOKUP($B112,Pupils,Pupils!$Z$3,FALSE))/VLOOKUP($B112,Pupils,Pupils!$V$3,FALSE)), \"x\")","v":0.19547339243580053},{"$f":"(SUM(INDEX(Pupils!$AB$7:$AB$159,MATCH($B112,Pupils!$A$7:$A$159,0)),INDEX(Pupils!$AC$7:$AC$159,MATCH($B112,Pupils!$A$7:$A$159,0)),INDEX(Pupils!$AD$7:$AD$159,MATCH($B112,Pupils!$A$7:$A$159,0)),INDEX(Pupils!$AE$7:$AE$159,MATCH($B112,Pupils!$A$7:$A$159,0))))/SUM(INDEX(Pupils!$AB$7:$AM$159,MATCH($B112,Pupils!$A$7:$A$159,0),0))","v":0.39779135338345867},{"$f":"SUM(INDEX(Pupils!$AF$7:$AF$159,MATCH($B112,Pupils!$A$7:$A$159,0)))/SUM(INDEX(Pupils!$AB$7:$AM$159,MATCH($B112,Pupils!$A$7:$A$159,0),0))","v":0.17128759398496241},{"$f":"SUM(INDEX(Pupils!$AG$7:$AG$159,MATCH($B112,Pupils!$A$7:$A$159,0)))/SUM(INDEX(Pupils!$AB$7:$AM$159,MATCH($B112,Pupils!$A$7:$A$159,0),0))","v":0.11301691729323309},{"$f":"(SUM(INDEX(Pupils!$AH$7:$AH$159,MATCH($B112,Pupils!$A$7:$A$159,0)),INDEX(Pupils!$AI$7:$AI$159,MATCH($B112,Pupils!$A$7:$A$159,0)),INDEX(Pupils!$AJ$7:$AJ$159,MATCH($B112,Pupils!$A$7:$A$159,0))))/SUM(INDEX(Pupils!$AB$7:$AM$159,MATCH($B112,Pupils!$A$7:$A$159,0),0))","v":4.0648496240601503E-2},{"$f":"SUM(INDEX(Pupils!$AK$7:$AK$159,MATCH($B112,Pupils!$A$7:$A$159,0)))/SUM(INDEX(Pupils!$AB$7:$AM$159,MATCH($B112,Pupils!$A$7:$A$159,0),0))","v":3.5949248120300752E-2},{"$f":"SUM(INDEX(Pupils!$AL$7:$AL$159,MATCH($B112,Pupils!$A$7:$A$159,0)))/SUM(INDEX(Pupils!$AB$7:$AM$159,MATCH($B112,Pupils!$A$7:$A$159,0),0))","v":0.18468045112781956},{"$f":"SUM(INDEX(Pupils!$AM$7:$AM$159,MATCH($B112,Pupils!$A$7:$A$159,0)))/SUM(INDEX(Pupils!$AB$7:$AM$159,MATCH($B112,Pupils!$A$7:$A$159,0),0))","v":5.6625939849624059E-2},{"$f":"(SUM(INDEX(Pupils!$BH$7:$BH$159,MATCH($B112,Pupils!$A$7:$A$159,0)),INDEX(Pupils!$BK$7:$BK$159,MATCH($B112,Pupils!$A$7:$A$159,0)),INDEX(Pupils!$BO$7:$BO$159,MATCH($B112,Pupils!$A$7:$A$159,0))))/SUM(INDEX(Pupils!$BH$7:$BS$159,MATCH($B112,Pupils!$A$7:$A$159,0),0))","v":0.33801404212637914},{"$f":"(SUM(INDEX(Pupils!$BL$7:$BL$159,MATCH($B112,Pupils!$A$7:$A$159,0)),INDEX(Pupils!$BM$7:$BM$159,MATCH($B112,Pupils!$A$7:$A$159,0)),INDEX(Pupils!$BP$7:$BP$159,MATCH($B112,Pupils!$A$7:$A$159,0))))/SUM(INDEX(Pupils!$BH$7:$BS$159,MATCH($B112,Pupils!$A$7:$A$159,0),0))","v":0.58074222668004016},{"$f":"(SUM(INDEX(Pupils!$BI$7:$BI$159,MATCH($B112,Pupils!$A$7:$A$159,0)),INDEX(Pupils!$BJ$7:$BJ$159,MATCH($B112,Pupils!$A$7:$A$159,0))))/SUM(INDEX(Pupils!$BH$7:$BS$159,MATCH($B112,Pupils!$A$7:$A$159,0),0))","v":6.5195586760280838E-2},{"$f":"(SUM(INDEX(Pupils!$BQ$7:$BQ$159,MATCH($B112,Pupils!$A$7:$A$159,0)),INDEX(Pupils!$BR$7:$BR$159,MATCH($B112,Pupils!$A$7:$A$159,0)),INDEX(Pupils!$BN$7:$BN$159,MATCH($B112,Pupils!$A$7:$A$159,0)),INDEX(Pupils!$BS$7:$BS$159,MATCH($B112,Pupils!$A$7:$A$159,0))))/SUM(INDEX(Pupils!$BH$7:$BS$159,MATCH($B112,Pupils!$A$7:$A$159,0),0))","v":1.60481444332999E-2},{"$f":"IFERROR((VLOOKUP(B112,Funding,Funding!$C$2,FALSE)), \"x\")","v":18721796.080000002},{"$f":"IFERROR((AA112/VLOOKUP(B112,Funding,Funding!$D$2,FALSE)), \"x\")","v":8.9613677579873818E-2},{"$f":"IFERROR((AA112/(VLOOKUP(B112,Pupils,Pupils!$M$3,FALSE)+VLOOKUP(B112,Pupils,Pupils!$P$3,FALSE))), \"x\")","v":1953.646674319107},{"$f":"IFERROR((VLOOKUP(B112,Funding,Funding!$E$2,FALSE)), \"x\")","v":19263137.15964625},{"$f":"IFERROR((AD112/VLOOKUP(B112,Funding,Funding!$F$2,FALSE)), \"x\")","v":9.0079682146466222E-2},{"$f":"IFERROR((AD112/(VLOOKUP(B112,Pupils,Pupils!$R$3,FALSE)+VLOOKUP(B112,Pupils,Pupils!$U$3,FALSE))), \"x\")","v":2113.5766029894944},{"$f":"IFERROR((VLOOKUP(B112,Funding,Funding!$G$2,FALSE)), \"x\")","v":20549574.312072117},{"$f":"IFERROR((AG112/VLOOKUP(B112,Funding,Funding!$H$2,FALSE)), \"x\")","v":9.4299865720779766E-2},{"$f":"IFERROR((AG112/(VLOOKUP(B112,Pupils,Pupils!$W$3,FALSE)+VLOOKUP(B112,Pupils,Pupils!$Z$3,FALSE))), \"x\")","v":2408.2473118565704},{"$f":"IFERROR((VLOOKUP(B112,Funding,Funding!$I$2,FALSE)), \"x\")","v":20859661.969857693},{"$f":"IFERROR((AJ112/VLOOKUP(B112,Funding,Funding!$J$2,FALSE)), \"x\")","v":9.6116844081104824E-2},null,{"$f":"IFERROR((VLOOKUP($B112,Funding,Funding!$EC$2,FALSE)), \"x\")","v":14576843.48},{"$f":"IFERROR((AM112/VLOOKUP($B112,Funding,Funding!$EU$2,FALSE)), \"x\")","v":6.6452450695412835E-2},{"$f":"IFERROR((AM112/(VLOOKUP($B112,Pupils,Pupils!$D$3,FALSE)+VLOOKUP($B112,Pupils,Pupils!$E$3,FALSE))), \"x\")","v":1357.5007897187559},{"$f":"IFERROR((VLOOKUP($B112,Funding,Funding!$DA$2,FALSE)), \"x\")","v":14616500.132140001},{"$f":"IFERROR((AP112/VLOOKUP($B112,Funding,Funding!$DT$2,FALSE)), \"x\")","v":6.6762446705405487E-2},{"$f":"IFERROR((AP112/(VLOOKUP($B112,Pupils,Pupils!$G$3,FALSE)+VLOOKUP($B112,Pupils,Pupils!$H$3,FALSE))), \"x\")","v":1345.6545877499541},{"$f":"IFERROR((VLOOKUP($B112,Funding,Funding!$CE$2,FALSE)), \"x\")","v":11382613.88387},{"$f":"IFERROR((AS112/VLOOKUP($B112,Funding,Funding!$CR$2,FALSE)), \"x\")","v":8.0025037271480984E-2},{"$f":"IFERROR((AS112/(VLOOKUP($B112,Pupils,Pupils!$J$3,FALSE)+VLOOKUP($B112,Pupils,Pupils!$K$3,FALSE))), \"x\")","v":1122.3243821603235},{"$f":"IFERROR((VLOOKUP($B112,Funding,Funding!$BM$2,FALSE)), \"x\")","v":14350192.92},{"$f":"IFERROR((AV112/VLOOKUP($B112,Funding,Funding!$BY$2,FALSE)), \"x\")","v":7.3089822894043713E-2},{"$f":"IFERROR((AV112/(VLOOKUP($B112,Pupils,Pupils!$M$3,FALSE)+VLOOKUP($B112,Pupils,Pupils!$P$3,FALSE))), \"x\")","v":1497.4635208181155},{"$f":"IFERROR((VLOOKUP($B112,Funding,Funding!$AQ$2,FALSE)), \"x\")","v":18475075},{"$f":"IFERROR((AY112/VLOOKUP($B112,Funding,Funding!$BE$2,FALSE)), \"x\")","v":8.4213367427324298E-2},{"$f":"IFERROR((AY112/(VLOOKUP($B112,Pupils,Pupils!$R$3,FALSE)+VLOOKUP($B112,Pupils,Pupils!$U$3,FALSE))), \"x\")","v":2027.1093921439544},{"$f":"IFERROR((VLOOKUP($B112,Funding,Funding!$S$2,FALSE)), \"x\")","v":19159037},{"$f":"IFERROR((BB112/VLOOKUP($B112,Funding,Funding!$AH$2,FALSE)), \"x\")","v":8.7153991780901788E-2},{"$f":"IFERROR((BB112/(VLOOKUP(B112,Pupils,Pupils!$W$3,FALSE)+VLOOKUP(B112,Pupils,Pupils!$Z$3,FALSE))), \"x\")","v":2245.2873549748037},{"$f":"IFERROR((VLOOKUP($B112,Funding,Funding!$GX$2,FALSE)), \"x\")","v":24166215.108820003},{"$f":"IFERROR((BE112/VLOOKUP($B112,Funding,Funding!$HC$2,FALSE)), \"x\")","v":0.10186449025461368},{"$f":"IFERROR((BE112/(VLOOKUP($B112,Pupils,Pupils!$D$3,FALSE)+VLOOKUP($B112,Pupils,Pupils!$E$3,FALSE))), \"x\")","v":2250.5322321493763},{"$f":"IFERROR((VLOOKUP($B112,Funding,Funding!$GP$2,FALSE)), \"x\")","v":21562947.010000002},{"$f":"IFERROR((BH112/VLOOKUP($B112,Funding,Funding!$GU$2,FALSE)), \"x\")","v":8.6612236328942993E-2},{"$f":"IFERROR((BH112/(VLOOKUP($B112,Pupils,Pupils!$G$3,FALSE)+VLOOKUP($B112,Pupils,Pupils!$H$3,FALSE))), \"x\")","v":1985.172805192414},{"$f":"IFERROR((VLOOKUP($B112,Funding,Funding!$GH$2,FALSE)), \"x\")","v":22634288.060000002},{"$f":"IFERROR((BK112/VLOOKUP($B112,Funding,Funding!$GM$2,FALSE)), \"x\")","v":0.10780624169026894},{"$f":"IFERROR((BK112/(VLOOKUP($B112,Pupils,Pupils!$J$3,FALSE)+VLOOKUP($B112,Pupils,Pupils!$K$3,FALSE))), \"x\")","v":2231.7381246302507},{"$f":"IFERROR((VLOOKUP($B112,Funding,Funding!$FZ$2,FALSE)), \"x\")","v":24008076.670000002},{"$f":"IFERROR((BN112/VLOOKUP($B112,Funding,Funding!$GE$2,FALSE)), \"x\")","v":0.11333341047986836},{"$f":"IFERROR((BN112/(VLOOKUP($B112,Pupils,Pupils!$M$3,FALSE)+VLOOKUP($B112,Pupils,Pupils!$P$3,FALSE))), \"x\")","v":2505.2777491391007},{"$f":"IFERROR((VLOOKUP($B112,Funding,Funding!$FD$2,FALSE)), \"x\")","v":20012386},{"$f":"IFERROR((BQ112/VLOOKUP($B112,Funding,Funding!$FR$2,FALSE)), \"x\")","v":0.11342215985949979},{"$f":"IFERROR((BQ112/(VLOOKUP($B112,Pupils,Pupils!$R$3,FALSE)+VLOOKUP($B112,Pupils,Pupils!$U$3,FALSE))), \"x\")","v":2195.785165679175},{"$f":"(VLOOKUP(B112,Funding,Funding!$HK$2,FALSE)+VLOOKUP(B112,Funding,Funding!$HL$2,FALSE)+VLOOKUP(B112,Funding,Funding!$HM$2,FALSE))/(VLOOKUP(B112,Funding,Funding!$HN$2,FALSE))","v":0.28042843232716652},{"$f":"IFERROR((VLOOKUP(B112,Other_data,Other!$D$3,FALSE)+VLOOKUP(B112,Other_data,Other!$E$3,FALSE)+VLOOKUP(B112,Other_data,Other!$F$3,FALSE)), \"x\")","v":2170},{"$f":"(VLOOKUP(B112,Other_data,Other!$AK$3,FALSE)+VLOOKUP(B112,Other_data,Other!$AL$3,FALSE))/VLOOKUP(B112,Other_data,Other!$AJ$3,FALSE)","v":4.8239736874162505E-2},{"$f":"(VLOOKUP(B112,Other_data,Other!$AR$3,FALSE)+VLOOKUP(B112,Other_data,Other!$AS$3,FALSE))/VLOOKUP(B112,Other_data,Other!$AQ$3,FALSE)","v":5.994743944882449E-2},{"$f":"VLOOKUP(B112,Other_data,Other!$AP$3,FALSE)/VLOOKUP(B112,Other_data,Other!$AJ$3,FALSE)","v":8.3851057782109075E-3},{"$f":"VLOOKUP(B112,Other_data,Other!$AW$3,FALSE)/VLOOKUP(B112,Other_data,Other!$AQ$3,FALSE)","v":1.2713971162724625E-2}]
[107,857,"Rutland",{"$f":"IFERROR((VLOOKUP($B113,Pupils,Pupils!$D$3,FALSE)/VLOOKUP($B113,Pupils,Pupils!$C$3,FALSE)), \"x\")","v":3.0465444287729196E-2},{"$f":"IFERROR((VLOOKUP($B113,Pupils,Pupils!$G$3,FALSE)/VLOOKUP($B113,Pupils,Pupils!$F$3,FALSE)),\"x\")","v":2.9658010500922379E-2},{"$f":"IFERROR((VLOOKUP($B113,Pupils,Pupils!$J$3,FALSE)/VLOOKUP($B113,Pupils,Pupils!$I$3,FALSE)), \"x\")","v":2.2755482002482418E-2},{"$f":"IFERROR((VLOOKUP($B113,Pupils,Pupils!$M$3,FALSE)/VLOOKUP($B113,Pupils,Pupils!$L$3,FALSE)), \"x\")","v":3.3147632311977718E-2},{"$f":"IFERROR((VLOOKUP($B113,Pupils,Pupils!$R$3,FALSE)/VLOOKUP($B113,Pupils,Pupils!$Q$3,FALSE)), \"x\")","v":3.3346944331019465E-2},{"$f":"IFERROR((VLOOKUP($B113,Pupils,Pupils!$W$3,FALSE)/VLOOKUP($B113,Pupils,Pupils!$V$3,FALSE)), \"x\")","v":3.3390523954071535E-2},{"$f":"IFERROR(((VLOOKUP($B113,Pupils,Pupils!$D$3,FALSE)+VLOOKUP($B113,Pupils,Pupils!$E$3,FALSE))/VLOOKUP($B113,Pupils,Pupils!$C$3,FALSE)), \"x\")","v":0.12933709449929479},{"$f":"IFERROR(((VLOOKUP($B113,Pupils,Pupils!$G$3,FALSE)+VLOOKUP($B113,Pupils,Pupils!$H$3,FALSE))/VLOOKUP($B113,Pupils,Pupils!$F$3,FALSE)), \"x\")","v":0.15169575705974173},{"$f":"IFERROR(((VLOOKUP($B113,Pupils,Pupils!$J$3,FALSE)+VLOOKUP($B113,Pupils,Pupils!$K$3,FALSE))/VLOOKUP($B113,Pupils,Pupils!$I$3,FALSE)), \"x\")","v":0.13901530823334712},{"$f":"IFERROR(((VLOOKUP($B113,Pupils,Pupils!$M$3,FALSE)+VLOOKUP($B113,Pupils,Pupils!$P$3,FALSE))/VLOOKUP($B113,Pupils,Pupils!$L$3,FALSE)), \"x\")","v":0.12367688022284122},{"$f":"IFERROR(((VLOOKUP($B113,Pupils,Pupils!$R$3,FALSE)+VLOOKUP($B113,Pupils,Pupils!$U$3,FALSE))/VLOOKUP($B113,Pupils,Pupils!$Q$3,FALSE)), \"x\")","v":0.12127398938342181},{"$f":"IFERROR(((VLOOKUP($B113,Pupils,Pupils!$W$3,FALSE)+VLOOKUP($B113,Pupils,Pupils!$Z$3,FALSE))/VLOOKUP($B113,Pupils,Pupils!$V$3,FALSE)), \"x\")","v":0.12115613039461529},{"$f":"(SUM(INDEX(Pupils!$AB$7:$AB$159,MATCH($B113,Pupils!$A$7:$A$159,0)),INDEX(Pupils!$AC$7:$AC$159,MATCH($B113,Pupils!$A$7:$A$159,0)),INDEX(Pupils!$AD$7:$AD$159,MATCH($B113,Pupils!$A$7:$A$159,0)),INDEX(Pupils!$AE$7:$AE$159,MATCH($B113,Pupils!$A$7:$A$159,0))))/SUM(INDEX(Pupils!$AB$7:$AM$159,MATCH($B113,Pupils!$A$7:$A$159,0),0))","v":0.49184149184149184},{"$f":"SUM(INDEX(Pupils!$AF$7:$AF$159,MATCH($B113,Pupils!$A$7:$A$159,0)))/SUM(INDEX(Pupils!$AB$7:$AM$159,MATCH($B113,Pupils!$A$7:$A$159,0),0))","v":0.20046620046620048},{"$f":"SUM(INDEX(Pupils!$AG$7:$AG$159,MATCH($B113,Pupils!$A$7:$A$159,0)))/SUM(INDEX(Pupils!$AB$7:$AM$159,MATCH($B113,Pupils!$A$7:$A$159,0),0))","v":0.15617715617715619},{"$f":"(SUM(INDEX(Pupils!$AH$7:$AH$159,MATCH($B113,Pupils!$A$7:$A$159,0)),INDEX(Pupils!$AI$7:$AI$159,MATCH($B113,Pupils!$A$7:$A$159,0)),INDEX(Pupils!$AJ$7:$AJ$159,MATCH($B113,Pupils!$A$7:$A$159,0))))/SUM(INDEX(Pupils!$AB$7:$AM$159,MATCH($B113,Pupils!$A$7:$A$159,0),0))","v":2.7972027972027972E-2},{"$f":"SUM(INDEX(Pupils!$AK$7:$AK$159,MATCH($B113,Pupils!$A$7:$A$159,0)))/SUM(INDEX(Pupils!$AB$7:$AM$159,MATCH($B113,Pupils!$A$7:$A$159,0),0))","v":2.7972027972027972E-2},{"$f":"SUM(INDEX(Pupils!$AL$7:$AL$159,MATCH($B113,Pupils!$A$7:$A$159,0)))/SUM(INDEX(Pupils!$AB$7:$AM$159,MATCH($B113,Pupils!$A$7:$A$159,0),0))","v":6.75990675990676E-2},{"$f":"SUM(INDEX(Pupils!$AM$7:$AM$159,MATCH($B113,Pupils!$A$7:$A$159,0)))/SUM(INDEX(Pupils!$AB$7:$AM$159,MATCH($B113,Pupils!$A$7:$A$159,0),0))","v":2.7972027972027972E-2},{"$f":"(SUM(INDEX(Pupils!$BH$7:$BH$159,MATCH($B113,Pupils!$A$7:$A$159,0)),INDEX(Pupils!$BK$7:$BK$159,MATCH($B113,Pupils!$A$7:$A$159,0)),INDEX(Pupils!$BO$7:$BO$159,MATCH($B113,Pupils!$A$7:$A$159,0))))/SUM(INDEX(Pupils!$BH$7:$BS$159,MATCH($B113,Pupils!$A$7:$A$159,0),0))","v":0.68823529411764706},{"$f":"(SUM(INDEX(Pupils!$BL$7:$BL$159,MATCH($B113,Pupils!$A$7:$A$159,0)),INDEX(Pupils!$BM$7:$BM$159,MATCH($B113,Pupils!$A$7:$A$159,0)),INDEX(Pupils!$BP$7:$BP$159,MATCH($B113,Pupils!$A$7:$A$159,0))))/SUM(INDEX(Pupils!$BH$7:$BS$159,MATCH($B113,Pupils!$A$7:$A$159,0),0))","v":0.22352941176470589},{"$f":"(SUM(INDEX(Pupils!$BI$7:$BI$159,MATCH($B113,Pupils!$A$7:$A$159,0)),INDEX(Pupils!$BJ$7:$BJ$159,MATCH($B113,Pupils!$A$7:$A$159,0))))/SUM(INDEX(Pupils!$BH$7:$BS$159,MATCH($B113,Pupils!$A$7:$A$159,0),0))","v":8.8235294117647065E-2},{"$f":"(SUM(INDEX(Pupils!$BQ$7:$BQ$159,MATCH($B113,Pupils!$A$7:$A$159,0)),INDEX(Pupils!$BR$7:$BR$159,MATCH($B113,Pupils!$A$7:$A$159,0)),INDEX(Pupils!$BN$7:$BN$159,MATCH($B113,Pupils!$A$7:$A$159,0)),INDEX(Pupils!$BS$7:$BS$159,MATCH($B113,Pupils!$A$7:$A$159,0))))/SUM(INDEX(Pupils!$BH$7:$BS$159,MATCH($B113,Pupils!$A$7:$A$159,0),0))","v":0},{"$f":"IFERROR((VLOOKUP(B113,Funding,Funding!$C$2,FALSE)), \"x\")","v":3588684.18},{"$f":"IFERROR((AA113/VLOOKUP(B113,Funding,Funding!$D$2,FALSE)), \"x\")","v":0.14662370963222637},{"$f":"IFERROR((AA113/(VLOOKUP(B113,Pupils,Pupils!$M$3,FALSE)+VLOOKUP(B113,Pupils,Pupils!$P$3,FALSE))), \"x\")","v":4041.3110135135139},{"$f":"IFERROR((VLOOKUP(B113,Funding,Funding!$E$2,FALSE)), \"x\")","v":3890048.1406342243},{"$f":"IFERROR((AD113/VLOOKUP(B113,Funding,Funding!$F$2,FALSE)), \"x\")","v":0.15252360930058254},{"$f":"IFERROR((AD113/(VLOOKUP(B113,Pupils,Pupils!$R$3,FALSE)+VLOOKUP(B113,Pupils,Pupils!$U$3,FALSE))), \"x\")","v":4365.9350624402068},{"$f":"IFERROR((VLOOKUP(B113,Funding,Funding!$G$2,FALSE)), \"x\")","v":3967576.5966500784},{"$f":"IFERROR((AG113/VLOOKUP(B113,Funding,Funding!$H$2,FALSE)), \"x\")","v":0.15091053689990147},{"$f":"IFERROR((AG113/(VLOOKUP(B113,Pupils,Pupils!$W$3,FALSE)+VLOOKUP(B113,Pupils,Pupils!$Z$3,FALSE))), \"x\")","v":4321.9788634532442},{"$f":"IFERROR((VLOOKUP(B113,Funding,Funding!$I$2,FALSE)), \"x\")","v":4004612.2046887768},{"$f":"IFERROR((AJ113/VLOOKUP(B113,Funding,Funding!$J$2,FALSE)), \"x\")","v":0.14659780373718845},null,{"$f":"IFERROR((VLOOKUP($B113,Funding,Funding!$EC$2,FALSE)), \"x\")","v":1527080},{"$f":"IFERROR((AM113/VLOOKUP($B113,Funding,Funding!$EU$2,FALSE)), \"x\")","v":6.0393250595091506E-2},{"$f":"IFERROR((AM113/(VLOOKUP($B113,Pupils,Pupils!$D$3,FALSE)+VLOOKUP($B113,Pupils,Pupils!$E$3,FALSE))), \"x\")","v":1665.299890948746},{"$f":"IFERROR((VLOOKUP($B113,Funding,Funding!$DA$2,FALSE)), \"x\")","v":1838791},{"$f":"IFERROR((AP113/VLOOKUP($B113,Funding,Funding!$DT$2,FALSE)), \"x\")","v":6.7057900447996963E-2},{"$f":"IFERROR((AP113/(VLOOKUP($B113,Pupils,Pupils!$G$3,FALSE)+VLOOKUP($B113,Pupils,Pupils!$H$3,FALSE))), \"x\")","v":1720.1038353601496},{"$f":"IFERROR((VLOOKUP($B113,Funding,Funding!$CE$2,FALSE)), \"x\")","v":2667833},{"$f":"IFERROR((AS113/VLOOKUP($B113,Funding,Funding!$CR$2,FALSE)), \"x\")","v":0.13944115094864074},{"$f":"IFERROR((AS113/(VLOOKUP($B113,Pupils,Pupils!$J$3,FALSE)+VLOOKUP($B113,Pupils,Pupils!$K$3,FALSE))), \"x\")","v":2646.6597222222222},{"$f":"IFERROR((VLOOKUP($B113,Funding,Funding!$BM$2,FALSE)), \"x\")","v":2883815.17},{"$f":"IFERROR((AV113/VLOOKUP($B113,Funding,Funding!$BY$2,FALSE)), \"x\")","v":0.2020245761386894},{"$f":"IFERROR((AV113/(VLOOKUP($B113,Pupils,Pupils!$M$3,FALSE)+VLOOKUP($B113,Pupils,Pupils!$P$3,FALSE))), \"x\")","v":3247.5396058558558},{"$f":"IFERROR((VLOOKUP($B113,Funding,Funding!$AQ$2,FALSE)), \"x\")","v":2772300},{"$f":"IFERROR((AY113/VLOOKUP($B113,Funding,Funding!$BE$2,FALSE)), \"x\")","v":0.10866134769702851},{"$f":"IFERROR((AY113/(VLOOKUP($B113,Pupils,Pupils!$R$3,FALSE)+VLOOKUP($B113,Pupils,Pupils!$U$3,FALSE))), \"x\")","v":3111.4478114478115},{"$f":"IFERROR((VLOOKUP($B113,Funding,Funding!$S$2,FALSE)), \"x\")","v":3099400},{"$f":"IFERROR((BB113/VLOOKUP($B113,Funding,Funding!$AH$2,FALSE)), \"x\")","v":0.1181984593089772},{"$f":"IFERROR((BB113/(VLOOKUP(B113,Pupils,Pupils!$W$3,FALSE)+VLOOKUP(B113,Pupils,Pupils!$Z$3,FALSE))), \"x\")","v":3376.252723311547},{"$f":"IFERROR((VLOOKUP($B113,Funding,Funding!$GX$2,FALSE)), \"x\")","v":3408090},{"$f":"IFERROR((BE113/VLOOKUP($B113,Funding,Funding!$HC$2,FALSE)), \"x\")","v":0.12676046391517184},{"$f":"IFERROR((BE113/(VLOOKUP($B113,Pupils,Pupils!$D$3,FALSE)+VLOOKUP($B113,Pupils,Pupils!$E$3,FALSE))), \"x\")","v":3716.5648854961833},{"$f":"IFERROR((VLOOKUP($B113,Funding,Funding!$GP$2,FALSE)), \"x\")","v":3584715},{"$f":"IFERROR((BH113/VLOOKUP($B113,Funding,Funding!$GU$2,FALSE)), \"x\")","v":0.12305473106335774},{"$f":"IFERROR((BH113/(VLOOKUP($B113,Pupils,Pupils!$G$3,FALSE)+VLOOKUP($B113,Pupils,Pupils!$H$3,FALSE))), \"x\")","v":3353.3348924228249},{"$f":"IFERROR((VLOOKUP($B113,Funding,Funding!$GH$2,FALSE)), \"x\")","v":3420369.42},{"$f":"IFERROR((BK113/VLOOKUP($B113,Funding,Funding!$GM$2,FALSE)), \"x\")","v":0.18870292039275946},{"$f":"IFERROR((BK113/(VLOOKUP($B113,Pupils,Pupils!$J$3,FALSE)+VLOOKUP($B113,Pupils,Pupils!$K$3,FALSE))), \"x\")","v":3393.223630952381},{"$f":"IFERROR((VLOOKUP($B113,Funding,Funding!$FZ$2,FALSE)), \"x\")","v":2517898.48},{"$f":"IFERROR((BN113/VLOOKUP($B113,Funding,Funding!$GE$2,FALSE)), \"x\")","v":0.1636774635001734},{"$f":"IFERROR((BN113/(VLOOKUP($B113,Pupils,Pupils!$M$3,FALSE)+VLOOKUP($B113,Pupils,Pupils!$P$3,FALSE))), \"x\")","v":2835.4712612612611},{"$f":"IFERROR((VLOOKUP($B113,Funding,Funding!$FD$2,FALSE)), \"x\")","v":2813104.9099999997},{"$f":"IFERROR((BQ113/VLOOKUP($B113,Funding,Funding!$FR$2,FALSE)), \"x\")","v":0.24402948672253197},{"$f":"IFERROR((BQ113/(VLOOKUP($B113,Pupils,Pupils!$R$3,FALSE)+VLOOKUP($B113,Pupils,Pupils!$U$3,FALSE))), \"x\")","v":3157.2445679012344},{"$f":"(VLOOKUP(B113,Funding,Funding!$HK$2,FALSE)+VLOOKUP(B113,Funding,Funding!$HL$2,FALSE)+VLOOKUP(B113,Funding,Funding!$HM$2,FALSE))/(VLOOKUP(B113,Funding,Funding!$HN$2,FALSE))","v":0.23776223776223776},{"$f":"IFERROR((VLOOKUP(B113,Other_data,Other!$D$3,FALSE)+VLOOKUP(B113,Other_data,Other!$E$3,FALSE)+VLOOKUP(B113,Other_data,Other!$F$3,FALSE)), \"x\")","v":150},{"$f":"(VLOOKUP(B113,Other_data,Other!$AK$3,FALSE)+VLOOKUP(B113,Other_data,Other!$AL$3,FALSE))/VLOOKUP(B113,Other_data,Other!$AJ$3,FALSE)","v":2.7923784494086726E-2},{"$f":"(VLOOKUP(B113,Other_data,Other!$AR$3,FALSE)+VLOOKUP(B113,Other_data,Other!$AS$3,FALSE))/VLOOKUP(B113,Other_data,Other!$AQ$3,FALSE)","v":3.7168141592920353E-2},{"$f":"VLOOKUP(B113,Other_data,Other!$AP$3,FALSE)/VLOOKUP(B113,Other_data,Other!$AJ$3,FALSE)","v":3.6136662286465177E-3},{"$f":"VLOOKUP(B113,Other_data,Other!$AW$3,FALSE)/VLOOKUP(B113,Other_data,Other!$AQ$3,FALSE)","v":4.6017699115044244E-3}]
[108,355,"Salford",{"$f":"IFERROR((VLOOKUP($B114,Pupils,Pupils!$D$3,FALSE)/VLOOKUP($B114,Pupils,Pupils!$C$3,FALSE)), \"x\")","v":2.9302188054405678E-2},{"$f":"IFERROR((VLOOKUP($B114,Pupils,Pupils!$G$3,FALSE)/VLOOKUP($B114,Pupils,Pupils!$F$3,FALSE)),\"x\")","v":2.831926779983359E-2},{"$f":"IFERROR((VLOOKUP($B114,Pupils,Pupils!$J$3,FALSE)/VLOOKUP($B114,Pupils,Pupils!$I$3,FALSE)), \"x\")","v":2.9605938792875795E-2},{"$f":"IFERROR((VLOOKUP($B114,Pupils,Pupils!$M$3,FALSE)/VLOOKUP($B114,Pupils,Pupils!$L$3,FALSE)), \"x\")","v":2.8060198747774139E-2},{"$f":"IFERROR((VLOOKUP($B114,Pupils,Pupils!$R$3,FALSE)/VLOOKUP($B114,Pupils,Pupils!$Q$3,FALSE)), \"x\")","v":2.8067609753353769E-2},{"$f":"IFERROR((VLOOKUP($B114,Pupils,Pupils!$W$3,FALSE)/VLOOKUP($B114,Pupils,Pupils!$V$3,FALSE)), \"x\")","v":2.770014795331251E-2},{"$f":"IFERROR(((VLOOKUP($B114,Pupils,Pupils!$D$3,FALSE)+VLOOKUP($B114,Pupils,Pupils!$E$3,FALSE))/VLOOKUP($B114,Pupils,Pupils!$C$3,FALSE)), \"x\")","v":0.2088113542282673},{"$f":"IFERROR(((VLOOKUP($B114,Pupils,Pupils!$G$3,FALSE)+VLOOKUP($B114,Pupils,Pupils!$H$3,FALSE))/VLOOKUP($B114,Pupils,Pupils!$F$3,FALSE)), \"x\")","v":0.21148817306549389},{"$f":"IFERROR(((VLOOKUP($B114,Pupils,Pupils!$J$3,FALSE)+VLOOKUP($B114,Pupils,Pupils!$K$3,FALSE))/VLOOKUP($B114,Pupils,Pupils!$I$3,FALSE)), \"x\")","v":0.20565711100026407},{"$f":"IFERROR(((VLOOKUP($B114,Pupils,Pupils!$M$3,FALSE)+VLOOKUP($B114,Pupils,Pupils!$P$3,FALSE))/VLOOKUP($B114,Pupils,Pupils!$L$3,FALSE)), \"x\")","v":0.19165374231719226},{"$f":"IFERROR(((VLOOKUP($B114,Pupils,Pupils!$R$3,FALSE)+VLOOKUP($B114,Pupils,Pupils!$U$3,FALSE))/VLOOKUP($B114,Pupils,Pupils!$Q$3,FALSE)), \"x\")","v":0.17695531119048288},{"$f":"IFERROR(((VLOOKUP($B114,Pupils,Pupils!$W$3,FALSE)+VLOOKUP($B114,Pupils,Pupils!$Z$3,FALSE))/VLOOKUP($B114,Pupils,Pupils!$V$3,FALSE)), \"x\")","v":0.1773521836812976},{"$f":"(SUM(INDEX(Pupils!$AB$7:$AB$159,MATCH($B114,Pupils!$A$7:$A$159,0)),INDEX(Pupils!$AC$7:$AC$159,MATCH($B114,Pupils!$A$7:$A$159,0)),INDEX(Pupils!$AD$7:$AD$159,MATCH($B114,Pupils!$A$7:$A$159,0)),INDEX(Pupils!$AE$7:$AE$159,MATCH($B114,Pupils!$A$7:$A$159,0))))/SUM(INDEX(Pupils!$AB$7:$AM$159,MATCH($B114,Pupils!$A$7:$A$159,0),0))","v":0.35236081747709652},{"$f":"SUM(INDEX(Pupils!$AF$7:$AF$159,MATCH($B114,Pupils!$A$7:$A$159,0)))/SUM(INDEX(Pupils!$AB$7:$AM$159,MATCH($B114,Pupils!$A$7:$A$159,0),0))","v":0.22304439746300211},{"$f":"SUM(INDEX(Pupils!$AG$7:$AG$159,MATCH($B114,Pupils!$A$7:$A$159,0)))/SUM(INDEX(Pupils!$AB$7:$AM$159,MATCH($B114,Pupils!$A$7:$A$159,0),0))","v":0.25757575757575757},{"$f":"(SUM(INDEX(Pupils!$AH$7:$AH$159,MATCH($B114,Pupils!$A$7:$A$159,0)),INDEX(Pupils!$AI$7:$AI$159,MATCH($B114,Pupils!$A$7:$A$159,0)),INDEX(Pupils!$AJ$7:$AJ$159,MATCH($B114,Pupils!$A$7:$A$159,0))))/SUM(INDEX(Pupils!$AB$7:$AM$159,MATCH($B114,Pupils!$A$7:$A$159,0),0))","v":2.8541226215644821E-2},{"$f":"SUM(INDEX(Pupils!$AK$7:$AK$159,MATCH($B114,Pupils!$A$7:$A$159,0)))/SUM(INDEX(Pupils!$AB$7:$AM$159,MATCH($B114,Pupils!$A$7:$A$159,0),0))","v":3.4178999295278366E-2},{"$f":"SUM(INDEX(Pupils!$AL$7:$AL$159,MATCH($B114,Pupils!$A$7:$A$159,0)))/SUM(INDEX(Pupils!$AB$7:$AM$159,MATCH($B114,Pupils!$A$7:$A$159,0),0))","v":5.4968287526427059E-2},{"$f":"SUM(INDEX(Pupils!$AM$7:$AM$159,MATCH($B114,Pupils!$A$7:$A$159,0)))/SUM(INDEX(Pupils!$AB$7:$AM$159,MATCH($B114,Pupils!$A$7:$A$159,0),0))","v":4.9330514446793518E-2},{"$f":"(SUM(INDEX(Pupils!$BH$7:$BH$159,MATCH($B114,Pupils!$A$7:$A$159,0)),INDEX(Pupils!$BK$7:$BK$159,MATCH($B114,Pupils!$A$7:$A$159,0)),INDEX(Pupils!$BO$7:$BO$159,MATCH($B114,Pupils!$A$7:$A$159,0))))/SUM(INDEX(Pupils!$BH$7:$BS$159,MATCH($B114,Pupils!$A$7:$A$159,0),0))","v":0.39704604691572548},{"$f":"(SUM(INDEX(Pupils!$BL$7:$BL$159,MATCH($B114,Pupils!$A$7:$A$159,0)),INDEX(Pupils!$BM$7:$BM$159,MATCH($B114,Pupils!$A$7:$A$159,0)),INDEX(Pupils!$BP$7:$BP$159,MATCH($B114,Pupils!$A$7:$A$159,0))))/SUM(INDEX(Pupils!$BH$7:$BS$159,MATCH($B114,Pupils!$A$7:$A$159,0),0))","v":0.52823631624674194},{"$f":"(SUM(INDEX(Pupils!$BI$7:$BI$159,MATCH($B114,Pupils!$A$7:$A$159,0)),INDEX(Pupils!$BJ$7:$BJ$159,MATCH($B114,Pupils!$A$7:$A$159,0))))/SUM(INDEX(Pupils!$BH$7:$BS$159,MATCH($B114,Pupils!$A$7:$A$159,0),0))","v":5.7341442224152911E-2},{"$f":"(SUM(INDEX(Pupils!$BQ$7:$BQ$159,MATCH($B114,Pupils!$A$7:$A$159,0)),INDEX(Pupils!$BR$7:$BR$159,MATCH($B114,Pupils!$A$7:$A$159,0)),INDEX(Pupils!$BN$7:$BN$159,MATCH($B114,Pupils!$A$7:$A$159,0)),INDEX(Pupils!$BS$7:$BS$159,MATCH($B114,Pupils!$A$7:$A$159,0))))/SUM(INDEX(Pupils!$BH$7:$BS$159,MATCH($B114,Pupils!$A$7:$A$159,0),0))","v":1.7376194613379671E-2},{"$f":"IFERROR((VLOOKUP(B114,Funding,Funding!$C$2,FALSE)), \"x\")","v":25909390.46970363},{"$f":"IFERROR((AA114/VLOOKUP(B114,Funding,Funding!$D$2,FALSE)), \"x\")","v":0.15452339044290803},{"$f":"IFERROR((AA114/(VLOOKUP(B114,Pupils,Pupils!$M$3,FALSE)+VLOOKUP(B114,Pupils,Pupils!$P$3,FALSE))), \"x\")","v":3882.7199864683994},{"$f":"IFERROR((VLOOKUP(B114,Funding,Funding!$E$2,FALSE)), \"x\")","v":27621856.483977646},{"$f":"IFERROR((AD114/VLOOKUP(B114,Funding,Funding!$F$2,FALSE)), \"x\")","v":0.15690591991072525},{"$f":"IFERROR((AD114/(VLOOKUP(B114,Pupils,Pupils!$R$3,FALSE)+VLOOKUP(B114,Pupils,Pupils!$U$3,FALSE))), \"x\")","v":4389.9962625520729},{"$f":"IFERROR((VLOOKUP(B114,Funding,Funding!$G$2,FALSE)), \"x\")","v":28940794.035648525},{"$f":"IFERROR((AG114/VLOOKUP(B114,Funding,Funding!$H$2,FALSE)), \"x\")","v":0.15894855230312172},{"$f":"IFERROR((AG114/(VLOOKUP(B114,Pupils,Pupils!$W$3,FALSE)+VLOOKUP(B114,Pupils,Pupils!$Z$3,FALSE))), \"x\")","v":4471.0017048738646},{"$f":"IFERROR((VLOOKUP(B114,Funding,Funding!$I$2,FALSE)), \"x\")","v":29768349.627426982},{"$f":"IFERROR((AJ114/VLOOKUP(B114,Funding,Funding!$J$2,FALSE)), \"x\")","v":0.15849150331656389},null,{"$f":"IFERROR((VLOOKUP($B114,Funding,Funding!$EC$2,FALSE)), \"x\")","v":15447485.35},{"$f":"IFERROR((AM114/VLOOKUP($B114,Funding,Funding!$EU$2,FALSE)), \"x\")","v":9.4479151609722464E-2},{"$f":"IFERROR((AM114/(VLOOKUP($B114,Pupils,Pupils!$D$3,FALSE)+VLOOKUP($B114,Pupils,Pupils!$E$3,FALSE))), \"x\")","v":2187.4094236760125},{"$f":"IFERROR((VLOOKUP($B114,Funding,Funding!$DA$2,FALSE)), \"x\")","v":16231340},{"$f":"IFERROR((AP114/VLOOKUP($B114,Funding,Funding!$DT$2,FALSE)), \"x\")","v":9.5944785384830283E-2},{"$f":"IFERROR((AP114/(VLOOKUP($B114,Pupils,Pupils!$G$3,FALSE)+VLOOKUP($B114,Pupils,Pupils!$H$3,FALSE))), \"x\")","v":2280.6435295770689},{"$f":"IFERROR((VLOOKUP($B114,Funding,Funding!$CE$2,FALSE)), \"x\")","v":16488872},{"$f":"IFERROR((AS114/VLOOKUP($B114,Funding,Funding!$CR$2,FALSE)), \"x\")","v":9.9146040946059416E-2},{"$f":"IFERROR((AS114/(VLOOKUP($B114,Pupils,Pupils!$J$3,FALSE)+VLOOKUP($B114,Pupils,Pupils!$K$3,FALSE))), \"x\")","v":2352.5284634041946},{"$f":"IFERROR((VLOOKUP($B114,Funding,Funding!$BM$2,FALSE)), \"x\")","v":17314743.300000001},{"$f":"IFERROR((AV114/VLOOKUP($B114,Funding,Funding!$BY$2,FALSE)), \"x\")","v":0.10399720047086007},{"$f":"IFERROR((AV114/(VLOOKUP($B114,Pupils,Pupils!$M$3,FALSE)+VLOOKUP($B114,Pupils,Pupils!$P$3,FALSE))), \"x\")","v":2594.7464858384537},{"$f":"IFERROR((VLOOKUP($B114,Funding,Funding!$AQ$2,FALSE)), \"x\")","v":25671095},{"$f":"IFERROR((AY114/VLOOKUP($B114,Funding,Funding!$BE$2,FALSE)), \"x\")","v":0.14395389351783752},{"$f":"IFERROR((AY114/(VLOOKUP($B114,Pupils,Pupils!$R$3,FALSE)+VLOOKUP($B114,Pupils,Pupils!$U$3,FALSE))), \"x\")","v":4079.9578830260648},{"$f":"IFERROR((VLOOKUP($B114,Funding,Funding!$S$2,FALSE)), \"x\")","v":26653862},{"$f":"IFERROR((BB114/VLOOKUP($B114,Funding,Funding!$AH$2,FALSE)), \"x\")","v":0.14466805860414314},{"$f":"IFERROR((BB114/(VLOOKUP(B114,Pupils,Pupils!$W$3,FALSE)+VLOOKUP(B114,Pupils,Pupils!$Z$3,FALSE))), \"x\")","v":4117.6984396724856},{"$f":"IFERROR((VLOOKUP($B114,Funding,Funding!$GX$2,FALSE)), \"x\")","v":27305597.582770001},{"$f":"IFERROR((BE114/VLOOKUP($B114,Funding,Funding!$HC$2,FALSE)), \"x\")","v":0.14348212815697325},{"$f":"IFERROR((BE114/(VLOOKUP($B114,Pupils,Pupils!$D$3,FALSE)+VLOOKUP($B114,Pupils,Pupils!$E$3,FALSE))), \"x\")","v":3866.5530420235064},{"$f":"IFERROR((VLOOKUP($B114,Funding,Funding!$GP$2,FALSE)), \"x\")","v":26822093},{"$f":"IFERROR((BH114/VLOOKUP($B114,Funding,Funding!$GU$2,FALSE)), \"x\")","v":0.14459671648206282},{"$f":"IFERROR((BH114/(VLOOKUP($B114,Pupils,Pupils!$G$3,FALSE)+VLOOKUP($B114,Pupils,Pupils!$H$3,FALSE))), \"x\")","v":3768.7358437543908},{"$f":"IFERROR((VLOOKUP($B114,Funding,Funding!$GH$2,FALSE)), \"x\")","v":24208590.68},{"$f":"IFERROR((BK114/VLOOKUP($B114,Funding,Funding!$GM$2,FALSE)), \"x\")","v":0.13449928951425499},{"$f":"IFERROR((BK114/(VLOOKUP($B114,Pupils,Pupils!$J$3,FALSE)+VLOOKUP($B114,Pupils,Pupils!$K$3,FALSE))), \"x\")","v":3453.9293308603224},{"$f":"IFERROR((VLOOKUP($B114,Funding,Funding!$FZ$2,FALSE)), \"x\")","v":21198250.640000001},{"$f":"IFERROR((BN114/VLOOKUP($B114,Funding,Funding!$GE$2,FALSE)), \"x\")","v":0.12155092584655507},{"$f":"IFERROR((BN114/(VLOOKUP($B114,Pupils,Pupils!$M$3,FALSE)+VLOOKUP($B114,Pupils,Pupils!$P$3,FALSE))), \"x\")","v":3176.7197122733405},{"$f":"IFERROR((VLOOKUP($B114,Funding,Funding!$FD$2,FALSE)), \"x\")","v":22645744.140000001},{"$f":"IFERROR((BQ114/VLOOKUP($B114,Funding,Funding!$FR$2,FALSE)), \"x\")","v":0.14326568525195735},{"$f":"IFERROR((BQ114/(VLOOKUP($B114,Pupils,Pupils!$R$3,FALSE)+VLOOKUP($B114,Pupils,Pupils!$U$3,FALSE))), \"x\")","v":3599.1328893833438},{"$f":"(VLOOKUP(B114,Funding,Funding!$HK$2,FALSE)+VLOOKUP(B114,Funding,Funding!$HL$2,FALSE)+VLOOKUP(B114,Funding,Funding!$HM$2,FALSE))/(VLOOKUP(B114,Funding,Funding!$HN$2,FALSE))","v":0.15950920245398773},{"$f":"IFERROR((VLOOKUP(B114,Other_data,Other!$D$3,FALSE)+VLOOKUP(B114,Other_data,Other!$E$3,FALSE)+VLOOKUP(B114,Other_data,Other!$F$3,FALSE)), \"x\")","v":1680},{"$f":"(VLOOKUP(B114,Other_data,Other!$AK$3,FALSE)+VLOOKUP(B114,Other_data,Other!$AL$3,FALSE))/VLOOKUP(B114,Other_data,Other!$AJ$3,FALSE)","v":4.1886558162224488E-2},{"$f":"(VLOOKUP(B114,Other_data,Other!$AR$3,FALSE)+VLOOKUP(B114,Other_data,Other!$AS$3,FALSE))/VLOOKUP(B114,Other_data,Other!$AQ$3,FALSE)","v":5.9005670945969452E-2},{"$f":"VLOOKUP(B114,Other_data,Other!$AP$3,FALSE)/VLOOKUP(B114,Other_data,Other!$AJ$3,FALSE)","v":7.5391369905539046E-3},{"$f":"VLOOKUP(B114,Other_data,Other!$AW$3,FALSE)/VLOOKUP(B114,Other_data,Other!$AQ$3,FALSE)","v":1.2907490519430818E-2}]
[109,333,"Sandwell",{"$f":"IFERROR((VLOOKUP($B115,Pupils,Pupils!$D$3,FALSE)/VLOOKUP($B115,Pupils,Pupils!$C$3,FALSE)), \"x\")","v":1.7391645728643216E-2},{"$f":"IFERROR((VLOOKUP($B115,Pupils,Pupils!$G$3,FALSE)/VLOOKUP($B115,Pupils,Pupils!$F$3,FALSE)),\"x\")","v":1.7587694469929142E-2},{"$f":"IFERROR((VLOOKUP($B115,Pupils,Pupils!$J$3,FALSE)/VLOOKUP($B115,Pupils,Pupils!$I$3,FALSE)), \"x\")","v":1.7344173441734417E-2},{"$f":"IFERROR((VLOOKUP($B115,Pupils,Pupils!$M$3,FALSE)/VLOOKUP($B115,Pupils,Pupils!$L$3,FALSE)), \"x\")","v":1.7899967384839705E-2},{"$f":"IFERROR((VLOOKUP($B115,Pupils,Pupils!$R$3,FALSE)/VLOOKUP($B115,Pupils,Pupils!$Q$3,FALSE)), \"x\")","v":1.9403798110336795E-2},{"$f":"IFERROR((VLOOKUP($B115,Pupils,Pupils!$W$3,FALSE)/VLOOKUP($B115,Pupils,Pupils!$V$3,FALSE)), \"x\")","v":2.1505574835708485E-2},{"$f":"IFERROR(((VLOOKUP($B115,Pupils,Pupils!$D$3,FALSE)+VLOOKUP($B115,Pupils,Pupils!$E$3,FALSE))/VLOOKUP($B115,Pupils,Pupils!$C$3,FALSE)), \"x\")","v":0.21710113065326633},{"$f":"IFERROR(((VLOOKUP($B115,Pupils,Pupils!$G$3,FALSE)+VLOOKUP($B115,Pupils,Pupils!$H$3,FALSE))/VLOOKUP($B115,Pupils,Pupils!$F$3,FALSE)), \"x\")","v":0.22245212672509712},{"$f":"IFERROR(((VLOOKUP($B115,Pupils,Pupils!$J$3,FALSE)+VLOOKUP($B115,Pupils,Pupils!$K$3,FALSE))/VLOOKUP($B115,Pupils,Pupils!$I$3,FALSE)), \"x\")","v":0.2219318621757646},{"$f":"IFERROR(((VLOOKUP($B115,Pupils,Pupils!$M$3,FALSE)+VLOOKUP($B115,Pupils,Pupils!$P$3,FALSE))/VLOOKUP($B115,Pupils,Pupils!$L$3,FALSE)), \"x\")","v":0.20729812175047485},{"$f":"IFERROR(((VLOOKUP($B115,Pupils,Pupils!$R$3,FALSE)+VLOOKUP($B115,Pupils,Pupils!$U$3,FALSE))/VLOOKUP($B115,Pupils,Pupils!$Q$3,FALSE)), \"x\")","v":0.18821496327741985},{"$f":"IFERROR(((VLOOKUP($B115,Pupils,Pupils!$W$3,FALSE)+VLOOKUP($B115,Pupils,Pupils!$Z$3,FALSE))/VLOOKUP($B115,Pupils,Pupils!$V$3,FALSE)), \"x\")","v":0.18585246991065496},{"$f":"(SUM(INDEX(Pupils!$AB$7:$AB$159,MATCH($B115,Pupils!$A$7:$A$159,0)),INDEX(Pupils!$AC$7:$AC$159,MATCH($B115,Pupils!$A$7:$A$159,0)),INDEX(Pupils!$AD$7:$AD$159,MATCH($B115,Pupils!$A$7:$A$159,0)),INDEX(Pupils!$AE$7:$AE$159,MATCH($B115,Pupils!$A$7:$A$159,0))))/SUM(INDEX(Pupils!$AB$7:$AM$159,MATCH($B115,Pupils!$A$7:$A$159,0),0))","v":0.41757990867579908},{"$f":"SUM(INDEX(Pupils!$AF$7:$AF$159,MATCH($B115,Pupils!$A$7:$A$159,0)))/SUM(INDEX(Pupils!$AB$7:$AM$159,MATCH($B115,Pupils!$A$7:$A$159,0),0))","v":0.18447488584474886},{"$f":"SUM(INDEX(Pupils!$AG$7:$AG$159,MATCH($B115,Pupils!$A$7:$A$159,0)))/SUM(INDEX(Pupils!$AB$7:$AM$159,MATCH($B115,Pupils!$A$7:$A$159,0),0))","v":0.23356164383561645},{"$f":"(SUM(INDEX(Pupils!$AH$7:$AH$159,MATCH($B115,Pupils!$A$7:$A$159,0)),INDEX(Pupils!$AI$7:$AI$159,MATCH($B115,Pupils!$A$7:$A$159,0)),INDEX(Pupils!$AJ$7:$AJ$159,MATCH($B115,Pupils!$A$7:$A$159,0))))/SUM(INDEX(Pupils!$AB$7:$AM$159,MATCH($B115,Pupils!$A$7:$A$159,0),0))","v":5.5022831050228309E-2},{"$f":"SUM(INDEX(Pupils!$AK$7:$AK$159,MATCH($B115,Pupils!$A$7:$A$159,0)))/SUM(INDEX(Pupils!$AB$7:$AM$159,MATCH($B115,Pupils!$A$7:$A$159,0),0))","v":3.8356164383561646E-2},{"$f":"SUM(INDEX(Pupils!$AL$7:$AL$159,MATCH($B115,Pupils!$A$7:$A$159,0)))/SUM(INDEX(Pupils!$AB$7:$AM$159,MATCH($B115,Pupils!$A$7:$A$159,0),0))","v":4.3150684931506852E-2},{"$f":"SUM(INDEX(Pupils!$AM$7:$AM$159,MATCH($B115,Pupils!$A$7:$A$159,0)))/SUM(INDEX(Pupils!$AB$7:$AM$159,MATCH($B115,Pupils!$A$7:$A$159,0),0))","v":2.7853881278538814E-2},{"$f":"(SUM(INDEX(Pupils!$BH$7:$BH$159,MATCH($B115,Pupils!$A$7:$A$159,0)),INDEX(Pupils!$BK$7:$BK$159,MATCH($B115,Pupils!$A$7:$A$159,0)),INDEX(Pupils!$BO$7:$BO$159,MATCH($B115,Pupils!$A$7:$A$159,0))))/SUM(INDEX(Pupils!$BH$7:$BS$159,MATCH($B115,Pupils!$A$7:$A$159,0),0))","v":0.53266717909300543},{"$f":"(SUM(INDEX(Pupils!$BL$7:$BL$159,MATCH($B115,Pupils!$A$7:$A$159,0)),INDEX(Pupils!$BM$7:$BM$159,MATCH($B115,Pupils!$A$7:$A$159,0)),INDEX(Pupils!$BP$7:$BP$159,MATCH($B115,Pupils!$A$7:$A$159,0))))/SUM(INDEX(Pupils!$BH$7:$BS$159,MATCH($B115,Pupils!$A$7:$A$159,0),0))","v":0.41660261337432741},{"$f":"(SUM(INDEX(Pupils!$BI$7:$BI$159,MATCH($B115,Pupils!$A$7:$A$159,0)),INDEX(Pupils!$BJ$7:$BJ$159,MATCH($B115,Pupils!$A$7:$A$159,0))))/SUM(INDEX(Pupils!$BH$7:$BS$159,MATCH($B115,Pupils!$A$7:$A$159,0),0))","v":4.3812451960030745E-2},{"$f":"(SUM(INDEX(Pupils!$BQ$7:$BQ$159,MATCH($B115,Pupils!$A$7:$A$159,0)),INDEX(Pupils!$BR$7:$BR$159,MATCH($B115,Pupils!$A$7:$A$159,0)),INDEX(Pupils!$BN$7:$BN$159,MATCH($B115,Pupils!$A$7:$A$159,0)),INDEX(Pupils!$BS$7:$BS$159,MATCH($B115,Pupils!$A$7:$A$159,0))))/SUM(INDEX(Pupils!$BH$7:$BS$159,MATCH($B115,Pupils!$A$7:$A$159,0),0))","v":6.9177555726364333E-3},{"$f":"IFERROR((VLOOKUP(B115,Funding,Funding!$C$2,FALSE)), \"x\")","v":33085138.549999997},{"$f":"IFERROR((AA115/VLOOKUP(B115,Funding,Funding!$D$2,FALSE)), \"x\")","v":0.13476503154642105},{"$f":"IFERROR((AA115/(VLOOKUP(B115,Pupils,Pupils!$M$3,FALSE)+VLOOKUP(B115,Pupils,Pupils!$P$3,FALSE))), \"x\")","v":3062.021152244331},{"$f":"IFERROR((VLOOKUP(B115,Funding,Funding!$E$2,FALSE)), \"x\")","v":34930533.733210698},{"$f":"IFERROR((AD115/VLOOKUP(B115,Funding,Funding!$F$2,FALSE)), \"x\")","v":0.13646626977191106},{"$f":"IFERROR((AD115/(VLOOKUP(B115,Pupils,Pupils!$R$3,FALSE)+VLOOKUP(B115,Pupils,Pupils!$U$3,FALSE))), \"x\")","v":3486.0812108992714},{"$f":"IFERROR((VLOOKUP(B115,Funding,Funding!$G$2,FALSE)), \"x\")","v":36523297.682946965},{"$f":"IFERROR((AG115/VLOOKUP(B115,Funding,Funding!$H$2,FALSE)), \"x\")","v":0.13839968025997082},{"$f":"IFERROR((AG115/(VLOOKUP(B115,Pupils,Pupils!$W$3,FALSE)+VLOOKUP(B115,Pupils,Pupils!$Z$3,FALSE))), \"x\")","v":3627.6616689458647},{"$f":"IFERROR((VLOOKUP(B115,Funding,Funding!$I$2,FALSE)), \"x\")","v":36980633.325899564},{"$f":"IFERROR((AJ115/VLOOKUP(B115,Funding,Funding!$J$2,FALSE)), \"x\")","v":0.13299754841991535},null,{"$f":"IFERROR((VLOOKUP($B115,Funding,Funding!$EC$2,FALSE)), \"x\")","v":15820130.08},{"$f":"IFERROR((AM115/VLOOKUP($B115,Funding,Funding!$EU$2,FALSE)), \"x\")","v":7.1863879248398224E-2},{"$f":"IFERROR((AM115/(VLOOKUP($B115,Pupils,Pupils!$D$3,FALSE)+VLOOKUP($B115,Pupils,Pupils!$E$3,FALSE))), \"x\")","v":1430.3915081374321},{"$f":"IFERROR((VLOOKUP($B115,Funding,Funding!$DA$2,FALSE)), \"x\")","v":16644889.90443},{"$f":"IFERROR((AP115/VLOOKUP($B115,Funding,Funding!$DT$2,FALSE)), \"x\")","v":7.3712846810693233E-2},{"$f":"IFERROR((AP115/(VLOOKUP($B115,Pupils,Pupils!$G$3,FALSE)+VLOOKUP($B115,Pupils,Pupils!$H$3,FALSE))), \"x\")","v":1460.5905497042822},{"$f":"IFERROR((VLOOKUP($B115,Funding,Funding!$CE$2,FALSE)), \"x\")","v":16369260},{"$f":"IFERROR((AS115/VLOOKUP($B115,Funding,Funding!$CR$2,FALSE)), \"x\")","v":6.8340757477692554E-2},{"$f":"IFERROR((AS115/(VLOOKUP($B115,Pupils,Pupils!$J$3,FALSE)+VLOOKUP($B115,Pupils,Pupils!$K$3,FALSE))), \"x\")","v":1427.7592673353686},{"$f":"IFERROR((VLOOKUP($B115,Funding,Funding!$BM$2,FALSE)), \"x\")","v":20599575.550000001},{"$f":"IFERROR((AV115/VLOOKUP($B115,Funding,Funding!$BY$2,FALSE)), \"x\")","v":9.1789260093039851E-2},{"$f":"IFERROR((AV115/(VLOOKUP($B115,Pupils,Pupils!$M$3,FALSE)+VLOOKUP($B115,Pupils,Pupils!$P$3,FALSE))), \"x\")","v":1906.4854743174458},{"$f":"IFERROR((VLOOKUP($B115,Funding,Funding!$AQ$2,FALSE)), \"x\")","v":32142113.68},{"$f":"IFERROR((AY115/VLOOKUP($B115,Funding,Funding!$BE$2,FALSE)), \"x\")","v":0.12562093178694173},{"$f":"IFERROR((AY115/(VLOOKUP($B115,Pupils,Pupils!$R$3,FALSE)+VLOOKUP($B115,Pupils,Pupils!$U$3,FALSE))), \"x\")","v":3207.7957764471057},{"$f":"IFERROR((VLOOKUP($B115,Funding,Funding!$S$2,FALSE)), \"x\")","v":33675962},{"$f":"IFERROR((BB115/VLOOKUP($B115,Funding,Funding!$AH$2,FALSE)), \"x\")","v":0.12777369997075955},{"$f":"IFERROR((BB115/(VLOOKUP(B115,Pupils,Pupils!$W$3,FALSE)+VLOOKUP(B115,Pupils,Pupils!$Z$3,FALSE))), \"x\")","v":3344.8512117600317},{"$f":"IFERROR((VLOOKUP($B115,Funding,Funding!$GX$2,FALSE)), \"x\")","v":38124206},{"$f":"IFERROR((BE115/VLOOKUP($B115,Funding,Funding!$HC$2,FALSE)), \"x\")","v":0.1476469832221434},{"$f":"IFERROR((BE115/(VLOOKUP($B115,Pupils,Pupils!$D$3,FALSE)+VLOOKUP($B115,Pupils,Pupils!$E$3,FALSE))), \"x\")","v":3447.0349005424955},{"$f":"IFERROR((VLOOKUP($B115,Funding,Funding!$GP$2,FALSE)), \"x\")","v":41532567},{"$f":"IFERROR((BH115/VLOOKUP($B115,Funding,Funding!$GU$2,FALSE)), \"x\")","v":0.15728192713734337},{"$f":"IFERROR((BH115/(VLOOKUP($B115,Pupils,Pupils!$G$3,FALSE)+VLOOKUP($B115,Pupils,Pupils!$H$3,FALSE))), \"x\")","v":3644.4863987363988},{"$f":"IFERROR((VLOOKUP($B115,Funding,Funding!$GH$2,FALSE)), \"x\")","v":40662148.219999999},{"$f":"IFERROR((BK115/VLOOKUP($B115,Funding,Funding!$GM$2,FALSE)), \"x\")","v":0.15117410734477499},{"$f":"IFERROR((BK115/(VLOOKUP($B115,Pupils,Pupils!$J$3,FALSE)+VLOOKUP($B115,Pupils,Pupils!$K$3,FALSE))), \"x\")","v":3546.6330763192323},{"$f":"IFERROR((VLOOKUP($B115,Funding,Funding!$FZ$2,FALSE)), \"x\")","v":39960046.229999997},{"$f":"IFERROR((BN115/VLOOKUP($B115,Funding,Funding!$GE$2,FALSE)), \"x\")","v":0.15884272195777643},{"$f":"IFERROR((BN115/(VLOOKUP($B115,Pupils,Pupils!$M$3,FALSE)+VLOOKUP($B115,Pupils,Pupils!$P$3,FALSE))), \"x\")","v":3698.2921082832017},{"$f":"IFERROR((VLOOKUP($B115,Funding,Funding!$FD$2,FALSE)), \"x\")","v":32983499},{"$f":"IFERROR((BQ115/VLOOKUP($B115,Funding,Funding!$FR$2,FALSE)), \"x\")","v":0.16091485072852349},{"$f":"IFERROR((BQ115/(VLOOKUP($B115,Pupils,Pupils!$R$3,FALSE)+VLOOKUP($B115,Pupils,Pupils!$U$3,FALSE))), \"x\")","v":3291.7663672654689},{"$f":"(VLOOKUP(B115,Funding,Funding!$HK$2,FALSE)+VLOOKUP(B115,Funding,Funding!$HL$2,FALSE)+VLOOKUP(B115,Funding,Funding!$HM$2,FALSE))/(VLOOKUP(B115,Funding,Funding!$HN$2,FALSE))","v":0.15929203539823009},{"$f":"IFERROR((VLOOKUP(B115,Other_data,Other!$D$3,FALSE)+VLOOKUP(B115,Other_data,Other!$E$3,FALSE)+VLOOKUP(B115,Other_data,Other!$F$3,FALSE)), \"x\")","v":1970},{"$f":"(VLOOKUP(B115,Other_data,Other!$AK$3,FALSE)+VLOOKUP(B115,Other_data,Other!$AL$3,FALSE))/VLOOKUP(B115,Other_data,Other!$AJ$3,FALSE)","v":3.9653166966268374E-2},{"$f":"(VLOOKUP(B115,Other_data,Other!$AR$3,FALSE)+VLOOKUP(B115,Other_data,Other!$AS$3,FALSE))/VLOOKUP(B115,Other_data,Other!$AQ$3,FALSE)","v":5.5113620937746043E-2},{"$f":"VLOOKUP(B115,Other_data,Other!$AP$3,FALSE)/VLOOKUP(B115,Other_data,Other!$AJ$3,FALSE)","v":8.2025408238795144E-3},{"$f":"VLOOKUP(B115,Other_data,Other!$AW$3,FALSE)/VLOOKUP(B115,Other_data,Other!$AQ$3,FALSE)","v":1.3574783482203459E-2}]
[110,343,"Sefton",{"$f":"IFERROR((VLOOKUP($B116,Pupils,Pupils!$D$3,FALSE)/VLOOKUP($B116,Pupils,Pupils!$C$3,FALSE)), \"x\")","v":2.1959158195113251E-2},{"$f":"IFERROR((VLOOKUP($B116,Pupils,Pupils!$G$3,FALSE)/VLOOKUP($B116,Pupils,Pupils!$F$3,FALSE)),\"x\")","v":2.1395662433981347E-2},{"$f":"IFERROR((VLOOKUP($B116,Pupils,Pupils!$J$3,FALSE)/VLOOKUP($B116,Pupils,Pupils!$I$3,FALSE)), \"x\")","v":2.2105359012885305E-2},{"$f":"IFERROR((VLOOKUP($B116,Pupils,Pupils!$M$3,FALSE)/VLOOKUP($B116,Pupils,Pupils!$L$3,FALSE)), \"x\")","v":2.2183478240921289E-2},{"$f":"IFERROR((VLOOKUP($B116,Pupils,Pupils!$R$3,FALSE)/VLOOKUP($B116,Pupils,Pupils!$Q$3,FALSE)), \"x\")","v":2.3911639918834163E-2},{"$f":"IFERROR((VLOOKUP($B116,Pupils,Pupils!$W$3,FALSE)/VLOOKUP($B116,Pupils,Pupils!$V$3,FALSE)), \"x\")","v":2.3860919620267856E-2},{"$f":"IFERROR(((VLOOKUP($B116,Pupils,Pupils!$D$3,FALSE)+VLOOKUP($B116,Pupils,Pupils!$E$3,FALSE))/VLOOKUP($B116,Pupils,Pupils!$C$3,FALSE)), \"x\")","v":0.19257178526841448},{"$f":"IFERROR(((VLOOKUP($B116,Pupils,Pupils!$G$3,FALSE)+VLOOKUP($B116,Pupils,Pupils!$H$3,FALSE))/VLOOKUP($B116,Pupils,Pupils!$F$3,FALSE)), \"x\")","v":0.20004494887065963},{"$f":"IFERROR(((VLOOKUP($B116,Pupils,Pupils!$J$3,FALSE)+VLOOKUP($B116,Pupils,Pupils!$K$3,FALSE))/VLOOKUP($B116,Pupils,Pupils!$I$3,FALSE)), \"x\")","v":0.19548786595638118},{"$f":"IFERROR(((VLOOKUP($B116,Pupils,Pupils!$M$3,FALSE)+VLOOKUP($B116,Pupils,Pupils!$P$3,FALSE))/VLOOKUP($B116,Pupils,Pupils!$L$3,FALSE)), \"x\")","v":0.19359500814388292},{"$f":"IFERROR(((VLOOKUP($B116,Pupils,Pupils!$R$3,FALSE)+VLOOKUP($B116,Pupils,Pupils!$U$3,FALSE))/VLOOKUP($B116,Pupils,Pupils!$Q$3,FALSE)), \"x\")","v":0.18868751152923816},{"$f":"IFERROR(((VLOOKUP($B116,Pupils,Pupils!$W$3,FALSE)+VLOOKUP($B116,Pupils,Pupils!$Z$3,FALSE))/VLOOKUP($B116,Pupils,Pupils!$V$3,FALSE)), \"x\")","v":0.18004781468328576},{"$f":"(SUM(INDEX(Pupils!$AB$7:$AB$159,MATCH($B116,Pupils!$A$7:$A$159,0)),INDEX(Pupils!$AC$7:$AC$159,MATCH($B116,Pupils!$A$7:$A$159,0)),INDEX(Pupils!$AD$7:$AD$159,MATCH($B116,Pupils!$A$7:$A$159,0)),INDEX(Pupils!$AE$7:$AE$159,MATCH($B116,Pupils!$A$7:$A$159,0))))/SUM(INDEX(Pupils!$AB$7:$AM$159,MATCH($B116,Pupils!$A$7:$A$159,0),0))","v":0.37667946257197699},{"$f":"SUM(INDEX(Pupils!$AF$7:$AF$159,MATCH($B116,Pupils!$A$7:$A$159,0)))/SUM(INDEX(Pupils!$AB$7:$AM$159,MATCH($B116,Pupils!$A$7:$A$159,0),0))","v":0.17226487523992323},{"$f":"SUM(INDEX(Pupils!$AG$7:$AG$159,MATCH($B116,Pupils!$A$7:$A$159,0)))/SUM(INDEX(Pupils!$AB$7:$AM$159,MATCH($B116,Pupils!$A$7:$A$159,0),0))","v":0.16218809980806143},{"$f":"(SUM(INDEX(Pupils!$AH$7:$AH$159,MATCH($B116,Pupils!$A$7:$A$159,0)),INDEX(Pupils!$AI$7:$AI$159,MATCH($B116,Pupils!$A$7:$A$159,0)),INDEX(Pupils!$AJ$7:$AJ$159,MATCH($B116,Pupils!$A$7:$A$159,0))))/SUM(INDEX(Pupils!$AB$7:$AM$159,MATCH($B116,Pupils!$A$7:$A$159,0),0))","v":2.663147792706334E-2},{"$f":"SUM(INDEX(Pupils!$AK$7:$AK$159,MATCH($B116,Pupils!$A$7:$A$159,0)))/SUM(INDEX(Pupils!$AB$7:$AM$159,MATCH($B116,Pupils!$A$7:$A$159,0),0))","v":4.3666026871401149E-2},{"$f":"SUM(INDEX(Pupils!$AL$7:$AL$159,MATCH($B116,Pupils!$A$7:$A$159,0)))/SUM(INDEX(Pupils!$AB$7:$AM$159,MATCH($B116,Pupils!$A$7:$A$159,0),0))","v":0.1312380038387716},{"$f":"SUM(INDEX(Pupils!$AM$7:$AM$159,MATCH($B116,Pupils!$A$7:$A$159,0)))/SUM(INDEX(Pupils!$AB$7:$AM$159,MATCH($B116,Pupils!$A$7:$A$159,0),0))","v":8.7332053742802299E-2},{"$f":"(SUM(INDEX(Pupils!$BH$7:$BH$159,MATCH($B116,Pupils!$A$7:$A$159,0)),INDEX(Pupils!$BK$7:$BK$159,MATCH($B116,Pupils!$A$7:$A$159,0)),INDEX(Pupils!$BO$7:$BO$159,MATCH($B116,Pupils!$A$7:$A$159,0))))/SUM(INDEX(Pupils!$BH$7:$BS$159,MATCH($B116,Pupils!$A$7:$A$159,0),0))","v":0.24195223260643822},{"$f":"(SUM(INDEX(Pupils!$BL$7:$BL$159,MATCH($B116,Pupils!$A$7:$A$159,0)),INDEX(Pupils!$BM$7:$BM$159,MATCH($B116,Pupils!$A$7:$A$159,0)),INDEX(Pupils!$BP$7:$BP$159,MATCH($B116,Pupils!$A$7:$A$159,0))))/SUM(INDEX(Pupils!$BH$7:$BS$159,MATCH($B116,Pupils!$A$7:$A$159,0),0))","v":0.55763239875389403},{"$f":"(SUM(INDEX(Pupils!$BI$7:$BI$159,MATCH($B116,Pupils!$A$7:$A$159,0)),INDEX(Pupils!$BJ$7:$BJ$159,MATCH($B116,Pupils!$A$7:$A$159,0))))/SUM(INDEX(Pupils!$BH$7:$BS$159,MATCH($B116,Pupils!$A$7:$A$159,0),0))","v":0.19106957424714435},{"$f":"(SUM(INDEX(Pupils!$BQ$7:$BQ$159,MATCH($B116,Pupils!$A$7:$A$159,0)),INDEX(Pupils!$BR$7:$BR$159,MATCH($B116,Pupils!$A$7:$A$159,0)),INDEX(Pupils!$BN$7:$BN$159,MATCH($B116,Pupils!$A$7:$A$159,0)),INDEX(Pupils!$BS$7:$BS$159,MATCH($B116,Pupils!$A$7:$A$159,0))))/SUM(INDEX(Pupils!$BH$7:$BS$159,MATCH($B116,Pupils!$A$7:$A$159,0),0))","v":9.3457943925233638E-3},{"$f":"IFERROR((VLOOKUP(B116,Funding,Funding!$C$2,FALSE)), \"x\")","v":23897188},{"$f":"IFERROR((AA116/VLOOKUP(B116,Funding,Funding!$D$2,FALSE)), \"x\")","v":0.12519951651507236},{"$f":"IFERROR((AA116/(VLOOKUP(B116,Pupils,Pupils!$M$3,FALSE)+VLOOKUP(B116,Pupils,Pupils!$P$3,FALSE))), \"x\")","v":2831.7558952482523},{"$f":"IFERROR((VLOOKUP(B116,Funding,Funding!$E$2,FALSE)), \"x\")","v":25084077.25908418},{"$f":"IFERROR((AD116/VLOOKUP(B116,Funding,Funding!$F$2,FALSE)), \"x\")","v":0.13048914523080729},{"$f":"IFERROR((AD116/(VLOOKUP(B116,Pupils,Pupils!$R$3,FALSE)+VLOOKUP(B116,Pupils,Pupils!$U$3,FALSE))), \"x\")","v":3065.3888866044458},{"$f":"IFERROR((VLOOKUP(B116,Funding,Funding!$G$2,FALSE)), \"x\")","v":26660897.773007065},{"$f":"IFERROR((AG116/VLOOKUP(B116,Funding,Funding!$H$2,FALSE)), \"x\")","v":0.13772350274281597},{"$f":"IFERROR((AG116/(VLOOKUP(B116,Pupils,Pupils!$W$3,FALSE)+VLOOKUP(B116,Pupils,Pupils!$Z$3,FALSE))), \"x\")","v":3437.0114442448194},{"$f":"IFERROR((VLOOKUP(B116,Funding,Funding!$I$2,FALSE)), \"x\")","v":26945295.224330384},{"$f":"IFERROR((AJ116/VLOOKUP(B116,Funding,Funding!$J$2,FALSE)), \"x\")","v":0.1408734908969399},null,{"$f":"IFERROR((VLOOKUP($B116,Funding,Funding!$EC$2,FALSE)), \"x\")","v":13358865},{"$f":"IFERROR((AM116/VLOOKUP($B116,Funding,Funding!$EU$2,FALSE)), \"x\")","v":6.6687799676024215E-2},{"$f":"IFERROR((AM116/(VLOOKUP($B116,Pupils,Pupils!$D$3,FALSE)+VLOOKUP($B116,Pupils,Pupils!$E$3,FALSE))), \"x\")","v":1546.5229219726789},{"$f":"IFERROR((VLOOKUP($B116,Funding,Funding!$DA$2,FALSE)), \"x\")","v":13604200.630929999},{"$f":"IFERROR((AP116/VLOOKUP($B116,Funding,Funding!$DT$2,FALSE)), \"x\")","v":6.6343215300707387E-2},{"$f":"IFERROR((AP116/(VLOOKUP($B116,Pupils,Pupils!$G$3,FALSE)+VLOOKUP($B116,Pupils,Pupils!$H$3,FALSE))), \"x\")","v":1528.3901394146724},{"$f":"IFERROR((VLOOKUP($B116,Funding,Funding!$CE$2,FALSE)), \"x\")","v":11174028.673379999},{"$f":"IFERROR((AS116/VLOOKUP($B116,Funding,Funding!$CR$2,FALSE)), \"x\")","v":7.6785590184481167E-2},{"$f":"IFERROR((AS116/(VLOOKUP($B116,Pupils,Pupils!$J$3,FALSE)+VLOOKUP($B116,Pupils,Pupils!$K$3,FALSE))), \"x\")","v":1301.272699822988},{"$f":"IFERROR((VLOOKUP($B116,Funding,Funding!$BM$2,FALSE)), \"x\")","v":15543172.09},{"$f":"IFERROR((AV116/VLOOKUP($B116,Funding,Funding!$BY$2,FALSE)), \"x\")","v":8.9257574343370671E-2},{"$f":"IFERROR((AV116/(VLOOKUP($B116,Pupils,Pupils!$M$3,FALSE)+VLOOKUP($B116,Pupils,Pupils!$P$3,FALSE))), \"x\")","v":1841.8262933996918},{"$f":"IFERROR((VLOOKUP($B116,Funding,Funding!$AQ$2,FALSE)), \"x\")","v":22993633},{"$f":"IFERROR((AY116/VLOOKUP($B116,Funding,Funding!$BE$2,FALSE)), \"x\")","v":0.11958680098464457},{"$f":"IFERROR((AY116/(VLOOKUP($B116,Pupils,Pupils!$R$3,FALSE)+VLOOKUP($B116,Pupils,Pupils!$U$3,FALSE))), \"x\")","v":2809.9270438714407},{"$f":"IFERROR((VLOOKUP($B116,Funding,Funding!$S$2,FALSE)), \"x\")","v":21623370},{"$f":"IFERROR((BB116/VLOOKUP($B116,Funding,Funding!$AH$2,FALSE)), \"x\")","v":0.11206821151855545},{"$f":"IFERROR((BB116/(VLOOKUP(B116,Pupils,Pupils!$W$3,FALSE)+VLOOKUP(B116,Pupils,Pupils!$Z$3,FALSE))), \"x\")","v":2787.5944308366638},{"$f":"IFERROR((VLOOKUP($B116,Funding,Funding!$GX$2,FALSE)), \"x\")","v":31843010},{"$f":"IFERROR((BE116/VLOOKUP($B116,Funding,Funding!$HC$2,FALSE)), \"x\")","v":0.14065577334587862},{"$f":"IFERROR((BE116/(VLOOKUP($B116,Pupils,Pupils!$D$3,FALSE)+VLOOKUP($B116,Pupils,Pupils!$E$3,FALSE))), \"x\")","v":3686.3868951146101},{"$f":"IFERROR((VLOOKUP($B116,Funding,Funding!$GP$2,FALSE)), \"x\")","v":32735433.830000002},{"$f":"IFERROR((BH116/VLOOKUP($B116,Funding,Funding!$GU$2,FALSE)), \"x\")","v":0.14170749515083422},{"$f":"IFERROR((BH116/(VLOOKUP($B116,Pupils,Pupils!$G$3,FALSE)+VLOOKUP($B116,Pupils,Pupils!$H$3,FALSE))), \"x\")","v":3677.7254050106731},{"$f":"IFERROR((VLOOKUP($B116,Funding,Funding!$GH$2,FALSE)), \"x\")","v":30858286.969999999},{"$f":"IFERROR((BK116/VLOOKUP($B116,Funding,Funding!$GM$2,FALSE)), \"x\")","v":0.14644651016669011},{"$f":"IFERROR((BK116/(VLOOKUP($B116,Pupils,Pupils!$J$3,FALSE)+VLOOKUP($B116,Pupils,Pupils!$K$3,FALSE))), \"x\")","v":3593.6050972400139},{"$f":"IFERROR((VLOOKUP($B116,Funding,Funding!$FZ$2,FALSE)), \"x\")","v":31251682.450000003},{"$f":"IFERROR((BN116/VLOOKUP($B116,Funding,Funding!$GE$2,FALSE)), \"x\")","v":0.16385397902196741},{"$f":"IFERROR((BN116/(VLOOKUP($B116,Pupils,Pupils!$M$3,FALSE)+VLOOKUP($B116,Pupils,Pupils!$P$3,FALSE))), \"x\")","v":3703.2447505628634},{"$f":"IFERROR((VLOOKUP($B116,Funding,Funding!$FD$2,FALSE)), \"x\")","v":35867704},{"$f":"IFERROR((BQ116/VLOOKUP($B116,Funding,Funding!$FR$2,FALSE)), \"x\")","v":0.20473112487655984},{"$f":"IFERROR((BQ116/(VLOOKUP($B116,Pupils,Pupils!$R$3,FALSE)+VLOOKUP($B116,Pupils,Pupils!$U$3,FALSE))), \"x\")","v":4383.1973603812785},{"$f":"(VLOOKUP(B116,Funding,Funding!$HK$2,FALSE)+VLOOKUP(B116,Funding,Funding!$HL$2,FALSE)+VLOOKUP(B116,Funding,Funding!$HM$2,FALSE))/(VLOOKUP(B116,Funding,Funding!$HN$2,FALSE))","v":0.18367346938775511},{"$f":"IFERROR((VLOOKUP(B116,Other_data,Other!$D$3,FALSE)+VLOOKUP(B116,Other_data,Other!$E$3,FALSE)+VLOOKUP(B116,Other_data,Other!$F$3,FALSE)), \"x\")","v":1790},{"$f":"(VLOOKUP(B116,Other_data,Other!$AK$3,FALSE)+VLOOKUP(B116,Other_data,Other!$AL$3,FALSE))/VLOOKUP(B116,Other_data,Other!$AJ$3,FALSE)","v":4.227645715252517E-2},{"$f":"(VLOOKUP(B116,Other_data,Other!$AR$3,FALSE)+VLOOKUP(B116,Other_data,Other!$AS$3,FALSE))/VLOOKUP(B116,Other_data,Other!$AQ$3,FALSE)","v":5.8005439085682814E-2},{"$f":"VLOOKUP(B116,Other_data,Other!$AP$3,FALSE)/VLOOKUP(B116,Other_data,Other!$AJ$3,FALSE)","v":6.767616952880467E-3},{"$f":"VLOOKUP(B116,Other_data,Other!$AW$3,FALSE)/VLOOKUP(B116,Other_data,Other!$AQ$3,FALSE)","v":1.2255155082791146E-2}]
[111,373,"Sheffield",{"$f":"IFERROR((VLOOKUP($B117,Pupils,Pupils!$D$3,FALSE)/VLOOKUP($B117,Pupils,Pupils!$C$3,FALSE)), \"x\")","v":2.6874115983026876E-2},{"$f":"IFERROR((VLOOKUP($B117,Pupils,Pupils!$G$3,FALSE)/VLOOKUP($B117,Pupils,Pupils!$F$3,FALSE)),\"x\")","v":2.6463993325337644E-2},{"$f":"IFERROR((VLOOKUP($B117,Pupils,Pupils!$J$3,FALSE)/VLOOKUP($B117,Pupils,Pupils!$I$3,FALSE)), \"x\")","v":2.6164687459219627E-2},{"$f":"IFERROR((VLOOKUP($B117,Pupils,Pupils!$M$3,FALSE)/VLOOKUP($B117,Pupils,Pupils!$L$3,FALSE)), \"x\")","v":2.5683534302995765E-2},{"$f":"IFERROR((VLOOKUP($B117,Pupils,Pupils!$R$3,FALSE)/VLOOKUP($B117,Pupils,Pupils!$Q$3,FALSE)), \"x\")","v":2.5126014852437571E-2},{"$f":"IFERROR((VLOOKUP($B117,Pupils,Pupils!$W$3,FALSE)/VLOOKUP($B117,Pupils,Pupils!$V$3,FALSE)), \"x\")","v":2.4572973519304629E-2},{"$f":"IFERROR(((VLOOKUP($B117,Pupils,Pupils!$D$3,FALSE)+VLOOKUP($B117,Pupils,Pupils!$E$3,FALSE))/VLOOKUP($B117,Pupils,Pupils!$C$3,FALSE)), \"x\")","v":0.24771939841428442},{"$f":"IFERROR(((VLOOKUP($B117,Pupils,Pupils!$G$3,FALSE)+VLOOKUP($B117,Pupils,Pupils!$H$3,FALSE))/VLOOKUP($B117,Pupils,Pupils!$F$3,FALSE)), \"x\")","v":0.25404129947332743},{"$f":"IFERROR(((VLOOKUP($B117,Pupils,Pupils!$J$3,FALSE)+VLOOKUP($B117,Pupils,Pupils!$K$3,FALSE))/VLOOKUP($B117,Pupils,Pupils!$I$3,FALSE)), \"x\")","v":0.24361216233850971},{"$f":"IFERROR(((VLOOKUP($B117,Pupils,Pupils!$M$3,FALSE)+VLOOKUP($B117,Pupils,Pupils!$P$3,FALSE))/VLOOKUP($B117,Pupils,Pupils!$L$3,FALSE)), \"x\")","v":0.23479128080923209},{"$f":"IFERROR(((VLOOKUP($B117,Pupils,Pupils!$R$3,FALSE)+VLOOKUP($B117,Pupils,Pupils!$U$3,FALSE))/VLOOKUP($B117,Pupils,Pupils!$Q$3,FALSE)), \"x\")","v":0.22114484333115292},{"$f":"IFERROR(((VLOOKUP($B117,Pupils,Pupils!$W$3,FALSE)+VLOOKUP($B117,Pupils,Pupils!$Z$3,FALSE))/VLOOKUP($B117,Pupils,Pupils!$V$3,FALSE)), \"x\")","v":0.21195926824337982},{"$f":"(SUM(INDEX(Pupils!$AB$7:$AB$159,MATCH($B117,Pupils!$A$7:$A$159,0)),INDEX(Pupils!$AC$7:$AC$159,MATCH($B117,Pupils!$A$7:$A$159,0)),INDEX(Pupils!$AD$7:$AD$159,MATCH($B117,Pupils!$A$7:$A$159,0)),INDEX(Pupils!$AE$7:$AE$159,MATCH($B117,Pupils!$A$7:$A$159,0))))/SUM(INDEX(Pupils!$AB$7:$AM$159,MATCH($B117,Pupils!$A$7:$A$159,0),0))","v":0.32970201858378723},{"$f":"SUM(INDEX(Pupils!$AF$7:$AF$159,MATCH($B117,Pupils!$A$7:$A$159,0)))/SUM(INDEX(Pupils!$AB$7:$AM$159,MATCH($B117,Pupils!$A$7:$A$159,0),0))","v":0.16170030972978747},{"$f":"SUM(INDEX(Pupils!$AG$7:$AG$159,MATCH($B117,Pupils!$A$7:$A$159,0)))/SUM(INDEX(Pupils!$AB$7:$AM$159,MATCH($B117,Pupils!$A$7:$A$159,0),0))","v":0.27469828046566269},{"$f":"(SUM(INDEX(Pupils!$AH$7:$AH$159,MATCH($B117,Pupils!$A$7:$A$159,0)),INDEX(Pupils!$AI$7:$AI$159,MATCH($B117,Pupils!$A$7:$A$159,0)),INDEX(Pupils!$AJ$7:$AJ$159,MATCH($B117,Pupils!$A$7:$A$159,0))))/SUM(INDEX(Pupils!$AB$7:$AM$159,MATCH($B117,Pupils!$A$7:$A$159,0),0))","v":4.8915945743885504E-2},{"$f":"SUM(INDEX(Pupils!$AK$7:$AK$159,MATCH($B117,Pupils!$A$7:$A$159,0)))/SUM(INDEX(Pupils!$AB$7:$AM$159,MATCH($B117,Pupils!$A$7:$A$159,0),0))","v":2.5739613371782547E-2},{"$f":"SUM(INDEX(Pupils!$AL$7:$AL$159,MATCH($B117,Pupils!$A$7:$A$159,0)))/SUM(INDEX(Pupils!$AB$7:$AM$159,MATCH($B117,Pupils!$A$7:$A$159,0),0))","v":0.12827085335896615},{"$f":"SUM(INDEX(Pupils!$AM$7:$AM$159,MATCH($B117,Pupils!$A$7:$A$159,0)))/SUM(INDEX(Pupils!$AB$7:$AM$159,MATCH($B117,Pupils!$A$7:$A$159,0),0))","v":3.0972978746128376E-2},{"$f":"(SUM(INDEX(Pupils!$BH$7:$BH$159,MATCH($B117,Pupils!$A$7:$A$159,0)),INDEX(Pupils!$BK$7:$BK$159,MATCH($B117,Pupils!$A$7:$A$159,0)),INDEX(Pupils!$BO$7:$BO$159,MATCH($B117,Pupils!$A$7:$A$159,0))))/SUM(INDEX(Pupils!$BH$7:$BS$159,MATCH($B117,Pupils!$A$7:$A$159,0),0))","v":0.38480038480038481},{"$f":"(SUM(INDEX(Pupils!$BL$7:$BL$159,MATCH($B117,Pupils!$A$7:$A$159,0)),INDEX(Pupils!$BM$7:$BM$159,MATCH($B117,Pupils!$A$7:$A$159,0)),INDEX(Pupils!$BP$7:$BP$159,MATCH($B117,Pupils!$A$7:$A$159,0))))/SUM(INDEX(Pupils!$BH$7:$BS$159,MATCH($B117,Pupils!$A$7:$A$159,0),0))","v":0.48051948051948051},{"$f":"(SUM(INDEX(Pupils!$BI$7:$BI$159,MATCH($B117,Pupils!$A$7:$A$159,0)),INDEX(Pupils!$BJ$7:$BJ$159,MATCH($B117,Pupils!$A$7:$A$159,0))))/SUM(INDEX(Pupils!$BH$7:$BS$159,MATCH($B117,Pupils!$A$7:$A$159,0),0))","v":0.12794612794612795},{"$f":"(SUM(INDEX(Pupils!$BQ$7:$BQ$159,MATCH($B117,Pupils!$A$7:$A$159,0)),INDEX(Pupils!$BR$7:$BR$159,MATCH($B117,Pupils!$A$7:$A$159,0)),INDEX(Pupils!$BN$7:$BN$159,MATCH($B117,Pupils!$A$7:$A$159,0)),INDEX(Pupils!$BS$7:$BS$159,MATCH($B117,Pupils!$A$7:$A$159,0))))/SUM(INDEX(Pupils!$BH$7:$BS$159,MATCH($B117,Pupils!$A$7:$A$159,0),0))","v":6.7340067340067337E-3},{"$f":"IFERROR((VLOOKUP(B117,Funding,Funding!$C$2,FALSE)), \"x\")","v":47115258.427848302},{"$f":"IFERROR((AA117/VLOOKUP(B117,Funding,Funding!$D$2,FALSE)), \"x\")","v":0.13434014016348136},{"$f":"IFERROR((AA117/(VLOOKUP(B117,Pupils,Pupils!$M$3,FALSE)+VLOOKUP(B117,Pupils,Pupils!$P$3,FALSE))), \"x\")","v":2599.0323492855418},{"$f":"IFERROR((VLOOKUP(B117,Funding,Funding!$E$2,FALSE)), \"x\")","v":49588765.307295531},{"$f":"IFERROR((AD117/VLOOKUP(B117,Funding,Funding!$F$2,FALSE)), \"x\")","v":0.13637131177181933},{"$f":"IFERROR((AD117/(VLOOKUP(B117,Pupils,Pupils!$R$3,FALSE)+VLOOKUP(B117,Pupils,Pupils!$U$3,FALSE))), \"x\")","v":2876.0448502085333},{"$f":"IFERROR((VLOOKUP(B117,Funding,Funding!$G$2,FALSE)), \"x\")","v":51794405.005261227},{"$f":"IFERROR((AG117/VLOOKUP(B117,Funding,Funding!$H$2,FALSE)), \"x\")","v":0.13915892650189612},{"$f":"IFERROR((AG117/(VLOOKUP(B117,Pupils,Pupils!$W$3,FALSE)+VLOOKUP(B117,Pupils,Pupils!$Z$3,FALSE))), \"x\")","v":3087.226858512322},{"$f":"IFERROR((VLOOKUP(B117,Funding,Funding!$I$2,FALSE)), \"x\")","v":52484610.031051181},{"$f":"IFERROR((AJ117/VLOOKUP(B117,Funding,Funding!$J$2,FALSE)), \"x\")","v":0.13882540438089833},null,{"$f":"IFERROR((VLOOKUP($B117,Funding,Funding!$EC$2,FALSE)), \"x\")","v":31054165},{"$f":"IFERROR((AM117/VLOOKUP($B117,Funding,Funding!$EU$2,FALSE)), \"x\")","v":8.2001480898633641E-2},{"$f":"IFERROR((AM117/(VLOOKUP($B117,Pupils,Pupils!$D$3,FALSE)+VLOOKUP($B117,Pupils,Pupils!$E$3,FALSE))), \"x\")","v":1626.7242011524359},{"$f":"IFERROR((VLOOKUP($B117,Funding,Funding!$DA$2,FALSE)), \"x\")","v":32694575},{"$f":"IFERROR((AP117/VLOOKUP($B117,Funding,Funding!$DT$2,FALSE)), \"x\")","v":8.1294637524405147E-2},{"$f":"IFERROR((AP117/(VLOOKUP($B117,Pupils,Pupils!$G$3,FALSE)+VLOOKUP($B117,Pupils,Pupils!$H$3,FALSE))), \"x\")","v":1677.7633807153486},{"$f":"IFERROR((VLOOKUP($B117,Funding,Funding!$CE$2,FALSE)), \"x\")","v":33566708.047090001},{"$f":"IFERROR((AS117/VLOOKUP($B117,Funding,Funding!$CR$2,FALSE)), \"x\")","v":8.3512442374018392E-2},{"$f":"IFERROR((AS117/(VLOOKUP($B117,Pupils,Pupils!$J$3,FALSE)+VLOOKUP($B117,Pupils,Pupils!$K$3,FALSE))), \"x\")","v":1798.0880676607028},{"$f":"IFERROR((VLOOKUP($B117,Funding,Funding!$BM$2,FALSE)), \"x\")","v":36607821.170000002},{"$f":"IFERROR((AV117/VLOOKUP($B117,Funding,Funding!$BY$2,FALSE)), \"x\")","v":8.9644148528780151E-2},{"$f":"IFERROR((AV117/(VLOOKUP($B117,Pupils,Pupils!$M$3,FALSE)+VLOOKUP($B117,Pupils,Pupils!$P$3,FALSE))), \"x\")","v":2019.4076108781996},{"$f":"IFERROR((VLOOKUP($B117,Funding,Funding!$AQ$2,FALSE)), \"x\")","v":43027318},{"$f":"IFERROR((AY117/VLOOKUP($B117,Funding,Funding!$BE$2,FALSE)), \"x\")","v":0.1087559040342589},{"$f":"IFERROR((AY117/(VLOOKUP($B117,Pupils,Pupils!$R$3,FALSE)+VLOOKUP($B117,Pupils,Pupils!$U$3,FALSE))), \"x\")","v":2495.4946061941769},{"$f":"IFERROR((VLOOKUP($B117,Funding,Funding!$S$2,FALSE)), \"x\")","v":43629339},{"$f":"IFERROR((BB117/VLOOKUP($B117,Funding,Funding!$AH$2,FALSE)), \"x\")","v":0.10779259496148333},{"$f":"IFERROR((BB117/(VLOOKUP(B117,Pupils,Pupils!$W$3,FALSE)+VLOOKUP(B117,Pupils,Pupils!$Z$3,FALSE))), \"x\")","v":2600.5447338618346},{"$f":"IFERROR((VLOOKUP($B117,Funding,Funding!$GX$2,FALSE)), \"x\")","v":38838822},{"$f":"IFERROR((BE117/VLOOKUP($B117,Funding,Funding!$HC$2,FALSE)), \"x\")","v":8.5638005870830855E-2},{"$f":"IFERROR((BE117/(VLOOKUP($B117,Pupils,Pupils!$D$3,FALSE)+VLOOKUP($B117,Pupils,Pupils!$E$3,FALSE))), \"x\")","v":2034.5113672079624},{"$f":"IFERROR((VLOOKUP($B117,Funding,Funding!$GP$2,FALSE)), \"x\")","v":41968900},{"$f":"IFERROR((BH117/VLOOKUP($B117,Funding,Funding!$GU$2,FALSE)), \"x\")","v":8.7806836316501116E-2},{"$f":"IFERROR((BH117/(VLOOKUP($B117,Pupils,Pupils!$G$3,FALSE)+VLOOKUP($B117,Pupils,Pupils!$H$3,FALSE))), \"x\")","v":2153.6870734335712},{"$f":"IFERROR((VLOOKUP($B117,Funding,Funding!$GH$2,FALSE)), \"x\")","v":46482947.979999997},{"$f":"IFERROR((BK117/VLOOKUP($B117,Funding,Funding!$GM$2,FALSE)), \"x\")","v":9.9871115451839063E-2},{"$f":"IFERROR((BK117/(VLOOKUP($B117,Pupils,Pupils!$J$3,FALSE)+VLOOKUP($B117,Pupils,Pupils!$K$3,FALSE))), \"x\")","v":2489.980071780587},{"$f":"IFERROR((VLOOKUP($B117,Funding,Funding!$FZ$2,FALSE)), \"x\")","v":48807844.640000001},{"$f":"IFERROR((BN117/VLOOKUP($B117,Funding,Funding!$GE$2,FALSE)), \"x\")","v":0.11754228423174108},{"$f":"IFERROR((BN117/(VLOOKUP($B117,Pupils,Pupils!$M$3,FALSE)+VLOOKUP($B117,Pupils,Pupils!$P$3,FALSE))), \"x\")","v":2692.4009620476613},{"$f":"IFERROR((VLOOKUP($B117,Funding,Funding!$FD$2,FALSE)), \"x\")","v":45612287},{"$f":"IFERROR((BQ117/VLOOKUP($B117,Funding,Funding!$FR$2,FALSE)), \"x\")","v":0.14547707933923995},{"$f":"IFERROR((BQ117/(VLOOKUP($B117,Pupils,Pupils!$R$3,FALSE)+VLOOKUP($B117,Pupils,Pupils!$U$3,FALSE))), \"x\")","v":2645.4174109732048},{"$f":"(VLOOKUP(B117,Funding,Funding!$HK$2,FALSE)+VLOOKUP(B117,Funding,Funding!$HL$2,FALSE)+VLOOKUP(B117,Funding,Funding!$HM$2,FALSE))/(VLOOKUP(B117,Funding,Funding!$HN$2,FALSE))","v":0.21630434782608696},{"$f":"IFERROR((VLOOKUP(B117,Other_data,Other!$D$3,FALSE)+VLOOKUP(B117,Other_data,Other!$E$3,FALSE)+VLOOKUP(B117,Other_data,Other!$F$3,FALSE)), \"x\")","v":4180},{"$f":"(VLOOKUP(B117,Other_data,Other!$AK$3,FALSE)+VLOOKUP(B117,Other_data,Other!$AL$3,FALSE))/VLOOKUP(B117,Other_data,Other!$AJ$3,FALSE)","v":4.6415934480976424E-2},{"$f":"(VLOOKUP(B117,Other_data,Other!$AR$3,FALSE)+VLOOKUP(B117,Other_data,Other!$AS$3,FALSE))/VLOOKUP(B117,Other_data,Other!$AQ$3,FALSE)","v":4.6478822295366588E-2},{"$f":"VLOOKUP(B117,Other_data,Other!$AP$3,FALSE)/VLOOKUP(B117,Other_data,Other!$AJ$3,FALSE)","v":8.1799387746988427E-3},{"$f":"VLOOKUP(B117,Other_data,Other!$AW$3,FALSE)/VLOOKUP(B117,Other_data,Other!$AQ$3,FALSE)","v":1.0043283780036412E-2}]
[112,893,"Shropshire",{"$f":"IFERROR((VLOOKUP($B118,Pupils,Pupils!$D$3,FALSE)/VLOOKUP($B118,Pupils,Pupils!$C$3,FALSE)), \"x\")","v":3.351790496074071E-2},{"$f":"IFERROR((VLOOKUP($B118,Pupils,Pupils!$G$3,FALSE)/VLOOKUP($B118,Pupils,Pupils!$F$3,FALSE)),\"x\")","v":3.4507154757285982E-2},{"$f":"IFERROR((VLOOKUP($B118,Pupils,Pupils!$J$3,FALSE)/VLOOKUP($B118,Pupils,Pupils!$I$3,FALSE)), \"x\")","v":3.6120845644655168E-2},{"$f":"IFERROR((VLOOKUP($B118,Pupils,Pupils!$M$3,FALSE)/VLOOKUP($B118,Pupils,Pupils!$L$3,FALSE)), \"x\")","v":3.8090412914814728E-2},{"$f":"IFERROR((VLOOKUP($B118,Pupils,Pupils!$R$3,FALSE)/VLOOKUP($B118,Pupils,Pupils!$Q$3,FALSE)), \"x\")","v":3.9515218543351535E-2},{"$f":"IFERROR((VLOOKUP($B118,Pupils,Pupils!$W$3,FALSE)/VLOOKUP($B118,Pupils,Pupils!$V$3,FALSE)), \"x\")","v":4.1041831097079713E-2},{"$f":"IFERROR(((VLOOKUP($B118,Pupils,Pupils!$D$3,FALSE)+VLOOKUP($B118,Pupils,Pupils!$E$3,FALSE))/VLOOKUP($B118,Pupils,Pupils!$C$3,FALSE)), \"x\")","v":0.19357327644896291},{"$f":"IFERROR(((VLOOKUP($B118,Pupils,Pupils!$G$3,FALSE)+VLOOKUP($B118,Pupils,Pupils!$H$3,FALSE))/VLOOKUP($B118,Pupils,Pupils!$F$3,FALSE)), \"x\")","v":0.19855307300819316},{"$f":"IFERROR(((VLOOKUP($B118,Pupils,Pupils!$J$3,FALSE)+VLOOKUP($B118,Pupils,Pupils!$K$3,FALSE))/VLOOKUP($B118,Pupils,Pupils!$I$3,FALSE)), \"x\")","v":0.20163082067843974},{"$f":"IFERROR(((VLOOKUP($B118,Pupils,Pupils!$M$3,FALSE)+VLOOKUP($B118,Pupils,Pupils!$P$3,FALSE))/VLOOKUP($B118,Pupils,Pupils!$L$3,FALSE)), \"x\")","v":0.19869654330654263},{"$f":"IFERROR(((VLOOKUP($B118,Pupils,Pupils!$R$3,FALSE)+VLOOKUP($B118,Pupils,Pupils!$U$3,FALSE))/VLOOKUP($B118,Pupils,Pupils!$Q$3,FALSE)), \"x\")","v":0.20057141540517501},{"$f":"IFERROR(((VLOOKUP($B118,Pupils,Pupils!$W$3,FALSE)+VLOOKUP($B118,Pupils,Pupils!$Z$3,FALSE))/VLOOKUP($B118,Pupils,Pupils!$V$3,FALSE)), \"x\")","v":0.19276660940619342},{"$f":"(SUM(INDEX(Pupils!$AB$7:$AB$159,MATCH($B118,Pupils!$A$7:$A$159,0)),INDEX(Pupils!$AC$7:$AC$159,MATCH($B118,Pupils!$A$7:$A$159,0)),INDEX(Pupils!$AD$7:$AD$159,MATCH($B118,Pupils!$A$7:$A$159,0)),INDEX(Pupils!$AE$7:$AE$159,MATCH($B118,Pupils!$A$7:$A$159,0))))/SUM(INDEX(Pupils!$AB$7:$AM$159,MATCH($B118,Pupils!$A$7:$A$159,0),0))","v":0.46789686552072801},{"$f":"SUM(INDEX(Pupils!$AF$7:$AF$159,MATCH($B118,Pupils!$A$7:$A$159,0)))/SUM(INDEX(Pupils!$AB$7:$AM$159,MATCH($B118,Pupils!$A$7:$A$159,0),0))","v":0.17012133468149646},{"$f":"SUM(INDEX(Pupils!$AG$7:$AG$159,MATCH($B118,Pupils!$A$7:$A$159,0)))/SUM(INDEX(Pupils!$AB$7:$AM$159,MATCH($B118,Pupils!$A$7:$A$159,0),0))","v":0.19539939332659251},{"$f":"(SUM(INDEX(Pupils!$AH$7:$AH$159,MATCH($B118,Pupils!$A$7:$A$159,0)),INDEX(Pupils!$AI$7:$AI$159,MATCH($B118,Pupils!$A$7:$A$159,0)),INDEX(Pupils!$AJ$7:$AJ$159,MATCH($B118,Pupils!$A$7:$A$159,0))))/SUM(INDEX(Pupils!$AB$7:$AM$159,MATCH($B118,Pupils!$A$7:$A$159,0),0))","v":3.2355915065722954E-2},{"$f":"SUM(INDEX(Pupils!$AK$7:$AK$159,MATCH($B118,Pupils!$A$7:$A$159,0)))/SUM(INDEX(Pupils!$AB$7:$AM$159,MATCH($B118,Pupils!$A$7:$A$159,0),0))","v":2.8058645096056625E-2},{"$f":"SUM(INDEX(Pupils!$AL$7:$AL$159,MATCH($B118,Pupils!$A$7:$A$159,0)))/SUM(INDEX(Pupils!$AB$7:$AM$159,MATCH($B118,Pupils!$A$7:$A$159,0),0))","v":7.8867542972699697E-2},{"$f":"SUM(INDEX(Pupils!$AM$7:$AM$159,MATCH($B118,Pupils!$A$7:$A$159,0)))/SUM(INDEX(Pupils!$AB$7:$AM$159,MATCH($B118,Pupils!$A$7:$A$159,0),0))","v":2.7300303336703743E-2},{"$f":"(SUM(INDEX(Pupils!$BH$7:$BH$159,MATCH($B118,Pupils!$A$7:$A$159,0)),INDEX(Pupils!$BK$7:$BK$159,MATCH($B118,Pupils!$A$7:$A$159,0)),INDEX(Pupils!$BO$7:$BO$159,MATCH($B118,Pupils!$A$7:$A$159,0))))/SUM(INDEX(Pupils!$BH$7:$BS$159,MATCH($B118,Pupils!$A$7:$A$159,0),0))","v":0.67865429234338748},{"$f":"(SUM(INDEX(Pupils!$BL$7:$BL$159,MATCH($B118,Pupils!$A$7:$A$159,0)),INDEX(Pupils!$BM$7:$BM$159,MATCH($B118,Pupils!$A$7:$A$159,0)),INDEX(Pupils!$BP$7:$BP$159,MATCH($B118,Pupils!$A$7:$A$159,0))))/SUM(INDEX(Pupils!$BH$7:$BS$159,MATCH($B118,Pupils!$A$7:$A$159,0),0))","v":0.30684454756380508},{"$f":"(SUM(INDEX(Pupils!$BI$7:$BI$159,MATCH($B118,Pupils!$A$7:$A$159,0)),INDEX(Pupils!$BJ$7:$BJ$159,MATCH($B118,Pupils!$A$7:$A$159,0))))/SUM(INDEX(Pupils!$BH$7:$BS$159,MATCH($B118,Pupils!$A$7:$A$159,0),0))","v":0},{"$f":"(SUM(INDEX(Pupils!$BQ$7:$BQ$159,MATCH($B118,Pupils!$A$7:$A$159,0)),INDEX(Pupils!$BR$7:$BR$159,MATCH($B118,Pupils!$A$7:$A$159,0)),INDEX(Pupils!$BN$7:$BN$159,MATCH($B118,Pupils!$A$7:$A$159,0)),INDEX(Pupils!$BS$7:$BS$159,MATCH($B118,Pupils!$A$7:$A$159,0))))/SUM(INDEX(Pupils!$BH$7:$BS$159,MATCH($B118,Pupils!$A$7:$A$159,0),0))","v":1.4501160092807424E-2},{"$f":"IFERROR((VLOOKUP(B118,Funding,Funding!$C$2,FALSE)), \"x\")","v":22382617},{"$f":"IFERROR((AA118/VLOOKUP(B118,Funding,Funding!$D$2,FALSE)), \"x\")","v":0.12756520234772006},{"$f":"IFERROR((AA118/(VLOOKUP(B118,Pupils,Pupils!$M$3,FALSE)+VLOOKUP(B118,Pupils,Pupils!$P$3,FALSE))), \"x\")","v":2594.1837042188226},{"$f":"IFERROR((VLOOKUP(B118,Funding,Funding!$E$2,FALSE)), \"x\")","v":23704959.246884864},{"$f":"IFERROR((AD118/VLOOKUP(B118,Funding,Funding!$F$2,FALSE)), \"x\")","v":0.1328914563136375},{"$f":"IFERROR((AD118/(VLOOKUP(B118,Pupils,Pupils!$R$3,FALSE)+VLOOKUP(B118,Pupils,Pupils!$U$3,FALSE))), \"x\")","v":2723.1429347369171},{"$f":"IFERROR((VLOOKUP(B118,Funding,Funding!$G$2,FALSE)), \"x\")","v":24891413.459427144},{"$f":"IFERROR((AG118/VLOOKUP(B118,Funding,Funding!$H$2,FALSE)), \"x\")","v":0.13989190708330415},{"$f":"IFERROR((AG118/(VLOOKUP(B118,Pupils,Pupils!$W$3,FALSE)+VLOOKUP(B118,Pupils,Pupils!$Z$3,FALSE))), \"x\")","v":2997.5208886593382},{"$f":"IFERROR((VLOOKUP(B118,Funding,Funding!$I$2,FALSE)), \"x\")","v":25566580.835161835},{"$f":"IFERROR((AJ118/VLOOKUP(B118,Funding,Funding!$J$2,FALSE)), \"x\")","v":0.13718405530572383},null,{"$f":"IFERROR((VLOOKUP($B118,Funding,Funding!$EC$2,FALSE)), \"x\")","v":12402393.529999999},{"$f":"IFERROR((AM118/VLOOKUP($B118,Funding,Funding!$EU$2,FALSE)), \"x\")","v":6.5906115538430246E-2},{"$f":"IFERROR((AM118/(VLOOKUP($B118,Pupils,Pupils!$D$3,FALSE)+VLOOKUP($B118,Pupils,Pupils!$E$3,FALSE))), \"x\")","v":1453.9734501758498},{"$f":"IFERROR((VLOOKUP($B118,Funding,Funding!$DA$2,FALSE)), \"x\")","v":13520682},{"$f":"IFERROR((AP118/VLOOKUP($B118,Funding,Funding!$DT$2,FALSE)), \"x\")","v":7.2307641000488754E-2},{"$f":"IFERROR((AP118/(VLOOKUP($B118,Pupils,Pupils!$G$3,FALSE)+VLOOKUP($B118,Pupils,Pupils!$H$3,FALSE))), \"x\")","v":1554.1013793103448},{"$f":"IFERROR((VLOOKUP($B118,Funding,Funding!$CE$2,FALSE)), \"x\")","v":15951287.440000001},{"$f":"IFERROR((AS118/VLOOKUP($B118,Funding,Funding!$CR$2,FALSE)), \"x\")","v":8.5807683629049836E-2},{"$f":"IFERROR((AS118/(VLOOKUP($B118,Pupils,Pupils!$J$3,FALSE)+VLOOKUP($B118,Pupils,Pupils!$K$3,FALSE))), \"x\")","v":1812.0285629898899},{"$f":"IFERROR((VLOOKUP($B118,Funding,Funding!$BM$2,FALSE)), \"x\")","v":16555789.34},{"$f":"IFERROR((AV118/VLOOKUP($B118,Funding,Funding!$BY$2,FALSE)), \"x\")","v":9.2671862103983357E-2},{"$f":"IFERROR((AV118/(VLOOKUP($B118,Pupils,Pupils!$M$3,FALSE)+VLOOKUP($B118,Pupils,Pupils!$P$3,FALSE))), \"x\")","v":1918.8443834028744},{"$f":"IFERROR((VLOOKUP($B118,Funding,Funding!$AQ$2,FALSE)), \"x\")","v":16881032},{"$f":"IFERROR((AY118/VLOOKUP($B118,Funding,Funding!$BE$2,FALSE)), \"x\")","v":8.8702574892514999E-2},{"$f":"IFERROR((AY118/(VLOOKUP($B118,Pupils,Pupils!$R$3,FALSE)+VLOOKUP($B118,Pupils,Pupils!$U$3,FALSE))), \"x\")","v":1939.2340034462952},{"$f":"IFERROR((VLOOKUP($B118,Funding,Funding!$S$2,FALSE)), \"x\")","v":21128688},{"$f":"IFERROR((BB118/VLOOKUP($B118,Funding,Funding!$AH$2,FALSE)), \"x\")","v":0.11568751319018102},{"$f":"IFERROR((BB118/(VLOOKUP(B118,Pupils,Pupils!$W$3,FALSE)+VLOOKUP(B118,Pupils,Pupils!$Z$3,FALSE))), \"x\")","v":2544.3988439306358},{"$f":"IFERROR((VLOOKUP($B118,Funding,Funding!$GX$2,FALSE)), \"x\")","v":20571638},{"$f":"IFERROR((BE118/VLOOKUP($B118,Funding,Funding!$HC$2,FALSE)), \"x\")","v":0.10433535839687433},{"$f":"IFERROR((BE118/(VLOOKUP($B118,Pupils,Pupils!$D$3,FALSE)+VLOOKUP($B118,Pupils,Pupils!$E$3,FALSE))), \"x\")","v":2411.6808909730362},{"$f":"IFERROR((VLOOKUP($B118,Funding,Funding!$GP$2,FALSE)), \"x\")","v":22406534},{"$f":"IFERROR((BH118/VLOOKUP($B118,Funding,Funding!$GU$2,FALSE)), \"x\")","v":0.10827515140389141},{"$f":"IFERROR((BH118/(VLOOKUP($B118,Pupils,Pupils!$G$3,FALSE)+VLOOKUP($B118,Pupils,Pupils!$H$3,FALSE))), \"x\")","v":2575.4636781609197},{"$f":"IFERROR((VLOOKUP($B118,Funding,Funding!$GH$2,FALSE)), \"x\")","v":28980421},{"$f":"IFERROR((BK118/VLOOKUP($B118,Funding,Funding!$GM$2,FALSE)), \"x\")","v":0.14303989648050019},{"$f":"IFERROR((BK118/(VLOOKUP($B118,Pupils,Pupils!$J$3,FALSE)+VLOOKUP($B118,Pupils,Pupils!$K$3,FALSE))), \"x\")","v":3292.107349767125},{"$f":"IFERROR((VLOOKUP($B118,Funding,Funding!$FZ$2,FALSE)), \"x\")","v":28766118.649999999},{"$f":"IFERROR((BN118/VLOOKUP($B118,Funding,Funding!$GE$2,FALSE)), \"x\")","v":0.14602986132234866},{"$f":"IFERROR((BN118/(VLOOKUP($B118,Pupils,Pupils!$M$3,FALSE)+VLOOKUP($B118,Pupils,Pupils!$P$3,FALSE))), \"x\")","v":3334.0424953639313},{"$f":"IFERROR((VLOOKUP($B118,Funding,Funding!$FD$2,FALSE)), \"x\")","v":16975497},{"$f":"IFERROR((BQ118/VLOOKUP($B118,Funding,Funding!$FR$2,FALSE)), \"x\")","v":0.10665222437827579},{"$f":"IFERROR((BQ118/(VLOOKUP($B118,Pupils,Pupils!$R$3,FALSE)+VLOOKUP($B118,Pupils,Pupils!$U$3,FALSE))), \"x\")","v":1950.0858127512925},{"$f":"(VLOOKUP(B118,Funding,Funding!$HK$2,FALSE)+VLOOKUP(B118,Funding,Funding!$HL$2,FALSE)+VLOOKUP(B118,Funding,Funding!$HM$2,FALSE))/(VLOOKUP(B118,Funding,Funding!$HN$2,FALSE))","v":0.29567642956764295},{"$f":"IFERROR((VLOOKUP(B118,Other_data,Other!$D$3,FALSE)+VLOOKUP(B118,Other_data,Other!$E$3,FALSE)+VLOOKUP(B118,Other_data,Other!$F$3,FALSE)), \"x\")","v":1400},{"$f":"(VLOOKUP(B118,Other_data,Other!$AK$3,FALSE)+VLOOKUP(B118,Other_data,Other!$AL$3,FALSE))/VLOOKUP(B118,Other_data,Other!$AJ$3,FALSE)","v":3.4815027244049328E-2},{"$f":"(VLOOKUP(B118,Other_data,Other!$AR$3,FALSE)+VLOOKUP(B118,Other_data,Other!$AS$3,FALSE))/VLOOKUP(B118,Other_data,Other!$AQ$3,FALSE)","v":4.941586748038361E-2},{"$f":"VLOOKUP(B118,Other_data,Other!$AP$3,FALSE)/VLOOKUP(B118,Other_data,Other!$AJ$3,FALSE)","v":5.0473186119873821E-3},{"$f":"VLOOKUP(B118,Other_data,Other!$AW$3,FALSE)/VLOOKUP(B118,Other_data,Other!$AQ$3,FALSE)","v":8.5440278988666088E-3}]
[113,871,"Slough",{"$f":"IFERROR((VLOOKUP($B119,Pupils,Pupils!$D$3,FALSE)/VLOOKUP($B119,Pupils,Pupils!$C$3,FALSE)), \"x\")","v":2.9514253327175784E-2},{"$f":"IFERROR((VLOOKUP($B119,Pupils,Pupils!$G$3,FALSE)/VLOOKUP($B119,Pupils,Pupils!$F$3,FALSE)),\"x\")","v":2.7267917463676693E-2},{"$f":"IFERROR((VLOOKUP($B119,Pupils,Pupils!$J$3,FALSE)/VLOOKUP($B119,Pupils,Pupils!$I$3,FALSE)), \"x\")","v":2.7969817880140638E-2},{"$f":"IFERROR((VLOOKUP($B119,Pupils,Pupils!$M$3,FALSE)/VLOOKUP($B119,Pupils,Pupils!$L$3,FALSE)), \"x\")","v":2.8675328610932232E-2},{"$f":"IFERROR((VLOOKUP($B119,Pupils,Pupils!$R$3,FALSE)/VLOOKUP($B119,Pupils,Pupils!$Q$3,FALSE)), \"x\")","v":2.6486664954693862E-2},{"$f":"IFERROR((VLOOKUP($B119,Pupils,Pupils!$W$3,FALSE)/VLOOKUP($B119,Pupils,Pupils!$V$3,FALSE)), \"x\")","v":2.6929345900361421E-2},{"$f":"IFERROR(((VLOOKUP($B119,Pupils,Pupils!$D$3,FALSE)+VLOOKUP($B119,Pupils,Pupils!$E$3,FALSE))/VLOOKUP($B119,Pupils,Pupils!$C$3,FALSE)), \"x\")","v":0.21810319492841848},{"$f":"IFERROR(((VLOOKUP($B119,Pupils,Pupils!$G$3,FALSE)+VLOOKUP($B119,Pupils,Pupils!$H$3,FALSE))/VLOOKUP($B119,Pupils,Pupils!$F$3,FALSE)), \"x\")","v":0.21671889625981849},{"$f":"IFERROR(((VLOOKUP($B119,Pupils,Pupils!$J$3,FALSE)+VLOOKUP($B119,Pupils,Pupils!$K$3,FALSE))/VLOOKUP($B119,Pupils,Pupils!$I$3,FALSE)), \"x\")","v":0.21194643068778887},{"$f":"IFERROR(((VLOOKUP($B119,Pupils,Pupils!$M$3,FALSE)+VLOOKUP($B119,Pupils,Pupils!$P$3,FALSE))/VLOOKUP($B119,Pupils,Pupils!$L$3,FALSE)), \"x\")","v":0.20228038940868973},{"$f":"IFERROR(((VLOOKUP($B119,Pupils,Pupils!$R$3,FALSE)+VLOOKUP($B119,Pupils,Pupils!$U$3,FALSE))/VLOOKUP($B119,Pupils,Pupils!$Q$3,FALSE)), \"x\")","v":0.19296379177519352},{"$f":"IFERROR(((VLOOKUP($B119,Pupils,Pupils!$W$3,FALSE)+VLOOKUP($B119,Pupils,Pupils!$Z$3,FALSE))/VLOOKUP($B119,Pupils,Pupils!$V$3,FALSE)), \"x\")","v":0.17656438239671179},{"$f":"(SUM(INDEX(Pupils!$AB$7:$AB$159,MATCH($B119,Pupils!$A$7:$A$159,0)),INDEX(Pupils!$AC$7:$AC$159,MATCH($B119,Pupils!$A$7:$A$159,0)),INDEX(Pupils!$AD$7:$AD$159,MATCH($B119,Pupils!$A$7:$A$159,0)),INDEX(Pupils!$AE$7:$AE$159,MATCH($B119,Pupils!$A$7:$A$159,0))))/SUM(INDEX(Pupils!$AB$7:$AM$159,MATCH($B119,Pupils!$A$7:$A$159,0),0))","v":0.26843100189035918},{"$f":"SUM(INDEX(Pupils!$AF$7:$AF$159,MATCH($B119,Pupils!$A$7:$A$159,0)))/SUM(INDEX(Pupils!$AB$7:$AM$159,MATCH($B119,Pupils!$A$7:$A$159,0),0))","v":0.24385633270321361},{"$f":"SUM(INDEX(Pupils!$AG$7:$AG$159,MATCH($B119,Pupils!$A$7:$A$159,0)))/SUM(INDEX(Pupils!$AB$7:$AM$159,MATCH($B119,Pupils!$A$7:$A$159,0),0))","v":0.28809073724007561},{"$f":"(SUM(INDEX(Pupils!$AH$7:$AH$159,MATCH($B119,Pupils!$A$7:$A$159,0)),INDEX(Pupils!$AI$7:$AI$159,MATCH($B119,Pupils!$A$7:$A$159,0)),INDEX(Pupils!$AJ$7:$AJ$159,MATCH($B119,Pupils!$A$7:$A$159,0))))/SUM(INDEX(Pupils!$AB$7:$AM$159,MATCH($B119,Pupils!$A$7:$A$159,0),0))","v":3.2892249527410211E-2},{"$f":"SUM(INDEX(Pupils!$AK$7:$AK$159,MATCH($B119,Pupils!$A$7:$A$159,0)))/SUM(INDEX(Pupils!$AB$7:$AM$159,MATCH($B119,Pupils!$A$7:$A$159,0),0))","v":3.0245746691871456E-2},{"$f":"SUM(INDEX(Pupils!$AL$7:$AL$159,MATCH($B119,Pupils!$A$7:$A$159,0)))/SUM(INDEX(Pupils!$AB$7:$AM$159,MATCH($B119,Pupils!$A$7:$A$159,0),0))","v":0.10207939508506617},{"$f":"SUM(INDEX(Pupils!$AM$7:$AM$159,MATCH($B119,Pupils!$A$7:$A$159,0)))/SUM(INDEX(Pupils!$AB$7:$AM$159,MATCH($B119,Pupils!$A$7:$A$159,0),0))","v":3.440453686200378E-2},{"$f":"(SUM(INDEX(Pupils!$BH$7:$BH$159,MATCH($B119,Pupils!$A$7:$A$159,0)),INDEX(Pupils!$BK$7:$BK$159,MATCH($B119,Pupils!$A$7:$A$159,0)),INDEX(Pupils!$BO$7:$BO$159,MATCH($B119,Pupils!$A$7:$A$159,0))))/SUM(INDEX(Pupils!$BH$7:$BS$159,MATCH($B119,Pupils!$A$7:$A$159,0),0))","v":0.38721351025331724},{"$f":"(SUM(INDEX(Pupils!$BL$7:$BL$159,MATCH($B119,Pupils!$A$7:$A$159,0)),INDEX(Pupils!$BM$7:$BM$159,MATCH($B119,Pupils!$A$7:$A$159,0)),INDEX(Pupils!$BP$7:$BP$159,MATCH($B119,Pupils!$A$7:$A$159,0))))/SUM(INDEX(Pupils!$BH$7:$BS$159,MATCH($B119,Pupils!$A$7:$A$159,0),0))","v":0.40530759951749096},{"$f":"(SUM(INDEX(Pupils!$BI$7:$BI$159,MATCH($B119,Pupils!$A$7:$A$159,0)),INDEX(Pupils!$BJ$7:$BJ$159,MATCH($B119,Pupils!$A$7:$A$159,0))))/SUM(INDEX(Pupils!$BH$7:$BS$159,MATCH($B119,Pupils!$A$7:$A$159,0),0))","v":0.19179734620024125},{"$f":"(SUM(INDEX(Pupils!$BQ$7:$BQ$159,MATCH($B119,Pupils!$A$7:$A$159,0)),INDEX(Pupils!$BR$7:$BR$159,MATCH($B119,Pupils!$A$7:$A$159,0)),INDEX(Pupils!$BN$7:$BN$159,MATCH($B119,Pupils!$A$7:$A$159,0)),INDEX(Pupils!$BS$7:$BS$159,MATCH($B119,Pupils!$A$7:$A$159,0))))/SUM(INDEX(Pupils!$BH$7:$BS$159,MATCH($B119,Pupils!$A$7:$A$159,0),0))","v":1.5681544028950542E-2},{"$f":"IFERROR((VLOOKUP(B119,Funding,Funding!$C$2,FALSE)), \"x\")","v":18824622},{"$f":"IFERROR((AA119/VLOOKUP(B119,Funding,Funding!$D$2,FALSE)), \"x\")","v":0.14679749754420751},{"$f":"IFERROR((AA119/(VLOOKUP(B119,Pupils,Pupils!$M$3,FALSE)+VLOOKUP(B119,Pupils,Pupils!$P$3,FALSE))), \"x\")","v":3525.2101123595507},{"$f":"IFERROR((VLOOKUP(B119,Funding,Funding!$E$2,FALSE)), \"x\")","v":19814353.638688788},{"$f":"IFERROR((AD119/VLOOKUP(B119,Funding,Funding!$F$2,FALSE)), \"x\")","v":0.14635318874876788},{"$f":"IFERROR((AD119/(VLOOKUP(B119,Pupils,Pupils!$R$3,FALSE)+VLOOKUP(B119,Pupils,Pupils!$U$3,FALSE))), \"x\")","v":3766.9873837811383},{"$f":"IFERROR((VLOOKUP(B119,Funding,Funding!$G$2,FALSE)), \"x\")","v":20507952.798196971},{"$f":"IFERROR((AG119/VLOOKUP(B119,Funding,Funding!$H$2,FALSE)), \"x\")","v":0.14737560659473714},{"$f":"IFERROR((AG119/(VLOOKUP(B119,Pupils,Pupils!$W$3,FALSE)+VLOOKUP(B119,Pupils,Pupils!$Z$3,FALSE))), \"x\")","v":4115.5835436879333},{"$f":"IFERROR((VLOOKUP(B119,Funding,Funding!$I$2,FALSE)), \"x\")","v":20594370.306104187},{"$f":"IFERROR((AJ119/VLOOKUP(B119,Funding,Funding!$J$2,FALSE)), \"x\")","v":0.14334595706870784},null,{"$f":"IFERROR((VLOOKUP($B119,Funding,Funding!$EC$2,FALSE)), \"x\")","v":11664026},{"$f":"IFERROR((AM119/VLOOKUP($B119,Funding,Funding!$EU$2,FALSE)), \"x\")","v":9.6142318669120944E-2},{"$f":"IFERROR((AM119/(VLOOKUP($B119,Pupils,Pupils!$D$3,FALSE)+VLOOKUP($B119,Pupils,Pupils!$E$3,FALSE))), \"x\")","v":2245.2408084696822},{"$f":"IFERROR((VLOOKUP($B119,Funding,Funding!$DA$2,FALSE)), \"x\")","v":12559290.3203},{"$f":"IFERROR((AP119/VLOOKUP($B119,Funding,Funding!$DT$2,FALSE)), \"x\")","v":9.6896486975601714E-2},{"$f":"IFERROR((AP119/(VLOOKUP($B119,Pupils,Pupils!$G$3,FALSE)+VLOOKUP($B119,Pupils,Pupils!$H$3,FALSE))), \"x\")","v":2358.5521728262911},{"$f":"IFERROR((VLOOKUP($B119,Funding,Funding!$CE$2,FALSE)), \"x\")","v":12693703},{"$f":"IFERROR((AS119/VLOOKUP($B119,Funding,Funding!$CR$2,FALSE)), \"x\")","v":0.10532924515084971},{"$f":"IFERROR((AS119/(VLOOKUP($B119,Pupils,Pupils!$J$3,FALSE)+VLOOKUP($B119,Pupils,Pupils!$K$3,FALSE))), \"x\")","v":2366.0210624417523},{"$f":"IFERROR((VLOOKUP($B119,Funding,Funding!$BM$2,FALSE)), \"x\")","v":14340055.65},{"$f":"IFERROR((AV119/VLOOKUP($B119,Funding,Funding!$BY$2,FALSE)), \"x\")","v":0.1348583085222673},{"$f":"IFERROR((AV119/(VLOOKUP($B119,Pupils,Pupils!$M$3,FALSE)+VLOOKUP($B119,Pupils,Pupils!$P$3,FALSE))), \"x\")","v":2685.403679775281},{"$f":"IFERROR((VLOOKUP($B119,Funding,Funding!$AQ$2,FALSE)), \"x\")","v":15913476},{"$f":"IFERROR((AY119/VLOOKUP($B119,Funding,Funding!$BE$2,FALSE)), \"x\")","v":0.12155973811347771},{"$f":"IFERROR((AY119/(VLOOKUP($B119,Pupils,Pupils!$R$3,FALSE)+VLOOKUP($B119,Pupils,Pupils!$U$3,FALSE))), \"x\")","v":3025.3756653992396},{"$f":"IFERROR((VLOOKUP($B119,Funding,Funding!$S$2,FALSE)), \"x\")","v":17448187},{"$f":"IFERROR((BB119/VLOOKUP($B119,Funding,Funding!$AH$2,FALSE)), \"x\")","v":0.12035919495075136},{"$f":"IFERROR((BB119/(VLOOKUP(B119,Pupils,Pupils!$W$3,FALSE)+VLOOKUP(B119,Pupils,Pupils!$Z$3,FALSE))), \"x\")","v":3501.542644992976},{"$f":"IFERROR((VLOOKUP($B119,Funding,Funding!$GX$2,FALSE)), \"x\")","v":19053591},{"$f":"IFERROR((BE119/VLOOKUP($B119,Funding,Funding!$HC$2,FALSE)), \"x\")","v":0.14950585188889534},{"$f":"IFERROR((BE119/(VLOOKUP($B119,Pupils,Pupils!$D$3,FALSE)+VLOOKUP($B119,Pupils,Pupils!$E$3,FALSE))), \"x\")","v":3667.678729547642},{"$f":"IFERROR((VLOOKUP($B119,Funding,Funding!$GP$2,FALSE)), \"x\")","v":20262205},{"$f":"IFERROR((BH119/VLOOKUP($B119,Funding,Funding!$GU$2,FALSE)), \"x\")","v":0.15186294495141611},{"$f":"IFERROR((BH119/(VLOOKUP($B119,Pupils,Pupils!$G$3,FALSE)+VLOOKUP($B119,Pupils,Pupils!$H$3,FALSE))), \"x\")","v":3805.1089201877935},{"$f":"IFERROR((VLOOKUP($B119,Funding,Funding!$GH$2,FALSE)), \"x\")","v":20775398.050000001},{"$f":"IFERROR((BK119/VLOOKUP($B119,Funding,Funding!$GM$2,FALSE)), \"x\")","v":0.1817162982388652},{"$f":"IFERROR((BK119/(VLOOKUP($B119,Pupils,Pupils!$J$3,FALSE)+VLOOKUP($B119,Pupils,Pupils!$K$3,FALSE))), \"x\")","v":3872.3947903075491},{"$f":"IFERROR((VLOOKUP($B119,Funding,Funding!$FZ$2,FALSE)), \"x\")","v":21814825.23},{"$f":"IFERROR((BN119/VLOOKUP($B119,Funding,Funding!$GE$2,FALSE)), \"x\")","v":0.21069281003995971},{"$f":"IFERROR((BN119/(VLOOKUP($B119,Pupils,Pupils!$M$3,FALSE)+VLOOKUP($B119,Pupils,Pupils!$P$3,FALSE))), \"x\")","v":4085.1732640449441},{"$f":"IFERROR((VLOOKUP($B119,Funding,Funding!$FD$2,FALSE)), \"x\")","v":14601925.439999999},{"$f":"IFERROR((BQ119/VLOOKUP($B119,Funding,Funding!$FR$2,FALSE)), \"x\")","v":0.16910153890611743},{"$f":"IFERROR((BQ119/(VLOOKUP($B119,Pupils,Pupils!$R$3,FALSE)+VLOOKUP($B119,Pupils,Pupils!$U$3,FALSE))), \"x\")","v":2776.0314524714827},{"$f":"(VLOOKUP(B119,Funding,Funding!$HK$2,FALSE)+VLOOKUP(B119,Funding,Funding!$HL$2,FALSE)+VLOOKUP(B119,Funding,Funding!$HM$2,FALSE))/(VLOOKUP(B119,Funding,Funding!$HN$2,FALSE))","v":0.13315579227696406},{"$f":"IFERROR((VLOOKUP(B119,Other_data,Other!$D$3,FALSE)+VLOOKUP(B119,Other_data,Other!$E$3,FALSE)+VLOOKUP(B119,Other_data,Other!$F$3,FALSE)), \"x\")","v":880},{"$f":"(VLOOKUP(B119,Other_data,Other!$AK$3,FALSE)+VLOOKUP(B119,Other_data,Other!$AL$3,FALSE))/VLOOKUP(B119,Other_data,Other!$AJ$3,FALSE)","v":3.0555969593083918E-2},{"$f":"(VLOOKUP(B119,Other_data,Other!$AR$3,FALSE)+VLOOKUP(B119,Other_data,Other!$AS$3,FALSE))/VLOOKUP(B119,Other_data,Other!$AQ$3,FALSE)","v":4.408153241650295E-2},{"$f":"VLOOKUP(B119,Other_data,Other!$AP$3,FALSE)/VLOOKUP(B119,Other_data,Other!$AJ$3,FALSE)","v":6.4391116410791472E-3},{"$f":"VLOOKUP(B119,Other_data,Other!$AW$3,FALSE)/VLOOKUP(B119,Other_data,Other!$AQ$3,FALSE)","v":9.7617878192534386E-3}]
[114,334,"Solihull",{"$f":"IFERROR((VLOOKUP($B120,Pupils,Pupils!$D$3,FALSE)/VLOOKUP($B120,Pupils,Pupils!$C$3,FALSE)), \"x\")","v":2.9305447973147433E-2},{"$f":"IFERROR((VLOOKUP($B120,Pupils,Pupils!$G$3,FALSE)/VLOOKUP($B120,Pupils,Pupils!$F$3,FALSE)),\"x\")","v":2.910372867399192E-2},{"$f":"IFERROR((VLOOKUP($B120,Pupils,Pupils!$J$3,FALSE)/VLOOKUP($B120,Pupils,Pupils!$I$3,FALSE)), \"x\")","v":2.9775784753363229E-2},{"$f":"IFERROR((VLOOKUP($B120,Pupils,Pupils!$M$3,FALSE)/VLOOKUP($B120,Pupils,Pupils!$L$3,FALSE)), \"x\")","v":3.0277458125559393E-2},{"$f":"IFERROR((VLOOKUP($B120,Pupils,Pupils!$R$3,FALSE)/VLOOKUP($B120,Pupils,Pupils!$Q$3,FALSE)), \"x\")","v":3.084787142057881E-2},{"$f":"IFERROR((VLOOKUP($B120,Pupils,Pupils!$W$3,FALSE)/VLOOKUP($B120,Pupils,Pupils!$V$3,FALSE)), \"x\")","v":3.1575766732134761E-2},{"$f":"IFERROR(((VLOOKUP($B120,Pupils,Pupils!$D$3,FALSE)+VLOOKUP($B120,Pupils,Pupils!$E$3,FALSE))/VLOOKUP($B120,Pupils,Pupils!$C$3,FALSE)), \"x\")","v":0.19617867286341337},{"$f":"IFERROR(((VLOOKUP($B120,Pupils,Pupils!$G$3,FALSE)+VLOOKUP($B120,Pupils,Pupils!$H$3,FALSE))/VLOOKUP($B120,Pupils,Pupils!$F$3,FALSE)), \"x\")","v":0.19711278659838913},{"$f":"IFERROR(((VLOOKUP($B120,Pupils,Pupils!$J$3,FALSE)+VLOOKUP($B120,Pupils,Pupils!$K$3,FALSE))/VLOOKUP($B120,Pupils,Pupils!$I$3,FALSE)), \"x\")","v":0.19541319666880205},{"$f":"IFERROR(((VLOOKUP($B120,Pupils,Pupils!$M$3,FALSE)+VLOOKUP($B120,Pupils,Pupils!$P$3,FALSE))/VLOOKUP($B120,Pupils,Pupils!$L$3,FALSE)), \"x\")","v":0.18197161488300728},{"$f":"IFERROR(((VLOOKUP($B120,Pupils,Pupils!$R$3,FALSE)+VLOOKUP($B120,Pupils,Pupils!$U$3,FALSE))/VLOOKUP($B120,Pupils,Pupils!$Q$3,FALSE)), \"x\")","v":0.17565230659681602},{"$f":"IFERROR(((VLOOKUP($B120,Pupils,Pupils!$W$3,FALSE)+VLOOKUP($B120,Pupils,Pupils!$Z$3,FALSE))/VLOOKUP($B120,Pupils,Pupils!$V$3,FALSE)), \"x\")","v":0.16072417787178325},{"$f":"(SUM(INDEX(Pupils!$AB$7:$AB$159,MATCH($B120,Pupils!$A$7:$A$159,0)),INDEX(Pupils!$AC$7:$AC$159,MATCH($B120,Pupils!$A$7:$A$159,0)),INDEX(Pupils!$AD$7:$AD$159,MATCH($B120,Pupils!$A$7:$A$159,0)),INDEX(Pupils!$AE$7:$AE$159,MATCH($B120,Pupils!$A$7:$A$159,0))))/SUM(INDEX(Pupils!$AB$7:$AM$159,MATCH($B120,Pupils!$A$7:$A$159,0),0))","v":0.41181556195965419},{"$f":"SUM(INDEX(Pupils!$AF$7:$AF$159,MATCH($B120,Pupils!$A$7:$A$159,0)))/SUM(INDEX(Pupils!$AB$7:$AM$159,MATCH($B120,Pupils!$A$7:$A$159,0),0))","v":0.20374639769452449},{"$f":"SUM(INDEX(Pupils!$AG$7:$AG$159,MATCH($B120,Pupils!$A$7:$A$159,0)))/SUM(INDEX(Pupils!$AB$7:$AM$159,MATCH($B120,Pupils!$A$7:$A$159,0),0))","v":0.14207492795389048},{"$f":"(SUM(INDEX(Pupils!$AH$7:$AH$159,MATCH($B120,Pupils!$A$7:$A$159,0)),INDEX(Pupils!$AI$7:$AI$159,MATCH($B120,Pupils!$A$7:$A$159,0)),INDEX(Pupils!$AJ$7:$AJ$159,MATCH($B120,Pupils!$A$7:$A$159,0))))/SUM(INDEX(Pupils!$AB$7:$AM$159,MATCH($B120,Pupils!$A$7:$A$159,0),0))","v":3.804034582132565E-2},{"$f":"SUM(INDEX(Pupils!$AK$7:$AK$159,MATCH($B120,Pupils!$A$7:$A$159,0)))/SUM(INDEX(Pupils!$AB$7:$AM$159,MATCH($B120,Pupils!$A$7:$A$159,0),0))","v":2.7953890489913546E-2},{"$f":"SUM(INDEX(Pupils!$AL$7:$AL$159,MATCH($B120,Pupils!$A$7:$A$159,0)))/SUM(INDEX(Pupils!$AB$7:$AM$159,MATCH($B120,Pupils!$A$7:$A$159,0),0))","v":0.14985590778097982},{"$f":"SUM(INDEX(Pupils!$AM$7:$AM$159,MATCH($B120,Pupils!$A$7:$A$159,0)))/SUM(INDEX(Pupils!$AB$7:$AM$159,MATCH($B120,Pupils!$A$7:$A$159,0),0))","v":2.6512968299711816E-2},{"$f":"(SUM(INDEX(Pupils!$BH$7:$BH$159,MATCH($B120,Pupils!$A$7:$A$159,0)),INDEX(Pupils!$BK$7:$BK$159,MATCH($B120,Pupils!$A$7:$A$159,0)),INDEX(Pupils!$BO$7:$BO$159,MATCH($B120,Pupils!$A$7:$A$159,0))))/SUM(INDEX(Pupils!$BH$7:$BS$159,MATCH($B120,Pupils!$A$7:$A$159,0),0))","v":0.45370370370370372},{"$f":"(SUM(INDEX(Pupils!$BL$7:$BL$159,MATCH($B120,Pupils!$A$7:$A$159,0)),INDEX(Pupils!$BM$7:$BM$159,MATCH($B120,Pupils!$A$7:$A$159,0)),INDEX(Pupils!$BP$7:$BP$159,MATCH($B120,Pupils!$A$7:$A$159,0))))/SUM(INDEX(Pupils!$BH$7:$BS$159,MATCH($B120,Pupils!$A$7:$A$159,0),0))","v":0.49382716049382713},{"$f":"(SUM(INDEX(Pupils!$BI$7:$BI$159,MATCH($B120,Pupils!$A$7:$A$159,0)),INDEX(Pupils!$BJ$7:$BJ$159,MATCH($B120,Pupils!$A$7:$A$159,0))))/SUM(INDEX(Pupils!$BH$7:$BS$159,MATCH($B120,Pupils!$A$7:$A$159,0),0))","v":1.8518518518518517E-2},{"$f":"(SUM(INDEX(Pupils!$BQ$7:$BQ$159,MATCH($B120,Pupils!$A$7:$A$159,0)),INDEX(Pupils!$BR$7:$BR$159,MATCH($B120,Pupils!$A$7:$A$159,0)),INDEX(Pupils!$BN$7:$BN$159,MATCH($B120,Pupils!$A$7:$A$159,0)),INDEX(Pupils!$BS$7:$BS$159,MATCH($B120,Pupils!$A$7:$A$159,0))))/SUM(INDEX(Pupils!$BH$7:$BS$159,MATCH($B120,Pupils!$A$7:$A$159,0),0))","v":3.3950617283950615E-2},{"$f":"IFERROR((VLOOKUP(B120,Funding,Funding!$C$2,FALSE)), \"x\")","v":21396844.370000001},{"$f":"IFERROR((AA120/VLOOKUP(B120,Funding,Funding!$D$2,FALSE)), \"x\")","v":0.13826913790172207},{"$f":"IFERROR((AA120/(VLOOKUP(B120,Pupils,Pupils!$M$3,FALSE)+VLOOKUP(B120,Pupils,Pupils!$P$3,FALSE))), \"x\")","v":3006.8640205171446},{"$f":"IFERROR((VLOOKUP(B120,Funding,Funding!$E$2,FALSE)), \"x\")","v":22151413.770190097},{"$f":"IFERROR((AD120/VLOOKUP(B120,Funding,Funding!$F$2,FALSE)), \"x\")","v":0.13984578908770476},{"$f":"IFERROR((AD120/(VLOOKUP(B120,Pupils,Pupils!$R$3,FALSE)+VLOOKUP(B120,Pupils,Pupils!$U$3,FALSE))), \"x\")","v":3207.0962458650783},{"$f":"IFERROR((VLOOKUP(B120,Funding,Funding!$G$2,FALSE)), \"x\")","v":24101021.547797505},{"$f":"IFERROR((AG120/VLOOKUP(B120,Funding,Funding!$H$2,FALSE)), \"x\")","v":0.14786774291113711},{"$f":"IFERROR((AG120/(VLOOKUP(B120,Pupils,Pupils!$W$3,FALSE)+VLOOKUP(B120,Pupils,Pupils!$Z$3,FALSE))), \"x\")","v":3775.8141231078653},{"$f":"IFERROR((VLOOKUP(B120,Funding,Funding!$I$2,FALSE)), \"x\")","v":24781084.076527003},{"$f":"IFERROR((AJ120/VLOOKUP(B120,Funding,Funding!$J$2,FALSE)), \"x\")","v":0.1428741003103369},null,{"$f":"IFERROR((VLOOKUP($B120,Funding,Funding!$EC$2,FALSE)), \"x\")","v":13084475.449999999},{"$f":"IFERROR((AM120/VLOOKUP($B120,Funding,Funding!$EU$2,FALSE)), \"x\")","v":8.5361828220405084E-2},{"$f":"IFERROR((AM120/(VLOOKUP($B120,Pupils,Pupils!$D$3,FALSE)+VLOOKUP($B120,Pupils,Pupils!$E$3,FALSE))), \"x\")","v":1722.0946893919452},{"$f":"IFERROR((VLOOKUP($B120,Funding,Funding!$DA$2,FALSE)), \"x\")","v":13221353.88264},{"$f":"IFERROR((AP120/VLOOKUP($B120,Funding,Funding!$DT$2,FALSE)), \"x\")","v":8.6782995530440124E-2},{"$f":"IFERROR((AP120/(VLOOKUP($B120,Pupils,Pupils!$G$3,FALSE)+VLOOKUP($B120,Pupils,Pupils!$H$3,FALSE))), \"x\")","v":1726.0253110496085},{"$f":"IFERROR((VLOOKUP($B120,Funding,Funding!$CE$2,FALSE)), \"x\")","v":15236892.975409999},{"$f":"IFERROR((AS120/VLOOKUP($B120,Funding,Funding!$CR$2,FALSE)), \"x\")","v":0.10648786788261633},{"$f":"IFERROR((AS120/(VLOOKUP($B120,Pupils,Pupils!$J$3,FALSE)+VLOOKUP($B120,Pupils,Pupils!$K$3,FALSE))), \"x\")","v":1998.0190106753212},{"$f":"IFERROR((VLOOKUP($B120,Funding,Funding!$BM$2,FALSE)), \"x\")","v":15189746.370000001},{"$f":"IFERROR((AV120/VLOOKUP($B120,Funding,Funding!$BY$2,FALSE)), \"x\")","v":0.12968658865342203},{"$f":"IFERROR((AV120/(VLOOKUP($B120,Pupils,Pupils!$M$3,FALSE)+VLOOKUP($B120,Pupils,Pupils!$P$3,FALSE))), \"x\")","v":2134.5905522765602},{"$f":"IFERROR((VLOOKUP($B120,Funding,Funding!$AQ$2,FALSE)), \"x\")","v":20296958},{"$f":"IFERROR((AY120/VLOOKUP($B120,Funding,Funding!$BE$2,FALSE)), \"x\")","v":0.12608035377163229},{"$f":"IFERROR((AY120/(VLOOKUP($B120,Pupils,Pupils!$R$3,FALSE)+VLOOKUP($B120,Pupils,Pupils!$U$3,FALSE))), \"x\")","v":2938.606920515419},{"$f":"IFERROR((VLOOKUP($B120,Funding,Funding!$S$2,FALSE)), \"x\")","v":20585163},{"$f":"IFERROR((BB120/VLOOKUP($B120,Funding,Funding!$AH$2,FALSE)), \"x\")","v":0.12518245570920458},{"$f":"IFERROR((BB120/(VLOOKUP(B120,Pupils,Pupils!$W$3,FALSE)+VLOOKUP(B120,Pupils,Pupils!$Z$3,FALSE))), \"x\")","v":3224.9981200062666},{"$f":"IFERROR((VLOOKUP($B120,Funding,Funding!$GX$2,FALSE)), \"x\")","v":20517742.561000001},{"$f":"IFERROR((BE120/VLOOKUP($B120,Funding,Funding!$HC$2,FALSE)), \"x\")","v":0.12493133316383588},{"$f":"IFERROR((BE120/(VLOOKUP($B120,Pupils,Pupils!$D$3,FALSE)+VLOOKUP($B120,Pupils,Pupils!$E$3,FALSE))), \"x\")","v":2700.4136037115031},{"$f":"IFERROR((VLOOKUP($B120,Funding,Funding!$GP$2,FALSE)), \"x\")","v":21478684},{"$f":"IFERROR((BH120/VLOOKUP($B120,Funding,Funding!$GU$2,FALSE)), \"x\")","v":0.13236072395349865},{"$f":"IFERROR((BH120/(VLOOKUP($B120,Pupils,Pupils!$G$3,FALSE)+VLOOKUP($B120,Pupils,Pupils!$H$3,FALSE))), \"x\")","v":2804.0057441253261},{"$f":"IFERROR((VLOOKUP($B120,Funding,Funding!$GH$2,FALSE)), \"x\")","v":20769987},{"$f":"IFERROR((BK120/VLOOKUP($B120,Funding,Funding!$GM$2,FALSE)), \"x\")","v":0.15076147038734014},{"$f":"IFERROR((BK120/(VLOOKUP($B120,Pupils,Pupils!$J$3,FALSE)+VLOOKUP($B120,Pupils,Pupils!$K$3,FALSE))), \"x\")","v":2723.5755310778914},{"$f":"IFERROR((VLOOKUP($B120,Funding,Funding!$FZ$2,FALSE)), \"x\")","v":17707235},{"$f":"IFERROR((BN120/VLOOKUP($B120,Funding,Funding!$GE$2,FALSE)), \"x\")","v":0.14082752038150478},{"$f":"IFERROR((BN120/(VLOOKUP($B120,Pupils,Pupils!$M$3,FALSE)+VLOOKUP($B120,Pupils,Pupils!$P$3,FALSE))), \"x\")","v":2488.3691680719508},{"$f":"IFERROR((VLOOKUP($B120,Funding,Funding!$FD$2,FALSE)), \"x\")","v":21329014},{"$f":"IFERROR((BQ120/VLOOKUP($B120,Funding,Funding!$FR$2,FALSE)), \"x\")","v":0.18967349484278559},{"$f":"IFERROR((BQ120/(VLOOKUP($B120,Pupils,Pupils!$R$3,FALSE)+VLOOKUP($B120,Pupils,Pupils!$U$3,FALSE))), \"x\")","v":3088.028666570146},{"$f":"(VLOOKUP(B120,Funding,Funding!$HK$2,FALSE)+VLOOKUP(B120,Funding,Funding!$HL$2,FALSE)+VLOOKUP(B120,Funding,Funding!$HM$2,FALSE))/(VLOOKUP(B120,Funding,Funding!$HN$2,FALSE))","v":0.20217391304347826},{"$f":"IFERROR((VLOOKUP(B120,Other_data,Other!$D$3,FALSE)+VLOOKUP(B120,Other_data,Other!$E$3,FALSE)+VLOOKUP(B120,Other_data,Other!$F$3,FALSE)), \"x\")","v":1490},{"$f":"(VLOOKUP(B120,Other_data,Other!$AK$3,FALSE)+VLOOKUP(B120,Other_data,Other!$AL$3,FALSE))/VLOOKUP(B120,Other_data,Other!$AJ$3,FALSE)","v":3.8060958799203556E-2},{"$f":"(VLOOKUP(B120,Other_data,Other!$AR$3,FALSE)+VLOOKUP(B120,Other_data,Other!$AS$3,FALSE))/VLOOKUP(B120,Other_data,Other!$AQ$3,FALSE)","v":5.0493962678375415E-2},{"$f":"VLOOKUP(B120,Other_data,Other!$AP$3,FALSE)/VLOOKUP(B120,Other_data,Other!$AJ$3,FALSE)","v":5.59044264052688E-3},{"$f":"VLOOKUP(B120,Other_data,Other!$AW$3,FALSE)/VLOOKUP(B120,Other_data,Other!$AQ$3,FALSE)","v":1.0290889132821076E-2}]
[115,933,"Somerset",{"$f":"IFERROR((VLOOKUP($B121,Pupils,Pupils!$D$3,FALSE)/VLOOKUP($B121,Pupils,Pupils!$C$3,FALSE)), \"x\")","v":1.6678113701452692E-2},{"$f":"IFERROR((VLOOKUP($B121,Pupils,Pupils!$G$3,FALSE)/VLOOKUP($B121,Pupils,Pupils!$F$3,FALSE)),\"x\")","v":1.6733776081158815E-2},{"$f":"IFERROR((VLOOKUP($B121,Pupils,Pupils!$J$3,FALSE)/VLOOKUP($B121,Pupils,Pupils!$I$3,FALSE)), \"x\")","v":1.6297485004735348E-2},{"$f":"IFERROR((VLOOKUP($B121,Pupils,Pupils!$M$3,FALSE)/VLOOKUP($B121,Pupils,Pupils!$L$3,FALSE)), \"x\")","v":1.6535650074147954E-2},{"$f":"IFERROR((VLOOKUP($B121,Pupils,Pupils!$R$3,FALSE)/VLOOKUP($B121,Pupils,Pupils!$Q$3,FALSE)), \"x\")","v":1.5267175572519083E-2},{"$f":"IFERROR((VLOOKUP($B121,Pupils,Pupils!$W$3,FALSE)/VLOOKUP($B121,Pupils,Pupils!$V$3,FALSE)), \"x\")","v":1.5268276060915834E-2},{"$f":"IFERROR(((VLOOKUP($B121,Pupils,Pupils!$D$3,FALSE)+VLOOKUP($B121,Pupils,Pupils!$E$3,FALSE))/VLOOKUP($B121,Pupils,Pupils!$C$3,FALSE)), \"x\")","v":0.20116111809452228},{"$f":"IFERROR(((VLOOKUP($B121,Pupils,Pupils!$G$3,FALSE)+VLOOKUP($B121,Pupils,Pupils!$H$3,FALSE))/VLOOKUP($B121,Pupils,Pupils!$F$3,FALSE)), \"x\")","v":0.20233488469382419},{"$f":"IFERROR(((VLOOKUP($B121,Pupils,Pupils!$J$3,FALSE)+VLOOKUP($B121,Pupils,Pupils!$K$3,FALSE))/VLOOKUP($B121,Pupils,Pupils!$I$3,FALSE)), \"x\")","v":0.19885825528780385},{"$f":"IFERROR(((VLOOKUP($B121,Pupils,Pupils!$M$3,FALSE)+VLOOKUP($B121,Pupils,Pupils!$P$3,FALSE))/VLOOKUP($B121,Pupils,Pupils!$L$3,FALSE)), \"x\")","v":0.19850654208060473},{"$f":"IFERROR(((VLOOKUP($B121,Pupils,Pupils!$R$3,FALSE)+VLOOKUP($B121,Pupils,Pupils!$U$3,FALSE))/VLOOKUP($B121,Pupils,Pupils!$Q$3,FALSE)), \"x\")","v":0.1954565724928517},{"$f":"IFERROR(((VLOOKUP($B121,Pupils,Pupils!$W$3,FALSE)+VLOOKUP($B121,Pupils,Pupils!$Z$3,FALSE))/VLOOKUP($B121,Pupils,Pupils!$V$3,FALSE)), \"x\")","v":0.18928730570627245},{"$f":"(SUM(INDEX(Pupils!$AB$7:$AB$159,MATCH($B121,Pupils!$A$7:$A$159,0)),INDEX(Pupils!$AC$7:$AC$159,MATCH($B121,Pupils!$A$7:$A$159,0)),INDEX(Pupils!$AD$7:$AD$159,MATCH($B121,Pupils!$A$7:$A$159,0)),INDEX(Pupils!$AE$7:$AE$159,MATCH($B121,Pupils!$A$7:$A$159,0))))/SUM(INDEX(Pupils!$AB$7:$AM$159,MATCH($B121,Pupils!$A$7:$A$159,0),0))","v":0.33648046157880934},{"$f":"SUM(INDEX(Pupils!$AF$7:$AF$159,MATCH($B121,Pupils!$A$7:$A$159,0)))/SUM(INDEX(Pupils!$AB$7:$AM$159,MATCH($B121,Pupils!$A$7:$A$159,0),0))","v":0.25386834513506423},{"$f":"SUM(INDEX(Pupils!$AG$7:$AG$159,MATCH($B121,Pupils!$A$7:$A$159,0)))/SUM(INDEX(Pupils!$AB$7:$AM$159,MATCH($B121,Pupils!$A$7:$A$159,0),0))","v":0.20430107526881722},{"$f":"(SUM(INDEX(Pupils!$AH$7:$AH$159,MATCH($B121,Pupils!$A$7:$A$159,0)),INDEX(Pupils!$AI$7:$AI$159,MATCH($B121,Pupils!$A$7:$A$159,0)),INDEX(Pupils!$AJ$7:$AJ$159,MATCH($B121,Pupils!$A$7:$A$159,0))))/SUM(INDEX(Pupils!$AB$7:$AM$159,MATCH($B121,Pupils!$A$7:$A$159,0),0))","v":2.6226068712300026E-2},{"$f":"SUM(INDEX(Pupils!$AK$7:$AK$159,MATCH($B121,Pupils!$A$7:$A$159,0)))/SUM(INDEX(Pupils!$AB$7:$AM$159,MATCH($B121,Pupils!$A$7:$A$159,0),0))","v":3.7765538945712038E-2},{"$f":"SUM(INDEX(Pupils!$AL$7:$AL$159,MATCH($B121,Pupils!$A$7:$A$159,0)))/SUM(INDEX(Pupils!$AB$7:$AM$159,MATCH($B121,Pupils!$A$7:$A$159,0),0))","v":0.1004458431681091},{"$f":"SUM(INDEX(Pupils!$AM$7:$AM$159,MATCH($B121,Pupils!$A$7:$A$159,0)))/SUM(INDEX(Pupils!$AB$7:$AM$159,MATCH($B121,Pupils!$A$7:$A$159,0),0))","v":4.0912667191188044E-2},{"$f":"(SUM(INDEX(Pupils!$BH$7:$BH$159,MATCH($B121,Pupils!$A$7:$A$159,0)),INDEX(Pupils!$BK$7:$BK$159,MATCH($B121,Pupils!$A$7:$A$159,0)),INDEX(Pupils!$BO$7:$BO$159,MATCH($B121,Pupils!$A$7:$A$159,0))))/SUM(INDEX(Pupils!$BH$7:$BS$159,MATCH($B121,Pupils!$A$7:$A$159,0),0))","v":0.38339552238805968},{"$f":"(SUM(INDEX(Pupils!$BL$7:$BL$159,MATCH($B121,Pupils!$A$7:$A$159,0)),INDEX(Pupils!$BM$7:$BM$159,MATCH($B121,Pupils!$A$7:$A$159,0)),INDEX(Pupils!$BP$7:$BP$159,MATCH($B121,Pupils!$A$7:$A$159,0))))/SUM(INDEX(Pupils!$BH$7:$BS$159,MATCH($B121,Pupils!$A$7:$A$159,0),0))","v":0.52705223880597019},{"$f":"(SUM(INDEX(Pupils!$BI$7:$BI$159,MATCH($B121,Pupils!$A$7:$A$159,0)),INDEX(Pupils!$BJ$7:$BJ$159,MATCH($B121,Pupils!$A$7:$A$159,0))))/SUM(INDEX(Pupils!$BH$7:$BS$159,MATCH($B121,Pupils!$A$7:$A$159,0),0))","v":6.1567164179104475E-2},{"$f":"(SUM(INDEX(Pupils!$BQ$7:$BQ$159,MATCH($B121,Pupils!$A$7:$A$159,0)),INDEX(Pupils!$BR$7:$BR$159,MATCH($B121,Pupils!$A$7:$A$159,0)),INDEX(Pupils!$BN$7:$BN$159,MATCH($B121,Pupils!$A$7:$A$159,0)),INDEX(Pupils!$BS$7:$BS$159,MATCH($B121,Pupils!$A$7:$A$159,0))))/SUM(INDEX(Pupils!$BH$7:$BS$159,MATCH($B121,Pupils!$A$7:$A$159,0),0))","v":2.7985074626865673E-2},{"$f":"IFERROR((VLOOKUP(B121,Funding,Funding!$C$2,FALSE)), \"x\")","v":33131774.999999996},{"$f":"IFERROR((AA121/VLOOKUP(B121,Funding,Funding!$D$2,FALSE)), \"x\")","v":0.10317734850207165},{"$f":"IFERROR((AA121/(VLOOKUP(B121,Pupils,Pupils!$M$3,FALSE)+VLOOKUP(B121,Pupils,Pupils!$P$3,FALSE))), \"x\")","v":2190.3857596191983},{"$f":"IFERROR((VLOOKUP(B121,Funding,Funding!$E$2,FALSE)), \"x\")","v":37039683.493127055},{"$f":"IFERROR((AD121/VLOOKUP(B121,Funding,Funding!$F$2,FALSE)), \"x\")","v":0.11230124560117027},{"$f":"IFERROR((AD121/(VLOOKUP(B121,Pupils,Pupils!$R$3,FALSE)+VLOOKUP(B121,Pupils,Pupils!$U$3,FALSE))), \"x\")","v":2485.5511671672966},{"$f":"IFERROR((VLOOKUP(B121,Funding,Funding!$G$2,FALSE)), \"x\")","v":40363815.368089482},{"$f":"IFERROR((AG121/VLOOKUP(B121,Funding,Funding!$H$2,FALSE)), \"x\")","v":0.12056402397364595},{"$f":"IFERROR((AG121/(VLOOKUP(B121,Pupils,Pupils!$W$3,FALSE)+VLOOKUP(B121,Pupils,Pupils!$Z$3,FALSE))), \"x\")","v":2794.6974567672564},{"$f":"IFERROR((VLOOKUP(B121,Funding,Funding!$I$2,FALSE)), \"x\")","v":40969261.610206962},{"$f":"IFERROR((AJ121/VLOOKUP(B121,Funding,Funding!$J$2,FALSE)), \"x\")","v":0.12142926213486675},null,{"$f":"IFERROR((VLOOKUP($B121,Funding,Funding!$EC$2,FALSE)), \"x\")","v":22279959.039999999},{"$f":"IFERROR((AM121/VLOOKUP($B121,Funding,Funding!$EU$2,FALSE)), \"x\")","v":6.9842351194562016E-2},{"$f":"IFERROR((AM121/(VLOOKUP($B121,Pupils,Pupils!$D$3,FALSE)+VLOOKUP($B121,Pupils,Pupils!$E$3,FALSE))), \"x\")","v":1435.28693164981},{"$f":"IFERROR((VLOOKUP($B121,Funding,Funding!$DA$2,FALSE)), \"x\")","v":23301762.185309999},{"$f":"IFERROR((AP121/VLOOKUP($B121,Funding,Funding!$DT$2,FALSE)), \"x\")","v":7.0653391229510962E-2},{"$f":"IFERROR((AP121/(VLOOKUP($B121,Pupils,Pupils!$G$3,FALSE)+VLOOKUP($B121,Pupils,Pupils!$H$3,FALSE))), \"x\")","v":1505.5735727408412},{"$f":"IFERROR((VLOOKUP($B121,Funding,Funding!$CE$2,FALSE)), \"x\")","v":22397721},{"$f":"IFERROR((AS121/VLOOKUP($B121,Funding,Funding!$CR$2,FALSE)), \"x\")","v":7.033055693723167E-2},{"$f":"IFERROR((AS121/(VLOOKUP($B121,Pupils,Pupils!$J$3,FALSE)+VLOOKUP($B121,Pupils,Pupils!$K$3,FALSE))), \"x\")","v":1481.5267231115226},{"$f":"IFERROR((VLOOKUP($B121,Funding,Funding!$BM$2,FALSE)), \"x\")","v":24649771.390000001},{"$f":"IFERROR((AV121/VLOOKUP($B121,Funding,Funding!$BY$2,FALSE)), \"x\")","v":0.10236825730183437},{"$f":"IFERROR((AV121/(VLOOKUP($B121,Pupils,Pupils!$M$3,FALSE)+VLOOKUP($B121,Pupils,Pupils!$P$3,FALSE))), \"x\")","v":1629.6292073251357},{"$f":"IFERROR((VLOOKUP($B121,Funding,Funding!$AQ$2,FALSE)), \"x\")","v":40832911},{"$f":"IFERROR((AY121/VLOOKUP($B121,Funding,Funding!$BE$2,FALSE)), \"x\")","v":0.1204071901505082},{"$f":"IFERROR((AY121/(VLOOKUP($B121,Pupils,Pupils!$R$3,FALSE)+VLOOKUP($B121,Pupils,Pupils!$U$3,FALSE))), \"x\")","v":2740.0960273788755},{"$f":"IFERROR((VLOOKUP($B121,Funding,Funding!$S$2,FALSE)), \"x\")","v":38644600},{"$f":"IFERROR((BB121/VLOOKUP($B121,Funding,Funding!$AH$2,FALSE)), \"x\")","v":0.11477005857699306},{"$f":"IFERROR((BB121/(VLOOKUP(B121,Pupils,Pupils!$W$3,FALSE)+VLOOKUP(B121,Pupils,Pupils!$Z$3,FALSE))), \"x\")","v":2675.6629509104755},{"$f":"IFERROR((VLOOKUP($B121,Funding,Funding!$GX$2,FALSE)), \"x\")","v":39252266.382269993},{"$f":"IFERROR((BE121/VLOOKUP($B121,Funding,Funding!$HC$2,FALSE)), \"x\")","v":0.10632497135678695},{"$f":"IFERROR((BE121/(VLOOKUP($B121,Pupils,Pupils!$D$3,FALSE)+VLOOKUP($B121,Pupils,Pupils!$E$3,FALSE))), \"x\")","v":2528.652089304258},{"$f":"IFERROR((VLOOKUP($B121,Funding,Funding!$GP$2,FALSE)), \"x\")","v":38682994.600000001},{"$f":"IFERROR((BH121/VLOOKUP($B121,Funding,Funding!$GU$2,FALSE)), \"x\")","v":0.10831177599971901},{"$f":"IFERROR((BH121/(VLOOKUP($B121,Pupils,Pupils!$G$3,FALSE)+VLOOKUP($B121,Pupils,Pupils!$H$3,FALSE))), \"x\")","v":2499.3858370485236},{"$f":"IFERROR((VLOOKUP($B121,Funding,Funding!$GH$2,FALSE)), \"x\")","v":30395792.57},{"$f":"IFERROR((BK121/VLOOKUP($B121,Funding,Funding!$GM$2,FALSE)), \"x\")","v":0.10799469803752133},{"$f":"IFERROR((BK121/(VLOOKUP($B121,Pupils,Pupils!$J$3,FALSE)+VLOOKUP($B121,Pupils,Pupils!$K$3,FALSE))), \"x\")","v":2010.5696897737796},{"$f":"IFERROR((VLOOKUP($B121,Funding,Funding!$FZ$2,FALSE)), \"x\")","v":30211908.489999998},{"$f":"IFERROR((BN121/VLOOKUP($B121,Funding,Funding!$GE$2,FALSE)), \"x\")","v":0.1192948951407487},{"$f":"IFERROR((BN121/(VLOOKUP($B121,Pupils,Pupils!$M$3,FALSE)+VLOOKUP($B121,Pupils,Pupils!$P$3,FALSE))), \"x\")","v":1997.3494968927673},{"$f":"IFERROR((VLOOKUP($B121,Funding,Funding!$FD$2,FALSE)), \"x\")","v":42316297},{"$f":"IFERROR((BQ121/VLOOKUP($B121,Funding,Funding!$FR$2,FALSE)), \"x\")","v":0.18591595313492226},{"$f":"IFERROR((BQ121/(VLOOKUP($B121,Pupils,Pupils!$R$3,FALSE)+VLOOKUP($B121,Pupils,Pupils!$U$3,FALSE))), \"x\")","v":2839.6387733190177},{"$f":"(VLOOKUP(B121,Funding,Funding!$HK$2,FALSE)+VLOOKUP(B121,Funding,Funding!$HL$2,FALSE)+VLOOKUP(B121,Funding,Funding!$HM$2,FALSE))/(VLOOKUP(B121,Funding,Funding!$HN$2,FALSE))","v":0.44452945677123185},{"$f":"IFERROR((VLOOKUP(B121,Other_data,Other!$D$3,FALSE)+VLOOKUP(B121,Other_data,Other!$E$3,FALSE)+VLOOKUP(B121,Other_data,Other!$F$3,FALSE)), \"x\")","v":2560},{"$f":"(VLOOKUP(B121,Other_data,Other!$AK$3,FALSE)+VLOOKUP(B121,Other_data,Other!$AL$3,FALSE))/VLOOKUP(B121,Other_data,Other!$AJ$3,FALSE)","v":3.4919503741375403E-2},{"$f":"(VLOOKUP(B121,Other_data,Other!$AR$3,FALSE)+VLOOKUP(B121,Other_data,Other!$AS$3,FALSE))/VLOOKUP(B121,Other_data,Other!$AQ$3,FALSE)","v":5.3928030377555239E-2},{"$f":"VLOOKUP(B121,Other_data,Other!$AP$3,FALSE)/VLOOKUP(B121,Other_data,Other!$AJ$3,FALSE)","v":5.3448220012309285E-3},{"$f":"VLOOKUP(B121,Other_data,Other!$AW$3,FALSE)/VLOOKUP(B121,Other_data,Other!$AQ$3,FALSE)","v":1.0702972829401696E-2}]
[116,803,"South Gloucestershire",{"$f":"IFERROR((VLOOKUP($B122,Pupils,Pupils!$D$3,FALSE)/VLOOKUP($B122,Pupils,Pupils!$C$3,FALSE)), \"x\")","v":2.4855548914126321E-2},{"$f":"IFERROR((VLOOKUP($B122,Pupils,Pupils!$G$3,FALSE)/VLOOKUP($B122,Pupils,Pupils!$F$3,FALSE)),\"x\")","v":2.5586194892707064E-2},{"$f":"IFERROR((VLOOKUP($B122,Pupils,Pupils!$J$3,FALSE)/VLOOKUP($B122,Pupils,Pupils!$I$3,FALSE)), \"x\")","v":2.5210923069242674E-2},{"$f":"IFERROR((VLOOKUP($B122,Pupils,Pupils!$M$3,FALSE)/VLOOKUP($B122,Pupils,Pupils!$L$3,FALSE)), \"x\")","v":2.6638413803541698E-2},{"$f":"IFERROR((VLOOKUP($B122,Pupils,Pupils!$R$3,FALSE)/VLOOKUP($B122,Pupils,Pupils!$Q$3,FALSE)), \"x\")","v":2.7540719482415731E-2},{"$f":"IFERROR((VLOOKUP($B122,Pupils,Pupils!$W$3,FALSE)/VLOOKUP($B122,Pupils,Pupils!$V$3,FALSE)), \"x\")","v":2.8598064906268896E-2},{"$f":"IFERROR(((VLOOKUP($B122,Pupils,Pupils!$D$3,FALSE)+VLOOKUP($B122,Pupils,Pupils!$E$3,FALSE))/VLOOKUP($B122,Pupils,Pupils!$C$3,FALSE)), \"x\")","v":0.17428770671448496},{"$f":"IFERROR(((VLOOKUP($B122,Pupils,Pupils!$G$3,FALSE)+VLOOKUP($B122,Pupils,Pupils!$H$3,FALSE))/VLOOKUP($B122,Pupils,Pupils!$F$3,FALSE)), \"x\")","v":0.15687395877365293},{"$f":"IFERROR(((VLOOKUP($B122,Pupils,Pupils!$J$3,FALSE)+VLOOKUP($B122,Pupils,Pupils!$K$3,FALSE))/VLOOKUP($B122,Pupils,Pupils!$I$3,FALSE)), \"x\")","v":0.15049173780640007},{"$f":"IFERROR(((VLOOKUP($B122,Pupils,Pupils!$M$3,FALSE)+VLOOKUP($B122,Pupils,Pupils!$P$3,FALSE))/VLOOKUP($B122,Pupils,Pupils!$L$3,FALSE)), \"x\")","v":0.14656172746077392},{"$f":"IFERROR(((VLOOKUP($B122,Pupils,Pupils!$R$3,FALSE)+VLOOKUP($B122,Pupils,Pupils!$U$3,FALSE))/VLOOKUP($B122,Pupils,Pupils!$Q$3,FALSE)), \"x\")","v":0.143518868162022},{"$f":"IFERROR(((VLOOKUP($B122,Pupils,Pupils!$W$3,FALSE)+VLOOKUP($B122,Pupils,Pupils!$Z$3,FALSE))/VLOOKUP($B122,Pupils,Pupils!$V$3,FALSE)), \"x\")","v":0.14440133037694014},{"$f":"(SUM(INDEX(Pupils!$AB$7:$AB$159,MATCH($B122,Pupils!$A$7:$A$159,0)),INDEX(Pupils!$AC$7:$AC$159,MATCH($B122,Pupils!$A$7:$A$159,0)),INDEX(Pupils!$AD$7:$AD$159,MATCH($B122,Pupils!$A$7:$A$159,0)),INDEX(Pupils!$AE$7:$AE$159,MATCH($B122,Pupils!$A$7:$A$159,0))))/SUM(INDEX(Pupils!$AB$7:$AM$159,MATCH($B122,Pupils!$A$7:$A$159,0),0))","v":0.31947221111555379},{"$f":"SUM(INDEX(Pupils!$AF$7:$AF$159,MATCH($B122,Pupils!$A$7:$A$159,0)))/SUM(INDEX(Pupils!$AB$7:$AM$159,MATCH($B122,Pupils!$A$7:$A$159,0),0))","v":0.21751299480207917},{"$f":"SUM(INDEX(Pupils!$AG$7:$AG$159,MATCH($B122,Pupils!$A$7:$A$159,0)))/SUM(INDEX(Pupils!$AB$7:$AM$159,MATCH($B122,Pupils!$A$7:$A$159,0),0))","v":0.19392243102758897},{"$f":"(SUM(INDEX(Pupils!$AH$7:$AH$159,MATCH($B122,Pupils!$A$7:$A$159,0)),INDEX(Pupils!$AI$7:$AI$159,MATCH($B122,Pupils!$A$7:$A$159,0)),INDEX(Pupils!$AJ$7:$AJ$159,MATCH($B122,Pupils!$A$7:$A$159,0))))/SUM(INDEX(Pupils!$AB$7:$AM$159,MATCH($B122,Pupils!$A$7:$A$159,0),0))","v":4.6381447421031591E-2},{"$f":"SUM(INDEX(Pupils!$AK$7:$AK$159,MATCH($B122,Pupils!$A$7:$A$159,0)))/SUM(INDEX(Pupils!$AB$7:$AM$159,MATCH($B122,Pupils!$A$7:$A$159,0),0))","v":5.117952818872451E-2},{"$f":"SUM(INDEX(Pupils!$AL$7:$AL$159,MATCH($B122,Pupils!$A$7:$A$159,0)))/SUM(INDEX(Pupils!$AB$7:$AM$159,MATCH($B122,Pupils!$A$7:$A$159,0),0))","v":0.1207516993202719},{"$f":"SUM(INDEX(Pupils!$AM$7:$AM$159,MATCH($B122,Pupils!$A$7:$A$159,0)))/SUM(INDEX(Pupils!$AB$7:$AM$159,MATCH($B122,Pupils!$A$7:$A$159,0),0))","v":5.0779688124750103E-2},{"$f":"(SUM(INDEX(Pupils!$BH$7:$BH$159,MATCH($B122,Pupils!$A$7:$A$159,0)),INDEX(Pupils!$BK$7:$BK$159,MATCH($B122,Pupils!$A$7:$A$159,0)),INDEX(Pupils!$BO$7:$BO$159,MATCH($B122,Pupils!$A$7:$A$159,0))))/SUM(INDEX(Pupils!$BH$7:$BS$159,MATCH($B122,Pupils!$A$7:$A$159,0),0))","v":0.47404844290657439},{"$f":"(SUM(INDEX(Pupils!$BL$7:$BL$159,MATCH($B122,Pupils!$A$7:$A$159,0)),INDEX(Pupils!$BM$7:$BM$159,MATCH($B122,Pupils!$A$7:$A$159,0)),INDEX(Pupils!$BP$7:$BP$159,MATCH($B122,Pupils!$A$7:$A$159,0))))/SUM(INDEX(Pupils!$BH$7:$BS$159,MATCH($B122,Pupils!$A$7:$A$159,0),0))","v":0.40311418685121109},{"$f":"(SUM(INDEX(Pupils!$BI$7:$BI$159,MATCH($B122,Pupils!$A$7:$A$159,0)),INDEX(Pupils!$BJ$7:$BJ$159,MATCH($B122,Pupils!$A$7:$A$159,0))))/SUM(INDEX(Pupils!$BH$7:$BS$159,MATCH($B122,Pupils!$A$7:$A$159,0),0))","v":0.10034602076124567},{"$f":"(SUM(INDEX(Pupils!$BQ$7:$BQ$159,MATCH($B122,Pupils!$A$7:$A$159,0)),INDEX(Pupils!$BR$7:$BR$159,MATCH($B122,Pupils!$A$7:$A$159,0)),INDEX(Pupils!$BN$7:$BN$159,MATCH($B122,Pupils!$A$7:$A$159,0)),INDEX(Pupils!$BS$7:$BS$159,MATCH($B122,Pupils!$A$7:$A$159,0))))/SUM(INDEX(Pupils!$BH$7:$BS$159,MATCH($B122,Pupils!$A$7:$A$159,0),0))","v":2.2491349480968859E-2},{"$f":"IFERROR((VLOOKUP(B122,Funding,Funding!$C$2,FALSE)), \"x\")","v":22321100.899999999},{"$f":"IFERROR((AA122/VLOOKUP(B122,Funding,Funding!$D$2,FALSE)), \"x\")","v":0.13208776998860911},{"$f":"IFERROR((AA122/(VLOOKUP(B122,Pupils,Pupils!$M$3,FALSE)+VLOOKUP(B122,Pupils,Pupils!$P$3,FALSE))), \"x\")","v":3841.8418072289155},{"$f":"IFERROR((VLOOKUP(B122,Funding,Funding!$E$2,FALSE)), \"x\")","v":24372637.838236593},{"$f":"IFERROR((AD122/VLOOKUP(B122,Funding,Funding!$F$2,FALSE)), \"x\")","v":0.14062943183099574},{"$f":"IFERROR((AD122/(VLOOKUP(B122,Pupils,Pupils!$R$3,FALSE)+VLOOKUP(B122,Pupils,Pupils!$U$3,FALSE))), \"x\")","v":4275.1513485768446},{"$f":"IFERROR((VLOOKUP(B122,Funding,Funding!$G$2,FALSE)), \"x\")","v":25882871.797704268},{"$f":"IFERROR((AG122/VLOOKUP(B122,Funding,Funding!$H$2,FALSE)), \"x\")","v":0.1476205577054652},{"$f":"IFERROR((AG122/(VLOOKUP(B122,Pupils,Pupils!$W$3,FALSE)+VLOOKUP(B122,Pupils,Pupils!$Z$3,FALSE))), \"x\")","v":4516.2924093010415},{"$f":"IFERROR((VLOOKUP(B122,Funding,Funding!$I$2,FALSE)), \"x\")","v":26061699.180622339},{"$f":"IFERROR((AJ122/VLOOKUP(B122,Funding,Funding!$J$2,FALSE)), \"x\")","v":0.13983698828484076},null,{"$f":"IFERROR((VLOOKUP($B122,Funding,Funding!$EC$2,FALSE)), \"x\")","v":9011149},{"$f":"IFERROR((AM122/VLOOKUP($B122,Funding,Funding!$EU$2,FALSE)), \"x\")","v":5.02856168555047E-2},{"$f":"IFERROR((AM122/(VLOOKUP($B122,Pupils,Pupils!$D$3,FALSE)+VLOOKUP($B122,Pupils,Pupils!$E$3,FALSE))), \"x\")","v":1287.674907116319},{"$f":"IFERROR((VLOOKUP($B122,Funding,Funding!$DA$2,FALSE)), \"x\")","v":10735865.136670001},{"$f":"IFERROR((AP122/VLOOKUP($B122,Funding,Funding!$DT$2,FALSE)), \"x\")","v":6.0198981227200632E-2},{"$f":"IFERROR((AP122/(VLOOKUP($B122,Pupils,Pupils!$G$3,FALSE)+VLOOKUP($B122,Pupils,Pupils!$H$3,FALSE))), \"x\")","v":1701.6746135156127},{"$f":"IFERROR((VLOOKUP($B122,Funding,Funding!$CE$2,FALSE)), \"x\")","v":13509746.67},{"$f":"IFERROR((AS122/VLOOKUP($B122,Funding,Funding!$CR$2,FALSE)), \"x\")","v":7.570360725576103E-2},{"$f":"IFERROR((AS122/(VLOOKUP($B122,Pupils,Pupils!$J$3,FALSE)+VLOOKUP($B122,Pupils,Pupils!$K$3,FALSE))), \"x\")","v":2240.793940952065},{"$f":"IFERROR((VLOOKUP($B122,Funding,Funding!$BM$2,FALSE)), \"x\")","v":17006109.32},{"$f":"IFERROR((AV122/VLOOKUP($B122,Funding,Funding!$BY$2,FALSE)), \"x\")","v":0.10109267700096433},{"$f":"IFERROR((AV122/(VLOOKUP($B122,Pupils,Pupils!$M$3,FALSE)+VLOOKUP($B122,Pupils,Pupils!$P$3,FALSE))), \"x\")","v":2927.0411910499138},{"$f":"IFERROR((VLOOKUP($B122,Funding,Funding!$AQ$2,FALSE)), \"x\")","v":22692609},{"$f":"IFERROR((AY122/VLOOKUP($B122,Funding,Funding!$BE$2,FALSE)), \"x\")","v":0.12717211222031349},{"$f":"IFERROR((AY122/(VLOOKUP($B122,Pupils,Pupils!$R$3,FALSE)+VLOOKUP($B122,Pupils,Pupils!$U$3,FALSE))), \"x\")","v":3980.4611471671637},{"$f":"IFERROR((VLOOKUP($B122,Funding,Funding!$S$2,FALSE)), \"x\")","v":24441718},{"$f":"IFERROR((BB122/VLOOKUP($B122,Funding,Funding!$AH$2,FALSE)), \"x\")","v":0.13629255569746929},{"$f":"IFERROR((BB122/(VLOOKUP(B122,Pupils,Pupils!$W$3,FALSE)+VLOOKUP(B122,Pupils,Pupils!$Z$3,FALSE))), \"x\")","v":4264.8260338509863},{"$f":"IFERROR((VLOOKUP($B122,Funding,Funding!$GX$2,FALSE)), \"x\")","v":22569735},{"$f":"IFERROR((BE122/VLOOKUP($B122,Funding,Funding!$HC$2,FALSE)), \"x\")","v":0.11732015618620203},{"$f":"IFERROR((BE122/(VLOOKUP($B122,Pupils,Pupils!$D$3,FALSE)+VLOOKUP($B122,Pupils,Pupils!$E$3,FALSE))), \"x\")","v":3225.1693340954557},{"$f":"IFERROR((VLOOKUP($B122,Funding,Funding!$GP$2,FALSE)), \"x\")","v":24409258},{"$f":"IFERROR((BH122/VLOOKUP($B122,Funding,Funding!$GU$2,FALSE)), \"x\")","v":0.12772047251251012},{"$f":"IFERROR((BH122/(VLOOKUP($B122,Pupils,Pupils!$G$3,FALSE)+VLOOKUP($B122,Pupils,Pupils!$H$3,FALSE))), \"x\")","v":3868.9583135203679},{"$f":"IFERROR((VLOOKUP($B122,Funding,Funding!$GH$2,FALSE)), \"x\")","v":27742956.949999999},{"$f":"IFERROR((BK122/VLOOKUP($B122,Funding,Funding!$GM$2,FALSE)), \"x\")","v":0.14716154122361619},{"$f":"IFERROR((BK122/(VLOOKUP($B122,Pupils,Pupils!$J$3,FALSE)+VLOOKUP($B122,Pupils,Pupils!$K$3,FALSE))), \"x\")","v":4601.5851633770108},{"$f":"IFERROR((VLOOKUP($B122,Funding,Funding!$FZ$2,FALSE)), \"x\")","v":28100908.439999998},{"$f":"IFERROR((BN122/VLOOKUP($B122,Funding,Funding!$GE$2,FALSE)), \"x\")","v":0.15883529228279133},{"$f":"IFERROR((BN122/(VLOOKUP($B122,Pupils,Pupils!$M$3,FALSE)+VLOOKUP($B122,Pupils,Pupils!$P$3,FALSE))), \"x\")","v":4836.6451703958692},{"$f":"IFERROR((VLOOKUP($B122,Funding,Funding!$FD$2,FALSE)), \"x\")","v":23049778.34},{"$f":"IFERROR((BQ122/VLOOKUP($B122,Funding,Funding!$FR$2,FALSE)), \"x\")","v":0.15897079469443767},{"$f":"IFERROR((BQ122/(VLOOKUP($B122,Pupils,Pupils!$R$3,FALSE)+VLOOKUP($B122,Pupils,Pupils!$U$3,FALSE))), \"x\")","v":4043.1114436063849},{"$f":"(VLOOKUP(B122,Funding,Funding!$HK$2,FALSE)+VLOOKUP(B122,Funding,Funding!$HL$2,FALSE)+VLOOKUP(B122,Funding,Funding!$HM$2,FALSE))/(VLOOKUP(B122,Funding,Funding!$HN$2,FALSE))","v":0.29610389610389609},{"$f":"IFERROR((VLOOKUP(B122,Other_data,Other!$D$3,FALSE)+VLOOKUP(B122,Other_data,Other!$E$3,FALSE)+VLOOKUP(B122,Other_data,Other!$F$3,FALSE)), \"x\")","v":1370},{"$f":"(VLOOKUP(B122,Other_data,Other!$AK$3,FALSE)+VLOOKUP(B122,Other_data,Other!$AL$3,FALSE))/VLOOKUP(B122,Other_data,Other!$AJ$3,FALSE)","v":3.3426853707414828E-2},{"$f":"(VLOOKUP(B122,Other_data,Other!$AR$3,FALSE)+VLOOKUP(B122,Other_data,Other!$AS$3,FALSE))/VLOOKUP(B122,Other_data,Other!$AQ$3,FALSE)","v":4.3495668632161318E-2},{"$f":"VLOOKUP(B122,Other_data,Other!$AP$3,FALSE)/VLOOKUP(B122,Other_data,Other!$AJ$3,FALSE)","v":5.3907815631262521E-3},{"$f":"VLOOKUP(B122,Other_data,Other!$AW$3,FALSE)/VLOOKUP(B122,Other_data,Other!$AQ$3,FALSE)","v":7.9711727451408608E-3}]
[117,393,"South Tyneside",{"$f":"IFERROR((VLOOKUP($B123,Pupils,Pupils!$D$3,FALSE)/VLOOKUP($B123,Pupils,Pupils!$C$3,FALSE)), \"x\")","v":3.1951053704962609E-2},{"$f":"IFERROR((VLOOKUP($B123,Pupils,Pupils!$G$3,FALSE)/VLOOKUP($B123,Pupils,Pupils!$F$3,FALSE)),\"x\")","v":3.1024930747922438E-2},{"$f":"IFERROR((VLOOKUP($B123,Pupils,Pupils!$J$3,FALSE)/VLOOKUP($B123,Pupils,Pupils!$I$3,FALSE)), \"x\")","v":2.9609378620082481E-2},{"$f":"IFERROR((VLOOKUP($B123,Pupils,Pupils!$M$3,FALSE)/VLOOKUP($B123,Pupils,Pupils!$L$3,FALSE)), \"x\")","v":2.8783009640910996E-2},{"$f":"IFERROR((VLOOKUP($B123,Pupils,Pupils!$R$3,FALSE)/VLOOKUP($B123,Pupils,Pupils!$Q$3,FALSE)), \"x\")","v":2.780002827121519E-2},{"$f":"IFERROR((VLOOKUP($B123,Pupils,Pupils!$W$3,FALSE)/VLOOKUP($B123,Pupils,Pupils!$V$3,FALSE)), \"x\")","v":2.9376980935711245E-2},{"$f":"IFERROR(((VLOOKUP($B123,Pupils,Pupils!$D$3,FALSE)+VLOOKUP($B123,Pupils,Pupils!$E$3,FALSE))/VLOOKUP($B123,Pupils,Pupils!$C$3,FALSE)), \"x\")","v":0.22238839791525039},{"$f":"IFERROR(((VLOOKUP($B123,Pupils,Pupils!$G$3,FALSE)+VLOOKUP($B123,Pupils,Pupils!$H$3,FALSE))/VLOOKUP($B123,Pupils,Pupils!$F$3,FALSE)), \"x\")","v":0.23088642659279779},{"$f":"IFERROR(((VLOOKUP($B123,Pupils,Pupils!$J$3,FALSE)+VLOOKUP($B123,Pupils,Pupils!$K$3,FALSE))/VLOOKUP($B123,Pupils,Pupils!$I$3,FALSE)), \"x\")","v":0.22431768685417727},{"$f":"IFERROR(((VLOOKUP($B123,Pupils,Pupils!$M$3,FALSE)+VLOOKUP($B123,Pupils,Pupils!$P$3,FALSE))/VLOOKUP($B123,Pupils,Pupils!$L$3,FALSE)), \"x\")","v":0.22439569652088864},{"$f":"IFERROR(((VLOOKUP($B123,Pupils,Pupils!$R$3,FALSE)+VLOOKUP($B123,Pupils,Pupils!$U$3,FALSE))/VLOOKUP($B123,Pupils,Pupils!$Q$3,FALSE)), \"x\")","v":0.21217547000895254},{"$f":"IFERROR(((VLOOKUP($B123,Pupils,Pupils!$W$3,FALSE)+VLOOKUP($B123,Pupils,Pupils!$Z$3,FALSE))/VLOOKUP($B123,Pupils,Pupils!$V$3,FALSE)), \"x\")","v":0.20913950517999905},{"$f":"(SUM(INDEX(Pupils!$AB$7:$AB$159,MATCH($B123,Pupils!$A$7:$A$159,0)),INDEX(Pupils!$AC$7:$AC$159,MATCH($B123,Pupils!$A$7:$A$159,0)),INDEX(Pupils!$AD$7:$AD$159,MATCH($B123,Pupils!$A$7:$A$159,0)),INDEX(Pupils!$AE$7:$AE$159,MATCH($B123,Pupils!$A$7:$A$159,0))))/SUM(INDEX(Pupils!$AB$7:$AM$159,MATCH($B123,Pupils!$A$7:$A$159,0),0))","v":0.35348407937240423},{"$f":"SUM(INDEX(Pupils!$AF$7:$AF$159,MATCH($B123,Pupils!$A$7:$A$159,0)))/SUM(INDEX(Pupils!$AB$7:$AM$159,MATCH($B123,Pupils!$A$7:$A$159,0),0))","v":0.18504845408398707},{"$f":"SUM(INDEX(Pupils!$AG$7:$AG$159,MATCH($B123,Pupils!$A$7:$A$159,0)))/SUM(INDEX(Pupils!$AB$7:$AM$159,MATCH($B123,Pupils!$A$7:$A$159,0),0))","v":0.20396862021227505},{"$f":"(SUM(INDEX(Pupils!$AH$7:$AH$159,MATCH($B123,Pupils!$A$7:$A$159,0)),INDEX(Pupils!$AI$7:$AI$159,MATCH($B123,Pupils!$A$7:$A$159,0)),INDEX(Pupils!$AJ$7:$AJ$159,MATCH($B123,Pupils!$A$7:$A$159,0))))/SUM(INDEX(Pupils!$AB$7:$AM$159,MATCH($B123,Pupils!$A$7:$A$159,0),0))","v":3.7840332256575911E-2},{"$f":"SUM(INDEX(Pupils!$AK$7:$AK$159,MATCH($B123,Pupils!$A$7:$A$159,0)))/SUM(INDEX(Pupils!$AB$7:$AM$159,MATCH($B123,Pupils!$A$7:$A$159,0),0))","v":4.0147669589293958E-2},{"$f":"SUM(INDEX(Pupils!$AL$7:$AL$159,MATCH($B123,Pupils!$A$7:$A$159,0)))/SUM(INDEX(Pupils!$AB$7:$AM$159,MATCH($B123,Pupils!$A$7:$A$159,0),0))","v":8.8601753576372871E-2},{"$f":"SUM(INDEX(Pupils!$AM$7:$AM$159,MATCH($B123,Pupils!$A$7:$A$159,0)))/SUM(INDEX(Pupils!$AB$7:$AM$159,MATCH($B123,Pupils!$A$7:$A$159,0),0))","v":9.0909090909090912E-2},{"$f":"(SUM(INDEX(Pupils!$BH$7:$BH$159,MATCH($B123,Pupils!$A$7:$A$159,0)),INDEX(Pupils!$BK$7:$BK$159,MATCH($B123,Pupils!$A$7:$A$159,0)),INDEX(Pupils!$BO$7:$BO$159,MATCH($B123,Pupils!$A$7:$A$159,0))))/SUM(INDEX(Pupils!$BH$7:$BS$159,MATCH($B123,Pupils!$A$7:$A$159,0),0))","v":0.21543408360128619},{"$f":"(SUM(INDEX(Pupils!$BL$7:$BL$159,MATCH($B123,Pupils!$A$7:$A$159,0)),INDEX(Pupils!$BM$7:$BM$159,MATCH($B123,Pupils!$A$7:$A$159,0)),INDEX(Pupils!$BP$7:$BP$159,MATCH($B123,Pupils!$A$7:$A$159,0))))/SUM(INDEX(Pupils!$BH$7:$BS$159,MATCH($B123,Pupils!$A$7:$A$159,0),0))","v":0.6463022508038585},{"$f":"(SUM(INDEX(Pupils!$BI$7:$BI$159,MATCH($B123,Pupils!$A$7:$A$159,0)),INDEX(Pupils!$BJ$7:$BJ$159,MATCH($B123,Pupils!$A$7:$A$159,0))))/SUM(INDEX(Pupils!$BH$7:$BS$159,MATCH($B123,Pupils!$A$7:$A$159,0),0))","v":0.13826366559485531},{"$f":"(SUM(INDEX(Pupils!$BQ$7:$BQ$159,MATCH($B123,Pupils!$A$7:$A$159,0)),INDEX(Pupils!$BR$7:$BR$159,MATCH($B123,Pupils!$A$7:$A$159,0)),INDEX(Pupils!$BN$7:$BN$159,MATCH($B123,Pupils!$A$7:$A$159,0)),INDEX(Pupils!$BS$7:$BS$159,MATCH($B123,Pupils!$A$7:$A$159,0))))/SUM(INDEX(Pupils!$BH$7:$BS$159,MATCH($B123,Pupils!$A$7:$A$159,0),0))","v":0},{"$f":"IFERROR((VLOOKUP(B123,Funding,Funding!$C$2,FALSE)), \"x\")","v":14127080.07},{"$f":"IFERROR((AA123/VLOOKUP(B123,Funding,Funding!$D$2,FALSE)), \"x\")","v":0.13159246309524636},{"$f":"IFERROR((AA123/(VLOOKUP(B123,Pupils,Pupils!$M$3,FALSE)+VLOOKUP(B123,Pupils,Pupils!$P$3,FALSE))), \"x\")","v":2932.1461332503113},{"$f":"IFERROR((VLOOKUP(B123,Funding,Funding!$E$2,FALSE)), \"x\")","v":14995690.437043618},{"$f":"IFERROR((AD123/VLOOKUP(B123,Funding,Funding!$F$2,FALSE)), \"x\")","v":0.13750654160573436},{"$f":"IFERROR((AD123/(VLOOKUP(B123,Pupils,Pupils!$R$3,FALSE)+VLOOKUP(B123,Pupils,Pupils!$U$3,FALSE))), \"x\")","v":3330.1555489770417},{"$f":"IFERROR((VLOOKUP(B123,Funding,Funding!$G$2,FALSE)), \"x\")","v":15839242.825972674},{"$f":"IFERROR((AG123/VLOOKUP(B123,Funding,Funding!$H$2,FALSE)), \"x\")","v":0.14380384291887555},{"$f":"IFERROR((AG123/(VLOOKUP(B123,Pupils,Pupils!$W$3,FALSE)+VLOOKUP(B123,Pupils,Pupils!$Z$3,FALSE))), \"x\")","v":3582.7285288334483},{"$f":"IFERROR((VLOOKUP(B123,Funding,Funding!$I$2,FALSE)), \"x\")","v":16169808.598737622},{"$f":"IFERROR((AJ123/VLOOKUP(B123,Funding,Funding!$J$2,FALSE)), \"x\")","v":0.14855402578584467},null,{"$f":"IFERROR((VLOOKUP($B123,Funding,Funding!$EC$2,FALSE)), \"x\")","v":10685094},{"$f":"IFERROR((AM123/VLOOKUP($B123,Funding,Funding!$EU$2,FALSE)), \"x\")","v":9.4826593239373327E-2},{"$f":"IFERROR((AM123/(VLOOKUP($B123,Pupils,Pupils!$D$3,FALSE)+VLOOKUP($B123,Pupils,Pupils!$E$3,FALSE))), \"x\")","v":2177.5206847360914},{"$f":"IFERROR((VLOOKUP($B123,Funding,Funding!$DA$2,FALSE)), \"x\")","v":10467685},{"$f":"IFERROR((AP123/VLOOKUP($B123,Funding,Funding!$DT$2,FALSE)), \"x\")","v":9.185408600430342E-2},{"$f":"IFERROR((AP123/(VLOOKUP($B123,Pupils,Pupils!$G$3,FALSE)+VLOOKUP($B123,Pupils,Pupils!$H$3,FALSE))), \"x\")","v":2093.118376324735},{"$f":"IFERROR((VLOOKUP($B123,Funding,Funding!$CE$2,FALSE)), \"x\")","v":10008498},{"$f":"IFERROR((AS123/VLOOKUP($B123,Funding,Funding!$CR$2,FALSE)), \"x\")","v":9.4428145780405495E-2},{"$f":"IFERROR((AS123/(VLOOKUP($B123,Pupils,Pupils!$J$3,FALSE)+VLOOKUP($B123,Pupils,Pupils!$K$3,FALSE))), \"x\")","v":2067.4443296839495},{"$f":"IFERROR((VLOOKUP($B123,Funding,Funding!$BM$2,FALSE)), \"x\")","v":11516318.91},{"$f":"IFERROR((AV123/VLOOKUP($B123,Funding,Funding!$BY$2,FALSE)), \"x\")","v":0.10234638388934146},{"$f":"IFERROR((AV123/(VLOOKUP($B123,Pupils,Pupils!$M$3,FALSE)+VLOOKUP($B123,Pupils,Pupils!$P$3,FALSE))), \"x\")","v":2390.2695952677459},{"$f":"IFERROR((VLOOKUP($B123,Funding,Funding!$AQ$2,FALSE)), \"x\")","v":13749161},{"$f":"IFERROR((AY123/VLOOKUP($B123,Funding,Funding!$BE$2,FALSE)), \"x\")","v":0.12587164682761162},{"$f":"IFERROR((AY123/(VLOOKUP($B123,Pupils,Pupils!$R$3,FALSE)+VLOOKUP($B123,Pupils,Pupils!$U$3,FALSE))), \"x\")","v":3053.3335554075061},{"$f":"IFERROR((VLOOKUP($B123,Funding,Funding!$S$2,FALSE)), \"x\")","v":14318354},{"$f":"IFERROR((BB123/VLOOKUP($B123,Funding,Funding!$AH$2,FALSE)), \"x\")","v":0.12869745833477858},{"$f":"IFERROR((BB123/(VLOOKUP(B123,Pupils,Pupils!$W$3,FALSE)+VLOOKUP(B123,Pupils,Pupils!$Z$3,FALSE))), \"x\")","v":3238.7138656412576},{"$f":"IFERROR((VLOOKUP($B123,Funding,Funding!$GX$2,FALSE)), \"x\")","v":17480815},{"$f":"IFERROR((BE123/VLOOKUP($B123,Funding,Funding!$HC$2,FALSE)), \"x\")","v":0.14687865892928936},{"$f":"IFERROR((BE123/(VLOOKUP($B123,Pupils,Pupils!$D$3,FALSE)+VLOOKUP($B123,Pupils,Pupils!$E$3,FALSE))), \"x\")","v":3562.4240880374973},{"$f":"IFERROR((VLOOKUP($B123,Funding,Funding!$GP$2,FALSE)), \"x\")","v":17331838},{"$f":"IFERROR((BH123/VLOOKUP($B123,Funding,Funding!$GU$2,FALSE)), \"x\")","v":0.14448460583081529},{"$f":"IFERROR((BH123/(VLOOKUP($B123,Pupils,Pupils!$G$3,FALSE)+VLOOKUP($B123,Pupils,Pupils!$H$3,FALSE))), \"x\")","v":3465.6744651069785},{"$f":"IFERROR((VLOOKUP($B123,Funding,Funding!$GH$2,FALSE)), \"x\")","v":16894543.600000001},{"$f":"IFERROR((BK123/VLOOKUP($B123,Funding,Funding!$GM$2,FALSE)), \"x\")","v":0.14425966338494067},{"$f":"IFERROR((BK123/(VLOOKUP($B123,Pupils,Pupils!$J$3,FALSE)+VLOOKUP($B123,Pupils,Pupils!$K$3,FALSE))), \"x\")","v":3489.887130758108},{"$f":"IFERROR((VLOOKUP($B123,Funding,Funding!$FZ$2,FALSE)), \"x\")","v":17058093.899999999},{"$f":"IFERROR((BN123/VLOOKUP($B123,Funding,Funding!$GE$2,FALSE)), \"x\")","v":0.146363491135032},{"$f":"IFERROR((BN123/(VLOOKUP($B123,Pupils,Pupils!$M$3,FALSE)+VLOOKUP($B123,Pupils,Pupils!$P$3,FALSE))), \"x\")","v":3540.492714819427},{"$f":"IFERROR((VLOOKUP($B123,Funding,Funding!$FD$2,FALSE)), \"x\")","v":13641456},{"$f":"IFERROR((BQ123/VLOOKUP($B123,Funding,Funding!$FR$2,FALSE)), \"x\")","v":0.13601067900889666},{"$f":"IFERROR((BQ123/(VLOOKUP($B123,Pupils,Pupils!$R$3,FALSE)+VLOOKUP($B123,Pupils,Pupils!$U$3,FALSE))), \"x\")","v":3029.415056628914},{"$f":"(VLOOKUP(B123,Funding,Funding!$HK$2,FALSE)+VLOOKUP(B123,Funding,Funding!$HL$2,FALSE)+VLOOKUP(B123,Funding,Funding!$HM$2,FALSE))/(VLOOKUP(B123,Funding,Funding!$HN$2,FALSE))","v":0.21587743732590528},{"$f":"IFERROR((VLOOKUP(B123,Other_data,Other!$D$3,FALSE)+VLOOKUP(B123,Other_data,Other!$E$3,FALSE)+VLOOKUP(B123,Other_data,Other!$F$3,FALSE)), \"x\")","v":960},{"$f":"(VLOOKUP(B123,Other_data,Other!$AK$3,FALSE)+VLOOKUP(B123,Other_data,Other!$AL$3,FALSE))/VLOOKUP(B123,Other_data,Other!$AJ$3,FALSE)","v":4.6562765218733121E-2},{"$f":"(VLOOKUP(B123,Other_data,Other!$AR$3,FALSE)+VLOOKUP(B123,Other_data,Other!$AS$3,FALSE))/VLOOKUP(B123,Other_data,Other!$AQ$3,FALSE)","v":6.1174793609312821E-2},{"$f":"VLOOKUP(B123,Other_data,Other!$AP$3,FALSE)/VLOOKUP(B123,Other_data,Other!$AJ$3,FALSE)","v":6.8667541084792838E-3},{"$f":"VLOOKUP(B123,Other_data,Other!$AW$3,FALSE)/VLOOKUP(B123,Other_data,Other!$AQ$3,FALSE)","v":1.2531923739383501E-2}]
[118,852,"Southampton",{"$f":"IFERROR((VLOOKUP($B124,Pupils,Pupils!$D$3,FALSE)/VLOOKUP($B124,Pupils,Pupils!$C$3,FALSE)), \"x\")","v":2.0571310430378003E-2},{"$f":"IFERROR((VLOOKUP($B124,Pupils,Pupils!$G$3,FALSE)/VLOOKUP($B124,Pupils,Pupils!$F$3,FALSE)),\"x\")","v":2.1722507993882943E-2},{"$f":"IFERROR((VLOOKUP($B124,Pupils,Pupils!$J$3,FALSE)/VLOOKUP($B124,Pupils,Pupils!$I$3,FALSE)), \"x\")","v":2.2319580516075618E-2},{"$f":"IFERROR((VLOOKUP($B124,Pupils,Pupils!$M$3,FALSE)/VLOOKUP($B124,Pupils,Pupils!$L$3,FALSE)), \"x\")","v":2.2877044422439992E-2},{"$f":"IFERROR((VLOOKUP($B124,Pupils,Pupils!$R$3,FALSE)/VLOOKUP($B124,Pupils,Pupils!$Q$3,FALSE)), \"x\")","v":2.2251134240725914E-2},{"$f":"IFERROR((VLOOKUP($B124,Pupils,Pupils!$W$3,FALSE)/VLOOKUP($B124,Pupils,Pupils!$V$3,FALSE)), \"x\")","v":2.325962325962326E-2},{"$f":"IFERROR(((VLOOKUP($B124,Pupils,Pupils!$D$3,FALSE)+VLOOKUP($B124,Pupils,Pupils!$E$3,FALSE))/VLOOKUP($B124,Pupils,Pupils!$C$3,FALSE)), \"x\")","v":0.27928052100203299},{"$f":"IFERROR(((VLOOKUP($B124,Pupils,Pupils!$G$3,FALSE)+VLOOKUP($B124,Pupils,Pupils!$H$3,FALSE))/VLOOKUP($B124,Pupils,Pupils!$F$3,FALSE)), \"x\")","v":0.27714444598915611},{"$f":"IFERROR(((VLOOKUP($B124,Pupils,Pupils!$J$3,FALSE)+VLOOKUP($B124,Pupils,Pupils!$K$3,FALSE))/VLOOKUP($B124,Pupils,Pupils!$I$3,FALSE)), \"x\")","v":0.2514488753967159},{"$f":"IFERROR(((VLOOKUP($B124,Pupils,Pupils!$M$3,FALSE)+VLOOKUP($B124,Pupils,Pupils!$P$3,FALSE))/VLOOKUP($B124,Pupils,Pupils!$L$3,FALSE)), \"x\")","v":0.22730221600027317},{"$f":"IFERROR(((VLOOKUP($B124,Pupils,Pupils!$R$3,FALSE)+VLOOKUP($B124,Pupils,Pupils!$U$3,FALSE))/VLOOKUP($B124,Pupils,Pupils!$Q$3,FALSE)), \"x\")","v":0.21744061916199625},{"$f":"IFERROR(((VLOOKUP($B124,Pupils,Pupils!$W$3,FALSE)+VLOOKUP($B124,Pupils,Pupils!$Z$3,FALSE))/VLOOKUP($B124,Pupils,Pupils!$V$3,FALSE)), \"x\")","v":0.21778869778869778},{"$f":"(SUM(INDEX(Pupils!$AB$7:$AB$159,MATCH($B124,Pupils!$A$7:$A$159,0)),INDEX(Pupils!$AC$7:$AC$159,MATCH($B124,Pupils!$A$7:$A$159,0)),INDEX(Pupils!$AD$7:$AD$159,MATCH($B124,Pupils!$A$7:$A$159,0)),INDEX(Pupils!$AE$7:$AE$159,MATCH($B124,Pupils!$A$7:$A$159,0))))/SUM(INDEX(Pupils!$AB$7:$AM$159,MATCH($B124,Pupils!$A$7:$A$159,0),0))","v":0.31875253138922643},{"$f":"SUM(INDEX(Pupils!$AF$7:$AF$159,MATCH($B124,Pupils!$A$7:$A$159,0)))/SUM(INDEX(Pupils!$AB$7:$AM$159,MATCH($B124,Pupils!$A$7:$A$159,0),0))","v":0.32887808829485621},{"$f":"SUM(INDEX(Pupils!$AG$7:$AG$159,MATCH($B124,Pupils!$A$7:$A$159,0)))/SUM(INDEX(Pupils!$AB$7:$AM$159,MATCH($B124,Pupils!$A$7:$A$159,0),0))","v":0.16605913325232888},{"$f":"(SUM(INDEX(Pupils!$AH$7:$AH$159,MATCH($B124,Pupils!$A$7:$A$159,0)),INDEX(Pupils!$AI$7:$AI$159,MATCH($B124,Pupils!$A$7:$A$159,0)),INDEX(Pupils!$AJ$7:$AJ$159,MATCH($B124,Pupils!$A$7:$A$159,0))))/SUM(INDEX(Pupils!$AB$7:$AM$159,MATCH($B124,Pupils!$A$7:$A$159,0),0))","v":3.4831915755366545E-2},{"$f":"SUM(INDEX(Pupils!$AK$7:$AK$159,MATCH($B124,Pupils!$A$7:$A$159,0)))/SUM(INDEX(Pupils!$AB$7:$AM$159,MATCH($B124,Pupils!$A$7:$A$159,0),0))","v":3.6046982584042125E-2},{"$f":"SUM(INDEX(Pupils!$AL$7:$AL$159,MATCH($B124,Pupils!$A$7:$A$159,0)))/SUM(INDEX(Pupils!$AB$7:$AM$159,MATCH($B124,Pupils!$A$7:$A$159,0),0))","v":7.7359254759011745E-2},{"$f":"SUM(INDEX(Pupils!$AM$7:$AM$159,MATCH($B124,Pupils!$A$7:$A$159,0)))/SUM(INDEX(Pupils!$AB$7:$AM$159,MATCH($B124,Pupils!$A$7:$A$159,0),0))","v":3.8072093965168086E-2},{"$f":"(SUM(INDEX(Pupils!$BH$7:$BH$159,MATCH($B124,Pupils!$A$7:$A$159,0)),INDEX(Pupils!$BK$7:$BK$159,MATCH($B124,Pupils!$A$7:$A$159,0)),INDEX(Pupils!$BO$7:$BO$159,MATCH($B124,Pupils!$A$7:$A$159,0))))/SUM(INDEX(Pupils!$BH$7:$BS$159,MATCH($B124,Pupils!$A$7:$A$159,0),0))","v":0.37571428571428572},{"$f":"(SUM(INDEX(Pupils!$BL$7:$BL$159,MATCH($B124,Pupils!$A$7:$A$159,0)),INDEX(Pupils!$BM$7:$BM$159,MATCH($B124,Pupils!$A$7:$A$159,0)),INDEX(Pupils!$BP$7:$BP$159,MATCH($B124,Pupils!$A$7:$A$159,0))))/SUM(INDEX(Pupils!$BH$7:$BS$159,MATCH($B124,Pupils!$A$7:$A$159,0),0))","v":0.57285714285714284},{"$f":"(SUM(INDEX(Pupils!$BI$7:$BI$159,MATCH($B124,Pupils!$A$7:$A$159,0)),INDEX(Pupils!$BJ$7:$BJ$159,MATCH($B124,Pupils!$A$7:$A$159,0))))/SUM(INDEX(Pupils!$BH$7:$BS$159,MATCH($B124,Pupils!$A$7:$A$159,0),0))","v":3.7142857142857144E-2},{"$f":"(SUM(INDEX(Pupils!$BQ$7:$BQ$159,MATCH($B124,Pupils!$A$7:$A$159,0)),INDEX(Pupils!$BR$7:$BR$159,MATCH($B124,Pupils!$A$7:$A$159,0)),INDEX(Pupils!$BN$7:$BN$159,MATCH($B124,Pupils!$A$7:$A$159,0)),INDEX(Pupils!$BS$7:$BS$159,MATCH($B124,Pupils!$A$7:$A$159,0))))/SUM(INDEX(Pupils!$BH$7:$BS$159,MATCH($B124,Pupils!$A$7:$A$159,0),0))","v":1.4285714285714285E-2},{"$f":"IFERROR((VLOOKUP(B124,Funding,Funding!$C$2,FALSE)), \"x\")","v":16419679.590000002},{"$f":"IFERROR((AA124/VLOOKUP(B124,Funding,Funding!$D$2,FALSE)), \"x\")","v":0.11063619391519473},{"$f":"IFERROR((AA124/(VLOOKUP(B124,Pupils,Pupils!$M$3,FALSE)+VLOOKUP(B124,Pupils,Pupils!$P$3,FALSE))), \"x\")","v":2466.528404686796},{"$f":"IFERROR((VLOOKUP(B124,Funding,Funding!$E$2,FALSE)), \"x\")","v":17105221.28034718},{"$f":"IFERROR((AD124/VLOOKUP(B124,Funding,Funding!$F$2,FALSE)), \"x\")","v":0.10985943319943642},{"$f":"IFERROR((AD124/(VLOOKUP(B124,Pupils,Pupils!$R$3,FALSE)+VLOOKUP(B124,Pupils,Pupils!$U$3,FALSE))), \"x\")","v":2624.3051979667352},{"$f":"IFERROR((VLOOKUP(B124,Funding,Funding!$G$2,FALSE)), \"x\")","v":18107573.548318971},{"$f":"IFERROR((AG124/VLOOKUP(B124,Funding,Funding!$H$2,FALSE)), \"x\")","v":0.1128538191218765},{"$f":"IFERROR((AG124/(VLOOKUP(B124,Pupils,Pupils!$W$3,FALSE)+VLOOKUP(B124,Pupils,Pupils!$Z$3,FALSE))), \"x\")","v":2723.7625674366682},{"$f":"IFERROR((VLOOKUP(B124,Funding,Funding!$I$2,FALSE)), \"x\")","v":18423467.486833554},{"$f":"IFERROR((AJ124/VLOOKUP(B124,Funding,Funding!$J$2,FALSE)), \"x\")","v":0.11486167127086887},null,{"$f":"IFERROR((VLOOKUP($B124,Funding,Funding!$EC$2,FALSE)), \"x\")","v":11641288.390000001},{"$f":"IFERROR((AM124/VLOOKUP($B124,Funding,Funding!$EU$2,FALSE)), \"x\")","v":8.7768308332216549E-2},{"$f":"IFERROR((AM124/(VLOOKUP($B124,Pupils,Pupils!$D$3,FALSE)+VLOOKUP($B124,Pupils,Pupils!$E$3,FALSE))), \"x\")","v":1436.3094867365824},{"$f":"IFERROR((VLOOKUP($B124,Funding,Funding!$DA$2,FALSE)), \"x\")","v":11752680.130589999},{"$f":"IFERROR((AP124/VLOOKUP($B124,Funding,Funding!$DT$2,FALSE)), \"x\")","v":8.5102520971799683E-2},{"$f":"IFERROR((AP124/(VLOOKUP($B124,Pupils,Pupils!$G$3,FALSE)+VLOOKUP($B124,Pupils,Pupils!$H$3,FALSE))), \"x\")","v":1473.8751104326561},{"$f":"IFERROR((VLOOKUP($B124,Funding,Funding!$CE$2,FALSE)), \"x\")","v":12570965},{"$f":"IFERROR((AS124/VLOOKUP($B124,Funding,Funding!$CR$2,FALSE)), \"x\")","v":8.7546896062504889E-2},{"$f":"IFERROR((AS124/(VLOOKUP($B124,Pupils,Pupils!$J$3,FALSE)+VLOOKUP($B124,Pupils,Pupils!$K$3,FALSE))), \"x\")","v":1724.6487858416792},{"$f":"IFERROR((VLOOKUP($B124,Funding,Funding!$BM$2,FALSE)), \"x\")","v":12426764.100000001},{"$f":"IFERROR((AV124/VLOOKUP($B124,Funding,Funding!$BY$2,FALSE)), \"x\")","v":8.788640482820069E-2},{"$f":"IFERROR((AV124/(VLOOKUP($B124,Pupils,Pupils!$M$3,FALSE)+VLOOKUP($B124,Pupils,Pupils!$P$3,FALSE))), \"x\")","v":1866.7213609734117},{"$f":"IFERROR((VLOOKUP($B124,Funding,Funding!$AQ$2,FALSE)), \"x\")","v":17314920},{"$f":"IFERROR((AY124/VLOOKUP($B124,Funding,Funding!$BE$2,FALSE)), \"x\")","v":0.11105700660416706},{"$f":"IFERROR((AY124/(VLOOKUP($B124,Pupils,Pupils!$R$3,FALSE)+VLOOKUP($B124,Pupils,Pupils!$U$3,FALSE))), \"x\")","v":2656.4774470696534},{"$f":"IFERROR((VLOOKUP($B124,Funding,Funding!$S$2,FALSE)), \"x\")","v":17045821},{"$f":"IFERROR((BB124/VLOOKUP($B124,Funding,Funding!$AH$2,FALSE)), \"x\")","v":0.10620826409411424},{"$f":"IFERROR((BB124/(VLOOKUP(B124,Pupils,Pupils!$W$3,FALSE)+VLOOKUP(B124,Pupils,Pupils!$Z$3,FALSE))), \"x\")","v":2564.0524969915764},{"$f":"IFERROR((VLOOKUP($B124,Funding,Funding!$GX$2,FALSE)), \"x\")","v":18425075.13927},{"$f":"IFERROR((BE124/VLOOKUP($B124,Funding,Funding!$HC$2,FALSE)), \"x\")","v":0.12251363964125306},{"$f":"IFERROR((BE124/(VLOOKUP($B124,Pupils,Pupils!$D$3,FALSE)+VLOOKUP($B124,Pupils,Pupils!$E$3,FALSE))), \"x\")","v":2273.2973644996914},{"$f":"IFERROR((VLOOKUP($B124,Funding,Funding!$GP$2,FALSE)), \"x\")","v":19400639.270000003},{"$f":"IFERROR((BH124/VLOOKUP($B124,Funding,Funding!$GU$2,FALSE)), \"x\")","v":0.12127751736358958},{"$f":"IFERROR((BH124/(VLOOKUP($B124,Pupils,Pupils!$G$3,FALSE)+VLOOKUP($B124,Pupils,Pupils!$H$3,FALSE))), \"x\")","v":2432.98711687986},{"$f":"IFERROR((VLOOKUP($B124,Funding,Funding!$GH$2,FALSE)), \"x\")","v":18607186.27},{"$f":"IFERROR((BK124/VLOOKUP($B124,Funding,Funding!$GM$2,FALSE)), \"x\")","v":0.11747680155419665},{"$f":"IFERROR((BK124/(VLOOKUP($B124,Pupils,Pupils!$J$3,FALSE)+VLOOKUP($B124,Pupils,Pupils!$K$3,FALSE))), \"x\")","v":2552.7762752092194},{"$f":"IFERROR((VLOOKUP($B124,Funding,Funding!$FZ$2,FALSE)), \"x\")","v":18254460.5},{"$f":"IFERROR((BN124/VLOOKUP($B124,Funding,Funding!$GE$2,FALSE)), \"x\")","v":0.12735863837949715},{"$f":"IFERROR((BN124/(VLOOKUP($B124,Pupils,Pupils!$M$3,FALSE)+VLOOKUP($B124,Pupils,Pupils!$P$3,FALSE))), \"x\")","v":2742.1451855190026},{"$f":"IFERROR((VLOOKUP($B124,Funding,Funding!$FD$2,FALSE)), \"x\")","v":17556577.5},{"$f":"IFERROR((BQ124/VLOOKUP($B124,Funding,Funding!$FR$2,FALSE)), \"x\")","v":0.14140908848298292},{"$f":"IFERROR((BQ124/(VLOOKUP($B124,Pupils,Pupils!$R$3,FALSE)+VLOOKUP($B124,Pupils,Pupils!$U$3,FALSE))), \"x\")","v":2693.5528536360848},{"$f":"(VLOOKUP(B124,Funding,Funding!$HK$2,FALSE)+VLOOKUP(B124,Funding,Funding!$HL$2,FALSE)+VLOOKUP(B124,Funding,Funding!$HM$2,FALSE))/(VLOOKUP(B124,Funding,Funding!$HN$2,FALSE))","v":0.15231788079470199},{"$f":"IFERROR((VLOOKUP(B124,Other_data,Other!$D$3,FALSE)+VLOOKUP(B124,Other_data,Other!$E$3,FALSE)+VLOOKUP(B124,Other_data,Other!$F$3,FALSE)), \"x\")","v":1370},{"$f":"(VLOOKUP(B124,Other_data,Other!$AK$3,FALSE)+VLOOKUP(B124,Other_data,Other!$AL$3,FALSE))/VLOOKUP(B124,Other_data,Other!$AJ$3,FALSE)","v":4.0181056810205021E-2},{"$f":"(VLOOKUP(B124,Other_data,Other!$AR$3,FALSE)+VLOOKUP(B124,Other_data,Other!$AS$3,FALSE))/VLOOKUP(B124,Other_data,Other!$AQ$3,FALSE)","v":4.7073624616674969E-2},{"$f":"VLOOKUP(B124,Other_data,Other!$AP$3,FALSE)/VLOOKUP(B124,Other_data,Other!$AJ$3,FALSE)","v":7.0195822138309971E-3},{"$f":"VLOOKUP(B124,Other_data,Other!$AW$3,FALSE)/VLOOKUP(B124,Other_data,Other!$AQ$3,FALSE)","v":1.0038529080282023E-2}]
[119,882,"Southend-on-Sea",{"$f":"IFERROR((VLOOKUP($B125,Pupils,Pupils!$D$3,FALSE)/VLOOKUP($B125,Pupils,Pupils!$C$3,FALSE)), \"x\")","v":3.0248226950354611E-2},{"$f":"IFERROR((VLOOKUP($B125,Pupils,Pupils!$G$3,FALSE)/VLOOKUP($B125,Pupils,Pupils!$F$3,FALSE)),\"x\")","v":3.0097844583096993E-2},{"$f":"IFERROR((VLOOKUP($B125,Pupils,Pupils!$J$3,FALSE)/VLOOKUP($B125,Pupils,Pupils!$I$3,FALSE)), \"x\")","v":3.0486081673025293E-2},{"$f":"IFERROR((VLOOKUP($B125,Pupils,Pupils!$M$3,FALSE)/VLOOKUP($B125,Pupils,Pupils!$L$3,FALSE)), \"x\")","v":3.0645048570829548E-2},{"$f":"IFERROR((VLOOKUP($B125,Pupils,Pupils!$R$3,FALSE)/VLOOKUP($B125,Pupils,Pupils!$Q$3,FALSE)), \"x\")","v":3.1821305841924399E-2},{"$f":"IFERROR((VLOOKUP($B125,Pupils,Pupils!$W$3,FALSE)/VLOOKUP($B125,Pupils,Pupils!$V$3,FALSE)), \"x\")","v":3.2474576271186439E-2},{"$f":"IFERROR(((VLOOKUP($B125,Pupils,Pupils!$D$3,FALSE)+VLOOKUP($B125,Pupils,Pupils!$E$3,FALSE))/VLOOKUP($B125,Pupils,Pupils!$C$3,FALSE)), \"x\")","v":0.19046099290780141},{"$f":"IFERROR(((VLOOKUP($B125,Pupils,Pupils!$G$3,FALSE)+VLOOKUP($B125,Pupils,Pupils!$H$3,FALSE))/VLOOKUP($B125,Pupils,Pupils!$F$3,FALSE)), \"x\")","v":0.18391945547362451},{"$f":"IFERROR(((VLOOKUP($B125,Pupils,Pupils!$J$3,FALSE)+VLOOKUP($B125,Pupils,Pupils!$K$3,FALSE))/VLOOKUP($B125,Pupils,Pupils!$I$3,FALSE)), \"x\")","v":0.19259573265507984},{"$f":"IFERROR(((VLOOKUP($B125,Pupils,Pupils!$M$3,FALSE)+VLOOKUP($B125,Pupils,Pupils!$P$3,FALSE))/VLOOKUP($B125,Pupils,Pupils!$L$3,FALSE)), \"x\")","v":0.17978195541267733},{"$f":"IFERROR(((VLOOKUP($B125,Pupils,Pupils!$R$3,FALSE)+VLOOKUP($B125,Pupils,Pupils!$U$3,FALSE))/VLOOKUP($B125,Pupils,Pupils!$Q$3,FALSE)), \"x\")","v":0.17323024054982819},{"$f":"IFERROR(((VLOOKUP($B125,Pupils,Pupils!$W$3,FALSE)+VLOOKUP($B125,Pupils,Pupils!$Z$3,FALSE))/VLOOKUP($B125,Pupils,Pupils!$V$3,FALSE)), \"x\")","v":0.14203389830508475},{"$f":"(SUM(INDEX(Pupils!$AB$7:$AB$159,MATCH($B125,Pupils!$A$7:$A$159,0)),INDEX(Pupils!$AC$7:$AC$159,MATCH($B125,Pupils!$A$7:$A$159,0)),INDEX(Pupils!$AD$7:$AD$159,MATCH($B125,Pupils!$A$7:$A$159,0)),INDEX(Pupils!$AE$7:$AE$159,MATCH($B125,Pupils!$A$7:$A$159,0))))/SUM(INDEX(Pupils!$AB$7:$AM$159,MATCH($B125,Pupils!$A$7:$A$159,0),0))","v":0.51093261936635426},{"$f":"SUM(INDEX(Pupils!$AF$7:$AF$159,MATCH($B125,Pupils!$A$7:$A$159,0)))/SUM(INDEX(Pupils!$AB$7:$AM$159,MATCH($B125,Pupils!$A$7:$A$159,0),0))","v":0.20080321285140562},{"$f":"SUM(INDEX(Pupils!$AG$7:$AG$159,MATCH($B125,Pupils!$A$7:$A$159,0)))/SUM(INDEX(Pupils!$AB$7:$AM$159,MATCH($B125,Pupils!$A$7:$A$159,0),0))","v":0.11869701026327532},{"$f":"(SUM(INDEX(Pupils!$AH$7:$AH$159,MATCH($B125,Pupils!$A$7:$A$159,0)),INDEX(Pupils!$AI$7:$AI$159,MATCH($B125,Pupils!$A$7:$A$159,0)),INDEX(Pupils!$AJ$7:$AJ$159,MATCH($B125,Pupils!$A$7:$A$159,0))))/SUM(INDEX(Pupils!$AB$7:$AM$159,MATCH($B125,Pupils!$A$7:$A$159,0),0))","v":2.1419009370816599E-2},{"$f":"SUM(INDEX(Pupils!$AK$7:$AK$159,MATCH($B125,Pupils!$A$7:$A$159,0)))/SUM(INDEX(Pupils!$AB$7:$AM$159,MATCH($B125,Pupils!$A$7:$A$159,0),0))","v":1.7402945113788489E-2},{"$f":"SUM(INDEX(Pupils!$AL$7:$AL$159,MATCH($B125,Pupils!$A$7:$A$159,0)))/SUM(INDEX(Pupils!$AB$7:$AM$159,MATCH($B125,Pupils!$A$7:$A$159,0),0))","v":0.10486390004462294},{"$f":"SUM(INDEX(Pupils!$AM$7:$AM$159,MATCH($B125,Pupils!$A$7:$A$159,0)))/SUM(INDEX(Pupils!$AB$7:$AM$159,MATCH($B125,Pupils!$A$7:$A$159,0),0))","v":2.5881302989736725E-2},{"$f":"(SUM(INDEX(Pupils!$BH$7:$BH$159,MATCH($B125,Pupils!$A$7:$A$159,0)),INDEX(Pupils!$BK$7:$BK$159,MATCH($B125,Pupils!$A$7:$A$159,0)),INDEX(Pupils!$BO$7:$BO$159,MATCH($B125,Pupils!$A$7:$A$159,0))))/SUM(INDEX(Pupils!$BH$7:$BS$159,MATCH($B125,Pupils!$A$7:$A$159,0),0))","v":0.50269106566200217},{"$f":"(SUM(INDEX(Pupils!$BL$7:$BL$159,MATCH($B125,Pupils!$A$7:$A$159,0)),INDEX(Pupils!$BM$7:$BM$159,MATCH($B125,Pupils!$A$7:$A$159,0)),INDEX(Pupils!$BP$7:$BP$159,MATCH($B125,Pupils!$A$7:$A$159,0))))/SUM(INDEX(Pupils!$BH$7:$BS$159,MATCH($B125,Pupils!$A$7:$A$159,0),0))","v":0.45532831001076424},{"$f":"(SUM(INDEX(Pupils!$BI$7:$BI$159,MATCH($B125,Pupils!$A$7:$A$159,0)),INDEX(Pupils!$BJ$7:$BJ$159,MATCH($B125,Pupils!$A$7:$A$159,0))))/SUM(INDEX(Pupils!$BH$7:$BS$159,MATCH($B125,Pupils!$A$7:$A$159,0),0))","v":3.6598493003229281E-2},{"$f":"(SUM(INDEX(Pupils!$BQ$7:$BQ$159,MATCH($B125,Pupils!$A$7:$A$159,0)),INDEX(Pupils!$BR$7:$BR$159,MATCH($B125,Pupils!$A$7:$A$159,0)),INDEX(Pupils!$BN$7:$BN$159,MATCH($B125,Pupils!$A$7:$A$159,0)),INDEX(Pupils!$BS$7:$BS$159,MATCH($B125,Pupils!$A$7:$A$159,0))))/SUM(INDEX(Pupils!$BH$7:$BS$159,MATCH($B125,Pupils!$A$7:$A$159,0),0))","v":5.3821313240043061E-3},{"$f":"IFERROR((VLOOKUP(B125,Funding,Funding!$C$2,FALSE)), \"x\")","v":15377095.98},{"$f":"IFERROR((AA125/VLOOKUP(B125,Funding,Funding!$D$2,FALSE)), \"x\")","v":0.11861290754304879},{"$f":"IFERROR((AA125/(VLOOKUP(B125,Pupils,Pupils!$M$3,FALSE)+VLOOKUP(B125,Pupils,Pupils!$P$3,FALSE))), \"x\")","v":2988.7455743440232},{"$f":"IFERROR((VLOOKUP(B125,Funding,Funding!$E$2,FALSE)), \"x\")","v":15383621.805823922},{"$f":"IFERROR((AD125/VLOOKUP(B125,Funding,Funding!$F$2,FALSE)), \"x\")","v":0.11555980109176364},{"$f":"IFERROR((AD125/(VLOOKUP(B125,Pupils,Pupils!$R$3,FALSE)+VLOOKUP(B125,Pupils,Pupils!$U$3,FALSE))), \"x\")","v":3051.7004177393219},{"$f":"IFERROR((VLOOKUP(B125,Funding,Funding!$G$2,FALSE)), \"x\")","v":16170228.698096402},{"$f":"IFERROR((AG125/VLOOKUP(B125,Funding,Funding!$H$2,FALSE)), \"x\")","v":0.11868843189630662},{"$f":"IFERROR((AG125/(VLOOKUP(B125,Pupils,Pupils!$W$3,FALSE)+VLOOKUP(B125,Pupils,Pupils!$Z$3,FALSE))), \"x\")","v":3859.2431260373273},{"$f":"IFERROR((VLOOKUP(B125,Funding,Funding!$I$2,FALSE)), \"x\")","v":16420714.760011986},{"$f":"IFERROR((AJ125/VLOOKUP(B125,Funding,Funding!$J$2,FALSE)), \"x\")","v":0.12102531515339023},null,{"$f":"IFERROR((VLOOKUP($B125,Funding,Funding!$EC$2,FALSE)), \"x\")","v":13701502},{"$f":"IFERROR((AM125/VLOOKUP($B125,Funding,Funding!$EU$2,FALSE)), \"x\")","v":0.10179430385711537},{"$f":"IFERROR((AM125/(VLOOKUP($B125,Pupils,Pupils!$D$3,FALSE)+VLOOKUP($B125,Pupils,Pupils!$E$3,FALSE))), \"x\")","v":2551.0150809905044},{"$f":"IFERROR((VLOOKUP($B125,Funding,Funding!$DA$2,FALSE)), \"x\")","v":13895631},{"$f":"IFERROR((AP125/VLOOKUP($B125,Funding,Funding!$DT$2,FALSE)), \"x\")","v":9.861571119443234E-2},{"$f":"IFERROR((AP125/(VLOOKUP($B125,Pupils,Pupils!$G$3,FALSE)+VLOOKUP($B125,Pupils,Pupils!$H$3,FALSE))), \"x\")","v":2678.4176946800308},{"$f":"IFERROR((VLOOKUP($B125,Funding,Funding!$CE$2,FALSE)), \"x\")","v":14422906},{"$f":"IFERROR((AS125/VLOOKUP($B125,Funding,Funding!$CR$2,FALSE)), \"x\")","v":0.11859583263549664},{"$f":"IFERROR((AS125/(VLOOKUP($B125,Pupils,Pupils!$J$3,FALSE)+VLOOKUP($B125,Pupils,Pupils!$K$3,FALSE))), \"x\")","v":2645.4339691856198},{"$f":"IFERROR((VLOOKUP($B125,Funding,Funding!$BM$2,FALSE)), \"x\")","v":13709773.98},{"$f":"IFERROR((AV125/VLOOKUP($B125,Funding,Funding!$BY$2,FALSE)), \"x\")","v":0.13307974489317548},{"$f":"IFERROR((AV125/(VLOOKUP($B125,Pupils,Pupils!$M$3,FALSE)+VLOOKUP($B125,Pupils,Pupils!$P$3,FALSE))), \"x\")","v":2664.6791020408164},{"$f":"IFERROR((VLOOKUP($B125,Funding,Funding!$AQ$2,FALSE)), \"x\")","v":16538497},{"$f":"IFERROR((AY125/VLOOKUP($B125,Funding,Funding!$BE$2,FALSE)), \"x\")","v":0.12288524548164724},{"$f":"IFERROR((AY125/(VLOOKUP($B125,Pupils,Pupils!$R$3,FALSE)+VLOOKUP($B125,Pupils,Pupils!$U$3,FALSE))), \"x\")","v":3280.7968657012498},{"$f":"IFERROR((VLOOKUP($B125,Funding,Funding!$S$2,FALSE)), \"x\")","v":14843685},{"$f":"IFERROR((BB125/VLOOKUP($B125,Funding,Funding!$AH$2,FALSE)), \"x\")","v":0.10599484777273742},{"$f":"IFERROR((BB125/(VLOOKUP(B125,Pupils,Pupils!$W$3,FALSE)+VLOOKUP(B125,Pupils,Pupils!$Z$3,FALSE))), \"x\")","v":3542.645584725537},{"$f":"IFERROR((VLOOKUP($B125,Funding,Funding!$GX$2,FALSE)), \"x\")","v":24999373},{"$f":"IFERROR((BE125/VLOOKUP($B125,Funding,Funding!$HC$2,FALSE)), \"x\")","v":0.17237848173411388},{"$f":"IFERROR((BE125/(VLOOKUP($B125,Pupils,Pupils!$D$3,FALSE)+VLOOKUP($B125,Pupils,Pupils!$E$3,FALSE))), \"x\")","v":4654.5099609011359},{"$f":"IFERROR((VLOOKUP($B125,Funding,Funding!$GP$2,FALSE)), \"x\")","v":25552137},{"$f":"IFERROR((BH125/VLOOKUP($B125,Funding,Funding!$GU$2,FALSE)), \"x\")","v":0.17647478086203422},{"$f":"IFERROR((BH125/(VLOOKUP($B125,Pupils,Pupils!$G$3,FALSE)+VLOOKUP($B125,Pupils,Pupils!$H$3,FALSE))), \"x\")","v":4925.2384348496535},{"$f":"IFERROR((VLOOKUP($B125,Funding,Funding!$GH$2,FALSE)), \"x\")","v":26839738.41},{"$f":"IFERROR((BK125/VLOOKUP($B125,Funding,Funding!$GM$2,FALSE)), \"x\")","v":0.22568545706252963},{"$f":"IFERROR((BK125/(VLOOKUP($B125,Pupils,Pupils!$J$3,FALSE)+VLOOKUP($B125,Pupils,Pupils!$K$3,FALSE))), \"x\")","v":4922.9160693323547},{"$f":"IFERROR((VLOOKUP($B125,Funding,Funding!$FZ$2,FALSE)), \"x\")","v":21413060.469999999},{"$f":"IFERROR((BN125/VLOOKUP($B125,Funding,Funding!$GE$2,FALSE)), \"x\")","v":0.21045275845256092},{"$f":"IFERROR((BN125/(VLOOKUP($B125,Pupils,Pupils!$M$3,FALSE)+VLOOKUP($B125,Pupils,Pupils!$P$3,FALSE))), \"x\")","v":4161.9165150631679},{"$f":"IFERROR((VLOOKUP($B125,Funding,Funding!$FD$2,FALSE)), \"x\")","v":16523423},{"$f":"IFERROR((BQ125/VLOOKUP($B125,Funding,Funding!$FR$2,FALSE)), \"x\")","v":0.16705308562039545},{"$f":"IFERROR((BQ125/(VLOOKUP($B125,Pupils,Pupils!$R$3,FALSE)+VLOOKUP($B125,Pupils,Pupils!$U$3,FALSE))), \"x\")","v":3277.8065859948424},{"$f":"(VLOOKUP(B125,Funding,Funding!$HK$2,FALSE)+VLOOKUP(B125,Funding,Funding!$HL$2,FALSE)+VLOOKUP(B125,Funding,Funding!$HM$2,FALSE))/(VLOOKUP(B125,Funding,Funding!$HN$2,FALSE))","v":0.1414965986394558},{"$f":"IFERROR((VLOOKUP(B125,Other_data,Other!$D$3,FALSE)+VLOOKUP(B125,Other_data,Other!$E$3,FALSE)+VLOOKUP(B125,Other_data,Other!$F$3,FALSE)), \"x\")","v":1040},{"$f":"(VLOOKUP(B125,Other_data,Other!$AK$3,FALSE)+VLOOKUP(B125,Other_data,Other!$AL$3,FALSE))/VLOOKUP(B125,Other_data,Other!$AJ$3,FALSE)","v":3.6588320814150713E-2},{"$f":"(VLOOKUP(B125,Other_data,Other!$AR$3,FALSE)+VLOOKUP(B125,Other_data,Other!$AS$3,FALSE))/VLOOKUP(B125,Other_data,Other!$AQ$3,FALSE)","v":6.1019057852174402E-2},{"$f":"VLOOKUP(B125,Other_data,Other!$AP$3,FALSE)/VLOOKUP(B125,Other_data,Other!$AJ$3,FALSE)","v":6.7845892900411922E-3},{"$f":"VLOOKUP(B125,Other_data,Other!$AW$3,FALSE)/VLOOKUP(B125,Other_data,Other!$AQ$3,FALSE)","v":1.2667533789515354E-2}]
[120,210,"Southwark",{"$f":"IFERROR((VLOOKUP($B126,Pupils,Pupils!$D$3,FALSE)/VLOOKUP($B126,Pupils,Pupils!$C$3,FALSE)), \"x\")","v":3.1576413959085441E-2},{"$f":"IFERROR((VLOOKUP($B126,Pupils,Pupils!$G$3,FALSE)/VLOOKUP($B126,Pupils,Pupils!$F$3,FALSE)),\"x\")","v":3.0045364938365435E-2},{"$f":"IFERROR((VLOOKUP($B126,Pupils,Pupils!$J$3,FALSE)/VLOOKUP($B126,Pupils,Pupils!$I$3,FALSE)), \"x\")","v":2.9292834305059245E-2},{"$f":"IFERROR((VLOOKUP($B126,Pupils,Pupils!$M$3,FALSE)/VLOOKUP($B126,Pupils,Pupils!$L$3,FALSE)), \"x\")","v":2.885214142392583E-2},{"$f":"IFERROR((VLOOKUP($B126,Pupils,Pupils!$R$3,FALSE)/VLOOKUP($B126,Pupils,Pupils!$Q$3,FALSE)), \"x\")","v":2.7471163179160742E-2},{"$f":"IFERROR((VLOOKUP($B126,Pupils,Pupils!$W$3,FALSE)/VLOOKUP($B126,Pupils,Pupils!$V$3,FALSE)), \"x\")","v":2.7551493476389164E-2},{"$f":"IFERROR(((VLOOKUP($B126,Pupils,Pupils!$D$3,FALSE)+VLOOKUP($B126,Pupils,Pupils!$E$3,FALSE))/VLOOKUP($B126,Pupils,Pupils!$C$3,FALSE)), \"x\")","v":0.25290012033694342},{"$f":"IFERROR(((VLOOKUP($B126,Pupils,Pupils!$G$3,FALSE)+VLOOKUP($B126,Pupils,Pupils!$H$3,FALSE))/VLOOKUP($B126,Pupils,Pupils!$F$3,FALSE)), \"x\")","v":0.26287912975322425},{"$f":"IFERROR(((VLOOKUP($B126,Pupils,Pupils!$J$3,FALSE)+VLOOKUP($B126,Pupils,Pupils!$K$3,FALSE))/VLOOKUP($B126,Pupils,Pupils!$I$3,FALSE)), \"x\")","v":0.24548617641527176},{"$f":"IFERROR(((VLOOKUP($B126,Pupils,Pupils!$M$3,FALSE)+VLOOKUP($B126,Pupils,Pupils!$P$3,FALSE))/VLOOKUP($B126,Pupils,Pupils!$L$3,FALSE)), \"x\")","v":0.22691944002398579},{"$f":"IFERROR(((VLOOKUP($B126,Pupils,Pupils!$R$3,FALSE)+VLOOKUP($B126,Pupils,Pupils!$U$3,FALSE))/VLOOKUP($B126,Pupils,Pupils!$Q$3,FALSE)), \"x\")","v":0.21879867271619149},{"$f":"IFERROR(((VLOOKUP($B126,Pupils,Pupils!$W$3,FALSE)+VLOOKUP($B126,Pupils,Pupils!$Z$3,FALSE))/VLOOKUP($B126,Pupils,Pupils!$V$3,FALSE)), \"x\")","v":0.2088659293109919},{"$f":"(SUM(INDEX(Pupils!$AB$7:$AB$159,MATCH($B126,Pupils!$A$7:$A$159,0)),INDEX(Pupils!$AC$7:$AC$159,MATCH($B126,Pupils!$A$7:$A$159,0)),INDEX(Pupils!$AD$7:$AD$159,MATCH($B126,Pupils!$A$7:$A$159,0)),INDEX(Pupils!$AE$7:$AE$159,MATCH($B126,Pupils!$A$7:$A$159,0))))/SUM(INDEX(Pupils!$AB$7:$AM$159,MATCH($B126,Pupils!$A$7:$A$159,0),0))","v":0.28083452648803436},{"$f":"SUM(INDEX(Pupils!$AF$7:$AF$159,MATCH($B126,Pupils!$A$7:$A$159,0)))/SUM(INDEX(Pupils!$AB$7:$AM$159,MATCH($B126,Pupils!$A$7:$A$159,0),0))","v":0.21190427490284311},{"$f":"SUM(INDEX(Pupils!$AG$7:$AG$159,MATCH($B126,Pupils!$A$7:$A$159,0)))/SUM(INDEX(Pupils!$AB$7:$AM$159,MATCH($B126,Pupils!$A$7:$A$159,0),0))","v":0.26631212926978931},{"$f":"(SUM(INDEX(Pupils!$AH$7:$AH$159,MATCH($B126,Pupils!$A$7:$A$159,0)),INDEX(Pupils!$AI$7:$AI$159,MATCH($B126,Pupils!$A$7:$A$159,0)),INDEX(Pupils!$AJ$7:$AJ$159,MATCH($B126,Pupils!$A$7:$A$159,0))))/SUM(INDEX(Pupils!$AB$7:$AM$159,MATCH($B126,Pupils!$A$7:$A$159,0),0))","v":1.7795050112497442E-2},{"$f":"SUM(INDEX(Pupils!$AK$7:$AK$159,MATCH($B126,Pupils!$A$7:$A$159,0)))/SUM(INDEX(Pupils!$AB$7:$AM$159,MATCH($B126,Pupils!$A$7:$A$159,0),0))","v":3.3135610554305583E-2},{"$f":"SUM(INDEX(Pupils!$AL$7:$AL$159,MATCH($B126,Pupils!$A$7:$A$159,0)))/SUM(INDEX(Pupils!$AB$7:$AM$159,MATCH($B126,Pupils!$A$7:$A$159,0),0))","v":0.14767846185313971},{"$f":"SUM(INDEX(Pupils!$AM$7:$AM$159,MATCH($B126,Pupils!$A$7:$A$159,0)))/SUM(INDEX(Pupils!$AB$7:$AM$159,MATCH($B126,Pupils!$A$7:$A$159,0),0))","v":4.2339946819390469E-2},{"$f":"(SUM(INDEX(Pupils!$BH$7:$BH$159,MATCH($B126,Pupils!$A$7:$A$159,0)),INDEX(Pupils!$BK$7:$BK$159,MATCH($B126,Pupils!$A$7:$A$159,0)),INDEX(Pupils!$BO$7:$BO$159,MATCH($B126,Pupils!$A$7:$A$159,0))))/SUM(INDEX(Pupils!$BH$7:$BS$159,MATCH($B126,Pupils!$A$7:$A$159,0),0))","v":0.51090548578982153},{"$f":"(SUM(INDEX(Pupils!$BL$7:$BL$159,MATCH($B126,Pupils!$A$7:$A$159,0)),INDEX(Pupils!$BM$7:$BM$159,MATCH($B126,Pupils!$A$7:$A$159,0)),INDEX(Pupils!$BP$7:$BP$159,MATCH($B126,Pupils!$A$7:$A$159,0))))/SUM(INDEX(Pupils!$BH$7:$BS$159,MATCH($B126,Pupils!$A$7:$A$159,0),0))","v":0.42432253800396563},{"$f":"(SUM(INDEX(Pupils!$BI$7:$BI$159,MATCH($B126,Pupils!$A$7:$A$159,0)),INDEX(Pupils!$BJ$7:$BJ$159,MATCH($B126,Pupils!$A$7:$A$159,0))))/SUM(INDEX(Pupils!$BH$7:$BS$159,MATCH($B126,Pupils!$A$7:$A$159,0),0))","v":4.5604758757435561E-2},{"$f":"(SUM(INDEX(Pupils!$BQ$7:$BQ$159,MATCH($B126,Pupils!$A$7:$A$159,0)),INDEX(Pupils!$BR$7:$BR$159,MATCH($B126,Pupils!$A$7:$A$159,0)),INDEX(Pupils!$BN$7:$BN$159,MATCH($B126,Pupils!$A$7:$A$159,0)),INDEX(Pupils!$BS$7:$BS$159,MATCH($B126,Pupils!$A$7:$A$159,0))))/SUM(INDEX(Pupils!$BH$7:$BS$159,MATCH($B126,Pupils!$A$7:$A$159,0),0))","v":1.9167217448777262E-2},{"$f":"IFERROR((VLOOKUP(B126,Funding,Funding!$C$2,FALSE)), \"x\")","v":34578761},{"$f":"IFERROR((AA126/VLOOKUP(B126,Funding,Funding!$D$2,FALSE)), \"x\")","v":0.15408154804849147},{"$f":"IFERROR((AA126/(VLOOKUP(B126,Pupils,Pupils!$M$3,FALSE)+VLOOKUP(B126,Pupils,Pupils!$P$3,FALSE))), \"x\")","v":3514.4588880983838},{"$f":"IFERROR((VLOOKUP(B126,Funding,Funding!$E$2,FALSE)), \"x\")","v":37732085.742369279},{"$f":"IFERROR((AD126/VLOOKUP(B126,Funding,Funding!$F$2,FALSE)), \"x\")","v":0.15775658483939997},{"$f":"IFERROR((AD126/(VLOOKUP(B126,Pupils,Pupils!$R$3,FALSE)+VLOOKUP(B126,Pupils,Pupils!$U$3,FALSE))), \"x\")","v":3892.7149223531701},{"$f":"IFERROR((VLOOKUP(B126,Funding,Funding!$G$2,FALSE)), \"x\")","v":38469041.369149797},{"$f":"IFERROR((AG126/VLOOKUP(B126,Funding,Funding!$H$2,FALSE)), \"x\")","v":0.15918467434527825},{"$f":"IFERROR((AG126/(VLOOKUP(B126,Pupils,Pupils!$W$3,FALSE)+VLOOKUP(B126,Pupils,Pupils!$Z$3,FALSE))), \"x\")","v":4066.0650427174501},{"$f":"IFERROR((VLOOKUP(B126,Funding,Funding!$I$2,FALSE)), \"x\")","v":38653117.172599517},{"$f":"IFERROR((AJ126/VLOOKUP(B126,Funding,Funding!$J$2,FALSE)), \"x\")","v":0.13388632936013217},null,{"$f":"IFERROR((VLOOKUP($B126,Funding,Funding!$EC$2,FALSE)), \"x\")","v":19034393.399999999},{"$f":"IFERROR((AM126/VLOOKUP($B126,Funding,Funding!$EU$2,FALSE)), \"x\")","v":9.2486852040522705E-2},{"$f":"IFERROR((AM126/(VLOOKUP($B126,Pupils,Pupils!$D$3,FALSE)+VLOOKUP($B126,Pupils,Pupils!$E$3,FALSE))), \"x\")","v":1811.4192424819184},{"$f":"IFERROR((VLOOKUP($B126,Funding,Funding!$DA$2,FALSE)), \"x\")","v":20271803.89373},{"$f":"IFERROR((AP126/VLOOKUP($B126,Funding,Funding!$DT$2,FALSE)), \"x\")","v":9.5569896951486044E-2},{"$f":"IFERROR((AP126/(VLOOKUP($B126,Pupils,Pupils!$G$3,FALSE)+VLOOKUP($B126,Pupils,Pupils!$H$3,FALSE))), \"x\")","v":1831.568837525298},{"$f":"IFERROR((VLOOKUP($B126,Funding,Funding!$CE$2,FALSE)), \"x\")","v":21361496.77},{"$f":"IFERROR((AS126/VLOOKUP($B126,Funding,Funding!$CR$2,FALSE)), \"x\")","v":0.1053032360734656},{"$f":"IFERROR((AS126/(VLOOKUP($B126,Pupils,Pupils!$J$3,FALSE)+VLOOKUP($B126,Pupils,Pupils!$K$3,FALSE))), \"x\")","v":2045.7284782608695},{"$f":"IFERROR((VLOOKUP($B126,Funding,Funding!$BM$2,FALSE)), \"x\")","v":23577385.649999999},{"$f":"IFERROR((AV126/VLOOKUP($B126,Funding,Funding!$BY$2,FALSE)), \"x\")","v":0.11368289117222224},{"$f":"IFERROR((AV126/(VLOOKUP($B126,Pupils,Pupils!$M$3,FALSE)+VLOOKUP($B126,Pupils,Pupils!$P$3,FALSE))), \"x\")","v":2396.3193058237625},{"$f":"IFERROR((VLOOKUP($B126,Funding,Funding!$AQ$2,FALSE)), \"x\")","v":36989565},{"$f":"IFERROR((AY126/VLOOKUP($B126,Funding,Funding!$BE$2,FALSE)), \"x\")","v":0.15417708459675242},{"$f":"IFERROR((AY126/(VLOOKUP($B126,Pupils,Pupils!$R$3,FALSE)+VLOOKUP($B126,Pupils,Pupils!$U$3,FALSE))), \"x\")","v":3816.1111111111113},{"$f":"IFERROR((VLOOKUP($B126,Funding,Funding!$S$2,FALSE)), \"x\")","v":38025630},{"$f":"IFERROR((BB126/VLOOKUP($B126,Funding,Funding!$AH$2,FALSE)), \"x\")","v":0.15591398773117268},{"$f":"IFERROR((BB126/(VLOOKUP(B126,Pupils,Pupils!$W$3,FALSE)+VLOOKUP(B126,Pupils,Pupils!$Z$3,FALSE))), \"x\")","v":4019.1977592220696},{"$f":"IFERROR((VLOOKUP($B126,Funding,Funding!$GX$2,FALSE)), \"x\")","v":33124420.060400002},{"$f":"IFERROR((BE126/VLOOKUP($B126,Funding,Funding!$HC$2,FALSE)), \"x\")","v":0.14863643975212407},{"$f":"IFERROR((BE126/(VLOOKUP($B126,Pupils,Pupils!$D$3,FALSE)+VLOOKUP($B126,Pupils,Pupils!$E$3,FALSE))), \"x\")","v":3152.3049162923489},{"$f":"IFERROR((VLOOKUP($B126,Funding,Funding!$GP$2,FALSE)), \"x\")","v":33116000.429999996},{"$f":"IFERROR((BH126/VLOOKUP($B126,Funding,Funding!$GU$2,FALSE)), \"x\")","v":0.14396402153016186},{"$f":"IFERROR((BH126/(VLOOKUP($B126,Pupils,Pupils!$G$3,FALSE)+VLOOKUP($B126,Pupils,Pupils!$H$3,FALSE))), \"x\")","v":2992.0491895554751},{"$f":"IFERROR((VLOOKUP($B126,Funding,Funding!$GH$2,FALSE)), \"x\")","v":50297537.210000001},{"$f":"IFERROR((BK126/VLOOKUP($B126,Funding,Funding!$GM$2,FALSE)), \"x\")","v":0.12532941318385432},{"$f":"IFERROR((BK126/(VLOOKUP($B126,Pupils,Pupils!$J$3,FALSE)+VLOOKUP($B126,Pupils,Pupils!$K$3,FALSE))), \"x\")","v":4816.8489954031793},{"$f":"IFERROR((VLOOKUP($B126,Funding,Funding!$FZ$2,FALSE)), \"x\")","v":29115408.649999999},{"$f":"IFERROR((BN126/VLOOKUP($B126,Funding,Funding!$GE$2,FALSE)), \"x\")","v":0.13133601543298379},{"$f":"IFERROR((BN126/(VLOOKUP($B126,Pupils,Pupils!$M$3,FALSE)+VLOOKUP($B126,Pupils,Pupils!$P$3,FALSE))), \"x\")","v":2959.1837229393232},{"$f":"IFERROR((VLOOKUP($B126,Funding,Funding!$FD$2,FALSE)), \"x\")","v":61576509},{"$f":"IFERROR((BQ126/VLOOKUP($B126,Funding,Funding!$FR$2,FALSE)), \"x\")","v":0.24567552548707106},{"$f":"IFERROR((BQ126/(VLOOKUP($B126,Pupils,Pupils!$R$3,FALSE)+VLOOKUP($B126,Pupils,Pupils!$U$3,FALSE))), \"x\")","v":6352.67811822965},{"$f":"(VLOOKUP(B126,Funding,Funding!$HK$2,FALSE)+VLOOKUP(B126,Funding,Funding!$HL$2,FALSE)+VLOOKUP(B126,Funding,Funding!$HM$2,FALSE))/(VLOOKUP(B126,Funding,Funding!$HN$2,FALSE))","v":0.27404921700223711},{"$f":"IFERROR((VLOOKUP(B126,Other_data,Other!$D$3,FALSE)+VLOOKUP(B126,Other_data,Other!$E$3,FALSE)+VLOOKUP(B126,Other_data,Other!$F$3,FALSE)), \"x\")","v":1640},{"$f":"(VLOOKUP(B126,Other_data,Other!$AK$3,FALSE)+VLOOKUP(B126,Other_data,Other!$AL$3,FALSE))/VLOOKUP(B126,Other_data,Other!$AJ$3,FALSE)","v":3.9910684129545543E-2},{"$f":"(VLOOKUP(B126,Other_data,Other!$AR$3,FALSE)+VLOOKUP(B126,Other_data,Other!$AS$3,FALSE))/VLOOKUP(B126,Other_data,Other!$AQ$3,FALSE)","v":4.6805819101834283E-2},{"$f":"VLOOKUP(B126,Other_data,Other!$AP$3,FALSE)/VLOOKUP(B126,Other_data,Other!$AJ$3,FALSE)","v":8.1622696738844897E-3},{"$f":"VLOOKUP(B126,Other_data,Other!$AW$3,FALSE)/VLOOKUP(B126,Other_data,Other!$AQ$3,FALSE)","v":1.020267854687457E-2}]
[121,342,"St Helens",{"$f":"IFERROR((VLOOKUP($B127,Pupils,Pupils!$D$3,FALSE)/VLOOKUP($B127,Pupils,Pupils!$C$3,FALSE)), \"x\")","v":2.3036183845042777E-2},{"$f":"IFERROR((VLOOKUP($B127,Pupils,Pupils!$G$3,FALSE)/VLOOKUP($B127,Pupils,Pupils!$F$3,FALSE)),\"x\")","v":2.2520309843189118E-2},{"$f":"IFERROR((VLOOKUP($B127,Pupils,Pupils!$J$3,FALSE)/VLOOKUP($B127,Pupils,Pupils!$I$3,FALSE)), \"x\")","v":2.2334485509173094E-2},{"$f":"IFERROR((VLOOKUP($B127,Pupils,Pupils!$M$3,FALSE)/VLOOKUP($B127,Pupils,Pupils!$L$3,FALSE)), \"x\")","v":2.0920661534943982E-2},{"$f":"IFERROR((VLOOKUP($B127,Pupils,Pupils!$R$3,FALSE)/VLOOKUP($B127,Pupils,Pupils!$Q$3,FALSE)), \"x\")","v":2.0462498098280844E-2},{"$f":"IFERROR((VLOOKUP($B127,Pupils,Pupils!$W$3,FALSE)/VLOOKUP($B127,Pupils,Pupils!$V$3,FALSE)), \"x\")","v":2.118628008338071E-2},{"$f":"IFERROR(((VLOOKUP($B127,Pupils,Pupils!$D$3,FALSE)+VLOOKUP($B127,Pupils,Pupils!$E$3,FALSE))/VLOOKUP($B127,Pupils,Pupils!$C$3,FALSE)), \"x\")","v":0.18636346801970297},{"$f":"IFERROR(((VLOOKUP($B127,Pupils,Pupils!$G$3,FALSE)+VLOOKUP($B127,Pupils,Pupils!$H$3,FALSE))/VLOOKUP($B127,Pupils,Pupils!$F$3,FALSE)), \"x\")","v":0.18344983941054221},{"$f":"IFERROR(((VLOOKUP($B127,Pupils,Pupils!$J$3,FALSE)+VLOOKUP($B127,Pupils,Pupils!$K$3,FALSE))/VLOOKUP($B127,Pupils,Pupils!$I$3,FALSE)), \"x\")","v":0.19724997151213583},{"$f":"IFERROR(((VLOOKUP($B127,Pupils,Pupils!$M$3,FALSE)+VLOOKUP($B127,Pupils,Pupils!$P$3,FALSE))/VLOOKUP($B127,Pupils,Pupils!$L$3,FALSE)), \"x\")","v":0.19400198155628381},{"$f":"IFERROR(((VLOOKUP($B127,Pupils,Pupils!$R$3,FALSE)+VLOOKUP($B127,Pupils,Pupils!$U$3,FALSE))/VLOOKUP($B127,Pupils,Pupils!$Q$3,FALSE)), \"x\")","v":0.18549368629240834},{"$f":"IFERROR(((VLOOKUP($B127,Pupils,Pupils!$W$3,FALSE)+VLOOKUP($B127,Pupils,Pupils!$Z$3,FALSE))/VLOOKUP($B127,Pupils,Pupils!$V$3,FALSE)), \"x\")","v":0.19253363653591055},{"$f":"(SUM(INDEX(Pupils!$AB$7:$AB$159,MATCH($B127,Pupils!$A$7:$A$159,0)),INDEX(Pupils!$AC$7:$AC$159,MATCH($B127,Pupils!$A$7:$A$159,0)),INDEX(Pupils!$AD$7:$AD$159,MATCH($B127,Pupils!$A$7:$A$159,0)),INDEX(Pupils!$AE$7:$AE$159,MATCH($B127,Pupils!$A$7:$A$159,0))))/SUM(INDEX(Pupils!$AB$7:$AM$159,MATCH($B127,Pupils!$A$7:$A$159,0),0))","v":0.33526785714285712},{"$f":"SUM(INDEX(Pupils!$AF$7:$AF$159,MATCH($B127,Pupils!$A$7:$A$159,0)))/SUM(INDEX(Pupils!$AB$7:$AM$159,MATCH($B127,Pupils!$A$7:$A$159,0),0))","v":0.25133928571428571},{"$f":"SUM(INDEX(Pupils!$AG$7:$AG$159,MATCH($B127,Pupils!$A$7:$A$159,0)))/SUM(INDEX(Pupils!$AB$7:$AM$159,MATCH($B127,Pupils!$A$7:$A$159,0),0))","v":0.14017857142857143},{"$f":"(SUM(INDEX(Pupils!$AH$7:$AH$159,MATCH($B127,Pupils!$A$7:$A$159,0)),INDEX(Pupils!$AI$7:$AI$159,MATCH($B127,Pupils!$A$7:$A$159,0)),INDEX(Pupils!$AJ$7:$AJ$159,MATCH($B127,Pupils!$A$7:$A$159,0))))/SUM(INDEX(Pupils!$AB$7:$AM$159,MATCH($B127,Pupils!$A$7:$A$159,0),0))","v":2.1428571428571429E-2},{"$f":"SUM(INDEX(Pupils!$AK$7:$AK$159,MATCH($B127,Pupils!$A$7:$A$159,0)))/SUM(INDEX(Pupils!$AB$7:$AM$159,MATCH($B127,Pupils!$A$7:$A$159,0),0))","v":4.4642857142857144E-2},{"$f":"SUM(INDEX(Pupils!$AL$7:$AL$159,MATCH($B127,Pupils!$A$7:$A$159,0)))/SUM(INDEX(Pupils!$AB$7:$AM$159,MATCH($B127,Pupils!$A$7:$A$159,0),0))","v":0.16607142857142856},{"$f":"SUM(INDEX(Pupils!$AM$7:$AM$159,MATCH($B127,Pupils!$A$7:$A$159,0)))/SUM(INDEX(Pupils!$AB$7:$AM$159,MATCH($B127,Pupils!$A$7:$A$159,0),0))","v":4.1071428571428571E-2},{"$f":"(SUM(INDEX(Pupils!$BH$7:$BH$159,MATCH($B127,Pupils!$A$7:$A$159,0)),INDEX(Pupils!$BK$7:$BK$159,MATCH($B127,Pupils!$A$7:$A$159,0)),INDEX(Pupils!$BO$7:$BO$159,MATCH($B127,Pupils!$A$7:$A$159,0))))/SUM(INDEX(Pupils!$BH$7:$BS$159,MATCH($B127,Pupils!$A$7:$A$159,0),0))","v":0.19006479481641469},{"$f":"(SUM(INDEX(Pupils!$BL$7:$BL$159,MATCH($B127,Pupils!$A$7:$A$159,0)),INDEX(Pupils!$BM$7:$BM$159,MATCH($B127,Pupils!$A$7:$A$159,0)),INDEX(Pupils!$BP$7:$BP$159,MATCH($B127,Pupils!$A$7:$A$159,0))))/SUM(INDEX(Pupils!$BH$7:$BS$159,MATCH($B127,Pupils!$A$7:$A$159,0),0))","v":0.77321814254859611},{"$f":"(SUM(INDEX(Pupils!$BI$7:$BI$159,MATCH($B127,Pupils!$A$7:$A$159,0)),INDEX(Pupils!$BJ$7:$BJ$159,MATCH($B127,Pupils!$A$7:$A$159,0))))/SUM(INDEX(Pupils!$BH$7:$BS$159,MATCH($B127,Pupils!$A$7:$A$159,0),0))","v":0},{"$f":"(SUM(INDEX(Pupils!$BQ$7:$BQ$159,MATCH($B127,Pupils!$A$7:$A$159,0)),INDEX(Pupils!$BR$7:$BR$159,MATCH($B127,Pupils!$A$7:$A$159,0)),INDEX(Pupils!$BN$7:$BN$159,MATCH($B127,Pupils!$A$7:$A$159,0)),INDEX(Pupils!$BS$7:$BS$159,MATCH($B127,Pupils!$A$7:$A$159,0))))/SUM(INDEX(Pupils!$BH$7:$BS$159,MATCH($B127,Pupils!$A$7:$A$159,0),0))","v":3.6717062634989202E-2},{"$f":"IFERROR((VLOOKUP(B127,Funding,Funding!$C$2,FALSE)), \"x\")","v":16730252.050000001},{"$f":"IFERROR((AA127/VLOOKUP(B127,Funding,Funding!$D$2,FALSE)), \"x\")","v":0.13466164223117771},{"$f":"IFERROR((AA127/(VLOOKUP(B127,Pupils,Pupils!$M$3,FALSE)+VLOOKUP(B127,Pupils,Pupils!$P$3,FALSE))), \"x\")","v":3286.240826949519},{"$f":"IFERROR((VLOOKUP(B127,Funding,Funding!$E$2,FALSE)), \"x\")","v":17058078.575507261},{"$f":"IFERROR((AD127/VLOOKUP(B127,Funding,Funding!$F$2,FALSE)), \"x\")","v":0.13426625983421897},{"$f":"IFERROR((AD127/(VLOOKUP(B127,Pupils,Pupils!$R$3,FALSE)+VLOOKUP(B127,Pupils,Pupils!$U$3,FALSE))), \"x\")","v":3497.6581044714499},{"$f":"IFERROR((VLOOKUP(B127,Funding,Funding!$G$2,FALSE)), \"x\")","v":17785827.302515849},{"$f":"IFERROR((AG127/VLOOKUP(B127,Funding,Funding!$H$2,FALSE)), \"x\")","v":0.13823345241728374},{"$f":"IFERROR((AG127/(VLOOKUP(B127,Pupils,Pupils!$W$3,FALSE)+VLOOKUP(B127,Pupils,Pupils!$Z$3,FALSE))), \"x\")","v":3501.1471067944585},{"$f":"IFERROR((VLOOKUP(B127,Funding,Funding!$I$2,FALSE)), \"x\")","v":18108053.85443043},{"$f":"IFERROR((AJ127/VLOOKUP(B127,Funding,Funding!$J$2,FALSE)), \"x\")","v":0.14242833656680481},null,{"$f":"IFERROR((VLOOKUP($B127,Funding,Funding!$EC$2,FALSE)), \"x\")","v":9901865},{"$f":"IFERROR((AM127/VLOOKUP($B127,Funding,Funding!$EU$2,FALSE)), \"x\")","v":7.5871442753541685E-2},{"$f":"IFERROR((AM127/(VLOOKUP($B127,Pupils,Pupils!$D$3,FALSE)+VLOOKUP($B127,Pupils,Pupils!$E$3,FALSE))), \"x\")","v":1967.779213036566},{"$f":"IFERROR((VLOOKUP($B127,Funding,Funding!$DA$2,FALSE)), \"x\")","v":10190923},{"$f":"IFERROR((AP127/VLOOKUP($B127,Funding,Funding!$DT$2,FALSE)), \"x\")","v":7.9231099403212948E-2},{"$f":"IFERROR((AP127/(VLOOKUP($B127,Pupils,Pupils!$G$3,FALSE)+VLOOKUP($B127,Pupils,Pupils!$H$3,FALSE))), \"x\")","v":2099.0572605561279},{"$f":"IFERROR((VLOOKUP($B127,Funding,Funding!$CE$2,FALSE)), \"x\")","v":10134837},{"$f":"IFERROR((AS127/VLOOKUP($B127,Funding,Funding!$CR$2,FALSE)), \"x\")","v":8.1121998923025115E-2},{"$f":"IFERROR((AS127/(VLOOKUP($B127,Pupils,Pupils!$J$3,FALSE)+VLOOKUP($B127,Pupils,Pupils!$K$3,FALSE))), \"x\")","v":1951.6343154246101},{"$f":"IFERROR((VLOOKUP($B127,Funding,Funding!$BM$2,FALSE)), \"x\")","v":10228253.050000001},{"$f":"IFERROR((AV127/VLOOKUP($B127,Funding,Funding!$BY$2,FALSE)), \"x\")","v":8.4308477747491478E-2},{"$f":"IFERROR((AV127/(VLOOKUP($B127,Pupils,Pupils!$M$3,FALSE)+VLOOKUP($B127,Pupils,Pupils!$P$3,FALSE))), \"x\")","v":2009.0852582989592},{"$f":"IFERROR((VLOOKUP($B127,Funding,Funding!$AQ$2,FALSE)), \"x\")","v":16261428},{"$f":"IFERROR((AY127/VLOOKUP($B127,Funding,Funding!$BE$2,FALSE)), \"x\")","v":0.12312655564710827},{"$f":"IFERROR((AY127/(VLOOKUP($B127,Pupils,Pupils!$R$3,FALSE)+VLOOKUP($B127,Pupils,Pupils!$U$3,FALSE))), \"x\")","v":3334.309616567562},{"$f":"IFERROR((VLOOKUP($B127,Funding,Funding!$S$2,FALSE)), \"x\")","v":16720692},{"$f":"IFERROR((BB127/VLOOKUP($B127,Funding,Funding!$AH$2,FALSE)), \"x\")","v":0.12574440785983429},{"$f":"IFERROR((BB127/(VLOOKUP(B127,Pupils,Pupils!$W$3,FALSE)+VLOOKUP(B127,Pupils,Pupils!$Z$3,FALSE))), \"x\")","v":3291.4748031496065},{"$f":"IFERROR((VLOOKUP($B127,Funding,Funding!$GX$2,FALSE)), \"x\")","v":13424726.24},{"$f":"IFERROR((BE127/VLOOKUP($B127,Funding,Funding!$HC$2,FALSE)), \"x\")","v":9.416782136727074E-2},{"$f":"IFERROR((BE127/(VLOOKUP($B127,Pupils,Pupils!$D$3,FALSE)+VLOOKUP($B127,Pupils,Pupils!$E$3,FALSE))), \"x\")","v":2667.8708744038158},{"$f":"IFERROR((VLOOKUP($B127,Funding,Funding!$GP$2,FALSE)), \"x\")","v":13291203.039999999},{"$f":"IFERROR((BH127/VLOOKUP($B127,Funding,Funding!$GU$2,FALSE)), \"x\")","v":9.4764442505509222E-2},{"$f":"IFERROR((BH127/(VLOOKUP($B127,Pupils,Pupils!$G$3,FALSE)+VLOOKUP($B127,Pupils,Pupils!$H$3,FALSE))), \"x\")","v":2737.6319340885684},{"$f":"IFERROR((VLOOKUP($B127,Funding,Funding!$GH$2,FALSE)), \"x\")","v":12839382.470000001},{"$f":"IFERROR((BK127/VLOOKUP($B127,Funding,Funding!$GM$2,FALSE)), \"x\")","v":9.8700887412446564E-2},{"$f":"IFERROR((BK127/(VLOOKUP($B127,Pupils,Pupils!$J$3,FALSE)+VLOOKUP($B127,Pupils,Pupils!$K$3,FALSE))), \"x\")","v":2472.4402984787216},{"$f":"IFERROR((VLOOKUP($B127,Funding,Funding!$FZ$2,FALSE)), \"x\")","v":13748926.050000001},{"$f":"IFERROR((BN127/VLOOKUP($B127,Funding,Funding!$GE$2,FALSE)), \"x\")","v":0.10645589920645751},{"$f":"IFERROR((BN127/(VLOOKUP($B127,Pupils,Pupils!$M$3,FALSE)+VLOOKUP($B127,Pupils,Pupils!$P$3,FALSE))), \"x\")","v":2700.633677077195},{"$f":"IFERROR((VLOOKUP($B127,Funding,Funding!$FD$2,FALSE)), \"x\")","v":16631712},{"$f":"IFERROR((BQ127/VLOOKUP($B127,Funding,Funding!$FR$2,FALSE)), \"x\")","v":0.13874781416477372},{"$f":"IFERROR((BQ127/(VLOOKUP($B127,Pupils,Pupils!$R$3,FALSE)+VLOOKUP($B127,Pupils,Pupils!$U$3,FALSE))), \"x\")","v":3410.2341603444743},{"$f":"(VLOOKUP(B127,Funding,Funding!$HK$2,FALSE)+VLOOKUP(B127,Funding,Funding!$HL$2,FALSE)+VLOOKUP(B127,Funding,Funding!$HM$2,FALSE))/(VLOOKUP(B127,Funding,Funding!$HN$2,FALSE))","v":0.17971530249110321},{"$f":"IFERROR((VLOOKUP(B127,Other_data,Other!$D$3,FALSE)+VLOOKUP(B127,Other_data,Other!$E$3,FALSE)+VLOOKUP(B127,Other_data,Other!$F$3,FALSE)), \"x\")","v":1190},{"$f":"(VLOOKUP(B127,Other_data,Other!$AK$3,FALSE)+VLOOKUP(B127,Other_data,Other!$AL$3,FALSE))/VLOOKUP(B127,Other_data,Other!$AJ$3,FALSE)","v":4.1008276899924756E-2},{"$f":"(VLOOKUP(B127,Other_data,Other!$AR$3,FALSE)+VLOOKUP(B127,Other_data,Other!$AS$3,FALSE))/VLOOKUP(B127,Other_data,Other!$AQ$3,FALSE)","v":6.3028279244495458E-2},{"$f":"VLOOKUP(B127,Other_data,Other!$AP$3,FALSE)/VLOOKUP(B127,Other_data,Other!$AJ$3,FALSE)","v":7.054176072234763E-3},{"$f":"VLOOKUP(B127,Other_data,Other!$AW$3,FALSE)/VLOOKUP(B127,Other_data,Other!$AQ$3,FALSE)","v":1.361786496921632E-2}]
[122,860,"Staffordshire",{"$f":"IFERROR((VLOOKUP($B128,Pupils,Pupils!$D$3,FALSE)/VLOOKUP($B128,Pupils,Pupils!$C$3,FALSE)), \"x\")","v":2.9122607362448039E-2},{"$f":"IFERROR((VLOOKUP($B128,Pupils,Pupils!$G$3,FALSE)/VLOOKUP($B128,Pupils,Pupils!$F$3,FALSE)),\"x\")","v":2.8856790418208586E-2},{"$f":"IFERROR((VLOOKUP($B128,Pupils,Pupils!$J$3,FALSE)/VLOOKUP($B128,Pupils,Pupils!$I$3,FALSE)), \"x\")","v":2.9089977093244911E-2},{"$f":"IFERROR((VLOOKUP($B128,Pupils,Pupils!$M$3,FALSE)/VLOOKUP($B128,Pupils,Pupils!$L$3,FALSE)), \"x\")","v":2.8740354099205775E-2},{"$f":"IFERROR((VLOOKUP($B128,Pupils,Pupils!$R$3,FALSE)/VLOOKUP($B128,Pupils,Pupils!$Q$3,FALSE)), \"x\")","v":2.909503573498165E-2},{"$f":"IFERROR((VLOOKUP($B128,Pupils,Pupils!$W$3,FALSE)/VLOOKUP($B128,Pupils,Pupils!$V$3,FALSE)), \"x\")","v":2.9452032729849881E-2},{"$f":"IFERROR(((VLOOKUP($B128,Pupils,Pupils!$D$3,FALSE)+VLOOKUP($B128,Pupils,Pupils!$E$3,FALSE))/VLOOKUP($B128,Pupils,Pupils!$C$3,FALSE)), \"x\")","v":0.1690612799721814},{"$f":"IFERROR(((VLOOKUP($B128,Pupils,Pupils!$G$3,FALSE)+VLOOKUP($B128,Pupils,Pupils!$H$3,FALSE))/VLOOKUP($B128,Pupils,Pupils!$F$3,FALSE)), \"x\")","v":0.1808682503680713},{"$f":"IFERROR(((VLOOKUP($B128,Pupils,Pupils!$J$3,FALSE)+VLOOKUP($B128,Pupils,Pupils!$K$3,FALSE))/VLOOKUP($B128,Pupils,Pupils!$I$3,FALSE)), \"x\")","v":0.17825620324539063},{"$f":"IFERROR(((VLOOKUP($B128,Pupils,Pupils!$M$3,FALSE)+VLOOKUP($B128,Pupils,Pupils!$P$3,FALSE))/VLOOKUP($B128,Pupils,Pupils!$L$3,FALSE)), \"x\")","v":0.17162856636540846},{"$f":"IFERROR(((VLOOKUP($B128,Pupils,Pupils!$R$3,FALSE)+VLOOKUP($B128,Pupils,Pupils!$U$3,FALSE))/VLOOKUP($B128,Pupils,Pupils!$Q$3,FALSE)), \"x\")","v":0.1677853969480394},{"$f":"IFERROR(((VLOOKUP($B128,Pupils,Pupils!$W$3,FALSE)+VLOOKUP($B128,Pupils,Pupils!$Z$3,FALSE))/VLOOKUP($B128,Pupils,Pupils!$V$3,FALSE)), \"x\")","v":0.16391501836221892},{"$f":"(SUM(INDEX(Pupils!$AB$7:$AB$159,MATCH($B128,Pupils!$A$7:$A$159,0)),INDEX(Pupils!$AC$7:$AC$159,MATCH($B128,Pupils!$A$7:$A$159,0)),INDEX(Pupils!$AD$7:$AD$159,MATCH($B128,Pupils!$A$7:$A$159,0)),INDEX(Pupils!$AE$7:$AE$159,MATCH($B128,Pupils!$A$7:$A$159,0))))/SUM(INDEX(Pupils!$AB$7:$AM$159,MATCH($B128,Pupils!$A$7:$A$159,0),0))","v":0.41732611411911702},{"$f":"SUM(INDEX(Pupils!$AF$7:$AF$159,MATCH($B128,Pupils!$A$7:$A$159,0)))/SUM(INDEX(Pupils!$AB$7:$AM$159,MATCH($B128,Pupils!$A$7:$A$159,0),0))","v":0.16139108704706373},{"$f":"SUM(INDEX(Pupils!$AG$7:$AG$159,MATCH($B128,Pupils!$A$7:$A$159,0)))/SUM(INDEX(Pupils!$AB$7:$AM$159,MATCH($B128,Pupils!$A$7:$A$159,0),0))","v":0.15503956684714701},{"$f":"(SUM(INDEX(Pupils!$AH$7:$AH$159,MATCH($B128,Pupils!$A$7:$A$159,0)),INDEX(Pupils!$AI$7:$AI$159,MATCH($B128,Pupils!$A$7:$A$159,0)),INDEX(Pupils!$AJ$7:$AJ$159,MATCH($B128,Pupils!$A$7:$A$159,0))))/SUM(INDEX(Pupils!$AB$7:$AM$159,MATCH($B128,Pupils!$A$7:$A$159,0),0))","v":3.4881299458558931E-2},{"$f":"SUM(INDEX(Pupils!$AK$7:$AK$159,MATCH($B128,Pupils!$A$7:$A$159,0)))/SUM(INDEX(Pupils!$AB$7:$AM$159,MATCH($B128,Pupils!$A$7:$A$159,0),0))","v":5.1749271137026237E-2},{"$f":"SUM(INDEX(Pupils!$AL$7:$AL$159,MATCH($B128,Pupils!$A$7:$A$159,0)))/SUM(INDEX(Pupils!$AB$7:$AM$159,MATCH($B128,Pupils!$A$7:$A$159,0),0))","v":0.14587671803415245},{"$f":"SUM(INDEX(Pupils!$AM$7:$AM$159,MATCH($B128,Pupils!$A$7:$A$159,0)))/SUM(INDEX(Pupils!$AB$7:$AM$159,MATCH($B128,Pupils!$A$7:$A$159,0),0))","v":3.3735943356934611E-2},{"$f":"(SUM(INDEX(Pupils!$BH$7:$BH$159,MATCH($B128,Pupils!$A$7:$A$159,0)),INDEX(Pupils!$BK$7:$BK$159,MATCH($B128,Pupils!$A$7:$A$159,0)),INDEX(Pupils!$BO$7:$BO$159,MATCH($B128,Pupils!$A$7:$A$159,0))))/SUM(INDEX(Pupils!$BH$7:$BS$159,MATCH($B128,Pupils!$A$7:$A$159,0),0))","v":0.35169111044597429},{"$f":"(SUM(INDEX(Pupils!$BL$7:$BL$159,MATCH($B128,Pupils!$A$7:$A$159,0)),INDEX(Pupils!$BM$7:$BM$159,MATCH($B128,Pupils!$A$7:$A$159,0)),INDEX(Pupils!$BP$7:$BP$159,MATCH($B128,Pupils!$A$7:$A$159,0))))/SUM(INDEX(Pupils!$BH$7:$BS$159,MATCH($B128,Pupils!$A$7:$A$159,0),0))","v":0.62645914396887159},{"$f":"(SUM(INDEX(Pupils!$BI$7:$BI$159,MATCH($B128,Pupils!$A$7:$A$159,0)),INDEX(Pupils!$BJ$7:$BJ$159,MATCH($B128,Pupils!$A$7:$A$159,0))))/SUM(INDEX(Pupils!$BH$7:$BS$159,MATCH($B128,Pupils!$A$7:$A$159,0),0))","v":4.4896737503741391E-3},{"$f":"(SUM(INDEX(Pupils!$BQ$7:$BQ$159,MATCH($B128,Pupils!$A$7:$A$159,0)),INDEX(Pupils!$BR$7:$BR$159,MATCH($B128,Pupils!$A$7:$A$159,0)),INDEX(Pupils!$BN$7:$BN$159,MATCH($B128,Pupils!$A$7:$A$159,0)),INDEX(Pupils!$BS$7:$BS$159,MATCH($B128,Pupils!$A$7:$A$159,0))))/SUM(INDEX(Pupils!$BH$7:$BS$159,MATCH($B128,Pupils!$A$7:$A$159,0),0))","v":1.7360071834780007E-2},{"$f":"IFERROR((VLOOKUP(B128,Funding,Funding!$C$2,FALSE)), \"x\")","v":58212569.200000003},{"$f":"IFERROR((AA128/VLOOKUP(B128,Funding,Funding!$D$2,FALSE)), \"x\")","v":0.10850852019353231},{"$f":"IFERROR((AA128/(VLOOKUP(B128,Pupils,Pupils!$M$3,FALSE)+VLOOKUP(B128,Pupils,Pupils!$P$3,FALSE))), \"x\")","v":2732.0866006476745},{"$f":"IFERROR((VLOOKUP(B128,Funding,Funding!$E$2,FALSE)), \"x\")","v":57482973.184579812},{"$f":"IFERROR((AD128/VLOOKUP(B128,Funding,Funding!$F$2,FALSE)), \"x\")","v":0.10542620626612714},{"$f":"IFERROR((AD128/(VLOOKUP(B128,Pupils,Pupils!$R$3,FALSE)+VLOOKUP(B128,Pupils,Pupils!$U$3,FALSE))), \"x\")","v":2757.3738755974391},{"$f":"IFERROR((VLOOKUP(B128,Funding,Funding!$G$2,FALSE)), \"x\")","v":62193080.147409},{"$f":"IFERROR((AG128/VLOOKUP(B128,Funding,Funding!$H$2,FALSE)), \"x\")","v":0.11291001396371621},{"$f":"IFERROR((AG128/(VLOOKUP(B128,Pupils,Pupils!$W$3,FALSE)+VLOOKUP(B128,Pupils,Pupils!$Z$3,FALSE))), \"x\")","v":3055.7205398422348},{"$f":"IFERROR((VLOOKUP(B128,Funding,Funding!$I$2,FALSE)), \"x\")","v":63165697.390780732},{"$f":"IFERROR((AJ128/VLOOKUP(B128,Funding,Funding!$J$2,FALSE)), \"x\")","v":0.1152080568889348},null,{"$f":"IFERROR((VLOOKUP($B128,Funding,Funding!$EC$2,FALSE)), \"x\")","v":42882020},{"$f":"IFERROR((AM128/VLOOKUP($B128,Funding,Funding!$EU$2,FALSE)), \"x\")","v":7.6139809955392879E-2},{"$f":"IFERROR((AM128/(VLOOKUP($B128,Pupils,Pupils!$D$3,FALSE)+VLOOKUP($B128,Pupils,Pupils!$E$3,FALSE))), \"x\")","v":2004.5820867614061},{"$f":"IFERROR((VLOOKUP($B128,Funding,Funding!$DA$2,FALSE)), \"x\")","v":45203929},{"$f":"IFERROR((AP128/VLOOKUP($B128,Funding,Funding!$DT$2,FALSE)), \"x\")","v":7.754115060811971E-2},{"$f":"IFERROR((AP128/(VLOOKUP($B128,Pupils,Pupils!$G$3,FALSE)+VLOOKUP($B128,Pupils,Pupils!$H$3,FALSE))), \"x\")","v":1988.9967439609275},{"$f":"IFERROR((VLOOKUP($B128,Funding,Funding!$CE$2,FALSE)), \"x\")","v":47405480.600000001},{"$f":"IFERROR((AS128/VLOOKUP($B128,Funding,Funding!$CR$2,FALSE)), \"x\")","v":8.2919563795749412E-2},{"$f":"IFERROR((AS128/(VLOOKUP($B128,Pupils,Pupils!$J$3,FALSE)+VLOOKUP($B128,Pupils,Pupils!$K$3,FALSE))), \"x\")","v":2130.0090132997843},{"$f":"IFERROR((VLOOKUP($B128,Funding,Funding!$BM$2,FALSE)), \"x\")","v":49030266.399999999},{"$f":"IFERROR((AV128/VLOOKUP($B128,Funding,Funding!$BY$2,FALSE)), \"x\")","v":9.2733211671527233E-2},{"$f":"IFERROR((AV128/(VLOOKUP($B128,Pupils,Pupils!$M$3,FALSE)+VLOOKUP($B128,Pupils,Pupils!$P$3,FALSE))), \"x\")","v":2301.1342000281597},{"$f":"IFERROR((VLOOKUP($B128,Funding,Funding!$AQ$2,FALSE)), \"x\")","v":63488425},{"$f":"IFERROR((AY128/VLOOKUP($B128,Funding,Funding!$BE$2,FALSE)), \"x\")","v":0.11080647156564545},{"$f":"IFERROR((AY128/(VLOOKUP($B128,Pupils,Pupils!$R$3,FALSE)+VLOOKUP($B128,Pupils,Pupils!$U$3,FALSE))), \"x\")","v":3045.4465870389026},{"$f":"IFERROR((VLOOKUP($B128,Funding,Funding!$S$2,FALSE)), \"x\")","v":62679537},{"$f":"IFERROR((BB128/VLOOKUP($B128,Funding,Funding!$AH$2,FALSE)), \"x\")","v":0.1093055501684216},{"$f":"IFERROR((BB128/(VLOOKUP(B128,Pupils,Pupils!$W$3,FALSE)+VLOOKUP(B128,Pupils,Pupils!$Z$3,FALSE))), \"x\")","v":3079.6215299955779},{"$f":"IFERROR((VLOOKUP($B128,Funding,Funding!$GX$2,FALSE)), \"x\")","v":66345984},{"$f":"IFERROR((BE128/VLOOKUP($B128,Funding,Funding!$HC$2,FALSE)), \"x\")","v":0.11132882142003449},{"$f":"IFERROR((BE128/(VLOOKUP($B128,Pupils,Pupils!$D$3,FALSE)+VLOOKUP($B128,Pupils,Pupils!$E$3,FALSE))), \"x\")","v":3101.43904263276},{"$f":"IFERROR((VLOOKUP($B128,Funding,Funding!$GP$2,FALSE)), \"x\")","v":70869691.719999999},{"$f":"IFERROR((BH128/VLOOKUP($B128,Funding,Funding!$GU$2,FALSE)), \"x\")","v":0.11721921846701366},{"$f":"IFERROR((BH128/(VLOOKUP($B128,Pupils,Pupils!$G$3,FALSE)+VLOOKUP($B128,Pupils,Pupils!$H$3,FALSE))), \"x\")","v":3118.3038553262641},{"$f":"IFERROR((VLOOKUP($B128,Funding,Funding!$GH$2,FALSE)), \"x\")","v":70174418.210000008},{"$f":"IFERROR((BK128/VLOOKUP($B128,Funding,Funding!$GM$2,FALSE)), \"x\")","v":0.12422301966533163},{"$f":"IFERROR((BK128/(VLOOKUP($B128,Pupils,Pupils!$J$3,FALSE)+VLOOKUP($B128,Pupils,Pupils!$K$3,FALSE))), \"x\")","v":3153.0561740654211},{"$f":"IFERROR((VLOOKUP($B128,Funding,Funding!$FZ$2,FALSE)), \"x\")","v":72425097.569999993},{"$f":"IFERROR((BN128/VLOOKUP($B128,Funding,Funding!$GE$2,FALSE)), \"x\")","v":0.13272831366125049},{"$f":"IFERROR((BN128/(VLOOKUP($B128,Pupils,Pupils!$M$3,FALSE)+VLOOKUP($B128,Pupils,Pupils!$P$3,FALSE))), \"x\")","v":3399.1222401088839},{"$f":"IFERROR((VLOOKUP($B128,Funding,Funding!$FD$2,FALSE)), \"x\")","v":65520494.649999999},{"$f":"IFERROR((BQ128/VLOOKUP($B128,Funding,Funding!$FR$2,FALSE)), \"x\")","v":0.13637869847031139},{"$f":"IFERROR((BQ128/(VLOOKUP($B128,Pupils,Pupils!$R$3,FALSE)+VLOOKUP($B128,Pupils,Pupils!$U$3,FALSE))), \"x\")","v":3142.9219863769367},{"$f":"(VLOOKUP(B128,Funding,Funding!$HK$2,FALSE)+VLOOKUP(B128,Funding,Funding!$HL$2,FALSE)+VLOOKUP(B128,Funding,Funding!$HM$2,FALSE))/(VLOOKUP(B128,Funding,Funding!$HN$2,FALSE))","v":0.19266055045871561},{"$f":"IFERROR((VLOOKUP(B128,Other_data,Other!$D$3,FALSE)+VLOOKUP(B128,Other_data,Other!$E$3,FALSE)+VLOOKUP(B128,Other_data,Other!$F$3,FALSE)), \"x\")","v":4580},{"$f":"(VLOOKUP(B128,Other_data,Other!$AK$3,FALSE)+VLOOKUP(B128,Other_data,Other!$AL$3,FALSE))/VLOOKUP(B128,Other_data,Other!$AJ$3,FALSE)","v":3.7621448365663918E-2},{"$f":"(VLOOKUP(B128,Other_data,Other!$AR$3,FALSE)+VLOOKUP(B128,Other_data,Other!$AS$3,FALSE))/VLOOKUP(B128,Other_data,Other!$AQ$3,FALSE)","v":5.1980903114068569E-2},{"$f":"VLOOKUP(B128,Other_data,Other!$AP$3,FALSE)/VLOOKUP(B128,Other_data,Other!$AJ$3,FALSE)","v":5.4689325898968312E-3},{"$f":"VLOOKUP(B128,Other_data,Other!$AW$3,FALSE)/VLOOKUP(B128,Other_data,Other!$AQ$3,FALSE)","v":9.7991180793728563E-3}]
[123,356,"Stockport",{"$f":"IFERROR((VLOOKUP($B129,Pupils,Pupils!$D$3,FALSE)/VLOOKUP($B129,Pupils,Pupils!$C$3,FALSE)), \"x\")","v":3.6324144464727225E-2},{"$f":"IFERROR((VLOOKUP($B129,Pupils,Pupils!$G$3,FALSE)/VLOOKUP($B129,Pupils,Pupils!$F$3,FALSE)),\"x\")","v":3.3419977720014857E-2},{"$f":"IFERROR((VLOOKUP($B129,Pupils,Pupils!$J$3,FALSE)/VLOOKUP($B129,Pupils,Pupils!$I$3,FALSE)), \"x\")","v":3.5021613999398966E-2},{"$f":"IFERROR((VLOOKUP($B129,Pupils,Pupils!$M$3,FALSE)/VLOOKUP($B129,Pupils,Pupils!$L$3,FALSE)), \"x\")","v":3.5093783123646249E-2},{"$f":"IFERROR((VLOOKUP($B129,Pupils,Pupils!$R$3,FALSE)/VLOOKUP($B129,Pupils,Pupils!$Q$3,FALSE)), \"x\")","v":3.6439747460883888E-2},{"$f":"IFERROR((VLOOKUP($B129,Pupils,Pupils!$W$3,FALSE)/VLOOKUP($B129,Pupils,Pupils!$V$3,FALSE)), \"x\")","v":3.6132790279642314E-2},{"$f":"IFERROR(((VLOOKUP($B129,Pupils,Pupils!$D$3,FALSE)+VLOOKUP($B129,Pupils,Pupils!$E$3,FALSE))/VLOOKUP($B129,Pupils,Pupils!$C$3,FALSE)), \"x\")","v":0.19058622362917949},{"$f":"IFERROR(((VLOOKUP($B129,Pupils,Pupils!$G$3,FALSE)+VLOOKUP($B129,Pupils,Pupils!$H$3,FALSE))/VLOOKUP($B129,Pupils,Pupils!$F$3,FALSE)), \"x\")","v":0.1936734125510583},{"$f":"IFERROR(((VLOOKUP($B129,Pupils,Pupils!$J$3,FALSE)+VLOOKUP($B129,Pupils,Pupils!$K$3,FALSE))/VLOOKUP($B129,Pupils,Pupils!$I$3,FALSE)), \"x\")","v":0.19484962666728312},{"$f":"IFERROR(((VLOOKUP($B129,Pupils,Pupils!$M$3,FALSE)+VLOOKUP($B129,Pupils,Pupils!$P$3,FALSE))/VLOOKUP($B129,Pupils,Pupils!$L$3,FALSE)), \"x\")","v":0.19546983731969214},{"$f":"IFERROR(((VLOOKUP($B129,Pupils,Pupils!$R$3,FALSE)+VLOOKUP($B129,Pupils,Pupils!$U$3,FALSE))/VLOOKUP($B129,Pupils,Pupils!$Q$3,FALSE)), \"x\")","v":0.18711684509104218},{"$f":"IFERROR(((VLOOKUP($B129,Pupils,Pupils!$W$3,FALSE)+VLOOKUP($B129,Pupils,Pupils!$Z$3,FALSE))/VLOOKUP($B129,Pupils,Pupils!$V$3,FALSE)), \"x\")","v":0.18928758333522946},{"$f":"(SUM(INDEX(Pupils!$AB$7:$AB$159,MATCH($B129,Pupils!$A$7:$A$159,0)),INDEX(Pupils!$AC$7:$AC$159,MATCH($B129,Pupils!$A$7:$A$159,0)),INDEX(Pupils!$AD$7:$AD$159,MATCH($B129,Pupils!$A$7:$A$159,0)),INDEX(Pupils!$AE$7:$AE$159,MATCH($B129,Pupils!$A$7:$A$159,0))))/SUM(INDEX(Pupils!$AB$7:$AM$159,MATCH($B129,Pupils!$A$7:$A$159,0),0))","v":0.35794061563606644},{"$f":"SUM(INDEX(Pupils!$AF$7:$AF$159,MATCH($B129,Pupils!$A$7:$A$159,0)))/SUM(INDEX(Pupils!$AB$7:$AM$159,MATCH($B129,Pupils!$A$7:$A$159,0),0))","v":0.26940888041405614},{"$f":"SUM(INDEX(Pupils!$AG$7:$AG$159,MATCH($B129,Pupils!$A$7:$A$159,0)))/SUM(INDEX(Pupils!$AB$7:$AM$159,MATCH($B129,Pupils!$A$7:$A$159,0),0))","v":0.13865431762462543},{"$f":"(SUM(INDEX(Pupils!$AH$7:$AH$159,MATCH($B129,Pupils!$A$7:$A$159,0)),INDEX(Pupils!$AI$7:$AI$159,MATCH($B129,Pupils!$A$7:$A$159,0)),INDEX(Pupils!$AJ$7:$AJ$159,MATCH($B129,Pupils!$A$7:$A$159,0))))/SUM(INDEX(Pupils!$AB$7:$AM$159,MATCH($B129,Pupils!$A$7:$A$159,0),0))","v":2.969218196676655E-2},{"$f":"SUM(INDEX(Pupils!$AK$7:$AK$159,MATCH($B129,Pupils!$A$7:$A$159,0)))/SUM(INDEX(Pupils!$AB$7:$AM$159,MATCH($B129,Pupils!$A$7:$A$159,0),0))","v":2.8330155271043312E-2},{"$f":"SUM(INDEX(Pupils!$AL$7:$AL$159,MATCH($B129,Pupils!$A$7:$A$159,0)))/SUM(INDEX(Pupils!$AB$7:$AM$159,MATCH($B129,Pupils!$A$7:$A$159,0),0))","v":0.11032416235358213},{"$f":"SUM(INDEX(Pupils!$AM$7:$AM$159,MATCH($B129,Pupils!$A$7:$A$159,0)))/SUM(INDEX(Pupils!$AB$7:$AM$159,MATCH($B129,Pupils!$A$7:$A$159,0),0))","v":6.5649686733859985E-2},{"$f":"(SUM(INDEX(Pupils!$BH$7:$BH$159,MATCH($B129,Pupils!$A$7:$A$159,0)),INDEX(Pupils!$BK$7:$BK$159,MATCH($B129,Pupils!$A$7:$A$159,0)),INDEX(Pupils!$BO$7:$BO$159,MATCH($B129,Pupils!$A$7:$A$159,0))))/SUM(INDEX(Pupils!$BH$7:$BS$159,MATCH($B129,Pupils!$A$7:$A$159,0),0))","v":0.52860096485182628},{"$f":"(SUM(INDEX(Pupils!$BL$7:$BL$159,MATCH($B129,Pupils!$A$7:$A$159,0)),INDEX(Pupils!$BM$7:$BM$159,MATCH($B129,Pupils!$A$7:$A$159,0)),INDEX(Pupils!$BP$7:$BP$159,MATCH($B129,Pupils!$A$7:$A$159,0))))/SUM(INDEX(Pupils!$BH$7:$BS$159,MATCH($B129,Pupils!$A$7:$A$159,0),0))","v":0.35492763611302552},{"$f":"(SUM(INDEX(Pupils!$BI$7:$BI$159,MATCH($B129,Pupils!$A$7:$A$159,0)),INDEX(Pupils!$BJ$7:$BJ$159,MATCH($B129,Pupils!$A$7:$A$159,0))))/SUM(INDEX(Pupils!$BH$7:$BS$159,MATCH($B129,Pupils!$A$7:$A$159,0),0))","v":7.649896623018608E-2},{"$f":"(SUM(INDEX(Pupils!$BQ$7:$BQ$159,MATCH($B129,Pupils!$A$7:$A$159,0)),INDEX(Pupils!$BR$7:$BR$159,MATCH($B129,Pupils!$A$7:$A$159,0)),INDEX(Pupils!$BN$7:$BN$159,MATCH($B129,Pupils!$A$7:$A$159,0)),INDEX(Pupils!$BS$7:$BS$159,MATCH($B129,Pupils!$A$7:$A$159,0))))/SUM(INDEX(Pupils!$BH$7:$BS$159,MATCH($B129,Pupils!$A$7:$A$159,0),0))","v":3.9972432804962092E-2},{"$f":"IFERROR((VLOOKUP(B129,Funding,Funding!$C$2,FALSE)), \"x\")","v":24725245.840000007},{"$f":"IFERROR((AA129/VLOOKUP(B129,Funding,Funding!$D$2,FALSE)), \"x\")","v":0.13493068539550052},{"$f":"IFERROR((AA129/(VLOOKUP(B129,Pupils,Pupils!$M$3,FALSE)+VLOOKUP(B129,Pupils,Pupils!$P$3,FALSE))), \"x\")","v":2914.6818153954978},{"$f":"IFERROR((VLOOKUP(B129,Funding,Funding!$E$2,FALSE)), \"x\")","v":25821751.479298498},{"$f":"IFERROR((AD129/VLOOKUP(B129,Funding,Funding!$F$2,FALSE)), \"x\")","v":0.13740579861712085},{"$f":"IFERROR((AD129/(VLOOKUP(B129,Pupils,Pupils!$R$3,FALSE)+VLOOKUP(B129,Pupils,Pupils!$U$3,FALSE))), \"x\")","v":3156.6933348775669},{"$f":"IFERROR((VLOOKUP(B129,Funding,Funding!$G$2,FALSE)), \"x\")","v":27135500.455200214},{"$f":"IFERROR((AG129/VLOOKUP(B129,Funding,Funding!$H$2,FALSE)), \"x\")","v":0.14150337312498248},{"$f":"IFERROR((AG129/(VLOOKUP(B129,Pupils,Pupils!$W$3,FALSE)+VLOOKUP(B129,Pupils,Pupils!$Z$3,FALSE))), \"x\")","v":3261.870471835583},{"$f":"IFERROR((VLOOKUP(B129,Funding,Funding!$I$2,FALSE)), \"x\")","v":27504381.59179429},{"$f":"IFERROR((AJ129/VLOOKUP(B129,Funding,Funding!$J$2,FALSE)), \"x\")","v":0.14131770141908814},null,{"$f":"IFERROR((VLOOKUP($B129,Funding,Funding!$EC$2,FALSE)), \"x\")","v":14350224},{"$f":"IFERROR((AM129/VLOOKUP($B129,Funding,Funding!$EU$2,FALSE)), \"x\")","v":8.4328575496914651E-2},{"$f":"IFERROR((AM129/(VLOOKUP($B129,Pupils,Pupils!$D$3,FALSE)+VLOOKUP($B129,Pupils,Pupils!$E$3,FALSE))), \"x\")","v":1739.8428709990301},{"$f":"IFERROR((VLOOKUP($B129,Funding,Funding!$DA$2,FALSE)), \"x\")","v":15889725.276509998},{"$f":"IFERROR((AP129/VLOOKUP($B129,Funding,Funding!$DT$2,FALSE)), \"x\")","v":8.7161084879177994E-2},{"$f":"IFERROR((AP129/(VLOOKUP($B129,Pupils,Pupils!$G$3,FALSE)+VLOOKUP($B129,Pupils,Pupils!$H$3,FALSE))), \"x\")","v":1904.1012913732773},{"$f":"IFERROR((VLOOKUP($B129,Funding,Funding!$CE$2,FALSE)), \"x\")","v":17198144.026460003},{"$f":"IFERROR((AS129/VLOOKUP($B129,Funding,Funding!$CR$2,FALSE)), \"x\")","v":9.2643060720423914E-2},{"$f":"IFERROR((AS129/(VLOOKUP($B129,Pupils,Pupils!$J$3,FALSE)+VLOOKUP($B129,Pupils,Pupils!$K$3,FALSE))), \"x\")","v":2040.3540190366596},{"$f":"IFERROR((VLOOKUP($B129,Funding,Funding!$BM$2,FALSE)), \"x\")","v":16728465.23},{"$f":"IFERROR((AV129/VLOOKUP($B129,Funding,Funding!$BY$2,FALSE)), \"x\")","v":9.8628701465196367E-2},{"$f":"IFERROR((AV129/(VLOOKUP($B129,Pupils,Pupils!$M$3,FALSE)+VLOOKUP($B129,Pupils,Pupils!$P$3,FALSE))), \"x\")","v":1971.9987304019805},{"$f":"IFERROR((VLOOKUP($B129,Funding,Funding!$AQ$2,FALSE)), \"x\")","v":22026770},{"$f":"IFERROR((AY129/VLOOKUP($B129,Funding,Funding!$BE$2,FALSE)), \"x\")","v":0.11706199066580976},{"$f":"IFERROR((AY129/(VLOOKUP($B129,Pupils,Pupils!$R$3,FALSE)+VLOOKUP($B129,Pupils,Pupils!$U$3,FALSE))), \"x\")","v":2692.7591687041563},{"$f":"IFERROR((VLOOKUP($B129,Funding,Funding!$S$2,FALSE)), \"x\")","v":22384260},{"$f":"IFERROR((BB129/VLOOKUP($B129,Funding,Funding!$AH$2,FALSE)), \"x\")","v":0.11682503005232102},{"$f":"IFERROR((BB129/(VLOOKUP(B129,Pupils,Pupils!$W$3,FALSE)+VLOOKUP(B129,Pupils,Pupils!$Z$3,FALSE))), \"x\")","v":2690.739271547061},{"$f":"IFERROR((VLOOKUP($B129,Funding,Funding!$GX$2,FALSE)), \"x\")","v":22297556.380000003},{"$f":"IFERROR((BE129/VLOOKUP($B129,Funding,Funding!$HC$2,FALSE)), \"x\")","v":0.11665357279945066},{"$f":"IFERROR((BE129/(VLOOKUP($B129,Pupils,Pupils!$D$3,FALSE)+VLOOKUP($B129,Pupils,Pupils!$E$3,FALSE))), \"x\")","v":2703.3894738118333},{"$f":"IFERROR((VLOOKUP($B129,Funding,Funding!$GP$2,FALSE)), \"x\")","v":25064872.419999998},{"$f":"IFERROR((BH129/VLOOKUP($B129,Funding,Funding!$GU$2,FALSE)), \"x\")","v":0.13015927017488599},{"$f":"IFERROR((BH129/(VLOOKUP($B129,Pupils,Pupils!$G$3,FALSE)+VLOOKUP($B129,Pupils,Pupils!$H$3,FALSE))), \"x\")","v":3003.5796788496104},{"$f":"IFERROR((VLOOKUP($B129,Funding,Funding!$GH$2,FALSE)), \"x\")","v":25018764.990000002},{"$f":"IFERROR((BK129/VLOOKUP($B129,Funding,Funding!$GM$2,FALSE)), \"x\")","v":0.12628750518343174},{"$f":"IFERROR((BK129/(VLOOKUP($B129,Pupils,Pupils!$J$3,FALSE)+VLOOKUP($B129,Pupils,Pupils!$K$3,FALSE))), \"x\")","v":2968.1771254004038},{"$f":"IFERROR((VLOOKUP($B129,Funding,Funding!$FZ$2,FALSE)), \"x\")","v":22357113.940000001},{"$f":"IFERROR((BN129/VLOOKUP($B129,Funding,Funding!$GE$2,FALSE)), \"x\")","v":0.12078426183930684},{"$f":"IFERROR((BN129/(VLOOKUP($B129,Pupils,Pupils!$M$3,FALSE)+VLOOKUP($B129,Pupils,Pupils!$P$3,FALSE))), \"x\")","v":2635.51973830013},{"$f":"IFERROR((VLOOKUP($B129,Funding,Funding!$FD$2,FALSE)), \"x\")","v":25023810},{"$f":"IFERROR((BQ129/VLOOKUP($B129,Funding,Funding!$FR$2,FALSE)), \"x\")","v":0.14559880120260962},{"$f":"IFERROR((BQ129/(VLOOKUP($B129,Pupils,Pupils!$R$3,FALSE)+VLOOKUP($B129,Pupils,Pupils!$U$3,FALSE))), \"x\")","v":3059.1454767726163},{"$f":"(VLOOKUP(B129,Funding,Funding!$HK$2,FALSE)+VLOOKUP(B129,Funding,Funding!$HL$2,FALSE)+VLOOKUP(B129,Funding,Funding!$HM$2,FALSE))/(VLOOKUP(B129,Funding,Funding!$HN$2,FALSE))","v":0.18064516129032257},{"$f":"IFERROR((VLOOKUP(B129,Other_data,Other!$D$3,FALSE)+VLOOKUP(B129,Other_data,Other!$E$3,FALSE)+VLOOKUP(B129,Other_data,Other!$F$3,FALSE)), \"x\")","v":1730},{"$f":"(VLOOKUP(B129,Other_data,Other!$AK$3,FALSE)+VLOOKUP(B129,Other_data,Other!$AL$3,FALSE))/VLOOKUP(B129,Other_data,Other!$AJ$3,FALSE)","v":3.7991757212439116E-2},{"$f":"(VLOOKUP(B129,Other_data,Other!$AR$3,FALSE)+VLOOKUP(B129,Other_data,Other!$AS$3,FALSE))/VLOOKUP(B129,Other_data,Other!$AQ$3,FALSE)","v":6.0159390648141617E-2},{"$f":"VLOOKUP(B129,Other_data,Other!$AP$3,FALSE)/VLOOKUP(B129,Other_data,Other!$AJ$3,FALSE)","v":5.3016110902959906E-3},{"$f":"VLOOKUP(B129,Other_data,Other!$AW$3,FALSE)/VLOOKUP(B129,Other_data,Other!$AQ$3,FALSE)","v":1.1954298610621342E-2}]
[124,808,"Stockton-on-Tees",{"$f":"IFERROR((VLOOKUP($B130,Pupils,Pupils!$D$3,FALSE)/VLOOKUP($B130,Pupils,Pupils!$C$3,FALSE)), \"x\")","v":2.7623953638119769E-2},{"$f":"IFERROR((VLOOKUP($B130,Pupils,Pupils!$G$3,FALSE)/VLOOKUP($B130,Pupils,Pupils!$F$3,FALSE)),\"x\")","v":2.7226847536082805E-2},{"$f":"IFERROR((VLOOKUP($B130,Pupils,Pupils!$J$3,FALSE)/VLOOKUP($B130,Pupils,Pupils!$I$3,FALSE)), \"x\")","v":2.5099755438280344E-2},{"$f":"IFERROR((VLOOKUP($B130,Pupils,Pupils!$M$3,FALSE)/VLOOKUP($B130,Pupils,Pupils!$L$3,FALSE)), \"x\")","v":2.4327784891165175E-2},{"$f":"IFERROR((VLOOKUP($B130,Pupils,Pupils!$R$3,FALSE)/VLOOKUP($B130,Pupils,Pupils!$Q$3,FALSE)), \"x\")","v":2.5525669251140679E-2},{"$f":"IFERROR((VLOOKUP($B130,Pupils,Pupils!$W$3,FALSE)/VLOOKUP($B130,Pupils,Pupils!$V$3,FALSE)), \"x\")","v":2.6413067517613978E-2},{"$f":"IFERROR(((VLOOKUP($B130,Pupils,Pupils!$D$3,FALSE)+VLOOKUP($B130,Pupils,Pupils!$E$3,FALSE))/VLOOKUP($B130,Pupils,Pupils!$C$3,FALSE)), \"x\")","v":0.17218287186091435},{"$f":"IFERROR(((VLOOKUP($B130,Pupils,Pupils!$G$3,FALSE)+VLOOKUP($B130,Pupils,Pupils!$H$3,FALSE))/VLOOKUP($B130,Pupils,Pupils!$F$3,FALSE)), \"x\")","v":0.19026648236844643},{"$f":"IFERROR(((VLOOKUP($B130,Pupils,Pupils!$J$3,FALSE)+VLOOKUP($B130,Pupils,Pupils!$K$3,FALSE))/VLOOKUP($B130,Pupils,Pupils!$I$3,FALSE)), \"x\")","v":0.17630969236710001},{"$f":"IFERROR(((VLOOKUP($B130,Pupils,Pupils!$M$3,FALSE)+VLOOKUP($B130,Pupils,Pupils!$P$3,FALSE))/VLOOKUP($B130,Pupils,Pupils!$L$3,FALSE)), \"x\")","v":0.16955825864276569},{"$f":"IFERROR(((VLOOKUP($B130,Pupils,Pupils!$R$3,FALSE)+VLOOKUP($B130,Pupils,Pupils!$U$3,FALSE))/VLOOKUP($B130,Pupils,Pupils!$Q$3,FALSE)), \"x\")","v":0.165661593439903},{"$f":"IFERROR(((VLOOKUP($B130,Pupils,Pupils!$W$3,FALSE)+VLOOKUP($B130,Pupils,Pupils!$Z$3,FALSE))/VLOOKUP($B130,Pupils,Pupils!$V$3,FALSE)), \"x\")","v":0.16457615873116174},{"$f":"(SUM(INDEX(Pupils!$AB$7:$AB$159,MATCH($B130,Pupils!$A$7:$A$159,0)),INDEX(Pupils!$AC$7:$AC$159,MATCH($B130,Pupils!$A$7:$A$159,0)),INDEX(Pupils!$AD$7:$AD$159,MATCH($B130,Pupils!$A$7:$A$159,0)),INDEX(Pupils!$AE$7:$AE$159,MATCH($B130,Pupils!$A$7:$A$159,0))))/SUM(INDEX(Pupils!$AB$7:$AM$159,MATCH($B130,Pupils!$A$7:$A$159,0),0))","v":0.38791032826261007},{"$f":"SUM(INDEX(Pupils!$AF$7:$AF$159,MATCH($B130,Pupils!$A$7:$A$159,0)))/SUM(INDEX(Pupils!$AB$7:$AM$159,MATCH($B130,Pupils!$A$7:$A$159,0),0))","v":0.20176140912730184},{"$f":"SUM(INDEX(Pupils!$AG$7:$AG$159,MATCH($B130,Pupils!$A$7:$A$159,0)))/SUM(INDEX(Pupils!$AB$7:$AM$159,MATCH($B130,Pupils!$A$7:$A$159,0),0))","v":0.17734187349879904},{"$f":"(SUM(INDEX(Pupils!$AH$7:$AH$159,MATCH($B130,Pupils!$A$7:$A$159,0)),INDEX(Pupils!$AI$7:$AI$159,MATCH($B130,Pupils!$A$7:$A$159,0)),INDEX(Pupils!$AJ$7:$AJ$159,MATCH($B130,Pupils!$A$7:$A$159,0))))/SUM(INDEX(Pupils!$AB$7:$AM$159,MATCH($B130,Pupils!$A$7:$A$159,0),0))","v":3.2826261008807048E-2},{"$f":"SUM(INDEX(Pupils!$AK$7:$AK$159,MATCH($B130,Pupils!$A$7:$A$159,0)))/SUM(INDEX(Pupils!$AB$7:$AM$159,MATCH($B130,Pupils!$A$7:$A$159,0),0))","v":6.4451561248999201E-2},{"$f":"SUM(INDEX(Pupils!$AL$7:$AL$159,MATCH($B130,Pupils!$A$7:$A$159,0)))/SUM(INDEX(Pupils!$AB$7:$AM$159,MATCH($B130,Pupils!$A$7:$A$159,0),0))","v":0.12970376301040831},{"$f":"SUM(INDEX(Pupils!$AM$7:$AM$159,MATCH($B130,Pupils!$A$7:$A$159,0)))/SUM(INDEX(Pupils!$AB$7:$AM$159,MATCH($B130,Pupils!$A$7:$A$159,0),0))","v":6.0048038430744596E-3},{"$f":"(SUM(INDEX(Pupils!$BH$7:$BH$159,MATCH($B130,Pupils!$A$7:$A$159,0)),INDEX(Pupils!$BK$7:$BK$159,MATCH($B130,Pupils!$A$7:$A$159,0)),INDEX(Pupils!$BO$7:$BO$159,MATCH($B130,Pupils!$A$7:$A$159,0))))/SUM(INDEX(Pupils!$BH$7:$BS$159,MATCH($B130,Pupils!$A$7:$A$159,0),0))","v":0.23227917121046893},{"$f":"(SUM(INDEX(Pupils!$BL$7:$BL$159,MATCH($B130,Pupils!$A$7:$A$159,0)),INDEX(Pupils!$BM$7:$BM$159,MATCH($B130,Pupils!$A$7:$A$159,0)),INDEX(Pupils!$BP$7:$BP$159,MATCH($B130,Pupils!$A$7:$A$159,0))))/SUM(INDEX(Pupils!$BH$7:$BS$159,MATCH($B130,Pupils!$A$7:$A$159,0),0))","v":0.65648854961832059},{"$f":"(SUM(INDEX(Pupils!$BI$7:$BI$159,MATCH($B130,Pupils!$A$7:$A$159,0)),INDEX(Pupils!$BJ$7:$BJ$159,MATCH($B130,Pupils!$A$7:$A$159,0))))/SUM(INDEX(Pupils!$BH$7:$BS$159,MATCH($B130,Pupils!$A$7:$A$159,0),0))","v":0.10032715376226826},{"$f":"(SUM(INDEX(Pupils!$BQ$7:$BQ$159,MATCH($B130,Pupils!$A$7:$A$159,0)),INDEX(Pupils!$BR$7:$BR$159,MATCH($B130,Pupils!$A$7:$A$159,0)),INDEX(Pupils!$BN$7:$BN$159,MATCH($B130,Pupils!$A$7:$A$159,0)),INDEX(Pupils!$BS$7:$BS$159,MATCH($B130,Pupils!$A$7:$A$159,0))))/SUM(INDEX(Pupils!$BH$7:$BS$159,MATCH($B130,Pupils!$A$7:$A$159,0),0))","v":1.0905125408942203E-2},{"$f":"IFERROR((VLOOKUP(B130,Funding,Funding!$C$2,FALSE)), \"x\")","v":18839276.23},{"$f":"IFERROR((AA130/VLOOKUP(B130,Funding,Funding!$D$2,FALSE)), \"x\")","v":0.13504027019723244},{"$f":"IFERROR((AA130/(VLOOKUP(B130,Pupils,Pupils!$M$3,FALSE)+VLOOKUP(B130,Pupils,Pupils!$P$3,FALSE))), \"x\")","v":3556.5935869360014},{"$f":"IFERROR((VLOOKUP(B130,Funding,Funding!$E$2,FALSE)), \"x\")","v":19922395.847501274},{"$f":"IFERROR((AD130/VLOOKUP(B130,Funding,Funding!$F$2,FALSE)), \"x\")","v":0.13911815151986365},{"$f":"IFERROR((AD130/(VLOOKUP(B130,Pupils,Pupils!$R$3,FALSE)+VLOOKUP(B130,Pupils,Pupils!$U$3,FALSE))), \"x\")","v":3837.1332526003994},{"$f":"IFERROR((VLOOKUP(B130,Funding,Funding!$G$2,FALSE)), \"x\")","v":20536681.192758225},{"$f":"IFERROR((AG130/VLOOKUP(B130,Funding,Funding!$H$2,FALSE)), \"x\")","v":0.14111015257627091},{"$f":"IFERROR((AG130/(VLOOKUP(B130,Pupils,Pupils!$W$3,FALSE)+VLOOKUP(B130,Pupils,Pupils!$Z$3,FALSE))), \"x\")","v":3942.5381441271311},{"$f":"IFERROR((VLOOKUP(B130,Funding,Funding!$I$2,FALSE)), \"x\")","v":21039406.049282853},{"$f":"IFERROR((AJ130/VLOOKUP(B130,Funding,Funding!$J$2,FALSE)), \"x\")","v":0.14548061159786235},null,{"$f":"IFERROR((VLOOKUP($B130,Funding,Funding!$EC$2,FALSE)), \"x\")","v":13479163.960000001},{"$f":"IFERROR((AM130/VLOOKUP($B130,Funding,Funding!$EU$2,FALSE)), \"x\")","v":0.10028699730062367},{"$f":"IFERROR((AM130/(VLOOKUP($B130,Pupils,Pupils!$D$3,FALSE)+VLOOKUP($B130,Pupils,Pupils!$E$3,FALSE))), \"x\")","v":2520.4121091997008},{"$f":"IFERROR((VLOOKUP($B130,Funding,Funding!$DA$2,FALSE)), \"x\")","v":14226194.333600001},{"$f":"IFERROR((AP130/VLOOKUP($B130,Funding,Funding!$DT$2,FALSE)), \"x\")","v":0.10575522085289163},{"$f":"IFERROR((AP130/(VLOOKUP($B130,Pupils,Pupils!$G$3,FALSE)+VLOOKUP($B130,Pupils,Pupils!$H$3,FALSE))), \"x\")","v":2403.4793602973477},{"$f":"IFERROR((VLOOKUP($B130,Funding,Funding!$CE$2,FALSE)), \"x\")","v":14352361},{"$f":"IFERROR((AS130/VLOOKUP($B130,Funding,Funding!$CR$2,FALSE)), \"x\")","v":0.10528125835051902},{"$f":"IFERROR((AS130/(VLOOKUP($B130,Pupils,Pupils!$J$3,FALSE)+VLOOKUP($B130,Pupils,Pupils!$K$3,FALSE))), \"x\")","v":2619.521993064428},{"$f":"IFERROR((VLOOKUP($B130,Funding,Funding!$BM$2,FALSE)), \"x\")","v":15070160.039999999},{"$f":"IFERROR((AV130/VLOOKUP($B130,Funding,Funding!$BY$2,FALSE)), \"x\")","v":0.10750844613427447},{"$f":"IFERROR((AV130/(VLOOKUP($B130,Pupils,Pupils!$M$3,FALSE)+VLOOKUP($B130,Pupils,Pupils!$P$3,FALSE))), \"x\")","v":2845.0368208419859},{"$f":"IFERROR((VLOOKUP($B130,Funding,Funding!$AQ$2,FALSE)), \"x\")","v":17742762.699999999},{"$f":"IFERROR((AY130/VLOOKUP($B130,Funding,Funding!$BE$2,FALSE)), \"x\")","v":0.12290034254957892},{"$f":"IFERROR((AY130/(VLOOKUP($B130,Pupils,Pupils!$R$3,FALSE)+VLOOKUP($B130,Pupils,Pupils!$U$3,FALSE))), \"x\")","v":3417.3271764252695},{"$f":"IFERROR((VLOOKUP($B130,Funding,Funding!$S$2,FALSE)), \"x\")","v":18223959},{"$f":"IFERROR((BB130/VLOOKUP($B130,Funding,Funding!$AH$2,FALSE)), \"x\")","v":0.12403696723760055},{"$f":"IFERROR((BB130/(VLOOKUP(B130,Pupils,Pupils!$W$3,FALSE)+VLOOKUP(B130,Pupils,Pupils!$Z$3,FALSE))), \"x\")","v":3498.5523133038969},{"$f":"IFERROR((VLOOKUP($B130,Funding,Funding!$GX$2,FALSE)), \"x\")","v":21150658.111749999},{"$f":"IFERROR((BE130/VLOOKUP($B130,Funding,Funding!$HC$2,FALSE)), \"x\")","v":0.14373627707697487},{"$f":"IFERROR((BE130/(VLOOKUP($B130,Pupils,Pupils!$D$3,FALSE)+VLOOKUP($B130,Pupils,Pupils!$E$3,FALSE))), \"x\")","v":3954.8724965875094},{"$f":"IFERROR((VLOOKUP($B130,Funding,Funding!$GP$2,FALSE)), \"x\")","v":21768977.09},{"$f":"IFERROR((BH130/VLOOKUP($B130,Funding,Funding!$GU$2,FALSE)), \"x\")","v":0.14950913876977009},{"$f":"IFERROR((BH130/(VLOOKUP($B130,Pupils,Pupils!$G$3,FALSE)+VLOOKUP($B130,Pupils,Pupils!$H$3,FALSE))), \"x\")","v":3677.8133282649096},{"$f":"IFERROR((VLOOKUP($B130,Funding,Funding!$GH$2,FALSE)), \"x\")","v":22364501.030000001},{"$f":"IFERROR((BK130/VLOOKUP($B130,Funding,Funding!$GM$2,FALSE)), \"x\")","v":0.1570527165441469},{"$f":"IFERROR((BK130/(VLOOKUP($B130,Pupils,Pupils!$J$3,FALSE)+VLOOKUP($B130,Pupils,Pupils!$K$3,FALSE))), \"x\")","v":4081.8581912757804},{"$f":"IFERROR((VLOOKUP($B130,Funding,Funding!$FZ$2,FALSE)), \"x\")","v":22773079.219999999},{"$f":"IFERROR((BN130/VLOOKUP($B130,Funding,Funding!$GE$2,FALSE)), \"x\")","v":0.1533387717663291},{"$f":"IFERROR((BN130/(VLOOKUP($B130,Pupils,Pupils!$M$3,FALSE)+VLOOKUP($B130,Pupils,Pupils!$P$3,FALSE))), \"x\")","v":4299.2409326033603},{"$f":"IFERROR((VLOOKUP($B130,Funding,Funding!$FD$2,FALSE)), \"x\")","v":14981418},{"$f":"IFERROR((BQ130/VLOOKUP($B130,Funding,Funding!$FR$2,FALSE)), \"x\")","v":0.12466887548241892},{"$f":"IFERROR((BQ130/(VLOOKUP($B130,Pupils,Pupils!$R$3,FALSE)+VLOOKUP($B130,Pupils,Pupils!$U$3,FALSE))), \"x\")","v":2885.4811248073961},{"$f":"(VLOOKUP(B130,Funding,Funding!$HK$2,FALSE)+VLOOKUP(B130,Funding,Funding!$HL$2,FALSE)+VLOOKUP(B130,Funding,Funding!$HM$2,FALSE))/(VLOOKUP(B130,Funding,Funding!$HN$2,FALSE))","v":0.23615285530270502},{"$f":"IFERROR((VLOOKUP(B130,Other_data,Other!$D$3,FALSE)+VLOOKUP(B130,Other_data,Other!$E$3,FALSE)+VLOOKUP(B130,Other_data,Other!$F$3,FALSE)), \"x\")","v":1380},{"$f":"(VLOOKUP(B130,Other_data,Other!$AK$3,FALSE)+VLOOKUP(B130,Other_data,Other!$AL$3,FALSE))/VLOOKUP(B130,Other_data,Other!$AJ$3,FALSE)","v":4.3315363881401614E-2},{"$f":"(VLOOKUP(B130,Other_data,Other!$AR$3,FALSE)+VLOOKUP(B130,Other_data,Other!$AS$3,FALSE))/VLOOKUP(B130,Other_data,Other!$AQ$3,FALSE)","v":6.0455224218290422E-2},{"$f":"VLOOKUP(B130,Other_data,Other!$AP$3,FALSE)/VLOOKUP(B130,Other_data,Other!$AJ$3,FALSE)","v":7.7897574123989219E-3},{"$f":"VLOOKUP(B130,Other_data,Other!$AW$3,FALSE)/VLOOKUP(B130,Other_data,Other!$AQ$3,FALSE)","v":1.3349020317661433E-2}]
[125,861,"Stoke-on-Trent",{"$f":"IFERROR((VLOOKUP($B131,Pupils,Pupils!$D$3,FALSE)/VLOOKUP($B131,Pupils,Pupils!$C$3,FALSE)), \"x\")","v":3.3102277549865611E-2},{"$f":"IFERROR((VLOOKUP($B131,Pupils,Pupils!$G$3,FALSE)/VLOOKUP($B131,Pupils,Pupils!$F$3,FALSE)),\"x\")","v":3.215661831368994E-2},{"$f":"IFERROR((VLOOKUP($B131,Pupils,Pupils!$J$3,FALSE)/VLOOKUP($B131,Pupils,Pupils!$I$3,FALSE)), \"x\")","v":3.0608488829742049E-2},{"$f":"IFERROR((VLOOKUP($B131,Pupils,Pupils!$M$3,FALSE)/VLOOKUP($B131,Pupils,Pupils!$L$3,FALSE)), \"x\")","v":3.0157930107526883E-2},{"$f":"IFERROR((VLOOKUP($B131,Pupils,Pupils!$R$3,FALSE)/VLOOKUP($B131,Pupils,Pupils!$Q$3,FALSE)), \"x\")","v":2.94417362086535E-2},{"$f":"IFERROR((VLOOKUP($B131,Pupils,Pupils!$W$3,FALSE)/VLOOKUP($B131,Pupils,Pupils!$V$3,FALSE)), \"x\")","v":2.9389395914819642E-2},{"$f":"IFERROR(((VLOOKUP($B131,Pupils,Pupils!$D$3,FALSE)+VLOOKUP($B131,Pupils,Pupils!$E$3,FALSE))/VLOOKUP($B131,Pupils,Pupils!$C$3,FALSE)), \"x\")","v":0.25989531758381668},{"$f":"IFERROR(((VLOOKUP($B131,Pupils,Pupils!$G$3,FALSE)+VLOOKUP($B131,Pupils,Pupils!$H$3,FALSE))/VLOOKUP($B131,Pupils,Pupils!$F$3,FALSE)), \"x\")","v":0.26087941976427925},{"$f":"IFERROR(((VLOOKUP($B131,Pupils,Pupils!$J$3,FALSE)+VLOOKUP($B131,Pupils,Pupils!$K$3,FALSE))/VLOOKUP($B131,Pupils,Pupils!$I$3,FALSE)), \"x\")","v":0.24348047682419233},{"$f":"IFERROR(((VLOOKUP($B131,Pupils,Pupils!$M$3,FALSE)+VLOOKUP($B131,Pupils,Pupils!$P$3,FALSE))/VLOOKUP($B131,Pupils,Pupils!$L$3,FALSE)), \"x\")","v":0.23479502688172044},{"$f":"IFERROR(((VLOOKUP($B131,Pupils,Pupils!$R$3,FALSE)+VLOOKUP($B131,Pupils,Pupils!$U$3,FALSE))/VLOOKUP($B131,Pupils,Pupils!$Q$3,FALSE)), \"x\")","v":0.22636260982125644},{"$f":"IFERROR(((VLOOKUP($B131,Pupils,Pupils!$W$3,FALSE)+VLOOKUP($B131,Pupils,Pupils!$Z$3,FALSE))/VLOOKUP($B131,Pupils,Pupils!$V$3,FALSE)), \"x\")","v":0.211674272055628},{"$f":"(SUM(INDEX(Pupils!$AB$7:$AB$159,MATCH($B131,Pupils!$A$7:$A$159,0)),INDEX(Pupils!$AC$7:$AC$159,MATCH($B131,Pupils!$A$7:$A$159,0)),INDEX(Pupils!$AD$7:$AD$159,MATCH($B131,Pupils!$A$7:$A$159,0)),INDEX(Pupils!$AE$7:$AE$159,MATCH($B131,Pupils!$A$7:$A$159,0))))/SUM(INDEX(Pupils!$AB$7:$AM$159,MATCH($B131,Pupils!$A$7:$A$159,0),0))","v":0.43485477178423237},{"$f":"SUM(INDEX(Pupils!$AF$7:$AF$159,MATCH($B131,Pupils!$A$7:$A$159,0)))/SUM(INDEX(Pupils!$AB$7:$AM$159,MATCH($B131,Pupils!$A$7:$A$159,0),0))","v":0.1908713692946058},{"$f":"SUM(INDEX(Pupils!$AG$7:$AG$159,MATCH($B131,Pupils!$A$7:$A$159,0)))/SUM(INDEX(Pupils!$AB$7:$AM$159,MATCH($B131,Pupils!$A$7:$A$159,0),0))","v":0.24121715076071923},{"$f":"(SUM(INDEX(Pupils!$AH$7:$AH$159,MATCH($B131,Pupils!$A$7:$A$159,0)),INDEX(Pupils!$AI$7:$AI$159,MATCH($B131,Pupils!$A$7:$A$159,0)),INDEX(Pupils!$AJ$7:$AJ$159,MATCH($B131,Pupils!$A$7:$A$159,0))))/SUM(INDEX(Pupils!$AB$7:$AM$159,MATCH($B131,Pupils!$A$7:$A$159,0),0))","v":3.1258644536652835E-2},{"$f":"SUM(INDEX(Pupils!$AK$7:$AK$159,MATCH($B131,Pupils!$A$7:$A$159,0)))/SUM(INDEX(Pupils!$AB$7:$AM$159,MATCH($B131,Pupils!$A$7:$A$159,0),0))","v":3.0982019363762103E-2},{"$f":"SUM(INDEX(Pupils!$AL$7:$AL$159,MATCH($B131,Pupils!$A$7:$A$159,0)))/SUM(INDEX(Pupils!$AB$7:$AM$159,MATCH($B131,Pupils!$A$7:$A$159,0),0))","v":6.1410788381742736E-2},{"$f":"SUM(INDEX(Pupils!$AM$7:$AM$159,MATCH($B131,Pupils!$A$7:$A$159,0)))/SUM(INDEX(Pupils!$AB$7:$AM$159,MATCH($B131,Pupils!$A$7:$A$159,0),0))","v":9.4052558782849235E-3},{"$f":"(SUM(INDEX(Pupils!$BH$7:$BH$159,MATCH($B131,Pupils!$A$7:$A$159,0)),INDEX(Pupils!$BK$7:$BK$159,MATCH($B131,Pupils!$A$7:$A$159,0)),INDEX(Pupils!$BO$7:$BO$159,MATCH($B131,Pupils!$A$7:$A$159,0))))/SUM(INDEX(Pupils!$BH$7:$BS$159,MATCH($B131,Pupils!$A$7:$A$159,0),0))","v":0.43880597014925371},{"$f":"(SUM(INDEX(Pupils!$BL$7:$BL$159,MATCH($B131,Pupils!$A$7:$A$159,0)),INDEX(Pupils!$BM$7:$BM$159,MATCH($B131,Pupils!$A$7:$A$159,0)),INDEX(Pupils!$BP$7:$BP$159,MATCH($B131,Pupils!$A$7:$A$159,0))))/SUM(INDEX(Pupils!$BH$7:$BS$159,MATCH($B131,Pupils!$A$7:$A$159,0),0))","v":0.5358208955223881},{"$f":"(SUM(INDEX(Pupils!$BI$7:$BI$159,MATCH($B131,Pupils!$A$7:$A$159,0)),INDEX(Pupils!$BJ$7:$BJ$159,MATCH($B131,Pupils!$A$7:$A$159,0))))/SUM(INDEX(Pupils!$BH$7:$BS$159,MATCH($B131,Pupils!$A$7:$A$159,0),0))","v":2.9850746268656717E-3},{"$f":"(SUM(INDEX(Pupils!$BQ$7:$BQ$159,MATCH($B131,Pupils!$A$7:$A$159,0)),INDEX(Pupils!$BR$7:$BR$159,MATCH($B131,Pupils!$A$7:$A$159,0)),INDEX(Pupils!$BN$7:$BN$159,MATCH($B131,Pupils!$A$7:$A$159,0)),INDEX(Pupils!$BS$7:$BS$159,MATCH($B131,Pupils!$A$7:$A$159,0))))/SUM(INDEX(Pupils!$BH$7:$BS$159,MATCH($B131,Pupils!$A$7:$A$159,0),0))","v":2.2388059701492536E-2},{"$f":"IFERROR((VLOOKUP(B131,Funding,Funding!$C$2,FALSE)), \"x\")","v":24602155.469999999},{"$f":"IFERROR((AA131/VLOOKUP(B131,Funding,Funding!$D$2,FALSE)), \"x\")","v":0.13672465310569801},{"$f":"IFERROR((AA131/(VLOOKUP(B131,Pupils,Pupils!$M$3,FALSE)+VLOOKUP(B131,Pupils,Pupils!$P$3,FALSE))), \"x\")","v":2934.0674382826473},{"$f":"IFERROR((VLOOKUP(B131,Funding,Funding!$E$2,FALSE)), \"x\")","v":27050342.100364801},{"$f":"IFERROR((AD131/VLOOKUP(B131,Funding,Funding!$F$2,FALSE)), \"x\")","v":0.14493808964321525},{"$f":"IFERROR((AD131/(VLOOKUP(B131,Pupils,Pupils!$R$3,FALSE)+VLOOKUP(B131,Pupils,Pupils!$U$3,FALSE))), \"x\")","v":3291.196264796788},{"$f":"IFERROR((VLOOKUP(B131,Funding,Funding!$G$2,FALSE)), \"x\")","v":28707948.451207224},{"$f":"IFERROR((AG131/VLOOKUP(B131,Funding,Funding!$H$2,FALSE)), \"x\")","v":0.15026401645337914},{"$f":"IFERROR((AG131/(VLOOKUP(B131,Pupils,Pupils!$W$3,FALSE)+VLOOKUP(B131,Pupils,Pupils!$Z$3,FALSE))), \"x\")","v":3683.8121969982321},{"$f":"IFERROR((VLOOKUP(B131,Funding,Funding!$I$2,FALSE)), \"x\")","v":28915904.129012194},{"$f":"IFERROR((AJ131/VLOOKUP(B131,Funding,Funding!$J$2,FALSE)), \"x\")","v":0.14999664964706472},null,{"$f":"IFERROR((VLOOKUP($B131,Funding,Funding!$EC$2,FALSE)), \"x\")","v":15735361},{"$f":"IFERROR((AM131/VLOOKUP($B131,Funding,Funding!$EU$2,FALSE)), \"x\")","v":9.2049861321158916E-2},{"$f":"IFERROR((AM131/(VLOOKUP($B131,Pupils,Pupils!$D$3,FALSE)+VLOOKUP($B131,Pupils,Pupils!$E$3,FALSE))), \"x\")","v":1712.9720226431525},{"$f":"IFERROR((VLOOKUP($B131,Funding,Funding!$DA$2,FALSE)), \"x\")","v":16213945.869960001},{"$f":"IFERROR((AP131/VLOOKUP($B131,Funding,Funding!$DT$2,FALSE)), \"x\")","v":9.1616916625858053E-2},{"$f":"IFERROR((AP131/(VLOOKUP($B131,Pupils,Pupils!$G$3,FALSE)+VLOOKUP($B131,Pupils,Pupils!$H$3,FALSE))), \"x\")","v":1760.8542430451782},{"$f":"IFERROR((VLOOKUP($B131,Funding,Funding!$CE$2,FALSE)), \"x\")","v":19011069},{"$f":"IFERROR((AS131/VLOOKUP($B131,Funding,Funding!$CR$2,FALSE)), \"x\")","v":0.11781748155824733},{"$f":"IFERROR((AS131/(VLOOKUP($B131,Pupils,Pupils!$J$3,FALSE)+VLOOKUP($B131,Pupils,Pupils!$K$3,FALSE))), \"x\")","v":2210.8464937783465},{"$f":"IFERROR((VLOOKUP($B131,Funding,Funding!$BM$2,FALSE)), \"x\")","v":19953360.220000003},{"$f":"IFERROR((AV131/VLOOKUP($B131,Funding,Funding!$BY$2,FALSE)), \"x\")","v":0.12321100141706218},{"$f":"IFERROR((AV131/(VLOOKUP($B131,Pupils,Pupils!$M$3,FALSE)+VLOOKUP($B131,Pupils,Pupils!$P$3,FALSE))), \"x\")","v":2379.6494001192609},{"$f":"IFERROR((VLOOKUP($B131,Funding,Funding!$AQ$2,FALSE)), \"x\")","v":27108929},{"$f":"IFERROR((AY131/VLOOKUP($B131,Funding,Funding!$BE$2,FALSE)), \"x\")","v":0.1410215291524293},{"$f":"IFERROR((AY131/(VLOOKUP($B131,Pupils,Pupils!$R$3,FALSE)+VLOOKUP($B131,Pupils,Pupils!$U$3,FALSE))), \"x\")","v":3298.3244920306606},{"$f":"IFERROR((VLOOKUP($B131,Funding,Funding!$S$2,FALSE)), \"x\")","v":26727915},{"$f":"IFERROR((BB131/VLOOKUP($B131,Funding,Funding!$AH$2,FALSE)), \"x\")","v":0.13818344419903317},{"$f":"IFERROR((BB131/(VLOOKUP(B131,Pupils,Pupils!$W$3,FALSE)+VLOOKUP(B131,Pupils,Pupils!$Z$3,FALSE))), \"x\")","v":3429.7337354035672},{"$f":"IFERROR((VLOOKUP($B131,Funding,Funding!$GX$2,FALSE)), \"x\")","v":26421794.429820001},{"$f":"IFERROR((BE131/VLOOKUP($B131,Funding,Funding!$HC$2,FALSE)), \"x\")","v":0.12894907055237692},{"$f":"IFERROR((BE131/(VLOOKUP($B131,Pupils,Pupils!$D$3,FALSE)+VLOOKUP($B131,Pupils,Pupils!$E$3,FALSE))), \"x\")","v":2876.3111724167211},{"$f":"IFERROR((VLOOKUP($B131,Funding,Funding!$GP$2,FALSE)), \"x\")","v":27956391.740000002},{"$f":"IFERROR((BH131/VLOOKUP($B131,Funding,Funding!$GU$2,FALSE)), \"x\")","v":0.13543722778060652},{"$f":"IFERROR((BH131/(VLOOKUP($B131,Pupils,Pupils!$G$3,FALSE)+VLOOKUP($B131,Pupils,Pupils!$H$3,FALSE))), \"x\")","v":3036.0981472632498},{"$f":"IFERROR((VLOOKUP($B131,Funding,Funding!$GH$2,FALSE)), \"x\")","v":26844041.040000003},{"$f":"IFERROR((BK131/VLOOKUP($B131,Funding,Funding!$GM$2,FALSE)), \"x\")","v":0.14265840571684302},{"$f":"IFERROR((BK131/(VLOOKUP($B131,Pupils,Pupils!$J$3,FALSE)+VLOOKUP($B131,Pupils,Pupils!$K$3,FALSE))), \"x\")","v":3121.7631166414703},{"$f":"IFERROR((VLOOKUP($B131,Funding,Funding!$FZ$2,FALSE)), \"x\")","v":26231056.939999998},{"$f":"IFERROR((BN131/VLOOKUP($B131,Funding,Funding!$GE$2,FALSE)), \"x\")","v":0.14943655634160663},{"$f":"IFERROR((BN131/(VLOOKUP($B131,Pupils,Pupils!$M$3,FALSE)+VLOOKUP($B131,Pupils,Pupils!$P$3,FALSE))), \"x\")","v":3128.3311794871793},{"$f":"IFERROR((VLOOKUP($B131,Funding,Funding!$FD$2,FALSE)), \"x\")","v":26604730.41},{"$f":"IFERROR((BQ131/VLOOKUP($B131,Funding,Funding!$FR$2,FALSE)), \"x\")","v":0.14184898267732007},{"$f":"IFERROR((BQ131/(VLOOKUP($B131,Pupils,Pupils!$R$3,FALSE)+VLOOKUP($B131,Pupils,Pupils!$U$3,FALSE))), \"x\")","v":3236.9790010950237},{"$f":"(VLOOKUP(B131,Funding,Funding!$HK$2,FALSE)+VLOOKUP(B131,Funding,Funding!$HL$2,FALSE)+VLOOKUP(B131,Funding,Funding!$HM$2,FALSE))/(VLOOKUP(B131,Funding,Funding!$HN$2,FALSE))","v":0.24159021406727829},{"$f":"IFERROR((VLOOKUP(B131,Other_data,Other!$D$3,FALSE)+VLOOKUP(B131,Other_data,Other!$E$3,FALSE)+VLOOKUP(B131,Other_data,Other!$F$3,FALSE)), \"x\")","v":1600},{"$f":"(VLOOKUP(B131,Other_data,Other!$AK$3,FALSE)+VLOOKUP(B131,Other_data,Other!$AL$3,FALSE))/VLOOKUP(B131,Other_data,Other!$AJ$3,FALSE)","v":3.9733592570376654E-2},{"$f":"(VLOOKUP(B131,Other_data,Other!$AR$3,FALSE)+VLOOKUP(B131,Other_data,Other!$AS$3,FALSE))/VLOOKUP(B131,Other_data,Other!$AQ$3,FALSE)","v":6.1148325358851674E-2},{"$f":"VLOOKUP(B131,Other_data,Other!$AP$3,FALSE)/VLOOKUP(B131,Other_data,Other!$AJ$3,FALSE)","v":7.4668541998469395E-3},{"$f":"VLOOKUP(B131,Other_data,Other!$AW$3,FALSE)/VLOOKUP(B131,Other_data,Other!$AQ$3,FALSE)","v":1.3748006379585327E-2}]
[126,935,"Suffolk",{"$f":"IFERROR((VLOOKUP($B132,Pupils,Pupils!$D$3,FALSE)/VLOOKUP($B132,Pupils,Pupils!$C$3,FALSE)), \"x\")","v":2.7346602505289568E-2},{"$f":"IFERROR((VLOOKUP($B132,Pupils,Pupils!$G$3,FALSE)/VLOOKUP($B132,Pupils,Pupils!$F$3,FALSE)),\"x\")","v":2.6911343689867182E-2},{"$f":"IFERROR((VLOOKUP($B132,Pupils,Pupils!$J$3,FALSE)/VLOOKUP($B132,Pupils,Pupils!$I$3,FALSE)), \"x\")","v":2.7215926148303812E-2},{"$f":"IFERROR((VLOOKUP($B132,Pupils,Pupils!$M$3,FALSE)/VLOOKUP($B132,Pupils,Pupils!$L$3,FALSE)), \"x\")","v":2.7078327053081375E-2},{"$f":"IFERROR((VLOOKUP($B132,Pupils,Pupils!$R$3,FALSE)/VLOOKUP($B132,Pupils,Pupils!$Q$3,FALSE)), \"x\")","v":2.6337594145959986E-2},{"$f":"IFERROR((VLOOKUP($B132,Pupils,Pupils!$W$3,FALSE)/VLOOKUP($B132,Pupils,Pupils!$V$3,FALSE)), \"x\")","v":2.6648305636712135E-2},{"$f":"IFERROR(((VLOOKUP($B132,Pupils,Pupils!$D$3,FALSE)+VLOOKUP($B132,Pupils,Pupils!$E$3,FALSE))/VLOOKUP($B132,Pupils,Pupils!$C$3,FALSE)), \"x\")","v":0.19024659688804837},{"$f":"IFERROR(((VLOOKUP($B132,Pupils,Pupils!$G$3,FALSE)+VLOOKUP($B132,Pupils,Pupils!$H$3,FALSE))/VLOOKUP($B132,Pupils,Pupils!$F$3,FALSE)), \"x\")","v":0.1980663631670343},{"$f":"IFERROR(((VLOOKUP($B132,Pupils,Pupils!$J$3,FALSE)+VLOOKUP($B132,Pupils,Pupils!$K$3,FALSE))/VLOOKUP($B132,Pupils,Pupils!$I$3,FALSE)), \"x\")","v":0.20077491744220954},{"$f":"IFERROR(((VLOOKUP($B132,Pupils,Pupils!$M$3,FALSE)+VLOOKUP($B132,Pupils,Pupils!$P$3,FALSE))/VLOOKUP($B132,Pupils,Pupils!$L$3,FALSE)), \"x\")","v":0.19586905908423641},{"$f":"IFERROR(((VLOOKUP($B132,Pupils,Pupils!$R$3,FALSE)+VLOOKUP($B132,Pupils,Pupils!$U$3,FALSE))/VLOOKUP($B132,Pupils,Pupils!$Q$3,FALSE)), \"x\")","v":0.19013527226685784},{"$f":"IFERROR(((VLOOKUP($B132,Pupils,Pupils!$W$3,FALSE)+VLOOKUP($B132,Pupils,Pupils!$Z$3,FALSE))/VLOOKUP($B132,Pupils,Pupils!$V$3,FALSE)), \"x\")","v":0.1762379738355323},{"$f":"(SUM(INDEX(Pupils!$AB$7:$AB$159,MATCH($B132,Pupils!$A$7:$A$159,0)),INDEX(Pupils!$AC$7:$AC$159,MATCH($B132,Pupils!$A$7:$A$159,0)),INDEX(Pupils!$AD$7:$AD$159,MATCH($B132,Pupils!$A$7:$A$159,0)),INDEX(Pupils!$AE$7:$AE$159,MATCH($B132,Pupils!$A$7:$A$159,0))))/SUM(INDEX(Pupils!$AB$7:$AM$159,MATCH($B132,Pupils!$A$7:$A$159,0),0))","v":0.34069192751235583},{"$f":"SUM(INDEX(Pupils!$AF$7:$AF$159,MATCH($B132,Pupils!$A$7:$A$159,0)))/SUM(INDEX(Pupils!$AB$7:$AM$159,MATCH($B132,Pupils!$A$7:$A$159,0),0))","v":0.2099945085118067},{"$f":"SUM(INDEX(Pupils!$AG$7:$AG$159,MATCH($B132,Pupils!$A$7:$A$159,0)))/SUM(INDEX(Pupils!$AB$7:$AM$159,MATCH($B132,Pupils!$A$7:$A$159,0),0))","v":0.19198242723778144},{"$f":"(SUM(INDEX(Pupils!$AH$7:$AH$159,MATCH($B132,Pupils!$A$7:$A$159,0)),INDEX(Pupils!$AI$7:$AI$159,MATCH($B132,Pupils!$A$7:$A$159,0)),INDEX(Pupils!$AJ$7:$AJ$159,MATCH($B132,Pupils!$A$7:$A$159,0))))/SUM(INDEX(Pupils!$AB$7:$AM$159,MATCH($B132,Pupils!$A$7:$A$159,0),0))","v":3.4047226798462386E-2},{"$f":"SUM(INDEX(Pupils!$AK$7:$AK$159,MATCH($B132,Pupils!$A$7:$A$159,0)))/SUM(INDEX(Pupils!$AB$7:$AM$159,MATCH($B132,Pupils!$A$7:$A$159,0),0))","v":3.8330587589236687E-2},{"$f":"SUM(INDEX(Pupils!$AL$7:$AL$159,MATCH($B132,Pupils!$A$7:$A$159,0)))/SUM(INDEX(Pupils!$AB$7:$AM$159,MATCH($B132,Pupils!$A$7:$A$159,0),0))","v":9.7858319604612845E-2},{"$f":"SUM(INDEX(Pupils!$AM$7:$AM$159,MATCH($B132,Pupils!$A$7:$A$159,0)))/SUM(INDEX(Pupils!$AB$7:$AM$159,MATCH($B132,Pupils!$A$7:$A$159,0),0))","v":8.7095002745744096E-2},{"$f":"(SUM(INDEX(Pupils!$BH$7:$BH$159,MATCH($B132,Pupils!$A$7:$A$159,0)),INDEX(Pupils!$BK$7:$BK$159,MATCH($B132,Pupils!$A$7:$A$159,0)),INDEX(Pupils!$BO$7:$BO$159,MATCH($B132,Pupils!$A$7:$A$159,0))))/SUM(INDEX(Pupils!$BH$7:$BS$159,MATCH($B132,Pupils!$A$7:$A$159,0),0))","v":0.54391119817172706},{"$f":"(SUM(INDEX(Pupils!$BL$7:$BL$159,MATCH($B132,Pupils!$A$7:$A$159,0)),INDEX(Pupils!$BM$7:$BM$159,MATCH($B132,Pupils!$A$7:$A$159,0)),INDEX(Pupils!$BP$7:$BP$159,MATCH($B132,Pupils!$A$7:$A$159,0))))/SUM(INDEX(Pupils!$BH$7:$BS$159,MATCH($B132,Pupils!$A$7:$A$159,0),0))","v":0.34639242572641199},{"$f":"(SUM(INDEX(Pupils!$BI$7:$BI$159,MATCH($B132,Pupils!$A$7:$A$159,0)),INDEX(Pupils!$BJ$7:$BJ$159,MATCH($B132,Pupils!$A$7:$A$159,0))))/SUM(INDEX(Pupils!$BH$7:$BS$159,MATCH($B132,Pupils!$A$7:$A$159,0),0))","v":5.0603983023179887E-2},{"$f":"(SUM(INDEX(Pupils!$BQ$7:$BQ$159,MATCH($B132,Pupils!$A$7:$A$159,0)),INDEX(Pupils!$BR$7:$BR$159,MATCH($B132,Pupils!$A$7:$A$159,0)),INDEX(Pupils!$BN$7:$BN$159,MATCH($B132,Pupils!$A$7:$A$159,0)),INDEX(Pupils!$BS$7:$BS$159,MATCH($B132,Pupils!$A$7:$A$159,0))))/SUM(INDEX(Pupils!$BH$7:$BS$159,MATCH($B132,Pupils!$A$7:$A$159,0),0))","v":5.9092393078681034E-2},{"$f":"IFERROR((VLOOKUP(B132,Funding,Funding!$C$2,FALSE)), \"x\")","v":43718726},{"$f":"IFERROR((AA132/VLOOKUP(B132,Funding,Funding!$D$2,FALSE)), \"x\")","v":9.8107876458535609E-2},{"$f":"IFERROR((AA132/(VLOOKUP(B132,Pupils,Pupils!$M$3,FALSE)+VLOOKUP(B132,Pupils,Pupils!$P$3,FALSE))), \"x\")","v":2087.0119343135384},{"$f":"IFERROR((VLOOKUP(B132,Funding,Funding!$E$2,FALSE)), \"x\")","v":44256213.747113928},{"$f":"IFERROR((AD132/VLOOKUP(B132,Funding,Funding!$F$2,FALSE)), \"x\")","v":9.8062022476500782E-2},{"$f":"IFERROR((AD132/(VLOOKUP(B132,Pupils,Pupils!$R$3,FALSE)+VLOOKUP(B132,Pupils,Pupils!$U$3,FALSE))), \"x\")","v":2166.979079817555},{"$f":"IFERROR((VLOOKUP(B132,Funding,Funding!$G$2,FALSE)), \"x\")","v":45895973.52645988},{"$f":"IFERROR((AG132/VLOOKUP(B132,Funding,Funding!$H$2,FALSE)), \"x\")","v":0.10126399875497186},{"$f":"IFERROR((AG132/(VLOOKUP(B132,Pupils,Pupils!$W$3,FALSE)+VLOOKUP(B132,Pupils,Pupils!$Z$3,FALSE))), \"x\")","v":2423.1019231539981},{"$f":"IFERROR((VLOOKUP(B132,Funding,Funding!$I$2,FALSE)), \"x\")","v":46433869.585145667},{"$f":"IFERROR((AJ132/VLOOKUP(B132,Funding,Funding!$J$2,FALSE)), \"x\")","v":9.9770672456190229E-2},null,{"$f":"IFERROR((VLOOKUP($B132,Funding,Funding!$EC$2,FALSE)), \"x\")","v":28890642},{"$f":"IFERROR((AM132/VLOOKUP($B132,Funding,Funding!$EU$2,FALSE)), \"x\")","v":6.5369862996093236E-2},{"$f":"IFERROR((AM132/(VLOOKUP($B132,Pupils,Pupils!$D$3,FALSE)+VLOOKUP($B132,Pupils,Pupils!$E$3,FALSE))), \"x\")","v":1421.7135967718125},{"$f":"IFERROR((VLOOKUP($B132,Funding,Funding!$DA$2,FALSE)), \"x\")","v":30046636},{"$f":"IFERROR((AP132/VLOOKUP($B132,Funding,Funding!$DT$2,FALSE)), \"x\")","v":6.4233169101119855E-2},{"$f":"IFERROR((AP132/(VLOOKUP($B132,Pupils,Pupils!$G$3,FALSE)+VLOOKUP($B132,Pupils,Pupils!$H$3,FALSE))), \"x\")","v":1423.9436993507418},{"$f":"IFERROR((VLOOKUP($B132,Funding,Funding!$CE$2,FALSE)), \"x\")","v":31312270},{"$f":"IFERROR((AS132/VLOOKUP($B132,Funding,Funding!$CR$2,FALSE)), \"x\")","v":6.8475664163930999E-2},{"$f":"IFERROR((AS132/(VLOOKUP($B132,Pupils,Pupils!$J$3,FALSE)+VLOOKUP($B132,Pupils,Pupils!$K$3,FALSE))), \"x\")","v":1463.1218167375357},{"$f":"IFERROR((VLOOKUP($B132,Funding,Funding!$BM$2,FALSE)), \"x\")","v":24966212.18},{"$f":"IFERROR((AV132/VLOOKUP($B132,Funding,Funding!$BY$2,FALSE)), \"x\")","v":6.379634280144246E-2},{"$f":"IFERROR((AV132/(VLOOKUP($B132,Pupils,Pupils!$M$3,FALSE)+VLOOKUP($B132,Pupils,Pupils!$P$3,FALSE))), \"x\")","v":1191.8184160779072},{"$f":"IFERROR((VLOOKUP($B132,Funding,Funding!$AQ$2,FALSE)), \"x\")","v":39285498},{"$f":"IFERROR((AY132/VLOOKUP($B132,Funding,Funding!$BE$2,FALSE)), \"x\")","v":8.4589660296666189E-2},{"$f":"IFERROR((AY132/(VLOOKUP($B132,Pupils,Pupils!$R$3,FALSE)+VLOOKUP($B132,Pupils,Pupils!$U$3,FALSE))), \"x\")","v":1923.5909513783479},{"$f":"IFERROR((VLOOKUP($B132,Funding,Funding!$S$2,FALSE)), \"x\")","v":39170692},{"$f":"IFERROR((BB132/VLOOKUP($B132,Funding,Funding!$AH$2,FALSE)), \"x\")","v":8.3000271931802941E-2},{"$f":"IFERROR((BB132/(VLOOKUP(B132,Pupils,Pupils!$W$3,FALSE)+VLOOKUP(B132,Pupils,Pupils!$Z$3,FALSE))), \"x\")","v":2068.0371680481494},{"$f":"IFERROR((VLOOKUP($B132,Funding,Funding!$GX$2,FALSE)), \"x\")","v":52885537},{"$f":"IFERROR((BE132/VLOOKUP($B132,Funding,Funding!$HC$2,FALSE)), \"x\")","v":0.10820261890018777},{"$f":"IFERROR((BE132/(VLOOKUP($B132,Pupils,Pupils!$D$3,FALSE)+VLOOKUP($B132,Pupils,Pupils!$E$3,FALSE))), \"x\")","v":2602.5066187687612},{"$f":"IFERROR((VLOOKUP($B132,Funding,Funding!$GP$2,FALSE)), \"x\")","v":54032077},{"$f":"IFERROR((BH132/VLOOKUP($B132,Funding,Funding!$GU$2,FALSE)), \"x\")","v":0.10664166889826274},{"$f":"IFERROR((BH132/(VLOOKUP($B132,Pupils,Pupils!$G$3,FALSE)+VLOOKUP($B132,Pupils,Pupils!$H$3,FALSE))), \"x\")","v":2560.6405857542295},{"$f":"IFERROR((VLOOKUP($B132,Funding,Funding!$GH$2,FALSE)), \"x\")","v":48123758.410000004},{"$f":"IFERROR((BK132/VLOOKUP($B132,Funding,Funding!$GM$2,FALSE)), \"x\")","v":0.11536563709693942},{"$f":"IFERROR((BK132/(VLOOKUP($B132,Pupils,Pupils!$J$3,FALSE)+VLOOKUP($B132,Pupils,Pupils!$K$3,FALSE))), \"x\")","v":2248.6686795009582},{"$f":"IFERROR((VLOOKUP($B132,Funding,Funding!$FZ$2,FALSE)), \"x\")","v":41448528.18},{"$f":"IFERROR((BN132/VLOOKUP($B132,Funding,Funding!$GE$2,FALSE)), \"x\")","v":0.11084804739381228},{"$f":"IFERROR((BN132/(VLOOKUP($B132,Pupils,Pupils!$M$3,FALSE)+VLOOKUP($B132,Pupils,Pupils!$P$3,FALSE))), \"x\")","v":1978.6389240022913},{"$f":"IFERROR((VLOOKUP($B132,Funding,Funding!$FD$2,FALSE)), \"x\")","v":38046633.780000001},{"$f":"IFERROR((BQ132/VLOOKUP($B132,Funding,Funding!$FR$2,FALSE)), \"x\")","v":0.11027363197548205},{"$f":"IFERROR((BQ132/(VLOOKUP($B132,Pupils,Pupils!$R$3,FALSE)+VLOOKUP($B132,Pupils,Pupils!$U$3,FALSE))), \"x\")","v":1862.9307045977575},{"$f":"(VLOOKUP(B132,Funding,Funding!$HK$2,FALSE)+VLOOKUP(B132,Funding,Funding!$HL$2,FALSE)+VLOOKUP(B132,Funding,Funding!$HM$2,FALSE))/(VLOOKUP(B132,Funding,Funding!$HN$2,FALSE))","v":0.20920291677143577},{"$f":"IFERROR((VLOOKUP(B132,Other_data,Other!$D$3,FALSE)+VLOOKUP(B132,Other_data,Other!$E$3,FALSE)+VLOOKUP(B132,Other_data,Other!$F$3,FALSE)), \"x\")","v":4340},{"$f":"(VLOOKUP(B132,Other_data,Other!$AK$3,FALSE)+VLOOKUP(B132,Other_data,Other!$AL$3,FALSE))/VLOOKUP(B132,Other_data,Other!$AJ$3,FALSE)","v":3.9036035011935886E-2},{"$f":"(VLOOKUP(B132,Other_data,Other!$AR$3,FALSE)+VLOOKUP(B132,Other_data,Other!$AS$3,FALSE))/VLOOKUP(B132,Other_data,Other!$AQ$3,FALSE)","v":5.6540753216241843E-2},{"$f":"VLOOKUP(B132,Other_data,Other!$AP$3,FALSE)/VLOOKUP(B132,Other_data,Other!$AJ$3,FALSE)","v":5.5018756394225304E-3},{"$f":"VLOOKUP(B132,Other_data,Other!$AW$3,FALSE)/VLOOKUP(B132,Other_data,Other!$AQ$3,FALSE)","v":1.1279844884441739E-2}]
[127,394,"Sunderland",{"$f":"IFERROR((VLOOKUP($B133,Pupils,Pupils!$D$3,FALSE)/VLOOKUP($B133,Pupils,Pupils!$C$3,FALSE)), \"x\")","v":2.649206866074336E-2},{"$f":"IFERROR((VLOOKUP($B133,Pupils,Pupils!$G$3,FALSE)/VLOOKUP($B133,Pupils,Pupils!$F$3,FALSE)),\"x\")","v":2.6553472467869356E-2},{"$f":"IFERROR((VLOOKUP($B133,Pupils,Pupils!$J$3,FALSE)/VLOOKUP($B133,Pupils,Pupils!$I$3,FALSE)), \"x\")","v":2.6405553037711995E-2},{"$f":"IFERROR((VLOOKUP($B133,Pupils,Pupils!$M$3,FALSE)/VLOOKUP($B133,Pupils,Pupils!$L$3,FALSE)), \"x\")","v":2.6918643742195755E-2},{"$f":"IFERROR((VLOOKUP($B133,Pupils,Pupils!$R$3,FALSE)/VLOOKUP($B133,Pupils,Pupils!$Q$3,FALSE)), \"x\")","v":2.6756095789244292E-2},{"$f":"IFERROR((VLOOKUP($B133,Pupils,Pupils!$W$3,FALSE)/VLOOKUP($B133,Pupils,Pupils!$V$3,FALSE)), \"x\")","v":2.6670553086059898E-2},{"$f":"IFERROR(((VLOOKUP($B133,Pupils,Pupils!$D$3,FALSE)+VLOOKUP($B133,Pupils,Pupils!$E$3,FALSE))/VLOOKUP($B133,Pupils,Pupils!$C$3,FALSE)), \"x\")","v":0.2254035446806531},{"$f":"IFERROR(((VLOOKUP($B133,Pupils,Pupils!$G$3,FALSE)+VLOOKUP($B133,Pupils,Pupils!$H$3,FALSE))/VLOOKUP($B133,Pupils,Pupils!$F$3,FALSE)), \"x\")","v":0.22650630821837048},{"$f":"IFERROR(((VLOOKUP($B133,Pupils,Pupils!$J$3,FALSE)+VLOOKUP($B133,Pupils,Pupils!$K$3,FALSE))/VLOOKUP($B133,Pupils,Pupils!$I$3,FALSE)), \"x\")","v":0.21737471077928583},{"$f":"IFERROR(((VLOOKUP($B133,Pupils,Pupils!$M$3,FALSE)+VLOOKUP($B133,Pupils,Pupils!$P$3,FALSE))/VLOOKUP($B133,Pupils,Pupils!$L$3,FALSE)), \"x\")","v":0.21071462875804436},{"$f":"IFERROR(((VLOOKUP($B133,Pupils,Pupils!$R$3,FALSE)+VLOOKUP($B133,Pupils,Pupils!$U$3,FALSE))/VLOOKUP($B133,Pupils,Pupils!$Q$3,FALSE)), \"x\")","v":0.19380614542725005},{"$f":"IFERROR(((VLOOKUP($B133,Pupils,Pupils!$W$3,FALSE)+VLOOKUP($B133,Pupils,Pupils!$Z$3,FALSE))/VLOOKUP($B133,Pupils,Pupils!$V$3,FALSE)), \"x\")","v":0.18620806917826521},{"$f":"(SUM(INDEX(Pupils!$AB$7:$AB$159,MATCH($B133,Pupils!$A$7:$A$159,0)),INDEX(Pupils!$AC$7:$AC$159,MATCH($B133,Pupils!$A$7:$A$159,0)),INDEX(Pupils!$AD$7:$AD$159,MATCH($B133,Pupils!$A$7:$A$159,0)),INDEX(Pupils!$AE$7:$AE$159,MATCH($B133,Pupils!$A$7:$A$159,0))))/SUM(INDEX(Pupils!$AB$7:$AM$159,MATCH($B133,Pupils!$A$7:$A$159,0),0))","v":0.32218920257553246},{"$f":"SUM(INDEX(Pupils!$AF$7:$AF$159,MATCH($B133,Pupils!$A$7:$A$159,0)))/SUM(INDEX(Pupils!$AB$7:$AM$159,MATCH($B133,Pupils!$A$7:$A$159,0),0))","v":0.23997028231797921},{"$f":"SUM(INDEX(Pupils!$AG$7:$AG$159,MATCH($B133,Pupils!$A$7:$A$159,0)))/SUM(INDEX(Pupils!$AB$7:$AM$159,MATCH($B133,Pupils!$A$7:$A$159,0),0))","v":0.19638434868746904},{"$f":"(SUM(INDEX(Pupils!$AH$7:$AH$159,MATCH($B133,Pupils!$A$7:$A$159,0)),INDEX(Pupils!$AI$7:$AI$159,MATCH($B133,Pupils!$A$7:$A$159,0)),INDEX(Pupils!$AJ$7:$AJ$159,MATCH($B133,Pupils!$A$7:$A$159,0))))/SUM(INDEX(Pupils!$AB$7:$AM$159,MATCH($B133,Pupils!$A$7:$A$159,0),0))","v":2.4517087667161961E-2},{"$f":"SUM(INDEX(Pupils!$AK$7:$AK$159,MATCH($B133,Pupils!$A$7:$A$159,0)))/SUM(INDEX(Pupils!$AB$7:$AM$159,MATCH($B133,Pupils!$A$7:$A$159,0),0))","v":3.6899455175829619E-2},{"$f":"SUM(INDEX(Pupils!$AL$7:$AL$159,MATCH($B133,Pupils!$A$7:$A$159,0)))/SUM(INDEX(Pupils!$AB$7:$AM$159,MATCH($B133,Pupils!$A$7:$A$159,0),0))","v":0.1448736998514116},{"$f":"SUM(INDEX(Pupils!$AM$7:$AM$159,MATCH($B133,Pupils!$A$7:$A$159,0)))/SUM(INDEX(Pupils!$AB$7:$AM$159,MATCH($B133,Pupils!$A$7:$A$159,0),0))","v":3.5165923724616147E-2},{"$f":"(SUM(INDEX(Pupils!$BH$7:$BH$159,MATCH($B133,Pupils!$A$7:$A$159,0)),INDEX(Pupils!$BK$7:$BK$159,MATCH($B133,Pupils!$A$7:$A$159,0)),INDEX(Pupils!$BO$7:$BO$159,MATCH($B133,Pupils!$A$7:$A$159,0))))/SUM(INDEX(Pupils!$BH$7:$BS$159,MATCH($B133,Pupils!$A$7:$A$159,0),0))","v":0.28545780969479356},{"$f":"(SUM(INDEX(Pupils!$BL$7:$BL$159,MATCH($B133,Pupils!$A$7:$A$159,0)),INDEX(Pupils!$BM$7:$BM$159,MATCH($B133,Pupils!$A$7:$A$159,0)),INDEX(Pupils!$BP$7:$BP$159,MATCH($B133,Pupils!$A$7:$A$159,0))))/SUM(INDEX(Pupils!$BH$7:$BS$159,MATCH($B133,Pupils!$A$7:$A$159,0),0))","v":0.58707360861759428},{"$f":"(SUM(INDEX(Pupils!$BI$7:$BI$159,MATCH($B133,Pupils!$A$7:$A$159,0)),INDEX(Pupils!$BJ$7:$BJ$159,MATCH($B133,Pupils!$A$7:$A$159,0))))/SUM(INDEX(Pupils!$BH$7:$BS$159,MATCH($B133,Pupils!$A$7:$A$159,0),0))","v":0.12477558348294435},{"$f":"(SUM(INDEX(Pupils!$BQ$7:$BQ$159,MATCH($B133,Pupils!$A$7:$A$159,0)),INDEX(Pupils!$BR$7:$BR$159,MATCH($B133,Pupils!$A$7:$A$159,0)),INDEX(Pupils!$BN$7:$BN$159,MATCH($B133,Pupils!$A$7:$A$159,0)),INDEX(Pupils!$BS$7:$BS$159,MATCH($B133,Pupils!$A$7:$A$159,0))))/SUM(INDEX(Pupils!$BH$7:$BS$159,MATCH($B133,Pupils!$A$7:$A$159,0),0))","v":2.6929982046678637E-3},{"$f":"IFERROR((VLOOKUP(B133,Funding,Funding!$C$2,FALSE)), \"x\")","v":20937208.379999999},{"$f":"IFERROR((AA133/VLOOKUP(B133,Funding,Funding!$D$2,FALSE)), \"x\")","v":0.10813845789237707},{"$f":"IFERROR((AA133/(VLOOKUP(B133,Pupils,Pupils!$M$3,FALSE)+VLOOKUP(B133,Pupils,Pupils!$P$3,FALSE))), \"x\")","v":2386.0066529914529},{"$f":"IFERROR((VLOOKUP(B133,Funding,Funding!$E$2,FALSE)), \"x\")","v":21453480.084231053},{"$f":"IFERROR((AD133/VLOOKUP(B133,Funding,Funding!$F$2,FALSE)), \"x\")","v":0.10930122374733603},{"$f":"IFERROR((AD133/(VLOOKUP(B133,Pupils,Pupils!$R$3,FALSE)+VLOOKUP(B133,Pupils,Pupils!$U$3,FALSE))), \"x\")","v":2680.3448381098265},{"$f":"IFERROR((VLOOKUP(B133,Funding,Funding!$G$2,FALSE)), \"x\")","v":23047274.670368347},{"$f":"IFERROR((AG133/VLOOKUP(B133,Funding,Funding!$H$2,FALSE)), \"x\")","v":0.11645256354659543},{"$f":"IFERROR((AG133/(VLOOKUP(B133,Pupils,Pupils!$W$3,FALSE)+VLOOKUP(B133,Pupils,Pupils!$Z$3,FALSE))), \"x\")","v":3006.4276898471626},{"$f":"IFERROR((VLOOKUP(B133,Funding,Funding!$I$2,FALSE)), \"x\")","v":23268951.47947704},{"$f":"IFERROR((AJ133/VLOOKUP(B133,Funding,Funding!$J$2,FALSE)), \"x\")","v":0.11872519760945477},null,{"$f":"IFERROR((VLOOKUP($B133,Funding,Funding!$EC$2,FALSE)), \"x\")","v":12806565},{"$f":"IFERROR((AM133/VLOOKUP($B133,Funding,Funding!$EU$2,FALSE)), \"x\")","v":6.8062193281234556E-2},{"$f":"IFERROR((AM133/(VLOOKUP($B133,Pupils,Pupils!$D$3,FALSE)+VLOOKUP($B133,Pupils,Pupils!$E$3,FALSE))), \"x\")","v":1321.4905582499225},{"$f":"IFERROR((VLOOKUP($B133,Funding,Funding!$DA$2,FALSE)), \"x\")","v":13158302},{"$f":"IFERROR((AP133/VLOOKUP($B133,Funding,Funding!$DT$2,FALSE)), \"x\")","v":6.7775320399340241E-2},{"$f":"IFERROR((AP133/(VLOOKUP($B133,Pupils,Pupils!$G$3,FALSE)+VLOOKUP($B133,Pupils,Pupils!$H$3,FALSE))), \"x\")","v":1369.9429463820927},{"$f":"IFERROR((VLOOKUP($B133,Funding,Funding!$CE$2,FALSE)), \"x\")","v":13770208},{"$f":"IFERROR((AS133/VLOOKUP($B133,Funding,Funding!$CR$2,FALSE)), \"x\")","v":7.0743581125209232E-2},{"$f":"IFERROR((AS133/(VLOOKUP($B133,Pupils,Pupils!$J$3,FALSE)+VLOOKUP($B133,Pupils,Pupils!$K$3,FALSE))), \"x\")","v":1511.0510260068036},{"$f":"IFERROR((VLOOKUP($B133,Funding,Funding!$BM$2,FALSE)), \"x\")","v":14399295.93},{"$f":"IFERROR((AV133/VLOOKUP($B133,Funding,Funding!$BY$2,FALSE)), \"x\")","v":7.7953280684881124E-2},{"$f":"IFERROR((AV133/(VLOOKUP($B133,Pupils,Pupils!$M$3,FALSE)+VLOOKUP($B133,Pupils,Pupils!$P$3,FALSE))), \"x\")","v":1640.945405128205},{"$f":"IFERROR((VLOOKUP($B133,Funding,Funding!$AQ$2,FALSE)), \"x\")","v":17172754},{"$f":"IFERROR((AY133/VLOOKUP($B133,Funding,Funding!$BE$2,FALSE)), \"x\")","v":8.5848753765235153E-2},{"$f":"IFERROR((AY133/(VLOOKUP($B133,Pupils,Pupils!$R$3,FALSE)+VLOOKUP($B133,Pupils,Pupils!$U$3,FALSE))), \"x\")","v":2145.5214892553722},{"$f":"IFERROR((VLOOKUP($B133,Funding,Funding!$S$2,FALSE)), \"x\")","v":17926429},{"$f":"IFERROR((BB133/VLOOKUP($B133,Funding,Funding!$AH$2,FALSE)), \"x\")","v":8.9418737793288849E-2},{"$f":"IFERROR((BB133/(VLOOKUP(B133,Pupils,Pupils!$W$3,FALSE)+VLOOKUP(B133,Pupils,Pupils!$Z$3,FALSE))), \"x\")","v":2338.433211583616},{"$f":"IFERROR((VLOOKUP($B133,Funding,Funding!$GX$2,FALSE)), \"x\")","v":23964404.93},{"$f":"IFERROR((BE133/VLOOKUP($B133,Funding,Funding!$HC$2,FALSE)), \"x\")","v":0.10962325856438812},{"$f":"IFERROR((BE133/(VLOOKUP($B133,Pupils,Pupils!$D$3,FALSE)+VLOOKUP($B133,Pupils,Pupils!$E$3,FALSE))), \"x\")","v":2472.8516076772262},{"$f":"IFERROR((VLOOKUP($B133,Funding,Funding!$GP$2,FALSE)), \"x\")","v":24700396},{"$f":"IFERROR((BH133/VLOOKUP($B133,Funding,Funding!$GU$2,FALSE)), \"x\")","v":0.11600696380048051},{"$f":"IFERROR((BH133/(VLOOKUP($B133,Pupils,Pupils!$G$3,FALSE)+VLOOKUP($B133,Pupils,Pupils!$H$3,FALSE))), \"x\")","v":2571.6185320145755},{"$f":"IFERROR((VLOOKUP($B133,Funding,Funding!$GH$2,FALSE)), \"x\")","v":26533652.259999998},{"$f":"IFERROR((BK133/VLOOKUP($B133,Funding,Funding!$GM$2,FALSE)), \"x\")","v":0.1324736639457548},{"$f":"IFERROR((BK133/(VLOOKUP($B133,Pupils,Pupils!$J$3,FALSE)+VLOOKUP($B133,Pupils,Pupils!$K$3,FALSE))), \"x\")","v":2911.6264962141991},{"$f":"IFERROR((VLOOKUP($B133,Funding,Funding!$FZ$2,FALSE)), \"x\")","v":20397562.509999998},{"$f":"IFERROR((BN133/VLOOKUP($B133,Funding,Funding!$GE$2,FALSE)), \"x\")","v":0.11486649857604257},{"$f":"IFERROR((BN133/(VLOOKUP($B133,Pupils,Pupils!$M$3,FALSE)+VLOOKUP($B133,Pupils,Pupils!$P$3,FALSE))), \"x\")","v":2324.5085481481478},{"$f":"IFERROR((VLOOKUP($B133,Funding,Funding!$FD$2,FALSE)), \"x\")","v":15374688},{"$f":"IFERROR((BQ133/VLOOKUP($B133,Funding,Funding!$FR$2,FALSE)), \"x\")","v":0.42977439000288981},{"$f":"IFERROR((BQ133/(VLOOKUP($B133,Pupils,Pupils!$R$3,FALSE)+VLOOKUP($B133,Pupils,Pupils!$U$3,FALSE))), \"x\")","v":1920.8755622188905},{"$f":"(VLOOKUP(B133,Funding,Funding!$HK$2,FALSE)+VLOOKUP(B133,Funding,Funding!$HL$2,FALSE)+VLOOKUP(B133,Funding,Funding!$HM$2,FALSE))/(VLOOKUP(B133,Funding,Funding!$HN$2,FALSE))","v":0.25771476230191825},{"$f":"IFERROR((VLOOKUP(B133,Other_data,Other!$D$3,FALSE)+VLOOKUP(B133,Other_data,Other!$E$3,FALSE)+VLOOKUP(B133,Other_data,Other!$F$3,FALSE)), \"x\")","v":1850},{"$f":"(VLOOKUP(B133,Other_data,Other!$AK$3,FALSE)+VLOOKUP(B133,Other_data,Other!$AL$3,FALSE))/VLOOKUP(B133,Other_data,Other!$AJ$3,FALSE)","v":4.3644366928283711E-2},{"$f":"(VLOOKUP(B133,Other_data,Other!$AR$3,FALSE)+VLOOKUP(B133,Other_data,Other!$AS$3,FALSE))/VLOOKUP(B133,Other_data,Other!$AQ$3,FALSE)","v":5.6492360138795883E-2},{"$f":"VLOOKUP(B133,Other_data,Other!$AP$3,FALSE)/VLOOKUP(B133,Other_data,Other!$AJ$3,FALSE)","v":6.8103484074581618E-3},{"$f":"VLOOKUP(B133,Other_data,Other!$AW$3,FALSE)/VLOOKUP(B133,Other_data,Other!$AQ$3,FALSE)","v":1.1535886041273513E-2}]
[128,936,"Surrey",{"$f":"IFERROR((VLOOKUP($B134,Pupils,Pupils!$D$3,FALSE)/VLOOKUP($B134,Pupils,Pupils!$C$3,FALSE)), \"x\")","v":3.0750885914381205E-2},{"$f":"IFERROR((VLOOKUP($B134,Pupils,Pupils!$G$3,FALSE)/VLOOKUP($B134,Pupils,Pupils!$F$3,FALSE)),\"x\")","v":3.137528227717528E-2},{"$f":"IFERROR((VLOOKUP($B134,Pupils,Pupils!$J$3,FALSE)/VLOOKUP($B134,Pupils,Pupils!$I$3,FALSE)), \"x\")","v":3.074930948821545E-2},{"$f":"IFERROR((VLOOKUP($B134,Pupils,Pupils!$M$3,FALSE)/VLOOKUP($B134,Pupils,Pupils!$L$3,FALSE)), \"x\")","v":3.0294214513118894E-2},{"$f":"IFERROR((VLOOKUP($B134,Pupils,Pupils!$R$3,FALSE)/VLOOKUP($B134,Pupils,Pupils!$Q$3,FALSE)), \"x\")","v":3.0627031897052358E-2},{"$f":"IFERROR((VLOOKUP($B134,Pupils,Pupils!$W$3,FALSE)/VLOOKUP($B134,Pupils,Pupils!$V$3,FALSE)), \"x\")","v":3.0916981780680645E-2},{"$f":"IFERROR(((VLOOKUP($B134,Pupils,Pupils!$D$3,FALSE)+VLOOKUP($B134,Pupils,Pupils!$E$3,FALSE))/VLOOKUP($B134,Pupils,Pupils!$C$3,FALSE)), \"x\")","v":0.18311136489595756},{"$f":"IFERROR(((VLOOKUP($B134,Pupils,Pupils!$G$3,FALSE)+VLOOKUP($B134,Pupils,Pupils!$H$3,FALSE))/VLOOKUP($B134,Pupils,Pupils!$F$3,FALSE)), \"x\")","v":0.18434302601131897},{"$f":"IFERROR(((VLOOKUP($B134,Pupils,Pupils!$J$3,FALSE)+VLOOKUP($B134,Pupils,Pupils!$K$3,FALSE))/VLOOKUP($B134,Pupils,Pupils!$I$3,FALSE)), \"x\")","v":0.18440693790673507},{"$f":"IFERROR(((VLOOKUP($B134,Pupils,Pupils!$M$3,FALSE)+VLOOKUP($B134,Pupils,Pupils!$P$3,FALSE))/VLOOKUP($B134,Pupils,Pupils!$L$3,FALSE)), \"x\")","v":0.1809035020309584},{"$f":"IFERROR(((VLOOKUP($B134,Pupils,Pupils!$R$3,FALSE)+VLOOKUP($B134,Pupils,Pupils!$U$3,FALSE))/VLOOKUP($B134,Pupils,Pupils!$Q$3,FALSE)), \"x\")","v":0.17493717740666165},{"$f":"IFERROR(((VLOOKUP($B134,Pupils,Pupils!$W$3,FALSE)+VLOOKUP($B134,Pupils,Pupils!$Z$3,FALSE))/VLOOKUP($B134,Pupils,Pupils!$V$3,FALSE)), \"x\")","v":0.1657249054657958},{"$f":"(SUM(INDEX(Pupils!$AB$7:$AB$159,MATCH($B134,Pupils!$A$7:$A$159,0)),INDEX(Pupils!$AC$7:$AC$159,MATCH($B134,Pupils!$A$7:$A$159,0)),INDEX(Pupils!$AD$7:$AD$159,MATCH($B134,Pupils!$A$7:$A$159,0)),INDEX(Pupils!$AE$7:$AE$159,MATCH($B134,Pupils!$A$7:$A$159,0))))/SUM(INDEX(Pupils!$AB$7:$AM$159,MATCH($B134,Pupils!$A$7:$A$159,0),0))","v":0.39143380668804395},{"$f":"SUM(INDEX(Pupils!$AF$7:$AF$159,MATCH($B134,Pupils!$A$7:$A$159,0)))/SUM(INDEX(Pupils!$AB$7:$AM$159,MATCH($B134,Pupils!$A$7:$A$159,0),0))","v":0.19086883493663154},{"$f":"SUM(INDEX(Pupils!$AG$7:$AG$159,MATCH($B134,Pupils!$A$7:$A$159,0)))/SUM(INDEX(Pupils!$AB$7:$AM$159,MATCH($B134,Pupils!$A$7:$A$159,0),0))","v":0.20980302336234541},{"$f":"(SUM(INDEX(Pupils!$AH$7:$AH$159,MATCH($B134,Pupils!$A$7:$A$159,0)),INDEX(Pupils!$AI$7:$AI$159,MATCH($B134,Pupils!$A$7:$A$159,0)),INDEX(Pupils!$AJ$7:$AJ$159,MATCH($B134,Pupils!$A$7:$A$159,0))))/SUM(INDEX(Pupils!$AB$7:$AM$159,MATCH($B134,Pupils!$A$7:$A$159,0),0))","v":2.5194686211635363E-2},{"$f":"SUM(INDEX(Pupils!$AK$7:$AK$159,MATCH($B134,Pupils!$A$7:$A$159,0)))/SUM(INDEX(Pupils!$AB$7:$AM$159,MATCH($B134,Pupils!$A$7:$A$159,0),0))","v":2.8172240036646815E-2},{"$f":"SUM(INDEX(Pupils!$AL$7:$AL$159,MATCH($B134,Pupils!$A$7:$A$159,0)))/SUM(INDEX(Pupils!$AB$7:$AM$159,MATCH($B134,Pupils!$A$7:$A$159,0),0))","v":0.13368453198961674},{"$f":"SUM(INDEX(Pupils!$AM$7:$AM$159,MATCH($B134,Pupils!$A$7:$A$159,0)))/SUM(INDEX(Pupils!$AB$7:$AM$159,MATCH($B134,Pupils!$A$7:$A$159,0),0))","v":2.0842876775080166E-2},{"$f":"(SUM(INDEX(Pupils!$BH$7:$BH$159,MATCH($B134,Pupils!$A$7:$A$159,0)),INDEX(Pupils!$BK$7:$BK$159,MATCH($B134,Pupils!$A$7:$A$159,0)),INDEX(Pupils!$BO$7:$BO$159,MATCH($B134,Pupils!$A$7:$A$159,0))))/SUM(INDEX(Pupils!$BH$7:$BS$159,MATCH($B134,Pupils!$A$7:$A$159,0),0))","v":0.44111703104905381},{"$f":"(SUM(INDEX(Pupils!$BL$7:$BL$159,MATCH($B134,Pupils!$A$7:$A$159,0)),INDEX(Pupils!$BM$7:$BM$159,MATCH($B134,Pupils!$A$7:$A$159,0)),INDEX(Pupils!$BP$7:$BP$159,MATCH($B134,Pupils!$A$7:$A$159,0))))/SUM(INDEX(Pupils!$BH$7:$BS$159,MATCH($B134,Pupils!$A$7:$A$159,0),0))","v":0.46867536285136874},{"$f":"(SUM(INDEX(Pupils!$BI$7:$BI$159,MATCH($B134,Pupils!$A$7:$A$159,0)),INDEX(Pupils!$BJ$7:$BJ$159,MATCH($B134,Pupils!$A$7:$A$159,0))))/SUM(INDEX(Pupils!$BH$7:$BS$159,MATCH($B134,Pupils!$A$7:$A$159,0),0))","v":5.9525996693000183E-2},{"$f":"(SUM(INDEX(Pupils!$BQ$7:$BQ$159,MATCH($B134,Pupils!$A$7:$A$159,0)),INDEX(Pupils!$BR$7:$BR$159,MATCH($B134,Pupils!$A$7:$A$159,0)),INDEX(Pupils!$BN$7:$BN$159,MATCH($B134,Pupils!$A$7:$A$159,0)),INDEX(Pupils!$BS$7:$BS$159,MATCH($B134,Pupils!$A$7:$A$159,0))))/SUM(INDEX(Pupils!$BH$7:$BS$159,MATCH($B134,Pupils!$A$7:$A$159,0),0))","v":3.0681609406577257E-2},{"$f":"IFERROR((VLOOKUP(B134,Funding,Funding!$C$2,FALSE)), \"x\")","v":118817787.52999999},{"$f":"IFERROR((AA134/VLOOKUP(B134,Funding,Funding!$D$2,FALSE)), \"x\")","v":0.17089580533477208},{"$f":"IFERROR((AA134/(VLOOKUP(B134,Pupils,Pupils!$M$3,FALSE)+VLOOKUP(B134,Pupils,Pupils!$P$3,FALSE))), \"x\")","v":3605.2367487938827},{"$f":"IFERROR((VLOOKUP(B134,Funding,Funding!$E$2,FALSE)), \"x\")","v":122513603.71657079},{"$f":"IFERROR((AD134/VLOOKUP(B134,Funding,Funding!$F$2,FALSE)), \"x\")","v":0.17080036256736447},{"$f":"IFERROR((AD134/(VLOOKUP(B134,Pupils,Pupils!$R$3,FALSE)+VLOOKUP(B134,Pupils,Pupils!$U$3,FALSE))), \"x\")","v":3800.9929174910276},{"$f":"IFERROR((VLOOKUP(B134,Funding,Funding!$G$2,FALSE)), \"x\")","v":125183414.44472875},{"$f":"IFERROR((AG134/VLOOKUP(B134,Funding,Funding!$H$2,FALSE)), \"x\")","v":0.17258455877435547},{"$f":"IFERROR((AG134/(VLOOKUP(B134,Pupils,Pupils!$W$3,FALSE)+VLOOKUP(B134,Pupils,Pupils!$Z$3,FALSE))), \"x\")","v":4057.2831543634129},{"$f":"IFERROR((VLOOKUP(B134,Funding,Funding!$I$2,FALSE)), \"x\")","v":126112540.15285704},{"$f":"IFERROR((AJ134/VLOOKUP(B134,Funding,Funding!$J$2,FALSE)), \"x\")","v":0.16751261221014571},null,{"$f":"IFERROR((VLOOKUP($B134,Funding,Funding!$EC$2,FALSE)), \"x\")","v":76121183},{"$f":"IFERROR((AM134/VLOOKUP($B134,Funding,Funding!$EU$2,FALSE)), \"x\")","v":0.11132218628509048},{"$f":"IFERROR((AM134/(VLOOKUP($B134,Pupils,Pupils!$D$3,FALSE)+VLOOKUP($B134,Pupils,Pupils!$E$3,FALSE))), \"x\")","v":2327.2244030694915},{"$f":"IFERROR((VLOOKUP($B134,Funding,Funding!$DA$2,FALSE)), \"x\")","v":78635443},{"$f":"IFERROR((AP134/VLOOKUP($B134,Funding,Funding!$DT$2,FALSE)), \"x\")","v":0.10864906574889326},{"$f":"IFERROR((AP134/(VLOOKUP($B134,Pupils,Pupils!$G$3,FALSE)+VLOOKUP($B134,Pupils,Pupils!$H$3,FALSE))), \"x\")","v":2378.4955990441908},{"$f":"IFERROR((VLOOKUP($B134,Funding,Funding!$CE$2,FALSE)), \"x\")","v":82770928.636000007},{"$f":"IFERROR((AS134/VLOOKUP($B134,Funding,Funding!$CR$2,FALSE)), \"x\")","v":0.11367243495012906},{"$f":"IFERROR((AS134/(VLOOKUP($B134,Pupils,Pupils!$J$3,FALSE)+VLOOKUP($B134,Pupils,Pupils!$K$3,FALSE))), \"x\")","v":2494.4526742209632},{"$f":"IFERROR((VLOOKUP($B134,Funding,Funding!$BM$2,FALSE)), \"x\")","v":93941213.450000003},{"$f":"IFERROR((AV134/VLOOKUP($B134,Funding,Funding!$BY$2,FALSE)), \"x\")","v":0.14501708022050816},{"$f":"IFERROR((AV134/(VLOOKUP($B134,Pupils,Pupils!$M$3,FALSE)+VLOOKUP($B134,Pupils,Pupils!$P$3,FALSE))), \"x\")","v":2850.4176184118701},{"$f":"IFERROR((VLOOKUP($B134,Funding,Funding!$AQ$2,FALSE)), \"x\")","v":109677558},{"$f":"IFERROR((AY134/VLOOKUP($B134,Funding,Funding!$BE$2,FALSE)), \"x\")","v":0.14794218202311391},{"$f":"IFERROR((AY134/(VLOOKUP($B134,Pupils,Pupils!$R$3,FALSE)+VLOOKUP($B134,Pupils,Pupils!$U$3,FALSE))), \"x\")","v":3402.7537230081907},{"$f":"IFERROR((VLOOKUP($B134,Funding,Funding!$S$2,FALSE)), \"x\")","v":112073898},{"$f":"IFERROR((BB134/VLOOKUP($B134,Funding,Funding!$AH$2,FALSE)), \"x\")","v":0.14984326768201703},{"$f":"IFERROR((BB134/(VLOOKUP(B134,Pupils,Pupils!$W$3,FALSE)+VLOOKUP(B134,Pupils,Pupils!$Z$3,FALSE))), \"x\")","v":3632.3944383224216},{"$f":"IFERROR((VLOOKUP($B134,Funding,Funding!$GX$2,FALSE)), \"x\")","v":143527985},{"$f":"IFERROR((BE134/VLOOKUP($B134,Funding,Funding!$HC$2,FALSE)), \"x\")","v":0.19452353073852405},{"$f":"IFERROR((BE134/(VLOOKUP($B134,Pupils,Pupils!$D$3,FALSE)+VLOOKUP($B134,Pupils,Pupils!$E$3,FALSE))), \"x\")","v":4388.0273013543674},{"$f":"IFERROR((VLOOKUP($B134,Funding,Funding!$GP$2,FALSE)), \"x\")","v":147754815},{"$f":"IFERROR((BH134/VLOOKUP($B134,Funding,Funding!$GU$2,FALSE)), \"x\")","v":0.19166570396974889},{"$f":"IFERROR((BH134/(VLOOKUP($B134,Pupils,Pupils!$G$3,FALSE)+VLOOKUP($B134,Pupils,Pupils!$H$3,FALSE))), \"x\")","v":4469.1574665013159},{"$f":"IFERROR((VLOOKUP($B134,Funding,Funding!$GH$2,FALSE)), \"x\")","v":150964808.96000001},{"$f":"IFERROR((BK134/VLOOKUP($B134,Funding,Funding!$GM$2,FALSE)), \"x\")","v":0.21212677918088738},{"$f":"IFERROR((BK134/(VLOOKUP($B134,Pupils,Pupils!$J$3,FALSE)+VLOOKUP($B134,Pupils,Pupils!$K$3,FALSE))), \"x\")","v":4549.5994503043821},{"$f":"IFERROR((VLOOKUP($B134,Funding,Funding!$FZ$2,FALSE)), \"x\")","v":149438474.12},{"$f":"IFERROR((BN134/VLOOKUP($B134,Funding,Funding!$GE$2,FALSE)), \"x\")","v":0.22137410097893434},{"$f":"IFERROR((BN134/(VLOOKUP($B134,Pupils,Pupils!$M$3,FALSE)+VLOOKUP($B134,Pupils,Pupils!$P$3,FALSE))), \"x\")","v":4534.3470012440457},{"$f":"IFERROR((VLOOKUP($B134,Funding,Funding!$FD$2,FALSE)), \"x\")","v":113560347},{"$f":"IFERROR((BQ134/VLOOKUP($B134,Funding,Funding!$FR$2,FALSE)), \"x\")","v":0.19129394633559524},{"$f":"IFERROR((BQ134/(VLOOKUP($B134,Pupils,Pupils!$R$3,FALSE)+VLOOKUP($B134,Pupils,Pupils!$U$3,FALSE))), \"x\")","v":3523.217516753537},{"$f":"(VLOOKUP(B134,Funding,Funding!$HK$2,FALSE)+VLOOKUP(B134,Funding,Funding!$HL$2,FALSE)+VLOOKUP(B134,Funding,Funding!$HM$2,FALSE))/(VLOOKUP(B134,Funding,Funding!$HN$2,FALSE))","v":0.187194791101465},{"$f":"IFERROR((VLOOKUP(B134,Other_data,Other!$D$3,FALSE)+VLOOKUP(B134,Other_data,Other!$E$3,FALSE)+VLOOKUP(B134,Other_data,Other!$F$3,FALSE)), \"x\")","v":5880.0000000000009},{"$f":"(VLOOKUP(B134,Other_data,Other!$AK$3,FALSE)+VLOOKUP(B134,Other_data,Other!$AL$3,FALSE))/VLOOKUP(B134,Other_data,Other!$AJ$3,FALSE)","v":2.9266398198706359E-2},{"$f":"(VLOOKUP(B134,Other_data,Other!$AR$3,FALSE)+VLOOKUP(B134,Other_data,Other!$AS$3,FALSE))/VLOOKUP(B134,Other_data,Other!$AQ$3,FALSE)","v":4.4564815954696538E-2},{"$f":"VLOOKUP(B134,Other_data,Other!$AP$3,FALSE)/VLOOKUP(B134,Other_data,Other!$AJ$3,FALSE)","v":4.2628150298905628E-3},{"$f":"VLOOKUP(B134,Other_data,Other!$AW$3,FALSE)/VLOOKUP(B134,Other_data,Other!$AQ$3,FALSE)","v":8.6648547808217888E-3}]
[129,319,"Sutton",{"$f":"IFERROR((VLOOKUP($B135,Pupils,Pupils!$D$3,FALSE)/VLOOKUP($B135,Pupils,Pupils!$C$3,FALSE)), \"x\")","v":3.1247228545244924E-2},{"$f":"IFERROR((VLOOKUP($B135,Pupils,Pupils!$G$3,FALSE)/VLOOKUP($B135,Pupils,Pupils!$F$3,FALSE)),\"x\")","v":3.0773756987349219E-2},{"$f":"IFERROR((VLOOKUP($B135,Pupils,Pupils!$J$3,FALSE)/VLOOKUP($B135,Pupils,Pupils!$I$3,FALSE)), \"x\")","v":3.2367626567580118E-2},{"$f":"IFERROR((VLOOKUP($B135,Pupils,Pupils!$M$3,FALSE)/VLOOKUP($B135,Pupils,Pupils!$L$3,FALSE)), \"x\")","v":3.1660761229854839E-2},{"$f":"IFERROR((VLOOKUP($B135,Pupils,Pupils!$R$3,FALSE)/VLOOKUP($B135,Pupils,Pupils!$Q$3,FALSE)), \"x\")","v":3.1222098214285714E-2},{"$f":"IFERROR((VLOOKUP($B135,Pupils,Pupils!$W$3,FALSE)/VLOOKUP($B135,Pupils,Pupils!$V$3,FALSE)), \"x\")","v":3.0216928036719305E-2},{"$f":"IFERROR(((VLOOKUP($B135,Pupils,Pupils!$D$3,FALSE)+VLOOKUP($B135,Pupils,Pupils!$E$3,FALSE))/VLOOKUP($B135,Pupils,Pupils!$C$3,FALSE)), \"x\")","v":0.17687054719602685},{"$f":"IFERROR(((VLOOKUP($B135,Pupils,Pupils!$G$3,FALSE)+VLOOKUP($B135,Pupils,Pupils!$H$3,FALSE))/VLOOKUP($B135,Pupils,Pupils!$F$3,FALSE)), \"x\")","v":0.17755222124154163},{"$f":"IFERROR(((VLOOKUP($B135,Pupils,Pupils!$J$3,FALSE)+VLOOKUP($B135,Pupils,Pupils!$K$3,FALSE))/VLOOKUP($B135,Pupils,Pupils!$I$3,FALSE)), \"x\")","v":0.17916860195076637},{"$f":"IFERROR(((VLOOKUP($B135,Pupils,Pupils!$M$3,FALSE)+VLOOKUP($B135,Pupils,Pupils!$P$3,FALSE))/VLOOKUP($B135,Pupils,Pupils!$L$3,FALSE)), \"x\")","v":0.17659161046976798},{"$f":"IFERROR(((VLOOKUP($B135,Pupils,Pupils!$R$3,FALSE)+VLOOKUP($B135,Pupils,Pupils!$U$3,FALSE))/VLOOKUP($B135,Pupils,Pupils!$Q$3,FALSE)), \"x\")","v":0.17698102678571428},{"$f":"IFERROR(((VLOOKUP($B135,Pupils,Pupils!$W$3,FALSE)+VLOOKUP($B135,Pupils,Pupils!$Z$3,FALSE))/VLOOKUP($B135,Pupils,Pupils!$V$3,FALSE)), \"x\")","v":0.16693076881044752},{"$f":"(SUM(INDEX(Pupils!$AB$7:$AB$159,MATCH($B135,Pupils!$A$7:$A$159,0)),INDEX(Pupils!$AC$7:$AC$159,MATCH($B135,Pupils!$A$7:$A$159,0)),INDEX(Pupils!$AD$7:$AD$159,MATCH($B135,Pupils!$A$7:$A$159,0)),INDEX(Pupils!$AE$7:$AE$159,MATCH($B135,Pupils!$A$7:$A$159,0))))/SUM(INDEX(Pupils!$AB$7:$AM$159,MATCH($B135,Pupils!$A$7:$A$159,0),0))","v":0.34635248547449965},{"$f":"SUM(INDEX(Pupils!$AF$7:$AF$159,MATCH($B135,Pupils!$A$7:$A$159,0)))/SUM(INDEX(Pupils!$AB$7:$AM$159,MATCH($B135,Pupils!$A$7:$A$159,0),0))","v":0.2514525500322789},{"$f":"SUM(INDEX(Pupils!$AG$7:$AG$159,MATCH($B135,Pupils!$A$7:$A$159,0)))/SUM(INDEX(Pupils!$AB$7:$AM$159,MATCH($B135,Pupils!$A$7:$A$159,0),0))","v":0.17753389283408652},{"$f":"(SUM(INDEX(Pupils!$AH$7:$AH$159,MATCH($B135,Pupils!$A$7:$A$159,0)),INDEX(Pupils!$AI$7:$AI$159,MATCH($B135,Pupils!$A$7:$A$159,0)),INDEX(Pupils!$AJ$7:$AJ$159,MATCH($B135,Pupils!$A$7:$A$159,0))))/SUM(INDEX(Pupils!$AB$7:$AM$159,MATCH($B135,Pupils!$A$7:$A$159,0),0))","v":2.711426726920594E-2},{"$f":"SUM(INDEX(Pupils!$AK$7:$AK$159,MATCH($B135,Pupils!$A$7:$A$159,0)))/SUM(INDEX(Pupils!$AB$7:$AM$159,MATCH($B135,Pupils!$A$7:$A$159,0),0))","v":2.5500322788896062E-2},{"$f":"SUM(INDEX(Pupils!$AL$7:$AL$159,MATCH($B135,Pupils!$A$7:$A$159,0)))/SUM(INDEX(Pupils!$AB$7:$AM$159,MATCH($B135,Pupils!$A$7:$A$159,0),0))","v":0.1262104583602324},{"$f":"SUM(INDEX(Pupils!$AM$7:$AM$159,MATCH($B135,Pupils!$A$7:$A$159,0)))/SUM(INDEX(Pupils!$AB$7:$AM$159,MATCH($B135,Pupils!$A$7:$A$159,0),0))","v":4.5836023240800515E-2},{"$f":"(SUM(INDEX(Pupils!$BH$7:$BH$159,MATCH($B135,Pupils!$A$7:$A$159,0)),INDEX(Pupils!$BK$7:$BK$159,MATCH($B135,Pupils!$A$7:$A$159,0)),INDEX(Pupils!$BO$7:$BO$159,MATCH($B135,Pupils!$A$7:$A$159,0))))/SUM(INDEX(Pupils!$BH$7:$BS$159,MATCH($B135,Pupils!$A$7:$A$159,0),0))","v":0.38389513108614232},{"$f":"(SUM(INDEX(Pupils!$BL$7:$BL$159,MATCH($B135,Pupils!$A$7:$A$159,0)),INDEX(Pupils!$BM$7:$BM$159,MATCH($B135,Pupils!$A$7:$A$159,0)),INDEX(Pupils!$BP$7:$BP$159,MATCH($B135,Pupils!$A$7:$A$159,0))))/SUM(INDEX(Pupils!$BH$7:$BS$159,MATCH($B135,Pupils!$A$7:$A$159,0),0))","v":0.41853932584269665},{"$f":"(SUM(INDEX(Pupils!$BI$7:$BI$159,MATCH($B135,Pupils!$A$7:$A$159,0)),INDEX(Pupils!$BJ$7:$BJ$159,MATCH($B135,Pupils!$A$7:$A$159,0))))/SUM(INDEX(Pupils!$BH$7:$BS$159,MATCH($B135,Pupils!$A$7:$A$159,0),0))","v":0.1797752808988764},{"$f":"(SUM(INDEX(Pupils!$BQ$7:$BQ$159,MATCH($B135,Pupils!$A$7:$A$159,0)),INDEX(Pupils!$BR$7:$BR$159,MATCH($B135,Pupils!$A$7:$A$159,0)),INDEX(Pupils!$BN$7:$BN$159,MATCH($B135,Pupils!$A$7:$A$159,0)),INDEX(Pupils!$BS$7:$BS$159,MATCH($B135,Pupils!$A$7:$A$159,0))))/SUM(INDEX(Pupils!$BH$7:$BS$159,MATCH($B135,Pupils!$A$7:$A$159,0),0))","v":1.7790262172284643E-2},{"$f":"IFERROR((VLOOKUP(B135,Funding,Funding!$C$2,FALSE)), \"x\")","v":28769424},{"$f":"IFERROR((AA135/VLOOKUP(B135,Funding,Funding!$D$2,FALSE)), \"x\")","v":0.18534032056598065},{"$f":"IFERROR((AA135/(VLOOKUP(B135,Pupils,Pupils!$M$3,FALSE)+VLOOKUP(B135,Pupils,Pupils!$P$3,FALSE))), \"x\")","v":4655.2466019417479},{"$f":"IFERROR((VLOOKUP(B135,Funding,Funding!$E$2,FALSE)), \"x\")","v":30545832.291622765},{"$f":"IFERROR((AD135/VLOOKUP(B135,Funding,Funding!$F$2,FALSE)), \"x\")","v":0.18785164859276607},{"$f":"IFERROR((AD135/(VLOOKUP(B135,Pupils,Pupils!$R$3,FALSE)+VLOOKUP(B135,Pupils,Pupils!$U$3,FALSE))), \"x\")","v":4815.6759091317617},{"$f":"IFERROR((VLOOKUP(B135,Funding,Funding!$G$2,FALSE)), \"x\")","v":31283776.96965795},{"$f":"IFERROR((AG135/VLOOKUP(B135,Funding,Funding!$H$2,FALSE)), \"x\")","v":0.18750069160862923},{"$f":"IFERROR((AG135/(VLOOKUP(B135,Pupils,Pupils!$W$3,FALSE)+VLOOKUP(B135,Pupils,Pupils!$Z$3,FALSE))), \"x\")","v":5120.0944303859169},{"$f":"IFERROR((VLOOKUP(B135,Funding,Funding!$I$2,FALSE)), \"x\")","v":31577471.172501419},{"$f":"IFERROR((AJ135/VLOOKUP(B135,Funding,Funding!$J$2,FALSE)), \"x\")","v":0.17872185625549095},null,{"$f":"IFERROR((VLOOKUP($B135,Funding,Funding!$EC$2,FALSE)), \"x\")","v":15335141},{"$f":"IFERROR((AM135/VLOOKUP($B135,Funding,Funding!$EU$2,FALSE)), \"x\")","v":9.1580893304247721E-2},{"$f":"IFERROR((AM135/(VLOOKUP($B135,Pupils,Pupils!$D$3,FALSE)+VLOOKUP($B135,Pupils,Pupils!$E$3,FALSE))), \"x\")","v":2563.1190038442255},{"$f":"IFERROR((VLOOKUP($B135,Funding,Funding!$DA$2,FALSE)), \"x\")","v":17875983.379999999},{"$f":"IFERROR((AP135/VLOOKUP($B135,Funding,Funding!$DT$2,FALSE)), \"x\")","v":0.10039117518432156},{"$f":"IFERROR((AP135/(VLOOKUP($B135,Pupils,Pupils!$G$3,FALSE)+VLOOKUP($B135,Pupils,Pupils!$H$3,FALSE))), \"x\")","v":2962.0519270919635},{"$f":"IFERROR((VLOOKUP($B135,Funding,Funding!$CE$2,FALSE)), \"x\")","v":20217453},{"$f":"IFERROR((AS135/VLOOKUP($B135,Funding,Funding!$CR$2,FALSE)), \"x\")","v":0.11729235167618833},{"$f":"IFERROR((AS135/(VLOOKUP($B135,Pupils,Pupils!$J$3,FALSE)+VLOOKUP($B135,Pupils,Pupils!$K$3,FALSE))), \"x\")","v":3275.6728775113415},{"$f":"IFERROR((VLOOKUP($B135,Funding,Funding!$BM$2,FALSE)), \"x\")","v":20758830},{"$f":"IFERROR((AV135/VLOOKUP($B135,Funding,Funding!$BY$2,FALSE)), \"x\")","v":0.18903696014563992},{"$f":"IFERROR((AV135/(VLOOKUP($B135,Pupils,Pupils!$M$3,FALSE)+VLOOKUP($B135,Pupils,Pupils!$P$3,FALSE))), \"x\")","v":3359.0339805825242},{"$f":"IFERROR((VLOOKUP($B135,Funding,Funding!$AQ$2,FALSE)), \"x\")","v":26688332},{"$f":"IFERROR((AY135/VLOOKUP($B135,Funding,Funding!$BE$2,FALSE)), \"x\")","v":0.16060001556876466},{"$f":"IFERROR((AY135/(VLOOKUP($B135,Pupils,Pupils!$R$3,FALSE)+VLOOKUP($B135,Pupils,Pupils!$U$3,FALSE))), \"x\")","v":4207.525145830049},{"$f":"IFERROR((VLOOKUP($B135,Funding,Funding!$S$2,FALSE)), \"x\")","v":26495825},{"$f":"IFERROR((BB135/VLOOKUP($B135,Funding,Funding!$AH$2,FALSE)), \"x\")","v":0.15510956837006054},{"$f":"IFERROR((BB135/(VLOOKUP(B135,Pupils,Pupils!$W$3,FALSE)+VLOOKUP(B135,Pupils,Pupils!$Z$3,FALSE))), \"x\")","v":4336.4689034369885},{"$f":"IFERROR((VLOOKUP($B135,Funding,Funding!$GX$2,FALSE)), \"x\")","v":30177581},{"$f":"IFERROR((BE135/VLOOKUP($B135,Funding,Funding!$HC$2,FALSE)), \"x\")","v":0.16578347909419927},{"$f":"IFERROR((BE135/(VLOOKUP($B135,Pupils,Pupils!$D$3,FALSE)+VLOOKUP($B135,Pupils,Pupils!$E$3,FALSE))), \"x\")","v":5043.8878489052313},{"$f":"IFERROR((VLOOKUP($B135,Funding,Funding!$GP$2,FALSE)), \"x\")","v":30522420},{"$f":"IFERROR((BH135/VLOOKUP($B135,Funding,Funding!$GU$2,FALSE)), \"x\")","v":0.16770089863467402},{"$f":"IFERROR((BH135/(VLOOKUP($B135,Pupils,Pupils!$G$3,FALSE)+VLOOKUP($B135,Pupils,Pupils!$H$3,FALSE))), \"x\")","v":5057.567522783761},{"$f":"IFERROR((VLOOKUP($B135,Funding,Funding!$GH$2,FALSE)), \"x\")","v":23125747.449999999},{"$f":"IFERROR((BK135/VLOOKUP($B135,Funding,Funding!$GM$2,FALSE)), \"x\")","v":0.19640059359569245},{"$f":"IFERROR((BK135/(VLOOKUP($B135,Pupils,Pupils!$J$3,FALSE)+VLOOKUP($B135,Pupils,Pupils!$K$3,FALSE))), \"x\")","v":3746.880662670123},{"$f":"IFERROR((VLOOKUP($B135,Funding,Funding!$FZ$2,FALSE)), \"x\")","v":23037915.850000001},{"$f":"IFERROR((BN135/VLOOKUP($B135,Funding,Funding!$GE$2,FALSE)), \"x\")","v":0.2070927441139763},{"$f":"IFERROR((BN135/(VLOOKUP($B135,Pupils,Pupils!$M$3,FALSE)+VLOOKUP($B135,Pupils,Pupils!$P$3,FALSE))), \"x\")","v":3727.8180987055021},{"$f":"IFERROR((VLOOKUP($B135,Funding,Funding!$FD$2,FALSE)), \"x\")","v":26306529.050000001},{"$f":"IFERROR((BQ135/VLOOKUP($B135,Funding,Funding!$FR$2,FALSE)), \"x\")","v":0.24344962861883224},{"$f":"IFERROR((BQ135/(VLOOKUP($B135,Pupils,Pupils!$R$3,FALSE)+VLOOKUP($B135,Pupils,Pupils!$U$3,FALSE))), \"x\")","v":4147.3323427400283},{"$f":"(VLOOKUP(B135,Funding,Funding!$HK$2,FALSE)+VLOOKUP(B135,Funding,Funding!$HL$2,FALSE)+VLOOKUP(B135,Funding,Funding!$HM$2,FALSE))/(VLOOKUP(B135,Funding,Funding!$HN$2,FALSE))","v":0.10602910602910603},{"$f":"IFERROR((VLOOKUP(B135,Other_data,Other!$D$3,FALSE)+VLOOKUP(B135,Other_data,Other!$E$3,FALSE)+VLOOKUP(B135,Other_data,Other!$F$3,FALSE)), \"x\")","v":1150},{"$f":"(VLOOKUP(B135,Other_data,Other!$AK$3,FALSE)+VLOOKUP(B135,Other_data,Other!$AL$3,FALSE))/VLOOKUP(B135,Other_data,Other!$AJ$3,FALSE)","v":3.3992469522630929E-2},{"$f":"(VLOOKUP(B135,Other_data,Other!$AR$3,FALSE)+VLOOKUP(B135,Other_data,Other!$AS$3,FALSE))/VLOOKUP(B135,Other_data,Other!$AQ$3,FALSE)","v":5.3331973690919285E-2},{"$f":"VLOOKUP(B135,Other_data,Other!$AP$3,FALSE)/VLOOKUP(B135,Other_data,Other!$AJ$3,FALSE)","v":4.7921219621369707E-3},{"$f":"VLOOKUP(B135,Other_data,Other!$AW$3,FALSE)/VLOOKUP(B135,Other_data,Other!$AQ$3,FALSE)","v":1.0401264467445062E-2}]
[130,866,"Swindon",{"$f":"IFERROR((VLOOKUP($B136,Pupils,Pupils!$D$3,FALSE)/VLOOKUP($B136,Pupils,Pupils!$C$3,FALSE)), \"x\")","v":3.3566623632533807E-2},{"$f":"IFERROR((VLOOKUP($B136,Pupils,Pupils!$G$3,FALSE)/VLOOKUP($B136,Pupils,Pupils!$F$3,FALSE)),\"x\")","v":3.490152056332279E-2},{"$f":"IFERROR((VLOOKUP($B136,Pupils,Pupils!$J$3,FALSE)/VLOOKUP($B136,Pupils,Pupils!$I$3,FALSE)), \"x\")","v":3.4268962496209185E-2},{"$f":"IFERROR((VLOOKUP($B136,Pupils,Pupils!$M$3,FALSE)/VLOOKUP($B136,Pupils,Pupils!$L$3,FALSE)), \"x\")","v":3.4580704825445056E-2},{"$f":"IFERROR((VLOOKUP($B136,Pupils,Pupils!$R$3,FALSE)/VLOOKUP($B136,Pupils,Pupils!$Q$3,FALSE)), \"x\")","v":3.5903434382818337E-2},{"$f":"IFERROR((VLOOKUP($B136,Pupils,Pupils!$W$3,FALSE)/VLOOKUP($B136,Pupils,Pupils!$V$3,FALSE)), \"x\")","v":3.6709307171940625E-2},{"$f":"IFERROR(((VLOOKUP($B136,Pupils,Pupils!$D$3,FALSE)+VLOOKUP($B136,Pupils,Pupils!$E$3,FALSE))/VLOOKUP($B136,Pupils,Pupils!$C$3,FALSE)), \"x\")","v":0.22745804172045933},{"$f":"IFERROR(((VLOOKUP($B136,Pupils,Pupils!$G$3,FALSE)+VLOOKUP($B136,Pupils,Pupils!$H$3,FALSE))/VLOOKUP($B136,Pupils,Pupils!$F$3,FALSE)), \"x\")","v":0.21791339252304656},{"$f":"IFERROR(((VLOOKUP($B136,Pupils,Pupils!$J$3,FALSE)+VLOOKUP($B136,Pupils,Pupils!$K$3,FALSE))/VLOOKUP($B136,Pupils,Pupils!$I$3,FALSE)), \"x\")","v":0.21363345351619098},{"$f":"IFERROR(((VLOOKUP($B136,Pupils,Pupils!$M$3,FALSE)+VLOOKUP($B136,Pupils,Pupils!$P$3,FALSE))/VLOOKUP($B136,Pupils,Pupils!$L$3,FALSE)), \"x\")","v":0.2063942926974271},{"$f":"IFERROR(((VLOOKUP($B136,Pupils,Pupils!$R$3,FALSE)+VLOOKUP($B136,Pupils,Pupils!$U$3,FALSE))/VLOOKUP($B136,Pupils,Pupils!$Q$3,FALSE)), \"x\")","v":0.19010949735191865},{"$f":"IFERROR(((VLOOKUP($B136,Pupils,Pupils!$W$3,FALSE)+VLOOKUP($B136,Pupils,Pupils!$Z$3,FALSE))/VLOOKUP($B136,Pupils,Pupils!$V$3,FALSE)), \"x\")","v":0.18656022570613318},{"$f":"(SUM(INDEX(Pupils!$AB$7:$AB$159,MATCH($B136,Pupils!$A$7:$A$159,0)),INDEX(Pupils!$AC$7:$AC$159,MATCH($B136,Pupils!$A$7:$A$159,0)),INDEX(Pupils!$AD$7:$AD$159,MATCH($B136,Pupils!$A$7:$A$159,0)),INDEX(Pupils!$AE$7:$AE$159,MATCH($B136,Pupils!$A$7:$A$159,0))))/SUM(INDEX(Pupils!$AB$7:$AM$159,MATCH($B136,Pupils!$A$7:$A$159,0),0))","v":0.34400269541778977},{"$f":"SUM(INDEX(Pupils!$AF$7:$AF$159,MATCH($B136,Pupils!$A$7:$A$159,0)))/SUM(INDEX(Pupils!$AB$7:$AM$159,MATCH($B136,Pupils!$A$7:$A$159,0),0))","v":0.2617924528301887},{"$f":"SUM(INDEX(Pupils!$AG$7:$AG$159,MATCH($B136,Pupils!$A$7:$A$159,0)))/SUM(INDEX(Pupils!$AB$7:$AM$159,MATCH($B136,Pupils!$A$7:$A$159,0),0))","v":0.15262803234501349},{"$f":"(SUM(INDEX(Pupils!$AH$7:$AH$159,MATCH($B136,Pupils!$A$7:$A$159,0)),INDEX(Pupils!$AI$7:$AI$159,MATCH($B136,Pupils!$A$7:$A$159,0)),INDEX(Pupils!$AJ$7:$AJ$159,MATCH($B136,Pupils!$A$7:$A$159,0))))/SUM(INDEX(Pupils!$AB$7:$AM$159,MATCH($B136,Pupils!$A$7:$A$159,0),0))","v":3.638814016172507E-2},{"$f":"SUM(INDEX(Pupils!$AK$7:$AK$159,MATCH($B136,Pupils!$A$7:$A$159,0)))/SUM(INDEX(Pupils!$AB$7:$AM$159,MATCH($B136,Pupils!$A$7:$A$159,0),0))","v":3.6725067385444746E-2},{"$f":"SUM(INDEX(Pupils!$AL$7:$AL$159,MATCH($B136,Pupils!$A$7:$A$159,0)))/SUM(INDEX(Pupils!$AB$7:$AM$159,MATCH($B136,Pupils!$A$7:$A$159,0),0))","v":9.7035040431266845E-2},{"$f":"SUM(INDEX(Pupils!$AM$7:$AM$159,MATCH($B136,Pupils!$A$7:$A$159,0)))/SUM(INDEX(Pupils!$AB$7:$AM$159,MATCH($B136,Pupils!$A$7:$A$159,0),0))","v":7.1428571428571425E-2},{"$f":"(SUM(INDEX(Pupils!$BH$7:$BH$159,MATCH($B136,Pupils!$A$7:$A$159,0)),INDEX(Pupils!$BK$7:$BK$159,MATCH($B136,Pupils!$A$7:$A$159,0)),INDEX(Pupils!$BO$7:$BO$159,MATCH($B136,Pupils!$A$7:$A$159,0))))/SUM(INDEX(Pupils!$BH$7:$BS$159,MATCH($B136,Pupils!$A$7:$A$159,0),0))","v":0.52631578947368418},{"$f":"(SUM(INDEX(Pupils!$BL$7:$BL$159,MATCH($B136,Pupils!$A$7:$A$159,0)),INDEX(Pupils!$BM$7:$BM$159,MATCH($B136,Pupils!$A$7:$A$159,0)),INDEX(Pupils!$BP$7:$BP$159,MATCH($B136,Pupils!$A$7:$A$159,0))))/SUM(INDEX(Pupils!$BH$7:$BS$159,MATCH($B136,Pupils!$A$7:$A$159,0),0))","v":0.40789473684210525},{"$f":"(SUM(INDEX(Pupils!$BI$7:$BI$159,MATCH($B136,Pupils!$A$7:$A$159,0)),INDEX(Pupils!$BJ$7:$BJ$159,MATCH($B136,Pupils!$A$7:$A$159,0))))/SUM(INDEX(Pupils!$BH$7:$BS$159,MATCH($B136,Pupils!$A$7:$A$159,0),0))","v":6.0855263157894739E-2},{"$f":"(SUM(INDEX(Pupils!$BQ$7:$BQ$159,MATCH($B136,Pupils!$A$7:$A$159,0)),INDEX(Pupils!$BR$7:$BR$159,MATCH($B136,Pupils!$A$7:$A$159,0)),INDEX(Pupils!$BN$7:$BN$159,MATCH($B136,Pupils!$A$7:$A$159,0)),INDEX(Pupils!$BS$7:$BS$159,MATCH($B136,Pupils!$A$7:$A$159,0))))/SUM(INDEX(Pupils!$BH$7:$BS$159,MATCH($B136,Pupils!$A$7:$A$159,0),0))","v":4.9342105263157892E-3},{"$f":"IFERROR((VLOOKUP(B136,Funding,Funding!$C$2,FALSE)), \"x\")","v":21330746.670000002},{"$f":"IFERROR((AA136/VLOOKUP(B136,Funding,Funding!$D$2,FALSE)), \"x\")","v":0.1521458629324306},{"$f":"IFERROR((AA136/(VLOOKUP(B136,Pupils,Pupils!$M$3,FALSE)+VLOOKUP(B136,Pupils,Pupils!$P$3,FALSE))), \"x\")","v":3413.4656216994722},{"$f":"IFERROR((VLOOKUP(B136,Funding,Funding!$E$2,FALSE)), \"x\")","v":22839523.444891475},{"$f":"IFERROR((AD136/VLOOKUP(B136,Funding,Funding!$F$2,FALSE)), \"x\")","v":0.15702802251965486},{"$f":"IFERROR((AD136/(VLOOKUP(B136,Pupils,Pupils!$R$3,FALSE)+VLOOKUP(B136,Pupils,Pupils!$U$3,FALSE))), \"x\")","v":3903.5247726698813},{"$f":"IFERROR((VLOOKUP(B136,Funding,Funding!$G$2,FALSE)), \"x\")","v":24282892.127820227},{"$f":"IFERROR((AG136/VLOOKUP(B136,Funding,Funding!$H$2,FALSE)), \"x\")","v":0.15914222075719014},{"$f":"IFERROR((AG136/(VLOOKUP(B136,Pupils,Pupils!$W$3,FALSE)+VLOOKUP(B136,Pupils,Pupils!$Z$3,FALSE))), \"x\")","v":4173.0352513868756},{"$f":"IFERROR((VLOOKUP(B136,Funding,Funding!$I$2,FALSE)), \"x\")","v":24497300.268951062},{"$f":"IFERROR((AJ136/VLOOKUP(B136,Funding,Funding!$J$2,FALSE)), \"x\")","v":0.15592649813472936},null,{"$f":"IFERROR((VLOOKUP($B136,Funding,Funding!$EC$2,FALSE)), \"x\")","v":14413846.539999999},{"$f":"IFERROR((AM136/VLOOKUP($B136,Funding,Funding!$EU$2,FALSE)), \"x\")","v":0.10524504533649452},{"$f":"IFERROR((AM136/(VLOOKUP($B136,Pupils,Pupils!$D$3,FALSE)+VLOOKUP($B136,Pupils,Pupils!$E$3,FALSE))), \"x\")","v":2152.9270410754293},{"$f":"IFERROR((VLOOKUP($B136,Funding,Funding!$DA$2,FALSE)), \"x\")","v":14854851.630830001},{"$f":"IFERROR((AP136/VLOOKUP($B136,Funding,Funding!$DT$2,FALSE)), \"x\")","v":0.10428198442965762},{"$f":"IFERROR((AP136/(VLOOKUP($B136,Pupils,Pupils!$G$3,FALSE)+VLOOKUP($B136,Pupils,Pupils!$H$3,FALSE))), \"x\")","v":2318.8966017530443},{"$f":"IFERROR((VLOOKUP($B136,Funding,Funding!$CE$2,FALSE)), \"x\")","v":15996724},{"$f":"IFERROR((AS136/VLOOKUP($B136,Funding,Funding!$CR$2,FALSE)), \"x\")","v":0.11450895430446958},{"$f":"IFERROR((AS136/(VLOOKUP($B136,Pupils,Pupils!$J$3,FALSE)+VLOOKUP($B136,Pupils,Pupils!$K$3,FALSE))), \"x\")","v":2523.1425867507887},{"$f":"IFERROR((VLOOKUP($B136,Funding,Funding!$BM$2,FALSE)), \"x\")","v":15834019.280000001},{"$f":"IFERROR((AV136/VLOOKUP($B136,Funding,Funding!$BY$2,FALSE)), \"x\")","v":0.16389025681096159},{"$f":"IFERROR((AV136/(VLOOKUP($B136,Pupils,Pupils!$M$3,FALSE)+VLOOKUP($B136,Pupils,Pupils!$P$3,FALSE))), \"x\")","v":2533.8485005600896},{"$f":"IFERROR((VLOOKUP($B136,Funding,Funding!$AQ$2,FALSE)), \"x\")","v":22267116},{"$f":"IFERROR((AY136/VLOOKUP($B136,Funding,Funding!$BE$2,FALSE)), \"x\")","v":0.15367886210129431},{"$f":"IFERROR((AY136/(VLOOKUP($B136,Pupils,Pupils!$R$3,FALSE)+VLOOKUP($B136,Pupils,Pupils!$U$3,FALSE))), \"x\")","v":3805.6940693898478},{"$f":"IFERROR((VLOOKUP($B136,Funding,Funding!$S$2,FALSE)), \"x\")","v":20204312},{"$f":"IFERROR((BB136/VLOOKUP($B136,Funding,Funding!$AH$2,FALSE)), \"x\")","v":0.13743980026993946},{"$f":"IFERROR((BB136/(VLOOKUP(B136,Pupils,Pupils!$W$3,FALSE)+VLOOKUP(B136,Pupils,Pupils!$Z$3,FALSE))), \"x\")","v":3472.1278570201066},{"$f":"IFERROR((VLOOKUP($B136,Funding,Funding!$GX$2,FALSE)), \"x\")","v":21700735.976670001},{"$f":"IFERROR((BE136/VLOOKUP($B136,Funding,Funding!$HC$2,FALSE)), \"x\")","v":0.14514913226657344},{"$f":"IFERROR((BE136/(VLOOKUP($B136,Pupils,Pupils!$D$3,FALSE)+VLOOKUP($B136,Pupils,Pupils!$E$3,FALSE))), \"x\")","v":3241.3347239238237},{"$f":"IFERROR((VLOOKUP($B136,Funding,Funding!$GP$2,FALSE)), \"x\")","v":21946428.649999999},{"$f":"IFERROR((BH136/VLOOKUP($B136,Funding,Funding!$GU$2,FALSE)), \"x\")","v":0.1454228927163066},{"$f":"IFERROR((BH136/(VLOOKUP($B136,Pupils,Pupils!$G$3,FALSE)+VLOOKUP($B136,Pupils,Pupils!$H$3,FALSE))), \"x\")","v":3425.9176787386823},{"$f":"IFERROR((VLOOKUP($B136,Funding,Funding!$GH$2,FALSE)), \"x\")","v":21598708.560000002},{"$f":"IFERROR((BK136/VLOOKUP($B136,Funding,Funding!$GM$2,FALSE)), \"x\")","v":0.17198041492649049},{"$f":"IFERROR((BK136/(VLOOKUP($B136,Pupils,Pupils!$J$3,FALSE)+VLOOKUP($B136,Pupils,Pupils!$K$3,FALSE))), \"x\")","v":3406.7363659305997},{"$f":"IFERROR((VLOOKUP($B136,Funding,Funding!$FZ$2,FALSE)), \"x\")","v":18443805.630000003},{"$f":"IFERROR((BN136/VLOOKUP($B136,Funding,Funding!$GE$2,FALSE)), \"x\")","v":0.19347416299351233},{"$f":"IFERROR((BN136/(VLOOKUP($B136,Pupils,Pupils!$M$3,FALSE)+VLOOKUP($B136,Pupils,Pupils!$P$3,FALSE))), \"x\")","v":2951.4811377820456},{"$f":"IFERROR((VLOOKUP($B136,Funding,Funding!$FD$2,FALSE)), \"x\")","v":22943084},{"$f":"IFERROR((BQ136/VLOOKUP($B136,Funding,Funding!$FR$2,FALSE)), \"x\")","v":0.2701591754889433},{"$f":"IFERROR((BQ136/(VLOOKUP($B136,Pupils,Pupils!$R$3,FALSE)+VLOOKUP($B136,Pupils,Pupils!$U$3,FALSE))), \"x\")","v":3921.22440608443},{"$f":"(VLOOKUP(B136,Funding,Funding!$HK$2,FALSE)+VLOOKUP(B136,Funding,Funding!$HL$2,FALSE)+VLOOKUP(B136,Funding,Funding!$HM$2,FALSE))/(VLOOKUP(B136,Funding,Funding!$HN$2,FALSE))","v":0.27412082957619477},{"$f":"IFERROR((VLOOKUP(B136,Other_data,Other!$D$3,FALSE)+VLOOKUP(B136,Other_data,Other!$E$3,FALSE)+VLOOKUP(B136,Other_data,Other!$F$3,FALSE)), \"x\")","v":1300},{"$f":"(VLOOKUP(B136,Other_data,Other!$AK$3,FALSE)+VLOOKUP(B136,Other_data,Other!$AL$3,FALSE))/VLOOKUP(B136,Other_data,Other!$AJ$3,FALSE)","v":3.4174400618716162E-2},{"$f":"(VLOOKUP(B136,Other_data,Other!$AR$3,FALSE)+VLOOKUP(B136,Other_data,Other!$AS$3,FALSE))/VLOOKUP(B136,Other_data,Other!$AQ$3,FALSE)","v":4.7589424572317261E-2},{"$f":"VLOOKUP(B136,Other_data,Other!$AP$3,FALSE)/VLOOKUP(B136,Other_data,Other!$AJ$3,FALSE)","v":4.7612142304717707E-3},{"$f":"VLOOKUP(B136,Other_data,Other!$AW$3,FALSE)/VLOOKUP(B136,Other_data,Other!$AQ$3,FALSE)","v":8.9313485892023991E-3}]
[131,357,"Tameside",{"$f":"IFERROR((VLOOKUP($B137,Pupils,Pupils!$D$3,FALSE)/VLOOKUP($B137,Pupils,Pupils!$C$3,FALSE)), \"x\")","v":2.1602031789515738E-2},{"$f":"IFERROR((VLOOKUP($B137,Pupils,Pupils!$G$3,FALSE)/VLOOKUP($B137,Pupils,Pupils!$F$3,FALSE)),\"x\")","v":1.9460517603707862E-2},{"$f":"IFERROR((VLOOKUP($B137,Pupils,Pupils!$J$3,FALSE)/VLOOKUP($B137,Pupils,Pupils!$I$3,FALSE)), \"x\")","v":1.8369292089073737E-2},{"$f":"IFERROR((VLOOKUP($B137,Pupils,Pupils!$M$3,FALSE)/VLOOKUP($B137,Pupils,Pupils!$L$3,FALSE)), \"x\")","v":1.7486877591856857E-2},{"$f":"IFERROR((VLOOKUP($B137,Pupils,Pupils!$R$3,FALSE)/VLOOKUP($B137,Pupils,Pupils!$Q$3,FALSE)), \"x\")","v":1.7961137058179092E-2},{"$f":"IFERROR((VLOOKUP($B137,Pupils,Pupils!$W$3,FALSE)/VLOOKUP($B137,Pupils,Pupils!$V$3,FALSE)), \"x\")","v":1.7556380245503853E-2},{"$f":"IFERROR(((VLOOKUP($B137,Pupils,Pupils!$D$3,FALSE)+VLOOKUP($B137,Pupils,Pupils!$E$3,FALSE))/VLOOKUP($B137,Pupils,Pupils!$C$3,FALSE)), \"x\")","v":0.18853979396741147},{"$f":"IFERROR(((VLOOKUP($B137,Pupils,Pupils!$G$3,FALSE)+VLOOKUP($B137,Pupils,Pupils!$H$3,FALSE))/VLOOKUP($B137,Pupils,Pupils!$F$3,FALSE)), \"x\")","v":0.18450067651207647},{"$f":"IFERROR(((VLOOKUP($B137,Pupils,Pupils!$J$3,FALSE)+VLOOKUP($B137,Pupils,Pupils!$K$3,FALSE))/VLOOKUP($B137,Pupils,Pupils!$I$3,FALSE)), \"x\")","v":0.18640787915547469},{"$f":"IFERROR(((VLOOKUP($B137,Pupils,Pupils!$M$3,FALSE)+VLOOKUP($B137,Pupils,Pupils!$P$3,FALSE))/VLOOKUP($B137,Pupils,Pupils!$L$3,FALSE)), \"x\")","v":0.17460777774555578},{"$f":"IFERROR(((VLOOKUP($B137,Pupils,Pupils!$R$3,FALSE)+VLOOKUP($B137,Pupils,Pupils!$U$3,FALSE))/VLOOKUP($B137,Pupils,Pupils!$Q$3,FALSE)), \"x\")","v":0.16672432681773627},{"$f":"IFERROR(((VLOOKUP($B137,Pupils,Pupils!$W$3,FALSE)+VLOOKUP($B137,Pupils,Pupils!$Z$3,FALSE))/VLOOKUP($B137,Pupils,Pupils!$V$3,FALSE)), \"x\")","v":0.16083357122466457},{"$f":"(SUM(INDEX(Pupils!$AB$7:$AB$159,MATCH($B137,Pupils!$A$7:$A$159,0)),INDEX(Pupils!$AC$7:$AC$159,MATCH($B137,Pupils!$A$7:$A$159,0)),INDEX(Pupils!$AD$7:$AD$159,MATCH($B137,Pupils!$A$7:$A$159,0)),INDEX(Pupils!$AE$7:$AE$159,MATCH($B137,Pupils!$A$7:$A$159,0))))/SUM(INDEX(Pupils!$AB$7:$AM$159,MATCH($B137,Pupils!$A$7:$A$159,0),0))","v":0.41460541813898705},{"$f":"SUM(INDEX(Pupils!$AF$7:$AF$159,MATCH($B137,Pupils!$A$7:$A$159,0)))/SUM(INDEX(Pupils!$AB$7:$AM$159,MATCH($B137,Pupils!$A$7:$A$159,0),0))","v":0.21083627797408716},{"$f":"SUM(INDEX(Pupils!$AG$7:$AG$159,MATCH($B137,Pupils!$A$7:$A$159,0)))/SUM(INDEX(Pupils!$AB$7:$AM$159,MATCH($B137,Pupils!$A$7:$A$159,0),0))","v":0.15429917550058891},{"$f":"(SUM(INDEX(Pupils!$AH$7:$AH$159,MATCH($B137,Pupils!$A$7:$A$159,0)),INDEX(Pupils!$AI$7:$AI$159,MATCH($B137,Pupils!$A$7:$A$159,0)),INDEX(Pupils!$AJ$7:$AJ$159,MATCH($B137,Pupils!$A$7:$A$159,0))))/SUM(INDEX(Pupils!$AB$7:$AM$159,MATCH($B137,Pupils!$A$7:$A$159,0),0))","v":3.6120926580290535E-2},{"$f":"SUM(INDEX(Pupils!$AK$7:$AK$159,MATCH($B137,Pupils!$A$7:$A$159,0)))/SUM(INDEX(Pupils!$AB$7:$AM$159,MATCH($B137,Pupils!$A$7:$A$159,0),0))","v":3.0624263839811542E-2},{"$f":"SUM(INDEX(Pupils!$AL$7:$AL$159,MATCH($B137,Pupils!$A$7:$A$159,0)))/SUM(INDEX(Pupils!$AB$7:$AM$159,MATCH($B137,Pupils!$A$7:$A$159,0),0))","v":8.0486847271299566E-2},{"$f":"SUM(INDEX(Pupils!$AM$7:$AM$159,MATCH($B137,Pupils!$A$7:$A$159,0)))/SUM(INDEX(Pupils!$AB$7:$AM$159,MATCH($B137,Pupils!$A$7:$A$159,0),0))","v":7.3027090694935223E-2},{"$f":"(SUM(INDEX(Pupils!$BH$7:$BH$159,MATCH($B137,Pupils!$A$7:$A$159,0)),INDEX(Pupils!$BK$7:$BK$159,MATCH($B137,Pupils!$A$7:$A$159,0)),INDEX(Pupils!$BO$7:$BO$159,MATCH($B137,Pupils!$A$7:$A$159,0))))/SUM(INDEX(Pupils!$BH$7:$BS$159,MATCH($B137,Pupils!$A$7:$A$159,0),0))","v":0.28840579710144926},{"$f":"(SUM(INDEX(Pupils!$BL$7:$BL$159,MATCH($B137,Pupils!$A$7:$A$159,0)),INDEX(Pupils!$BM$7:$BM$159,MATCH($B137,Pupils!$A$7:$A$159,0)),INDEX(Pupils!$BP$7:$BP$159,MATCH($B137,Pupils!$A$7:$A$159,0))))/SUM(INDEX(Pupils!$BH$7:$BS$159,MATCH($B137,Pupils!$A$7:$A$159,0),0))","v":0.63623188405797104},{"$f":"(SUM(INDEX(Pupils!$BI$7:$BI$159,MATCH($B137,Pupils!$A$7:$A$159,0)),INDEX(Pupils!$BJ$7:$BJ$159,MATCH($B137,Pupils!$A$7:$A$159,0))))/SUM(INDEX(Pupils!$BH$7:$BS$159,MATCH($B137,Pupils!$A$7:$A$159,0),0))","v":7.101449275362319E-2},{"$f":"(SUM(INDEX(Pupils!$BQ$7:$BQ$159,MATCH($B137,Pupils!$A$7:$A$159,0)),INDEX(Pupils!$BR$7:$BR$159,MATCH($B137,Pupils!$A$7:$A$159,0)),INDEX(Pupils!$BN$7:$BN$159,MATCH($B137,Pupils!$A$7:$A$159,0)),INDEX(Pupils!$BS$7:$BS$159,MATCH($B137,Pupils!$A$7:$A$159,0))))/SUM(INDEX(Pupils!$BH$7:$BS$159,MATCH($B137,Pupils!$A$7:$A$159,0),0))","v":4.3478260869565218E-3},{"$f":"IFERROR((VLOOKUP(B137,Funding,Funding!$C$2,FALSE)), \"x\")","v":13324363.969999999},{"$f":"IFERROR((AA137/VLOOKUP(B137,Funding,Funding!$D$2,FALSE)), \"x\")","v":7.9618583073860494E-2},{"$f":"IFERROR((AA137/(VLOOKUP(B137,Pupils,Pupils!$M$3,FALSE)+VLOOKUP(B137,Pupils,Pupils!$P$3,FALSE))), \"x\")","v":2212.9818917123398},{"$f":"IFERROR((VLOOKUP(B137,Funding,Funding!$E$2,FALSE)), \"x\")","v":13814117.182410726},{"$f":"IFERROR((AD137/VLOOKUP(B137,Funding,Funding!$F$2,FALSE)), \"x\")","v":8.0744354439880747E-2},{"$f":"IFERROR((AD137/(VLOOKUP(B137,Pupils,Pupils!$R$3,FALSE)+VLOOKUP(B137,Pupils,Pupils!$U$3,FALSE))), \"x\")","v":2388.745838217314},{"$f":"IFERROR((VLOOKUP(B137,Funding,Funding!$G$2,FALSE)), \"x\")","v":14794189.260798484},{"$f":"IFERROR((AG137/VLOOKUP(B137,Funding,Funding!$H$2,FALSE)), \"x\")","v":8.4428750884108728E-2},{"$f":"IFERROR((AG137/(VLOOKUP(B137,Pupils,Pupils!$W$3,FALSE)+VLOOKUP(B137,Pupils,Pupils!$Z$3,FALSE))), \"x\")","v":2625.8766881076472},{"$f":"IFERROR((VLOOKUP(B137,Funding,Funding!$I$2,FALSE)), \"x\")","v":15001396.392643152},{"$f":"IFERROR((AJ137/VLOOKUP(B137,Funding,Funding!$J$2,FALSE)), \"x\")","v":8.6370289040879011E-2},null,{"$f":"IFERROR((VLOOKUP($B137,Funding,Funding!$EC$2,FALSE)), \"x\")","v":11758639.699999999},{"$f":"IFERROR((AM137/VLOOKUP($B137,Funding,Funding!$EU$2,FALSE)), \"x\")","v":7.4460100380648042E-2},{"$f":"IFERROR((AM137/(VLOOKUP($B137,Pupils,Pupils!$D$3,FALSE)+VLOOKUP($B137,Pupils,Pupils!$E$3,FALSE))), \"x\")","v":1779.7244891781443},{"$f":"IFERROR((VLOOKUP($B137,Funding,Funding!$DA$2,FALSE)), \"x\")","v":11489359.199999999},{"$f":"IFERROR((AP137/VLOOKUP($B137,Funding,Funding!$DT$2,FALSE)), \"x\")","v":7.0099452302172072E-2},{"$f":"IFERROR((AP137/(VLOOKUP($B137,Pupils,Pupils!$G$3,FALSE)+VLOOKUP($B137,Pupils,Pupils!$H$3,FALSE))), \"x\")","v":1792.6914027149321},{"$f":"IFERROR((VLOOKUP($B137,Funding,Funding!$CE$2,FALSE)), \"x\")","v":10380895},{"$f":"IFERROR((AS137/VLOOKUP($B137,Funding,Funding!$CR$2,FALSE)), \"x\")","v":6.7035748658176908E-2},{"$f":"IFERROR((AS137/(VLOOKUP($B137,Pupils,Pupils!$J$3,FALSE)+VLOOKUP($B137,Pupils,Pupils!$K$3,FALSE))), \"x\")","v":1608.4436008676789},{"$f":"IFERROR((VLOOKUP($B137,Funding,Funding!$BM$2,FALSE)), \"x\")","v":10483480.98},{"$f":"IFERROR((AV137/VLOOKUP($B137,Funding,Funding!$BY$2,FALSE)), \"x\")","v":7.1700161315478711E-2},{"$f":"IFERROR((AV137/(VLOOKUP($B137,Pupils,Pupils!$M$3,FALSE)+VLOOKUP($B137,Pupils,Pupils!$P$3,FALSE))), \"x\")","v":1741.1527952167414},{"$f":"IFERROR((VLOOKUP($B137,Funding,Funding!$AQ$2,FALSE)), \"x\")","v":12547802},{"$f":"IFERROR((AY137/VLOOKUP($B137,Funding,Funding!$BE$2,FALSE)), \"x\")","v":6.647723728088413E-2},{"$f":"IFERROR((AY137/(VLOOKUP($B137,Pupils,Pupils!$R$3,FALSE)+VLOOKUP($B137,Pupils,Pupils!$U$3,FALSE))), \"x\")","v":2169.773819816704},{"$f":"IFERROR((VLOOKUP($B137,Funding,Funding!$S$2,FALSE)), \"x\")","v":14904930},{"$f":"IFERROR((BB137/VLOOKUP($B137,Funding,Funding!$AH$2,FALSE)), \"x\")","v":8.5390626914745568E-2},{"$f":"IFERROR((BB137/(VLOOKUP(B137,Pupils,Pupils!$W$3,FALSE)+VLOOKUP(B137,Pupils,Pupils!$Z$3,FALSE))), \"x\")","v":2645.5324813631523},{"$f":"IFERROR((VLOOKUP($B137,Funding,Funding!$GX$2,FALSE)), \"x\")","v":14982977},{"$f":"IFERROR((BE137/VLOOKUP($B137,Funding,Funding!$HC$2,FALSE)), \"x\")","v":8.82084857438519E-2},{"$f":"IFERROR((BE137/(VLOOKUP($B137,Pupils,Pupils!$D$3,FALSE)+VLOOKUP($B137,Pupils,Pupils!$E$3,FALSE))), \"x\")","v":2267.7428484940215},{"$f":"IFERROR((VLOOKUP($B137,Funding,Funding!$GP$2,FALSE)), \"x\")","v":14927079.859999999},{"$f":"IFERROR((BH137/VLOOKUP($B137,Funding,Funding!$GU$2,FALSE)), \"x\")","v":9.1870104601927835E-2},{"$f":"IFERROR((BH137/(VLOOKUP($B137,Pupils,Pupils!$G$3,FALSE)+VLOOKUP($B137,Pupils,Pupils!$H$3,FALSE))), \"x\")","v":2329.0809580277732},{"$f":"IFERROR((VLOOKUP($B137,Funding,Funding!$GH$2,FALSE)), \"x\")","v":14871834.4},{"$f":"IFERROR((BK137/VLOOKUP($B137,Funding,Funding!$GM$2,FALSE)), \"x\")","v":9.733373594833486E-2},{"$f":"IFERROR((BK137/(VLOOKUP($B137,Pupils,Pupils!$J$3,FALSE)+VLOOKUP($B137,Pupils,Pupils!$K$3,FALSE))), \"x\")","v":2304.2817477533313},{"$f":"IFERROR((VLOOKUP($B137,Funding,Funding!$FZ$2,FALSE)), \"x\")","v":16012872.560000001},{"$f":"IFERROR((BN137/VLOOKUP($B137,Funding,Funding!$GE$2,FALSE)), \"x\")","v":0.10581827016161405},{"$f":"IFERROR((BN137/(VLOOKUP($B137,Pupils,Pupils!$M$3,FALSE)+VLOOKUP($B137,Pupils,Pupils!$P$3,FALSE))), \"x\")","v":2659.5038299285834},{"$f":"IFERROR((VLOOKUP($B137,Funding,Funding!$FD$2,FALSE)), \"x\")","v":14834298.200000001},{"$f":"IFERROR((BQ137/VLOOKUP($B137,Funding,Funding!$FR$2,FALSE)), \"x\")","v":0.10940992330166964},{"$f":"IFERROR((BQ137/(VLOOKUP($B137,Pupils,Pupils!$R$3,FALSE)+VLOOKUP($B137,Pupils,Pupils!$U$3,FALSE))), \"x\")","v":2565.1561819125022},{"$f":"(VLOOKUP(B137,Funding,Funding!$HK$2,FALSE)+VLOOKUP(B137,Funding,Funding!$HL$2,FALSE)+VLOOKUP(B137,Funding,Funding!$HM$2,FALSE))/(VLOOKUP(B137,Funding,Funding!$HN$2,FALSE))","v":0.21438082556591212},{"$f":"IFERROR((VLOOKUP(B137,Other_data,Other!$D$3,FALSE)+VLOOKUP(B137,Other_data,Other!$E$3,FALSE)+VLOOKUP(B137,Other_data,Other!$F$3,FALSE)), \"x\")","v":1260},{"$f":"(VLOOKUP(B137,Other_data,Other!$AK$3,FALSE)+VLOOKUP(B137,Other_data,Other!$AL$3,FALSE))/VLOOKUP(B137,Other_data,Other!$AJ$3,FALSE)","v":3.8675974512743627E-2},{"$f":"(VLOOKUP(B137,Other_data,Other!$AR$3,FALSE)+VLOOKUP(B137,Other_data,Other!$AS$3,FALSE))/VLOOKUP(B137,Other_data,Other!$AQ$3,FALSE)","v":6.1442636126180429E-2},{"$f":"VLOOKUP(B137,Other_data,Other!$AP$3,FALSE)/VLOOKUP(B137,Other_data,Other!$AJ$3,FALSE)","v":6.6294977511244376E-3},{"$f":"VLOOKUP(B137,Other_data,Other!$AW$3,FALSE)/VLOOKUP(B137,Other_data,Other!$AQ$3,FALSE)","v":1.4024512758689973E-2}]
[132,894,"Telford and Wrekin",{"$f":"IFERROR((VLOOKUP($B138,Pupils,Pupils!$D$3,FALSE)/VLOOKUP($B138,Pupils,Pupils!$C$3,FALSE)), \"x\")","v":3.7585833032164798E-2},{"$f":"IFERROR((VLOOKUP($B138,Pupils,Pupils!$G$3,FALSE)/VLOOKUP($B138,Pupils,Pupils!$F$3,FALSE)),\"x\")","v":3.739813736903376E-2},{"$f":"IFERROR((VLOOKUP($B138,Pupils,Pupils!$J$3,FALSE)/VLOOKUP($B138,Pupils,Pupils!$I$3,FALSE)), \"x\")","v":3.8084077925882524E-2},{"$f":"IFERROR((VLOOKUP($B138,Pupils,Pupils!$M$3,FALSE)/VLOOKUP($B138,Pupils,Pupils!$L$3,FALSE)), \"x\")","v":3.8631628960929788E-2},{"$f":"IFERROR((VLOOKUP($B138,Pupils,Pupils!$R$3,FALSE)/VLOOKUP($B138,Pupils,Pupils!$Q$3,FALSE)), \"x\")","v":3.8556401886108087E-2},{"$f":"IFERROR((VLOOKUP($B138,Pupils,Pupils!$W$3,FALSE)/VLOOKUP($B138,Pupils,Pupils!$V$3,FALSE)), \"x\")","v":3.623500682324212E-2},{"$f":"IFERROR(((VLOOKUP($B138,Pupils,Pupils!$D$3,FALSE)+VLOOKUP($B138,Pupils,Pupils!$E$3,FALSE))/VLOOKUP($B138,Pupils,Pupils!$C$3,FALSE)), \"x\")","v":0.22493675460787857},{"$f":"IFERROR(((VLOOKUP($B138,Pupils,Pupils!$G$3,FALSE)+VLOOKUP($B138,Pupils,Pupils!$H$3,FALSE))/VLOOKUP($B138,Pupils,Pupils!$F$3,FALSE)), \"x\")","v":0.23661233993015135},{"$f":"IFERROR(((VLOOKUP($B138,Pupils,Pupils!$J$3,FALSE)+VLOOKUP($B138,Pupils,Pupils!$K$3,FALSE))/VLOOKUP($B138,Pupils,Pupils!$I$3,FALSE)), \"x\")","v":0.22671012157609491},{"$f":"IFERROR(((VLOOKUP($B138,Pupils,Pupils!$M$3,FALSE)+VLOOKUP($B138,Pupils,Pupils!$P$3,FALSE))/VLOOKUP($B138,Pupils,Pupils!$L$3,FALSE)), \"x\")","v":0.22813493658857498},{"$f":"IFERROR(((VLOOKUP($B138,Pupils,Pupils!$R$3,FALSE)+VLOOKUP($B138,Pupils,Pupils!$U$3,FALSE))/VLOOKUP($B138,Pupils,Pupils!$Q$3,FALSE)), \"x\")","v":0.21360174102285093},{"$f":"IFERROR(((VLOOKUP($B138,Pupils,Pupils!$W$3,FALSE)+VLOOKUP($B138,Pupils,Pupils!$Z$3,FALSE))/VLOOKUP($B138,Pupils,Pupils!$V$3,FALSE)), \"x\")","v":0.1988436400201106},{"$f":"(SUM(INDEX(Pupils!$AB$7:$AB$159,MATCH($B138,Pupils!$A$7:$A$159,0)),INDEX(Pupils!$AC$7:$AC$159,MATCH($B138,Pupils!$A$7:$A$159,0)),INDEX(Pupils!$AD$7:$AD$159,MATCH($B138,Pupils!$A$7:$A$159,0)),INDEX(Pupils!$AE$7:$AE$159,MATCH($B138,Pupils!$A$7:$A$159,0))))/SUM(INDEX(Pupils!$AB$7:$AM$159,MATCH($B138,Pupils!$A$7:$A$159,0),0))","v":0.4604501607717042},{"$f":"SUM(INDEX(Pupils!$AF$7:$AF$159,MATCH($B138,Pupils!$A$7:$A$159,0)))/SUM(INDEX(Pupils!$AB$7:$AM$159,MATCH($B138,Pupils!$A$7:$A$159,0),0))","v":0.20160771704180064},{"$f":"SUM(INDEX(Pupils!$AG$7:$AG$159,MATCH($B138,Pupils!$A$7:$A$159,0)))/SUM(INDEX(Pupils!$AB$7:$AM$159,MATCH($B138,Pupils!$A$7:$A$159,0),0))","v":0.17813504823151124},{"$f":"(SUM(INDEX(Pupils!$AH$7:$AH$159,MATCH($B138,Pupils!$A$7:$A$159,0)),INDEX(Pupils!$AI$7:$AI$159,MATCH($B138,Pupils!$A$7:$A$159,0)),INDEX(Pupils!$AJ$7:$AJ$159,MATCH($B138,Pupils!$A$7:$A$159,0))))/SUM(INDEX(Pupils!$AB$7:$AM$159,MATCH($B138,Pupils!$A$7:$A$159,0),0))","v":3.8263665594855306E-2},{"$f":"SUM(INDEX(Pupils!$AK$7:$AK$159,MATCH($B138,Pupils!$A$7:$A$159,0)))/SUM(INDEX(Pupils!$AB$7:$AM$159,MATCH($B138,Pupils!$A$7:$A$159,0),0))","v":4.1479099678456595E-2},{"$f":"SUM(INDEX(Pupils!$AL$7:$AL$159,MATCH($B138,Pupils!$A$7:$A$159,0)))/SUM(INDEX(Pupils!$AB$7:$AM$159,MATCH($B138,Pupils!$A$7:$A$159,0),0))","v":5.9485530546623797E-2},{"$f":"SUM(INDEX(Pupils!$AM$7:$AM$159,MATCH($B138,Pupils!$A$7:$A$159,0)))/SUM(INDEX(Pupils!$AB$7:$AM$159,MATCH($B138,Pupils!$A$7:$A$159,0),0))","v":2.0578778135048232E-2},{"$f":"(SUM(INDEX(Pupils!$BH$7:$BH$159,MATCH($B138,Pupils!$A$7:$A$159,0)),INDEX(Pupils!$BK$7:$BK$159,MATCH($B138,Pupils!$A$7:$A$159,0)),INDEX(Pupils!$BO$7:$BO$159,MATCH($B138,Pupils!$A$7:$A$159,0))))/SUM(INDEX(Pupils!$BH$7:$BS$159,MATCH($B138,Pupils!$A$7:$A$159,0),0))","v":0.4908741594620557},{"$f":"(SUM(INDEX(Pupils!$BL$7:$BL$159,MATCH($B138,Pupils!$A$7:$A$159,0)),INDEX(Pupils!$BM$7:$BM$159,MATCH($B138,Pupils!$A$7:$A$159,0)),INDEX(Pupils!$BP$7:$BP$159,MATCH($B138,Pupils!$A$7:$A$159,0))))/SUM(INDEX(Pupils!$BH$7:$BS$159,MATCH($B138,Pupils!$A$7:$A$159,0),0))","v":0.50240153698366952},{"$f":"(SUM(INDEX(Pupils!$BI$7:$BI$159,MATCH($B138,Pupils!$A$7:$A$159,0)),INDEX(Pupils!$BJ$7:$BJ$159,MATCH($B138,Pupils!$A$7:$A$159,0))))/SUM(INDEX(Pupils!$BH$7:$BS$159,MATCH($B138,Pupils!$A$7:$A$159,0),0))","v":0},{"$f":"(SUM(INDEX(Pupils!$BQ$7:$BQ$159,MATCH($B138,Pupils!$A$7:$A$159,0)),INDEX(Pupils!$BR$7:$BR$159,MATCH($B138,Pupils!$A$7:$A$159,0)),INDEX(Pupils!$BN$7:$BN$159,MATCH($B138,Pupils!$A$7:$A$159,0)),INDEX(Pupils!$BS$7:$BS$159,MATCH($B138,Pupils!$A$7:$A$159,0))))/SUM(INDEX(Pupils!$BH$7:$BS$159,MATCH($B138,Pupils!$A$7:$A$159,0),0))","v":6.7243035542747355E-3},{"$f":"IFERROR((VLOOKUP(B138,Funding,Funding!$C$2,FALSE)), \"x\")","v":15563520.738618264},{"$f":"IFERROR((AA138/VLOOKUP(B138,Funding,Funding!$D$2,FALSE)), \"x\")","v":0.1321897790042546},{"$f":"IFERROR((AA138/(VLOOKUP(B138,Pupils,Pupils!$M$3,FALSE)+VLOOKUP(B138,Pupils,Pupils!$P$3,FALSE))), \"x\")","v":2493.3548123387159},{"$f":"IFERROR((VLOOKUP(B138,Funding,Funding!$E$2,FALSE)), \"x\")","v":15526310.839220975},{"$f":"IFERROR((AD138/VLOOKUP(B138,Funding,Funding!$F$2,FALSE)), \"x\")","v":0.12825194156249847},{"$f":"IFERROR((AD138/(VLOOKUP(B138,Pupils,Pupils!$R$3,FALSE)+VLOOKUP(B138,Pupils,Pupils!$U$3,FALSE))), \"x\")","v":2636.4936048940353},{"$f":"IFERROR((VLOOKUP(B138,Funding,Funding!$G$2,FALSE)), \"x\")","v":16053380.007953657},{"$f":"IFERROR((AG138/VLOOKUP(B138,Funding,Funding!$H$2,FALSE)), \"x\")","v":0.13037284940563779},{"$f":"IFERROR((AG138/(VLOOKUP(B138,Pupils,Pupils!$W$3,FALSE)+VLOOKUP(B138,Pupils,Pupils!$Z$3,FALSE))), \"x\")","v":2899.2920368346859},{"$f":"IFERROR((VLOOKUP(B138,Funding,Funding!$I$2,FALSE)), \"x\")","v":16179391.143307986},{"$f":"IFERROR((AJ138/VLOOKUP(B138,Funding,Funding!$J$2,FALSE)), \"x\")","v":0.12675601403384454},null,{"$f":"IFERROR((VLOOKUP($B138,Funding,Funding!$EC$2,FALSE)), \"x\")","v":11227574.4},{"$f":"IFERROR((AM138/VLOOKUP($B138,Funding,Funding!$EU$2,FALSE)), \"x\")","v":9.5942991172908512E-2},{"$f":"IFERROR((AM138/(VLOOKUP($B138,Pupils,Pupils!$D$3,FALSE)+VLOOKUP($B138,Pupils,Pupils!$E$3,FALSE))), \"x\")","v":1803.9161953727507},{"$f":"IFERROR((VLOOKUP($B138,Funding,Funding!$DA$2,FALSE)), \"x\")","v":12013246.06068},{"$f":"IFERROR((AP138/VLOOKUP($B138,Funding,Funding!$DT$2,FALSE)), \"x\")","v":9.9070423685210338E-2},{"$f":"IFERROR((AP138/(VLOOKUP($B138,Pupils,Pupils!$G$3,FALSE)+VLOOKUP($B138,Pupils,Pupils!$H$3,FALSE))), \"x\")","v":1847.0550523800739},{"$f":"IFERROR((VLOOKUP($B138,Funding,Funding!$CE$2,FALSE)), \"x\")","v":13479476},{"$f":"IFERROR((AS138/VLOOKUP($B138,Funding,Funding!$CR$2,FALSE)), \"x\")","v":0.11374095349828331},{"$f":"IFERROR((AS138/(VLOOKUP($B138,Pupils,Pupils!$J$3,FALSE)+VLOOKUP($B138,Pupils,Pupils!$K$3,FALSE))), \"x\")","v":2177.2695848812791},{"$f":"IFERROR((VLOOKUP($B138,Funding,Funding!$BM$2,FALSE)), \"x\")","v":13458117.82},{"$f":"IFERROR((AV138/VLOOKUP($B138,Funding,Funding!$BY$2,FALSE)), \"x\")","v":0.11713618974728637},{"$f":"IFERROR((AV138/(VLOOKUP($B138,Pupils,Pupils!$M$3,FALSE)+VLOOKUP($B138,Pupils,Pupils!$P$3,FALSE))), \"x\")","v":2156.0586062159564},{"$f":"IFERROR((VLOOKUP($B138,Funding,Funding!$AQ$2,FALSE)), \"x\")","v":15859526},{"$f":"IFERROR((AY138/VLOOKUP($B138,Funding,Funding!$BE$2,FALSE)), \"x\")","v":0.1303625553488196},{"$f":"IFERROR((AY138/(VLOOKUP($B138,Pupils,Pupils!$R$3,FALSE)+VLOOKUP($B138,Pupils,Pupils!$U$3,FALSE))), \"x\")","v":2693.0762438444558},{"$f":"IFERROR((VLOOKUP($B138,Funding,Funding!$S$2,FALSE)), \"x\")","v":15227671},{"$f":"IFERROR((BB138/VLOOKUP($B138,Funding,Funding!$AH$2,FALSE)), \"x\")","v":0.12277712604660126},{"$f":"IFERROR((BB138/(VLOOKUP(B138,Pupils,Pupils!$W$3,FALSE)+VLOOKUP(B138,Pupils,Pupils!$Z$3,FALSE))), \"x\")","v":2750.1663355607729},{"$f":"IFERROR((VLOOKUP($B138,Funding,Funding!$GX$2,FALSE)), \"x\")","v":15208416},{"$f":"IFERROR((BE138/VLOOKUP($B138,Funding,Funding!$HC$2,FALSE)), \"x\")","v":0.12478440082430813},{"$f":"IFERROR((BE138/(VLOOKUP($B138,Pupils,Pupils!$D$3,FALSE)+VLOOKUP($B138,Pupils,Pupils!$E$3,FALSE))), \"x\")","v":2443.5115681233933},{"$f":"IFERROR((VLOOKUP($B138,Funding,Funding!$GP$2,FALSE)), \"x\")","v":18120687.449999999},{"$f":"IFERROR((BH138/VLOOKUP($B138,Funding,Funding!$GU$2,FALSE)), \"x\")","v":0.13641191198894426},{"$f":"IFERROR((BH138/(VLOOKUP($B138,Pupils,Pupils!$G$3,FALSE)+VLOOKUP($B138,Pupils,Pupils!$H$3,FALSE))), \"x\")","v":2786.0835562730626},{"$f":"IFERROR((VLOOKUP($B138,Funding,Funding!$GH$2,FALSE)), \"x\")","v":18895878.079999998},{"$f":"IFERROR((BK138/VLOOKUP($B138,Funding,Funding!$GM$2,FALSE)), \"x\")","v":0.15630688885007737},{"$f":"IFERROR((BK138/(VLOOKUP($B138,Pupils,Pupils!$J$3,FALSE)+VLOOKUP($B138,Pupils,Pupils!$K$3,FALSE))), \"x\")","v":3052.1528153771601},{"$f":"IFERROR((VLOOKUP($B138,Funding,Funding!$FZ$2,FALSE)), \"x\")","v":19953059.899999999},{"$f":"IFERROR((BN138/VLOOKUP($B138,Funding,Funding!$GE$2,FALSE)), \"x\")","v":0.16601908506938387},{"$f":"IFERROR((BN138/(VLOOKUP($B138,Pupils,Pupils!$M$3,FALSE)+VLOOKUP($B138,Pupils,Pupils!$P$3,FALSE))), \"x\")","v":3196.5812079461707},{"$f":"IFERROR((VLOOKUP($B138,Funding,Funding!$FD$2,FALSE)), \"x\")","v":17197197},{"$f":"IFERROR((BQ138/VLOOKUP($B138,Funding,Funding!$FR$2,FALSE)), \"x\")","v":0.17123524406124602},{"$f":"IFERROR((BQ138/(VLOOKUP($B138,Pupils,Pupils!$R$3,FALSE)+VLOOKUP($B138,Pupils,Pupils!$U$3,FALSE))), \"x\")","v":2920.2236372898624},{"$f":"(VLOOKUP(B138,Funding,Funding!$HK$2,FALSE)+VLOOKUP(B138,Funding,Funding!$HL$2,FALSE)+VLOOKUP(B138,Funding,Funding!$HM$2,FALSE))/(VLOOKUP(B138,Funding,Funding!$HN$2,FALSE))","v":0.13821138211382114},{"$f":"IFERROR((VLOOKUP(B138,Other_data,Other!$D$3,FALSE)+VLOOKUP(B138,Other_data,Other!$E$3,FALSE)+VLOOKUP(B138,Other_data,Other!$F$3,FALSE)), \"x\")","v":1320},{"$f":"(VLOOKUP(B138,Other_data,Other!$AK$3,FALSE)+VLOOKUP(B138,Other_data,Other!$AL$3,FALSE))/VLOOKUP(B138,Other_data,Other!$AJ$3,FALSE)","v":4.5425201009448912E-2},{"$f":"(VLOOKUP(B138,Other_data,Other!$AR$3,FALSE)+VLOOKUP(B138,Other_data,Other!$AS$3,FALSE))/VLOOKUP(B138,Other_data,Other!$AQ$3,FALSE)","v":6.1219182357224594E-2},{"$f":"VLOOKUP(B138,Other_data,Other!$AP$3,FALSE)/VLOOKUP(B138,Other_data,Other!$AJ$3,FALSE)","v":7.27742238394272E-3},{"$f":"VLOOKUP(B138,Other_data,Other!$AW$3,FALSE)/VLOOKUP(B138,Other_data,Other!$AQ$3,FALSE)","v":1.3263289295745344E-2}]
[133,883,"Thurrock",{"$f":"IFERROR((VLOOKUP($B139,Pupils,Pupils!$D$3,FALSE)/VLOOKUP($B139,Pupils,Pupils!$C$3,FALSE)), \"x\")","v":3.9381576121966931E-2},{"$f":"IFERROR((VLOOKUP($B139,Pupils,Pupils!$G$3,FALSE)/VLOOKUP($B139,Pupils,Pupils!$F$3,FALSE)),\"x\")","v":3.7511240525842503E-2},{"$f":"IFERROR((VLOOKUP($B139,Pupils,Pupils!$J$3,FALSE)/VLOOKUP($B139,Pupils,Pupils!$I$3,FALSE)), \"x\")","v":3.6160337552742616E-2},{"$f":"IFERROR((VLOOKUP($B139,Pupils,Pupils!$M$3,FALSE)/VLOOKUP($B139,Pupils,Pupils!$L$3,FALSE)), \"x\")","v":3.5426929392446634E-2},{"$f":"IFERROR((VLOOKUP($B139,Pupils,Pupils!$R$3,FALSE)/VLOOKUP($B139,Pupils,Pupils!$Q$3,FALSE)), \"x\")","v":3.5764235764235763E-2},{"$f":"IFERROR((VLOOKUP($B139,Pupils,Pupils!$W$3,FALSE)/VLOOKUP($B139,Pupils,Pupils!$V$3,FALSE)), \"x\")","v":3.5902851108764518E-2},{"$f":"IFERROR(((VLOOKUP($B139,Pupils,Pupils!$D$3,FALSE)+VLOOKUP($B139,Pupils,Pupils!$E$3,FALSE))/VLOOKUP($B139,Pupils,Pupils!$C$3,FALSE)), \"x\")","v":0.25394030491732877},{"$f":"IFERROR(((VLOOKUP($B139,Pupils,Pupils!$G$3,FALSE)+VLOOKUP($B139,Pupils,Pupils!$H$3,FALSE))/VLOOKUP($B139,Pupils,Pupils!$F$3,FALSE)), \"x\")","v":0.2539288314135229},{"$f":"IFERROR(((VLOOKUP($B139,Pupils,Pupils!$J$3,FALSE)+VLOOKUP($B139,Pupils,Pupils!$K$3,FALSE))/VLOOKUP($B139,Pupils,Pupils!$I$3,FALSE)), \"x\")","v":0.23987341772151899},{"$f":"IFERROR(((VLOOKUP($B139,Pupils,Pupils!$M$3,FALSE)+VLOOKUP($B139,Pupils,Pupils!$P$3,FALSE))/VLOOKUP($B139,Pupils,Pupils!$L$3,FALSE)), \"x\")","v":0.21572249589490969},{"$f":"IFERROR(((VLOOKUP($B139,Pupils,Pupils!$R$3,FALSE)+VLOOKUP($B139,Pupils,Pupils!$U$3,FALSE))/VLOOKUP($B139,Pupils,Pupils!$Q$3,FALSE)), \"x\")","v":0.19584415584415585},{"$f":"IFERROR(((VLOOKUP($B139,Pupils,Pupils!$W$3,FALSE)+VLOOKUP($B139,Pupils,Pupils!$Z$3,FALSE))/VLOOKUP($B139,Pupils,Pupils!$V$3,FALSE)), \"x\")","v":0.17982713442058743},{"$f":"(SUM(INDEX(Pupils!$AB$7:$AB$159,MATCH($B139,Pupils!$A$7:$A$159,0)),INDEX(Pupils!$AC$7:$AC$159,MATCH($B139,Pupils!$A$7:$A$159,0)),INDEX(Pupils!$AD$7:$AD$159,MATCH($B139,Pupils!$A$7:$A$159,0)),INDEX(Pupils!$AE$7:$AE$159,MATCH($B139,Pupils!$A$7:$A$159,0))))/SUM(INDEX(Pupils!$AB$7:$AM$159,MATCH($B139,Pupils!$A$7:$A$159,0),0))","v":0.41477272727272729},{"$f":"SUM(INDEX(Pupils!$AF$7:$AF$159,MATCH($B139,Pupils!$A$7:$A$159,0)))/SUM(INDEX(Pupils!$AB$7:$AM$159,MATCH($B139,Pupils!$A$7:$A$159,0),0))","v":0.19318181818181818},{"$f":"SUM(INDEX(Pupils!$AG$7:$AG$159,MATCH($B139,Pupils!$A$7:$A$159,0)))/SUM(INDEX(Pupils!$AB$7:$AM$159,MATCH($B139,Pupils!$A$7:$A$159,0),0))","v":0.16477272727272727},{"$f":"(SUM(INDEX(Pupils!$AH$7:$AH$159,MATCH($B139,Pupils!$A$7:$A$159,0)),INDEX(Pupils!$AI$7:$AI$159,MATCH($B139,Pupils!$A$7:$A$159,0)),INDEX(Pupils!$AJ$7:$AJ$159,MATCH($B139,Pupils!$A$7:$A$159,0))))/SUM(INDEX(Pupils!$AB$7:$AM$159,MATCH($B139,Pupils!$A$7:$A$159,0),0))","v":3.3279220779220776E-2},{"$f":"SUM(INDEX(Pupils!$AK$7:$AK$159,MATCH($B139,Pupils!$A$7:$A$159,0)))/SUM(INDEX(Pupils!$AB$7:$AM$159,MATCH($B139,Pupils!$A$7:$A$159,0),0))","v":5.1948051948051951E-2},{"$f":"SUM(INDEX(Pupils!$AL$7:$AL$159,MATCH($B139,Pupils!$A$7:$A$159,0)))/SUM(INDEX(Pupils!$AB$7:$AM$159,MATCH($B139,Pupils!$A$7:$A$159,0),0))","v":9.6185064935064929E-2},{"$f":"SUM(INDEX(Pupils!$AM$7:$AM$159,MATCH($B139,Pupils!$A$7:$A$159,0)))/SUM(INDEX(Pupils!$AB$7:$AM$159,MATCH($B139,Pupils!$A$7:$A$159,0),0))","v":4.5860389610389608E-2},{"$f":"(SUM(INDEX(Pupils!$BH$7:$BH$159,MATCH($B139,Pupils!$A$7:$A$159,0)),INDEX(Pupils!$BK$7:$BK$159,MATCH($B139,Pupils!$A$7:$A$159,0)),INDEX(Pupils!$BO$7:$BO$159,MATCH($B139,Pupils!$A$7:$A$159,0))))/SUM(INDEX(Pupils!$BH$7:$BS$159,MATCH($B139,Pupils!$A$7:$A$159,0),0))","v":0.5473790322580645},{"$f":"(SUM(INDEX(Pupils!$BL$7:$BL$159,MATCH($B139,Pupils!$A$7:$A$159,0)),INDEX(Pupils!$BM$7:$BM$159,MATCH($B139,Pupils!$A$7:$A$159,0)),INDEX(Pupils!$BP$7:$BP$159,MATCH($B139,Pupils!$A$7:$A$159,0))))/SUM(INDEX(Pupils!$BH$7:$BS$159,MATCH($B139,Pupils!$A$7:$A$159,0),0))","v":0.38911290322580644},{"$f":"(SUM(INDEX(Pupils!$BI$7:$BI$159,MATCH($B139,Pupils!$A$7:$A$159,0)),INDEX(Pupils!$BJ$7:$BJ$159,MATCH($B139,Pupils!$A$7:$A$159,0))))/SUM(INDEX(Pupils!$BH$7:$BS$159,MATCH($B139,Pupils!$A$7:$A$159,0),0))","v":3.3266129032258063E-2},{"$f":"(SUM(INDEX(Pupils!$BQ$7:$BQ$159,MATCH($B139,Pupils!$A$7:$A$159,0)),INDEX(Pupils!$BR$7:$BR$159,MATCH($B139,Pupils!$A$7:$A$159,0)),INDEX(Pupils!$BN$7:$BN$159,MATCH($B139,Pupils!$A$7:$A$159,0)),INDEX(Pupils!$BS$7:$BS$159,MATCH($B139,Pupils!$A$7:$A$159,0))))/SUM(INDEX(Pupils!$BH$7:$BS$159,MATCH($B139,Pupils!$A$7:$A$159,0),0))","v":3.0241935483870969E-2},{"$f":"IFERROR((VLOOKUP(B139,Funding,Funding!$C$2,FALSE)), \"x\")","v":19200865},{"$f":"IFERROR((AA139/VLOOKUP(B139,Funding,Funding!$D$2,FALSE)), \"x\")","v":0.15806939369494782},{"$f":"IFERROR((AA139/(VLOOKUP(B139,Pupils,Pupils!$M$3,FALSE)+VLOOKUP(B139,Pupils,Pupils!$P$3,FALSE))), \"x\")","v":3653.8277830637489},{"$f":"IFERROR((VLOOKUP(B139,Funding,Funding!$E$2,FALSE)), \"x\")","v":19835314.837120853},{"$f":"IFERROR((AD139/VLOOKUP(B139,Funding,Funding!$F$2,FALSE)), \"x\")","v":0.15827468588413801},{"$f":"IFERROR((AD139/(VLOOKUP(B139,Pupils,Pupils!$R$3,FALSE)+VLOOKUP(B139,Pupils,Pupils!$U$3,FALSE))), \"x\")","v":4047.1974774782398},{"$f":"IFERROR((VLOOKUP(B139,Funding,Funding!$G$2,FALSE)), \"x\")","v":20345295.915491},{"$f":"IFERROR((AG139/VLOOKUP(B139,Funding,Funding!$H$2,FALSE)), \"x\")","v":0.15854439900853967},{"$f":"IFERROR((AG139/(VLOOKUP(B139,Pupils,Pupils!$W$3,FALSE)+VLOOKUP(B139,Pupils,Pupils!$Z$3,FALSE))), \"x\")","v":4424.8142486931274},{"$f":"IFERROR((VLOOKUP(B139,Funding,Funding!$I$2,FALSE)), \"x\")","v":20465869.345120579},{"$f":"IFERROR((AJ139/VLOOKUP(B139,Funding,Funding!$J$2,FALSE)), \"x\")","v":0.15280334895114517},null,{"$f":"IFERROR((VLOOKUP($B139,Funding,Funding!$EC$2,FALSE)), \"x\")","v":9212347},{"$f":"IFERROR((AM139/VLOOKUP($B139,Funding,Funding!$EU$2,FALSE)), \"x\")","v":8.4261707737915206E-2},{"$f":"IFERROR((AM139/(VLOOKUP($B139,Pupils,Pupils!$D$3,FALSE)+VLOOKUP($B139,Pupils,Pupils!$E$3,FALSE))), \"x\")","v":1557.981904278708},{"$f":"IFERROR((VLOOKUP($B139,Funding,Funding!$DA$2,FALSE)), \"x\")","v":10269103},{"$f":"IFERROR((AP139/VLOOKUP($B139,Funding,Funding!$DT$2,FALSE)), \"x\")","v":9.3519868492476024E-2},{"$f":"IFERROR((AP139/(VLOOKUP($B139,Pupils,Pupils!$G$3,FALSE)+VLOOKUP($B139,Pupils,Pupils!$H$3,FALSE))), \"x\")","v":1731.7205733558178},{"$f":"IFERROR((VLOOKUP($B139,Funding,Funding!$CE$2,FALSE)), \"x\")","v":11410890},{"$f":"IFERROR((AS139/VLOOKUP($B139,Funding,Funding!$CR$2,FALSE)), \"x\")","v":0.10098332922705724},{"$f":"IFERROR((AS139/(VLOOKUP($B139,Pupils,Pupils!$J$3,FALSE)+VLOOKUP($B139,Pupils,Pupils!$K$3,FALSE))), \"x\")","v":2007.1926121372032},{"$f":"IFERROR((VLOOKUP($B139,Funding,Funding!$BM$2,FALSE)), \"x\")","v":13529243},{"$f":"IFERROR((AV139/VLOOKUP($B139,Funding,Funding!$BY$2,FALSE)), \"x\")","v":0.1490277452025098},{"$f":"IFERROR((AV139/(VLOOKUP($B139,Pupils,Pupils!$M$3,FALSE)+VLOOKUP($B139,Pupils,Pupils!$P$3,FALSE))), \"x\")","v":2574.5467174119885},{"$f":"IFERROR((VLOOKUP($B139,Funding,Funding!$AQ$2,FALSE)), \"x\")","v":25387902},{"$f":"IFERROR((AY139/VLOOKUP($B139,Funding,Funding!$BE$2,FALSE)), \"x\")","v":0.20050402933467093},{"$f":"IFERROR((AY139/(VLOOKUP($B139,Pupils,Pupils!$R$3,FALSE)+VLOOKUP($B139,Pupils,Pupils!$U$3,FALSE))), \"x\")","v":5180.1473168741077},{"$f":"IFERROR((VLOOKUP($B139,Funding,Funding!$S$2,FALSE)), \"x\")","v":22026328},{"$f":"IFERROR((BB139/VLOOKUP($B139,Funding,Funding!$AH$2,FALSE)), \"x\")","v":0.16710199960973698},{"$f":"IFERROR((BB139/(VLOOKUP(B139,Pupils,Pupils!$W$3,FALSE)+VLOOKUP(B139,Pupils,Pupils!$Z$3,FALSE))), \"x\")","v":4790.4149630274032},{"$f":"IFERROR((VLOOKUP($B139,Funding,Funding!$GX$2,FALSE)), \"x\")","v":16581327},{"$f":"IFERROR((BE139/VLOOKUP($B139,Funding,Funding!$HC$2,FALSE)), \"x\")","v":0.14323261179629954},{"$f":"IFERROR((BE139/(VLOOKUP($B139,Pupils,Pupils!$D$3,FALSE)+VLOOKUP($B139,Pupils,Pupils!$E$3,FALSE))), \"x\")","v":2804.2156265854896},{"$f":"IFERROR((VLOOKUP($B139,Funding,Funding!$GP$2,FALSE)), \"x\")","v":18680826},{"$f":"IFERROR((BH139/VLOOKUP($B139,Funding,Funding!$GU$2,FALSE)), \"x\")","v":0.16138584083804064},{"$f":"IFERROR((BH139/(VLOOKUP($B139,Pupils,Pupils!$G$3,FALSE)+VLOOKUP($B139,Pupils,Pupils!$H$3,FALSE))), \"x\")","v":3150.2236087689712},{"$f":"IFERROR((VLOOKUP($B139,Funding,Funding!$GH$2,FALSE)), \"x\")","v":17648727.640000001},{"$f":"IFERROR((BK139/VLOOKUP($B139,Funding,Funding!$GM$2,FALSE)), \"x\")","v":0.18767281947713871},{"$f":"IFERROR((BK139/(VLOOKUP($B139,Pupils,Pupils!$J$3,FALSE)+VLOOKUP($B139,Pupils,Pupils!$K$3,FALSE))), \"x\")","v":3104.4375795954265},{"$f":"IFERROR((VLOOKUP($B139,Funding,Funding!$FZ$2,FALSE)), \"x\")","v":16406831.51},{"$f":"IFERROR((BN139/VLOOKUP($B139,Funding,Funding!$GE$2,FALSE)), \"x\")","v":0.21966054051030429},{"$f":"IFERROR((BN139/(VLOOKUP($B139,Pupils,Pupils!$M$3,FALSE)+VLOOKUP($B139,Pupils,Pupils!$P$3,FALSE))), \"x\")","v":3122.1372997145577},{"$f":"IFERROR((VLOOKUP($B139,Funding,Funding!$FD$2,FALSE)), \"x\")","v":17527951.93},{"$f":"IFERROR((BQ139/VLOOKUP($B139,Funding,Funding!$FR$2,FALSE)), \"x\")","v":0.28641220296538189},{"$f":"IFERROR((BQ139/(VLOOKUP($B139,Pupils,Pupils!$R$3,FALSE)+VLOOKUP($B139,Pupils,Pupils!$U$3,FALSE))), \"x\")","v":3576.4031687410734},{"$f":"(VLOOKUP(B139,Funding,Funding!$HK$2,FALSE)+VLOOKUP(B139,Funding,Funding!$HL$2,FALSE)+VLOOKUP(B139,Funding,Funding!$HM$2,FALSE))/(VLOOKUP(B139,Funding,Funding!$HN$2,FALSE))","v":0.16987179487179488},{"$f":"IFERROR((VLOOKUP(B139,Other_data,Other!$D$3,FALSE)+VLOOKUP(B139,Other_data,Other!$E$3,FALSE)+VLOOKUP(B139,Other_data,Other!$F$3,FALSE)), \"x\")","v":1140},{"$f":"(VLOOKUP(B139,Other_data,Other!$AK$3,FALSE)+VLOOKUP(B139,Other_data,Other!$AL$3,FALSE))/VLOOKUP(B139,Other_data,Other!$AJ$3,FALSE)","v":3.7313650552848847E-2},{"$f":"(VLOOKUP(B139,Other_data,Other!$AR$3,FALSE)+VLOOKUP(B139,Other_data,Other!$AS$3,FALSE))/VLOOKUP(B139,Other_data,Other!$AQ$3,FALSE)","v":4.9531535648994512E-2},{"$f":"VLOOKUP(B139,Other_data,Other!$AP$3,FALSE)/VLOOKUP(B139,Other_data,Other!$AJ$3,FALSE)","v":5.9806867578842959E-3},{"$f":"VLOOKUP(B139,Other_data,Other!$AW$3,FALSE)/VLOOKUP(B139,Other_data,Other!$AQ$3,FALSE)","v":8.8551188299817191E-3}]
[134,880,"Torbay",{"$f":"IFERROR((VLOOKUP($B140,Pupils,Pupils!$D$3,FALSE)/VLOOKUP($B140,Pupils,Pupils!$C$3,FALSE)), \"x\")","v":3.9916623241271494E-2},{"$f":"IFERROR((VLOOKUP($B140,Pupils,Pupils!$G$3,FALSE)/VLOOKUP($B140,Pupils,Pupils!$F$3,FALSE)),\"x\")","v":3.9069815836021225E-2},{"$f":"IFERROR((VLOOKUP($B140,Pupils,Pupils!$J$3,FALSE)/VLOOKUP($B140,Pupils,Pupils!$I$3,FALSE)), \"x\")","v":3.8956304359147959E-2},{"$f":"IFERROR((VLOOKUP($B140,Pupils,Pupils!$M$3,FALSE)/VLOOKUP($B140,Pupils,Pupils!$L$3,FALSE)), \"x\")","v":3.9417042684508068E-2},{"$f":"IFERROR((VLOOKUP($B140,Pupils,Pupils!$R$3,FALSE)/VLOOKUP($B140,Pupils,Pupils!$Q$3,FALSE)), \"x\")","v":4.0043178780713479E-2},{"$f":"IFERROR((VLOOKUP($B140,Pupils,Pupils!$W$3,FALSE)/VLOOKUP($B140,Pupils,Pupils!$V$3,FALSE)), \"x\")","v":4.0260329953080064E-2},{"$f":"IFERROR(((VLOOKUP($B140,Pupils,Pupils!$D$3,FALSE)+VLOOKUP($B140,Pupils,Pupils!$E$3,FALSE))/VLOOKUP($B140,Pupils,Pupils!$C$3,FALSE)), \"x\")","v":0.21594580510682648},{"$f":"IFERROR(((VLOOKUP($B140,Pupils,Pupils!$G$3,FALSE)+VLOOKUP($B140,Pupils,Pupils!$H$3,FALSE))/VLOOKUP($B140,Pupils,Pupils!$F$3,FALSE)), \"x\")","v":0.21995630007283321},{"$f":"IFERROR(((VLOOKUP($B140,Pupils,Pupils!$J$3,FALSE)+VLOOKUP($B140,Pupils,Pupils!$K$3,FALSE))/VLOOKUP($B140,Pupils,Pupils!$I$3,FALSE)), \"x\")","v":0.22972761835321076},{"$f":"IFERROR(((VLOOKUP($B140,Pupils,Pupils!$M$3,FALSE)+VLOOKUP($B140,Pupils,Pupils!$P$3,FALSE))/VLOOKUP($B140,Pupils,Pupils!$L$3,FALSE)), \"x\")","v":0.23121207406254862},{"$f":"IFERROR(((VLOOKUP($B140,Pupils,Pupils!$R$3,FALSE)+VLOOKUP($B140,Pupils,Pupils!$U$3,FALSE))/VLOOKUP($B140,Pupils,Pupils!$Q$3,FALSE)), \"x\")","v":0.2324457695075563},{"$f":"IFERROR(((VLOOKUP($B140,Pupils,Pupils!$W$3,FALSE)+VLOOKUP($B140,Pupils,Pupils!$Z$3,FALSE))/VLOOKUP($B140,Pupils,Pupils!$V$3,FALSE)), \"x\")","v":0.22970586751425257},{"$f":"(SUM(INDEX(Pupils!$AB$7:$AB$159,MATCH($B140,Pupils!$A$7:$A$159,0)),INDEX(Pupils!$AC$7:$AC$159,MATCH($B140,Pupils!$A$7:$A$159,0)),INDEX(Pupils!$AD$7:$AD$159,MATCH($B140,Pupils!$A$7:$A$159,0)),INDEX(Pupils!$AE$7:$AE$159,MATCH($B140,Pupils!$A$7:$A$159,0))))/SUM(INDEX(Pupils!$AB$7:$AM$159,MATCH($B140,Pupils!$A$7:$A$159,0),0))","v":0.33183453237410071},{"$f":"SUM(INDEX(Pupils!$AF$7:$AF$159,MATCH($B140,Pupils!$A$7:$A$159,0)))/SUM(INDEX(Pupils!$AB$7:$AM$159,MATCH($B140,Pupils!$A$7:$A$159,0),0))","v":0.30170863309352519},{"$f":"SUM(INDEX(Pupils!$AG$7:$AG$159,MATCH($B140,Pupils!$A$7:$A$159,0)))/SUM(INDEX(Pupils!$AB$7:$AM$159,MATCH($B140,Pupils!$A$7:$A$159,0),0))","v":0.17625899280575538},{"$f":"(SUM(INDEX(Pupils!$AH$7:$AH$159,MATCH($B140,Pupils!$A$7:$A$159,0)),INDEX(Pupils!$AI$7:$AI$159,MATCH($B140,Pupils!$A$7:$A$159,0)),INDEX(Pupils!$AJ$7:$AJ$159,MATCH($B140,Pupils!$A$7:$A$159,0))))/SUM(INDEX(Pupils!$AB$7:$AM$159,MATCH($B140,Pupils!$A$7:$A$159,0),0))","v":4.4964028776978415E-2},{"$f":"SUM(INDEX(Pupils!$AK$7:$AK$159,MATCH($B140,Pupils!$A$7:$A$159,0)))/SUM(INDEX(Pupils!$AB$7:$AM$159,MATCH($B140,Pupils!$A$7:$A$159,0),0))","v":3.9118705035971223E-2},{"$f":"SUM(INDEX(Pupils!$AL$7:$AL$159,MATCH($B140,Pupils!$A$7:$A$159,0)))/SUM(INDEX(Pupils!$AB$7:$AM$159,MATCH($B140,Pupils!$A$7:$A$159,0),0))","v":5.9802158273381298E-2},{"$f":"SUM(INDEX(Pupils!$AM$7:$AM$159,MATCH($B140,Pupils!$A$7:$A$159,0)))/SUM(INDEX(Pupils!$AB$7:$AM$159,MATCH($B140,Pupils!$A$7:$A$159,0),0))","v":4.6312949640287766E-2},{"$f":"(SUM(INDEX(Pupils!$BH$7:$BH$159,MATCH($B140,Pupils!$A$7:$A$159,0)),INDEX(Pupils!$BK$7:$BK$159,MATCH($B140,Pupils!$A$7:$A$159,0)),INDEX(Pupils!$BO$7:$BO$159,MATCH($B140,Pupils!$A$7:$A$159,0))))/SUM(INDEX(Pupils!$BH$7:$BS$159,MATCH($B140,Pupils!$A$7:$A$159,0),0))","v":0.48598130841121495},{"$f":"(SUM(INDEX(Pupils!$BL$7:$BL$159,MATCH($B140,Pupils!$A$7:$A$159,0)),INDEX(Pupils!$BM$7:$BM$159,MATCH($B140,Pupils!$A$7:$A$159,0)),INDEX(Pupils!$BP$7:$BP$159,MATCH($B140,Pupils!$A$7:$A$159,0))))/SUM(INDEX(Pupils!$BH$7:$BS$159,MATCH($B140,Pupils!$A$7:$A$159,0),0))","v":0.47429906542056077},{"$f":"(SUM(INDEX(Pupils!$BI$7:$BI$159,MATCH($B140,Pupils!$A$7:$A$159,0)),INDEX(Pupils!$BJ$7:$BJ$159,MATCH($B140,Pupils!$A$7:$A$159,0))))/SUM(INDEX(Pupils!$BH$7:$BS$159,MATCH($B140,Pupils!$A$7:$A$159,0),0))","v":2.1028037383177569E-2},{"$f":"(SUM(INDEX(Pupils!$BQ$7:$BQ$159,MATCH($B140,Pupils!$A$7:$A$159,0)),INDEX(Pupils!$BR$7:$BR$159,MATCH($B140,Pupils!$A$7:$A$159,0)),INDEX(Pupils!$BN$7:$BN$159,MATCH($B140,Pupils!$A$7:$A$159,0)),INDEX(Pupils!$BS$7:$BS$159,MATCH($B140,Pupils!$A$7:$A$159,0))))/SUM(INDEX(Pupils!$BH$7:$BS$159,MATCH($B140,Pupils!$A$7:$A$159,0),0))","v":1.8691588785046728E-2},{"$f":"IFERROR((VLOOKUP(B140,Funding,Funding!$C$2,FALSE)), \"x\")","v":12533969.859999999},{"$f":"IFERROR((AA140/VLOOKUP(B140,Funding,Funding!$D$2,FALSE)), \"x\")","v":0.14874501901632678},{"$f":"IFERROR((AA140/(VLOOKUP(B140,Pupils,Pupils!$M$3,FALSE)+VLOOKUP(B140,Pupils,Pupils!$P$3,FALSE))), \"x\")","v":2811.5679362943024},{"$f":"IFERROR((VLOOKUP(B140,Funding,Funding!$E$2,FALSE)), \"x\")","v":13337085.019794518},{"$f":"IFERROR((AD140/VLOOKUP(B140,Funding,Funding!$F$2,FALSE)), \"x\")","v":0.15354544583338123},{"$f":"IFERROR((AD140/(VLOOKUP(B140,Pupils,Pupils!$R$3,FALSE)+VLOOKUP(B140,Pupils,Pupils!$U$3,FALSE))), \"x\")","v":2949.3774922146213},{"$f":"IFERROR((VLOOKUP(B140,Funding,Funding!$G$2,FALSE)), \"x\")","v":14039244.195737064},{"$f":"IFERROR((AG140/VLOOKUP(B140,Funding,Funding!$H$2,FALSE)), \"x\")","v":0.15735652994293542},{"$f":"IFERROR((AG140/(VLOOKUP(B140,Pupils,Pupils!$W$3,FALSE)+VLOOKUP(B140,Pupils,Pupils!$Z$3,FALSE))), \"x\")","v":3083.5150880160472},{"$f":"IFERROR((VLOOKUP(B140,Funding,Funding!$I$2,FALSE)), \"x\")","v":14250256.882363616},{"$f":"IFERROR((AJ140/VLOOKUP(B140,Funding,Funding!$J$2,FALSE)), \"x\")","v":0.15867469359482023},null,{"$f":"IFERROR((VLOOKUP($B140,Funding,Funding!$EC$2,FALSE)), \"x\")","v":7004502},{"$f":"IFERROR((AM140/VLOOKUP($B140,Funding,Funding!$EU$2,FALSE)), \"x\")","v":7.8260133402774115E-2},{"$f":"IFERROR((AM140/(VLOOKUP($B140,Pupils,Pupils!$D$3,FALSE)+VLOOKUP($B140,Pupils,Pupils!$E$3,FALSE))), \"x\")","v":1690.2755791505792},{"$f":"IFERROR((VLOOKUP($B140,Funding,Funding!$DA$2,FALSE)), \"x\")","v":7399236},{"$f":"IFERROR((AP140/VLOOKUP($B140,Funding,Funding!$DT$2,FALSE)), \"x\")","v":7.8176347155049661E-2},{"$f":"IFERROR((AP140/(VLOOKUP($B140,Pupils,Pupils!$G$3,FALSE)+VLOOKUP($B140,Pupils,Pupils!$H$3,FALSE))), \"x\")","v":1750.0558183538317},{"$f":"IFERROR((VLOOKUP($B140,Funding,Funding!$CE$2,FALSE)), \"x\")","v":7635744},{"$f":"IFERROR((AS140/VLOOKUP($B140,Funding,Funding!$CR$2,FALSE)), \"x\")","v":0.10189100622129765},{"$f":"IFERROR((AS140/(VLOOKUP($B140,Pupils,Pupils!$J$3,FALSE)+VLOOKUP($B140,Pupils,Pupils!$K$3,FALSE))), \"x\")","v":1731.0686919065972},{"$f":"IFERROR((VLOOKUP($B140,Funding,Funding!$BM$2,FALSE)), \"x\")","v":7999995.2000000002},{"$f":"IFERROR((AV140/VLOOKUP($B140,Funding,Funding!$BY$2,FALSE)), \"x\")","v":0.11439679054726809},{"$f":"IFERROR((AV140/(VLOOKUP($B140,Pupils,Pupils!$M$3,FALSE)+VLOOKUP($B140,Pupils,Pupils!$P$3,FALSE))), \"x\")","v":1794.525616868551},{"$f":"IFERROR((VLOOKUP($B140,Funding,Funding!$AQ$2,FALSE)), \"x\")","v":7743650.4000000004},{"$f":"IFERROR((AY140/VLOOKUP($B140,Funding,Funding!$BE$2,FALSE)), \"x\")","v":9.1693323320845052E-2},{"$f":"IFERROR((AY140/(VLOOKUP($B140,Pupils,Pupils!$R$3,FALSE)+VLOOKUP($B140,Pupils,Pupils!$U$3,FALSE))), \"x\")","v":1712.4392746572314},{"$f":"IFERROR((VLOOKUP($B140,Funding,Funding!$S$2,FALSE)), \"x\")","v":11112007},{"$f":"IFERROR((BB140/VLOOKUP($B140,Funding,Funding!$AH$2,FALSE)), \"x\")","v":0.12784058712202245},{"$f":"IFERROR((BB140/(VLOOKUP(B140,Pupils,Pupils!$W$3,FALSE)+VLOOKUP(B140,Pupils,Pupils!$Z$3,FALSE))), \"x\")","v":2440.5901603338457},{"$f":"IFERROR((VLOOKUP($B140,Funding,Funding!$GX$2,FALSE)), \"x\")","v":8766865},{"$f":"IFERROR((BE140/VLOOKUP($B140,Funding,Funding!$HC$2,FALSE)), \"x\")","v":8.974856399574499E-2},{"$f":"IFERROR((BE140/(VLOOKUP($B140,Pupils,Pupils!$D$3,FALSE)+VLOOKUP($B140,Pupils,Pupils!$E$3,FALSE))), \"x\")","v":2115.556225868726},{"$f":"IFERROR((VLOOKUP($B140,Funding,Funding!$GP$2,FALSE)), \"x\")","v":9120812.0099999998},{"$f":"IFERROR((BH140/VLOOKUP($B140,Funding,Funding!$GU$2,FALSE)), \"x\")","v":9.2039029117472512E-2},{"$f":"IFERROR((BH140/(VLOOKUP($B140,Pupils,Pupils!$G$3,FALSE)+VLOOKUP($B140,Pupils,Pupils!$H$3,FALSE))), \"x\")","v":2157.2403051087986},{"$f":"IFERROR((VLOOKUP($B140,Funding,Funding!$GH$2,FALSE)), \"x\")","v":10359427.51},{"$f":"IFERROR((BK140/VLOOKUP($B140,Funding,Funding!$GM$2,FALSE)), \"x\")","v":0.1302294444190657},{"$f":"IFERROR((BK140/(VLOOKUP($B140,Pupils,Pupils!$J$3,FALSE)+VLOOKUP($B140,Pupils,Pupils!$K$3,FALSE))), \"x\")","v":2348.5439832237589},{"$f":"IFERROR((VLOOKUP($B140,Funding,Funding!$FZ$2,FALSE)), \"x\")","v":10584499.9},{"$f":"IFERROR((BN140/VLOOKUP($B140,Funding,Funding!$GE$2,FALSE)), \"x\")","v":0.167251136509802},{"$f":"IFERROR((BN140/(VLOOKUP($B140,Pupils,Pupils!$M$3,FALSE)+VLOOKUP($B140,Pupils,Pupils!$P$3,FALSE))), \"x\")","v":2374.2709510991476},{"$f":"IFERROR((VLOOKUP($B140,Funding,Funding!$FD$2,FALSE)), \"x\")","v":10343377},{"$f":"IFERROR((BQ140/VLOOKUP($B140,Funding,Funding!$FR$2,FALSE)), \"x\")","v":0.20838425647538583},{"$f":"IFERROR((BQ140/(VLOOKUP($B140,Pupils,Pupils!$R$3,FALSE)+VLOOKUP($B140,Pupils,Pupils!$U$3,FALSE))), \"x\")","v":2287.3456435205662},{"$f":"(VLOOKUP(B140,Funding,Funding!$HK$2,FALSE)+VLOOKUP(B140,Funding,Funding!$HL$2,FALSE)+VLOOKUP(B140,Funding,Funding!$HM$2,FALSE))/(VLOOKUP(B140,Funding,Funding!$HN$2,FALSE))","v":0.23511904761904762},{"$f":"IFERROR((VLOOKUP(B140,Other_data,Other!$D$3,FALSE)+VLOOKUP(B140,Other_data,Other!$E$3,FALSE)+VLOOKUP(B140,Other_data,Other!$F$3,FALSE)), \"x\")","v":1000},{"$f":"(VLOOKUP(B140,Other_data,Other!$AK$3,FALSE)+VLOOKUP(B140,Other_data,Other!$AL$3,FALSE))/VLOOKUP(B140,Other_data,Other!$AJ$3,FALSE)","v":4.8952345633228256E-2},{"$f":"(VLOOKUP(B140,Other_data,Other!$AR$3,FALSE)+VLOOKUP(B140,Other_data,Other!$AS$3,FALSE))/VLOOKUP(B140,Other_data,Other!$AQ$3,FALSE)","v":7.0144603339458336E-2},{"$f":"VLOOKUP(B140,Other_data,Other!$AP$3,FALSE)/VLOOKUP(B140,Other_data,Other!$AJ$3,FALSE)","v":7.1388837381791215E-3},{"$f":"VLOOKUP(B140,Other_data,Other!$AW$3,FALSE)/VLOOKUP(B140,Other_data,Other!$AQ$3,FALSE)","v":1.4779899336901813E-2}]
[135,211,"Tower Hamlets",{"$f":"IFERROR((VLOOKUP($B141,Pupils,Pupils!$D$3,FALSE)/VLOOKUP($B141,Pupils,Pupils!$C$3,FALSE)), \"x\")","v":3.407347800940478E-2},{"$f":"IFERROR((VLOOKUP($B141,Pupils,Pupils!$G$3,FALSE)/VLOOKUP($B141,Pupils,Pupils!$F$3,FALSE)),\"x\")","v":3.3353725682124066E-2},{"$f":"IFERROR((VLOOKUP($B141,Pupils,Pupils!$J$3,FALSE)/VLOOKUP($B141,Pupils,Pupils!$I$3,FALSE)), \"x\")","v":3.356331752192037E-2},{"$f":"IFERROR((VLOOKUP($B141,Pupils,Pupils!$M$3,FALSE)/VLOOKUP($B141,Pupils,Pupils!$L$3,FALSE)), \"x\")","v":3.5009955437565188E-2},{"$f":"IFERROR((VLOOKUP($B141,Pupils,Pupils!$R$3,FALSE)/VLOOKUP($B141,Pupils,Pupils!$Q$3,FALSE)), \"x\")","v":3.5912999494183105E-2},{"$f":"IFERROR((VLOOKUP($B141,Pupils,Pupils!$W$3,FALSE)/VLOOKUP($B141,Pupils,Pupils!$V$3,FALSE)), \"x\")","v":3.6410981659819965E-2},{"$f":"IFERROR(((VLOOKUP($B141,Pupils,Pupils!$D$3,FALSE)+VLOOKUP($B141,Pupils,Pupils!$E$3,FALSE))/VLOOKUP($B141,Pupils,Pupils!$C$3,FALSE)), \"x\")","v":0.23833832071818342},{"$f":"IFERROR(((VLOOKUP($B141,Pupils,Pupils!$G$3,FALSE)+VLOOKUP($B141,Pupils,Pupils!$H$3,FALSE))/VLOOKUP($B141,Pupils,Pupils!$F$3,FALSE)), \"x\")","v":0.24424323993637587},{"$f":"IFERROR(((VLOOKUP($B141,Pupils,Pupils!$J$3,FALSE)+VLOOKUP($B141,Pupils,Pupils!$K$3,FALSE))/VLOOKUP($B141,Pupils,Pupils!$I$3,FALSE)), \"x\")","v":0.2273489530928082},{"$f":"IFERROR(((VLOOKUP($B141,Pupils,Pupils!$M$3,FALSE)+VLOOKUP($B141,Pupils,Pupils!$P$3,FALSE))/VLOOKUP($B141,Pupils,Pupils!$L$3,FALSE)), \"x\")","v":0.21098416611358681},{"$f":"IFERROR(((VLOOKUP($B141,Pupils,Pupils!$R$3,FALSE)+VLOOKUP($B141,Pupils,Pupils!$U$3,FALSE))/VLOOKUP($B141,Pupils,Pupils!$Q$3,FALSE)), \"x\")","v":0.1983951809444981},{"$f":"IFERROR(((VLOOKUP($B141,Pupils,Pupils!$W$3,FALSE)+VLOOKUP($B141,Pupils,Pupils!$Z$3,FALSE))/VLOOKUP($B141,Pupils,Pupils!$V$3,FALSE)), \"x\")","v":0.17924888320201135},{"$f":"(SUM(INDEX(Pupils!$AB$7:$AB$159,MATCH($B141,Pupils!$A$7:$A$159,0)),INDEX(Pupils!$AC$7:$AC$159,MATCH($B141,Pupils!$A$7:$A$159,0)),INDEX(Pupils!$AD$7:$AD$159,MATCH($B141,Pupils!$A$7:$A$159,0)),INDEX(Pupils!$AE$7:$AE$159,MATCH($B141,Pupils!$A$7:$A$159,0))))/SUM(INDEX(Pupils!$AB$7:$AM$159,MATCH($B141,Pupils!$A$7:$A$159,0),0))","v":0.22991493383742911},{"$f":"SUM(INDEX(Pupils!$AF$7:$AF$159,MATCH($B141,Pupils!$A$7:$A$159,0)))/SUM(INDEX(Pupils!$AB$7:$AM$159,MATCH($B141,Pupils!$A$7:$A$159,0),0))","v":0.19092627599243855},{"$f":"SUM(INDEX(Pupils!$AG$7:$AG$159,MATCH($B141,Pupils!$A$7:$A$159,0)))/SUM(INDEX(Pupils!$AB$7:$AM$159,MATCH($B141,Pupils!$A$7:$A$159,0),0))","v":0.34806238185255201},{"$f":"(SUM(INDEX(Pupils!$AH$7:$AH$159,MATCH($B141,Pupils!$A$7:$A$159,0)),INDEX(Pupils!$AI$7:$AI$159,MATCH($B141,Pupils!$A$7:$A$159,0)),INDEX(Pupils!$AJ$7:$AJ$159,MATCH($B141,Pupils!$A$7:$A$159,0))))/SUM(INDEX(Pupils!$AB$7:$AM$159,MATCH($B141,Pupils!$A$7:$A$159,0),0))","v":5.6001890359168242E-2},{"$f":"SUM(INDEX(Pupils!$AK$7:$AK$159,MATCH($B141,Pupils!$A$7:$A$159,0)))/SUM(INDEX(Pupils!$AB$7:$AM$159,MATCH($B141,Pupils!$A$7:$A$159,0),0))","v":3.8752362948960305E-2},{"$f":"SUM(INDEX(Pupils!$AL$7:$AL$159,MATCH($B141,Pupils!$A$7:$A$159,0)))/SUM(INDEX(Pupils!$AB$7:$AM$159,MATCH($B141,Pupils!$A$7:$A$159,0),0))","v":9.7826086956521743E-2},{"$f":"SUM(INDEX(Pupils!$AM$7:$AM$159,MATCH($B141,Pupils!$A$7:$A$159,0)))/SUM(INDEX(Pupils!$AB$7:$AM$159,MATCH($B141,Pupils!$A$7:$A$159,0),0))","v":3.8516068052930057E-2},{"$f":"(SUM(INDEX(Pupils!$BH$7:$BH$159,MATCH($B141,Pupils!$A$7:$A$159,0)),INDEX(Pupils!$BK$7:$BK$159,MATCH($B141,Pupils!$A$7:$A$159,0)),INDEX(Pupils!$BO$7:$BO$159,MATCH($B141,Pupils!$A$7:$A$159,0))))/SUM(INDEX(Pupils!$BH$7:$BS$159,MATCH($B141,Pupils!$A$7:$A$159,0),0))","v":0.621606648199446},{"$f":"(SUM(INDEX(Pupils!$BL$7:$BL$159,MATCH($B141,Pupils!$A$7:$A$159,0)),INDEX(Pupils!$BM$7:$BM$159,MATCH($B141,Pupils!$A$7:$A$159,0)),INDEX(Pupils!$BP$7:$BP$159,MATCH($B141,Pupils!$A$7:$A$159,0))))/SUM(INDEX(Pupils!$BH$7:$BS$159,MATCH($B141,Pupils!$A$7:$A$159,0),0))","v":0.29584487534626036},{"$f":"(SUM(INDEX(Pupils!$BI$7:$BI$159,MATCH($B141,Pupils!$A$7:$A$159,0)),INDEX(Pupils!$BJ$7:$BJ$159,MATCH($B141,Pupils!$A$7:$A$159,0))))/SUM(INDEX(Pupils!$BH$7:$BS$159,MATCH($B141,Pupils!$A$7:$A$159,0),0))","v":6.0941828254847646E-2},{"$f":"(SUM(INDEX(Pupils!$BQ$7:$BQ$159,MATCH($B141,Pupils!$A$7:$A$159,0)),INDEX(Pupils!$BR$7:$BR$159,MATCH($B141,Pupils!$A$7:$A$159,0)),INDEX(Pupils!$BN$7:$BN$159,MATCH($B141,Pupils!$A$7:$A$159,0)),INDEX(Pupils!$BS$7:$BS$159,MATCH($B141,Pupils!$A$7:$A$159,0))))/SUM(INDEX(Pupils!$BH$7:$BS$159,MATCH($B141,Pupils!$A$7:$A$159,0),0))","v":2.1606648199445983E-2},{"$f":"IFERROR((VLOOKUP(B141,Funding,Funding!$C$2,FALSE)), \"x\")","v":42014107},{"$f":"IFERROR((AA141/VLOOKUP(B141,Funding,Funding!$D$2,FALSE)), \"x\")","v":0.14006616335121091},{"$f":"IFERROR((AA141/(VLOOKUP(B141,Pupils,Pupils!$M$3,FALSE)+VLOOKUP(B141,Pupils,Pupils!$P$3,FALSE))), \"x\")","v":4720.1558251881816},{"$f":"IFERROR((VLOOKUP(B141,Funding,Funding!$E$2,FALSE)), \"x\")","v":43040063.747081913},{"$f":"IFERROR((AD141/VLOOKUP(B141,Funding,Funding!$F$2,FALSE)), \"x\")","v":0.13770166601828568},{"$f":"IFERROR((AD141/(VLOOKUP(B141,Pupils,Pupils!$R$3,FALSE)+VLOOKUP(B141,Pupils,Pupils!$U$3,FALSE))), \"x\")","v":4987.8391177519889},{"$f":"IFERROR((VLOOKUP(B141,Funding,Funding!$G$2,FALSE)), \"x\")","v":43326839.468804985},{"$f":"IFERROR((AG141/VLOOKUP(B141,Funding,Funding!$H$2,FALSE)), \"x\")","v":0.13705539679625256},{"$f":"IFERROR((AG141/(VLOOKUP(B141,Pupils,Pupils!$W$3,FALSE)+VLOOKUP(B141,Pupils,Pupils!$Z$3,FALSE))), \"x\")","v":5426.0287374834043},{"$f":"IFERROR((VLOOKUP(B141,Funding,Funding!$I$2,FALSE)), \"x\")","v":43744648.882663123},{"$f":"IFERROR((AJ141/VLOOKUP(B141,Funding,Funding!$J$2,FALSE)), \"x\")","v":0.13814608606421222},null,{"$f":"IFERROR((VLOOKUP($B141,Funding,Funding!$EC$2,FALSE)), \"x\")","v":18070322.280000001},{"$f":"IFERROR((AM141/VLOOKUP($B141,Funding,Funding!$EU$2,FALSE)), \"x\")","v":6.323768211327116E-2},{"$f":"IFERROR((AM141/(VLOOKUP($B141,Pupils,Pupils!$D$3,FALSE)+VLOOKUP($B141,Pupils,Pupils!$E$3,FALSE))), \"x\")","v":1906.5543658999791},{"$f":"IFERROR((VLOOKUP($B141,Funding,Funding!$DA$2,FALSE)), \"x\")","v":22761828},{"$f":"IFERROR((AP141/VLOOKUP($B141,Funding,Funding!$DT$2,FALSE)), \"x\")","v":7.3011214280506165E-2},{"$f":"IFERROR((AP141/(VLOOKUP($B141,Pupils,Pupils!$G$3,FALSE)+VLOOKUP($B141,Pupils,Pupils!$H$3,FALSE))), \"x\")","v":2280.5157799819658},{"$f":"IFERROR((VLOOKUP($B141,Funding,Funding!$CE$2,FALSE)), \"x\")","v":22818800.999990001},{"$f":"IFERROR((AS141/VLOOKUP($B141,Funding,Funding!$CR$2,FALSE)), \"x\")","v":7.121224662538958E-2},{"$f":"IFERROR((AS141/(VLOOKUP($B141,Pupils,Pupils!$J$3,FALSE)+VLOOKUP($B141,Pupils,Pupils!$K$3,FALSE))), \"x\")","v":2404.510115910432},{"$f":"IFERROR((VLOOKUP($B141,Funding,Funding!$BM$2,FALSE)), \"x\")","v":23505165.329999998},{"$f":"IFERROR((AV141/VLOOKUP($B141,Funding,Funding!$BY$2,FALSE)), \"x\")","v":7.30652361856379E-2},{"$f":"IFERROR((AV141/(VLOOKUP($B141,Pupils,Pupils!$M$3,FALSE)+VLOOKUP($B141,Pupils,Pupils!$P$3,FALSE))), \"x\")","v":2640.7331007751936},{"$f":"IFERROR((VLOOKUP($B141,Funding,Funding!$AQ$2,FALSE)), \"x\")","v":39713140.939999998},{"$f":"IFERROR((AY141/VLOOKUP($B141,Funding,Funding!$BE$2,FALSE)), \"x\")","v":0.11879398975776362},{"$f":"IFERROR((AY141/(VLOOKUP($B141,Pupils,Pupils!$R$3,FALSE)+VLOOKUP($B141,Pupils,Pupils!$U$3,FALSE))), \"x\")","v":4602.2877436551162},{"$f":"IFERROR((VLOOKUP($B141,Funding,Funding!$S$2,FALSE)), \"x\")","v":41559266},{"$f":"IFERROR((BB141/VLOOKUP($B141,Funding,Funding!$AH$2,FALSE)), \"x\")","v":0.12061698966857186},{"$f":"IFERROR((BB141/(VLOOKUP(B141,Pupils,Pupils!$W$3,FALSE)+VLOOKUP(B141,Pupils,Pupils!$Z$3,FALSE))), \"x\")","v":5204.6670006261738},{"$f":"IFERROR((VLOOKUP($B141,Funding,Funding!$GX$2,FALSE)), \"x\")","v":53455037.810000002},{"$f":"IFERROR((BE141/VLOOKUP($B141,Funding,Funding!$HC$2,FALSE)), \"x\")","v":0.17215688913873695},{"$f":"IFERROR((BE141/(VLOOKUP($B141,Pupils,Pupils!$D$3,FALSE)+VLOOKUP($B141,Pupils,Pupils!$E$3,FALSE))), \"x\")","v":5639.9069223464867},{"$f":"IFERROR((VLOOKUP($B141,Funding,Funding!$GP$2,FALSE)), \"x\")","v":62045032},{"$f":"IFERROR((BH141/VLOOKUP($B141,Funding,Funding!$GU$2,FALSE)), \"x\")","v":0.19202677450730427},{"$f":"IFERROR((BH141/(VLOOKUP($B141,Pupils,Pupils!$G$3,FALSE)+VLOOKUP($B141,Pupils,Pupils!$H$3,FALSE))), \"x\")","v":6216.314196974251},{"$f":"IFERROR((VLOOKUP($B141,Funding,Funding!$GH$2,FALSE)), \"x\")","v":68242479.420000002},{"$f":"IFERROR((BK141/VLOOKUP($B141,Funding,Funding!$GM$2,FALSE)), \"x\")","v":0.2025913133431344},{"$f":"IFERROR((BK141/(VLOOKUP($B141,Pupils,Pupils!$J$3,FALSE)+VLOOKUP($B141,Pupils,Pupils!$K$3,FALSE))), \"x\")","v":7190.9883477344574},{"$f":"IFERROR((VLOOKUP($B141,Funding,Funding!$FZ$2,FALSE)), \"x\")","v":65818496.969999999},{"$f":"IFERROR((BN141/VLOOKUP($B141,Funding,Funding!$GE$2,FALSE)), \"x\")","v":0.19498709118340826},{"$f":"IFERROR((BN141/(VLOOKUP($B141,Pupils,Pupils!$M$3,FALSE)+VLOOKUP($B141,Pupils,Pupils!$P$3,FALSE))), \"x\")","v":7394.5058948432761},{"$f":"IFERROR((VLOOKUP($B141,Funding,Funding!$FD$2,FALSE)), \"x\")","v":45772685},{"$f":"IFERROR((BQ141/VLOOKUP($B141,Funding,Funding!$FR$2,FALSE)), \"x\")","v":0.13421467352707669},{"$f":"IFERROR((BQ141/(VLOOKUP($B141,Pupils,Pupils!$R$3,FALSE)+VLOOKUP($B141,Pupils,Pupils!$U$3,FALSE))), \"x\")","v":5304.5179047398306},{"$f":"(VLOOKUP(B141,Funding,Funding!$HK$2,FALSE)+VLOOKUP(B141,Funding,Funding!$HL$2,FALSE)+VLOOKUP(B141,Funding,Funding!$HM$2,FALSE))/(VLOOKUP(B141,Funding,Funding!$HN$2,FALSE))","v":0.26032315978456017},{"$f":"IFERROR((VLOOKUP(B141,Other_data,Other!$D$3,FALSE)+VLOOKUP(B141,Other_data,Other!$E$3,FALSE)+VLOOKUP(B141,Other_data,Other!$F$3,FALSE)), \"x\")","v":1740},{"$f":"(VLOOKUP(B141,Other_data,Other!$AK$3,FALSE)+VLOOKUP(B141,Other_data,Other!$AL$3,FALSE))/VLOOKUP(B141,Other_data,Other!$AJ$3,FALSE)","v":3.9178918390552375E-2},{"$f":"(VLOOKUP(B141,Other_data,Other!$AR$3,FALSE)+VLOOKUP(B141,Other_data,Other!$AS$3,FALSE))/VLOOKUP(B141,Other_data,Other!$AQ$3,FALSE)","v":4.0686601864905643E-2},{"$f":"VLOOKUP(B141,Other_data,Other!$AP$3,FALSE)/VLOOKUP(B141,Other_data,Other!$AJ$3,FALSE)","v":1.3006443376089688E-2},{"$f":"VLOOKUP(B141,Other_data,Other!$AW$3,FALSE)/VLOOKUP(B141,Other_data,Other!$AQ$3,FALSE)","v":1.3059286191288863E-2}]
[136,358,"Trafford",{"$f":"IFERROR((VLOOKUP($B142,Pupils,Pupils!$D$3,FALSE)/VLOOKUP($B142,Pupils,Pupils!$C$3,FALSE)), \"x\")","v":2.4927867744534843E-2},{"$f":"IFERROR((VLOOKUP($B142,Pupils,Pupils!$G$3,FALSE)/VLOOKUP($B142,Pupils,Pupils!$F$3,FALSE)),\"x\")","v":2.8876674150344506E-2},{"$f":"IFERROR((VLOOKUP($B142,Pupils,Pupils!$J$3,FALSE)/VLOOKUP($B142,Pupils,Pupils!$I$3,FALSE)), \"x\")","v":2.9859544802132459E-2},{"$f":"IFERROR((VLOOKUP($B142,Pupils,Pupils!$M$3,FALSE)/VLOOKUP($B142,Pupils,Pupils!$L$3,FALSE)), \"x\")","v":3.1686412906478445E-2},{"$f":"IFERROR((VLOOKUP($B142,Pupils,Pupils!$R$3,FALSE)/VLOOKUP($B142,Pupils,Pupils!$Q$3,FALSE)), \"x\")","v":3.3158248487715015E-2},{"$f":"IFERROR((VLOOKUP($B142,Pupils,Pupils!$W$3,FALSE)/VLOOKUP($B142,Pupils,Pupils!$V$3,FALSE)), \"x\")","v":3.535316077035279E-2},{"$f":"IFERROR(((VLOOKUP($B142,Pupils,Pupils!$D$3,FALSE)+VLOOKUP($B142,Pupils,Pupils!$E$3,FALSE))/VLOOKUP($B142,Pupils,Pupils!$C$3,FALSE)), \"x\")","v":0.16336981102648748},{"$f":"IFERROR(((VLOOKUP($B142,Pupils,Pupils!$G$3,FALSE)+VLOOKUP($B142,Pupils,Pupils!$H$3,FALSE))/VLOOKUP($B142,Pupils,Pupils!$F$3,FALSE)), \"x\")","v":0.16621506541766665},{"$f":"IFERROR(((VLOOKUP($B142,Pupils,Pupils!$J$3,FALSE)+VLOOKUP($B142,Pupils,Pupils!$K$3,FALSE))/VLOOKUP($B142,Pupils,Pupils!$I$3,FALSE)), \"x\")","v":0.16608570842731188},{"$f":"IFERROR(((VLOOKUP($B142,Pupils,Pupils!$M$3,FALSE)+VLOOKUP($B142,Pupils,Pupils!$P$3,FALSE))/VLOOKUP($B142,Pupils,Pupils!$L$3,FALSE)), \"x\")","v":0.15248298462314092},{"$f":"IFERROR(((VLOOKUP($B142,Pupils,Pupils!$R$3,FALSE)+VLOOKUP($B142,Pupils,Pupils!$U$3,FALSE))/VLOOKUP($B142,Pupils,Pupils!$Q$3,FALSE)), \"x\")","v":0.1531950909860347},{"$f":"IFERROR(((VLOOKUP($B142,Pupils,Pupils!$W$3,FALSE)+VLOOKUP($B142,Pupils,Pupils!$Z$3,FALSE))/VLOOKUP($B142,Pupils,Pupils!$V$3,FALSE)), \"x\")","v":0.15590002225024105},{"$f":"(SUM(INDEX(Pupils!$AB$7:$AB$159,MATCH($B142,Pupils!$A$7:$A$159,0)),INDEX(Pupils!$AC$7:$AC$159,MATCH($B142,Pupils!$A$7:$A$159,0)),INDEX(Pupils!$AD$7:$AD$159,MATCH($B142,Pupils!$A$7:$A$159,0)),INDEX(Pupils!$AE$7:$AE$159,MATCH($B142,Pupils!$A$7:$A$159,0))))/SUM(INDEX(Pupils!$AB$7:$AM$159,MATCH($B142,Pupils!$A$7:$A$159,0),0))","v":0.44066729619137551},{"$f":"SUM(INDEX(Pupils!$AF$7:$AF$159,MATCH($B142,Pupils!$A$7:$A$159,0)))/SUM(INDEX(Pupils!$AB$7:$AM$159,MATCH($B142,Pupils!$A$7:$A$159,0),0))","v":0.20144790683034308},{"$f":"SUM(INDEX(Pupils!$AG$7:$AG$159,MATCH($B142,Pupils!$A$7:$A$159,0)))/SUM(INDEX(Pupils!$AB$7:$AM$159,MATCH($B142,Pupils!$A$7:$A$159,0),0))","v":0.16965690903367958},{"$f":"(SUM(INDEX(Pupils!$AH$7:$AH$159,MATCH($B142,Pupils!$A$7:$A$159,0)),INDEX(Pupils!$AI$7:$AI$159,MATCH($B142,Pupils!$A$7:$A$159,0)),INDEX(Pupils!$AJ$7:$AJ$159,MATCH($B142,Pupils!$A$7:$A$159,0))))/SUM(INDEX(Pupils!$AB$7:$AM$159,MATCH($B142,Pupils!$A$7:$A$159,0),0))","v":3.1790997796663521E-2},{"$f":"SUM(INDEX(Pupils!$AK$7:$AK$159,MATCH($B142,Pupils!$A$7:$A$159,0)))/SUM(INDEX(Pupils!$AB$7:$AM$159,MATCH($B142,Pupils!$A$7:$A$159,0),0))","v":3.1790997796663521E-2},{"$f":"SUM(INDEX(Pupils!$AL$7:$AL$159,MATCH($B142,Pupils!$A$7:$A$159,0)))/SUM(INDEX(Pupils!$AB$7:$AM$159,MATCH($B142,Pupils!$A$7:$A$159,0),0))","v":8.7503934529430283E-2},{"$f":"SUM(INDEX(Pupils!$AM$7:$AM$159,MATCH($B142,Pupils!$A$7:$A$159,0)))/SUM(INDEX(Pupils!$AB$7:$AM$159,MATCH($B142,Pupils!$A$7:$A$159,0),0))","v":3.7141957821844505E-2},{"$f":"(SUM(INDEX(Pupils!$BH$7:$BH$159,MATCH($B142,Pupils!$A$7:$A$159,0)),INDEX(Pupils!$BK$7:$BK$159,MATCH($B142,Pupils!$A$7:$A$159,0)),INDEX(Pupils!$BO$7:$BO$159,MATCH($B142,Pupils!$A$7:$A$159,0))))/SUM(INDEX(Pupils!$BH$7:$BS$159,MATCH($B142,Pupils!$A$7:$A$159,0),0))","v":0.52135493372606778},{"$f":"(SUM(INDEX(Pupils!$BL$7:$BL$159,MATCH($B142,Pupils!$A$7:$A$159,0)),INDEX(Pupils!$BM$7:$BM$159,MATCH($B142,Pupils!$A$7:$A$159,0)),INDEX(Pupils!$BP$7:$BP$159,MATCH($B142,Pupils!$A$7:$A$159,0))))/SUM(INDEX(Pupils!$BH$7:$BS$159,MATCH($B142,Pupils!$A$7:$A$159,0),0))","v":0.4329896907216495},{"$f":"(SUM(INDEX(Pupils!$BI$7:$BI$159,MATCH($B142,Pupils!$A$7:$A$159,0)),INDEX(Pupils!$BJ$7:$BJ$159,MATCH($B142,Pupils!$A$7:$A$159,0))))/SUM(INDEX(Pupils!$BH$7:$BS$159,MATCH($B142,Pupils!$A$7:$A$159,0),0))","v":4.2709867452135494E-2},{"$f":"(SUM(INDEX(Pupils!$BQ$7:$BQ$159,MATCH($B142,Pupils!$A$7:$A$159,0)),INDEX(Pupils!$BR$7:$BR$159,MATCH($B142,Pupils!$A$7:$A$159,0)),INDEX(Pupils!$BN$7:$BN$159,MATCH($B142,Pupils!$A$7:$A$159,0)),INDEX(Pupils!$BS$7:$BS$159,MATCH($B142,Pupils!$A$7:$A$159,0))))/SUM(INDEX(Pupils!$BH$7:$BS$159,MATCH($B142,Pupils!$A$7:$A$159,0),0))","v":2.9455081001472753E-3},{"$f":"IFERROR((VLOOKUP(B142,Funding,Funding!$C$2,FALSE)), \"x\")","v":21961200.870000001},{"$f":"IFERROR((AA142/VLOOKUP(B142,Funding,Funding!$D$2,FALSE)), \"x\")","v":0.13122745302655209},{"$f":"IFERROR((AA142/(VLOOKUP(B142,Pupils,Pupils!$M$3,FALSE)+VLOOKUP(B142,Pupils,Pupils!$P$3,FALSE))), \"x\")","v":3630.5506480409986},{"$f":"IFERROR((VLOOKUP(B142,Funding,Funding!$E$2,FALSE)), \"x\")","v":22875748.276186939},{"$f":"IFERROR((AD142/VLOOKUP(B142,Funding,Funding!$F$2,FALSE)), \"x\")","v":0.13295390333875146},{"$f":"IFERROR((AD142/(VLOOKUP(B142,Pupils,Pupils!$R$3,FALSE)+VLOOKUP(B142,Pupils,Pupils!$U$3,FALSE))), \"x\")","v":3717.2161644762659},{"$f":"IFERROR((VLOOKUP(B142,Funding,Funding!$G$2,FALSE)), \"x\")","v":23336859.427353714},{"$f":"IFERROR((AG142/VLOOKUP(B142,Funding,Funding!$H$2,FALSE)), \"x\")","v":0.13354930827317008},{"$f":"IFERROR((AG142/(VLOOKUP(B142,Pupils,Pupils!$W$3,FALSE)+VLOOKUP(B142,Pupils,Pupils!$Z$3,FALSE))), \"x\")","v":3700.7388879406458},{"$f":"IFERROR((VLOOKUP(B142,Funding,Funding!$I$2,FALSE)), \"x\")","v":23578136.503071532},{"$f":"IFERROR((AJ142/VLOOKUP(B142,Funding,Funding!$J$2,FALSE)), \"x\")","v":0.1349427192309805},null,{"$f":"IFERROR((VLOOKUP($B142,Funding,Funding!$EC$2,FALSE)), \"x\")","v":15637720},{"$f":"IFERROR((AM142/VLOOKUP($B142,Funding,Funding!$EU$2,FALSE)), \"x\")","v":9.2879582257007015E-2},{"$f":"IFERROR((AM142/(VLOOKUP($B142,Pupils,Pupils!$D$3,FALSE)+VLOOKUP($B142,Pupils,Pupils!$E$3,FALSE))), \"x\")","v":2488.101829753381},{"$f":"IFERROR((VLOOKUP($B142,Funding,Funding!$DA$2,FALSE)), \"x\")","v":16194154},{"$f":"IFERROR((AP142/VLOOKUP($B142,Funding,Funding!$DT$2,FALSE)), \"x\")","v":9.0141749196644486E-2},{"$f":"IFERROR((AP142/(VLOOKUP($B142,Pupils,Pupils!$G$3,FALSE)+VLOOKUP($B142,Pupils,Pupils!$H$3,FALSE))), \"x\")","v":2514.229777984785},{"$f":"IFERROR((VLOOKUP($B142,Funding,Funding!$CE$2,FALSE)), \"x\")","v":11410343.866799999},{"$f":"IFERROR((AS142/VLOOKUP($B142,Funding,Funding!$CR$2,FALSE)), \"x\")","v":0.13566050665377435},{"$f":"IFERROR((AS142/(VLOOKUP($B142,Pupils,Pupils!$J$3,FALSE)+VLOOKUP($B142,Pupils,Pupils!$K$3,FALSE))), \"x\")","v":1760.8555349999999},{"$f":"IFERROR((VLOOKUP($B142,Funding,Funding!$BM$2,FALSE)), \"x\")","v":17062329.079999998},{"$f":"IFERROR((AV142/VLOOKUP($B142,Funding,Funding!$BY$2,FALSE)), \"x\")","v":0.11619058583378621},{"$f":"IFERROR((AV142/(VLOOKUP($B142,Pupils,Pupils!$M$3,FALSE)+VLOOKUP($B142,Pupils,Pupils!$P$3,FALSE))), \"x\")","v":2820.6859117209451},{"$f":"IFERROR((VLOOKUP($B142,Funding,Funding!$AQ$2,FALSE)), \"x\")","v":23243297},{"$f":"IFERROR((AY142/VLOOKUP($B142,Funding,Funding!$BE$2,FALSE)), \"x\")","v":0.13534997581224409},{"$f":"IFERROR((AY142/(VLOOKUP($B142,Pupils,Pupils!$R$3,FALSE)+VLOOKUP($B142,Pupils,Pupils!$U$3,FALSE))), \"x\")","v":3776.941338966526},{"$f":"IFERROR((VLOOKUP($B142,Funding,Funding!$S$2,FALSE)), \"x\")","v":21650171},{"$f":"IFERROR((BB142/VLOOKUP($B142,Funding,Funding!$AH$2,FALSE)), \"x\")","v":0.12720472020849471},{"$f":"IFERROR((BB142/(VLOOKUP(B142,Pupils,Pupils!$W$3,FALSE)+VLOOKUP(B142,Pupils,Pupils!$Z$3,FALSE))), \"x\")","v":3433.26530288614},{"$f":"IFERROR((VLOOKUP($B142,Funding,Funding!$GX$2,FALSE)), \"x\")","v":20702026},{"$f":"IFERROR((BE142/VLOOKUP($B142,Funding,Funding!$HC$2,FALSE)), \"x\")","v":0.11670562234507653},{"$f":"IFERROR((BE142/(VLOOKUP($B142,Pupils,Pupils!$D$3,FALSE)+VLOOKUP($B142,Pupils,Pupils!$E$3,FALSE))), \"x\")","v":3293.8784407319013},{"$f":"IFERROR((VLOOKUP($B142,Funding,Funding!$GP$2,FALSE)), \"x\")","v":20891861},{"$f":"IFERROR((BH142/VLOOKUP($B142,Funding,Funding!$GU$2,FALSE)), \"x\")","v":0.13052186947769945},{"$f":"IFERROR((BH142/(VLOOKUP($B142,Pupils,Pupils!$G$3,FALSE)+VLOOKUP($B142,Pupils,Pupils!$H$3,FALSE))), \"x\")","v":3243.5741344511721},{"$f":"IFERROR((VLOOKUP($B142,Funding,Funding!$GH$2,FALSE)), \"x\")","v":21215292.82},{"$f":"IFERROR((BK142/VLOOKUP($B142,Funding,Funding!$GM$2,FALSE)), \"x\")","v":0.1382264052673996},{"$f":"IFERROR((BK142/(VLOOKUP($B142,Pupils,Pupils!$J$3,FALSE)+VLOOKUP($B142,Pupils,Pupils!$K$3,FALSE))), \"x\")","v":3273.9649413580246},{"$f":"IFERROR((VLOOKUP($B142,Funding,Funding!$FZ$2,FALSE)), \"x\")","v":20533921.879999999},{"$f":"IFERROR((BN142/VLOOKUP($B142,Funding,Funding!$GE$2,FALSE)), \"x\")","v":0.15579264716326838},{"$f":"IFERROR((BN142/(VLOOKUP($B142,Pupils,Pupils!$M$3,FALSE)+VLOOKUP($B142,Pupils,Pupils!$P$3,FALSE))), \"x\")","v":3394.5977649198212},{"$f":"IFERROR((VLOOKUP($B142,Funding,Funding!$FD$2,FALSE)), \"x\")","v":23807804},{"$f":"IFERROR((BQ142/VLOOKUP($B142,Funding,Funding!$FR$2,FALSE)), \"x\")","v":0.19631164261474682},{"$f":"IFERROR((BQ142/(VLOOKUP($B142,Pupils,Pupils!$R$3,FALSE)+VLOOKUP($B142,Pupils,Pupils!$U$3,FALSE))), \"x\")","v":3868.6714332141696},{"$f":"(VLOOKUP(B142,Funding,Funding!$HK$2,FALSE)+VLOOKUP(B142,Funding,Funding!$HL$2,FALSE)+VLOOKUP(B142,Funding,Funding!$HM$2,FALSE))/(VLOOKUP(B142,Funding,Funding!$HN$2,FALSE))","v":0.16031537450722733},{"$f":"IFERROR((VLOOKUP(B142,Other_data,Other!$D$3,FALSE)+VLOOKUP(B142,Other_data,Other!$E$3,FALSE)+VLOOKUP(B142,Other_data,Other!$F$3,FALSE)), \"x\")","v":1080},{"$f":"(VLOOKUP(B142,Other_data,Other!$AK$3,FALSE)+VLOOKUP(B142,Other_data,Other!$AL$3,FALSE))/VLOOKUP(B142,Other_data,Other!$AJ$3,FALSE)","v":3.1715888503263269E-2},{"$f":"(VLOOKUP(B142,Other_data,Other!$AR$3,FALSE)+VLOOKUP(B142,Other_data,Other!$AS$3,FALSE))/VLOOKUP(B142,Other_data,Other!$AQ$3,FALSE)","v":5.2448332812569748E-2},{"$f":"VLOOKUP(B142,Other_data,Other!$AP$3,FALSE)/VLOOKUP(B142,Other_data,Other!$AJ$3,FALSE)","v":4.8239582651212537E-3},{"$f":"VLOOKUP(B142,Other_data,Other!$AW$3,FALSE)/VLOOKUP(B142,Other_data,Other!$AQ$3,FALSE)","v":1.0668214078471632E-2}]
[137,384,"Wakefield",{"$f":"IFERROR((VLOOKUP($B143,Pupils,Pupils!$D$3,FALSE)/VLOOKUP($B143,Pupils,Pupils!$C$3,FALSE)), \"x\")","v":2.5803941908713691E-2},{"$f":"IFERROR((VLOOKUP($B143,Pupils,Pupils!$G$3,FALSE)/VLOOKUP($B143,Pupils,Pupils!$F$3,FALSE)),\"x\")","v":2.6455614181245951E-2},{"$f":"IFERROR((VLOOKUP($B143,Pupils,Pupils!$J$3,FALSE)/VLOOKUP($B143,Pupils,Pupils!$I$3,FALSE)), \"x\")","v":2.7133795763937832E-2},{"$f":"IFERROR((VLOOKUP($B143,Pupils,Pupils!$M$3,FALSE)/VLOOKUP($B143,Pupils,Pupils!$L$3,FALSE)), \"x\")","v":2.7567807914628723E-2},{"$f":"IFERROR((VLOOKUP($B143,Pupils,Pupils!$R$3,FALSE)/VLOOKUP($B143,Pupils,Pupils!$Q$3,FALSE)), \"x\")","v":2.8300833581423043E-2},{"$f":"IFERROR((VLOOKUP($B143,Pupils,Pupils!$W$3,FALSE)/VLOOKUP($B143,Pupils,Pupils!$V$3,FALSE)), \"x\")","v":2.7409159797434666E-2},{"$f":"IFERROR(((VLOOKUP($B143,Pupils,Pupils!$D$3,FALSE)+VLOOKUP($B143,Pupils,Pupils!$E$3,FALSE))/VLOOKUP($B143,Pupils,Pupils!$C$3,FALSE)), \"x\")","v":0.20926570835803202},{"$f":"IFERROR(((VLOOKUP($B143,Pupils,Pupils!$G$3,FALSE)+VLOOKUP($B143,Pupils,Pupils!$H$3,FALSE))/VLOOKUP($B143,Pupils,Pupils!$F$3,FALSE)), \"x\")","v":0.20518374525594743},{"$f":"IFERROR(((VLOOKUP($B143,Pupils,Pupils!$J$3,FALSE)+VLOOKUP($B143,Pupils,Pupils!$K$3,FALSE))/VLOOKUP($B143,Pupils,Pupils!$I$3,FALSE)), \"x\")","v":0.20269668756259504},{"$f":"IFERROR(((VLOOKUP($B143,Pupils,Pupils!$M$3,FALSE)+VLOOKUP($B143,Pupils,Pupils!$P$3,FALSE))/VLOOKUP($B143,Pupils,Pupils!$L$3,FALSE)), \"x\")","v":0.18665703275529866},{"$f":"IFERROR(((VLOOKUP($B143,Pupils,Pupils!$R$3,FALSE)+VLOOKUP($B143,Pupils,Pupils!$U$3,FALSE))/VLOOKUP($B143,Pupils,Pupils!$Q$3,FALSE)), \"x\")","v":0.18286692467996427},{"$f":"IFERROR(((VLOOKUP($B143,Pupils,Pupils!$W$3,FALSE)+VLOOKUP($B143,Pupils,Pupils!$Z$3,FALSE))/VLOOKUP($B143,Pupils,Pupils!$V$3,FALSE)), \"x\")","v":0.17691198757993568},{"$f":"(SUM(INDEX(Pupils!$AB$7:$AB$159,MATCH($B143,Pupils!$A$7:$A$159,0)),INDEX(Pupils!$AC$7:$AC$159,MATCH($B143,Pupils!$A$7:$A$159,0)),INDEX(Pupils!$AD$7:$AD$159,MATCH($B143,Pupils!$A$7:$A$159,0)),INDEX(Pupils!$AE$7:$AE$159,MATCH($B143,Pupils!$A$7:$A$159,0))))/SUM(INDEX(Pupils!$AB$7:$AM$159,MATCH($B143,Pupils!$A$7:$A$159,0),0))","v":0.29953236524735416},{"$f":"SUM(INDEX(Pupils!$AF$7:$AF$159,MATCH($B143,Pupils!$A$7:$A$159,0)))/SUM(INDEX(Pupils!$AB$7:$AM$159,MATCH($B143,Pupils!$A$7:$A$159,0),0))","v":0.23455574698498646},{"$f":"SUM(INDEX(Pupils!$AG$7:$AG$159,MATCH($B143,Pupils!$A$7:$A$159,0)))/SUM(INDEX(Pupils!$AB$7:$AM$159,MATCH($B143,Pupils!$A$7:$A$159,0),0))","v":0.15604233325129216},{"$f":"(SUM(INDEX(Pupils!$AH$7:$AH$159,MATCH($B143,Pupils!$A$7:$A$159,0)),INDEX(Pupils!$AI$7:$AI$159,MATCH($B143,Pupils!$A$7:$A$159,0)),INDEX(Pupils!$AJ$7:$AJ$159,MATCH($B143,Pupils!$A$7:$A$159,0))))/SUM(INDEX(Pupils!$AB$7:$AM$159,MATCH($B143,Pupils!$A$7:$A$159,0),0))","v":6.7683977356633035E-2},{"$f":"SUM(INDEX(Pupils!$AK$7:$AK$159,MATCH($B143,Pupils!$A$7:$A$159,0)))/SUM(INDEX(Pupils!$AB$7:$AM$159,MATCH($B143,Pupils!$A$7:$A$159,0),0))","v":5.1685946345065223E-2},{"$f":"SUM(INDEX(Pupils!$AL$7:$AL$159,MATCH($B143,Pupils!$A$7:$A$159,0)))/SUM(INDEX(Pupils!$AB$7:$AM$159,MATCH($B143,Pupils!$A$7:$A$159,0),0))","v":0.13905980802362786},{"$f":"SUM(INDEX(Pupils!$AM$7:$AM$159,MATCH($B143,Pupils!$A$7:$A$159,0)))/SUM(INDEX(Pupils!$AB$7:$AM$159,MATCH($B143,Pupils!$A$7:$A$159,0),0))","v":5.1439822791041104E-2},{"$f":"(SUM(INDEX(Pupils!$BH$7:$BH$159,MATCH($B143,Pupils!$A$7:$A$159,0)),INDEX(Pupils!$BK$7:$BK$159,MATCH($B143,Pupils!$A$7:$A$159,0)),INDEX(Pupils!$BO$7:$BO$159,MATCH($B143,Pupils!$A$7:$A$159,0))))/SUM(INDEX(Pupils!$BH$7:$BS$159,MATCH($B143,Pupils!$A$7:$A$159,0),0))","v":0.64416315049226447},{"$f":"(SUM(INDEX(Pupils!$BL$7:$BL$159,MATCH($B143,Pupils!$A$7:$A$159,0)),INDEX(Pupils!$BM$7:$BM$159,MATCH($B143,Pupils!$A$7:$A$159,0)),INDEX(Pupils!$BP$7:$BP$159,MATCH($B143,Pupils!$A$7:$A$159,0))))/SUM(INDEX(Pupils!$BH$7:$BS$159,MATCH($B143,Pupils!$A$7:$A$159,0),0))","v":0.29465541490857944},{"$f":"(SUM(INDEX(Pupils!$BI$7:$BI$159,MATCH($B143,Pupils!$A$7:$A$159,0)),INDEX(Pupils!$BJ$7:$BJ$159,MATCH($B143,Pupils!$A$7:$A$159,0))))/SUM(INDEX(Pupils!$BH$7:$BS$159,MATCH($B143,Pupils!$A$7:$A$159,0),0))","v":5.1336146272855133E-2},{"$f":"(SUM(INDEX(Pupils!$BQ$7:$BQ$159,MATCH($B143,Pupils!$A$7:$A$159,0)),INDEX(Pupils!$BR$7:$BR$159,MATCH($B143,Pupils!$A$7:$A$159,0)),INDEX(Pupils!$BN$7:$BN$159,MATCH($B143,Pupils!$A$7:$A$159,0)),INDEX(Pupils!$BS$7:$BS$159,MATCH($B143,Pupils!$A$7:$A$159,0))))/SUM(INDEX(Pupils!$BH$7:$BS$159,MATCH($B143,Pupils!$A$7:$A$159,0),0))","v":9.8452883263009851E-3},{"$f":"IFERROR((VLOOKUP(B143,Funding,Funding!$C$2,FALSE)), \"x\")","v":21118307.59},{"$f":"IFERROR((AA143/VLOOKUP(B143,Funding,Funding!$D$2,FALSE)), \"x\")","v":9.1305554919245399E-2},{"$f":"IFERROR((AA143/(VLOOKUP(B143,Pupils,Pupils!$M$3,FALSE)+VLOOKUP(B143,Pupils,Pupils!$P$3,FALSE))), \"x\")","v":2096.109934491315},{"$f":"IFERROR((VLOOKUP(B143,Funding,Funding!$E$2,FALSE)), \"x\")","v":22570369.528846644},{"$f":"IFERROR((AD143/VLOOKUP(B143,Funding,Funding!$F$2,FALSE)), \"x\")","v":9.5192166803442002E-2},{"$f":"IFERROR((AD143/(VLOOKUP(B143,Pupils,Pupils!$R$3,FALSE)+VLOOKUP(B143,Pupils,Pupils!$U$3,FALSE))), \"x\")","v":2296.5373960975421},{"$f":"IFERROR((VLOOKUP(B143,Funding,Funding!$G$2,FALSE)), \"x\")","v":23564043.250109356},{"$f":"IFERROR((AG143/VLOOKUP(B143,Funding,Funding!$H$2,FALSE)), \"x\")","v":9.7661692521164897E-2},{"$f":"IFERROR((AG143/(VLOOKUP(B143,Pupils,Pupils!$W$3,FALSE)+VLOOKUP(B143,Pupils,Pupils!$Z$3,FALSE))), \"x\")","v":2461.7679952057415},{"$f":"IFERROR((VLOOKUP(B143,Funding,Funding!$I$2,FALSE)), \"x\")","v":23851960.815812312},{"$f":"IFERROR((AJ143/VLOOKUP(B143,Funding,Funding!$J$2,FALSE)), \"x\")","v":9.9270663314128621E-2},null,{"$f":"IFERROR((VLOOKUP($B143,Funding,Funding!$EC$2,FALSE)), \"x\")","v":19213819.800000001},{"$f":"IFERROR((AM143/VLOOKUP($B143,Funding,Funding!$EU$2,FALSE)), \"x\")","v":8.3317848949936962E-2},{"$f":"IFERROR((AM143/(VLOOKUP($B143,Pupils,Pupils!$D$3,FALSE)+VLOOKUP($B143,Pupils,Pupils!$E$3,FALSE))), \"x\")","v":1700.7895724528637},{"$f":"IFERROR((VLOOKUP($B143,Funding,Funding!$DA$2,FALSE)), \"x\")","v":18201933.571880002},{"$f":"IFERROR((AP143/VLOOKUP($B143,Funding,Funding!$DT$2,FALSE)), \"x\")","v":7.6948228021092552E-2},{"$f":"IFERROR((AP143/(VLOOKUP($B143,Pupils,Pupils!$G$3,FALSE)+VLOOKUP($B143,Pupils,Pupils!$H$3,FALSE))), \"x\")","v":1642.3291141279437},{"$f":"IFERROR((VLOOKUP($B143,Funding,Funding!$CE$2,FALSE)), \"x\")","v":18074461.287999999},{"$f":"IFERROR((AS143/VLOOKUP($B143,Funding,Funding!$CR$2,FALSE)), \"x\")","v":8.918170205105215E-2},{"$f":"IFERROR((AS143/(VLOOKUP($B143,Pupils,Pupils!$J$3,FALSE)+VLOOKUP($B143,Pupils,Pupils!$K$3,FALSE))), \"x\")","v":1653.8074195260315},{"$f":"IFERROR((VLOOKUP($B143,Funding,Funding!$BM$2,FALSE)), \"x\")","v":19073356.449999999},{"$f":"IFERROR((AV143/VLOOKUP($B143,Funding,Funding!$BY$2,FALSE)), \"x\")","v":9.9320133150588547E-2},{"$f":"IFERROR((AV143/(VLOOKUP($B143,Pupils,Pupils!$M$3,FALSE)+VLOOKUP($B143,Pupils,Pupils!$P$3,FALSE))), \"x\")","v":1893.13711662531},{"$f":"IFERROR((VLOOKUP($B143,Funding,Funding!$AQ$2,FALSE)), \"x\")","v":22107024.509999998},{"$f":"IFERROR((AY143/VLOOKUP($B143,Funding,Funding!$BE$2,FALSE)), \"x\")","v":9.2232245263220033E-2},{"$f":"IFERROR((AY143/(VLOOKUP($B143,Pupils,Pupils!$R$3,FALSE)+VLOOKUP($B143,Pupils,Pupils!$U$3,FALSE))), \"x\")","v":2249.3919932844929},{"$f":"IFERROR((VLOOKUP($B143,Funding,Funding!$S$2,FALSE)), \"x\")","v":22793409},{"$f":"IFERROR((BB143/VLOOKUP($B143,Funding,Funding!$AH$2,FALSE)), \"x\")","v":9.1317124423949847E-2},{"$f":"IFERROR((BB143/(VLOOKUP(B143,Pupils,Pupils!$W$3,FALSE)+VLOOKUP(B143,Pupils,Pupils!$Z$3,FALSE))), \"x\")","v":2381.2587755954869},{"$f":"IFERROR((VLOOKUP($B143,Funding,Funding!$GX$2,FALSE)), \"x\")","v":19125253.84},{"$f":"IFERROR((BE143/VLOOKUP($B143,Funding,Funding!$HC$2,FALSE)), \"x\")","v":7.7328007080981351E-2},{"$f":"IFERROR((BE143/(VLOOKUP($B143,Pupils,Pupils!$D$3,FALSE)+VLOOKUP($B143,Pupils,Pupils!$E$3,FALSE))), \"x\")","v":1692.9497955209347},{"$f":"IFERROR((VLOOKUP($B143,Funding,Funding!$GP$2,FALSE)), \"x\")","v":19791870.07},{"$f":"IFERROR((BH143/VLOOKUP($B143,Funding,Funding!$GU$2,FALSE)), \"x\")","v":8.1378098373564509E-2},{"$f":"IFERROR((BH143/(VLOOKUP($B143,Pupils,Pupils!$G$3,FALSE)+VLOOKUP($B143,Pupils,Pupils!$H$3,FALSE))), \"x\")","v":1785.7863457547596},{"$f":"IFERROR((VLOOKUP($B143,Funding,Funding!$GH$2,FALSE)), \"x\")","v":18140749.949999999},{"$f":"IFERROR((BK143/VLOOKUP($B143,Funding,Funding!$GM$2,FALSE)), \"x\")","v":8.9514146350535437E-2},{"$f":"IFERROR((BK143/(VLOOKUP($B143,Pupils,Pupils!$J$3,FALSE)+VLOOKUP($B143,Pupils,Pupils!$K$3,FALSE))), \"x\")","v":1659.8728108701619},{"$f":"IFERROR((VLOOKUP($B143,Funding,Funding!$FZ$2,FALSE)), \"x\")","v":17914744.09},{"$f":"IFERROR((BN143/VLOOKUP($B143,Funding,Funding!$GE$2,FALSE)), \"x\")","v":9.9078947317299562E-2},{"$f":"IFERROR((BN143/(VLOOKUP($B143,Pupils,Pupils!$M$3,FALSE)+VLOOKUP($B143,Pupils,Pupils!$P$3,FALSE))), \"x\")","v":1778.1383712158809},{"$f":"IFERROR((VLOOKUP($B143,Funding,Funding!$FD$2,FALSE)), \"x\")","v":24162656},{"$f":"IFERROR((BQ143/VLOOKUP($B143,Funding,Funding!$FR$2,FALSE)), \"x\")","v":0.18626816444961766},{"$f":"IFERROR((BQ143/(VLOOKUP($B143,Pupils,Pupils!$R$3,FALSE)+VLOOKUP($B143,Pupils,Pupils!$U$3,FALSE))), \"x\")","v":2458.5527065527067},{"$f":"(VLOOKUP(B143,Funding,Funding!$HK$2,FALSE)+VLOOKUP(B143,Funding,Funding!$HL$2,FALSE)+VLOOKUP(B143,Funding,Funding!$HM$2,FALSE))/(VLOOKUP(B143,Funding,Funding!$HN$2,FALSE))","v":0.30982658959537573},{"$f":"IFERROR((VLOOKUP(B143,Other_data,Other!$D$3,FALSE)+VLOOKUP(B143,Other_data,Other!$E$3,FALSE)+VLOOKUP(B143,Other_data,Other!$F$3,FALSE)), \"x\")","v":2040},{"$f":"(VLOOKUP(B143,Other_data,Other!$AK$3,FALSE)+VLOOKUP(B143,Other_data,Other!$AL$3,FALSE))/VLOOKUP(B143,Other_data,Other!$AJ$3,FALSE)","v":4.0418013933797792E-2},{"$f":"(VLOOKUP(B143,Other_data,Other!$AR$3,FALSE)+VLOOKUP(B143,Other_data,Other!$AS$3,FALSE))/VLOOKUP(B143,Other_data,Other!$AQ$3,FALSE)","v":5.9512998070155525E-2},{"$f":"VLOOKUP(B143,Other_data,Other!$AP$3,FALSE)/VLOOKUP(B143,Other_data,Other!$AJ$3,FALSE)","v":6.0168672289076302E-3},{"$f":"VLOOKUP(B143,Other_data,Other!$AW$3,FALSE)/VLOOKUP(B143,Other_data,Other!$AQ$3,FALSE)","v":1.268588943126348E-2}]
[138,335,"Walsall",{"$f":"IFERROR((VLOOKUP($B144,Pupils,Pupils!$D$3,FALSE)/VLOOKUP($B144,Pupils,Pupils!$C$3,FALSE)), \"x\")","v":2.1123750992083679E-2},{"$f":"IFERROR((VLOOKUP($B144,Pupils,Pupils!$G$3,FALSE)/VLOOKUP($B144,Pupils,Pupils!$F$3,FALSE)),\"x\")","v":2.1211997717825413E-2},{"$f":"IFERROR((VLOOKUP($B144,Pupils,Pupils!$J$3,FALSE)/VLOOKUP($B144,Pupils,Pupils!$I$3,FALSE)), \"x\")","v":2.0806507654260429E-2},{"$f":"IFERROR((VLOOKUP($B144,Pupils,Pupils!$M$3,FALSE)/VLOOKUP($B144,Pupils,Pupils!$L$3,FALSE)), \"x\")","v":2.1381847914963205E-2},{"$f":"IFERROR((VLOOKUP($B144,Pupils,Pupils!$R$3,FALSE)/VLOOKUP($B144,Pupils,Pupils!$Q$3,FALSE)), \"x\")","v":2.2371364653243849E-2},{"$f":"IFERROR((VLOOKUP($B144,Pupils,Pupils!$W$3,FALSE)/VLOOKUP($B144,Pupils,Pupils!$V$3,FALSE)), \"x\")","v":2.3401906673356749E-2},{"$f":"IFERROR(((VLOOKUP($B144,Pupils,Pupils!$D$3,FALSE)+VLOOKUP($B144,Pupils,Pupils!$E$3,FALSE))/VLOOKUP($B144,Pupils,Pupils!$C$3,FALSE)), \"x\")","v":0.16174525326115713},{"$f":"IFERROR(((VLOOKUP($B144,Pupils,Pupils!$G$3,FALSE)+VLOOKUP($B144,Pupils,Pupils!$H$3,FALSE))/VLOOKUP($B144,Pupils,Pupils!$F$3,FALSE)), \"x\")","v":0.17126497677072297},{"$f":"IFERROR(((VLOOKUP($B144,Pupils,Pupils!$J$3,FALSE)+VLOOKUP($B144,Pupils,Pupils!$K$3,FALSE))/VLOOKUP($B144,Pupils,Pupils!$I$3,FALSE)), \"x\")","v":0.17141864410243832},{"$f":"IFERROR(((VLOOKUP($B144,Pupils,Pupils!$M$3,FALSE)+VLOOKUP($B144,Pupils,Pupils!$P$3,FALSE))/VLOOKUP($B144,Pupils,Pupils!$L$3,FALSE)), \"x\")","v":0.16383892068683564},{"$f":"IFERROR(((VLOOKUP($B144,Pupils,Pupils!$R$3,FALSE)+VLOOKUP($B144,Pupils,Pupils!$U$3,FALSE))/VLOOKUP($B144,Pupils,Pupils!$Q$3,FALSE)), \"x\")","v":0.15255236933089283},{"$f":"IFERROR(((VLOOKUP($B144,Pupils,Pupils!$W$3,FALSE)+VLOOKUP($B144,Pupils,Pupils!$Z$3,FALSE))/VLOOKUP($B144,Pupils,Pupils!$V$3,FALSE)), \"x\")","v":0.14936276969392875},{"$f":"(SUM(INDEX(Pupils!$AB$7:$AB$159,MATCH($B144,Pupils!$A$7:$A$159,0)),INDEX(Pupils!$AC$7:$AC$159,MATCH($B144,Pupils!$A$7:$A$159,0)),INDEX(Pupils!$AD$7:$AD$159,MATCH($B144,Pupils!$A$7:$A$159,0)),INDEX(Pupils!$AE$7:$AE$159,MATCH($B144,Pupils!$A$7:$A$159,0))))/SUM(INDEX(Pupils!$AB$7:$AM$159,MATCH($B144,Pupils!$A$7:$A$159,0),0))","v":0.51765927977839332},{"$f":"SUM(INDEX(Pupils!$AF$7:$AF$159,MATCH($B144,Pupils!$A$7:$A$159,0)))/SUM(INDEX(Pupils!$AB$7:$AM$159,MATCH($B144,Pupils!$A$7:$A$159,0),0))","v":0.14958448753462603},{"$f":"SUM(INDEX(Pupils!$AG$7:$AG$159,MATCH($B144,Pupils!$A$7:$A$159,0)))/SUM(INDEX(Pupils!$AB$7:$AM$159,MATCH($B144,Pupils!$A$7:$A$159,0),0))","v":0.13123268698060941},{"$f":"(SUM(INDEX(Pupils!$AH$7:$AH$159,MATCH($B144,Pupils!$A$7:$A$159,0)),INDEX(Pupils!$AI$7:$AI$159,MATCH($B144,Pupils!$A$7:$A$159,0)),INDEX(Pupils!$AJ$7:$AJ$159,MATCH($B144,Pupils!$A$7:$A$159,0))))/SUM(INDEX(Pupils!$AB$7:$AM$159,MATCH($B144,Pupils!$A$7:$A$159,0),0))","v":5.1246537396121887E-2},{"$f":"SUM(INDEX(Pupils!$AK$7:$AK$159,MATCH($B144,Pupils!$A$7:$A$159,0)))/SUM(INDEX(Pupils!$AB$7:$AM$159,MATCH($B144,Pupils!$A$7:$A$159,0),0))","v":2.9085872576177285E-2},{"$f":"SUM(INDEX(Pupils!$AL$7:$AL$159,MATCH($B144,Pupils!$A$7:$A$159,0)))/SUM(INDEX(Pupils!$AB$7:$AM$159,MATCH($B144,Pupils!$A$7:$A$159,0),0))","v":0.10076177285318559},{"$f":"SUM(INDEX(Pupils!$AM$7:$AM$159,MATCH($B144,Pupils!$A$7:$A$159,0)))/SUM(INDEX(Pupils!$AB$7:$AM$159,MATCH($B144,Pupils!$A$7:$A$159,0),0))","v":2.0429362880886426E-2},{"$f":"(SUM(INDEX(Pupils!$BH$7:$BH$159,MATCH($B144,Pupils!$A$7:$A$159,0)),INDEX(Pupils!$BK$7:$BK$159,MATCH($B144,Pupils!$A$7:$A$159,0)),INDEX(Pupils!$BO$7:$BO$159,MATCH($B144,Pupils!$A$7:$A$159,0))))/SUM(INDEX(Pupils!$BH$7:$BS$159,MATCH($B144,Pupils!$A$7:$A$159,0),0))","v":0.4332273449920509},{"$f":"(SUM(INDEX(Pupils!$BL$7:$BL$159,MATCH($B144,Pupils!$A$7:$A$159,0)),INDEX(Pupils!$BM$7:$BM$159,MATCH($B144,Pupils!$A$7:$A$159,0)),INDEX(Pupils!$BP$7:$BP$159,MATCH($B144,Pupils!$A$7:$A$159,0))))/SUM(INDEX(Pupils!$BH$7:$BS$159,MATCH($B144,Pupils!$A$7:$A$159,0),0))","v":0.5254372019077902},{"$f":"(SUM(INDEX(Pupils!$BI$7:$BI$159,MATCH($B144,Pupils!$A$7:$A$159,0)),INDEX(Pupils!$BJ$7:$BJ$159,MATCH($B144,Pupils!$A$7:$A$159,0))))/SUM(INDEX(Pupils!$BH$7:$BS$159,MATCH($B144,Pupils!$A$7:$A$159,0),0))","v":3.4181240063593007E-2},{"$f":"(SUM(INDEX(Pupils!$BQ$7:$BQ$159,MATCH($B144,Pupils!$A$7:$A$159,0)),INDEX(Pupils!$BR$7:$BR$159,MATCH($B144,Pupils!$A$7:$A$159,0)),INDEX(Pupils!$BN$7:$BN$159,MATCH($B144,Pupils!$A$7:$A$159,0)),INDEX(Pupils!$BS$7:$BS$159,MATCH($B144,Pupils!$A$7:$A$159,0))))/SUM(INDEX(Pupils!$BH$7:$BS$159,MATCH($B144,Pupils!$A$7:$A$159,0),0))","v":7.1542130365659781E-3},{"$f":"IFERROR((VLOOKUP(B144,Funding,Funding!$C$2,FALSE)), \"x\")","v":26115347},{"$f":"IFERROR((AA144/VLOOKUP(B144,Funding,Funding!$D$2,FALSE)), \"x\")","v":0.12011921063575551},{"$f":"IFERROR((AA144/(VLOOKUP(B144,Pupils,Pupils!$M$3,FALSE)+VLOOKUP(B144,Pupils,Pupils!$P$3,FALSE))), \"x\")","v":3258.3090455396132},{"$f":"IFERROR((VLOOKUP(B144,Funding,Funding!$E$2,FALSE)), \"x\")","v":27292192.947043821},{"$f":"IFERROR((AD144/VLOOKUP(B144,Funding,Funding!$F$2,FALSE)), \"x\")","v":0.12224165988986742},{"$f":"IFERROR((AD144/(VLOOKUP(B144,Pupils,Pupils!$R$3,FALSE)+VLOOKUP(B144,Pupils,Pupils!$U$3,FALSE))), \"x\")","v":3638.473929748543},{"$f":"IFERROR((VLOOKUP(B144,Funding,Funding!$G$2,FALSE)), \"x\")","v":28260716.223121691},{"$f":"IFERROR((AG144/VLOOKUP(B144,Funding,Funding!$H$2,FALSE)), \"x\")","v":0.12384645964993597},{"$f":"IFERROR((AG144/(VLOOKUP(B144,Pupils,Pupils!$W$3,FALSE)+VLOOKUP(B144,Pupils,Pupils!$Z$3,FALSE))), \"x\")","v":3797.4625400593513},{"$f":"IFERROR((VLOOKUP(B144,Funding,Funding!$I$2,FALSE)), \"x\")","v":28414971.300014466},{"$f":"IFERROR((AJ144/VLOOKUP(B144,Funding,Funding!$J$2,FALSE)), \"x\")","v":0.12315941738153004},null,{"$f":"IFERROR((VLOOKUP($B144,Funding,Funding!$EC$2,FALSE)), \"x\")","v":18141712.600000001},{"$f":"IFERROR((AM144/VLOOKUP($B144,Funding,Funding!$EU$2,FALSE)), \"x\")","v":8.1630604857785033E-2},{"$f":"IFERROR((AM144/(VLOOKUP($B144,Pupils,Pupils!$D$3,FALSE)+VLOOKUP($B144,Pupils,Pupils!$E$3,FALSE))), \"x\")","v":2282.5506542526423},{"$f":"IFERROR((VLOOKUP($B144,Funding,Funding!$DA$2,FALSE)), \"x\")","v":18722961.12263},{"$f":"IFERROR((AP144/VLOOKUP($B144,Funding,Funding!$DT$2,FALSE)), \"x\")","v":8.4273678761228057E-2},{"$f":"IFERROR((AP144/(VLOOKUP($B144,Pupils,Pupils!$G$3,FALSE)+VLOOKUP($B144,Pupils,Pupils!$H$3,FALSE))), \"x\")","v":2227.5979919845331},{"$f":"IFERROR((VLOOKUP($B144,Funding,Funding!$CE$2,FALSE)), \"x\")","v":19347945.411789998},{"$f":"IFERROR((AS144/VLOOKUP($B144,Funding,Funding!$CR$2,FALSE)), \"x\")","v":8.9364657669281394E-2},{"$f":"IFERROR((AS144/(VLOOKUP($B144,Pupils,Pupils!$J$3,FALSE)+VLOOKUP($B144,Pupils,Pupils!$K$3,FALSE))), \"x\")","v":2306.8970325253367},{"$f":"IFERROR((VLOOKUP($B144,Funding,Funding!$BM$2,FALSE)), \"x\")","v":18936682.030000001},{"$f":"IFERROR((AV144/VLOOKUP($B144,Funding,Funding!$BY$2,FALSE)), \"x\")","v":0.11137358333536682},{"$f":"IFERROR((AV144/(VLOOKUP($B144,Pupils,Pupils!$M$3,FALSE)+VLOOKUP($B144,Pupils,Pupils!$P$3,FALSE))), \"x\")","v":2362.6552751091704},{"$f":"IFERROR((VLOOKUP($B144,Funding,Funding!$AQ$2,FALSE)), \"x\")","v":25089968},{"$f":"IFERROR((AY144/VLOOKUP($B144,Funding,Funding!$BE$2,FALSE)), \"x\")","v":0.10979656049866904},{"$f":"IFERROR((AY144/(VLOOKUP($B144,Pupils,Pupils!$R$3,FALSE)+VLOOKUP($B144,Pupils,Pupils!$U$3,FALSE))), \"x\")","v":3344.8830822556993},{"$f":"IFERROR((VLOOKUP($B144,Funding,Funding!$S$2,FALSE)), \"x\")","v":24118569},{"$f":"IFERROR((BB144/VLOOKUP($B144,Funding,Funding!$AH$2,FALSE)), \"x\")","v":0.10153920593145394},{"$f":"IFERROR((BB144/(VLOOKUP(B144,Pupils,Pupils!$W$3,FALSE)+VLOOKUP(B144,Pupils,Pupils!$Z$3,FALSE))), \"x\")","v":3240.871943026068},{"$f":"IFERROR((VLOOKUP($B144,Funding,Funding!$GX$2,FALSE)), \"x\")","v":29977281.662289999},{"$f":"IFERROR((BE144/VLOOKUP($B144,Funding,Funding!$HC$2,FALSE)), \"x\")","v":0.12722956623821283},{"$f":"IFERROR((BE144/(VLOOKUP($B144,Pupils,Pupils!$D$3,FALSE)+VLOOKUP($B144,Pupils,Pupils!$E$3,FALSE))), \"x\")","v":3771.6761024521893},{"$f":"IFERROR((VLOOKUP($B144,Funding,Funding!$GP$2,FALSE)), \"x\")","v":30034969},{"$f":"IFERROR((BH144/VLOOKUP($B144,Funding,Funding!$GU$2,FALSE)), \"x\")","v":0.12473465255318746},{"$f":"IFERROR((BH144/(VLOOKUP($B144,Pupils,Pupils!$G$3,FALSE)+VLOOKUP($B144,Pupils,Pupils!$H$3,FALSE))), \"x\")","v":3573.464485425342},{"$f":"IFERROR((VLOOKUP($B144,Funding,Funding!$GH$2,FALSE)), \"x\")","v":27886806.030000001},{"$f":"IFERROR((BK144/VLOOKUP($B144,Funding,Funding!$GM$2,FALSE)), \"x\")","v":0.13739026993051601},{"$f":"IFERROR((BK144/(VLOOKUP($B144,Pupils,Pupils!$J$3,FALSE)+VLOOKUP($B144,Pupils,Pupils!$K$3,FALSE))), \"x\")","v":3325.0036997734592},{"$f":"IFERROR((VLOOKUP($B144,Funding,Funding!$FZ$2,FALSE)), \"x\")","v":25566380},{"$f":"IFERROR((BN144/VLOOKUP($B144,Funding,Funding!$GE$2,FALSE)), \"x\")","v":0.15753483479944311},{"$f":"IFERROR((BN144/(VLOOKUP($B144,Pupils,Pupils!$M$3,FALSE)+VLOOKUP($B144,Pupils,Pupils!$P$3,FALSE))), \"x\")","v":3189.8165938864627},{"$f":"IFERROR((VLOOKUP($B144,Funding,Funding!$FD$2,FALSE)), \"x\")","v":23508659},{"$f":"IFERROR((BQ144/VLOOKUP($B144,Funding,Funding!$FR$2,FALSE)), \"x\")","v":0.1042243635292129},{"$f":"IFERROR((BQ144/(VLOOKUP($B144,Pupils,Pupils!$R$3,FALSE)+VLOOKUP($B144,Pupils,Pupils!$U$3,FALSE))), \"x\")","v":3134.069990667911},{"$f":"(VLOOKUP(B144,Funding,Funding!$HK$2,FALSE)+VLOOKUP(B144,Funding,Funding!$HL$2,FALSE)+VLOOKUP(B144,Funding,Funding!$HM$2,FALSE))/(VLOOKUP(B144,Funding,Funding!$HN$2,FALSE))","v":0.17614879649890591},{"$f":"IFERROR((VLOOKUP(B144,Other_data,Other!$D$3,FALSE)+VLOOKUP(B144,Other_data,Other!$E$3,FALSE)+VLOOKUP(B144,Other_data,Other!$F$3,FALSE)), \"x\")","v":1900},{"$f":"(VLOOKUP(B144,Other_data,Other!$AK$3,FALSE)+VLOOKUP(B144,Other_data,Other!$AL$3,FALSE))/VLOOKUP(B144,Other_data,Other!$AJ$3,FALSE)","v":4.2497507477567295E-2},{"$f":"(VLOOKUP(B144,Other_data,Other!$AR$3,FALSE)+VLOOKUP(B144,Other_data,Other!$AS$3,FALSE))/VLOOKUP(B144,Other_data,Other!$AQ$3,FALSE)","v":5.7885448419701585E-2},{"$f":"VLOOKUP(B144,Other_data,Other!$AP$3,FALSE)/VLOOKUP(B144,Other_data,Other!$AJ$3,FALSE)","v":7.7980344680244982E-3},{"$f":"VLOOKUP(B144,Other_data,Other!$AW$3,FALSE)/VLOOKUP(B144,Other_data,Other!$AQ$3,FALSE)","v":1.2738649125621691E-2}]
[139,320,"Waltham Forest",{"$f":"IFERROR((VLOOKUP($B145,Pupils,Pupils!$D$3,FALSE)/VLOOKUP($B145,Pupils,Pupils!$C$3,FALSE)), \"x\")","v":3.4846750604095131E-2},{"$f":"IFERROR((VLOOKUP($B145,Pupils,Pupils!$G$3,FALSE)/VLOOKUP($B145,Pupils,Pupils!$F$3,FALSE)),\"x\")","v":3.2817662961850402E-2},{"$f":"IFERROR((VLOOKUP($B145,Pupils,Pupils!$J$3,FALSE)/VLOOKUP($B145,Pupils,Pupils!$I$3,FALSE)), \"x\")","v":3.1160642275826673E-2},{"$f":"IFERROR((VLOOKUP($B145,Pupils,Pupils!$M$3,FALSE)/VLOOKUP($B145,Pupils,Pupils!$L$3,FALSE)), \"x\")","v":3.0825818699572852E-2},{"$f":"IFERROR((VLOOKUP($B145,Pupils,Pupils!$R$3,FALSE)/VLOOKUP($B145,Pupils,Pupils!$Q$3,FALSE)), \"x\")","v":3.0370025599255293E-2},{"$f":"IFERROR((VLOOKUP($B145,Pupils,Pupils!$W$3,FALSE)/VLOOKUP($B145,Pupils,Pupils!$V$3,FALSE)), \"x\")","v":3.0799131130673375E-2},{"$f":"IFERROR(((VLOOKUP($B145,Pupils,Pupils!$D$3,FALSE)+VLOOKUP($B145,Pupils,Pupils!$E$3,FALSE))/VLOOKUP($B145,Pupils,Pupils!$C$3,FALSE)), \"x\")","v":0.28668447157573446},{"$f":"IFERROR(((VLOOKUP($B145,Pupils,Pupils!$G$3,FALSE)+VLOOKUP($B145,Pupils,Pupils!$H$3,FALSE))/VLOOKUP($B145,Pupils,Pupils!$F$3,FALSE)), \"x\")","v":0.29000200260338438},{"$f":"IFERROR(((VLOOKUP($B145,Pupils,Pupils!$J$3,FALSE)+VLOOKUP($B145,Pupils,Pupils!$K$3,FALSE))/VLOOKUP($B145,Pupils,Pupils!$I$3,FALSE)), \"x\")","v":0.28257203607302589},{"$f":"IFERROR(((VLOOKUP($B145,Pupils,Pupils!$M$3,FALSE)+VLOOKUP($B145,Pupils,Pupils!$P$3,FALSE))/VLOOKUP($B145,Pupils,Pupils!$L$3,FALSE)), \"x\")","v":0.25405790223065972},{"$f":"IFERROR(((VLOOKUP($B145,Pupils,Pupils!$R$3,FALSE)+VLOOKUP($B145,Pupils,Pupils!$U$3,FALSE))/VLOOKUP($B145,Pupils,Pupils!$Q$3,FALSE)), \"x\")","v":0.23656039097044448},{"$f":"IFERROR(((VLOOKUP($B145,Pupils,Pupils!$W$3,FALSE)+VLOOKUP($B145,Pupils,Pupils!$Z$3,FALSE))/VLOOKUP($B145,Pupils,Pupils!$V$3,FALSE)), \"x\")","v":0.22339087687207043},{"$f":"(SUM(INDEX(Pupils!$AB$7:$AB$159,MATCH($B145,Pupils!$A$7:$A$159,0)),INDEX(Pupils!$AC$7:$AC$159,MATCH($B145,Pupils!$A$7:$A$159,0)),INDEX(Pupils!$AD$7:$AD$159,MATCH($B145,Pupils!$A$7:$A$159,0)),INDEX(Pupils!$AE$7:$AE$159,MATCH($B145,Pupils!$A$7:$A$159,0))))/SUM(INDEX(Pupils!$AB$7:$AM$159,MATCH($B145,Pupils!$A$7:$A$159,0),0))","v":0.30427597603800866},{"$f":"SUM(INDEX(Pupils!$AF$7:$AF$159,MATCH($B145,Pupils!$A$7:$A$159,0)))/SUM(INDEX(Pupils!$AB$7:$AM$159,MATCH($B145,Pupils!$A$7:$A$159,0),0))","v":0.21978929973146044},{"$f":"SUM(INDEX(Pupils!$AG$7:$AG$159,MATCH($B145,Pupils!$A$7:$A$159,0)))/SUM(INDEX(Pupils!$AB$7:$AM$159,MATCH($B145,Pupils!$A$7:$A$159,0),0))","v":0.25056806444949392},{"$f":"(SUM(INDEX(Pupils!$AH$7:$AH$159,MATCH($B145,Pupils!$A$7:$A$159,0)),INDEX(Pupils!$AI$7:$AI$159,MATCH($B145,Pupils!$A$7:$A$159,0)),INDEX(Pupils!$AJ$7:$AJ$159,MATCH($B145,Pupils!$A$7:$A$159,0))))/SUM(INDEX(Pupils!$AB$7:$AM$159,MATCH($B145,Pupils!$A$7:$A$159,0),0))","v":4.8337120429663295E-2},{"$f":"SUM(INDEX(Pupils!$AK$7:$AK$159,MATCH($B145,Pupils!$A$7:$A$159,0)))/SUM(INDEX(Pupils!$AB$7:$AM$159,MATCH($B145,Pupils!$A$7:$A$159,0),0))","v":4.461888039661227E-2},{"$f":"SUM(INDEX(Pupils!$AL$7:$AL$159,MATCH($B145,Pupils!$A$7:$A$159,0)))/SUM(INDEX(Pupils!$AB$7:$AM$159,MATCH($B145,Pupils!$A$7:$A$159,0),0))","v":9.7707085312951872E-2},{"$f":"SUM(INDEX(Pupils!$AM$7:$AM$159,MATCH($B145,Pupils!$A$7:$A$159,0)))/SUM(INDEX(Pupils!$AB$7:$AM$159,MATCH($B145,Pupils!$A$7:$A$159,0),0))","v":3.4703573641809544E-2},{"$f":"(SUM(INDEX(Pupils!$BH$7:$BH$159,MATCH($B145,Pupils!$A$7:$A$159,0)),INDEX(Pupils!$BK$7:$BK$159,MATCH($B145,Pupils!$A$7:$A$159,0)),INDEX(Pupils!$BO$7:$BO$159,MATCH($B145,Pupils!$A$7:$A$159,0))))/SUM(INDEX(Pupils!$BH$7:$BS$159,MATCH($B145,Pupils!$A$7:$A$159,0),0))","v":0.46767241379310343},{"$f":"(SUM(INDEX(Pupils!$BL$7:$BL$159,MATCH($B145,Pupils!$A$7:$A$159,0)),INDEX(Pupils!$BM$7:$BM$159,MATCH($B145,Pupils!$A$7:$A$159,0)),INDEX(Pupils!$BP$7:$BP$159,MATCH($B145,Pupils!$A$7:$A$159,0))))/SUM(INDEX(Pupils!$BH$7:$BS$159,MATCH($B145,Pupils!$A$7:$A$159,0),0))","v":0.45330459770114945},{"$f":"(SUM(INDEX(Pupils!$BI$7:$BI$159,MATCH($B145,Pupils!$A$7:$A$159,0)),INDEX(Pupils!$BJ$7:$BJ$159,MATCH($B145,Pupils!$A$7:$A$159,0))))/SUM(INDEX(Pupils!$BH$7:$BS$159,MATCH($B145,Pupils!$A$7:$A$159,0),0))","v":6.7528735632183909E-2},{"$f":"(SUM(INDEX(Pupils!$BQ$7:$BQ$159,MATCH($B145,Pupils!$A$7:$A$159,0)),INDEX(Pupils!$BR$7:$BR$159,MATCH($B145,Pupils!$A$7:$A$159,0)),INDEX(Pupils!$BN$7:$BN$159,MATCH($B145,Pupils!$A$7:$A$159,0)),INDEX(Pupils!$BS$7:$BS$159,MATCH($B145,Pupils!$A$7:$A$159,0))))/SUM(INDEX(Pupils!$BH$7:$BS$159,MATCH($B145,Pupils!$A$7:$A$159,0),0))","v":1.1494252873563218E-2},{"$f":"IFERROR((VLOOKUP(B145,Funding,Funding!$C$2,FALSE)), \"x\")","v":33206759.610000014},{"$f":"IFERROR((AA145/VLOOKUP(B145,Funding,Funding!$D$2,FALSE)), \"x\")","v":0.15055774762118318},{"$f":"IFERROR((AA145/(VLOOKUP(B145,Pupils,Pupils!$M$3,FALSE)+VLOOKUP(B145,Pupils,Pupils!$P$3,FALSE))), \"x\")","v":3101.6962086680378},{"$f":"IFERROR((VLOOKUP(B145,Funding,Funding!$E$2,FALSE)), \"x\")","v":32866585.508994617},{"$f":"IFERROR((AD145/VLOOKUP(B145,Funding,Funding!$F$2,FALSE)), \"x\")","v":0.14171343621217572},{"$f":"IFERROR((AD145/(VLOOKUP(B145,Pupils,Pupils!$R$3,FALSE)+VLOOKUP(B145,Pupils,Pupils!$U$3,FALSE))), \"x\")","v":3233.3089531721216},{"$f":"IFERROR((VLOOKUP(B145,Funding,Funding!$G$2,FALSE)), \"x\")","v":34041433.680893935},{"$f":"IFERROR((AG145/VLOOKUP(B145,Funding,Funding!$H$2,FALSE)), \"x\")","v":0.14350568947008788},{"$f":"IFERROR((AG145/(VLOOKUP(B145,Pupils,Pupils!$W$3,FALSE)+VLOOKUP(B145,Pupils,Pupils!$Z$3,FALSE))), \"x\")","v":3484.2818506544459},{"$f":"IFERROR((VLOOKUP(B145,Funding,Funding!$I$2,FALSE)), \"x\")","v":34233092.925558947},{"$f":"IFERROR((AJ145/VLOOKUP(B145,Funding,Funding!$J$2,FALSE)), \"x\")","v":0.14176778739469401},null,{"$f":"IFERROR((VLOOKUP($B145,Funding,Funding!$EC$2,FALSE)), \"x\")","v":21814419.109999999},{"$f":"IFERROR((AM145/VLOOKUP($B145,Funding,Funding!$EU$2,FALSE)), \"x\")","v":0.10438349545624011},{"$f":"IFERROR((AM145/(VLOOKUP($B145,Pupils,Pupils!$D$3,FALSE)+VLOOKUP($B145,Pupils,Pupils!$E$3,FALSE))), \"x\")","v":1935.4466427113832},{"$f":"IFERROR((VLOOKUP($B145,Funding,Funding!$DA$2,FALSE)), \"x\")","v":22369105.469320003},{"$f":"IFERROR((AP145/VLOOKUP($B145,Funding,Funding!$DT$2,FALSE)), \"x\")","v":0.10369774440166904},{"$f":"IFERROR((AP145/(VLOOKUP($B145,Pupils,Pupils!$G$3,FALSE)+VLOOKUP($B145,Pupils,Pupils!$H$3,FALSE))), \"x\")","v":1930.8679731825639},{"$f":"IFERROR((VLOOKUP($B145,Funding,Funding!$CE$2,FALSE)), \"x\")","v":17509198.7654},{"$f":"IFERROR((AS145/VLOOKUP($B145,Funding,Funding!$CR$2,FALSE)), \"x\")","v":0.13159078512990818},{"$f":"IFERROR((AS145/(VLOOKUP($B145,Pupils,Pupils!$J$3,FALSE)+VLOOKUP($B145,Pupils,Pupils!$K$3,FALSE))), \"x\")","v":1514.3745688808165},{"$f":"IFERROR((VLOOKUP($B145,Funding,Funding!$BM$2,FALSE)), \"x\")","v":23912495.130000003},{"$f":"IFERROR((AV145/VLOOKUP($B145,Funding,Funding!$BY$2,FALSE)), \"x\")","v":0.10620035853451752},{"$f":"IFERROR((AV145/(VLOOKUP($B145,Pupils,Pupils!$M$3,FALSE)+VLOOKUP($B145,Pupils,Pupils!$P$3,FALSE))), \"x\")","v":2233.5601653278536},{"$f":"IFERROR((VLOOKUP($B145,Funding,Funding!$AQ$2,FALSE)), \"x\")","v":32630272.140000001},{"$f":"IFERROR((AY145/VLOOKUP($B145,Funding,Funding!$BE$2,FALSE)), \"x\")","v":0.13985561154147824},{"$f":"IFERROR((AY145/(VLOOKUP($B145,Pupils,Pupils!$R$3,FALSE)+VLOOKUP($B145,Pupils,Pupils!$U$3,FALSE))), \"x\")","v":3210.061204131825},{"$f":"IFERROR((VLOOKUP($B145,Funding,Funding!$S$2,FALSE)), \"x\")","v":32243243},{"$f":"IFERROR((BB145/VLOOKUP($B145,Funding,Funding!$AH$2,FALSE)), \"x\")","v":0.13258937913742425},{"$f":"IFERROR((BB145/(VLOOKUP(B145,Pupils,Pupils!$W$3,FALSE)+VLOOKUP(B145,Pupils,Pupils!$Z$3,FALSE))), \"x\")","v":3300.2295803480042},{"$f":"IFERROR((VLOOKUP($B145,Funding,Funding!$GX$2,FALSE)), \"x\")","v":31291326},{"$f":"IFERROR((BE145/VLOOKUP($B145,Funding,Funding!$HC$2,FALSE)), \"x\")","v":0.14087898017511971},{"$f":"IFERROR((BE145/(VLOOKUP($B145,Pupils,Pupils!$D$3,FALSE)+VLOOKUP($B145,Pupils,Pupils!$E$3,FALSE))), \"x\")","v":2776.2688315145065},{"$f":"IFERROR((VLOOKUP($B145,Funding,Funding!$GP$2,FALSE)), \"x\")","v":33430645.48},{"$f":"IFERROR((BH145/VLOOKUP($B145,Funding,Funding!$GU$2,FALSE)), \"x\")","v":0.1452221011124078},{"$f":"IFERROR((BH145/(VLOOKUP($B145,Pupils,Pupils!$G$3,FALSE)+VLOOKUP($B145,Pupils,Pupils!$H$3,FALSE))), \"x\")","v":2885.683684074234},{"$f":"IFERROR((VLOOKUP($B145,Funding,Funding!$GH$2,FALSE)), \"x\")","v":35455856.100000001},{"$f":"IFERROR((BK145/VLOOKUP($B145,Funding,Funding!$GM$2,FALSE)), \"x\")","v":0.15675808412052247},{"$f":"IFERROR((BK145/(VLOOKUP($B145,Pupils,Pupils!$J$3,FALSE)+VLOOKUP($B145,Pupils,Pupils!$K$3,FALSE))), \"x\")","v":3066.585028541775},{"$f":"IFERROR((VLOOKUP($B145,Funding,Funding!$FZ$2,FALSE)), \"x\")","v":32403581.620000001},{"$f":"IFERROR((BN145/VLOOKUP($B145,Funding,Funding!$GE$2,FALSE)), \"x\")","v":0.14847802795574155},{"$f":"IFERROR((BN145/(VLOOKUP($B145,Pupils,Pupils!$M$3,FALSE)+VLOOKUP($B145,Pupils,Pupils!$P$3,FALSE))), \"x\")","v":3026.6749131328229},{"$f":"IFERROR((VLOOKUP($B145,Funding,Funding!$FD$2,FALSE)), \"x\")","v":26786658.299999997},{"$f":"IFERROR((BQ145/VLOOKUP($B145,Funding,Funding!$FR$2,FALSE)), \"x\")","v":0.14543704291275009},{"$f":"IFERROR((BQ145/(VLOOKUP($B145,Pupils,Pupils!$R$3,FALSE)+VLOOKUP($B145,Pupils,Pupils!$U$3,FALSE))), \"x\")","v":2635.1852729955726},{"$f":"(VLOOKUP(B145,Funding,Funding!$HK$2,FALSE)+VLOOKUP(B145,Funding,Funding!$HL$2,FALSE)+VLOOKUP(B145,Funding,Funding!$HM$2,FALSE))/(VLOOKUP(B145,Funding,Funding!$HN$2,FALSE))","v":0.16930379746835442},{"$f":"IFERROR((VLOOKUP(B145,Other_data,Other!$D$3,FALSE)+VLOOKUP(B145,Other_data,Other!$E$3,FALSE)+VLOOKUP(B145,Other_data,Other!$F$3,FALSE)), \"x\")","v":1340},{"$f":"(VLOOKUP(B145,Other_data,Other!$AK$3,FALSE)+VLOOKUP(B145,Other_data,Other!$AL$3,FALSE))/VLOOKUP(B145,Other_data,Other!$AJ$3,FALSE)","v":3.3223254463637684E-2},{"$f":"(VLOOKUP(B145,Other_data,Other!$AR$3,FALSE)+VLOOKUP(B145,Other_data,Other!$AS$3,FALSE))/VLOOKUP(B145,Other_data,Other!$AQ$3,FALSE)","v":4.2779761171980797E-2},{"$f":"VLOOKUP(B145,Other_data,Other!$AP$3,FALSE)/VLOOKUP(B145,Other_data,Other!$AJ$3,FALSE)","v":9.3808970823051237E-3},{"$f":"VLOOKUP(B145,Other_data,Other!$AW$3,FALSE)/VLOOKUP(B145,Other_data,Other!$AQ$3,FALSE)","v":1.1633632894250892E-2}]
[140,212,"Wandsworth",{"$f":"IFERROR((VLOOKUP($B146,Pupils,Pupils!$D$3,FALSE)/VLOOKUP($B146,Pupils,Pupils!$C$3,FALSE)), \"x\")","v":3.4068951489881011E-2},{"$f":"IFERROR((VLOOKUP($B146,Pupils,Pupils!$G$3,FALSE)/VLOOKUP($B146,Pupils,Pupils!$F$3,FALSE)),\"x\")","v":3.5630885122410548E-2},{"$f":"IFERROR((VLOOKUP($B146,Pupils,Pupils!$J$3,FALSE)/VLOOKUP($B146,Pupils,Pupils!$I$3,FALSE)), \"x\")","v":3.6473711634369653E-2},{"$f":"IFERROR((VLOOKUP($B146,Pupils,Pupils!$M$3,FALSE)/VLOOKUP($B146,Pupils,Pupils!$L$3,FALSE)), \"x\")","v":3.8116977149448984E-2},{"$f":"IFERROR((VLOOKUP($B146,Pupils,Pupils!$R$3,FALSE)/VLOOKUP($B146,Pupils,Pupils!$Q$3,FALSE)), \"x\")","v":3.8335636866225362E-2},{"$f":"IFERROR((VLOOKUP($B146,Pupils,Pupils!$W$3,FALSE)/VLOOKUP($B146,Pupils,Pupils!$V$3,FALSE)), \"x\")","v":3.8939024972544527E-2},{"$f":"IFERROR(((VLOOKUP($B146,Pupils,Pupils!$D$3,FALSE)+VLOOKUP($B146,Pupils,Pupils!$E$3,FALSE))/VLOOKUP($B146,Pupils,Pupils!$C$3,FALSE)), \"x\")","v":0.25244076070375265},{"$f":"IFERROR(((VLOOKUP($B146,Pupils,Pupils!$G$3,FALSE)+VLOOKUP($B146,Pupils,Pupils!$H$3,FALSE))/VLOOKUP($B146,Pupils,Pupils!$F$3,FALSE)), \"x\")","v":0.26337727558066543},{"$f":"IFERROR(((VLOOKUP($B146,Pupils,Pupils!$J$3,FALSE)+VLOOKUP($B146,Pupils,Pupils!$K$3,FALSE))/VLOOKUP($B146,Pupils,Pupils!$I$3,FALSE)), \"x\")","v":0.2551422970994715},{"$f":"IFERROR(((VLOOKUP($B146,Pupils,Pupils!$M$3,FALSE)+VLOOKUP($B146,Pupils,Pupils!$P$3,FALSE))/VLOOKUP($B146,Pupils,Pupils!$L$3,FALSE)), \"x\")","v":0.23964852858159683},{"$f":"IFERROR(((VLOOKUP($B146,Pupils,Pupils!$R$3,FALSE)+VLOOKUP($B146,Pupils,Pupils!$U$3,FALSE))/VLOOKUP($B146,Pupils,Pupils!$Q$3,FALSE)), \"x\")","v":0.21444678839019424},{"$f":"IFERROR(((VLOOKUP($B146,Pupils,Pupils!$W$3,FALSE)+VLOOKUP($B146,Pupils,Pupils!$Z$3,FALSE))/VLOOKUP($B146,Pupils,Pupils!$V$3,FALSE)), \"x\")","v":0.20613092680131787},{"$f":"(SUM(INDEX(Pupils!$AB$7:$AB$159,MATCH($B146,Pupils!$A$7:$A$159,0)),INDEX(Pupils!$AC$7:$AC$159,MATCH($B146,Pupils!$A$7:$A$159,0)),INDEX(Pupils!$AD$7:$AD$159,MATCH($B146,Pupils!$A$7:$A$159,0)),INDEX(Pupils!$AE$7:$AE$159,MATCH($B146,Pupils!$A$7:$A$159,0))))/SUM(INDEX(Pupils!$AB$7:$AM$159,MATCH($B146,Pupils!$A$7:$A$159,0),0))","v":0.23934345908868201},{"$f":"SUM(INDEX(Pupils!$AF$7:$AF$159,MATCH($B146,Pupils!$A$7:$A$159,0)))/SUM(INDEX(Pupils!$AB$7:$AM$159,MATCH($B146,Pupils!$A$7:$A$159,0),0))","v":0.27217050465458109},{"$f":"SUM(INDEX(Pupils!$AG$7:$AG$159,MATCH($B146,Pupils!$A$7:$A$159,0)))/SUM(INDEX(Pupils!$AB$7:$AM$159,MATCH($B146,Pupils!$A$7:$A$159,0),0))","v":0.22709456148946594},{"$f":"(SUM(INDEX(Pupils!$AH$7:$AH$159,MATCH($B146,Pupils!$A$7:$A$159,0)),INDEX(Pupils!$AI$7:$AI$159,MATCH($B146,Pupils!$A$7:$A$159,0)),INDEX(Pupils!$AJ$7:$AJ$159,MATCH($B146,Pupils!$A$7:$A$159,0))))/SUM(INDEX(Pupils!$AB$7:$AM$159,MATCH($B146,Pupils!$A$7:$A$159,0),0))","v":8.3537481626653601E-2},{"$f":"SUM(INDEX(Pupils!$AK$7:$AK$159,MATCH($B146,Pupils!$A$7:$A$159,0)))/SUM(INDEX(Pupils!$AB$7:$AM$159,MATCH($B146,Pupils!$A$7:$A$159,0),0))","v":2.3762861342479177E-2},{"$f":"SUM(INDEX(Pupils!$AL$7:$AL$159,MATCH($B146,Pupils!$A$7:$A$159,0)))/SUM(INDEX(Pupils!$AB$7:$AM$159,MATCH($B146,Pupils!$A$7:$A$159,0),0))","v":0.13718765311122},{"$f":"SUM(INDEX(Pupils!$AM$7:$AM$159,MATCH($B146,Pupils!$A$7:$A$159,0)))/SUM(INDEX(Pupils!$AB$7:$AM$159,MATCH($B146,Pupils!$A$7:$A$159,0),0))","v":1.6903478686918178E-2},{"$f":"(SUM(INDEX(Pupils!$BH$7:$BH$159,MATCH($B146,Pupils!$A$7:$A$159,0)),INDEX(Pupils!$BK$7:$BK$159,MATCH($B146,Pupils!$A$7:$A$159,0)),INDEX(Pupils!$BO$7:$BO$159,MATCH($B146,Pupils!$A$7:$A$159,0))))/SUM(INDEX(Pupils!$BH$7:$BS$159,MATCH($B146,Pupils!$A$7:$A$159,0),0))","v":0.45928853754940713},{"$f":"(SUM(INDEX(Pupils!$BL$7:$BL$159,MATCH($B146,Pupils!$A$7:$A$159,0)),INDEX(Pupils!$BM$7:$BM$159,MATCH($B146,Pupils!$A$7:$A$159,0)),INDEX(Pupils!$BP$7:$BP$159,MATCH($B146,Pupils!$A$7:$A$159,0))))/SUM(INDEX(Pupils!$BH$7:$BS$159,MATCH($B146,Pupils!$A$7:$A$159,0),0))","v":0.4442687747035573},{"$f":"(SUM(INDEX(Pupils!$BI$7:$BI$159,MATCH($B146,Pupils!$A$7:$A$159,0)),INDEX(Pupils!$BJ$7:$BJ$159,MATCH($B146,Pupils!$A$7:$A$159,0))))/SUM(INDEX(Pupils!$BH$7:$BS$159,MATCH($B146,Pupils!$A$7:$A$159,0),0))","v":8.4584980237154148E-2},{"$f":"(SUM(INDEX(Pupils!$BQ$7:$BQ$159,MATCH($B146,Pupils!$A$7:$A$159,0)),INDEX(Pupils!$BR$7:$BR$159,MATCH($B146,Pupils!$A$7:$A$159,0)),INDEX(Pupils!$BN$7:$BN$159,MATCH($B146,Pupils!$A$7:$A$159,0)),INDEX(Pupils!$BS$7:$BS$159,MATCH($B146,Pupils!$A$7:$A$159,0))))/SUM(INDEX(Pupils!$BH$7:$BS$159,MATCH($B146,Pupils!$A$7:$A$159,0),0))","v":1.1857707509881422E-2},{"$f":"IFERROR((VLOOKUP(B146,Funding,Funding!$C$2,FALSE)), \"x\")","v":47791399.149999999},{"$f":"IFERROR((AA146/VLOOKUP(B146,Funding,Funding!$D$2,FALSE)), \"x\")","v":0.25973990788201617},{"$f":"IFERROR((AA146/(VLOOKUP(B146,Pupils,Pupils!$M$3,FALSE)+VLOOKUP(B146,Pupils,Pupils!$P$3,FALSE))), \"x\")","v":4894.6537433428921},{"$f":"IFERROR((VLOOKUP(B146,Funding,Funding!$E$2,FALSE)), \"x\")","v":39262379.05516389},{"$f":"IFERROR((AD146/VLOOKUP(B146,Funding,Funding!$F$2,FALSE)), \"x\")","v":0.20253503531816389},{"$f":"IFERROR((AD146/(VLOOKUP(B146,Pupils,Pupils!$R$3,FALSE)+VLOOKUP(B146,Pupils,Pupils!$U$3,FALSE))), \"x\")","v":4439.4367995436332},{"$f":"IFERROR((VLOOKUP(B146,Funding,Funding!$G$2,FALSE)), \"x\")","v":41272056.356292509},{"$f":"IFERROR((AG146/VLOOKUP(B146,Funding,Funding!$H$2,FALSE)), \"x\")","v":0.20996487299961875},{"$f":"IFERROR((AG146/(VLOOKUP(B146,Pupils,Pupils!$W$3,FALSE)+VLOOKUP(B146,Pupils,Pupils!$Z$3,FALSE))), \"x\")","v":4780.177942586577},{"$f":"IFERROR((VLOOKUP(B146,Funding,Funding!$I$2,FALSE)), \"x\")","v":41642667.193509921},{"$f":"IFERROR((AJ146/VLOOKUP(B146,Funding,Funding!$J$2,FALSE)), \"x\")","v":0.20234433843134836},null,{"$f":"IFERROR((VLOOKUP($B146,Funding,Funding!$EC$2,FALSE)), \"x\")","v":30944829},{"$f":"IFERROR((AM146/VLOOKUP($B146,Funding,Funding!$EU$2,FALSE)), \"x\")","v":0.15429030919425296},{"$f":"IFERROR((AM146/(VLOOKUP($B146,Pupils,Pupils!$D$3,FALSE)+VLOOKUP($B146,Pupils,Pupils!$E$3,FALSE))), \"x\")","v":3116.6108369422905},{"$f":"IFERROR((VLOOKUP($B146,Funding,Funding!$DA$2,FALSE)), \"x\")","v":33240501},{"$f":"IFERROR((AP146/VLOOKUP($B146,Funding,Funding!$DT$2,FALSE)), \"x\")","v":0.15671386667265225},{"$f":"IFERROR((AP146/(VLOOKUP($B146,Pupils,Pupils!$G$3,FALSE)+VLOOKUP($B146,Pupils,Pupils!$H$3,FALSE))), \"x\")","v":3169.0819906568786},{"$f":"IFERROR((VLOOKUP($B146,Funding,Funding!$CE$2,FALSE)), \"x\")","v":33641334},{"$f":"IFERROR((AS146/VLOOKUP($B146,Funding,Funding!$CR$2,FALSE)), \"x\")","v":0.15626556678526299},{"$f":"IFERROR((AS146/(VLOOKUP($B146,Pupils,Pupils!$J$3,FALSE)+VLOOKUP($B146,Pupils,Pupils!$K$3,FALSE))), \"x\")","v":3271.5485753184867},{"$f":"IFERROR((VLOOKUP($B146,Funding,Funding!$BM$2,FALSE)), \"x\")","v":36416781.140000001},{"$f":"IFERROR((AV146/VLOOKUP($B146,Funding,Funding!$BY$2,FALSE)), \"x\")","v":0.18202020149629447},{"$f":"IFERROR((AV146/(VLOOKUP($B146,Pupils,Pupils!$M$3,FALSE)+VLOOKUP($B146,Pupils,Pupils!$P$3,FALSE))), \"x\")","v":3729.6990106513726},{"$f":"IFERROR((VLOOKUP($B146,Funding,Funding!$AQ$2,FALSE)), \"x\")","v":35478844.039999999},{"$f":"IFERROR((AY146/VLOOKUP($B146,Funding,Funding!$BE$2,FALSE)), \"x\")","v":0.17534407618488834},{"$f":"IFERROR((AY146/(VLOOKUP($B146,Pupils,Pupils!$R$3,FALSE)+VLOOKUP($B146,Pupils,Pupils!$U$3,FALSE))), \"x\")","v":4011.6286793306194},{"$f":"IFERROR((VLOOKUP($B146,Funding,Funding!$S$2,FALSE)), \"x\")","v":36456225},{"$f":"IFERROR((BB146/VLOOKUP($B146,Funding,Funding!$AH$2,FALSE)), \"x\")","v":0.17757308971835215},{"$f":"IFERROR((BB146/(VLOOKUP(B146,Pupils,Pupils!$W$3,FALSE)+VLOOKUP(B146,Pupils,Pupils!$Z$3,FALSE))), \"x\")","v":4222.4027102154278},{"$f":"IFERROR((VLOOKUP($B146,Funding,Funding!$GX$2,FALSE)), \"x\")","v":51190232.131379999},{"$f":"IFERROR((BE146/VLOOKUP($B146,Funding,Funding!$HC$2,FALSE)), \"x\")","v":0.231670624896917},{"$f":"IFERROR((BE146/(VLOOKUP($B146,Pupils,Pupils!$D$3,FALSE)+VLOOKUP($B146,Pupils,Pupils!$E$3,FALSE))), \"x\")","v":5155.628173167489},{"$f":"IFERROR((VLOOKUP($B146,Funding,Funding!$GP$2,FALSE)), \"x\")","v":53675993.25},{"$f":"IFERROR((BH146/VLOOKUP($B146,Funding,Funding!$GU$2,FALSE)), \"x\")","v":0.23174691639900122},{"$f":"IFERROR((BH146/(VLOOKUP($B146,Pupils,Pupils!$G$3,FALSE)+VLOOKUP($B146,Pupils,Pupils!$H$3,FALSE))), \"x\")","v":5117.3604013728664},{"$f":"IFERROR((VLOOKUP($B146,Funding,Funding!$GH$2,FALSE)), \"x\")","v":68039241.789999992},{"$f":"IFERROR((BK146/VLOOKUP($B146,Funding,Funding!$GM$2,FALSE)), \"x\")","v":0.29689897664794224},{"$f":"IFERROR((BK146/(VLOOKUP($B146,Pupils,Pupils!$J$3,FALSE)+VLOOKUP($B146,Pupils,Pupils!$K$3,FALSE))), \"x\")","v":6616.6723514538553},{"$f":"IFERROR((VLOOKUP($B146,Funding,Funding!$FZ$2,FALSE)), \"x\")","v":70151476.560000002},{"$f":"IFERROR((BN146/VLOOKUP($B146,Funding,Funding!$GE$2,FALSE)), \"x\")","v":0.32531273869303845},{"$f":"IFERROR((BN146/(VLOOKUP($B146,Pupils,Pupils!$M$3,FALSE)+VLOOKUP($B146,Pupils,Pupils!$P$3,FALSE))), \"x\")","v":7184.7067349446952},{"$f":"IFERROR((VLOOKUP($B146,Funding,Funding!$FD$2,FALSE)), \"x\")","v":17298502.289999999},{"$f":"IFERROR((BQ146/VLOOKUP($B146,Funding,Funding!$FR$2,FALSE)), \"x\")","v":9.546738832550801E-2},{"$f":"IFERROR((BQ146/(VLOOKUP($B146,Pupils,Pupils!$R$3,FALSE)+VLOOKUP($B146,Pupils,Pupils!$U$3,FALSE))), \"x\")","v":1955.9591010854815},{"$f":"(VLOOKUP(B146,Funding,Funding!$HK$2,FALSE)+VLOOKUP(B146,Funding,Funding!$HL$2,FALSE)+VLOOKUP(B146,Funding,Funding!$HM$2,FALSE))/(VLOOKUP(B146,Funding,Funding!$HN$2,FALSE))","v":0.22222222222222221},{"$f":"IFERROR((VLOOKUP(B146,Other_data,Other!$D$3,FALSE)+VLOOKUP(B146,Other_data,Other!$E$3,FALSE)+VLOOKUP(B146,Other_data,Other!$F$3,FALSE)), \"x\")","v":1300},{"$f":"(VLOOKUP(B146,Other_data,Other!$AK$3,FALSE)+VLOOKUP(B146,Other_data,Other!$AL$3,FALSE))/VLOOKUP(B146,Other_data,Other!$AJ$3,FALSE)","v":3.0430261531519159E-2},{"$f":"(VLOOKUP(B146,Other_data,Other!$AR$3,FALSE)+VLOOKUP(B146,Other_data,Other!$AS$3,FALSE))/VLOOKUP(B146,Other_data,Other!$AQ$3,FALSE)","v":3.8843182817308294E-2},{"$f":"VLOOKUP(B146,Other_data,Other!$AP$3,FALSE)/VLOOKUP(B146,Other_data,Other!$AJ$3,FALSE)","v":6.8472993388137889E-3},{"$f":"VLOOKUP(B146,Other_data,Other!$AW$3,FALSE)/VLOOKUP(B146,Other_data,Other!$AQ$3,FALSE)","v":9.388934246059159E-3}]
[141,877,"Warrington",{"$f":"IFERROR((VLOOKUP($B147,Pupils,Pupils!$D$3,FALSE)/VLOOKUP($B147,Pupils,Pupils!$C$3,FALSE)), \"x\")","v":3.5813730196831491E-2},{"$f":"IFERROR((VLOOKUP($B147,Pupils,Pupils!$G$3,FALSE)/VLOOKUP($B147,Pupils,Pupils!$F$3,FALSE)),\"x\")","v":3.3740359897172237E-2},{"$f":"IFERROR((VLOOKUP($B147,Pupils,Pupils!$J$3,FALSE)/VLOOKUP($B147,Pupils,Pupils!$I$3,FALSE)), \"x\")","v":3.1891025641025639E-2},{"$f":"IFERROR((VLOOKUP($B147,Pupils,Pupils!$M$3,FALSE)/VLOOKUP($B147,Pupils,Pupils!$L$3,FALSE)), \"x\")","v":3.0867737003058105E-2},{"$f":"IFERROR((VLOOKUP($B147,Pupils,Pupils!$R$3,FALSE)/VLOOKUP($B147,Pupils,Pupils!$Q$3,FALSE)), \"x\")","v":3.1466531053334183E-2},{"$f":"IFERROR((VLOOKUP($B147,Pupils,Pupils!$W$3,FALSE)/VLOOKUP($B147,Pupils,Pupils!$V$3,FALSE)), \"x\")","v":3.123018389346861E-2},{"$f":"IFERROR(((VLOOKUP($B147,Pupils,Pupils!$D$3,FALSE)+VLOOKUP($B147,Pupils,Pupils!$E$3,FALSE))/VLOOKUP($B147,Pupils,Pupils!$C$3,FALSE)), \"x\")","v":0.20032005120819332},{"$f":"IFERROR(((VLOOKUP($B147,Pupils,Pupils!$G$3,FALSE)+VLOOKUP($B147,Pupils,Pupils!$H$3,FALSE))/VLOOKUP($B147,Pupils,Pupils!$F$3,FALSE)), \"x\")","v":0.20048200514138817},{"$f":"IFERROR(((VLOOKUP($B147,Pupils,Pupils!$J$3,FALSE)+VLOOKUP($B147,Pupils,Pupils!$K$3,FALSE))/VLOOKUP($B147,Pupils,Pupils!$I$3,FALSE)), \"x\")","v":0.18935897435897436},{"$f":"IFERROR(((VLOOKUP($B147,Pupils,Pupils!$M$3,FALSE)+VLOOKUP($B147,Pupils,Pupils!$P$3,FALSE))/VLOOKUP($B147,Pupils,Pupils!$L$3,FALSE)), \"x\")","v":0.19043068297655455},{"$f":"IFERROR(((VLOOKUP($B147,Pupils,Pupils!$R$3,FALSE)+VLOOKUP($B147,Pupils,Pupils!$U$3,FALSE))/VLOOKUP($B147,Pupils,Pupils!$Q$3,FALSE)), \"x\")","v":0.18110736761807894},{"$f":"IFERROR(((VLOOKUP($B147,Pupils,Pupils!$W$3,FALSE)+VLOOKUP($B147,Pupils,Pupils!$Z$3,FALSE))/VLOOKUP($B147,Pupils,Pupils!$V$3,FALSE)), \"x\")","v":0.1663284717818643},{"$f":"(SUM(INDEX(Pupils!$AB$7:$AB$159,MATCH($B147,Pupils!$A$7:$A$159,0)),INDEX(Pupils!$AC$7:$AC$159,MATCH($B147,Pupils!$A$7:$A$159,0)),INDEX(Pupils!$AD$7:$AD$159,MATCH($B147,Pupils!$A$7:$A$159,0)),INDEX(Pupils!$AE$7:$AE$159,MATCH($B147,Pupils!$A$7:$A$159,0))))/SUM(INDEX(Pupils!$AB$7:$AM$159,MATCH($B147,Pupils!$A$7:$A$159,0),0))","v":0.37758688012495117},{"$f":"SUM(INDEX(Pupils!$AF$7:$AF$159,MATCH($B147,Pupils!$A$7:$A$159,0)))/SUM(INDEX(Pupils!$AB$7:$AM$159,MATCH($B147,Pupils!$A$7:$A$159,0),0))","v":0.22022647403358064},{"$f":"SUM(INDEX(Pupils!$AG$7:$AG$159,MATCH($B147,Pupils!$A$7:$A$159,0)))/SUM(INDEX(Pupils!$AB$7:$AM$159,MATCH($B147,Pupils!$A$7:$A$159,0),0))","v":0.18156969933619679},{"$f":"(SUM(INDEX(Pupils!$AH$7:$AH$159,MATCH($B147,Pupils!$A$7:$A$159,0)),INDEX(Pupils!$AI$7:$AI$159,MATCH($B147,Pupils!$A$7:$A$159,0)),INDEX(Pupils!$AJ$7:$AJ$159,MATCH($B147,Pupils!$A$7:$A$159,0))))/SUM(INDEX(Pupils!$AB$7:$AM$159,MATCH($B147,Pupils!$A$7:$A$159,0),0))","v":4.9590003904724719E-2},{"$f":"SUM(INDEX(Pupils!$AK$7:$AK$159,MATCH($B147,Pupils!$A$7:$A$159,0)))/SUM(INDEX(Pupils!$AB$7:$AM$159,MATCH($B147,Pupils!$A$7:$A$159,0),0))","v":4.6466224131198754E-2},{"$f":"SUM(INDEX(Pupils!$AL$7:$AL$159,MATCH($B147,Pupils!$A$7:$A$159,0)))/SUM(INDEX(Pupils!$AB$7:$AM$159,MATCH($B147,Pupils!$A$7:$A$159,0),0))","v":9.5275283092541976E-2},{"$f":"SUM(INDEX(Pupils!$AM$7:$AM$159,MATCH($B147,Pupils!$A$7:$A$159,0)))/SUM(INDEX(Pupils!$AB$7:$AM$159,MATCH($B147,Pupils!$A$7:$A$159,0),0))","v":2.9285435376805936E-2},{"$f":"(SUM(INDEX(Pupils!$BH$7:$BH$159,MATCH($B147,Pupils!$A$7:$A$159,0)),INDEX(Pupils!$BK$7:$BK$159,MATCH($B147,Pupils!$A$7:$A$159,0)),INDEX(Pupils!$BO$7:$BO$159,MATCH($B147,Pupils!$A$7:$A$159,0))))/SUM(INDEX(Pupils!$BH$7:$BS$159,MATCH($B147,Pupils!$A$7:$A$159,0),0))","v":0.5118679050567595},{"$f":"(SUM(INDEX(Pupils!$BL$7:$BL$159,MATCH($B147,Pupils!$A$7:$A$159,0)),INDEX(Pupils!$BM$7:$BM$159,MATCH($B147,Pupils!$A$7:$A$159,0)),INDEX(Pupils!$BP$7:$BP$159,MATCH($B147,Pupils!$A$7:$A$159,0))))/SUM(INDEX(Pupils!$BH$7:$BS$159,MATCH($B147,Pupils!$A$7:$A$159,0),0))","v":0.32817337461300311},{"$f":"(SUM(INDEX(Pupils!$BI$7:$BI$159,MATCH($B147,Pupils!$A$7:$A$159,0)),INDEX(Pupils!$BJ$7:$BJ$159,MATCH($B147,Pupils!$A$7:$A$159,0))))/SUM(INDEX(Pupils!$BH$7:$BS$159,MATCH($B147,Pupils!$A$7:$A$159,0),0))","v":0.15583075335397317},{"$f":"(SUM(INDEX(Pupils!$BQ$7:$BQ$159,MATCH($B147,Pupils!$A$7:$A$159,0)),INDEX(Pupils!$BR$7:$BR$159,MATCH($B147,Pupils!$A$7:$A$159,0)),INDEX(Pupils!$BN$7:$BN$159,MATCH($B147,Pupils!$A$7:$A$159,0)),INDEX(Pupils!$BS$7:$BS$159,MATCH($B147,Pupils!$A$7:$A$159,0))))/SUM(INDEX(Pupils!$BH$7:$BS$159,MATCH($B147,Pupils!$A$7:$A$159,0),0))","v":4.1279669762641896E-3},{"$f":"IFERROR((VLOOKUP(B147,Funding,Funding!$C$2,FALSE)), \"x\")","v":17242857.190000001},{"$f":"IFERROR((AA147/VLOOKUP(B147,Funding,Funding!$D$2,FALSE)), \"x\")","v":0.12056808632858919},{"$f":"IFERROR((AA147/(VLOOKUP(B147,Pupils,Pupils!$M$3,FALSE)+VLOOKUP(B147,Pupils,Pupils!$P$3,FALSE))), \"x\")","v":2884.3856122448983},{"$f":"IFERROR((VLOOKUP(B147,Funding,Funding!$E$2,FALSE)), \"x\")","v":19024737.849579737},{"$f":"IFERROR((AD147/VLOOKUP(B147,Funding,Funding!$F$2,FALSE)), \"x\")","v":0.12957656393784631},{"$f":"IFERROR((AD147/(VLOOKUP(B147,Pupils,Pupils!$R$3,FALSE)+VLOOKUP(B147,Pupils,Pupils!$U$3,FALSE))), \"x\")","v":3338.8448314460752},{"$f":"IFERROR((VLOOKUP(B147,Funding,Funding!$G$2,FALSE)), \"x\")","v":20080076.150216408},{"$f":"IFERROR((AG147/VLOOKUP(B147,Funding,Funding!$H$2,FALSE)), \"x\")","v":0.135137277261203},{"$f":"IFERROR((AG147/(VLOOKUP(B147,Pupils,Pupils!$W$3,FALSE)+VLOOKUP(B147,Pupils,Pupils!$Z$3,FALSE))), \"x\")","v":3827.6927468959984},{"$f":"IFERROR((VLOOKUP(B147,Funding,Funding!$I$2,FALSE)), \"x\")","v":20438850.338890508},{"$f":"IFERROR((AJ147/VLOOKUP(B147,Funding,Funding!$J$2,FALSE)), \"x\")","v":0.13669551660897472},null,{"$f":"IFERROR((VLOOKUP($B147,Funding,Funding!$EC$2,FALSE)), \"x\")","v":9837768.8200000003},{"$f":"IFERROR((AM147/VLOOKUP($B147,Funding,Funding!$EU$2,FALSE)), \"x\")","v":6.9222805103164878E-2},{"$f":"IFERROR((AM147/(VLOOKUP($B147,Pupils,Pupils!$D$3,FALSE)+VLOOKUP($B147,Pupils,Pupils!$E$3,FALSE))), \"x\")","v":1571.7796485061513},{"$f":"IFERROR((VLOOKUP($B147,Funding,Funding!$DA$2,FALSE)), \"x\")","v":10130724},{"$f":"IFERROR((AP147/VLOOKUP($B147,Funding,Funding!$DT$2,FALSE)), \"x\")","v":6.9932096507265673E-2},{"$f":"IFERROR((AP147/(VLOOKUP($B147,Pupils,Pupils!$G$3,FALSE)+VLOOKUP($B147,Pupils,Pupils!$H$3,FALSE))), \"x\")","v":1623.7736816797565},{"$f":"IFERROR((VLOOKUP($B147,Funding,Funding!$CE$2,FALSE)), \"x\")","v":10221347},{"$f":"IFERROR((AS147/VLOOKUP($B147,Funding,Funding!$CR$2,FALSE)), \"x\")","v":6.7838354090461447E-2},{"$f":"IFERROR((AS147/(VLOOKUP($B147,Pupils,Pupils!$J$3,FALSE)+VLOOKUP($B147,Pupils,Pupils!$K$3,FALSE))), \"x\")","v":1730.0858158429248},{"$f":"IFERROR((VLOOKUP($B147,Funding,Funding!$BM$2,FALSE)), \"x\")","v":10781203.609999999},{"$f":"IFERROR((AV147/VLOOKUP($B147,Funding,Funding!$BY$2,FALSE)), \"x\")","v":7.0366862211952819E-2},{"$f":"IFERROR((AV147/(VLOOKUP($B147,Pupils,Pupils!$M$3,FALSE)+VLOOKUP($B147,Pupils,Pupils!$P$3,FALSE))), \"x\")","v":1803.4800284376045},{"$f":"IFERROR((VLOOKUP($B147,Funding,Funding!$AQ$2,FALSE)), \"x\")","v":14065208},{"$f":"IFERROR((AY147/VLOOKUP($B147,Funding,Funding!$BE$2,FALSE)), \"x\")","v":9.5482290822320223E-2},{"$f":"IFERROR((AY147/(VLOOKUP($B147,Pupils,Pupils!$R$3,FALSE)+VLOOKUP($B147,Pupils,Pupils!$U$3,FALSE))), \"x\")","v":2468.4464724464724},{"$f":"IFERROR((VLOOKUP($B147,Funding,Funding!$S$2,FALSE)), \"x\")","v":16663893},{"$f":"IFERROR((BB147/VLOOKUP($B147,Funding,Funding!$AH$2,FALSE)), \"x\")","v":0.11279446209208226},{"$f":"IFERROR((BB147/(VLOOKUP(B147,Pupils,Pupils!$W$3,FALSE)+VLOOKUP(B147,Pupils,Pupils!$Z$3,FALSE))), \"x\")","v":3176.4950438429278},{"$f":"IFERROR((VLOOKUP($B147,Funding,Funding!$GX$2,FALSE)), \"x\")","v":18280542.350000001},{"$f":"IFERROR((BE147/VLOOKUP($B147,Funding,Funding!$HC$2,FALSE)), \"x\")","v":0.11229879915358323},{"$f":"IFERROR((BE147/(VLOOKUP($B147,Pupils,Pupils!$D$3,FALSE)+VLOOKUP($B147,Pupils,Pupils!$E$3,FALSE))), \"x\")","v":2920.6809953666721},{"$f":"IFERROR((VLOOKUP($B147,Funding,Funding!$GP$2,FALSE)), \"x\")","v":20367940},{"$f":"IFERROR((BH147/VLOOKUP($B147,Funding,Funding!$GU$2,FALSE)), \"x\")","v":0.12150884602873642},{"$f":"IFERROR((BH147/(VLOOKUP($B147,Pupils,Pupils!$G$3,FALSE)+VLOOKUP($B147,Pupils,Pupils!$H$3,FALSE))), \"x\")","v":3264.616124378907},{"$f":"IFERROR((VLOOKUP($B147,Funding,Funding!$GH$2,FALSE)), \"x\")","v":22795828.030000001},{"$f":"IFERROR((BK147/VLOOKUP($B147,Funding,Funding!$GM$2,FALSE)), \"x\")","v":0.13923631902549807},{"$f":"IFERROR((BK147/(VLOOKUP($B147,Pupils,Pupils!$J$3,FALSE)+VLOOKUP($B147,Pupils,Pupils!$K$3,FALSE))), \"x\")","v":3858.4678452945163},{"$f":"IFERROR((VLOOKUP($B147,Funding,Funding!$FZ$2,FALSE)), \"x\")","v":22547506.91},{"$f":"IFERROR((BN147/VLOOKUP($B147,Funding,Funding!$GE$2,FALSE)), \"x\")","v":0.14266774368801266},{"$f":"IFERROR((BN147/(VLOOKUP($B147,Pupils,Pupils!$M$3,FALSE)+VLOOKUP($B147,Pupils,Pupils!$P$3,FALSE))), \"x\")","v":3771.7475593844097},{"$f":"IFERROR((VLOOKUP($B147,Funding,Funding!$FD$2,FALSE)), \"x\")","v":16483332},{"$f":"IFERROR((BQ147/VLOOKUP($B147,Funding,Funding!$FR$2,FALSE)), \"x\")","v":0.10984253596950731},{"$f":"IFERROR((BQ147/(VLOOKUP($B147,Pupils,Pupils!$R$3,FALSE)+VLOOKUP($B147,Pupils,Pupils!$U$3,FALSE))), \"x\")","v":2892.827658827659},{"$f":"(VLOOKUP(B147,Funding,Funding!$HK$2,FALSE)+VLOOKUP(B147,Funding,Funding!$HL$2,FALSE)+VLOOKUP(B147,Funding,Funding!$HM$2,FALSE))/(VLOOKUP(B147,Funding,Funding!$HN$2,FALSE))","v":0.23871906841339155},{"$f":"IFERROR((VLOOKUP(B147,Other_data,Other!$D$3,FALSE)+VLOOKUP(B147,Other_data,Other!$E$3,FALSE)+VLOOKUP(B147,Other_data,Other!$F$3,FALSE)), \"x\")","v":1060},{"$f":"(VLOOKUP(B147,Other_data,Other!$AK$3,FALSE)+VLOOKUP(B147,Other_data,Other!$AL$3,FALSE))/VLOOKUP(B147,Other_data,Other!$AJ$3,FALSE)","v":3.265611689082789E-2},{"$f":"(VLOOKUP(B147,Other_data,Other!$AR$3,FALSE)+VLOOKUP(B147,Other_data,Other!$AS$3,FALSE))/VLOOKUP(B147,Other_data,Other!$AQ$3,FALSE)","v":5.2355278093076052E-2},{"$f":"VLOOKUP(B147,Other_data,Other!$AP$3,FALSE)/VLOOKUP(B147,Other_data,Other!$AJ$3,FALSE)","v":3.9238970493326794E-3},{"$f":"VLOOKUP(B147,Other_data,Other!$AW$3,FALSE)/VLOOKUP(B147,Other_data,Other!$AQ$3,FALSE)","v":9.5535376466136957E-3}]
[142,937,"Warwickshire",{"$f":"IFERROR((VLOOKUP($B148,Pupils,Pupils!$D$3,FALSE)/VLOOKUP($B148,Pupils,Pupils!$C$3,FALSE)), \"x\")","v":2.9455206845619562E-2},{"$f":"IFERROR((VLOOKUP($B148,Pupils,Pupils!$G$3,FALSE)/VLOOKUP($B148,Pupils,Pupils!$F$3,FALSE)),\"x\")","v":2.9183950662604163E-2},{"$f":"IFERROR((VLOOKUP($B148,Pupils,Pupils!$J$3,FALSE)/VLOOKUP($B148,Pupils,Pupils!$I$3,FALSE)), \"x\")","v":2.8720626631853787E-2},{"$f":"IFERROR((VLOOKUP($B148,Pupils,Pupils!$M$3,FALSE)/VLOOKUP($B148,Pupils,Pupils!$L$3,FALSE)), \"x\")","v":2.9334240285689994E-2},{"$f":"IFERROR((VLOOKUP($B148,Pupils,Pupils!$R$3,FALSE)/VLOOKUP($B148,Pupils,Pupils!$Q$3,FALSE)), \"x\")","v":3.0551937086891495E-2},{"$f":"IFERROR((VLOOKUP($B148,Pupils,Pupils!$W$3,FALSE)/VLOOKUP($B148,Pupils,Pupils!$V$3,FALSE)), \"x\")","v":3.1361138053669579E-2},{"$f":"IFERROR(((VLOOKUP($B148,Pupils,Pupils!$D$3,FALSE)+VLOOKUP($B148,Pupils,Pupils!$E$3,FALSE))/VLOOKUP($B148,Pupils,Pupils!$C$3,FALSE)), \"x\")","v":0.20060790273556231},{"$f":"IFERROR(((VLOOKUP($B148,Pupils,Pupils!$G$3,FALSE)+VLOOKUP($B148,Pupils,Pupils!$H$3,FALSE))/VLOOKUP($B148,Pupils,Pupils!$F$3,FALSE)), \"x\")","v":0.19551411475349656},{"$f":"IFERROR(((VLOOKUP($B148,Pupils,Pupils!$J$3,FALSE)+VLOOKUP($B148,Pupils,Pupils!$K$3,FALSE))/VLOOKUP($B148,Pupils,Pupils!$I$3,FALSE)), \"x\")","v":0.19064932529708889},{"$f":"IFERROR(((VLOOKUP($B148,Pupils,Pupils!$M$3,FALSE)+VLOOKUP($B148,Pupils,Pupils!$P$3,FALSE))/VLOOKUP($B148,Pupils,Pupils!$L$3,FALSE)), \"x\")","v":0.18906312631336014},{"$f":"IFERROR(((VLOOKUP($B148,Pupils,Pupils!$R$3,FALSE)+VLOOKUP($B148,Pupils,Pupils!$U$3,FALSE))/VLOOKUP($B148,Pupils,Pupils!$Q$3,FALSE)), \"x\")","v":0.18411974718965601},{"$f":"IFERROR(((VLOOKUP($B148,Pupils,Pupils!$W$3,FALSE)+VLOOKUP($B148,Pupils,Pupils!$Z$3,FALSE))/VLOOKUP($B148,Pupils,Pupils!$V$3,FALSE)), \"x\")","v":0.17355797439858223},{"$f":"(SUM(INDEX(Pupils!$AB$7:$AB$159,MATCH($B148,Pupils!$A$7:$A$159,0)),INDEX(Pupils!$AC$7:$AC$159,MATCH($B148,Pupils!$A$7:$A$159,0)),INDEX(Pupils!$AD$7:$AD$159,MATCH($B148,Pupils!$A$7:$A$159,0)),INDEX(Pupils!$AE$7:$AE$159,MATCH($B148,Pupils!$A$7:$A$159,0))))/SUM(INDEX(Pupils!$AB$7:$AM$159,MATCH($B148,Pupils!$A$7:$A$159,0),0))","v":0.45003825554705434},{"$f":"SUM(INDEX(Pupils!$AF$7:$AF$159,MATCH($B148,Pupils!$A$7:$A$159,0)))/SUM(INDEX(Pupils!$AB$7:$AM$159,MATCH($B148,Pupils!$A$7:$A$159,0),0))","v":0.19862280030604437},{"$f":"SUM(INDEX(Pupils!$AG$7:$AG$159,MATCH($B148,Pupils!$A$7:$A$159,0)))/SUM(INDEX(Pupils!$AB$7:$AM$159,MATCH($B148,Pupils!$A$7:$A$159,0),0))","v":0.15592960979342005},{"$f":"(SUM(INDEX(Pupils!$AH$7:$AH$159,MATCH($B148,Pupils!$A$7:$A$159,0)),INDEX(Pupils!$AI$7:$AI$159,MATCH($B148,Pupils!$A$7:$A$159,0)),INDEX(Pupils!$AJ$7:$AJ$159,MATCH($B148,Pupils!$A$7:$A$159,0))))/SUM(INDEX(Pupils!$AB$7:$AM$159,MATCH($B148,Pupils!$A$7:$A$159,0),0))","v":2.5707727620504973E-2},{"$f":"SUM(INDEX(Pupils!$AK$7:$AK$159,MATCH($B148,Pupils!$A$7:$A$159,0)))/SUM(INDEX(Pupils!$AB$7:$AM$159,MATCH($B148,Pupils!$A$7:$A$159,0),0))","v":3.5348125478194339E-2},{"$f":"SUM(INDEX(Pupils!$AL$7:$AL$159,MATCH($B148,Pupils!$A$7:$A$159,0)))/SUM(INDEX(Pupils!$AB$7:$AM$159,MATCH($B148,Pupils!$A$7:$A$159,0),0))","v":0.11247130833970925},{"$f":"SUM(INDEX(Pupils!$AM$7:$AM$159,MATCH($B148,Pupils!$A$7:$A$159,0)))/SUM(INDEX(Pupils!$AB$7:$AM$159,MATCH($B148,Pupils!$A$7:$A$159,0),0))","v":2.1882172915072686E-2},{"$f":"(SUM(INDEX(Pupils!$BH$7:$BH$159,MATCH($B148,Pupils!$A$7:$A$159,0)),INDEX(Pupils!$BK$7:$BK$159,MATCH($B148,Pupils!$A$7:$A$159,0)),INDEX(Pupils!$BO$7:$BO$159,MATCH($B148,Pupils!$A$7:$A$159,0))))/SUM(INDEX(Pupils!$BH$7:$BS$159,MATCH($B148,Pupils!$A$7:$A$159,0),0))","v":0.47554247885251932},{"$f":"(SUM(INDEX(Pupils!$BL$7:$BL$159,MATCH($B148,Pupils!$A$7:$A$159,0)),INDEX(Pupils!$BM$7:$BM$159,MATCH($B148,Pupils!$A$7:$A$159,0)),INDEX(Pupils!$BP$7:$BP$159,MATCH($B148,Pupils!$A$7:$A$159,0))))/SUM(INDEX(Pupils!$BH$7:$BS$159,MATCH($B148,Pupils!$A$7:$A$159,0),0))","v":0.51011401250459731},{"$f":"(SUM(INDEX(Pupils!$BI$7:$BI$159,MATCH($B148,Pupils!$A$7:$A$159,0)),INDEX(Pupils!$BJ$7:$BJ$159,MATCH($B148,Pupils!$A$7:$A$159,0))))/SUM(INDEX(Pupils!$BH$7:$BS$159,MATCH($B148,Pupils!$A$7:$A$159,0),0))","v":5.1489518205222505E-3},{"$f":"(SUM(INDEX(Pupils!$BQ$7:$BQ$159,MATCH($B148,Pupils!$A$7:$A$159,0)),INDEX(Pupils!$BR$7:$BR$159,MATCH($B148,Pupils!$A$7:$A$159,0)),INDEX(Pupils!$BN$7:$BN$159,MATCH($B148,Pupils!$A$7:$A$159,0)),INDEX(Pupils!$BS$7:$BS$159,MATCH($B148,Pupils!$A$7:$A$159,0))))/SUM(INDEX(Pupils!$BH$7:$BS$159,MATCH($B148,Pupils!$A$7:$A$159,0),0))","v":9.1945568223611614E-3},{"$f":"IFERROR((VLOOKUP(B148,Funding,Funding!$C$2,FALSE)), \"x\")","v":48566374.129999995},{"$f":"IFERROR((AA148/VLOOKUP(B148,Funding,Funding!$D$2,FALSE)), \"x\")","v":0.14059105072366432},{"$f":"IFERROR((AA148/(VLOOKUP(B148,Pupils,Pupils!$M$3,FALSE)+VLOOKUP(B148,Pupils,Pupils!$P$3,FALSE))), \"x\")","v":3120.2296260841631},{"$f":"IFERROR((VLOOKUP(B148,Funding,Funding!$E$2,FALSE)), \"x\")","v":51114476.197631359},{"$f":"IFERROR((AD148/VLOOKUP(B148,Funding,Funding!$F$2,FALSE)), \"x\")","v":0.14406277509497908},{"$f":"IFERROR((AD148/(VLOOKUP(B148,Pupils,Pupils!$R$3,FALSE)+VLOOKUP(B148,Pupils,Pupils!$U$3,FALSE))), \"x\")","v":3348.4753486820414},{"$f":"IFERROR((VLOOKUP(B148,Funding,Funding!$G$2,FALSE)), \"x\")","v":53669957.560634531},{"$f":"IFERROR((AG148/VLOOKUP(B148,Funding,Funding!$H$2,FALSE)), \"x\")","v":0.14895581506125224},{"$f":"IFERROR((AG148/(VLOOKUP(B148,Pupils,Pupils!$W$3,FALSE)+VLOOKUP(B148,Pupils,Pupils!$Z$3,FALSE))), \"x\")","v":3702.9086215423299},{"$f":"IFERROR((VLOOKUP(B148,Funding,Funding!$I$2,FALSE)), \"x\")","v":54280132.943063617},{"$f":"IFERROR((AJ148/VLOOKUP(B148,Funding,Funding!$J$2,FALSE)), \"x\")","v":0.14490351697984122},null,{"$f":"IFERROR((VLOOKUP($B148,Funding,Funding!$EC$2,FALSE)), \"x\")","v":32654815},{"$f":"IFERROR((AM148/VLOOKUP($B148,Funding,Funding!$EU$2,FALSE)), \"x\")","v":8.9978994091254982E-2},{"$f":"IFERROR((AM148/(VLOOKUP($B148,Pupils,Pupils!$D$3,FALSE)+VLOOKUP($B148,Pupils,Pupils!$E$3,FALSE))), \"x\")","v":1987.027808202507},{"$f":"IFERROR((VLOOKUP($B148,Funding,Funding!$DA$2,FALSE)), \"x\")","v":33089744},{"$f":"IFERROR((AP148/VLOOKUP($B148,Funding,Funding!$DT$2,FALSE)), \"x\")","v":8.6868101570267406E-2},{"$f":"IFERROR((AP148/(VLOOKUP($B148,Pupils,Pupils!$G$3,FALSE)+VLOOKUP($B148,Pupils,Pupils!$H$3,FALSE))), \"x\")","v":2070.9565652772562},{"$f":"IFERROR((VLOOKUP($B148,Funding,Funding!$CE$2,FALSE)), \"x\")","v":35027369},{"$f":"IFERROR((AS148/VLOOKUP($B148,Funding,Funding!$CR$2,FALSE)), \"x\")","v":0.1025550609721872},{"$f":"IFERROR((AS148/(VLOOKUP($B148,Pupils,Pupils!$J$3,FALSE)+VLOOKUP($B148,Pupils,Pupils!$K$3,FALSE))), \"x\")","v":2241.608153078203},{"$f":"IFERROR((VLOOKUP($B148,Funding,Funding!$BM$2,FALSE)), \"x\")","v":44454983.890000001},{"$f":"IFERROR((AV148/VLOOKUP($B148,Funding,Funding!$BY$2,FALSE)), \"x\")","v":0.15035198788965604},{"$f":"IFERROR((AV148/(VLOOKUP($B148,Pupils,Pupils!$M$3,FALSE)+VLOOKUP($B148,Pupils,Pupils!$P$3,FALSE))), \"x\")","v":2856.0863405075488},{"$f":"IFERROR((VLOOKUP($B148,Funding,Funding!$AQ$2,FALSE)), \"x\")","v":46583495},{"$f":"IFERROR((AY148/VLOOKUP($B148,Funding,Funding!$BE$2,FALSE)), \"x\")","v":0.12758329286994172},{"$f":"IFERROR((AY148/(VLOOKUP($B148,Pupils,Pupils!$R$3,FALSE)+VLOOKUP($B148,Pupils,Pupils!$U$3,FALSE))), \"x\")","v":3051.6537831641008},{"$f":"IFERROR((VLOOKUP($B148,Funding,Funding!$S$2,FALSE)), \"x\")","v":44486716},{"$f":"IFERROR((BB148/VLOOKUP($B148,Funding,Funding!$AH$2,FALSE)), \"x\")","v":0.12141644194960892},{"$f":"IFERROR((BB148/(VLOOKUP(B148,Pupils,Pupils!$W$3,FALSE)+VLOOKUP(B148,Pupils,Pupils!$Z$3,FALSE))), \"x\")","v":3069.3194425279426},{"$f":"IFERROR((VLOOKUP($B148,Funding,Funding!$GX$2,FALSE)), \"x\")","v":54525183.629999995},{"$f":"IFERROR((BE148/VLOOKUP($B148,Funding,Funding!$HC$2,FALSE)), \"x\")","v":0.13768469018167898},{"$f":"IFERROR((BE148/(VLOOKUP($B148,Pupils,Pupils!$D$3,FALSE)+VLOOKUP($B148,Pupils,Pupils!$E$3,FALSE))), \"x\")","v":3317.8278952172323},{"$f":"IFERROR((VLOOKUP($B148,Funding,Funding!$GP$2,FALSE)), \"x\")","v":57655858.590000004},{"$f":"IFERROR((BH148/VLOOKUP($B148,Funding,Funding!$GU$2,FALSE)), \"x\")","v":0.14116183129162085},{"$f":"IFERROR((BH148/(VLOOKUP($B148,Pupils,Pupils!$G$3,FALSE)+VLOOKUP($B148,Pupils,Pupils!$H$3,FALSE))), \"x\")","v":3608.4527844536237},{"$f":"IFERROR((VLOOKUP($B148,Funding,Funding!$GH$2,FALSE)), \"x\")","v":57476687.57},{"$f":"IFERROR((BK148/VLOOKUP($B148,Funding,Funding!$GM$2,FALSE)), \"x\")","v":0.16248697655365341},{"$f":"IFERROR((BK148/(VLOOKUP($B148,Pupils,Pupils!$J$3,FALSE)+VLOOKUP($B148,Pupils,Pupils!$K$3,FALSE))), \"x\")","v":3678.2725950339177},{"$f":"IFERROR((VLOOKUP($B148,Funding,Funding!$FZ$2,FALSE)), \"x\")","v":59020244.100000001},{"$f":"IFERROR((BN148/VLOOKUP($B148,Funding,Funding!$GE$2,FALSE)), \"x\")","v":0.18412455942059308},{"$f":"IFERROR((BN148/(VLOOKUP($B148,Pupils,Pupils!$M$3,FALSE)+VLOOKUP($B148,Pupils,Pupils!$P$3,FALSE))), \"x\")","v":3791.8563507870222},{"$f":"IFERROR((VLOOKUP($B148,Funding,Funding!$FD$2,FALSE)), \"x\")","v":48703331},{"$f":"IFERROR((BQ148/VLOOKUP($B148,Funding,Funding!$FR$2,FALSE)), \"x\")","v":0.18242510578499779},{"$f":"IFERROR((BQ148/(VLOOKUP($B148,Pupils,Pupils!$R$3,FALSE)+VLOOKUP($B148,Pupils,Pupils!$U$3,FALSE))), \"x\")","v":3190.5228300032754},{"$f":"(VLOOKUP(B148,Funding,Funding!$HK$2,FALSE)+VLOOKUP(B148,Funding,Funding!$HL$2,FALSE)+VLOOKUP(B148,Funding,Funding!$HM$2,FALSE))/(VLOOKUP(B148,Funding,Funding!$HN$2,FALSE))","v":0.28947368421052633},{"$f":"IFERROR((VLOOKUP(B148,Other_data,Other!$D$3,FALSE)+VLOOKUP(B148,Other_data,Other!$E$3,FALSE)+VLOOKUP(B148,Other_data,Other!$F$3,FALSE)), \"x\")","v":3090},{"$f":"(VLOOKUP(B148,Other_data,Other!$AK$3,FALSE)+VLOOKUP(B148,Other_data,Other!$AL$3,FALSE))/VLOOKUP(B148,Other_data,Other!$AJ$3,FALSE)","v":3.4115943211488253E-2},{"$f":"(VLOOKUP(B148,Other_data,Other!$AR$3,FALSE)+VLOOKUP(B148,Other_data,Other!$AS$3,FALSE))/VLOOKUP(B148,Other_data,Other!$AQ$3,FALSE)","v":4.6884230500707114E-2},{"$f":"VLOOKUP(B148,Other_data,Other!$AP$3,FALSE)/VLOOKUP(B148,Other_data,Other!$AJ$3,FALSE)","v":4.6405842036553527E-3},{"$f":"VLOOKUP(B148,Other_data,Other!$AW$3,FALSE)/VLOOKUP(B148,Other_data,Other!$AQ$3,FALSE)","v":9.3446232613093212E-3}]
[143,869,"West Berkshire",{"$f":"IFERROR((VLOOKUP($B149,Pupils,Pupils!$D$3,FALSE)/VLOOKUP($B149,Pupils,Pupils!$C$3,FALSE)), \"x\")","v":4.0664395828212241E-2},{"$f":"IFERROR((VLOOKUP($B149,Pupils,Pupils!$G$3,FALSE)/VLOOKUP($B149,Pupils,Pupils!$F$3,FALSE)),\"x\")","v":3.9509632224168124E-2},{"$f":"IFERROR((VLOOKUP($B149,Pupils,Pupils!$J$3,FALSE)/VLOOKUP($B149,Pupils,Pupils!$I$3,FALSE)), \"x\")","v":3.993420131597368E-2},{"$f":"IFERROR((VLOOKUP($B149,Pupils,Pupils!$M$3,FALSE)/VLOOKUP($B149,Pupils,Pupils!$L$3,FALSE)), \"x\")","v":4.015783776233544E-2},{"$f":"IFERROR((VLOOKUP($B149,Pupils,Pupils!$R$3,FALSE)/VLOOKUP($B149,Pupils,Pupils!$Q$3,FALSE)), \"x\")","v":4.0040248429964259E-2},{"$f":"IFERROR((VLOOKUP($B149,Pupils,Pupils!$W$3,FALSE)/VLOOKUP($B149,Pupils,Pupils!$V$3,FALSE)), \"x\")","v":4.1869455662559112E-2},{"$f":"IFERROR(((VLOOKUP($B149,Pupils,Pupils!$D$3,FALSE)+VLOOKUP($B149,Pupils,Pupils!$E$3,FALSE))/VLOOKUP($B149,Pupils,Pupils!$C$3,FALSE)), \"x\")","v":0.20880008427854058},{"$f":"IFERROR(((VLOOKUP($B149,Pupils,Pupils!$G$3,FALSE)+VLOOKUP($B149,Pupils,Pupils!$H$3,FALSE))/VLOOKUP($B149,Pupils,Pupils!$F$3,FALSE)), \"x\")","v":0.19947460595446584},{"$f":"IFERROR(((VLOOKUP($B149,Pupils,Pupils!$J$3,FALSE)+VLOOKUP($B149,Pupils,Pupils!$K$3,FALSE))/VLOOKUP($B149,Pupils,Pupils!$I$3,FALSE)), \"x\")","v":0.17933641327173455},{"$f":"IFERROR(((VLOOKUP($B149,Pupils,Pupils!$M$3,FALSE)+VLOOKUP($B149,Pupils,Pupils!$P$3,FALSE))/VLOOKUP($B149,Pupils,Pupils!$L$3,FALSE)), \"x\")","v":0.17334217969759402},{"$f":"IFERROR(((VLOOKUP($B149,Pupils,Pupils!$R$3,FALSE)+VLOOKUP($B149,Pupils,Pupils!$U$3,FALSE))/VLOOKUP($B149,Pupils,Pupils!$Q$3,FALSE)), \"x\")","v":0.16841886124700739},{"$f":"IFERROR(((VLOOKUP($B149,Pupils,Pupils!$W$3,FALSE)+VLOOKUP($B149,Pupils,Pupils!$Z$3,FALSE))/VLOOKUP($B149,Pupils,Pupils!$V$3,FALSE)), \"x\")","v":0.1607814711262987},{"$f":"(SUM(INDEX(Pupils!$AB$7:$AB$159,MATCH($B149,Pupils!$A$7:$A$159,0)),INDEX(Pupils!$AC$7:$AC$159,MATCH($B149,Pupils!$A$7:$A$159,0)),INDEX(Pupils!$AD$7:$AD$159,MATCH($B149,Pupils!$A$7:$A$159,0)),INDEX(Pupils!$AE$7:$AE$159,MATCH($B149,Pupils!$A$7:$A$159,0))))/SUM(INDEX(Pupils!$AB$7:$AM$159,MATCH($B149,Pupils!$A$7:$A$159,0),0))","v":0.25140875596012136},{"$f":"SUM(INDEX(Pupils!$AF$7:$AF$159,MATCH($B149,Pupils!$A$7:$A$159,0)))/SUM(INDEX(Pupils!$AB$7:$AM$159,MATCH($B149,Pupils!$A$7:$A$159,0),0))","v":0.14347637624620718},{"$f":"SUM(INDEX(Pupils!$AG$7:$AG$159,MATCH($B149,Pupils!$A$7:$A$159,0)))/SUM(INDEX(Pupils!$AB$7:$AM$159,MATCH($B149,Pupils!$A$7:$A$159,0),0))","v":0.12613784135240572},{"$f":"(SUM(INDEX(Pupils!$AH$7:$AH$159,MATCH($B149,Pupils!$A$7:$A$159,0)),INDEX(Pupils!$AI$7:$AI$159,MATCH($B149,Pupils!$A$7:$A$159,0)),INDEX(Pupils!$AJ$7:$AJ$159,MATCH($B149,Pupils!$A$7:$A$159,0))))/SUM(INDEX(Pupils!$AB$7:$AM$159,MATCH($B149,Pupils!$A$7:$A$159,0),0))","v":0.14781100996965757},{"$f":"SUM(INDEX(Pupils!$AK$7:$AK$159,MATCH($B149,Pupils!$A$7:$A$159,0)))/SUM(INDEX(Pupils!$AB$7:$AM$159,MATCH($B149,Pupils!$A$7:$A$159,0),0))","v":3.0775899436497615E-2},{"$f":"SUM(INDEX(Pupils!$AL$7:$AL$159,MATCH($B149,Pupils!$A$7:$A$159,0)))/SUM(INDEX(Pupils!$AB$7:$AM$159,MATCH($B149,Pupils!$A$7:$A$159,0),0))","v":0.24317295188556567},{"$f":"SUM(INDEX(Pupils!$AM$7:$AM$159,MATCH($B149,Pupils!$A$7:$A$159,0)))/SUM(INDEX(Pupils!$AB$7:$AM$159,MATCH($B149,Pupils!$A$7:$A$159,0),0))","v":5.7217165149544863E-2},{"$f":"(SUM(INDEX(Pupils!$BH$7:$BH$159,MATCH($B149,Pupils!$A$7:$A$159,0)),INDEX(Pupils!$BK$7:$BK$159,MATCH($B149,Pupils!$A$7:$A$159,0)),INDEX(Pupils!$BO$7:$BO$159,MATCH($B149,Pupils!$A$7:$A$159,0))))/SUM(INDEX(Pupils!$BH$7:$BS$159,MATCH($B149,Pupils!$A$7:$A$159,0),0))","v":0.46493506493506492},{"$f":"(SUM(INDEX(Pupils!$BL$7:$BL$159,MATCH($B149,Pupils!$A$7:$A$159,0)),INDEX(Pupils!$BM$7:$BM$159,MATCH($B149,Pupils!$A$7:$A$159,0)),INDEX(Pupils!$BP$7:$BP$159,MATCH($B149,Pupils!$A$7:$A$159,0))))/SUM(INDEX(Pupils!$BH$7:$BS$159,MATCH($B149,Pupils!$A$7:$A$159,0),0))","v":0.39740259740259742},{"$f":"(SUM(INDEX(Pupils!$BI$7:$BI$159,MATCH($B149,Pupils!$A$7:$A$159,0)),INDEX(Pupils!$BJ$7:$BJ$159,MATCH($B149,Pupils!$A$7:$A$159,0))))/SUM(INDEX(Pupils!$BH$7:$BS$159,MATCH($B149,Pupils!$A$7:$A$159,0),0))","v":0.1012987012987013},{"$f":"(SUM(INDEX(Pupils!$BQ$7:$BQ$159,MATCH($B149,Pupils!$A$7:$A$159,0)),INDEX(Pupils!$BR$7:$BR$159,MATCH($B149,Pupils!$A$7:$A$159,0)),INDEX(Pupils!$BN$7:$BN$159,MATCH($B149,Pupils!$A$7:$A$159,0)),INDEX(Pupils!$BS$7:$BS$159,MATCH($B149,Pupils!$A$7:$A$159,0))))/SUM(INDEX(Pupils!$BH$7:$BS$159,MATCH($B149,Pupils!$A$7:$A$159,0),0))","v":3.6363636363636362E-2},{"$f":"IFERROR((VLOOKUP(B149,Funding,Funding!$C$2,FALSE)), \"x\")","v":17110968.609999999},{"$f":"IFERROR((AA149/VLOOKUP(B149,Funding,Funding!$D$2,FALSE)), \"x\")","v":0.1482927523724667},{"$f":"IFERROR((AA149/(VLOOKUP(B149,Pupils,Pupils!$M$3,FALSE)+VLOOKUP(B149,Pupils,Pupils!$P$3,FALSE))), \"x\")","v":3447.0122099113619},{"$f":"IFERROR((VLOOKUP(B149,Funding,Funding!$E$2,FALSE)), \"x\")","v":16546375.378380328},{"$f":"IFERROR((AD149/VLOOKUP(B149,Funding,Funding!$F$2,FALSE)), \"x\")","v":0.13962060396134104},{"$f":"IFERROR((AD149/(VLOOKUP(B149,Pupils,Pupils!$R$3,FALSE)+VLOOKUP(B149,Pupils,Pupils!$U$3,FALSE))), \"x\")","v":3408.8123976885718},{"$f":"IFERROR((VLOOKUP(B149,Funding,Funding!$G$2,FALSE)), \"x\")","v":17542633.025963694},{"$f":"IFERROR((AG149/VLOOKUP(B149,Funding,Funding!$H$2,FALSE)), \"x\")","v":0.14617265328094525},{"$f":"IFERROR((AG149/(VLOOKUP(B149,Pupils,Pupils!$W$3,FALSE)+VLOOKUP(B149,Pupils,Pupils!$Z$3,FALSE))), \"x\")","v":3766.1298896444168},{"$f":"IFERROR((VLOOKUP(B149,Funding,Funding!$I$2,FALSE)), \"x\")","v":17710699.859684624},{"$f":"IFERROR((AJ149/VLOOKUP(B149,Funding,Funding!$J$2,FALSE)), \"x\")","v":0.14773443769443806},null,{"$f":"IFERROR((VLOOKUP($B149,Funding,Funding!$EC$2,FALSE)), \"x\")","v":11720762},{"$f":"IFERROR((AM149/VLOOKUP($B149,Funding,Funding!$EU$2,FALSE)), \"x\")","v":9.5649282771803637E-2},{"$f":"IFERROR((AM149/(VLOOKUP($B149,Pupils,Pupils!$D$3,FALSE)+VLOOKUP($B149,Pupils,Pupils!$E$3,FALSE))), \"x\")","v":1971.201143625967},{"$f":"IFERROR((VLOOKUP($B149,Funding,Funding!$DA$2,FALSE)), \"x\")","v":12322126.902199998},{"$f":"IFERROR((AP149/VLOOKUP($B149,Funding,Funding!$DT$2,FALSE)), \"x\")","v":9.5479484596632733E-2},{"$f":"IFERROR((AP149/(VLOOKUP($B149,Pupils,Pupils!$G$3,FALSE)+VLOOKUP($B149,Pupils,Pupils!$H$3,FALSE))), \"x\")","v":2163.6746096927127},{"$f":"IFERROR((VLOOKUP($B149,Funding,Funding!$CE$2,FALSE)), \"x\")","v":12752043},{"$f":"IFERROR((AS149/VLOOKUP($B149,Funding,Funding!$CR$2,FALSE)), \"x\")","v":0.10342474662137707},{"$f":"IFERROR((AS149/(VLOOKUP($B149,Pupils,Pupils!$J$3,FALSE)+VLOOKUP($B149,Pupils,Pupils!$K$3,FALSE))), \"x\")","v":2488.6891100702578},{"$f":"IFERROR((VLOOKUP($B149,Funding,Funding!$BM$2,FALSE)), \"x\")","v":13432865.379999999},{"$f":"IFERROR((AV149/VLOOKUP($B149,Funding,Funding!$BY$2,FALSE)), \"x\")","v":0.12548202242262288},{"$f":"IFERROR((AV149/(VLOOKUP($B149,Pupils,Pupils!$M$3,FALSE)+VLOOKUP($B149,Pupils,Pupils!$P$3,FALSE))), \"x\")","v":2706.056684125705},{"$f":"IFERROR((VLOOKUP($B149,Funding,Funding!$AQ$2,FALSE)), \"x\")","v":15830994},{"$f":"IFERROR((AY149/VLOOKUP($B149,Funding,Funding!$BE$2,FALSE)), \"x\")","v":0.12695412675968984},{"$f":"IFERROR((AY149/(VLOOKUP($B149,Pupils,Pupils!$R$3,FALSE)+VLOOKUP($B149,Pupils,Pupils!$U$3,FALSE))), \"x\")","v":3261.4326328800989},{"$f":"IFERROR((VLOOKUP($B149,Funding,Funding!$S$2,FALSE)), \"x\")","v":16446029},{"$f":"IFERROR((BB149/VLOOKUP($B149,Funding,Funding!$AH$2,FALSE)), \"x\")","v":0.13030897919116013},{"$f":"IFERROR((BB149/(VLOOKUP(B149,Pupils,Pupils!$W$3,FALSE)+VLOOKUP(B149,Pupils,Pupils!$Z$3,FALSE))), \"x\")","v":3530.706097037355},{"$f":"IFERROR((VLOOKUP($B149,Funding,Funding!$GX$2,FALSE)), \"x\")","v":20499360},{"$f":"IFERROR((BE149/VLOOKUP($B149,Funding,Funding!$HC$2,FALSE)), \"x\")","v":0.15703280863309779},{"$f":"IFERROR((BE149/(VLOOKUP($B149,Pupils,Pupils!$D$3,FALSE)+VLOOKUP($B149,Pupils,Pupils!$E$3,FALSE))), \"x\")","v":3447.5882946518668},{"$f":"IFERROR((VLOOKUP($B149,Funding,Funding!$GP$2,FALSE)), \"x\")","v":23050125},{"$f":"IFERROR((BH149/VLOOKUP($B149,Funding,Funding!$GU$2,FALSE)), \"x\")","v":0.16718107723510189},{"$f":"IFERROR((BH149/(VLOOKUP($B149,Pupils,Pupils!$G$3,FALSE)+VLOOKUP($B149,Pupils,Pupils!$H$3,FALSE))), \"x\")","v":4047.4319578577702},{"$f":"IFERROR((VLOOKUP($B149,Funding,Funding!$GH$2,FALSE)), \"x\")","v":21923252.809999999},{"$f":"IFERROR((BK149/VLOOKUP($B149,Funding,Funding!$GM$2,FALSE)), \"x\")","v":0.18478853229197215},{"$f":"IFERROR((BK149/(VLOOKUP($B149,Pupils,Pupils!$J$3,FALSE)+VLOOKUP($B149,Pupils,Pupils!$K$3,FALSE))), \"x\")","v":4278.5427029664324},{"$f":"IFERROR((VLOOKUP($B149,Funding,Funding!$FZ$2,FALSE)), \"x\")","v":20681280.98},{"$f":"IFERROR((BN149/VLOOKUP($B149,Funding,Funding!$GE$2,FALSE)), \"x\")","v":0.18998699744395373},{"$f":"IFERROR((BN149/(VLOOKUP($B149,Pupils,Pupils!$M$3,FALSE)+VLOOKUP($B149,Pupils,Pupils!$P$3,FALSE))), \"x\")","v":4166.253219178082},{"$f":"IFERROR((VLOOKUP($B149,Funding,Funding!$FD$2,FALSE)), \"x\")","v":15325646},{"$f":"IFERROR((BQ149/VLOOKUP($B149,Funding,Funding!$FR$2,FALSE)), \"x\")","v":0.1623524078866363},{"$f":"IFERROR((BQ149/(VLOOKUP($B149,Pupils,Pupils!$R$3,FALSE)+VLOOKUP($B149,Pupils,Pupils!$U$3,FALSE))), \"x\")","v":3157.3230325504737},{"$f":"(VLOOKUP(B149,Funding,Funding!$HK$2,FALSE)+VLOOKUP(B149,Funding,Funding!$HL$2,FALSE)+VLOOKUP(B149,Funding,Funding!$HM$2,FALSE))/(VLOOKUP(B149,Funding,Funding!$HN$2,FALSE))","v":0.24850299401197604},{"$f":"IFERROR((VLOOKUP(B149,Other_data,Other!$D$3,FALSE)+VLOOKUP(B149,Other_data,Other!$E$3,FALSE)+VLOOKUP(B149,Other_data,Other!$F$3,FALSE)), \"x\")","v":920},{"$f":"(VLOOKUP(B149,Other_data,Other!$AK$3,FALSE)+VLOOKUP(B149,Other_data,Other!$AL$3,FALSE))/VLOOKUP(B149,Other_data,Other!$AJ$3,FALSE)","v":3.2690335175197698E-2},{"$f":"(VLOOKUP(B149,Other_data,Other!$AR$3,FALSE)+VLOOKUP(B149,Other_data,Other!$AS$3,FALSE))/VLOOKUP(B149,Other_data,Other!$AQ$3,FALSE)","v":4.8061011583567161E-2},{"$f":"VLOOKUP(B149,Other_data,Other!$AP$3,FALSE)/VLOOKUP(B149,Other_data,Other!$AJ$3,FALSE)","v":3.7719617509843497E-3},{"$f":"VLOOKUP(B149,Other_data,Other!$AW$3,FALSE)/VLOOKUP(B149,Other_data,Other!$AQ$3,FALSE)","v":7.1947622131088565E-3}]
[144,938,"West Sussex",{"$f":"IFERROR((VLOOKUP($B150,Pupils,Pupils!$D$3,FALSE)/VLOOKUP($B150,Pupils,Pupils!$C$3,FALSE)), \"x\")","v":2.8224722219812818E-2},{"$f":"IFERROR((VLOOKUP($B150,Pupils,Pupils!$G$3,FALSE)/VLOOKUP($B150,Pupils,Pupils!$F$3,FALSE)),\"x\")","v":2.7817700126404738E-2},{"$f":"IFERROR((VLOOKUP($B150,Pupils,Pupils!$J$3,FALSE)/VLOOKUP($B150,Pupils,Pupils!$I$3,FALSE)), \"x\")","v":2.7428305528746727E-2},{"$f":"IFERROR((VLOOKUP($B150,Pupils,Pupils!$M$3,FALSE)/VLOOKUP($B150,Pupils,Pupils!$L$3,FALSE)), \"x\")","v":2.7331905781584582E-2},{"$f":"IFERROR((VLOOKUP($B150,Pupils,Pupils!$R$3,FALSE)/VLOOKUP($B150,Pupils,Pupils!$Q$3,FALSE)), \"x\")","v":2.7841048611757933E-2},{"$f":"IFERROR((VLOOKUP($B150,Pupils,Pupils!$W$3,FALSE)/VLOOKUP($B150,Pupils,Pupils!$V$3,FALSE)), \"x\")","v":2.8514927811900351E-2},{"$f":"IFERROR(((VLOOKUP($B150,Pupils,Pupils!$D$3,FALSE)+VLOOKUP($B150,Pupils,Pupils!$E$3,FALSE))/VLOOKUP($B150,Pupils,Pupils!$C$3,FALSE)), \"x\")","v":0.22565899608809167},{"$f":"IFERROR(((VLOOKUP($B150,Pupils,Pupils!$G$3,FALSE)+VLOOKUP($B150,Pupils,Pupils!$H$3,FALSE))/VLOOKUP($B150,Pupils,Pupils!$F$3,FALSE)), \"x\")","v":0.22899170577132863},{"$f":"IFERROR(((VLOOKUP($B150,Pupils,Pupils!$J$3,FALSE)+VLOOKUP($B150,Pupils,Pupils!$K$3,FALSE))/VLOOKUP($B150,Pupils,Pupils!$I$3,FALSE)), \"x\")","v":0.22638046325658348},{"$f":"IFERROR(((VLOOKUP($B150,Pupils,Pupils!$M$3,FALSE)+VLOOKUP($B150,Pupils,Pupils!$P$3,FALSE))/VLOOKUP($B150,Pupils,Pupils!$L$3,FALSE)), \"x\")","v":0.22091648822269808},{"$f":"IFERROR(((VLOOKUP($B150,Pupils,Pupils!$R$3,FALSE)+VLOOKUP($B150,Pupils,Pupils!$U$3,FALSE))/VLOOKUP($B150,Pupils,Pupils!$Q$3,FALSE)), \"x\")","v":0.20724138223016283},{"$f":"IFERROR(((VLOOKUP($B150,Pupils,Pupils!$W$3,FALSE)+VLOOKUP($B150,Pupils,Pupils!$Z$3,FALSE))/VLOOKUP($B150,Pupils,Pupils!$V$3,FALSE)), \"x\")","v":0.1990933543375705},{"$f":"(SUM(INDEX(Pupils!$AB$7:$AB$159,MATCH($B150,Pupils!$A$7:$A$159,0)),INDEX(Pupils!$AC$7:$AC$159,MATCH($B150,Pupils!$A$7:$A$159,0)),INDEX(Pupils!$AD$7:$AD$159,MATCH($B150,Pupils!$A$7:$A$159,0)),INDEX(Pupils!$AE$7:$AE$159,MATCH($B150,Pupils!$A$7:$A$159,0))))/SUM(INDEX(Pupils!$AB$7:$AM$159,MATCH($B150,Pupils!$A$7:$A$159,0),0))","v":0.33608869007099096},{"$f":"SUM(INDEX(Pupils!$AF$7:$AF$159,MATCH($B150,Pupils!$A$7:$A$159,0)))/SUM(INDEX(Pupils!$AB$7:$AM$159,MATCH($B150,Pupils!$A$7:$A$159,0),0))","v":0.21063891860352038},{"$f":"SUM(INDEX(Pupils!$AG$7:$AG$159,MATCH($B150,Pupils!$A$7:$A$159,0)))/SUM(INDEX(Pupils!$AB$7:$AM$159,MATCH($B150,Pupils!$A$7:$A$159,0),0))","v":0.25478945832928135},{"$f":"(SUM(INDEX(Pupils!$AH$7:$AH$159,MATCH($B150,Pupils!$A$7:$A$159,0)),INDEX(Pupils!$AI$7:$AI$159,MATCH($B150,Pupils!$A$7:$A$159,0)),INDEX(Pupils!$AJ$7:$AJ$159,MATCH($B150,Pupils!$A$7:$A$159,0))))/SUM(INDEX(Pupils!$AB$7:$AM$159,MATCH($B150,Pupils!$A$7:$A$159,0),0))","v":2.966060488184382E-2},{"$f":"SUM(INDEX(Pupils!$AK$7:$AK$159,MATCH($B150,Pupils!$A$7:$A$159,0)))/SUM(INDEX(Pupils!$AB$7:$AM$159,MATCH($B150,Pupils!$A$7:$A$159,0),0))","v":3.9190897597977246E-2},{"$f":"SUM(INDEX(Pupils!$AL$7:$AL$159,MATCH($B150,Pupils!$A$7:$A$159,0)))/SUM(INDEX(Pupils!$AB$7:$AM$159,MATCH($B150,Pupils!$A$7:$A$159,0),0))","v":8.9565301954682486E-2},{"$f":"SUM(INDEX(Pupils!$AM$7:$AM$159,MATCH($B150,Pupils!$A$7:$A$159,0)))/SUM(INDEX(Pupils!$AB$7:$AM$159,MATCH($B150,Pupils!$A$7:$A$159,0),0))","v":4.006612856170378E-2},{"$f":"(SUM(INDEX(Pupils!$BH$7:$BH$159,MATCH($B150,Pupils!$A$7:$A$159,0)),INDEX(Pupils!$BK$7:$BK$159,MATCH($B150,Pupils!$A$7:$A$159,0)),INDEX(Pupils!$BO$7:$BO$159,MATCH($B150,Pupils!$A$7:$A$159,0))))/SUM(INDEX(Pupils!$BH$7:$BS$159,MATCH($B150,Pupils!$A$7:$A$159,0),0))","v":0.35028588624736684},{"$f":"(SUM(INDEX(Pupils!$BL$7:$BL$159,MATCH($B150,Pupils!$A$7:$A$159,0)),INDEX(Pupils!$BM$7:$BM$159,MATCH($B150,Pupils!$A$7:$A$159,0)),INDEX(Pupils!$BP$7:$BP$159,MATCH($B150,Pupils!$A$7:$A$159,0))))/SUM(INDEX(Pupils!$BH$7:$BS$159,MATCH($B150,Pupils!$A$7:$A$159,0),0))","v":0.53235028588624733},{"$f":"(SUM(INDEX(Pupils!$BI$7:$BI$159,MATCH($B150,Pupils!$A$7:$A$159,0)),INDEX(Pupils!$BJ$7:$BJ$159,MATCH($B150,Pupils!$A$7:$A$159,0))))/SUM(INDEX(Pupils!$BH$7:$BS$159,MATCH($B150,Pupils!$A$7:$A$159,0),0))","v":9.7201324104724651E-2},{"$f":"(SUM(INDEX(Pupils!$BQ$7:$BQ$159,MATCH($B150,Pupils!$A$7:$A$159,0)),INDEX(Pupils!$BR$7:$BR$159,MATCH($B150,Pupils!$A$7:$A$159,0)),INDEX(Pupils!$BN$7:$BN$159,MATCH($B150,Pupils!$A$7:$A$159,0)),INDEX(Pupils!$BS$7:$BS$159,MATCH($B150,Pupils!$A$7:$A$159,0))))/SUM(INDEX(Pupils!$BH$7:$BS$159,MATCH($B150,Pupils!$A$7:$A$159,0),0))","v":2.0162503761661149E-2},{"$f":"IFERROR((VLOOKUP(B150,Funding,Funding!$C$2,FALSE)), \"x\")","v":66485980.999999993},{"$f":"IFERROR((AA150/VLOOKUP(B150,Funding,Funding!$D$2,FALSE)), \"x\")","v":0.13369784515977107},{"$f":"IFERROR((AA150/(VLOOKUP(B150,Pupils,Pupils!$M$3,FALSE)+VLOOKUP(B150,Pupils,Pupils!$P$3,FALSE))), \"x\")","v":2577.7753179280394},{"$f":"IFERROR((VLOOKUP(B150,Funding,Funding!$E$2,FALSE)), \"x\")","v":67689318.973959729},{"$f":"IFERROR((AD150/VLOOKUP(B150,Funding,Funding!$F$2,FALSE)), \"x\")","v":0.1325654614636598},{"$f":"IFERROR((AD150/(VLOOKUP(B150,Pupils,Pupils!$R$3,FALSE)+VLOOKUP(B150,Pupils,Pupils!$U$3,FALSE))), \"x\")","v":2765.6514391811943},{"$f":"IFERROR((VLOOKUP(B150,Funding,Funding!$G$2,FALSE)), \"x\")","v":70533567.242992565},{"$f":"IFERROR((AG150/VLOOKUP(B150,Funding,Funding!$H$2,FALSE)), \"x\")","v":0.13589160286560764},{"$f":"IFERROR((AG150/(VLOOKUP(B150,Pupils,Pupils!$W$3,FALSE)+VLOOKUP(B150,Pupils,Pupils!$Z$3,FALSE))), \"x\")","v":2968.5844799239294},{"$f":"IFERROR((VLOOKUP(B150,Funding,Funding!$I$2,FALSE)), \"x\")","v":71375927.396817267},{"$f":"IFERROR((AJ150/VLOOKUP(B150,Funding,Funding!$J$2,FALSE)), \"x\")","v":0.13742313529927003},null,{"$f":"IFERROR((VLOOKUP($B150,Funding,Funding!$EC$2,FALSE)), \"x\")","v":43129409},{"$f":"IFERROR((AM150/VLOOKUP($B150,Funding,Funding!$EU$2,FALSE)), \"x\")","v":9.2166357456017936E-2},{"$f":"IFERROR((AM150/(VLOOKUP($B150,Pupils,Pupils!$D$3,FALSE)+VLOOKUP($B150,Pupils,Pupils!$E$3,FALSE))), \"x\")","v":1657.8032364698647},{"$f":"IFERROR((VLOOKUP($B150,Funding,Funding!$DA$2,FALSE)), \"x\")","v":44610635.708949998},{"$f":"IFERROR((AP150/VLOOKUP($B150,Funding,Funding!$DT$2,FALSE)), \"x\")","v":9.2033234215924589E-2},{"$f":"IFERROR((AP150/(VLOOKUP($B150,Pupils,Pupils!$G$3,FALSE)+VLOOKUP($B150,Pupils,Pupils!$H$3,FALSE))), \"x\")","v":1686.6662523706},{"$f":"IFERROR((VLOOKUP($B150,Funding,Funding!$CE$2,FALSE)), \"x\")","v":50801732.116760001},{"$f":"IFERROR((AS150/VLOOKUP($B150,Funding,Funding!$CR$2,FALSE)), \"x\")","v":0.10067005514659082},{"$f":"IFERROR((AS150/(VLOOKUP($B150,Pupils,Pupils!$J$3,FALSE)+VLOOKUP($B150,Pupils,Pupils!$K$3,FALSE))), \"x\")","v":1933.7570749784934},{"$f":"IFERROR((VLOOKUP($B150,Funding,Funding!$BM$2,FALSE)), \"x\")","v":51523396.089999996},{"$f":"IFERROR((AV150/VLOOKUP($B150,Funding,Funding!$BY$2,FALSE)), \"x\")","v":0.10716071433118045},{"$f":"IFERROR((AV150/(VLOOKUP($B150,Pupils,Pupils!$M$3,FALSE)+VLOOKUP($B150,Pupils,Pupils!$P$3,FALSE))), \"x\")","v":1997.6502826457815},{"$f":"IFERROR((VLOOKUP($B150,Funding,Funding!$AQ$2,FALSE)), \"x\")","v":60759430},{"$f":"IFERROR((AY150/VLOOKUP($B150,Funding,Funding!$BE$2,FALSE)), \"x\")","v":0.11458352443338934},{"$f":"IFERROR((AY150/(VLOOKUP($B150,Pupils,Pupils!$R$3,FALSE)+VLOOKUP($B150,Pupils,Pupils!$U$3,FALSE))), \"x\")","v":2482.5099080694586},{"$f":"IFERROR((VLOOKUP($B150,Funding,Funding!$S$2,FALSE)), \"x\")","v":65548250},{"$f":"IFERROR((BB150/VLOOKUP($B150,Funding,Funding!$AH$2,FALSE)), \"x\")","v":0.12107688013060353},{"$f":"IFERROR((BB150/(VLOOKUP(B150,Pupils,Pupils!$W$3,FALSE)+VLOOKUP(B150,Pupils,Pupils!$Z$3,FALSE))), \"x\")","v":2758.7647306397307},{"$f":"IFERROR((VLOOKUP($B150,Funding,Funding!$GX$2,FALSE)), \"x\")","v":76705034.551819995},{"$f":"IFERROR((BE150/VLOOKUP($B150,Funding,Funding!$HC$2,FALSE)), \"x\")","v":0.14846165468410646},{"$f":"IFERROR((BE150/(VLOOKUP($B150,Pupils,Pupils!$D$3,FALSE)+VLOOKUP($B150,Pupils,Pupils!$E$3,FALSE))), \"x\")","v":2948.3792493780747},{"$f":"IFERROR((VLOOKUP($B150,Funding,Funding!$GP$2,FALSE)), \"x\")","v":84997543.840000004},{"$f":"IFERROR((BH150/VLOOKUP($B150,Funding,Funding!$GU$2,FALSE)), \"x\")","v":0.15433185804570859},{"$f":"IFERROR((BH150/(VLOOKUP($B150,Pupils,Pupils!$G$3,FALSE)+VLOOKUP($B150,Pupils,Pupils!$H$3,FALSE))), \"x\")","v":3213.6392241672656},{"$f":"IFERROR((VLOOKUP($B150,Funding,Funding!$GH$2,FALSE)), \"x\")","v":87950307.739999995},{"$f":"IFERROR((BK150/VLOOKUP($B150,Funding,Funding!$GM$2,FALSE)), \"x\")","v":0.17504168733110226},{"$f":"IFERROR((BK150/(VLOOKUP($B150,Pupils,Pupils!$J$3,FALSE)+VLOOKUP($B150,Pupils,Pupils!$K$3,FALSE))), \"x\")","v":3347.8096661718241},{"$f":"IFERROR((VLOOKUP($B150,Funding,Funding!$FZ$2,FALSE)), \"x\")","v":84050857.460000008},{"$f":"IFERROR((BN150/VLOOKUP($B150,Funding,Funding!$GE$2,FALSE)), \"x\")","v":0.17460597973883352},{"$f":"IFERROR((BN150/(VLOOKUP($B150,Pupils,Pupils!$M$3,FALSE)+VLOOKUP($B150,Pupils,Pupils!$P$3,FALSE))), \"x\")","v":3258.7956521401989},{"$f":"IFERROR((VLOOKUP($B150,Funding,Funding!$FD$2,FALSE)), \"x\")","v":55905336},{"$f":"IFERROR((BQ150/VLOOKUP($B150,Funding,Funding!$FR$2,FALSE)), \"x\")","v":0.12507375403149851},{"$f":"IFERROR((BQ150/(VLOOKUP($B150,Pupils,Pupils!$R$3,FALSE)+VLOOKUP($B150,Pupils,Pupils!$U$3,FALSE))), \"x\")","v":2284.1812461695608},{"$f":"(VLOOKUP(B150,Funding,Funding!$HK$2,FALSE)+VLOOKUP(B150,Funding,Funding!$HL$2,FALSE)+VLOOKUP(B150,Funding,Funding!$HM$2,FALSE))/(VLOOKUP(B150,Funding,Funding!$HN$2,FALSE))","v":0.18695635061203605},{"$f":"IFERROR((VLOOKUP(B150,Other_data,Other!$D$3,FALSE)+VLOOKUP(B150,Other_data,Other!$E$3,FALSE)+VLOOKUP(B150,Other_data,Other!$F$3,FALSE)), \"x\")","v":3950},{"$f":"(VLOOKUP(B150,Other_data,Other!$AK$3,FALSE)+VLOOKUP(B150,Other_data,Other!$AL$3,FALSE))/VLOOKUP(B150,Other_data,Other!$AJ$3,FALSE)","v":3.4035068125977216E-2},{"$f":"(VLOOKUP(B150,Other_data,Other!$AR$3,FALSE)+VLOOKUP(B150,Other_data,Other!$AS$3,FALSE))/VLOOKUP(B150,Other_data,Other!$AQ$3,FALSE)","v":5.3773686188201192E-2},{"$f":"VLOOKUP(B150,Other_data,Other!$AP$3,FALSE)/VLOOKUP(B150,Other_data,Other!$AJ$3,FALSE)","v":5.1583091355818633E-3},{"$f":"VLOOKUP(B150,Other_data,Other!$AW$3,FALSE)/VLOOKUP(B150,Other_data,Other!$AQ$3,FALSE)","v":9.6355145203714642E-3}]
[145,213,"Westminster",{"$f":"IFERROR((VLOOKUP($B151,Pupils,Pupils!$D$3,FALSE)/VLOOKUP($B151,Pupils,Pupils!$C$3,FALSE)), \"x\")","v":2.4913996016657614E-2},{"$f":"IFERROR((VLOOKUP($B151,Pupils,Pupils!$G$3,FALSE)/VLOOKUP($B151,Pupils,Pupils!$F$3,FALSE)),\"x\")","v":2.5254296737986671E-2},{"$f":"IFERROR((VLOOKUP($B151,Pupils,Pupils!$J$3,FALSE)/VLOOKUP($B151,Pupils,Pupils!$I$3,FALSE)), \"x\")","v":2.4226892192038271E-2},{"$f":"IFERROR((VLOOKUP($B151,Pupils,Pupils!$M$3,FALSE)/VLOOKUP($B151,Pupils,Pupils!$L$3,FALSE)), \"x\")","v":2.5770608119414975E-2},{"$f":"IFERROR((VLOOKUP($B151,Pupils,Pupils!$R$3,FALSE)/VLOOKUP($B151,Pupils,Pupils!$Q$3,FALSE)), \"x\")","v":2.6527224435590968E-2},{"$f":"IFERROR((VLOOKUP($B151,Pupils,Pupils!$W$3,FALSE)/VLOOKUP($B151,Pupils,Pupils!$V$3,FALSE)), \"x\")","v":2.6663598106259862E-2},{"$f":"IFERROR(((VLOOKUP($B151,Pupils,Pupils!$D$3,FALSE)+VLOOKUP($B151,Pupils,Pupils!$E$3,FALSE))/VLOOKUP($B151,Pupils,Pupils!$C$3,FALSE)), \"x\")","v":0.23067173637515842},{"$f":"IFERROR(((VLOOKUP($B151,Pupils,Pupils!$G$3,FALSE)+VLOOKUP($B151,Pupils,Pupils!$H$3,FALSE))/VLOOKUP($B151,Pupils,Pupils!$F$3,FALSE)), \"x\")","v":0.26839705366538058},{"$f":"IFERROR(((VLOOKUP($B151,Pupils,Pupils!$J$3,FALSE)+VLOOKUP($B151,Pupils,Pupils!$K$3,FALSE))/VLOOKUP($B151,Pupils,Pupils!$I$3,FALSE)), \"x\")","v":0.26119938493080469},{"$f":"IFERROR(((VLOOKUP($B151,Pupils,Pupils!$M$3,FALSE)+VLOOKUP($B151,Pupils,Pupils!$P$3,FALSE))/VLOOKUP($B151,Pupils,Pupils!$L$3,FALSE)), \"x\")","v":0.25238461795910172},{"$f":"IFERROR(((VLOOKUP($B151,Pupils,Pupils!$R$3,FALSE)+VLOOKUP($B151,Pupils,Pupils!$U$3,FALSE))/VLOOKUP($B151,Pupils,Pupils!$Q$3,FALSE)), \"x\")","v":0.23671978751660028},{"$f":"IFERROR(((VLOOKUP($B151,Pupils,Pupils!$W$3,FALSE)+VLOOKUP($B151,Pupils,Pupils!$Z$3,FALSE))/VLOOKUP($B151,Pupils,Pupils!$V$3,FALSE)), \"x\")","v":0.22665702261967385},{"$f":"(SUM(INDEX(Pupils!$AB$7:$AB$159,MATCH($B151,Pupils!$A$7:$A$159,0)),INDEX(Pupils!$AC$7:$AC$159,MATCH($B151,Pupils!$A$7:$A$159,0)),INDEX(Pupils!$AD$7:$AD$159,MATCH($B151,Pupils!$A$7:$A$159,0)),INDEX(Pupils!$AE$7:$AE$159,MATCH($B151,Pupils!$A$7:$A$159,0))))/SUM(INDEX(Pupils!$AB$7:$AM$159,MATCH($B151,Pupils!$A$7:$A$159,0),0))","v":0.23419827012641384},{"$f":"SUM(INDEX(Pupils!$AF$7:$AF$159,MATCH($B151,Pupils!$A$7:$A$159,0)))/SUM(INDEX(Pupils!$AB$7:$AM$159,MATCH($B151,Pupils!$A$7:$A$159,0),0))","v":0.30339321357285431},{"$f":"SUM(INDEX(Pupils!$AG$7:$AG$159,MATCH($B151,Pupils!$A$7:$A$159,0)))/SUM(INDEX(Pupils!$AB$7:$AM$159,MATCH($B151,Pupils!$A$7:$A$159,0),0))","v":0.28742514970059879},{"$f":"(SUM(INDEX(Pupils!$AH$7:$AH$159,MATCH($B151,Pupils!$A$7:$A$159,0)),INDEX(Pupils!$AI$7:$AI$159,MATCH($B151,Pupils!$A$7:$A$159,0)),INDEX(Pupils!$AJ$7:$AJ$159,MATCH($B151,Pupils!$A$7:$A$159,0))))/SUM(INDEX(Pupils!$AB$7:$AM$159,MATCH($B151,Pupils!$A$7:$A$159,0),0))","v":2.2288755821689953E-2},{"$f":"SUM(INDEX(Pupils!$AK$7:$AK$159,MATCH($B151,Pupils!$A$7:$A$159,0)))/SUM(INDEX(Pupils!$AB$7:$AM$159,MATCH($B151,Pupils!$A$7:$A$159,0),0))","v":1.7964071856287425E-2},{"$f":"SUM(INDEX(Pupils!$AL$7:$AL$159,MATCH($B151,Pupils!$A$7:$A$159,0)))/SUM(INDEX(Pupils!$AB$7:$AM$159,MATCH($B151,Pupils!$A$7:$A$159,0),0))","v":6.5202927478376582E-2},{"$f":"SUM(INDEX(Pupils!$AM$7:$AM$159,MATCH($B151,Pupils!$A$7:$A$159,0)))/SUM(INDEX(Pupils!$AB$7:$AM$159,MATCH($B151,Pupils!$A$7:$A$159,0),0))","v":6.9527611443779114E-2},{"$f":"(SUM(INDEX(Pupils!$BH$7:$BH$159,MATCH($B151,Pupils!$A$7:$A$159,0)),INDEX(Pupils!$BK$7:$BK$159,MATCH($B151,Pupils!$A$7:$A$159,0)),INDEX(Pupils!$BO$7:$BO$159,MATCH($B151,Pupils!$A$7:$A$159,0))))/SUM(INDEX(Pupils!$BH$7:$BS$159,MATCH($B151,Pupils!$A$7:$A$159,0),0))","v":0.5272547076313181},{"$f":"(SUM(INDEX(Pupils!$BL$7:$BL$159,MATCH($B151,Pupils!$A$7:$A$159,0)),INDEX(Pupils!$BM$7:$BM$159,MATCH($B151,Pupils!$A$7:$A$159,0)),INDEX(Pupils!$BP$7:$BP$159,MATCH($B151,Pupils!$A$7:$A$159,0))))/SUM(INDEX(Pupils!$BH$7:$BS$159,MATCH($B151,Pupils!$A$7:$A$159,0),0))","v":0.38949454905847375},{"$f":"(SUM(INDEX(Pupils!$BI$7:$BI$159,MATCH($B151,Pupils!$A$7:$A$159,0)),INDEX(Pupils!$BJ$7:$BJ$159,MATCH($B151,Pupils!$A$7:$A$159,0))))/SUM(INDEX(Pupils!$BH$7:$BS$159,MATCH($B151,Pupils!$A$7:$A$159,0),0))","v":4.3607532210109018E-2},{"$f":"(SUM(INDEX(Pupils!$BQ$7:$BQ$159,MATCH($B151,Pupils!$A$7:$A$159,0)),INDEX(Pupils!$BR$7:$BR$159,MATCH($B151,Pupils!$A$7:$A$159,0)),INDEX(Pupils!$BN$7:$BN$159,MATCH($B151,Pupils!$A$7:$A$159,0)),INDEX(Pupils!$BS$7:$BS$159,MATCH($B151,Pupils!$A$7:$A$159,0))))/SUM(INDEX(Pupils!$BH$7:$BS$159,MATCH($B151,Pupils!$A$7:$A$159,0),0))","v":3.9643211100099107E-2},{"$f":"IFERROR((VLOOKUP(B151,Funding,Funding!$C$2,FALSE)), \"x\")","v":19572247.390000001},{"$f":"IFERROR((AA151/VLOOKUP(B151,Funding,Funding!$D$2,FALSE)), \"x\")","v":0.15785258138260699},{"$f":"IFERROR((AA151/(VLOOKUP(B151,Pupils,Pupils!$M$3,FALSE)+VLOOKUP(B151,Pupils,Pupils!$P$3,FALSE))), \"x\")","v":2595.4445550987934},{"$f":"IFERROR((VLOOKUP(B151,Funding,Funding!$E$2,FALSE)), \"x\")","v":23321816.237737179},{"$f":"IFERROR((AD151/VLOOKUP(B151,Funding,Funding!$F$2,FALSE)), \"x\")","v":0.18336704725954581},{"$f":"IFERROR((AD151/(VLOOKUP(B151,Pupils,Pupils!$R$3,FALSE)+VLOOKUP(B151,Pupils,Pupils!$U$3,FALSE))), \"x\")","v":3270.9419688270937},{"$f":"IFERROR((VLOOKUP(B151,Funding,Funding!$G$2,FALSE)), \"x\")","v":23986748.830120604},{"$f":"IFERROR((AG151/VLOOKUP(B151,Funding,Funding!$H$2,FALSE)), \"x\")","v":0.19012616775294686},{"$f":"IFERROR((AG151/(VLOOKUP(B151,Pupils,Pupils!$W$3,FALSE)+VLOOKUP(B151,Pupils,Pupils!$Z$3,FALSE))), \"x\")","v":3479.3659457674216},{"$f":"IFERROR((VLOOKUP(B151,Funding,Funding!$I$2,FALSE)), \"x\")","v":24108351.712108519},{"$f":"IFERROR((AJ151/VLOOKUP(B151,Funding,Funding!$J$2,FALSE)), \"x\")","v":0.16410398077795452},null,{"$f":"IFERROR((VLOOKUP($B151,Funding,Funding!$EC$2,FALSE)), \"x\")","v":8526337.1999999993},{"$f":"IFERROR((AM151/VLOOKUP($B151,Funding,Funding!$EU$2,FALSE)), \"x\")","v":6.8067046943798851E-2},{"$f":"IFERROR((AM151/(VLOOKUP($B151,Pupils,Pupils!$D$3,FALSE)+VLOOKUP($B151,Pupils,Pupils!$E$3,FALSE))), \"x\")","v":1338.5144740973312},{"$f":"IFERROR((VLOOKUP($B151,Funding,Funding!$DA$2,FALSE)), \"x\")","v":9495042.4564200006},{"$f":"IFERROR((AP151/VLOOKUP($B151,Funding,Funding!$DT$2,FALSE)), \"x\")","v":7.0406512091657172E-2},{"$f":"IFERROR((AP151/(VLOOKUP($B151,Pupils,Pupils!$G$3,FALSE)+VLOOKUP($B151,Pupils,Pupils!$H$3,FALSE))), \"x\")","v":1240.8576132279143},{"$f":"IFERROR((VLOOKUP($B151,Funding,Funding!$CE$2,FALSE)), \"x\")","v":9444149},{"$f":"IFERROR((AS151/VLOOKUP($B151,Funding,Funding!$CR$2,FALSE)), \"x\")","v":7.3818414957445164E-2},{"$f":"IFERROR((AS151/(VLOOKUP($B151,Pupils,Pupils!$J$3,FALSE)+VLOOKUP($B151,Pupils,Pupils!$K$3,FALSE))), \"x\")","v":1235.4982993197279},{"$f":"IFERROR((VLOOKUP($B151,Funding,Funding!$BM$2,FALSE)), \"x\")","v":11293067.550000001},{"$f":"IFERROR((AV151/VLOOKUP($B151,Funding,Funding!$BY$2,FALSE)), \"x\")","v":9.8949120078255487E-2},{"$f":"IFERROR((AV151/(VLOOKUP($B151,Pupils,Pupils!$M$3,FALSE)+VLOOKUP($B151,Pupils,Pupils!$P$3,FALSE))), \"x\")","v":1497.555702161517},{"$f":"IFERROR((VLOOKUP($B151,Funding,Funding!$AQ$2,FALSE)), \"x\")","v":18404111},{"$f":"IFERROR((AY151/VLOOKUP($B151,Funding,Funding!$BE$2,FALSE)), \"x\")","v":0.1430003121372469},{"$f":"IFERROR((AY151/(VLOOKUP($B151,Pupils,Pupils!$R$3,FALSE)+VLOOKUP($B151,Pupils,Pupils!$U$3,FALSE))), \"x\")","v":2581.2217391304348},{"$f":"IFERROR((VLOOKUP($B151,Funding,Funding!$S$2,FALSE)), \"x\")","v":17182590},{"$f":"IFERROR((BB151/VLOOKUP($B151,Funding,Funding!$AH$2,FALSE)), \"x\")","v":0.13656444970163933},{"$f":"IFERROR((BB151/(VLOOKUP(B151,Pupils,Pupils!$W$3,FALSE)+VLOOKUP(B151,Pupils,Pupils!$Z$3,FALSE))), \"x\")","v":2492.3977371627502},{"$f":"IFERROR((VLOOKUP($B151,Funding,Funding!$GX$2,FALSE)), \"x\")","v":22860549.879999999},{"$f":"IFERROR((BE151/VLOOKUP($B151,Funding,Funding!$HC$2,FALSE)), \"x\")","v":0.16798729138839266},{"$f":"IFERROR((BE151/(VLOOKUP($B151,Pupils,Pupils!$D$3,FALSE)+VLOOKUP($B151,Pupils,Pupils!$E$3,FALSE))), \"x\")","v":3588.7833406593404},{"$f":"IFERROR((VLOOKUP($B151,Funding,Funding!$GP$2,FALSE)), \"x\")","v":23859747},{"$f":"IFERROR((BH151/VLOOKUP($B151,Funding,Funding!$GU$2,FALSE)), \"x\")","v":0.17556315920351609},{"$f":"IFERROR((BH151/(VLOOKUP($B151,Pupils,Pupils!$G$3,FALSE)+VLOOKUP($B151,Pupils,Pupils!$H$3,FALSE))), \"x\")","v":3118.1059853633037},{"$f":"IFERROR((VLOOKUP($B151,Funding,Funding!$GH$2,FALSE)), \"x\")","v":27617939.43},{"$f":"IFERROR((BK151/VLOOKUP($B151,Funding,Funding!$GM$2,FALSE)), \"x\")","v":0.21652377892106686},{"$f":"IFERROR((BK151/(VLOOKUP($B151,Pupils,Pupils!$J$3,FALSE)+VLOOKUP($B151,Pupils,Pupils!$K$3,FALSE))), \"x\")","v":3613.021903453689},{"$f":"IFERROR((VLOOKUP($B151,Funding,Funding!$FZ$2,FALSE)), \"x\")","v":26078452.609999999},{"$f":"IFERROR((BN151/VLOOKUP($B151,Funding,Funding!$GE$2,FALSE)), \"x\")","v":0.2396807740833129},{"$f":"IFERROR((BN151/(VLOOKUP($B151,Pupils,Pupils!$M$3,FALSE)+VLOOKUP($B151,Pupils,Pupils!$P$3,FALSE))), \"x\")","v":3458.2220673650709},{"$f":"IFERROR((VLOOKUP($B151,Funding,Funding!$FD$2,FALSE)), \"x\")","v":21480153.719999999},{"$f":"IFERROR((BQ151/VLOOKUP($B151,Funding,Funding!$FR$2,FALSE)), \"x\")","v":0.2317380079894906},{"$f":"IFERROR((BQ151/(VLOOKUP($B151,Pupils,Pupils!$R$3,FALSE)+VLOOKUP($B151,Pupils,Pupils!$U$3,FALSE))), \"x\")","v":3012.6442805049087},{"$f":"(VLOOKUP(B151,Funding,Funding!$HK$2,FALSE)+VLOOKUP(B151,Funding,Funding!$HL$2,FALSE)+VLOOKUP(B151,Funding,Funding!$HM$2,FALSE))/(VLOOKUP(B151,Funding,Funding!$HN$2,FALSE))","v":0.22374429223744291},{"$f":"IFERROR((VLOOKUP(B151,Other_data,Other!$D$3,FALSE)+VLOOKUP(B151,Other_data,Other!$E$3,FALSE)+VLOOKUP(B151,Other_data,Other!$F$3,FALSE)), \"x\")","v":700},{"$f":"(VLOOKUP(B151,Other_data,Other!$AK$3,FALSE)+VLOOKUP(B151,Other_data,Other!$AL$3,FALSE))/VLOOKUP(B151,Other_data,Other!$AJ$3,FALSE)","v":3.2856614474170882E-2},{"$f":"(VLOOKUP(B151,Other_data,Other!$AR$3,FALSE)+VLOOKUP(B151,Other_data,Other!$AS$3,FALSE))/VLOOKUP(B151,Other_data,Other!$AQ$3,FALSE)","v":4.2242974187296271E-2},{"$f":"VLOOKUP(B151,Other_data,Other!$AP$3,FALSE)/VLOOKUP(B151,Other_data,Other!$AJ$3,FALSE)","v":9.678214770065344E-3},{"$f":"VLOOKUP(B151,Other_data,Other!$AW$3,FALSE)/VLOOKUP(B151,Other_data,Other!$AQ$3,FALSE)","v":1.176107831909083E-2}]
[146,359,"Wigan",{"$f":"IFERROR((VLOOKUP($B152,Pupils,Pupils!$D$3,FALSE)/VLOOKUP($B152,Pupils,Pupils!$C$3,FALSE)), \"x\")","v":2.9865125240847785E-2},{"$f":"IFERROR((VLOOKUP($B152,Pupils,Pupils!$G$3,FALSE)/VLOOKUP($B152,Pupils,Pupils!$F$3,FALSE)),\"x\")","v":2.8789180378422433E-2},{"$f":"IFERROR((VLOOKUP($B152,Pupils,Pupils!$J$3,FALSE)/VLOOKUP($B152,Pupils,Pupils!$I$3,FALSE)), \"x\")","v":2.751196172248804E-2},{"$f":"IFERROR((VLOOKUP($B152,Pupils,Pupils!$M$3,FALSE)/VLOOKUP($B152,Pupils,Pupils!$L$3,FALSE)), \"x\")","v":2.7563518349745481E-2},{"$f":"IFERROR((VLOOKUP($B152,Pupils,Pupils!$R$3,FALSE)/VLOOKUP($B152,Pupils,Pupils!$Q$3,FALSE)), \"x\")","v":2.7438280504846615E-2},{"$f":"IFERROR((VLOOKUP($B152,Pupils,Pupils!$W$3,FALSE)/VLOOKUP($B152,Pupils,Pupils!$V$3,FALSE)), \"x\")","v":2.7687691662805831E-2},{"$f":"IFERROR(((VLOOKUP($B152,Pupils,Pupils!$D$3,FALSE)+VLOOKUP($B152,Pupils,Pupils!$E$3,FALSE))/VLOOKUP($B152,Pupils,Pupils!$C$3,FALSE)), \"x\")","v":0.20522420739183744},{"$f":"IFERROR(((VLOOKUP($B152,Pupils,Pupils!$G$3,FALSE)+VLOOKUP($B152,Pupils,Pupils!$H$3,FALSE))/VLOOKUP($B152,Pupils,Pupils!$F$3,FALSE)), \"x\")","v":0.20760369171127116},{"$f":"IFERROR(((VLOOKUP($B152,Pupils,Pupils!$J$3,FALSE)+VLOOKUP($B152,Pupils,Pupils!$K$3,FALSE))/VLOOKUP($B152,Pupils,Pupils!$I$3,FALSE)), \"x\")","v":0.21068137515505936},{"$f":"IFERROR(((VLOOKUP($B152,Pupils,Pupils!$M$3,FALSE)+VLOOKUP($B152,Pupils,Pupils!$P$3,FALSE))/VLOOKUP($B152,Pupils,Pupils!$L$3,FALSE)), \"x\")","v":0.21268366416964901},{"$f":"IFERROR(((VLOOKUP($B152,Pupils,Pupils!$R$3,FALSE)+VLOOKUP($B152,Pupils,Pupils!$U$3,FALSE))/VLOOKUP($B152,Pupils,Pupils!$Q$3,FALSE)), \"x\")","v":0.20542111217088482},{"$f":"IFERROR(((VLOOKUP($B152,Pupils,Pupils!$W$3,FALSE)+VLOOKUP($B152,Pupils,Pupils!$Z$3,FALSE))/VLOOKUP($B152,Pupils,Pupils!$V$3,FALSE)), \"x\")","v":0.1933064178083703},{"$f":"(SUM(INDEX(Pupils!$AB$7:$AB$159,MATCH($B152,Pupils!$A$7:$A$159,0)),INDEX(Pupils!$AC$7:$AC$159,MATCH($B152,Pupils!$A$7:$A$159,0)),INDEX(Pupils!$AD$7:$AD$159,MATCH($B152,Pupils!$A$7:$A$159,0)),INDEX(Pupils!$AE$7:$AE$159,MATCH($B152,Pupils!$A$7:$A$159,0))))/SUM(INDEX(Pupils!$AB$7:$AM$159,MATCH($B152,Pupils!$A$7:$A$159,0),0))","v":0.49730579254602603},{"$f":"SUM(INDEX(Pupils!$AF$7:$AF$159,MATCH($B152,Pupils!$A$7:$A$159,0)))/SUM(INDEX(Pupils!$AB$7:$AM$159,MATCH($B152,Pupils!$A$7:$A$159,0),0))","v":0.23394701392007183},{"$f":"SUM(INDEX(Pupils!$AG$7:$AG$159,MATCH($B152,Pupils!$A$7:$A$159,0)))/SUM(INDEX(Pupils!$AB$7:$AM$159,MATCH($B152,Pupils!$A$7:$A$159,0),0))","v":0.1147283340817243},{"$f":"(SUM(INDEX(Pupils!$AH$7:$AH$159,MATCH($B152,Pupils!$A$7:$A$159,0)),INDEX(Pupils!$AI$7:$AI$159,MATCH($B152,Pupils!$A$7:$A$159,0)),INDEX(Pupils!$AJ$7:$AJ$159,MATCH($B152,Pupils!$A$7:$A$159,0))))/SUM(INDEX(Pupils!$AB$7:$AM$159,MATCH($B152,Pupils!$A$7:$A$159,0),0))","v":2.918724741805119E-2},{"$f":"SUM(INDEX(Pupils!$AK$7:$AK$159,MATCH($B152,Pupils!$A$7:$A$159,0)))/SUM(INDEX(Pupils!$AB$7:$AM$159,MATCH($B152,Pupils!$A$7:$A$159,0),0))","v":2.6942074539739558E-2},{"$f":"SUM(INDEX(Pupils!$AL$7:$AL$159,MATCH($B152,Pupils!$A$7:$A$159,0)))/SUM(INDEX(Pupils!$AB$7:$AM$159,MATCH($B152,Pupils!$A$7:$A$159,0),0))","v":4.8944768747193536E-2},{"$f":"SUM(INDEX(Pupils!$AM$7:$AM$159,MATCH($B152,Pupils!$A$7:$A$159,0)))/SUM(INDEX(Pupils!$AB$7:$AM$159,MATCH($B152,Pupils!$A$7:$A$159,0),0))","v":4.8944768747193536E-2},{"$f":"(SUM(INDEX(Pupils!$BH$7:$BH$159,MATCH($B152,Pupils!$A$7:$A$159,0)),INDEX(Pupils!$BK$7:$BK$159,MATCH($B152,Pupils!$A$7:$A$159,0)),INDEX(Pupils!$BO$7:$BO$159,MATCH($B152,Pupils!$A$7:$A$159,0))))/SUM(INDEX(Pupils!$BH$7:$BS$159,MATCH($B152,Pupils!$A$7:$A$159,0),0))","v":0.47335423197492166},{"$f":"(SUM(INDEX(Pupils!$BL$7:$BL$159,MATCH($B152,Pupils!$A$7:$A$159,0)),INDEX(Pupils!$BM$7:$BM$159,MATCH($B152,Pupils!$A$7:$A$159,0)),INDEX(Pupils!$BP$7:$BP$159,MATCH($B152,Pupils!$A$7:$A$159,0))))/SUM(INDEX(Pupils!$BH$7:$BS$159,MATCH($B152,Pupils!$A$7:$A$159,0),0))","v":0.4945141065830721},{"$f":"(SUM(INDEX(Pupils!$BI$7:$BI$159,MATCH($B152,Pupils!$A$7:$A$159,0)),INDEX(Pupils!$BJ$7:$BJ$159,MATCH($B152,Pupils!$A$7:$A$159,0))))/SUM(INDEX(Pupils!$BH$7:$BS$159,MATCH($B152,Pupils!$A$7:$A$159,0),0))","v":1.8025078369905956E-2},{"$f":"(SUM(INDEX(Pupils!$BQ$7:$BQ$159,MATCH($B152,Pupils!$A$7:$A$159,0)),INDEX(Pupils!$BR$7:$BR$159,MATCH($B152,Pupils!$A$7:$A$159,0)),INDEX(Pupils!$BN$7:$BN$159,MATCH($B152,Pupils!$A$7:$A$159,0)),INDEX(Pupils!$BS$7:$BS$159,MATCH($B152,Pupils!$A$7:$A$159,0))))/SUM(INDEX(Pupils!$BH$7:$BS$159,MATCH($B152,Pupils!$A$7:$A$159,0),0))","v":1.4106583072100314E-2},{"$f":"IFERROR((VLOOKUP(B152,Funding,Funding!$C$2,FALSE)), \"x\")","v":22424383.179999996},{"$f":"IFERROR((AA152/VLOOKUP(B152,Funding,Funding!$D$2,FALSE)), \"x\")","v":0.10092716014151977},{"$f":"IFERROR((AA152/(VLOOKUP(B152,Pupils,Pupils!$M$3,FALSE)+VLOOKUP(B152,Pupils,Pupils!$P$3,FALSE))), \"x\")","v":2343.6855330267554},{"$f":"IFERROR((VLOOKUP(B152,Funding,Funding!$E$2,FALSE)), \"x\")","v":24197501.851754326},{"$f":"IFERROR((AD152/VLOOKUP(B152,Funding,Funding!$F$2,FALSE)), \"x\")","v":0.10637575090547602},{"$f":"IFERROR((AD152/(VLOOKUP(B152,Pupils,Pupils!$R$3,FALSE)+VLOOKUP(B152,Pupils,Pupils!$U$3,FALSE))), \"x\")","v":2612.8389862600502},{"$f":"IFERROR((VLOOKUP(B152,Funding,Funding!$G$2,FALSE)), \"x\")","v":25601486.773435127},{"$f":"IFERROR((AG152/VLOOKUP(B152,Funding,Funding!$H$2,FALSE)), \"x\")","v":0.1113633346869134},{"$f":"IFERROR((AG152/(VLOOKUP(B152,Pupils,Pupils!$W$3,FALSE)+VLOOKUP(B152,Pupils,Pupils!$Z$3,FALSE))), \"x\")","v":2921.8770570001288},{"$f":"IFERROR((VLOOKUP(B152,Funding,Funding!$I$2,FALSE)), \"x\")","v":25998093.129409183},{"$f":"IFERROR((AJ152/VLOOKUP(B152,Funding,Funding!$J$2,FALSE)), \"x\")","v":0.11346883580906675},null,{"$f":"IFERROR((VLOOKUP($B152,Funding,Funding!$EC$2,FALSE)), \"x\")","v":16903097.719999999},{"$f":"IFERROR((AM152/VLOOKUP($B152,Funding,Funding!$EU$2,FALSE)), \"x\")","v":7.7564374798580096E-2},{"$f":"IFERROR((AM152/(VLOOKUP($B152,Pupils,Pupils!$D$3,FALSE)+VLOOKUP($B152,Pupils,Pupils!$E$3,FALSE))), \"x\")","v":1803.3818115864717},{"$f":"IFERROR((VLOOKUP($B152,Funding,Funding!$DA$2,FALSE)), \"x\")","v":17253979},{"$f":"IFERROR((AP152/VLOOKUP($B152,Funding,Funding!$DT$2,FALSE)), \"x\")","v":7.486577300999156E-2},{"$f":"IFERROR((AP152/(VLOOKUP($B152,Pupils,Pupils!$G$3,FALSE)+VLOOKUP($B152,Pupils,Pupils!$H$3,FALSE))), \"x\")","v":1830.660901856764},{"$f":"IFERROR((VLOOKUP($B152,Funding,Funding!$CE$2,FALSE)), \"x\")","v":17482190},{"$f":"IFERROR((AS152/VLOOKUP($B152,Funding,Funding!$CR$2,FALSE)), \"x\")","v":7.5768534917496605E-2},{"$f":"IFERROR((AS152/(VLOOKUP($B152,Pupils,Pupils!$J$3,FALSE)+VLOOKUP($B152,Pupils,Pupils!$K$3,FALSE))), \"x\")","v":1838.1021974555777},{"$f":"IFERROR((VLOOKUP($B152,Funding,Funding!$BM$2,FALSE)), \"x\")","v":18256380.5},{"$f":"IFERROR((AV152/VLOOKUP($B152,Funding,Funding!$BY$2,FALSE)), \"x\")","v":8.1925637825069009E-2},{"$f":"IFERROR((AV152/(VLOOKUP($B152,Pupils,Pupils!$M$3,FALSE)+VLOOKUP($B152,Pupils,Pupils!$P$3,FALSE))), \"x\")","v":1908.0665238294314},{"$f":"IFERROR((VLOOKUP($B152,Funding,Funding!$AQ$2,FALSE)), \"x\")","v":24628583},{"$f":"IFERROR((AY152/VLOOKUP($B152,Funding,Funding!$BE$2,FALSE)), \"x\")","v":0.10617472821930554},{"$f":"IFERROR((AY152/(VLOOKUP($B152,Pupils,Pupils!$R$3,FALSE)+VLOOKUP($B152,Pupils,Pupils!$U$3,FALSE))), \"x\")","v":2659.3869992441423},{"$f":"IFERROR((VLOOKUP($B152,Funding,Funding!$S$2,FALSE)), \"x\")","v":22833584},{"$f":"IFERROR((BB152/VLOOKUP($B152,Funding,Funding!$AH$2,FALSE)), \"x\")","v":9.8493979600021486E-2},{"$f":"IFERROR((BB152/(VLOOKUP(B152,Pupils,Pupils!$W$3,FALSE)+VLOOKUP(B152,Pupils,Pupils!$Z$3,FALSE))), \"x\")","v":2605.9785437114815},{"$f":"IFERROR((VLOOKUP($B152,Funding,Funding!$GX$2,FALSE)), \"x\")","v":25430349.829999998},{"$f":"IFERROR((BE152/VLOOKUP($B152,Funding,Funding!$HC$2,FALSE)), \"x\")","v":0.10663027861368526},{"$f":"IFERROR((BE152/(VLOOKUP($B152,Pupils,Pupils!$D$3,FALSE)+VLOOKUP($B152,Pupils,Pupils!$E$3,FALSE))), \"x\")","v":2713.149453750133},{"$f":"IFERROR((VLOOKUP($B152,Funding,Funding!$GP$2,FALSE)), \"x\")","v":24952425.330000002},{"$f":"IFERROR((BH152/VLOOKUP($B152,Funding,Funding!$GU$2,FALSE)), \"x\")","v":0.10110946553375892},{"$f":"IFERROR((BH152/(VLOOKUP($B152,Pupils,Pupils!$G$3,FALSE)+VLOOKUP($B152,Pupils,Pupils!$H$3,FALSE))), \"x\")","v":2647.4721835543769},{"$f":"IFERROR((VLOOKUP($B152,Funding,Funding!$GH$2,FALSE)), \"x\")","v":25847952.379999999},{"$f":"IFERROR((BK152/VLOOKUP($B152,Funding,Funding!$GM$2,FALSE)), \"x\")","v":0.10448543755570788},{"$f":"IFERROR((BK152/(VLOOKUP($B152,Pupils,Pupils!$J$3,FALSE)+VLOOKUP($B152,Pupils,Pupils!$K$3,FALSE))), \"x\")","v":2717.6902933445481},{"$f":"IFERROR((VLOOKUP($B152,Funding,Funding!$FZ$2,FALSE)), \"x\")","v":25414634.619999997},{"$f":"IFERROR((BN152/VLOOKUP($B152,Funding,Funding!$GE$2,FALSE)), \"x\")","v":0.10963616256095073},{"$f":"IFERROR((BN152/(VLOOKUP($B152,Pupils,Pupils!$M$3,FALSE)+VLOOKUP($B152,Pupils,Pupils!$P$3,FALSE))), \"x\")","v":2656.2118122909696},{"$f":"IFERROR((VLOOKUP($B152,Funding,Funding!$FD$2,FALSE)), \"x\")","v":22780154},{"$f":"IFERROR((BQ152/VLOOKUP($B152,Funding,Funding!$FR$2,FALSE)), \"x\")","v":0.11226537889521146},{"$f":"IFERROR((BQ152/(VLOOKUP($B152,Pupils,Pupils!$R$3,FALSE)+VLOOKUP($B152,Pupils,Pupils!$U$3,FALSE))), \"x\")","v":2459.7941906921501},{"$f":"(VLOOKUP(B152,Funding,Funding!$HK$2,FALSE)+VLOOKUP(B152,Funding,Funding!$HL$2,FALSE)+VLOOKUP(B152,Funding,Funding!$HM$2,FALSE))/(VLOOKUP(B152,Funding,Funding!$HN$2,FALSE))","v":0.22222222222222221},{"$f":"IFERROR((VLOOKUP(B152,Other_data,Other!$D$3,FALSE)+VLOOKUP(B152,Other_data,Other!$E$3,FALSE)+VLOOKUP(B152,Other_data,Other!$F$3,FALSE)), \"x\")","v":1810},{"$f":"(VLOOKUP(B152,Other_data,Other!$AK$3,FALSE)+VLOOKUP(B152,Other_data,Other!$AL$3,FALSE))/VLOOKUP(B152,Other_data,Other!$AJ$3,FALSE)","v":3.7457926483820445E-2},{"$f":"(VLOOKUP(B152,Other_data,Other!$AR$3,FALSE)+VLOOKUP(B152,Other_data,Other!$AS$3,FALSE))/VLOOKUP(B152,Other_data,Other!$AQ$3,FALSE)","v":5.5489794150763633E-2},{"$f":"VLOOKUP(B152,Other_data,Other!$AP$3,FALSE)/VLOOKUP(B152,Other_data,Other!$AJ$3,FALSE)","v":5.915286433165595E-3},{"$f":"VLOOKUP(B152,Other_data,Other!$AW$3,FALSE)/VLOOKUP(B152,Other_data,Other!$AQ$3,FALSE)","v":1.1115281346536941E-2}]
[147,865,"Wiltshire",{"$f":"IFERROR((VLOOKUP($B153,Pupils,Pupils!$D$3,FALSE)/VLOOKUP($B153,Pupils,Pupils!$C$3,FALSE)), \"x\")","v":2.3404018478321367E-2},{"$f":"IFERROR((VLOOKUP($B153,Pupils,Pupils!$G$3,FALSE)/VLOOKUP($B153,Pupils,Pupils!$F$3,FALSE)),\"x\")","v":2.3519676867409047E-2},{"$f":"IFERROR((VLOOKUP($B153,Pupils,Pupils!$J$3,FALSE)/VLOOKUP($B153,Pupils,Pupils!$I$3,FALSE)), \"x\")","v":2.3319307035197096E-2},{"$f":"IFERROR((VLOOKUP($B153,Pupils,Pupils!$M$3,FALSE)/VLOOKUP($B153,Pupils,Pupils!$L$3,FALSE)), \"x\")","v":2.3976878937104536E-2},{"$f":"IFERROR((VLOOKUP($B153,Pupils,Pupils!$R$3,FALSE)/VLOOKUP($B153,Pupils,Pupils!$Q$3,FALSE)), \"x\")","v":2.4447177881524139E-2},{"$f":"IFERROR((VLOOKUP($B153,Pupils,Pupils!$W$3,FALSE)/VLOOKUP($B153,Pupils,Pupils!$V$3,FALSE)), \"x\")","v":2.4811294380766007E-2},{"$f":"IFERROR(((VLOOKUP($B153,Pupils,Pupils!$D$3,FALSE)+VLOOKUP($B153,Pupils,Pupils!$E$3,FALSE))/VLOOKUP($B153,Pupils,Pupils!$C$3,FALSE)), \"x\")","v":0.18515890243223687},{"$f":"IFERROR(((VLOOKUP($B153,Pupils,Pupils!$G$3,FALSE)+VLOOKUP($B153,Pupils,Pupils!$H$3,FALSE))/VLOOKUP($B153,Pupils,Pupils!$F$3,FALSE)), \"x\")","v":0.18927940310229727},{"$f":"IFERROR(((VLOOKUP($B153,Pupils,Pupils!$J$3,FALSE)+VLOOKUP($B153,Pupils,Pupils!$K$3,FALSE))/VLOOKUP($B153,Pupils,Pupils!$I$3,FALSE)), \"x\")","v":0.1915363722082272},{"$f":"IFERROR(((VLOOKUP($B153,Pupils,Pupils!$M$3,FALSE)+VLOOKUP($B153,Pupils,Pupils!$P$3,FALSE))/VLOOKUP($B153,Pupils,Pupils!$L$3,FALSE)), \"x\")","v":0.18986489330359022},{"$f":"IFERROR(((VLOOKUP($B153,Pupils,Pupils!$R$3,FALSE)+VLOOKUP($B153,Pupils,Pupils!$U$3,FALSE))/VLOOKUP($B153,Pupils,Pupils!$Q$3,FALSE)), \"x\")","v":0.18088675183808112},{"$f":"IFERROR(((VLOOKUP($B153,Pupils,Pupils!$W$3,FALSE)+VLOOKUP($B153,Pupils,Pupils!$Z$3,FALSE))/VLOOKUP($B153,Pupils,Pupils!$V$3,FALSE)), \"x\")","v":0.17776069331842326},{"$f":"(SUM(INDEX(Pupils!$AB$7:$AB$159,MATCH($B153,Pupils!$A$7:$A$159,0)),INDEX(Pupils!$AC$7:$AC$159,MATCH($B153,Pupils!$A$7:$A$159,0)),INDEX(Pupils!$AD$7:$AD$159,MATCH($B153,Pupils!$A$7:$A$159,0)),INDEX(Pupils!$AE$7:$AE$159,MATCH($B153,Pupils!$A$7:$A$159,0))))/SUM(INDEX(Pupils!$AB$7:$AM$159,MATCH($B153,Pupils!$A$7:$A$159,0),0))","v":0.33208955223880599},{"$f":"SUM(INDEX(Pupils!$AF$7:$AF$159,MATCH($B153,Pupils!$A$7:$A$159,0)))/SUM(INDEX(Pupils!$AB$7:$AM$159,MATCH($B153,Pupils!$A$7:$A$159,0),0))","v":0.20451314854299929},{"$f":"SUM(INDEX(Pupils!$AG$7:$AG$159,MATCH($B153,Pupils!$A$7:$A$159,0)))/SUM(INDEX(Pupils!$AB$7:$AM$159,MATCH($B153,Pupils!$A$7:$A$159,0),0))","v":0.21570717839374556},{"$f":"(SUM(INDEX(Pupils!$AH$7:$AH$159,MATCH($B153,Pupils!$A$7:$A$159,0)),INDEX(Pupils!$AI$7:$AI$159,MATCH($B153,Pupils!$A$7:$A$159,0)),INDEX(Pupils!$AJ$7:$AJ$159,MATCH($B153,Pupils!$A$7:$A$159,0))))/SUM(INDEX(Pupils!$AB$7:$AM$159,MATCH($B153,Pupils!$A$7:$A$159,0),0))","v":2.7007818052594171E-2},{"$f":"SUM(INDEX(Pupils!$AK$7:$AK$159,MATCH($B153,Pupils!$A$7:$A$159,0)))/SUM(INDEX(Pupils!$AB$7:$AM$159,MATCH($B153,Pupils!$A$7:$A$159,0),0))","v":2.7540867093105898E-2},{"$f":"SUM(INDEX(Pupils!$AL$7:$AL$159,MATCH($B153,Pupils!$A$7:$A$159,0)))/SUM(INDEX(Pupils!$AB$7:$AM$159,MATCH($B153,Pupils!$A$7:$A$159,0),0))","v":0.12491115849324805},{"$f":"SUM(INDEX(Pupils!$AM$7:$AM$159,MATCH($B153,Pupils!$A$7:$A$159,0)))/SUM(INDEX(Pupils!$AB$7:$AM$159,MATCH($B153,Pupils!$A$7:$A$159,0),0))","v":6.8230277185501065E-2},{"$f":"(SUM(INDEX(Pupils!$BH$7:$BH$159,MATCH($B153,Pupils!$A$7:$A$159,0)),INDEX(Pupils!$BK$7:$BK$159,MATCH($B153,Pupils!$A$7:$A$159,0)),INDEX(Pupils!$BO$7:$BO$159,MATCH($B153,Pupils!$A$7:$A$159,0))))/SUM(INDEX(Pupils!$BH$7:$BS$159,MATCH($B153,Pupils!$A$7:$A$159,0),0))","v":0.49543746645195919},{"$f":"(SUM(INDEX(Pupils!$BL$7:$BL$159,MATCH($B153,Pupils!$A$7:$A$159,0)),INDEX(Pupils!$BM$7:$BM$159,MATCH($B153,Pupils!$A$7:$A$159,0)),INDEX(Pupils!$BP$7:$BP$159,MATCH($B153,Pupils!$A$7:$A$159,0))))/SUM(INDEX(Pupils!$BH$7:$BS$159,MATCH($B153,Pupils!$A$7:$A$159,0),0))","v":0.36017176596886741},{"$f":"(SUM(INDEX(Pupils!$BI$7:$BI$159,MATCH($B153,Pupils!$A$7:$A$159,0)),INDEX(Pupils!$BJ$7:$BJ$159,MATCH($B153,Pupils!$A$7:$A$159,0))))/SUM(INDEX(Pupils!$BH$7:$BS$159,MATCH($B153,Pupils!$A$7:$A$159,0),0))","v":0.12560386473429952},{"$f":"(SUM(INDEX(Pupils!$BQ$7:$BQ$159,MATCH($B153,Pupils!$A$7:$A$159,0)),INDEX(Pupils!$BR$7:$BR$159,MATCH($B153,Pupils!$A$7:$A$159,0)),INDEX(Pupils!$BN$7:$BN$159,MATCH($B153,Pupils!$A$7:$A$159,0)),INDEX(Pupils!$BS$7:$BS$159,MATCH($B153,Pupils!$A$7:$A$159,0))))/SUM(INDEX(Pupils!$BH$7:$BS$159,MATCH($B153,Pupils!$A$7:$A$159,0),0))","v":1.878690284487386E-2},{"$f":"IFERROR((VLOOKUP(B153,Funding,Funding!$C$2,FALSE)), \"x\")","v":31395685.199999999},{"$f":"IFERROR((AA153/VLOOKUP(B153,Funding,Funding!$D$2,FALSE)), \"x\")","v":0.1067317921537672},{"$f":"IFERROR((AA153/(VLOOKUP(B153,Pupils,Pupils!$M$3,FALSE)+VLOOKUP(B153,Pupils,Pupils!$P$3,FALSE))), \"x\")","v":2319.935358013744},{"$f":"IFERROR((VLOOKUP(B153,Funding,Funding!$E$2,FALSE)), \"x\")","v":35997073.408255503},{"$f":"IFERROR((AD153/VLOOKUP(B153,Funding,Funding!$F$2,FALSE)), \"x\")","v":0.11875784402508348},{"$f":"IFERROR((AD153/(VLOOKUP(B153,Pupils,Pupils!$R$3,FALSE)+VLOOKUP(B153,Pupils,Pupils!$U$3,FALSE))), \"x\")","v":2781.6299674102079},{"$f":"IFERROR((VLOOKUP(B153,Funding,Funding!$G$2,FALSE)), \"x\")","v":37111481.597259954},{"$f":"IFERROR((AG153/VLOOKUP(B153,Funding,Funding!$H$2,FALSE)), \"x\")","v":0.1215063277380785},{"$f":"IFERROR((AG153/(VLOOKUP(B153,Pupils,Pupils!$W$3,FALSE)+VLOOKUP(B153,Pupils,Pupils!$Z$3,FALSE))), \"x\")","v":2918.2575762569754},{"$f":"IFERROR((VLOOKUP(B153,Funding,Funding!$I$2,FALSE)), \"x\")","v":37665358.355789915},{"$f":"IFERROR((AJ153/VLOOKUP(B153,Funding,Funding!$J$2,FALSE)), \"x\")","v":0.1213445823317974},null,{"$f":"IFERROR((VLOOKUP($B153,Funding,Funding!$EC$2,FALSE)), \"x\")","v":23786713.309999999},{"$f":"IFERROR((AM153/VLOOKUP($B153,Funding,Funding!$EU$2,FALSE)), \"x\")","v":7.6755684816149083E-2},{"$f":"IFERROR((AM153/(VLOOKUP($B153,Pupils,Pupils!$D$3,FALSE)+VLOOKUP($B153,Pupils,Pupils!$E$3,FALSE))), \"x\")","v":1787.5338776583751},{"$f":"IFERROR((VLOOKUP($B153,Funding,Funding!$DA$2,FALSE)), \"x\")","v":24967331.798739996},{"$f":"IFERROR((AP153/VLOOKUP($B153,Funding,Funding!$DT$2,FALSE)), \"x\")","v":7.6123514637939593E-2},{"$f":"IFERROR((AP153/(VLOOKUP($B153,Pupils,Pupils!$G$3,FALSE)+VLOOKUP($B153,Pupils,Pupils!$H$3,FALSE))), \"x\")","v":1849.9801273518076},{"$f":"IFERROR((VLOOKUP($B153,Funding,Funding!$CE$2,FALSE)), \"x\")","v":23474516.606039997},{"$f":"IFERROR((AS153/VLOOKUP($B153,Funding,Funding!$CR$2,FALSE)), \"x\")","v":8.4191422859445864E-2},{"$f":"IFERROR((AS153/(VLOOKUP($B153,Pupils,Pupils!$J$3,FALSE)+VLOOKUP($B153,Pupils,Pupils!$K$3,FALSE))), \"x\")","v":1724.7991628243935},{"$f":"IFERROR((VLOOKUP($B153,Funding,Funding!$BM$2,FALSE)), \"x\")","v":19446189.32},{"$f":"IFERROR((AV153/VLOOKUP($B153,Funding,Funding!$BY$2,FALSE)), \"x\")","v":8.3033690370386229E-2},{"$f":"IFERROR((AV153/(VLOOKUP($B153,Pupils,Pupils!$M$3,FALSE)+VLOOKUP($B153,Pupils,Pupils!$P$3,FALSE))), \"x\")","v":1436.9459336436857},{"$f":"IFERROR((VLOOKUP($B153,Funding,Funding!$AQ$2,FALSE)), \"x\")","v":27628528},{"$f":"IFERROR((AY153/VLOOKUP($B153,Funding,Funding!$BE$2,FALSE)), \"x\")","v":8.6638095289283776E-2},{"$f":"IFERROR((AY153/(VLOOKUP($B153,Pupils,Pupils!$R$3,FALSE)+VLOOKUP($B153,Pupils,Pupils!$U$3,FALSE))), \"x\")","v":2134.9608221930298},{"$f":"IFERROR((VLOOKUP($B153,Funding,Funding!$S$2,FALSE)), \"x\")","v":29231185},{"$f":"IFERROR((BB153/VLOOKUP($B153,Funding,Funding!$AH$2,FALSE)), \"x\")","v":9.1365433271233823E-2},{"$f":"IFERROR((BB153/(VLOOKUP(B153,Pupils,Pupils!$W$3,FALSE)+VLOOKUP(B153,Pupils,Pupils!$Z$3,FALSE))), \"x\")","v":2298.5912557993238},{"$f":"IFERROR((VLOOKUP($B153,Funding,Funding!$GX$2,FALSE)), \"x\")","v":34356596},{"$f":"IFERROR((BE153/VLOOKUP($B153,Funding,Funding!$HC$2,FALSE)), \"x\")","v":0.10098058917174083},{"$f":"IFERROR((BE153/(VLOOKUP($B153,Pupils,Pupils!$D$3,FALSE)+VLOOKUP($B153,Pupils,Pupils!$E$3,FALSE))), \"x\")","v":2581.8438415871346},{"$f":"IFERROR((VLOOKUP($B153,Funding,Funding!$GP$2,FALSE)), \"x\")","v":46139089},{"$f":"IFERROR((BH153/VLOOKUP($B153,Funding,Funding!$GU$2,FALSE)), \"x\")","v":0.13335911650858415},{"$f":"IFERROR((BH153/(VLOOKUP($B153,Pupils,Pupils!$G$3,FALSE)+VLOOKUP($B153,Pupils,Pupils!$H$3,FALSE))), \"x\")","v":3418.7232513337285},{"$f":"IFERROR((VLOOKUP($B153,Funding,Funding!$GH$2,FALSE)), \"x\")","v":43703631.43},{"$f":"IFERROR((BK153/VLOOKUP($B153,Funding,Funding!$GM$2,FALSE)), \"x\")","v":0.16307176730456338},{"$f":"IFERROR((BK153/(VLOOKUP($B153,Pupils,Pupils!$J$3,FALSE)+VLOOKUP($B153,Pupils,Pupils!$K$3,FALSE))), \"x\")","v":3211.1411778104334},{"$f":"IFERROR((VLOOKUP($B153,Funding,Funding!$FZ$2,FALSE)), \"x\")","v":37874222.019999996},{"$f":"IFERROR((BN153/VLOOKUP($B153,Funding,Funding!$GE$2,FALSE)), \"x\")","v":0.16758855231616629},{"$f":"IFERROR((BN153/(VLOOKUP($B153,Pupils,Pupils!$M$3,FALSE)+VLOOKUP($B153,Pupils,Pupils!$P$3,FALSE))), \"x\")","v":2798.6567664228178},{"$f":"IFERROR((VLOOKUP($B153,Funding,Funding!$FD$2,FALSE)), \"x\")","v":27475960.079999998},{"$f":"IFERROR((BQ153/VLOOKUP($B153,Funding,Funding!$FR$2,FALSE)), \"x\")","v":0.13695495578022282},{"$f":"IFERROR((BQ153/(VLOOKUP($B153,Pupils,Pupils!$R$3,FALSE)+VLOOKUP($B153,Pupils,Pupils!$U$3,FALSE))), \"x\")","v":2123.1713221543928},{"$f":"(VLOOKUP(B153,Funding,Funding!$HK$2,FALSE)+VLOOKUP(B153,Funding,Funding!$HL$2,FALSE)+VLOOKUP(B153,Funding,Funding!$HM$2,FALSE))/(VLOOKUP(B153,Funding,Funding!$HN$2,FALSE))","v":0.22940776038121172},{"$f":"IFERROR((VLOOKUP(B153,Other_data,Other!$D$3,FALSE)+VLOOKUP(B153,Other_data,Other!$E$3,FALSE)+VLOOKUP(B153,Other_data,Other!$F$3,FALSE)), \"x\")","v":2810},{"$f":"(VLOOKUP(B153,Other_data,Other!$AK$3,FALSE)+VLOOKUP(B153,Other_data,Other!$AL$3,FALSE))/VLOOKUP(B153,Other_data,Other!$AJ$3,FALSE)","v":3.5211895579285286E-2},{"$f":"(VLOOKUP(B153,Other_data,Other!$AR$3,FALSE)+VLOOKUP(B153,Other_data,Other!$AS$3,FALSE))/VLOOKUP(B153,Other_data,Other!$AQ$3,FALSE)","v":4.9801582697082916E-2},{"$f":"VLOOKUP(B153,Other_data,Other!$AP$3,FALSE)/VLOOKUP(B153,Other_data,Other!$AJ$3,FALSE)","v":4.2245357469291303E-3},{"$f":"VLOOKUP(B153,Other_data,Other!$AW$3,FALSE)/VLOOKUP(B153,Other_data,Other!$AQ$3,FALSE)","v":9.0506138172704274E-3}]
[148,868,"Windsor and Maidenhead",{"$f":"IFERROR((VLOOKUP($B154,Pupils,Pupils!$D$3,FALSE)/VLOOKUP($B154,Pupils,Pupils!$C$3,FALSE)), \"x\")","v":2.6097081141847674E-2},{"$f":"IFERROR((VLOOKUP($B154,Pupils,Pupils!$G$3,FALSE)/VLOOKUP($B154,Pupils,Pupils!$F$3,FALSE)),\"x\")","v":2.6168668966337575E-2},{"$f":"IFERROR((VLOOKUP($B154,Pupils,Pupils!$J$3,FALSE)/VLOOKUP($B154,Pupils,Pupils!$I$3,FALSE)), \"x\")","v":2.6375077688004973E-2},{"$f":"IFERROR((VLOOKUP($B154,Pupils,Pupils!$M$3,FALSE)/VLOOKUP($B154,Pupils,Pupils!$L$3,FALSE)), \"x\")","v":2.6894865525672371E-2},{"$f":"IFERROR((VLOOKUP($B154,Pupils,Pupils!$R$3,FALSE)/VLOOKUP($B154,Pupils,Pupils!$Q$3,FALSE)), \"x\")","v":2.716313139020296E-2},{"$f":"IFERROR((VLOOKUP($B154,Pupils,Pupils!$W$3,FALSE)/VLOOKUP($B154,Pupils,Pupils!$V$3,FALSE)), \"x\")","v":2.7331920048455482E-2},{"$f":"IFERROR(((VLOOKUP($B154,Pupils,Pupils!$D$3,FALSE)+VLOOKUP($B154,Pupils,Pupils!$E$3,FALSE))/VLOOKUP($B154,Pupils,Pupils!$C$3,FALSE)), \"x\")","v":0.18316136026016783},{"$f":"IFERROR(((VLOOKUP($B154,Pupils,Pupils!$G$3,FALSE)+VLOOKUP($B154,Pupils,Pupils!$H$3,FALSE))/VLOOKUP($B154,Pupils,Pupils!$F$3,FALSE)), \"x\")","v":0.20851671226358987},{"$f":"IFERROR(((VLOOKUP($B154,Pupils,Pupils!$J$3,FALSE)+VLOOKUP($B154,Pupils,Pupils!$K$3,FALSE))/VLOOKUP($B154,Pupils,Pupils!$I$3,FALSE)), \"x\")","v":0.20944686140459912},{"$f":"IFERROR(((VLOOKUP($B154,Pupils,Pupils!$M$3,FALSE)+VLOOKUP($B154,Pupils,Pupils!$P$3,FALSE))/VLOOKUP($B154,Pupils,Pupils!$L$3,FALSE)), \"x\")","v":0.19835448441805409},{"$f":"IFERROR(((VLOOKUP($B154,Pupils,Pupils!$R$3,FALSE)+VLOOKUP($B154,Pupils,Pupils!$U$3,FALSE))/VLOOKUP($B154,Pupils,Pupils!$Q$3,FALSE)), \"x\")","v":0.19136273462536244},{"$f":"IFERROR(((VLOOKUP($B154,Pupils,Pupils!$W$3,FALSE)+VLOOKUP($B154,Pupils,Pupils!$Z$3,FALSE))/VLOOKUP($B154,Pupils,Pupils!$V$3,FALSE)), \"x\")","v":0.18515293761356755},{"$f":"(SUM(INDEX(Pupils!$AB$7:$AB$159,MATCH($B154,Pupils!$A$7:$A$159,0)),INDEX(Pupils!$AC$7:$AC$159,MATCH($B154,Pupils!$A$7:$A$159,0)),INDEX(Pupils!$AD$7:$AD$159,MATCH($B154,Pupils!$A$7:$A$159,0)),INDEX(Pupils!$AE$7:$AE$159,MATCH($B154,Pupils!$A$7:$A$159,0))))/SUM(INDEX(Pupils!$AB$7:$AM$159,MATCH($B154,Pupils!$A$7:$A$159,0),0))","v":0.30478192327903308},{"$f":"SUM(INDEX(Pupils!$AF$7:$AF$159,MATCH($B154,Pupils!$A$7:$A$159,0)))/SUM(INDEX(Pupils!$AB$7:$AM$159,MATCH($B154,Pupils!$A$7:$A$159,0),0))","v":0.18602207041513399},{"$f":"SUM(INDEX(Pupils!$AG$7:$AG$159,MATCH($B154,Pupils!$A$7:$A$159,0)))/SUM(INDEX(Pupils!$AB$7:$AM$159,MATCH($B154,Pupils!$A$7:$A$159,0),0))","v":0.21071991592222805},{"$f":"(SUM(INDEX(Pupils!$AH$7:$AH$159,MATCH($B154,Pupils!$A$7:$A$159,0)),INDEX(Pupils!$AI$7:$AI$159,MATCH($B154,Pupils!$A$7:$A$159,0)),INDEX(Pupils!$AJ$7:$AJ$159,MATCH($B154,Pupils!$A$7:$A$159,0))))/SUM(INDEX(Pupils!$AB$7:$AM$159,MATCH($B154,Pupils!$A$7:$A$159,0),0))","v":4.8870204939569103E-2},{"$f":"SUM(INDEX(Pupils!$AK$7:$AK$159,MATCH($B154,Pupils!$A$7:$A$159,0)))/SUM(INDEX(Pupils!$AB$7:$AM$159,MATCH($B154,Pupils!$A$7:$A$159,0),0))","v":4.4140830267997901E-2},{"$f":"SUM(INDEX(Pupils!$AL$7:$AL$159,MATCH($B154,Pupils!$A$7:$A$159,0)))/SUM(INDEX(Pupils!$AB$7:$AM$159,MATCH($B154,Pupils!$A$7:$A$159,0),0))","v":0.1487125591171834},{"$f":"SUM(INDEX(Pupils!$AM$7:$AM$159,MATCH($B154,Pupils!$A$7:$A$159,0)))/SUM(INDEX(Pupils!$AB$7:$AM$159,MATCH($B154,Pupils!$A$7:$A$159,0),0))","v":5.6752496058854442E-2},{"$f":"(SUM(INDEX(Pupils!$BH$7:$BH$159,MATCH($B154,Pupils!$A$7:$A$159,0)),INDEX(Pupils!$BK$7:$BK$159,MATCH($B154,Pupils!$A$7:$A$159,0)),INDEX(Pupils!$BO$7:$BO$159,MATCH($B154,Pupils!$A$7:$A$159,0))))/SUM(INDEX(Pupils!$BH$7:$BS$159,MATCH($B154,Pupils!$A$7:$A$159,0),0))","v":0.55508474576271183},{"$f":"(SUM(INDEX(Pupils!$BL$7:$BL$159,MATCH($B154,Pupils!$A$7:$A$159,0)),INDEX(Pupils!$BM$7:$BM$159,MATCH($B154,Pupils!$A$7:$A$159,0)),INDEX(Pupils!$BP$7:$BP$159,MATCH($B154,Pupils!$A$7:$A$159,0))))/SUM(INDEX(Pupils!$BH$7:$BS$159,MATCH($B154,Pupils!$A$7:$A$159,0),0))","v":0.3940677966101695},{"$f":"(SUM(INDEX(Pupils!$BI$7:$BI$159,MATCH($B154,Pupils!$A$7:$A$159,0)),INDEX(Pupils!$BJ$7:$BJ$159,MATCH($B154,Pupils!$A$7:$A$159,0))))/SUM(INDEX(Pupils!$BH$7:$BS$159,MATCH($B154,Pupils!$A$7:$A$159,0),0))","v":4.519774011299435E-2},{"$f":"(SUM(INDEX(Pupils!$BQ$7:$BQ$159,MATCH($B154,Pupils!$A$7:$A$159,0)),INDEX(Pupils!$BR$7:$BR$159,MATCH($B154,Pupils!$A$7:$A$159,0)),INDEX(Pupils!$BN$7:$BN$159,MATCH($B154,Pupils!$A$7:$A$159,0)),INDEX(Pupils!$BS$7:$BS$159,MATCH($B154,Pupils!$A$7:$A$159,0))))/SUM(INDEX(Pupils!$BH$7:$BS$159,MATCH($B154,Pupils!$A$7:$A$159,0),0))","v":5.6497175141242938E-3},{"$f":"IFERROR((VLOOKUP(B154,Funding,Funding!$C$2,FALSE)), \"x\")","v":14874226.220000001},{"$f":"IFERROR((AA154/VLOOKUP(B154,Funding,Funding!$D$2,FALSE)), \"x\")","v":0.15411846988807332},{"$f":"IFERROR((AA154/(VLOOKUP(B154,Pupils,Pupils!$M$3,FALSE)+VLOOKUP(B154,Pupils,Pupils!$P$3,FALSE))), \"x\")","v":2910.2379612600275},{"$f":"IFERROR((VLOOKUP(B154,Funding,Funding!$E$2,FALSE)), \"x\")","v":15140938.356518103},{"$f":"IFERROR((AD154/VLOOKUP(B154,Funding,Funding!$F$2,FALSE)), \"x\")","v":0.15171884246609213},{"$f":"IFERROR((AD154/(VLOOKUP(B154,Pupils,Pupils!$R$3,FALSE)+VLOOKUP(B154,Pupils,Pupils!$U$3,FALSE))), \"x\")","v":3018.5283804860651},{"$f":"IFERROR((VLOOKUP(B154,Funding,Funding!$G$2,FALSE)), \"x\")","v":15774452.234182134},{"$f":"IFERROR((AG154/VLOOKUP(B154,Funding,Funding!$H$2,FALSE)), \"x\")","v":0.15607641572215813},{"$f":"IFERROR((AG154/(VLOOKUP(B154,Pupils,Pupils!$W$3,FALSE)+VLOOKUP(B154,Pupils,Pupils!$Z$3,FALSE))), \"x\")","v":3225.1998025316161},{"$f":"IFERROR((VLOOKUP(B154,Funding,Funding!$I$2,FALSE)), \"x\")","v":16053367.736226523},{"$f":"IFERROR((AJ154/VLOOKUP(B154,Funding,Funding!$J$2,FALSE)), \"x\")","v":0.15378556669565968},null,{"$f":"IFERROR((VLOOKUP($B154,Funding,Funding!$EC$2,FALSE)), \"x\")","v":10129774},{"$f":"IFERROR((AM154/VLOOKUP($B154,Funding,Funding!$EU$2,FALSE)), \"x\")","v":0.10222877423913161},{"$f":"IFERROR((AM154/(VLOOKUP($B154,Pupils,Pupils!$D$3,FALSE)+VLOOKUP($B154,Pupils,Pupils!$E$3,FALSE))), \"x\")","v":2220.4677772906621},{"$f":"IFERROR((VLOOKUP($B154,Funding,Funding!$DA$2,FALSE)), \"x\")","v":11226948},{"$f":"IFERROR((AP154/VLOOKUP($B154,Funding,Funding!$DT$2,FALSE)), \"x\")","v":0.10631130541266913},{"$f":"IFERROR((AP154/(VLOOKUP($B154,Pupils,Pupils!$G$3,FALSE)+VLOOKUP($B154,Pupils,Pupils!$H$3,FALSE))), \"x\")","v":2134.8066172276099},{"$f":"IFERROR((VLOOKUP($B154,Funding,Funding!$CE$2,FALSE)), \"x\")","v":10879458},{"$f":"IFERROR((AS154/VLOOKUP($B154,Funding,Funding!$CR$2,FALSE)), \"x\")","v":0.10269786310481888},{"$f":"IFERROR((AS154/(VLOOKUP($B154,Pupils,Pupils!$J$3,FALSE)+VLOOKUP($B154,Pupils,Pupils!$K$3,FALSE))), \"x\")","v":2017.7036350148369},{"$f":"IFERROR((VLOOKUP($B154,Funding,Funding!$BM$2,FALSE)), \"x\")","v":12231624.890000001},{"$f":"IFERROR((AV154/VLOOKUP($B154,Funding,Funding!$BY$2,FALSE)), \"x\")","v":0.12393001687525292},{"$f":"IFERROR((AV154/(VLOOKUP($B154,Pupils,Pupils!$M$3,FALSE)+VLOOKUP($B154,Pupils,Pupils!$P$3,FALSE))), \"x\")","v":2393.1960262179614},{"$f":"IFERROR((VLOOKUP($B154,Funding,Funding!$AQ$2,FALSE)), \"x\")","v":14960277},{"$f":"IFERROR((AY154/VLOOKUP($B154,Funding,Funding!$BE$2,FALSE)), \"x\")","v":0.13717701405848554},{"$f":"IFERROR((AY154/(VLOOKUP($B154,Pupils,Pupils!$R$3,FALSE)+VLOOKUP($B154,Pupils,Pupils!$U$3,FALSE))), \"x\")","v":2982.5113636363635},{"$f":"IFERROR((VLOOKUP($B154,Funding,Funding!$S$2,FALSE)), \"x\")","v":14886281},{"$f":"IFERROR((BB154/VLOOKUP($B154,Funding,Funding!$AH$2,FALSE)), \"x\")","v":0.13647319848900269},{"$f":"IFERROR((BB154/(VLOOKUP(B154,Pupils,Pupils!$W$3,FALSE)+VLOOKUP(B154,Pupils,Pupils!$Z$3,FALSE))), \"x\")","v":3043.6068288693518},{"$f":"IFERROR((VLOOKUP($B154,Funding,Funding!$GX$2,FALSE)), \"x\")","v":16350443},{"$f":"IFERROR((BE154/VLOOKUP($B154,Funding,Funding!$HC$2,FALSE)), \"x\")","v":0.15396271339185938},{"$f":"IFERROR((BE154/(VLOOKUP($B154,Pupils,Pupils!$D$3,FALSE)+VLOOKUP($B154,Pupils,Pupils!$E$3,FALSE))), \"x\")","v":3584.05151249452},{"$f":"IFERROR((VLOOKUP($B154,Funding,Funding!$GP$2,FALSE)), \"x\")","v":18865858.690000001},{"$f":"IFERROR((BH154/VLOOKUP($B154,Funding,Funding!$GU$2,FALSE)), \"x\")","v":0.16703176266668457},{"$f":"IFERROR((BH154/(VLOOKUP($B154,Pupils,Pupils!$G$3,FALSE)+VLOOKUP($B154,Pupils,Pupils!$H$3,FALSE))), \"x\")","v":3587.3471553527288},{"$f":"IFERROR((VLOOKUP($B154,Funding,Funding!$GH$2,FALSE)), \"x\")","v":18382355.649999999},{"$f":"IFERROR((BK154/VLOOKUP($B154,Funding,Funding!$GM$2,FALSE)), \"x\")","v":0.16550400985178931},{"$f":"IFERROR((BK154/(VLOOKUP($B154,Pupils,Pupils!$J$3,FALSE)+VLOOKUP($B154,Pupils,Pupils!$K$3,FALSE))), \"x\")","v":3409.1905879080114},{"$f":"IFERROR((VLOOKUP($B154,Funding,Funding!$FZ$2,FALSE)), \"x\")","v":16639245.370000001},{"$f":"IFERROR((BN154/VLOOKUP($B154,Funding,Funding!$GE$2,FALSE)), \"x\")","v":0.17586388367584341},{"$f":"IFERROR((BN154/(VLOOKUP($B154,Pupils,Pupils!$M$3,FALSE)+VLOOKUP($B154,Pupils,Pupils!$P$3,FALSE))), \"x\")","v":3255.5753022891804},{"$f":"IFERROR((VLOOKUP($B154,Funding,Funding!$FD$2,FALSE)), \"x\")","v":15355662},{"$f":"IFERROR((BQ154/VLOOKUP($B154,Funding,Funding!$FR$2,FALSE)), \"x\")","v":0.19014756139609967},{"$f":"IFERROR((BQ154/(VLOOKUP($B154,Pupils,Pupils!$R$3,FALSE)+VLOOKUP($B154,Pupils,Pupils!$U$3,FALSE))), \"x\")","v":3061.3361244019138},{"$f":"(VLOOKUP(B154,Funding,Funding!$HK$2,FALSE)+VLOOKUP(B154,Funding,Funding!$HL$2,FALSE)+VLOOKUP(B154,Funding,Funding!$HM$2,FALSE))/(VLOOKUP(B154,Funding,Funding!$HN$2,FALSE))","v":0.2300469483568075},{"$f":"IFERROR((VLOOKUP(B154,Other_data,Other!$D$3,FALSE)+VLOOKUP(B154,Other_data,Other!$E$3,FALSE)+VLOOKUP(B154,Other_data,Other!$F$3,FALSE)), \"x\")","v":580},{"$f":"(VLOOKUP(B154,Other_data,Other!$AK$3,FALSE)+VLOOKUP(B154,Other_data,Other!$AL$3,FALSE))/VLOOKUP(B154,Other_data,Other!$AJ$3,FALSE)","v":2.3800976450315911E-2},{"$f":"(VLOOKUP(B154,Other_data,Other!$AR$3,FALSE)+VLOOKUP(B154,Other_data,Other!$AS$3,FALSE))/VLOOKUP(B154,Other_data,Other!$AQ$3,FALSE)","v":3.8851084032283587E-2},{"$f":"VLOOKUP(B154,Other_data,Other!$AP$3,FALSE)/VLOOKUP(B154,Other_data,Other!$AJ$3,FALSE)","v":3.5539919586444571E-3},{"$f":"VLOOKUP(B154,Other_data,Other!$AW$3,FALSE)/VLOOKUP(B154,Other_data,Other!$AQ$3,FALSE)","v":7.2796328532995728E-3}]
[149,344,"Wirral",{"$f":"IFERROR((VLOOKUP($B155,Pupils,Pupils!$D$3,FALSE)/VLOOKUP($B155,Pupils,Pupils!$C$3,FALSE)), \"x\")","v":3.6589375157129317E-2},{"$f":"IFERROR((VLOOKUP($B155,Pupils,Pupils!$G$3,FALSE)/VLOOKUP($B155,Pupils,Pupils!$F$3,FALSE)),\"x\")","v":3.4506864477542379E-2},{"$f":"IFERROR((VLOOKUP($B155,Pupils,Pupils!$J$3,FALSE)/VLOOKUP($B155,Pupils,Pupils!$I$3,FALSE)), \"x\")","v":3.2903869088349726E-2},{"$f":"IFERROR((VLOOKUP($B155,Pupils,Pupils!$M$3,FALSE)/VLOOKUP($B155,Pupils,Pupils!$L$3,FALSE)), \"x\")","v":3.1922864579225489E-2},{"$f":"IFERROR((VLOOKUP($B155,Pupils,Pupils!$R$3,FALSE)/VLOOKUP($B155,Pupils,Pupils!$Q$3,FALSE)), \"x\")","v":3.1929789961542256E-2},{"$f":"IFERROR((VLOOKUP($B155,Pupils,Pupils!$W$3,FALSE)/VLOOKUP($B155,Pupils,Pupils!$V$3,FALSE)), \"x\")","v":3.1397484251890762E-2},{"$f":"IFERROR(((VLOOKUP($B155,Pupils,Pupils!$D$3,FALSE)+VLOOKUP($B155,Pupils,Pupils!$E$3,FALSE))/VLOOKUP($B155,Pupils,Pupils!$C$3,FALSE)), \"x\")","v":0.21738962269624243},{"$f":"IFERROR(((VLOOKUP($B155,Pupils,Pupils!$G$3,FALSE)+VLOOKUP($B155,Pupils,Pupils!$H$3,FALSE))/VLOOKUP($B155,Pupils,Pupils!$F$3,FALSE)), \"x\")","v":0.22251781657183914},{"$f":"IFERROR(((VLOOKUP($B155,Pupils,Pupils!$J$3,FALSE)+VLOOKUP($B155,Pupils,Pupils!$K$3,FALSE))/VLOOKUP($B155,Pupils,Pupils!$I$3,FALSE)), \"x\")","v":0.22637783729887193},{"$f":"IFERROR(((VLOOKUP($B155,Pupils,Pupils!$M$3,FALSE)+VLOOKUP($B155,Pupils,Pupils!$P$3,FALSE))/VLOOKUP($B155,Pupils,Pupils!$L$3,FALSE)), \"x\")","v":0.21971369981859767},{"$f":"IFERROR(((VLOOKUP($B155,Pupils,Pupils!$R$3,FALSE)+VLOOKUP($B155,Pupils,Pupils!$U$3,FALSE))/VLOOKUP($B155,Pupils,Pupils!$Q$3,FALSE)), \"x\")","v":0.21059067153140715},{"$f":"IFERROR(((VLOOKUP($B155,Pupils,Pupils!$W$3,FALSE)+VLOOKUP($B155,Pupils,Pupils!$Z$3,FALSE))/VLOOKUP($B155,Pupils,Pupils!$V$3,FALSE)), \"x\")","v":0.20084516498489366},{"$f":"(SUM(INDEX(Pupils!$AB$7:$AB$159,MATCH($B155,Pupils!$A$7:$A$159,0)),INDEX(Pupils!$AC$7:$AC$159,MATCH($B155,Pupils!$A$7:$A$159,0)),INDEX(Pupils!$AD$7:$AD$159,MATCH($B155,Pupils!$A$7:$A$159,0)),INDEX(Pupils!$AE$7:$AE$159,MATCH($B155,Pupils!$A$7:$A$159,0))))/SUM(INDEX(Pupils!$AB$7:$AM$159,MATCH($B155,Pupils!$A$7:$A$159,0),0))","v":0.4650112866817156},{"$f":"SUM(INDEX(Pupils!$AF$7:$AF$159,MATCH($B155,Pupils!$A$7:$A$159,0)))/SUM(INDEX(Pupils!$AB$7:$AM$159,MATCH($B155,Pupils!$A$7:$A$159,0),0))","v":0.20090293453724606},{"$f":"SUM(INDEX(Pupils!$AG$7:$AG$159,MATCH($B155,Pupils!$A$7:$A$159,0)))/SUM(INDEX(Pupils!$AB$7:$AM$159,MATCH($B155,Pupils!$A$7:$A$159,0),0))","v":0.125795198029961},{"$f":"(SUM(INDEX(Pupils!$AH$7:$AH$159,MATCH($B155,Pupils!$A$7:$A$159,0)),INDEX(Pupils!$AI$7:$AI$159,MATCH($B155,Pupils!$A$7:$A$159,0)),INDEX(Pupils!$AJ$7:$AJ$159,MATCH($B155,Pupils!$A$7:$A$159,0))))/SUM(INDEX(Pupils!$AB$7:$AM$159,MATCH($B155,Pupils!$A$7:$A$159,0),0))","v":2.7498460907038787E-2},{"$f":"SUM(INDEX(Pupils!$AK$7:$AK$159,MATCH($B155,Pupils!$A$7:$A$159,0)))/SUM(INDEX(Pupils!$AB$7:$AM$159,MATCH($B155,Pupils!$A$7:$A$159,0),0))","v":3.406525754155551E-2},{"$f":"SUM(INDEX(Pupils!$AL$7:$AL$159,MATCH($B155,Pupils!$A$7:$A$159,0)))/SUM(INDEX(Pupils!$AB$7:$AM$159,MATCH($B155,Pupils!$A$7:$A$159,0),0))","v":0.11122511799712703},{"$f":"SUM(INDEX(Pupils!$AM$7:$AM$159,MATCH($B155,Pupils!$A$7:$A$159,0)))/SUM(INDEX(Pupils!$AB$7:$AM$159,MATCH($B155,Pupils!$A$7:$A$159,0),0))","v":3.5501744305356041E-2},{"$f":"(SUM(INDEX(Pupils!$BH$7:$BH$159,MATCH($B155,Pupils!$A$7:$A$159,0)),INDEX(Pupils!$BK$7:$BK$159,MATCH($B155,Pupils!$A$7:$A$159,0)),INDEX(Pupils!$BO$7:$BO$159,MATCH($B155,Pupils!$A$7:$A$159,0))))/SUM(INDEX(Pupils!$BH$7:$BS$159,MATCH($B155,Pupils!$A$7:$A$159,0),0))","v":0.27767235926628714},{"$f":"(SUM(INDEX(Pupils!$BL$7:$BL$159,MATCH($B155,Pupils!$A$7:$A$159,0)),INDEX(Pupils!$BM$7:$BM$159,MATCH($B155,Pupils!$A$7:$A$159,0)),INDEX(Pupils!$BP$7:$BP$159,MATCH($B155,Pupils!$A$7:$A$159,0))))/SUM(INDEX(Pupils!$BH$7:$BS$159,MATCH($B155,Pupils!$A$7:$A$159,0),0))","v":0.6306135357368754},{"$f":"(SUM(INDEX(Pupils!$BI$7:$BI$159,MATCH($B155,Pupils!$A$7:$A$159,0)),INDEX(Pupils!$BJ$7:$BJ$159,MATCH($B155,Pupils!$A$7:$A$159,0))))/SUM(INDEX(Pupils!$BH$7:$BS$159,MATCH($B155,Pupils!$A$7:$A$159,0),0))","v":8.7286527514231493E-2},{"$f":"(SUM(INDEX(Pupils!$BQ$7:$BQ$159,MATCH($B155,Pupils!$A$7:$A$159,0)),INDEX(Pupils!$BR$7:$BR$159,MATCH($B155,Pupils!$A$7:$A$159,0)),INDEX(Pupils!$BN$7:$BN$159,MATCH($B155,Pupils!$A$7:$A$159,0)),INDEX(Pupils!$BS$7:$BS$159,MATCH($B155,Pupils!$A$7:$A$159,0))))/SUM(INDEX(Pupils!$BH$7:$BS$159,MATCH($B155,Pupils!$A$7:$A$159,0),0))","v":4.4275774826059459E-3},{"$f":"IFERROR((VLOOKUP(B155,Funding,Funding!$C$2,FALSE)), \"x\")","v":30577980.380000003},{"$f":"IFERROR((AA155/VLOOKUP(B155,Funding,Funding!$D$2,FALSE)), \"x\")","v":0.13469483627226311},{"$f":"IFERROR((AA155/(VLOOKUP(B155,Pupils,Pupils!$M$3,FALSE)+VLOOKUP(B155,Pupils,Pupils!$P$3,FALSE))), \"x\")","v":2744.1425450955758},{"$f":"IFERROR((VLOOKUP(B155,Funding,Funding!$E$2,FALSE)), \"x\")","v":32310339.025383931},{"$f":"IFERROR((AD155/VLOOKUP(B155,Funding,Funding!$F$2,FALSE)), \"x\")","v":0.13754631485551},{"$f":"IFERROR((AD155/(VLOOKUP(B155,Pupils,Pupils!$R$3,FALSE)+VLOOKUP(B155,Pupils,Pupils!$U$3,FALSE))), \"x\")","v":3025.8792868874257},{"$f":"IFERROR((VLOOKUP(B155,Funding,Funding!$G$2,FALSE)), \"x\")","v":33642524.090284415},{"$f":"IFERROR((AG155/VLOOKUP(B155,Funding,Funding!$H$2,FALSE)), \"x\")","v":0.1417847931115187},{"$f":"IFERROR((AG155/(VLOOKUP(B155,Pupils,Pupils!$W$3,FALSE)+VLOOKUP(B155,Pupils,Pupils!$Z$3,FALSE))), \"x\")","v":3307.6908947285829},{"$f":"IFERROR((VLOOKUP(B155,Funding,Funding!$I$2,FALSE)), \"x\")","v":33817738.891984902},{"$f":"IFERROR((AJ155/VLOOKUP(B155,Funding,Funding!$J$2,FALSE)), \"x\")","v":0.14275292170008444},null,{"$f":"IFERROR((VLOOKUP($B155,Funding,Funding!$EC$2,FALSE)), \"x\")","v":26567648},{"$f":"IFERROR((AM155/VLOOKUP($B155,Funding,Funding!$EU$2,FALSE)), \"x\")","v":0.10820508202359755},{"$f":"IFERROR((AM155/(VLOOKUP($B155,Pupils,Pupils!$D$3,FALSE)+VLOOKUP($B155,Pupils,Pupils!$E$3,FALSE))), \"x\")","v":2363.4594786940665},{"$f":"IFERROR((VLOOKUP($B155,Funding,Funding!$DA$2,FALSE)), \"x\")","v":27497720},{"$f":"IFERROR((AP155/VLOOKUP($B155,Funding,Funding!$DT$2,FALSE)), \"x\")","v":0.10815318592667544},{"$f":"IFERROR((AP155/(VLOOKUP($B155,Pupils,Pupils!$G$3,FALSE)+VLOOKUP($B155,Pupils,Pupils!$H$3,FALSE))), \"x\")","v":2399.6614015184573},{"$f":"IFERROR((VLOOKUP($B155,Funding,Funding!$CE$2,FALSE)), \"x\")","v":27566600},{"$f":"IFERROR((AS155/VLOOKUP($B155,Funding,Funding!$CR$2,FALSE)), \"x\")","v":0.10665076831296132},{"$f":"IFERROR((AS155/(VLOOKUP($B155,Pupils,Pupils!$J$3,FALSE)+VLOOKUP($B155,Pupils,Pupils!$K$3,FALSE))), \"x\")","v":2380.7409966318337},{"$f":"IFERROR((VLOOKUP($B155,Funding,Funding!$BM$2,FALSE)), \"x\")","v":28215244.380000003},{"$f":"IFERROR((AV155/VLOOKUP($B155,Funding,Funding!$BY$2,FALSE)), \"x\")","v":0.12827168556739418},{"$f":"IFERROR((AV155/(VLOOKUP($B155,Pupils,Pupils!$M$3,FALSE)+VLOOKUP($B155,Pupils,Pupils!$P$3,FALSE))), \"x\")","v":2532.104853271112},{"$f":"IFERROR((VLOOKUP($B155,Funding,Funding!$AQ$2,FALSE)), \"x\")","v":30742900},{"$f":"IFERROR((AY155/VLOOKUP($B155,Funding,Funding!$BE$2,FALSE)), \"x\")","v":0.12664618607486883},{"$f":"IFERROR((AY155/(VLOOKUP($B155,Pupils,Pupils!$R$3,FALSE)+VLOOKUP($B155,Pupils,Pupils!$U$3,FALSE))), \"x\")","v":2879.0878441655741},{"$f":"IFERROR((VLOOKUP($B155,Funding,Funding!$S$2,FALSE)), \"x\")","v":31889500},{"$f":"IFERROR((BB155/VLOOKUP($B155,Funding,Funding!$AH$2,FALSE)), \"x\")","v":0.1297365359110178},{"$f":"IFERROR((BB155/(VLOOKUP(B155,Pupils,Pupils!$W$3,FALSE)+VLOOKUP(B155,Pupils,Pupils!$Z$3,FALSE))), \"x\")","v":3135.3357585291515},{"$f":"IFERROR((VLOOKUP($B155,Funding,Funding!$GX$2,FALSE)), \"x\")","v":34177052},{"$f":"IFERROR((BE155/VLOOKUP($B155,Funding,Funding!$HC$2,FALSE)), \"x\")","v":0.12795990668913923},{"$f":"IFERROR((BE155/(VLOOKUP($B155,Pupils,Pupils!$D$3,FALSE)+VLOOKUP($B155,Pupils,Pupils!$E$3,FALSE))), \"x\")","v":3040.3924917711947},{"$f":"IFERROR((VLOOKUP($B155,Funding,Funding!$GP$2,FALSE)), \"x\")","v":37443884},{"$f":"IFERROR((BH155/VLOOKUP($B155,Funding,Funding!$GU$2,FALSE)), \"x\")","v":0.1380778444691047},{"$f":"IFERROR((BH155/(VLOOKUP($B155,Pupils,Pupils!$G$3,FALSE)+VLOOKUP($B155,Pupils,Pupils!$H$3,FALSE))), \"x\")","v":3267.6397591412865},{"$f":"IFERROR((VLOOKUP($B155,Funding,Funding!$GH$2,FALSE)), \"x\")","v":35533728.450000003},{"$f":"IFERROR((BK155/VLOOKUP($B155,Funding,Funding!$GM$2,FALSE)), \"x\")","v":0.14240329473333624},{"$f":"IFERROR((BK155/(VLOOKUP($B155,Pupils,Pupils!$J$3,FALSE)+VLOOKUP($B155,Pupils,Pupils!$K$3,FALSE))), \"x\")","v":3068.8080533724851},{"$f":"IFERROR((VLOOKUP($B155,Funding,Funding!$FZ$2,FALSE)), \"x\")","v":34443573.219999999},{"$f":"IFERROR((BN155/VLOOKUP($B155,Funding,Funding!$GE$2,FALSE)), \"x\")","v":0.15772612553532614},{"$f":"IFERROR((BN155/(VLOOKUP($B155,Pupils,Pupils!$M$3,FALSE)+VLOOKUP($B155,Pupils,Pupils!$P$3,FALSE))), \"x\")","v":3091.0502755092884},{"$f":"IFERROR((VLOOKUP($B155,Funding,Funding!$FD$2,FALSE)), \"x\")","v":29400315},{"$f":"IFERROR((BQ155/VLOOKUP($B155,Funding,Funding!$FR$2,FALSE)), \"x\")","v":0.16140064903117032},{"$f":"IFERROR((BQ155/(VLOOKUP($B155,Pupils,Pupils!$R$3,FALSE)+VLOOKUP($B155,Pupils,Pupils!$U$3,FALSE))), \"x\")","v":2753.3540925266902},{"$f":"(VLOOKUP(B155,Funding,Funding!$HK$2,FALSE)+VLOOKUP(B155,Funding,Funding!$HL$2,FALSE)+VLOOKUP(B155,Funding,Funding!$HM$2,FALSE))/(VLOOKUP(B155,Funding,Funding!$HN$2,FALSE))","v":0.2091136079900125},{"$f":"IFERROR((VLOOKUP(B155,Other_data,Other!$D$3,FALSE)+VLOOKUP(B155,Other_data,Other!$E$3,FALSE)+VLOOKUP(B155,Other_data,Other!$F$3,FALSE)), \"x\")","v":2870},{"$f":"(VLOOKUP(B155,Other_data,Other!$AK$3,FALSE)+VLOOKUP(B155,Other_data,Other!$AL$3,FALSE))/VLOOKUP(B155,Other_data,Other!$AJ$3,FALSE)","v":5.1110660995206267E-2},{"$f":"(VLOOKUP(B155,Other_data,Other!$AR$3,FALSE)+VLOOKUP(B155,Other_data,Other!$AS$3,FALSE))/VLOOKUP(B155,Other_data,Other!$AQ$3,FALSE)","v":7.2832369942196537E-2},{"$f":"VLOOKUP(B155,Other_data,Other!$AP$3,FALSE)/VLOOKUP(B155,Other_data,Other!$AJ$3,FALSE)","v":7.7644993585848357E-3},{"$f":"VLOOKUP(B155,Other_data,Other!$AW$3,FALSE)/VLOOKUP(B155,Other_data,Other!$AQ$3,FALSE)","v":1.4080331999407144E-2}]
[150,872,"Wokingham",{"$f":"IFERROR((VLOOKUP($B156,Pupils,Pupils!$D$3,FALSE)/VLOOKUP($B156,Pupils,Pupils!$C$3,FALSE)), \"x\")","v":3.0779832318823936E-2},{"$f":"IFERROR((VLOOKUP($B156,Pupils,Pupils!$G$3,FALSE)/VLOOKUP($B156,Pupils,Pupils!$F$3,FALSE)),\"x\")","v":3.1180656515418164E-2},{"$f":"IFERROR((VLOOKUP($B156,Pupils,Pupils!$J$3,FALSE)/VLOOKUP($B156,Pupils,Pupils!$I$3,FALSE)), \"x\")","v":3.0225946431243454E-2},{"$f":"IFERROR((VLOOKUP($B156,Pupils,Pupils!$M$3,FALSE)/VLOOKUP($B156,Pupils,Pupils!$L$3,FALSE)), \"x\")","v":3.0222517436067752E-2},{"$f":"IFERROR((VLOOKUP($B156,Pupils,Pupils!$R$3,FALSE)/VLOOKUP($B156,Pupils,Pupils!$Q$3,FALSE)), \"x\")","v":3.0041348018588314E-2},{"$f":"IFERROR((VLOOKUP($B156,Pupils,Pupils!$W$3,FALSE)/VLOOKUP($B156,Pupils,Pupils!$V$3,FALSE)), \"x\")","v":2.962587374597081E-2},{"$f":"IFERROR(((VLOOKUP($B156,Pupils,Pupils!$D$3,FALSE)+VLOOKUP($B156,Pupils,Pupils!$E$3,FALSE))/VLOOKUP($B156,Pupils,Pupils!$C$3,FALSE)), \"x\")","v":0.15749779870602199},{"$f":"IFERROR(((VLOOKUP($B156,Pupils,Pupils!$G$3,FALSE)+VLOOKUP($B156,Pupils,Pupils!$H$3,FALSE))/VLOOKUP($B156,Pupils,Pupils!$F$3,FALSE)), \"x\")","v":0.16386104522151657},{"$f":"IFERROR(((VLOOKUP($B156,Pupils,Pupils!$J$3,FALSE)+VLOOKUP($B156,Pupils,Pupils!$K$3,FALSE))/VLOOKUP($B156,Pupils,Pupils!$I$3,FALSE)), \"x\")","v":0.16792608110130181},{"$f":"IFERROR(((VLOOKUP($B156,Pupils,Pupils!$M$3,FALSE)+VLOOKUP($B156,Pupils,Pupils!$P$3,FALSE))/VLOOKUP($B156,Pupils,Pupils!$L$3,FALSE)), \"x\")","v":0.17063360271596739},{"$f":"IFERROR(((VLOOKUP($B156,Pupils,Pupils!$R$3,FALSE)+VLOOKUP($B156,Pupils,Pupils!$U$3,FALSE))/VLOOKUP($B156,Pupils,Pupils!$Q$3,FALSE)), \"x\")","v":0.15756156463829632},{"$f":"IFERROR(((VLOOKUP($B156,Pupils,Pupils!$W$3,FALSE)+VLOOKUP($B156,Pupils,Pupils!$Z$3,FALSE))/VLOOKUP($B156,Pupils,Pupils!$V$3,FALSE)), \"x\")","v":0.15171489623700699},{"$f":"(SUM(INDEX(Pupils!$AB$7:$AB$159,MATCH($B156,Pupils!$A$7:$A$159,0)),INDEX(Pupils!$AC$7:$AC$159,MATCH($B156,Pupils!$A$7:$A$159,0)),INDEX(Pupils!$AD$7:$AD$159,MATCH($B156,Pupils!$A$7:$A$159,0)),INDEX(Pupils!$AE$7:$AE$159,MATCH($B156,Pupils!$A$7:$A$159,0))))/SUM(INDEX(Pupils!$AB$7:$AM$159,MATCH($B156,Pupils!$A$7:$A$159,0),0))","v":0.26784783741532048},{"$f":"SUM(INDEX(Pupils!$AF$7:$AF$159,MATCH($B156,Pupils!$A$7:$A$159,0)))/SUM(INDEX(Pupils!$AB$7:$AM$159,MATCH($B156,Pupils!$A$7:$A$159,0),0))","v":0.24022928608650337},{"$f":"SUM(INDEX(Pupils!$AG$7:$AG$159,MATCH($B156,Pupils!$A$7:$A$159,0)))/SUM(INDEX(Pupils!$AB$7:$AM$159,MATCH($B156,Pupils!$A$7:$A$159,0),0))","v":0.14278269932256382},{"$f":"(SUM(INDEX(Pupils!$AH$7:$AH$159,MATCH($B156,Pupils!$A$7:$A$159,0)),INDEX(Pupils!$AI$7:$AI$159,MATCH($B156,Pupils!$A$7:$A$159,0)),INDEX(Pupils!$AJ$7:$AJ$159,MATCH($B156,Pupils!$A$7:$A$159,0))))/SUM(INDEX(Pupils!$AB$7:$AM$159,MATCH($B156,Pupils!$A$7:$A$159,0),0))","v":4.8983845752996351E-2},{"$f":"SUM(INDEX(Pupils!$AK$7:$AK$159,MATCH($B156,Pupils!$A$7:$A$159,0)))/SUM(INDEX(Pupils!$AB$7:$AM$159,MATCH($B156,Pupils!$A$7:$A$159,0),0))","v":4.8462741010943201E-2},{"$f":"SUM(INDEX(Pupils!$AL$7:$AL$159,MATCH($B156,Pupils!$A$7:$A$159,0)))/SUM(INDEX(Pupils!$AB$7:$AM$159,MATCH($B156,Pupils!$A$7:$A$159,0),0))","v":0.21677957269411152},{"$f":"SUM(INDEX(Pupils!$AM$7:$AM$159,MATCH($B156,Pupils!$A$7:$A$159,0)))/SUM(INDEX(Pupils!$AB$7:$AM$159,MATCH($B156,Pupils!$A$7:$A$159,0),0))","v":3.4914017717561231E-2},{"$f":"(SUM(INDEX(Pupils!$BH$7:$BH$159,MATCH($B156,Pupils!$A$7:$A$159,0)),INDEX(Pupils!$BK$7:$BK$159,MATCH($B156,Pupils!$A$7:$A$159,0)),INDEX(Pupils!$BO$7:$BO$159,MATCH($B156,Pupils!$A$7:$A$159,0))))/SUM(INDEX(Pupils!$BH$7:$BS$159,MATCH($B156,Pupils!$A$7:$A$159,0),0))","v":0.54842931937172779},{"$f":"(SUM(INDEX(Pupils!$BL$7:$BL$159,MATCH($B156,Pupils!$A$7:$A$159,0)),INDEX(Pupils!$BM$7:$BM$159,MATCH($B156,Pupils!$A$7:$A$159,0)),INDEX(Pupils!$BP$7:$BP$159,MATCH($B156,Pupils!$A$7:$A$159,0))))/SUM(INDEX(Pupils!$BH$7:$BS$159,MATCH($B156,Pupils!$A$7:$A$159,0),0))","v":0.38350785340314136},{"$f":"(SUM(INDEX(Pupils!$BI$7:$BI$159,MATCH($B156,Pupils!$A$7:$A$159,0)),INDEX(Pupils!$BJ$7:$BJ$159,MATCH($B156,Pupils!$A$7:$A$159,0))))/SUM(INDEX(Pupils!$BH$7:$BS$159,MATCH($B156,Pupils!$A$7:$A$159,0),0))","v":5.3664921465968587E-2},{"$f":"(SUM(INDEX(Pupils!$BQ$7:$BQ$159,MATCH($B156,Pupils!$A$7:$A$159,0)),INDEX(Pupils!$BR$7:$BR$159,MATCH($B156,Pupils!$A$7:$A$159,0)),INDEX(Pupils!$BN$7:$BN$159,MATCH($B156,Pupils!$A$7:$A$159,0)),INDEX(Pupils!$BS$7:$BS$159,MATCH($B156,Pupils!$A$7:$A$159,0))))/SUM(INDEX(Pupils!$BH$7:$BS$159,MATCH($B156,Pupils!$A$7:$A$159,0),0))","v":1.4397905759162303E-2},{"$f":"IFERROR((VLOOKUP(B156,Funding,Funding!$C$2,FALSE)), \"x\")","v":17877781.870000001},{"$f":"IFERROR((AA156/VLOOKUP(B156,Funding,Funding!$D$2,FALSE)), \"x\")","v":0.16575930970544431},{"$f":"IFERROR((AA156/(VLOOKUP(B156,Pupils,Pupils!$M$3,FALSE)+VLOOKUP(B156,Pupils,Pupils!$P$3,FALSE))), \"x\")","v":3866.3023075259516},{"$f":"IFERROR((VLOOKUP(B156,Funding,Funding!$E$2,FALSE)), \"x\")","v":17325057.873212226},{"$f":"IFERROR((AD156/VLOOKUP(B156,Funding,Funding!$F$2,FALSE)), \"x\")","v":0.15473619038225941},{"$f":"IFERROR((AD156/(VLOOKUP(B156,Pupils,Pupils!$R$3,FALSE)+VLOOKUP(B156,Pupils,Pupils!$U$3,FALSE))), \"x\")","v":4023.4690834213252},{"$f":"IFERROR((VLOOKUP(B156,Funding,Funding!$G$2,FALSE)), \"x\")","v":17588219.000188198},{"$f":"IFERROR((AG156/VLOOKUP(B156,Funding,Funding!$H$2,FALSE)), \"x\")","v":0.15600170669472638},{"$f":"IFERROR((AG156/(VLOOKUP(B156,Pupils,Pupils!$W$3,FALSE)+VLOOKUP(B156,Pupils,Pupils!$Z$3,FALSE))), \"x\")","v":4198.6677011669126},{"$f":"IFERROR((VLOOKUP(B156,Funding,Funding!$I$2,FALSE)), \"x\")","v":17655591.475825306},{"$f":"IFERROR((AJ156/VLOOKUP(B156,Funding,Funding!$J$2,FALSE)), \"x\")","v":0.15278421824198293},null,{"$f":"IFERROR((VLOOKUP($B156,Funding,Funding!$EC$2,FALSE)), \"x\")","v":10285843.529999999},{"$f":"IFERROR((AM156/VLOOKUP($B156,Funding,Funding!$EU$2,FALSE)), \"x\")","v":9.2806748858581881E-2},{"$f":"IFERROR((AM156/(VLOOKUP($B156,Pupils,Pupils!$D$3,FALSE)+VLOOKUP($B156,Pupils,Pupils!$E$3,FALSE))), \"x\")","v":2500.2050388915895},{"$f":"IFERROR((VLOOKUP($B156,Funding,Funding!$DA$2,FALSE)), \"x\")","v":10498154.42735},{"$f":"IFERROR((AP156/VLOOKUP($B156,Funding,Funding!$DT$2,FALSE)), \"x\")","v":8.922832877450769E-2},{"$f":"IFERROR((AP156/(VLOOKUP($B156,Pupils,Pupils!$G$3,FALSE)+VLOOKUP($B156,Pupils,Pupils!$H$3,FALSE))), \"x\")","v":2451.1217434858745},{"$f":"IFERROR((VLOOKUP($B156,Funding,Funding!$CE$2,FALSE)), \"x\")","v":11763005.672190001},{"$f":"IFERROR((AS156/VLOOKUP($B156,Funding,Funding!$CR$2,FALSE)), \"x\")","v":0.10751946170735251},{"$f":"IFERROR((AS156/(VLOOKUP($B156,Pupils,Pupils!$J$3,FALSE)+VLOOKUP($B156,Pupils,Pupils!$K$3,FALSE))), \"x\")","v":2620.406699084429},{"$f":"IFERROR((VLOOKUP($B156,Funding,Funding!$BM$2,FALSE)), \"x\")","v":12934682.780000001},{"$f":"IFERROR((AV156/VLOOKUP($B156,Funding,Funding!$BY$2,FALSE)), \"x\")","v":0.12561387367996385},{"$f":"IFERROR((AV156/(VLOOKUP($B156,Pupils,Pupils!$M$3,FALSE)+VLOOKUP($B156,Pupils,Pupils!$P$3,FALSE))), \"x\")","v":2797.2929887543255},{"$f":"IFERROR((VLOOKUP($B156,Funding,Funding!$AQ$2,FALSE)), \"x\")","v":18509138},{"$f":"IFERROR((AY156/VLOOKUP($B156,Funding,Funding!$BE$2,FALSE)), \"x\")","v":0.15599274326056367},{"$f":"IFERROR((AY156/(VLOOKUP($B156,Pupils,Pupils!$R$3,FALSE)+VLOOKUP($B156,Pupils,Pupils!$U$3,FALSE))), \"x\")","v":4298.4528564793309},{"$f":"IFERROR((VLOOKUP($B156,Funding,Funding!$S$2,FALSE)), \"x\")","v":18272729.100000001},{"$f":"IFERROR((BB156/VLOOKUP($B156,Funding,Funding!$AH$2,FALSE)), \"x\")","v":0.15700818378405837},{"$f":"IFERROR((BB156/(VLOOKUP(B156,Pupils,Pupils!$W$3,FALSE)+VLOOKUP(B156,Pupils,Pupils!$Z$3,FALSE))), \"x\")","v":4362.0742659345906},{"$f":"IFERROR((VLOOKUP($B156,Funding,Funding!$GX$2,FALSE)), \"x\")","v":18490159},{"$f":"IFERROR((BE156/VLOOKUP($B156,Funding,Funding!$HC$2,FALSE)), \"x\")","v":0.15785339205979612},{"$f":"IFERROR((BE156/(VLOOKUP($B156,Pupils,Pupils!$D$3,FALSE)+VLOOKUP($B156,Pupils,Pupils!$E$3,FALSE))), \"x\")","v":4494.4479824987848},{"$f":"IFERROR((VLOOKUP($B156,Funding,Funding!$GP$2,FALSE)), \"x\")","v":19552245.879999999},{"$f":"IFERROR((BH156/VLOOKUP($B156,Funding,Funding!$GU$2,FALSE)), \"x\")","v":0.15714424970809932},{"$f":"IFERROR((BH156/(VLOOKUP($B156,Pupils,Pupils!$G$3,FALSE)+VLOOKUP($B156,Pupils,Pupils!$H$3,FALSE))), \"x\")","v":4565.0819238851273},{"$f":"IFERROR((VLOOKUP($B156,Funding,Funding!$GH$2,FALSE)), \"x\")","v":19410204.780000001},{"$f":"IFERROR((BK156/VLOOKUP($B156,Funding,Funding!$GM$2,FALSE)), \"x\")","v":0.18182039368323802},{"$f":"IFERROR((BK156/(VLOOKUP($B156,Pupils,Pupils!$J$3,FALSE)+VLOOKUP($B156,Pupils,Pupils!$K$3,FALSE))), \"x\")","v":4323.9484918690132},{"$f":"IFERROR((VLOOKUP($B156,Funding,Funding!$FZ$2,FALSE)), \"x\")","v":20965498.629999999},{"$f":"IFERROR((BN156/VLOOKUP($B156,Funding,Funding!$GE$2,FALSE)), \"x\")","v":0.19449484380628207},{"$f":"IFERROR((BN156/(VLOOKUP($B156,Pupils,Pupils!$M$3,FALSE)+VLOOKUP($B156,Pupils,Pupils!$P$3,FALSE))), \"x\")","v":4534.0611224048444},{"$f":"IFERROR((VLOOKUP($B156,Funding,Funding!$FD$2,FALSE)), \"x\")","v":18450012},{"$f":"IFERROR((BQ156/VLOOKUP($B156,Funding,Funding!$FR$2,FALSE)), \"x\")","v":0.15763062444071069},{"$f":"IFERROR((BQ156/(VLOOKUP($B156,Pupils,Pupils!$R$3,FALSE)+VLOOKUP($B156,Pupils,Pupils!$U$3,FALSE))), \"x\")","v":4284.7217835578267},{"$f":"(VLOOKUP(B156,Funding,Funding!$HK$2,FALSE)+VLOOKUP(B156,Funding,Funding!$HL$2,FALSE)+VLOOKUP(B156,Funding,Funding!$HM$2,FALSE))/(VLOOKUP(B156,Funding,Funding!$HN$2,FALSE))","v":0.25102880658436216},{"$f":"IFERROR((VLOOKUP(B156,Other_data,Other!$D$3,FALSE)+VLOOKUP(B156,Other_data,Other!$E$3,FALSE)+VLOOKUP(B156,Other_data,Other!$F$3,FALSE)), \"x\")","v":770},{"$f":"(VLOOKUP(B156,Other_data,Other!$AK$3,FALSE)+VLOOKUP(B156,Other_data,Other!$AL$3,FALSE))/VLOOKUP(B156,Other_data,Other!$AJ$3,FALSE)","v":2.8388631687242798E-2},{"$f":"(VLOOKUP(B156,Other_data,Other!$AR$3,FALSE)+VLOOKUP(B156,Other_data,Other!$AS$3,FALSE))/VLOOKUP(B156,Other_data,Other!$AQ$3,FALSE)","v":4.3481422235148698E-2},{"$f":"VLOOKUP(B156,Other_data,Other!$AP$3,FALSE)/VLOOKUP(B156,Other_data,Other!$AJ$3,FALSE)","v":2.8613683127572016E-3},{"$f":"VLOOKUP(B156,Other_data,Other!$AW$3,FALSE)/VLOOKUP(B156,Other_data,Other!$AQ$3,FALSE)","v":6.8348723914782228E-3}]
[151,336,"Wolverhampton",{"$f":"IFERROR((VLOOKUP($B157,Pupils,Pupils!$D$3,FALSE)/VLOOKUP($B157,Pupils,Pupils!$C$3,FALSE)), \"x\")","v":3.2914363965373894E-2},{"$f":"IFERROR((VLOOKUP($B157,Pupils,Pupils!$G$3,FALSE)/VLOOKUP($B157,Pupils,Pupils!$F$3,FALSE)),\"x\")","v":3.2750444576170719E-2},{"$f":"IFERROR((VLOOKUP($B157,Pupils,Pupils!$J$3,FALSE)/VLOOKUP($B157,Pupils,Pupils!$I$3,FALSE)), \"x\")","v":3.3052944087085603E-2},{"$f":"IFERROR((VLOOKUP($B157,Pupils,Pupils!$M$3,FALSE)/VLOOKUP($B157,Pupils,Pupils!$L$3,FALSE)), \"x\")","v":3.3609508309907776E-2},{"$f":"IFERROR((VLOOKUP($B157,Pupils,Pupils!$R$3,FALSE)/VLOOKUP($B157,Pupils,Pupils!$Q$3,FALSE)), \"x\")","v":3.4258942950563663E-2},{"$f":"IFERROR((VLOOKUP($B157,Pupils,Pupils!$W$3,FALSE)/VLOOKUP($B157,Pupils,Pupils!$V$3,FALSE)), \"x\")","v":3.3828916181857356E-2},{"$f":"IFERROR(((VLOOKUP($B157,Pupils,Pupils!$D$3,FALSE)+VLOOKUP($B157,Pupils,Pupils!$E$3,FALSE))/VLOOKUP($B157,Pupils,Pupils!$C$3,FALSE)), \"x\")","v":0.19139727099329976},{"$f":"IFERROR(((VLOOKUP($B157,Pupils,Pupils!$G$3,FALSE)+VLOOKUP($B157,Pupils,Pupils!$H$3,FALSE))/VLOOKUP($B157,Pupils,Pupils!$F$3,FALSE)), \"x\")","v":0.20813574392412568},{"$f":"IFERROR(((VLOOKUP($B157,Pupils,Pupils!$J$3,FALSE)+VLOOKUP($B157,Pupils,Pupils!$K$3,FALSE))/VLOOKUP($B157,Pupils,Pupils!$I$3,FALSE)), \"x\")","v":0.20296882731321128},{"$f":"IFERROR(((VLOOKUP($B157,Pupils,Pupils!$M$3,FALSE)+VLOOKUP($B157,Pupils,Pupils!$P$3,FALSE))/VLOOKUP($B157,Pupils,Pupils!$L$3,FALSE)), \"x\")","v":0.1987226907333432},{"$f":"IFERROR(((VLOOKUP($B157,Pupils,Pupils!$R$3,FALSE)+VLOOKUP($B157,Pupils,Pupils!$U$3,FALSE))/VLOOKUP($B157,Pupils,Pupils!$Q$3,FALSE)), \"x\")","v":0.19576887413986629},{"$f":"IFERROR(((VLOOKUP($B157,Pupils,Pupils!$W$3,FALSE)+VLOOKUP($B157,Pupils,Pupils!$Z$3,FALSE))/VLOOKUP($B157,Pupils,Pupils!$V$3,FALSE)), \"x\")","v":0.18714836361895185},{"$f":"(SUM(INDEX(Pupils!$AB$7:$AB$159,MATCH($B157,Pupils!$A$7:$A$159,0)),INDEX(Pupils!$AC$7:$AC$159,MATCH($B157,Pupils!$A$7:$A$159,0)),INDEX(Pupils!$AD$7:$AD$159,MATCH($B157,Pupils!$A$7:$A$159,0)),INDEX(Pupils!$AE$7:$AE$159,MATCH($B157,Pupils!$A$7:$A$159,0))))/SUM(INDEX(Pupils!$AB$7:$AM$159,MATCH($B157,Pupils!$A$7:$A$159,0),0))","v":0.51249290176036344},{"$f":"SUM(INDEX(Pupils!$AF$7:$AF$159,MATCH($B157,Pupils!$A$7:$A$159,0)))/SUM(INDEX(Pupils!$AB$7:$AM$159,MATCH($B157,Pupils!$A$7:$A$159,0),0))","v":0.21578648495173197},{"$f":"SUM(INDEX(Pupils!$AG$7:$AG$159,MATCH($B157,Pupils!$A$7:$A$159,0)))/SUM(INDEX(Pupils!$AB$7:$AM$159,MATCH($B157,Pupils!$A$7:$A$159,0),0))","v":0.11584327086882454},{"$f":"(SUM(INDEX(Pupils!$AH$7:$AH$159,MATCH($B157,Pupils!$A$7:$A$159,0)),INDEX(Pupils!$AI$7:$AI$159,MATCH($B157,Pupils!$A$7:$A$159,0)),INDEX(Pupils!$AJ$7:$AJ$159,MATCH($B157,Pupils!$A$7:$A$159,0))))/SUM(INDEX(Pupils!$AB$7:$AM$159,MATCH($B157,Pupils!$A$7:$A$159,0),0))","v":3.7478705281090291E-2},{"$f":"SUM(INDEX(Pupils!$AK$7:$AK$159,MATCH($B157,Pupils!$A$7:$A$159,0)))/SUM(INDEX(Pupils!$AB$7:$AM$159,MATCH($B157,Pupils!$A$7:$A$159,0),0))","v":3.9182282793867124E-2},{"$f":"SUM(INDEX(Pupils!$AL$7:$AL$159,MATCH($B157,Pupils!$A$7:$A$159,0)))/SUM(INDEX(Pupils!$AB$7:$AM$159,MATCH($B157,Pupils!$A$7:$A$159,0),0))","v":4.91198182850653E-2},{"$f":"SUM(INDEX(Pupils!$AM$7:$AM$159,MATCH($B157,Pupils!$A$7:$A$159,0)))/SUM(INDEX(Pupils!$AB$7:$AM$159,MATCH($B157,Pupils!$A$7:$A$159,0),0))","v":3.0096536059057353E-2},{"$f":"(SUM(INDEX(Pupils!$BH$7:$BH$159,MATCH($B157,Pupils!$A$7:$A$159,0)),INDEX(Pupils!$BK$7:$BK$159,MATCH($B157,Pupils!$A$7:$A$159,0)),INDEX(Pupils!$BO$7:$BO$159,MATCH($B157,Pupils!$A$7:$A$159,0))))/SUM(INDEX(Pupils!$BH$7:$BS$159,MATCH($B157,Pupils!$A$7:$A$159,0),0))","v":0.410726887791108},{"$f":"(SUM(INDEX(Pupils!$BL$7:$BL$159,MATCH($B157,Pupils!$A$7:$A$159,0)),INDEX(Pupils!$BM$7:$BM$159,MATCH($B157,Pupils!$A$7:$A$159,0)),INDEX(Pupils!$BP$7:$BP$159,MATCH($B157,Pupils!$A$7:$A$159,0))))/SUM(INDEX(Pupils!$BH$7:$BS$159,MATCH($B157,Pupils!$A$7:$A$159,0),0))","v":0.51093860268172198},{"$f":"(SUM(INDEX(Pupils!$BI$7:$BI$159,MATCH($B157,Pupils!$A$7:$A$159,0)),INDEX(Pupils!$BJ$7:$BJ$159,MATCH($B157,Pupils!$A$7:$A$159,0))))/SUM(INDEX(Pupils!$BH$7:$BS$159,MATCH($B157,Pupils!$A$7:$A$159,0),0))","v":6.9160197600564577E-2},{"$f":"(SUM(INDEX(Pupils!$BQ$7:$BQ$159,MATCH($B157,Pupils!$A$7:$A$159,0)),INDEX(Pupils!$BR$7:$BR$159,MATCH($B157,Pupils!$A$7:$A$159,0)),INDEX(Pupils!$BN$7:$BN$159,MATCH($B157,Pupils!$A$7:$A$159,0)),INDEX(Pupils!$BS$7:$BS$159,MATCH($B157,Pupils!$A$7:$A$159,0))))/SUM(INDEX(Pupils!$BH$7:$BS$159,MATCH($B157,Pupils!$A$7:$A$159,0),0))","v":9.1743119266055051E-3},{"$f":"IFERROR((VLOOKUP(B157,Funding,Funding!$C$2,FALSE)), \"x\")","v":25862491.66},{"$f":"IFERROR((AA157/VLOOKUP(B157,Funding,Funding!$D$2,FALSE)), \"x\")","v":0.13623561959613931},{"$f":"IFERROR((AA157/(VLOOKUP(B157,Pupils,Pupils!$M$3,FALSE)+VLOOKUP(B157,Pupils,Pupils!$P$3,FALSE))), \"x\")","v":3209.1440203499192},{"$f":"IFERROR((VLOOKUP(B157,Funding,Funding!$E$2,FALSE)), \"x\")","v":26602297.606950868},{"$f":"IFERROR((AD157/VLOOKUP(B157,Funding,Funding!$F$2,FALSE)), \"x\")","v":0.13525456235190664},{"$f":"IFERROR((AD157/(VLOOKUP(B157,Pupils,Pupils!$R$3,FALSE)+VLOOKUP(B157,Pupils,Pupils!$U$3,FALSE))), \"x\")","v":3315.7544069488804},{"$f":"IFERROR((VLOOKUP(B157,Funding,Funding!$G$2,FALSE)), \"x\")","v":27605705.18736279},{"$f":"IFERROR((AG157/VLOOKUP(B157,Funding,Funding!$H$2,FALSE)), \"x\")","v":0.13654697529142007},{"$f":"IFERROR((AG157/(VLOOKUP(B157,Pupils,Pupils!$W$3,FALSE)+VLOOKUP(B157,Pupils,Pupils!$Z$3,FALSE))), \"x\")","v":3531.4961222160405},{"$f":"IFERROR((VLOOKUP(B157,Funding,Funding!$I$2,FALSE)), \"x\")","v":27662002.928630646},{"$f":"IFERROR((AJ157/VLOOKUP(B157,Funding,Funding!$J$2,FALSE)), \"x\")","v":0.13809596589601442},null,{"$f":"IFERROR((VLOOKUP($B157,Funding,Funding!$EC$2,FALSE)), \"x\")","v":14615580},{"$f":"IFERROR((AM157/VLOOKUP($B157,Funding,Funding!$EU$2,FALSE)), \"x\")","v":7.3439686662803844E-2},{"$f":"IFERROR((AM157/(VLOOKUP($B157,Pupils,Pupils!$D$3,FALSE)+VLOOKUP($B157,Pupils,Pupils!$E$3,FALSE))), \"x\")","v":1867.3284783441932},{"$f":"IFERROR((VLOOKUP($B157,Funding,Funding!$DA$2,FALSE)), \"x\")","v":15847662.65693},{"$f":"IFERROR((AP157/VLOOKUP($B157,Funding,Funding!$DT$2,FALSE)), \"x\")","v":7.9050585167456389E-2},{"$f":"IFERROR((AP157/(VLOOKUP($B157,Pupils,Pupils!$G$3,FALSE)+VLOOKUP($B157,Pupils,Pupils!$H$3,FALSE))), \"x\")","v":1880.5817796285748},{"$f":"IFERROR((VLOOKUP($B157,Funding,Funding!$CE$2,FALSE)), \"x\")","v":18716305},{"$f":"IFERROR((AS157/VLOOKUP($B157,Funding,Funding!$CR$2,FALSE)), \"x\")","v":9.6084888496448834E-2},{"$f":"IFERROR((AS157/(VLOOKUP($B157,Pupils,Pupils!$J$3,FALSE)+VLOOKUP($B157,Pupils,Pupils!$K$3,FALSE))), \"x\")","v":2281.3633593369086},{"$f":"IFERROR((VLOOKUP($B157,Funding,Funding!$BM$2,FALSE)), \"x\")","v":19230725.759999998},{"$f":"IFERROR((AV157/VLOOKUP($B157,Funding,Funding!$BY$2,FALSE)), \"x\")","v":9.9376200595638481E-2},{"$f":"IFERROR((AV157/(VLOOKUP($B157,Pupils,Pupils!$M$3,FALSE)+VLOOKUP($B157,Pupils,Pupils!$P$3,FALSE))), \"x\")","v":2386.242183893783},{"$f":"IFERROR((VLOOKUP($B157,Funding,Funding!$AQ$2,FALSE)), \"x\")","v":33083834},{"$f":"IFERROR((AY157/VLOOKUP($B157,Funding,Funding!$BE$2,FALSE)), \"x\")","v":0.15898030699653046},{"$f":"IFERROR((AY157/(VLOOKUP($B157,Pupils,Pupils!$R$3,FALSE)+VLOOKUP($B157,Pupils,Pupils!$U$3,FALSE))), \"x\")","v":4123.6238314844823},{"$f":"IFERROR((VLOOKUP($B157,Funding,Funding!$S$2,FALSE)), \"x\")","v":18866760},{"$f":"IFERROR((BB157/VLOOKUP($B157,Funding,Funding!$AH$2,FALSE)), \"x\")","v":9.1247046989731684E-2},{"$f":"IFERROR((BB157/(VLOOKUP(B157,Pupils,Pupils!$W$3,FALSE)+VLOOKUP(B157,Pupils,Pupils!$Z$3,FALSE))), \"x\")","v":2413.5550722783678},{"$f":"IFERROR((VLOOKUP($B157,Funding,Funding!$GX$2,FALSE)), \"x\")","v":25143772.670000002},{"$f":"IFERROR((BE157/VLOOKUP($B157,Funding,Funding!$HC$2,FALSE)), \"x\")","v":0.11233205049287545},{"$f":"IFERROR((BE157/(VLOOKUP($B157,Pupils,Pupils!$D$3,FALSE)+VLOOKUP($B157,Pupils,Pupils!$E$3,FALSE))), \"x\")","v":3212.4406119841578},{"$f":"IFERROR((VLOOKUP($B157,Funding,Funding!$GP$2,FALSE)), \"x\")","v":25320820.030000001},{"$f":"IFERROR((BH157/VLOOKUP($B157,Funding,Funding!$GU$2,FALSE)), \"x\")","v":0.11749285813441927},{"$f":"IFERROR((BH157/(VLOOKUP($B157,Pupils,Pupils!$G$3,FALSE)+VLOOKUP($B157,Pupils,Pupils!$H$3,FALSE))), \"x\")","v":3004.7252913255015},{"$f":"IFERROR((VLOOKUP($B157,Funding,Funding!$GH$2,FALSE)), \"x\")","v":24725811.77},{"$f":"IFERROR((BK157/VLOOKUP($B157,Funding,Funding!$GM$2,FALSE)), \"x\")","v":0.11604767822424136},{"$f":"IFERROR((BK157/(VLOOKUP($B157,Pupils,Pupils!$J$3,FALSE)+VLOOKUP($B157,Pupils,Pupils!$K$3,FALSE))), \"x\")","v":3013.872716967333},{"$f":"IFERROR((VLOOKUP($B157,Funding,Funding!$FZ$2,FALSE)), \"x\")","v":25272612.169999998},{"$f":"IFERROR((BN157/VLOOKUP($B157,Funding,Funding!$GE$2,FALSE)), \"x\")","v":0.12279491683686436},{"$f":"IFERROR((BN157/(VLOOKUP($B157,Pupils,Pupils!$M$3,FALSE)+VLOOKUP($B157,Pupils,Pupils!$P$3,FALSE))), \"x\")","v":3135.948898126318},{"$f":"IFERROR((VLOOKUP($B157,Funding,Funding!$FD$2,FALSE)), \"x\")","v":22813348},{"$f":"IFERROR((BQ157/VLOOKUP($B157,Funding,Funding!$FR$2,FALSE)), \"x\")","v":0.13288464639977512},{"$f":"IFERROR((BQ157/(VLOOKUP($B157,Pupils,Pupils!$R$3,FALSE)+VLOOKUP($B157,Pupils,Pupils!$U$3,FALSE))), \"x\")","v":2843.4934563130996},{"$f":"(VLOOKUP(B157,Funding,Funding!$HK$2,FALSE)+VLOOKUP(B157,Funding,Funding!$HL$2,FALSE)+VLOOKUP(B157,Funding,Funding!$HM$2,FALSE))/(VLOOKUP(B157,Funding,Funding!$HN$2,FALSE))","v":0.20767649074708705},{"$f":"IFERROR((VLOOKUP(B157,Other_data,Other!$D$3,FALSE)+VLOOKUP(B157,Other_data,Other!$E$3,FALSE)+VLOOKUP(B157,Other_data,Other!$F$3,FALSE)), \"x\")","v":1660},{"$f":"(VLOOKUP(B157,Other_data,Other!$AK$3,FALSE)+VLOOKUP(B157,Other_data,Other!$AL$3,FALSE))/VLOOKUP(B157,Other_data,Other!$AJ$3,FALSE)","v":4.2563977775074015E-2},{"$f":"(VLOOKUP(B157,Other_data,Other!$AR$3,FALSE)+VLOOKUP(B157,Other_data,Other!$AS$3,FALSE))/VLOOKUP(B157,Other_data,Other!$AQ$3,FALSE)","v":5.7771388452408812E-2},{"$f":"VLOOKUP(B157,Other_data,Other!$AP$3,FALSE)/VLOOKUP(B157,Other_data,Other!$AJ$3,FALSE)","v":7.9490611185464577E-3},{"$f":"VLOOKUP(B157,Other_data,Other!$AW$3,FALSE)/VLOOKUP(B157,Other_data,Other!$AQ$3,FALSE)","v":1.2670923740429942E-2}]
[152,885,"Worcestershire",{"$f":"IFERROR((VLOOKUP($B158,Pupils,Pupils!$D$3,FALSE)/VLOOKUP($B158,Pupils,Pupils!$C$3,FALSE)), \"x\")","v":2.9972245770092786E-2},{"$f":"IFERROR((VLOOKUP($B158,Pupils,Pupils!$G$3,FALSE)/VLOOKUP($B158,Pupils,Pupils!$F$3,FALSE)),\"x\")","v":2.9887075068749634E-2},{"$f":"IFERROR((VLOOKUP($B158,Pupils,Pupils!$J$3,FALSE)/VLOOKUP($B158,Pupils,Pupils!$I$3,FALSE)), \"x\")","v":3.0945181141088848E-2},{"$f":"IFERROR((VLOOKUP($B158,Pupils,Pupils!$M$3,FALSE)/VLOOKUP($B158,Pupils,Pupils!$L$3,FALSE)), \"x\")","v":3.186582317108954E-2},{"$f":"IFERROR((VLOOKUP($B158,Pupils,Pupils!$R$3,FALSE)/VLOOKUP($B158,Pupils,Pupils!$Q$3,FALSE)), \"x\")","v":3.0872972052206807E-2},{"$f":"IFERROR((VLOOKUP($B158,Pupils,Pupils!$W$3,FALSE)/VLOOKUP($B158,Pupils,Pupils!$V$3,FALSE)), \"x\")","v":3.0450184155582143E-2},{"$f":"IFERROR(((VLOOKUP($B158,Pupils,Pupils!$D$3,FALSE)+VLOOKUP($B158,Pupils,Pupils!$E$3,FALSE))/VLOOKUP($B158,Pupils,Pupils!$C$3,FALSE)), \"x\")","v":0.20589225784724721},{"$f":"IFERROR(((VLOOKUP($B158,Pupils,Pupils!$G$3,FALSE)+VLOOKUP($B158,Pupils,Pupils!$H$3,FALSE))/VLOOKUP($B158,Pupils,Pupils!$F$3,FALSE)), \"x\")","v":0.21442864665613481},{"$f":"IFERROR(((VLOOKUP($B158,Pupils,Pupils!$J$3,FALSE)+VLOOKUP($B158,Pupils,Pupils!$K$3,FALSE))/VLOOKUP($B158,Pupils,Pupils!$I$3,FALSE)), \"x\")","v":0.21709868335902294},{"$f":"IFERROR(((VLOOKUP($B158,Pupils,Pupils!$M$3,FALSE)+VLOOKUP($B158,Pupils,Pupils!$P$3,FALSE))/VLOOKUP($B158,Pupils,Pupils!$L$3,FALSE)), \"x\")","v":0.21288482529547775},{"$f":"IFERROR(((VLOOKUP($B158,Pupils,Pupils!$R$3,FALSE)+VLOOKUP($B158,Pupils,Pupils!$U$3,FALSE))/VLOOKUP($B158,Pupils,Pupils!$Q$3,FALSE)), \"x\")","v":0.20288288711629054},{"$f":"IFERROR(((VLOOKUP($B158,Pupils,Pupils!$W$3,FALSE)+VLOOKUP($B158,Pupils,Pupils!$Z$3,FALSE))/VLOOKUP($B158,Pupils,Pupils!$V$3,FALSE)), \"x\")","v":0.20156239003448517},{"$f":"(SUM(INDEX(Pupils!$AB$7:$AB$159,MATCH($B158,Pupils!$A$7:$A$159,0)),INDEX(Pupils!$AC$7:$AC$159,MATCH($B158,Pupils!$A$7:$A$159,0)),INDEX(Pupils!$AD$7:$AD$159,MATCH($B158,Pupils!$A$7:$A$159,0)),INDEX(Pupils!$AE$7:$AE$159,MATCH($B158,Pupils!$A$7:$A$159,0))))/SUM(INDEX(Pupils!$AB$7:$AM$159,MATCH($B158,Pupils!$A$7:$A$159,0),0))","v":0.36108294463597645},{"$f":"SUM(INDEX(Pupils!$AF$7:$AF$159,MATCH($B158,Pupils!$A$7:$A$159,0)))/SUM(INDEX(Pupils!$AB$7:$AM$159,MATCH($B158,Pupils!$A$7:$A$159,0),0))","v":0.19134049888460758},{"$f":"SUM(INDEX(Pupils!$AG$7:$AG$159,MATCH($B158,Pupils!$A$7:$A$159,0)))/SUM(INDEX(Pupils!$AB$7:$AM$159,MATCH($B158,Pupils!$A$7:$A$159,0),0))","v":0.25846684242547152},{"$f":"(SUM(INDEX(Pupils!$AH$7:$AH$159,MATCH($B158,Pupils!$A$7:$A$159,0)),INDEX(Pupils!$AI$7:$AI$159,MATCH($B158,Pupils!$A$7:$A$159,0)),INDEX(Pupils!$AJ$7:$AJ$159,MATCH($B158,Pupils!$A$7:$A$159,0))))/SUM(INDEX(Pupils!$AB$7:$AM$159,MATCH($B158,Pupils!$A$7:$A$159,0),0))","v":3.6199553843033867E-2},{"$f":"SUM(INDEX(Pupils!$AK$7:$AK$159,MATCH($B158,Pupils!$A$7:$A$159,0)))/SUM(INDEX(Pupils!$AB$7:$AM$159,MATCH($B158,Pupils!$A$7:$A$159,0),0))","v":3.0419793145406611E-2},{"$f":"SUM(INDEX(Pupils!$AL$7:$AL$159,MATCH($B158,Pupils!$A$7:$A$159,0)))/SUM(INDEX(Pupils!$AB$7:$AM$159,MATCH($B158,Pupils!$A$7:$A$159,0),0))","v":6.9661326302981136E-2},{"$f":"SUM(INDEX(Pupils!$AM$7:$AM$159,MATCH($B158,Pupils!$A$7:$A$159,0)))/SUM(INDEX(Pupils!$AB$7:$AM$159,MATCH($B158,Pupils!$A$7:$A$159,0),0))","v":5.2829040762522816E-2},{"$f":"(SUM(INDEX(Pupils!$BH$7:$BH$159,MATCH($B158,Pupils!$A$7:$A$159,0)),INDEX(Pupils!$BK$7:$BK$159,MATCH($B158,Pupils!$A$7:$A$159,0)),INDEX(Pupils!$BO$7:$BO$159,MATCH($B158,Pupils!$A$7:$A$159,0))))/SUM(INDEX(Pupils!$BH$7:$BS$159,MATCH($B158,Pupils!$A$7:$A$159,0),0))","v":0.44536082474226807},{"$f":"(SUM(INDEX(Pupils!$BL$7:$BL$159,MATCH($B158,Pupils!$A$7:$A$159,0)),INDEX(Pupils!$BM$7:$BM$159,MATCH($B158,Pupils!$A$7:$A$159,0)),INDEX(Pupils!$BP$7:$BP$159,MATCH($B158,Pupils!$A$7:$A$159,0))))/SUM(INDEX(Pupils!$BH$7:$BS$159,MATCH($B158,Pupils!$A$7:$A$159,0),0))","v":0.50515463917525771},{"$f":"(SUM(INDEX(Pupils!$BI$7:$BI$159,MATCH($B158,Pupils!$A$7:$A$159,0)),INDEX(Pupils!$BJ$7:$BJ$159,MATCH($B158,Pupils!$A$7:$A$159,0))))/SUM(INDEX(Pupils!$BH$7:$BS$159,MATCH($B158,Pupils!$A$7:$A$159,0),0))","v":4.1649484536082478E-2},{"$f":"(SUM(INDEX(Pupils!$BQ$7:$BQ$159,MATCH($B158,Pupils!$A$7:$A$159,0)),INDEX(Pupils!$BR$7:$BR$159,MATCH($B158,Pupils!$A$7:$A$159,0)),INDEX(Pupils!$BN$7:$BN$159,MATCH($B158,Pupils!$A$7:$A$159,0)),INDEX(Pupils!$BS$7:$BS$159,MATCH($B158,Pupils!$A$7:$A$159,0))))/SUM(INDEX(Pupils!$BH$7:$BS$159,MATCH($B158,Pupils!$A$7:$A$159,0),0))","v":7.8350515463917522E-3},{"$f":"IFERROR((VLOOKUP(B158,Funding,Funding!$C$2,FALSE)), \"x\")","v":39871070.029999994},{"$f":"IFERROR((AA158/VLOOKUP(B158,Funding,Funding!$D$2,FALSE)), \"x\")","v":0.11562143313165033},{"$f":"IFERROR((AA158/(VLOOKUP(B158,Pupils,Pupils!$M$3,FALSE)+VLOOKUP(B158,Pupils,Pupils!$P$3,FALSE))), \"x\")","v":2198.2065293858195},{"$f":"IFERROR((VLOOKUP(B158,Funding,Funding!$E$2,FALSE)), \"x\")","v":40581069.411766291},{"$f":"IFERROR((AD158/VLOOKUP(B158,Funding,Funding!$F$2,FALSE)), \"x\")","v":0.1155862332995332},{"$f":"IFERROR((AD158/(VLOOKUP(B158,Pupils,Pupils!$R$3,FALSE)+VLOOKUP(B158,Pupils,Pupils!$U$3,FALSE))), \"x\")","v":2349.8013556320957},{"$f":"IFERROR((VLOOKUP(B158,Funding,Funding!$G$2,FALSE)), \"x\")","v":43729804.761235088},{"$f":"IFERROR((AG158/VLOOKUP(B158,Funding,Funding!$H$2,FALSE)), \"x\")","v":0.12243155767735353},{"$f":"IFERROR((AG158/(VLOOKUP(B158,Pupils,Pupils!$W$3,FALSE)+VLOOKUP(B158,Pupils,Pupils!$Z$3,FALSE))), \"x\")","v":2544.7977631072558},{"$f":"IFERROR((VLOOKUP(B158,Funding,Funding!$I$2,FALSE)), \"x\")","v":44016372.910238706},{"$f":"IFERROR((AJ158/VLOOKUP(B158,Funding,Funding!$J$2,FALSE)), \"x\")","v":0.12184732924255404},null,{"$f":"IFERROR((VLOOKUP($B158,Funding,Funding!$EC$2,FALSE)), \"x\")","v":27138596.510000002},{"$f":"IFERROR((AM158/VLOOKUP($B158,Funding,Funding!$EU$2,FALSE)), \"x\")","v":7.5646163707821568E-2},{"$f":"IFERROR((AM158/(VLOOKUP($B158,Pupils,Pupils!$D$3,FALSE)+VLOOKUP($B158,Pupils,Pupils!$E$3,FALSE))), \"x\")","v":1530.6597016356459},{"$f":"IFERROR((VLOOKUP($B158,Funding,Funding!$DA$2,FALSE)), \"x\")","v":29590633},{"$f":"IFERROR((AP158/VLOOKUP($B158,Funding,Funding!$DT$2,FALSE)), \"x\")","v":8.1106987306016606E-2},{"$f":"IFERROR((AP158/(VLOOKUP($B158,Pupils,Pupils!$G$3,FALSE)+VLOOKUP($B158,Pupils,Pupils!$H$3,FALSE))), \"x\")","v":1614.8566361056537},{"$f":"IFERROR((VLOOKUP($B158,Funding,Funding!$CE$2,FALSE)), \"x\")","v":29003188.895019997},{"$f":"IFERROR((AS158/VLOOKUP($B158,Funding,Funding!$CR$2,FALSE)), \"x\")","v":7.9518320649679647E-2},{"$f":"IFERROR((AS158/(VLOOKUP($B158,Pupils,Pupils!$J$3,FALSE)+VLOOKUP($B158,Pupils,Pupils!$K$3,FALSE))), \"x\")","v":1571.9033599815727},{"$f":"IFERROR((VLOOKUP($B158,Funding,Funding!$BM$2,FALSE)), \"x\")","v":31431355.690000001},{"$f":"IFERROR((AV158/VLOOKUP($B158,Funding,Funding!$BY$2,FALSE)), \"x\")","v":0.10492596014389287},{"$f":"IFERROR((AV158/(VLOOKUP($B158,Pupils,Pupils!$M$3,FALSE)+VLOOKUP($B158,Pupils,Pupils!$P$3,FALSE))), \"x\")","v":1732.9008540081597},{"$f":"IFERROR((VLOOKUP($B158,Funding,Funding!$AQ$2,FALSE)), \"x\")","v":38017435},{"$f":"IFERROR((AY158/VLOOKUP($B158,Funding,Funding!$BE$2,FALSE)), \"x\")","v":0.10612523197967171},{"$f":"IFERROR((AY158/(VLOOKUP($B158,Pupils,Pupils!$R$3,FALSE)+VLOOKUP($B158,Pupils,Pupils!$U$3,FALSE))), \"x\")","v":2201.3569774174871},{"$f":"IFERROR((VLOOKUP($B158,Funding,Funding!$S$2,FALSE)), \"x\")","v":39041817},{"$f":"IFERROR((BB158/VLOOKUP($B158,Funding,Funding!$AH$2,FALSE)), \"x\")","v":0.10753595935382798},{"$f":"IFERROR((BB158/(VLOOKUP(B158,Pupils,Pupils!$W$3,FALSE)+VLOOKUP(B158,Pupils,Pupils!$Z$3,FALSE))), \"x\")","v":2271.9865572625699},{"$f":"IFERROR((VLOOKUP($B158,Funding,Funding!$GX$2,FALSE)), \"x\")","v":53475533.57},{"$f":"IFERROR((BE158/VLOOKUP($B158,Funding,Funding!$HC$2,FALSE)), \"x\")","v":0.13940013965216641},{"$f":"IFERROR((BE158/(VLOOKUP($B158,Pupils,Pupils!$D$3,FALSE)+VLOOKUP($B158,Pupils,Pupils!$E$3,FALSE))), \"x\")","v":3016.1045442752397},{"$f":"IFERROR((VLOOKUP($B158,Funding,Funding!$GP$2,FALSE)), \"x\")","v":55969015.420000002},{"$f":"IFERROR((BH158/VLOOKUP($B158,Funding,Funding!$GU$2,FALSE)), \"x\")","v":0.14178868773342329},{"$f":"IFERROR((BH158/(VLOOKUP($B158,Pupils,Pupils!$G$3,FALSE)+VLOOKUP($B158,Pupils,Pupils!$H$3,FALSE))), \"x\")","v":3054.4103590919012},{"$f":"IFERROR((VLOOKUP($B158,Funding,Funding!$GH$2,FALSE)), \"x\")","v":53815797.829999998},{"$f":"IFERROR((BK158/VLOOKUP($B158,Funding,Funding!$GM$2,FALSE)), \"x\")","v":0.15784132863652436},{"$f":"IFERROR((BK158/(VLOOKUP($B158,Pupils,Pupils!$J$3,FALSE)+VLOOKUP($B158,Pupils,Pupils!$K$3,FALSE))), \"x\")","v":2916.6873248062434},{"$f":"IFERROR((VLOOKUP($B158,Funding,Funding!$FZ$2,FALSE)), \"x\")","v":50412456.030000001},{"$f":"IFERROR((BN158/VLOOKUP($B158,Funding,Funding!$GE$2,FALSE)), \"x\")","v":0.17327689339976507},{"$f":"IFERROR((BN158/(VLOOKUP($B158,Pupils,Pupils!$M$3,FALSE)+VLOOKUP($B158,Pupils,Pupils!$P$3,FALSE))), \"x\")","v":2779.3833956334765},{"$f":"IFERROR((VLOOKUP($B158,Funding,Funding!$FD$2,FALSE)), \"x\")","v":35338838},{"$f":"IFERROR((BQ158/VLOOKUP($B158,Funding,Funding!$FR$2,FALSE)), \"x\")","v":0.14003903881017526},{"$f":"IFERROR((BQ158/(VLOOKUP($B158,Pupils,Pupils!$R$3,FALSE)+VLOOKUP($B158,Pupils,Pupils!$U$3,FALSE))), \"x\")","v":2046.2558193398959},{"$f":"(VLOOKUP(B158,Funding,Funding!$HK$2,FALSE)+VLOOKUP(B158,Funding,Funding!$HL$2,FALSE)+VLOOKUP(B158,Funding,Funding!$HM$2,FALSE))/(VLOOKUP(B158,Funding,Funding!$HN$2,FALSE))","v":0.2},{"$f":"IFERROR((VLOOKUP(B158,Other_data,Other!$D$3,FALSE)+VLOOKUP(B158,Other_data,Other!$E$3,FALSE)+VLOOKUP(B158,Other_data,Other!$F$3,FALSE)), \"x\")","v":3520},{"$f":"(VLOOKUP(B158,Other_data,Other!$AK$3,FALSE)+VLOOKUP(B158,Other_data,Other!$AL$3,FALSE))/VLOOKUP(B158,Other_data,Other!$AJ$3,FALSE)","v":3.682030968671228E-2},{"$f":"(VLOOKUP(B158,Other_data,Other!$AR$3,FALSE)+VLOOKUP(B158,Other_data,Other!$AS$3,FALSE))/VLOOKUP(B158,Other_data,Other!$AQ$3,FALSE)","v":5.2978230828592453E-2},{"$f":"VLOOKUP(B158,Other_data,Other!$AP$3,FALSE)/VLOOKUP(B158,Other_data,Other!$AJ$3,FALSE)","v":5.1814508062257431E-3},{"$f":"VLOOKUP(B158,Other_data,Other!$AW$3,FALSE)/VLOOKUP(B158,Other_data,Other!$AQ$3,FALSE)","v":1.1073024532940902E-2}]
[153,816,"York",{"$f":"IFERROR((VLOOKUP($B159,Pupils,Pupils!$D$3,FALSE)/VLOOKUP($B159,Pupils,Pupils!$C$3,FALSE)), \"x\")","v":1.8423826066591202E-2},{"$f":"IFERROR((VLOOKUP($B159,Pupils,Pupils!$G$3,FALSE)/VLOOKUP($B159,Pupils,Pupils!$F$3,FALSE)),\"x\")","v":1.8065969928901665E-2},{"$f":"IFERROR((VLOOKUP($B159,Pupils,Pupils!$J$3,FALSE)/VLOOKUP($B159,Pupils,Pupils!$I$3,FALSE)), \"x\")","v":1.8285626109096519E-2},{"$f":"IFERROR((VLOOKUP($B159,Pupils,Pupils!$M$3,FALSE)/VLOOKUP($B159,Pupils,Pupils!$L$3,FALSE)), \"x\")","v":1.8618756958040616E-2},{"$f":"IFERROR((VLOOKUP($B159,Pupils,Pupils!$R$3,FALSE)/VLOOKUP($B159,Pupils,Pupils!$Q$3,FALSE)), \"x\")","v":1.9979488737797698E-2},{"$f":"IFERROR((VLOOKUP($B159,Pupils,Pupils!$W$3,FALSE)/VLOOKUP($B159,Pupils,Pupils!$V$3,FALSE)), \"x\")","v":1.9256132946452124E-2},{"$f":"IFERROR(((VLOOKUP($B159,Pupils,Pupils!$D$3,FALSE)+VLOOKUP($B159,Pupils,Pupils!$E$3,FALSE))/VLOOKUP($B159,Pupils,Pupils!$C$3,FALSE)), \"x\")","v":0.16109137749326671},{"$f":"IFERROR(((VLOOKUP($B159,Pupils,Pupils!$G$3,FALSE)+VLOOKUP($B159,Pupils,Pupils!$H$3,FALSE))/VLOOKUP($B159,Pupils,Pupils!$F$3,FALSE)), \"x\")","v":0.15641633319087767},{"$f":"IFERROR(((VLOOKUP($B159,Pupils,Pupils!$J$3,FALSE)+VLOOKUP($B159,Pupils,Pupils!$K$3,FALSE))/VLOOKUP($B159,Pupils,Pupils!$I$3,FALSE)), \"x\")","v":0.16163876244116968},{"$f":"IFERROR(((VLOOKUP($B159,Pupils,Pupils!$M$3,FALSE)+VLOOKUP($B159,Pupils,Pupils!$P$3,FALSE))/VLOOKUP($B159,Pupils,Pupils!$L$3,FALSE)), \"x\")","v":0.15340320165841298},{"$f":"IFERROR(((VLOOKUP($B159,Pupils,Pupils!$R$3,FALSE)+VLOOKUP($B159,Pupils,Pupils!$U$3,FALSE))/VLOOKUP($B159,Pupils,Pupils!$Q$3,FALSE)), \"x\")","v":0.14616173510084704},{"$f":"IFERROR(((VLOOKUP($B159,Pupils,Pupils!$W$3,FALSE)+VLOOKUP($B159,Pupils,Pupils!$Z$3,FALSE))/VLOOKUP($B159,Pupils,Pupils!$V$3,FALSE)), \"x\")","v":0.13743075705618571},{"$f":"(SUM(INDEX(Pupils!$AB$7:$AB$159,MATCH($B159,Pupils!$A$7:$A$159,0)),INDEX(Pupils!$AC$7:$AC$159,MATCH($B159,Pupils!$A$7:$A$159,0)),INDEX(Pupils!$AD$7:$AD$159,MATCH($B159,Pupils!$A$7:$A$159,0)),INDEX(Pupils!$AE$7:$AE$159,MATCH($B159,Pupils!$A$7:$A$159,0))))/SUM(INDEX(Pupils!$AB$7:$AM$159,MATCH($B159,Pupils!$A$7:$A$159,0),0))","v":0.35258964143426297},{"$f":"SUM(INDEX(Pupils!$AF$7:$AF$159,MATCH($B159,Pupils!$A$7:$A$159,0)))/SUM(INDEX(Pupils!$AB$7:$AM$159,MATCH($B159,Pupils!$A$7:$A$159,0),0))","v":0.25099601593625498},{"$f":"SUM(INDEX(Pupils!$AG$7:$AG$159,MATCH($B159,Pupils!$A$7:$A$159,0)))/SUM(INDEX(Pupils!$AB$7:$AM$159,MATCH($B159,Pupils!$A$7:$A$159,0),0))","v":0.17065073041168657},{"$f":"(SUM(INDEX(Pupils!$AH$7:$AH$159,MATCH($B159,Pupils!$A$7:$A$159,0)),INDEX(Pupils!$AI$7:$AI$159,MATCH($B159,Pupils!$A$7:$A$159,0)),INDEX(Pupils!$AJ$7:$AJ$159,MATCH($B159,Pupils!$A$7:$A$159,0))))/SUM(INDEX(Pupils!$AB$7:$AM$159,MATCH($B159,Pupils!$A$7:$A$159,0),0))","v":5.0464807436918988E-2},{"$f":"SUM(INDEX(Pupils!$AK$7:$AK$159,MATCH($B159,Pupils!$A$7:$A$159,0)))/SUM(INDEX(Pupils!$AB$7:$AM$159,MATCH($B159,Pupils!$A$7:$A$159,0),0))","v":5.3120849933598939E-2},{"$f":"SUM(INDEX(Pupils!$AL$7:$AL$159,MATCH($B159,Pupils!$A$7:$A$159,0)))/SUM(INDEX(Pupils!$AB$7:$AM$159,MATCH($B159,Pupils!$A$7:$A$159,0),0))","v":0.10956175298804781},{"$f":"SUM(INDEX(Pupils!$AM$7:$AM$159,MATCH($B159,Pupils!$A$7:$A$159,0)))/SUM(INDEX(Pupils!$AB$7:$AM$159,MATCH($B159,Pupils!$A$7:$A$159,0),0))","v":1.2616201859229747E-2},{"$f":"(SUM(INDEX(Pupils!$BH$7:$BH$159,MATCH($B159,Pupils!$A$7:$A$159,0)),INDEX(Pupils!$BK$7:$BK$159,MATCH($B159,Pupils!$A$7:$A$159,0)),INDEX(Pupils!$BO$7:$BO$159,MATCH($B159,Pupils!$A$7:$A$159,0))))/SUM(INDEX(Pupils!$BH$7:$BS$159,MATCH($B159,Pupils!$A$7:$A$159,0),0))","v":0.52535496957403649},{"$f":"(SUM(INDEX(Pupils!$BL$7:$BL$159,MATCH($B159,Pupils!$A$7:$A$159,0)),INDEX(Pupils!$BM$7:$BM$159,MATCH($B159,Pupils!$A$7:$A$159,0)),INDEX(Pupils!$BP$7:$BP$159,MATCH($B159,Pupils!$A$7:$A$159,0))))/SUM(INDEX(Pupils!$BH$7:$BS$159,MATCH($B159,Pupils!$A$7:$A$159,0),0))","v":0.34482758620689657},{"$f":"(SUM(INDEX(Pupils!$BI$7:$BI$159,MATCH($B159,Pupils!$A$7:$A$159,0)),INDEX(Pupils!$BJ$7:$BJ$159,MATCH($B159,Pupils!$A$7:$A$159,0))))/SUM(INDEX(Pupils!$BH$7:$BS$159,MATCH($B159,Pupils!$A$7:$A$159,0),0))","v":5.8823529411764705E-2},{"$f":"(SUM(INDEX(Pupils!$BQ$7:$BQ$159,MATCH($B159,Pupils!$A$7:$A$159,0)),INDEX(Pupils!$BR$7:$BR$159,MATCH($B159,Pupils!$A$7:$A$159,0)),INDEX(Pupils!$BN$7:$BN$159,MATCH($B159,Pupils!$A$7:$A$159,0)),INDEX(Pupils!$BS$7:$BS$159,MATCH($B159,Pupils!$A$7:$A$159,0))))/SUM(INDEX(Pupils!$BH$7:$BS$159,MATCH($B159,Pupils!$A$7:$A$159,0),0))","v":7.099391480730223E-2},{"$f":"IFERROR((VLOOKUP(B159,Funding,Funding!$C$2,FALSE)), \"x\")","v":13966740},{"$f":"IFERROR((AA159/VLOOKUP(B159,Funding,Funding!$D$2,FALSE)), \"x\")","v":0.13066554573755476},{"$f":"IFERROR((AA159/(VLOOKUP(B159,Pupils,Pupils!$M$3,FALSE)+VLOOKUP(B159,Pupils,Pupils!$P$3,FALSE))), \"x\")","v":3495.1801801801803},{"$f":"IFERROR((VLOOKUP(B159,Funding,Funding!$E$2,FALSE)), \"x\")","v":13709649.155211285},{"$f":"IFERROR((AD159/VLOOKUP(B159,Funding,Funding!$F$2,FALSE)), \"x\")","v":0.12466759100580789},{"$f":"IFERROR((AD159/(VLOOKUP(B159,Pupils,Pupils!$R$3,FALSE)+VLOOKUP(B159,Pupils,Pupils!$U$3,FALSE))), \"x\")","v":3562.7986370091699},{"$f":"IFERROR((VLOOKUP(B159,Funding,Funding!$G$2,FALSE)), \"x\")","v":14891685.875491967},{"$f":"IFERROR((AG159/VLOOKUP(B159,Funding,Funding!$H$2,FALSE)), \"x\")","v":0.13291228968131091},{"$f":"IFERROR((AG159/(VLOOKUP(B159,Pupils,Pupils!$W$3,FALSE)+VLOOKUP(B159,Pupils,Pupils!$Z$3,FALSE))), \"x\")","v":4083.2700508615212},{"$f":"IFERROR((VLOOKUP(B159,Funding,Funding!$I$2,FALSE)), \"x\")","v":15132866.064974234},{"$f":"IFERROR((AJ159/VLOOKUP(B159,Funding,Funding!$J$2,FALSE)), \"x\")","v":0.13521507961233981},null,{"$f":"IFERROR((VLOOKUP($B159,Funding,Funding!$EC$2,FALSE)), \"x\")","v":8916523},{"$f":"IFERROR((AM159/VLOOKUP($B159,Funding,Funding!$EU$2,FALSE)), \"x\")","v":8.3983452651096399E-2},{"$f":"IFERROR((AM159/(VLOOKUP($B159,Pupils,Pupils!$D$3,FALSE)+VLOOKUP($B159,Pupils,Pupils!$E$3,FALSE))), \"x\")","v":2160.5338017930699},{"$f":"IFERROR((VLOOKUP($B159,Funding,Funding!$DA$2,FALSE)), \"x\")","v":9261665},{"$f":"IFERROR((AP159/VLOOKUP($B159,Funding,Funding!$DT$2,FALSE)), \"x\")","v":8.3051442607852952E-2},{"$f":"IFERROR((AP159/(VLOOKUP($B159,Pupils,Pupils!$G$3,FALSE)+VLOOKUP($B159,Pupils,Pupils!$H$3,FALSE))), \"x\")","v":2300.4632389468456},{"$f":"IFERROR((VLOOKUP($B159,Funding,Funding!$CE$2,FALSE)), \"x\")","v":9615095},{"$f":"IFERROR((AS159/VLOOKUP($B159,Funding,Funding!$CR$2,FALSE)), \"x\")","v":8.2909841262981288E-2},{"$f":"IFERROR((AS159/(VLOOKUP($B159,Pupils,Pupils!$J$3,FALSE)+VLOOKUP($B159,Pupils,Pupils!$K$3,FALSE))), \"x\")","v":2294.772076372315},{"$f":"IFERROR((VLOOKUP($B159,Funding,Funding!$BM$2,FALSE)), \"x\")","v":9349205},{"$f":"IFERROR((AV159/VLOOKUP($B159,Funding,Funding!$BY$2,FALSE)), \"x\")","v":8.5659090307852057E-2},{"$f":"IFERROR((AV159/(VLOOKUP($B159,Pupils,Pupils!$M$3,FALSE)+VLOOKUP($B159,Pupils,Pupils!$P$3,FALSE))), \"x\")","v":2339.6408908908911},{"$f":"IFERROR((VLOOKUP($B159,Funding,Funding!$AQ$2,FALSE)), \"x\")","v":12722540},{"$f":"IFERROR((AY159/VLOOKUP($B159,Funding,Funding!$BE$2,FALSE)), \"x\")","v":0.10904700290322536},{"$f":"IFERROR((AY159/(VLOOKUP($B159,Pupils,Pupils!$R$3,FALSE)+VLOOKUP($B159,Pupils,Pupils!$U$3,FALSE))), \"x\")","v":3306.2733887733889},{"$f":"IFERROR((VLOOKUP($B159,Funding,Funding!$S$2,FALSE)), \"x\")","v":13094850},{"$f":"IFERROR((BB159/VLOOKUP($B159,Funding,Funding!$AH$2,FALSE)), \"x\")","v":0.11146389737066464},{"$f":"IFERROR((BB159/(VLOOKUP(B159,Pupils,Pupils!$W$3,FALSE)+VLOOKUP(B159,Pupils,Pupils!$Z$3,FALSE))), \"x\")","v":3590.5812996983823},{"$f":"IFERROR((VLOOKUP($B159,Funding,Funding!$GX$2,FALSE)), \"x\")","v":16188208},{"$f":"IFERROR((BE159/VLOOKUP($B159,Funding,Funding!$HC$2,FALSE)), \"x\")","v":0.13140543375374575},{"$f":"IFERROR((BE159/(VLOOKUP($B159,Pupils,Pupils!$D$3,FALSE)+VLOOKUP($B159,Pupils,Pupils!$E$3,FALSE))), \"x\")","v":3922.5122364913982},{"$f":"IFERROR((VLOOKUP($B159,Funding,Funding!$GP$2,FALSE)), \"x\")","v":15640649},{"$f":"IFERROR((BH159/VLOOKUP($B159,Funding,Funding!$GU$2,FALSE)), \"x\")","v":0.12894001117049012},{"$f":"IFERROR((BH159/(VLOOKUP($B159,Pupils,Pupils!$G$3,FALSE)+VLOOKUP($B159,Pupils,Pupils!$H$3,FALSE))), \"x\")","v":3884.9103328365622},{"$f":"IFERROR((VLOOKUP($B159,Funding,Funding!$GH$2,FALSE)), \"x\")","v":15427136.300000001},{"$f":"IFERROR((BK159/VLOOKUP($B159,Funding,Funding!$GM$2,FALSE)), \"x\")","v":0.13423967824215952},{"$f":"IFERROR((BK159/(VLOOKUP($B159,Pupils,Pupils!$J$3,FALSE)+VLOOKUP($B159,Pupils,Pupils!$K$3,FALSE))), \"x\")","v":3681.8941050119333},{"$f":"IFERROR((VLOOKUP($B159,Funding,Funding!$FZ$2,FALSE)), \"x\")","v":15800326.91},{"$f":"IFERROR((BN159/VLOOKUP($B159,Funding,Funding!$GE$2,FALSE)), \"x\")","v":0.13804526006798401},{"$f":"IFERROR((BN159/(VLOOKUP($B159,Pupils,Pupils!$M$3,FALSE)+VLOOKUP($B159,Pupils,Pupils!$P$3,FALSE))), \"x\")","v":3954.0357632632631},{"$f":"IFERROR((VLOOKUP($B159,Funding,Funding!$FD$2,FALSE)), \"x\")","v":13433641},{"$f":"IFERROR((BQ159/VLOOKUP($B159,Funding,Funding!$FR$2,FALSE)), \"x\")","v":0.1252228103219799},{"$f":"IFERROR((BQ159/(VLOOKUP($B159,Pupils,Pupils!$R$3,FALSE)+VLOOKUP($B159,Pupils,Pupils!$U$3,FALSE))), \"x\")","v":3491.0709459459458},{"$f":"(VLOOKUP(B159,Funding,Funding!$HK$2,FALSE)+VLOOKUP(B159,Funding,Funding!$HL$2,FALSE)+VLOOKUP(B159,Funding,Funding!$HM$2,FALSE))/(VLOOKUP(B159,Funding,Funding!$HN$2,FALSE))","v":0.26958105646630237},{"$f":"IFERROR((VLOOKUP(B159,Other_data,Other!$D$3,FALSE)+VLOOKUP(B159,Other_data,Other!$E$3,FALSE)+VLOOKUP(B159,Other_data,Other!$F$3,FALSE)), \"x\")","v":620},{"$f":"(VLOOKUP(B159,Other_data,Other!$AK$3,FALSE)+VLOOKUP(B159,Other_data,Other!$AL$3,FALSE))/VLOOKUP(B159,Other_data,Other!$AJ$3,FALSE)","v":2.6724437838008791E-2},{"$f":"(VLOOKUP(B159,Other_data,Other!$AR$3,FALSE)+VLOOKUP(B159,Other_data,Other!$AS$3,FALSE))/VLOOKUP(B159,Other_data,Other!$AQ$3,FALSE)","v":3.6246052037900434E-2},{"$f":"VLOOKUP(B159,Other_data,Other!$AP$3,FALSE)/VLOOKUP(B159,Other_data,Other!$AJ$3,FALSE)","v":4.3644644043138621E-3},{"$f":"VLOOKUP(B159,Other_data,Other!$AW$3,FALSE)/VLOOKUP(B159,Other_data,Other!$AQ$3,FALSE)","v":7.2943299744322454E-3}]
[154,971,"NORTH EAST",{"$f":"IFERROR((VLOOKUP($B160,Pupils,Pupils!$D$3,FALSE)/VLOOKUP($B160,Pupils,Pupils!$C$3,FALSE)), \"x\")","v":2.9322306570810919E-2},{"$f":"IFERROR((VLOOKUP($B160,Pupils,Pupils!$G$3,FALSE)/VLOOKUP($B160,Pupils,Pupils!$F$3,FALSE)),\"x\")","v":2.9047847979555175E-2},{"$f":"IFERROR((VLOOKUP($B160,Pupils,Pupils!$J$3,FALSE)/VLOOKUP($B160,Pupils,Pupils!$I$3,FALSE)), \"x\")","v":2.8523084360647811E-2},{"$f":"IFERROR((VLOOKUP($B160,Pupils,Pupils!$M$3,FALSE)/VLOOKUP($B160,Pupils,Pupils!$L$3,FALSE)), \"x\")","v":2.8583110793095078E-2},{"$f":"IFERROR((VLOOKUP($B160,Pupils,Pupils!$R$3,FALSE)/VLOOKUP($B160,Pupils,Pupils!$Q$3,FALSE)), \"x\")","v":2.8854270585526819E-2},{"$f":"IFERROR((VLOOKUP($B160,Pupils,Pupils!$W$3,FALSE)/VLOOKUP($B160,Pupils,Pupils!$V$3,FALSE)), \"x\")","v":2.912497120773936E-2},{"$f":"IFERROR(((VLOOKUP($B160,Pupils,Pupils!$D$3,FALSE)+VLOOKUP($B160,Pupils,Pupils!$E$3,FALSE))/VLOOKUP($B160,Pupils,Pupils!$C$3,FALSE)), \"x\")","v":0.21625358202202},{"$f":"IFERROR(((VLOOKUP($B160,Pupils,Pupils!$G$3,FALSE)+VLOOKUP($B160,Pupils,Pupils!$H$3,FALSE))/VLOOKUP($B160,Pupils,Pupils!$F$3,FALSE)), \"x\")","v":0.22136332582677565},{"$f":"IFERROR(((VLOOKUP($B160,Pupils,Pupils!$J$3,FALSE)+VLOOKUP($B160,Pupils,Pupils!$K$3,FALSE))/VLOOKUP($B160,Pupils,Pupils!$I$3,FALSE)), \"x\")","v":0.21377046677607725},{"$f":"IFERROR(((VLOOKUP($B160,Pupils,Pupils!$M$3,FALSE)+VLOOKUP($B160,Pupils,Pupils!$P$3,FALSE))/VLOOKUP($B160,Pupils,Pupils!$L$3,FALSE)), \"x\")","v":0.20677714884428147},{"$f":"IFERROR(((VLOOKUP($B160,Pupils,Pupils!$R$3,FALSE)+VLOOKUP($B160,Pupils,Pupils!$U$3,FALSE))/VLOOKUP($B160,Pupils,Pupils!$Q$3,FALSE)), \"x\")","v":0.19732432916378892},{"$f":"IFERROR(((VLOOKUP($B160,Pupils,Pupils!$W$3,FALSE)+VLOOKUP($B160,Pupils,Pupils!$Z$3,FALSE))/VLOOKUP($B160,Pupils,Pupils!$V$3,FALSE)), \"x\")","v":0.19404704015560617},{"$f":"(SUM(INDEX(Pupils!$AB$7:$AB$170,MATCH($B160,Pupils!$A$7:$A$170,0)),INDEX(Pupils!$AC$7:$AC$170,MATCH($B160,Pupils!$A$7:$A$170,0)),INDEX(Pupils!$AD$7:$AD$170,MATCH($B160,Pupils!$A$7:$A$170,0)),INDEX(Pupils!$AE$7:$AE$170,MATCH($B160,Pupils!$A$7:$A$170,0))))/SUM(INDEX(Pupils!$AB$7:$AM$170,MATCH($B160,Pupils!$A$7:$A$170,0),0))","v":0.34844010784439594},{"$f":"SUM(INDEX(Pupils!$AF$7:$AF$170,MATCH($B160,Pupils!$A$7:$A$170,0)))/SUM(INDEX(Pupils!$AB$7:$AM$170,MATCH($B160,Pupils!$A$7:$A$170,0),0))","v":0.22082423931185005},{"$f":"SUM(INDEX(Pupils!$AG$7:$AG$170,MATCH($B160,Pupils!$A$7:$A$170,0)))/SUM(INDEX(Pupils!$AB$7:$AM$170,MATCH($B160,Pupils!$A$7:$A$170,0),0))","v":0.2137629991012967},{"$f":"(SUM(INDEX(Pupils!$AH$7:$AH$170,MATCH($B160,Pupils!$A$7:$A$170,0)),INDEX(Pupils!$AI$7:$AI$170,MATCH($B160,Pupils!$A$7:$A$170,0)),INDEX(Pupils!$AJ$7:$AJ$170,MATCH($B160,Pupils!$A$7:$A$170,0))))/SUM(INDEX(Pupils!$AB$7:$AM$170,MATCH($B160,Pupils!$A$7:$A$170,0),0))","v":3.3252022082423928E-2},{"$f":"SUM(INDEX(Pupils!$AK$7:$AK$170,MATCH($B160,Pupils!$A$7:$A$170,0)))/SUM(INDEX(Pupils!$AB$7:$AM$170,MATCH($B160,Pupils!$A$7:$A$170,0),0))","v":4.1982282706380797E-2},{"$f":"SUM(INDEX(Pupils!$AL$7:$AL$170,MATCH($B160,Pupils!$A$7:$A$170,0)))/SUM(INDEX(Pupils!$AB$7:$AM$170,MATCH($B160,Pupils!$A$7:$A$170,0),0))","v":9.8343818205161124E-2},{"$f":"SUM(INDEX(Pupils!$AM$7:$AM$170,MATCH($B160,Pupils!$A$7:$A$170,0)))/SUM(INDEX(Pupils!$AB$7:$AM$170,MATCH($B160,Pupils!$A$7:$A$170,0),0))","v":4.3394530748491464E-2},{"$f":"(SUM(INDEX(Pupils!$BH$7:$BH$170,MATCH($B160,Pupils!$A$7:$A$170,0)),INDEX(Pupils!$BK$7:$BK$170,MATCH($B160,Pupils!$A$7:$A$170,0)),INDEX(Pupils!$BO$7:$BO$170,MATCH($B160,Pupils!$A$7:$A$170,0))))/SUM(INDEX(Pupils!$BH$7:$BS$170,MATCH($B160,Pupils!$A$7:$A$170,0),0))","v":0.35895234006011162},{"$f":"(SUM(INDEX(Pupils!$BL$7:$BL$170,MATCH($B160,Pupils!$A$7:$A$170,0)),INDEX(Pupils!$BM$7:$BM$170,MATCH($B160,Pupils!$A$7:$A$170,0)),INDEX(Pupils!$BP$7:$BP$170,MATCH($B160,Pupils!$A$7:$A$170,0))))/SUM(INDEX(Pupils!$BH$7:$BS$170,MATCH($B160,Pupils!$A$7:$A$170,0),0))","v":0.56504937741519967},{"$f":"(SUM(INDEX(Pupils!$BI$7:$BI$170,MATCH($B160,Pupils!$A$7:$A$170,0)),INDEX(Pupils!$BJ$7:$BJ$170,MATCH($B160,Pupils!$A$7:$A$170,0))))/SUM(INDEX(Pupils!$BH$7:$BS$170,MATCH($B160,Pupils!$A$7:$A$170,0),0))","v":6.5264061829111208E-2},{"$f":"(SUM(INDEX(Pupils!$BQ$7:$BQ$170,MATCH($B160,Pupils!$A$7:$A$170,0)),INDEX(Pupils!$BR$7:$BR$170,MATCH($B160,Pupils!$A$7:$A$170,0)),INDEX(Pupils!$BN$7:$BN$170,MATCH($B160,Pupils!$A$7:$A$170,0)),INDEX(Pupils!$BS$7:$BS$170,MATCH($B160,Pupils!$A$7:$A$170,0))))/SUM(INDEX(Pupils!$BH$7:$BS$170,MATCH($B160,Pupils!$A$7:$A$170,0),0))","v":1.0734220695577501E-2},{"$f":"IFERROR((VLOOKUP(B160,Funding,Funding!$C$2,FALSE)), \"x\")","v":231849766.94357702},{"$f":"IFERROR((AA160/VLOOKUP(B160,Funding,Funding!$D$2,FALSE)), \"x\")","v":0.13082218334381474},{"$f":"IFERROR((AA160/(VLOOKUP(B160,Pupils,Pupils!$M$3,FALSE)+VLOOKUP(B160,Pupils,Pupils!$P$3,FALSE))), \"x\")","v":2865.3496501708833},{"$f":"IFERROR((VLOOKUP(B160,Funding,Funding!$E$2,FALSE)), \"x\")","v":245176792.14837608},{"$f":"IFERROR((AD160/VLOOKUP(B160,Funding,Funding!$F$2,FALSE)), \"x\")","v":0.13486214773360031},{"$f":"IFERROR((AD160/(VLOOKUP(B160,Pupils,Pupils!$R$3,FALSE)+VLOOKUP(B160,Pupils,Pupils!$U$3,FALSE))), \"x\")","v":3178.3353921231019},{"$f":"IFERROR((VLOOKUP(B160,Funding,Funding!$G$2,FALSE)), \"x\")","v":254517772.92340508},{"$f":"IFERROR((AG160/VLOOKUP(B160,Funding,Funding!$H$2,FALSE)), \"x\")","v":0.13803835990424054},{"$f":"IFERROR((AG160/(VLOOKUP(B160,Pupils,Pupils!$W$3,FALSE)+VLOOKUP(B160,Pupils,Pupils!$Z$3,FALSE))), \"x\")","v":3356.8685429095895},{"$f":"IFERROR((VLOOKUP(B160,Funding,Funding!$I$2,FALSE)), \"x\")","v":260014324.53411925},{"$f":"IFERROR((AJ160/VLOOKUP(B160,Funding,Funding!$J$2,FALSE)), \"x\")","v":0.13991849902311015},null,{"$f":"IFERROR((VLOOKUP($B160,Funding,Funding!$EC$2,FALSE)), \"x\")","v":153942248.05000001},{"$f":"IFERROR((AM160/VLOOKUP($B160,Funding,Funding!$EU$2,FALSE)), \"x\")","v":8.4592973083483097E-2},{"$f":"IFERROR((AM160/(VLOOKUP($B160,Pupils,Pupils!$D$3,FALSE)+VLOOKUP($B160,Pupils,Pupils!$E$3,FALSE))), \"x\")","v":1789.4019301406488},{"$f":"IFERROR((VLOOKUP($B160,Funding,Funding!$DA$2,FALSE)), \"x\")","v":162395724.04300001},{"$f":"IFERROR((AP160/VLOOKUP($B160,Funding,Funding!$DT$2,FALSE)), \"x\")","v":8.6186344998044048E-2},{"$f":"IFERROR((AP160/(VLOOKUP($B160,Pupils,Pupils!$G$3,FALSE)+VLOOKUP($B160,Pupils,Pupils!$H$3,FALSE))), \"x\")","v":1856.2693495227754},{"$f":"IFERROR((VLOOKUP($B160,Funding,Funding!$CE$2,FALSE)), \"x\")","v":164889288.77271},{"$f":"IFERROR((AS160/VLOOKUP($B160,Funding,Funding!$CR$2,FALSE)), \"x\")","v":9.0212983036395925E-2},{"$f":"IFERROR((AS160/(VLOOKUP($B160,Pupils,Pupils!$J$3,FALSE)+VLOOKUP($B160,Pupils,Pupils!$K$3,FALSE))), \"x\")","v":1962.617256117479},{"$f":"IFERROR((VLOOKUP($B160,Funding,Funding!$BM$2,FALSE)), \"x\")","v":168409303.09999999},{"$f":"IFERROR((AV160/VLOOKUP($B160,Funding,Funding!$BY$2,FALSE)), \"x\")","v":9.9629952275238354E-2},{"$f":"IFERROR((AV160/(VLOOKUP($B160,Pupils,Pupils!$M$3,FALSE)+VLOOKUP($B160,Pupils,Pupils!$P$3,FALSE))), \"x\")","v":2081.3112908607795},{"$f":"IFERROR((VLOOKUP($B160,Funding,Funding!$AQ$2,FALSE)), \"x\")","v":222332041.69999999},{"$f":"IFERROR((AY160/VLOOKUP($B160,Funding,Funding!$BE$2,FALSE)), \"x\")","v":0.12208320997471707},{"$f":"IFERROR((AY160/(VLOOKUP($B160,Pupils,Pupils!$R$3,FALSE)+VLOOKUP($B160,Pupils,Pupils!$U$3,FALSE))), \"x\")","v":2882.1887697692505},{"$f":"IFERROR((VLOOKUP($B160,Funding,Funding!$S$2,FALSE)), \"x\")","v":227916551},{"$f":"IFERROR((BB160/VLOOKUP($B160,Funding,Funding!$AH$2,FALSE)), \"x\")","v":0.12179001721543255},{"$f":"IFERROR((BB160/(VLOOKUP(B160,Pupils,Pupils!$W$3,FALSE)+VLOOKUP(B160,Pupils,Pupils!$Z$3,FALSE))), \"x\")","v":3006.0215114745452},{"$f":"IFERROR((VLOOKUP($B160,Funding,Funding!$GX$2,FALSE)), \"x\")","v":256597500.59635001},{"$f":"IFERROR((BE160/VLOOKUP($B160,Funding,Funding!$HC$2,FALSE)), \"x\")","v":0.12574361578324775},{"$f":"IFERROR((BE160/(VLOOKUP($B160,Pupils,Pupils!$D$3,FALSE)+VLOOKUP($B160,Pupils,Pupils!$E$3,FALSE))), \"x\")","v":2982.651407606068},{"$f":"IFERROR((VLOOKUP($B160,Funding,Funding!$GP$2,FALSE)), \"x\")","v":261403681.01000002},{"$f":"IFERROR((BH160/VLOOKUP($B160,Funding,Funding!$GU$2,FALSE)), \"x\")","v":0.12808974130917253},{"$f":"IFERROR((BH160/(VLOOKUP($B160,Pupils,Pupils!$G$3,FALSE)+VLOOKUP($B160,Pupils,Pupils!$H$3,FALSE))), \"x\")","v":2987.982865748414},{"$f":"IFERROR((VLOOKUP($B160,Funding,Funding!$GH$2,FALSE)), \"x\")","v":265187541.71999997},{"$f":"IFERROR((BK160/VLOOKUP($B160,Funding,Funding!$GM$2,FALSE)), \"x\")","v":0.1388443798565297},{"$f":"IFERROR((BK160/(VLOOKUP($B160,Pupils,Pupils!$J$3,FALSE)+VLOOKUP($B160,Pupils,Pupils!$K$3,FALSE))), \"x\")","v":3156.4308959114442},{"$f":"IFERROR((VLOOKUP($B160,Funding,Funding!$FZ$2,FALSE)), \"x\")","v":242845626.69999999},{"$f":"IFERROR((BN160/VLOOKUP($B160,Funding,Funding!$GE$2,FALSE)), \"x\")","v":0.14066650011948956},{"$f":"IFERROR((BN160/(VLOOKUP($B160,Pupils,Pupils!$M$3,FALSE)+VLOOKUP($B160,Pupils,Pupils!$P$3,FALSE))), \"x\")","v":3001.24360996107},{"$f":"IFERROR((VLOOKUP($B160,Funding,Funding!$FD$2,FALSE)), \"x\")","v":215572062.80000001},{"$f":"IFERROR((BQ160/VLOOKUP($B160,Funding,Funding!$FR$2,FALSE)), \"x\")","v":0.15610952301296499},{"$f":"IFERROR((BQ160/(VLOOKUP($B160,Pupils,Pupils!$R$3,FALSE)+VLOOKUP($B160,Pupils,Pupils!$U$3,FALSE))), \"x\")","v":2794.5561680062228},{"$f":"(VLOOKUP(B160,Funding,Funding!$HK$2,FALSE)+VLOOKUP(B160,Funding,Funding!$HL$2,FALSE)+VLOOKUP(B160,Funding,Funding!$HM$2,FALSE))/(VLOOKUP(B160,Funding,Funding!$HN$2,FALSE))","v":0.21136917926169391},{"$f":"IFERROR((VLOOKUP(B160,Other_data,Other!$D$3,FALSE)+VLOOKUP(B160,Other_data,Other!$E$3,FALSE)+VLOOKUP(B160,Other_data,Other!$F$3,FALSE)), \"x\")","v":17010},{"$f":"(VLOOKUP(B160,Other_data,Other!$AK$3,FALSE)+VLOOKUP(B160,Other_data,Other!$AL$3,FALSE))/VLOOKUP(B160,Other_data,Other!$AJ$3,FALSE)","v":4.2714977205539975E-2},{"$f":"(VLOOKUP(B160,Other_data,Other!$AR$3,FALSE)+VLOOKUP(B160,Other_data,Other!$AS$3,FALSE))/VLOOKUP(B160,Other_data,Other!$AQ$3,FALSE)","v":5.5927281080282866E-2},{"$f":"VLOOKUP(B160,Other_data,Other!$AP$3,FALSE)/VLOOKUP(B160,Other_data,Other!$AJ$3,FALSE)","v":7.2877299749856518E-3},{"$f":"VLOOKUP(B160,Other_data,Other!$AW$3,FALSE)/VLOOKUP(B160,Other_data,Other!$AQ$3,FALSE)","v":1.227952155151197E-2}]
[155,972,"NORTH WEST",{"$f":"IFERROR((VLOOKUP($B161,Pupils,Pupils!$D$3,FALSE)/VLOOKUP($B161,Pupils,Pupils!$C$3,FALSE)), \"x\")","v":2.9467432300521981E-2},{"$f":"IFERROR((VLOOKUP($B161,Pupils,Pupils!$G$3,FALSE)/VLOOKUP($B161,Pupils,Pupils!$F$3,FALSE)),\"x\")","v":2.8749487192488349E-2},{"$f":"IFERROR((VLOOKUP($B161,Pupils,Pupils!$J$3,FALSE)/VLOOKUP($B161,Pupils,Pupils!$I$3,FALSE)), \"x\")","v":2.8340417667713915E-2},{"$f":"IFERROR((VLOOKUP($B161,Pupils,Pupils!$M$3,FALSE)/VLOOKUP($B161,Pupils,Pupils!$L$3,FALSE)), \"x\")","v":2.8218296483431375E-2},{"$f":"IFERROR((VLOOKUP($B161,Pupils,Pupils!$R$3,FALSE)/VLOOKUP($B161,Pupils,Pupils!$Q$3,FALSE)), \"x\")","v":2.8331435079726651E-2},{"$f":"IFERROR((VLOOKUP($B161,Pupils,Pupils!$W$3,FALSE)/VLOOKUP($B161,Pupils,Pupils!$V$3,FALSE)), \"x\")","v":2.8242419813087526E-2},{"$f":"IFERROR(((VLOOKUP($B161,Pupils,Pupils!$D$3,FALSE)+VLOOKUP($B161,Pupils,Pupils!$E$3,FALSE))/VLOOKUP($B161,Pupils,Pupils!$C$3,FALSE)), \"x\")","v":0.19991567639901561},{"$f":"IFERROR(((VLOOKUP($B161,Pupils,Pupils!$G$3,FALSE)+VLOOKUP($B161,Pupils,Pupils!$H$3,FALSE))/VLOOKUP($B161,Pupils,Pupils!$F$3,FALSE)), \"x\")","v":0.20173040844830209},{"$f":"IFERROR(((VLOOKUP($B161,Pupils,Pupils!$J$3,FALSE)+VLOOKUP($B161,Pupils,Pupils!$K$3,FALSE))/VLOOKUP($B161,Pupils,Pupils!$I$3,FALSE)), \"x\")","v":0.19855849196082054},{"$f":"IFERROR(((VLOOKUP($B161,Pupils,Pupils!$M$3,FALSE)+VLOOKUP($B161,Pupils,Pupils!$P$3,FALSE))/VLOOKUP($B161,Pupils,Pupils!$L$3,FALSE)), \"x\")","v":0.19202364048756201},{"$f":"IFERROR(((VLOOKUP($B161,Pupils,Pupils!$R$3,FALSE)+VLOOKUP($B161,Pupils,Pupils!$U$3,FALSE))/VLOOKUP($B161,Pupils,Pupils!$Q$3,FALSE)), \"x\")","v":0.18412906899845691},{"$f":"IFERROR(((VLOOKUP($B161,Pupils,Pupils!$W$3,FALSE)+VLOOKUP($B161,Pupils,Pupils!$Z$3,FALSE))/VLOOKUP($B161,Pupils,Pupils!$V$3,FALSE)), \"x\")","v":0.17855348382558489},{"$f":"(SUM(INDEX(Pupils!$AB$7:$AB$170,MATCH($B161,Pupils!$A$7:$A$170,0)),INDEX(Pupils!$AC$7:$AC$170,MATCH($B161,Pupils!$A$7:$A$170,0)),INDEX(Pupils!$AD$7:$AD$170,MATCH($B161,Pupils!$A$7:$A$170,0)),INDEX(Pupils!$AE$7:$AE$170,MATCH($B161,Pupils!$A$7:$A$170,0))))/SUM(INDEX(Pupils!$AB$7:$AM$170,MATCH($B161,Pupils!$A$7:$A$170,0),0))","v":0.37470868937964708},{"$f":"SUM(INDEX(Pupils!$AF$7:$AF$170,MATCH($B161,Pupils!$A$7:$A$170,0)))/SUM(INDEX(Pupils!$AB$7:$AM$170,MATCH($B161,Pupils!$A$7:$A$170,0),0))","v":0.21040949950061036},{"$f":"SUM(INDEX(Pupils!$AG$7:$AG$170,MATCH($B161,Pupils!$A$7:$A$170,0)))/SUM(INDEX(Pupils!$AB$7:$AM$170,MATCH($B161,Pupils!$A$7:$A$170,0),0))","v":0.17473088447453114},{"$f":"(SUM(INDEX(Pupils!$AH$7:$AH$170,MATCH($B161,Pupils!$A$7:$A$170,0)),INDEX(Pupils!$AI$7:$AI$170,MATCH($B161,Pupils!$A$7:$A$170,0)),INDEX(Pupils!$AJ$7:$AJ$170,MATCH($B161,Pupils!$A$7:$A$170,0))))/SUM(INDEX(Pupils!$AB$7:$AM$170,MATCH($B161,Pupils!$A$7:$A$170,0),0))","v":3.9229830207524137E-2},{"$f":"SUM(INDEX(Pupils!$AK$7:$AK$170,MATCH($B161,Pupils!$A$7:$A$170,0)))/SUM(INDEX(Pupils!$AB$7:$AM$170,MATCH($B161,Pupils!$A$7:$A$170,0),0))","v":4.0561535900565972E-2},{"$f":"SUM(INDEX(Pupils!$AL$7:$AL$170,MATCH($B161,Pupils!$A$7:$A$170,0)))/SUM(INDEX(Pupils!$AB$7:$AM$170,MATCH($B161,Pupils!$A$7:$A$170,0),0))","v":0.10592609033403617},{"$f":"SUM(INDEX(Pupils!$AM$7:$AM$170,MATCH($B161,Pupils!$A$7:$A$170,0)))/SUM(INDEX(Pupils!$AB$7:$AM$170,MATCH($B161,Pupils!$A$7:$A$170,0),0))","v":5.4433470203085116E-2},{"$f":"(SUM(INDEX(Pupils!$BH$7:$BH$170,MATCH($B161,Pupils!$A$7:$A$170,0)),INDEX(Pupils!$BK$7:$BK$170,MATCH($B161,Pupils!$A$7:$A$170,0)),INDEX(Pupils!$BO$7:$BO$170,MATCH($B161,Pupils!$A$7:$A$170,0))))/SUM(INDEX(Pupils!$BH$7:$BS$170,MATCH($B161,Pupils!$A$7:$A$170,0),0))","v":0.45536723163841808},{"$f":"(SUM(INDEX(Pupils!$BL$7:$BL$170,MATCH($B161,Pupils!$A$7:$A$170,0)),INDEX(Pupils!$BM$7:$BM$170,MATCH($B161,Pupils!$A$7:$A$170,0)),INDEX(Pupils!$BP$7:$BP$170,MATCH($B161,Pupils!$A$7:$A$170,0))))/SUM(INDEX(Pupils!$BH$7:$BS$170,MATCH($B161,Pupils!$A$7:$A$170,0),0))","v":0.4863599677158999},{"$f":"(SUM(INDEX(Pupils!$BI$7:$BI$170,MATCH($B161,Pupils!$A$7:$A$170,0)),INDEX(Pupils!$BJ$7:$BJ$170,MATCH($B161,Pupils!$A$7:$A$170,0))))/SUM(INDEX(Pupils!$BH$7:$BS$170,MATCH($B161,Pupils!$A$7:$A$170,0),0))","v":4.3260694108151733E-2},{"$f":"(SUM(INDEX(Pupils!$BQ$7:$BQ$170,MATCH($B161,Pupils!$A$7:$A$170,0)),INDEX(Pupils!$BR$7:$BR$170,MATCH($B161,Pupils!$A$7:$A$170,0)),INDEX(Pupils!$BN$7:$BN$170,MATCH($B161,Pupils!$A$7:$A$170,0)),INDEX(Pupils!$BS$7:$BS$170,MATCH($B161,Pupils!$A$7:$A$170,0))))/SUM(INDEX(Pupils!$BH$7:$BS$170,MATCH($B161,Pupils!$A$7:$A$170,0),0))","v":1.5012106537530266E-2},{"$f":"IFERROR((VLOOKUP(B161,Funding,Funding!$C$2,FALSE)), \"x\")","v":639544900.16252398},{"$f":"IFERROR((AA161/VLOOKUP(B161,Funding,Funding!$D$2,FALSE)), \"x\")","v":0.12633724905973676},{"$f":"IFERROR((AA161/(VLOOKUP(B161,Pupils,Pupils!$M$3,FALSE)+VLOOKUP(B161,Pupils,Pupils!$P$3,FALSE))), \"x\")","v":3070.8227506423259},{"$f":"IFERROR((VLOOKUP(B161,Funding,Funding!$E$2,FALSE)), \"x\")","v":674207725.43696988},{"$f":"IFERROR((AD161/VLOOKUP(B161,Funding,Funding!$F$2,FALSE)), \"x\")","v":0.12947982718431708},{"$f":"IFERROR((AD161/(VLOOKUP(B161,Pupils,Pupils!$R$3,FALSE)+VLOOKUP(B161,Pupils,Pupils!$U$3,FALSE))), \"x\")","v":3363.2191426781228},{"$f":"IFERROR((VLOOKUP(B161,Funding,Funding!$G$2,FALSE)), \"x\")","v":708436702.43783498},{"$f":"IFERROR((AG161/VLOOKUP(B161,Funding,Funding!$H$2,FALSE)), \"x\")","v":0.1338015597244159},{"$f":"IFERROR((AG161/(VLOOKUP(B161,Pupils,Pupils!$W$3,FALSE)+VLOOKUP(B161,Pupils,Pupils!$Z$3,FALSE))), \"x\")","v":3624.6441669881556},{"$f":"IFERROR((VLOOKUP(B161,Funding,Funding!$I$2,FALSE)), \"x\")","v":719235498.87590539},{"$f":"IFERROR((AJ161/VLOOKUP(B161,Funding,Funding!$J$2,FALSE)), \"x\")","v":0.13441410599612166},null,{"$f":"IFERROR((VLOOKUP($B161,Funding,Funding!$EC$2,FALSE)), \"x\")","v":427581574.15999997},{"$f":"IFERROR((AM161/VLOOKUP($B161,Funding,Funding!$EU$2,FALSE)), \"x\")","v":8.3980698840820586E-2},{"$f":"IFERROR((AM161/(VLOOKUP($B161,Pupils,Pupils!$D$3,FALSE)+VLOOKUP($B161,Pupils,Pupils!$E$3,FALSE))), \"x\")","v":1960.3492385209636},{"$f":"IFERROR((VLOOKUP($B161,Funding,Funding!$DA$2,FALSE)), \"x\")","v":448063080.33239996},{"$f":"IFERROR((AP161/VLOOKUP($B161,Funding,Funding!$DT$2,FALSE)), \"x\")","v":8.5333092718135634E-2},{"$f":"IFERROR((AP161/(VLOOKUP($B161,Pupils,Pupils!$G$3,FALSE)+VLOOKUP($B161,Pupils,Pupils!$H$3,FALSE))), \"x\")","v":2047.6331246339455},{"$f":"IFERROR((VLOOKUP($B161,Funding,Funding!$CE$2,FALSE)), \"x\")","v":445038557.48232001},{"$f":"IFERROR((AS161/VLOOKUP($B161,Funding,Funding!$CR$2,FALSE)), \"x\")","v":8.8460430567778942E-2},{"$f":"IFERROR((AS161/(VLOOKUP($B161,Pupils,Pupils!$J$3,FALSE)+VLOOKUP($B161,Pupils,Pupils!$K$3,FALSE))), \"x\")","v":2071.1027433093818},{"$f":"IFERROR((VLOOKUP($B161,Funding,Funding!$BM$2,FALSE)), \"x\")","v":466716718.94000006},{"$f":"IFERROR((AV161/VLOOKUP($B161,Funding,Funding!$BY$2,FALSE)), \"x\")","v":9.4800587895356489E-2},{"$f":"IFERROR((AV161/(VLOOKUP($B161,Pupils,Pupils!$M$3,FALSE)+VLOOKUP($B161,Pupils,Pupils!$P$3,FALSE))), \"x\")","v":2240.9752908073851},{"$f":"IFERROR((VLOOKUP($B161,Funding,Funding!$AQ$2,FALSE)), \"x\")","v":630417953.97000003},{"$f":"IFERROR((AY161/VLOOKUP($B161,Funding,Funding!$BE$2,FALSE)), \"x\")","v":0.11816904981903434},{"$f":"IFERROR((AY161/(VLOOKUP($B161,Pupils,Pupils!$R$3,FALSE)+VLOOKUP($B161,Pupils,Pupils!$U$3,FALSE))), \"x\")","v":3144.7781606265435},{"$f":"IFERROR((VLOOKUP($B161,Funding,Funding!$S$2,FALSE)), \"x\")","v":616704821.95000005},{"$f":"IFERROR((BB161/VLOOKUP($B161,Funding,Funding!$AH$2,FALSE)), \"x\")","v":0.11496443742394372},{"$f":"IFERROR((BB161/(VLOOKUP(B161,Pupils,Pupils!$W$3,FALSE)+VLOOKUP(B161,Pupils,Pupils!$Z$3,FALSE))), \"x\")","v":3155.3073520081866},{"$f":"IFERROR((VLOOKUP($B161,Funding,Funding!$GX$2,FALSE)), \"x\")","v":694223950.45683014},{"$f":"IFERROR((BE161/VLOOKUP($B161,Funding,Funding!$HC$2,FALSE)), \"x\")","v":0.12365838655211357},{"$f":"IFERROR((BE161/(VLOOKUP($B161,Pupils,Pupils!$D$3,FALSE)+VLOOKUP($B161,Pupils,Pupils!$E$3,FALSE))), \"x\")","v":3182.8345159976625},{"$f":"IFERROR((VLOOKUP($B161,Funding,Funding!$GP$2,FALSE)), \"x\")","v":723297039.32000005},{"$f":"IFERROR((BH161/VLOOKUP($B161,Funding,Funding!$GU$2,FALSE)), \"x\")","v":0.12769303330539278},{"$f":"IFERROR((BH161/(VLOOKUP($B161,Pupils,Pupils!$G$3,FALSE)+VLOOKUP($B161,Pupils,Pupils!$H$3,FALSE))), \"x\")","v":3305.4430094141308},{"$f":"IFERROR((VLOOKUP($B161,Funding,Funding!$GH$2,FALSE)), \"x\")","v":759201344.36000013},{"$f":"IFERROR((BK161/VLOOKUP($B161,Funding,Funding!$GM$2,FALSE)), \"x\")","v":0.14248044241392405},{"$f":"IFERROR((BK161/(VLOOKUP($B161,Pupils,Pupils!$J$3,FALSE)+VLOOKUP($B161,Pupils,Pupils!$K$3,FALSE))), \"x\")","v":3533.1410292256151},{"$f":"IFERROR((VLOOKUP($B161,Funding,Funding!$FZ$2,FALSE)), \"x\")","v":744449937.46000004},{"$f":"IFERROR((BN161/VLOOKUP($B161,Funding,Funding!$GE$2,FALSE)), \"x\")","v":0.14502508143429413},{"$f":"IFERROR((BN161/(VLOOKUP($B161,Pupils,Pupils!$M$3,FALSE)+VLOOKUP($B161,Pupils,Pupils!$P$3,FALSE))), \"x\")","v":3574.5321463520036},{"$f":"IFERROR((VLOOKUP($B161,Funding,Funding!$FD$2,FALSE)), \"x\")","v":632811727.88},{"$f":"IFERROR((BQ161/VLOOKUP($B161,Funding,Funding!$FR$2,FALSE)), \"x\")","v":0.13821147857638061},{"$f":"IFERROR((BQ161/(VLOOKUP($B161,Pupils,Pupils!$R$3,FALSE)+VLOOKUP($B161,Pupils,Pupils!$U$3,FALSE))), \"x\")","v":3156.7192671039834},{"$f":"(VLOOKUP(B161,Funding,Funding!$HK$2,FALSE)+VLOOKUP(B161,Funding,Funding!$HL$2,FALSE)+VLOOKUP(B161,Funding,Funding!$HM$2,FALSE))/(VLOOKUP(B161,Funding,Funding!$HN$2,FALSE))","v":0.22546292617022967},{"$f":"IFERROR((VLOOKUP(B161,Other_data,Other!$D$3,FALSE)+VLOOKUP(B161,Other_data,Other!$E$3,FALSE)+VLOOKUP(B161,Other_data,Other!$F$3,FALSE)), \"x\")","v":43940},{"$f":"(VLOOKUP(B161,Other_data,Other!$AK$3,FALSE)+VLOOKUP(B161,Other_data,Other!$AL$3,FALSE))/VLOOKUP(B161,Other_data,Other!$AJ$3,FALSE)","v":3.9675214037338882E-2},{"$f":"(VLOOKUP(B161,Other_data,Other!$AR$3,FALSE)+VLOOKUP(B161,Other_data,Other!$AS$3,FALSE))/VLOOKUP(B161,Other_data,Other!$AQ$3,FALSE)","v":5.6538380099877043E-2},{"$f":"VLOOKUP(B161,Other_data,Other!$AP$3,FALSE)/VLOOKUP(B161,Other_data,Other!$AJ$3,FALSE)","v":6.70559538544879E-3},{"$f":"VLOOKUP(B161,Other_data,Other!$AW$3,FALSE)/VLOOKUP(B161,Other_data,Other!$AQ$3,FALSE)","v":1.2342850916241226E-2}]
[156,973,"YORKSHIRE AND THE HUMBER",{"$f":"IFERROR((VLOOKUP($B162,Pupils,Pupils!$D$3,FALSE)/VLOOKUP($B162,Pupils,Pupils!$C$3,FALSE)), \"x\")","v":2.476032956598977E-2},{"$f":"IFERROR((VLOOKUP($B162,Pupils,Pupils!$G$3,FALSE)/VLOOKUP($B162,Pupils,Pupils!$F$3,FALSE)),\"x\")","v":2.412241666104015E-2},{"$f":"IFERROR((VLOOKUP($B162,Pupils,Pupils!$J$3,FALSE)/VLOOKUP($B162,Pupils,Pupils!$I$3,FALSE)), \"x\")","v":2.3882830612219866E-2},{"$f":"IFERROR((VLOOKUP($B162,Pupils,Pupils!$M$3,FALSE)/VLOOKUP($B162,Pupils,Pupils!$L$3,FALSE)), \"x\")","v":2.3757426105664621E-2},{"$f":"IFERROR((VLOOKUP($B162,Pupils,Pupils!$R$3,FALSE)/VLOOKUP($B162,Pupils,Pupils!$Q$3,FALSE)), \"x\")","v":2.3837590841698467E-2},{"$f":"IFERROR((VLOOKUP($B162,Pupils,Pupils!$W$3,FALSE)/VLOOKUP($B162,Pupils,Pupils!$V$3,FALSE)), \"x\")","v":2.3639878819270869E-2},{"$f":"IFERROR(((VLOOKUP($B162,Pupils,Pupils!$D$3,FALSE)+VLOOKUP($B162,Pupils,Pupils!$E$3,FALSE))/VLOOKUP($B162,Pupils,Pupils!$C$3,FALSE)), \"x\")","v":0.21133878526141689},{"$f":"IFERROR(((VLOOKUP($B162,Pupils,Pupils!$G$3,FALSE)+VLOOKUP($B162,Pupils,Pupils!$H$3,FALSE))/VLOOKUP($B162,Pupils,Pupils!$F$3,FALSE)), \"x\")","v":0.21054020709677815},{"$f":"IFERROR(((VLOOKUP($B162,Pupils,Pupils!$J$3,FALSE)+VLOOKUP($B162,Pupils,Pupils!$K$3,FALSE))/VLOOKUP($B162,Pupils,Pupils!$I$3,FALSE)), \"x\")","v":0.20473363345313592},{"$f":"IFERROR(((VLOOKUP($B162,Pupils,Pupils!$M$3,FALSE)+VLOOKUP($B162,Pupils,Pupils!$P$3,FALSE))/VLOOKUP($B162,Pupils,Pupils!$L$3,FALSE)), \"x\")","v":0.1960247414615065},{"$f":"IFERROR(((VLOOKUP($B162,Pupils,Pupils!$R$3,FALSE)+VLOOKUP($B162,Pupils,Pupils!$U$3,FALSE))/VLOOKUP($B162,Pupils,Pupils!$Q$3,FALSE)), \"x\")","v":0.18467904625331161},{"$f":"IFERROR(((VLOOKUP($B162,Pupils,Pupils!$W$3,FALSE)+VLOOKUP($B162,Pupils,Pupils!$Z$3,FALSE))/VLOOKUP($B162,Pupils,Pupils!$V$3,FALSE)), \"x\")","v":0.17694072865032856},{"$f":"(SUM(INDEX(Pupils!$AB$7:$AB$170,MATCH($B162,Pupils!$A$7:$A$170,0)),INDEX(Pupils!$AC$7:$AC$170,MATCH($B162,Pupils!$A$7:$A$170,0)),INDEX(Pupils!$AD$7:$AD$170,MATCH($B162,Pupils!$A$7:$A$170,0)),INDEX(Pupils!$AE$7:$AE$170,MATCH($B162,Pupils!$A$7:$A$170,0))))/SUM(INDEX(Pupils!$AB$7:$AM$170,MATCH($B162,Pupils!$A$7:$A$170,0),0))","v":0.34424251564738706},{"$f":"SUM(INDEX(Pupils!$AF$7:$AF$170,MATCH($B162,Pupils!$A$7:$A$170,0)))/SUM(INDEX(Pupils!$AB$7:$AM$170,MATCH($B162,Pupils!$A$7:$A$170,0),0))","v":0.20322750923761407},{"$f":"SUM(INDEX(Pupils!$AG$7:$AG$170,MATCH($B162,Pupils!$A$7:$A$170,0)))/SUM(INDEX(Pupils!$AB$7:$AM$170,MATCH($B162,Pupils!$A$7:$A$170,0),0))","v":0.2145388733881306},{"$f":"(SUM(INDEX(Pupils!$AH$7:$AH$170,MATCH($B162,Pupils!$A$7:$A$170,0)),INDEX(Pupils!$AI$7:$AI$170,MATCH($B162,Pupils!$A$7:$A$170,0)),INDEX(Pupils!$AJ$7:$AJ$170,MATCH($B162,Pupils!$A$7:$A$170,0))))/SUM(INDEX(Pupils!$AB$7:$AM$170,MATCH($B162,Pupils!$A$7:$A$170,0),0))","v":5.3088002413091022E-2},{"$f":"SUM(INDEX(Pupils!$AK$7:$AK$170,MATCH($B162,Pupils!$A$7:$A$170,0)))/SUM(INDEX(Pupils!$AB$7:$AM$170,MATCH($B162,Pupils!$A$7:$A$170,0),0))","v":4.1701229168237687E-2},{"$f":"SUM(INDEX(Pupils!$AL$7:$AL$170,MATCH($B162,Pupils!$A$7:$A$170,0)))/SUM(INDEX(Pupils!$AB$7:$AM$170,MATCH($B162,Pupils!$A$7:$A$170,0),0))","v":0.10210391373199608},{"$f":"SUM(INDEX(Pupils!$AM$7:$AM$170,MATCH($B162,Pupils!$A$7:$A$170,0)))/SUM(INDEX(Pupils!$AB$7:$AM$170,MATCH($B162,Pupils!$A$7:$A$170,0),0))","v":4.1097956413543475E-2},{"$f":"(SUM(INDEX(Pupils!$BH$7:$BH$170,MATCH($B162,Pupils!$A$7:$A$170,0)),INDEX(Pupils!$BK$7:$BK$170,MATCH($B162,Pupils!$A$7:$A$170,0)),INDEX(Pupils!$BO$7:$BO$170,MATCH($B162,Pupils!$A$7:$A$170,0))))/SUM(INDEX(Pupils!$BH$7:$BS$170,MATCH($B162,Pupils!$A$7:$A$170,0),0))","v":0.50696864111498263},{"$f":"(SUM(INDEX(Pupils!$BL$7:$BL$170,MATCH($B162,Pupils!$A$7:$A$170,0)),INDEX(Pupils!$BM$7:$BM$170,MATCH($B162,Pupils!$A$7:$A$170,0)),INDEX(Pupils!$BP$7:$BP$170,MATCH($B162,Pupils!$A$7:$A$170,0))))/SUM(INDEX(Pupils!$BH$7:$BS$170,MATCH($B162,Pupils!$A$7:$A$170,0),0))","v":0.41786958685913389},{"$f":"(SUM(INDEX(Pupils!$BI$7:$BI$170,MATCH($B162,Pupils!$A$7:$A$170,0)),INDEX(Pupils!$BJ$7:$BJ$170,MATCH($B162,Pupils!$A$7:$A$170,0))))/SUM(INDEX(Pupils!$BH$7:$BS$170,MATCH($B162,Pupils!$A$7:$A$170,0),0))","v":5.5749128919860627E-2},{"$f":"(SUM(INDEX(Pupils!$BQ$7:$BQ$170,MATCH($B162,Pupils!$A$7:$A$170,0)),INDEX(Pupils!$BR$7:$BR$170,MATCH($B162,Pupils!$A$7:$A$170,0)),INDEX(Pupils!$BN$7:$BN$170,MATCH($B162,Pupils!$A$7:$A$170,0)),INDEX(Pupils!$BS$7:$BS$170,MATCH($B162,Pupils!$A$7:$A$170,0))))/SUM(INDEX(Pupils!$BH$7:$BS$170,MATCH($B162,Pupils!$A$7:$A$170,0),0))","v":1.9412643106022896E-2},{"$f":"IFERROR((VLOOKUP(B162,Funding,Funding!$C$2,FALSE)), \"x\")","v":397093357.06784827},{"$f":"IFERROR((AA162/VLOOKUP(B162,Funding,Funding!$D$2,FALSE)), \"x\")","v":0.10808070478592559},{"$f":"IFERROR((AA162/(VLOOKUP(B162,Pupils,Pupils!$M$3,FALSE)+VLOOKUP(B162,Pupils,Pupils!$P$3,FALSE))), \"x\")","v":2476.2618924161152},{"$f":"IFERROR((VLOOKUP(B162,Funding,Funding!$E$2,FALSE)), \"x\")","v":412799949.01235658},{"$f":"IFERROR((AD162/VLOOKUP(B162,Funding,Funding!$F$2,FALSE)), \"x\")","v":0.10933645523290773},{"$f":"IFERROR((AD162/(VLOOKUP(B162,Pupils,Pupils!$R$3,FALSE)+VLOOKUP(B162,Pupils,Pupils!$U$3,FALSE))), \"x\")","v":2716.4146284496865},{"$f":"IFERROR((VLOOKUP(B162,Funding,Funding!$G$2,FALSE)), \"x\")","v":430679443.84977305},{"$f":"IFERROR((AG162/VLOOKUP(B162,Funding,Funding!$H$2,FALSE)), \"x\")","v":0.11196275666173137},{"$f":"IFERROR((AG162/(VLOOKUP(B162,Pupils,Pupils!$W$3,FALSE)+VLOOKUP(B162,Pupils,Pupils!$Z$3,FALSE))), \"x\")","v":2931.9861382651852},{"$f":"IFERROR((VLOOKUP(B162,Funding,Funding!$I$2,FALSE)), \"x\")","v":436087431.04443985},{"$f":"IFERROR((AJ162/VLOOKUP(B162,Funding,Funding!$J$2,FALSE)), \"x\")","v":0.11191321972768963},null,{"$f":"IFERROR((VLOOKUP($B162,Funding,Funding!$EC$2,FALSE)), \"x\")","v":248008733.20000002},{"$f":"IFERROR((AM162/VLOOKUP($B162,Funding,Funding!$EU$2,FALSE)), \"x\")","v":6.5967961713446238E-2},{"$f":"IFERROR((AM162/(VLOOKUP($B162,Pupils,Pupils!$D$3,FALSE)+VLOOKUP($B162,Pupils,Pupils!$E$3,FALSE))), \"x\")","v":1437.7317866666667},{"$f":"IFERROR((VLOOKUP($B162,Funding,Funding!$DA$2,FALSE)), \"x\")","v":256523057.91908002},{"$f":"IFERROR((AP162/VLOOKUP($B162,Funding,Funding!$DT$2,FALSE)), \"x\")","v":6.5960245929272812E-2},{"$f":"IFERROR((AP162/(VLOOKUP($B162,Pupils,Pupils!$G$3,FALSE)+VLOOKUP($B162,Pupils,Pupils!$H$3,FALSE))), \"x\")","v":1495.7176637362177},{"$f":"IFERROR((VLOOKUP($B162,Funding,Funding!$CE$2,FALSE)), \"x\")","v":260580299.13396999},{"$f":"IFERROR((AS162/VLOOKUP($B162,Funding,Funding!$CR$2,FALSE)), \"x\")","v":7.0164444842088586E-2},{"$f":"IFERROR((AS162/(VLOOKUP($B162,Pupils,Pupils!$J$3,FALSE)+VLOOKUP($B162,Pupils,Pupils!$K$3,FALSE))), \"x\")","v":1561.2492084357568},{"$f":"IFERROR((VLOOKUP($B162,Funding,Funding!$BM$2,FALSE)), \"x\")","v":276440232.41999996},{"$f":"IFERROR((AV162/VLOOKUP($B162,Funding,Funding!$BY$2,FALSE)), \"x\")","v":7.7837941659100102E-2},{"$f":"IFERROR((AV162/(VLOOKUP($B162,Pupils,Pupils!$M$3,FALSE)+VLOOKUP($B162,Pupils,Pupils!$P$3,FALSE))), \"x\")","v":1723.8727389623346},{"$f":"IFERROR((VLOOKUP($B162,Funding,Funding!$AQ$2,FALSE)), \"x\")","v":384268218.44},{"$f":"IFERROR((AY162/VLOOKUP($B162,Funding,Funding!$BE$2,FALSE)), \"x\")","v":9.8247374062062784E-2},{"$f":"IFERROR((AY162/(VLOOKUP($B162,Pupils,Pupils!$R$3,FALSE)+VLOOKUP($B162,Pupils,Pupils!$U$3,FALSE))), \"x\")","v":2528.662642318955},{"$f":"IFERROR((VLOOKUP($B162,Funding,Funding!$S$2,FALSE)), \"x\")","v":373627730.85000002},{"$f":"IFERROR((BB162/VLOOKUP($B162,Funding,Funding!$AH$2,FALSE)), \"x\")","v":9.3761421177488369E-2},{"$f":"IFERROR((BB162/(VLOOKUP(B162,Pupils,Pupils!$W$3,FALSE)+VLOOKUP(B162,Pupils,Pupils!$Z$3,FALSE))), \"x\")","v":2543.5886095037104},{"$f":"IFERROR((VLOOKUP($B162,Funding,Funding!$GX$2,FALSE)), \"x\")","v":434536242.43448997},{"$f":"IFERROR((BE162/VLOOKUP($B162,Funding,Funding!$HC$2,FALSE)), \"x\")","v":0.10523730922773573},{"$f":"IFERROR((BE162/(VLOOKUP($B162,Pupils,Pupils!$D$3,FALSE)+VLOOKUP($B162,Pupils,Pupils!$E$3,FALSE))), \"x\")","v":2519.0506807796519},{"$f":"IFERROR((VLOOKUP($B162,Funding,Funding!$GP$2,FALSE)), \"x\")","v":462242455.49000001},{"$f":"IFERROR((BH162/VLOOKUP($B162,Funding,Funding!$GU$2,FALSE)), \"x\")","v":0.10962312750752512},{"$f":"IFERROR((BH162/(VLOOKUP($B162,Pupils,Pupils!$G$3,FALSE)+VLOOKUP($B162,Pupils,Pupils!$H$3,FALSE))), \"x\")","v":2695.2127080260052},{"$f":"IFERROR((VLOOKUP($B162,Funding,Funding!$GH$2,FALSE)), \"x\")","v":453138844.50000006},{"$f":"IFERROR((BK162/VLOOKUP($B162,Funding,Funding!$GM$2,FALSE)), \"x\")","v":0.11634652497872069},{"$f":"IFERROR((BK162/(VLOOKUP($B162,Pupils,Pupils!$J$3,FALSE)+VLOOKUP($B162,Pupils,Pupils!$K$3,FALSE))), \"x\")","v":2714.9506875168513},{"$f":"IFERROR((VLOOKUP($B162,Funding,Funding!$FZ$2,FALSE)), \"x\")","v":473389659.00999999},{"$f":"IFERROR((BN162/VLOOKUP($B162,Funding,Funding!$GE$2,FALSE)), \"x\")","v":0.13001130612251141},{"$f":"IFERROR((BN162/(VLOOKUP($B162,Pupils,Pupils!$M$3,FALSE)+VLOOKUP($B162,Pupils,Pupils!$P$3,FALSE))), \"x\")","v":2952.0432714517337},{"$f":"IFERROR((VLOOKUP($B162,Funding,Funding!$FD$2,FALSE)), \"x\")","v":375421301.83000004},{"$f":"IFERROR((BQ162/VLOOKUP($B162,Funding,Funding!$FR$2,FALSE)), \"x\")","v":0.12235016715879768},{"$f":"IFERROR((BQ162/(VLOOKUP($B162,Pupils,Pupils!$R$3,FALSE)+VLOOKUP($B162,Pupils,Pupils!$U$3,FALSE))), \"x\")","v":2470.4458383838387},{"$f":"(VLOOKUP(B162,Funding,Funding!$HK$2,FALSE)+VLOOKUP(B162,Funding,Funding!$HL$2,FALSE)+VLOOKUP(B162,Funding,Funding!$HM$2,FALSE))/(VLOOKUP(B162,Funding,Funding!$HN$2,FALSE))","v":0.25334425334425337},{"$f":"IFERROR((VLOOKUP(B162,Other_data,Other!$D$3,FALSE)+VLOOKUP(B162,Other_data,Other!$E$3,FALSE)+VLOOKUP(B162,Other_data,Other!$F$3,FALSE)), \"x\")","v":29760},{"$f":"(VLOOKUP(B162,Other_data,Other!$AK$3,FALSE)+VLOOKUP(B162,Other_data,Other!$AL$3,FALSE))/VLOOKUP(B162,Other_data,Other!$AJ$3,FALSE)","v":3.7439404780088593E-2},{"$f":"(VLOOKUP(B162,Other_data,Other!$AR$3,FALSE)+VLOOKUP(B162,Other_data,Other!$AS$3,FALSE))/VLOOKUP(B162,Other_data,Other!$AQ$3,FALSE)","v":5.0674191123566026E-2},{"$f":"VLOOKUP(B162,Other_data,Other!$AP$3,FALSE)/VLOOKUP(B162,Other_data,Other!$AJ$3,FALSE)","v":6.6775329404860483E-3},{"$f":"VLOOKUP(B162,Other_data,Other!$AW$3,FALSE)/VLOOKUP(B162,Other_data,Other!$AQ$3,FALSE)","v":1.1114455552640347E-2}]
[157,974,"EAST MIDLANDS",{"$f":"IFERROR((VLOOKUP($B163,Pupils,Pupils!$D$3,FALSE)/VLOOKUP($B163,Pupils,Pupils!$C$3,FALSE)), \"x\")","v":2.52352685681193E-2},{"$f":"IFERROR((VLOOKUP($B163,Pupils,Pupils!$G$3,FALSE)/VLOOKUP($B163,Pupils,Pupils!$F$3,FALSE)),\"x\")","v":2.5319852621195856E-2},{"$f":"IFERROR((VLOOKUP($B163,Pupils,Pupils!$J$3,FALSE)/VLOOKUP($B163,Pupils,Pupils!$I$3,FALSE)), \"x\")","v":2.5452246149820845E-2},{"$f":"IFERROR((VLOOKUP($B163,Pupils,Pupils!$M$3,FALSE)/VLOOKUP($B163,Pupils,Pupils!$L$3,FALSE)), \"x\")","v":2.5420593292271532E-2},{"$f":"IFERROR((VLOOKUP($B163,Pupils,Pupils!$R$3,FALSE)/VLOOKUP($B163,Pupils,Pupils!$Q$3,FALSE)), \"x\")","v":2.5588492032001846E-2},{"$f":"IFERROR((VLOOKUP($B163,Pupils,Pupils!$W$3,FALSE)/VLOOKUP($B163,Pupils,Pupils!$V$3,FALSE)), \"x\")","v":2.5404239771318858E-2},{"$f":"IFERROR(((VLOOKUP($B163,Pupils,Pupils!$D$3,FALSE)+VLOOKUP($B163,Pupils,Pupils!$E$3,FALSE))/VLOOKUP($B163,Pupils,Pupils!$C$3,FALSE)), \"x\")","v":0.20282322281743159},{"$f":"IFERROR(((VLOOKUP($B163,Pupils,Pupils!$G$3,FALSE)+VLOOKUP($B163,Pupils,Pupils!$H$3,FALSE))/VLOOKUP($B163,Pupils,Pupils!$F$3,FALSE)), \"x\")","v":0.2097464388290928},{"$f":"IFERROR(((VLOOKUP($B163,Pupils,Pupils!$J$3,FALSE)+VLOOKUP($B163,Pupils,Pupils!$K$3,FALSE))/VLOOKUP($B163,Pupils,Pupils!$I$3,FALSE)), \"x\")","v":0.20257865703425371},{"$f":"IFERROR(((VLOOKUP($B163,Pupils,Pupils!$M$3,FALSE)+VLOOKUP($B163,Pupils,Pupils!$P$3,FALSE))/VLOOKUP($B163,Pupils,Pupils!$L$3,FALSE)), \"x\")","v":0.18824587749653587},{"$f":"IFERROR(((VLOOKUP($B163,Pupils,Pupils!$R$3,FALSE)+VLOOKUP($B163,Pupils,Pupils!$U$3,FALSE))/VLOOKUP($B163,Pupils,Pupils!$Q$3,FALSE)), \"x\")","v":0.17569995022255566},{"$f":"IFERROR(((VLOOKUP($B163,Pupils,Pupils!$W$3,FALSE)+VLOOKUP($B163,Pupils,Pupils!$Z$3,FALSE))/VLOOKUP($B163,Pupils,Pupils!$V$3,FALSE)), \"x\")","v":0.16718368282670526},{"$f":"(SUM(INDEX(Pupils!$AB$7:$AB$170,MATCH($B163,Pupils!$A$7:$A$170,0)),INDEX(Pupils!$AC$7:$AC$170,MATCH($B163,Pupils!$A$7:$A$170,0)),INDEX(Pupils!$AD$7:$AD$170,MATCH($B163,Pupils!$A$7:$A$170,0)),INDEX(Pupils!$AE$7:$AE$170,MATCH($B163,Pupils!$A$7:$A$170,0))))/SUM(INDEX(Pupils!$AB$7:$AM$170,MATCH($B163,Pupils!$A$7:$A$170,0),0))","v":0.3536487570168404},{"$f":"SUM(INDEX(Pupils!$AF$7:$AF$170,MATCH($B163,Pupils!$A$7:$A$170,0)))/SUM(INDEX(Pupils!$AB$7:$AM$170,MATCH($B163,Pupils!$A$7:$A$170,0),0))","v":0.2254410585404972},{"$f":"SUM(INDEX(Pupils!$AG$7:$AG$170,MATCH($B163,Pupils!$A$7:$A$170,0)))/SUM(INDEX(Pupils!$AB$7:$AM$170,MATCH($B163,Pupils!$A$7:$A$170,0),0))","v":0.16058540497193263},{"$f":"(SUM(INDEX(Pupils!$AH$7:$AH$170,MATCH($B163,Pupils!$A$7:$A$170,0)),INDEX(Pupils!$AI$7:$AI$170,MATCH($B163,Pupils!$A$7:$A$170,0)),INDEX(Pupils!$AJ$7:$AJ$170,MATCH($B163,Pupils!$A$7:$A$170,0))))/SUM(INDEX(Pupils!$AB$7:$AM$170,MATCH($B163,Pupils!$A$7:$A$170,0),0))","v":4.4506816359262229E-2},{"$f":"SUM(INDEX(Pupils!$AK$7:$AK$170,MATCH($B163,Pupils!$A$7:$A$170,0)))/SUM(INDEX(Pupils!$AB$7:$AM$170,MATCH($B163,Pupils!$A$7:$A$170,0),0))","v":4.6110665597433841E-2},{"$f":"SUM(INDEX(Pupils!$AL$7:$AL$170,MATCH($B163,Pupils!$A$7:$A$170,0)))/SUM(INDEX(Pupils!$AB$7:$AM$170,MATCH($B163,Pupils!$A$7:$A$170,0),0))","v":0.1254009623095429},{"$f":"SUM(INDEX(Pupils!$AM$7:$AM$170,MATCH($B163,Pupils!$A$7:$A$170,0)))/SUM(INDEX(Pupils!$AB$7:$AM$170,MATCH($B163,Pupils!$A$7:$A$170,0),0))","v":4.4306335204490781E-2},{"$f":"(SUM(INDEX(Pupils!$BH$7:$BH$170,MATCH($B163,Pupils!$A$7:$A$170,0)),INDEX(Pupils!$BK$7:$BK$170,MATCH($B163,Pupils!$A$7:$A$170,0)),INDEX(Pupils!$BO$7:$BO$170,MATCH($B163,Pupils!$A$7:$A$170,0))))/SUM(INDEX(Pupils!$BH$7:$BS$170,MATCH($B163,Pupils!$A$7:$A$170,0),0))","v":0.45398254995778214},{"$f":"(SUM(INDEX(Pupils!$BL$7:$BL$170,MATCH($B163,Pupils!$A$7:$A$170,0)),INDEX(Pupils!$BM$7:$BM$170,MATCH($B163,Pupils!$A$7:$A$170,0)),INDEX(Pupils!$BP$7:$BP$170,MATCH($B163,Pupils!$A$7:$A$170,0))))/SUM(INDEX(Pupils!$BH$7:$BS$170,MATCH($B163,Pupils!$A$7:$A$170,0),0))","v":0.44807205178722209},{"$f":"(SUM(INDEX(Pupils!$BI$7:$BI$170,MATCH($B163,Pupils!$A$7:$A$170,0)),INDEX(Pupils!$BJ$7:$BJ$170,MATCH($B163,Pupils!$A$7:$A$170,0))))/SUM(INDEX(Pupils!$BH$7:$BS$170,MATCH($B163,Pupils!$A$7:$A$170,0),0))","v":6.5578384463833378E-2},{"$f":"(SUM(INDEX(Pupils!$BQ$7:$BQ$170,MATCH($B163,Pupils!$A$7:$A$170,0)),INDEX(Pupils!$BR$7:$BR$170,MATCH($B163,Pupils!$A$7:$A$170,0)),INDEX(Pupils!$BN$7:$BN$170,MATCH($B163,Pupils!$A$7:$A$170,0)),INDEX(Pupils!$BS$7:$BS$170,MATCH($B163,Pupils!$A$7:$A$170,0))))/SUM(INDEX(Pupils!$BH$7:$BS$170,MATCH($B163,Pupils!$A$7:$A$170,0),0))","v":3.23670137911624E-2},{"$f":"IFERROR((VLOOKUP(B163,Funding,Funding!$C$2,FALSE)), \"x\")","v":363960621.17754656},{"$f":"IFERROR((AA163/VLOOKUP(B163,Funding,Funding!$D$2,FALSE)), \"x\")","v":0.12078677914909118},{"$f":"IFERROR((AA163/(VLOOKUP(B163,Pupils,Pupils!$M$3,FALSE)+VLOOKUP(B163,Pupils,Pupils!$P$3,FALSE))), \"x\")","v":2805.3077013838952},{"$f":"IFERROR((VLOOKUP(B163,Funding,Funding!$E$2,FALSE)), \"x\")","v":379321391.01535571},{"$f":"IFERROR((AD163/VLOOKUP(B163,Funding,Funding!$F$2,FALSE)), \"x\")","v":0.12252804196797591},{"$f":"IFERROR((AD163/(VLOOKUP(B163,Pupils,Pupils!$R$3,FALSE)+VLOOKUP(B163,Pupils,Pupils!$U$3,FALSE))), \"x\")","v":3114.9364895533213},{"$f":"IFERROR((VLOOKUP(B163,Funding,Funding!$G$2,FALSE)), \"x\")","v":393274772.81455117},{"$f":"IFERROR((AG163/VLOOKUP(B163,Funding,Funding!$H$2,FALSE)), \"x\")","v":0.12492441179492918},{"$f":"IFERROR((AG163/(VLOOKUP(B163,Pupils,Pupils!$W$3,FALSE)+VLOOKUP(B163,Pupils,Pupils!$Z$3,FALSE))), \"x\")","v":3370.5414193910797},{"$f":"IFERROR((VLOOKUP(B163,Funding,Funding!$I$2,FALSE)), \"x\")","v":398051541.87158275},{"$f":"IFERROR((AJ163/VLOOKUP(B163,Funding,Funding!$J$2,FALSE)), \"x\")","v":0.12372715598407009},null,{"$f":"IFERROR((VLOOKUP($B163,Funding,Funding!$EC$2,FALSE)), \"x\")","v":210929707.94999999},{"$f":"IFERROR((AM163/VLOOKUP($B163,Funding,Funding!$EU$2,FALSE)), \"x\")","v":6.8119830455109123E-2},{"$f":"IFERROR((AM163/(VLOOKUP($B163,Pupils,Pupils!$D$3,FALSE)+VLOOKUP($B163,Pupils,Pupils!$E$3,FALSE))), \"x\")","v":1505.672838532372},{"$f":"IFERROR((VLOOKUP($B163,Funding,Funding!$DA$2,FALSE)), \"x\")","v":225218251.31977999},{"$f":"IFERROR((AP163/VLOOKUP($B163,Funding,Funding!$DT$2,FALSE)), \"x\")","v":7.0553403474298407E-2},{"$f":"IFERROR((AP163/(VLOOKUP($B163,Pupils,Pupils!$G$3,FALSE)+VLOOKUP($B163,Pupils,Pupils!$H$3,FALSE))), \"x\")","v":1557.5798009597843},{"$f":"IFERROR((VLOOKUP($B163,Funding,Funding!$CE$2,FALSE)), \"x\")","v":211045637.93086001},{"$f":"IFERROR((AS163/VLOOKUP($B163,Funding,Funding!$CR$2,FALSE)), \"x\")","v":7.2682682082227376E-2},{"$f":"IFERROR((AS163/(VLOOKUP($B163,Pupils,Pupils!$J$3,FALSE)+VLOOKUP($B163,Pupils,Pupils!$K$3,FALSE))), \"x\")","v":1514.3374443429843},{"$f":"IFERROR((VLOOKUP($B163,Funding,Funding!$BM$2,FALSE)), \"x\")","v":261665071.84999999},{"$f":"IFERROR((AV163/VLOOKUP($B163,Funding,Funding!$BY$2,FALSE)), \"x\")","v":9.6054969080006894E-2},{"$f":"IFERROR((AV163/(VLOOKUP($B163,Pupils,Pupils!$M$3,FALSE)+VLOOKUP($B163,Pupils,Pupils!$P$3,FALSE))), \"x\")","v":2016.8419288577154},{"$f":"IFERROR((VLOOKUP($B163,Funding,Funding!$AQ$2,FALSE)), \"x\")","v":365076603},{"$f":"IFERROR((AY163/VLOOKUP($B163,Funding,Funding!$BE$2,FALSE)), \"x\")","v":0.11681492359488652},{"$f":"IFERROR((AY163/(VLOOKUP($B163,Pupils,Pupils!$R$3,FALSE)+VLOOKUP($B163,Pupils,Pupils!$U$3,FALSE))), \"x\")","v":2997.9601970847875},{"$f":"IFERROR((VLOOKUP($B163,Funding,Funding!$S$2,FALSE)), \"x\")","v":373651386},{"$f":"IFERROR((BB163/VLOOKUP($B163,Funding,Funding!$AH$2,FALSE)), \"x\")","v":0.11655244078057812},{"$f":"IFERROR((BB163/(VLOOKUP(B163,Pupils,Pupils!$W$3,FALSE)+VLOOKUP(B163,Pupils,Pupils!$Z$3,FALSE))), \"x\")","v":3202.3601816935206},{"$f":"IFERROR((VLOOKUP($B163,Funding,Funding!$GX$2,FALSE)), \"x\")","v":403335300.93246996},{"$f":"IFERROR((BE163/VLOOKUP($B163,Funding,Funding!$HC$2,FALSE)), \"x\")","v":0.12090977407425071},{"$f":"IFERROR((BE163/(VLOOKUP($B163,Pupils,Pupils!$D$3,FALSE)+VLOOKUP($B163,Pupils,Pupils!$E$3,FALSE))), \"x\")","v":2879.1155752192872},{"$f":"IFERROR((VLOOKUP($B163,Funding,Funding!$GP$2,FALSE)), \"x\")","v":413450483.11999995},{"$f":"IFERROR((BH163/VLOOKUP($B163,Funding,Funding!$GU$2,FALSE)), \"x\")","v":0.12530666550670355},{"$f":"IFERROR((BH163/(VLOOKUP($B163,Pupils,Pupils!$G$3,FALSE)+VLOOKUP($B163,Pupils,Pupils!$H$3,FALSE))), \"x\")","v":2859.3691560565712},{"$f":"IFERROR((VLOOKUP($B163,Funding,Funding!$GH$2,FALSE)), \"x\")","v":426763173.22000003},{"$f":"IFERROR((BK163/VLOOKUP($B163,Funding,Funding!$GM$2,FALSE)), \"x\")","v":0.13833086509130454},{"$f":"IFERROR((BK163/(VLOOKUP($B163,Pupils,Pupils!$J$3,FALSE)+VLOOKUP($B163,Pupils,Pupils!$K$3,FALSE))), \"x\")","v":3062.1976336956914},{"$f":"IFERROR((VLOOKUP($B163,Funding,Funding!$FZ$2,FALSE)), \"x\")","v":440764729.48000002},{"$f":"IFERROR((BN163/VLOOKUP($B163,Funding,Funding!$GE$2,FALSE)), \"x\")","v":0.15182123464569353},{"$f":"IFERROR((BN163/(VLOOKUP($B163,Pupils,Pupils!$M$3,FALSE)+VLOOKUP($B163,Pupils,Pupils!$P$3,FALSE))), \"x\")","v":3397.2925040850932},{"$f":"IFERROR((VLOOKUP($B163,Funding,Funding!$FD$2,FALSE)), \"x\")","v":377278458.78000003},{"$f":"IFERROR((BQ163/VLOOKUP($B163,Funding,Funding!$FR$2,FALSE)), \"x\")","v":0.17790825308974681},{"$f":"IFERROR((BQ163/(VLOOKUP($B163,Pupils,Pupils!$R$3,FALSE)+VLOOKUP($B163,Pupils,Pupils!$U$3,FALSE))), \"x\")","v":3098.1602034900434},{"$f":"(VLOOKUP(B163,Funding,Funding!$HK$2,FALSE)+VLOOKUP(B163,Funding,Funding!$HL$2,FALSE)+VLOOKUP(B163,Funding,Funding!$HM$2,FALSE))/(VLOOKUP(B163,Funding,Funding!$HN$2,FALSE))","v":0.2379260531761215},{"$f":"IFERROR((VLOOKUP(B163,Other_data,Other!$D$3,FALSE)+VLOOKUP(B163,Other_data,Other!$E$3,FALSE)+VLOOKUP(B163,Other_data,Other!$F$3,FALSE)), \"x\")","v":28010},{"$f":"(VLOOKUP(B163,Other_data,Other!$AK$3,FALSE)+VLOOKUP(B163,Other_data,Other!$AL$3,FALSE))/VLOOKUP(B163,Other_data,Other!$AJ$3,FALSE)","v":3.8121829962731495E-2},{"$f":"(VLOOKUP(B163,Other_data,Other!$AR$3,FALSE)+VLOOKUP(B163,Other_data,Other!$AS$3,FALSE))/VLOOKUP(B163,Other_data,Other!$AQ$3,FALSE)","v":5.194725665464961E-2},{"$f":"VLOOKUP(B163,Other_data,Other!$AP$3,FALSE)/VLOOKUP(B163,Other_data,Other!$AJ$3,FALSE)","v":5.9935994868100121E-3},{"$f":"VLOOKUP(B163,Other_data,Other!$AW$3,FALSE)/VLOOKUP(B163,Other_data,Other!$AQ$3,FALSE)","v":1.0325448170280013E-2}]
[158,975,"WEST MIDLANDS",{"$f":"IFERROR((VLOOKUP($B164,Pupils,Pupils!$D$3,FALSE)/VLOOKUP($B164,Pupils,Pupils!$C$3,FALSE)), \"x\")","v":2.9874275583880793E-2},{"$f":"IFERROR((VLOOKUP($B164,Pupils,Pupils!$G$3,FALSE)/VLOOKUP($B164,Pupils,Pupils!$F$3,FALSE)),\"x\")","v":2.9617929274475967E-2},{"$f":"IFERROR((VLOOKUP($B164,Pupils,Pupils!$J$3,FALSE)/VLOOKUP($B164,Pupils,Pupils!$I$3,FALSE)), \"x\")","v":2.9744143050615058E-2},{"$f":"IFERROR((VLOOKUP($B164,Pupils,Pupils!$M$3,FALSE)/VLOOKUP($B164,Pupils,Pupils!$L$3,FALSE)), \"x\")","v":2.986860497623707E-2},{"$f":"IFERROR((VLOOKUP($B164,Pupils,Pupils!$R$3,FALSE)/VLOOKUP($B164,Pupils,Pupils!$Q$3,FALSE)), \"x\")","v":2.9940618236306123E-2},{"$f":"IFERROR((VLOOKUP($B164,Pupils,Pupils!$W$3,FALSE)/VLOOKUP($B164,Pupils,Pupils!$V$3,FALSE)), \"x\")","v":3.0321857028183109E-2},{"$f":"IFERROR(((VLOOKUP($B164,Pupils,Pupils!$D$3,FALSE)+VLOOKUP($B164,Pupils,Pupils!$E$3,FALSE))/VLOOKUP($B164,Pupils,Pupils!$C$3,FALSE)), \"x\")","v":0.20559672813567689},{"$f":"IFERROR(((VLOOKUP($B164,Pupils,Pupils!$G$3,FALSE)+VLOOKUP($B164,Pupils,Pupils!$H$3,FALSE))/VLOOKUP($B164,Pupils,Pupils!$F$3,FALSE)), \"x\")","v":0.21286797564910426},{"$f":"IFERROR(((VLOOKUP($B164,Pupils,Pupils!$J$3,FALSE)+VLOOKUP($B164,Pupils,Pupils!$K$3,FALSE))/VLOOKUP($B164,Pupils,Pupils!$I$3,FALSE)), \"x\")","v":0.21063101640339194},{"$f":"IFERROR(((VLOOKUP($B164,Pupils,Pupils!$M$3,FALSE)+VLOOKUP($B164,Pupils,Pupils!$P$3,FALSE))/VLOOKUP($B164,Pupils,Pupils!$L$3,FALSE)), \"x\")","v":0.20352809616997483},{"$f":"IFERROR(((VLOOKUP($B164,Pupils,Pupils!$R$3,FALSE)+VLOOKUP($B164,Pupils,Pupils!$U$3,FALSE))/VLOOKUP($B164,Pupils,Pupils!$Q$3,FALSE)), \"x\")","v":0.1941117709084855},{"$f":"IFERROR(((VLOOKUP($B164,Pupils,Pupils!$W$3,FALSE)+VLOOKUP($B164,Pupils,Pupils!$Z$3,FALSE))/VLOOKUP($B164,Pupils,Pupils!$V$3,FALSE)), \"x\")","v":0.18581827778449764},{"$f":"(SUM(INDEX(Pupils!$AB$7:$AB$170,MATCH($B164,Pupils!$A$7:$A$170,0)),INDEX(Pupils!$AC$7:$AC$170,MATCH($B164,Pupils!$A$7:$A$170,0)),INDEX(Pupils!$AD$7:$AD$170,MATCH($B164,Pupils!$A$7:$A$170,0)),INDEX(Pupils!$AE$7:$AE$170,MATCH($B164,Pupils!$A$7:$A$170,0))))/SUM(INDEX(Pupils!$AB$7:$AM$170,MATCH($B164,Pupils!$A$7:$A$170,0),0))","v":0.43250179040343756},{"$f":"SUM(INDEX(Pupils!$AF$7:$AF$170,MATCH($B164,Pupils!$A$7:$A$170,0)))/SUM(INDEX(Pupils!$AB$7:$AM$170,MATCH($B164,Pupils!$A$7:$A$170,0),0))","v":0.17581761756982572},{"$f":"SUM(INDEX(Pupils!$AG$7:$AG$170,MATCH($B164,Pupils!$A$7:$A$170,0)))/SUM(INDEX(Pupils!$AB$7:$AM$170,MATCH($B164,Pupils!$A$7:$A$170,0),0))","v":0.18136786822630699},{"$f":"(SUM(INDEX(Pupils!$AH$7:$AH$170,MATCH($B164,Pupils!$A$7:$A$170,0)),INDEX(Pupils!$AI$7:$AI$170,MATCH($B164,Pupils!$A$7:$A$170,0)),INDEX(Pupils!$AJ$7:$AJ$170,MATCH($B164,Pupils!$A$7:$A$170,0))))/SUM(INDEX(Pupils!$AB$7:$AM$170,MATCH($B164,Pupils!$A$7:$A$170,0),0))","v":3.8374313678682263E-2},{"$f":"SUM(INDEX(Pupils!$AK$7:$AK$170,MATCH($B164,Pupils!$A$7:$A$170,0)))/SUM(INDEX(Pupils!$AB$7:$AM$170,MATCH($B164,Pupils!$A$7:$A$170,0),0))","v":3.5987109095249464E-2},{"$f":"SUM(INDEX(Pupils!$AL$7:$AL$170,MATCH($B164,Pupils!$A$7:$A$170,0)))/SUM(INDEX(Pupils!$AB$7:$AM$170,MATCH($B164,Pupils!$A$7:$A$170,0),0))","v":0.10288851754595368},{"$f":"SUM(INDEX(Pupils!$AM$7:$AM$170,MATCH($B164,Pupils!$A$7:$A$170,0)))/SUM(INDEX(Pupils!$AB$7:$AM$170,MATCH($B164,Pupils!$A$7:$A$170,0),0))","v":3.3062783480544283E-2},{"$f":"(SUM(INDEX(Pupils!$BH$7:$BH$170,MATCH($B164,Pupils!$A$7:$A$170,0)),INDEX(Pupils!$BK$7:$BK$170,MATCH($B164,Pupils!$A$7:$A$170,0)),INDEX(Pupils!$BO$7:$BO$170,MATCH($B164,Pupils!$A$7:$A$170,0))))/SUM(INDEX(Pupils!$BH$7:$BS$170,MATCH($B164,Pupils!$A$7:$A$170,0),0))","v":0.42476156835040624},{"$f":"(SUM(INDEX(Pupils!$BL$7:$BL$170,MATCH($B164,Pupils!$A$7:$A$170,0)),INDEX(Pupils!$BM$7:$BM$170,MATCH($B164,Pupils!$A$7:$A$170,0)),INDEX(Pupils!$BP$7:$BP$170,MATCH($B164,Pupils!$A$7:$A$170,0))))/SUM(INDEX(Pupils!$BH$7:$BS$170,MATCH($B164,Pupils!$A$7:$A$170,0),0))","v":0.51483574708583535},{"$f":"(SUM(INDEX(Pupils!$BI$7:$BI$170,MATCH($B164,Pupils!$A$7:$A$170,0)),INDEX(Pupils!$BJ$7:$BJ$170,MATCH($B164,Pupils!$A$7:$A$170,0))))/SUM(INDEX(Pupils!$BH$7:$BS$170,MATCH($B164,Pupils!$A$7:$A$170,0),0))","v":3.7795831861533027E-2},{"$f":"(SUM(INDEX(Pupils!$BQ$7:$BQ$170,MATCH($B164,Pupils!$A$7:$A$170,0)),INDEX(Pupils!$BR$7:$BR$170,MATCH($B164,Pupils!$A$7:$A$170,0)),INDEX(Pupils!$BN$7:$BN$170,MATCH($B164,Pupils!$A$7:$A$170,0)),INDEX(Pupils!$BS$7:$BS$170,MATCH($B164,Pupils!$A$7:$A$170,0))))/SUM(INDEX(Pupils!$BH$7:$BS$170,MATCH($B164,Pupils!$A$7:$A$170,0),0))","v":2.2606852702225361E-2},{"$f":"IFERROR((VLOOKUP(B164,Funding,Funding!$C$2,FALSE)), \"x\")","v":492972907.19861823},{"$f":"IFERROR((AA164/VLOOKUP(B164,Funding,Funding!$D$2,FALSE)), \"x\")","v":0.1206404732897242},{"$f":"IFERROR((AA164/(VLOOKUP(B164,Pupils,Pupils!$M$3,FALSE)+VLOOKUP(B164,Pupils,Pupils!$P$3,FALSE))), \"x\")","v":2708.5679360381209},{"$f":"IFERROR((VLOOKUP(B164,Funding,Funding!$E$2,FALSE)), \"x\")","v":511381117.51081973},{"$f":"IFERROR((AD164/VLOOKUP(B164,Funding,Funding!$F$2,FALSE)), \"x\")","v":0.12163919881141716},{"$f":"IFERROR((AD164/(VLOOKUP(B164,Pupils,Pupils!$R$3,FALSE)+VLOOKUP(B164,Pupils,Pupils!$U$3,FALSE))), \"x\")","v":2924.0993653590631},{"$f":"IFERROR((VLOOKUP(B164,Funding,Funding!$G$2,FALSE)), \"x\")","v":540468579.79350543},{"$f":"IFERROR((AG164/VLOOKUP(B164,Funding,Funding!$H$2,FALSE)), \"x\")","v":0.12617555352385929},{"$f":"IFERROR((AG164/(VLOOKUP(B164,Pupils,Pupils!$W$3,FALSE)+VLOOKUP(B164,Pupils,Pupils!$Z$3,FALSE))), \"x\")","v":3198.3228084948692},{"$f":"IFERROR((VLOOKUP(B164,Funding,Funding!$I$2,FALSE)), \"x\")","v":547328704.64188564},{"$f":"IFERROR((AJ164/VLOOKUP(B164,Funding,Funding!$J$2,FALSE)), \"x\")","v":0.12598026741998108},null,{"$f":"IFERROR((VLOOKUP($B164,Funding,Funding!$EC$2,FALSE)), \"x\")","v":341502495.27999997},{"$f":"IFERROR((AM164/VLOOKUP($B164,Funding,Funding!$EU$2,FALSE)), \"x\")","v":8.3400249609794391E-2},{"$f":"IFERROR((AM164/(VLOOKUP($B164,Pupils,Pupils!$D$3,FALSE)+VLOOKUP($B164,Pupils,Pupils!$E$3,FALSE))), \"x\")","v":1863.7405259912134},{"$f":"IFERROR((VLOOKUP($B164,Funding,Funding!$DA$2,FALSE)), \"x\")","v":357595588.36222994},{"$f":"IFERROR((AP164/VLOOKUP($B164,Funding,Funding!$DT$2,FALSE)), \"x\")","v":8.467498991220361E-2},{"$f":"IFERROR((AP164/(VLOOKUP($B164,Pupils,Pupils!$G$3,FALSE)+VLOOKUP($B164,Pupils,Pupils!$H$3,FALSE))), \"x\")","v":1888.5927189111408},{"$f":"IFERROR((VLOOKUP($B164,Funding,Funding!$CE$2,FALSE)), \"x\")","v":375411235.15753996},{"$f":"IFERROR((AS164/VLOOKUP($B164,Funding,Funding!$CR$2,FALSE)), \"x\")","v":9.0968425765246816E-2},{"$f":"IFERROR((AS164/(VLOOKUP($B164,Pupils,Pupils!$J$3,FALSE)+VLOOKUP($B164,Pupils,Pupils!$K$3,FALSE))), \"x\")","v":2003.1547684624084},{"$f":"IFERROR((VLOOKUP($B164,Funding,Funding!$BM$2,FALSE)), \"x\")","v":400349951.51000005},{"$f":"IFERROR((AV164/VLOOKUP($B164,Funding,Funding!$BY$2,FALSE)), \"x\")","v":0.10629183618161633},{"$f":"IFERROR((AV164/(VLOOKUP($B164,Pupils,Pupils!$M$3,FALSE)+VLOOKUP($B164,Pupils,Pupils!$P$3,FALSE))), \"x\")","v":2199.6645779511555},{"$f":"IFERROR((VLOOKUP($B164,Funding,Funding!$AQ$2,FALSE)), \"x\")","v":505910599.68000001},{"$f":"IFERROR((AY164/VLOOKUP($B164,Funding,Funding!$BE$2,FALSE)), \"x\")","v":0.11696121119966328},{"$f":"IFERROR((AY164/(VLOOKUP($B164,Pupils,Pupils!$R$3,FALSE)+VLOOKUP($B164,Pupils,Pupils!$U$3,FALSE))), \"x\")","v":2892.8187076078566},{"$f":"IFERROR((VLOOKUP($B164,Funding,Funding!$S$2,FALSE)), \"x\")","v":499591279},{"$f":"IFERROR((BB164/VLOOKUP($B164,Funding,Funding!$AH$2,FALSE)), \"x\")","v":0.11447464724202065},{"$f":"IFERROR((BB164/(VLOOKUP(B164,Pupils,Pupils!$W$3,FALSE)+VLOOKUP(B164,Pupils,Pupils!$Z$3,FALSE))), \"x\")","v":2956.4238186821317},{"$f":"IFERROR((VLOOKUP($B164,Funding,Funding!$GX$2,FALSE)), \"x\")","v":586516169.01861},{"$f":"IFERROR((BE164/VLOOKUP($B164,Funding,Funding!$HC$2,FALSE)), \"x\")","v":0.13170991664873016},{"$f":"IFERROR((BE164/(VLOOKUP($B164,Pupils,Pupils!$D$3,FALSE)+VLOOKUP($B164,Pupils,Pupils!$E$3,FALSE))), \"x\")","v":3200.8959479281252},{"$f":"IFERROR((VLOOKUP($B164,Funding,Funding!$GP$2,FALSE)), \"x\")","v":621153111.80999994},{"$f":"IFERROR((BH164/VLOOKUP($B164,Funding,Funding!$GU$2,FALSE)), \"x\")","v":0.13684568796727764},{"$f":"IFERROR((BH164/(VLOOKUP($B164,Pupils,Pupils!$G$3,FALSE)+VLOOKUP($B164,Pupils,Pupils!$H$3,FALSE))), \"x\")","v":3280.5361208904378},{"$f":"IFERROR((VLOOKUP($B164,Funding,Funding!$GH$2,FALSE)), \"x\")","v":596202770.84000003},{"$f":"IFERROR((BK164/VLOOKUP($B164,Funding,Funding!$GM$2,FALSE)), \"x\")","v":0.1416687946330803},{"$f":"IFERROR((BK164/(VLOOKUP($B164,Pupils,Pupils!$J$3,FALSE)+VLOOKUP($B164,Pupils,Pupils!$K$3,FALSE))), \"x\")","v":3181.2751232058058},{"$f":"IFERROR((VLOOKUP($B164,Funding,Funding!$FZ$2,FALSE)), \"x\")","v":584396428.98000002},{"$f":"IFERROR((BN164/VLOOKUP($B164,Funding,Funding!$GE$2,FALSE)), \"x\")","v":0.14909020813371979},{"$f":"IFERROR((BN164/(VLOOKUP($B164,Pupils,Pupils!$M$3,FALSE)+VLOOKUP($B164,Pupils,Pupils!$P$3,FALSE))), \"x\")","v":3210.8811789785996},{"$f":"IFERROR((VLOOKUP($B164,Funding,Funding!$FD$2,FALSE)), \"x\")","v":491215876.06},{"$f":"IFERROR((BQ164/VLOOKUP($B164,Funding,Funding!$FR$2,FALSE)), \"x\")","v":0.14289112979815308},{"$f":"IFERROR((BQ164/(VLOOKUP($B164,Pupils,Pupils!$R$3,FALSE)+VLOOKUP($B164,Pupils,Pupils!$U$3,FALSE))), \"x\")","v":2808.7936418789491},{"$f":"(VLOOKUP(B164,Funding,Funding!$HK$2,FALSE)+VLOOKUP(B164,Funding,Funding!$HL$2,FALSE)+VLOOKUP(B164,Funding,Funding!$HM$2,FALSE))/(VLOOKUP(B164,Funding,Funding!$HN$2,FALSE))","v":0.19318818912352831},{"$f":"IFERROR((VLOOKUP(B164,Other_data,Other!$D$3,FALSE)+VLOOKUP(B164,Other_data,Other!$E$3,FALSE)+VLOOKUP(B164,Other_data,Other!$F$3,FALSE)), \"x\")","v":37110},{"$f":"(VLOOKUP(B164,Other_data,Other!$AK$3,FALSE)+VLOOKUP(B164,Other_data,Other!$AL$3,FALSE))/VLOOKUP(B164,Other_data,Other!$AJ$3,FALSE)","v":4.0294127889181526E-2},{"$f":"(VLOOKUP(B164,Other_data,Other!$AR$3,FALSE)+VLOOKUP(B164,Other_data,Other!$AS$3,FALSE))/VLOOKUP(B164,Other_data,Other!$AQ$3,FALSE)","v":5.4168699263261913E-2},{"$f":"VLOOKUP(B164,Other_data,Other!$AP$3,FALSE)/VLOOKUP(B164,Other_data,Other!$AJ$3,FALSE)","v":7.105769107407631E-3},{"$f":"VLOOKUP(B164,Other_data,Other!$AW$3,FALSE)/VLOOKUP(B164,Other_data,Other!$AQ$3,FALSE)","v":1.1653032634120104E-2}]
[159,976,"EAST OF ENGLAND",{"$f":"IFERROR((VLOOKUP($B165,Pupils,Pupils!$D$3,FALSE)/VLOOKUP($B165,Pupils,Pupils!$C$3,FALSE)), \"x\")","v":2.8450054349031698E-2},{"$f":"IFERROR((VLOOKUP($B165,Pupils,Pupils!$G$3,FALSE)/VLOOKUP($B165,Pupils,Pupils!$F$3,FALSE)),\"x\")","v":2.8626471874532902E-2},{"$f":"IFERROR((VLOOKUP($B165,Pupils,Pupils!$J$3,FALSE)/VLOOKUP($B165,Pupils,Pupils!$I$3,FALSE)), \"x\")","v":2.8729098835605101E-2},{"$f":"IFERROR((VLOOKUP($B165,Pupils,Pupils!$M$3,FALSE)/VLOOKUP($B165,Pupils,Pupils!$L$3,FALSE)), \"x\")","v":2.8966681465160508E-2},{"$f":"IFERROR((VLOOKUP($B165,Pupils,Pupils!$R$3,FALSE)/VLOOKUP($B165,Pupils,Pupils!$Q$3,FALSE)), \"x\")","v":2.9277665602813783E-2},{"$f":"IFERROR((VLOOKUP($B165,Pupils,Pupils!$W$3,FALSE)/VLOOKUP($B165,Pupils,Pupils!$V$3,FALSE)), \"x\")","v":2.9041922597826553E-2},{"$f":"IFERROR(((VLOOKUP($B165,Pupils,Pupils!$D$3,FALSE)+VLOOKUP($B165,Pupils,Pupils!$E$3,FALSE))/VLOOKUP($B165,Pupils,Pupils!$C$3,FALSE)), \"x\")","v":0.19361010670156836},{"$f":"IFERROR(((VLOOKUP($B165,Pupils,Pupils!$G$3,FALSE)+VLOOKUP($B165,Pupils,Pupils!$H$3,FALSE))/VLOOKUP($B165,Pupils,Pupils!$F$3,FALSE)), \"x\")","v":0.19901791991673909},{"$f":"IFERROR(((VLOOKUP($B165,Pupils,Pupils!$J$3,FALSE)+VLOOKUP($B165,Pupils,Pupils!$K$3,FALSE))/VLOOKUP($B165,Pupils,Pupils!$I$3,FALSE)), \"x\")","v":0.19621433695712157},{"$f":"IFERROR(((VLOOKUP($B165,Pupils,Pupils!$M$3,FALSE)+VLOOKUP($B165,Pupils,Pupils!$P$3,FALSE))/VLOOKUP($B165,Pupils,Pupils!$L$3,FALSE)), \"x\")","v":0.1887191629533409},{"$f":"IFERROR(((VLOOKUP($B165,Pupils,Pupils!$R$3,FALSE)+VLOOKUP($B165,Pupils,Pupils!$U$3,FALSE))/VLOOKUP($B165,Pupils,Pupils!$Q$3,FALSE)), \"x\")","v":0.17936233960789422},{"$f":"IFERROR(((VLOOKUP($B165,Pupils,Pupils!$W$3,FALSE)+VLOOKUP($B165,Pupils,Pupils!$Z$3,FALSE))/VLOOKUP($B165,Pupils,Pupils!$V$3,FALSE)), \"x\")","v":0.16808234182380483},{"$f":"(SUM(INDEX(Pupils!$AB$7:$AB$170,MATCH($B165,Pupils!$A$7:$A$170,0)),INDEX(Pupils!$AC$7:$AC$170,MATCH($B165,Pupils!$A$7:$A$170,0)),INDEX(Pupils!$AD$7:$AD$170,MATCH($B165,Pupils!$A$7:$A$170,0)),INDEX(Pupils!$AE$7:$AE$170,MATCH($B165,Pupils!$A$7:$A$170,0))))/SUM(INDEX(Pupils!$AB$7:$AM$170,MATCH($B165,Pupils!$A$7:$A$170,0),0))","v":0.38083236836727741},{"$f":"SUM(INDEX(Pupils!$AF$7:$AF$170,MATCH($B165,Pupils!$A$7:$A$170,0)))/SUM(INDEX(Pupils!$AB$7:$AM$170,MATCH($B165,Pupils!$A$7:$A$170,0),0))","v":0.21326885089571554},{"$f":"SUM(INDEX(Pupils!$AG$7:$AG$170,MATCH($B165,Pupils!$A$7:$A$170,0)))/SUM(INDEX(Pupils!$AB$7:$AM$170,MATCH($B165,Pupils!$A$7:$A$170,0),0))","v":0.17614603909815407},{"$f":"(SUM(INDEX(Pupils!$AH$7:$AH$170,MATCH($B165,Pupils!$A$7:$A$170,0)),INDEX(Pupils!$AI$7:$AI$170,MATCH($B165,Pupils!$A$7:$A$170,0)),INDEX(Pupils!$AJ$7:$AJ$170,MATCH($B165,Pupils!$A$7:$A$170,0))))/SUM(INDEX(Pupils!$AB$7:$AM$170,MATCH($B165,Pupils!$A$7:$A$170,0),0))","v":3.6850350793542673E-2},{"$f":"SUM(INDEX(Pupils!$AK$7:$AK$170,MATCH($B165,Pupils!$A$7:$A$170,0)))/SUM(INDEX(Pupils!$AB$7:$AM$170,MATCH($B165,Pupils!$A$7:$A$170,0),0))","v":3.9574960833730674E-2},{"$f":"SUM(INDEX(Pupils!$AL$7:$AL$170,MATCH($B165,Pupils!$A$7:$A$170,0)))/SUM(INDEX(Pupils!$AB$7:$AM$170,MATCH($B165,Pupils!$A$7:$A$170,0),0))","v":0.10762209658742593},{"$f":"SUM(INDEX(Pupils!$AM$7:$AM$170,MATCH($B165,Pupils!$A$7:$A$170,0)))/SUM(INDEX(Pupils!$AB$7:$AM$170,MATCH($B165,Pupils!$A$7:$A$170,0),0))","v":4.5705333424153671E-2},{"$f":"(SUM(INDEX(Pupils!$BH$7:$BH$170,MATCH($B165,Pupils!$A$7:$A$170,0)),INDEX(Pupils!$BK$7:$BK$170,MATCH($B165,Pupils!$A$7:$A$170,0)),INDEX(Pupils!$BO$7:$BO$170,MATCH($B165,Pupils!$A$7:$A$170,0))))/SUM(INDEX(Pupils!$BH$7:$BS$170,MATCH($B165,Pupils!$A$7:$A$170,0),0))","v":0.54451308139534882},{"$f":"(SUM(INDEX(Pupils!$BL$7:$BL$170,MATCH($B165,Pupils!$A$7:$A$170,0)),INDEX(Pupils!$BM$7:$BM$170,MATCH($B165,Pupils!$A$7:$A$170,0)),INDEX(Pupils!$BP$7:$BP$170,MATCH($B165,Pupils!$A$7:$A$170,0))))/SUM(INDEX(Pupils!$BH$7:$BS$170,MATCH($B165,Pupils!$A$7:$A$170,0),0))","v":0.39371366279069769},{"$f":"(SUM(INDEX(Pupils!$BI$7:$BI$170,MATCH($B165,Pupils!$A$7:$A$170,0)),INDEX(Pupils!$BJ$7:$BJ$170,MATCH($B165,Pupils!$A$7:$A$170,0))))/SUM(INDEX(Pupils!$BH$7:$BS$170,MATCH($B165,Pupils!$A$7:$A$170,0),0))","v":3.9789244186046513E-2},{"$f":"(SUM(INDEX(Pupils!$BQ$7:$BQ$170,MATCH($B165,Pupils!$A$7:$A$170,0)),INDEX(Pupils!$BR$7:$BR$170,MATCH($B165,Pupils!$A$7:$A$170,0)),INDEX(Pupils!$BN$7:$BN$170,MATCH($B165,Pupils!$A$7:$A$170,0)),INDEX(Pupils!$BS$7:$BS$170,MATCH($B165,Pupils!$A$7:$A$170,0))))/SUM(INDEX(Pupils!$BH$7:$BS$170,MATCH($B165,Pupils!$A$7:$A$170,0),0))","v":2.1984011627906978E-2},{"$f":"IFERROR((VLOOKUP(B165,Funding,Funding!$C$2,FALSE)), \"x\")","v":478436687.901833},{"$f":"IFERROR((AA165/VLOOKUP(B165,Funding,Funding!$D$2,FALSE)), \"x\")","v":0.12179321759228023},{"$f":"IFERROR((AA165/(VLOOKUP(B165,Pupils,Pupils!$M$3,FALSE)+VLOOKUP(B165,Pupils,Pupils!$P$3,FALSE))), \"x\")","v":2779.0235124409446},{"$f":"IFERROR((VLOOKUP(B165,Funding,Funding!$E$2,FALSE)), \"x\")","v":494276130.53082734},{"$f":"IFERROR((AD165/VLOOKUP(B165,Funding,Funding!$F$2,FALSE)), \"x\")","v":0.12256372155736676},{"$f":"IFERROR((AD165/(VLOOKUP(B165,Pupils,Pupils!$R$3,FALSE)+VLOOKUP(B165,Pupils,Pupils!$U$3,FALSE))), \"x\")","v":2991.5335483784374},{"$f":"IFERROR((VLOOKUP(B165,Funding,Funding!$G$2,FALSE)), \"x\")","v":512629495.16621971},{"$f":"IFERROR((AG165/VLOOKUP(B165,Funding,Funding!$H$2,FALSE)), \"x\")","v":0.12522428173583972},{"$f":"IFERROR((AG165/(VLOOKUP(B165,Pupils,Pupils!$W$3,FALSE)+VLOOKUP(B165,Pupils,Pupils!$Z$3,FALSE))), \"x\")","v":3275.0646552705302},{"$f":"IFERROR((VLOOKUP(B165,Funding,Funding!$I$2,FALSE)), \"x\")","v":519205749.36086988},{"$f":"IFERROR((AJ165/VLOOKUP(B165,Funding,Funding!$J$2,FALSE)), \"x\")","v":0.12351401801040672},null,{"$f":"IFERROR((VLOOKUP($B165,Funding,Funding!$EC$2,FALSE)), \"x\")","v":293849344.55000001},{"$f":"IFERROR((AM165/VLOOKUP($B165,Funding,Funding!$EU$2,FALSE)), \"x\")","v":7.4603565750019835E-2},{"$f":"IFERROR((AM165/(VLOOKUP($B165,Pupils,Pupils!$D$3,FALSE)+VLOOKUP($B165,Pupils,Pupils!$E$3,FALSE))), \"x\")","v":1683.4198077969695},{"$f":"IFERROR((VLOOKUP($B165,Funding,Funding!$DA$2,FALSE)), \"x\")","v":306180933.20609999},{"$f":"IFERROR((AP165/VLOOKUP($B165,Funding,Funding!$DT$2,FALSE)), \"x\")","v":7.43161143754454E-2},{"$f":"IFERROR((AP165/(VLOOKUP($B165,Pupils,Pupils!$G$3,FALSE)+VLOOKUP($B165,Pupils,Pupils!$H$3,FALSE))), \"x\")","v":1703.3709775026425},{"$f":"IFERROR((VLOOKUP($B165,Funding,Funding!$CE$2,FALSE)), \"x\")","v":323166817.29369998},{"$f":"IFERROR((AS165/VLOOKUP($B165,Funding,Funding!$CR$2,FALSE)), \"x\")","v":8.531365627506915E-2},{"$f":"IFERROR((AS165/(VLOOKUP($B165,Pupils,Pupils!$J$3,FALSE)+VLOOKUP($B165,Pupils,Pupils!$K$3,FALSE))), \"x\")","v":1817.7906248942511},{"$f":"IFERROR((VLOOKUP($B165,Funding,Funding!$BM$2,FALSE)), \"x\")","v":339287456.22000003},{"$f":"IFERROR((AV165/VLOOKUP($B165,Funding,Funding!$BY$2,FALSE)), \"x\")","v":0.10465965608901458},{"$f":"IFERROR((AV165/(VLOOKUP($B165,Pupils,Pupils!$M$3,FALSE)+VLOOKUP($B165,Pupils,Pupils!$P$3,FALSE))), \"x\")","v":1970.768216891264},{"$f":"IFERROR((VLOOKUP($B165,Funding,Funding!$AQ$2,FALSE)), \"x\")","v":479865395.75999999},{"$f":"IFERROR((AY165/VLOOKUP($B165,Funding,Funding!$BE$2,FALSE)), \"x\")","v":0.11672113404685902},{"$f":"IFERROR((AY165/(VLOOKUP($B165,Pupils,Pupils!$R$3,FALSE)+VLOOKUP($B165,Pupils,Pupils!$U$3,FALSE))), \"x\")","v":2904.3146966863369},{"$f":"IFERROR((VLOOKUP($B165,Funding,Funding!$S$2,FALSE)), \"x\")","v":465909796.93000001},{"$f":"IFERROR((BB165/VLOOKUP($B165,Funding,Funding!$AH$2,FALSE)), \"x\")","v":0.11176180917414047},{"$f":"IFERROR((BB165/(VLOOKUP(B165,Pupils,Pupils!$W$3,FALSE)+VLOOKUP(B165,Pupils,Pupils!$Z$3,FALSE))), \"x\")","v":2976.5839126657083},{"$f":"IFERROR((VLOOKUP($B165,Funding,Funding!$GX$2,FALSE)), \"x\")","v":524100531.60162997},{"$f":"IFERROR((BE165/VLOOKUP($B165,Funding,Funding!$HC$2,FALSE)), \"x\")","v":0.1199339738514634},{"$f":"IFERROR((BE165/(VLOOKUP($B165,Pupils,Pupils!$D$3,FALSE)+VLOOKUP($B165,Pupils,Pupils!$E$3,FALSE))), \"x\")","v":3002.4950966837387},{"$f":"IFERROR((VLOOKUP($B165,Funding,Funding!$GP$2,FALSE)), \"x\")","v":549529681.43000007},{"$f":"IFERROR((BH165/VLOOKUP($B165,Funding,Funding!$GU$2,FALSE)), \"x\")","v":0.12440189241246853},{"$f":"IFERROR((BH165/(VLOOKUP($B165,Pupils,Pupils!$G$3,FALSE)+VLOOKUP($B165,Pupils,Pupils!$H$3,FALSE))), \"x\")","v":3057.1887701251744},{"$f":"IFERROR((VLOOKUP($B165,Funding,Funding!$GH$2,FALSE)), \"x\")","v":531195480.42000002},{"$f":"IFERROR((BK165/VLOOKUP($B165,Funding,Funding!$GM$2,FALSE)), \"x\")","v":0.1355458955306463},{"$f":"IFERROR((BK165/(VLOOKUP($B165,Pupils,Pupils!$J$3,FALSE)+VLOOKUP($B165,Pupils,Pupils!$K$3,FALSE))), \"x\")","v":2987.9372281471483},{"$f":"IFERROR((VLOOKUP($B165,Funding,Funding!$FZ$2,FALSE)), \"x\")","v":496305455.10999995},{"$f":"IFERROR((BN165/VLOOKUP($B165,Funding,Funding!$GE$2,FALSE)), \"x\")","v":0.14837539518143431},{"$f":"IFERROR((BN165/(VLOOKUP($B165,Pupils,Pupils!$M$3,FALSE)+VLOOKUP($B165,Pupils,Pupils!$P$3,FALSE))), \"x\")","v":2882.8151435292748},{"$f":"IFERROR((VLOOKUP($B165,Funding,Funding!$FD$2,FALSE)), \"x\")","v":440278583.70999998},{"$f":"IFERROR((BQ165/VLOOKUP($B165,Funding,Funding!$FR$2,FALSE)), \"x\")","v":0.15242372527224332},{"$f":"IFERROR((BQ165/(VLOOKUP($B165,Pupils,Pupils!$R$3,FALSE)+VLOOKUP($B165,Pupils,Pupils!$U$3,FALSE))), \"x\")","v":2664.7213418671508},{"$f":"(VLOOKUP(B165,Funding,Funding!$HK$2,FALSE)+VLOOKUP(B165,Funding,Funding!$HL$2,FALSE)+VLOOKUP(B165,Funding,Funding!$HM$2,FALSE))/(VLOOKUP(B165,Funding,Funding!$HN$2,FALSE))","v":0.19746489743818091},{"$f":"IFERROR((VLOOKUP(B165,Other_data,Other!$D$3,FALSE)+VLOOKUP(B165,Other_data,Other!$E$3,FALSE)+VLOOKUP(B165,Other_data,Other!$F$3,FALSE)), \"x\")","v":35080},{"$f":"(VLOOKUP(B165,Other_data,Other!$AK$3,FALSE)+VLOOKUP(B165,Other_data,Other!$AL$3,FALSE))/VLOOKUP(B165,Other_data,Other!$AJ$3,FALSE)","v":3.5998577217192504E-2},{"$f":"(VLOOKUP(B165,Other_data,Other!$AR$3,FALSE)+VLOOKUP(B165,Other_data,Other!$AS$3,FALSE))/VLOOKUP(B165,Other_data,Other!$AQ$3,FALSE)","v":5.1860575049137096E-2},{"$f":"VLOOKUP(B165,Other_data,Other!$AP$3,FALSE)/VLOOKUP(B165,Other_data,Other!$AJ$3,FALSE)","v":5.6467824020230307E-3},{"$f":"VLOOKUP(B165,Other_data,Other!$AW$3,FALSE)/VLOOKUP(B165,Other_data,Other!$AQ$3,FALSE)","v":1.0464335177183802E-2}]
[160,977,"INNER LONDON",{"$f":"IFERROR((VLOOKUP($B166,Pupils,Pupils!$D$3,FALSE)/VLOOKUP($B166,Pupils,Pupils!$C$3,FALSE)), \"x\")","v":2.8061656597594714E-2},{"$f":"IFERROR((VLOOKUP($B166,Pupils,Pupils!$G$3,FALSE)/VLOOKUP($B166,Pupils,Pupils!$F$3,FALSE)),\"x\")","v":2.8055490971091994E-2},{"$f":"IFERROR((VLOOKUP($B166,Pupils,Pupils!$J$3,FALSE)/VLOOKUP($B166,Pupils,Pupils!$I$3,FALSE)), \"x\")","v":2.8143914286024755E-2},{"$f":"IFERROR((VLOOKUP($B166,Pupils,Pupils!$M$3,FALSE)/VLOOKUP($B166,Pupils,Pupils!$L$3,FALSE)), \"x\")","v":2.7986659869147761E-2},{"$f":"IFERROR((VLOOKUP($B166,Pupils,Pupils!$R$3,FALSE)/VLOOKUP($B166,Pupils,Pupils!$Q$3,FALSE)), \"x\")","v":2.8141497277299747E-2},{"$f":"IFERROR((VLOOKUP($B166,Pupils,Pupils!$W$3,FALSE)/VLOOKUP($B166,Pupils,Pupils!$V$3,FALSE)), \"x\")","v":2.8260271600158926E-2},{"$f":"IFERROR(((VLOOKUP($B166,Pupils,Pupils!$D$3,FALSE)+VLOOKUP($B166,Pupils,Pupils!$E$3,FALSE))/VLOOKUP($B166,Pupils,Pupils!$C$3,FALSE)), \"x\")","v":0.23441928744847834},{"$f":"IFERROR(((VLOOKUP($B166,Pupils,Pupils!$G$3,FALSE)+VLOOKUP($B166,Pupils,Pupils!$H$3,FALSE))/VLOOKUP($B166,Pupils,Pupils!$F$3,FALSE)), \"x\")","v":0.24064171122994651},{"$f":"IFERROR(((VLOOKUP($B166,Pupils,Pupils!$J$3,FALSE)+VLOOKUP($B166,Pupils,Pupils!$K$3,FALSE))/VLOOKUP($B166,Pupils,Pupils!$I$3,FALSE)), \"x\")","v":0.2335510230693166},{"$f":"IFERROR(((VLOOKUP($B166,Pupils,Pupils!$M$3,FALSE)+VLOOKUP($B166,Pupils,Pupils!$P$3,FALSE))/VLOOKUP($B166,Pupils,Pupils!$L$3,FALSE)), \"x\")","v":0.22233197382955222},{"$f":"IFERROR(((VLOOKUP($B166,Pupils,Pupils!$R$3,FALSE)+VLOOKUP($B166,Pupils,Pupils!$U$3,FALSE))/VLOOKUP($B166,Pupils,Pupils!$Q$3,FALSE)), \"x\")","v":0.20553269318701417},{"$f":"IFERROR(((VLOOKUP($B166,Pupils,Pupils!$W$3,FALSE)+VLOOKUP($B166,Pupils,Pupils!$Z$3,FALSE))/VLOOKUP($B166,Pupils,Pupils!$V$3,FALSE)), \"x\")","v":0.19729214845302009},{"$f":"(SUM(INDEX(Pupils!$AB$7:$AB$170,MATCH($B166,Pupils!$A$7:$A$170,0)),INDEX(Pupils!$AC$7:$AC$170,MATCH($B166,Pupils!$A$7:$A$170,0)),INDEX(Pupils!$AD$7:$AD$170,MATCH($B166,Pupils!$A$7:$A$170,0)),INDEX(Pupils!$AE$7:$AE$170,MATCH($B166,Pupils!$A$7:$A$170,0))))/SUM(INDEX(Pupils!$AB$7:$AM$170,MATCH($B166,Pupils!$A$7:$A$170,0),0))","v":0.26820546163849157},{"$f":"SUM(INDEX(Pupils!$AF$7:$AF$170,MATCH($B166,Pupils!$A$7:$A$170,0)))/SUM(INDEX(Pupils!$AB$7:$AM$170,MATCH($B166,Pupils!$A$7:$A$170,0),0))","v":0.22074122236671001},{"$f":"SUM(INDEX(Pupils!$AG$7:$AG$170,MATCH($B166,Pupils!$A$7:$A$170,0)))/SUM(INDEX(Pupils!$AB$7:$AM$170,MATCH($B166,Pupils!$A$7:$A$170,0),0))","v":0.28196792371044649},{"$f":"(SUM(INDEX(Pupils!$AH$7:$AH$170,MATCH($B166,Pupils!$A$7:$A$170,0)),INDEX(Pupils!$AI$7:$AI$170,MATCH($B166,Pupils!$A$7:$A$170,0)),INDEX(Pupils!$AJ$7:$AJ$170,MATCH($B166,Pupils!$A$7:$A$170,0))))/SUM(INDEX(Pupils!$AB$7:$AM$170,MATCH($B166,Pupils!$A$7:$A$170,0),0))","v":3.6627654963155613E-2},{"$f":"SUM(INDEX(Pupils!$AK$7:$AK$170,MATCH($B166,Pupils!$A$7:$A$170,0)))/SUM(INDEX(Pupils!$AB$7:$AM$170,MATCH($B166,Pupils!$A$7:$A$170,0),0))","v":2.8608582574772431E-2},{"$f":"SUM(INDEX(Pupils!$AL$7:$AL$170,MATCH($B166,Pupils!$A$7:$A$170,0)))/SUM(INDEX(Pupils!$AB$7:$AM$170,MATCH($B166,Pupils!$A$7:$A$170,0),0))","v":0.12136974425661032},{"$f":"SUM(INDEX(Pupils!$AM$7:$AM$170,MATCH($B166,Pupils!$A$7:$A$170,0)))/SUM(INDEX(Pupils!$AB$7:$AM$170,MATCH($B166,Pupils!$A$7:$A$170,0),0))","v":4.2479410489813609E-2},{"$f":"(SUM(INDEX(Pupils!$BH$7:$BH$170,MATCH($B166,Pupils!$A$7:$A$170,0)),INDEX(Pupils!$BK$7:$BK$170,MATCH($B166,Pupils!$A$7:$A$170,0)),INDEX(Pupils!$BO$7:$BO$170,MATCH($B166,Pupils!$A$7:$A$170,0))))/SUM(INDEX(Pupils!$BH$7:$BS$170,MATCH($B166,Pupils!$A$7:$A$170,0),0))","v":0.53524891413297693},{"$f":"(SUM(INDEX(Pupils!$BL$7:$BL$170,MATCH($B166,Pupils!$A$7:$A$170,0)),INDEX(Pupils!$BM$7:$BM$170,MATCH($B166,Pupils!$A$7:$A$170,0)),INDEX(Pupils!$BP$7:$BP$170,MATCH($B166,Pupils!$A$7:$A$170,0))))/SUM(INDEX(Pupils!$BH$7:$BS$170,MATCH($B166,Pupils!$A$7:$A$170,0),0))","v":0.384898095556298},{"$f":"(SUM(INDEX(Pupils!$BI$7:$BI$170,MATCH($B166,Pupils!$A$7:$A$170,0)),INDEX(Pupils!$BJ$7:$BJ$170,MATCH($B166,Pupils!$A$7:$A$170,0))))/SUM(INDEX(Pupils!$BH$7:$BS$170,MATCH($B166,Pupils!$A$7:$A$170,0),0))","v":5.5128633478115606E-2},{"$f":"(SUM(INDEX(Pupils!$BQ$7:$BQ$170,MATCH($B166,Pupils!$A$7:$A$170,0)),INDEX(Pupils!$BR$7:$BR$170,MATCH($B166,Pupils!$A$7:$A$170,0)),INDEX(Pupils!$BN$7:$BN$170,MATCH($B166,Pupils!$A$7:$A$170,0)),INDEX(Pupils!$BS$7:$BS$170,MATCH($B166,Pupils!$A$7:$A$170,0))))/SUM(INDEX(Pupils!$BH$7:$BS$170,MATCH($B166,Pupils!$A$7:$A$170,0),0))","v":2.4724356832609422E-2},{"$f":"IFERROR((VLOOKUP(B166,Funding,Funding!$C$2,FALSE)), \"x\")","v":402079552.52331328},{"$f":"IFERROR((AA166/VLOOKUP(B166,Funding,Funding!$D$2,FALSE)), \"x\")","v":0.1570632225358061},{"$f":"IFERROR((AA166/(VLOOKUP(B166,Pupils,Pupils!$M$3,FALSE)+VLOOKUP(B166,Pupils,Pupils!$P$3,FALSE))), \"x\")","v":3841.585558909982},{"$f":"IFERROR((VLOOKUP(B166,Funding,Funding!$E$2,FALSE)), \"x\")","v":417321447.70750463},{"$f":"IFERROR((AD166/VLOOKUP(B166,Funding,Funding!$F$2,FALSE)), \"x\")","v":0.15405792190323345},{"$f":"IFERROR((AD166/(VLOOKUP(B166,Pupils,Pupils!$R$3,FALSE)+VLOOKUP(B166,Pupils,Pupils!$U$3,FALSE))), \"x\")","v":4220.0571110072269},{"$f":"IFERROR((VLOOKUP(B166,Funding,Funding!$G$2,FALSE)), \"x\")","v":428109752.60085136},{"$f":"IFERROR((AG166/VLOOKUP(B166,Funding,Funding!$H$2,FALSE)), \"x\")","v":0.15564069957795407},{"$f":"IFERROR((AG166/(VLOOKUP(B166,Pupils,Pupils!$W$3,FALSE)+VLOOKUP(B166,Pupils,Pupils!$Z$3,FALSE))), \"x\")","v":4421.2511886899865},{"$f":"IFERROR((VLOOKUP(B166,Funding,Funding!$I$2,FALSE)), \"x\")","v":431412692.4308064},{"$f":"IFERROR((AJ166/VLOOKUP(B166,Funding,Funding!$J$2,FALSE)), \"x\")","v":0.14793816559698919},null,{"$f":"IFERROR((VLOOKUP($B166,Funding,Funding!$EC$2,FALSE)), \"x\")","v":205917342.94999999},{"$f":"IFERROR((AM166/VLOOKUP($B166,Funding,Funding!$EU$2,FALSE)), \"x\")","v":8.1305812019024676E-2},{"$f":"IFERROR((AM166/(VLOOKUP($B166,Pupils,Pupils!$D$3,FALSE)+VLOOKUP($B166,Pupils,Pupils!$E$3,FALSE))), \"x\")","v":1983.8849939785152},{"$f":"IFERROR((VLOOKUP($B166,Funding,Funding!$DA$2,FALSE)), \"x\")","v":224118344.71812999},{"$f":"IFERROR((AP166/VLOOKUP($B166,Funding,Funding!$DT$2,FALSE)), \"x\")","v":8.3580143487454434E-2},{"$f":"IFERROR((AP166/(VLOOKUP($B166,Pupils,Pupils!$G$3,FALSE)+VLOOKUP($B166,Pupils,Pupils!$H$3,FALSE))), \"x\")","v":2062.2806047216932},{"$f":"IFERROR((VLOOKUP($B166,Funding,Funding!$CE$2,FALSE)), \"x\")","v":231535822.16272002},{"$f":"IFERROR((AS166/VLOOKUP($B166,Funding,Funding!$CR$2,FALSE)), \"x\")","v":8.7422717954402263E-2},{"$f":"IFERROR((AS166/(VLOOKUP($B166,Pupils,Pupils!$J$3,FALSE)+VLOOKUP($B166,Pupils,Pupils!$K$3,FALSE))), \"x\")","v":2154.5230741424652},{"$f":"IFERROR((VLOOKUP($B166,Funding,Funding!$BM$2,FALSE)), \"x\")","v":255965271.53000003},{"$f":"IFERROR((AV166/VLOOKUP($B166,Funding,Funding!$BY$2,FALSE)), \"x\")","v":9.7150313876153638E-2},{"$f":"IFERROR((AV166/(VLOOKUP($B166,Pupils,Pupils!$M$3,FALSE)+VLOOKUP($B166,Pupils,Pupils!$P$3,FALSE))), \"x\")","v":2445.5670140925813},{"$f":"IFERROR((VLOOKUP($B166,Funding,Funding!$AQ$2,FALSE)), \"x\")","v":430306952.59000003},{"$f":"IFERROR((AY166/VLOOKUP($B166,Funding,Funding!$BE$2,FALSE)), \"x\")","v":0.15159966190786292},{"$f":"IFERROR((AY166/(VLOOKUP($B166,Pupils,Pupils!$R$3,FALSE)+VLOOKUP($B166,Pupils,Pupils!$U$3,FALSE))), \"x\")","v":4351.3697299019113},{"$f":"IFERROR((VLOOKUP($B166,Funding,Funding!$S$2,FALSE)), \"x\")","v":386606723},{"$f":"IFERROR((BB166/VLOOKUP($B166,Funding,Funding!$AH$2,FALSE)), \"x\")","v":0.13569307172848236},{"$f":"IFERROR((BB166/(VLOOKUP(B166,Pupils,Pupils!$W$3,FALSE)+VLOOKUP(B166,Pupils,Pupils!$Z$3,FALSE))), \"x\")","v":3992.6337188887742},{"$f":"IFERROR((VLOOKUP($B166,Funding,Funding!$GX$2,FALSE)), \"x\")","v":428697844.44727004},{"$f":"IFERROR((BE166/VLOOKUP($B166,Funding,Funding!$HC$2,FALSE)), \"x\")","v":0.15514624590860135},{"$f":"IFERROR((BE166/(VLOOKUP($B166,Pupils,Pupils!$D$3,FALSE)+VLOOKUP($B166,Pupils,Pupils!$E$3,FALSE))), \"x\")","v":4130.2359887014791},{"$f":"IFERROR((VLOOKUP($B166,Funding,Funding!$GP$2,FALSE)), \"x\")","v":460505790.13999999},{"$f":"IFERROR((BH166/VLOOKUP($B166,Funding,Funding!$GU$2,FALSE)), \"x\")","v":0.16111803517836365},{"$f":"IFERROR((BH166/(VLOOKUP($B166,Pupils,Pupils!$G$3,FALSE)+VLOOKUP($B166,Pupils,Pupils!$H$3,FALSE))), \"x\")","v":4237.4583863814123},{"$f":"IFERROR((VLOOKUP($B166,Funding,Funding!$GH$2,FALSE)), \"x\")","v":525468652.78000003},{"$f":"IFERROR((BK166/VLOOKUP($B166,Funding,Funding!$GM$2,FALSE)), \"x\")","v":0.17586494458420968},{"$f":"IFERROR((BK166/(VLOOKUP($B166,Pupils,Pupils!$J$3,FALSE)+VLOOKUP($B166,Pupils,Pupils!$K$3,FALSE))), \"x\")","v":4889.6724773647238},{"$f":"IFERROR((VLOOKUP($B166,Funding,Funding!$FZ$2,FALSE)), \"x\")","v":510918632.55000001},{"$f":"IFERROR((BN166/VLOOKUP($B166,Funding,Funding!$GE$2,FALSE)), \"x\")","v":0.1816288268504872},{"$f":"IFERROR((BN166/(VLOOKUP($B166,Pupils,Pupils!$M$3,FALSE)+VLOOKUP($B166,Pupils,Pupils!$P$3,FALSE))), \"x\")","v":4881.4659394257869},{"$f":"IFERROR((VLOOKUP($B166,Funding,Funding!$FD$2,FALSE)), \"x\")","v":409521754.19000006},{"$f":"IFERROR((BQ166/VLOOKUP($B166,Funding,Funding!$FR$2,FALSE)), \"x\")","v":0.15688370762137488},{"$f":"IFERROR((BQ166/(VLOOKUP($B166,Pupils,Pupils!$R$3,FALSE)+VLOOKUP($B166,Pupils,Pupils!$U$3,FALSE))), \"x\")","v":4141.1846919809896},{"$f":"(VLOOKUP(B166,Funding,Funding!$HK$2,FALSE)+VLOOKUP(B166,Funding,Funding!$HL$2,FALSE)+VLOOKUP(B166,Funding,Funding!$HM$2,FALSE))/(VLOOKUP(B166,Funding,Funding!$HN$2,FALSE))","v":0.22173540337174968},{"$f":"IFERROR((VLOOKUP(B166,Other_data,Other!$D$3,FALSE)+VLOOKUP(B166,Other_data,Other!$E$3,FALSE)+VLOOKUP(B166,Other_data,Other!$F$3,FALSE)), \"x\")","v":16590},{"$f":"(VLOOKUP(B166,Other_data,Other!$AK$3,FALSE)+VLOOKUP(B166,Other_data,Other!$AL$3,FALSE))/VLOOKUP(B166,Other_data,Other!$AJ$3,FALSE)","v":3.6315963853901949E-2},{"$f":"(VLOOKUP(B166,Other_data,Other!$AR$3,FALSE)+VLOOKUP(B166,Other_data,Other!$AS$3,FALSE))/VLOOKUP(B166,Other_data,Other!$AQ$3,FALSE)","v":4.4828691953754413E-2},{"$f":"VLOOKUP(B166,Other_data,Other!$AP$3,FALSE)/VLOOKUP(B166,Other_data,Other!$AJ$3,FALSE)","v":9.1962992800044396E-3},{"$f":"VLOOKUP(B166,Other_data,Other!$AW$3,FALSE)/VLOOKUP(B166,Other_data,Other!$AQ$3,FALSE)","v":1.1638457121408348E-2}]
[161,978,"OUTER LONDON",{"$f":"IFERROR((VLOOKUP($B167,Pupils,Pupils!$D$3,FALSE)/VLOOKUP($B167,Pupils,Pupils!$C$3,FALSE)), \"x\")","v":2.6891137517799313E-2},{"$f":"IFERROR((VLOOKUP($B167,Pupils,Pupils!$G$3,FALSE)/VLOOKUP($B167,Pupils,Pupils!$F$3,FALSE)),\"x\")","v":2.6254023396400268E-2},{"$f":"IFERROR((VLOOKUP($B167,Pupils,Pupils!$J$3,FALSE)/VLOOKUP($B167,Pupils,Pupils!$I$3,FALSE)), \"x\")","v":2.6296284952987657E-2},{"$f":"IFERROR((VLOOKUP($B167,Pupils,Pupils!$M$3,FALSE)/VLOOKUP($B167,Pupils,Pupils!$L$3,FALSE)), \"x\")","v":2.6387788897688818E-2},{"$f":"IFERROR((VLOOKUP($B167,Pupils,Pupils!$R$3,FALSE)/VLOOKUP($B167,Pupils,Pupils!$Q$3,FALSE)), \"x\")","v":2.6672234409829028E-2},{"$f":"IFERROR((VLOOKUP($B167,Pupils,Pupils!$W$3,FALSE)/VLOOKUP($B167,Pupils,Pupils!$V$3,FALSE)), \"x\")","v":2.7024689507247714E-2},{"$f":"IFERROR(((VLOOKUP($B167,Pupils,Pupils!$D$3,FALSE)+VLOOKUP($B167,Pupils,Pupils!$E$3,FALSE))/VLOOKUP($B167,Pupils,Pupils!$C$3,FALSE)), \"x\")","v":0.20826140101062288},{"$f":"IFERROR(((VLOOKUP($B167,Pupils,Pupils!$G$3,FALSE)+VLOOKUP($B167,Pupils,Pupils!$H$3,FALSE))/VLOOKUP($B167,Pupils,Pupils!$F$3,FALSE)), \"x\")","v":0.21191236622401524},{"$f":"IFERROR(((VLOOKUP($B167,Pupils,Pupils!$J$3,FALSE)+VLOOKUP($B167,Pupils,Pupils!$K$3,FALSE))/VLOOKUP($B167,Pupils,Pupils!$I$3,FALSE)), \"x\")","v":0.20357110042571439},{"$f":"IFERROR(((VLOOKUP($B167,Pupils,Pupils!$M$3,FALSE)+VLOOKUP($B167,Pupils,Pupils!$P$3,FALSE))/VLOOKUP($B167,Pupils,Pupils!$L$3,FALSE)), \"x\")","v":0.19568243454052367},{"$f":"IFERROR(((VLOOKUP($B167,Pupils,Pupils!$R$3,FALSE)+VLOOKUP($B167,Pupils,Pupils!$U$3,FALSE))/VLOOKUP($B167,Pupils,Pupils!$Q$3,FALSE)), \"x\")","v":0.18350026760455693},{"$f":"IFERROR(((VLOOKUP($B167,Pupils,Pupils!$W$3,FALSE)+VLOOKUP($B167,Pupils,Pupils!$Z$3,FALSE))/VLOOKUP($B167,Pupils,Pupils!$V$3,FALSE)), \"x\")","v":0.17454478360644396},{"$f":"(SUM(INDEX(Pupils!$AB$7:$AB$170,MATCH($B167,Pupils!$A$7:$A$170,0)),INDEX(Pupils!$AC$7:$AC$170,MATCH($B167,Pupils!$A$7:$A$170,0)),INDEX(Pupils!$AD$7:$AD$170,MATCH($B167,Pupils!$A$7:$A$170,0)),INDEX(Pupils!$AE$7:$AE$170,MATCH($B167,Pupils!$A$7:$A$170,0))))/SUM(INDEX(Pupils!$AB$7:$AM$170,MATCH($B167,Pupils!$A$7:$A$170,0),0))","v":0.29444562072129299},{"$f":"SUM(INDEX(Pupils!$AF$7:$AF$170,MATCH($B167,Pupils!$A$7:$A$170,0)))/SUM(INDEX(Pupils!$AB$7:$AM$170,MATCH($B167,Pupils!$A$7:$A$170,0),0))","v":0.21525866327898935},{"$f":"SUM(INDEX(Pupils!$AG$7:$AG$170,MATCH($B167,Pupils!$A$7:$A$170,0)))/SUM(INDEX(Pupils!$AB$7:$AM$170,MATCH($B167,Pupils!$A$7:$A$170,0),0))","v":0.25739289999294235},{"$f":"(SUM(INDEX(Pupils!$AH$7:$AH$170,MATCH($B167,Pupils!$A$7:$A$170,0)),INDEX(Pupils!$AI$7:$AI$170,MATCH($B167,Pupils!$A$7:$A$170,0)),INDEX(Pupils!$AJ$7:$AJ$170,MATCH($B167,Pupils!$A$7:$A$170,0))))/SUM(INDEX(Pupils!$AB$7:$AM$170,MATCH($B167,Pupils!$A$7:$A$170,0),0))","v":3.5076575622838592E-2},{"$f":"SUM(INDEX(Pupils!$AK$7:$AK$170,MATCH($B167,Pupils!$A$7:$A$170,0)))/SUM(INDEX(Pupils!$AB$7:$AM$170,MATCH($B167,Pupils!$A$7:$A$170,0),0))","v":3.6982144117439483E-2},{"$f":"SUM(INDEX(Pupils!$AL$7:$AL$170,MATCH($B167,Pupils!$A$7:$A$170,0)))/SUM(INDEX(Pupils!$AB$7:$AM$170,MATCH($B167,Pupils!$A$7:$A$170,0),0))","v":0.11454583950878679},{"$f":"SUM(INDEX(Pupils!$AM$7:$AM$170,MATCH($B167,Pupils!$A$7:$A$170,0)))/SUM(INDEX(Pupils!$AB$7:$AM$170,MATCH($B167,Pupils!$A$7:$A$170,0),0))","v":4.6298256757710494E-2},{"$f":"(SUM(INDEX(Pupils!$BH$7:$BH$170,MATCH($B167,Pupils!$A$7:$A$170,0)),INDEX(Pupils!$BK$7:$BK$170,MATCH($B167,Pupils!$A$7:$A$170,0)),INDEX(Pupils!$BO$7:$BO$170,MATCH($B167,Pupils!$A$7:$A$170,0))))/SUM(INDEX(Pupils!$BH$7:$BS$170,MATCH($B167,Pupils!$A$7:$A$170,0),0))","v":0.47802955665024632},{"$f":"(SUM(INDEX(Pupils!$BL$7:$BL$170,MATCH($B167,Pupils!$A$7:$A$170,0)),INDEX(Pupils!$BM$7:$BM$170,MATCH($B167,Pupils!$A$7:$A$170,0)),INDEX(Pupils!$BP$7:$BP$170,MATCH($B167,Pupils!$A$7:$A$170,0))))/SUM(INDEX(Pupils!$BH$7:$BS$170,MATCH($B167,Pupils!$A$7:$A$170,0),0))","v":0.42620689655172411},{"$f":"(SUM(INDEX(Pupils!$BI$7:$BI$170,MATCH($B167,Pupils!$A$7:$A$170,0)),INDEX(Pupils!$BJ$7:$BJ$170,MATCH($B167,Pupils!$A$7:$A$170,0))))/SUM(INDEX(Pupils!$BH$7:$BS$170,MATCH($B167,Pupils!$A$7:$A$170,0),0))","v":7.9014778325123158E-2},{"$f":"(SUM(INDEX(Pupils!$BQ$7:$BQ$170,MATCH($B167,Pupils!$A$7:$A$170,0)),INDEX(Pupils!$BR$7:$BR$170,MATCH($B167,Pupils!$A$7:$A$170,0)),INDEX(Pupils!$BN$7:$BN$170,MATCH($B167,Pupils!$A$7:$A$170,0)),INDEX(Pupils!$BS$7:$BS$170,MATCH($B167,Pupils!$A$7:$A$170,0))))/SUM(INDEX(Pupils!$BH$7:$BS$170,MATCH($B167,Pupils!$A$7:$A$170,0),0))","v":1.6748768472906402E-2},{"$f":"IFERROR((VLOOKUP(B167,Funding,Funding!$C$2,FALSE)), \"x\")","v":577070627.93278551},{"$f":"IFERROR((AA167/VLOOKUP(B167,Funding,Funding!$D$2,FALSE)), \"x\")","v":0.14724307269733874},{"$f":"IFERROR((AA167/(VLOOKUP(B167,Pupils,Pupils!$M$3,FALSE)+VLOOKUP(B167,Pupils,Pupils!$P$3,FALSE))), \"x\")","v":3538.7908746721378},{"$f":"IFERROR((VLOOKUP(B167,Funding,Funding!$E$2,FALSE)), \"x\")","v":614658407.03765225},{"$f":"IFERROR((AD167/VLOOKUP(B167,Funding,Funding!$F$2,FALSE)), \"x\")","v":0.1496357547173825},{"$f":"IFERROR((AD167/(VLOOKUP(B167,Pupils,Pupils!$R$3,FALSE)+VLOOKUP(B167,Pupils,Pupils!$U$3,FALSE))), \"x\")","v":3940.1179938311043},{"$f":"IFERROR((VLOOKUP(B167,Funding,Funding!$G$2,FALSE)), \"x\")","v":636793954.6293093},{"$f":"IFERROR((AG167/VLOOKUP(B167,Funding,Funding!$H$2,FALSE)), \"x\")","v":0.15154370386328134},{"$f":"IFERROR((AG167/(VLOOKUP(B167,Pupils,Pupils!$W$3,FALSE)+VLOOKUP(B167,Pupils,Pupils!$Z$3,FALSE))), \"x\")","v":4207.1482203310607},{"$f":"IFERROR((VLOOKUP(B167,Funding,Funding!$I$2,FALSE)), \"x\")","v":643641740.8830018},{"$f":"IFERROR((AJ167/VLOOKUP(B167,Funding,Funding!$J$2,FALSE)), \"x\")","v":0.1467138526603842},null,{"$f":"IFERROR((VLOOKUP($B167,Funding,Funding!$EC$2,FALSE)), \"x\")","v":317692105.69},{"$f":"IFERROR((AM167/VLOOKUP($B167,Funding,Funding!$EU$2,FALSE)), \"x\")","v":8.3130973820522716E-2},{"$f":"IFERROR((AM167/(VLOOKUP($B167,Pupils,Pupils!$D$3,FALSE)+VLOOKUP($B167,Pupils,Pupils!$E$3,FALSE))), \"x\")","v":1922.2611828523022},{"$f":"IFERROR((VLOOKUP($B167,Funding,Funding!$DA$2,FALSE)), \"x\")","v":340824014.00575989},{"$f":"IFERROR((AP167/VLOOKUP($B167,Funding,Funding!$DT$2,FALSE)), \"x\")","v":8.472181289802419E-2},{"$f":"IFERROR((AP167/(VLOOKUP($B167,Pupils,Pupils!$G$3,FALSE)+VLOOKUP($B167,Pupils,Pupils!$H$3,FALSE))), \"x\")","v":2002.6089312283912},{"$f":"IFERROR((VLOOKUP($B167,Funding,Funding!$CE$2,FALSE)), \"x\")","v":342839590.01904005},{"$f":"IFERROR((AS167/VLOOKUP($B167,Funding,Funding!$CR$2,FALSE)), \"x\")","v":9.6684169406023812E-2},{"$f":"IFERROR((AS167/(VLOOKUP($B167,Pupils,Pupils!$J$3,FALSE)+VLOOKUP($B167,Pupils,Pupils!$K$3,FALSE))), \"x\")","v":2063.1858338992602},{"$f":"IFERROR((VLOOKUP($B167,Funding,Funding!$BM$2,FALSE)), \"x\")","v":416460704.09999996},{"$f":"IFERROR((AV167/VLOOKUP($B167,Funding,Funding!$BY$2,FALSE)), \"x\")","v":0.11763866265653794},{"$f":"IFERROR((AV167/(VLOOKUP($B167,Pupils,Pupils!$M$3,FALSE)+VLOOKUP($B167,Pupils,Pupils!$P$3,FALSE))), \"x\")","v":2553.8768878395781},{"$f":"IFERROR((VLOOKUP($B167,Funding,Funding!$AQ$2,FALSE)), \"x\")","v":576302215.44999993},{"$f":"IFERROR((AY167/VLOOKUP($B167,Funding,Funding!$BE$2,FALSE)), \"x\")","v":0.13745365817140229},{"$f":"IFERROR((AY167/(VLOOKUP($B167,Pupils,Pupils!$R$3,FALSE)+VLOOKUP($B167,Pupils,Pupils!$U$3,FALSE))), \"x\")","v":3694.2449708333329},{"$f":"IFERROR((VLOOKUP($B167,Funding,Funding!$S$2,FALSE)), \"x\")","v":574835839.90999997},{"$f":"IFERROR((BB167/VLOOKUP($B167,Funding,Funding!$AH$2,FALSE)), \"x\")","v":0.13332742990545737},{"$f":"IFERROR((BB167/(VLOOKUP(B167,Pupils,Pupils!$W$3,FALSE)+VLOOKUP(B167,Pupils,Pupils!$Z$3,FALSE))), \"x\")","v":3797.8054962341434},{"$f":"IFERROR((VLOOKUP($B167,Funding,Funding!$GX$2,FALSE)), \"x\")","v":583850368.62186992},{"$f":"IFERROR((BE167/VLOOKUP($B167,Funding,Funding!$HC$2,FALSE)), \"x\")","v":0.13915189036592404},{"$f":"IFERROR((BE167/(VLOOKUP($B167,Pupils,Pupils!$D$3,FALSE)+VLOOKUP($B167,Pupils,Pupils!$E$3,FALSE))), \"x\")","v":3532.70629044515},{"$f":"IFERROR((VLOOKUP($B167,Funding,Funding!$GP$2,FALSE)), \"x\")","v":624712523.45000005},{"$f":"IFERROR((BH167/VLOOKUP($B167,Funding,Funding!$GU$2,FALSE)), \"x\")","v":0.14522673335407574},{"$f":"IFERROR((BH167/(VLOOKUP($B167,Pupils,Pupils!$G$3,FALSE)+VLOOKUP($B167,Pupils,Pupils!$H$3,FALSE))), \"x\")","v":3670.6770283212882},{"$f":"IFERROR((VLOOKUP($B167,Funding,Funding!$GH$2,FALSE)), \"x\")","v":611544692.98000014},{"$f":"IFERROR((BK167/VLOOKUP($B167,Funding,Funding!$GM$2,FALSE)), \"x\")","v":0.15790228900593944},{"$f":"IFERROR((BK167/(VLOOKUP($B167,Pupils,Pupils!$J$3,FALSE)+VLOOKUP($B167,Pupils,Pupils!$K$3,FALSE))), \"x\")","v":3680.2352589516768},{"$f":"IFERROR((VLOOKUP($B167,Funding,Funding!$FZ$2,FALSE)), \"x\")","v":613177101.58000016},{"$f":"IFERROR((BN167/VLOOKUP($B167,Funding,Funding!$GE$2,FALSE)), \"x\")","v":0.16934189737949221},{"$f":"IFERROR((BN167/(VLOOKUP($B167,Pupils,Pupils!$M$3,FALSE)+VLOOKUP($B167,Pupils,Pupils!$P$3,FALSE))), \"x\")","v":3760.2078958729389},{"$f":"IFERROR((VLOOKUP($B167,Funding,Funding!$FD$2,FALSE)), \"x\")","v":561789629.06000006},{"$f":"IFERROR((BQ167/VLOOKUP($B167,Funding,Funding!$FR$2,FALSE)), \"x\")","v":0.17202841036842095},{"$f":"IFERROR((BQ167/(VLOOKUP($B167,Pupils,Pupils!$R$3,FALSE)+VLOOKUP($B167,Pupils,Pupils!$U$3,FALSE))), \"x\")","v":3601.2155708974365},{"$f":"(VLOOKUP(B167,Funding,Funding!$HK$2,FALSE)+VLOOKUP(B167,Funding,Funding!$HL$2,FALSE)+VLOOKUP(B167,Funding,Funding!$HM$2,FALSE))/(VLOOKUP(B167,Funding,Funding!$HN$2,FALSE))","v":0.21485633818073496},{"$f":"IFERROR((VLOOKUP(B167,Other_data,Other!$D$3,FALSE)+VLOOKUP(B167,Other_data,Other!$E$3,FALSE)+VLOOKUP(B167,Other_data,Other!$F$3,FALSE)), \"x\")","v":27150},{"$f":"(VLOOKUP(B167,Other_data,Other!$AK$3,FALSE)+VLOOKUP(B167,Other_data,Other!$AL$3,FALSE))/VLOOKUP(B167,Other_data,Other!$AJ$3,FALSE)","v":3.2903236468377527E-2},{"$f":"(VLOOKUP(B167,Other_data,Other!$AR$3,FALSE)+VLOOKUP(B167,Other_data,Other!$AS$3,FALSE))/VLOOKUP(B167,Other_data,Other!$AQ$3,FALSE)","v":4.6166941533223385E-2},{"$f":"VLOOKUP(B167,Other_data,Other!$AP$3,FALSE)/VLOOKUP(B167,Other_data,Other!$AJ$3,FALSE)","v":6.9623003393659661E-3},{"$f":"VLOOKUP(B167,Other_data,Other!$AW$3,FALSE)/VLOOKUP(B167,Other_data,Other!$AQ$3,FALSE)","v":1.1035448919153765E-2}]
[162,979,"SOUTH EAST",{"$f":"IFERROR((VLOOKUP($B168,Pupils,Pupils!$D$3,FALSE)/VLOOKUP($B168,Pupils,Pupils!$C$3,FALSE)), \"x\")","v":2.862453531598513E-2},{"$f":"IFERROR((VLOOKUP($B168,Pupils,Pupils!$G$3,FALSE)/VLOOKUP($B168,Pupils,Pupils!$F$3,FALSE)),\"x\")","v":2.8785671404372149E-2},{"$f":"IFERROR((VLOOKUP($B168,Pupils,Pupils!$J$3,FALSE)/VLOOKUP($B168,Pupils,Pupils!$I$3,FALSE)), \"x\")","v":2.8902372179420811E-2},{"$f":"IFERROR((VLOOKUP($B168,Pupils,Pupils!$M$3,FALSE)/VLOOKUP($B168,Pupils,Pupils!$L$3,FALSE)), \"x\")","v":2.9013890674268603E-2},{"$f":"IFERROR((VLOOKUP($B168,Pupils,Pupils!$R$3,FALSE)/VLOOKUP($B168,Pupils,Pupils!$Q$3,FALSE)), \"x\")","v":2.9090936306042339E-2},{"$f":"IFERROR((VLOOKUP($B168,Pupils,Pupils!$W$3,FALSE)/VLOOKUP($B168,Pupils,Pupils!$V$3,FALSE)), \"x\")","v":2.9129592807763942E-2},{"$f":"IFERROR(((VLOOKUP($B168,Pupils,Pupils!$D$3,FALSE)+VLOOKUP($B168,Pupils,Pupils!$E$3,FALSE))/VLOOKUP($B168,Pupils,Pupils!$C$3,FALSE)), \"x\")","v":0.21316828268117885},{"$f":"IFERROR(((VLOOKUP($B168,Pupils,Pupils!$G$3,FALSE)+VLOOKUP($B168,Pupils,Pupils!$H$3,FALSE))/VLOOKUP($B168,Pupils,Pupils!$F$3,FALSE)), \"x\")","v":0.21527690148708126},{"$f":"IFERROR(((VLOOKUP($B168,Pupils,Pupils!$J$3,FALSE)+VLOOKUP($B168,Pupils,Pupils!$K$3,FALSE))/VLOOKUP($B168,Pupils,Pupils!$I$3,FALSE)), \"x\")","v":0.21122369743293035},{"$f":"IFERROR(((VLOOKUP($B168,Pupils,Pupils!$M$3,FALSE)+VLOOKUP($B168,Pupils,Pupils!$P$3,FALSE))/VLOOKUP($B168,Pupils,Pupils!$L$3,FALSE)), \"x\")","v":0.20236753952830688},{"$f":"IFERROR(((VLOOKUP($B168,Pupils,Pupils!$R$3,FALSE)+VLOOKUP($B168,Pupils,Pupils!$U$3,FALSE))/VLOOKUP($B168,Pupils,Pupils!$Q$3,FALSE)), \"x\")","v":0.1918190629081207},{"$f":"IFERROR(((VLOOKUP($B168,Pupils,Pupils!$W$3,FALSE)+VLOOKUP($B168,Pupils,Pupils!$Z$3,FALSE))/VLOOKUP($B168,Pupils,Pupils!$V$3,FALSE)), \"x\")","v":0.17983922627180463},{"$f":"(SUM(INDEX(Pupils!$AB$7:$AB$170,MATCH($B168,Pupils!$A$7:$A$170,0)),INDEX(Pupils!$AC$7:$AC$170,MATCH($B168,Pupils!$A$7:$A$170,0)),INDEX(Pupils!$AD$7:$AD$170,MATCH($B168,Pupils!$A$7:$A$170,0)),INDEX(Pupils!$AE$7:$AE$170,MATCH($B168,Pupils!$A$7:$A$170,0))))/SUM(INDEX(Pupils!$AB$7:$AM$170,MATCH($B168,Pupils!$A$7:$A$170,0),0))","v":0.33463643471462079},{"$f":"SUM(INDEX(Pupils!$AF$7:$AF$170,MATCH($B168,Pupils!$A$7:$A$170,0)))/SUM(INDEX(Pupils!$AB$7:$AM$170,MATCH($B168,Pupils!$A$7:$A$170,0),0))","v":0.22388814790967207},{"$f":"SUM(INDEX(Pupils!$AG$7:$AG$170,MATCH($B168,Pupils!$A$7:$A$170,0)))/SUM(INDEX(Pupils!$AB$7:$AM$170,MATCH($B168,Pupils!$A$7:$A$170,0),0))","v":0.207009152370878},{"$f":"(SUM(INDEX(Pupils!$AH$7:$AH$170,MATCH($B168,Pupils!$A$7:$A$170,0)),INDEX(Pupils!$AI$7:$AI$170,MATCH($B168,Pupils!$A$7:$A$170,0)),INDEX(Pupils!$AJ$7:$AJ$170,MATCH($B168,Pupils!$A$7:$A$170,0))))/SUM(INDEX(Pupils!$AB$7:$AM$170,MATCH($B168,Pupils!$A$7:$A$170,0),0))","v":3.5551671802419173E-2},{"$f":"SUM(INDEX(Pupils!$AK$7:$AK$170,MATCH($B168,Pupils!$A$7:$A$170,0)))/SUM(INDEX(Pupils!$AB$7:$AM$170,MATCH($B168,Pupils!$A$7:$A$170,0),0))","v":3.8311180609851447E-2},{"$f":"SUM(INDEX(Pupils!$AL$7:$AL$170,MATCH($B168,Pupils!$A$7:$A$170,0)))/SUM(INDEX(Pupils!$AB$7:$AM$170,MATCH($B168,Pupils!$A$7:$A$170,0),0))","v":0.12472979809593893},{"$f":"SUM(INDEX(Pupils!$AM$7:$AM$170,MATCH($B168,Pupils!$A$7:$A$170,0)))/SUM(INDEX(Pupils!$AB$7:$AM$170,MATCH($B168,Pupils!$A$7:$A$170,0),0))","v":3.5873614496619605E-2},{"$f":"(SUM(INDEX(Pupils!$BH$7:$BH$170,MATCH($B168,Pupils!$A$7:$A$170,0)),INDEX(Pupils!$BK$7:$BK$170,MATCH($B168,Pupils!$A$7:$A$170,0)),INDEX(Pupils!$BO$7:$BO$170,MATCH($B168,Pupils!$A$7:$A$170,0))))/SUM(INDEX(Pupils!$BH$7:$BS$170,MATCH($B168,Pupils!$A$7:$A$170,0),0))","v":0.40275631117980421},{"$f":"(SUM(INDEX(Pupils!$BL$7:$BL$170,MATCH($B168,Pupils!$A$7:$A$170,0)),INDEX(Pupils!$BM$7:$BM$170,MATCH($B168,Pupils!$A$7:$A$170,0)),INDEX(Pupils!$BP$7:$BP$170,MATCH($B168,Pupils!$A$7:$A$170,0))))/SUM(INDEX(Pupils!$BH$7:$BS$170,MATCH($B168,Pupils!$A$7:$A$170,0),0))","v":0.49227202472952086},{"$f":"(SUM(INDEX(Pupils!$BI$7:$BI$170,MATCH($B168,Pupils!$A$7:$A$170,0)),INDEX(Pupils!$BJ$7:$BJ$170,MATCH($B168,Pupils!$A$7:$A$170,0))))/SUM(INDEX(Pupils!$BH$7:$BS$170,MATCH($B168,Pupils!$A$7:$A$170,0),0))","v":7.8567748583204533E-2},{"$f":"(SUM(INDEX(Pupils!$BQ$7:$BQ$170,MATCH($B168,Pupils!$A$7:$A$170,0)),INDEX(Pupils!$BR$7:$BR$170,MATCH($B168,Pupils!$A$7:$A$170,0)),INDEX(Pupils!$BN$7:$BN$170,MATCH($B168,Pupils!$A$7:$A$170,0)),INDEX(Pupils!$BS$7:$BS$170,MATCH($B168,Pupils!$A$7:$A$170,0))))/SUM(INDEX(Pupils!$BH$7:$BS$170,MATCH($B168,Pupils!$A$7:$A$170,0),0))","v":2.6403915507470375E-2},{"$f":"IFERROR((VLOOKUP(B168,Funding,Funding!$C$2,FALSE)), \"x\")","v":760235476.20774019},{"$f":"IFERROR((AA168/VLOOKUP(B168,Funding,Funding!$D$2,FALSE)), \"x\")","v":0.13596247627927163},{"$f":"IFERROR((AA168/(VLOOKUP(B168,Pupils,Pupils!$M$3,FALSE)+VLOOKUP(B168,Pupils,Pupils!$P$3,FALSE))), \"x\")","v":2840.6743622895478},{"$f":"IFERROR((VLOOKUP(B168,Funding,Funding!$E$2,FALSE)), \"x\")","v":796033960.43053436},{"$f":"IFERROR((AD168/VLOOKUP(B168,Funding,Funding!$F$2,FALSE)), \"x\")","v":0.13789658963546364},{"$f":"IFERROR((AD168/(VLOOKUP(B168,Pupils,Pupils!$R$3,FALSE)+VLOOKUP(B168,Pupils,Pupils!$U$3,FALSE))), \"x\")","v":3105.8679689057135},{"$f":"IFERROR((VLOOKUP(B168,Funding,Funding!$G$2,FALSE)), \"x\")","v":828620195.18010843},{"$f":"IFERROR((AG168/VLOOKUP(B168,Funding,Funding!$H$2,FALSE)), \"x\")","v":0.14111196750467245},{"$f":"IFERROR((AG168/(VLOOKUP(B168,Pupils,Pupils!$W$3,FALSE)+VLOOKUP(B168,Pupils,Pupils!$Z$3,FALSE))), \"x\")","v":3412.1361163709707},{"$f":"IFERROR((VLOOKUP(B168,Funding,Funding!$I$2,FALSE)), \"x\")","v":837622169.36652493},{"$f":"IFERROR((AJ168/VLOOKUP(B168,Funding,Funding!$J$2,FALSE)), \"x\")","v":0.14040439777419408},null,{"$f":"IFERROR((VLOOKUP($B168,Funding,Funding!$EC$2,FALSE)), \"x\")","v":515224005.20999998},{"$f":"IFERROR((AM168/VLOOKUP($B168,Funding,Funding!$EU$2,FALSE)), \"x\")","v":9.2431810939413064E-2},{"$f":"IFERROR((AM168/(VLOOKUP($B168,Pupils,Pupils!$D$3,FALSE)+VLOOKUP($B168,Pupils,Pupils!$E$3,FALSE))), \"x\")","v":1852.5907202545754},{"$f":"IFERROR((VLOOKUP($B168,Funding,Funding!$DA$2,FALSE)), \"x\")","v":541479425.36659992},{"$f":"IFERROR((AP168/VLOOKUP($B168,Funding,Funding!$DT$2,FALSE)), \"x\")","v":9.276832324769603E-2},{"$f":"IFERROR((AP168/(VLOOKUP($B168,Pupils,Pupils!$G$3,FALSE)+VLOOKUP($B168,Pupils,Pupils!$H$3,FALSE))), \"x\")","v":1923.5845232298973},{"$f":"IFERROR((VLOOKUP($B168,Funding,Funding!$CE$2,FALSE)), \"x\")","v":565121481.96494997},{"$f":"IFERROR((AS168/VLOOKUP($B168,Funding,Funding!$CR$2,FALSE)), \"x\")","v":0.10074461176695088},{"$f":"IFERROR((AS168/(VLOOKUP($B168,Pupils,Pupils!$J$3,FALSE)+VLOOKUP($B168,Pupils,Pupils!$K$3,FALSE))), \"x\")","v":2036.8041014396929},{"$f":"IFERROR((VLOOKUP($B168,Funding,Funding!$BM$2,FALSE)), \"x\")","v":587704125.78999996},{"$f":"IFERROR((AV168/VLOOKUP($B168,Funding,Funding!$BY$2,FALSE)), \"x\")","v":0.11463612571544417},{"$f":"IFERROR((AV168/(VLOOKUP($B168,Pupils,Pupils!$M$3,FALSE)+VLOOKUP($B168,Pupils,Pupils!$P$3,FALSE))), \"x\")","v":2195.9986017375059},{"$f":"IFERROR((VLOOKUP($B168,Funding,Funding!$AQ$2,FALSE)), \"x\")","v":733414996},{"$f":"IFERROR((AY168/VLOOKUP($B168,Funding,Funding!$BE$2,FALSE)), \"x\")","v":0.12390601557166224},{"$f":"IFERROR((AY168/(VLOOKUP($B168,Pupils,Pupils!$R$3,FALSE)+VLOOKUP($B168,Pupils,Pupils!$U$3,FALSE))), \"x\")","v":2861.5489504486927},{"$f":"IFERROR((VLOOKUP($B168,Funding,Funding!$S$2,FALSE)), \"x\")","v":770706941.10000002},{"$f":"IFERROR((BB168/VLOOKUP($B168,Funding,Funding!$AH$2,FALSE)), \"x\")","v":0.12771931780722778},{"$f":"IFERROR((BB168/(VLOOKUP(B168,Pupils,Pupils!$W$3,FALSE)+VLOOKUP(B168,Pupils,Pupils!$Z$3,FALSE))), \"x\")","v":3173.6578521279007},{"$f":"IFERROR((VLOOKUP($B168,Funding,Funding!$GX$2,FALSE)), \"x\")","v":825551021.99368},{"$f":"IFERROR((BE168/VLOOKUP($B168,Funding,Funding!$HC$2,FALSE)), \"x\")","v":0.13457326973675834},{"$f":"IFERROR((BE168/(VLOOKUP($B168,Pupils,Pupils!$D$3,FALSE)+VLOOKUP($B168,Pupils,Pupils!$E$3,FALSE))), \"x\")","v":2968.433432791629},{"$f":"IFERROR((VLOOKUP($B168,Funding,Funding!$GP$2,FALSE)), \"x\")","v":858426939.83000016},{"$f":"IFERROR((BH168/VLOOKUP($B168,Funding,Funding!$GU$2,FALSE)), \"x\")","v":0.13657337265339536},{"$f":"IFERROR((BH168/(VLOOKUP($B168,Pupils,Pupils!$G$3,FALSE)+VLOOKUP($B168,Pupils,Pupils!$H$3,FALSE))), \"x\")","v":3049.5281970550104},{"$f":"IFERROR((VLOOKUP($B168,Funding,Funding!$GH$2,FALSE)), \"x\")","v":889443555.39999986},{"$f":"IFERROR((BK168/VLOOKUP($B168,Funding,Funding!$GM$2,FALSE)), \"x\")","v":0.157782037303309},{"$f":"IFERROR((BK168/(VLOOKUP($B168,Pupils,Pupils!$J$3,FALSE)+VLOOKUP($B168,Pupils,Pupils!$K$3,FALSE))), \"x\")","v":3205.7218482276398},{"$f":"IFERROR((VLOOKUP($B168,Funding,Funding!$FZ$2,FALSE)), \"x\")","v":860702726.48000002},{"$f":"IFERROR((BN168/VLOOKUP($B168,Funding,Funding!$GE$2,FALSE)), \"x\")","v":0.1659443114257573},{"$f":"IFERROR((BN168/(VLOOKUP($B168,Pupils,Pupils!$M$3,FALSE)+VLOOKUP($B168,Pupils,Pupils!$P$3,FALSE))), \"x\")","v":3216.0774459785148},{"$f":"IFERROR((VLOOKUP($B168,Funding,Funding!$FD$2,FALSE)), \"x\")","v":747207103.21000004},{"$f":"IFERROR((BQ168/VLOOKUP($B168,Funding,Funding!$FR$2,FALSE)), \"x\")","v":0.15794782739364968},{"$f":"IFERROR((BQ168/(VLOOKUP($B168,Pupils,Pupils!$R$3,FALSE)+VLOOKUP($B168,Pupils,Pupils!$U$3,FALSE))), \"x\")","v":2915.3613078813892},{"$f":"(VLOOKUP(B168,Funding,Funding!$HK$2,FALSE)+VLOOKUP(B168,Funding,Funding!$HL$2,FALSE)+VLOOKUP(B168,Funding,Funding!$HM$2,FALSE))/(VLOOKUP(B168,Funding,Funding!$HN$2,FALSE))","v":0.20248881869609317},{"$f":"IFERROR((VLOOKUP(B168,Other_data,Other!$D$3,FALSE)+VLOOKUP(B168,Other_data,Other!$E$3,FALSE)+VLOOKUP(B168,Other_data,Other!$F$3,FALSE)), \"x\")","v":49530},{"$f":"(VLOOKUP(B168,Other_data,Other!$AK$3,FALSE)+VLOOKUP(B168,Other_data,Other!$AL$3,FALSE))/VLOOKUP(B168,Other_data,Other!$AJ$3,FALSE)","v":3.5450762113327136E-2},{"$f":"(VLOOKUP(B168,Other_data,Other!$AR$3,FALSE)+VLOOKUP(B168,Other_data,Other!$AS$3,FALSE))/VLOOKUP(B168,Other_data,Other!$AQ$3,FALSE)","v":5.119956288296526E-2},{"$f":"VLOOKUP(B168,Other_data,Other!$AP$3,FALSE)/VLOOKUP(B168,Other_data,Other!$AJ$3,FALSE)","v":5.1622967334136859E-3},{"$f":"VLOOKUP(B168,Other_data,Other!$AW$3,FALSE)/VLOOKUP(B168,Other_data,Other!$AQ$3,FALSE)","v":1.0090489916758196E-2}]
[163,980,"SOUTH WEST",{"$f":"IFERROR((VLOOKUP($B169,Pupils,Pupils!$D$3,FALSE)/VLOOKUP($B169,Pupils,Pupils!$C$3,FALSE)), \"x\")","v":2.6963949730229388E-2},{"$f":"IFERROR((VLOOKUP($B169,Pupils,Pupils!$G$3,FALSE)/VLOOKUP($B169,Pupils,Pupils!$F$3,FALSE)),\"x\")","v":2.7097844549488458E-2},{"$f":"IFERROR((VLOOKUP($B169,Pupils,Pupils!$J$3,FALSE)/VLOOKUP($B169,Pupils,Pupils!$I$3,FALSE)), \"x\")","v":2.6945201332122314E-2},{"$f":"IFERROR((VLOOKUP($B169,Pupils,Pupils!$M$3,FALSE)/VLOOKUP($B169,Pupils,Pupils!$L$3,FALSE)), \"x\")","v":2.7179904456926873E-2},{"$f":"IFERROR((VLOOKUP($B169,Pupils,Pupils!$R$3,FALSE)/VLOOKUP($B169,Pupils,Pupils!$Q$3,FALSE)), \"x\")","v":2.7312971209238153E-2},{"$f":"IFERROR((VLOOKUP($B169,Pupils,Pupils!$W$3,FALSE)/VLOOKUP($B169,Pupils,Pupils!$V$3,FALSE)), \"x\")","v":2.7678983608476E-2},{"$f":"IFERROR(((VLOOKUP($B169,Pupils,Pupils!$D$3,FALSE)+VLOOKUP($B169,Pupils,Pupils!$E$3,FALSE))/VLOOKUP($B169,Pupils,Pupils!$C$3,FALSE)), \"x\")","v":0.19786674708431398},{"$f":"IFERROR(((VLOOKUP($B169,Pupils,Pupils!$G$3,FALSE)+VLOOKUP($B169,Pupils,Pupils!$H$3,FALSE))/VLOOKUP($B169,Pupils,Pupils!$F$3,FALSE)), \"x\")","v":0.20160770010665333},{"$f":"IFERROR(((VLOOKUP($B169,Pupils,Pupils!$J$3,FALSE)+VLOOKUP($B169,Pupils,Pupils!$K$3,FALSE))/VLOOKUP($B169,Pupils,Pupils!$I$3,FALSE)), \"x\")","v":0.20066737748292066},{"$f":"IFERROR(((VLOOKUP($B169,Pupils,Pupils!$M$3,FALSE)+VLOOKUP($B169,Pupils,Pupils!$P$3,FALSE))/VLOOKUP($B169,Pupils,Pupils!$L$3,FALSE)), \"x\")","v":0.19625045934169771},{"$f":"IFERROR(((VLOOKUP($B169,Pupils,Pupils!$R$3,FALSE)+VLOOKUP($B169,Pupils,Pupils!$U$3,FALSE))/VLOOKUP($B169,Pupils,Pupils!$Q$3,FALSE)), \"x\")","v":0.1869732101405209},{"$f":"IFERROR(((VLOOKUP($B169,Pupils,Pupils!$W$3,FALSE)+VLOOKUP($B169,Pupils,Pupils!$Z$3,FALSE))/VLOOKUP($B169,Pupils,Pupils!$V$3,FALSE)), \"x\")","v":0.1840974258610264},{"$f":"(SUM(INDEX(Pupils!$AB$7:$AB$170,MATCH($B169,Pupils!$A$7:$A$170,0)),INDEX(Pupils!$AC$7:$AC$170,MATCH($B169,Pupils!$A$7:$A$170,0)),INDEX(Pupils!$AD$7:$AD$170,MATCH($B169,Pupils!$A$7:$A$170,0)),INDEX(Pupils!$AE$7:$AE$170,MATCH($B169,Pupils!$A$7:$A$170,0))))/SUM(INDEX(Pupils!$AB$7:$AM$170,MATCH($B169,Pupils!$A$7:$A$170,0),0))","v":0.31151030137919294},{"$f":"SUM(INDEX(Pupils!$AF$7:$AF$170,MATCH($B169,Pupils!$A$7:$A$170,0)))/SUM(INDEX(Pupils!$AB$7:$AM$170,MATCH($B169,Pupils!$A$7:$A$170,0),0))","v":0.23378171292354843},{"$f":"SUM(INDEX(Pupils!$AG$7:$AG$170,MATCH($B169,Pupils!$A$7:$A$170,0)))/SUM(INDEX(Pupils!$AB$7:$AM$170,MATCH($B169,Pupils!$A$7:$A$170,0),0))","v":0.21641409841648221},{"$f":"(SUM(INDEX(Pupils!$AH$7:$AH$170,MATCH($B169,Pupils!$A$7:$A$170,0)),INDEX(Pupils!$AI$7:$AI$170,MATCH($B169,Pupils!$A$7:$A$170,0)),INDEX(Pupils!$AJ$7:$AJ$170,MATCH($B169,Pupils!$A$7:$A$170,0))))/SUM(INDEX(Pupils!$AB$7:$AM$170,MATCH($B169,Pupils!$A$7:$A$170,0),0))","v":3.9417674101821898E-2},{"$f":"SUM(INDEX(Pupils!$AK$7:$AK$170,MATCH($B169,Pupils!$A$7:$A$170,0)))/SUM(INDEX(Pupils!$AB$7:$AM$170,MATCH($B169,Pupils!$A$7:$A$170,0),0))","v":4.3759577728588454E-2},{"$f":"SUM(INDEX(Pupils!$AL$7:$AL$170,MATCH($B169,Pupils!$A$7:$A$170,0)))/SUM(INDEX(Pupils!$AB$7:$AM$170,MATCH($B169,Pupils!$A$7:$A$170,0),0))","v":0.11016516260854758},{"$f":"SUM(INDEX(Pupils!$AM$7:$AM$170,MATCH($B169,Pupils!$A$7:$A$170,0)))/SUM(INDEX(Pupils!$AB$7:$AM$170,MATCH($B169,Pupils!$A$7:$A$170,0),0))","v":4.4951472841818489E-2},{"$f":"(SUM(INDEX(Pupils!$BH$7:$BH$170,MATCH($B169,Pupils!$A$7:$A$170,0)),INDEX(Pupils!$BK$7:$BK$170,MATCH($B169,Pupils!$A$7:$A$170,0)),INDEX(Pupils!$BO$7:$BO$170,MATCH($B169,Pupils!$A$7:$A$170,0))))/SUM(INDEX(Pupils!$BH$7:$BS$170,MATCH($B169,Pupils!$A$7:$A$170,0),0))","v":0.52634011090573007},{"$f":"(SUM(INDEX(Pupils!$BL$7:$BL$170,MATCH($B169,Pupils!$A$7:$A$170,0)),INDEX(Pupils!$BM$7:$BM$170,MATCH($B169,Pupils!$A$7:$A$170,0)),INDEX(Pupils!$BP$7:$BP$170,MATCH($B169,Pupils!$A$7:$A$170,0))))/SUM(INDEX(Pupils!$BH$7:$BS$170,MATCH($B169,Pupils!$A$7:$A$170,0),0))","v":0.39926062846580407},{"$f":"(SUM(INDEX(Pupils!$BI$7:$BI$170,MATCH($B169,Pupils!$A$7:$A$170,0)),INDEX(Pupils!$BJ$7:$BJ$170,MATCH($B169,Pupils!$A$7:$A$170,0))))/SUM(INDEX(Pupils!$BH$7:$BS$170,MATCH($B169,Pupils!$A$7:$A$170,0),0))","v":5.4297597042513863E-2},{"$f":"(SUM(INDEX(Pupils!$BQ$7:$BQ$170,MATCH($B169,Pupils!$A$7:$A$170,0)),INDEX(Pupils!$BR$7:$BR$170,MATCH($B169,Pupils!$A$7:$A$170,0)),INDEX(Pupils!$BN$7:$BN$170,MATCH($B169,Pupils!$A$7:$A$170,0)),INDEX(Pupils!$BS$7:$BS$170,MATCH($B169,Pupils!$A$7:$A$170,0))))/SUM(INDEX(Pupils!$BH$7:$BS$170,MATCH($B169,Pupils!$A$7:$A$170,0),0))","v":2.0101663585951942E-2},{"$f":"IFERROR((VLOOKUP(B169,Funding,Funding!$C$2,FALSE)), \"x\")","v":388818244.73999995},{"$f":"IFERROR((AA169/VLOOKUP(B169,Funding,Funding!$D$2,FALSE)), \"x\")","v":0.11970940300153793},{"$f":"IFERROR((AA169/(VLOOKUP(B169,Pupils,Pupils!$M$3,FALSE)+VLOOKUP(B169,Pupils,Pupils!$P$3,FALSE))), \"x\")","v":2600.1821964088672},{"$f":"IFERROR((VLOOKUP(B169,Funding,Funding!$E$2,FALSE)), \"x\")","v":421713290.75580281},{"$f":"IFERROR((AD169/VLOOKUP(B169,Funding,Funding!$F$2,FALSE)), \"x\")","v":0.12602178601536798},{"$f":"IFERROR((AD169/(VLOOKUP(B169,Pupils,Pupils!$R$3,FALSE)+VLOOKUP(B169,Pupils,Pupils!$U$3,FALSE))), \"x\")","v":2949.6628016772947},{"$f":"IFERROR((VLOOKUP(B169,Funding,Funding!$G$2,FALSE)), \"x\")","v":447751572.74440086},{"$f":"IFERROR((AG169/VLOOKUP(B169,Funding,Funding!$H$2,FALSE)), \"x\")","v":0.13168457368863104},{"$f":"IFERROR((AG169/(VLOOKUP(B169,Pupils,Pupils!$W$3,FALSE)+VLOOKUP(B169,Pupils,Pupils!$Z$3,FALSE))), \"x\")","v":3162.7574538701765},{"$f":"IFERROR((VLOOKUP(B169,Funding,Funding!$I$2,FALSE)), \"x\")","v":452520097.05048877},{"$f":"IFERROR((AJ169/VLOOKUP(B169,Funding,Funding!$J$2,FALSE)), \"x\")","v":0.13015093589480728},null,{"$f":"IFERROR((VLOOKUP($B169,Funding,Funding!$EC$2,FALSE)), \"x\")","v":252238496.25799999},{"$f":"IFERROR((AM169/VLOOKUP($B169,Funding,Funding!$EU$2,FALSE)), \"x\")","v":7.4433092003292206E-2},{"$f":"IFERROR((AM169/(VLOOKUP($B169,Pupils,Pupils!$D$3,FALSE)+VLOOKUP($B169,Pupils,Pupils!$E$3,FALSE))), \"x\")","v":1671.4498459876747},{"$f":"IFERROR((VLOOKUP($B169,Funding,Funding!$DA$2,FALSE)), \"x\")","v":265778495.90275002},{"$f":"IFERROR((AP169/VLOOKUP($B169,Funding,Funding!$DT$2,FALSE)), \"x\")","v":7.5567735879960643E-2},{"$f":"IFERROR((AP169/(VLOOKUP($B169,Pupils,Pupils!$G$3,FALSE)+VLOOKUP($B169,Pupils,Pupils!$H$3,FALSE))), \"x\")","v":1735.8096587711852},{"$f":"IFERROR((VLOOKUP($B169,Funding,Funding!$CE$2,FALSE)), \"x\")","v":278676319.28770995},{"$f":"IFERROR((AS169/VLOOKUP($B169,Funding,Funding!$CR$2,FALSE)), \"x\")","v":8.7579851681697032E-2},{"$f":"IFERROR((AS169/(VLOOKUP($B169,Pupils,Pupils!$J$3,FALSE)+VLOOKUP($B169,Pupils,Pupils!$K$3,FALSE))), \"x\")","v":1828.0449951635669},{"$f":"IFERROR((VLOOKUP($B169,Funding,Funding!$BM$2,FALSE)), \"x\")","v":285407884.17000002},{"$f":"IFERROR((AV169/VLOOKUP($B169,Funding,Funding!$BY$2,FALSE)), \"x\")","v":0.10785884724772191},{"$f":"IFERROR((AV169/(VLOOKUP($B169,Pupils,Pupils!$M$3,FALSE)+VLOOKUP($B169,Pupils,Pupils!$P$3,FALSE))), \"x\")","v":1908.6359993981343},{"$f":"IFERROR((VLOOKUP($B169,Funding,Funding!$AQ$2,FALSE)), \"x\")","v":410203286.39999998},{"$f":"IFERROR((AY169/VLOOKUP($B169,Funding,Funding!$BE$2,FALSE)), \"x\")","v":0.12087521180650386},{"$f":"IFERROR((AY169/(VLOOKUP($B169,Pupils,Pupils!$R$3,FALSE)+VLOOKUP($B169,Pupils,Pupils!$U$3,FALSE))), \"x\")","v":2869.1563712666994},{"$f":"IFERROR((VLOOKUP($B169,Funding,Funding!$S$2,FALSE)), \"x\")","v":402070302.77999997},{"$f":"IFERROR((BB169/VLOOKUP($B169,Funding,Funding!$AH$2,FALSE)), \"x\")","v":0.1161415489249619},{"$f":"IFERROR((BB169/(VLOOKUP(B169,Pupils,Pupils!$W$3,FALSE)+VLOOKUP(B169,Pupils,Pupils!$Z$3,FALSE))), \"x\")","v":2840.0812515363423},{"$f":"IFERROR((VLOOKUP($B169,Funding,Funding!$GX$2,FALSE)), \"x\")","v":460058532.33117998},{"$f":"IFERROR((BE169/VLOOKUP($B169,Funding,Funding!$HC$2,FALSE)), \"x\")","v":0.12019149004558453},{"$f":"IFERROR((BE169/(VLOOKUP($B169,Pupils,Pupils!$D$3,FALSE)+VLOOKUP($B169,Pupils,Pupils!$E$3,FALSE))), \"x\")","v":3048.5622710965476},{"$f":"IFERROR((VLOOKUP($B169,Funding,Funding!$GP$2,FALSE)), \"x\")","v":490777993.98000002},{"$f":"IFERROR((BH169/VLOOKUP($B169,Funding,Funding!$GU$2,FALSE)), \"x\")","v":0.13073662397222977},{"$f":"IFERROR((BH169/(VLOOKUP($B169,Pupils,Pupils!$G$3,FALSE)+VLOOKUP($B169,Pupils,Pupils!$H$3,FALSE))), \"x\")","v":3205.290102080136},{"$f":"IFERROR((VLOOKUP($B169,Funding,Funding!$GH$2,FALSE)), \"x\")","v":466695104.97999996},{"$f":"IFERROR((BK169/VLOOKUP($B169,Funding,Funding!$GM$2,FALSE)), \"x\")","v":0.15469224107306145},{"$f":"IFERROR((BK169/(VLOOKUP($B169,Pupils,Pupils!$J$3,FALSE)+VLOOKUP($B169,Pupils,Pupils!$K$3,FALSE))), \"x\")","v":3061.3998817934335},{"$f":"IFERROR((VLOOKUP($B169,Funding,Funding!$FZ$2,FALSE)), \"x\")","v":433271772.82000005},{"$f":"IFERROR((BN169/VLOOKUP($B169,Funding,Funding!$GE$2,FALSE)), \"x\")","v":0.16026808600528844},{"$f":"IFERROR((BN169/(VLOOKUP($B169,Pupils,Pupils!$M$3,FALSE)+VLOOKUP($B169,Pupils,Pupils!$P$3,FALSE))), \"x\")","v":2897.4606133681082},{"$f":"IFERROR((VLOOKUP($B169,Funding,Funding!$FD$2,FALSE)), \"x\")","v":403403059.67999995},{"$f":"IFERROR((BQ169/VLOOKUP($B169,Funding,Funding!$FR$2,FALSE)), \"x\")","v":0.158009183598078},{"$f":"IFERROR((BQ169/(VLOOKUP($B169,Pupils,Pupils!$R$3,FALSE)+VLOOKUP($B169,Pupils,Pupils!$U$3,FALSE))), \"x\")","v":2821.5923597957608},{"$f":"(VLOOKUP(B169,Funding,Funding!$HK$2,FALSE)+VLOOKUP(B169,Funding,Funding!$HL$2,FALSE)+VLOOKUP(B169,Funding,Funding!$HM$2,FALSE))/(VLOOKUP(B169,Funding,Funding!$HN$2,FALSE))","v":0.29466453484929234},{"$f":"IFERROR((VLOOKUP(B169,Other_data,Other!$D$3,FALSE)+VLOOKUP(B169,Other_data,Other!$E$3,FALSE)+VLOOKUP(B169,Other_data,Other!$F$3,FALSE)), \"x\")","v":29400},{"$f":"(VLOOKUP(B169,Other_data,Other!$AK$3,FALSE)+VLOOKUP(B169,Other_data,Other!$AL$3,FALSE))/VLOOKUP(B169,Other_data,Other!$AJ$3,FALSE)","v":3.6877209726048195E-2},{"$f":"(VLOOKUP(B169,Other_data,Other!$AR$3,FALSE)+VLOOKUP(B169,Other_data,Other!$AS$3,FALSE))/VLOOKUP(B169,Other_data,Other!$AQ$3,FALSE)","v":5.2798781013713596E-2},{"$f":"VLOOKUP(B169,Other_data,Other!$AP$3,FALSE)/VLOOKUP(B169,Other_data,Other!$AJ$3,FALSE)","v":5.6840118864282148E-3},{"$f":"VLOOKUP(B169,Other_data,Other!$AW$3,FALSE)/VLOOKUP(B169,Other_data,Other!$AQ$3,FALSE)","v":1.0678707989535118E-2}]

{"sheet":"Neighbours","index":7,"n_rows":21,"n_cols":116,"rows_kept":21,"cut":false,"hidden":false,"merged":[[4,97,4,98],[4,99,4,100],[4,101,4,102],[4,103,4,104],[3,77,3,86],[4,77,4,81],[4,82,4,86],[4,87,4,88],[4,89,4,90],[4,91,4,92],[4,93,4,94],[4,95,4,96],[4,3,4,8],[4,9,4,14],[4,15,4,21],[4,26,4,28],[4,29,4,31],[4,68,4,70],[4,22,4,25],[4,47,4,49],[4,50,4,52],[4,53,4,55],[4,56,4,58],[4,59,4,61],[4,65,4,67],[4,62,4,64],[4,32,4,34],[4,38,4,40],[4,41,4,43],[4,44,4,46],[4,35,4,37]]}
["Data on statistical neighbours for Local Authorities"]
[]
[null,"Local Authority:",null,{"$f":"LA_Row","v":1}]
[null,null,null,null,null,null,null,null,null,null,null,null,null,null,null,null,null,null,null,null,null,null,null,null,null,null,null,null,null,null,null,null,null,null,null,null,null,null,null,null,null,null,null,null,null,null,null,null,null,null,null,null,null,null,null,null,null,null,null,null,null,null,null,null,null,null,null,null,null,null,null,null,null,null,null,null,null,"SEN pupils achieving 5+A*-C inc English & Maths GCSE"]
[null,null,null,"% pupils with statements",null,null,null,null,null,"% SEN pupils",null,null,null,null,null,"Jan 2014 Census: Primary type of need for pupils",null,null,null,null,null,null,"Children with statement placed in:",null,null,null,"2012-13 DSG",null,null,"2013-14 DSG",null,null,"2014-15 DSG",null,null,"2015-16 DSG",null,null,"Section 251 budget 09-10",null,null,"Section 251 budget 10-11",null,null,"Section 251 budget 11-12",null,null,"Section 251 budget 12-13",null,null,"Section 251 budget 13-14",null,null,"Section 251 budget 14-15",null,null,"Section 251 outturn 0910",null,null,"Section 251 outturn 1011",null,null,"Section 251 outturn 1112",null,null,"Section 251 outturn 1213",null,null,"Section 251 outturn 1314",null,null,null,null,null,null,null,null,"SEN without statement",null,null,null,null,"SEN with statement",null,null,null,null,"Expected standard at EYFSP (2014)",null,"Phonic decoding standard (2014)",null,"Level 2 or above in KS1 reading (2014)",null,"Level 2 or above in KS1 Writing (2014)",null,"Level 2 or above in KS1 Maths (2014)",null,"Level 2 or above in KS1 Science (2014)",null,"Level 4 or above in KS2 Grammar, Punctuation & Spelling (2013)",null,"Level 4 or above in KS2 Reading, Writing  & Maths (2013)",null,"An education or employment destination for KS4 cohort (2011/12)"]
[null,"LA Number","LA Name",2009,2010,2011,2012,2013,2014,2009,2010,2011,2012,2013,2014,"Learning Difficulty","Behaviour, Emotional & Social Difficulties","Speech, Language and Communications Needs","Sensory Impairment","Physical Disability","Autistic Spectrum Disorder","Other Difficulty/Disability","Mainstream settings","Special settings","SEN Units and RP in mainstream settings","Other incl AP","Notional HN Block (millions)","As % of Total","Per SEN","HN Block (millions)","As % of Total","Per SEN","HN Block (millions)","As % of Total","Per SEN","HN Block (millions)","As % of Total","Per SEN","Total SEN budget (millions)","As % of total","Per SEN","Total SEN budget (millions)","As % of total","Per SEN","Total SEN budget (millions)","As % of total","Per SEN","Total SEN budget (millions)","As % of total","Per SEN","Total SEN budget (millions)","As % of total","Per SEN","Total SEN budget (millions)","As % of total","Per SEN","Total SEN spend (millions)","As % of total","Per SEN","Total SEN spend (millions)","As % of total","Per SEN","Total SEN spend (millions)","As % of total","Per SEN","Total SEN spend (millions)","As % of total","Per SEN","Total SEN spend (millions)","As % of total","Per SEN","% post 16 high needs places","No of under 16s claiming DLA (Nov 13)","% of under 16s whose day to day activities are limited","% of 16-24 year olds whose day to day activities are limited","% of under 16s with bad health","% of 16-24 year olds with bad health","2008/09","2009/10","2010/11","2011/12","2012/13","2008/09","2009/10","2010/11","2011/12","2012/13","SEN with statement","SEN w/o statement","SEN with statement","SEN w/o statement","SEN with statement","SEN w/o statement","SEN with statement","SEN w/o statement","SEN with statement","SEN w/o statement","SEN with statement","SEN w/o statement","SEN with statement","SEN w/o statement","SEN with statement","SEN w/o statement","SEN with statement","SEN w/o statement","% 16-17 year olds with LDD in education and training","% of births with low birth weight (2013)","% Children in need who are disabled","Rate of hospital admissions caused by unintentional and deliberate injuries aged 0-14","Rate of hospital admissions caused by unintentional and deliberate injuries aged 15-24","Rate of hospital admissions for asthma aged under 19 years ","Rate of hospital admissions for mental health conditions aged under 19 years","Rate of hospital admissions as a result of self-harm aged 10-24yrs","Rate of Epilepsy admissions aged under 19 ","Rate of Admissions for bronchiolitis aged under 2 years","Rate of Respiratory tract infections aged 0-4"]
[1,{"$f":"VLOOKUP(D3,'Data Summary'!A8:B159,2,FALSE)","v":{"$error":"#N/A"}},{"$f":"VLOOKUP(D3,'Data Summary'!A8:C159,3,FALSE)","v":{"$error":"#N/A"}},{"$f":"VLOOKUP($B7,Neighbours_summary,('Data Summary'!D$3-1),FALSE)","v":{"$error":"#N/A"}},{"$f":"VLOOKUP($B7,Neighbours_summary,('Data Summary'!E$3-1),FALSE)","v":{"$error":"#N/A"}},{"$f":"VLOOKUP($B7,Neighbours_summary,('Data Summary'!F$3-1),FALSE)","v":{"$error":"#N/A"}},{"$f":"VLOOKUP($B7,Neighbours_summary,('Data Summary'!G$3-1),FALSE)","v":{"$error":"#N/A"}},{"$f":"VLOOKUP($B7,Neighbours_summary,('Data Summary'!H$3-1),FALSE)","v":{"$error":"#N/A"}},{"$f":"VLOOKUP($B7,Neighbours_summary,('Data Summary'!I$3-1),FALSE)","v":{"$error":"#N/A"}},{"$f":"VLOOKUP($B7,Neighbours_summary,('Data Summary'!J$3-1),FALSE)","v":{"$error":"#N/A"}},{"$f":"VLOOKUP($B7,Neighbours_summary,('Data Summary'!K$3-1),FALSE)","v":{"$error":"#N/A"}},{"$f":"VLOOKUP($B7,Neighbours_summary,('Data Summary'!L$3-1),FALSE)","v":{"$error":"#N/A"}},{"$f":"VLOOKUP($B7,Neighbours_summary,('Data Summary'!M$3-1),FALSE)","v":{"$error":"#N/A"}},{"$f":"VLOOKUP($B7,Neighbours_summary,('Data Summary'!N$3-1),FALSE)","v":{"$error":"#N/A"}},{"$f":"VLOOKUP($B7,Neighbours_summary,('Data Summary'!O$3-1),FALSE)","v":{"$error":"#N/A"}},{"$f":"VLOOKUP($B7,Neighbours_summary,('Data Summary'!P$3-1),FALSE)","v":{"$error":"#N/A"}},{"$f":"VLOOKUP($B7,Neighbours_summary,('Data Summary'!Q$3-1),FALSE)","v":{"$error":"#N/A"}},{"$f":"VLOOKUP($B7,Neighbours_summary,('Data Summary'!R$3-1),FALSE)","v":{"$error":"#N/A"}},{"$f":"VLOOKUP($B7,Neighbours_summary,('Data Summary'!S$3-1),FALSE)","v":{"$error":"#N/A"}},{"$f":"VLOOKUP($B7,Neighbours_summary,('Data Summary'!T$3-1),FALSE)","v":{"$error":"#N/A"}},{"$f":"VLOOKUP($B7,Neighbours_summary,('Data Summary'!U$3-1),FALSE)","v":{"$error":"#N/A"}},{"$f":"VLOOKUP($B7,Neighbours_summary,('Data Summary'!V$3-1),FALSE)","v":{"$error":"#N/A"}},{"$f":"VLOOKUP($B7,Neighbours_summary,('Data Summary'!W$3-1),FALSE)","v":{"$error":"#N/A"}},{"$f":"VLOOKUP($B7,Neighbours_summary,('Data Summary'!X$3-1),FALSE)","v":{"$error":"#N/A"}},{"$f":"VLOOKUP($B7,Neighbours_summary,('Data Summary'!Y$3-1),FALSE)","v":{"$error":"#N/A"}},{"$f":"VLOOKUP($B7,Neighbours_summary,('Data Summary'!Z$3-1),FALSE)","v":{"$error":"#N/A"}},{"$f":"(VLOOKUP($B7,Neighbours_summary,('Data Summary'!AA$3-1),FALSE))/1000000","v":{"$error":"#N/A"}},{"$f":"VLOOKUP($B7,Neighbours_summary,('Data Summary'!AB$3-1),FALSE)","v":{"$error":"#N/A"}},{"$f":"VLOOKUP($B7,Neighbours_summary,('Data Summary'!AC$3-1),FALSE)","v":{"$error":"#N/A"}},{"$f":"(VLOOKUP($B7,Neighbours_summary,('Data Summary'!AD$3-1),FALSE))/1000000","v":{"$error":"#N/A"}},{"$f":"VLOOKUP($B7,Neighbours_summary,('Data Summary'!AE$3-1),FALSE)","v":{"$error":"#N/A"}},{"$f":"VLOOKUP($B7,Neighbours_summary,('Data Summary'!AF$3-1),FALSE)","v":{"$error":"#N/A"}},{"$f":"(VLOOKUP($B7,Neighbours_summary,('Data Summary'!AG$3-1),FALSE))/1000000","v":{"$error":"#N/A"}},{"$f":"VLOOKUP($B7,Neighbours_summary,('Data Summary'!AH$3-1),FALSE)","v":{"$error":"#N/A"}},{"$f":"VLOOKUP($B7,Neighbours_summary,('Data Summary'!AI$3-1),FALSE)","v":{"$error":"#N/A"}},{"$f":"(VLOOKUP($B7,Neighbours_summary,('Data Summary'!AJ$3-1),FALSE))/1000000","v":{"$error":"#N/A"}},{"$f":"VLOOKUP($B7,Neighbours_summary,('Data Summary'!AK$3-1),FALSE)","v":{"$error":"#N/A"}},null,{"$f":"(VLOOKUP($B7,Neighbours_summary,('Data Summary'!AM$3-1),FALSE))/1000000","v":{"$error":"#N/A"}},{"$f":"VLOOKUP($B7,Neighbours_summary,('Data Summary'!AN$3-1),FALSE)","v":{"$error":"#N/A"}},{"$f":"VLOOKUP($B7,Neighbours_summary,('Data Summary'!AO$3-1),FALSE)","v":{"$error":"#N/A"}},{"$f":"(VLOOKUP($B7,Neighbours_summary,('Data Summary'!AP$3-1),FALSE))/1000000","v":{"$error":"#N/A"}},{"$f":"VLOOKUP($B7,Neighbours_summary,('Data Summary'!AQ$3-1),FALSE)","v":{"$error":"#N/A"}},{"$f":"VLOOKUP($B7,Neighbours_summary,('Data Summary'!AR$3-1),FALSE)","v":{"$error":"#N/A"}},{"$f":"(VLOOKUP($B7,Neighbours_summary,('Data Summary'!AS$3-1),FALSE))/1000000","v":{"$error":"#N/A"}},{"$f":"VLOOKUP($B7,Neighbours_summary,('Data Summary'!AT$3-1),FALSE)","v":{"$error":"#N/A"}},{"$f":"VLOOKUP($B7,Neighbours_summary,('Data Summary'!AU$3-1),FALSE)","v":{"$error":"#N/A"}},{"$f":"(VLOOKUP($B7,Neighbours_summary,('Data Summary'!AV$3-1),FALSE))/1000000","v":{"$error":"#N/A"}},{"$f":"VLOOKUP($B7,Neighbours_summary,('Data Summary'!AW$3-1),FALSE)","v":{"$error":"#N/A"}},{"$f":"VLOOKUP($B7,Neighbours_summary,('Data Summary'!AX$3-1),FALSE)","v":{"$error":"#N/A"}},{"$f":"(VLOOKUP($B7,Neighbours_summary,('Data Summary'!AY$3-1),FALSE))/1000000","v":{"$error":"#N/A"}},{"$f":"VLOOKUP($B7,Neighbours_summary,('Data Summary'!AZ$3-1),FALSE)","v":{"$error":"#N/A"}},{"$f":"VLOOKUP($B7,Neighbours_summary,('Data Summary'!BA$3-1),FALSE)","v":{"$error":"#N/A"}},{"$f":"(VLOOKUP($B7,Neighbours_summary,('Data Summary'!BB$3-1),FALSE))/1000000","v":{"$error":"#N/A"}},{"$f":"VLOOKUP($B7,Neighbours_summary,('Data Summary'!BC$3-1),FALSE)","v":{"$error":"#N/A"}},{"$f":"VLOOKUP($B7,Neighbours_summary,('Data Summary'!BD$3-1),FALSE)","v":{"$error":"#N/A"}},{"$f":"(VLOOKUP($B7,Neighbours_summary,('Data Summary'!BE$3-1),FALSE))/1000000","v":{"$error":"#N/A"}},{"$f":"VLOOKUP($B7,Neighbours_summary,('Data Summary'!BF$3-1),FALSE)","v":{"$error":"#N/A"}},{"$f":"VLOOKUP($B7,Neighbours_summary,('Data Summary'!BG$3-1),FALSE)","v":{"$error":"#N/A"}},{"$f":"VLOOKUP($B7,Neighbours_summary,('Data Summary'!BH$3-1),FALSE)/1000000","v":{"$error":"#N/A"}},{"$f":"VLOOKUP($B7,Neighbours_summary,('Data Summary'!BI$3-1),FALSE)","v":{"$error":"#N/A"}},{"$f":"VLOOKUP($B7,Neighbours_summary,('Data Summary'!BJ$3-1),FALSE)","v":{"$error":"#N/A"}},{"$f":"(VLOOKUP($B7,Neighbours_summary,('Data Summary'!BK$3-1),FALSE))/1000000","v":{"$error":"#N/A"}},{"$f":"VLOOKUP($B7,Neighbours_summary,('Data Summary'!BL$3-1),FALSE)","v":{"$error":"#N/A"}},{"$f":"VLOOKUP($B7,Neighbours_summary,('Data Summary'!BM$3-1),FALSE)","v":{"$error":"#N/A"}},{"$f":"(VLOOKUP($B7,Neighbours_summary,('Data Summary'!BN$3-1),FALSE))/1000000","v":{"$error":"#N/A"}},{"$f":"VLOOKUP($B7,Neighbours_summary,('Data Summary'!BO$3-1),FALSE)","v":{"$error":"#N/A"}},{"$f":"VLOOKUP($B7,Neighbours_summary,('Data Summary'!BP$3-1),FALSE)","v":{"$error":"#N/A"}},{"$f":"(VLOOKUP($B7,Neighbours_summary,('Data Summary'!BQ$3-1),FALSE))/1000000","v":{"$error":"#N/A"}},{"$f":"VLOOKUP($B7,Neighbours_summary,('Data Summary'!BR$3-1),FALSE)","v":{"$error":"#N/A"}},{"$f":"VLOOKUP($B7,Neighbours_summary,('Data Summary'!BS$3-1),FALSE)","v":{"$error":"#N/A"}},{"$f":"VLOOKUP($B7,Neighbours_summary,('Data Summary'!BT$3-1),FALSE)","v":{"$error":"#N/A"}},{"$f":"VLOOKUP($B7,Neighbours_summary,('Data Summary'!BU$3-1),FALSE)","v":{"$error":"#N/A"}},{"$f":"VLOOKUP($B7,Neighbours_summary,('Data Summary'!BV$3-1),FALSE)","v":{"$error":"#N/A"}},{"$f":"VLOOKUP($B7,Neighbours_summary,('Data Summary'!BW$3-1),FALSE)","v":{"$error":"#N/A"}},{"$f":"VLOOKUP($B7,Neighbours_summary,('Data Summary'!BX$3-1),FALSE)","v":{"$error":"#N/A"}},{"$f":"VLOOKUP($B7,Neighbours_summary,('Data Summary'!BY$3-1),FALSE)","v":{"$error":"#N/A"}},{"$f":"IFERROR((VLOOKUP($B7,Attainment,Attainment!$OR$2,FALSE)/100), \"x\")","v":"x"},{"$f":"IFERROR((VLOOKUP($B7,Attainment,Attainment!$OE$2,FALSE)/100), \"x\")","v":"x"},{"$f":"IFERROR((VLOOKUP($B7,Attainment,Attainment!$NR$2,FALSE)/100), \"x\")","v":"x"},{"$f":"IFERROR((VLOOKUP($B7,Attainment,Attainment!$NE$2,FALSE)/100), \"x\")","v":"x"},{"$f":"IFERROR((VLOOKUP($B7,Attainment,Attainment!$MR$2,FALSE)/100), \"x\")","v":"x"},{"$f":"IFERROR((VLOOKUP($B7,Attainment,Attainment!$OT$2,FALSE)/100), \"x\")","v":"x"},{"$f":"IFERROR((VLOOKUP($B7,Attainment,Attainment!$OG$2,FALSE)/100), \"x\")","v":"x"},{"$f":"IFERROR((VLOOKUP($B7,Attainment,Attainment!$NT$2,FALSE)/100), \"x\")","v":"x"},{"$f":"IFERROR((VLOOKUP($B7,Attainment,Attainment!$NG$2,FALSE)/100), \"x\")","v":"x"},{"$f":"IFERROR((VLOOKUP($B7,Attainment,Attainment!$MT$2,FALSE)/100), \"x\")","v":"x"},{"$f":"IFERROR((VLOOKUP($B7,Attainment,Attainment!$S$2,FALSE)/100), \"x\")","v":"x"},{"$f":"IFERROR((VLOOKUP($B7,Attainment,Attainment!$O$2,FALSE)/100), \"x\")","v":"x"},{"$f":"IFERROR((VLOOKUP($B7,Attainment,Attainment!$BI$2,FALSE)/100), \"x\")","v":"x"},{"$f":"IFERROR((VLOOKUP($B7,Attainment,Attainment!$BG$2,FALSE)/100), \"x\")","v":"x"},{"$f":"IFERROR((VLOOKUP($B7,Attainment,Attainment!$DF$2,FALSE)/100), \"x\")","v":"x"},{"$f":"IFERROR((VLOOKUP($B7,Attainment,Attainment!$DA$2,FALSE)/100), \"x\")","v":"x"},{"$f":"IFERROR((VLOOKUP($B7,Attainment,Attainment!$DG$2,FALSE)/100), \"x\")","v":"x"},{"$f":"IFERROR((VLOOKUP($B7,Attainment,Attainment!$DB$2,FALSE)/100), \"x\")","v":"x"},{"$f":"IFERROR((VLOOKUP($B7,Attainment,Attainment!$DH$2,FALSE)/100), \"x\")","v":"x"},{"$f":"IFERROR((VLOOKUP($B7,Attainment,Attainment!$DC$2,FALSE)/100), \"x\")","v":"x"},{"$f":"IFERROR((VLOOKUP($B7,Attainment,Attainment!$DI$2,FALSE)/100), \"x\")","v":"x"},{"$f":"IFERROR((VLOOKUP($B7,Attainment,Attainment!$DD$2,FALSE)/100), \"x\")","v":"x"},{"$f":"IFERROR((VLOOKUP($B7,Attainment,Attainment!$JL$2,FALSE)/100), \"x\")","v":"x"},{"$f":"IFERROR((VLOOKUP($B7,Attainment,Attainment!$JF$2,FALSE)/100), \"x\")","v":"x"},{"$f":"IFERROR((VLOOKUP($B7,Attainment,Attainment!$JM$2,FALSE)/100), \"x\")","v":"x"},{"$f":"IFERROR((VLOOKUP($B7,Attainment,Attainment!$JG$2,FALSE)/100), \"x\")","v":"x"},{"$f":"IFERROR((VLOOKUP($B7,Attainment,Attainment!$PK$2,FALSE)), \"x\")","v":"x"},{"$f":"IFERROR((VLOOKUP($B7,Attainment,Attainment!$PJ$2,FALSE)), \"x\")","v":"x"},{"$f":"IFERROR(((VLOOKUP($B7,Attainment,Attainment!$PC$2,FALSE))/100), \"x\")","v":"x"},{"$f":"IFERROR(((VLOOKUP(B7,Other_data,Other!$X$3,FALSE))/100), \"x\")","v":"x"},{"$f":"IFERROR(((VLOOKUP(B7,Other_data,Other!$KC$3,FALSE))/100), \"x\")","v":"x"},{"$f":"IFERROR((VLOOKUP($B7,Other_data,Other!$HX$3,FALSE)), \"x\")","v":"x"},{"$f":"IFERROR((VLOOKUP($B7,Other_data,Other!$IG$3,FALSE)), \"x\")","v":"x"},{"$f":"IFERROR((VLOOKUP($B7,Other_data,Other!$IM$3,FALSE)), \"x\")","v":"x"},{"$f":"IFERROR((VLOOKUP($B7,Other_data,Other!$IV$3,FALSE)), \"x\")","v":"x"},{"$f":"IFERROR((VLOOKUP($B7,Other_data,Other!$IY$3,FALSE)), \"x\")","v":"x"},{"$f":"IFERROR((VLOOKUP($B7,Other_data,Other!$JB$3,FALSE)), \"x\")","v":"x"},{"$f":"IFERROR((VLOOKUP($B7,Other_data,Other!$JE$3,FALSE)), \"x\")","v":"x"},{"$f":"IFERROR((VLOOKUP($B7,Other_data,Other!$JH$3,FALSE)), \"x\")","v":"x"}]
["Statistical neighbours:"]
[2,{"$f":"VLOOKUP($B$7,Statistical_Neighbours,SN!$C$155,FALSE)","v":{"$error":"#N/A"}},{"$f":"VLOOKUP($B$7,Statistical_Neighbours,SN!$D$155,FALSE)","v":{"$error":"#N/A"}},{"$f":"VLOOKUP($B9,Neighbours_summary,('Data Summary'!D$3-1),FALSE)","v":{"$error":"#N/A"}},{"$f":"VLOOKUP($B9,Neighbours_summary,('Data Summary'!E$3-1),FALSE)","v":{"$error":"#N/A"}},{"$f":"VLOOKUP($B9,Neighbours_summary,('Data Summary'!F$3-1),FALSE)","v":{"$error":"#N/A"}},{"$f":"VLOOKUP($B9,Neighbours_summary,('Data Summary'!G$3-1),FALSE)","v":{"$error":"#N/A"}},{"$f":"VLOOKUP($B9,Neighbours_summary,('Data Summary'!H$3-1),FALSE)","v":{"$error":"#N/A"}},{"$f":"VLOOKUP($B9,Neighbours_summary,('Data Summary'!I$3-1),FALSE)","v":{"$error":"#N/A"}},{"$f":"VLOOKUP($B9,Neighbours_summary,('Data Summary'!J$3-1),FALSE)","v":{"$error":"#N/A"}},{"$f":"VLOOKUP($B9,Neighbours_summary,('Data Summary'!K$3-1),FALSE)","v":{"$error":"#N/A"}},{"$f":"VLOOKUP($B9,Neighbours_summary,('Data Summary'!L$3-1),FALSE)","v":{"$error":"#N/A"}},{"$f":"VLOOKUP($B9,Neighbours_summary,('Data Summary'!M$3-1),FALSE)","v":{"$error":"#N/A"}},{"$f":"VLOOKUP($B9,Neighbours_summary,('Data Summary'!N$3-1),FALSE)","v":{"$error":"#N/A"}},{"$f":"VLOOKUP($B9,Neighbours_summary,('Data Summary'!O$3-1),FALSE)","v":{"$error":"#N/A"}},{"$f":"VLOOKUP($B9,Neighbours_summary,('Data Summary'!P$3-1),FALSE)","v":{"$error":"#N/A"}},{"$f":"VLOOKUP($B9,Neighbours_summary,('Data Summary'!Q$3-1),FALSE)","v":{"$error":"#N/A"}},{"$f":"VLOOKUP($B9,Neighbours_summary,('Data Summary'!R$3-1),FALSE)","v":{"$error":"#N/A"}},{"$f":"VLOOKUP($B9,Neighbours_summary,('Data Summary'!S$3-1),FALSE)","v":{"$error":"#N/A"}},{"$f":"VLOOKUP($B9,Neighbours_summary,('Data Summary'!T$3-1),FALSE)","v":{"$error":"#N/A"}},{"$f":"VLOOKUP($B9,Neighbours_summary,('Data Summary'!U$3-1),FALSE)","v":{"$error":"#N/A"}},{"$f":"VLOOKUP($B9,Neighbours_summary,('Data Summary'!V$3-1),FALSE)","v":{"$error":"#N/A"}},{"$f":"VLOOKUP($B9,Neighbours_summary,('Data Summary'!W$3-1),FALSE)","v":{"$error":"#N/A"}},{"$f":"VLOOKUP($B9,Neighbours_summary,('Data Summary'!X$3-1),FALSE)","v":{"$error":"#N/A"}},{"$f":"VLOOKUP($B9,Neighbours_summary,('Data Summary'!Y$3-1),FALSE)","v":{"$error":"#N/A"}},{"$f":"VLOOKUP($B9,Neighbours_summary,('Data Summary'!Z$3-1),FALSE)","v":{"$error":"#N/A"}},{"$f":"(VLOOKUP($B9,Neighbours_summary,('Data Summary'!AA$3-1),FALSE))/1000000","v":{"$error":"#N/A"}},{"$f":"VLOOKUP($B9,Neighbours_summary,('Data Summary'!AB$3-1),FALSE)","v":{"$error":"#N/A"}},{"$f":"VLOOKUP($B9,Neighbours_summary,('Data Summary'!AC$3-1),FALSE)","v":{"$error":"#N/A"}},{"$f":"(VLOOKUP($B9,Neighbours_summary,('Data Summary'!AD$3-1),FALSE))/1000000","v":{"$error":"#N/A"}},{"$f":"VLOOKUP($B9,Neighbours_summary,('Data Summary'!AE$3-1),FALSE)","v":{"$error":"#N/A"}},{"$f":"VLOOKUP($B9,Neighbours_summary,('Data Summary'!AF$3-1),FALSE)","v":{"$error":"#N/A"}},{"$f":"(VLOOKUP($B9,Neighbours_summary,('Data Summary'!AG$3-1),FALSE))/1000000","v":{"$error":"#N/A"}},{"$f":"VLOOKUP($B9,Neighbours_summary,('Data Summary'!AH$3-1),FALSE)","v":{"$error":"#N/A"}},{"$f":"VLOOKUP($B9,Neighbours_summary,('Data Summary'!AI$3-1),FALSE)","v":{"$error":"#N/A"}},{"$f":"(VLOOKUP($B9,Neighbours_summary,('Data Summary'!AJ$3-1),FALSE))/1000000","v":{"$error":"#N/A"}},{"$f":"VLOOKUP($B9,Neighbours_summary,('Data Summary'!AK$3-1),FALSE)","v":{"$error":"#N/A"}},null,{"$f":"(VLOOKUP($B9,Neighbours_summary,('Data Summary'!AM$3-1),FALSE))/1000000","v":{"$error":"#N/A"}},{"$f":"VLOOKUP($B9,Neighbours_summary,('Data Summary'!AN$3-1),FALSE)","v":{"$error":"#N/A"}},{"$f":"VLOOKUP($B9,Neighbours_summary,('Data Summary'!AO$3-1),FALSE)","v":{"$error":"#N/A"}},{"$f":"(VLOOKUP($B9,Neighbours_summary,('Data Summary'!AP$3-1),FALSE))/1000000","v":{"$error":"#N/A"}},{"$f":"VLOOKUP($B9,Neighbours_summary,('Data Summary'!AQ$3-1),FALSE)","v":{"$error":"#N/A"}},{"$f":"VLOOKUP($B9,Neighbours_summary,('Data Summary'!AR$3-1),FALSE)","v":{"$error":"#N/A"}},{"$f":"(VLOOKUP($B9,Neighbours_summary,('Data Summary'!AS$3-1),FALSE))/1000000","v":{"$error":"#N/A"}},{"$f":"VLOOKUP($B9,Neighbours_summary,('Data Summary'!AT$3-1),FALSE)","v":{"$error":"#N/A"}},{"$f":"VLOOKUP($B9,Neighbours_summary,('Data Summary'!AU$3-1),FALSE)","v":{"$error":"#N/A"}},{"$f":"(VLOOKUP($B9,Neighbours_summary,('Data Summary'!AV$3-1),FALSE))/1000000","v":{"$error":"#N/A"}},{"$f":"VLOOKUP($B9,Neighbours_summary,('Data Summary'!AW$3-1),FALSE)","v":{"$error":"#N/A"}},{"$f":"VLOOKUP($B9,Neighbours_summary,('Data Summary'!AX$3-1),FALSE)","v":{"$error":"#N/A"}},{"$f":"(VLOOKUP($B9,Neighbours_summary,('Data Summary'!AY$3-1),FALSE))/1000000","v":{"$error":"#N/A"}},{"$f":"VLOOKUP($B9,Neighbours_summary,('Data Summary'!AZ$3-1),FALSE)","v":{"$error":"#N/A"}},{"$f":"VLOOKUP($B9,Neighbours_summary,('Data Summary'!BA$3-1),FALSE)","v":{"$error":"#N/A"}},{"$f":"(VLOOKUP($B9,Neighbours_summary,('Data Summary'!BB$3-1),FALSE))/1000000","v":{"$error":"#N/A"}},{"$f":"VLOOKUP($B9,Neighbours_summary,('Data Summary'!BC$3-1),FALSE)","v":{"$error":"#N/A"}},{"$f":"VLOOKUP($B9,Neighbours_summary,('Data Summary'!BD$3-1),FALSE)","v":{"$error":"#N/A"}},{"$f":"(VLOOKUP($B9,Neighbours_summary,('Data Summary'!BE$3-1),FALSE))/1000000","v":{"$error":"#N/A"}},{"$f":"VLOOKUP($B9,Neighbours_summary,('Data Summary'!BF$3-1),FALSE)","v":{"$error":"#N/A"}},{"$f":"VLOOKUP($B9,Neighbours_summary,('Data Summary'!BG$3-1),FALSE)","v":{"$error":"#N/A"}},{"$f":"VLOOKUP($B9,Neighbours_summary,('Data Summary'!BH$3-1),FALSE)/1000000","v":{"$error":"#N/A"}},{"$f":"VLOOKUP($B9,Neighbours_summary,('Data Summary'!BI$3-1),FALSE)","v":{"$error":"#N/A"}},{"$f":"VLOOKUP($B9,Neighbours_summary,('Data Summary'!BJ$3-1),FALSE)","v":{"$error":"#N/A"}},{"$f":"(VLOOKUP($B9,Neighbours_summary,('Data Summary'!BK$3-1),FALSE))/1000000","v":{"$error":"#N/A"}},{"$f":"VLOOKUP($B9,Neighbours_summary,('Data Summary'!BL$3-1),FALSE)","v":{"$error":"#N/A"}},{"$f":"VLOOKUP($B9,Neighbours_summary,('Data Summary'!BM$3-1),FALSE)","v":{"$error":"#N/A"}},{"$f":"(VLOOKUP($B9,Neighbours_summary,('Data Summary'!BN$3-1),FALSE))/1000000","v":{"$error":"#N/A"}},{"$f":"VLOOKUP($B9,Neighbours_summary,('Data Summary'!BO$3-1),FALSE)","v":{"$error":"#N/A"}},{"$f":"VLOOKUP($B9,Neighbours_summary,('Data Summary'!BP$3-1),FALSE)","v":{"$error":"#N/A"}},{"$f":"(VLOOKUP($B9,Neighbours_summary,('Data Summary'!BQ$3-1),FALSE))/1000000","v":{"$error":"#N/A"}},{"$f":"VLOOKUP($B9,Neighbours_summary,('Data Summary'!BR$3-1),FALSE)","v":{"$error":"#N/A"}},{"$f":"VLOOKUP($B9,Neighbours_summary,('Data Summary'!BS$3-1),FALSE)","v":{"$error":"#N/A"}},{"$f":"VLOOKUP($B9,Neighbours_summary,('Data Summary'!BT$3-1),FALSE)","v":{"$error":"#N/A"}},{"$f":"VLOOKUP($B9,Neighbours_summary,('Data Summary'!BU$3-1),FALSE)","v":{"$error":"#N/A"}},{"$f":"VLOOKUP($B9,Neighbours_summary,('Data Summary'!BV$3-1),FALSE)","v":{"$error":"#N/A"}},{"$f":"VLOOKUP($B9,Neighbours_summary,('Data Summary'!BW$3-1),FALSE)","v":{"$error":"#N/A"}},{"$f":"VLOOKUP($B9,Neighbours_summary,('Data Summary'!BX$3-1),FALSE)","v":{"$error":"#N/A"}},{"$f":"VLOOKUP($B9,Neighbours_summary,('Data Summary'!BY$3-1),FALSE)","v":{"$error":"#N/A"}},{"$f":"IFERROR((VLOOKUP($B9,Attainment,Attainment!$OR$2,FALSE)/100), \"x\")","v":"x"},{"$f":"IFERROR((VLOOKUP($B9,Attainment,Attainment!$OE$2,FALSE)/100), \"x\")","v":"x"},{"$f":"IFERROR((VLOOKUP($B9,Attainment,Attainment!$NR$2,FALSE)/100), \"x\")","v":"x"},{"$f":"IFERROR((VLOOKUP($B9,Attainment,Attainment!$NE$2,FALSE)/100), \"x\")","v":"x"},{"$f":"IFERROR((VLOOKUP($B9,Attainment,Attainment!$MR$2,FALSE)/100), \"x\")","v":"x"},{"$f":"IFERROR((VLOOKUP($B9,Attainment,Attainment!$OT$2,FALSE)/100), \"x\")","v":"x"},{"$f":"IFERROR((VLOOKUP($B9,Attainment,Attainment!$OG$2,FALSE)/100), \"x\")","v":"x"},{"$f":"IFERROR((VLOOKUP($B9,Attainment,Attainment!$NT$2,FALSE)/100), \"x\")","v":"x"},{"$f":"IFERROR((VLOOKUP($B9,Attainment,Attainment!$NG$2,FALSE)/100), \"x\")","v":"x"},{"$f":"IFERROR((VLOOKUP($B9,Attainment,Attainment!$MT$2,FALSE)/100), \"x\")","v":"x"},{"$f":"IFERROR((VLOOKUP($B9,Attainment,Attainment!$S$2,FALSE)/100), \"x\")","v":"x"},{"$f":"IFERROR((VLOOKUP($B9,Attainment,Attainment!$O$2,FALSE)/100), \"x\")","v":"x"},{"$f":"IFERROR((VLOOKUP($B9,Attainment,Attainment!$BI$2,FALSE)/100), \"x\")","v":"x"},{"$f":"IFERROR((VLOOKUP($B9,Attainment,Attainment!$BG$2,FALSE)/100), \"x\")","v":"x"},{"$f":"IFERROR((VLOOKUP($B9,Attainment,Attainment!$DF$2,FALSE)/100), \"x\")","v":"x"},{"$f":"IFERROR((VLOOKUP($B9,Attainment,Attainment!$DA$2,FALSE)/100), \"x\")","v":"x"},{"$f":"IFERROR((VLOOKUP($B9,Attainment,Attainment!$DG$2,FALSE)/100), \"x\")","v":"x"},{"$f":"IFERROR((VLOOKUP($B9,Attainment,Attainment!$DB$2,FALSE)/100), \"x\")","v":"x"},{"$f":"IFERROR((VLOOKUP($B9,Attainment,Attainment!$DH$2,FALSE)/100), \"x\")","v":"x"},{"$f":"IFERROR((VLOOKUP($B9,Attainment,Attainment!$DC$2,FALSE)/100), \"x\")","v":"x"},{"$f":"IFERROR((VLOOKUP($B9,Attainment,Attainment!$DI$2,FALSE)/100), \"x\")","v":"x"},{"$f":"IFERROR((VLOOKUP($B9,Attainment,Attainment!$DD$2,FALSE)/100), \"x\")","v":"x"},{"$f":"IFERROR((VLOOKUP($B9,Attainment,Attainment!$JL$2,FALSE)/100), \"x\")","v":"x"},{"$f":"IFERROR((VLOOKUP($B9,Attainment,Attainment!$JF$2,FALSE)/100), \"x\")","v":"x"},{"$f":"IFERROR((VLOOKUP($B9,Attainment,Attainment!$JM$2,FALSE)/100), \"x\")","v":"x"},{"$f":"IFERROR((VLOOKUP($B9,Attainment,Attainment!$JG$2,FALSE)/100), \"x\")","v":"x"},{"$f":"IFERROR((VLOOKUP($B9,Attainment,Attainment!$PK$2,FALSE)), \"x\")","v":"x"},{"$f":"IFERROR((VLOOKUP($B9,Attainment,Attainment!$PJ$2,FALSE)), \"x\")","v":"x"},{"$f":"IFERROR(((VLOOKUP($B9,Attainment,Attainment!$PC$2,FALSE))/100), \"x\")","v":"x"},{"$f":"IFERROR(((VLOOKUP(B9,Other_data,Other!$X$3,FALSE))/100), \"x\")","v":"x"},{"$f":"IFERROR(((VLOOKUP(B9,Other_data,Other!$KC$3,FALSE))/100), \"x\")","v":"x"},{"$f":"IFERROR((VLOOKUP($B9,Other_data,Other!$HX$3,FALSE)), \"x\")","v":"x"},{"$f":"IFERROR((VLOOKUP($B9,Other_data,Other!$IG$3,FALSE)), \"x\")","v":"x"},{"$f":"IFERROR((VLOOKUP($B9,Other_data,Other!$IM$3,FALSE)), \"x\")","v":"x"},{"$f":"IFERROR((VLOOKUP($B9,Other_data,Other!$IV$3,FALSE)), \"x\")","v":"x"},{"$f":"IFERROR((VLOOKUP($B9,Other_data,Other!$IY$3,FALSE)), \"x\")","v":"x"},{"$f":"IFERROR((VLOOKUP($B9,Other_data,Other!$JB$3,FALSE)), \"x\")","v":"x"},{"$f":"IFERROR((VLOOKUP($B9,Other_data,Other!$JE$3,FALSE)), \"x\")","v":"x"},{"$f":"IFERROR((VLOOKUP($B9,Other_data,Other!$JH$3,FALSE)), \"x\")","v":"x"}]
[3,{"$f":"VLOOKUP($B$7,Statistical_Neighbours,SN!$E$155,FALSE)","v":{"$error":"#N/A"}},{"$f":"VLOOKUP($B$7,Statistical_Neighbours,SN!$F$155,FALSE)","v":{"$error":"#N/A"}},{"$f":"VLOOKUP($B10,Neighbours_summary,('Data Summary'!D$3-1),FALSE)","v":{"$error":"#N/A"}},{"$f":"VLOOKUP($B10,Neighbours_summary,('Data Summary'!E$3-1),FALSE)","v":{"$error":"#N/A"}},{"$f":"VLOOKUP($B10,Neighbours_summary,('Data Summary'!F$3-1),FALSE)","v":{"$error":"#N/A"}},{"$f":"VLOOKUP($B10,Neighbours_summary,('Data Summary'!G$3-1),FALSE)","v":{"$error":"#N/A"}},{"$f":"VLOOKUP($B10,Neighbours_summary,('Data Summary'!H$3-1),FALSE)","v":{"$error":"#N/A"}},{"$f":"VLOOKUP($B10,Neighbours_summary,('Data Summary'!I$3-1),FALSE)","v":{"$error":"#N/A"}},{"$f":"VLOOKUP($B10,Neighbours_summary,('Data Summary'!J$3-1),FALSE)","v":{"$error":"#N/A"}},{"$f":"VLOOKUP($B10,Neighbours_summary,('Data Summary'!K$3-1),FALSE)","v":{"$error":"#N/A"}},{"$f":"VLOOKUP($B10,Neighbours_summary,('Data Summary'!L$3-1),FALSE)","v":{"$error":"#N/A"}},{"$f":"VLOOKUP($B10,Neighbours_summary,('Data Summary'!M$3-1),FALSE)","v":{"$error":"#N/A"}},{"$f":"VLOOKUP($B10,Neighbours_summary,('Data Summary'!N$3-1),FALSE)","v":{"$error":"#N/A"}},{"$f":"VLOOKUP($B10,Neighbours_summary,('Data Summary'!O$3-1),FALSE)","v":{"$error":"#N/A"}},{"$f":"VLOOKUP($B10,Neighbours_summary,('Data Summary'!P$3-1),FALSE)","v":{"$error":"#N/A"}},{"$f":"VLOOKUP($B10,Neighbours_summary,('Data Summary'!Q$3-1),FALSE)","v":{"$error":"#N/A"}},{"$f":"VLOOKUP($B10,Neighbours_summary,('Data Summary'!R$3-1),FALSE)","v":{"$error":"#N/A"}},{"$f":"VLOOKUP($B10,Neighbours_summary,('Data Summary'!S$3-1),FALSE)","v":{"$error":"#N/A"}},{"$f":"VLOOKUP($B10,Neighbours_summary,('Data Summary'!T$3-1),FALSE)","v":{"$error":"#N/A"}},{"$f":"VLOOKUP($B10,Neighbours_summary,('Data Summary'!U$3-1),FALSE)","v":{"$error":"#N/A"}},{"$f":"VLOOKUP($B10,Neighbours_summary,('Data Summary'!V$3-1),FALSE)","v":{"$error":"#N/A"}},{"$f":"VLOOKUP($B10,Neighbours_summary,('Data Summary'!W$3-1),FALSE)","v":{"$error":"#N/A"}},{"$f":"VLOOKUP($B10,Neighbours_summary,('Data Summary'!X$3-1),FALSE)","v":{"$error":"#N/A"}},{"$f":"VLOOKUP($B10,Neighbours_summary,('Data Summary'!Y$3-1),FALSE)","v":{"$error":"#N/A"}},{"$f":"VLOOKUP($B10,Neighbours_summary,('Data Summary'!Z$3-1),FALSE)","v":{"$error":"#N/A"}},{"$f":"(VLOOKUP($B10,Neighbours_summary,('Data Summary'!AA$3-1),FALSE))/1000000","v":{"$error":"#N/A"}},{"$f":"VLOOKUP($B10,Neighbours_summary,('Data Summary'!AB$3-1),FALSE)","v":{"$error":"#N/A"}},{"$f":"VLOOKUP($B10,Neighbours_summary,('Data Summary'!AC$3-1),FALSE)","v":{"$error":"#N/A"}},{"$f":"(VLOOKUP($B10,Neighbours_summary,('Data Summary'!AD$3-1),FALSE))/1000000","v":{"$error":"#N/A"}},{"$f":"VLOOKUP($B10,Neighbours_summary,('Data Summary'!AE$3-1),FALSE)","v":{"$error":"#N/A"}},{"$f":"VLOOKUP($B10,Neighbours_summary,('Data Summary'!AF$3-1),FALSE)","v":{"$error":"#N/A"}},{"$f":"(VLOOKUP($B10,Neighbours_summary,('Data Summary'!AG$3-1),FALSE))/1000000","v":{"$error":"#N/A"}},{"$f":"VLOOKUP($B10,Neighbours_summary,('Data Summary'!AH$3-1),FALSE)","v":{"$error":"#N/A"}},{"$f":"VLOOKUP($B10,Neighbours_summary,('Data Summary'!AI$3-1),FALSE)","v":{"$error":"#N/A"}},{"$f":"(VLOOKUP($B10,Neighbours_summary,('Data Summary'!AJ$3-1),FALSE))/1000000","v":{"$error":"#N/A"}},{"$f":"VLOOKUP($B10,Neighbours_summary,('Data Summary'!AK$3-1),FALSE)","v":{"$error":"#N/A"}},null,{"$f":"(VLOOKUP($B10,Neighbours_summary,('Data Summary'!AM$3-1),FALSE))/1000000","v":{"$error":"#N/A"}},{"$f":"VLOOKUP($B10,Neighbours_summary,('Data Summary'!AN$3-1),FALSE)","v":{"$error":"#N/A"}},{"$f":"VLOOKUP($B10,Neighbours_summary,('Data Summary'!AO$3-1),FALSE)","v":{"$error":"#N/A"}},{"$f":"(VLOOKUP($B10,Neighbours_summary,('Data Summary'!AP$3-1),FALSE))/1000000","v":{"$error":"#N/A"}},{"$f":"VLOOKUP($B10,Neighbours_summary,('Data Summary'!AQ$3-1),FALSE)","v":{"$error":"#N/A"}},{"$f":"VLOOKUP($B10,Neighbours_summary,('Data Summary'!AR$3-1),FALSE)","v":{"$error":"#N/A"}},{"$f":"(VLOOKUP($B10,Neighbours_summary,('Data Summary'!AS$3-1),FALSE))/1000000","v":{"$error":"#N/A"}},{"$f":"VLOOKUP($B10,Neighbours_summary,('Data Summary'!AT$3-1),FALSE)","v":{"$error":"#N/A"}},{"$f":"VLOOKUP($B10,Neighbours_summary,('Data Summary'!AU$3-1),FALSE)","v":{"$error":"#N/A"}},{"$f":"(VLOOKUP($B10,Neighbours_summary,('Data Summary'!AV$3-1),FALSE))/1000000","v":{"$error":"#N/A"}},{"$f":"VLOOKUP($B10,Neighbours_summary,('Data Summary'!AW$3-1),FALSE)","v":{"$error":"#N/A"}},{"$f":"VLOOKUP($B10,Neighbours_summary,('Data Summary'!AX$3-1),FALSE)","v":{"$error":"#N/A"}},{"$f":"(VLOOKUP($B10,Neighbours_summary,('Data Summary'!AY$3-1),FALSE))/1000000","v":{"$error":"#N/A"}},{"$f":"VLOOKUP($B10,Neighbours_summary,('Data Summary'!AZ$3-1),FALSE)","v":{"$error":"#N/A"}},{"$f":"VLOOKUP($B10,Neighbours_summary,('Data Summary'!BA$3-1),FALSE)","v":{"$error":"#N/A"}},{"$f":"(VLOOKUP($B10,Neighbours_summary,('Data Summary'!BB$3-1),FALSE))/1000000","v":{"$error":"#N/A"}},{"$f":"VLOOKUP($B10,Neighbours_summary,('Data Summary'!BC$3-1),FALSE)","v":{"$error":"#N/A"}},{"$f":"VLOOKUP($B10,Neighbours_summary,('Data Summary'!BD$3-1),FALSE)","v":{"$error":"#N/A"}},{"$f":"(VLOOKUP($B10,Neighbours_summary,('Data Summary'!BE$3-1),FALSE))/1000000","v":{"$error":"#N/A"}},{"$f":"VLOOKUP($B10,Neighbours_summary,('Data Summary'!BF$3-1),FALSE)","v":{"$error":"#N/A"}},{"$f":"VLOOKUP($B10,Neighbours_summary,('Data Summary'!BG$3-1),FALSE)","v":{"$error":"#N/A"}},{"$f":"VLOOKUP($B10,Neighbours_summary,('Data Summary'!BH$3-1),FALSE)/1000000","v":{"$error":"#N/A"}},{"$f":"VLOOKUP($B10,Neighbours_summary,('Data Summary'!BI$3-1),FALSE)","v":{"$error":"#N/A"}},{"$f":"VLOOKUP($B10,Neighbours_summary,('Data Summary'!BJ$3-1),FALSE)","v":{"$error":"#N/A"}},{"$f":"(VLOOKUP($B10,Neighbours_summary,('Data Summary'!BK$3-1),FALSE))/1000000","v":{"$error":"#N/A"}},{"$f":"VLOOKUP($B10,Neighbours_summary,('Data Summary'!BL$3-1),FALSE)","v":{"$error":"#N/A"}},{"$f":"VLOOKUP($B10,Neighbours_summary,('Data Summary'!BM$3-1),FALSE)","v":{"$error":"#N/A"}},{"$f":"(VLOOKUP($B10,Neighbours_summary,('Data Summary'!BN$3-1),FALSE))/1000000","v":{"$error":"#N/A"}},{"$f":"VLOOKUP($B10,Neighbours_summary,('Data Summary'!BO$3-1),FALSE)","v":{"$error":"#N/A"}},{"$f":"VLOOKUP($B10,Neighbours_summary,('Data Summary'!BP$3-1),FALSE)","v":{"$error":"#N/A"}},{"$f":"(VLOOKUP($B10,Neighbours_summary,('Data Summary'!BQ$3-1),FALSE))/1000000","v":{"$error":"#N/A"}},{"$f":"VLOOKUP($B10,Neighbours_summary,('Data Summary'!BR$3-1),FALSE)","v":{"$error":"#N/A"}},{"$f":"VLOOKUP($B10,Neighbours_summary,('Data Summary'!BS$3-1),FALSE)","v":{"$error":"#N/A"}},{"$f":"VLOOKUP($B10,Neighbours_summary,('Data Summary'!BT$3-1),FALSE)","v":{"$error":"#N/A"}},{"$f":"VLOOKUP($B10,Neighbours_summary,('Data Summary'!BU$3-1),FALSE)","v":{"$error":"#N/A"}},{"$f":"VLOOKUP($B10,Neighbours_summary,('Data Summary'!BV$3-1),FALSE)","v":{"$error":"#N/A"}},{"$f":"VLOOKUP($B10,Neighbours_summary,('Data Summary'!BW$3-1),FALSE)","v":{"$error":"#N/A"}},{"$f":"VLOOKUP($B10,Neighbours_summary,('Data Summary'!BX$3-1),FALSE)","v":{"$error":"#N/A"}},{"$f":"VLOOKUP($B10,Neighbours_summary,('Data Summary'!BY$3-1),FALSE)","v":{"$error":"#N/A"}},{"$f":"IFERROR((VLOOKUP($B10,Attainment,Attainment!$OR$2,FALSE)/100), \"x\")","v":"x"},{"$f":"IFERROR((VLOOKUP($B10,Attainment,Attainment!$OE$2,FALSE)/100), \"x\")","v":"x"},{"$f":"IFERROR((VLOOKUP($B10,Attainment,Attainment!$NR$2,FALSE)/100), \"x\")","v":"x"},{"$f":"IFERROR((VLOOKUP($B10,Attainment,Attainment!$NE$2,FALSE)/100), \"x\")","v":"x"},{"$f":"IFERROR((VLOOKUP($B10,Attainment,Attainment!$MR$2,FALSE)/100), \"x\")","v":"x"},{"$f":"IFERROR((VLOOKUP($B10,Attainment,Attainment!$OT$2,FALSE)/100), \"x\")","v":"x"},{"$f":"IFERROR((VLOOKUP($B10,Attainment,Attainment!$OG$2,FALSE)/100), \"x\")","v":"x"},{"$f":"IFERROR((VLOOKUP($B10,Attainment,Attainment!$NT$2,FALSE)/100), \"x\")","v":"x"},{"$f":"IFERROR((VLOOKUP($B10,Attainment,Attainment!$NG$2,FALSE)/100), \"x\")","v":"x"},{"$f":"IFERROR((VLOOKUP($B10,Attainment,Attainment!$MT$2,FALSE)/100), \"x\")","v":"x"},{"$f":"IFERROR((VLOOKUP($B10,Attainment,Attainment!$S$2,FALSE)/100), \"x\")","v":"x"},{"$f":"IFERROR((VLOOKUP($B10,Attainment,Attainment!$O$2,FALSE)/100), \"x\")","v":"x"},{"$f":"IFERROR((VLOOKUP($B10,Attainment,Attainment!$BI$2,FALSE)/100), \"x\")","v":"x"},{"$f":"IFERROR((VLOOKUP($B10,Attainment,Attainment!$BG$2,FALSE)/100), \"x\")","v":"x"},{"$f":"IFERROR((VLOOKUP($B10,Attainment,Attainment!$DF$2,FALSE)/100), \"x\")","v":"x"},{"$f":"IFERROR((VLOOKUP($B10,Attainment,Attainment!$DA$2,FALSE)/100), \"x\")","v":"x"},{"$f":"IFERROR((VLOOKUP($B10,Attainment,Attainment!$DG$2,FALSE)/100), \"x\")","v":"x"},{"$f":"IFERROR((VLOOKUP($B10,Attainment,Attainment!$DB$2,FALSE)/100), \"x\")","v":"x"},{"$f":"IFERROR((VLOOKUP($B10,Attainment,Attainment!$DH$2,FALSE)/100), \"x\")","v":"x"},{"$f":"IFERROR((VLOOKUP($B10,Attainment,Attainment!$DC$2,FALSE)/100), \"x\")","v":"x"},{"$f":"IFERROR((VLOOKUP($B10,Attainment,Attainment!$DI$2,FALSE)/100), \"x\")","v":"x"},{"$f":"IFERROR((VLOOKUP($B10,Attainment,Attainment!$DD$2,FALSE)/100), \"x\")","v":"x"},{"$f":"IFERROR((VLOOKUP($B10,Attainment,Attainment!$JL$2,FALSE)/100), \"x\")","v":"x"},{"$f":"IFERROR((VLOOKUP($B10,Attainment,Attainment!$JF$2,FALSE)/100), \"x\")","v":"x"},{"$f":"IFERROR((VLOOKUP($B10,Attainment,Attainment!$JM$2,FALSE)/100), \"x\")","v":"x"},{"$f":"IFERROR((VLOOKUP($B10,Attainment,Attainment!$JG$2,FALSE)/100), \"x\")","v":"x"},{"$f":"IFERROR((VLOOKUP($B10,Attainment,Attainment!$PK$2,FALSE)), \"x\")","v":"x"},{"$f":"IFERROR((VLOOKUP($B10,Attainment,Attainment!$PJ$2,FALSE)), \"x\")","v":"x"},{"$f":"IFERROR(((VLOOKUP($B10,Attainment,Attainment!$PC$2,FALSE))/100), \"x\")","v":"x"},{"$f":"IFERROR(((VLOOKUP(B10,Other_data,Other!$X$3,FALSE))/100), \"x\")","v":"x"},{"$f":"IFERROR(((VLOOKUP(B10,Other_data,Other!$KC$3,FALSE))/100), \"x\")","v":"x"},{"$f":"IFERROR((VLOOKUP($B10,Other_data,Other!$HX$3,FALSE)), \"x\")","v":"x"},{"$f":"IFERROR((VLOOKUP($B10,Other_data,Other!$IG$3,FALSE)), \"x\")","v":"x"},{"$f":"IFERROR((VLOOKUP($B10,Other_data,Other!$IM$3,FALSE)), \"x\")","v":"x"},{"$f":"IFERROR((VLOOKUP($B10,Other_data,Other!$IV$3,FALSE)), \"x\")","v":"x"},{"$f":"IFERROR((VLOOKUP($B10,Other_data,Other!$IY$3,FALSE)), \"x\")","v":"x"},{"$f":"IFERROR((VLOOKUP($B10,Other_data,Other!$JB$3,FALSE)), \"x\")","v":"x"},{"$f":"IFERROR((VLOOKUP($B10,Other_data,Other!$JE$3,FALSE)), \"x\")","v":"x"},{"$f":"IFERROR((VLOOKUP($B10,Other_data,Other!$JH$3,FALSE)), \"x\")","v":"x"}]
[4,{"$f":"VLOOKUP($B$7,Statistical_Neighbours,SN!$G$155,FALSE)","v":{"$error":"#N/A"}},{"$f":"VLOOKUP($B$7,Statistical_Neighbours,SN!$H$155,FALSE)","v":{"$error":"#N/A"}},{"$f":"VLOOKUP($B11,Neighbours_summary,('Data Summary'!D$3-1),FALSE)","v":{"$error":"#N/A"}},{"$f":"VLOOKUP($B11,Neighbours_summary,('Data Summary'!E$3-1),FALSE)","v":{"$error":"#N/A"}},{"$f":"VLOOKUP($B11,Neighbours_summary,('Data Summary'!F$3-1),FALSE)","v":{"$error":"#N/A"}},{"$f":"VLOOKUP($B11,Neighbours_summary,('Data Summary'!G$3-1),FALSE)","v":{"$error":"#N/A"}},{"$f":"VLOOKUP($B11,Neighbours_summary,('Data Summary'!H$3-1),FALSE)","v":{"$error":"#N/A"}},{"$f":"VLOOKUP($B11,Neighbours_summary,('Data Summary'!I$3-1),FALSE)","v":{"$error":"#N/A"}},{"$f":"VLOOKUP($B11,Neighbours_summary,('Data Summary'!J$3-1),FALSE)","v":{"$error":"#N/A"}},{"$f":"VLOOKUP($B11,Neighbours_summary,('Data Summary'!K$3-1),FALSE)","v":{"$error":"#N/A"}},{"$f":"VLOOKUP($B11,Neighbours_summary,('Data Summary'!L$3-1),FALSE)","v":{"$error":"#N/A"}},{"$f":"VLOOKUP($B11,Neighbours_summary,('Data Summary'!M$3-1),FALSE)","v":{"$error":"#N/A"}},{"$f":"VLOOKUP($B11,Neighbours_summary,('Data Summary'!N$3-1),FALSE)","v":{"$error":"#N/A"}},{"$f":"VLOOKUP($B11,Neighbours_summary,('Data Summary'!O$3-1),FALSE)","v":{"$error":"#N/A"}},{"$f":"VLOOKUP($B11,Neighbours_summary,('Data Summary'!P$3-1),FALSE)","v":{"$error":"#N/A"}},{"$f":"VLOOKUP($B11,Neighbours_summary,('Data Summary'!Q$3-1),FALSE)","v":{"$error":"#N/A"}},{"$f":"VLOOKUP($B11,Neighbours_summary,('Data Summary'!R$3-1),FALSE)","v":{"$error":"#N/A"}},{"$f":"VLOOKUP($B11,Neighbours_summary,('Data Summary'!S$3-1),FALSE)","v":{"$error":"#N/A"}},{"$f":"VLOOKUP($B11,Neighbours_summary,('Data Summary'!T$3-1),FALSE)","v":{"$error":"#N/A"}},{"$f":"VLOOKUP($B11,Neighbours_summary,('Data Summary'!U$3-1),FALSE)","v":{"$error":"#N/A"}},{"$f":"VLOOKUP($B11,Neighbours_summary,('Data Summary'!V$3-1),FALSE)","v":{"$error":"#N/A"}},{"$f":"VLOOKUP($B11,Neighbours_summary,('Data Summary'!W$3-1),FALSE)","v":{"$error":"#N/A"}},{"$f":"VLOOKUP($B11,Neighbours_summary,('Data Summary'!X$3-1),FALSE)","v":{"$error":"#N/A"}},{"$f":"VLOOKUP($B11,Neighbours_summary,('Data Summary'!Y$3-1),FALSE)","v":{"$error":"#N/A"}},{"$f":"VLOOKUP($B11,Neighbours_summary,('Data Summary'!Z$3-1),FALSE)","v":{"$error":"#N/A"}},{"$f":"(VLOOKUP($B11,Neighbours_summary,('Data Summary'!AA$3-1),FALSE))/1000000","v":{"$error":"#N/A"}},{"$f":"VLOOKUP($B11,Neighbours_summary,('Data Summary'!AB$3-1),FALSE)","v":{"$error":"#N/A"}},{"$f":"VLOOKUP($B11,Neighbours_summary,('Data Summary'!AC$3-1),FALSE)","v":{"$error":"#N/A"}},{"$f":"(VLOOKUP($B11,Neighbours_summary,('Data Summary'!AD$3-1),FALSE))/1000000","v":{"$error":"#N/A"}},{"$f":"VLOOKUP($B11,Neighbours_summary,('Data Summary'!AE$3-1),FALSE)","v":{"$error":"#N/A"}},{"$f":"VLOOKUP($B11,Neighbours_summary,('Data Summary'!AF$3-1),FALSE)","v":{"$error":"#N/A"}},{"$f":"(VLOOKUP($B11,Neighbours_summary,('Data Summary'!AG$3-1),FALSE))/1000000","v":{"$error":"#N/A"}},{"$f":"VLOOKUP($B11,Neighbours_summary,('Data Summary'!AH$3-1),FALSE)","v":{"$error":"#N/A"}},{"$f":"VLOOKUP($B11,Neighbours_summary,('Data Summary'!AI$3-1),FALSE)","v":{"$error":"#N/A"}},{"$f":"(VLOOKUP($B11,Neighbours_summary,('Data Summary'!AJ$3-1),FALSE))/1000000","v":{"$error":"#N/A"}},{"$f":"VLOOKUP($B11,Neighbours_summary,('Data Summary'!AK$3-1),FALSE)","v":{"$error":"#N/A"}},null,{"$f":"(VLOOKUP($B11,Neighbours_summary,('Data Summary'!AM$3-1),FALSE))/1000000","v":{"$error":"#N/A"}},{"$f":"VLOOKUP($B11,Neighbours_summary,('Data Summary'!AN$3-1),FALSE)","v":{"$error":"#N/A"}},{"$f":"VLOOKUP($B11,Neighbours_summary,('Data Summary'!AO$3-1),FALSE)","v":{"$error":"#N/A"}},{"$f":"(VLOOKUP($B11,Neighbours_summary,('Data Summary'!AP$3-1),FALSE))/1000000","v":{"$error":"#N/A"}},{"$f":"VLOOKUP($B11,Neighbours_summary,('Data Summary'!AQ$3-1),FALSE)","v":{"$error":"#N/A"}},{"$f":"VLOOKUP($B11,Neighbours_summary,('Data Summary'!AR$3-1),FALSE)","v":{"$error":"#N/A"}},{"$f":"(VLOOKUP($B11,Neighbours_summary,('Data Summary'!AS$3-1),FALSE))/1000000","v":{"$error":"#N/A"}},{"$f":"VLOOKUP($B11,Neighbours_summary,('Data Summary'!AT$3-1),FALSE)","v":{"$error":"#N/A"}},{"$f":"VLOOKUP($B11,Neighbours_summary,('Data Summary'!AU$3-1),FALSE)","v":{"$error":"#N/A"}},{"$f":"(VLOOKUP($B11,Neighbours_summary,('Data Summary'!AV$3-1),FALSE))/1000000","v":{"$error":"#N/A"}},{"$f":"VLOOKUP($B11,Neighbours_summary,('Data Summary'!AW$3-1),FALSE)","v":{"$error":"#N/A"}},{"$f":"VLOOKUP($B11,Neighbours_summary,('Data Summary'!AX$3-1),FALSE)","v":{"$error":"#N/A"}},{"$f":"(VLOOKUP($B11,Neighbours_summary,('Data Summary'!AY$3-1),FALSE))/1000000","v":{"$error":"#N/A"}},{"$f":"VLOOKUP($B11,Neighbours_summary,('Data Summary'!AZ$3-1),FALSE)","v":{"$error":"#N/A"}},{"$f":"VLOOKUP($B11,Neighbours_summary,('Data Summary'!BA$3-1),FALSE)","v":{"$error":"#N/A"}},{"$f":"(VLOOKUP($B11,Neighbours_summary,('Data Summary'!BB$3-1),FALSE))/1000000","v":{"$error":"#N/A"}},{"$f":"VLOOKUP($B11,Neighbours_summary,('Data Summary'!BC$3-1),FALSE)","v":{"$error":"#N/A"}},{"$f":"VLOOKUP($B11,Neighbours_summary,('Data Summary'!BD$3-1),FALSE)","v":{"$error":"#N/A"}},{"$f":"(VLOOKUP($B11,Neighbours_summary,('Data Summary'!BE$3-1),FALSE))/1000000","v":{"$error":"#N/A"}},{"$f":"VLOOKUP($B11,Neighbours_summary,('Data Summary'!BF$3-1),FALSE)","v":{"$error":"#N/A"}},{"$f":"VLOOKUP($B11,Neighbours_summary,('Data Summary'!BG$3-1),FALSE)","v":{"$error":"#N/A"}},{"$f":"VLOOKUP($B11,Neighbours_summary,('Data Summary'!BH$3-1),FALSE)/1000000","v":{"$error":"#N/A"}},{"$f":"VLOOKUP($B11,Neighbours_summary,('Data Summary'!BI$3-1),FALSE)","v":{"$error":"#N/A"}},{"$f":"VLOOKUP($B11,Neighbours_summary,('Data Summary'!BJ$3-1),FALSE)","v":{"$error":"#N/A"}},{"$f":"(VLOOKUP($B11,Neighbours_summary,('Data Summary'!BK$3-1),FALSE))/1000000","v":{"$error":"#N/A"}},{"$f":"VLOOKUP($B11,Neighbours_summary,('Data Summary'!BL$3-1),FALSE)","v":{"$error":"#N/A"}},{"$f":"VLOOKUP($B11,Neighbours_summary,('Data Summary'!BM$3-1),FALSE)","v":{"$error":"#N/A"}},{"$f":"(VLOOKUP($B11,Neighbours_summary,('Data Summary'!BN$3-1),FALSE))/1000000","v":{"$error":"#N/A"}},{"$f":"VLOOKUP($B11,Neighbours_summary,('Data Summary'!BO$3-1),FALSE)","v":{"$error":"#N/A"}},{"$f":"VLOOKUP($B11,Neighbours_summary,('Data Summary'!BP$3-1),FALSE)","v":{"$error":"#N/A"}},{"$f":"(VLOOKUP($B11,Neighbours_summary,('Data Summary'!BQ$3-1),FALSE))/1000000","v":{"$error":"#N/A"}},{"$f":"VLOOKUP($B11,Neighbours_summary,('Data Summary'!BR$3-1),FALSE)","v":{"$error":"#N/A"}},{"$f":"VLOOKUP($B11,Neighbours_summary,('Data Summary'!BS$3-1),FALSE)","v":{"$error":"#N/A"}},{"$f":"VLOOKUP($B11,Neighbours_summary,('Data Summary'!BT$3-1),FALSE)","v":{"$error":"#N/A"}},{"$f":"VLOOKUP($B11,Neighbours_summary,('Data Summary'!BU$3-1),FALSE)","v":{"$error":"#N/A"}},{"$f":"VLOOKUP($B11,Neighbours_summary,('Data Summary'!BV$3-1),FALSE)","v":{"$error":"#N/A"}},{"$f":"VLOOKUP($B11,Neighbours_summary,('Data Summary'!BW$3-1),FALSE)","v":{"$error":"#N/A"}},{"$f":"VLOOKUP($B11,Neighbours_summary,('Data Summary'!BX$3-1),FALSE)","v":{"$error":"#N/A"}},{"$f":"VLOOKUP($B11,Neighbours_summary,('Data Summary'!BY$3-1),FALSE)","v":{"$error":"#N/A"}},{"$f":"IFERROR((VLOOKUP($B11,Attainment,Attainment!$OR$2,FALSE)/100), \"x\")","v":"x"},{"$f":"IFERROR((VLOOKUP($B11,Attainment,Attainment!$OE$2,FALSE)/100), \"x\")","v":"x"},{"$f":"IFERROR((VLOOKUP($B11,Attainment,Attainment!$NR$2,FALSE)/100), \"x\")","v":"x"},{"$f":"IFERROR((VLOOKUP($B11,Attainment,Attainment!$NE$2,FALSE)/100), \"x\")","v":"x"},{"$f":"IFERROR((VLOOKUP($B11,Attainment,Attainment!$MR$2,FALSE)/100), \"x\")","v":"x"},{"$f":"IFERROR((VLOOKUP($B11,Attainment,Attainment!$OT$2,FALSE)/100), \"x\")","v":"x"},{"$f":"IFERROR((VLOOKUP($B11,Attainment,Attainment!$OG$2,FALSE)/100), \"x\")","v":"x"},{"$f":"IFERROR((VLOOKUP($B11,Attainment,Attainment!$NT$2,FALSE)/100), \"x\")","v":"x"},{"$f":"IFERROR((VLOOKUP($B11,Attainment,Attainment!$NG$2,FALSE)/100), \"x\")","v":"x"},{"$f":"IFERROR((VLOOKUP($B11,Attainment,Attainment!$MT$2,FALSE)/100), \"x\")","v":"x"},{"$f":"IFERROR((VLOOKUP($B11,Attainment,Attainment!$S$2,FALSE)/100), \"x\")","v":"x"},{"$f":"IFERROR((VLOOKUP($B11,Attainment,Attainment!$O$2,FALSE)/100), \"x\")","v":"x"},{"$f":"IFERROR((VLOOKUP($B11,Attainment,Attainment!$BI$2,FALSE)/100), \"x\")","v":"x"},{"$f":"IFERROR((VLOOKUP($B11,Attainment,Attainment!$BG$2,FALSE)/100), \"x\")","v":"x"},{"$f":"IFERROR((VLOOKUP($B11,Attainment,Attainment!$DF$2,FALSE)/100), \"x\")","v":"x"},{"$f":"IFERROR((VLOOKUP($B11,Attainment,Attainment!$DA$2,FALSE)/100), \"x\")","v":"x"},{"$f":"IFERROR((VLOOKUP($B11,Attainment,Attainment!$DG$2,FALSE)/100), \"x\")","v":"x"},{"$f":"IFERROR((VLOOKUP($B11,Attainment,Attainment!$DB$2,FALSE)/100), \"x\")","v":"x"},{"$f":"IFERROR((VLOOKUP($B11,Attainment,Attainment!$DH$2,FALSE)/100), \"x\")","v":"x"},{"$f":"IFERROR((VLOOKUP($B11,Attainment,Attainment!$DC$2,FALSE)/100), \"x\")","v":"x"},{"$f":"IFERROR((VLOOKUP($B11,Attainment,Attainment!$DI$2,FALSE)/100), \"x\")","v":"x"},{"$f":"IFERROR((VLOOKUP($B11,Attainment,Attainment!$DD$2,FALSE)/100), \"x\")","v":"x"},{"$f":"IFERROR((VLOOKUP($B11,Attainment,Attainment!$JL$2,FALSE)/100), \"x\")","v":"x"},{"$f":"IFERROR((VLOOKUP($B11,Attainment,Attainment!$JF$2,FALSE)/100), \"x\")","v":"x"},{"$f":"IFERROR((VLOOKUP($B11,Attainment,Attainment!$JM$2,FALSE)/100), \"x\")","v":"x"},{"$f":"IFERROR((VLOOKUP($B11,Attainment,Attainment!$JG$2,FALSE)/100), \"x\")","v":"x"},{"$f":"IFERROR((VLOOKUP($B11,Attainment,Attainment!$PK$2,FALSE)), \"x\")","v":"x"},{"$f":"IFERROR((VLOOKUP($B11,Attainment,Attainment!$PJ$2,FALSE)), \"x\")","v":"x"},{"$f":"IFERROR(((VLOOKUP($B11,Attainment,Attainment!$PC$2,FALSE))/100), \"x\")","v":"x"},{"$f":"IFERROR(((VLOOKUP(B11,Other_data,Other!$X$3,FALSE))/100), \"x\")","v":"x"},{"$f":"IFERROR(((VLOOKUP(B11,Other_data,Other!$KC$3,FALSE))/100), \"x\")","v":"x"},{"$f":"IFERROR((VLOOKUP($B11,Other_data,Other!$HX$3,FALSE)), \"x\")","v":"x"},{"$f":"IFERROR((VLOOKUP($B11,Other_data,Other!$IG$3,FALSE)), \"x\")","v":"x"},{"$f":"IFERROR((VLOOKUP($B11,Other_data,Other!$IM$3,FALSE)), \"x\")","v":"x"},{"$f":"IFERROR((VLOOKUP($B11,Other_data,Other!$IV$3,FALSE)), \"x\")","v":"x"},{"$f":"IFERROR((VLOOKUP($B11,Other_data,Other!$IY$3,FALSE)), \"x\")","v":"x"},{"$f":"IFERROR((VLOOKUP($B11,Other_data,Other!$JB$3,FALSE)), \"x\")","v":"x"},{"$f":"IFERROR((VLOOKUP($B11,Other_data,Other!$JE$3,FALSE)), \"x\")","v":"x"},{"$f":"IFERROR((VLOOKUP($B11,Other_data,Other!$JH$3,FALSE)), \"x\")","v":"x"}]
[5,{"$f":"VLOOKUP($B$7,Statistical_Neighbours,SN!$I$155,FALSE)","v":{"$error":"#N/A"}},{"$f":"VLOOKUP($B$7,Statistical_Neighbours,SN!$J$155,FALSE)","v":{"$error":"#N/A"}},{"$f":"VLOOKUP($B12,Neighbours_summary,('Data Summary'!D$3-1),FALSE)","v":{"$error":"#N/A"}},{"$f":"VLOOKUP($B12,Neighbours_summary,('Data Summary'!E$3-1),FALSE)","v":{"$error":"#N/A"}},{"$f":"VLOOKUP($B12,Neighbours_summary,('Data Summary'!F$3-1),FALSE)","v":{"$error":"#N/A"}},{"$f":"VLOOKUP($B12,Neighbours_summary,('Data Summary'!G$3-1),FALSE)","v":{"$error":"#N/A"}},{"$f":"VLOOKUP($B12,Neighbours_summary,('Data Summary'!H$3-1),FALSE)","v":{"$error":"#N/A"}},{"$f":"VLOOKUP($B12,Neighbours_summary,('Data Summary'!I$3-1),FALSE)","v":{"$error":"#N/A"}},{"$f":"VLOOKUP($B12,Neighbours_summary,('Data Summary'!J$3-1),FALSE)","v":{"$error":"#N/A"}},{"$f":"VLOOKUP($B12,Neighbours_summary,('Data Summary'!K$3-1),FALSE)","v":{"$error":"#N/A"}},{"$f":"VLOOKUP($B12,Neighbours_summary,('Data Summary'!L$3-1),FALSE)","v":{"$error":"#N/A"}},{"$f":"VLOOKUP($B12,Neighbours_summary,('Data Summary'!M$3-1),FALSE)","v":{"$error":"#N/A"}},{"$f":"VLOOKUP($B12,Neighbours_summary,('Data Summary'!N$3-1),FALSE)","v":{"$error":"#N/A"}},{"$f":"VLOOKUP($B12,Neighbours_summary,('Data Summary'!O$3-1),FALSE)","v":{"$error":"#N/A"}},{"$f":"VLOOKUP($B12,Neighbours_summary,('Data Summary'!P$3-1),FALSE)","v":{"$error":"#N/A"}},{"$f":"VLOOKUP($B12,Neighbours_summary,('Data Summary'!Q$3-1),FALSE)","v":{"$error":"#N/A"}},{"$f":"VLOOKUP($B12,Neighbours_summary,('Data Summary'!R$3-1),FALSE)","v":{"$error":"#N/A"}},{"$f":"VLOOKUP($B12,Neighbours_summary,('Data Summary'!S$3-1),FALSE)","v":{"$error":"#N/A"}},{"$f":"VLOOKUP($B12,Neighbours_summary,('Data Summary'!T$3-1),FALSE)","v":{"$error":"#N/A"}},{"$f":"VLOOKUP($B12,Neighbours_summary,('Data Summary'!U$3-1),FALSE)","v":{"$error":"#N/A"}},{"$f":"VLOOKUP($B12,Neighbours_summary,('Data Summary'!V$3-1),FALSE)","v":{"$error":"#N/A"}},{"$f":"VLOOKUP($B12,Neighbours_summary,('Data Summary'!W$3-1),FALSE)","v":{"$error":"#N/A"}},{"$f":"VLOOKUP($B12,Neighbours_summary,('Data Summary'!X$3-1),FALSE)","v":{"$error":"#N/A"}},{"$f":"VLOOKUP($B12,Neighbours_summary,('Data Summary'!Y$3-1),FALSE)","v":{"$error":"#N/A"}},{"$f":"VLOOKUP($B12,Neighbours_summary,('Data Summary'!Z$3-1),FALSE)","v":{"$error":"#N/A"}},{"$f":"(VLOOKUP($B12,Neighbours_summary,('Data Summary'!AA$3-1),FALSE))/1000000","v":{"$error":"#N/A"}},{"$f":"VLOOKUP($B12,Neighbours_summary,('Data Summary'!AB$3-1),FALSE)","v":{"$error":"#N/A"}},{"$f":"VLOOKUP($B12,Neighbours_summary,('Data Summary'!AC$3-1),FALSE)","v":{"$error":"#N/A"}},{"$f":"(VLOOKUP($B12,Neighbours_summary,('Data Summary'!AD$3-1),FALSE))/1000000","v":{"$error":"#N/A"}},{"$f":"VLOOKUP($B12,Neighbours_summary,('Data Summary'!AE$3-1),FALSE)","v":{"$error":"#N/A"}},{"$f":"VLOOKUP($B12,Neighbours_summary,('Data Summary'!AF$3-1),FALSE)","v":{"$error":"#N/A"}},{"$f":"(VLOOKUP($B12,Neighbours_summary,('Data Summary'!AG$3-1),FALSE))/1000000","v":{"$error":"#N/A"}},{"$f":"VLOOKUP($B12,Neighbours_summary,('Data Summary'!AH$3-1),FALSE)","v":{"$error":"#N/A"}},{"$f":"VLOOKUP($B12,Neighbours_summary,('Data Summary'!AI$3-1),FALSE)","v":{"$error":"#N/A"}},{"$f":"(VLOOKUP($B12,Neighbours_summary,('Data Summary'!AJ$3-1),FALSE))/1000000","v":{"$error":"#N/A"}},{"$f":"VLOOKUP($B12,Neighbours_summary,('Data Summary'!AK$3-1),FALSE)","v":{"$error":"#N/A"}},null,{"$f":"(VLOOKUP($B12,Neighbours_summary,('Data Summary'!AM$3-1),FALSE))/1000000","v":{"$error":"#N/A"}},{"$f":"VLOOKUP($B12,Neighbours_summary,('Data Summary'!AN$3-1),FALSE)","v":{"$error":"#N/A"}},{"$f":"VLOOKUP($B12,Neighbours_summary,('Data Summary'!AO$3-1),FALSE)","v":{"$error":"#N/A"}},{"$f":"(VLOOKUP($B12,Neighbours_summary,('Data Summary'!AP$3-1),FALSE))/1000000","v":{"$error":"#N/A"}},{"$f":"VLOOKUP($B12,Neighbours_summary,('Data Summary'!AQ$3-1),FALSE)","v":{"$error":"#N/A"}},{"$f":"VLOOKUP($B12,Neighbours_summary,('Data Summary'!AR$3-1),FALSE)","v":{"$error":"#N/A"}},{"$f":"(VLOOKUP($B12,Neighbours_summary,('Data Summary'!AS$3-1),FALSE))/1000000","v":{"$error":"#N/A"}},{"$f":"VLOOKUP($B12,Neighbours_summary,('Data Summary'!AT$3-1),FALSE)","v":{"$error":"#N/A"}},{"$f":"VLOOKUP($B12,Neighbours_summary,('Data Summary'!AU$3-1),FALSE)","v":{"$error":"#N/A"}},{"$f":"(VLOOKUP($B12,Neighbours_summary,('Data Summary'!AV$3-1),FALSE))/1000000","v":{"$error":"#N/A"}},{"$f":"VLOOKUP($B12,Neighbours_summary,('Data Summary'!AW$3-1),FALSE)","v":{"$error":"#N/A"}},{"$f":"VLOOKUP($B12,Neighbours_summary,('Data Summary'!AX$3-1),FALSE)","v":{"$error":"#N/A"}},{"$f":"(VLOOKUP($B12,Neighbours_summary,('Data Summary'!AY$3-1),FALSE))/1000000","v":{"$error":"#N/A"}},{"$f":"VLOOKUP($B12,Neighbours_summary,('Data Summary'!AZ$3-1),FALSE)","v":{"$error":"#N/A"}},{"$f":"VLOOKUP($B12,Neighbours_summary,('Data Summary'!BA$3-1),FALSE)","v":{"$error":"#N/A"}},{"$f":"(VLOOKUP($B12,Neighbours_summary,('Data Summary'!BB$3-1),FALSE))/1000000","v":{"$error":"#N/A"}},{"$f":"VLOOKUP($B12,Neighbours_summary,('Data Summary'!BC$3-1),FALSE)","v":{"$error":"#N/A"}},{"$f":"VLOOKUP($B12,Neighbours_summary,('Data Summary'!BD$3-1),FALSE)","v":{"$error":"#N/A"}},{"$f":"(VLOOKUP($B12,Neighbours_summary,('Data Summary'!BE$3-1),FALSE))/1000000","v":{"$error":"#N/A"}},{"$f":"VLOOKUP($B12,Neighbours_summary,('Data Summary'!BF$3-1),FALSE)","v":{"$error":"#N/A"}},{"$f":"VLOOKUP($B12,Neighbours_summary,('Data Summary'!BG$3-1),FALSE)","v":{"$error":"#N/A"}},{"$f":"VLOOKUP($B12,Neighbours_summary,('Data Summary'!BH$3-1),FALSE)/1000000","v":{"$error":"#N/A"}},{"$f":"VLOOKUP($B12,Neighbours_summary,('Data Summary'!BI$3-1),FALSE)","v":{"$error":"#N/A"}},{"$f":"VLOOKUP($B12,Neighbours_summary,('Data Summary'!BJ$3-1),FALSE)","v":{"$error":"#N/A"}},{"$f":"(VLOOKUP($B12,Neighbours_summary,('Data Summary'!BK$3-1),FALSE))/1000000","v":{"$error":"#N/A"}},{"$f":"VLOOKUP($B12,Neighbours_summary,('Data Summary'!BL$3-1),FALSE)","v":{"$error":"#N/A"}},{"$f":"VLOOKUP($B12,Neighbours_summary,('Data Summary'!BM$3-1),FALSE)","v":{"$error":"#N/A"}},{"$f":"(VLOOKUP($B12,Neighbours_summary,('Data Summary'!BN$3-1),FALSE))/1000000","v":{"$error":"#N/A"}},{"$f":"VLOOKUP($B12,Neighbours_summary,('Data Summary'!BO$3-1),FALSE)","v":{"$error":"#N/A"}},{"$f":"VLOOKUP($B12,Neighbours_summary,('Data Summary'!BP$3-1),FALSE)","v":{"$error":"#N/A"}},{"$f":"(VLOOKUP($B12,Neighbours_summary,('Data Summary'!BQ$3-1),FALSE))/1000000","v":{"$error":"#N/A"}},{"$f":"VLOOKUP($B12,Neighbours_summary,('Data Summary'!BR$3-1),FALSE)","v":{"$error":"#N/A"}},{"$f":"VLOOKUP($B12,Neighbours_summary,('Data Summary'!BS$3-1),FALSE)","v":{"$error":"#N/A"}},{"$f":"VLOOKUP($B12,Neighbours_summary,('Data Summary'!BT$3-1),FALSE)","v":{"$error":"#N/A"}},{"$f":"VLOOKUP($B12,Neighbours_summary,('Data Summary'!BU$3-1),FALSE)","v":{"$error":"#N/A"}},{"$f":"VLOOKUP($B12,Neighbours_summary,('Data Summary'!BV$3-1),FALSE)","v":{"$error":"#N/A"}},{"$f":"VLOOKUP($B12,Neighbours_summary,('Data Summary'!BW$3-1),FALSE)","v":{"$error":"#N/A"}},{"$f":"VLOOKUP($B12,Neighbours_summary,('Data Summary'!BX$3-1),FALSE)","v":{"$error":"#N/A"}},{"$f":"VLOOKUP($B12,Neighbours_summary,('Data Summary'!BY$3-1),FALSE)","v":{"$error":"#N/A"}},{"$f":"IFERROR((VLOOKUP($B12,Attainment,Attainment!$OR$2,FALSE)/100), \"x\")","v":"x"},{"$f":"IFERROR((VLOOKUP($B12,Attainment,Attainment!$OE$2,FALSE)/100), \"x\")","v":"x"},{"$f":"IFERROR((VLOOKUP($B12,Attainment,Attainment!$NR$2,FALSE)/100), \"x\")","v":"x"},{"$f":"IFERROR((VLOOKUP($B12,Attainment,Attainment!$NE$2,FALSE)/100), \"x\")","v":"x"},{"$f":"IFERROR((VLOOKUP($B12,Attainment,Attainment!$MR$2,FALSE)/100), \"x\")","v":"x"},{"$f":"IFERROR((VLOOKUP($B12,Attainment,Attainment!$OT$2,FALSE)/100), \"x\")","v":"x"},{"$f":"IFERROR((VLOOKUP($B12,Attainment,Attainment!$OG$2,FALSE)/100), \"x\")","v":"x"},{"$f":"IFERROR((VLOOKUP($B12,Attainment,Attainment!$NT$2,FALSE)/100), \"x\")","v":"x"},{"$f":"IFERROR((VLOOKUP($B12,Attainment,Attainment!$NG$2,FALSE)/100), \"x\")","v":"x"},{"$f":"IFERROR((VLOOKUP($B12,Attainment,Attainment!$MT$2,FALSE)/100), \"x\")","v":"x"},{"$f":"IFERROR((VLOOKUP($B12,Attainment,Attainment!$S$2,FALSE)/100), \"x\")","v":"x"},{"$f":"IFERROR((VLOOKUP($B12,Attainment,Attainment!$O$2,FALSE)/100), \"x\")","v":"x"},{"$f":"IFERROR((VLOOKUP($B12,Attainment,Attainment!$BI$2,FALSE)/100), \"x\")","v":"x"},{"$f":"IFERROR((VLOOKUP($B12,Attainment,Attainment!$BG$2,FALSE)/100), \"x\")","v":"x"},{"$f":"IFERROR((VLOOKUP($B12,Attainment,Attainment!$DF$2,FALSE)/100), \"x\")","v":"x"},{"$f":"IFERROR((VLOOKUP($B12,Attainment,Attainment!$DA$2,FALSE)/100), \"x\")","v":"x"},{"$f":"IFERROR((VLOOKUP($B12,Attainment,Attainment!$DG$2,FALSE)/100), \"x\")","v":"x"},{"$f":"IFERROR((VLOOKUP($B12,Attainment,Attainment!$DB$2,FALSE)/100), \"x\")","v":"x"},{"$f":"IFERROR((VLOOKUP($B12,Attainment,Attainment!$DH$2,FALSE)/100), \"x\")","v":"x"},{"$f":"IFERROR((VLOOKUP($B12,Attainment,Attainment!$DC$2,FALSE)/100), \"x\")","v":"x"},{"$f":"IFERROR((VLOOKUP($B12,Attainment,Attainment!$DI$2,FALSE)/100), \"x\")","v":"x"},{"$f":"IFERROR((VLOOKUP($B12,Attainment,Attainment!$DD$2,FALSE)/100), \"x\")","v":"x"},{"$f":"IFERROR((VLOOKUP($B12,Attainment,Attainment!$JL$2,FALSE)/100), \"x\")","v":"x"},{"$f":"IFERROR((VLOOKUP($B12,Attainment,Attainment!$JF$2,FALSE)/100), \"x\")","v":"x"},{"$f":"IFERROR((VLOOKUP($B12,Attainment,Attainment!$JM$2,FALSE)/100), \"x\")","v":"x"},{"$f":"IFERROR((VLOOKUP($B12,Attainment,Attainment!$JG$2,FALSE)/100), \"x\")","v":"x"},{"$f":"IFERROR((VLOOKUP($B12,Attainment,Attainment!$PK$2,FALSE)), \"x\")","v":"x"},{"$f":"IFERROR((VLOOKUP($B12,Attainment,Attainment!$PJ$2,FALSE)), \"x\")","v":"x"},{"$f":"IFERROR(((VLOOKUP($B12,Attainment,Attainment!$PC$2,FALSE))/100), \"x\")","v":"x"},{"$f":"IFERROR(((VLOOKUP(B12,Other_data,Other!$X$3,FALSE))/100), \"x\")","v":"x"},{"$f":"IFERROR(((VLOOKUP(B12,Other_data,Other!$KC$3,FALSE))/100), \"x\")","v":"x"},{"$f":"IFERROR((VLOOKUP($B12,Other_data,Other!$HX$3,FALSE)), \"x\")","v":"x"},{"$f":"IFERROR((VLOOKUP($B12,Other_data,Other!$IG$3,FALSE)), \"x\")","v":"x"},{"$f":"IFERROR((VLOOKUP($B12,Other_data,Other!$IM$3,FALSE)), \"x\")","v":"x"},{"$f":"IFERROR((VLOOKUP($B12,Other_data,Other!$IV$3,FALSE)), \"x\")","v":"x"},{"$f":"IFERROR((VLOOKUP($B12,Other_data,Other!$IY$3,FALSE)), \"x\")","v":"x"},{"$f":"IFERROR((VLOOKUP($B12,Other_data,Other!$JB$3,FALSE)), \"x\")","v":"x"},{"$f":"IFERROR((VLOOKUP($B12,Other_data,Other!$JE$3,FALSE)), \"x\")","v":"x"},{"$f":"IFERROR((VLOOKUP($B12,Other_data,Other!$JH$3,FALSE)), \"x\")","v":"x"}]
[6,{"$f":"VLOOKUP($B$7,Statistical_Neighbours,SN!$K$155,FALSE)","v":{"$error":"#N/A"}},{"$f":"VLOOKUP($B$7,Statistical_Neighbours,SN!$L$155,FALSE)","v":{"$error":"#N/A"}},{"$f":"VLOOKUP($B13,Neighbours_summary,('Data Summary'!D$3-1),FALSE)","v":{"$error":"#N/A"}},{"$f":"VLOOKUP($B13,Neighbours_summary,('Data Summary'!E$3-1),FALSE)","v":{"$error":"#N/A"}},{"$f":"VLOOKUP($B13,Neighbours_summary,('Data Summary'!F$3-1),FALSE)","v":{"$error":"#N/A"}},{"$f":"VLOOKUP($B13,Neighbours_summary,('Data Summary'!G$3-1),FALSE)","v":{"$error":"#N/A"}},{"$f":"VLOOKUP($B13,Neighbours_summary,('Data Summary'!H$3-1),FALSE)","v":{"$error":"#N/A"}},{"$f":"VLOOKUP($B13,Neighbours_summary,('Data Summary'!I$3-1),FALSE)","v":{"$error":"#N/A"}},{"$f":"VLOOKUP($B13,Neighbours_summary,('Data Summary'!J$3-1),FALSE)","v":{"$error":"#N/A"}},{"$f":"VLOOKUP($B13,Neighbours_summary,('Data Summary'!K$3-1),FALSE)","v":{"$error":"#N/A"}},{"$f":"VLOOKUP($B13,Neighbours_summary,('Data Summary'!L$3-1),FALSE)","v":{"$error":"#N/A"}},{"$f":"VLOOKUP($B13,Neighbours_summary,('Data Summary'!M$3-1),FALSE)","v":{"$error":"#N/A"}},{"$f":"VLOOKUP($B13,Neighbours_summary,('Data Summary'!N$3-1),FALSE)","v":{"$error":"#N/A"}},{"$f":"VLOOKUP($B13,Neighbours_summary,('Data Summary'!O$3-1),FALSE)","v":{"$error":"#N/A"}},{"$f":"VLOOKUP($B13,Neighbours_summary,('Data Summary'!P$3-1),FALSE)","v":{"$error":"#N/A"}},{"$f":"VLOOKUP($B13,Neighbours_summary,('Data Summary'!Q$3-1),FALSE)","v":{"$error":"#N/A"}},{"$f":"VLOOKUP($B13,Neighbours_summary,('Data Summary'!R$3-1),FALSE)","v":{"$error":"#N/A"}},{"$f":"VLOOKUP($B13,Neighbours_summary,('Data Summary'!S$3-1),FALSE)","v":{"$error":"#N/A"}},{"$f":"VLOOKUP($B13,Neighbours_summary,('Data Summary'!T$3-1),FALSE)","v":{"$error":"#N/A"}},{"$f":"VLOOKUP($B13,Neighbours_summary,('Data Summary'!U$3-1),FALSE)","v":{"$error":"#N/A"}},{"$f":"VLOOKUP($B13,Neighbours_summary,('Data Summary'!V$3-1),FALSE)","v":{"$error":"#N/A"}},{"$f":"VLOOKUP($B13,Neighbours_summary,('Data Summary'!W$3-1),FALSE)","v":{"$error":"#N/A"}},{"$f":"VLOOKUP($B13,Neighbours_summary,('Data Summary'!X$3-1),FALSE)","v":{"$error":"#N/A"}},{"$f":"VLOOKUP($B13,Neighbours_summary,('Data Summary'!Y$3-1),FALSE)","v":{"$error":"#N/A"}},{"$f":"VLOOKUP($B13,Neighbours_summary,('Data Summary'!Z$3-1),FALSE)","v":{"$error":"#N/A"}},{"$f":"(VLOOKUP($B13,Neighbours_summary,('Data Summary'!AA$3-1),FALSE))/1000000","v":{"$error":"#N/A"}},{"$f":"VLOOKUP($B13,Neighbours_summary,('Data Summary'!AB$3-1),FALSE)","v":{"$error":"#N/A"}},{"$f":"VLOOKUP($B13,Neighbours_summary,('Data Summary'!AC$3-1),FALSE)","v":{"$error":"#N/A"}},{"$f":"(VLOOKUP($B13,Neighbours_summary,('Data Summary'!AD$3-1),FALSE))/1000000","v":{"$error":"#N/A"}},{"$f":"VLOOKUP($B13,Neighbours_summary,('Data Summary'!AE$3-1),FALSE)","v":{"$error":"#N/A"}},{"$f":"VLOOKUP($B13,Neighbours_summary,('Data Summary'!AF$3-1),FALSE)","v":{"$error":"#N/A"}},{"$f":"(VLOOKUP($B13,Neighbours_summary,('Data Summary'!AG$3-1),FALSE))/1000000","v":{"$error":"#N/A"}},{"$f":"VLOOKUP($B13,Neighbours_summary,('Data Summary'!AH$3-1),FALSE)","v":{"$error":"#N/A"}},{"$f":"VLOOKUP($B13,Neighbours_summary,('Data Summary'!AI$3-1),FALSE)","v":{"$error":"#N/A"}},{"$f":"(VLOOKUP($B13,Neighbours_summary,('Data Summary'!AJ$3-1),FALSE))/1000000","v":{"$error":"#N/A"}},{"$f":"VLOOKUP($B13,Neighbours_summary,('Data Summary'!AK$3-1),FALSE)","v":{"$error":"#N/A"}},null,{"$f":"(VLOOKUP($B13,Neighbours_summary,('Data Summary'!AM$3-1),FALSE))/1000000","v":{"$error":"#N/A"}},{"$f":"VLOOKUP($B13,Neighbours_summary,('Data Summary'!AN$3-1),FALSE)","v":{"$error":"#N/A"}},{"$f":"VLOOKUP($B13,Neighbours_summary,('Data Summary'!AO$3-1),FALSE)","v":{"$error":"#N/A"}},{"$f":"(VLOOKUP($B13,Neighbours_summary,('Data Summary'!AP$3-1),FALSE))/1000000","v":{"$error":"#N/A"}},{"$f":"VLOOKUP($B13,Neighbours_summary,('Data Summary'!AQ$3-1),FALSE)","v":{"$error":"#N/A"}},{"$f":"VLOOKUP($B13,Neighbours_summary,('Data Summary'!AR$3-1),FALSE)","v":{"$error":"#N/A"}},{"$f":"(VLOOKUP($B13,Neighbours_summary,('Data Summary'!AS$3-1),FALSE))/1000000","v":{"$error":"#N/A"}},{"$f":"VLOOKUP($B13,Neighbours_summary,('Data Summary'!AT$3-1),FALSE)","v":{"$error":"#N/A"}},{"$f":"VLOOKUP($B13,Neighbours_summary,('Data Summary'!AU$3-1),FALSE)","v":{"$error":"#N/A"}},{"$f":"(VLOOKUP($B13,Neighbours_summary,('Data Summary'!AV$3-1),FALSE))/1000000","v":{"$error":"#N/A"}},{"$f":"VLOOKUP($B13,Neighbours_summary,('Data Summary'!AW$3-1),FALSE)","v":{"$error":"#N/A"}},{"$f":"VLOOKUP($B13,Neighbours_summary,('Data Summary'!AX$3-1),FALSE)","v":{"$error":"#N/A"}},{"$f":"(VLOOKUP($B13,Neighbours_summary,('Data Summary'!AY$3-1),FALSE))/1000000","v":{"$error":"#N/A"}},{"$f":"VLOOKUP($B13,Neighbours_summary,('Data Summary'!AZ$3-1),FALSE)","v":{"$error":"#N/A"}},{"$f":"VLOOKUP($B13,Neighbours_summary,('Data Summary'!BA$3-1),FALSE)","v":{"$error":"#N/A"}},{"$f":"(VLOOKUP($B13,Neighbours_summary,('Data Summary'!BB$3-1),FALSE))/1000000","v":{"$error":"#N/A"}},{"$f":"VLOOKUP($B13,Neighbours_summary,('Data Summary'!BC$3-1),FALSE)","v":{"$error":"#N/A"}},{"$f":"VLOOKUP($B13,Neighbours_summary,('Data Summary'!BD$3-1),FALSE)","v":{"$error":"#N/A"}},{"$f":"(VLOOKUP($B13,Neighbours_summary,('Data Summary'!BE$3-1),FALSE))/1000000","v":{"$error":"#N/A"}},{"$f":"VLOOKUP($B13,Neighbours_summary,('Data Summary'!BF$3-1),FALSE)","v":{"$error":"#N/A"}},{"$f":"VLOOKUP($B13,Neighbours_summary,('Data Summary'!BG$3-1),FALSE)","v":{"$error":"#N/A"}},{"$f":"VLOOKUP($B13,Neighbours_summary,('Data Summary'!BH$3-1),FALSE)/1000000","v":{"$error":"#N/A"}},{"$f":"VLOOKUP($B13,Neighbours_summary,('Data Summary'!BI$3-1),FALSE)","v":{"$error":"#N/A"}},{"$f":"VLOOKUP($B13,Neighbours_summary,('Data Summary'!BJ$3-1),FALSE)","v":{"$error":"#N/A"}},{"$f":"(VLOOKUP($B13,Neighbours_summary,('Data Summary'!BK$3-1),FALSE))/1000000","v":{"$error":"#N/A"}},{"$f":"VLOOKUP($B13,Neighbours_summary,('Data Summary'!BL$3-1),FALSE)","v":{"$error":"#N/A"}},{"$f":"VLOOKUP($B13,Neighbours_summary,('Data Summary'!BM$3-1),FALSE)","v":{"$error":"#N/A"}},{"$f":"(VLOOKUP($B13,Neighbours_summary,('Data Summary'!BN$3-1),FALSE))/1000000","v":{"$error":"#N/A"}},{"$f":"VLOOKUP($B13,Neighbours_summary,('Data Summary'!BO$3-1),FALSE)","v":{"$error":"#N/A"}},{"$f":"VLOOKUP($B13,Neighbours_summary,('Data Summary'!BP$3-1),FALSE)","v":{"$error":"#N/A"}},{"$f":"(VLOOKUP($B13,Neighbours_summary,('Data Summary'!BQ$3-1),FALSE))/1000000","v":{"$error":"#N/A"}},{"$f":"VLOOKUP($B13,Neighbours_summary,('Data Summary'!BR$3-1),FALSE)","v":{"$error":"#N/A"}},{"$f":"VLOOKUP($B13,Neighbours_summary,('Data Summary'!BS$3-1),FALSE)","v":{"$error":"#N/A"}},{"$f":"VLOOKUP($B13,Neighbours_summary,('Data Summary'!BT$3-1),FALSE)","v":{"$error":"#N/A"}},{"$f":"VLOOKUP($B13,Neighbours_summary,('Data Summary'!BU$3-1),FALSE)","v":{"$error":"#N/A"}},{"$f":"VLOOKUP($B13,Neighbours_summary,('Data Summary'!BV$3-1),FALSE)","v":{"$error":"#N/A"}},{"$f":"VLOOKUP($B13,Neighbours_summary,('Data Summary'!BW$3-1),FALSE)","v":{"$error":"#N/A"}},{"$f":"VLOOKUP($B13,Neighbours_summary,('Data Summary'!BX$3-1),FALSE)","v":{"$error":"#N/A"}},{"$f":"VLOOKUP($B13,Neighbours_summary,('Data Summary'!BY$3-1),FALSE)","v":{"$error":"#N/A"}},{"$f":"IFERROR((VLOOKUP($B13,Attainment,Attainment!$OR$2,FALSE)/100), \"x\")","v":"x"},{"$f":"IFERROR((VLOOKUP($B13,Attainment,Attainment!$OE$2,FALSE)/100), \"x\")","v":"x"},{"$f":"IFERROR((VLOOKUP($B13,Attainment,Attainment!$NR$2,FALSE)/100), \"x\")","v":"x"},{"$f":"IFERROR((VLOOKUP($B13,Attainment,Attainment!$NE$2,FALSE)/100), \"x\")","v":"x"},{"$f":"IFERROR((VLOOKUP($B13,Attainment,Attainment!$MR$2,FALSE)/100), \"x\")","v":"x"},{"$f":"IFERROR((VLOOKUP($B13,Attainment,Attainment!$OT$2,FALSE)/100), \"x\")","v":"x"},{"$f":"IFERROR((VLOOKUP($B13,Attainment,Attainment!$OG$2,FALSE)/100), \"x\")","v":"x"},{"$f":"IFERROR((VLOOKUP($B13,Attainment,Attainment!$NT$2,FALSE)/100), \"x\")","v":"x"},{"$f":"IFERROR((VLOOKUP($B13,Attainment,Attainment!$NG$2,FALSE)/100), \"x\")","v":"x"},{"$f":"IFERROR((VLOOKUP($B13,Attainment,Attainment!$MT$2,FALSE)/100), \"x\")","v":"x"},{"$f":"IFERROR((VLOOKUP($B13,Attainment,Attainment!$S$2,FALSE)/100), \"x\")","v":"x"},{"$f":"IFERROR((VLOOKUP($B13,Attainment,Attainment!$O$2,FALSE)/100), \"x\")","v":"x"},{"$f":"IFERROR((VLOOKUP($B13,Attainment,Attainment!$BI$2,FALSE)/100), \"x\")","v":"x"},{"$f":"IFERROR((VLOOKUP($B13,Attainment,Attainment!$BG$2,FALSE)/100), \"x\")","v":"x"},{"$f":"IFERROR((VLOOKUP($B13,Attainment,Attainment!$DF$2,FALSE)/100), \"x\")","v":"x"},{"$f":"IFERROR((VLOOKUP($B13,Attainment,Attainment!$DA$2,FALSE)/100), \"x\")","v":"x"},{"$f":"IFERROR((VLOOKUP($B13,Attainment,Attainment!$DG$2,FALSE)/100), \"x\")","v":"x"},{"$f":"IFERROR((VLOOKUP($B13,Attainment,Attainment!$DB$2,FALSE)/100), \"x\")","v":"x"},{"$f":"IFERROR((VLOOKUP($B13,Attainment,Attainment!$DH$2,FALSE)/100), \"x\")","v":"x"},{"$f":"IFERROR((VLOOKUP($B13,Attainment,Attainment!$DC$2,FALSE)/100), \"x\")","v":"x"},{"$f":"IFERROR((VLOOKUP($B13,Attainment,Attainment!$DI$2,FALSE)/100), \"x\")","v":"x"},{"$f":"IFERROR((VLOOKUP($B13,Attainment,Attainment!$DD$2,FALSE)/100), \"x\")","v":"x"},{"$f":"IFERROR((VLOOKUP($B13,Attainment,Attainment!$JL$2,FALSE)/100), \"x\")","v":"x"},{"$f":"IFERROR((VLOOKUP($B13,Attainment,Attainment!$JF$2,FALSE)/100), \"x\")","v":"x"},{"$f":"IFERROR((VLOOKUP($B13,Attainment,Attainment!$JM$2,FALSE)/100), \"x\")","v":"x"},{"$f":"IFERROR((VLOOKUP($B13,Attainment,Attainment!$JG$2,FALSE)/100), \"x\")","v":"x"},{"$f":"IFERROR((VLOOKUP($B13,Attainment,Attainment!$PK$2,FALSE)), \"x\")","v":"x"},{"$f":"IFERROR((VLOOKUP($B13,Attainment,Attainment!$PJ$2,FALSE)), \"x\")","v":"x"},{"$f":"IFERROR(((VLOOKUP($B13,Attainment,Attainment!$PC$2,FALSE))/100), \"x\")","v":"x"},{"$f":"IFERROR(((VLOOKUP(B13,Other_data,Other!$X$3,FALSE))/100), \"x\")","v":"x"},{"$f":"IFERROR(((VLOOKUP(B13,Other_data,Other!$KC$3,FALSE))/100), \"x\")","v":"x"},{"$f":"IFERROR((VLOOKUP($B13,Other_data,Other!$HX$3,FALSE)), \"x\")","v":"x"},{"$f":"IFERROR((VLOOKUP($B13,Other_data,Other!$IG$3,FALSE)), \"x\")","v":"x"},{"$f":"IFERROR((VLOOKUP($B13,Other_data,Other!$IM$3,FALSE)), \"x\")","v":"x"},{"$f":"IFERROR((VLOOKUP($B13,Other_data,Other!$IV$3,FALSE)), \"x\")","v":"x"},{"$f":"IFERROR((VLOOKUP($B13,Other_data,Other!$IY$3,FALSE)), \"x\")","v":"x"},{"$f":"IFERROR((VLOOKUP($B13,Other_data,Other!$JB$3,FALSE)), \"x\")","v":"x"},{"$f":"IFERROR((VLOOKUP($B13,Other_data,Other!$JE$3,FALSE)), \"x\")","v":"x"},{"$f":"IFERROR((VLOOKUP($B13,Other_data,Other!$JH$3,FALSE)), \"x\")","v":"x"}]
[7,{"$f":"VLOOKUP($B$7,Statistical_Neighbours,SN!$M$155,FALSE)","v":{"$error":"#N/A"}},{"$f":"VLOOKUP($B$7,Statistical_Neighbours,SN!$N$155,FALSE)","v":{"$error":"#N/A"}},{"$f":"VLOOKUP($B14,Neighbours_summary,('Data Summary'!D$3-1),FALSE)","v":{"$error":"#N/A"}},{"$f":"VLOOKUP($B14,Neighbours_summary,('Data Summary'!E$3-1),FALSE)","v":{"$error":"#N/A"}},{"$f":"VLOOKUP($B14,Neighbours_summary,('Data Summary'!F$3-1),FALSE)","v":{"$error":"#N/A"}},{"$f":"VLOOKUP($B14,Neighbours_summary,('Data Summary'!G$3-1),FALSE)","v":{"$error":"#N/A"}},{"$f":"VLOOKUP($B14,Neighbours_summary,('Data Summary'!H$3-1),FALSE)","v":{"$error":"#N/A"}},{"$f":"VLOOKUP($B14,Neighbours_summary,('Data Summary'!I$3-1),FALSE)","v":{"$error":"#N/A"}},{"$f":"VLOOKUP($B14,Neighbours_summary,('Data Summary'!J$3-1),FALSE)","v":{"$error":"#N/A"}},{"$f":"VLOOKUP($B14,Neighbours_summary,('Data Summary'!K$3-1),FALSE)","v":{"$error":"#N/A"}},{"$f":"VLOOKUP($B14,Neighbours_summary,('Data Summary'!L$3-1),FALSE)","v":{"$error":"#N/A"}},{"$f":"VLOOKUP($B14,Neighbours_summary,('Data Summary'!M$3-1),FALSE)","v":{"$error":"#N/A"}},{"$f":"VLOOKUP($B14,Neighbours_summary,('Data Summary'!N$3-1),FALSE)","v":{"$error":"#N/A"}},{"$f":"VLOOKUP($B14,Neighbours_summary,('Data Summary'!O$3-1),FALSE)","v":{"$error":"#N/A"}},{"$f":"VLOOKUP($B14,Neighbours_summary,('Data Summary'!P$3-1),FALSE)","v":{"$error":"#N/A"}},{"$f":"VLOOKUP($B14,Neighbours_summary,('Data Summary'!Q$3-1),FALSE)","v":{"$error":"#N/A"}},{"$f":"VLOOKUP($B14,Neighbours_summary,('Data Summary'!R$3-1),FALSE)","v":{"$error":"#N/A"}},{"$f":"VLOOKUP($B14,Neighbours_summary,('Data Summary'!S$3-1),FALSE)","v":{"$error":"#N/A"}},{"$f":"VLOOKUP($B14,Neighbours_summary,('Data Summary'!T$3-1),FALSE)","v":{"$error":"#N/A"}},{"$f":"VLOOKUP($B14,Neighbours_summary,('Data Summary'!U$3-1),FALSE)","v":{"$error":"#N/A"}},{"$f":"VLOOKUP($B14,Neighbours_summary,('Data Summary'!V$3-1),FALSE)","v":{"$error":"#N/A"}},{"$f":"VLOOKUP($B14,Neighbours_summary,('Data Summary'!W$3-1),FALSE)","v":{"$error":"#N/A"}},{"$f":"VLOOKUP($B14,Neighbours_summary,('Data Summary'!X$3-1),FALSE)","v":{"$error":"#N/A"}},{"$f":"VLOOKUP($B14,Neighbours_summary,('Data Summary'!Y$3-1),FALSE)","v":{"$error":"#N/A"}},{"$f":"VLOOKUP($B14,Neighbours_summary,('Data Summary'!Z$3-1),FALSE)","v":{"$error":"#N/A"}},{"$f":"(VLOOKUP($B14,Neighbours_summary,('Data Summary'!AA$3-1),FALSE))/1000000","v":{"$error":"#N/A"}},{"$f":"VLOOKUP($B14,Neighbours_summary,('Data Summary'!AB$3-1),FALSE)","v":{"$error":"#N/A"}},{"$f":"VLOOKUP($B14,Neighbours_summary,('Data Summary'!AC$3-1),FALSE)","v":{"$error":"#N/A"}},{"$f":"(VLOOKUP($B14,Neighbours_summary,('Data Summary'!AD$3-1),FALSE))/1000000","v":{"$error":"#N/A"}},{"$f":"VLOOKUP($B14,Neighbours_summary,('Data Summary'!AE$3-1),FALSE)","v":{"$error":"#N/A"}},{"$f":"VLOOKUP($B14,Neighbours_summary,('Data Summary'!AF$3-1),FALSE)","v":{"$error":"#N/A"}},{"$f":"(VLOOKUP($B14,Neighbours_summary,('Data Summary'!AG$3-1),FALSE))/1000000","v":{"$error":"#N/A"}},{"$f":"VLOOKUP($B14,Neighbours_summary,('Data Summary'!AH$3-1),FALSE)","v":{"$error":"#N/A"}},{"$f":"VLOOKUP($B14,Neighbours_summary,('Data Summary'!AI$3-1),FALSE)","v":{"$error":"#N/A"}},{"$f":"(VLOOKUP($B14,Neighbours_summary,('Data Summary'!AJ$3-1),FALSE))/1000000","v":{"$error":"#N/A"}},{"$f":"VLOOKUP($B14,Neighbours_summary,('Data Summary'!AK$3-1),FALSE)","v":{"$error":"#N/A"}},null,{"$f":"(VLOOKUP($B14,Neighbours_summary,('Data Summary'!AM$3-1),FALSE))/1000000","v":{"$error":"#N/A"}},{"$f":"VLOOKUP($B14,Neighbours_summary,('Data Summary'!AN$3-1),FALSE)","v":{"$error":"#N/A"}},{"$f":"VLOOKUP($B14,Neighbours_summary,('Data Summary'!AO$3-1),FALSE)","v":{"$error":"#N/A"}},{"$f":"(VLOOKUP($B14,Neighbours_summary,('Data Summary'!AP$3-1),FALSE))/1000000","v":{"$error":"#N/A"}},{"$f":"VLOOKUP($B14,Neighbours_summary,('Data Summary'!AQ$3-1),FALSE)","v":{"$error":"#N/A"}},{"$f":"VLOOKUP($B14,Neighbours_summary,('Data Summary'!AR$3-1),FALSE)","v":{"$error":"#N/A"}},{"$f":"(VLOOKUP($B14,Neighbours_summary,('Data Summary'!AS$3-1),FALSE))/1000000","v":{"$error":"#N/A"}},{"$f":"VLOOKUP($B14,Neighbours_summary,('Data Summary'!AT$3-1),FALSE)","v":{"$error":"#N/A"}},{"$f":"VLOOKUP($B14,Neighbours_summary,('Data Summary'!AU$3-1),FALSE)","v":{"$error":"#N/A"}},{"$f":"(VLOOKUP($B14,Neighbours_summary,('Data Summary'!AV$3-1),FALSE))/1000000","v":{"$error":"#N/A"}},{"$f":"VLOOKUP($B14,Neighbours_summary,('Data Summary'!AW$3-1),FALSE)","v":{"$error":"#N/A"}},{"$f":"VLOOKUP($B14,Neighbours_summary,('Data Summary'!AX$3-1),FALSE)","v":{"$error":"#N/A"}},{"$f":"(VLOOKUP($B14,Neighbours_summary,('Data Summary'!AY$3-1),FALSE))/1000000","v":{"$error":"#N/A"}},{"$f":"VLOOKUP($B14,Neighbours_summary,('Data Summary'!AZ$3-1),FALSE)","v":{"$error":"#N/A"}},{"$f":"VLOOKUP($B14,Neighbours_summary,('Data Summary'!BA$3-1),FALSE)","v":{"$error":"#N/A"}},{"$f":"(VLOOKUP($B14,Neighbours_summary,('Data Summary'!BB$3-1),FALSE))/1000000","v":{"$error":"#N/A"}},{"$f":"VLOOKUP($B14,Neighbours_summary,('Data Summary'!BC$3-1),FALSE)","v":{"$error":"#N/A"}},{"$f":"VLOOKUP($B14,Neighbours_summary,('Data Summary'!BD$3-1),FALSE)","v":{"$error":"#N/A"}},{"$f":"(VLOOKUP($B14,Neighbours_summary,('Data Summary'!BE$3-1),FALSE))/1000000","v":{"$error":"#N/A"}},{"$f":"VLOOKUP($B14,Neighbours_summary,('Data Summary'!BF$3-1),FALSE)","v":{"$error":"#N/A"}},{"$f":"VLOOKUP($B14,Neighbours_summary,('Data Summary'!BG$3-1),FALSE)","v":{"$error":"#N/A"}},{"$f":"VLOOKUP($B14,Neighbours_summary,('Data Summary'!BH$3-1),FALSE)/1000000","v":{"$error":"#N/A"}},{"$f":"VLOOKUP($B14,Neighbours_summary,('Data Summary'!BI$3-1),FALSE)","v":{"$error":"#N/A"}},{"$f":"VLOOKUP($B14,Neighbours_summary,('Data Summary'!BJ$3-1),FALSE)","v":{"$error":"#N/A"}},{"$f":"(VLOOKUP($B14,Neighbours_summary,('Data Summary'!BK$3-1),FALSE))/1000000","v":{"$error":"#N/A"}},{"$f":"VLOOKUP($B14,Neighbours_summary,('Data Summary'!BL$3-1),FALSE)","v":{"$error":"#N/A"}},{"$f":"VLOOKUP($B14,Neighbours_summary,('Data Summary'!BM$3-1),FALSE)","v":{"$error":"#N/A"}},{"$f":"(VLOOKUP($B14,Neighbours_summary,('Data Summary'!BN$3-1),FALSE))/1000000","v":{"$error":"#N/A"}},{"$f":"VLOOKUP($B14,Neighbours_summary,('Data Summary'!BO$3-1),FALSE)","v":{"$error":"#N/A"}},{"$f":"VLOOKUP($B14,Neighbours_summary,('Data Summary'!BP$3-1),FALSE)","v":{"$error":"#N/A"}},{"$f":"(VLOOKUP($B14,Neighbours_summary,('Data Summary'!BQ$3-1),FALSE))/1000000","v":{"$error":"#N/A"}},{"$f":"VLOOKUP($B14,Neighbours_summary,('Data Summary'!BR$3-1),FALSE)","v":{"$error":"#N/A"}},{"$f":"VLOOKUP($B14,Neighbours_summary,('Data Summary'!BS$3-1),FALSE)","v":{"$error":"#N/A"}},{"$f":"VLOOKUP($B14,Neighbours_summary,('Data Summary'!BT$3-1),FALSE)","v":{"$error":"#N/A"}},{"$f":"VLOOKUP($B14,Neighbours_summary,('Data Summary'!BU$3-1),FALSE)","v":{"$error":"#N/A"}},{"$f":"VLOOKUP($B14,Neighbours_summary,('Data Summary'!BV$3-1),FALSE)","v":{"$error":"#N/A"}},{"$f":"VLOOKUP($B14,Neighbours_summary,('Data Summary'!BW$3-1),FALSE)","v":{"$error":"#N/A"}},{"$f":"VLOOKUP($B14,Neighbours_summary,('Data Summary'!BX$3-1),FALSE)","v":{"$error":"#N/A"}},{"$f":"VLOOKUP($B14,Neighbours_summary,('Data Summary'!BY$3-1),FALSE)","v":{"$error":"#N/A"}},{"$f":"IFERROR((VLOOKUP($B14,Attainment,Attainment!$OR$2,FALSE)/100), \"x\")","v":"x"},{"$f":"IFERROR((VLOOKUP($B14,Attainment,Attainment!$OE$2,FALSE)/100), \"x\")","v":"x"},{"$f":"IFERROR((VLOOKUP($B14,Attainment,Attainment!$NR$2,FALSE)/100), \"x\")","v":"x"},{"$f":"IFERROR((VLOOKUP($B14,Attainment,Attainment!$NE$2,FALSE)/100), \"x\")","v":"x"},{"$f":"IFERROR((VLOOKUP($B14,Attainment,Attainment!$MR$2,FALSE)/100), \"x\")","v":"x"},{"$f":"IFERROR((VLOOKUP($B14,Attainment,Attainment!$OT$2,FALSE)/100), \"x\")","v":"x"},{"$f":"IFERROR((VLOOKUP($B14,Attainment,Attainment!$OG$2,FALSE)/100), \"x\")","v":"x"},{"$f":"IFERROR((VLOOKUP($B14,Attainment,Attainment!$NT$2,FALSE)/100), \"x\")","v":"x"},{"$f":"IFERROR((VLOOKUP($B14,Attainment,Attainment!$NG$2,FALSE)/100), \"x\")","v":"x"},{"$f":"IFERROR((VLOOKUP($B14,Attainment,Attainment!$MT$2,FALSE)/100), \"x\")","v":"x"},{"$f":"IFERROR((VLOOKUP($B14,Attainment,Attainment!$S$2,FALSE)/100), \"x\")","v":"x"},{"$f":"IFERROR((VLOOKUP($B14,Attainment,Attainment!$O$2,FALSE)/100), \"x\")","v":"x"},{"$f":"IFERROR((VLOOKUP($B14,Attainment,Attainment!$BI$2,FALSE)/100), \"x\")","v":"x"},{"$f":"IFERROR((VLOOKUP($B14,Attainment,Attainment!$BG$2,FALSE)/100), \"x\")","v":"x"},{"$f":"IFERROR((VLOOKUP($B14,Attainment,Attainment!$DF$2,FALSE)/100), \"x\")","v":"x"},{"$f":"IFERROR((VLOOKUP($B14,Attainment,Attainment!$DA$2,FALSE)/100), \"x\")","v":"x"},{"$f":"IFERROR((VLOOKUP($B14,Attainment,Attainment!$DG$2,FALSE)/100), \"x\")","v":"x"},{"$f":"IFERROR((VLOOKUP($B14,Attainment,Attainment!$DB$2,FALSE)/100), \"x\")","v":"x"},{"$f":"IFERROR((VLOOKUP($B14,Attainment,Attainment!$DH$2,FALSE)/100), \"x\")","v":"x"},{"$f":"IFERROR((VLOOKUP($B14,Attainment,Attainment!$DC$2,FALSE)/100), \"x\")","v":"x"},{"$f":"IFERROR((VLOOKUP($B14,Attainment,Attainment!$DI$2,FALSE)/100), \"x\")","v":"x"},{"$f":"IFERROR((VLOOKUP($B14,Attainment,Attainment!$DD$2,FALSE)/100), \"x\")","v":"x"},{"$f":"IFERROR((VLOOKUP($B14,Attainment,Attainment!$JL$2,FALSE)/100), \"x\")","v":"x"},{"$f":"IFERROR((VLOOKUP($B14,Attainment,Attainment!$JF$2,FALSE)/100), \"x\")","v":"x"},{"$f":"IFERROR((VLOOKUP($B14,Attainment,Attainment!$JM$2,FALSE)/100), \"x\")","v":"x"},{"$f":"IFERROR((VLOOKUP($B14,Attainment,Attainment!$JG$2,FALSE)/100), \"x\")","v":"x"},{"$f":"IFERROR((VLOOKUP($B14,Attainment,Attainment!$PK$2,FALSE)), \"x\")","v":"x"},{"$f":"IFERROR((VLOOKUP($B14,Attainment,Attainment!$PJ$2,FALSE)), \"x\")","v":"x"},{"$f":"IFERROR(((VLOOKUP($B14,Attainment,Attainment!$PC$2,FALSE))/100), \"x\")","v":"x"},{"$f":"IFERROR(((VLOOKUP(B14,Other_data,Other!$X$3,FALSE))/100), \"x\")","v":"x"},{"$f":"IFERROR(((VLOOKUP(B14,Other_data,Other!$KC$3,FALSE))/100), \"x\")","v":"x"},{"$f":"IFERROR((VLOOKUP($B14,Other_data,Other!$HX$3,FALSE)), \"x\")","v":"x"},{"$f":"IFERROR((VLOOKUP($B14,Other_data,Other!$IG$3,FALSE)), \"x\")","v":"x"},{"$f":"IFERROR((VLOOKUP($B14,Other_data,Other!$IM$3,FALSE)), \"x\")","v":"x"},{"$f":"IFERROR((VLOOKUP($B14,Other_data,Other!$IV$3,FALSE)), \"x\")","v":"x"},{"$f":"IFERROR((VLOOKUP($B14,Other_data,Other!$IY$3,FALSE)), \"x\")","v":"x"},{"$f":"IFERROR((VLOOKUP($B14,Other_data,Other!$JB$3,FALSE)), \"x\")","v":"x"},{"$f":"IFERROR((VLOOKUP($B14,Other_data,Other!$JE$3,FALSE)), \"x\")","v":"x"},{"$f":"IFERROR((VLOOKUP($B14,Other_data,Other!$JH$3,FALSE)), \"x\")","v":"x"}]
[8,{"$f":"VLOOKUP($B$7,Statistical_Neighbours,SN!$O$155,FALSE)","v":{"$error":"#N/A"}},{"$f":"VLOOKUP($B$7,Statistical_Neighbours,SN!$P$155,FALSE)","v":{"$error":"#N/A"}},{"$f":"VLOOKUP($B15,Neighbours_summary,('Data Summary'!D$3-1),FALSE)","v":{"$error":"#N/A"}},{"$f":"VLOOKUP($B15,Neighbours_summary,('Data Summary'!E$3-1),FALSE)","v":{"$error":"#N/A"}},{"$f":"VLOOKUP($B15,Neighbours_summary,('Data Summary'!F$3-1),FALSE)","v":{"$error":"#N/A"}},{"$f":"VLOOKUP($B15,Neighbours_summary,('Data Summary'!G$3-1),FALSE)","v":{"$error":"#N/A"}},{"$f":"VLOOKUP($B15,Neighbours_summary,('Data Summary'!H$3-1),FALSE)","v":{"$error":"#N/A"}},{"$f":"VLOOKUP($B15,Neighbours_summary,('Data Summary'!I$3-1),FALSE)","v":{"$error":"#N/A"}},{"$f":"VLOOKUP($B15,Neighbours_summary,('Data Summary'!J$3-1),FALSE)","v":{"$error":"#N/A"}},{"$f":"VLOOKUP($B15,Neighbours_summary,('Data Summary'!K$3-1),FALSE)","v":{"$error":"#N/A"}},{"$f":"VLOOKUP($B15,Neighbours_summary,('Data Summary'!L$3-1),FALSE)","v":{"$error":"#N/A"}},{"$f":"VLOOKUP($B15,Neighbours_summary,('Data Summary'!M$3-1),FALSE)","v":{"$error":"#N/A"}},{"$f":"VLOOKUP($B15,Neighbours_summary,('Data Summary'!N$3-1),FALSE)","v":{"$error":"#N/A"}},{"$f":"VLOOKUP($B15,Neighbours_summary,('Data Summary'!O$3-1),FALSE)","v":{"$error":"#N/A"}},{"$f":"VLOOKUP($B15,Neighbours_summary,('Data Summary'!P$3-1),FALSE)","v":{"$error":"#N/A"}},{"$f":"VLOOKUP($B15,Neighbours_summary,('Data Summary'!Q$3-1),FALSE)","v":{"$error":"#N/A"}},{"$f":"VLOOKUP($B15,Neighbours_summary,('Data Summary'!R$3-1),FALSE)","v":{"$error":"#N/A"}},{"$f":"VLOOKUP($B15,Neighbours_summary,('Data Summary'!S$3-1),FALSE)","v":{"$error":"#N/A"}},{"$f":"VLOOKUP($B15,Neighbours_summary,('Data Summary'!T$3-1),FALSE)","v":{"$error":"#N/A"}},{"$f":"VLOOKUP($B15,Neighbours_summary,('Data Summary'!U$3-1),FALSE)","v":{"$error":"#N/A"}},{"$f":"VLOOKUP($B15,Neighbours_summary,('Data Summary'!V$3-1),FALSE)","v":{"$error":"#N/A"}},{"$f":"VLOOKUP($B15,Neighbours_summary,('Data Summary'!W$3-1),FALSE)","v":{"$error":"#N/A"}},{"$f":"VLOOKUP($B15,Neighbours_summary,('Data Summary'!X$3-1),FALSE)","v":{"$error":"#N/A"}},{"$f":"VLOOKUP($B15,Neighbours_summary,('Data Summary'!Y$3-1),FALSE)","v":{"$error":"#N/A"}},{"$f":"VLOOKUP($B15,Neighbours_summary,('Data Summary'!Z$3-1),FALSE)","v":{"$error":"#N/A"}},{"$f":"(VLOOKUP($B15,Neighbours_summary,('Data Summary'!AA$3-1),FALSE))/1000000","v":{"$error":"#N/A"}},{"$f":"VLOOKUP($B15,Neighbours_summary,('Data Summary'!AB$3-1),FALSE)","v":{"$error":"#N/A"}},{"$f":"VLOOKUP($B15,Neighbours_summary,('Data Summary'!AC$3-1),FALSE)","v":{"$error":"#N/A"}},{"$f":"(VLOOKUP($B15,Neighbours_summary,('Data Summary'!AD$3-1),FALSE))/1000000","v":{"$error":"#N/A"}},{"$f":"VLOOKUP($B15,Neighbours_summary,('Data Summary'!AE$3-1),FALSE)","v":{"$error":"#N/A"}},{"$f":"VLOOKUP($B15,Neighbours_summary,('Data Summary'!AF$3-1),FALSE)","v":{"$error":"#N/A"}},{"$f":"(VLOOKUP($B15,Neighbours_summary,('Data Summary'!AG$3-1),FALSE))/1000000","v":{"$error":"#N/A"}},{"$f":"VLOOKUP($B15,Neighbours_summary,('Data Summary'!AH$3-1),FALSE)","v":{"$error":"#N/A"}},{"$f":"VLOOKUP($B15,Neighbours_summary,('Data Summary'!AI$3-1),FALSE)","v":{"$error":"#N/A"}},{"$f":"(VLOOKUP($B15,Neighbours_summary,('Data Summary'!AJ$3-1),FALSE))/1000000","v":{"$error":"#N/A"}},{"$f":"VLOOKUP($B15,Neighbours_summary,('Data Summary'!AK$3-1),FALSE)","v":{"$error":"#N/A"}},null,{"$f":"(VLOOKUP($B15,Neighbours_summary,('Data Summary'!AM$3-1),FALSE))/1000000","v":{"$error":"#N/A"}},{"$f":"VLOOKUP($B15,Neighbours_summary,('Data Summary'!AN$3-1),FALSE)","v":{"$error":"#N/A"}},{"$f":"VLOOKUP($B15,Neighbours_summary,('Data Summary'!AO$3-1),FALSE)","v":{"$error":"#N/A"}},{"$f":"(VLOOKUP($B15,Neighbours_summary,('Data Summary'!AP$3-1),FALSE))/1000000","v":{"$error":"#N/A"}},{"$f":"VLOOKUP($B15,Neighbours_summary,('Data Summary'!AQ$3-1),FALSE)","v":{"$error":"#N/A"}},{"$f":"VLOOKUP($B15,Neighbours_summary,('Data Summary'!AR$3-1),FALSE)","v":{"$error":"#N/A"}},{"$f":"(VLOOKUP($B15,Neighbours_summary,('Data Summary'!AS$3-1),FALSE))/1000000","v":{"$error":"#N/A"}},{"$f":"VLOOKUP($B15,Neighbours_summary,('Data Summary'!AT$3-1),FALSE)","v":{"$error":"#N/A"}},{"$f":"VLOOKUP($B15,Neighbours_summary,('Data Summary'!AU$3-1),FALSE)","v":{"$error":"#N/A"}},{"$f":"(VLOOKUP($B15,Neighbours_summary,('Data Summary'!AV$3-1),FALSE))/1000000","v":{"$error":"#N/A"}},{"$f":"VLOOKUP($B15,Neighbours_summary,('Data Summary'!AW$3-1),FALSE)","v":{"$error":"#N/A"}},{"$f":"VLOOKUP($B15,Neighbours_summary,('Data Summary'!AX$3-1),FALSE)","v":{"$error":"#N/A"}},{"$f":"(VLOOKUP($B15,Neighbours_summary,('Data Summary'!AY$3-1),FALSE))/1000000","v":{"$error":"#N/A"}},{"$f":"VLOOKUP($B15,Neighbours_summary,('Data Summary'!AZ$3-1),FALSE)","v":{"$error":"#N/A"}},{"$f":"VLOOKUP($B15,Neighbours_summary,('Data Summary'!BA$3-1),FALSE)","v":{"$error":"#N/A"}},{"$f":"(VLOOKUP($B15,Neighbours_summary,('Data Summary'!BB$3-1),FALSE))/1000000","v":{"$error":"#N/A"}},{"$f":"VLOOKUP($B15,Neighbours_summary,('Data Summary'!BC$3-1),FALSE)","v":{"$error":"#N/A"}},{"$f":"VLOOKUP($B15,Neighbours_summary,('Data Summary'!BD$3-1),FALSE)","v":{"$error":"#N/A"}},{"$f":"(VLOOKUP($B15,Neighbours_summary,('Data Summary'!BE$3-1),FALSE))/1000000","v":{"$error":"#N/A"}},{"$f":"VLOOKUP($B15,Neighbours_summary,('Data Summary'!BF$3-1),FALSE)","v":{"$error":"#N/A"}},{"$f":"VLOOKUP($B15,Neighbours_summary,('Data Summary'!BG$3-1),FALSE)","v":{"$error":"#N/A"}},{"$f":"VLOOKUP($B15,Neighbours_summary,('Data Summary'!BH$3-1),FALSE)/1000000","v":{"$error":"#N/A"}},{"$f":"VLOOKUP($B15,Neighbours_summary,('Data Summary'!BI$3-1),FALSE)","v":{"$error":"#N/A"}},{"$f":"VLOOKUP($B15,Neighbours_summary,('Data Summary'!BJ$3-1),FALSE)","v":{"$error":"#N/A"}},{"$f":"(VLOOKUP($B15,Neighbours_summary,('Data Summary'!BK$3-1),FALSE))/1000000","v":{"$error":"#N/A"}},{"$f":"VLOOKUP($B15,Neighbours_summary,('Data Summary'!BL$3-1),FALSE)","v":{"$error":"#N/A"}},{"$f":"VLOOKUP($B15,Neighbours_summary,('Data Summary'!BM$3-1),FALSE)","v":{"$error":"#N/A"}},{"$f":"(VLOOKUP($B15,Neighbours_summary,('Data Summary'!BN$3-1),FALSE))/1000000","v":{"$error":"#N/A"}},{"$f":"VLOOKUP($B15,Neighbours_summary,('Data Summary'!BO$3-1),FALSE)","v":{"$error":"#N/A"}},{"$f":"VLOOKUP($B15,Neighbours_summary,('Data Summary'!BP$3-1),FALSE)","v":{"$error":"#N/A"}},{"$f":"(VLOOKUP($B15,Neighbours_summary,('Data Summary'!BQ$3-1),FALSE))/1000000","v":{"$error":"#N/A"}},{"$f":"VLOOKUP($B15,Neighbours_summary,('Data Summary'!BR$3-1),FALSE)","v":{"$error":"#N/A"}},{"$f":"VLOOKUP($B15,Neighbours_summary,('Data Summary'!BS$3-1),FALSE)","v":{"$error":"#N/A"}},{"$f":"VLOOKUP($B15,Neighbours_summary,('Data Summary'!BT$3-1),FALSE)","v":{"$error":"#N/A"}},{"$f":"VLOOKUP($B15,Neighbours_summary,('Data Summary'!BU$3-1),FALSE)","v":{"$error":"#N/A"}},{"$f":"VLOOKUP($B15,Neighbours_summary,('Data Summary'!BV$3-1),FALSE)","v":{"$error":"#N/A"}},{"$f":"VLOOKUP($B15,Neighbours_summary,('Data Summary'!BW$3-1),FALSE)","v":{"$error":"#N/A"}},{"$f":"VLOOKUP($B15,Neighbours_summary,('Data Summary'!BX$3-1),FALSE)","v":{"$error":"#N/A"}},{"$f":"VLOOKUP($B15,Neighbours_summary,('Data Summary'!BY$3-1),FALSE)","v":{"$error":"#N/A"}},{"$f":"IFERROR((VLOOKUP($B15,Attainment,Attainment!$OR$2,FALSE)/100), \"x\")","v":"x"},{"$f":"IFERROR((VLOOKUP($B15,Attainment,Attainment!$OE$2,FALSE)/100), \"x\")","v":"x"},{"$f":"IFERROR((VLOOKUP($B15,Attainment,Attainment!$NR$2,FALSE)/100), \"x\")","v":"x"},{"$f":"IFERROR((VLOOKUP($B15,Attainment,Attainment!$NE$2,FALSE)/100), \"x\")","v":"x"},{"$f":"IFERROR((VLOOKUP($B15,Attainment,Attainment!$MR$2,FALSE)/100), \"x\")","v":"x"},{"$f":"IFERROR((VLOOKUP($B15,Attainment,Attainment!$OT$2,FALSE)/100), \"x\")","v":"x"},{"$f":"IFERROR((VLOOKUP($B15,Attainment,Attainment!$OG$2,FALSE)/100), \"x\")","v":"x"},{"$f":"IFERROR((VLOOKUP($B15,Attainment,Attainment!$NT$2,FALSE)/100), \"x\")","v":"x"},{"$f":"IFERROR((VLOOKUP($B15,Attainment,Attainment!$NG$2,FALSE)/100), \"x\")","v":"x"},{"$f":"IFERROR((VLOOKUP($B15,Attainment,Attainment!$MT$2,FALSE)/100), \"x\")","v":"x"},{"$f":"IFERROR((VLOOKUP($B15,Attainment,Attainment!$S$2,FALSE)/100), \"x\")","v":"x"},{"$f":"IFERROR((VLOOKUP($B15,Attainment,Attainment!$O$2,FALSE)/100), \"x\")","v":"x"},{"$f":"IFERROR((VLOOKUP($B15,Attainment,Attainment!$BI$2,FALSE)/100), \"x\")","v":"x"},{"$f":"IFERROR((VLOOKUP($B15,Attainment,Attainment!$BG$2,FALSE)/100), \"x\")","v":"x"},{"$f":"IFERROR((VLOOKUP($B15,Attainment,Attainment!$DF$2,FALSE)/100), \"x\")","v":"x"},{"$f":"IFERROR((VLOOKUP($B15,Attainment,Attainment!$DA$2,FALSE)/100), \"x\")","v":"x"},{"$f":"IFERROR((VLOOKUP($B15,Attainment,Attainment!$DG$2,FALSE)/100), \"x\")","v":"x"},{"$f":"IFERROR((VLOOKUP($B15,Attainment,Attainment!$DB$2,FALSE)/100), \"x\")","v":"x"},{"$f":"IFERROR((VLOOKUP($B15,Attainment,Attainment!$DH$2,FALSE)/100), \"x\")","v":"x"},{"$f":"IFERROR((VLOOKUP($B15,Attainment,Attainment!$DC$2,FALSE)/100), \"x\")","v":"x"},{"$f":"IFERROR((VLOOKUP($B15,Attainment,Attainment!$DI$2,FALSE)/100), \"x\")","v":"x"},{"$f":"IFERROR((VLOOKUP($B15,Attainment,Attainment!$DD$2,FALSE)/100), \"x\")","v":"x"},{"$f":"IFERROR((VLOOKUP($B15,Attainment,Attainment!$JL$2,FALSE)/100), \"x\")","v":"x"},{"$f":"IFERROR((VLOOKUP($B15,Attainment,Attainment!$JF$2,FALSE)/100), \"x\")","v":"x"},{"$f":"IFERROR((VLOOKUP($B15,Attainment,Attainment!$JM$2,FALSE)/100), \"x\")","v":"x"},{"$f":"IFERROR((VLOOKUP($B15,Attainment,Attainment!$JG$2,FALSE)/100), \"x\")","v":"x"},{"$f":"IFERROR((VLOOKUP($B15,Attainment,Attainment!$PK$2,FALSE)), \"x\")","v":"x"},{"$f":"IFERROR((VLOOKUP($B15,Attainment,Attainment!$PJ$2,FALSE)), \"x\")","v":"x"},{"$f":"IFERROR(((VLOOKUP($B15,Attainment,Attainment!$PC$2,FALSE))/100), \"x\")","v":"x"},{"$f":"IFERROR(((VLOOKUP(B15,Other_data,Other!$X$3,FALSE))/100), \"x\")","v":"x"},{"$f":"IFERROR(((VLOOKUP(B15,Other_data,Other!$KC$3,FALSE))/100), \"x\")","v":"x"},{"$f":"IFERROR((VLOOKUP($B15,Other_data,Other!$HX$3,FALSE)), \"x\")","v":"x"},{"$f":"IFERROR((VLOOKUP($B15,Other_data,Other!$IG$3,FALSE)), \"x\")","v":"x"},{"$f":"IFERROR((VLOOKUP($B15,Other_data,Other!$IM$3,FALSE)), \"x\")","v":"x"},{"$f":"IFERROR((VLOOKUP($B15,Other_data,Other!$IV$3,FALSE)), \"x\")","v":"x"},{"$f":"IFERROR((VLOOKUP($B15,Other_data,Other!$IY$3,FALSE)), \"x\")","v":"x"},{"$f":"IFERROR((VLOOKUP($B15,Other_data,Other!$JB$3,FALSE)), \"x\")","v":"x"},{"$f":"IFERROR((VLOOKUP($B15,Other_data,Other!$JE$3,FALSE)), \"x\")","v":"x"},{"$f":"IFERROR((VLOOKUP($B15,Other_data,Other!$JH$3,FALSE)), \"x\")","v":"x"}]
[9,{"$f":"VLOOKUP($B$7,Statistical_Neighbours,SN!$Q$155,FALSE)","v":{"$error":"#N/A"}},{"$f":"VLOOKUP($B$7,Statistical_Neighbours,SN!$R$155,FALSE)","v":{"$error":"#N/A"}},{"$f":"VLOOKUP($B16,Neighbours_summary,('Data Summary'!D$3-1),FALSE)","v":{"$error":"#N/A"}},{"$f":"VLOOKUP($B16,Neighbours_summary,('Data Summary'!E$3-1),FALSE)","v":{"$error":"#N/A"}},{"$f":"VLOOKUP($B16,Neighbours_summary,('Data Summary'!F$3-1),FALSE)","v":{"$error":"#N/A"}},{"$f":"VLOOKUP($B16,Neighbours_summary,('Data Summary'!G$3-1),FALSE)","v":{"$error":"#N/A"}},{"$f":"VLOOKUP($B16,Neighbours_summary,('Data Summary'!H$3-1),FALSE)","v":{"$error":"#N/A"}},{"$f":"VLOOKUP($B16,Neighbours_summary,('Data Summary'!I$3-1),FALSE)","v":{"$error":"#N/A"}},{"$f":"VLOOKUP($B16,Neighbours_summary,('Data Summary'!J$3-1),FALSE)","v":{"$error":"#N/A"}},{"$f":"VLOOKUP($B16,Neighbours_summary,('Data Summary'!K$3-1),FALSE)","v":{"$error":"#N/A"}},{"$f":"VLOOKUP($B16,Neighbours_summary,('Data Summary'!L$3-1),FALSE)","v":{"$error":"#N/A"}},{"$f":"VLOOKUP($B16,Neighbours_summary,('Data Summary'!M$3-1),FALSE)","v":{"$error":"#N/A"}},{"$f":"VLOOKUP($B16,Neighbours_summary,('Data Summary'!N$3-1),FALSE)","v":{"$error":"#N/A"}},{"$f":"VLOOKUP($B16,Neighbours_summary,('Data Summary'!O$3-1),FALSE)","v":{"$error":"#N/A"}},{"$f":"VLOOKUP($B16,Neighbours_summary,('Data Summary'!P$3-1),FALSE)","v":{"$error":"#N/A"}},{"$f":"VLOOKUP($B16,Neighbours_summary,('Data Summary'!Q$3-1),FALSE)","v":{"$error":"#N/A"}},{"$f":"VLOOKUP($B16,Neighbours_summary,('Data Summary'!R$3-1),FALSE)","v":{"$error":"#N/A"}},{"$f":"VLOOKUP($B16,Neighbours_summary,('Data Summary'!S$3-1),FALSE)","v":{"$error":"#N/A"}},{"$f":"VLOOKUP($B16,Neighbours_summary,('Data Summary'!T$3-1),FALSE)","v":{"$error":"#N/A"}},{"$f":"VLOOKUP($B16,Neighbours_summary,('Data Summary'!U$3-1),FALSE)","v":{"$error":"#N/A"}},{"$f":"VLOOKUP($B16,Neighbours_summary,('Data Summary'!V$3-1),FALSE)","v":{"$error":"#N/A"}},{"$f":"VLOOKUP($B16,Neighbours_summary,('Data Summary'!W$3-1),FALSE)","v":{"$error":"#N/A"}},{"$f":"VLOOKUP($B16,Neighbours_summary,('Data Summary'!X$3-1),FALSE)","v":{"$error":"#N/A"}},{"$f":"VLOOKUP($B16,Neighbours_summary,('Data Summary'!Y$3-1),FALSE)","v":{"$error":"#N/A"}},{"$f":"VLOOKUP($B16,Neighbours_summary,('Data Summary'!Z$3-1),FALSE)","v":{"$error":"#N/A"}},{"$f":"(VLOOKUP($B16,Neighbours_summary,('Data Summary'!AA$3-1),FALSE))/1000000","v":{"$error":"#N/A"}},{"$f":"VLOOKUP($B16,Neighbours_summary,('Data Summary'!AB$3-1),FALSE)","v":{"$error":"#N/A"}},{"$f":"VLOOKUP($B16,Neighbours_summary,('Data Summary'!AC$3-1),FALSE)","v":{"$error":"#N/A"}},{"$f":"(VLOOKUP($B16,Neighbours_summary,('Data Summary'!AD$3-1),FALSE))/1000000","v":{"$error":"#N/A"}},{"$f":"VLOOKUP($B16,Neighbours_summary,('Data Summary'!AE$3-1),FALSE)","v":{"$error":"#N/A"}},{"$f":"VLOOKUP($B16,Neighbours_summary,('Data Summary'!AF$3-1),FALSE)","v":{"$error":"#N/A"}},{"$f":"(VLOOKUP($B16,Neighbours_summary,('Data Summary'!AG$3-1),FALSE))/1000000","v":{"$error":"#N/A"}},{"$f":"VLOOKUP($B16,Neighbours_summary,('Data Summary'!AH$3-1),FALSE)","v":{"$error":"#N/A"}},{"$f":"VLOOKUP($B16,Neighbours_summary,('Data Summary'!AI$3-1),FALSE)","v":{"$error":"#N/A"}},{"$f":"(VLOOKUP($B16,Neighbours_summary,('Data Summary'!AJ$3-1),FALSE))/1000000","v":{"$error":"#N/A"}},{"$f":"VLOOKUP($B16,Neighbours_summary,('Data Summary'!AK$3-1),FALSE)","v":{"$error":"#N/A"}},null,{"$f":"(VLOOKUP($B16,Neighbours_summary,('Data Summary'!AM$3-1),FALSE))/1000000","v":{"$error":"#N/A"}},{"$f":"VLOOKUP($B16,Neighbours_summary,('Data Summary'!AN$3-1),FALSE)","v":{"$error":"#N/A"}},{"$f":"VLOOKUP($B16,Neighbours_summary,('Data Summary'!AO$3-1),FALSE)","v":{"$error":"#N/A"}},{"$f":"(VLOOKUP($B16,Neighbours_summary,('Data Summary'!AP$3-1),FALSE))/1000000","v":{"$error":"#N/A"}},{"$f":"VLOOKUP($B16,Neighbours_summary,('Data Summary'!AQ$3-1),FALSE)","v":{"$error":"#N/A"}},{"$f":"VLOOKUP($B16,Neighbours_summary,('Data Summary'!AR$3-1),FALSE)","v":{"$error":"#N/A"}},{"$f":"(VLOOKUP($B16,Neighbours_summary,('Data Summary'!AS$3-1),FALSE))/1000000","v":{"$error":"#N/A"}},{"$f":"VLOOKUP($B16,Neighbours_summary,('Data Summary'!AT$3-1),FALSE)","v":{"$error":"#N/A"}},{"$f":"VLOOKUP($B16,Neighbours_summary,('Data Summary'!AU$3-1),FALSE)","v":{"$error":"#N/A"}},{"$f":"(VLOOKUP($B16,Neighbours_summary,('Data Summary'!AV$3-1),FALSE))/1000000","v":{"$error":"#N/A"}},{"$f":"VLOOKUP($B16,Neighbours_summary,('Data Summary'!AW$3-1),FALSE)","v":{"$error":"#N/A"}},{"$f":"VLOOKUP($B16,Neighbours_summary,('Data Summary'!AX$3-1),FALSE)","v":{"$error":"#N/A"}},{"$f":"(VLOOKUP($B16,Neighbours_summary,('Data Summary'!AY$3-1),FALSE))/1000000","v":{"$error":"#N/A"}},{"$f":"VLOOKUP($B16,Neighbours_summary,('Data Summary'!AZ$3-1),FALSE)","v":{"$error":"#N/A"}},{"$f":"VLOOKUP($B16,Neighbours_summary,('Data Summary'!BA$3-1),FALSE)","v":{"$error":"#N/A"}},{"$f":"(VLOOKUP($B16,Neighbours_summary,('Data Summary'!BB$3-1),FALSE))/1000000","v":{"$error":"#N/A"}},{"$f":"VLOOKUP($B16,Neighbours_summary,('Data Summary'!BC$3-1),FALSE)","v":{"$error":"#N/A"}},{"$f":"VLOOKUP($B16,Neighbours_summary,('Data Summary'!BD$3-1),FALSE)","v":{"$error":"#N/A"}},{"$f":"(VLOOKUP($B16,Neighbours_summary,('Data Summary'!BE$3-1),FALSE))/1000000","v":{"$error":"#N/A"}},{"$f":"VLOOKUP($B16,Neighbours_summary,('Data Summary'!BF$3-1),FALSE)","v":{"$error":"#N/A"}},{"$f":"VLOOKUP($B16,Neighbours_summary,('Data Summary'!BG$3-1),FALSE)","v":{"$error":"#N/A"}},{"$f":"VLOOKUP($B16,Neighbours_summary,('Data Summary'!BH$3-1),FALSE)/1000000","v":{"$error":"#N/A"}},{"$f":"VLOOKUP($B16,Neighbours_summary,('Data Summary'!BI$3-1),FALSE)","v":{"$error":"#N/A"}},{"$f":"VLOOKUP($B16,Neighbours_summary,('Data Summary'!BJ$3-1),FALSE)","v":{"$error":"#N/A"}},{"$f":"(VLOOKUP($B16,Neighbours_summary,('Data Summary'!BK$3-1),FALSE))/1000000","v":{"$error":"#N/A"}},{"$f":"VLOOKUP($B16,Neighbours_summary,('Data Summary'!BL$3-1),FALSE)","v":{"$error":"#N/A"}},{"$f":"VLOOKUP($B16,Neighbours_summary,('Data Summary'!BM$3-1),FALSE)","v":{"$error":"#N/A"}},{"$f":"(VLOOKUP($B16,Neighbours_summary,('Data Summary'!BN$3-1),FALSE))/1000000","v":{"$error":"#N/A"}},{"$f":"VLOOKUP($B16,Neighbours_summary,('Data Summary'!BO$3-1),FALSE)","v":{"$error":"#N/A"}},{"$f":"VLOOKUP($B16,Neighbours_summary,('Data Summary'!BP$3-1),FALSE)","v":{"$error":"#N/A"}},{"$f":"(VLOOKUP($B16,Neighbours_summary,('Data Summary'!BQ$3-1),FALSE))/1000000","v":{"$error":"#N/A"}},{"$f":"VLOOKUP($B16,Neighbours_summary,('Data Summary'!BR$3-1),FALSE)","v":{"$error":"#N/A"}},{"$f":"VLOOKUP($B16,Neighbours_summary,('Data Summary'!BS$3-1),FALSE)","v":{"$error":"#N/A"}},{"$f":"VLOOKUP($B16,Neighbours_summary,('Data Summary'!BT$3-1),FALSE)","v":{"$error":"#N/A"}},{"$f":"VLOOKUP($B16,Neighbours_summary,('Data Summary'!BU$3-1),FALSE)","v":{"$error":"#N/A"}},{"$f":"VLOOKUP($B16,Neighbours_summary,('Data Summary'!BV$3-1),FALSE)","v":{"$error":"#N/A"}},{"$f":"VLOOKUP($B16,Neighbours_summary,('Data Summary'!BW$3-1),FALSE)","v":{"$error":"#N/A"}},{"$f":"VLOOKUP($B16,Neighbours_summary,('Data Summary'!BX$3-1),FALSE)","v":{"$error":"#N/A"}},{"$f":"VLOOKUP($B16,Neighbours_summary,('Data Summary'!BY$3-1),FALSE)","v":{"$error":"#N/A"}},{"$f":"IFERROR((VLOOKUP($B16,Attainment,Attainment!$OR$2,FALSE)/100), \"x\")","v":"x"},{"$f":"IFERROR((VLOOKUP($B16,Attainment,Attainment!$OE$2,FALSE)/100), \"x\")","v":"x"},{"$f":"IFERROR((VLOOKUP($B16,Attainment,Attainment!$NR$2,FALSE)/100), \"x\")","v":"x"},{"$f":"IFERROR((VLOOKUP($B16,Attainment,Attainment!$NE$2,FALSE)/100), \"x\")","v":"x"},{"$f":"IFERROR((VLOOKUP($B16,Attainment,Attainment!$MR$2,FALSE)/100), \"x\")","v":"x"},{"$f":"IFERROR((VLOOKUP($B16,Attainment,Attainment!$OT$2,FALSE)/100), \"x\")","v":"x"},{"$f":"IFERROR((VLOOKUP($B16,Attainment,Attainment!$OG$2,FALSE)/100), \"x\")","v":"x"},{"$f":"IFERROR((VLOOKUP($B16,Attainment,Attainment!$NT$2,FALSE)/100), \"x\")","v":"x"},{"$f":"IFERROR((VLOOKUP($B16,Attainment,Attainment!$NG$2,FALSE)/100), \"x\")","v":"x"},{"$f":"IFERROR((VLOOKUP($B16,Attainment,Attainment!$MT$2,FALSE)/100), \"x\")","v":"x"},{"$f":"IFERROR((VLOOKUP($B16,Attainment,Attainment!$S$2,FALSE)/100), \"x\")","v":"x"},{"$f":"IFERROR((VLOOKUP($B16,Attainment,Attainment!$O$2,FALSE)/100), \"x\")","v":"x"},{"$f":"IFERROR((VLOOKUP($B16,Attainment,Attainment!$BI$2,FALSE)/100), \"x\")","v":"x"},{"$f":"IFERROR((VLOOKUP($B16,Attainment,Attainment!$BG$2,FALSE)/100), \"x\")","v":"x"},{"$f":"IFERROR((VLOOKUP($B16,Attainment,Attainment!$DF$2,FALSE)/100), \"x\")","v":"x"},{"$f":"IFERROR((VLOOKUP($B16,Attainment,Attainment!$DA$2,FALSE)/100), \"x\")","v":"x"},{"$f":"IFERROR((VLOOKUP($B16,Attainment,Attainment!$DG$2,FALSE)/100), \"x\")","v":"x"},{"$f":"IFERROR((VLOOKUP($B16,Attainment,Attainment!$DB$2,FALSE)/100), \"x\")","v":"x"},{"$f":"IFERROR((VLOOKUP($B16,Attainment,Attainment!$DH$2,FALSE)/100), \"x\")","v":"x"},{"$f":"IFERROR((VLOOKUP($B16,Attainment,Attainment!$DC$2,FALSE)/100), \"x\")","v":"x"},{"$f":"IFERROR((VLOOKUP($B16,Attainment,Attainment!$DI$2,FALSE)/100), \"x\")","v":"x"},{"$f":"IFERROR((VLOOKUP($B16,Attainment,Attainment!$DD$2,FALSE)/100), \"x\")","v":"x"},{"$f":"IFERROR((VLOOKUP($B16,Attainment,Attainment!$JL$2,FALSE)/100), \"x\")","v":"x"},{"$f":"IFERROR((VLOOKUP($B16,Attainment,Attainment!$JF$2,FALSE)/100), \"x\")","v":"x"},{"$f":"IFERROR((VLOOKUP($B16,Attainment,Attainment!$JM$2,FALSE)/100), \"x\")","v":"x"},{"$f":"IFERROR((VLOOKUP($B16,Attainment,Attainment!$JG$2,FALSE)/100), \"x\")","v":"x"},{"$f":"IFERROR((VLOOKUP($B16,Attainment,Attainment!$PK$2,FALSE)), \"x\")","v":"x"},{"$f":"IFERROR((VLOOKUP($B16,Attainment,Attainment!$PJ$2,FALSE)), \"x\")","v":"x"},{"$f":"IFERROR(((VLOOKUP($B16,Attainment,Attainment!$PC$2,FALSE))/100), \"x\")","v":"x"},{"$f":"IFERROR(((VLOOKUP(B16,Other_data,Other!$X$3,FALSE))/100), \"x\")","v":"x"},{"$f":"IFERROR(((VLOOKUP(B16,Other_data,Other!$KC$3,FALSE))/100), \"x\")","v":"x"},{"$f":"IFERROR((VLOOKUP($B16,Other_data,Other!$HX$3,FALSE)), \"x\")","v":"x"},{"$f":"IFERROR((VLOOKUP($B16,Other_data,Other!$IG$3,FALSE)), \"x\")","v":"x"},{"$f":"IFERROR((VLOOKUP($B16,Other_data,Other!$IM$3,FALSE)), \"x\")","v":"x"},{"$f":"IFERROR((VLOOKUP($B16,Other_data,Other!$IV$3,FALSE)), \"x\")","v":"x"},{"$f":"IFERROR((VLOOKUP($B16,Other_data,Other!$IY$3,FALSE)), \"x\")","v":"x"},{"$f":"IFERROR((VLOOKUP($B16,Other_data,Other!$JB$3,FALSE)), \"x\")","v":"x"},{"$f":"IFERROR((VLOOKUP($B16,Other_data,Other!$JE$3,FALSE)), \"x\")","v":"x"},{"$f":"IFERROR((VLOOKUP($B16,Other_data,Other!$JH$3,FALSE)), \"x\")","v":"x"}]
[10,{"$f":"VLOOKUP($B$7,Statistical_Neighbours,SN!$S$155,FALSE)","v":{"$error":"#N/A"}},{"$f":"VLOOKUP($B$7,Statistical_Neighbours,SN!$T$155,FALSE)","v":{"$error":"#N/A"}},{"$f":"VLOOKUP($B17,Neighbours_summary,('Data Summary'!D$3-1),FALSE)","v":{"$error":"#N/A"}},{"$f":"VLOOKUP($B17,Neighbours_summary,('Data Summary'!E$3-1),FALSE)","v":{"$error":"#N/A"}},{"$f":"VLOOKUP($B17,Neighbours_summary,('Data Summary'!F$3-1),FALSE)","v":{"$error":"#N/A"}},{"$f":"VLOOKUP($B17,Neighbours_summary,('Data Summary'!G$3-1),FALSE)","v":{"$error":"#N/A"}},{"$f":"VLOOKUP($B17,Neighbours_summary,('Data Summary'!H$3-1),FALSE)","v":{"$error":"#N/A"}},{"$f":"VLOOKUP($B17,Neighbours_summary,('Data Summary'!I$3-1),FALSE)","v":{"$error":"#N/A"}},{"$f":"VLOOKUP($B17,Neighbours_summary,('Data Summary'!J$3-1),FALSE)","v":{"$error":"#N/A"}},{"$f":"VLOOKUP($B17,Neighbours_summary,('Data Summary'!K$3-1),FALSE)","v":{"$error":"#N/A"}},{"$f":"VLOOKUP($B17,Neighbours_summary,('Data Summary'!L$3-1),FALSE)","v":{"$error":"#N/A"}},{"$f":"VLOOKUP($B17,Neighbours_summary,('Data Summary'!M$3-1),FALSE)","v":{"$error":"#N/A"}},{"$f":"VLOOKUP($B17,Neighbours_summary,('Data Summary'!N$3-1),FALSE)","v":{"$error":"#N/A"}},{"$f":"VLOOKUP($B17,Neighbours_summary,('Data Summary'!O$3-1),FALSE)","v":{"$error":"#N/A"}},{"$f":"VLOOKUP($B17,Neighbours_summary,('Data Summary'!P$3-1),FALSE)","v":{"$error":"#N/A"}},{"$f":"VLOOKUP($B17,Neighbours_summary,('Data Summary'!Q$3-1),FALSE)","v":{"$error":"#N/A"}},{"$f":"VLOOKUP($B17,Neighbours_summary,('Data Summary'!R$3-1),FALSE)","v":{"$error":"#N/A"}},{"$f":"VLOOKUP($B17,Neighbours_summary,('Data Summary'!S$3-1),FALSE)","v":{"$error":"#N/A"}},{"$f":"VLOOKUP($B17,Neighbours_summary,('Data Summary'!T$3-1),FALSE)","v":{"$error":"#N/A"}},{"$f":"VLOOKUP($B17,Neighbours_summary,('Data Summary'!U$3-1),FALSE)","v":{"$error":"#N/A"}},{"$f":"VLOOKUP($B17,Neighbours_summary,('Data Summary'!V$3-1),FALSE)","v":{"$error":"#N/A"}},{"$f":"VLOOKUP($B17,Neighbours_summary,('Data Summary'!W$3-1),FALSE)","v":{"$error":"#N/A"}},{"$f":"VLOOKUP($B17,Neighbours_summary,('Data Summary'!X$3-1),FALSE)","v":{"$error":"#N/A"}},{"$f":"VLOOKUP($B17,Neighbours_summary,('Data Summary'!Y$3-1),FALSE)","v":{"$error":"#N/A"}},{"$f":"VLOOKUP($B17,Neighbours_summary,('Data Summary'!Z$3-1),FALSE)","v":{"$error":"#N/A"}},{"$f":"(VLOOKUP($B17,Neighbours_summary,('Data Summary'!AA$3-1),FALSE))/1000000","v":{"$error":"#N/A"}},{"$f":"VLOOKUP($B17,Neighbours_summary,('Data Summary'!AB$3-1),FALSE)","v":{"$error":"#N/A"}},{"$f":"VLOOKUP($B17,Neighbours_summary,('Data Summary'!AC$3-1),FALSE)","v":{"$error":"#N/A"}},{"$f":"(VLOOKUP($B17,Neighbours_summary,('Data Summary'!AD$3-1),FALSE))/1000000","v":{"$error":"#N/A"}},{"$f":"VLOOKUP($B17,Neighbours_summary,('Data Summary'!AE$3-1),FALSE)","v":{"$error":"#N/A"}},{"$f":"VLOOKUP($B17,Neighbours_summary,('Data Summary'!AF$3-1),FALSE)","v":{"$error":"#N/A"}},{"$f":"(VLOOKUP($B17,Neighbours_summary,('Data Summary'!AG$3-1),FALSE))/1000000","v":{"$error":"#N/A"}},{"$f":"VLOOKUP($B17,Neighbours_summary,('Data Summary'!AH$3-1),FALSE)","v":{"$error":"#N/A"}},{"$f":"VLOOKUP($B17,Neighbours_summary,('Data Summary'!AI$3-1),FALSE)","v":{"$error":"#N/A"}},{"$f":"(VLOOKUP($B17,Neighbours_summary,('Data Summary'!AJ$3-1),FALSE))/1000000","v":{"$error":"#N/A"}},{"$f":"VLOOKUP($B17,Neighbours_summary,('Data Summary'!AK$3-1),FALSE)","v":{"$error":"#N/A"}},null,{"$f":"(VLOOKUP($B17,Neighbours_summary,('Data Summary'!AM$3-1),FALSE))/1000000","v":{"$error":"#N/A"}},{"$f":"VLOOKUP($B17,Neighbours_summary,('Data Summary'!AN$3-1),FALSE)","v":{"$error":"#N/A"}},{"$f":"VLOOKUP($B17,Neighbours_summary,('Data Summary'!AO$3-1),FALSE)","v":{"$error":"#N/A"}},{"$f":"(VLOOKUP($B17,Neighbours_summary,('Data Summary'!AP$3-1),FALSE))/1000000","v":{"$error":"#N/A"}},{"$f":"VLOOKUP($B17,Neighbours_summary,('Data Summary'!AQ$3-1),FALSE)","v":{"$error":"#N/A"}},{"$f":"VLOOKUP($B17,Neighbours_summary,('Data Summary'!AR$3-1),FALSE)","v":{"$error":"#N/A"}},{"$f":"(VLOOKUP($B17,Neighbours_summary,('Data Summary'!AS$3-1),FALSE))/1000000","v":{"$error":"#N/A"}},{"$f":"VLOOKUP($B17,Neighbours_summary,('Data Summary'!AT$3-1),FALSE)","v":{"$error":"#N/A"}},{"$f":"VLOOKUP($B17,Neighbours_summary,('Data Summary'!AU$3-1),FALSE)","v":{"$error":"#N/A"}},{"$f":"(VLOOKUP($B17,Neighbours_summary,('Data Summary'!AV$3-1),FALSE))/1000000","v":{"$error":"#N/A"}},{"$f":"VLOOKUP($B17,Neighbours_summary,('Data Summary'!AW$3-1),FALSE)","v":{"$error":"#N/A"}},{"$f":"VLOOKUP($B17,Neighbours_summary,('Data Summary'!AX$3-1),FALSE)","v":{"$error":"#N/A"}},{"$f":"(VLOOKUP($B17,Neighbours_summary,('Data Summary'!AY$3-1),FALSE))/1000000","v":{"$error":"#N/A"}},{"$f":"VLOOKUP($B17,Neighbours_summary,('Data Summary'!AZ$3-1),FALSE)","v":{"$error":"#N/A"}},{"$f":"VLOOKUP($B17,Neighbours_summary,('Data Summary'!BA$3-1),FALSE)","v":{"$error":"#N/A"}},{"$f":"(VLOOKUP($B17,Neighbours_summary,('Data Summary'!BB$3-1),FALSE))/1000000","v":{"$error":"#N/A"}},{"$f":"VLOOKUP($B17,Neighbours_summary,('Data Summary'!BC$3-1),FALSE)","v":{"$error":"#N/A"}},{"$f":"VLOOKUP($B17,Neighbours_summary,('Data Summary'!BD$3-1),FALSE)","v":{"$error":"#N/A"}},{"$f":"(VLOOKUP($B17,Neighbours_summary,('Data Summary'!BE$3-1),FALSE))/1000000","v":{"$error":"#N/A"}},{"$f":"VLOOKUP($B17,Neighbours_summary,('Data Summary'!BF$3-1),FALSE)","v":{"$error":"#N/A"}},{"$f":"VLOOKUP($B17,Neighbours_summary,('Data Summary'!BG$3-1),FALSE)","v":{"$error":"#N/A"}},{"$f":"VLOOKUP($B17,Neighbours_summary,('Data Summary'!BH$3-1),FALSE)/1000000","v":{"$error":"#N/A"}},{"$f":"VLOOKUP($B17,Neighbours_summary,('Data Summary'!BI$3-1),FALSE)","v":{"$error":"#N/A"}},{"$f":"VLOOKUP($B17,Neighbours_summary,('Data Summary'!BJ$3-1),FALSE)","v":{"$error":"#N/A"}},{"$f":"(VLOOKUP($B17,Neighbours_summary,('Data Summary'!BK$3-1),FALSE))/1000000","v":{"$error":"#N/A"}},{"$f":"VLOOKUP($B17,Neighbours_summary,('Data Summary'!BL$3-1),FALSE)","v":{"$error":"#N/A"}},{"$f":"VLOOKUP($B17,Neighbours_summary,('Data Summary'!BM$3-1),FALSE)","v":{"$error":"#N/A"}},{"$f":"(VLOOKUP($B17,Neighbours_summary,('Data Summary'!BN$3-1),FALSE))/1000000","v":{"$error":"#N/A"}},{"$f":"VLOOKUP($B17,Neighbours_summary,('Data Summary'!BO$3-1),FALSE)","v":{"$error":"#N/A"}},{"$f":"VLOOKUP($B17,Neighbours_summary,('Data Summary'!BP$3-1),FALSE)","v":{"$error":"#N/A"}},{"$f":"(VLOOKUP($B17,Neighbours_summary,('Data Summary'!BQ$3-1),FALSE))/1000000","v":{"$error":"#N/A"}},{"$f":"VLOOKUP($B17,Neighbours_summary,('Data Summary'!BR$3-1),FALSE)","v":{"$error":"#N/A"}},{"$f":"VLOOKUP($B17,Neighbours_summary,('Data Summary'!BS$3-1),FALSE)","v":{"$error":"#N/A"}},{"$f":"VLOOKUP($B17,Neighbours_summary,('Data Summary'!BT$3-1),FALSE)","v":{"$error":"#N/A"}},{"$f":"VLOOKUP($B17,Neighbours_summary,('Data Summary'!BU$3-1),FALSE)","v":{"$error":"#N/A"}},{"$f":"VLOOKUP($B17,Neighbours_summary,('Data Summary'!BV$3-1),FALSE)","v":{"$error":"#N/A"}},{"$f":"VLOOKUP($B17,Neighbours_summary,('Data Summary'!BW$3-1),FALSE)","v":{"$error":"#N/A"}},{"$f":"VLOOKUP($B17,Neighbours_summary,('Data Summary'!BX$3-1),FALSE)","v":{"$error":"#N/A"}},{"$f":"VLOOKUP($B17,Neighbours_summary,('Data Summary'!BY$3-1),FALSE)","v":{"$error":"#N/A"}},{"$f":"IFERROR((VLOOKUP($B17,Attainment,Attainment!$OR$2,FALSE)/100), \"x\")","v":"x"},{"$f":"IFERROR((VLOOKUP($B17,Attainment,Attainment!$OE$2,FALSE)/100), \"x\")","v":"x"},{"$f":"IFERROR((VLOOKUP($B17,Attainment,Attainment!$NR$2,FALSE)/100), \"x\")","v":"x"},{"$f":"IFERROR((VLOOKUP($B17,Attainment,Attainment!$NE$2,FALSE)/100), \"x\")","v":"x"},{"$f":"IFERROR((VLOOKUP($B17,Attainment,Attainment!$MR$2,FALSE)/100), \"x\")","v":"x"},{"$f":"IFERROR((VLOOKUP($B17,Attainment,Attainment!$OT$2,FALSE)/100), \"x\")","v":"x"},{"$f":"IFERROR((VLOOKUP($B17,Attainment,Attainment!$OG$2,FALSE)/100), \"x\")","v":"x"},{"$f":"IFERROR((VLOOKUP($B17,Attainment,Attainment!$NT$2,FALSE)/100), \"x\")","v":"x"},{"$f":"IFERROR((VLOOKUP($B17,Attainment,Attainment!$NG$2,FALSE)/100), \"x\")","v":"x"},{"$f":"IFERROR((VLOOKUP($B17,Attainment,Attainment!$MT$2,FALSE)/100), \"x\")","v":"x"},{"$f":"IFERROR((VLOOKUP($B17,Attainment,Attainment!$S$2,FALSE)/100), \"x\")","v":"x"},{"$f":"IFERROR((VLOOKUP($B17,Attainment,Attainment!$O$2,FALSE)/100), \"x\")","v":"x"},{"$f":"IFERROR((VLOOKUP($B17,Attainment,Attainment!$BI$2,FALSE)/100), \"x\")","v":"x"},{"$f":"IFERROR((VLOOKUP($B17,Attainment,Attainment!$BG$2,FALSE)/100), \"x\")","v":"x"},{"$f":"IFERROR((VLOOKUP($B17,Attainment,Attainment!$DF$2,FALSE)/100), \"x\")","v":"x"},{"$f":"IFERROR((VLOOKUP($B17,Attainment,Attainment!$DA$2,FALSE)/100), \"x\")","v":"x"},{"$f":"IFERROR((VLOOKUP($B17,Attainment,Attainment!$DG$2,FALSE)/100), \"x\")","v":"x"},{"$f":"IFERROR((VLOOKUP($B17,Attainment,Attainment!$DB$2,FALSE)/100), \"x\")","v":"x"},{"$f":"IFERROR((VLOOKUP($B17,Attainment,Attainment!$DH$2,FALSE)/100), \"x\")","v":"x"},{"$f":"IFERROR((VLOOKUP($B17,Attainment,Attainment!$DC$2,FALSE)/100), \"x\")","v":"x"},{"$f":"IFERROR((VLOOKUP($B17,Attainment,Attainment!$DI$2,FALSE)/100), \"x\")","v":"x"},{"$f":"IFERROR((VLOOKUP($B17,Attainment,Attainment!$DD$2,FALSE)/100), \"x\")","v":"x"},{"$f":"IFERROR((VLOOKUP($B17,Attainment,Attainment!$JL$2,FALSE)/100), \"x\")","v":"x"},{"$f":"IFERROR((VLOOKUP($B17,Attainment,Attainment!$JF$2,FALSE)/100), \"x\")","v":"x"},{"$f":"IFERROR((VLOOKUP($B17,Attainment,Attainment!$JM$2,FALSE)/100), \"x\")","v":"x"},{"$f":"IFERROR((VLOOKUP($B17,Attainment,Attainment!$JG$2,FALSE)/100), \"x\")","v":"x"},{"$f":"IFERROR((VLOOKUP($B17,Attainment,Attainment!$PK$2,FALSE)), \"x\")","v":"x"},{"$f":"IFERROR((VLOOKUP($B17,Attainment,Attainment!$PJ$2,FALSE)), \"x\")","v":"x"},{"$f":"IFERROR(((VLOOKUP($B17,Attainment,Attainment!$PC$2,FALSE))/100), \"x\")","v":"x"},{"$f":"IFERROR(((VLOOKUP(B17,Other_data,Other!$X$3,FALSE))/100), \"x\")","v":"x"},{"$f":"IFERROR(((VLOOKUP(B17,Other_data,Other!$KC$3,FALSE))/100), \"x\")","v":"x"},{"$f":"IFERROR((VLOOKUP($B17,Other_data,Other!$HX$3,FALSE)), \"x\")","v":"x"},{"$f":"IFERROR((VLOOKUP($B17,Other_data,Other!$IG$3,FALSE)), \"x\")","v":"x"},{"$f":"IFERROR((VLOOKUP($B17,Other_data,Other!$IM$3,FALSE)), \"x\")","v":"x"},{"$f":"IFERROR((VLOOKUP($B17,Other_data,Other!$IV$3,FALSE)), \"x\")","v":"x"},{"$f":"IFERROR((VLOOKUP($B17,Other_data,Other!$IY$3,FALSE)), \"x\")","v":"x"},{"$f":"IFERROR((VLOOKUP($B17,Other_data,Other!$JB$3,FALSE)), \"x\")","v":"x"},{"$f":"IFERROR((VLOOKUP($B17,Other_data,Other!$JE$3,FALSE)), \"x\")","v":"x"},{"$f":"IFERROR((VLOOKUP($B17,Other_data,Other!$JH$3,FALSE)), \"x\")","v":"x"}]
[11,{"$f":"VLOOKUP($B$7,Statistical_Neighbours,SN!$U$155,FALSE)","v":{"$error":"#N/A"}},{"$f":"VLOOKUP($B$7,Statistical_Neighbours,SN!$V$155,FALSE)","v":{"$error":"#N/A"}},{"$f":"VLOOKUP($B18,Neighbours_summary,('Data Summary'!D$3-1),FALSE)","v":{"$error":"#N/A"}},{"$f":"VLOOKUP($B18,Neighbours_summary,('Data Summary'!E$3-1),FALSE)","v":{"$error":"#N/A"}},{"$f":"VLOOKUP($B18,Neighbours_summary,('Data Summary'!F$3-1),FALSE)","v":{"$error":"#N/A"}},{"$f":"VLOOKUP($B18,Neighbours_summary,('Data Summary'!G$3-1),FALSE)","v":{"$error":"#N/A"}},{"$f":"VLOOKUP($B18,Neighbours_summary,('Data Summary'!H$3-1),FALSE)","v":{"$error":"#N/A"}},{"$f":"VLOOKUP($B18,Neighbours_summary,('Data Summary'!I$3-1),FALSE)","v":{"$error":"#N/A"}},{"$f":"VLOOKUP($B18,Neighbours_summary,('Data Summary'!J$3-1),FALSE)","v":{"$error":"#N/A"}},{"$f":"VLOOKUP($B18,Neighbours_summary,('Data Summary'!K$3-1),FALSE)","v":{"$error":"#N/A"}},{"$f":"VLOOKUP($B18,Neighbours_summary,('Data Summary'!L$3-1),FALSE)","v":{"$error":"#N/A"}},{"$f":"VLOOKUP($B18,Neighbours_summary,('Data Summary'!M$3-1),FALSE)","v":{"$error":"#N/A"}},{"$f":"VLOOKUP($B18,Neighbours_summary,('Data Summary'!N$3-1),FALSE)","v":{"$error":"#N/A"}},{"$f":"VLOOKUP($B18,Neighbours_summary,('Data Summary'!O$3-1),FALSE)","v":{"$error":"#N/A"}},{"$f":"VLOOKUP($B18,Neighbours_summary,('Data Summary'!P$3-1),FALSE)","v":{"$error":"#N/A"}},{"$f":"VLOOKUP($B18,Neighbours_summary,('Data Summary'!Q$3-1),FALSE)","v":{"$error":"#N/A"}},{"$f":"VLOOKUP($B18,Neighbours_summary,('Data Summary'!R$3-1),FALSE)","v":{"$error":"#N/A"}},{"$f":"VLOOKUP($B18,Neighbours_summary,('Data Summary'!S$3-1),FALSE)","v":{"$error":"#N/A"}},{"$f":"VLOOKUP($B18,Neighbours_summary,('Data Summary'!T$3-1),FALSE)","v":{"$error":"#N/A"}},{"$f":"VLOOKUP($B18,Neighbours_summary,('Data Summary'!U$3-1),FALSE)","v":{"$error":"#N/A"}},{"$f":"VLOOKUP($B18,Neighbours_summary,('Data Summary'!V$3-1),FALSE)","v":{"$error":"#N/A"}},{"$f":"VLOOKUP($B18,Neighbours_summary,('Data Summary'!W$3-1),FALSE)","v":{"$error":"#N/A"}},{"$f":"VLOOKUP($B18,Neighbours_summary,('Data Summary'!X$3-1),FALSE)","v":{"$error":"#N/A"}},{"$f":"VLOOKUP($B18,Neighbours_summary,('Data Summary'!Y$3-1),FALSE)","v":{"$error":"#N/A"}},{"$f":"VLOOKUP($B18,Neighbours_summary,('Data Summary'!Z$3-1),FALSE)","v":{"$error":"#N/A"}},{"$f":"(VLOOKUP($B18,Neighbours_summary,('Data Summary'!AA$3-1),FALSE))/1000000","v":{"$error":"#N/A"}},{"$f":"VLOOKUP($B18,Neighbours_summary,('Data Summary'!AB$3-1),FALSE)","v":{"$error":"#N/A"}},{"$f":"VLOOKUP($B18,Neighbours_summary,('Data Summary'!AC$3-1),FALSE)","v":{"$error":"#N/A"}},{"$f":"(VLOOKUP($B18,Neighbours_summary,('Data Summary'!AD$3-1),FALSE))/1000000","v":{"$error":"#N/A"}},{"$f":"VLOOKUP($B18,Neighbours_summary,('Data Summary'!AE$3-1),FALSE)","v":{"$error":"#N/A"}},{"$f":"VLOOKUP($B18,Neighbours_summary,('Data Summary'!AF$3-1),FALSE)","v":{"$error":"#N/A"}},{"$f":"(VLOOKUP($B18,Neighbours_summary,('Data Summary'!AG$3-1),FALSE))/1000000","v":{"$error":"#N/A"}},{"$f":"VLOOKUP($B18,Neighbours_summary,('Data Summary'!AH$3-1),FALSE)","v":{"$error":"#N/A"}},{"$f":"VLOOKUP($B18,Neighbours_summary,('Data Summary'!AI$3-1),FALSE)","v":{"$error":"#N/A"}},{"$f":"(VLOOKUP($B18,Neighbours_summary,('Data Summary'!AJ$3-1),FALSE))/1000000","v":{"$error":"#N/A"}},{"$f":"VLOOKUP($B18,Neighbours_summary,('Data Summary'!AK$3-1),FALSE)","v":{"$error":"#N/A"}},null,{"$f":"(VLOOKUP($B18,Neighbours_summary,('Data Summary'!AM$3-1),FALSE))/1000000","v":{"$error":"#N/A"}},{"$f":"VLOOKUP($B18,Neighbours_summary,('Data Summary'!AN$3-1),FALSE)","v":{"$error":"#N/A"}},{"$f":"VLOOKUP($B18,Neighbours_summary,('Data Summary'!AO$3-1),FALSE)","v":{"$error":"#N/A"}},{"$f":"(VLOOKUP($B18,Neighbours_summary,('Data Summary'!AP$3-1),FALSE))/1000000","v":{"$error":"#N/A"}},{"$f":"VLOOKUP($B18,Neighbours_summary,('Data Summary'!AQ$3-1),FALSE)","v":{"$error":"#N/A"}},{"$f":"VLOOKUP($B18,Neighbours_summary,('Data Summary'!AR$3-1),FALSE)","v":{"$error":"#N/A"}},{"$f":"(VLOOKUP($B18,Neighbours_summary,('Data Summary'!AS$3-1),FALSE))/1000000","v":{"$error":"#N/A"}},{"$f":"VLOOKUP($B18,Neighbours_summary,('Data Summary'!AT$3-1),FALSE)","v":{"$error":"#N/A"}},{"$f":"VLOOKUP($B18,Neighbours_summary,('Data Summary'!AU$3-1),FALSE)","v":{"$error":"#N/A"}},{"$f":"(VLOOKUP($B18,Neighbours_summary,('Data Summary'!AV$3-1),FALSE))/1000000","v":{"$error":"#N/A"}},{"$f":"VLOOKUP($B18,Neighbours_summary,('Data Summary'!AW$3-1),FALSE)","v":{"$error":"#N/A"}},{"$f":"VLOOKUP($B18,Neighbours_summary,('Data Summary'!AX$3-1),FALSE)","v":{"$error":"#N/A"}},{"$f":"(VLOOKUP($B18,Neighbours_summary,('Data Summary'!AY$3-1),FALSE))/1000000","v":{"$error":"#N/A"}},{"$f":"VLOOKUP($B18,Neighbours_summary,('Data Summary'!AZ$3-1),FALSE)","v":{"$error":"#N/A"}},{"$f":"VLOOKUP($B18,Neighbours_summary,('Data Summary'!BA$3-1),FALSE)","v":{"$error":"#N/A"}},{"$f":"(VLOOKUP($B18,Neighbours_summary,('Data Summary'!BB$3-1),FALSE))/1000000","v":{"$error":"#N/A"}},{"$f":"VLOOKUP($B18,Neighbours_summary,('Data Summary'!BC$3-1),FALSE)","v":{"$error":"#N/A"}},{"$f":"VLOOKUP($B18,Neighbours_summary,('Data Summary'!BD$3-1),FALSE)","v":{"$error":"#N/A"}},{"$f":"(VLOOKUP($B18,Neighbours_summary,('Data Summary'!BE$3-1),FALSE))/1000000","v":{"$error":"#N/A"}},{"$f":"VLOOKUP($B18,Neighbours_summary,('Data Summary'!BF$3-1),FALSE)","v":{"$error":"#N/A"}},{"$f":"VLOOKUP($B18,Neighbours_summary,('Data Summary'!BG$3-1),FALSE)","v":{"$error":"#N/A"}},{"$f":"VLOOKUP($B18,Neighbours_summary,('Data Summary'!BH$3-1),FALSE)/1000000","v":{"$error":"#N/A"}},{"$f":"VLOOKUP($B18,Neighbours_summary,('Data Summary'!BI$3-1),FALSE)","v":{"$error":"#N/A"}},{"$f":"VLOOKUP($B18,Neighbours_summary,('Data Summary'!BJ$3-1),FALSE)","v":{"$error":"#N/A"}},{"$f":"(VLOOKUP($B18,Neighbours_summary,('Data Summary'!BK$3-1),FALSE))/1000000","v":{"$error":"#N/A"}},{"$f":"VLOOKUP($B18,Neighbours_summary,('Data Summary'!BL$3-1),FALSE)","v":{"$error":"#N/A"}},{"$f":"VLOOKUP($B18,Neighbours_summary,('Data Summary'!BM$3-1),FALSE)","v":{"$error":"#N/A"}},{"$f":"(VLOOKUP($B18,Neighbours_summary,('Data Summary'!BN$3-1),FALSE))/1000000","v":{"$error":"#N/A"}},{"$f":"VLOOKUP($B18,Neighbours_summary,('Data Summary'!BO$3-1),FALSE)","v":{"$error":"#N/A"}},{"$f":"VLOOKUP($B18,Neighbours_summary,('Data Summary'!BP$3-1),FALSE)","v":{"$error":"#N/A"}},{"$f":"(VLOOKUP($B18,Neighbours_summary,('Data Summary'!BQ$3-1),FALSE))/1000000","v":{"$error":"#N/A"}},{"$f":"VLOOKUP($B18,Neighbours_summary,('Data Summary'!BR$3-1),FALSE)","v":{"$error":"#N/A"}},{"$f":"VLOOKUP($B18,Neighbours_summary,('Data Summary'!BS$3-1),FALSE)","v":{"$error":"#N/A"}},{"$f":"VLOOKUP($B18,Neighbours_summary,('Data Summary'!BT$3-1),FALSE)","v":{"$error":"#N/A"}},{"$f":"VLOOKUP($B18,Neighbours_summary,('Data Summary'!BU$3-1),FALSE)","v":{"$error":"#N/A"}},{"$f":"VLOOKUP($B18,Neighbours_summary,('Data Summary'!BV$3-1),FALSE)","v":{"$error":"#N/A"}},{"$f":"VLOOKUP($B18,Neighbours_summary,('Data Summary'!BW$3-1),FALSE)","v":{"$error":"#N/A"}},{"$f":"VLOOKUP($B18,Neighbours_summary,('Data Summary'!BX$3-1),FALSE)","v":{"$error":"#N/A"}},{"$f":"VLOOKUP($B18,Neighbours_summary,('Data Summary'!BY$3-1),FALSE)","v":{"$error":"#N/A"}},{"$f":"IFERROR((VLOOKUP($B18,Attainment,Attainment!$OR$2,FALSE)/100), \"x\")","v":"x"},{"$f":"IFERROR((VLOOKUP($B18,Attainment,Attainment!$OE$2,FALSE)/100), \"x\")","v":"x"},{"$f":"IFERROR((VLOOKUP($B18,Attainment,Attainment!$NR$2,FALSE)/100), \"x\")","v":"x"},{"$f":"IFERROR((VLOOKUP($B18,Attainment,Attainment!$NE$2,FALSE)/100), \"x\")","v":"x"},{"$f":"IFERROR((VLOOKUP($B18,Attainment,Attainment!$MR$2,FALSE)/100), \"x\")","v":"x"},{"$f":"IFERROR((VLOOKUP($B18,Attainment,Attainment!$OT$2,FALSE)/100), \"x\")","v":"x"},{"$f":"IFERROR((VLOOKUP($B18,Attainment,Attainment!$OG$2,FALSE)/100), \"x\")","v":"x"},{"$f":"IFERROR((VLOOKUP($B18,Attainment,Attainment!$NT$2,FALSE)/100), \"x\")","v":"x"},{"$f":"IFERROR((VLOOKUP($B18,Attainment,Attainment!$NG$2,FALSE)/100), \"x\")","v":"x"},{"$f":"IFERROR((VLOOKUP($B18,Attainment,Attainment!$MT$2,FALSE)/100), \"x\")","v":"x"},{"$f":"IFERROR((VLOOKUP($B18,Attainment,Attainment!$S$2,FALSE)/100), \"x\")","v":"x"},{"$f":"IFERROR((VLOOKUP($B18,Attainment,Attainment!$O$2,FALSE)/100), \"x\")","v":"x"},{"$f":"IFERROR((VLOOKUP($B18,Attainment,Attainment!$BI$2,FALSE)/100), \"x\")","v":"x"},{"$f":"IFERROR((VLOOKUP($B18,Attainment,Attainment!$BG$2,FALSE)/100), \"x\")","v":"x"},{"$f":"IFERROR((VLOOKUP($B18,Attainment,Attainment!$DF$2,FALSE)/100), \"x\")","v":"x"},{"$f":"IFERROR((VLOOKUP($B18,Attainment,Attainment!$DA$2,FALSE)/100), \"x\")","v":"x"},{"$f":"IFERROR((VLOOKUP($B18,Attainment,Attainment!$DG$2,FALSE)/100), \"x\")","v":"x"},{"$f":"IFERROR((VLOOKUP($B18,Attainment,Attainment!$DB$2,FALSE)/100), \"x\")","v":"x"},{"$f":"IFERROR((VLOOKUP($B18,Attainment,Attainment!$DH$2,FALSE)/100), \"x\")","v":"x"},{"$f":"IFERROR((VLOOKUP($B18,Attainment,Attainment!$DC$2,FALSE)/100), \"x\")","v":"x"},{"$f":"IFERROR((VLOOKUP($B18,Attainment,Attainment!$DI$2,FALSE)/100), \"x\")","v":"x"},{"$f":"IFERROR((VLOOKUP($B18,Attainment,Attainment!$DD$2,FALSE)/100), \"x\")","v":"x"},{"$f":"IFERROR((VLOOKUP($B18,Attainment,Attainment!$JL$2,FALSE)/100), \"x\")","v":"x"},{"$f":"IFERROR((VLOOKUP($B18,Attainment,Attainment!$JF$2,FALSE)/100), \"x\")","v":"x"},{"$f":"IFERROR((VLOOKUP($B18,Attainment,Attainment!$JM$2,FALSE)/100), \"x\")","v":"x"},{"$f":"IFERROR((VLOOKUP($B18,Attainment,Attainment!$JG$2,FALSE)/100), \"x\")","v":"x"},{"$f":"IFERROR((VLOOKUP($B18,Attainment,Attainment!$PK$2,FALSE)), \"x\")","v":"x"},{"$f":"IFERROR((VLOOKUP($B18,Attainment,Attainment!$PJ$2,FALSE)), \"x\")","v":"x"},{"$f":"IFERROR(((VLOOKUP($B18,Attainment,Attainment!$PC$2,FALSE))/100), \"x\")","v":"x"},{"$f":"IFERROR(((VLOOKUP(B18,Other_data,Other!$X$3,FALSE))/100), \"x\")","v":"x"},{"$f":"IFERROR(((VLOOKUP(B18,Other_data,Other!$KC$3,FALSE))/100), \"x\")","v":"x"},{"$f":"IFERROR((VLOOKUP($B18,Other_data,Other!$HX$3,FALSE)), \"x\")","v":"x"},{"$f":"IFERROR((VLOOKUP($B18,Other_data,Other!$IG$3,FALSE)), \"x\")","v":"x"},{"$f":"IFERROR((VLOOKUP($B18,Other_data,Other!$IM$3,FALSE)), \"x\")","v":"x"},{"$f":"IFERROR((VLOOKUP($B18,Other_data,Other!$IV$3,FALSE)), \"x\")","v":"x"},{"$f":"IFERROR((VLOOKUP($B18,Other_data,Other!$IY$3,FALSE)), \"x\")","v":"x"},{"$f":"IFERROR((VLOOKUP($B18,Other_data,Other!$JB$3,FALSE)), \"x\")","v":"x"},{"$f":"IFERROR((VLOOKUP($B18,Other_data,Other!$JE$3,FALSE)), \"x\")","v":"x"},{"$f":"IFERROR((VLOOKUP($B18,Other_data,Other!$JH$3,FALSE)), \"x\")","v":"x"}]
[]
[null,null,"Statistical Neighbours Average",{"$f":"IFERROR((AVERAGE(D7:D18)), \"x\")","v":"x"},"x","x","x","x","x","x","x","x","x","x","x","x","x","x","x","x","x","x","x","x","x","x","x","x","x","x","x","x","x","x","x","x","x",null,"x","x","x","x","x","x","x","x","x","x","x","x","x","x","x","x","x","x","x","x","x","x","x","x","x","x","x","x","x",{"$f":"IFERROR((AVERAGE(BP7:BP18)), \"x\")","v":"x"},"x","x","x","x","x","x","x","x","x","x","x","x","x","x","x","x","x","x","x",{"$f":"IFERROR((AVERAGE(CJ7:CJ18)), \"x\")","v":"x"},{"$f":"IFERROR((AVERAGE(CK7:CK18)), \"x\")","v":"x"},"x","x","x","x","x","x","x","x","x","x","x","x","x","x","x","x",{"$f":"IFERROR((AVERAGE(DB7:DB18)), \"x\")","v":"x"},"x","x","x","x","x","x","x","x","x","x"]
[null,970,"England Total",{"$f":"'Data Summary'!D7","v":2.7853707484170098E-2},{"$f":"'Data Summary'!E7","v":2.765312976948419E-2},{"$f":"'Data Summary'!F7","v":2.7598932281617188E-2},{"$f":"'Data Summary'!G7","v":2.7649727323860996E-2},{"$f":"'Data Summary'!H7","v":2.780548885368269E-2},{"$f":"'Data Summary'!I7","v":2.7869315846044806E-2},{"$f":"'Data Summary'!J7","v":0.20669143924827119},{"$f":"'Data Summary'!K7","v":0.21053398465862225},{"$f":"'Data Summary'!L7","v":0.20604662928298292},{"$f":"'Data Summary'!M7","v":0.19788462008754984},{"$f":"'Data Summary'!N7","v":0.18735098141654172},{"$f":"'Data Summary'!O7","v":0.17919589600048491},{"$f":"'Data Summary'!P7","v":0.34926874722458817},{"$f":"'Data Summary'!Q7","v":0.21281676093967256},{"$f":"'Data Summary'!R7","v":0.20512932509263507},{"$f":"'Data Summary'!S7","v":3.9085078657901826E-2},{"$f":"'Data Summary'!T7","v":3.9230674033792684E-2},{"$f":"'Data Summary'!U7","v":0.11162069492672913},{"$f":"'Data Summary'!V7","v":4.28487191246806E-2},{"$f":"'Data Summary'!W7","v":0.46696611206005778},{"$f":"'Data Summary'!X7","v":0.45439784061913496},{"$f":"'Data Summary'!Y7","v":5.7337466523270278E-2},{"$f":"'Data Summary'!Z7","v":2.1298580797536958E-2},{"$f":"'Data Summary'!AA7/1000000","v":4732.0621418557803},{"$f":"'Data Summary'!AB7","v":0.12839675042743456},{"$f":"'Data Summary'!AC7","v":2924.0222338048743},{"$f":"'Data Summary'!AD7/1000000","v":4966.8902115862002},{"$f":"'Data Summary'!AE7","v":0.13047137288559388},{"$f":"'Data Summary'!AF7","v":3213.5468918978268},{"$f":"'Data Summary'!AG7/1000000","v":5181.2822421399596},{"$f":"'Data Summary'!AH7","v":0.13376116473487551},{"$f":"'Data Summary'!AI7","v":3470.499509119501},{"$f":"'Data Summary'!AJ7/1000000","v":5245.1199500596231},{"$f":"'Data Summary'!AK7","v":0.13239528643322937},null,{"$f":"'Data Summary'!AM7/1000000","v":2966.8860532980007},{"$f":"'Data Summary'!AN7","v":7.9931475288838566E-2},{"$f":"'Data Summary'!AO7","v":1773.8115414565907},{"$f":"'Data Summary'!AP7/1000000","v":3128.1769151758313},{"$f":"'Data Summary'!AQ7","v":8.1003751463615353E-2},{"$f":"'Data Summary'!AR7","v":1834.7293898906917},{"$f":"'Data Summary'!AS7/1000000","v":3198.3050492055199},{"$f":"'Data Summary'!AT7","v":8.7921351141126411E-2},{"$f":"'Data Summary'!AU7","v":1910.6963394989054},{"$f":"'Data Summary'!AV7/1000000","v":3458.4067196300002},{"$f":"'Data Summary'!AW7","v":0.10218324495572498},{"$f":"'Data Summary'!AX7","v":2137.0087371195177},{"$f":"'Data Summary'!AY7/1000000","v":4738.09826299},{"$f":"'Data Summary'!AZ7","v":0.12157365260633393},{"$f":"'Data Summary'!BA7","v":3065.5199325767817},{"$f":"'Data Summary'!BB7/1000000","v":4691.6213725199996},{"$f":"'Data Summary'!BC7","v":0.1184265711019655},{"$f":"'Data Summary'!BD7","v":3142.5174135235602},{"$f":"'Data Summary'!BE7/1000000","v":5197.4674624343806},{"$f":"'Data Summary'!BF7","v":0.12718973343072165},{"$f":"'Data Summary'!BG7","v":3107.4087799775684},{"$f":"'Data Summary'!BH7/1000000","v":5465.499699580002},{"$f":"'Data Summary'!BI7","v":0.13209037683190658},{"$f":"'Data Summary'!BJ7","v":3205.6092737627432},{"$f":"'Data Summary'!BK7/1000000","v":5524.8411612},{"$f":"'Data Summary'!BL7","v":0.14592609673222293},{"$f":"'Data Summary'!BM7","v":3300.5900377263806},{"$f":"'Data Summary'!BN7/1000000","v":5400.0814721699981},{"$f":"'Data Summary'!BO7","v":0.15432028569487416},{"$f":"'Data Summary'!BP7","v":3336.8028178071345},{"$f":"'Data Summary'!BQ7/1000000","v":4654.4995571999998},{"$f":"'Data Summary'!BR7","v":0.15193638340882781},{"$f":"'Data Summary'!BS7","v":3011.4320929600608},{"$f":"'Data Summary'!BT7","v":0.2226645623592575},{"$f":"'Data Summary'!BU7","v":313340},{"$f":"'Data Summary'!BV7","v":3.7278758236226624E-2},{"$f":"'Data Summary'!BW7","v":5.1808030997963841E-2},{"$f":"'Data Summary'!BX7","v":6.4255966020791231E-3},{"$f":"'Data Summary'!BY7","v":1.1098465266654771E-2},{"$f":"IFERROR((VLOOKUP($B21,Attainment,Attainment!$OR$2,FALSE)/100), \"x\")","v":0.18600000000000003},{"$f":"IFERROR((VLOOKUP($B21,Attainment,Attainment!$OE$2,FALSE)/100), \"x\")","v":0.22899999999999998},{"$f":"IFERROR((VLOOKUP($B21,Attainment,Attainment!$NR$2,FALSE)/100), \"x\")","v":0.248},{"$f":"IFERROR((VLOOKUP($B21,Attainment,Attainment!$NE$2,FALSE)/100), \"x\")","v":0.253},{"$f":"IFERROR((VLOOKUP($B21,Attainment,Attainment!$MR$2,FALSE)/100), \"x\")","v":0.26600000000000001},{"$f":"IFERROR((VLOOKUP($B21,Attainment,Attainment!$OT$2,FALSE)/100), \"x\")","v":6.0999999999999999E-2},{"$f":"IFERROR((VLOOKUP($B21,Attainment,Attainment!$OG$2,FALSE)/100), \"x\")","v":7.2999999999999995E-2},{"$f":"IFERROR((VLOOKUP($B21,Attainment,Attainment!$NT$2,FALSE)/100), \"x\")","v":8.5000000000000006E-2},{"$f":"IFERROR((VLOOKUP($B21,Attainment,Attainment!$NG$2,FALSE)/100), \"x\")","v":8.4000000000000005E-2},{"$f":"IFERROR((VLOOKUP($B21,Attainment,Attainment!$MT$2,FALSE)/100), \"x\")","v":9.5000000000000001E-2},{"$f":"IFERROR((VLOOKUP($B21,Attainment,Attainment!$S$2,FALSE)/100), \"x\")","v":0.03},{"$f":"IFERROR((VLOOKUP($B21,Attainment,Attainment!$O$2,FALSE)/100), \"x\")","v":0.19},{"$f":"IFERROR((VLOOKUP($B21,Attainment,Attainment!$BI$2,FALSE)/100), \"x\")","v":0.17},{"$f":"IFERROR((VLOOKUP($B21,Attainment,Attainment!$BG$2,FALSE)/100), \"x\")","v":0.4},{"$f":"IFERROR((VLOOKUP($B21,Attainment,Attainment!$DF$2,FALSE)/100), \"x\")","v":0.25},{"$f":"IFERROR((VLOOKUP($B21,Attainment,Attainment!$DA$2,FALSE)/100), \"x\")","v":0.64},{"$f":"IFERROR((VLOOKUP($B21,Attainment,Attainment!$DG$2,FALSE)/100), \"x\")","v":0.19},{"$f":"IFERROR((VLOOKUP($B21,Attainment,Attainment!$DB$2,FALSE)/100), \"x\")","v":0.54},{"$f":"IFERROR((VLOOKUP($B21,Attainment,Attainment!$DH$2,FALSE)/100), \"x\")","v":0.28000000000000003},{"$f":"IFERROR((VLOOKUP($B21,Attainment,Attainment!$DC$2,FALSE)/100), \"x\")","v":0.73},{"$f":"IFERROR((VLOOKUP($B21,Attainment,Attainment!$DI$2,FALSE)/100), \"x\")","v":0.25},{"$f":"IFERROR((VLOOKUP($B21,Attainment,Attainment!$DD$2,FALSE)/100), \"x\")","v":0.69},{"$f":"IFERROR((VLOOKUP($B21,Attainment,Attainment!$JL$2,FALSE)/100), \"x\")","v":0.18},{"$f":"IFERROR((VLOOKUP($B21,Attainment,Attainment!$JF$2,FALSE)/100), \"x\")","v":0.39},{"$f":"IFERROR((VLOOKUP($B21,Attainment,Attainment!$JM$2,FALSE)/100), \"x\")","v":0.15},{"$f":"IFERROR((VLOOKUP($B21,Attainment,Attainment!$JG$2,FALSE)/100), \"x\")","v":0.42},{"$f":"IFERROR((VLOOKUP($B21,Attainment,Attainment!$PK$2,FALSE)), \"x\")","v":0.86},{"$f":"IFERROR((VLOOKUP($B21,Attainment,Attainment!$PJ$2,FALSE)), \"x\")","v":0.81},{"$f":"IFERROR(((VLOOKUP($B21,Attainment,Attainment!$PC$2,FALSE))/100), \"x\")","v":0.85799999999999998},{"$f":"IFERROR(((VLOOKUP(B21,Other_data,Other!$X$3,FALSE))/100), \"x\")","v":7.0000000000000007E-2},{"$f":"IFERROR(((VLOOKUP(B21,Other_data,Other!$KC$3,FALSE))/100), \"x\")","v":0.13200000000000001},{"$f":"IFERROR((VLOOKUP($B21,Other_data,Other!$HX$3,FALSE)), \"x\")","v":103.82918622821001},{"$f":"IFERROR((VLOOKUP($B21,Other_data,Other!$IG$3,FALSE)), \"x\")","v":130.65412326862},{"$f":"IFERROR((VLOOKUP($B21,Other_data,Other!$IM$3,FALSE)), \"x\")","v":221.436630187763},{"$f":"IFERROR((VLOOKUP($B21,Other_data,Other!$IV$3,FALSE)), \"x\")","v":87.627841667607697},{"$f":"IFERROR((VLOOKUP($B21,Other_data,Other!$IY$3,FALSE)), \"x\")","v":346.27279137021702},{"$f":"IFERROR((VLOOKUP($B21,Other_data,Other!$JB$3,FALSE)), \"x\")","v":79.3},{"$f":"IFERROR((VLOOKUP($B21,Other_data,Other!$JE$3,FALSE)), \"x\")","v":2066.1999999999998},{"$f":"IFERROR((VLOOKUP($B21,Other_data,Other!$JH$3,FALSE)), \"x\")","v":1100.7}]

{"sheet":"SN","index":8,"n_rows":155,"n_cols":22,"rows_kept":155,"cut":false,"hidden":true,"merged":[]}
["LA No","LA Name","LA No","SN1","LA No","SN2","LA No","SN3","LA No","SN4","LA No","SN5","LA No","SN6","LA No","SN7","LA No","SN8","LA No","SN9","LA No","SN10"]
[301,"Barking and Dagenham",203,"Greenwich",308,"Enfield",352,"Manchester",330,"Birmingham",821,"Luton",892,"Nottingham",320,"Waltham Forest",871,"Slough",331,"Coventry",316,"Newham"]
[302,"Barnet",315,"Merton",314,"Kingston upon Thames",870,"Reading",312,"Hillingdon",319,"Sutton",317,"Redbridge",313,"Hounslow",826,"Milton Keynes",305,"Bromley",307,"Ealing"]
[370,"Barnsley",807,"Redcar and Cleveland",371,"Doncaster",384,"Wakefield",359,"Wigan",372,"Rotherham",342,"St. Helens",812,"North East Lincolnshire",805,"Hartlepool",876,"Halton",840,"Durham"]
[800,"Bath and North East Somerset",916,"Gloucestershire",873,"Cambridgeshire",931,"Oxfordshire",865,"Wiltshire",938,"West Sussex",850,"Hampshire",802,"North Somerset",803,"South Gloucestershire",878,"Devon",885,"Worcestershire"]
[822,"Bedford Borough",886,"Kent",928,"Northamptonshire",866,"Swindon",831,"Derby",826,"Milton Keynes",373,"Sheffield",383,"Leeds",919,"Hertfordshire",937,"Warwickshire",887,"Medway"]
[303,"Bexley",311,"Havering",883,"Thurrock",887,"Medway",826,"Milton Keynes",882,"Southend-on-Sea",866,"Swindon",886,"Kent",822,"Bedford Borough",881,"Essex",305,"Bromley"]
[330,"Birmingham",821,"Luton",333,"Sandwell",892,"Nottingham",336,"Wolverhampton",308,"Enfield",320,"Waltham Forest",871,"Slough",352,"Manchester",335,"Walsall",831,"Derby"]
[889,"Blackburn with Darwen",335,"Walsall",380,"Bradford",350,"Bolton",354,"Rochdale",874,"Peterborough",831,"Derby",353,"Oldham",382,"Kirklees",331,"Coventry",894,"Telford and Wrekin"]
[890,"Blackpool",805,"Hartlepool",807,"Redcar and Cleveland",812,"North East Lincolnshire",357,"Tameside",370,"Barnsley",880,"Torbay",861,"Stoke-on-Trent",393,"South Tyneside",876,"Halton",810,"Kingston Upon Hull, City of"]
[350,"Bolton",382,"Kirklees",831,"Derby",332,"Dudley",357,"Tameside",381,"Calderdale",894,"Telford and Wrekin",373,"Sheffield",335,"Walsall",887,"Medway",372,"Rotherham"]
[837,"Bournemouth",882,"Southend-on-Sea",879,"Plymouth",836,"Poole",866,"Swindon",851,"Portsmouth",373,"Sheffield",845,"East Sussex",886,"Kent",921,"Isle of Wight",880,"Torbay"]
[867,"Bracknell Forest",919,"Hertfordshire",850,"Hampshire",823,"Central Bedfordshire",869,"West Berkshire",938,"West Sussex",931,"Oxfordshire",937,"Warwickshire",803,"South Gloucestershire",816,"York",825,"Buckinghamshire"]
[380,"Bradford",354,"Rochdale",889,"Blackburn with Darwen",353,"Oldham",382,"Kirklees",335,"Walsall",874,"Peterborough",831,"Derby",350,"Bolton",894,"Telford and Wrekin",373,"Sheffield"]
[304,"Brent",307,"Ealing",320,"Waltham Forest",306,"Croydon",309,"Haringey",308,"Enfield",316,"Newham",313,"Hounslow",209,"Lewisham",203,"Greenwich",204,"Hackney"]
[846,"Brighton and Hove",837,"Bournemouth",801,"Bristol, City of",870,"Reading",800,"Bath and North East Somerset",373,"Sheffield",851,"Portsmouth",816,"York",383,"Leeds",305,"Bromley",882,"Southend-on-Sea"]
[801,"Bristol, City of",851,"Portsmouth",870,"Reading",852,"Southampton",373,"Sheffield",846,"Brighton and Hove",831,"Derby",837,"Bournemouth",331,"Coventry",879,"Plymouth",383,"Leeds"]
[305,"Bromley",358,"Trafford",919,"Hertfordshire",319,"Sutton",867,"Bracknell Forest",356,"Stockport",822,"Bedford Borough",334,"Solihull",931,"Oxfordshire",850,"Hampshire",800,"Bath and North East Somerset"]
[825,"Buckinghamshire",936,"Surrey",869,"West Berkshire",868,"Windsor and Maidenhead",919,"Hertfordshire",931,"Oxfordshire",873,"Cambridgeshire",850,"Hampshire",867,"Bracknell Forest",823,"Central Bedfordshire",872,"Wokingham"]
[351,"Bury",381,"Calderdale",888,"Lancashire",808,"Stockton-on-Tees",356,"Stockport",343,"Sefton",877,"Warrington",891,"Nottinghamshire",886,"Kent",334,"Solihull",841,"Darlington"]
[381,"Calderdale",888,"Lancashire",351,"Bury",808,"Stockton-on-Tees",841,"Darlington",891,"Nottinghamshire",382,"Kirklees",830,"Derbyshire",343,"Sefton",860,"Staffordshire",886,"Kent"]
[873,"Cambridgeshire",931,"Oxfordshire",916,"Gloucestershire",850,"Hampshire",865,"Wiltshire",800,"Bath and North East Somerset",869,"West Berkshire",938,"West Sussex",919,"Hertfordshire",885,"Worcestershire",803,"South Gloucestershire"]
[202,"Camden",213,"Westminster",205,"Hammersmith and Fulham",206,"Islington",207,"Kensington and Chelsea",212,"Wandsworth",203,"Greenwich",352,"Manchester",309,"Haringey",302,"Barnet",870,"Reading"]
[823,"Central Bedfordshire",850,"Hampshire",937,"Warwickshire",881,"Essex",855,"Leicestershire",803,"South Gloucestershire",885,"Worcestershire",895,"Cheshire East",938,"West Sussex",867,"Bracknell Forest",869,"West Berkshire"]
[895,"Cheshire East",896,"Cheshire West and Chester",937,"Warwickshire",823,"Central Bedfordshire",877,"Warrington",850,"Hampshire",815,"North Yorkshire",811,"East Riding of Yorkshire",334,"Solihull",802,"North Somerset",869,"West Berkshire"]
[896,"Cheshire West and Chester",877,"Warrington",937,"Warwickshire",895,"Cheshire East",885,"Worcestershire",356,"Stockport",860,"Staffordshire",811,"East Riding of Yorkshire",823,"Central Bedfordshire",816,"York",891,"Nottinghamshire"]
[201,"City of London",207,"Kensington and Chelsea",213,"Westminster",202,"Camden",212,"Wandsworth",205,"Hammersmith and Fulham",318,"Richmond upon Thames",302,"Barnet",206,"Islington",846,"Brighton and Hove",314,"Kingston upon Thames"]
[908,"Cornwall",933,"Somerset",926,"Norfolk",878,"Devon",884,"Herefordshire",935,"Suffolk",893,"Shropshire",835,"Dorset",845,"East Sussex",925,"Lincolnshire",909,"Cumbria"]
[331,"Coventry",831,"Derby",350,"Bolton",373,"Sheffield",874,"Peterborough",335,"Walsall",383,"Leeds",851,"Portsmouth",852,"Southampton",357,"Tameside",887,"Medway"]
[306,"Croydon",308,"Enfield",320,"Waltham Forest",209,"Lewisham",309,"Haringey",304,"Brent",330,"Birmingham",203,"Greenwich",315,"Merton",307,"Ealing",208,"Lambeth"]
[909,"Cumbria",925,"Lincolnshire",830,"Derbyshire",926,"Norfolk",891,"Nottinghamshire",860,"Staffordshire",885,"Worcestershire",935,"Suffolk",888,"Lancashire",813,"North Lincolnshire",908,"Cornwall"]
[841,"Darlington",808,"Stockton-on-Tees",392,"North Tyneside",342,"St. Helens",381,"Calderdale",840,"Durham",359,"Wigan",344,"Wirral",390,"Gateshead",876,"Halton",343,"Sefton"]
[831,"Derby",373,"Sheffield",874,"Peterborough",350,"Bolton",894,"Telford and Wrekin",335,"Walsall",331,"Coventry",887,"Medway",382,"Kirklees",332,"Dudley",383,"Leeds"]
[830,"Derbyshire",891,"Nottinghamshire",860,"Staffordshire",888,"Lancashire",909,"Cumbria",925,"Lincolnshire",885,"Worcestershire",881,"Essex",928,"Northamptonshire",886,"Kent",896,"Cheshire West and Chester"]
[878,"Devon",933,"Somerset",893,"Shropshire",835,"Dorset",908,"Cornwall",884,"Herefordshire",935,"Suffolk",916,"Gloucestershire",845,"East Sussex",865,"Wiltshire",926,"Norfolk"]
[371,"Doncaster",372,"Rotherham",370,"Barnsley",812,"North East Lincolnshire",359,"Wigan",384,"Wakefield",357,"Tameside",332,"Dudley",813,"North Lincolnshire",894,"Telford and Wrekin",807,"Redcar and Cleveland"]
[835,"Dorset",893,"Shropshire",878,"Devon",916,"Gloucestershire",885,"Worcestershire",933,"Somerset",938,"West Sussex",865,"Wiltshire",802,"North Somerset",935,"Suffolk",845,"East Sussex"]
[332,"Dudley",372,"Rotherham",887,"Medway",371,"Doncaster",359,"Wigan",894,"Telford and Wrekin",888,"Lancashire",357,"Tameside",813,"North Lincolnshire",891,"Nottinghamshire",350,"Bolton"]
[840,"Durham",342,"St. Helens",384,"Wakefield",390,"Gateshead",394,"Sunderland",841,"Darlington",370,"Barnsley",359,"Wigan",392,"North Tyneside",808,"Stockton-on-Tees",876,"Halton"]
[307,"Ealing",313,"Hounslow",315,"Merton",317,"Redbridge",312,"Hillingdon",304,"Brent",310,"Harrow",302,"Barnet",871,"Slough",320,"Waltham Forest",308,"Enfield"]
[811,"East Riding of Yorkshire",860,"Staffordshire",896,"Cheshire West and Chester",815,"North Yorkshire",877,"Warrington",937,"Warwickshire",895,"Cheshire East",830,"Derbyshire",885,"Worcestershire",891,"Nottinghamshire",929,"Northumberland"]
[845,"East Sussex",886,"Kent",885,"Worcestershire",802,"North Somerset",881,"Essex",878,"Devon",938,"West Sussex",835,"Dorset",935,"Suffolk",836,"Poole",916,"Gloucestershire"]
[308,"Enfield",320,"Waltham Forest",306,"Croydon",203,"Greenwich",330,"Birmingham",309,"Haringey",301,"Barking and Dagenham",821,"Luton",870,"Reading",892,"Nottingham",336,"Wolverhampton"]
[881,"Essex",886,"Kent",885,"Worcestershire",823,"Central Bedfordshire",860,"Staffordshire",938,"West Sussex",803,"South Gloucestershire",937,"Warwickshire",855,"Leicestershire",802,"North Somerset",845,"East Sussex"]
[390,"Gateshead",394,"Sunderland",840,"Durham",342,"St. Helens",841,"Darlington",384,"Wakefield",392,"North Tyneside",393,"South Tyneside",876,"Halton",370,"Barnsley",357,"Tameside"]
[916,"Gloucestershire",865,"Wiltshire",800,"Bath and North East Somerset",938,"West Sussex",835,"Dorset",873,"Cambridgeshire",878,"Devon",893,"Shropshire",850,"Hampshire",803,"South Gloucestershire",885,"Worcestershire"]
[203,"Greenwich",308,"Enfield",301,"Barking and Dagenham",352,"Manchester",309,"Haringey",320,"Waltham Forest",210,"Southwark",205,"Hammersmith and Fulham",307,"Ealing",870,"Reading",892,"Nottingham"]
[204,"Hackney",309,"Haringey",210,"Southwark",208,"Lambeth",209,"Lewisham",206,"Islington",320,"Waltham Forest",203,"Greenwich",205,"Hammersmith and Fulham",304,"Brent",308,"Enfield"]
[876,"Halton",805,"Hartlepool",342,"St. Helens",812,"North East Lincolnshire",807,"Redcar and Cleveland",394,"Sunderland",370,"Barnsley",357,"Tameside",841,"Darlington",384,"Wakefield",393,"South Tyneside"]
[205,"Hammersmith and Fulham",202,"Camden",212,"Wandsworth",213,"Westminster",206,"Islington",207,"Kensington and Chelsea",309,"Haringey",203,"Greenwich",210,"Southwark",352,"Manchester",315,"Merton"]
[850,"Hampshire",938,"West Sussex",823,"Central Bedfordshire",803,"South Gloucestershire",873,"Cambridgeshire",885,"Worcestershire",802,"North Somerset",916,"Gloucestershire",855,"Leicestershire",937,"Warwickshire",869,"West Berkshire"]
[309,"Haringey",204,"Hackney",320,"Waltham Forest",210,"Southwark",208,"Lambeth",209,"Lewisham",308,"Enfield",203,"Greenwich",206,"Islington",205,"Hammersmith and Fulham",306,"Croydon"]
[310,"Harrow",317,"Redbridge",313,"Hounslow",307,"Ealing",312,"Hillingdon",302,"Barnet",315,"Merton",871,"Slough",314,"Kingston upon Thames",319,"Sutton",304,"Brent"]
[805,"Hartlepool",807,"Redcar and Cleveland",876,"Halton",812,"North East Lincolnshire",393,"South Tyneside",890,"Blackpool",370,"Barnsley",357,"Tameside",394,"Sunderland",342,"St. Helens",390,"Gateshead"]
[311,"Havering",303,"Bexley",887,"Medway",881,"Essex",351,"Bury",886,"Kent",888,"Lancashire",866,"Swindon",883,"Thurrock",332,"Dudley",891,"Nottinghamshire"]
[884,"Herefordshire",893,"Shropshire",933,"Somerset",878,"Devon",908,"Cornwall",835,"Dorset",935,"Suffolk",865,"Wiltshire",926,"Norfolk",916,"Gloucestershire",845,"East Sussex"]
[919,"Hertfordshire",867,"Bracknell Forest",850,"Hampshire",931,"Oxfordshire",823,"Central Bedfordshire",358,"Trafford",825,"Buckinghamshire",873,"Cambridgeshire",869,"West Berkshire",938,"West Sussex",937,"Warwickshire"]
[312,"Hillingdon",313,"Hounslow",317,"Redbridge",871,"Slough",302,"Barnet",870,"Reading",319,"Sutton",307,"Ealing",331,"Coventry",826,"Milton Keynes",315,"Merton"]
[313,"Hounslow",307,"Ealing",312,"Hillingdon",871,"Slough",317,"Redbridge",302,"Barnet",310,"Harrow",870,"Reading",315,"Merton",856,"Leicester",319,"Sutton"]
[921,"Isle of Wight",880,"Torbay",926,"Norfolk",845,"East Sussex",882,"Southend-on-Sea",879,"Plymouth",908,"Cornwall",888,"Lancashire",909,"Cumbria",935,"Suffolk",894,"Telford and Wrekin"]
[420,"Isles of Scilly",884,"Herefordshire",893,"Shropshire",908,"Cornwall",865,"Wiltshire",878,"Devon",933,"Somerset",873,"Cambridgeshire",916,"Gloucestershire",857,"Rutland",835,"Dorset"]
[206,"Islington",205,"Hammersmith and Fulham",202,"Camden",213,"Westminster",309,"Haringey",210,"Southwark",204,"Hackney",352,"Manchester",212,"Wandsworth",203,"Greenwich",208,"Lambeth"]
[207,"Kensington and Chelsea",213,"Westminster",202,"Camden",205,"Hammersmith and Fulham",212,"Wandsworth",201,"City of London",302,"Barnet",206,"Islington",315,"Merton",318,"Richmond upon Thames",870,"Reading"]
[886,"Kent",881,"Essex",845,"East Sussex",866,"Swindon",885,"Worcestershire",928,"Northamptonshire",888,"Lancashire",891,"Nottinghamshire",937,"Warwickshire",938,"West Sussex",860,"Staffordshire"]
[810,"Kingston Upon Hull, City of",861,"Stoke-on-Trent",806,"Middlesbrough",890,"Blackpool",805,"Hartlepool",812,"North East Lincolnshire",355,"Salford",879,"Plymouth",393,"South Tyneside",852,"Southampton",851,"Portsmouth"]
[314,"Kingston upon Thames",319,"Sutton",302,"Barnet",315,"Merton",870,"Reading",318,"Richmond upon Thames",868,"Windsor and Maidenhead",919,"Hertfordshire",936,"Surrey",867,"Bracknell Forest",931,"Oxfordshire"]
[382,"Kirklees",350,"Bolton",381,"Calderdale",351,"Bury",332,"Dudley",831,"Derby",888,"Lancashire",808,"Stockton-on-Tees",383,"Leeds",354,"Rochdale",894,"Telford and Wrekin"]
[340,"Knowsley",393,"South Tyneside",876,"Halton",806,"Middlesbrough",805,"Hartlepool",341,"Liverpool",355,"Salford",394,"Sunderland",807,"Redcar and Cleveland",390,"Gateshead",342,"St. Helens"]
[208,"Lambeth",204,"Hackney",209,"Lewisham",210,"Southwark",309,"Haringey",206,"Islington",306,"Croydon",320,"Waltham Forest",205,"Hammersmith and Fulham",308,"Enfield",203,"Greenwich"]
[888,"Lancashire",891,"Nottinghamshire",381,"Calderdale",830,"Derbyshire",351,"Bury",343,"Sefton",860,"Staffordshire",808,"Stockton-on-Tees",886,"Kent",356,"Stockport",928,"Northamptonshire"]
[383,"Leeds",373,"Sheffield",841,"Darlington",381,"Calderdale",808,"Stockton-on-Tees",391,"Newcastle upon Tyne",351,"Bury",350,"Bolton",831,"Derby",392,"North Tyneside",382,"Kirklees"]
[856,"Leicester",871,"Slough",313,"Hounslow",336,"Wolverhampton",333,"Sandwell",312,"Hillingdon",889,"Blackburn with Darwen",331,"Coventry",335,"Walsall",852,"Southampton",330,"Birmingham"]
[855,"Leicestershire",803,"South Gloucestershire",885,"Worcestershire",937,"Warwickshire",823,"Central Bedfordshire",850,"Hampshire",881,"Essex",938,"West Sussex",802,"North Somerset",860,"Staffordshire",835,"Dorset"]
[209,"Lewisham",208,"Lambeth",306,"Croydon",309,"Haringey",204,"Hackney",320,"Waltham Forest",210,"Southwark",308,"Enfield",304,"Brent",203,"Greenwich",206,"Islington"]
[925,"Lincolnshire",909,"Cumbria",926,"Norfolk",830,"Derbyshire",935,"Suffolk",891,"Nottinghamshire",860,"Staffordshire",885,"Worcestershire",908,"Cornwall",813,"North Lincolnshire",933,"Somerset"]
[341,"Liverpool",355,"Salford",393,"South Tyneside",340,"Knowsley",391,"Newcastle upon Tyne",806,"Middlesbrough",805,"Hartlepool",390,"Gateshead",876,"Halton",394,"Sunderland",383,"Leeds"]
[821,"Luton",330,"Birmingham",333,"Sandwell",871,"Slough",380,"Bradford",335,"Walsall",308,"Enfield",312,"Hillingdon",831,"Derby",336,"Wolverhampton",353,"Oldham"]
[352,"Manchester",892,"Nottingham",801,"Bristol, City of",330,"Birmingham",203,"Greenwich",355,"Salford",852,"Southampton",341,"Liverpool",806,"Middlesbrough",391,"Newcastle upon Tyne",331,"Coventry"]
[887,"Medway",866,"Swindon",894,"Telford and Wrekin",332,"Dudley",928,"Northamptonshire",882,"Southend-on-Sea",886,"Kent",372,"Rotherham",883,"Thurrock",311,"Havering",813,"North Lincolnshire"]
[315,"Merton",302,"Barnet",307,"Ealing",314,"Kingston upon Thames",870,"Reading",319,"Sutton",317,"Redbridge",312,"Hillingdon",313,"Hounslow",212,"Wandsworth",308,"Enfield"]
[806,"Middlesbrough",355,"Salford",861,"Stoke-on-Trent",805,"Hartlepool",354,"Rochdale",876,"Halton",393,"South Tyneside",357,"Tameside",340,"Knowsley",812,"North East Lincolnshire",810,"Kingston Upon Hull, City of"]
[826,"Milton Keynes",822,"Bedford Borough",383,"Leeds",373,"Sheffield",303,"Bexley",870,"Reading",883,"Thurrock",866,"Swindon",919,"Hertfordshire",928,"Northamptonshire",831,"Derby"]
[391,"Newcastle upon Tyne",355,"Salford",383,"Leeds",390,"Gateshead",341,"Liverpool",393,"South Tyneside",806,"Middlesbrough",373,"Sheffield",841,"Darlington",394,"Sunderland",354,"Rochdale"]
[316,"Newham",304,"Brent",320,"Waltham Forest",301,"Barking and Dagenham",203,"Greenwich",309,"Haringey",204,"Hackney",307,"Ealing",330,"Birmingham",871,"Slough",308,"Enfield"]
[926,"Norfolk",935,"Suffolk",908,"Cornwall",925,"Lincolnshire",909,"Cumbria",933,"Somerset",878,"Devon",893,"Shropshire",845,"East Sussex",921,"Isle of Wight",830,"Derbyshire"]
[812,"North East Lincolnshire",371,"Doncaster",807,"Redcar and Cleveland",876,"Halton",805,"Hartlepool",370,"Barnsley",357,"Tameside",372,"Rotherham",359,"Wigan",342,"St. Helens",384,"Wakefield"]
[813,"North Lincolnshire",371,"Doncaster",372,"Rotherham",894,"Telford and Wrekin",830,"Derbyshire",359,"Wigan",925,"Lincolnshire",909,"Cumbria",332,"Dudley",891,"Nottinghamshire",926,"Norfolk"]
[802,"North Somerset",885,"Worcestershire",803,"South Gloucestershire",938,"West Sussex",850,"Hampshire",845,"East Sussex",916,"Gloucestershire",881,"Essex",835,"Dorset",855,"Leicestershire",937,"Warwickshire"]
[392,"North Tyneside",841,"Darlington",808,"Stockton-on-Tees",342,"St. Helens",343,"Sefton",840,"Durham",390,"Gateshead",344,"Wirral",359,"Wigan",381,"Calderdale",929,"Northumberland"]
[815,"North Yorkshire",811,"East Riding of Yorkshire",937,"Warwickshire",895,"Cheshire East",896,"Cheshire West and Chester",857,"Rutland",823,"Central Bedfordshire",885,"Worcestershire",869,"West Berkshire",877,"Warrington",860,"Staffordshire"]
[928,"Northamptonshire",886,"Kent",891,"Nottinghamshire",866,"Swindon",860,"Staffordshire",830,"Derbyshire",881,"Essex",937,"Warwickshire",885,"Worcestershire",888,"Lancashire",887,"Medway"]
[929,"Northumberland",811,"East Riding of Yorkshire",896,"Cheshire West and Chester",877,"Warrington",392,"North Tyneside",808,"Stockton-on-Tees",840,"Durham",860,"Staffordshire",381,"Calderdale",830,"Derbyshire",891,"Nottinghamshire"]
[892,"Nottingham",352,"Manchester",336,"Wolverhampton",333,"Sandwell",801,"Bristol, City of",852,"Southampton",331,"Coventry",330,"Birmingham",355,"Salford",831,"Derby",810,"Kingston Upon Hull, City of"]
[891,"Nottinghamshire",830,"Derbyshire",860,"Staffordshire",888,"Lancashire",885,"Worcestershire",909,"Cumbria",928,"Northamptonshire",881,"Essex",886,"Kent",896,"Cheshire West and Chester",937,"Warwickshire"]
[353,"Oldham",354,"Rochdale",380,"Bradford",335,"Walsall",357,"Tameside",382,"Kirklees",350,"Bolton",831,"Derby",889,"Blackburn with Darwen",806,"Middlesbrough",332,"Dudley"]
[931,"Oxfordshire",873,"Cambridgeshire",800,"Bath and North East Somerset",919,"Hertfordshire",850,"Hampshire",869,"West Berkshire",865,"Wiltshire",916,"Gloucestershire",825,"Buckinghamshire",867,"Bracknell Forest",938,"West Sussex"]
[874,"Peterborough",831,"Derby",894,"Telford and Wrekin",335,"Walsall",373,"Sheffield",887,"Medway",852,"Southampton",851,"Portsmouth",879,"Plymouth",350,"Bolton",372,"Rotherham"]
[879,"Plymouth",880,"Torbay",851,"Portsmouth",882,"Southend-on-Sea",894,"Telford and Wrekin",921,"Isle of Wight",837,"Bournemouth",372,"Rotherham",373,"Sheffield",887,"Medway",852,"Southampton"]
[836,"Poole",938,"West Sussex",803,"South Gloucestershire",885,"Worcestershire",845,"East Sussex",866,"Swindon",835,"Dorset",886,"Kent",802,"North Somerset",935,"Suffolk",881,"Essex"]
[851,"Portsmouth",852,"Southampton",879,"Plymouth",373,"Sheffield",874,"Peterborough",831,"Derby",882,"Southend-on-Sea",837,"Bournemouth",894,"Telford and Wrekin",801,"Bristol, City of",331,"Coventry"]
[870,"Reading",319,"Sutton",801,"Bristol, City of",826,"Milton Keynes",822,"Bedford Borough",846,"Brighton and Hove",373,"Sheffield",302,"Barnet",852,"Southampton",831,"Derby",312,"Hillingdon"]
[317,"Redbridge",312,"Hillingdon",313,"Hounslow",307,"Ealing",302,"Barnet",871,"Slough",310,"Harrow",315,"Merton",821,"Luton",870,"Reading",319,"Sutton"]
[807,"Redcar and Cleveland",370,"Barnsley",805,"Hartlepool",342,"St. Helens",812,"North East Lincolnshire",359,"Wigan",876,"Halton",357,"Tameside",372,"Rotherham",371,"Doncaster",344,"Wirral"]
[318,"Richmond upon Thames",868,"Windsor and Maidenhead",936,"Surrey",872,"Wokingham",931,"Oxfordshire",314,"Kingston upon Thames",825,"Buckinghamshire",919,"Hertfordshire",305,"Bromley",873,"Cambridgeshire",358,"Trafford"]
[354,"Rochdale",353,"Oldham",806,"Middlesbrough",357,"Tameside",350,"Bolton",335,"Walsall",382,"Kirklees",372,"Rotherham",861,"Stoke-on-Trent",831,"Derby",371,"Doncaster"]
[372,"Rotherham",371,"Doncaster",359,"Wigan",332,"Dudley",370,"Barnsley",357,"Tameside",894,"Telford and Wrekin",812,"North East Lincolnshire",807,"Redcar and Cleveland",384,"Wakefield",813,"North Lincolnshire"]
[857,"Rutland",815,"North Yorkshire",869,"West Berkshire",895,"Cheshire East",865,"Wiltshire",823,"Central Bedfordshire",873,"Cambridgeshire",825,"Buckinghamshire",937,"Warwickshire",850,"Hampshire",931,"Oxfordshire"]
[355,"Salford",341,"Liverpool",806,"Middlesbrough",391,"Newcastle upon Tyne",393,"South Tyneside",805,"Hartlepool",390,"Gateshead",340,"Knowsley",876,"Halton",383,"Leeds",357,"Tameside"]
[333,"Sandwell",336,"Wolverhampton",335,"Walsall",831,"Derby",330,"Birmingham",331,"Coventry",874,"Peterborough",892,"Nottingham",861,"Stoke-on-Trent",821,"Luton",889,"Blackburn with Darwen"]
[343,"Sefton",888,"Lancashire",344,"Wirral",808,"Stockton-on-Tees",392,"North Tyneside",891,"Nottinghamshire",841,"Darlington",351,"Bury",359,"Wigan",381,"Calderdale",356,"Stockport"]
[373,"Sheffield",831,"Derby",383,"Leeds",882,"Southend-on-Sea",894,"Telford and Wrekin",350,"Bolton",874,"Peterborough",879,"Plymouth",851,"Portsmouth",381,"Calderdale",822,"Bedford Borough"]
[893,"Shropshire",878,"Devon",835,"Dorset",884,"Herefordshire",933,"Somerset",865,"Wiltshire",916,"Gloucestershire",935,"Suffolk",908,"Cornwall",885,"Worcestershire",926,"Norfolk"]
[871,"Slough",312,"Hillingdon",313,"Hounslow",317,"Redbridge",821,"Luton",330,"Birmingham",307,"Ealing",856,"Leicester",870,"Reading",331,"Coventry",333,"Sandwell"]
[334,"Solihull",356,"Stockport",877,"Warrington",358,"Trafford",896,"Cheshire West and Chester",823,"Central Bedfordshire",937,"Warwickshire",895,"Cheshire East",881,"Essex",351,"Bury",919,"Hertfordshire"]
[933,"Somerset",878,"Devon",908,"Cornwall",935,"Suffolk",893,"Shropshire",884,"Herefordshire",835,"Dorset",926,"Norfolk",916,"Gloucestershire",865,"Wiltshire",845,"East Sussex"]
[803,"South Gloucestershire",850,"Hampshire",938,"West Sussex",855,"Leicestershire",802,"North Somerset",885,"Worcestershire",916,"Gloucestershire",823,"Central Bedfordshire",881,"Essex",836,"Poole",835,"Dorset"]
[393,"South Tyneside",805,"Hartlepool",394,"Sunderland",340,"Knowsley",390,"Gateshead",876,"Halton",355,"Salford",807,"Redcar and Cleveland",342,"St. Helens",341,"Liverpool",357,"Tameside"]
[852,"Southampton",851,"Portsmouth",874,"Peterborough",879,"Plymouth",831,"Derby",373,"Sheffield",837,"Bournemouth",331,"Coventry",801,"Bristol, City of",861,"Stoke-on-Trent",882,"Southend-on-Sea"]
[882,"Southend-on-Sea",866,"Swindon",879,"Plymouth",887,"Medway",837,"Bournemouth",886,"Kent",373,"Sheffield",921,"Isle of Wight",894,"Telford and Wrekin",845,"East Sussex",836,"Poole"]
[210,"Southwark",204,"Hackney",208,"Lambeth",309,"Haringey",206,"Islington",203,"Greenwich",209,"Lewisham",205,"Hammersmith and Fulham",320,"Waltham Forest",308,"Enfield",202,"Camden"]
[342,"St. Helens",359,"Wigan",840,"Durham",841,"Darlington",876,"Halton",807,"Redcar and Cleveland",370,"Barnsley",384,"Wakefield",394,"Sunderland",808,"Stockton-on-Tees",390,"Gateshead"]
[860,"Staffordshire",830,"Derbyshire",891,"Nottinghamshire",885,"Worcestershire",937,"Warwickshire",881,"Essex",811,"East Riding of Yorkshire",888,"Lancashire",896,"Cheshire West and Chester",928,"Northamptonshire",877,"Warrington"]
[356,"Stockport",334,"Solihull",896,"Cheshire West and Chester",877,"Warrington",351,"Bury",937,"Warwickshire",888,"Lancashire",881,"Essex",802,"North Somerset",885,"Worcestershire",816,"York"]
[808,"Stockton-on-Tees",841,"Darlington",381,"Calderdale",888,"Lancashire",351,"Bury",359,"Wigan",342,"St. Helens",343,"Sefton",392,"North Tyneside",840,"Durham",344,"Wirral"]
[861,"Stoke-on-Trent",810,"Kingston Upon Hull, City of",806,"Middlesbrough",371,"Doncaster",812,"North East Lincolnshire",357,"Tameside",372,"Rotherham",890,"Blackpool",335,"Walsall",805,"Hartlepool",354,"Rochdale"]
[935,"Suffolk",933,"Somerset",926,"Norfolk",878,"Devon",908,"Cornwall",893,"Shropshire",835,"Dorset",925,"Lincolnshire",845,"East Sussex",916,"Gloucestershire",885,"Worcestershire"]
[394,"Sunderland",390,"Gateshead",384,"Wakefield",840,"Durham",342,"St. Helens",876,"Halton",370,"Barnsley",393,"South Tyneside",805,"Hartlepool",357,"Tameside",841,"Darlington"]
[936,"Surrey",868,"Windsor and Maidenhead",825,"Buckinghamshire",869,"West Berkshire",872,"Wokingham",919,"Hertfordshire",931,"Oxfordshire",873,"Cambridgeshire",867,"Bracknell Forest",850,"Hampshire",895,"Cheshire East"]
[319,"Sutton",305,"Bromley",870,"Reading",919,"Hertfordshire",822,"Bedford Borough",314,"Kingston upon Thames",867,"Bracknell Forest",826,"Milton Keynes",303,"Bexley",866,"Swindon",302,"Barnet"]
[866,"Swindon",886,"Kent",887,"Medway",928,"Northamptonshire",882,"Southend-on-Sea",836,"Poole",881,"Essex",891,"Nottinghamshire",894,"Telford and Wrekin",935,"Suffolk",888,"Lancashire"]
[357,"Tameside",372,"Rotherham",371,"Doncaster",342,"St. Helens",812,"North East Lincolnshire",359,"Wigan",807,"Redcar and Cleveland",805,"Hartlepool",876,"Halton",370,"Barnsley",394,"Sunderland"]
[894,"Telford and Wrekin",372,"Rotherham",887,"Medway",332,"Dudley",371,"Doncaster",813,"North Lincolnshire",874,"Peterborough",831,"Derby",359,"Wigan",888,"Lancashire",879,"Plymouth"]
[883,"Thurrock",887,"Medway",303,"Bexley",311,"Havering",332,"Dudley",894,"Telford and Wrekin",866,"Swindon",882,"Southend-on-Sea",373,"Sheffield",874,"Peterborough",831,"Derby"]
[880,"Torbay",921,"Isle of Wight",879,"Plymouth",882,"Southend-on-Sea",372,"Rotherham",807,"Redcar and Cleveland",890,"Blackpool",894,"Telford and Wrekin",359,"Wigan",926,"Norfolk",812,"North East Lincolnshire"]
[211,"Tower Hamlets",316,"Newham",202,"Camden",213,"Westminster",206,"Islington",352,"Manchester",309,"Haringey",205,"Hammersmith and Fulham",204,"Hackney",821,"Luton",330,"Birmingham"]
[358,"Trafford",334,"Solihull",919,"Hertfordshire",305,"Bromley",356,"Stockport",867,"Bracknell Forest",823,"Central Bedfordshire",816,"York",937,"Warwickshire",850,"Hampshire",895,"Cheshire East"]
[384,"Wakefield",370,"Barnsley",371,"Doncaster",840,"Durham",394,"Sunderland",359,"Wigan",342,"St. Helens",390,"Gateshead",372,"Rotherham",876,"Halton",807,"Redcar and Cleveland"]
[335,"Walsall",831,"Derby",874,"Peterborough",350,"Bolton",354,"Rochdale",332,"Dudley",861,"Stoke-on-Trent",894,"Telford and Wrekin",372,"Rotherham",357,"Tameside",371,"Doncaster"]
[320,"Waltham Forest",308,"Enfield",306,"Croydon",309,"Haringey",330,"Birmingham",304,"Brent",821,"Luton",203,"Greenwich",307,"Ealing",209,"Lewisham",204,"Hackney"]
[212,"Wandsworth",205,"Hammersmith and Fulham",207,"Kensington and Chelsea",202,"Camden",213,"Westminster",315,"Merton",302,"Barnet",870,"Reading",206,"Islington",309,"Haringey",846,"Brighton and Hove"]
[877,"Warrington",896,"Cheshire West and Chester",937,"Warwickshire",334,"Solihull",895,"Cheshire East",811,"East Riding of Yorkshire",356,"Stockport",860,"Staffordshire",823,"Central Bedfordshire",816,"York",351,"Bury"]
[937,"Warwickshire",896,"Cheshire West and Chester",885,"Worcestershire",823,"Central Bedfordshire",855,"Leicestershire",860,"Staffordshire",877,"Warrington",895,"Cheshire East",881,"Essex",850,"Hampshire",802,"North Somerset"]
[869,"West Berkshire",850,"Hampshire",825,"Buckinghamshire",823,"Central Bedfordshire",873,"Cambridgeshire",931,"Oxfordshire",895,"Cheshire East",919,"Hertfordshire",857,"Rutland",936,"Surrey",867,"Bracknell Forest"]
[938,"West Sussex",850,"Hampshire",803,"South Gloucestershire",916,"Gloucestershire",885,"Worcestershire",802,"North Somerset",835,"Dorset",881,"Essex",855,"Leicestershire",800,"Bath and North East Somerset",836,"Poole"]
[213,"Westminster",202,"Camden",205,"Hammersmith and Fulham",207,"Kensington and Chelsea",206,"Islington",212,"Wandsworth",352,"Manchester",201,"City of London",203,"Greenwich",302,"Barnet",870,"Reading"]
[359,"Wigan",342,"St. Helens",372,"Rotherham",370,"Barnsley",371,"Doncaster",807,"Redcar and Cleveland",384,"Wakefield",808,"Stockton-on-Tees",357,"Tameside",332,"Dudley",841,"Darlington"]
[865,"Wiltshire",916,"Gloucestershire",893,"Shropshire",873,"Cambridgeshire",835,"Dorset",800,"Bath and North East Somerset",878,"Devon",885,"Worcestershire",850,"Hampshire",938,"West Sussex",931,"Oxfordshire"]
[868,"Windsor and Maidenhead",936,"Surrey",825,"Buckinghamshire",919,"Hertfordshire",872,"Wokingham",869,"West Berkshire",931,"Oxfordshire",867,"Bracknell Forest",873,"Cambridgeshire",850,"Hampshire",358,"Trafford"]
[344,"Wirral",343,"Sefton",841,"Darlington",808,"Stockton-on-Tees",807,"Redcar and Cleveland",342,"St. Helens",392,"North Tyneside",359,"Wigan",876,"Halton",888,"Lancashire",805,"Hartlepool"]
[872,"Wokingham",936,"Surrey",868,"Windsor and Maidenhead",825,"Buckinghamshire",869,"West Berkshire",867,"Bracknell Forest",919,"Hertfordshire",895,"Cheshire East",850,"Hampshire",931,"Oxfordshire",857,"Rutland"]
[336,"Wolverhampton",333,"Sandwell",331,"Coventry",892,"Nottingham",335,"Walsall",831,"Derby",330,"Birmingham",874,"Peterborough",852,"Southampton",373,"Sheffield",861,"Stoke-on-Trent"]
[885,"Worcestershire",802,"North Somerset",937,"Warwickshire",881,"Essex",938,"West Sussex",835,"Dorset",803,"South Gloucestershire",855,"Leicestershire",845,"East Sussex",860,"Staffordshire",850,"Hampshire"]
[816,"York",896,"Cheshire West and Chester",937,"Warwickshire",877,"Warrington",356,"Stockport",895,"Cheshire East",850,"Hampshire",919,"Hertfordshire",867,"Bracknell Forest",823,"Central Bedfordshire",885,"Worcestershire"]
[]
[1,2,3,4,5,6,7,8,9,10,11,12,13,14,15,16,17,18,19,20,21,22]